{"text_format":"1","workbook":"xlsx","n_sheets":23,"sheets":["About I-JEDI","Help","Wind-Inputs","Wind-Results","Solar-PV-Inputs","Solar-PV-Results","Biopower-Inputs","Biopower-Results","Geothermal-Inputs","Geothermal-Results","General Impact Estimates","CustomRegion1","CustomRegion2","CustomRegion3","Default-Data","Calculations","SouthAfrica-IO-Data","Mexico-IO-Data","Zambia-IO-Data","Philippines-IO-Data","Colombia-IO-Data","Bangladesh-IO-Data","Not-Technology-Specific"],"not_rendered":{"charts":0,"images":1,"macros":1,"external_links":0,"defined_names":41,"comments":2,"pivot_tables":0},"unopened":[],"bounds":{"document_bytes":16777216,"sheet_cells":100000,"rows_first":2000,"rows_last":500,"rows_between":2000,"halvings":0,"cell_chars":16384,"cell_head_chars":4096},"cells_cut":0,"cells_raw":0,"read":"whole","date_system":"1900"}

{"sheet":"About I-JEDI","index":0,"n_rows":19,"n_cols":2,"rows_kept":19,"cut":false,"hidden":false,"merged":[[0,1,1,1]]}
[null,"International Jobs and Economic Development Impacts (I-JEDI) Model"]
[]
[null,"The I-JEDI model was developed by the National Renewable Energy Laboratory (NREL) with support from USAID. The model is intended to provide countries outside of the United States a tool to estimate gross economic impacts that could be supported by the construction and operation of renewable energy facilities. "]
[]
[null,"This file uses macros but they should only be enabled if this model was downloaded from its official sources:"]
[null,"https://www.ec-leds.org/tools-page/development-impact-assessment-tools"]
[null,"http://www.nrel.gov/analysis/jedi"]
[]
[null,"Inquiries should be sent to jedisupport@nrel.gov"]
[]
[null,"National Renewable Energy Laboratory"]
[null,"15013 Denver West Parkway"]
[null,"Golden, CO 80401 USA"]
[]
[null,"USAID"]
[null,"1300 Pennsylvania Avenue NW"]
[null,"Washington, DC 20523 USA"]
[]
[null,"9/27/16 Model Release"]

{"sheet":"Help","index":1,"n_rows":61,"n_cols":4,"rows_kept":61,"cut":false,"hidden":false,"merged":[]}
[null,"I-JEDI Help"]
[]
[null,"The best source of information about I-JEDI is the I-JEDI user guide. This can be obtained, free of charge, by clicking the link below:"]
[null,"http://www.nrel.gov/docs/fy16osti/67036.pdf"]
[]
[null,"Additional support can be obtained by e-mailing jedisupport@nrel.gov."]
[]
[null,"Macros"]
[null,null,"This model uses macros to populate default data. Please download models from http://www.nrel.gov/analysis/jedi to ensure that malicious code has not been added to macros."]
[]
[null,"Input-Output Data"]
[null,null,"Input-output data for all countries come from the Organization for Economic Cooperation and Development (OECD) Structural Analysis (STAN) dataset."]
[]
[null,"Renewable Energy Sector Data"]
[null,null,"Default data come from a number of different sources which are listed in the \"Default-Data\" tab."]
[]
[null,"Questions"]
[null,null,"Please direct questions about this model to jedisupport@nrel.gov"]
[]
[null,"Scenario Inputs"]
[null,null,"Currency year","Year in which currency is reported - this is used to adjust default project costs and data in the input-output model for inflation. The currency year does not affect how project costs are distributed. For example, solar PV modules were more expensive (in real dollars) in 2008 than in 2014. Setting the currency year to 2008 wouldn't increase module prices relative to other project costs. It would only change dollar values to 2008 values.  "]
[]
[null,"Types of Impacts"]
[null,null,"Direct","Direct effects are the expenditures specified in the scenario input and jobs/income/value added directly associated with those expenditures. "]
[null,null,"Indirect","Indirect effects provide inputs to the industries in which a direct effect occurs. These commonly include manufactured components and business to business services."]
[null,null,"Induced","Induced effects arise as a result of expenditures made by households that receive payments as a result of direct and indirect effects. These effects commonly occur in retail sales, accommodation and leisure, and real estate."]
[]
[null,"Impact Phase"]
[null,null,"Construction","Impact estimates during the construction phase are over the equivalent of one year. If a product with an impact of 200 jobs takes two years to complete, this is the equivalent of an average of 100 jobs each year."]
[null,null,"Operating","Operating estimates are annual and assumed to be ongoing for the life of the facility."]
[]
[null,"Metrics"]
[null,null,"Earnings","Earnings are all payments made to workers, including wages and salaries. These are the employer's payroll. These do not include payments for \"informal sector\" labor such as family members working on a family farm without a salary."]
[null,null,"Value Added (GDP)","Value added consists of payments made within the country of analysis to workers, property type income (including land and capital), and taxes. This is the equivalent of GDP."]
[null,null,"Output","Output is all economic activity that arises as a result of the scenario, including payments for inputs that are purchased from other industries. "]
[]
[null,"Interpreting results"]
[null,null,"Gross vs. Net","Impact results are gross, not net. Far-reaching impacts from projects such as greenhouse gas reductions, changes in property values, or changes in individual or business consumption patterns are not considered. "]
[null,null,"Prices, Taxes, Technology","Input-output models do not estimate supply-side changes such as changes in taxes, prices, or technological shifts."]
[null,null,"Feasibility / Profitability","This tool does not evaluate the feasibility or profitability of a project."]
[null,null,"National Renewable Energy Laboratory (NREL)","NREL is not responsible for how JEDI Lite is used or its results are interpreted."]
[]
[null,"Further Input-Output Data"]
[null,null,"Organisation for Economic Cooperation and Development","https://stats.oecd.org/Index.aspx?DataSetCode=STAN_IO_TOT_DOM_IMP"]
[null,null,"World Input Output Database","http://www.wiod.org/new_site/database/niots.htm"]
[null,null,"WIOD Sources of Other I-O Data","http://www.wiod.org/new_site/otherdb.htm"]
[null,null,"International Food Policy Research Institute","http://ebrary.ifpri.org/cdm/search/collection/p15738coll3/searchterm/Social%20Accounting%20Matrices/field/series/mode/all/conn/and/order/date"]
[]
[null,"Support"]
[null,null,"E-Mail","Please contact jedisupport@nrel.gov if you have questions or comments about this model."]
[]
[null,"Custom regions"]
[null,null,"The I-JEDI user guide contains detailed information about how to enter custom regions in its appendix, including how to derive total requirements tables. The format of the CustomRegion worksheets is the same as country IO Data worksheets."]
[null,null,"Direct requirements","This is the percentage of output for each industry that is paid for each input. "]
[null,null,"Total requirements","This is what is multiplied by final demand to produce impact estimates. It is also known as the Leontief inverse."]
[null,null,"Type 1 vs. type 2 total requirements","Type 2 total requirements tables include labor payments and household expenditures. These are used to calculate induced impacts. Type 1 tables only include payments between industries. "]
[]
[]
[]
[]
[null,null,"Click to access the user guide."]

{"sheet":"Wind-Inputs","index":2,"n_rows":39,"n_cols":5,"rows_kept":39,"cut":false,"hidden":false,"merged":[]}
["I-JEDI - Utility Scale Land-Based Wind",null,null,null,"Click for Help"]
[]
[]
["Country","Colombia",{"$f":"IF(B4=\"\",\"Choose a Country from the Drop-Down Menu\",\"\")","v":""}]
["Project Size (MW)",500]
["Dollar Year",2014,{"$f":"IF(B6=\"\",\"Choose a Currency Year from the Drop-Down Menu\",\"\")","v":""}]
[]
[]
[]
[]
["Wind Plant Construction"]
["Equipment",{"$f":"\"Cost (US $\"&B6&\")\"","v":"Cost (US $2014)"},{"$f":"\"% Manufactured and Purchased in \"&B4","v":"% Manufactured and Purchased in Colombia"}]
["Turbine (Generator, Gearbox, Nacelle)",{"$f":"'Default-Data'!D142","v":366543749.87741017},{"$f":"'Default-Data'!E142","v":0}]
["Blades",{"$f":"'Default-Data'!D143","v":85812918.031500712},{"$f":"'Default-Data'!E143","v":0}]
["Tower",{"$f":"'Default-Data'!D144","v":95007159.249161467},{"$f":"'Default-Data'!E144","v":0.1}]
["Equipment Shipping/Transportation",{"$f":"'Default-Data'!D145","v":65381270.881143399},{"$f":"'Default-Data'!E145","v":0.5}]
["Equipment Subtotal",{"$f":"SUM(B13:B16)","v":612745098.0392158}]
[]
["Construction",{"$f":"\"Cost (US $\"&B6&\")\"","v":"Cost (US $2014)"},{"$f":"\"% Purchased in \"&B4","v":"% Purchased in Colombia"}]
["Electrical Balance of Plant",{"$f":"'Default-Data'!D149","v":153186274.50980392},{"$f":"'Default-Data'!E149","v":0.15}]
["Construction (Excluding Site Improvements)",{"$f":"'Default-Data'!D150","v":234885620.91503268},{"$f":"'Default-Data'!E150","v":0.9}]
["Subtotal",{"$f":"SUM(B20:B21)","v":388071895.42483664}]
[]
["Other",{"$f":"\"Cost (US $\"&B6&\")\"","v":"Cost (US $2014)"},{"$f":"\"% Spent in \"&B4","v":"% Spent in Colombia"}]
["Engineering and Other Professional Services",{"$f":"'Default-Data'!D154","v":20424836.601307191},{"$f":"'Default-Data'!E154","v":0.5}]
["Site Improvement (i.e., Road Construction)",{"$f":"'Default-Data'!D157","v":0},{"$f":"'Default-Data'!E157","v":0.9},null,"default is zero - highly site specific"]
["Subtotal",{"$f":"SUM(B25:B26)","v":20424836.601307191}]
[]
["Construction Total",{"$f":"B17+B22+B27","v":1021241830.0653596}]
[]
[]
["Operations and Maintenance (O&M)",{"$f":"\"Cost (US $\"&B6&\")\"","v":"Cost (US $2014)"},{"$f":"\"% Spent in \"&B4","v":"% Spent in Colombia"}]
["Plant Operations (staff, equipment such as trucks)",{"$f":"'Default-Data'!D164","v":3375315.7376672919},{"$f":"'Default-Data'!E164","v":0.5}]
["Replacement Parts",{"$f":"'Default-Data'!D165","v":49019607.843137264},{"$f":"'Default-Data'!E165","v":0}]
["Civil Works (Access Road Maintenance, Etc.)",{"$f":"'Default-Data'!D166","v":0},{"$f":"'Default-Data'!E166","v":0.9},null,"default is zero - highly site specific"]
["O&M Total",{"$f":"SUM(B33:B35)","v":52394923.580804557}]
[]
[]
[null,"Click Arrow to go to Results"]

{"sheet":"Wind-Results","index":3,"n_rows":61,"n_cols":27,"rows_kept":61,"cut":false,"hidden":false,"merged":[[11,3,11,5],[18,3,18,5],[2,0,2,2]]}
["I-JEDI - Utility Scale Land-Based Wind",null,null,null,null,null,null,"Click for help"]
["Estimated Project Gross Impacts",null,null,null,null,null,null,"Return to inputs"]
[{"$f":"wind_country","v":"Colombia"}]
[]
[null,"Nameplate Capacity (MW)",{"$f":"wind_capacity","v":500}]
[]
[]
[]
[]
[]
[null,"Impact Totals"]
[null,"Construction Phase (Single Year Equivalent)",null,{"$f":"\"($ \"&wind_dollar_year&\" US)\"","v":"($ 2014 US)"}]
[null,null,"Jobs","Earnings","Output","GDP (Value Added)"]
[null,"Direct",{"$f":"TRANSPOSE(C42:F42)","v":7664.6034310006507},{"$f":"TRANSPOSE(J42:M42)","v":30991636.342079081},{"$f":"TRANSPOSE(Q42:T42)","v":286778769.66614145},{"$f":"TRANSPOSE(X42:AA42)","v":135854149.83082765}]
[null,"Indirect",5521.4427068650857,27786840.844530471,190163667.57431394,100505272.7999106]
[null,"Induced",4277.5920741735399,26574896.450798485,209209777.83958444,68028628.677166045]
[null,"Total",17463.638212039277,85353373.637408033,686152215.08003986,{"$f":"SUM(F14:F16)","v":304388051.3079043}]
[]
[null,"Operations and Maintenance Phase (Annual, Ongoing)",null,{"$f":"\"($ \"&wind_dollar_year&\" US)\"","v":"($ 2014 US)"}]
[null,null,"Jobs","Earnings","Output","GDP"]
[null,"Direct",{"$f":"TRANSPOSE(C61:F61)","v":15},{"$f":"TRANSPOSE(J61:M61)","v":157309.97727272726},{"$f":"TRANSPOSE(Q61:T61)","v":1687657.8688336459},{"$f":"TRANSPOSE(X61:AA61)","v":892582.31830677716}]
[null,"Indirect",21.363126141996982,150357.74364812256,1193799.9509344322,703502.78911159839]
[null,"Induced",22.390457655304495,139102.57999313038,1095079.3321492479,356086.34561976301]
[null,"Total",58.753583797301481,446770.30091398023,3976537.1519173263,1952171.4530381386]
[]
[]
[null,"Detailed Impacts"]
[null,"Construction"]
[null,null,"Jobs",null,null,null,null,null,null,{"$f":"\"Earnings ($\"&wind_dollar_year&\" US)\"","v":"Earnings ($2014 US)"},null,null,null,null,null,null,{"$f":"\"Output ($\"&wind_dollar_year&\" US)\"","v":"Output ($2014 US)"},null,null,null,null,null,null,{"$f":"\"GDP ($\"&wind_dollar_year&\" US)\"","v":"GDP ($2014 US)"}]
[null,null,"Direct","Indirect","Induced","Total",null,null,null,"Direct","Indirect","Induced","Total",null,null,null,"Direct","Indirect","Induced","Total",null,null,null,"Direct","Indirect","Induced","Total"]
[null,"Agriculture",{"$f":"Calculations!O50","v":0},{"$f":"Calculations!P50","v":70.634243673640555},{"$f":"Calculations!Q50","v":281.29519607293929},{"$f":"SUM(C31:E31)","v":351.92943974657987},null,null,"Agriculture",{"$f":"Calculations!L50","v":0},{"$f":"Calculations!M50","v":345737.67056398891},{"$f":"Calculations!N50","v":1376872.4739299803},{"$f":"SUM(J31:L31)","v":1722610.1444939692},null,null,"Agriculture",{"$f":"Calculations!D50","v":0},{"$f":"Calculations!G50","v":1891625.8091335304},{"$f":"Calculations!H50","v":7533247.688407273},{"$f":"SUM(Q31:S31)","v":9424873.4975408036},null,null,"Agriculture",{"$f":"Calculations!I50","v":0},{"$f":"Calculations!J50","v":1309574.3029049968},{"$f":"Calculations!K50","v":5215274.3647939069},{"$f":"SUM(X31:Z31)","v":6524848.6676989039}]
[null,"Mining and Extraction",{"$f":"Calculations!O51","v":0},{"$f":"Calculations!P51","v":139.40605026287398},{"$f":"Calculations!Q51","v":12.324358074238127},{"$f":"SUM(C32:E32)","v":151.7304083371121},null,null,"Mining and Extraction",{"$f":"Calculations!L51","v":0},{"$f":"Calculations!M51","v":1461997.5065688919},{"$f":"Calculations!N51","v":129249.63257062349},{"$f":"SUM(J32:L32)","v":1591247.1391395153},null,null,"Mining and Extraction",{"$f":"Calculations!D51","v":0},{"$f":"Calculations!G51","v":21525162.959824502},{"$f":"Calculations!H51","v":1902957.6938946806},{"$f":"SUM(Q32:S32)","v":23428120.653719183},null,null,"Mining and Extraction",{"$f":"Calculations!I51","v":0},{"$f":"Calculations!J51","v":17626595.467939164},{"$f":"Calculations!K51","v":1558300.1868784651},{"$f":"SUM(X32:Z32)","v":19184895.65481763}]
[null,"Utilities",{"$f":"Calculations!O52","v":0},{"$f":"Calculations!P52","v":53.281930416114534},{"$f":"Calculations!Q52","v":49.324901946158761},102.60683236227329,null,null,"Utilities",{"$f":"Calculations!L52","v":0},{"$f":"Calculations!M52","v":558785.28418706753},{"$f":"Calculations!N52","v":517286.613608649},1076071.8977957165,null,null,"Utilities",{"$f":"Calculations!D52","v":0},{"$f":"Calculations!G52","v":5994777.9422268318},{"$f":"Calculations!H52","v":5549570.5932588568},11544348.535485689,null,null,"Utilities",{"$f":"Calculations!I52","v":0},{"$f":"Calculations!J52","v":3170567.264978393},{"$f":"Calculations!K52","v":2935102.3552904567},6105669.6202688497]
[null,"Construction",{"$f":"Calculations!O53","v":5679.5357422613997},{"$f":"Calculations!P53","v":93.525519197123884},{"$f":"Calculations!Q53","v":29.886013559973108},5802.9472750184968,null,null,"Construction",{"$f":"Calculations!L53","v":20701618.640541378},{"$f":"Calculations!M53","v":340895.75617435743},{"$f":"Calculations!N53","v":108932.99795632075},21151447.394672055,null,null,"Construction",{"$f":"Calculations!D53","v":211397058.82352942},{"$f":"Calculations!G53","v":3481097.853843838},{"$f":"Calculations!H53","v":1112382.3589184582},215990539.03629172,null,null,"Construction",{"$f":"Calculations!I53","v":104971897.24655029},{"$f":"Calculations!J53","v":1728583.397765842},{"$f":"Calculations!K53","v":552367.60307408182},107252848.24739023]
[null,"Manufacturing",{"$f":"Calculations!O54","v":914.54390783089286},{"$f":"Calculations!P54","v":2204.3315659602122},{"$f":"Calculations!Q54","v":645.58312969978169},3764.4586034908866,null,null,"Manufacturing",{"$f":"Calculations!L54","v":3890294.357763025},{"$f":"Calculations!M54","v":9376803.6507216338},{"$f":"Calculations!N54","v":2746186.7991607194},16013284.807645377,null,null,"Manufacturing",{"$f":"Calculations!D54","v":32478657.101386733},{"$f":"Calculations!G54","v":83071139.958524168},{"$f":"Calculations!H54","v":28320591.758738853},143870388.81864974,null,null,"Manufacturing",{"$f":"Calculations!I54","v":9173960.5172172822},{"$f":"Calculations!J54","v":30779326.644746374},{"$f":"Calculations!K54","v":8478685.184124615},48431972.346088275]
[null,{"$f":"IF(wind_country<>\"Zambia\",\"Sales\",\"Trade, Transportation, and Warehousing\")","v":"Sales"},{"$f":"Calculations!O55","v":0},{"$f":"Calculations!P55","v":1413.160475489964},{"$f":"Calculations!Q55","v":821.9484709098665},2235.1089463998305,null,null,{"$f":"IF(wind_country<>\"Zambia\",\"Sales\",\"Trade, Transportation, and Warehousing\")","v":"Sales"},{"$f":"Calculations!L55","v":0},{"$f":"Calculations!M55","v":4679137.4901476232},{"$f":"Calculations!N55","v":2721566.2848696639},7400703.7750172876,null,null,{"$f":"IF(wind_country<>\"Zambia\",\"Sales\",\"Trade, Transportation, and Warehousing\")","v":"Sales"},{"$f":"Calculations!D55","v":0},{"$f":"Calculations!G55","v":17953505.541175026},{"$f":"Calculations!H55","v":10442449.164822701},28395954.705997728,null,null,{"$f":"IF(wind_country<>\"Zambia\",\"Sales\",\"Trade, Transportation, and Warehousing\")","v":"Sales"},{"$f":"Calculations!I55","v":0},{"$f":"Calculations!J55","v":10786242.830364622},{"$f":"Calculations!K55","v":6273693.5790726999},17059936.409437321]
[null,{"$f":"IF(wind_country<>\"Zambia\",\"Transportation and Warehousing\",\"\")","v":"Transportation and Warehousing"},{"$f":"Calculations!O56","v":804.20740961871445},{"$f":"Calculations!P56","v":385.22533455640269},{"$f":"Calculations!Q56","v":181.24514543633057},1370.6778896114477,null,null,{"$f":"IF(wind_country<>\"Zambia\",\"Transportation and Warehousing\",\"\")","v":"Transportation and Warehousing"},{"$f":"Calculations!L56","v":3606775.1894460702},{"$f":"Calculations!M56","v":1727690.0988550184},{"$f":"Calculations!N56","v":812863.05740111822},6147328.3457022067,null,null,{"$f":"IF(wind_country<>\"Zambia\",\"Transportation and Warehousing\",\"\")","v":"Transportation and Warehousing"},{"$f":"Calculations!D56","v":32690635.440571699},{"$f":"Calculations!G56","v":15659220.275558341},{"$f":"Calculations!H56","v":7367525.9690054469},55717381.685135484,null,null,{"$f":"IF(wind_country<>\"Zambia\",\"Transportation and Warehousing\",\"\")","v":"Transportation and Warehousing"},{"$f":"Calculations!I56","v":14260195.07330922},{"$f":"Calculations!J56","v":6830810.5001912359},{"$f":"Calculations!K56","v":3213836.5042393273},24304842.077739783]
[null,{"$f":"IF(wind_country<>\"Zambia\",\"Information\",\"\")","v":"Information"},{"$f":"Calculations!O57","v":0},{"$f":"Calculations!P57","v":76.297722823135018},{"$f":"Calculations!Q57","v":131.96238459380226},208.26010741693727,null,null,{"$f":"IF(wind_country<>\"Zambia\",\"Information\",\"\")","v":"Information"},{"$f":"Calculations!L57","v":0},{"$f":"Calculations!M57","v":342186.26985815418},{"$f":"Calculations!N57","v":591835.69934866019},934021.96920681442,null,null,{"$f":"IF(wind_country<>\"Zambia\",\"Information\",\"\")","v":"Information"},{"$f":"Calculations!D57","v":0},{"$f":"Calculations!G57","v":2578469.3754499089},{"$f":"Calculations!H57","v":4459647.7430292051},7038117.118479114,null,null,{"$f":"IF(wind_country<>\"Zambia\",\"Information\",\"\")","v":"Information"},{"$f":"Calculations!I57","v":0},{"$f":"Calculations!J57","v":1409727.0680028673},{"$f":"Calculations!K57","v":2438224.086337728},3847951.154340595]
[null,"Finance, Professional, and Business Services",{"$f":"Calculations!O58","v":266.31637128964405},{"$f":"Calculations!P58","v":923.67310366797653},{"$f":"Calculations!Q58","v":966.96434776493049},2156.9538227225512,null,null,"Finance, Professional, and Business Services",{"$f":"Calculations!L58","v":2792948.1543286066},{"$f":"Calculations!M58","v":8115791.6122060437},{"$f":"Calculations!N58","v":9029374.5528169367},19938114.319351587,null,null,"Finance, Professional, and Business Services",{"$f":"Calculations!D58","v":10212418.300653595},{"$f":"Calculations!G58","v":34214102.839974403},{"$f":"Calculations!H58","v":32643400.832659785},77069921.973287776,null,null,"Finance, Professional, and Business Services",{"$f":"Calculations!I58","v":7448096.9937508684},{"$f":"Calculations!J58","v":24880669.333106041},{"$f":"Calculations!K58","v":23456823.365729649},55785589.692586556]
[null,{"$f":"IF(wind_country<>\"Zambia\",\"Education and Health Care\",\"\")","v":"Education and Health Care"},{"$f":"Calculations!O59","v":0},{"$f":"Calculations!P59","v":8.1037437052818078},{"$f":"Calculations!Q59","v":514.4692995084356},522.57304321371737,null,null,{"$f":"IF(wind_country<>\"Zambia\",\"Education and Health Care\",\"\")","v":"Education and Health Care"},{"$f":"Calculations!L59","v":0},{"$f":"Calculations!M59","v":84986.649206792528},{"$f":"Calculations!N59","v":5395410.2542125275},5480396.9034193205,null,null,{"$f":"IF(wind_country<>\"Zambia\",\"Education and Health Care\",\"\")","v":"Education and Health Care"},{"$f":"Calculations!D59","v":0},{"$f":"Calculations!G59","v":150309.84663439536},{"$f":"Calculations!H59","v":12216378.831986202},12366688.678620597,null,null,{"$f":"IF(wind_country<>\"Zambia\",\"Education and Health Care\",\"\")","v":"Education and Health Care"},{"$f":"Calculations!I59","v":0},{"$f":"Calculations!J59","v":115413.43503823807},{"$f":"Calculations!K59","v":7308449.1240703259},7423862.5591085637]
[null,"Other",{"$f":"Calculations!O60","v":0},{"$f":"Calculations!P60","v":153.80301711236066},{"$f":"Calculations!Q60","v":642.58882660708309},796.39184371944373,null,null,"Other",{"$f":"Calculations!L60","v":0},{"$f":"Calculations!M60","v":752828.85604089848},{"$f":"Calculations!N60","v":3145318.084923286},3898146.9409641847,null,null,"Other",{"$f":"Calculations!D60","v":0},{"$f":"Calculations!G60","v":3644255.1719690133},{"$f":"Calculations!H60","v":97661625.204862982},101305880.37683199,null,null,"Other",{"$f":"Calculations!I60","v":0},{"$f":"Calculations!J60","v":1867762.5548728241},{"$f":"Calculations!K60","v":6597872.3235547869},8465634.8784276117]
[null,"Total",{"$f":"Calculations!O61","v":7664.6034310006507},{"$f":"Calculations!P61","v":5521.4427068650857},{"$f":"Calculations!Q61","v":4277.5920741735399},17463.638212039277,null,null,"Total",{"$f":"Calculations!L61","v":30991636.342079081},{"$f":"Calculations!M61","v":27786840.844530471},{"$f":"Calculations!N61","v":26574896.450798485},85353373.637408033,null,null,"Total",{"$f":"Calculations!D61","v":286778769.66614145},{"$f":"Calculations!G61","v":190163667.57431394},{"$f":"Calculations!H61","v":209209777.83958444},686152215.08003986,null,null,"Total",{"$f":"Calculations!I61","v":135854149.83082765},{"$f":"Calculations!J61","v":100505272.7999106},{"$f":"Calculations!K61","v":68028628.677166045},304388051.3079043]
[]
[]
[]
[null,"Detailed Impacts"]
[null,"O&M"]
[null,null,"Jobs",null,null,null,null,null,null,{"$f":"\"Earnings ($\"&wind_dollar_year&\" US)\"","v":"Earnings ($2014 US)"},null,null,null,null,null,null,{"$f":"\"Output ($\"&wind_dollar_year&\" US)\"","v":"Output ($2014 US)"},null,null,null,null,null,null,{"$f":"\"GDP ($\"&wind_dollar_year&\" US)\"","v":"GDP ($2014 US)"}]
[null,null,"Direct","Indirect","Induced","Total",null,null,null,"Direct","Indirect","Induced","Total",null,null,null,"Direct","Indirect","Induced","Total",null,null,null,"Direct","Indirect","Induced","Total"]
[null,"Agriculture",{"$f":"Calculations!Z50","v":0},{"$f":"Calculations!AA50","v":0.10271275266567323},{"$f":"Calculations!AB50","v":1.4724003755146773},{"$f":"SUM(C50:E50)","v":1.5751131281803505},null,null,"Agriculture",{"$f":"Calculations!W50","v":0},{"$f":"Calculations!X50","v":502.75427323783072},{"$f":"Calculations!Y50","v":7207.0464620542216},{"$f":"SUM(J50:L50)","v":7709.8007352920522},null,null,"Agriculture",{"$f":"Calculations!E50","v":0},{"$f":"Calculations!R50","v":2750.706792689045},{"$f":"Calculations!S50","v":39431.731789617275},{"$f":"SUM(Q50:S50)","v":42182.43858230632},null,null,"Agriculture",{"$f":"Calculations!T50","v":0},{"$f":"Calculations!U50","v":1904.316864962753},{"$f":"Calculations!V50","v":27298.624506703189},{"$f":"SUM(X50:Z50)","v":29202.94137166594}]
[null,"Mining and Extraction",{"$f":"Calculations!Z51","v":0},{"$f":"Calculations!AA51","v":1.1842203245460348},{"$f":"Calculations!AB51","v":6.4510129251478601E-2},{"$f":"SUM(C51:E51)","v":1.2487304537975135},null,null,"Mining and Extraction",{"$f":"Calculations!W51","v":0},{"$f":"Calculations!X51","v":12419.311489349229},{"$f":"Calculations!Y51","v":676.53913109405323},{"$f":"SUM(J51:L51)","v":13095.850620443283},null,null,"Mining and Extraction",{"$f":"Calculations!E51","v":0},{"$f":"Calculations!R51","v":182850.99834707959},{"$f":"Calculations!S51","v":9960.7659931473027},{"$f":"SUM(Q51:S51)","v":192811.76434022689},null,null,"Mining and Extraction",{"$f":"Calculations!T51","v":0},{"$f":"Calculations!U51","v":149733.62035810866},{"$f":"Calculations!V51","v":8156.7044597856211},{"$f":"SUM(X51:Z51)","v":157890.32481789429}]
[null,"Utilities",{"$f":"Calculations!Z52","v":15},{"$f":"Calculations!AA52","v":4.5479989243029291},{"$f":"Calculations!AB52","v":0.25818430304410683},19.806183227347038,null,null,"Utilities",{"$f":"Calculations!W52","v":157309.97727272726},{"$f":"Calculations!X52","v":47696.373827898788},{"$f":"Calculations!Y52","v":2707.6644562695583},207714.01555689561,null,null,"Utilities",{"$f":"Calculations!E52","v":1687657.8688336459},{"$f":"Calculations!R52","v":511697.74480311968},{"$f":"Calculations!S52","v":29048.451376114506},2228404.0650128801,null,null,"Utilities",{"$f":"Calculations!T52","v":892582.31830677716},{"$f":"Calculations!U52","v":270630.89490073582},{"$f":"Calculations!V52","v":15363.382917435227},1178576.5961249482]
[null,"Construction",{"$f":"Calculations!Z53","v":0},{"$f":"Calculations!AA53","v":1.7433189843552424},{"$f":"Calculations!AB53","v":0.15643415956854836},1.8997531439237907,null,null,"Construction",{"$f":"Calculations!W53","v":0},{"$f":"Calculations!X53","v":6354.3089471902003},{"$f":"Calculations!Y53","v":570.19454770650805},6924.5034948967086,null,null,"Construction",{"$f":"Calculations!E53","v":0},{"$f":"Calculations!R53","v":64887.787067113961},{"$f":"Calculations!S53","v":5822.6099338102867},70710.397000924248,null,null,"Construction",{"$f":"Calculations!T53","v":0},{"$f":"Calculations!U53","v":32220.855647055876},{"$f":"Calculations!V53","v":2891.2909908973907},35112.146637953265]
[null,"Manufacturing",{"$f":"Calculations!Z54","v":0},{"$f":"Calculations!AA54","v":2.0823597322642744},{"$f":"Calculations!AB54","v":3.3792146324085159},5.4615743646727903,null,null,"Manufacturing",{"$f":"Calculations!W54","v":0},{"$f":"Calculations!X54","v":8857.9588665944884},{"$f":"Calculations!Y54","v":14374.530851459065},23232.489718053555,null,null,"Manufacturing",{"$f":"Calculations!E54","v":0},{"$f":"Calculations!R54","v":84955.69805504159},{"$f":"Calculations!S54","v":148240.17801410452},233195.87606914609,null,null,"Manufacturing",{"$f":"Calculations!T54","v":0},{"$f":"Calculations!U54","v":29824.348432158036},{"$f":"Calculations!V54","v":44380.492177828492},74204.840609986524]
[null,{"$f":"IF(wind_country<>\"Zambia\",\"Sales\",\"Trade, Transportation, and Warehousing\")","v":"Sales"},{"$f":"Calculations!Z55","v":0},{"$f":"Calculations!AA55","v":2.8965441696507068},{"$f":"Calculations!AB55","v":4.3023743530536134},7.1989185227043198,null,null,{"$f":"IF(wind_country<>\"Zambia\",\"Sales\",\"Trade, Transportation, and Warehousing\")","v":"Sales"},{"$f":"Calculations!W55","v":0},{"$f":"Calculations!X55","v":9590.7921649039872},{"$f":"Calculations!Y55","v":14245.658211635822},23836.450376539811,null,null,{"$f":"IF(wind_country<>\"Zambia\",\"Sales\",\"Trade, Transportation, and Warehousing\")","v":"Sales"},{"$f":"Calculations!E55","v":0},{"$f":"Calculations!R55","v":36799.162375420892},{"$f":"Calculations!S55","v":54659.54017782458},91458.702553245472,null,null,{"$f":"IF(wind_country<>\"Zambia\",\"Sales\",\"Trade, Transportation, and Warehousing\")","v":"Sales"},{"$f":"Calculations!T55","v":0},{"$f":"Calculations!U55","v":22108.47906137272},{"$f":"Calculations!V55","v":32838.771904570393},54947.250965943109]
[null,{"$f":"IF(wind_country<>\"Zambia\",\"Transportation and Warehousing\",\"\")","v":"Transportation and Warehousing"},{"$f":"Calculations!Z56","v":0},{"$f":"Calculations!AA56","v":1.6001568751367985},{"$f":"Calculations!AB56","v":0.94870237361418541},2.548859248750984,null,null,{"$f":"IF(wind_country<>\"Zambia\",\"Transportation and Warehousing\",\"\")","v":"Transportation and Warehousing"},{"$f":"Calculations!W56","v":0},{"$f":"Calculations!X56","v":7176.5144755396614},{"$f":"Calculations!Y56","v":4254.8180262881942},11431.332501827856,null,null,{"$f":"IF(wind_country<>\"Zambia\",\"Transportation and Warehousing\",\"\")","v":"Transportation and Warehousing"},{"$f":"Calculations!E56","v":0},{"$f":"Calculations!R56","v":65045.589517289372},{"$f":"Calculations!S56","v":38564.284619225764},103609.87413651514,null,null,{"$f":"IF(wind_country<>\"Zambia\",\"Transportation and Warehousing\",\"\")","v":"Transportation and Warehousing"},{"$f":"Calculations!T56","v":0},{"$f":"Calculations!U56","v":28373.960391842487},{"$f":"Calculations!V56","v":16822.37784984336},45196.338241685851]
[null,{"$f":"IF(wind_country<>\"Zambia\",\"Information\",\"\")","v":"Information"},{"$f":"Calculations!Z57","v":0},{"$f":"Calculations!AA57","v":0.46008385182650885},{"$f":"Calculations!AB57","v":0.69073865228521236},1.1508225041117213,null,null,{"$f":"IF(wind_country<>\"Zambia\",\"Information\",\"\")","v":"Information"},{"$f":"Calculations!W57","v":0},{"$f":"Calculations!X57","v":2063.421701895767},{"$f":"Calculations!Y57","v":3097.8812227493618},5161.3029246451288,null,null,{"$f":"IF(wind_country<>\"Zambia\",\"Information\",\"\")","v":"Information"},{"$f":"Calculations!E57","v":0},{"$f":"Calculations!R57","v":15548.46040193971},{"$f":"Calculations!S57","v":23343.402600436631},38891.86300237634,null,null,{"$f":"IF(wind_country<>\"Zambia\",\"Information\",\"\")","v":"Information"},{"$f":"Calculations!T57","v":0},{"$f":"Calculations!U57","v":8500.812808979188},{"$f":"Calculations!V57","v":12762.543087944203},21263.355896923393]
[null,"Finance, Professional, and Business Services",{"$f":"Calculations!Z58","v":0},{"$f":"Calculations!AA58","v":5.936308178049674},{"$f":"Calculations!AB58","v":5.0614396855508694},10.997747863600544,null,null,"Finance, Professional, and Business Services",{"$f":"Calculations!W58","v":0},{"$f":"Calculations!X58","v":51013.595349449759},{"$f":"Calculations!Y58","v":47262.998685491228},98276.594034940994,null,null,"Finance, Professional, and Business Services",{"$f":"Calculations!E58","v":0},{"$f":"Calculations!R58","v":210429.3633668265},{"$f":"Calculations!S58","v":170867.31773272605},381296.68109955254,null,null,"Finance, Professional, and Business Services",{"$f":"Calculations!T58","v":0},{"$f":"Calculations!U58","v":150298.56615286827},{"$f":"Calculations!V58","v":122781.4623720989},273080.02852496714]
[null,{"$f":"IF(wind_country<>\"Zambia\",\"Education and Health Care\",\"\")","v":"Education and Health Care"},{"$f":"Calculations!Z59","v":0},{"$f":"Calculations!AA59","v":0.12888246007919776},{"$f":"Calculations!AB59","v":2.6929176195052191},2.8218000795844169,null,null,{"$f":"IF(wind_country<>\"Zambia\",\"Education and Health Care\",\"\")","v":"Education and Health Care"},{"$f":"Calculations!W59","v":0},{"$f":"Calculations!X59","v":1351.6331243941186},{"$f":"Calculations!Y59","v":28241.520634779525},29593.153759173641,null,null,{"$f":"IF(wind_country<>\"Zambia\",\"Education and Health Care\",\"\")","v":"Education and Health Care"},{"$f":"Calculations!E59","v":0},{"$f":"Calculations!R59","v":2337.4919325948372},{"$f":"Calculations!S59","v":63944.927004661477},66282.418937256312,null,null,{"$f":"IF(wind_country<>\"Zambia\",\"Education and Health Care\",\"\")","v":"Education and Health Care"},{"$f":"Calculations!T59","v":0},{"$f":"Calculations!U59","v":1835.9120157950804},{"$f":"Calculations!V59","v":38255.055134040631},40090.967149835713]
[null,"Other",{"$f":"Calculations!Z60","v":0},{"$f":"Calculations!AA60","v":0.68053988911994134},{"$f":"Calculations!AB60","v":3.3635413715080658},4.0440812606280074,null,null,"Other",{"$f":"Calculations!W60","v":0},{"$f":"Calculations!X60","v":3331.0794276687247},{"$f":"Calculations!Y60","v":16463.727763602823},19794.807191271546,null,null,"Other",{"$f":"Calculations!E60","v":0},{"$f":"Calculations!R60","v":16496.948275316972},{"$f":"Calculations!S60","v":511196.12290757941},527693.07118289638,null,null,"Other",{"$f":"Calculations!T60","v":0},{"$f":"Calculations!U60","v":8071.0224777193325},{"$f":"Calculations!V60","v":34535.64021861559},42606.662696334926]
[null,"Total",{"$f":"Calculations!Z61","v":15},{"$f":"Calculations!AA61","v":21.363126141996982},{"$f":"Calculations!AB61","v":22.390457655304495},58.753583797301481,null,null,"Total",{"$f":"Calculations!W61","v":157309.97727272726},{"$f":"Calculations!X61","v":150357.74364812256},{"$f":"Calculations!Y61","v":139102.57999313038},446770.30091398023,null,null,"Total",{"$f":"Calculations!E61","v":1687657.8688336459},{"$f":"Calculations!R61","v":1193799.9509344322},{"$f":"Calculations!S61","v":1095079.3321492479},3976537.1519173263,null,null,"Total",{"$f":"Calculations!T61","v":892582.31830677716},{"$f":"Calculations!U61","v":703502.78911159839},{"$f":"Calculations!V61","v":356086.34561976301},1952171.4530381386]

{"sheet":"Solar-PV-Inputs","index":4,"n_rows":37,"n_cols":35,"rows_kept":37,"cut":false,"hidden":false,"merged":[]}
["I-JEDI - Solar Photovoltaics",null,null,null,"Click for Help",null,null,null,null,null,null,null,null,null,null,null,null,null,null,null,null,null,null,null,null,null,null,null,null,null,null,null,null,null,{"$f":"'Default-Data'!Z124","v":1373114.2051525216}]
[]
["Project Description"]
["Country","Mexico",""]
["Project Size (MW)",100]
["Dollar Year",2009]
[]
[]
[]
[]
["Solar Photovoltaic Installation","Expenditures",{"$f":"\"Local Content (\"&pv_country&\")\"","v":"Local Content (Mexico)"}]
["Equipment",{"$f":"\"Cost (US $\"&B6&\")\"","v":"Cost (US $2009)"},{"$f":"\"% Manufactured in \"&B4","v":"% Manufactured in Mexico"},null,{"$f":"\"Module purchased from retailer or wholesaler in \"&pv_country&\"? Choose yes or no - if yes is chosen the assumed reseller's margin will appear; you can change this margin.\"","v":"Module purchased from retailer or wholesaler in Mexico? Choose yes or no - if yes is chosen the assumed reseller's margin will appear; you can change this margin."}]
["Module",{"$f":"'Default-Data'!Z109","v":65565873.930852018},{"$f":"'Default-Data'!AE109","v":0},null,{"$f":"'Default-Data'!AA110","v":6556521.8278669231},"Yes"]
["Inverter",{"$f":"'Default-Data'!Z110","v":23962958.134908523},{"$f":"'Default-Data'!AE110","v":0}]
["Subtotal",{"$f":"B13+B14","v":89528832.065760538}]
[]
["Installation",{"$f":"\"Cost (US $\"&B6&\")\"","v":"Cost (US $2009)"},{"$f":"\"% of Workers Residing in \"&B4","v":"% of Workers Residing in Mexico"}]
["Construction and installation costs",{"$f":"'Default-Data'!Z112","v":71888874.404725581},{"$f":"'Default-Data'!AE112","v":1}]
["Subtotal",{"$f":"SUM(B18:B18)","v":71888874.404725581}]
[]
["Other",{"$f":"\"Cost (US $\"&B6&\")\"","v":"Cost (US $2009)"},{"$f":"\"% of Expenditures Made in \"&B4","v":"% of Expenditures Made in Mexico"}]
["Design and civil engineering",{"$f":"'Default-Data'!Z114","v":1109396.2099494687},{"$f":"'Default-Data'!AE114","v":0.5}]
["Other (public relations, legal, environmental studies)",{"$f":"'Default-Data'!Z115","v":5546981.049747345},{"$f":"'Default-Data'!AE115","v":0.9}]
["Infrastructure - electricity and other",{"$f":"'Default-Data'!Z116","v":47925916.269817054},{"$f":"'Default-Data'!AE116","v":0.85}]
["Transportation - Country Specific",{"$f":"'Default-Data'!Z117","v":2.9802322387695313E-8},{"$f":"'Default-Data'!AE117","v":1}]
["Subtotal",{"$f":"SUM(B23:B25)","v":53472897.319564432}]
[]
["Construction Total",{"$f":"B26+B19+B15","v":214890603.79005057}]
[]
["Operations and Maintenance"]
[null,{"$f":"\"Annual Cost (US $\"&B6&\")\"","v":"Annual Cost (US $2009)"},{"$f":"\"% of Expenditures Made in \"&pv_country","v":"% of Expenditures Made in Mexico"}]
["Maintenance and repair services",{"$f":"'Default-Data'!Z123","v":750829.48556493246},{"$f":"'Default-Data'!AE123","v":0.9}]
["Repair parts",{"$f":"'Default-Data'!Z124","v":1373114.2051525216},{"$f":"'Default-Data'!AE124","v":0}]
["O&M Total",{"$f":"SUM(B32:B33)","v":2123943.6907174541}]
[]
[]
[null,"Click arrow to go to results"]

{"sheet":"Solar-PV-Results","index":5,"n_rows":61,"n_cols":27,"rows_kept":61,"cut":false,"hidden":false,"merged":[[11,3,11,5],[18,3,18,5],[0,0,0,2],[1,0,1,2],[2,0,2,2]]}
["I-JEDI - Solar Photovoltaics",null,null,null,null,"Click for help"]
["Estimated Project Gross Impacts",null,null,null,null,"Return to inputs"]
[{"$f":"pv_country","v":"Mexico"}]
[]
[null,"Nameplate Capacity (MW)",{"$f":"pv_nameplate","v":100}]
[null,"Construction Cost",{"$f":"'Solar-PV-Inputs'!B28/(pv_nameplate*1000)","v":2148.9060379005055}]
[]
[]
[]
[]
[null,"Impact Totals"]
[null,"Construction Phase (Single Year Equivalent)",null,{"$f":"\"( $ \"&pv_dollar_year&\" US)\"","v":"( $ 2009 US)"}]
[null,null,"Jobs","Earnings","Output","GDP (Value Added)"]
[null,"Direct",{"$f":"TRANSPOSE(C42:F42)","v":6836.8872735824207},{"$f":"TRANSPOSE(J42:M42)","v":23151735.995199904},{"$f":"TRANSPOSE(Q42:T42)","v":124729406.11168438},{"$f":"TRANSPOSE(X42:AA42)","v":63537949.318923675}]
[null,"Indirect",2420.2177159026619,10869527.024843069,81891348.471418068,47068467.585425474]
[null,"Induced",4808.5147916530723,12773337.440150019,104212320.2930029,37405207.22184854]
[null,"Total",14065.619781138153,46794600.460192993,310833074.87610537,148011624.1261977]
[]
[null,"Operations and Maintenance Phase (Annual, Ongoing)",null,{"$f":"\"( $ \"&pv_dollar_year&\" US)\"","v":"( $ 2009 US)"}]
[null,null,"Jobs","Earnings","Output","GDP"]
[null,"Direct",{"$f":"TRANSPOSE(C61:F61)","v":54.89174375821424},{"$f":"TRANSPOSE(J61:M61)","v":149476.72047979804},{"$f":"TRANSPOSE(Q61:T61)","v":675746.53700843919},{"$f":"TRANSPOSE(X61:AA61)","v":339861.67961255042}]
[null,"Indirect",15.253947225947943,62983.179327292703,436694.52214089135,258616.17701016908]
[null,"Induced",30.028766723141938,79768.40810224005,650797.09460145398,233592.34411537059]
[null,"Total",100.17445770730413,292228.30790933082,1763238.1537507845,832070.20073809009]
[]
[]
[null,"Detailed Impacts"]
[null,"Construction"]
[null,null,"Jobs",null,null,null,null,null,null,{"$f":"\"Earnings ($\"&pv_dollar_year&\" US)\"","v":"Earnings ($2009 US)"},null,null,null,null,null,null,{"$f":"\"Output ($\"&pv_dollar_year&\" US)\"","v":"Output ($2009 US)"},null,null,null,null,null,null,{"$f":"\"GDP ($\"&pv_dollar_year&\" US)\"","v":"GDP ($2009 US)"}]
[null,null,"Direct","Indirect","Induced","Total",null,null,null,"Direct","Indirect","Induced","Total",null,null,null,"Direct","Indirect","Induced","Total",null,null,null,"Direct","Indirect","Induced","Total"]
[null,"Agriculture",{"$f":"Calculations!O7","v":0},{"$f":"Calculations!P7","v":37.187727467275664},{"$f":"Calculations!Q7","v":253.21236187012636},{"$f":"SUM(C31:E31)","v":290.40008933740205},null,null,"Agriculture",{"$f":"Calculations!L7","v":0},{"$f":"Calculations!M7","v":36103.767803687711},{"$f":"Calculations!N7","v":245831.64771300071},{"$f":"SUM(J31:L31)","v":281935.41551668843},null,null,"Agriculture",{"$f":"Calculations!D7","v":0},{"$f":"Calculations!G7","v":359357.0479434075},{"$f":"Calculations!H7","v":2446873.0159566421},{"$f":"SUM(Q31:S31)","v":2806230.0639000498},null,null,"Agriculture",{"$f":"Calculations!I7","v":0},{"$f":"Calculations!J7","v":219163.04380619823},{"$f":"Calculations!K7","v":1492287.7985928976},{"$f":"SUM(X31:Z31)","v":1711450.8423990959}]
[null,"Mining and Extraction",{"$f":"Calculations!O8","v":0},{"$f":"Calculations!P8","v":32.814312643490965},{"$f":"Calculations!Q8","v":4.072002767561087},{"$f":"SUM(C32:E32)","v":36.886315411052053},null,null,"Mining and Extraction",{"$f":"Calculations!L8","v":0},{"$f":"Calculations!M8","v":581878.02771729068},{"$f":"Calculations!N8","v":72206.569279390053},{"$f":"SUM(J32:L32)","v":654084.59699668072},null,null,"Mining and Extraction",{"$f":"Calculations!D8","v":0},{"$f":"Calculations!G8","v":10890315.574278753},{"$f":"Calculations!H8","v":1351404.0546838343},{"$f":"SUM(Q32:S32)","v":12241719.628962588},null,null,"Mining and Extraction",{"$f":"Calculations!I8","v":0},{"$f":"Calculations!J8","v":9375770.4901016355},{"$f":"Calculations!K8","v":1163460.7068718972},{"$f":"SUM(X32:Z32)","v":10539231.196973532}]
[null,"Utilities",{"$f":"Calculations!O9","v":255.46480407569464},{"$f":"Calculations!P9","v":12.000162664170569},{"$f":"Calculations!Q9","v":8.0895975428231832},275.55456428268837,null,null,"Utilities",{"$f":"Calculations!L9","v":4401440.4660680834},{"$f":"Calculations!M9","v":206752.55732617344},{"$f":"Calculations!N9","v":139376.85900808789},4747569.8824023446,null,null,"Utilities",{"$f":"Calculations!D9","v":40737028.829344496},{"$f":"Calculations!G9","v":1913574.6474974006},{"$f":"Calculations!H9","v":1289986.5776505843},43940590.054492481,null,null,"Utilities",{"$f":"Calculations!I9","v":18222803.139938023},{"$f":"Calculations!J9","v":855995.0270551563},{"$f":"Calculations!K9","v":577046.7835581525},19655844.950551331]
[null,"Construction",{"$f":"Calculations!O10","v":5839.623966643222},{"$f":"Calculations!P10","v":463.1388524840977},{"$f":"Calculations!Q10","v":6.9965935948977434},6309.7594127222173,null,null,"Construction",{"$f":"Calculations!L10","v":15901987.796451369},{"$f":"Calculations!M10","v":1261181.9566351497},{"$f":"Calculations!N10","v":19052.5531435458},17182222.306230064,null,null,"Construction",{"$f":"Calculations!D10","v":71888874.404725581},{"$f":"Calculations!G10","v":5701485.4018616974},{"$f":"Calculations!H10","v":86131.785381659865},77676491.591968939,null,null,"Construction",{"$f":"Calculations!I10","v":36155973.079504795},{"$f":"Calculations!J10","v":2867519.5488851671},{"$f":"Calculations!K10","v":43319.338900989525},39066811.967290953]
[null,"Manufacturing",{"$f":"Calculations!O11","v":0},{"$f":"Calculations!P11","v":414.38514048031431},{"$f":"Calculations!Q11","v":220.44565785379572},634.83079833411,null,null,"Manufacturing",{"$f":"Calculations!L11","v":0},{"$f":"Calculations!M11","v":2325836.2324902774},{"$f":"Calculations!N11","v":1061749.6854764433},3387585.9179667206,null,null,"Manufacturing",{"$f":"Calculations!D11","v":0},{"$f":"Calculations!G11","v":31122678.48828483},{"$f":"Calculations!H11","v":14091345.33188978},45214023.820174612,null,null,"Manufacturing",{"$f":"Calculations!I11","v":0},{"$f":"Calculations!J11","v":9963659.6732818224},{"$f":"Calculations!K11","v":4772107.1128801731},14735766.786161996]
[null,{"$f":"IF(pv_country<>\"Zambia\",\"Sales\",\"Trade, Transportation, and Warehousing\")","v":"Sales"},{"$f":"Calculations!O12","v":221.72402736439565},{"$f":"Calculations!P12","v":437.63915492767052},{"$f":"Calculations!Q12","v":281.41582762515509},940.77900991722129,null,null,{"$f":"IF(pv_country<>\"Zambia\",\"Sales\",\"Trade, Transportation, and Warehousing\")","v":"Sales"},{"$f":"Calculations!L12","v":1005323.4251813171},{"$f":"Calculations!M12","v":1984308.5995469014},{"$f":"Calculations!N12","v":1275973.2316398751},4265605.2563680932,null,null,{"$f":"IF(pv_country<>\"Zambia\",\"Sales\",\"Trade, Transportation, and Warehousing\")","v":"Sales"},{"$f":"Calculations!D12","v":6556521.8278669231},{"$f":"Calculations!G12","v":12941270.759513866},{"$f":"Calculations!H12","v":8321646.6815262772},27819439.268907066,null,null,{"$f":"IF(pv_country<>\"Zambia\",\"Sales\",\"Trade, Transportation, and Warehousing\")","v":"Sales"},{"$f":"Calculations!I12","v":4992582.2835418219},{"$f":"Calculations!J12","v":9854364.9844733085},{"$f":"Calculations!K12","v":6336668.5695301471},21183615.837545279]
[null,{"$f":"IF(pv_country<>\"Zambia\",\"Transportation and Warehousing\",\"\")","v":"Transportation and Warehousing"},{"$f":"Calculations!O13","v":1.0408051693541917E-12},{"$f":"Calculations!P13","v":115.13190279983462},{"$f":"Calculations!Q13","v":167.91820333939614},283.05010613923179,null,null,{"$f":"IF(pv_country<>\"Zambia\",\"Transportation and Warehousing\",\"\")","v":"Transportation and Warehousing"},{"$f":"Calculations!L13","v":7.0272804059070042E-9},{"$f":"Calculations!M13","v":777344.49103676446},{"$f":"Calculations!N13","v":1133745.6181681235},1911090.1092048949,null,null,{"$f":"IF(pv_country<>\"Zambia\",\"Transportation and Warehousing\",\"\")","v":"Transportation and Warehousing"},{"$f":"Calculations!D13","v":2.9802322387695313E-8},{"$f":"Calculations!G13","v":3296676.6359149553},{"$f":"Calculations!H13","v":4808154.8574440749},8104831.49335906,null,null,{"$f":"IF(pv_country<>\"Zambia\",\"Transportation and Warehousing\",\"\")","v":"Transportation and Warehousing"},{"$f":"Calculations!I13","v":2.1782371212027817E-8},{"$f":"Calculations!J13","v":2409524.778483944},{"$f":"Calculations!K13","v":3514256.7947323248},5923781.5732162911]
[null,{"$f":"IF(pv_country<>\"Zambia\",\"Information\",\"\")","v":"Information"},{"$f":"Calculations!O14","v":0},{"$f":"Calculations!P14","v":19.575953539828536},{"$f":"Calculations!Q14","v":25.549095291174314},45.12504883100285,null,null,{"$f":"IF(pv_country<>\"Zambia\",\"Information\",\"\")","v":"Information"},{"$f":"Calculations!L14","v":0},{"$f":"Calculations!M14","v":223963.79854730432},{"$f":"Calculations!N14","v":292301.08353171765},516264.88207902201,null,null,{"$f":"IF(pv_country<>\"Zambia\",\"Information\",\"\")","v":"Information"},{"$f":"Calculations!D14","v":0},{"$f":"Calculations!G14","v":1435896.0431840841},{"$f":"Calculations!H14","v":1874025.9451929431},3309921.9883770272,null,null,{"$f":"IF(pv_country<>\"Zambia\",\"Information\",\"\")","v":"Information"},{"$f":"Calculations!I14","v":0},{"$f":"Calculations!J14","v":876098.81919760874},{"$f":"Calculations!K14","v":1143419.7660218321},2019518.585219441]
[null,"Finance, Professional, and Business Services",{"$f":"Calculations!O15","v":520.07447549910705},{"$f":"Calculations!P15","v":785.86775004921685},{"$f":"Calculations!Q15","v":2252.5221663329594},3558.4643918812835,null,null,"Finance, Professional, and Business Services",{"$f":"Calculations!L15","v":1842984.3074991242},{"$f":"Calculations!M15","v":3295457.7104754206},{"$f":"Calculations!N15","v":4123054.7255040379},9261496.7434785813,null,null,"Finance, Professional, and Business Services",{"$f":"Calculations!D15","v":5546981.049747345},{"$f":"Calculations!G15","v":13475294.623703258},{"$f":"Calculations!H15","v":14766169.677726129},33788445.351176731,null,null,"Finance, Professional, and Business Services",{"$f":"Calculations!I15","v":4166590.8159390152},{"$f":"Calculations!J15","v":10087741.678507093},{"$f":"Calculations!K15","v":11670444.60421727},25924777.098663379]
[null,{"$f":"IF(pv_country<>\"Zambia\",\"Education and Health Care\",\"\")","v":"Education and Health Care"},{"$f":"Calculations!O16","v":0},{"$f":"Calculations!P16","v":16.239952645291929},{"$f":"Calculations!Q16","v":1244.9156330884491},1261.155585733741,null,null,{"$f":"IF(pv_country<>\"Zambia\",\"Education and Health Care\",\"\")","v":"Education and Health Care"},{"$f":"Calculations!L16","v":0},{"$f":"Calculations!M16","v":62007.004649520852},{"$f":"Calculations!N16","v":3749233.6607625969},3811240.6654121177,null,null,{"$f":"IF(pv_country<>\"Zambia\",\"Education and Health Care\",\"\")","v":"Education and Health Care"},{"$f":"Calculations!D16","v":0},{"$f":"Calculations!G16","v":80140.041601058925},{"$f":"Calculations!H16","v":5605689.6097085457},5685829.6513096048,null,null,{"$f":"IF(pv_country<>\"Zambia\",\"Education and Health Care\",\"\")","v":"Education and Health Care"},{"$f":"Calculations!I16","v":0},{"$f":"Calculations!J16","v":71902.212411017463},{"$f":"Calculations!K16","v":4674299.4416028764},4746201.6540138936]
[null,"Other",{"$f":"Calculations!O17","v":0},{"$f":"Calculations!P17","v":86.236806201470301},{"$f":"Calculations!Q17","v":343.37765234673395},429.61445854820425,null,null,"Other",{"$f":"Calculations!L17","v":0},{"$f":"Calculations!M17","v":114692.87861457706},{"$f":"Calculations!N17","v":660811.80592320114},775504.68453777814,null,null,"Other",{"$f":"Calculations!D17","v":0},{"$f":"Calculations!G17","v":674659.20763474936},{"$f":"Calculations!H17","v":49570892.755842432},50245551.963477179,null,null,"Other",{"$f":"Calculations!I17","v":0},{"$f":"Calculations!J17","v":486727.32922252547},{"$f":"Calculations!K17","v":2017896.3049399788},2504623.6341625042]
[null,"Total",{"$f":"Calculations!O18","v":6836.8872735824207},{"$f":"Calculations!P18","v":2420.2177159026619},{"$f":"Calculations!Q18","v":4808.5147916530723},14065.619781138153,null,null,"Total",{"$f":"Calculations!L18","v":23151735.995199904},{"$f":"Calculations!M18","v":10869527.024843069},{"$f":"Calculations!N18","v":12773337.440150019},46794600.460192993,null,null,"Total",{"$f":"Calculations!D18","v":124729406.11168438},{"$f":"Calculations!G18","v":81891348.471418068},{"$f":"Calculations!H18","v":104212320.2930029},310833074.87610537,null,null,"Total",{"$f":"Calculations!I18","v":63537949.318923675},{"$f":"Calculations!J18","v":47068467.585425474},{"$f":"Calculations!K18","v":37405207.22184854},148011624.1261977]
[]
[]
[]
[null,"Detailed Impacts"]
[null,"O&M"]
[null,null,"Jobs",null,null,null,null,null,null,{"$f":"\"Earnings ($\"&pv_dollar_year&\" US)\"","v":"Earnings ($2009 US)"},null,null,null,null,null,null,{"$f":"\"Output ($\"&pv_dollar_year&\" US)\"","v":"Output ($2009 US)"},null,null,null,null,null,null,{"$f":"\"GDP ($\"&pv_dollar_year&\" US)\"","v":"GDP ($2009 US)"}]
[null,null,"Direct","Indirect","Induced","Total",null,null,null,"Direct","Indirect","Induced","Total",null,null,null,"Direct","Indirect","Induced","Total",null,null,null,"Direct","Indirect","Induced","Total"]
[null,"Agriculture",{"$f":"Calculations!Z7","v":0},{"$f":"Calculations!AA7","v":0.27249090712706892},{"$f":"Calculations!AB7","v":1.5812897070032383},{"$f":"SUM(C50:E50)","v":1.8537806141303073},null,null,"Agriculture",{"$f":"Calculations!W7","v":0},{"$f":"Calculations!X7","v":264.54825582415856},{"$f":"Calculations!Y7","v":1535.1977735731398},{"$f":"SUM(J50:L50)","v":1799.7460293972983},null,null,"Agriculture",{"$f":"Calculations!E7","v":0},{"$f":"Calculations!R7","v":2633.1678391150249},{"$f":"Calculations!S7","v":15280.514292034228},{"$f":"SUM(Q50:S50)","v":17913.682131149253},null,null,"Agriculture",{"$f":"Calculations!T7","v":0},{"$f":"Calculations!U7","v":1605.9044389854869},{"$f":"Calculations!V7","v":9319.2106355841752},{"$f":"SUM(X50:Z50)","v":10925.115074569661}]
[null,"Mining and Extraction",{"$f":"Calculations!Z8","v":0},{"$f":"Calculations!AA8","v":0.13859582096858736},{"$f":"Calculations!AB8","v":2.5429311648440152E-2},{"$f":"SUM(C51:E51)","v":0.1640251326170275},null,null,"Mining and Extraction",{"$f":"Calculations!W8","v":0},{"$f":"Calculations!X8","v":2457.6429142743978},{"$f":"Calculations!Y8","v":450.92389619618507},{"$f":"SUM(J51:L51)","v":2908.5668104705828},null,null,"Mining and Extraction",{"$f":"Calculations!E8","v":0},{"$f":"Calculations!R8","v":45996.765009903429},{"$f":"Calculations!S8","v":8439.4036132013352},{"$f":"SUM(Q51:S51)","v":54436.168623104764},null,null,"Mining and Extraction",{"$f":"Calculations!T8","v":0},{"$f":"Calculations!U8","v":39599.872848363564},{"$f":"Calculations!V8","v":7265.7133589033365},{"$f":"SUM(X51:Z51)","v":46865.586207266897}]
[null,"Utilities",{"$f":"Calculations!Z9","v":0},{"$f":"Calculations!AA9","v":5.6916409167256383E-2},{"$f":"Calculations!AB9","v":5.0518850003168934E-2},0.10743525917042532,null,null,"Utilities",{"$f":"Calculations!W9","v":0},{"$f":"Calculations!X9","v":980.62113643577629},{"$f":"Calculations!Y9","v":870.39665408189489},1851.0177905176711,null,null,"Utilities",{"$f":"Calculations!E9","v":0},{"$f":"Calculations!R9","v":9076.0267720569573},{"$f":"Calculations!S9","v":8055.8566822952162},17131.883454352173,null,null,"Utilities",{"$f":"Calculations!T9","v":0},{"$f":"Calculations!U9","v":4059.9585662679365},{"$f":"Calculations!V9","v":3603.608183110151},7663.5667493780875]
[null,"Construction",{"$f":"Calculations!Z10","v":54.89174375821424},{"$f":"Calculations!AA10","v":4.2217647752741971},{"$f":"Calculations!AB10","v":4.3693133123464477E-2},59.157201666611897,null,null,"Construction",{"$f":"Calculations!W10","v":149476.72047979804},{"$f":"Calculations!X10","v":11496.365574115773},{"$f":"Calculations!Y10","v":118.98157718491794},161092.06763109873,null,null,"Construction",{"$f":"Calculations!E10","v":675746.53700843919},{"$f":"Calculations!R10","v":51972.167973418371},{"$f":"Calculations!S10","v":537.88568877102807},728256.59067062859,null,null,"Construction",{"$f":"Calculations!T10","v":339861.67961255042},{"$f":"Calculations!U10","v":26139.014161653002},{"$f":"Calculations!V10","v":270.52559445523599},366271.21936865867]
[null,"Manufacturing",{"$f":"Calculations!Z11","v":0},{"$f":"Calculations!AA11","v":3.134058694075597},{"$f":"Calculations!AB11","v":1.3766644216863211},4.5107231157619179,null,null,"Manufacturing",{"$f":"Calculations!W11","v":0},{"$f":"Calculations!X11","v":14064.986377863039},{"$f":"Calculations!Y11","v":6630.5366636047493},20695.523041467786,null,null,"Manufacturing",{"$f":"Calculations!E11","v":0},{"$f":"Calculations!R11","v":156894.55328832005},{"$f":"Calculations!S11","v":87999.255512549702},244893.80880086974,null,null,"Manufacturing",{"$f":"Calculations!T11","v":0},{"$f":"Calculations!U11","v":61279.497318028414},{"$f":"Calculations!V11","v":29801.403859519221},91080.901177547639]
[null,{"$f":"IF(pv_country<>\"Zambia\",\"Sales\",\"Trade, Transportation, and Warehousing\")","v":"Sales"},{"$f":"Calculations!Z12","v":0},{"$f":"Calculations!AA12","v":2.1597918711600004},{"$f":"Calculations!AB12","v":1.7574179567097832},3.9172098278697836,null,null,{"$f":"IF(pv_country<>\"Zambia\",\"Sales\",\"Trade, Transportation, and Warehousing\")","v":"Sales"},{"$f":"Calculations!W12","v":0},{"$f":"Calculations!X12","v":9792.7562808738785},{"$f":"Calculations!Y12","v":7968.3445259227619},17761.10080679664,null,null,{"$f":"IF(pv_country<>\"Zambia\",\"Sales\",\"Trade, Transportation, and Warehousing\")","v":"Sales"},{"$f":"Calculations!E12","v":0},{"$f":"Calculations!R12","v":63866.432137449112},{"$f":"Calculations!S12","v":51967.977177845838},115834.40931529495,null,null,{"$f":"IF(pv_country<>\"Zambia\",\"Sales\",\"Trade, Transportation, and Warehousing\")","v":"Sales"},{"$f":"Calculations!T12","v":0},{"$f":"Calculations!U12","v":48632.251363401745},{"$f":"Calculations!V12","v":39571.957355021703},88204.208718423441]
[null,{"$f":"IF(pv_country<>\"Zambia\",\"Transportation and Warehousing\",\"\")","v":"Transportation and Warehousing"},{"$f":"Calculations!Z13","v":0},{"$f":"Calculations!AA13","v":0.5219037180985614},{"$f":"Calculations!AB13","v":1.0486349268178854},1.5705386449164469,null,null,{"$f":"IF(pv_country<>\"Zambia\",\"Transportation and Warehousing\",\"\")","v":"Transportation and Warehousing"},{"$f":"Calculations!W13","v":0},{"$f":"Calculations!X13","v":3523.7755152962168},{"$f":"Calculations!Y13","v":7080.1451521896915},10603.920667485909,null,null,{"$f":"IF(pv_country<>\"Zambia\",\"Transportation and Warehousing\",\"\")","v":"Transportation and Warehousing"},{"$f":"Calculations!E13","v":0},{"$f":"Calculations!R13","v":14944.144514348667},{"$f":"Calculations!S13","v":30026.518964558254},44970.663478906921,null,null,{"$f":"IF(pv_country<>\"Zambia\",\"Transportation and Warehousing\",\"\")","v":"Transportation and Warehousing"},{"$f":"Calculations!T13","v":0},{"$f":"Calculations!U13","v":10922.60190407614},{"$f":"Calculations!V13","v":21946.235390066198},32868.837294142337]
[null,{"$f":"IF(pv_country<>\"Zambia\",\"Information\",\"\")","v":"Information"},{"$f":"Calculations!Z14","v":0},{"$f":"Calculations!AA14","v":0.13193638160344046},{"$f":"Calculations!AB14","v":0.15955193146494331},0.29148831306838374,null,null,{"$f":"IF(pv_country<>\"Zambia\",\"Information\",\"\")","v":"Information"},{"$f":"Calculations!W14","v":0},{"$f":"Calculations!X14","v":1509.452560273701},{"$f":"Calculations!Y14","v":1825.3954558966968},3334.8480161703978,null,null,{"$f":"IF(pv_country<>\"Zambia\",\"Information\",\"\")","v":"Information"},{"$f":"Calculations!E14","v":0},{"$f":"Calculations!R14","v":9677.532586648389},{"$f":"Calculations!S14","v":11703.132958850338},21380.665545498727,null,null,{"$f":"IF(pv_country<>\"Zambia\",\"Information\",\"\")","v":"Information"},{"$f":"Calculations!T14","v":0},{"$f":"Calculations!U14","v":5904.6578700141181},{"$f":"Calculations!V14","v":7140.5593843863908},13045.217254400508]
[null,"Finance, Professional, and Business Services",{"$f":"Calculations!Z15","v":0},{"$f":"Calculations!AA15","v":4.0716196359922474},{"$f":"Calculations!AB15","v":14.066809732795953},18.138429368788202,null,null,"Finance, Professional, and Business Services",{"$f":"Calculations!W15","v":0},{"$f":"Calculations!X15","v":18101.715364798067},{"$f":"Calculations!Y15","v":25748.126792461255},43849.842157259322,null,null,"Finance, Professional, and Business Services",{"$f":"Calculations!E15","v":0},{"$f":"Calculations!R15","v":77498.633225429265},{"$f":"Calculations!S15","v":92213.476272646352},169712.10949807562,null,null,"Finance, Professional, and Business Services",{"$f":"Calculations!T15","v":0},{"$f":"Calculations!U15","v":57454.014319899608},{"$f":"Calculations!V15","v":72880.935956300411},130334.95027620002]
[null,{"$f":"IF(pv_country<>\"Zambia\",\"Education and Health Care\",\"\")","v":"Education and Health Care"},{"$f":"Calculations!Z16","v":0},{"$f":"Calculations!AA16","v":2.6829548626931016E-2},{"$f":"Calculations!AB16","v":7.7743924591638729},7.8012220077908037,null,null,{"$f":"IF(pv_country<>\"Zambia\",\"Education and Health Care\",\"\")","v":"Education and Health Care"},{"$f":"Calculations!W16","v":0},{"$f":"Calculations!X16","v":102.4399505830426},{"$f":"Calculations!Y16","v":23413.645973393592},23516.085923976636,null,null,{"$f":"IF(pv_country<>\"Zambia\",\"Education and Health Care\",\"\")","v":"Education and Health Care"},{"$f":"Calculations!E16","v":0},{"$f":"Calculations!R16","v":132.39700817250963},{"$f":"Calculations!S16","v":35007.055797037334},35139.452805209847,null,null,{"$f":"IF(pv_country<>\"Zambia\",\"Education and Health Care\",\"\")","v":"Education and Health Care"},{"$f":"Calculations!T16","v":0},{"$f":"Calculations!U16","v":118.78753259939928},{"$f":"Calculations!V16","v":29190.603254388905},29309.390786988304]
[null,"Other",{"$f":"Calculations!Z17","v":0},{"$f":"Calculations!AA17","v":0.51803946385405386},{"$f":"Calculations!AB17","v":2.1443642927248674},2.6624037565789211,null,null,"Other",{"$f":"Calculations!W17","v":0},{"$f":"Calculations!X17","v":688.87539695464966},{"$f":"Calculations!Y17","v":4126.7136377351544},4815.5890346898041,null,null,"Other",{"$f":"Calculations!E17","v":0},{"$f":"Calculations!R17","v":4002.7017860296082},{"$f":"Calculations!S17","v":309566.01764166431},313568.71942769393,null,null,"Other",{"$f":"Calculations!T17","v":0},{"$f":"Calculations!U17","v":2899.6166868796718},{"$f":"Calculations!V17","v":12601.591143634883},15501.207830514555]
[null,"Total",{"$f":"Calculations!Z18","v":54.89174375821424},{"$f":"Calculations!AA18","v":15.253947225947943},{"$f":"Calculations!AB18","v":30.028766723141938},100.17445770730413,null,null,"Total",{"$f":"Calculations!W18","v":149476.72047979804},{"$f":"Calculations!X18","v":62983.179327292703},{"$f":"Calculations!Y18","v":79768.40810224005},292228.30790933082,null,null,"Total",{"$f":"Calculations!E18","v":675746.53700843919},{"$f":"Calculations!R18","v":436694.52214089135},{"$f":"Calculations!S18","v":650797.09460145398},{"$f":"SUM(Q61:S61)","v":1763238.1537507845},null,null,"Total",{"$f":"Calculations!T18","v":339861.67961255042},{"$f":"Calculations!U18","v":258616.17701016908},{"$f":"Calculations!V18","v":233592.34411537059},832070.20073809009]

{"sheet":"Biopower-Inputs","index":6,"n_rows":58,"n_cols":3,"rows_kept":58,"cut":false,"hidden":false,"merged":[]}
["I-JEDI - Biopower","Project Inputs","Click for Help"]
[]
["Project Description"]
["Country","South Africa"]
["Project Size (MW)",500]
["Plant Capacity Factor",{"$f":"'Default-Data'!C78","v":0.8},"(used to calculate fuel use and utility O&M impacts)"]
["Plant Heat Rate (Btu/kWh)",{"$f":"'Default-Data'!C79","v":14000},"(used to calculate fuel use)"]
["Boiler Type","Stoker boiler  ","<- Select from List"]
["Dollar Year",2014]
[]
[]
[]
["Biopower Facility Construction"]
["Equipment","Cost",{"$f":"\"% Manufactured in \"&B4","v":"% Manufactured in South Africa"}]
["Feedstock handling equipment",{"$f":"'Default-Data'!D90","v":221281472.18588102},{"$f":"'Default-Data'!E90","v":0.1}]
["Turbines, boilers, and air quality control equipment",{"$f":"'Default-Data'!D91","v":663844416.55764306},{"$f":"'Default-Data'!E91","v":0.1}]
["Other equipment",{"$f":"'Default-Data'!D92","v":0},{"$f":"'Default-Data'!E92","v":0}]
["Equipment Subtotal",{"$f":"SUM(B15:B17)","v":885125888.74352407}]
[]
["General Construction","Cost",{"$f":"\"% Residing in or Purchased in \"&biopower_country","v":"% Residing in or Purchased in South Africa"}]
["Construction Labor",{"$f":"'Default-Data'!D96","v":221281472.18588102},{"$f":"'Default-Data'!E96","v":1}]
["General Construction Subtotal",{"$f":"SUM(B21:B21)","v":221281472.18588102}]
[]
["Contractors and Balance of Plant",null,{"$f":"\"% Purchased in \"&biopower_country","v":"% Purchased in South Africa"}]
["Balance of Plant",{"$f":"'Default-Data'!D100","v":189669833.30218372},{"$f":"'Default-Data'!E100","v":0.2}]
["Professional Services (legal, engineering, development, etc.)",{"$f":"'Default-Data'!D101","v":284504749.95327556},{"$f":"'Default-Data'!E101","v":0.9}]
["Contractors and Balance of Plant Subtotal",{"$f":"SUM(B25:B26)","v":474174583.25545931}]
[]
["Total Construction Cost",{"$f":"B27+B22+B18","v":1580581944.1848645}]
[]
[]
["Biopower Facility O&M"]
["Feedstock Information"]
["Feedstock Type","Forest Residues","<- Select from List"]
["Feedstock Heating Value (Btu / dry kg)",{"$f":"'Default-Data'!C73","v":18893.631280974972}]
["Feedstock Cost ($/dry metric tonne)",{"$f":"'Default-Data'!C132","v":11.5}]
["Feedstock Transportation Cost ($/dry metric tonne)"]
[{"$f":"\"Percent Purchased Directly from Farmers in \"&B4","v":"Percent Purchased Directly from Farmers in South Africa"},{"$f":"'Default-Data'!D132","v":0.5},{"$f":"IF(B38+B39>1,\"You have indicated that the percentage of feedstock purchased from farmers and wholesalers in \"&B4&\" is greater than 100%. Please revise these figures.\",\"\")","v":""}]
[{"$f":"\"Percent Purchased from Wholesalers in \"&B4","v":"Percent Purchased from Wholesalers in South Africa"},{"$f":"'Default-Data'!E132","v":0.5}]
["Calculated Annual Feedstock Consumption (dry metric tonnes / yr)",{"$f":"'Default-Data'!C83","v":2598208.8498483081}]
["Annual Feedstock Material Cost",{"$f":"B36*B40","v":29879401.773255542},{"$f":"\"% Transportation Purchased in \"&biopower_country","v":"% Transportation Purchased in South Africa"}]
["Annual Feedstock Transportation Cost",{"$f":"B40*B37","v":0},{"$f":"'Default-Data'!D133","v":1}]
["Feedstock Subtotal",{"$f":"SUM(B41:B42)","v":29879401.773255542},{"$f":"'Default-Data'!D133","v":1}]
[]
["Operations",null,{"$f":"\"% Residing in / Purchased in \"&biopower_country","v":"% Residing in / Purchased in South Africa"}]
["Plant operators, including maintenance",{"$f":"'Default-Data'!G117+'Default-Data'!G118","v":39810877.832085572},{"$f":"'Default-Data'!G119","v":1}]
["Operations subtotal",{"$f":"SUM(B46:B46)","v":39810877.832085572}]
[]
["Materials",null,{"$f":"\"% Manufactured in \"&biopower_country","v":"% Manufactured in South Africa"}]
["Chemicals (including ammonia)",{"$f":"'Default-Data'!D111","v":1270000},{"$f":"'Default-Data'!E111","v":0.5}]
["Water",{"$f":"'Default-Data'!D112","v":170850},{"$f":"'Default-Data'!E112","v":1}]
["Solids/Ash Disposal",{"$f":"'Default-Data'!D113","v":320000},{"$f":"'Default-Data'!E113","v":1}]
["Materials Subtotal",{"$f":"SUM(B50:B52)","v":1760850}]
[]
["O&M Annual Total",{"$f":"B53+B47+B43","v":71451129.605341107}]
[]
[]
[null,"Click arrow to go to results"]

{"sheet":"Biopower-Results","index":7,"n_rows":61,"n_cols":27,"rows_kept":61,"cut":false,"hidden":false,"merged":[[18,3,18,5],[11,3,11,5],[0,0,0,2],[1,0,1,2],[2,0,2,2]]}
["I-JEDI - Biopower",null,null,null,null,null,"Click fof help"]
["Estimated Gross Economic Impacts",null,null,null,null,null,"Return to inputs"]
[{"$f":"biopower_country","v":"South Africa"}]
[]
[null,"Nameplate Capacity (MW)",{"$f":"biopower_capacity","v":500}]
[null,"Annual Generation (MWh)",{"$f":"biopower_capacity*365.25*24*'Biopower-Inputs'!B6","v":3506400}]
[null,"Boiler Type",{"$f":"biopower_boiler_type","v":"Stoker boiler  "}]
[null,"Fuel",{"$f":"'Biopower-Inputs'!B34","v":"Forest Residues"}]
[null,"Dollar Year",{"$f":"biopower_dollar_year","v":2014}]
[]
[null,"Impact Totals"]
[null,"Construction Phase (Single Year Equivalent)",null,{"$f":"\"( $ \"&biopower_dollar_year&\" US)\"","v":"( $ 2014 US)"}]
[null,null,"Jobs","Earnings","Output","GDP (Value Added)"]
[null,"Direct",{"$f":"TRANSPOSE(C42:F42)","v":9002.8520297598407},{"$f":"TRANSPOSE(J42:M42)","v":123572561.0724282},{"$f":"TRANSPOSE(Q42:T42)","v":581654155.46003008},{"$f":"TRANSPOSE(X42:AA42)","v":202287253.53228754}]
[null,"Indirect",6499.0787141009168,90665920.383676246,573577548.24427593,364500372.21527058]
[null,"Induced",9261.3716541145241,143483606.11200184,977083507.40065753,367936707.11080909]
[null,"Total",24763.302397975283,357722087.56810629,2132315211.1049638,934724332.8583672]
[]
[null,"Operations and Maintenance Phase (Annual, Ongoing)",null,{"$f":"\"( $ \"&biopower_dollar_year&\" US)\"","v":"( $ 2014 US)"}]
[null,null,"Jobs","Earnings","Output","GDP"]
[null,"Direct",{"$f":"TRANSPOSE(C61:F61)","v":557.8154476914591},{"$f":"TRANSPOSE(J61:M61)","v":11195491.377065569},{"$f":"TRANSPOSE(Q61:T61)","v":70816129.605341107},{"$f":"TRANSPOSE(X61:AA61)","v":34301202.449920699}]
[null,"Indirect",685.239552411251,10019639.386228835,48273484.413442999,23449789.197698426]
[null,"Induced",861.42758191951214,12777370.923234284,83494115.904405743,24049926.208507992]
[null,"Total",2104.4825820222222,33992501.68652869,202583729.92318985,81800917.856127113]
[]
[]
[null,"Detailed Impacts"]
[null,"Construction"]
[null,null,"Jobs",null,null,null,null,null,null,{"$f":"\"Earnings ($\"&biopower_dollar_year&\" US)\"","v":"Earnings ($2014 US)"},null,null,null,null,null,null,{"$f":"\"Output ($\"&biopower_dollar_year&\" US)\"","v":"Output ($2014 US)"},null,null,null,null,null,null,{"$f":"\"GDP ($\"&biopower_dollar_year&\" US)\"","v":"GDP ($2014 US)"}]
[null,null,"Direct","Indirect","Induced","Total",null,null,null,"Direct","Indirect","Induced","Total",null,null,null,"Direct","Indirect","Induced","Total",null,null,null,"Direct","Indirect","Induced","Total"]
[null,"Agriculture",{"$f":"Calculations!O28","v":0},{"$f":"Calculations!P28","v":32.952864203272206},{"$f":"Calculations!Q28","v":153.63688718503153},{"$f":"SUM(C31:E31)","v":186.58975138830374},null,null,"Agriculture",{"$f":"Calculations!L28","v":0},{"$f":"Calculations!M28","v":474236.29852227861},{"$f":"Calculations!N28","v":2211042.665234522},{"$f":"SUM(J31:L31)","v":2685278.9637568006},null,null,"Agriculture",{"$f":"Calculations!D28","v":0},{"$f":"Calculations!G28","v":4720287.2894381825},{"$f":"Calculations!H28","v":22007502.634515733},{"$f":"SUM(Q31:S31)","v":26727789.923953913},null,null,"Agriculture",{"$f":"Calculations!I28","v":0},{"$f":"Calculations!J28","v":2878787.36736478},{"$f":"Calculations!K28","v":13421835.724543713},{"$f":"SUM(X31:Z31)","v":16300623.091908492}]
[null,"Mining and Extraction",{"$f":"Calculations!O29","v":0},{"$f":"Calculations!P29","v":127.38562108185469},{"$f":"Calculations!Q29","v":39.375719252887947},{"$f":"SUM(C32:E32)","v":166.76134033474264},null,null,"Mining and Extraction",{"$f":"Calculations!L29","v":0},{"$f":"Calculations!M29","v":2010615.1188962038},{"$f":"Calculations!N29","v":621494.13548328681},{"$f":"SUM(J32:L32)","v":2632109.2543794904},null,null,"Mining and Extraction",{"$f":"Calculations!D29","v":0},{"$f":"Calculations!G29","v":37630280.059026539},{"$f":"Calculations!H29","v":11631762.913489759},{"$f":"SUM(Q32:S32)","v":49262042.972516298},null,null,"Mining and Extraction",{"$f":"Calculations!I29","v":0},{"$f":"Calculations!J29","v":32396937.159926813},{"$f":"Calculations!K29","v":10014102.780431002},{"$f":"SUM(X32:Z32)","v":42411039.940357819}]
[null,"Utilities",{"$f":"Calculations!O30","v":0},{"$f":"Calculations!P30","v":75.442502980947594},{"$f":"Calculations!Q30","v":72.918507598129708},148.36101057907729,null,null,"Utilities",{"$f":"Calculations!L30","v":0},{"$f":"Calculations!M30","v":2080548.1442773326},{"$f":"Calculations!N30","v":2010941.5736786278},4091489.7179559604,null,null,"Utilities",{"$f":"Calculations!D30","v":0},{"$f":"Calculations!G30","v":19256275.3915831},{"$f":"Calculations!H30","v":18612039.738493755},37868315.130076855,null,null,"Utilities",{"$f":"Calculations!I30","v":0},{"$f":"Calculations!J30","v":8613866.1987170316},{"$f":"Calculations!K30","v":8325681.7184213083},16939547.917138338]
[null,"Construction",{"$f":"Calculations!O31","v":2802.0423795846132},{"$f":"Calculations!P31","v":527.23089966042198},{"$f":"Calculations!Q31","v":132.37832882810352},3461.6516080731385,null,null,"Construction",{"$f":"Calculations!L31","v":29715512.577927757},{"$f":"Calculations!M31","v":5591256.0582520422},{"$f":"Calculations!N31","v":1403865.239154489},36710633.875334285,null,null,"Construction",{"$f":"Calculations!D31","v":221281472.18588102},{"$f":"Calculations!G31","v":25276657.841860473},{"$f":"Calculations!H31","v":6346520.5199854672},252904650.54772696,null,null,"Construction",{"$f":"Calculations!I31","v":65886702.49901484},{"$f":"Calculations!J31","v":12712706.493705878},{"$f":"Calculations!K31","v":3191935.1494817063},81791344.142202437]
[null,"Manufacturing",{"$f":"Calculations!O32","v":1825.3917722471072},{"$f":"Calculations!P32","v":1131.5218890985957},{"$f":"Calculations!Q32","v":869.72534183065659},3826.6390031763594,null,null,"Manufacturing",{"$f":"Calculations!L32","v":23431891.87004707},{"$f":"Calculations!M32","v":14524935.93816882},{"$f":"Calculations!N32","v":11164348.64901806},49121176.45723395,null,null,"Manufacturing",{"$f":"Calculations!D32","v":104318408.31620106},{"$f":"Calculations!G32","v":134069596.31581181},{"$f":"Calculations!H32","v":126599690.17278451},364987694.80479741,null,null,"Manufacturing",{"$f":"Calculations!I32","v":27309271.201034456},{"$f":"Calculations!J32","v":50654360.737993754},{"$f":"Calculations!K32","v":43456814.565841712},121420446.50486991]
[null,{"$f":"IF(biopower_country<>\"Zambia\",\"Sales\",\"Trade, Transportation, and Warehousing\")","v":"Sales"},{"$f":"Calculations!O33","v":0},{"$f":"Calculations!P33","v":1445.7797381537196},{"$f":"Calculations!Q33","v":1019.7806881944772},2465.5604263481969,null,null,{"$f":"IF(biopower_country<>\"Zambia\",\"Sales\",\"Trade, Transportation, and Warehousing\")","v":"Sales"},{"$f":"Calculations!L33","v":0},{"$f":"Calculations!M33","v":13880841.635464059},{"$f":"Calculations!N33","v":9790851.1664499771},23671692.801914036,null,null,{"$f":"IF(biopower_country<>\"Zambia\",\"Sales\",\"Trade, Transportation, and Warehousing\")","v":"Sales"},{"$f":"Calculations!D33","v":0},{"$f":"Calculations!G33","v":90528121.490524113},{"$f":"Calculations!H33","v":63854007.35554111},154382128.84606522,null,null,{"$f":"IF(biopower_country<>\"Zambia\",\"Sales\",\"Trade, Transportation, and Warehousing\")","v":"Sales"},{"$f":"Calculations!I33","v":0},{"$f":"Calculations!J33","v":68934277.560844243},{"$f":"Calculations!K33","v":48622790.288206801},117557067.84905104]
[null,{"$f":"IF(biopower_country<>\"Zambia\",\"Transportation and Warehousing\",\"\")","v":"Transportation and Warehousing"},{"$f":"Calculations!O34","v":0},{"$f":"Calculations!P34","v":563.33473421980295},{"$f":"Calculations!Q34","v":440.76068940850593},1004.0954236283089,null,null,{"$f":"IF(biopower_country<>\"Zambia\",\"Transportation and Warehousing\",\"\")","v":"Transportation and Warehousing"},{"$f":"Calculations!L34","v":0},{"$f":"Calculations!M34","v":10054155.430552214},{"$f":"Calculations!N34","v":7866506.7317886818},17920662.162340894,null,null,{"$f":"IF(biopower_country<>\"Zambia\",\"Transportation and Warehousing\",\"\")","v":"Transportation and Warehousing"},{"$f":"Calculations!D34","v":0},{"$f":"Calculations!G34","v":42639138.353643194},{"$f":"Calculations!H34","v":33361436.593404695},76000574.947047889,null,null,{"$f":"IF(biopower_country<>\"Zambia\",\"Transportation and Warehousing\",\"\")","v":"Transportation and Warehousing"},{"$f":"Calculations!I34","v":0},{"$f":"Calculations!J34","v":31164737.019405611},{"$f":"Calculations!K34","v":24383710.322659411},55548447.342065021]
[null,{"$f":"IF(biopower_country<>\"Zambia\",\"Information\",\"\")","v":"Information"},{"$f":"Calculations!O35","v":0},{"$f":"Calculations!P35","v":281.46005223169453},{"$f":"Calculations!Q35","v":166.06775915876847},447.527811390463,null,null,{"$f":"IF(biopower_country<>\"Zambia\",\"Information\",\"\")","v":"Information"},{"$f":"Calculations!L35","v":0},{"$f":"Calculations!M35","v":5023377.6487225229},{"$f":"Calculations!N35","v":2963905.7582667964},7987283.4069893192,null,null,{"$f":"IF(biopower_country<>\"Zambia\",\"Information\",\"\")","v":"Information"},{"$f":"Calculations!D35","v":0},{"$f":"Calculations!G35","v":32206312.520175181},{"$f":"Calculations!H35","v":19002448.512976609},51208761.03315179,null,null,{"$f":"IF(biopower_country<>\"Zambia\",\"Information\",\"\")","v":"Information"},{"$f":"Calculations!I35","v":0},{"$f":"Calculations!J35","v":19650386.602546904},{"$f":"Calculations!K35","v":11594169.914393907},31244556.51694081]
[null,"Finance, Professional, and Business Services",{"$f":"Calculations!O36","v":4375.4178779281201},{"$f":"Calculations!P36","v":1873.1363302839743},{"$f":"Calculations!Q36","v":5333.4857649882042},11582.039973200299,null,null,"Finance, Professional, and Business Services",{"$f":"Calculations!L36","v":70425156.624453366},{"$f":"Calculations!M36","v":30152697.726014808},{"$f":"Calculations!N36","v":88708331.394491836},189286185.74496001,null,null,"Finance, Professional, and Business Services",{"$f":"Calculations!D36","v":256054274.957948},{"$f":"Calculations!G36","v":141737438.33007246},{"$f":"Calculations!H36","v":219883356.9754135},617675070.26343393,null,null,"Finance, Professional, and Business Services",{"$f":"Calculations!I36","v":109091279.83223826},{"$f":"Calculations!J36","v":107591131.50472759},{"$f":"Calculations!K36","v":164350264.80980492},381032676.14677078]
[null,{"$f":"IF(biopower_country<>\"Zambia\",\"Education and Health Care\",\"\")","v":"Education and Health Care"},{"$f":"Calculations!O37","v":0},{"$f":"Calculations!P37","v":112.24230992385968},{"$f":"Calculations!Q37","v":728.84443038584345},841.08674030970315,null,null,{"$f":"IF(biopower_country<>\"Zambia\",\"Education and Health Care\",\"\")","v":"Education and Health Care"},{"$f":"Calculations!L37","v":0},{"$f":"Calculations!M37","v":1887313.9415671509},{"$f":"Calculations!N37","v":12255256.111834213},14142570.053401364,null,null,{"$f":"IF(biopower_country<>\"Zambia\",\"Education and Health Care\",\"\")","v":"Education and Health Care"},{"$f":"Calculations!D37","v":0},{"$f":"Calculations!G37","v":3513559.0555871255},{"$f":"Calculations!H37","v":20842906.022768378},24356465.078355502,null,null,{"$f":"IF(biopower_country<>\"Zambia\",\"Education and Health Care\",\"\")","v":"Education and Health Care"},{"$f":"Calculations!I37","v":0},{"$f":"Calculations!J37","v":2650364.1671269163},{"$f":"Calculations!K37","v":16362171.326490503},19012535.493617419]
[null,"Other",{"$f":"Calculations!O38","v":0},{"$f":"Calculations!P38","v":328.59177226277387},{"$f":"Calculations!Q38","v":304.39753728391531},632.98930954668913,null,null,"Other",{"$f":"Calculations!L38","v":0},{"$f":"Calculations!M38","v":4985942.4432388116},{"$f":"Calculations!N38","v":4487062.686601338},9473005.1298401505,null,null,"Other",{"$f":"Calculations!D38","v":0},{"$f":"Calculations!G38","v":41999881.59655378},{"$f":"Calculations!H38","v":434941835.96128404},476941717.55783784,null,null,"Other",{"$f":"Calculations!I38","v":0},{"$f":"Calculations!J38","v":27252817.402911104},{"$f":"Calculations!K38","v":24213230.510534018},51466047.913445123]
[null,"Total",{"$f":"Calculations!O39","v":9002.8520297598407},{"$f":"Calculations!P39","v":6499.0787141009168},{"$f":"Calculations!Q39","v":9261.3716541145241},24763.302397975283,null,null,"Total",{"$f":"Calculations!L39","v":123572561.0724282},{"$f":"Calculations!M39","v":90665920.383676246},{"$f":"Calculations!N39","v":143483606.11200184},357722087.56810629,null,null,"Total",{"$f":"Calculations!D39","v":581654155.46003008},{"$f":"Calculations!G39","v":573577548.24427593},{"$f":"Calculations!H39","v":977083507.40065753},2132315211.1049638,null,null,"Total",{"$f":"Calculations!I39","v":202287253.53228754},{"$f":"Calculations!J39","v":364500372.21527058},{"$f":"Calculations!K39","v":367936707.11080909},934724332.8583672]
[]
[]
[]
[null,"Detailed Impacts"]
[null,"O&M"]
[null,null,"Jobs",null,null,null,null,null,null,{"$f":"\"Earnings ($\"&biopower_dollar_year&\" US)\"","v":"Earnings ($2014 US)"},null,null,null,null,null,null,{"$f":"\"Output ($\"&biopower_dollar_year&\" US)\"","v":"Output ($2014 US)"},null,null,null,null,null,null,{"$f":"\"GDP ($\"&biopower_dollar_year&\" US)\"","v":"GDP ($2014 US)"}]
[null,null,"Direct","Indirect","Induced","Total",null,null,null,"Direct","Indirect","Induced","Total",null,null,null,"Direct","Indirect","Induced","Total",null,null,null,"Direct","Indirect","Induced","Total"]
[null,"Agriculture",{"$f":"Calculations!Z28","v":244.34861753364646},{"$f":"Calculations!AA28","v":11.687808941524512},{"$f":"Calculations!AB28","v":16.188601521717906},{"$f":"SUM(C50:E50)","v":272.22502799688885},null,null,"Agriculture",{"$f":"Calculations!W28","v":3516507.1907978705},{"$f":"Calculations!X28","v":168203.38335609017},{"$f":"Calculations!Y28","v":232975.87780394769},{"$f":"SUM(J50:L50)","v":3917686.4519579085},null,null,"Agriculture",{"$f":"Calculations!E28","v":28385431.684592765},{"$f":"Calculations!R28","v":1357746.5901010595},{"$f":"Calculations!S28","v":1880593.5846988894},{"$f":"SUM(Q50:S50)","v":31623771.859392714},null,null,"Agriculture",{"$f":"Calculations!T28","v":11463424.600471133},{"$f":"Calculations!U28","v":548324.43047249643},{"$f":"Calculations!V28","v":759475.60008491471},{"$f":"SUM(X50:Z50)","v":12771224.631028544}]
[null,"Mining and Extraction",{"$f":"Calculations!Z29","v":0},{"$f":"Calculations!AA29","v":79.326243460281773},{"$f":"Calculations!AB29","v":12.707819802188313},{"$f":"SUM(C51:E51)","v":92.034063262470085},null,null,"Mining and Extraction",{"$f":"Calculations!W29","v":0},{"$f":"Calculations!X29","v":1252060.8140223031},{"$f":"Calculations!Y29","v":200576.28487025457},{"$f":"SUM(J51:L51)","v":1452637.0988925577},null,null,"Mining and Extraction",{"$f":"Calculations!E29","v":0},{"$f":"Calculations!R29","v":6204625.4500506567},{"$f":"Calculations!S29","v":993961.88096053898},{"$f":"SUM(Q51:S51)","v":7198587.3310111957},null,null,"Mining and Extraction",{"$f":"Calculations!T29","v":0},{"$f":"Calculations!U29","v":3695441.1684355969},{"$f":"Calculations!V29","v":591998.28971582314},{"$f":"SUM(X51:Z51)","v":4287439.4581514196}]
[null,"Utilities",{"$f":"Calculations!Z30","v":257.58311541741074},{"$f":"Calculations!AA30","v":41.178423446580688},{"$f":"Calculations!AB30","v":10.246463373976635},309.00800223796801,null,null,"Utilities",{"$f":"Calculations!W30","v":7103609.3926285654},{"$f":"Calculations!X30","v":1135615.7219185301},{"$f":"Calculations!Y30","v":282576.26027488115},8521801.3748219758,null,null,"Utilities",{"$f":"Calculations!E30","v":39981727.832085572},{"$f":"Calculations!R30","v":6391663.1962759346},{"$f":"Calculations!S30","v":1590443.1825661361},47963834.210927643,null,null,"Utilities",{"$f":"Calculations!T30","v":21739127.95546253},{"$f":"Calculations!U30","v":3475317.1412606044},{"$f":"Calculations!V30","v":864766.22513426666},26079211.321857404]
[null,"Construction",{"$f":"Calculations!Z31","v":0},{"$f":"Calculations!AA31","v":6.4429645623075444},{"$f":"Calculations!AB31","v":6.8673554009639615},13.310319963271507,null,null,"Construction",{"$f":"Calculations!W31","v":0},{"$f":"Calculations!X31","v":68327.301501690672},{"$f":"Calculations!Y31","v":72827.944102935551},141155.24560462622,null,null,"Construction",{"$f":"Calculations!E31","v":0},{"$f":"Calculations!R31","v":508810.5354781347},{"$f":"Calculations!S31","v":542325.31392842159},1051135.8494065562,null,null,"Construction",{"$f":"Calculations!T31","v":0},{"$f":"Calculations!U31","v":151498.66840750031},{"$f":"Calculations!V31","v":161477.71552455644},312976.38393205672]
[null,"Manufacturing",{"$f":"Calculations!Z32","v":12.003190331380745},{"$f":"Calculations!AA32","v":116.15053141367055},{"$f":"Calculations!AB32","v":114.65530502386039},242.80902676891168,null,null,"Manufacturing",{"$f":"Calculations!W32","v":154080.59914407987},{"$f":"Calculations!X32","v":1490982.2286441214},{"$f":"Calculations!Y32","v":1471788.5499938983},3116851.3777820999,null,null,"Manufacturing",{"$f":"Calculations!E32","v":955000},{"$f":"Calculations!R32","v":9959094.002404185},{"$f":"Calculations!S32","v":10818245.446459999},21732339.448864184,null,null,"Manufacturing",{"$f":"Calculations!T32","v":221291.6191155492},{"$f":"Calculations!U32","v":2406642.342607033},{"$f":"Calculations!V32","v":2537978.8738190061},5165912.8355415883]
[null,{"$f":"IF(biopower_country<>\"Zambia\",\"Sales\",\"Trade, Transportation, and Warehousing\")","v":"Sales"},{"$f":"Calculations!Z33","v":43.880524409021213},{"$f":"Calculations!AA33","v":178.92688943715544},{"$f":"Calculations!AB33","v":160.26631540306195},383.07372924923857,null,null,{"$f":"IF(biopower_country<>\"Zambia\",\"Sales\",\"Trade, Transportation, and Warehousing\")","v":"Sales"},{"$f":"Calculations!W33","v":421294.19449505204},{"$f":"Calculations!X33","v":1717865.9729835496},{"$f":"Calculations!Y33","v":1538706.9585372121},3677867.1260158136,null,null,{"$f":"IF(biopower_country<>\"Zambia\",\"Sales\",\"Trade, Transportation, and Warehousing\")","v":"Sales"},{"$f":"Calculations!E33","v":1493970.0886627771},{"$f":"Calculations!R33","v":6091800.9635642944},{"$f":"Calculations!S33","v":5456477.2107223263},13042248.262949398,null,null,{"$f":"IF(biopower_country<>\"Zambia\",\"Sales\",\"Trade, Transportation, and Warehousing\")","v":"Sales"},{"$f":"Calculations!T33","v":877358.27487148449},{"$f":"Calculations!U33","v":3577509.3656909447},{"$f":"Calculations!V33","v":3204405.140908754},7659272.7814711835]
[null,{"$f":"IF(biopower_country<>\"Zambia\",\"Transportation and Warehousing\",\"\")","v":"Transportation and Warehousing"},{"$f":"Calculations!Z34","v":0},{"$f":"Calculations!AA34","v":67.016125358772499},{"$f":"Calculations!AB34","v":29.424193315447184},96.440318674219682,null,null,{"$f":"IF(biopower_country<>\"Zambia\",\"Transportation and Warehousing\",\"\")","v":"Transportation and Warehousing"},{"$f":"Calculations!W34","v":0},{"$f":"Calculations!X34","v":1196074.9085419783},{"$f":"Calculations!Y34","v":525150.31479790108},1721225.2233398794,null,null,{"$f":"IF(biopower_country<>\"Zambia\",\"Transportation and Warehousing\",\"\")","v":"Transportation and Warehousing"},{"$f":"Calculations!E34","v":0},{"$f":"Calculations!R34","v":6492974.2583720526},{"$f":"Calculations!S34","v":2850814.318908588},9343788.5772806406,null,null,{"$f":"IF(biopower_country<>\"Zambia\",\"Transportation and Warehousing\",\"\")","v":"Transportation and Warehousing"},{"$f":"Calculations!T34","v":0},{"$f":"Calculations!U34","v":3433539.1388388439},{"$f":"Calculations!V34","v":1507534.4752697395},4941073.614108583]
[null,{"$f":"IF(biopower_country<>\"Zambia\",\"Information\",\"\")","v":"Information"},{"$f":"Calculations!Z35","v":0},{"$f":"Calculations!AA35","v":6.5840622529944053},{"$f":"Calculations!AB35","v":12.090373234140593},18.674435487135,null,null,{"$f":"IF(biopower_country<>\"Zambia\",\"Information\",\"\")","v":"Information"},{"$f":"Calculations!W35","v":0},{"$f":"Calculations!X35","v":117509.50409212406},{"$f":"Calculations!Y35","v":215783.76820273939},333293.27229486348,null,null,{"$f":"IF(biopower_country<>\"Zambia\",\"Information\",\"\")","v":"Information"},{"$f":"Calculations!E35","v":0},{"$f":"Calculations!R35","v":884276.27447670954},{"$f":"Calculations!S35","v":1623804.5434118484},2508080.8178885579,null,null,{"$f":"IF(biopower_country<>\"Zambia\",\"Information\",\"\")","v":"Information"},{"$f":"Calculations!T35","v":0},{"$f":"Calculations!U35","v":359087.90414915903},{"$f":"Calculations!V35","v":659396.37539941759},1018484.2795485766]
[null,"Finance, Professional, and Business Services",{"$f":"Calculations!Z36","v":0},{"$f":"Calculations!AA36","v":134.83088125158622},{"$f":"Calculations!AB36","v":404.14756961901793},538.97845087060409,null,null,"Finance, Professional, and Business Services",{"$f":"Calculations!W36","v":0},{"$f":"Calculations!X36","v":2170386.6831766288},{"$f":"Calculations!Y36","v":6694046.8488365756},8864433.5320132039,null,null,"Finance, Professional, and Business Services",{"$f":"Calculations!E36","v":0},{"$f":"Calculations!R36","v":8393728.31243168},{"$f":"Calculations!S36","v":18789557.242241766},27183285.554673448,null,null,"Finance, Professional, and Business Services",{"$f":"Calculations!T36","v":0},{"$f":"Calculations!U36","v":4495849.7346020825},{"$f":"Calculations!V36","v":10785805.058790652},15281654.793392735]
[null,{"$f":"IF(biopower_country<>\"Zambia\",\"Education and Health Care\",\"\")","v":"Education and Health Care"},{"$f":"Calculations!Z37","v":0},{"$f":"Calculations!AA37","v":2.529936571855623},{"$f":"Calculations!AB37","v":23.076188447065476},25.606125018921098,null,null,{"$f":"IF(biopower_country<>\"Zambia\",\"Education and Health Care\",\"\")","v":"Education and Health Care"},{"$f":"Calculations!W37","v":0},{"$f":"Calculations!X37","v":42539.970592040809},{"$f":"Calculations!Y37","v":388017.78227765707},430557.75286969787,null,null,{"$f":"IF(biopower_country<>\"Zambia\",\"Education and Health Care\",\"\")","v":"Education and Health Care"},{"$f":"Calculations!E37","v":0},{"$f":"Calculations!R37","v":206979.38389198214},{"$f":"Calculations!S37","v":1781076.0268375489},1988055.4107295312,null,null,{"$f":"IF(biopower_country<>\"Zambia\",\"Education and Health Care\",\"\")","v":"Education and Health Care"},{"$f":"Calculations!T37","v":0},{"$f":"Calculations!U37","v":95927.985472397064},{"$f":"Calculations!V37","v":844707.62186322722},940635.60733562429]
[null,"Other",{"$f":"Calculations!Z38","v":0},{"$f":"Calculations!AA38","v":40.565685714521848},{"$f":"Calculations!AB38","v":71.757396778071936},112.32308249259378,null,null,"Other",{"$f":"Calculations!W38","v":0},{"$f":"Calculations!X38","v":660072.89739977696},{"$f":"Calculations!Y38","v":1154920.3335362808},1814993.2309360579,null,null,"Other",{"$f":"Calculations!E38","v":0},{"$f":"Calculations!R38","v":1781785.4463963157},{"$f":"Calculations!S38","v":37166817.153669678},38948602.600065991,null,null,"Other",{"$f":"Calculations!T38","v":0},{"$f":"Calculations!U38","v":1210651.3177617667},{"$f":"Calculations!V38","v":2132380.8319976386},3343032.1497594053]
[null,"Total",{"$f":"Calculations!Z39","v":557.8154476914591},{"$f":"Calculations!AA39","v":685.239552411251},{"$f":"Calculations!AB39","v":861.42758191951214},2104.4825820222222,null,null,"Total",{"$f":"Calculations!W39","v":11195491.377065569},{"$f":"Calculations!X39","v":10019639.386228835},{"$f":"Calculations!Y39","v":12777370.923234284},33992501.68652869,null,null,"Total",{"$f":"Calculations!E39","v":70816129.605341107},{"$f":"Calculations!R39","v":48273484.413442999},{"$f":"Calculations!S39","v":83494115.904405743},202583729.92318985,null,null,"Total",{"$f":"Calculations!T39","v":34301202.449920699},{"$f":"Calculations!U39","v":23449789.197698426},{"$f":"Calculations!V39","v":24049926.208507992},81800917.856127113]

{"sheet":"Geothermal-Inputs","index":8,"n_rows":48,"n_cols":5,"rows_kept":48,"cut":false,"hidden":false,"merged":[]}
["I-JEDI - Geothermal","Project Inputs",null,null,"Click for Help"]
[]
["Project Description"]
["Country","Mexico"]
["Project Size (MW)",150]
["Drilling depth (m)",3000,{"$f":"IF(B6>3000,\"Default costs assume a well up to 3,000m deep. You are encouraged to customize drilling costs for wells deeper than 3,000m.\",\"\")","v":""}]
["Resource temperature (degrees celsius)",200]
["Number of exploration drills per production drill",2]
["Number of production drills",1]
["Dollar Year",2012]
[]
[]
[]
[]
["Geothermal Facility Construction"]
["Drilling",{"$f":"\"Expenditures ($\"&B10&\")\"","v":"Expenditures ($2012)"},{"$f":"\"% Spent in \"&B4","v":"% Spent in Mexico"}]
["Site preparation",{"$f":"'Default-Data'!G229","v":107152.8300240289},{"$f":"'Default-Data'!I229","v":1}]
["Rig operator and drilling services",{"$f":"'Default-Data'!G230","v":4029099.4843749488},{"$f":"'Default-Data'!I230","v":1}]
["Cement and cement additives",{"$f":"'Default-Data'!G231","v":66803.666501123502},{"$f":"'Default-Data'!I231","v":0.9}]
["Petroleum",{"$f":"'Default-Data'!G232","v":419274.31826076657},{"$f":"'Default-Data'!I232","v":1}]
["Bits and stabilizers",{"$f":"'Default-Data'!G233","v":278597.35806247516},{"$f":"'Default-Data'!I233","v":0.9}]
["Mud and detergents",{"$f":"'Default-Data'!G234","v":88420.066128285238},{"$f":"'Default-Data'!I234","v":0.8}]
["Casing and wellhead",{"$f":"'Default-Data'!G235","v":1062240.8621321023},{"$f":"'Default-Data'!I235","v":0.8}]
["Worker housing",{"$f":"'Default-Data'!G236","v":125567.80924101557},{"$f":"'Default-Data'!I236","v":1}]
["Professional services (engineers, geologists, supervisors, etc.)",{"$f":"'Default-Data'!G237","v":542019.70968299394},{"$f":"'Default-Data'!I237","v":0.9}]
["Drilling subtotal",{"$f":"SUM(B17:B25)","v":6719176.1044077398}]
[]
["Other",{"$f":"\"Expenditures ($\"&B10&\")\"","v":"Expenditures ($2012)"},{"$f":"\"% Spent in \"&B4","v":"% Spent in Mexico"}]
["Engineering and design",{"$f":"'Default-Data'!E246","v":91459200},{"$f":"'Default-Data'!G246","v":0.6}]
["Mechanical equipment (turbines, generators, pumps, condensers, heat exchangers)",{"$f":"'Default-Data'!E247","v":83953380.463945076},{"$f":"'Default-Data'!G247","v":0}]
["Permitting and environmental assessment",{"$f":"'Default-Data'!E248","v":149771.78765937407},{"$f":"'Default-Data'!G248","v":1}]
["Additional civil works (i.e., roads)",{"$f":"'Default-Data'!E249","v":0},{"$f":"'Default-Data'!G249","v":1}]
["Other subtotal",{"$f":"SUM(B29:B32)","v":175562352.25160447}]
[]
["Construction total",{"$f":"B33+B26","v":182281528.3560122}]
[]
[]
["Operations and Maintenance (O&M)"]
[null,{"$f":"\"Expenditures ($\"&B10&\")\"","v":"Expenditures ($2012)"},{"$f":"\"% Spent in \"&B4","v":"% Spent in Mexico"}]
["Plant operations, excluding equipment and field operations",{"$f":"'Default-Data'!C268","v":397029.33187676605},{"$f":"'Default-Data'!E268","v":1}]
["Civil works maintenance",{"$f":"'Default-Data'!C269","v":0},{"$f":"'Default-Data'!E269","v":1}]
["Equipment",{"$f":"'Default-Data'!C270","v":3511247.0450320896},{"$f":"'Default-Data'!E270","v":0}]
["Field operations, including well equipment",{"$f":"'Default-Data'!C271","v":302362.92469834833},{"$f":"'Default-Data'!E271","v":0.95254265491455758}]
[]
["O&M Total",{"$f":"SUM(B40:B43)","v":4210639.3016072037}]
[]
[]
[null,"Click arrow to go to results"]

{"sheet":"Geothermal-Results","index":9,"n_rows":61,"n_cols":27,"rows_kept":61,"cut":false,"hidden":false,"merged":[[0,0,0,2],[1,0,1,2],[2,0,2,2]]}
["I-JEDI - Geothermal",null,null,null,null,"Click for Help"]
["Estimated Gross Economic Impacts",null,null,null,null,"Return to Inputs"]
[{"$f":"'Geothermal-Inputs'!B4","v":"Mexico"}]
[]
[null,"Nameplate capacity (MW)",{"$f":"'Geothermal-Inputs'!B5","v":150}]
[null,"Production wells",{"$f":"'Geothermal-Inputs'!B9","v":1}]
[null,"Dollar year",{"$f":"'Geothermal-Inputs'!B10","v":2012}]
[]
[]
[]
[null,"Impact Totals"]
[null,"Construction Phase (Single Year Equivalent)",null,"( $ 2014 US)"]
[null,null,"Jobs","Earnings","Output","GDP (Value Added)"]
[null,"Direct",{"$f":"TRANSPOSE(Calculations!O83:Q83)","v":6666.6660911420322},{"$f":"TRANSPOSE(Calculations!L83:N83)","v":37866428.957194008},{"$f":"Calculations!D83","v":61425593.632990383},{"$f":"TRANSPOSE(Calculations!I83:K83)","v":37866428.957194008}]
[null,"Indirect",877.90558019972286,4461539.7208669279,{"$f":"TRANSPOSE(Calculations!G83:H83)","v":31974633.689105205},18587710.442603361]
[null,"Induced",2298.5668853903067,6421356.4063738799,52389162.477860697,18804182.395649496]
[null,"Total",{"$f":"SUM(C14:C16)","v":9843.1385567320613},48749325.084434815,145789389.79995629,{"$f":"SUM(F14:F16)","v":75258321.795446858}]
[]
[null,"Operations and Maintenance Phase (Annual, Ongoing)",null,"( $ 2014 US)"]
[null,null,"Jobs","Earnings","Output","GDP"]
[null,"Direct",{"$f":"TRANSPOSE(Calculations!Z83:AB83)","v":3.192690555272875},{"$f":"TRANSPOSE(Calculations!W83:Y83)","v":58285.903602142891},{"$f":"Calculations!E83","v":685042.91491666122},{"$f":"TRANSPOSE(Calculations!T83:V83)","v":425561.00451836293}]
[null,"Indirect",7.1970348320392548,40334.585837198225,{"$f":"TRANSPOSE(Calculations!R83:S83)","v":354609.27966313116},194440.45748285993]
[null,"Induced",13.254137652067941,37027.219988256191,302089.60869120486,108429.83229709702]
[null,"Total",{"$f":"SUM(C21:C23)","v":23.643863039380072},135647.70942759732,1341741.8032709972,{"$f":"SUM(F21:F23)","v":728431.29429831984}]
[]
[]
[null,"Detailed Impacts"]
[null,"Construction"]
[null,null,"Jobs",null,null,null,null,null,null,{"$f":"\"Earnings ($\"&'Geothermal-Inputs'!B10&\" US)\"","v":"Earnings ($2012 US)"},null,null,null,null,null,null,"Output ($2014 US)",null,null,null,null,null,null,"GDP ($2014 US)"]
[null,null,"Direct","Indirect","Induced","Total",null,null,null,"Direct","Indirect","Induced","Total",null,null,null,"Direct","Indirect","Induced","Total",null,null,null,"Direct","Indirect","Induced","Total"]
[null,"Agriculture",{"$f":"Calculations!O72","v":0},{"$f":"Calculations!P72","v":5.348934122516674},{"$f":"Calculations!Q72","v":121.0406071696933},{"$f":"SUM(C31:E31)","v":126.38954129220997},null,null,"Agriculture",{"$f":"Calculations!L72","v":0},{"$f":"Calculations!M72","v":5461.3038211477715},{"$f":"Calculations!N72","v":123583.41219182433},{"$f":"SUM(J31:L31)","v":129044.7160129721},null,null,"Agriculture",{"$f":"Calculations!D72","v":0},{"$f":"Calculations!G72","v":54358.814563649357},{"$f":"Calculations!H72","v":1230081.315100058},{"$f":"SUM(Q31:S31)","v":1284440.1296637072},null,null,"Agriculture",{"$f":"Calculations!T72","v":0},{"$f":"Calculations!U72","v":423.94862122439469},{"$f":"Calculations!V72","v":4325.8286147367908},{"$f":"SUM(X31:Z31)","v":4749.7772359611854}]
[null,"Mining and Extraction",{"$f":"Calculations!O73","v":230.1854401673327},{"$f":"Calculations!P73","v":13.057425140727236},{"$f":"Calculations!Q73","v":1.9464993088886628},{"$f":"SUM(C32:E32)","v":245.18936461694861},null,null,"Mining and Extraction",{"$f":"Calculations!L73","v":4292622.49500049},{"$f":"Calculations!M73","v":243501.92108208427},{"$f":"Calculations!N73","v":36299.371123405152},{"$f":"SUM(J32:L32)","v":4572423.7872059792},null,null,"Mining and Extraction",{"$f":"Calculations!D73","v":4986045.0041046599},{"$f":"Calculations!G73","v":4557334.4192598024},{"$f":"Calculations!H73","v":679371.94369162247},{"$f":"SUM(Q32:S32)","v":10222751.367056085},null,null,"Mining and Extraction",{"$f":"Calculations!T73","v":247958.76980752466},{"$f":"Calculations!U73","v":54646.498315271609},{"$f":"Calculations!V73","v":3372.6280028920919},{"$f":"SUM(X32:Z32)","v":305977.89612568833}]
[null,"Utilities",{"$f":"Calculations!O74","v":683.40498867110284},{"$f":"Calculations!P74","v":5.7659797532029149},{"$f":"Calculations!Q74","v":3.8669905020040374},693.03795892630978,null,null,"Utilities",{"$f":"Calculations!L74","v":12382778.442297276},{"$f":"Calculations!M74","v":104475.16621955068},{"$f":"Calculations!N74","v":70066.925788609849},12557320.534305437,null,null,"Utilities",{"$f":"Calculations!D74","v":27681668.869357347},{"$f":"Calculations!G74","v":966957.95184488595},{"$f":"Calculations!H74","v":648496.41789747402},29297123.239099707,null,null,"Utilities",{"$f":"Calculations!T74","v":177602.2347108383},{"$f":"Calculations!U74","v":4190.710874129154},{"$f":"Calculations!V74","v":1672.7373169649065},183465.68290193233]
[null,"Construction",{"$f":"Calculations!O75","v":0},{"$f":"Calculations!P75","v":10.156016883642303},{"$f":"Calculations!Q75","v":3.3445126082759975},13.5005294919183,null,null,"Construction",{"$f":"Calculations!L75","v":0},{"$f":"Calculations!M75","v":29084.804463627683},{"$f":"Calculations!N75","v":9578.0162983501014},38662.820761977782,null,null,"Construction",{"$f":"Calculations!D75","v":0},{"$f":"Calculations!G75","v":131485.06224098123},{"$f":"Calculations!H75","v":43299.79493960875},174784.85718058998,null,null,"Construction",{"$f":"Calculations!T75","v":0},{"$f":"Calculations!U75","v":1193.3422420956217},{"$f":"Calculations!V75","v":125.57365674776007},1318.9158988433817]
[null,"Manufacturing",{"$f":"Calculations!O76","v":31.40514986713621},{"$f":"Calculations!P76","v":65.327974801726612},{"$f":"Calculations!Q76","v":105.37746292272905},202.11058759159187,null,null,"Manufacturing",{"$f":"Calculations!L76","v":198387.22640832764},{"$f":"Calculations!M76","v":667174.88818648574},{"$f":"Calculations!N76","v":533758.16435955116},1399320.2789543646,null,null,"Manufacturing",{"$f":"Calculations!D76","v":800871.29327063356},{"$f":"Calculations!G76","v":10993039.998131666},{"$f":"Calculations!H76","v":7083939.5768984146},18877850.868300714,null,null,"Manufacturing",{"$f":"Calculations!T76","v":0},{"$f":"Calculations!U76","v":35265.834167966539},{"$f":"Calculations!V76","v":13833.33531303476},49099.1694810013]
[null,{"$f":"IF(geo_country<>\"Zambia\",\"Sales\",\"Trade, Transportation, and Warehousing\")","v":"Sales"},{"$f":"Calculations!O77","v":0},{"$f":"Calculations!P77","v":153.33897794403268},{"$f":"Calculations!Q77","v":134.5224316511904},287.86140959522311,null,null,{"$f":"IF(geo_country<>\"Zambia\",\"Sales\",\"Trade, Transportation, and Warehousing\")","v":"Sales"},{"$f":"Calculations!L77","v":0},{"$f":"Calculations!M77","v":731175.79950706847},{"$f":"Calculations!N77","v":641451.68979862682},1372627.4893056953,null,null,{"$f":"IF(geo_country<>\"Zambia\",\"Sales\",\"Trade, Transportation, and Warehousing\")","v":"Sales"},{"$f":"Calculations!D77","v":0},{"$f":"Calculations!G77","v":4768584.8846220979},{"$f":"Calculations!H77","v":4183421.8723474918},8952006.7569695897,null,null,{"$f":"IF(geo_country<>\"Zambia\",\"Sales\",\"Trade, Transportation, and Warehousing\")","v":"Sales"},{"$f":"Calculations!T77","v":0},{"$f":"Calculations!U77","v":47482.343246034718},{"$f":"Calculations!V77","v":18368.670068885753},65851.013314920478]
[null,{"$f":"IF(geo_country<>\"Zambia\",\"Transportation and Warehousing\",\"\")","v":"Transportation and Warehousing"},{"$f":"Calculations!O78","v":0},{"$f":"Calculations!P78","v":48.339599998816951},{"$f":"Calculations!Q78","v":80.268282073326546},128.6078820721435,null,null,{"$f":"IF(geo_country<>\"Zambia\",\"Transportation and Warehousing\",\"\")","v":"Transportation and Warehousing"},{"$f":"Calculations!L78","v":0},{"$f":"Calculations!M78","v":343239.36970999918},{"$f":"Calculations!N78","v":569951.64517760405},913191.01488760323,null,null,{"$f":"IF(geo_country<>\"Zambia\",\"Transportation and Warehousing\",\"\")","v":"Transportation and Warehousing"},{"$f":"Calculations!D78","v":0},{"$f":"Calculations!G78","v":1455659.9084402763},{"$f":"Calculations!H78","v":2417134.6088171266},3872794.5172574027,null,null,{"$f":"IF(geo_country<>\"Zambia\",\"Transportation and Warehousing\",\"\")","v":"Transportation and Warehousing"},{"$f":"Calculations!T78","v":0},{"$f":"Calculations!U78","v":12001.328255578888},{"$f":"Calculations!V78","v":10187.091669931609},22188.419925510498]
[null,{"$f":"IF(geo_country<>\"Zambia\",\"Information\",\"\")","v":"Information"},{"$f":"Calculations!O79","v":0},{"$f":"Calculations!P79","v":9.4651625788703679},{"$f":"Calculations!Q79","v":12.212981956490086},21.678144535360452,null,null,{"$f":"IF(geo_country<>\"Zambia\",\"Information\",\"\")","v":"Information"},{"$f":"Calculations!L79","v":0},{"$f":"Calculations!M79","v":113883.07307972548},{"$f":"Calculations!N79","v":146944.32399684383},260827.39707656932,null,null,{"$f":"IF(geo_country<>\"Zambia\",\"Information\",\"\")","v":"Information"},{"$f":"Calculations!D79","v":0},{"$f":"Calculations!G79","v":730136.99125255318},{"$f":"Calculations!H79","v":942102.13777412171},1672239.1290266749,null,null,{"$f":"IF(geo_country<>\"Zambia\",\"Information\",\"\")","v":"Information"},{"$f":"Calculations!T79","v":0},{"$f":"Calculations!U79","v":1887.9287006341578},{"$f":"Calculations!V79","v":3314.5335284365219},5202.4622290706793]
[null,"Finance, Professional, and Business Services",{"$f":"Calculations!O80","v":5655.6016656026095},{"$f":"Calculations!P80","v":510.81621569755339},{"$f":"Calculations!Q80","v":1076.7509479492803},7243.1688292494428,null,null,"Finance, Professional, and Business Services",{"$f":"Calculations!L80","v":20900294.4121048},{"$f":"Calculations!M80","v":2108342.0359747997},{"$f":"Calculations!N80","v":2072724.0628769088},25081360.510956511,null,null,"Finance, Professional, and Business Services",{"$f":"Calculations!D80","v":27831440.657016721},{"$f":"Calculations!G80","v":7877860.6417013565},{"$f":"Calculations!H80","v":7423184.3245313084},43132485.623249389,null,null,"Finance, Professional, and Business Services",{"$f":"Calculations!T80","v":0},{"$f":"Calculations!U80","v":35159.536288831165},{"$f":"Calculations!V80","v":33830.165510450563},68989.701799281727]
[null,{"$f":"IF(geo_country<>\"Zambia\",\"Education and Health Care\",\"\")","v":"Education and Health Care"},{"$f":"Calculations!O81","v":0},{"$f":"Calculations!P81","v":13.922614047276943},{"$f":"Calculations!Q81","v":595.09473783652061},609.01735188379757,null,null,{"$f":"IF(geo_country<>\"Zambia\",\"Education and Health Care\",\"\")","v":"Education and Health Care"},{"$f":"Calculations!L81","v":0},{"$f":"Calculations!M81","v":55905.299544768372},{"$f":"Calculations!N81","v":1884798.3699902724},1940703.6695350409,null,null,{"$f":"IF(geo_country<>\"Zambia\",\"Education and Health Care\",\"\")","v":"Education and Health Care"},{"$f":"Calculations!D81","v":0},{"$f":"Calculations!G81","v":72253.98253892301},{"$f":"Calculations!H81","v":2818067.7959935479},2890321.778532471,null,null,{"$f":"IF(geo_country<>\"Zambia\",\"Education and Health Care\",\"\")","v":"Education and Health Care"},{"$f":"Calculations!T81","v":0},{"$f":"Calculations!U81","v":526.30268020636959},{"$f":"Calculations!V81","v":13549.81143543484},14076.114115641209]
[null,"Other",{"$f":"Calculations!O82","v":66.068846833851111},{"$f":"Calculations!P82","v":42.366679231356763},{"$f":"Calculations!Q82","v":164.14143141190789},272.5769574771158,null,null,"Other",{"$f":"Calculations!L82","v":92346.381383115266},{"$f":"Calculations!M82","v":59296.059277670232},{"$f":"Calculations!N82","v":332200.42477188329},483842.86543266883,null,null,"Other",{"$f":"Calculations!D82","v":125567.80924101557},{"$f":"Calculations!G82","v":366961.03450901306},{"$f":"Calculations!H82","v":24920062.689869922},25412591.533619951,null,null,"Other",{"$f":"Calculations!T82","v":0},{"$f":"Calculations!U82","v":1662.6840908873558},{"$f":"Calculations!V82","v":5849.4571795814327},7512.1412704687882]
[null,"Total",{"$f":"SUM(C31:C41)","v":6666.6660911420322},{"$f":"SUM(D31:D41)","v":877.90558019972286},2298.5668853903067,null,null,null,"Total",{"$f":"SUM(J31:J41)","v":37866428.957194008},{"$f":"SUM(K31:K41)","v":4461539.7208669279},6421356.4063738799,null,null,null,"Total",{"$f":"SUM(Q31:Q41)","v":61425593.632990383},{"$f":"SUM(R31:R41)","v":31974633.689105205},52389162.477860697,null,null,null,"Total",{"$f":"SUM(X31:X41)","v":425561.00451836293},{"$f":"SUM(Y31:Y41)","v":194440.45748285993},108429.83229709702]
[]
[]
[]
[null,"Detailed Impacts"]
[null,"O&M"]
[null,null,"Jobs",null,null,null,null,null,null,{"$f":"\"Earnings ($\"&'Geothermal-Inputs'!B10&\" US)\"","v":"Earnings ($2012 US)"},null,null,null,null,null,null,"Output ($2014 US)",null,null,null,null,null,null,"GDP ($2014 US)"]
[null,null,"Direct","Indirect","Induced","Total",null,null,null,"Direct","Indirect","Induced","Total",null,null,null,"Direct","Indirect","Induced","Total",null,null,null,"Direct","Indirect","Induced","Total"]
[null,"Agriculture",{"$f":"Calculations!Z72","v":0},{"$f":"Calculations!AA72","v":6.8402085431172266E-2},{"$f":"Calculations!AB72","v":0.69795178861831686},{"$f":"SUM(C50:E50)","v":0.76635387404948907},null,null,"Agriculture",{"$f":"Calculations!W72","v":0},{"$f":"Calculations!X72","v":69.839067369925885},{"$f":"Calculations!Y72","v":712.61426722614362},{"$f":"SUM(J50:L50)","v":782.45333459606945},null,null,"Agriculture",{"$f":"Calculations!E72","v":0},{"$f":"Calculations!R72","v":695.13966568923729},{"$f":"Calculations!S72","v":7092.9704839998631},{"$f":"SUM(Q50:S50)","v":7788.1101496891006},null,null,"Agriculture",{"$f":"Calculations!T72","v":0},{"$f":"Calculations!U72","v":423.94862122439469},{"$f":"Calculations!V72","v":4325.8286147367908},{"$f":"SUM(X50:Z50)","v":4749.7772359611854}]
[null,"Mining and Extraction",{"$f":"Calculations!Z73","v":0.82520075423099415},{"$f":"Calculations!AA73","v":0.18186221709701531},{"$f":"Calculations!AB73","v":1.1224023953205906E-2},{"$f":"SUM(C51:E51)","v":1.0182869952812155},null,null,"Mining and Extraction",{"$f":"Calculations!W73","v":15388.789655541588},{"$f":"Calculations!X73","v":3391.4649142613343},{"$f":"Calculations!Y73","v":209.31166485130996},{"$f":"SUM(J51:L51)","v":18989.56623465423},null,null,"Mining and Extraction",{"$f":"Calculations!E73","v":288013.58303989517},{"$f":"Calculations!R73","v":63473.995263737394},{"$f":"Calculations!S73","v":3917.4362581635942},{"$f":"SUM(Q51:S51)","v":355405.01456179615},null,null,"Mining and Extraction",{"$f":"Calculations!T73","v":247958.76980752466},{"$f":"Calculations!U73","v":54646.498315271609},{"$f":"Calculations!V73","v":3372.6280028920919},{"$f":"SUM(X51:Z51)","v":305977.89612568833}]
[null,"Utilities",{"$f":"Calculations!Z74","v":2.3674898010418808},{"$f":"Calculations!AA74","v":5.5863403237969581E-2},{"$f":"Calculations!AB74","v":2.2298078310694268E-2},2.4456512825905445,null,null,"Utilities",{"$f":"Calculations!W74","v":42897.113946601305},{"$f":"Calculations!X74","v":1012.2023643309986},{"$f":"Calculations!Y74","v":404.02421402750963},44313.340524959815,null,null,"Utilities",{"$f":"Calculations!E74","v":397029.33187676605},{"$f":"Calculations!R74","v":9368.3232148129027},{"$f":"Calculations!S74","v":3739.3999036172172},410137.05499519617,null,null,"Utilities",{"$f":"Calculations!T74","v":177602.2347108383},{"$f":"Calculations!U74","v":4190.710874129154},{"$f":"Calculations!V74","v":1672.7373169649065},183465.68290193233]
[null,"Construction",{"$f":"Calculations!Z75","v":0},{"$f":"Calculations!AA75","v":0.18327095435495289},{"$f":"Calculations!AB75","v":1.9285334166658254E-2},0.20255628852161114,null,null,"Construction",{"$f":"Calculations!W75","v":0},{"$f":"Calculations!X75","v":524.85141885315284},{"$f":"Calculations!Y75","v":55.229346276136887},580.08076512928972,null,null,"Construction",{"$f":"Calculations!E75","v":0},{"$f":"Calculations!R75","v":2372.7208330203998},{"$f":"Calculations!S75","v":249.67793892951659},2622.3987719499164,null,null,"Construction",{"$f":"Calculations!T75","v":0},{"$f":"Calculations!U75","v":1193.3422420956217},{"$f":"Calculations!V75","v":125.57365674776007},1318.9158988433817]
[null,"Manufacturing",{"$f":"Calculations!Z76","v":0},{"$f":"Calculations!AA76","v":0.77781074940882367},{"$f":"Calculations!AB76","v":0.6076340035527722},1.3854447529615959,null,null,"Manufacturing",{"$f":"Calculations!W76","v":0},{"$f":"Calculations!X76","v":8378.0542732391059},{"$f":"Calculations!Y76","v":3077.7891338738746},11455.843407112981,null,null,"Manufacturing",{"$f":"Calculations!E76","v":0},{"$f":"Calculations!R76","v":147222.82065698548},{"$f":"Calculations!S76","v":40847.847790689993},188070.66844767547,null,null,"Manufacturing",{"$f":"Calculations!T76","v":0},{"$f":"Calculations!U76","v":35265.834167966539},{"$f":"Calculations!V76","v":13833.33531303476},49099.1694810013]
[null,{"$f":"IF(geo_country<>\"Zambia\",\"Sales\",\"Trade, Transportation, and Warehousing\")","v":"Sales"},{"$f":"Calculations!Z77","v":0},{"$f":"Calculations!AA77","v":2.0051343163532431},{"$f":"Calculations!AB77","v":0.7756915135810899},2.7808258299343329,null,null,{"$f":"IF(geo_country<>\"Zambia\",\"Sales\",\"Trade, Transportation, and Warehousing\")","v":"Sales"},{"$f":"Calculations!W77","v":0},{"$f":"Calculations!X77","v":9561.2068538356689},{"$f":"Calculations!Y77","v":3698.7781594612702},13259.985013296939,null,null,{"$f":"IF(geo_country<>\"Zambia\",\"Sales\",\"Trade, Transportation, and Warehousing\")","v":"Sales"},{"$f":"Calculations!E77","v":0},{"$f":"Calculations!R77","v":62356.312274945871},{"$f":"Calculations!S77","v":24122.704327287909},86479.01660223378,null,null,{"$f":"IF(geo_country<>\"Zambia\",\"Sales\",\"Trade, Transportation, and Warehousing\")","v":"Sales"},{"$f":"Calculations!T77","v":0},{"$f":"Calculations!U77","v":47482.343246034718},{"$f":"Calculations!V77","v":18368.670068885753},65851.013314920478]
[null,{"$f":"IF(geo_country<>\"Zambia\",\"Transportation and Warehousing\",\"\")","v":"Transportation and Warehousing"},{"$f":"Calculations!Z78","v":0},{"$f":"Calculations!AA78","v":0.54527727638398915},{"$f":"Calculations!AB78","v":0.46284790164556622},1.0081251780295553,null,null,{"$f":"IF(geo_country<>\"Zambia\",\"Transportation and Warehousing\",\"\")","v":"Transportation and Warehousing"},{"$f":"Calculations!W78","v":0},{"$f":"Calculations!X78","v":3871.7868717946772},{"$f":"Calculations!Y78","v":3286.4902075380828},7158.27707933276,null,null,{"$f":"IF(geo_country<>\"Zambia\",\"Transportation and Warehousing\",\"\")","v":"Transportation and Warehousing"},{"$f":"Calculations!E78","v":0},{"$f":"Calculations!R78","v":16420.042164914616},{"$f":"Calculations!S78","v":13937.830146456487},30357.872311371102,null,null,{"$f":"IF(geo_country<>\"Zambia\",\"Transportation and Warehousing\",\"\")","v":"Transportation and Warehousing"},{"$f":"Calculations!T78","v":0},{"$f":"Calculations!U78","v":12001.328255578888},{"$f":"Calculations!V78","v":10187.091669931609},22188.419925510498]
[null,{"$f":"IF(geo_country<>\"Zambia\",\"Information\",\"\")","v":"Information"},{"$f":"Calculations!Z79","v":0},{"$f":"Calculations!AA79","v":4.0112452764418251E-2},{"$f":"Calculations!AB79","v":7.0423247207816217E-2},0.11053569997223447,null,null,{"$f":"IF(geo_country<>\"Zambia\",\"Information\",\"\")","v":"Information"},{"$f":"Calculations!W79","v":0},{"$f":"Calculations!X79","v":482.62555994283503},{"$f":"Calculations!Y79","v":847.31939271522424},1329.9449526580593,null,null,{"$f":"IF(geo_country<>\"Zambia\",\"Information\",\"\")","v":"Information"},{"$f":"Calculations!E79","v":0},{"$f":"Calculations!R79","v":3094.2506617427657},{"$f":"Calculations!S79","v":5432.4072515494299},8526.6579132921961,null,null,{"$f":"IF(geo_country<>\"Zambia\",\"Information\",\"\")","v":"Information"},{"$f":"Calculations!T79","v":0},{"$f":"Calculations!U79","v":1887.9287006341578},{"$f":"Calculations!V79","v":3314.5335284365219},5202.4622290706793]
[null,"Finance, Professional, and Business Services",{"$f":"Calculations!Z80","v":0},{"$f":"Calculations!AA80","v":2.949731175681058},{"$f":"Calculations!AB80","v":6.2088274967430594},9.1585586724241175,null,null,"Finance, Professional, and Business Services",{"$f":"Calculations!W80","v":0},{"$f":"Calculations!X80","v":12201.800348518003},{"$f":"Calculations!Y80","v":11951.868887843628},24153.669236361631,null,null,"Finance, Professional, and Business Services",{"$f":"Calculations!E80","v":0},{"$f":"Calculations!R80","v":46699.94593890445},{"$f":"Calculations!S80","v":42804.021705595966},89503.967644500415,null,null,"Finance, Professional, and Business Services",{"$f":"Calculations!T80","v":0},{"$f":"Calculations!U80","v":35159.536288831165},{"$f":"Calculations!V80","v":33830.165510450563},68989.701799281727]
[null,{"$f":"IF(geo_country<>\"Zambia\",\"Education and Health Care\",\"\")","v":"Education and Health Care"},{"$f":"Calculations!Z81","v":0},{"$f":"Calculations!AA81","v":0.11303212328728351},{"$f":"Calculations!AB81","v":3.431471853805641},3.5445039770929245,null,null,{"$f":"IF(geo_country<>\"Zambia\",\"Education and Health Care\",\"\")","v":"Education and Health Care"},{"$f":"Calculations!W81","v":0},{"$f":"Calculations!X81","v":453.87272024485196},{"$f":"Calculations!Y81","v":10868.240206985502},11322.112927230353,null,null,{"$f":"IF(geo_country<>\"Zambia\",\"Education and Health Care\",\"\")","v":"Education and Health Care"},{"$f":"Calculations!E81","v":0},{"$f":"Calculations!R81","v":586.60112494708744},{"$f":"Calculations!S81","v":16249.715733034174},16836.316857981263,null,null,{"$f":"IF(geo_country<>\"Zambia\",\"Education and Health Care\",\"\")","v":"Education and Health Care"},{"$f":"Calculations!T81","v":0},{"$f":"Calculations!U81","v":526.30268020636959},{"$f":"Calculations!V81","v":13549.81143543484},14076.114115641209]
[null,"Other",{"$f":"Calculations!Z82","v":0},{"$f":"Calculations!AA82","v":0.27653807803932928},{"$f":"Calculations!AB82","v":0.94648241048312087},1.22302048852245,null,null,"Other",{"$f":"Calculations!W82","v":0},{"$f":"Calculations!X82","v":386.88144480767255},{"$f":"Calculations!Y82","v":1915.5545074575157},2302.4359522651885,null,null,"Other",{"$f":"Calculations!E82","v":0},{"$f":"Calculations!R82","v":2319.1278634309474},{"$f":"Calculations!S82","v":143695.59715188071},146014.72501531165,null,null,"Other",{"$f":"Calculations!T82","v":0},{"$f":"Calculations!U82","v":1662.6840908873558},{"$f":"Calculations!V82","v":5849.4571795814327},7512.1412704687882]
[null,"Total",{"$f":"SUM(C50:C60)","v":3.192690555272875},{"$f":"SUM(D50:D60)","v":7.1970348320392548},13.254137652067941,null,null,null,"Total",{"$f":"SUM(J50:J60)","v":58285.903602142891},{"$f":"SUM(K50:K60)","v":40334.585837198225},37027.219988256191,null,null,null,"Total",{"$f":"SUM(Q50:Q60)","v":685042.91491666122},{"$f":"SUM(R50:R60)","v":354609.27966313116},302089.60869120486,null,null,null,"Total",{"$f":"SUM(X50:X60)","v":425561.00451836293},{"$f":"SUM(Y50:Y60)","v":194440.45748285993},108429.83229709702]

{"sheet":"General Impact Estimates","index":10,"n_rows":51,"n_cols":31,"rows_kept":51,"cut":false,"hidden":false,"merged":[]}
[null,"General Impact Estimates",null,"Click for help"]
[]
[]
[null,"Select Country","Mexico",null,null,"Impact Totals"]
[null,"Currency Year",2012,null,null,null,null,{"$f":"\"( $ \"&general_dollar_year&\" US)\"","v":"( $ 2012 US)"}]
[null,null,null,null,null,null,"Jobs","Earnings","Output","GDP (Value Added)"]
[null,null,null,null,null,"Direct",{"$f":"TRANSPOSE(G28:J28)","v":4.5774324217030893},{"$f":"TRANSPOSE(N28:Q28)","v":46161.292871819183},{"$f":"TRANSPOSE(U28:X28)","v":1000000},{"$f":"TRANSPOSE(AB28:AE28)","v":376641.77335229964}]
[null,null,null,null,null,"Indirect",10.686588730750817,68714.359216087527,711674.19375827443,472749.4843909624]
[null,"Industry",{"$f":"\"Change in Final Demand ($ \"&general_dollar_year&\" )\"","v":"Change in Final Demand ($ 2012 )"},null,null,"Induced",15.438756330454826,43130.246719871851,351881.65243012097,126301.82390823217]
[2,{"$f":"HLOOKUP(general_country,'Default-Data'!$P$5:$X$47,'General Impact Estimates'!A10,FALSE)","v":" Agriculture, hunting, forestry and fishing"},0,null,null,"Total",30.702777482908733,158005.89880777855,2063555.8461883953,975693.08165149414]
[3,{"$f":"HLOOKUP(general_country,'Default-Data'!$P$5:$X$47,'General Impact Estimates'!A11,FALSE)","v":" Mining and quarrying"},0]
[4,{"$f":"HLOOKUP(general_country,'Default-Data'!$P$5:$X$47,'General Impact Estimates'!A12,FALSE)","v":"Manufacturing: Food products, beverages and tobacco"},0]
[5,{"$f":"HLOOKUP(general_country,'Default-Data'!$P$5:$X$47,'General Impact Estimates'!A13,FALSE)","v":"Manufacturing: Textiles, textile products, leather and footwear"},0]
[6,{"$f":"HLOOKUP(general_country,'Default-Data'!$P$5:$X$47,'General Impact Estimates'!A14,FALSE)","v":"Manufacturing: Wood and products of wood and cork"},0,null,null,"Detailed Impacts"]
[7,{"$f":"HLOOKUP(general_country,'Default-Data'!$P$5:$X$47,'General Impact Estimates'!A15,FALSE)","v":"Manufacturing: Pulp, paper, paper products, printing and publishing"},0,null,null,null,"Jobs",null,null,null,null,null,null,{"$f":"\"Earnings ( $ \"&general_dollar_year&\" US)\"","v":"Earnings ( $ 2012 US)"},null,null,null,null,null,null,{"$f":"\"Output ( $ \"&general_dollar_year&\" US)\"","v":"Output ( $ 2012 US)"},null,null,null,null,null,null,{"$f":"\"GDP ( $ \"&general_dollar_year&\" US)\"","v":"GDP ( $ 2012 US)"}]
[8,{"$f":"HLOOKUP(general_country,'Default-Data'!$P$5:$X$47,'General Impact Estimates'!A16,FALSE)","v":"Manufacturing: Coke, refined petroleum products and nuclear fuel"},0,null,null,null,"Direct","Indirect","Induced","Total",null,null,null,"Direct","Indirect","Induced","Total",null,null,null,"Direct","Indirect","Induced","Total",null,null,null,"Direct","Indirect","Induced","Total"]
[9,{"$f":"HLOOKUP(general_country,'Default-Data'!$P$5:$X$47,'General Impact Estimates'!A17,FALSE)","v":"Manufacturing: Chemicals and chemical products"},0,null,null,"Agriculture",{"$f":"Calculations!O94","v":0},{"$f":"Calculations!P94","v":7.2697102848744213E-2},{"$f":"Calculations!Q94","v":0.81299197863710826},{"$f":"SUM(G17:I17)","v":0.88568908148585246},null,null,"Agriculture",{"$f":"Calculations!L94","v":0},{"$f":"Calculations!M94","v":74.224313943769587},{"$f":"Calculations!N94","v":830.07120629937913},{"$f":"SUM(N17:P17)","v":904.29552024314876},null,null,"Agriculture",{"$f":"Calculations!D94","v":0},{"$f":"Calculations!G94","v":738.78799823583245},{"$f":"Calculations!H94","v":8262.0722551871713},{"$f":"SUM(U17:W17)","v":9000.8602534230031},null,null,"Agriculture",{"$f":"Calculations!I94","v":0},{"$f":"Calculations!J94","v":450.56866797935197},{"$f":"Calculations!K94","v":5038.8350916070558},{"$f":"SUM(AB17:AD17)","v":5489.4037595864074}]
[10,{"$f":"HLOOKUP(general_country,'Default-Data'!$P$5:$X$47,'General Impact Estimates'!A18,FALSE)","v":"Manufacturing: Rubber and plastics products"},0,null,null,"Mining and Extraction",{"$f":"Calculations!O95","v":0},{"$f":"Calculations!P95","v":0.8187137195640829},{"$f":"Calculations!Q95","v":1.3074028307958589E-2},{"$f":"SUM(G18:I18)","v":0.83178774787204146},null,null,"Mining and Extraction",{"$f":"Calculations!L95","v":0},{"$f":"Calculations!M95","v":15267.815927069496},{"$f":"Calculations!N95","v":243.81154591801544},{"$f":"SUM(N18:P18)","v":15511.627472987511},null,null,"Mining and Extraction",{"$f":"Calculations!D95","v":0},{"$f":"Calculations!G95","v":285749.46235393884},{"$f":"Calculations!H95","v":4563.129297245061},{"$f":"SUM(U18:W18)","v":290312.5916511839},null,null,"Mining and Extraction",{"$f":"Calculations!I95","v":0},{"$f":"Calculations!J95","v":246009.52639316896},{"$f":"Calculations!K95","v":3928.5227976932974},{"$f":"SUM(AB18:AD18)","v":249938.04919086225}]
[11,{"$f":"HLOOKUP(general_country,'Default-Data'!$P$5:$X$47,'General Impact Estimates'!A19,FALSE)","v":"Manufacturing: Other non-metallic mineral products"},0,null,null,"Utilities",{"$f":"Calculations!O96","v":0},{"$f":"Calculations!P96","v":0.23031825120030833},{"$f":"Calculations!Q96","v":2.5973368220035882E-2},0.25629161942034423,null,null,"Utilities",{"$f":"Calculations!L96","v":0},{"$f":"Calculations!M96","v":4173.1914795888879},{"$f":"Calculations!N96","v":470.61767092791052},4643.8091505167986,null,null,"Utilities",{"$f":"Calculations!D96","v":0},{"$f":"Calculations!G96","v":38624.496440424569},{"$f":"Calculations!H96","v":4355.7480274896661},42980.244467914235,null,null,"Utilities",{"$f":"Calculations!I96","v":0},{"$f":"Calculations!J96","v":17277.808795571393},{"$f":"Calculations!K96","v":1948.4469317738101},19226.255727345204]
[12,{"$f":"HLOOKUP(general_country,'Default-Data'!$P$5:$X$47,'General Impact Estimates'!A20,FALSE)","v":"Manufacturing: Basic metals"},1000000,null,null,"Construction",{"$f":"Calculations!O97","v":0},{"$f":"Calculations!P97","v":0.10439747390681095},{"$f":"Calculations!Q97","v":2.2464047285941448E-2},0.1268615211927524,null,null,"Construction",{"$f":"Calculations!L97","v":0},{"$f":"Calculations!M97","v":298.97351982220385},{"$f":"Calculations!N97","v":64.332545943836053},363.30606576603992,null,null,"Construction",{"$f":"Calculations!D97","v":0},{"$f":"Calculations!G97","v":1351.5838454883872},{"$f":"Calculations!H97","v":290.83120768868412},1642.4150531770713,null,null,"Construction",{"$f":"Calculations!I97","v":0},{"$f":"Calculations!J97","v":679.76901205952663},{"$f":"Calculations!K97","v":146.27138626030171},826.04039831982834]
[13,{"$f":"HLOOKUP(general_country,'Default-Data'!$P$5:$X$47,'General Impact Estimates'!A21,FALSE)","v":"Manufacturing: Fabricated metal products"},0,null,null,"Manufacturing",{"$f":"Calculations!O98","v":4.5774324217030893},{"$f":"Calculations!P98","v":1.3467491907348152},{"$f":"Calculations!Q98","v":0.70778752757907959},6.6319691400169845,null,null,"Manufacturing",{"$f":"Calculations!L98","v":46161.292871819183},{"$f":"Calculations!M98","v":11118.286714615193},{"$f":"Calculations!N98","v":3585.0869910790821},60864.666577513453,null,null,"Manufacturing",{"$f":"Calculations!D98","v":1000000},{"$f":"Calculations!G98","v":196013.79891822612},{"$f":"Calculations!H98","v":47580.611067938764},1243594.4099861649,null,null,"Manufacturing",{"$f":"Calculations!I98","v":376641.77335229964},{"$f":"Calculations!J98","v":66091.441618145866},{"$f":"Calculations!K98","v":16113.420483610036},458846.6354540555]
[14,{"$f":"HLOOKUP(general_country,'Default-Data'!$P$5:$X$47,'General Impact Estimates'!A22,FALSE)","v":"Manufacturing: Machinery and equipment not classified elsewhere"},0,null,null,{"$f":"IF(general_country<>\"Zambia\",\"Sales\",\"Trade, Transportation, and Warehousing\")","v":"Sales"},{"$f":"Calculations!O99","v":0},{"$f":"Calculations!P99","v":3.0519657242378355},{"$f":"Calculations!Q99","v":0.90354518567352049},3.9555109099113559,null,null,{"$f":"IF(general_country<>\"Zambia\",\"Sales\",\"Trade, Transportation, and Warehousing\")","v":"Sales"},{"$f":"Calculations!L99","v":0},{"$f":"Calculations!M99","v":14552.878259709376},{"$f":"Calculations!N99","v":4308.4307876809398},18861.309047390314,null,null,{"$f":"IF(general_country<>\"Zambia\",\"Sales\",\"Trade, Transportation, and Warehousing\")","v":"Sales"},{"$f":"Calculations!D99","v":0},{"$f":"Calculations!G99","v":94911.012295237757},{"$f":"Calculations!H99","v":28098.738968694757},123009.75126393251,null,null,{"$f":"IF(general_country<>\"Zambia\",\"Sales\",\"Trade, Transportation, and Warehousing\")","v":"Sales"},{"$f":"Calculations!I99","v":0},{"$f":"Calculations!J99","v":72271.709137645797},{"$f":"Calculations!K99","v":21396.293652027936},93668.00278967373]
[15,{"$f":"HLOOKUP(general_country,'Default-Data'!$P$5:$X$47,'General Impact Estimates'!A23,FALSE)","v":"Manufacturing: Computer, Electronic and optical equipment"},0,null,null,{"$f":"IF(general_country<>\"Zambia\",\"Transportation and Warehousing\",\"\")","v":"Transportation and Warehousing"},{"$f":"Calculations!O100","v":0},{"$f":"Calculations!P100","v":0.89651835248090805},{"$f":"Calculations!Q100","v":0.53913699700057949},1.4356553494814874,null,null,{"$f":"IF(general_country<>\"Zambia\",\"Transportation and Warehousing\",\"\")","v":"Transportation and Warehousing"},{"$f":"Calculations!L100","v":0},{"$f":"Calculations!M100","v":6365.8034871311474},{"$f":"Calculations!N100","v":3828.1873048670145},10193.990791998162,null,null,{"$f":"IF(general_country<>\"Zambia\",\"Transportation and Warehousing\",\"\")","v":"Transportation and Warehousing"},{"$f":"Calculations!D100","v":0},{"$f":"Calculations!G100","v":26997.033962203343},{"$f":"Calculations!H100","v":16235.138720838317},43232.172683041659,null,null,{"$f":"IF(general_country<>\"Zambia\",\"Transportation and Warehousing\",\"\")","v":"Transportation and Warehousing"},{"$f":"Calculations!I100","v":0},{"$f":"Calculations!J100","v":19731.999665611009},{"$f":"Calculations!K100","v":11866.183235507724},31598.182901118733]
[16,{"$f":"HLOOKUP(general_country,'Default-Data'!$P$5:$X$47,'General Impact Estimates'!A24,FALSE)","v":"Manufacturing: Electrical machinery and apparatus not classified elsewhere"},0,null,null,{"$f":"IF(general_country<>\"Zambia\",\"Information\",\"\")","v":"Information"},{"$f":"Calculations!O101","v":0},{"$f":"Calculations!P101","v":3.9410480293069039E-2},{"$f":"Calculations!Q101","v":8.2030787832599816E-2},0.12144126812566886,null,null,{"$f":"IF(general_country<>\"Zambia\",\"Information\",\"\")","v":"Information"},{"$f":"Calculations!L101","v":0},{"$f":"Calculations!M101","v":474.17955792348471},{"$f":"Calculations!N101","v":986.97915938411097},1461.1587173075957,null,null,{"$f":"IF(general_country<>\"Zambia\",\"Information\",\"\")","v":"Information"},{"$f":"Calculations!D101","v":0},{"$f":"Calculations!G101","v":3040.1009243344301},{"$f":"Calculations!H101","v":6327.8060064044948},9367.9069307389254,null,null,{"$f":"IF(general_country<>\"Zambia\",\"Information\",\"\")","v":"Information"},{"$f":"Calculations!I101","v":0},{"$f":"Calculations!J101","v":1854.8897343186684},{"$f":"Calculations!K101","v":3860.8528776423354},5715.7426119610036]
[17,{"$f":"HLOOKUP(general_country,'Default-Data'!$P$5:$X$47,'General Impact Estimates'!A25,FALSE)","v":"Manufacturing: Motor vehicles, trailers and semi-trailers"},0,null,null,"Finance, Professional, and Business Services",{"$f":"Calculations!O102","v":0},{"$f":"Calculations!P102","v":3.7921738251505199},{"$f":"Calculations!Q102","v":7.2322000371776864},11.024373862328206,null,null,"Finance, Professional, and Business Services",{"$f":"Calculations!L102","v":0},{"$f":"Calculations!M102","v":15829.621376092404},{"$f":"Calculations!N102","v":13921.840582678151},29751.461958770553,null,null,"Finance, Professional, and Business Services",{"$f":"Calculations!D102","v":0},{"$f":"Calculations!G102","v":61553.856152582826},{"$f":"Calculations!H102","v":49859.212151240179},111413.06830382301,null,null,"Finance, Professional, and Business Services",{"$f":"Calculations!I102","v":0},{"$f":"Calculations!J102","v":46419.306331201216},{"$f":"Calculations!K102","v":39406.236425597534},85825.54275679875]
[18,{"$f":"HLOOKUP(general_country,'Default-Data'!$P$5:$X$47,'General Impact Estimates'!A26,FALSE)","v":"Manufacturing: Other transport equipment"},0,null,null,{"$f":"IF(general_country<>\"Zambia\",\"Education and Health Care\",\"\")","v":"Education and Health Care"},{"$f":"Calculations!O103","v":0},{"$f":"Calculations!P103","v":3.5388519911815713E-2},{"$f":"Calculations!Q103","v":3.9970656104853193},4.0324541303971353,null,null,{"$f":"IF(general_country<>\"Zambia\",\"Education and Health Care\",\"\")","v":"Education and Health Care"},{"$f":"Calculations!L103","v":0},{"$f":"Calculations!M103","v":142.10016878999849},{"$f":"Calculations!N103","v":12659.602359744755},12801.702528534754,null,null,{"$f":"IF(general_country<>\"Zambia\",\"Education and Health Care\",\"\")","v":"Education and Health Care"},{"$f":"Calculations!D103","v":0},{"$f":"Calculations!G103","v":183.65527415354632},{"$f":"Calculations!H103","v":18928.081798088962},19111.737072242508,null,null,{"$f":"IF(general_country<>\"Zambia\",\"Education and Health Care\",\"\")","v":"Education and Health Care"},{"$f":"Calculations!I103","v":0},{"$f":"Calculations!J103","v":164.77681155106171},{"$f":"Calculations!K103","v":15783.164666518322},15947.941478069384]
[19,{"$f":"HLOOKUP(general_country,'Default-Data'!$P$5:$X$47,'General Impact Estimates'!A27,FALSE)","v":" Manufacturing not classified elsewhere; recycling"},0,null,null,"Other",{"$f":"Calculations!O104","v":0},{"$f":"Calculations!P104","v":0.29825609042190598},{"$f":"Calculations!Q104","v":1.1024867622549968},1.4007428526769028,null,null,"Other",{"$f":"Calculations!L104","v":0},{"$f":"Calculations!M104","v":417.28441140158122},{"$f":"Calculations!N104","v":2231.2865653486579},2648.570976750239,null,null,"Other",{"$f":"Calculations!D104","v":0},{"$f":"Calculations!G104","v":2510.4055934488983},{"$f":"Calculations!H104","v":167380.28292930493},169890.68852275383,null,null,"Other",{"$f":"Calculations!I104","v":0},{"$f":"Calculations!J104","v":1797.6882237095135},{"$f":"Calculations!K104","v":6813.5963599938304},8611.2845837033437]
[20,{"$f":"HLOOKUP(general_country,'Default-Data'!$P$5:$X$47,'General Impact Estimates'!A28,FALSE)","v":" Electricity, gas and water supply"},0,null,null,"Total",{"$f":"Calculations!O105","v":4.5774324217030893},{"$f":"Calculations!P105","v":10.686588730750817},{"$f":"Calculations!Q105","v":15.438756330454826},30.702777482908733,null,null,"Total",{"$f":"Calculations!L105","v":46161.292871819183},{"$f":"Calculations!M105","v":68714.359216087527},{"$f":"Calculations!N105","v":43130.246719871851},158005.89880777855,null,null,"Total",{"$f":"Calculations!D105","v":1000000},{"$f":"Calculations!G105","v":711674.19375827443},{"$f":"Calculations!H105","v":351881.65243012097},2063555.8461883953,null,null,"Total",{"$f":"Calculations!I105","v":376641.77335229964},{"$f":"Calculations!J105","v":472749.4843909624},{"$f":"Calculations!K105","v":126301.82390823217},975693.08165149414]
[21,{"$f":"HLOOKUP(general_country,'Default-Data'!$P$5:$X$47,'General Impact Estimates'!A29,FALSE)","v":" Construction"},0]
[22,{"$f":"HLOOKUP(general_country,'Default-Data'!$P$5:$X$47,'General Impact Estimates'!A30,FALSE)","v":" Wholesale and retail trade; repairs"},0]
[23,{"$f":"HLOOKUP(general_country,'Default-Data'!$P$5:$X$47,'General Impact Estimates'!A31,FALSE)","v":" Hotels and restaurants"},0]
[24,{"$f":"HLOOKUP(general_country,'Default-Data'!$P$5:$X$47,'General Impact Estimates'!A32,FALSE)","v":" Transport and storage"},0]
[25,{"$f":"HLOOKUP(general_country,'Default-Data'!$P$5:$X$47,'General Impact Estimates'!A33,FALSE)","v":" Post and telecommunications"},0]
[26,{"$f":"HLOOKUP(general_country,'Default-Data'!$P$5:$X$47,'General Impact Estimates'!A34,FALSE)","v":" Financial intermediation"},0]
[27,{"$f":"HLOOKUP(general_country,'Default-Data'!$P$5:$X$47,'General Impact Estimates'!A35,FALSE)","v":" Real estate activities"},0]
[28,{"$f":"HLOOKUP(general_country,'Default-Data'!$P$5:$X$47,'General Impact Estimates'!A36,FALSE)","v":" Renting of machinery and equipment"},0]
[29,{"$f":"HLOOKUP(general_country,'Default-Data'!$P$5:$X$47,'General Impact Estimates'!A37,FALSE)","v":" Computer and related activities"},0]
[30,{"$f":"HLOOKUP(general_country,'Default-Data'!$P$5:$X$47,'General Impact Estimates'!A38,FALSE)","v":" R&D and other business activities"},0]
[31,{"$f":"HLOOKUP(general_country,'Default-Data'!$P$5:$X$47,'General Impact Estimates'!A39,FALSE)","v":" Public administration and defence; compulsory social security"},0]
[32,{"$f":"HLOOKUP(general_country,'Default-Data'!$P$5:$X$47,'General Impact Estimates'!A40,FALSE)","v":" Education"},0]
[33,{"$f":"HLOOKUP(general_country,'Default-Data'!$P$5:$X$47,'General Impact Estimates'!A41,FALSE)","v":" Health and social work"},0]
[34,{"$f":"HLOOKUP(general_country,'Default-Data'!$P$5:$X$47,'General Impact Estimates'!A42,FALSE)","v":" Other community, social and personal services"},0]
[35,{"$f":"HLOOKUP(general_country,'Default-Data'!$P$5:$X$47,'General Impact Estimates'!A43,FALSE)","v":" Private households with employed persons"},0]
[36,{"$f":"HLOOKUP(general_country,'Default-Data'!$P$5:$X$47,'General Impact Estimates'!A44,FALSE)","v":"Payments to workers and/or households"},0]
[37,{"$f":"IF(ISBLANK(HLOOKUP(general_country,'Default-Data'!$P$5:$X$47,'General Impact Estimates'!A45,FALSE)),\"\",HLOOKUP(general_country,'Default-Data'!$P$5:$X$47,'General Impact Estimates'!A45,FALSE))","v":""},0]
[38,{"$f":"IF(ISBLANK(HLOOKUP(general_country,'Default-Data'!$P$5:$X$47,'General Impact Estimates'!A46,FALSE)),\"\",HLOOKUP(general_country,'Default-Data'!$P$5:$X$47,'General Impact Estimates'!A46,FALSE))","v":""},0]
[39,{"$f":"IF(ISBLANK(HLOOKUP(general_country,'Default-Data'!$P$5:$X$47,'General Impact Estimates'!A47,FALSE)),\"\",HLOOKUP(general_country,'Default-Data'!$P$5:$X$47,'General Impact Estimates'!A47,FALSE))","v":""},0]
[40,{"$f":"IF(ISBLANK(HLOOKUP(general_country,'Default-Data'!$P$5:$X$47,'General Impact Estimates'!A48,FALSE)),\"\",HLOOKUP(general_country,'Default-Data'!$P$5:$X$47,'General Impact Estimates'!A48,FALSE))","v":""},0]
[41,{"$f":"IF(ISBLANK(HLOOKUP(general_country,'Default-Data'!$P$5:$X$47,'General Impact Estimates'!A49,FALSE)),\"\",HLOOKUP(general_country,'Default-Data'!$P$5:$X$47,'General Impact Estimates'!A49,FALSE))","v":""},0]
[42,{"$f":"IF(ISBLANK(HLOOKUP(general_country,'Default-Data'!$P$5:$X$47,'General Impact Estimates'!A50,FALSE)),\"\",HLOOKUP(general_country,'Default-Data'!$P$5:$X$47,'General Impact Estimates'!A50,FALSE))","v":""},0]
[43,{"$f":"IF(ISBLANK(HLOOKUP(general_country,'Default-Data'!$P$5:$X$47,'General Impact Estimates'!A51,FALSE)),\"\",HLOOKUP(general_country,'Default-Data'!$P$5:$X$47,'General Impact Estimates'!A51,FALSE))","v":""},0]

{"sheet":"CustomRegion1","index":11,"n_rows":117,"n_cols":37,"rows_kept":117,"cut":false,"hidden":false,"merged":[[1,1,1,3]]}
[]
[null,"CustomRegion1"]
[]
[null,"Enter data in boxes below"]
[]
[]
[null,null,null,"Dollar Year of Average Earnings",2014]
[null,null,"Value Added as a Percentage of Output","Payments to Workers as a Percentage of Output",{"$f":"\"Average Earnings ($\"&E7&\") per Job\"","v":"Average Earnings ($2014) per Job"}]
[null," Agriculture, hunting, forestry and fishing",0.70575679402441327,0.20314908946589125,1733.4629981939424]
[null," Mining and quarrying",0.57568630475015425,0.15048581122763727,3214.6839024772494]
[null,"Manufacturing: Food products, beverages and tobacco",0.33303297196471399,5.8272442954714385E-2,3214.6839024772494]
[null,"Manufacturing: Textiles, textile products, leather and footwear",0.38369770071617038,0.13252921221258954,3214.6839024772494]
[null,"Manufacturing: Wood and products of wood and cork",0.14513093931315665,3.7635251685745642E-2,3214.6839024772494]
[null,"Manufacturing: Pulp, paper, paper products, printing and publishing",0.2647392140842843,7.8486150278048658E-2,3214.6839024772494]
[null,"Manufacturing: Coke, refined petroleum products and nuclear fuel",0.16985240863624798,2.3092959069822068E-2,3214.6839024772494]
[null,"Manufacturing: Chemicals and chemical products",0.26987038395695767,6.9984511290454063E-2,3214.6839024772494]
[null,"Manufacturing: Rubber and plastics products",0.30754302348811319,8.6903165044664513E-2,3214.6839024772494]
[null,"Manufacturing: Other non-metallic mineral products",0.37628802293113245,8.003657120264894E-2,3214.6839024772494]
[null,"Manufacturing: Basic metals",0.20527986568762724,4.6719864143806869E-2,3214.6839024772494]
[null,"Manufacturing: Fabricated metal products",0.25183810657516981,7.7200476157131853E-2,3214.6839024772494]
[null,"Manufacturing: Machinery and equipment not classified elsewhere",0.36586740444717697,0.10884824264781227,3214.6839024772494]
[null,"Manufacturing: Computer, Electronic and optical equipment",0.24645926061535292,9.2481435289540836E-2,3214.6839024772494]
[null,"Manufacturing: Electrical machinery and apparatus not classified elsewhere",0.25983407904548844,8.6891001739995019E-2,3214.6839024772494]
[null,"Manufacturing: Motor vehicles, trailers and semi-trailers",0.1633728792721908,4.0539709859847554E-2,3214.6839024772494]
[null,"Manufacturing: Other transport equipment",0.20927218344965107,4.6992356264539716E-2,3214.6839024772494]
[null," Manufacturing not classified elsewhere; recycling",0.40537527140426033,0.13684642920016432,3214.6839024772494]
[null," Electricity, gas and water supply",0.59925603110226633,0.12410677549101107,3948.9654660753608]
[null," Construction",0.55032853415788974,0.16911295777369795,3214.6839024772494]
[null," Wholesale and retail trade; repairs",0.69111490942712817,0.15383603998693679,3214.6839024772494]
[null," Hotels and restaurants",0.37486288761076292,0.14121383809769078,3214.6839024772494]
[null," Transport and storage",0.44202401820988457,0.16449072499411319,3214.6839024772494]
[null," Post and telecommunications",0.60569783796160004,0.10740413654749835,3948.9654660753608]
[null," Financial intermediation",0.63779417152523665,0.13973232256984808,3948.9654660753608]
[null," Real estate activities",0.8114704658415588,2.0797583590108058E-2,3948.9654660753608]
[null," Renting of machinery and equipment",0.50557044140459739,0.13820335636722605,3948.9654660753608]
[null," Computer and related activities",0.4996688467588376,0.17426939316168555,3948.9654660753608]
[null," R&D and other business activities",0.48449979911611091,0.18960224989955804,3948.9654660753608]
[null," Public administration and defence; compulsory social security",0.55701796292757511,0.47307949550926814,3948.9654660753608]
[null," Education",0.68056396981880263,0.47338339055032341,3948.9654660753608]
[null," Health and social work",0.5182035609885729,0.33082646824342282,3948.9654660753608]
[null," Other community, social and personal services",0.48736110644868907,0.41888784450636141,1733.4629981939424]
[null," Private households with employed persons",0,0,1733]
[]
[null,"Total Requirements - Type 1"]
[null,null," Agriculture, hunting, forestry and fishing"," Mining and quarrying","Manufacturing: Food products, beverages and tobacco","Manufacturing: Textiles, textile products, leather and footwear","Manufacturing: Wood and products of wood and cork","Manufacturing: Pulp, paper, paper products, printing and publishing","Manufacturing: Coke, refined petroleum products and nuclear fuel","Manufacturing: Chemicals and chemical products","Manufacturing: Rubber and plastics products","Manufacturing: Other non-metallic mineral products","Manufacturing: Basic metals","Manufacturing: Fabricated metal products","Manufacturing: Machinery and equipment not classified elsewhere","Manufacturing: Computer, Electronic and optical equipment","Manufacturing: Electrical machinery and apparatus not classified elsewhere","Manufacturing: Motor vehicles, trailers and semi-trailers","Manufacturing: Other transport equipment"," Manufacturing not classified elsewhere; recycling"," Electricity, gas and water supply"," Construction"," Wholesale and retail trade; repairs"," Hotels and restaurants"," Transport and storage"," Post and telecommunications"," Financial intermediation"," Real estate activities"," Renting of machinery and equipment"," Computer and related activities"," R&D and other business activities"," Public administration and defence; compulsory social security"," Education"," Health and social work"," Other community, social and personal services"," Private households with employed persons"]
[null," Agriculture, hunting, forestry and fishing",1.0898726093504676,7.2113944447559745E-3,0.43371509699177241,0.17825753523081406,0.53506857183448775,0.2643897842351664,9.0545402077687916E-3,0.13261583001049013,0.10089194481585982,1.2439763441376843E-2,7.8900402005691005E-3,8.9849152303536923E-3,1.4039935293114196E-2,7.2368276529704923E-3,6.9014862658304966E-3,2.040968418728422E-2,1.5677898584536078E-2,8.4228735277810246E-2,4.0342926762956706E-3,1.2829173554602717E-2,6.2142644353980724E-3,0.16886329128715188,2.1513154287768867E-2,5.6761577068777025E-3,8.3871687267773262E-3,3.1452943490145736E-3,1.7503032957404525E-2,1.1921796873487203E-2,2.5711262296355935E-2,1.5486808457832922E-2,2.6132834249432031E-2,5.4055353416201601E-2,2.1859553278796247E-2,0]
[null," Mining and quarrying",4.3472704144865995E-2,1.1355197747406336,5.6245333032760032E-2,3.8645221095721931E-2,8.1168286980156268E-2,6.2727829738402976E-2,0.64673479291637836,0.15093629194659935,8.5763190977698148E-2,0.37260905275064216,0.23879505246254634,0.15355311872892502,9.9514147898364325E-2,4.3046244121242895E-2,4.8884405497448803E-2,0.13353629905919415,0.10031536129813147,6.1496427018301929E-2,0.16105447366773362,0.16450848785482808,4.8420038885987761E-2,8.2154587615865624E-2,0.16941834800036618,5.4999641125346076E-2,5.4604266435824035E-2,3.4519646149395324E-2,0.16371973507558427,4.730080308137917E-2,8.6741543874668939E-2,4.4138490444187189E-2,4.0605811082296099E-2,6.4492530409686263E-2,5.1715169069374713E-2,0]
[null,"Manufacturing: Food products, beverages and tobacco",3.7511381441152923E-2,4.1587890860945564E-3,1.0744973544552363,9.9971366649732642E-3,2.1583646755710183E-2,1.4093055149748093E-2,5.1346207374196439E-3,6.17202648367274E-2,2.7073454278729824E-2,3.6234405950572334E-3,5.9211482313032276E-3,5.1859121381865013E-3,5.5488565424936676E-3,3.9998659839115573E-3,3.6737786177094434E-3,8.4938422566432133E-3,7.0228848579977198E-3,9.1044934841072282E-3,2.1660700614449893E-3,3.4895919926244555E-3,5.3672373103181058E-3,0.25941850466746585,2.7168337248115456E-2,3.2571249143987786E-3,8.271251370542505E-3,1.6959988627555805E-3,2.228244288040454E-2,1.0197759527374128E-2,1.7745003564820339E-2,8.6532311806663091E-3,7.9492687738453253E-3,3.5849235216545164E-2,1.4375285394741534E-2,0]
[null,"Manufacturing: Textiles, textile products, leather and footwear",2.5448274395135136E-3,9.0993880768866291E-4,1.4968103838352389E-3,1.2395202405963959,4.260482878581405E-3,2.0653535203790045E-3,7.9951252447861023E-4,1.5812494220574539E-3,1.6068266082236146E-2,3.0056995042506925E-3,7.5736770982694267E-4,1.0740846092498304E-3,7.1083843162834427E-3,1.8065666956887567E-3,1.2561002832431004E-3,4.4734473633938291E-3,2.2349368060981339E-2,7.7632617623659361E-2,3.403329723669439E-4,1.1102087677857474E-3,8.9446115973620803E-4,4.6610682768693868E-3,3.1196158964227937E-3,1.5967108137109327E-3,8.2800375815514859E-4,3.9478767126730076E-4,1.9847682394400989E-2,1.624815234020974E-3,8.2058649009141438E-3,2.2899638099177213E-3,1.1376387843918187E-3,2.1373145977992458E-3,1.3633536289578295E-2,0]
[null,"Manufacturing: Wood and products of wood and cork",1.8242313247625712E-4,6.7877889524591115E-4,3.1013425256283571E-4,2.4483746420388461E-4,1.036880412072573,3.241757362450949E-4,4.7680678646809239E-4,1.8223886396627092E-3,8.0613709245137583E-4,3.976326552204844E-4,3.1576544102203494E-4,2.989095256593099E-4,2.039467360242791E-3,1.4271850330360811E-3,8.0151220574914157E-4,1.0750083496122798E-3,3.3785208632180733E-3,5.0232229057633845E-2,2.0520533601999405E-4,1.4162373735015606E-2,1.9096919675130116E-4,5.4811747065330776E-4,4.4621871157557425E-4,3.7822531760927232E-4,2.0996956546994263E-4,1.5117994264269936E-3,8.4413585595846153E-4,3.7885949335881739E-4,5.6932190684708204E-4,5.3204861444835811E-4,6.2006205562495321E-4,1.0688351480517971E-3,5.9154423175928066E-4,0]
[null,"Manufacturing: Pulp, paper, paper products, printing and publishing",4.2939091806681092E-3,4.7702698194599736E-3,8.3780517511344143E-3,5.9507025554808085E-3,2.2432326921316453E-2,1.4541975015706274,8.2804272374523372E-3,1.5911382609124124E-2,1.0706390065004635E-2,4.1494186259538497E-2,9.5892121578362004E-3,1.5305970352057869E-2,1.1737048353358492E-2,6.9542014329465381E-3,1.098721940485713E-2,1.1766248639596419E-2,1.1909952210829964E-2,2.0916646784656507E-2,4.4316686484503261E-3,7.4874816908316226E-3,1.0869757216802448E-2,7.6430864393651869E-3,9.6356692887144546E-3,1.0079315964289279E-2,1.0756363820970657E-2,3.9768476018955399E-3,6.6857509705659408E-3,1.8365790724514677E-2,2.9389624241250425E-2,3.3541193302131032E-2,0.10372148254648998,1.4292447888602221E-2,2.9481335829019892E-2,0]
[null,"Manufacturing: Coke, refined petroleum products and nuclear fuel",7.0312784886464294E-2,0.12902532899578187,9.3439269655698945E-2,6.2185935089082135E-2,0.13431118169592532,0.10106841493179229,1.1549021034165501,0.11244606358329419,9.23705695215154E-2,0.13313180865529795,0.20242117916977198,0.14939943912955497,0.107167708386538,6.8153862698093634E-2,7.2517676415909879E-2,0.15930991826063398,0.13510779928673147,8.070028439657688E-2,0.28411134945412952,0.11559380877855674,8.4081576751624781E-2,0.13806629437162393,0.29601650285355663,9.317255176000043E-2,9.4519475552722942E-2,3.1841731512521572E-2,0.2871889461753534,7.9864149668926437E-2,0.13679173412694126,7.0019664591700836E-2,6.3153283770635574E-2,7.7954732606045601E-2,7.0109338150908723E-2,0]
[null,"Manufacturing: Chemicals and chemical products",5.8013896614513977E-2,4.5277136754404576E-2,3.7152260221659891E-2,5.2507161819158446E-2,5.6016025689808388E-2,8.0089170102701585E-2,5.8604883302971318E-2,1.357029244045473,0.51972028681315596,3.3577949652072461E-2,3.2311385495623832E-2,3.7198051871561152E-2,6.5029063420128971E-2,2.6286457517692156E-2,2.3533427500239269E-2,9.4472961014919699E-2,5.3660443931473338E-2,9.3406770468181577E-2,2.4749371228544481E-2,2.5904303135261545E-2,1.1727531823060236E-2,3.1792889122744111E-2,3.7691514411509294E-2,1.5969851795148326E-2,1.3561216808510914E-2,7.4516461146544354E-3,3.10716430525965E-2,2.6501139873495221E-2,0.10601108927085323,4.1888760762898443E-2,3.6152982542647386E-2,0.30147327503991994,4.9030823629368718E-2,0]
[null,"Manufacturing: Rubber and plastics products",6.1553846621948457E-3,7.6399062101544573E-3,1.3636747382228609E-2,4.4014488001773364E-3,1.1334736993173875E-2,9.4897133474099397E-3,5.9371151965034287E-3,2.0418392214909802E-2,1.0498631523158133,6.3472770052407134E-3,4.2367961617073117E-3,8.6325558381050525E-3,5.3217487482707319E-2,1.2552305139646799E-2,1.1025406693946029E-2,0.13244988308177716,1.6133982316418456E-2,6.7899611084247385E-2,2.2742494769804372E-3,1.1444540204856926E-2,3.3224009079875984E-3,7.8767734923218223E-3,2.9221856425991049E-2,8.2628921125205597E-3,3.6646384987335102E-3,1.6615199467962781E-3,1.041859292569792E-2,4.7225936562393794E-3,2.4505083070380521E-2,7.5827800434235572E-3,5.9339508721359827E-3,9.7810915455879988E-3,9.6200658377440379E-3,0]
[null,"Manufacturing: Other non-metallic mineral products",1.7955636323855662E-3,5.8693088060076514E-3,4.3335827351182118E-3,1.9749212441467108E-3,2.9442971484309817E-3,3.1176795116405593E-3,4.4159406790573287E-3,2.7262888263066318E-2,1.1142197151881653E-2,1.1038008322878756,6.4469708273159126E-3,5.278599453745059E-3,1.7896623841719361E-2,5.1843350134387076E-3,3.8424748464539193E-3,1.1871316278838204E-2,6.7979051003322971E-3,1.4080542101488406E-2,3.9498400224577375E-3,9.4065579179496886E-2,1.8486801887501935E-3,7.280985647742314E-3,3.5459354853698824E-3,3.315405139293012E-3,2.1816869772827907E-3,3.4518392876213194E-2,2.6584051501993373E-3,2.4631746692467785E-3,5.8511340819796991E-3,4.3003907886203108E-3,5.2180404339727008E-3,9.1083236752199075E-3,1.68760394284195E-2,0]
[null,"Manufacturing: Basic metals",9.6037768636961576E-3,3.5871974803102814E-2,1.6119974512263064E-2,7.3593054949760454E-3,3.7750215009978272E-2,1.5583771593413202E-2,4.8585961618358361E-2,4.5296961300412129E-2,2.1905486483267282E-2,2.8962629764254316E-2,1.8814456462697204,1.0147690682873189,0.47441944100222816,3.3444201122092676E-2,9.0380666671081272E-2,0.55251216961896721,0.29216261255185083,8.8504554934884641E-2,1.7728495191477581E-2,0.13242284717607472,6.4915847715065061E-3,2.4397793939784432E-2,3.181397282593712E-2,1.2873865660602515E-2,7.5254625356969548E-3,1.4876772289736238E-2,3.2377342355220745E-2,9.7306897139948691E-3,3.9582177252248163E-2,1.0423024390235168E-2,1.1226828791633196E-2,1.705418252655129E-2,1.5219948202511921E-2,0]
[null,"Manufacturing: Fabricated metal products",6.1389136975506537E-3,1.3705860639423178E-2,1.2032062572646579E-2,3.9973787588701796E-3,2.5067864946578769E-2,8.7994922751434765E-3,1.3068679607417264E-2,3.6204132639146708E-2,1.5632365576642542E-2,7.882415652016219E-3,3.7821956476112528E-2,1.0486993915237541,7.8906403737982661E-2,8.398577114752552E-3,1.8067283378238173E-2,2.6789172505430146E-2,2.7870000395446546E-2,2.3205676569405753E-2,7.0995974549455639E-3,2.5978724406672728E-2,2.732533965082321E-3,1.7955847321804864E-2,1.3535626799487938E-2,6.7491654698155993E-3,3.1815617912785013E-3,4.0794089088647496E-3,6.5288927001014426E-3,3.7961779885696246E-3,2.0484975560206026E-2,4.3483531866844883E-3,5.5396461345839781E-3,1.1330272111702908E-2,6.5362959053196145E-3,0]
[null,"Manufacturing: Machinery and equipment not classified elsewhere",2.4617215033346219E-3,2.6563704445103191E-2,2.6154150461704367E-3,2.195937550187977E-3,2.1491240786383828E-2,3.4608760717392624E-3,1.7741872104855717E-2,6.0809503623949204E-3,3.813855753137902E-3,1.0894951993415719E-2,1.1017649798770495E-2,8.0666290674937871E-3,1.0277865280735219,3.9334360586437914E-3,1.0911479241234593E-2,1.0829844130338537E-2,3.3539449863647257E-2,1.0161093777687381E-2,6.5178020943733673E-3,8.4882840534352359E-3,1.7988839187479269E-3,5.7236895144424952E-3,1.8572068040137432E-2,3.2561369717038894E-3,2.0789239400193218E-3,1.4563025249648409E-3,1.3199712916769028E-2,2.4857914971119152E-3,9.3620291567643628E-3,2.13866288793695E-3,1.9820132224151535E-3,2.9221261685290567E-3,6.1631984383876907E-3,0]
[null,"Manufacturing: Computer, Electronic and optical equipment",5.6490721334758309E-3,2.3944736864919564E-2,6.2065307876686543E-3,7.1246454580021577E-3,1.2106871946829975E-2,9.907257257370362E-3,1.8213051400213863E-2,1.1829374241009865E-2,9.9793540447207455E-3,1.2862075596492951E-2,1.4748695710200469E-2,1.2899544227241174E-2,9.7314908900403438E-2,2.1035859709918165,0.94004446891648175,0.20745650405477681,3.9131318667106993E-2,1.1200257357309937E-2,2.6008430522191046E-2,1.9125575697502527E-2,8.2967772493140694E-3,1.0778429437109369E-2,7.6211443613668786E-2,7.689709667458404E-2,1.1969928568226989E-2,4.6286212099984399E-3,1.7909727928422558E-2,0.12814233025334112,2.6770617339137028E-2,4.9504515228099136E-2,2.1348518632665514E-2,2.8037470003456452E-2,0.12104049984108761,0]
[null,"Manufacturing: Electrical machinery and apparatus not classified elsewhere",5.3148551992807959E-4,8.8646768517507621E-3,7.495480034967934E-4,6.6125446423502239E-4,1.5320221968370977E-3,1.0166923545500074E-3,5.1569896599906184E-3,1.7003615169104338E-3,1.2388490595641726E-3,3.4285134840528397E-3,2.8397640254878825E-3,2.0511287102549652E-3,4.7031302569892517E-3,1.6371015696236156E-3,1.012114844535309,2.0769619619563614E-3,4.3473035021608887E-3,1.9395365419714924E-3,1.6225999356970805E-3,1.8818775271258576E-3,5.2400497382325295E-4,9.3998551583492193E-4,3.1142477282344837E-3,1.6619502279651298E-3,6.4898161181445541E-4,3.8761632773484704E-4,4.5482783919818335E-3,2.2419464696735256E-3,3.0370781470011052E-3,1.109975261415925E-3,8.8514242600903361E-4,9.2621061361827979E-4,2.8278509264989147E-3,0]
[null,"Manufacturing: Motor vehicles, trailers and semi-trailers",4.0417526282650421E-4,1.2205100214361237E-3,4.2088736497824727E-4,4.7615156422930728E-4,7.983563853064744E-4,5.7629092780078685E-4,9.4942143163530561E-4,6.8320534699847963E-4,6.3910821000539317E-4,6.7878106118368024E-4,1.417130396482335E-3,1.09281682546639E-3,9.2377728377052496E-4,6.970205504175643E-4,6.8940168525092607E-4,1.1070088423950093,2.4499186618024047E-3,7.191418489270791E-4,9.6376755147323516E-4,5.5514222357951255E-4,7.0292405305901699E-4,4.9078309210420876E-4,4.9926318615339674E-3,7.4746341094822843E-4,3.2412475483287678E-4,1.534615593729512E-4,1.6164772513553805E-2,1.5847171241104357E-3,1.5728825218869805E-3,1.0125084549695276E-3,6.4410254744214611E-4,4.8370211100378675E-4,8.3868346186257716E-4,0]
[null,"Manufacturing: Other transport equipment",2.8098071400991288E-5,9.6175700241816578E-5,3.5970985519399489E-5,2.1065182514172808E-5,3.8859466528622742E-5,5.0279852163348103E-5,7.3051264576405736E-5,6.9171042011427031E-5,9.3167879443913835E-5,4.3319944524266135E-5,9.9794291933928163E-5,1.3971111305911612E-4,2.4599008903953938E-4,4.8126885305640739E-4,4.3185688987147782E-4,1.8221342026717929E-4,1.5660132280000427,3.8157402179371716E-5,4.0465726154625992E-5,5.7629795086761627E-5,3.3615785370971635E-5,7.8549871572024347E-5,1.1049334849612137E-4,1.2755899017579533E-4,4.593577100828969E-5,2.3306631810828871E-5,4.5313317088752978E-5,6.1934019668995077E-5,1.356187353259631E-4,8.8911896380886133E-5,3.9304848953572319E-5,6.3658775745836945E-5,1.5660003414276198E-3,0]
[null," Manufacturing not classified elsewhere; recycling",3.5812308519717452E-4,6.7908130858805517E-4,4.5998874179516781E-4,2.0124094996328231E-3,1.0670909971726681E-3,1.4130544698907142E-3,6.7591336171413151E-4,9.4580386857963318E-4,8.7237860053834403E-4,6.0234122410600399E-4,1.118971065282941E-3,1.7783283298196031E-3,1.5867323838893866E-3,1.3123948810774874E-2,6.5732472199176275E-3,3.0157048826434762E-3,2.9812239705482371E-3,1.0342259710927517,5.4053213285693718E-4,8.7103876348986321E-4,9.344859023749021E-4,3.2097893701196396E-3,1.4245214370501278E-3,2.9002648791265529E-3,1.2345614597969741E-3,3.5867166090027664E-4,7.4567368582467383E-4,4.368550774290372E-3,3.1539708948027027E-3,2.7351541994973232E-3,4.5583369369562952E-3,1.148001066747539E-2,4.0853094379881142E-3,0]
[null," Electricity, gas and water supply",1.6098268968974486E-2,2.9932114138319321E-2,2.7998269366536963E-2,2.8278993986760981E-2,6.9321748977087705E-2,4.267782489995868E-2,2.6971222489936011E-2,4.5320204008901077E-2,3.1336602096130046E-2,4.1766175003608755E-2,0.11285849772601045,8.4327414796675271E-2,5.3824005920099581E-2,2.7882018451325531E-2,3.7897269143693194E-2,6.7181025444185014E-2,6.7991704659729937E-2,4.9851775071306247E-2,1.0765036058017576,2.467511558273042E-2,3.8322453443958862E-2,4.5081321065996528E-2,2.6692263454494377E-2,3.4592280723932584E-2,3.265565926513711E-2,8.6800309233578139E-3,3.2698963628231832E-2,5.6547107644342384E-2,6.9236918087641611E-2,3.7172341420250096E-2,5.3258215654736374E-2,6.0641713616092045E-2,5.3800646047673754E-2,0]
[null," Construction",2.4975661163134408E-3,2.4742047382727228E-2,3.7902364319872513E-3,3.595780077666685E-3,6.8284996278547231E-3,5.3509737617935546E-3,1.5228685516725462E-2,7.064196305043016E-3,4.8202693181977046E-3,1.0465021519977639E-2,8.7922766025367149E-3,6.8485787905399652E-3,6.7238997801462802E-3,3.4746071297463012E-3,6.3826577143720441E-3,6.8494209806957704E-3,1.4136465970005738E-2,8.2254826553457942E-3,6.8502359290798318E-3,1.0120655390629478,4.9375240385002711E-3,5.9111600475852339E-3,9.3021745569754604E-3,1.0901264526583434E-2,7.0787758164900273E-3,9.1281125568787841E-2,6.117329203303332E-3,4.4524823617711189E-3,1.0952798732795444E-2,1.6937397974651734E-2,2.2577219243698429E-2,6.8232618423319418E-3,1.6517478223853473E-2,0]
[null," Wholesale and retail trade; repairs",7.3055311538415366E-2,8.3105746588386126E-2,0.15674774583739567,0.22095568009112168,0.20068023955878225,0.19270412343934323,0.19818688464451814,0.21349154116132277,0.2245740304142507,0.15694112971400517,0.18461275271949865,0.18151827618152155,0.15841089158632379,0.26617803891289327,0.24046409680933528,0.22216366788182548,0.15536978655850106,0.18000166259695904,8.7056537941366086E-2,0.11035985539876944,1.0523266601731698,0.17980098331171851,0.14675984427856237,5.9467810020893061E-2,4.0967444560875532E-2,2.8009618386352051E-2,0.1526864529884121,8.5119408490691356E-2,0.10886386952906091,6.292598883020116E-2,6.4262140082346958E-2,0.14584157340251486,9.6993097466979039E-2,0]
[null," Hotels and restaurants",3.7778631650433711E-3,6.4419531880560779E-3,4.7698496101454451E-3,6.4533384918421472E-3,6.953342385316484E-3,6.1227989791616888E-3,7.1174258926417463E-3,1.1548033790790791E-2,8.5842758363334614E-3,5.2330985135640605E-3,1.4349014635793267E-2,1.039100245123019E-2,7.4049913541288075E-3,7.7901491499649906E-3,7.1605923214667589E-3,1.238681375475021E-2,1.2258001423798463E-2,8.2552289805522816E-3,2.9831258721340643E-3,6.2843539512545754E-3,1.4243324862991071E-2,1.0058117258208503,5.1421382816826018E-2,6.6192870029878354E-3,2.8270893209390122E-2,4.4922351685385041E-3,1.787076927633607E-2,2.5724479857898129E-2,3.8155756403863497E-2,1.931223551093425E-2,1.9805138676624711E-2,2.0840692905455791E-2,3.1192629111395045E-2,0]
[null," Transport and storage",1.0672365331015541E-2,1.187944935554067E-2,2.1519019162732859E-2,2.6944383569042062E-2,3.4617699437636672E-2,3.1386741922146778E-2,2.580646661191047E-2,3.1207061815744622E-2,3.1786128123746586E-2,2.1922338494539693E-2,3.6708755804702307E-2,3.3263435171920111E-2,2.6349361308505626E-2,2.9362039861313201E-2,2.8581078458377984E-2,4.4041621982239106E-2,2.7218321432565862E-2,2.5211462815787643E-2,1.2131776793860339E-2,1.5613811122836727E-2,1.0800360114100191E-2,2.1297172969460033E-2,1.0187250372341365,7.6437836436387286E-3,5.0405409160425279E-3,3.6567466993368777E-3,2.8067054228073665E-2,9.6802672239112326E-3,1.4704453345269177E-2,8.9279853296911453E-3,9.6986503355240856E-3,1.9851654027534422E-2,1.921757847336563E-2,0]
[null," Post and telecommunications",2.850665500782534E-3,3.7713324784628098E-3,4.5652266513295176E-3,7.4245878183910831E-3,8.9483784822246663E-3,6.8471036193663987E-3,5.8076353994097728E-3,6.9442170707547596E-3,7.0372238516016204E-3,4.9745322408278518E-3,6.390096796838495E-3,6.2361646920729465E-3,9.0311320722583372E-3,7.9119443817369153E-3,1.1385874626636448E-2,8.0943514117860858E-3,1.2047216674958E-2,6.8867523327479354E-3,2.6472647468766038E-3,5.0395923009641155E-3,2.2494480866232684E-2,5.7550894504230059E-3,6.8915808929929673E-3,1.0277003279103853,1.5269508768531649E-2,2.0016078641754255E-3,6.4936287137710236E-3,1.4014126840810335E-2,1.5863125483021722E-2,1.29531957015597E-2,8.5282116630660525E-3,7.5579330156881359E-3,1.3765547480118323E-2,0]
[null," Financial intermediation",2.0590112846504093E-2,2.4716448436151166E-2,2.5106898076187052E-2,3.787840480576448E-2,4.5258941788155836E-2,3.0819565090900451E-2,3.5270832959441598E-2,3.7547781356566973E-2,3.5769159208986559E-2,2.4712039366506355E-2,4.5652163527870708E-2,3.6882887174582678E-2,3.5360152666371006E-2,3.3833092074760575E-2,4.8490047175839823E-2,4.4853353189958776E-2,6.4768894925448378E-2,4.4032610529946066E-2,2.3240261418593405E-2,3.2977119591766905E-2,7.6672572830815411E-2,3.0248496154865193E-2,4.6953529167055988E-2,6.4323440300205134E-2,1.0570573511638452,2.0209956863054754E-2,3.7043363308970463E-2,2.708943811532832E-2,3.3120772185778302E-2,8.0634466069724409E-2,2.4369903858875275E-2,2.4678235609270238E-2,3.5164027535246431E-2,0]
[null," Real estate activities",4.2556477413243773E-3,1.2340622501714046E-2,6.6403341092235663E-3,9.869071225673029E-3,1.3353246400469082E-2,1.577550987031302E-2,1.0601473114928156E-2,1.3022592230275517E-2,1.0722186453716177E-2,1.0335871291178359E-2,1.0234236398778249E-2,1.3233070723534647E-2,1.5066465156089984E-2,1.1793248582877048E-2,1.7690695199163331E-2,1.4235777279395869E-2,2.3579615878554405E-2,2.2164452847307246E-2,4.1439630820054888E-3,7.122846574279371E-3,1.79648957080593E-2,1.6512548352262093E-2,2.3349016212230223E-2,3.9168180705651139E-2,2.5598132783917912E-2,1.0059723422501523,1.8288224797452676E-2,2.1374385507327232E-2,4.0836166412700214E-2,1.4595681285936286E-2,1.6169098131197053E-2,1.0686674528072737E-2,5.8261609412993735E-2,0]
[null," Renting of machinery and equipment",6.5858740697327632E-3,1.8887237646364654E-3,3.9449784973854263E-3,3.0196805345707807E-3,7.6910902316677521E-3,3.5900469533587695E-3,2.278877514202153E-3,3.1964142354940282E-3,4.4382574214393393E-3,2.5256638834828225E-3,3.5648081195065475E-3,5.2906235205079089E-3,3.3067958929977547E-3,2.5173995118156025E-3,2.4103468227759644E-3,4.4885784489063383E-3,6.8413510992055594E-3,3.5761314342119201E-3,1.0340398394997445E-3,5.55221979137122E-3,3.9904444927586821E-3,3.5714515390345494E-3,2.9360686951258753E-2,2.03861510934427E-2,4.5846706442298959E-3,9.211492076211668E-4,1.0293010238552278,3.6477287060672596E-3,4.8306453080763931E-3,3.9378442670298126E-3,5.1351331793831655E-3,4.1325414142157606E-3,5.7742128645815252E-3,0]
[null," Computer and related activities",7.8729965628647133E-3,3.1781011769084586E-2,6.4946413950145339E-3,5.3559973380995843E-3,1.0529013434346524E-2,9.7090776777572392E-3,2.0652970088125749E-2,9.5938940368217492E-3,9.1656350924831376E-3,1.322376651488622E-2,1.527196241934338E-2,1.232834023365297E-2,8.7910693112874996E-3,8.4413333637372925E-3,7.4199263765318641E-3,2.2855536457229361E-2,2.2947149829563643E-2,6.8696475579101898E-3,5.9820973469859283E-3,7.79317552670096E-3,7.730052269706765E-3,8.2031774827727305E-3,2.2229298485831966E-2,4.7334949117403241E-2,2.7936948579318194E-2,3.8952050139027432E-3,1.0279361230569229E-2,1.337557562484776,3.5493608719911203E-2,4.6629133309031665E-2,3.2176169861288711E-2,1.4643073934150578E-2,3.2207337516558465E-2,0]
[null," R&D and other business activities",3.3178927956544708E-2,5.587318510987202E-2,2.3167866473358389E-2,1.6979813162625857E-2,3.4642010320945146E-2,2.0238912183564609E-2,3.6530880680652071E-2,2.5618744152249542E-2,3.40773279926182E-2,2.5904807062598355E-2,2.2879177367223207E-2,2.0856587200681277E-2,1.9035906430570453E-2,2.0955656929444639E-2,1.6597581273252986E-2,2.7681734111523675E-2,4.5726461877929572E-2,1.7260416447058145E-2,1.1772081055091263E-2,2.3737905485702447E-2,1.7103975843259431E-2,2.6208529903947085E-2,2.900732635413223E-2,3.2841119881250831E-2,3.2281458145621278E-2,9.3032746876719613E-3,2.0314684404484577E-2,3.5874900870147934E-2,1.0548111038866437,4.7441289443660474E-2,2.840094724757429E-2,1.5971168124758361E-2,4.9937966802299255E-2,0]
[null," Public administration and defence; compulsory social security",1.7365111457962168E-4,2.3688102337569017E-4,2.5830476306546113E-4,2.8699170963131823E-4,4.2192289565652792E-4,1.0130581005187444E-3,2.5568832401459012E-4,5.6502480253487603E-4,5.8233963956476028E-4,2.6250981867771223E-4,3.2942147016195932E-4,6.5206985102325785E-4,5.5253616091875668E-4,4.5334662984691055E-4,4.5495459450177478E-4,4.0154499350584361E-4,4.6881288729471214E-3,4.686955350731649E-4,1.1179988871695202E-4,2.2472737350777799E-4,4.1832790656216179E-4,8.8133670052707269E-4,5.9121932942574138E-4,1.2593308950206634E-3,5.5112533449101048E-4,3.024733405198018E-4,3.7292596682843136E-4,5.7892496241942245E-4,1.4202673311459729E-3,1.000955981364281,4.1240284228902306E-4,4.8964412142515109E-4,2.731009013359165E-2,0]
[null," Education",3.4501139736465506E-4,7.3527785350099362E-4,3.1103813919295569E-4,4.5412213262421977E-4,4.7060756047494136E-4,5.96427657852736E-4,5.3961229280723687E-4,4.9654183432151062E-4,5.3505316822768988E-4,1.0436882566241497E-3,4.240322587023959E-4,5.0321894938030597E-4,4.8435126597489402E-4,8.3363302993329409E-4,5.9980766710307509E-4,3.4998571198893592E-3,2.3207085685883529E-3,1.8392204410648016E-3,1.9072823206728117E-4,3.923551333399472E-4,5.1664321931973632E-4,6.0931386799032425E-4,6.4086153784570802E-4,9.3136311960854076E-3,8.884517067017381E-4,1.3228321148777756E-3,1.0462238098960369E-3,4.2607299217164614E-3,6.7181716960934426E-3,8.6492492847423927E-2,1.0006079993524801,4.5853325946614235E-3,1.1081864972305488E-2,0]
[null," Health and social work",3.0303265351116515E-3,2.9635580482037169E-3,1.5895920601940578E-3,9.9001531378235287E-4,2.1502099946095034E-3,1.6609799282437012E-3,1.9176969032361265E-3,1.4441904528656052E-3,1.4312862312111246E-3,1.3149065464290557E-3,1.1470839922274293E-3,1.2298515096858301E-3,1.0598178856147812E-3,1.489144385133807E-3,1.1002893972431511E-3,1.3035404886463761E-3,4.5595614016110493E-3,1.582300677891231E-3,5.9091447821036508E-4,9.6207528482784323E-4,8.7332646692518949E-4,1.631814692024172E-3,2.0808697893040578E-3,3.1472690882477102E-3,2.5792337540485131E-3,2.0395934557768582E-3,6.2689110171953305E-3,7.8885535358920733E-3,1.8839734460301849E-2,7.0644952255608379E-2,1.7840616039020103E-2,1.0039909003716614,2.0816839721703652E-2,0]
[null," Other community, social and personal services",3.8483679992462922E-3,5.8042100576202087E-3,5.3302384516108981E-3,6.3989491630321001E-3,7.7054038408029928E-3,2.3584851915752249E-2,6.7331054098097457E-3,1.6289383478530973E-2,1.5427740555226945E-2,6.1837525693812876E-3,9.3303920586236544E-3,2.2091546696826614E-2,1.8787013832784801E-2,1.3167523714497751E-2,1.3409918960494328E-2,1.0686179386488083E-2,0.1821134636101131,1.1435955990217428E-2,3.0125009746022114E-3,6.2248127588647407E-3,1.4543026080807089E-2,3.0842049376962329E-2,2.0267485594019641E-2,4.7625267833006142E-2,1.9551878854781816E-2,1.1216000697540134E-2,1.3330673801229667E-2,1.7540109674649661E-2,5.169366283403181E-2,3.3771912515318803E-2,1.1299298506931401E-2,1.4715938308654895E-2,1.0955674754830864,0]
[null," Private households with employed persons",0,0,0,0,0,0,0,0,0,0,0,0,0,0,0,0,0,0,0,0,0,0,0,0,0,0,0,0,0,0,0,0,0,1]
[]
[null,"Total Requirements - Type 2 "]
[null,null," Agriculture, hunting, forestry and fishing"," Mining and quarrying","Manufacturing: Food products, beverages and tobacco","Manufacturing: Textiles, textile products, leather and footwear","Manufacturing: Wood and products of wood and cork","Manufacturing: Pulp, paper, paper products, printing and publishing","Manufacturing: Coke, refined petroleum products and nuclear fuel","Manufacturing: Chemicals and chemical products","Manufacturing: Rubber and plastics products","Manufacturing: Other non-metallic mineral products","Manufacturing: Basic metals","Manufacturing: Fabricated metal products","Manufacturing: Machinery and equipment not classified elsewhere","Manufacturing: Computer, Electronic and optical equipment","Manufacturing: Electrical machinery and apparatus not classified elsewhere","Manufacturing: Motor vehicles, trailers and semi-trailers","Manufacturing: Other transport equipment"," Manufacturing not classified elsewhere; recycling"," Electricity, gas and water supply"," Construction"," Wholesale and retail trade; repairs"," Hotels and restaurants"," Transport and storage"," Post and telecommunications"," Financial intermediation"," Real estate activities"," Renting of machinery and equipment"," Computer and related activities"," R&D and other business activities"," Public administration and defence; compulsory social security"," Education"," Health and social work"," Other community, social and personal services"," Private households with employed persons","Personal Consumption Expenditures"]
[null," Agriculture, hunting, forestry and fishing",1.1635957549725964,7.20266630194486E-2,0.4924155848289834,0.25278295002710999,0.60285171990136988,0.33407099636643539,6.4132992841064523E-2,0.19569969061371262,0.16657417422563545,7.0509284124332383E-2,6.579178163979596E-2,7.3057104109051044E-2,7.9949673160129936E-2,8.4407868509133357E-2,7.9449730700512644E-2,8.0413463232029955E-2,9.1020430678104863E-2,0.1567465645959914,5.8260203632706106E-2,8.468385270110354E-2,6.4024854382089658E-2,0.24553212093173787,0.10092951903501278,6.1723234330712952E-2,6.4367623308171945E-2,2.1445452078519368E-2,8.5050829127290048E-2,9.7854441958795085E-2,0.11439007946117383,0.18743252083212081,0.17774670795617695,0.17534106659089838,0.17984069037253458,0,0.27339637355217056]
[null," Mining and quarrying",7.2088741738388876E-2,1.1606781716933943,7.9030244779710088E-2,6.7572663807058814E-2,0.10747868240510421,8.977496899275543E-2,0.66811379211462119,0.17542263353352858,0.11125810346624435,0.39514905118503479,0.26126992647630504,0.17842308527986056,0.12509736902472424,7.3000600892590195E-2,7.7044398842385439E-2,0.1568270903352311,0.12955997250654971,8.9644614571314507E-2,0.18210255420440966,0.19239927008305677,7.0859531955063962E-2,0.1119140083899885,0.20024423938047986,7.6754616962857097E-2,7.6333382567337085E-2,4.1622951320868046E-2,0.18993877738916745,8.0656023908173488E-2,0.12116270624264933,0.11088014841097318,9.945555593623176E-2,0.11157023576905399,0.11303640163469979,0,0.10612028064566727]
[null,"Manufacturing: Food products, beverages and tobacco",9.8418687865541879E-2,5.7706740557021845E-2,1.1229935027108662,7.1567247884429849E-2,7.7583549294867743E-2,7.166106725079599E-2,5.0638378934497734E-2,0.1138377917785051,8.1337656376169881E-2,5.1598307379533227E-2,5.3757402077831445E-2,5.811995894783277E-2,6.000101762082545E-2,6.7755694534782501E-2,6.3610425610269611E-2,5.8066720978229645E-2,6.9268067836664976E-2,6.9016012644627325E-2,4.6965490201384769E-2,6.2853241276309077E-2,5.3128185201843516E-2,0.3227594250928742,9.2779168445740329E-2,4.9561124035869764E-2,5.4520209851529326E-2,1.6814904940890045E-2,7.8087906482007335E-2,8.1192097898335799E-2,9.1008126629236671E-2,0.15070834974029892,0.13320698242834095,0.13605095660123928,0.14489339398930323,0,0.22586986161182573]
[null,"Manufacturing: Textiles, textile products, leather and footwear",1.2175775217936226E-2,9.3771910067040991E-3,9.1652478624229729E-3,1.2492559941648522,1.3115449033108711E-2,1.1168276483177902E-2,7.9947793101158172E-3,9.8223162132792131E-3,2.4648775175788038E-2,1.0591709521811734E-2,8.3214596022046627E-3,9.4442633357900447E-3,1.5718614361815073E-2,1.1887936097663095E-2,1.0733562858536995E-2,1.2312142492464647E-2,3.2191867129136846E-2,8.7106106868783686E-2,7.4242265345785523E-3,1.0497066268987472E-2,8.4466453227688976E-3,1.4676830468087614E-2,1.3494306981271116E-2,8.918515432088327E-3,8.1411050933746839E-3,2.7854597179149706E-3,2.8671902955934352E-2,1.2850771618469033E-2,1.9790572118158795E-2,2.4752382669367301E-2,2.0943973522715053E-2,1.7981678806583627E-2,3.4271669246142368E-2,0,3.5715597513798311E-2]
[null,"Manufacturing: Wood and products of wood and cork",6.7343215363973251E-4,1.1104599000476775E-3,7.0108975007372786E-4,7.4118973813544313E-4,1.0373318596729537,7.8826477467848683E-4,8.4363889714997482E-4,2.2425381650880583E-3,1.2435922077774408E-3,7.8438580132351369E-4,7.0140114806926208E-4,7.2564148995150294E-4,2.4784377216147671E-3,1.9411576384260674E-3,1.2846961798782838E-3,1.4746439941068972E-3,3.880315281009935E-3,5.0715210461776919E-2,5.6635937028861423E-4,1.464093844323594E-2,5.7599781894410922E-4,1.0587452616931644E-3,9.7514556609114083E-4,7.5150863318015904E-4,5.8280916660663614E-4,1.6336816719290648E-3,1.2940159716160608E-3,9.5118591260292976E-4,1.1599383115947692E-3,1.6772370788539477E-3,1.6298369247700678E-3,1.8766191730615282E-3,1.6437261867219501E-3,0,1.8208675801158584E-3]
[null,"Manufacturing: Pulp, paper, paper products, printing and publishing",1.3750237800577894E-2,1.3084001878202054E-2,1.5907452435999721E-2,1.5509936726808997E-2,3.1126743275955101E-2,1.4631353790172079,1.5345236309031642E-2,2.4003030238136748E-2,1.9131325552303013E-2,4.894265397947592E-2,1.7016159151129244E-2,2.3524388981932851E-2,2.0191165920685025E-2,1.6852785061170262E-2,2.0292845668937354E-2,1.9462820025628744E-2,2.1573996474278077E-2,3.0218371759199798E-2,1.1387123809656391E-2,1.670414564559829E-2,1.8285012380340616E-2,1.7477252384197936E-2,1.9822256370847013E-2,1.72683686053253E-2,1.7936870978477296E-2,6.324174263367178E-3,1.534997918197571E-2,2.9388208775825167E-2,4.0764288597456413E-2,5.559634500889292E-2,0.12316870771586926,2.9849537198906838E-2,4.9745277844768447E-2,0,3.5068036367467678E-2]
[null,"Manufacturing: Coke, refined petroleum products and nuclear fuel",0.1109324491865053,0.16473696919783465,0.125781814050338,0.10324763023653107,0.17165805148074212,0.13946107195838683,1.1852489943047573,0.14720374000675279,0.12855988410635769,0.16512670545875074,0.23432363368119735,0.18470166045040298,0.14348237461068616,0.11067323360677569,0.11248999867137201,0.19237054448545707,0.17661970623712087,0.12065584866088867,0.31398851056582461,0.15518399339002195,0.11593380900251075,0.180308959089193,0.33977299274205058,0.12405313096273463,0.12536334762669751,4.1924674356826348E-2,0.32440614277588431,0.1272109519021187,0.18565161053837859,0.16475757974081418,0.14668884917858033,0.14478021749241568,0.1571531111795004,0,0.15063476769505044]
[null,"Manufacturing: Chemicals and chemical products",8.4409940136523962E-2,6.8483778789966532E-2,5.816954887149671E-2,7.919045206482582E-2,8.0285295690886951E-2,0.10503802832845928,7.8325328226540175E-2,1.3796159678751092,0.54323733795757545,5.4369325037843606E-2,5.3042688726548895E-2,6.013863955159756E-2,8.8627572335893551E-2,5.3916995198746438E-2,4.9508806078883132E-2,0.11595688373395743,8.0636297164780421E-2,0.11937125913250998,4.4164569719429426E-2,5.1631355636963111E-2,3.2426198915853216E-2,5.9243613681526468E-2,6.6125974207522753E-2,3.6037105591222342E-2,3.360461706012547E-2,1.4003886334619516E-2,5.5256646994980771E-2,5.7268707107527787E-2,0.13776190372145489,0.10345268982417241,9.0437242596012657E-2,0.3448987547388811,0.1055948366702236,0,9.7887610656654453E-2]
[null,"Manufacturing: Rubber and plastics products",1.1722250852226114E-2,1.253413480256476E-2,1.8069246271440742E-2,1.0028894677948257E-2,1.6453071432692801E-2,1.475137141450036E-2,1.0096112661629198E-2,2.518188145245142E-2,1.0548228454908888,1.0732131295346236E-2,8.6089813695128248E-3,1.3470674165533759E-2,5.8194359918486586E-2,1.8379523370317945E-2,1.6503555593880243E-2,0.13698079404629851,2.1823129070041768E-2,7.3375463325753773E-2,6.3688711562306178E-3,1.6870317693875699E-2,7.6877032276894746E-3,1.3666069540069431E-2,3.5218620021953514E-2,1.2495030788568411E-2,7.8917465159232293E-3,3.0433726672265972E-3,1.5519155843029393E-2,1.1211404361594932E-2,3.1201258401491332E-2,2.056647416905712E-2,1.7382379182612286E-2,1.8939427510614761E-2,2.1549288924039543E-2,0,2.064427684903206E-2]
[null,"Manufacturing: Other non-metallic mineral products",7.3101674991856375E-3,1.0717589867449466E-2,8.7244688602073663E-3,7.5495360702288348E-3,8.0145801278011953E-3,8.329940581345497E-3,8.5358930400939517E-3,3.1981657364405183E-2,1.6055328207625359E-2,1.1081445211063476,1.077810950216071E-2,1.0071297019253593E-2,2.2826772877467035E-2,1.0956846708634765E-2,9.2691943103744446E-3,1.6359690576359342E-2,1.2433641547977707E-2,1.9504986468251176E-2,8.0060209642435157E-3,9.9440418900796537E-2,6.1730005927662385E-3,1.3015931177442572E-2,9.4864008361985851E-3,7.5078120538979651E-3,6.3691104613822127E-3,3.58872726184781E-2,7.7110834482949451E-3,8.8910677396362488E-3,1.2484445017284832E-2,1.7162192633037563E-2,1.655898969960996E-2,1.8180680222361387E-2,2.8693269718130552E-2,0,2.0450466214335914E-2]
[null,"Manufacturing: Basic metals",1.8965260593713215E-2,4.4102321963391956E-2,2.3573856969323709E-2,1.6822662656432827E-2,4.6357428286659057E-2,2.4432004100992732E-2,5.5579912213520474E-2,5.3307451488807785E-2,3.0245921726256911E-2,3.6336390996170628E-2,1.8887981026231315,1.0229050579914054,0.4827887656354215,4.3243504140256357E-2,9.9592959556651178E-2,0.56013154609194205,0.30172972858332564,9.771298565999105E-2,2.4614188671862876E-2,0.1415470700246676,1.3832466561637216E-2,3.4133325369710345E-2,4.1898390686903528E-2,1.9990813689629135E-2,1.4633950790508769E-2,1.7200555782638106E-2,4.0954670269089423E-2,2.0642555343911392E-2,5.0842756234331307E-2,3.2256967790975324E-2,3.04790025828248E-2,3.2455237663130125E-2,3.5280647350280005E-2,0,3.4716311699077511E-2]
[null,"Manufacturing: Fabricated metal products",9.4755303035177485E-3,1.6639317963056729E-2,1.468877263084053E-2,7.3703050559985935E-3,2.813564475353264E-2,1.1953176068192583E-2,1.5561460919668594E-2,3.9059228621297036E-2,1.8605060454434282E-2,1.051056893245818E-2,4.0442516279552948E-2,1.0515992179973708,8.1889395361660927E-2,1.1891241111215946E-2,2.1350725438011864E-2,2.9504867880226864E-2,3.1279908391064586E-2,2.6487742079360097E-2,9.5537938059561608E-3,2.9230776576089228E-2,5.3489683669126539E-3,2.1425781872120655E-2,1.7129911323908124E-2,9.2857854824438448E-3,5.7151665742762835E-3,4.9076509712022882E-3,9.5860207769759825E-3,7.685381144060738E-3,2.4498467001092636E-2,1.2130399305192512E-2,1.2401498873448623E-2,1.6819510548699068E-2,1.3686322955960121E-2,0,1.2373575114129974E-2]
[null,"Manufacturing: Machinery and equipment not classified elsewhere",4.1897989921870181E-3,2.808298045554283E-2,3.9913600192195732E-3,3.942820304173574E-3,2.3080084172127372E-2,5.0942102582264169E-3,1.9032916231001257E-2,7.5596420066322096E-3,5.3534534073460009E-3,1.2256107036840004E-2,1.2374872080892513E-2,9.5684872197528397E-3,1.0293314585474327,5.7423325370763957E-3,1.2612016935406228E-2,1.2236338372252359E-2,3.5305485924172514E-2,1.1860918538658699E-2,7.7888625631789736E-3,1.0172564511816929E-2,3.153969601285157E-3,7.5208141146942183E-3,2.0433595122413873E-2,4.5698857355732777E-3,3.3911110769283925E-3,1.8852599486875884E-3,1.4783039631842507E-2,4.5000608052963064E-3,1.1440668997582296E-2,6.1690866083473047E-3,5.5358567262345677E-3,5.7650747281424728E-3,9.8662911967228352E-3,0,6.408436789864456E-3]
[null,"Manufacturing: Computer, Electronic and optical equipment",2.4564530577465892E-2,4.0574663720518205E-2,2.1267562556685032E-2,2.6245945488061088E-2,2.9498280162557108E-2,2.77856597763242E-2,3.2344762318849161E-2,2.8015066450113625E-2,2.6831720698705524E-2,2.7761217461258456E-2,2.96047897466926E-2,2.9338815990852637E-2,0.11422564835891612,2.1233860704595742,0.95865847800695558,0.2228519267463252,5.8462269928811053E-2,2.9806462713049424E-2,3.992140122668044E-2,3.7561633816459175E-2,2.3129484162880173E-2,3.0449674455935789E-2,9.65876353031664E-2,9.1277331536226469E-2,2.6333069931421892E-2,9.3239698705825571E-3,3.5240750915198925E-2,0.15019043147550851,4.9523315515377211E-2,9.3621351936459096E-2,6.024872973233223E-2,5.9156257028152331E-2,0.16157438656571929,0,7.0146460775968172E-2]
[null,"Manufacturing: Electrical machinery and apparatus not classified elsewhere",8.72053388252398E-3,1.6064252568626852E-2,7.2699037174369643E-3,8.9394175954918449E-3,9.0612651910764227E-3,8.7567692502377621E-3,1.1275015532934659E-2,8.7076152229159359E-3,8.5347253906782952E-3,9.8787823820032216E-3,9.2713962750758088E-3,9.1681643304434082E-3,1.2024277861371998E-2,1.0209136585629375E-2,1.0201733867649379,8.7420851656581956E-3,1.2716230707696086E-2,9.9947003094112714E-3,7.6459268512888865E-3,9.8633796407969748E-3,6.9455122623233792E-3,9.4562357187384354E-3,1.1935689708343465E-2,7.8875692948343814E-3,6.8672004094337026E-3,2.4203683952899397E-3,1.2051378876287898E-2,1.1787206382160874E-2,1.2887378434276361E-2,2.0209428255339664E-2,1.7726167503652569E-2,1.4398432430770363E-2,2.0376141373430006E-2,0,3.0368429158630961E-2]
[null,"Manufacturing: Motor vehicles, trailers and semi-trailers",6.1770328641666556E-3,6.2958403361806636E-3,5.017402537435856E-3,6.3118304906950541E-3,6.106085162457477E-3,6.0326467537497944E-3,5.2623147743026399E-3,5.6229585429864084E-3,5.7823255011484357E-3,5.2258886357708914E-3,5.9511000932113405E-3,6.1099606204249356E-3,6.0848095218432588E-3,6.7398640299029117E-3,6.3702591800636026E-3,1.1117074111964964,8.3495815889634926E-3,6.3976177017871965E-3,5.2099030034084984E-3,6.1816904019337589E-3,5.2297561733577833E-3,6.4943011496238516E-3,1.1211294413614707E-2,5.1362044174589781E-3,4.7076489524178191E-3,1.586447140264726E-3,2.1454072166769519E-2,8.313634063257979E-3,8.5168372246839999E-3,1.4476639757579153E-2,1.2516158411454153E-2,9.9809250703066146E-3,1.3209325007930811E-2,0,2.1408179479060874E-2]
[null,"Manufacturing: Other transport equipment",1.137489683084028E-4,1.7147750457842956E-4,1.0416869181274791E-4,1.0764814863470164E-4,1.1760932694415163E-4,1.3123486657943569E-4,1.3704092248511724E-4,1.4246131191855216E-4,1.6947691119169908E-4,1.1078459877235748E-4,1.6706402174429321E-4,2.1414961399353978E-4,3.2256343809571129E-4,5.7092548407548349E-4,5.16142796996736E-4,2.5192527872963162E-4,1.5661007602857939,1.2240797329195885E-4,1.0346490870230983E-4,1.4110992420980249E-4,1.0077961618551639E-4,1.6762303805841519E-4,2.0275857690338342E-4,1.9267398684827823E-4,1.1097336678257858E-4,4.4567592800110108E-5,1.2378974775713054E-4,1.6176980479552691E-4,2.3864499882515845E-4,2.8867690043710153E-4,2.154485031208713E-4,2.0456744191579571E-4,1.7495414257417145E-3,0,3.1762948268648344E-4]
[null," Manufacturing not classified elsewhere; recycling",2.5249204853533521E-3,2.5840672428278566E-3,2.1852551199485902E-3,4.2027863977355468E-3,3.0593058947642961E-3,3.4610553793967265E-3,2.2947244822020181E-3,2.7999019810976068E-3,2.8028453857055248E-3,2.3090628429726754E-3,2.8207614834250151E-3,3.6614744044087591E-3,3.523885871441573E-3,1.5392083319732778E-2,8.7055130924657918E-3,4.7792763002292536E-3,5.1956167678697592E-3,1.0363573430344346,2.1342861959795811E-3,2.9829200546343426E-3,2.6335972864717106E-3,5.4631633864481131E-3,3.7586482735009431E-3,4.5475448329329116E-3,2.8798833247679328E-3,8.9653170276529236E-4,2.7309713544479545E-3,6.8941976439147006E-3,5.7603305239281354E-3,7.7888116282001001E-3,9.0144211775719466E-3,1.5044719766162267E-2,8.7285339537049103E-3,0,8.0353943992204652E-3]
[null," Electricity, gas and water supply",3.8144822330690449E-2,4.9314809562224199E-2,4.5552368917511278E-2,5.0565462099936197E-2,8.9591974538828514E-2,6.3515657423208319E-2,4.3442169772687514E-2,6.4185130177142793E-2,5.0978558002640215E-2,5.9131586851170634E-2,0.13017373599485918,0.10348789579888774,7.3533997140356355E-2,5.0959648357880569E-2,5.9592473936310439E-2,8.5124867984424119E-2,9.0522527784415982E-2,7.1537884369105922E-2,1.0927196045820555,4.6162913000001859E-2,5.5610433295831194E-2,6.800876711670216E-2,5.0441346709401862E-2,5.1352890368682617E-2,4.9396345907398054E-2,1.4152605384291339E-2,5.2898808333158416E-2,8.2244853303447482E-2,9.5755893345408863E-2,8.8591882613024961E-2,9.8597617939395532E-2,9.6911624848923544E-2,0.10104414793151384,0,8.1757875190397955E-2]
[null," Construction",9.0429828600192899E-3,3.0496589468479499E-2,9.0018854020774888E-3,1.0212425280782898E-2,1.2846541160864039E-2,1.153753252508137E-2,2.0118756647591194E-2,1.2665017512080568E-2,1.0651783431095619E-2,1.5620650865005227E-2,1.3933009878468482E-2,1.2537147480243661E-2,1.2575612945225001E-2,1.0326140914510885E-2,1.2823762334122524E-2,1.2176781021166093E-2,2.0825657904464039E-2,1.4663886907238565E-2,1.1664615219621845E-2,1.0184450663610609,1.0070164543831719E-2,1.2718105641688772E-2,1.635305659889463E-2,1.5877333719964408E-2,1.2048930055640407E-2,9.2905882052038077E-2,1.2114475314199707E-2,1.2081904156321821E-2,1.8826035960866211E-2,3.22033817479387E-2,3.6038066297413351E-2,1.7591461314651734E-2,3.0543634747655663E-2,0,2.4273153105660403E-2]
[null," Wholesale and retail trade; repairs",0.15087212852290108,0.1515200532476397,0.21870773249261993,0.29961931435356798,0.27222722501689645,0.2662545679560307,0.25632371307452106,0.28007829887235391,0.29390343818682568,0.21823511310591817,0.24572964048434831,0.24914824169227712,0.22798044082098759,0.34763420457335237,0.31704077313098189,0.28549931441317666,0.23489591070306209,0.25654623492284773,0.14429348507788939,0.186204454397321,1.1133473350193681,0.26072705116355804,0.23058601133856435,0.11862704783349257,0.10005636096708377,4.7325940455993157E-2,0.22398501801708012,0.17582368947553548,0.20246681101347805,0.24441943865772328,0.22429477248002552,0.27386199446977921,0.26374655228069083,0,0.28857742552083138]
[null," Hotels and restaurants",2.1910345736674452E-2,2.2383510183332071E-2,1.9207453481662539E-2,2.4783142158437049E-2,2.3624860408607576E-2,2.3261152936770158E-2,2.0664176699566984E-2,2.7063744539245191E-2,2.4739065081804026E-2,1.9515513660681792E-2,2.8590163852284748E-2,2.6149796224409997E-2,2.3615737153012736E-2,2.6770654411245962E-2,2.5004103564962129E-2,2.7144966958596563E-2,3.0788778136602257E-2,2.6091259512729462E-2,1.6320190874590967E-2,2.3957280225889624E-2,2.8462055029999166E-2,1.0246687103619505,7.095413386169537E-2,2.0404274492283412E-2,4.2039494758920826E-2,8.9932272014767028E-3,3.4484401622958225E-2,4.6859934350439454E-2,5.9966642159547619E-2,6.1602924636895998E-2,5.7095136267012896E-2,5.0671366322460831E-2,7.0048678874670811E-2,0,6.7242857541524315E-2]
[null," Transport and storage",3.2567525706033031E-2,3.1129044421201461E-2,3.895257526565786E-2,4.9077811208486241E-2,5.4748729999665104E-2,5.208148170657876E-2,4.2164308419081427E-2,4.994244313089307E-2,5.1293203338454378E-2,3.916850260656133E-2,5.3905090878393604E-2,5.2292341755314727E-2,4.592400464060601E-2,5.2281196411051285E-2,5.0127302963841013E-2,6.1862244721612156E-2,4.9594426105362535E-2,4.6748654284909194E-2,2.8236420821904158E-2,3.6954052512859874E-2,2.7969623953504885E-2,4.406717697115077E-2,1.0423110362832582,2.4289298710502855E-2,2.1666269791047379E-2,9.0917411640244021E-3,4.8128187236412143E-2,3.5201547273951778E-2,4.1041323636215273E-2,5.9994430154606669E-2,5.4726708374469211E-2,5.5872500923699039E-2,6.6136660719589707E-2,0,8.1196446439694078E-2]
[null," Post and telecommunications",1.6903102047893824E-2,1.6125830394195417E-2,1.5754180590501685E-2,2.1629945630168245E-2,2.18685866357873E-2,2.0129103508781575E-2,1.6306189879295396E-2,1.8968689721681743E-2,1.9556973968946428E-2,1.6043216950795788E-2,1.7426800950950828E-2,1.8449023503975915E-2,2.159424778574422E-2,2.2621587408420948E-2,2.5214362178538733E-2,1.9531726885901476E-2,2.6408325965793438E-2,2.0709442431338966E-2,1.2983315474146951E-2,1.8735878735819632E-2,3.3513810550574133E-2,2.0369005536478333E-2,2.2029207170267687E-2,1.0383835126993848,2.5939994668788272E-2,5.489817748952827E-3,1.9368976225931502E-2,3.0393827302536931E-2,3.2766276328872725E-2,4.5727925975172126E-2,3.7427471480952407E-2,3.0676314279481892E-2,4.3878477224449236E-2,0,5.2112334045592013E-2]
[null," Financial intermediation",6.780926460833879E-2,6.6230168143654095E-2,6.2704144101009426E-2,8.5611404282168915E-2,8.8673567255579164E-2,7.5449887126255305E-2,7.0548191131716356E-2,7.7952546541354056E-2,7.7838161180938337E-2,6.1905155405255909E-2,8.2737818151276996E-2,7.7920669608380788E-2,7.7574872191187222E-2,8.3260596273823373E-2,9.4956683062137032E-2,8.3285347987356331E-2,0.11302525223393604,9.0479765749896301E-2,5.7971572694952025E-2,7.8999531831297418E-2,0.1136998455699028,7.9354337635716157E-2,9.7819147389506381E-2,0.1002211952667766,1.092912435184866,3.1931078063228036E-2,8.0307247556008252E-2,8.2128687666300632E-2,8.9918925471693445E-2,0.19076447502258723,0.12147751438396835,0.10236087446860996,0.1363498250888617,0,0.17510843772271448]
[null," Real estate activities",4.7870869389877765E-2,5.0685870540712441E-2,4.1368027376962734E-2,5.3958921941635367E-2,5.3454316451478953E-2,5.6999490293265981E-2,4.3186340450532879E-2,5.0343525017903568E-2,4.958033568085117E-2,4.469027918085109E-2,4.4489384702584137E-2,5.1138706679110968E-2,5.4059210264962181E-2,5.7448273519588519E-2,6.0610835604598089E-2,4.9734508386195746E-2,6.8152879934149549E-2,6.5066599418696247E-2,3.622445972251577E-2,4.9632668028772753E-2,5.2166118036284896E-2,6.1870460989675045E-2,7.0332393301523993E-2,7.2326093991547019E-2,5.871663191943801E-2,1.0167988666590111,5.8250058723005434E-2,7.2212847846584369E-2,9.3299286828090036E-2,0.11632018440415255,0.10586511762294504,8.2440303843225468E-2,0.15172455449608649,0,0.16174355190304562]
[null," Renting of machinery and equipment",9.229028035469827E-3,4.2125086862891915E-3,6.0495336667059857E-3,5.6915978002375061E-3,1.0121280846992575E-2,6.0882877789217677E-3,4.2535739175615138E-3,5.4581239729222988E-3,6.7931249963083763E-3,4.6075973466628475E-3,5.6407262889862338E-3,7.5877672288923396E-3,5.6698201990523448E-3,5.2841689023202573E-3,5.0113777251691687E-3,6.6398597758621494E-3,9.5425640061059004E-3,6.1760718807500527E-3,2.9781705515121103E-3,8.1283846923684705E-3,6.0630946596735794E-3,6.3202154369043587E-3,3.2207956660855783E-2,2.2395575021249062E-2,6.59170600987988E-3,1.5772543435072213E-3,1.0317227765329873,6.7286229045824403E-3,8.00999645062591E-3,1.0102515995540066E-2,1.0570859072072879E-2,8.4809290346799932E-3,1.1438220626285418E-2,0,9.8019245228142312E-3]
[null," Computer and related activities",1.5888599256679049E-2,3.8828099044097175E-2,1.2876894681490284E-2,1.3458827332096907E-2,1.7898785568391692E-2,1.7285218209395027E-2,2.6641414959447846E-2,1.6452732719304915E-2,1.6306983315621044E-2,1.9537417438037972E-2,2.1567371422041941E-2,1.9294635627599241E-2,1.5957153557113142E-2,1.6831810977669195E-2,1.530778708316439E-2,2.9379491029316078E-2,3.1138821496741249E-2,1.4754201358852505E-2,1.1877849003657948E-2,1.5605627842313697E-2,1.4015550760001855E-2,1.6539051817009928E-2,3.0863900574892519E-2,5.3428708337459968E-2,3.402346426929561E-2,5.8849029894299278E-3,1.762354455822741E-2,1.3469006518988234,4.5135277693097602E-2,6.5324056099785019E-2,4.8660498687033073E-2,2.7829951420730314E-2,4.9383951690768639E-2,0,2.9725219804864911E-2]
[null," R&D and other business activities",4.7083000459503963E-2,6.8097245626502989E-2,3.4238688695608643E-2,3.1035192404742416E-2,4.7425808370358077E-2,3.3380682212384855E-2,4.6918592603436338E-2,3.7516263773692542E-2,4.6464895996707778E-2,3.6856629844635926E-2,3.3799357240516047E-2,3.2940504023206314E-2,3.146638218171572E-2,3.5509997199901652E-2,3.0280069209300174E-2,3.899835506209888E-2,5.9935948192510712E-2,3.0937168138653923E-2,2.1999004921598543E-2,3.7289588069223903E-2,2.800696468447857E-2,4.0668153908045179E-2,4.3985131276168724E-2,4.3411512807116519E-2,4.2839286256182718E-2,1.2754656444912783E-2,3.3054095446100391E-2,5.2081666297131374E-2,1.0715357931674849,7.9869987802232173E-2,5.6995091931497377E-2,3.8845468120008671E-2,7.9732967622122522E-2,0,5.1562137885425373E-2]
[null," Public administration and defence; compulsory social security",3.6082413934155247E-2,3.1806832179083276E-2,2.8849893976359755E-2,3.6586520458271751E-2,3.343745643750342E-2,3.4953092784161005E-2,2.708307171071293E-2,3.1291648972303569E-2,3.2574566469189201E-2,2.8546770177541026E-2,2.8531960613547284E-2,3.1860084842255422E-2,3.265557686265276E-2,3.8041495904529286E-2,3.5791451435456374E-2,2.9627935861847272E-2,4.1385655712634029E-2,3.5790377907717351E-2,2.6523930825038455E-2,3.5223405321589234E-2,2.8576469360477266E-2,3.8224871029256452E-2,3.9273011616456126E-2,2.8558507622115946E-2,2.7817852074538563E-2,9.2160379737733621E-3,3.3273825286585519E-2,4.2434639945650762E-2,4.4613576377038486E-2,1.0847065830428664,7.4259857195327711E-2,5.9564984315346362E-2,0.10425888462674346,0,0.13316476733014201]
[null," Education",3.5162248561555802E-2,3.1345591056800369E-2,2.8033523247972918E-2,3.5650247037846576E-2,3.2482561500646247E-2,3.3504780498598452E-2,2.6551518483018784E-2,3.028916282628159E-2,3.1554806049560652E-2,2.8468186446002658E-2,2.7769293328302108E-2,3.0762597832270047E-2,3.1611549588569834E-2,3.7279208012154362E-2,3.4862174133053835E-2,3.1837847694202878E-2,3.790273353938764E-2,3.6087222756982965E-2,2.5800004481491782E-2,3.4327171453082471E-2,2.781885616466093E-2,3.6817709512400612E-2,3.8146835852820263E-2,3.578298953266084E-2,2.7326346444804205E-2,9.9654493883737875E-3,3.2947028086747356E-2,4.4844148586686693E-2,4.8598525316553128E-2,0.16769731117932637,1.072210698256377,6.1864948169880959E-2,8.569163197620068E-2,0,0.12911693196849275]
[null," Health and social work",1.885830375139633E-2,1.6879060236971836E-2,1.4192282520993986E-2,1.6990235563145471E-2,1.6702900526151768E-2,1.6621174975669457E-2,1.3742755180813779E-2,1.4987968325026465E-2,1.5532920417322894E-2,1.3782131629870211E-2,1.3578287741734809E-2,1.4985818339526365E-2,1.5210296958190931E-2,1.8057366835773258E-2,1.6676021418760754E-2,1.4186040816008131E-2,2.0735212499117289E-2,1.7151502731554837E-2,1.223293647696674E-2,1.6388902434114325E-2,1.3284960463475021E-2,1.8092214998783013E-2,1.9131151640574173E-2,1.5180285915667871E-2,1.4597947174296423E-2,5.9685424602272863E-3,2.0771072716414398E-2,2.6337846998175728E-2,3.7878616833092245E-2,0.10756080541043031,5.0391328823346897E-2,1.0300303142977774,5.4734570950088317E-2,0,5.8696784233521739E-2]
[null," Other community, social and personal services",2.5182885488853571E-2,2.4560904028438853E-2,2.2317394572571984E-2,2.796563289545493E-2,2.7320963455495742E-2,4.3749686532702746E-2,2.267209174970948E-2,3.4545030548308438E-2,3.4435321692386597E-2,2.2988315019464231E-2,2.608640138228319E-2,4.0633203088380268E-2,3.7860432952291315E-2,3.5499817147495435E-2,3.4404435359255282E-2,2.8050490996767551E-2,0.20391661043865886,3.2421670650671336E-2,1.87047728646146E-2,2.7018620402647565E-2,3.127265735052865E-2,5.3029009430782474E-2,4.3249546497190532E-2,6.3844561331432972E-2,3.57518928024292E-2,1.6511827833618011E-2,3.2878125644335558E-2,4.2407897179235141E-2,7.7356156746833687E-2,8.353076066206841E-2,5.517437753357491E-2,4.9814442952335815E-2,1.1412851575476826,0,7.9117347258080062E-2]
[null," Private households with employed persons",0,0,0,0,0,0,0,0,0,0,0,0,0,0,0,0,0,0,0,0,0,0,0,0,0,0,0,0,0,0,0,0,0,1,0]
[null,"Payments to workers and/or households",0.38514670046375499,0.33860989816096321,0.30666487458354397,0.38933793949332457,0.35411478450493261,0.36403070854070446,0.28774252806700101,0.32956462395649128,0.34313910133380326,0.30336855677844066,0.30249203934849245,0.33472787860415959,0.34432765793830272,0.4031592996512513,0.37900874593268447,0.31347356816396021,0.39360674853939559,0.37884985035564794,0.28328865389913521,0.3753854010517107,0.3020158429478092,0.40053563255942493,0.4148893890393896,0.29280284298978626,0.29245479408862191,9.5604240812120544E-2,0.35288525196381021,0.4489319390462202,0.46327857477918438,0.89828402221579484,0.79206581203113524,0.63362451301326927,0.82532986314818479,0,1.4282856530848858]

{"sheet":"CustomRegion2","index":12,"n_rows":138,"n_cols":41,"rows_kept":138,"cut":false,"hidden":false,"merged":[[1,1,1,3]]}
[]
[null,"Custom Region 2"]
[]
[null,"Enter data in boxes below"]
[]
[]
[]
[]
[]
[]
[null,null,null,"Dollar Year of Average Earnings",2014]
[null,null,"Value Added as a Percentage of Output","Payments to Workers as a Percentage of Output",{"$f":"\"Average Earnings ($\"&CustomRegion2_EarningsYear&\") per Job\"","v":"Average Earnings ($2014) per Job"}]
[null,"Agriculture, hunting, forestry and fishing",0.61618145995896256,0.11065665012979062,1051.3267752703398]
[null,"Mining and quarrying",0.81265568953323331,6.4136947368319777E-2,19202.310320220251]
[null,"Manufacturing: Food products, beverages and tobacco",0.39572608251967922,9.6162718258015423E-2,3982.062502038686]
[null,"Manufacturing: Textiles, textile products, leather and footwear",0.34814403101218488,0.154132946738606,4283.4804561984056]
[null,"Manufacturing: Wood and products of wood and cork",0.4237104829140928,0.14071874821085475,2310.0272993767235]
[null,"Manufacturing: Pulp, paper, paper products, printing and publishing",0.34925971296079888,0.13437648287623374,7375.3753739564572]
[null,"Manufacturing: Coke, refined petroleum products and nuclear fuel",0.16721622949727449,7.0937258792246702E-2,45219.985666637687]
[null,"Manufacturing: Chemicals and chemical products",0.3294932104895687,0.1168149299450873,12717.25879017399]
[null,"Manufacturing: Rubber and plastics products",0.32638329990724285,0.14819940830586117,5461.5288971282616]
[null,"Manufacturing: Other non-metallic mineral products",0.52858126728809485,0.14819757141228002,4112.7304881095006]
[null,"Manufacturing: Basic metals",0.3611880591890293,8.8317338318117375E-2,10383.999515202067]
[null,"Manufacturing: Fabricated metal products except machinery and equipment",0.34600146827430395,0.15418727546900263,4675.7659143907185]
[null,"Manufacturing: Machinery and equipment not classified elsewhere",0.37574780762793553,0.26908123465045741,8962.4495644855142]
[null,"Manufacturing: Office, accounting and computing machinery",0.16429085926256498,6.916368869114764E-2,7825.963161489366]
[null,"Manufacturing:  Electrical machinery and apparatus not classified elsewhere",0.25966527509595144,0.12146864301448963,6971.9406878051132]
[null,"Manufacturing: Radio, television and communication equipment",0,0,7825.963161489366]
[null,"Manufacturing: Medical, precision and optical instruments",0,0,6971.9406878051132]
[null,"Manufacturing: Motor vehicles, trailers and semi-trailers",0.30509557446354735,0.10610916006484145,7434.0346585700618]
[null,"Manufacturing: Other transport equipment",0,0,7434.0346585700618]
[null,"Manufacturing: Manufacturing not classified elsewhere; recycling",0.36941586836324558,0.16880194534991375,6398.9293337221088]
[null,"Electricity, gas and water supply",0.39281873433446163,0.14790681245973447,18657.291387928039]
[null,"Construction",0.48729254913452158,0.2010893158975687,2948.8410991810188]
[null,"Wholesale and retail trade; repairs",0.73366253607209098,0.17868304254417083,4909.9591750264099]
[null,"Hotels and restaurants",0.71913646256153463,0.19869477920290052,1439.2352660193437]
[null,"Transport and storage",0.62044283366741704,0.21068863416526204,7311.4359542271995]
[null,"Post and telecommunications",0.61476449769768904,0.16824027790886828,12389.099373637871]
[null,"Finance and insurance",0.61863068765188778,0.19361850897267704,13225.494199916704]
[null,"Real estate activities",0.89567053770333971,8.8159755263037629E-3,2341.8963532081798]
[null,"Renting of machinery and equipment",0.84932011450334288,3.8078118329166875E-2,2341.8963532081798]
[null,"Computer and related activities",0.51737621341656004,0.33893007276355192,12389.099373637871]
[null,"Research and development",0,0,3837.4341394883281]
[null,"Other Business Activities",0.7137140864252367,0.28158968295773279,3837.4341394883281]
[null,"Public admin. and defence; compulsory social security",0.75012384885915595,0.73994298767577038,1449.4857266622216]
[null,"Education",0.89066416011478455,0.67772581272672361,4134.6697940512486]
[null,"Health and social work",0.75025863634586576,0.43269342416870804,2283.4788244171646]
[null,"Other community, social and personal services",0.70480019524208759,0.13673498124547931,1449.4857266622216]
[null,"Private households with employed persons",1,1,5199.2056088023692]
[]
[]
[]
[]
[]
[]
[null,"Total Requirements - Type 1"]
[null,null,"Agriculture, hunting, forestry and fishing","Mining and quarrying","Manufacturing: Food products, beverages and tobacco","Manufacturing: Textiles, textile products, leather and footwear","Manufacturing: Wood and products of wood and cork","Manufacturing: Pulp, paper, paper products, printing and publishing","Manufacturing: Coke, refined petroleum products and nuclear fuel","Manufacturing: Chemicals and chemical products","Manufacturing: Rubber and plastics products","Manufacturing: Other non-metallic mineral products","Manufacturing: Basic metals","Manufacturing: Fabricated metal products except machinery and equipment","Manufacturing: Machinery and equipment not classified elsewhere","Manufacturing: Office, accounting and computing machinery","Manufacturing:  Electrical machinery and apparatus not classified elsewhere","Manufacturing: Radio, television and communication equipment","Manufacturing: Medical, precision and optical instruments","Manufacturing: Motor vehicles, trailers and semi-trailers","Manufacturing: Other transport equipment","Manufacturing: Manufacturing not classified elsewhere; recycling","Electricity, gas and water supply","Construction","Wholesale and retail trade; repairs","Hotels and restaurants","Transport and storage","Post and telecommunications","Finance and insurance","Real estate activities","Renting of machinery and equipment","Computer and related activities","Research and development","Other Business Activities","Public admin. and defence; compulsory social security","Education","Health and social work","Other community, social and personal services","Private households with employed persons"]
[null,"Agriculture, hunting, forestry and fishing",1.1494849252267274,1.3341001195289084E-3,0.27323795388048167,7.8939967018732307E-2,0.31163873501317479,8.0820932675391473E-3,2.0267718048667662E-3,9.6725224455453378E-3,1.2163798819175127E-2,6.9804276541388056E-3,3.2523069273973268E-3,4.9169088200976194E-3,5.1558734682446671E-3,1.0060437594984867E-2,7.2082838667525068E-3,0,0,7.7509170396437461E-3,0,2.5212903392398043E-2,3.3940892353464137E-3,7.7362694187110229E-3,4.9058988208280502E-3,6.5342781537957818E-3,1.9424189903948601E-3,1.5642594605572511E-3,8.5700422238402067E-4,4.869188398573489E-4,1.2984919319720615E-3,3.669660480379961E-3,0,1.8641520098010348E-3,1.3564705101852688E-3,7.9853172857922343E-4,2.4380404403796536E-3,3.0304329211959685E-3,0]
[null,"Mining and quarrying",3.5585844461528661E-2,1.0367432797930582,3.4682845330930745E-2,3.6592403031235891E-2,3.3586749344926552E-2,5.205891199443783E-2,0.70430921561977,0.30569102693735284,9.7716620190666362E-2,0.12278170727887083,0.16598858180624809,7.0175967583613399E-2,5.7006958383157356E-2,6.0092976870341534E-2,6.7207567025237058E-2,0,0,4.5216435527734258E-2,0,6.4235529985286074E-2,0.14011019462071356,6.1169105969729493E-2,1.2253176500591812E-2,2.4758238404051468E-2,6.8451848975070603E-2,2.3945542157255979E-2,6.8302752471044725E-3,8.1187208133277223E-3,1.0722014315080209E-2,2.1561781641442748E-2,0,1.8041953697666979E-2,1.879389254245166E-2,4.8013530914125411E-3,2.9966140857211152E-2,2.5643430785630403E-2,0]
[null,"Manufacturing: Food products, beverages and tobacco",9.6964562517744227E-2,1.3041568802376181E-3,1.1613141486589351,4.087612439138838E-2,2.8963353459120867E-2,1.0352994138582629E-2,2.1408699463950727E-3,7.8318233234498085E-3,7.3519066130783772E-3,4.047333936383366E-3,3.8082841227056506E-3,5.0413151451875965E-3,5.1129514629753995E-3,6.7892068922835837E-3,5.4945990659179961E-3,0,0,5.9965077548553656E-3,0,8.0602307941303724E-3,4.3313136080439865E-3,3.4444008395968879E-3,4.0410140648787759E-3,2.2361951282725997E-2,3.0789159789462728E-3,2.2955911921522113E-3,1.5802646020416026E-3,6.4848080328393373E-4,2.9526866194446414E-3,1.0153140816839937E-2,0,3.3513477818944586E-3,1.9794881796634895E-3,1.9855859856272862E-3,3.6683744505619374E-3,6.3749768891279823E-3,0]
[null,"Manufacturing: Textiles, textile products, leather and footwear",7.0119936594985411E-3,1.9389032954033939E-3,1.0853257770227836E-2,1.487906274929623,1.1173488096748339E-2,5.9729052709140779E-2,4.452160361058501E-3,9.6836322304208137E-3,4.4746613100770667E-2,1.3696639548091935E-2,1.7295093205572296E-2,2.6089750665422386E-2,2.9737635800495561E-2,4.6276721866051446E-2,4.1277022028990591E-2,0,0,6.8015750733917843E-2,0,9.2068054747374423E-2,7.012863000383231E-3,9.1866386371367015E-3,1.2168859452524461E-2,9.1546955507309947E-3,1.0004367062986736E-2,6.7818836878138578E-3,3.3030481129927426E-3,1.6644209809345445E-3,4.2749725679693609E-3,9.1135454063173936E-3,0,7.9563035503169253E-3,8.9995697701466867E-3,2.3456645807120691E-3,8.3082555549034137E-3,1.2083838523823092E-2,0]
[null,"Manufacturing: Wood and products of wood and cork",2.1526424802102866E-3,2.3016562888476745E-3,2.6701629973869055E-3,4.6393946885922134E-3,1.1423227702983878,5.8121239686883897E-3,2.3963679367798498E-3,3.1884962962790281E-3,5.3323708526243326E-3,5.876211035952577E-3,4.1500966682640611E-3,6.4134130360365615E-3,6.4237405748434053E-3,1.8050010186792732E-2,1.0235219245178978E-2,0,0,7.1828681212751039E-3,0,5.9741766744150875E-2,2.5221761713082546E-3,1.2575307264706608E-2,1.1059740936956244E-2,9.9720223536998911E-4,1.6799364740330367E-3,1.7944456181825919E-3,7.5762566312312742E-4,4.8168239392694341E-4,8.1298591521496936E-4,1.7142515672337647E-3,0,1.2353675992021118E-3,9.7081799884745355E-4,4.4333807191628124E-4,2.1133462547733395E-3,1.4872286628648821E-3,0]
[null,"Manufacturing: Pulp, paper, paper products, printing and publishing",9.2889703372144618E-3,3.3324196085492367E-3,2.6221170541288478E-2,3.4377849107877161E-2,1.3037410751145525E-2,1.3372556923886323,7.8005162637122677E-3,2.2647947936073731E-2,4.0265568497730171E-2,3.3027540944810689E-2,1.1256180923939511E-2,2.6225049121638637E-2,2.8047073804898532E-2,5.5767485679919279E-2,4.2461097571837449E-2,0,0,2.446731694076551E-2,0,5.2592776970388687E-2,1.0996825359757397E-2,1.2265863547345129E-2,1.2368767020299612E-2,1.2257515281809008E-2,1.2914739455110456E-2,1.5782113615731723E-2,1.7649503828922716E-2,1.0700865431547572E-2,6.5914751458371135E-3,2.4822933782053223E-2,0,3.6343941659024187E-2,1.6795392409426887E-2,8.2821635410488086E-3,1.1350567855134254E-2,2.0885522893828636E-2,0]
[null,"Manufacturing: Coke, refined petroleum products and nuclear fuel",2.5677421394082085E-2,1.2390881514256265E-2,2.3753008484887216E-2,1.9597923356414082E-2,2.762770008553006E-2,2.8070477152733E-2,1.0214512958708053,2.9344999350145222E-2,2.4191092865783449E-2,3.7975445325111663E-2,5.0277217033769403E-2,2.8531533508438362E-2,2.140331068552815E-2,2.1949273108607354E-2,2.5969460348318207E-2,0,0,1.910827585434937E-2,0,2.650929111871567E-2,9.5089743047657854E-2,2.5633737643325778E-2,6.8812356780161349E-3,1.7291273877307122E-2,8.8998771793063633E-2,2.3676970136597784E-2,4.4019207807963765E-3,4.5626614293589442E-3,8.4852380903704446E-3,1.1503739402695041E-2,0,1.0269760437436163E-2,1.7038749548142027E-2,3.3715994996667553E-3,1.0375867657867173E-2,1.2722912090312146E-2,0]
[null,"Manufacturing: Chemicals and chemical products",7.5654878489250732E-2,5.4876491447293306E-2,6.762715887042374E-2,8.778800617147188E-2,5.7304671505951456E-2,0.13012708521086772,0.10845032550259626,1.2767562373196131,0.33289170350611486,8.2178222609067139E-2,5.9880290706120699E-2,7.4844819874912455E-2,8.8745648996998674E-2,0.12831648807453386,0.11282392061201096,0,0,8.5239403168384437E-2,0,0.12072152727546691,0.24978684808469476,5.4535618372711023E-2,2.51355695699047E-2,5.0119384671230512E-2,3.4082661971865429E-2,2.4518411201033777E-2,1.3221352651608446E-2,1.7438255992683008E-2,1.8117382630895698E-2,4.9792133952655485E-2,0,4.3531147650298863E-2,2.7745812412372291E-2,8.933989232590301E-3,9.7423926018380111E-2,7.0487797799879182E-2,0]
[null,"Manufacturing: Rubber and plastics products",1.4045115209220978E-2,3.1925318204933063E-3,2.9943366651369572E-2,4.1113960055975798E-2,1.4008832908672584E-2,4.6797312656719457E-2,7.9999083333699948E-3,1.6706804755488448E-2,1.0754828249973212,1.5653133800511653E-2,1.33585031649527E-2,3.8551051210746388E-2,5.4246712353252832E-2,0.11604243634963224,9.8921471782223686E-2,0,0,9.0432282201520803E-2,0,8.4003204995013514E-2,9.5660522918972098E-3,3.6028952424074064E-2,1.3011182040722581E-2,1.1260276330916958E-2,1.5250748787132239E-2,1.1301891191483714E-2,4.9986680074095213E-3,2.4139869936468166E-3,5.9859071437217666E-3,1.9798929027991064E-2,0,1.6286600323258467E-2,4.7406216353818127E-3,2.771209577480786E-3,9.9786844880786797E-3,1.4209648851256224E-2,0]
[null,"Manufacturing: Other non-metallic mineral products",2.338768281933102E-3,4.4067765648590669E-3,1.1096840052701781E-2,4.4478255289023662E-3,5.2733708646465057E-3,6.4916332758615256E-3,4.10145597084304E-3,5.2770188863049024E-3,7.2034902096184935E-3,1.0682019546280481,6.2739948174546254E-3,1.3717204230156989E-2,1.1117967922408477E-2,2.636187193675529E-2,2.1547965002373611E-2,0,0,1.4658809696691566E-2,0,1.9323117195845781E-2,3.5147380235726602E-3,9.5308026773278556E-2,4.2041215664815777E-3,3.0423073258931533E-3,3.6080740970068524E-3,3.7701542486761534E-3,1.1324467688826991E-3,2.2391559454559601E-3,1.3629574324385315E-3,2.4504619333422478E-3,0,2.0848185287759176E-3,2.9077147869972409E-3,7.9835155654822383E-4,1.8763968988279648E-3,3.1762388808867265E-3,0]
[null,"Manufacturing: Basic metals",8.373507279701882E-3,1.6462621163374581E-2,1.1452209872347734E-2,2.438130140800393E-2,1.3823709644046748E-2,2.2931114201445509E-2,1.867528118226526E-2,1.6639689449287214E-2,6.4971034356765697E-2,2.7178308490556063E-2,1.3953821948167362,0.37695819511215745,0.21347364871996818,0.15413037955977535,0.24693134786857426,0,0,0.13226833835878782,0,0.11449648097717144,1.8960661927073932E-2,0.12892419639394992,1.5405266061978512E-2,6.6927150021744248E-3,1.356269611669178E-2,2.4686449910279757E-2,7.1888968243093545E-3,4.4283163885792329E-3,8.5340255836075223E-3,2.4186288335370884E-2,0,1.1701906915357036E-2,6.2894545282336737E-3,3.1739619911995798E-3,8.7126183837307105E-3,8.2531433807544081E-3,0]
[null,"Manufacturing: Fabricated metal products except machinery and equipment",9.0744998708244227E-3,4.1178073416505484E-3,1.1168852046691463E-2,1.7809673139409253E-2,1.3219902905799651E-2,1.3178423774286996E-2,1.2492605023282782E-2,9.1752620380243163E-3,3.1869867733931155E-2,1.072918652321115E-2,1.6381397887468112E-2,1.0898279908479267,6.2027105081246849E-2,5.7842243637867746E-2,6.9967493464478975E-2,0,0,5.2571447656056911E-2,0,4.0914978513569143E-2,1.4217318875140323E-2,4.3554642437501637E-2,1.2550396719796752E-2,5.6823961663456709E-3,9.0906531094595306E-3,1.3582102821183719E-2,1.1352396367530332E-2,2.4333938913857272E-3,5.8827412507578992E-3,1.4641092957643051E-2,0,1.6359210564984464E-2,5.0344701289496219E-3,2.606296378708886E-3,4.9198170334217792E-3,6.2228715193122066E-3,0]
[null,"Manufacturing: Machinery and equipment not classified elsewhere",2.6671347498328328E-3,2.8840374925984055E-3,4.2106286686756159E-3,1.0436896575329972E-2,7.0259547084934133E-3,9.1437278641104021E-3,8.9923538578668086E-3,5.1209162190439519E-3,1.6738236700266015E-2,6.2783179095401952E-3,1.0227390706723866E-2,2.5174899947928684E-2,1.0915585194569244,3.8989716581366331E-2,3.8352225061065226E-2,0,0,2.5896376852562984E-2,0,2.5204154110036858E-2,8.9803549320633096E-3,1.2677869366841151E-2,7.6763482191736952E-3,2.0123358187995252E-3,4.6202425735832045E-3,3.9742408030752794E-3,1.3719825497598627E-3,1.0756571219416651E-3,9.3883299512522375E-3,3.8216472071771388E-3,0,2.6846185319821633E-3,2.3740693233996954E-3,8.5190900587232919E-4,2.6047016724490093E-3,3.46016135615166E-3,0]
[null,"Manufacturing: Office, accounting and computing machinery",1.0061501056711865E-2,5.6116231349241253E-3,1.714109484016501E-2,3.7690510560125227E-2,1.6841814414846359E-2,4.3504625070848506E-2,1.2442355095759671E-2,2.5220702702905568E-2,7.9066024248208924E-2,3.0493649535567754E-2,2.6240651513959844E-2,7.3485878165626711E-2,0.15431740045717177,1.8824425859704044,0.24213710255578139,0,0,0.13839712966502737,0,0.13488268223150468,2.2759318114905471E-2,2.6242616576748725E-2,4.89457132275661E-2,1.0406318881614153E-2,1.7392193952553911E-2,8.0280632737919674E-2,1.0220050580654476E-2,6.2094844495972721E-3,1.3485304439198299E-2,3.0643698073786505E-2,0,2.3985851023549925E-2,1.6002932536091391E-2,7.5532978135032991E-3,4.2933768956622098E-2,1.6099815139210914E-2,0]
[null,"Manufacturing:  Electrical machinery and apparatus not classified elsewhere",4.229520181136882E-3,2.393348093677878E-3,6.8940329769050001E-3,2.0722434105717582E-2,7.2118681392207874E-3,1.8824932233481549E-2,5.4101724296559094E-3,8.3510841788620675E-3,4.3068372983569456E-2,1.3008786199311808E-2,1.6699410955796353E-2,4.5812099544122742E-2,9.3377966282149324E-2,0.23268945944841876,1.2549045829049739,0,0,0.10395448111205378,0,5.3918260020722739E-2,8.9744016031361954E-3,2.8970495575027115E-2,1.4103983927193128E-2,4.195055640408017E-3,8.0305567887697087E-3,3.1221626878340208E-2,3.8994480369451694E-3,3.0760279959216202E-3,5.4610704164387881E-3,2.4268393615275725E-2,0,7.3117247977724032E-3,5.9910787635515271E-3,2.5252438215149892E-3,9.2130925538064633E-3,6.0467126967761881E-3,0]
[null,"Manufacturing: Radio, television and communication equipment",0,0,0,0,0,0,0,0,0,0,0,0,0,0,0,1,0,0,0,0,0,0,0,0,0,0,0,0,0,0,0,0,0,0,0,0,0]
[null,"Manufacturing: Medical, precision and optical instruments",0,0,0,0,0,0,0,0,0,0,0,0,0,0,0,0,1,0,0,0,0,0,0,0,0,0,0,0,0,0,0,0,0,0,0,0,0]
[null,"Manufacturing: Motor vehicles, trailers and semi-trailers",1.1619263688043923E-2,6.8306877747015297E-3,1.8545133041556718E-2,3.3461416867308198E-2,1.5516030830233767E-2,3.0842074847953128E-2,9.720519028500756E-3,1.55856958752865E-2,3.7766426738424723E-2,2.3100732561816904E-2,3.45495003254781E-2,4.2093107931076977E-2,4.7678525040094767E-2,5.2559276442113362E-2,5.2767634451141479E-2,0,0,1.3183107313832874,0,3.0435928118914719E-2,1.4062413719110697E-2,1.7064793259691624E-2,2.0342788119140566E-2,1.1026627118285916E-2,4.9923529645070255E-2,1.1931492824169686E-2,1.0628699530047879E-2,3.0431637554643276E-3,1.5211034728105539E-2,2.1483426390382216E-2,0,1.6362206369274542E-2,7.8499270672062593E-3,5.2701258953056496E-3,8.207868571961846E-3,1.6471502998738386E-2,0]
[null,"Manufacturing: Other transport equipment",0,0,0,0,0,0,0,0,0,0,0,0,0,0,0,0,0,0,1,0,0,0,0,0,0,0,0,0,0,0,0,0,0,0,0,0,0]
[null,"Manufacturing: Manufacturing not classified elsewhere; recycling",2.0186922429166736E-3,1.1874297822847687E-3,3.5590036334570657E-3,1.7568284532211473E-2,5.9172237621026641E-3,9.8628680033361251E-3,2.1573432569155673E-3,6.1741206019021175E-3,1.2549043408753671E-2,6.184813013227263E-3,5.2347400268675012E-3,1.065092585482609E-2,1.1187598542128037E-2,2.2506057416953142E-2,1.8935671154082592E-2,0,0,9.7938336600696015E-3,0,1.0512229320416657,4.1438044599122594E-3,6.6577926712136706E-3,5.4860752513312336E-3,2.6818844136805679E-3,3.4897169377788662E-3,3.4088139546995144E-3,3.4056835847830354E-3,1.5657495978627449E-3,4.5320170788956046E-3,7.1651293951987115E-3,0,3.7842253649928658E-3,3.4124172552465197E-3,1.839097644690039E-3,1.4470795534088539E-2,8.3567874759483199E-3,0]
[null,"Electricity, gas and water supply",2.0594612837085923E-2,9.4960402207085043E-3,2.7231629929188921E-2,3.3665692282594729E-2,2.6588770510579091E-2,4.5640205179829203E-2,1.0916269790161691E-2,2.1166178218372939E-2,4.1476488503609736E-2,3.7827772569190246E-2,6.2728273922708036E-2,4.1398663180771664E-2,3.0863129298898999E-2,3.5815349372836446E-2,3.8771340851676613E-2,0,0,2.7609674246605757E-2,0,3.2541538559343504E-2,1.1675028226624127,1.8711461596321383E-2,1.6896287032995592E-2,4.7063270986589578E-2,1.2289984065800761E-2,1.3490892000779724E-2,8.1661461405237046E-3,1.3449027072491687E-2,6.6622876918109898E-3,2.1305791126077157E-2,0,1.1864836106398234E-2,2.4660860980640662E-2,9.393919766375965E-3,1.8947151985826482E-2,2.3554996346202176E-2,0]
[null,"Construction",3.2592222106294115E-3,1.0652866282301538E-3,4.3467091842338355E-3,2.7145733329898818E-3,1.6329358085469187E-3,2.0307834387931719E-3,3.9099478568877634E-3,2.4364604873976232E-3,3.0717284371004827E-3,2.6977585137274575E-3,1.6172313713547768E-3,2.5195056833227777E-3,2.4205588831484135E-3,4.7439332771689715E-3,5.1331549288857765E-3,0,0,3.3572996884183924E-3,0,3.0414173272269611E-3,4.2054853418257666E-3,1.0705237235161076,1.0548389769984292E-3,3.8492046835943415E-3,2.3192742254454658E-3,1.0170508522022144E-3,2.6128566991585295E-3,4.557682277870562E-3,6.4809513739000433E-4,3.2376258656968407E-3,0,1.5859147225813133E-3,4.5954758995158402E-3,3.0288802389231368E-3,2.1416424659890217E-3,1.4365893910786738E-3,0]
[null,"Wholesale and retail trade; repairs",9.2293643497929345E-2,3.9717016180949929E-2,0.14925682073664523,0.13764310294645718,0.13537270627871137,0.17045522039301528,6.1739600025197773E-2,0.12076818316596365,0.16007617409359903,0.1123650175689126,0.1748335474665686,0.16728894727504956,0.15139024646897939,0.14993637884789221,0.15586552692240413,0,0,0.20430063165521473,0,0.13138443317589493,0.14968140797110524,0.12847157141548576,1.0481738421564644,4.8305092236779867E-2,8.8122559047550841E-2,5.6812204834065079E-2,3.048734659042749E-2,1.769879640938966E-2,2.8043576952220119E-2,6.2938920739708401E-2,0,5.0244022865037027E-2,4.4266600618035667E-2,1.5453427985196699E-2,5.7462831585775975E-2,5.1965866249306214E-2,0]
[null,"Hotels and restaurants",1.6820144621673954E-3,3.1464259772292953E-3,3.5940704006205779E-3,1.1205940886077374E-2,3.2031839941541931E-3,6.0911966879544765E-3,3.6279781770277076E-3,6.6823990064633796E-3,8.7577688566296743E-3,4.0458345927096573E-3,3.786426329757005E-3,8.1987545627660863E-3,8.9478970827012016E-3,1.6222586401984793E-2,1.3093896699032317E-2,0,0,9.6303932942132069E-3,0,1.0757921970522761E-2,6.1479751588494969E-3,5.9121791372353594E-3,2.2126372006751258E-3,1.0023715309421262,7.9871471423398673E-3,4.0706455261156696E-3,6.752427991419784E-3,9.9216697168795368E-4,2.2531008422512593E-3,1.0673370939652271E-2,0,7.8481583135862534E-3,1.3585721239367498E-2,2.9019105218038251E-3,4.8601051312207998E-3,3.3991256918605331E-3,0]
[null,"Transport and storage",3.2893797037694725E-2,1.552302736972375E-2,5.2837372938410204E-2,5.0074871506204668E-2,5.5193980472238863E-2,7.2605323282931608E-2,2.2559786026852276E-2,4.3039826127019253E-2,5.9764942632796414E-2,3.8231319788928846E-2,4.5708346813598213E-2,4.903285777735341E-2,5.0466461506465887E-2,6.3605380669002259E-2,5.8824294620328135E-2,0,0,5.7799242357411018E-2,0,5.250896148138081E-2,5.9887736203452273E-2,4.2251512997920217E-2,1.7531416870702338E-2,1.9312161338302599E-2,1.0404620459865541,3.5557552045080869E-2,1.3598506475634813E-2,6.998286410897908E-3,1.0081826485221589E-2,2.6359129073878038E-2,0,2.2387613377766839E-2,1.9005110760024528E-2,6.7231336292264245E-3,1.9620619597546313E-2,2.4388078411772561E-2,0]
[null,"Post and telecommunications",1.000991860572103E-2,6.1523475935533435E-3,1.7067858809114933E-2,1.5481636731880844E-2,1.1323222246816436E-2,2.2975175085849689E-2,9.8675380158305438E-3,2.822137880562928E-2,2.064399273089387E-2,1.423125562967277E-2,9.2983797731994288E-3,1.7600888670359947E-2,1.6474879223952084E-2,1.934755185783649E-2,1.6047490511987051E-2,0,0,1.7224487897106247E-2,0,1.801408453882206E-2,1.6412172833677716E-2,1.4802812360455359E-2,1.9325642916650409E-2,2.4487890544668666E-2,1.5774734937676681E-2,1.0755876565717899,3.6949679491426753E-2,1.3004652957864122E-2,1.3123891077821637E-2,4.9557066159189207E-2,0,3.2809419924704028E-2,3.015712768992496E-2,2.3854547566078309E-2,1.5553679143698283E-2,4.1173431484707756E-2,0]
[null,"Finance and insurance",2.5313243704721631E-2,3.1112609926418778E-2,2.4652656638748431E-2,2.1683502144482669E-2,1.8643986645184647E-2,3.2927633759742253E-2,3.2067334058607136E-2,3.2553583379415683E-2,2.5132583711858995E-2,2.3416705424907511E-2,2.3343352789731243E-2,2.5910698429377009E-2,2.2856708540799818E-2,2.0780564689923689E-2,2.1873998214837785E-2,0,0,2.3434172684200456E-2,0,1.978255491397065E-2,4.0948388907927902E-2,2.2577435435666739E-2,3.879834663482485E-2,2.912878262811858E-2,4.5206469517942646E-2,3.2968233271768274E-2,1.1485358982896592,7.5978731442191512E-3,1.5569122416943901E-2,1.7913839757042044E-2,0,1.7246615791327025E-2,3.0117970116374411E-2,4.8250920353225257E-3,8.7286459965396756E-3,2.0103058544731267E-2,0]
[null,"Real estate activities",7.0322969515681198E-3,4.9384284953387526E-3,1.628447403688451E-2,2.5875474945797481E-2,1.3591157423562549E-2,3.0681113322014959E-2,8.4243643084148962E-3,1.6545994192307657E-2,3.0675508910033226E-2,1.7138419626465243E-2,1.2819670058615068E-2,2.4585721508638522E-2,2.2888289235962752E-2,2.5320742065390998E-2,2.525221891487452E-2,0,0,1.9986316202596013E-2,0,2.7350181972356776E-2,1.2149774921070304E-2,1.5218390075559711E-2,3.4467415460863328E-2,3.3506290126405436E-2,1.6581397034994852E-2,3.4109396235210226E-2,4.3067581410670595E-2,1.0125257457342638,1.7256846978597151E-2,4.4947691399612258E-2,0,3.2082264762109035E-2,1.7024087981696061E-2,1.4443368461533247E-2,2.1160788863019826E-2,3.3684716608552781E-2,0]
[null,"Renting of machinery and equipment",5.219889645267011E-3,1.7425698520986542E-2,9.2353197640471507E-3,7.1326608787086925E-3,4.306800071965127E-3,1.292274946000675E-2,1.3946508450496376E-2,1.780843575851361E-2,1.3543265233434708E-2,1.0729929305185449E-2,6.989275618094995E-3,8.5071173922324113E-3,1.6046875282845999E-2,1.3753269456043977E-2,1.0906668432281484E-2,0,0,1.2212700955242744E-2,0,8.3182740018455503E-3,1.0646965079259479E-2,1.3454491955212323E-2,5.7238941566229076E-3,8.7756097447239563E-3,1.3777958599736725E-2,1.4921032422939259E-2,4.3503938086805029E-3,1.2453011101199428E-3,1.0076163691316782,1.185564999161064E-2,0,5.3555627673878489E-3,4.2431258744509755E-3,2.0479101014905794E-3,3.0965055107413457E-3,7.6725712437418821E-3,0]
[null,"Computer and related activities",2.2083481541823033E-4,1.5239761024419987E-4,3.5709428562926175E-4,3.4165127126862367E-4,2.7557133065402495E-4,4.3891799620232542E-4,2.0246286496513442E-4,3.3141227230844441E-4,4.1370308365543796E-4,2.6965867584981485E-4,2.922636455119686E-4,3.9724150165485448E-4,3.9203462719522407E-4,3.6962980714514457E-4,3.457839483895165E-4,0,0,3.6237279443071519E-4,0,3.5435391057565818E-4,3.24318031480531E-4,5.3037830830504618E-4,1.1750807918003421E-3,8.933472596351148E-4,3.073001848765747E-4,3.0627912656836041E-4,1.9818337864771344E-3,2.193279985039999E-4,2.149234043418299E-4,1.0007323025393591,0,3.79171258991831E-4,9.0752102373816356E-4,2.031533953244778E-4,1.7144406535469798E-4,2.6048967801868555E-4,0]
[null,"Research and development",0,0,0,0,0,0,0,0,0,0,0,0,0,0,0,0,0,0,0,0,0,0,0,0,0,0,0,0,0,0,1,0,0,0,0,0,0]
[null,"Other Business Activities",4.1222955393539221E-2,3.5885700675888151E-2,7.4948958772957819E-2,8.3547691703911395E-2,4.3846233063046858E-2,0.10256733457368845,9.3627790469476654E-2,8.9812332410205753E-2,0.10203032185309335,7.710885109642597E-2,5.957961556197601E-2,8.5261473734848853E-2,8.6281361572416851E-2,9.9687478011765515E-2,8.4161705100163881E-2,0,0,7.4326061371191049E-2,0,7.8128315328430911E-2,7.5242144071906283E-2,6.8923373583015216E-2,8.2967053245802502E-2,7.3991048966645351E-2,7.6641006066033412E-2,0.14397943757884651,0.18707110357188739,3.6427229934940346E-2,4.595956277626298E-2,0.28899428449052789,0,1.1038288127600551,8.14787265001303E-2,4.2698749841539721E-2,5.9641998395118384E-2,8.0889811922845542E-2,0]
[null,"Public admin. and defence; compulsory social security",3.4288822038224914E-4,2.3679016295399295E-4,4.5625230675700541E-4,4.6755152842745508E-4,4.3785160859095547E-4,6.6685198448634129E-4,2.7632495334664164E-4,4.1670097118089389E-4,5.6263413419224565E-4,4.4933555684249408E-4,6.1168623407927177E-4,5.2158011660316853E-4,4.6146401920061286E-4,5.3073375493865058E-4,5.312047379552122E-4,0,0,4.736733029636472E-4,0,4.6413527173382431E-4,6.6507868972075935E-3,3.9450477342687778E-4,3.1606735313171241E-4,4.4562572866453854E-4,4.4130744349500347E-3,4.1244587751784392E-4,4.5861924782528343E-3,1.3080664883756375E-4,2.3727909518664612E-4,2.9409445347168192E-4,0,2.2327804129030157E-4,1.0003282829561988,9.7879149195479799E-5,2.155623859221157E-4,3.0576607488552439E-4,0]
[null,"Education",1.8085156637103576E-4,1.5338196287570692E-4,3.4637862711406478E-4,2.9676444562641465E-4,1.8737495211900693E-4,4.9347772644539644E-4,2.3208761089022541E-4,7.007850619212163E-4,4.106423398246083E-4,3.2412385640903299E-4,2.2363209097707437E-4,3.1660634222678129E-4,3.0930716855570079E-4,3.2570478994038118E-4,3.1777235987867094E-4,0,0,3.6008842068536946E-4,0,3.3994389413856472E-4,9.6565226256053354E-4,2.7193290752961337E-4,3.1585877579314058E-4,3.4256146515551807E-4,6.7273484628491945E-4,3.8630632578582789E-4,3.3373358459040229E-3,1.4382906484631139E-4,1.7925602217794422E-4,5.8224592884389742E-4,0,6.6130260417854043E-4,9.1629128425618524E-3,1.0017877309096086,9.9746255606544018E-4,7.9113394502574523E-4,0]
[null,"Health and social work",5.3874345253879E-5,2.4326571911921535E-5,9.353506496509696E-5,1.0089515058166131E-4,8.5066851320204031E-5,1.1805978557250558E-4,3.9671017215732617E-5,8.0648856168126932E-5,1.1442919498546069E-4,7.0737955834475301E-5,9.677150499181338E-5,1.1005459395923852E-4,1.0073522536736434E-4,1.0553247402488595E-4,1.0612994455794645E-4,0,0,1.2651902797173651E-4,0,9.9156399453052596E-5,8.602672329164681E-5,8.1217315847439462E-5,6.2123212093934729E-5,6.1703143564951067E-5,5.8517524431081985E-5,6.4238061329040876E-5,6.2042693041765821E-5,2.2657434145749516E-5,3.3538772823955482E-5,8.3873110377637357E-5,0,6.3034736701696967E-5,4.3543754691058825E-5,2.4581674755679954E-5,1.000055983932755,6.5393065369269733E-5,0]
[null,"Other community, social and personal services",6.962529530998387E-4,1.0199040544307994E-3,1.1100326688059825E-3,1.1392805731117934E-3,7.5119043573210263E-4,1.6536612311401527E-3,1.1778528994303098E-3,1.4404938648244318E-3,1.3950592824186852E-3,1.0297325976958299E-3,9.0775146599619393E-4,1.1624282159805337E-3,1.3012950236596758E-3,1.4149424631080937E-3,1.2853144912849436E-3,0,0,1.1894079924278011E-3,0,1.2756462641095947E-3,1.7239397657801429E-3,1.5222761120573497E-3,1.1497685653426106E-3,8.2477647520856397E-3,2.5739645184582999E-3,5.8818421652902537E-3,9.1553436350522606E-3,4.5013320425585027E-4,9.3338459471501312E-4,2.4372503086945775E-3,0,4.6515282183879313E-3,4.3215149701521698E-3,9.9906206202779522E-4,5.3193303489213568E-3,1.0079636372061966,0]
[null,"Private households with employed persons",0,0,0,0,0,0,0,0,0,0,0,0,0,0,0,0,0,0,0,0,0,0,0,0,0,0,0,0,0,0,0,0,0,0,0,0,1]
[]
[]
[]
[null,"Total Requirements - Type 2"]
[null,null,"C01T05 Agriculture, hunting, forestry and fishing","C10T14 Mining and quarrying","C15T16 Food products, beverages and tobacco","C17T19 Textiles, textile products, leather and footwear","C20 Wood and products of wood and cork","C21T22 Pulp, paper, paper products, printing and publishing","C23 Coke, refined petroleum products and nuclear fuel","C24 Chemicals and chemical products","C25 Rubber and plastics products","C26 Other non-metallic mineral products","C27 Basic metals","C28 Fabricated metal products except machinery and equipment","C29 Machinery and equipment n.e.c ","C30 Office, accounting and computing machinery","C31 Electrical machinery and apparatus n.e.c","C32 Radio, television and communication equipment","C33 Medical, precision and optical instruments","C34 Motor vehicles, trailers and semi-trailers","C35 Other transport equipment","C36T37 Manufacturing n.e.c; recycling","C40T41 Electricity, gas and water supply","C45 Construction","C50T52 Wholesale and retail trade; repairs","C55 Hotels and restaurants","C60T63 Transport and storage","C64 Post and telecommunications","C65T67 Finance and insurance","C70 Real estate activities","C71 Renting of machinery and equipment","C72 Computer and related activities","C73 Research and development","C74 Other Business Activities","C75 Public admin. and defence; compulsory social security","C80 Education","C85 Health and social work","C90T93 Other community, social and personal services","C95 Private households with employed persons","Households","Labor"]
[null,"Agriculture, hunting, forestry and fishing",1.1807122183366188,1.8211460723344581E-2,0.31062110055440256,0.133636924291402,0.35463669045839297,5.8260365128277987E-2,3.1926222525529173E-2,4.9643163531168148E-2,6.4001776071965305E-2,4.7381143389506802E-2,3.9799335763105133E-2,5.6214159763672486E-2,7.5329570707188501E-2,6.265451507733244E-2,6.0815501216026191E-2,0,0,5.6378840851564464E-2,0,7.9740938961639252E-2,5.0867732944452425E-2,6.0062497126690498E-2,4.3613480815964861E-2,4.802561421264772E-2,4.8804165906592263E-2,4.3810652758266642E-2,4.8138983400780128E-2,6.360139629521035E-3,1.3484292147682998E-2,7.7500263654327967E-2,0,5.6962821457461676E-2,0.12478528615339583,0.10804571747963143,7.8524468572725645E-2,3.6060062668001609E-2,0.15111595930743021,0.15111595930743021,0.15111595930743021]
[null,"Mining and quarrying",5.2926835586254301E-2,1.046115534999734,5.5442275628187265E-2,6.6966455859863411E-2,5.7464168406929965E-2,7.9923670042119366E-2,0.72091283565678743,0.32788733226155137,0.12650303790228162,0.14521683960155282,0.18628370314272938,9.8662111746188913E-2,9.5975480461821722E-2,8.9299268546825114E-2,9.6976470689210142E-2,0,0,7.2220261708533073E-2,0,9.4515778021112024E-2,0.16647303149296372,9.0226656589992446E-2,3.3748085888836307E-2,4.7799008790955888E-2,9.447489024551374E-2,4.7405607320419436E-2,3.3086677888431365E-2,1.1380209704750493E-2,1.748897463548631E-2,6.2561039241745331E-2,0,4.8639083410886984E-2,8.7335792382190511E-2,6.4357347577266119E-2,7.2218092389224511E-2,4.3985286875324971E-2,8.3916992098317017E-2,8.3916992098317031E-2,8.3916992098317017E-2]
[null,"Manufacturing: Food products, beverages and tobacco",0.16137019957706866,3.6113359129804207E-2,1.2384161045775361,0.15368745151974336,0.11764573470018234,0.11384462738242668,6.3807859928891889E-2,9.0270432194538425E-2,0.11426664741637993,8.7372962751929836E-2,7.9185764537224951E-2,0.11084081927724788,0.1498447301534182,0.11526338856015117,0.11605836045912227,0,0,0.10629058066593448,0,0.12052316045222844,0.10224470801762545,0.11136614796587078,8.3874590053992892E-2,0.10793696164013851,9.9730286087441139E-2,8.942789126768845E-2,9.9098354937119798E-2,1.2761875493537909E-2,2.8085643972124243E-2,0.16242721129610788,0,0.11699119784541814,0.25654883157436653,0.22318065713088706,0.16059503659151084,7.4497895458807847E-2,0.31167349647553116,0.31167349647553116,0.31167349647553116]
[null,"Manufacturing: Textiles, textile products, leather and footwear",2.1666176641594558E-2,9.8590239947154816E-3,2.8396227949498785E-2,1.5135741808098067,3.1351346764576966E-2,8.3276453215005264E-2,1.8483220318220413E-2,2.8440848436101934E-2,6.9072871589166765E-2,3.2655678966279758E-2,3.4445694319979014E-2,5.0162259901502866E-2,6.2668386354214595E-2,7.09577991688016E-2,6.6433540380830242E-2,0,0,9.083561190701446E-2,0,0.11765668992218575,2.9291049562756688E-2,3.3742020779839184E-2,3.0333353805432541E-2,2.8625535646873326E-2,3.1995405855686866E-2,2.6607053149016291E-2,2.5491291333357129E-2,4.4205757281009254E-3,9.993462016154404E-3,4.376038990808629E-2,0,3.3812722847201049E-2,6.6921607499574334E-2,5.2674070529319938E-2,4.4013701953404524E-2,2.7583812743082629E-2,7.0914917646340545E-2,7.0914917646340572E-2,7.0914917646340545E-2]
[null,"Manufacturing: Wood and products of wood and cork",4.123507863840031E-3,3.366846462842004E-3,5.0295461642694515E-3,8.0915139388654609E-3,1.1450365239899298,8.9790529328056326E-3,4.2834284708942244E-3,5.7111854259426836E-3,8.6040497191012377E-3,8.4260437043333618E-3,6.4567094685903216E-3,9.6509647445462334E-3,1.0852651855845287E-2,2.1369409224331063E-2,1.3618561138265923E-2,0,0,1.0251949113387825E-2,0,6.3183224745731861E-2,5.5184064462728581E-3,1.5877801351615452E-2,1.3502713921190396E-2,3.6158678261137031E-3,4.6375477690158108E-3,4.4607655531400826E-3,3.7417593087860361E-3,8.5236221891300075E-4,1.5820750492765287E-3,6.3739631706691974E-3,0,4.7128403316707632E-3,8.7608489579051891E-3,7.2120888933414088E-3,6.9154309837431887E-3,3.5718459133260673E-3,9.5374649370002628E-3,9.5374649370002628E-3,9.5374649370002628E-3]
[null,"Manufacturing: Pulp, paper, paper products, printing and publishing",1.7698678750379688E-2,7.8776000365311741E-3,3.6288689425744203E-2,4.9108087176600819E-2,2.4617033307095488E-2,1.3507690197699187,1.5852628286029374E-2,3.3412295503263259E-2,5.4225865084762084E-2,4.3907710347326247E-2,2.109852796293064E-2,4.003972467850872E-2,4.6945296266144548E-2,6.993140486207429E-2,5.6897861756363223E-2,0,0,3.7563125743557191E-2,0,6.7277523351264495E-2,2.3781779198027191E-2,2.635764908368456E-2,2.2792964750543442E-2,2.3431395665859063E-2,2.5534905599832698E-2,2.7159335710883515E-2,3.038284119147865E-2,1.2282561101210563E-2,9.8731885570695257E-3,4.4705984242944752E-2,0,5.1182363368443312E-2,5.0035556572517542E-2,3.7164511976598646E-2,3.1841126307977176E-2,2.9780612013079327E-2,4.0696487840910539E-2,4.0696487840910546E-2,4.0696487840910539E-2]
[null,"Manufacturing: Coke, refined petroleum products and nuclear fuel",3.9362748611880098E-2,1.9787366429653293E-2,4.0136131827124638E-2,4.3568805349298252E-2,4.6471507260661966E-2,5.0061050181950471E-2,1.0345546976067415,4.6862089302096524E-2,4.6909029976653319E-2,5.5681015024222902E-2,6.6293912643435968E-2,5.1012497902818123E-2,5.2156857123834464E-2,4.4998570322145486E-2,4.9462765005840945E-2,0,0,4.0419410538562461E-2,0,5.0406143358925744E-2,0.11589501573312444,4.8565649984773286E-2,2.3844791358268412E-2,3.5474806746160138E-2,0.10953588137502306,4.2191406018579979E-2,2.5123196694285956E-2,7.1365940480482932E-3,1.3825651771948746E-2,4.3859920886860887E-2,0,3.4416692353788803E-2,7.1131293664544293E-2,5.0372561927826361E-2,4.3720661974823646E-2,2.7198111377584853E-2,6.6226404692713722E-2,6.6226404692713736E-2,6.6226404692713722E-2]
[null,"Manufacturing: Chemicals and chemical products",0.1063209471963948,7.1450528077702496E-2,0.10433844666464477,0.14150193660702828,9.9529857381320613E-2,0.17940354113268367,0.13781241612246109,1.3160085164552664,0.38379803619653707,0.12185284698969176,9.5770487572489557E-2,0.12522014431906084,0.15765816771550922,0.17996533217981012,0.16546769619148749,0,0,0.13299337426842173,0,0.17426957190897074,0.29640728408082034,0.10592142656401753,6.3147489616035876E-2,9.0865028485261373E-2,8.0102198331029648E-2,6.6005542184098043E-2,5.9653568757947521E-2,2.3205921849414144E-2,3.0084176721932667E-2,0.12229583581546745,0,9.7639570593272274E-2,0.14895633577205553,0.11425370283427598,0.17214291061229797,0.10292381111754478,0.14840006703622421,0.14840006703622427,0.14840006703622421]
[null,"Manufacturing: Rubber and plastics products",2.2080203640744849E-2,7.5352420408493015E-3,3.9562416509983142E-2,5.5188022994270537E-2,2.5072628068926777E-2,5.9708673571776671E-2,1.5693329910100154E-2,2.6991642274304742E-2,1.0888212443688541,2.604863373988096E-2,2.2762411712868139E-2,5.1750336405758712E-2,7.2303092100855768E-2,0.12957540771727305,0.11271513396272508,0,0,0.10294472337582243,0,9.8033802724195387E-2,2.1781485887981167E-2,4.9493003420812427E-2,2.2971022082153281E-2,2.193640356364699E-2,2.7308735344028886E-2,2.217230204859745E-2,1.7164784442123736E-2,3.925224239114772E-3,9.1214329159221893E-3,3.8796266497101252E-2,0,3.046402773950245E-2,3.6500065055641656E-2,3.0366961105134684E-2,2.955646781789734E-2,2.2708496155828151E-2,3.8883616718772412E-2,3.8883616718772419E-2,3.8883616718772412E-2]
[null,"Manufacturing: Other non-metallic mineral products",6.585919321377514E-3,6.7022268742830899E-3,1.6181234325849857E-2,1.1887030653648979E-2,1.1121422135709127E-2,1.3316262575010058E-2,8.1680102751242531E-3,1.0713332217616087E-2,1.4253852154123654E-2,1.0736967614057578,1.1244670660600843E-2,2.0694023255070707E-2,2.0662128222221219E-2,3.3515069303613206E-2,2.8838957150987828E-2,0,0,2.1272579786754404E-2,0,2.6739347675118767E-2,9.9715171787751779E-3,0.10242479451930388,9.4686491874476659E-3,8.6854468208906934E-3,9.9816306017257318E-3,9.5159873113027649E-3,7.5631580799091413E-3,3.0379589571011062E-3,3.0203195954185075E-3,1.2491989449338195E-2,0,9.578659586120539E-3,1.9694979082102337E-2,1.5384790247764624E-2,1.22247338870106E-2,7.6685215074323012E-3,2.0552927895178427E-2,2.055292789517843E-2,2.0552927895178427E-2]
[null,"Manufacturing: Basic metals",1.6009143717419939E-2,2.0589440261831241E-2,2.0593063544660981E-2,3.7755694075142239E-2,2.4337485339862474E-2,3.5200606778124303E-2,2.598623620443247E-2,2.6413232178024784E-2,7.7646354839271209E-2,3.7057012228766242E-2,1.4043186025958621,0.3895012982585348,0.23063238347553874,0.1669905801868089,0.26003927946790772,0,0,0.14415874287262856,0,0.12782956924084188,3.0568824135077756E-2,0.14171890291972394,2.4869968060257413E-2,1.6838095081891526E-2,2.5021238521544108E-2,3.5016455104485457E-2,1.875019359734394E-2,5.8644248117622451E-3,1.1513673541642134E-2,4.2239202554667676E-2,0,2.5174525455293272E-2,3.6470026339985355E-2,2.9397833412961424E-2,2.7317122495524523E-2,1.6329483636425259E-2,3.6950577853418091E-2,3.6950577853418098E-2,3.6950577853418091E-2]
[null,"Manufacturing: Fabricated metal products except machinery and equipment",1.4762994923169693E-2,7.1922583340435827E-3,1.7978723275278365E-2,2.7773500927139282E-2,2.1052591315593751E-2,2.2319108822157461E-2,1.7939214721209403E-2,1.6456482131437265E-2,4.1312891696603175E-2,1.8088750823680579E-2,2.3038958374002688E-2,1.0991725138318607,7.4810240915139201E-2,6.7423001998451831E-2,7.9732809644405975E-2,0,0,6.1429714782717186E-2,0,5.0848034813331743E-2,2.2865317483463977E-2,5.3086608156632534E-2,1.9601532656963273E-2,1.3240632452001053E-2,1.7627186024398948E-2,2.1277883509178523E-2,1.9965480558814482E-2,3.5032844927184131E-3,8.1025578705334871E-3,2.8090386157303821E-2,0,2.6396215932079484E-2,2.7518782318047059E-2,2.2142894808035402E-2,1.8780040795320085E-2,1.2239687793918732E-2,2.7527918728839425E-2,2.7527918728839428E-2,2.7527918728839425E-2]
[null,"Manufacturing: Machinery and equipment not classified elsewhere",4.9748034049751895E-3,4.1312591428996816E-3,6.973209322285707E-3,1.4478952138251006E-2,1.0203464640813129E-2,1.2851856671008551E-2,1.1201896164055097E-2,8.0747103642694659E-3,2.0569016231212808E-2,9.2638941815448624E-3,1.2928183009980951E-2,2.8965720294760619E-2,1.0967442920746118,4.2876371233917659E-2,4.2313749831431546E-2,0,0,2.948993634395148E-2,0,2.9233726512191988E-2,1.2488614170139885E-2,1.6544730163856523E-2,1.0536803442500027E-2,5.0785079441273825E-3,8.0832831933117816E-3,7.0962109739403515E-3,4.8660779527494417E-3,1.5096828145734868E-3,1.0288849541492224E-2,9.2776618586938951E-3,0,6.7563602605069046E-3,1.149534691857375E-2,8.7773788196981849E-3,8.2274197436206092E-3,5.9010210550513517E-3,1.1167332415215609E-2,1.1167332415215609E-2,1.1167332415215609E-2]
[null,"Manufacturing: Office, accounting and computing machinery",2.5703431750752886E-2,1.4065590116122536E-2,3.586652798420617E-2,6.5088530997670854E-2,3.8379737560882185E-2,6.8639210000459944E-2,2.7419161901161601E-2,4.5242226677382487E-2,0.10503196515298077,5.0730600375284159E-2,4.4547268424670862E-2,9.9180966152618413E-2,0.18946780894417903,1.9087872618281827,0.26898926599905276,0,0,0.16275513634157276,0,0.16219608881640388,4.6539139250161878E-2,5.2453124942252086E-2,6.8334563640286144E-2,3.118956771307178E-2,4.0865512465476046E-2,0.10144209408234409,3.3903865850294548E-2,9.1514145176127305E-3,1.9589241842764241E-2,6.7625871772996712E-2,0,5.1585091399629759E-2,7.7829136080040051E-2,6.1274029890583344E-2,8.104589834981378E-2,3.2644546619177893E-2,7.5694853022712005E-2,7.5694853022712005E-2,7.5694853022712005E-2]
[null,"Manufacturing:  Electrical machinery and apparatus not classified elsewhere",1.1711309947238223E-2,6.4370179500457423E-3,1.585071209812593E-2,3.3827352733132074E-2,1.7513806955410358E-2,3.0847212857267492E-2,1.2573822625869934E-2,1.7927704616840422E-2,5.5488304686918864E-2,2.2688448809463062E-2,2.5455763463270022E-2,5.8102477893221663E-2,0.11019097815622446,0.24529054623747293,1.2677484092571829,0,0,0.11560531173136045,0,6.6982706466717751E-2,2.0348676677584703E-2,4.1507407871157136E-2,2.3377986314227255E-2,1.4136021462023338E-2,1.9258226675666956E-2,4.1343497894095298E-2,1.5227801944953042E-2,4.4832009789760206E-3,8.3806829177472553E-3,4.1957568572197304E-2,0,2.0512890193332595E-2,3.5563557123159367E-2,2.8220743395291306E-2,2.7442743690602633E-2,1.3960326757019321E-2,3.620607888945726E-2,3.6206078889457267E-2,3.620607888945726E-2]
[null,"Manufacturing: Radio, television and communication equipment",0,0,0,0,0,0,0,0,0,0,0,0,0,0,0,1,0,0,0,0,0,0,0,0,0,0,0,0,0,0,0,0,0,0,0,0,0,0,0]
[null,"Manufacturing: Medical, precision and optical instruments",0,0,0,0,0,0,0,0,0,0,0,0,0,0,0,0,1,0,0,0,0,0,0,0,0,0,0,0,0,0,0,0,0,0,0,0,0,0,0]
[null,"Manufacturing: Motor vehicles, trailers and semi-trailers",3.3253180350490401E-2,1.8523132953991047E-2,4.4443755662402933E-2,7.1354852304128941E-2,4.530452967590539E-2,6.5605015967462682E-2,3.043452145155592E-2,4.3276905457491043E-2,7.3679193044814767E-2,5.108989301342521E-2,5.986886993299935E-2,7.7631265145683415E-2,9.6294071466762318E-2,8.8995860464535934E-2,8.9906110352932181E-2,0,0,1.3519996088505963,0,6.8212336503739951E-2,4.6951618942606972E-2,5.331581397772072E-2,4.7158964601064488E-2,3.9771357036181031E-2,8.2388819667936777E-2,4.1199317885897334E-2,4.3385121727172536E-2,7.112064913710631E-3,2.3653219755292894E-2,7.2632436027001437E-2,0,5.4533943472700269E-2,9.336001921553623E-2,7.956976725888204E-2,6.091968831137512E-2,3.9354058166721391E-2,0.10469143318051785,0.10469143318051788,0.10469143318051785]
[null,"Manufacturing: Other transport equipment",0,0,0,0,0,0,0,0,0,0,0,0,0,0,0,0,0,0,1,0,0,0,0,0,0,0,0,0,0,0,0,0,0,0,0,0,0,0,0]
[null,"Manufacturing: Manufacturing not classified elsewhere; recycling",7.4568091747884971E-3,4.1265593489088299E-3,1.0069139564185734E-2,2.7093556172620166E-2,1.3405157753680313E-2,1.8601227388431854E-2,7.3642213761784953E-3,1.3134859059141257E-2,2.1576434313894107E-2,1.3220447370873703E-2,1.1599269146367741E-2,1.9584151284678466E-2,2.3408086875337894E-2,3.1665120364434196E-2,2.827116864058361E-2,0,0,1.8262205699643486E-2,0,1.0607187865957988,1.2411162913417383E-2,1.5770210576869823E-2,1.2226856666448429E-2,9.9074462436349753E-3,1.165051584100967E-2,1.0765866194043986E-2,1.163966437324288E-2,2.5885491504366812E-3,6.6541288561881157E-3,2.0022454293570528E-2,0,1.3379453686336727E-2,2.4907086353466418E-2,2.0515796091654315E-2,2.7720963957463728E-2,1.4108774628580135E-2,2.6316282173221586E-2,2.6316282173221586E-2,2.6316282173221586E-2]
[null,"Electricity, gas and water supply",3.4541042842539484E-2,1.7033642904027865E-2,4.3927327396040598E-2,5.8093915485615565E-2,4.5792099274429149E-2,6.8050337042291381E-2,2.4269671739213364E-2,3.9017477279487456E-2,6.4627861849874638E-2,5.587114738847837E-2,7.9050552570774674E-2,6.4308542600648499E-2,6.2203423615246042E-2,5.9304404851571853E-2,6.2712875006360538E-2,0,0,4.9327404738547465E-2,0,5.6894319593714722E-2,1.1887050397986518,4.208089261330613E-2,3.4183490924662469E-2,6.5593728049941166E-2,3.3218921806261473E-2,3.235856538623709E-2,2.9282763927735937E-2,1.6072067832424698E-2,1.2104591293688788E-2,5.4279297212640326E-2,0,3.6472468094904717E-2,7.9785438444539725E-2,5.7291615032353735E-2,5.2928132680455764E-2,3.830636841514292E-2,6.7489940347103011E-2,6.7489940347103025E-2,6.7489940347103011E-2]
[null,"Construction",4.3488625791223666E-3,1.6542026563602138E-3,5.6511509612988849E-3,4.6231605572586865E-3,3.1332998603042944E-3,3.7816963484797587E-3,4.953254697040368E-3,3.831189896961542E-3,4.8805548517655631E-3,4.1074948820494957E-3,2.8924977810215703E-3,4.309464077223016E-3,4.8691890941908317E-3,6.5791429370885566E-3,7.0037169356785695E-3,0,0,5.0541149914612761E-3,0,4.9441102235268783E-3,5.8620233722869695E-3,1.0723495868671489,2.4054953966960056E-3,5.2969969899378062E-3,3.9544608232173787E-3,2.4911900098429276E-3,4.2627068169295481E-3,4.7626215418332968E-3,1.0733045780771016E-3,5.8138595906442117E-3,0,3.508519229771339E-3,8.9023820308550741E-3,6.7711470627034587E-3,4.796590600484295E-3,2.5891202172967009E-3,5.2730170689293367E-3,5.2730170689293367E-3,5.2730170689293367E-3]
[null,"Wholesale and retail trade; repairs",0.17078742449432438,8.2140412995113224E-2,0.243224124199443,0.27513087590908442,0.24345354716788475,0.29658470168855727,0.13689567994929511,0.22123948359599113,0.29037753641333874,0.21391736544197026,0.26669916218391793,0.29623112510367211,0.32778077777110842,0.28213829545587432,0.29061409970559032,0,0,0.32653311554583042,0,0.26844759990871575,0.26901246171598303,0.26000021347945929,1.1454702825918963,0.15259885328710229,0.20591553222022072,0.16300389848258148,0.14933662711066562,3.2461885377268018E-2,5.8674138814620892E-2,0.2485215511641182,0,0.18874155057574205,0.35452065913179992,0.2850328974960003,0.24871576553689814,0.13499005008151241,0.37984922270385585,0.3798492227038559,0.37984922270385585]
[null,"Hotels and restaurants",2.1183708523594951E-2,1.3686472528870749E-2,2.6940144199676906E-2,4.5364627745961346E-2,3.0055750734687324E-2,3.742792840260048E-2,2.2300424056571424E-2,3.1644383740389734E-2,4.1130999850095176E-2,2.9276404381811658E-2,2.6610337858047412E-2,4.0234297655580925E-2,5.2771931714753979E-2,4.9068008030248959E-2,4.6572032269446346E-2,0,0,3.9998920264682873E-2,0,4.4811115876886728E-2,3.579564498210918E-2,3.8590326441216363E-2,2.6385831440418017E-2,1.0282832018375874,3.725268252921151E-2,3.0453855700349947E-2,3.6280401783801042E-2,4.6600402834146822E-3,9.8632304447175342E-3,5.6781172547757185E-2,0,4.2257717636538218E-2,9.0668002837314118E-2,6.9878634956610688E-2,5.2376687450481116E-2,2.402639338418594E-2,9.4373124043825488E-2,9.4373124043825501E-2,9.4373124043825488E-2]
[null,"Transport and storage",8.0981440063526075E-2,4.151287186500123E-2,0.11040455963344924,0.1343040023076246,0.12140754323651622,0.14987602415351206,6.8602653330910715E-2,0.10459155631621868,0.13959146286755139,0.10044533204524908,0.10198797598675953,0.1280267008523969,0.15852858814530202,0.14459623742830824,0.14137530928651809,0,0,0.13268252580839629,0,0.13647796577919385,0.13299351657914243,0.12282990159070797,7.7138132663358255E-2,8.3205645478652418E-2,1.1126255521009913,0.10061376658407502,8.6409138133148947E-2,1.6042597224241551E-2,2.8847026808383747E-2,0.14005261116074127,0,0.10723535020443899,0.20907604661939508,0.17187559707755842,0.13678789958762405,7.5251182009973397E-2,0.232707019500837,0.23270701950083703,0.232707019500837]
[null,"Post and telecommunications",2.8441200767088254E-2,1.6113870493837657E-2,3.9132509818157128E-2,4.7765416479075867E-2,3.6701901288378719E-2,5.2591891583833039E-2,2.7515087893532606E-2,5.1813246388493973E-2,5.1240316980275674E-2,3.8076966131038593E-2,3.0869529032281212E-2,4.7878060083082166E-2,5.7893493689374902E-2,5.0390149071839523E-2,4.7688073170662849E-2,0,0,4.5926142617703551E-2,0,5.0198161645506022E-2,4.4432536921963021E-2,4.5687316628301833E-2,4.2172015255937494E-2,4.8977317773011599E-2,4.3433939241665415E-2,1.1005227411604548,6.4856917442476639E-2,1.6471203490737937E-2,2.0316314748596916E-2,9.3134095857352481E-2,0,6.5330302209696989E-2,0.10300850548811194,8.7155043533950094E-2,6.0462164186664363E-2,6.0668506623194139E-2,8.9193157898105627E-2,8.9193157898105627E-2,8.9193157898105627E-2]
[null,"Finance and insurance",4.1738815026529423E-2,3.9990109789960773E-2,4.4316209920976318E-2,5.0454128199276332E-2,4.1260932064435242E-2,5.9321429096186748E-2,4.7794459639644474E-2,5.3578159977197198E-2,5.2399384889520437E-2,4.4667501497051773E-2,4.256710768352133E-2,5.2893077306125628E-2,5.976810732445318E-2,4.8445074955059522E-2,5.0071420541374499E-2,0,0,4.9012484195009698E-2,0,4.846432807082976E-2,6.5919548524802363E-2,5.0101056589571216E-2,5.9158553538396004E-2,5.0953245519393078E-2,6.9855771124962204E-2,5.5189856636903123E-2,1.1734062422704186,1.0687190128238771E-2,2.1978859240820634E-2,5.6748772836196913E-2,0,4.6228542645006233E-2,9.5041587010714218E-2,6.1237163757898574E-2,4.8750144097942469E-2,3.7476659811733752E-2,7.9487067890664911E-2,7.9487067890664911E-2,7.9487067890664911E-2]
[null,"Real estate activities",6.1687755182041872E-2,3.4477968610979307E-2,8.1714192980823094E-2,0.12160862905013158,8.8848175364945617E-2,0.11850545442359119,6.0755771139821078E-2,8.650446598852482E-2,0.1214047434460462,8.7849628042293168E-2,7.6785976742599085E-2,0.11436855175326975,0.14570955218770357,0.11737333832760934,0.11907805961052942,0,0,0.10509716616913577,0,0.12278768146860602,9.5240350260422671E-2,0.10680218322687438,0.1022152225952494,0.1061263528680219,9.8601002198082266E-2,0.10805099521228474,0.12582269658971978,1.022805329443879,3.8585000281892289E-2,0.17416944090265404,0,0.12851851416591811,0.23305493170819186,0.20215237226551214,0.15433078794232508,9.1494708100346558E-2,0.26449016803410197,0.26449016803410197,0.26449016803410197]
[null,"Renting of machinery and equipment",8.5428362440298448E-3,1.9221645669437248E-2,1.3213320663901362E-2,1.295305227453942E-2,8.8822818243424282E-3,1.8262300256954481E-2,1.7128157200116383E-2,2.2061776109802998E-2,1.9059427956624568E-2,1.5029034593242027E-2,1.0878303870948462E-2,1.396574055719846E-2,2.3514171527261821E-2,1.9349890023507753E-2,1.6611098846183947E-2,0,0,1.7387276717127739E-2,0,1.4120690166909733E-2,1.5698712034684367E-2,1.9022610196407098E-2,9.8428303540204678E-3,1.3190769699501382E-2,1.8764592631039946E-2,1.9416539235668901E-2,9.3817454324259981E-3,1.8702800020820663E-3,1.0089130797763537,1.9712083491566192E-2,0,1.1218701003326377E-2,1.7377385116441456E-2,1.3460256021587806E-2,1.119298498094908E-2,1.1187307389436792E-2,1.6080492831456981E-2,1.6080492831456985E-2,1.6080492831456981E-2]
[null,"Computer and related activities",4.8596839048484566E-4,2.9569389080336106E-4,6.7449378900654626E-4,8.0605270932908194E-4,6.4064305197254106E-4,8.6495379002808973E-4,4.5632246894042718E-4,6.7078075139634277E-4,8.538305127248774E-4,6.1267867955213274E-4,6.0256413743019742E-4,8.3277792442123947E-4,9.8784045510127267E-4,8.1617686266974234E-4,8.0093301094736398E-4,0,0,7.752454453822578E-4,0,8.1732112841796558E-4,7.273903321676254E-4,9.7465120039161909E-4,1.5037253387496952E-3,1.2456271138274523E-3,7.0517721027340478E-4,6.6496975176200503E-4,2.3832787702507277E-3,2.6919424914696304E-4,3.1838625540834203E-4,1.0013591571213412,0,8.4698341167069487E-4,1.955486437921219E-3,1.1137295914086442E-3,8.1745160221636495E-4,5.4092589088797877E-4,1.2830415495766934E-3,1.2830415495766936E-3,1.2830415495766934E-3]
[null,"Research and development",0,0,0,0,0,0,0,0,0,0,0,0,0,0,0,0,0,0,0,0,0,0,0,0,0,0,0,0,0,0,1,0,0,0,0,0,0,0,0]
[null,"Other Business Activities",7.6307055440017771E-2,5.4847542993153031E-2,0.11694920686825615,0.14500013698756872,9.2154761289473322E-2,0.15894300261274588,0.12722004954639979,0.13471965005169864,0.16027068145595352,0.12249936086046416,0.10064047894072903,0.14289432323865839,0.16512204129122948,0.15877732194250538,0.14438981933589703,0,0,0.12895990164886725,0,0.13939097580037715,0.12857914192182868,0.12771228626594283,0.12645531444396924,0.12060687891476682,0.12929053324006412,0.19144358004690593,0.24019276487159633,4.3025837923615216E-2,5.9650401505380576E-2,0.37194352569216749,0,1.1657325847113065,0.22015193462629803,0.16319177436826016,0.14512567600305384,0.11799885081575001,0.1697799234888589,0.1697799234888589,0.1697799234888589]
[null,"Public admin. and defence; compulsory social security",9.8272224671932282E-4,5.8260014241909362E-4,1.2222171686280471E-3,1.5882690455366825E-3,1.3188615270607056E-3,1.6949835489581773E-3,8.8895205082019282E-4,1.2356824990094317E-3,1.6247723600737829E-3,1.2771291323180568E-3,1.3605193951322662E-3,1.5726390891419931E-3,1.8992933913894771E-3,1.608364154685199E-3,1.6295939450058942E-3,0,0,1.4700388917292851E-3,0,1.5813916545955198E-3,7.6235017749395938E-3,1.466647044599991E-3,1.1091693344839238E-3,1.2957656532240295E-3,5.3732518062343379E-3,1.2780566055041007E-3,5.5549802308267711E-3,2.5114645838150538E-4,4.8696098688054727E-4,1.8068522813578008E-3,0,1.3522264709364751E-3,1.002857287176997,2.2953286185086168E-3,1.774541112967319E-3,9.8252921650498039E-4,3.0963020825150209E-3,3.0963020825150213E-3,3.0963020825150209E-3]
[null,"Education",1.0561551400867496E-2,5.763820684228523E-3,1.2773431562035652E-2,1.8479342529156114E-2,1.4480924745344128E-2,1.7173936598338574E-2,1.0171380845666499E-2,1.3987983085845312E-2,1.7642827018624928E-2,1.3754288990217425E-2,1.2372739439189805E-2,1.7369040650451383E-2,2.3636724141613077E-2,1.7809235286650963E-2,1.8138094803682177E-2,0,0,1.6525174484658785E-2,0,1.8466368359336634E-2,1.6747027986028774E-2,1.7666423726716174E-2,1.3183185719459744E-2,1.4135274904756778E-2,1.6250701426523146E-2,1.4430018868218717E-2,1.9054997690771975E-2,2.0962282646319573E-3,4.2301077510577207E-3,2.5125305983761698E-2,0,1.8977419431965365E-2,5.0193606140590159E-2,1.0374392630311529,2.629041283329258E-2,1.1770973626920655E-2,5.0234562702956308E-2,5.0234562702956315E-2,5.0234562702956308E-2]
[null,"Health and social work",9.5427642387059513E-3,5.1527703309698358E-3,1.1452975071862406E-2,1.6721400912665205E-2,1.3150652248922336E-2,1.5365493978946213E-2,9.1250757227935644E-3,1.2226338554518367E-2,1.5866190217627498E-2,1.2347112404317745E-2,1.1202144338124319E-2,1.5697507669941248E-2,2.1424084776464718E-2,1.6087046098067118E-2,1.6395501589149628E-2,0,0,1.4902856290849616E-2,0,1.6668332722292331E-2,1.4511618349547499E-2,1.5981340695528083E-2,1.1824013117219406E-2,1.266947923255168E-2,1.4298174965689414E-2,1.2901449823063946E-2,1.4429394124670876E-2,1.8073252629240372E-3,3.7363802616323721E-3,2.2518429375609779E-2,0,1.6805606877831752E-2,3.7549274308923783E-2,3.2613276871394474E-2,1.023176007061023,1.0101950470008879E-2,4.5918891975859598E-2,4.5918891975859605E-2,4.5918891975859598E-2]
[null,"Other community, social and personal services",1.3512642556259266E-2,7.9467557738647273E-3,1.6452924243781055E-2,2.3588152847982689E-2,1.8398526923910037E-2,2.2247962489252798E-2,1.344926585885518E-2,1.7845351853592366E-2,2.2670541290208828E-2,1.7611102980611394E-2,1.5907481309630038E-2,2.2215983878019402E-2,3.0102172529868746E-2,2.3000745160140952E-2,2.3286932776666228E-2,0,0,2.1147411235716437E-2,0,2.365518923925701E-2,2.1208200265604337E-2,2.2998147184490555E-2,1.7036238446037438E-2,2.5276750460662162E-2,2.1807088691248224E-2,2.3220720496061997E-2,2.8560940662828448E-2,2.8606362728635869E-3,5.9347134848373338E-3,3.2739004981559953E-2,0,2.7265272284255855E-2,5.4979501365997267E-2,4.5015740407821539E-2,3.6546926766750601E-2,1.0215197466580621,6.2021418344638979E-2,6.2021418344638986E-2,6.2021418344638979E-2]
[null,"Private households with employed persons",2.8325752226294504E-3,1.530916986673059E-3,3.3909623430962996E-3,4.9614689745462433E-3,3.900272200643371E-3,4.5515866228595285E-3,2.7121288734037905E-3,3.6256696080996026E-3,4.7021357067601145E-3,3.66468095604008E-3,3.315119500638375E-3,4.6530873329443875E-3,6.3653380195279703E-3,4.7707202865548432E-3,4.8626204994235657E-3,0,0,4.4109571595858411E-3,0,4.9461463710143896E-3,4.3062543533675373E-3,4.7464240841401141E-3,3.5110996429144254E-3,3.7636092907735908E-3,4.2507502247099566E-3,3.832099262636608E-3,4.2888687862344763E-3,5.3274997699253365E-4,1.1053534367345586E-3,6.6970498046810155E-3,0,4.9979076101174958E-3,1.1196020216005107E-2,9.728211791720974E-3,6.901671891560629E-3,2.9960621467953062E-3,1.0137074744382031,1.3707474438203119E-2,1.3707474438203117E-2]
[null,"Payments to households",0.36849588903209024,0.19916032998224678,0.44113768746930609,0.64544832069221325,0.50739491772757095,0.59212583153933884,0.35282676074769537,0.4716712675093786,0.6117110902366929,0.4767463388532287,0.43127112666803286,0.60533028030429981,0.82808070682702883,0.62063340781662646,0.63258890695845038,0,0,0.57383103792568935,0,0.64345496977759387,0.56021002149042132,0.61747266185041405,0.45676661084218639,0.48961614169795198,0.55298936832957069,0.49852615152569346,0.55794829514125233,6.9306606523745207E-2,0.14379783954548192,0.87123381647646092,0,0.65018870227243497,1.4565146902923989,1.2655642908416551,0.89785355007361833,0.3897642595891464,1.7832352479597631,1.7832352479597633,1.7832352479597631]
[null,"Payments to workers",0.36849588903209024,0.19916032998224678,0.44113768746930609,0.64544832069221325,0.50739491772757095,0.59212583153933884,0.35282676074769537,0.4716712675093786,0.6117110902366929,0.4767463388532287,0.43127112666803286,0.60533028030429981,0.82808070682702883,0.62063340781662646,0.63258890695845038,0,0,0.57383103792568935,0,0.64345496977759387,0.56021002149042132,0.61747266185041405,0.45676661084218639,0.48961614169795198,0.55298936832957069,0.49852615152569346,0.55794829514125233,6.9306606523745207E-2,0.14379783954548192,0.87123381647646092,0,0.65018870227243497,1.4565146902923989,1.2655642908416551,0.89785355007361833,0.3897642595891464,1.7832352479597631,0.78323524795976318,1.7832352479597631]

{"sheet":"CustomRegion3","index":13,"n_rows":147,"n_cols":45,"rows_kept":147,"cut":false,"hidden":false,"merged":[[1,2,1,4]]}
[]
[null,null,"Custom Region 3"]
[]
[null,null,"Enter data in boxes below"]
[]
[]
[]
[]
[]
[null,null,null,null,"Dollar Year of Earnings",2014]
[null,null,null,"Value Added as a Percentage of Output","Labor Payments as a Percentage of Output",{"$f":"\"Average Earnings ($\"&CustomRegion3_EarningsYear&\") per Job\"","v":"Average Earnings ($2014) per Job"}]
[null,null,"Agriculture - Maize",0.39483849680684985,0.31372267909867918,103.27241247823075]
[null,null,"Agriculture - Drought tolerant staples",0.53280921607330967,0.48310549895633775,103.27241247823075]
[null,null,"Agriculture - Groundnuts (Peanuts)",0.45105417566227013,0.37192702713163694,103.27241247823075]
[null,null,"Agriculture - Sugar",0.27140068842246767,9.097651240680342E-2,103.27241247823073]
[null,null,"Agriculture - Cotton",0.22202332930617175,0.15070983178147818,103.27241247823075]
[null,null,"Agriculture - Tobacco",0.28724810781054666,0.20064492107086304,103.27241247823075]
[null,null,"Agriculture - Coffee",0.31921808344135122,0.25385725569389789,103.27241247823075]
[null,null,"Agriculture - Wheat",0.21606289377121429,0.13085015471416933,103.27241247823075]
[null,null,"Agriculture - Horticulture",0.48206774989347195,0.40612728236135004,103.27241247823075]
[null,null,"Agriculture - Other Crops",0.46038809538516151,0.43274344589962804,103.27241247823075]
[null,null,"Agriculture - Livestock",0.30086181735290085,0.19350246036524735,103.27241247823075]
[null,null,"Fishing",9.1248783504656789E-2,3.8794036643326493E-2,103.27241247823075]
[null,null,"Forestry",0.32054581216219258,0.18191321721775378,103.27241247823075]
[null,null,"Mining",0.2443122122186287,8.9103054399457884E-3,1134.5687814359997]
[null,null,"Food and beverage manufacturing",0.11213204107571055,5.1915948957262217E-2,266.1726449111473]
[null,null,"Textile manufacturing",0.10148505152333756,2.7887037985281644E-2,266.17264491114736]
[null,null,"Wood and furniture manufacturing",0.1837365053970062,5.6951942954715416E-2,266.1726449111473]
[null,null,"Fertilizer and industrial chemical manufacturing",0.18636737370790524,3.5996587977751175E-2,266.1726449111473]
[null,null,"Other manufacturing",0.10732166024291469,3.6137291264551389E-3,266.1726449111473]
[null,null,"Electricity and water",0.26655932816568229,1.319548238454352E-2,590.37077558234773]
[null,null,"Equipment and machinery",0.12599400530786029,2.8255037967936554E-2,266.1726449111473]
[null,null,"Construction",6.0665831734038042E-2,2.6683936316053973E-2,287.45516025656241]
[null,null,"Trade, transportation",0.22607141540817993,8.3230021793909925E-2,401.63837509030287]
[null,null,"Tourism",0.43707898024884495,0.30632217126912781,344.81474506450985]
[null,null,"Other private and community services",0.36599151791447643,0.29283887442509154,428.61075812910872]
[null,null,"Financial services and insurance",0.20832866456119223,4.9642135950530256E-2,1008.0607580969252]
[null,null,"Public services",0.21415943308557375,0.13930419846466202,428.61075812910877]
[null,null,"Labor - less than primary schooling",0,0,0]
[null,null,"Labor - primary schooling",0,0,0]
[null,null,"Labor - secondary schooling",0,0,0]
[null,null,"Labor - post-secondary schooling",0,0,0]
[null,null,"Households - rural/remote - small",0,0,0]
[null,null,"Households - rural/remote - medium",0,0,0]
[null,null,"Households - rural/remote - non-farm",0,0,0]
[null,null,"Households - rural/non-remote - small",0,0,0]
[null,null,"Households - rural/non-remote - medium",0,0,0]
[null,null,"Households - rural/non-remote - large",0,0,0]
[null,null,"Households - rural/non-remote - non-farm",0,0,0]
[null,null,"Households - urban - low skilled self-employed",0,0,0]
[null,null,"Households - urban - private employees",0,0,0]
[null,null,"Households - urban - public employees",0,0,0]
[null,null,"Households - urban - high skilled ",0,0,0]
[]
[]
[]
[]
[]
[]
[]
[]
[]
[]
[]
[]
[]
[]
[]
[]
[]
[]
[null,"Type 1 Total Requirements"]
[null,null,null,"Agriculture - Maize","Agriculture - Drought tolerant staples","Agriculture - Groundnuts (Peanuts)","Agriculture - Sugar","Agriculture - Cotton","Agriculture - Tobacco","Agriculture - Coffee","Agriculture - Wheat","Agriculture - Horticulture","Agriculture - Other Crops","Agriculture - Livestock","Fishing","Forestry","Mining","Food and beverage manufacturing","Textile manufacturing","Wood and furniture manufacturing","Fertilizer and industrial chemical manufacturing","Other manufacturing","Electricity and water","Equipment and machinery","Construction","Trade, transportation","Tourism","Other private and community services","Financial services and insurance","Public services"]
[null,null,"Agriculture - Maize",1.3399626214614324,3.7876404724049267E-7,2.4641733359371707E-7,3.0224006751617692E-7,3.7636043748719627E-7,3.1564335887926132E-7,1.9242060553808903E-7,7.3997342489597267E-7,1.3879651754508078E-7,1.3879956554540013E-7,1.1948607502499127E-2,5.7788992392535205E-6,3.6654756811005031E-6,2.7811765311244455E-6,3.2303676217323274E-2,5.910531354039772E-6,2.9169450785493079E-5,2.0706687159359446E-7,2.0565436966365825E-5,5.0758510476885242E-6,2.1772832906964578E-7,1.1345840573088293E-5,1.3725217663127404E-5,2.6058154452529179E-3,7.9277336850809954E-6,4.1684273214480144E-6,1.0639264064405077E-3]
[null,null,"Agriculture - Drought tolerant staples",7.69443300191028E-7,1.1562969558579017,2.8216720847175879E-7,3.4567184102111347E-7,4.1425303013767036E-7,3.5723470687171708E-7,2.0837363568888579E-7,8.051107737284848E-7,1.5401281200692267E-7,1.5764925990448232E-7,1.0082439535050541E-2,6.4193882918261577E-6,4.2223838059297415E-6,3.0371150802580907E-6,3.7500399558369445E-2,6.777152309574178E-6,3.3669837050604603E-5,2.3230135006508287E-7,2.2098552260405451E-5,5.5059075671873011E-6,2.4066763114116257E-7,1.2513959116960078E-5,1.5704890666249376E-5,3.0249983277722287E-3,9.0832547177343986E-6,4.7640079241426225E-6,1.234578481533256E-3]
[null,null,"Agriculture - Groundnuts (Peanuts)",3.9449792050816254E-6,1.4800084603335304E-6,1.7545275623692937,1.2393525748251353E-6,4.8468959835811811E-6,2.0410140818361797E-6,3.1705952614396231E-6,1.1409948192270015E-5,1.5275970628367628E-6,7.3379923061893929E-7,7.0417952083758808E-3,6.1907081547396469E-5,6.6737115457809237E-6,4.0432204096114394E-5,2.6173687260416752E-2,1.9122119723082696E-5,3.6306974150965468E-5,1.769986311794011E-6,3.7363581931759943E-4,8.1733788755550252E-5,2.5948850841495945E-6,1.4009374994315558E-4,5.63800932578989E-5,2.1146828315677059E-3,2.9186059019805785E-5,1.8114054634298204E-5,1.045141910223184E-3]
[null,null,"Agriculture - Sugar",4.3700760871846475E-7,2.4619878909497391E-7,1.6025770450193554E-7,1.9433966124579392,2.3527623940568083E-7,2.0289251327874665E-7,1.183464255647753E-7,4.5726505629876528E-7,8.7472034223239234E-8,8.9537365612241241E-8,5.7263514935630136E-3,3.6459106553397618E-6,2.3981154292497184E-6,1.7249385345182224E-6,2.1298463360355992E-2,3.8491037923035346E-6,1.9122884001682877E-5,1.3193624204513751E-7,1.2550938421404451E-5,3.1270965634037747E-6,1.3668789624242068E-7,7.1073402652874546E-6,8.9196393204524304E-6,1.7180567889393537E-3,5.1588615075241237E-6,2.7057324566066329E-6,7.0118251709538079E-4]
[null,null,"Agriculture - Cotton",6.8696621081398273E-3,5.1697272370268893E-3,3.6224017954679427E-3,4.7582039630467784E-5,1.3963820031626326,4.0812528845912193E-3,1.4679913177977388E-5,1.8153495716760908E-3,9.2108349195151127E-4,4.2131747360547777E-5,1.1557428622454519E-3,1.4071054871253198E-3,1.7202660388993302E-4,1.1157451590799602E-3,4.0495691752763735E-3,0.20308883012895684,1.2177715790222222E-3,8.4610479503967922E-5,2.9044070466138923E-4,8.3365027190266327E-4,1.4587201090572239E-4,6.0485371803660438E-3,5.4028938044942713E-3,8.9721930458123685E-4,1.0604451620688758E-3,8.5682996436198394E-3,4.307244109029806E-3]
[null,null,"Agriculture - Tobacco",1.7427742276083227E-5,1.1671242101715592E-5,8.0098100297244662E-6,9.2680249508404965E-6,4.0258118695633652E-6,1.6889701299508997,1.5802560370378317E-6,8.7460440835182831E-6,2.799552231042734E-6,1.1331977495459174E-5,4.7584846792513369E-3,1.5844663419681664E-4,4.1036179440045051E-4,6.2973378450186711E-5,1.7684257298081416E-2,3.741423914491687E-4,3.6587249647892341E-3,4.0452862350220214E-6,1.495040046899714E-4,4.8470552895065975E-5,2.8911057445757696E-6,2.496719295083566E-4,1.3690909035134029E-4,1.4418674063636095E-3,2.5141218161371469E-4,7.5944361581704224E-5,8.5085657564296145E-4]
[null,null,"Agriculture - Coffee",2.2946066867874066E-7,1.292722086448239E-7,8.4146910264952551E-8,1.0308503792862178E-7,1.2353707839679065E-7,1.0653327502323727E-7,1.4881024433260688,2.4009729690846758E-7,4.5929157898220565E-8,4.7013606571673528E-8,3.0067495773259639E-3,1.9143673479062216E-6,1.2591844146103878E-6,9.057177533384085E-7,1.1183236966579723E-2,2.0210584721531577E-6,1.0040900118329546E-5,6.9276089749140009E-8,6.5901523572247974E-6,1.641952346243677E-6,7.1771052600327274E-8,3.7318687758840594E-6,4.6834571344105838E-6,9.0210433812388873E-4,2.7087762032539739E-6,1.4207056499071351E-6,3.6817164284707417E-4]
[null,null,"Agriculture - Wheat",1.2861420549637519E-6,7.2457918402100769E-7,4.7164893534995369E-7,5.7779837948244217E-7,6.9243340389597289E-7,5.9712597391685118E-7,3.4830129255610708E-7,1.3806979461890705,2.5743593384483566E-7,2.6351433958386132E-7,1.6853028026156413E-2,1.0730154187072373E-5,7.0578109961525516E-6,5.0766072425541514E-6,6.2682774595592544E-2,1.1328164916211596E-5,5.6279901850868332E-5,3.8829701378825968E-7,3.6938234966586225E-5,9.2032502864664211E-6,4.0228144374290615E-7,2.091736855779186E-5,2.6251083542421285E-5,5.0563538139548198E-3,1.5182867776645478E-5,7.963148083684927E-6,2.0636261370512946E-3]
[null,null,"Agriculture - Horticulture",6.6009517358158477E-6,2.2965905095971442E-6,1.4302960518235721E-6,1.9441428356898446E-6,8.7696607658608776E-6,3.4658212696721108E-6,5.814438251998987E-6,2.0855694762708284E-5,1.2245053350283606,1.2098202890894482E-6,9.7069658915807579E-4,1.1060942122147534E-4,7.5400320321604534E-6,7.3675174791351289E-5,3.577043353964682E-3,2.8213308322504093E-5,2.7742319815181648E-5,3.1018462180387495E-6,6.8824912925246197E-4,1.4972150088311467E-4,4.6715533778957704E-6,2.5280074508283681E-4,8.8488796390014262E-5,2.9498530074908454E-4,4.4609941262736095E-5,2.8775374809406251E-5,4.6516538898830855E-4]
[null,null,"Agriculture - Other Crops",5.2161595905979878E-6,1.8567180538732811E-6,1.1594316583357246E-6,1.5664027891208561E-6,6.7761574105390728E-6,2.7269142688436302E-6,4.4759490393918725E-6,1.6069284501379478E-5,2.1194203438101144E-6,1.2944600951612564,3.2879736803233498E-3,8.5767953761266004E-5,6.8037070167334194E-6,5.6815423306591782E-5,1.2203849739422287E-2,2.3176638556235818E-5,2.9618646724238886E-5,2.4184321692875623E-6,5.2916452681068529E-4,1.1529095233455471E-4,3.6146812597320222E-6,1.9547937289236982E-4,7.1288097775562724E-5,9.8933227642636172E-4,3.6233638227490548E-5,2.3095286527257129E-5,6.6613163294882783E-4]
[null,null,"Agriculture - Livestock",7.3998428016858286E-6,2.915659402303703E-6,1.8450798500107926E-6,2.407252289250858E-6,8.5988683869287388E-6,3.8170757593182456E-6,5.5795862067689552E-6,2.0146251681642632E-5,2.7414435244253978E-6,1.4845878059730624E-6,1.334823567045698,1.1173868072936645E-4,1.8752912722825483E-5,7.1871826399763565E-5,6.5382609894786017E-2,4.1097328954638326E-5,1.2550974417832741E-4,3.2133180211201532E-6,6.5580555306119154E-4,1.4398941161471206E-4,4.6223211797394679E-6,2.5029719746129787E-4,1.0676928829875428E-4,5.2800994265151157E-3,5.7499702345227224E-5,3.438372582764795E-5,2.3273324331200113E-3]
[null,null,"Fishing",5.9753806657288092E-6,3.4157233831847197E-6,2.2055792459611339E-6,2.1820033622925865E-6,2.9462839832775038E-6,2.5326095112395058E-6,1.3508926880899388E-6,5.2375256204572703E-6,1.0760794979949107E-6,1.032792793897329E-6,6.1714875979826958E-2,1.6400542122499058,2.6020817352358242E-5,1.9108204945848565E-5,0.2295398237527502,4.2453440189216873E-5,2.0685814622617462E-4,1.7765795822637935E-6,1.3623005496452513E-4,3.5463547883606948E-5,1.7389092269214338E-6,7.9105004097228805E-5,1.4079591904429245E-4,3.2437999836540041E-2,5.6217666024714506E-5,3.4192389099890587E-5,7.5652770445904134E-3]
[null,null,"Forestry",4.6929258622427724E-4,3.0302896363928973E-4,2.0324872090952625E-4,1.8475358249807745E-4,1.2630832578040569E-4,2.2973005731804689E-4,4.1657777684321174E-5,2.1249109496726854E-4,6.9694671782995023E-5,2.2600217242546829E-4,6.5428616818884405E-4,3.7981215335228108E-3,1.694592903440445,1.1827963941530687E-2,1.9531212605001687E-3,7.2765853623831967E-3,7.0166492242523526E-2,1.1775088946142521E-4,3.3348618289368529E-3,1.2821550753673164E-3,5.1554791748137656E-4,5.9679088301994917E-3,7.2558117880297066E-3,4.9489203118726602E-4,4.8779082230880283E-3,1.9875281389623604E-3,5.7925645478188997E-3]
[null,null,"Mining",1.2091524935405086E-3,4.1020480745694029E-4,2.5587740103677378E-4,3.6576412472205086E-4,1.4738302842360119E-3,6.6229329234642896E-4,9.182614820357765E-4,3.2974366983356254E-3,4.7605014976698787E-4,3.0038286615284343E-4,4.3748779216198821E-3,1.7616582784151694E-2,1.1908711980824897E-3,1.7824603091170808,1.0657141711780069E-2,4.9577841267702295E-3,4.4201879707366871E-3,7.0431598733510946E-4,0.10509816516770565,2.7159222604463459E-2,1.9836778631483333E-3,0.16052570531934343,1.5857444753406159E-2,2.1707994901565778E-3,7.9571752693642413E-3,6.3906169527846732E-3,4.5950049765482413E-2]
[null,null,"Food and beverage manufacturing",3.2339004136922348E-5,1.821895889272013E-5,1.1859231888570077E-5,1.4528274005406306E-5,1.7410679191083753E-5,1.501425077131552E-5,8.7577549442505408E-6,3.3838075704632433E-5,6.4730188220423631E-6,6.6258554294618925E-6,0.42375579039198819,2.6980106847942852E-4,1.7746296229200444E-4,1.2764719261366167E-4,1.5761077861790074,2.8483756570686918E-4,1.4151127177255004E-3,9.7634150806203348E-6,9.2878211141980607E-4,2.3140830201338647E-4,1.0115042287281081E-5,5.2595035339469184E-4,6.6006231271318022E-4,0.12713793649476499,3.8176095863152635E-4,2.0022693280834361E-4,5.1888214000625106E-2]
[null,null,"Textile manufacturing",6.2107991813010216E-2,4.6739040379885619E-2,3.2749810626189306E-2,4.301720521177424E-4,3.8154529280042572E-3,3.6898240796028603E-2,1.3271195723849104E-4,1.6412388042479867E-2,8.3274303579663374E-3,3.8090353067883582E-4,1.0068270736186843E-2,1.2721276600606785E-2,1.5551182127599645E-3,1.0087240789063711E-2,3.5195835686780731E-2,1.8361082892969214,1.1008496172193811E-2,7.6494725463499579E-4,2.625014872423326E-3,7.5367520978729431E-3,1.3188071447684951E-3,5.4683828913162716E-2,4.884650251701219E-2,7.9974619066705659E-3,9.5870500049693701E-3,7.7465076002451658E-2,3.8894805232121618E-2]
[null,null,"Wood and furniture manufacturing",7.946426334569108E-3,5.339541414341193E-3,3.6678011555227453E-3,4.2397643549625906E-3,1.7839532830545713E-3,4.5658558283551906E-3,6.9025799534054371E-4,3.8963470904578379E-3,1.2698513486937896E-3,5.24184052978139E-3,1.27990370228843E-2,7.2371858049840782E-2,0.19014610845069158,2.865749779193957E-2,4.0925770927468026E-2,0.17272382455253799,1.696183273161568,1.8327733361745118E-3,6.4782513641138476E-2,2.1365456338341877E-2,1.2935473483769099E-3,0.11351574525701132,6.0315073633156434E-2,1.0449963190469097E-2,0.11507556057518972,3.4319629443877425E-2,0.12643817470670499]
[null,null,"Fertilizer and industrial chemical manufacturing",0.17826829523795512,7.1108754773975564E-3,1.0298733273708414E-2,0.1433609030600704,7.0861908778547575E-2,0.17886709510591062,3.9651802465458637E-2,2.8852113511054496E-2,6.8246204091842774E-2,6.3020127451564573E-2,5.5891556812775979E-3,4.280645702254479E-3,2.9870164817827127E-4,1.5464181935146547E-2,1.2278512143344359E-2,1.6176516651532254E-2,1.2897190677395064E-3,1.1400732050911644,1.5929446179583022E-2,1.3595705445090641E-2,1.4398761186007443E-3,1.2910815533658162E-2,1.2576351786207791E-2,1.2984286094113728E-3,1.9325771547809348E-3,2.6133091283466817E-3,5.5142601360904262E-3]
[null,null,"Other manufacturing",1.3117097446594459E-2,4.5260294334197185E-3,2.8163302420591745E-3,3.7724666678852045E-3,1.7568780073115103E-2,6.8923074188079747E-3,1.1665491710115499E-2,4.1830883284116722E-2,5.4736585802888666E-3,2.4035997316536398E-3,3.3795032482536624E-2,0.22131250334099467,1.425430205995927E-2,0.14769927523950718,5.862221062925433E-2,5.5468407541590624E-2,4.9397153219840305E-2,6.1905765455392853E-3,1.3815201827438583,0.30031719099583831,9.3533534823360617E-3,0.50575625490684928,0.17431486294582244,1.7677125408331849E-2,8.594303021875517E-2,5.6211351420901404E-2,0.21747801652716955]
[null,null,"Electricity and water",4.8982541482676653E-2,6.514553116825408E-3,3.4835682711165804E-3,6.8998601872316033E-3,5.0360036698022449E-2,2.9528602131153572E-2,1.069384789069578E-2,4.6579618724033871E-2,1.9545024642654653E-2,1.6979176641906592E-3,1.1195101953930271E-2,1.9230415667788235E-2,7.6386121304267782E-3,4.4431788301005033E-2,2.138649096858921E-2,0.16914546428563551,1.1284789371222312E-2,1.7426249304900422E-2,8.7205678692195657E-2,2.0392018375920524,1.6594770418768264E-3,8.1056240486092002E-2,3.5306682300994631E-2,8.3547142162773164E-3,0.13517177058247484,2.8150214851040807E-2,7.5354687252701197E-2]
[null,null,"Equipment and machinery",7.487317696688452E-3,2.2601364728362995E-3,1.4108756782283737E-3,2.4695653482252806E-3,5.7182887669093747E-3,4.3316409412102715E-3,1.3160545819749419E-3,5.6415179535363883E-3,2.3051679771671271E-3,2.1966851528505481E-3,6.1492203070081353E-2,0.28895943143154768,5.9963210441419867E-3,0.18066068527494472,5.7904698487045894E-2,4.2137891482674238E-2,1.1189149662063217E-2,3.5000689068541979E-3,2.6673634613130038E-2,0.20263641478591837,1.2051078548601091,0.27477211386117628,6.2429863406369801E-2,1.5391596174319443E-2,5.8253742544046534E-2,3.2257999264549926E-2,0.15083556969475426]
[null,null,"Construction",3.2417332518484719E-3,1.1334878362314065E-3,7.0185589036092218E-4,1.0194798606799501E-3,2.2442965067142142E-3,1.9655188867257964E-3,4.800856339705102E-4,2.067411681835597E-3,8.7584708258395619E-4,1.9063407153675006E-3,4.3751835252654036E-3,9.6266317602186277E-3,1.8396658121697074E-3,1.9549060356165698E-2,9.9800077940212627E-3,1.2564287613305216E-2,1.1717215940589108E-2,1.3033726340527872E-3,5.826926998147278E-3,7.4390924113100942E-2,7.4751619691052883E-4,2.168775044915896,4.5797697601140552E-2,6.4711802102070948E-3,2.4558678067719591E-2,3.7273298203091776E-2,0.51815234157184364]
[null,null,"Trade, transportation",5.9984818870421085E-2,3.6213730735565434E-2,2.2727050837931195E-2,3.0178260071371697E-3,1.9144903551878558E-2,1.6312985375960976E-2,3.3159742562771377E-3,1.3745601839369282E-2,6.2232439811736205E-3,3.1736609148595085E-3,3.5720121992559688E-2,0.27562010276720389,7.9654980258007432E-3,2.1131767842543305E-2,8.1963413525463449E-2,4.491299382016211E-2,3.5332767984670256E-2,1.6747745610036547E-2,1.3054732650322641E-2,7.6755596712527685E-2,1.2439069277016979E-2,0.10692449616192011,2.1239014309876336,2.0573582543697361E-2,2.6199626992656603E-2,0.23797549437603011,0.11221805343589537]
[null,null,"Tourism",1.8182510796760316E-4,1.0952498829080942E-4,6.8734148587456029E-5,9.5050756579525503E-6,5.8995974790255154E-5,4.9705701178199581E-5,1.0838928376200931E-5,4.4460534830248588E-5,1.9160714020913253E-5,9.7444442215861142E-6,1.1060832384967862E-4,8.4712253851505933E-4,2.5258148888055945E-5,7.4441518282089379E-5,2.5303422719200893E-4,1.3947026390596595E-4,1.1015390487236991E-4,5.0952801295639321E-5,1.3876562553649782E-4,2.5315367799756049E-4,3.8184249715333988E-5,3.6025624160010504E-4,6.4169012928342491E-3,2.0000634669189461,8.9000664217926491E-5,7.2291998518354827E-4,1.2188400551998747E-3]
[null,null,"Other private and community services",2.5115351410937826E-3,1.479767605892154E-3,9.313609567348154E-4,7.1857877999503092E-2,8.3601582267114536E-4,1.3260082609646362E-3,1.5628889301909319E-4,6.3322196074075572E-4,2.8744100761977546E-4,1.475498170517911E-4,1.2073157078126352E-2,1.4573732659840355E-2,5.1581662734592271E-4,9.7447467069643658E-3,6.0635559285393591E-3,3.21805006626724E-3,1.9944828879536456E-3,8.8579941375094414E-4,1.4247774835356903E-3,5.2769756567328354E-3,5.927676690911718E-4,1.1493434553051638E-2,8.4512133062310743E-2,3.6817234721022748E-3,2.0592258206110374,5.447126135468592E-2,1.1210313037275186E-2]
[null,null,"Financial services and insurance",2.0205663853692026E-2,1.0383168471903587E-2,6.6559864247172909E-3,4.8236250345716153E-3,7.9724731106016397E-3,3.8762825144662089E-2,1.8168785019214014E-3,6.8948356893480233E-3,3.4057705679043887E-3,1.7728803745303762E-3,3.0052011965835772E-2,0.24727169991862019,1.1856979436051769E-2,4.2184513815289627E-2,9.563792528735876E-2,8.3513029672073344E-2,3.7646050974799318E-2,1.5126620213912085E-2,2.4675440139611513E-2,0.12669772115258138,7.5075562374665242E-3,0.3619478084192429,0.49297171968435438,4.1679515573767784E-2,8.3876659941675563E-2,2.3881158736158805,0.26181518361263656]
[null,null,"Public services",1.1659914557997153E-4,6.610888153857495E-5,4.1665356234854652E-5,3.212435533915712E-4,4.4129941648762698E-5,7.6854944805006237E-5,1.0494569042023744E-5,4.1221100856770124E-5,1.5569077987867991E-5,1.0135578192501768E-5,1.1705504078773239E-3,7.685715258048915E-4,5.2055738433869048E-4,2.9900956924695853E-4,4.0794515573413332E-3,2.0906339103030856E-4,2.1095774815572282E-4,4.5898277157523359E-5,4.0475851905094661E-4,4.4670403689041707E-4,3.039650390208743E-5,3.7360431746629994E-3,3.664024853276656E-3,4.1200241913690532E-4,9.054563359688815E-3,3.4594827499167201E-3,2.0371199842493937]
[]
[]
[]
[null,"Type 2 Total Requirements"]
[null,null,null,"Agriculture - Maize","Agriculture - Drought tolerant staples","Agriculture - Groundnuts (Peanuts)","Agriculture - Sugar","Agriculture - Cotton","Agriculture - Tobacco","Agriculture - Coffee","Agriculture - Wheat","Agriculture - Horticulture","Agriculture - Other Crops","Agriculture - Livestock","Fishing","Forestry","Mining","Food and beverage manufacturing","Textile manufacturing","Wood and furniture manufacturing","Fertilizer and industrial chemical manufacturing","Other manufacturing","Electricity and water","Equipment and machinery","Construction","Trade, transportation","Tourism","Other private and community services","Financial services and insurance","Public services","Labor - less than primary schooling","Labor - primary schooling","Labor - secondary schooling","Labor - post-secondary schooling","Households - rural/remote - small","Households - rural/remote - medium","Households - rural/remote - non-farm","Households - rural/non-remote - small","Households - rural/non-remote - medium","Households - rural/non-remote - large","Households - rural/non-remote - non-farm","Households - urban - low skilled self-employed","Households - urban - private employees","Households - urban - public employees","Households - urban - high skilled "]
[null,null,"Agriculture - Maize",1.3887453020367206,6.7799038558939248E-2,7.6755055586383944E-2,1.9952127444034344E-2,2.428341132495767E-2,4.4344825442384252E-2,3.8447794007123767E-2,1.8655178434876137E-2,5.4477715440593835E-2,6.5143720829430693E-2,4.5280227937141156E-2,1.0991132944017297E-2,2.9518164585678724E-2,2.5180015884624066E-3,5.1316959881482049E-2,8.8965515049611778E-3,8.1920497867871526E-3,3.0382609081027142E-3,1.2336597953086996E-3,3.4899102300409396E-3,2.7631557495578943E-3,7.8883476198622002E-3,1.749865445303787E-2,5.1299669117346541E-2,4.7416335593151983E-2,9.8136034198894901E-3,2.0714970059860366E-2,0.13294562480181882,0.10129867149600875,4.5249348495582611E-2,3.8111823096331196E-2,0.17185637416162775,0.13586885042079722,0.11079430390305704,0.22023654683829638,4.1408270912283808E-2,1.2018727536691183E-2,7.5611731495863782E-2,5.2578108932684629E-2,3.3561430235911863E-2,2.2288833287433744E-2,8.3837125497373214E-3]
[null,null,"Agriculture - Drought tolerant staples",2.9307383010218711E-2,1.1970713358921456,4.6172691878137218E-2,1.1964796819684882E-2,1.4584418345845231E-2,2.6727496074990972E-2,2.3059598189242005E-2,1.1188532250568792E-2,3.276763035311079E-2,3.9152480004317286E-2,3.0105755812178801E-2,6.5924829989800178E-3,1.7719324221075989E-2,1.5055647958864239E-3,4.8917952637921182E-2,5.3274358856481019E-3,4.9151152142922769E-3,1.8109702736834887E-3,7.4711863151233793E-4,2.0867152691699999E-3,1.6529805900565866E-3,4.7266764950940872E-3,1.0464247265470725E-2,3.214519662562839E-2,2.8419900810138208E-2,5.8657942724937382E-3,1.2997838379951023E-2,8.0211719216999419E-2,6.0479588167098218E-2,2.661995952633199E-2,2.3094215119923336E-2,0.13107614814844909,3.3871560341253833E-2,0.10933352403320681,0.11160026903469243,7.6114396810902469E-3,6.0037107425513258E-3,3.8658431406327652E-2,2.8438971552075712E-2,2.2825842087364299E-2,1.3012680594680305E-2,4.6065891083670058E-3]
[null,null,"Agriculture - Groundnuts (Peanuts)",1.3511884136025288E-2,1.8255565739107377E-2,1.7753120420196087,5.8159942360166373E-3,6.7276772074765382E-3,1.1602362997112502E-2,1.1077423547775514E-2,5.3958611374242699E-3,1.507967349725416E-2,1.779539347992266E-2,1.6390012526288248E-2,3.3263073589299683E-3,8.7342177328755422E-3,8.6801676970241031E-4,3.1589696314066162E-2,2.7836551980951261E-3,2.7607215048685982E-3,1.0369538293010128E-3,7.7304369060550893E-4,1.2774425011436569E-3,8.9021995082803191E-4,2.7446856653443965E-3,5.8158152711539112E-3,1.7766383409410995E-2,1.5150960806300082E-2,3.5106776225313904E-3,8.1446609110793575E-3,3.4042426004873581E-2,2.999137327237977E-2,1.955821789531216E-2,1.591216827893268E-2,4.9432110178539414E-2,6.1626432343407971E-2,1.5328315304863669E-2,4.0997159437061247E-2,8.7400212706846194E-3,1.653484801045892E-2,8.278317949555131E-3,8.090310959735357E-2,1.451529929208047E-2,9.3846068993087214E-3,2.7219599339840359E-3]
[null,null,"Agriculture - Sugar",1.8453768576624462E-3,2.3861473705844931E-3,2.7550216053052017E-3,1.9442526070380106,9.159213167847821E-4,1.4556299764072081E-3,1.6004602675142084E-3,7.8100293408459216E-4,2.0766637718577104E-3,2.376973623250156E-3,7.0323604680058551E-3,4.9820604278941443E-4,1.3242536519846072E-3,1.4299756643337754E-4,2.2073863232882417E-2,4.4645590293915558E-4,4.9583684772579043E-4,1.8099061298461146E-4,8.0938063789361099E-5,2.1695695527996985E-4,1.4879647677591535E-4,4.6049093443393174E-4,9.9560874005117836E-4,4.3401515564646213E-3,2.5456975400063192E-3,6.5614242401295958E-4,2.0682093413617194E-3,4.120840334852981E-3,4.4168443826693776E-3,4.0148942835407696E-3,3.7127171374151139E-3,5.2295326774843371E-3,3.6213715813502912E-3,7.6684339018350499E-3,5.2002566738338059E-3,1.3328243577764754E-3,6.7477737757536637E-4,3.5184882761005315E-3,5.9259053447475096E-3,6.4938180882726498E-3,3.5411903797870374E-3,1.2151751427731563E-3]
[null,null,"Agriculture - Cotton",1.1845361893677062E-2,1.1584421937705017E-2,1.1037697634337753E-2,2.3678427738565259E-3,1.3988508974127609,7.983003905593063E-3,4.3470391833071685E-3,3.9288395368739498E-3,6.5260317093047641E-3,6.4421225108626879E-3,4.6837873638151239E-3,2.7501836340143122E-3,3.7622974724144395E-3,1.5020797371794758E-3,6.1478013367094343E-3,0.20429479792429392,2.5236118069835193E-3,5.7952287725863527E-4,4.7749787841459113E-4,1.4198858726243379E-3,5.521102213181181E-4,7.2903592721735013E-3,8.1019158373983099E-3,8.0628545513151822E-3,8.0067420585608444E-3,1.0364571758511203E-2,8.0727548073177766E-3,1.1017618737806758E-2,1.19678246386232E-2,1.1057845762997644E-2,1.034287918774186E-2,1.3028062758083776E-2,1.1776632009417176E-2,1.3312441499904416E-2,1.4550361839362601E-2,5.0328734544158281E-3,1.9617127386963242E-3,9.819769238775854E-3,1.5583596821752249E-2,1.7576639732116709E-2,1.0410470643675495E-2,2.9121727007675644E-3]
[null,null,"Agriculture - Tobacco",1.5819666160986588E-3,2.034088444162899E-3,2.3434321799342115E-3,7.3565320014483068E-4,7.8053308416593521E-4,1.6902032762028438,1.3594056024685338E-3,6.7102532620366901E-4,1.7638258899758683E-3,2.026556005506842E-3,5.8662147396743433E-3,5.7822156382280568E-4,1.5322944559727307E-3,1.8299775636110025E-4,1.8342074424663554E-2,7.4999327592796517E-4,4.063788049997576E-3,1.577433048458916E-4,2.0760598010439378E-4,2.3019867818242735E-4,1.2916667238661267E-4,6.3488427500393331E-4,9.7520437811107123E-4,3.6691425168753973E-3,2.4093184992843358E-3,6.3142043648945845E-4,2.013046657926852E-3,3.4901138887469688E-3,3.7484205653344591E-3,3.4164865509294998E-3,3.1584650599293111E-3,4.4107421963498336E-3,3.0607529235196851E-3,6.4730092763067744E-3,4.4082908892454278E-3,1.1297932138686518E-3,5.8620988796326029E-4,3.0084534748915049E-3,5.0649969114997728E-3,5.5299004278609619E-3,3.0113929339631107E-3,1.0382694108389515E-3]
[null,null,"Agriculture - Coffee",9.6895660230093025E-4,1.2529003163720019E-3,1.4465860254277035E-3,4.4956228165133439E-4,4.8092507684905337E-4,7.6431124097520674E-4,1.4889427388266541,4.100831471118888E-4,1.0903989958178776E-3,1.2480834341126752E-3,3.6924989478115322E-3,2.6159428219909165E-4,6.9532914856045881E-4,7.5084086772443968E-5,1.1590378100266365E-2,2.3442170795242955E-4,2.6035028307256898E-4,9.5033189929604402E-5,4.2498349841396343E-5,1.1391812645787931E-4,7.8128935004512205E-5,2.4179111673952754E-4,5.2276674977006898E-4,2.2788941392437811E-3,1.3366757194380944E-3,3.4452232949449321E-4,1.0859598070344213E-3,2.1637398523256818E-3,2.319163431660479E-3,2.1081104964678675E-3,1.9494455930975092E-3,2.7458836896955352E-3,1.9014825554814552E-3,4.0264836028687818E-3,2.7305116658683255E-3,6.9982939030182819E-4,3.5430703076723896E-4,1.8474613632927905E-3,3.1115298127650953E-3,3.4097251651586257E-3,1.8593816131657755E-3,6.3805502526649951E-4]
[null,null,"Agriculture - Wheat",5.4310651268901942E-3,7.0225882145383851E-3,8.1082092810871691E-3,2.5198259906004101E-3,2.6956165088502979E-3,4.2840144925927479E-3,4.7102595384664438E-3,1.38299514328754,6.1117576850395908E-3,6.9955892744446371E-3,2.0696698096608544E-2,1.46625306032449E-3,3.8973653530915554E-3,4.2085121695426648E-4,6.496482727745384E-2,1.3139490045510531E-3,1.4592803638612064E-3,5.3266724484685548E-4,2.382060303071279E-4,6.3851854918669094E-4,4.3791779043195379E-4,1.3552550227714391E-3,2.9301418220711861E-3,1.2773350693034915E-2,7.492154827741686E-3,1.9310701890149231E-3,6.0868757415797293E-3,1.212790338362223E-2,1.2999062710693421E-2,1.181609720580859E-2,1.0926770045531366E-2,1.5390857665027211E-2,1.0657934082849754E-2,2.2568703931225412E-2,1.5304696466125804E-2,3.9225895023734612E-3,1.985914079580564E-3,1.0355141767577651E-2,1.7440328098553334E-2,1.9111732551074172E-2,1.0421955547715227E-2,3.5763401462284459E-3]
[null,null,"Agriculture - Horticulture",5.7960818945372999E-2,7.8365128327796824E-2,8.9479366748354758E-2,2.4956369432144736E-2,2.8800398312116279E-2,5.0182706918215983E-2,4.7454300626386968E-2,2.3095549311731807E-2,1.2896624720109449,7.6321846365899657E-2,4.1176158104173487E-2,1.4159589758348173E-2,3.7770673870875127E-2,3.6429063783053311E-3,2.6895517205405162E-2,1.1922533072460471E-2,1.1874871094486976E-2,4.4485143986298971E-3,2.4152023352847982E-3,5.3434582739687111E-3,3.8410943279511577E-3,1.1602989599654839E-2,2.4975997556019584E-2,6.7863601238069532E-2,6.5934749818389579E-2,1.5342410866889668E-2,3.1951089063603041E-2,0.14760124097540808,0.12599109780216106,8.3471723187839866E-2,7.5701962883823193E-2,0.12603931153343831,7.4386858373116427E-2,8.7066647642301154E-2,0.28638871886363504,2.5815811851821791E-2,7.4032966794808183E-2,6.4761163795117094E-2,0.10831528564789347,9.386595159069766E-2,6.5317416869873204E-2,2.1113293871995505E-2]
[null,null,"Agriculture - Other Crops",3.1795160505515743E-2,4.2907416125105895E-2,4.8968142195376735E-2,1.3730802787760822E-2,1.5810134306726877E-2,2.7326830547425341E-2,2.6105878238029231E-2,1.2709633873998804E-2,3.563657731206616E-2,1.3362889853083839,2.5338097816804822E-2,7.8132505722628854E-3,2.0726230930093681E-2,2.0275368655970866E-3,2.5000703700816609E-2,6.5808567718344448E-3,6.5591854843431016E-3,2.4560817371866478E-3,1.4816117708891208E-3,2.977076354454281E-3,2.1216128173112232E-3,6.4491611432631454E-3,1.380562226649899E-2,3.8328002863625109E-2,3.6320638389920466E-2,8.4528745010513714E-3,1.7978862757561623E-2,8.0190248422067553E-2,7.0107772426983822E-2,4.6046915619221342E-2,4.1336230580481206E-2,0.10760568774201963,0.11483566445245574,5.3173166524517666E-2,0.11690632853683086,1.1219508027331893E-2,2.3386096538775693E-2,3.3712621826846895E-2,6.9669934412769141E-2,6.1698419881143912E-2,3.2267642197664162E-2,1.1618349554039415E-2]
[null,null,"Agriculture - Livestock",6.441750122554922E-2,8.879531530155782E-2,0.10082890272677766,2.6770345756951579E-2,3.2043640199792119E-2,5.7743992312383044E-2,5.1359019234722129E-2,2.4954470789040596E-2,7.2134745235167261E-2,8.5641466922561346E-2,1.3790509894165703,1.495751083365696E-2,3.9934980320986455E-2,3.5893504275385582E-3,9.0746318629221043E-2,1.2230795678810153E-2,1.1648606789592524E-2,4.2838297315413122E-3,2.3545491689655595E-3,5.1018825592650278E-3,3.8459539128664574E-3,1.1352304627173697E-2,2.4593931342838236E-2,7.2974149815432349E-2,6.6103862767610891E-2,1.4253320650280182E-2,3.1187055536579467E-2,0.17219209448136852,0.13547109375903832,6.874164246625028E-2,6.2323895361773775E-2,0.3047453334142553,0.15042840305093116,7.6732831217413131E-2,0.21106665088002699,4.5562759369887247E-2,3.7639000106240834E-2,4.3028103255145028E-2,7.7487725859928955E-2,7.5803337466144469E-2,4.3833798720990601E-2,1.5107171068891343E-2]
[null,null,"Fishing",2.5432593539579568E-2,3.3503780029066968E-2,3.8488001368919819E-2,1.1448050651641985E-2,1.2630959744735944E-2,2.0838511048687874E-2,2.1548786332822208E-2,1.0502006289431555E-2,2.8574178660494106E-2,3.3059262616213676E-2,7.9558830030872663E-2,1.6465970923712498,1.7538341982494002E-2,1.8066811230069686E-3,0.24003282642862345,5.7746752646108566E-3,6.1983030520009422E-3,2.2662756771587578E-3,1.001071503950221E-3,2.6998131031826284E-3,1.8980641524756626E-3,5.7925607185853904E-3,1.2615925462999006E-2,6.587830720996829E-2,3.24991345440718E-2,8.068721212551028E-3,2.4265727839355915E-2,5.9971122500883885E-2,5.8778745682556366E-2,4.7369326269454372E-2,4.344070929186826E-2,8.1556776248594892E-2,4.262558201091602E-2,0.10299134059928071,7.8672507533533234E-2,1.5300430111200509E-2,8.9426970677435845E-3,4.5671948241270903E-2,6.8007626880098884E-2,7.205811843338561E-2,3.9424136274914576E-2,1.3535356215080238E-2]
[null,null,"Forestry",1.3997844370359778E-3,1.4855023778265763E-3,1.5750483565495303E-3,6.2826841454651752E-4,5.8784571724866729E-4,9.3815437841964834E-4,8.6584964833630936E-4,6.1491663118022578E-4,1.1189045155556342E-3,1.4147845382005476E-3,1.3182370270525524E-3,4.0567791504104297E-3,1.6952835646923818,1.1904618550592867E-2,2.3507039406254612E-3,7.5122449845331672E-3,7.0426478138126691E-2,2.168542372544758E-4,3.3719901455356764E-3,1.3996551472537488E-3,5.9562465728627966E-4,6.2145567154518596E-3,7.7914940797483142E-3,1.9071901462915932E-3,6.2447736080662843E-3,2.3501007925298819E-3,6.5540182092783091E-3,1.9731863841592127E-3,2.293872429128541E-3,2.3081562942220881E-3,2.1241107189933334E-3,2.0971863738613039E-3,1.6669700673074372E-3,3.003793830423037E-3,2.5656295141330493E-3,6.9254736433794464E-4,7.7191258813060133E-4,2.2018764752460627E-3,3.8834894565736482E-3,3.787638046854593E-3,2.026823133764353E-3,8.6246258776227671E-4]
[null,null,"Mining",6.3392404899008381E-3,6.8665221216172804E-3,7.7760611190915837E-3,2.8480077889613295E-3,4.0156174646839649E-3,4.5023643387420787E-3,5.5130376403476613E-3,5.5423983909367348E-3,6.2831634503855037E-3,6.822184078375761E-3,8.0553926796658563E-3,1.9072873639823219E-2,5.0846162693125993E-3,1.7829003355811648,1.2872446941774725E-2,6.2968214234796508E-3,5.9201131329184638E-3,1.2748561647836318E-3,0.10531150785133057,2.7839092930742208E-2,2.4421618019383846E-3,0.16194811431686723,1.8935189095556148E-2,1.0254575447961755E-2,1.5799508995528937E-2,8.503771989090211E-3,5.0410601633640868E-2,1.0605212483132703E-2,1.2762720544818513E-2,1.355186722845785E-2,1.2793195889420576E-2,1.1476995142684028E-2,1.072868828389221E-2,1.2679584976142105E-2,1.3115659564513363E-2,4.5331786903359348E-3,8.6582322316047112E-3,8.9790653334043749E-3,2.1468903631470141E-2,2.1260545134534629E-2,1.3048987743957815E-2,7.5748132361726454E-3]
[null,null,"Food and beverage manufacturing",0.13655975009023924,0.17657731387086908,0.20387437956182858,6.3358991193743192E-2,6.7779101923327464E-2,0.10771808748800828,0.11843567521375961,5.7795005424222369E-2,0.1536752151891439,0.17589844730864562,0.52040177271531662,3.6867750028549626E-2,9.7996106876606107E-2,1.0581964250050438E-2,1.6334881593924993,3.3038187445848723E-2,3.6692427202504575E-2,1.339348804296037E-2,5.9894984149003417E-3,1.6055033675290261E-2,1.1011089468503524E-2,3.4076793942661013E-2,7.3676051677199761E-2,0.32117559589174471,0.18838418744936358,4.8555201651501123E-2,0.15304957879899739,0.30494634413164223,0.32685094244047197,0.29710622939834602,0.27474481558384078,0.3869906965402245,0.26798515223579861,0.56747184883667001,0.38482424272047644,9.8630347756009498E-2,4.9934207024229696E-2,0.26037168380249337,0.43852297679846491,0.48054909303961774,0.26205166238956584,8.9924187097033204E-2]
[null,null,"Textile manufacturing",0.10697020747664188,0.10457512028802465,9.9607709580643272E-2,2.1350540226559103E-2,2.6075635442085795E-2,7.2076874250073752E-2,3.9194803083595499E-2,3.5468375591022144E-2,5.886322695792643E-2,5.8084645890562503E-2,4.1878189521359091E-2,2.483105049418706E-2,3.3926566684262548E-2,1.3570666173588684E-2,5.4114220855272809E-2,1.8469819143351345,2.2782791714702311E-2,5.227383546214227E-3,4.3116360718677979E-3,1.2822641570593948E-2,4.9816884324990597E-3,6.5880893079069136E-2,7.3182529967799004E-2,7.260702765998521E-2,7.2219018736469368E-2,9.3661574892782193E-2,7.2847578758509612E-2,9.9335375365832354E-2,0.10790642571508155,9.970610794846041E-2,9.3262246393676432E-2,0.11743791752403011,0.10623075448352697,0.11984681758452154,0.13120283816630321,4.5413164428129579E-2,1.7690814482892128E-2,8.854576736022142E-2,0.14049598353546514,0.15847715598731066,9.3884738377833246E-2,2.6247913943423237E-2]
[null,null,"Wood and furniture manufacturing",2.6704385349599607E-2,2.9194539752385149E-2,3.1330430311684462E-2,1.3170047269739232E-2,1.1089619548824437E-2,1.8860922024318542E-2,1.7291669580238211E-2,1.2001789189060563E-2,2.240899085909949E-2,2.9216295893471207E-2,2.6176866339808907E-2,7.7577071168627512E-2,0.20404099391839844,3.019763662276128E-2,4.8933061288416208E-2,0.17746284513220706,1.7014035252298094,3.8238307866667932E-3,6.5528380936718242E-2,2.3724337468250142E-2,2.9026269963547658E-3,0.11846796436404484,7.1076573038127394E-2,3.8830473449975179E-2,0.14253006565838583,4.1592403474619892E-2,0.14170093671359704,3.9837063556172017E-2,4.6241117155387611E-2,4.6310510975502948E-2,4.2413895858298252E-2,4.2001726369574235E-2,3.2056732236697159E-2,6.4023294025194966E-2,5.2122198325791631E-2,1.3335377490814246E-2,1.3373463087671228E-2,4.7282490919756497E-2,7.875032444102209E-2,7.6750751937258596E-2,3.9918140102545421E-2,1.5977995295891691E-2]
[null,null,"Fertilizer and industrial chemical manufacturing",0.19157129660448127,2.5204798526340506E-2,3.090986806351053E-2,0.14902712646830865,7.7476143535865113E-2,0.19048433325918523,5.0459040006062085E-2,3.4104948290004704E-2,8.3155786844912899E-2,8.0591819109284285E-2,1.4783052554054862E-2,7.4537358180310756E-3,8.8161487946787007E-3,1.6253468123476059E-2,1.7591224034671522E-2,1.8838762064208002E-2,3.8946766000799607E-3,1.1410497731606168,1.6310854759021859E-2,1.4731301768923698E-2,2.292157275020191E-3,1.5409851549864196E-2,1.807483979532774E-2,1.6318661840287928E-2,1.6548152352164926E-2,5.9287592128052756E-3,1.2292265766306106E-2,3.4301285421985198E-2,2.8810180565273204E-2,1.7544862547779778E-2,1.5624117735474251E-2,4.0665543272025262E-2,3.2179636491205761E-2,2.7926357629498542E-2,5.6583298253666155E-2,9.1510512296889748E-3,8.9437241686976202E-3,1.873579892462467E-2,2.3699205902046761E-2,1.9857224836730927E-2,1.2412101168340095E-2,4.8888487854534144E-3]
[null,null,"Other manufacturing",6.3498429747186863E-2,6.7788934803052009E-2,7.654985487409606E-2,2.8230611762064813E-2,4.2528719923624954E-2,4.4435853833379835E-2,5.6905914981197049E-2,6.3937896071069686E-2,6.2522158259278815E-2,6.6384965856553235E-2,6.9977429668889896E-2,0.23567814369773848,5.2661910573470722E-2,0.15205811740022815,8.0423232666205574E-2,6.8704598127255004E-2,6.4263085496355288E-2,1.1849554385105567E-2,1.383633709388167,0.3070617239654802,1.3890847713796848E-2,0.51984935631880369,0.20480431356682502,9.7676107582706576E-2,0.16354412625971956,7.719482761660848E-2,0.2617825126846578,0.10345374453398977,0.12574460662242631,0.13515560792083267,0.12733060026286092,0.11147015354307249,0.11267313749010785,0.12316616548467778,0.12653105543888235,4.715395903265019E-2,0.10051239921766865,8.9449940970679612E-2,0.21154498243196421,0.21475804000100596,0.12770134159146651,8.2978617019074927E-2]
[null,null,"Electricity and water",6.9449243067398303E-2,3.1784712759940548E-2,3.3100214879977601E-2,1.708276220143257E-2,6.0489412018325799E-2,4.426815155827455E-2,2.9423122973693649E-2,5.5740757193757096E-2,4.279163569738844E-2,2.7475958203344239E-2,2.6010954611417378E-2,2.5261419808813759E-2,2.376262695705602E-2,4.6315780983333776E-2,3.0385663429812967E-2,0.17478306734089688,1.7743153484877133E-2,1.9884504143025141E-2,8.8119801429185032E-2,2.0421448754706812,3.6123271367125599E-3,8.717208471414338E-2,4.8494890558504714E-2,4.2785449149787762E-2,0.16859191350513561,3.7382893998270904E-2,9.4943537534932204E-2,3.9924508477004177E-2,5.2334020388396456E-2,6.0383808042410392E-2,5.7835308409582308E-2,3.7958344839475272E-2,3.1814006576008781E-2,3.747224620466507E-2,4.8891810124481433E-2,1.4195928553724441E-2,2.4266928618077575E-2,3.0367290376527408E-2,9.5372292650865997E-2,9.6412000871211864E-2,6.3001363306959518E-2,3.6726414849241114E-2]
[null,null,"Equipment and machinery",2.2472486056479026E-2,2.1602121886061285E-2,2.3775453391679427E-2,9.4455452036636845E-3,1.3151220158891827E-2,1.6136139618141702E-2,1.4342587733300265E-2,1.1996267733579698E-2,1.9211976215564194E-2,2.1481466323476906E-2,7.2117833191155403E-2,0.29299771285380893,1.6804363887858401E-2,0.18182014537710453,6.4221612398723218E-2,4.575968872608932E-2,1.5111415869452884E-2,4.9852220664499888E-3,2.7235292298620997E-2,0.2043971755702936,1.2063272770653151,0.27850286927525864,7.0532029901172466E-2,3.6892737489634744E-2,7.9129511212956069E-2,3.7655467784882386E-2,0.16215699959891905,3.3389820074221303E-2,3.5787242983432846E-2,3.3165819402864651E-2,3.118968514035891E-2,4.2297319010249038E-2,2.7656496379331302E-2,3.8253180142938319E-2,4.2380003554098974E-2,1.0840014777082588E-2,1.1736541184994296E-2,2.3111891932428852E-2,4.9835234873764525E-2,5.0599157251733029E-2,3.1358433260575011E-2,1.4057733762115514E-2]
[null,null,"Construction",1.7635776581624258E-2,1.9130497833085184E-2,2.1719164824674005E-2,8.0537005063163695E-3,9.3716158013540073E-3,1.2605427529642324E-2,1.3468501131096487E-2,8.4160073369884923E-3,1.7201549906574048E-2,2.0143767202576292E-2,1.4737570665273727E-2,1.3768328789193637E-2,1.2918646122817025E-2,2.081561144750587E-2,1.6238273864898969E-2,1.6394783870574491E-2,1.6047283795849989E-2,2.9470257576822922E-3,6.4412699481309404E-3,7.6356099729670363E-2,2.0657348776487875E-3,2.1728811094018385,5.4661087759793878E-2,2.971416537097403E-2,4.7133660883939936E-2,4.3408158524231466E-2,0.5311457428467603,2.9203049901366001E-2,3.610922202279912E-2,3.9408206480433722E-2,3.7916899695320215E-2,2.8544808408761065E-2,2.1406554156122425E-2,2.2879113573820248E-2,3.7480485907736644E-2,1.0604692982414139E-2,1.5081370723175969E-2,2.2198781612684394E-2,6.79842688772863E-2,5.7286466501187856E-2,4.2773758853708363E-2,1.6899871309858667E-2]
[null,null,"Trade, transportation",0.11486830792358479,0.10575578948462927,0.10355672333653591,2.9304914442698188E-2,4.6348163838926724E-2,5.7951540287235648E-2,5.2089210111022945E-2,3.7565840564622498E-2,6.8274715543277825E-2,7.3176220063616099E-2,7.4968853509562311E-2,0.29098735987167462,4.9055210791034157E-2,2.5715438354003903E-2,0.10550942710478299,5.8953915126938414E-2,5.092386944517447E-2,2.2673800885832807E-2,1.5276406023285399E-2,8.3806078974914197E-2,1.7225795276490929E-2,0.12171983772019912,2.1559522558424944,0.10497562947556292,0.1080713653939368,0.25981056747471304,0.15822516873199782,0.11574736126959154,0.135200512677662,0.13870652064443381,0.13051862602851044,0.12776761859799712,0.12325160171730958,0.12381209095547584,0.14636805118868601,5.0777705895760916E-2,7.5035861876447937E-2,8.577017715783819E-2,0.22221851809041623,0.21660008624855429,0.13244931787260014,6.9809653092020627E-2]
[null,null,"Tourism",3.6476606559636155E-4,3.4102147918934857E-4,3.3793289769600969E-4,9.7304368734630559E-5,1.4966237871697486E-4,1.8813942105427471E-4,1.7366227760064239E-4,1.2398796784815841E-4,2.2605859940701172E-4,2.4292583827317463E-4,2.4152165816406101E-4,8.9848651391394026E-4,1.626030045244306E-4,8.9801395469197337E-5,3.3162454517699771E-4,1.8645943663965852E-4,1.6242820786715152E-4,7.081739540047218E-5,1.4621099912101715E-4,2.7680077562502174E-4,5.4219576472518921E-5,4.0985964124415228E-4,6.5243130447786559E-3,2.0003462122986697,3.6330866198856754E-4,7.9621732165276789E-4,1.3733717419619805E-3,3.8434517914928733E-4,4.5150908866873734E-4,4.6605234885896808E-4,4.3981768577620563E-4,4.2070673192993535E-4,4.0327346746787566E-4,4.0299273843808918E-4,4.8667163511709573E-4,1.6785555313054111E-4,2.3954067725330742E-4,2.8821207804249259E-4,7.39344264872938E-4,7.2637475792556433E-4,4.5187616110117226E-4,2.3409526096312646E-4]
[null,null,"Other private and community services",1.2061358522373786E-2,1.2905283531463628E-2,1.4464524782428548E-2,7.681882919967091E-2,5.5528399180776698E-3,7.7856732550897357E-3,9.1921846608721495E-3,5.0607366268652651E-3,1.1208593400774475E-2,1.1996556577996904E-2,1.9088135730723658E-2,1.7555128401845962E-2,8.4922020655948914E-3,1.0721245731910382E-2,1.0385020579120585E-2,6.0718358768822346E-3,5.3682896541663418E-3,2.1732807579573393E-3,1.8992319380477618E-3,6.8270123634950452E-3,1.5967347717171911E-3,1.4680887690570779E-2,9.1355665823303164E-2,2.1373884967933129E-2,2.0764214222407005,5.9393133883742684E-2,2.1714703796318048E-2,1.6901497308268492E-2,2.5355562719876636E-2,3.3180266820815839E-2,3.2071809612962889E-2,1.5298541057210603E-2,1.2267900875622455E-2,1.689769858653227E-2,1.7686451718946249E-2,6.4473249511592598E-3,3.9545028213616752E-2,1.5660829661162088E-2,4.439225243649509E-2,5.6917149116138634E-2,3.3297281925159586E-2,2.6694710965857418E-2]
[null,null,"Financial services and insurance",5.9594300847904097E-2,5.8830057066763919E-2,6.3370763319327089E-2,2.4508866755401006E-2,2.7487455762455853E-2,6.6768781641508998E-2,3.8022758309932819E-2,2.4605880899298035E-2,4.7964061522744739E-2,5.1321962642551511E-2,5.8564303537077159E-2,0.25893283609163753,4.2943121120950063E-2,4.584602642412406E-2,0.11297105880332732,9.4447619084490703E-2,5.016069042449868E-2,1.9927481694175714E-2,2.6450418013352399E-2,0.13241516447753424,1.129157908963601E-2,0.3737782078788236,0.51858184054773271,0.10841416075101042,0.14836084251327247,2.4060092891974385,0.29961212782372404,7.5395543028540693E-2,0.10225733187328709,0.11934396813788818,0.10950793979008966,7.4982932274657757E-2,6.0907781005052057E-2,8.2061974640852492E-2,8.5657375899609214E-2,2.4581815571566943E-2,2.9299197292513346E-2,5.8317170324127504E-2,0.18568770787768168,0.23589752154979532,9.8980518231949255E-2,5.7375052353460118E-2]
[null,null,"Public services",3.2777848160939656E-2,4.0828844312855224E-2,4.7686257215651881E-2,1.6327593746676857E-2,1.6213290828506598E-2,2.4126773558507539E-2,2.9543861692307421E-2,1.447830608204145E-2,3.7078897127830787E-2,4.1350019887382822E-2,2.4706727411587703E-2,1.0201708172255495E-2,2.5756675302624526E-2,3.1926894385129914E-3,1.8308232948709577E-2,8.9468531072460292E-3,1.0114153245002753E-2,3.7980779249890775E-3,1.8084546939277344E-3,4.9402497067595969E-3,3.0429582924922107E-3,1.3129441470807903E-2,2.3918231727687929E-2,5.3537544088823705E-2,6.0679479077793023E-2,1.750840499822294E-2,2.0669229335862607,6.5890544986306906E-2,8.218480695683511E-2,8.9952132550322306E-2,8.762296441639425E-2,6.4827887912726451E-2,5.5629476982276833E-2,4.9213362474992431E-2,8.5575947589815515E-2,2.6829444325353509E-2,1.4399128348648815E-2,5.468796674662979E-2,0.12774253799745866,0.13654491160996982,0.10225268120480148,4.1647925869063296E-2]
[null,null,"Labor - less than primary schooling",0.27746594794834017,0.42998310486905283,0.49181552794125927,8.9581439157293635E-2,0.13430912810871617,0.35098735162023381,0.17823848253882624,8.6117897717344183E-2,0.35224432860161847,0.39183596786467978,0.18790754878387217,4.8384461055197184E-2,0.15159970079154828,5.9692765675351204E-3,0.10153653008310931,2.9768260216766047E-2,2.1921534767594886E-2,7.5664765682078297E-3,3.3025075651728526E-3,9.3731561071292765E-3,6.8276144983805617E-3,2.1899948431557653E-2,4.3652572419167181E-2,0.10410720094208833,0.15114259983537517,2.4479832518601172E-2,4.7398268302410999E-2,1.13889185360147,0.11679763774474705,7.1508742566242178E-2,6.3860667331441717E-2,0.18182293475786329,0.11900294467478605,0.11733543114771582,0.21379960934728942,2.8867462107625034E-2,3.9015512848199735E-2,6.4923853151984207E-2,0.10642435685033494,8.2492018227983091E-2,4.9840055874319368E-2,1.7924564545184155E-2]
[null,null,"Labor - primary schooling",0.20569845191497901,0.24462921261091372,0.2600851054686939,0.10559746386506834,0.10901130454234408,6.36363130666492E-2,0.20270527235561314,9.8219092275950479E-2,0.15765262938892297,0.2546465343452734,0.13545364755128131,5.5571730390818842E-2,0.11521860389423674,1.6130933692771233E-2,8.1308947355454728E-2,5.2874616278772851E-2,4.5297138353962998E-2,1.668095947665995E-2,7.0398816297435485E-3,1.7246258744742123E-2,1.8609985661040471E-2,4.3942704710936628E-2,0.10796150020167079,0.35486586119608748,0.26760960541489159,4.3145468557744003E-2,8.1383642516218671E-2,9.1676599144396284E-2,1.0809396482152946,5.503496885163113E-2,4.985561583688429E-2,0.12103642268651722,8.2767903491375805E-2,8.2782567092288373E-2,0.13503194252348688,2.1978574668573427E-2,2.7536035005340288E-2,4.7598912635595673E-2,8.1188983032571327E-2,7.0423071054522085E-2,4.1885063363636815E-2,1.7282440592100257E-2]
[null,null,"Labor - secondary schooling",4.0317362140097866E-2,2.5138040876439206E-2,3.170633624535249E-2,3.1858220255351642E-2,1.9482803268937077E-2,2.0262166084772978E-2,5.4312220445582107E-2,2.7347319878839486E-2,5.8899978320858463E-2,4.4549638914495343E-2,3.6120758300343982E-2,2.3183384106998016E-2,6.6007395834697752E-2,1.1019548857068035E-2,2.4478579177299731E-2,2.6708468855889206E-2,3.6557535790782671E-2,2.1674531950537177E-2,5.5364625112502589E-3,2.1596466306153615E-2,8.0601152963755435E-3,2.9965924369016614E-2,7.6108660771109754E-2,0.1282353098113562,0.11685243682349479,6.5448278124455903E-2,0.1112313149365967,2.6195455154391145E-2,2.6420850532774997E-2,1.0227061808546569,2.1112625431392206E-2,3.0436939577930422E-2,2.2579088677244563E-2,2.3520567629938396E-2,3.7942787490145707E-2,7.741232036637292E-3,1.0470519289449851E-2,1.6216532733090247E-2,3.3109730529810033E-2,3.3705050237765107E-2,2.0215662500689117E-2,9.1870086977968307E-3]
[null,null,"Labor - post-secondary schooling",2.714125972485271E-2,1.7169118434998087E-2,4.6739252421776484E-2,2.6100676917482017E-2,9.6625548373822073E-3,1.2779936127509309E-2,3.7770207463606313E-2,1.9040372161334026E-2,5.9112573356495376E-2,2.0252954248141653E-2,3.0954689685518316E-2,1.9410893674831078E-2,6.271584131609774E-2,8.3581197053409564E-3,2.4125974149716064E-2,2.0932724798320479E-2,3.7372348467147473E-2,7.0792922128171927E-3,4.2797787386777185E-3,1.5070389649413166E-2,1.0223179923901119E-2,3.8701863722497613E-2,6.2623290253759054E-2,0.18171825603851796,0.21949859565815957,6.1544917843248594E-2,0.17024555699512017,2.4325347218279229E-2,2.58831518682337E-2,2.3992468650609153E-2,1.0225266212431436,2.6811659613290739E-2,2.0006777929835521E-2,2.188351370834965E-2,3.4732523704131539E-2,7.5909348156479924E-3,1.1603908295714465E-2,1.6082674011060064E-2,3.5248074445014488E-2,3.6323084250544778E-2,2.2480841077631871E-2,1.060514226156445E-2]
[null,null,"Households - rural/remote - small",0.12413553312637,0.17582875291099917,0.19844792876135176,4.8949347585299938E-2,6.1774900748289251E-2,0.11724454398156922,9.5110819039863292E-2,4.6076493424091917E-2,0.1388523753180842,0.16727405784852128,8.4112431326414744E-2,2.6567226827771899E-2,7.172872441852346E-2,5.5772827344207146E-3,4.7469978278066968E-2,2.0723550039365071E-2,1.7912839155377135E-2,6.4782014731038012E-3,2.6897105442505367E-3,7.4233813394345557E-3,6.2769188337240779E-3,1.7466320147784539E-2,3.8759214823538064E-2,0.11058693569144713,0.10871918944751573,2.0183265774416329E-2,4.0071582101974285E-2,0.35627422423689326,0.24480742969843153,6.8314388661010722E-2,6.8219541814920612E-2,1.0906376698399689,5.7940671190258426E-2,5.7044883515411482E-2,9.2428398575416432E-2,1.4125955928892302E-2,1.9415809290844112E-2,3.0643507576954974E-2,5.0712319343341805E-2,4.3872777582042208E-2,2.5226826769517235E-2,9.3673639476741129E-3]
[null,null,"Households - rural/remote - medium",7.4354677645737249E-3,9.9966649777484071E-3,1.1131521771652527E-2,3.2123849273139765E-3,3.7663595588232936E-3,5.6512480079390307E-3,6.2008767972471087E-3,3.0060312123732147E-3,7.6037865780524908E-3,9.7683118654924433E-3,5.0152234998725653E-3,1.7363320555073745E-3,4.3390527615944571E-3,4.2110411179314142E-4,2.888587413087782E-3,1.4672016867755973E-3,1.2905553790065101E-3,4.8106162087394229E-4,1.959148226921475E-4,5.2906940482987162E-4,4.7209536843017706E-4,1.2479082940444509E-3,2.8845722727296715E-3,8.5733675479414007E-3,7.5925579930109302E-3,1.4164805139720987E-3,2.7532764482535209E-3,1.6070307102486626E-2,2.1499646783335175E-2,5.0517716228153627E-3,3.7287451776277345E-3,4.6484245873163813E-3,1.00537208182009,3.1063205781353635E-3,5.3442753439357791E-3,8.0409186474890459E-4,1.0494207861644969E-3,1.7693302981705548E-3,3.0602201800921064E-3,2.6326744841341115E-3,1.5384519143135814E-3,6.4661188472322768E-4]
[null,null,"Households - rural/remote - non-farm",4.4447223851687015E-3,5.5530521103512309E-3,6.3224422741700453E-3,2.1574470784383815E-3,2.2360438491464238E-3,2.9966573056586531E-3,4.0381696449746122E-3,1.9694526468165552E-3,4.7039022916215111E-3,5.6483442617188007E-3,3.1262656163188749E-3,1.2374400433781791E-3,3.1653423208886557E-3,3.6983309150252113E-4,1.8719819415912117E-3,1.1428319375469474E-3,1.2053422139775443E-3,4.7793910909879541E-4,1.7609723544386935E-4,5.4234103892871757E-4,3.8595338910366305E-4,1.1358950068132262E-3,2.5592080066218939E-3,6.8895619334837371E-3,6.3021618563853642E-3,1.6149369262019224E-3,3.2661179016002834E-3,7.9585701953380009E-3,1.3202935320880769E-2,1.0821477441855725E-2,7.3218303145410517E-3,2.9099807114592335E-3,2.4849555726163272E-3,1.0056213439622259,3.3635021176688343E-3,6.3588516931038373E-4,8.7504053654462448E-4,1.2703111948464258E-3,2.2628662215940462E-3,2.1393151881251506E-3,1.1822820644299507E-3,6.1034739125393638E-4]
[null,null,"Households - rural/non-remote - small",0.14562513130615276,0.20490645080215036,0.2314099718711331,5.8132554004978229E-2,7.2470841988157259E-2,0.13617159426065858,0.11264254389785783,5.4605424469570854E-2,0.16303594303889854,0.19571959814621159,9.8983569111747896E-2,3.1748656255432599E-2,8.5671870142126377E-2,6.9015792642912153E-3,5.6049661010680561E-2,2.5114777602296273E-2,2.2215789650765348E-2,8.2653512738728088E-3,3.3321492811601481E-3,9.3945157053228756E-3,7.6400739401977519E-3,2.1496574692620972E-2,4.7946024652533878E-2,0.13434278017024504,0.13151808799666376,2.5828895792890973E-2,5.0913394295067041E-2,0.41203697381348786,0.2893293455258496,0.11070293785557093,8.455434619254322E-2,9.3679169529497175E-2,6.7852501205433929E-2,6.6902664671748421E-2,1.1202631286350886,1.6602373632441131E-2,2.2861811584920358E-2,3.6126754869084871E-2,5.9832085899476986E-2,5.2037072718845667E-2,2.9976251183956616E-2,1.1219977814495302E-2]
[null,null,"Households - rural/non-remote - medium",1.2290967267099412E-2,1.5938383323719933E-2,1.7801403111795702E-2,5.6084963928394521E-3,6.2198997730631604E-3,8.9036811085523634E-3,1.0692454627161238E-2,5.2007613543350846E-3,1.2742915560987301E-2,1.5950062259362224E-2,8.4402241533763807E-3,3.1305067358683701E-3,7.90349661263068E-3,8.5898117347923389E-4,4.9370694658150468E-3,2.783341931910808E-3,2.6782479810033861E-3,1.1233957327041635E-3,4.054522042260021E-4,1.2027027232119521E-3,8.9469082045722718E-4,2.5041207848323635E-3,5.8924658049287672E-3,1.5992995591857687E-2,1.4144116381121202E-2,3.3577112148565017E-3,6.3062847031869797E-3,2.4540671755464288E-2,3.5366380194044755E-2,2.4486725146492083E-2,7.0166127529315576E-3,7.7584367840692163E-3,5.2502314020606167E-3,5.2461057526523311E-3,8.960629321384592E-3,1.0020282678829089,1.8167627184280735E-3,3.039317760450987E-3,5.3519073506810826E-3,4.707885436617521E-3,2.7578340480366118E-3,1.1817195788089224E-3]
[null,null,"Households - rural/non-remote - large",4.4113700912103747E-3,4.1258024745112762E-3,5.7937442424097077E-3,2.9953443884570682E-3,2.0507611215023528E-3,2.491539445313334E-3,5.0375433280381021E-3,2.5048794669501519E-3,6.2335999409527491E-3,4.8668509580335143E-3,3.7693062837585211E-3,2.0251632154394661E-3,5.8439627376278922E-3,8.2163481679699724E-4,2.5515487953604475E-3,2.1411111895043105E-3,3.0710106511016907E-3,1.1371456977750365E-3,4.1044126704448906E-4,1.465019104570312E-3,8.1411478218961701E-4,2.8939539130066528E-3,5.8578857588052723E-3,1.4063476960323182E-2,1.4801023913140872E-2,5.0152595502743948E-3,1.1235832043970136E-2,5.3677051690714881E-3,8.736042308130413E-3,3.6006199962895002E-2,4.2435310022729406E-2,3.307856893639606E-3,2.3752523421679411E-3,2.4785236916200102E-3,4.0477931481673638E-3,7.7449729359283708E-4,1.0012689378844215,1.6506361599972002E-3,3.3036030441717448E-3,3.2403528661089087E-3,1.9703590054595539E-3,8.8833866099546324E-4]
[null,null,"Households - rural/non-remote - non-farm",9.1484640028582677E-3,1.1526474179875117E-2,1.2994555512640322E-2,4.3730016921875595E-3,4.6231503382359162E-3,6.1630372300652894E-3,8.2415062960020189E-3,4.0154281900681406E-3,9.5023985836063911E-3,1.1691581955249903E-2,6.3698689958208848E-3,2.480676388895015E-3,6.2681221368896672E-3,7.2515531148170393E-4,3.7869235351259542E-3,2.2723560074398622E-3,2.3157762425840972E-3,9.4167398792811732E-4,3.4332764700271143E-4,1.0414547432999188E-3,7.5552874455555544E-4,2.173707679264027E-3,4.9959593839285429E-3,1.352076740407963E-2,1.2113152911650216E-2,3.0245730502409455E-3,5.9452258088195896E-3,1.6405139438912218E-2,2.7757346698869634E-2,2.1079961527532561E-2,1.0813157375335712E-2,5.8882633171841465E-3,4.6129060781455377E-3,4.542858857385655E-3,6.7970792752173595E-3,1.1960344234158659E-3,1.6157559775248195E-3,1.0033476761684668,4.35065301546784E-3,3.9807191927341869E-3,2.2640236114801681E-3,1.0907168374903824E-3]
[null,null,"Households - urban - low skilled self-employed",3.2737421850994014E-2,4.0667730383336577E-2,4.6747916681396703E-2,1.6025072852706761E-2,1.635220318131321E-2,2.3189370814539451E-2,2.9792717645074018E-2,1.4555860602492908E-2,3.5988545078054782E-2,4.1564421621821446E-2,2.3336818480947572E-2,9.3632756901241686E-3,2.4542452812125765E-2,2.8766689873799319E-3,1.4032818586480946E-2,8.7118297896579787E-3,9.5406178988868481E-3,3.8852687184600504E-3,1.3857248806340013E-3,4.4159505221178152E-3,2.9261853091196274E-3,8.9148142758701115E-3,1.9981238340565151E-2,5.1622044066768055E-2,4.834125387888371E-2,1.3360134331212636E-2,2.6958304511177124E-2,6.241667433887578E-2,8.788298609272778E-2,0.10082964277688988,6.1417706553425551E-2,2.1279951887285972E-2,1.9007871118459616E-2,1.4662649891709361E-2,2.4851057924551487E-2,4.7503437812667724E-3,5.3395535890340901E-3,1.2481016350641494E-2,1.0235727170012792,1.3834409585208474E-2,8.3237547106784857E-3,3.4597097891909587E-3]
[null,null,"Households - urban - private employees",5.4352836443449584E-2,6.0127682440106973E-2,7.1851297364976349E-2,3.0869856711835082E-2,2.6973507590438751E-2,2.9577406006006692E-2,5.5518647195139291E-2,2.7278037404088625E-2,6.0923048356252112E-2,6.5305359227348564E-2,4.0759495507764719E-2,1.8902066810588231E-2,4.968986268342402E-2,6.7206283740022365E-3,2.5760652294470301E-2,1.8943751333122108E-2,2.305154396724423E-2,9.1545731145078729E-3,3.253126199931837E-3,1.0805222917543423E-2,6.7529588535676019E-3,2.1541802638229468E-2,4.6954209037554054E-2,0.11919500717093545,0.11314068547646966,3.4329762070138999E-2,7.2195710090779033E-2,6.7077017909383196E-2,0.16826389507589132,0.25875509075195136,0.20909608568568702,3.6350076150508698E-2,2.539354256971273E-2,2.5913784969735249E-2,4.2836660034871611E-2,7.4888106581884467E-3,1.0073173581264555E-2,1.611120090351674E-2,3.0102810645571181E-2,1.0337920762779014,1.7784308207499665E-2,7.4528657426298243E-3]
[null,null,"Households - urban - public employees",7.7170841003124685E-2,8.228572594618995E-2,0.10385027036806858,4.6236933071134585E-2,3.7481221091210493E-2,4.17477740461841E-2,8.1171083921706175E-2,3.9999254180192879E-2,9.292780029106032E-2,9.008850288901904E-2,6.0230014763564321E-2,2.9122107091358842E-2,7.9169531982340363E-2,1.072202453071905E-2,3.9048719962764343E-2,2.9569279244644656E-2,3.8570183080200743E-2,1.3879710479508199E-2,5.244948499034641E-3,1.7684465110643647E-2,1.1076644258530371E-2,3.672550326864138E-2,7.5775712581056476E-2,0.1953849867279096,0.19524646101501375,5.8961490066458802E-2,0.13184606925207124,9.3541811226297136E-2,0.22327736302318851,0.36619310096120261,0.48476945804205762,5.3515492313090045E-2,3.7679329806245533E-2,3.8767305673775815E-2,6.3777992551429463E-2,1.1488857751359636E-2,1.5748058594478635E-2,2.4656048127510134E-2,4.7217783150189228E-2,4.4747404811450085E-2,1.0335803670324535,1.2402127931771102E-2]
[null,null,"Households - urban - high skilled ",3.1057417551603184E-3,2.4945499735575805E-3,3.6550020212929965E-3,2.308322844954316E-3,1.4327967500519137E-3,1.6187453182358489E-3,3.8362550028763764E-3,1.9184035858783254E-3,4.6301287293090193E-3,3.3169326932817439E-3,2.7755149723438493E-3,1.6176227003047725E-3,4.704117464845857E-3,7.014963165486777E-4,1.9151311655092136E-3,1.7703765235673658E-3,2.5708198727516507E-3,1.0781925868447435E-3,3.5200064687004835E-4,1.2973454422408935E-3,6.4664501071186385E-4,2.3506170968535336E-3,4.9718929143405541E-3,1.0967976052489392E-2,1.1369153918803937E-2,4.3379904911793471E-3,9.1987459677840104E-3,2.9499209907654002E-3,4.7979890789440153E-3,4.0110033561260063E-2,2.9023088897619093E-2,2.3988315552960328E-3,1.7491353334349331E-3,1.8352182752420867E-3,2.9711141488474495E-3,5.9140351997831757E-4,2.3410928076001668E-3,1.2521383662828733E-3,2.5551080431044826E-3,2.5562554814786867E-3,1.5515926593477288E-3,1.0007623865002633]

{"sheet":"Default-Data","index":14,"n_rows":277,"n_cols":38,"rows_kept":277,"cut":false,"hidden":false,"merged":[]}
[]
[null,"Click to access the user guide"]
[]
[null,"Countries","Index",null,"Dollar Years","Dollar Adjustment",null,2005,null,null,null,null,null,null,null,"Industries"]
[null,"Bangladesh",1,null,2000,80.898966331112206,"Source: St. Louis Federal Reserve, https://research.stlouisfed.org/fred2/series/USAGDPDEFAISMEI#",null,null,null,null,null,null,null,null,"Zambia","Colombia","Mexico","Philippines","South Africa","Bangladesh","CustomRegion1","CustomRegion2","CustomRegion3"]
[null,"Colombia",2,null,2001,82.742683569522796,null,null,null,null,null,null,null,null,1,"Agriculture - Maize"," Agriculture, hunting, forestry and fishing"," Agriculture, hunting, forestry and fishing"," Agriculture, hunting, forestry and fishing"," Agriculture, hunting, forestry and fishing","Not implemented yet"," Agriculture, hunting, forestry and fishing","Agriculture, hunting, forestry and fishing","Agriculture - Maize"]
[null,"Mexico",3,null,2002,84.012938258756705,null,null,null,null,null,null,null,null,2,"Agriculture - Drought tolerant staples"," Mining and quarrying"," Mining and quarrying"," Mining and quarrying"," Mining and quarrying",null," Mining and quarrying","Mining and quarrying","Agriculture - Drought tolerant staples"]
[null,"Philippines",4,null,2003,85.688125127103405,null,null,null,null,null,null,null,null,3,"Agriculture - Groundnuts (Peanuts)","Manufacturing: Food products, beverages and tobacco","Manufacturing: Food products, beverages and tobacco","Manufacturing: Food products, beverages and tobacco","Manufacturing: Food products, beverages and tobacco",null,"Manufacturing: Food products, beverages and tobacco","Manufacturing: Food products, beverages and tobacco","Agriculture - Groundnuts (Peanuts)"]
[null,"South Africa",5,null,2004,88.044471808291902,null,null,null,null,null,null,null,null,4,"Agriculture - Sugar","Manufacturing: Textiles, textile products, leather and footwear","Manufacturing: Textiles, textile products, leather and footwear","Manufacturing: Textiles, textile products, leather and footwear","Manufacturing: Textiles, textile products, leather and footwear",null,"Manufacturing: Textiles, textile products, leather and footwear","Manufacturing: Textiles, textile products, leather and footwear","Agriculture - Sugar"]
[null,"Zambia",null,null,2005,90.877122505902605,null,null,null,null,null,null,null,null,5,"Agriculture - Cotton","Manufacturing: Wood and products of wood and cork","Manufacturing: Wood and products of wood and cork","Manufacturing: Wood and products of wood and cork","Manufacturing: Wood and products of wood and cork",null,"Manufacturing: Wood and products of wood and cork","Manufacturing: Wood and products of wood and cork","Agriculture - Cotton"]
[null,"CustomRegion1",null,null,2006,93.669532159113402,null,null,null,null,null,null,null,null,6,"Agriculture - Tobacco","Manufacturing: Pulp, paper, paper products, printing and publishing","Manufacturing: Pulp, paper, paper products, printing and publishing","Manufacturing: Pulp, paper, paper products, printing and publishing","Manufacturing: Pulp, paper, paper products, printing and publishing",null,"Manufacturing: Pulp, paper, paper products, printing and publishing","Manufacturing: Pulp, paper, paper products, printing and publishing","Agriculture - Tobacco"]
[null,"CustomRegion2",null,null,2007,96.162028497545904,null,null,null,null,null,null,null,null,7,"Agriculture - Coffee","Manufacturing: Coke, refined petroleum products and nuclear fuel","Manufacturing: Coke, refined petroleum products and nuclear fuel","Manufacturing: Coke, refined petroleum products and nuclear fuel","Manufacturing: Coke, refined petroleum products and nuclear fuel",null,"Manufacturing: Coke, refined petroleum products and nuclear fuel","Manufacturing: Coke, refined petroleum products and nuclear fuel","Agriculture - Coffee"]
[null,"CustomRegion3",null,null,2008,98.048375541036293,null,null,null,null,null,null,null,null,8,"Agriculture - Wheat","Manufacturing: Chemicals and chemical products","Manufacturing: Chemicals and chemical products","Manufacturing: Chemicals and chemical products","Manufacturing: Chemicals and chemical products",null,"Manufacturing: Chemicals and chemical products","Manufacturing: Chemicals and chemical products","Agriculture - Wheat"]
[null,null,null,null,2009,98.792964415925695,null,null,null,null,null,null,null,null,9,"Agriculture - Horticulture","Manufacturing: Rubber and plastics products","Manufacturing: Rubber and plastics products","Manufacturing: Rubber and plastics products","Manufacturing: Rubber and plastics products",null,"Manufacturing: Rubber and plastics products","Manufacturing: Rubber and plastics products","Agriculture - Horticulture"]
[null,null,null,null,2010,100,null,null,null,null,null,null,null,null,10,"Agriculture - Other Crops","Manufacturing: Other non-metallic mineral products","Manufacturing: Other non-metallic mineral products","Manufacturing: Other non-metallic mineral products","Manufacturing: Other non-metallic mineral products",null,"Manufacturing: Other non-metallic mineral products","Manufacturing: Other non-metallic mineral products","Agriculture - Other Crops"]
[null,null,null,null,2011,102.06429983161,null,null,null,null,null,null,null,null,11,"Agriculture - Livestock","Manufacturing: Basic metals","Manufacturing: Basic metals","Manufacturing: Basic metals","Manufacturing: Basic metals",null,"Manufacturing: Basic metals","Manufacturing: Basic metals","Agriculture - Livestock"]
[null,null,null,null,2012,103.896811080026,null,null,null,null,null,null,null,null,12,"Fishing","Manufacturing: Fabricated metal products","Manufacturing: Fabricated metal products","Manufacturing: Fabricated metal products","Manufacturing: Fabricated metal products",null,"Manufacturing: Fabricated metal products","Manufacturing: Fabricated metal products except machinery and equipment","Fishing"]
[null,null,"Yes",null,2013,105.444891271546,null,null,null,null,null,null,null,null,13,"Forestry","Manufacturing: Machinery and equipment not classified elsewhere","Manufacturing: Machinery and equipment not classified elsewhere","Manufacturing: Machinery and equipment not classified elsewhere","Manufacturing: Machinery and equipment not classified elsewhere",null,"Manufacturing: Machinery and equipment not classified elsewhere","Manufacturing: Machinery and equipment not classified elsewhere","Forestry"]
[null,null,"No",null,2014,106.982034952101,null,null,null,null,null,null,null,null,14,"Mining","Manufacturing: Computer, Electronic and optical equipment","Manufacturing: Computer, Electronic and optical equipment","Manufacturing: Computer, Electronic and optical equipment","Manufacturing: Computer, Electronic and optical equipment",null,"Manufacturing: Computer, Electronic and optical equipment","Manufacturing: Office, accounting and computing machinery","Mining"]
[null,null,null,null,2015,{"$f":"F19*1.02","v":109.12167565114302},"Estimates assume 2.0% annual growth",null,null,null,null,null,null,null,15,"Food and beverage manufacturing","Manufacturing: Electrical machinery and apparatus not classified elsewhere","Manufacturing: Electrical machinery and apparatus not classified elsewhere","Manufacturing: Electrical machinery and apparatus not classified elsewhere","Manufacturing: Electrical machinery and apparatus not classified elsewhere",null,"Manufacturing: Electrical machinery and apparatus not classified elsewhere","Manufacturing:  Electrical machinery and apparatus not classified elsewhere","Food and beverage manufacturing"]
[null,null,null,null,2016,{"$f":"F20*1.02","v":111.30410916416588},null,null,null,null,null,null,null,null,16,"Textile manufacturing","Manufacturing: Motor vehicles, trailers and semi-trailers","Manufacturing: Motor vehicles, trailers and semi-trailers","Manufacturing: Motor vehicles, trailers and semi-trailers","Manufacturing: Motor vehicles, trailers and semi-trailers",null,"Manufacturing: Motor vehicles, trailers and semi-trailers","Manufacturing: Radio, television and communication equipment","Textile manufacturing"]
[null,null,null,null,2017,113.5301913474492,null,null,null,null,null,null,null,null,17,"Wood and furniture manufacturing","Manufacturing: Other transport equipment","Manufacturing: Other transport equipment","Manufacturing: Other transport equipment","Manufacturing: Other transport equipment",null,"Manufacturing: Other transport equipment","Manufacturing: Medical, precision and optical instruments","Wood and furniture manufacturing"]
[null,null,null,null,2018,115.80079517439819,null,null,null,null,null,null,null,null,18,"Fertilizer and industrial chemical manufacturing"," Manufacturing not classified elsewhere; recycling"," Manufacturing not classified elsewhere; recycling"," Manufacturing not classified elsewhere; recycling"," Manufacturing not classified elsewhere; recycling",null," Manufacturing not classified elsewhere; recycling","Manufacturing: Motor vehicles, trailers and semi-trailers","Fertilizer and industrial chemical manufacturing"]
[null,null,null,null,2019,118.11681107788615,null,null,null,null,null,null,null,null,19,"Other manufacturing"," Electricity, gas and water supply"," Electricity, gas and water supply"," Electricity, gas and water supply"," Electricity, gas and water supply",null," Electricity, gas and water supply","Manufacturing: Other transport equipment","Other manufacturing"]
[null,null,null,null,2020,120.47914729944388,null,null,null,null,null,null,null,null,20,"Electricity and water"," Construction"," Construction"," Construction"," Construction",null," Construction","Manufacturing: Manufacturing not classified elsewhere; recycling","Electricity and water"]
[null,null,null,null,2021,122.88873024543275,null,null,null,null,null,null,null,null,21,"Equipment and machinery"," Wholesale and retail trade; repairs"," Wholesale and retail trade; repairs"," Wholesale and retail trade; repairs"," Wholesale and retail trade; repairs",null," Wholesale and retail trade; repairs","Electricity, gas and water supply","Equipment and machinery"]
[null,null,null,null,2022,125.34650485034142,null,null,null,null,null,null,null,null,22,"Construction"," Hotels and restaurants"," Hotels and restaurants"," Hotels and restaurants"," Hotels and restaurants",null," Hotels and restaurants","Construction","Construction"]
[null,null,null,null,2023,127.85343494734825,null,null,null,null,null,null,null,null,23,"Trade, transportation"," Transport and storage"," Transport and storage"," Transport and storage"," Transport and storage",null," Transport and storage","Wholesale and retail trade; repairs","Trade, transportation"]
[null,null,null,null,2024,130.41050364629521,null,null,null,null,null,null,null,null,24,"Tourism"," Post and telecommunications"," Post and telecommunications"," Post and telecommunications"," Post and telecommunications",null," Post and telecommunications","Hotels and restaurants","Tourism"]
[null,null,null,null,2025,133.01871371922113,null,null,null,null,null,null,null,null,25,"Other private and community services"," Financial intermediation"," Financial intermediation"," Financial intermediation"," Financial intermediation",null," Financial intermediation","Transport and storage","Other private and community services"]
[null,null,null,null,2026,135.67908799360555,null,null,null,null,null,null,null,null,26,"Financial services and insurance"," Real estate activities"," Real estate activities"," Real estate activities"," Real estate activities",null," Real estate activities","Post and telecommunications","Financial services and insurance"]
[null,null,null,null,2027,138.39266975347766,null,null,null,null,null,null,null,null,27,"Public services"," Renting of machinery and equipment"," Renting of machinery and equipment"," Renting of machinery and equipment"," Renting of machinery and equipment",null," Renting of machinery and equipment","Finance and insurance","Public services"]
[null,null,null,null,2028,141.16052314854721,null,null,null,null,null,null,null,null,28,"Labor - less than primary schooling"," Computer and related activities"," Computer and related activities"," Computer and related activities"," Computer and related activities",null," Computer and related activities","Real estate activities","Labor - less than primary schooling"]
[null,null,null,null,2029,143.98373361151815,null,null,null,null,null,null,null,null,29,"Labor - primary schooling"," R&D and other business activities"," R&D and other business activities"," R&D and other business activities"," R&D and other business activities",null," R&D and other business activities","Renting of machinery and equipment","Labor - primary schooling"]
[null,null,null,null,2030,146.86340828374853,null,null,null,null,null,null,null,null,30,"Labor - secondary schooling"," Public administration and defence; compulsory social security"," Public administration and defence; compulsory social security"," Public administration and defence; compulsory social security"," Public administration and defence; compulsory social security",null," Public administration and defence; compulsory social security","Computer and related activities","Labor - secondary schooling"]
[null,null,null,null,2031,149.80067644942349,null,null,null,null,null,null,null,null,31,"Labor - post-secondary schooling"," Education"," Education"," Education"," Education",null," Education","Research and development","Labor - post-secondary schooling"]
[null,null,null,null,2032,152.79668997841196,null,null,null,null,null,null,null,null,32,"Households - rural/remote - small"," Health and social work"," Health and social work"," Health and social work"," Health and social work",null," Health and social work","Other Business Activities","Households - rural/remote - small"]
[null,null,null,null,2033,155.8526237779802,null,null,null,null,null,null,null,null,33,"Households - rural/remote - medium"," Other community, social and personal services"," Other community, social and personal services"," Other community, social and personal services"," Other community, social and personal services",null," Other community, social and personal services","Public admin. and defence; compulsory social security","Households - rural/remote - medium"]
[null,null,null,null,2034,158.9696762535398,null,null,null,null,null,null,null,null,34,"Households - rural/remote - non-farm"," Private households with employed persons"," Private households with employed persons"," Private households with employed persons"," Private households with employed persons",null," Private households with employed persons","Education","Households - rural/remote - non-farm"]
[null,null,null,null,2035,162.1490697786106,null,null,null,null,null,null,null,null,35,"Households - rural/non-remote - small","Payments to workers and/or households","Payments to workers and/or households","Payments to workers and/or households","Payments to workers and/or households",null,"Payments to workers and/or households","Health and social work","Households - rural/non-remote - small"]
[null,null,null,null,2036,165.3920511741828,null,null,null,null,null,null,null,null,36,"Households - rural/non-remote - medium","",null,"",null,null,null,"Other community, social and personal services","Households - rural/non-remote - medium"]
[null,null,null,null,2037,168.69989219766646,null,null,null,null,null,null,null,null,37,"Households - rural/non-remote - large","",null,"",null,null,null,"Private households with employed persons","Households - rural/non-remote - large"]
[null,null,null,null,2038,172.07389004161979,null,null,null,null,null,null,null,null,38,"Households - rural/non-remote - non-farm","",null,"",null,null,null,"Payments to households","Households - rural/non-remote - non-farm"]
[null,null,null,null,2039,175.51536784245218,null,null,null,null,null,null,null,null,39,"Households - urban - low skilled self-employed","",null,"",null,null,null,"Payments to workers","Households - urban - low skilled self-employed"]
[null,null,null,null,2040,179.02567519930122,null,null,null,null,null,null,null,null,40,"Households - urban - private employees","","","",null,null,null,null,"Households - urban - private employees"]
[null,null,null,null,2041,182.60618870328724,null,null,null,null,null,null,null,null,41,"Households - urban - public employees","","","","",null,null,null,"Households - urban - public employees"]
[null,null,null,null,2042,186.258312477353,null,null,null,null,null,null,null,null,42,"Households - urban - high skilled ","","","","",null,null,null,"Households - urban - high skilled "]
[null,null,null,null,2043,189.98347872690007]
[null,null,null,null,2044,193.78314830143808]
[null,null,null,null,2045,197.65881126746683]
[null,null,null,null,2046,201.61198749281618]
[null,null,null,null,2047,205.64422724267251]
[null,null,null,null,2048,209.75711178752596]
[null,null,null,null,2049,213.95225402327648]
[null,null,null,null,2050,218.231299103742]
[]
[null,"Earnings Index Year for Custom Regions",null,null,"Selected"]
[null,"CustomRegion1",{"$f":"VLOOKUP(CustomRegion1_EarningsYear,E5:F55,2,FALSE)","v":106.982034952101},null,"Wind",{"$f":"wind_dollar_year","v":2014},{"$f":"VLOOKUP(F58,E5:F35,2,FALSE)","v":106.982034952101}]
[null,"CustomRegion2",{"$f":"VLOOKUP(CustomRegion2_EarningsYear,$E$5:$F$55,2,FALSE)","v":106.982034952101},null,"Solar",{"$f":"'Solar-PV-Inputs'!B6","v":2009},{"$f":"VLOOKUP(F59,E5:F35,2,FALSE)","v":98.792964415925695}]
[null,"CustomRegion3",{"$f":"VLOOKUP(CustomRegion3_EarningsYear,E5:F55,2,FALSE)","v":106.982034952101},null,"Biopower",{"$f":"'Biopower-Inputs'!B9","v":2014},{"$f":"VLOOKUP(F60,$E$5:$F$55,2,FALSE)","v":106.982034952101}]
[null,"CustomRegion4",null,null,"Geothermal",{"$f":"'Geothermal-Inputs'!B10","v":2012},{"$f":"VLOOKUP(F61,$E$5:$F$55,2,FALSE)","v":103.896811080026}]
[null,"CustomRegion5",null,null,"General",{"$f":"general_dollar_year","v":2012},{"$f":"VLOOKUP(F62,E5:F55,2,FALSE)","v":103.896811080026}]
[null,null,null,null,"Placeholder"]
[null,null,null,null,"Placeholder"]
[null,null,null,null,"Placeholder"]
[null,null,null,null,"Placeholder"]
[]
[null,"Biopower Defaults",null,null,null,null,null,null,null,null,null,null,null,null,null,null,null,null,null,null,null,null,null,null,null,"Solar PV Defaults"]
[null,"Bipower Dropdown Lists","Default Heat Content (Btu/kg)",null,null,"Default Capital Cost","Real Capital Cost",null,null,null,null,null,null,null,null,null,null,null,null,null,null,null,null,null,null,2,3,4,5,6,7]
[null,"Maize Stover",16666.960616589357,null,"Stoker boiler  ",3070,{"$f":"F70*$G$60/$F$17","v":3161.1638883697287},"Source: international costs in JEDI",null,null,null,null,null,null,null,null,null,null,null,null,null,null,null,null,null,"Total Capital and O&M Costs"]
[null,"Forest Residues",18893.631280974972,null,"Bubbling and circulating fluidised boilers ",3335,{"$f":"F71*$G$60/$F$17","v":3434.0330839456169},null,null,null,null,null,null,null,null,null,null,null,null,null,null,null,null,null,"Proxy Country","Country","Cost","Low","Average","High","% US"]
[null,"Switchgrass",19114.093722993352,null,"Fixed and fluidised bed gasifiers ",3920,4036.404704367862,null,null,null,null,null,null,null,null,null,null,null,null,null,null,null,null,null,"Colombia","Peru*","CAPEX (USD/w)",1.8109999999999953,2.3599716977635126,3.2379150932905474,{"$f":"AC72/$AC$76","v":1.3964329572565164},null,"* Peru has had a small (90 MW) head start over Colombia in terms of PV deployed and pipeline…"]
[null,"Selected",{"$f":"VLOOKUP('Biopower-Inputs'!B34,'Default-Data'!B70:C72,2,0)","v":18893.631280974972},null,"Selected",null,{"$f":"VLOOKUP(biopower_boiler_type,E70:G72,3,FALSE)","v":3161.1638883697287},null,null,null,null,null,null,null,null,null,null,null,null,null,null,null,null,null,"Mexico","Mexico","CAPEX (USD/w)",1.59,2.16,2.71,{"$f":"AC73/$AC$76","v":1.2781065088757397},null,"but both countries have similar RE goals (around 6% by 2020) …"]
[null,"Farmer",null,null,"Fixed O&M",{"$f":"0.045*G73*1000*biopower_capacity","v":71126187.48831889},null,null,null,null,null,null,null,null,null,null,null,null,null,null,null,null,null,null,"South Africa","South Africa","CAPEX (USD/w)",1.49,1.49,1.49,{"$f":"AC74/$AC$76","v":0.88165680473372787},null,"similar Climatescope scores…"]
[null,"Wholesaler",null,null,"Variable O&M",{"$f":"3.75*biopower_capacity*'Biopower-Inputs'!B6*365.25*24","v":13149000},null,null,null,null,null,null,null,null,null,null,null,null,null,null,null,null,null,null,"Philippines","Philippines","CAPEX (USD/w)",1.38,1.57,1.78,{"$f":"AC75/$AC$76","v":0.92899408284023677},null,"and similar solar value chains (according to the Climatescope)…"]
[null,null,null,null,null,null,null,null,null,null,null,null,null,null,null,null,null,null,null,null,null,null,null,null,null,"US","CAPEX (USD/w)",1.4,1.69,2.19]
[null,null,null,null,"%","Fixed and fluidised bed gasifiers ","Bubbling and circulating fluidised boilers ","Stoker boiler  ","Selected",null,null,null,null,null,null,null,null,null,null,null,null,null,null,null,"CustomRegion1","CustomRegion1","CAPEX (USD/w)",{"$f":"AVERAGE(AB72:AB75)","v":1.5677499999999989},{"$f":"AVERAGE(AC72:AC75)","v":1.8949929244408783},{"$f":"AVERAGE(AD72:AD75)","v":2.3044787733226366},{"$f":"AD77/$AD$76","v":1.0522734124760897}]
[null,"Capacity Factor",0.8,null,"Electrical/balance of plant",0.03,0.16,0.12,{"$f":"HLOOKUP(biopower_boiler_type,$F$77:$H$83,J78,FALSE)","v":0.12},2,null,null,null,null,null,null,null,null,null,null,null,null,null,null,"CustomRegion2","CustomRegion2","CAPEX (USD/w)",{"$f":"AB77","v":1.5677499999999989},{"$f":"AC77","v":1.8949929244408783},{"$f":"AD77","v":2.3044787733226366},{"$f":"AD78/$AD$76","v":1.0522734124760897}]
[null,"Heat Rate (Btu/kWh)",14000,null,"Civils",0.19,0.15,0.14000000000000001,0.14000000000000001,3,null,null,null,null,null,null,null,null,null,null,null,null,null,null,"CustomRegion3","CustomRegion3","CAPEX (USD/w)",1.5677499999999989,1.8949929244408783,2.3044787733226366,1.0522734124760897]
[null,null,null,null,"Consultancy/design",0.04,0.12,0.18,0.18,4,null,null,null,null,null,null,null,null,null,null,null,null,null,null,null,"Placeholder"]
[null,"MWh Generation",{"$f":"'Biopower-Inputs'!B5*'Biopower-Inputs'!B6*365.25*24","v":3506400},null,"Prime mover",0.08,7.0000000000000007E-2,0.04,0.04,5,null,null,null,null,null,null,null,null,null,null,null,null,null,null,null,"Placeholder"]
[null,"Btu/yr",{"$f":"'Biopower-Inputs'!B7*C81*1000","v":49089600000000},null,"Converter system",0.61,0.36,0.38,0.38,6,null,null,null,null,null,null,null,null,null,null,null,null,null,null,null,"Placeholder"]
[null,"Feedstock Consumption (Dry Metric Tonnes / yr)",{"$f":"C82/C73/1000","v":2598208.8498483081},null,"Fuel handling/preparation",0.05,0.14000000000000001,0.14000000000000001,0.14000000000000001,7,null,null,null,null,null,null,null,null,null,null,null,null,null,null,null,"Placeholder"]
[null,null,null,null,"Source: international costs in JEDI",null,null,null,null,null,null,null,null,null,null,null,null,null,null,null,null,null,null,null,null,"Placeholder"]
[null,"Construction Defaults",null,null,null,null,null,null,null,null,null,null,null,null,null,null,null,null,null,null,null,null,null,null,null,"Placeholder"]
[null,null,null,null,null,null,null,null,null,null,null,null,null,null,null,null,null,null,null,null,null,null,null,null,null,"Placeholder",null,null,null,null,null,null,"and similar annual insolation…"]
[null,"construction cost",null,null,{"$f":"biopower_country","v":"South Africa"},null,null,null,null,null,null,null,null,null,null,null,null,null,null,null,null,null,null,null,"Selected",{"$f":"VLOOKUP(pv_country,$Y$72:$AE$86,Z69,FALSE)","v":"Mexico"},"CAPEX (USD/w)",1.59,2.16,2.71,1.2781065088757397,null,"Navigant estimates similar solar DG deployment for both countries (I didn’t find info about utility-scale, but it didn't seem like it was worth my time given that this is just a broad comparison)"]
[null,null,"2013 $/kW",{"$f":"F60&\"$ total\"","v":"2014$ total"},{"$f":"IF(LEFT(E87,6)=\"Custom\",\"Other\",biopower_country)","v":"South Africa"},"Colombia","Mexico","Philippines","South Africa","Zambia","Bangladesh","Other","Index"]
[null,"Equipment"]
[null,"Feedstock handling equipment",null,{"$f":"I83*1000*biopower_capacity*G73","v":221281472.18588102},{"$f":"HLOOKUP($E$88,$F$88:$L$92,M90,FALSE)","v":0.1},0,0.15,0,0.1,0,0,0,3,null,null,null,null,null,null,null,null,null,null,null,"O&M"]
[null,"Turbines, boilers, and air quality control equipment",null,{"$f":"(I82+I81)*G73*biopower_capacity*1000","v":663844416.55764306},{"$f":"HLOOKUP($E$88,$F$88:$L$92,M91,FALSE)","v":0.1},0,0.15,0,0.1,0,0,0,4,null,null,null,null,null,null,null,null,null,null,null,"Colombia","Peru*","Fixed O&M ($/kW/year)",null,29.332999999999998]
[null,"Other equipment",null,{"$f":"C92*biopower_capacity*1000*$G$60/$F$18","v":0},0,0,0,0,0,0,0,0,5,null,null,null,null,null,null,null,null,null,null,null,"Mexico","Mexico","Fixed O&M ($/kW/year)",null,23]
[null,null,null,null,null,null,null,null,null,null,null,null,null,null,null,null,null,null,null,null,null,null,null,null,"South Africa","South Africa","Fixed O&M ($/kW/year)",null,32]
[null,null,null,null,{"$f":"biopower_country","v":"South Africa"},null,null,null,null,null,null,null,null,null,null,null,null,null,null,null,null,null,null,null,"Philippines","Philippines","Fixed O&M ($/kW/year)",null,39.328000000000003]
[null,"General Construction","$/kW","$",{"$f":"IF(LEFT(E94,6)=\"Custom\",\"Other\",biopower_country)","v":"South Africa"},"Colombia","Mexico","Philippines","South Africa","Zambia","Bangladesh","Other","Index",null,null,null,null,null,null,null,null,null,null,null,"CustomRegion1","CustomRegion1","Fixed O&M ($/kW/year)",null,{"$f":"AVERAGE(AC91:AC94)","v":30.91525}]
[null,"Construction",null,{"$f":"I79*1000*G73*biopower_capacity","v":221281472.18588102},{"$f":"HLOOKUP($E$95,$F$95:$L$96,M96,FALSE)","v":1},0.9,1,0.9,1,0.9,0.9,0.9,2,null,null,null,null,null,null,null,null,null,null,null,"CustomRegion2","CustomRegion2","Fixed O&M ($/kW/year)",null,{"$f":"AC95","v":30.91525}]
[null,null,null,null,null,null,null,null,null,null,null,null,null,null,null,null,null,null,null,null,null,null,null,null,"CustomRegion3","CustomRegion3","Fixed O&M ($/kW/year)",null,{"$f":"AC96","v":30.91525}]
[null,null,null,null,{"$f":"biopower_country","v":"South Africa"},null,null,null,null,null,null,null,null,null,null,null,null,null,null,null,null,null,null,null,null,"Placeholder"]
[null,"Contractors and Balance of Plant",null,null,{"$f":"IF(LEFT(E98,6)=\"Custom\",\"Other\",biopower_country)","v":"South Africa"},"Colombia","Mexico","Philippines","South Africa","Zambia","Bangladesh","Other","Index",null,null,null,null,null,null,null,null,null,null,null,null,"Placeholder"]
[null,"Balance of Plant",null,{"$f":"I78*G73*1000*biopower_capacity","v":189669833.30218372},{"$f":"HLOOKUP($E$99,$F$99:$L$102,M100,FALSE)","v":0.2},0.05,0.2,0.05,0.2,0.05,0.05,0.05,2,null,null,null,null,null,null,null,null,null,null,null,null,"Placeholder"]
[null,"Professional Services (legal, engineering, development, public relations etc.)",null,{"$f":"I80*G73*1000*biopower_capacity","v":284504749.95327556},{"$f":"HLOOKUP($E$99,$F$99:$L$102,M101,FALSE)","v":0.9},0.75,0.9,0.75,0.9,0.75,0.75,0.75,3,null,null,null,null,null,null,null,null,null,null,null,null,"Placeholder"]
[null,"Contractors and Balance of Plant Subtotal",null,null,1,1,1,1,1,1,1,1,4,null,null,null,null,null,null,null,null,null,null,null,null,"Placeholder"]
[null,null,null,null,null,null,null,null,null,null,null,null,null,null,null,null,null,null,null,null,null,null,null,null,null,"Placeholder"]
[null,"O&M",null,null,null,null,null,null,null,null,null,null,"$/kW",null,null,null,null,null,null,null,null,null,null,null,null,"Placeholder"]
[null,"Material Prices ($/kW)","USA","Colombia","Mexico","Philippines","South Africa","Zambia","Bangladesh","Other",null,null,null,null,null,null,null,null,null,null,null,null,null,null,"Selected",{"$f":"VLOOKUP(pv_country,$Y$91:$AC$104,Z69,FALSE)","v":"Mexico"},{"$f":"VLOOKUP(pv_country,$Y$91:$AC$104,AA69,FALSE)","v":"Fixed O&M ($/kW/year)"},{"$f":"VLOOKUP(pv_country,$Y$91:$AC$104,AB69,FALSE)","v":0},{"$f":"VLOOKUP(pv_country,$Y$91:$AC$104,AC69,FALSE)","v":23}]
[null,"Chemicals (including ammonia)",2.54,{"$f":"C106","v":2.54},{"$f":"D106","v":2.54},2.54,2.54,2.54,{"$f":"H106","v":2.54},{"$f":"I106","v":2.54}]
[null,"Water",0.51,{"$f":"0.75*C107","v":0.38250000000000001},{"$f":"0.53*C107","v":0.27030000000000004},{"$f":"0.39*C107","v":0.19890000000000002},{"$f":"0.67*C107","v":0.3417},{"$f":"G107","v":0.3417},0.3417,0.3417,null,null,null,null,null,null,null,null,null,null,null,null,null,null,"Defaults for Rooftop PV",null,"Dollar Yr",2014,"Adjust",{"$f":"pv_dollar_yr/F19","v":0.92345377857280619},{"$f":"pv_country","v":"Mexico"}]
[null,"Solids/Ash Disposal",0.64,{"$f":"C108","v":0.64},{"$f":"D108","v":0.64},0.64,0.64,0.64,0.64,0.64,null,null,null,null,null,null,null,null,null,null,null,null,null,null,"Real Total",{"$f":"pv_nameplate*AC87*1000000","v":216000000},null,null,null,null,{"$f":"IF(LEFT(pv_country,6)=\"Custom\",\"Other\",pv_country)","v":"Mexico"},"Colombia","Mexico","Philippines","South Africa","Zambia","Other"]
[null,null,null,null,null,null,null,null,null,null,null,null,null,null,null,null,null,null,null,null,null,null,null,null,"Modules",{"$f":"pv_nameplate*AA109*1000010","v":65565873.930852018},{"$f":"0.71*AD107","v":0.65565218278669235},"Global average production price (BNEF, SPV, GTM) $/W; assumes 10% margin",null,null,{"$f":"HLOOKUP($AE$108,$AF$108:$AK$117,AL109,FALSE)","v":0},0,0,0,0,0,0,2]
[null,"Materials","$/kW",null,{"$f":"IF(LEFT(biopower_country,6)=\"Custom\",\"Other\",biopower_country)","v":"South Africa"},"Colombia","Mexico","Philippines","South Africa","Zambia","Bangladesh","Other","Index",null,null,null,null,null,null,null,null,null,null,null,"Inverters ",{"$f":"AC113*AC112","v":23962958.134908523},{"$f":"pv_nameplate*0.1*AA109*1000000","v":6556521.8278669231},"Default Margin",null,null,{"$f":"HLOOKUP($AE$108,$AF$108:$AK$117,AL110,FALSE)","v":0},0,0,0,0,0,0,3]
[null,"Chemicals (including ammonia)",{"$f":"HLOOKUP($E$110,$D$105:$L$108,M111,FALSE)","v":2.54},{"$f":"C111*biopower_capacity*1000","v":1270000},{"$f":"IF(ISNA(HLOOKUP(biopower_country,$F$110:$K$113,M111,FALSE)),L111,HLOOKUP(biopower_country,$F$110:$K$113,M111,FALSE))","v":0.5},0.5,0.5,0.5,0.5,0.5,0.5,0.5,2,null,null,null,null,null,null,null,null,null,null,null,null,null,null,null,null,null,null,"Colombia","Mexico","Philippines","South Africa","Zambia",null,"Index"]
[null,"Water",{"$f":"HLOOKUP($E$110,$D$105:$L$108,M112,FALSE)","v":0.3417},{"$f":"C112*biopower_capacity*1000","v":170850},{"$f":"IF(ISNA(HLOOKUP(biopower_country,$F$110:$K$113,M112,FALSE)),L112,HLOOKUP(biopower_country,$F$110:$K$113,M112,FALSE))","v":1},1,1,1,1,1,1,1,3,null,null,null,null,null,null,null,null,null,null,null,"Installation costs",{"$f":"(AC116+AC118)*AC112","v":71888874.404725581},null,"Total Less Modules",{"$f":"Z108-Z109","v":150434126.06914797},null,1,1,1,1,1,1,1,5]
[null,"Solids/Ash Disposal",0.64,{"$f":"C113*biopower_capacity*1000","v":320000},{"$f":"IF(ISNA(HLOOKUP(biopower_country,$F$110:$K$113,M113,FALSE)),L113,HLOOKUP(biopower_country,$F$110:$K$113,M113,FALSE))","v":1},1,1,1,1,1,1,1,4,null,null,null,null,null,null,null,null,null,null,null,null,null,null,"Inverters and AC Subsystem ",0.15929203539823006,null,null,"Colombia","Mexico","Philippines","South Africa","Zambia",null,"Index"]
[null,null,null,null,null,null,null,null,null,null,null,null,null,null,null,null,null,null,null,null,null,null,null,null,"Design and civil engineering",{"$f":"AC122*AC112*AC117","v":1109396.2099494687},null,"DC Electrical BOS ",0.11504424778761062,null,0.5,0.5,0.5,0.5,0.5,0.5,0.5,7]
[null,null,null,null,null,null,null,null,null,null,null,null,null,null,null,null,null,null,null,null,null,null,null,null,"Other (public relations, legal, environmental studies)",{"$f":"AC112*AC117*AC121","v":5546981.049747345},null,"Structural BOS ",0.20353982300884954,null,0.9,0.9,0.9,0.9,0.9,0.9,0.9,8]
[null,"Default onsite staffing needs FTE/MW (fixed) or FTE/MWh (variable) - (this is total workers, not local workers)",null,null,null,"total utility jobs",{"$f":"biopower_country","v":"South Africa"},"Colombia","Mexico","Philippines","South Africa","Zambia","Bangladesh","CustomRegion1","CustomRegion2","CustomRegion3","CustomRegion4","CustomRegion5","Index",null,null,null,null,null,"Infrastructure - electricity and other",{"$f":"(AC114+AC115)*AC112","v":47925916.269817054},null,"Direct Labor ",0.17699115044247787,null,0.85,0.85,0.85,0.85,0.85,0.85,0.85,9]
["Fixed","O&M Management",0.04,"Fixed Admin/MW",{"$f":"C117+C118","v":6.6957306716032797E-2},{"$f":"E117*biopower_capacity","v":33.478653358016402},{"$f":"HLOOKUP(biopower_country,$H$116:$R$118,S117,FALSE)","v":5196514.5486180978},{"$f":"(biopower_dollar_index/F19)*F117*'Colombia-IO-Data'!AP31/('Colombia-IO-Data'!AN31*'Colombia-IO-Data'!AO31)","v":3766700.8518406898},{"$f":"(biopower_dollar_index/$F$19)*F117*'Mexico-IO-Data'!$AS$31/'Mexico-IO-Data'!$AR$31","v":5781108.1424285928},{"$f":"(biopower_dollar_index/$F$19)*F117*'Philippines-IO-Data'!$AP$31/'Philippines-IO-Data'!$AO$31","v":1065260.5020028923},{"$f":"(biopower_dollar_index/$F$19)*F117*'SouthAfrica-IO-Data'!$AT$31/'SouthAfrica-IO-Data'!$AS$31","v":5196514.5486180978},{"$f":"(biopower_dollar_index/$F$19)*F117*'Zambia-IO-Data'!$BP$30/'Zambia-IO-Data'!$BN$30","v":1497847.367185012},null,{"$f":"(biopower_dollar_index/$F$19)*F117*CustomRegion1!$E$27/CustomRegion1!$D$27","v":1065260.5020028923},{"$f":"(biopower_dollar_index/$F$19)*F117*CustomRegion2!$E$27/CustomRegion2!$D$27","v":1921575.6406518421},{"$f":"(biopower_dollar_index/$F$19)*F117*CustomRegion3!$F$31/CustomRegion3!$E$31","v":1497847.367185012},null,null,2,null,null,null,null,null,"Transportation - Country Specific",{"$f":"IF(Z108-SUM(Z109:Z116)>0,Z108-SUM(Z109:Z116),0)","v":2.9802322387695313E-8},null,"Engineering and PII ",4.4247787610619468E-2,null,1,1,1,1,1,1,1,10]
["Fixed","O&M Administration",2.6957306716032796E-2,"Var /MWh",{"$f":"SUM(C119:C121)","v":6.3599063817917353E-5},{"$f":"E118*biopower_capacity*365.25*24*'Biopower-Inputs'!B6","v":223.00375737114547},{"$f":"HLOOKUP(biopower_country,$H$116:$R$118,S118,FALSE)","v":34614363.283467472},{"$f":"(biopower_dollar_index/F19)*F118*'Colombia-IO-Data'!AP31/('Colombia-IO-Data'!AN31*'Colombia-IO-Data'!AO31)","v":25090269.727125522},{"$f":"(biopower_dollar_index/$F$19)*F118*'Mexico-IO-Data'!$AS$31/'Mexico-IO-Data'!$AR$31","v":38508383.946745604},{"$f":"(biopower_dollar_index/$F$19)*F118*'Philippines-IO-Data'!$AP$31/'Philippines-IO-Data'!$AO$31","v":7095778.0764152212},{"$f":"(biopower_dollar_index/$F$19)*F118*'SouthAfrica-IO-Data'!$AT$31/'SouthAfrica-IO-Data'!$AS$31","v":34614363.283467472},{"$f":"(biopower_dollar_index/$F$19)*F118*'Zambia-IO-Data'!$BP$30/'Zambia-IO-Data'!$BN$30","v":9977270.8083180301},null,{"$f":"(biopower_dollar_index/$F$19)*F118*CustomRegion1!$E$27/CustomRegion1!$D$27","v":7095778.0764152212},{"$f":"(biopower_dollar_index/$F$19)*F118*CustomRegion2!$E$27/CustomRegion2!$D$27","v":12799755.813225351},{"$f":"(biopower_dollar_index/$F$19)*F118*CustomRegion3!$F$31/CustomRegion3!$E$31","v":9977270.8083180301},null,null,3,null,null,null,null,null,null,{"$f":"SUM(Z114:Z117)+Z112+Z110+Z109","v":216000000.00000003},null,"Supply Chain, Overhead, Margin ",0.30088495575221236]
["Variable","O&M Plant operators",3.7075062742413871E-5,null,null,"% Local",{"$f":"IF(ISNA(HLOOKUP(biopower_country,$H$116:$M$119,S119,FALSE)),N119,HLOOKUP(biopower_country,$H$116:$M$119,S119,FALSE))","v":1},1,1,1,1,1,1,1,1,1,1,1,4]
["Variable","O&M Fuel handlers",1.0187519147742486E-5,null,null,null,null,null,null,null,null,null,null,null,null,null,null,null,null,null,null,null,null,null,"O&M",null,null,"Engineering and PII"]
["Variable","O&M Maintenance workers",1.6336481927761004E-5,null,null,null,null,null,null,null,null,null,null,null,null,null,null,null,null,null,null,null,null,null,"Total",{"$f":"AC105*pv_nameplate*1000*AD107","v":2123943.6907174541},null,"Other",0.83333333333333337,null,{"$f":"pv_country","v":"Mexico"}]
[null,null,null,null,null,null,null,null,null,null,null,null,null,null,null,null,null,null,null,null,null,null,null,null,null,null,null,"Design",0.16666666666666666,null,{"$f":"IF(LEFT(pv_country,6)=\"Custom\",\"Other\",pv_country)","v":"Mexico"},"Colombia","Mexico","Philippines","South Africa","Zambia","Other","Index"]
[null,{"$f":"IF(LEFT(biopower_country,6)=\"Custom\",\"Other\",biopower_country)","v":"South Africa"},null,null,null,null,null,null,null,null,null,null,null,null,null,null,null,null,null,null,null,null,null,null,"Maintenance and repair services",{"$f":"Z121-Z124","v":750829.48556493246},null,null,null,null,{"$f":"HLOOKUP($AE$122,$AF$122:$AK$124,AL123,FALSE)","v":0.9},0.9,0.9,0.9,0.9,0.9,0.9,2]
[null,"Costs","Colombia","Mexico","South Africa","Zambia","Philippines","Bangladesh","Other","% Farmer","% Wholesaler",null,null,null,null,null,null,null,null,null,null,null,null,null,"Repair parts",{"$f":"14.8693333333333*pv_nameplate*1000*AD107","v":1373114.2051525216},null,null,null,null,{"$f":"HLOOKUP($AE$122,$AF$122:$AK$124,AL124,FALSE)","v":0},0,0,0,0,0,0,3]
[null,"Maize Stover",10.518518518518517,{"$f":"C125","v":10.518518518518517},{"$f":"D125","v":10.518518518518517},10.518518518518517,10.518518518518517,10.518518518518517,10.518518518518517,0.5,0.5]
[null,"Forest Residues",11.5,{"$f":"C126","v":11.5},11.5,11.5,11.5,11.5,11.5,0.1,0.9]
[null,"Switchgrass",11,11,11,11,11,11,11,0.5,0.5]
[null,"Selected"]
[null,"Maize Stover",{"$f":"HLOOKUP($B$123,'Default-Data'!$C$124:$I$127,'Default-Data'!A131,FALSE)","v":10.518518518518517},null,null,null,null,null,null,null,13.5,"GJ/US Ton"]
[null,"Forest Residues",{"$f":"HLOOKUP($B$123,'Default-Data'!$C$124:$I$127,'Default-Data'!A132,FALSE)","v":11.5},null,null,null,null,null,null,null,{"$f":"K129/0.907185","v":14.881198432513765},"GJ/metric tonne",null,"$3.1/GJ"]
[2,"Switchgrass",{"$f":"HLOOKUP($B$123,'Default-Data'!$C$124:$I$127,'Default-Data'!A133,FALSE)","v":11},"Farmer","Wholesaler",null,null,null,null,null,"1/0.907185"]
[3,{"$f":"\"Selected (\"&'Biopower-Inputs'!B34&\")\"","v":"Selected (Forest Residues)"},{"$f":"VLOOKUP('Biopower-Inputs'!B34,'Default-Data'!$B$129:$C$131,2,FALSE)","v":11.5},0.5,0.5]
[4,"Transport",null,{"$f":"D132+E132","v":1},null,null,null,null,null,null,{"$f":"K130*C125","v":156.52816129014477}]
[]
[]
[]
[null,"Wind Defaults","Country","Proxy"]
[null,"Default total",{"$f":"wind_country","v":"Colombia"},{"$f":"IF(LEFT(wind_country,6)=\"Custom\",\"Other\",wind_country)","v":"Colombia"}]
[]
[null,"Wind Plant Construction",null,{"$f":"wind_dollar_year","v":2014},null,null,null,null,"Vestas/Johannesburg"]
[null,"Equipment","Cost Distribution",null,{"$f":"wind_country_proxy","v":"Colombia"},"Colombia","Mexico","Philippines","South Africa","Zambia","Bangladesh","Other","Index"]
[null,"Turbine",0.59819939979993331,{"$f":"$C$146*C142","v":366543749.87741017},{"$f":"HLOOKUP(wind_country_proxy,$F$141:$L$145,M142,FALSE)","v":0},0,0.5,0,0.75,0,0,0,2]
[null,"Blades",0.14004668222740912,{"$f":"$C$146*C143","v":85812918.031500712},{"$f":"HLOOKUP(wind_country_proxy,$F$141:$L$145,M143,FALSE)","v":0},0,0.5,0,0.75,0,0,0,3]
[null,"Tower",0.15505168389463148,95007159.249161467,{"$f":"HLOOKUP(wind_country_proxy,$F$141:$L$145,M144,FALSE)","v":0.1},0.1,0.5,0.1,0.75,0.1,0.1,0.1,4]
[null,"Equipment Shipping/Transportation",0.10670223407802601,65381270.881143399,{"$f":"HLOOKUP(wind_country_proxy,$F$141:$L$145,M145,FALSE)","v":0.5},0.5,0.5,0.5,0.5,0.5,0.5,0.5,5]
[null,"Equipment Subtotal",{"$f":"F178+F179+F180","v":612745098.0392158},{"$f":"SUM(D142:D145)","v":612745098.0392158},null,null,null,null,null,null,null,null,6]
[null,null,null,null,null,null,null,null,null,null,null,null,7]
[null,"Construction",null,null,null,null,null,null,null,null,null,null,8]
[null,"Electrical Balance of Plant",null,{"$f":"F183","v":153186274.50980392},{"$f":"IF(ISNA(HLOOKUP(wind_country,$F$141:$K$157,M149,FALSE)),L149,HLOOKUP(wind_country,$F$141:$K$157,M149,FALSE))","v":0.15},0.15,0.25,0.15,0.25,0.15,0.15,0.15,9]
[null,"Construction (Excluding Site Improvements)",null,{"$f":"F184+F186+F181+F185","v":234885620.91503268},{"$f":"IF(ISNA(HLOOKUP(wind_country,$F$141:$K$157,M150,FALSE)),L150,HLOOKUP(wind_country,$F$141:$K$157,M150,FALSE))","v":0.9},0.9,0.9,0.9,0.9,0.9,0.9,0.9,10]
[null,"Subtotal",null,null,null,null,null,null,null,null,null,null,11]
[null,null,null,null,null,null,null,null,null,null,null,null,12]
[null,"Other",null,null,null,null,null,null,null,null,null,null,13]
[null,"Engineering and Other Professional Services (i.e., Project Design)",null,{"$f":"F182","v":20424836.601307191},{"$f":"IF(ISNA(HLOOKUP(wind_country,$F$141:$K$157,M154,FALSE)),L154,HLOOKUP(wind_country,$F$141:$K$157,M154,FALSE))","v":0.5},0.5,0.75,0.75,0.75,0.5,0.5,0.5,14]
[null,null,null,null,null,null,null,null,null,null,null,null,15]
[null,"Other Transportation (Not of Equipment)",0,0,{"$f":"IF(ISNA(HLOOKUP(wind_country,$F$141:$K$157,M156,FALSE)),L156,HLOOKUP(wind_country,$F$141:$K$157,M156,FALSE))","v":0.75},0.75,0.75,0.75,0.75,0.75,0.75,0.75,16,"Note: This can be highly variable, which is why the default is $1"]
[null,"Site Improvement (i.e., Road Construction)",0,0,{"$f":"IF(ISNA(HLOOKUP(wind_country,$F$141:$K$157,M157,FALSE)),L157,HLOOKUP(wind_country,$F$141:$K$157,M157,FALSE))","v":0.9},0.9,0.9,0.9,0.9,0.9,0.9,0.9,17,"Note: This can be highly variable, which is why the default is $0"]
[null,"Subtotal"]
[]
[null,"Construction Total"]
[]
[]
[null,"Operations and Maintenance (O&M)",null,"Expenditure",{"$f":"wind_country_proxy","v":"Colombia"},"Colombia","Mexico","Philippines","South Africa","Zambia","Bangladesh","Other","Index"]
[null,"Plant operations (staff, equiment such as trucks)",null,{"$f":"HLOOKUP(wind_country,$E$168:$O$169,R169,FALSE)","v":3375315.7376672919},{"$f":"HLOOKUP(wind_country_proxy,$F$163:$L$165,M164,FALSE)","v":0.5},0.5,0.75,0.5,0.75,0.5,null,{"$f":"AVERAGE(F164:J164)","v":0.6},2]
[null,"Replacement Parts",null,{"$f":"0.08*D146","v":49019607.843137264},{"$f":"HLOOKUP(wind_country_proxy,$F$163:$L$165,M165,FALSE)","v":0},0,0.5,0,0.75,0,null,{"$f":"AVERAGE(F165:J165)","v":0.25},3]
[null,"Civil Works (Access Roads, etc.)",null,null,{"$f":"HLOOKUP(wind_country_proxy,$F$163:$L$166,M166,FALSE)","v":0.9},{"$f":"F150","v":0.9},{"$f":"G150","v":0.9},0.9,0.9,0.9,null,0.9,4]
[null,"O&M Total",null,null,"Output (Below)"]
[null,null,"Jobs/MW","Jobs","Colombia","Mexico","Philippines","South Africa","Zambia","Bangladesh","CustomRegion1","CustomRegion2","CustomRegion3","CustomRegion4","CustomRegion5",null,null,"Index"]
[null,"Default",{"$f":"6/100","v":0.06},{"$f":"C169*wind_capacity","v":30},{"$f":"D169*'Colombia-IO-Data'!AP31*(wind_dollar_yr/$F$19)/('Colombia-IO-Data'!AN31*'Colombia-IO-Data'!AO31)","v":3375315.7376672919},{"$f":"(wind_dollar_index/$F$19)*D169*'Mexico-IO-Data'!AS31/'Mexico-IO-Data'!AR31","v":5180412.7967210943},{"$f":"(wind_dollar_index/$F$19)*D169*'Philippines-IO-Data'!AP31/'Philippines-IO-Data'!AO31","v":954572.89510226157},{"$f":"(wind_dollar_index/$F$19)*D169*'SouthAfrica-IO-Data'!AT31/'SouthAfrica-IO-Data'!AS31","v":4656562.3411257686},{"$f":"(wind_dollar_index/$F$19)*D169*'Zambia-IO-Data'!BP30/'Zambia-IO-Data'!BO30","v":66443.457032056773},null,{"$f":"(wind_dollar_index/$F$19)*D169*CustomRegion1!E27/CustomRegion1!D27","v":954572.89510226157},{"$f":"(wind_dollar_index/$F$19)*D169*CustomRegion2!E27/CustomRegion2!D27","v":1721911.2311084562},{"$f":"(wind_dollar_index/$F$19)*D169*CustomRegion3!F31/CustomRegion3!E31","v":1342211.1258483655},null,null,null,null,2]
[null,null,"Source: Industry conversations",null,"These values are looked up in cell D164"]
[]
[null,"CapEx"]
[null,null,{"$f":"wind_country","v":"Colombia"},"Colombia","Mexico","Philippines","South Africa","Zambia","Bangladesh","Other","USA"]
[null,"Capex ($millions 2015 / MW)",{"$f":"HLOOKUP(wind_country_proxy,$D$173:$K$174,2,FALSE)","v":2.0833333333333335},2.0833333333333335,1.9576390838437987,1.8318176147952387,1.6844895833333335,{"$f":"G174","v":1.6844895833333335},null,{"$f":"AVERAGE(D174:H174)","v":1.8483538397278074},1.9119261065573778]
[]
[]
[null,"Price Distribution",null,2015,"$/kW","2015 Deflator",{"$f":"wind_dollar_yr/F20","v":0.98039215686274506}]
[null,"Rotor",0.15,{"$f":"$D$187*C178","v":156250000},{"$f":"D178/(wind_capacity*1000)","v":312.5},{"$f":"D178*$G$177","v":153186274.50980392}]
[null,"Drivetrain/nacelle",0.33,{"$f":"$D$187*C179","v":343750000.00000006},687.50000000000011,{"$f":"D179*$G$177","v":337009803.92156869}]
[null,"Tower",0.12,125000000,250,122549019.60784313]
[null,"Development",0.03,31250000,62.5,30637254.901960783]
[null,"Engineering",0.02,20833333.333333336,41.666666666666671,20424836.601307191]
[null,"Electrical",0.15,156250000,312.5,153186274.50980392]
[null,"Assembly/install",0.06,62500000,125,61274509.803921565]
[null,"Road/civil",0.08,83333333.333333343,166.66666666666669,81699346.405228764]
[null,"Foundation",0.06,62500000,125,61274509.803921565]
[null,"Total",{"$f":"SUM(C178:C186)","v":1},{"$f":"C174*wind_capacity*1000000","v":1041666666.6666667},2083.3333333333335]
[]
[null,"Sources"]
[null,"2014 Wind Technology Market Report"]
[null,"http://energy.gov/sites/prod/files/2015/08/f25/2014-Wind-Technologies-Market-Report-8.7.pdf"]
[null,"Bloomberg New Energy Finance"]
[]
[]
[]
[]
[]
[]
[null,"GEOTHERMAL"]
[null,"Country used",{"$f":"IF(LEFT('Geothermal-Inputs'!B4,6)=\"Custom\",\"Other\",'Geothermal-Inputs'!B4)","v":"Mexico"}]
[]
[]
[null,"Well cost calculator"]
[null,null,"http://os.is/gogn/unu-gtp-report/UNU-GTP-2013-11.pdf"]
[null,null,"https://pangea.stanford.edu/ERE/db/WGC/papers/WGC/2015/21026.pdf",null,null,null,null,null,null,null,null,null,2015]
[null,"Hole diameter (in.)","Max depth (m)","Bit cost (USD)","# bits","Bit cost w/ stabilizers","Drilling mud tons","Drilling mud cost per ton","Drilling mud cost","Days for well + casing","Casing cost/m","Scaled multiplier","Petroleum products","bits","mud","Calculated casing costs"]
[null,26,60,30000,1,{"$f":"1.3*D207*E207","v":39000},7.2,800,{"$f":"G207*H207","v":5760},3,225,{"$f":"IF(C213>C207,1,C213/C207)","v":1},{"$f":"J207*$F$216*L207","v":15801.945762711865},{"$f":"F207*L207","v":39000},{"$f":"I207*L207","v":5760},{"$f":"IF(C213>=C207,60*K207,C213*K207)","v":13500}]
[null,17.5,300,25000,1,{"$f":"1.3*D208*E208","v":32500},7.4,800,{"$f":"G208*H208","v":5920},8,{"$f":"175*(298.5/322.5)+190*(24/322.5)","v":176.11627906976744},{"$f":"IF(C213>C208,1,IF(AND(C213>C207,C213<=C208),(C213-C207)/240,0))","v":1},{"$f":"J208*$F$216*L208","v":42138.522033898305},{"$f":"F208*L208","v":32500},{"$f":"I208*L208","v":5920},{"$f":"IF(AND(C213>C207,C213>C208),240*K208,IF(C213>C207,C213*K208,0))","v":42267.906976744183}]
[null,12.25,1200,15000,3,58500,0,800,0,15,145,{"$f":"IF(C213>C209,1,IF(AND(C213>C208,C213<=C209),(C213-C208)/900,0))","v":1},79009.728813559326,{"$f":"F209*L209","v":58500},{"$f":"I209*L209","v":0},{"$f":"IF(AND(C213>C208,C213>C209),900*K209,IF(C213>C208,C213*K209,0))","v":130500}]
[null,8.5,3000,8000,5,52000,0,800,0,26,{"$f":"170*(1826/1850)+110*(24/1850)","v":169.22162162162164},{"$f":"IF(C213>C209,(C213-C209)/1800,0)","v":1},136950.19661016949,{"$f":"F210*L210","v":52000},{"$f":"I210*L210","v":0},{"$f":"IF(C213>C209,K210*C213,0)","v":507664.86486486491}]
[null,"completion",null,null,null,null,null,null,null,3,null,"total",{"$f":"SUM(M207:M210)","v":273900.39322033897},{"$f":"SUM(N207:N210)","v":182000},{"$f":"SUM(O207:O210)","v":11680},{"$f":"SUM(P207:P210)","v":693932.77184160915}]
[null,null,null,null,null,null,null,null,"Drilling days",{"$f":"SUMPRODUCT(J207:J210,L207:L210)","v":52}]
[null,"User indicated depth",{"$f":"'Geothermal-Inputs'!B6","v":3000}]
[null,null,2015]
[null,"Petroleum use per well","L Diesel/day","Diesel cost/day","Oil cost/day","petrol cost / day","detergents/day (L)","detergent price/L","detergent cost"]
[null,null,5850,{"$f":"C220*C216","v":4446},{"$f":"C221*35068/55","v":821.31525423728829},{"$f":"D216+E216","v":5267.3152542372882},420,2.11,{"$f":"G216*H216*J212","v":46082.399999999994}]
[]
[null,null,{"$f":"'Geothermal-Inputs'!B4","v":"Mexico"},2015]
[null,null,{"$f":"C200","v":"Mexico"},"Colombia","Mexico","Philippines","South Africa","Zambia","Bangladesh","CustomRegion1","CustomRegion2","CustomRegion3",null,"USA","Index"]
[null,"Diesel $/L",{"$f":"HLOOKUP(geo_country,$D$219:$N$224,O220,FALSE)","v":0.76},0.64,0.76,0.56000000000000005,0.79,0.81,0.83,0.85,{"$f":"J220","v":0.85},{"$f":"K220","v":0.85},null,0.59,2,2015,"http://www.globalpetrolprices.com/diesel_prices/"]
[null,null,{"$f":"HLOOKUP(geo_country,$D$219:$N$224,O221,FALSE)","v":1.2881355932203391},{"$f":"D220/$N$220","v":1.0847457627118644},1.2881355932203391,0.94915254237288149,1.3389830508474578,1.3728813559322035,1.4067796610169492,1.4406779661016949,{"$f":"J221","v":1.4406779661016949},1.4406779661016949,null,{"$f":"N220/$N$220","v":1},3]
[null,"Cost /barrel oil $",{"$f":"HLOOKUP(geo_country,$D$219:$N$224,O222,FALSE)","v":29.1},35.299999999999997,29.1,29.9,31.6,35.4,27.8,30,30,30,null,36.200000000000003,4,2015,"http://marketrealist.com/2016/01/crude-oils-total-cost-production-impacts-major-oil-producers/"]
[null,"Drilling cost multiplier",{"$f":"HLOOKUP(geo_country,$D$219:$N$224,O223,FALSE)","v":0.80386740331491713},{"$f":"D222/$N$222","v":0.97513812154696122},0.80386740331491713,0.82596685082872923,0.8729281767955801,0.97790055248618768,0.7679558011049723,0.82872928176795568,{"$f":"K222/$N$222","v":0.82872928176795568},0.82872928176795568,null,null,5]
[null,"Professional services avg wage",{"$f":"HLOOKUP(geo_country,$D$219:$N$224,O224,FALSE)","v":45219.985666637687},{"$f":"'Colombia-IO-Data'!AP40","v":10487.331818181818},{"$f":"MAX('Mexico-IO-Data'!AS13:AS46)","v":45219.985666637687},{"$f":"'Philippines-IO-Data'!AP40","v":3948.9654660753608},{"$f":"MAX('SouthAfrica-IO-Data'!AT13:AT46)","v":27577.931034482757},{"$f":"MAX('Zambia-IO-Data'!BP11:BP37)","v":1134.5687814359997},null,{"$f":"IF('Geothermal-Inputs'!B4=\"CustomRegion1\",CustomRegion1!E36,0)","v":0},{"$f":"MAX(CustomRegion2!E13:E50)","v":45219.985666637687},null,null,81520,6,null,"http://bls.gov/oes","(US data)"]
[null,"Wage index",{"$f":"C224/$N$224","v":0.55471032466434844}]
[null,null,null,null,{"$f":"MIN(C223:L223)","v":0.7679558011049723},{"$f":"MAX(C223:L223)","v":0.97790055248618768}]
[null,null,"US Costs",null,"In-country costs",null,null,null,"Domestic Content"]
[null,null,"Daily","Total","Total per well","Total ($2015)","Total converted to user-specified dollar year",null,{"$f":"C200","v":"Mexico"},"Colombia","Mexico","Philippines","South Africa","Zambia","Bangladesh","Other"]
[null,"Site preparation",null,70000,{"$f":"D229*$C$223","v":56270.718232044201},{"$f":"$E$240*E229","v":112541.4364640884},{"$f":"F229*$G$61/$F$20","v":107152.8300240289},null,{"$f":"HLOOKUP($I$228,$J$228:$P$237,Q229,FALSE)","v":1},{"$f":"J230","v":0.9},{"$f":"K230","v":1},1,1,0.8,0.8,{"$f":"MIN(J229:O229)","v":0.8},2]
[null,"Rig operator and drilling services",{"$f":"(1893000+350+9500+8000+1250)/52","v":36771.153846153844},{"$f":"C230*J212+420000+300000","v":2632100},{"$f":"D230*$C$223","v":2115859.3922651932},{"$f":"$E$240*E230","v":4231718.7845303863},{"$f":"F230*$G$61/$F$20","v":4029099.4843749488},null,1,0.9,1,1,1,0.8,0.8,0.8,3]
[null,"Cement and cement additives",null,{"$f":"C213*(39674+3967)/3000","v":43641},{"$f":"D231*$C$223","v":35081.577348066297},70163.154696132595,66803.666501123502,null,0.9,0.9,0.9,0.9,0.9,0.9,0.9,0.9,4]
[null,"Petroleum",null,{"$f":"M211","v":273900.39322033897},220179.59786496861,440359.19572993723,419274.31826076657,null,1,0.7,1,0.2,0.05,0,0,{"$f":"MIN(J232:O232)","v":0},5]
[null,"Bits and stabilizers",null,{"$f":"N211","v":182000},146303.86740331491,292607.73480662983,278597.35806247516,null,0.9,0.9,0.9,0.5,0.9,0.9,0.5,{"$f":"MIN(J233:O233)","v":0.5},6]
[null,"Mud and Detergents",null,{"$f":"O211+I216","v":57762.399999999994},46433.310497237566,92866.620994475132,88420.066128285238,null,0.8,0.8,0.8,0.8,0.8,0.8,0.8,0.8,7]
[null,"Casing and wellhead",null,{"$f":"P211","v":693932.77184160915},557829.93537543714,1115659.8707508743,1062240.8621321023,null,0.8,0.8,0.8,0.8,0.8,0.8,0.8,0.8,8]
[null,"Worker housing",{"$f":"82030/52","v":1577.5},{"$f":"C236*J212","v":82030},65941.243093922647,131882.48618784529,125567.80924101557,null,1,1,1,1,1,1,1,1,9]
[null,"Professional services (engineers, geologists, supervisors, etc.)",null,{"$f":"475000","v":475000},{"$f":"D237*(I237)*C225+D237*(1-I237)","v":284638.66379400896},569277.32758801791,542019.70968299394,null,{"$f":"HLOOKUP($I$228,$J$228:$P$237,Q237,FALSE)","v":0.9},0.75,0.9,0.75,0.9,0.65,0.65,0.75,10]
[null,null,null,{"$f":"SUM(D229:D237)","v":4510366.5650619483},{"$f":"SUM(E229:E237)","v":3528538.3058741936},7057076.6117483871,6719176.1044077408]
[null,null,null,null,"per well"]
[null,null,null,"# wells:",{"$f":"'Geothermal-Inputs'!B9*'Geothermal-Inputs'!B8","v":2}]
[]
[null,"Drilling portion of total costs",0.45,"https://pangea.stanford.edu/ERE/db/WGC/papers/WGC/2015/21026.pdf"]
[null,null,null,"http://www.sciencedirect.com/science/article/pii/S0920410514000813"]
[null,null,null,null,null,null,"Domestic Content"]
[null,null,"$/kW","%",null,null,{"$f":"C200","v":"Mexico"},"Colombia","Mexico","Philippines","South Africa","Zambia","Bangladesh","Other"]
[null,"Engineering and design",null,0.16,{"$f":"D246*E253+(1-G246)*D246*E253","v":91459200},null,{"$f":"HLOOKUP($G$245,$H$245:$N$250,O246,FALSE)","v":0.6},0.6,0.6,0.6,0.6,0.6,0.6,0.6,2]
[null,"Mechanical equipment (turbines, generators, pumps, condensers, heat exchangers)",null,null,{"$f":"E253*'Default-Data'!D260","v":83953380.463945076},null,{"$f":"HLOOKUP($G$245,$H$245:$N$250,O247,FALSE)","v":0},0,0,0,0,0,0,0,3]
[null,"Permitting and environmental assessment",null,null,{"$f":"300000*G248*I237*C225+300000*(1-G248)","v":149771.78765937407},null,1,1,1,1,1,1,1,1,4]
[null,"Additional civil works (i.e., roads)",0,0,0,null,1,1,1,1,1,1,1,1,5]
[null,"Plant cost subtotal",null,null,{"$f":"SUM(E246:E249)","v":175562352.25160447},null,null,null,null,null,null,null,null,null,6]
[]
[]
[null,"Plant cost (US - only used to calculate imported mechanical equipment)",2722,null,{"$f":"C253*'Geothermal-Inputs'!B5*1000","v":408300000}]
[null,"Source: NREL Geothermal JEDI"]
[null,"Binary"]
[null,"Nominal Power (MW)",{"$f":"'Geothermal-Inputs'!B5","v":150}]
[null,"Input Flow (kg/s)",80,{"$f":"(0.0179*C257 - 0.0745)*D258","v":0.22670250000000697}]
[null,"Input Temp (degree C)",{"$f":"'Geothermal-Inputs'!B7","v":200},{"$f":"0.000000012575*C258^4 - 0.000010923*C258^3 + 0.0035388*C258^2- 0.50752*C258 + 27.383","v":0.16700000000000514}]
[null,"Input Depth (meters)",{"$f":"'Geothermal-Inputs'!B6","v":3000},{"$f":"(-0.0001*C259+ 1.20699)*D257","v":0.2056169004750063}]
[null,"Model Scalar Output",null,{"$f":"D259","v":0.2056169004750063}]
[null,"Pump Work (MW)",null,{"$f":"D260*C256","v":30.842535071250946}]
[null,"Gross power (MW)",{"$f":"D261+C256+C3","v":180.84253507125095}]
[]
[]
[null,"O&M"]
[]
[null,null,null,null,{"$f":"C200","v":"Mexico"},"South Africa","Colombia","Mexico","Philippines","South Africa","Zambia","Bangladesh","Other"]
[null,"Plant operations, excluding equipment and field operations",{"$f":"C277","v":397029.33187676605},null,1,1,1,1,1,1,1,1,1,2]
[null,"Civil works maintenance",0,null,{"$f":"G249","v":1}]
[null,"Equipment",{"$f":"0.02*E250","v":3511247.0450320896},null,{"$f":"G247","v":0}]
[null,"Field operations, including well equipment",{"$f":"0.045*G238","v":302362.92469834833},null,{"$f":"SUMPRODUCT(G229:G237,I229:I237)/G238","v":0.95254265491455758}]
[]
[null,"Site Labor",null,null,{"$f":"'Geothermal-Inputs'!B4","v":"Mexico"},"South Africa","Colombia","Mexico","Philippines","South Africa","Zambia","Bangladesh","CustomRegion1","CustomRegion2","CustomRegion3"]
[null,"operators, mechanics, electricians, general",{"$f":"$C$262^0.525","v":15.313794252344984},null,{"$f":"HLOOKUP(E273,F273:O274,2,FALSE)","v":18657.291387928039},{"$f":"'SouthAfrica-IO-Data'!AT31","v":27577.931034482757},{"$f":"'Colombia-IO-Data'!AP31","v":10487.331818181818},{"$f":"'Mexico-IO-Data'!AS31","v":18657.291387928039},{"$f":"'Philippines-IO-Data'!AP31","v":3948.9654660753608},{"$f":"'SouthAfrica-IO-Data'!AT31","v":27577.931034482757},{"$f":"'Zambia-IO-Data'!BP30","v":590.37077558234773},null,{"$f":"CustomRegion1!E27","v":3948.9654660753608},{"$f":"CustomRegion2!E27","v":6971.9406878051132},{"$f":"CustomRegion3!F31","v":590.37077558234773}]
[null,"managers and administrators",{"$f":"0.225*C262^0.65","v":6.5982368251487058},null,{"$f":"HLOOKUP(E273,F273:O275,3,FALSE)","v":0.10804520095234711},{"$f":"'SouthAfrica-IO-Data'!AS33","v":0.28199640521059166},{"$f":"'Colombia-IO-Data'!U47","v":9.3212007112226755E-2},{"$f":"'Mexico-IO-Data'!AR31","v":0.10804520095234711},{"$f":"'Philippines-IO-Data'!AO31","v":0.12410677549101107},{"$f":"'SouthAfrica-IO-Data'!AS31","v":0.17767139585518055},{"$f":"'Zambia-IO-Data'!BN30","v":1.319548238454352E-2},null,{"$f":"CustomRegion1!D27","v":0.12410677549101107},{"$f":"CustomRegion2!D27","v":0.12146864301448963},{"$f":"CustomRegion3!E31","v":1.319548238454352E-2}]
[null,null,{"$f":"SUM(C274:C275)","v":21.91203107749369}]
[null,"staff payments - real",{"$f":"C276*E274*geo_dollar_index/F19","v":397029.33187676605}]

{"sheet":"Calculations","index":15,"n_rows":318,"n_cols":245,"rows_kept":318,"cut":false,"hidden":false,"merged":[]}
[null,null,null,1,2,3,4,5,6,7,8,9,10,11,12,13,14,15,16,17,18,19,20,21,22,23,24,25]
[null,null,null,null,null,null,null,null,null,null,null,null,null,null,null,null,null,null,null,null,null,null,null,null,null,null,null,null,null,1,null,"Colombia1","Colombia2","Colombia3","Colombia4","Colombia5","Colombia6","Colombia7","Colombia8","Colombia9","Colombia10","Colombia11","Colombia12","Colombia13","Colombia14","Colombia15","Colombia16","Colombia17","Colombia18","Colombia19","Colombia20","Colombia21","Colombia22","Colombia23","Colombia24","Colombia25",null,null,"Mexico1","Mexico2","Mexico3","Mexico4","Mexico5","Mexico6","Mexico7","Mexico8","Mexico9","Mexico10","Mexico11","Mexico12","Mexico13","Mexico14","Mexico15","Mexico16","Mexico17","Mexico18","Mexico19","Mexico20","Mexico21","Mexico22","Mexico23","Mexico24","Mexico25",null,null,"Philippines1","Philippines2","Philippines3","Philippines4","Philippines5","Philippines6","Philippines7","Philippines8","Philippines9","Philippines10","Philippines11","Philippines12","Philippines13","Philippines14","Philippines15","Philippines16","Philippines17","Philippines18","Philippines19","Philippines20","Philippines21","Philippines22","Philippines23","Philippines24","Philippines25",null,null,"South Africa1","South Africa2","South Africa3","South Africa4","South Africa5","South Africa6","South Africa7","South Africa8","South Africa9","South Africa10","South Africa11","South Africa12","South Africa13","South Africa14","South Africa15","South Africa16","South Africa17","South Africa18","South Africa19","South Africa20","South Africa21","South Africa22","South Africa23","South Africa24","South Africa25",null,null,"Zambia1","Zambia2","Zambia3","Zambia4","Zambia5","Zambia6","Zambia7","Zambia8","Zambia9","Zambia10","Zambia11","Zambia12","Zambia13","Zambia14","Zambia15","Zambia16","Zambia17","Zambia18","Zambia19","Zambia20","Zambia21","Zambia22","Zambia23","Zambia24","Zambia25",null,null,"CustomRegion11","Customregion12","CustomRegion13","CustomRegion14","CustomRegion15","CustomRegion16","CustomRegion17","CustomRegion18","CustomRegion19","CustomRegion110","CustomRegion111","CustomRegion112","CustomRegion113","CustomRegion114","CustomRegion115","CustomRegion116","CustomRegion117","CustomRegion118","CustomRegion119","CustomRegion120","CustomRegion121","CustomRegion122","CustomRegion123","CustomRegion124","CustomRegion125",null,null,"CustomRegion21","CustomRegion22","CustomRegion23","CustomRegion24","CustomRegion25","CustomRegion26","CustomRegion27","CustomRegion28","CustomRegion29","CustomRegion210","CustomRegion211","CustomRegion212","CustomRegion213","CustomRegion214","CustomRegion215","CustomRegion216","CustomRegion217","CustomRegion218","CustomRegion219","CustomRegion220","CustomRegion221","CustomRegion222","CustomRegion223","CustomRegion224","CustomRegion225",null,null,"CustomRegion31","CustomRegion32","CustomRegion33","CustomRegion34","CustomRegion35","CustomRegion36","CustomRegion37","CustomRegion38","CustomRegion39","CustomRegion310","CustomRegion311","CustomRegion312","CustomRegion313","CustomRegion314","CustomRegion315","CustomRegion316","CustomRegion317","CustomRegion318","CustomRegion319","CustomRegion320","CustomRegion321","CustomRegion322","CustomRegion323","CustomRegion324","CustomRegion325"]
[null,null,null,null,null,null,null,null,null,null,null,null,null,null,null,null,null,null,null,null,null,null,null,null,null,null,null,null,null,2,"Colombia",null,null,null,null,null,null,null,null,null,null,null,null,null,null,null,null,null,null,null,null,null,null,null,null,null,null,"Mexico",null,null,null,null,null,null,null,null,null,null,null,null,null,null,null,null,null,null,null,null,null,null,null,null,null,null,"Philippines",null,null,null,null,null,null,null,null,null,null,null,null,null,null,null,null,null,null,null,null,null,null,null,null,null,null,"South Africa",null,null,null,null,null,null,null,null,null,null,null,null,null,null,null,null,null,null,null,null,null,null,null,null,null,null,"Zambia",null,null,null,null,null,null,null,null,null,null,null,null,null,null,null,null,null,null,null,null,null,null,null,null,null,null,null,null,null,null,null,null,null,null,null,null,null,null,null,null,null,null,null,null,null,null,null,null,null,null,null,null,null,null,null,null,null,null,null,null,null,null,null,null,null,null,null,null,null,null,null,null,null,null,null,null,null,null,null,null,"CR3"]
[null,null,{"$f":"pv_country","v":"Mexico"},null,null,null,"Construction",null,null,null,null,null,null,null,null,null,null,"O&M",null,null,null,null,null,null,null,null,null,null,null,3,null,null,null,null,"Construction",null,null,null,null,null,null,null,null,null,null,"O&M",null,null,null,null,null,null,null,null,null,null,null,null,null,null,null,"Construction",null,null,null,null,null,null,null,null,null,null,"O&M",null,null,null,null,null,null,null,null,null,null,null,null,null,null,null,"Construction",null,null,null,null,null,null,null,null,null,null,"O&M",null,null,null,null,null,null,null,null,null,null,null,null,null,null,null,"Construction",null,null,null,null,null,null,null,null,null,null,"O&M",null,null,null,null,null,null,null,null,null,null,null,null,null,null,null,"Construction",null,null,null,null,null,null,null,null,null,null,"O&M",null,null,null,null,null,null,null,null,null,null,null,null,null,null,null,"Construction",null,null,null,null,null,null,null,null,null,null,"O&M",null,null,null,null,null,null,null,null,null,null,null,null,null,null,null,"Construction",null,null,null,null,null,null,null,null,null,null,"O&M",null,null,null,null,null,null,null,null,null,null,null,null,null,null,null,"Construction",null,null,null,null,null,null,null,null,null,null,"O&M"]
[null,null,"PV",null,null,null,"Output",null,"Value Added",null,null,"Earnings",null,null,"Jobs",null,null,"Output",null,"Value Added",null,null,"Earnings",null,null,"Jobs",null,null,null,4,"Photovoltaics",null,null,null,"Output",null,"Value Added",null,null,"Earnings",null,null,"Jobs",null,null,"Output",null,"Value Added",null,null,"Earnings",null,null,"Jobs",null,null,null,"Photovoltaics",null,null,null,"Output",null,"Value Added",null,null,"Earnings",null,null,"Jobs",null,null,"Output",null,"Value Added",null,null,"Earnings",null,null,"Jobs",null,null,null,"Photovoltaics",null,null,null,"Output",null,"Value Added",null,null,"Earnings",null,null,"Jobs",null,null,"Output",null,"Value Added",null,null,"Earnings",null,null,"Jobs",null,null,null,"Photovoltaics",null,null,null,"Output",null,"Value Added",null,null,"Earnings",null,null,"Jobs",null,null,"Output",null,"Value Added",null,null,"Earnings",null,null,"Jobs",null,null,null,"Photovoltaics",null,null,null,"Output",null,"Value Added",null,null,"Earnings",null,null,"Jobs",null,null,"Output",null,"Value Added",null,null,"Earnings",null,null,"Jobs",null,null,null,"Photovoltaics",null,null,null,"Output",null,"Value Added",null,null,"Earnings",null,null,"Jobs",null,null,"Output",null,"Value Added",null,null,"Earnings",null,null,"Jobs",null,null,null,"Photovoltaics",null,null,null,"Output",null,"Value Added",null,null,"Earnings",null,null,"Jobs",null,null,"Output",null,"Value Added",null,null,"Earnings",null,null,"Jobs",null,null,null,"Photovoltaics",null,null,null,"Output",null,"Value Added",null,null,"Earnings",null,null,"Jobs",null,null,"Output",null,"Value Added",null,null,"Earnings",null,null,"Jobs"]
[null,null,null,"Construction","O&M",null,"Indirect","Induced","Direct","Indirect","Induced","Direct","Indirect","Induced","Direct","Indirect","Induced","Indirect","Induced","Direct","Indirect","Induced","Direct","Indirect","Induced","Direct","Indirect","Induced",null,5,"Colombia","Construction","O&M",null,"Indirect","Induced","Direct","Indirect","Induced","Direct","Indirect","Induced","Direct","Indirect","Induced","Indirect","Induced","Direct","Indirect","Induced","Direct","Indirect","Induced","Direct","Indirect","Induced",null,"Mexico","Construction","O&M",null,"Indirect","Induced","Direct","Indirect","Induced","Direct","Indirect","Induced","Direct","Indirect","Induced","Indirect","Induced","Direct","Indirect","Induced","Direct","Indirect","Induced","Direct","Indirect","Induced",null,null,"Construction","O&M",null,"Indirect","Induced","Direct","Indirect","Induced","Direct","Indirect","Induced","Direct","Indirect","Induced","Indirect","Induced","Direct","Indirect","Induced","Direct","Indirect","Induced","Direct","Indirect","Induced",null,null,"Construction","O&M",null,"Indirect","Induced","Direct","Indirect","Induced","Direct","Indirect","Induced","Direct","Indirect","Induced","Indirect","Induced","Direct","Indirect","Induced","Direct","Indirect","Induced","Direct","Indirect","Induced",null,null,"Construction","O&M",null,"Indirect","Induced","Direct","Indirect","Induced","Direct","Indirect","Induced","Direct","Indirect","Induced","Indirect","Induced","Direct","Indirect","Induced","Direct","Indirect","Induced","Direct","Indirect","Induced",null,"CR1","Construction","O&M",null,"Indirect","Induced","Direct","Indirect","Induced","Direct","Indirect","Induced","Direct","Indirect","Induced","Indirect","Induced","Direct","Indirect","Induced","Direct","Indirect","Induced","Direct","Indirect","Induced",null,"CR2","Construction","O&M",null,"Indirect","Induced","Direct","Indirect","Induced","Direct","Indirect","Induced","Direct","Indirect","Induced","Indirect","Induced","Direct","Indirect","Induced","Direct","Indirect","Induced","Direct","Indirect","Induced",null,null,"Construction","O&M",null,"Indirect","Induced","Direct","Indirect","Induced","Direct","Indirect","Induced","Direct","Indirect","Induced","Indirect","Induced","Direct","Indirect","Induced","Direct","Indirect","Induced","Direct","Indirect","Induced"]
[null,49,"Agriculture",{"$f":"HLOOKUP(pv_country&D$1,$AF$2:$IK$255,$B7,FALSE)","v":0},0,null,{"$f":"HLOOKUP(pv_country&G$1,$AF$2:$IK$255,$B7,FALSE)","v":359357.0479434075},2446873.0159566421,0,219163.04380619823,1492287.7985928976,0,36103.767803687711,245831.64771300071,0,37.187727467275664,{"$f":"HLOOKUP(pv_country&Q$1,$AF$2:$IK$255,$B7,FALSE)","v":253.21236187012636},2633.1678391150249,15280.514292034228,0,1605.9044389854869,9319.2106355841752,0,264.54825582415856,1535.1977735731398,0,0.27249090712706892,1.5812897070032383,null,6,"TTL_C01T05: Agriculture, hunting, forestry and fishing",0,0,null,{"$f":"MMULT(L1_Colombia,AF7:AF40)-AF7:AF40","v":696534.06308893429},{"$f":"MMULT(l2_colombia,AF7:AF41)-AI7:AI41-AF7:AF41","v":3236582.4087011679},{"$f":"AF7*'Colombia-IO-Data'!AN13","v":0},{"$f":"AI7*'Colombia-IO-Data'!$AN13","v":482211.17819126049},{"$f":"AJ7*'Colombia-IO-Data'!$AN13","v":2240689.0047725118},{"$f":"AK7*'Colombia-IO-Data'!$AO13","v":0},{"$f":"AL7*'Colombia-IO-Data'!$AO13","v":127307.45334414033},{"$f":"AM7*'Colombia-IO-Data'!$AO13","v":591559.10073213372},{"$f":"(AN7*'Default-Data'!$F$19/pv_dollar_index)/'Colombia-IO-Data'!$AP13","v":0},{"$f":"(AO7*'Default-Data'!$F$19/pv_dollar_index)/'Colombia-IO-Data'!$AP13","v":28.164838520833687},{"$f":"(AP7*'Default-Data'!$F$19/pv_dollar_index)/'Colombia-IO-Data'!$AP13","v":130.87345720922795},{"$f":"MMULT(L1_Colombia,AG7:AG40)-AG7:AG40","v":5490.7791993092333},{"$f":"MMULT(l2_colombia,AG7:AG41)-AT7:AT41-AG7:AG41","v":16508.785980787528},{"$f":"'Colombia-IO-Data'!$AN13*Calculations!AG7","v":0},{"$f":"'Colombia-IO-Data'!$AN13*Calculations!AT7","v":3801.2715345823767},{"$f":"'Colombia-IO-Data'!$AN13*Calculations!AU7","v":11429.047853021488},{"$f":"AV7*'Colombia-IO-Data'!$AO13","v":0},{"$f":"AW7*'Colombia-IO-Data'!$AO13","v":1003.5648703799071},{"$f":"AX7*'Colombia-IO-Data'!$AO13","v":3017.3563826829813},{"$f":"(AY7*'Default-Data'!$F$19/pv_dollar_index)/'Colombia-IO-Data'!$AP13","v":0},{"$f":"(AZ7*'Default-Data'!$F$19/pv_dollar_index)/'Colombia-IO-Data'!$AP13","v":0.22202346977300885},{"$f":"(BA7*'Default-Data'!$F$19/pv_dollar_index)/'Colombia-IO-Data'!$AP13","v":0.66754422499006505},null,"DOM_C01T05: Agriculture, hunting, forestry and fishing",{"$f":"AF7","v":0},{"$f":"AG7","v":0},null,{"$f":"MMULT(Mexico_L1,BG7:BG40)-BG7:BG40","v":359357.0479434075},{"$f":"MMULT(Mexico_L2,BG7:BG41)-BG7:BG41-BJ7:BJ41","v":2446873.0159566421},{"$f":"BG7*'Mexico-IO-Data'!AQ13","v":0},{"$f":"BJ7*'Mexico-IO-Data'!$AQ13","v":219163.04380619823},{"$f":"BK7*'Mexico-IO-Data'!$AQ13","v":1492287.7985928976},{"$f":"BG7*'Mexico-IO-Data'!AR13","v":0},{"$f":"BJ7*'Mexico-IO-Data'!$AR13","v":36103.767803687711},{"$f":"BK7*'Mexico-IO-Data'!$AR13","v":245831.64771300071},{"$f":"(Calculations!BO7*'Default-Data'!$F$19/pv_dollar_index)/'Mexico-IO-Data'!$AS13","v":0},{"$f":"(Calculations!BP7*'Default-Data'!$F$19/pv_dollar_index)/'Mexico-IO-Data'!$AS13","v":37.187727467275664},{"$f":"(Calculations!BQ7*'Default-Data'!$F$19/pv_dollar_index)/'Mexico-IO-Data'!$AS13","v":253.21236187012636},{"$f":"MMULT(Mexico_L1,BH7:BH40)-BH7:BH40","v":2633.1678391150249},{"$f":"MMULT(Mexico_L2,BH7:BH41)-BH7:BH41-BU7:BU41","v":15280.514292034228},{"$f":"BH7*'Mexico-IO-Data'!AQ13","v":0},{"$f":"BU7*'Mexico-IO-Data'!$AQ13","v":1605.9044389854869},{"$f":"BV7*'Mexico-IO-Data'!$AQ13","v":9319.2106355841752},{"$f":"BH7*'Mexico-IO-Data'!AR13","v":0},{"$f":"BU7*'Mexico-IO-Data'!$AR13","v":264.54825582415856},{"$f":"BV7*'Mexico-IO-Data'!$AR13","v":1535.1977735731398},{"$f":"(BZ7*'Default-Data'!$F$19/pv_dollar_index)/'Mexico-IO-Data'!$AS13","v":0},{"$f":"(CA7*'Default-Data'!$F$19/pv_dollar_index)/'Mexico-IO-Data'!$AS13","v":0.27249090712706892},{"$f":"(CB7*'Default-Data'!$F$19/pv_dollar_index)/'Mexico-IO-Data'!$AS13","v":1.5812897070032383},null,"TTL_C01T05: Agriculture, hunting, forestry and fishing",0,0,null,{"$f":"MMULT(Philippines_L1,CH7:CH40)-CH7:CH40","v":566390.5307852166},{"$f":"MMULT(Philippines_L2,CH7:CH41)-CK7:CK41-CH7:CH41","v":6197425.2141028112},{"$f":"CH7*'Philippines-IO-Data'!AN13","v":0},{"$f":"'Philippines-IO-Data'!$AN13*Calculations!CK7","v":399733.96517276019},{"$f":"'Philippines-IO-Data'!$AN13*Calculations!CL7","v":4373874.9503112631},{"$f":"CH7*'Philippines-IO-Data'!AO13","v":0},{"$f":"'Philippines-IO-Data'!$AO13*Calculations!CK7","v":115061.7206111196},{"$f":"'Philippines-IO-Data'!$AO13*Calculations!CL7","v":1259001.2892779422},{"$f":"(CP7*'Default-Data'!$F$19/pv_dollar_index)/'Philippines-IO-Data'!$AP13","v":0},{"$f":"(CQ7*'Default-Data'!$F$19/pv_dollar_index)/'Philippines-IO-Data'!$AP13","v":71.878850902327756},{"$f":"(CR7*'Default-Data'!$F$19/pv_dollar_index)/'Philippines-IO-Data'!$AP13","v":786.49585176724781},{"$f":"MMULT(Philippines_L1,CI7:CI40)-CI7:CI40","v":3762.0755214468081},{"$f":"MMULT(Philippines_L2,CI7:CI41)-CV7:CV41-CI7:CI41","v":36301.801512947364},{"$f":"CI7*'Philippines-IO-Data'!AN13","v":0},{"$f":"'Philippines-IO-Data'!$AN13*Calculations!CV7","v":2655.1103588940223},{"$f":"'Philippines-IO-Data'!$AN13*Calculations!CW7","v":25620.243053088328},{"$f":"'Philippines-IO-Data'!AO13*Calculations!CI7","v":0},{"$f":"'Philippines-IO-Data'!$AO13*Calculations!CV7","v":764.2622166838371},{"$f":"'Philippines-IO-Data'!$AO13*Calculations!CW7","v":7374.6779233267707},{"$f":"(DA7*'Default-Data'!$F$19/pv_dollar_index)/'Philippines-IO-Data'!$AP13","v":0},{"$f":"(DB7*'Default-Data'!$F$19/pv_dollar_index)/'Philippines-IO-Data'!$AP13","v":0.4774332387133724},{"$f":"(DC7*'Default-Data'!$F$19/pv_dollar_index)/'Philippines-IO-Data'!$AP13","v":4.6069480978391137},null,"DOM_C01T05: Agriculture, hunting, forestry and fishing",{"$f":"AF7","v":0},{"$f":"AG7","v":0},null,{"$f":"MMULT(SouthAfrica_L1,DI7:DI40)-DI7:DI40","v":681618.7195038764},{"$f":"MMULT(SouthAfrica_L2,DI7:DI41)-DI7:DI41-DL7:DL41","v":3877713.8132426352},{"$f":"DI7*'SouthAfrica-IO-Data'!AR13","v":0},{"$f":"DL7*'SouthAfrica-IO-Data'!$AR13","v":275270.95180812536},{"$f":"DM7*'SouthAfrica-IO-Data'!$AR13","v":1566010.3539816954},{"$f":"DI7*'SouthAfrica-IO-Data'!AS13","v":0},{"$f":"DL7*'SouthAfrica-IO-Data'!$AS13","v":84441.806457318497},{"$f":"DM7*'SouthAfrica-IO-Data'!$AS13","v":480387.56851196324},{"$f":"(DQ7*'Default-Data'!$F$19/pv_dollar_index)/'SouthAfrica-IO-Data'!$AT13","v":0},{"$f":"(DR7*'Default-Data'!$F$19/pv_dollar_index)/'SouthAfrica-IO-Data'!$AT13","v":6.3539051768306978},{"$f":"(DS7*'Default-Data'!$F$19/pv_dollar_index)/'SouthAfrica-IO-Data'!$AT13","v":36.147225959644679},{"$f":"MMULT(SouthAfrica_L1,DJ7:DJ40)-DJ7:DJ40","v":4770.2359319574725},{"$f":"MMULT(SouthAfrica_L2,DJ7:DJ41)-DJ7:DJ41-DW7:DW41","v":21972.189863234362},{"$f":"DJ7*'SouthAfrica-IO-Data'!AR13","v":0},{"$f":"DW7*'SouthAfrica-IO-Data'!$AR13","v":1926.4544059104082},{"$f":"DX7*'SouthAfrica-IO-Data'!$AR13","v":8873.4441175026586},{"$f":"DJ7*'SouthAfrica-IO-Data'!AS13","v":0},{"$f":"DW7*'SouthAfrica-IO-Data'!$AS13","v":590.95697902089148},{"$f":"DX7*'SouthAfrica-IO-Data'!$AS13","v":2722.0077013511946},{"$f":"(EB7*'Default-Data'!$F$19/pv_dollar_index)/'SouthAfrica-IO-Data'!$AT13","v":0},{"$f":"(EC7*'Default-Data'!$F$19/pv_dollar_index)/'SouthAfrica-IO-Data'!$AT13","v":4.446712790521596E-2},{"$f":"(ED7*'Default-Data'!$F$19/pv_dollar_index)/'SouthAfrica-IO-Data'!$AT13","v":0.20482009505244791},null,"MAIZE",0,0,null,{"$f":"MMULT(Zambia_L1,EJ7:EJ33)-EJ7:EJ33","v":1137.6119551136976},{"$f":"MMULT(Zambia_L2,EJ7:EJ48)-EM7:EM48-EJ7:EJ48","v":898139.73936086602},{"$f":"EJ7*'Zambia-IO-Data'!BO11","v":0},{"$f":"EM7*'Zambia-IO-Data'!$BO11","v":449.17299430659392},{"$f":"EN7*'Zambia-IO-Data'!$BO11","v":354620.14461174025},{"$f":"EJ7*'Zambia-IO-Data'!$BN11","v":0},{"$f":"EM7*'Zambia-IO-Data'!$BN11","v":356.89467033295557},{"$f":"EN7*'Zambia-IO-Data'!$BN11","v":281766.80523728032},{"$f":"(ER7*'Default-Data'!$F$19/pv_dollar_index)/'Zambia-IO-Data'!$BP11","v":0},{"$f":"(ES7*'Default-Data'!$F$19/pv_dollar_index)/'Zambia-IO-Data'!$BP11","v":3.7423170427310031},{"$f":"(ET7*'Default-Data'!$F$19/pv_dollar_index)/'Zambia-IO-Data'!$BP11","v":2954.5431886993706},{"$f":"MMULT(Zambia_L1,EK7:EK33)-EK7:EK33","v":7.6669124767142591},{"$f":"MMULT(Zambia_L2,EK7:EK48)-EX7:EX48-EK7:EK48","v":5322.8566743639312},{"$f":"EK7*'Zambia-IO-Data'!BO11","v":0},{"$f":"EX7*'Zambia-IO-Data'!$BO11","v":3.0271921974555402},{"$f":"EY7*'Zambia-IO-Data'!$BO11","v":2101.6687280241626},{"$f":"EK7*'Zambia-IO-Data'!BN11","v":0},{"$f":"EX7*'Zambia-IO-Data'!$BN11","v":2.4052843226098872},{"$f":"EY7*'Zambia-IO-Data'!$BN11","v":1669.9008563397383},{"$f":"(FC7*'Default-Data'!$F$19/pv_dollar_index)/'Zambia-IO-Data'!$BP11","v":0},{"$f":"(FD7*'Default-Data'!$F$19/pv_dollar_index)/'Zambia-IO-Data'!$BP11","v":2.5221269078406567E-2},{"$f":"(FE7*'Default-Data'!$F$19/pv_dollar_index)/'Zambia-IO-Data'!$BP11","v":17.510203860767042},null,"TTL_C01T05: Agriculture, hunting, forestry and fishing",{"$f":"CH7","v":0},{"$f":"CI7","v":0},null,{"$f":"MMULT(CustomRegion1_L1,FK7:FK40)-FK7:FK40","v":1269983.7885813266},{"$f":"MMULT(CustomRegion1_L2,FK7:FK41)-FN7:FN41-FK7:FK41","v":8245490.6156780161},{"$f":"FK7*CustomRegion1!C9","v":0},{"$f":"FN7*CustomRegion1!$C9","v":896299.68709213531},{"$f":"FO7*CustomRegion1!$C9","v":5819311.022079302},{"$f":"FK7*CustomRegion1!D9","v":0},{"$f":"FN7*CustomRegion1!$D9","v":257996.05028673942},{"$f":"FO7*CustomRegion1!$D9","v":1675063.9107745399},{"$f":"(FS7*'Default-Data'!$C$58/pv_dollar_index)/CustomRegion1!$E9","v":0},{"$f":"(FT7*'Default-Data'!$C$58/pv_dollar_index)/CustomRegion1!$E9","v":161.1696707945618},{"$f":"(FU7*'Default-Data'!$C$58/pv_dollar_index)/CustomRegion1!$E9","v":1046.4094266533812},{"$f":"MMULT(CustomRegion1_L1,FL7:FL40)-FL7:FL40","v":8669.2696022030341},{"$f":"MMULT(CustomRegion1_L2,FL7:FL41)-FY7:FY41-FL7:FL41","v":48555.55060110044},{"$f":"FL7*CustomRegion1!C9","v":0},{"$f":"FY7*CustomRegion1!$C9","v":6118.3959209841141},{"$f":"FZ7*CustomRegion1!$C9","v":34268.409724322817},{"$f":"FL7*CustomRegion1!D9","v":0},{"$f":"FY7*CustomRegion1!$D9","v":1761.1542260218755},{"$f":"FZ7*CustomRegion1!$D9","v":9864.0158931285623},{"$f":"(GD7*'Default-Data'!$C$58/pv_dollar_index)/CustomRegion1!$E9","v":0},{"$f":"(GE7*'Default-Data'!$C$58/pv_dollar_index)/CustomRegion1!$E9","v":1.1001898924845135},{"$f":"(GF7*'Default-Data'!$C$58/pv_dollar_index)/CustomRegion1!$E9","v":6.1620330715953138},null,"C01T05 Agriculture, hunting, forestry and fishing",{"$f":"BG7","v":0},{"$f":"BH7","v":0},null,{"$f":"MMULT(CustomRegion2_L1,GL7:GL43)-GL7:GL43","v":1841983.3756517586},{"$f":"MMULT(CustomRegion2_L2,GL7:GL45)-GO7:GO45-GL7:GL45","v":4298815.4846732765},{"$f":"GL7*CustomRegion2!$C$13","v":0},{"$f":"GO7*CustomRegion2!C$13","v":1134996.0056292389},{"$f":"GP7*CustomRegion2!D$13","v":475692.52106001705},{"$f":"GL7*CustomRegion2!D13","v":0},{"$f":"GO7*CustomRegion2!$D13","v":203827.70994438734},{"$f":"GP7*CustomRegion2!$D13","v":475692.52106001705},{"$f":"(GT7*'Default-Data'!$C$59/pv_dollar_index)/CustomRegion2!$E13","v":0},{"$f":"(GU7*'Default-Data'!$C$59/pv_dollar_index)/CustomRegion2!$E13","v":209.94732098062531},{"$f":"(GV7*'Default-Data'!$C$59/pv_dollar_index)/CustomRegion2!$E13","v":489.9744516303453},{"$f":"MMULT(CustomRegion2_L1,GM7:GM43)-GM7:GM43","v":17037.532155341305},{"$f":"MMULT(CustomRegion2_L2,GM7:GM45)-GM7:GM45-GZ7:GZ45","v":36847.131205787751},{"$f":"GM7*CustomRegion2!C13","v":0},{"$f":"GZ7*CustomRegion2!$C13","v":10498.211437575976},{"$f":"HA7*CustomRegion2!$C13","v":22704.519101681744},{"$f":"GM7*CustomRegion2!D13","v":0},{"$f":"GZ7*CustomRegion2!$D13","v":1885.3162347886603},{"$f":"HA7*CustomRegion2!$D13","v":4077.3801061253453},{"$f":"(HE7*'Default-Data'!$C$59/pv_dollar_index)/CustomRegion2!$E13","v":0},{"$f":"(HF7*'Default-Data'!$C$59/pv_dollar_index)/CustomRegion2!$E13","v":1.9419199322955358},{"$f":"(HG7*'Default-Data'!$C$59/pv_dollar_index)/CustomRegion2!$E13","v":4.199797123434668},null,"MAIZE",{"$f":"EJ7","v":0},{"$f":"EK7","v":0},null,{"$f":"MMULT(CustomRegion3_L1,HM7:HM33)-HM7:HM33","v":1137.6119551136976},{"$f":"MMULT(CustomRegion3_L2,HM7:HM48)-HM7:HM48-HP7:HP48","v":898139.73936086602},{"$f":"HM7*CustomRegion3!D12","v":0},{"$f":"HP7*CustomRegion3!$D12","v":449.17299430659392},{"$f":"HQ7*CustomRegion3!$D12","v":354620.14461174025},{"$f":"HM7*CustomRegion3!E12","v":0},{"$f":"HP7*CustomRegion3!$E12","v":356.89467033295557},{"$f":"HQ7*CustomRegion3!$E12","v":281766.80523728032},{"$f":"(HU7*'Default-Data'!$C$60/pv_dollar_index)/CustomRegion3!$F12","v":0},{"$f":"(HV7*'Default-Data'!$C$60/pv_dollar_index)/CustomRegion3!$F12","v":3.7423170427310031},{"$f":"(HW7*'Default-Data'!$C$60/pv_dollar_index)/CustomRegion3!$F12","v":2954.5431886993706},{"$f":"MMULT(CustomRegion3_L1,HN7:HN33)-HN7:HN33","v":7.6669124767142591},{"$f":"MMULT(CustomRegion3_L2,HN7:HN48)-HN7:HN48-IA7:IA48","v":5322.8566743639312},{"$f":"HN7*CustomRegion3!D12","v":0},{"$f":"IA7*CustomRegion3!$D12","v":3.0271921974555402},{"$f":"IB7*CustomRegion3!$D12","v":2101.6687280241626},{"$f":"HN7*CustomRegion3!E12","v":0},{"$f":"IA7*CustomRegion3!$E12","v":2.4052843226098872},{"$f":"IB7*CustomRegion3!$E12","v":1669.9008563397383},{"$f":"(IF7*'Default-Data'!$C$60/pv_dollar_index)/CustomRegion3!$F12","v":0},{"$f":"(IG7*'Default-Data'!$C$60/pv_dollar_index)/CustomRegion3!$F12","v":2.5221269078406567E-2},{"$f":"(IH7*'Default-Data'!$C$60/pv_dollar_index)/CustomRegion3!$F12","v":17.510203860767042}]
[null,50,"Mining and Extraction",0,0,null,10890315.574278753,1351404.0546838343,0,9375770.4901016355,1163460.7068718972,0,581878.02771729068,72206.569279390053,0,32.814312643490965,4.072002767561087,45996.765009903429,8439.4036132013352,0,39599.872848363564,7265.7133589033365,0,2457.6429142743978,450.92389619618507,0,0.13859582096858736,2.5429311648440152E-2,null,7,"TTL_C10T14: Mining and quarrying",0,0,null,10976225.064841257,817586.20601843484,{"$f":"AF8*'Colombia-IO-Data'!AN14","v":0},{"$f":"AI8*'Colombia-IO-Data'!$AN14","v":8988246.8877991047},{"$f":"AJ8*'Colombia-IO-Data'!$AN14","v":669507.6520699017},{"$f":"AK8*'Colombia-IO-Data'!$AO14","v":0},{"$f":"AL8*'Colombia-IO-Data'!$AO14","v":745509.50932581117},{"$f":"AM8*'Colombia-IO-Data'!$AO14","v":55530.775624558497},{"$f":"(AN8*'Default-Data'!$F$19/pv_dollar_index)/'Colombia-IO-Data'!$AP14","v":0},{"$f":"(AO8*'Default-Data'!$F$19/pv_dollar_index)/'Colombia-IO-Data'!$AP14","v":76.979133018667838},{"$f":"(AP8*'Default-Data'!$F$19/pv_dollar_index)/'Colombia-IO-Data'!$AP14","v":5.7339455901755674},60492.109189516297,4170.2493530572319,{"$f":"'Colombia-IO-Data'!$AN14*Calculations!AG8","v":0},{"$f":"'Colombia-IO-Data'!$AN14*Calculations!AT8","v":49535.975159683643},{"$f":"'Colombia-IO-Data'!$AN14*Calculations!AU8","v":3414.9473564484524},{"$f":"AV8*'Colombia-IO-Data'!$AO14","v":0},{"$f":"AW8*'Colombia-IO-Data'!$AO14","v":4108.6477703900755},{"$f":"AX8*'Colombia-IO-Data'!$AO14","v":283.24497088917349},{"$f":"(AY8*'Default-Data'!$F$19/pv_dollar_index)/'Colombia-IO-Data'!$AP14","v":0},{"$f":"(AZ8*'Default-Data'!$F$19/pv_dollar_index)/'Colombia-IO-Data'!$AP14","v":0.4242469603502888},{"$f":"(BA8*'Default-Data'!$F$19/pv_dollar_index)/'Colombia-IO-Data'!$AP14","v":2.9247047848744968E-2},null,"DOM_C10T14: Mining and quarrying",{"$f":"AF8","v":0},{"$f":"AG8","v":0},null,10890315.574278753,1351404.0546838343,{"$f":"BG8*'Mexico-IO-Data'!AQ14","v":0},{"$f":"BJ8*'Mexico-IO-Data'!$AQ14","v":9375770.4901016355},{"$f":"BK8*'Mexico-IO-Data'!$AQ14","v":1163460.7068718972},{"$f":"BG8*'Mexico-IO-Data'!AR14","v":0},{"$f":"BJ8*'Mexico-IO-Data'!$AR14","v":581878.02771729068},{"$f":"BK8*'Mexico-IO-Data'!$AR14","v":72206.569279390053},{"$f":"(Calculations!BO8*'Default-Data'!$F$19/pv_dollar_index)/'Mexico-IO-Data'!$AS14","v":0},{"$f":"(Calculations!BP8*'Default-Data'!$F$19/pv_dollar_index)/'Mexico-IO-Data'!$AS14","v":32.814312643490965},{"$f":"(Calculations!BQ8*'Default-Data'!$F$19/pv_dollar_index)/'Mexico-IO-Data'!$AS14","v":4.072002767561087},45996.765009903429,8439.4036132013352,{"$f":"BH8*'Mexico-IO-Data'!AQ14","v":0},{"$f":"BU8*'Mexico-IO-Data'!$AQ14","v":39599.872848363564},{"$f":"BV8*'Mexico-IO-Data'!$AQ14","v":7265.7133589033365},{"$f":"BH8*'Mexico-IO-Data'!AR14","v":0},{"$f":"BU8*'Mexico-IO-Data'!$AR14","v":2457.6429142743978},{"$f":"BV8*'Mexico-IO-Data'!$AR14","v":450.92389619618507},{"$f":"(BZ8*'Default-Data'!$F$19/pv_dollar_index)/'Mexico-IO-Data'!$AS14","v":0},{"$f":"(CA8*'Default-Data'!$F$19/pv_dollar_index)/'Mexico-IO-Data'!$AS14","v":0.13859582096858736},{"$f":"(CB8*'Default-Data'!$F$19/pv_dollar_index)/'Mexico-IO-Data'!$AS14","v":2.5429311648440152E-2},null,"TTL_C10T14: Mining and quarrying",0,0,null,2846294.2355272085,346308.19826237205,{"$f":"CH8*'Philippines-IO-Data'!AN14","v":0},{"$f":"'Philippines-IO-Data'!$AN14*Calculations!CK8","v":1638572.6106823238},{"$f":"'Philippines-IO-Data'!$AN14*Calculations!CL8","v":199364.88696234877},{"$f":"CH8*'Philippines-IO-Data'!AO14","v":0},{"$f":"'Philippines-IO-Data'!$AO14*Calculations!CK8","v":428326.89702585962},{"$f":"'Philippines-IO-Data'!$AO14*Calculations!CL8","v":52114.470150294503},{"$f":"(CP8*'Default-Data'!$F$19/pv_dollar_index)/'Philippines-IO-Data'!$AP14","v":0},{"$f":"(CQ8*'Default-Data'!$F$19/pv_dollar_index)/'Philippines-IO-Data'!$AP14","v":144.2852408828781},{"$f":"(CR8*'Default-Data'!$F$19/pv_dollar_index)/'Philippines-IO-Data'!$AP14","v":17.555163897785373},17198.419163057031,2028.5216910757154,{"$f":"CI8*'Philippines-IO-Data'!AN14","v":0},{"$f":"'Philippines-IO-Data'!$AN14*Calculations!CV8","v":9900.8943755245436},{"$f":"'Philippines-IO-Data'!$AN14*Calculations!CW8","v":1167.7921564409125},{"$f":"'Philippines-IO-Data'!AO14*Calculations!CI8","v":0},{"$f":"'Philippines-IO-Data'!$AO14*Calculations!CV8","v":2588.1180595855799},{"$f":"'Philippines-IO-Data'!$AO14*Calculations!CW8","v":305.26373227438762},{"$f":"(DA8*'Default-Data'!$F$19/pv_dollar_index)/'Philippines-IO-Data'!$AP14","v":0},{"$f":"(DB8*'Default-Data'!$F$19/pv_dollar_index)/'Philippines-IO-Data'!$AP14","v":0.8718276630619517},{"$f":"(DC8*'Default-Data'!$F$19/pv_dollar_index)/'Philippines-IO-Data'!$AP14","v":0.10283045834816502},null,"DOM_C10T14: Mining and quarrying",{"$f":"AF8","v":0},{"$f":"AG8","v":0},null,11414002.249409132,2049512.3172795754,{"$f":"DI8*'SouthAfrica-IO-Data'!AR14","v":0},{"$f":"DL8*'SouthAfrica-IO-Data'!$AR14","v":6798117.6541024959},{"$f":"DM8*'SouthAfrica-IO-Data'!$AR14","v":1220678.3879966431},{"$f":"DI8*'SouthAfrica-IO-Data'!AS14","v":0},{"$f":"DL8*'SouthAfrica-IO-Data'!$AS14","v":2303285.6798037533},{"$f":"DM8*'SouthAfrica-IO-Data'!$AS14","v":413580.81659882487},{"$f":"(DQ8*'Default-Data'!$F$19/pv_dollar_index)/'SouthAfrica-IO-Data'!$AT14","v":0},{"$f":"(DR8*'Default-Data'!$F$19/pv_dollar_index)/'SouthAfrica-IO-Data'!$AT14","v":158.02438533597223},{"$f":"(DS8*'Default-Data'!$F$19/pv_dollar_index)/'SouthAfrica-IO-Data'!$AT14","v":28.375053473760698},53414.099563680677,11613.098833780947,{"$f":"DJ8*'SouthAfrica-IO-Data'!AR14","v":0},{"$f":"DW8*'SouthAfrica-IO-Data'!$AR14","v":31813.147157969361},{"$f":"DX8*'SouthAfrica-IO-Data'!$AR14","v":6916.6984967827757},{"$f":"DJ8*'SouthAfrica-IO-Data'!AS14","v":0},{"$f":"DW8*'SouthAfrica-IO-Data'!$AS14","v":10778.68463106413},{"$f":"DX8*'SouthAfrica-IO-Data'!$AS14","v":2343.4623243900273},{"$f":"(EB8*'Default-Data'!$F$19/pv_dollar_index)/'SouthAfrica-IO-Data'!$AT14","v":0},{"$f":"(EC8*'Default-Data'!$F$19/pv_dollar_index)/'SouthAfrica-IO-Data'!$AT14","v":0.73950662242615306},{"$f":"(ED8*'Default-Data'!$F$19/pv_dollar_index)/'SouthAfrica-IO-Data'!$AT14","v":0.16078083436063195},null,"DRSTAP",0,0,null,1255.6999487061455,537203.56847301766,{"$f":"EJ8*'Zambia-IO-Data'!BO12","v":0},{"$f":"EM8*'Zambia-IO-Data'!$BO12","v":669.0485052934165},{"$f":"EN8*'Zambia-IO-Data'!$BO12","v":286227.01218989305},{"$f":"EJ8*'Zambia-IO-Data'!$BN12","v":0},{"$f":"EM8*'Zambia-IO-Data'!$BN12","v":606.63555025913013},{"$f":"EN8*'Zambia-IO-Data'!$BN12","v":259525.99798828235},{"$f":"(ER8*'Default-Data'!$F$19/pv_dollar_index)/'Zambia-IO-Data'!$BP12","v":0},{"$f":"(ES8*'Default-Data'!$F$19/pv_dollar_index)/'Zambia-IO-Data'!$BP12","v":6.3610435996236578},{"$f":"(ET8*'Default-Data'!$F$19/pv_dollar_index)/'Zambia-IO-Data'!$BP12","v":2721.3310986046349},8.4562645375509593,3185.5790085814656,{"$f":"EK8*'Zambia-IO-Data'!BO12","v":0},{"$f":"EX8*'Zambia-IO-Data'!$BO12","v":4.5055756791610548},{"$f":"EY8*'Zambia-IO-Data'!$BO12","v":1697.3058543018817},{"$f":"EK8*'Zambia-IO-Data'!BN12","v":0},{"$f":"EX8*'Zambia-IO-Data'!$BN12","v":4.0852678987203408},{"$f":"EY8*'Zambia-IO-Data'!$BN12","v":1538.9707364055846},{"$f":"(FC8*'Default-Data'!$F$19/pv_dollar_index)/'Zambia-IO-Data'!$BP12","v":0},{"$f":"(FD8*'Default-Data'!$F$19/pv_dollar_index)/'Zambia-IO-Data'!$BP12","v":4.2837198065300661E-2},{"$f":"(FE8*'Default-Data'!$F$19/pv_dollar_index)/'Zambia-IO-Data'!$BP12","v":16.137300144442886},null,"TTL_C10T14: Mining and quarrying",{"$f":"CH8","v":0},{"$f":"CI8","v":0},null,19185831.500765193,3200531.7657587565,{"$f":"FK8*CustomRegion1!C10","v":0},{"$f":"FN8*CustomRegion1!$C10","v":11045020.44023462},{"$f":"FO8*CustomRegion1!$C10","v":1842502.3054651448},{"$f":"FK8*CustomRegion1!D10","v":0},{"$f":"FN8*CustomRegion1!$D10","v":2887195.4174694074},{"$f":"FO8*CustomRegion1!$D10","v":481634.61913002882},{"$f":"(FS8*'Default-Data'!$C$58/pv_dollar_index)/CustomRegion1!$E10","v":0},{"$f":"(FT8*'Default-Data'!$C$58/pv_dollar_index)/CustomRegion1!$E10","v":972.5741931643505},{"$f":"(FU8*'Default-Data'!$C$58/pv_dollar_index)/CustomRegion1!$E10","v":162.2423609659842},111166.04097639496,18847.09950518205,{"$f":"FL8*CustomRegion1!C10","v":0},{"$f":"FY8*CustomRegion1!$C10","v":63996.767343405045},{"$f":"FZ8*CustomRegion1!$C10","v":10850.017069396716},{"$f":"FL8*CustomRegion1!D10","v":0},{"$f":"FY8*CustomRegion1!$D10","v":16728.91185729756},{"$f":"FZ8*CustomRegion1!$D10","v":2836.2210583253218},{"$f":"(GD8*'Default-Data'!$C$58/pv_dollar_index)/CustomRegion1!$E10","v":0},{"$f":"(GE8*'Default-Data'!$C$58/pv_dollar_index)/CustomRegion1!$E10","v":5.6352638459052651},{"$f":"(GF8*'Default-Data'!$C$58/pv_dollar_index)/CustomRegion1!$E10","v":0.95540308451106726},null,"C10T14 Mining and quarrying",{"$f":"BG8","v":0},{"$f":"BH8","v":0},null,5595930.3069914747,2387197.6640505195,{"$f":"GL8*CustomRegion2!$C$13","v":0},{"$f":"GO8*CustomRegion2!C$13","v":3448108.5063906126},{"$f":"GP8*CustomRegion2!D$13","v":264159.29670149175},{"$f":"GL8*CustomRegion2!D14","v":0},{"$f":"GO8*CustomRegion2!$D14","v":358905.88757629774},{"$f":"GP8*CustomRegion2!$D14","v":153107.57093698409},{"$f":"(GT8*'Default-Data'!$C$59/pv_dollar_index)/CustomRegion2!$E14","v":0},{"$f":"(GU8*'Default-Data'!$C$59/pv_dollar_index)/CustomRegion2!$E14","v":20.240066549205235},{"$f":"(GV8*'Default-Data'!$C$59/pv_dollar_index)/CustomRegion2!$E14","v":8.634317608659849},43406.936940458821,20461.772749965981,{"$f":"GM8*CustomRegion2!C14","v":0},{"$f":"GZ8*CustomRegion2!$C14","v":35274.894269874138},{"$f":"HA8*CustomRegion2!$C14","v":16628.376043195927},{"$f":"GM8*CustomRegion2!D14","v":0},{"$f":"GZ8*CustomRegion2!$D14","v":2783.988429970183},{"$f":"HA8*CustomRegion2!$D14","v":1312.3556419270881},{"$f":"(HE8*'Default-Data'!$C$59/pv_dollar_index)/CustomRegion2!$E14","v":0},{"$f":"(HF8*'Default-Data'!$C$59/pv_dollar_index)/CustomRegion2!$E14","v":0.15699968444467263},{"$f":"(HG8*'Default-Data'!$C$59/pv_dollar_index)/CustomRegion2!$E14","v":7.4008720526164459E-2},null,"DRSTAP",{"$f":"EJ8","v":0},{"$f":"EK8","v":0},null,1255.6999487061455,537203.56847301766,{"$f":"HM8*CustomRegion3!D13","v":0},{"$f":"HP8*CustomRegion3!$D13","v":669.0485052934165},{"$f":"HQ8*CustomRegion3!$D13","v":286227.01218989305},{"$f":"HM8*CustomRegion3!E13","v":0},{"$f":"HP8*CustomRegion3!$E13","v":606.63555025913013},{"$f":"HQ8*CustomRegion3!$E13","v":259525.99798828235},{"$f":"(HU8*'Default-Data'!$C$60/pv_dollar_index)/CustomRegion3!$F13","v":0},{"$f":"(HV8*'Default-Data'!$C$60/pv_dollar_index)/CustomRegion3!$F13","v":6.3610435996236578},{"$f":"(HW8*'Default-Data'!$C$60/pv_dollar_index)/CustomRegion3!$F13","v":2721.3310986046349},8.4562645375509593,3185.5790085814656,{"$f":"HN8*CustomRegion3!D13","v":0},{"$f":"IA8*CustomRegion3!$D13","v":4.5055756791610548},{"$f":"IB8*CustomRegion3!$D13","v":1697.3058543018817},{"$f":"HN8*CustomRegion3!E13","v":0},{"$f":"IA8*CustomRegion3!$E13","v":4.0852678987203408},{"$f":"IB8*CustomRegion3!$E13","v":1538.9707364055846},{"$f":"(IF8*'Default-Data'!$C$60/pv_dollar_index)/CustomRegion3!$F13","v":0},{"$f":"(IG8*'Default-Data'!$C$60/pv_dollar_index)/CustomRegion3!$F13","v":4.2837198065300661E-2},{"$f":"(IH8*'Default-Data'!$C$60/pv_dollar_index)/CustomRegion3!$F13","v":16.137300144442886}]
[null,51,"Utilities",40737028.829344496,0,null,1913574.6474974006,1289986.5776505843,18222803.139938023,855995.0270551563,577046.7835581525,4401440.4660680834,206752.55732617344,139376.85900808789,255.46480407569464,12.000162664170569,8.0895975428231832,9076.0267720569573,8055.8566822952162,0,4059.9585662679365,3603.608183110151,0,980.62113643577629,870.39665408189489,0,5.6916409167256383E-2,5.0518850003168934E-2,null,8,"TTL_C15T16: Food products, beverages and tobacco",0,0,null,416130.1937268296,5642375.833072844,{"$f":"AF9*'Colombia-IO-Data'!AN15","v":0},{"$f":"AI9*'Colombia-IO-Data'!$AN15","v":95272.1111739271},{"$f":"AJ9*'Colombia-IO-Data'!$AN15","v":1291809.7887568325},{"$f":"AK9*'Colombia-IO-Data'!$AO15","v":0},{"$f":"AL9*'Colombia-IO-Data'!$AO15","v":33434.355953426188},{"$f":"AM9*'Colombia-IO-Data'!$AO15","v":453341.7782940467},{"$f":"(AN9*'Default-Data'!$F$19/pv_dollar_index)/'Colombia-IO-Data'!$AP15","v":0},{"$f":"(AO9*'Default-Data'!$F$19/pv_dollar_index)/'Colombia-IO-Data'!$AP15","v":8.5113783609788864},{"$f":"(AP9*'Default-Data'!$F$19/pv_dollar_index)/'Colombia-IO-Data'!$AP15","v":115.40714010685856},2199.2714505307686,28779.979400786418,{"$f":"'Colombia-IO-Data'!$AN15*Calculations!AG9","v":0},{"$f":"'Colombia-IO-Data'!$AN15*Calculations!AT9","v":503.51845959574285},{"$f":"'Colombia-IO-Data'!$AN15*Calculations!AU9","v":6589.1142685382893},{"$f":"AV9*'Colombia-IO-Data'!$AO15","v":0},{"$f":"AW9*'Colombia-IO-Data'!$AO15","v":176.70244943466787},{"$f":"AX9*'Colombia-IO-Data'!$AO15","v":2312.3534175696777},{"$f":"(AY9*'Default-Data'!$F$19/pv_dollar_index)/'Colombia-IO-Data'!$AP15","v":0},{"$f":"(AZ9*'Default-Data'!$F$19/pv_dollar_index)/'Colombia-IO-Data'!$AP15","v":4.4983112776128632E-2},{"$f":"(BA9*'Default-Data'!$F$19/pv_dollar_index)/'Colombia-IO-Data'!$AP15","v":0.58865541985178527},null,"DOM_C15T16: Food products, beverages and tobacco",0,0,null,292459.32946129557,6671961.9871449945,{"$f":"BG9*'Mexico-IO-Data'!AQ15","v":0},{"$f":"BJ9*'Mexico-IO-Data'!$AQ15","v":113622.3643800432},{"$f":"BK9*'Mexico-IO-Data'!$AQ15","v":2592100.9168336736},{"$f":"BG9*'Mexico-IO-Data'!AR15","v":0},{"$f":"BJ9*'Mexico-IO-Data'!$AR15","v":19617.529098784249},{"$f":"BK9*'Mexico-IO-Data'!$AR15","v":447540.54750071192},{"$f":"(Calculations!BO9*'Default-Data'!$F$19/pv_dollar_index)/'Mexico-IO-Data'!$AS15","v":0},{"$f":"(Calculations!BP9*'Default-Data'!$F$19/pv_dollar_index)/'Mexico-IO-Data'!$AS15","v":5.3348359661003997},{"$f":"(Calculations!BQ9*'Default-Data'!$F$19/pv_dollar_index)/'Mexico-IO-Data'!$AS15","v":121.70520543502218},1148.4272398171518,41665.836288042461,{"$f":"BH9*'Mexico-IO-Data'!AQ15","v":0},{"$f":"BU9*'Mexico-IO-Data'!$AQ15","v":446.17150202329412},{"$f":"BV9*'Mexico-IO-Data'!$AQ15","v":16187.450205946374},{"$f":"BH9*'Mexico-IO-Data'!AR15","v":0},{"$f":"BU9*'Mexico-IO-Data'!$AR15","v":77.033975412745406},{"$f":"BV9*'Mexico-IO-Data'!$AR15","v":2794.8527315283573},{"$f":"(BZ9*'Default-Data'!$F$19/pv_dollar_index)/'Mexico-IO-Data'!$AS15","v":0},{"$f":"(CA9*'Default-Data'!$F$19/pv_dollar_index)/'Mexico-IO-Data'!$AS15","v":2.0948796383795175E-2},{"$f":"(CB9*'Default-Data'!$F$19/pv_dollar_index)/'Mexico-IO-Data'!$AS15","v":0.76003867750273624},null,"TTL_C15T16: Food products, beverages and tobacco",0,0,null,216207.34048511815,4825366.6937868698,{"$f":"CH9*'Philippines-IO-Data'!AN15","v":0},{"$f":"'Philippines-IO-Data'!$AN15*Calculations!CK9","v":72004.173162345731},{"$f":"'Philippines-IO-Data'!$AN15*Calculations!CL9","v":1607006.2108513871},{"$f":"CH9*'Philippines-IO-Data'!AO15","v":0},{"$f":"'Philippines-IO-Data'!$AO15*Calculations!CK9","v":12598.929914809558},{"$f":"'Philippines-IO-Data'!$AO15*Calculations!CL9","v":281185.90539927414},{"$f":"(CP9*'Default-Data'!$F$19/pv_dollar_index)/'Philippines-IO-Data'!$AP15","v":0},{"$f":"(CQ9*'Default-Data'!$F$19/pv_dollar_index)/'Philippines-IO-Data'!$AP15","v":4.2440473625335899},{"$f":"(CR9*'Default-Data'!$F$19/pv_dollar_index)/'Philippines-IO-Data'!$AP15","v":94.719655419993458},929.77271126789947,28264.883866032578,{"$f":"CI9*'Philippines-IO-Data'!AN15","v":0},{"$f":"'Philippines-IO-Data'!$AN15*Calculations!CV9","v":309.64496928523846},{"$f":"'Philippines-IO-Data'!$AN15*Calculations!CW9","v":9413.1382761423247},{"$f":"'Philippines-IO-Data'!AO15*Calculations!CI9","v":0},{"$f":"'Philippines-IO-Data'!$AO15*Calculations!CV9","v":54.180127278208801},{"$f":"'Philippines-IO-Data'!$AO15*Calculations!CW9","v":1647.0638327050103},{"$f":"(DA9*'Default-Data'!$F$19/pv_dollar_index)/'Philippines-IO-Data'!$AP15","v":0},{"$f":"(DB9*'Default-Data'!$F$19/pv_dollar_index)/'Philippines-IO-Data'!$AP15","v":1.825099653951778E-2},{"$f":"(DC9*'Default-Data'!$F$19/pv_dollar_index)/'Philippines-IO-Data'!$AP15","v":0.55482624019516402},null,"DOM_C15T16: Food products, beverages and tobacco",0,0,null,597764.32399985264,8080303.9259869335,{"$f":"DI9*'SouthAfrica-IO-Data'!AR15","v":0},{"$f":"DL9*'SouthAfrica-IO-Data'!$AR15","v":156586.48404959476},{"$f":"DM9*'SouthAfrica-IO-Data'!$AR15","v":2116664.2621896295},{"$f":"DI9*'SouthAfrica-IO-Data'!AS15","v":0},{"$f":"DL9*'SouthAfrica-IO-Data'!$AS15","v":81067.183059656309},{"$f":"DM9*'SouthAfrica-IO-Data'!$AS15","v":1095828.993544626},{"$f":"(DQ9*'Default-Data'!$F$19/pv_dollar_index)/'SouthAfrica-IO-Data'!$AT15","v":0},{"$f":"(DR9*'Default-Data'!$F$19/pv_dollar_index)/'SouthAfrica-IO-Data'!$AT15","v":6.8387803277961936},{"$f":"(DS9*'Default-Data'!$F$19/pv_dollar_index)/'SouthAfrica-IO-Data'!$AT15","v":92.443495392788634},3725.3346682099286,45785.217931273321,{"$f":"DJ9*'SouthAfrica-IO-Data'!AR15","v":0},{"$f":"DW9*'SouthAfrica-IO-Data'!$AR15","v":975.86462453921911},{"$f":"DX9*'SouthAfrica-IO-Data'!$AR15","v":11993.600168925966},{"$f":"DJ9*'SouthAfrica-IO-Data'!AS15","v":0},{"$f":"DW9*'SouthAfrica-IO-Data'!$AS15","v":505.21982557515878},{"$f":"DX9*'SouthAfrica-IO-Data'!$AS15","v":6209.2675899836868},{"$f":"(EB9*'Default-Data'!$F$19/pv_dollar_index)/'SouthAfrica-IO-Data'!$AT15","v":0},{"$f":"(EC9*'Default-Data'!$F$19/pv_dollar_index)/'SouthAfrica-IO-Data'!$AT15","v":4.2620050110948902E-2},{"$f":"(ED9*'Default-Data'!$F$19/pv_dollar_index)/'SouthAfrica-IO-Data'!$AT15","v":0.52381019595998957},null,"GRNDNUT",0,0,null,13877.05095316099,299536.54915967415,{"$f":"EJ9*'Zambia-IO-Data'!BO13","v":0},{"$f":"EM9*'Zambia-IO-Data'!$BO13","v":6259.3017783013502},{"$f":"EN9*'Zambia-IO-Data'!$BO13","v":135107.21126193789},{"$f":"EJ9*'Zambia-IO-Data'!$BN13","v":0},{"$f":"EM9*'Zambia-IO-Data'!$BN13","v":5161.2503063634158},{"$f":"EN9*'Zambia-IO-Data'!$BN13","v":111405.73824622703},{"$f":"(ER9*'Default-Data'!$F$19/pv_dollar_index)/'Zambia-IO-Data'!$BP13","v":0},{"$f":"(ES9*'Default-Data'!$F$19/pv_dollar_index)/'Zambia-IO-Data'!$BP13","v":54.119706986055469},{"$f":"(ET9*'Default-Data'!$F$19/pv_dollar_index)/'Zambia-IO-Data'!$BP13","v":1168.1754521801458},94.667866380613603,1760.0439671525662,{"$f":"EK9*'Zambia-IO-Data'!BO13","v":0},{"$f":"EX9*'Zambia-IO-Data'!$BO13","v":42.700336432013607},{"$f":"EY9*'Zambia-IO-Data'!$BO13","v":793.87518073335241},{"$f":"EK9*'Zambia-IO-Data'!BN13","v":0},{"$f":"EX9*'Zambia-IO-Data'!$BN13","v":35.209538107836657},{"$f":"EY9*'Zambia-IO-Data'!$BN13","v":654.6079203240264},{"$f":"(FC9*'Default-Data'!$F$19/pv_dollar_index)/'Zambia-IO-Data'!$BP13","v":0},{"$f":"(FD9*'Default-Data'!$F$19/pv_dollar_index)/'Zambia-IO-Data'!$BP13","v":0.36919927777211375},{"$f":"(FE9*'Default-Data'!$F$19/pv_dollar_index)/'Zambia-IO-Data'!$BP13","v":6.8640710556138922},null,"TTL_C15T16: Food products, beverages and tobacco",0,0,null,472723.70610318083,6812116.0499936538,{"$f":"FK9*CustomRegion1!C11","v":0},{"$f":"FN9*CustomRegion1!$C11","v":157432.58076171632},{"$f":"FO9*CustomRegion1!$C11","v":2268659.2534979149},{"$f":"FK9*CustomRegion1!D11","v":0},{"$f":"FN9*CustomRegion1!$D11","v":27546.765197238772},{"$f":"FO9*CustomRegion1!$D11","v":396958.64392414945},{"$f":"(FS9*'Default-Data'!$C$58/pv_dollar_index)/CustomRegion1!$E11","v":0},{"$f":"(FT9*'Default-Data'!$C$58/pv_dollar_index)/CustomRegion1!$E11","v":9.2793417355429799},{"$f":"(FU9*'Default-Data'!$C$58/pv_dollar_index)/CustomRegion1!$E11","v":133.71860127588167},2358.0797045883546,40114.780427633399,{"$f":"FL9*CustomRegion1!C11","v":0},{"$f":"FY9*CustomRegion1!$C11","v":785.31829214873449},{"$f":"FZ9*CustomRegion1!$C11","v":13359.544545526691},{"$f":"FL9*CustomRegion1!D11","v":0},{"$f":"FY9*CustomRegion1!$D11","v":137.41106506829465},{"$f":"FZ9*CustomRegion1!$D11","v":2337.5862541101606},{"$f":"(GD9*'Default-Data'!$C$58/pv_dollar_index)/CustomRegion1!$E11","v":0},{"$f":"(GE9*'Default-Data'!$C$58/pv_dollar_index)/CustomRegion1!$E11","v":4.6287984156537197E-2},{"$f":"(GF9*'Default-Data'!$C$58/pv_dollar_index)/CustomRegion1!$E11","v":0.78743407920615938},null,"C15T16 Food products, beverages and tobacco",0,0,null,624217.76817071938,8866216.771224888,{"$f":"GL9*CustomRegion2!$C$13","v":0},{"$f":"GO9*CustomRegion2!C$13","v":384631.4157237591},{"$f":"GP9*CustomRegion2!D$13","v":981105.84722831426},{"$f":"GL9*CustomRegion2!D15","v":0},{"$f":"GO9*CustomRegion2!$D15","v":60026.477372248075},{"$f":"GP9*CustomRegion2!$D15","v":852599.50538579014},{"$f":"(GT9*'Default-Data'!$C$59/pv_dollar_index)/CustomRegion2!$E15","v":0},{"$f":"(GU9*'Default-Data'!$C$59/pv_dollar_index)/CustomRegion2!$E15","v":16.323738264449752},{"$f":"(GV9*'Default-Data'!$C$59/pv_dollar_index)/CustomRegion2!$E15","v":231.85786971986224},5446.6730466223808,75996.435258283454,{"$f":"GM9*CustomRegion2!C15","v":0},{"$f":"GZ9*CustomRegion2!$C15","v":2155.3905875054011},{"$f":"HA9*CustomRegion2!$C15","v":30073.771610220938},{"$f":"GM9*CustomRegion2!D15","v":0},{"$f":"GZ9*CustomRegion2!$D15","v":523.76688562587447},{"$f":"HA9*CustomRegion2!$D15","v":7308.0237923558216},{"$f":"(HE9*'Default-Data'!$C$59/pv_dollar_index)/CustomRegion2!$E15","v":0},{"$f":"(HF9*'Default-Data'!$C$59/pv_dollar_index)/CustomRegion2!$E15","v":0.14243437107798018},{"$f":"(HG9*'Default-Data'!$C$59/pv_dollar_index)/CustomRegion2!$E15","v":1.9873607920884091},null,"GRNDNUT",0,0,null,13877.05095316099,299536.54915967415,{"$f":"HM9*CustomRegion3!D14","v":0},{"$f":"HP9*CustomRegion3!$D14","v":6259.3017783013502},{"$f":"HQ9*CustomRegion3!$D14","v":135107.21126193789},{"$f":"HM9*CustomRegion3!E14","v":0},{"$f":"HP9*CustomRegion3!$E14","v":5161.2503063634158},{"$f":"HQ9*CustomRegion3!$E14","v":111405.73824622703},{"$f":"(HU9*'Default-Data'!$C$60/pv_dollar_index)/CustomRegion3!$F14","v":0},{"$f":"(HV9*'Default-Data'!$C$60/pv_dollar_index)/CustomRegion3!$F14","v":54.119706986055469},{"$f":"(HW9*'Default-Data'!$C$60/pv_dollar_index)/CustomRegion3!$F14","v":1168.1754521801458},94.667866380613603,1760.0439671525662,{"$f":"HN9*CustomRegion3!D14","v":0},{"$f":"IA9*CustomRegion3!$D14","v":42.700336432013607},{"$f":"IB9*CustomRegion3!$D14","v":793.87518073335241},{"$f":"HN9*CustomRegion3!E14","v":0},{"$f":"IA9*CustomRegion3!$E14","v":35.209538107836657},{"$f":"IB9*CustomRegion3!$E14","v":654.6079203240264},{"$f":"(IF9*'Default-Data'!$C$60/pv_dollar_index)/CustomRegion3!$F14","v":0},{"$f":"(IG9*'Default-Data'!$C$60/pv_dollar_index)/CustomRegion3!$F14","v":0.36919927777211375},{"$f":"(IH9*'Default-Data'!$C$60/pv_dollar_index)/CustomRegion3!$F14","v":6.8640710556138922}]
[null,52,"Construction",71888874.404725581,675746.53700843919,null,5701485.4018616974,86131.785381659865,36155973.079504795,2867519.5488851671,43319.338900989525,15901987.796451369,1261181.9566351497,19052.5531435458,5839.623966643222,463.1388524840977,6.9965935948977434,51972.167973418371,537.88568877102807,339861.67961255042,26139.014161653002,270.52559445523599,149476.72047979804,11496.365574115773,118.98157718491794,54.89174375821424,4.2217647752741971,4.3693133123464477E-2,null,9,"TTL_C17T19: Textiles, textile products, leather and footwear",0,0,null,261578.62957395654,1460242.9558126917,{"$f":"AF10*'Colombia-IO-Data'!AN16","v":0},{"$f":"AI10*'Colombia-IO-Data'!$AN16","v":86167.639774185984},{"$f":"AJ10*'Colombia-IO-Data'!$AN16","v":481024.3451622859},{"$f":"AK10*'Colombia-IO-Data'!$AO16","v":0},{"$f":"AL10*'Colombia-IO-Data'!$AO16","v":44145.232951972248},{"$f":"AM10*'Colombia-IO-Data'!$AO16","v":246437.4309010673},{"$f":"(AN10*'Default-Data'!$F$19/pv_dollar_index)/'Colombia-IO-Data'!$AP16","v":0},{"$f":"(AO10*'Default-Data'!$F$19/pv_dollar_index)/'Colombia-IO-Data'!$AP16","v":11.238044513589173},{"$f":"(AP10*'Default-Data'!$F$19/pv_dollar_index)/'Colombia-IO-Data'!$AP16","v":62.73553525685994},1921.4477947560599,7448.2387263355095,{"$f":"'Colombia-IO-Data'!$AN16*Calculations!AG10","v":0},{"$f":"'Colombia-IO-Data'!$AN16*Calculations!AT10","v":632.95163558700915},{"$f":"'Colombia-IO-Data'!$AN16*Calculations!AU10","v":2453.5534595021786},{"$f":"AV10*'Colombia-IO-Data'!$AO16","v":0},{"$f":"AW10*'Colombia-IO-Data'!$AO16","v":324.27251661465544},{"$f":"AX10*'Colombia-IO-Data'!$AO16","v":1256.9996034902338},{"$f":"(AY10*'Default-Data'!$F$19/pv_dollar_index)/'Colombia-IO-Data'!$AP16","v":0},{"$f":"(AZ10*'Default-Data'!$F$19/pv_dollar_index)/'Colombia-IO-Data'!$AP16","v":8.2549999910834615E-2},{"$f":"(BA10*'Default-Data'!$F$19/pv_dollar_index)/'Colombia-IO-Data'!$AP16","v":0.31999417724119361},null,"DOM_C17T19: Textiles, textile products, leather and footwear",0,0,null,193271.32836663479,707927.93411102495,{"$f":"BG10*'Mexico-IO-Data'!AQ16","v":0},{"$f":"BJ10*'Mexico-IO-Data'!$AQ16","v":74887.164964646887},{"$f":"BK10*'Mexico-IO-Data'!$AQ16","v":274302.02106483863},{"$f":"BG10*'Mexico-IO-Data'!AR16","v":0},{"$f":"BJ10*'Mexico-IO-Data'!$AR16","v":25466.154402312557},{"$f":"BK10*'Mexico-IO-Data'!$AR16","v":93279.237164356309},{"$f":"(Calculations!BO10*'Default-Data'!$F$19/pv_dollar_index)/'Mexico-IO-Data'!$AS16","v":0},{"$f":"(Calculations!BP10*'Default-Data'!$F$19/pv_dollar_index)/'Mexico-IO-Data'!$AS16","v":6.4380065691301755},{"$f":"(Calculations!BQ10*'Default-Data'!$F$19/pv_dollar_index)/'Mexico-IO-Data'!$AS16","v":23.581587236942369},880.94794991227616,4420.9498590119974,{"$f":"BH10*'Mexico-IO-Data'!AQ16","v":0},{"$f":"BU10*'Mexico-IO-Data'!$AQ16","v":341.34237606728772},{"$f":"BV10*'Mexico-IO-Data'!$AQ16","v":1712.9928385664173},{"$f":"BH10*'Mexico-IO-Data'!AR16","v":0},{"$f":"BU10*'Mexico-IO-Data'!$AR16","v":116.07700274253234},{"$f":"BV10*'Mexico-IO-Data'!$AR16","v":582.52091847223733},{"$f":"(BZ10*'Default-Data'!$F$19/pv_dollar_index)/'Mexico-IO-Data'!$AS16","v":0},{"$f":"(CA10*'Default-Data'!$F$19/pv_dollar_index)/'Mexico-IO-Data'!$AS16","v":2.9345008059540493E-2},{"$f":"(CB10*'Default-Data'!$F$19/pv_dollar_index)/'Mexico-IO-Data'!$AS16","v":0.14726501066998354},null,"TTL_C17T19: Textiles, textile products, leather and footwear",0,0,null,71374.379781458876,675043.37270919303,{"$f":"CH10*'Philippines-IO-Data'!AN16","v":0},{"$f":"'Philippines-IO-Data'!$AN16*Calculations!CK10","v":27386.18541218849},{"$f":"'Philippines-IO-Data'!$AN16*Calculations!CL10","v":259012.58999220619},{"$f":"CH10*'Philippines-IO-Data'!AO16","v":0},{"$f":"'Philippines-IO-Data'!$AO16*Calculations!CK10","v":9459.1903245989233},{"$f":"'Philippines-IO-Data'!$AO16*Calculations!CL10","v":89462.966394478819},{"$f":"(CP10*'Default-Data'!$F$19/pv_dollar_index)/'Philippines-IO-Data'!$AP16","v":0},{"$f":"(CQ10*'Default-Data'!$F$19/pv_dollar_index)/'Philippines-IO-Data'!$AP16","v":3.1864017039755184},{"$f":"(CR10*'Default-Data'!$F$19/pv_dollar_index)/'Philippines-IO-Data'!$AP16","v":30.136294839184224},318.97003991963902,3954.1083082302684,{"$f":"CI10*'Philippines-IO-Data'!AN16","v":0},{"$f":"'Philippines-IO-Data'!$AN16*Calculations!CV10","v":122.38807091451056},{"$f":"'Philippines-IO-Data'!$AN16*Calculations!CW10","v":1517.1822662506604},{"$f":"'Philippines-IO-Data'!AO16*Calculations!CI10","v":0},{"$f":"'Philippines-IO-Data'!$AO16*Calculations!CV10","v":42.272848109967995},{"$f":"'Philippines-IO-Data'!$AO16*Calculations!CW10","v":524.03485909301264},{"$f":"(DA10*'Default-Data'!$F$19/pv_dollar_index)/'Philippines-IO-Data'!$AP16","v":0},{"$f":"(DB10*'Default-Data'!$F$19/pv_dollar_index)/'Philippines-IO-Data'!$AP16","v":1.4239937101087096E-2},{"$f":"(DC10*'Default-Data'!$F$19/pv_dollar_index)/'Philippines-IO-Data'!$AP16","v":0.17652521100185672},null,"DOM_C17T19: Textiles, textile products, leather and footwear",0,0,null,874960.96715252136,2400091.9323789547,{"$f":"DI10*'SouthAfrica-IO-Data'!AR16","v":0},{"$f":"DL10*'SouthAfrica-IO-Data'!$AR16","v":116453.19363780282},{"$f":"DM10*'SouthAfrica-IO-Data'!$AR16","v":319440.95913153252},{"$f":"DI10*'SouthAfrica-IO-Data'!AS16","v":0},{"$f":"DL10*'SouthAfrica-IO-Data'!$AS16","v":117031.47148292205},{"$f":"DM10*'SouthAfrica-IO-Data'!$AS16","v":321027.22416831582},{"$f":"(DQ10*'Default-Data'!$F$19/pv_dollar_index)/'SouthAfrica-IO-Data'!$AT16","v":0},{"$f":"(DR10*'Default-Data'!$F$19/pv_dollar_index)/'SouthAfrica-IO-Data'!$AT16","v":9.8727067440036649},{"$f":"(DS10*'Default-Data'!$F$19/pv_dollar_index)/'SouthAfrica-IO-Data'!$AT16","v":27.081669579091017},7295.204571297857,13599.579073461569,{"$f":"DJ10*'SouthAfrica-IO-Data'!AR16","v":0},{"$f":"DW10*'SouthAfrica-IO-Data'!$AR16","v":970.95745120323966},{"$f":"DX10*'SouthAfrica-IO-Data'!$AR16","v":1810.0400757172993},{"$f":"DJ10*'SouthAfrica-IO-Data'!AS16","v":0},{"$f":"DW10*'SouthAfrica-IO-Data'!$AS16","v":975.77898649174892},{"$f":"DX10*'SouthAfrica-IO-Data'!$AS16","v":1819.0282884220599},{"$f":"(EB10*'Default-Data'!$F$19/pv_dollar_index)/'SouthAfrica-IO-Data'!$AT16","v":0},{"$f":"(EC10*'Default-Data'!$F$19/pv_dollar_index)/'SouthAfrica-IO-Data'!$AT16","v":8.2316146746902519E-2},{"$f":"(ED10*'Default-Data'!$F$19/pv_dollar_index)/'SouthAfrica-IO-Data'!$AT16","v":0.15345216652478441},null,"SUGAR",0,0,null,713.17851713795483,52444.650845047297,{"$f":"EJ10*'Zambia-IO-Data'!BO14","v":0},{"$f":"EM10*'Zambia-IO-Data'!$BO14","v":193.55714051935561},{"$f":"EN10*'Zambia-IO-Data'!$BO14","v":14233.514343421788},{"$f":"EJ10*'Zambia-IO-Data'!$BN14","v":0},{"$f":"EM10*'Zambia-IO-Data'!$BN14","v":64.882494212666813},{"$f":"EN10*'Zambia-IO-Data'!$BN14","v":4771.2314282749185},{"$f":"(ER10*'Default-Data'!$F$19/pv_dollar_index)/'Zambia-IO-Data'!$BP14","v":0},{"$f":"(ES10*'Default-Data'!$F$19/pv_dollar_index)/'Zambia-IO-Data'!$BP14","v":0.68034320501461854},{"$f":"(ET10*'Default-Data'!$F$19/pv_dollar_index)/'Zambia-IO-Data'!$BP14","v":50.030056969439272},4.8027605716086388,306.37239369590094,{"$f":"EK10*'Zambia-IO-Data'!BO14","v":0},{"$f":"EX10*'Zambia-IO-Data'!$BO14","v":1.303472525462869},{"$f":"EY10*'Zambia-IO-Data'!$BO14","v":83.149678562706811},{"$f":"EK10*'Zambia-IO-Data'!BN14","v":0},{"$f":"EX10*'Zambia-IO-Data'!$BN14","v":0.43693840672985962},{"$f":"EY10*'Zambia-IO-Data'!$BN14","v":27.872691876177193},{"$f":"(FC10*'Default-Data'!$F$19/pv_dollar_index)/'Zambia-IO-Data'!$BP14","v":0},{"$f":"(FD10*'Default-Data'!$F$19/pv_dollar_index)/'Zambia-IO-Data'!$BP14","v":4.5816376148273743E-3},{"$f":"(FE10*'Default-Data'!$F$19/pv_dollar_index)/'Zambia-IO-Data'!$BP14","v":0.2922667624531799},null,"TTL_C17T19: Textiles, textile products, leather and footwear",0,0,null,145058.14399741078,1077163.6079406915,{"$f":"FK10*CustomRegion1!C12","v":0},{"$f":"FN10*CustomRegion1!$C12","v":55658.476321961665},{"$f":"FO10*CustomRegion1!$C12","v":413305.19966197776},{"$f":"FK10*CustomRegion1!D12","v":0},{"$f":"FN10*CustomRegion1!$D12","v":19224.441548997223},{"$f":"FO10*CustomRegion1!$D12","v":142755.64438445051},{"$f":"(FS10*'Default-Data'!$C$58/pv_dollar_index)/CustomRegion1!$E12","v":0},{"$f":"(FT10*'Default-Data'!$C$58/pv_dollar_index)/CustomRegion1!$E12","v":6.47590239836937},{"$f":"(FU10*'Default-Data'!$C$58/pv_dollar_index)/CustomRegion1!$E12","v":48.088347195617239},750.21973018762526,6343.1364498287567,{"$f":"FL10*CustomRegion1!C12","v":0},{"$f":"FY10*CustomRegion1!$C12","v":287.85758550489754},{"$f":"FZ10*CustomRegion1!$C12","v":2433.8468711282258},{"$f":"FL10*CustomRegion1!D12","v":0},{"$f":"FY10*CustomRegion1!$D12","v":99.42602982810746},{"$f":"FZ10*CustomRegion1!$D12","v":840.65087665276712},{"$f":"(GD10*'Default-Data'!$C$58/pv_dollar_index)/CustomRegion1!$E12","v":0},{"$f":"(GE10*'Default-Data'!$C$58/pv_dollar_index)/CustomRegion1!$E12","v":3.3492430112112732E-2},{"$f":"(GF10*'Default-Data'!$C$58/pv_dollar_index)/CustomRegion1!$E12","v":0.28317977478991757},null,"C17T19 Textiles, textile products, leather and footwear",0,0,null,6688362.0055819675,2017325.9493541103,{"$f":"GL10*CustomRegion2!$C$13","v":0},{"$f":"GO10*CustomRegion2!C$13","v":4121244.6653335518},{"$f":"GP10*CustomRegion2!D$13","v":223230.53177542548},{"$f":"GL10*CustomRegion2!D16","v":0},{"$f":"GO10*CustomRegion2!$D16","v":1030896.9447748815},{"$f":"GP10*CustomRegion2!$D16","v":310936.39310620487},{"$f":"(GT10*'Default-Data'!$C$59/pv_dollar_index)/CustomRegion2!$E16","v":0},{"$f":"(GU10*'Default-Data'!$C$59/pv_dollar_index)/CustomRegion2!$E16","v":260.61733537413176},{"$f":"(GV10*'Default-Data'!$C$59/pv_dollar_index)/CustomRegion2!$E16","v":78.606707152360897},62214.669164641658,17291.431606151091,{"$f":"GM10*CustomRegion2!C16","v":0},{"$f":"GZ10*CustomRegion2!$C16","v":21659.665711067828},{"$f":"HA10*CustomRegion2!$C16","v":6019.908701336939},{"$f":"GM10*CustomRegion2!D16","v":0},{"$f":"GZ10*CustomRegion2!$D16","v":9589.3302887137052},{"$f":"HA10*CustomRegion2!$D16","v":2665.1793067851345},{"$f":"(HE10*'Default-Data'!$C$59/pv_dollar_index)/CustomRegion2!$E16","v":0},{"$f":"(HF10*'Default-Data'!$C$59/pv_dollar_index)/CustomRegion2!$E16","v":2.4242439756311063},{"$f":"(HG10*'Default-Data'!$C$59/pv_dollar_index)/CustomRegion2!$E16","v":0.67377436003585844},null,"SUGAR",0,0,null,713.17851713795483,52444.650845047297,{"$f":"HM10*CustomRegion3!D15","v":0},{"$f":"HP10*CustomRegion3!$D15","v":193.55714051935561},{"$f":"HQ10*CustomRegion3!$D15","v":14233.514343421788},{"$f":"HM10*CustomRegion3!E15","v":0},{"$f":"HP10*CustomRegion3!$E15","v":64.882494212666813},{"$f":"HQ10*CustomRegion3!$E15","v":4771.2314282749185},{"$f":"(HU10*'Default-Data'!$C$60/pv_dollar_index)/CustomRegion3!$F15","v":0},{"$f":"(HV10*'Default-Data'!$C$60/pv_dollar_index)/CustomRegion3!$F15","v":0.68034320501461854},{"$f":"(HW10*'Default-Data'!$C$60/pv_dollar_index)/CustomRegion3!$F15","v":50.030056969439272},4.8027605716086388,306.37239369590094,{"$f":"HN10*CustomRegion3!D15","v":0},{"$f":"IA10*CustomRegion3!$D15","v":1.303472525462869},{"$f":"IB10*CustomRegion3!$D15","v":83.149678562706811},{"$f":"HN10*CustomRegion3!E15","v":0},{"$f":"IA10*CustomRegion3!$E15","v":0.43693840672985962},{"$f":"IB10*CustomRegion3!$E15","v":27.872691876177193},{"$f":"(IF10*'Default-Data'!$C$60/pv_dollar_index)/CustomRegion3!$F15","v":0},{"$f":"(IG10*'Default-Data'!$C$60/pv_dollar_index)/CustomRegion3!$F15","v":4.5816376148273743E-3},{"$f":"(IH10*'Default-Data'!$C$60/pv_dollar_index)/CustomRegion3!$F15","v":0.2922667624531799}]
[null,53,"Manufacturing",0,0,null,31122678.48828483,14091345.33188978,0,9963659.6732818224,4772107.1128801731,0,2325836.2324902774,1061749.6854764433,0,414.38514048031431,220.44565785379572,156894.55328832005,87999.255512549702,0,61279.497318028414,29801.403859519221,0,14064.986377863039,6630.5366636047493,0,3.134058694075597,1.3766644216863211,null,10,"TTL_C20: Wood and products of wood and cork",0,0,null,1141598.9567139153,54698.169902901631,{"$f":"AF11*'Colombia-IO-Data'!AN17","v":0},{"$f":"AI11*'Colombia-IO-Data'!$AN17","v":473984.98884756095},{"$f":"AJ11*'Colombia-IO-Data'!$AN17","v":22710.349636300438},{"$f":"AK11*'Colombia-IO-Data'!$AO17","v":0},{"$f":"AL11*'Colombia-IO-Data'!$AO17","v":193461.55231838804},{"$f":"AM11*'Colombia-IO-Data'!$AO17","v":9269.448606409449},{"$f":"(AN11*'Default-Data'!$F$19/pv_dollar_index)/'Colombia-IO-Data'!$AP17","v":0},{"$f":"(AO11*'Default-Data'!$F$19/pv_dollar_index)/'Colombia-IO-Data'!$AP17","v":49.249474773130018},{"$f":"(AP11*'Default-Data'!$F$19/pv_dollar_index)/'Colombia-IO-Data'!$AP17","v":2.3597219697218192},10306.173987749853,278.99811172431691,{"$f":"'Colombia-IO-Data'!$AN17*Calculations!AG11","v":0},{"$f":"'Colombia-IO-Data'!$AN17*Calculations!AT11","v":4279.0611658458365},{"$f":"'Colombia-IO-Data'!$AN17*Calculations!AU11","v":115.83833017401793},{"$f":"AV11*'Colombia-IO-Data'!$AO17","v":0},{"$f":"AW11*'Colombia-IO-Data'!$AO17","v":1746.5401544100541},{"$f":"AX11*'Colombia-IO-Data'!$AO17","v":47.280533562726134},{"$f":"(AY11*'Default-Data'!$F$19/pv_dollar_index)/'Colombia-IO-Data'!$AP17","v":0},{"$f":"(AZ11*'Default-Data'!$F$19/pv_dollar_index)/'Colombia-IO-Data'!$AP17","v":0.44461643279547358},{"$f":"(BA11*'Default-Data'!$F$19/pv_dollar_index)/'Colombia-IO-Data'!$AP17","v":1.2036197461733516E-2},null,"DOM_C20: Wood and products of wood and cork",0,0,null,886946.73613179557,76920.076197564835,{"$f":"BG11*'Mexico-IO-Data'!AQ17","v":0},{"$f":"BJ11*'Mexico-IO-Data'!$AQ17","v":410090.79769796558},{"$f":"BK11*'Mexico-IO-Data'!$AQ17","v":35564.948966856966},{"$f":"BG11*'Mexico-IO-Data'!AR17","v":0},{"$f":"BJ11*'Mexico-IO-Data'!$AR17","v":149060.14522142266},{"$f":"BK11*'Mexico-IO-Data'!$AR17","v":12927.177316708865},{"$f":"(Calculations!BO11*'Default-Data'!$F$19/pv_dollar_index)/'Mexico-IO-Data'!$AS17","v":0},{"$f":"(Calculations!BP11*'Default-Data'!$F$19/pv_dollar_index)/'Mexico-IO-Data'!$AS17","v":69.87619771797192},{"$f":"(Calculations!BQ11*'Default-Data'!$F$19/pv_dollar_index)/'Mexico-IO-Data'!$AS17","v":6.0599833495117874},7825.6840207570367,480.35934681380422,{"$f":"BH11*'Mexico-IO-Data'!AQ17","v":0},{"$f":"BU11*'Mexico-IO-Data'!$AQ17","v":3618.3018346747713},{"$f":"BV11*'Mexico-IO-Data'!$AQ17","v":222.100087515599},{"$f":"BH11*'Mexico-IO-Data'!AR17","v":0},{"$f":"BU11*'Mexico-IO-Data'!$AR17","v":1315.1833690469496},{"$f":"BV11*'Mexico-IO-Data'!$AR17","v":80.729125073293744},{"$f":"(BZ11*'Default-Data'!$F$19/pv_dollar_index)/'Mexico-IO-Data'!$AS17","v":0},{"$f":"(CA11*'Default-Data'!$F$19/pv_dollar_index)/'Mexico-IO-Data'!$AS17","v":0.6165297437111672},{"$f":"(CB11*'Default-Data'!$F$19/pv_dollar_index)/'Mexico-IO-Data'!$AS17","v":3.784408164127856E-2},null,"TTL_C20: Wood and products of wood and cork",0,0,null,506887.77285083995,20995.90227487887,{"$f":"CH11*'Philippines-IO-Data'!AN17","v":0},{"$f":"'Philippines-IO-Data'!$AN17*Calculations!CK11","v":73565.09860019639},{"$f":"'Philippines-IO-Data'!$AN17*Calculations!CL11","v":3047.1550188804131},{"$f":"CH11*'Philippines-IO-Data'!AO17","v":0},{"$f":"'Philippines-IO-Data'!$AO17*Calculations!CK11","v":19076.848907668427},{"$f":"'Philippines-IO-Data'!$AO17*Calculations!CL11","v":790.18606648438572},{"$f":"(CP11*'Default-Data'!$F$19/pv_dollar_index)/'Philippines-IO-Data'!$AP17","v":0},{"$f":"(CQ11*'Default-Data'!$F$19/pv_dollar_index)/'Philippines-IO-Data'!$AP17","v":6.4261846711975945},{"$f":"(CR11*'Default-Data'!$F$19/pv_dollar_index)/'Philippines-IO-Data'!$AP17","v":0.26618031166534523},4734.0228953410951,122.98479620753824,{"$f":"CI11*'Philippines-IO-Data'!AN17","v":0},{"$f":"'Philippines-IO-Data'!$AN17*Calculations!CV11","v":687.05318953084259},{"$f":"'Philippines-IO-Data'!$AN17*Calculations!CW11","v":17.848898994837171},{"$f":"'Philippines-IO-Data'!AO17*Calculations!CI11","v":0},{"$f":"'Philippines-IO-Data'!$AO17*Calculations!CV11","v":178.16614315224442},{"$f":"'Philippines-IO-Data'!$AO17*Calculations!CW11","v":4.6285637587908379},{"$f":"(DA11*'Default-Data'!$F$19/pv_dollar_index)/'Philippines-IO-Data'!$AP17","v":0},{"$f":"(DB11*'Default-Data'!$F$19/pv_dollar_index)/'Philippines-IO-Data'!$AP17","v":6.0016648640075769E-2},{"$f":"(DC11*'Default-Data'!$F$19/pv_dollar_index)/'Philippines-IO-Data'!$AP17","v":1.5591676392869075E-3},null,"DOM_C20: Wood and products of wood and cork",0,0,null,760185.05265721737,246672.60306817107,{"$f":"DI11*'SouthAfrica-IO-Data'!AR17","v":0},{"$f":"DL11*'SouthAfrica-IO-Data'!$AR17","v":201483.51945741958},{"$f":"DM11*'SouthAfrica-IO-Data'!$AR17","v":65379.428398612719},{"$f":"DI11*'SouthAfrica-IO-Data'!AS17","v":0},{"$f":"DL11*'SouthAfrica-IO-Data'!$AS17","v":167736.64392930531},{"$f":"DM11*'SouthAfrica-IO-Data'!$AS17","v":54428.897862870712},{"$f":"(DQ11*'Default-Data'!$F$19/pv_dollar_index)/'SouthAfrica-IO-Data'!$AT17","v":0},{"$f":"(DR11*'Default-Data'!$F$19/pv_dollar_index)/'SouthAfrica-IO-Data'!$AT17","v":14.150165547384832},{"$f":"(DS11*'Default-Data'!$F$19/pv_dollar_index)/'SouthAfrica-IO-Data'!$AT17","v":4.5915901098266998},6270.3978253090991,1397.7146147719004,{"$f":"DJ11*'SouthAfrica-IO-Data'!AR17","v":0},{"$f":"DW11*'SouthAfrica-IO-Data'!$AR17","v":1661.9398366559456},{"$f":"DX11*'SouthAfrica-IO-Data'!$AR17","v":370.45777050854537},{"$f":"DJ11*'SouthAfrica-IO-Data'!AS17","v":0},{"$f":"DW11*'SouthAfrica-IO-Data'!$AS17","v":1383.5782269626254},{"$f":"DX11*'SouthAfrica-IO-Data'!$AS17","v":308.40906149531685},{"$f":"(EB11*'Default-Data'!$F$19/pv_dollar_index)/'SouthAfrica-IO-Data'!$AT17","v":0},{"$f":"(EC11*'Default-Data'!$F$19/pv_dollar_index)/'SouthAfrica-IO-Data'!$AT17","v":0.11671785306214703},{"$f":"(ED11*'Default-Data'!$F$19/pv_dollar_index)/'SouthAfrica-IO-Data'!$AT17","v":2.601720872817511E-2},null,"COTTON",0,0,null,547570.7591129248,143671.48219939484,{"$f":"EJ11*'Zambia-IO-Data'!BO15","v":0},{"$f":"EM11*'Zambia-IO-Data'!$BO15","v":121573.48296895935},{"$f":"EN11*'Zambia-IO-Data'!$BO15","v":31898.420804262034},{"$f":"EJ11*'Zambia-IO-Data'!$BN15","v":0},{"$f":"EM11*'Zambia-IO-Data'!$BN15","v":82524.296994365199},{"$f":"EN11*'Zambia-IO-Data'!$BN15","v":21652.704914066431},{"$f":"(ER11*'Default-Data'!$F$19/pv_dollar_index)/'Zambia-IO-Data'!$BP15","v":0},{"$f":"(ES11*'Default-Data'!$F$19/pv_dollar_index)/'Zambia-IO-Data'!$BP15","v":865.3311712200433},{"$f":"(ET11*'Default-Data'!$F$19/pv_dollar_index)/'Zambia-IO-Data'!$BP15","v":227.04538161228385},4087.2780535991433,839.15697811946575,{"$f":"EK11*'Zambia-IO-Data'!BO15","v":0},{"$f":"EX11*'Zambia-IO-Data'!$BO15","v":907.47108126013131},{"$f":"EY11*'Zambia-IO-Data'!$BO15","v":186.3124260925901},{"$f":"EK11*'Zambia-IO-Data'!BN15","v":0},{"$f":"EX11*'Zambia-IO-Data'!$BN15","v":615.99298790205444},{"$f":"EY11*'Zambia-IO-Data'!$BN15","v":126.46920701063824},{"$f":"(FC11*'Default-Data'!$F$19/pv_dollar_index)/'Zambia-IO-Data'!$BP15","v":0},{"$f":"(FD11*'Default-Data'!$F$19/pv_dollar_index)/'Zambia-IO-Data'!$BP15","v":6.459163580890789},{"$f":"(FE11*'Default-Data'!$F$19/pv_dollar_index)/'Zambia-IO-Data'!$BP15","v":1.3261275892269422},null,"TTL_C20: Wood and products of wood and cork",0,0,null,1030886.6739341399,54916.407080186415,{"$f":"FK11*CustomRegion1!C13","v":0},{"$f":"FN11*CustomRegion1!$C13","v":149613.55131347757},{"$f":"FO11*CustomRegion1!$C13","v":7970.0697432511406},{"$f":"FK11*CustomRegion1!D13","v":0},{"$f":"FN11*CustomRegion1!$D13","v":38797.679432992554},{"$f":"FO11*CustomRegion1!$D13","v":2066.7928021396797},{"$f":"(FS11*'Default-Data'!$C$58/pv_dollar_index)/CustomRegion1!$E13","v":0},{"$f":"(FT11*'Default-Data'!$C$58/pv_dollar_index)/CustomRegion1!$E13","v":13.069299550310634},{"$f":"(FU11*'Default-Data'!$C$58/pv_dollar_index)/CustomRegion1!$E13","v":0.69621520241283952},9570.1750072560699,323.38844431434518,{"$f":"FL11*CustomRegion1!C13","v":0},{"$f":"FY11*CustomRegion1!$C13","v":1388.9284881943693},{"$f":"FZ11*CustomRegion1!$C13","v":46.933668686361372},{"$f":"FL11*CustomRegion1!D13","v":0},{"$f":"FY11*CustomRegion1!$D13","v":360.17594507471483},{"$f":"FZ11*CustomRegion1!$D13","v":12.17080549403212},{"$f":"(GD11*'Default-Data'!$C$58/pv_dollar_index)/CustomRegion1!$E13","v":0},{"$f":"(GE11*'Default-Data'!$C$58/pv_dollar_index)/CustomRegion1!$E13","v":0.12132806357987369},{"$f":"(GF11*'Default-Data'!$C$58/pv_dollar_index)/CustomRegion1!$E13","v":4.0998303273470605E-3},null,"C20 Wood and products of wood and cork",0,0,null,4315814.686772991,271313.51409612037,{"$f":"GL11*CustomRegion2!$C$13","v":0},{"$f":"GO11*CustomRegion2!C$13","v":2659324.9946081145},{"$f":"GP11*CustomRegion2!D$13","v":30022.644604818408},{"$f":"GL11*CustomRegion2!D17","v":0},{"$f":"GO11*CustomRegion2!$D17","v":607316.04023271753},{"$f":"GP11*CustomRegion2!$D17","v":38178.898076294157},{"$f":"(GT11*'Default-Data'!$C$59/pv_dollar_index)/CustomRegion2!$E17","v":0},{"$f":"(GU11*'Default-Data'!$C$59/pv_dollar_index)/CustomRegion2!$E17","v":284.69672856925536},{"$f":"(GV11*'Default-Data'!$C$59/pv_dollar_index)/CustomRegion2!$E17","v":17.897448219109997},40370.291992125887,2325.5533268283398,{"$f":"GM11*CustomRegion2!C17","v":0},{"$f":"GZ11*CustomRegion2!$C17","v":17105.315915366595},{"$f":"HA11*CustomRegion2!$C17","v":985.36132315291093},{"$f":"GM11*CustomRegion2!D17","v":0},{"$f":"GZ11*CustomRegion2!$D17","v":5680.8569540386488},{"$f":"HA11*CustomRegion2!$D17","v":327.24895304887275},{"$f":"(HE11*'Default-Data'!$C$59/pv_dollar_index)/CustomRegion2!$E17","v":0},{"$f":"(HF11*'Default-Data'!$C$59/pv_dollar_index)/CustomRegion2!$E17","v":2.6630638467328587},{"$f":"(HG11*'Default-Data'!$C$59/pv_dollar_index)/CustomRegion2!$E17","v":0.15340728745617746},null,"COTTON",0,0,null,547570.7591129248,143671.48219939484,{"$f":"HM11*CustomRegion3!D16","v":0},{"$f":"HP11*CustomRegion3!$D16","v":121573.48296895935},{"$f":"HQ11*CustomRegion3!$D16","v":31898.420804262034},{"$f":"HM11*CustomRegion3!E16","v":0},{"$f":"HP11*CustomRegion3!$E16","v":82524.296994365199},{"$f":"HQ11*CustomRegion3!$E16","v":21652.704914066431},{"$f":"(HU11*'Default-Data'!$C$60/pv_dollar_index)/CustomRegion3!$F16","v":0},{"$f":"(HV11*'Default-Data'!$C$60/pv_dollar_index)/CustomRegion3!$F16","v":865.3311712200433},{"$f":"(HW11*'Default-Data'!$C$60/pv_dollar_index)/CustomRegion3!$F16","v":227.04538161228385},4087.2780535991433,839.15697811946575,{"$f":"HN11*CustomRegion3!D16","v":0},{"$f":"IA11*CustomRegion3!$D16","v":907.47108126013131},{"$f":"IB11*CustomRegion3!$D16","v":186.3124260925901},{"$f":"HN11*CustomRegion3!E16","v":0},{"$f":"IA11*CustomRegion3!$E16","v":615.99298790205444},{"$f":"IB11*CustomRegion3!$E16","v":126.46920701063824},{"$f":"(IF11*'Default-Data'!$C$60/pv_dollar_index)/CustomRegion3!$F16","v":0},{"$f":"(IG11*'Default-Data'!$C$60/pv_dollar_index)/CustomRegion3!$F16","v":6.459163580890789},{"$f":"(IH11*'Default-Data'!$C$60/pv_dollar_index)/CustomRegion3!$F16","v":1.3261275892269422}]
[null,54,"Sales",6556521.8278669231,0,null,12941270.759513866,8321646.6815262772,4992582.2835418219,9854364.9844733085,6336668.5695301471,1005323.4251813171,1984308.5995469014,1275973.2316398751,221.72402736439565,437.63915492767052,281.41582762515509,63866.432137449112,51967.977177845838,0,48632.251363401745,39571.957355021703,0,9792.7562808738785,7968.3445259227619,0,2.1597918711600004,1.7574179567097832,null,11,"TTL_C21T22: Pulp, paper, paper products, printing and publishing",0,0,null,1025225.7505308582,816119.78668771044,{"$f":"AF12*'Colombia-IO-Data'!AN18","v":0},{"$f":"AI12*'Colombia-IO-Data'!$AN18","v":327313.87819959986},{"$f":"AJ12*'Colombia-IO-Data'!$AN18","v":260554.64595760213},{"$f":"AK12*'Colombia-IO-Data'!$AO18","v":0},{"$f":"AL12*'Colombia-IO-Data'!$AO18","v":134348.200227742},{"$f":"AM12*'Colombia-IO-Data'!$AO18","v":106946.42078095408},{"$f":"(AN12*'Default-Data'!$F$19/pv_dollar_index)/'Colombia-IO-Data'!$AP18","v":0},{"$f":"(AO12*'Default-Data'!$F$19/pv_dollar_index)/'Colombia-IO-Data'!$AP18","v":34.200998692713945},{"$f":"(AP12*'Default-Data'!$F$19/pv_dollar_index)/'Colombia-IO-Data'!$AP18","v":27.225332316469405},4578.4677088137933,4162.7696105906098,{"$f":"'Colombia-IO-Data'!$AN18*Calculations!AG12","v":0},{"$f":"'Colombia-IO-Data'!$AN18*Calculations!AT12","v":1461.7229631693424},{"$f":"'Colombia-IO-Data'!$AN18*Calculations!AU12","v":1329.0070646278016},{"$f":"AV12*'Colombia-IO-Data'!$AO18","v":0},{"$f":"AW12*'Colombia-IO-Data'!$AO18","v":599.97409952048656},{"$f":"AX12*'Colombia-IO-Data'!$AO18","v":545.49995925873282},{"$f":"(AY12*'Default-Data'!$F$19/pv_dollar_index)/'Colombia-IO-Data'!$AP18","v":0},{"$f":"(AZ12*'Default-Data'!$F$19/pv_dollar_index)/'Colombia-IO-Data'!$AP18","v":0.15273530541219119},{"$f":"(BA12*'Default-Data'!$F$19/pv_dollar_index)/'Colombia-IO-Data'!$AP18","v":0.13886783270529413},null,"DOM_C21T22: Pulp, paper, paper products, printing and publishing",0,0,null,954127.87417544622,669230.30067520274,{"$f":"BG12*'Mexico-IO-Data'!AQ18","v":0},{"$f":"BJ12*'Mexico-IO-Data'!$AQ18","v":427116.88617987675},{"$f":"BK12*'Mexico-IO-Data'!$AQ18","v":299582.02657965187},{"$f":"BG12*'Mexico-IO-Data'!AR18","v":0},{"$f":"BJ12*'Mexico-IO-Data'!$AR18","v":132890.75557433104},{"$f":"BK12*'Mexico-IO-Data'!$AR18","v":93210.273713910021},{"$f":"(Calculations!BO12*'Default-Data'!$F$19/pv_dollar_index)/'Mexico-IO-Data'!$AS18","v":0},{"$f":"(Calculations!BP12*'Default-Data'!$F$19/pv_dollar_index)/'Mexico-IO-Data'!$AS18","v":19.511716588314723},{"$f":"(Calculations!BQ12*'Default-Data'!$F$19/pv_dollar_index)/'Mexico-IO-Data'!$AS18","v":13.685620462950769},4299.7651125207703,4179.2864228925737,{"$f":"BH12*'Mexico-IO-Data'!AQ18","v":0},{"$f":"BU12*'Mexico-IO-Data'!$AQ18","v":1924.7968075053222},{"$f":"BV12*'Mexico-IO-Data'!$AQ18","v":1870.86432721855},{"$f":"BH12*'Mexico-IO-Data'!AR18","v":0},{"$f":"BU12*'Mexico-IO-Data'!$AR18","v":598.8704974045902},{"$f":"BV12*'Mexico-IO-Data'!$AR18","v":582.09024757787529},{"$f":"(BZ12*'Default-Data'!$F$19/pv_dollar_index)/'Mexico-IO-Data'!$AS18","v":0},{"$f":"(CA12*'Default-Data'!$F$19/pv_dollar_index)/'Mexico-IO-Data'!$AS18","v":8.792930229014731E-2},{"$f":"(CB12*'Default-Data'!$F$19/pv_dollar_index)/'Mexico-IO-Data'!$AS18","v":8.5465538144289588E-2},null,"TTL_C21T22: Pulp, paper, paper products, printing and publishing",0,0,null,469761.84651396412,557029.57902562339,{"$f":"CH12*'Philippines-IO-Data'!AN18","v":0},{"$f":"'Philippines-IO-Data'!$AN18*Calculations!CK12","v":124364.38205288905},{"$f":"'Philippines-IO-Data'!$AN18*Calculations!CL12","v":147467.57297294328},{"$f":"CH12*'Philippines-IO-Data'!AO18","v":0},{"$f":"'Philippines-IO-Data'!$AO18*Calculations!CK12","v":36869.798880388618},{"$f":"'Philippines-IO-Data'!$AO18*Calculations!CL12","v":43719.10724872326},{"$f":"(CP12*'Default-Data'!$F$19/pv_dollar_index)/'Philippines-IO-Data'!$AP18","v":0},{"$f":"(CQ12*'Default-Data'!$F$19/pv_dollar_index)/'Philippines-IO-Data'!$AP18","v":12.419878017697703},{"$f":"(CR12*'Default-Data'!$F$19/pv_dollar_index)/'Philippines-IO-Data'!$AP18","v":14.727120721035599},2272.1971669099935,3262.8352123739483,{"$f":"CI12*'Philippines-IO-Data'!AN18","v":0},{"$f":"'Philippines-IO-Data'!$AN18*Calculations!CV12","v":601.53969221228908},{"$f":"'Philippines-IO-Data'!$AN18*Calculations!CW12","v":863.80042981040788},{"$f":"'Philippines-IO-Data'!AO18*Calculations!CI12","v":0},{"$f":"'Philippines-IO-Data'!$AO18*Calculations!CV12","v":178.33600830345415},{"$f":"'Philippines-IO-Data'!$AO18*Calculations!CW12","v":256.08737481089054},{"$f":"(DA12*'Default-Data'!$F$19/pv_dollar_index)/'Philippines-IO-Data'!$AP18","v":0},{"$f":"(DB12*'Default-Data'!$F$19/pv_dollar_index)/'Philippines-IO-Data'!$AP18","v":6.0073869035129367E-2},{"$f":"(DC12*'Default-Data'!$F$19/pv_dollar_index)/'Philippines-IO-Data'!$AP18","v":8.6265020521049507E-2},null,"DOM_C21T22: Pulp, paper, paper products, printing and publishing",0,0,null,2910220.8743247241,2332065.1059424626,{"$f":"DI12*'SouthAfrica-IO-Data'!AR18","v":0},{"$f":"DL12*'SouthAfrica-IO-Data'!$AR18","v":668502.51058242365},{"$f":"DM12*'SouthAfrica-IO-Data'!$AR18","v":535695.2085384049},{"$f":"DI12*'SouthAfrica-IO-Data'!AS18","v":0},{"$f":"DL12*'SouthAfrica-IO-Data'!$AS18","v":557286.13444441324},{"$f":"DM12*'SouthAfrica-IO-Data'!$AS18","v":446573.50912065606},{"$f":"(DQ12*'Default-Data'!$F$19/pv_dollar_index)/'SouthAfrica-IO-Data'!$AT18","v":0},{"$f":"(DR12*'Default-Data'!$F$19/pv_dollar_index)/'SouthAfrica-IO-Data'!$AT18","v":47.012333589875148},{"$f":"(DS12*'Default-Data'!$F$19/pv_dollar_index)/'SouthAfrica-IO-Data'!$AT18","v":37.672681026079857},16666.650779603493,13214.120419666287,{"$f":"DJ12*'SouthAfrica-IO-Data'!AR18","v":0},{"$f":"DW12*'SouthAfrica-IO-Data'!$AR18","v":3828.4715732274854},{"$f":"DX12*'SouthAfrica-IO-Data'!$AR18","v":3035.3959569254735},{"$f":"DJ12*'SouthAfrica-IO-Data'!AS18","v":0},{"$f":"DW12*'SouthAfrica-IO-Data'!$AS18","v":3191.5424251966333},{"$f":"DX12*'SouthAfrica-IO-Data'!$AS18","v":2530.4079679064002},{"$f":"(EB12*'Default-Data'!$F$19/pv_dollar_index)/'SouthAfrica-IO-Data'!$AT18","v":0},{"$f":"(EC12*'Default-Data'!$F$19/pv_dollar_index)/'SouthAfrica-IO-Data'!$AT18","v":0.26923665938533997},{"$f":"(ED12*'Default-Data'!$F$19/pv_dollar_index)/'SouthAfrica-IO-Data'!$AT18","v":0.21346374178911057},null,"TOBAC",0,0,null,21339.421334578965,44561.927435926045,{"$f":"EJ12*'Zambia-IO-Data'!BO16","v":0},{"$f":"EM12*'Zambia-IO-Data'!$BO16","v":6129.7084001298181},{"$f":"EN12*'Zambia-IO-Data'!$BO16","v":12800.329336360643},{"$f":"EJ12*'Zambia-IO-Data'!$BN16","v":0},{"$f":"EM12*'Zambia-IO-Data'!$BN16","v":4281.6465093744873},{"$f":"EN12*'Zambia-IO-Data'!$BN16","v":8941.1244131469084},{"$f":"(ER12*'Default-Data'!$F$19/pv_dollar_index)/'Zambia-IO-Data'!$BP16","v":0},{"$f":"(ES12*'Default-Data'!$F$19/pv_dollar_index)/'Zambia-IO-Data'!$BP16","v":44.896379898397903},{"$f":"(ET12*'Default-Data'!$F$19/pv_dollar_index)/'Zambia-IO-Data'!$BP16","v":93.754614607390437},168.71494175348712,260.3059084815344,{"$f":"EK12*'Zambia-IO-Data'!BO16","v":0},{"$f":"EX12*'Zambia-IO-Data'!$BO16","v":48.463047778055767},{"$f":"EY12*'Zambia-IO-Data'!$BO16","v":74.77237966322609},{"$f":"EK12*'Zambia-IO-Data'!BN16","v":0},{"$f":"EX12*'Zambia-IO-Data'!$BN16","v":33.851796171603681},{"$f":"EY12*'Zambia-IO-Data'!$BN16","v":52.229058461556768},{"$f":"(FC12*'Default-Data'!$F$19/pv_dollar_index)/'Zambia-IO-Data'!$BP16","v":0},{"$f":"(FD12*'Default-Data'!$F$19/pv_dollar_index)/'Zambia-IO-Data'!$BP16","v":0.35496230196394329},{"$f":"(FE12*'Default-Data'!$F$19/pv_dollar_index)/'Zambia-IO-Data'!$BP16","v":0.54766213074611225},null,"TTL_C21T22: Pulp, paper, paper products, printing and publishing",0,0,null,953091.13355489087,1057633.504868099,{"$f":"FK12*CustomRegion1!C14","v":0},{"$f":"FN12*CustomRegion1!$C14","v":252320.59764802144},{"$f":"FO12*CustomRegion1!$C14","v":279997.06286798761},{"$f":"FK12*CustomRegion1!D14","v":0},{"$f":"FN12*CustomRegion1!$D14","v":74804.453936864913},{"$f":"FO12*CustomRegion1!$D14","v":83009.582202176927},{"$f":"(FS12*'Default-Data'!$C$58/pv_dollar_index)/CustomRegion1!$E14","v":0},{"$f":"(FT12*'Default-Data'!$C$58/pv_dollar_index)/CustomRegion1!$E14","v":25.198461106076863},{"$f":"(FU12*'Default-Data'!$C$58/pv_dollar_index)/CustomRegion1!$E14","v":27.962422268581165},5059.6398234935623,6228.1287502040814,{"$f":"FL12*CustomRegion1!C14","v":0},{"$f":"FY12*CustomRegion1!$C14","v":1339.4850704212326},{"$f":"FZ12*CustomRegion1!$C14","v":1648.8299105447643},{"$f":"FL12*CustomRegion1!D14","v":0},{"$f":"FY12*CustomRegion1!$D14","v":397.11165153951532},{"$f":"FZ12*CustomRegion1!$D14","v":488.82184903955289},{"$f":"(GD12*'Default-Data'!$C$58/pv_dollar_index)/CustomRegion1!$E14","v":0},{"$f":"(GE12*'Default-Data'!$C$58/pv_dollar_index)/CustomRegion1!$E14","v":0.13377014307910082},{"$f":"(GF12*'Default-Data'!$C$58/pv_dollar_index)/CustomRegion1!$E14","v":0.16466343516416537},null,"C21T22 Pulp, paper, paper products, printing and publishing",0,0,null,3889499.2514523459,1157698.3192517241,{"$f":"GL12*CustomRegion2!$C$13","v":0},{"$f":"GO12*CustomRegion2!C$13","v":2396637.3272691984},{"$f":"GP12*CustomRegion2!D$13","v":128107.01786928467},{"$f":"GL12*CustomRegion2!D18","v":0},{"$f":"GO12*CustomRegion2!$D18","v":522657.22955991013},{"$f":"GP12*CustomRegion2!$D18","v":155567.42837277389},{"$f":"(GT12*'Default-Data'!$C$59/pv_dollar_index)/CustomRegion2!$E18","v":0},{"$f":"(GU12*'Default-Data'!$C$59/pv_dollar_index)/CustomRegion2!$E18","v":76.739271230214399},{"$f":"(GV12*'Default-Data'!$C$59/pv_dollar_index)/CustomRegion2!$E18","v":22.841224430278018},35539.386909397348,9923.1665137240343,{"$f":"GM12*CustomRegion2!C18","v":0},{"$f":"GZ12*CustomRegion2!$C18","v":12412.476070778892},{"$f":"HA12*CustomRegion2!$C18","v":3465.7622882454675},{"$f":"GM12*CustomRegion2!D18","v":0},{"$f":"GZ12*CustomRegion2!$D18","v":4775.657816462478},{"$f":"HA12*CustomRegion2!$D18","v":1333.4402151094539},{"$f":"(HE12*'Default-Data'!$C$59/pv_dollar_index)/CustomRegion2!$E18","v":0},{"$f":"(HF12*'Default-Data'!$C$59/pv_dollar_index)/CustomRegion2!$E18","v":0.70118708735511592},{"$f":"(HG12*'Default-Data'!$C$59/pv_dollar_index)/CustomRegion2!$E18","v":0.19578267466561552},null,"TOBAC",0,0,null,21339.421334578965,44561.927435926045,{"$f":"HM12*CustomRegion3!D17","v":0},{"$f":"HP12*CustomRegion3!$D17","v":6129.7084001298181},{"$f":"HQ12*CustomRegion3!$D17","v":12800.329336360643},{"$f":"HM12*CustomRegion3!E17","v":0},{"$f":"HP12*CustomRegion3!$E17","v":4281.6465093744873},{"$f":"HQ12*CustomRegion3!$E17","v":8941.1244131469084},{"$f":"(HU12*'Default-Data'!$C$60/pv_dollar_index)/CustomRegion3!$F17","v":0},{"$f":"(HV12*'Default-Data'!$C$60/pv_dollar_index)/CustomRegion3!$F17","v":44.896379898397903},{"$f":"(HW12*'Default-Data'!$C$60/pv_dollar_index)/CustomRegion3!$F17","v":93.754614607390437},168.71494175348712,260.3059084815344,{"$f":"HN12*CustomRegion3!D17","v":0},{"$f":"IA12*CustomRegion3!$D17","v":48.463047778055767},{"$f":"IB12*CustomRegion3!$D17","v":74.77237966322609},{"$f":"HN12*CustomRegion3!E17","v":0},{"$f":"IA12*CustomRegion3!$E17","v":33.851796171603681},{"$f":"IB12*CustomRegion3!$E17","v":52.229058461556768},{"$f":"(IF12*'Default-Data'!$C$60/pv_dollar_index)/CustomRegion3!$F17","v":0},{"$f":"(IG12*'Default-Data'!$C$60/pv_dollar_index)/CustomRegion3!$F17","v":0.35496230196394329},{"$f":"(IH12*'Default-Data'!$C$60/pv_dollar_index)/CustomRegion3!$F17","v":0.54766213074611225}]
[null,55,"Transportation and Warehousing",2.9802322387695313E-8,0,null,3296676.6359149553,4808154.8574440749,2.1782371212027817E-8,2409524.778483944,3514256.7947323248,7.0272804059070042E-9,777344.49103676446,1133745.6181681235,1.0408051693541917E-12,115.13190279983462,167.91820333939614,14944.144514348667,30026.518964558254,0,10922.60190407614,21946.235390066198,0,3523.7755152962168,7080.1451521896915,0,0.5219037180985614,1.0486349268178854,null,12,"TTL_C23: Coke, refined petroleum products and nuclear fuel",0,0,null,1970341.1387233078,1263994.1597168003,{"$f":"AF13*'Colombia-IO-Data'!AN19","v":0},{"$f":"AI13*'Colombia-IO-Data'!$AN19","v":1063637.6904141614},{"$f":"AJ13*'Colombia-IO-Data'!$AN19","v":682334.54720906727},{"$f":"AK13*'Colombia-IO-Data'!$AO19","v":0},{"$f":"AL13*'Colombia-IO-Data'!$AO19","v":55745.761753341503},{"$f":"AM13*'Colombia-IO-Data'!$AO19","v":35761.481045279419},{"$f":"(AN13*'Default-Data'!$F$19/pv_dollar_index)/'Colombia-IO-Data'!$AP19","v":0},{"$f":"(AO13*'Default-Data'!$F$19/pv_dollar_index)/'Colombia-IO-Data'!$AP19","v":14.191189175727297},{"$f":"(AP13*'Default-Data'!$F$19/pv_dollar_index)/'Colombia-IO-Data'!$AP19","v":9.1037942034638331},12849.759818860421,6447.2355184380758,{"$f":"'Colombia-IO-Data'!$AN19*Calculations!AG13","v":0},{"$f":"'Colombia-IO-Data'!$AN19*Calculations!AT13","v":6936.6104110099986},{"$f":"'Colombia-IO-Data'!$AN19*Calculations!AU13","v":3480.3733026814784},{"$f":"AV13*'Colombia-IO-Data'!$AO19","v":0},{"$f":"AW13*'Colombia-IO-Data'!$AO19","v":363.55108025303508},{"$f":"AX13*'Colombia-IO-Data'!$AO19","v":182.40803489055153},{"$f":"(AY13*'Default-Data'!$F$19/pv_dollar_index)/'Colombia-IO-Data'!$AP19","v":0},{"$f":"(AZ13*'Default-Data'!$F$19/pv_dollar_index)/'Colombia-IO-Data'!$AP19","v":9.2549137237353918E-2},{"$f":"(BA13*'Default-Data'!$F$19/pv_dollar_index)/'Colombia-IO-Data'!$AP19","v":4.6435582704174236E-2},null,"DOM_C23: Coke, refined petroleum products and nuclear fuel",0,0,null,7354721.4049502658,1872422.8105042661,{"$f":"BG13*'Mexico-IO-Data'!AQ19","v":0},{"$f":"BJ13*'Mexico-IO-Data'!$AQ19","v":922663.00501736999},{"$f":"BK13*'Mexico-IO-Data'!$AQ19","v":234898.80335101805},{"$f":"BG13*'Mexico-IO-Data'!AR19","v":0},{"$f":"BJ13*'Mexico-IO-Data'!$AR19","v":236170.81237809907},{"$f":"BK13*'Mexico-IO-Data'!$AR19","v":60126.222588721736},{"$f":"(Calculations!BO13*'Default-Data'!$F$19/pv_dollar_index)/'Mexico-IO-Data'!$AS19","v":0},{"$f":"(Calculations!BP13*'Default-Data'!$F$19/pv_dollar_index)/'Mexico-IO-Data'!$AS19","v":5.6556254544316626},{"$f":"(Calculations!BQ13*'Default-Data'!$F$19/pv_dollar_index)/'Mexico-IO-Data'!$AS19","v":1.4398536022613639},16402.402217991195,11693.121518794967,{"$f":"BH13*'Mexico-IO-Data'!AQ19","v":0},{"$f":"BU13*'Mexico-IO-Data'!$AQ19","v":2057.7108073419499},{"$f":"BV13*'Mexico-IO-Data'!$AQ19","v":1466.923088521474},{"$f":"BH13*'Mexico-IO-Data'!AR19","v":0},{"$f":"BU13*'Mexico-IO-Data'!$AR19","v":526.70501620469065},{"$f":"BV13*'Mexico-IO-Data'!$AR19","v":375.48315650282791},{"$f":"(BZ13*'Default-Data'!$F$19/pv_dollar_index)/'Mexico-IO-Data'!$AS19","v":0},{"$f":"(CA13*'Default-Data'!$F$19/pv_dollar_index)/'Mexico-IO-Data'!$AS19","v":1.261310094430758E-2},{"$f":"(CB13*'Default-Data'!$F$19/pv_dollar_index)/'Mexico-IO-Data'!$AS19","v":8.9917635301519118E-3},null,"TTL_C23: Coke, refined petroleum products and nuclear fuel",0,0,null,14039228.518621435,2340385.9269491434,{"$f":"CH13*'Philippines-IO-Data'!AN19","v":0},{"$f":"'Philippines-IO-Data'!$AN19*Calculations!CK13","v":2384596.7792825545},{"$f":"'Philippines-IO-Data'!$AN19*Calculations!CL13","v":397520.1868306899},{"$f":"CH13*'Philippines-IO-Data'!AO19","v":0},{"$f":"'Philippines-IO-Data'!$AO19*Calculations!CK13","v":324207.32955240353},{"$f":"'Philippines-IO-Data'!$AO19*Calculations!CL13","v":54046.436418624151},{"$f":"(CP13*'Default-Data'!$F$19/pv_dollar_index)/'Philippines-IO-Data'!$AP19","v":0},{"$f":"(CQ13*'Default-Data'!$F$19/pv_dollar_index)/'Philippines-IO-Data'!$AP19","v":109.21175617332062},{"$f":"(CR13*'Default-Data'!$F$19/pv_dollar_index)/'Philippines-IO-Data'!$AP19","v":18.205961735462861},44564.951716504933,13708.955323973671,{"$f":"CI13*'Philippines-IO-Data'!AN19","v":0},{"$f":"'Philippines-IO-Data'!$AN19*Calculations!CV13","v":7569.4643898064569},{"$f":"'Philippines-IO-Data'!$AN19*Calculations!CW13","v":2328.4990816636432},{"$f":"'Philippines-IO-Data'!AO19*Calculations!CI13","v":0},{"$f":"'Philippines-IO-Data'!$AO19*Calculations!CV13","v":1029.1366059378452},{"$f":"'Philippines-IO-Data'!$AO19*Calculations!CW13","v":316.5803441865433},{"$f":"(DA13*'Default-Data'!$F$19/pv_dollar_index)/'Philippines-IO-Data'!$AP19","v":0},{"$f":"(DB13*'Default-Data'!$F$19/pv_dollar_index)/'Philippines-IO-Data'!$AP19","v":0.346672656142266},{"$f":"(DC13*'Default-Data'!$F$19/pv_dollar_index)/'Philippines-IO-Data'!$AP19","v":0.10664254693531917},null,"DOM_C23: Coke, refined petroleum products and nuclear fuel",0,0,null,2425045.5256871651,3445264.3541020905,{"$f":"DI13*'SouthAfrica-IO-Data'!AR19","v":0},{"$f":"DL13*'SouthAfrica-IO-Data'!$AR19","v":514527.25970495428},{"$f":"DM13*'SouthAfrica-IO-Data'!$AR19","v":730989.33949827496},{"$f":"DI13*'SouthAfrica-IO-Data'!AS19","v":0},{"$f":"DL13*'SouthAfrica-IO-Data'!$AS19","v":97563.351553865665},{"$f":"DM13*'SouthAfrica-IO-Data'!$AS19","v":138608.34108671726},{"$f":"(DQ13*'Default-Data'!$F$19/pv_dollar_index)/'SouthAfrica-IO-Data'!$AT19","v":0},{"$f":"(DR13*'Default-Data'!$F$19/pv_dollar_index)/'SouthAfrica-IO-Data'!$AT19","v":8.2303874902060681},{"$f":"(DS13*'Default-Data'!$F$19/pv_dollar_index)/'SouthAfrica-IO-Data'!$AT19","v":11.692918891664837},17914.548123752142,19521.812635797,{"$f":"DJ13*'SouthAfrica-IO-Data'!AR19","v":0},{"$f":"DW13*'SouthAfrica-IO-Data'!$AR19","v":3800.9692013327572},{"$f":"DX13*'SouthAfrica-IO-Data'!$AR19","v":4141.9860590550988},{"$f":"DJ13*'SouthAfrica-IO-Data'!AS19","v":0},{"$f":"DW13*'SouthAfrica-IO-Data'!$AS19","v":720.73012156380616},{"$f":"DX13*'SouthAfrica-IO-Data'!$AS19","v":785.39287158960246},{"$f":"(EB13*'Default-Data'!$F$19/pv_dollar_index)/'SouthAfrica-IO-Data'!$AT19","v":0},{"$f":"(EC13*'Default-Data'!$F$19/pv_dollar_index)/'SouthAfrica-IO-Data'!$AT19","v":6.0800373109962273E-2},{"$f":"(ED13*'Default-Data'!$F$19/pv_dollar_index)/'SouthAfrica-IO-Data'!$AT19","v":6.6255285025332497E-2},null,"COFFEE",0,0,null,374.47041233374597,27537.24285674929,{"$f":"EJ13*'Zambia-IO-Data'!BO17","v":0},{"$f":"EM13*'Zambia-IO-Data'!$BO17","v":119.53772733067092},{"$f":"EN13*'Zambia-IO-Data'!$BO17","v":8790.3858879905474},{"$f":"EJ13*'Zambia-IO-Data'!$BN17","v":0},{"$f":"EM13*'Zambia-IO-Data'!$BN17","v":95.062031213607128},{"$f":"EN13*'Zambia-IO-Data'!$BN17","v":6990.5289009907674},{"$f":"(ER13*'Default-Data'!$F$19/pv_dollar_index)/'Zambia-IO-Data'!$BP17","v":0},{"$f":"(ES13*'Default-Data'!$F$19/pv_dollar_index)/'Zambia-IO-Data'!$BP17","v":0.99679902531303899},{"$f":"(ET13*'Default-Data'!$F$19/pv_dollar_index)/'Zambia-IO-Data'!$BP17","v":73.301109875009786},2.521797401873576,160.86771241426541,{"$f":"EK13*'Zambia-IO-Data'!BO17","v":0},{"$f":"EX13*'Zambia-IO-Data'!$BO17","v":0.80500333345346187},{"$f":"EY13*'Zambia-IO-Data'!$BO17","v":51.351882844476265},{"$f":"EK13*'Zambia-IO-Data'!BN17","v":0},{"$f":"EX13*'Zambia-IO-Data'!$BN17","v":0.64017656785562771},{"$f":"EY13*'Zambia-IO-Data'!$BN17","v":40.837436003240605},{"$f":"(FC13*'Default-Data'!$F$19/pv_dollar_index)/'Zambia-IO-Data'!$BP17","v":0},{"$f":"(FD13*'Default-Data'!$F$19/pv_dollar_index)/'Zambia-IO-Data'!$BP17","v":6.7127471475214506E-3},{"$f":"(FE13*'Default-Data'!$F$19/pv_dollar_index)/'Zambia-IO-Data'!$BP17","v":0.42821214616006548},null,"TTL_C23: Coke, refined petroleum products and nuclear fuel",0,0,null,21193824.8849601,4543065.2473060787,{"$f":"FK13*CustomRegion1!C15","v":0},{"$f":"FN13*CustomRegion1!$C15","v":3599822.2049253243},{"$f":"FO13*CustomRegion1!$C15","v":771650.5748465691},{"$f":"FK13*CustomRegion1!D15","v":0},{"$f":"FN13*CustomRegion1!$D15","v":489428.13060136},{"$f":"FO13*CustomRegion1!$D15","v":104912.81980757034},{"$f":"(FS13*'Default-Data'!$C$58/pv_dollar_index)/CustomRegion1!$E15","v":0},{"$f":"(FT13*'Default-Data'!$C$58/pv_dollar_index)/CustomRegion1!$E15","v":164.86766581555707},{"$f":"(FU13*'Default-Data'!$C$58/pv_dollar_index)/CustomRegion1!$E15","v":35.340697917281098},78112.115981725437,26752.930150722415,{"$f":"FL13*CustomRegion1!C15","v":0},{"$f":"FY13*CustomRegion1!$C15","v":13267.531043170025},{"$f":"FZ13*CustomRegion1!$C15","v":4544.0496241775027},{"$f":"FL13*CustomRegion1!D15","v":0},{"$f":"FY13*CustomRegion1!$D15","v":1803.8398972231798},{"$f":"FZ13*CustomRegion1!$D15","v":617.80432096844152},{"$f":"(GD13*'Default-Data'!$C$58/pv_dollar_index)/CustomRegion1!$E15","v":0},{"$f":"(GE13*'Default-Data'!$C$58/pv_dollar_index)/CustomRegion1!$E15","v":0.60763747477030217},{"$f":"(GF13*'Default-Data'!$C$58/pv_dollar_index)/CustomRegion1!$E15","v":0.20811218228033163},null,"C23 Coke, refined petroleum products and nuclear fuel",0,0,null,2576248.530579763,1883951.2073512594,{"$f":"GL13*CustomRegion2!$C$13","v":0},{"$f":"GO13*CustomRegion2!C$13","v":1587436.5807897705},{"$f":"GP13*CustomRegion2!D$13","v":208471.72961346494},{"$f":"GL13*CustomRegion2!D19","v":0},{"$f":"GO13*CustomRegion2!$D19","v":182752.00872688193},{"$f":"GP13*CustomRegion2!$D19","v":133642.33434784191},{"$f":"(GT13*'Default-Data'!$C$59/pv_dollar_index)/CustomRegion2!$E19","v":0},{"$f":"(GU13*'Default-Data'!$C$59/pv_dollar_index)/CustomRegion2!$E19","v":4.3763956349930311},{"$f":"(GV13*'Default-Data'!$C$59/pv_dollar_index)/CustomRegion2!$E19","v":3.2003573189953274},17913.561672020685,16148.21514672432,{"$f":"GM13*CustomRegion2!C19","v":0},{"$f":"GZ13*CustomRegion2!$C19","v":2995.4382396621913},{"$f":"HA13*CustomRegion2!$C19","v":2700.2436499460182},{"$f":"GM13*CustomRegion2!D19","v":0},{"$f":"GZ13*CustomRegion2!$D19","v":1270.7389602190028},{"$f":"HA13*CustomRegion2!$D19","v":1145.5101168960612},{"$f":"(HE13*'Default-Data'!$C$59/pv_dollar_index)/CustomRegion2!$E19","v":0},{"$f":"(HF13*'Default-Data'!$C$59/pv_dollar_index)/CustomRegion2!$E19","v":3.0430617301882453E-2},{"$f":"(HG13*'Default-Data'!$C$59/pv_dollar_index)/CustomRegion2!$E19","v":2.7431739384689239E-2},null,"COFFEE",0,0,null,374.47041233374597,27537.24285674929,{"$f":"HM13*CustomRegion3!D18","v":0},{"$f":"HP13*CustomRegion3!$D18","v":119.53772733067092},{"$f":"HQ13*CustomRegion3!$D18","v":8790.3858879905474},{"$f":"HM13*CustomRegion3!E18","v":0},{"$f":"HP13*CustomRegion3!$E18","v":95.062031213607128},{"$f":"HQ13*CustomRegion3!$E18","v":6990.5289009907674},{"$f":"(HU13*'Default-Data'!$C$60/pv_dollar_index)/CustomRegion3!$F18","v":0},{"$f":"(HV13*'Default-Data'!$C$60/pv_dollar_index)/CustomRegion3!$F18","v":0.99679902531303899},{"$f":"(HW13*'Default-Data'!$C$60/pv_dollar_index)/CustomRegion3!$F18","v":73.301109875009786},2.521797401873576,160.86771241426541,{"$f":"HN13*CustomRegion3!D18","v":0},{"$f":"IA13*CustomRegion3!$D18","v":0.80500333345346187},{"$f":"IB13*CustomRegion3!$D18","v":51.351882844476265},{"$f":"HN13*CustomRegion3!E18","v":0},{"$f":"IA13*CustomRegion3!$E18","v":0.64017656785562771},{"$f":"IB13*CustomRegion3!$E18","v":40.837436003240605},{"$f":"(IF13*'Default-Data'!$C$60/pv_dollar_index)/CustomRegion3!$F18","v":0},{"$f":"(IG13*'Default-Data'!$C$60/pv_dollar_index)/CustomRegion3!$F18","v":6.7127471475214506E-3},{"$f":"(IH13*'Default-Data'!$C$60/pv_dollar_index)/CustomRegion3!$F18","v":0.42821214616006548}]
[null,56,"Information",0,0,null,1435896.0431840841,1874025.9451929431,0,876098.81919760874,1143419.7660218321,0,223963.79854730432,292301.08353171765,0,19.575953539828536,25.549095291174314,9677.532586648389,11703.132958850338,0,5904.6578700141181,7140.5593843863908,0,1509.452560273701,1825.3954558966968,0,0.13193638160344046,0.15955193146494331,null,13,"TTL_C24: Chemicals and chemical products",0,0,null,1852071.8932439238,1495414.0175734083,{"$f":"AF14*'Colombia-IO-Data'!AN20","v":0},{"$f":"AI14*'Colombia-IO-Data'!$AN20","v":572818.29516237532},{"$f":"AJ14*'Colombia-IO-Data'!$AN20","v":462509.31793364306},{"$f":"AK14*'Colombia-IO-Data'!$AO20","v":0},{"$f":"AL14*'Colombia-IO-Data'!$AO20","v":210156.69010209333},{"$f":"AM14*'Colombia-IO-Data'!$AO20","v":169686.31801600943},{"$f":"(AN14*'Default-Data'!$F$19/pv_dollar_index)/'Colombia-IO-Data'!$AP20","v":0},{"$f":"(AO14*'Default-Data'!$F$19/pv_dollar_index)/'Colombia-IO-Data'!$AP20","v":53.499553185399506},{"$f":"(AP14*'Default-Data'!$F$19/pv_dollar_index)/'Colombia-IO-Data'!$AP20","v":43.197017383181958},13425.45715949055,7627.6352186861404,{"$f":"'Colombia-IO-Data'!$AN20*Calculations!AG14","v":0},{"$f":"'Colombia-IO-Data'!$AN20*Calculations!AT14","v":4152.2942548440478},{"$f":"'Colombia-IO-Data'!$AN20*Calculations!AU14","v":2359.1141456369173},{"$f":"AV14*'Colombia-IO-Data'!$AO20","v":0},{"$f":"AW14*'Colombia-IO-Data'!$AO20","v":1523.4017912793797},{"$f":"AX14*'Colombia-IO-Data'!$AO20","v":865.51638557484227},{"$f":"(AY14*'Default-Data'!$F$19/pv_dollar_index)/'Colombia-IO-Data'!$AP20","v":0},{"$f":"(AZ14*'Default-Data'!$F$19/pv_dollar_index)/'Colombia-IO-Data'!$AP20","v":0.38781213729475378},{"$f":"(BA14*'Default-Data'!$F$19/pv_dollar_index)/'Colombia-IO-Data'!$AP20","v":0.2203343604260295},null,"DOM_C24: Chemicals and chemical products",0,0,null,8626452.0902482625,1784072.4060054347,{"$f":"BG14*'Mexico-IO-Data'!AQ20","v":0},{"$f":"BJ14*'Mexico-IO-Data'!$AQ20","v":2530554.7271599732},{"$f":"BK14*'Mexico-IO-Data'!$AQ20","v":523354.53943068156},{"$f":"BG14*'Mexico-IO-Data'!AR20","v":0},{"$f":"BJ14*'Mexico-IO-Data'!$AR20","v":553951.35857869254},{"$f":"BK14*'Mexico-IO-Data'!$AR20","v":114564.98254093071},{"$f":"(Calculations!BO14*'Default-Data'!$F$19/pv_dollar_index)/'Mexico-IO-Data'!$AS20","v":0},{"$f":"(Calculations!BP14*'Default-Data'!$F$19/pv_dollar_index)/'Mexico-IO-Data'!$AS20","v":47.169683268424457},{"$f":"(Calculations!BQ14*'Default-Data'!$F$19/pv_dollar_index)/'Mexico-IO-Data'!$AS20","v":9.7553582212951735},13958.041442310594,11141.380741955509,{"$f":"BH14*'Mexico-IO-Data'!AQ20","v":0},{"$f":"BU14*'Mexico-IO-Data'!$AQ20","v":4094.5671968274219},{"$f":"BV14*'Mexico-IO-Data'!$AQ20","v":3268.3046759763788},{"$f":"BH14*'Mexico-IO-Data'!AR20","v":0},{"$f":"BU14*'Mexico-IO-Data'!$AR20","v":896.3216788517658},{"$f":"BV14*'Mexico-IO-Data'!$AR20","v":715.44859159718783},{"$f":"(BZ14*'Default-Data'!$F$19/pv_dollar_index)/'Mexico-IO-Data'!$AS20","v":0},{"$f":"(CA14*'Default-Data'!$F$19/pv_dollar_index)/'Mexico-IO-Data'!$AS20","v":7.6322964179632413E-2},{"$f":"(CB14*'Default-Data'!$F$19/pv_dollar_index)/'Mexico-IO-Data'!$AS20","v":6.0921384049075586E-2},null,"TTL_C24: Chemicals and chemical products",0,0,null,1193323.2562806837,1149073.1143628557,{"$f":"CH14*'Philippines-IO-Data'!AN20","v":0},{"$f":"'Philippines-IO-Data'!$AN20*Calculations!CK14","v":322042.60535723512},{"$f":"'Philippines-IO-Data'!$AN20*Calculations!CL14","v":310100.802567721},{"$f":"CH14*'Philippines-IO-Data'!AO20","v":0},{"$f":"'Philippines-IO-Data'!$AO20*Calculations!CK14","v":83514.14490233692},{"$f":"'Philippines-IO-Data'!$AO20*Calculations!CL14","v":80417.320345684479},{"$f":"(CP14*'Default-Data'!$F$19/pv_dollar_index)/'Philippines-IO-Data'!$AP20","v":0},{"$f":"(CQ14*'Default-Data'!$F$19/pv_dollar_index)/'Philippines-IO-Data'!$AP20","v":28.13238813166052},{"$f":"(CR14*'Default-Data'!$F$19/pv_dollar_index)/'Philippines-IO-Data'!$AP20","v":27.089198735357829},5232.5188890675372,6730.7668395161791,{"$f":"CI14*'Philippines-IO-Data'!AN20","v":0},{"$f":"'Philippines-IO-Data'!$AN20*Calculations!CV14","v":1412.1018816546898},{"$f":"'Philippines-IO-Data'!$AN20*Calculations!CW14","v":1816.4346313049898},{"$f":"'Philippines-IO-Data'!AO20*Calculations!CI14","v":0},{"$f":"'Philippines-IO-Data'!$AO20*Calculations!CV14","v":366.1952772694612},{"$f":"'Philippines-IO-Data'!$AO20*Calculations!CW14","v":471.04942787353383},{"$f":"(DA14*'Default-Data'!$F$19/pv_dollar_index)/'Philippines-IO-Data'!$AP20","v":0},{"$f":"(DB14*'Default-Data'!$F$19/pv_dollar_index)/'Philippines-IO-Data'!$AP20","v":0.12335572236502958},{"$f":"(DC14*'Default-Data'!$F$19/pv_dollar_index)/'Philippines-IO-Data'!$AP20","v":0.15867665710559248},null,"DOM_C24: Chemicals and chemical products",0,0,null,1324367.98023824,1218830.1899489241,{"$f":"DI14*'SouthAfrica-IO-Data'!AR20","v":0},{"$f":"DL14*'SouthAfrica-IO-Data'!$AR20","v":306881.18811697362},{"$f":"DM14*'SouthAfrica-IO-Data'!$AR20","v":282426.07974943437},{"$f":"DI14*'SouthAfrica-IO-Data'!AS20","v":0},{"$f":"DL14*'SouthAfrica-IO-Data'!$AS20","v":213674.77684014969},{"$f":"DM14*'SouthAfrica-IO-Data'!$AS20","v":196647.21038976221},{"$f":"(DQ14*'Default-Data'!$F$19/pv_dollar_index)/'SouthAfrica-IO-Data'!$AT20","v":0},{"$f":"(DR14*'Default-Data'!$F$19/pv_dollar_index)/'SouthAfrica-IO-Data'!$AT20","v":18.025479673141273},{"$f":"(DS14*'Default-Data'!$F$19/pv_dollar_index)/'SouthAfrica-IO-Data'!$AT20","v":16.5890440887759},9544.4034673840924,6906.2260998073489,{"$f":"DJ14*'SouthAfrica-IO-Data'!AR20","v":0},{"$f":"DW14*'SouthAfrica-IO-Data'!$AR20","v":2211.6193683659558},{"$f":"DX14*'SouthAfrica-IO-Data'!$AR20","v":1600.303618433961},{"$f":"DJ14*'SouthAfrica-IO-Data'!AS20","v":0},{"$f":"DW14*'SouthAfrica-IO-Data'!$AS20","v":1539.903041599345},{"$f":"DX14*'SouthAfrica-IO-Data'!$AS20","v":1114.2570212385322},{"$f":"(EB14*'Default-Data'!$F$19/pv_dollar_index)/'SouthAfrica-IO-Data'!$AT20","v":0},{"$f":"(EC14*'Default-Data'!$F$19/pv_dollar_index)/'SouthAfrica-IO-Data'!$AT20","v":0.12990532333969779},{"$f":"(ED14*'Default-Data'!$F$19/pv_dollar_index)/'SouthAfrica-IO-Data'!$AT20","v":9.3998073071655655E-2},null,"WHEAT",0,0,null,2098.9311519716207,154348.04718276652,{"$f":"EJ14*'Zambia-IO-Data'!BO18","v":0},{"$f":"EM14*'Zambia-IO-Data'!$BO18","v":453.50113852153675},{"$f":"EN14*'Zambia-IO-Data'!$BO18","v":33348.885722244457},{"$f":"EJ14*'Zambia-IO-Data'!$BN18","v":0},{"$f":"EM14*'Zambia-IO-Data'!$BN18","v":274.64546596987623},{"$f":"EN14*'Zambia-IO-Data'!$BN18","v":20196.465853694906},{"$f":"(ER14*'Default-Data'!$F$19/pv_dollar_index)/'Zambia-IO-Data'!$BP18","v":0},{"$f":"(ES14*'Default-Data'!$F$19/pv_dollar_index)/'Zambia-IO-Data'!$BP18","v":2.8798704308164544},{"$f":"(ET14*'Default-Data'!$F$19/pv_dollar_index)/'Zambia-IO-Data'!$BP18","v":211.77558716891269},14.13483936625706,901.67404903483623,{"$f":"EK14*'Zambia-IO-Data'!BO18","v":0},{"$f":"EX14*'Zambia-IO-Data'!$BO18","v":3.0540142964647772},{"$f":"EY14*'Zambia-IO-Data'!$BO18","v":194.81830427287449},{"$f":"EK14*'Zambia-IO-Data'!BN18","v":0},{"$f":"EX14*'Zambia-IO-Data'!$BN18","v":1.8495459179346674},{"$f":"EY14*'Zambia-IO-Data'!$BN18","v":117.98418881795982},{"$f":"(FC14*'Default-Data'!$F$19/pv_dollar_index)/'Zambia-IO-Data'!$BP18","v":0},{"$f":"(FD14*'Default-Data'!$F$19/pv_dollar_index)/'Zambia-IO-Data'!$BP18","v":1.9393921471405409E-2},{"$f":"(FE14*'Default-Data'!$F$19/pv_dollar_index)/'Zambia-IO-Data'!$BP18","v":1.2371556016074037},null,"TTL_C24: Chemicals and chemical products",0,0,null,3535380.3655115184,2952238.7754224106,{"$f":"FK14*CustomRegion1!C16","v":0},{"$f":"FN14*CustomRegion1!$C16","v":954094.45667448279},{"$f":"FO14*CustomRegion1!$C16","v":796721.81185586448},{"$f":"FK14*CustomRegion1!D16","v":0},{"$f":"FN14*CustomRegion1!$D16","v":247421.86710619048},{"$f":"FO14*CustomRegion1!$D16","v":206610.98791066598},{"$f":"(FS14*'Default-Data'!$C$58/pv_dollar_index)/CustomRegion1!$E16","v":0},{"$f":"(FT14*'Default-Data'!$C$58/pv_dollar_index)/CustomRegion1!$E16","v":83.345976969904953},{"$f":"(FU14*'Default-Data'!$C$58/pv_dollar_index)/CustomRegion1!$E16","v":69.598515448680928},17504.743137269845,17384.966635459135,{"$f":"FL14*CustomRegion1!C16","v":0},{"$f":"FY14*CustomRegion1!$C16","v":4724.0117515229331},{"$f":"FZ14*CustomRegion1!$C16","v":4691.6876209902557},{"$f":"FL14*CustomRegion1!D16","v":0},{"$f":"FY14*CustomRegion1!$D16","v":1225.0608937267598},{"$f":"FZ14*CustomRegion1!$D16","v":1216.6783937834571},{"$f":"(GD14*'Default-Data'!$C$58/pv_dollar_index)/CustomRegion1!$E16","v":0},{"$f":"(GE14*'Default-Data'!$C$58/pv_dollar_index)/CustomRegion1!$E16","v":0.41267127368115752},{"$f":"(GF14*'Default-Data'!$C$58/pv_dollar_index)/CustomRegion1!$E16","v":0.40984756349177115},null,"C24 Chemicals and chemical products",0,0,null,10416764.412158674,4221556.1415590812,{"$f":"GL14*CustomRegion2!$C$13","v":0},{"$f":"GO14*CustomRegion2!C$13","v":6418617.1035324959},{"$f":"GP14*CustomRegion2!D$13","v":467143.2609597721},{"$f":"GL14*CustomRegion2!D20","v":0},{"$f":"GO14*CustomRegion2!$D20","v":1216833.6050607939},{"$f":"GP14*CustomRegion2!$D20","v":493140.78493547707},{"$f":"(GT14*'Default-Data'!$C$59/pv_dollar_index)/CustomRegion2!$E20","v":0},{"$f":"(GU14*'Default-Data'!$C$59/pv_dollar_index)/CustomRegion2!$E20","v":103.61497422510431},{"$f":"(GV14*'Default-Data'!$C$59/pv_dollar_index)/CustomRegion2!$E20","v":41.991583325712256},81577.153998766604,36184.905724663549,{"$f":"GM14*CustomRegion2!C20","v":0},{"$f":"GZ14*CustomRegion2!$C20","v":26879.118373655565},{"$f":"HA14*CustomRegion2!$C20","v":11922.680758481767},{"$f":"GM14*CustomRegion2!D20","v":0},{"$f":"GZ14*CustomRegion2!$D20","v":9529.4295294855183},{"$f":"HA14*CustomRegion2!$D20","v":4226.9372272961609},{"$f":"(HE14*'Default-Data'!$C$59/pv_dollar_index)/CustomRegion2!$E20","v":0},{"$f":"(HF14*'Default-Data'!$C$59/pv_dollar_index)/CustomRegion2!$E20","v":0.81144339782451946},{"$f":"(HG14*'Default-Data'!$C$59/pv_dollar_index)/CustomRegion2!$E20","v":0.35992923768368817},null,"WHEAT",0,0,null,2098.9311519716207,154348.04718276652,{"$f":"HM14*CustomRegion3!D19","v":0},{"$f":"HP14*CustomRegion3!$D19","v":453.50113852153675},{"$f":"HQ14*CustomRegion3!$D19","v":33348.885722244457},{"$f":"HM14*CustomRegion3!E19","v":0},{"$f":"HP14*CustomRegion3!$E19","v":274.64546596987623},{"$f":"HQ14*CustomRegion3!$E19","v":20196.465853694906},{"$f":"(HU14*'Default-Data'!$C$60/pv_dollar_index)/CustomRegion3!$F19","v":0},{"$f":"(HV14*'Default-Data'!$C$60/pv_dollar_index)/CustomRegion3!$F19","v":2.8798704308164544},{"$f":"(HW14*'Default-Data'!$C$60/pv_dollar_index)/CustomRegion3!$F19","v":211.77558716891269},14.13483936625706,901.67404903483623,{"$f":"HN14*CustomRegion3!D19","v":0},{"$f":"IA14*CustomRegion3!$D19","v":3.0540142964647772},{"$f":"IB14*CustomRegion3!$D19","v":194.81830427287449},{"$f":"HN14*CustomRegion3!E19","v":0},{"$f":"IA14*CustomRegion3!$E19","v":1.8495459179346674},{"$f":"IB14*CustomRegion3!$E19","v":117.98418881795982},{"$f":"(IF14*'Default-Data'!$C$60/pv_dollar_index)/CustomRegion3!$F19","v":0},{"$f":"(IG14*'Default-Data'!$C$60/pv_dollar_index)/CustomRegion3!$F19","v":1.9393921471405409E-2},{"$f":"(IH14*'Default-Data'!$C$60/pv_dollar_index)/CustomRegion3!$F19","v":1.2371556016074037}]
[null,57,"Finance, Professional, and Business Services",5546981.049747345,0,null,13475294.623703258,14766169.677726129,4166590.8159390152,10087741.678507093,11670444.60421727,1842984.3074991242,3295457.7104754206,4123054.7255040379,520.07447549910705,785.86775004921685,2252.5221663329594,77498.633225429265,92213.476272646352,0,57454.014319899608,72880.935956300411,0,18101.715364798067,25748.126792461255,0,4.0716196359922474,14.066809732795953,null,14,"TTL_C25: Rubber and plastics products",0,0,null,1909423.8918273177,403913.13525058585,{"$f":"AF15*'Colombia-IO-Data'!AN21","v":0},{"$f":"AI15*'Colombia-IO-Data'!$AN21","v":480584.39775598585},{"$f":"AJ15*'Colombia-IO-Data'!$AN21","v":101661.21398238477},{"$f":"AK15*'Colombia-IO-Data'!$AO21","v":0},{"$f":"AL15*'Colombia-IO-Data'!$AO21","v":278329.89665129373},{"$f":"AM15*'Colombia-IO-Data'!$AO21","v":58876.974186600681},{"$f":"(AN15*'Default-Data'!$F$19/pv_dollar_index)/'Colombia-IO-Data'!$AP21","v":0},{"$f":"(AO15*'Default-Data'!$F$19/pv_dollar_index)/'Colombia-IO-Data'!$AP21","v":70.854394888637017},{"$f":"(AP15*'Default-Data'!$F$19/pv_dollar_index)/'Colombia-IO-Data'!$AP21","v":14.988301397215722},14801.613446784542,2060.2335002360433,{"$f":"'Colombia-IO-Data'!$AN21*Calculations!AG15","v":0},{"$f":"'Colombia-IO-Data'!$AN21*Calculations!AT15","v":3725.4297039995176},{"$f":"'Colombia-IO-Data'!$AN21*Calculations!AU15","v":518.54178644434216},{"$f":"AV15*'Colombia-IO-Data'!$AO21","v":0},{"$f":"AW15*'Colombia-IO-Data'!$AO21","v":2157.5782928815038},{"$f":"AX15*'Colombia-IO-Data'!$AO21","v":300.3128742929178},{"$f":"(AY15*'Default-Data'!$F$19/pv_dollar_index)/'Colombia-IO-Data'!$AP21","v":0},{"$f":"(AZ15*'Default-Data'!$F$19/pv_dollar_index)/'Colombia-IO-Data'!$AP21","v":0.54925434244135785},{"$f":"(BA15*'Default-Data'!$F$19/pv_dollar_index)/'Colombia-IO-Data'!$AP21","v":7.6450597802473264E-2},null,"DOM_C25: Rubber and plastics products",0,0,null,881914.55359819694,301746.22623724351,{"$f":"BG15*'Mexico-IO-Data'!AQ21","v":0},{"$f":"BJ15*'Mexico-IO-Data'!$AQ21","v":272023.24849430262},{"$f":"BK15*'Mexico-IO-Data'!$AQ21","v":93072.495909108853},{"$f":"BG15*'Mexico-IO-Data'!AR21","v":0},{"$f":"BJ15*'Mexico-IO-Data'!$AR21","v":95099.511697604175},{"$f":"BK15*'Mexico-IO-Data'!$AR21","v":32538.207533459761},{"$f":"(Calculations!BO15*'Default-Data'!$F$19/pv_dollar_index)/'Mexico-IO-Data'!$AS21","v":0},{"$f":"(Calculations!BP15*'Default-Data'!$F$19/pv_dollar_index)/'Mexico-IO-Data'!$AS21","v":18.85597043012416},{"$f":"(Calculations!BQ15*'Default-Data'!$F$19/pv_dollar_index)/'Mexico-IO-Data'!$AS21","v":6.4515523597122453},7074.4959939865967,1884.3795703811429,{"$f":"BH15*'Mexico-IO-Data'!AQ21","v":0},{"$f":"BU15*'Mexico-IO-Data'!$AQ21","v":2182.1018531699383},{"$f":"BV15*'Mexico-IO-Data'!$AQ21","v":581.22983688158615},{"$f":"BH15*'Mexico-IO-Data'!AR21","v":0},{"$f":"BU15*'Mexico-IO-Data'!$AR21","v":762.86428406226696},{"$f":"BV15*'Mexico-IO-Data'!$AR21","v":203.19834417636059},{"$f":"(BZ15*'Default-Data'!$F$19/pv_dollar_index)/'Mexico-IO-Data'!$AS21","v":0},{"$f":"(CA15*'Default-Data'!$F$19/pv_dollar_index)/'Mexico-IO-Data'!$AS21","v":0.15125783640420448},{"$f":"(CB15*'Default-Data'!$F$19/pv_dollar_index)/'Mexico-IO-Data'!$AS21","v":4.0289396873277261E-2},null,"TTL_C25: Rubber and plastics products",0,0,null,578863.6796094809,294847.26040312939,{"$f":"CH15*'Philippines-IO-Data'!AN21","v":0},{"$f":"'Philippines-IO-Data'!$AN21*Calculations!CK15","v":178025.4862145542},{"$f":"'Philippines-IO-Data'!$AN21*Calculations!CL15","v":90678.21793156545},{"$f":"CH15*'Philippines-IO-Data'!AO21","v":0},{"$f":"'Philippines-IO-Data'!$AO21*Calculations!CK15","v":50305.08588746452},{"$f":"'Philippines-IO-Data'!$AO21*Calculations!CL15","v":25623.160133780329},{"$f":"(CP15*'Default-Data'!$F$19/pv_dollar_index)/'Philippines-IO-Data'!$AP21","v":0},{"$f":"(CQ15*'Default-Data'!$F$19/pv_dollar_index)/'Philippines-IO-Data'!$AP21","v":16.945658760412805},{"$f":"(CR15*'Default-Data'!$F$19/pv_dollar_index)/'Philippines-IO-Data'!$AP21","v":8.6313604346445008},4336.4227946758347,1727.0860646182464,{"$f":"CI15*'Philippines-IO-Data'!AN21","v":0},{"$f":"'Philippines-IO-Data'!$AN21*Calculations!CV15","v":1333.6365773973796},{"$f":"'Philippines-IO-Data'!$AN21*Calculations!CW15","v":531.15327013688227},{"$f":"'Philippines-IO-Data'!AO21*Calculations!CI15","v":0},{"$f":"'Philippines-IO-Data'!$AO21*Calculations!CV15","v":376.84886582915937},{"$f":"'Philippines-IO-Data'!$AO21*Calculations!CW15","v":150.08924531985957},{"$f":"(DA15*'Default-Data'!$F$19/pv_dollar_index)/'Philippines-IO-Data'!$AP21","v":0},{"$f":"(DB15*'Default-Data'!$F$19/pv_dollar_index)/'Philippines-IO-Data'!$AP21","v":0.12694446638805626},{"$f":"(DC15*'Default-Data'!$F$19/pv_dollar_index)/'Philippines-IO-Data'!$AP21","v":5.0558727610323047E-2},null,"DOM_C25: Rubber and plastics products",0,0,null,1741052.285923081,675198.44095231686,{"$f":"DI15*'SouthAfrica-IO-Data'!AR21","v":0},{"$f":"DL15*'SouthAfrica-IO-Data'!$AR21","v":512783.91695196991},{"$f":"DM15*'SouthAfrica-IO-Data'!$AR21","v":198863.01179509133},{"$f":"DI15*'SouthAfrica-IO-Data'!AS21","v":0},{"$f":"DL15*'SouthAfrica-IO-Data'!$AS21","v":484044.76795403205},{"$f":"DM15*'SouthAfrica-IO-Data'!$AS21","v":187717.66667559315},{"$f":"(DQ15*'Default-Data'!$F$19/pv_dollar_index)/'SouthAfrica-IO-Data'!$AT21","v":0},{"$f":"(DR15*'Default-Data'!$F$19/pv_dollar_index)/'SouthAfrica-IO-Data'!$AT21","v":40.83373458802334},{"$f":"(DS15*'Default-Data'!$F$19/pv_dollar_index)/'SouthAfrica-IO-Data'!$AT21","v":15.835752983992881},14606.845260285458,3825.8595281837679,{"$f":"DJ15*'SouthAfrica-IO-Data'!AR21","v":0},{"$f":"DW15*'SouthAfrica-IO-Data'!$AR21","v":4302.0852316961409},{"$f":"DX15*'SouthAfrica-IO-Data'!$AR21","v":1126.812359647171},{"$f":"DJ15*'SouthAfrica-IO-Data'!AS21","v":0},{"$f":"DW15*'SouthAfrica-IO-Data'!$AS21","v":4060.9734019600219},{"$f":"DX15*'SouthAfrica-IO-Data'!$AS21","v":1063.6597777777768},{"$f":"(EB15*'Default-Data'!$F$19/pv_dollar_index)/'SouthAfrica-IO-Data'!$AT21","v":0},{"$f":"(EC15*'Default-Data'!$F$19/pv_dollar_index)/'SouthAfrica-IO-Data'!$AT21","v":0.34258134999696044},{"$f":"(ED15*'Default-Data'!$F$19/pv_dollar_index)/'SouthAfrica-IO-Data'!$AT21","v":8.9729719094615468E-2},null,"HORTI",0,0,null,25021.348698353988,1303704.337133138,{"$f":"EJ15*'Zambia-IO-Data'!BO19","v":0},{"$f":"EM15*'Zambia-IO-Data'!$BO19","v":12061.98526631546},{"$f":"EN15*'Zambia-IO-Data'!$BO19","v":628473.81632813218},{"$f":"EJ15*'Zambia-IO-Data'!$BN19","v":0},{"$f":"EM15*'Zambia-IO-Data'!$BN19","v":10161.852347878208},{"$f":"EN15*'Zambia-IO-Data'!$BN19","v":529469.89944258658},{"$f":"(ER15*'Default-Data'!$F$19/pv_dollar_index)/'Zambia-IO-Data'!$BP19","v":0},{"$f":"(ES15*'Default-Data'!$F$19/pv_dollar_index)/'Zambia-IO-Data'!$BP19","v":106.5548924888753},{"$f":"(ET15*'Default-Data'!$F$19/pv_dollar_index)/'Zambia-IO-Data'!$BP19","v":5551.9019839901939},170.82922804288017,7669.8508128688136,{"$f":"EK15*'Zambia-IO-Data'!BO19","v":0},{"$f":"EX15*'Zambia-IO-Data'!$BO19","v":82.351261578670048},{"$f":"EY15*'Zambia-IO-Data'!$BO19","v":3697.387723378286},{"$f":"EK15*'Zambia-IO-Data'!BN19","v":0},{"$f":"EX15*'Zambia-IO-Data'!$BN19","v":69.37841013294225},{"$f":"EY15*'Zambia-IO-Data'!$BN19","v":3114.9356667474026},{"$f":"(FC15*'Default-Data'!$F$19/pv_dollar_index)/'Zambia-IO-Data'!$BP19","v":0},{"$f":"(FD15*'Default-Data'!$F$19/pv_dollar_index)/'Zambia-IO-Data'!$BP19","v":0.7274863656435957},{"$f":"(FE15*'Default-Data'!$F$19/pv_dollar_index)/'Zambia-IO-Data'!$BP19","v":32.662513065281409},null,"TTL_C25: Rubber and plastics products",0,0,null,1073093.9054036972,622620.51546075288,{"$f":"FK15*CustomRegion1!C17","v":0},{"$f":"FN15*CustomRegion1!$C17","v":330022.54415452032},{"$f":"FO15*CustomRegion1!$C17","v":191482.59581052748},{"$f":"FK15*CustomRegion1!D17","v":0},{"$f":"FN15*CustomRegion1!$D17","v":93255.256769721105},{"$f":"FO15*CustomRegion1!$D17","v":54107.6934152799},{"$f":"(FS15*'Default-Data'!$C$58/pv_dollar_index)/CustomRegion1!$E17","v":0},{"$f":"(FT15*'Default-Data'!$C$58/pv_dollar_index)/CustomRegion1!$E17","v":31.413757296221142},{"$f":"(FU15*'Default-Data'!$C$58/pv_dollar_index)/CustomRegion1!$E17","v":18.226596630398504},7733.608411085921,3666.4503487827806,{"$f":"FL15*CustomRegion1!C17","v":0},{"$f":"FY15*CustomRegion1!$C17","v":2378.4173132184669},{"$f":"FZ15*CustomRegion1!$C17","v":1127.5912257337034},{"$f":"FL15*CustomRegion1!D17","v":0},{"$f":"FY15*CustomRegion1!$D17","v":672.07504813940545},{"$f":"FZ15*CustomRegion1!$D17","v":318.62613978833775},{"$f":"(GD15*'Default-Data'!$C$58/pv_dollar_index)/CustomRegion1!$E17","v":0},{"$f":"(GE15*'Default-Data'!$C$58/pv_dollar_index)/CustomRegion1!$E17","v":0.22639369809716053},{"$f":"(GF15*'Default-Data'!$C$58/pv_dollar_index)/CustomRegion1!$E17","v":0.10733168906776908},null,"C25 Rubber and plastics products",0,0,null,6134819.5976310559,1106127.3370253574,{"$f":"GL15*CustomRegion2!$C$13","v":0},{"$f":"GO15*CustomRegion2!C$13","v":3780162.0962531595},{"$f":"GP15*CustomRegion2!D$13","v":122400.34573221196},{"$f":"GL15*CustomRegion2!D21","v":0},{"$f":"GO15*CustomRegion2!$D21","v":909176.63443212386},{"$f":"GP15*CustomRegion2!$D21","v":163927.41685809585},{"$f":"(GT15*'Default-Data'!$C$59/pv_dollar_index)/CustomRegion2!$E21","v":0},{"$f":"(GU15*'Default-Data'!$C$59/pv_dollar_index)/CustomRegion2!$E21","v":180.26809421613279},{"$f":"(GV15*'Default-Data'!$C$59/pv_dollar_index)/CustomRegion2!$E21","v":32.502906374447385},56764.874872990404,9481.1278276531229,{"$f":"GM15*CustomRegion2!C21","v":0},{"$f":"GZ15*CustomRegion2!$C21","v":18527.107179868341},{"$f":"HA15*CustomRegion2!$C21","v":3094.4817872318154},{"$f":"GM15*CustomRegion2!D21","v":0},{"$f":"GZ15*CustomRegion2!$D21","v":8412.5208687334234},{"$f":"HA15*CustomRegion2!$D21","v":1405.0975341304277},{"$f":"(HE15*'Default-Data'!$C$59/pv_dollar_index)/CustomRegion2!$E21","v":0},{"$f":"(HF15*'Default-Data'!$C$59/pv_dollar_index)/CustomRegion2!$E21","v":1.6680027259029144},{"$f":"(HG15*'Default-Data'!$C$59/pv_dollar_index)/CustomRegion2!$E21","v":0.278597408988286},null,"HORTI",0,0,null,25021.348698353988,1303704.337133138,{"$f":"HM15*CustomRegion3!D20","v":0},{"$f":"HP15*CustomRegion3!$D20","v":12061.98526631546},{"$f":"HQ15*CustomRegion3!$D20","v":628473.81632813218},{"$f":"HM15*CustomRegion3!E20","v":0},{"$f":"HP15*CustomRegion3!$E20","v":10161.852347878208},{"$f":"HQ15*CustomRegion3!$E20","v":529469.89944258658},{"$f":"(HU15*'Default-Data'!$C$60/pv_dollar_index)/CustomRegion3!$F20","v":0},{"$f":"(HV15*'Default-Data'!$C$60/pv_dollar_index)/CustomRegion3!$F20","v":106.5548924888753},{"$f":"(HW15*'Default-Data'!$C$60/pv_dollar_index)/CustomRegion3!$F20","v":5551.9019839901939},170.82922804288017,7669.8508128688136,{"$f":"HN15*CustomRegion3!D20","v":0},{"$f":"IA15*CustomRegion3!$D20","v":82.351261578670048},{"$f":"IB15*CustomRegion3!$D20","v":3697.387723378286},{"$f":"HN15*CustomRegion3!E20","v":0},{"$f":"IA15*CustomRegion3!$E20","v":69.37841013294225},{"$f":"IB15*CustomRegion3!$E20","v":3114.9356667474026},{"$f":"(IF15*'Default-Data'!$C$60/pv_dollar_index)/CustomRegion3!$F20","v":0},{"$f":"(IG15*'Default-Data'!$C$60/pv_dollar_index)/CustomRegion3!$F20","v":0.7274863656435957},{"$f":"(IH15*'Default-Data'!$C$60/pv_dollar_index)/CustomRegion3!$F20","v":32.662513065281409}]
[null,58,"Education and Health Care",0,0,null,80140.041601058925,5605689.6097085457,0,71902.212411017463,4674299.4416028764,0,62007.004649520852,3749233.6607625969,0,16.239952645291929,1244.9156330884491,132.39700817250963,35007.055797037334,0,118.78753259939928,29190.603254388905,0,102.4399505830426,23413.645973393592,0,2.6829548626931016E-2,7.7743924591638729,null,15,"TTL_C26: Other non-metallic mineral products",0,0,null,9465861.2500159126,143760.31981503777,{"$f":"AF16*'Colombia-IO-Data'!AN22","v":0},{"$f":"AI16*'Colombia-IO-Data'!$AN22","v":4182212.0882814974},{"$f":"AJ16*'Colombia-IO-Data'!$AN22","v":63516.26454958383},{"$f":"AK16*'Colombia-IO-Data'!$AO22","v":0},{"$f":"AL16*'Colombia-IO-Data'!$AO22","v":1237813.5545925326},{"$f":"AM16*'Colombia-IO-Data'!$AO22","v":18798.973255530451},{"$f":"(AN16*'Default-Data'!$F$19/pv_dollar_index)/'Colombia-IO-Data'!$AP22","v":0},{"$f":"(AO16*'Default-Data'!$F$19/pv_dollar_index)/'Colombia-IO-Data'!$AP22","v":315.1099880063822},{"$f":"(AP16*'Default-Data'!$F$19/pv_dollar_index)/'Colombia-IO-Data'!$AP22","v":4.7856514538108259},86744.634661178163,733.27604635545867,{"$f":"'Colombia-IO-Data'!$AN22*Calculations!AG16","v":0},{"$f":"'Colombia-IO-Data'!$AN22*Calculations!AT16","v":38325.562787319708},{"$f":"'Colombia-IO-Data'!$AN22*Calculations!AU16","v":323.97643110497813},{"$f":"AV16*'Colombia-IO-Data'!$AO22","v":0},{"$f":"AW16*'Colombia-IO-Data'!$AO22","v":11343.255699168742},{"$f":"AX16*'Colombia-IO-Data'!$AO22","v":95.887632985882092},{"$f":"(AY16*'Default-Data'!$F$19/pv_dollar_index)/'Colombia-IO-Data'!$AP22","v":0},{"$f":"(AZ16*'Default-Data'!$F$19/pv_dollar_index)/'Colombia-IO-Data'!$AP22","v":2.8876506918645046},{"$f":"(BA16*'Default-Data'!$F$19/pv_dollar_index)/'Colombia-IO-Data'!$AP22","v":2.4410098571014598E-2},null,"DOM_C26: Other non-metallic mineral products",0,0,null,4835765.4725594576,306395.07274905499,{"$f":"BG16*'Mexico-IO-Data'!AQ22","v":0},{"$f":"BJ16*'Mexico-IO-Data'!$AQ22","v":2645062.6377882618},{"$f":"BK16*'Mexico-IO-Data'!$AQ22","v":167591.70061694452},{"$f":"BG16*'Mexico-IO-Data'!AR22","v":0},{"$f":"BJ16*'Mexico-IO-Data'!$AR22","v":571712.44343014213},{"$f":"BK16*'Mexico-IO-Data'!$AR22","v":36223.815379451196},{"$f":"(Calculations!BO16*'Default-Data'!$F$19/pv_dollar_index)/'Mexico-IO-Data'!$AS22","v":0},{"$f":"(Calculations!BP16*'Default-Data'!$F$19/pv_dollar_index)/'Mexico-IO-Data'!$AS22","v":150.53317838889663},{"$f":"(Calculations!BQ16*'Default-Data'!$F$19/pv_dollar_index)/'Mexico-IO-Data'!$AS22","v":9.5378124529270902},44475.568203057701,1913.4112222494659,{"$f":"BH16*'Mexico-IO-Data'!AQ22","v":0},{"$f":"BU16*'Mexico-IO-Data'!$AQ22","v":24327.206192248836},{"$f":"BV16*'Mexico-IO-Data'!$AQ22","v":1046.5959450300052},{"$f":"BH16*'Mexico-IO-Data'!AR22","v":0},{"$f":"BU16*'Mexico-IO-Data'!$AR22","v":5258.1614874833895},{"$f":"BV16*'Mexico-IO-Data'!$AR22","v":226.21465233712215},{"$f":"(BZ16*'Default-Data'!$F$19/pv_dollar_index)/'Mexico-IO-Data'!$AS22","v":0},{"$f":"(CA16*'Default-Data'!$F$19/pv_dollar_index)/'Mexico-IO-Data'!$AS22","v":1.3844858027647255},{"$f":"(CB16*'Default-Data'!$F$19/pv_dollar_index)/'Mexico-IO-Data'!$AS22","v":5.9562829191082967E-2},null,"TTL_C26: Other non-metallic mineral products",0,0,null,5845972.9948294377,417592.42511994857,{"$f":"CH16*'Philippines-IO-Data'!AN22","v":0},{"$f":"'Philippines-IO-Data'!$AN22*Calculations!CK16","v":2199769.6203331603},{"$f":"'Philippines-IO-Data'!$AN22*Calculations!CL16","v":157135.02803940242},{"$f":"CH16*'Philippines-IO-Data'!AO22","v":0},{"$f":"'Philippines-IO-Data'!$AO22*Calculations!CK16","v":467891.63384942914},{"$f":"'Philippines-IO-Data'!$AO22*Calculations!CL16","v":33422.665866799609},{"$f":"(CP16*'Default-Data'!$F$19/pv_dollar_index)/'Philippines-IO-Data'!$AP22","v":0},{"$f":"(CQ16*'Default-Data'!$F$19/pv_dollar_index)/'Philippines-IO-Data'!$AP22","v":157.61292967079879},{"$f":"(CR16*'Default-Data'!$F$19/pv_dollar_index)/'Philippines-IO-Data'!$AP22","v":11.258684497807721},53738.551919453661,2446.0734589452113,{"$f":"CI16*'Philippines-IO-Data'!AN22","v":0},{"$f":"'Philippines-IO-Data'!$AN22*Calculations!CV16","v":20221.173456953231},{"$f":"'Philippines-IO-Data'!$AN22*Calculations!CW16","v":920.42814581081018},{"$f":"'Philippines-IO-Data'!AO22*Calculations!CI16","v":0},{"$f":"'Philippines-IO-Data'!$AO22*Calculations!CV16","v":4301.0494370285996},{"$f":"'Philippines-IO-Data'!$AO22*Calculations!CW16","v":195.77533256377819},{"$f":"(DA16*'Default-Data'!$F$19/pv_dollar_index)/'Philippines-IO-Data'!$AP22","v":0},{"$f":"(DB16*'Default-Data'!$F$19/pv_dollar_index)/'Philippines-IO-Data'!$AP22","v":1.448841897111524},{"$f":"(DC16*'Default-Data'!$F$19/pv_dollar_index)/'Philippines-IO-Data'!$AP22","v":6.5948440814784751E-2},null,"DOM_C26: Other non-metallic mineral products",0,0,null,6631447.8107868582,372743.10112170316,{"$f":"DI16*'SouthAfrica-IO-Data'!AR22","v":0},{"$f":"DL16*'SouthAfrica-IO-Data'!$AR22","v":2186839.4980019769},{"$f":"DM16*'SouthAfrica-IO-Data'!$AR22","v":122918.75913051418},{"$f":"DI16*'SouthAfrica-IO-Data'!AS22","v":0},{"$f":"DL16*'SouthAfrica-IO-Data'!$AS22","v":985695.84913995443},{"$f":"DM16*'SouthAfrica-IO-Data'!$AS22","v":55404.391025075674},{"$f":"(DQ16*'Default-Data'!$F$19/pv_dollar_index)/'SouthAfrica-IO-Data'!$AT22","v":0},{"$f":"(DR16*'Default-Data'!$F$19/pv_dollar_index)/'SouthAfrica-IO-Data'!$AT22","v":83.152727501683387},{"$f":"(DS16*'Default-Data'!$F$19/pv_dollar_index)/'SouthAfrica-IO-Data'!$AT22","v":4.6738821446033088},61254.580531483713,2112.0646294441904,{"$f":"DJ16*'SouthAfrica-IO-Data'!AR22","v":0},{"$f":"DW16*'SouthAfrica-IO-Data'!$AR22","v":20199.802510983965},{"$f":"DX16*'SouthAfrica-IO-Data'!$AR22","v":696.49139762338325},{"$f":"DJ16*'SouthAfrica-IO-Data'!AS22","v":0},{"$f":"DW16*'SouthAfrica-IO-Data'!$AS22","v":9104.8572639717913},{"$f":"DX16*'SouthAfrica-IO-Data'!$AS22","v":313.9364732648678},{"$f":"(EB16*'Default-Data'!$F$19/pv_dollar_index)/'SouthAfrica-IO-Data'!$AT22","v":0},{"$f":"(EC16*'Default-Data'!$F$19/pv_dollar_index)/'SouthAfrica-IO-Data'!$AT22","v":0.7680804536950756},{"$f":"(ED16*'Default-Data'!$F$19/pv_dollar_index)/'SouthAfrica-IO-Data'!$AT22","v":2.6483497964417808E-2},null,"OTHERCROP",0,0,null,19352.201840217815,718410.97311207699,{"$f":"EJ16*'Zambia-IO-Data'!BO20","v":0},{"$f":"EM16*'Zambia-IO-Data'!$BO20","v":8909.5233467270973},{"$f":"EN16*'Zambia-IO-Data'!$BO20","v":330747.85961486958},{"$f":"EJ16*'Zambia-IO-Data'!$BN20","v":0},{"$f":"EM16*'Zambia-IO-Data'!$BN20","v":8374.5385100809799},{"$f":"EN16*'Zambia-IO-Data'!$BN20","v":310887.64007662522},{"$f":"(ER16*'Default-Data'!$F$19/pv_dollar_index)/'Zambia-IO-Data'!$BP20","v":0},{"$f":"(ES16*'Default-Data'!$F$19/pv_dollar_index)/'Zambia-IO-Data'!$BP20","v":87.81352257809047},{"$f":"(ET16*'Default-Data'!$F$19/pv_dollar_index)/'Zambia-IO-Data'!$BP20","v":3259.8976968408501},132.09450928860028,4225.9037998808562,{"$f":"EK16*'Zambia-IO-Data'!BO20","v":0},{"$f":"EX16*'Zambia-IO-Data'!$BO20","v":60.814739542216209},{"$f":"EY16*'Zambia-IO-Data'!$BO20","v":1945.5558017080641},{"$f":"EK16*'Zambia-IO-Data'!BN20","v":0},{"$f":"EX16*'Zambia-IO-Data'!$BN20","v":57.163033133969307},{"$f":"EY16*'Zambia-IO-Data'!$BN20","v":1828.7321724007738},{"$f":"(FC16*'Default-Data'!$F$19/pv_dollar_index)/'Zambia-IO-Data'!$BP20","v":0},{"$f":"(FD16*'Default-Data'!$F$19/pv_dollar_index)/'Zambia-IO-Data'!$BP20","v":0.59939867667924884},{"$f":"(FE16*'Default-Data'!$F$19/pv_dollar_index)/'Zambia-IO-Data'!$BP20","v":19.1756732286903},null,"TTL_C26: Other non-metallic mineral products",0,0,null,6967750.3961913381,616775.28880744707,{"$f":"FK16*CustomRegion1!C18","v":0},{"$f":"FN16*CustomRegion1!$C18","v":2621881.0208604536},{"$f":"FO16*CustomRegion1!$C18","v":232085.15401813248},{"$f":"FK16*CustomRegion1!D18","v":0},{"$f":"FN16*CustomRegion1!$D18","v":557674.85070705344},{"$f":"FO16*CustomRegion1!$D18","v":49364.579318671604},{"$f":"(FS16*'Default-Data'!$C$58/pv_dollar_index)/CustomRegion1!$E18","v":0},{"$f":"(FT16*'Default-Data'!$C$58/pv_dollar_index)/CustomRegion1!$E18","v":187.85710336498525},{"$f":"(FU16*'Default-Data'!$C$58/pv_dollar_index)/CustomRegion1!$E18","v":16.628841820424974},63564.489382238156,3632.0293286436499,{"$f":"FL16*CustomRegion1!C18","v":0},{"$f":"FY16*CustomRegion1!$C18","v":23918.556038269355},{"$f":"FZ16*CustomRegion1!$C18","v":1366.6891353032074},{"$f":"FL16*CustomRegion1!D18","v":0},{"$f":"FY16*CustomRegion1!$D18","v":5087.4837804015269},{"$f":"FZ16*CustomRegion1!$D18","v":290.69517397209671},{"$f":"(GD16*'Default-Data'!$C$58/pv_dollar_index)/CustomRegion1!$E18","v":0},{"$f":"(GE16*'Default-Data'!$C$58/pv_dollar_index)/CustomRegion1!$E18","v":1.7137584117176103},{"$f":"(GF16*'Default-Data'!$C$58/pv_dollar_index)/CustomRegion1!$E18","v":9.792292637070113E-2},null,"C26 Other non-metallic mineral products",0,0,null,1419721.9008200876,584671.83146037324,{"$f":"GL16*CustomRegion2!$C$13","v":0},{"$f":"GO16*CustomRegion2!C$13","v":874806.31358303502},{"$f":"GP16*CustomRegion2!D$13","v":64697.826294654427},{"$f":"GL16*CustomRegion2!D22","v":0},{"$f":"GO16*CustomRegion2!$D22","v":210399.33778236285},{"$f":"GP16*CustomRegion2!$D22","v":86646.945495597203},{"$f":"(GT16*'Default-Data'!$C$59/pv_dollar_index)/CustomRegion2!$E22","v":0},{"$f":"(GU16*'Default-Data'!$C$59/pv_dollar_index)/CustomRegion2!$E22","v":55.39862112721039},{"$f":"(GV16*'Default-Data'!$C$59/pv_dollar_index)/CustomRegion2!$E22","v":22.814336565573626},13057.529529301009,5011.4920640251548,{"$f":"GM16*CustomRegion2!C22","v":0},{"$f":"GZ16*CustomRegion2!$C22","v":6901.9655062496486},{"$f":"HA16*CustomRegion2!$C22","v":2648.9808262066467},{"$f":"GM16*CustomRegion2!D22","v":0},{"$f":"GZ16*CustomRegion2!$D22","v":1935.0941648865414},{"$f":"HA16*CustomRegion2!$D22","v":742.69095304044242},{"$f":"(HE16*'Default-Data'!$C$59/pv_dollar_index)/CustomRegion2!$E22","v":0},{"$f":"(HF16*'Default-Data'!$C$59/pv_dollar_index)/CustomRegion2!$E22","v":0.5095146668042958},{"$f":"(HG16*'Default-Data'!$C$59/pv_dollar_index)/CustomRegion2!$E22","v":0.19555220636983991},null,"OTHERCROP",0,0,null,19352.201840217815,718410.97311207699,{"$f":"HM16*CustomRegion3!D21","v":0},{"$f":"HP16*CustomRegion3!$D21","v":8909.5233467270973},{"$f":"HQ16*CustomRegion3!$D21","v":330747.85961486958},{"$f":"HM16*CustomRegion3!E21","v":0},{"$f":"HP16*CustomRegion3!$E21","v":8374.5385100809799},{"$f":"HQ16*CustomRegion3!$E21","v":310887.64007662522},{"$f":"(HU16*'Default-Data'!$C$60/pv_dollar_index)/CustomRegion3!$F21","v":0},{"$f":"(HV16*'Default-Data'!$C$60/pv_dollar_index)/CustomRegion3!$F21","v":87.81352257809047},{"$f":"(HW16*'Default-Data'!$C$60/pv_dollar_index)/CustomRegion3!$F21","v":3259.8976968408501},132.09450928860028,4225.9037998808562,{"$f":"HN16*CustomRegion3!D21","v":0},{"$f":"IA16*CustomRegion3!$D21","v":60.814739542216209},{"$f":"IB16*CustomRegion3!$D21","v":1945.5558017080641},{"$f":"HN16*CustomRegion3!E21","v":0},{"$f":"IA16*CustomRegion3!$E21","v":57.163033133969307},{"$f":"IB16*CustomRegion3!$E21","v":1828.7321724007738},{"$f":"(IF16*'Default-Data'!$C$60/pv_dollar_index)/CustomRegion3!$F21","v":0},{"$f":"(IG16*'Default-Data'!$C$60/pv_dollar_index)/CustomRegion3!$F21","v":0.59939867667924884},{"$f":"(IH16*'Default-Data'!$C$60/pv_dollar_index)/CustomRegion3!$F21","v":19.1756732286903}]
[null,59,"Other",0,0,null,674659.20763474936,49570892.755842432,0,486727.32922252547,2017896.3049399788,0,114692.87861457706,660811.80592320114,0,86.236806201470301,343.37765234673395,4002.7017860296082,309566.01764166431,0,2899.6166868796718,12601.591143634883,0,688.87539695464966,4126.7136377351544,0,0.51803946385405386,2.1443642927248674,null,16,"TTL_C27: Basic metals",0,0,null,2513549.7397014024,102635.14688622067,{"$f":"AF17*'Colombia-IO-Data'!AN23","v":0},{"$f":"AI17*'Colombia-IO-Data'!$AN23","v":732234.98755164677},{"$f":"AJ17*'Colombia-IO-Data'!$AN23","v":29899.167824513013},{"$f":"AK17*'Colombia-IO-Data'!$AO23","v":0},{"$f":"AL17*'Colombia-IO-Data'!$AO23","v":191402.3917795202},{"$f":"AM17*'Colombia-IO-Data'!$AO23","v":7815.4859179348077},{"$f":"(AN17*'Default-Data'!$F$19/pv_dollar_index)/'Colombia-IO-Data'!$AP23","v":0},{"$f":"(AO17*'Default-Data'!$F$19/pv_dollar_index)/'Colombia-IO-Data'!$AP23","v":48.725274621743367},{"$f":"(AP17*'Default-Data'!$F$19/pv_dollar_index)/'Colombia-IO-Data'!$AP23","v":1.9895869331267566},22827.788853545331,523.5095109879403,{"$f":"'Colombia-IO-Data'!$AN23*Calculations!AG17","v":0},{"$f":"'Colombia-IO-Data'!$AN23*Calculations!AT17","v":6650.079536119737},{"$f":"'Colombia-IO-Data'!$AN23*Calculations!AU17","v":152.50622424800758},{"$f":"AV17*'Colombia-IO-Data'!$AO23","v":0},{"$f":"AW17*'Colombia-IO-Data'!$AO23","v":1738.2959710697824},{"$f":"AX17*'Colombia-IO-Data'!$AO23","v":39.864328499153622},{"$f":"(AY17*'Default-Data'!$F$19/pv_dollar_index)/'Colombia-IO-Data'!$AP23","v":0},{"$f":"(AZ17*'Default-Data'!$F$19/pv_dollar_index)/'Colombia-IO-Data'!$AP23","v":0.44251771243178306},{"$f":"(BA17*'Default-Data'!$F$19/pv_dollar_index)/'Colombia-IO-Data'!$AP23","v":1.0148255388418216E-2},null,"DOM_C27: Basic metals",0,0,null,4309263.9093144499,119877.30712267943,{"$f":"BG17*'Mexico-IO-Data'!AQ23","v":0},{"$f":"BJ17*'Mexico-IO-Data'!$AQ23","v":1623048.8006472578},{"$f":"BK17*'Mexico-IO-Data'!$AQ23","v":45150.801539384243},{"$f":"BG17*'Mexico-IO-Data'!AR23","v":0},{"$f":"BJ17*'Mexico-IO-Data'!$AR23","v":198921.19337982481},{"$f":"BK17*'Mexico-IO-Data'!$AR23","v":5533.6914827750215},{"$f":"(Calculations!BO17*'Default-Data'!$F$19/pv_dollar_index)/'Mexico-IO-Data'!$AS23","v":0},{"$f":"(Calculations!BP17*'Default-Data'!$F$19/pv_dollar_index)/'Mexico-IO-Data'!$AS23","v":20.744417010062719},{"$f":"(Calculations!BQ17*'Default-Data'!$F$19/pv_dollar_index)/'Mexico-IO-Data'!$AS23","v":0.57707880077176343},39487.851150767252,748.62360769568477,{"$f":"BH17*'Mexico-IO-Data'!AQ23","v":0},{"$f":"BU17*'Mexico-IO-Data'!$AQ23","v":14872.774283296623},{"$f":"BV17*'Mexico-IO-Data'!$AQ23","v":281.96292317589899},{"$f":"BH17*'Mexico-IO-Data'!AR23","v":0},{"$f":"BU17*'Mexico-IO-Data'!$AR23","v":1822.8102618493695},{"$f":"BV17*'Mexico-IO-Data'!$AR23","v":34.557433605598376},{"$f":"(BZ17*'Default-Data'!$F$19/pv_dollar_index)/'Mexico-IO-Data'!$AS23","v":0},{"$f":"(CA17*'Default-Data'!$F$19/pv_dollar_index)/'Mexico-IO-Data'!$AS23","v":0.19009103836323588},{"$f":"(CB17*'Default-Data'!$F$19/pv_dollar_index)/'Mexico-IO-Data'!$AS23","v":3.6038081278914925E-3},null,"TTL_C27: Basic metals",0,0,null,4781815.0058344668,241695.55566408392,{"$f":"CH17*'Philippines-IO-Data'!AN23","v":0},{"$f":"'Philippines-IO-Data'!$AN23*Calculations!CK17","v":981610.34214077983},{"$f":"'Philippines-IO-Data'!$AN23*Calculations!CL17","v":49615.231204019583},{"$f":"CH17*'Philippines-IO-Data'!AO23","v":0},{"$f":"'Philippines-IO-Data'!$AO23*Calculations!CK17","v":223405.74743340333},{"$f":"'Philippines-IO-Data'!$AO23*Calculations!CL17","v":11291.983524787911},{"$f":"(CP17*'Default-Data'!$F$19/pv_dollar_index)/'Philippines-IO-Data'!$AP23","v":0},{"$f":"(CQ17*'Default-Data'!$F$19/pv_dollar_index)/'Philippines-IO-Data'!$AP23","v":75.255960591944657},{"$f":"(CR17*'Default-Data'!$F$19/pv_dollar_index)/'Philippines-IO-Data'!$AP23","v":3.8037923236493607},43128.969381447387,1415.7466665855245,{"$f":"CI17*'Philippines-IO-Data'!AN23","v":0},{"$f":"'Philippines-IO-Data'!$AN23*Calculations!CV17","v":8853.5090418693071},{"$f":"'Philippines-IO-Data'!$AN23*Calculations!CW17","v":290.62428556438243},{"$f":"'Philippines-IO-Data'!AO23*Calculations!CI17","v":0},{"$f":"'Philippines-IO-Data'!$AO23*Calculations!CV17","v":2014.979590163628},{"$f":"'Philippines-IO-Data'!$AO23*Calculations!CW17","v":66.14349192492314},{"$f":"(DA17*'Default-Data'!$F$19/pv_dollar_index)/'Philippines-IO-Data'!$AP23","v":0},{"$f":"(DB17*'Default-Data'!$F$19/pv_dollar_index)/'Philippines-IO-Data'!$AP23","v":0.67876151967007947},{"$f":"(DC17*'Default-Data'!$F$19/pv_dollar_index)/'Philippines-IO-Data'!$AP23","v":2.2280948806831673E-2},null,"DOM_C27: Basic metals",0,0,null,1286720.1397679436,91675.300941041438,{"$f":"DI17*'SouthAfrica-IO-Data'!AR23","v":0},{"$f":"DL17*'SouthAfrica-IO-Data'!$AR23","v":205279.31411912004},{"$f":"DM17*'SouthAfrica-IO-Data'!$AR23","v":14625.591313302104},{"$f":"DI17*'SouthAfrica-IO-Data'!AS23","v":0},{"$f":"DL17*'SouthAfrica-IO-Data'!$AS23","v":132151.3359736377},{"$f":"DM17*'SouthAfrica-IO-Data'!$AS23","v":9415.422297912286},{"$f":"(DQ17*'Default-Data'!$F$19/pv_dollar_index)/'SouthAfrica-IO-Data'!$AT23","v":0},{"$f":"(DR17*'Default-Data'!$F$19/pv_dollar_index)/'SouthAfrica-IO-Data'!$AT23","v":11.148209702604788},{"$f":"(DS17*'Default-Data'!$F$19/pv_dollar_index)/'SouthAfrica-IO-Data'!$AT23","v":0.79427953900251336},11404.885038040769,519.45739553206477,{"$f":"DJ17*'SouthAfrica-IO-Data'!AR23","v":0},{"$f":"DW17*'SouthAfrica-IO-Data'!$AR23","v":1819.4997543433569},{"$f":"DX17*'SouthAfrica-IO-Data'!$AR23","v":82.872611202120311},{"$f":"DJ17*'SouthAfrica-IO-Data'!AS23","v":0},{"$f":"DW17*'SouthAfrica-IO-Data'!$AS23","v":1171.3275854022565},{"$f":"DX17*'SouthAfrica-IO-Data'!$AS23","v":53.350364760225936},{"$f":"(EB17*'Default-Data'!$F$19/pv_dollar_index)/'SouthAfrica-IO-Data'!$AT23","v":0},{"$f":"(EC17*'Default-Data'!$F$19/pv_dollar_index)/'SouthAfrica-IO-Data'!$AT23","v":9.8812512611412412E-2},{"$f":"(ED17*'Default-Data'!$F$19/pv_dollar_index)/'SouthAfrica-IO-Data'!$AT23","v":4.5006056857124898E-3},null,"LIVEST",0,0,null,24762.868037450135,1268252.0150901871,{"$f":"EJ17*'Zambia-IO-Data'!BO21","v":0},{"$f":"EM17*'Zambia-IO-Data'!$BO21","v":7450.2014806173083},{"$f":"EN17*'Zambia-IO-Data'!$BO21","v":381568.6061215123},{"$f":"EJ17*'Zambia-IO-Data'!$BN21","v":0},{"$f":"EM17*'Zambia-IO-Data'!$BN21","v":4791.6758909465452},{"$f":"EN17*'Zambia-IO-Data'!$BN21","v":245409.885283134},{"$f":"(ER17*'Default-Data'!$F$19/pv_dollar_index)/'Zambia-IO-Data'!$BP21","v":0},{"$f":"(ES17*'Default-Data'!$F$19/pv_dollar_index)/'Zambia-IO-Data'!$BP21","v":50.244432995324232},{"$f":"(ET17*'Default-Data'!$F$19/pv_dollar_index)/'Zambia-IO-Data'!$BP21","v":2573.3127235913439},169.13746440738953,7502.1430744701165,{"$f":"EK17*'Zambia-IO-Data'!BO21","v":0},{"$f":"EX17*'Zambia-IO-Data'!$BO21","v":50.887004924068798},{"$f":"EY17*'Zambia-IO-Data'!$BO21","v":2257.1083994265582},{"$f":"EK17*'Zambia-IO-Data'!BN21","v":0},{"$f":"EX17*'Zambia-IO-Data'!$BN21","v":32.728515502769326},{"$f":"EY17*'Zambia-IO-Data'!$BN21","v":1451.6831429220686},{"$f":"(FC17*'Default-Data'!$F$19/pv_dollar_index)/'Zambia-IO-Data'!$BP21","v":0},{"$f":"(FD17*'Default-Data'!$F$19/pv_dollar_index)/'Zambia-IO-Data'!$BP21","v":0.34318383414085313},{"$f":"(FE17*'Default-Data'!$F$19/pv_dollar_index)/'Zambia-IO-Data'!$BP21","v":15.222022120235938},null,"TTL_C27: Basic metals",0,0,null,10504059.453050917,1047025.6741392855,{"$f":"FK17*CustomRegion1!C19","v":0},{"$f":"FN17*CustomRegion1!$C19","v":2156271.9136971436},{"$f":"FO17*CustomRegion1!$C19","v":214933.28975880987},{"$f":"FK17*CustomRegion1!D19","v":0},{"$f":"FN17*CustomRegion1!$D19","v":490748.23060500913},{"$f":"FO17*CustomRegion1!$D19","v":48916.897250865215},{"$f":"(FS17*'Default-Data'!$C$58/pv_dollar_index)/CustomRegion1!$E19","v":0},{"$f":"(FT17*'Default-Data'!$C$58/pv_dollar_index)/CustomRegion1!$E19","v":165.31235175131917},{"$f":"(FU17*'Default-Data'!$C$58/pv_dollar_index)/CustomRegion1!$E19","v":16.478036639987074},89484.280400030257,6165.6619928299187,{"$f":"FL17*CustomRegion1!C19","v":0},{"$f":"FY17*CustomRegion1!$C19","v":18369.321061672184},{"$f":"FZ17*CustomRegion1!$C19","v":1265.6862657634338},{"$f":"FL17*CustomRegion1!D19","v":0},{"$f":"FY17*CustomRegion1!$D19","v":4180.6934232957337},{"$f":"FZ17*CustomRegion1!$D19","v":288.05889066164735},{"$f":"(GD17*'Default-Data'!$C$58/pv_dollar_index)/CustomRegion1!$E19","v":0},{"$f":"(GE17*'Default-Data'!$C$58/pv_dollar_index)/CustomRegion1!$E19","v":1.4082990394163155},{"$f":"(GF17*'Default-Data'!$C$58/pv_dollar_index)/CustomRegion1!$E19","v":9.7034873868920624E-2},null,"C27 Basic metals",0,0,null,8402677.2127369251,1051137.9272704571,{"$f":"GL17*CustomRegion2!$C$13","v":0},{"$f":"GO17*CustomRegion2!C$13","v":5177573.912508145},{"$f":"GP17*CustomRegion2!D$13","v":116315.40185612027},{"$f":"GL17*CustomRegion2!D23","v":0},{"$f":"GO17*CustomRegion2!$D23","v":742102.08617522253},{"$f":"GP17*CustomRegion2!$D23","v":92833.703941749613},{"$f":"(GT17*'Default-Data'!$C$59/pv_dollar_index)/CustomRegion2!$E23","v":0},{"$f":"(GU17*'Default-Data'!$C$59/pv_dollar_index)/CustomRegion2!$E23","v":77.389818943332713},{"$f":"(GV17*'Default-Data'!$C$59/pv_dollar_index)/CustomRegion2!$E23","v":9.6811256479807337},77370.600519976229,9009.7882218031737,{"$f":"GM17*CustomRegion2!C23","v":0},{"$f":"GZ17*CustomRegion2!$C23","v":27945.337040099916},{"$f":"HA17*CustomRegion2!$C23","v":3254.2279215372637},{"$f":"GM17*CustomRegion2!D23","v":0},{"$f":"GZ17*CustomRegion2!$D23","v":6833.1655019986483},{"$f":"HA17*CustomRegion2!$D23","v":795.72051455958001},{"$f":"(HE17*'Default-Data'!$C$59/pv_dollar_index)/CustomRegion2!$E23","v":0},{"$f":"(HF17*'Default-Data'!$C$59/pv_dollar_index)/CustomRegion2!$E23","v":0.71259392859952175},{"$f":"(HG17*'Default-Data'!$C$59/pv_dollar_index)/CustomRegion2!$E23","v":8.2981395280327011E-2},null,"LIVEST",0,0,null,24762.868037450135,1268252.0150901871,{"$f":"HM17*CustomRegion3!D22","v":0},{"$f":"HP17*CustomRegion3!$D22","v":7450.2014806173083},{"$f":"HQ17*CustomRegion3!$D22","v":381568.6061215123},{"$f":"HM17*CustomRegion3!E22","v":0},{"$f":"HP17*CustomRegion3!$E22","v":4791.6758909465452},{"$f":"HQ17*CustomRegion3!$E22","v":245409.885283134},{"$f":"(HU17*'Default-Data'!$C$60/pv_dollar_index)/CustomRegion3!$F22","v":0},{"$f":"(HV17*'Default-Data'!$C$60/pv_dollar_index)/CustomRegion3!$F22","v":50.244432995324232},{"$f":"(HW17*'Default-Data'!$C$60/pv_dollar_index)/CustomRegion3!$F22","v":2573.3127235913439},169.13746440738953,7502.1430744701165,{"$f":"HN17*CustomRegion3!D22","v":0},{"$f":"IA17*CustomRegion3!$D22","v":50.887004924068798},{"$f":"IB17*CustomRegion3!$D22","v":2257.1083994265582},{"$f":"HN17*CustomRegion3!E22","v":0},{"$f":"IA17*CustomRegion3!$E22","v":32.728515502769326},{"$f":"IB17*CustomRegion3!$E22","v":1451.6831429220686},{"$f":"(IF17*'Default-Data'!$C$60/pv_dollar_index)/CustomRegion3!$F22","v":0},{"$f":"(IG17*'Default-Data'!$C$60/pv_dollar_index)/CustomRegion3!$F22","v":0.34318383414085313},{"$f":"(IH17*'Default-Data'!$C$60/pv_dollar_index)/CustomRegion3!$F22","v":15.222022120235938}]
[null,60,"Total",124729406.11168438,675746.53700843919,null,81891348.471418068,104212320.2930029,63537949.318923675,47068467.585425474,37405207.22184854,23151735.995199904,10869527.024843069,12773337.440150019,6836.8872735824207,2420.2177159026619,4808.5147916530723,436694.52214089135,650797.09460145398,339861.67961255042,258616.17701016908,233592.34411537059,149476.72047979804,62983.179327292703,79768.40810224005,54.89174375821424,15.253947225947943,30.028766723141938,null,17,"TTL_C28: Fabricated metal products",0,0,null,851564.27171567618,121782.20451539371,{"$f":"AF18*'Colombia-IO-Data'!AN24","v":0},{"$f":"AI18*'Colombia-IO-Data'!$AN24","v":301350.21886138234},{"$f":"AJ18*'Colombia-IO-Data'!$AN24","v":43096.09409774388},{"$f":"AK18*'Colombia-IO-Data'!$AO24","v":0},{"$f":"AL18*'Colombia-IO-Data'!$AO24","v":79062.781879067683},{"$f":"AM18*'Colombia-IO-Data'!$AO24","v":11306.76825244656},{"$f":"(AN18*'Default-Data'!$F$19/pv_dollar_index)/'Colombia-IO-Data'!$AP24","v":0},{"$f":"(AO18*'Default-Data'!$F$19/pv_dollar_index)/'Colombia-IO-Data'!$AP24","v":20.126999059939461},{"$f":"(AP18*'Default-Data'!$F$19/pv_dollar_index)/'Colombia-IO-Data'!$AP24","v":2.8783620887010057},6927.0523794218252,621.17261257065365,{"$f":"'Colombia-IO-Data'!$AN24*Calculations!AG18","v":0},{"$f":"'Colombia-IO-Data'!$AN24*Calculations!AT18","v":2451.3343501334671},{"$f":"'Colombia-IO-Data'!$AN24*Calculations!AU18","v":219.81958258033058},{"$f":"AV18*'Colombia-IO-Data'!$AO24","v":0},{"$f":"AW18*'Colombia-IO-Data'!$AO24","v":643.13646019423834},{"$f":"AX18*'Colombia-IO-Data'!$AO24","v":57.672258463800134},{"$f":"(AY18*'Default-Data'!$F$19/pv_dollar_index)/'Colombia-IO-Data'!$AP24","v":0},{"$f":"(AZ18*'Default-Data'!$F$19/pv_dollar_index)/'Colombia-IO-Data'!$AP24","v":0.16372314029553942},{"$f":"(BA18*'Default-Data'!$F$19/pv_dollar_index)/'Colombia-IO-Data'!$AP24","v":1.4681617118671247E-2},null,"DOM_C28: Fabricated metal products",0,0,null,1695520.5815745734,205586.77561018616,{"$f":"BG18*'Mexico-IO-Data'!AQ24","v":0},{"$f":"BJ18*'Mexico-IO-Data'!$AQ24","v":623144.03298459423},{"$f":"BK18*'Mexico-IO-Data'!$AQ24","v":75558.016737879152},{"$f":"BG18*'Mexico-IO-Data'!AR24","v":0},{"$f":"BJ18*'Mexico-IO-Data'!$AR24","v":226245.56950583172},{"$f":"BK18*'Mexico-IO-Data'!$AR24","v":27432.929824773368},{"$f":"(Calculations!BO18*'Default-Data'!$F$19/pv_dollar_index)/'Mexico-IO-Data'!$AS24","v":0},{"$f":"(Calculations!BP18*'Default-Data'!$F$19/pv_dollar_index)/'Mexico-IO-Data'!$AS24","v":52.397692268789548},{"$f":"(Calculations!BQ18*'Default-Data'!$F$19/pv_dollar_index)/'Mexico-IO-Data'!$AS24","v":6.353371772669},14633.515062853055,1283.8719633092569,{"$f":"BH18*'Mexico-IO-Data'!AQ24","v":0},{"$f":"BU18*'Mexico-IO-Data'!$AQ24","v":5378.1639055886581},{"$f":"BV18*'Mexico-IO-Data'!$AQ24","v":471.8534011008062},{"$f":"BH18*'Mexico-IO-Data'!AR24","v":0},{"$f":"BU18*'Mexico-IO-Data'!$AR24","v":1952.6557124967228},{"$f":"BV18*'Mexico-IO-Data'!$AR24","v":171.31631822582949},{"$f":"(BZ18*'Default-Data'!$F$19/pv_dollar_index)/'Mexico-IO-Data'!$AS24","v":0},{"$f":"(CA18*'Default-Data'!$F$19/pv_dollar_index)/'Mexico-IO-Data'!$AS24","v":0.45222831701754057},{"$f":"(CB18*'Default-Data'!$F$19/pv_dollar_index)/'Mexico-IO-Data'!$AS24","v":3.9676267440842204E-2},null,"TTL_C28: Fabricated metal products",0,0,null,1336710.755275161,151766.16053135111,{"$f":"CH18*'Philippines-IO-Data'!AN24","v":0},{"$f":"'Philippines-IO-Data'!$AN24*Calculations!CK18","v":336634.7056471617},{"$f":"'Philippines-IO-Data'!$AN24*Calculations!CL18","v":38220.502510398728},{"$f":"CH18*'Philippines-IO-Data'!AO24","v":0},{"$f":"'Philippines-IO-Data'!$AO24*Calculations!CK18","v":103194.70679160178},{"$f":"'Philippines-IO-Data'!$AO24*Calculations!CL18","v":11716.419857560017},{"$f":"(CP18*'Default-Data'!$F$19/pv_dollar_index)/'Philippines-IO-Data'!$AP24","v":0},{"$f":"(CQ18*'Default-Data'!$F$19/pv_dollar_index)/'Philippines-IO-Data'!$AP24","v":34.761938208062872},{"$f":"(CR18*'Default-Data'!$F$19/pv_dollar_index)/'Philippines-IO-Data'!$AP24","v":3.9467669977562059},10594.339918376967,888.9796723087693,{"$f":"CI18*'Philippines-IO-Data'!AN24","v":0},{"$f":"'Philippines-IO-Data'!$AN24*Calculations!CV18","v":2668.0585054577946},{"$f":"'Philippines-IO-Data'!$AN24*Calculations!CW18","v":223.87895745805537},{"$f":"'Philippines-IO-Data'!AO24*Calculations!CI18","v":0},{"$f":"'Philippines-IO-Data'!$AO24*Calculations!CV18","v":817.88808626921127},{"$f":"'Philippines-IO-Data'!$AO24*Calculations!CW18","v":68.629653996248038},{"$f":"(DA18*'Default-Data'!$F$19/pv_dollar_index)/'Philippines-IO-Data'!$AP24","v":0},{"$f":"(DB18*'Default-Data'!$F$19/pv_dollar_index)/'Philippines-IO-Data'!$AP24","v":0.27551195211414592},{"$f":"(DC18*'Default-Data'!$F$19/pv_dollar_index)/'Philippines-IO-Data'!$AP24","v":2.3118431803640368E-2},null,"DOM_C28: Fabricated metal products",0,0,null,4923217.5631989082,545315.85384145193,{"$f":"DI18*'SouthAfrica-IO-Data'!AR24","v":0},{"$f":"DL18*'SouthAfrica-IO-Data'!$AR24","v":1293800.7821022151},{"$f":"DM18*'SouthAfrica-IO-Data'!$AR24","v":143306.70321511908},{"$f":"DI18*'SouthAfrica-IO-Data'!AS24","v":0},{"$f":"DL18*'SouthAfrica-IO-Data'!$AS24","v":1201785.3406222763},{"$f":"DM18*'SouthAfrica-IO-Data'!$AS24","v":133114.69394615886},{"$f":"(DQ18*'Default-Data'!$F$19/pv_dollar_index)/'SouthAfrica-IO-Data'!$AT24","v":0},{"$f":"(DR18*'Default-Data'!$F$19/pv_dollar_index)/'SouthAfrica-IO-Data'!$AT24","v":101.38191109506543},{"$f":"(DS18*'Default-Data'!$F$19/pv_dollar_index)/'SouthAfrica-IO-Data'!$AT24","v":11.229478019850436},42883.020535602052,3089.9091715117393,{"$f":"DJ18*'SouthAfrica-IO-Data'!AR24","v":0},{"$f":"DW18*'SouthAfrica-IO-Data'!$AR24","v":11269.476677731314},{"$f":"DX18*'SouthAfrica-IO-Data'!$AR24","v":812.01507985544606},{"$f":"DJ18*'SouthAfrica-IO-Data'!AS24","v":0},{"$f":"DW18*'SouthAfrica-IO-Data'!$AS24","v":10467.988623237776},{"$f":"DX18*'SouthAfrica-IO-Data'!$AS24","v":754.26436035142603},{"$f":"(EB18*'Default-Data'!$F$19/pv_dollar_index)/'SouthAfrica-IO-Data'!$AT24","v":0},{"$f":"(EC18*'Default-Data'!$F$19/pv_dollar_index)/'SouthAfrica-IO-Data'!$AT24","v":0.88307342091203489},{"$f":"(ED18*'Default-Data'!$F$19/pv_dollar_index)/'SouthAfrica-IO-Data'!$AT24","v":6.3629301954814727E-2},null,"FISH",0,0,null,8256.4627070992356,659171.70980858011,{"$f":"EJ18*'Zambia-IO-Data'!BO22","v":0},{"$f":"EM18*'Zambia-IO-Data'!$BO22","v":753.39217807437069},{"$f":"EN18*'Zambia-IO-Data'!$BO22","v":60148.616640717577},{"$f":"EJ18*'Zambia-IO-Data'!$BN22","v":0},{"$f":"EM18*'Zambia-IO-Data'!$BN22","v":320.30151680346643},{"$f":"EN18*'Zambia-IO-Data'!$BN22","v":25571.931464558234},{"$f":"(ER18*'Default-Data'!$F$19/pv_dollar_index)/'Zambia-IO-Data'!$BP22","v":0},{"$f":"(ES18*'Default-Data'!$F$19/pv_dollar_index)/'Zambia-IO-Data'!$BP22","v":3.3586094856164008},{"$f":"(ET18*'Default-Data'!$F$19/pv_dollar_index)/'Zambia-IO-Data'!$BP22","v":268.14150753802579},53.45493257874076,3860.8479134164531,{"$f":"EK18*'Zambia-IO-Data'!BO22","v":0},{"$f":"EX18*'Zambia-IO-Data'!$BO22","v":4.8776975701335408},{"$f":"EY18*'Zambia-IO-Data'!$BO22","v":352.29767539574385},{"$f":"EK18*'Zambia-IO-Data'!BN22","v":0},{"$f":"EX18*'Zambia-IO-Data'!$BN22","v":2.0737326132262162},{"$f":"EY18*'Zambia-IO-Data'!$BN22","v":149.77787542738852},{"$f":"(FC18*'Default-Data'!$F$19/pv_dollar_index)/'Zambia-IO-Data'!$BP22","v":0},{"$f":"(FD18*'Default-Data'!$F$19/pv_dollar_index)/'Zambia-IO-Data'!$BP22","v":2.1744692610017265E-2},{"$f":"(FE18*'Default-Data'!$F$19/pv_dollar_index)/'Zambia-IO-Data'!$BP22","v":1.570537030752065},null,"TTL_C28: Fabricated metal products",0,0,null,2288343.452089584,373180.5077014924,{"$f":"FK18*CustomRegion1!C20","v":0},{"$f":"FN18*CustomRegion1!$C20","v":576292.08216792857},{"$f":"FO18*CustomRegion1!$C20","v":93981.072470304425},{"$f":"FK18*CustomRegion1!D20","v":0},{"$f":"FN18*CustomRegion1!$D20","v":176661.20411237073},{"$f":"FO18*CustomRegion1!$D20","v":28809.712887115424},{"$f":"(FS18*'Default-Data'!$C$58/pv_dollar_index)/CustomRegion1!$E20","v":0},{"$f":"(FT18*'Default-Data'!$C$58/pv_dollar_index)/CustomRegion1!$E20","v":59.509698239832474},{"$f":"(FU18*'Default-Data'!$C$58/pv_dollar_index)/CustomRegion1!$E20","v":9.7047754706682472},17555.033053705716,2197.5629916539801,{"$f":"FL18*CustomRegion1!C20","v":0},{"$f":"FY18*CustomRegion1!$C20","v":4421.0262851097687},{"$f":"FZ18*CustomRegion1!$C20","v":553.43010289780409},{"$f":"FL18*CustomRegion1!D20","v":0},{"$f":"FY18*CustomRegion1!$D20","v":1355.2569107002698},{"$f":"FZ18*CustomRegion1!$D20","v":169.65290934097843},{"$f":"(GD18*'Default-Data'!$C$58/pv_dollar_index)/CustomRegion1!$E20","v":0},{"$f":"(GE18*'Default-Data'!$C$58/pv_dollar_index)/CustomRegion1!$E20","v":0.45652881286782232},{"$f":"(GF18*'Default-Data'!$C$58/pv_dollar_index)/CustomRegion1!$E20","v":5.7148899732220898E-2},null,"C28 Fabricated metal products except machinery and equipment",0,0,null,3067179.3674111413,783090.30915534822,{"$f":"GL18*CustomRegion2!$C$13","v":0},{"$f":"GO18*CustomRegion2!C$13","v":1889939.0605674044},{"$f":"GP18*CustomRegion2!D$13","v":86654.150360232932},{"$f":"GL18*CustomRegion2!D24","v":0},{"$f":"GO18*CustomRegion2!$D24","v":472920.03003586287},{"$f":"GP18*CustomRegion2!$D24","v":120742.56121484211},{"$f":"(GT18*'Default-Data'!$C$59/pv_dollar_index)/CustomRegion2!$E24","v":0},{"$f":"(GU18*'Default-Data'!$C$59/pv_dollar_index)/CustomRegion2!$E24","v":109.5266451214512},{"$f":"(GV18*'Default-Data'!$C$59/pv_dollar_index)/CustomRegion2!$E24","v":27.963560038322449},27648.155042319046,6712.2283964744383,{"$f":"GM18*CustomRegion2!C24","v":0},{"$f":"GZ18*CustomRegion2!$C24","v":9566.3022397179902},{"$f":"HA18*CustomRegion2!$C24","v":2322.4408805726325},{"$f":"GM18*CustomRegion2!D24","v":0},{"$f":"GZ18*CustomRegion2!$D24","v":4262.9936977197403},{"$f":"HA18*CustomRegion2!$D24","v":1034.9402087780661},{"$f":"(HE18*'Default-Data'!$C$59/pv_dollar_index)/CustomRegion2!$E24","v":0},{"$f":"(HF18*'Default-Data'!$C$59/pv_dollar_index)/CustomRegion2!$E24","v":0.98729461268478247},{"$f":"(HG18*'Default-Data'!$C$59/pv_dollar_index)/CustomRegion2!$E24","v":0.23968857686184264},null,"FISH",0,0,null,8256.4627070992356,659171.70980858011,{"$f":"HM18*CustomRegion3!D23","v":0},{"$f":"HP18*CustomRegion3!$D23","v":753.39217807437069},{"$f":"HQ18*CustomRegion3!$D23","v":60148.616640717577},{"$f":"HM18*CustomRegion3!E23","v":0},{"$f":"HP18*CustomRegion3!$E23","v":320.30151680346643},{"$f":"HQ18*CustomRegion3!$E23","v":25571.931464558234},{"$f":"(HU18*'Default-Data'!$C$60/pv_dollar_index)/CustomRegion3!$F23","v":0},{"$f":"(HV18*'Default-Data'!$C$60/pv_dollar_index)/CustomRegion3!$F23","v":3.3586094856164008},{"$f":"(HW18*'Default-Data'!$C$60/pv_dollar_index)/CustomRegion3!$F23","v":268.14150753802579},53.45493257874076,3860.8479134164531,{"$f":"HN18*CustomRegion3!D23","v":0},{"$f":"IA18*CustomRegion3!$D23","v":4.8776975701335408},{"$f":"IB18*CustomRegion3!$D23","v":352.29767539574385},{"$f":"HN18*CustomRegion3!E23","v":0},{"$f":"IA18*CustomRegion3!$E23","v":2.0737326132262162},{"$f":"IB18*CustomRegion3!$E23","v":149.77787542738852},{"$f":"(IF18*'Default-Data'!$C$60/pv_dollar_index)/CustomRegion3!$F23","v":0},{"$f":"(IG18*'Default-Data'!$C$60/pv_dollar_index)/CustomRegion3!$F23","v":2.1744692610017265E-2},{"$f":"(IH18*'Default-Data'!$C$60/pv_dollar_index)/CustomRegion3!$F23","v":1.570537030752065}]
[null,null,null,null,null,null,null,null,null,null,null,null,null,null,null,null,null,null,null,null,null,null,null,null,null,null,null,null,null,18,"TTL_C29: Machinery and equipment, nec",0,0,null,312916.987717657,85773.061033767881,{"$f":"AF19*'Colombia-IO-Data'!AN25","v":0},{"$f":"AI19*'Colombia-IO-Data'!$AN25","v":110063.76088395546},{"$f":"AJ19*'Colombia-IO-Data'!$AN25","v":30169.36136565284},{"$f":"AK19*'Colombia-IO-Data'!$AO25","v":0},{"$f":"AL19*'Colombia-IO-Data'!$AO25","v":56261.197179439958},{"$f":"AM19*'Colombia-IO-Data'!$AO25","v":15421.646279744795},{"$f":"(AN19*'Default-Data'!$F$19/pv_dollar_index)/'Colombia-IO-Data'!$AP25","v":0},{"$f":"(AO19*'Default-Data'!$F$19/pv_dollar_index)/'Colombia-IO-Data'!$AP25","v":14.322403485292211},{"$f":"(AP19*'Default-Data'!$F$19/pv_dollar_index)/'Colombia-IO-Data'!$AP25","v":3.9258858947046518},2528.5177157940757,437.50132971023095,{"$f":"'Colombia-IO-Data'!$AN25*Calculations!AG19","v":0},{"$f":"'Colombia-IO-Data'!$AN25*Calculations!AT19","v":889.36740472879364},{"$f":"'Colombia-IO-Data'!$AN25*Calculations!AU19","v":153.88439627664957},{"$f":"AV19*'Colombia-IO-Data'!$AO25","v":0},{"$f":"AW19*'Colombia-IO-Data'!$AO25","v":454.61716481930216},{"$f":"AX19*'Colombia-IO-Data'!$AO25","v":78.660953362186405},{"$f":"(AY19*'Default-Data'!$F$19/pv_dollar_index)/'Colombia-IO-Data'!$AP25","v":0},{"$f":"(AZ19*'Default-Data'!$F$19/pv_dollar_index)/'Colombia-IO-Data'!$AP25","v":0.11573181503967511},{"$f":"(BA19*'Default-Data'!$F$19/pv_dollar_index)/'Colombia-IO-Data'!$AP25","v":2.0024705642109859E-2},null,"DOM_C29: Machinery and equipment, nec",0,0,null,138455.16537641009,36091.253724621318,{"$f":"BG19*'Mexico-IO-Data'!AQ25","v":0},{"$f":"BJ19*'Mexico-IO-Data'!$AQ25","v":49076.206566781504},{"$f":"BK19*'Mexico-IO-Data'!$AQ25","v":12792.746433318824},{"$f":"BG19*'Mexico-IO-Data'!AR25","v":0},{"$f":"BJ19*'Mexico-IO-Data'!$AR25","v":17550.146596952352},{"$f":"BK19*'Mexico-IO-Data'!$AR25","v":4574.8151902668287},{"$f":"(Calculations!BO19*'Default-Data'!$F$19/pv_dollar_index)/'Mexico-IO-Data'!$AS25","v":0},{"$f":"(Calculations!BP19*'Default-Data'!$F$19/pv_dollar_index)/'Mexico-IO-Data'!$AS25","v":2.1205028529211001},{"$f":"(Calculations!BQ19*'Default-Data'!$F$19/pv_dollar_index)/'Mexico-IO-Data'!$AS25","v":0.55275371114177441},1121.2770729615547,225.38681605465126,{"$f":"BH19*'Mexico-IO-Data'!AQ25","v":0},{"$f":"BU19*'Mexico-IO-Data'!$AQ25","v":397.44292025260211},{"$f":"BV19*'Mexico-IO-Data'!$AQ25","v":79.889615617127703},{"$f":"BH19*'Mexico-IO-Data'!AR25","v":0},{"$f":"BU19*'Mexico-IO-Data'!$AR25","v":142.12959807442292},{"$f":"BV19*'Mexico-IO-Data'!$AR25","v":28.569332549101208},{"$f":"(BZ19*'Default-Data'!$F$19/pv_dollar_index)/'Mexico-IO-Data'!$AS25","v":0},{"$f":"(CA19*'Default-Data'!$F$19/pv_dollar_index)/'Mexico-IO-Data'!$AS25","v":1.7172860439449544E-2},{"$f":"(CB19*'Default-Data'!$F$19/pv_dollar_index)/'Mexico-IO-Data'!$AS25","v":3.4519000078860268E-3},null,"TTL_C29: Machinery and equipment, nec",0,0,null,212013.27403963922,36455.454228331742,{"$f":"CH19*'Philippines-IO-Data'!AN25","v":0},{"$f":"'Philippines-IO-Data'!$AN25*Calculations!CK19","v":77568.746281230851},{"$f":"'Philippines-IO-Data'!$AN25*Calculations!CL19","v":13337.862416462598},{"$f":"CH19*'Philippines-IO-Data'!AO25","v":0},{"$f":"'Philippines-IO-Data'!$AO25*Calculations!CK19","v":23077.272297223768},{"$f":"'Philippines-IO-Data'!$AO25*Calculations!CL19","v":3968.1121276816675},{"$f":"(CP19*'Default-Data'!$F$19/pv_dollar_index)/'Philippines-IO-Data'!$AP25","v":0},{"$f":"(CQ19*'Default-Data'!$F$19/pv_dollar_index)/'Philippines-IO-Data'!$AP25","v":7.7737583500941687},{"$f":"(CR19*'Default-Data'!$F$19/pv_dollar_index)/'Philippines-IO-Data'!$AP25","v":1.336689379463025},1311.1574975280273,213.54007797459508,{"$f":"CI19*'Philippines-IO-Data'!AN25","v":0},{"$f":"'Philippines-IO-Data'!$AN25*Calculations!CV19","v":479.70979044203523},{"$f":"'Philippines-IO-Data'!$AN25*Calculations!CW19","v":78.127354074012885},{"$f":"'Philippines-IO-Data'!AO25*Calculations!CI19","v":0},{"$f":"'Philippines-IO-Data'!$AO25*Calculations!CV19","v":142.71718944042902},{"$f":"'Philippines-IO-Data'!$AO25*Calculations!CW19","v":23.243462222411477},{"$f":"(DA19*'Default-Data'!$F$19/pv_dollar_index)/'Philippines-IO-Data'!$AP25","v":0},{"$f":"(DB19*'Default-Data'!$F$19/pv_dollar_index)/'Philippines-IO-Data'!$AP25","v":4.8075393349151362E-2},{"$f":"(DC19*'Default-Data'!$F$19/pv_dollar_index)/'Philippines-IO-Data'!$AP25","v":7.8297407167270267E-3},null,"DOM_C29: Machinery and equipment, nec",0,0,null,236230.37419583224,88086.380110866216,{"$f":"DI19*'SouthAfrica-IO-Data'!AR25","v":0},{"$f":"DL19*'SouthAfrica-IO-Data'!$AR25","v":71788.553303887064},{"$f":"DM19*'SouthAfrica-IO-Data'!$AR25","v":26768.758316799645},{"$f":"DI19*'SouthAfrica-IO-Data'!AS25","v":0},{"$f":"DL19*'SouthAfrica-IO-Data'!$AS25","v":57476.802340609123},{"$f":"DM19*'SouthAfrica-IO-Data'!$AS25","v":21432.144260733021},{"$f":"(DQ19*'Default-Data'!$F$19/pv_dollar_index)/'SouthAfrica-IO-Data'!$AT25","v":0},{"$f":"(DR19*'Default-Data'!$F$19/pv_dollar_index)/'SouthAfrica-IO-Data'!$AT25","v":4.8487095556574573},{"$f":"(DS19*'Default-Data'!$F$19/pv_dollar_index)/'SouthAfrica-IO-Data'!$AT25","v":1.8080032020470269},1306.3517172904146,499.12158590747435,{"$f":"DJ19*'SouthAfrica-IO-Data'!AR25","v":0},{"$f":"DW19*'SouthAfrica-IO-Data'!$AR25","v":396.99001540159219},{"$f":"DX19*'SouthAfrica-IO-Data'!$AR25","v":151.67912550202246},{"$f":"DJ19*'SouthAfrica-IO-Data'!AS25","v":0},{"$f":"DW19*'SouthAfrica-IO-Data'!$AS25","v":317.84616901030654},{"$f":"DX19*'SouthAfrica-IO-Data'!$AS25","v":121.44040678424068},{"$f":"(EB19*'Default-Data'!$F$19/pv_dollar_index)/'SouthAfrica-IO-Data'!$AT25","v":0},{"$f":"(EC19*'Default-Data'!$F$19/pv_dollar_index)/'SouthAfrica-IO-Data'!$AT25","v":2.6813317619455022E-2},{"$f":"(ED19*'Default-Data'!$F$19/pv_dollar_index)/'SouthAfrica-IO-Data'!$AT25","v":1.0244641957084842E-2},null,"FOREST",0,0,null,541458.39426708885,28598.318212890299,{"$f":"EJ19*'Zambia-IO-Data'!BO23","v":0},{"$f":"EM19*'Zambia-IO-Data'!$BO23","v":173562.22074238068},{"$f":"EN19*'Zambia-IO-Data'!$BO23","v":9167.0711380237444},{"$f":"EJ19*'Zambia-IO-Data'!$BN23","v":0},{"$f":"EM19*'Zambia-IO-Data'!$BN23","v":98498.438490685105},{"$f":"EN19*'Zambia-IO-Data'!$BN23","v":5202.4120731239573},{"$f":"(ER19*'Default-Data'!$F$19/pv_dollar_index)/'Zambia-IO-Data'!$BP23","v":0},{"$f":"(ES19*'Default-Data'!$F$19/pv_dollar_index)/'Zambia-IO-Data'!$BP23","v":1032.8324172008367},{"$f":"(ET19*'Default-Data'!$F$19/pv_dollar_index)/'Zambia-IO-Data'!$BP23","v":54.551319991408512},4032.7937251893918,166.67145431974222,{"$f":"EK19*'Zambia-IO-Data'!BO23","v":0},{"$f":"EX19*'Zambia-IO-Data'!$BO23","v":1292.6951399234276},{"$f":"EY19*'Zambia-IO-Data'!$BO23","v":53.425836689175554},{"$f":"EK19*'Zambia-IO-Data'!BN23","v":0},{"$f":"EX19*'Zambia-IO-Data'!$BN23","v":733.61848092477226},{"$f":"EY19*'Zambia-IO-Data'!$BN23","v":30.319740473666194},{"$f":"(FC19*'Default-Data'!$F$19/pv_dollar_index)/'Zambia-IO-Data'!$BP23","v":0},{"$f":"(FD19*'Default-Data'!$F$19/pv_dollar_index)/'Zambia-IO-Data'!$BP23","v":7.6925579792657706},{"$f":"(FE19*'Default-Data'!$F$19/pv_dollar_index)/'Zambia-IO-Data'!$BP23","v":0.31792596230122111},null,"TTL_C29: Machinery and equipment, nec",0,0,null,939454.49805031461,193275.07795896148,{"$f":"FK19*CustomRegion1!C21","v":0},{"$f":"FN19*CustomRegion1!$C21","v":343715.77879789408},{"$f":"FO19*CustomRegion1!$C21","v":70713.051117171024},{"$f":"FK19*CustomRegion1!D21","v":0},{"$f":"FN19*CustomRegion1!$D21","v":102257.97116035933},{"$f":"FO19*CustomRegion1!$D21","v":21037.652583451872},{"$f":"(FS19*'Default-Data'!$C$58/pv_dollar_index)/CustomRegion1!$E21","v":0},{"$f":"(FT19*'Default-Data'!$C$58/pv_dollar_index)/CustomRegion1!$E21","v":34.446391537667267},{"$f":"(FU19*'Default-Data'!$C$58/pv_dollar_index)/CustomRegion1!$E21","v":7.0866966134755653},5735.9285542528178,1138.1466871024159,{"$f":"FL19*CustomRegion1!C21","v":0},{"$f":"FY19*CustomRegion1!$C21","v":2098.5892922389266},{"$f":"FZ19*CustomRegion1!$C21","v":416.41077429031418},{"$f":"FL19*CustomRegion1!D21","v":0},{"$f":"FY19*CustomRegion1!$D21","v":624.34574308382571},{"$f":"FZ19*CustomRegion1!$D21","v":123.88526676652744},{"$f":"(GD19*'Default-Data'!$C$58/pv_dollar_index)/CustomRegion1!$E21","v":0},{"$f":"(GE19*'Default-Data'!$C$58/pv_dollar_index)/CustomRegion1!$E21","v":0.21031571110886979},{"$f":"(GF19*'Default-Data'!$C$58/pv_dollar_index)/CustomRegion1!$E21","v":4.173171398145669E-2},null,"C29 Machinery and equipment n.e.c ",0,0,null,1922855.0507562249,317678.56769753108,{"$f":"GL19*CustomRegion2!$C$13","v":0},{"$f":"GO19*CustomRegion2!C$13","v":1184827.6324644357},{"$f":"GP19*CustomRegion2!D$13","v":35153.2461194387},{"$f":"GL19*CustomRegion2!D25","v":0},{"$f":"GO19*CustomRegion2!$D25","v":517404.21111135295},{"$f":"GP19*CustomRegion2!$D25","v":85481.341218040587},{"$f":"(GT19*'Default-Data'!$C$59/pv_dollar_index)/CustomRegion2!$E25","v":0},{"$f":"(GU19*'Default-Data'!$C$59/pv_dollar_index)/CustomRegion2!$E25","v":62.515552204306971},{"$f":"(GV19*'Default-Data'!$C$59/pv_dollar_index)/CustomRegion2!$E25","v":10.328314178062429},17031.619858084425,2722.96959638111,{"$f":"GM19*CustomRegion2!C25","v":0},{"$f":"GZ19*CustomRegion2!$C25","v":6399.593822027633},{"$f":"HA19*CustomRegion2!$C25","v":1023.1498560777266},{"$f":"GM19*CustomRegion2!D25","v":0},{"$f":"GZ19*CustomRegion2!$D25","v":4582.8892995106053},{"$f":"HA19*CustomRegion2!$D25","v":732.7000209098868},{"$f":"(HE19*'Default-Data'!$C$59/pv_dollar_index)/CustomRegion2!$E25","v":0},{"$f":"(HF19*'Default-Data'!$C$59/pv_dollar_index)/CustomRegion2!$E25","v":0.55372926833109137},{"$f":"(HG19*'Default-Data'!$C$59/pv_dollar_index)/CustomRegion2!$E25","v":8.8528746816540493E-2},null,"FOREST",0,0,null,541458.39426708885,28598.318212890299,{"$f":"HM19*CustomRegion3!D24","v":0},{"$f":"HP19*CustomRegion3!$D24","v":173562.22074238068},{"$f":"HQ19*CustomRegion3!$D24","v":9167.0711380237444},{"$f":"HM19*CustomRegion3!E24","v":0},{"$f":"HP19*CustomRegion3!$E24","v":98498.438490685105},{"$f":"HQ19*CustomRegion3!$E24","v":5202.4120731239573},{"$f":"(HU19*'Default-Data'!$C$60/pv_dollar_index)/CustomRegion3!$F24","v":0},{"$f":"(HV19*'Default-Data'!$C$60/pv_dollar_index)/CustomRegion3!$F24","v":1032.8324172008367},{"$f":"(HW19*'Default-Data'!$C$60/pv_dollar_index)/CustomRegion3!$F24","v":54.551319991408512},4032.7937251893918,166.67145431974222,{"$f":"HN19*CustomRegion3!D24","v":0},{"$f":"IA19*CustomRegion3!$D24","v":1292.6951399234276},{"$f":"IB19*CustomRegion3!$D24","v":53.425836689175554},{"$f":"HN19*CustomRegion3!E24","v":0},{"$f":"IA19*CustomRegion3!$E24","v":733.61848092477226},{"$f":"IB19*CustomRegion3!$E24","v":30.319740473666194},{"$f":"(IF19*'Default-Data'!$C$60/pv_dollar_index)/CustomRegion3!$F24","v":0},{"$f":"(IG19*'Default-Data'!$C$60/pv_dollar_index)/CustomRegion3!$F24","v":7.6925579792657706},{"$f":"(IH19*'Default-Data'!$C$60/pv_dollar_index)/CustomRegion3!$F24","v":0.31792596230122111}]
[null,null,null,null,null,null,null,null,null,null,null,null,null,null,null,null,null,null,null,null,null,null,null,null,null,null,null,null,null,19,"TTL_C30T33X: Computer, Electronic and optical equipment",{"$f":"'Solar-PV-Inputs'!B13*'Solar-PV-Inputs'!C13","v":0},{"$f":"'Solar-PV-Inputs'!B33*'Solar-PV-Inputs'!C33","v":0},null,66881.427821134523,15976.940097058032,{"$f":"AF20*'Colombia-IO-Data'!AN26","v":0},{"$f":"AI20*'Colombia-IO-Data'!$AN26","v":15977.742480855861},{"$f":"AJ20*'Colombia-IO-Data'!$AN26","v":3816.8358962902776},{"$f":"AK20*'Colombia-IO-Data'!$AO26","v":0},{"$f":"AL20*'Colombia-IO-Data'!$AO26","v":6346.8168746124902},{"$f":"AM20*'Colombia-IO-Data'!$AO26","v":1516.156522313921},{"$f":"(AN20*'Default-Data'!$F$19/pv_dollar_index)/'Colombia-IO-Data'!$AP26","v":0},{"$f":"(AO20*'Default-Data'!$F$19/pv_dollar_index)/'Colombia-IO-Data'!$AP26","v":1.6157081022563162},{"$f":"(AP20*'Default-Data'!$F$19/pv_dollar_index)/'Colombia-IO-Data'!$AP26","v":0.38596771039513056},361.16884171989886,81.493331972980798,{"$f":"'Colombia-IO-Data'!$AN26*Calculations!AG20","v":0},{"$f":"'Colombia-IO-Data'!$AN26*Calculations!AT20","v":86.281990877084809},{"$f":"'Colombia-IO-Data'!$AN26*Calculations!AU20","v":19.468475996855549},{"$f":"AV20*'Colombia-IO-Data'!$AO26","v":0},{"$f":"AW20*'Colombia-IO-Data'!$AO26","v":34.273677669419371},{"$f":"AX20*'Colombia-IO-Data'!$AO26","v":7.7334361927463151},{"$f":"(AY20*'Default-Data'!$F$19/pv_dollar_index)/'Colombia-IO-Data'!$AP26","v":0},{"$f":"(AZ20*'Default-Data'!$F$19/pv_dollar_index)/'Colombia-IO-Data'!$AP26","v":8.7250443487836248E-3},{"$f":"(BA20*'Default-Data'!$F$19/pv_dollar_index)/'Colombia-IO-Data'!$AP26","v":1.9686995484118719E-3},null,"DOM_C30T33X: Computer, Electronic and optical equipment",0,0,null,139429.93849786138,204432.05067387613,{"$f":"BG20*'Mexico-IO-Data'!AQ26","v":0},{"$f":"BJ20*'Mexico-IO-Data'!$AQ26","v":18899.345531736373},{"$f":"BK20*'Mexico-IO-Data'!$AQ26","v":27710.203454663981},{"$f":"BG20*'Mexico-IO-Data'!AR26","v":0},{"$f":"BJ20*'Mexico-IO-Data'!$AR26","v":8102.915197877147},{"$f":"BK20*'Mexico-IO-Data'!$AR26","v":11880.486989987088},{"$f":"(Calculations!BO20*'Default-Data'!$F$19/pv_dollar_index)/'Mexico-IO-Data'!$AS26","v":0},{"$f":"(Calculations!BP20*'Default-Data'!$F$19/pv_dollar_index)/'Mexico-IO-Data'!$AS26","v":1.1212135350738148},{"$f":"(Calculations!BQ20*'Default-Data'!$F$19/pv_dollar_index)/'Mexico-IO-Data'!$AS26","v":1.6439222787289809},538.77491887946587,1276.6608040960077,{"$f":"BH20*'Mexico-IO-Data'!AQ26","v":0},{"$f":"BU20*'Mexico-IO-Data'!$AQ26","v":73.029461717021718},{"$f":"BV20*'Mexico-IO-Data'!$AQ26","v":173.04786850927954},{"$f":"BH20*'Mexico-IO-Data'!AR26","v":0},{"$f":"BU20*'Mexico-IO-Data'!$AR26","v":31.310689264131121},{"$f":"BV20*'Mexico-IO-Data'!$AR26","v":74.192632826860702},{"$f":"(BZ20*'Default-Data'!$F$19/pv_dollar_index)/'Mexico-IO-Data'!$AS26","v":0},{"$f":"(CA20*'Default-Data'!$F$19/pv_dollar_index)/'Mexico-IO-Data'!$AS26","v":4.332510922073019E-3},{"$f":"(CB20*'Default-Data'!$F$19/pv_dollar_index)/'Mexico-IO-Data'!$AS26","v":1.0266155093173331E-2},null,"TTL_C30T33X: Computer, Electronic and optical equipment",{"$f":"'Solar-PV-Inputs'!B13*'Solar-PV-Inputs'!C13","v":0},{"$f":"'Solar-PV-Inputs'!B33*'Solar-PV-Inputs'!C33","v":0},null,1290506.4256682522,865291.11323196348,{"$f":"CH20*'Philippines-IO-Data'!AN26","v":0},{"$f":"'Philippines-IO-Data'!$AN26*Calculations!CK20","v":318057.25948955934},{"$f":"'Philippines-IO-Data'!$AN26*Calculations!CL20","v":213259.00798418533},{"$f":"CH20*'Philippines-IO-Data'!AO26","v":0},{"$f":"'Philippines-IO-Data'!$AO26*Calculations!CK20","v":119347.88649617511},{"$f":"'Philippines-IO-Data'!$AO26*Calculations!CL20","v":80023.364094976583},{"$f":"(CP20*'Default-Data'!$F$19/pv_dollar_index)/'Philippines-IO-Data'!$AP26","v":0},{"$f":"(CQ20*'Default-Data'!$F$19/pv_dollar_index)/'Philippines-IO-Data'!$AP26","v":40.203262208217993},{"$f":"(CR20*'Default-Data'!$F$19/pv_dollar_index)/'Philippines-IO-Data'!$AP26","v":26.956491513548055},5881.1388350861116,5068.4962154902596,{"$f":"CI20*'Philippines-IO-Data'!AN26","v":0},{"$f":"'Philippines-IO-Data'!$AN26*Calculations!CV20","v":1449.461128871561},{"$f":"'Philippines-IO-Data'!$AN26*Calculations!CW20","v":1249.1778297014439},{"$f":"'Philippines-IO-Data'!AO26*Calculations!CI20","v":0},{"$f":"'Philippines-IO-Data'!$AO26*Calculations!CV20","v":543.89616060582182},{"$f":"'Philippines-IO-Data'!$AO26*Calculations!CW20","v":468.74180476814507},{"$f":"(DA20*'Default-Data'!$F$19/pv_dollar_index)/'Philippines-IO-Data'!$AP26","v":0},{"$f":"(DB20*'Default-Data'!$F$19/pv_dollar_index)/'Philippines-IO-Data'!$AP26","v":0.18321564462375023},{"$f":"(DC20*'Default-Data'!$F$19/pv_dollar_index)/'Philippines-IO-Data'!$AP26","v":0.15789931634567328},null,"DOM_C30T33X: Computer, Electronic and optical equipment",0,0,null,50731.184073883145,154969.93561868192,{"$f":"DI20*'SouthAfrica-IO-Data'!AR26","v":0},{"$f":"DL20*'SouthAfrica-IO-Data'!$AR26","v":12912.088439606747},{"$f":"DM20*'SouthAfrica-IO-Data'!$AR26","v":39442.909735251167},{"$f":"DI20*'SouthAfrica-IO-Data'!AS26","v":0},{"$f":"DL20*'SouthAfrica-IO-Data'!$AS26","v":9026.3839530311398},{"$f":"DM20*'SouthAfrica-IO-Data'!$AS26","v":27573.141956110248},{"$f":"(DQ20*'Default-Data'!$F$19/pv_dollar_index)/'SouthAfrica-IO-Data'!$AT26","v":0},{"$f":"(DR20*'Default-Data'!$F$19/pv_dollar_index)/'SouthAfrica-IO-Data'!$AT26","v":0.76146049090787671},{"$f":"(DS20*'Default-Data'!$F$19/pv_dollar_index)/'SouthAfrica-IO-Data'!$AT26","v":2.3260541894765829},324.77513089567839,878.10215309817272,{"$f":"DJ20*'SouthAfrica-IO-Data'!AR26","v":0},{"$f":"DW20*'SouthAfrica-IO-Data'!$AR26","v":82.661686094346848},{"$f":"DX20*'SouthAfrica-IO-Data'!$AR26","v":223.49434311054605},{"$f":"DJ20*'SouthAfrica-IO-Data'!AS26","v":0},{"$f":"DW20*'SouthAfrica-IO-Data'!$AS26","v":57.785858607024402},{"$f":"DX20*'SouthAfrica-IO-Data'!$AS26","v":156.23698379095904},{"$f":"(EB20*'Default-Data'!$F$19/pv_dollar_index)/'SouthAfrica-IO-Data'!$AT26","v":0},{"$f":"(EC20*'Default-Data'!$F$19/pv_dollar_index)/'SouthAfrica-IO-Data'!$AT26","v":4.874781362215576E-3},{"$f":"(ED20*'Default-Data'!$F$19/pv_dollar_index)/'SouthAfrica-IO-Data'!$AT26","v":1.3180060918578479E-2},null,"MINING",0,0,null,12786685.583375612,165030.17232076637,{"$f":"EJ20*'Zambia-IO-Data'!BO24","v":0},{"$f":"EM20*'Zambia-IO-Data'!$BO24","v":3123943.4418185428},{"$f":"EN20*'Zambia-IO-Data'!$BO24","v":40318.886482507936},{"$f":"EJ20*'Zambia-IO-Data'!$BN24","v":0},{"$f":"EM20*'Zambia-IO-Data'!$BN24","v":113933.2741124281},{"$f":"EN20*'Zambia-IO-Data'!$BN24","v":1470.4692421849154},{"$f":"(ER20*'Default-Data'!$F$19/pv_dollar_index)/'Zambia-IO-Data'!$BP24","v":0},{"$f":"(ES20*'Default-Data'!$F$19/pv_dollar_index)/'Zambia-IO-Data'!$BP24","v":108.74382019967281},{"$f":"(ET20*'Default-Data'!$F$19/pv_dollar_index)/'Zambia-IO-Data'!$BP24","v":1.4034920362554808},108474.68947038351,961.18795428634621,{"$f":"EK20*'Zambia-IO-Data'!BO24","v":0},{"$f":"EX20*'Zambia-IO-Data'!$BO24","v":26501.691354238184},{"$f":"EY20*'Zambia-IO-Data'!$BO24","v":234.8299554695954},{"$f":"EK20*'Zambia-IO-Data'!BN24","v":0},{"$f":"EX20*'Zambia-IO-Data'!$BN24","v":966.54261568438835},{"$f":"EY20*'Zambia-IO-Data'!$BN24","v":8.5644782578879948},{"$f":"(FC20*'Default-Data'!$F$19/pv_dollar_index)/'Zambia-IO-Data'!$BP24","v":0},{"$f":"(FD20*'Default-Data'!$F$19/pv_dollar_index)/'Zambia-IO-Data'!$BP24","v":0.92251835325637721},{"$f":"(FE20*'Default-Data'!$F$19/pv_dollar_index)/'Zambia-IO-Data'!$BP24","v":8.1743818128209751E-3},null,"TTL_C30T33X: Computer, Electronic and optical equipment",0,0,null,2637316.4014306418,2115580.3075818797,{"$f":"FK20*CustomRegion1!C22","v":0},{"$f":"FN20*CustomRegion1!$C22","v":649991.05030533927},{"$f":"FO20*CustomRegion1!$C22","v":521404.35837903095},{"$f":"FK20*CustomRegion1!D22","v":0},{"$f":"FN20*CustomRegion1!$D22","v":243902.80611695259},{"$f":"FO20*CustomRegion1!$D22","v":195651.90331546051},{"$f":"(FS20*'Default-Data'!$C$58/pv_dollar_index)/CustomRegion1!$E22","v":0},{"$f":"(FT20*'Default-Data'!$C$58/pv_dollar_index)/CustomRegion1!$E22","v":82.160553952953791},{"$f":"(FU20*'Default-Data'!$C$58/pv_dollar_index)/CustomRegion1!$E22","v":65.906862714158422},12924.041545880096,12458.102429971274,{"$f":"FL20*CustomRegion1!C22","v":0},{"$f":"FY20*CustomRegion1!$C22","v":3185.2497235597111},{"$f":"FZ20*CustomRegion1!$C22","v":3070.4147135610515},{"$f":"FL20*CustomRegion1!D22","v":0},{"$f":"FY20*CustomRegion1!$D22","v":1195.2339119046474},{"$f":"FZ20*CustomRegion1!$D22","v":1152.1431937078598},{"$f":"(GD20*'Default-Data'!$C$58/pv_dollar_index)/CustomRegion1!$E22","v":0},{"$f":"(GE20*'Default-Data'!$C$58/pv_dollar_index)/CustomRegion1!$E22","v":0.40262382327144647},{"$f":"(GF20*'Default-Data'!$C$58/pv_dollar_index)/CustomRegion1!$E22","v":0.38810838028149963},null,"C30 Office, accounting and computing machinery",0,0,null,9920588.8964952044,2153301.3969895281,{"$f":"GL20*CustomRegion2!$C$13","v":0},{"$f":"GO20*CustomRegion2!C$13","v":6112882.9498950886},{"$f":"GP20*CustomRegion2!D$13","v":238277.11931065959},{"$f":"GL20*CustomRegion2!D26","v":0},{"$f":"GO20*CustomRegion2!$D26","v":686144.52207005024},{"$f":"GP20*CustomRegion2!$D26","v":148930.26747959704},{"$f":"(GT20*'Default-Data'!$C$59/pv_dollar_index)/CustomRegion2!$E26","v":0},{"$f":"(GU20*'Default-Data'!$C$59/pv_dollar_index)/CustomRegion2!$E26","v":94.942931818321895},{"$f":"(GV20*'Default-Data'!$C$59/pv_dollar_index)/CustomRegion2!$E26","v":20.607722974076658},91146.505420349014,18456.939913649141,{"$f":"GM20*CustomRegion2!C26","v":0},{"$f":"GZ20*CustomRegion2!$C26","v":14974.537694289176},{"$f":"HA20*CustomRegion2!$C26","v":3032.3065177709491},{"$f":"GM20*CustomRegion2!D26","v":0},{"$f":"GZ20*CustomRegion2!$D26","v":6304.0285261790204},{"$f":"HA20*CustomRegion2!$D26","v":1276.5500463788467},{"$f":"(HE20*'Default-Data'!$C$59/pv_dollar_index)/CustomRegion2!$E26","v":0},{"$f":"(HF20*'Default-Data'!$C$59/pv_dollar_index)/CustomRegion2!$E26","v":0.87229866491693164},{"$f":"(HG20*'Default-Data'!$C$59/pv_dollar_index)/CustomRegion2!$E26","v":0.1766383030361772},null,"MINING",0,0,null,12786685.583375612,165030.17232076637,{"$f":"HM20*CustomRegion3!D25","v":0},{"$f":"HP20*CustomRegion3!$D25","v":3123943.4418185428},{"$f":"HQ20*CustomRegion3!$D25","v":40318.886482507936},{"$f":"HM20*CustomRegion3!E25","v":0},{"$f":"HP20*CustomRegion3!$E25","v":113933.2741124281},{"$f":"HQ20*CustomRegion3!$E25","v":1470.4692421849154},{"$f":"(HU20*'Default-Data'!$C$60/pv_dollar_index)/CustomRegion3!$F25","v":0},{"$f":"(HV20*'Default-Data'!$C$60/pv_dollar_index)/CustomRegion3!$F25","v":108.74382019967281},{"$f":"(HW20*'Default-Data'!$C$60/pv_dollar_index)/CustomRegion3!$F25","v":1.4034920362554808},108474.68947038351,961.18795428634621,{"$f":"HN20*CustomRegion3!D25","v":0},{"$f":"IA20*CustomRegion3!$D25","v":26501.691354238184},{"$f":"IB20*CustomRegion3!$D25","v":234.8299554695954},{"$f":"HN20*CustomRegion3!E25","v":0},{"$f":"IA20*CustomRegion3!$E25","v":966.54261568438835},{"$f":"IB20*CustomRegion3!$E25","v":8.5644782578879948},{"$f":"(IF20*'Default-Data'!$C$60/pv_dollar_index)/CustomRegion3!$F25","v":0},{"$f":"(IG20*'Default-Data'!$C$60/pv_dollar_index)/CustomRegion3!$F25","v":0.92251835325637721},{"$f":"(IH20*'Default-Data'!$C$60/pv_dollar_index)/CustomRegion3!$F25","v":8.1743818128209751E-3}]
[null,null,null,null,null,null,null,null,null,null,null,null,null,null,null,null,null,null,null,null,null,null,null,null,null,null,null,null,null,20,"TTL_C31: Electrical machinery and apparatus, nec",{"$f":"'Solar-PV-Inputs'!B14*'Solar-PV-Inputs'!C14","v":0},0,null,962277.08226791082,59540.451875332976,{"$f":"AF21*'Colombia-IO-Data'!AN27","v":0},{"$f":"AI21*'Colombia-IO-Data'!$AN27","v":243390.89984795061},{"$f":"AJ21*'Colombia-IO-Data'!$AN27","v":15059.699982812472},{"$f":"AK21*'Colombia-IO-Data'!$AO27","v":0},{"$f":"AL21*'Colombia-IO-Data'!$AO27","v":125978.64257350973},{"$f":"AM21*'Colombia-IO-Data'!$AO27","v":7794.8705665833368},{"$f":"(AN21*'Default-Data'!$F$19/pv_dollar_index)/'Colombia-IO-Data'!$AP27","v":0},{"$f":"(AO21*'Default-Data'!$F$19/pv_dollar_index)/'Colombia-IO-Data'!$AP27","v":32.070361811045593},{"$f":"(AP21*'Default-Data'!$F$19/pv_dollar_index)/'Colombia-IO-Data'!$AP27","v":1.9843388866071434},6034.2389546401482,303.69706470835899,{"$f":"'Colombia-IO-Data'!$AN27*Calculations!AG21","v":0},{"$f":"'Colombia-IO-Data'!$AN27*Calculations!AT21","v":1526.2535875904011},{"$f":"'Colombia-IO-Data'!$AN27*Calculations!AU21","v":76.814779466990643},{"$f":"AV21*'Colombia-IO-Data'!$AO27","v":0},{"$f":"AW21*'Colombia-IO-Data'!$AO27","v":789.98580188373899},{"$f":"AX21*'Colombia-IO-Data'!$AO27","v":39.759176094424014},{"$f":"(AY21*'Default-Data'!$F$19/pv_dollar_index)/'Colombia-IO-Data'!$AP27","v":0},{"$f":"(AZ21*'Default-Data'!$F$19/pv_dollar_index)/'Colombia-IO-Data'!$AP27","v":0.20110655246358289},{"$f":"(BA21*'Default-Data'!$F$19/pv_dollar_index)/'Colombia-IO-Data'!$AP27","v":1.0121486758465628E-2},null,"DOM_C31: Electrical machinery and apparatus, nec",0,0,null,457158.76523170952,99046.464116049057,{"$f":"BG21*'Mexico-IO-Data'!AQ27","v":0},{"$f":"BJ21*'Mexico-IO-Data'!$AQ27","v":122653.56296497663},{"$f":"BK21*'Mexico-IO-Data'!$AQ27","v":26573.704032030844},{"$f":"BG21*'Mexico-IO-Data'!AR27","v":0},{"$f":"BJ21*'Mexico-IO-Data'!$AR27","v":42319.760863018484},{"$f":"BK21*'Mexico-IO-Data'!$AR27","v":9168.8555366410328},{"$f":"(Calculations!BO21*'Default-Data'!$F$19/pv_dollar_index)/'Mexico-IO-Data'!$AS27","v":0},{"$f":"(Calculations!BP21*'Default-Data'!$F$19/pv_dollar_index)/'Mexico-IO-Data'!$AS27","v":6.5731623420521776},{"$f":"(Calculations!BQ21*'Default-Data'!$F$19/pv_dollar_index)/'Mexico-IO-Data'!$AS27","v":1.4241190097515775},2907.3083805701995,618.5367612585419,{"$f":"BH21*'Mexico-IO-Data'!AQ27","v":0},{"$f":"BU21*'Mexico-IO-Data'!$AQ27","v":780.01726891123656},{"$f":"BV21*'Mexico-IO-Data'!$AQ27","v":165.95052608195093},{"$f":"BH21*'Mexico-IO-Data'!AR27","v":0},{"$f":"BU21*'Mexico-IO-Data'!$AR27","v":269.13318693215837},{"$f":"BV21*'Mexico-IO-Data'!$AR27","v":57.258724566245732},{"$f":"(BZ21*'Default-Data'!$F$19/pv_dollar_index)/'Mexico-IO-Data'!$AS27","v":0},{"$f":"(CA21*'Default-Data'!$F$19/pv_dollar_index)/'Mexico-IO-Data'!$AS27","v":4.1802129626040928E-2},{"$f":"(CB21*'Default-Data'!$F$19/pv_dollar_index)/'Mexico-IO-Data'!$AS27","v":8.8935023354935715E-3},null,"TTL_C31: Electrical machinery and apparatus, nec",{"$f":"'Solar-PV-Inputs'!B14*'Solar-PV-Inputs'!C14","v":0},0,null,47204.768972844802,491575.15467565635,{"$f":"CH21*'Philippines-IO-Data'!AN27","v":0},{"$f":"'Philippines-IO-Data'!$AN27*Calculations!CK21","v":12265.407672614176},{"$f":"'Philippines-IO-Data'!$AN27*Calculations!CL21","v":127727.9775967927},{"$f":"CH21*'Philippines-IO-Data'!AO27","v":0},{"$f":"'Philippines-IO-Data'!$AO27*Calculations!CK21","v":4101.6696629555208},{"$f":"'Philippines-IO-Data'!$AO27*Calculations!CL21","v":42713.457620260779},{"$f":"(CP21*'Default-Data'!$F$19/pv_dollar_index)/'Philippines-IO-Data'!$AP27","v":0},{"$f":"(CQ21*'Default-Data'!$F$19/pv_dollar_index)/'Philippines-IO-Data'!$AP27","v":1.3816792721886926},{"$f":"(CR21*'Default-Data'!$F$19/pv_dollar_index)/'Philippines-IO-Data'!$AP27","v":14.38835983561372},253.79943473889455,2879.4318732760166,{"$f":"CI21*'Philippines-IO-Data'!AN27","v":0},{"$f":"'Philippines-IO-Data'!$AN27*Calculations!CV21","v":65.945742387646206},{"$f":"'Philippines-IO-Data'!$AN27*Calculations!CW21","v":748.1745289668994},{"$f":"'Philippines-IO-Data'!AO27*Calculations!CI21","v":0},{"$f":"'Philippines-IO-Data'!$AO27*Calculations!CV21","v":22.052887125507038},{"$f":"'Philippines-IO-Data'!$AO27*Calculations!CW21","v":250.19671991102348},{"$f":"(DA21*'Default-Data'!$F$19/pv_dollar_index)/'Philippines-IO-Data'!$AP27","v":0},{"$f":"(DB21*'Default-Data'!$F$19/pv_dollar_index)/'Philippines-IO-Data'!$AP27","v":7.4286862514604162E-3},{"$f":"(DC21*'Default-Data'!$F$19/pv_dollar_index)/'Philippines-IO-Data'!$AP27","v":8.428070768175118E-2},null,"DOM_C31: Electrical machinery and apparatus, nec",0,0,null,1409273.607669645,298582.57998063788,{"$f":"DI21*'SouthAfrica-IO-Data'!AR27","v":0},{"$f":"DL21*'SouthAfrica-IO-Data'!$AR27","v":265091.13503920363},{"$f":"DM21*'SouthAfrica-IO-Data'!$AR27","v":56164.817533825146},{"$f":"DI21*'SouthAfrica-IO-Data'!AS27","v":0},{"$f":"DL21*'SouthAfrica-IO-Data'!$AS27","v":270457.45200814656},{"$f":"DM21*'SouthAfrica-IO-Data'!$AS27","v":57301.778275061457},{"$f":"(DQ21*'Default-Data'!$F$19/pv_dollar_index)/'SouthAfrica-IO-Data'!$AT27","v":0},{"$f":"(DR21*'Default-Data'!$F$19/pv_dollar_index)/'SouthAfrica-IO-Data'!$AT27","v":22.815633064961681},{"$f":"(DS21*'Default-Data'!$F$19/pv_dollar_index)/'SouthAfrica-IO-Data'!$AT27","v":4.8339446274684823},10704.579643340503,1691.8507793907811,{"$f":"DJ21*'SouthAfrica-IO-Data'!AR27","v":0},{"$f":"DW21*'SouthAfrica-IO-Data'!$AR27","v":2013.5828502905483},{"$f":"DX21*'SouthAfrica-IO-Data'!$AR27","v":318.24525839754278},{"$f":"DJ21*'SouthAfrica-IO-Data'!AS27","v":0},{"$f":"DW21*'SouthAfrica-IO-Data'!$AS27","v":2054.344393735932},{"$f":"DX21*'SouthAfrica-IO-Data'!$AS27","v":324.68758974963339},{"$f":"(EB21*'Default-Data'!$F$19/pv_dollar_index)/'SouthAfrica-IO-Data'!$AT27","v":0},{"$f":"(EC21*'Default-Data'!$F$19/pv_dollar_index)/'SouthAfrica-IO-Data'!$AT27","v":0.17330329605829589},{"$f":"(ED21*'Default-Data'!$F$19/pv_dollar_index)/'SouthAfrica-IO-Data'!$AT27","v":2.7390455886759257E-2},null,"FOODMFG",0,0,null,52775.930111886802,3880957.0973169454,{"$f":"EJ21*'Zambia-IO-Data'!BO25","v":0},{"$f":"EM21*'Zambia-IO-Data'!$BO25","v":5917.8727631149204},{"$f":"EN21*'Zambia-IO-Data'!$BO25","v":435179.6406494141},{"$f":"EJ21*'Zambia-IO-Data'!$BN25","v":0},{"$f":"EM21*'Zambia-IO-Data'!$BN25","v":2739.9124938607533},{"$f":"EN21*'Zambia-IO-Data'!$BN25","v":201483.57056963106},{"$f":"(ER21*'Default-Data'!$F$19/pv_dollar_index)/'Zambia-IO-Data'!$BP25","v":0},{"$f":"(ES21*'Default-Data'!$F$19/pv_dollar_index)/'Zambia-IO-Data'!$BP25","v":11.147002792557275},{"$f":"(ET21*'Default-Data'!$F$19/pv_dollar_index)/'Zambia-IO-Data'!$BP25","v":819.7115524041368},355.40912994482778,22671.86636915851,{"$f":"EK21*'Zambia-IO-Data'!BO25","v":0},{"$f":"EX21*'Zambia-IO-Data'!$BO25","v":39.85275115765598},{"$f":"EY21*'Zambia-IO-Data'!$BO25","v":2542.2426509695028},{"$f":"EK21*'Zambia-IO-Data'!BN25","v":0},{"$f":"EX21*'Zambia-IO-Data'!$BN25","v":18.451402249160655},{"$f":"EY21*'Zambia-IO-Data'!$BN25","v":1177.0314571871031},{"$f":"(FC21*'Default-Data'!$F$19/pv_dollar_index)/'Zambia-IO-Data'!$BP25","v":0},{"$f":"(FD21*'Default-Data'!$F$19/pv_dollar_index)/'Zambia-IO-Data'!$BP25","v":7.5067299725391959E-2},{"$f":"(FE21*'Default-Data'!$F$19/pv_dollar_index)/'Zambia-IO-Data'!$BP25","v":4.7886102091183034},null,"TTL_C31: Electrical machinery and apparatus, nec",0,0,null,221668.22252841081,915895.82695247955,{"$f":"FK21*CustomRegion1!C23","v":0},{"$f":"FN21*CustomRegion1!$C23","v":57596.958454320018},{"$f":"FO21*CustomRegion1!$C23","v":237980.94869780357},{"$f":"FK21*CustomRegion1!D23","v":0},{"$f":"FN21*CustomRegion1!$D23","v":19260.973909417746},{"$f":"FO21*CustomRegion1!$D23","v":79583.105893382075},{"$f":"(FS21*'Default-Data'!$C$58/pv_dollar_index)/CustomRegion1!$E23","v":0},{"$f":"(FT21*'Default-Data'!$C$58/pv_dollar_index)/CustomRegion1!$E23","v":6.4882086076219192},{"$f":"(FU21*'Default-Data'!$C$58/pv_dollar_index)/CustomRegion1!$E23","v":26.808187120084078},1271.6722220293034,5393.4724134387952,{"$f":"FL21*CustomRegion1!C23","v":0},{"$f":"FY21*CustomRegion1!$C23","v":330.42378065871395},{"$f":"FZ21*CustomRegion1!$C23","v":1401.4079374031173},{"$f":"FL21*CustomRegion1!D23","v":0},{"$f":"FY21*CustomRegion1!$D23","v":110.49687325705153},{"$f":"FZ21*CustomRegion1!$D23","v":468.64422086072551},{"$f":"(GD21*'Default-Data'!$C$58/pv_dollar_index)/CustomRegion1!$E23","v":0},{"$f":"(GE21*'Default-Data'!$C$58/pv_dollar_index)/CustomRegion1!$E23","v":3.7221729677499087E-2},{"$f":"(GF21*'Default-Data'!$C$58/pv_dollar_index)/CustomRegion1!$E23","v":0.15786644444879713},null,"C31 Electrical machinery and apparatus n.e.c",0,0,null,3965256.3368654018,1029959.067742547,{"$f":"GL21*CustomRegion2!$C$13","v":0},{"$f":"GO21*CustomRegion2!C$13","v":2443317.438761251},{"$f":"GP21*CustomRegion2!D$13","v":113971.82020719234},{"$f":"GL21*CustomRegion2!D27","v":0},{"$f":"GO21*CustomRegion2!$D27","v":481654.30644364632},{"$f":"GP21*CustomRegion2!$D27","v":125107.73031915599},{"$f":"(GT21*'Default-Data'!$C$59/pv_dollar_index)/CustomRegion2!$E27","v":0},{"$f":"(GU21*'Default-Data'!$C$59/pv_dollar_index)/CustomRegion2!$E27","v":74.811196576710032},{"$f":"(GV21*'Default-Data'!$C$59/pv_dollar_index)/CustomRegion2!$E27","v":19.431901430050775},36435.077490523967,8828.2544438133409,{"$f":"GM21*CustomRegion2!C27","v":0},{"$f":"GZ21*CustomRegion2!$C27","v":9460.9244197192147},{"$f":"HA21*CustomRegion2!$C27","v":2292.3911187698468},{"$f":"GM21*CustomRegion2!D27","v":0},{"$f":"GZ21*CustomRegion2!$D27","v":4425.7194209017225},{"$f":"HA21*CustomRegion2!$D27","v":1072.3560874766445},{"$f":"(HE21*'Default-Data'!$C$59/pv_dollar_index)/CustomRegion2!$E27","v":0},{"$f":"(HF21*'Default-Data'!$C$59/pv_dollar_index)/CustomRegion2!$E27","v":0.6874087102742017},{"$f":"(HG21*'Default-Data'!$C$59/pv_dollar_index)/CustomRegion2!$E27","v":0.1665597939999591},null,"FOODMFG",0,0,null,52775.930111886802,3880957.0973169454,{"$f":"HM21*CustomRegion3!D26","v":0},{"$f":"HP21*CustomRegion3!$D26","v":5917.8727631149204},{"$f":"HQ21*CustomRegion3!$D26","v":435179.6406494141},{"$f":"HM21*CustomRegion3!E26","v":0},{"$f":"HP21*CustomRegion3!$E26","v":2739.9124938607533},{"$f":"HQ21*CustomRegion3!$E26","v":201483.57056963106},{"$f":"(HU21*'Default-Data'!$C$60/pv_dollar_index)/CustomRegion3!$F26","v":0},{"$f":"(HV21*'Default-Data'!$C$60/pv_dollar_index)/CustomRegion3!$F26","v":11.147002792557275},{"$f":"(HW21*'Default-Data'!$C$60/pv_dollar_index)/CustomRegion3!$F26","v":819.7115524041368},355.40912994482778,22671.86636915851,{"$f":"HN21*CustomRegion3!D26","v":0},{"$f":"IA21*CustomRegion3!$D26","v":39.85275115765598},{"$f":"IB21*CustomRegion3!$D26","v":2542.2426509695028},{"$f":"HN21*CustomRegion3!E26","v":0},{"$f":"IA21*CustomRegion3!$E26","v":18.451402249160655},{"$f":"IB21*CustomRegion3!$E26","v":1177.0314571871031},{"$f":"(IF21*'Default-Data'!$C$60/pv_dollar_index)/CustomRegion3!$F26","v":0},{"$f":"(IG21*'Default-Data'!$C$60/pv_dollar_index)/CustomRegion3!$F26","v":7.5067299725391959E-2},{"$f":"(IH21*'Default-Data'!$C$60/pv_dollar_index)/CustomRegion3!$F26","v":4.7886102091183034}]
[null,null,null,null,null,null,null,null,null,null,null,null,null,null,null,null,null,null,null,null,null,null,null,null,null,null,null,null,null,21,"TTL_C34: Motor vehicles, trailers and semi-trailers",0,0,null,118297.69070621826,184134.41429087997,{"$f":"AF22*'Colombia-IO-Data'!AN28","v":0},{"$f":"AI22*'Colombia-IO-Data'!$AN28","v":26038.073451245389},{"$f":"AJ22*'Colombia-IO-Data'!$AN28","v":40529.154673988582},{"$f":"AK22*'Colombia-IO-Data'!$AO28","v":0},{"$f":"AL22*'Colombia-IO-Data'!$AO28","v":6663.2726769552246},{"$f":"AM22*'Colombia-IO-Data'!$AO28","v":10371.612533659381},{"$f":"(AN22*'Default-Data'!$F$19/pv_dollar_index)/'Colombia-IO-Data'!$AP28","v":0},{"$f":"(AO22*'Default-Data'!$F$19/pv_dollar_index)/'Colombia-IO-Data'!$AP28","v":1.6962682025321567},{"$f":"(AP22*'Default-Data'!$F$19/pv_dollar_index)/'Colombia-IO-Data'!$AP28","v":2.6402996549541635},481.842724417959,939.21156744026166,{"$f":"'Colombia-IO-Data'!$AN28*Calculations!AG22","v":0},{"$f":"'Colombia-IO-Data'!$AN28*Calculations!AT22","v":106.05664553081186},{"$f":"'Colombia-IO-Data'!$AN28*Calculations!AU22","v":206.72643424630579},{"$f":"AV22*'Colombia-IO-Data'!$AO28","v":0},{"$f":"AW22*'Colombia-IO-Data'!$AO28","v":27.140423798949833},{"$f":"AX22*'Colombia-IO-Data'!$AO28","v":52.902324110000784},{"$f":"(AY22*'Default-Data'!$F$19/pv_dollar_index)/'Colombia-IO-Data'!$AP28","v":0},{"$f":"(AZ22*'Default-Data'!$F$19/pv_dollar_index)/'Colombia-IO-Data'!$AP28","v":6.9091331130159243E-3},{"$f":"(BA22*'Default-Data'!$F$19/pv_dollar_index)/'Colombia-IO-Data'!$AP28","v":1.346733573401496E-2},null,"DOM_C34: Motor vehicles, trailers and semi-trailers",0,0,null,89192.046322057417,665521.98798422841,{"$f":"BG22*'Mexico-IO-Data'!AQ28","v":0},{"$f":"BJ22*'Mexico-IO-Data'!$AQ28","v":30196.547496499021},{"$f":"BK22*'Mexico-IO-Data'!$AQ28","v":225316.79840111817},{"$f":"BG22*'Mexico-IO-Data'!AR28","v":0},{"$f":"BJ22*'Mexico-IO-Data'!$AR28","v":7665.2910489370925},{"$f":"BK22*'Mexico-IO-Data'!$AR28","v":57195.90420591944},{"$f":"(Calculations!BO22*'Default-Data'!$F$19/pv_dollar_index)/'Mexico-IO-Data'!$AS28","v":0},{"$f":"(Calculations!BP22*'Default-Data'!$F$19/pv_dollar_index)/'Mexico-IO-Data'!$AS28","v":1.1165775852646478},{"$f":"(Calculations!BQ22*'Default-Data'!$F$19/pv_dollar_index)/'Mexico-IO-Data'!$AS28","v":8.3315381239345498},487.28876347562266,4156.1283249021017,{"$f":"BH22*'Mexico-IO-Data'!AQ28","v":0},{"$f":"BU22*'Mexico-IO-Data'!$AQ28","v":164.97478079682762},{"$f":"BV22*'Mexico-IO-Data'!$AQ28","v":1407.084280937891},{"$f":"BH22*'Mexico-IO-Data'!AR28","v":0},{"$f":"BU22*'Mexico-IO-Data'!$AR28","v":41.878287929734235},{"$f":"BV22*'Mexico-IO-Data'!$AR28","v":357.18356693008673},{"$f":"(BZ22*'Default-Data'!$F$19/pv_dollar_index)/'Mexico-IO-Data'!$AS28","v":0},{"$f":"(CA22*'Default-Data'!$F$19/pv_dollar_index)/'Mexico-IO-Data'!$AS28","v":6.100271641751206E-3},{"$f":"(CB22*'Default-Data'!$F$19/pv_dollar_index)/'Mexico-IO-Data'!$AS28","v":5.2029748396091591E-2},null,"TTL_C34: Motor vehicles, trailers and semi-trailers",0,0,null,30861.35538033989,322139.41961353266,{"$f":"CH22*'Philippines-IO-Data'!AN28","v":0},{"$f":"'Philippines-IO-Data'!$AN28*Calculations!CK22","v":5041.9084867284446},{"$f":"'Philippines-IO-Data'!$AN28*Calculations!CL22","v":52628.844509335286},{"$f":"CH22*'Philippines-IO-Data'!AO28","v":0},{"$f":"'Philippines-IO-Data'!$AO28*Calculations!CK22","v":1251.1103930006243},{"$f":"'Philippines-IO-Data'!$AO28*Calculations!CL22","v":13059.438605552299},{"$f":"(CP22*'Default-Data'!$F$19/pv_dollar_index)/'Philippines-IO-Data'!$AP28","v":0},{"$f":"(CQ22*'Default-Data'!$F$19/pv_dollar_index)/'Philippines-IO-Data'!$AP28","v":0.42144624976532563},{"$f":"(CR22*'Default-Data'!$F$19/pv_dollar_index)/'Philippines-IO-Data'!$AP28","v":4.3991732904961847},73.503573332537968,1886.9515752598679,{"$f":"CI22*'Philippines-IO-Data'!AN28","v":0},{"$f":"'Philippines-IO-Data'!$AN28*Calculations!CV22","v":12.008490412131348},{"$f":"'Philippines-IO-Data'!$AN28*Calculations!CW22","v":308.27671189740067},{"$f":"'Philippines-IO-Data'!AO28*Calculations!CI22","v":0},{"$f":"'Philippines-IO-Data'!$AO28*Calculations!CV22","v":2.9798135365631171},{"$f":"'Philippines-IO-Data'!$AO28*Calculations!CW22","v":76.496469380617341},{"$f":"(DA22*'Default-Data'!$F$19/pv_dollar_index)/'Philippines-IO-Data'!$AP28","v":0},{"$f":"(DB22*'Default-Data'!$F$19/pv_dollar_index)/'Philippines-IO-Data'!$AP28","v":1.0037733256875367E-3},{"$f":"(DC22*'Default-Data'!$F$19/pv_dollar_index)/'Philippines-IO-Data'!$AP28","v":2.5768429645467075E-2},null,"DOM_C34: Motor vehicles, trailers and semi-trailers",0,0,null,153351.48745146097,515698.50912366697,{"$f":"DI22*'SouthAfrica-IO-Data'!AR28","v":0},{"$f":"DL22*'SouthAfrica-IO-Data'!$AR28","v":37077.33754405137},{"$f":"DM22*'SouthAfrica-IO-Data'!$AR28","v":124685.63566945757},{"$f":"DI22*'SouthAfrica-IO-Data'!AS28","v":0},{"$f":"DL22*'SouthAfrica-IO-Data'!$AS28","v":27219.977470481517},{"$f":"DM22*'SouthAfrica-IO-Data'!$AS28","v":91536.782806558869},{"$f":"(DQ22*'Default-Data'!$F$19/pv_dollar_index)/'SouthAfrica-IO-Data'!$AT28","v":0},{"$f":"(DR22*'Default-Data'!$F$19/pv_dollar_index)/'SouthAfrica-IO-Data'!$AT28","v":2.2962614392459906},{"$f":"(DS22*'Default-Data'!$F$19/pv_dollar_index)/'SouthAfrica-IO-Data'!$AT28","v":7.7219896621618416},856.62353541810774,2922.0891742851022,{"$f":"DJ22*'SouthAfrica-IO-Data'!AR28","v":0},{"$f":"DW22*'SouthAfrica-IO-Data'!$AR28","v":207.11452166989227},{"$f":"DX22*'SouthAfrica-IO-Data'!$AR28","v":706.50300462902294},{"$f":"DJ22*'SouthAfrica-IO-Data'!AS28","v":0},{"$f":"DW22*'SouthAfrica-IO-Data'!$AS28","v":152.05117160761506},{"$f":"DX22*'SouthAfrica-IO-Data'!$AS28","v":518.6725137958266},{"$f":"(EB22*'Default-Data'!$F$19/pv_dollar_index)/'SouthAfrica-IO-Data'!$AT28","v":0},{"$f":"(EC22*'Default-Data'!$F$19/pv_dollar_index)/'SouthAfrica-IO-Data'!$AT28","v":1.282694824172332E-2},{"$f":"(ED22*'Default-Data'!$F$19/pv_dollar_index)/'SouthAfrica-IO-Data'!$AT28","v":4.3754911050816234E-2},null,"TEXTILES",0,0,null,4950492.4523788849,1295434.8060895437,{"$f":"EJ22*'Zambia-IO-Data'!BO26","v":0},{"$f":"EM22*'Zambia-IO-Data'!$BO26","v":502400.98159556487},{"$f":"EN22*'Zambia-IO-Data'!$BO26","v":131467.26804112215},{"$f":"EJ22*'Zambia-IO-Data'!$BN26","v":0},{"$f":"EM22*'Zambia-IO-Data'!$BN26","v":138054.57106534005},{"$f":"EN22*'Zambia-IO-Data'!$BN26","v":36125.839644875065},{"$f":"(ER22*'Default-Data'!$F$19/pv_dollar_index)/'Zambia-IO-Data'!$BP26","v":0},{"$f":"(ES22*'Default-Data'!$F$19/pv_dollar_index)/'Zambia-IO-Data'!$BP26","v":561.65833494274023},{"$f":"(ET22*'Default-Data'!$F$19/pv_dollar_index)/'Zambia-IO-Data'!$BP26","v":146.97361186067286},36952.408018431663,7566.3773347725582,{"$f":"EK22*'Zambia-IO-Data'!BO26","v":0},{"$f":"EX22*'Zambia-IO-Data'!$BO26","v":3750.1170316619291},{"$f":"EY22*'Zambia-IO-Data'!$BO26","v":767.87419366440656},{"$f":"EK22*'Zambia-IO-Data'!BN26","v":0},{"$f":"EX22*'Zambia-IO-Data'!$BN26","v":1030.4932060576298},{"$f":"EY22*'Zambia-IO-Data'!$BN26","v":211.00385214577642},{"$f":"(FC22*'Default-Data'!$F$19/pv_dollar_index)/'Zambia-IO-Data'!$BP26","v":0},{"$f":"(FD22*'Default-Data'!$F$19/pv_dollar_index)/'Zambia-IO-Data'!$BP26","v":4.1924370473050141},{"$f":"(FE22*'Default-Data'!$F$19/pv_dollar_index)/'Zambia-IO-Data'!$BP26","v":0.85844366722642007},null,"TTL_C34: Motor vehicles, trailers and semi-trailers",0,0,null,92503.062556419769,645659.41639918182,{"$f":"FK22*CustomRegion1!C24","v":0},{"$f":"FN22*CustomRegion1!$C24","v":15112.491671337881},{"$f":"FO22*CustomRegion1!$C24","v":105483.2378863367},{"$f":"FK22*CustomRegion1!D24","v":0},{"$f":"FN22*CustomRegion1!$D24","v":3750.0473171845856},{"$f":"FO22*CustomRegion1!$D24","v":26174.84540910133},{"$f":"(FS22*'Default-Data'!$C$58/pv_dollar_index)/CustomRegion1!$E24","v":0},{"$f":"(FT22*'Default-Data'!$C$58/pv_dollar_index)/CustomRegion1!$E24","v":1.2632325549462331},{"$f":"(FU22*'Default-Data'!$C$58/pv_dollar_index)/CustomRegion1!$E24","v":8.8171999030363768},375.1354351310203,3802.1204468340238,{"$f":"FL22*CustomRegion1!C24","v":0},{"$f":"FY22*CustomRegion1!$C24","v":61.286956154380938},{"$f":"FZ22*CustomRegion1!$C24","v":621.16336473894307},{"$f":"FL22*CustomRegion1!D24","v":0},{"$f":"FY22*CustomRegion1!$D24","v":15.207881698359227},{"$f":"FZ22*CustomRegion1!$D24","v":154.13685976684528},{"$f":"(GD22*'Default-Data'!$C$58/pv_dollar_index)/CustomRegion1!$E24","v":0},{"$f":"(GE22*'Default-Data'!$C$58/pv_dollar_index)/CustomRegion1!$E24","v":5.1228930272702398E-3},{"$f":"(GF22*'Default-Data'!$C$58/pv_dollar_index)/CustomRegion1!$E24","v":5.1922197963316291E-2},null,"C32 Radio, television and communication equipment",0,0,null,0,0,{"$f":"GL22*CustomRegion2!$C$13","v":0},{"$f":"GO22*CustomRegion2!C$13","v":0},{"$f":"GP22*CustomRegion2!D$13","v":0},{"$f":"GL22*CustomRegion2!D28","v":0},{"$f":"GO22*CustomRegion2!$D28","v":0},{"$f":"GP22*CustomRegion2!$D28","v":0},{"$f":"(GT22*'Default-Data'!$C$59/pv_dollar_index)/CustomRegion2!$E28","v":0},{"$f":"(GU22*'Default-Data'!$C$59/pv_dollar_index)/CustomRegion2!$E28","v":0},{"$f":"(GV22*'Default-Data'!$C$59/pv_dollar_index)/CustomRegion2!$E28","v":0},0,0,{"$f":"GM22*CustomRegion2!C28","v":0},{"$f":"GZ22*CustomRegion2!$C28","v":0},{"$f":"HA22*CustomRegion2!$C28","v":0},{"$f":"GM22*CustomRegion2!D28","v":0},{"$f":"GZ22*CustomRegion2!$D28","v":0},{"$f":"HA22*CustomRegion2!$D28","v":0},{"$f":"(HE22*'Default-Data'!$C$59/pv_dollar_index)/CustomRegion2!$E28","v":0},{"$f":"(HF22*'Default-Data'!$C$59/pv_dollar_index)/CustomRegion2!$E28","v":0},{"$f":"(HG22*'Default-Data'!$C$59/pv_dollar_index)/CustomRegion2!$E28","v":0},null,"TEXTILES",0,0,null,4950492.4523788849,1295434.8060895437,{"$f":"HM22*CustomRegion3!D27","v":0},{"$f":"HP22*CustomRegion3!$D27","v":502400.98159556487},{"$f":"HQ22*CustomRegion3!$D27","v":131467.26804112215},{"$f":"HM22*CustomRegion3!E27","v":0},{"$f":"HP22*CustomRegion3!$E27","v":138054.57106534005},{"$f":"HQ22*CustomRegion3!$E27","v":36125.839644875065},{"$f":"(HU22*'Default-Data'!$C$60/pv_dollar_index)/CustomRegion3!$F27","v":0},{"$f":"(HV22*'Default-Data'!$C$60/pv_dollar_index)/CustomRegion3!$F27","v":561.65833494274023},{"$f":"(HW22*'Default-Data'!$C$60/pv_dollar_index)/CustomRegion3!$F27","v":146.97361186067286},36952.408018431663,7566.3773347725582,{"$f":"HN22*CustomRegion3!D27","v":0},{"$f":"IA22*CustomRegion3!$D27","v":3750.1170316619291},{"$f":"IB22*CustomRegion3!$D27","v":767.87419366440656},{"$f":"HN22*CustomRegion3!E27","v":0},{"$f":"IA22*CustomRegion3!$E27","v":1030.4932060576298},{"$f":"IB22*CustomRegion3!$E27","v":211.00385214577642},{"$f":"(IF22*'Default-Data'!$C$60/pv_dollar_index)/CustomRegion3!$F27","v":0},{"$f":"(IG22*'Default-Data'!$C$60/pv_dollar_index)/CustomRegion3!$F27","v":4.1924370473050141},{"$f":"(IH22*'Default-Data'!$C$60/pv_dollar_index)/CustomRegion3!$F27","v":0.85844366722642007}]
[null,null,null,null,null,null,null,null,null,null,null,null,null,null,null,null,null,null,null,null,null,null,null,null,null,null,null,null,null,22,"TTL_C35: Other transport equipment",0,0,null,8942.4168553691707,16077.466237046476,{"$f":"AF23*'Colombia-IO-Data'!AN29","v":0},{"$f":"AI23*'Colombia-IO-Data'!$AN29","v":997.56289478755684},{"$f":"AJ23*'Colombia-IO-Data'!$AN29","v":1793.5066123256877},{"$f":"AK23*'Colombia-IO-Data'!$AO29","v":0},{"$f":"AL23*'Colombia-IO-Data'!$AO29","v":376.16050006776635},{"$f":"AM23*'Colombia-IO-Data'!$AO29","v":676.29454512835548},{"$f":"(AN23*'Default-Data'!$F$19/pv_dollar_index)/'Colombia-IO-Data'!$AP29","v":0},{"$f":"(AO23*'Default-Data'!$F$19/pv_dollar_index)/'Colombia-IO-Data'!$AP29","v":9.5759115114753518E-2},{"$f":"(AP23*'Default-Data'!$F$19/pv_dollar_index)/'Colombia-IO-Data'!$AP29","v":0.17216418838968769},49.963875203524672,82.006084105008085,{"$f":"'Colombia-IO-Data'!$AN29*Calculations!AG23","v":0},{"$f":"'Colombia-IO-Data'!$AN29*Calculations!AT23","v":5.5736730672431474},{"$f":"'Colombia-IO-Data'!$AN29*Calculations!AU23","v":9.1481115198589684},{"$f":"AV23*'Colombia-IO-Data'!$AO29","v":0},{"$f":"AW23*'Colombia-IO-Data'!$AO29","v":2.1017177554854012},{"$f":"AX23*'Colombia-IO-Data'!$AO29","v":3.4495651572111452},{"$f":"(AY23*'Default-Data'!$F$19/pv_dollar_index)/'Colombia-IO-Data'!$AP29","v":0},{"$f":"(AZ23*'Default-Data'!$F$19/pv_dollar_index)/'Colombia-IO-Data'!$AP29","v":5.3503393484959387E-4},{"$f":"(BA23*'Default-Data'!$F$19/pv_dollar_index)/'Colombia-IO-Data'!$AP29","v":8.7815522077867175E-4},null,"DOM_C35: Other transport equipment",0,0,null,5986.0296855749166,26099.742389819963,{"$f":"BG23*'Mexico-IO-Data'!AQ29","v":0},{"$f":"BJ23*'Mexico-IO-Data'!$AQ29","v":2109.1516941519521},{"$f":"BK23*'Mexico-IO-Data'!$AQ29","v":9196.1314543884164},{"$f":"BG23*'Mexico-IO-Data'!AR29","v":0},{"$f":"BJ23*'Mexico-IO-Data'!$AR29","v":537.85585248906466},{"$f":"BK23*'Mexico-IO-Data'!$AR29","v":2345.1101865816013},{"$f":"(Calculations!BO23*'Default-Data'!$F$19/pv_dollar_index)/'Mexico-IO-Data'!$AS29","v":0},{"$f":"(Calculations!BP23*'Default-Data'!$F$19/pv_dollar_index)/'Mexico-IO-Data'!$AS29","v":7.8347682450488912E-2},{"$f":"(Calculations!BQ23*'Default-Data'!$F$19/pv_dollar_index)/'Mexico-IO-Data'!$AS29","v":0.34160444170947762},28.464763720400473,162.99067585660211,{"$f":"BH23*'Mexico-IO-Data'!AQ29","v":0},{"$f":"BU23*'Mexico-IO-Data'!$AQ29","v":10.029436500990489},{"$f":"BV23*'Mexico-IO-Data'!$AQ29","v":57.429060357375612},{"$f":"BH23*'Mexico-IO-Data'!AR29","v":0},{"$f":"BU23*'Mexico-IO-Data'!$AR29","v":2.5576117328033905},{"$f":"BV23*'Mexico-IO-Data'!$AR29","v":14.645014060300619},{"$f":"(BZ23*'Default-Data'!$F$19/pv_dollar_index)/'Mexico-IO-Data'!$AS29","v":0},{"$f":"(CA23*'Default-Data'!$F$19/pv_dollar_index)/'Mexico-IO-Data'!$AS29","v":3.7255883885245776E-4},{"$f":"(CB23*'Default-Data'!$F$19/pv_dollar_index)/'Mexico-IO-Data'!$AS29","v":2.1332907428067943E-3},null,"TTL_C35: Other transport equipment",0,0,null,539.99197297312003,3235.2111720925636,{"$f":"CH23*'Philippines-IO-Data'!AN29","v":0},{"$f":"'Philippines-IO-Data'!$AN29*Calculations!CK23","v":113.0052992293698},{"$f":"'Philippines-IO-Data'!$AN29*Calculations!CL23","v":677.03970590451559},{"$f":"CH23*'Philippines-IO-Data'!AO29","v":0},{"$f":"'Philippines-IO-Data'!$AO29*Calculations!CK23","v":25.375495173944557},{"$f":"'Philippines-IO-Data'!$AO29*Calculations!CL23","v":152.03019598999285},{"$f":"(CP23*'Default-Data'!$F$19/pv_dollar_index)/'Philippines-IO-Data'!$AP29","v":0},{"$f":"(CQ23*'Default-Data'!$F$19/pv_dollar_index)/'Philippines-IO-Data'!$AP29","v":8.547932570001214E-3},{"$f":"(CR23*'Default-Data'!$F$19/pv_dollar_index)/'Philippines-IO-Data'!$AP29","v":5.1212551913504864E-2},2.0931460854139745,18.95044954387177,{"$f":"CI23*'Philippines-IO-Data'!AN29","v":0},{"$f":"'Philippines-IO-Data'!$AN29*Calculations!CV23","v":0.43803725157367229},{"$f":"'Philippines-IO-Data'!$AN29*Calculations!CW23","v":3.9658019533984894},{"$f":"'Philippines-IO-Data'!AO29*Calculations!CI23","v":0},{"$f":"'Philippines-IO-Data'!$AO29*Calculations!CV23","v":9.8361866559500161E-2},{"$f":"'Philippines-IO-Data'!$AO29*Calculations!CW23","v":0.89052627633880632},{"$f":"(DA23*'Default-Data'!$F$19/pv_dollar_index)/'Philippines-IO-Data'!$AP29","v":0},{"$f":"(DB23*'Default-Data'!$F$19/pv_dollar_index)/'Philippines-IO-Data'!$AP29","v":3.3133958452695922E-5},{"$f":"(DC23*'Default-Data'!$F$19/pv_dollar_index)/'Philippines-IO-Data'!$AP29","v":2.9998069041720668E-4},null,"DOM_C35: Other transport equipment",0,0,null,79257.07273981515,263247.10980380513,{"$f":"DI23*'SouthAfrica-IO-Data'!AR29","v":0},{"$f":"DL23*'SouthAfrica-IO-Data'!$AR29","v":10113.121738113481},{"$f":"DM23*'SouthAfrica-IO-Data'!$AR29","v":33590.063026829594},{"$f":"DI23*'SouthAfrica-IO-Data'!AS29","v":0},{"$f":"DL23*'SouthAfrica-IO-Data'!$AS29","v":10324.155851683261},{"$f":"DM23*'SouthAfrica-IO-Data'!$AS29","v":34290.998836679966},{"$f":"(DQ23*'Default-Data'!$F$19/pv_dollar_index)/'SouthAfrica-IO-Data'!$AT29","v":0},{"$f":"(DR23*'Default-Data'!$F$19/pv_dollar_index)/'SouthAfrica-IO-Data'!$AT29","v":0.87093977211020568},{"$f":"(DS23*'Default-Data'!$F$19/pv_dollar_index)/'SouthAfrica-IO-Data'!$AT29","v":2.8927686816525635},507.93128384562385,1491.6303152140295,{"$f":"DJ23*'SouthAfrica-IO-Data'!AR29","v":0},{"$f":"DW23*'SouthAfrica-IO-Data'!$AR29","v":64.811514361501111},{"$f":"DX23*'SouthAfrica-IO-Data'!$AR29","v":190.33050861645094},{"$f":"DJ23*'SouthAfrica-IO-Data'!AS29","v":0},{"$f":"DW23*'SouthAfrica-IO-Data'!$AS29","v":66.16395931732994},{"$f":"DX23*'SouthAfrica-IO-Data'!$AS29","v":194.30220313484904},{"$f":"(EB23*'Default-Data'!$F$19/pv_dollar_index)/'SouthAfrica-IO-Data'!$AT29","v":0},{"$f":"(EC23*'Default-Data'!$F$19/pv_dollar_index)/'SouthAfrica-IO-Data'!$AT29","v":5.5815530564999223E-3},{"$f":"(ED23*'Default-Data'!$F$19/pv_dollar_index)/'SouthAfrica-IO-Data'!$AT29","v":1.6391220643108134E-2},null,"FURNIMFG",0,0,null,9661506.9574959837,574197.97945108451,{"$f":"EJ23*'Zambia-IO-Data'!BO27","v":0},{"$f":"EM23*'Zambia-IO-Data'!$BO27","v":1775171.5252391738},{"$f":"EN23*'Zambia-IO-Data'!$BO27","v":105501.13015036425},{"$f":"EJ23*'Zambia-IO-Data'!$BN27","v":0},{"$f":"EM23*'Zambia-IO-Data'!$BN27","v":550241.59309989738},{"$f":"EN23*'Zambia-IO-Data'!$BN27","v":32701.690570411021},{"$f":"(ER23*'Default-Data'!$F$19/pv_dollar_index)/'Zambia-IO-Data'!$BP27","v":0},{"$f":"(ES23*'Default-Data'!$F$19/pv_dollar_index)/'Zambia-IO-Data'!$BP27","v":2238.5914107143876},{"$f":"(ET23*'Default-Data'!$F$19/pv_dollar_index)/'Zambia-IO-Data'!$BP27","v":133.04287524747542},76707.871753357555,3346.4449120849313,{"$f":"EK23*'Zambia-IO-Data'!BO27","v":0},{"$f":"EX23*'Zambia-IO-Data'!$BO27","v":14094.03629240364},{"$f":"EY23*'Zambia-IO-Data'!$BO27","v":614.86409365007694},{"$f":"EK23*'Zambia-IO-Data'!BN27","v":0},{"$f":"EX23*'Zambia-IO-Data'!$BN27","v":4368.6623362748451},{"$f":"EY23*'Zambia-IO-Data'!$BN27","v":190.58653973415866},{"$f":"(FC23*'Default-Data'!$F$19/pv_dollar_index)/'Zambia-IO-Data'!$BP27","v":0},{"$f":"(FD23*'Default-Data'!$F$19/pv_dollar_index)/'Zambia-IO-Data'!$BP27","v":17.77337465021624},{"$f":"(FE23*'Default-Data'!$F$19/pv_dollar_index)/'Zambia-IO-Data'!$BP27","v":0.77537829963574856},null,"TTL_C35: Other transport equipment",0,0,null,6764.0717393131235,9579.537887521732,{"$f":"FK23*CustomRegion1!C25","v":0},{"$f":"FN23*CustomRegion1!$C25","v":1415.5320618961364},{"$f":"FO23*CustomRegion1!$C25","v":2004.7308101603307},{"$f":"FK23*CustomRegion1!D25","v":0},{"$f":"FN23*CustomRegion1!$D25","v":317.85966897270708},{"$f":"FO23*CustomRegion1!$D25","v":450.16505726007739},{"$f":"(FS23*'Default-Data'!$C$58/pv_dollar_index)/CustomRegion1!$E25","v":0},{"$f":"(FT23*'Default-Data'!$C$58/pv_dollar_index)/CustomRegion1!$E25","v":0.10707349742248398},{"$f":"(FU23*'Default-Data'!$C$58/pv_dollar_index)/CustomRegion1!$E25","v":0.15164159471382319},38.943134458385131,56.411408163912213,{"$f":"FL23*CustomRegion1!C25","v":0},{"$f":"FY23*CustomRegion1!$C25","v":8.1497147784796002},{"$f":"FZ23*CustomRegion1!$C25","v":11.80533855793138},{"$f":"FL23*CustomRegion1!D25","v":0},{"$f":"FY23*CustomRegion1!$D25","v":1.830029648526307},{"$f":"FZ23*CustomRegion1!$D25","v":2.6509049898229269},{"$f":"(GD23*'Default-Data'!$C$58/pv_dollar_index)/CustomRegion1!$E25","v":0},{"$f":"(GE23*'Default-Data'!$C$58/pv_dollar_index)/CustomRegion1!$E25","v":6.1645969583947369E-4},{"$f":"(GF23*'Default-Data'!$C$58/pv_dollar_index)/CustomRegion1!$E25","v":8.9297792800327577E-4},null,"C33 Medical, precision and optical instruments",0,0,null,0,0,{"$f":"GL23*CustomRegion2!$C$13","v":0},{"$f":"GO23*CustomRegion2!C$13","v":0},{"$f":"GP23*CustomRegion2!D$13","v":0},{"$f":"GL23*CustomRegion2!D29","v":0},{"$f":"GO23*CustomRegion2!$D29","v":0},{"$f":"GP23*CustomRegion2!$D29","v":0},{"$f":"(GT23*'Default-Data'!$C$59/pv_dollar_index)/CustomRegion2!$E29","v":0},{"$f":"(GU23*'Default-Data'!$C$59/pv_dollar_index)/CustomRegion2!$E29","v":0},{"$f":"(GV23*'Default-Data'!$C$59/pv_dollar_index)/CustomRegion2!$E29","v":0},0,0,{"$f":"GM23*CustomRegion2!C29","v":0},{"$f":"GZ23*CustomRegion2!$C29","v":0},{"$f":"HA23*CustomRegion2!$C29","v":0},{"$f":"GM23*CustomRegion2!D29","v":0},{"$f":"GZ23*CustomRegion2!$D29","v":0},{"$f":"HA23*CustomRegion2!$D29","v":0},{"$f":"(HE23*'Default-Data'!$C$59/pv_dollar_index)/CustomRegion2!$E29","v":0},{"$f":"(HF23*'Default-Data'!$C$59/pv_dollar_index)/CustomRegion2!$E29","v":0},{"$f":"(HG23*'Default-Data'!$C$59/pv_dollar_index)/CustomRegion2!$E29","v":0},null,"FURNIMFG",0,0,null,9661506.9574959837,574197.97945108451,{"$f":"HM23*CustomRegion3!D28","v":0},{"$f":"HP23*CustomRegion3!$D28","v":1775171.5252391738},{"$f":"HQ23*CustomRegion3!$D28","v":105501.13015036425},{"$f":"HM23*CustomRegion3!E28","v":0},{"$f":"HP23*CustomRegion3!$E28","v":550241.59309989738},{"$f":"HQ23*CustomRegion3!$E28","v":32701.690570411021},{"$f":"(HU23*'Default-Data'!$C$60/pv_dollar_index)/CustomRegion3!$F28","v":0},{"$f":"(HV23*'Default-Data'!$C$60/pv_dollar_index)/CustomRegion3!$F28","v":2238.5914107143876},{"$f":"(HW23*'Default-Data'!$C$60/pv_dollar_index)/CustomRegion3!$F28","v":133.04287524747542},76707.871753357555,3346.4449120849313,{"$f":"HN23*CustomRegion3!D28","v":0},{"$f":"IA23*CustomRegion3!$D28","v":14094.03629240364},{"$f":"IB23*CustomRegion3!$D28","v":614.86409365007694},{"$f":"HN23*CustomRegion3!E28","v":0},{"$f":"IA23*CustomRegion3!$E28","v":4368.6623362748451},{"$f":"IB23*CustomRegion3!$E28","v":190.58653973415866},{"$f":"(IF23*'Default-Data'!$C$60/pv_dollar_index)/CustomRegion3!$F28","v":0},{"$f":"(IG23*'Default-Data'!$C$60/pv_dollar_index)/CustomRegion3!$F28","v":17.77337465021624},{"$f":"(IH23*'Default-Data'!$C$60/pv_dollar_index)/CustomRegion3!$F28","v":0.77537829963574856}]
[null,null,null,null,null,null,null,null,null,null,null,null,null,null,null,null,null,null,null,null,null,null,null,null,null,null,null,null,null,23,"TTL_C36T37: Manufacturing nec; recycling",0,0,null,538411.02090286382,301212.97987595014,{"$f":"AF24*'Colombia-IO-Data'!AN30","v":0},{"$f":"AI24*'Colombia-IO-Data'!$AN30","v":200725.73235148919},{"$f":"AJ24*'Colombia-IO-Data'!$AN30","v":112295.61363358948},{"$f":"AK24*'Colombia-IO-Data'!$AO30","v":0},{"$f":"AL24*'Colombia-IO-Data'!$AO30","v":46204.937617051342},{"$f":"AM24*'Colombia-IO-Data'!$AO30","v":25849.260888597812},{"$f":"(AN24*'Default-Data'!$F$19/pv_dollar_index)/'Colombia-IO-Data'!$AP30","v":0},{"$f":"(AO24*'Default-Data'!$F$19/pv_dollar_index)/'Colombia-IO-Data'!$AP30","v":11.762383183093737},{"$f":"(AP24*'Default-Data'!$F$19/pv_dollar_index)/'Colombia-IO-Data'!$AP30","v":6.5804419885038472},4737.0746627369381,1536.3924014537406,{"$f":"'Colombia-IO-Data'!$AN30*Calculations!AG24","v":0},{"$f":"'Colombia-IO-Data'!$AN30*Calculations!AT24","v":1766.0351366639306},{"$f":"'Colombia-IO-Data'!$AN30*Calculations!AU24","v":572.78450475237094},{"$f":"AV24*'Colombia-IO-Data'!$AO30","v":0},{"$f":"AW24*'Colombia-IO-Data'!$AO30","v":406.52258364258626},{"$f":"AX24*'Colombia-IO-Data'!$AO30","v":131.84892639352026},{"$f":"(AY24*'Default-Data'!$F$19/pv_dollar_index)/'Colombia-IO-Data'!$AP30","v":0},{"$f":"(AZ24*'Default-Data'!$F$19/pv_dollar_index)/'Colombia-IO-Data'!$AP30","v":0.10348838561402487},{"$f":"(BA24*'Default-Data'!$F$19/pv_dollar_index)/'Colombia-IO-Data'!$AP30","v":3.3564758973893355E-2},null,"DOM_C36T37: Manufacturing nec; recycling",0,0,null,262013.26279083727,344012.93664353335,{"$f":"BG24*'Mexico-IO-Data'!AQ30","v":0},{"$f":"BJ24*'Mexico-IO-Data'!$AQ30","v":98511.193713386267},{"$f":"BK24*'Mexico-IO-Data'!$AQ30","v":129341.25807461649},{"$f":"BG24*'Mexico-IO-Data'!AR30","v":0},{"$f":"BJ24*'Mexico-IO-Data'!$AR30","v":40524.789663958472},{"$f":"BK24*'Mexico-IO-Data'!$AR30","v":53207.42832124827},{"$f":"(Calculations!BO24*'Default-Data'!$F$19/pv_dollar_index)/'Mexico-IO-Data'!$AS30","v":0},{"$f":"(Calculations!BP24*'Default-Data'!$F$19/pv_dollar_index)/'Mexico-IO-Data'!$AS30","v":6.8580128203056816},{"$f":"(Calculations!BQ24*'Default-Data'!$F$19/pv_dollar_index)/'Mexico-IO-Data'!$AS30","v":9.0042965944656039},1624.7409947391459,2148.331589234921,{"$f":"BH24*'Mexico-IO-Data'!AQ30","v":0},{"$f":"BU24*'Mexico-IO-Data'!$AQ30","v":610.86669110562718},{"$f":"BV24*'Mexico-IO-Data'!$AQ30","v":807.72517808250905},{"$f":"BH24*'Mexico-IO-Data'!AR30","v":0},{"$f":"BU24*'Mexico-IO-Data'!$AR30","v":251.29371837476725},{"$f":"BV24*'Mexico-IO-Data'!$AR30","v":332.27587357546298},{"$f":"(BZ24*'Default-Data'!$F$19/pv_dollar_index)/'Mexico-IO-Data'!$AS30","v":0},{"$f":"(CA24*'Default-Data'!$F$19/pv_dollar_index)/'Mexico-IO-Data'!$AS30","v":4.2526452489133025E-2},{"$f":"(CB24*'Default-Data'!$F$19/pv_dollar_index)/'Mexico-IO-Data'!$AS30","v":5.6231067940259991E-2},null,"TTL_C36T37: Manufacturing nec; recycling",0,0,null,47545.141407793941,144927.32179359437,{"$f":"CH24*'Philippines-IO-Data'!AN30","v":0},{"$f":"'Philippines-IO-Data'!$AN30*Calculations!CK24","v":19273.624602138403},{"$f":"'Philippines-IO-Data'!$AN30*Calculations!CL24","v":58749.952405970893},{"$f":"CH24*'Philippines-IO-Data'!AO30","v":0},{"$f":"'Philippines-IO-Data'!$AO30*Calculations!CK24","v":6506.3828274734742},{"$f":"'Philippines-IO-Data'!$AO30*Calculations!CL24","v":19832.786480996543},{"$f":"(CP24*'Default-Data'!$F$19/pv_dollar_index)/'Philippines-IO-Data'!$AP30","v":0},{"$f":"(CQ24*'Default-Data'!$F$19/pv_dollar_index)/'Philippines-IO-Data'!$AP30","v":2.1917255723531053},{"$f":"(CR24*'Default-Data'!$F$19/pv_dollar_index)/'Philippines-IO-Data'!$AP30","v":6.6808281120307775},211.31631670802162,848.92075140849522,{"$f":"CI24*'Philippines-IO-Data'!AN30","v":0},{"$f":"'Philippines-IO-Data'!$AN30*Calculations!CV24","v":85.662409237662899},{"$f":"'Philippines-IO-Data'!$AN30*Calculations!CW24","v":344.13148000292739},{"$f":"'Philippines-IO-Data'!AO30*Calculations!CI24","v":0},{"$f":"'Philippines-IO-Data'!$AO30*Calculations!CV24","v":28.917883373223781},{"$f":"'Philippines-IO-Data'!$AO30*Calculations!CW24","v":116.17177350417293},{"$f":"(DA24*'Default-Data'!$F$19/pv_dollar_index)/'Philippines-IO-Data'!$AP30","v":0},{"$f":"(DB24*'Default-Data'!$F$19/pv_dollar_index)/'Philippines-IO-Data'!$AP30","v":9.7412135387721522E-3},{"$f":"(DC24*'Default-Data'!$F$19/pv_dollar_index)/'Philippines-IO-Data'!$AP30","v":3.9133363886855732E-2},null,"DOM_C36T37: Manufacturing nec; recycling",0,0,null,910547.30503677146,1578073.1965639358,{"$f":"DI24*'SouthAfrica-IO-Data'!AR30","v":0},{"$f":"DL24*'SouthAfrica-IO-Data'!$AR30","v":243641.59453304746},{"$f":"DM24*'SouthAfrica-IO-Data'!$AR30","v":422256.22740728839},{"$f":"DI24*'SouthAfrica-IO-Data'!AS30","v":0},{"$f":"DL24*'SouthAfrica-IO-Data'!$AS30","v":94553.982013643166},{"$f":"DM24*'SouthAfrica-IO-Data'!$AS30","v":163871.88652224166},{"$f":"(DQ24*'Default-Data'!$F$19/pv_dollar_index)/'SouthAfrica-IO-Data'!$AT30","v":0},{"$f":"(DR24*'Default-Data'!$F$19/pv_dollar_index)/'SouthAfrica-IO-Data'!$AT30","v":7.9765188292511411},{"$f":"(DS24*'Default-Data'!$F$19/pv_dollar_index)/'SouthAfrica-IO-Data'!$AT30","v":13.824136864388871},6060.3010547126778,8941.7954916041072,{"$f":"DJ24*'SouthAfrica-IO-Data'!AR30","v":0},{"$f":"DW24*'SouthAfrica-IO-Data'!$AR30","v":1621.5976964105973},{"$f":"DX24*'SouthAfrica-IO-Data'!$AR30","v":2392.6195811154034},{"$f":"DJ24*'SouthAfrica-IO-Data'!AS30","v":0},{"$f":"DW24*'SouthAfrica-IO-Data'!$AS30","v":629.31996366891042},{"$f":"DX24*'SouthAfrica-IO-Data'!$AS30","v":928.5430481271552},{"$f":"(EB24*'Default-Data'!$F$19/pv_dollar_index)/'SouthAfrica-IO-Data'!$AT30","v":0},{"$f":"(EC24*'Default-Data'!$F$19/pv_dollar_index)/'SouthAfrica-IO-Data'!$AT30","v":5.3089065451568232E-2},{"$f":"(ED24*'Default-Data'!$F$19/pv_dollar_index)/'SouthAfrica-IO-Data'!$AT30","v":7.8331350509255271E-2},null,"INDCHEMMFG",0,0,null,1578568.1415112081,286623.55991245806,{"$f":"EJ24*'Zambia-IO-Data'!BO28","v":0},{"$f":"EM24*'Zambia-IO-Data'!$BO28","v":294193.59875241277},{"$f":"EN24*'Zambia-IO-Data'!$BO28","v":53417.280103695237},{"$f":"EJ24*'Zambia-IO-Data'!$BN28","v":0},{"$f":"EM24*'Zambia-IO-Data'!$BN28","v":56823.066984783371},{"$f":"EN24*'Zambia-IO-Data'!$BN28","v":10317.470190885031},{"$f":"(ER24*'Default-Data'!$F$19/pv_dollar_index)/'Zambia-IO-Data'!$BP28","v":0},{"$f":"(ES24*'Default-Data'!$F$19/pv_dollar_index)/'Zambia-IO-Data'!$BP28","v":231.17777950219454},{"$f":"(ET24*'Default-Data'!$F$19/pv_dollar_index)/'Zambia-IO-Data'!$BP28","v":41.975380340656528},8724.4388868242659,1688.7149338105937,{"$f":"EK24*'Zambia-IO-Data'!BO28","v":0},{"$f":"EX24*'Zambia-IO-Data'!$BO28","v":1625.9507624125588},{"$f":"EY24*'Zambia-IO-Data'!$BO28","v":314.72136715559935},{"$f":"EK24*'Zambia-IO-Data'!BN28","v":0},{"$f":"EX24*'Zambia-IO-Data'!$BN28","v":314.05003194608321},{"$f":"EY24*'Zambia-IO-Data'!$BN28","v":60.787975684255287},{"$f":"(FC24*'Default-Data'!$F$19/pv_dollar_index)/'Zambia-IO-Data'!$BP28","v":0},{"$f":"(FD24*'Default-Data'!$F$19/pv_dollar_index)/'Zambia-IO-Data'!$BP28","v":1.2776745939695702},{"$f":"(FE24*'Default-Data'!$F$19/pv_dollar_index)/'Zambia-IO-Data'!$BP28","v":0.24730853128506305},null,"TTL_C36T37: Manufacturing nec; recycling",0,0,null,108259.66335123064,242343.2624624806,{"$f":"FK24*CustomRegion1!C26","v":0},{"$f":"FN24*CustomRegion1!$C26","v":43885.790413138981},{"$f":"FO24*CustomRegion1!$C26","v":98239.965793721974},{"$f":"FK24*CustomRegion1!D26","v":0},{"$f":"FN24*CustomRegion1!$D26","v":14814.948356027808},{"$f":"FO24*CustomRegion1!$D26","v":33163.810108708691},{"$f":"(FS24*'Default-Data'!$C$58/pv_dollar_index)/CustomRegion1!$E26","v":0},{"$f":"(FT24*'Default-Data'!$C$58/pv_dollar_index)/CustomRegion1!$E26","v":4.9905303800891554},{"$f":"(FU24*'Default-Data'!$C$58/pv_dollar_index)/CustomRegion1!$E26","v":11.171486925884489},588.601428028388,1427.0964690637932,{"$f":"FL24*CustomRegion1!C26","v":0},{"$f":"FY24*CustomRegion1!$C26","v":238.60446363594298},{"$f":"FZ24*CustomRegion1!$C26","v":578.50961846679672},{"$f":"FL24*CustomRegion1!D26","v":0},{"$f":"FY24*CustomRegion1!$D26","v":80.548003647802418},{"$f":"FZ24*CustomRegion1!$D26","v":195.29305591554285},{"$f":"(GD24*'Default-Data'!$C$58/pv_dollar_index)/CustomRegion1!$E26","v":0},{"$f":"(GE24*'Default-Data'!$C$58/pv_dollar_index)/CustomRegion1!$E26","v":2.7133220420328778E-2},{"$f":"(GF24*'Default-Data'!$C$58/pv_dollar_index)/CustomRegion1!$E26","v":6.5785982181329805E-2},null,"C34 Motor vehicles, trailers and semi-trailers",0,0,null,2364580.4578176113,2978170.9101516418,{"$f":"GL24*CustomRegion2!$C$13","v":0},{"$f":"GO24*CustomRegion2!C$13","v":1457010.6386884877},{"$f":"GP24*CustomRegion2!D$13","v":329554.41643137031},{"$f":"GL24*CustomRegion2!D30","v":0},{"$f":"GO24*CustomRegion2!$D30","v":250903.64628476498},{"$f":"GP24*CustomRegion2!$D30","v":316011.21380573511},{"$f":"(GT24*'Default-Data'!$C$59/pv_dollar_index)/CustomRegion2!$E30","v":0},{"$f":"(GU24*'Default-Data'!$C$59/pv_dollar_index)/CustomRegion2!$E30","v":36.548303999700792},{"$f":"(GV24*'Default-Data'!$C$59/pv_dollar_index)/CustomRegion2!$E30","v":46.03230794174295},20566.973026994401,25527.277146662218,{"$f":"GM24*CustomRegion2!C30","v":0},{"$f":"GZ24*CustomRegion2!$C30","v":6274.8924506471403},{"$f":"HA24*CustomRegion2!$C30","v":7788.2592855510929},{"$f":"GM24*CustomRegion2!D30","v":0},{"$f":"GZ24*CustomRegion2!$D30","v":2182.3442329706254},{"$f":"HA24*CustomRegion2!$D30","v":2708.6779367747504},{"$f":"(HE24*'Default-Data'!$C$59/pv_dollar_index)/CustomRegion2!$E30","v":0},{"$f":"(HF24*'Default-Data'!$C$59/pv_dollar_index)/CustomRegion2!$E30","v":0.31789486378399989},{"$f":"(HG24*'Default-Data'!$C$59/pv_dollar_index)/CustomRegion2!$E30","v":0.39456415295841429},null,"INDCHEMMFG",0,0,null,1578568.1415112081,286623.55991245806,{"$f":"HM24*CustomRegion3!D29","v":0},{"$f":"HP24*CustomRegion3!$D29","v":294193.59875241277},{"$f":"HQ24*CustomRegion3!$D29","v":53417.280103695237},{"$f":"HM24*CustomRegion3!E29","v":0},{"$f":"HP24*CustomRegion3!$E29","v":56823.066984783371},{"$f":"HQ24*CustomRegion3!$E29","v":10317.470190885031},{"$f":"(HU24*'Default-Data'!$C$60/pv_dollar_index)/CustomRegion3!$F29","v":0},{"$f":"(HV24*'Default-Data'!$C$60/pv_dollar_index)/CustomRegion3!$F29","v":231.17777950219454},{"$f":"(HW24*'Default-Data'!$C$60/pv_dollar_index)/CustomRegion3!$F29","v":41.975380340656528},8724.4388868242659,1688.7149338105937,{"$f":"HN24*CustomRegion3!D29","v":0},{"$f":"IA24*CustomRegion3!$D29","v":1625.9507624125588},{"$f":"IB24*CustomRegion3!$D29","v":314.72136715559935},{"$f":"HN24*CustomRegion3!E29","v":0},{"$f":"IA24*CustomRegion3!$E29","v":314.05003194608321},{"$f":"IB24*CustomRegion3!$E29","v":60.787975684255287},{"$f":"(IF24*'Default-Data'!$C$60/pv_dollar_index)/CustomRegion3!$F29","v":0},{"$f":"(IG24*'Default-Data'!$C$60/pv_dollar_index)/CustomRegion3!$F29","v":1.2776745939695702},{"$f":"(IH24*'Default-Data'!$C$60/pv_dollar_index)/CustomRegion3!$F29","v":0.24730853128506305}]
[null,null,{"$f":"biopower_country","v":"South Africa"},null,null,null,"Construction",null,null,null,null,null,null,null,null,null,null,"O&M",null,null,null,null,null,null,null,null,null,null,null,24,"TTL_C40T41: Electricity, gas and water supply",{"$f":"'Solar-PV-Inputs'!B24*'Solar-PV-Inputs'!C24","v":40737028.829344496},0,null,13954759.561602257,2384315.9419313222,{"$f":"AF25*'Colombia-IO-Data'!AN31","v":21545333.509187981},{"$f":"AI25*'Colombia-IO-Data'!$AN31","v":7380507.5489126798},{"$f":"AJ25*'Colombia-IO-Data'!$AN31","v":1261036.5467591377},{"$f":"AK25*'Colombia-IO-Data'!$AO31","v":3797180.2209718456},{"$f":"AL25*'Colombia-IO-Data'!$AO31","v":1300751.1475054841},{"$f":"AM25*'Colombia-IO-Data'!$AO31","v":222246.87453709805},{"$f":"(AN25*'Default-Data'!$F$19/pv_dollar_index)/'Colombia-IO-Data'!$AP31","v":392.0857315292813},{"$f":"(AO25*'Default-Data'!$F$19/pv_dollar_index)/'Colombia-IO-Data'!$AP31","v":134.31176176218193},{"$f":"(AP25*'Default-Data'!$F$19/pv_dollar_index)/'Colombia-IO-Data'!$AP31","v":22.948562699684565},12219.419720325339,12161.643556519339,{"$f":"'Colombia-IO-Data'!$AN31*Calculations!AG25","v":0},{"$f":"'Colombia-IO-Data'!$AN31*Calculations!AT25","v":6462.7067984278983},{"$f":"'Colombia-IO-Data'!$AN31*Calculations!AU25","v":6432.1496676342786},{"$f":"AV25*'Colombia-IO-Data'!$AO31","v":0},{"$f":"AW25*'Colombia-IO-Data'!$AO31","v":1138.9966378782494},{"$f":"AX25*'Colombia-IO-Data'!$AO31","v":1133.6112056866475},{"$f":"(AY25*'Default-Data'!$F$19/pv_dollar_index)/'Colombia-IO-Data'!$AP31","v":0},{"$f":"(AZ25*'Default-Data'!$F$19/pv_dollar_index)/'Colombia-IO-Data'!$AP31","v":0.11760946386094551},{"$f":"(BA25*'Default-Data'!$F$19/pv_dollar_index)/'Colombia-IO-Data'!$AP31","v":0.11705337987294212},null,"DOM_C40T41: Electricity, gas and water supply",40737028.829344496,0,null,1913574.6474974006,1289986.5776505843,{"$f":"BG25*'Mexico-IO-Data'!AQ31","v":18222803.139938023},{"$f":"BJ25*'Mexico-IO-Data'!$AQ31","v":855995.0270551563},{"$f":"BK25*'Mexico-IO-Data'!$AQ31","v":577046.7835581525},{"$f":"BG25*'Mexico-IO-Data'!AR31","v":4401440.4660680834},{"$f":"BJ25*'Mexico-IO-Data'!$AR31","v":206752.55732617344},{"$f":"BK25*'Mexico-IO-Data'!$AR31","v":139376.85900808789},{"$f":"(Calculations!BO25*'Default-Data'!$F$19/pv_dollar_index)/'Mexico-IO-Data'!$AS31","v":255.46480407569464},{"$f":"(Calculations!BP25*'Default-Data'!$F$19/pv_dollar_index)/'Mexico-IO-Data'!$AS31","v":12.000162664170569},{"$f":"(Calculations!BQ25*'Default-Data'!$F$19/pv_dollar_index)/'Mexico-IO-Data'!$AS31","v":8.0895975428231832},9076.0267720569573,8055.8566822952162,{"$f":"BH25*'Mexico-IO-Data'!AQ31","v":0},{"$f":"BU25*'Mexico-IO-Data'!$AQ31","v":4059.9585662679365},{"$f":"BV25*'Mexico-IO-Data'!$AQ31","v":3603.608183110151},{"$f":"BH25*'Mexico-IO-Data'!AR31","v":0},{"$f":"BU25*'Mexico-IO-Data'!$AR31","v":980.62113643577629},{"$f":"BV25*'Mexico-IO-Data'!$AR31","v":870.39665408189489},{"$f":"(BZ25*'Default-Data'!$F$19/pv_dollar_index)/'Mexico-IO-Data'!$AS31","v":0},{"$f":"(CA25*'Default-Data'!$F$19/pv_dollar_index)/'Mexico-IO-Data'!$AS31","v":5.6916409167256383E-2},{"$f":"(CB25*'Default-Data'!$F$19/pv_dollar_index)/'Mexico-IO-Data'!$AS31","v":5.0518850003168934E-2},null,"TTL_C40T41: Electricity, gas and water supply",{"$f":"'Solar-PV-Inputs'!B24*'Solar-PV-Inputs'!C24","v":40737028.829344496},0,null,4479170.5361242592,1838283.3479314819,{"$f":"CH25*'Philippines-IO-Data'!AN31","v":24411910.215171587},{"$f":"'Philippines-IO-Data'!$AN31*Calculations!CK25","v":2684169.958108034},{"$f":"'Philippines-IO-Data'!$AN31*Calculations!CL25","v":1101602.3831228064},{"$f":"CH25*'Philippines-IO-Data'!AO31","v":5055741.2910943031},{"$f":"'Philippines-IO-Data'!$AO31*Calculations!CK25","v":555895.41211272508},{"$f":"'Philippines-IO-Data'!$AO31*Calculations!CL25","v":228143.41875059661},{"$f":"(CP25*'Default-Data'!$F$19/pv_dollar_index)/'Philippines-IO-Data'!$AP31","v":1386.3929585008814},{"$f":"(CQ25*'Default-Data'!$F$19/pv_dollar_index)/'Philippines-IO-Data'!$AP31","v":152.43847353771812},{"$f":"(CR25*'Default-Data'!$F$19/pv_dollar_index)/'Philippines-IO-Data'!$AP31","v":62.561830416699095},9735.5739396024928,10767.858411475214,{"$f":"CI25*'Philippines-IO-Data'!AN31","v":0},{"$f":"'Philippines-IO-Data'!$AN31*Calculations!CV25","v":5834.1013995488447},{"$f":"'Philippines-IO-Data'!$AN31*Calculations!CW25","v":6452.7040951317913},{"$f":"'Philippines-IO-Data'!AO31*Calculations!CI25","v":0},{"$f":"'Philippines-IO-Data'!$AO31*Calculations!CV25","v":1208.2506891983846},{"$f":"'Philippines-IO-Data'!$AO31*Calculations!CW25","v":1336.3641863919495},{"$f":"(DA25*'Default-Data'!$F$19/pv_dollar_index)/'Philippines-IO-Data'!$AP31","v":0},{"$f":"(DB25*'Default-Data'!$F$19/pv_dollar_index)/'Philippines-IO-Data'!$AP31","v":0.33132831590081308},{"$f":"(DC25*'Default-Data'!$F$19/pv_dollar_index)/'Philippines-IO-Data'!$AP31","v":0.36645979122193978},null,"DOM_C40T41: Electricity, gas and water supply",40737028.829344496,0,null,7740231.3645594418,3279434.5085473508,{"$f":"DI25*'SouthAfrica-IO-Data'!AR31","v":22149805.180150241},{"$f":"DL25*'SouthAfrica-IO-Data'!$AR31","v":4208569.4931875281},{"$f":"DM25*'SouthAfrica-IO-Data'!$AR31","v":1783115.6948064149},{"$f":"DI25*'SouthAfrica-IO-Data'!AS31","v":7237804.7751023686},{"$f":"DL25*'SouthAfrica-IO-Data'!$AS31","v":1375217.7107833249},{"$f":"DM25*'SouthAfrica-IO-Data'!$AS31","v":582661.70674925589},{"$f":"(DQ25*'Default-Data'!$F$19/pv_dollar_index)/'SouthAfrica-IO-Data'!$AT31","v":284.20389188339061},{"$f":"(DR25*'Default-Data'!$F$19/pv_dollar_index)/'SouthAfrica-IO-Data'!$AT31","v":54.000106073054461},{"$f":"(DS25*'Default-Data'!$F$19/pv_dollar_index)/'SouthAfrica-IO-Data'!$AT31","v":22.879136679562517},16889.192749159818,18582.175254854694,{"$f":"DJ25*'SouthAfrica-IO-Data'!AR31","v":0},{"$f":"DW25*'SouthAfrica-IO-Data'!$AR31","v":9183.1029359319036},{"$f":"DX25*'SouthAfrica-IO-Data'!$AR31","v":10103.622516081839},{"$f":"DJ25*'SouthAfrica-IO-Data'!AS31","v":0},{"$f":"DW25*'SouthAfrica-IO-Data'!$AS31","v":3000.7264506104189},{"$f":"DX25*'SouthAfrica-IO-Data'!$AS31","v":3301.5210155556288},{"$f":"(EB25*'Default-Data'!$F$19/pv_dollar_index)/'SouthAfrica-IO-Data'!$AT31","v":0},{"$f":"(EC25*'Default-Data'!$F$19/pv_dollar_index)/'SouthAfrica-IO-Data'!$AT31","v":0.11782828664770831},{"$f":"(ED25*'Default-Data'!$F$19/pv_dollar_index)/'SouthAfrica-IO-Data'!$AT31","v":0.12963946264251686},null,"OTHERMFG",0,0,null,50063472.566773318,1635594.8111698553,{"$f":"EJ25*'Zambia-IO-Data'!BO29","v":0},{"$f":"EM25*'Zambia-IO-Data'!$BO29","v":5372894.9933917262},{"$f":"EN25*'Zambia-IO-Data'!$BO29","v":175534.7506194454},{"$f":"EJ25*'Zambia-IO-Data'!$BN29","v":0},{"$f":"EM25*'Zambia-IO-Data'!$BN29","v":180915.82898603656},{"$f":"EN25*'Zambia-IO-Data'!$BN29","v":5910.5966082033992},{"$f":"(ER25*'Default-Data'!$F$19/pv_dollar_index)/'Zambia-IO-Data'!$BP29","v":0},{"$f":"(ES25*'Default-Data'!$F$19/pv_dollar_index)/'Zambia-IO-Data'!$BP29","v":736.0341819105023},{"$f":"(ET25*'Default-Data'!$F$19/pv_dollar_index)/'Zambia-IO-Data'!$BP29","v":24.046547853243677},341763.03782366082,9523.3644748369697,{"$f":"EK25*'Zambia-IO-Data'!BO29","v":0},{"$f":"EX25*'Zambia-IO-Data'!$BO29","v":36678.576628897332},{"$f":"EY25*'Zambia-IO-Data'!$BO29","v":1022.0632865378969},{"$f":"EK25*'Zambia-IO-Data'!BN29","v":0},{"$f":"EX25*'Zambia-IO-Data'!$BN29","v":1235.0390441291524},{"$f":"EY25*'Zambia-IO-Data'!$BN29","v":34.414859584566507},{"$f":"(FC25*'Default-Data'!$F$19/pv_dollar_index)/'Zambia-IO-Data'!$BP29","v":0},{"$f":"(FD25*'Default-Data'!$F$19/pv_dollar_index)/'Zambia-IO-Data'!$BP29","v":5.0246070648870109},{"$f":"(FE25*'Default-Data'!$F$19/pv_dollar_index)/'Zambia-IO-Data'!$BP29","v":0.14001269630114166},null,"TTL_C40T41: Electricity, gas and water supply",40737028.829344496,0,null,5525713.7552217916,2465774.4500460997,{"$f":"FK25*CustomRegion1!C27","v":24411910.215171587},{"$f":"FN25*CustomRegion1!$C27","v":3311317.2939614109},{"$f":"FO25*CustomRegion1!$C27","v":1477630.2105279991},{"$f":"FK25*CustomRegion1!D27","v":5055741.2910943031},{"$f":"FN25*CustomRegion1!$D27","v":685778.51644690253},{"$f":"FO25*CustomRegion1!$D27","v":306019.31608334259},{"$f":"(FS25*'Default-Data'!$C$58/pv_dollar_index)/CustomRegion1!$E27","v":1386.3929585008814},{"$f":"(FT25*'Default-Data'!$C$58/pv_dollar_index)/CustomRegion1!$E27","v":188.05521318267006},{"$f":"(FU25*'Default-Data'!$C$58/pv_dollar_index)/CustomRegion1!$E27","v":83.917075767017948},16674.123905313056,14520.304692660058,{"$f":"FL25*CustomRegion1!C27","v":0},{"$f":"FY25*CustomRegion1!$C27","v":9992.0693136053233},{"$f":"FZ25*CustomRegion1!$C27","v":8701.3801605190802},{"$f":"FL25*CustomRegion1!D27","v":0},{"$f":"FY25*CustomRegion1!$D27","v":2069.3717520259879},{"$f":"FZ25*CustomRegion1!$D27","v":1802.0681945530364},{"$f":"(GD25*'Default-Data'!$C$58/pv_dollar_index)/CustomRegion1!$E27","v":0},{"$f":"(GE25*'Default-Data'!$C$58/pv_dollar_index)/CustomRegion1!$E27","v":0.56746622509801758},{"$f":"(GF25*'Default-Data'!$C$58/pv_dollar_index)/CustomRegion1!$E27","v":0.4941658427158086},null,"C35 Other transport equipment",40737028.829344496,0,null,0,0,{"$f":"GL25*CustomRegion2!$C$13","v":25101401.89845584},{"$f":"GO25*CustomRegion2!C$13","v":0},{"$f":"GP25*CustomRegion2!D$13","v":0},{"$f":"GL25*CustomRegion2!D31","v":0},{"$f":"GO25*CustomRegion2!$D31","v":0},{"$f":"GP25*CustomRegion2!$D31","v":0},{"$f":"(GT25*'Default-Data'!$C$59/pv_dollar_index)/CustomRegion2!$E31","v":0},{"$f":"(GU25*'Default-Data'!$C$59/pv_dollar_index)/CustomRegion2!$E31","v":0},{"$f":"(GV25*'Default-Data'!$C$59/pv_dollar_index)/CustomRegion2!$E31","v":0},0,0,{"$f":"GM25*CustomRegion2!C31","v":0},{"$f":"GZ25*CustomRegion2!$C31","v":0},{"$f":"HA25*CustomRegion2!$C31","v":0},{"$f":"GM25*CustomRegion2!D31","v":0},{"$f":"GZ25*CustomRegion2!$D31","v":0},{"$f":"HA25*CustomRegion2!$D31","v":0},{"$f":"(HE25*'Default-Data'!$C$59/pv_dollar_index)/CustomRegion2!$E31","v":0},{"$f":"(HF25*'Default-Data'!$C$59/pv_dollar_index)/CustomRegion2!$E31","v":0},{"$f":"(HG25*'Default-Data'!$C$59/pv_dollar_index)/CustomRegion2!$E31","v":0},null,"OTHERMFG",0,0,null,50063472.566773318,1635594.8111698553,{"$f":"HM25*CustomRegion3!D30","v":0},{"$f":"HP25*CustomRegion3!$D30","v":5372894.9933917262},{"$f":"HQ25*CustomRegion3!$D30","v":175534.7506194454},{"$f":"HM25*CustomRegion3!E30","v":0},{"$f":"HP25*CustomRegion3!$E30","v":180915.82898603656},{"$f":"HQ25*CustomRegion3!$E30","v":5910.5966082033992},{"$f":"(HU25*'Default-Data'!$C$60/pv_dollar_index)/CustomRegion3!$F30","v":0},{"$f":"(HV25*'Default-Data'!$C$60/pv_dollar_index)/CustomRegion3!$F30","v":736.0341819105023},{"$f":"(HW25*'Default-Data'!$C$60/pv_dollar_index)/CustomRegion3!$F30","v":24.046547853243677},341763.03782366082,9523.3644748369697,{"$f":"HN25*CustomRegion3!D30","v":0},{"$f":"IA25*CustomRegion3!$D30","v":36678.576628897332},{"$f":"IB25*CustomRegion3!$D30","v":1022.0632865378969},{"$f":"HN25*CustomRegion3!E30","v":0},{"$f":"IA25*CustomRegion3!$E30","v":1235.0390441291524},{"$f":"IB25*CustomRegion3!$E30","v":34.414859584566507},{"$f":"(IF25*'Default-Data'!$C$60/pv_dollar_index)/CustomRegion3!$F30","v":0},{"$f":"(IG25*'Default-Data'!$C$60/pv_dollar_index)/CustomRegion3!$F30","v":5.0246070648870109},{"$f":"(IH25*'Default-Data'!$C$60/pv_dollar_index)/CustomRegion3!$F30","v":0.14001269630114166}]
[null,null,"Biopower",null,null,null,"Output",null,"Value Added",null,null,"Earnings",null,null,"Jobs",null,null,"Output",null,"Value Added",null,null,"Earnings",null,null,"Jobs",null,null,null,25,"TTL_C45: Construction",{"$f":"'Solar-PV-Inputs'!B18*'Solar-PV-Inputs'!C18","v":71888874.404725581},{"$f":"'Solar-PV-Inputs'!B32*'Solar-PV-Inputs'!C32","v":675746.53700843919},null,2627104.8035158217,477923.64243717492,{"$f":"AF26*'Colombia-IO-Data'!AN32","v":35697334.575891815},{"$f":"AI26*'Colombia-IO-Data'!$AN32","v":1304522.291016316},{"$f":"AJ26*'Colombia-IO-Data'!$AN32","v":237319.06094063492},{"$f":"AK26*'Colombia-IO-Data'!$AO32","v":7039909.0257293601},{"$f":"AL26*'Colombia-IO-Data'!$AO32","v":257266.21776946695},{"$f":"AM26*'Colombia-IO-Data'!$AO32","v":46801.942468329318},{"$f":"(AN26*'Default-Data'!$F$19/pv_dollar_index)/'Colombia-IO-Data'!$AP32","v":2091.5122730393582},{"$f":"(AO26*'Default-Data'!$F$19/pv_dollar_index)/'Colombia-IO-Data'!$AP32","v":76.432159838529998},{"$f":"(AP26*'Default-Data'!$F$19/pv_dollar_index)/'Colombia-IO-Data'!$AP32","v":13.904559947697802},9510.0379805000266,2437.7377529280493,{"$f":"'Colombia-IO-Data'!$AN32*Calculations!AG26","v":335550.53434672835},{"$f":"'Colombia-IO-Data'!$AN32*Calculations!AT26","v":4722.3302691888048},{"$f":"'Colombia-IO-Data'!$AN32*Calculations!AU26","v":1210.4896744472467},{"$f":"AV26*'Colombia-IO-Data'!$AO32","v":66174.275009630102},{"$f":"AW26*'Colombia-IO-Data'!$AO32","v":931.29573620852557},{"$f":"AX26*'Colombia-IO-Data'!$AO32","v":238.72194621635754},{"$f":"(AY26*'Default-Data'!$F$19/pv_dollar_index)/'Colombia-IO-Data'!$AP32","v":19.659956944938486},{"$f":"(AZ26*'Default-Data'!$F$19/pv_dollar_index)/'Colombia-IO-Data'!$AP32","v":0.27668205015015163},{"$f":"(BA26*'Default-Data'!$F$19/pv_dollar_index)/'Colombia-IO-Data'!$AP32","v":7.0922774503272099E-2},null,"DOM_C45: Construction",71888874.404725581,675746.53700843919,null,5701485.4018616974,86131.785381659865,{"$f":"BG26*'Mexico-IO-Data'!AQ32","v":36155973.079504795},{"$f":"BJ26*'Mexico-IO-Data'!$AQ32","v":2867519.5488851671},{"$f":"BK26*'Mexico-IO-Data'!$AQ32","v":43319.338900989525},{"$f":"BG26*'Mexico-IO-Data'!AR32","v":15901987.796451369},{"$f":"BJ26*'Mexico-IO-Data'!$AR32","v":1261181.9566351497},{"$f":"BK26*'Mexico-IO-Data'!$AR32","v":19052.5531435458},{"$f":"(Calculations!BO26*'Default-Data'!$F$19/pv_dollar_index)/'Mexico-IO-Data'!$AS32","v":5839.623966643222},{"$f":"(Calculations!BP26*'Default-Data'!$F$19/pv_dollar_index)/'Mexico-IO-Data'!$AS32","v":463.1388524840977},{"$f":"(Calculations!BQ26*'Default-Data'!$F$19/pv_dollar_index)/'Mexico-IO-Data'!$AS32","v":6.9965935948977434},51972.167973418371,537.88568877102807,{"$f":"BH26*'Mexico-IO-Data'!AQ32","v":339861.67961255042},{"$f":"BU26*'Mexico-IO-Data'!$AQ32","v":26139.014161653002},{"$f":"BV26*'Mexico-IO-Data'!$AQ32","v":270.52559445523599},{"$f":"BH26*'Mexico-IO-Data'!AR32","v":149476.72047979804},{"$f":"BU26*'Mexico-IO-Data'!$AR32","v":11496.365574115773},{"$f":"BV26*'Mexico-IO-Data'!$AR32","v":118.98157718491794},{"$f":"(BZ26*'Default-Data'!$F$19/pv_dollar_index)/'Mexico-IO-Data'!$AS32","v":54.89174375821424},{"$f":"(CA26*'Default-Data'!$F$19/pv_dollar_index)/'Mexico-IO-Data'!$AS32","v":4.2217647752741971},{"$f":"(CB26*'Default-Data'!$F$19/pv_dollar_index)/'Mexico-IO-Data'!$AS32","v":4.3693133123464477E-2},null,"TTL_C45: Construction",{"$f":"'Solar-PV-Inputs'!B18*'Solar-PV-Inputs'!C18","v":71888874.404725581},{"$f":"'Solar-PV-Inputs'!B32*'Solar-PV-Inputs'!C32","v":675746.53700843919},null,829526.22110074759,549910.90934485197,{"$f":"CH26*'Philippines-IO-Data'!AN32","v":39562498.873413265},{"$f":"'Philippines-IO-Data'!$AN32*Calculations!CK26","v":456511.94930390798},{"$f":"'Philippines-IO-Data'!$AN32*Calculations!CL26","v":302631.66465718456},{"$f":"CH26*'Philippines-IO-Data'!AO32","v":12157340.181605032},{"$f":"'Philippines-IO-Data'!$AO32*Calculations!CK26","v":140283.63280118594},{"$f":"'Philippines-IO-Data'!$AO32*Calculations!CL26","v":92997.06039133179},{"$f":"(CP26*'Default-Data'!$F$19/pv_dollar_index)/'Philippines-IO-Data'!$AP32","v":4095.2944323084907},{"$f":"(CQ26*'Default-Data'!$F$19/pv_dollar_index)/'Philippines-IO-Data'!$AP32","v":47.255630900579007},{"$f":"(CR26*'Default-Data'!$F$19/pv_dollar_index)/'Philippines-IO-Data'!$AP32","v":31.326781841469959},5746.0949144061888,3221.1371644169558,{"$f":"CI26*'Philippines-IO-Data'!AN32","v":371882.60117412452},{"$f":"'Philippines-IO-Data'!$AN32*Calculations!CV26","v":3162.2399913772629},{"$f":"'Philippines-IO-Data'!$AN32*Calculations!CW26","v":1772.6836940150847},{"$f":"'Philippines-IO-Data'!AO32*Calculations!CI26","v":114277.4955788308},{"$f":"'Philippines-IO-Data'!$AO32*Calculations!CV26","v":971.73910662363437},{"$f":"'Philippines-IO-Data'!$AO32*Calculations!CW26","v":544.7360332693338},{"$f":"(DA26*'Default-Data'!$F$19/pv_dollar_index)/'Philippines-IO-Data'!$AP32","v":38.495261660133771},{"$f":"(DB26*'Default-Data'!$F$19/pv_dollar_index)/'Philippines-IO-Data'!$AP32","v":0.32733786285207073},{"$f":"(DC26*'Default-Data'!$F$19/pv_dollar_index)/'Philippines-IO-Data'!$AP32","v":0.18349856225140146},null,"DOM_C45: Construction",71888874.404725581,675746.53700843919,null,5559562.4531315118,1118254.5650490522,{"$f":"DI26*'SouthAfrica-IO-Data'!AR32","v":21404959.186616495},{"$f":"DL26*'SouthAfrica-IO-Data'!$AR32","v":1655363.3422434409},{"$f":"DM26*'SouthAfrica-IO-Data'!$AR32","v":332961.02523965947},{"$f":"DI26*'SouthAfrica-IO-Data'!AS32","v":9653834.6861332674},{"$f":"DL26*'SouthAfrica-IO-Data'!$AS32","v":746584.18697173393},{"$f":"DM26*'SouthAfrica-IO-Data'!$AS32","v":150168.50378294109},{"$f":"(DQ26*'Default-Data'!$F$19/pv_dollar_index)/'SouthAfrica-IO-Data'!$AT32","v":985.77129676829725},{"$f":"(DR26*'Default-Data'!$F$19/pv_dollar_index)/'SouthAfrica-IO-Data'!$AT32","v":76.235121696766058},{"$f":"(DS26*'Default-Data'!$F$19/pv_dollar_index)/'SouthAfrica-IO-Data'!$AT32","v":15.333989603167447},47887.91895105876,6336.3370279616211,{"$f":"DJ26*'SouthAfrica-IO-Data'!AR32","v":201203.97161500514},{"$f":"DW26*'SouthAfrica-IO-Data'!$AR32","v":14258.659064663711},{"$f":"DX26*'SouthAfrica-IO-Data'!$AR32","v":1886.64847793541},{"$f":"DJ26*'SouthAfrica-IO-Data'!AS32","v":90744.85324780221},{"$f":"DW26*'SouthAfrica-IO-Data'!$AS32","v":6430.7871954395277},{"$f":"DX26*'SouthAfrica-IO-Data'!$AS32","v":850.89592360546817},{"$f":"(EB26*'Default-Data'!$F$19/pv_dollar_index)/'SouthAfrica-IO-Data'!$AT32","v":9.266128390371728},{"$f":"(EC26*'Default-Data'!$F$19/pv_dollar_index)/'SouthAfrica-IO-Data'!$AT32","v":0.65665982886521879},{"$f":"(ED26*'Default-Data'!$F$19/pv_dollar_index)/'SouthAfrica-IO-Data'!$AT32","v":8.6886590178745587E-2},null,"ELECWATER",{"$f":"'Solar-PV-Inputs'!B24*'Solar-PV-Inputs'!C24","v":40737028.829344496},0,null,48608039.505175874,710650.78839607537,{"$f":"EJ26*'Zambia-IO-Data'!BO30","v":10858835.036216099},{"$f":"EM26*'Zambia-IO-Data'!$BO30","v":12956926.353950625},{"$f":"EN26*'Zambia-IO-Data'!$BO30","v":189430.59671527031},{"$f":"EJ26*'Zambia-IO-Data'!$BN30","v":537544.74631625682},{"$f":"EM26*'Zambia-IO-Data'!$BN30","v":641406.52903774381},{"$f":"EN26*'Zambia-IO-Data'!$BN30","v":9377.3799598423775},{"$f":"(ER26*'Default-Data'!$F$19/pv_dollar_index)/'Zambia-IO-Data'!$BP30","v":985.99476241794082},{"$f":"(ES26*'Default-Data'!$F$19/pv_dollar_index)/'Zambia-IO-Data'!$BP30","v":1176.5038772043156},{"$f":"(ET26*'Default-Data'!$F$19/pv_dollar_index)/'Zambia-IO-Data'!$BP30","v":17.200516959694667},54773.473811399919,4132.7605579887677,{"$f":"EK26*'Zambia-IO-Data'!BO30","v":0},{"$f":"EX26*'Zambia-IO-Data'!$BO30","v":14600.380380467355},{"$f":"EY26*'Zambia-IO-Data'!$BO30","v":1101.6258778071162},{"$f":"EK26*'Zambia-IO-Data'!BN30","v":0},{"$f":"EX26*'Zambia-IO-Data'!$BN30","v":722.76240881858348},{"$f":"EY26*'Zambia-IO-Data'!$BN30","v":54.533769142477034},{"$f":"(FC26*'Default-Data'!$F$19/pv_dollar_index)/'Zambia-IO-Data'!$BP30","v":0},{"$f":"(FD26*'Default-Data'!$F$19/pv_dollar_index)/'Zambia-IO-Data'!$BP30","v":1.3257314008765815},{"$f":"(FE26*'Default-Data'!$F$19/pv_dollar_index)/'Zambia-IO-Data'!$BP30","v":0.10002890199908428},null,"TTL_C45: Construction",71888874.404725581,675746.53700843919,null,1239564.2319988608,732065.51186184585,{"$f":"FK26*CustomRegion1!C28","v":39562498.873413265},{"$f":"FN26*CustomRegion1!$C28","v":682167.56679048343},{"$f":"FO26*CustomRegion1!$C28","v":402876.54005047487},{"$f":"FK26*CustomRegion1!D28","v":12157340.181605032},{"$f":"FN26*CustomRegion1!$D28","v":209626.37362380969},{"$f":"FO26*CustomRegion1!$D28","v":123801.76399507291},{"$f":"(FS26*'Default-Data'!$C$58/pv_dollar_index)/CustomRegion1!$E28","v":4095.2944323084907},{"$f":"(FT26*'Default-Data'!$C$58/pv_dollar_index)/CustomRegion1!$E28","v":70.614271538239478},{"$f":"(FU26*'Default-Data'!$C$58/pv_dollar_index)/CustomRegion1!$E28","v":41.703585424559229},8153.2462389270077,4310.9434794507688,{"$f":"FL26*CustomRegion1!C28","v":371882.60117412452},{"$f":"FY26*CustomRegion1!$C28","v":4486.9640512970282},{"$f":"FZ26*CustomRegion1!$C28","v":2372.4352058836544},{"$f":"FL26*CustomRegion1!D28","v":114277.4955788308},{"$f":"FY26*CustomRegion1!$D28","v":1378.8195869222247},{"$f":"FZ26*CustomRegion1!$D28","v":729.03640260515635},{"$f":"(GD26*'Default-Data'!$C$58/pv_dollar_index)/CustomRegion1!$E28","v":38.495261660133771},{"$f":"(GE26*'Default-Data'!$C$58/pv_dollar_index)/CustomRegion1!$E28","v":0.46446608329873984},{"$f":"(GF26*'Default-Data'!$C$58/pv_dollar_index)/CustomRegion1!$E28","v":0.24558157260883209},null,"C36T37 Manufacturing n.e.c; recycling",71888874.404725581,675746.53700843919,null,3734666.8854307085,748622.72538088262,{"$f":"GL26*CustomRegion2!$C$13","v":44296591.585510306},{"$f":"GO26*CustomRegion2!C$13","v":2301232.4939250858},{"$f":"GP26*CustomRegion2!D$13","v":82840.083001682651},{"$f":"GL26*CustomRegion2!D32","v":12134981.848533301},{"$f":"GO26*CustomRegion2!$D32","v":630419.03549460706},{"$f":"GP26*CustomRegion2!$D32","v":126368.97237744724},{"$f":"(GT26*'Default-Data'!$C$59/pv_dollar_index)/CustomRegion2!$E32","v":2053.6037763925306},{"$f":"(GU26*'Default-Data'!$C$59/pv_dollar_index)/CustomRegion2!$E32","v":106.68585484187912},{"$f":"(GV26*'Default-Data'!$C$59/pv_dollar_index)/CustomRegion2!$E32","v":21.385429507217186},34613.718942574225,6416.7908308912301,{"$f":"GM26*CustomRegion2!C32","v":249631.49376242864},{"$f":"GZ26*CustomRegion2!$C32","v":12786.85704045238},{"$f":"HA26*CustomRegion2!$C32","v":2370.4643568989959},{"$f":"GM26*CustomRegion2!D32","v":114067.33001049202},{"$f":"GZ26*CustomRegion2!$D32","v":5842.8630933016884},{"$f":"HA26*CustomRegion2!$D32","v":1083.1667751579291},{"$f":"(HE26*'Default-Data'!$C$59/pv_dollar_index)/CustomRegion2!$E32","v":19.303621760330202},{"$f":"(HF26*'Default-Data'!$C$59/pv_dollar_index)/CustomRegion2!$E32","v":0.98878810558741348},{"$f":"(HG26*'Default-Data'!$C$59/pv_dollar_index)/CustomRegion2!$E32","v":0.18330438460409357},null,"ELECWATER",40737028.829344496,0,null,48608039.505175874,710650.78839607537,{"$f":"HM26*CustomRegion3!D31","v":10858835.036216099},{"$f":"HP26*CustomRegion3!$D31","v":12956926.353950625},{"$f":"HQ26*CustomRegion3!$D31","v":189430.59671527031},{"$f":"HM26*CustomRegion3!E31","v":537544.74631625682},{"$f":"HP26*CustomRegion3!$E31","v":641406.52903774381},{"$f":"HQ26*CustomRegion3!$E31","v":9377.3799598423775},{"$f":"(HU26*'Default-Data'!$C$60/pv_dollar_index)/CustomRegion3!$F31","v":985.99476241794082},{"$f":"(HV26*'Default-Data'!$C$60/pv_dollar_index)/CustomRegion3!$F31","v":1176.5038772043156},{"$f":"(HW26*'Default-Data'!$C$60/pv_dollar_index)/CustomRegion3!$F31","v":17.200516959694667},54773.473811399919,4132.7605579887677,{"$f":"HN26*CustomRegion3!D31","v":0},{"$f":"IA26*CustomRegion3!$D31","v":14600.380380467355},{"$f":"IB26*CustomRegion3!$D31","v":1101.6258778071162},{"$f":"HN26*CustomRegion3!E31","v":0},{"$f":"IA26*CustomRegion3!$E31","v":722.76240881858348},{"$f":"IB26*CustomRegion3!$E31","v":54.533769142477034},{"$f":"(IF26*'Default-Data'!$C$60/pv_dollar_index)/CustomRegion3!$F31","v":0},{"$f":"(IG26*'Default-Data'!$C$60/pv_dollar_index)/CustomRegion3!$F31","v":1.3257314008765815},{"$f":"(IH26*'Default-Data'!$C$60/pv_dollar_index)/CustomRegion3!$F31","v":0.10002890199908428}]
[null,null,null,"Construction","O&M",null,"Indirect","Induced","Direct","Indirect","Induced","Direct","Indirect","Induced","Direct","Indirect","Induced","Indirect","Induced","Direct","Indirect","Induced","Direct","Indirect","Induced","Direct","Indirect","Induced",null,26,"TTL_C50T52: Wholesale and retail trade; repairs",{"$f":"IF('Solar-PV-Inputs'!F13=\"Yes\",'Solar-PV-Inputs'!E13,0)","v":6556521.8278669231},0,null,5466271.3383375127,4486490.9091774598,{"$f":"AF27*'Colombia-IO-Data'!AN33","v":3939076.7666942347},{"$f":"AI27*'Colombia-IO-Data'!$AN33","v":3284067.832699806},{"$f":"AJ27*'Colombia-IO-Data'!$AN33","v":2695427.9369913088},{"$f":"AK27*'Colombia-IO-Data'!$AO33","v":1708795.366976307},{"$f":"AL27*'Colombia-IO-Data'!$AO33","v":1424648.5229235336},{"$f":"AM27*'Colombia-IO-Data'!$AO33","v":1169292.9697876037},{"$f":"(AN27*'Default-Data'!$F$19/pv_dollar_index)/'Colombia-IO-Data'!$AP33","v":558.8568401289541},{"$f":"(AO27*'Default-Data'!$F$19/pv_dollar_index)/'Colombia-IO-Data'!$AP33","v":465.92739376643397},{"$f":"(AP27*'Default-Data'!$F$19/pv_dollar_index)/'Colombia-IO-Data'!$AP33","v":382.41406016731156},39756.159191889485,22884.17499435223,{"$f":"'Colombia-IO-Data'!$AN33*Calculations!AG27","v":0},{"$f":"'Colombia-IO-Data'!$AN33*Calculations!AT27","v":23885.005970721806},{"$f":"'Colombia-IO-Data'!$AN33*Calculations!AU27","v":13748.527712069663},{"$f":"AV27*'Colombia-IO-Data'!$AO33","v":0},{"$f":"AW27*'Colombia-IO-Data'!$AO33","v":10361.460301578079},{"$f":"AX27*'Colombia-IO-Data'!$AO33","v":5964.1946193514359},{"$f":"(AY27*'Default-Data'!$F$19/pv_dollar_index)/'Colombia-IO-Data'!$AP33","v":0},{"$f":"(AZ27*'Default-Data'!$F$19/pv_dollar_index)/'Colombia-IO-Data'!$AP33","v":3.388687185820193},{"$f":"(BA27*'Default-Data'!$F$19/pv_dollar_index)/'Colombia-IO-Data'!$AP33","v":1.9505734994956061},null,"DOM_C50T52: Wholesale and retail trade; repairs",6556521.8278669231,0,null,12941270.759513866,8321646.6815262772,{"$f":"BG27*'Mexico-IO-Data'!AQ33","v":4992582.2835418219},{"$f":"BJ27*'Mexico-IO-Data'!$AQ33","v":9854364.9844733085},{"$f":"BK27*'Mexico-IO-Data'!$AQ33","v":6336668.5695301471},{"$f":"BG27*'Mexico-IO-Data'!AR33","v":1005323.4251813171},{"$f":"BJ27*'Mexico-IO-Data'!$AR33","v":1984308.5995469014},{"$f":"BK27*'Mexico-IO-Data'!$AR33","v":1275973.2316398751},{"$f":"(Calculations!BO27*'Default-Data'!$F$19/pv_dollar_index)/'Mexico-IO-Data'!$AS33","v":221.72402736439565},{"$f":"(Calculations!BP27*'Default-Data'!$F$19/pv_dollar_index)/'Mexico-IO-Data'!$AS33","v":437.63915492767052},{"$f":"(Calculations!BQ27*'Default-Data'!$F$19/pv_dollar_index)/'Mexico-IO-Data'!$AS33","v":281.41582762515509},63866.432137449112,51967.977177845838,{"$f":"BH27*'Mexico-IO-Data'!AQ33","v":0},{"$f":"BU27*'Mexico-IO-Data'!$AQ33","v":48632.251363401745},{"$f":"BV27*'Mexico-IO-Data'!$AQ33","v":39571.957355021703},{"$f":"BH27*'Mexico-IO-Data'!AR33","v":0},{"$f":"BU27*'Mexico-IO-Data'!$AR33","v":9792.7562808738785},{"$f":"BV27*'Mexico-IO-Data'!$AR33","v":7968.3445259227619},{"$f":"(BZ27*'Default-Data'!$F$19/pv_dollar_index)/'Mexico-IO-Data'!$AS33","v":0},{"$f":"(CA27*'Default-Data'!$F$19/pv_dollar_index)/'Mexico-IO-Data'!$AS33","v":2.1597918711600004},{"$f":"(CB27*'Default-Data'!$F$19/pv_dollar_index)/'Mexico-IO-Data'!$AS33","v":1.7574179567097832},null,"TTL_C50T52: Wholesale and retail trade; repairs",{"$f":"IF('Solar-PV-Inputs'!F13=\"Yes\",'Solar-PV-Inputs'!E13,0)","v":6556521.8278669231},0,null,6867578.7384549137,5474025.7577534709,{"$f":"CH27*'Philippines-IO-Data'!AN33","v":4531309.9892232371},{"$f":"'Philippines-IO-Data'!$AN33*Calculations!CK27","v":4746286.0578109389},{"$f":"'Philippines-IO-Data'!$AN33*Calculations!CL27","v":3783180.8157715565},{"$f":"CH27*'Philippines-IO-Data'!AO33","v":1008629.3540869599},{"$f":"'Philippines-IO-Data'!$AO33*Calculations!CK27","v":1056481.117422387},{"$f":"'Philippines-IO-Data'!$AO33*Calculations!CL27","v":842102.44535928487},{"$f":"(CP27*'Default-Data'!$F$19/pv_dollar_index)/'Philippines-IO-Data'!$AP33","v":339.76462913369784},{"$f":"(CQ27*'Default-Data'!$F$19/pv_dollar_index)/'Philippines-IO-Data'!$AP33","v":355.88386714434682},{"$f":"(CR27*'Default-Data'!$F$19/pv_dollar_index)/'Philippines-IO-Data'!$AP33","v":283.66874697899146},41243.081913078888,32064.444453888558,{"$f":"CI27*'Philippines-IO-Data'!AN33","v":0},{"$f":"'Philippines-IO-Data'!$AN33*Calculations!CV27","v":28503.708820853142},{"$f":"'Philippines-IO-Data'!$AN33*Calculations!CW27","v":22160.215624580374},{"$f":"'Philippines-IO-Data'!AO33*Calculations!CI27","v":0},{"$f":"'Philippines-IO-Data'!$AO33*Calculations!CV27","v":6344.6723983649135},{"$f":"'Philippines-IO-Data'!$AO33*Calculations!CW27","v":4932.6671591673139},{"$f":"(DA27*'Default-Data'!$F$19/pv_dollar_index)/'Philippines-IO-Data'!$AP33","v":0},{"$f":"(DB27*'Default-Data'!$F$19/pv_dollar_index)/'Philippines-IO-Data'!$AP33","v":2.1372521587542539},{"$f":"(DC27*'Default-Data'!$F$19/pv_dollar_index)/'Philippines-IO-Data'!$AP33","v":1.6616072308262009},null,"DOM_C50T52: Wholesale and retail trade; repairs",6556521.8278669231,0,null,15458641.857435755,11251052.446320742,{"$f":"DI27*'SouthAfrica-IO-Data'!AR33","v":3850424.2646540743},{"$f":"DL27*'SouthAfrica-IO-Data'!$AR33","v":9078339.2885969486},{"$f":"DM27*'SouthAfrica-IO-Data'!$AR33","v":6607363.8553420305},{"$f":"DI27*'SouthAfrica-IO-Data'!AS33","v":1848915.5861432499},{"$f":"DL27*'SouthAfrica-IO-Data'!$AS33","v":4359281.4332348667},{"$f":"DM27*'SouthAfrica-IO-Data'!$AS33","v":3172756.3446982824},{"$f":"(DQ27*'Default-Data'!$F$19/pv_dollar_index)/'SouthAfrica-IO-Data'!$AT33","v":208.5394651929841},{"$f":"(DR27*'Default-Data'!$F$19/pv_dollar_index)/'SouthAfrica-IO-Data'!$AT33","v":491.6840041403982},{"$f":"(DS27*'Default-Data'!$F$19/pv_dollar_index)/'SouthAfrica-IO-Data'!$AT33","v":357.85566213500681},110434.73422490039,63751.548571616688,{"$f":"DJ27*'SouthAfrica-IO-Data'!AR33","v":0},{"$f":"DW27*'SouthAfrica-IO-Data'!$AR33","v":64854.596916444651},{"$f":"DX27*'SouthAfrica-IO-Data'!$AR33","v":37439.13556210736},{"$f":"DJ27*'SouthAfrica-IO-Data'!AS33","v":0},{"$f":"DW27*'SouthAfrica-IO-Data'!$AS33","v":31142.198061809006},{"$f":"DX27*'SouthAfrica-IO-Data'!$AS33","v":17977.707523804336},{"$f":"(EB27*'Default-Data'!$F$19/pv_dollar_index)/'SouthAfrica-IO-Data'!$AT33","v":0},{"$f":"(EC27*'Default-Data'!$F$19/pv_dollar_index)/'SouthAfrica-IO-Data'!$AT33","v":3.5125331721014907},{"$f":"(ED27*'Default-Data'!$F$19/pv_dollar_index)/'SouthAfrica-IO-Data'!$AT33","v":2.0277083175173005},null,"EQUIPMACHIN",{"$f":"'Solar-PV-Inputs'!B13*'Solar-PV-Inputs'!C13+'Solar-PV-Inputs'!B14*'Solar-PV-Inputs'!C14","v":0},{"$f":"'Solar-PV-Inputs'!B33*'Solar-PV-Inputs'!C33","v":0},null,28610540.516588405,431575.44106811658,{"$f":"EJ27*'Zambia-IO-Data'!BO31","v":0},{"$f":"EM27*'Zambia-IO-Data'!$BO31","v":3604756.5937077911},{"$f":"EN27*'Zambia-IO-Data'!$BO31","v":54375.918412678424},{"$f":"EJ27*'Zambia-IO-Data'!$BN31","v":0},{"$f":"EM27*'Zambia-IO-Data'!$BN31","v":808391.90857939248},{"$f":"EN27*'Zambia-IO-Data'!$BN31","v":12194.180473408598},{"$f":"(ER27*'Default-Data'!$F$19/pv_dollar_index)/'Zambia-IO-Data'!$BP31","v":0},{"$f":"(ES27*'Default-Data'!$F$19/pv_dollar_index)/'Zambia-IO-Data'!$BP31","v":3288.844765154442},{"$f":"(ET27*'Default-Data'!$F$19/pv_dollar_index)/'Zambia-IO-Data'!$BP31","v":49.610549276520487},185676.30440817843,2521.0450514916156,{"$f":"EK27*'Zambia-IO-Data'!BO31","v":0},{"$f":"EX27*'Zambia-IO-Data'!$BO31","v":23394.101283147917},{"$f":"EY27*'Zambia-IO-Data'!$BO31","v":317.63656359898954},{"$f":"EK27*'Zambia-IO-Data'!BN31","v":0},{"$f":"EX27*'Zambia-IO-Data'!$BN31","v":5246.291030799227},{"$f":"EY27*'Zambia-IO-Data'!$BN31","v":71.232223648774166},{"$f":"(FC27*'Default-Data'!$F$19/pv_dollar_index)/'Zambia-IO-Data'!$BP31","v":0},{"$f":"(FD27*'Default-Data'!$F$19/pv_dollar_index)/'Zambia-IO-Data'!$BP31","v":21.343900909946079},{"$f":"(FE27*'Default-Data'!$F$19/pv_dollar_index)/'Zambia-IO-Data'!$BP31","v":0.28979969167340258},null,"TTL_C50T52: Wholesale and retail trade; repairs",6556521.8278669231,0,null,12427017.190870799,8703343.1464828141,{"$f":"FK27*CustomRegion1!C29","v":4531309.9892232371},{"$f":"FN27*CustomRegion1!$C29","v":8588496.8603180367},{"$f":"FO27*CustomRegion1!$C29","v":6015010.210394687},{"$f":"FK27*CustomRegion1!D29","v":1008629.3540869599},{"$f":"FN27*CustomRegion1!$D29","v":1911723.1134931513},{"$f":"FO27*CustomRegion1!$D29","v":1338887.8443023625},{"$f":"(FS27*'Default-Data'!$C$58/pv_dollar_index)/CustomRegion1!$E29","v":339.76462913369784},{"$f":"(FT27*'Default-Data'!$C$58/pv_dollar_index)/CustomRegion1!$E29","v":643.9787737987233},{"$f":"(FU27*'Default-Data'!$C$58/pv_dollar_index)/CustomRegion1!$E29","v":451.01476575882816},74575.290110470552,51251.725124064949,{"$f":"FL27*CustomRegion1!C29","v":0},{"$f":"FY27*CustomRegion1!$C29","v":51540.09487019966},{"$f":"FZ27*CustomRegion1!$C29","v":35420.831367102219},{"$f":"FL27*CustomRegion1!D29","v":0},{"$f":"FY27*CustomRegion1!$D29","v":11472.36731147176},{"$f":"FZ27*CustomRegion1!$D29","v":7884.3624355851489},{"$f":"(GD27*'Default-Data'!$C$58/pv_dollar_index)/CustomRegion1!$E29","v":0},{"$f":"(GE27*'Default-Data'!$C$58/pv_dollar_index)/CustomRegion1!$E29","v":3.8645560027313057},{"$f":"(GF27*'Default-Data'!$C$58/pv_dollar_index)/CustomRegion1!$E29","v":2.6559087022677401},null,"C40T41 Electricity, gas and water supply",6556521.8278669231,0,null,3474566.0750190504,1919895.1715852115,{"$f":"GL27*CustomRegion2!$C$13","v":4040007.1921478463},{"$f":"GO27*CustomRegion2!C$13","v":2140963.1968291206},{"$f":"GP27*CustomRegion2!D$13","v":212449.16828797909},{"$f":"GL27*CustomRegion2!D33","v":969754.2443824684},{"$f":"GO27*CustomRegion2!$D33","v":513911.99283679837},{"$f":"GP27*CustomRegion2!$D33","v":283965.57508600364},{"$f":"(GT27*'Default-Data'!$C$59/pv_dollar_index)/CustomRegion2!$E33","v":56.285681915414216},{"$f":"(GU27*'Default-Data'!$C$59/pv_dollar_index)/CustomRegion2!$E33","v":29.828059148891306},{"$f":"(GV27*'Default-Data'!$C$59/pv_dollar_index)/CustomRegion2!$E33","v":16.481697426750053},21989.831990402967,16456.307450501143,{"$f":"GM27*CustomRegion2!C33","v":0},{"$f":"GZ27*CustomRegion2!$C33","v":8638.0179706975487},{"$f":"HA27*CustomRegion2!$C33","v":6464.3458645246301},{"$f":"GM27*CustomRegion2!D33","v":0},{"$f":"GZ27*CustomRegion2!$D33","v":3252.4459562256011},{"$f":"HA27*CustomRegion2!$D33","v":2433.9999798610038},{"$f":"(HE27*'Default-Data'!$C$59/pv_dollar_index)/CustomRegion2!$E33","v":0},{"$f":"(HF27*'Default-Data'!$C$59/pv_dollar_index)/CustomRegion2!$E33","v":0.18877580541631392},{"$f":"(HG27*'Default-Data'!$C$59/pv_dollar_index)/CustomRegion2!$E33","v":0.14127223411723364},null,"EQUIPMACHIN",0,0,null,28610540.516588405,431575.44106811658,{"$f":"HM27*CustomRegion3!D32","v":0},{"$f":"HP27*CustomRegion3!$D32","v":3604756.5937077911},{"$f":"HQ27*CustomRegion3!$D32","v":54375.918412678424},{"$f":"HM27*CustomRegion3!E32","v":0},{"$f":"HP27*CustomRegion3!$E32","v":808391.90857939248},{"$f":"HQ27*CustomRegion3!$E32","v":12194.180473408598},{"$f":"(HU27*'Default-Data'!$C$60/pv_dollar_index)/CustomRegion3!$F32","v":0},{"$f":"(HV27*'Default-Data'!$C$60/pv_dollar_index)/CustomRegion3!$F32","v":3288.844765154442},{"$f":"(HW27*'Default-Data'!$C$60/pv_dollar_index)/CustomRegion3!$F32","v":49.610549276520487},185676.30440817843,2521.0450514916156,{"$f":"HN27*CustomRegion3!D32","v":0},{"$f":"IA27*CustomRegion3!$D32","v":23394.101283147917},{"$f":"IB27*CustomRegion3!$D32","v":317.63656359898954},{"$f":"HN27*CustomRegion3!E32","v":0},{"$f":"IA27*CustomRegion3!$E32","v":5246.291030799227},{"$f":"IB27*CustomRegion3!$E32","v":71.232223648774166},{"$f":"(IF27*'Default-Data'!$C$60/pv_dollar_index)/CustomRegion3!$F32","v":0},{"$f":"(IG27*'Default-Data'!$C$60/pv_dollar_index)/CustomRegion3!$F32","v":21.343900909946079},{"$f":"(IH27*'Default-Data'!$C$60/pv_dollar_index)/CustomRegion3!$F32","v":0.28979969167340258}]
[null,113,"Agriculture",{"$f":"HLOOKUP(biopower_country&D$1,$AF$2:$IK$255,$B28,FALSE)","v":0},28385431.684592765,0,4720287.2894381825,22007502.634515733,0,2878787.36736478,13421835.724543713,0,474236.29852227861,{"$f":"HLOOKUP(biopower_country&N$1,$AF$2:$IK$255,$B28,FALSE)","v":2211042.665234522},0,32.952864203272206,153.63688718503153,1357746.5901010595,1880593.5846988894,11463424.600471133,548324.43047249643,759475.60008491471,3516507.1907978705,168203.38335609017,232975.87780394769,244.34861753364646,11.687808941524512,16.188601521717906,null,27,"TTL_C55: Hotels and restaurants",0,0,null,938277.62640934694,3042796.6480883304,{"$f":"AF28*'Colombia-IO-Data'!AN34","v":0},{"$f":"AI28*'Colombia-IO-Data'!$AN34","v":433642.66741217114},{"$f":"AJ28*'Colombia-IO-Data'!$AN34","v":1406285.7492609315},{"$f":"AK28*'Colombia-IO-Data'!$AO34","v":0},{"$f":"AL28*'Colombia-IO-Data'!$AO34","v":184374.10015904592},{"$f":"AM28*'Colombia-IO-Data'!$AO34","v":597917.79977229377},{"$f":"(AN28*'Default-Data'!$F$19/pv_dollar_index)/'Colombia-IO-Data'!$AP34","v":0},{"$f":"(AO28*'Default-Data'!$F$19/pv_dollar_index)/'Colombia-IO-Data'!$AP34","v":40.789966510178104},{"$f":"(AP28*'Default-Data'!$F$19/pv_dollar_index)/'Colombia-IO-Data'!$AP34","v":132.28022269674867},3838.6653594347904,15520.345939996087,{"$f":"'Colombia-IO-Data'!$AN34*Calculations!AG28","v":0},{"$f":"'Colombia-IO-Data'!$AN34*Calculations!AT28","v":1774.1114558366075},{"$f":"'Colombia-IO-Data'!$AN34*Calculations!AU28","v":7173.0200349499855},{"$f":"AV28*'Colombia-IO-Data'!$AO34","v":0},{"$f":"AW28*'Colombia-IO-Data'!$AO34","v":754.30816161091775},{"$f":"AX28*'Colombia-IO-Data'!$AO34","v":3049.7901008197523},{"$f":"(AY28*'Default-Data'!$F$19/pv_dollar_index)/'Colombia-IO-Data'!$AP34","v":0},{"$f":"(AZ28*'Default-Data'!$F$19/pv_dollar_index)/'Colombia-IO-Data'!$AP34","v":0.16687921255708849},{"$f":"(BA28*'Default-Data'!$F$19/pv_dollar_index)/'Colombia-IO-Data'!$AP34","v":0.67471969201855886},null,"DOM_C55: Hotels and restaurants",0,0,null,575977.34488333331,1466170.7385887825,{"$f":"BG28*'Mexico-IO-Data'!AQ34","v":0},{"$f":"BJ28*'Mexico-IO-Data'!$AQ34","v":423591.23632186919},{"$f":"BK28*'Mexico-IO-Data'!$AQ34","v":1078266.5001234871},{"$f":"BG28*'Mexico-IO-Data'!AR34","v":0},{"$f":"BJ28*'Mexico-IO-Data'!$AR34","v":103611.63992739629},{"$f":"BK28*'Mexico-IO-Data'!$AR34","v":263747.10045152227},{"$f":"(Calculations!BO28*'Default-Data'!$F$19/pv_dollar_index)/'Mexico-IO-Data'!$AS34","v":0},{"$f":"(Calculations!BP28*'Default-Data'!$F$19/pv_dollar_index)/'Mexico-IO-Data'!$AS34","v":77.958162270291766},{"$f":"(Calculations!BQ28*'Default-Data'!$F$19/pv_dollar_index)/'Mexico-IO-Data'!$AS34","v":198.44526415880091},3541.6644997117655,9156.1118126962338,{"$f":"BH28*'Mexico-IO-Data'!AQ34","v":0},{"$f":"BU28*'Mexico-IO-Data'!$AQ34","v":2604.6476608798853},{"$f":"BV28*'Mexico-IO-Data'!$AQ34","v":6733.6827691145818},{"$f":"BH28*'Mexico-IO-Data'!AR34","v":0},{"$f":"BU28*'Mexico-IO-Data'!$AR34","v":637.10434125166228},{"$f":"BV28*'Mexico-IO-Data'!$AR34","v":1647.0782552466903},{"$f":"(BZ28*'Default-Data'!$F$19/pv_dollar_index)/'Mexico-IO-Data'!$AS34","v":0},{"$f":"(CA28*'Default-Data'!$F$19/pv_dollar_index)/'Mexico-IO-Data'!$AS34","v":0.4793620065584126},{"$f":"(CB28*'Default-Data'!$F$19/pv_dollar_index)/'Mexico-IO-Data'!$AS34","v":1.2392738304727771},null,"TTL_C55: Hotels and restaurants",0,0,null,623079.65004245483,1640948.0665520835,{"$f":"CH28*'Philippines-IO-Data'!AN34","v":0},{"$f":"'Philippines-IO-Data'!$AN34*Calculations!CK28","v":233569.43682641824},{"$f":"'Philippines-IO-Data'!$AN34*Calculations!CL28","v":615130.53064701241},{"$f":"CH28*'Philippines-IO-Data'!AO34","v":0},{"$f":"'Philippines-IO-Data'!$AO34*Calculations!CK28","v":87987.468823061048},{"$f":"'Philippines-IO-Data'!$AO34*Calculations!CL28","v":231724.57459680462},{"$f":"(CP28*'Default-Data'!$F$19/pv_dollar_index)/'Philippines-IO-Data'!$AP34","v":0},{"$f":"(CQ28*'Default-Data'!$F$19/pv_dollar_index)/'Philippines-IO-Data'!$AP34","v":29.639262026180045},{"$f":"(CR28*'Default-Data'!$F$19/pv_dollar_index)/'Philippines-IO-Data'!$AP34","v":78.058222111052388},2678.220656520863,9611.9547952709272,{"$f":"CI28*'Philippines-IO-Data'!AN34","v":0},{"$f":"'Philippines-IO-Data'!$AN34*Calculations!CV28","v":1003.965528962204},{"$f":"'Philippines-IO-Data'!$AN34*Calculations!CW28","v":3603.1651301393795},{"$f":"'Philippines-IO-Data'!AO34*Calculations!CI28","v":0},{"$f":"'Philippines-IO-Data'!$AO34*Calculations!CV28","v":378.20181817982825},{"$f":"'Philippines-IO-Data'!$AO34*Calculations!CW28","v":1357.3410282617112},{"$f":"(DA28*'Default-Data'!$F$19/pv_dollar_index)/'Philippines-IO-Data'!$AP34","v":0},{"$f":"(DB28*'Default-Data'!$F$19/pv_dollar_index)/'Philippines-IO-Data'!$AP34","v":0.12740021889198444},{"$f":"(DC28*'Default-Data'!$F$19/pv_dollar_index)/'Philippines-IO-Data'!$AP34","v":0.45723086404991897},null,"DOM_C55: Hotels and restaurants",0,0,null,572472.93504071049,822950.92333283159,{"$f":"DI28*'SouthAfrica-IO-Data'!AR34","v":0},{"$f":"DL28*'SouthAfrica-IO-Data'!$AR34","v":257076.45372122779},{"$f":"DM28*'SouthAfrica-IO-Data'!$AR34","v":369556.8681198344},{"$f":"DI28*'SouthAfrica-IO-Data'!AS34","v":0},{"$f":"DL28*'SouthAfrica-IO-Data'!$AS34","v":98610.844277298893},{"$f":"DM28*'SouthAfrica-IO-Data'!$AS34","v":141756.71963053101},{"$f":"(DQ28*'Default-Data'!$F$19/pv_dollar_index)/'SouthAfrica-IO-Data'!$AT34","v":0},{"$f":"(DR28*'Default-Data'!$F$19/pv_dollar_index)/'SouthAfrica-IO-Data'!$AT34","v":11.122331858704595},{"$f":"(DS28*'Default-Data'!$F$19/pv_dollar_index)/'SouthAfrica-IO-Data'!$AT34","v":15.988761585880393},4012.6575113191111,4663.0656119700552,{"$f":"DJ28*'SouthAfrica-IO-Data'!AR34","v":0},{"$f":"DW28*'SouthAfrica-IO-Data'!$AR34","v":1801.9363010312563},{"$f":"DX28*'SouthAfrica-IO-Data'!$AR34","v":2094.0105594850879},{"$f":"DJ28*'SouthAfrica-IO-Data'!AS34","v":0},{"$f":"DW28*'SouthAfrica-IO-Data'!$AS34","v":691.19694708132113},{"$f":"DX28*'SouthAfrica-IO-Data'!$AS34","v":803.2324478083957},{"$f":"(EB28*'Default-Data'!$F$19/pv_dollar_index)/'SouthAfrica-IO-Data'!$AT34","v":0},{"$f":"(EC28*'Default-Data'!$F$19/pv_dollar_index)/'SouthAfrica-IO-Data'!$AT34","v":7.7960206927583472E-2},{"$f":"(ED28*'Default-Data'!$F$19/pv_dollar_index)/'SouthAfrica-IO-Data'!$AT34","v":9.0596707792930248E-2},null,"CONSTR",{"$f":"'Solar-PV-Inputs'!B18*'Solar-PV-Inputs'!C18","v":71888874.404725581},{"$f":"'Solar-PV-Inputs'!B32*'Solar-PV-Inputs'!C32","v":675746.53700843919},null,87552362.738660812,476498.03965646029,{"$f":"EJ28*'Zambia-IO-Data'!BO32","v":4361198.3581864759},{"$f":"EM28*'Zambia-IO-Data'!$BO32","v":5311436.9058210589},{"$f":"EN28*'Zambia-IO-Data'!$BO32","v":28907.149895397804},{"$f":"EJ28*'Zambia-IO-Data'!$BN32","v":1918278.1464485},{"$f":"EM28*'Zambia-IO-Data'!$BN32","v":2336241.6716384818},{"$f":"EN28*'Zambia-IO-Data'!$BN32","v":12714.843344917546},{"$f":"(ER28*'Default-Data'!$F$19/pv_dollar_index)/'Zambia-IO-Data'!$BP32","v":7226.4717165861857},{"$f":"(ES28*'Default-Data'!$F$19/pv_dollar_index)/'Zambia-IO-Data'!$BP32","v":8801.0095900129527},{"$f":"(ET28*'Default-Data'!$F$19/pv_dollar_index)/'Zambia-IO-Data'!$BP32","v":47.898922261604127},789795.68914379971,2774.6588571090251,{"$f":"EK28*'Zambia-IO-Data'!BO32","v":40994.725709012884},{"$f":"EX28*'Zambia-IO-Data'!$BO32","v":47913.612381866369},{"$f":"EY28*'Zambia-IO-Data'!$BO32","v":168.32698734473442},{"$f":"EK28*'Zambia-IO-Data'!BN32","v":18031.577559327201},{"$f":"EX28*'Zambia-IO-Data'!$BN32","v":21074.857871807111},{"$f":"EY28*'Zambia-IO-Data'!$BN32","v":74.03882024187233},{"$f":"(FC28*'Default-Data'!$F$19/pv_dollar_index)/'Zambia-IO-Data'!$BP32","v":67.927941252499949},{"$f":"(FD28*'Default-Data'!$F$19/pv_dollar_index)/'Zambia-IO-Data'!$BP32","v":79.392482588434959},{"$f":"(FE28*'Default-Data'!$F$19/pv_dollar_index)/'Zambia-IO-Data'!$BP32","v":0.27891650718008293},null,"TTL_C55: Hotels and restaurants",0,0,null,878334.74464787892,2028009.1634946654,{"$f":"FK28*CustomRegion1!C30","v":0},{"$f":"FN28*CustomRegion1!$C30","v":329255.09866756597},{"$f":"FO28*CustomRegion1!$C30","v":760225.37112869811},{"$f":"FK28*CustomRegion1!D30","v":0},{"$f":"FN28*CustomRegion1!$D30","v":124033.02042628215},{"$f":"FO28*CustomRegion1!$D30","v":286382.95767436898},{"$f":"(FS28*'Default-Data'!$C$58/pv_dollar_index)/CustomRegion1!$E30","v":0},{"$f":"(FT28*'Default-Data'!$C$58/pv_dollar_index)/CustomRegion1!$E30","v":41.781485948935419},{"$f":"(FU28*'Default-Data'!$C$58/pv_dollar_index)/CustomRegion1!$E30","v":96.470322829861246},4246.6304198955813,11942.41872889009,{"$f":"FL28*CustomRegion1!C30","v":0},{"$f":"FY28*CustomRegion1!$C30","v":1591.9041418177642},{"$f":"FZ28*CustomRegion1!$C30","v":4476.7695697685958},{"$f":"FL28*CustomRegion1!D30","v":0},{"$f":"FY28*CustomRegion1!$D30","v":599.68298057586321},{"$f":"FZ28*CustomRegion1!$D30","v":1686.4347848763152},{"$f":"(GD28*'Default-Data'!$C$58/pv_dollar_index)/CustomRegion1!$E30","v":0},{"$f":"(GE28*'Default-Data'!$C$58/pv_dollar_index)/CustomRegion1!$E30","v":0.20200786807121032},{"$f":"(GF28*'Default-Data'!$C$58/pv_dollar_index)/CustomRegion1!$E30","v":0.5680886511183848},null,"C45 Construction",0,0,null,249812.396135366,150002.20711794385,{"$f":"GL28*CustomRegion2!$C$13","v":0},{"$f":"GO28*CustomRegion2!C$13","v":153929.76696653652},{"$f":"GP28*CustomRegion2!D$13","v":16598.7417517467},{"$f":"GL28*CustomRegion2!D34","v":0},{"$f":"GO28*CustomRegion2!$D34","v":50234.603841593183},{"$f":"GP28*CustomRegion2!$D34","v":30163.84121247274},{"$f":"(GT28*'Default-Data'!$C$59/pv_dollar_index)/CustomRegion2!$E34","v":0},{"$f":"(GU28*'Default-Data'!$C$59/pv_dollar_index)/CustomRegion2!$E34","v":18.447454513432493},{"$f":"(GV28*'Default-Data'!$C$59/pv_dollar_index)/CustomRegion2!$E34","v":11.076947883816411},2055.2272264710818,1285.7381356652263,{"$f":"GM28*CustomRegion2!C34","v":0},{"$f":"GZ28*CustomRegion2!$C34","v":1001.4969142377662},{"$f":"HA28*CustomRegion2!$C34","v":626.53061364777545},{"$f":"GM28*CustomRegion2!D34","v":0},{"$f":"GZ28*CustomRegion2!$D34","v":413.28423698512734},{"$f":"HA28*CustomRegion2!$D34","v":258.54820212433572},{"$f":"(HE28*'Default-Data'!$C$59/pv_dollar_index)/CustomRegion2!$E34","v":0},{"$f":"(HF28*'Default-Data'!$C$59/pv_dollar_index)/CustomRegion2!$E34","v":0.15176873270351635},{"$f":"(HG28*'Default-Data'!$C$59/pv_dollar_index)/CustomRegion2!$E34","v":9.4945631765276164E-2},null,"CONSTR",71888874.404725581,675746.53700843919,null,87552362.738660812,476498.03965646029,{"$f":"HM28*CustomRegion3!D33","v":4361198.3581864759},{"$f":"HP28*CustomRegion3!$D33","v":5311436.9058210589},{"$f":"HQ28*CustomRegion3!$D33","v":28907.149895397804},{"$f":"HM28*CustomRegion3!E33","v":1918278.1464485},{"$f":"HP28*CustomRegion3!$E33","v":2336241.6716384818},{"$f":"HQ28*CustomRegion3!$E33","v":12714.843344917546},{"$f":"(HU28*'Default-Data'!$C$60/pv_dollar_index)/CustomRegion3!$F33","v":7226.4717165861857},{"$f":"(HV28*'Default-Data'!$C$60/pv_dollar_index)/CustomRegion3!$F33","v":8801.0095900129527},{"$f":"(HW28*'Default-Data'!$C$60/pv_dollar_index)/CustomRegion3!$F33","v":47.898922261604127},789795.68914379971,2774.6588571090251,{"$f":"HN28*CustomRegion3!D33","v":40994.725709012884},{"$f":"IA28*CustomRegion3!$D33","v":47913.612381866369},{"$f":"IB28*CustomRegion3!$D33","v":168.32698734473442},{"$f":"HN28*CustomRegion3!E33","v":18031.577559327201},{"$f":"IA28*CustomRegion3!$E33","v":21074.857871807111},{"$f":"IB28*CustomRegion3!$E33","v":74.03882024187233},{"$f":"(IF28*'Default-Data'!$C$60/pv_dollar_index)/CustomRegion3!$F33","v":67.927941252499949},{"$f":"(IG28*'Default-Data'!$C$60/pv_dollar_index)/CustomRegion3!$F33","v":79.392482588434959},{"$f":"(IH28*'Default-Data'!$C$60/pv_dollar_index)/CustomRegion3!$F33","v":0.27891650718008293}]
[null,114,"Mining and Extraction",0,0,0,37630280.059026539,11631762.913489759,0,32396937.159926813,10014102.780431002,0,2010615.1188962038,621494.13548328681,0,127.38562108185469,39.375719252887947,6204625.4500506567,993961.88096053898,0,3695441.1684355969,591998.28971582314,0,1252060.8140223031,200576.28487025457,0,79.326243460281773,12.707819802188313,null,28,"TTL_C60T63: Transport and storage",{"$f":"'Solar-PV-Inputs'!B25*'Solar-PV-Inputs'!C25","v":2.9802322387695313E-8},0,null,5811729.2340674568,3165381.7759938333,{"$f":"AF29*'Colombia-IO-Data'!AN35","v":1.3000265218422243E-8},{"$f":"AI29*'Colombia-IO-Data'!$AN35","v":2535172.2740818816},{"$f":"AJ29*'Colombia-IO-Data'!$AN35","v":1380791.8077710101},{"$f":"AK29*'Colombia-IO-Data'!$AO35","v":3.2881060746347122E-9},{"$f":"AL29*'Colombia-IO-Data'!$AO35","v":641211.17643366114},{"$f":"AM29*'Colombia-IO-Data'!$AO35","v":349238.25434760767},{"$f":"(AN29*'Default-Data'!$F$19/pv_dollar_index)/'Colombia-IO-Data'!$AP35","v":7.9392532123506327E-13},{"$f":"(AO29*'Default-Data'!$F$19/pv_dollar_index)/'Colombia-IO-Data'!$AP35","v":154.82280001753355},{"$f":"(AP29*'Default-Data'!$F$19/pv_dollar_index)/'Colombia-IO-Data'!$AP35","v":84.324862695100251},32466.422992094358,16145.6140115208,{"$f":"'Colombia-IO-Data'!$AN35*Calculations!AG29","v":0},{"$f":"'Colombia-IO-Data'!$AN35*Calculations!AT29","v":14162.389900357975},{"$f":"'Colombia-IO-Data'!$AN35*Calculations!AU29","v":7042.9834807339175},{"$f":"AV29*'Colombia-IO-Data'!$AO35","v":0},{"$f":"AW29*'Colombia-IO-Data'!$AO35","v":3582.0377107940221},{"$f":"AX29*'Colombia-IO-Data'!$AO35","v":1781.354178354499},{"$f":"(AY29*'Default-Data'!$F$19/pv_dollar_index)/'Colombia-IO-Data'!$AP35","v":0},{"$f":"(AZ29*'Default-Data'!$F$19/pv_dollar_index)/'Colombia-IO-Data'!$AP35","v":0.86489619728408262},{"$f":"(BA29*'Default-Data'!$F$19/pv_dollar_index)/'Colombia-IO-Data'!$AP35","v":0.43011452677682649},null,"DOM_C60T63: Transport and storage",2.9802322387695313E-8,0,null,3296676.6359149553,4808154.8574440749,{"$f":"BG29*'Mexico-IO-Data'!AQ35","v":2.1782371212027817E-8},{"$f":"BJ29*'Mexico-IO-Data'!$AQ35","v":2409524.778483944},{"$f":"BK29*'Mexico-IO-Data'!$AQ35","v":3514256.7947323248},{"$f":"BG29*'Mexico-IO-Data'!AR35","v":7.0272804059070042E-9},{"$f":"BJ29*'Mexico-IO-Data'!$AR35","v":777344.49103676446},{"$f":"BK29*'Mexico-IO-Data'!$AR35","v":1133745.6181681235},{"$f":"(Calculations!BO29*'Default-Data'!$F$19/pv_dollar_index)/'Mexico-IO-Data'!$AS35","v":1.0408051693541917E-12},{"$f":"(Calculations!BP29*'Default-Data'!$F$19/pv_dollar_index)/'Mexico-IO-Data'!$AS35","v":115.13190279983462},{"$f":"(Calculations!BQ29*'Default-Data'!$F$19/pv_dollar_index)/'Mexico-IO-Data'!$AS35","v":167.91820333939614},14944.144514348667,30026.518964558254,{"$f":"BH29*'Mexico-IO-Data'!AQ35","v":0},{"$f":"BU29*'Mexico-IO-Data'!$AQ35","v":10922.60190407614},{"$f":"BV29*'Mexico-IO-Data'!$AQ35","v":21946.235390066198},{"$f":"BH29*'Mexico-IO-Data'!AR35","v":0},{"$f":"BU29*'Mexico-IO-Data'!$AR35","v":3523.7755152962168},{"$f":"BV29*'Mexico-IO-Data'!$AR35","v":7080.1451521896915},{"$f":"(BZ29*'Default-Data'!$F$19/pv_dollar_index)/'Mexico-IO-Data'!$AS35","v":0},{"$f":"(CA29*'Default-Data'!$F$19/pv_dollar_index)/'Mexico-IO-Data'!$AS35","v":0.5219037180985614},{"$f":"(CB29*'Default-Data'!$F$19/pv_dollar_index)/'Mexico-IO-Data'!$AS35","v":1.0486349268178854},null,"TTL_C60T63: Transport and storage",{"$f":"'Solar-PV-Inputs'!B25*'Solar-PV-Inputs'!C25","v":2.9802322387695313E-8},0,null,708623.1206883007,1360837.3030588636,{"$f":"CH29*'Philippines-IO-Data'!AN35","v":1.3173342293795483E-8},{"$f":"'Philippines-IO-Data'!$AN35*Calculations!CK29","v":313228.43920307065},{"$f":"'Philippines-IO-Data'!$AN35*Calculations!CL29","v":601522.77282798139},{"$f":"CH29*'Philippines-IO-Data'!AO35","v":4.9022056160602923E-9},{"$f":"'Philippines-IO-Data'!$AO35*Calculations!CK29","v":116561.93086960955},{"$f":"'Philippines-IO-Data'!$AO35*Calculations!CL29","v":223845.11457918619},{"$f":"(CP29*'Default-Data'!$F$19/pv_dollar_index)/'Philippines-IO-Data'!$AP35","v":1.6513460235208015E-12},{"$f":"(CQ29*'Default-Data'!$F$19/pv_dollar_index)/'Philippines-IO-Data'!$AP35","v":39.264791424666541},{"$f":"(CR29*'Default-Data'!$F$19/pv_dollar_index)/'Philippines-IO-Data'!$AP35","v":75.403964826340143},4106.7611381364104,7971.1886727799947,{"$f":"CI29*'Philippines-IO-Data'!AN35","v":0},{"$f":"'Philippines-IO-Data'!$AN35*Calculations!CV29","v":1815.287060107255},{"$f":"'Philippines-IO-Data'!$AN35*Calculations!CW29","v":3523.45684705133},{"$f":"'Philippines-IO-Data'!AO35*Calculations!CI29","v":0},{"$f":"'Philippines-IO-Data'!$AO35*Calculations!CV29","v":675.52411698970752},{"$f":"'Philippines-IO-Data'!$AO35*Calculations!CW29","v":1311.1866038504443},{"$f":"(DA29*'Default-Data'!$F$19/pv_dollar_index)/'Philippines-IO-Data'!$AP35","v":0},{"$f":"(DB29*'Default-Data'!$F$19/pv_dollar_index)/'Philippines-IO-Data'!$AP35","v":0.22755554371867753},{"$f":"(DC29*'Default-Data'!$F$19/pv_dollar_index)/'Philippines-IO-Data'!$AP35","v":0.44168338783436811},null,"DOM_C60T63: Transport and storage",2.9802322387695313E-8,0,null,7914612.7758454569,5878272.7716215681,{"$f":"DI29*'SouthAfrica-IO-Data'!AR35","v":1.5759717546162112E-8},{"$f":"DL29*'SouthAfrica-IO-Data'!$AR35","v":4185313.4870478902},{"$f":"DM29*'SouthAfrica-IO-Data'!$AR35","v":3108479.8471376947},{"$f":"DI29*'SouthAfrica-IO-Data'!AS35","v":5.4899047194341569E-9},{"$f":"DL29*'SouthAfrica-IO-Data'!$AS35","v":1457955.8420100689},{"$f":"DM29*'SouthAfrica-IO-Data'!$AS35","v":1082840.3575813461},{"$f":"(DQ29*'Default-Data'!$F$19/pv_dollar_index)/'SouthAfrica-IO-Data'!$AT35","v":3.3309689120805675E-13},{"$f":"(DR29*'Default-Data'!$F$19/pv_dollar_index)/'SouthAfrica-IO-Data'!$AT35","v":88.460653383112572},{"$f":"(DS29*'Default-Data'!$F$19/pv_dollar_index)/'SouthAfrica-IO-Data'!$AT35","v":65.70073165534707},50664.828019361041,33307.905540853855,{"$f":"DJ29*'SouthAfrica-IO-Data'!AR35","v":0},{"$f":"DW29*'SouthAfrica-IO-Data'!$AR35","v":26791.985158837051},{"$f":"DX29*'SouthAfrica-IO-Data'!$AR35","v":17613.499261884146},{"$f":"DJ29*'SouthAfrica-IO-Data'!AS35","v":0},{"$f":"DW29*'SouthAfrica-IO-Data'!$AS35","v":9333.0001210794817},{"$f":"DX29*'SouthAfrica-IO-Data'!$AS35","v":6135.6704167020953},{"$f":"(EB29*'Default-Data'!$F$19/pv_dollar_index)/'SouthAfrica-IO-Data'!$AT35","v":0},{"$f":"(EC29*'Default-Data'!$F$19/pv_dollar_index)/'SouthAfrica-IO-Data'!$AT35","v":0.56627455026148721},{"$f":"(ED29*'Default-Data'!$F$19/pv_dollar_index)/'SouthAfrica-IO-Data'!$AT35","v":0.37227836287318328},null,"TRADETRANS",{"$f":"IF('Solar-PV-Inputs'!F13=\"Yes\",'Solar-PV-Inputs'!E13,0)+'Solar-PV-Inputs'!B25*'Solar-PV-Inputs'!C25","v":6556521.8278669529},0,null,19384934.781397101,1715399.0441743843,{"$f":"EJ29*'Zambia-IO-Data'!BO33","v":1482242.1697805091},{"$f":"EM29*'Zambia-IO-Data'!$BO33","v":4382379.6436256999},{"$f":"EN29*'Zambia-IO-Data'!$BO33","v":387802.68990634201},{"$f":"EJ29*'Zambia-IO-Data'!$BN33","v":545699.45462561259},{"$f":"EM29*'Zambia-IO-Data'!$BN33","v":1613408.5443292032},{"$f":"EN29*'Zambia-IO-Data'!$BN33","v":142772.69983188628},{"$f":"(ER29*'Default-Data'!$F$19/pv_dollar_index)/'Zambia-IO-Data'!$BP33","v":1471.3065070136781},{"$f":"(ES29*'Default-Data'!$F$19/pv_dollar_index)/'Zambia-IO-Data'!$BP33","v":4350.0473926103259},{"$f":"(ET29*'Default-Data'!$F$19/pv_dollar_index)/'Zambia-IO-Data'!$BP33","v":384.94156537261381},72253.858002789668,9997.9008218640811,{"$f":"EK29*'Zambia-IO-Data'!BO33","v":0},{"$f":"EX29*'Zambia-IO-Data'!$BO33","v":16334.531947392308},{"$f":"EY29*'Zambia-IO-Data'!$BO33","v":2260.2395899094181},{"$f":"EK29*'Zambia-IO-Data'!BN33","v":0},{"$f":"EX29*'Zambia-IO-Data'!$BN33","v":6013.6901762662574},{"$f":"EY29*'Zambia-IO-Data'!$BN33","v":832.12550329709745},{"$f":"(FC29*'Default-Data'!$F$19/pv_dollar_index)/'Zambia-IO-Data'!$BP33","v":0},{"$f":"(FD29*'Default-Data'!$F$19/pv_dollar_index)/'Zambia-IO-Data'!$BP33","v":16.214019296711783},{"$f":"(FE29*'Default-Data'!$F$19/pv_dollar_index)/'Zambia-IO-Data'!$BP33","v":2.2435640301180317},null,"TTL_C60T63: Transport and storage",2.9802322387695313E-8,0,null,1769049.9686814018,2448842.0546556478,{"$f":"FK29*CustomRegion1!C31","v":1.3173342293795483E-8},{"$f":"FN29*CustomRegion1!$C31","v":781962.57557062374},{"$f":"FO29*CustomRegion1!$C31","v":1082447.0049602392},{"$f":"FK29*CustomRegion1!D31","v":4.9022056160602923E-9},{"$f":"FN29*CustomRegion1!$D31","v":290992.31189921702},{"$f":"FO29*CustomRegion1!$D31","v":402811.80496638129},{"$f":"(FS29*'Default-Data'!$C$58/pv_dollar_index)/CustomRegion1!$E31","v":1.6513460235208015E-12},{"$f":"(FT29*'Default-Data'!$C$58/pv_dollar_index)/CustomRegion1!$E31","v":98.023019588492687},{"$f":"(FU29*'Default-Data'!$C$58/pv_dollar_index)/CustomRegion1!$E31","v":135.6902840181254},10550.978795760768,14420.594218232303,{"$f":"FL29*CustomRegion1!C31","v":0},{"$f":"FY29*CustomRegion1!$C31","v":4663.7860433494634},{"$f":"FZ29*CustomRegion1!$C31","v":6374.2490013172719},{"$f":"FL29*CustomRegion1!D31","v":0},{"$f":"FY29*CustomRegion1!$D31","v":1735.538151512204},{"$f":"FZ29*CustomRegion1!$D31","v":2372.0539978029483},{"$f":"(GD29*'Default-Data'!$C$58/pv_dollar_index)/CustomRegion1!$E31","v":0},{"$f":"(GE29*'Default-Data'!$C$58/pv_dollar_index)/CustomRegion1!$E31","v":0.58462950141850434},{"$f":"(GF29*'Default-Data'!$C$58/pv_dollar_index)/CustomRegion1!$E31","v":0.79904480628385421},null,"C50T52 Wholesale and retail trade; repairs",2.9802322387695313E-8,0,null,10582025.623827474,10805620.583584225,{"$f":"GL29*CustomRegion2!$C$13","v":1.8363638519017773E-8},{"$f":"GO29*CustomRegion2!C$13","v":6520447.9982131645},{"$f":"GP29*CustomRegion2!D$13","v":1195713.7763529434},{"$f":"GL29*CustomRegion2!D35","v":5.3251696391156564E-9},{"$f":"GO29*CustomRegion2!$D35","v":1890828.5347458704},{"$f":"GP29*CustomRegion2!$D35","v":1930781.162452748},{"$f":"(GT29*'Default-Data'!$C$59/pv_dollar_index)/CustomRegion2!$E35","v":1.1744658775561486E-12},{"$f":"(GU29*'Default-Data'!$C$59/pv_dollar_index)/CustomRegion2!$E35","v":417.02213166251471},{"$f":"(GV29*'Default-Data'!$C$59/pv_dollar_index)/CustomRegion2!$E35","v":425.83368155489052},88782.575735427687,92619.960271113974,{"$f":"GM29*CustomRegion2!C35","v":0},{"$f":"GZ29*CustomRegion2!$C35","v":65136.449673066367},{"$f":"HA29*CustomRegion2!$C35","v":67951.794943401794},{"$f":"GM29*CustomRegion2!D35","v":0},{"$f":"GZ29*CustomRegion2!$D35","v":15863.940757314494},{"$f":"HA29*CustomRegion2!$D35","v":16549.61630156287},{"$f":"(HE29*'Default-Data'!$C$59/pv_dollar_index)/CustomRegion2!$E35","v":0},{"$f":"(HF29*'Default-Data'!$C$59/pv_dollar_index)/CustomRegion2!$E35","v":3.498791280972648},{"$f":"(HG29*'Default-Data'!$C$59/pv_dollar_index)/CustomRegion2!$E35","v":3.6500169853857365},null,"TRADETRANS",6556521.8278669529,0,null,19384934.781397101,1715399.0441743843,{"$f":"HM29*CustomRegion3!D34","v":1482242.1697805091},{"$f":"HP29*CustomRegion3!$D34","v":4382379.6436256999},{"$f":"HQ29*CustomRegion3!$D34","v":387802.68990634201},{"$f":"HM29*CustomRegion3!E34","v":545699.45462561259},{"$f":"HP29*CustomRegion3!$E34","v":1613408.5443292032},{"$f":"HQ29*CustomRegion3!$E34","v":142772.69983188628},{"$f":"(HU29*'Default-Data'!$C$60/pv_dollar_index)/CustomRegion3!$F34","v":1471.3065070136781},{"$f":"(HV29*'Default-Data'!$C$60/pv_dollar_index)/CustomRegion3!$F34","v":4350.0473926103259},{"$f":"(HW29*'Default-Data'!$C$60/pv_dollar_index)/CustomRegion3!$F34","v":384.94156537261381},72253.858002789668,9997.9008218640811,{"$f":"HN29*CustomRegion3!D34","v":0},{"$f":"IA29*CustomRegion3!$D34","v":16334.531947392308},{"$f":"IB29*CustomRegion3!$D34","v":2260.2395899094181},{"$f":"HN29*CustomRegion3!E34","v":0},{"$f":"IA29*CustomRegion3!$E34","v":6013.6901762662574},{"$f":"IB29*CustomRegion3!$E34","v":832.12550329709745},{"$f":"(IF29*'Default-Data'!$C$60/pv_dollar_index)/CustomRegion3!$F34","v":0},{"$f":"(IG29*'Default-Data'!$C$60/pv_dollar_index)/CustomRegion3!$F34","v":16.214019296711783},{"$f":"(IH29*'Default-Data'!$C$60/pv_dollar_index)/CustomRegion3!$F34","v":2.2435640301180317}]
[null,115,"Utilities",0,39981727.832085572,0,19256275.3915831,18612039.738493755,0,8613866.1987170316,8325681.7184213083,0,2080548.1442773326,2010941.5736786278,0,75.442502980947594,72.918507598129708,6391663.1962759346,1590443.1825661361,21739127.95546253,3475317.1412606044,864766.22513426666,7103609.3926285654,1135615.7219185301,282576.26027488115,257.58311541741074,41.178423446580688,10.246463373976635,null,29,"TTL_C64: Post and telecommunications",0,0,null,1126911.7473199333,1916041.7964624132,{"$f":"AF30*'Colombia-IO-Data'!AN36","v":0},{"$f":"AI30*'Colombia-IO-Data'!$AN36","v":616116.68091660819},{"$f":"AJ30*'Colombia-IO-Data'!$AN36","v":1047557.9076546521},{"$f":"AK30*'Colombia-IO-Data'!$AO36","v":0},{"$f":"AL30*'Colombia-IO-Data'!$AO36","v":149551.40865594271},{"$f":"AM30*'Colombia-IO-Data'!$AO36","v":254276.12267428567},{"$f":"(AN30*'Default-Data'!$F$19/pv_dollar_index)/'Colombia-IO-Data'!$AP36","v":0},{"$f":"(AO30*'Default-Data'!$F$19/pv_dollar_index)/'Colombia-IO-Data'!$AP36","v":36.109738391428259},{"$f":"(AP30*'Default-Data'!$F$19/pv_dollar_index)/'Colombia-IO-Data'!$AP36","v":61.395906273801032},3884.0444923707514,9773.1248439724659,{"$f":"'Colombia-IO-Data'!$AN36*Calculations!AG30","v":0},{"$f":"'Colombia-IO-Data'!$AN36*Calculations!AT30","v":2123.5244080675234},{"$f":"'Colombia-IO-Data'!$AN36*Calculations!AU30","v":5343.2624652039167},{"$f":"AV30*'Colombia-IO-Data'!$AO36","v":0},{"$f":"AW30*'Colombia-IO-Data'!$AO36","v":515.44792793032525},{"$f":"AX30*'Colombia-IO-Data'!$AO36","v":1296.982297737575},{"$f":"(AY30*'Default-Data'!$F$19/pv_dollar_index)/'Colombia-IO-Data'!$AP36","v":0},{"$f":"(AZ30*'Default-Data'!$F$19/pv_dollar_index)/'Colombia-IO-Data'!$AP36","v":0.12445680050254879},{"$f":"(BA30*'Default-Data'!$F$19/pv_dollar_index)/'Colombia-IO-Data'!$AP36","v":0.31316115234569758},null,"DOM_C64: Post and telecommunications",0,0,null,1435896.0431840841,1874025.9451929431,{"$f":"BG30*'Mexico-IO-Data'!AQ36","v":0},{"$f":"BJ30*'Mexico-IO-Data'!$AQ36","v":876098.81919760874},{"$f":"BK30*'Mexico-IO-Data'!$AQ36","v":1143419.7660218321},{"$f":"BG30*'Mexico-IO-Data'!AR36","v":0},{"$f":"BJ30*'Mexico-IO-Data'!$AR36","v":223963.79854730432},{"$f":"BK30*'Mexico-IO-Data'!$AR36","v":292301.08353171765},{"$f":"(Calculations!BO30*'Default-Data'!$F$19/pv_dollar_index)/'Mexico-IO-Data'!$AS36","v":0},{"$f":"(Calculations!BP30*'Default-Data'!$F$19/pv_dollar_index)/'Mexico-IO-Data'!$AS36","v":19.575953539828536},{"$f":"(Calculations!BQ30*'Default-Data'!$F$19/pv_dollar_index)/'Mexico-IO-Data'!$AS36","v":25.549095291174314},9677.532586648389,11703.132958850338,{"$f":"BH30*'Mexico-IO-Data'!AQ36","v":0},{"$f":"BU30*'Mexico-IO-Data'!$AQ36","v":5904.6578700141181},{"$f":"BV30*'Mexico-IO-Data'!$AQ36","v":7140.5593843863908},{"$f":"BH30*'Mexico-IO-Data'!AR36","v":0},{"$f":"BU30*'Mexico-IO-Data'!$AR36","v":1509.452560273701},{"$f":"BV30*'Mexico-IO-Data'!$AR36","v":1825.3954558966968},{"$f":"(BZ30*'Default-Data'!$F$19/pv_dollar_index)/'Mexico-IO-Data'!$AS36","v":0},{"$f":"(CA30*'Default-Data'!$F$19/pv_dollar_index)/'Mexico-IO-Data'!$AS36","v":0.13193638160344046},{"$f":"(CB30*'Default-Data'!$F$19/pv_dollar_index)/'Mexico-IO-Data'!$AS36","v":0.15955193146494331},null,"TTL_C64: Post and telecommunications",0,0,null,489461.37356575875,1204729.6807007683,{"$f":"CH30*'Philippines-IO-Data'!AN36","v":0},{"$f":"'Philippines-IO-Data'!$AN36*Calculations!CK30","v":296465.69573449512},{"$f":"'Philippines-IO-Data'!$AN36*Calculations!CL30","v":729702.16292862408},{"$f":"CH30*'Philippines-IO-Data'!AO36","v":0},{"$f":"'Philippines-IO-Data'!$AO36*Calculations!CK30","v":52570.176201182854},{"$f":"'Philippines-IO-Data'!$AO36*Calculations!CL30","v":129392.95112880941},{"$f":"(CP30*'Default-Data'!$F$19/pv_dollar_index)/'Philippines-IO-Data'!$AP36","v":0},{"$f":"(CQ30*'Default-Data'!$F$19/pv_dollar_index)/'Philippines-IO-Data'!$AP36","v":14.415872552825027},{"$f":"(CR30*'Default-Data'!$F$19/pv_dollar_index)/'Philippines-IO-Data'!$AP36","v":35.48232909793564},2148.0699317611447,7056.7786192942385,{"$f":"CI30*'Philippines-IO-Data'!AN36","v":0},{"$f":"'Philippines-IO-Data'!$AN36*Calculations!CV30","v":1301.0813134580471},{"$f":"'Philippines-IO-Data'!$AN36*Calculations!CW30","v":4274.2755526801657},{"$f":"'Philippines-IO-Data'!AO36*Calculations!CI30","v":0},{"$f":"'Philippines-IO-Data'!$AO36*Calculations!CV30","v":230.71159626444944},{"$f":"'Philippines-IO-Data'!$AO36*Calculations!CW30","v":757.9272144121453},{"$f":"(DA30*'Default-Data'!$F$19/pv_dollar_index)/'Philippines-IO-Data'!$AP36","v":0},{"$f":"(DB30*'Default-Data'!$F$19/pv_dollar_index)/'Philippines-IO-Data'!$AP36","v":6.3266079905821046E-2},{"$f":"(DC30*'Default-Data'!$F$19/pv_dollar_index)/'Philippines-IO-Data'!$AP36","v":0.2078399373338477},null,"DOM_C64: Post and telecommunications",0,0,null,4174551.8303536284,3348224.390014838,{"$f":"DI30*'SouthAfrica-IO-Data'!AR36","v":0},{"$f":"DL30*'SouthAfrica-IO-Data'!$AR36","v":1695206.7026911986},{"$f":"DM30*'SouthAfrica-IO-Data'!$AR36","v":1359650.7262880222},{"$f":"DI30*'SouthAfrica-IO-Data'!AS36","v":0},{"$f":"DL30*'SouthAfrica-IO-Data'!$AS36","v":554746.89251616236},{"$f":"DM30*'SouthAfrica-IO-Data'!$AS36","v":444938.07989209035},{"$f":"(DQ30*'Default-Data'!$F$19/pv_dollar_index)/'SouthAfrica-IO-Data'!$AT36","v":0},{"$f":"(DR30*'Default-Data'!$F$19/pv_dollar_index)/'SouthAfrica-IO-Data'!$AT36","v":33.658956712004539},{"$f":"(DS30*'Default-Data'!$F$19/pv_dollar_index)/'SouthAfrica-IO-Data'!$AT36","v":26.99636856491983},28755.466131691079,18971.957587710407,{"$f":"DJ30*'SouthAfrica-IO-Data'!AR36","v":0},{"$f":"DW30*'SouthAfrica-IO-Data'!$AR36","v":11677.052030115323},{"$f":"DX30*'SouthAfrica-IO-Data'!$AR36","v":7704.1538763540557},{"$f":"DJ30*'SouthAfrica-IO-Data'!AS36","v":0},{"$f":"DW30*'SouthAfrica-IO-Data'!$AS36","v":3821.2498317593231},{"$f":"DX30*'SouthAfrica-IO-Data'!$AS36","v":2521.1411774085527},{"$f":"(EB30*'Default-Data'!$F$19/pv_dollar_index)/'SouthAfrica-IO-Data'!$AT36","v":0},{"$f":"(EC30*'Default-Data'!$F$19/pv_dollar_index)/'SouthAfrica-IO-Data'!$AT36","v":0.2318521913472357},{"$f":"(ED30*'Default-Data'!$F$19/pv_dollar_index)/'SouthAfrica-IO-Data'!$AT36","v":0.15296882758613073},null,"TOURISM",0,0,null,81942.087390735338,5751.5717303268029,{"$f":"EJ30*'Zambia-IO-Data'!BO34","v":0},{"$f":"EM30*'Zambia-IO-Data'!$BO34","v":35815.163996204341},{"$f":"EN30*'Zambia-IO-Data'!$BO34","v":2513.8911067193235},{"$f":"EJ30*'Zambia-IO-Data'!$BN34","v":0},{"$f":"EM30*'Zambia-IO-Data'!$BN34","v":25100.67812785467},{"$f":"EN30*'Zambia-IO-Data'!$BN34","v":1761.8339406438406},{"$f":"(ER30*'Default-Data'!$F$19/pv_dollar_index)/'Zambia-IO-Data'!$BP34","v":0},{"$f":"(ES30*'Default-Data'!$F$19/pv_dollar_index)/'Zambia-IO-Data'!$BP34","v":78.828717888894133},{"$f":"(ET30*'Default-Data'!$F$19/pv_dollar_index)/'Zambia-IO-Data'!$BP34","v":5.5330421738674422},243.4419076969466,33.519325533310564,{"$f":"EK30*'Zambia-IO-Data'!BO34","v":0},{"$f":"EX30*'Zambia-IO-Data'!$BO34","v":106.40334076601486},{"$f":"EY30*'Zambia-IO-Data'!$BO34","v":14.650592622728452},{"$f":"EK30*'Zambia-IO-Data'!BN34","v":0},{"$f":"EX30*'Zambia-IO-Data'!$BN34","v":74.57165374362728},{"$f":"EY30*'Zambia-IO-Data'!$BN34","v":10.267712576840408},{"$f":"(FC30*'Default-Data'!$F$19/pv_dollar_index)/'Zambia-IO-Data'!$BP34","v":0},{"$f":"(FD30*'Default-Data'!$F$19/pv_dollar_index)/'Zambia-IO-Data'!$BP34","v":0.23419239215459042},{"$f":"(FE30*'Default-Data'!$F$19/pv_dollar_index)/'Zambia-IO-Data'!$BP34","v":3.2245766985307366E-2},null,"TTL_C64: Post and telecommunications",0,0,null,705610.32953752624,1571680.5448116576,{"$f":"FK30*CustomRegion1!C32","v":0},{"$f":"FN30*CustomRegion1!$C32","v":427386.65104425175},{"$f":"FO30*CustomRegion1!$C32","v":951963.50795873068},{"$f":"FK30*CustomRegion1!D32","v":0},{"$f":"FN30*CustomRegion1!$D32","v":75785.468182973782},{"$f":"FO30*CustomRegion1!$D32","v":168804.99184399788},{"$f":"(FS30*'Default-Data'!$C$58/pv_dollar_index)/CustomRegion1!$E32","v":0},{"$f":"(FT30*'Default-Data'!$C$58/pv_dollar_index)/CustomRegion1!$E32","v":20.78200473403291},{"$f":"(FU30*'Default-Data'!$C$58/pv_dollar_index)/CustomRegion1!$E32","v":46.289958005675992},3405.4870453108929,9255.2181282292768,{"$f":"FL30*CustomRegion1!C32","v":0},{"$f":"FY30*CustomRegion1!$C32","v":2062.6961405510451},{"$f":"FZ30*CustomRegion1!$C32","v":5605.86561013148},{"$f":"FL30*CustomRegion1!D32","v":0},{"$f":"FY30*CustomRegion1!$D32","v":365.76339562530785},{"$f":"FZ30*CustomRegion1!$D32","v":994.04871162121935},{"$f":"(GD30*'Default-Data'!$C$58/pv_dollar_index)/CustomRegion1!$E32","v":0},{"$f":"(GE30*'Default-Data'!$C$58/pv_dollar_index)/CustomRegion1!$E32","v":0.10030018685203336},{"$f":"(GF30*'Default-Data'!$C$58/pv_dollar_index)/CustomRegion1!$E32","v":0.27258952838946326},null,"C55 Hotels and restaurants",0,0,null,826182.14239606669,2684644.6188469618,{"$f":"GL30*CustomRegion2!$C$13","v":0},{"$f":"GO30*CustomRegion2!C$13","v":509078.1186936319},{"$f":"GP30*CustomRegion2!D$13","v":297073.78031057335},{"$f":"GL30*CustomRegion2!D36","v":0},{"$f":"GO30*CustomRegion2!$D36","v":164158.0783647658},{"$f":"GP30*CustomRegion2!$D36","v":533424.8697800521},{"$f":"(GT30*'Default-Data'!$C$59/pv_dollar_index)/CustomRegion2!$E36","v":0},{"$f":"(GU30*'Default-Data'!$C$59/pv_dollar_index)/CustomRegion2!$E36","v":123.51374922843846},{"$f":"(GV30*'Default-Data'!$C$59/pv_dollar_index)/CustomRegion2!$E36","v":401.35280733383104},7269.6285169877601,23011.327856302334,{"$f":"GM30*CustomRegion2!C36","v":0},{"$f":"GZ30*CustomRegion2!$C36","v":5227.8549358430328},{"$f":"HA30*CustomRegion2!$C36","v":16548.284913424963},{"$f":"GM30*CustomRegion2!D36","v":0},{"$f":"GZ30*CustomRegion2!$D36","v":1444.4372330699921},{"$f":"HA30*CustomRegion2!$D36","v":4572.2307075735462},{"$f":"(HE30*'Default-Data'!$C$59/pv_dollar_index)/CustomRegion2!$E36","v":0},{"$f":"(HF30*'Default-Data'!$C$59/pv_dollar_index)/CustomRegion2!$E36","v":1.0868052304145344},{"$f":"(HG30*'Default-Data'!$C$59/pv_dollar_index)/CustomRegion2!$E36","v":3.4401801157476064},null,"TOURISM",0,0,null,81942.087390735338,5751.5717303268029,{"$f":"HM30*CustomRegion3!D35","v":0},{"$f":"HP30*CustomRegion3!$D35","v":35815.163996204341},{"$f":"HQ30*CustomRegion3!$D35","v":2513.8911067193235},{"$f":"HM30*CustomRegion3!E35","v":0},{"$f":"HP30*CustomRegion3!$E35","v":25100.67812785467},{"$f":"HQ30*CustomRegion3!$E35","v":1761.8339406438406},{"$f":"(HU30*'Default-Data'!$C$60/pv_dollar_index)/CustomRegion3!$F35","v":0},{"$f":"(HV30*'Default-Data'!$C$60/pv_dollar_index)/CustomRegion3!$F35","v":78.828717888894133},{"$f":"(HW30*'Default-Data'!$C$60/pv_dollar_index)/CustomRegion3!$F35","v":5.5330421738674422},243.4419076969466,33.519325533310564,{"$f":"HN30*CustomRegion3!D35","v":0},{"$f":"IA30*CustomRegion3!$D35","v":106.40334076601486},{"$f":"IB30*CustomRegion3!$D35","v":14.650592622728452},{"$f":"HN30*CustomRegion3!E35","v":0},{"$f":"IA30*CustomRegion3!$E35","v":74.57165374362728},{"$f":"IB30*CustomRegion3!$E35","v":10.267712576840408},{"$f":"(IF30*'Default-Data'!$C$60/pv_dollar_index)/CustomRegion3!$F35","v":0},{"$f":"(IG30*'Default-Data'!$C$60/pv_dollar_index)/CustomRegion3!$F35","v":0.23419239215459042},{"$f":"(IH30*'Default-Data'!$C$60/pv_dollar_index)/CustomRegion3!$F35","v":3.2245766985307366E-2}]
[null,116,"Construction",221281472.18588102,0,0,25276657.841860473,6346520.5199854672,65886702.49901484,12712706.493705878,3191935.1494817063,29715512.577927757,5591256.0582520422,1403865.239154489,2802.0423795846132,527.23089966042198,132.37832882810352,508810.5354781347,542325.31392842159,0,151498.66840750031,161477.71552455644,0,68327.301501690672,72827.944102935551,0,6.4429645623075444,6.8673554009639615,null,30,"TTL_C65T67: Financial intermediation",0,0,null,4668264.8318062676,2852685.8586821603,{"$f":"AF31*'Colombia-IO-Data'!AN37","v":0},{"$f":"AI31*'Colombia-IO-Data'!$AN37","v":3110372.6205369839},{"$f":"AJ31*'Colombia-IO-Data'!$AN37","v":1900688.2234667211},{"$f":"AK31*'Colombia-IO-Data'!$AO37","v":0},{"$f":"AL31*'Colombia-IO-Data'!$AO37","v":1107299.1147643025},{"$f":"AM31*'Colombia-IO-Data'!$AO37","v":676648.95626694569},{"$f":"(AN31*'Default-Data'!$F$19/pv_dollar_index)/'Colombia-IO-Data'!$AP37","v":0},{"$f":"(AO31*'Default-Data'!$F$19/pv_dollar_index)/'Colombia-IO-Data'!$AP37","v":167.96650850549202},{"$f":"(AP31*'Default-Data'!$F$19/pv_dollar_index)/'Colombia-IO-Data'!$AP37","v":102.6410670365581},20666.672672745979,14550.650768166826,{"$f":"'Colombia-IO-Data'!$AN37*Calculations!AG31","v":0},{"$f":"'Colombia-IO-Data'!$AN37*Calculations!AT31","v":13769.795663892755},{"$f":"'Colombia-IO-Data'!$AN37*Calculations!AU31","v":9694.8111109604943},{"$f":"AV31*'Colombia-IO-Data'!$AO37","v":0},{"$f":"AW31*'Colombia-IO-Data'!$AO37","v":4902.075863335449},{"$f":"AX31*'Colombia-IO-Data'!$AO37","v":3451.372896640386},{"$f":"(AY31*'Default-Data'!$F$19/pv_dollar_index)/'Colombia-IO-Data'!$AP37","v":0},{"$f":"(AZ31*'Default-Data'!$F$19/pv_dollar_index)/'Colombia-IO-Data'!$AP37","v":0.74359724144524819},{"$f":"(BA31*'Default-Data'!$F$19/pv_dollar_index)/'Colombia-IO-Data'!$AP37","v":0.52353970780746883},null,"DOM_C65T67: Financial intermediation",0,0,null,4027228.7022579429,2924790.1106996951,{"$f":"BG31*'Mexico-IO-Data'!AQ37","v":0},{"$f":"BJ31*'Mexico-IO-Data'!$AQ37","v":2737681.3306744732},{"$f":"BK31*'Mexico-IO-Data'!$AQ37","v":1988251.4439059601},{"$f":"BG31*'Mexico-IO-Data'!AR37","v":0},{"$f":"BJ31*'Mexico-IO-Data'!$AR37","v":743516.94758408458},{"$f":"BK31*'Mexico-IO-Data'!$AR37","v":539982.00157152873},{"$f":"(Calculations!BO31*'Default-Data'!$F$19/pv_dollar_index)/'Mexico-IO-Data'!$AS37","v":0},{"$f":"(Calculations!BP31*'Default-Data'!$F$19/pv_dollar_index)/'Mexico-IO-Data'!$AS37","v":60.878479944318883},{"$f":"(Calculations!BQ31*'Default-Data'!$F$19/pv_dollar_index)/'Mexico-IO-Data'!$AS37","v":44.213226826612214},29080.639391668417,18265.065982704429,{"$f":"BH31*'Mexico-IO-Data'!AQ37","v":0},{"$f":"BU31*'Mexico-IO-Data'!$AQ37","v":19768.81111867584},{"$f":"BV31*'Mexico-IO-Data'!$AQ37","v":12416.461502757878},{"$f":"BH31*'Mexico-IO-Data'!AR37","v":0},{"$f":"BU31*'Mexico-IO-Data'!$AR37","v":5368.9397431449652},{"$f":"BV31*'Mexico-IO-Data'!$AR37","v":3372.1417656931658},{"$f":"(BZ31*'Default-Data'!$F$19/pv_dollar_index)/'Mexico-IO-Data'!$AS37","v":0},{"$f":"(CA31*'Default-Data'!$F$19/pv_dollar_index)/'Mexico-IO-Data'!$AS37","v":0.439603820111099},{"$f":"(CB31*'Default-Data'!$F$19/pv_dollar_index)/'Mexico-IO-Data'!$AS37","v":0.27610784867675803},null,"TTL_C65T67: Financial intermediation",0,0,null,2721431.4308963958,3796472.8392442726,{"$f":"CH31*'Philippines-IO-Data'!AN37","v":0},{"$f":"'Philippines-IO-Data'!$AN37*Calculations!CK31","v":1735713.104831306},{"$f":"'Philippines-IO-Data'!$AN37*Calculations!CL31","v":2421368.2492238637},{"$f":"CH31*'Philippines-IO-Data'!AO37","v":0},{"$f":"'Philippines-IO-Data'!$AO37*Calculations!CK31","v":380271.93455373839},{"$f":"'Philippines-IO-Data'!$AO37*Calculations!CL31","v":530489.9674009477},{"$f":"(CP31*'Default-Data'!$F$19/pv_dollar_index)/'Philippines-IO-Data'!$AP37","v":0},{"$f":"(CQ31*'Default-Data'!$F$19/pv_dollar_index)/'Philippines-IO-Data'!$AP37","v":104.27874015418587},{"$f":"(CR31*'Default-Data'!$F$19/pv_dollar_index)/'Philippines-IO-Data'!$AP37","v":145.47175439051114},14603.26740825687,22238.074474206151,{"$f":"CI31*'Philippines-IO-Data'!AN37","v":0},{"$f":"'Philippines-IO-Data'!$AN37*Calculations!CV31","v":9313.8788382106795},{"$f":"'Philippines-IO-Data'!$AN37*Calculations!CW31","v":14183.314285592825},{"$f":"'Philippines-IO-Data'!AO37*Calculations!CI31","v":0},{"$f":"'Philippines-IO-Data'!$AO37*Calculations!CV31","v":2040.5484720642983},{"$f":"'Philippines-IO-Data'!$AO37*Calculations!CW31","v":3107.3777957620787},{"$f":"(DA31*'Default-Data'!$F$19/pv_dollar_index)/'Philippines-IO-Data'!$AP37","v":0},{"$f":"(DB31*'Default-Data'!$F$19/pv_dollar_index)/'Philippines-IO-Data'!$AP37","v":0.55956226204314841},{"$f":"(DC31*'Default-Data'!$F$19/pv_dollar_index)/'Philippines-IO-Data'!$AP37","v":0.85210979901902184},null,"DOM_C65T67: Financial intermediation",0,0,null,8809451.8918928728,9510453.3171142153,{"$f":"DI31*'SouthAfrica-IO-Data'!AR37","v":0},{"$f":"DL31*'SouthAfrica-IO-Data'!$AR37","v":5126424.3915059939},{"$f":"DM31*'SouthAfrica-IO-Data'!$AR37","v":5534353.3806003425},{"$f":"DI31*'SouthAfrica-IO-Data'!AS37","v":0},{"$f":"DL31*'SouthAfrica-IO-Data'!$AS37","v":2575573.7059166743},{"$f":"DM31*'SouthAfrica-IO-Data'!$AS37","v":2780521.8526080418},{"$f":"(DQ31*'Default-Data'!$F$19/pv_dollar_index)/'SouthAfrica-IO-Data'!$AT37","v":0},{"$f":"(DR31*'Default-Data'!$F$19/pv_dollar_index)/'SouthAfrica-IO-Data'!$AT37","v":173.28083638402305},{"$f":"(DS31*'Default-Data'!$F$19/pv_dollar_index)/'SouthAfrica-IO-Data'!$AT37","v":187.06944829307182},47808.991091898861,53888.836575672598,{"$f":"DJ31*'SouthAfrica-IO-Data'!AR37","v":0},{"$f":"DW31*'SouthAfrica-IO-Data'!$AR37","v":27821.160847969757},{"$f":"DX31*'SouthAfrica-IO-Data'!$AR37","v":31359.163957253808},{"$f":"DJ31*'SouthAfrica-IO-Data'!AS37","v":0},{"$f":"DW31*'SouthAfrica-IO-Data'!$AS37","v":13977.666473894698},{"$f":"DX31*'SouthAfrica-IO-Data'!$AS37","v":15755.199327948259},{"$f":"(EB31*'Default-Data'!$F$19/pv_dollar_index)/'SouthAfrica-IO-Data'!$AT37","v":0},{"$f":"(EC31*'Default-Data'!$F$19/pv_dollar_index)/'SouthAfrica-IO-Data'!$AT37","v":0.94039698096364643},{"$f":"(ED31*'Default-Data'!$F$19/pv_dollar_index)/'SouthAfrica-IO-Data'!$AT37","v":1.0599867946594868},null,"OTHER",{"$f":"'Solar-PV-Inputs'!B22*'Solar-PV-Inputs'!C22","v":554698.10497473436},0,null,2454810.5321404738,371265.82813217514,{"$f":"EJ31*'Zambia-IO-Data'!BO35","v":203014.80142398662},{"$f":"EM31*'Zambia-IO-Data'!$BO35","v":898439.83285053563},{"$f":"EN31*'Zambia-IO-Data'!$BO35","v":135880.1439878699},{"$f":"EJ31*'Zambia-IO-Data'!$BN35","v":162437.16870653248},{"$f":"EM31*'Zambia-IO-Data'!$BN35","v":718863.95315887639},{"$f":"EN31*'Zambia-IO-Data'!$BN35","v":108721.06722272566},{"$f":"(ER31*'Default-Data'!$F$19/pv_dollar_index)/'Zambia-IO-Data'!$BP35","v":410.39983810867864},{"$f":"(ES31*'Default-Data'!$F$19/pv_dollar_index)/'Zambia-IO-Data'!$BP35","v":1816.2200951160953},{"$f":"(ET31*'Default-Data'!$F$19/pv_dollar_index)/'Zambia-IO-Data'!$BP35","v":274.68533675208664},7766.6485975577825,2153.9104195552436,{"$f":"EK31*'Zambia-IO-Data'!BO35","v":0},{"$f":"EX31*'Zambia-IO-Data'!$BO35","v":2842.5275093285122},{"$f":"EY31*'Zambia-IO-Data'!$BO35","v":788.31294390483038},{"$f":"EK31*'Zambia-IO-Data'!BN35","v":0},{"$f":"EX31*'Zambia-IO-Data'!$BN35","v":2274.3766333640369},{"$f":"EY31*'Zambia-IO-Data'!$BN35","v":630.74870287503427},{"$f":"(FC31*'Default-Data'!$F$19/pv_dollar_index)/'Zambia-IO-Data'!$BP35","v":0},{"$f":"(FD31*'Default-Data'!$F$19/pv_dollar_index)/'Zambia-IO-Data'!$BP35","v":5.7462452070751038},{"$f":"(FE31*'Default-Data'!$F$19/pv_dollar_index)/'Zambia-IO-Data'!$BP35","v":1.5935956506040909},null,"TTL_C65T67: Financial intermediation",0,0,null,4003852.9010043587,5281178.2439139001,{"$f":"FK31*CustomRegion1!C33","v":0},{"$f":"FN31*CustomRegion1!$C33","v":2553634.0439049904},{"$f":"FO31*CustomRegion1!$C33","v":3368304.7027541702},{"$f":"FK31*CustomRegion1!D33","v":0},{"$f":"FN31*CustomRegion1!$D33","v":559467.66508536309},{"$f":"FO31*CustomRegion1!$D33","v":737951.30192744092},{"$f":"(FS31*'Default-Data'!$C$58/pv_dollar_index)/CustomRegion1!$E33","v":0},{"$f":"(FT31*'Default-Data'!$C$58/pv_dollar_index)/CustomRegion1!$E33","v":153.41806210487309},{"$f":"(FU31*'Default-Data'!$C$58/pv_dollar_index)/CustomRegion1!$E33","v":202.36211265614753},22284.17436464964,31099.485695637552,{"$f":"FL31*CustomRegion1!C33","v":0},{"$f":"FY31*CustomRegion1!$C33","v":14212.716527025634},{"$f":"FZ31*CustomRegion1!$C33","v":19835.070714110101},{"$f":"FL31*CustomRegion1!D33","v":0},{"$f":"FY31*CustomRegion1!$D33","v":3113.8194405239628},{"$f":"FZ31*CustomRegion1!$D33","v":4345.6033669792023},{"$f":"(GD31*'Default-Data'!$C$58/pv_dollar_index)/CustomRegion1!$E33","v":0},{"$f":"(GE31*'Default-Data'!$C$58/pv_dollar_index)/CustomRegion1!$E33","v":0.85387623650560207},{"$f":"(GF31*'Default-Data'!$C$58/pv_dollar_index)/CustomRegion1!$E33","v":1.1916578720177458},null,"C60T63 Transport and storage",0,0,null,4223389.0871573947,6619847.0592190959,{"$f":"GL31*CustomRegion2!$C$13","v":0},{"$f":"GO31*CustomRegion2!C$13","v":2602374.0536993938},{"$f":"GP31*CustomRegion2!D$13","v":732530.09994473075},{"$f":"GL31*CustomRegion2!D37","v":0},{"$f":"GO31*CustomRegion2!$D37","v":889820.07832166436},{"$f":"GP31*CustomRegion2!$D37","v":1394726.5352897979},{"$f":"(GT31*'Default-Data'!$C$59/pv_dollar_index)/CustomRegion2!$E37","v":0},{"$f":"(GU31*'Default-Data'!$C$59/pv_dollar_index)/CustomRegion2!$E37","v":131.79057669790043},{"$f":"(GV31*'Default-Data'!$C$59/pv_dollar_index)/CustomRegion2!$E37","v":206.57188896928918},35482.748882952605,56741.763870293908,{"$f":"GM31*CustomRegion2!C37","v":0},{"$f":"GZ31*CustomRegion2!$C37","v":22015.01726324849},{"$f":"HA31*CustomRegion2!$C37","v":35205.020762972614},{"$f":"GM31*CustomRegion2!D37","v":0},{"$f":"GZ31*CustomRegion2!$D37","v":7475.8118985782612},{"$f":"HA31*CustomRegion2!$D37","v":11954.844729960036},{"$f":"(HE31*'Default-Data'!$C$59/pv_dollar_index)/CustomRegion2!$E37","v":0},{"$f":"(HF31*'Default-Data'!$C$59/pv_dollar_index)/CustomRegion2!$E37","v":1.1072368284349909},{"$f":"(HG31*'Default-Data'!$C$59/pv_dollar_index)/CustomRegion2!$E37","v":1.7706229828697377},null,"OTHER",554698.10497473436,0,null,2454810.5321404738,371265.82813217491,{"$f":"HM31*CustomRegion3!D36","v":203014.80142398662},{"$f":"HP31*CustomRegion3!$D36","v":898439.83285053563},{"$f":"HQ31*CustomRegion3!$D36","v":135880.14398786981},{"$f":"HM31*CustomRegion3!E36","v":162437.16870653248},{"$f":"HP31*CustomRegion3!$E36","v":718863.95315887639},{"$f":"HQ31*CustomRegion3!$E36","v":108721.06722272559},{"$f":"(HU31*'Default-Data'!$C$60/pv_dollar_index)/CustomRegion3!$F36","v":410.39983810867864},{"$f":"(HV31*'Default-Data'!$C$60/pv_dollar_index)/CustomRegion3!$F36","v":1816.2200951160953},{"$f":"(HW31*'Default-Data'!$C$60/pv_dollar_index)/CustomRegion3!$F36","v":274.68533675208641},7766.6485975577825,2153.9104195552436,{"$f":"HN31*CustomRegion3!D36","v":0},{"$f":"IA31*CustomRegion3!$D36","v":2842.5275093285122},{"$f":"IB31*CustomRegion3!$D36","v":788.31294390483038},{"$f":"HN31*CustomRegion3!E36","v":0},{"$f":"IA31*CustomRegion3!$E36","v":2274.3766333640369},{"$f":"IB31*CustomRegion3!$E36","v":630.74870287503427},{"$f":"(IF31*'Default-Data'!$C$60/pv_dollar_index)/CustomRegion3!$F36","v":0},{"$f":"(IG31*'Default-Data'!$C$60/pv_dollar_index)/CustomRegion3!$F36","v":5.7462452070751038},{"$f":"(IH31*'Default-Data'!$C$60/pv_dollar_index)/CustomRegion3!$F36","v":1.5935956506040909}]
[null,117,"Manufacturing",104318408.31620106,955000,0,134069596.31581181,126599690.17278451,27309271.201034456,50654360.737993754,43456814.565841712,23431891.87004707,14524935.93816882,11164348.64901806,1825.3917722471072,1131.5218890985957,869.72534183065659,9959094.002404185,10818245.446459999,221291.6191155492,2406642.342607033,2537978.8738190061,154080.59914407987,1490982.2286441214,1471788.5499938983,12.003190331380745,116.15053141367055,114.65530502386039,null,31,"TTL_C70: Real estate activities",0,0,null,1591604.3008882715,3858624.0642471197,{"$f":"AF32*'Colombia-IO-Data'!AN38","v":0},{"$f":"AI32*'Colombia-IO-Data'!$AN38","v":1411562.4492283708},{"$f":"AJ32*'Colombia-IO-Data'!$AN38","v":3422137.5449541118},{"$f":"AK32*'Colombia-IO-Data'!$AO38","v":0},{"$f":"AL32*'Colombia-IO-Data'!$AO38","v":46507.03039719347},{"$f":"AM32*'Colombia-IO-Data'!$AO38","v":112749.85029076043},{"$f":"(AN32*'Default-Data'!$F$19/pv_dollar_index)/'Colombia-IO-Data'!$AP38","v":0},{"$f":"(AO32*'Default-Data'!$F$19/pv_dollar_index)/'Colombia-IO-Data'!$AP38","v":10.547047398334827},{"$f":"(AP32*'Default-Data'!$F$19/pv_dollar_index)/'Colombia-IO-Data'!$AP38","v":25.569854815833789},6521.2859671465521,19681.624260738459,{"$f":"'Colombia-IO-Data'!$AN38*Calculations!AG32","v":0},{"$f":"'Colombia-IO-Data'!$AN38*Calculations!AT32","v":5783.5998475039214},{"$f":"'Colombia-IO-Data'!$AN38*Calculations!AU32","v":17455.24420283076},{"$f":"AV32*'Colombia-IO-Data'!$AO38","v":0},{"$f":"AW32*'Colombia-IO-Data'!$AO38","v":190.55342118239614},{"$f":"AX32*'Colombia-IO-Data'!$AO38","v":575.10142266482808},{"$f":"(AY32*'Default-Data'!$F$19/pv_dollar_index)/'Colombia-IO-Data'!$AP38","v":0},{"$f":"(AZ32*'Default-Data'!$F$19/pv_dollar_index)/'Colombia-IO-Data'!$AP38","v":4.3214454846097303E-2},{"$f":"(BA32*'Default-Data'!$F$19/pv_dollar_index)/'Colombia-IO-Data'!$AP38","v":0.13042376414688844},null,"DOM_C70: Real estate activities",0,0,null,1167334.5567956397,5226526.6028890144,{"$f":"BG32*'Mexico-IO-Data'!AQ38","v":0},{"$f":"BJ32*'Mexico-IO-Data'!$AQ38","v":1078833.77723983},{"$f":"BK32*'Mexico-IO-Data'!$AQ38","v":4830280.5772469994},{"$f":"BG32*'Mexico-IO-Data'!AR38","v":0},{"$f":"BJ32*'Mexico-IO-Data'!$AR38","v":15456.300007784401},{"$f":"BK32*'Mexico-IO-Data'!$AR38","v":69202.75143286206},{"$f":"(Calculations!BO32*'Default-Data'!$F$19/pv_dollar_index)/'Mexico-IO-Data'!$AS38","v":0},{"$f":"(Calculations!BP32*'Default-Data'!$F$19/pv_dollar_index)/'Mexico-IO-Data'!$AS38","v":7.1469822885635494},{"$f":"(Calculations!BQ32*'Default-Data'!$F$19/pv_dollar_index)/'Mexico-IO-Data'!$AS38","v":31.999303750667082},5291.373031651352,32639.215003120473,{"$f":"BH32*'Mexico-IO-Data'!AQ38","v":0},{"$f":"BU32*'Mexico-IO-Data'!$AQ38","v":4890.2107123354563},{"$f":"BV32*'Mexico-IO-Data'!$AQ38","v":30164.692206678035},{"$f":"BH32*'Mexico-IO-Data'!AR38","v":0},{"$f":"BU32*'Mexico-IO-Data'!$AR38","v":70.061362061279851},{"$f":"BV32*'Mexico-IO-Data'!$AR38","v":432.16530871117277},{"$f":"(BZ32*'Default-Data'!$F$19/pv_dollar_index)/'Mexico-IO-Data'!$AS38","v":0},{"$f":"(CA32*'Default-Data'!$F$19/pv_dollar_index)/'Mexico-IO-Data'!$AS38","v":3.2396324703351992E-2},{"$f":"(CB32*'Default-Data'!$F$19/pv_dollar_index)/'Mexico-IO-Data'!$AS38","v":0.19983293579542136},null,"TTL_C70: Real estate activities",0,0,null,689324.79849225725,4088517.6513373526,{"$f":"CH32*'Philippines-IO-Data'!AN38","v":0},{"$f":"'Philippines-IO-Data'!$AN38*Calculations!CK32","v":559366.71534865058},{"$f":"'Philippines-IO-Data'!$AN38*Calculations!CL32","v":3317711.3231321573},{"$f":"CH32*'Philippines-IO-Data'!AO38","v":0},{"$f":"'Philippines-IO-Data'!$AO38*Calculations!CK32","v":14336.290117377113},{"$f":"'Philippines-IO-Data'!$AO38*Calculations!CL32","v":85031.287613320863},{"$f":"(CP32*'Default-Data'!$F$19/pv_dollar_index)/'Philippines-IO-Data'!$AP38","v":0},{"$f":"(CQ32*'Default-Data'!$F$19/pv_dollar_index)/'Philippines-IO-Data'!$AP38","v":3.9313189748788258},{"$f":"(CR32*'Default-Data'!$F$19/pv_dollar_index)/'Philippines-IO-Data'!$AP38","v":23.317407203376689},2800.8831144783544,23948.745024512064,{"$f":"CI32*'Philippines-IO-Data'!AN38","v":0},{"$f":"'Philippines-IO-Data'!$AN38*Calculations!CV32","v":2272.8339256735062},{"$f":"'Philippines-IO-Data'!$AN38*Calculations!CW32","v":19433.699281361518},{"$f":"'Philippines-IO-Data'!AO38*Calculations!CI32","v":0},{"$f":"'Philippines-IO-Data'!$AO38*Calculations!CV32","v":58.25160069948577},{"$f":"'Philippines-IO-Data'!$AO38*Calculations!CW32","v":498.07602652547411},{"$f":"(DA32*'Default-Data'!$F$19/pv_dollar_index)/'Philippines-IO-Data'!$AP38","v":0},{"$f":"(DB32*'Default-Data'!$F$19/pv_dollar_index)/'Philippines-IO-Data'!$AP38","v":1.5973841298689527E-2},{"$f":"(DC32*'Default-Data'!$F$19/pv_dollar_index)/'Philippines-IO-Data'!$AP38","v":0.13658315491526116},null,"DOM_C70: Real estate activities",0,0,null,3545930.7713363944,6339848.9323053909,{"$f":"DI32*'SouthAfrica-IO-Data'!AR38","v":0},{"$f":"DL32*'SouthAfrica-IO-Data'!$AR38","v":2085128.1473411166},{"$f":"DM32*'SouthAfrica-IO-Data'!$AR38","v":3728047.2493991628},{"$f":"DI32*'SouthAfrica-IO-Data'!AS38","v":0},{"$f":"DL32*'SouthAfrica-IO-Data'!$AS38","v":128142.75411641638},{"$f":"DM32*'SouthAfrica-IO-Data'!$AS38","v":229109.29605133107},{"$f":"(DQ32*'Default-Data'!$F$19/pv_dollar_index)/'SouthAfrica-IO-Data'!$AT38","v":0},{"$f":"(DR32*'Default-Data'!$F$19/pv_dollar_index)/'SouthAfrica-IO-Data'!$AT38","v":8.6212572984557454},{"$f":"(DS32*'Default-Data'!$F$19/pv_dollar_index)/'SouthAfrica-IO-Data'!$AT38","v":15.414138741954444},22950.429327856258,35923.322646740518,{"$f":"DJ32*'SouthAfrica-IO-Data'!AR38","v":0},{"$f":"DW32*'SouthAfrica-IO-Data'!$AR38","v":13495.634650261562},{"$f":"DX32*'SouthAfrica-IO-Data'!$AR38","v":21124.138068974498},{"$f":"DJ32*'SouthAfrica-IO-Data'!AS38","v":0},{"$f":"DW32*'SouthAfrica-IO-Data'!$AS38","v":829.38201896065061},{"$f":"DX32*'SouthAfrica-IO-Data'!$AS38","v":1298.1961007747088},{"$f":"(EB32*'Default-Data'!$F$19/pv_dollar_index)/'SouthAfrica-IO-Data'!$AT38","v":0},{"$f":"(EC32*'Default-Data'!$F$19/pv_dollar_index)/'SouthAfrica-IO-Data'!$AT38","v":5.579961062547853E-2},{"$f":"(ED32*'Default-Data'!$F$19/pv_dollar_index)/'SouthAfrica-IO-Data'!$AT38","v":8.7340737178653538E-2},null,"FIRE",{"$f":"'Solar-PV-Inputs'!B23*'Solar-PV-Inputs'!C23","v":4992282.9447726104},0,null,41389882.525895126,1376397.3182261642,{"$f":"EJ32*'Zambia-IO-Data'!BO36","v":1040035.6389960941},{"$f":"EM32*'Zambia-IO-Data'!$BO36","v":8622698.952964358},{"$f":"EN32*'Zambia-IO-Data'!$BO36","v":286743.01521166309},{"$f":"EJ32*'Zambia-IO-Data'!$BN36","v":247827.58864791546},{"$f":"EM32*'Zambia-IO-Data'!$BN36","v":2054682.1753269625},{"$f":"EN32*'Zambia-IO-Data'!$BN36","v":68327.302793328505},{"$f":"(ER32*'Default-Data'!$F$19/pv_dollar_index)/'Zambia-IO-Data'!$BP36","v":266.22435269498732},{"$f":"(ES32*'Default-Data'!$F$19/pv_dollar_index)/'Zambia-IO-Data'!$BP36","v":2207.205562159877},{"$f":"(ET32*'Default-Data'!$F$19/pv_dollar_index)/'Zambia-IO-Data'!$BP36","v":73.399382436759552},244584.97811709737,7994.3514662381785,{"$f":"EK32*'Zambia-IO-Data'!BO36","v":0},{"$f":"EX32*'Zambia-IO-Data'!$BO36","v":50954.061862863324},{"$f":"EY32*'Zambia-IO-Data'!$BO36","v":1665.4525649942088},{"$f":"EK32*'Zambia-IO-Data'!BN36","v":0},{"$f":"EX32*'Zambia-IO-Data'!$BN36","v":12141.720735146415},{"$f":"EY32*'Zambia-IO-Data'!$BN36","v":396.85668232331653},{"$f":"(FC32*'Default-Data'!$F$19/pv_dollar_index)/'Zambia-IO-Data'!$BP36","v":0},{"$f":"(FD32*'Default-Data'!$F$19/pv_dollar_index)/'Zambia-IO-Data'!$BP36","v":13.043026246403533},{"$f":"(FE32*'Default-Data'!$F$19/pv_dollar_index)/'Zambia-IO-Data'!$BP36","v":0.42631618997957688},null,"TTL_C70: Real estate activities",0,0,null,1025170.8384027178,4878100.3275030628,{"$f":"FK32*CustomRegion1!C34","v":0},{"$f":"FN32*CustomRegion1!$C34","v":831895.85780583485},{"$f":"FO32*CustomRegion1!$C34","v":3958434.3451807708},{"$f":"FK32*CustomRegion1!D34","v":0},{"$f":"FN32*CustomRegion1!$D34","v":21321.076205821682},{"$f":"FO32*CustomRegion1!$D34","v":101452.69932217844},{"$f":"(FS32*'Default-Data'!$C$58/pv_dollar_index)/CustomRegion1!$E34","v":0},{"$f":"(FT32*'Default-Data'!$C$58/pv_dollar_index)/CustomRegion1!$E34","v":5.8466974905303779},{"$f":"(FU32*'Default-Data'!$C$58/pv_dollar_index)/CustomRegion1!$E34","v":27.820511347947409},4813.238906211709,28725.864636720959,{"$f":"FL32*CustomRegion1!C34","v":0},{"$f":"FY32*CustomRegion1!$C34","v":3905.8012174303303},{"$f":"FZ32*CustomRegion1!$C34","v":23310.190758461515},{"$f":"FL32*CustomRegion1!D34","v":0},{"$f":"FY32*CustomRegion1!$D34","v":100.1037384910983},{"$f":"FZ32*CustomRegion1!$D34","v":597.42857098033312},{"$f":"(GD32*'Default-Data'!$C$58/pv_dollar_index)/CustomRegion1!$E34","v":0},{"$f":"(GE32*'Default-Data'!$C$58/pv_dollar_index)/CustomRegion1!$E34","v":2.7450597285928979E-2},{"$f":"(GF32*'Default-Data'!$C$58/pv_dollar_index)/CustomRegion1!$E34","v":0.16382775864607199},null,"C64 Post and telecommunications",0,0,null,1475417.005461846,2537289.4435275737,{"$f":"GL32*CustomRegion2!$C$13","v":0},{"$f":"GO32*CustomRegion2!C$13","v":909124.60447376093},{"$f":"GP32*CustomRegion2!D$13","v":280767.95023044187},{"$f":"GL32*CustomRegion2!D38","v":0},{"$f":"GO32*CustomRegion2!$D38","v":248224.5670303712},{"$f":"GP32*CustomRegion2!$D38","v":426874.28111431678},{"$f":"(GT32*'Default-Data'!$C$59/pv_dollar_index)/CustomRegion2!$E38","v":0},{"$f":"(GU32*'Default-Data'!$C$59/pv_dollar_index)/CustomRegion2!$E38","v":21.696509092759751},{"$f":"(GV32*'Default-Data'!$C$59/pv_dollar_index)/CustomRegion2!$E38","v":37.31170460870964},12172.955244486273,21748.278651654276,{"$f":"GM32*CustomRegion2!C38","v":0},{"$f":"GZ32*CustomRegion2!$C38","v":7483.5007163730534},{"$f":"HA32*CustomRegion2!$C38","v":13370.069601073616},{"$f":"GM32*CustomRegion2!D38","v":0},{"$f":"GZ32*CustomRegion2!$D38","v":2047.9813733045862},{"$f":"HA32*CustomRegion2!$D38","v":3658.9364443938225},{"$f":"(HE32*'Default-Data'!$C$59/pv_dollar_index)/CustomRegion2!$E38","v":0},{"$f":"(HF32*'Default-Data'!$C$59/pv_dollar_index)/CustomRegion2!$E38","v":0.17900744885686068},{"$f":"(HG32*'Default-Data'!$C$59/pv_dollar_index)/CustomRegion2!$E38","v":0.31981583767213262},null,"FIRE",4992282.9447726104,0,null,41389882.525895126,1376397.3182261661,{"$f":"HM32*CustomRegion3!D37","v":1040035.6389960941},{"$f":"HP32*CustomRegion3!$D37","v":8622698.952964358},{"$f":"HQ32*CustomRegion3!$D37","v":286743.0152116635},{"$f":"HM32*CustomRegion3!E37","v":247827.58864791546},{"$f":"HP32*CustomRegion3!$E37","v":2054682.1753269625},{"$f":"HQ32*CustomRegion3!$E37","v":68327.302793328592},{"$f":"(HU32*'Default-Data'!$C$60/pv_dollar_index)/CustomRegion3!$F37","v":266.22435269498732},{"$f":"(HV32*'Default-Data'!$C$60/pv_dollar_index)/CustomRegion3!$F37","v":2207.205562159877},{"$f":"(HW32*'Default-Data'!$C$60/pv_dollar_index)/CustomRegion3!$F37","v":73.399382436759652},244584.97811709737,7994.3514662381785,{"$f":"HN32*CustomRegion3!D37","v":0},{"$f":"IA32*CustomRegion3!$D37","v":50954.061862863324},{"$f":"IB32*CustomRegion3!$D37","v":1665.4525649942088},{"$f":"HN32*CustomRegion3!E37","v":0},{"$f":"IA32*CustomRegion3!$E37","v":12141.720735146415},{"$f":"IB32*CustomRegion3!$E37","v":396.85668232331653},{"$f":"(IF32*'Default-Data'!$C$60/pv_dollar_index)/CustomRegion3!$F37","v":0},{"$f":"(IG32*'Default-Data'!$C$60/pv_dollar_index)/CustomRegion3!$F37","v":13.043026246403533},{"$f":"(IH32*'Default-Data'!$C$60/pv_dollar_index)/CustomRegion3!$F37","v":0.42631618997957688}]
[null,118,"Sales",0,1493970.0886627771,0,90528121.490524113,63854007.35554111,0,68934277.560844243,48622790.288206801,0,13880841.635464059,9790851.1664499771,0,1445.7797381537196,1019.7806881944772,6091800.9635642944,5456477.2107223263,877358.27487148449,3577509.3656909447,3204405.140908754,421294.19449505204,1717865.9729835496,1538706.9585372121,43.880524409021213,178.92688943715544,160.26631540306195,null,32,"TTL_C71: Renting of machinery and equipment",0,0,null,309813.23095590284,68540.693817958876,{"$f":"AF33*'Colombia-IO-Data'!AN39","v":0},{"$f":"AI33*'Colombia-IO-Data'!$AN39","v":223577.22113593321},{"$f":"AJ33*'Colombia-IO-Data'!$AN39","v":49462.502977250959},{"$f":"AK33*'Colombia-IO-Data'!$AO39","v":0},{"$f":"AL33*'Colombia-IO-Data'!$AO39","v":85368.185643622579},{"$f":"AM33*'Colombia-IO-Data'!$AO39","v":18886.200101722046},{"$f":"(AN33*'Default-Data'!$F$19/pv_dollar_index)/'Colombia-IO-Data'!$AP39","v":0},{"$f":"(AO33*'Default-Data'!$F$19/pv_dollar_index)/'Colombia-IO-Data'!$AP39","v":20.612462819617839},{"$f":"(AP33*'Default-Data'!$F$19/pv_dollar_index)/'Colombia-IO-Data'!$AP39","v":4.560142569103439},1799.955865927589,349.60445999255353,{"$f":"'Colombia-IO-Data'!$AN39*Calculations!AG33","v":0},{"$f":"'Colombia-IO-Data'!$AN39*Calculations!AT33","v":1298.9410730773222},{"$f":"'Colombia-IO-Data'!$AN39*Calculations!AU33","v":252.29262617576538},{"$f":"AV33*'Colombia-IO-Data'!$AO39","v":0},{"$f":"AW33*'Colombia-IO-Data'!$AO39","v":495.97289966839679},{"$f":"AX33*'Colombia-IO-Data'!$AO39","v":96.332549615128357},{"$f":"(AY33*'Default-Data'!$F$19/pv_dollar_index)/'Colombia-IO-Data'!$AP39","v":0},{"$f":"(AZ33*'Default-Data'!$F$19/pv_dollar_index)/'Colombia-IO-Data'!$AP39","v":0.1197544832056133},{"$f":"(BA33*'Default-Data'!$F$19/pv_dollar_index)/'Colombia-IO-Data'!$AP39","v":2.3259848880355843E-2},null,"DOM_C71: Renting of machinery and equipment",0,0,null,750145.60366135091,133354.43212433695,{"$f":"BG33*'Mexico-IO-Data'!AQ39","v":0},{"$f":"BJ33*'Mexico-IO-Data'!$AQ39","v":617143.7549381085},{"$f":"BK33*'Mexico-IO-Data'!$AQ39","v":109710.50763633588},{"$f":"BG33*'Mexico-IO-Data'!AR39","v":0},{"$f":"BJ33*'Mexico-IO-Data'!$AR39","v":28086.923945870876},{"$f":"BK33*'Mexico-IO-Data'!$AR39","v":4993.0517150800297},{"$f":"(Calculations!BO33*'Default-Data'!$F$19/pv_dollar_index)/'Mexico-IO-Data'!$AS39","v":0},{"$f":"(Calculations!BP33*'Default-Data'!$F$19/pv_dollar_index)/'Mexico-IO-Data'!$AS39","v":12.987373943328718},{"$f":"(Calculations!BQ33*'Default-Data'!$F$19/pv_dollar_index)/'Mexico-IO-Data'!$AS39","v":2.308783612868949},5731.2697196167146,832.78710938146378,{"$f":"BH33*'Mexico-IO-Data'!AQ39","v":0},{"$f":"BU33*'Mexico-IO-Data'!$AQ39","v":4715.1077045091988},{"$f":"BV33*'Mexico-IO-Data'!$AQ39","v":685.13280786985649},{"$f":"BH33*'Mexico-IO-Data'!AR39","v":0},{"$f":"BU33*'Mexico-IO-Data'!$AR39","v":214.58998885344141},{"$f":"BV33*'Mexico-IO-Data'!$AR39","v":31.181184146295823},{"$f":"(BZ33*'Default-Data'!$F$19/pv_dollar_index)/'Mexico-IO-Data'!$AS39","v":0},{"$f":"(CA33*'Default-Data'!$F$19/pv_dollar_index)/'Mexico-IO-Data'!$AS39","v":9.9226260415893733E-2},{"$f":"(CB33*'Default-Data'!$F$19/pv_dollar_index)/'Mexico-IO-Data'!$AS39","v":1.4418157690894851E-2},null,"TTL_C71: Renting of machinery and equipment",0,0,null,142338.07450672577,78411.716718332318,{"$f":"CH33*'Philippines-IO-Data'!AN39","v":0},{"$f":"'Philippines-IO-Data'!$AN39*Calculations!CK33","v":71961.923157045821},{"$f":"'Philippines-IO-Data'!$AN39*Calculations!CL33","v":39642.646232579522},{"$f":"CH33*'Philippines-IO-Data'!AO39","v":0},{"$f":"'Philippines-IO-Data'!$AO39*Calculations!CK33","v":19671.599635677794},{"$f":"'Philippines-IO-Data'!$AO39*Calculations!CL33","v":10836.762428989658},{"$f":"(CP33*'Default-Data'!$F$19/pv_dollar_index)/'Philippines-IO-Data'!$AP39","v":0},{"$f":"(CQ33*'Default-Data'!$F$19/pv_dollar_index)/'Philippines-IO-Data'!$AP39","v":5.3943755518884799},{"$f":"(CR33*'Default-Data'!$F$19/pv_dollar_index)/'Philippines-IO-Data'!$AP39","v":2.9716732442308693},1106.7585259572816,459.30148057630709,{"$f":"CI33*'Philippines-IO-Data'!AN39","v":0},{"$f":"'Philippines-IO-Data'!$AN39*Calculations!CV33","v":559.54439649652443},{"$f":"'Philippines-IO-Data'!$AN39*Calculations!CW33","v":232.2092522727487},{"$f":"'Philippines-IO-Data'!AO39*Calculations!CI33","v":0},{"$f":"'Philippines-IO-Data'!$AO39*Calculations!CV33","v":152.95774297533998},{"$f":"'Philippines-IO-Data'!$AO39*Calculations!CW33","v":63.477006200081924},{"$f":"(DA33*'Default-Data'!$F$19/pv_dollar_index)/'Philippines-IO-Data'!$AP39","v":0},{"$f":"(DB33*'Default-Data'!$F$19/pv_dollar_index)/'Philippines-IO-Data'!$AP39","v":4.1944301656167075E-2},{"$f":"(DC33*'Default-Data'!$F$19/pv_dollar_index)/'Philippines-IO-Data'!$AP39","v":1.7406759831150719E-2},null,"DOM_C71: Renting of machinery and equipment",0,0,null,804196.85824240372,225694.85074829601,{"$f":"DI33*'SouthAfrica-IO-Data'!AR39","v":0},{"$f":"DL33*'SouthAfrica-IO-Data'!$AR39","v":342976.32958516077},{"$f":"DM33*'SouthAfrica-IO-Data'!$AR39","v":96255.028507694893},{"$f":"DI33*'SouthAfrica-IO-Data'!AS39","v":0},{"$f":"DL33*'SouthAfrica-IO-Data'!$AS39","v":113439.46360546448},{"$f":"DM33*'SouthAfrica-IO-Data'!$AS39","v":31836.362633096498},{"$f":"(DQ33*'Default-Data'!$F$19/pv_dollar_index)/'SouthAfrica-IO-Data'!$AT39","v":0},{"$f":"(DR33*'Default-Data'!$F$19/pv_dollar_index)/'SouthAfrica-IO-Data'!$AT39","v":7.6320413923133019},{"$f":"(DS33*'Default-Data'!$F$19/pv_dollar_index)/'SouthAfrica-IO-Data'!$AT39","v":2.1419039695175757},6420.4753549788611,1278.8489173338594,{"$f":"DJ33*'SouthAfrica-IO-Data'!AR39","v":0},{"$f":"DW33*'SouthAfrica-IO-Data'!$AR39","v":2738.2239172822983},{"$f":"DX33*'SouthAfrica-IO-Data'!$AR39","v":545.40738783751249},{"$f":"DJ33*'SouthAfrica-IO-Data'!AS39","v":0},{"$f":"DW33*'SouthAfrica-IO-Data'!$AS39","v":905.66790070867057},{"$f":"DX33*'SouthAfrica-IO-Data'!$AS39","v":180.39356126289906},{"$f":"(EB33*'Default-Data'!$F$19/pv_dollar_index)/'SouthAfrica-IO-Data'!$AT39","v":0},{"$f":"(EC33*'Default-Data'!$F$19/pv_dollar_index)/'SouthAfrica-IO-Data'!$AT39","v":6.0932013306567723E-2},{"$f":"(ED33*'Default-Data'!$F$19/pv_dollar_index)/'SouthAfrica-IO-Data'!$AT39","v":1.2136615272208768E-2},null,"PUBLIC",0,0,null,333093.85857846285,1089904.1171737402,{"$f":"EJ33*'Zambia-IO-Data'!BO37","v":0},{"$f":"EM33*'Zambia-IO-Data'!$BO37","v":71335.191917449876},{"$f":"EN33*'Zambia-IO-Data'!$BO37","v":233413.24785156094},{"$f":"EJ33*'Zambia-IO-Data'!$BN37","v":0},{"$f":"EM33*'Zambia-IO-Data'!$BN37","v":46401.37298277425},{"$f":"EN33*'Zambia-IO-Data'!$BN37","v":151828.21944622294},{"$f":"(ER33*'Default-Data'!$F$19/pv_dollar_index)/'Zambia-IO-Data'!$BP37","v":0},{"$f":"(ES33*'Default-Data'!$F$19/pv_dollar_index)/'Zambia-IO-Data'!$BP37","v":117.23373481444543},{"$f":"(ET33*'Default-Data'!$F$19/pv_dollar_index)/'Zambia-IO-Data'!$BP37","v":383.59617553807431},2524.6182373925371,6347.5563693608929,{"$f":"EK33*'Zambia-IO-Data'!BO37","v":0},{"$f":"EX33*'Zambia-IO-Data'!$BO37","v":540.67081047748616},{"$f":"EY33*'Zambia-IO-Data'!$BO37","v":1359.3890735410516},{"$f":"EK33*'Zambia-IO-Data'!BN37","v":0},{"$f":"EX33*'Zambia-IO-Data'!$BN37","v":351.68991998923519},{"$f":"EY33*'Zambia-IO-Data'!$BN37","v":884.24125224307932},{"$f":"(FC33*'Default-Data'!$F$19/pv_dollar_index)/'Zambia-IO-Data'!$BP37","v":0},{"$f":"(FD33*'Default-Data'!$F$19/pv_dollar_index)/'Zambia-IO-Data'!$BP37","v":0.88854963046540603},{"$f":"(FE33*'Default-Data'!$F$19/pv_dollar_index)/'Zambia-IO-Data'!$BP37","v":2.2340482148220371},null,"TTL_C71: Renting of machinery and equipment",0,0,null,494225.4764033244,295620.88047603972,{"$f":"FK33*CustomRegion1!C35","v":0},{"$f":"FN33*CustomRegion1!$C35","v":249865.79225862614},{"$f":"FO33*CustomRegion1!$C35","v":149457.17903068714},{"$f":"FK33*CustomRegion1!D35","v":0},{"$f":"FN33*CustomRegion1!$D35","v":68303.619641130717},{"$f":"FO33*CustomRegion1!$D35","v":40855.797894023257},{"$f":"(FS33*'Default-Data'!$C$58/pv_dollar_index)/CustomRegion1!$E35","v":0},{"$f":"(FT33*'Default-Data'!$C$58/pv_dollar_index)/CustomRegion1!$E35","v":18.730321007008943},{"$f":"(FU33*'Default-Data'!$C$58/pv_dollar_index)/CustomRegion1!$E35","v":11.203538166397934},3751.8932967288206,1740.8345106115808,{"$f":"FL33*CustomRegion1!C35","v":0},{"$f":"FY33*CustomRegion1!$C35","v":1896.8463501301399},{"$f":"FZ33*CustomRegion1!$C35","v":880.1144719422532},{"$f":"FL33*CustomRegion1!D35","v":0},{"$f":"FY33*CustomRegion1!$D35","v":518.52424633961982},{"$f":"FZ33*CustomRegion1!$D35","v":240.58917224641786},{"$f":"(GD33*'Default-Data'!$C$58/pv_dollar_index)/CustomRegion1!$E35","v":0},{"$f":"(GE33*'Default-Data'!$C$58/pv_dollar_index)/CustomRegion1!$E35","v":0.14219049641711909},{"$f":"(GF33*'Default-Data'!$C$58/pv_dollar_index)/CustomRegion1!$E35","v":6.5974723604140986E-2},null,"C65T67 Finance and insurance",0,0,null,1776986.2383138214,2261179.0299693737,{"$f":"GL33*CustomRegion2!$C$13","v":0},{"$f":"GO33*CustomRegion2!C$13","v":1094945.9746511953},{"$f":"GP33*CustomRegion2!D$13","v":250214.49680014033},{"$f":"GL33*CustomRegion2!D39","v":0},{"$f":"GO33*CustomRegion2!$D39","v":344057.42592728825},{"$f":"GP33*CustomRegion2!$D39","v":437806.11230295437},{"$f":"(GT33*'Default-Data'!$C$59/pv_dollar_index)/CustomRegion2!$E39","v":0},{"$f":"(GU33*'Default-Data'!$C$59/pv_dollar_index)/CustomRegion2!$E39","v":28.171103795370637},{"$f":"(GV33*'Default-Data'!$C$59/pv_dollar_index)/CustomRegion2!$E39","v":35.847159521970994},13367.992976294949,19381.608886009155,{"$f":"GM33*CustomRegion2!C39","v":0},{"$f":"GZ33*CustomRegion2!$C39","v":8269.8506874509494},{"$f":"HA33*CustomRegion2!$C39","v":11990.058032951782},{"$f":"GM33*CustomRegion2!D39","v":0},{"$f":"GZ33*CustomRegion2!$D39","v":2588.2908680274472},{"$f":"HA33*CustomRegion2!$D39","v":3752.6382140006808},{"$f":"(HE33*'Default-Data'!$C$59/pv_dollar_index)/CustomRegion2!$E39","v":0},{"$f":"(HF33*'Default-Data'!$C$59/pv_dollar_index)/CustomRegion2!$E39","v":0.21192686220706877},{"$f":"(HG33*'Default-Data'!$C$59/pv_dollar_index)/CustomRegion2!$E39","v":0.30726254591996244},null,"PUBLIC",0,0,null,333093.85857846285,1089904.1171737402,{"$f":"HM33*CustomRegion3!D38","v":0},{"$f":"HP33*CustomRegion3!$D38","v":71335.191917449876},{"$f":"HQ33*CustomRegion3!$D38","v":233413.24785156094},{"$f":"HM33*CustomRegion3!E38","v":0},{"$f":"HP33*CustomRegion3!$E38","v":46401.37298277425},{"$f":"HQ33*CustomRegion3!$E38","v":151828.21944622294},{"$f":"(HU33*'Default-Data'!$C$60/pv_dollar_index)/CustomRegion3!$F38","v":0},{"$f":"(HV33*'Default-Data'!$C$60/pv_dollar_index)/CustomRegion3!$F38","v":117.23373481444543},{"$f":"(HW33*'Default-Data'!$C$60/pv_dollar_index)/CustomRegion3!$F38","v":383.59617553807431},2524.6182373925371,6347.5563693608929,{"$f":"HN33*CustomRegion3!D38","v":0},{"$f":"IA33*CustomRegion3!$D38","v":540.67081047748616},{"$f":"IB33*CustomRegion3!$D38","v":1359.3890735410516},{"$f":"HN33*CustomRegion3!E38","v":0},{"$f":"IA33*CustomRegion3!$E38","v":351.68991998923519},{"$f":"IB33*CustomRegion3!$E38","v":884.24125224307932},{"$f":"(IF33*'Default-Data'!$C$60/pv_dollar_index)/CustomRegion3!$F38","v":0},{"$f":"(IG33*'Default-Data'!$C$60/pv_dollar_index)/CustomRegion3!$F38","v":0.88854963046540603},{"$f":"(IH33*'Default-Data'!$C$60/pv_dollar_index)/CustomRegion3!$F38","v":2.2340482148220371}]
[null,119,"Transportation and Warehousing",0,0,0,42639138.353643194,33361436.593404695,0,31164737.019405611,24383710.322659411,0,10054155.430552214,7866506.7317886818,0,563.33473421980295,440.76068940850593,6492974.2583720526,2850814.318908588,0,3433539.1388388439,1507534.4752697395,0,1196074.9085419783,525150.31479790108,0,67.016125358772499,29.424193315447184,null,33,"TTL_C72: Computer and related activities",0,0,null,531960.25153044006,269434.99455365818,{"$f":"AF34*'Colombia-IO-Data'!AN40","v":0},{"$f":"AI34*'Colombia-IO-Data'!$AN40","v":379734.10605620156},{"$f":"AJ34*'Colombia-IO-Data'!$AN40","v":192333.27396687324},{"$f":"AK34*'Colombia-IO-Data'!$AO40","v":0},{"$f":"AL34*'Colombia-IO-Data'!$AO40","v":146580.28828667235},{"$f":"AM34*'Colombia-IO-Data'!$AO40","v":74242.12441168318},{"$f":"(AN34*'Default-Data'!$F$19/pv_dollar_index)/'Colombia-IO-Data'!$AP40","v":0},{"$f":"(AO34*'Default-Data'!$F$19/pv_dollar_index)/'Colombia-IO-Data'!$AP40","v":15.135452155584955},{"$f":"(AP34*'Default-Data'!$F$19/pv_dollar_index)/'Colombia-IO-Data'!$AP40","v":7.6660247779318},2163.5301914224951,1374.3029217680219,{"$f":"'Colombia-IO-Data'!$AN40*Calculations!AG34","v":0},{"$f":"'Colombia-IO-Data'!$AN40*Calculations!AT34","v":1544.4127654308618},{"$f":"'Colombia-IO-Data'!$AN40*Calculations!AU34","v":981.03136455514482},{"$f":"AV34*'Colombia-IO-Data'!$AO40","v":0},{"$f":"AW34*'Colombia-IO-Data'!$AO40","v":596.15521697955603},{"$f":"AX34*'Colombia-IO-Data'!$AO40","v":378.68565910031259},{"$f":"(AY34*'Default-Data'!$F$19/pv_dollar_index)/'Colombia-IO-Data'!$AP40","v":0},{"$f":"(AZ34*'Default-Data'!$F$19/pv_dollar_index)/'Colombia-IO-Data'!$AP40","v":6.1557245311522901E-2},{"$f":"(BA34*'Default-Data'!$F$19/pv_dollar_index)/'Colombia-IO-Data'!$AP40","v":3.910197436717739E-2},null,"DOM_C72: Computer and related activities",0,0,null,54836.602880087579,36814.81988101374,{"$f":"BG34*'Mexico-IO-Data'!AQ40","v":0},{"$f":"BJ34*'Mexico-IO-Data'!$AQ40","v":38860.571128939759},{"$f":"BK34*'Mexico-IO-Data'!$AQ40","v":26089.233312166751},{"$f":"BG34*'Mexico-IO-Data'!AR40","v":0},{"$f":"BJ34*'Mexico-IO-Data'!$AR40","v":22906.975200711349},{"$f":"BK34*'Mexico-IO-Data'!$AR40","v":15378.709142087724},{"$f":"(Calculations!BO34*'Default-Data'!$F$19/pv_dollar_index)/'Mexico-IO-Data'!$AS40","v":0},{"$f":"(Calculations!BP34*'Default-Data'!$F$19/pv_dollar_index)/'Mexico-IO-Data'!$AS40","v":2.0022248469429136},{"$f":"(Calculations!BQ34*'Default-Data'!$F$19/pv_dollar_index)/'Mexico-IO-Data'!$AS40","v":1.3442033829608362},211.03382935176063,229.90542528442529,{"$f":"BH34*'Mexico-IO-Data'!AQ40","v":0},{"$f":"BU34*'Mexico-IO-Data'!$AQ40","v":149.55148031452111},{"$f":"BV34*'Mexico-IO-Data'!$AQ40","v":162.92504755867702},{"$f":"BH34*'Mexico-IO-Data'!AR40","v":0},{"$f":"BU34*'Mexico-IO-Data'!$AR40","v":88.155473562847575},{"$f":"BV34*'Mexico-IO-Data'!$AR40","v":96.038733234725782},{"$f":"(BZ34*'Default-Data'!$F$19/pv_dollar_index)/'Mexico-IO-Data'!$AS40","v":0},{"$f":"(CA34*'Default-Data'!$F$19/pv_dollar_index)/'Mexico-IO-Data'!$AS40","v":7.7053857183235312E-3},{"$f":"(CB34*'Default-Data'!$F$19/pv_dollar_index)/'Mexico-IO-Data'!$AS40","v":8.3944360294902105E-3},null,"TTL_C72: Computer and related activities",0,0,null,201403.55619680273,269020.27405839541,{"$f":"CH34*'Philippines-IO-Data'!AN40","v":0},{"$f":"'Philippines-IO-Data'!$AN40*Calculations!CK34","v":100635.08265798516},{"$f":"'Philippines-IO-Data'!$AN40*Calculations!CL34","v":134421.05009350486},{"$f":"CH34*'Philippines-IO-Data'!AO40","v":0},{"$f":"'Philippines-IO-Data'!$AO40*Calculations!CK34","v":35098.475519022242},{"$f":"'Philippines-IO-Data'!$AO40*Calculations!CL34","v":46881.999908346908},{"$f":"(CP34*'Default-Data'!$F$19/pv_dollar_index)/'Philippines-IO-Data'!$AP40","v":0},{"$f":"(CQ34*'Default-Data'!$F$19/pv_dollar_index)/'Philippines-IO-Data'!$AP40","v":9.6247565909678112},{"$f":"(CR34*'Default-Data'!$F$19/pv_dollar_index)/'Philippines-IO-Data'!$AP40","v":12.856052319738598},798.82116277592536,1575.8028946607249,{"$f":"CI34*'Philippines-IO-Data'!AN40","v":0},{"$f":"'Philippines-IO-Data'!$AN40*Calculations!CV34","v":399.14604917080032},{"$f":"'Philippines-IO-Data'!$AN40*Calculations!CW34","v":787.37961509436241},{"$f":"'Philippines-IO-Data'!AO40*Calculations!CI34","v":0},{"$f":"'Philippines-IO-Data'!$AO40*Calculations!CV34","v":139.21007928167253},{"$f":"'Philippines-IO-Data'!$AO40*Calculations!CW34","v":274.61421419495201},{"$f":"(DA34*'Default-Data'!$F$19/pv_dollar_index)/'Philippines-IO-Data'!$AP40","v":0},{"$f":"(DB34*'Default-Data'!$F$19/pv_dollar_index)/'Philippines-IO-Data'!$AP40","v":3.8174396701909946E-2},{"$f":"(DC34*'Default-Data'!$F$19/pv_dollar_index)/'Philippines-IO-Data'!$AP40","v":7.5305121631674257E-2},null,"DOM_C72: Computer and related activities",0,0,null,55283.504516793211,35612.750067541376,{"$f":"DI34*'SouthAfrica-IO-Data'!AR40","v":0},{"$f":"DL34*'SouthAfrica-IO-Data'!$AR40","v":27621.496944089042},{"$f":"DM34*'SouthAfrica-IO-Data'!$AR40","v":17793.32688401463},{"$f":"DI34*'SouthAfrica-IO-Data'!AS40","v":0},{"$f":"DL34*'SouthAfrica-IO-Data'!$AS40","v":20883.229051104227},{"$f":"DM34*'SouthAfrica-IO-Data'!$AS40","v":13452.64239849847},{"$f":"(DQ34*'Default-Data'!$F$19/pv_dollar_index)/'SouthAfrica-IO-Data'!$AT40","v":0},{"$f":"(DR34*'Default-Data'!$F$19/pv_dollar_index)/'SouthAfrica-IO-Data'!$AT40","v":1.4049931431050027},{"$f":"(DS34*'Default-Data'!$F$19/pv_dollar_index)/'SouthAfrica-IO-Data'!$AT40","v":0.90507412815713861},312.94534836318314,201.79160807682069,{"$f":"DJ34*'SouthAfrica-IO-Data'!AR40","v":0},{"$f":"DW34*'SouthAfrica-IO-Data'!$AR40","v":156.35801418585521},{"$f":"DX34*'SouthAfrica-IO-Data'!$AR40","v":100.82186964365823},{"$f":"DJ34*'SouthAfrica-IO-Data'!AS40","v":0},{"$f":"DW34*'SouthAfrica-IO-Data'!$AS40","v":118.2144556042166},{"$f":"DX34*'SouthAfrica-IO-Data'!$AS40","v":76.22636098944875},{"$f":"(EB34*'Default-Data'!$F$19/pv_dollar_index)/'SouthAfrica-IO-Data'!$AT40","v":0},{"$f":"(EC34*'Default-Data'!$F$19/pv_dollar_index)/'SouthAfrica-IO-Data'!$AT40","v":7.9532958783992656E-3},{"$f":"(ED34*'Default-Data'!$F$19/pv_dollar_index)/'SouthAfrica-IO-Data'!$AT40","v":5.1283982114039613E-3},null,"LNONE",0,0,null,0,2448454.9808162395,{"$f":"EJ34*'Zambia-IO-Data'!BO38","v":0},{"$f":"EM34*'Zambia-IO-Data'!$BO38","v":0},{"$f":"EN34*'Zambia-IO-Data'!$BO38","v":0},{"$f":"EJ34*'Zambia-IO-Data'!$BN38","v":0},{"$f":"EM34*'Zambia-IO-Data'!$BN38","v":0},{"$f":"EN34*'Zambia-IO-Data'!$BN38","v":0},0,0,0,0,14798.814313288483,{"$f":"EK34*'Zambia-IO-Data'!BO38","v":0},{"$f":"EX34*'Zambia-IO-Data'!$BO38","v":0},{"$f":"EY34*'Zambia-IO-Data'!$BO38","v":0},{"$f":"EK34*'Zambia-IO-Data'!BN38","v":0},{"$f":"EX34*'Zambia-IO-Data'!$BN38","v":0},{"$f":"EY34*'Zambia-IO-Data'!$BN38","v":0},0,0,0,null,"TTL_C72: Computer and related activities",0,0,null,1051500.1201304775,896496.97165134153,{"$f":"FK34*CustomRegion1!C36","v":0},{"$f":"FN34*CustomRegion1!$C36","v":525401.85239237489},{"$f":"FO34*CustomRegion1!$C36","v":447951.60794781614},{"$f":"FK34*CustomRegion1!D36","v":0},{"$f":"FN34*CustomRegion1!$D36","v":183244.28784457778},{"$f":"FO34*CustomRegion1!$D36","v":156231.9832209681},{"$f":"(FS34*'Default-Data'!$C$58/pv_dollar_index)/CustomRegion1!$E36","v":0},{"$f":"(FT34*'Default-Data'!$C$58/pv_dollar_index)/CustomRegion1!$E36","v":50.249523408315682},{"$f":"(FU34*'Default-Data'!$C$58/pv_dollar_index)/CustomRegion1!$E36","v":42.842168726417512},5266.2113744670933,5279.2375978188684,{"$f":"FL34*CustomRegion1!C36","v":0},{"$f":"FY34*CustomRegion1!$C36","v":2631.3617642682457},{"$f":"FZ34*CustomRegion1!$C36","v":2637.87056226805},{"$f":"FL34*CustomRegion1!D36","v":0},{"$f":"FY34*CustomRegion1!$D36","v":917.73946048954633},{"$f":"FZ34*CustomRegion1!$D36","v":920.00953252824877},{"$f":"(GD34*'Default-Data'!$C$58/pv_dollar_index)/CustomRegion1!$E36","v":0},{"$f":"(GE34*'Default-Data'!$C$58/pv_dollar_index)/CustomRegion1!$E36","v":0.25166389110976611},{"$f":"(GF34*'Default-Data'!$C$58/pv_dollar_index)/CustomRegion1!$E36","v":0.25228639366844935},null,"C70 Real estate activities",0,0,null,2141557.4643994826,7523986.447888894,{"$f":"GL34*CustomRegion2!$C$13","v":0},{"$f":"GO34*CustomRegion2!C$13","v":1319588.0049996872},{"$f":"GP34*CustomRegion2!D$13","v":832579.13594532746},{"$f":"GL34*CustomRegion2!D40","v":0},{"$f":"GO34*CustomRegion2!$D40","v":18879.91819431898},{"$f":"GP34*CustomRegion2!$D40","v":66331.280384829675},{"$f":"(GT34*'Default-Data'!$C$59/pv_dollar_index)/CustomRegion2!$E40","v":0},{"$f":"(GU34*'Default-Data'!$C$59/pv_dollar_index)/CustomRegion2!$E40","v":8.730060938023211},{"$f":"(GV34*'Default-Data'!$C$59/pv_dollar_index)/CustomRegion2!$E40","v":30.671537550989626},18481.790754370733,64491.559785335085,{"$f":"GM34*CustomRegion2!C40","v":0},{"$f":"GZ34*CustomRegion2!$C40","v":16553.595462687848},{"$f":"HA34*CustomRegion2!$C40","v":57763.190030258156},{"$f":"GM34*CustomRegion2!D40","v":0},{"$f":"GZ34*CustomRegion2!$D40","v":162.93501497279954},{"$f":"HA34*CustomRegion2!$D40","v":568.55601272067008},{"$f":"(HE34*'Default-Data'!$C$59/pv_dollar_index)/CustomRegion2!$E40","v":0},{"$f":"(HF34*'Default-Data'!$C$59/pv_dollar_index)/CustomRegion2!$E40","v":7.534103670418861E-2},{"$f":"(HG34*'Default-Data'!$C$59/pv_dollar_index)/CustomRegion2!$E40","v":0.26289990171803235},null,"LNONE",0,0,null,0,2448454.9808162395,{"$f":"HM34*CustomRegion3!D39","v":0},{"$f":"HP34*CustomRegion3!$D39","v":0},{"$f":"HQ34*CustomRegion3!$D39","v":0},{"$f":"HM34*CustomRegion3!E39","v":0},{"$f":"HP34*CustomRegion3!$E39","v":0},{"$f":"HQ34*CustomRegion3!$E39","v":0},0,0,0,0,14798.814313288483,{"$f":"HN34*CustomRegion3!D39","v":0},{"$f":"IA34*CustomRegion3!$D39","v":0},{"$f":"IB34*CustomRegion3!$D39","v":0},{"$f":"HN34*CustomRegion3!E39","v":0},{"$f":"IA34*CustomRegion3!$E39","v":0},{"$f":"IB34*CustomRegion3!$E39","v":0},0,0,0]
[null,120,"Information",0,0,0,32206312.520175181,19002448.512976609,0,19650386.602546904,11594169.914393907,0,5023377.6487225229,2963905.7582667964,0,281.46005223169453,166.06775915876847,884276.27447670954,1623804.5434118484,0,359087.90414915903,659396.37539941759,0,117509.50409212406,215783.76820273939,0,6.5840622529944053,12.090373234140593,null,34,"TTL_C73T74: R&D and other business activities",{"$f":"'Solar-PV-Inputs'!B22*'Solar-PV-Inputs'!C22+'Solar-PV-Inputs'!B23*'Solar-PV-Inputs'!C23","v":5546981.049747345},0,null,7685622.7549695363,2338629.6481688116,{"$f":"AF35*'Colombia-IO-Data'!AN41","v":4045511.2261091098},{"$f":"AI35*'Colombia-IO-Data'!$AN41","v":5605260.3850674918},{"$f":"AJ35*'Colombia-IO-Data'!$AN41","v":1705603.8970620702},{"$f":"AK35*'Colombia-IO-Data'!$AO41","v":1517018.7930899863},{"$f":"AL35*'Colombia-IO-Data'!$AO41","v":2101906.2533880258},{"$f":"AM35*'Colombia-IO-Data'!$AO41","v":639581.25952334073},{"$f":"(AN35*'Default-Data'!$F$19/pv_dollar_index)/'Colombia-IO-Data'!$AP41","v":156.64292675582357},{"$f":"(AO35*'Default-Data'!$F$19/pv_dollar_index)/'Colombia-IO-Data'!$AP41","v":217.03669644489216},{"$f":"(AP35*'Default-Data'!$F$19/pv_dollar_index)/'Colombia-IO-Data'!$AP41","v":66.041291542503146},40357.032995219408,11928.61218245222,{"$f":"'Colombia-IO-Data'!$AN41*Calculations!AG35","v":0},{"$f":"'Colombia-IO-Data'!$AN41*Calculations!AT35","v":29433.096772892757},{"$f":"'Colombia-IO-Data'!$AN41*Calculations!AU35","v":8699.7474956598908},{"$f":"AV35*'Colombia-IO-Data'!$AO41","v":0},{"$f":"AW35*'Colombia-IO-Data'!$AO41","v":11037.062672115864},{"$f":"AX35*'Colombia-IO-Data'!$AO41","v":3262.3022674805079},{"$f":"(AY35*'Default-Data'!$F$19/pv_dollar_index)/'Colombia-IO-Data'!$AP41","v":0},{"$f":"(AZ35*'Default-Data'!$F$19/pv_dollar_index)/'Colombia-IO-Data'!$AP41","v":1.1396548332971945},{"$f":"(BA35*'Default-Data'!$F$19/pv_dollar_index)/'Colombia-IO-Data'!$AP41","v":0.33685579734937005},null,"DOM_C73T74: R&D and other business activities",5546981.049747345,0,null,7471278.1194173722,2831055.8412309298,{"$f":"BG35*'Mexico-IO-Data'!AQ41","v":4166590.8159390152},{"$f":"BJ35*'Mexico-IO-Data'!$AQ41","v":5612018.2341543147},{"$f":"BK35*'Mexico-IO-Data'!$AQ41","v":2126535.346289055},{"$f":"BG35*'Mexico-IO-Data'!AR41","v":1842984.3074991242},{"$f":"BJ35*'Mexico-IO-Data'!$AR41","v":2482331.9581513549},{"$f":"BK35*'Mexico-IO-Data'!$AR41","v":940618.22859120602},{"$f":"(Calculations!BO35*'Default-Data'!$F$19/pv_dollar_index)/'Mexico-IO-Data'!$AS41","v":520.07447549910705},{"$f":"(Calculations!BP35*'Default-Data'!$F$19/pv_dollar_index)/'Mexico-IO-Data'!$AS41","v":700.49293740437929},{"$f":"(Calculations!BQ35*'Default-Data'!$F$19/pv_dollar_index)/'Mexico-IO-Data'!$AS41","v":265.43445317952228},37169.672042004713,17679.703426114655,{"$f":"BH35*'Mexico-IO-Data'!AQ41","v":0},{"$f":"BU35*'Mexico-IO-Data'!$AQ41","v":27919.838335978471},{"$f":"BV35*'Mexico-IO-Data'!$AQ41","v":13280.032735487735},{"$f":"BH35*'Mexico-IO-Data'!AR41","v":0},{"$f":"BU35*'Mexico-IO-Data'!$AR41","v":12349.622555754686},{"$f":"BV35*'Mexico-IO-Data'!$AR41","v":5874.0809970951541},{"$f":"(BZ35*'Default-Data'!$F$19/pv_dollar_index)/'Mexico-IO-Data'!$AS41","v":0},{"$f":"(CA35*'Default-Data'!$F$19/pv_dollar_index)/'Mexico-IO-Data'!$AS41","v":3.4849583076545603},{"$f":"(CB35*'Default-Data'!$F$19/pv_dollar_index)/'Mexico-IO-Data'!$AS41","v":1.657615629809146},null,"TTL_C73T74: R&D and other business activities",{"$f":"'Solar-PV-Inputs'!B22*'Solar-PV-Inputs'!C22+'Solar-PV-Inputs'!B23*'Solar-PV-Inputs'!C23","v":5546981.049747345},0,null,1471894.7447998188,1011978.6070025759,{"$f":"CH35*'Philippines-IO-Data'!AN41","v":2687511.2043034625},{"$f":"'Philippines-IO-Data'!$AN41*Calculations!CK35","v":713132.70817557152},{"$f":"'Philippines-IO-Data'!$AN41*Calculations!CL35","v":490303.43180254975},{"$f":"CH35*'Philippines-IO-Data'!AO41","v":1051720.087182309},{"$f":"'Philippines-IO-Data'!$AO41*Calculations!CK35","v":279074.55522938148},{"$f":"'Philippines-IO-Data'!$AO41*Calculations!CL35","v":191873.42073790904},{"$f":"(CP35*'Default-Data'!$F$19/pv_dollar_index)/'Philippines-IO-Data'!$AP41","v":288.40425948058839},{"$f":"(CQ35*'Default-Data'!$F$19/pv_dollar_index)/'Philippines-IO-Data'!$AP41","v":76.528243038922341},{"$f":"(CR35*'Default-Data'!$F$19/pv_dollar_index)/'Philippines-IO-Data'!$AP41","v":52.615817170687642},9315.8885782795151,5927.7272831237915,{"$f":"CI35*'Philippines-IO-Data'!AN41","v":0},{"$f":"'Philippines-IO-Data'!$AN41*Calculations!CV35","v":4513.5461447644975},{"$f":"'Philippines-IO-Data'!$AN41*Calculations!CW35","v":2871.9826778885667},{"$f":"'Philippines-IO-Data'!AO41*Calculations!CI35","v":0},{"$f":"'Philippines-IO-Data'!$AO41*Calculations!CV35","v":1766.313434255391},{"$f":"'Philippines-IO-Data'!$AO41*Calculations!CW35","v":1123.9104296712653},{"$f":"(DA35*'Default-Data'!$F$19/pv_dollar_index)/'Philippines-IO-Data'!$AP41","v":0},{"$f":"(DB35*'Default-Data'!$F$19/pv_dollar_index)/'Philippines-IO-Data'!$AP41","v":0.48436111872867332},{"$f":"(DC35*'Default-Data'!$F$19/pv_dollar_index)/'Philippines-IO-Data'!$AP41","v":0.30820040345550953},null,"DOM_C73T74: R&D and other business activities",5546981.049747345,0,null,12561057.032636087,5935579.2921235114,{"$f":"DI35*'SouthAfrica-IO-Data'!AR41","v":2363277.3247839385},{"$f":"DL35*'SouthAfrica-IO-Data'!$AR41","v":5351606.7558764778},{"$f":"DM35*'SouthAfrica-IO-Data'!$AR41","v":2528838.6285674293},{"$f":"DI35*'SouthAfrica-IO-Data'!AS41","v":1525641.4261604804},{"$f":"DL35*'SouthAfrica-IO-Data'!$AS41","v":3454792.5787896682},{"$f":"DM35*'SouthAfrica-IO-Data'!$AS41","v":1632521.4698067866},{"$f":"(DQ35*'Default-Data'!$F$19/pv_dollar_index)/'SouthAfrica-IO-Data'!$AT41","v":102.64292640505568},{"$f":"(DR35*'Default-Data'!$F$19/pv_dollar_index)/'SouthAfrica-IO-Data'!$AT41","v":232.43339773610703},{"$f":"(DS35*'Default-Data'!$F$19/pv_dollar_index)/'SouthAfrica-IO-Data'!$AT41","v":109.83365960490455},98257.295329696542,33632.620001361487,{"$f":"DJ35*'SouthAfrica-IO-Data'!AR41","v":0},{"$f":"DW35*'SouthAfrica-IO-Data'!$AR41","v":41862.27354388516},{"$f":"DX35*'SouthAfrica-IO-Data'!$AR41","v":14329.093160668481},{"$f":"DJ35*'SouthAfrica-IO-Data'!AS41","v":0},{"$f":"DW35*'SouthAfrica-IO-Data'!$AS41","v":27024.682224991135},{"$f":"DX35*'SouthAfrica-IO-Data'!$AS41","v":9250.314339315757},{"$f":"(EB35*'Default-Data'!$F$19/pv_dollar_index)/'SouthAfrica-IO-Data'!$AT41","v":0},{"$f":"(EC35*'Default-Data'!$F$19/pv_dollar_index)/'SouthAfrica-IO-Data'!$AT41","v":1.8181811408469182},{"$f":"(ED35*'Default-Data'!$F$19/pv_dollar_index)/'SouthAfrica-IO-Data'!$AT41","v":0.6223476353441284},null,"LPRIM",0,0,null,0,4933241.7801146032,{"$f":"EJ35*'Zambia-IO-Data'!BO39","v":0},{"$f":"EM35*'Zambia-IO-Data'!$BO39","v":0},{"$f":"EN35*'Zambia-IO-Data'!$BO39","v":0},{"$f":"EJ35*'Zambia-IO-Data'!$BN39","v":0},{"$f":"EM35*'Zambia-IO-Data'!$BN39","v":0},{"$f":"EN35*'Zambia-IO-Data'!$BN39","v":0},0,0,0,0,29694.130535199853,{"$f":"EK35*'Zambia-IO-Data'!BO39","v":0},{"$f":"EX35*'Zambia-IO-Data'!$BO39","v":0},{"$f":"EY35*'Zambia-IO-Data'!$BO39","v":0},{"$f":"EK35*'Zambia-IO-Data'!BN39","v":0},{"$f":"EX35*'Zambia-IO-Data'!$BN39","v":0},{"$f":"EY35*'Zambia-IO-Data'!$BN39","v":0},0,0,0,null,"TTL_C73T74: R&D and other business activities",5546981.049747345,0,null,2602229.6569501283,1555086.9184350818,{"$f":"FK35*CustomRegion1!C37","v":2687511.2043034625},{"$f":"FN35*CustomRegion1!$C37","v":1260779.7460463233},{"$f":"FO35*CustomRegion1!$C37","v":753439.29958988912},{"$f":"FK35*CustomRegion1!D37","v":1051720.087182309},{"$f":"FN35*CustomRegion1!$D37","v":493388.59771309939},{"$f":"FO35*CustomRegion1!$D37","v":294847.97852466203},{"$f":"(FS35*'Default-Data'!$C$58/pv_dollar_index)/CustomRegion1!$E37","v":288.40425948058839},{"$f":"(FT35*'Default-Data'!$C$58/pv_dollar_index)/CustomRegion1!$E37","v":135.29776115700108},{"$f":"(FU35*'Default-Data'!$C$58/pv_dollar_index)/CustomRegion1!$E37","v":80.853654828989917},16040.807427797061,9157.5025764522015,{"$f":"FL35*CustomRegion1!C37","v":0},{"$f":"FY35*CustomRegion1!$C37","v":7771.7679764278955},{"$f":"FZ35*CustomRegion1!$C37","v":4436.8081586963599},{"$f":"FL35*CustomRegion1!D37","v":0},{"$f":"FY35*CustomRegion1!$D37","v":3041.3731785158652},{"$f":"FZ35*CustomRegion1!$D37","v":1736.2830919563369},{"$f":"(GD35*'Default-Data'!$C$58/pv_dollar_index)/CustomRegion1!$E37","v":0},{"$f":"(GE35*'Default-Data'!$C$58/pv_dollar_index)/CustomRegion1!$E37","v":0.83400991389636181},{"$f":"(GF35*'Default-Data'!$C$58/pv_dollar_index)/CustomRegion1!$E37","v":0.47612615322952528},null,"C71 Renting of machinery and equipment",5546981.049747345,0,null,710046.26916677039,457443.88548937254,{"$f":"GL35*CustomRegion2!$C$13","v":3417946.8815980176},{"$f":"GO35*CustomRegion2!C$13","v":437517.34677359508},{"$f":"GP35*CustomRegion2!D$13","v":50619.207990609502},{"$f":"GL35*CustomRegion2!D41","v":211218.60078192569},{"$f":"GO35*CustomRegion2!$D41","v":27037.225856515757},{"$f":"GP35*CustomRegion2!$D41","v":17418.602400618191},{"$f":"(GT35*'Default-Data'!$C$59/pv_dollar_index)/CustomRegion2!$E41","v":97.667332935004922},{"$f":"(GU35*'Default-Data'!$C$59/pv_dollar_index)/CustomRegion2!$E41","v":12.501994282660794},{"$f":"(GV35*'Default-Data'!$C$59/pv_dollar_index)/CustomRegion2!$E41","v":8.0543495394143783},5621.0448506344619,3920.9626298239091,{"$f":"GM35*CustomRegion2!C41","v":0},{"$f":"GZ35*CustomRegion2!$C41","v":4774.0664561692874},{"$f":"HA35*CustomRegion2!$C41","v":3330.1524297253709},{"$f":"GM35*CustomRegion2!D41","v":0},{"$f":"GZ35*CustomRegion2!$D41","v":214.03881095601318},{"$f":"HA35*CustomRegion2!$D41","v":149.30287898267613},{"$f":"(HE35*'Default-Data'!$C$59/pv_dollar_index)/CustomRegion2!$E41","v":0},{"$f":"(HF35*'Default-Data'!$C$59/pv_dollar_index)/CustomRegion2!$E41","v":9.8971396142504678E-2},{"$f":"(HG35*'Default-Data'!$C$59/pv_dollar_index)/CustomRegion2!$E41","v":6.9037546578632494E-2},null,"LPRIM",0,0,null,0,4933241.7801146032,{"$f":"HM35*CustomRegion3!D40","v":0},{"$f":"HP35*CustomRegion3!$D40","v":0},{"$f":"HQ35*CustomRegion3!$D40","v":0},{"$f":"HM35*CustomRegion3!E40","v":0},{"$f":"HP35*CustomRegion3!$E40","v":0},{"$f":"HQ35*CustomRegion3!$E40","v":0},0,0,0,0,29694.130535199853,{"$f":"HN35*CustomRegion3!D40","v":0},{"$f":"IA35*CustomRegion3!$D40","v":0},{"$f":"IB35*CustomRegion3!$D40","v":0},{"$f":"HN35*CustomRegion3!E40","v":0},{"$f":"IA35*CustomRegion3!$E40","v":0},{"$f":"IB35*CustomRegion3!$E40","v":0},0,0,0]
[null,121,"Finance, Professional, and Business Services",256054274.957948,0,0,141737438.33007246,219883356.9754135,109091279.83223826,107591131.50472759,164350264.80980492,70425156.624453366,30152697.726014808,88708331.394491836,4375.4178779281201,1873.1363302839743,5333.4857649882042,8393728.31243168,18789557.242241766,0,4495849.7346020825,10785805.058790652,0,2170386.6831766288,6694046.8488365756,0,134.83088125158622,404.14756961901793,null,35,"TTL_C75: Public administration and defence; compulsory social security",0,0,null,5932.6575561836362,4636986.2524976442,{"$f":"AF36*'Colombia-IO-Data'!AN42","v":0},{"$f":"AI36*'Colombia-IO-Data'!$AN42","v":3592.3039170168258},{"$f":"AJ36*'Colombia-IO-Data'!$AN42","v":2807757.5218610601},{"$f":"AK36*'Colombia-IO-Data'!$AO42","v":0},{"$f":"AL36*'Colombia-IO-Data'!$AO42","v":3015.9401377696872},{"$f":"AM36*'Colombia-IO-Data'!$AO42","v":2357269.5414751172},{"$f":"(AN36*'Default-Data'!$F$19/pv_dollar_index)/'Colombia-IO-Data'!$AP42","v":0},{"$f":"(AO36*'Default-Data'!$F$19/pv_dollar_index)/'Colombia-IO-Data'!$AP42","v":0.31141716388254542},{"$f":"(AP36*'Default-Data'!$F$19/pv_dollar_index)/'Colombia-IO-Data'!$AP42","v":243.40476321779985},39.6434213299747,23651.804271239711,{"$f":"'Colombia-IO-Data'!$AN42*Calculations!AG36","v":0},{"$f":"'Colombia-IO-Data'!$AN42*Calculations!AT36","v":24.004624635578473},{"$f":"'Colombia-IO-Data'!$AN42*Calculations!AU36","v":14321.485493382446},{"$f":"AV36*'Colombia-IO-Data'!$AO42","v":0},{"$f":"AW36*'Colombia-IO-Data'!$AO42","v":20.153225507338686},{"$f":"AX36*'Colombia-IO-Data'!$AO42","v":12023.688398794273},{"$f":"(AY36*'Default-Data'!$F$19/pv_dollar_index)/'Colombia-IO-Data'!$AP42","v":0},{"$f":"(AZ36*'Default-Data'!$F$19/pv_dollar_index)/'Colombia-IO-Data'!$AP42","v":2.0809631636859957E-3},{"$f":"(BA36*'Default-Data'!$F$19/pv_dollar_index)/'Colombia-IO-Data'!$AP42","v":1.2415309222049011},null,"DOM_C75: Public administration and defence; compulsory social security",0,0,null,4471.0386908668506,3613627.870901139,{"$f":"BG36*'Mexico-IO-Data'!AQ42","v":0},{"$f":"BJ36*'Mexico-IO-Data'!$AQ42","v":3204.0103714255006},{"$f":"BK36*'Mexico-IO-Data'!$AQ42","v":2589577.4958267519},{"$f":"BG36*'Mexico-IO-Data'!AR42","v":0},{"$f":"BJ36*'Mexico-IO-Data'!$AR42","v":3158.6055856148273},{"$f":"BK36*'Mexico-IO-Data'!$AR42","v":2552879.9830512735},{"$f":"(Calculations!BO36*'Default-Data'!$F$19/pv_dollar_index)/'Mexico-IO-Data'!$AS42","v":0},{"$f":"(Calculations!BP36*'Default-Data'!$F$19/pv_dollar_index)/'Mexico-IO-Data'!$AS42","v":2.3597516216835039},{"$f":"(Calculations!BQ36*'Default-Data'!$F$19/pv_dollar_index)/'Mexico-IO-Data'!$AS42","v":1907.2221955803279},14.645211136309252,22566.79932604092,{"$f":"BH36*'Mexico-IO-Data'!AQ42","v":0},{"$f":"BU36*'Mexico-IO-Data'!$AQ42","v":10.494968086119046},{"$f":"BV36*'Mexico-IO-Data'!$AQ42","v":16171.69165594822},{"$f":"BH36*'Mexico-IO-Data'!AR42","v":0},{"$f":"BU36*'Mexico-IO-Data'!$AR42","v":10.346241420846713},{"$f":"BV36*'Mexico-IO-Data'!$AR42","v":15942.518803580739},{"$f":"(BZ36*'Default-Data'!$F$19/pv_dollar_index)/'Mexico-IO-Data'!$AS42","v":0},{"$f":"(CA36*'Default-Data'!$F$19/pv_dollar_index)/'Mexico-IO-Data'!$AS42","v":7.7295373890183677E-3},{"$f":"(CB36*'Default-Data'!$F$19/pv_dollar_index)/'Mexico-IO-Data'!$AS42","v":11.910440724794242},null,"TTL_C75: Public administration and defence; compulsory social security",0,0,null,17469.231805213272,3464924.4712684336,{"$f":"CH36*'Philippines-IO-Data'!AN42","v":0},{"$f":"'Philippines-IO-Data'!$AN42*Calculations!CK36","v":9730.6759140495033},{"$f":"'Philippines-IO-Data'!$AN42*Calculations!CL36","v":1930025.1706838482},{"$f":"CH36*'Philippines-IO-Data'!AO42","v":0},{"$f":"'Philippines-IO-Data'!$AO42*Calculations!CK36","v":8264.3353693447571},{"$f":"'Philippines-IO-Data'!$AO42*Calculations!CL36","v":1639184.7208453882},{"$f":"(CP36*'Default-Data'!$F$19/pv_dollar_index)/'Philippines-IO-Data'!$AP42","v":0},{"$f":"(CQ36*'Default-Data'!$F$19/pv_dollar_index)/'Philippines-IO-Data'!$AP42","v":2.2662584382891513},{"$f":"(CR36*'Default-Data'!$F$19/pv_dollar_index)/'Philippines-IO-Data'!$AP42","v":449.49969229346993},67.178148044483052,20296.009401954536,{"$f":"CI36*'Philippines-IO-Data'!AN42","v":0},{"$f":"'Philippines-IO-Data'!$AN42*Calculations!CV36","v":37.419435176985012},{"$f":"'Philippines-IO-Data'!$AN42*Calculations!CW36","v":11305.241812635628},{"$f":"'Philippines-IO-Data'!AO42*Calculations!CI36","v":0},{"$f":"'Philippines-IO-Data'!$AO42*Calculations!CV36","v":31.780604386130971},{"$f":"'Philippines-IO-Data'!$AO42*Calculations!CW36","v":9601.6258887280146},{"$f":"(DA36*'Default-Data'!$F$19/pv_dollar_index)/'Philippines-IO-Data'!$AP42","v":0},{"$f":"(DB36*'Default-Data'!$F$19/pv_dollar_index)/'Philippines-IO-Data'!$AP42","v":8.7149249933826112E-3},{"$f":"(DC36*'Default-Data'!$F$19/pv_dollar_index)/'Philippines-IO-Data'!$AP42","v":2.6329722499331094},null,"DOM_C75: Public administration and defence; compulsory social security",0,0,null,12986.104150117882,16696176.918107474,{"$f":"DI36*'SouthAfrica-IO-Data'!AR42","v":0},{"$f":"DL36*'SouthAfrica-IO-Data'!$AR42","v":8038.1702065577938},{"$f":"DM36*'SouthAfrica-IO-Data'!$AR42","v":10334640.036390834},{"$f":"DI36*'SouthAfrica-IO-Data'!AS42","v":0},{"$f":"DL36*'SouthAfrica-IO-Data'!$AS42","v":7089.8844748791153},{"$f":"DM36*'SouthAfrica-IO-Data'!$AS42","v":9115433.2471952848},{"$f":"(DQ36*'Default-Data'!$F$19/pv_dollar_index)/'SouthAfrica-IO-Data'!$AT42","v":0},{"$f":"(DR36*'Default-Data'!$F$19/pv_dollar_index)/'SouthAfrica-IO-Data'!$AT42","v":0.45660056418209088},{"$f":"(DS36*'Default-Data'!$F$19/pv_dollar_index)/'SouthAfrica-IO-Data'!$AT42","v":587.04933460915402},82.129510946612498,94605.117062014077,{"$f":"DJ36*'SouthAfrica-IO-Data'!AR42","v":0},{"$f":"DW36*'SouthAfrica-IO-Data'!$AR42","v":50.836723650043261},{"$f":"DX36*'SouthAfrica-IO-Data'!$AR42","v":58558.904546356258},{"$f":"DJ36*'SouthAfrica-IO-Data'!AS42","v":0},{"$f":"DW36*'SouthAfrica-IO-Data'!$AS42","v":44.839371212382929},{"$f":"DX36*'SouthAfrica-IO-Data'!$AS42","v":51650.544531941567},{"$f":"(EB36*'Default-Data'!$F$19/pv_dollar_index)/'SouthAfrica-IO-Data'!$AT42","v":0},{"$f":"(EC36*'Default-Data'!$F$19/pv_dollar_index)/'SouthAfrica-IO-Data'!$AT42","v":2.8877314243534735E-3},{"$f":"(ED36*'Default-Data'!$F$19/pv_dollar_index)/'SouthAfrica-IO-Data'!$AT42","v":3.32638251824249},null,"LSECD",0,0,null,0,3924554.6874601189,{"$f":"EJ36*'Zambia-IO-Data'!BO40","v":0},{"$f":"EM36*'Zambia-IO-Data'!$BO40","v":0},{"$f":"EN36*'Zambia-IO-Data'!$BO40","v":0},{"$f":"EJ36*'Zambia-IO-Data'!$BN40","v":0},{"$f":"EM36*'Zambia-IO-Data'!$BN40","v":0},{"$f":"EN36*'Zambia-IO-Data'!$BN40","v":0},0,0,0,0,20249.369620619775,{"$f":"EK36*'Zambia-IO-Data'!BO40","v":0},{"$f":"EX36*'Zambia-IO-Data'!$BO40","v":0},{"$f":"EY36*'Zambia-IO-Data'!$BO40","v":0},{"$f":"EK36*'Zambia-IO-Data'!BN40","v":0},{"$f":"EX36*'Zambia-IO-Data'!$BN40","v":0},{"$f":"EY36*'Zambia-IO-Data'!$BN40","v":0},0,0,0,null,"TTL_C75: Public administration and defence; compulsory social security",0,0,null,31330.765241207144,4016179.238566624,{"$f":"FK36*CustomRegion1!C38","v":0},{"$f":"FN36*CustomRegion1!$C38","v":17451.799031619281},{"$f":"FO36*CustomRegion1!$C38","v":2237083.9782184004},{"$f":"FK36*CustomRegion1!D38","v":0},{"$f":"FN36*CustomRegion1!$D38","v":14821.942614229589},{"$f":"FO36*CustomRegion1!$D38","v":1899972.0480558951},{"$f":"(FS36*'Default-Data'!$C$58/pv_dollar_index)/CustomRegion1!$E38","v":0},{"$f":"(FT36*'Default-Data'!$C$58/pv_dollar_index)/CustomRegion1!$E38","v":4.0644953308566665},{"$f":"(FU36*'Default-Data'!$C$58/pv_dollar_index)/CustomRegion1!$E38","v":521.01318424128567},151.85874441888305,23650.235423289672,{"$f":"FL36*CustomRegion1!C38","v":0},{"$f":"FY36*CustomRegion1!$C38","v":84.588048468945502},{"$f":"FZ36*CustomRegion1!$C38","v":13173.60595823839},{"$f":"FL36*CustomRegion1!D38","v":0},{"$f":"FY36*CustomRegion1!$D38","v":71.841258198356087},{"$f":"FZ36*CustomRegion1!$D38","v":11188.441442725301},{"$f":"(GD36*'Default-Data'!$C$58/pv_dollar_index)/CustomRegion1!$E38","v":0},{"$f":"(GE36*'Default-Data'!$C$58/pv_dollar_index)/CustomRegion1!$E38","v":1.97004175572612E-2},{"$f":"(GF36*'Default-Data'!$C$58/pv_dollar_index)/CustomRegion1!$E38","v":3.0681111907599923},null,"C72 Computer and related activities",0,0,null,28792.678075801137,36498.850988853126,{"$f":"GL36*CustomRegion2!$C$13","v":0},{"$f":"GO36*CustomRegion2!C$13","v":17741.514412875556},{"$f":"GP36*CustomRegion2!D$13","v":4038.8405840128826},{"$f":"GL36*CustomRegion2!D42","v":0},{"$f":"GO36*CustomRegion2!$D42","v":9758.704475288805},{"$f":"GP36*CustomRegion2!$D42","v":12370.558221438028},{"$f":"(GT36*'Default-Data'!$C$59/pv_dollar_index)/CustomRegion2!$E42","v":0},{"$f":"(GU36*'Default-Data'!$C$59/pv_dollar_index)/CustomRegion2!$E42","v":0.85297689473158755},{"$f":"(GV36*'Default-Data'!$C$59/pv_dollar_index)/CustomRegion2!$E42","v":1.0812706096939413},239.45342794689915,312.84849420537091,{"$f":"GM36*CustomRegion2!C42","v":0},{"$f":"GZ36*CustomRegion2!$C42","v":123.88750784078178},{"$f":"HA36*CustomRegion2!$C42","v":161.86036930504741},{"$f":"GM36*CustomRegion2!D42","v":0},{"$f":"GZ36*CustomRegion2!$D42","v":81.15796775752446},{"$f":"HA36*CustomRegion2!$D42","v":106.03376290499401},{"$f":"(HE36*'Default-Data'!$C$59/pv_dollar_index)/CustomRegion2!$E42","v":0},{"$f":"(HF36*'Default-Data'!$C$59/pv_dollar_index)/CustomRegion2!$E42","v":7.0937562968357848E-3},{"$f":"(HG36*'Default-Data'!$C$59/pv_dollar_index)/CustomRegion2!$E42","v":9.2680693475688559E-3},null,"LSECD",0,0,null,0,3924554.6874601189,{"$f":"HM36*CustomRegion3!D41","v":0},{"$f":"HP36*CustomRegion3!$D41","v":0},{"$f":"HQ36*CustomRegion3!$D41","v":0},{"$f":"HM36*CustomRegion3!E41","v":0},{"$f":"HP36*CustomRegion3!$E41","v":0},{"$f":"HQ36*CustomRegion3!$E41","v":0},0,0,0,0,20249.369620619775,{"$f":"HN36*CustomRegion3!D41","v":0},{"$f":"IA36*CustomRegion3!$D41","v":0},{"$f":"IB36*CustomRegion3!$D41","v":0},{"$f":"HN36*CustomRegion3!E41","v":0},{"$f":"IA36*CustomRegion3!$E41","v":0},{"$f":"IB36*CustomRegion3!$E41","v":0},0,0,0]
[null,122,"Education and Health Care",0,0,0,3513559.0555871255,20842906.022768378,0,2650364.1671269163,16362171.326490503,0,1887313.9415671509,12255256.111834213,0,112.24230992385968,728.84443038584345,206979.38389198214,1781076.0268375489,0,95927.985472397064,844707.62186322722,0,42539.970592040809,388017.78227765707,0,2.529936571855623,23.076188447065476,null,36,"TTL_C80: Education",0,0,null,76803.753789991868,2701077.023807616,{"$f":"AF37*'Colombia-IO-Data'!AN43","v":0},{"$f":"AI37*'Colombia-IO-Data'!$AN43","v":60549.439119573573},{"$f":"AJ37*'Colombia-IO-Data'!$AN43","v":2129436.2676271941},{"$f":"AK37*'Colombia-IO-Data'!$AO43","v":0},{"$f":"AL37*'Colombia-IO-Data'!$AO43","v":44576.177719442596},{"$f":"AM37*'Colombia-IO-Data'!$AO43","v":1567679.7487838534},{"$f":"(AN37*'Default-Data'!$F$19/pv_dollar_index)/'Colombia-IO-Data'!$AP43","v":0},{"$f":"(AO37*'Default-Data'!$F$19/pv_dollar_index)/'Colombia-IO-Data'!$AP43","v":4.6028058276975026},{"$f":"(AP37*'Default-Data'!$F$19/pv_dollar_index)/'Colombia-IO-Data'!$AP43","v":161.87402897306796},122.37914381482135,13777.341922079135,{"$f":"'Colombia-IO-Data'!$AN43*Calculations!AG37","v":0},{"$f":"'Colombia-IO-Data'!$AN43*Calculations!AT37","v":96.479509819045376},{"$f":"'Colombia-IO-Data'!$AN43*Calculations!AU37","v":10861.582732290664},{"$f":"AV37*'Colombia-IO-Data'!$AO43","v":0},{"$f":"AW37*'Colombia-IO-Data'!$AO43","v":71.027706259762979},{"$f":"AX37*'Colombia-IO-Data'!$AO43","v":7996.2399194628142},{"$f":"(AY37*'Default-Data'!$F$19/pv_dollar_index)/'Colombia-IO-Data'!$AP43","v":0},{"$f":"(AZ37*'Default-Data'!$F$19/pv_dollar_index)/'Colombia-IO-Data'!$AP43","v":7.3341133544034039E-3},{"$f":"(BA37*'Default-Data'!$F$19/pv_dollar_index)/'Colombia-IO-Data'!$AP43","v":0.82566836332666793},null,"DOM_C80: Education",0,0,null,80140.041601058925,3244903.9525221889,{"$f":"BG37*'Mexico-IO-Data'!AQ43","v":0},{"$f":"BJ37*'Mexico-IO-Data'!$AQ43","v":71902.212411017463},{"$f":"BK37*'Mexico-IO-Data'!$AQ43","v":2911350.7877754536},{"$f":"BG37*'Mexico-IO-Data'!AR43","v":0},{"$f":"BJ37*'Mexico-IO-Data'!$AR43","v":62007.004649520852},{"$f":"BK37*'Mexico-IO-Data'!$AR43","v":2510689.6683796248},{"$f":"(Calculations!BO37*'Default-Data'!$F$19/pv_dollar_index)/'Mexico-IO-Data'!$AS43","v":0},{"$f":"(Calculations!BP37*'Default-Data'!$F$19/pv_dollar_index)/'Mexico-IO-Data'!$AS43","v":16.239952645291929},{"$f":"(Calculations!BQ37*'Default-Data'!$F$19/pv_dollar_index)/'Mexico-IO-Data'!$AS43","v":657.56250526808628},132.39700817250963,20264.149753356989,{"$f":"BH37*'Mexico-IO-Data'!AQ43","v":0},{"$f":"BU37*'Mexico-IO-Data'!$AQ43","v":118.78753259939928},{"$f":"BV37*'Mexico-IO-Data'!$AQ43","v":18181.138551783442},{"$f":"BH37*'Mexico-IO-Data'!AR43","v":0},{"$f":"BU37*'Mexico-IO-Data'!$AR43","v":102.4399505830426},{"$f":"BV37*'Mexico-IO-Data'!$AR43","v":15679.043869605262},{"$f":"(BZ37*'Default-Data'!$F$19/pv_dollar_index)/'Mexico-IO-Data'!$AS43","v":0},{"$f":"(CA37*'Default-Data'!$F$19/pv_dollar_index)/'Mexico-IO-Data'!$AS43","v":2.6829548626931016E-2},{"$f":"(CB37*'Default-Data'!$F$19/pv_dollar_index)/'Mexico-IO-Data'!$AS43","v":4.106422030947301},null,"TTL_C80: Education",0,0,null,55687.528235709964,3360028.4162203544,{"$f":"CH37*'Philippines-IO-Data'!AN43","v":0},{"$f":"'Philippines-IO-Data'!$AN43*Calculations!CK37","v":37898.925285491438},{"$f":"'Philippines-IO-Data'!$AN43*Calculations!CL37","v":2286714.2776469085},{"$f":"CH37*'Philippines-IO-Data'!AO43","v":0},{"$f":"'Philippines-IO-Data'!$AO43*Calculations!CK37","v":26361.550927587254},{"$f":"'Philippines-IO-Data'!$AO43*Calculations!CL37","v":1590581.6440158247},{"$f":"(CP37*'Default-Data'!$F$19/pv_dollar_index)/'Philippines-IO-Data'!$AP43","v":0},{"$f":"(CQ37*'Default-Data'!$F$19/pv_dollar_index)/'Philippines-IO-Data'!$AP43","v":7.2289040274959842},{"$f":"(CR37*'Default-Data'!$F$19/pv_dollar_index)/'Philippines-IO-Data'!$AP43","v":436.17168367944544},139.59345013841002,19681.574271510151,{"$f":"CI37*'Philippines-IO-Data'!AN43","v":0},{"$f":"'Philippines-IO-Data'!$AN43*Calculations!CV37","v":95.002272586899409},{"$f":"'Philippines-IO-Data'!$AN43*Calculations!CW37","v":13394.570318502558},{"$f":"'Philippines-IO-Data'!AO43*Calculations!CI37","v":0},{"$f":"'Philippines-IO-Data'!$AO43*Calculations!CV37","v":66.081220725138053},{"$f":"'Philippines-IO-Data'!$AO43*Calculations!CW37","v":9316.9303600154872},{"$f":"(DA37*'Default-Data'!$F$19/pv_dollar_index)/'Philippines-IO-Data'!$AP43","v":0},{"$f":"(DB37*'Default-Data'!$F$19/pv_dollar_index)/'Philippines-IO-Data'!$AP43","v":1.812089144352641E-2},{"$f":"(DC37*'Default-Data'!$F$19/pv_dollar_index)/'Philippines-IO-Data'!$AP43","v":2.5549026151163514},null,"DOM_C80: Education",0,0,null,14835.201224810313,933973.17067400145,{"$f":"DI37*'SouthAfrica-IO-Data'!AR43","v":0},{"$f":"DL37*'SouthAfrica-IO-Data'!$AR43","v":7568.1076509787708},{"$f":"DM37*'SouthAfrica-IO-Data'!$AR43","v":476461.99007841165},{"$f":"DI37*'SouthAfrica-IO-Data'!AS43","v":0},{"$f":"DL37*'SouthAfrica-IO-Data'!$AS43","v":3839.3949015284797},{"$f":"DM37*'SouthAfrica-IO-Data'!$AS43","v":241715.07856955274},{"$f":"(DQ37*'Default-Data'!$F$19/pv_dollar_index)/'SouthAfrica-IO-Data'!$AT43","v":0},{"$f":"(DR37*'Default-Data'!$F$19/pv_dollar_index)/'SouthAfrica-IO-Data'!$AT43","v":0.2472635322010148},{"$f":"(DS37*'Default-Data'!$F$19/pv_dollar_index)/'SouthAfrica-IO-Data'!$AT43","v":15.566860311649576},76.629125908050455,5292.1481113779364,{"$f":"DJ37*'SouthAfrica-IO-Data'!AR43","v":0},{"$f":"DW37*'SouthAfrica-IO-Data'!$AR43","v":39.091985695660654},{"$f":"DX37*'SouthAfrica-IO-Data'!$AR43","v":2699.7642974232272},{"$f":"DJ37*'SouthAfrica-IO-Data'!AS43","v":0},{"$f":"DW37*'SouthAfrica-IO-Data'!$AS43","v":19.8318493198406},{"$f":"DX37*'SouthAfrica-IO-Data'!$AS43","v":1369.6239214455161},{"$f":"(EB37*'Default-Data'!$F$19/pv_dollar_index)/'SouthAfrica-IO-Data'!$AT43","v":0},{"$f":"(EC37*'Default-Data'!$F$19/pv_dollar_index)/'SouthAfrica-IO-Data'!$AT43","v":1.2772046738276123E-3},{"$f":"(ED37*'Default-Data'!$F$19/pv_dollar_index)/'SouthAfrica-IO-Data'!$AT43","v":8.8206099473852578E-2},null,"LPOST",0,0,null,0,4235752.3862171322,{"$f":"EJ37*'Zambia-IO-Data'!BO41","v":0},{"$f":"EM37*'Zambia-IO-Data'!$BO41","v":0},{"$f":"EN37*'Zambia-IO-Data'!$BO41","v":0},{"$f":"EJ37*'Zambia-IO-Data'!$BN41","v":0},{"$f":"EM37*'Zambia-IO-Data'!$BN41","v":0},{"$f":"EN37*'Zambia-IO-Data'!$BN41","v":0},0,0,0,0,26152.650386250305,{"$f":"EK37*'Zambia-IO-Data'!BO41","v":0},{"$f":"EX37*'Zambia-IO-Data'!$BO41","v":0},{"$f":"EY37*'Zambia-IO-Data'!$BO41","v":0},{"$f":"EK37*'Zambia-IO-Data'!BN41","v":0},{"$f":"EX37*'Zambia-IO-Data'!$BN41","v":0},{"$f":"EY37*'Zambia-IO-Data'!$BN41","v":0},0,0,0,null,"TTL_C80: Education",0,0,null,76628.62402288818,3894098.6562434644,{"$f":"FK37*CustomRegion1!C39","v":0},{"$f":"FN37*CustomRegion1!$C39","v":52150.680566769246},{"$f":"FO37*CustomRegion1!$C39","v":2650183.2403591168},{"$f":"FK37*CustomRegion1!D39","v":0},{"$f":"FN37*CustomRegion1!$D39","v":36274.717853160771},{"$f":"FO37*CustomRegion1!$D39","v":1843401.6250299895},{"$f":"(FS37*'Default-Data'!$C$58/pv_dollar_index)/CustomRegion1!$E39","v":0},{"$f":"(FT37*'Default-Data'!$C$58/pv_dollar_index)/CustomRegion1!$E39","v":9.9473075277439573},{"$f":"(FU37*'Default-Data'!$C$58/pv_dollar_index)/CustomRegion1!$E39","v":505.5003580053617},265.13262263195372,22931.334612083476,{"$f":"FL37*CustomRegion1!C39","v":0},{"$f":"FY37*CustomRegion1!$C39","v":180.43971018687293},{"$f":"FZ37*CustomRegion1!$C39","v":15606.240116842842},{"$f":"FL37*CustomRegion1!D39","v":0},{"$f":"FY37*CustomRegion1!$D39","v":125.50937984701366},{"$f":"FZ37*CustomRegion1!$D39","v":10855.312928512061},{"$f":"(GD37*'Default-Data'!$C$58/pv_dollar_index)/CustomRegion1!$E39","v":0},{"$f":"(GE37*'Default-Data'!$C$58/pv_dollar_index)/CustomRegion1!$E39","v":3.4417370357186367E-2},{"$f":"(GF37*'Default-Data'!$C$58/pv_dollar_index)/CustomRegion1!$E39","v":2.9767601900284792},null,"C73 Research and development",0,0,null,0,0,{"$f":"GL37*CustomRegion2!$C$13","v":0},{"$f":"GO37*CustomRegion2!C$13","v":0},{"$f":"GP37*CustomRegion2!D$13","v":0},{"$f":"GL37*CustomRegion2!D43","v":0},{"$f":"GO37*CustomRegion2!$D43","v":0},{"$f":"GP37*CustomRegion2!$D43","v":0},{"$f":"(GT37*'Default-Data'!$C$59/pv_dollar_index)/CustomRegion2!$E43","v":0},{"$f":"(GU37*'Default-Data'!$C$59/pv_dollar_index)/CustomRegion2!$E43","v":0},{"$f":"(GV37*'Default-Data'!$C$59/pv_dollar_index)/CustomRegion2!$E43","v":0},0,0,{"$f":"GM37*CustomRegion2!C43","v":0},{"$f":"GZ37*CustomRegion2!$C43","v":0},{"$f":"HA37*CustomRegion2!$C43","v":0},{"$f":"GM37*CustomRegion2!D43","v":0},{"$f":"GZ37*CustomRegion2!$D43","v":0},{"$f":"HA37*CustomRegion2!$D43","v":0},{"$f":"(HE37*'Default-Data'!$C$59/pv_dollar_index)/CustomRegion2!$E43","v":0},{"$f":"(HF37*'Default-Data'!$C$59/pv_dollar_index)/CustomRegion2!$E43","v":0},{"$f":"(HG37*'Default-Data'!$C$59/pv_dollar_index)/CustomRegion2!$E43","v":0},null,"LPOST",0,0,null,0,4235752.3862171322,{"$f":"HM37*CustomRegion3!D42","v":0},{"$f":"HP37*CustomRegion3!$D42","v":0},{"$f":"HQ37*CustomRegion3!$D42","v":0},{"$f":"HM37*CustomRegion3!E42","v":0},{"$f":"HP37*CustomRegion3!$E42","v":0},{"$f":"HQ37*CustomRegion3!$E42","v":0},0,0,0,0,26152.650386250305,{"$f":"HN37*CustomRegion3!D42","v":0},{"$f":"IA37*CustomRegion3!$D42","v":0},{"$f":"IB37*CustomRegion3!$D42","v":0},{"$f":"HN37*CustomRegion3!E42","v":0},{"$f":"IA37*CustomRegion3!$E42","v":0},{"$f":"IB37*CustomRegion3!$E42","v":0},0,0,0]
[null,123,"Other",0,0,0,41999881.59655378,434941835.96128404,0,27252817.402911104,24213230.510534018,0,4985942.4432388116,4487062.686601338,0,328.59177226277387,304.39753728391531,1781785.4463963157,37166817.153669678,0,1210651.3177617667,2132380.8319976386,0,660072.89739977696,1154920.3335362808,0,40.565685714521848,71.757396778071936,null,37,"TTL_C85: Health and social work",0,0,null,2097.5187378864985,2547564.5264339796,{"$f":"AF38*'Colombia-IO-Data'!AN44","v":0},{"$f":"AI38*'Colombia-IO-Data'!$AN44","v":832.04031858541896},{"$f":"AJ38*'Colombia-IO-Data'!$AN44","v":1010563.7493979521},{"$f":"AK38*'Colombia-IO-Data'!$AO44","v":0},{"$f":"AL38*'Colombia-IO-Data'!$AO44","v":617.83868231079862},{"$f":"AM38*'Colombia-IO-Data'!$AO44","v":750402.78862999857},{"$f":"(AN38*'Default-Data'!$F$19/pv_dollar_index)/'Colombia-IO-Data'!$AP44","v":0},{"$f":"(AO38*'Default-Data'!$F$19/pv_dollar_index)/'Colombia-IO-Data'!$AP44","v":6.3796216566965214E-2},{"$f":"(AP38*'Default-Data'!$F$19/pv_dollar_index)/'Colombia-IO-Data'!$AP44","v":77.484398737941063},10.017616961529605,12994.323094038675,{"$f":"'Colombia-IO-Data'!$AN44*Calculations!AG38","v":0},{"$f":"'Colombia-IO-Data'!$AN44*Calculations!AT38","v":3.9737719895348165},{"$f":"'Colombia-IO-Data'!$AN44*Calculations!AU38","v":5154.5669326701654},{"$f":"AV38*'Colombia-IO-Data'!$AO44","v":0},{"$f":"AW38*'Colombia-IO-Data'!$AO44","v":2.9507585089047592},{"$f":"AX38*'Colombia-IO-Data'!$AO44","v":3827.5679320181926},{"$f":"(AY38*'Default-Data'!$F$19/pv_dollar_index)/'Colombia-IO-Data'!$AP44","v":0},{"$f":"(AZ38*'Default-Data'!$F$19/pv_dollar_index)/'Colombia-IO-Data'!$AP44","v":3.0468669939349503E-4},{"$f":"(BA38*'Default-Data'!$F$19/pv_dollar_index)/'Colombia-IO-Data'!$AP44","v":0.39522347775720668},null,"DOM_C85: Health and social work",0,0,null,0,2360785.6571863564,{"$f":"BG38*'Mexico-IO-Data'!AQ44","v":0},{"$f":"BJ38*'Mexico-IO-Data'!$AQ44","v":0},{"$f":"BK38*'Mexico-IO-Data'!$AQ44","v":1762948.6538274223},{"$f":"BG38*'Mexico-IO-Data'!AR44","v":0},{"$f":"BJ38*'Mexico-IO-Data'!$AR44","v":0},{"$f":"BK38*'Mexico-IO-Data'!$AR44","v":1238543.992382972},{"$f":"(Calculations!BO38*'Default-Data'!$F$19/pv_dollar_index)/'Mexico-IO-Data'!$AS44","v":0},{"$f":"(Calculations!BP38*'Default-Data'!$F$19/pv_dollar_index)/'Mexico-IO-Data'!$AS44","v":0},{"$f":"(Calculations!BQ38*'Default-Data'!$F$19/pv_dollar_index)/'Mexico-IO-Data'!$AS44","v":587.35312782036283},0,14742.906043680345,{"$f":"BH38*'Mexico-IO-Data'!AQ44","v":0},{"$f":"BU38*'Mexico-IO-Data'!$AQ44","v":0},{"$f":"BV38*'Mexico-IO-Data'!$AQ44","v":11009.464702605463},{"$f":"BH38*'Mexico-IO-Data'!AR44","v":0},{"$f":"BU38*'Mexico-IO-Data'!$AR44","v":0},{"$f":"BV38*'Mexico-IO-Data'!$AR44","v":7734.6021037883274},{"$f":"(BZ38*'Default-Data'!$F$19/pv_dollar_index)/'Mexico-IO-Data'!$AS44","v":0},{"$f":"(CA38*'Default-Data'!$F$19/pv_dollar_index)/'Mexico-IO-Data'!$AS44","v":0},{"$f":"(CB38*'Default-Data'!$F$19/pv_dollar_index)/'Mexico-IO-Data'!$AS44","v":3.6679704282165719},null,"TTL_C85: Health and social work",0,0,null,140522.5022151251,1509870.6851679306,{"$f":"CH38*'Philippines-IO-Data'!AN44","v":0},{"$f":"'Philippines-IO-Data'!$AN44*Calculations!CK38","v":72819.261046902451},{"$f":"'Philippines-IO-Data'!$AN44*Calculations!CL38","v":782420.36568627809},{"$f":"CH38*'Philippines-IO-Data'!AO44","v":0},{"$f":"'Philippines-IO-Data'!$AO44*Calculations!CK38","v":46488.563116558398},{"$f":"'Philippines-IO-Data'!$AO44*Calculations!CL38","v":499505.18627838342},{"$f":"(CP38*'Default-Data'!$F$19/pv_dollar_index)/'Philippines-IO-Data'!$AP44","v":0},{"$f":"(CQ38*'Default-Data'!$F$19/pv_dollar_index)/'Philippines-IO-Data'!$AP44","v":12.748163492691297},{"$f":"(CR38*'Default-Data'!$F$19/pv_dollar_index)/'Philippines-IO-Data'!$AP44","v":136.97506124589094},271.78872994703266,8844.1609264532162,{"$f":"CI38*'Philippines-IO-Data'!AN44","v":0},{"$f":"'Philippines-IO-Data'!$AN44*Calculations!CV38","v":140.84188769511391},{"$f":"'Philippines-IO-Data'!$AN44*Calculations!CW38","v":4583.0756860440524},{"$f":"'Philippines-IO-Data'!AO44*Calculations!CI38","v":0},{"$f":"'Philippines-IO-Data'!$AO44*Calculations!CV38","v":89.914905636742219},{"$f":"'Philippines-IO-Data'!$AO44*Calculations!CW38","v":2925.882523874996},{"$f":"(DA38*'Default-Data'!$F$19/pv_dollar_index)/'Philippines-IO-Data'!$AP44","v":0},{"$f":"(DB38*'Default-Data'!$F$19/pv_dollar_index)/'Philippines-IO-Data'!$AP44","v":2.4656600261297953E-2},{"$f":"(DC38*'Default-Data'!$F$19/pv_dollar_index)/'Philippines-IO-Data'!$AP44","v":0.80233989338941814},null,"DOM_C85: Health and social work",0,0,null,228406.26356069255,2738539.1509125289,{"$f":"DI38*'SouthAfrica-IO-Data'!AR44","v":0},{"$f":"DL38*'SouthAfrica-IO-Data'!$AR44","v":105531.07717267533},{"$f":"DM38*'SouthAfrica-IO-Data'!$AR44","v":1265293.6130998393},{"$f":"DI38*'SouthAfrica-IO-Data'!AS44","v":0},{"$f":"DL38*'SouthAfrica-IO-Data'!$AS44","v":46569.950363315234},{"$f":"DM38*'SouthAfrica-IO-Data'!$AS44","v":558363.11289293272},{"$f":"(DQ38*'Default-Data'!$F$19/pv_dollar_index)/'SouthAfrica-IO-Data'!$AT44","v":0},{"$f":"(DR38*'Default-Data'!$F$19/pv_dollar_index)/'SouthAfrica-IO-Data'!$AT44","v":2.9991836517455046},{"$f":"(DS38*'Default-Data'!$F$19/pv_dollar_index)/'SouthAfrica-IO-Data'!$AT44","v":35.959529844064001},1295.3158943297326,15517.313827095893,{"$f":"DJ38*'SouthAfrica-IO-Data'!AR44","v":0},{"$f":"DW38*'SouthAfrica-IO-Data'!$AR44","v":598.47781526000415},{"$f":"DX38*'SouthAfrica-IO-Data'!$AR44","v":7169.5005971880601},{"$f":"DJ38*'SouthAfrica-IO-Data'!AS44","v":0},{"$f":"DW38*'SouthAfrica-IO-Data'!$AS44","v":264.10307652408068},{"$f":"DX38*'SouthAfrica-IO-Data'!$AS44","v":3163.8385192874512},{"$f":"(EB38*'Default-Data'!$F$19/pv_dollar_index)/'SouthAfrica-IO-Data'!$AT44","v":0},{"$f":"(EC38*'Default-Data'!$F$19/pv_dollar_index)/'SouthAfrica-IO-Data'!$AT44","v":1.7008685285408297E-2},{"$f":"(ED38*'Default-Data'!$F$19/pv_dollar_index)/'SouthAfrica-IO-Data'!$AT44","v":0.20375655738908385},null,"HRRS",0,0,null,0,1973233.1349304433,{"$f":"EJ38*'Zambia-IO-Data'!BO42","v":0},{"$f":"EM38*'Zambia-IO-Data'!$BO42","v":0},{"$f":"EN38*'Zambia-IO-Data'!$BO42","v":0},{"$f":"EJ38*'Zambia-IO-Data'!$BN42","v":0},{"$f":"EM38*'Zambia-IO-Data'!$BN42","v":0},{"$f":"EN38*'Zambia-IO-Data'!$BN42","v":0},0,0,0,0,11802.805354146132,{"$f":"EK38*'Zambia-IO-Data'!BO42","v":0},{"$f":"EX38*'Zambia-IO-Data'!$BO42","v":0},{"$f":"EY38*'Zambia-IO-Data'!$BO42","v":0},{"$f":"EK38*'Zambia-IO-Data'!BN42","v":0},{"$f":"EX38*'Zambia-IO-Data'!$BN42","v":0},{"$f":"EY38*'Zambia-IO-Data'!$BN42","v":0},0,0,0,null,"TTL_C85: Health and social work",0,0,null,203464.24353022745,1770264.0941417795,{"$f":"FK38*CustomRegion1!C40","v":0},{"$f":"FN38*CustomRegion1!$C40","v":105435.89553121007},{"$f":"FO38*CustomRegion1!$C40","v":917357.15747448034},{"$f":"FK38*CustomRegion1!D40","v":0},{"$f":"FN38*CustomRegion1!$D40","v":67311.357100924841},{"$f":"FO38*CustomRegion1!$D40","v":585650.21812306705},{"$f":"(FS38*'Default-Data'!$C$58/pv_dollar_index)/CustomRegion1!$E40","v":0},{"$f":"(FT38*'Default-Data'!$C$58/pv_dollar_index)/CustomRegion1!$E40","v":18.458221285223562},{"$f":"(FU38*'Default-Data'!$C$58/pv_dollar_index)/CustomRegion1!$E40","v":160.59788106257764},650.1190420638228,10424.625023158111,{"$f":"FL38*CustomRegion1!C40","v":0},{"$f":"FY38*CustomRegion1!$C40","v":336.89400266395279},{"$f":"FZ38*CustomRegion1!$C40","v":5402.0778089711175},{"$f":"FL38*CustomRegion1!D40","v":0},{"$f":"FY38*CustomRegion1!$D40","v":215.07658662377173},{"$f":"FZ38*CustomRegion1!$D40","v":3448.7418791734076},{"$f":"(GD38*'Default-Data'!$C$58/pv_dollar_index)/CustomRegion1!$E40","v":0},{"$f":"(GE38*'Default-Data'!$C$58/pv_dollar_index)/CustomRegion1!$E40","v":5.8978624115685621E-2},{"$f":"(GF38*'Default-Data'!$C$58/pv_dollar_index)/CustomRegion1!$E40","v":0.9457191698862043},null,"C74 Other Business Activities",0,0,null,6364820.2318559345,4829751.71798856,{"$f":"GL38*CustomRegion2!$C$13","v":0},{"$f":"GO38*CustomRegion2!C$13","v":3921884.2228413322},{"$f":"GP38*CustomRegion2!D$13","v":534444.14607121528},{"$f":"GL38*CustomRegion2!D44","v":0},{"$f":"GO38*CustomRegion2!$D44","v":1792267.7111712759},{"$f":"GP38*CustomRegion2!$D44","v":1360008.2550329638},{"$f":"(GT38*'Default-Data'!$C$59/pv_dollar_index)/CustomRegion2!$E44","v":0},{"$f":"(GU38*'Default-Data'!$C$59/pv_dollar_index)/CustomRegion2!$E44","v":505.76268395157206},{"$f":"(GV38*'Default-Data'!$C$59/pv_dollar_index)/CustomRegion2!$E44","v":383.78274683766421},52794.938525490543,41398.030661841469,{"$f":"GM38*CustomRegion2!C44","v":0},{"$f":"GZ38*CustomRegion2!$C44","v":37680.491317597014},{"$f":"HA38*CustomRegion2!$C44","v":29546.357633620122},{"$f":"GM38*CustomRegion2!D44","v":0},{"$f":"GZ38*CustomRegion2!$D44","v":14866.510001165874},{"$f":"HA38*CustomRegion2!$D44","v":11657.25832914244},{"$f":"(HE38*'Default-Data'!$C$59/pv_dollar_index)/CustomRegion2!$E44","v":0},{"$f":"(HF38*'Default-Data'!$C$59/pv_dollar_index)/CustomRegion2!$E44","v":4.1952025092662089},{"$f":"(HG38*'Default-Data'!$C$59/pv_dollar_index)/CustomRegion2!$E44","v":3.2895790195377077},null,"HRRS",0,0,null,0,1973233.1349304433,{"$f":"HM38*CustomRegion3!D43","v":0},{"$f":"HP38*CustomRegion3!$D43","v":0},{"$f":"HQ38*CustomRegion3!$D43","v":0},{"$f":"HM38*CustomRegion3!E43","v":0},{"$f":"HP38*CustomRegion3!$E43","v":0},{"$f":"HQ38*CustomRegion3!$E43","v":0},0,0,0,0,11802.805354146132,{"$f":"HN38*CustomRegion3!D43","v":0},{"$f":"IA38*CustomRegion3!$D43","v":0},{"$f":"IB38*CustomRegion3!$D43","v":0},{"$f":"HN38*CustomRegion3!E43","v":0},{"$f":"IA38*CustomRegion3!$E43","v":0},{"$f":"IB38*CustomRegion3!$E43","v":0},0,0,0]
[null,124,"Total",581654155.46003008,70816129.605341107,0,573577548.24427593,977083507.40065753,202287253.53228754,364500372.21527058,367936707.11080909,123572561.0724282,90665920.383676246,143483606.11200184,9002.8520297598407,6499.0787141009168,9261.3716541145241,48273484.413442999,83494115.904405743,34301202.449920699,23449789.197698426,24049926.208507992,11195491.377065569,10019639.386228835,12777370.923234284,557.8154476914591,685.239552411251,861.42758191951214,null,38,"TTL_C90T93: Other community, social and personal services",0,0,null,569537.25381950103,1908993.8711545039,{"$f":"AF39*'Colombia-IO-Data'!AN45","v":0},{"$f":"AI39*'Colombia-IO-Data'!$AN45","v":325821.4184355294},{"$f":"AJ39*'Colombia-IO-Data'!$AN45","v":1092099.044817559},{"$f":"AK39*'Colombia-IO-Data'!$AO45","v":0},{"$f":"AL39*'Colombia-IO-Data'!$AO45","v":124443.11597162618},{"$f":"AM39*'Colombia-IO-Data'!$AO45","v":417112.56656880939},{"$f":"(AN39*'Default-Data'!$F$19/pv_dollar_index)/'Colombia-IO-Data'!$AP45","v":0},{"$f":"(AO39*'Default-Data'!$F$19/pv_dollar_index)/'Colombia-IO-Data'!$AP45","v":27.531147425403702},{"$f":"(AP39*'Default-Data'!$F$19/pv_dollar_index)/'Colombia-IO-Data'!$AP45","v":92.279813740864043},2714.6658066074378,9737.1756000403366,{"$f":"'Colombia-IO-Data'!$AN45*Calculations!AG39","v":0},{"$f":"'Colombia-IO-Data'!$AN45*Calculations!AT39","v":1553.0086184100303},{"$f":"'Colombia-IO-Data'!$AN45*Calculations!AU39","v":5570.4527566627467},{"$f":"AV39*'Colombia-IO-Data'!$AO45","v":0},{"$f":"AW39*'Colombia-IO-Data'!$AO45","v":593.15078957577839},{"$f":"AX39*'Colombia-IO-Data'!$AO45","v":2127.5596360127315},{"$f":"(AY39*'Default-Data'!$F$19/pv_dollar_index)/'Colombia-IO-Data'!$AP45","v":0},{"$f":"(AZ39*'Default-Data'!$F$19/pv_dollar_index)/'Colombia-IO-Data'!$AP45","v":0.13122559416648436},{"$f":"(BA39*'Default-Data'!$F$19/pv_dollar_index)/'Colombia-IO-Data'!$AP45","v":0.47069022290280832},null,"DOM_C90T93: Other community, social and personal services",0,0,null,98681.862751416033,1028556.0391290631,{"$f":"BG39*'Mexico-IO-Data'!AQ45","v":0},{"$f":"BJ39*'Mexico-IO-Data'!$AQ45","v":63136.092900656287},{"$f":"BK39*'Mexico-IO-Data'!$AQ45","v":658064.28688489425},{"$f":"BG39*'Mexico-IO-Data'!AR45","v":0},{"$f":"BJ39*'Mexico-IO-Data'!$AR45","v":11081.238687180774},{"$f":"BK39*'Mexico-IO-Data'!$AR45","v":115499.18754008162},{"$f":"(Calculations!BO39*'Default-Data'!$F$19/pv_dollar_index)/'Mexico-IO-Data'!$AS45","v":0},{"$f":"(Calculations!BP39*'Default-Data'!$F$19/pv_dollar_index)/'Mexico-IO-Data'!$AS45","v":8.278643931178534},{"$f":"(Calculations!BQ39*'Default-Data'!$F$19/pv_dollar_index)/'Mexico-IO-Data'!$AS45","v":86.287884863529925},461.03728631784281,6423.2451596696437,{"$f":"BH39*'Mexico-IO-Data'!AQ45","v":0},{"$f":"BU39*'Mexico-IO-Data'!$AQ45","v":294.96902599978648},{"$f":"BV39*'Mexico-IO-Data'!$AQ45","v":4109.555614552627},{"$f":"BH39*'Mexico-IO-Data'!AR45","v":0},{"$f":"BU39*'Mexico-IO-Data'!$AR45","v":51.771055702987418},{"$f":"BV39*'Mexico-IO-Data'!$AR45","v":721.28262252078878},{"$f":"(BZ39*'Default-Data'!$F$19/pv_dollar_index)/'Mexico-IO-Data'!$AS45","v":0},{"$f":"(CA39*'Default-Data'!$F$19/pv_dollar_index)/'Mexico-IO-Data'!$AS45","v":3.8677457295641302E-2},{"$f":"(CB39*'Default-Data'!$F$19/pv_dollar_index)/'Mexico-IO-Data'!$AS45","v":0.53886051678536995},null,"TTL_C90T93: Other community, social and personal services",0,0,null,704182.60655683093,1941908.5539178103,{"$f":"CH39*'Philippines-IO-Data'!AN45","v":0},{"$f":"'Philippines-IO-Data'!$AN45*Calculations!CK39","v":343191.21427345899},{"$f":"'Philippines-IO-Data'!$AN45*Calculations!CL39","v":946410.70145955787},{"$f":"CH39*'Philippines-IO-Data'!AO45","v":0},{"$f":"'Philippines-IO-Data'!$AO45*Calculations!CK39","v":294973.53419946204},{"$f":"'Philippines-IO-Data'!$AO45*Calculations!CL39","v":813441.88837909687},{"$f":"(CP39*'Default-Data'!$F$19/pv_dollar_index)/'Philippines-IO-Data'!$AP45","v":0},{"$f":"(CQ39*'Default-Data'!$F$19/pv_dollar_index)/'Philippines-IO-Data'!$AP45","v":184.26943880419256},{"$f":"(CR39*'Default-Data'!$F$19/pv_dollar_index)/'Philippines-IO-Data'!$AP45","v":508.15569158852429},2707.9429663019018,11374.849464936124,{"$f":"CI39*'Philippines-IO-Data'!AN45","v":0},{"$f":"'Philippines-IO-Data'!$AN45*Calculations!CV39","v":1319.7460802568401},{"$f":"'Philippines-IO-Data'!$AN45*Calculations!CW39","v":5543.6592209185483},{"$f":"'Philippines-IO-Data'!AO45*Calculations!CI39","v":0},{"$f":"'Philippines-IO-Data'!$AO45*Calculations!CV39","v":1134.3243922003662},{"$f":"'Philippines-IO-Data'!$AO45*Calculations!CW39","v":4764.786173951431},{"$f":"(DA39*'Default-Data'!$F$19/pv_dollar_index)/'Philippines-IO-Data'!$AP45","v":0},{"$f":"(DB39*'Default-Data'!$F$19/pv_dollar_index)/'Philippines-IO-Data'!$AP45","v":0.70861041733773789},{"$f":"(DC39*'Default-Data'!$F$19/pv_dollar_index)/'Philippines-IO-Data'!$AP45","v":2.9765533937776829},null,"DOM_C90T93: Other community, social and personal services",0,0,null,4192964.2571665538,5722369.1472411975,{"$f":"DI39*'SouthAfrica-IO-Data'!AR45","v":0},{"$f":"DL39*'SouthAfrica-IO-Data'!$AR45","v":2950956.5498754424},{"$f":"DM39*'SouthAfrica-IO-Data'!$AR45","v":4027332.8557462571},{"$f":"DI39*'SouthAfrica-IO-Data'!AS45","v":0},{"$f":"DL39*'SouthAfrica-IO-Data'!$AS45","v":1641060.7317135863},{"$f":"DM39*'SouthAfrica-IO-Data'!$AS45","v":2239645.9220601143},{"$f":"(DQ39*'Default-Data'!$F$19/pv_dollar_index)/'SouthAfrica-IO-Data'!$AT45","v":0},{"$f":"(DR39*'Default-Data'!$F$19/pv_dollar_index)/'SouthAfrica-IO-Data'!$AT45","v":105.68708962923888},{"$f":"(DS39*'Default-Data'!$F$19/pv_dollar_index)/'SouthAfrica-IO-Data'!$AT45","v":144.23698936197451},30028.350658910371,32424.51285118363,{"$f":"DJ39*'SouthAfrica-IO-Data'!AR45","v":0},{"$f":"DW39*'SouthAfrica-IO-Data'!$AR45","v":21133.58297949074},{"$f":"DX39*'SouthAfrica-IO-Data'!$AR45","v":22819.972388550708},{"$f":"DJ39*'SouthAfrica-IO-Data'!AS45","v":0},{"$f":"DW39*'SouthAfrica-IO-Data'!$AS45","v":11752.627516496894},{"$f":"DX39*'SouthAfrica-IO-Data'!$AS45","v":12690.44797939148},{"$f":"(EB39*'Default-Data'!$F$19/pv_dollar_index)/'SouthAfrica-IO-Data'!$AT45","v":0},{"$f":"(EC39*'Default-Data'!$F$19/pv_dollar_index)/'SouthAfrica-IO-Data'!$AT45","v":0.75688911062911823},{"$f":"(ED39*'Default-Data'!$F$19/pv_dollar_index)/'SouthAfrica-IO-Data'!$AT45","v":0.81728633627876168},null,"HRRM",0,0,null,0,141459.24832880701,{"$f":"EJ39*'Zambia-IO-Data'!BO43","v":0},{"$f":"EM39*'Zambia-IO-Data'!$BO43","v":0},{"$f":"EN39*'Zambia-IO-Data'!$BO43","v":0},{"$f":"EJ39*'Zambia-IO-Data'!$BN43","v":0},{"$f":"EM39*'Zambia-IO-Data'!$BN43","v":0},{"$f":"EN39*'Zambia-IO-Data'!$BN43","v":0},0,0,0,0,843.2697082046468,{"$f":"EK39*'Zambia-IO-Data'!BO43","v":0},{"$f":"EX39*'Zambia-IO-Data'!$BO43","v":0},{"$f":"EY39*'Zambia-IO-Data'!$BO43","v":0},{"$f":"EK39*'Zambia-IO-Data'!BN43","v":0},{"$f":"EX39*'Zambia-IO-Data'!$BN43","v":0},{"$f":"EY39*'Zambia-IO-Data'!$BN43","v":0},0,0,0,null,"TTL_C90T93: Other community, social and personal services",0,0,null,952310.55774021265,2386137.5184969371,{"$f":"FK39*CustomRegion1!C41","v":0},{"$f":"FN39*CustomRegion1!$C41","v":464119.12710303825},{"$f":"FO39*CustomRegion1!$C41","v":1162910.6211533966},{"$f":"FK39*CustomRegion1!D41","v":0},{"$f":"FN39*CustomRegion1!$D41","v":398911.31683244853},{"$f":"FO39*CustomRegion1!$D41","v":999524.00181894004},{"$f":"(FS39*'Default-Data'!$C$58/pv_dollar_index)/CustomRegion1!$E41","v":0},{"$f":"(FT39*'Default-Data'!$C$58/pv_dollar_index)/CustomRegion1!$E41","v":249.19918556371556},{"$f":"(FU39*'Default-Data'!$C$58/pv_dollar_index)/CustomRegion1!$E41","v":624.40085476262607},4206.3956653287969,14051.343506505855,{"$f":"FL39*CustomRegion1!C41","v":0},{"$f":"FY39*CustomRegion1!$C41","v":2050.0336456156119},{"$f":"FZ39*CustomRegion1!$C41","v":6848.078318421296},{"$f":"FL39*CustomRegion1!D41","v":0},{"$f":"FY39*CustomRegion1!$D41","v":1762.0080133904817},{"$f":"FZ39*CustomRegion1!$D41","v":5885.9369938586951},{"$f":"(GD39*'Default-Data'!$C$58/pv_dollar_index)/CustomRegion1!$E41","v":0},{"$f":"(GE39*'Default-Data'!$C$58/pv_dollar_index)/CustomRegion1!$E41","v":1.1007232519253805},{"$f":"(GF39*'Default-Data'!$C$58/pv_dollar_index)/CustomRegion1!$E41","v":3.6769343040849529},null,"C75 Public admin. and defence; compulsory social security",0,0,null,78288.374365010532,88080.910835254326,{"$f":"GL39*CustomRegion2!$C$13","v":0},{"$f":"GO39*CustomRegion2!C$13","v":48239.84481404601},{"$f":"GP39*CustomRegion2!D$13","v":9746.7385334100218},{"$f":"GL39*CustomRegion2!D45","v":0},{"$f":"GO39*CustomRegion2!$D45","v":57928.933627925086},{"$f":"GP39*CustomRegion2!$D45","v":65174.852320641221},{"$f":"(GT39*'Default-Data'!$C$59/pv_dollar_index)/CustomRegion2!$E45","v":0},{"$f":"(GU39*'Default-Data'!$C$59/pv_dollar_index)/CustomRegion2!$E45","v":43.27792482019683},{"$f":"(GV39*'Default-Data'!$C$59/pv_dollar_index)/CustomRegion2!$E45","v":48.691252924090321},313.63780257760271,754.98213166936557,{"$f":"GM39*CustomRegion2!C45","v":0},{"$f":"GZ39*CustomRegion2!$C45","v":235.26719561723945},{"$f":"HA39*CustomRegion2!$C45","v":566.33010242771456},{"$f":"GM39*CustomRegion2!D45","v":0},{"$f":"GZ39*CustomRegion2!$D45","v":232.0740926873348},{"$f":"HA39*CustomRegion2!$D45","v":558.64373414925217},{"$f":"(HE39*'Default-Data'!$C$59/pv_dollar_index)/CustomRegion2!$E45","v":0},{"$f":"(HF39*'Default-Data'!$C$59/pv_dollar_index)/CustomRegion2!$E45","v":0.17337942383935462},{"$f":"(HG39*'Default-Data'!$C$59/pv_dollar_index)/CustomRegion2!$E45","v":0.41735519737119209},null,"HRRM",0,0,null,0,141459.24832880701,{"$f":"HM39*CustomRegion3!D44","v":0},{"$f":"HP39*CustomRegion3!$D44","v":0},{"$f":"HQ39*CustomRegion3!$D44","v":0},{"$f":"HM39*CustomRegion3!E44","v":0},{"$f":"HP39*CustomRegion3!$E44","v":0},{"$f":"HQ39*CustomRegion3!$E44","v":0},0,0,0,0,843.2697082046468,{"$f":"HN39*CustomRegion3!D44","v":0},{"$f":"IA39*CustomRegion3!$D44","v":0},{"$f":"IB39*CustomRegion3!$D44","v":0},{"$f":"HN39*CustomRegion3!E44","v":0},{"$f":"IA39*CustomRegion3!$E44","v":0},{"$f":"IB39*CustomRegion3!$E44","v":0},0,0,0]
[null,null,null,null,null,null,null,null,null,null,null,null,null,null,null,null,null,null,null,null,null,null,null,null,null,null,null,null,null,39,"TTL_C95: Private households with employed persons",0,0,null,0,336323.20711144945,{"$f":"AF40*'Colombia-IO-Data'!AN46","v":0},{"$f":"AI40*'Colombia-IO-Data'!$AN46","v":0},{"$f":"AJ40*'Colombia-IO-Data'!$AN46","v":336323.20711144945},{"$f":"AK40*'Colombia-IO-Data'!$AO46","v":0},{"$f":"AL40*'Colombia-IO-Data'!$AO46","v":0},{"$f":"AM40*'Colombia-IO-Data'!$AO46","v":336323.20711144945},{"$f":"(AN40*'Default-Data'!$F$19/pv_dollar_index)/'Colombia-IO-Data'!$AP46","v":0},{"$f":"(AO40*'Default-Data'!$F$19/pv_dollar_index)/'Colombia-IO-Data'!$AP46","v":0},{"$f":"(AP40*'Default-Data'!$F$19/pv_dollar_index)/'Colombia-IO-Data'!$AP46","v":74.406396250003013},0,1715.4785960797199,{"$f":"'Colombia-IO-Data'!$AN46*Calculations!AG40","v":0},{"$f":"'Colombia-IO-Data'!$AN46*Calculations!AT40","v":0},{"$f":"'Colombia-IO-Data'!$AN46*Calculations!AU40","v":1715.4785960797199},{"$f":"AV40*'Colombia-IO-Data'!$AO46","v":0},{"$f":"AW40*'Colombia-IO-Data'!$AO46","v":0},{"$f":"AX40*'Colombia-IO-Data'!$AO46","v":1715.4785960797199},{"$f":"(AY40*'Default-Data'!$F$19/pv_dollar_index)/'Colombia-IO-Data'!$AP46","v":0},{"$f":"(AZ40*'Default-Data'!$F$19/pv_dollar_index)/'Colombia-IO-Data'!$AP46","v":0},{"$f":"(BA40*'Default-Data'!$F$19/pv_dollar_index)/'Colombia-IO-Data'!$AP46","v":0.37952355793279774},null,"DOM_C95: Private households with employed persons",0,0,null,0,281565.51793159731,{"$f":"BG40*'Mexico-IO-Data'!AQ46","v":0},{"$f":"BJ40*'Mexico-IO-Data'!$AQ46","v":0},{"$f":"BK40*'Mexico-IO-Data'!$AQ46","v":281565.51793159731},{"$f":"BG40*'Mexico-IO-Data'!AR46","v":0},{"$f":"BJ40*'Mexico-IO-Data'!$AR46","v":0},{"$f":"BK40*'Mexico-IO-Data'!$AR46","v":281565.51793159731},{"$f":"(Calculations!BO40*'Default-Data'!$F$19/pv_dollar_index)/'Mexico-IO-Data'!$AS46","v":0},{"$f":"(Calculations!BP40*'Default-Data'!$F$19/pv_dollar_index)/'Mexico-IO-Data'!$AS46","v":0},{"$f":"(Calculations!BQ40*'Default-Data'!$F$19/pv_dollar_index)/'Mexico-IO-Data'!$AS46","v":58.644503324403097},0,1758.3527599676756,{"$f":"BH40*'Mexico-IO-Data'!AQ46","v":0},{"$f":"BU40*'Mexico-IO-Data'!$AQ46","v":0},{"$f":"BV40*'Mexico-IO-Data'!$AQ46","v":1758.3527599676756},{"$f":"BH40*'Mexico-IO-Data'!AR46","v":0},{"$f":"BU40*'Mexico-IO-Data'!$AR46","v":0},{"$f":"BV40*'Mexico-IO-Data'!$AR46","v":1758.3527599676756},{"$f":"(BZ40*'Default-Data'!$F$19/pv_dollar_index)/'Mexico-IO-Data'!$AS46","v":0},{"$f":"(CA40*'Default-Data'!$F$19/pv_dollar_index)/'Mexico-IO-Data'!$AS46","v":0},{"$f":"(CB40*'Default-Data'!$F$19/pv_dollar_index)/'Mexico-IO-Data'!$AS46","v":0.36622994546672027},null,"TTL_C95: Private households with employed persons",0,0,null,0,0,{"$f":"CH40*'Philippines-IO-Data'!AN46","v":0},{"$f":"'Philippines-IO-Data'!$AN46*Calculations!CK40","v":0},{"$f":"'Philippines-IO-Data'!$AN46*Calculations!CL40","v":0},{"$f":"CH40*'Philippines-IO-Data'!AO46","v":0},{"$f":"'Philippines-IO-Data'!$AO46*Calculations!CK40","v":0},{"$f":"'Philippines-IO-Data'!$AO46*Calculations!CL40","v":0},{"$f":"(CP40*'Default-Data'!$F$19/pv_dollar_index)/'Philippines-IO-Data'!$AP46","v":0},{"$f":"(CQ40*'Default-Data'!$F$19/pv_dollar_index)/'Philippines-IO-Data'!$AP46","v":0},{"$f":"(CR40*'Default-Data'!$F$19/pv_dollar_index)/'Philippines-IO-Data'!$AP46","v":0},0,0,{"$f":"CI40*'Philippines-IO-Data'!AN46","v":0},{"$f":"'Philippines-IO-Data'!$AN46*Calculations!CV40","v":0},{"$f":"'Philippines-IO-Data'!$AN46*Calculations!CW40","v":0},{"$f":"'Philippines-IO-Data'!AO46*Calculations!CI40","v":0},{"$f":"'Philippines-IO-Data'!$AO46*Calculations!CV40","v":0},{"$f":"'Philippines-IO-Data'!$AO46*Calculations!CW40","v":0},{"$f":"(DA40*'Default-Data'!$F$19/pv_dollar_index)/'Philippines-IO-Data'!$AP46","v":0},{"$f":"(DB40*'Default-Data'!$F$19/pv_dollar_index)/'Philippines-IO-Data'!$AP46","v":0},{"$f":"(DC40*'Default-Data'!$F$19/pv_dollar_index)/'Philippines-IO-Data'!$AP46","v":0},null,"DOM_C95: Private households with employed persons",0,0,null,0,0,{"$f":"DI40*'SouthAfrica-IO-Data'!AR46","v":0},{"$f":"DL40*'SouthAfrica-IO-Data'!$AR46","v":0},{"$f":"DM40*'SouthAfrica-IO-Data'!$AR46","v":0},{"$f":"DI40*'SouthAfrica-IO-Data'!AS46","v":0},{"$f":"DL40*'SouthAfrica-IO-Data'!$AS46","v":0},{"$f":"DM40*'SouthAfrica-IO-Data'!$AS46","v":0},{"$f":"(DQ40*'Default-Data'!$F$19/pv_dollar_index)/'SouthAfrica-IO-Data'!$AT46","v":0},{"$f":"(DR40*'Default-Data'!$F$19/pv_dollar_index)/'SouthAfrica-IO-Data'!$AT46","v":0},{"$f":"(DS40*'Default-Data'!$F$19/pv_dollar_index)/'SouthAfrica-IO-Data'!$AT46","v":0},0,0,{"$f":"DJ40*'SouthAfrica-IO-Data'!AR46","v":0},{"$f":"DW40*'SouthAfrica-IO-Data'!$AR46","v":0},{"$f":"DX40*'SouthAfrica-IO-Data'!$AR46","v":0},{"$f":"DJ40*'SouthAfrica-IO-Data'!AS46","v":0},{"$f":"DW40*'SouthAfrica-IO-Data'!$AS46","v":0},{"$f":"DX40*'SouthAfrica-IO-Data'!$AS46","v":0},{"$f":"(EB40*'Default-Data'!$F$19/pv_dollar_index)/'SouthAfrica-IO-Data'!$AT46","v":0},{"$f":"(EC40*'Default-Data'!$F$19/pv_dollar_index)/'SouthAfrica-IO-Data'!$AT46","v":0},{"$f":"(ED40*'Default-Data'!$F$19/pv_dollar_index)/'SouthAfrica-IO-Data'!$AT46","v":0},null,"HRRN",0,0,null,0,132089.09848993746,{"$f":"EJ40*'Zambia-IO-Data'!BO44","v":0},{"$f":"EM40*'Zambia-IO-Data'!$BO44","v":0},{"$f":"EN40*'Zambia-IO-Data'!$BO44","v":0},{"$f":"EJ40*'Zambia-IO-Data'!$BN44","v":0},{"$f":"EM40*'Zambia-IO-Data'!$BN44","v":0},{"$f":"EN40*'Zambia-IO-Data'!$BN44","v":0},0,0,0,0,767.57711725921513,{"$f":"EK40*'Zambia-IO-Data'!BO44","v":0},{"$f":"EX40*'Zambia-IO-Data'!$BO44","v":0},{"$f":"EY40*'Zambia-IO-Data'!$BO44","v":0},{"$f":"EK40*'Zambia-IO-Data'!BN44","v":0},{"$f":"EX40*'Zambia-IO-Data'!$BN44","v":0},{"$f":"EY40*'Zambia-IO-Data'!$BN44","v":0},0,0,0,null,"TTL_C95: Private households with employed persons",0,0,null,0,0,{"$f":"FK40*CustomRegion1!C42","v":0},{"$f":"FN40*CustomRegion1!$C42","v":0},{"$f":"FO40*CustomRegion1!$C42","v":0},{"$f":"FK40*CustomRegion1!D42","v":0},{"$f":"FN40*CustomRegion1!$D42","v":0},{"$f":"FO40*CustomRegion1!$D42","v":0},{"$f":"(FS40*'Default-Data'!$C$58/pv_dollar_index)/CustomRegion1!$E42","v":0},{"$f":"(FT40*'Default-Data'!$C$58/pv_dollar_index)/CustomRegion1!$E42","v":0},{"$f":"(FU40*'Default-Data'!$C$58/pv_dollar_index)/CustomRegion1!$E42","v":0},0,0,{"$f":"FL40*CustomRegion1!C42","v":0},{"$f":"FY40*CustomRegion1!$C42","v":0},{"$f":"FZ40*CustomRegion1!$C42","v":0},{"$f":"FL40*CustomRegion1!D42","v":0},{"$f":"FY40*CustomRegion1!$D42","v":0},{"$f":"FZ40*CustomRegion1!$D42","v":0},{"$f":"(GD40*'Default-Data'!$C$58/pv_dollar_index)/CustomRegion1!$E42","v":0},{"$f":"(GE40*'Default-Data'!$C$58/pv_dollar_index)/CustomRegion1!$E42","v":0},{"$f":"(GF40*'Default-Data'!$C$58/pv_dollar_index)/CustomRegion1!$E42","v":0},null,"C80 Education",0,0,null,31763.833806061986,1429029.1839654907,{"$f":"GL40*CustomRegion2!$C$13","v":0},{"$f":"GO40*CustomRegion2!C$13","v":19572.285488513124},{"$f":"GP40*CustomRegion2!D$13","v":158131.5824353295},{"$f":"GL40*CustomRegion2!D46","v":0},{"$f":"GO40*CustomRegion2!$D46","v":21527.170081529937},{"$f":"GP40*CustomRegion2!$D46","v":968489.96511321876},{"$f":"(GT40*'Default-Data'!$C$59/pv_dollar_index)/CustomRegion2!$E46","v":0},{"$f":"(GU40*'Default-Data'!$C$59/pv_dollar_index)/CustomRegion2!$E46","v":5.6380762897227426},{"$f":"(GV40*'Default-Data'!$C$59/pv_dollar_index)/CustomRegion2!$E46","v":253.65249071099325},229.71590924129856,12248.868560702644,{"$f":"GM40*CustomRegion2!C46","v":0},{"$f":"GZ40*CustomRegion2!$C46","v":204.59972736940526},{"$f":"HA40*CustomRegion2!$C46","v":10909.62822897461},{"$f":"GM40*CustomRegion2!D46","v":0},{"$f":"GZ40*CustomRegion2!$D46","v":155.68440128681735},{"$f":"HA40*CustomRegion2!$D46","v":8301.3744002850126},{"$f":"(HE40*'Default-Data'!$C$59/pv_dollar_index)/CustomRegion2!$E46","v":0},{"$f":"(HF40*'Default-Data'!$C$59/pv_dollar_index)/CustomRegion2!$E46","v":4.0774543437457865E-2},{"$f":"(HG40*'Default-Data'!$C$59/pv_dollar_index)/CustomRegion2!$E46","v":2.1741725457223651},null,"HRRN",0,0,null,0,132089.09848993746,{"$f":"HM40*CustomRegion3!D45","v":0},{"$f":"HP40*CustomRegion3!$D45","v":0},{"$f":"HQ40*CustomRegion3!$D45","v":0},{"$f":"HM40*CustomRegion3!E45","v":0},{"$f":"HP40*CustomRegion3!$E45","v":0},{"$f":"HQ40*CustomRegion3!$E45","v":0},0,0,0,0,767.57711725921513,{"$f":"HN40*CustomRegion3!D45","v":0},{"$f":"IA40*CustomRegion3!$D45","v":0},{"$f":"IB40*CustomRegion3!$D45","v":0},{"$f":"HN40*CustomRegion3!E45","v":0},{"$f":"IA40*CustomRegion3!$E45","v":0},{"$f":"IB40*CustomRegion3!$E45","v":0},0,0,0]
[null,null,null,null,null,null,null,null,null,null,null,null,null,null,null,null,null,null,null,null,null,null,null,null,null,null,null,null,null,40,"HH",0,0,null,0,36671199.337206468,{"$f":"AF41*'Colombia-IO-Data'!AN47","v":0},{"$f":"AI41*'Colombia-IO-Data'!$AN47","v":0},{"$f":"AJ41*'Colombia-IO-Data'!$AN47","v":0},0,0,0,0,0,0,0,187048.22095343564,{"$f":"'Colombia-IO-Data'!$AN47*Calculations!AG41","v":0},{"$f":"'Colombia-IO-Data'!$AN47*Calculations!AT41","v":0},{"$f":"'Colombia-IO-Data'!$AN47*Calculations!AU41","v":0},{"$f":"AV41*'Colombia-IO-Data'!$AO47","v":0},{"$f":"AW41*'Colombia-IO-Data'!$AO47","v":0},{"$f":"AX41*'Colombia-IO-Data'!$AO47","v":0},0,0,0,null,"L",0,0,null,0,46794600.460192993,{"$f":"BG41*'Mexico-IO-Data'!AQ47","v":0},{"$f":"BJ41*'Mexico-IO-Data'!$AQ47","v":0},{"$f":"BK41*'Mexico-IO-Data'!$AQ47","v":0},{"$f":"BG41*'Mexico-IO-Data'!AR47","v":0},{"$f":"BJ41*'Mexico-IO-Data'!$AR47","v":0},{"$f":"BK41*'Mexico-IO-Data'!$AR47","v":0},0,0,0,0,292228.30790933076,{"$f":"BH41*'Mexico-IO-Data'!AQ47","v":0},{"$f":"BU41*'Mexico-IO-Data'!$AQ47","v":0},{"$f":"BV41*'Mexico-IO-Data'!$AQ47","v":0},{"$f":"BH41*'Mexico-IO-Data'!AR47","v":0},{"$f":"BU41*'Mexico-IO-Data'!$AR47","v":0},{"$f":"BV41*'Mexico-IO-Data'!$AR47","v":0},0,0,0,null,"LHH",0,0,null,0,33674546.764344111,{"$f":"CH41*'Philippines-IO-Data'!AN47","v":0},{"$f":"'Philippines-IO-Data'!$AN47*Calculations!CK41","v":0},{"$f":"'Philippines-IO-Data'!$AN47*Calculations!CL41","v":0},{"$f":"CH41*'Philippines-IO-Data'!AO47","v":0},{"$f":"'Philippines-IO-Data'!$AO47*Calculations!CK41","v":0},{"$f":"'Philippines-IO-Data'!$AO47*Calculations!CL41","v":0},0,0,0,0,197250.74050040875,{"$f":"CI41*'Philippines-IO-Data'!AN47","v":0},{"$f":"'Philippines-IO-Data'!$AN47*Calculations!CV41","v":0},{"$f":"'Philippines-IO-Data'!$AN47*Calculations!CW41","v":0},{"$f":"'Philippines-IO-Data'!AO47*Calculations!CI41","v":0},{"$f":"'Philippines-IO-Data'!$AO47*Calculations!CV41","v":0},{"$f":"'Philippines-IO-Data'!$AO47*Calculations!CW41","v":0},0,0,0,null,"L",0,0,null,0,70091270.335600257,{"$f":"DI41*'SouthAfrica-IO-Data'!AR47","v":0},{"$f":"DL41*'SouthAfrica-IO-Data'!$AR47","v":0},{"$f":"DM41*'SouthAfrica-IO-Data'!$AR47","v":0},{"$f":"DI41*'SouthAfrica-IO-Data'!AS47","v":0},{"$f":"DL41*'SouthAfrica-IO-Data'!$AS47","v":0},{"$f":"DM41*'SouthAfrica-IO-Data'!$AS47","v":0},0,0,0,0,397156.35906644224,{"$f":"DJ41*'SouthAfrica-IO-Data'!AR47","v":0},{"$f":"DW41*'SouthAfrica-IO-Data'!$AR47","v":0},{"$f":"DX41*'SouthAfrica-IO-Data'!$AR47","v":0},{"$f":"DJ41*'SouthAfrica-IO-Data'!AS47","v":0},{"$f":"DW41*'SouthAfrica-IO-Data'!$AS47","v":0},{"$f":"DX41*'SouthAfrica-IO-Data'!$AS47","v":0},0,0,0,null,"HRS",0,0,null,0,2444326.3626596928,{"$f":"EJ41*'Zambia-IO-Data'!BO45","v":0},{"$f":"EM41*'Zambia-IO-Data'!$BO45","v":0},{"$f":"EN41*'Zambia-IO-Data'!$BO45","v":0},{"$f":"EJ41*'Zambia-IO-Data'!$BN45","v":0},{"$f":"EM41*'Zambia-IO-Data'!$BN45","v":0},{"$f":"EN41*'Zambia-IO-Data'!$BN45","v":0},0,0,0,0,14526.235906081874,{"$f":"EK41*'Zambia-IO-Data'!BO45","v":0},{"$f":"EX41*'Zambia-IO-Data'!$BO45","v":0},{"$f":"EY41*'Zambia-IO-Data'!$BO45","v":0},{"$f":"EK41*'Zambia-IO-Data'!BN45","v":0},{"$f":"EX41*'Zambia-IO-Data'!$BN45","v":0},{"$f":"EY41*'Zambia-IO-Data'!$BN45","v":0},0,0,0,null,"LHH",0,0,null,0,43076342.952192284,{"$f":"FK41*CustomRegion1!AM43","v":0},{"$f":"FN41*CustomRegion1!$AM43","v":0},{"$f":"FO41*CustomRegion1!$AM43","v":0},{"$f":"FK41*CustomRegion1!AN43","v":0},{"$f":"FN41*CustomRegion1!$AN43","v":0},{"$f":"FO41*CustomRegion1!$AN43","v":0},0,0,0,0,253665.38480421761,{"$f":"FL41*CustomRegion1!AM43","v":0},{"$f":"FY41*CustomRegion1!$AM43","v":0},{"$f":"FZ41*CustomRegion1!$AM43","v":0},{"$f":"FL41*CustomRegion1!AN43","v":0},{"$f":"FY41*CustomRegion1!$AN43","v":0},{"$f":"FZ41*CustomRegion1!$AN43","v":0},0,0,0,null,"C85 Health and social work",0,0,null,7878.3169730331128,1306260.7336084256,{"$f":"GL41*CustomRegion2!$C$13","v":0},{"$f":"GO41*CustomRegion2!C$13","v":4854.4728544630179},{"$f":"GP41*CustomRegion2!D$13","v":144546.43697719119},{"$f":"GL41*CustomRegion2!D47","v":0},{"$f":"GO41*CustomRegion2!$D47","v":3408.8959477481485},{"$f":"GP41*CustomRegion2!$D47","v":565210.42968215828},{"$f":"(GT41*'Default-Data'!$C$59/pv_dollar_index)/CustomRegion2!$E47","v":0},{"$f":"(GU41*'Default-Data'!$C$59/pv_dollar_index)/CustomRegion2!$E47","v":1.6165963499380682},{"$f":"(GV41*'Default-Data'!$C$59/pv_dollar_index)/CustomRegion2!$E47","v":268.03901661319071},67.004593552625792,11196.563521240867,{"$f":"GM41*CustomRegion2!C47","v":0},{"$f":"GZ41*CustomRegion2!$C47","v":50.270774987702019},{"$f":"HA41*CustomRegion2!$C47","v":8400.3184792060383},{"$f":"GM41*CustomRegion2!D47","v":0},{"$f":"GZ41*CustomRegion2!$D47","v":28.992447019318192},{"$f":"HA41*CustomRegion2!$D47","v":4844.6794089281575},{"$f":"(HE41*'Default-Data'!$C$59/pv_dollar_index)/CustomRegion2!$E47","v":0},{"$f":"(HF41*'Default-Data'!$C$59/pv_dollar_index)/CustomRegion2!$E47","v":1.3749050937786306E-2},{"$f":"(HG41*'Default-Data'!$C$59/pv_dollar_index)/CustomRegion2!$E47","v":2.2974860978866118},null,"HRS",0,0,null,0,2444326.3626596928,{"$f":"HM41*CustomRegion3!D46","v":0},{"$f":"HP41*CustomRegion3!$D46","v":0},{"$f":"HQ41*CustomRegion3!$D46","v":0},{"$f":"HM41*CustomRegion3!E46","v":0},{"$f":"HP41*CustomRegion3!$E46","v":0},{"$f":"HQ41*CustomRegion3!$E46","v":0},0,0,0,0,14526.235906081874,{"$f":"HN41*CustomRegion3!D46","v":0},{"$f":"IA41*CustomRegion3!$D46","v":0},{"$f":"IB41*CustomRegion3!$D46","v":0},{"$f":"HN41*CustomRegion3!E46","v":0},{"$f":"IA41*CustomRegion3!$E46","v":0},{"$f":"IB41*CustomRegion3!$E46","v":0},0,0,0]
[null,null,null,null,null,null,null,null,null,null,null,null,null,null,null,null,null,null,null,null,null,null,null,null,null,null,null,null,null,41,"Total",{"$f":"SUM(AF7:AF41)","v":124729406.11168438},{"$f":"SUM(AG7:AG41)","v":675746.53700843919},null,80454522.335280746,89884829.849135131,65227256.077883154,45058559.412778124,29227800.806736954,{"$f":"SUM(AN7:AN41)","v":14062903.406767502},{"$f":"SUM(AO7:AO41)","v":11190664.926739069},11417631.003699899,{"$f":"SUM(AQ7:AQ41)","v":3199.0977714534183},{"$f":"SUM(AR7:AR41)","v":2164.6153049608351},{"$f":"SUM(AS7:AS41)","v":1990.1629003743178},{"$f":"SUM(AT7:AT41)","v":432827.29584225989},{"$f":"SUM(AU7:AU41)","v":458474.16549926682},{"$f":"SUM(AV7:AV41)","v":335550.53434672835},{"$f":"SUM(AW7:AW41)","v":233472.76185060109},{"$f":"SUM(AX7:AX41)","v":149081.79285357412},{"$f":"SUM(AY7:AY41)","v":66174.275009630102},{"$f":"SUM(AZ7:AZ41)","v":62636.211554299567},{"$f":"SUM(BA7:BA41)","v":58237.734389505931},{"$f":"SUM(BB7:BB41)","v":19.659956944938486},{"$f":"SUM(BC7:BC41)","v":13.519092932761801},{"$f":"SUM(BD7:BD41)","v":10.151193215675818},null,null,null,null,null,null,null,null,null,null,null,null,null,null,null,null,null,null,null,null,null,null,null,null,null,null,null,null,null,null,null,null,null,null,null,null,null,null,null,null,null,null,null,null,null,null,null,null,null,null,null,null,null,null,null,null,null,null,null,null,null,null,null,null,null,null,null,null,null,null,null,null,null,null,null,null,null,null,null,null,null,null,"HRM",0,0,null,0,292255.39975821791,{"$f":"EJ42*'Zambia-IO-Data'!BO46","v":0},{"$f":"EM42*'Zambia-IO-Data'!$BO46","v":0},{"$f":"EN42*'Zambia-IO-Data'!$BO46","v":0},{"$f":"EJ42*'Zambia-IO-Data'!$BN46","v":0},{"$f":"EM42*'Zambia-IO-Data'!$BN46","v":0},{"$f":"EN42*'Zambia-IO-Data'!$BN46","v":0},0,0,0,0,1692.1509486013244,{"$f":"EK42*'Zambia-IO-Data'!BO46","v":0},{"$f":"EX42*'Zambia-IO-Data'!$BO46","v":0},{"$f":"EY42*'Zambia-IO-Data'!$BO46","v":0},{"$f":"EK42*'Zambia-IO-Data'!BN46","v":0},{"$f":"EX42*'Zambia-IO-Data'!$BN46","v":0},{"$f":"EY42*'Zambia-IO-Data'!$BN46","v":0},0,0,0,null,null,null,null,null,null,null,null,null,null,null,null,null,null,null,null,null,null,null,null,null,null,null,null,null,null,null,null,"C90T93 Other community, social and personal services",0,0,null,108185.28942870766,1764331.4100195367,{"$f":"GL42*CustomRegion2!$C$13","v":0},{"$f":"GO42*CustomRegion2!C$13","v":66661.76958626401},{"$f":"GP42*CustomRegion2!D$13","v":195235.00355153202},{"$f":"GL42*CustomRegion2!D48","v":0},{"$f":"GO42*CustomRegion2!$D48","v":14792.713521071093},{"$f":"GP42*CustomRegion2!$D48","v":241245.82225983142},{"$f":"(GT42*'Default-Data'!$C$59/pv_dollar_index)/CustomRegion2!$E48","v":0},{"$f":"(GU42*'Default-Data'!$C$59/pv_dollar_index)/CustomRegion2!$E48","v":11.051436709737938},{"$f":"(GV42*'Default-Data'!$C$59/pv_dollar_index)/CustomRegion2!$E48","v":180.23149927128247},862.01354541981141,15122.898665287408,{"$f":"GM42*CustomRegion2!C48","v":0},{"$f":"GZ42*CustomRegion2!$C48","v":607.54731511320722},{"$f":"HA42*CustomRegion2!$C48","v":10658.62193192087},{"$f":"GM42*CustomRegion2!D48","v":0},{"$f":"GZ42*CustomRegion2!$D48","v":117.86740596632704},{"$f":"HA42*CustomRegion2!$D48","v":2067.8292653753579},{"$f":"(HE42*'Default-Data'!$C$59/pv_dollar_index)/CustomRegion2!$E48","v":0},{"$f":"(HF42*'Default-Data'!$C$59/pv_dollar_index)/CustomRegion2!$E48","v":8.8057148901206722E-2},{"$f":"(HG42*'Default-Data'!$C$59/pv_dollar_index)/CustomRegion2!$E48","v":1.5448473480060332},null,"HRM",0,0,null,0,292255.39975821791,{"$f":"HM42*CustomRegion3!D47","v":0},{"$f":"HP42*CustomRegion3!$D47","v":0},{"$f":"HQ42*CustomRegion3!$D47","v":0},{"$f":"HM42*CustomRegion3!E47","v":0},{"$f":"HP42*CustomRegion3!$E47","v":0},{"$f":"HQ42*CustomRegion3!$E47","v":0},0,0,0,0,1692.1509486013244,{"$f":"HN42*CustomRegion3!D47","v":0},{"$f":"IA42*CustomRegion3!$D47","v":0},{"$f":"IB42*CustomRegion3!$D47","v":0},{"$f":"HN42*CustomRegion3!E47","v":0},{"$f":"IA42*CustomRegion3!$E47","v":0},{"$f":"IB42*CustomRegion3!$E47","v":0},0,0,0]
[null,null,null,null,null,null,null,null,null,null,null,null,null,null,null,null,null,null,null,null,null,null,null,null,null,null,null,null,null,42,null,null,null,null,null,null,null,null,null,null,null,null,null,null,null,null,null,null,null,null,null,null,null,null,null,null,null,null,null,null,null,null,null,null,null,null,null,null,null,null,null,null,null,null,null,null,null,null,null,null,null,null,null,null,null,null,null,null,null,null,null,null,null,null,null,null,null,null,null,null,null,null,null,null,null,null,null,null,null,null,null,null,null,null,null,null,null,null,null,null,null,null,null,null,null,null,null,null,null,null,null,null,null,null,null,null,null,null,"HRL",0,0,null,0,339378.66535912623,{"$f":"EJ43*'Zambia-IO-Data'!BO47","v":0},{"$f":"EM43*'Zambia-IO-Data'!$BO47","v":0},{"$f":"EN43*'Zambia-IO-Data'!$BO47","v":0},{"$f":"EJ43*'Zambia-IO-Data'!$BN47","v":0},{"$f":"EM43*'Zambia-IO-Data'!$BN47","v":0},{"$f":"EN43*'Zambia-IO-Data'!$BN47","v":0},0,0,0,0,1955.5793349762675,{"$f":"EK43*'Zambia-IO-Data'!BO47","v":0},{"$f":"EX43*'Zambia-IO-Data'!$BO47","v":0},{"$f":"EY43*'Zambia-IO-Data'!$BO47","v":0},{"$f":"EK43*'Zambia-IO-Data'!BN47","v":0},{"$f":"EX43*'Zambia-IO-Data'!$BN47","v":0},{"$f":"EY43*'Zambia-IO-Data'!$BN47","v":0},0,0,0,null,null,null,null,null,null,null,null,null,null,null,null,null,null,null,null,null,null,null,null,null,null,null,null,null,null,null,null,"C95 Private households with employed persons",0,0,null,0,389938.32048428373,{"$f":"GL43*CustomRegion2!$C$13","v":0},{"$f":"GO43*CustomRegion2!C$13","v":0},{"$f":"GP43*CustomRegion2!D$13","v":43149.268302027551},{"$f":"GL43*CustomRegion2!D49","v":0},{"$f":"GO43*CustomRegion2!$D49","v":0},{"$f":"GP43*CustomRegion2!$D49","v":389938.32048428373},{"$f":"(GT43*'Default-Data'!$C$59/pv_dollar_index)/CustomRegion2!$E49","v":0},{"$f":"(GU43*'Default-Data'!$C$59/pv_dollar_index)/CustomRegion2!$E49","v":0},{"$f":"(GV43*'Default-Data'!$C$59/pv_dollar_index)/CustomRegion2!$E49","v":81.216404977217977},0,3342.3412817498324,{"$f":"GM43*CustomRegion2!C49","v":0},{"$f":"GZ43*CustomRegion2!$C49","v":0},{"$f":"HA43*CustomRegion2!$C49","v":3342.3412817498324},{"$f":"GM43*CustomRegion2!D49","v":0},{"$f":"GZ43*CustomRegion2!$D49","v":0},{"$f":"HA43*CustomRegion2!$D49","v":3342.3412817498324},{"$f":"(HE43*'Default-Data'!$C$59/pv_dollar_index)/CustomRegion2!$E49","v":0},{"$f":"(HF43*'Default-Data'!$C$59/pv_dollar_index)/CustomRegion2!$E49","v":0},{"$f":"(HG43*'Default-Data'!$C$59/pv_dollar_index)/CustomRegion2!$E49","v":0.69614328433670569},null,"HRL",0,0,null,0,339378.66535912623,{"$f":"HM43*CustomRegion3!D48","v":0},{"$f":"HP43*CustomRegion3!$D48","v":0},{"$f":"HQ43*CustomRegion3!$D48","v":0},{"$f":"HM43*CustomRegion3!E48","v":0},{"$f":"HP43*CustomRegion3!$E48","v":0},{"$f":"HQ43*CustomRegion3!$E48","v":0},0,0,0,0,1955.5793349762675,{"$f":"HN43*CustomRegion3!D48","v":0},{"$f":"IA43*CustomRegion3!$D48","v":0},{"$f":"IB43*CustomRegion3!$D48","v":0},{"$f":"HN43*CustomRegion3!E48","v":0},{"$f":"IA43*CustomRegion3!$E48","v":0},{"$f":"IB43*CustomRegion3!$E48","v":0},0,0,0]
[null,null,null,null,null,null,null,null,null,null,null,null,null,null,null,null,null,null,null,null,null,null,null,null,null,null,null,null,null,43,null,null,null,null,null,null,null,null,null,null,null,null,null,null,null,null,null,null,null,null,null,null,null,null,null,null,null,null,null,null,null,null,null,null,null,null,null,null,null,null,null,null,null,null,null,null,null,null,null,null,null,null,null,null,null,null,null,null,null,null,null,null,null,null,null,null,null,null,null,null,null,null,null,null,null,null,null,null,null,null,null,null,null,null,null,null,null,null,null,null,null,null,null,null,null,null,null,null,null,null,null,null,null,null,null,null,null,null,"HRN",0,0,null,0,253265.95442062806,{"$f":"EJ44*'Zambia-IO-Data'!BO48","v":0},{"$f":"EM44*'Zambia-IO-Data'!$BO48","v":0},{"$f":"EN44*'Zambia-IO-Data'!$BO48","v":0},{"$f":"EJ44*'Zambia-IO-Data'!$BN48","v":0},{"$f":"EM44*'Zambia-IO-Data'!$BN48","v":0},{"$f":"EN44*'Zambia-IO-Data'!$BN48","v":0},0,0,0,0,1468.8754367313172,{"$f":"EK44*'Zambia-IO-Data'!BO48","v":0},{"$f":"EX44*'Zambia-IO-Data'!$BO48","v":0},{"$f":"EY44*'Zambia-IO-Data'!$BO48","v":0},{"$f":"EK44*'Zambia-IO-Data'!BN48","v":0},{"$f":"EX44*'Zambia-IO-Data'!$BN48","v":0},{"$f":"EY44*'Zambia-IO-Data'!$BN48","v":0},0,0,0,null,null,null,null,null,null,null,null,null,null,null,null,null,null,null,null,null,null,null,null,null,null,null,null,null,null,null,null,"L",0,0,null,0,50727926.632483095,{"$f":"GL44*CustomRegion2!$C$13","v":0},{"$f":"GO44*CustomRegion2!C$13","v":0},{"$f":"GP44*CustomRegion2!D$13","v":5613382.4291803697},{"$f":"GL44*CustomRegion2!D50","v":0},{"$f":"GO44*CustomRegion2!$D50","v":0},{"$f":"GP44*CustomRegion2!$D50","v":0},0,0,0,0,434812.46754807897,{"$f":"GM44*CustomRegion2!C50","v":0},{"$f":"GZ44*CustomRegion2!$C50","v":0},{"$f":"HA44*CustomRegion2!$C50","v":0},{"$f":"GM44*CustomRegion2!D50","v":0},{"$f":"GZ44*CustomRegion2!$D50","v":0},{"$f":"HA44*CustomRegion2!$D50","v":0},0,0,0,null,"HRN",0,0,null,0,253265.95442062806,{"$f":"HM44*CustomRegion3!D49","v":0},{"$f":"HP44*CustomRegion3!$D49","v":0},{"$f":"HQ44*CustomRegion3!$D49","v":0},{"$f":"HM44*CustomRegion3!E49","v":0},{"$f":"HP44*CustomRegion3!$E49","v":0},{"$f":"HQ44*CustomRegion3!$E49","v":0},0,0,0,0,1468.8754367313172,{"$f":"HN44*CustomRegion3!D49","v":0},{"$f":"IA44*CustomRegion3!$D49","v":0},{"$f":"IB44*CustomRegion3!$D49","v":0},{"$f":"HN44*CustomRegion3!E49","v":0},{"$f":"IA44*CustomRegion3!$E49","v":0},{"$f":"IB44*CustomRegion3!$E49","v":0},0,0,0]
[null,null,null,null,null,null,null,null,null,null,null,null,null,null,null,null,null,null,null,null,null,null,null,null,null,null,null,null,null,44,null,null,null,null,null,null,null,null,null,null,null,null,null,null,null,null,null,null,null,null,null,null,null,null,null,null,null,null,null,null,null,null,null,null,null,null,null,null,null,null,null,null,null,null,null,null,null,null,null,null,null,null,null,null,null,null,null,null,null,null,null,null,null,null,null,null,null,null,null,null,null,null,null,null,null,null,null,null,null,null,null,null,null,null,null,null,null,null,null,null,null,null,null,null,null,null,null,null,null,null,null,null,null,null,null,null,null,null,"HUSE",0,0,null,0,1045288.4655559841,{"$f":"EJ45*'Zambia-IO-Data'!BO49","v":0},{"$f":"EM45*'Zambia-IO-Data'!$BO49","v":0},{"$f":"EN45*'Zambia-IO-Data'!$BO49","v":0},{"$f":"EJ45*'Zambia-IO-Data'!$BN49","v":0},{"$f":"EM45*'Zambia-IO-Data'!$BN49","v":0},{"$f":"EN45*'Zambia-IO-Data'!$BN49","v":0},0,0,0,0,6024.1548749926242,{"$f":"EK45*'Zambia-IO-Data'!BO49","v":0},{"$f":"EX45*'Zambia-IO-Data'!$BO49","v":0},{"$f":"EY45*'Zambia-IO-Data'!$BO49","v":0},{"$f":"EK45*'Zambia-IO-Data'!BN49","v":0},{"$f":"EX45*'Zambia-IO-Data'!$BN49","v":0},{"$f":"EY45*'Zambia-IO-Data'!$BN49","v":0},0,0,0,null,null,null,null,null,null,null,null,null,null,null,null,null,null,null,null,null,null,null,null,null,null,null,null,null,null,null,null,"HH",0,0,null,0,50727926.632483095,{"$f":"GL45*CustomRegion2!$C$13","v":0},{"$f":"GO45*CustomRegion2!C$13","v":0},{"$f":"GP45*CustomRegion2!D$13","v":5613382.4291803697},{"$f":"GL45*CustomRegion2!D51","v":0},{"$f":"GO45*CustomRegion2!$D51","v":0},{"$f":"GP45*CustomRegion2!$D51","v":0},0,0,0,0,434812.46754807897,{"$f":"GM45*CustomRegion2!C51","v":0},{"$f":"GZ45*CustomRegion2!$C51","v":0},{"$f":"HA45*CustomRegion2!$C51","v":0},{"$f":"GM45*CustomRegion2!D51","v":0},{"$f":"GZ45*CustomRegion2!$D51","v":0},{"$f":"HA45*CustomRegion2!$D51","v":0},0,0,0,null,"HUSE",0,0,null,0,1045288.4655559841,{"$f":"HM45*CustomRegion3!D50","v":0},{"$f":"HP45*CustomRegion3!$D50","v":0},{"$f":"HQ45*CustomRegion3!$D50","v":0},{"$f":"HM45*CustomRegion3!E50","v":0},{"$f":"HP45*CustomRegion3!$E50","v":0},{"$f":"HQ45*CustomRegion3!$E50","v":0},0,0,0,0,6024.1548749926242,{"$f":"HN45*CustomRegion3!D50","v":0},{"$f":"IA45*CustomRegion3!$D50","v":0},{"$f":"IB45*CustomRegion3!$D50","v":0},{"$f":"HN45*CustomRegion3!E50","v":0},{"$f":"IA45*CustomRegion3!$E50","v":0},{"$f":"IB45*CustomRegion3!$E50","v":0},0,0,0]
[null,null,null,null,null,null,null,null,null,null,null,null,null,null,null,null,null,null,null,null,null,null,null,null,null,null,null,null,null,45,null,null,null,null,null,null,null,null,null,null,null,null,null,null,null,null,null,null,null,null,null,null,null,null,null,null,null,null,null,null,null,null,null,null,null,null,null,null,null,null,null,null,null,null,null,null,null,null,null,null,null,null,null,null,null,null,null,null,null,null,null,null,null,null,null,null,null,null,null,null,null,null,null,null,null,null,null,null,null,null,null,null,null,null,null,null,null,null,null,null,null,null,null,null,null,null,null,null,null,null,null,null,null,null,null,null,null,null,"HUPR",0,0,null,0,2530787.7277856725,{"$f":"EJ46*'Zambia-IO-Data'!BO50","v":0},{"$f":"EM46*'Zambia-IO-Data'!$BO50","v":0},{"$f":"EN46*'Zambia-IO-Data'!$BO50","v":0},{"$f":"EJ46*'Zambia-IO-Data'!$BN50","v":0},{"$f":"EM46*'Zambia-IO-Data'!$BN50","v":0},{"$f":"EN46*'Zambia-IO-Data'!$BN50","v":0},0,0,0,0,14556.798533702822,{"$f":"EK46*'Zambia-IO-Data'!BO50","v":0},{"$f":"EX46*'Zambia-IO-Data'!$BO50","v":0},{"$f":"EY46*'Zambia-IO-Data'!$BO50","v":0},{"$f":"EK46*'Zambia-IO-Data'!BN50","v":0},{"$f":"EX46*'Zambia-IO-Data'!$BN50","v":0},{"$f":"EY46*'Zambia-IO-Data'!$BN50","v":0},0,0,0,null,null,null,null,null,null,null,null,null,null,null,null,null,null,null,null,null,null,null,null,null,null,null,null,null,null,null,null,null,null,null,null,null,null,null,null,null,null,null,null,null,null,null,null,null,null,null,null,null,null,null,null,null,null,null,"HUPR",0,0,null,0,2530787.7277856725,{"$f":"HM46*CustomRegion3!D51","v":0},{"$f":"HP46*CustomRegion3!$D51","v":0},{"$f":"HQ46*CustomRegion3!$D51","v":0},{"$f":"HM46*CustomRegion3!E51","v":0},{"$f":"HP46*CustomRegion3!$E51","v":0},{"$f":"HQ46*CustomRegion3!$E51","v":0},0,0,0,0,14556.798533702822,{"$f":"HN46*CustomRegion3!D51","v":0},{"$f":"IA46*CustomRegion3!$D51","v":0},{"$f":"IB46*CustomRegion3!$D51","v":0},{"$f":"HN46*CustomRegion3!E51","v":0},{"$f":"IA46*CustomRegion3!$E51","v":0},{"$f":"IB46*CustomRegion3!$E51","v":0},0,0,0]
[null,null,{"$f":"wind_country","v":"Colombia"},null,null,null,"Construction",null,null,null,null,null,null,null,null,null,null,"O&M",null,null,null,null,null,null,null,null,null,null,null,46,null,null,null,null,null,null,null,null,null,null,null,null,null,null,null,null,null,null,null,null,null,null,null,null,null,null,null,null,null,null,null,null,null,null,null,null,null,null,null,null,null,null,null,null,null,null,null,null,null,null,null,null,null,null,null,null,null,null,null,null,null,null,null,null,null,null,null,null,null,null,null,null,null,null,null,null,null,null,null,null,null,null,null,null,null,null,null,null,null,null,null,null,null,null,null,null,null,null,null,null,null,null,null,null,null,null,null,null,"HUPU",0,0,null,0,4260048.0537186079,{"$f":"EJ47*'Zambia-IO-Data'!BO51","v":0},{"$f":"EM47*'Zambia-IO-Data'!$BO51","v":0},{"$f":"EN47*'Zambia-IO-Data'!$BO51","v":0},{"$f":"EJ47*'Zambia-IO-Data'!$BN51","v":0},{"$f":"EM47*'Zambia-IO-Data'!$BN51","v":0},{"$f":"EN47*'Zambia-IO-Data'!$BN51","v":0},0,0,0,0,24817.131653676526,{"$f":"EK47*'Zambia-IO-Data'!BO51","v":0},{"$f":"EX47*'Zambia-IO-Data'!$BO51","v":0},{"$f":"EY47*'Zambia-IO-Data'!$BO51","v":0},{"$f":"EK47*'Zambia-IO-Data'!BN51","v":0},{"$f":"EX47*'Zambia-IO-Data'!$BN51","v":0},{"$f":"EY47*'Zambia-IO-Data'!$BN51","v":0},0,0,0,null,null,null,null,null,null,null,null,null,null,null,null,null,null,null,null,null,null,null,null,null,null,null,null,null,null,null,null,null,null,null,null,null,null,null,null,null,null,null,null,null,null,null,null,null,null,null,null,null,null,null,null,null,null,null,"HUPU",0,0,null,0,4260048.0537186079,{"$f":"HM47*CustomRegion3!D52","v":0},{"$f":"HP47*CustomRegion3!$D52","v":0},{"$f":"HQ47*CustomRegion3!$D52","v":0},{"$f":"HM47*CustomRegion3!E52","v":0},{"$f":"HP47*CustomRegion3!$E52","v":0},{"$f":"HQ47*CustomRegion3!$E52","v":0},0,0,0,0,24817.131653676526,{"$f":"HN47*CustomRegion3!D52","v":0},{"$f":"IA47*CustomRegion3!$D52","v":0},{"$f":"IB47*CustomRegion3!$D52","v":0},{"$f":"HN47*CustomRegion3!E52","v":0},{"$f":"IA47*CustomRegion3!$E52","v":0},{"$f":"IB47*CustomRegion3!$E52","v":0},0,0,0]
[null,null,"Wind",null,null,null,"Output",null,"Value Added",null,null,"Earnings",null,null,"Jobs",null,null,"Output",null,"Value Added",null,null,"Earnings",null,null,"Jobs",null,null,null,47,null,null,null,null,null,null,null,null,null,null,null,null,null,null,null,null,null,null,null,null,null,null,null,null,null,null,null,null,null,null,null,null,null,null,null,null,null,null,null,null,null,null,null,null,null,null,null,null,null,null,null,null,null,null,null,null,null,null,null,null,null,null,null,null,null,null,null,null,null,null,null,null,null,null,null,null,null,null,null,null,null,null,null,null,null,null,null,null,null,null,null,null,null,null,null,null,null,null,null,null,null,null,null,null,null,null,null,null,"HUEM",0,0,null,0,282394.46442780818,{"$f":"EJ48*'Zambia-IO-Data'!BO52","v":0},{"$f":"EM48*'Zambia-IO-Data'!$BO52","v":0},{"$f":"EN48*'Zambia-IO-Data'!$BO52","v":0},{"$f":"EJ48*'Zambia-IO-Data'!$BN52","v":0},{"$f":"EM48*'Zambia-IO-Data'!$BN52","v":0},{"$f":"EN48*'Zambia-IO-Data'!$BN52","v":0},0,0,0,0,1588.4213630316062,{"$f":"EK48*'Zambia-IO-Data'!BO52","v":0},{"$f":"EX48*'Zambia-IO-Data'!$BO52","v":0},{"$f":"EY48*'Zambia-IO-Data'!$BO52","v":0},{"$f":"EK48*'Zambia-IO-Data'!BN52","v":0},{"$f":"EX48*'Zambia-IO-Data'!$BN52","v":0},{"$f":"EY48*'Zambia-IO-Data'!$BN52","v":0},0,0,0,null,null,null,null,null,null,null,null,null,null,null,null,null,null,null,null,null,null,null,null,null,null,null,null,null,null,null,null,null,null,null,null,null,null,null,null,null,null,null,null,null,null,null,null,null,null,null,null,null,null,null,null,null,null,null,"HUEM",0,0,null,0,282394.46442780818,{"$f":"HM48*CustomRegion3!D53","v":0},{"$f":"HP48*CustomRegion3!$D53","v":0},{"$f":"HQ48*CustomRegion3!$D53","v":0},{"$f":"HM48*CustomRegion3!E53","v":0},{"$f":"HP48*CustomRegion3!$E53","v":0},{"$f":"HQ48*CustomRegion3!$E53","v":0},0,0,0,0,1588.4213630316062,{"$f":"HN48*CustomRegion3!D53","v":0},{"$f":"IA48*CustomRegion3!$D53","v":0},{"$f":"IB48*CustomRegion3!$D53","v":0},{"$f":"HN48*CustomRegion3!E53","v":0},{"$f":"IA48*CustomRegion3!$E53","v":0},{"$f":"IB48*CustomRegion3!$E53","v":0},0,0,0]
[null,null,null,"Construction","O&M",null,"Indirect","Induced","Direct","Indirect","Induced","Direct","Indirect","Induced","Direct","Indirect","Induced","Indirect","Induced","Direct","Indirect","Induced","Direct","Indirect","Induced","Direct","Indirect","Induced",null,48]
[null,178,"Agriculture",{"$f":"HLOOKUP(wind_country&D$1,$AF$2:$IK$255,$B50,FALSE)","v":0},0,0,1891625.8091335304,7533247.688407273,0,1309574.3029049968,5215274.3647939069,0,345737.67056398891,{"$f":"HLOOKUP(wind_country&N$1,$AF$2:$IK$255,$B50,FALSE)","v":1376872.4739299803},0,70.634243673640555,281.29519607293929,2750.706792689045,39431.731789617275,0,1904.316864962753,27298.624506703189,0,502.75427323783072,7207.0464620542216,0,0.10271275266567323,1.4724003755146773,null,49,"Agriculture",{"$f":"AF7","v":0},{"$f":"AG7","v":0},null,{"$f":"AI7","v":696534.06308893429},3236582.4087011679,0,482211.17819126049,2240689.0047725118,0,127307.45334414033,591559.10073213372,0,28.164838520833687,130.87345720922795,5490.7791993092333,16508.785980787528,0,3801.2715345823767,11429.047853021488,0,1003.5648703799071,3017.3563826829813,0,0.22202346977300885,0.66754422499006505,null,"Agriculture",{"$f":"BG7","v":0},{"$f":"BH7","v":0},null,{"$f":"BJ7","v":359357.0479434075},2446873.0159566421,0,219163.04380619823,1492287.7985928976,0,36103.767803687711,245831.64771300071,0,37.187727467275664,253.21236187012636,2633.1678391150249,15280.514292034228,0,1605.9044389854869,9319.2106355841752,0,264.54825582415856,1535.1977735731398,0,0.27249090712706892,1.5812897070032383,null,"Agriculture",{"$f":"CH7","v":0},{"$f":"CI7","v":0},null,{"$f":"CK7","v":566390.5307852166},6197425.2141028112,0,399733.96517276019,4373874.9503112631,0,115061.7206111196,1259001.2892779422,0,71.878850902327756,786.49585176724781,3762.0755214468081,36301.801512947364,0,2655.1103588940223,25620.243053088328,0,764.2622166838371,7374.6779233267707,0,0.4774332387133724,4.6069480978391137,null,"Agriculture",{"$f":"DI7","v":0},{"$f":"DJ7","v":0},null,{"$f":"DL7","v":681618.7195038764},3877713.8132426352,0,275270.95180812536,1566010.3539816954,0,84441.806457318497,480387.56851196324,0,6.3539051768306978,36.147225959644679,4770.2359319574725,21972.189863234362,0,1926.4544059104082,8873.4441175026586,0,590.95697902089148,2722.0077013511946,0,4.446712790521596E-2,0.20482009505244791,null,"Agriculture",{"$f":"SUM(EJ7:EJ19)","v":0},{"$f":"SUM(EK7:EK19)","v":0},{"$f":"SUM(EL7:EL19)","v":0},1207218.398936138,6135580.5608703149,0,338584.633667477,2287131.8740011062,0,215512.12077848564,1831792.3653219915,0,2259.8115061567387,19207.761721669009,8946.5532955942508,36162.273746799954,0,2502.9555670407144,13489.0298710931,0,1589.4337076030245,10804.320693210222,0,16.666443482343794,113.29167069827845,null,"Agriculture",{"$f":"FK7","v":0},{"$f":"FL7","v":0},null,{"$f":"FN7","v":1269983.7885813266},8245490.6156780161,0,896299.68709213531,5819311.022079302,0,257996.05028673942,1675063.9107745399,0,161.1696707945618,1046.4094266533812,8669.2696022030341,48555.55060110044,0,6118.3959209841141,34268.409724322817,0,1761.1542260218755,9864.0158931285623,0,1.1001898924845135,6.1620330715953138,null,"Agriculture",{"$f":"GL7","v":0},{"$f":"GM7","v":0},0,1841983.3756517586,4298815.4846732765,0,1134996.0056292389,475692.52106001705,0,203827.70994438734,475692.52106001705,0,209.94732098062531,489.9744516303453,17037.532155341305,36847.131205787751,0,10498.211437575976,22704.519101681744,0,1885.3162347886603,4077.3801061253453,0,1.9419199322955358,{"$f":"HJ7","v":4.199797123434668},null,"Agriculture",{"$f":"SUM(HM7:HM19)","v":0},{"$f":"SUM(HN7:HN19)","v":0},{"$f":"SUM(HO7:HO19)","v":0},1207218.398936138,6135580.5608703149,0,338584.633667477,2287131.8740011062,0,215512.12077848564,1831792.3653219915,0,2259.8115061567387,19207.761721669009,8946.5532955942508,36162.273746799954,0,2502.9555670407144,13489.0298710931,0,1589.4337076030245,10804.320693210222,0,0,0]
[null,179,"Mining and Extraction",0,0,0,21525162.959824502,1902957.6938946806,0,17626595.467939164,1558300.1868784651,0,1461997.5065688919,129249.63257062349,0,139.40605026287398,12.324358074238127,182850.99834707959,9960.7659931473027,0,149733.62035810866,8156.7044597856211,0,12419.311489349229,676.53913109405323,0,1.1842203245460348,6.4510129251478601E-2,null,50,"Mining and Extraction",{"$f":"AF8","v":0},{"$f":"AG8","v":0},null,{"$f":"AI8","v":10976225.064841257},817586.20601843484,0,8988246.8877991047,669507.6520699017,0,745509.50932581117,55530.775624558497,0,76.979133018667838,5.7339455901755674,60492.109189516297,4170.2493530572319,0,49535.975159683643,3414.9473564484524,0,4108.6477703900755,283.24497088917349,0,0.4242469603502888,2.9247047848744968E-2,null,"Mining and Extraction",{"$f":"BG8","v":0},{"$f":"BH8","v":0},null,{"$f":"BJ8","v":10890315.574278753},1351404.0546838343,0,9375770.4901016355,1163460.7068718972,0,581878.02771729068,72206.569279390053,0,32.814312643490965,4.072002767561087,45996.765009903429,8439.4036132013352,0,39599.872848363564,7265.7133589033365,0,2457.6429142743978,450.92389619618507,0,0.13859582096858736,2.5429311648440152E-2,null,"Mining and Extraction",{"$f":"CH8","v":0},{"$f":"CI8","v":0},null,{"$f":"CK8","v":2846294.2355272085},346308.19826237205,0,1638572.6106823238,199364.88696234877,0,428326.89702585962,52114.470150294503,0,144.2852408828781,17.555163897785373,17198.419163057031,2028.5216910757154,0,9900.8943755245436,1167.7921564409125,0,2588.1180595855799,305.26373227438762,0,0.8718276630619517,0.10283045834816502,null,"Mining and Extraction",{"$f":"DI8","v":0},{"$f":"DJ8","v":0},null,{"$f":"DL8","v":11414002.249409132},2049512.3172795754,0,6798117.6541024959,1220678.3879966431,0,2303285.6798037533,413580.81659882487,0,158.02438533597223,28.375053473760698,53414.099563680677,11613.098833780947,0,31813.147157969361,6916.6984967827757,0,10778.68463106413,2343.4623243900273,0,0.73950662242615306,0.16078083436063195,null,"Mining and Extraction",{"$f":"EJ20","v":0},{"$f":"EK20","v":0},{"$f":"EL20","v":0},12786685.583375612,165030.17232076637,0,3123943.4418185428,40318.886482507936,0,113933.2741124281,1470.4692421849154,0,108.74382019967281,1.4034920362554808,108474.68947038351,961.18795428634621,0,26501.691354238184,234.8299554695954,0,966.54261568438835,8.5644782578879948,0,0.92251835325637721,8.1743818128209751E-3,null,"Mining and Extraction",{"$f":"FK8","v":0},{"$f":"FL8","v":0},null,{"$f":"FN8","v":19185831.500765193},3200531.7657587565,0,11045020.44023462,1842502.3054651448,0,2887195.4174694074,481634.61913002882,0,972.5741931643505,162.2423609659842,111166.04097639496,18847.09950518205,0,63996.767343405045,10850.017069396716,0,16728.91185729756,2836.2210583253218,0,5.6352638459052651,0.95540308451106726,null,"Mining and Extraction",{"$f":"GL8","v":0},{"$f":"GM8","v":0},0,5595930.3069914747,2387197.6640505195,0,3448108.5063906126,264159.29670149175,0,358905.88757629774,153107.57093698409,0,20.240066549205235,8.634317608659849,43406.936940458821,20461.772749965981,0,35274.894269874138,16628.376043195927,0,2783.988429970183,1312.3556419270881,0,0.15699968444467263,{"$f":"HJ8","v":7.4008720526164459E-2},null,"Mining and Extraction",{"$f":"HM20","v":0},{"$f":"HN20","v":0},{"$f":"HO20","v":0},12786685.583375612,165030.17232076637,0,3123943.4418185428,40318.886482507936,0,113933.2741124281,1470.4692421849154,0,108.74382019967281,1.4034920362554808,108474.68947038351,961.18795428634621,0,26501.691354238184,234.8299554695954,0,966.54261568438835,8.5644782578879948,0,0.92251835325637721,8.1743818128209751E-3]
[null,180,"Utilities",0,1687657.8688336459,0,5994777.9422268318,5549570.5932588568,0,3170567.264978393,2935102.3552904567,0,558785.28418706753,517286.613608649,0,53.281930416114534,49.324901946158761,511697.74480311968,29048.451376114506,892582.31830677716,270630.89490073582,15363.382917435227,157309.97727272726,47696.373827898788,2707.6644562695583,15,4.5479989243029291,0.25818430304410683,null,51,"Utilities",{"$f":"AF25","v":40737028.829344496},{"$f":"AG25","v":0},null,{"$f":"AI25","v":13954759.561602257},2384315.9419313222,21545333.509187981,7380507.5489126798,1261036.5467591377,3797180.2209718456,1300751.1475054841,222246.87453709805,392.0857315292813,134.31176176218193,22.948562699684565,12219.419720325339,12161.643556519339,0,6462.7067984278983,6432.1496676342786,0,1138.9966378782494,1133.6112056866475,0,0.11760946386094551,0.11705337987294212,null,"Utilities",{"$f":"BG25","v":40737028.829344496},{"$f":"BH25","v":0},null,{"$f":"BJ25","v":1913574.6474974006},1289986.5776505843,18222803.139938023,855995.0270551563,577046.7835581525,4401440.4660680834,206752.55732617344,139376.85900808789,255.46480407569464,12.000162664170569,8.0895975428231832,9076.0267720569573,8055.8566822952162,0,4059.9585662679365,3603.608183110151,0,980.62113643577629,870.39665408189489,0,5.6916409167256383E-2,5.0518850003168934E-2,null,"Utilities",{"$f":"CH25","v":40737028.829344496},{"$f":"CI25","v":0},null,{"$f":"CK25","v":4479170.5361242592},1838283.3479314819,24411910.215171587,2684169.958108034,1101602.3831228064,5055741.2910943031,555895.41211272508,228143.41875059661,1386.3929585008814,152.43847353771812,62.561830416699095,9735.5739396024928,10767.858411475214,0,5834.1013995488447,6452.7040951317913,0,1208.2506891983846,1336.3641863919495,0,0.33132831590081308,0.36645979122193978,null,"Utilities",{"$f":"DI25","v":40737028.829344496},{"$f":"DJ25","v":0},null,{"$f":"DL25","v":7740231.3645594418},3279434.5085473508,22149805.180150241,4208569.4931875281,1783115.6948064149,7237804.7751023686,1375217.7107833249,582661.70674925589,284.20389188339061,54.000106073054461,22.879136679562517,16889.192749159818,18582.175254854694,0,9183.1029359319036,10103.622516081839,0,3000.7264506104189,3301.5210155556288,0,0.11782828664770831,0.12963946264251686,null,"Utilities",{"$f":"EJ26","v":40737028.829344496},{"$f":"EK26","v":0},{"$f":"EL26","v":0},48608039.505175874,710650.78839607537,10858835.036216099,12956926.353950625,189430.59671527031,537544.74631625682,641406.52903774381,9377.3799598423775,985.99476241794082,1176.5038772043156,17.200516959694667,54773.473811399919,4132.7605579887677,0,14600.380380467355,1101.6258778071162,0,722.76240881858348,54.533769142477034,0,1.3257314008765815,0.10002890199908428,null,"Utilities",{"$f":"FK25","v":40737028.829344496},{"$f":"FL25","v":0},null,{"$f":"FN25","v":5525713.7552217916},2465774.4500460997,24411910.215171587,3311317.2939614109,1477630.2105279991,5055741.2910943031,685778.51644690253,306019.31608334259,1386.3929585008814,188.05521318267006,83.917075767017948,16674.123905313056,14520.304692660058,0,9992.0693136053233,8701.3801605190802,0,2069.3717520259879,1802.0681945530364,0,0.56746622509801758,0.4941658427158086,null,"Utilities",{"$f":"GL27","v":6556521.8278669231},{"$f":"GM27","v":0},0,3474566.0750190504,1919895.1715852115,4040007.1921478463,2140963.1968291206,212449.16828797909,969754.2443824684,513911.99283679837,283965.57508600364,56.285681915414216,29.828059148891306,16.481697426750053,21989.831990402967,16456.307450501143,0,8638.0179706975487,6464.3458645246301,0,3252.4459562256011,2433.9999798610038,0,0.18877580541631392,{"$f":"HJ27","v":0.14127223411723364},null,"Utilities",{"$f":"HM26","v":40737028.829344496},{"$f":"HN26","v":0},{"$f":"HO26","v":0},48608039.505175874,710650.78839607537,10858835.036216099,12956926.353950625,189430.59671527031,537544.74631625682,641406.52903774381,9377.3799598423775,985.99476241794082,1176.5038772043156,17.200516959694667,54773.473811399919,4132.7605579887677,0,14600.380380467355,1101.6258778071162,0,722.76240881858348,54.533769142477034,0,1.3257314008765815,0.10002890199908428]
[null,181,"Construction",211397058.82352942,0,0,3481097.853843838,1112382.3589184582,104971897.24655029,1728583.397765842,552367.60307408182,20701618.640541378,340895.75617435743,108932.99795632075,5679.5357422613997,93.525519197123884,29.886013559973108,64887.787067113961,5822.6099338102867,0,32220.855647055876,2891.2909908973907,0,6354.3089471902003,570.19454770650805,0,1.7433189843552424,0.15643415956854836,null,52,"Construction",{"$f":"AF26","v":71888874.404725581},{"$f":"AG26","v":675746.53700843919},null,{"$f":"AI26","v":2627104.8035158217},477923.64243717492,35697334.575891815,1304522.291016316,237319.06094063492,7039909.0257293601,257266.21776946695,46801.942468329318,2091.5122730393582,76.432159838529998,13.904559947697802,9510.0379805000266,2437.7377529280493,335550.53434672835,4722.3302691888048,1210.4896744472467,66174.275009630102,931.29573620852557,238.72194621635754,19.659956944938486,0.27668205015015163,7.0922774503272099E-2,null,"Construction",{"$f":"BG26","v":71888874.404725581},{"$f":"BH26","v":675746.53700843919},null,{"$f":"BJ26","v":5701485.4018616974},86131.785381659865,36155973.079504795,2867519.5488851671,43319.338900989525,15901987.796451369,1261181.9566351497,19052.5531435458,5839.623966643222,463.1388524840977,6.9965935948977434,51972.167973418371,537.88568877102807,339861.67961255042,26139.014161653002,270.52559445523599,149476.72047979804,11496.365574115773,118.98157718491794,54.89174375821424,4.2217647752741971,4.3693133123464477E-2,null,"Construction",{"$f":"CH26","v":71888874.404725581},{"$f":"CI26","v":675746.53700843919},null,{"$f":"CK26","v":829526.22110074759},549910.90934485197,39562498.873413265,456511.94930390798,302631.66465718456,12157340.181605032,140283.63280118594,92997.06039133179,4095.2944323084907,47.255630900579007,31.326781841469959,5746.0949144061888,3221.1371644169558,371882.60117412452,3162.2399913772629,1772.6836940150847,114277.4955788308,971.73910662363437,544.7360332693338,38.495261660133771,0.32733786285207073,0.18349856225140146,null,"Construction",{"$f":"DI26","v":71888874.404725581},{"$f":"DJ26","v":675746.53700843919},null,{"$f":"DL26","v":5559562.4531315118},1118254.5650490522,21404959.186616495,1655363.3422434409,332961.02523965947,9653834.6861332674,746584.18697173393,150168.50378294109,985.77129676829725,76.235121696766058,15.333989603167447,47887.91895105876,6336.3370279616211,201203.97161500514,14258.659064663711,1886.64847793541,90744.85324780221,6430.7871954395277,850.89592360546817,9.266128390371728,0.65665982886521879,8.6886590178745587E-2,null,"Construction",{"$f":"EJ28","v":71888874.404725581},{"$f":"EK28","v":675746.53700843919},{"$f":"EL28","v":0},87552362.738660812,476498.03965646029,4361198.3581864759,5311436.9058210589,28907.149895397804,1918278.1464485,2336241.6716384818,12714.843344917546,7226.4717165861857,8801.0095900129527,47.898922261604127,789795.68914379971,2774.6588571090251,40994.725709012884,47913.612381866369,168.32698734473442,18031.577559327201,21074.857871807111,74.03882024187233,67.927941252499949,79.392482588434959,0.27891650718008293,null,"Construction",{"$f":"FK26","v":71888874.404725581},{"$f":"FL26","v":675746.53700843919},null,{"$f":"FN26","v":1239564.2319988608},732065.51186184585,39562498.873413265,682167.56679048343,402876.54005047487,12157340.181605032,209626.37362380969,123801.76399507291,4095.2944323084907,70.614271538239478,41.703585424559229,8153.2462389270077,4310.9434794507688,371882.60117412452,4486.9640512970282,2372.4352058836544,114277.4955788308,1378.8195869222247,729.03640260515635,38.495261660133771,0.46446608329873984,0.24558157260883209,null,"Construction",{"$f":"GL28","v":0},{"$f":"GM28","v":0},0,249812.396135366,150002.20711794385,0,153929.76696653652,16598.7417517467,0,50234.603841593183,30163.84121247274,0,18.447454513432493,11.076947883816411,2055.2272264710818,1285.7381356652263,0,1001.4969142377662,626.53061364777545,0,413.28423698512734,258.54820212433572,0,0.15176873270351635,{"$f":"HJ28","v":9.4945631765276164E-2},null,"Construction",{"$f":"HM28","v":71888874.404725581},{"$f":"HN28","v":675746.53700843919},{"$f":"HO28","v":0},87552362.738660812,476498.03965646029,4361198.3581864759,5311436.9058210589,28907.149895397804,1918278.1464485,2336241.6716384818,12714.843344917546,7226.4717165861857,8801.0095900129527,47.898922261604127,789795.68914379971,2774.6588571090251,40994.725709012884,47913.612381866369,168.32698734473442,18031.577559327201,21074.857871807111,74.03882024187233,67.927941252499949,79.392482588434959,0.27891650718008293]
[null,182,"Manufacturing",32478657.101386733,0,0,83071139.958524168,28320591.758738853,9173960.5172172822,30779326.644746374,8478685.184124615,3890294.357763025,9376803.6507216338,2746186.7991607194,914.54390783089286,2204.3315659602122,645.58312969978169,84955.69805504159,148240.17801410452,0,29824.348432158036,44380.492177828492,0,8857.9588665944884,14374.530851459065,0,2.0823597322642744,3.3792146324085159,null,53,"Manufacturing",{"$f":"SUM(AF9:AF24)","v":0},{"$f":"SUM(AG9:AG24)","v":0},null,{"$f":"SUM(AI9:AI24)","v":23415072.342044253},12167651.042643631,0,8912770.0679326076,3642779.9072746155,0,2699731.4456310146,1179870.9205923062,0,687.27017917757553,300.35954143296436,190774.47403564383,62063.350036101743,0,73498.133706082677,18580.671297797369,0,22331.349884396022,6018.1494098986068,0,5.6848879769738527,1.5320392811484618,null,"Manufacturing",{"$f":"SUM(BG9:BG24)","v":0},{"$f":"SUM(BH9:BH24)","v":0},null,{"$f":"SUM(BJ9:BJ24)","v":31122678.48828483},14091345.33188978,0,9963659.6732818224,4772107.1128801731,0,2325836.2324902774,1061749.6854764433,0,414.38514048031431,220.44565785379572,156894.55328832005,87999.255512549702,0,61279.497318028414,29801.403859519221,0,14064.986377863039,6630.5366636047493,0,3.134058694075597,1.3766644216863211,null,"Manufacturing",{"$f":"SUM(CH9:CH24)","v":0},{"$f":"SUM(CI9:CI24)","v":0},null,{"$f":"SUM(CK9:CK24)","v":30668816.507523891},12537419.665542254,0,7132319.3300345661,3526184.1825378649,0,1484833.1136161073,791425.34038165491,0,500.17756287679401,266.59777069962246,177583.72623644397,73438.711151745054,0,45871.795373684356,20654.841949733072,0,10099.715285289885,4635.8228822952997,0,3.4021675101541851,1.5616129314007394,null,"Manufacturing",{"$f":"SUM(DI9:DI24)","v":0},{"$f":"SUM(DJ9:DJ24)","v":0},null,{"$f":"SUM(DL9:DL24)","v":26314373.554903921},22306818.519485652,0,6803761.497322361,5233217.754649369,0,4507095.6086378079,3034773.0827750731,0,380.2159594119185,256.01168900287144,211326.43316647157,126396.55099894886,0,55427.444514307856,29652.846919265456,0,36399.411017908278,17195.856522172558,0,3.0706331047602391,1.4506324367642101,null,"Manufacturing",{"$f":"SUM(EJ21:EJ25)+EJ27","v":0},{"$f":"SUM(EK21:EK25)+EK27","v":0},{"$f":"SUM(EL21:EL25)+EL27","v":0},94917356.564859688,8104383.6950080041,0,11555335.565449784,955475.98797671963,0,1737166.8812093106,298733.34805741411,0,7067.4534750168241,1215.3605169827058,650179.47002039757,47317.81307615518,0,79582.634749681034,5579.4021555764721,0,12212.987051456097,1745.0569079846341,0,49.687061566049309,7.0995530952400792,null,"Manufacturing",{"$f":"SUM(FK9:FK24)","v":0},{"$f":"SUM(FL9:FL24)","v":0},null,{"$f":"SUM(FN9:FN24)","v":52170178.034453124},23279069.007962603,0,11965127.030228958,6306612.3772155633,0,2599867.4865467129,1473574.8362704495,0,875.78554875882082,496.38512474128652,312626.70695136092,137084.38537464666,0,76802.75686025813,37138.000717770119,0,17346.197088237721,8677.4991158187986,0,5.843201168679248,2.9230829510837069,null,"Manufacturing",{"$f":"SUM(GL9:GL26)","v":112625903.23407008},{"$f":"SUM(GM9:GM26)","v":675746.53700843919},0,69443252.360680819,29170821.97571085,69397993.483966142,42789644.623902984,3227945.4413646432,12134981.848533301,8521606.1155574266,3250115.4969346425,2053.6037763925306,1544.4554621471943,607.14279482379288,617696.79148668726,250036.57601772773,249631.49376242864,196044.92229110794,82994.430882001005,114067.33001049202,76151.399240747254,27858.239688698082,19.303621760330202,14.070328842808618,{"$f":"SUM(HJ9:HJ26)","v":5.2041010602299176},null,"Manufacturing",{"$f":"SUM(HM21:HM25)+HM27","v":0},{"$f":"SUM(HN21:HN25)+HN27","v":0},{"$f":"SUM(HO21:HO25)+HO27","v":0},94917356.564859688,8104383.6950080041,0,11555335.565449784,955475.98797671963,0,1737166.8812093106,298733.34805741411,0,7067.4534750168241,1215.3605169827058,650179.47002039757,47317.81307615518,0,79582.634749681034,5579.4021555764721,0,12212.987051456097,1745.0569079846341,0,49.687061566049309,7.0995530952400792]
[null,183,"Sales",0,0,0,17953505.541175026,10442449.164822701,0,10786242.830364622,6273693.5790726999,0,4679137.4901476232,2721566.2848696639,0,1413.160475489964,821.9484709098665,36799.162375420892,54659.54017782458,0,22108.47906137272,32838.771904570393,0,9590.7921649039872,14245.658211635822,0,2.8965441696507068,4.3023743530536134,null,54,"Sales",{"$f":"AF27","v":6556521.8278669231},{"$f":"AG27","v":0},null,{"$f":"AI27","v":5466271.3383375127},4486490.9091774598,3939076.7666942347,3284067.832699806,2695427.9369913088,1708795.366976307,1424648.5229235336,1169292.9697876037,558.8568401289541,465.92739376643397,382.41406016731156,39756.159191889485,22884.17499435223,0,23885.005970721806,13748.527712069663,0,10361.460301578079,5964.1946193514359,0,3.388687185820193,1.9505734994956061,null,"Sales",{"$f":"BG27","v":6556521.8278669231},{"$f":"BH27","v":0},null,{"$f":"BJ27","v":12941270.759513866},8321646.6815262772,4992582.2835418219,9854364.9844733085,6336668.5695301471,1005323.4251813171,1984308.5995469014,1275973.2316398751,221.72402736439565,437.63915492767052,281.41582762515509,63866.432137449112,51967.977177845838,0,48632.251363401745,39571.957355021703,0,9792.7562808738785,7968.3445259227619,0,2.1597918711600004,1.7574179567097832,null,"Sales",{"$f":"CH27","v":6556521.8278669231},{"$f":"CI27","v":0},null,{"$f":"CK27","v":6867578.7384549137},5474025.7577534709,4531309.9892232371,4746286.0578109389,3783180.8157715565,1008629.3540869599,1056481.117422387,842102.44535928487,339.76462913369784,355.88386714434682,283.66874697899146,41243.081913078888,32064.444453888558,0,28503.708820853142,22160.215624580374,0,6344.6723983649135,4932.6671591673139,0,2.1372521587542539,1.6616072308262009,null,"Sales",{"$f":"DI27","v":6556521.8278669231},{"$f":"DJ27","v":0},null,{"$f":"DL27","v":15458641.857435755},11251052.446320742,3850424.2646540743,9078339.2885969486,6607363.8553420305,1848915.5861432499,4359281.4332348667,3172756.3446982824,208.5394651929841,491.6840041403982,357.85566213500681,110434.73422490039,63751.548571616688,0,64854.596916444651,37439.13556210736,0,31142.198061809006,17977.707523804336,0,3.5125331721014907,2.0277083175173005,null,"Trade, Transportation, and Warehousing (Sales for other countries)",{"$f":"EJ29","v":6556521.8278669529},{"$f":"EK29","v":0},{"$f":"EL29","v":0},19384934.781397101,1715399.0441743843,1482242.1697805091,4382379.6436256999,387802.68990634201,545699.45462561259,1613408.5443292032,142772.69983188628,1471.3065070136781,4350.0473926103259,384.94156537261381,72253.858002789668,9997.9008218640811,0,16334.531947392308,2260.2395899094181,0,6013.6901762662574,832.12550329709745,0,16.214019296711783,2.2435640301180317,null,"Sales",{"$f":"FK27","v":6556521.8278669231},{"$f":"FL27","v":0},null,{"$f":"FN27","v":12427017.190870799},8703343.1464828141,4531309.9892232371,8588496.8603180367,6015010.210394687,1008629.3540869599,1911723.1134931513,1338887.8443023625,339.76462913369784,643.9787737987233,451.01476575882816,74575.290110470552,51251.725124064949,0,51540.09487019966,35420.831367102219,0,11472.36731147176,7884.3624355851489,0,3.8645560027313057,2.6559087022677401,null,"Sales",{"$f":"GL29","v":2.9802322387695313E-8},{"$f":"GM29","v":0},0,10582025.623827474,10805620.583584225,1.8363638519017773E-8,6520447.9982131645,1195713.7763529434,5.3251696391156564E-9,1890828.5347458704,1930781.162452748,1.1744658775561486E-12,417.02213166251471,425.83368155489052,88782.575735427687,92619.960271113974,0,65136.449673066367,67951.794943401794,0,15863.940757314494,16549.61630156287,0,3.498791280972648,{"$f":"HJ29","v":3.6500169853857365},null,"Trade, Transportation, and Warehousing (Sales for other countries)",{"$f":"HM29","v":6556521.8278669529},{"$f":"HN29","v":0},{"$f":"HO29","v":0},19384934.781397101,1715399.0441743843,1482242.1697805091,4382379.6436256999,387802.68990634201,545699.45462561259,1613408.5443292032,142772.69983188628,1471.3065070136781,4350.0473926103259,384.94156537261381,72253.858002789668,9997.9008218640811,0,16334.531947392308,2260.2395899094181,0,6013.6901762662574,832.12550329709745,0,16.214019296711783,2.2435640301180317]
[null,184,"Transportation and Warehousing",32690635.440571699,0,0,15659220.275558341,7367525.9690054469,14260195.07330922,6830810.5001912359,3213836.5042393273,3606775.1894460702,1727690.0988550184,812863.05740111822,804.20740961871445,385.22533455640269,181.24514543633057,65045.589517289372,38564.284619225764,0,28373.960391842487,16822.37784984336,0,7176.5144755396614,4254.8180262881942,0,1.6001568751367985,0.94870237361418541,null,55,"Transportation and Warehousing",{"$f":"AF29","v":2.9802322387695313E-8},{"$f":"AG29","v":0},null,{"$f":"AI29","v":5811729.2340674568},3165381.7759938333,1.3000265218422243E-8,2535172.2740818816,1380791.8077710101,3.2881060746347122E-9,641211.17643366114,349238.25434760767,7.9392532123506327E-13,154.82280001753355,84.324862695100251,32466.422992094358,16145.6140115208,0,14162.389900357975,7042.9834807339175,0,3582.0377107940221,1781.354178354499,0,0.86489619728408262,0.43011452677682649,null,"Transportation and Warehousing",{"$f":"BG29","v":2.9802322387695313E-8},{"$f":"BH29","v":0},null,{"$f":"BJ29","v":3296676.6359149553},4808154.8574440749,2.1782371212027817E-8,2409524.778483944,3514256.7947323248,7.0272804059070042E-9,777344.49103676446,1133745.6181681235,1.0408051693541917E-12,115.13190279983462,167.91820333939614,14944.144514348667,30026.518964558254,0,10922.60190407614,21946.235390066198,0,3523.7755152962168,7080.1451521896915,0,0.5219037180985614,1.0486349268178854,null,"Transportation and Warehousing",{"$f":"CH29","v":2.9802322387695313E-8},{"$f":"CI29","v":0},null,{"$f":"CK29","v":708623.1206883007},1360837.3030588636,1.3173342293795483E-8,313228.43920307065,601522.77282798139,4.9022056160602923E-9,116561.93086960955,223845.11457918619,1.6513460235208015E-12,39.264791424666541,75.403964826340143,4106.7611381364104,7971.1886727799947,0,1815.287060107255,3523.45684705133,0,675.52411698970752,1311.1866038504443,0,0.22755554371867753,0.44168338783436811,null,"Transportation and Warehousing",{"$f":"DI29","v":2.9802322387695313E-8},{"$f":"DJ29","v":0},null,{"$f":"DL29","v":7914612.7758454569},5878272.7716215681,1.5759717546162112E-8,4185313.4870478902,3108479.8471376947,5.4899047194341569E-9,1457955.8420100689,1082840.3575813461,3.3309689120805675E-13,88.460653383112572,65.70073165534707,50664.828019361041,33307.905540853855,0,26791.985158837051,17613.499261884146,0,9333.0001210794817,6135.6704167020953,0,0.56627455026148721,0.37227836287318328,null,"Transportation and Warehousing",null,null,null,null,null,null,null,null,null,null,null,null,null,null,null,null,null,null,null,null,null,null,null,null,null,null,"Transportation and Warehousing",{"$f":"FK29","v":2.9802322387695313E-8},{"$f":"FL29","v":0},null,{"$f":"FN29","v":1769049.9686814018},2448842.0546556478,1.3173342293795483E-8,781962.57557062374,1082447.0049602392,4.9022056160602923E-9,290992.31189921702,402811.80496638129,1.6513460235208015E-12,98.023019588492687,135.6902840181254,10550.978795760768,14420.594218232303,0,4663.7860433494634,6374.2490013172719,0,1735.538151512204,2372.0539978029483,0,0.58462950141850434,0.79904480628385421,null,"Transportation and Warehousing",{"$f":"GL31","v":0},{"$f":"GM31","v":0},0,4223389.0871573947,6619847.0592190959,0,2602374.0536993938,732530.09994473075,0,889820.07832166436,1394726.5352897979,0,131.79057669790043,206.57188896928918,35482.748882952605,56741.763870293908,0,22015.01726324849,35205.020762972614,0,7475.8118985782612,11954.844729960036,0,1.1072368284349909,{"$f":"HJ31","v":1.7706229828697377},null,"Transportation and Warehousing"]
[null,185,"Information",0,0,0,2578469.3754499089,4459647.7430292051,0,1409727.0680028673,2438224.086337728,0,342186.26985815418,591835.69934866019,0,76.297722823135018,131.96238459380226,15548.46040193971,23343.402600436631,0,8500.812808979188,12762.543087944203,0,2063.421701895767,3097.8812227493618,0,0.46008385182650885,0.69073865228521236,null,56,"Information",{"$f":"AF30","v":0},{"$f":"AG30","v":0},null,{"$f":"AI30","v":1126911.7473199333},1916041.7964624132,0,616116.68091660819,1047557.9076546521,0,149551.40865594271,254276.12267428567,0,36.109738391428259,61.395906273801032,3884.0444923707514,9773.1248439724659,0,2123.5244080675234,5343.2624652039167,0,515.44792793032525,1296.982297737575,0,0.12445680050254879,0.31316115234569758,null,"Information",{"$f":"BG30","v":0},{"$f":"BH30","v":0},null,{"$f":"BJ30","v":1435896.0431840841},1874025.9451929431,0,876098.81919760874,1143419.7660218321,0,223963.79854730432,292301.08353171765,0,19.575953539828536,25.549095291174314,9677.532586648389,11703.132958850338,0,5904.6578700141181,7140.5593843863908,0,1509.452560273701,1825.3954558966968,0,0.13193638160344046,0.15955193146494331,null,"Information",{"$f":"CH30","v":0},{"$f":"CI30","v":0},null,{"$f":"CK30","v":489461.37356575875},1204729.6807007683,0,296465.69573449512,729702.16292862408,0,52570.176201182854,129392.95112880941,0,14.415872552825027,35.48232909793564,2148.0699317611447,7056.7786192942385,0,1301.0813134580471,4274.2755526801657,0,230.71159626444944,757.9272144121453,0,6.3266079905821046E-2,0.2078399373338477,null,"Information",{"$f":"DI30","v":0},{"$f":"DJ30","v":0},null,{"$f":"DL30","v":4174551.8303536284},3348224.390014838,0,1695206.7026911986,1359650.7262880222,0,554746.89251616236,444938.07989209035,0,33.658956712004539,26.99636856491983,28755.466131691079,18971.957587710407,0,11677.052030115323,7704.1538763540557,0,3821.2498317593231,2521.1411774085527,0,0.2318521913472357,0.15296882758613073,null,"Information",null,null,null,null,null,null,null,null,null,null,null,null,null,null,null,null,null,null,null,null,null,null,null,null,null,null,"Information",{"$f":"FK30","v":0},{"$f":"FL30","v":0},null,{"$f":"FN30","v":705610.32953752624},1571680.5448116576,0,427386.65104425175,951963.50795873068,0,75785.468182973782,168804.99184399788,0,20.78200473403291,46.289958005675992,3405.4870453108929,9255.2181282292768,0,2062.6961405510451,5605.86561013148,0,365.76339562530785,994.04871162121935,0,0.10030018685203336,0.27258952838946326,null,"Information",{"$f":"GL32","v":0},{"$f":"GM32","v":0},0,1475417.005461846,2537289.4435275737,0,909124.60447376093,280767.95023044187,0,248224.5670303712,426874.28111431678,0,21.696509092759751,37.31170460870964,12172.955244486273,21748.278651654276,0,7483.5007163730534,13370.069601073616,0,2047.9813733045862,3658.9364443938225,0,0.17900744885686068,{"$f":"HJ32","v":0.31981583767213262},null,"Information"]
[null,186,"Finance, Professional, and Business Services",10212418.300653595,0,0,34214102.839974403,32643400.832659785,7448096.9937508684,24880669.333106041,23456823.365729649,2792948.1543286066,8115791.6122060437,9029374.5528169367,266.31637128964405,923.67310366797653,966.96434776493049,210429.3633668265,170867.31773272605,0,150298.56615286827,122781.4623720989,0,51013.595349449759,47262.998685491228,0,5.936308178049674,5.0614396855508694,null,57,"Finance, Professional, and Business Services",{"$f":"AF35+AF36+AF32+AF31+AF34+AF33","v":5546981.049747345},{"$f":"AG35+AG36+AG32+AG31+AG34+AG33","v":0},null,{"$f":"AI35+AI36+AI32+AI31+AI34+AI33","v":14793198.027706603},14024901.511967354,4045511.2261091098,10734099.085941998,10077982.964288086,1517018.7930899863,3490676.8126175865,3879377.9320695689,156.64292675582357,431.6095844878044,449.88314395973009,71548.121113792004,71536.598864357788,0,51853.8507474332,51404.612293564503,0,17241.973298788998,19787.483194295437,0,2.1098592212693625,2.2947120147561613,null,"Finance, Professional, and Business Services",{"$f":"BG35+BG36+BG32+BG31+BG34+BG33","v":5546981.049747345},{"$f":"BH35+BH36+BH32+BH31+BH34+BH33","v":0},null,{"$f":"BJ35+BJ36+BJ32+BJ31+BJ34+BJ33","v":13475294.623703258},14766169.677726129,4166590.8159390152,10087741.678507093,11670444.60421727,1842984.3074991242,3295457.7104754206,4123054.7255040379,520.07447549910705,785.86775004921685,2252.5221663329594,77498.633225429265,92213.476272646352,0,57454.014319899608,72880.935956300411,0,18101.715364798067,25748.126792461255,0,4.0716196359922474,14.066809732795953,null,"Finance, Professional, and Business Services",{"$f":"CH35+CH36+CH32+CH31+CH34+CH33","v":5546981.049747345},{"$f":"CI35+CI36+CI32+CI31+CI34+CI33","v":0},null,{"$f":"CK35+CK36+CK32+CK31+CK34+CK33","v":5243861.8366972134},12709325.559629362,2687511.2043034625,3190540.2100846088,8333471.8711685035,1051720.087182309,736717.19042454171,2504298.1589349024,288.40425948058839,202.02369274913249,686.7323966220149,28692.796937792427,74445.660559033582,0,17096.36878949299,48813.826924845642,0,4189.0619336623186,14669.081361081866,0,1.1487308454219709,4.0225774887857275,null,"Finance, Professional, and Business Services",{"$f":"DI35+DI36+DI32+DI31+DI34+DI33","v":5546981.049747345},{"$f":"DJ35+DJ36+DJ32+DJ31+DJ34+DJ33","v":0},null,{"$f":"DL35+DL36+DL32+DL31+DL34+DL33","v":25788906.162774667},38743366.060466424,2363277.3247839385,12941795.291459396,22239927.650349479,1525641.4261604804,6299921.6159542063,13802874.870693039,102.64292640505568,423.82912651818623,902.41355934675948,175832.26596374036,219530.53681119936,0,86124.487697234683,126017.52899073421,0,42900.45244537176,78210.87422223264,0,2.8861507730453635,5.1133226989083722,null,"Finance, Professional, and Business Services",{"$f":"EJ32","v":4992282.9447726104},{"$f":"EK32","v":0},{"$f":"EL32","v":0},41389882.525895126,1376397.3182261642,1040035.6389960941,8622698.952964358,286743.01521166309,247827.58864791546,2054682.1753269625,68327.302793328505,266.22435269498732,2207.205562159877,73.399382436759552,244584.97811709737,7994.3514662381785,0,50954.061862863324,1665.4525649942088,0,12141.720735146415,396.85668232331653,0,13.043026246403533,0.42631618997957688,null,"Finance, Professional, and Business Services",{"$f":"FK35+FK36+FK32+FK31+FK34+FK33","v":5546981.049747345},{"$f":"FL35+FL36+FL32+FL31+FL34+FL33","v":0},null,{"$f":"FN35+FN36+FN32+FN31+FN34+FN33","v":9208309.7581322137},16922662.580546051,2687511.2043034625,5439029.0914397677,10914671.112721734,1051720.087182309,1340547.1891042222,3231311.8089451678,288.40425948058839,367.60686049858583,886.09516996718605,52308.184114273208,99653.160440530832,0,30503.081883751194,64273.660623716671,0,7763.4013225584486,19028.35517741584,0,2.1288915527720396,5.2179840919259259,null,"Finance, Professional, and Business Services",{"$f":"SUM(GL33:GL38)","v":5546981.049747345},{"$f":"SUM(GM33:GM38)","v":0},0,11022202.881811811,15108859.932325054,3417946.8815980176,6791677.0636786856,1671895.8273913055,211218.60078192569,2192000.9856246877,1893934.8083428042,97.667332935004922,556.01881986235833,459.43706405973313,90505.220534737586,129505.01045721499,0,67401.891431745884,102791.61849586047,0,17912.932662879659,16233.789197751459,0,4.5885355606168066,{"$f":"SUM(HJ33:HJ38)","v":3.9380470831019037},null,"Finance, Professional, and Business Services",{"$f":"HM32","v":4992282.9447726104},{"$f":"HN32","v":0},{"$f":"HO32","v":0},41389882.525895126,1376397.3182261661,1040035.6389960941,8622698.952964358,286743.0152116635,247827.58864791546,2054682.1753269625,68327.302793328592,266.22435269498732,2207.205562159877,73.399382436759652,244584.97811709737,7994.3514662381785,0,50954.061862863324,1665.4525649942088,0,12141.720735146415,396.85668232331653,0,13.043026246403533,0.42631618997957688]
[null,187,"Education and Health Care",0,0,0,150309.84663439536,12216378.831986202,0,115413.43503823807,7308449.1240703259,0,84986.649206792528,5395410.2542125275,0,8.1037437052818078,514.4692995084356,2337.4919325948372,63944.927004661477,0,1835.9120157950804,38255.055134040631,0,1351.6331243941186,28241.520634779525,0,0.12888246007919776,2.6929176195052191,null,58,"Education and Health Care",{"$f":"AF37+AF38","v":0},{"$f":"AG37+AG38","v":0},null,{"$f":"AI37+AI38","v":78901.272527878362},5248641.5502415951,0,61381.479438158989,3140000.0170251462,0,45194.016401753397,2318082.5374138518,0,4.6666020442644678,239.35842771100903,132.39676077635096,26771.665016117811,0,100.45328180858019,16016.149664960831,0,73.978464768667735,11823.807851481008,0,7.6388000537968986E-3,1.2208918410838745,null,"Education and Health Care",{"$f":"BG37+BG38","v":0},{"$f":"BH37+BH38","v":0},null,{"$f":"BJ37+BJ38","v":80140.041601058925},5605689.6097085457,0,71902.212411017463,4674299.4416028764,0,62007.004649520852,3749233.6607625969,0,16.239952645291929,1244.9156330884491,132.39700817250963,35007.055797037334,0,118.78753259939928,29190.603254388905,0,102.4399505830426,23413.645973393592,0,2.6829548626931016E-2,7.7743924591638729,null,"Education and Health Care",{"$f":"CH37+CH38","v":0},{"$f":"CI37+CI38","v":0},null,{"$f":"CK37+CK38","v":196210.03045083507},4869899.1013882849,0,110718.18633239389,3069134.6433331864,0,72850.114044145652,2090086.8302942081,0,19.977067520187283,573.14674492533641,411.38218008544266,28525.735197963368,0,235.84416028201332,17977.646004546608,0,155.99612636188027,12242.812883890483,0,4.2777491704824366E-2,3.3572425085057693,null,"Education and Health Care",{"$f":"DI37+DI38","v":0},{"$f":"DJ37+DJ38","v":0},null,{"$f":"DL37+DL38","v":243241.46478550287},3672512.3215865302,0,113099.1848236541,1741755.6031782511,0,50409.345264843716,800078.19146248547,0,3.2464471839465192,51.526390155713578,1371.945020237783,20809.461938473829,0,637.56980095566485,9869.2648946112877,0,283.93492584392129,4533.4624407329675,0,1.8285889959235909E-2,0.29196265686293643,null,"Education and Health Care",null,null,null,null,null,null,null,null,null,null,null,null,null,null,null,null,null,null,null,null,null,null,null,null,null,null,"Education and Health Care",{"$f":"FK37+FK38","v":0},{"$f":"FL37+FL38","v":0},null,{"$f":"FN37+FN38","v":280092.86755311565},5664362.7503852434,0,157586.57609797933,3567540.3978335969,0,103586.0749540856,2429051.8431530567,0,28.405528812967518,666.0982390679394,915.25166469577653,33355.959635241583,0,517.33371285082569,21008.317925813961,0,340.58596647078537,14304.054807685468,0,9.3395994472871988E-2,3.9224793599146834,null,"Education and Health Care",{"$f":"GL41+GL40","v":0},{"$f":"GM41+GM40","v":0},0,39642.1507790951,2735289.9175739163,0,24426.758342976143,302678.01941252069,0,24936.066029278085,1533700.394795377,0,7.2546726396608108,521.69150732418393,296.72050279392437,23445.432081943509,0,254.87050235710728,19309.946708180651,0,184.67684830613553,13146.05380921317,0,5.4523594375244171E-2,{"$f":"HJ41+HJ40","v":4.4716586436089774},null,"Education and Health Care"]
[null,188,"Other",0,0,0,3644255.1719690133,97661625.204862982,0,1867762.5548728241,6597872.3235547869,0,752828.85604089848,3145318.084923286,0,153.80301711236066,642.58882660708309,16496.948275316972,511196.12290757941,0,8071.0224777193325,34535.64021861559,0,3331.0794276687247,16463.727763602823,0,0.68053988911994134,3.3635413715080658,null,59,"Other",{"$f":"AF40+AF39+AF28+AF41","v":0},{"$f":"AG40+AG39+AG28+AG41","v":0},null,{"$f":"AI40+AI39+AI28+AI41","v":1507814.880228848},41959313.063560754,0,759464.08584770048,2834708.0011899397,0,308817.21613067208,1351353.5734525525,0,68.321113935581806,298.96643268761568,6553.3311660422278,214021.22108955178,0,3327.1200742466381,14458.951387692452,0,1347.4589511866961,6892.8283329122041,0,0.29810480672357287,1.524933472854165,null,"Other",{"$f":"BG40+BG39+BG28+BG41","v":0},{"$f":"BH40+BH39+BH28+BH41","v":0},null,{"$f":"BJ40+BJ39+BJ28+BJ41","v":674659.20763474936},49570892.755842432,0,486727.32922252547,2017896.3049399788,0,114692.87861457706,660811.80592320114,0,86.236806201470301,343.37765234673395,4002.7017860296082,309566.01764166431,0,2899.6166868796718,12601.591143634883,0,688.87539695464966,4126.7136377351544,0,0.51803946385405386,2.1443642927248674,null,"Other",{"$f":"CH40+CH39+CH28+CH41","v":0},{"$f":"CI40+CI39+CI28+CI41","v":0},null,{"$f":"CK40+CK39+CK28+CK41","v":1327262.2565992856},37257403.384814002,0,576760.6510998772,1561541.2321065702,0,382961.00302252307,1045166.4629759016,0,213.9087008303726,586.21391369957666,5386.1636228227653,218237.5447606158,0,2323.711609219044,9146.8243510579268,0,1512.5262103801945,6122.1272022131425,0,0.83601063622972238,3.4337842578276021,null,"Other",{"$f":"DI40+DI39+DI28+DI41","v":0},{"$f":"DJ40+DJ39+DJ28+DJ41","v":0},null,{"$f":"DL40+DL39+DL28+DL41","v":4765437.1922072638},76636590.406174287,0,3208033.00359667,4396889.7238660911,0,1739671.575990885,2381402.6416906454,0,116.80942148794348,160.22575094785489,34041.008170229485,434243.93752959592,0,22935.519280521996,24913.982948035795,0,12443.824463578216,13493.680427199875,0,0.83484931755670166,0.90788304407169196,null,"Other",{"$f":"SUM(EJ33:EJ48)+EJ31+EJ30","v":554698.10497473436},{"$f":"SUM(EK33:EK48)+EK31+EK30","v":0},{"$f":"SUM(EL33:EL48)+EL31+EL30","v":0},2869846.4781096722,30703451.927079264,203014.80142398662,1005590.18876419,371807.28294615017,162437.16870653248,790366.00426950539,262311.12060959241,410.39983810867864,2012.2825478194347,663.81455446402833,10534.708742647266,179472.95120121221,0,3489.6016605720133,2162.3526100686104,0,2700.6382070968994,1525.2576676949541,0,6.8689872296951009,3.8598896324114356,null,"Other",{"$f":"FK40+FK39+FK28+FK41","v":0},{"$f":"FL40+FL39+FL28+FL41","v":0},null,{"$f":"FN40+FN39+FN28+FN41","v":1830645.3023880916},47490489.634183884,0,793374.22577060421,1923135.9922820947,0,522944.33725873067,1285906.959493309,0,290.98067151265099,720.87117759248736,8453.0260852243773,279659.14703961357,0,3641.9377874333759,11324.847888189892,0,2361.6909939663446,7572.3717787350106,0,1.3027311199965907,4.2450229552033374,null,"Other",{"$f":"GL39+SUM(GL42:GL45)","v":0},{"$f":"GM39+SUM(GM42:GM45)","v":0},0,186473.66379371821,103698203.90630527,0,114901.61440031002,11474895.868747709,0,72721.647148996184,696358.99506475637,0,54.329361529934772,310.13915717259079,1175.6513479974142,888845.15717486467,0,842.81451073044673,14567.293316098418,0,349.94149865366182,5968.8142812744418,0,0.26143657274056131,{"$f":"HJ39+SUM(HJ42:HJ45)","v":2.6583458297139311},null,"Other",{"$f":"SUM(HM33:HM48)+HM31+HM30","v":554698.10497473436},{"$f":"SUM(HN33:HN48)+HN31+HN30","v":0},{"$f":"SUM(HO33:HO48)+HO31+HO30","v":0},2869846.4781096722,30703451.927079264,203014.80142398662,1005590.18876419,371807.28294615011,162437.16870653248,790366.00426950539,262311.12060959236,410.39983810867864,2012.2825478194347,663.81455446402811,10534.708742647266,179472.95120121221,0,3489.6016605720133,2162.3526100686104,0,2700.6382070968994,1525.2576676949541,0,6.8689872296951009,3.8598896324114356]
[null,189,"Total",286778769.66614145,1687657.8688336459,0,190163667.57431394,209209777.83958444,135854149.83082765,100505272.7999106,68028628.677166045,30991636.342079081,27786840.844530471,26574896.450798485,7664.6034310006507,5521.4427068650857,4277.5920741735399,1193799.9509344322,1095079.3321492479,892582.31830677716,703502.78911159839,356086.34561976301,157309.97727272726,150357.74364812256,139102.57999313038,15,21.363126141996982,22.390457655304495,null,60,"Total",{"$f":"SUM(AF50:AF60)","v":124729406.11168438},{"$f":"SUM(AG50:AG60)","v":675746.53700843919},null,{"$f":"SUM(AI50:AI60)","v":80454522.335280761},89884829.849135131,65227256.077883154,45058559.412778117,29227800.806736946,14062903.406767502,11190664.926739065,11417631.003699897,3199.0977714534183,2164.6153049608351,1990.1629003743178,432827.29584225989,458474.1654992667,335550.53434672835,233472.76185060112,149081.79285357412,66174.275009630102,62636.211554299567,58237.734389505931,19.659956944938486,13.519092932761804,10.151193215675818,null,"Total",{"$f":"SUM(BG50:BG60)","v":124729406.11168438},{"$f":"SUM(BH50:BH60)","v":675746.53700843919},null,{"$f":"SUM(BJ50:BJ60)","v":81891348.471418068},104212320.2930029,63537949.318923675,47068467.585425474,37405207.22184854,23151735.995199904,10869527.024843069,12773337.440150019,6836.8872735824207,2420.2177159026619,4808.5147916530723,436694.52214089135,650797.09460145398,339861.67961255042,258616.17701016908,233592.34411537059,149476.72047979804,62983.179327292703,79768.40810224005,54.89174375821424,15.253947225947943,30.028766723141938,null,"Total",{"$f":"SUM(CH50:CH60)","v":124729406.11168438},{"$f":"SUM(CI50:CI60)","v":675746.53700843919},null,{"$f":"SUM(CK50:CK60)","v":54223195.387517631},84345568.122528523,71193230.28211157,21545307.053566977,27582211.56572789,19273430.913968612,5142542.3081513876,9258573.5422241129,6109.8562794236605,1761.5097513218279,3405.1854947730199,296014.14549863362,494059.38219523581,371882.60117412452,118700.14325244153,161564.51025317123,114277.4955788308,28740.577739404787,54232.667182173143,38.495261660133771,9.8656873464176638,19.946084652174875,null,"Total",{"$f":"SUM(DI50:DI60)","v":124729406.11168438},{"$f":"SUM(DJ50:DJ60)","v":675746.53700843919},null,{"$f":"SUM(DL50:DL60)","v":110055179.62491016},172161752.11978865,49768465.956204765,50962869.89687971,49590050.622835346,20266196.473539371,23478611.697624974,26346462.164435949,1581.157580249728,1832.5180871201333,1923.4655575246088,735388.1278924885,975515.6999582306,201203.97161500514,325630.01896289265,280990.826061295,90744.85324780221,157125.22612348496,149286.27969515533,9.266128390371728,12.679040864876049,10.898883326818169,null,"Total",{"$f":"SUM(EJ50:EJ60)","v":124729406.11168438},{"$f":"SUM(EK50:EK60)","v":675746.53700843919},{"$f":"SUM(EL50:EL60)","v":0},308716326.57641,49387391.54573144,17945326.004603162,47296895.686061732,4547617.4831351573,3411787.1047448176,9502717.2007021196,2627499.529161158,10360.397176821471,27983.057771180142,21611.780672182671,1939543.4206041093,288813.89768165373,40994.725709012884,241879.46990412133,26661.259612263257,18031.577559327201,57422.63277387878,15440.75452215246,67.927941252499949,184.12027016377147,127.30811343701957,null,"Total",{"$f":"SUM(FK50:FK60)","v":124729406.11168438},{"$f":"SUM(FL50:FL60)","v":675746.53700843919},null,{"$f":"SUM(FN50:FN60)","v":105611996.72818345},120724312.06237261,71193230.28211157,44087767.998548873,40303700.681489572,19273430.913968612,10886042.339265952,12916869.698957708,6109.8562794236605,3717.9757563840958,4736.7171679624716,607497.60548993445,710914.08823895245,371882.60117412452,254325.88392768518,237338.0152941639,114277.4955788308,63323.801652110218,76064.087573276513,38.495261660133771,21.68509157370913,27.893295966499736,null,"Total",{"$f":"SUM(GL50:GL60)","v":124729406.11168438},{"$f":"SUM(GM50:GM60)","v":675746.53700843919},0,108134694.92730981,179431843.34567294,76855947.557712018,66630594.192526795,19855326.711245529,13315954.6936977,14967018.188657371,12069421.182289919,2207.556791242951,3011.0304348244777,3094.2952130627618,930602.19204775675,1537993.128066733,249631.49376242864,414592.0869810147,382613.94633263862,114067.33001049202,128321.71913775362,103452.57838289168,19.303621760330202,26.199324283665767,{"$f":"SUM(HJ50:HJ60)","v":26.522632132425677},null,"Total",{"$f":"SUM(HM50:HM60)","v":124729406.11168438},{"$f":"SUM(HN50:HN60)","v":675746.53700843919},{"$f":"SUM(HO50:HO60)","v":0},308716326.57641,49387391.54573144,17945326.004603162,47296895.686061732,4547617.4831351582,3411787.1047448176,9502717.2007021196,2627499.5291611576,10360.397176821471,27983.057771180142,21611.780672182671,1939543.4206041093,288813.89768165373,40994.725709012884,241879.46990412133,26661.259612263257,18031.577559327201,57422.63277387878,15440.75452215246,67.927941252499949,167.45382668142764,14.016442738741112]
[null,null,null,null,null,null,null,null,null,null,null,null,null,null,null,null,null,null,null,null,null,null,null,null,null,null,null,null,null,61]
[null,null,null,null,null,null,null,null,null,null,null,null,null,null,null,null,null,null,null,null,null,null,null,null,null,null,null,null,null,62]
[null,null,null,null,null,null,null,null,null,null,null,null,null,null,null,null,null,null,null,null,null,null,null,null,null,null,null,null,null,63]
[null,null,null,null,null,null,null,null,null,null,null,null,null,null,null,null,null,null,null,null,null,null,null,null,null,null,null,null,null,64]
[null,null,null,null,null,null,null,null,null,null,null,null,null,null,null,null,null,null,null,null,null,null,null,null,null,null,null,null,null,65]
[null,null,null,null,null,null,null,null,null,null,null,null,null,null,null,null,null,null,null,null,null,null,null,null,null,null,null,null,null,66]
[null,null,null,null,null,null,null,null,null,null,null,null,null,null,null,null,null,null,null,null,null,null,null,null,null,null,null,null,null,67,null,null,null,null,"Construction",null,null,null,null,null,null,null,null,null,null,"O&M",null,null,null,null,null,null,null,null,null,null,null,null,null,null,null,"Construction",null,null,null,null,null,null,null,null,null,null,"O&M",null,null,null,null,null,null,null,null,null,null,null,null,null,null,null,"Construction",null,null,null,null,null,null,null,null,null,null,"O&M",null,null,null,null,null,null,null,null,null,null,null,null,null,null,null,"Construction",null,null,null,null,null,null,null,null,null,null,"O&M",null,null,null,null,null,null,null,null,null,null,null,null,null,null,null,"Construction",null,null,null,null,null,null,null,null,null,null,"O&M",null,null,null,null,null,null,null,null,null,null,null,null,null,null,null,"Construction",null,null,null,null,null,null,null,null,null,null,"O&M",null,null,null,null,null,null,null,null,null,null,null,null,null,null,null,"Construction",null,null,null,null,null,null,null,null,null,null,"O&M",null,null,null,null,null,null,null,null,null,null,null,null,null,null,null,"Construction",null,null,null,null,null,null,null,null,null,null,"O&M"]
[null,null,{"$f":"geo_country","v":"Mexico"},null,null,null,"Construction",null,null,null,null,null,null,null,null,null,null,"O&M",null,null,null,null,null,null,null,null,null,null,null,68,"Biopower",null,null,null,"Output",null,"Value Added",null,null,"Earnings",null,null,"Jobs",null,null,"Output",null,"Value Added",null,null,"Earnings",null,null,"Jobs",null,null,null,"Biopower",null,null,null,"Output",null,"Value Added",null,null,"Earnings",null,null,"Jobs",null,null,"Output",null,"Value Added",null,null,"Earnings",null,null,"Jobs",null,null,null,"Biopower",null,null,null,"Output",null,"Value Added",null,null,"Earnings",null,null,"Jobs",null,null,"Output",null,"Value Added",null,null,"Earnings",null,null,"Jobs",null,null,null,"Biopower",null,null,null,"Output",null,"Value Added",null,null,"Earnings",null,null,"Jobs",null,null,"Output",null,"Value Added",null,null,"Earnings",null,null,"Jobs",null,null,null,"Biopower",null,null,null,"Output",null,"Value Added",null,null,"Earnings",null,null,"Jobs",null,null,"Output",null,"Value Added",null,null,"Earnings",null,null,"Jobs",null,null,null,"Biopower",null,null,null,"Output",null,"Value Added",null,null,"Earnings",null,null,"Jobs",null,null,"Output",null,"Value Added",null,null,"Earnings",null,null,"Jobs",null,null,null,"Biopower",null,null,null,"Output",null,"Value Added",null,null,"Earnings",null,null,"Jobs",null,null,"Output",null,"Value Added",null,null,"Earnings",null,null,"Jobs",null,null,null,"Biopower",null,null,null,"Output",null,"Value Added",null,null,"Earnings",null,null,"Jobs",null,null,"Output",null,"Value Added",null,null,"Earnings",null,null,"Jobs"]
[null,null,"Geothermal",null,null,null,"Output",null,"Value Added",null,null,"Earnings",null,null,"Jobs",null,null,"Output",null,"Value Added",null,null,"Earnings",null,null,"Jobs",null,null,null,69,"Colombia","Construction","O&M",null,"Indirect","Induced","Direct","Indirect","Induced","Direct","Indirect","Induced","Direct","Indirect","Induced","Indirect","Induced","Direct","Indirect","Induced","Direct","Indirect","Induced","Direct","Indirect","Induced",null,"Mexico","Construction","O&M",null,"Indirect","Induced","Direct","Indirect","Induced","Direct","Indirect","Induced","Direct","Indirect","Induced","Indirect","Induced","Direct","Indirect","Induced","Direct","Indirect","Induced","Direct","Indirect","Induced",null,"Philippines","Construction","O&M",null,"Indirect","Induced","Direct","Indirect","Induced","Direct","Indirect","Induced","Direct","Indirect","Induced","Indirect","Induced","Direct","Indirect","Induced","Direct","Indirect","Induced","Direct","Indirect","Induced",null,"South Africa","Construction","O&M",null,"Indirect","Induced","Direct","Indirect","Induced","Direct","Indirect","Induced","Direct","Indirect","Induced","Indirect","Induced","Direct","Indirect","Induced","Direct","Indirect","Induced","Direct","Indirect","Induced",null,"Zambia","Construction","O&M",null,"Indirect","Induced","Direct","Indirect","Induced","Direct","Indirect","Induced","Direct","Indirect","Induced","Indirect","Induced","Direct","Indirect","Induced","Direct","Indirect","Induced","Direct","Indirect","Induced",null,"CR1","Construction","O&M",null,"Indirect","Induced","Direct","Indirect","Induced","Direct","Indirect","Induced","Direct","Indirect","Induced","Indirect","Induced","Direct","Indirect","Induced","Direct","Indirect","Induced","Direct","Indirect","Induced",null,"CR2","Construction","O&M",null,"Indirect","Induced","Direct","Indirect","Induced","Direct","Indirect","Induced","Direct","Indirect","Induced","Indirect","Induced","Direct","Indirect","Induced","Direct","Indirect","Induced","Direct","Indirect","Induced",null,"CR3","Construction","O&M",null,"Indirect","Induced","Direct","Indirect","Induced","Direct","Indirect","Induced","Direct","Indirect","Induced","Indirect","Induced","Direct","Indirect","Induced","Direct","Indirect","Induced","Direct","Indirect","Induced"]
[null,null,null,"Construction","O&M",null,"Indirect","Induced","Direct","Indirect","Induced","Direct","Indirect","Induced","Direct","Indirect","Induced","Indirect","Induced","Direct","Indirect","Induced","Direct","Indirect","Induced","Direct","Indirect","Induced",null,70,"TTL_C01T05: Agriculture, hunting, forestry and fishing",0,{"$f":"'Biopower-Inputs'!B41*'Biopower-Inputs'!B38+'Biopower-Inputs'!B41*'Biopower-Inputs'!B39*0.9","v":28385431.684592765},null,{"$f":"MMULT(L1_Colombia,AF71:AF104)-AF71:AF104","v":2979502.6079552108},{"$f":"MMULT(l2_colombia,AF71:AF105)-AI71:AI105-AF71:AF105","v":20222551.734069206},{"$f":"'Colombia-IO-Data'!$AN13*Calculations!AF71","v":0},{"$f":"'Colombia-IO-Data'!$AN13*AI71","v":2062712.4201714306},{"$f":"'Colombia-IO-Data'!$AN13*AJ71","v":14000091.330026083},{"$f":"'Colombia-IO-Data'!$AO13*Calculations!AK71","v":0},{"$f":"'Colombia-IO-Data'!$AO13*Calculations!AL71","v":544571.91593596386},{"$f":"'Colombia-IO-Data'!$AO13*Calculations!AM71","v":3696131.6004667049},{"$f":"(AN71*'Default-Data'!$F$19/biopower_dollar_index)/'Colombia-IO-Data'!$AP13","v":0},{"$f":"(AO71*'Default-Data'!$F$19/biopower_dollar_index)/'Colombia-IO-Data'!$AP13","v":111.25610161396347},{"$f":"(AP71*'Default-Data'!$F$19/biopower_dollar_index)/'Colombia-IO-Data'!$AP13","v":755.12008769923443},{"$f":"MMULT(L1_Colombia,AG71:AG104)-AG71:AG104","v":2128869.8252097256},{"$f":"MMULT(l2_colombia,AG71:AG105)-AT71:AT105-AG71:AG105","v":1945268.1262958683},{"$f":"'Colombia-IO-Data'!$AN13*AG71","v":19651260.694119625},{"$f":"'Colombia-IO-Data'!$AN13*AT71","v":1473818.5553735534},{"$f":"'Colombia-IO-Data'!$AN13*AU71","v":1346710.9288512536},{"$f":"'Colombia-IO-Data'!$AO13*AV71","v":5188083.7009089356},{"$f":"'Colombia-IO-Data'!$AO13*AW71","v":389099.41424362338},{"$f":"'Colombia-IO-Data'!$AO13*AX71","v":355542.02493989823},{"$f":"(AY71*'Default-Data'!$F$19/biopower_dollar_index)/'Colombia-IO-Data'!$AP13","v":1059.9260639763615},{"$f":"(AZ71*'Default-Data'!$F$19/biopower_dollar_index)/'Colombia-IO-Data'!$AP13","v":79.493052620276245},{"$f":"(BA71*'Default-Data'!$F$19/biopower_dollar_index)/'Colombia-IO-Data'!$AP13","v":72.63727433825116},null,"DOM_C01T05: Agriculture, hunting, forestry and fishing",{"$f":"AF71","v":0},{"$f":"AG71","v":28385431.684592765},null,{"$f":"MMULT(Mexico_L1,BG71:BG104)-BG71:BG104","v":1066813.3126785075},{"$f":"MMULT(Mexico_L2,BG71:BG105)-BG71:BG105-BJ71:BJ105","v":13769903.036115658},{"$f":"BG71*'Mexico-IO-Data'!AQ13","v":0},{"$f":"BJ71*'Mexico-IO-Data'!$AQ13","v":650623.25650119316},{"$f":"BK71*'Mexico-IO-Data'!$AQ13","v":8397925.9056763444},{"$f":"BG71*'Mexico-IO-Data'!AR13","v":0},{"$f":"BJ71*'Mexico-IO-Data'!$AR13","v":107180.25526771726},{"$f":"BK71*'Mexico-IO-Data'!$AR13","v":1383430.1699114188},{"$f":"(BO71*'Default-Data'!$F$19/biopower_dollar_index)/'Mexico-IO-Data'!$AS13","v":0},{"$f":"(BP71*'Default-Data'!$F$19/biopower_dollar_index)/'Mexico-IO-Data'!$AS13","v":101.94761304367688},{"$f":"(BQ71*'Default-Data'!$F$19/biopower_dollar_index)/'Mexico-IO-Data'!$AS13","v":1315.8897903610241},{"$f":"MMULT(Mexico_L1,BH71:BH104)-BH71:BH104","v":3520140.3290717453},{"$f":"MMULT(Mexico_L2,BH71:BH105)-BH71:BH105-BU71:BU105","v":908617.97824161127},{"$f":"BH71*'Mexico-IO-Data'!AQ13","v":17311578.118061446},{"$f":"BU71*'Mexico-IO-Data'!$AQ13","v":2146847.1915592188},{"$f":"BV71*'Mexico-IO-Data'!$AQ13","v":554143.80463139236},{"$f":"BH71*'Mexico-IO-Data'!AR13","v":2851818.3806690462},{"$f":"BU71*'Mexico-IO-Data'!$AR13","v":353660.32141163864},{"$f":"BV71*'Mexico-IO-Data'!$AR13","v":91286.737511984044},{"$f":"(BZ71*'Default-Data'!$F$19/biopower_dollar_index)/'Mexico-IO-Data'!$AS13","v":2712.5898890340022},{"$f":"(CA71*'Default-Data'!$F$19/biopower_dollar_index)/'Mexico-IO-Data'!$AS13","v":336.39428741905471},{"$f":"(CB71*'Default-Data'!$F$19/biopower_dollar_index)/'Mexico-IO-Data'!$AS13","v":86.830031974131387},null,"TTL_C01T05: Agriculture, hunting, forestry and fishing",0,{"$f":"'Biopower-Inputs'!B41*'Biopower-Inputs'!B38+'Biopower-Inputs'!B41*'Biopower-Inputs'!B39*0.9","v":28385431.684592765},null,{"$f":"MMULT(Philippines_L1,CH71:CH104)-CH71:CH104","v":5640607.6428835886},{"$f":"MMULT(Philippines_L2,CH71:CH105)-CK71:CK105-CH71:CH105","v":34849483.504877165},{"$f":"CH71*'Philippines-IO-Data'!AN13","v":0},{"$f":"CK71*'Philippines-IO-Data'!$AN13","v":3980897.166391124},{"$f":"CL71*'Philippines-IO-Data'!$AN13","v":24595259.751808781},{"$f":"CH71*'Philippines-IO-Data'!AO13","v":0},{"$f":"CK71*'Philippines-IO-Data'!$AO13","v":1145884.306686148},{"$f":"CL71*'Philippines-IO-Data'!$AO13","v":7079640.8423723923},{"$f":"(CP71*'Default-Data'!$F$19/biopower_dollar_index)/'Philippines-IO-Data'!$AP13","v":0},{"$f":"(CQ71*'Default-Data'!$F$19/biopower_dollar_index)/'Philippines-IO-Data'!$AP13","v":661.03764999888665},{"$f":"(CR71*'Default-Data'!$F$19/biopower_dollar_index)/'Philippines-IO-Data'!$AP13","v":4084.1026602520601},{"$f":"MMULT(Philippines_L1,CI71:CI104)-CI71:CI104","v":2429866.3403330967},{"$f":"MMULT(Philippines_L2,CI71:CI105)-CV71:CV105-CI71:CI105","v":3484157.5680419095},{"$f":"CI71*'Philippines-IO-Data'!AN13","v":20033211.262717191},{"$f":"CV71*'Philippines-IO-Data'!$AN13","v":1714894.6782613201},{"$f":"CW71*'Philippines-IO-Data'!$AN13","v":2458967.8750971546},{"$f":"CI71*'Philippines-IO-Data'!AO13","v":5766474.6008212799},{"$f":"CV71*'Philippines-IO-Data'!$AO13","v":493625.13456248603},{"$f":"CW71*'Philippines-IO-Data'!$AO13","v":707803.43750340794},{"$f":"(DA71*'Default-Data'!$F$19/biopower_dollar_index)/'Philippines-IO-Data'!$AP13","v":3326.563420637905},{"$f":"(DB71*'Default-Data'!$F$19/biopower_dollar_index)/'Philippines-IO-Data'!$AP13","v":284.7624293548713},{"$f":"(DC71*'Default-Data'!$F$19/biopower_dollar_index)/'Philippines-IO-Data'!$AP13","v":408.31759214984862},null,"DOM_C01T05: Agriculture, hunting, forestry and fishing",{"$f":"AF71","v":0},{"$f":"AG71","v":28385431.684592765},null,{"$f":"MMULT(SouthAfrica_L1,DI71:DI104)-DI71:DI104","v":4720287.2894381825},{"$f":"MMULT(SouthAfrica_L2,DI71:DI105)-DI71:DI105-DL71:DL105","v":22007502.634515733},{"$f":"DI71*'SouthAfrica-IO-Data'!AR13","v":0},{"$f":"DL71*'Mexico-IO-Data'!$AQ13","v":2878787.36736478},{"$f":"DM71*'Mexico-IO-Data'!$AQ13","v":13421835.724543713},{"$f":"DI71*'SouthAfrica-IO-Data'!AS13","v":0},{"$f":"DL71*'Mexico-IO-Data'!$AR13","v":474236.29852227861},{"$f":"DM71*'Mexico-IO-Data'!$AR13","v":2211042.665234522},{"$f":"(DQ71*'Default-Data'!$F$19/biopower_dollar_index)/'SouthAfrica-IO-Data'!$AT13","v":0},{"$f":"(DR71*'Default-Data'!$F$19/biopower_dollar_index)/'SouthAfrica-IO-Data'!$AT13","v":32.952864203272206},{"$f":"(DS71*'Default-Data'!$F$19/biopower_dollar_index)/'SouthAfrica-IO-Data'!$AT13","v":153.63688718503153},{"$f":"MMULT(SouthAfrica_L1,DJ71:DJ104)-DJ71:DJ104","v":1357746.5901010595},{"$f":"MMULT(SouthAfrica_L2,DJ71:DJ105)-DJ71:DJ105-DW71:DW105","v":1880593.5846988894},{"$f":"DJ71*'SouthAfrica-IO-Data'!AR13","v":11463424.600471133},{"$f":"DW71*'SouthAfrica-IO-Data'!$AR13","v":548324.43047249643},{"$f":"DX71*'SouthAfrica-IO-Data'!$AR13","v":759475.60008491471},{"$f":"DJ71*'SouthAfrica-IO-Data'!AS13","v":3516507.1907978705},{"$f":"DW71*'SouthAfrica-IO-Data'!$AS13","v":168203.38335609017},{"$f":"DX71*'SouthAfrica-IO-Data'!$AS13","v":232975.87780394769},{"$f":"(EB71*'Default-Data'!$F$19/biopower_dollar_index)/'SouthAfrica-IO-Data'!$AT13","v":244.34861753364646},{"$f":"(EC71*'Default-Data'!$F$19/biopower_dollar_index)/'SouthAfrica-IO-Data'!$AT13","v":11.687808941524512},{"$f":"(ED71*'Default-Data'!$F$19/biopower_dollar_index)/'SouthAfrica-IO-Data'!$AT13","v":16.188601521717906},null,"MAIZE",0,{"$f":"IF(biopower_feedstock=\"Maize Stover\",'Biopower-Inputs'!B41*'Biopower-Inputs'!B38+'Biopower-Inputs'!B41*'Biopower-Inputs'!B39*0.9,0)","v":0},null,{"$f":"MMULT(Zambia_L1,EJ71:EJ97)-EJ71:EJ97","v":4563.267478726284},{"$f":"MMULT(Zambia_L2,EJ71:EJ112)-EM71:EM112-EJ71:EJ112","v":14170385.348149285},{"$f":"EJ71*'Zambia-IO-Data'!BO11","v":0},{"$f":"EM71*'Zambia-IO-Data'!$BO11","v":1801.7536718278695},{"$f":"EN71*'Zambia-IO-Data'!$BO11","v":5595013.6500370735},{"$f":"EJ71*'Zambia-IO-Data'!BN11","v":0},{"$f":"EM71*'Zambia-IO-Data'!$BN11","v":1431.6004988698849},{"$f":"EN71*'Zambia-IO-Data'!$BN11","v":4445571.255282063},{"$f":"(ER71*'Default-Data'!$F$19/biopower_dollar_index)/'Zambia-IO-Data'!$BP11","v":0},{"$f":"(ES71*'Default-Data'!$F$19/biopower_dollar_index)/'Zambia-IO-Data'!$BP11","v":13.862371029355572},{"$f":"(ET71*'Default-Data'!$F$19/biopower_dollar_index)/'Zambia-IO-Data'!$BP11","v":43047.035976032465},{"$f":"MMULT(Zambia_L1,EK71:EK97)-EK71:EK97","v":227.58399420199933},{"$f":"MMULT(Zambia_L2,EK71:EK112)-EX71:EX112-EK71:EK112","v":2017481.699777616},{"$f":"EK71*'Zambia-IO-Data'!BO11","v":0},{"$f":"EX71*'Zambia-IO-Data'!$BO11","v":89.85892216801625},{"$f":"EY71*'Zambia-IO-Data'!$BO11","v":796579.44167552225},{"$f":"EK71*'Zambia-IO-Data'!BN11","v":0},{"$f":"EX71*'Zambia-IO-Data'!$BN11","v":71.398260381029502},{"$f":"EY71*'Zambia-IO-Data'!$BN11","v":632929.76388679084},{"$f":"(FC71*'Default-Data'!$F$19/biopower_dollar_index)/'Zambia-IO-Data'!$BP11","v":0},{"$f":"(FD71*'Default-Data'!$F$19/biopower_dollar_index)/'Zambia-IO-Data'!$BP11","v":0.69135850192402404},{"$f":"(FE71*'Default-Data'!$F$19/biopower_dollar_index)/'Zambia-IO-Data'!$BP11","v":6128.7399867821323},null,"TTL_C01T05: Agriculture, hunting, forestry and fishing",{"$f":"CH71","v":0},{"$f":"CI71","v":28385431.684592765},null,{"$f":"MMULT(CustomRegion1_L1,FK71:FK104)-FK71:FK104","v":10616171.051869627},{"$f":"MMULT(CustomRegion1_L2,FK71:FK105)-FK71:FK105-FN71:FN105","v":45734123.251885772},{"$f":"FK71*CustomRegion1!C9","v":0},{"$f":"FN71*CustomRegion1!$C9","v":7492434.8463822911},{"$f":"FO71*CustomRegion1!$C9","v":32277168.203768276},{"$f":"FK71*CustomRegion1!D9","v":0},{"$f":"FN71*CustomRegion1!$D9","v":2156665.4828014676},{"$f":"FO71*CustomRegion1!$D9","v":9290845.4961414393},{"$f":"(FS71*'Default-Data'!$F$19/biopower_dollar_index)/CustomRegion1!$E9","v":0},{"$f":"(FT71*'Default-Data'!$F$19/biopower_dollar_index)/CustomRegion1!$E9","v":1244.1370165088326},{"$f":"(FU71*'Default-Data'!$F$19/biopower_dollar_index)/CustomRegion1!$E9","v":5359.7022294801618},{"$f":"MMULT(CustomRegion1_L1,FL71:FL104)-FL71:FL104","v":2848302.8476619646},{"$f":"MMULT(CustomRegion1_L2,FL71:FL105)-FY71:FY105-FL71:FL105","v":4407321.3060007133},{"$f":"FL71*CustomRegion1!C9","v":20033211.262717191},{"$f":"FY71*CustomRegion1!$C9","v":2010209.0861765149},{"$f":"FZ71*CustomRegion1!$C9","v":3110496.9551585536},{"$f":"FL71*CustomRegion1!D9","v":5766474.6008212799},{"$f":"FY71*CustomRegion1!$D9","v":578630.13002563326},{"$f":"FZ71*CustomRegion1!$D9","v":895343.31029766751},{"$f":"(GD71*'Default-Data'!$C$58/biopower_dollar_index)/CustomRegion1!$E9","v":3326.563420637905},{"$f":"(GE71*'Default-Data'!$C$58/biopower_dollar_index)/CustomRegion1!$E9","v":333.80010454708031},{"$f":"(GF71*'Default-Data'!$C$58/biopower_dollar_index)/CustomRegion1!$E9","v":516.50557942713885},null,"C01T05 Agriculture, hunting, forestry and fishing",{"$f":"BG71","v":0},{"$f":"BH71","v":28385431.684592765},null,{"$f":"MMULT(CustomRegion2_L1,GL71:GL107)-GL71:GL107","v":6527341.3722476289},{"$f":"MMULT(CustomRegion2_L2,GL71:GL109)-GL71:GL109-GO71:GO109","v":21878246.330996118},{"$f":"GL71*CustomRegion2!C13","v":0},{"$f":"GO71*CustomRegion2!$C13","v":4022026.7364020823},{"$f":"GP71*CustomRegion2!$C13","v":13480969.765575005},{"$f":"GL71*CustomRegion2!D13","v":0},{"$f":"GO71*CustomRegion2!$D13","v":722293.73050651327},{"$f":"GP71*CustomRegion2!$D13","v":2420973.4497024128},{"$f":"(GT71*'Default-Data'!$C$59/biopower_dollar_index)/CustomRegion2!$E13","v":0},{"$f":"(GU71*'Default-Data'!$C$59/biopower_dollar_index)/CustomRegion2!$E13","v":687.03066210863085},{"$f":"(GV71*'Default-Data'!$C$59/biopower_dollar_index)/CustomRegion2!$E13","v":2302.7792182691055},{"$f":"MMULT(CustomRegion2_L1,GM71:GM107)-GM71:GM107","v":4257502.0596310832},{"$f":"MMULT(CustomRegion2_L2,GM71:GM109)-GM71:GM109-GZ71:GZ109","v":995496.36120358109},{"$f":"GM71*CustomRegion2!C13","v":17490576.736977763},{"$f":"GZ71*CustomRegion2!$C13","v":2623393.8348817709},{"$f":"HA71*CustomRegion2!$C13","v":613406.40123025735},{"$f":"GM71*CustomRegion2!D13","v":3141036.7827050546},{"$f":"GZ71*CustomRegion2!$D13","v":471120.91583945975},{"$f":"HA71*CustomRegion2!$D13","v":110158.29254718433},{"$f":"(HE71*'Default-Data'!$C$59/biopower_dollar_index)/CustomRegion2!$E13","v":2987.6883730059703},{"$f":"(HF71*'Default-Data'!$C$59/biopower_dollar_index)/CustomRegion2!$E13","v":448.12034366604519},{"$f":"(HG71*'Default-Data'!$C$59/biopower_dollar_index)/CustomRegion2!$E13","v":104.78025970456051},null,"MAIZE",{"$f":"EJ71","v":0},{"$f":"EK71","v":0},null,{"$f":"MMULT(CustomRegion3_L1,HM71:HM97)-HM71:HM97","v":4563.267478726284},{"$f":"MMULT(CustomRegion3_L2,HM71:HM112)-HM71:HM112-HP71:HP112","v":14170385.348149285},{"$f":"HM71*CustomRegion3!D12","v":0},{"$f":"HP71*CustomRegion3!$D12","v":1801.7536718278695},{"$f":"HQ71*CustomRegion3!$D12","v":5595013.6500370735},{"$f":"HM71*CustomRegion3!E12","v":0},{"$f":"HP71*CustomRegion3!$E12","v":1431.6004988698849},{"$f":"HQ71*CustomRegion3!$E12","v":4445571.255282063},{"$f":"(HU71*'Default-Data'!$C$60/biopower_dollar_index)/CustomRegion3!$F12","v":0},{"$f":"(HV71*'Default-Data'!$C$60/biopower_dollar_index)/CustomRegion3!$F12","v":13.862371029355572},{"$f":"(HW71*'Default-Data'!$C$60/biopower_dollar_index)/CustomRegion3!$F12","v":43047.035976032465},{"$f":"MMULT(CustomRegion3_L1,HN71:HN97)-HN71:HN97","v":227.58399420199933},{"$f":"MMULT(CustomRegion3_L2,HN71:HN112)-HN71:HN112-IA71:IA112","v":2017481.699777616},{"$f":"HN71*CustomRegion3!D12","v":0},{"$f":"IA71*CustomRegion3!$D12","v":89.85892216801625},{"$f":"IB71*CustomRegion3!$D12","v":796579.44167552225},{"$f":"HN71*CustomRegion3!E12","v":0},{"$f":"IA71*CustomRegion3!$E12","v":71.398260381029502},{"$f":"IB71*CustomRegion3!$E12","v":632929.76388679084},{"$f":"(IF71*'Default-Data'!$C$60/biopower_dollar_index)/CustomRegion3!$F12","v":0},{"$f":"(IG71*'Default-Data'!$C$60/biopower_dollar_index)/CustomRegion3!$F12","v":0.69135850192402404},{"$f":"(IH71*'Default-Data'!$C$60/biopower_dollar_index)/CustomRegion3!$F12","v":6128.7399867821323}]
[null,242,"Agriculture",{"$f":"HLOOKUP(geo_country&D$1,$AF$2:$IK$320,$B72,FALSE)","v":0},0,0,54358.814563649357,1230081.315100058,0,33152.106868771501,750196.40407585783,0,5461.3038211477715,{"$f":"HLOOKUP(geo_country&N$1,$AF$2:$IK$320,$B72,FALSE)","v":123583.41219182433},0,5.348934122516674,121.0406071696933,695.13966568923729,7092.9704839998631,0,423.94862122439469,4325.8286147367908,0,69.839067369925885,712.61426722614362,0,6.8402085431172266E-2,0.69795178861831686,null,71,"TTL_C10T14: Mining and quarrying",0,0,null,25092561.436293732,5108375.8299558051,{"$f":"'Colombia-IO-Data'!$AN14*Calculations!AF72","v":0},{"$f":"'Colombia-IO-Data'!$AN14*AI72","v":20547878.337436114},{"$f":"'Colombia-IO-Data'!$AN14*AJ72","v":4183163.4176656236},{"$f":"'Colombia-IO-Data'!$AO14*Calculations!AK72","v":0},{"$f":"'Colombia-IO-Data'!$AO14*Calculations!AL72","v":1704296.6095893967},{"$f":"'Colombia-IO-Data'!$AO14*Calculations!AM72","v":346962.88896635006},{"$f":"(AN72*'Default-Data'!$F$19/biopower_dollar_index)/'Colombia-IO-Data'!$AP14","v":0},{"$f":"(AO72*'Default-Data'!$F$19/biopower_dollar_index)/'Colombia-IO-Data'!$AP14","v":162.51003011411052},{"$f":"(AP72*'Default-Data'!$F$19/biopower_dollar_index)/'Colombia-IO-Data'!$AP14","v":33.084000294986645},4608617.0909314696,491390.04858679138,{"$f":"'Colombia-IO-Data'!$AN14*AG72","v":0},{"$f":"'Colombia-IO-Data'!$AN14*AT72","v":3773919.3556907652},{"$f":"'Colombia-IO-Data'!$AN14*AU72","v":402391.08152521792},{"$f":"'Colombia-IO-Data'!$AO14*AV72","v":0},{"$f":"'Colombia-IO-Data'!$AO14*AW72","v":313019.07949539268},{"$f":"'Colombia-IO-Data'!$AO14*AX72","v":33375.404735728553},{"$f":"(AY72*'Default-Data'!$F$19/biopower_dollar_index)/'Colombia-IO-Data'!$AP14","v":0},{"$f":"(AZ72*'Default-Data'!$F$19/biopower_dollar_index)/'Colombia-IO-Data'!$AP14","v":29.847351540142324},{"$f":"(BA72*'Default-Data'!$F$19/biopower_dollar_index)/'Colombia-IO-Data'!$AP14","v":3.1824495795838019},null,"DOM_C10T14: Mining and quarrying",{"$f":"AF72","v":0},{"$f":"AG72","v":0},null,21278994.402083267,7605095.4317032844,{"$f":"BG72*'Mexico-IO-Data'!AQ14","v":0},{"$f":"BJ72*'Mexico-IO-Data'!$AQ14","v":18319668.18714555},{"$f":"BK72*'Mexico-IO-Data'!$AQ14","v":6547434.6300284071},{"$f":"BG72*'Mexico-IO-Data'!AR14","v":0},{"$f":"BJ72*'Mexico-IO-Data'!$AR14","v":1136953.2140772243},{"$f":"BK72*'Mexico-IO-Data'!$AR14","v":406346.161432917},{"$f":"(BO72*'Default-Data'!$F$19/biopower_dollar_index)/'Mexico-IO-Data'!$AS14","v":0},{"$f":"(BP72*'Default-Data'!$F$19/biopower_dollar_index)/'Mexico-IO-Data'!$AS14","v":59.209188640181466},{"$f":"(BQ72*'Default-Data'!$F$19/biopower_dollar_index)/'Mexico-IO-Data'!$AS14","v":21.161316250838311},6651302.3672634261,501828.25669613015,{"$f":"BH72*'Mexico-IO-Data'!AQ14","v":0},{"$f":"BU72*'Mexico-IO-Data'!$AQ14","v":5726288.0979334386},{"$f":"BV72*'Mexico-IO-Data'!$AQ14","v":432037.66944488487},{"$f":"BH72*'Mexico-IO-Data'!AR14","v":0},{"$f":"BU72*'Mexico-IO-Data'!$AR14","v":355384.25648155826},{"$f":"BV72*'Mexico-IO-Data'!$AR14","v":26813.073897400751},{"$f":"(BZ72*'Default-Data'!$F$19/biopower_dollar_index)/'Mexico-IO-Data'!$AS14","v":0},{"$f":"(CA72*'Default-Data'!$F$19/biopower_dollar_index)/'Mexico-IO-Data'!$AS14","v":18.5073697151605},{"$f":"(CB72*'Default-Data'!$F$19/biopower_dollar_index)/'Mexico-IO-Data'!$AS14","v":1.3963462442936505},null,"TTL_C10T14: Mining and quarrying",0,0,null,9219245.99284067,1947367.0800391361,{"$f":"CH72*'Philippines-IO-Data'!AN14","v":0},{"$f":"CK72*'Philippines-IO-Data'!$AN14","v":5307393.6582011124},{"$f":"CL72*'Philippines-IO-Data'!$AN14","v":1121072.5582998281},{"$f":"CH72*'Philippines-IO-Data'!AO14","v":0},{"$f":"CK72*'Philippines-IO-Data'!$AO14","v":1387365.7121397725},{"$f":"CL72*'Philippines-IO-Data'!$AO14","v":293051.11479768466},{"$f":"(CP72*'Default-Data'!$F$19/biopower_dollar_index)/'Philippines-IO-Data'!$AP14","v":0},{"$f":"(CQ72*'Default-Data'!$F$19/biopower_dollar_index)/'Philippines-IO-Data'!$AP14","v":431.57142482054371},{"$f":"(CR72*'Default-Data'!$F$19/biopower_dollar_index)/'Philippines-IO-Data'!$AP14","v":91.160164945566876},1080526.4091840347,194692.51958137262,{"$f":"CI72*'Philippines-IO-Data'!AN14","v":0},{"$f":"CV72*'Philippines-IO-Data'!$AN14","v":622044.25568811002},{"$f":"CW72*'Philippines-IO-Data'!$AN14","v":112081.81716029745},{"$f":"CI72*'Philippines-IO-Data'!AO14","v":0},{"$f":"CV72*'Philippines-IO-Data'!$AO14","v":162603.8932389454},{"$f":"CW72*'Philippines-IO-Data'!$AO14","v":29298.461749155511},{"$f":"(DA72*'Default-Data'!$F$19/biopower_dollar_index)/'Philippines-IO-Data'!$AP14","v":0},{"$f":"(DB72*'Default-Data'!$F$19/biopower_dollar_index)/'Philippines-IO-Data'!$AP14","v":50.581611807506839},{"$f":"(DC72*'Default-Data'!$F$19/biopower_dollar_index)/'Philippines-IO-Data'!$AP14","v":9.1139479457305246},null,"DOM_C10T14: Mining and quarrying",{"$f":"AF72","v":0},{"$f":"AG72","v":0},null,37630280.059026539,11631762.913489759,{"$f":"DI72*'SouthAfrica-IO-Data'!AR14","v":0},{"$f":"DL72*'Mexico-IO-Data'!$AQ14","v":32396937.159926813},{"$f":"DM72*'Mexico-IO-Data'!$AQ14","v":10014102.780431002},{"$f":"DI72*'SouthAfrica-IO-Data'!AS14","v":0},{"$f":"DL72*'Mexico-IO-Data'!$AR14","v":2010615.1188962038},{"$f":"DM72*'Mexico-IO-Data'!$AR14","v":621494.13548328681},{"$f":"(DQ72*'Default-Data'!$F$19/biopower_dollar_index)/'SouthAfrica-IO-Data'!$AT14","v":0},{"$f":"(DR72*'Default-Data'!$F$19/biopower_dollar_index)/'SouthAfrica-IO-Data'!$AT14","v":127.38562108185469},{"$f":"(DS72*'Default-Data'!$F$19/biopower_dollar_index)/'SouthAfrica-IO-Data'!$AT14","v":39.375719252887947},6204625.4500506567,993961.88096053898,{"$f":"DJ72*'SouthAfrica-IO-Data'!AR14","v":0},{"$f":"DW72*'SouthAfrica-IO-Data'!$AR14","v":3695441.1684355969},{"$f":"DX72*'SouthAfrica-IO-Data'!$AR14","v":591998.28971582314},{"$f":"DJ72*'SouthAfrica-IO-Data'!AS14","v":0},{"$f":"DW72*'SouthAfrica-IO-Data'!$AS14","v":1252060.8140223031},{"$f":"DX72*'SouthAfrica-IO-Data'!$AS14","v":200576.28487025457},{"$f":"(EB72*'Default-Data'!$F$19/biopower_dollar_index)/'SouthAfrica-IO-Data'!$AT14","v":0},{"$f":"(EC72*'Default-Data'!$F$19/biopower_dollar_index)/'SouthAfrica-IO-Data'!$AT14","v":79.326243460281773},{"$f":"(ED72*'Default-Data'!$F$19/biopower_dollar_index)/'SouthAfrica-IO-Data'!$AT14","v":12.707819802188313},null,"DRSTAP",0,0,null,5120.0195614965724,8490279.3142683376,{"$f":"EJ72*'Zambia-IO-Data'!BO12","v":0},{"$f":"EM72*'Zambia-IO-Data'!$BO12","v":2727.9936088409995},{"$f":"EN72*'Zambia-IO-Data'!$BO12","v":4523699.0656787502},{"$f":"EJ72*'Zambia-IO-Data'!BN12","v":0},{"$f":"EM72*'Zambia-IO-Data'!$BN12","v":2473.509604923011},{"$f":"EN72*'Zambia-IO-Data'!$BN12","v":4101700.6243982785},{"$f":"(ER72*'Default-Data'!$F$19/biopower_dollar_index)/'Zambia-IO-Data'!$BP12","v":0},{"$f":"(ES72*'Default-Data'!$F$19/biopower_dollar_index)/'Zambia-IO-Data'!$BP12","v":23.95131037966614},{"$f":"(ET72*'Default-Data'!$F$19/biopower_dollar_index)/'Zambia-IO-Data'!$BP12","v":39717.292604768911},248.29512480745632,1211904.9823014892,{"$f":"EK72*'Zambia-IO-Data'!BO12","v":0},{"$f":"EX72*'Zambia-IO-Data'!$BO12","v":132.29393080348538},{"$f":"EY72*'Zambia-IO-Data'!$BO12","v":645714.14357539464},{"$f":"EK72*'Zambia-IO-Data'!BN12","v":0},{"$f":"EX72*'Zambia-IO-Data'!$BN12","v":119.95274015853234},{"$f":"EY72*'Zambia-IO-Data'!$BN12","v":585477.96116243268},{"$f":"(FC72*'Default-Data'!$F$19/biopower_dollar_index)/'Zambia-IO-Data'!$BP12","v":0},{"$f":"(FD72*'Default-Data'!$F$19/biopower_dollar_index)/'Zambia-IO-Data'!$BP12","v":1.1615177498038762},{"$f":"(FE72*'Default-Data'!$F$19/biopower_dollar_index)/'Zambia-IO-Data'!$BP12","v":5669.2581020691096},null,"TTL_C10T14: Mining and quarrying",{"$f":"CH72","v":0},{"$f":"CI72","v":0},null,67073794.05858843,17751947.22415559,{"$f":"FK72*CustomRegion1!C10","v":0},{"$f":"FN72*CustomRegion1!$C10","v":38613464.647161625},{"$f":"FO72*CustomRegion1!$C10","v":10219552.89959389},{"$f":"FK72*CustomRegion1!D10","v":0},{"$f":"FN72*CustomRegion1!$D10","v":10093654.311022157},{"$f":"FO72*CustomRegion1!$D10","v":2671416.1788972574},{"$f":"(FS72*'Default-Data'!$F$19/biopower_dollar_index)/CustomRegion1!$E10","v":0},{"$f":"(FT72*'Default-Data'!$F$19/biopower_dollar_index)/CustomRegion1!$E10","v":3139.8590397158314},{"$f":"(FU72*'Default-Data'!$F$19/biopower_dollar_index)/CustomRegion1!$E10","v":831.00431020252176},7889709.8545682803,1710725.595265355,{"$f":"FL72*CustomRegion1!C10","v":0},{"$f":"FY72*CustomRegion1!$C10","v":4541997.9117272906},{"$f":"FZ72*CustomRegion1!$C10","v":984841.29637982021},{"$f":"FL72*CustomRegion1!D10","v":0},{"$f":"FY72*CustomRegion1!$D10","v":1187289.3878153916},{"$f":"FZ72*CustomRegion1!$D10","v":257439.92899138961},{"$f":"(GD72*'Default-Data'!$C$58/biopower_dollar_index)/CustomRegion1!$E10","v":0},{"$f":"(GE72*'Default-Data'!$C$58/biopower_dollar_index)/CustomRegion1!$E10","v":369.33316737625785},{"$f":"(GF72*'Default-Data'!$C$58/biopower_dollar_index)/CustomRegion1!$E10","v":80.082501670850206},null,"C10T14 Mining and quarrying",{"$f":"BG72","v":0},{"$f":"BH72","v":0},null,23293374.952944711,12149323.161481351,{"$f":"GL72*CustomRegion2!C14","v":0},{"$f":"GO72*CustomRegion2!$C14","v":18929493.683941431},{"$f":"GP72*CustomRegion2!$C14","v":9873216.5911557097},{"$f":"GL72*CustomRegion2!D14","v":0},{"$f":"GO72*CustomRegion2!$D14","v":1493965.9633875531},{"$f":"GP72*CustomRegion2!$D14","v":779220.50016863784},{"$f":"(GT72*'Default-Data'!$C$59/biopower_dollar_index)/CustomRegion2!$E14","v":0},{"$f":"(GU72*'Default-Data'!$C$59/biopower_dollar_index)/CustomRegion2!$E14","v":77.801365485401519},{"$f":"(GV72*'Default-Data'!$C$59/biopower_dollar_index)/CustomRegion2!$E14","v":40.57951815038161},1511374.9275065039,552814.28023807681,{"$f":"GM72*CustomRegion2!C14","v":0},{"$f":"GZ72*CustomRegion2!$C14","v":1228227.4338560384},{"$f":"HA72*CustomRegion2!$C14","v":449247.67009069241},{"$f":"GM72*CustomRegion2!D14","v":0},{"$f":"GZ72*CustomRegion2!$D14","v":96934.974179282755},{"$f":"HA72*CustomRegion2!$D14","v":35455.82039608511},{"$f":"(HE72*'Default-Data'!$C$59/biopower_dollar_index)/CustomRegion2!$E14","v":0},{"$f":"(HF72*'Default-Data'!$C$59/biopower_dollar_index)/CustomRegion2!$E14","v":5.0480891394203296},{"$f":"(HG72*'Default-Data'!$C$59/biopower_dollar_index)/CustomRegion2!$E14","v":1.8464351322741477},null,"DRSTAP",{"$f":"EJ72","v":0},{"$f":"EK72","v":0},null,5120.0195614965724,8490279.3142683376,{"$f":"HM72*CustomRegion3!D13","v":0},{"$f":"HP72*CustomRegion3!$D13","v":2727.9936088409995},{"$f":"HQ72*CustomRegion3!$D13","v":4523699.0656787502},{"$f":"HM72*CustomRegion3!E13","v":0},{"$f":"HP72*CustomRegion3!$E13","v":2473.509604923011},{"$f":"HQ72*CustomRegion3!$E13","v":4101700.6243982785},{"$f":"(HU72*'Default-Data'!$C$60/biopower_dollar_index)/CustomRegion3!$F13","v":0},{"$f":"(HV72*'Default-Data'!$C$60/biopower_dollar_index)/CustomRegion3!$F13","v":23.95131037966614},{"$f":"(HW72*'Default-Data'!$C$60/biopower_dollar_index)/CustomRegion3!$F13","v":39717.292604768911},248.29512480745632,1211904.9823014892,{"$f":"HN72*CustomRegion3!D13","v":0},{"$f":"IA72*CustomRegion3!$D13","v":132.29393080348538},{"$f":"IB72*CustomRegion3!$D13","v":645714.14357539464},{"$f":"HN72*CustomRegion3!E13","v":0},{"$f":"IA72*CustomRegion3!$E13","v":119.95274015853234},{"$f":"IB72*CustomRegion3!$E13","v":585477.96116243268},{"$f":"(IF72*'Default-Data'!$C$60/biopower_dollar_index)/CustomRegion3!$F13","v":0},{"$f":"(IG72*'Default-Data'!$C$60/biopower_dollar_index)/CustomRegion3!$F13","v":1.1615177498038762},{"$f":"(IH72*'Default-Data'!$C$60/biopower_dollar_index)/CustomRegion3!$F13","v":5669.2581020691096}]
[null,243,"Mining and Extraction",4986045.0041046599,288013.58303989517,0,4557334.4192598024,679371.94369162247,4292622.49500049,3923533.8287660563,584889.88478084153,4292622.49500049,243501.92108208427,36299.371123405152,230.1854401673327,13.057425140727236,1.9464993088886628,63473.995263737394,3917.4362581635942,247958.76980752466,54646.498315271609,3372.6280028920919,15388.789655541588,3391.4649142613343,209.31166485130996,0.82520075423099415,0.18186221709701531,1.1224023953205906E-2,null,72,"TTL_C15T16: Food products, beverages and tobacco",0,0,null,2867986.945523968,35254235.109424189,{"$f":"'Colombia-IO-Data'!$AN15*Calculations!AF73","v":0},{"$f":"'Colombia-IO-Data'!$AN15*AI73","v":656619.43122228736},{"$f":"'Colombia-IO-Data'!$AN15*AJ73","v":8071381.1622659806},{"$f":"'Colombia-IO-Data'!$AO15*Calculations!AK73","v":0},{"$f":"'Colombia-IO-Data'!$AO15*Calculations!AL73","v":230430.99936500835},{"$f":"'Colombia-IO-Data'!$AO15*Calculations!AM73","v":2832533.3351994823},{"$f":"(AN73*'Default-Data'!$F$19/biopower_dollar_index)/'Colombia-IO-Data'!$AP15","v":0},{"$f":"(AO73*'Default-Data'!$F$19/biopower_dollar_index)/'Colombia-IO-Data'!$AP15","v":54.170519571128501},{"$f":"(AP73*'Default-Data'!$F$19/biopower_dollar_index)/'Colombia-IO-Data'!$AP15","v":665.88177325588481},2934913.7256532842,3391210.9993402939,{"$f":"'Colombia-IO-Data'!$AN15*AG73","v":0},{"$f":"'Colombia-IO-Data'!$AN15*AT73","v":671942.17331866815},{"$f":"'Colombia-IO-Data'!$AN15*AU73","v":776410.45089721435},{"$f":"'Colombia-IO-Data'!$AO15*AV73","v":0},{"$f":"'Colombia-IO-Data'!$AO15*AW73","v":235808.29191285255},{"$f":"'Colombia-IO-Data'!$AO15*AX73","v":272469.90815462975},{"$f":"(AY73*'Default-Data'!$F$19/biopower_dollar_index)/'Colombia-IO-Data'!$AP15","v":0},{"$f":"(AZ73*'Default-Data'!$F$19/biopower_dollar_index)/'Colombia-IO-Data'!$AP15","v":55.434632177528577},{"$f":"(BA73*'Default-Data'!$F$19/biopower_dollar_index)/'Colombia-IO-Data'!$AP15","v":64.053172242047225},null,"DOM_C15T16: Food products, beverages and tobacco",0,0,null,703845.12673205161,37546807.302428499,{"$f":"BG73*'Mexico-IO-Data'!AQ15","v":0},{"$f":"BJ73*'Mexico-IO-Data'!$AQ15","v":273448.44017790351},{"$f":"BK73*'Mexico-IO-Data'!$AQ15","v":14587180.475596305},{"$f":"BG73*'Mexico-IO-Data'!AR15","v":0},{"$f":"BJ73*'Mexico-IO-Data'!$AR15","v":47212.384300193233},{"$f":"BK73*'Mexico-IO-Data'!$AR15","v":2518557.3193325512},{"$f":"(BO73*'Default-Data'!$F$19/biopower_dollar_index)/'Mexico-IO-Data'!$AS15","v":0},{"$f":"(BP73*'Default-Data'!$F$19/biopower_dollar_index)/'Mexico-IO-Data'!$AS15","v":11.856264002893486},{"$f":"(BQ73*'Default-Data'!$F$19/biopower_dollar_index)/'Mexico-IO-Data'!$AS15","v":632.47558722223266},2418673.0290610446,2477555.8732026648,{"$f":"BH73*'Mexico-IO-Data'!AQ15","v":0},{"$f":"BU73*'Mexico-IO-Data'!$AQ15","v":939670.30810869124},{"$f":"BV73*'Mexico-IO-Data'!$AQ15","v":962546.67859451589},{"$f":"BH73*'Mexico-IO-Data'!AR15","v":0},{"$f":"BU73*'Mexico-IO-Data'!$AR15","v":162239.27140723704},{"$f":"BV73*'Mexico-IO-Data'!$AR15","v":166189.00318873004},{"$f":"(BZ73*'Default-Data'!$F$19/biopower_dollar_index)/'Mexico-IO-Data'!$AS15","v":0},{"$f":"(CA73*'Default-Data'!$F$19/biopower_dollar_index)/'Mexico-IO-Data'!$AS15","v":40.742522580741969},{"$f":"(CB73*'Default-Data'!$F$19/biopower_dollar_index)/'Mexico-IO-Data'!$AS15","v":41.734403491569182},null,"TTL_C15T16: Food products, beverages and tobacco",0,0,null,3499964.3462691773,27134097.014586337,{"$f":"CH73*'Philippines-IO-Data'!AN15","v":0},{"$f":"CK73*'Philippines-IO-Data'!$AN15","v":1165603.5280085613},{"$f":"CL73*'Philippines-IO-Data'!$AN15","v":9036548.9703465607},{"$f":"CH73*'Philippines-IO-Data'!AO15","v":0},{"$f":"CK73*'Philippines-IO-Data'!$AO15","v":203951.47271150484},{"$f":"CL73*'Philippines-IO-Data'!$AO15","v":1581170.1204101683},{"$f":"(CP73*'Default-Data'!$F$19/biopower_dollar_index)/'Philippines-IO-Data'!$AP15","v":0},{"$f":"(CQ73*'Default-Data'!$F$19/biopower_dollar_index)/'Philippines-IO-Data'!$AP15","v":63.44370983235364},{"$f":"(CR73*'Default-Data'!$F$19/biopower_dollar_index)/'Philippines-IO-Data'!$AP15","v":491.85866118647363},906881.73445737548,2712793.9916849504,{"$f":"CI73*'Philippines-IO-Data'!AN15","v":0},{"$f":"CV73*'Philippines-IO-Data'!$AN15","v":302021.5192468543},{"$f":"CW73*'Philippines-IO-Data'!$AN15","v":903449.84537885862},{"$f":"CI73*'Philippines-IO-Data'!AO15","v":0},{"$f":"CV73*'Philippines-IO-Data'!$AO15","v":52846.214137839852},{"$f":"CW73*'Philippines-IO-Data'!$AO15","v":158081.13312835319},{"$f":"(DA73*'Default-Data'!$F$19/biopower_dollar_index)/'Philippines-IO-Data'!$AP15","v":0},{"$f":"(DB73*'Default-Data'!$F$19/biopower_dollar_index)/'Philippines-IO-Data'!$AP15","v":16.43900792146821},{"$f":"(DC73*'Default-Data'!$F$19/biopower_dollar_index)/'Philippines-IO-Data'!$AP15","v":49.174705172889674},null,"DOM_C15T16: Food products, beverages and tobacco",0,0,null,5039132.5099590309,45858801.99089317,{"$f":"DI73*'SouthAfrica-IO-Data'!AR15","v":0},{"$f":"DL73*'Mexico-IO-Data'!$AQ15","v":1957735.9739575679},{"$f":"DM73*'Mexico-IO-Data'!$AQ15","v":17816444.835045312},{"$f":"DI73*'SouthAfrica-IO-Data'!AS15","v":0},{"$f":"DL73*'Mexico-IO-Data'!$AR15","v":338013.93454891868},{"$f":"DM73*'Mexico-IO-Data'!$AR15","v":3076107.6562298238},{"$f":"(DQ73*'Default-Data'!$F$19/biopower_dollar_index)/'SouthAfrica-IO-Data'!$AT15","v":0},{"$f":"(DR73*'Default-Data'!$F$19/biopower_dollar_index)/'SouthAfrica-IO-Data'!$AT15","v":26.331969200454871},{"$f":"(DS73*'Default-Data'!$F$19/biopower_dollar_index)/'SouthAfrica-IO-Data'!$AT15","v":239.63500844786776},3527175.9870911352,3918743.9964583851,{"$f":"DJ73*'SouthAfrica-IO-Data'!AR15","v":0},{"$f":"DW73*'SouthAfrica-IO-Data'!$AR15","v":923956.25544708117},{"$f":"DX73*'SouthAfrica-IO-Data'!$AR15","v":1026528.8838081065},{"$f":"DJ73*'SouthAfrica-IO-Data'!AS15","v":0},{"$f":"DW73*'SouthAfrica-IO-Data'!$AS15","v":478346.0804683477},{"$f":"DX73*'SouthAfrica-IO-Data'!$AS15","v":531449.47627369501},{"$f":"(EB73*'Default-Data'!$F$19/biopower_dollar_index)/'SouthAfrica-IO-Data'!$AT15","v":0},{"$f":"(EC73*'Default-Data'!$F$19/biopower_dollar_index)/'SouthAfrica-IO-Data'!$AT15","v":37.26412721670777},{"$f":"(ED73*'Default-Data'!$F$19/biopower_dollar_index)/'SouthAfrica-IO-Data'!$AT15","v":41.400989161917309},null,"GRNDNUT",0,0,null,38744.060694400338,4540938.6365156537,{"$f":"EJ73*'Zambia-IO-Data'!BO13","v":0},{"$f":"EM73*'Zambia-IO-Data'!$BO13","v":17475.670358321706},{"$f":"EN73*'Zambia-IO-Data'!$BO13","v":2048209.3334265212},{"$f":"EJ73*'Zambia-IO-Data'!BN13","v":0},{"$f":"EM73*'Zambia-IO-Data'!$BN13","v":14409.963313076023},{"$f":"EN73*'Zambia-IO-Data'!$BN13","v":1688897.807466456},{"$f":"(ER73*'Default-Data'!$F$19/biopower_dollar_index)/'Zambia-IO-Data'!$BP13","v":0},{"$f":"(ES73*'Default-Data'!$F$19/biopower_dollar_index)/'Zambia-IO-Data'!$BP13","v":139.53352078526842},{"$f":"(ET73*'Default-Data'!$F$19/biopower_dollar_index)/'Zambia-IO-Data'!$BP13","v":16353.813830217883},3374.6078144916091,562508.62147543952,{"$f":"EK73*'Zambia-IO-Data'!BO13","v":0},{"$f":"EX73*'Zambia-IO-Data'!$BO13","v":1522.1309459489678},{"$f":"EY73*'Zambia-IO-Data'!$BO13","v":253721.8625625243},{"$f":"EK73*'Zambia-IO-Data'!BN13","v":0},{"$f":"EX73*'Zambia-IO-Data'!$BN13","v":1255.1078521790548},{"$f":"EY73*'Zambia-IO-Data'!$BN13","v":209212.15932127548},{"$f":"(FC73*'Default-Data'!$F$19/biopower_dollar_index)/'Zambia-IO-Data'!$BP13","v":0},{"$f":"(FD73*'Default-Data'!$F$19/biopower_dollar_index)/'Zambia-IO-Data'!$BP13","v":12.153370121411898},{"$f":"(FE73*'Default-Data'!$F$19/biopower_dollar_index)/'Zambia-IO-Data'!$BP13","v":2025.8281403601009},null,"TTL_C15T16: Food products, beverages and tobacco",0,0,null,5823584.8143756678,37783822.644123033,{"$f":"FK73*CustomRegion1!C11","v":0},{"$f":"FN73*CustomRegion1!$C11","v":1939445.7582201059},{"$f":"FO73*CustomRegion1!$C11","v":12583258.747359952},{"$f":"FK73*CustomRegion1!D11","v":0},{"$f":"FN73*CustomRegion1!$D11","v":339354.51388764707},{"$f":"FO73*CustomRegion1!$D11","v":2201755.649640705},{"$f":"(FS73*'Default-Data'!$F$19/biopower_dollar_index)/CustomRegion1!$E11","v":0},{"$f":"(FT73*'Default-Data'!$F$19/biopower_dollar_index)/CustomRegion1!$E11","v":105.56388254102963},{"$f":"(FU73*'Default-Data'!$F$19/biopower_dollar_index)/CustomRegion1!$E11","v":684.90579989653804},1218341.3238739143,3641164.0744578945,{"$f":"FL73*CustomRegion1!C11","v":0},{"$f":"FY73*CustomRegion1!$C11","v":405747.8319571538},{"$f":"FZ73*CustomRegion1!$C11","v":1212627.6931278598},{"$f":"FL73*CustomRegion1!D11","v":0},{"$f":"FY73*CustomRegion1!$D11","v":70995.725294813878},{"$f":"FZ73*CustomRegion1!$D11","v":212179.52581760305},{"$f":"(GD73*'Default-Data'!$C$58/biopower_dollar_index)/CustomRegion1!$E11","v":0},{"$f":"(GE73*'Default-Data'!$C$58/biopower_dollar_index)/CustomRegion1!$E11","v":22.084823095702898},{"$f":"(GF73*'Default-Data'!$C$58/biopower_dollar_index)/CustomRegion1!$E11","v":66.003231500956147},null,"C15T16 Food products, beverages and tobacco",0,0,null,3087480.1336647193,45123424.170323513,{"$f":"GL73*CustomRegion2!C15","v":0},{"$f":"GO73*CustomRegion2!$C15","v":1221796.418152475},{"$f":"GP73*CustomRegion2!$C15","v":17856515.876795929},{"$f":"GL73*CustomRegion2!D15","v":0},{"$f":"GO73*CustomRegion2!$D15","v":296900.48222082021},{"$f":"GP73*CustomRegion2!$D15","v":4339191.1253277436},{"$f":"(GT73*'Default-Data'!$C$59/biopower_dollar_index)/CustomRegion2!$E15","v":0},{"$f":"(GU73*'Default-Data'!$C$59/biopower_dollar_index)/CustomRegion2!$E15","v":74.559473154632016},{"$f":"(GV73*'Default-Data'!$C$59/biopower_dollar_index)/CustomRegion2!$E15","v":1089.6843339616642},2766331.209422783,2053190.3648493765,{"$f":"GM73*CustomRegion2!C15","v":0},{"$f":"GZ73*CustomRegion2!$C15","v":1094709.4124568042},{"$f":"HA73*CustomRegion2!$C15","v":812500.97974899469},{"$f":"GM73*CustomRegion2!D15","v":0},{"$f":"GZ73*CustomRegion2!$D15","v":266017.92870007816},{"$f":"HA73*CustomRegion2!$D15","v":197440.36658508249},{"$f":"(HE73*'Default-Data'!$C$59/biopower_dollar_index)/CustomRegion2!$E15","v":0},{"$f":"(HF73*'Default-Data'!$C$59/biopower_dollar_index)/CustomRegion2!$E15","v":66.804056582207252},{"$f":"(HG73*'Default-Data'!$C$59/biopower_dollar_index)/CustomRegion2!$E15","v":49.58243786580433},null,"GRNDNUT",0,0,null,38744.060694400338,4540938.6365156537,{"$f":"HM73*CustomRegion3!D14","v":0},{"$f":"HP73*CustomRegion3!$D14","v":17475.670358321706},{"$f":"HQ73*CustomRegion3!$D14","v":2048209.3334265212},{"$f":"HM73*CustomRegion3!E14","v":0},{"$f":"HP73*CustomRegion3!$E14","v":14409.963313076023},{"$f":"HQ73*CustomRegion3!$E14","v":1688897.807466456},{"$f":"(HU73*'Default-Data'!$C$60/biopower_dollar_index)/CustomRegion3!$F14","v":0},{"$f":"(HV73*'Default-Data'!$C$60/biopower_dollar_index)/CustomRegion3!$F14","v":139.53352078526842},{"$f":"(HW73*'Default-Data'!$C$60/biopower_dollar_index)/CustomRegion3!$F14","v":16353.813830217883},3374.6078144916091,562508.62147543952,{"$f":"HN73*CustomRegion3!D14","v":0},{"$f":"IA73*CustomRegion3!$D14","v":1522.1309459489678},{"$f":"IB73*CustomRegion3!$D14","v":253721.8625625243},{"$f":"HN73*CustomRegion3!E14","v":0},{"$f":"IA73*CustomRegion3!$E14","v":1255.1078521790548},{"$f":"IB73*CustomRegion3!$E14","v":209212.15932127548},{"$f":"(IF73*'Default-Data'!$C$60/biopower_dollar_index)/CustomRegion3!$F14","v":0},{"$f":"(IG73*'Default-Data'!$C$60/biopower_dollar_index)/CustomRegion3!$F14","v":12.153370121411898},{"$f":"(IH73*'Default-Data'!$C$60/biopower_dollar_index)/CustomRegion3!$F14","v":2025.8281403601009}]
[null,244,"Utilities",27681668.869357347,397029.33187676605,0,966957.95184488595,648496.41789747402,12382778.442297276,432547.11763304024,290090.43859841075,12382778.442297276,104475.16621955068,70066.925788609849,683.40498867110284,5.7659797532029149,3.8669905020040374,9368.3232148129027,3739.3999036172172,177602.2347108383,4190.710874129154,1672.7373169649065,42897.113946601305,1012.2023643309986,404.02421402750963,2.3674898010418808,5.5863403237969581E-2,2.2298078310694268E-2,null,73,"TTL_C17T19: Textiles, textile products, leather and footwear",0,0,null,1082259.2703567413,9123771.6175076608,{"$f":"'Colombia-IO-Data'!$AN16*Calculations!AF74","v":0},{"$f":"'Colombia-IO-Data'!$AN16*AI74","v":356511.26050420222},{"$f":"'Colombia-IO-Data'!$AN16*AJ74","v":3005497.304576504},{"$f":"'Colombia-IO-Data'!$AO16*Calculations!AK74","v":0},{"$f":"'Colombia-IO-Data'!$AO16*Calculations!AL74","v":182647.13628229292},{"$f":"'Colombia-IO-Data'!$AO16*Calculations!AM74","v":1539770.3708115506},{"$f":"(AN74*'Default-Data'!$F$19/biopower_dollar_index)/'Colombia-IO-Data'!$AP16","v":0},{"$f":"(AO74*'Default-Data'!$F$19/biopower_dollar_index)/'Colombia-IO-Data'!$AP16","v":42.937323093921236},{"$f":"(AP74*'Default-Data'!$F$19/biopower_dollar_index)/'Colombia-IO-Data'!$AP16","v":361.97456608243562},207386.65287140678,877643.05674837052,{"$f":"'Colombia-IO-Data'!$AN16*AG74","v":0},{"$f":"'Colombia-IO-Data'!$AN16*AT74","v":68316.048706666668},{"$f":"'Colombia-IO-Data'!$AN16*AU74","v":289107.83303430234},{"$f":"'Colombia-IO-Data'!$AO16*AV74","v":0},{"$f":"'Colombia-IO-Data'!$AO16*AW74","v":34999.541503254237},{"$f":"'Colombia-IO-Data'!$AO16*AX74","v":148115.14706664419},{"$f":"(AY74*'Default-Data'!$F$19/biopower_dollar_index)/'Colombia-IO-Data'!$AP16","v":0},{"$f":"(AZ74*'Default-Data'!$F$19/biopower_dollar_index)/'Colombia-IO-Data'!$AP16","v":8.2278137629361972},{"$f":"(BA74*'Default-Data'!$F$19/biopower_dollar_index)/'Colombia-IO-Data'!$AP16","v":34.819423146470172},null,"DOM_C17T19: Textiles, textile products, leather and footwear",0,0,null,871641.77095852501,3983900.6543031884,{"$f":"BG74*'Mexico-IO-Data'!AQ16","v":0},{"$f":"BJ74*'Mexico-IO-Data'!$AQ16","v":337736.4953379017},{"$f":"BK74*'Mexico-IO-Data'!$AQ16","v":1543648.6519904921},{"$f":"BG74*'Mexico-IO-Data'!AR16","v":0},{"$f":"BJ74*'Mexico-IO-Data'!$AR16","v":114850.78573386045},{"$f":"BK74*'Mexico-IO-Data'!$AR16","v":524933.67766117945},{"$f":"(BO74*'Default-Data'!$F$19/biopower_dollar_index)/'Mexico-IO-Data'!$AS16","v":0},{"$f":"(BP74*'Default-Data'!$F$19/biopower_dollar_index)/'Mexico-IO-Data'!$AS16","v":26.812492063005855},{"$f":"(BQ74*'Default-Data'!$F$19/biopower_dollar_index)/'Mexico-IO-Data'!$AS16","v":122.54840030881307},118854.2345470763,262880.84589515545,{"$f":"BH74*'Mexico-IO-Data'!AQ16","v":0},{"$f":"BU74*'Mexico-IO-Data'!$AQ16","v":46052.649115078428},{"$f":"BV74*'Mexico-IO-Data'!$AQ16","v":101858.88118516686},{"$f":"BH74*'Mexico-IO-Data'!AR16","v":0},{"$f":"BU74*'Mexico-IO-Data'!$AR16","v":15660.679284010335},{"$f":"BV74*'Mexico-IO-Data'!$AR16","v":34638.165254791471},{"$f":"(BZ74*'Default-Data'!$F$19/biopower_dollar_index)/'Mexico-IO-Data'!$AS16","v":0},{"$f":"(CA74*'Default-Data'!$F$19/biopower_dollar_index)/'Mexico-IO-Data'!$AS16","v":3.6560641385321526},{"$f":"(CB74*'Default-Data'!$F$19/biopower_dollar_index)/'Mexico-IO-Data'!$AS16","v":8.0864534364031826},null,"TTL_C17T19: Textiles, textile products, leather and footwear",0,0,null,1844543.8120189621,3795917.1865071584,{"$f":"CH74*'Philippines-IO-Data'!AN16","v":0},{"$f":"CK74*'Philippines-IO-Data'!$AN16","v":707747.21954191581},{"$f":"CL74*'Philippines-IO-Data'!$AN16","v":1456484.6965717911},{"$f":"CH74*'Philippines-IO-Data'!AO16","v":0},{"$f":"CK74*'Philippines-IO-Data'!$AO16","v":244455.93829847989},{"$f":"CL74*'Philippines-IO-Data'!$AO16","v":503069.91435202304},{"$f":"(CP74*'Default-Data'!$F$19/biopower_dollar_index)/'Philippines-IO-Data'!$AP16","v":0},{"$f":"(CQ74*'Default-Data'!$F$19/biopower_dollar_index)/'Philippines-IO-Data'!$AP16","v":76.043538249624191},{"$f":"(CR74*'Default-Data'!$F$19/biopower_dollar_index)/'Philippines-IO-Data'!$AP16","v":156.4912537635054},51413.432042153174,379505.58409792173,{"$f":"CI74*'Philippines-IO-Data'!AN16","v":0},{"$f":"CV74*'Philippines-IO-Data'!$AN16","v":19727.215660501253},{"$f":"CW74*'Philippines-IO-Data'!$AN16","v":145615.42002731981},{"$f":"CI74*'Philippines-IO-Data'!AO16","v":0},{"$f":"CV74*'Philippines-IO-Data'!$AO16","v":6813.7816456920682},{"$f":"CW74*'Philippines-IO-Data'!$AO16","v":50295.576090776216},{"$f":"(DA74*'Default-Data'!$F$19/biopower_dollar_index)/'Philippines-IO-Data'!$AP16","v":0},{"$f":"(DB74*'Default-Data'!$F$19/biopower_dollar_index)/'Philippines-IO-Data'!$AP16","v":2.1195806033810474},{"$f":"(DC74*'Default-Data'!$F$19/biopower_dollar_index)/'Philippines-IO-Data'!$AP16","v":15.645574375763113},null,"DOM_C17T19: Textiles, textile products, leather and footwear",0,0,null,3637387.0177247804,13621435.739926467,{"$f":"DI74*'SouthAfrica-IO-Data'!AR16","v":0},{"$f":"DL74*'Mexico-IO-Data'!$AQ16","v":1409384.4334731908},{"$f":"DM74*'Mexico-IO-Data'!$AQ16","v":5277920.4961852441},{"$f":"DI74*'SouthAfrica-IO-Data'!AS16","v":0},{"$f":"DL74*'Mexico-IO-Data'!$AR16","v":479275.74253863102},{"$f":"DM74*'Mexico-IO-Data'!$AR16","v":1794811.4118412107},{"$f":"(DQ74*'Default-Data'!$F$19/biopower_dollar_index)/'SouthAfrica-IO-Data'!$AT16","v":0},{"$f":"(DR74*'Default-Data'!$F$19/biopower_dollar_index)/'SouthAfrica-IO-Data'!$AT16","v":37.336549772405654},{"$f":"(DS74*'Default-Data'!$F$19/biopower_dollar_index)/'SouthAfrica-IO-Data'!$AT16","v":139.81943933849243},420218.50959007803,1163984.1690496127,{"$f":"DJ74*'SouthAfrica-IO-Data'!AR16","v":0},{"$f":"DW74*'SouthAfrica-IO-Data'!$AR16","v":55929.109188423798},{"$f":"DX74*'SouthAfrica-IO-Data'!$AR16","v":154920.82380635254},{"$f":"DJ74*'SouthAfrica-IO-Data'!AS16","v":0},{"$f":"DW74*'SouthAfrica-IO-Data'!$AS16","v":56206.839353914263},{"$f":"DX74*'SouthAfrica-IO-Data'!$AS16","v":155690.12241771969},{"$f":"(EB74*'Default-Data'!$F$19/biopower_dollar_index)/'SouthAfrica-IO-Data'!$AT16","v":0},{"$f":"(EC74*'Default-Data'!$F$19/biopower_dollar_index)/'SouthAfrica-IO-Data'!$AT16","v":4.3786264749626422},{"$f":"(ED74*'Default-Data'!$F$19/biopower_dollar_index)/'SouthAfrica-IO-Data'!$AT16","v":12.128575449971958},null,"SUGAR",0,0,null,2907.9303239184537,766349.13106474595,{"$f":"EJ74*'Zambia-IO-Data'!BO14","v":0},{"$f":"EM74*'Zambia-IO-Data'!$BO14","v":789.21429179603774},{"$f":"EN74*'Zambia-IO-Data'!$BO14","v":207987.68174293195},{"$f":"EJ74*'Zambia-IO-Data'!BN14","v":0},{"$f":"EM74*'Zambia-IO-Data'!$BN14","v":264.5533591920871},{"$f":"EN74*'Zambia-IO-Data'!$BN14","v":69719.771230254875},{"$f":"(ER74*'Default-Data'!$F$19/biopower_dollar_index)/'Zambia-IO-Data'!$BP14","v":0},{"$f":"(ES74*'Default-Data'!$F$19/biopower_dollar_index)/'Zambia-IO-Data'!$BP14","v":2.5617040683333849},{"$f":"(ET74*'Default-Data'!$F$19/biopower_dollar_index)/'Zambia-IO-Data'!$BP14","v":675.10547644998053},141.01995393503395,77664.972095240926,{"$f":"EK74*'Zambia-IO-Data'!BO14","v":0},{"$f":"EX74*'Zambia-IO-Data'!$BO14","v":38.272912579272891},{"$f":"EY74*'Zambia-IO-Data'!$BO14","v":21078.326892960129},{"$f":"EK74*'Zambia-IO-Data'!BN14","v":0},{"$f":"EX74*'Zambia-IO-Data'!$BN14","v":12.829503588777463},{"$f":"EY74*'Zambia-IO-Data'!$BN14","v":7065.6882973967276},{"$f":"(FC74*'Default-Data'!$F$19/biopower_dollar_index)/'Zambia-IO-Data'!$BP14","v":0},{"$f":"(FD74*'Default-Data'!$F$19/biopower_dollar_index)/'Zambia-IO-Data'!$BP14","v":0.12422972680609987},{"$f":"(FE74*'Default-Data'!$F$19/biopower_dollar_index)/'Zambia-IO-Data'!$BP14","v":68.417964951541506},null,"TTL_C17T19: Textiles, textile products, leather and footwear",0,0,null,2866350.4083535252,5974554.517633724,{"$f":"FK74*CustomRegion1!C12","v":0},{"$f":"FN74*CustomRegion1!$C12","v":1099812.0611321037},{"$f":"FO74*CustomRegion1!$C12","v":2292422.8312194683},{"$f":"FK74*CustomRegion1!D12","v":0},{"$f":"FN74*CustomRegion1!$D12","v":379875.16154432704},{"$f":"FO74*CustomRegion1!$D12","v":791803.00354316528},{"$f":"(FS74*'Default-Data'!$F$19/biopower_dollar_index)/CustomRegion1!$E12","v":0},{"$f":"(FT74*'Default-Data'!$F$19/biopower_dollar_index)/CustomRegion1!$E12","v":118.16874475639536},{"$f":"(FU74*'Default-Data'!$F$19/biopower_dollar_index)/CustomRegion1!$E12","v":246.30819936386231},88689.517123029218,575757.87064736639,{"$f":"FL74*CustomRegion1!C12","v":0},{"$f":"FY74*CustomRegion1!$C12","v":34029.963797733733},{"$f":"FZ74*CustomRegion1!$C12","v":220916.97113663272},{"$f":"FL74*CustomRegion1!D12","v":0},{"$f":"FY74*CustomRegion1!$D12","v":11753.951835830032},{"$f":"FZ74*CustomRegion1!$D12","v":76304.737022093497},{"$f":"(GD74*'Default-Data'!$C$58/biopower_dollar_index)/CustomRegion1!$E12","v":0},{"$f":"(GE74*'Default-Data'!$C$58/biopower_dollar_index)/CustomRegion1!$E12","v":3.6563320663572512},{"$f":"(GF74*'Default-Data'!$C$58/biopower_dollar_index)/CustomRegion1!$E12","v":23.736311045478761},null,"C17T19 Textiles, textile products, leather and footwear",0,0,null,25007497.223414022,10266910.549484607,{"$f":"GL74*CustomRegion2!C16","v":0},{"$f":"GO74*CustomRegion2!$C16","v":8706210.8888853788},{"$f":"GP74*CustomRegion2!$C16","v":3574363.624739097},{"$f":"GL74*CustomRegion2!D16","v":0},{"$f":"GO74*CustomRegion2!$D16","v":3854479.2376023112},{"$f":"GP74*CustomRegion2!$D16","v":1582469.176893743},{"$f":"(GT74*'Default-Data'!$C$59/biopower_dollar_index)/CustomRegion2!$E16","v":0},{"$f":"(GU74*'Default-Data'!$C$59/biopower_dollar_index)/CustomRegion2!$E16","v":899.84751349213968},{"$f":"(GV74*'Default-Data'!$C$59/biopower_dollar_index)/CustomRegion2!$E16","v":369.43536758848353},218763.3433330078,467161.3957620688,{"$f":"GM74*CustomRegion2!C16","v":0},{"$f":"GZ74*CustomRegion2!$C16","v":76161.152185655912},{"$f":"HA74*CustomRegion2!$C16","v":162639.45145388527},{"$f":"GM74*CustomRegion2!D16","v":0},{"$f":"GZ74*CustomRegion2!$D16","v":33718.638746305871},{"$f":"HA74*CustomRegion2!$D16","v":72004.962531327794},{"$f":"(HE74*'Default-Data'!$C$59/biopower_dollar_index)/CustomRegion2!$E16","v":0},{"$f":"(HF74*'Default-Data'!$C$59/biopower_dollar_index)/CustomRegion2!$E16","v":7.8717853603168315},{"$f":"(HG74*'Default-Data'!$C$59/biopower_dollar_index)/CustomRegion2!$E16","v":16.809919706096263},null,"SUGAR",0,0,null,2907.9303239184537,766349.13106474595,{"$f":"HM74*CustomRegion3!D15","v":0},{"$f":"HP74*CustomRegion3!$D15","v":789.21429179603774},{"$f":"HQ74*CustomRegion3!$D15","v":207987.68174293195},{"$f":"HM74*CustomRegion3!E15","v":0},{"$f":"HP74*CustomRegion3!$E15","v":264.5533591920871},{"$f":"HQ74*CustomRegion3!$E15","v":69719.771230254875},{"$f":"(HU74*'Default-Data'!$C$60/biopower_dollar_index)/CustomRegion3!$F15","v":0},{"$f":"(HV74*'Default-Data'!$C$60/biopower_dollar_index)/CustomRegion3!$F15","v":2.5617040683333849},{"$f":"(HW74*'Default-Data'!$C$60/biopower_dollar_index)/CustomRegion3!$F15","v":675.10547644998053},141.01995393503395,77664.972095240926,{"$f":"HN74*CustomRegion3!D15","v":0},{"$f":"IA74*CustomRegion3!$D15","v":38.272912579272891},{"$f":"IB74*CustomRegion3!$D15","v":21078.326892960129},{"$f":"HN74*CustomRegion3!E15","v":0},{"$f":"IA74*CustomRegion3!$E15","v":12.829503588777463},{"$f":"IB74*CustomRegion3!$E15","v":7065.6882973967276},{"$f":"(IF74*'Default-Data'!$C$60/biopower_dollar_index)/CustomRegion3!$F15","v":0},{"$f":"(IG74*'Default-Data'!$C$60/biopower_dollar_index)/CustomRegion3!$F15","v":0.12422972680609987},{"$f":"(IH74*'Default-Data'!$C$60/biopower_dollar_index)/CustomRegion3!$F15","v":68.417964951541506}]
[null,245,"Construction",0,0,0,131485.06224098123,43299.79493960875,0,66129.431154780061,21777.308841570368,0,29084.804463627683,9578.0162983501014,0,10.156016883642303,3.3445126082759975,2372.7208330203998,249.67793892951659,0,1193.3422420956217,125.57365674776007,0,524.85141885315284,55.229346276136887,0,0.18327095435495289,1.9285334166658254E-2,null,74,"TTL_C20: Wood and products of wood and cork",0,0,null,3651447.7204293455,341760.66941679642,{"$f":"'Colombia-IO-Data'!$AN17*Calculations!AF75","v":0},{"$f":"'Colombia-IO-Data'!$AN17*AI75","v":1516059.0300704667},{"$f":"'Colombia-IO-Data'!$AN17*AJ75","v":141896.9648924178},{"$f":"'Colombia-IO-Data'!$AO17*Calculations!AK75","v":0},{"$f":"'Colombia-IO-Data'!$AO17*Calculations!AL75","v":618794.13961371384},{"$f":"'Colombia-IO-Data'!$AO17*Calculations!AM75","v":57916.61707283248},{"$f":"(AN75*'Default-Data'!$F$19/biopower_dollar_index)/'Colombia-IO-Data'!$AP17","v":0},{"$f":"(AO75*'Default-Data'!$F$19/biopower_dollar_index)/'Colombia-IO-Data'!$AP17","v":145.46827528768026},{"$f":"(AP75*'Default-Data'!$F$19/biopower_dollar_index)/'Colombia-IO-Data'!$AP17","v":13.615239474215665},97106.865995363769,32874.987577260355,{"$f":"'Colombia-IO-Data'!$AN17*AG75","v":0},{"$f":"'Colombia-IO-Data'!$AN17*AT75","v":40318.184004234776},{"$f":"'Colombia-IO-Data'!$AN17*AU75","v":13649.496198756922},{"$f":"'Colombia-IO-Data'!$AO17*AV75","v":0},{"$f":"'Colombia-IO-Data'!$AO17*AW75","v":16456.256311159759},{"$f":"'Colombia-IO-Data'!$AO17*AX75","v":5571.1737399023741},{"$f":"(AY75*'Default-Data'!$F$19/biopower_dollar_index)/'Colombia-IO-Data'!$AP17","v":0},{"$f":"(AZ75*'Default-Data'!$F$19/biopower_dollar_index)/'Colombia-IO-Data'!$AP17","v":3.8685938828877688},{"$f":"(BA75*'Default-Data'!$F$19/biopower_dollar_index)/'Colombia-IO-Data'!$AP17","v":1.3096908703394139},null,"DOM_C20: Wood and products of wood and cork",0,0,null,2850190.5003374852,432871.66267473483,{"$f":"BG75*'Mexico-IO-Data'!AQ17","v":0},{"$f":"BJ75*'Mexico-IO-Data'!$AQ17","v":1317820.843416329},{"$f":"BK75*'Mexico-IO-Data'!$AQ17","v":200143.56918581485},{"$f":"BG75*'Mexico-IO-Data'!AR17","v":0},{"$f":"BJ75*'Mexico-IO-Data'!$AR17","v":479002.61941534944},{"$f":"BK75*'Mexico-IO-Data'!$AR17","v":72748.351475918564},{"$f":"(BO75*'Default-Data'!$F$19/biopower_dollar_index)/'Mexico-IO-Data'!$AS17","v":0},{"$f":"(BP75*'Default-Data'!$F$19/biopower_dollar_index)/'Mexico-IO-Data'!$AS17","v":207.35799076685839},{"$f":"(BQ75*'Default-Data'!$F$19/biopower_dollar_index)/'Mexico-IO-Data'!$AS17","v":31.492420672061776},72377.692491141395,28563.380144799186,{"$f":"BH75*'Mexico-IO-Data'!AQ17","v":0},{"$f":"BU75*'Mexico-IO-Data'!$AQ17","v":33464.721656994436},{"$f":"BV75*'Mexico-IO-Data'!$AQ17","v":13206.632226436599},{"$f":"BH75*'Mexico-IO-Data'!AR17","v":0},{"$f":"BU75*'Mexico-IO-Data'!$AR17","v":12163.784942231159},{"$f":"BV75*'Mexico-IO-Data'!$AR17","v":4800.3576978784904},{"$f":"(BZ75*'Default-Data'!$F$19/biopower_dollar_index)/'Mexico-IO-Data'!$AS17","v":0},{"$f":"(CA75*'Default-Data'!$F$19/biopower_dollar_index)/'Mexico-IO-Data'!$AS17","v":5.2656455382640335},{"$f":"(CB75*'Default-Data'!$F$19/biopower_dollar_index)/'Mexico-IO-Data'!$AS17","v":2.0780523672485134},null,"TTL_C20: Wood and products of wood and cork",0,0,null,1670291.6308865803,118064.57112759678,{"$f":"CH75*'Philippines-IO-Data'!AN17","v":0},{"$f":"CK75*'Philippines-IO-Data'!$AN17","v":242410.99331747374},{"$f":"CL75*'Philippines-IO-Data'!$AN17","v":17134.822107353117},{"$f":"CH75*'Philippines-IO-Data'!AO17","v":0},{"$f":"CK75*'Philippines-IO-Data'!$AO17","v":62861.845917011007},{"$f":"CL75*'Philippines-IO-Data'!$AO17","v":4443.3898495567228},{"$f":"(CP75*'Default-Data'!$F$19/biopower_dollar_index)/'Philippines-IO-Data'!$AP17","v":0},{"$f":"(CQ75*'Default-Data'!$F$19/biopower_dollar_index)/'Philippines-IO-Data'!$AP17","v":19.55459629127747},{"$f":"(CR75*'Default-Data'!$F$19/biopower_dollar_index)/'Philippines-IO-Data'!$AP17","v":1.3822167231224902},3981.3079773819882,11803.778066158991,{"$f":"CI75*'Philippines-IO-Data'!AN17","v":0},{"$f":"CV75*'Philippines-IO-Data'!$AN17","v":577.81096645241178},{"$f":"CW75*'Philippines-IO-Data'!$AN17","v":1713.0933981856901},{"$f":"CI75*'Philippines-IO-Data'!AO17","v":0},{"$f":"CV75*'Philippines-IO-Data'!$AO17","v":149.83752776723804},{"$f":"CW75*'Philippines-IO-Data'!$AO17","v":444.23815836257762},{"$f":"(DA75*'Default-Data'!$F$19/biopower_dollar_index)/'Philippines-IO-Data'!$AP17","v":0},{"$f":"(DB75*'Default-Data'!$F$19/biopower_dollar_index)/'Philippines-IO-Data'!$AP17","v":4.661034562426887E-2},{"$f":"(DC75*'Default-Data'!$F$19/biopower_dollar_index)/'Philippines-IO-Data'!$AP17","v":0.13819030792428635},null,"DOM_C20: Wood and products of wood and cork",0,0,null,2995780.6308894614,1399960.9623965686,{"$f":"DI75*'SouthAfrica-IO-Data'!AR17","v":0},{"$f":"DL75*'Mexico-IO-Data'!$AQ17","v":1385136.2416728246},{"$f":"DM75*'Mexico-IO-Data'!$AQ17","v":647289.27276858548},{"$f":"DI75*'SouthAfrica-IO-Data'!AS17","v":0},{"$f":"DL75*'Mexico-IO-Data'!$AR17","v":503470.47652425559},{"$f":"DM75*'Mexico-IO-Data'!$AR17","v":235277.24479742226},{"$f":"(DQ75*'Default-Data'!$F$19/biopower_dollar_index)/'SouthAfrica-IO-Data'!$AT17","v":0},{"$f":"(DR75*'Default-Data'!$F$19/biopower_dollar_index)/'SouthAfrica-IO-Data'!$AT17","v":39.22136848845318},{"$f":"(DS75*'Default-Data'!$F$19/biopower_dollar_index)/'SouthAfrica-IO-Data'!$AT17","v":18.328573263825},184215.30196810249,119630.00293285257,{"$f":"DJ75*'SouthAfrica-IO-Data'!AR17","v":0},{"$f":"DW75*'SouthAfrica-IO-Data'!$AR17","v":48825.410666396128},{"$f":"DX75*'SouthAfrica-IO-Data'!$AR17","v":31707.376959543166},{"$f":"DJ75*'SouthAfrica-IO-Data'!AS17","v":0},{"$f":"DW75*'SouthAfrica-IO-Data'!$AS17","v":40647.545495065577},{"$f":"DX75*'SouthAfrica-IO-Data'!$AS17","v":26396.645310333344},{"$f":"(EB75*'Default-Data'!$F$19/biopower_dollar_index)/'SouthAfrica-IO-Data'!$AT17","v":0},{"$f":"(EC75*'Default-Data'!$F$19/biopower_dollar_index)/'SouthAfrica-IO-Data'!$AT17","v":3.1665260116524951},{"$f":"(ED75*'Default-Data'!$F$19/biopower_dollar_index)/'SouthAfrica-IO-Data'!$AT17","v":2.056352062037357},null,"COTTON",0,0,null,1625177.864944214,2095799.3596494431,{"$f":"EJ75*'Zambia-IO-Data'!BO15","v":0},{"$f":"EM75*'Zambia-IO-Data'!$BO15","v":360827.40028961032},{"$f":"EN75*'Zambia-IO-Data'!$BO15","v":465316.35138711217},{"$f":"EJ75*'Zambia-IO-Data'!BN15","v":0},{"$f":"EM75*'Zambia-IO-Data'!$BN15","v":244930.28264072436},{"$f":"EN75*'Zambia-IO-Data'!$BN15","v":315857.56894049724},{"$f":"(ER75*'Default-Data'!$F$19/biopower_dollar_index)/'Zambia-IO-Data'!$BP15","v":0},{"$f":"(ES75*'Default-Data'!$F$19/biopower_dollar_index)/'Zambia-IO-Data'!$BP15","v":2371.6913042227447},{"$f":"(ET75*'Default-Data'!$F$19/biopower_dollar_index)/'Zambia-IO-Data'!$BP15","v":3058.4893037826364},42679.270858873933,209610.112358604,{"$f":"EK75*'Zambia-IO-Data'!BO15","v":0},{"$f":"EX75*'Zambia-IO-Data'!$BO15","v":9475.7938084470661},{"$f":"EY75*'Zambia-IO-Data'!$BO15","v":46538.335002098},{"$f":"EK75*'Zambia-IO-Data'!BN15","v":0},{"$f":"EX75*'Zambia-IO-Data'!$BN15","v":6432.1857316970345},{"$f":"EY75*'Zambia-IO-Data'!$BN15","v":31590.304773261949},{"$f":"(FC75*'Default-Data'!$F$19/biopower_dollar_index)/'Zambia-IO-Data'!$BP15","v":0},{"$f":"(FD75*'Default-Data'!$F$19/biopower_dollar_index)/'Zambia-IO-Data'!$BP15","v":62.283678451424812},{"$f":"(FE75*'Default-Data'!$F$19/biopower_dollar_index)/'Zambia-IO-Data'!$BP15","v":305.8929680752932},null,"TTL_C20: Wood and products of wood and cork",0,0,null,3445441.6570820082,304597.24557572091,{"$f":"FK75*CustomRegion1!C13","v":0},{"$f":"FN75*CustomRegion1!$C13","v":500040.18404099083},{"$f":"FO75*CustomRegion1!$C13","v":44206.484362604628},{"$f":"FK75*CustomRegion1!D13","v":0},{"$f":"FN75*CustomRegion1!$D13","v":129670.0639328339},{"$f":"FO75*CustomRegion1!$D13","v":11463.594000027129},{"$f":"(FS75*'Default-Data'!$F$19/biopower_dollar_index)/CustomRegion1!$E13","v":0},{"$f":"(FT75*'Default-Data'!$F$19/biopower_dollar_index)/CustomRegion1!$E13","v":40.336800714032755},{"$f":"(FU75*'Default-Data'!$F$19/biopower_dollar_index)/CustomRegion1!$E13","v":3.566009706644325},15408.306677717568,29353.529371958575,{"$f":"FL75*CustomRegion1!C13","v":0},{"$f":"FY75*CustomRegion1!$C13","v":2236.222021362335},{"$f":"FZ75*CustomRegion1!$C13","v":4260.1052899086817},{"$f":"FL75*CustomRegion1!D13","v":0},{"$f":"FY75*CustomRegion1!$D13","v":579.89549986705595},{"$f":"FZ75*CustomRegion1!$D13","v":1104.7274657785881},{"$f":"(GD75*'Default-Data'!$C$58/biopower_dollar_index)/CustomRegion1!$E13","v":0},{"$f":"(GE75*'Default-Data'!$C$58/biopower_dollar_index)/CustomRegion1!$E13","v":0.18038958649097225},{"$f":"(GF75*'Default-Data'!$C$58/biopower_dollar_index)/CustomRegion1!$E13","v":0.34365041767474569},null,"C20 Wood and products of wood and cork",0,0,null,14242613.512213944,1380813.8347613346,{"$f":"GL75*CustomRegion2!C17","v":0},{"$f":"GO75*CustomRegion2!$C17","v":6034744.6492189532},{"$f":"GP75*CustomRegion2!$C17","v":585065.29674118536},{"$f":"GL75*CustomRegion2!D17","v":0},{"$f":"GO75*CustomRegion2!$D17","v":2004202.7446897516},{"$f":"GP75*CustomRegion2!$D17","v":194306.39433984505},{"$f":"(GT75*'Default-Data'!$C$59/biopower_dollar_index)/CustomRegion2!$E17","v":0},{"$f":"(GU75*'Default-Data'!$C$59/biopower_dollar_index)/CustomRegion2!$E17","v":867.60998245800499},{"$f":"(GV75*'Default-Data'!$C$59/biopower_dollar_index)/CustomRegion2!$E17","v":84.11432816931277},67916.755784580426,62829.31123492257,{"$f":"GM75*CustomRegion2!C17","v":0},{"$f":"GZ75*CustomRegion2!$C17","v":28777.041391443079},{"$f":"HA75*CustomRegion2!$C17","v":26621.437804508878},{"$f":"GM75*CustomRegion2!D17","v":0},{"$f":"GZ75*CustomRegion2!$D17","v":9557.1608565484858},{"$f":"HA75*CustomRegion2!$D17","v":8841.2620279284965},{"$f":"(HE75*'Default-Data'!$C$59/biopower_dollar_index)/CustomRegion2!$E17","v":0},{"$f":"(HF75*'Default-Data'!$C$59/biopower_dollar_index)/CustomRegion2!$E17","v":4.1372501784403743},{"$f":"(HG75*'Default-Data'!$C$59/biopower_dollar_index)/CustomRegion2!$E17","v":3.8273409280981174},null,"COTTON",0,0,null,1625177.864944214,2095799.3596494431,{"$f":"HM75*CustomRegion3!D16","v":0},{"$f":"HP75*CustomRegion3!$D16","v":360827.40028961032},{"$f":"HQ75*CustomRegion3!$D16","v":465316.35138711217},{"$f":"HM75*CustomRegion3!E16","v":0},{"$f":"HP75*CustomRegion3!$E16","v":244930.28264072436},{"$f":"HQ75*CustomRegion3!$E16","v":315857.56894049724},{"$f":"(HU75*'Default-Data'!$C$60/biopower_dollar_index)/CustomRegion3!$F16","v":0},{"$f":"(HV75*'Default-Data'!$C$60/biopower_dollar_index)/CustomRegion3!$F16","v":2371.6913042227447},{"$f":"(HW75*'Default-Data'!$C$60/biopower_dollar_index)/CustomRegion3!$F16","v":3058.4893037826364},42679.270858873933,209610.112358604,{"$f":"HN75*CustomRegion3!D16","v":0},{"$f":"IA75*CustomRegion3!$D16","v":9475.7938084470661},{"$f":"IB75*CustomRegion3!$D16","v":46538.335002098},{"$f":"HN75*CustomRegion3!E16","v":0},{"$f":"IA75*CustomRegion3!$E16","v":6432.1857316970345},{"$f":"IB75*CustomRegion3!$E16","v":31590.304773261949},{"$f":"(IF75*'Default-Data'!$C$60/biopower_dollar_index)/CustomRegion3!$F16","v":0},{"$f":"(IG75*'Default-Data'!$C$60/biopower_dollar_index)/CustomRegion3!$F16","v":62.283678451424812},{"$f":"(IH75*'Default-Data'!$C$60/biopower_dollar_index)/CustomRegion3!$F16","v":305.8929680752932}]
[null,246,"Manufacturing",800871.29327063356,0,0,10993039.998131666,7083939.5768984146,198387.22640832764,2713124.2215686673,2399012.8441197379,198387.22640832764,667174.88818648574,533758.16435955116,31.40514986713621,65.327974801726612,105.37746292272905,147222.82065698548,40847.847790689993,0,35265.834167966539,13833.33531303476,0,8378.0542732391059,3077.7891338738746,0,0.77781074940882367,0.6076340035527722,null,75,"TTL_C21T22: Pulp, paper, paper products, printing and publishing",0,0,null,8947274.4946395215,5099213.4676134437,{"$f":"'Colombia-IO-Data'!$AN18*Calculations!AF76","v":0},{"$f":"'Colombia-IO-Data'!$AN18*AI76","v":2856509.5176749364},{"$f":"'Colombia-IO-Data'!$AN18*AJ76","v":1627976.4090864488},{"$f":"'Colombia-IO-Data'!$AO18*Calculations!AK76","v":0},{"$f":"'Colombia-IO-Data'!$AO18*Calculations!AL76","v":1172473.6963307664},{"$f":"'Colombia-IO-Data'!$AO18*Calculations!AM76","v":668213.95345971629},{"$f":"(AN76*'Default-Data'!$F$19/biopower_dollar_index)/'Colombia-IO-Data'!$AP18","v":0},{"$f":"(AO76*'Default-Data'!$F$19/biopower_dollar_index)/'Colombia-IO-Data'!$AP18","v":275.62918829819506},{"$f":"(AP76*'Default-Data'!$F$19/biopower_dollar_index)/'Colombia-IO-Data'!$AP18","v":157.08605675164821},493429.02856415894,490508.69337205496,{"$f":"'Colombia-IO-Data'!$AN18*AG76","v":0},{"$f":"'Colombia-IO-Data'!$AN18*AT76","v":157532.29849325251},{"$f":"'Colombia-IO-Data'!$AN18*AU76","v":156599.95141079251},{"$f":"'Colombia-IO-Data'!$AO18*AV76","v":0},{"$f":"'Colombia-IO-Data'!$AO18*AW76","v":64660.199856853433},{"$f":"'Colombia-IO-Data'!$AO18*AX76","v":64277.511676306123},{"$f":"(AY76*'Default-Data'!$F$19/biopower_dollar_index)/'Colombia-IO-Data'!$AP18","v":0},{"$f":"(AZ76*'Default-Data'!$F$19/biopower_dollar_index)/'Colombia-IO-Data'!$AP18","v":15.200544334186709},{"$f":"(BA76*'Default-Data'!$F$19/biopower_dollar_index)/'Colombia-IO-Data'!$AP18","v":15.110580667704752},null,"DOM_C21T22: Pulp, paper, paper products, printing and publishing",0,0,null,7159307.5976364836,3766127.7430554517,{"$f":"BG76*'Mexico-IO-Data'!AQ18","v":0},{"$f":"BJ76*'Mexico-IO-Data'!$AQ18","v":3204875.6262875362},{"$f":"BK76*'Mexico-IO-Data'!$AQ18","v":1685913.1759038246},{"$f":"BG76*'Mexico-IO-Data'!AR18","v":0},{"$f":"BJ76*'Mexico-IO-Data'!$AR18","v":997147.05102936283},{"$f":"BK76*'Mexico-IO-Data'!$AR18","v":524545.582316841},{"$f":"(BO76*'Default-Data'!$F$19/biopower_dollar_index)/'Mexico-IO-Data'!$AS18","v":0},{"$f":"(BP76*'Default-Data'!$F$19/biopower_dollar_index)/'Mexico-IO-Data'!$AS18","v":135.19949839440537},{"$f":"(BQ76*'Default-Data'!$F$19/biopower_dollar_index)/'Mexico-IO-Data'!$AS18","v":71.121204782212047},477607.42704428046,248510.92754389858,{"$f":"BH76*'Mexico-IO-Data'!AQ18","v":0},{"$f":"BU76*'Mexico-IO-Data'!$AQ18","v":213801.7372480882},{"$f":"BV76*'Mexico-IO-Data'!$AQ18","v":111246.31868233751},{"$f":"BH76*'Mexico-IO-Data'!AR18","v":0},{"$f":"BU76*'Mexico-IO-Data'!$AR18","v":66521.074968779023},{"$f":"BV76*'Mexico-IO-Data'!$AR18","v":34612.556475542056},{"$f":"(BZ76*'Default-Data'!$F$19/biopower_dollar_index)/'Mexico-IO-Data'!$AS18","v":0},{"$f":"(CA76*'Default-Data'!$F$19/biopower_dollar_index)/'Mexico-IO-Data'!$AS18","v":9.0193477071926118},{"$f":"(CB76*'Default-Data'!$F$19/biopower_dollar_index)/'Mexico-IO-Data'!$AS18","v":4.6929891321551063},null,"TTL_C21T22: Pulp, paper, paper products, printing and publishing",0,0,null,5976778.7744491398,3132299.6979145277,{"$f":"CH76*'Philippines-IO-Data'!AN18","v":0},{"$f":"CK76*'Philippines-IO-Data'!$AN18","v":1582287.7155032973},{"$f":"CL76*'Philippines-IO-Data'!$AN18","v":829242.56030233321},{"$f":"CH76*'Philippines-IO-Data'!AO18","v":0},{"$f":"CK76*'Philippines-IO-Data'!$AO18","v":469094.35707006668},{"$f":"CL76*'Philippines-IO-Data'!$AO18","v":245842.14480640602},{"$f":"(CP76*'Default-Data'!$F$19/biopower_dollar_index)/'Philippines-IO-Data'!$AP18","v":0},{"$f":"(CQ76*'Default-Data'!$F$19/biopower_dollar_index)/'Philippines-IO-Data'!$AP18","v":145.92238966592657},{"$f":"(CR76*'Default-Data'!$F$19/biopower_dollar_index)/'Philippines-IO-Data'!$AP18","v":76.47474907780483},160263.35008241329,313158.89362713194,{"$f":"CI76*'Philippines-IO-Data'!AN18","v":0},{"$f":"CV76*'Philippines-IO-Data'!$AN18","v":42427.993347332616},{"$f":"CW76*'Philippines-IO-Data'!$AN18","v":82905.439382350902},{"$f":"CI76*'Philippines-IO-Data'!AO18","v":0},{"$f":"CV76*'Philippines-IO-Data'!$AO18","v":12578.453378631812},{"$f":"CW76*'Philippines-IO-Data'!$AO18","v":24578.63598612653},{"$f":"(DA76*'Default-Data'!$F$19/biopower_dollar_index)/'Philippines-IO-Data'!$AP18","v":0},{"$f":"(DB76*'Default-Data'!$F$19/biopower_dollar_index)/'Philippines-IO-Data'!$AP18","v":3.9128118845335931},{"$f":"(DC76*'Default-Data'!$F$19/biopower_dollar_index)/'Philippines-IO-Data'!$AP18","v":7.6457395911262465},null,"DOM_C21T22: Pulp, paper, paper products, printing and publishing",0,0,null,24852839.020156194,13235357.593337584,{"$f":"DI76*'SouthAfrica-IO-Data'!AR18","v":0},{"$f":"DL76*'Mexico-IO-Data'!$AQ18","v":11125413.586928643},{"$f":"DM76*'Mexico-IO-Data'!$AQ18","v":5924829.2348956652},{"$f":"DI76*'SouthAfrica-IO-Data'!AS18","v":0},{"$f":"DL76*'Mexico-IO-Data'!$AR18","v":3461498.8671303266},{"$f":"DM76*'Mexico-IO-Data'!$AR18","v":1843418.1816510588},{"$f":"(DQ76*'Default-Data'!$F$19/biopower_dollar_index)/'SouthAfrica-IO-Data'!$AT18","v":0},{"$f":"(DR76*'Default-Data'!$F$19/biopower_dollar_index)/'SouthAfrica-IO-Data'!$AT18","v":269.6577633058908},{"$f":"(DS76*'Default-Data'!$F$19/biopower_dollar_index)/'SouthAfrica-IO-Data'!$AT18","v":143.60600502334967},886837.24691282015,1130992.8706853553,{"$f":"DJ76*'SouthAfrica-IO-Data'!AR18","v":0},{"$f":"DW76*'SouthAfrica-IO-Data'!$AR18","v":203714.06557819713},{"$f":"DX76*'SouthAfrica-IO-Data'!$AR18","v":259798.69094280284},{"$f":"DJ76*'SouthAfrica-IO-Data'!AS18","v":0},{"$f":"DW76*'SouthAfrica-IO-Data'!$AS18","v":169822.88374522378},{"$f":"DX76*'SouthAfrica-IO-Data'!$AS18","v":216576.91020949773},{"$f":"(EB76*'Default-Data'!$F$19/biopower_dollar_index)/'SouthAfrica-IO-Data'!$AT18","v":0},{"$f":"(EC76*'Default-Data'!$F$19/biopower_dollar_index)/'SouthAfrica-IO-Data'!$AT18","v":13.229546143650149},{"$f":"(ED76*'Default-Data'!$F$19/biopower_dollar_index)/'SouthAfrica-IO-Data'!$AT18","v":16.871779374352482},null,"TOBAC",0,0,null,119924.5315533423,650954.3586350875,{"$f":"EJ76*'Zambia-IO-Data'!BO16","v":0},{"$f":"EM76*'Zambia-IO-Data'!$BO16","v":34448.094768763774},{"$f":"EN76*'Zambia-IO-Data'!$BO16","v":186985.40778895686},{"$f":"EJ76*'Zambia-IO-Data'!BN16","v":0},{"$f":"EM76*'Zambia-IO-Data'!$BN16","v":24062.24816798059},{"$f":"EN76*'Zambia-IO-Data'!$BN16","v":130610.6859090714},{"$f":"(ER76*'Default-Data'!$F$19/biopower_dollar_index)/'Zambia-IO-Data'!$BP16","v":0},{"$f":"(ES76*'Default-Data'!$F$19/biopower_dollar_index)/'Zambia-IO-Data'!$BP16","v":232.99783156564467},{"$f":"(ET76*'Default-Data'!$F$19/biopower_dollar_index)/'Zambia-IO-Data'!$BP16","v":1264.7200038694109},2468.0008609753122,65867.97811409476,{"$f":"EK76*'Zambia-IO-Data'!BO16","v":0},{"$f":"EX76*'Zambia-IO-Data'!$BO16","v":708.92857738995849},{"$f":"EY76*'Zambia-IO-Data'!$BO16","v":18920.45207858022},{"$f":"EK76*'Zambia-IO-Data'!BN16","v":0},{"$f":"EX76*'Zambia-IO-Data'!$BN16","v":495.19183795321356},{"$f":"EY76*'Zambia-IO-Data'!$BN16","v":13216.075269799878},{"$f":"(FC76*'Default-Data'!$F$19/biopower_dollar_index)/'Zambia-IO-Data'!$BP16","v":0},{"$f":"(FD76*'Default-Data'!$F$19/biopower_dollar_index)/'Zambia-IO-Data'!$BP16","v":4.7950060047023424},{"$f":"(FE76*'Default-Data'!$F$19/biopower_dollar_index)/'Zambia-IO-Data'!$BP16","v":127.97294991618165},null,"TTL_C21T22: Pulp, paper, paper products, printing and publishing",0,0,null,10378126.114111127,5866229.5940269139,{"$f":"FK76*CustomRegion1!C14","v":0},{"$f":"FN76*CustomRegion1!$C14","v":2747496.9511173675},{"$f":"FO76*CustomRegion1!$C14","v":1553021.0123606552},{"$f":"FK76*CustomRegion1!D14","v":0},{"$f":"FN76*CustomRegion1!$D14","v":814539.1657966671},{"$f":"FO76*CustomRegion1!$D14","v":460417.77748233272},{"$f":"(FS76*'Default-Data'!$F$19/biopower_dollar_index)/CustomRegion1!$E14","v":0},{"$f":"(FT76*'Default-Data'!$F$19/biopower_dollar_index)/CustomRegion1!$E14","v":253.38079590624122},{"$f":"(FU76*'Default-Data'!$F$19/biopower_dollar_index)/CustomRegion1!$E14","v":143.22334370963588},330504.69799667055,565318.77813095972,{"$f":"FL76*CustomRegion1!C14","v":0},{"$f":"FY76*CustomRegion1!$C14","v":87497.553998802294},{"$f":"FZ76*CustomRegion1!$C14","v":149662.04902947816},{"$f":"FL76*CustomRegion1!D14","v":0},{"$f":"FY76*CustomRegion1!$D14","v":25940.041394567772},{"$f":"FZ76*CustomRegion1!$D14","v":44369.694575389352},{"$f":"(GD76*'Default-Data'!$C$58/biopower_dollar_index)/CustomRegion1!$E14","v":0},{"$f":"(GE76*'Default-Data'!$C$58/biopower_dollar_index)/CustomRegion1!$E14","v":8.0692354774222945},{"$f":"(GF76*'Default-Data'!$C$58/biopower_dollar_index)/CustomRegion1!$E14","v":13.802195152437188},null,"C21T22 Pulp, paper, paper products, printing and publishing",0,0,null,16798189.6979938,5891950.7236060053,{"$f":"GL76*CustomRegion2!C18","v":0},{"$f":"GO76*CustomRegion2!$C18","v":5866930.9121823637},{"$f":"GP76*CustomRegion2!$C18","v":2057821.0185058047},{"$f":"GL76*CustomRegion2!D18","v":0},{"$f":"GO76*CustomRegion2!$D18","v":2257281.6503041899},{"$f":"GP76*CustomRegion2!$D18","v":791739.61551825539},{"$f":"(GT76*'Default-Data'!$C$59/biopower_dollar_index)/CustomRegion2!$E18","v":0},{"$f":"(GU76*'Default-Data'!$C$59/biopower_dollar_index)/CustomRegion2!$E18","v":306.05651046250279},{"$f":"(GV76*'Default-Data'!$C$59/biopower_dollar_index)/CustomRegion2!$E18","v":107.34906026803804},301729.15136388596,268093.49419522204,{"$f":"GM76*CustomRegion2!C18","v":0},{"$f":"GZ76*CustomRegion2!$C18","v":105381.83679725626},{"$f":"HA76*CustomRegion2!$C18","v":93634.256829280857},{"$f":"GM76*CustomRegion2!D18","v":0},{"$f":"GZ76*CustomRegion2!$D18","v":40545.302141509761},{"$f":"HA76*CustomRegion2!$D18","v":36025.460831953926},{"$f":"(HE76*'Default-Data'!$C$59/biopower_dollar_index)/CustomRegion2!$E18","v":0},{"$f":"(HF76*'Default-Data'!$C$59/biopower_dollar_index)/CustomRegion2!$E18","v":5.4973882800163949},{"$f":"(HG76*'Default-Data'!$C$59/biopower_dollar_index)/CustomRegion2!$E18","v":4.8845596332852645},null,"TOBAC",0,0,null,119924.5315533423,650954.3586350875,{"$f":"HM76*CustomRegion3!D17","v":0},{"$f":"HP76*CustomRegion3!$D17","v":34448.094768763774},{"$f":"HQ76*CustomRegion3!$D17","v":186985.40778895686},{"$f":"HM76*CustomRegion3!E17","v":0},{"$f":"HP76*CustomRegion3!$E17","v":24062.24816798059},{"$f":"HQ76*CustomRegion3!$E17","v":130610.6859090714},{"$f":"(HU76*'Default-Data'!$C$60/biopower_dollar_index)/CustomRegion3!$F17","v":0},{"$f":"(HV76*'Default-Data'!$C$60/biopower_dollar_index)/CustomRegion3!$F17","v":232.99783156564467},{"$f":"(HW76*'Default-Data'!$C$60/biopower_dollar_index)/CustomRegion3!$F17","v":1264.7200038694109},2468.0008609753122,65867.97811409476,{"$f":"HN76*CustomRegion3!D17","v":0},{"$f":"IA76*CustomRegion3!$D17","v":708.92857738995849},{"$f":"IB76*CustomRegion3!$D17","v":18920.45207858022},{"$f":"HN76*CustomRegion3!E17","v":0},{"$f":"IA76*CustomRegion3!$E17","v":495.19183795321356},{"$f":"IB76*CustomRegion3!$E17","v":13216.075269799878},{"$f":"(IF76*'Default-Data'!$C$60/biopower_dollar_index)/CustomRegion3!$F17","v":0},{"$f":"(IG76*'Default-Data'!$C$60/biopower_dollar_index)/CustomRegion3!$F17","v":4.7950060047023424},{"$f":"(IH76*'Default-Data'!$C$60/biopower_dollar_index)/CustomRegion3!$F17","v":127.97294991618165}]
[null,247,"Sales",0,0,0,4768584.8846220979,4183421.8723474918,0,3631125.3188148201,3185542.345896292,0,731175.79950706847,641451.68979862682,0,153.33897794403268,134.5224316511904,62356.312274945871,24122.704327287909,0,47482.343246034718,18368.670068885753,0,9561.2068538356689,3698.7781594612702,0,2.0051343163532431,0.7756915135810899,null,76,"TTL_C23: Coke, refined petroleum products and nuclear fuel",0,0,null,9055450.1141086631,7897585.804617893,{"$f":"'Colombia-IO-Data'!$AN19*Calculations!AF77","v":0},{"$f":"'Colombia-IO-Data'!$AN19*AI77","v":4888350.4768479392},{"$f":"'Colombia-IO-Data'!$AN19*AJ77","v":4263307.3836718313},{"$f":"'Colombia-IO-Data'!$AO19*Calculations!AK77","v":0},{"$f":"'Colombia-IO-Data'!$AO19*Calculations!AL77","v":256200.79422259855},{"$f":"'Colombia-IO-Data'!$AO19*Calculations!AM77","v":223441.98577514733},{"$f":"(AN77*'Default-Data'!$F$19/biopower_dollar_index)/'Colombia-IO-Data'!$AP19","v":0},{"$f":"(AO77*'Default-Data'!$F$19/biopower_dollar_index)/'Colombia-IO-Data'!$AP19","v":60.22857243955275},{"$f":"(AP77*'Default-Data'!$F$19/biopower_dollar_index)/'Colombia-IO-Data'!$AP19","v":52.527517984988869},742762.72890087322,759692.55227705918,{"$f":"'Colombia-IO-Data'!$AN19*AG77","v":0},{"$f":"'Colombia-IO-Data'!$AN19*AT77","v":400961.24369902204},{"$f":"'Colombia-IO-Data'!$AN19*AU77","v":410100.3708689668},{"$f":"'Colombia-IO-Data'!$AO19*AV77","v":0},{"$f":"'Colombia-IO-Data'!$AO19*AW77","v":21014.571188113652},{"$f":"'Colombia-IO-Data'!$AO19*AX77","v":21493.557228605365},{"$f":"(AY77*'Default-Data'!$F$19/biopower_dollar_index)/'Colombia-IO-Data'!$AP19","v":0},{"$f":"(AZ77*'Default-Data'!$F$19/biopower_dollar_index)/'Colombia-IO-Data'!$AP19","v":4.9401783742706309},{"$f":"(BA77*'Default-Data'!$F$19/biopower_dollar_index)/'Colombia-IO-Data'!$AP19","v":5.0527800760913699},null,"DOM_C23: Coke, refined petroleum products and nuclear fuel",0,0,null,9066575.3329323549,10537155.126202835,{"$f":"BG77*'Mexico-IO-Data'!AQ19","v":0},{"$f":"BJ77*'Mexico-IO-Data'!$AQ19","v":1137418.1537684358},{"$f":"BK77*'Mexico-IO-Data'!$AQ19","v":1321905.0291330833},{"$f":"BG77*'Mexico-IO-Data'!AR19","v":0},{"$f":"BJ77*'Mexico-IO-Data'!$AR19","v":291140.93436967488},{"$f":"BK77*'Mexico-IO-Data'!$AR19","v":338363.39261394535},{"$f":"(BO77*'Default-Data'!$F$19/biopower_dollar_index)/'Mexico-IO-Data'!$AS19","v":0},{"$f":"(BP77*'Default-Data'!$F$19/biopower_dollar_index)/'Mexico-IO-Data'!$AS19","v":6.4383243399493661},{"$f":"(BQ77*'Default-Data'!$F$19/biopower_dollar_index)/'Mexico-IO-Data'!$AS19","v":7.4826072504393215},5934295.8373449054,695302.54222395178,{"$f":"BH77*'Mexico-IO-Data'!AQ19","v":0},{"$f":"BU77*'Mexico-IO-Data'!$AQ19","v":744468.0673099875},{"$f":"BV77*'Mexico-IO-Data'!$AQ19","v":87226.95227759023},{"$f":"BH77*'Mexico-IO-Data'!AR19","v":0},{"$f":"BU77*'Mexico-IO-Data'!$AR19","v":190558.87934169755},{"$f":"BV77*'Mexico-IO-Data'!$AR19","v":22327.176952625665},{"$f":"(BZ77*'Default-Data'!$F$19/biopower_dollar_index)/'Mexico-IO-Data'!$AS19","v":0},{"$f":"(CA77*'Default-Data'!$F$19/biopower_dollar_index)/'Mexico-IO-Data'!$AS19","v":4.2140411265607218},{"$f":"(CB77*'Default-Data'!$F$19/biopower_dollar_index)/'Mexico-IO-Data'!$AS19","v":0.49374577686118476},null,"TTL_C23: Coke, refined petroleum products and nuclear fuel",0,0,null,42345303.645223022,13160504.231767237,{"$f":"CH77*'Philippines-IO-Data'!AN19","v":0},{"$f":"CK77*'Philippines-IO-Data'!$AN19","v":7192451.818574422},{"$f":"CL77*'Philippines-IO-Data'!$AN19","v":2235343.3426331994},{"$f":"CH77*'Philippines-IO-Data'!AO19","v":0},{"$f":"CK77*'Philippines-IO-Data'!$AO19","v":977878.36387832242},{"$f":"CL77*'Philippines-IO-Data'!$AO19","v":303914.98556242092},{"$f":"(CP77*'Default-Data'!$F$19/biopower_dollar_index)/'Philippines-IO-Data'!$AP19","v":0},{"$f":"(CQ77*'Default-Data'!$F$19/biopower_dollar_index)/'Philippines-IO-Data'!$AP19","v":304.19114088472747},{"$f":"(CR77*'Default-Data'!$F$19/biopower_dollar_index)/'Philippines-IO-Data'!$AP19","v":94.539617201001533},9709111.5213850103,1315751.7933355346,{"$f":"CI77*'Philippines-IO-Data'!AN19","v":0},{"$f":"CV77*'Philippines-IO-Data'!$AN19","v":1649115.97762519},{"$f":"CW77*'Philippines-IO-Data'!$AN19","v":223483.61126550334},{"$f":"CI77*'Philippines-IO-Data'!AO19","v":0},{"$f":"CV77*'Philippines-IO-Data'!$AO19","v":224212.1149676819},{"$f":"CW77*'Philippines-IO-Data'!$AO19","v":30384.602309542486},{"$f":"(DA77*'Default-Data'!$F$19/biopower_dollar_index)/'Philippines-IO-Data'!$AP19","v":0},{"$f":"(DB77*'Default-Data'!$F$19/biopower_dollar_index)/'Philippines-IO-Data'!$AP19","v":69.746239994203805},{"$f":"(DC77*'Default-Data'!$F$19/biopower_dollar_index)/'Philippines-IO-Data'!$AP19","v":9.4518164868800874},null,"DOM_C23: Coke, refined petroleum products and nuclear fuel",0,0,null,13208628.408200813,19553187.264766462,{"$f":"DI77*'SouthAfrica-IO-Data'!AR19","v":0},{"$f":"DL77*'Mexico-IO-Data'!$AQ19","v":1657046.1487590196},{"$f":"DM77*'Mexico-IO-Data'!$AQ19","v":2452982.4484220273},{"$f":"DI77*'SouthAfrica-IO-Data'!AS19","v":0},{"$f":"DL77*'Mexico-IO-Data'!$AR19","v":424148.28921535722},{"$f":"DM77*'Mexico-IO-Data'!$AR19","v":627881.31142436166},{"$f":"(DQ77*'Default-Data'!$F$19/biopower_dollar_index)/'SouthAfrica-IO-Data'!$AT19","v":0},{"$f":"(DR77*'Default-Data'!$F$19/biopower_dollar_index)/'SouthAfrica-IO-Data'!$AT19","v":33.042009652498635},{"$f":"(DS77*'Default-Data'!$F$19/biopower_dollar_index)/'SouthAfrica-IO-Data'!$AT19","v":48.913224172344691},1186019.742425496,1670866.4831812743,{"$f":"DJ77*'SouthAfrica-IO-Data'!AR19","v":0},{"$f":"DW77*'SouthAfrica-IO-Data'!$AR19","v":251640.42553520625},{"$f":"DX77*'SouthAfrica-IO-Data'!$AR19","v":354511.4282671074},{"$f":"DJ77*'SouthAfrica-IO-Data'!AS19","v":0},{"$f":"DW77*'SouthAfrica-IO-Data'!$AS19","v":47715.418063046673},{"$f":"DX77*'SouthAfrica-IO-Data'!$AS19","v":67221.556202328837},{"$f":"(EB77*'Default-Data'!$F$19/biopower_dollar_index)/'SouthAfrica-IO-Data'!$AT19","v":0},{"$f":"(EC77*'Default-Data'!$F$19/biopower_dollar_index)/'SouthAfrica-IO-Data'!$AT19","v":3.7171275808487003},{"$f":"(ED77*'Default-Data'!$F$19/biopower_dollar_index)/'SouthAfrica-IO-Data'!$AT19","v":5.2366951968667932},null,"COFFEE",0,0,null,1526.8741854501304,402388.83842586621,{"$f":"EJ77*'Zambia-IO-Data'!BO17","v":0},{"$f":"EM77*'Zambia-IO-Data'!$BO17","v":487.4058511354649},{"$f":"EN77*'Zambia-IO-Data'!$BO17","v":128449.79380049655},{"$f":"EJ77*'Zambia-IO-Data'!BN17","v":0},{"$f":"EM77*'Zambia-IO-Data'!$BN17","v":387.60809050822581},{"$f":"EN77*'Zambia-IO-Data'!$BN17","v":102149.32624464568},{"$f":"(ER77*'Default-Data'!$F$19/biopower_dollar_index)/'Zambia-IO-Data'!$BP17","v":0},{"$f":"(ES77*'Default-Data'!$F$19/biopower_dollar_index)/'Zambia-IO-Data'!$BP17","v":3.753258795904777},{"$f":"(ET77*'Default-Data'!$F$19/biopower_dollar_index)/'Zambia-IO-Data'!$BP17","v":989.12501212439668},74.045696874409714,40779.739469869615,{"$f":"EK77*'Zambia-IO-Data'!BO17","v":0},{"$f":"EX77*'Zambia-IO-Data'!$BO17","v":23.63672544332832},{"$f":"EY77*'Zambia-IO-Data'!$BO17","v":13017.630276809403},{"$f":"EK77*'Zambia-IO-Data'!BN17","v":0},{"$f":"EX77*'Zambia-IO-Data'!$BN17","v":18.797037404479884},{"$f":"EY77*'Zambia-IO-Data'!$BN17","v":10352.232749733232},{"$f":"(FC77*'Default-Data'!$F$19/biopower_dollar_index)/'Zambia-IO-Data'!$BP17","v":0},{"$f":"(FD77*'Default-Data'!$F$19/biopower_dollar_index)/'Zambia-IO-Data'!$BP17","v":0.18201412122954128},{"$f":"(FE77*'Default-Data'!$F$19/biopower_dollar_index)/'Zambia-IO-Data'!$BP17","v":100.24199591459553},null,"TTL_C23: Coke, refined petroleum products and nuclear fuel",0,0,null,70470028.088428155,25198392.14498581,{"$f":"FK77*CustomRegion1!C15","v":0},{"$f":"FN77*CustomRegion1!$C15","v":11969504.007483572},{"$f":"FO77*CustomRegion1!$C15","v":4280007.5995865511},{"$f":"FK77*CustomRegion1!D15","v":0},{"$f":"FN77*CustomRegion1!$D15","v":1627361.4742952827},{"$f":"FO77*CustomRegion1!$D15","v":581905.43842948321},{"$f":"(FS77*'Default-Data'!$F$19/biopower_dollar_index)/CustomRegion1!$E15","v":0},{"$f":"(FT77*'Default-Data'!$F$19/biopower_dollar_index)/CustomRegion1!$E15","v":506.22752459152542},{"$f":"(FU77*'Default-Data'!$F$19/biopower_dollar_index)/CustomRegion1!$E15","v":181.01482325558177},13588122.751226336,2428327.0932274368,{"$f":"FL77*CustomRegion1!C15","v":0},{"$f":"FY77*CustomRegion1!$C15","v":2307975.3781407936},{"$f":"FZ77*CustomRegion1!$C15","v":412457.20574133884},{"$f":"FL77*CustomRegion1!D15","v":0},{"$f":"FY77*CustomRegion1!$D15","v":313789.96252978779},{"$f":"FZ77*CustomRegion1!$D15","v":56077.258172041191},{"$f":"(GD77*'Default-Data'!$C$58/biopower_dollar_index)/CustomRegion1!$E15","v":0},{"$f":"(GE77*'Default-Data'!$C$58/biopower_dollar_index)/CustomRegion1!$E15","v":97.611451716288457},{"$f":"(GF77*'Default-Data'!$C$58/biopower_dollar_index)/CustomRegion1!$E15","v":17.444097109774248},null,"C23 Coke, refined petroleum products and nuclear fuel",0,0,null,10444667.924915148,9588117.6423977297,{"$f":"GL77*CustomRegion2!C19","v":0},{"$f":"GO77*CustomRegion2!$C19","v":1746517.9887554331},{"$f":"GP77*CustomRegion2!$C19","v":1603288.8801380452},{"$f":"GL77*CustomRegion2!D19","v":0},{"$f":"GO77*CustomRegion2!$D19","v":740916.11158878414},{"$f":"GP77*CustomRegion2!$D19","v":680154.78252927412},{"$f":"(GT77*'Default-Data'!$C$59/biopower_dollar_index)/CustomRegion2!$E19","v":0},{"$f":"(GU77*'Default-Data'!$C$59/biopower_dollar_index)/CustomRegion2!$E19","v":16.384704697848143},{"$f":"(GV77*'Default-Data'!$C$59/biopower_dollar_index)/CustomRegion2!$E19","v":15.041021630200945},898950.39704943658,436275.19680477679,{"$f":"GM77*CustomRegion2!C19","v":0},{"$f":"GZ77*CustomRegion2!$C19","v":150319.09589968462},{"$f":"HA77*CustomRegion2!$C19","v":72952.293432876148},{"$f":"GM77*CustomRegion2!D19","v":0},{"$f":"GZ77*CustomRegion2!$D19","v":63769.076956888806},{"$f":"HA77*CustomRegion2!$D19","v":30948.166540378814},{"$f":"(HE77*'Default-Data'!$C$59/biopower_dollar_index)/CustomRegion2!$E19","v":0},{"$f":"(HF77*'Default-Data'!$C$59/biopower_dollar_index)/CustomRegion2!$E19","v":1.4101967529798718},{"$f":"(HG77*'Default-Data'!$C$59/biopower_dollar_index)/CustomRegion2!$E19","v":0.68439133900946125},null,"COFFEE",0,0,null,1526.8741854501304,402388.83842586621,{"$f":"HM77*CustomRegion3!D18","v":0},{"$f":"HP77*CustomRegion3!$D18","v":487.4058511354649},{"$f":"HQ77*CustomRegion3!$D18","v":128449.79380049655},{"$f":"HM77*CustomRegion3!E18","v":0},{"$f":"HP77*CustomRegion3!$E18","v":387.60809050822581},{"$f":"HQ77*CustomRegion3!$E18","v":102149.32624464568},{"$f":"(HU77*'Default-Data'!$C$60/biopower_dollar_index)/CustomRegion3!$F18","v":0},{"$f":"(HV77*'Default-Data'!$C$60/biopower_dollar_index)/CustomRegion3!$F18","v":3.753258795904777},{"$f":"(HW77*'Default-Data'!$C$60/biopower_dollar_index)/CustomRegion3!$F18","v":989.12501212439668},74.045696874409714,40779.739469869615,{"$f":"HN77*CustomRegion3!D18","v":0},{"$f":"IA77*CustomRegion3!$D18","v":23.63672544332832},{"$f":"IB77*CustomRegion3!$D18","v":13017.630276809403},{"$f":"HN77*CustomRegion3!E18","v":0},{"$f":"IA77*CustomRegion3!$E18","v":18.797037404479884},{"$f":"IB77*CustomRegion3!$E18","v":10352.232749733232},{"$f":"(IF77*'Default-Data'!$C$60/biopower_dollar_index)/CustomRegion3!$F18","v":0},{"$f":"(IG77*'Default-Data'!$C$60/biopower_dollar_index)/CustomRegion3!$F18","v":0.18201412122954128},{"$f":"(IH77*'Default-Data'!$C$60/biopower_dollar_index)/CustomRegion3!$F18","v":100.24199591459553}]
[null,248,"Transportation and Warehousing",0,0,0,1455659.9084402763,2417134.6088171266,0,1063934.6850768887,1766671.8262343421,0,343239.36970999918,569951.64517760405,0,48.339599998816951,80.268282073326546,16420.042164914616,13937.830146456487,0,12001.328255578888,10187.091669931609,0,3871.7868717946772,3286.4902075380828,0,0.54527727638398915,0.46284790164556622,null,77,"TTL_C24: Chemicals and chemical products",0,{"$f":"'Biopower-Inputs'!B50*'Biopower-Inputs'!C50+'Biopower-Inputs'!B52*'Biopower-Inputs'!C52","v":955000},null,8794787.0231441334,9343524.593389295,{"$f":"'Colombia-IO-Data'!$AN20*Calculations!AF78","v":0},{"$f":"'Colombia-IO-Data'!$AN20*AI78","v":2720096.8425096166},{"$f":"'Colombia-IO-Data'!$AN20*AJ78","v":2889813.212930222},{"$f":"'Colombia-IO-Data'!$AO20*Calculations!AK78","v":0},{"$f":"'Colombia-IO-Data'!$AO20*Calculations!AL78","v":997954.41941485624},{"$f":"'Colombia-IO-Data'!$AO20*Calculations!AM78","v":1060220.2914460993},{"$f":"(AN78*'Default-Data'!$F$19/biopower_dollar_index)/'Colombia-IO-Data'!$AP20","v":0},{"$f":"(AO78*'Default-Data'!$F$19/biopower_dollar_index)/'Colombia-IO-Data'!$AP20","v":234.60259061053995},{"$f":"(AP78*'Default-Data'!$F$19/biopower_dollar_index)/'Colombia-IO-Data'!$AP20","v":249.24026804446439},2054243.1827387991,898781.75701046642,{"$f":"'Colombia-IO-Data'!$AN20*AG78","v":295367.29857819906},{"$f":"'Colombia-IO-Data'!$AN20*AT78","v":635346.86859501654},{"$f":"'Colombia-IO-Data'!$AN20*AU78","v":277979.83202046994},{"$f":"'Colombia-IO-Data'!$AO20*AV78","v":108364.92890995261},{"$f":"'Colombia-IO-Data'!$AO20*AW78","v":233097.29472381648},{"$f":"'Colombia-IO-Data'!$AO20*AX78","v":101985.78136544659},{"$f":"(AY78*'Default-Data'!$F$19/biopower_dollar_index)/'Colombia-IO-Data'!$AP20","v":25.474803817701716},{"$f":"(AZ78*'Default-Data'!$F$19/biopower_dollar_index)/'Colombia-IO-Data'!$AP20","v":54.79732154358333},{"$f":"(BA78*'Default-Data'!$F$19/biopower_dollar_index)/'Colombia-IO-Data'!$AP20","v":23.975171659445952},null,"DOM_C24: Chemicals and chemical products",0,955000,null,8476007.1468667798,10039958.70643894,{"$f":"BG78*'Mexico-IO-Data'!AQ20","v":0},{"$f":"BJ78*'Mexico-IO-Data'!$AQ20","v":2486421.9645052431},{"$f":"BK78*'Mexico-IO-Data'!$AQ20","v":2945204.4362236531},{"$f":"BG78*'Mexico-IO-Data'!AR20","v":0},{"$f":"BJ78*'Mexico-IO-Data'!$AR20","v":544290.47135581251},{"$f":"BK78*'Mexico-IO-Data'!$AR20","v":644720.29837074818},{"$f":"(BO78*'Default-Data'!$F$19/biopower_dollar_index)/'Mexico-IO-Data'!$AS20","v":0},{"$f":"(BP78*'Default-Data'!$F$19/biopower_dollar_index)/'Mexico-IO-Data'!$AS20","v":42.799354824512925},{"$f":"(BQ78*'Default-Data'!$F$19/biopower_dollar_index)/'Mexico-IO-Data'!$AS20","v":50.696483338759478},8111030.82301585,662494.64194100164,{"$f":"BH78*'Mexico-IO-Data'!AQ20","v":280147.59012800874},{"$f":"BU78*'Mexico-IO-Data'!$AQ20","v":2379356.7942637587},{"$f":"BV78*'Mexico-IO-Data'!$AQ20","v":194341.65174082684},{"$f":"BH78*'Mexico-IO-Data'!AR20","v":61325.738775119833},{"$f":"BU78*'Mexico-IO-Data'!$AR20","v":520853.3585855657},{"$f":"BV78*'Mexico-IO-Data'!$AR20","v":42542.380472869547},{"$f":"(BZ78*'Default-Data'!$F$19/biopower_dollar_index)/'Mexico-IO-Data'!$AS20","v":4.8222450912537269},{"$f":"(CA78*'Default-Data'!$F$19/biopower_dollar_index)/'Mexico-IO-Data'!$AS20","v":40.95641735214226},{"$f":"(CB78*'Default-Data'!$F$19/biopower_dollar_index)/'Mexico-IO-Data'!$AS20","v":3.3452476807140226},null,"TTL_C24: Chemicals and chemical products",0,{"$f":"'Biopower-Inputs'!B50*'Biopower-Inputs'!C50+'Biopower-Inputs'!B52*'Biopower-Inputs'!C52","v":955000},null,16191300.165366964,6461490.5644623134,{"$f":"CH78*'Philippines-IO-Data'!AN20","v":0},{"$f":"CK78*'Philippines-IO-Data'!$AN20","v":4369552.3923899345},{"$f":"CL78*'Philippines-IO-Data'!$AN20","v":1743764.9395657037},{"$f":"CH78*'Philippines-IO-Data'!AO20","v":0},{"$f":"CK78*'Philippines-IO-Data'!$AO20","v":1133140.2292302551},{"$f":"CL78*'Philippines-IO-Data'!$AO20","v":452204.25936177518},{"$f":"(CP78*'Default-Data'!$F$19/biopower_dollar_index)/'Philippines-IO-Data'!$AP20","v":0},{"$f":"(CQ78*'Default-Data'!$F$19/biopower_dollar_index)/'Philippines-IO-Data'!$AP20","v":352.48884917022554},{"$f":"(CR78*'Default-Data'!$F$19/biopower_dollar_index)/'Philippines-IO-Data'!$AP20","v":140.66834347641603},1296631.4408140429,646002.43638767768,{"$f":"CI78*'Philippines-IO-Data'!AN20","v":257726.21667889459},{"$f":"CV78*'Philippines-IO-Data'!$AN20","v":349922.42478314898},{"$f":"CW78*'Philippines-IO-Data'!$AN20","v":174336.92554507271},{"$f":"CI78*'Philippines-IO-Data'!AO20","v":66835.208282383624},{"$f":"CV78*'Philippines-IO-Data'!$AO20","v":90744.117709208105},{"$f":"CW78*'Philippines-IO-Data'!$AO20","v":45210.164803034262},{"$f":"(DA78*'Default-Data'!$F$19/biopower_dollar_index)/'Philippines-IO-Data'!$AP20","v":20.790600354479682},{"$f":"(DB78*'Default-Data'!$F$19/biopower_dollar_index)/'Philippines-IO-Data'!$AP20","v":28.228006380123496},{"$f":"(DC78*'Default-Data'!$F$19/biopower_dollar_index)/'Philippines-IO-Data'!$AP20","v":14.063642390530251},null,"DOM_C24: Chemicals and chemical products",0,955000,null,6378308.3283660058,6917325.4933679309,{"$f":"DI78*'SouthAfrica-IO-Data'!AR20","v":0},{"$f":"DL78*'Mexico-IO-Data'!$AQ20","v":1871065.6620786851},{"$f":"DM78*'Mexico-IO-Data'!$AQ20","v":2029185.41057389},{"$f":"DI78*'SouthAfrica-IO-Data'!AS20","v":0},{"$f":"DL78*'Mexico-IO-Data'!$AR20","v":409585.83285083238},{"$f":"DM78*'Mexico-IO-Data'!$AR20","v":444199.05364267924},{"$f":"(DQ78*'Default-Data'!$F$19/biopower_dollar_index)/'SouthAfrica-IO-Data'!$AT20","v":0},{"$f":"(DR78*'Default-Data'!$F$19/biopower_dollar_index)/'SouthAfrica-IO-Data'!$AT20","v":31.907564846294523},{"$f":"(DS78*'Default-Data'!$F$19/biopower_dollar_index)/'SouthAfrica-IO-Data'!$AT20","v":34.604004757967893},1662467.7520239404,591101.96018786402,{"$f":"DJ78*'SouthAfrica-IO-Data'!AR20","v":221291.6191155492},{"$f":"DW78*'SouthAfrica-IO-Data'!$AR20","v":385225.3199714818},{"$f":"DX78*'SouthAfrica-IO-Data'!$AR20","v":136969.53909146317},{"$f":"DJ78*'SouthAfrica-IO-Data'!AS20","v":154080.59914407987},{"$f":"DW78*'SouthAfrica-IO-Data'!$AS20","v":268224.11234508938},{"$f":"DX78*'SouthAfrica-IO-Data'!$AS20","v":95368.946786372922},{"$f":"(EB78*'Default-Data'!$F$19/biopower_dollar_index)/'SouthAfrica-IO-Data'!$AT20","v":12.003190331380745},{"$f":"(EC78*'Default-Data'!$F$19/biopower_dollar_index)/'SouthAfrica-IO-Data'!$AT20","v":20.895200887252404},{"$f":"(ED78*'Default-Data'!$F$19/biopower_dollar_index)/'SouthAfrica-IO-Data'!$AT20","v":7.4294338569499221},null,"WHEAT",0,0,null,8558.2296689605937,2255415.7561185095,{"$f":"EJ78*'Zambia-IO-Data'!BO18","v":0},{"$f":"EM78*'Zambia-IO-Data'!$BO18","v":1849.1158678342872},{"$f":"EN78*'Zambia-IO-Data'!$BO18","v":487311.65492415649},{"$f":"EJ78*'Zambia-IO-Data'!BN18","v":0},{"$f":"EM78*'Zambia-IO-Data'!$BN18","v":1119.8456762628878},{"$f":"EN78*'Zambia-IO-Data'!$BN18","v":295121.50063288218},{"$f":"(ER78*'Default-Data'!$F$19/biopower_dollar_index)/'Zambia-IO-Data'!$BP18","v":0},{"$f":"(ES78*'Default-Data'!$F$19/biopower_dollar_index)/'Zambia-IO-Data'!$BP18","v":10.843609143912902},{"$f":"(ET78*'Default-Data'!$F$19/biopower_dollar_index)/'Zambia-IO-Data'!$BP18","v":2857.6992979135853},415.03097366376517,228573.10677541775,{"$f":"EK78*'Zambia-IO-Data'!BO18","v":0},{"$f":"EX78*'Zambia-IO-Data'!$BO18","v":89.672793174477732},{"$f":"EY78*'Zambia-IO-Data'!$BO18","v":49386.16688817351},{"$f":"EK78*'Zambia-IO-Data'!BN18","v":0},{"$f":"EX78*'Zambia-IO-Data'!$BN18","v":54.30686711507601},{"$f":"EY78*'Zambia-IO-Data'!$BN18","v":29908.826385061759},{"$f":"(FC78*'Default-Data'!$F$19/biopower_dollar_index)/'Zambia-IO-Data'!$BP18","v":0},{"$f":"(FD78*'Default-Data'!$F$19/biopower_dollar_index)/'Zambia-IO-Data'!$BP18","v":0.52586035139368503},{"$f":"(FE78*'Default-Data'!$F$19/biopower_dollar_index)/'Zambia-IO-Data'!$BP18","v":289.61099743231404},null,"TTL_C24: Chemicals and chemical products",0,955000,null,38086369.255213067,16374774.809329227,{"$f":"FK78*CustomRegion1!C16","v":0},{"$f":"FN78*CustomRegion1!$C16","v":10278383.094430819},{"$f":"FO78*CustomRegion1!$C16","v":4419066.7650023969},{"$f":"FK78*CustomRegion1!D16","v":0},{"$f":"FN78*CustomRegion1!$D16","v":2665455.9391538613},{"$f":"FO78*CustomRegion1!$D16","v":1145980.6125221441},{"$f":"(FS78*'Default-Data'!$F$19/biopower_dollar_index)/CustomRegion1!$E16","v":0},{"$f":"(FT78*'Default-Data'!$F$19/biopower_dollar_index)/CustomRegion1!$E16","v":829.15024307672968},{"$f":"(FU78*'Default-Data'!$F$19/biopower_dollar_index)/CustomRegion1!$E16","v":356.48314026739814},2994755.6334041483,1578009.7827751557,{"$f":"FL78*CustomRegion1!C16","v":257726.21667889459},{"$f":"FY78*CustomRegion1!$C16","v":808195.85264403943},{"$f":"FZ78*CustomRegion1!$C16","v":425858.10596536665},{"$f":"FL78*CustomRegion1!D16","v":66835.208282383624},{"$f":"FY78*CustomRegion1!$D16","v":209586.50943812352},{"$f":"FZ78*CustomRegion1!$D16","v":110436.24345907485},{"$f":"(GD78*'Default-Data'!$C$58/biopower_dollar_index)/CustomRegion1!$E16","v":20.790600354479682},{"$f":"(GE78*'Default-Data'!$C$58/biopower_dollar_index)/CustomRegion1!$E16","v":65.196615218253726},{"$f":"(GF78*'Default-Data'!$C$58/biopower_dollar_index)/CustomRegion1!$E16","v":34.35368664831158},null,"C24 Chemicals and chemical products",0,955000,null,41523659.754773006,21485045.239660636,{"$f":"GL78*CustomRegion2!C20","v":0},{"$f":"GO78*CustomRegion2!$C20","v":13681763.963876655},{"$f":"GP78*CustomRegion2!$C20","v":7079176.5335294073},{"$f":"GL78*CustomRegion2!D20","v":0},{"$f":"GO78*CustomRegion2!$D20","v":4850583.4053174499},{"$f":"GP78*CustomRegion2!$D20","v":2509774.0545379883},{"$f":"(GT78*'Default-Data'!$C$59/biopower_dollar_index)/CustomRegion2!$E20","v":0},{"$f":"(GU78*'Default-Data'!$C$59/biopower_dollar_index)/CustomRegion2!$E20","v":381.41737031138041},{"$f":"(GV78*'Default-Data'!$C$59/biopower_dollar_index)/CustomRegion2!$E20","v":197.35181110548518},2784972.6711829109,977605.06179484352,{"$f":"GM78*CustomRegion2!C20","v":314666.01601753809},{"$f":"GZ78*CustomRegion2!$C20","v":917629.58655376721},{"$f":"HA78*CustomRegion2!$C20","v":322114.23040163622},{"$f":"GM78*CustomRegion2!D20","v":111558.25809755837},{"$f":"GZ78*CustomRegion2!$D20","v":325326.38748321438},{"$f":"HA78*CustomRegion2!$D20","v":114198.86680752739},{"$f":"(HE78*'Default-Data'!$C$59/biopower_dollar_index)/CustomRegion2!$E20","v":8.772193751671864},{"$f":"(HF78*'Default-Data'!$C$59/biopower_dollar_index)/CustomRegion2!$E20","v":25.581486769348306},{"$f":"(HG78*'Default-Data'!$C$59/biopower_dollar_index)/CustomRegion2!$E20","v":8.979833523224622},null,"WHEAT",0,0,null,8558.2296689605937,2255415.7561185095,{"$f":"HM78*CustomRegion3!D19","v":0},{"$f":"HP78*CustomRegion3!$D19","v":1849.1158678342872},{"$f":"HQ78*CustomRegion3!$D19","v":487311.65492415649},{"$f":"HM78*CustomRegion3!E19","v":0},{"$f":"HP78*CustomRegion3!$E19","v":1119.8456762628878},{"$f":"HQ78*CustomRegion3!$E19","v":295121.50063288218},{"$f":"(HU78*'Default-Data'!$C$60/biopower_dollar_index)/CustomRegion3!$F19","v":0},{"$f":"(HV78*'Default-Data'!$C$60/biopower_dollar_index)/CustomRegion3!$F19","v":10.843609143912902},{"$f":"(HW78*'Default-Data'!$C$60/biopower_dollar_index)/CustomRegion3!$F19","v":2857.6992979135853},415.03097366376517,228573.10677541775,{"$f":"HN78*CustomRegion3!D19","v":0},{"$f":"IA78*CustomRegion3!$D19","v":89.672793174477732},{"$f":"IB78*CustomRegion3!$D19","v":49386.16688817351},{"$f":"HN78*CustomRegion3!E19","v":0},{"$f":"IA78*CustomRegion3!$E19","v":54.30686711507601},{"$f":"IB78*CustomRegion3!$E19","v":29908.826385061759},{"$f":"(IF78*'Default-Data'!$C$60/biopower_dollar_index)/CustomRegion3!$F19","v":0},{"$f":"(IG78*'Default-Data'!$C$60/biopower_dollar_index)/CustomRegion3!$F19","v":0.52586035139368503},{"$f":"(IH78*'Default-Data'!$C$60/biopower_dollar_index)/CustomRegion3!$F19","v":289.61099743231404}]
[null,249,"Information",0,0,0,730136.99125255318,942102.13777412171,0,445486.39779687009,574814.99053175992,0,113883.07307972548,146944.32399684383,0,9.4651625788703679,12.212981956490086,3094.2506617427657,5432.4072515494299,0,1887.9287006341578,3314.5335284365219,0,482.62555994283503,847.31939271522424,0,4.0112452764418251E-2,7.0423247207816217E-2,null,78,"TTL_C25: Rubber and plastics products",0,0,null,7602564.212668458,2523697.296171397,{"$f":"'Colombia-IO-Data'!$AN21*Calculations!AF79","v":0},{"$f":"'Colombia-IO-Data'!$AN21*AI79","v":1913495.3528050377},{"$f":"'Colombia-IO-Data'!$AN21*AJ79","v":635191.352946906},{"$f":"'Colombia-IO-Data'!$AO21*Calculations!AK79","v":0},{"$f":"'Colombia-IO-Data'!$AO21*Calculations!AL79","v":1108198.6145945862},{"$f":"'Colombia-IO-Data'!$AO21*Calculations!AM79","v":367870.33546035626},{"$f":"(AN79*'Default-Data'!$F$19/biopower_dollar_index)/'Colombia-IO-Data'!$AP21","v":0},{"$f":"(AO79*'Default-Data'!$F$19/biopower_dollar_index)/'Colombia-IO-Data'!$AP21","v":260.51917886925378},{"$f":"(AP79*'Default-Data'!$F$19/biopower_dollar_index)/'Colombia-IO-Data'!$AP21","v":86.480235999527252},518156.04764292866,242762.03988592443,{"$f":"'Colombia-IO-Data'!$AN21*AG79","v":0},{"$f":"'Colombia-IO-Data'!$AN21*AT79","v":130415.10225463292},{"$f":"'Colombia-IO-Data'!$AN21*AU79","v":61100.968326598624},{"$f":"'Colombia-IO-Data'!$AO21*AV79","v":0},{"$f":"'Colombia-IO-Data'!$AO21*AW79","v":75529.755235063247},{"$f":"'Colombia-IO-Data'!$AO21*AX79","v":35386.554950689409},{"$f":"(AY79*'Default-Data'!$F$19/biopower_dollar_index)/'Colombia-IO-Data'!$AP21","v":0},{"$f":"(AZ79*'Default-Data'!$F$19/biopower_dollar_index)/'Colombia-IO-Data'!$AP21","v":17.755797160270632},{"$f":"(BA79*'Default-Data'!$F$19/biopower_dollar_index)/'Colombia-IO-Data'!$AP21","v":8.3187942281789322},null,"DOM_C25: Rubber and plastics products",0,0,null,3962400.6423199209,1698092.3201591601,{"$f":"BG79*'Mexico-IO-Data'!AQ21","v":0},{"$f":"BJ79*'Mexico-IO-Data'!$AQ21","v":1222187.671313626},{"$f":"BK79*'Mexico-IO-Data'!$AQ21","v":523770.23067404167},{"$f":"BG79*'Mexico-IO-Data'!AR21","v":0},{"$f":"BJ79*'Mexico-IO-Data'!$AR21","v":427277.63670240901},{"$f":"BK79*'Mexico-IO-Data'!$AR21","v":183110.42697472277},{"$f":"(BO79*'Default-Data'!$F$19/biopower_dollar_index)/'Mexico-IO-Data'!$AS21","v":0},{"$f":"(BP79*'Default-Data'!$F$19/biopower_dollar_index)/'Mexico-IO-Data'!$AS21","v":78.234070486576897},{"$f":"(BQ79*'Default-Data'!$F$19/biopower_dollar_index)/'Mexico-IO-Data'!$AS21","v":33.527319991111732},177369.01524092376,112049.96918016401,{"$f":"BH79*'Mexico-IO-Data'!AQ21","v":0},{"$f":"BU79*'Mexico-IO-Data'!$AQ21","v":54708.809953547636},{"$f":"BV79*'Mexico-IO-Data'!$AQ21","v":34561.394282151261},{"$f":"BH79*'Mexico-IO-Data'!AR21","v":0},{"$f":"BU79*'Mexico-IO-Data'!$AR21","v":19126.23697032416},{"$f":"BV79*'Mexico-IO-Data'!$AR21","v":12082.686821857411},{"$f":"(BZ79*'Default-Data'!$F$19/biopower_dollar_index)/'Mexico-IO-Data'!$AS21","v":0},{"$f":"(CA79*'Default-Data'!$F$19/biopower_dollar_index)/'Mexico-IO-Data'!$AS21","v":3.5019931837000748},{"$f":"(CB79*'Default-Data'!$F$19/biopower_dollar_index)/'Mexico-IO-Data'!$AS21","v":2.2123268135064955},null,"TTL_C25: Rubber and plastics products",0,0,null,7842358.8464414161,1657990.9208899774,{"$f":"CH79*'Philippines-IO-Data'!AN21","v":0},{"$f":"CK79*'Philippines-IO-Data'!$AN21","v":2411862.7509133448},{"$f":"CL79*'Philippines-IO-Data'!$AN21","v":509903.54072634474},{"$f":"CH79*'Philippines-IO-Data'!AO21","v":0},{"$f":"CK79*'Philippines-IO-Data'!$AO21","v":681525.8051717832},{"$f":"CL79*'Philippines-IO-Data'!$AO21","v":144084.658640657},{"$f":"(CP79*'Default-Data'!$F$19/biopower_dollar_index)/'Philippines-IO-Data'!$AP21","v":0},{"$f":"(CQ79*'Default-Data'!$F$19/biopower_dollar_index)/'Philippines-IO-Data'!$AP21","v":212.00398728055237},{"$f":"(CR79*'Default-Data'!$F$19/biopower_dollar_index)/'Philippines-IO-Data'!$AP21","v":44.820785810270408},132212.60855168418,165761.4700073002,{"$f":"CI79*'Philippines-IO-Data'!AN21","v":0},{"$f":"CV79*'Philippines-IO-Data'!$AN21","v":40661.065377235325},{"$f":"CW79*'Philippines-IO-Data'!$AN21","v":50978.783663879294},{"$f":"CI79*'Philippines-IO-Data'!AO21","v":0},{"$f":"CV79*'Philippines-IO-Data'!$AO21","v":11489.694141952634},{"$f":"CW79*'Philippines-IO-Data'!$AO21","v":14405.196386090616},{"$f":"(DA79*'Default-Data'!$F$19/biopower_dollar_index)/'Philippines-IO-Data'!$AP21","v":0},{"$f":"(DB79*'Default-Data'!$F$19/biopower_dollar_index)/'Philippines-IO-Data'!$AP21","v":3.5741287450061967},{"$f":"(DC79*'Default-Data'!$F$19/biopower_dollar_index)/'Philippines-IO-Data'!$AP21","v":4.4810615360937698},null,"DOM_C25: Rubber and plastics products",0,0,null,7512597.4372730888,3832008.2872885391,{"$f":"DI79*'SouthAfrica-IO-Data'!AR21","v":0},{"$f":"DL79*'Mexico-IO-Data'!$AQ21","v":2317232.6062418851},{"$f":"DM79*'Mexico-IO-Data'!$AQ21","v":1181968.6366580089},{"$f":"DI79*'SouthAfrica-IO-Data'!AS21","v":0},{"$f":"DL79*'Mexico-IO-Data'!$AR21","v":810106.08675230725},{"$f":"DM79*'Mexico-IO-Data'!$AR21","v":413217.03497858869},{"$f":"(DQ79*'Default-Data'!$F$19/biopower_dollar_index)/'SouthAfrica-IO-Data'!$AT21","v":0},{"$f":"(DR79*'Default-Data'!$F$19/biopower_dollar_index)/'SouthAfrica-IO-Data'!$AT21","v":63.108902755532917},{"$f":"(DS79*'Default-Data'!$F$19/biopower_dollar_index)/'SouthAfrica-IO-Data'!$AT21","v":32.190442836861116},331999.67099366698,327454.24691148265,{"$f":"DJ79*'SouthAfrica-IO-Data'!AR21","v":0},{"$f":"DW79*'SouthAfrica-IO-Data'!$AR21","v":97782.297002434294},{"$f":"DX79*'SouthAfrica-IO-Data'!$AR21","v":96443.55468899796},{"$f":"DJ79*'SouthAfrica-IO-Data'!AS21","v":0},{"$f":"DW79*'SouthAfrica-IO-Data'!$AS21","v":92302.054916025823},{"$f":"DX79*'SouthAfrica-IO-Data'!$AS21","v":91038.342870785855},{"$f":"(EB79*'Default-Data'!$F$19/biopower_dollar_index)/'SouthAfrica-IO-Data'!$AT21","v":0},{"$f":"(EC79*'Default-Data'!$F$19/biopower_dollar_index)/'SouthAfrica-IO-Data'!$AT21","v":7.1905167768630429},{"$f":"(ED79*'Default-Data'!$F$19/biopower_dollar_index)/'SouthAfrica-IO-Data'!$AT21","v":7.0920710524348172},null,"HORTI",0,0,null,67850.016220310543,19783248.009914473,{"$f":"EJ79*'Zambia-IO-Data'!BO19","v":0},{"$f":"EM79*'Zambia-IO-Data'!$BO19","v":32708.30464956068},{"$f":"EN79*'Zambia-IO-Data'!$BO19","v":9536865.8537239768},{"$f":"EJ79*'Zambia-IO-Data'!BN19","v":0},{"$f":"EM79*'Zambia-IO-Data'!$BN19","v":27555.742695728241},{"$f":"EN79*'Zambia-IO-Data'!$BN19","v":8034516.7505471511},{"$f":"(ER79*'Default-Data'!$F$19/biopower_dollar_index)/'Zambia-IO-Data'!$BP19","v":0},{"$f":"(ES79*'Default-Data'!$F$19/biopower_dollar_index)/'Zambia-IO-Data'!$BP19","v":266.82578662076708},{"$f":"(ET79*'Default-Data'!$F$19/biopower_dollar_index)/'Zambia-IO-Data'!$BP19","v":77799.254977613527},6155.6274482133122,2415475.3475388377,{"$f":"EK79*'Zambia-IO-Data'!BO19","v":0},{"$f":"EX79*'Zambia-IO-Data'!$BO19","v":2967.4294731426858},{"$f":"EY79*'Zambia-IO-Data'!$BO19","v":1164422.7657111997},{"$f":"EK79*'Zambia-IO-Data'!BN19","v":0},{"$f":"EX79*'Zambia-IO-Data'!$BN19","v":2499.9682467718044},{"$f":"EY79*'Zambia-IO-Data'!$BN19","v":980990.43850678566},{"$f":"(FC79*'Default-Data'!$F$19/biopower_dollar_index)/'Zambia-IO-Data'!$BP19","v":0},{"$f":"(FD79*'Default-Data'!$F$19/biopower_dollar_index)/'Zambia-IO-Data'!$BP19","v":24.207512798239161},{"$f":"(FE79*'Default-Data'!$F$19/biopower_dollar_index)/'Zambia-IO-Data'!$BP19","v":9499.0560883195503},null,"TTL_C25: Rubber and plastics products",0,0,null,12758146.586199872,3453403.1654941458,{"$f":"FK79*CustomRegion1!C17","v":0},{"$f":"FN79*CustomRegion1!$C17","v":3923678.9752244581},{"$f":"FO79*CustomRegion1!$C17","v":1062070.0508394905},{"$f":"FK79*CustomRegion1!D17","v":0},{"$f":"FN79*CustomRegion1!$D17","v":1108723.3184445505},{"$f":"FO79*CustomRegion1!$D17","v":300111.66525670461},{"$f":"(FS79*'Default-Data'!$F$19/biopower_dollar_index)/CustomRegion1!$E17","v":0},{"$f":"(FT79*'Default-Data'!$F$19/biopower_dollar_index)/CustomRegion1!$E17","v":344.89341785366935},{"$f":"(FU79*'Default-Data'!$F$19/biopower_dollar_index)/CustomRegion1!$E17","v":93.356508559189052},290114.8065763351,332798.71280499676,{"$f":"FL79*CustomRegion1!C17","v":0},{"$f":"FY79*CustomRegion1!$C17","v":89222.784773155247},{"$f":"FZ79*CustomRegion1!$C17","v":102349.92234900095},{"$f":"FL79*CustomRegion1!D17","v":0},{"$f":"FY79*CustomRegion1!$D17","v":25211.894917804169},{"$f":"FZ79*CustomRegion1!$D17","v":28921.26146554454},{"$f":"(GD79*'Default-Data'!$C$58/biopower_dollar_index)/CustomRegion1!$E17","v":0},{"$f":"(GE79*'Default-Data'!$C$58/biopower_dollar_index)/CustomRegion1!$E17","v":7.8427290777720859},{"$f":"(GF79*'Default-Data'!$C$58/biopower_dollar_index)/CustomRegion1!$E17","v":8.9966112821412043},null,"C25 Rubber and plastics products",0,0,null,27474691.507099971,5629487.1085235178,{"$f":"GL79*CustomRegion2!C21","v":0},{"$f":"GO79*CustomRegion2!$C21","v":8967280.4780207872},{"$f":"GP79*CustomRegion2!$C21","v":1837370.5792651887},{"$f":"GL79*CustomRegion2!D21","v":0},{"$f":"GO79*CustomRegion2!$D21","v":4071733.0247382848},{"$f":"GP79*CustomRegion2!$D21","v":834286.6585486586},{"$f":"(GT79*'Default-Data'!$C$59/biopower_dollar_index)/CustomRegion2!$E21","v":0},{"$f":"(GU79*'Default-Data'!$C$59/biopower_dollar_index)/CustomRegion2!$E21","v":745.52988758866616},{"$f":"(GV79*'Default-Data'!$C$59/biopower_dollar_index)/CustomRegion2!$E21","v":152.75697964123864},428923.05280574679,256150.96599574795,{"$f":"GM79*CustomRegion2!C21","v":0},{"$f":"GZ79*CustomRegion2!$C21","v":139993.32138102822},{"$f":"HA79*CustomRegion2!$C21","v":83603.397556120166},{"$f":"GM79*CustomRegion2!D21","v":0},{"$f":"GZ79*CustomRegion2!$D21","v":63566.142634555319},{"$f":"HA79*CustomRegion2!$D21","v":37961.421597544613},{"$f":"(HE79*'Default-Data'!$C$59/biopower_dollar_index)/CustomRegion2!$E21","v":0},{"$f":"(HF79*'Default-Data'!$C$59/biopower_dollar_index)/CustomRegion2!$E21","v":11.638891568985228},{"$f":"(HG79*'Default-Data'!$C$59/biopower_dollar_index)/CustomRegion2!$E21","v":6.9506949999852958},null,"HORTI",0,0,null,67850.016220310543,19783248.009914473,{"$f":"HM79*CustomRegion3!D20","v":0},{"$f":"HP79*CustomRegion3!$D20","v":32708.30464956068},{"$f":"HQ79*CustomRegion3!$D20","v":9536865.8537239768},{"$f":"HM79*CustomRegion3!E20","v":0},{"$f":"HP79*CustomRegion3!$E20","v":27555.742695728241},{"$f":"HQ79*CustomRegion3!$E20","v":8034516.7505471511},{"$f":"(HU79*'Default-Data'!$C$60/biopower_dollar_index)/CustomRegion3!$F20","v":0},{"$f":"(HV79*'Default-Data'!$C$60/biopower_dollar_index)/CustomRegion3!$F20","v":266.82578662076708},{"$f":"(HW79*'Default-Data'!$C$60/biopower_dollar_index)/CustomRegion3!$F20","v":77799.254977613527},6155.6274482133122,2415475.3475388377,{"$f":"HN79*CustomRegion3!D20","v":0},{"$f":"IA79*CustomRegion3!$D20","v":2967.4294731426858},{"$f":"IB79*CustomRegion3!$D20","v":1164422.7657111997},{"$f":"HN79*CustomRegion3!E20","v":0},{"$f":"IA79*CustomRegion3!$E20","v":2499.9682467718044},{"$f":"IB79*CustomRegion3!$E20","v":980990.43850678566},{"$f":"(IF79*'Default-Data'!$C$60/biopower_dollar_index)/CustomRegion3!$F20","v":0},{"$f":"(IG79*'Default-Data'!$C$60/biopower_dollar_index)/CustomRegion3!$F20","v":24.207512798239161},{"$f":"(IH79*'Default-Data'!$C$60/biopower_dollar_index)/CustomRegion3!$F20","v":9499.0560883195503}]
[null,250,"Finance, Professional, and Business Services",27831440.657016721,0,0,7877860.6417013565,7423184.3245313084,20900294.4121048,5953478.1637273701,5866914.9371224903,20900294.4121048,2108342.0359747997,2072724.0628769088,5655.6016656026095,510.81621569755339,1076.7509479492803,46699.94593890445,42804.021705595966,0,35159.536288831165,33830.165510450563,0,12201.800348518003,11951.868887843628,0,2.949731175681058,6.2088274967430594,null,79,"TTL_C26: Other non-metallic mineral products",0,0,null,29518198.960491203,898231.57196626067,{"$f":"'Colombia-IO-Data'!$AN22*Calculations!AF80","v":0},{"$f":"'Colombia-IO-Data'!$AN22*AI80","v":13041747.101105787},{"$f":"'Colombia-IO-Data'!$AN22*AJ80","v":396857.17328120267},{"$f":"'Colombia-IO-Data'!$AO22*Calculations!AK80","v":0},{"$f":"'Colombia-IO-Data'!$AO22*Calculations!AL80","v":3859979.1202722089},{"$f":"'Colombia-IO-Data'!$AO22*Calculations!AM80","v":117458.22018476408},{"$f":"(AN80*'Default-Data'!$F$19/biopower_dollar_index)/'Colombia-IO-Data'!$AP22","v":0},{"$f":"(AO80*'Default-Data'!$F$19/biopower_dollar_index)/'Colombia-IO-Data'!$AP22","v":907.41729652284403},{"$f":"(AP80*'Default-Data'!$F$19/biopower_dollar_index)/'Colombia-IO-Data'!$AP22","v":27.612486309751645},299425.25427532336,86403.598811662057,{"$f":"'Colombia-IO-Data'!$AN22*AG80","v":0},{"$f":"'Colombia-IO-Data'!$AN22*AT80","v":132292.23257048198},{"$f":"'Colombia-IO-Data'!$AN22*AU80","v":38174.886138390248},{"$f":"'Colombia-IO-Data'!$AO22*AV80","v":0},{"$f":"'Colombia-IO-Data'!$AO22*AW80","v":39154.666283396858},{"$f":"'Colombia-IO-Data'!$AO22*AX80","v":11298.65977852472},{"$f":"(AY80*'Default-Data'!$F$19/biopower_dollar_index)/'Colombia-IO-Data'!$AP22","v":0},{"$f":"(AZ80*'Default-Data'!$F$19/biopower_dollar_index)/'Colombia-IO-Data'!$AP22","v":9.2046149261627477},{"$f":"(BA80*'Default-Data'!$F$19/biopower_dollar_index)/'Colombia-IO-Data'!$AP22","v":2.6561281787030171},null,"DOM_C26: Other non-metallic mineral products",0,0,null,15192102.403858688,1724253.9416572861,{"$f":"BG80*'Mexico-IO-Data'!AQ22","v":0},{"$f":"BJ80*'Mexico-IO-Data'!$AQ22","v":8309762.4741986031},{"$f":"BK80*'Mexico-IO-Data'!$AQ22","v":943130.86625413317},{"$f":"BG80*'Mexico-IO-Data'!AR22","v":0},{"$f":"BJ80*'Mexico-IO-Data'!$AR22","v":1796099.0944322918},{"$f":"BK80*'Mexico-IO-Data'!$AR22","v":203851.3736186614},{"$f":"(BO80*'Default-Data'!$F$19/biopower_dollar_index)/'Mexico-IO-Data'!$AS22","v":0},{"$f":"(BP80*'Default-Data'!$F$19/biopower_dollar_index)/'Mexico-IO-Data'!$AS22","v":436.71694501379909},{"$f":"(BQ80*'Default-Data'!$F$19/biopower_dollar_index)/'Mexico-IO-Data'!$AS22","v":49.56594510824992},160378.86650960468,113776.26453393657,{"$f":"BH80*'Mexico-IO-Data'!AQ22","v":0},{"$f":"BU80*'Mexico-IO-Data'!$AQ22","v":87723.887790377252},{"$f":"BV80*'Mexico-IO-Data'!$AQ22","v":62233.238583124672},{"$f":"BH80*'Mexico-IO-Data'!AR22","v":0},{"$f":"BU80*'Mexico-IO-Data'!$AR22","v":18960.92648972759},{"$f":"BV80*'Mexico-IO-Data'!$AR22","v":13451.294644076914},{"$f":"(BZ80*'Default-Data'!$F$19/biopower_dollar_index)/'Mexico-IO-Data'!$AS22","v":0},{"$f":"(CA80*'Default-Data'!$F$19/biopower_dollar_index)/'Mexico-IO-Data'!$AS22","v":4.6103012450114038},{"$f":"(CB80*'Default-Data'!$F$19/biopower_dollar_index)/'Mexico-IO-Data'!$AS22","v":3.270648218492934},null,"TTL_C26: Other non-metallic mineral products",0,0,null,19475263.266160749,2348213.9482478797,{"$f":"CH80*'Philippines-IO-Data'!AN22","v":0},{"$f":"CK80*'Philippines-IO-Data'!$AN22","v":7328308.3104869369},{"$f":"CL80*'Philippines-IO-Data'!$AN22","v":883604.78400550329},{"$f":"CH80*'Philippines-IO-Data'!AO22","v":0},{"$f":"CK80*'Philippines-IO-Data'!$AO22","v":1558733.2950924081},{"$f":"CL80*'Philippines-IO-Data'!$AO22","v":187942.99286799482},{"$f":"(CP80*'Default-Data'!$F$19/biopower_dollar_index)/'Philippines-IO-Data'!$AP22","v":0},{"$f":"(CQ80*'Default-Data'!$F$19/biopower_dollar_index)/'Philippines-IO-Data'!$AP22","v":484.87918015554857},{"$f":"(CR80*'Default-Data'!$F$19/biopower_dollar_index)/'Philippines-IO-Data'!$AP22","v":58.463910782383657},142576.41983223715,234768.11063855319,{"$f":"CI80*'Philippines-IO-Data'!AN22","v":0},{"$f":"CV80*'Philippines-IO-Data'!$AN22","v":53649.79913527162},{"$f":"CW80*'Philippines-IO-Data'!$AN22","v":88340.428199458547},{"$f":"CI80*'Philippines-IO-Data'!AO22","v":0},{"$f":"CV80*'Philippines-IO-Data'!$AO22","v":11411.327777721617},{"$f":"CW80*'Philippines-IO-Data'!$AO22","v":18790.034603233926},{"$f":"(DA80*'Default-Data'!$F$19/biopower_dollar_index)/'Philippines-IO-Data'!$AP22","v":0},{"$f":"(DB80*'Default-Data'!$F$19/biopower_dollar_index)/'Philippines-IO-Data'!$AP22","v":3.5497511182757342},{"$f":"(DC80*'Default-Data'!$F$19/biopower_dollar_index)/'Philippines-IO-Data'!$AP22","v":5.8450644521392112},null,"DOM_C26: Other non-metallic mineral products",0,0,null,21757455.923210148,2115459.0501029566,{"$f":"DI80*'SouthAfrica-IO-Data'!AR22","v":0},{"$f":"DL80*'Mexico-IO-Data'!$AQ22","v":11900873.622257842},{"$f":"DM80*'Mexico-IO-Data'!$AQ22","v":1157111.8837235088},{"$f":"DI80*'SouthAfrica-IO-Data'!AS22","v":0},{"$f":"DL80*'Mexico-IO-Data'!$AR22","v":2572293.5405505542},{"$f":"DM80*'Mexico-IO-Data'!$AR22","v":250101.92685598612},{"$f":"(DQ80*'Default-Data'!$F$19/biopower_dollar_index)/'SouthAfrica-IO-Data'!$AT22","v":0},{"$f":"(DR80*'Default-Data'!$F$19/biopower_dollar_index)/'SouthAfrica-IO-Data'!$AT22","v":200.38686977416177},{"$f":"(DS80*'Default-Data'!$F$19/biopower_dollar_index)/'SouthAfrica-IO-Data'!$AT22","v":19.483445981997345},191720.52138849991,180771.02088254879,{"$f":"DJ80*'SouthAfrica-IO-Data'!AR22","v":0},{"$f":"DW80*'SouthAfrica-IO-Data'!$AR22","v":63223.299151645835},{"$f":"DX80*'SouthAfrica-IO-Data'!$AR22","v":59612.503911599248},{"$f":"DJ80*'SouthAfrica-IO-Data'!AS22","v":0},{"$f":"DW80*'SouthAfrica-IO-Data'!$AS22","v":28497.264476725017},{"$f":"DX80*'SouthAfrica-IO-Data'!$AS22","v":26869.734937652735},{"$f":"(EB80*'Default-Data'!$F$19/biopower_dollar_index)/'SouthAfrica-IO-Data'!$AT22","v":0},{"$f":"(EC80*'Default-Data'!$F$19/biopower_dollar_index)/'SouthAfrica-IO-Data'!$AT22","v":2.2199945440111453},{"$f":"(ED80*'Default-Data'!$F$19/biopower_dollar_index)/'SouthAfrica-IO-Data'!$AT22","v":2.0932067009215594},null,"OTHERCROP",0,{"$f":"IF(biopower_feedstock<>\"Maize Stover\",'Biopower-Inputs'!B41*'Biopower-Inputs'!B38+'Biopower-Inputs'!B41*'Biopower-Inputs'!B39*0.9,0)","v":28385431.684592765},null,52910.819176610719,10895547.054074692,{"$f":"EJ80*'Zambia-IO-Data'!BO20","v":0},{"$f":"EM80*'Zambia-IO-Data'!$BO20","v":24359.511265988487},{"$f":"EN80*'Zambia-IO-Data'!$BO20","v":5016180.1564048547},{"$f":"EJ80*'Zambia-IO-Data'!BN20","v":0},{"$f":"EM80*'Zambia-IO-Data'!$BN20","v":22896.810215858644},{"$f":"EN80*'Zambia-IO-Data'!$BN20","v":4714976.5771418232},{"$f":"(ER80*'Default-Data'!$F$19/biopower_dollar_index)/'Zambia-IO-Data'!$BP20","v":0},{"$f":"(ES80*'Default-Data'!$F$19/biopower_dollar_index)/'Zambia-IO-Data'!$BP20","v":221.71274657387485},{"$f":"(ET80*'Default-Data'!$F$19/biopower_dollar_index)/'Zambia-IO-Data'!$BP20","v":45655.722220449861},8363095.2584047504,1324612.1616670713,{"$f":"EK80*'Zambia-IO-Data'!BO20","v":13068314.82995528},{"$f":"EX80*'Zambia-IO-Data'!$BO20","v":3850269.4975416381},{"$f":"EY80*'Zambia-IO-Data'!$BO20","v":609835.67023392464},{"$f":"EK80*'Zambia-IO-Data'!BN20","v":12283609.520539157},{"$f":"EX80*'Zambia-IO-Data'!$BN20","v":3619074.6605089121},{"$f":"EY80*'Zambia-IO-Data'!$BN20","v":573217.23132036359},{"$f":"(FC80*'Default-Data'!$F$19/biopower_dollar_index)/'Zambia-IO-Data'!$BP20","v":118943.76461020966},{"$f":"(FD80*'Default-Data'!$F$19/biopower_dollar_index)/'Zambia-IO-Data'!$BP20","v":35043.963568409839},{"$f":"(FE80*'Default-Data'!$F$19/biopower_dollar_index)/'Zambia-IO-Data'!$BP20","v":5550.5358843165841},null,"TTL_C26: Other non-metallic mineral products",0,0,null,23646995.431874409,3420982.2546402402,{"$f":"FK80*CustomRegion1!C18","v":0},{"$f":"FN80*CustomRegion1!$C18","v":8898081.1593215428},{"$f":"FO80*CustomRegion1!$C18","v":1287274.6490810639},{"$f":"FK80*CustomRegion1!D18","v":0},{"$f":"FN80*CustomRegion1!$D18","v":1892624.4336119303},{"$f":"FO80*CustomRegion1!$D18","v":273803.68980651209},{"$f":"(FS80*'Default-Data'!$F$19/biopower_dollar_index)/CustomRegion1!$E18","v":0},{"$f":"(FT80*'Default-Data'!$F$19/biopower_dollar_index)/CustomRegion1!$E18","v":588.74355645152718},{"$f":"(FU80*'Default-Data'!$F$19/biopower_dollar_index)/CustomRegion1!$E18","v":85.17281888757951},237687.20877732834,329674.36360998871,{"$f":"FL80*CustomRegion1!C18","v":0},{"$f":"FY80*CustomRegion1!$C18","v":89438.849866840188},{"$f":"FZ80*CustomRegion1!$C18","v":124052.51449388193},{"$f":"FL80*CustomRegion1!D18","v":0},{"$f":"FY80*CustomRegion1!$D18","v":19023.669209265525},{"$f":"FZ80*CustomRegion1!$D18","v":26386.005676758839},{"$f":"(GD80*'Default-Data'!$C$58/biopower_dollar_index)/CustomRegion1!$E18","v":0},{"$f":"(GE80*'Default-Data'!$C$58/biopower_dollar_index)/CustomRegion1!$E18","v":5.9177417706934738},{"$f":"(GF80*'Default-Data'!$C$58/biopower_dollar_index)/CustomRegion1!$E18","v":8.2079627351310247},null,"C26 Other non-metallic mineral products",0,0,null,6180298.7763547441,2975609.0711711226,{"$f":"GL80*CustomRegion2!C22","v":0},{"$f":"GO80*CustomRegion2!$C22","v":3266790.1594246523},{"$f":"GP80*CustomRegion2!$C22","v":1572851.2137935827},{"$f":"GL80*CustomRegion2!D22","v":0},{"$f":"GO80*CustomRegion2!$D22","v":915905.26925805898},{"$f":"GP80*CustomRegion2!$D22","v":440978.03781991068},{"$f":"(GT80*'Default-Data'!$C$59/biopower_dollar_index)/CustomRegion2!$E22","v":0},{"$f":"(GU80*'Default-Data'!$C$59/biopower_dollar_index)/CustomRegion2!$E22","v":222.70004609007901},{"$f":"(GV80*'Default-Data'!$C$59/biopower_dollar_index)/CustomRegion2!$E22","v":107.22269283018716},76677.413806028926,135395.12984267256,{"$f":"GM80*CustomRegion2!C22","v":0},{"$f":"GZ80*CustomRegion2!$C22","v":40530.244561964428},{"$f":"HA80*CustomRegion2!$C22","v":71567.329316876014},{"$f":"GM80*CustomRegion2!D22","v":0},{"$f":"GZ80*CustomRegion2!$D22","v":11363.406508227918},{"$f":"HA80*CustomRegion2!$D22","v":20065.229423734392},{"$f":"(HE80*'Default-Data'!$C$59/biopower_dollar_index)/CustomRegion2!$E22","v":0},{"$f":"(HF80*'Default-Data'!$C$59/biopower_dollar_index)/CustomRegion2!$E22","v":2.7629835072055347},{"$f":"(HG80*'Default-Data'!$C$59/biopower_dollar_index)/CustomRegion2!$E22","v":4.8788097060446525},null,"OTHERCROP",0,28385431.684592765,null,52910.819176610719,10895547.054074692,{"$f":"HM80*CustomRegion3!D21","v":0},{"$f":"HP80*CustomRegion3!$D21","v":24359.511265988487},{"$f":"HQ80*CustomRegion3!$D21","v":5016180.1564048547},{"$f":"HM80*CustomRegion3!E21","v":0},{"$f":"HP80*CustomRegion3!$E21","v":22896.810215858644},{"$f":"HQ80*CustomRegion3!$E21","v":4714976.5771418232},{"$f":"(HU80*'Default-Data'!$C$60/biopower_dollar_index)/CustomRegion3!$F21","v":0},{"$f":"(HV80*'Default-Data'!$C$60/biopower_dollar_index)/CustomRegion3!$F21","v":221.71274657387485},{"$f":"(HW80*'Default-Data'!$C$60/biopower_dollar_index)/CustomRegion3!$F21","v":45655.722220449861},8363095.2584047504,1324612.1616670713,{"$f":"HN80*CustomRegion3!D21","v":13068314.82995528},{"$f":"IA80*CustomRegion3!$D21","v":3850269.4975416381},{"$f":"IB80*CustomRegion3!$D21","v":609835.67023392464},{"$f":"HN80*CustomRegion3!E21","v":12283609.520539157},{"$f":"IA80*CustomRegion3!$E21","v":3619074.6605089121},{"$f":"IB80*CustomRegion3!$E21","v":573217.23132036359},{"$f":"(IF80*'Default-Data'!$C$60/biopower_dollar_index)/CustomRegion3!$F21","v":118943.76461020966},{"$f":"(IG80*'Default-Data'!$C$60/biopower_dollar_index)/CustomRegion3!$F21","v":35043.963568409839},{"$f":"(IH80*'Default-Data'!$C$60/biopower_dollar_index)/CustomRegion3!$F21","v":5550.5358843165841}]
[null,251,"Education and Health Care",0,0,0,72253.98253892301,2818067.7959935479,0,64826.784417178817,2349843.3988207495,0,55905.299544768372,1884798.3699902724,0,13.922614047276943,595.09473783652061,586.60112494708744,16249.715733034174,0,526.30268020636959,13549.81143543484,0,453.87272024485196,10868.240206985502,0,0.11303212328728351,3.431471853805641,null,80,"TTL_C27: Basic metals",0,0,null,12616062.868344015,641276.60153516009,{"$f":"'Colombia-IO-Data'!$AN23*Calculations!AF81","v":0},{"$f":"'Colombia-IO-Data'!$AN23*AI81","v":3675249.5848560743},{"$f":"'Colombia-IO-Data'!$AN23*AJ81","v":186813.55571584686},{"$f":"'Colombia-IO-Data'!$AO23*Calculations!AK81","v":0},{"$f":"'Colombia-IO-Data'!$AO23*Calculations!AL81","v":960690.99795443018},{"$f":"'Colombia-IO-Data'!$AO23*Calculations!AM81","v":48832.085312404888},{"$f":"(AN81*'Default-Data'!$F$19/biopower_dollar_index)/'Colombia-IO-Data'!$AP23","v":0},{"$f":"(AO81*'Default-Data'!$F$19/biopower_dollar_index)/'Colombia-IO-Data'!$AP23","v":225.84257608527315},{"$f":"(AP81*'Default-Data'!$F$19/biopower_dollar_index)/'Colombia-IO-Data'!$AP23","v":11.479616199227126},140217.24683918728,61686.326706440334,{"$f":"'Colombia-IO-Data'!$AN23*AG81","v":0},{"$f":"'Colombia-IO-Data'!$AN23*AT81","v":40847.400937454862},{"$f":"'Colombia-IO-Data'!$AN23*AU81","v":17970.158280362099},{"$f":"'Colombia-IO-Data'!$AO23*AV81","v":0},{"$f":"'Colombia-IO-Data'!$AO23*AW81","v":10677.29672894718},{"$f":"'Colombia-IO-Data'!$AO23*AX81","v":4697.305283128464},{"$f":"(AY81*'Default-Data'!$F$19/biopower_dollar_index)/'Colombia-IO-Data'!$AP23","v":0},{"$f":"(AZ81*'Default-Data'!$F$19/biopower_dollar_index)/'Colombia-IO-Data'!$AP23","v":2.5100559951397341},{"$f":"(BA81*'Default-Data'!$F$19/biopower_dollar_index)/'Colombia-IO-Data'!$AP23","v":1.104258838752038},null,"DOM_C27: Basic metals",0,0,null,26818848.912691858,674615.67663925141,{"$f":"BG81*'Mexico-IO-Data'!AQ23","v":0},{"$f":"BJ81*'Mexico-IO-Data'!$AQ23","v":10101098.813743655},{"$f":"BK81*'Mexico-IO-Data'!$AQ23","v":254088.4447806692},{"$f":"BG81*'Mexico-IO-Data'!AR23","v":0},{"$f":"BJ81*'Mexico-IO-Data'!$AR23","v":1237992.7391438384},{"$f":"BK81*'Mexico-IO-Data'!$AR23","v":31141.131825264954},{"$f":"(BO81*'Default-Data'!$F$19/biopower_dollar_index)/'Mexico-IO-Data'!$AS23","v":0},{"$f":"(BP81*'Default-Data'!$F$19/biopower_dollar_index)/'Mexico-IO-Data'!$AS23","v":119.22118614618866},{"$f":"(BQ81*'Default-Data'!$F$19/biopower_dollar_index)/'Mexico-IO-Data'!$AS23","v":2.9989535130153522},154909.52589023451,44515.050729867566,{"$f":"BH81*'Mexico-IO-Data'!AQ23","v":0},{"$f":"BU81*'Mexico-IO-Data'!$AQ23","v":58345.398540461902},{"$f":"BV81*'Mexico-IO-Data'!$AQ23","v":16766.227647764899},{"$f":"BH81*'Mexico-IO-Data'!AR23","v":0},{"$f":"BU81*'Mexico-IO-Data'!$AR23","v":7150.8239932537717},{"$f":"BV81*'Mexico-IO-Data'!$AR23","v":2054.872293945305},{"$f":"(BZ81*'Default-Data'!$F$19/biopower_dollar_index)/'Mexico-IO-Data'!$AS23","v":0},{"$f":"(CA81*'Default-Data'!$F$19/biopower_dollar_index)/'Mexico-IO-Data'!$AS23","v":0.68863870638524582},{"$f":"(CB81*'Default-Data'!$F$19/biopower_dollar_index)/'Mexico-IO-Data'!$AS23","v":0.19788832722276165},null,"TTL_C27: Basic metals",0,0,null,36099623.863928966,1359107.2081274092,{"$f":"CH81*'Philippines-IO-Data'!AN23","v":0},{"$f":"CK81*'Philippines-IO-Data'!$AN23","v":7410525.9381612008},{"$f":"CL81*'Philippines-IO-Data'!$AN23","v":278997.3451394806},{"$f":"CH81*'Philippines-IO-Data'!AO23","v":0},{"$f":"CK81*'Philippines-IO-Data'!$AO23","v":1686569.5225652896},{"$f":"CL81*'Philippines-IO-Data'!$AO23","v":63497.304120581204},{"$f":"(CP81*'Default-Data'!$F$19/biopower_dollar_index)/'Philippines-IO-Data'!$AP23","v":0},{"$f":"(CQ81*'Default-Data'!$F$19/biopower_dollar_index)/'Philippines-IO-Data'!$AP23","v":524.64552463948689},{"$f":"(CR81*'Default-Data'!$F$19/biopower_dollar_index)/'Philippines-IO-Data'!$AP23","v":19.752269911094494},181845.23698754609,135879.88081128109,{"$f":"CI81*'Philippines-IO-Data'!AN23","v":0},{"$f":"CV81*'Philippines-IO-Data'!$AN23","v":37329.165824738207},{"$f":"CW81*'Philippines-IO-Data'!$AN23","v":27893.403682590582},{"$f":"CI81*'Philippines-IO-Data'!AO23","v":0},{"$f":"CV81*'Philippines-IO-Data'!$AO23","v":8495.7847672565167},{"$f":"CW81*'Philippines-IO-Data'!$AO23","v":6348.2895713797225},{"$f":"(DA81*'Default-Data'!$F$19/biopower_dollar_index)/'Philippines-IO-Data'!$AP23","v":0},{"$f":"(DB81*'Default-Data'!$F$19/biopower_dollar_index)/'Philippines-IO-Data'!$AP23","v":2.6428056459018032},{"$f":"(DC81*'Default-Data'!$F$19/biopower_dollar_index)/'Philippines-IO-Data'!$AP23","v":1.9747787850891663},null,"DOM_C27: Basic metals",0,0,null,8102704.4700805051,520292.24541789014,{"$f":"DI81*'SouthAfrica-IO-Data'!AR23","v":0},{"$f":"DL81*'Mexico-IO-Data'!$AQ23","v":3051816.980560727},{"$f":"DM81*'Mexico-IO-Data'!$AQ23","v":195963.79397564405},{"$f":"DI81*'SouthAfrica-IO-Data'!AS23","v":0},{"$f":"DL81*'Mexico-IO-Data'!$AR23","v":374031.31409718469},{"$f":"DM81*'Mexico-IO-Data'!$AR23","v":24017.362719671652},{"$f":"(DQ81*'Default-Data'!$F$19/biopower_dollar_index)/'SouthAfrica-IO-Data'!$AT23","v":0},{"$f":"(DR81*'Default-Data'!$F$19/biopower_dollar_index)/'SouthAfrica-IO-Data'!$AT23","v":29.137795919438187},{"$f":"(DS81*'Default-Data'!$F$19/biopower_dollar_index)/'SouthAfrica-IO-Data'!$AT23","v":1.8710011356618201},99300.218305851813,44460.213189609451,{"$f":"DJ81*'SouthAfrica-IO-Data'!AR23","v":0},{"$f":"DW81*'SouthAfrica-IO-Data'!$AR23","v":15842.046825644928},{"$f":"DX81*'SouthAfrica-IO-Data'!$AR23","v":7093.0436130415028},{"$f":"DJ81*'SouthAfrica-IO-Data'!AS23","v":0},{"$f":"DW81*'SouthAfrica-IO-Data'!$AS23","v":10198.531993102109},{"$f":"DX81*'SouthAfrica-IO-Data'!$AS23","v":4566.2427975513483},{"$f":"(EB81*'Default-Data'!$F$19/biopower_dollar_index)/'SouthAfrica-IO-Data'!$AT23","v":0},{"$f":"(EC81*'Default-Data'!$F$19/biopower_dollar_index)/'SouthAfrica-IO-Data'!$AT23","v":0.79448627078228684},{"$f":"(ED81*'Default-Data'!$F$19/biopower_dollar_index)/'SouthAfrica-IO-Data'!$AT23","v":0.35571955004570871},null,"LIVEST",0,0,null,70591.370120737818,19768843.754010841,{"$f":"EJ81*'Zambia-IO-Data'!BO21","v":0},{"$f":"EM81*'Zambia-IO-Data'!$BO21","v":21238.247903956442},{"$f":"EN81*'Zambia-IO-Data'!$BO21","v":5947690.2587972442},{"$f":"EJ81*'Zambia-IO-Data'!BN21","v":0},{"$f":"EM81*'Zambia-IO-Data'!$BN21","v":13659.603798916576},{"$f":"EN81*'Zambia-IO-Data'!$BN21","v":3825319.9049772504},{"$f":"(ER81*'Default-Data'!$F$19/biopower_dollar_index)/'Zambia-IO-Data'!$BP21","v":0},{"$f":"(ES81*'Default-Data'!$F$19/biopower_dollar_index)/'Zambia-IO-Data'!$BP21","v":132.26769348296133},{"$f":"(ET81*'Default-Data'!$F$19/biopower_dollar_index)/'Zambia-IO-Data'!$BP21","v":37041.062692164829},5961.664973444108,2669824.0788234789,{"$f":"EK81*'Zambia-IO-Data'!BO21","v":0},{"$f":"EX81*'Zambia-IO-Data'!$BO21","v":1793.6373583595278},{"$f":"EY81*'Zambia-IO-Data'!$BO21","v":803248.12436736631},{"$f":"EK81*'Zambia-IO-Data'!BN21","v":0},{"$f":"EX81*'Zambia-IO-Data'!$BN21","v":1153.5968402347519},{"$f":"EY81*'Zambia-IO-Data'!$BN21","v":516617.52799472323},{"$f":"(FC81*'Default-Data'!$F$19/biopower_dollar_index)/'Zambia-IO-Data'!$BP21","v":0},{"$f":"(FD81*'Default-Data'!$F$19/biopower_dollar_index)/'Zambia-IO-Data'!$BP21","v":11.170425988430585},{"$f":"(FE81*'Default-Data'!$F$19/biopower_dollar_index)/'Zambia-IO-Data'!$BP21","v":5002.47370616643},null,"TTL_C27: Basic metals",0,0,null,74360475.169570714,5807392.6053504497,{"$f":"FK81*CustomRegion1!C19","v":0},{"$f":"FN81*CustomRegion1!$C19","v":15264708.355277617},{"$f":"FO81*CustomRegion1!$C19","v":1192140.77402166},{"$f":"FK81*CustomRegion1!D19","v":0},{"$f":"FN81*CustomRegion1!$D19","v":3474111.2975912676},{"$f":"FO81*CustomRegion1!$D19","v":271320.59355172166},{"$f":"(FS81*'Default-Data'!$F$19/biopower_dollar_index)/CustomRegion1!$E19","v":0},{"$f":"(FT81*'Default-Data'!$F$19/biopower_dollar_index)/CustomRegion1!$E19","v":1080.7007478757405},{"$f":"(FU81*'Default-Data'!$F$19/biopower_dollar_index)/CustomRegion1!$E19","v":84.400395741130509},1034380.0532151572,559648.75550153921,{"$f":"FL81*CustomRegion1!C19","v":0},{"$f":"FY81*CustomRegion1!$C19","v":212337.39839396821},{"$f":"FZ81*CustomRegion1!$C19","v":114884.6213616037},{"$f":"FL81*CustomRegion1!D19","v":0},{"$f":"FY81*CustomRegion1!$D19","v":48326.095559275869},{"$f":"FZ81*CustomRegion1!$D19","v":26146.713825282499},{"$f":"(GD81*'Default-Data'!$C$58/biopower_dollar_index)/CustomRegion1!$E19","v":0},{"$f":"(GE81*'Default-Data'!$C$58/biopower_dollar_index)/CustomRegion1!$E19","v":15.032922995021554},{"$f":"(GF81*'Default-Data'!$C$58/biopower_dollar_index)/CustomRegion1!$E19","v":8.1335256026677243},null,"C27 Basic metals",0,0,null,51059538.099971473,5349625.863838084,{"$f":"GL81*CustomRegion2!C23","v":0},{"$f":"GO81*CustomRegion2!$C23","v":18442095.469416995},{"$f":"GP81*CustomRegion2!$C23","v":1932220.983147112},{"$f":"GL81*CustomRegion2!D23","v":0},{"$f":"GO81*CustomRegion2!$D23","v":4509442.5007419847},{"$f":"GP81*CustomRegion2!$D23","v":472464.71729193896},{"$f":"(GT81*'Default-Data'!$C$59/biopower_dollar_index)/CustomRegion2!$E23","v":0},{"$f":"(GU81*'Default-Data'!$C$59/biopower_dollar_index)/CustomRegion2!$E23","v":434.26836587773408},{"$f":"(GV81*'Default-Data'!$C$59/biopower_dollar_index)/CustomRegion2!$E23","v":45.499300784852267},281903.18405278283,243416.816900281,{"$f":"GM81*CustomRegion2!C23","v":0},{"$f":"GZ81*CustomRegion2!$C23","v":101820.06392723235},{"$f":"HA81*CustomRegion2!$C23","v":87919.247670183802},{"$f":"GM81*CustomRegion2!D23","v":0},{"$f":"GZ81*CustomRegion2!$D23","v":24896.938878944133},{"$f":"HA81*CustomRegion2!$D23","v":21497.925370501347},{"$f":"(HE81*'Default-Data'!$C$59/biopower_dollar_index)/CustomRegion2!$E23","v":0},{"$f":"(HF81*'Default-Data'!$C$59/biopower_dollar_index)/CustomRegion2!$E23","v":2.397625196582037},{"$f":"(HG81*'Default-Data'!$C$59/biopower_dollar_index)/CustomRegion2!$E23","v":2.0702933719352172},null,"LIVEST",0,0,null,70591.370120737818,19768843.754010841,{"$f":"HM81*CustomRegion3!D22","v":0},{"$f":"HP81*CustomRegion3!$D22","v":21238.247903956442},{"$f":"HQ81*CustomRegion3!$D22","v":5947690.2587972442},{"$f":"HM81*CustomRegion3!E22","v":0},{"$f":"HP81*CustomRegion3!$E22","v":13659.603798916576},{"$f":"HQ81*CustomRegion3!$E22","v":3825319.9049772504},{"$f":"(HU81*'Default-Data'!$C$60/biopower_dollar_index)/CustomRegion3!$F22","v":0},{"$f":"(HV81*'Default-Data'!$C$60/biopower_dollar_index)/CustomRegion3!$F22","v":132.26769348296133},{"$f":"(HW81*'Default-Data'!$C$60/biopower_dollar_index)/CustomRegion3!$F22","v":37041.062692164829},5961.664973444108,2669824.0788234789,{"$f":"HN81*CustomRegion3!D22","v":0},{"$f":"IA81*CustomRegion3!$D22","v":1793.6373583595278},{"$f":"IB81*CustomRegion3!$D22","v":803248.12436736631},{"$f":"HN81*CustomRegion3!E22","v":0},{"$f":"IA81*CustomRegion3!$E22","v":1153.5968402347519},{"$f":"IB81*CustomRegion3!$E22","v":516617.52799472323},{"$f":"(IF81*'Default-Data'!$C$60/biopower_dollar_index)/CustomRegion3!$F22","v":0},{"$f":"(IG81*'Default-Data'!$C$60/biopower_dollar_index)/CustomRegion3!$F22","v":11.170425988430585},{"$f":"(IH81*'Default-Data'!$C$60/biopower_dollar_index)/CustomRegion3!$F22","v":5002.47370616643}]
[null,252,"Other",125567.80924101557,0,0,366961.03450901306,24920062.689869922,92346.381383115266,260372.38677891708,1014428.0166274474,92346.381383115266,59296.059277670232,332200.42477188329,66.068846833851111,42.366679231356763,164.14143141190789,2319.1278634309474,143695.59715188071,0,1662.6840908873558,5849.4571795814327,0,386.88144480767255,1915.5545074575157,0,0.27653807803932928,0.94648241048312087,null,81,"TTL_C28: Fabricated metal products",0,0,null,14480816.616934633,760909.69427526556,{"$f":"'Colombia-IO-Data'!$AN24*Calculations!AF82","v":0},{"$f":"'Colombia-IO-Data'!$AN24*AI82","v":5124448.5022990685},{"$f":"'Colombia-IO-Data'!$AN24*AJ82","v":269269.52024609898},{"$f":"'Colombia-IO-Data'!$AO24*Calculations!AK82","v":0},{"$f":"'Colombia-IO-Data'!$AO24*Calculations!AL82","v":1344459.4655302113},{"$f":"'Colombia-IO-Data'!$AO24*Calculations!AM82","v":70646.032467928322},{"$f":"(AN82*'Default-Data'!$F$19/biopower_dollar_index)/'Colombia-IO-Data'!$AP24","v":0},{"$f":"(AO82*'Default-Data'!$F$19/biopower_dollar_index)/'Colombia-IO-Data'!$AP24","v":316.060200193502},{"$f":"(AP82*'Default-Data'!$F$19/biopower_dollar_index)/'Colombia-IO-Data'!$AP24","v":16.607714651988015},137499.33857345456,73194.194022981246,{"$f":"'Colombia-IO-Data'!$AN24*AG82","v":0},{"$f":"'Colombia-IO-Data'!$AN24*AT82","v":48658.048662521251},{"$f":"'Colombia-IO-Data'!$AN24*AU82","v":25901.845721836948},{"$f":"'Colombia-IO-Data'!$AO24*AV82","v":0},{"$f":"'Colombia-IO-Data'!$AO24*AW82","v":12766.012590273156},{"$f":"'Colombia-IO-Data'!$AO24*AX82","v":6795.6545255168858},{"$f":"(AY82*'Default-Data'!$F$19/biopower_dollar_index)/'Colombia-IO-Data'!$AP24","v":0},{"$f":"(AZ82*'Default-Data'!$F$19/biopower_dollar_index)/'Colombia-IO-Data'!$AP24","v":3.0010785735093135},{"$f":"(BA82*'Default-Data'!$F$19/biopower_dollar_index)/'Colombia-IO-Data'!$AP24","v":1.5975460657965674},null,"DOM_C28: Fabricated metal products",0,0,null,7002092.6770440219,1156950.0939357663,{"$f":"BG82*'Mexico-IO-Data'!AQ24","v":0},{"$f":"BJ82*'Mexico-IO-Data'!$AQ24","v":2573435.1546785962},{"$f":"BK82*'Mexico-IO-Data'!$AQ24","v":425206.6034064414},{"$f":"BG82*'Mexico-IO-Data'!AR24","v":0},{"$f":"BJ82*'Mexico-IO-Data'!$AR24","v":934339.84975826822},{"$f":"BK82*'Mexico-IO-Data'!$AR24","v":154380.21557322529},{"$f":"(BO82*'Default-Data'!$F$19/biopower_dollar_index)/'Mexico-IO-Data'!$AS24","v":0},{"$f":"(BP82*'Default-Data'!$F$19/biopower_dollar_index)/'Mexico-IO-Data'!$AS24","v":199.8260534990915},{"$f":"(BQ82*'Default-Data'!$F$19/biopower_dollar_index)/'Mexico-IO-Data'!$AS24","v":33.017096749451369},173165.55960982805,76342.26998702847,{"$f":"BH82*'Mexico-IO-Data'!AQ24","v":0},{"$f":"BU82*'Mexico-IO-Data'!$AQ24","v":63642.450797673424},{"$f":"BV82*'Mexico-IO-Data'!$AQ24","v":28057.595126764503},{"$f":"BH82*'Mexico-IO-Data'!AR24","v":0},{"$f":"BU82*'Mexico-IO-Data'!$AR24","v":23106.732574333219},{"$f":"BV82*'Mexico-IO-Data'!$AR24","v":10186.901025137186},{"$f":"(BZ82*'Default-Data'!$F$19/biopower_dollar_index)/'Mexico-IO-Data'!$AS24","v":0},{"$f":"(CA82*'Default-Data'!$F$19/biopower_dollar_index)/'Mexico-IO-Data'!$AS24","v":4.9418069675423792},{"$f":"(CB82*'Default-Data'!$F$19/biopower_dollar_index)/'Mexico-IO-Data'!$AS24","v":2.1786593280439281},null,"TTL_C28: Fabricated metal products",0,0,null,10450754.431068851,853414.46250941791,{"$f":"CH82*'Philippines-IO-Data'!AN24","v":0},{"$f":"CK82*'Philippines-IO-Data'!$AN24","v":2631898.2082024454},{"$f":"CL82*'Philippines-IO-Data'!$AN24","v":214922.28236223804},{"$f":"CH82*'Philippines-IO-Data'!AO24","v":0},{"$f":"CK82*'Philippines-IO-Data'!$AO24","v":806803.21827977092},{"$f":"CL82*'Philippines-IO-Data'!$AO24","v":65884.002865109811},{"$f":"(CP82*'Default-Data'!$F$19/biopower_dollar_index)/'Philippines-IO-Data'!$AP24","v":0},{"$f":"(CQ82*'Default-Data'!$F$19/biopower_dollar_index)/'Philippines-IO-Data'!$AP24","v":250.97435479054249},{"$f":"(CR82*'Default-Data'!$F$19/biopower_dollar_index)/'Philippines-IO-Data'!$AP24","v":20.49470643578341},245827.50868158182,85322.081109537277,{"$f":"CI82*'Philippines-IO-Data'!AN24","v":0},{"$f":"CV82*'Philippines-IO-Data'!$AN24","v":61908.734330460684},{"$f":"CW82*'Philippines-IO-Data'!$AN24","v":21487.351355678933},{"$f":"CI82*'Philippines-IO-Data'!AO24","v":0},{"$f":"CV82*'Philippines-IO-Data'!$AO24","v":18978.00072273958},{"$f":"CW82*'Philippines-IO-Data'!$AO24","v":6586.9052883737031},{"$f":"(DA82*'Default-Data'!$F$19/biopower_dollar_index)/'Philippines-IO-Data'!$AP24","v":0},{"$f":"(DB82*'Default-Data'!$F$19/biopower_dollar_index)/'Philippines-IO-Data'!$AP24","v":5.9035355569843277},{"$f":"(DC82*'Default-Data'!$F$19/biopower_dollar_index)/'Philippines-IO-Data'!$AP24","v":2.0490055906578575},null,"DOM_C28: Fabricated metal products",0,0,null,21674668.72859605,3094875.1424291916,{"$f":"DI82*'SouthAfrica-IO-Data'!AR24","v":0},{"$f":"DL82*'Mexico-IO-Data'!$AQ24","v":7965954.9001755137},{"$f":"DM82*'Mexico-IO-Data'!$AQ24","v":1137440.0280332274},{"$f":"DI82*'SouthAfrica-IO-Data'!AS24","v":0},{"$f":"DL82*'Mexico-IO-Data'!$AR24","v":2892207.7523809597},{"$f":"DM82*'Mexico-IO-Data'!$AR24","v":412971.56564037723},{"$f":"(DQ82*'Default-Data'!$F$19/biopower_dollar_index)/'SouthAfrica-IO-Data'!$AT24","v":0},{"$f":"(DR82*'Default-Data'!$F$19/biopower_dollar_index)/'SouthAfrica-IO-Data'!$AT24","v":225.3088339646259},{"$f":"(DS82*'Default-Data'!$F$19/biopower_dollar_index)/'SouthAfrica-IO-Data'!$AT24","v":32.171320278904837},663116.21599950595,264464.46173170919,{"$f":"DJ82*'SouthAfrica-IO-Data'!AR24","v":0},{"$f":"DW82*'SouthAfrica-IO-Data'!$AR24","v":174264.14085331775},{"$f":"DX82*'SouthAfrica-IO-Data'!$AR24","v":69500.143561480581},{"$f":"DJ82*'SouthAfrica-IO-Data'!AS24","v":0},{"$f":"DW82*'SouthAfrica-IO-Data'!$AS24","v":161870.43072687456},{"$f":"DX82*'SouthAfrica-IO-Data'!$AS24","v":64557.275632201854},{"$f":"(EB82*'Default-Data'!$F$19/biopower_dollar_index)/'SouthAfrica-IO-Data'!$AT24","v":0},{"$f":"(EC82*'Default-Data'!$F$19/biopower_dollar_index)/'SouthAfrica-IO-Data'!$AT24","v":12.610033968133816},{"$f":"(ED82*'Default-Data'!$F$19/biopower_dollar_index)/'SouthAfrica-IO-Data'!$AT24","v":5.0291423514269233},null,"FISH",0,0,null,32080.64572045008,9769251.0815256368,{"$f":"EJ82*'Zambia-IO-Data'!BO22","v":0},{"$f":"EM82*'Zambia-IO-Data'!$BO22","v":2927.3198960349437},{"$f":"EN82*'Zambia-IO-Data'!$BO22","v":891432.27694076707},{"$f":"EJ82*'Zambia-IO-Data'!BN22","v":0},{"$f":"EM82*'Zambia-IO-Data'!$BN22","v":1244.5377456207157},{"$f":"EN82*'Zambia-IO-Data'!$BN22","v":378988.68443456251},{"$f":"(ER82*'Default-Data'!$F$19/biopower_dollar_index)/'Zambia-IO-Data'!$BP22","v":0},{"$f":"(ES82*'Default-Data'!$F$19/biopower_dollar_index)/'Zambia-IO-Data'!$BP22","v":12.051018425497297},{"$f":"(ET82*'Default-Data'!$F$19/biopower_dollar_index)/'Zambia-IO-Data'!$BP22","v":3669.7959826827055},1659.2517138970402,1065697.4900648003,{"$f":"EK82*'Zambia-IO-Data'!BO22","v":0},{"$f":"EX82*'Zambia-IO-Data'!$BO22","v":151.40470042112176},{"$f":"EY82*'Zambia-IO-Data'!$BO22","v":97243.599552379092},{"$f":"EK82*'Zambia-IO-Data'!BN22","v":0},{"$f":"EX82*'Zambia-IO-Data'!$BN22","v":64.369071789424069},{"$f":"EY82*'Zambia-IO-Data'!$BN22","v":41342.707480274934},{"$f":"(FC82*'Default-Data'!$F$19/biopower_dollar_index)/'Zambia-IO-Data'!$BP22","v":0},{"$f":"(FD82*'Default-Data'!$F$19/biopower_dollar_index)/'Zambia-IO-Data'!$BP22","v":0.62329396829954675},{"$f":"(FE82*'Default-Data'!$F$19/biopower_dollar_index)/'Zambia-IO-Data'!$BP22","v":400.32673284348562},null,"TTL_C28: Fabricated metal products",0,0,null,16917397.227344699,2069868.7476485595,{"$f":"FK82*CustomRegion1!C20","v":0},{"$f":"FN82*CustomRegion1!$C20","v":4260445.285914517},{"$f":"FO82*CustomRegion1!$C20","v":521271.8262669312},{"$f":"FK82*CustomRegion1!D20","v":0},{"$f":"FN82*CustomRegion1!$D20","v":1306031.1212903529},{"$f":"FO82*CustomRegion1!$D20","v":159794.85290123499},{"$f":"(FS82*'Default-Data'!$F$19/biopower_dollar_index)/CustomRegion1!$E20","v":0},{"$f":"(FT82*'Default-Data'!$F$19/biopower_dollar_index)/CustomRegion1!$E20","v":406.2704641921153},{"$f":"(FU82*'Default-Data'!$F$19/biopower_dollar_index)/CustomRegion1!$E20","v":49.707796395812473},496767.159220909,199469.80467719631,{"$f":"FL82*CustomRegion1!C20","v":0},{"$f":"FY82*CustomRegion1!$C20","v":125104.90078691964},{"$f":"FZ82*CustomRegion1!$C20","v":50234.097928824071},{"$f":"FL82*CustomRegion1!D20","v":0},{"$f":"FY82*CustomRegion1!$D20","v":38350.66123107991},{"$f":"FZ82*CustomRegion1!$D20","v":15399.163900049642},{"$f":"(GD82*'Default-Data'!$C$58/biopower_dollar_index)/CustomRegion1!$E20","v":0},{"$f":"(GE82*'Default-Data'!$C$58/biopower_dollar_index)/CustomRegion1!$E20","v":11.929838949803656},{"$f":"(GF82*'Default-Data'!$C$58/biopower_dollar_index)/CustomRegion1!$E20","v":4.7902575703268928},null,"C28 Fabricated metal products except machinery and equipment",0,0,null,17331807.028402157,3985433.3697736636,{"$f":"GL82*CustomRegion2!C24","v":0},{"$f":"GO82*CustomRegion2!$C24","v":5996830.679674047},{"$f":"GP82*CustomRegion2!$C24","v":1378965.7976510946},{"$f":"GL82*CustomRegion2!D24","v":0},{"$f":"GO82*CustomRegion2!$D24","v":2672344.1046638391},{"$f":"GP82*CustomRegion2!$D24","v":614503.11284864729},{"$f":"(GT82*'Default-Data'!$C$59/biopower_dollar_index)/CustomRegion2!$E24","v":0},{"$f":"(GU82*'Default-Data'!$C$59/biopower_dollar_index)/CustomRegion2!$E24","v":571.5307724108045},{"$f":"(GV82*'Default-Data'!$C$59/biopower_dollar_index)/CustomRegion2!$E24","v":131.42298483278987},287586.22054188611,181343.80413333286,{"$f":"GM82*CustomRegion2!C24","v":0},{"$f":"GZ82*CustomRegion2!$C24","v":99505.254562950387},{"$f":"HA82*CustomRegion2!$C24","v":62745.222492580957},{"$f":"GM82*CustomRegion2!D24","v":0},{"$f":"GZ82*CustomRegion2!$D24","v":44342.135807781138},{"$f":"HA82*CustomRegion2!$D24","v":27960.90708250305},{"$f":"(HE82*'Default-Data'!$C$59/biopower_dollar_index)/CustomRegion2!$E24","v":0},{"$f":"(HF82*'Default-Data'!$C$59/biopower_dollar_index)/CustomRegion2!$E24","v":9.483395152718888},{"$f":"(HG82*'Default-Data'!$C$59/biopower_dollar_index)/CustomRegion2!$E24","v":5.9799629824168674},null,"FISH",0,0,null,32080.64572045008,9769251.0815256368,{"$f":"HM82*CustomRegion3!D23","v":0},{"$f":"HP82*CustomRegion3!$D23","v":2927.3198960349437},{"$f":"HQ82*CustomRegion3!$D23","v":891432.27694076707},{"$f":"HM82*CustomRegion3!E23","v":0},{"$f":"HP82*CustomRegion3!$E23","v":1244.5377456207157},{"$f":"HQ82*CustomRegion3!$E23","v":378988.68443456251},{"$f":"(HU82*'Default-Data'!$C$60/biopower_dollar_index)/CustomRegion3!$F23","v":0},{"$f":"(HV82*'Default-Data'!$C$60/biopower_dollar_index)/CustomRegion3!$F23","v":12.051018425497297},{"$f":"(HW82*'Default-Data'!$C$60/biopower_dollar_index)/CustomRegion3!$F23","v":3669.7959826827055},1659.2517138970402,1065697.4900648003,{"$f":"HN82*CustomRegion3!D23","v":0},{"$f":"IA82*CustomRegion3!$D23","v":151.40470042112176},{"$f":"IB82*CustomRegion3!$D23","v":97243.599552379092},{"$f":"HN82*CustomRegion3!E23","v":0},{"$f":"IA82*CustomRegion3!$E23","v":64.369071789424069},{"$f":"IB82*CustomRegion3!$E23","v":41342.707480274934},{"$f":"(IF82*'Default-Data'!$C$60/biopower_dollar_index)/CustomRegion3!$F23","v":0},{"$f":"(IG82*'Default-Data'!$C$60/biopower_dollar_index)/CustomRegion3!$F23","v":0.62329396829954675},{"$f":"(IH82*'Default-Data'!$C$60/biopower_dollar_index)/CustomRegion3!$F23","v":400.32673284348562}]
[null,253,"Total",61425593.632990383,685042.91491666122,0,31974633.689105205,52389162.477860697,37866428.957194008,18587710.442603361,18804182.395649496,37866428.957194008,4461539.7208669279,6421356.4063738799,6666.6660911420322,877.90558019972286,2298.5668853903067,354609.27966313116,302089.60869120486,425561.00451836293,194440.45748285993,108429.83229709702,58285.903602142891,40334.585837198225,37027.219988256191,3.192690555272875,7.1970348320392548,13.254137652067941,null,82,"TTL_C29: Machinery and equipment, nec",{"$f":"'Biopower-Inputs'!B16*'Biopower-Inputs'!C16+'Biopower-Inputs'!B17*'Biopower-Inputs'!C17","v":66384441.655764312},0,null,2184019.0477139503,535920.28414957225,{"$f":"'Colombia-IO-Data'!$AN25*Calculations!AF83","v":23349711.264022402},{"$f":"'Colombia-IO-Data'!$AN25*AI83","v":768195.27117040672},{"$f":"'Colombia-IO-Data'!$AN25*AJ83","v":188501.75708811992},{"$f":"'Colombia-IO-Data'!$AO25*Calculations!AK83","v":11935651.652801704},{"$f":"'Colombia-IO-Data'!$AO25*Calculations!AL83","v":392677.71041550819},{"$f":"'Colombia-IO-Data'!$AO25*Calculations!AM83","v":96356.279660361863},{"$f":"(AN83*'Default-Data'!$F$19/biopower_dollar_index)/'Colombia-IO-Data'!$AP25","v":2805.8744406524024},{"$f":"(AO83*'Default-Data'!$F$19/biopower_dollar_index)/'Colombia-IO-Data'!$AP25","v":92.31203985499603},{"$f":"(AP83*'Default-Data'!$F$19/biopower_dollar_index)/'Colombia-IO-Data'!$AP25","v":22.65176884849021},55228.697046795016,51551.78538796294,{"$f":"'Colombia-IO-Data'!$AN25*AG83","v":0},{"$f":"'Colombia-IO-Data'!$AN25*AT83","v":19425.848849010446},{"$f":"'Colombia-IO-Data'!$AN25*AU83","v":18132.551452276348},{"$f":"'Colombia-IO-Data'!$AO25*AV83","v":0},{"$f":"'Colombia-IO-Data'!$AO25*AW83","v":9929.8943057604902},{"$f":"'Colombia-IO-Data'!$AO25*AX83","v":9268.8005973051713},{"$f":"(AY83*'Default-Data'!$F$19/biopower_dollar_index)/'Colombia-IO-Data'!$AP25","v":0},{"$f":"(AZ83*'Default-Data'!$F$19/biopower_dollar_index)/'Colombia-IO-Data'!$AP25","v":2.3343540379190788},{"$f":"(BA83*'Default-Data'!$F$19/biopower_dollar_index)/'Colombia-IO-Data'!$AP25","v":2.1789418330902404},null,"DOM_C29: Machinery and equipment, nec",66384441.655764312,0,null,2084756.1798258424,203105.37612660229,{"$f":"BG83*'Mexico-IO-Data'!AQ25","v":23530336.06699821},{"$f":"BJ83*'Mexico-IO-Data'!$AQ25","v":738953.47020356939},{"$f":"BK83*'Mexico-IO-Data'!$AQ25","v":71991.834804534257},{"$f":"BG83*'Mexico-IO-Data'!AR25","v":8414685.5745549221},{"$f":"BJ83*'Mexico-IO-Data'!$AR25","v":264257.21622863843},{"$f":"BK83*'Mexico-IO-Data'!$AR25","v":25745.006449996548},{"$f":"(BO83*'Default-Data'!$F$19/biopower_dollar_index)/'Mexico-IO-Data'!$AS25","v":938.8823350146198},{"$f":"(BP83*'Default-Data'!$F$19/biopower_dollar_index)/'Mexico-IO-Data'!$AS25","v":29.48493202971882},{"$f":"(BQ83*'Default-Data'!$F$19/biopower_dollar_index)/'Mexico-IO-Data'!$AS25","v":2.8725412918375994},22770.842871858029,13402.069407614541,{"$f":"BH83*'Mexico-IO-Data'!AQ25","v":0},{"$f":"BU83*'Mexico-IO-Data'!$AQ25","v":8071.252419084025},{"$f":"BV83*'Mexico-IO-Data'!$AQ25","v":4750.4383450218074},{"$f":"BH83*'Mexico-IO-Data'!AR25","v":0},{"$f":"BU83*'Mexico-IO-Data'!$AR25","v":2886.3612957365685},{"$f":"BV83*'Mexico-IO-Data'!$AR25","v":1698.8046792383536},{"$f":"(BZ83*'Default-Data'!$F$19/biopower_dollar_index)/'Mexico-IO-Data'!$AS25","v":0},{"$f":"(CA83*'Default-Data'!$F$19/biopower_dollar_index)/'Mexico-IO-Data'!$AS25","v":0.32205049244282785},{"$f":"(CB83*'Default-Data'!$F$19/biopower_dollar_index)/'Mexico-IO-Data'!$AS25","v":0.1895469165003745},null,"TTL_C29: Machinery and equipment, nec",{"$f":"'Biopower-Inputs'!B16*'Biopower-Inputs'!C16+'Biopower-Inputs'!B17*'Biopower-Inputs'!C17","v":66384441.655764312},0,null,2216637.8978385627,204997.02810484171,{"$f":"CH83*'Philippines-IO-Data'!AN25","v":24287903.364269543},{"$f":"CK83*'Philippines-IO-Data'!$AN25","v":810995.55428144161},{"$f":"CL83*'Philippines-IO-Data'!$AN25","v":75001.730592103428},{"$f":"CH83*'Philippines-IO-Data'!AO25","v":7225829.8133861702},{"$f":"CK83*'Philippines-IO-Data'!$AO25","v":241277.1397662684},{"$f":"CL83*'Philippines-IO-Data'!$AO25","v":22313.566257236202},{"$f":"(CP83*'Default-Data'!$F$19/biopower_dollar_index)/'Philippines-IO-Data'!$AP25","v":2247.757488012403},{"$f":"(CQ83*'Default-Data'!$F$19/biopower_dollar_index)/'Philippines-IO-Data'!$AP25","v":75.0547012041648},{"$f":"(CR83*'Default-Data'!$F$19/biopower_dollar_index)/'Philippines-IO-Data'!$AP25","v":6.9411385175510629},69305.843718477132,20495.05114753294,{"$f":"CI83*'Philippines-IO-Data'!AN25","v":0},{"$f":"CV83*'Philippines-IO-Data'!$AN25","v":25356.749154300913},{"$f":"CW83*'Philippines-IO-Data'!$AN25","v":7498.4711673600132},{"$f":"CI83*'Philippines-IO-Data'!AO25","v":0},{"$f":"CV83*'Philippines-IO-Data'!$AO25","v":7543.8192939801547},{"$f":"CW83*'Philippines-IO-Data'!$AO25","v":2230.8503003859887},{"$f":"(DA83*'Default-Data'!$F$19/biopower_dollar_index)/'Philippines-IO-Data'!$AP25","v":0},{"$f":"(DB83*'Default-Data'!$F$19/biopower_dollar_index)/'Philippines-IO-Data'!$AP25","v":2.3466752946275231},{"$f":"(DC83*'Default-Data'!$F$19/biopower_dollar_index)/'Philippines-IO-Data'!$AP25","v":0.69395634782843996},null,"DOM_C29: Machinery and equipment, nec",66384441.655764312,0,null,2087618.8149646372,499923.75294287503,{"$f":"DI83*'SouthAfrica-IO-Data'!AR25","v":20173709.856645927},{"$f":"DL83*'Mexico-IO-Data'!$AQ25","v":739968.1472148234},{"$f":"DM83*'Mexico-IO-Data'!$AQ25","v":177200.76604123088},{"$f":"DI83*'SouthAfrica-IO-Data'!AS25","v":16151883.281431898},{"$f":"DL83*'Mexico-IO-Data'!$AR25","v":264620.07496491488},{"$f":"DM83*'Mexico-IO-Data'!$AR25","v":63368.781710623778},{"$f":"(DQ83*'Default-Data'!$F$19/biopower_dollar_index)/'SouthAfrica-IO-Data'!$AT25","v":1258.2643779570399},{"$f":"(DR83*'Default-Data'!$F$19/biopower_dollar_index)/'SouthAfrica-IO-Data'!$AT25","v":20.614439085468433},{"$f":"(DS83*'Default-Data'!$F$19/biopower_dollar_index)/'SouthAfrica-IO-Data'!$AT25","v":4.9365562709752826},131115.49119027838,42719.676931836002,{"$f":"DJ83*'SouthAfrica-IO-Data'!AR25","v":0},{"$f":"DW83*'SouthAfrica-IO-Data'!$AR25","v":39844.966847809774},{"$f":"DX83*'SouthAfrica-IO-Data'!$AR25","v":12982.173926557027},{"$f":"DJ83*'SouthAfrica-IO-Data'!AS25","v":0},{"$f":"DW83*'SouthAfrica-IO-Data'!$AS25","v":31901.482595494552},{"$f":"DX83*'SouthAfrica-IO-Data'!$AS25","v":10394.050449373319},{"$f":"(EB83*'Default-Data'!$F$19/biopower_dollar_index)/'SouthAfrica-IO-Data'!$AT25","v":0},{"$f":"(EC83*'Default-Data'!$F$19/biopower_dollar_index)/'SouthAfrica-IO-Data'!$AT25","v":2.4851900211582474},{"$f":"(ED83*'Default-Data'!$F$19/biopower_dollar_index)/'SouthAfrica-IO-Data'!$AT25","v":0.80971755400001721},null,"FOREST",0,0,null,2623378.0433542696,412923.81031550048,{"$f":"EJ83*'Zambia-IO-Data'!BO23","v":0},{"$f":"EM83*'Zambia-IO-Data'!$BO23","v":840912.84551545803},{"$f":"EN83*'Zambia-IO-Data'!$BO23","v":132360.99813868926},{"$f":"EJ83*'Zambia-IO-Data'!BN23","v":0},{"$f":"EM83*'Zambia-IO-Data'!$BN23","v":477227.13984499115},{"$f":"EN83*'Zambia-IO-Data'!$BN23","v":75116.298800306191},{"$f":"(ER83*'Default-Data'!$F$19/biopower_dollar_index)/'Zambia-IO-Data'!$BP23","v":0},{"$f":"(ES83*'Default-Data'!$F$19/biopower_dollar_index)/'Zambia-IO-Data'!$BP23","v":4621.0515315073908},{"$f":"(ET83*'Default-Data'!$F$19/biopower_dollar_index)/'Zambia-IO-Data'!$BP23","v":727.36074424658466},68630.362367534719,39336.893543967206,{"$f":"EK83*'Zambia-IO-Data'!BO23","v":0},{"$f":"EX83*'Zambia-IO-Data'!$BO23","v":21999.175244086993},{"$f":"EY83*'Zambia-IO-Data'!$BO23","v":12609.276488988678},{"$f":"EK83*'Zambia-IO-Data'!BN23","v":0},{"$f":"EX83*'Zambia-IO-Data'!$BN23","v":12484.770017098497},{"$f":"EY83*'Zambia-IO-Data'!$BN23","v":7155.9008599353629},{"$f":"(FC83*'Default-Data'!$F$19/biopower_dollar_index)/'Zambia-IO-Data'!$BP23","v":0},{"$f":"(FD83*'Default-Data'!$F$19/biopower_dollar_index)/'Zambia-IO-Data'!$BP23","v":120.89162746856735},{"$f":"(FE83*'Default-Data'!$F$19/biopower_dollar_index)/'Zambia-IO-Data'!$BP23","v":69.291504751511326},null,"TTL_C29: Machinery and equipment, nec",66384441.655764312,0,null,6533996.4210125655,1072012.1638470143,{"$f":"FK83*CustomRegion1!C21","v":24287903.364269543},{"$f":"FN83*CustomRegion1!$C21","v":2390576.311223011},{"$f":"FO83*CustomRegion1!$C21","v":392214.30792250892},{"$f":"FK83*CustomRegion1!D21","v":7225829.8133861702},{"$f":"FN83*CustomRegion1!$D21","v":711214.02789431275},{"$f":"FO83*CustomRegion1!$D21","v":116686.64013182611},{"$f":"(FS83*'Default-Data'!$F$19/biopower_dollar_index)/CustomRegion1!$E21","v":2247.757488012403},{"$f":"(FT83*'Default-Data'!$F$19/biopower_dollar_index)/CustomRegion1!$E21","v":221.23917917598311},{"$f":"(FU83*'Default-Data'!$F$19/biopower_dollar_index)/CustomRegion1!$E21","v":36.298013637330527},338964.80332370423,103308.02722494362,{"$f":"FL83*CustomRegion1!C21","v":0},{"$f":"FY83*CustomRegion1!$C21","v":124016.17279099149},{"$f":"FZ83*CustomRegion1!$C21","v":37797.039779348415},{"$f":"FL83*CustomRegion1!D21","v":0},{"$f":"FY83*CustomRegion1!$D21","v":36895.723161246518},{"$f":"FZ83*CustomRegion1!$D21","v":11244.89721484746},{"$f":"(GD83*'Default-Data'!$C$58/biopower_dollar_index)/CustomRegion1!$E21","v":0},{"$f":"(GE83*'Default-Data'!$C$58/biopower_dollar_index)/CustomRegion1!$E21","v":11.477247617662973},{"$f":"(GF83*'Default-Data'!$C$58/biopower_dollar_index)/CustomRegion1!$E21","v":3.4979791344903601},null,"C29 Machinery and equipment n.e.c ",66384441.655764312,0,null,15514047.565199032,1616782.5725353062,{"$f":"GL83*CustomRegion2!C25","v":24943808.412758037},{"$f":"GO83*CustomRegion2!$C25","v":5829369.3600590471},{"$f":"GP83*CustomRegion2!$C25","v":607502.50704119494},{"$f":"GL83*CustomRegion2!D25","v":17862807.522314318},{"$f":"GO83*CustomRegion2!$D25","v":4174539.0732696783},{"$f":"GP83*CustomRegion2!$D25","v":435045.85077914293},{"$f":"(GT83*'Default-Data'!$C$59/biopower_dollar_index)/CustomRegion2!$E25","v":1993.0720272164483},{"$f":"(GU83*'Default-Data'!$C$59/biopower_dollar_index)/CustomRegion2!$E25","v":465.78103935018527},{"$f":"(GV83*'Default-Data'!$C$59/biopower_dollar_index)/CustomRegion2!$E25","v":48.540953859651268},94014.627878248095,73566.278734871055,{"$f":"GM83*CustomRegion2!C25","v":0},{"$f":"GZ83*CustomRegion2!$C25","v":35325.790310207907},{"$f":"HA83*CustomRegion2!$C25","v":27642.367949973413},{"$f":"GM83*CustomRegion2!D25","v":0},{"$f":"GZ83*CustomRegion2!$D25","v":25297.572144682312},{"$f":"HA83*CustomRegion2!$D25","v":19795.305110618792},{"$f":"(HE83*'Default-Data'!$C$59/biopower_dollar_index)/CustomRegion2!$E25","v":0},{"$f":"(HF83*'Default-Data'!$C$59/biopower_dollar_index)/CustomRegion2!$E25","v":2.822618075857982},{"$f":"(HG83*'Default-Data'!$C$59/biopower_dollar_index)/CustomRegion2!$E25","v":2.2086936130786623},null,"FOREST",0,0,null,2623378.0433542696,412923.81031550048,{"$f":"HM83*CustomRegion3!D24","v":0},{"$f":"HP83*CustomRegion3!$D24","v":840912.84551545803},{"$f":"HQ83*CustomRegion3!$D24","v":132360.99813868926},{"$f":"HM83*CustomRegion3!E24","v":0},{"$f":"HP83*CustomRegion3!$E24","v":477227.13984499115},{"$f":"HQ83*CustomRegion3!$E24","v":75116.298800306191},{"$f":"(HU83*'Default-Data'!$C$60/biopower_dollar_index)/CustomRegion3!$F24","v":0},{"$f":"(HV83*'Default-Data'!$C$60/biopower_dollar_index)/CustomRegion3!$F24","v":4621.0515315073908},{"$f":"(HW83*'Default-Data'!$C$60/biopower_dollar_index)/CustomRegion3!$F24","v":727.36074424658466},68630.362367534719,39336.893543967206,{"$f":"HN83*CustomRegion3!D24","v":0},{"$f":"IA83*CustomRegion3!$D24","v":21999.175244086993},{"$f":"IB83*CustomRegion3!$D24","v":12609.276488988678},{"$f":"HN83*CustomRegion3!E24","v":0},{"$f":"IA83*CustomRegion3!$E24","v":12484.770017098497},{"$f":"IB83*CustomRegion3!$E24","v":7155.9008599353629},{"$f":"(IF83*'Default-Data'!$C$60/biopower_dollar_index)/CustomRegion3!$F24","v":0},{"$f":"(IG83*'Default-Data'!$C$60/biopower_dollar_index)/CustomRegion3!$F24","v":120.89162746856735},{"$f":"(IH83*'Default-Data'!$C$60/biopower_dollar_index)/CustomRegion3!$F24","v":69.291504751511326}]
[null,null,null,null,null,null,null,null,null,null,null,null,null,null,null,null,null,null,null,null,null,null,null,null,null,null,null,null,null,83,"TTL_C30T33X: Computer, Electronic and optical equipment",0,0,null,590772.43294414366,99825.821457930375,{"$f":"'Colombia-IO-Data'!$AN26*Calculations!AF84","v":0},{"$f":"'Colombia-IO-Data'!$AN26*AI84","v":141133.49708403542},{"$f":"'Colombia-IO-Data'!$AN26*AJ84","v":23848.044519329022},{"$f":"'Colombia-IO-Data'!$AO26*Calculations!AK84","v":0},{"$f":"'Colombia-IO-Data'!$AO26*Calculations!AL84","v":56062.26674007874},{"$f":"'Colombia-IO-Data'!$AO26*Calculations!AM84","v":9473.1262293870477},{"$f":"(AN84*'Default-Data'!$F$19/biopower_dollar_index)/'Colombia-IO-Data'!$AP26","v":0},{"$f":"(AO84*'Default-Data'!$F$19/biopower_dollar_index)/'Colombia-IO-Data'!$AP26","v":13.179312358207076},{"$f":"(AP84*'Default-Data'!$F$19/biopower_dollar_index)/'Colombia-IO-Data'!$AP26","v":2.2269754122617726},28442.31483577039,9602.546267010548,{"$f":"'Colombia-IO-Data'!$AN26*AG84","v":0},{"$f":"'Colombia-IO-Data'!$AN26*AT84","v":6794.7709373178368},{"$f":"'Colombia-IO-Data'!$AN26*AU84","v":2294.0151909603128},{"$f":"'Colombia-IO-Data'!$AO26*AV84","v":0},{"$f":"'Colombia-IO-Data'!$AO26*AW84","v":2699.0776009669007},{"$f":"'Colombia-IO-Data'!$AO26*AX84","v":911.24852851079402},{"$f":"(AY84*'Default-Data'!$F$19/biopower_dollar_index)/'Colombia-IO-Data'!$AP26","v":0},{"$f":"(AZ84*'Default-Data'!$F$19/biopower_dollar_index)/'Colombia-IO-Data'!$AP26","v":0.63450853578763133},{"$f":"(BA84*'Default-Data'!$F$19/biopower_dollar_index)/'Colombia-IO-Data'!$AP26","v":0.21421946866473515},null,"DOM_C30T33X: Computer, Electronic and optical equipment",0,0,null,870244.10957631073,1150451.8203013435,{"$f":"BG84*'Mexico-IO-Data'!AQ26","v":0},{"$f":"BJ84*'Mexico-IO-Data'!$AQ26","v":117959.20087918002},{"$f":"BK84*'Mexico-IO-Data'!$AQ26","v":155940.58710585797},{"$f":"BG84*'Mexico-IO-Data'!AR26","v":0},{"$f":"BJ84*'Mexico-IO-Data'!$AR26","v":50573.888917387078},{"$f":"BK84*'Mexico-IO-Data'!$AR26","v":66858.048132095879},{"$f":"(BO84*'Default-Data'!$F$19/biopower_dollar_index)/'Mexico-IO-Data'!$AS26","v":0},{"$f":"(BP84*'Default-Data'!$F$19/biopower_dollar_index)/'Mexico-IO-Data'!$AS26","v":6.4623213620855218},{"$f":"(BQ84*'Default-Data'!$F$19/biopower_dollar_index)/'Mexico-IO-Data'!$AS26","v":8.5431079539316492},76759.519836860709,75913.47624488789,{"$f":"BH84*'Mexico-IO-Data'!AQ26","v":0},{"$f":"BU84*'Mexico-IO-Data'!$AQ26","v":10404.542266001603},{"$f":"BV84*'Mexico-IO-Data'!$AQ26","v":10289.863378871127},{"$f":"BH84*'Mexico-IO-Data'!AR26","v":0},{"$f":"BU84*'Mexico-IO-Data'!$AR26","v":4460.8488432876347},{"$f":"BV84*'Mexico-IO-Data'!$AR26","v":4411.6813577868916},{"$f":"(BZ84*'Default-Data'!$F$19/biopower_dollar_index)/'Mexico-IO-Data'!$AS26","v":0},{"$f":"(CA84*'Default-Data'!$F$19/biopower_dollar_index)/'Mexico-IO-Data'!$AS26","v":0.57000636870346399},{"$f":"(CB84*'Default-Data'!$F$19/biopower_dollar_index)/'Mexico-IO-Data'!$AS26","v":0.56372375728731394},null,"TTL_C30T33X: Computer, Electronic and optical equipment",0,0,null,32041661.916352723,4865722.0274112634,{"$f":"CH84*'Philippines-IO-Data'!AN26","v":0},{"$f":"CK84*'Philippines-IO-Data'!$AN26","v":7896964.3047914039},{"$f":"CL84*'Philippines-IO-Data'!$AN26","v":1199202.253235616},{"$f":"CH84*'Philippines-IO-Data'!AO26","v":0},{"$f":"CK84*'Philippines-IO-Data'!$AO26","v":2963258.8830865193},{"$f":"CL84*'Philippines-IO-Data'!$AO26","v":449988.95681492821},{"$f":"(CP84*'Default-Data'!$F$19/biopower_dollar_index)/'Philippines-IO-Data'!$AP26","v":0},{"$f":"(CQ84*'Default-Data'!$F$19/biopower_dollar_index)/'Philippines-IO-Data'!$AP26","v":921.78857174822667},{"$f":"(CR84*'Default-Data'!$F$19/biopower_dollar_index)/'Philippines-IO-Data'!$AP26","v":139.97922360831956},626134.55332433002,486461.79285327776,{"$f":"CI84*'Philippines-IO-Data'!AN26","v":0},{"$f":"CV84*'Philippines-IO-Data'!$AN26","v":154316.65905803864},{"$f":"CW84*'Philippines-IO-Data'!$AN26","v":119893.01378423782},{"$f":"CI84*'Philippines-IO-Data'!AO26","v":0},{"$f":"CV84*'Philippines-IO-Data'!$AO26","v":57905.822175809582},{"$f":"CW84*'Philippines-IO-Data'!$AO26","v":44988.684816594425},{"$f":"(DA84*'Default-Data'!$F$19/biopower_dollar_index)/'Philippines-IO-Data'!$AP26","v":0},{"$f":"(DB84*'Default-Data'!$F$19/biopower_dollar_index)/'Philippines-IO-Data'!$AP26","v":18.01291322334588},{"$f":"(DC84*'Default-Data'!$F$19/biopower_dollar_index)/'Philippines-IO-Data'!$AP26","v":13.994746040792984},null,"DOM_C30T33X: Computer, Electronic and optical equipment",0,0,null,1647978.1816958759,879513.40162128513,{"$f":"DI84*'SouthAfrica-IO-Data'!AR26","v":0},{"$f":"DL84*'Mexico-IO-Data'!$AQ26","v":223378.9200524585},{"$f":"DM84*'Mexico-IO-Data'!$AQ26","v":119215.62797855247},{"$f":"DI84*'SouthAfrica-IO-Data'!AS26","v":0},{"$f":"DL84*'Mexico-IO-Data'!$AR26","v":95771.593949589806},{"$f":"DM84*'Mexico-IO-Data'!$AR26","v":51112.570123116333},{"$f":"(DQ84*'Default-Data'!$F$19/biopower_dollar_index)/'SouthAfrica-IO-Data'!$AT26","v":0},{"$f":"(DR84*'Default-Data'!$F$19/biopower_dollar_index)/'SouthAfrica-IO-Data'!$AT26","v":7.4608008853969201},{"$f":"(DS84*'Default-Data'!$F$19/biopower_dollar_index)/'SouthAfrica-IO-Data'!$AT26","v":3.9817725977306009},15851.789045277983,75156.51767554984,{"$f":"DJ84*'SouthAfrica-IO-Data'!AR26","v":0},{"$f":"DW84*'SouthAfrica-IO-Data'!$AR26","v":4034.5934323261658},{"$f":"DX84*'SouthAfrica-IO-Data'!$AR26","v":19128.818314712898},{"$f":"DJ84*'SouthAfrica-IO-Data'!AS26","v":0},{"$f":"DW84*'SouthAfrica-IO-Data'!$AS26","v":2820.4414479415445},{"$f":"DX84*'SouthAfrica-IO-Data'!$AS26","v":13372.27974265884},{"$f":"(EB84*'Default-Data'!$F$19/biopower_dollar_index)/'SouthAfrica-IO-Data'!$AT26","v":0},{"$f":"(EC84*'Default-Data'!$F$19/biopower_dollar_index)/'SouthAfrica-IO-Data'!$AT26","v":0.21971809368745054},{"$f":"(ED84*'Default-Data'!$F$19/biopower_dollar_index)/'SouthAfrica-IO-Data'!$AT26","v":1.0417276399964488},null,"MINING",0,0,null,37765767.258347318,2370644.1479869932,{"$f":"EJ84*'Zambia-IO-Data'!BO24","v":0},{"$f":"EM84*'Zambia-IO-Data'!$BO24","v":9226638.1450206898},{"$f":"EN84*'Zambia-IO-Data'!$BO24","v":579177.31617784849},{"$f":"EJ84*'Zambia-IO-Data'!BN24","v":0},{"$f":"EM84*'Zambia-IO-Data'!$BN24","v":336504.52144577866},{"$f":"EN84*'Zambia-IO-Data'!$BN24","v":21123.163447984156},{"$f":"(ER84*'Default-Data'!$F$19/biopower_dollar_index)/'Zambia-IO-Data'!$BP24","v":0},{"$f":"(ES84*'Default-Data'!$F$19/biopower_dollar_index)/'Zambia-IO-Data'!$BP24","v":296.59243842393761},{"$f":"(ET84*'Default-Data'!$F$19/biopower_dollar_index)/'Zambia-IO-Data'!$BP24","v":18.617790118681931},1118762.3135412042,217449.45697362302,{"$f":"EK84*'Zambia-IO-Data'!BO24","v":0},{"$f":"EX84*'Zambia-IO-Data'!$BO24","v":273327.29576808272},{"$f":"EY84*'Zambia-IO-Data'!$BO24","v":53125.557878965359},{"$f":"EK84*'Zambia-IO-Data'!BN24","v":0},{"$f":"EX84*'Zambia-IO-Data'!$BN24","v":9968.5139283525277},{"$f":"EY84*'Zambia-IO-Data'!$BN24","v":1937.5410793853309},{"$f":"(FC84*'Default-Data'!$F$19/biopower_dollar_index)/'Zambia-IO-Data'!$BP24","v":0},{"$f":"(FD84*'Default-Data'!$F$19/biopower_dollar_index)/'Zambia-IO-Data'!$BP24","v":8.7861697690426404},{"$f":"(FE84*'Default-Data'!$F$19/biopower_dollar_index)/'Zambia-IO-Data'!$BP24","v":1.7077334676290197},null,"TTL_C30T33X: Computer, Electronic and optical equipment",0,0,null,53206677.995035902,11734196.913915962,{"$f":"FK84*CustomRegion1!C22","v":0},{"$f":"FN84*CustomRegion1!$C22","v":13113278.518455716},{"$f":"FO84*CustomRegion1!$C22","v":2892001.4953186843},{"$f":"FK84*CustomRegion1!D22","v":0},{"$f":"FN84*CustomRegion1!$D22","v":4920629.9479693491},{"$f":"FO84*CustomRegion1!$D22","v":1085195.3725690488},{"$f":"(FS84*'Default-Data'!$F$19/biopower_dollar_index)/CustomRegion1!$E22","v":0},{"$f":"(FT84*'Default-Data'!$F$19/biopower_dollar_index)/CustomRegion1!$E22","v":1530.6730295247662},{"$f":"(FU84*'Default-Data'!$F$19/biopower_dollar_index)/CustomRegion1!$E22","v":337.57451914099317},1223905.5310470019,1130805.0180097716,{"$f":"FL84*CustomRegion1!C22","v":0},{"$f":"FY84*CustomRegion1!$C22","v":301642.85224488494},{"$f":"FZ84*CustomRegion1!$C22","v":278697.36863881914},{"$f":"FL84*CustomRegion1!D22","v":0},{"$f":"FY84*CustomRegion1!$D22","v":113188.54017003442},{"$f":"FZ84*CustomRegion1!$D22","v":104578.47109815876},{"$f":"(GD84*'Default-Data'!$C$58/biopower_dollar_index)/CustomRegion1!$E22","v":0},{"$f":"(GE84*'Default-Data'!$C$58/biopower_dollar_index)/CustomRegion1!$E22","v":35.209850673906331},{"$f":"(GF84*'Default-Data'!$C$58/biopower_dollar_index)/CustomRegion1!$E22","v":32.531494315061622},null,"C30 Office, accounting and computing machinery",0,0,null,52729503.590057947,10958939.399976484,{"$f":"GL84*CustomRegion2!C26","v":0},{"$f":"GO84*CustomRegion2!$C26","v":8662975.4532991257},{"$f":"GP84*CustomRegion2!$C26","v":1800453.570628515},{"$f":"GL84*CustomRegion2!D26","v":0},{"$f":"GO84*CustomRegion2!$D26","v":3646966.9711415195},{"$f":"GP84*CustomRegion2!$D26","v":757960.67304512591},{"$f":"(GT84*'Default-Data'!$C$59/biopower_dollar_index)/CustomRegion2!$E26","v":0},{"$f":"(GU84*'Default-Data'!$C$59/biopower_dollar_index)/CustomRegion2!$E26","v":466.00870664556794},{"$f":"(GV84*'Default-Data'!$C$59/biopower_dollar_index)/CustomRegion2!$E26","v":96.852062475192866},343687.56247305707,498649.85201628553,{"$f":"GM84*CustomRegion2!C26","v":0},{"$f":"GZ84*CustomRegion2!$C26","v":56464.72495655503},{"$f":"HA84*CustomRegion2!$C26","v":81923.612658906422},{"$f":"GM84*CustomRegion2!D26","v":0},{"$f":"GZ84*CustomRegion2!$D26","v":23770.699577905874},{"$f":"HA84*CustomRegion2!$D26","v":34488.463130741213},{"$f":"(HE84*'Default-Data'!$C$59/biopower_dollar_index)/CustomRegion2!$E26","v":0},{"$f":"(HF84*'Default-Data'!$C$59/biopower_dollar_index)/CustomRegion2!$E26","v":3.0374152148937603},{"$f":"(HG84*'Default-Data'!$C$59/biopower_dollar_index)/CustomRegion2!$E26","v":4.406928887738041},null,"MINING",0,0,null,37765767.258347318,2370644.1479869932,{"$f":"HM84*CustomRegion3!D25","v":0},{"$f":"HP84*CustomRegion3!$D25","v":9226638.1450206898},{"$f":"HQ84*CustomRegion3!$D25","v":579177.31617784849},{"$f":"HM84*CustomRegion3!E25","v":0},{"$f":"HP84*CustomRegion3!$E25","v":336504.52144577866},{"$f":"HQ84*CustomRegion3!$E25","v":21123.163447984156},{"$f":"(HU84*'Default-Data'!$C$60/biopower_dollar_index)/CustomRegion3!$F25","v":0},{"$f":"(HV84*'Default-Data'!$C$60/biopower_dollar_index)/CustomRegion3!$F25","v":296.59243842393761},{"$f":"(HW84*'Default-Data'!$C$60/biopower_dollar_index)/CustomRegion3!$F25","v":18.617790118681931},1118762.3135412042,217449.45697362302,{"$f":"HN84*CustomRegion3!D25","v":0},{"$f":"IA84*CustomRegion3!$D25","v":273327.29576808272},{"$f":"IB84*CustomRegion3!$D25","v":53125.557878965359},{"$f":"HN84*CustomRegion3!E25","v":0},{"$f":"IA84*CustomRegion3!$E25","v":9968.5139283525277},{"$f":"IB84*CustomRegion3!$E25","v":1937.5410793853309},{"$f":"(IF84*'Default-Data'!$C$60/biopower_dollar_index)/CustomRegion3!$F25","v":0},{"$f":"(IG84*'Default-Data'!$C$60/biopower_dollar_index)/CustomRegion3!$F25","v":8.7861697690426404},{"$f":"(IH84*'Default-Data'!$C$60/biopower_dollar_index)/CustomRegion3!$F25","v":1.7077334676290197}]
[null,null,null,null,null,null,null,null,null,null,null,null,null,null,null,null,null,null,null,null,null,null,null,null,null,null,null,null,null,84,"TTL_C31: Electrical machinery and apparatus, nec",{"$f":"'Biopower-Inputs'!B25*'Biopower-Inputs'!C25","v":37933966.660436742},0,null,20417044.031465039,372015.82295008749,{"$f":"'Colombia-IO-Data'!$AN27*Calculations!AF85","v":9594723.2355631702},{"$f":"'Colombia-IO-Data'!$AN27*AI85","v":5164128.7219910938},{"$f":"'Colombia-IO-Data'!$AN27*AJ85","v":94094.796160061363},{"$f":"'Colombia-IO-Data'!$AO27*Calculations!AK85","v":4966209.5412764838},{"$f":"'Colombia-IO-Data'!$AO27*Calculations!AL85","v":2672942.6896310868},{"$f":"'Colombia-IO-Data'!$AO27*Calculations!AM85","v":48703.278145899989},{"$f":"(AN85*'Default-Data'!$F$19/biopower_dollar_index)/'Colombia-IO-Data'!$AP27","v":1167.4737856077479},{"$f":"(AO85*'Default-Data'!$F$19/biopower_dollar_index)/'Colombia-IO-Data'!$AP27","v":628.36465006953028},{"$f":"(AP85*'Default-Data'!$F$19/biopower_dollar_index)/'Colombia-IO-Data'!$AP27","v":11.449335763203834},316760.07315969997,35785.321871293592,{"$f":"'Colombia-IO-Data'!$AN27*AG85","v":0},{"$f":"'Colombia-IO-Data'!$AN27*AT85","v":80118.835481917195},{"$f":"'Colombia-IO-Data'!$AN27*AU85","v":9051.2616917730611},{"$f":"'Colombia-IO-Data'!$AO27*AV85","v":0},{"$f":"'Colombia-IO-Data'!$AO27*AW85","v":41469.348874126619},{"$f":"'Colombia-IO-Data'!$AO27*AX85","v":4684.9149340403355},{"$f":"(AY85*'Default-Data'!$F$19/biopower_dollar_index)/'Colombia-IO-Data'!$AP27","v":0},{"$f":"(AZ85*'Default-Data'!$F$19/biopower_dollar_index)/'Colombia-IO-Data'!$AP27","v":9.748758548017463},{"$f":"(BA85*'Default-Data'!$F$19/biopower_dollar_index)/'Colombia-IO-Data'!$AP27","v":1.1013460724592166},null,"DOM_C31: Electrical machinery and apparatus, nec",37933966.660436742,0,null,2035211.4927538484,557389.04228129983,{"$f":"BG85*'Mexico-IO-Data'!AQ27","v":10177506.201678049},{"$f":"BJ85*'Mexico-IO-Data'!$AQ27","v":546037.74434250675},{"$f":"BK85*'Mexico-IO-Data'!$AQ27","v":149544.87848173809},{"$f":"BG85*'Mexico-IO-Data'!AR27","v":3511594.9200749304},{"$f":"BJ85*'Mexico-IO-Data'!$AR27","v":188402.08310422569},{"$f":"BK85*'Mexico-IO-Data'!$AR27","v":51598.20344920153},{"$f":"(BO85*'Default-Data'!$F$19/biopower_dollar_index)/'Mexico-IO-Data'!$AS27","v":503.67538642679432},{"$f":"(BP85*'Default-Data'!$F$19/biopower_dollar_index)/'Mexico-IO-Data'!$AS27","v":27.022903885824352},{"$f":"(BQ85*'Default-Data'!$F$19/biopower_dollar_index)/'Mexico-IO-Data'!$AS27","v":7.4008379818052541},146149.58302421169,36779.758242549608,{"$f":"BH85*'Mexico-IO-Data'!AQ27","v":0},{"$f":"BU85*'Mexico-IO-Data'!$AQ27","v":39211.250985594925},{"$f":"BV85*'Mexico-IO-Data'!$AQ27","v":9867.8374703210702},{"$f":"BH85*'Mexico-IO-Data'!AR27","v":0},{"$f":"BU85*'Mexico-IO-Data'!$AR27","v":13529.250392212536},{"$f":"BV85*'Mexico-IO-Data'!$AR27","v":3404.7483977156598},{"$f":"(BZ85*'Default-Data'!$F$19/biopower_dollar_index)/'Mexico-IO-Data'!$AS27","v":0},{"$f":"(CA85*'Default-Data'!$F$19/biopower_dollar_index)/'Mexico-IO-Data'!$AS27","v":1.9405286129121928},{"$f":"(CB85*'Default-Data'!$F$19/biopower_dollar_index)/'Mexico-IO-Data'!$AS27","v":0.48835016678656407},null,"TTL_C31: Electrical machinery and apparatus, nec",{"$f":"'Biopower-Inputs'!B25*'Biopower-Inputs'!C25","v":37933966.660436742},0,null,839620.62456419319,2764235.089968197,{"$f":"CH85*'Philippines-IO-Data'!AN27","v":9856537.2917568441},{"$f":"CK85*'Philippines-IO-Data'!$AN27","v":218162.05173123494},{"$f":"CL85*'Philippines-IO-Data'!$AN27","v":718242.4788671094},{"$f":"CH85*'Philippines-IO-Data'!AO27","v":3296120.3630969222},{"$f":"CK85*'Philippines-IO-Data'!$AO27","v":72955.477149943021},{"$f":"CL85*'Philippines-IO-Data'!$AO27","v":240187.15601218189},{"$f":"(CP85*'Default-Data'!$F$19/biopower_dollar_index)/'Philippines-IO-Data'!$AP27","v":1025.3326495201964},{"$f":"(CQ85*'Default-Data'!$F$19/biopower_dollar_index)/'Philippines-IO-Data'!$AP27","v":22.694448152032372},{"$f":"(CR85*'Default-Data'!$F$19/biopower_dollar_index)/'Philippines-IO-Data'!$AP27","v":74.715637150854121},14778.779153411127,276360.78472187131,{"$f":"CI85*'Philippines-IO-Data'!AN27","v":0},{"$f":"CV85*'Philippines-IO-Data'!$AN27","v":3840.0304707432438},{"$f":"CW85*'Philippines-IO-Data'!$AN27","v":71807.94998249592},{"$f":"CI85*'Philippines-IO-Data'!AO27","v":0},{"$f":"CV85*'Philippines-IO-Data'!$AO27","v":1284.1429251340485},{"$f":"CW85*'Philippines-IO-Data'!$AO27","v":24013.265426134509},{"$f":"(DA85*'Default-Data'!$F$19/biopower_dollar_index)/'Philippines-IO-Data'!$AP27","v":0},{"$f":"(DB85*'Default-Data'!$F$19/biopower_dollar_index)/'Philippines-IO-Data'!$AP27","v":0.39946164664727452},{"$f":"(DC85*'Default-Data'!$F$19/biopower_dollar_index)/'Philippines-IO-Data'!$AP27","v":7.4698683150868375},null,"DOM_C31: Electrical machinery and apparatus, nec",37933966.660436742,0,null,5651235.5580329746,1694569.8501792178,{"$f":"DI85*'SouthAfrica-IO-Data'!AR27","v":7135561.3443885297},{"$f":"DL85*'Mexico-IO-Data'!$AQ27","v":1516200.1235955616},{"$f":"DM85*'Mexico-IO-Data'!$AQ27","v":454645.18155341962},{"$f":"DI85*'SouthAfrica-IO-Data'!AS27","v":7280008.5886151697},{"$f":"DL85*'Mexico-IO-Data'!$AR27","v":523141.9707666008},{"$f":"DM85*'Mexico-IO-Data'!$AR27","v":156868.45857350595},{"$f":"(DQ85*'Default-Data'!$F$19/biopower_dollar_index)/'SouthAfrica-IO-Data'!$AT27","v":567.12739429006729},{"$f":"(DR85*'Default-Data'!$F$19/biopower_dollar_index)/'SouthAfrica-IO-Data'!$AT27","v":40.75381767936485},{"$f":"(DS85*'Default-Data'!$F$19/biopower_dollar_index)/'SouthAfrica-IO-Data'!$AT27","v":12.220370219922353},279839.39016451797,144805.03499170835,{"$f":"DJ85*'SouthAfrica-IO-Data'!AR27","v":0},{"$f":"DW85*'SouthAfrica-IO-Data'!$AR27","v":52639.133496623479},{"$f":"DX85*'SouthAfrica-IO-Data'!$AR27","v":27238.522651977422},{"$f":"DJ85*'SouthAfrica-IO-Data'!AS27","v":0},{"$f":"DW85*'SouthAfrica-IO-Data'!$AS27","v":53704.7227901757},{"$f":"DX85*'SouthAfrica-IO-Data'!$AS27","v":27789.919990461131},{"$f":"(EB85*'Default-Data'!$F$19/biopower_dollar_index)/'SouthAfrica-IO-Data'!$AT27","v":0},{"$f":"(EC85*'Default-Data'!$F$19/biopower_dollar_index)/'SouthAfrica-IO-Data'!$AT27","v":4.1837065336287544},{"$f":"(ED85*'Default-Data'!$F$19/biopower_dollar_index)/'SouthAfrica-IO-Data'!$AT27","v":2.1648909777890357},null,"FOODMFG",0,0,null,215189.77907696867,56710609.2100005,{"$f":"EJ85*'Zambia-IO-Data'!BO25","v":0},{"$f":"EM85*'Zambia-IO-Data'!$BO25","v":24129.669146531731},{"$f":"EN85*'Zambia-IO-Data'!$BO25","v":6359076.3613643451},{"$f":"EJ85*'Zambia-IO-Data'!BN25","v":0},{"$f":"EM85*'Zambia-IO-Data'!$BN25","v":11171.781586684439},{"$f":"EN85*'Zambia-IO-Data'!$BN25","v":2944185.0930816308},{"$f":"(ER85*'Default-Data'!$F$19/biopower_dollar_index)/'Zambia-IO-Data'!$BP25","v":0},{"$f":"(ES85*'Default-Data'!$F$19/biopower_dollar_index)/'Zambia-IO-Data'!$BP25","v":41.971937388283301},{"$f":"(ET85*'Default-Data'!$F$19/biopower_dollar_index)/'Zambia-IO-Data'!$BP25","v":11061.185848246903},10435.618929078317,5747286.3258543834,{"$f":"EK85*'Zambia-IO-Data'!BO25","v":0},{"$f":"EX85*'Zambia-IO-Data'!$BO25","v":1170.1672504058724},{"$f":"EY85*'Zambia-IO-Data'!$BO25","v":644454.94636457332},{"$f":"EK85*'Zambia-IO-Data'!BN25","v":0},{"$f":"EX85*'Zambia-IO-Data'!$BN25","v":541.77505965946932},{"$f":"EY85*'Zambia-IO-Data'!$BN25","v":298375.82353582728},{"$f":"(FC85*'Default-Data'!$F$19/biopower_dollar_index)/'Zambia-IO-Data'!$BP25","v":0},{"$f":"(FD85*'Default-Data'!$F$19/biopower_dollar_index)/'Zambia-IO-Data'!$BP25","v":2.035427268795118},{"$f":"(FE85*'Default-Data'!$F$19/biopower_dollar_index)/'Zambia-IO-Data'!$BP25","v":1120.9860563824277},null,"TTL_C31: Electrical machinery and apparatus, nec",37933966.660436742,0,null,1965860.2574402764,5080072.8044110537,{"$f":"FK85*CustomRegion1!C23","v":9856537.2917568441},{"$f":"FN85*CustomRegion1!$C23","v":510797.48952412105},{"$f":"FO85*CustomRegion1!$C23","v":1319976.0386181779},{"$f":"FK85*CustomRegion1!D23","v":3296120.3630969222},{"$f":"FN85*CustomRegion1!$D23","v":170815.5670498301},{"$f":"FO85*CustomRegion1!$D23","v":441412.61488738225},{"$f":"(FS85*'Default-Data'!$F$19/biopower_dollar_index)/CustomRegion1!$E23","v":1025.3326495201964},{"$f":"(FT85*'Default-Data'!$F$19/biopower_dollar_index)/CustomRegion1!$E23","v":53.136038326567316},{"$f":"(FU85*'Default-Data'!$F$19/biopower_dollar_index)/CustomRegion1!$E23","v":137.31135883911566},82367.487932520919,489558.15734354372,{"$f":"FL85*CustomRegion1!C23","v":0},{"$f":"FY85*CustomRegion1!$C23","v":21401.880370236955},{"$f":"FZ85*CustomRegion1!$C23","v":127203.89295256601},{"$f":"FL85*CustomRegion1!D23","v":0},{"$f":"FY85*CustomRegion1!$D23","v":7156.9935372636937},{"$f":"FZ85*CustomRegion1!$D23","v":42538.198701566609},{"$f":"(GD85*'Default-Data'!$C$58/biopower_dollar_index)/CustomRegion1!$E23","v":0},{"$f":"(GE85*'Default-Data'!$C$58/biopower_dollar_index)/CustomRegion1!$E23","v":2.226344410331754},{"$f":"(GF85*'Default-Data'!$C$58/biopower_dollar_index)/CustomRegion1!$E23","v":13.232467014497596},null,"C31 Electrical machinery and apparatus n.e.c",37933966.660436742,0,null,29197828.485163279,5241838.8914934248,{"$f":"GL85*CustomRegion2!C27","v":9850133.8883629572},{"$f":"GO85*CustomRegion2!$C27","v":7581662.1658043303},{"$f":"GP85*CustomRegion2!$C27","v":1361123.5377682974},{"$f":"GL85*CustomRegion2!D27","v":4607787.4544001417},{"$f":"GO85*CustomRegion2!$D27","v":3546620.6050625951},{"$f":"GP85*CustomRegion2!$D27","v":636719.05705028283},{"$f":"(GT85*'Default-Data'!$C$59/biopower_dollar_index)/CustomRegion2!$E27","v":660.9045688612639},{"$f":"(GU85*'Default-Data'!$C$59/biopower_dollar_index)/CustomRegion2!$E27","v":508.69919350664071},{"$f":"(GV85*'Default-Data'!$C$59/biopower_dollar_index)/CustomRegion2!$E27","v":91.325942884739732},141439.52910981339,238512.33154387289,{"$f":"GM85*CustomRegion2!C27","v":0},{"$f":"GZ85*CustomRegion2!$C27","v":36726.934235741523},{"$f":"HA85*CustomRegion2!$C27","v":61933.370184116531},{"$f":"GM85*CustomRegion2!D27","v":0},{"$f":"GZ85*CustomRegion2!$D27","v":17180.467669577436},{"$f":"HA85*CustomRegion2!$D27","v":28971.769254856292},{"$f":"(HE85*'Default-Data'!$C$59/biopower_dollar_index)/CustomRegion2!$E27","v":0},{"$f":"(HF85*'Default-Data'!$C$59/biopower_dollar_index)/CustomRegion2!$E27","v":2.4642303253710183},{"$f":"(HG85*'Default-Data'!$C$59/biopower_dollar_index)/CustomRegion2!$E27","v":4.1554813146262006},null,"FOODMFG",0,0,null,215189.77907696867,56710609.2100005,{"$f":"HM85*CustomRegion3!D26","v":0},{"$f":"HP85*CustomRegion3!$D26","v":24129.669146531731},{"$f":"HQ85*CustomRegion3!$D26","v":6359076.3613643451},{"$f":"HM85*CustomRegion3!E26","v":0},{"$f":"HP85*CustomRegion3!$E26","v":11171.781586684439},{"$f":"HQ85*CustomRegion3!$E26","v":2944185.0930816308},{"$f":"(HU85*'Default-Data'!$C$60/biopower_dollar_index)/CustomRegion3!$F26","v":0},{"$f":"(HV85*'Default-Data'!$C$60/biopower_dollar_index)/CustomRegion3!$F26","v":41.971937388283301},{"$f":"(HW85*'Default-Data'!$C$60/biopower_dollar_index)/CustomRegion3!$F26","v":11061.185848246903},10435.618929078317,5747286.3258543834,{"$f":"HN85*CustomRegion3!D26","v":0},{"$f":"IA85*CustomRegion3!$D26","v":1170.1672504058724},{"$f":"IB85*CustomRegion3!$D26","v":644454.94636457332},{"$f":"HN85*CustomRegion3!E26","v":0},{"$f":"IA85*CustomRegion3!$E26","v":541.77505965946932},{"$f":"IB85*CustomRegion3!$E26","v":298375.82353582728},{"$f":"(IF85*'Default-Data'!$C$60/biopower_dollar_index)/CustomRegion3!$F26","v":0},{"$f":"(IG85*'Default-Data'!$C$60/biopower_dollar_index)/CustomRegion3!$F26","v":2.035427268795118},{"$f":"(IH85*'Default-Data'!$C$60/biopower_dollar_index)/CustomRegion3!$F26","v":1120.9860563824277}]
[null,null,null,null,null,null,null,null,null,null,null,null,null,null,null,null,null,null,null,null,null,null,null,null,null,null,null,null,null,85,"TTL_C34: Motor vehicles, trailers and semi-trailers",0,0,null,380167.8484101111,1150493.7149164544,{"$f":"'Colombia-IO-Data'!$AN28*Calculations!AF86","v":0},{"$f":"'Colombia-IO-Data'!$AN28*AI86","v":83677.359224934291},{"$f":"'Colombia-IO-Data'!$AN28*AJ86","v":253230.97750560028},{"$f":"'Colombia-IO-Data'!$AO28*Calculations!AK86","v":0},{"$f":"'Colombia-IO-Data'!$AO28*Calculations!AL86","v":21413.452974824595},{"$f":"'Colombia-IO-Data'!$AO28*Calculations!AM86","v":64803.068342639781},{"$f":"(AN86*'Default-Data'!$F$19/biopower_dollar_index)/'Colombia-IO-Data'!$AP28","v":0},{"$f":"(AO86*'Default-Data'!$F$19/biopower_dollar_index)/'Colombia-IO-Data'!$AP28","v":5.0339488899266636},{"$f":"(AP86*'Default-Data'!$F$19/biopower_dollar_index)/'Colombia-IO-Data'!$AP28","v":15.234130353978811},50693.070766438977,110669.45371489816,{"$f":"'Colombia-IO-Data'!$AN28*AG86","v":0},{"$f":"'Colombia-IO-Data'!$AN28*AT86","v":11157.867006581693},{"$f":"'Colombia-IO-Data'!$AN28*AU86","v":24359.050015557485},{"$f":"'Colombia-IO-Data'!$AO28*AV86","v":0},{"$f":"'Colombia-IO-Data'!$AO28*AW86","v":2855.3537379509908},{"$f":"'Colombia-IO-Data'!$AO28*AX86","v":6233.6022175053304},{"$f":"(AY86*'Default-Data'!$F$19/biopower_dollar_index)/'Colombia-IO-Data'!$AP28","v":0},{"$f":"(AZ86*'Default-Data'!$F$19/biopower_dollar_index)/'Colombia-IO-Data'!$AP28","v":0.67124647278536731},{"$f":"(BA86*'Default-Data'!$F$19/biopower_dollar_index)/'Colombia-IO-Data'!$AP28","v":1.4654168573348636},null,"DOM_C34: Motor vehicles, trailers and semi-trailers",0,0,null,304238.26875380619,3745259.0237351907,{"$f":"BG86*'Mexico-IO-Data'!AQ28","v":0},{"$f":"BJ86*'Mexico-IO-Data'!$AQ28","v":103001.84502443676},{"$f":"BK86*'Mexico-IO-Data'!$AQ28","v":1267981.8062313348},{"$f":"BG86*'Mexico-IO-Data'!AR28","v":0},{"$f":"BJ86*'Mexico-IO-Data'!$AR28","v":26146.668614395719},{"$f":"BK86*'Mexico-IO-Data'!$AR28","v":321872.87605137663},{"$f":"(BO86*'Default-Data'!$F$19/biopower_dollar_index)/'Mexico-IO-Data'!$AS28","v":0},{"$f":"(BP86*'Default-Data'!$F$19/biopower_dollar_index)/'Mexico-IO-Data'!$AS28","v":3.5171572121006278},{"$f":"(BQ86*'Default-Data'!$F$19/biopower_dollar_index)/'Mexico-IO-Data'!$AS28","v":43.297198739895158},38711.874744498964,247133.8885402444,{"$f":"BH86*'Mexico-IO-Data'!AQ28","v":0},{"$f":"BU86*'Mexico-IO-Data'!$AQ28","v":13106.157024134738},{"$f":"BV86*'Mexico-IO-Data'!$AQ28","v":83668.785626398036},{"$f":"BH86*'Mexico-IO-Data'!AR28","v":0},{"$f":"BU86*'Mexico-IO-Data'!$AR28","v":3326.9534583286918},{"$f":"BV86*'Mexico-IO-Data'!$AR28","v":21239.03713203712},{"$f":"(BZ86*'Default-Data'!$F$19/biopower_dollar_index)/'Mexico-IO-Data'!$AS28","v":0},{"$f":"(CA86*'Default-Data'!$F$19/biopower_dollar_index)/'Mexico-IO-Data'!$AS28","v":0.44752999025816109},{"$f":"(CB86*'Default-Data'!$F$19/biopower_dollar_index)/'Mexico-IO-Data'!$AS28","v":2.8570000151334312},null,"TTL_C34: Motor vehicles, trailers and semi-trailers",0,0,null,223822.32958084779,1811460.7280045624,{"$f":"CH86*'Philippines-IO-Data'!AN28","v":0},{"$f":"CK86*'Philippines-IO-Data'!$AN28","v":36566.498429032341},{"$f":"CL86*'Philippines-IO-Data'!$AN28","v":295943.55482260423},{"$f":"CH86*'Philippines-IO-Data'!AO28","v":0},{"$f":"CK86*'Philippines-IO-Data'!$AO28","v":9073.6923013627438},{"$f":"CL86*'Philippines-IO-Data'!$AO28","v":73436.092335813184},{"$f":"(CP86*'Default-Data'!$F$19/biopower_dollar_index)/'Philippines-IO-Data'!$AP28","v":0},{"$f":"(CQ86*'Default-Data'!$F$19/biopower_dollar_index)/'Philippines-IO-Data'!$AP28","v":2.8225768307641435},{"$f":"(CR86*'Default-Data'!$F$19/biopower_dollar_index)/'Philippines-IO-Data'!$AP28","v":22.843954355581591},20786.425379273936,181104.96827892837,{"$f":"CI86*'Philippines-IO-Data'!AN28","v":0},{"$f":"CV86*'Philippines-IO-Data'!$AN28","v":3395.9381639885237},{"$f":"CW86*'Philippines-IO-Data'!$AN28","v":29587.640118227308},{"$f":"CI86*'Philippines-IO-Data'!AO28","v":0},{"$f":"CV86*'Philippines-IO-Data'!$AO28","v":842.67565389913705},{"$f":"CW86*'Philippines-IO-Data'!$AO28","v":7341.9428682046509},{"$f":"(DA86*'Default-Data'!$F$19/biopower_dollar_index)/'Philippines-IO-Data'!$AP28","v":0},{"$f":"(DB86*'Default-Data'!$F$19/biopower_dollar_index)/'Philippines-IO-Data'!$AP28","v":0.26213328571738193},{"$f":"(DC86*'Default-Data'!$F$19/biopower_dollar_index)/'Philippines-IO-Data'!$AP28","v":2.2838770749892139},null,"DOM_C34: Motor vehicles, trailers and semi-trailers",0,0,null,996510.39162994665,2926785.4320235252,{"$f":"DI86*'SouthAfrica-IO-Data'!AR28","v":0},{"$f":"DL86*'Mexico-IO-Data'!$AQ28","v":337375.07560880907},{"$f":"DM86*'Mexico-IO-Data'!$AQ28","v":990882.24740397593},{"$f":"DI86*'SouthAfrica-IO-Data'!AS28","v":0},{"$f":"DL86*'Mexico-IO-Data'!$AR28","v":85641.517378717166},{"$f":"DM86*'Mexico-IO-Data'!$AR28","v":251532.09394077171},{"$f":"(DQ86*'Default-Data'!$F$19/biopower_dollar_index)/'SouthAfrica-IO-Data'!$AT28","v":0},{"$f":"(DR86*'Default-Data'!$F$19/biopower_dollar_index)/'SouthAfrica-IO-Data'!$AT28","v":6.6716474304707489},{"$f":"(DS86*'Default-Data'!$F$19/biopower_dollar_index)/'SouthAfrica-IO-Data'!$AT28","v":19.594858890693949},103624.00581002493,250100.79510890134,{"$f":"DJ86*'SouthAfrica-IO-Data'!AR28","v":0},{"$f":"DW86*'SouthAfrica-IO-Data'!$AR28","v":25054.222198536823},{"$f":"DX86*'SouthAfrica-IO-Data'!$AR28","v":60469.394554933759},{"$f":"DJ86*'SouthAfrica-IO-Data'!AS28","v":0},{"$f":"DW86*'SouthAfrica-IO-Data'!$AS28","v":18393.320798030851},{"$f":"DX86*'SouthAfrica-IO-Data'!$AS28","v":44393.035381339898},{"$f":"(EB86*'Default-Data'!$F$19/biopower_dollar_index)/'SouthAfrica-IO-Data'!$AT28","v":0},{"$f":"(EC86*'Default-Data'!$F$19/biopower_dollar_index)/'SouthAfrica-IO-Data'!$AT28","v":1.4328768942445476},{"$f":"(ED86*'Default-Data'!$F$19/biopower_dollar_index)/'SouthAfrica-IO-Data'!$AT28","v":3.4583072497769161},null,"TEXTILES",0,0,null,14692899.166891798,18896992.131311893,{"$f":"EJ86*'Zambia-IO-Data'!BO26","v":0},{"$f":"EM86*'Zambia-IO-Data'!$BO26","v":1491109.6289792177},{"$f":"EN86*'Zambia-IO-Data'!$BO26","v":1917762.2200822919},{"$f":"EJ86*'Zambia-IO-Data'!BN26","v":0},{"$f":"EM86*'Zambia-IO-Data'!$BN26","v":409741.43718102464},{"$f":"EN86*'Zambia-IO-Data'!$BN26","v":526981.13737346313},{"$f":"(ER86*'Default-Data'!$F$19/biopower_dollar_index)/'Zambia-IO-Data'!$BP26","v":0},{"$f":"(ES86*'Default-Data'!$F$19/biopower_dollar_index)/'Zambia-IO-Data'!$BP26","v":1539.3822205801907},{"$f":"(ET86*'Default-Data'!$F$19/biopower_dollar_index)/'Zambia-IO-Data'!$BP26","v":1979.8470934132911},385850.22058794397,1889903.5546974468,{"$f":"EK86*'Zambia-IO-Data'!BO26","v":0},{"$f":"EX86*'Zambia-IO-Data'!$BO26","v":39158.029516658658},{"$f":"EY86*'Zambia-IO-Data'!$BO26","v":191796.9596226092},{"$f":"EK86*'Zambia-IO-Data'!BN26","v":0},{"$f":"EX86*'Zambia-IO-Data'!$BN26","v":10760.219758165294},{"$f":"EY86*'Zambia-IO-Data'!$BN26","v":52703.812218366504},{"$f":"(FC86*'Default-Data'!$F$19/biopower_dollar_index)/'Zambia-IO-Data'!$BP26","v":0},{"$f":"(FD86*'Default-Data'!$F$19/biopower_dollar_index)/'Zambia-IO-Data'!$BP26","v":40.425716030124832},{"$f":"(FE86*'Default-Data'!$F$19/biopower_dollar_index)/'Zambia-IO-Data'!$BP26","v":198.00611830701035},null,"TTL_C34: Motor vehicles, trailers and semi-trailers",0,0,null,613062.16198335995,3581189.8532993128,{"$f":"FK86*CustomRegion1!C24","v":0},{"$f":"FN86*CustomRegion1!$C24","v":100157.73057605575},{"$f":"FO86*CustomRegion1!$C24","v":585069.29755386326},{"$f":"FK86*CustomRegion1!D24","v":0},{"$f":"FN86*CustomRegion1!$D24","v":24853.362172856276},{"$f":"FO86*CustomRegion1!$D24","v":145180.39760578418},{"$f":"(FS86*'Default-Data'!$F$19/biopower_dollar_index)/CustomRegion1!$E24","v":0},{"$f":"(FT86*'Default-Data'!$F$19/biopower_dollar_index)/CustomRegion1!$E24","v":7.7311993735073505},{"$f":"(FU86*'Default-Data'!$F$19/biopower_dollar_index)/CustomRegion1!$E24","v":45.161640151900329},51708.389864217803,345113.30313146103,{"$f":"FL86*CustomRegion1!C24","v":0},{"$f":"FY86*CustomRegion1!$C24","v":8447.748534646229},{"$f":"FZ86*CustomRegion1!$C24","v":56382.154007723169},{"$f":"FL86*CustomRegion1!D24","v":0},{"$f":"FY86*CustomRegion1!$D24","v":2096.243122415272},{"$f":"FZ86*CustomRegion1!$D24","v":13990.793177723048},{"$f":"(GD86*'Default-Data'!$C$58/biopower_dollar_index)/CustomRegion1!$E24","v":0},{"$f":"(GE86*'Default-Data'!$C$58/biopower_dollar_index)/CustomRegion1!$E24","v":0.65208374633658317},{"$f":"(GF86*'Default-Data'!$C$58/biopower_dollar_index)/CustomRegion1!$E24","v":4.3521520628954162},null,"C32 Radio, television and communication equipment",0,0,null,0,0,{"$f":"GL86*CustomRegion2!C28","v":0},{"$f":"GO86*CustomRegion2!$C28","v":0},{"$f":"GP86*CustomRegion2!$C28","v":0},{"$f":"GL86*CustomRegion2!D28","v":0},{"$f":"GO86*CustomRegion2!$D28","v":0},{"$f":"GP86*CustomRegion2!$D28","v":0},{"$f":"(GT86*'Default-Data'!$C$59/biopower_dollar_index)/CustomRegion2!$E28","v":0},{"$f":"(GU86*'Default-Data'!$C$59/biopower_dollar_index)/CustomRegion2!$E28","v":0},{"$f":"(GV86*'Default-Data'!$C$59/biopower_dollar_index)/CustomRegion2!$E28","v":0},0,0,{"$f":"GM86*CustomRegion2!C28","v":0},{"$f":"GZ86*CustomRegion2!$C28","v":0},{"$f":"HA86*CustomRegion2!$C28","v":0},{"$f":"GM86*CustomRegion2!D28","v":0},{"$f":"GZ86*CustomRegion2!$D28","v":0},{"$f":"HA86*CustomRegion2!$D28","v":0},{"$f":"(HE86*'Default-Data'!$C$59/biopower_dollar_index)/CustomRegion2!$E28","v":0},{"$f":"(HF86*'Default-Data'!$C$59/biopower_dollar_index)/CustomRegion2!$E28","v":0},{"$f":"(HG86*'Default-Data'!$C$59/biopower_dollar_index)/CustomRegion2!$E28","v":0},null,"TEXTILES",0,0,null,14692899.166891798,18896992.131311893,{"$f":"HM86*CustomRegion3!D27","v":0},{"$f":"HP86*CustomRegion3!$D27","v":1491109.6289792177},{"$f":"HQ86*CustomRegion3!$D27","v":1917762.2200822919},{"$f":"HM86*CustomRegion3!E27","v":0},{"$f":"HP86*CustomRegion3!$E27","v":409741.43718102464},{"$f":"HQ86*CustomRegion3!$E27","v":526981.13737346313},{"$f":"(HU86*'Default-Data'!$C$60/biopower_dollar_index)/CustomRegion3!$F27","v":0},{"$f":"(HV86*'Default-Data'!$C$60/biopower_dollar_index)/CustomRegion3!$F27","v":1539.3822205801907},{"$f":"(HW86*'Default-Data'!$C$60/biopower_dollar_index)/CustomRegion3!$F27","v":1979.8470934132911},385850.22058794397,1889903.5546974468,{"$f":"HN86*CustomRegion3!D27","v":0},{"$f":"IA86*CustomRegion3!$D27","v":39158.029516658658},{"$f":"IB86*CustomRegion3!$D27","v":191796.9596226092},{"$f":"HN86*CustomRegion3!E27","v":0},{"$f":"IA86*CustomRegion3!$E27","v":10760.219758165294},{"$f":"IB86*CustomRegion3!$E27","v":52703.812218366504},{"$f":"(IF86*'Default-Data'!$C$60/biopower_dollar_index)/CustomRegion3!$F27","v":0},{"$f":"(IG86*'Default-Data'!$C$60/biopower_dollar_index)/CustomRegion3!$F27","v":40.425716030124832},{"$f":"(IH86*'Default-Data'!$C$60/biopower_dollar_index)/CustomRegion3!$F27","v":198.00611830701035}]
[null,null,null,null,null,null,null,null,null,null,null,null,null,null,null,null,null,null,null,null,null,null,null,null,null,null,null,null,null,86,"TTL_C35: Other transport equipment",0,0,null,41028.874498862555,100453.92073359752,{"$f":"'Colombia-IO-Data'!$AN29*Calculations!AF87","v":0},{"$f":"'Colombia-IO-Data'!$AN29*AI87","v":4576.9374741668798},{"$f":"'Colombia-IO-Data'!$AN29*AJ87","v":11206.042569979296},{"$f":"'Colombia-IO-Data'!$AO29*Calculations!AK87","v":0},{"$f":"'Colombia-IO-Data'!$AO29*Calculations!AL87","v":1725.8692139187494},{"$f":"'Colombia-IO-Data'!$AO29*Calculations!AM87","v":4225.5687324875717},{"$f":"(AN87*'Default-Data'!$F$19/biopower_dollar_index)/'Colombia-IO-Data'!$AP29","v":0},{"$f":"(AO87*'Default-Data'!$F$19/biopower_dollar_index)/'Colombia-IO-Data'!$AP29","v":0.40572332840383757},{"$f":"(AP87*'Default-Data'!$F$19/biopower_dollar_index)/'Colombia-IO-Data'!$AP29","v":0.99336137218144616},4081.8415189243387,9662.965027074677,{"$f":"'Colombia-IO-Data'!$AN29*AG87","v":0},{"$f":"'Colombia-IO-Data'!$AN29*AT87","v":455.3459883988042},{"$f":"'Colombia-IO-Data'!$AN29*AU87","v":1077.9429678288682},{"$f":"'Colombia-IO-Data'!$AO29*AV87","v":0},{"$f":"'Colombia-IO-Data'!$AO29*AW87","v":171.70162963651765},{"$f":"'Colombia-IO-Data'!$AO29*AX87","v":406.4701764086675},{"$f":"(AY87*'Default-Data'!$F$19/biopower_dollar_index)/'Colombia-IO-Data'!$AP29","v":0},{"$f":"(AZ87*'Default-Data'!$F$19/biopower_dollar_index)/'Colombia-IO-Data'!$AP29","v":4.0364215380094583E-2},{"$f":"(BA87*'Default-Data'!$F$19/biopower_dollar_index)/'Colombia-IO-Data'!$AP29","v":9.5554420659121536E-2},null,"DOM_C35: Other transport equipment",0,0,null,20244.68655531247,146877.63510069565,{"$f":"BG87*'Mexico-IO-Data'!AQ29","v":0},{"$f":"BJ87*'Mexico-IO-Data'!$AQ29","v":7133.127830723678},{"$f":"BK87*'Mexico-IO-Data'!$AQ29","v":51751.700071282154},{"$f":"BG87*'Mexico-IO-Data'!AR29","v":0},{"$f":"BJ87*'Mexico-IO-Data'!$AR29","v":1819.0225771551129},{"$f":"BK87*'Mexico-IO-Data'!$AR29","v":13197.22750941806},{"$f":"(BO87*'Default-Data'!$F$19/biopower_dollar_index)/'Mexico-IO-Data'!$AS29","v":0},{"$f":"(BP87*'Default-Data'!$F$19/biopower_dollar_index)/'Mexico-IO-Data'!$AS29","v":0.24468847142891886},{"$f":"(BQ87*'Default-Data'!$F$19/biopower_dollar_index)/'Mexico-IO-Data'!$AS29","v":1.7752442806012623},3950.432136605174,9691.8372993676585,{"$f":"BH87*'Mexico-IO-Data'!AQ29","v":0},{"$f":"BU87*'Mexico-IO-Data'!$AQ29","v":1391.9176935643416},{"$f":"BV87*'Mexico-IO-Data'!$AQ29","v":3414.8769941228766},{"$f":"BH87*'Mexico-IO-Data'!AR29","v":0},{"$f":"BU87*'Mexico-IO-Data'!$AR29","v":354.95364308904266},{"$f":"BV87*'Mexico-IO-Data'!$AR29","v":870.82952919503475},{"$f":"(BZ87*'Default-Data'!$F$19/biopower_dollar_index)/'Mexico-IO-Data'!$AS29","v":0},{"$f":"(CA87*'Default-Data'!$F$19/biopower_dollar_index)/'Mexico-IO-Data'!$AS29","v":4.7747106301131784E-2},{"$f":"(CB87*'Default-Data'!$F$19/biopower_dollar_index)/'Mexico-IO-Data'!$AS29","v":0.11714090250993518},null,"TTL_C35: Other transport equipment",0,0,null,13417.022245360182,18192.303171335006,{"$f":"CH87*'Philippines-IO-Data'!AN29","v":0},{"$f":"CK87*'Philippines-IO-Data'!$AN29","v":2807.8095406790653},{"$f":"CL87*'Philippines-IO-Data'!$AN29","v":3807.1430066432886},{"$f":"CH87*'Philippines-IO-Data'!AO29","v":0},{"$f":"CK87*'Philippines-IO-Data'!$AO29","v":630.49748936322021},{"$f":"CL87*'Philippines-IO-Data'!$AO29","v":854.8991918998903},{"$f":"(CP87*'Default-Data'!$F$19/biopower_dollar_index)/'Philippines-IO-Data'!$AP29","v":0},{"$f":"(CQ87*'Default-Data'!$F$19/biopower_dollar_index)/'Philippines-IO-Data'!$AP29","v":0.19613047767382544},{"$f":"(CR87*'Default-Data'!$F$19/biopower_dollar_index)/'Philippines-IO-Data'!$AP29","v":0.26593569316134047},125.0388009390723,1818.8175088921807,{"$f":"CI87*'Philippines-IO-Data'!AN29","v":0},{"$f":"CV87*'Philippines-IO-Data'!$AN29","v":26.167142888445941},{"$f":"CW87*'Philippines-IO-Data'!$AN29","v":380.62791138232183},{"$f":"CI87*'Philippines-IO-Data'!AO29","v":0},{"$f":"CV87*'Philippines-IO-Data'!$AO29","v":5.8758678806197491},{"$f":"CW87*'Philippines-IO-Data'!$AO29","v":85.470520358043984},{"$f":"(DA87*'Default-Data'!$F$19/biopower_dollar_index)/'Philippines-IO-Data'!$AP29","v":0},{"$f":"(DB87*'Default-Data'!$F$19/biopower_dollar_index)/'Philippines-IO-Data'!$AP29","v":1.8278213531637683E-3},{"$f":"(DC87*'Default-Data'!$F$19/biopower_dollar_index)/'Philippines-IO-Data'!$AP29","v":2.6587534871525015E-2},null,"DOM_C35: Other transport equipment",0,0,null,427022.89653952245,1494027.6001676638,{"$f":"DI87*'SouthAfrica-IO-Data'!AR29","v":0},{"$f":"DL87*'Mexico-IO-Data'!$AQ29","v":150459.67243503669},{"$f":"DM87*'Mexico-IO-Data'!$AQ29","v":526414.16924426088},{"$f":"DI87*'SouthAfrica-IO-Data'!AS29","v":0},{"$f":"DL87*'Mexico-IO-Data'!$AR29","v":38368.798037217828},{"$f":"DM87*'Mexico-IO-Data'!$AR29","v":134241.14659284268},{"$f":"(DQ87*'Default-Data'!$F$19/biopower_dollar_index)/'SouthAfrica-IO-Data'!$AT29","v":0},{"$f":"(DR87*'Default-Data'!$F$19/biopower_dollar_index)/'SouthAfrica-IO-Data'!$AT29","v":2.989006975475073},{"$f":"(DS87*'Default-Data'!$F$19/biopower_dollar_index)/'SouthAfrica-IO-Data'!$AT29","v":10.457656848477956},64832.214744805002,127668.22146515764,{"$f":"DJ87*'SouthAfrica-IO-Data'!AR29","v":0},{"$f":"DW87*'SouthAfrica-IO-Data'!$AR29","v":8272.5245533368925},{"$f":"DX87*'SouthAfrica-IO-Data'!$AR29","v":16290.334996399253},{"$f":"DJ87*'SouthAfrica-IO-Data'!AS29","v":0},{"$f":"DW87*'SouthAfrica-IO-Data'!$AS29","v":8445.1502698373006},{"$f":"DX87*'SouthAfrica-IO-Data'!$AS29","v":16630.271219332644},{"$f":"(EB87*'Default-Data'!$F$19/biopower_dollar_index)/'SouthAfrica-IO-Data'!$AT29","v":0},{"$f":"(EC87*'Default-Data'!$F$19/biopower_dollar_index)/'SouthAfrica-IO-Data'!$AT29","v":0.65789428798351957},{"$f":"(ED87*'Default-Data'!$F$19/biopower_dollar_index)/'SouthAfrica-IO-Data'!$AT29","v":1.2955317659523955},null,"FURNIMFG",0,0,null,54719461.255672857,8293534.3557295501,{"$f":"EJ87*'Zambia-IO-Data'!BO27","v":0},{"$f":"EM87*'Zambia-IO-Data'!$BO27","v":10053962.588324208},{"$f":"EN87*'Zambia-IO-Data'!$BO27","v":1523825.0199117588},{"$f":"EJ87*'Zambia-IO-Data'!BN27","v":0},{"$f":"EM87*'Zambia-IO-Data'!$BN27","v":3116379.6359458407},{"$f":"EN87*'Zambia-IO-Data'!$BN27","v":472332.8955204818},{"$f":"(ER87*'Default-Data'!$F$19/biopower_dollar_index)/'Zambia-IO-Data'!$BP27","v":0},{"$f":"(ES87*'Default-Data'!$F$19/biopower_dollar_index)/'Zambia-IO-Data'!$BP27","v":11708.113870928162},{"$f":"(ET87*'Default-Data'!$F$19/biopower_dollar_index)/'Zambia-IO-Data'!$BP27","v":1774.5358306003011},1094878.9810270069,792816.22631097981,{"$f":"EK87*'Zambia-IO-Data'!BO27","v":0},{"$f":"EX87*'Zambia-IO-Data'!$BO27","v":201169.23780653731},{"$f":"EY87*'Zambia-IO-Data'!$BO27","v":145669.28284442142},{"$f":"EK87*'Zambia-IO-Data'!BN27","v":0},{"$f":"EX87*'Zambia-IO-Data'!$BN27","v":62355.485269767036},{"$f":"EY87*'Zambia-IO-Data'!$BN27","v":45152.424494435669},{"$f":"(FC87*'Default-Data'!$F$19/biopower_dollar_index)/'Zambia-IO-Data'!$BP27","v":0},{"$f":"(FD87*'Default-Data'!$F$19/biopower_dollar_index)/'Zambia-IO-Data'!$BP27","v":234.26706861849868},{"$f":"(FE87*'Default-Data'!$F$19/biopower_dollar_index)/'Zambia-IO-Data'!$BP27","v":169.63585611702612},null,"TTL_C35: Other transport equipment",0,0,null,80190.122419378706,53133.498886167028,{"$f":"FK87*CustomRegion1!C25","v":0},{"$f":"FN87*CustomRegion1!$C25","v":16781.562009798199},{"$f":"FO87*CustomRegion1!$C25","v":11119.363326227776},{"$f":"FK87*CustomRegion1!D25","v":0},{"$f":"FN87*CustomRegion1!$D25","v":3768.3228016284975},{"$f":"FO87*CustomRegion1!$D25","v":2496.8683092402853},{"$f":"(FS87*'Default-Data'!$F$19/biopower_dollar_index)/CustomRegion1!$E25","v":0},{"$f":"(FT87*'Default-Data'!$F$19/biopower_dollar_index)/CustomRegion1!$E25","v":1.1722218780902878},{"$f":"(FU87*'Default-Data'!$F$19/biopower_dollar_index)/CustomRegion1!$E25","v":0.77670725489252235},2531.7448588356633,5120.3868151930401,{"$f":"FL87*CustomRegion1!C25","v":0},{"$f":"FY87*CustomRegion1!$C25","v":529.82377454596792},{"$f":"FZ87*CustomRegion1!$C25","v":1071.5545289222525},{"$f":"FL87*CustomRegion1!D25","v":0},{"$f":"FY87*CustomRegion1!$D25","v":118.97265637732229},{"$f":"FZ87*CustomRegion1!$D25","v":240.61904143180323},{"$f":"(GD87*'Default-Data'!$C$58/biopower_dollar_index)/CustomRegion1!$E25","v":0},{"$f":"(GE87*'Default-Data'!$C$58/biopower_dollar_index)/CustomRegion1!$E25","v":3.7009130597767774E-2},{"$f":"(GF87*'Default-Data'!$C$58/biopower_dollar_index)/CustomRegion1!$E25","v":7.4849984860527394E-2},null,"C33 Medical, precision and optical instruments",0,0,null,0,0,{"$f":"GL87*CustomRegion2!C29","v":0},{"$f":"GO87*CustomRegion2!$C29","v":0},{"$f":"GP87*CustomRegion2!$C29","v":0},{"$f":"GL87*CustomRegion2!D29","v":0},{"$f":"GO87*CustomRegion2!$D29","v":0},{"$f":"GP87*CustomRegion2!$D29","v":0},{"$f":"(GT87*'Default-Data'!$C$59/biopower_dollar_index)/CustomRegion2!$E29","v":0},{"$f":"(GU87*'Default-Data'!$C$59/biopower_dollar_index)/CustomRegion2!$E29","v":0},{"$f":"(GV87*'Default-Data'!$C$59/biopower_dollar_index)/CustomRegion2!$E29","v":0},0,0,{"$f":"GM87*CustomRegion2!C29","v":0},{"$f":"GZ87*CustomRegion2!$C29","v":0},{"$f":"HA87*CustomRegion2!$C29","v":0},{"$f":"GM87*CustomRegion2!D29","v":0},{"$f":"GZ87*CustomRegion2!$D29","v":0},{"$f":"HA87*CustomRegion2!$D29","v":0},{"$f":"(HE87*'Default-Data'!$C$59/biopower_dollar_index)/CustomRegion2!$E29","v":0},{"$f":"(HF87*'Default-Data'!$C$59/biopower_dollar_index)/CustomRegion2!$E29","v":0},{"$f":"(HG87*'Default-Data'!$C$59/biopower_dollar_index)/CustomRegion2!$E29","v":0},null,"FURNIMFG",0,0,null,54719461.255672857,8293534.3557295501,{"$f":"HM87*CustomRegion3!D28","v":0},{"$f":"HP87*CustomRegion3!$D28","v":10053962.588324208},{"$f":"HQ87*CustomRegion3!$D28","v":1523825.0199117588},{"$f":"HM87*CustomRegion3!E28","v":0},{"$f":"HP87*CustomRegion3!$E28","v":3116379.6359458407},{"$f":"HQ87*CustomRegion3!$E28","v":472332.8955204818},{"$f":"(HU87*'Default-Data'!$C$60/biopower_dollar_index)/CustomRegion3!$F28","v":0},{"$f":"(HV87*'Default-Data'!$C$60/biopower_dollar_index)/CustomRegion3!$F28","v":11708.113870928162},{"$f":"(HW87*'Default-Data'!$C$60/biopower_dollar_index)/CustomRegion3!$F28","v":1774.5358306003011},1094878.9810270069,792816.22631097981,{"$f":"HN87*CustomRegion3!D28","v":0},{"$f":"IA87*CustomRegion3!$D28","v":201169.23780653731},{"$f":"IB87*CustomRegion3!$D28","v":145669.28284442142},{"$f":"HN87*CustomRegion3!E28","v":0},{"$f":"IA87*CustomRegion3!$E28","v":62355.485269767036},{"$f":"IB87*CustomRegion3!$E28","v":45152.424494435669},{"$f":"(IF87*'Default-Data'!$C$60/biopower_dollar_index)/CustomRegion3!$F28","v":0},{"$f":"(IG87*'Default-Data'!$C$60/biopower_dollar_index)/CustomRegion3!$F28","v":234.26706861849868},{"$f":"(IH87*'Default-Data'!$C$60/biopower_dollar_index)/CustomRegion3!$F28","v":169.63585611702612}]
[null,null,null,null,null,null,null,null,null,null,null,null,null,null,null,null,null,null,null,null,null,null,null,null,null,null,null,null,null,87,"TTL_C36T37: Manufacturing nec; recycling",0,0,null,2242048.2423369228,1882014.5138708111,{"$f":"'Colombia-IO-Data'!$AN30*Calculations!AF88","v":0},{"$f":"'Colombia-IO-Data'!$AN30*AI88","v":835861.00198279612},{"$f":"'Colombia-IO-Data'!$AN30*AJ88","v":701636.34644656489},{"$f":"'Colombia-IO-Data'!$AO30*Calculations!AK88","v":0},{"$f":"'Colombia-IO-Data'!$AO30*Calculations!AL88","v":192406.34970264984},{"$f":"'Colombia-IO-Data'!$AO30*Calculations!AM88","v":161509.25562772687},{"$f":"(AN88*'Default-Data'!$F$19/biopower_dollar_index)/'Colombia-IO-Data'!$AP30","v":0},{"$f":"(AO88*'Default-Data'!$F$19/biopower_dollar_index)/'Colombia-IO-Data'!$AP30","v":45.231552876559341},{"$f":"(AP88*'Default-Data'!$F$19/biopower_dollar_index)/'Colombia-IO-Data'!$AP30","v":37.968156702048063},42807.239301816131,181036.64142895138,{"$f":"'Colombia-IO-Data'!$AN30*AG88","v":0},{"$f":"'Colombia-IO-Data'!$AN30*AT88","v":15959.024100943678},{"$f":"'Colombia-IO-Data'!$AN30*AU88","v":67492.512267567756},{"$f":"'Colombia-IO-Data'!$AO30*AV88","v":0},{"$f":"'Colombia-IO-Data'!$AO30*AW88","v":3673.5983193320294},{"$f":"'Colombia-IO-Data'!$AO30*AX88","v":15536.061482542173},{"$f":"(AY88*'Default-Data'!$F$19/biopower_dollar_index)/'Colombia-IO-Data'!$AP30","v":0},{"$f":"(AZ88*'Default-Data'!$F$19/biopower_dollar_index)/'Colombia-IO-Data'!$AP30","v":0.86360225057488216},{"$f":"(BA88*'Default-Data'!$F$19/biopower_dollar_index)/'Colombia-IO-Data'!$AP30","v":3.6522712869252323},null,"DOM_C36T37: Manufacturing nec; recycling",0,0,null,1033660.186193282,1935950.3945891692,{"$f":"BG88*'Mexico-IO-Data'!AQ30","v":0},{"$f":"BJ88*'Mexico-IO-Data'!$AQ30","v":388633.37585009559},{"$f":"BK88*'Mexico-IO-Data'!$AQ30","v":727874.54462991992},{"$f":"BG88*'Mexico-IO-Data'!AR30","v":0},{"$f":"BJ88*'Mexico-IO-Data'!$AR30","v":159873.05826930748},{"$f":"BK88*'Mexico-IO-Data'!$AR30","v":299427.52403038682},{"$f":"(BO88*'Default-Data'!$F$19/biopower_dollar_index)/'Mexico-IO-Data'!$AS30","v":0},{"$f":"(BP88*'Default-Data'!$F$19/biopower_dollar_index)/'Mexico-IO-Data'!$AS30","v":24.984345025781529},{"$f":"(BQ88*'Default-Data'!$F$19/biopower_dollar_index)/'Mexico-IO-Data'!$AS30","v":46.793378769228688},80103.88968218003,127745.22296155877,{"$f":"BH88*'Mexico-IO-Data'!AQ30","v":0},{"$f":"BU88*'Mexico-IO-Data'!$AQ30","v":30117.291428779219},{"$f":"BV88*'Mexico-IO-Data'!$AQ30","v":48029.379395087308},{"$f":"BH88*'Mexico-IO-Data'!AR30","v":0},{"$f":"BU88*'Mexico-IO-Data'!$AR30","v":12389.423520238684},{"$f":"BV88*'Mexico-IO-Data'!$AR30","v":19757.962768568996},{"$f":"(BZ88*'Default-Data'!$F$19/biopower_dollar_index)/'Mexico-IO-Data'!$AS30","v":0},{"$f":"(CA88*'Default-Data'!$F$19/biopower_dollar_index)/'Mexico-IO-Data'!$AS30","v":1.9361713302484689},{"$f":"(CB88*'Default-Data'!$F$19/biopower_dollar_index)/'Mexico-IO-Data'!$AS30","v":3.0876982285841632},null,"TTL_C36T37: Manufacturing nec; recycling",0,0,null,744015.32002080115,814958.16984748584,{"$f":"CH88*'Philippines-IO-Data'!AN30","v":0},{"$f":"CK88*'Philippines-IO-Data'!$AN30","v":301605.41228235984},{"$f":"CL88*'Philippines-IO-Data'!$AN30","v":330363.88928504387},{"$f":"CH88*'Philippines-IO-Data'!AO30","v":0},{"$f":"CK88*'Philippines-IO-Data'!$AO30","v":101815.83981506416},{"$f":"CL88*'Philippines-IO-Data'!$AO30","v":111524.11549112946},{"$f":"(CP88*'Default-Data'!$F$19/biopower_dollar_index)/'Philippines-IO-Data'!$AP30","v":0},{"$f":"(CQ88*'Default-Data'!$F$19/biopower_dollar_index)/'Philippines-IO-Data'!$AP30","v":31.672115487499227},{"$f":"(CR88*'Default-Data'!$F$19/biopower_dollar_index)/'Philippines-IO-Data'!$AP30","v":34.692093802811684},15409.561317589252,81477.324469222905,{"$f":"CI88*'Philippines-IO-Data'!AN30","v":0},{"$f":"CV88*'Philippines-IO-Data'!$AN30","v":6246.6551013383341},{"$f":"CW88*'Philippines-IO-Data'!$AN30","v":33028.892520004214},{"$f":"CI88*'Philippines-IO-Data'!AO30","v":0},{"$f":"CV88*'Philippines-IO-Data'!$AO30","v":2108.7434418530684},{"$f":"CW88*'Philippines-IO-Data'!$AO30","v":11149.880914396328},{"$f":"(DA88*'Default-Data'!$F$19/biopower_dollar_index)/'Philippines-IO-Data'!$AP30","v":0},{"$f":"(DB88*'Default-Data'!$F$19/biopower_dollar_index)/'Philippines-IO-Data'!$AP30","v":0.65597225289493055},{"$f":"(DC88*'Default-Data'!$F$19/biopower_dollar_index)/'Philippines-IO-Data'!$AP30","v":3.4684221692229777},null,"DOM_C36T37: Manufacturing nec; recycling",0,0,null,8099727.9984927699,8956166.3659231998,{"$f":"DI88*'SouthAfrica-IO-Data'!AR30","v":0},{"$f":"DL88*'Mexico-IO-Data'!$AQ30","v":3045318.6429811642},{"$f":"DM88*'Mexico-IO-Data'!$AQ30","v":3367320.5333391577},{"$f":"DI88*'SouthAfrica-IO-Data'!AS30","v":0},{"$f":"DL88*'Mexico-IO-Data'!$AR30","v":1252760.1464824532},{"$f":"DM88*'Mexico-IO-Data'!$AR30","v":1385222.8482960192},{"$f":"(DQ88*'Default-Data'!$F$19/biopower_dollar_index)/'SouthAfrica-IO-Data'!$AT30","v":0},{"$f":"(DR88*'Default-Data'!$F$19/biopower_dollar_index)/'SouthAfrica-IO-Data'!$AT30","v":97.592549362662965},{"$f":"(DS88*'Default-Data'!$F$19/biopower_dollar_index)/'SouthAfrica-IO-Data'!$AT30","v":107.91166176558391},210759.94475018416,765325.77507615101,{"$f":"DJ88*'SouthAfrica-IO-Data'!AR30","v":0},{"$f":"DW88*'SouthAfrica-IO-Data'!$AR30","v":56394.531858570648},{"$f":"DX88*'SouthAfrica-IO-Data'!$AR30","v":204783.64072393105},{"$f":"DJ88*'SouthAfrica-IO-Data'!AS30","v":0},{"$f":"DW88*'SouthAfrica-IO-Data'!$AS30","v":21885.949159226344},{"$f":"DX88*'SouthAfrica-IO-Data'!$AS30","v":79473.739772592642},{"$f":"(EB88*'Default-Data'!$F$19/biopower_dollar_index)/'SouthAfrica-IO-Data'!$AT30","v":0},{"$f":"(EC88*'Default-Data'!$F$19/biopower_dollar_index)/'SouthAfrica-IO-Data'!$AT30","v":1.7049597081035859},{"$f":"(ED88*'Default-Data'!$F$19/biopower_dollar_index)/'SouthAfrica-IO-Data'!$AT30","v":6.1911650794207418},null,"INDCHEMMFG",0,{"$f":"'Biopower-Inputs'!B50*'Biopower-Inputs'!C50+'Biopower-Inputs'!B52*'Biopower-Inputs'!C52","v":955000},null,3501974.4954408845,4384279.4926467035,{"$f":"EJ88*'Zambia-IO-Data'!BO28","v":0},{"$f":"EM88*'Zambia-IO-Data'!$BO28","v":652653.78950738418},{"$f":"EN88*'Zambia-IO-Data'!$BO28","v":817086.65464599337},{"$f":"EJ88*'Zambia-IO-Data'!BN28","v":0},{"$f":"EM88*'Zambia-IO-Data'!$BN28","v":126059.13302097858},{"$f":"EN88*'Zambia-IO-Data'!$BN28","v":157819.10247610733},{"$f":"(ER88*'Default-Data'!$F$19/biopower_dollar_index)/'Zambia-IO-Data'!$BP28","v":0},{"$f":"(ES88*'Default-Data'!$F$19/biopower_dollar_index)/'Zambia-IO-Data'!$BP28","v":473.59912985445646},{"$f":"(ET88*'Default-Data'!$F$19/biopower_dollar_index)/'Zambia-IO-Data'!$BP28","v":592.92006708198687},2484991.9215766899,553330.35540436534,{"$f":"EK88*'Zambia-IO-Data'!BO28","v":177980.84189104949},{"$f":"EX88*'Zambia-IO-Data'!$BO28","v":463121.41810960852},{"$f":"EY88*'Zambia-IO-Data'!$BO28","v":103122.72512957337},{"$f":"EK88*'Zambia-IO-Data'!BN28","v":34376.741518752373},{"$f":"EX88*'Zambia-IO-Data'!$BN28","v":89451.230329036262},{"$f":"EY88*'Zambia-IO-Data'!$BN28","v":19918.004819073562},{"$f":"(FC88*'Default-Data'!$F$19/biopower_dollar_index)/'Zambia-IO-Data'!$BP28","v":129.15204539605443},{"$f":"(FD88*'Default-Data'!$F$19/biopower_dollar_index)/'Zambia-IO-Data'!$BP28","v":336.06470100973945},{"$f":"(FE88*'Default-Data'!$F$19/biopower_dollar_index)/'Zambia-IO-Data'!$BP28","v":74.831148879790078},null,"TTL_C36T37: Manufacturing nec; recycling",0,0,null,1355016.1548759635,1344171.8814947461,{"$f":"FK88*CustomRegion1!C26","v":0},{"$f":"FN88*CustomRegion1!$C26","v":549290.04154000094},{"$f":"FO88*CustomRegion1!$C26","v":544894.041274908},{"$f":"FK88*CustomRegion1!D26","v":0},{"$f":"FN88*CustomRegion1!$D26","v":185429.12230331244},{"$f":"FO88*CustomRegion1!$D26","v":183945.12221382244},{"$f":"(FS88*'Default-Data'!$F$19/biopower_dollar_index)/CustomRegion1!$E26","v":0},{"$f":"(FT88*'Default-Data'!$F$19/biopower_dollar_index)/CustomRegion1!$E26","v":57.681914592106537},{"$f":"(FU88*'Default-Data'!$F$19/biopower_dollar_index)/CustomRegion1!$E26","v":57.220282862670736},34076.223670841471,129535.60604213814,{"$f":"FL88*CustomRegion1!C26","v":0},{"$f":"FY88*CustomRegion1!$C26","v":13813.658418999641},{"$f":"FZ88*CustomRegion1!$C26","v":52510.531455847093},{"$f":"FL88*CustomRegion1!D26","v":0},{"$f":"FY88*CustomRegion1!$D26","v":4663.2095299807706},{"$f":"FZ88*CustomRegion1!$D26","v":17726.485141145833},{"$f":"(GD88*'Default-Data'!$C$58/biopower_dollar_index)/CustomRegion1!$E26","v":0},{"$f":"(GE88*'Default-Data'!$C$58/biopower_dollar_index)/CustomRegion1!$E26","v":1.4505965971918051},{"$f":"(GF88*'Default-Data'!$C$58/biopower_dollar_index)/CustomRegion1!$E26","v":5.5142233821140945},null,"C34 Motor vehicles, trailers and semi-trailers",0,0,null,15796555.399939116,15157002.439488664,{"$f":"GL88*CustomRegion2!C30","v":0},{"$f":"GO88*CustomRegion2!$C30","v":4819459.1442896752},{"$f":"GP88*CustomRegion2!$C30","v":4624334.3664211826},{"$f":"GL88*CustomRegion2!D30","v":0},{"$f":"GO88*CustomRegion2!$D30","v":1676159.2254052751},{"$f":"GP88*CustomRegion2!$D30","v":1608296.7979548948},{"$f":"(GT88*'Default-Data'!$C$59/biopower_dollar_index)/CustomRegion2!$E30","v":0},{"$f":"(GU88*'Default-Data'!$C$59/biopower_dollar_index)/CustomRegion2!$E30","v":225.47099958337895},{"$f":"(GV88*'Default-Data'!$C$59/biopower_dollar_index)/CustomRegion2!$E30","v":216.34238631115704},365710.98067389126,689668.65748684783,{"$f":"GM88*CustomRegion2!C30","v":0},{"$f":"GZ88*CustomRegion2!$C30","v":111576.80173632811},{"$f":"HA88*CustomRegion2!$C30","v":210414.85524545331},{"$f":"GM88*CustomRegion2!D30","v":0},{"$f":"GZ88*CustomRegion2!$D30","v":38805.284985796061},{"$f":"HA88*CustomRegion2!$D30","v":73180.161968976245},{"$f":"(HE88*'Default-Data'!$C$59/biopower_dollar_index)/CustomRegion2!$E30","v":0},{"$f":"(HF88*'Default-Data'!$C$59/biopower_dollar_index)/CustomRegion2!$E30","v":5.2199494309675796},{"$f":"(HG88*'Default-Data'!$C$59/biopower_dollar_index)/CustomRegion2!$E30","v":9.8439360764363801},null,"INDCHEMMFG",0,955000,null,3501974.4954408845,4384279.4926467035,{"$f":"HM88*CustomRegion3!D29","v":0},{"$f":"HP88*CustomRegion3!$D29","v":652653.78950738418},{"$f":"HQ88*CustomRegion3!$D29","v":817086.65464599337},{"$f":"HM88*CustomRegion3!E29","v":0},{"$f":"HP88*CustomRegion3!$E29","v":126059.13302097858},{"$f":"HQ88*CustomRegion3!$E29","v":157819.10247610733},{"$f":"(HU88*'Default-Data'!$C$60/biopower_dollar_index)/CustomRegion3!$F29","v":0},{"$f":"(HV88*'Default-Data'!$C$60/biopower_dollar_index)/CustomRegion3!$F29","v":473.59912985445646},{"$f":"(HW88*'Default-Data'!$C$60/biopower_dollar_index)/CustomRegion3!$F29","v":592.92006708198687},2484991.9215766899,553330.35540436534,{"$f":"HN88*CustomRegion3!D29","v":177980.84189104949},{"$f":"IA88*CustomRegion3!$D29","v":463121.41810960852},{"$f":"IB88*CustomRegion3!$D29","v":103122.72512957337},{"$f":"HN88*CustomRegion3!E29","v":34376.741518752373},{"$f":"IA88*CustomRegion3!$E29","v":89451.230329036262},{"$f":"IB88*CustomRegion3!$E29","v":19918.004819073562},{"$f":"(IF88*'Default-Data'!$C$60/biopower_dollar_index)/CustomRegion3!$F29","v":129.15204539605443},{"$f":"(IG88*'Default-Data'!$C$60/biopower_dollar_index)/CustomRegion3!$F29","v":336.06470100973945},{"$f":"(IH88*'Default-Data'!$C$60/biopower_dollar_index)/CustomRegion3!$F29","v":74.831148879790078}]
[null,null,null,null,null,null,null,null,null,null,null,null,null,null,null,null,null,null,null,null,null,null,null,null,null,null,null,null,null,88,"TTL_C40T41: Electricity, gas and water supply",0,{"$f":"'Biopower-Inputs'!B46*'Biopower-Inputs'!C46+'Biopower-Inputs'!B51*'Biopower-Inputs'!C51","v":39981727.832085572},null,10724943.720610561,14897489.511296546,{"$f":"'Colombia-IO-Data'!$AN31*Calculations!AF89","v":0},{"$f":"'Colombia-IO-Data'!$AN31*AI89","v":5672296.0895315781},{"$f":"'Colombia-IO-Data'!$AN31*AJ89","v":7879106.2871847339},{"$f":"'Colombia-IO-Data'!$AO31*Calculations!AK89","v":0},{"$f":"'Colombia-IO-Data'!$AO31*Calculations!AL89","v":999693.53036378336},{"$f":"'Colombia-IO-Data'!$AO31*Calculations!AM89","v":1388624.8982812972},{"$f":"(AN89*'Default-Data'!$F$19/biopower_dollar_index)/'Colombia-IO-Data'!$AP31","v":0},{"$f":"(AO89*'Default-Data'!$F$19/biopower_dollar_index)/'Colombia-IO-Data'!$AP31","v":95.323915338563168},{"$f":"(AP89*'Default-Data'!$F$19/biopower_dollar_index)/'Colombia-IO-Data'!$AP31","v":132.40974180619014},12548206.104978964,1433034.3613031656,{"$f":"'Colombia-IO-Data'!$AN31*AG89","v":21145863.730625153},{"$f":"'Colombia-IO-Data'!$AN31*AT89","v":6636598.0348339211},{"$f":"'Colombia-IO-Data'!$AN31*AU89","v":757914.95186713908},{"$f":"'Colombia-IO-Data'!$AO31*AV89","v":3726777.099043475},{"$f":"'Colombia-IO-Data'!$AO31*AW89","v":1169643.4767029865},{"$f":"'Colombia-IO-Data'!$AO31*AX89","v":133576.009077856},{"$f":"(AY89*'Default-Data'!$F$19/biopower_dollar_index)/'Colombia-IO-Data'!$AP31","v":355.35989169164901},{"$f":"(AZ89*'Default-Data'!$F$19/biopower_dollar_index)/'Colombia-IO-Data'!$AP31","v":111.52917605555146},{"$f":"(BA89*'Default-Data'!$F$19/biopower_dollar_index)/'Colombia-IO-Data'!$AP31","v":12.73689165115155},null,"DOM_C40T41: Electricity, gas and water supply",0,39981727.832085572,null,8557957.5940554552,7259465.4386650324,{"$f":"BG89*'Mexico-IO-Data'!AQ31","v":0},{"$f":"BJ89*'Mexico-IO-Data'!$AQ31","v":3828211.8504448524},{"$f":"BK89*'Mexico-IO-Data'!$AQ31","v":3247360.2859981912},{"$f":"BG89*'Mexico-IO-Data'!AR31","v":0},{"$f":"BJ89*'Mexico-IO-Data'!$AR31","v":924646.24799138668},{"$f":"BK89*'Mexico-IO-Data'!$AR31","v":784350.40212718211},{"$f":"(BO89*'Default-Data'!$F$19/biopower_dollar_index)/'Mexico-IO-Data'!$AS31","v":0},{"$f":"(BP89*'Default-Data'!$F$19/biopower_dollar_index)/'Mexico-IO-Data'!$AS31","v":49.559511547837388},{"$f":"(BQ89*'Default-Data'!$F$19/biopower_dollar_index)/'Mexico-IO-Data'!$AS31","v":42.039885952292408},1260095.593994908,479021.58734847605,{"$f":"BH89*'Mexico-IO-Data'!AQ31","v":17884936.049971614},{"$f":"BU89*'Mexico-IO-Data'!$AQ31","v":563675.71732015221},{"$f":"BV89*'Mexico-IO-Data'!$AQ31","v":214279.64524855031},{"$f":"BH89*'Mexico-IO-Data'!AR31","v":4319833.8180397348},{"$f":"BU89*'Mexico-IO-Data'!$AR31","v":136147.28167234705},{"$f":"BV89*'Mexico-IO-Data'!$AR31","v":51755.983665578387},{"$f":"(BZ89*'Default-Data'!$F$19/biopower_dollar_index)/'Mexico-IO-Data'!$AS31","v":231.53595708082406},{"$f":"(CA89*'Default-Data'!$F$19/biopower_dollar_index)/'Mexico-IO-Data'!$AS31","v":7.2972694075217905},{"$f":"(CB89*'Default-Data'!$F$19/biopower_dollar_index)/'Mexico-IO-Data'!$AS31","v":2.7740352331671483},null,"TTL_C40T41: Electricity, gas and water supply",0,{"$f":"'Biopower-Inputs'!B46*'Biopower-Inputs'!C46+'Biopower-Inputs'!B51*'Biopower-Inputs'!C51","v":39981727.832085572},null,22244383.659232967,10337071.121930968,{"$f":"CH89*'Philippines-IO-Data'!AN31","v":0},{"$f":"CK89*'Philippines-IO-Data'!$AN31","v":13330081.065948056},{"$f":"CL89*'Philippines-IO-Data'!$AN31","v":6194552.2137502031},{"$f":"CH89*'Philippines-IO-Data'!AO31","v":0},{"$f":"CK89*'Philippines-IO-Data'!$AO31","v":2760678.728732341},{"$f":"CL89*'Philippines-IO-Data'!$AO31","v":1282900.5649641005},{"$f":"(CP89*'Default-Data'!$F$19/biopower_dollar_index)/'Philippines-IO-Data'!$AP31","v":0},{"$f":"(CQ89*'Default-Data'!$F$19/biopower_dollar_index)/'Philippines-IO-Data'!$AP31","v":699.08910382951854},{"$f":"(CR89*'Default-Data'!$F$19/biopower_dollar_index)/'Philippines-IO-Data'!$AP31","v":324.87003899760566},3256689.1624103636,1033472.5499108881,{"$f":"CI89*'Philippines-IO-Data'!AN31","v":23959291.53726662},{"$f":"CV89*'Philippines-IO-Data'!$AN31","v":1951590.6219997986},{"$f":"CW89*'Philippines-IO-Data'!$AN31","v":619314.6585127376},{"$f":"CI89*'Philippines-IO-Data'!AO31","v":4962003.3197993524},{"$f":"CV89*'Philippines-IO-Data'!$AO31","v":404177.19072327187},{"$f":"CW89*'Philippines-IO-Data'!$AO31","v":128260.94572791332},{"$f":"(DA89*'Default-Data'!$F$19/biopower_dollar_index)/'Philippines-IO-Data'!$AP31","v":1256.532467155452},{"$f":"(DB89*'Default-Data'!$F$19/biopower_dollar_index)/'Philippines-IO-Data'!$AP31","v":102.35014567624448},{"$f":"(DC89*'Default-Data'!$F$19/biopower_dollar_index)/'Philippines-IO-Data'!$AP31","v":32.479632154237137},null,"DOM_C40T41: Electricity, gas and water supply",0,39981727.832085572,null,19256275.3915831,18612039.738493755,{"$f":"DI89*'SouthAfrica-IO-Data'!AR31","v":0},{"$f":"DL89*'Mexico-IO-Data'!$AQ31","v":8613866.1987170316},{"$f":"DM89*'Mexico-IO-Data'!$AQ31","v":8325681.7184213083},{"$f":"DI89*'SouthAfrica-IO-Data'!AS31","v":0},{"$f":"DL89*'Mexico-IO-Data'!$AR31","v":2080548.1442773326},{"$f":"DM89*'Mexico-IO-Data'!$AR31","v":2010941.5736786278},{"$f":"(DQ89*'Default-Data'!$F$19/biopower_dollar_index)/'SouthAfrica-IO-Data'!$AT31","v":0},{"$f":"(DR89*'Default-Data'!$F$19/biopower_dollar_index)/'SouthAfrica-IO-Data'!$AT31","v":75.442502980947594},{"$f":"(DS89*'Default-Data'!$F$19/biopower_dollar_index)/'SouthAfrica-IO-Data'!$AT31","v":72.918507598129708},6391663.1962759346,1590443.1825661361,{"$f":"DJ89*'SouthAfrica-IO-Data'!AR31","v":21739127.95546253},{"$f":"DW89*'SouthAfrica-IO-Data'!$AR31","v":3475317.1412606044},{"$f":"DX89*'SouthAfrica-IO-Data'!$AR31","v":864766.22513426666},{"$f":"DJ89*'SouthAfrica-IO-Data'!AS31","v":7103609.3926285654},{"$f":"DW89*'SouthAfrica-IO-Data'!$AS31","v":1135615.7219185301},{"$f":"DX89*'SouthAfrica-IO-Data'!$AS31","v":282576.26027488115},{"$f":"(EB89*'Default-Data'!$F$19/biopower_dollar_index)/'SouthAfrica-IO-Data'!$AT31","v":257.58311541741074},{"$f":"(EC89*'Default-Data'!$F$19/biopower_dollar_index)/'SouthAfrica-IO-Data'!$AT31","v":41.178423446580688},{"$f":"(ED89*'Default-Data'!$F$19/biopower_dollar_index)/'SouthAfrica-IO-Data'!$AT31","v":10.246463373976635},null,"OTHERMFG",0,0,null,134896295.89105377,23461978.786783367,{"$f":"EJ89*'Zambia-IO-Data'!BO29","v":0},{"$f":"EM89*'Zambia-IO-Data'!$BO29","v":14477294.435647361},{"$f":"EN89*'Zambia-IO-Data'!$BO29","v":2517978.5159816365},{"$f":"EJ89*'Zambia-IO-Data'!BN29","v":0},{"$f":"EM89*'Zambia-IO-Data'!$BN29","v":487478.67351241165},{"$f":"EN89*'Zambia-IO-Data'!$BN29","v":84785.23610607165},{"$f":"(ER89*'Default-Data'!$F$19/biopower_dollar_index)/'Zambia-IO-Data'!$BP29","v":0},{"$f":"(ES89*'Default-Data'!$F$19/biopower_dollar_index)/'Zambia-IO-Data'!$BP29","v":1831.4379138214592},{"$f":"(ET89*'Default-Data'!$F$19/biopower_dollar_index)/'Zambia-IO-Data'!$BP29","v":318.53474700367622},12341760.601523427,2136751.4298563302,{"$f":"EK89*'Zambia-IO-Data'!BO29","v":0},{"$f":"EX89*'Zambia-IO-Data'!$BO29","v":1324538.2380760876},{"$f":"EY89*'Zambia-IO-Data'!$BO29","v":229319.71097860322},{"$f":"EK89*'Zambia-IO-Data'!BN29","v":0},{"$f":"EX89*'Zambia-IO-Data'!$BN29","v":44599.779757461707},{"$f":"EY89*'Zambia-IO-Data'!$BN29","v":7721.6408780664851},{"$f":"(FC89*'Default-Data'!$F$19/biopower_dollar_index)/'Zambia-IO-Data'!$BP29","v":0},{"$f":"(FD89*'Default-Data'!$F$19/biopower_dollar_index)/'Zambia-IO-Data'!$BP29","v":167.55959190453186},{"$f":"(FE89*'Default-Data'!$F$19/biopower_dollar_index)/'Zambia-IO-Data'!$BP29","v":29.009896492722206},null,"TTL_C40T41: Electricity, gas and water supply",0,39981727.832085572,null,28199225.088658091,13676570.366272401,{"$f":"FK89*CustomRegion1!C27","v":0},{"$f":"FN89*CustomRegion1!$C27","v":16898555.7067887},{"$f":"FO89*CustomRegion1!$C27","v":8195767.276783268},{"$f":"FK89*CustomRegion1!D27","v":0},{"$f":"FN89*CustomRegion1!$D27","v":3499714.8970985762},{"$f":"FO89*CustomRegion1!$D27","v":1697355.0479339838},{"$f":"(FS89*'Default-Data'!$F$19/biopower_dollar_index)/CustomRegion1!$E27","v":0},{"$f":"(FT89*'Default-Data'!$F$19/biopower_dollar_index)/CustomRegion1!$E27","v":886.23588308477474},{"$f":"(FU89*'Default-Data'!$F$19/biopower_dollar_index)/CustomRegion1!$E27","v":429.82271243331053},3616236.0533960089,1317988.3133717924,{"$f":"FL89*CustomRegion1!C27","v":23959291.53726662},{"$f":"FY89*CustomRegion1!$C27","v":2167051.2648870153},{"$f":"FZ89*CustomRegion1!$C27","v":789812.44571035041},{"$f":"FL89*CustomRegion1!D27","v":4962003.3197993524},{"$f":"FY89*CustomRegion1!$D27","v":448799.39600131841},{"$f":"FZ89*CustomRegion1!$D27","v":163571.27970740938},{"$f":"(GD89*'Default-Data'!$C$58/biopower_dollar_index)/CustomRegion1!$E27","v":1256.532467155452},{"$f":"(GE89*'Default-Data'!$C$58/biopower_dollar_index)/CustomRegion1!$E27","v":113.64986598562309},{"$f":"(GF89*'Default-Data'!$C$58/biopower_dollar_index)/CustomRegion1!$E27","v":41.421299100387692},null,"C35 Other transport equipment",0,39981727.832085572,null,0,0,{"$f":"GL89*CustomRegion2!C31","v":0},{"$f":"GO89*CustomRegion2!$C31","v":0},{"$f":"GP89*CustomRegion2!$C31","v":0},{"$f":"GL89*CustomRegion2!D31","v":0},{"$f":"GO89*CustomRegion2!$D31","v":0},{"$f":"GP89*CustomRegion2!$D31","v":0},{"$f":"(GT89*'Default-Data'!$C$59/biopower_dollar_index)/CustomRegion2!$E31","v":0},{"$f":"(GU89*'Default-Data'!$C$59/biopower_dollar_index)/CustomRegion2!$E31","v":0},{"$f":"(GV89*'Default-Data'!$C$59/biopower_dollar_index)/CustomRegion2!$E31","v":0},0,0,{"$f":"GM89*CustomRegion2!C31","v":0},{"$f":"GZ89*CustomRegion2!$C31","v":0},{"$f":"HA89*CustomRegion2!$C31","v":0},{"$f":"GM89*CustomRegion2!D31","v":0},{"$f":"GZ89*CustomRegion2!$D31","v":0},{"$f":"HA89*CustomRegion2!$D31","v":0},{"$f":"(HE89*'Default-Data'!$C$59/biopower_dollar_index)/CustomRegion2!$E31","v":0},{"$f":"(HF89*'Default-Data'!$C$59/biopower_dollar_index)/CustomRegion2!$E31","v":0},{"$f":"(HG89*'Default-Data'!$C$59/biopower_dollar_index)/CustomRegion2!$E31","v":0},null,"OTHERMFG",0,0,null,134896295.89105377,23461978.786783367,{"$f":"HM89*CustomRegion3!D30","v":0},{"$f":"HP89*CustomRegion3!$D30","v":14477294.435647361},{"$f":"HQ89*CustomRegion3!$D30","v":2517978.5159816365},{"$f":"HM89*CustomRegion3!E30","v":0},{"$f":"HP89*CustomRegion3!$E30","v":487478.67351241165},{"$f":"HQ89*CustomRegion3!$E30","v":84785.23610607165},{"$f":"(HU89*'Default-Data'!$C$60/biopower_dollar_index)/CustomRegion3!$F30","v":0},{"$f":"(HV89*'Default-Data'!$C$60/biopower_dollar_index)/CustomRegion3!$F30","v":1831.4379138214592},{"$f":"(HW89*'Default-Data'!$C$60/biopower_dollar_index)/CustomRegion3!$F30","v":318.53474700367622},12341760.601523427,2136751.4298563302,{"$f":"HN89*CustomRegion3!D30","v":0},{"$f":"IA89*CustomRegion3!$D30","v":1324538.2380760876},{"$f":"IB89*CustomRegion3!$D30","v":229319.71097860322},{"$f":"HN89*CustomRegion3!E30","v":0},{"$f":"IA89*CustomRegion3!$E30","v":44599.779757461707},{"$f":"IB89*CustomRegion3!$E30","v":7721.6408780664851},{"$f":"(IF89*'Default-Data'!$C$60/biopower_dollar_index)/CustomRegion3!$F30","v":0},{"$f":"(IG89*'Default-Data'!$C$60/biopower_dollar_index)/CustomRegion3!$F30","v":167.55959190453186},{"$f":"(IH89*'Default-Data'!$C$60/biopower_dollar_index)/CustomRegion3!$F30","v":29.009896492722206}]
[null,null,null,null,null,null,null,null,null,null,null,null,null,null,null,null,null,null,null,null,null,null,null,null,null,null,null,null,null,89,"TTL_C45: Construction",{"$f":"'Biopower-Inputs'!B21*'Biopower-Inputs'!C21","v":221281472.18588102},0,null,4625276.5607715249,2986123.7452621162,{"$f":"'Colombia-IO-Data'!$AN32*Calculations!AF90","v":109880128.37138045},{"$f":"'Colombia-IO-Data'!$AN32*AI90","v":2296739.8817004971},{"$f":"'Colombia-IO-Data'!$AN32*AJ90","v":1482797.7110826736},{"$f":"'Colombia-IO-Data'!$AO32*Calculations!AK90","v":21669576.080685757},{"$f":"'Colombia-IO-Data'!$AO32*Calculations!AL90","v":452942.49598835688},{"$f":"'Colombia-IO-Data'!$AO32*Calculations!AM90","v":292424.10150789138},{"$f":"(AN90*'Default-Data'!$F$19/biopower_dollar_index)/'Colombia-IO-Data'!$AP32","v":5945.0970480581182},{"$f":"(AO90*'Default-Data'!$F$19/biopower_dollar_index)/'Colombia-IO-Data'!$AP32","v":124.26579485514515},{"$f":"(AP90*'Default-Data'!$F$19/biopower_dollar_index)/'Colombia-IO-Data'!$AP32","v":80.22721146839325},1691401.5954526286,287244.23204453941,{"$f":"'Colombia-IO-Data'!$AN32*AG90","v":0},{"$f":"'Colombia-IO-Data'!$AN32*AT90","v":839886.96658603882},{"$f":"'Colombia-IO-Data'!$AN32*AU90","v":142634.77542520815},{"$f":"'Colombia-IO-Data'!$AO32*AV90","v":0},{"$f":"'Colombia-IO-Data'!$AO32*AW90","v":165634.99507480502},{"$f":"'Colombia-IO-Data'!$AO32*AX90","v":28129.154594554686},{"$f":"(AY90*'Default-Data'!$F$19/biopower_dollar_index)/'Colombia-IO-Data'!$AP32","v":0},{"$f":"(AZ90*'Default-Data'!$F$19/biopower_dollar_index)/'Colombia-IO-Data'!$AP32","v":45.442334294302533},{"$f":"(BA90*'Default-Data'!$F$19/biopower_dollar_index)/'Colombia-IO-Data'!$AP32","v":7.7172969753437517},null,"DOM_C45: Construction",221281472.18588102,0,null,17226043.053393841,484711.0272166729,{"$f":"BG90*'Mexico-IO-Data'!AQ32","v":111291865.64117333},{"$f":"BJ90*'Mexico-IO-Data'!$AQ32","v":8663709.8447038326},{"$f":"BK90*'Mexico-IO-Data'!$AQ32","v":243781.79511784276},{"$f":"BG90*'Mexico-IO-Data'!AR32","v":48947981.164236531},{"$f":"BJ90*'Mexico-IO-Data'!$AR32","v":3810441.1660979935},{"$f":"BK90*'Mexico-IO-Data'!$AR32","v":107219.21720752756},{"$f":"(BO90*'Default-Data'!$F$19/biopower_dollar_index)/'Mexico-IO-Data'!$AS32","v":16599.056889783191},{"$f":"(BP90*'Default-Data'!$F$19/biopower_dollar_index)/'Mexico-IO-Data'!$AS32","v":1292.1826025675873},{"$f":"(BQ90*'Default-Data'!$F$19/biopower_dollar_index)/'Mexico-IO-Data'!$AS32","v":36.359781216188807},219182.55191614729,31984.041748575721,{"$f":"BH90*'Mexico-IO-Data'!AQ32","v":0},{"$f":"BU90*'Mexico-IO-Data'!$AQ32","v":110236.22934978732},{"$f":"BV90*'Mexico-IO-Data'!$AQ32","v":16086.135191445494},{"$f":"BH90*'Mexico-IO-Data'!AR32","v":0},{"$f":"BU90*'Mexico-IO-Data'!$AR32","v":48483.695072801551},{"$f":"BV90*'Mexico-IO-Data'!$AR32","v":7074.9451257733008},{"$f":"(BZ90*'Default-Data'!$F$19/biopower_dollar_index)/'Mexico-IO-Data'!$AS32","v":0},{"$f":"(CA90*'Default-Data'!$F$19/biopower_dollar_index)/'Mexico-IO-Data'!$AS32","v":16.441609921357554},{"$f":"(CB90*'Default-Data'!$F$19/biopower_dollar_index)/'Mexico-IO-Data'!$AS32","v":2.3992290149978666},null,"TTL_C45: Construction",{"$f":"'Biopower-Inputs'!B21*'Biopower-Inputs'!C21","v":221281472.18588102},0,null,4526632.1841213107,3092269.8543832898,{"$f":"CH90*'Philippines-IO-Data'!AN32","v":121777508.22435576},{"$f":"CK90*'Philippines-IO-Data'!$AN32","v":2491134.8545594076},{"$f":"CL90*'Philippines-IO-Data'!$AN32","v":1701764.3361833871},{"$f":"CH90*'Philippines-IO-Data'!AO32","v":37421564.261872612},{"$f":"CK90*'Philippines-IO-Data'!$AO32","v":765512.15741036937},{"$f":"CL90*'Philippines-IO-Data'!$AO32","v":522942.90130920039},{"$f":"(CP90*'Default-Data'!$F$19/biopower_dollar_index)/'Philippines-IO-Data'!$AP32","v":11640.822362981129},{"$f":"(CQ90*'Default-Data'!$F$19/biopower_dollar_index)/'Philippines-IO-Data'!$AP32","v":238.12983815312677},{"$f":"(CR90*'Default-Data'!$F$19/biopower_dollar_index)/'Philippines-IO-Data'!$AP32","v":162.6731949932055},190639.1627024989,309156.81760590803,{"$f":"CI90*'Philippines-IO-Data'!AN32","v":0},{"$f":"CV90*'Philippines-IO-Data'!$AN32","v":104914.17096315367},{"$f":"CW90*'Philippines-IO-Data'!$AN32","v":170137.81825797746},{"$f":"CI90*'Philippines-IO-Data'!AO32","v":0},{"$f":"CV90*'Philippines-IO-Data'!$AO32","v":32239.55267212083},{"$f":"CW90*'Philippines-IO-Data'!$AO32","v":52282.423841238764},{"$f":"(DA90*'Default-Data'!$F$19/biopower_dollar_index)/'Philippines-IO-Data'!$AP32","v":0},{"$f":"(DB90*'Default-Data'!$F$19/biopower_dollar_index)/'Philippines-IO-Data'!$AP32","v":10.028840673036902},{"$f":"(DC90*'Default-Data'!$F$19/biopower_dollar_index)/'Philippines-IO-Data'!$AP32","v":16.263628222031318},null,"DOM_C45: Construction",221281472.18588102,0,null,25276657.841860473,6346520.5199854672,{"$f":"DI90*'SouthAfrica-IO-Data'!AR32","v":65886702.49901484},{"$f":"DL90*'Mexico-IO-Data'!$AQ32","v":12712706.493705878},{"$f":"DM90*'Mexico-IO-Data'!$AQ32","v":3191935.1494817063},{"$f":"DI90*'SouthAfrica-IO-Data'!AS32","v":29715512.577927757},{"$f":"DL90*'Mexico-IO-Data'!$AR32","v":5591256.0582520422},{"$f":"DM90*'Mexico-IO-Data'!$AR32","v":1403865.239154489},{"$f":"(DQ90*'Default-Data'!$F$19/biopower_dollar_index)/'SouthAfrica-IO-Data'!$AT32","v":2802.0423795846132},{"$f":"(DR90*'Default-Data'!$F$19/biopower_dollar_index)/'SouthAfrica-IO-Data'!$AT32","v":527.23089966042198},{"$f":"(DS90*'Default-Data'!$F$19/biopower_dollar_index)/'SouthAfrica-IO-Data'!$AT32","v":132.37832882810352},508810.5354781347,542325.31392842159,{"$f":"DJ90*'SouthAfrica-IO-Data'!AR32","v":0},{"$f":"DW90*'SouthAfrica-IO-Data'!$AR32","v":151498.66840750031},{"$f":"DX90*'SouthAfrica-IO-Data'!$AR32","v":161477.71552455644},{"$f":"DJ90*'SouthAfrica-IO-Data'!AS32","v":0},{"$f":"DW90*'SouthAfrica-IO-Data'!$AS32","v":68327.301501690672},{"$f":"DX90*'SouthAfrica-IO-Data'!$AS32","v":72827.944102935551},{"$f":"(EB90*'Default-Data'!$F$19/biopower_dollar_index)/'SouthAfrica-IO-Data'!$AT32","v":0},{"$f":"(EC90*'Default-Data'!$F$19/biopower_dollar_index)/'SouthAfrica-IO-Data'!$AT32","v":6.4429645623075444},{"$f":"(ED90*'Default-Data'!$F$19/biopower_dollar_index)/'SouthAfrica-IO-Data'!$AT32","v":6.8673554009639615},null,"ELECWATER",0,{"$f":"'Biopower-Inputs'!B46*'Biopower-Inputs'!C46+'Biopower-Inputs'!B51*'Biopower-Inputs'!C51","v":39981727.832085572},null,52720667.939538792,10114411.693069041,{"$f":"EJ90*'Zambia-IO-Data'!BO30","v":0},{"$f":"EM90*'Zambia-IO-Data'!$BO30","v":14053185.826409485},{"$f":"EN90*'Zambia-IO-Data'!$BO30","v":2696090.7856956045},{"$f":"EJ90*'Zambia-IO-Data'!BN30","v":0},{"$f":"EM90*'Zambia-IO-Data'!$BN30","v":695674.64509755245},{"$f":"EN90*'Zambia-IO-Data'!$BN30","v":133464.54132591354},{"$f":"(ER90*'Default-Data'!$F$19/biopower_dollar_index)/'Zambia-IO-Data'!$BP30","v":0},{"$f":"(ES90*'Default-Data'!$F$19/biopower_dollar_index)/'Zambia-IO-Data'!$BP30","v":1178.3690417455571},{"$f":"(ET90*'Default-Data'!$F$19/biopower_dollar_index)/'Zambia-IO-Data'!$BP30","v":226.06901771901354},41666670.354445376,871438.97017982602,{"$f":"EK90*'Zambia-IO-Data'!BO30","v":10657502.50982389},{"$f":"EX90*'Zambia-IO-Data'!$BO30","v":11106639.65658191},{"$f":"EY90*'Zambia-IO-Data'!$BO30","v":232290.18642852845},{"$f":"EK90*'Zambia-IO-Data'!BN30","v":527578.18531189859},{"$f":"EX90*'Zambia-IO-Data'!$BN30","v":549811.81468466565},{"$f":"EY90*'Zambia-IO-Data'!$BN30","v":11499.05758021264},{"$f":"(FC90*'Default-Data'!$F$19/biopower_dollar_index)/'Zambia-IO-Data'!$BP30","v":893.63872185490573},{"$f":"(FD90*'Default-Data'!$F$19/biopower_dollar_index)/'Zambia-IO-Data'!$BP30","v":931.29917235880396},{"$f":"(FE90*'Default-Data'!$F$19/biopower_dollar_index)/'Zambia-IO-Data'!$BP30","v":19.477687676646685},null,"TTL_C45: Construction",221281472.18588102,0,null,6162873.0424479246,4060446.6014775038,{"$f":"FK90*CustomRegion1!C28","v":121777508.22435576},{"$f":"FN90*CustomRegion1!$C28","v":3391604.8876515403},{"$f":"FO90*CustomRegion1!$C28","v":2234579.6262174998},{"$f":"FK90*CustomRegion1!D28","v":37421564.261872612},{"$f":"FN90*CustomRegion1!$D28","v":1042221.6885921573},{"$f":"FO90*CustomRegion1!$D28","v":686674.13465802046},{"$f":"(FS90*'Default-Data'!$F$19/biopower_dollar_index)/CustomRegion1!$E28","v":11640.822362981129},{"$f":"(FT90*'Default-Data'!$F$19/biopower_dollar_index)/CustomRegion1!$E28","v":324.20658460043825},{"$f":"(FU90*'Default-Data'!$F$19/biopower_dollar_index)/CustomRegion1!$E28","v":213.60549139181813},358901.58157130139,391298.47794407705,{"$f":"FL90*CustomRegion1!C28","v":0},{"$f":"FY90*CustomRegion1!$C28","v":197513.78129308257},{"$f":"FZ90*CustomRegion1!$C28","v":215342.71778517726},{"$f":"FL90*CustomRegion1!D28","v":0},{"$f":"FY90*CustomRegion1!$D28","v":60694.908009180901},{"$f":"FZ90*CustomRegion1!$D28","v":66173.642977468975},{"$f":"(GD90*'Default-Data'!$C$58/biopower_dollar_index)/CustomRegion1!$E28","v":0},{"$f":"(GE90*'Default-Data'!$C$58/biopower_dollar_index)/CustomRegion1!$E28","v":18.880521335988629},{"$f":"(GF90*'Default-Data'!$C$58/biopower_dollar_index)/CustomRegion1!$E28","v":20.584805531416411},null,"C36T37 Manufacturing n.e.c; recycling",221281472.18588102,0,null,13956115.760030776,3810015.2130883336,{"$f":"GL90*CustomRegion2!C32","v":81744887.200244606},{"$f":"GO90*CustomRegion2!$C32","v":5155610.6224697465},{"$f":"GP90*CustomRegion2!$C32","v":1407480.0784202029},{"$f":"GL90*CustomRegion2!D32","v":37352742.974869549},{"$f":"GO90*CustomRegion2!$D32","v":2355819.4898217851},{"$f":"GP90*CustomRegion2!$D32","v":643137.9797820769},{"$f":"(GT90*'Default-Data'!$C$59/biopower_dollar_index)/CustomRegion2!$E32","v":5837.3426282459541},{"$f":"(GU90*'Default-Data'!$C$59/biopower_dollar_index)/CustomRegion2!$E32","v":368.15838509212909},{"$f":"(GV90*'Default-Data'!$C$59/biopower_dollar_index)/CustomRegion2!$E32","v":100.50712333901934},69388.455844721437,173361.98813092822,{"$f":"GM90*CustomRegion2!C32","v":0},{"$f":"GZ90*CustomRegion2!$C32","v":25633.196670262492},{"$f":"HA90*CustomRegion2!$C32","v":64042.669386565525},{"$f":"GM90*CustomRegion2!D32","v":0},{"$f":"GZ90*CustomRegion2!$D32","v":11712.90633141557},{"$f":"HA90*CustomRegion2!$D32","v":29263.840846229341},{"$f":"(HE90*'Default-Data'!$C$59/biopower_dollar_index)/CustomRegion2!$E32","v":0},{"$f":"(HF90*'Default-Data'!$C$59/biopower_dollar_index)/CustomRegion2!$E32","v":1.8304478328411926},{"$f":"(HG90*'Default-Data'!$C$59/biopower_dollar_index)/CustomRegion2!$E32","v":4.5732401969201373},null,"ELECWATER",0,39981727.832085572,null,52720667.939538792,10114411.693069041,{"$f":"HM90*CustomRegion3!D31","v":0},{"$f":"HP90*CustomRegion3!$D31","v":14053185.826409485},{"$f":"HQ90*CustomRegion3!$D31","v":2696090.7856956045},{"$f":"HM90*CustomRegion3!E31","v":0},{"$f":"HP90*CustomRegion3!$E31","v":695674.64509755245},{"$f":"HQ90*CustomRegion3!$E31","v":133464.54132591354},{"$f":"(HU90*'Default-Data'!$C$60/biopower_dollar_index)/CustomRegion3!$F31","v":0},{"$f":"(HV90*'Default-Data'!$C$60/biopower_dollar_index)/CustomRegion3!$F31","v":1178.3690417455571},{"$f":"(HW90*'Default-Data'!$C$60/biopower_dollar_index)/CustomRegion3!$F31","v":226.06901771901354},41666670.354445376,871438.97017982602,{"$f":"HN90*CustomRegion3!D31","v":10657502.50982389},{"$f":"IA90*CustomRegion3!$D31","v":11106639.65658191},{"$f":"IB90*CustomRegion3!$D31","v":232290.18642852845},{"$f":"HN90*CustomRegion3!E31","v":527578.18531189859},{"$f":"IA90*CustomRegion3!$E31","v":549811.81468466565},{"$f":"IB90*CustomRegion3!$E31","v":11499.05758021264},{"$f":"(IF90*'Default-Data'!$C$60/biopower_dollar_index)/CustomRegion3!$F31","v":893.63872185490573},{"$f":"(IG90*'Default-Data'!$C$60/biopower_dollar_index)/CustomRegion3!$F31","v":931.29917235880396},{"$f":"(IH90*'Default-Data'!$C$60/biopower_dollar_index)/CustomRegion3!$F31","v":19.477687676646685}]
[null,null,{"$f":"general_country","v":"Mexico"},null,null,null,"Construction",null,null,null,null,null,null,null,null,null,null,null,null,null,null,null,null,null,null,null,null,null,null,90,"TTL_C50T52: Wholesale and retail trade; repairs",0,{"$f":"'Biopower-Inputs'!B41*'Biopower-Inputs'!B39*0.1","v":1493970.0886627771},null,24288709.711042121,28032128.664902866,{"$f":"'Colombia-IO-Data'!$AN33*Calculations!AF91","v":0},{"$f":"'Colombia-IO-Data'!$AN33*AI91","v":14592354.700796179},{"$f":"'Colombia-IO-Data'!$AN33*AJ91","v":16841354.24907542},{"$f":"'Colombia-IO-Data'!$AO33*Calculations!AK91","v":0},{"$f":"'Colombia-IO-Data'!$AO33*Calculations!AL91","v":6330251.8795341412},{"$f":"'Colombia-IO-Data'!$AO33*Calculations!AM91","v":7305881.5095341112},{"$f":"(AN91*'Default-Data'!$F$19/biopower_dollar_index)/'Colombia-IO-Data'!$AP33","v":0},{"$f":"(AO91*'Default-Data'!$F$19/biopower_dollar_index)/'Colombia-IO-Data'!$AP33","v":1911.8185295665412},{"$f":"(AP91*'Default-Data'!$F$19/biopower_dollar_index)/'Colombia-IO-Data'!$AP33","v":2206.4713870078722},2694004.7386792181,2696494.8400746547,{"$f":"'Colombia-IO-Data'!$AN33*AG91","v":897558.6478451842},{"$f":"'Colombia-IO-Data'!$AN33*AT91","v":1618524.5400072003},{"$f":"'Colombia-IO-Data'!$AN33*AU91","v":1620020.5619546585},{"$f":"'Colombia-IO-Data'!$AO33*AV91","v":389366.37945102132},{"$f":"'Colombia-IO-Data'!$AO33*AW91","v":702125.75156864116},{"$f":"'Colombia-IO-Data'!$AO33*AX91","v":702774.73495335865},{"$f":"(AY91*'Default-Data'!$F$19/biopower_dollar_index)/'Colombia-IO-Data'!$AP33","v":117.5937187320075},{"$f":"(AZ91*'Default-Data'!$F$19/biopower_dollar_index)/'Colombia-IO-Data'!$AP33","v":212.05112331699954},{"$f":"(BA91*'Default-Data'!$F$19/biopower_dollar_index)/'Colombia-IO-Data'!$AP33","v":212.24712475326075},null,"DOM_C50T52: Wholesale and retail trade; repairs",0,1493970.0886627771,null,35756492.340343744,46830492.288800091,{"$f":"BG91*'Mexico-IO-Data'!AQ33","v":0},{"$f":"BJ91*'Mexico-IO-Data'!$AQ33","v":27227428.63773508},{"$f":"BK91*'Mexico-IO-Data'!$AQ33","v":35659926.44710993},{"$f":"BG91*'Mexico-IO-Data'!AR33","v":0},{"$f":"BJ91*'Mexico-IO-Data'!$AR33","v":5482608.0497864718},{"$f":"BK91*'Mexico-IO-Data'!$AR33","v":7180604.6173143834},{"$f":"(BO91*'Default-Data'!$F$19/biopower_dollar_index)/'Mexico-IO-Data'!$AS33","v":0},{"$f":"(BP91*'Default-Data'!$F$19/biopower_dollar_index)/'Mexico-IO-Data'!$AS33","v":1116.6300684683354},{"$f":"(BQ91*'Default-Data'!$F$19/biopower_dollar_index)/'Mexico-IO-Data'!$AS33","v":1462.4570920746526},8908107.4045198523,3090147.1936226226,{"$f":"BH91*'Mexico-IO-Data'!AQ33","v":1137610.5796060159},{"$f":"BU91*'Mexico-IO-Data'!$AQ33","v":6783239.7077769982},{"$f":"BV91*'Mexico-IO-Data'!$AQ33","v":2353048.5427265051},{"$f":"BH91*'Mexico-IO-Data'!AR33","v":229073.15282156694},{"$f":"BU91*'Mexico-IO-Data'!$AR33","v":1365896.3216947776},{"$f":"BV91*'Mexico-IO-Data'!$AR33","v":473817.89347566618},{"$f":"(BZ91*'Default-Data'!$F$19/biopower_dollar_index)/'Mexico-IO-Data'!$AS33","v":46.654797862007648},{"$f":"(CA91*'Default-Data'!$F$19/biopower_dollar_index)/'Mexico-IO-Data'!$AS33","v":278.18893660911766},{"$f":"(CB91*'Default-Data'!$F$19/biopower_dollar_index)/'Mexico-IO-Data'!$AS33","v":96.501391678703229},null,"TTL_C50T52: Wholesale and retail trade; repairs",0,{"$f":"'Biopower-Inputs'!B41*'Biopower-Inputs'!B39*0.1","v":1493970.0886627771},null,40958788.831977785,30781649.436607108,{"$f":"CH91*'Philippines-IO-Data'!AN33","v":0},{"$f":"CK91*'Philippines-IO-Data'!$AN33","v":28307229.633857194},{"$f":"CL91*'Philippines-IO-Data'!$AN33","v":21273656.86239833},{"$f":"CH91*'Philippines-IO-Data'!AO33","v":0},{"$f":"CK91*'Philippines-IO-Data'!$AO33","v":6300937.8765726341},{"$f":"CL91*'Philippines-IO-Data'!$AO33","v":4735327.0535937613},{"$f":"(CP91*'Default-Data'!$F$19/biopower_dollar_index)/'Philippines-IO-Data'!$AP33","v":0},{"$f":"(CQ91*'Default-Data'!$F$19/biopower_dollar_index)/'Philippines-IO-Data'!$AP33","v":1960.0489714454052},{"$f":"(CR91*'Default-Data'!$F$19/biopower_dollar_index)/'Philippines-IO-Data'!$AP33","v":1473.0303809791992},3432431.4921835009,3077466.4659336656,{"$f":"CI91*'Philippines-IO-Data'!AN33","v":1032505.0025130138},{"$f":"CV91*'Philippines-IO-Data'!$AN33","v":2372204.5798352226},{"$f":"CW91*'Philippines-IO-Data'!$AN33","v":2126882.9578687693},{"$f":"CI91*'Philippines-IO-Data'!AO33","v":229826.44229881448},{"$f":"CV91*'Philippines-IO-Data'!$AO33","v":528031.66828396218},{"$f":"CW91*'Philippines-IO-Data'!$AO33","v":473425.25431182841},{"$f":"(DA91*'Default-Data'!$F$19/biopower_dollar_index)/'Philippines-IO-Data'!$AP33","v":71.492703255119181},{"$f":"(DB91*'Default-Data'!$F$19/biopower_dollar_index)/'Philippines-IO-Data'!$AP33","v":164.25617084064118},{"$f":"(DC91*'Default-Data'!$F$19/biopower_dollar_index)/'Philippines-IO-Data'!$AP33","v":147.26961302385124},null,"DOM_C50T52: Wholesale and retail trade; repairs",0,1493970.0886627771,null,90528121.490524113,63854007.35554111,{"$f":"DI91*'SouthAfrica-IO-Data'!AR33","v":0},{"$f":"DL91*'Mexico-IO-Data'!$AQ33","v":68934277.560844243},{"$f":"DM91*'Mexico-IO-Data'!$AQ33","v":48622790.288206801},{"$f":"DI91*'SouthAfrica-IO-Data'!AS33","v":0},{"$f":"DL91*'Mexico-IO-Data'!$AR33","v":13880841.635464059},{"$f":"DM91*'Mexico-IO-Data'!$AR33","v":9790851.1664499771},{"$f":"(DQ91*'Default-Data'!$F$19/biopower_dollar_index)/'SouthAfrica-IO-Data'!$AT33","v":0},{"$f":"(DR91*'Default-Data'!$F$19/biopower_dollar_index)/'SouthAfrica-IO-Data'!$AT33","v":1445.7797381537196},{"$f":"(DS91*'Default-Data'!$F$19/biopower_dollar_index)/'SouthAfrica-IO-Data'!$AT33","v":1019.7806881944772},6091800.9635642944,5456477.2107223263,{"$f":"DJ91*'SouthAfrica-IO-Data'!AR33","v":877358.27487148449},{"$f":"DW91*'SouthAfrica-IO-Data'!$AR33","v":3577509.3656909447},{"$f":"DX91*'SouthAfrica-IO-Data'!$AR33","v":3204405.140908754},{"$f":"DJ91*'SouthAfrica-IO-Data'!AS33","v":421294.19449505204},{"$f":"DW91*'SouthAfrica-IO-Data'!$AS33","v":1717865.9729835496},{"$f":"DX91*'SouthAfrica-IO-Data'!$AS33","v":1538706.9585372121},{"$f":"(EB91*'Default-Data'!$F$19/biopower_dollar_index)/'SouthAfrica-IO-Data'!$AT33","v":43.880524409021213},{"$f":"(EC91*'Default-Data'!$F$19/biopower_dollar_index)/'SouthAfrica-IO-Data'!$AT33","v":178.92688943715544},{"$f":"(ED91*'Default-Data'!$F$19/biopower_dollar_index)/'SouthAfrica-IO-Data'!$AT33","v":160.26631540306195},null,"EQUIPMACHIN",{"$f":"'Biopower-Inputs'!B25*'Biopower-Inputs'!C25+'Biopower-Inputs'!B16*'Biopower-Inputs'!C16+'Biopower-Inputs'!B17*'Biopower-Inputs'!C17","v":104318408.31620106},0,null,97114622.633687377,6298085.0446135998,{"$f":"EJ91*'Zambia-IO-Data'!BO31","v":13143494.091098974},{"$f":"EM91*'Zambia-IO-Data'!$BO31","v":12235860.279579656},{"$f":"EN91*'Zambia-IO-Data'!$BO31","v":793520.9605404014},{"$f":"EJ91*'Zambia-IO-Data'!BN31","v":2947520.5877289693},{"$f":"EM91*'Zambia-IO-Data'!$BN31","v":2743977.3497566674},{"$f":"EN91*'Zambia-IO-Data'!$BN31","v":177952.63206085065},{"$f":"(ER91*'Default-Data'!$F$19/biopower_dollar_index)/'Zambia-IO-Data'!$BP31","v":11073.717168467478},{"$f":"(ES91*'Default-Data'!$F$19/biopower_dollar_index)/'Zambia-IO-Data'!$BP31","v":10309.013349860392},{"$f":"(ET91*'Default-Data'!$F$19/biopower_dollar_index)/'Zambia-IO-Data'!$BP31","v":668.56093390158151},8260718.7555534523,631327.81259345077,{"$f":"EK91*'Zambia-IO-Data'!BO31","v":0},{"$f":"EX91*'Zambia-IO-Data'!$BO31","v":1040801.0427339426},{"$f":"EY91*'Zambia-IO-Data'!$BO31","v":79543.51977089906},{"$f":"EK91*'Zambia-IO-Data'!BN31","v":0},{"$f":"EX91*'Zambia-IO-Data'!$BN31","v":233406.9220806084},{"$f":"EY91*'Zambia-IO-Data'!$BN31","v":17838.191315042284},{"$f":"(FC91*'Default-Data'!$F$19/biopower_dollar_index)/'Zambia-IO-Data'!$BP31","v":0},{"$f":"(FD91*'Default-Data'!$F$19/biopower_dollar_index)/'Zambia-IO-Data'!$BP31","v":876.90048749571304},{"$f":"(FE91*'Default-Data'!$F$19/biopower_dollar_index)/'Zambia-IO-Data'!$BP31","v":67.017372581607546},null,"TTL_C50T52: Wholesale and retail trade; repairs",0,1493970.0886627771,null,71933426.07578826,48273630.608209714,{"$f":"FK91*CustomRegion1!C29","v":0},{"$f":"FN91*CustomRegion1!$C29","v":49714263.24715142},{"$f":"FO91*CustomRegion1!$C29","v":33362625.8455115},{"$f":"FK91*CustomRegion1!D29","v":0},{"$f":"FN91*CustomRegion1!$D29","v":11065953.410192324},{"$f":"FO91*CustomRegion1!$D29","v":7426224.1685591657},{"$f":"(FS91*'Default-Data'!$F$19/biopower_dollar_index)/CustomRegion1!$E29","v":0},{"$f":"(FT91*'Default-Data'!$F$19/biopower_dollar_index)/CustomRegion1!$E29","v":3442.3146243600659},{"$f":"(FU91*'Default-Data'!$F$19/biopower_dollar_index)/CustomRegion1!$E29","v":2310.0946761317605},5836436.2477930617,4652049.4014017936,{"$f":"FL91*CustomRegion1!C29","v":1032505.0025130138},{"$f":"FY91*CustomRegion1!$C29","v":4033648.1087707095},{"$f":"FZ91*CustomRegion1!$C29","v":3215100.7007003264},{"$f":"FL91*CustomRegion1!D29","v":229826.44229881448},{"$f":"FY91*CustomRegion1!$D29","v":897854.23999670078},{"$f":"FZ91*CustomRegion1!$D29","v":715652.85773525166},{"$f":"(GD91*'Default-Data'!$C$58/biopower_dollar_index)/CustomRegion1!$E29","v":71.492703255119181},{"$f":"(GE91*'Default-Data'!$C$58/biopower_dollar_index)/CustomRegion1!$E29","v":279.29783059068745},{"$f":"(GF91*'Default-Data'!$C$58/biopower_dollar_index)/CustomRegion1!$E29","v":222.6199774054819},null,"C40T41 Electricity, gas and water supply",0,1493970.0886627771,null,12426329.16159807,9771049.6399274226,{"$f":"GL91*CustomRegion2!C33","v":0},{"$f":"GO91*CustomRegion2!$C33","v":4881294.8936823653},{"$f":"GP91*CustomRegion2!$C33","v":3838251.3526754873},{"$f":"GL91*CustomRegion2!D33","v":0},{"$f":"GO91*CustomRegion2!$D33","v":1837938.7368674153},{"$f":"GP91*CustomRegion2!$D33","v":1445204.8066275013},{"$f":"(GT91*'Default-Data'!$C$59/biopower_dollar_index)/CustomRegion2!$E33","v":0},{"$f":"(GU91*'Default-Data'!$C$59/biopower_dollar_index)/CustomRegion2!$E33","v":98.510480361400695},{"$f":"(GV91*'Default-Data'!$C$59/biopower_dollar_index)/CustomRegion2!$E33","v":77.460590424320799},855044.88278051559,444598.90498199593,{"$f":"GM91*CustomRegion2!C33","v":586859.43936205551},{"$f":"GZ91*CustomRegion2!$C33","v":335877.64865300024},{"$f":"HA91*CustomRegion2!$C33","v":174646.7791415152},{"$f":"GM91*CustomRegion2!D33","v":220968.35372429824},{"$f":"GZ91*CustomRegion2!$D33","v":126466.96312207336},{"$f":"HA91*CustomRegion2!$D33","v":65759.206858975376},{"$f":"(HE91*'Default-Data'!$C$59/biopower_dollar_index)/CustomRegion2!$E33","v":11.843538760791022},{"$f":"(HF91*'Default-Data'!$C$59/biopower_dollar_index)/CustomRegion2!$E33","v":6.7784203233220754},{"$f":"(HG91*'Default-Data'!$C$59/biopower_dollar_index)/CustomRegion2!$E33","v":3.5245848655997318},null,"EQUIPMACHIN",104318408.31620106,0,null,97114622.633687377,6298085.0446135998,{"$f":"HM91*CustomRegion3!D32","v":13143494.091098974},{"$f":"HP91*CustomRegion3!$D32","v":12235860.279579656},{"$f":"HQ91*CustomRegion3!$D32","v":793520.9605404014},{"$f":"HM91*CustomRegion3!E32","v":2947520.5877289693},{"$f":"HP91*CustomRegion3!$E32","v":2743977.3497566674},{"$f":"HQ91*CustomRegion3!$E32","v":177952.63206085065},{"$f":"(HU91*'Default-Data'!$C$60/biopower_dollar_index)/CustomRegion3!$F32","v":11073.717168467478},{"$f":"(HV91*'Default-Data'!$C$60/biopower_dollar_index)/CustomRegion3!$F32","v":10309.013349860392},{"$f":"(HW91*'Default-Data'!$C$60/biopower_dollar_index)/CustomRegion3!$F32","v":668.56093390158151},8260718.7555534523,631327.81259345077,{"$f":"HN91*CustomRegion3!D32","v":0},{"$f":"IA91*CustomRegion3!$D32","v":1040801.0427339426},{"$f":"IB91*CustomRegion3!$D32","v":79543.51977089906},{"$f":"HN91*CustomRegion3!E32","v":0},{"$f":"IA91*CustomRegion3!$E32","v":233406.9220806084},{"$f":"IB91*CustomRegion3!$E32","v":17838.191315042284},{"$f":"(IF91*'Default-Data'!$C$60/biopower_dollar_index)/CustomRegion3!$F32","v":0},{"$f":"(IG91*'Default-Data'!$C$60/biopower_dollar_index)/CustomRegion3!$F32","v":876.90048749571304},{"$f":"(IH91*'Default-Data'!$C$60/biopower_dollar_index)/CustomRegion3!$F32","v":67.017372581607546}]
[null,null,"General",null,null,null,"Output",null,"Value Added",null,null,"Earnings",null,null,"Jobs",null,null,null,null,null,null,null,null,null,null,null,null,null,null,91,"TTL_C55: Hotels and restaurants",0,0,null,7070934.8781019747,19011755.259743795,{"$f":"'Colombia-IO-Data'!$AN34*Calculations!AF92","v":0},{"$f":"'Colombia-IO-Data'!$AN34*AI92","v":3267965.6589191263},{"$f":"'Colombia-IO-Data'!$AN34*AJ92","v":8786640.575212745},{"$f":"'Colombia-IO-Data'!$AO34*Calculations!AK92","v":0},{"$f":"'Colombia-IO-Data'!$AO34*Calculations!AL92","v":1389457.8946983162},{"$f":"'Colombia-IO-Data'!$AO34*Calculations!AM92","v":3735861.5081481296},{"$f":"(AN92*'Default-Data'!$F$19/biopower_dollar_index)/'Colombia-IO-Data'!$AP34","v":0},{"$f":"(AO92*'Default-Data'!$F$19/biopower_dollar_index)/'Colombia-IO-Data'!$AP34","v":283.86639890379018},{"$f":"(AP92*'Default-Data'!$F$19/biopower_dollar_index)/'Colombia-IO-Data'!$AP34","v":763.2369121567001},426426.53597560752,1828797.9686268647,{"$f":"'Colombia-IO-Data'!$AN34*AG92","v":0},{"$f":"'Colombia-IO-Data'!$AN34*AT92","v":197081.05075833926},{"$f":"'Colombia-IO-Data'!$AN34*AU92","v":845213.40694031224},{"$f":"'Colombia-IO-Data'!$AO34*AV92","v":0},{"$f":"'Colombia-IO-Data'!$AO34*AW92","v":83793.971679061273},{"$f":"'Colombia-IO-Data'!$AO34*AX92","v":359363.76435684587},{"$f":"(AY92*'Default-Data'!$F$19/biopower_dollar_index)/'Colombia-IO-Data'!$AP34","v":0},{"$f":"(AZ92*'Default-Data'!$F$19/biopower_dollar_index)/'Colombia-IO-Data'!$AP34","v":17.119117521402739},{"$f":"(BA92*'Default-Data'!$F$19/biopower_dollar_index)/'Colombia-IO-Data'!$AP34","v":73.418056116509447},null,"DOM_C55: Hotels and restaurants",0,0,null,2896511.2781274635,8250950.8148155399,{"$f":"BG92*'Mexico-IO-Data'!AQ34","v":0},{"$f":"BJ92*'Mexico-IO-Data'!$AQ34","v":2130182.3834247701},{"$f":"BK92*'Mexico-IO-Data'!$AQ34","v":6067999.874520381},{"$f":"BG92*'Mexico-IO-Data'!AR34","v":0},{"$f":"BJ92*'Mexico-IO-Data'!$AR34","v":521048.76391583454},{"$f":"BK92*'Mexico-IO-Data'!$AR34","v":1484250.2964356823},{"$f":"(BO92*'Default-Data'!$F$19/biopower_dollar_index)/'Mexico-IO-Data'!$AS34","v":0},{"$f":"(BP92*'Default-Data'!$F$19/biopower_dollar_index)/'Mexico-IO-Data'!$AS34","v":362.03168183681197},{"$f":"(BQ92*'Default-Data'!$F$19/biopower_dollar_index)/'Mexico-IO-Data'!$AS34","v":1031.2770479428577},181750.77504991397,544445.5366363565,{"$f":"BH92*'Mexico-IO-Data'!AQ34","v":0},{"$f":"BU92*'Mexico-IO-Data'!$AQ34","v":133665.04115095924},{"$f":"BV92*'Mexico-IO-Data'!$AQ34","v":400401.7866717159},{"$f":"BH92*'Mexico-IO-Data'!AR34","v":0},{"$f":"BU92*'Mexico-IO-Data'!$AR34","v":32694.85515061584},{"$f":"BV92*'Mexico-IO-Data'!$AR34","v":97939.433561350379},{"$f":"(BZ92*'Default-Data'!$F$19/biopower_dollar_index)/'Mexico-IO-Data'!$AS34","v":0},{"$f":"(CA92*'Default-Data'!$F$19/biopower_dollar_index)/'Mexico-IO-Data'!$AS34","v":22.716824637742313},{"$f":"(CB92*'Default-Data'!$F$19/biopower_dollar_index)/'Mexico-IO-Data'!$AS34","v":68.04963432575731},null,"TTL_C55: Hotels and restaurants",0,0,null,10447850.416646054,9227411.4817125145,{"$f":"CH92*'Philippines-IO-Data'!AN34","v":0},{"$f":"CK92*'Philippines-IO-Data'!$AN34","v":3916511.3765092525},{"$f":"CL92*'Philippines-IO-Data'!$AN34","v":3459014.1132074618},{"$f":"CH92*'Philippines-IO-Data'!AO34","v":0},{"$f":"CK92*'Philippines-IO-Data'!$AO34","v":1475381.0572051471},{"$f":"CL92*'Philippines-IO-Data'!$AO34","v":1303038.191039324},{"$f":"(CP92*'Default-Data'!$F$19/biopower_dollar_index)/'Philippines-IO-Data'!$AP34","v":0},{"$f":"(CQ92*'Default-Data'!$F$19/biopower_dollar_index)/'Philippines-IO-Data'!$AP34","v":458.95058486721263},{"$f":"(CR92*'Default-Data'!$F$19/biopower_dollar_index)/'Philippines-IO-Data'!$AP34","v":405.33944567153156},152506.56898564185,922531.76558402053,{"$f":"CI92*'Philippines-IO-Data'!AN34","v":0},{"$f":"CV92*'Philippines-IO-Data'!$AN34","v":57169.052829567721},{"$f":"CW92*'Philippines-IO-Data'!$AN34","v":345822.92155948136},{"$f":"CI92*'Philippines-IO-Data'!AO34","v":0},{"$f":"CV92*'Philippines-IO-Data'!$AO34","v":21536.037941572737},{"$f":"CW92*'Philippines-IO-Data'!$AO34","v":130274.2513851587},{"$f":"(DA92*'Default-Data'!$F$19/biopower_dollar_index)/'Philippines-IO-Data'!$AP34","v":0},{"$f":"(DB92*'Default-Data'!$F$19/biopower_dollar_index)/'Philippines-IO-Data'!$AP34","v":6.6992707821061259},{"$f":"(DC92*'Default-Data'!$F$19/biopower_dollar_index)/'Philippines-IO-Data'!$AP34","v":40.524746860731405},null,"DOM_C55: Hotels and restaurants",0,0,null,3989422.4045419618,4670559.8931705393,{"$f":"DI92*'SouthAfrica-IO-Data'!AR34","v":0},{"$f":"DL92*'Mexico-IO-Data'!$AQ34","v":2933942.4259688323},{"$f":"DM92*'Mexico-IO-Data'!$AQ34","v":3434871.6265293057},{"$f":"DI92*'SouthAfrica-IO-Data'!AS34","v":0},{"$f":"DL92*'Mexico-IO-Data'!$AR34","v":717650.79194462963},{"$f":"DM92*'Mexico-IO-Data'!$AR34","v":840179.52131180675},{"$f":"(DQ92*'Default-Data'!$F$19/biopower_dollar_index)/'SouthAfrica-IO-Data'!$AT34","v":0},{"$f":"(DR92*'Default-Data'!$F$19/biopower_dollar_index)/'SouthAfrica-IO-Data'!$AT34","v":74.747987284333632},{"$f":"(DS92*'Default-Data'!$F$19/biopower_dollar_index)/'SouthAfrica-IO-Data'!$AT34","v":87.510149616636824},170173.24553098931,399110.48145339702,{"$f":"DJ92*'SouthAfrica-IO-Data'!AR34","v":0},{"$f":"DW92*'SouthAfrica-IO-Data'!$AR34","v":76418.520075935943},{"$f":"DX92*'SouthAfrica-IO-Data'!$AR34","v":179225.77808453911},{"$f":"DJ92*'SouthAfrica-IO-Data'!AS34","v":0},{"$f":"DW92*'SouthAfrica-IO-Data'!$AS34","v":29313.049382894562},{"$f":"DX92*'SouthAfrica-IO-Data'!$AS34","v":68748.440541106},{"$f":"(EB92*'Default-Data'!$F$19/biopower_dollar_index)/'SouthAfrica-IO-Data'!$AT34","v":0},{"$f":"(EC92*'Default-Data'!$F$19/biopower_dollar_index)/'SouthAfrica-IO-Data'!$AT34","v":3.0531443246936458},{"$f":"(ED92*'Default-Data'!$F$19/biopower_dollar_index)/'SouthAfrica-IO-Data'!$AT34","v":7.1605962357536734},null,"CONSTR",{"$f":"'Biopower-Inputs'!B21*'Biopower-Inputs'!C21","v":221281472.18588102},0,null,264994596.79951656,6826531.3261222839,{"$f":"EJ92*'Zambia-IO-Data'!BO32","v":13424224.557488877},{"$f":"EM92*'Zambia-IO-Data'!$BO32","v":16076117.619868727},{"$f":"EN92*'Zambia-IO-Data'!$BO32","v":414137.20075767406},{"$f":"EJ92*'Zambia-IO-Data'!BN32","v":5904660.7117307177},{"$f":"EM92*'Zambia-IO-Data'!$BN32","v":7071098.9450966995},{"$f":"EN92*'Zambia-IO-Data'!$BN32","v":182158.72716579449},{"$f":"(ER92*'Default-Data'!$F$19/biopower_dollar_index)/'Zambia-IO-Data'!$BP32","v":20541.153988888665},{"$f":"(ES92*'Default-Data'!$F$19/biopower_dollar_index)/'Zambia-IO-Data'!$BP32","v":24598.963326264628},{"$f":"(ET92*'Default-Data'!$F$19/biopower_dollar_index)/'Zambia-IO-Data'!$BP32","v":633.69440647095132},3098055.0964222029,611059.66881361976,{"$f":"EK92*'Zambia-IO-Data'!BO32","v":0},{"$f":"EX92*'Zambia-IO-Data'!$BO32","v":187946.08918232837},{"$f":"EY92*'Zambia-IO-Data'!$BO32","v":37070.443047704073},{"$f":"EK92*'Zambia-IO-Data'!BN32","v":0},{"$f":"EX92*'Zambia-IO-Data'!$BN32","v":82668.30489655651},{"$f":"EY92*'Zambia-IO-Data'!$BN32","v":16305.477287931662},{"$f":"(FC92*'Default-Data'!$F$19/biopower_dollar_index)/'Zambia-IO-Data'!$BP32","v":0},{"$f":"(FD92*'Default-Data'!$F$19/biopower_dollar_index)/'Zambia-IO-Data'!$BP32","v":287.58678335352391},{"$f":"(FE92*'Default-Data'!$F$19/biopower_dollar_index)/'Zambia-IO-Data'!$BP32","v":56.723550460456281},null,"TTL_C55: Hotels and restaurants",0,0,null,11923761.522435222,11248478.151544433,{"$f":"FK92*CustomRegion1!C30","v":0},{"$f":"FN92*CustomRegion1!$C30","v":4469775.6754821735},{"$f":"FO92*CustomRegion1!$C30","v":4216637.001114523},{"$f":"FK92*CustomRegion1!D30","v":0},{"$f":"FN92*CustomRegion1!$D30","v":1683800.1291446423},{"$f":"FO92*CustomRegion1!$D30","v":1588440.7725376077},{"$f":"(FS92*'Default-Data'!$F$19/biopower_dollar_index)/CustomRegion1!$E30","v":0},{"$f":"(FT92*'Default-Data'!$F$19/biopower_dollar_index)/CustomRegion1!$E30","v":523.78404229638215},{"$f":"(FU92*'Default-Data'!$F$19/biopower_dollar_index)/CustomRegion1!$E30","v":494.12036166714506},258814.27707221577,1083997.1096492198,{"$f":"FL92*CustomRegion1!C30","v":0},{"$f":"FY92*CustomRegion1!$C30","v":97019.867258182872},{"$f":"FZ92*CustomRegion1!$C30","v":406350.2866848273},{"$f":"FL92*CustomRegion1!D30","v":0},{"$f":"FY92*CustomRegion1!$D30","v":36548.157419846764},{"$f":"FZ92*CustomRegion1!$D30","v":153075.3923403697},{"$f":"(GD92*'Default-Data'!$C$58/biopower_dollar_index)/CustomRegion1!$E30","v":0},{"$f":"(GE92*'Default-Data'!$C$58/biopower_dollar_index)/CustomRegion1!$E30","v":11.369129447434192},{"$f":"(GF92*'Default-Data'!$C$58/biopower_dollar_index)/CustomRegion1!$E30","v":47.617556495184218},null,"C45 Construction",0,0,null,1194365.212096516,763416.16643471783,{"$f":"GL92*CustomRegion2!C34","v":0},{"$f":"GO92*CustomRegion2!$C34","v":582005.26880010485},{"$f":"GP92*CustomRegion2!$C34","v":372007.00979247782},{"$f":"GL92*CustomRegion2!D34","v":0},{"$f":"GO92*CustomRegion2!$D34","v":240174.08343234297},{"$f":"GP92*CustomRegion2!$D34","v":153514.83465350186},{"$f":"(GT92*'Default-Data'!$C$59/biopower_dollar_index)/CustomRegion2!$E34","v":0},{"$f":"(GU92*'Default-Data'!$C$59/biopower_dollar_index)/CustomRegion2!$E34","v":81.446939782223765},{"$f":"(GV92*'Default-Data'!$C$59/biopower_dollar_index)/CustomRegion2!$E34","v":52.059378410093892},101124.11847919076,34736.697095006195,{"$f":"GM92*CustomRegion2!C34","v":0},{"$f":"GZ92*CustomRegion2!$C34","v":49277.029472706243},{"$f":"HA92*CustomRegion2!$C34","v":16926.933675939301},{"$f":"GM92*CustomRegion2!D34","v":0},{"$f":"GZ92*CustomRegion2!$D34","v":20334.979805725154},{"$f":"HA92*CustomRegion2!$D34","v":6985.1786553758575},{"$f":"(HE92*'Default-Data'!$C$59/biopower_dollar_index)/CustomRegion2!$E34","v":0},{"$f":"(HF92*'Default-Data'!$C$59/biopower_dollar_index)/CustomRegion2!$E34","v":6.8959225410188374},{"$f":"(HG92*'Default-Data'!$C$59/biopower_dollar_index)/CustomRegion2!$E34","v":2.368787744214448},null,"CONSTR",221281472.18588102,0,null,264994596.79951656,6826531.3261222839,{"$f":"HM92*CustomRegion3!D33","v":13424224.557488877},{"$f":"HP92*CustomRegion3!$D33","v":16076117.619868727},{"$f":"HQ92*CustomRegion3!$D33","v":414137.20075767406},{"$f":"HM92*CustomRegion3!E33","v":5904660.7117307177},{"$f":"HP92*CustomRegion3!$E33","v":7071098.9450966995},{"$f":"HQ92*CustomRegion3!$E33","v":182158.72716579449},{"$f":"(HU92*'Default-Data'!$C$60/biopower_dollar_index)/CustomRegion3!$F33","v":20541.153988888665},{"$f":"(HV92*'Default-Data'!$C$60/biopower_dollar_index)/CustomRegion3!$F33","v":24598.963326264628},{"$f":"(HW92*'Default-Data'!$C$60/biopower_dollar_index)/CustomRegion3!$F33","v":633.69440647095132},3098055.0964222029,611059.66881361976,{"$f":"HN92*CustomRegion3!D33","v":0},{"$f":"IA92*CustomRegion3!$D33","v":187946.08918232837},{"$f":"IB92*CustomRegion3!$D33","v":37070.443047704073},{"$f":"HN92*CustomRegion3!E33","v":0},{"$f":"IA92*CustomRegion3!$E33","v":82668.30489655651},{"$f":"IB92*CustomRegion3!$E33","v":16305.477287931662},{"$f":"(IF92*'Default-Data'!$C$60/biopower_dollar_index)/CustomRegion3!$F33","v":0},{"$f":"(IG92*'Default-Data'!$C$60/biopower_dollar_index)/CustomRegion3!$F33","v":287.58678335352391},{"$f":"(IH92*'Default-Data'!$C$60/biopower_dollar_index)/CustomRegion3!$F33","v":56.723550460456281}]
[null,null,null,"Final Demand",null,null,"Indirect","Induced","Direct","Indirect","Induced","Direct","Indirect","Induced","Direct","Indirect","Induced",null,null,null,null,null,null,null,null,null,null,null,null,92,"TTL_C60T63: Transport and storage",0,{"$f":"'Biopower-Inputs'!B42*'Biopower-Inputs'!C42","v":0},null,26509900.535632256,19777681.714831736,{"$f":"'Colombia-IO-Data'!$AN35*Calculations!AF93","v":0},{"$f":"'Colombia-IO-Data'!$AN35*AI93","v":11564056.431370774},{"$f":"'Colombia-IO-Data'!$AN35*AJ93","v":8627351.3974370491},{"$f":"'Colombia-IO-Data'!$AO35*Calculations!AK93","v":0},{"$f":"'Colombia-IO-Data'!$AO35*Calculations!AL93","v":2924851.4211484343},{"$f":"'Colombia-IO-Data'!$AO35*Calculations!AM93","v":2182082.1391952978},{"$f":"(AN93*'Default-Data'!$F$19/biopower_dollar_index)/'Colombia-IO-Data'!$AP35","v":0},{"$f":"(AO93*'Default-Data'!$F$19/biopower_dollar_index)/'Colombia-IO-Data'!$AP35","v":652.1579697576459},{"$f":"(AP93*'Default-Data'!$F$19/biopower_dollar_index)/'Colombia-IO-Data'!$AP35","v":486.54172565909869},2653621.3351570703,1902474.7399741346,{"$f":"'Colombia-IO-Data'!$AN35*AG93","v":0},{"$f":"'Colombia-IO-Data'!$AN35*AT93","v":1157553.4516245951},{"$f":"'Colombia-IO-Data'!$AN35*AU93","v":829890.9014293527},{"$f":"'Colombia-IO-Data'!$AO35*AV93","v":0},{"$f":"'Colombia-IO-Data'!$AO35*AW93","v":292775.45281211875},{"$f":"'Colombia-IO-Data'!$AO35*AX93","v":209901.04958836408},{"$f":"(AY93*'Default-Data'!$F$19/biopower_dollar_index)/'Colombia-IO-Data'!$AP35","v":0},{"$f":"(AZ93*'Default-Data'!$F$19/biopower_dollar_index)/'Colombia-IO-Data'!$AP35","v":65.280527933913461},{"$f":"(BA93*'Default-Data'!$F$19/biopower_dollar_index)/'Colombia-IO-Data'!$AP35","v":46.801913204807363},null,"DOM_C60T63: Transport and storage",0,0,null,11194496.928372947,27058137.360572606,{"$f":"BG93*'Mexico-IO-Data'!AQ35","v":0},{"$f":"BJ93*'Mexico-IO-Data'!$AQ35","v":8182002.8806346217},{"$f":"BK93*'Mexico-IO-Data'!$AQ35","v":19776659.839683391},{"$f":"BG93*'Mexico-IO-Data'!AR35","v":0},{"$f":"BJ93*'Mexico-IO-Data'!$AR35","v":2639622.1037868205},{"$f":"BK93*'Mexico-IO-Data'!$AR35","v":6380211.4486486679},{"$f":"(BO93*'Default-Data'!$F$19/biopower_dollar_index)/'Mexico-IO-Data'!$AS35","v":0},{"$f":"(BP93*'Default-Data'!$F$19/biopower_dollar_index)/'Mexico-IO-Data'!$AS35","v":361.02649606890003},{"$f":"(BQ93*'Default-Data'!$F$19/biopower_dollar_index)/'Mexico-IO-Data'!$AS35","v":872.63452604817917},2243682.8874250925,1785452.6643407885,{"$f":"BH93*'Mexico-IO-Data'!AQ35","v":0},{"$f":"BU93*'Mexico-IO-Data'!$AQ35","v":1639896.8140867506},{"$f":"BV93*'Mexico-IO-Data'!$AQ35","v":1304978.5922801946},{"$f":"BH93*'Mexico-IO-Data'!AR35","v":0},{"$f":"BU93*'Mexico-IO-Data'!$AR35","v":529052.35326160444},{"$f":"BV93*'Mexico-IO-Data'!$AR35","v":421003.31513012532},{"$f":"(BZ93*'Default-Data'!$F$19/biopower_dollar_index)/'Mexico-IO-Data'!$AS35","v":0},{"$f":"(CA93*'Default-Data'!$F$19/biopower_dollar_index)/'Mexico-IO-Data'!$AS35","v":72.359568841702853},{"$f":"(CB93*'Default-Data'!$F$19/biopower_dollar_index)/'Mexico-IO-Data'!$AS35","v":57.581481635863462},null,"TTL_C60T63: Transport and storage",0,{"$f":"'Biopower-Inputs'!B42*'Biopower-Inputs'!C42","v":0},null,4166575.6430944195,7652287.120440376,{"$f":"CH93*'Philippines-IO-Data'!AN35","v":0},{"$f":"CK93*'Philippines-IO-Data'!$AN35","v":1841726.5079360292},{"$f":"CL93*'Philippines-IO-Data'!$AN35","v":3382494.7014728021},{"$f":"CH93*'Philippines-IO-Data'!AO35","v":0},{"$f":"CK93*'Philippines-IO-Data'!$AO35","v":685363.04827541451},{"$f":"CL93*'Philippines-IO-Data'!$AO35","v":1258730.2563043521},{"$f":"(CP93*'Default-Data'!$F$19/biopower_dollar_index)/'Philippines-IO-Data'!$AP35","v":0},{"$f":"(CQ93*'Default-Data'!$F$19/biopower_dollar_index)/'Philippines-IO-Data'!$AP35","v":213.19764837447028},{"$f":"(CR93*'Default-Data'!$F$19/biopower_dollar_index)/'Philippines-IO-Data'!$AP35","v":391.55646231169703},369908.05308035674,765055.07118292665,{"$f":"CI93*'Philippines-IO-Data'!AN35","v":0},{"$f":"CV93*'Philippines-IO-Data'!$AN35","v":163508.24399077456},{"$f":"CW93*'Philippines-IO-Data'!$AN35","v":338172.71671612648},{"$f":"CI93*'Philippines-IO-Data'!AO35","v":0},{"$f":"CV93*'Philippines-IO-Data'!$AO35","v":60846.443832348785},{"$f":"CW93*'Philippines-IO-Data'!$AO35","v":125844.46331930248},{"$f":"(DA93*'Default-Data'!$F$19/biopower_dollar_index)/'Philippines-IO-Data'!$AP35","v":0},{"$f":"(DB93*'Default-Data'!$F$19/biopower_dollar_index)/'Philippines-IO-Data'!$AP35","v":18.927659974736631},{"$f":"(DC93*'Default-Data'!$F$19/biopower_dollar_index)/'Philippines-IO-Data'!$AP35","v":39.146761279491955},null,"DOM_C60T63: Transport and storage",0,0,null,42639138.353643194,33361436.593404695,{"$f":"DI93*'SouthAfrica-IO-Data'!AR35","v":0},{"$f":"DL93*'Mexico-IO-Data'!$AQ35","v":31164737.019405611},{"$f":"DM93*'Mexico-IO-Data'!$AQ35","v":24383710.322659411},{"$f":"DI93*'SouthAfrica-IO-Data'!AS35","v":0},{"$f":"DL93*'Mexico-IO-Data'!$AR35","v":10054155.430552214},{"$f":"DM93*'Mexico-IO-Data'!$AR35","v":7866506.7317886818},{"$f":"(DQ93*'Default-Data'!$F$19/biopower_dollar_index)/'SouthAfrica-IO-Data'!$AT35","v":0},{"$f":"(DR93*'Default-Data'!$F$19/biopower_dollar_index)/'SouthAfrica-IO-Data'!$AT35","v":563.33473421980295},{"$f":"(DS93*'Default-Data'!$F$19/biopower_dollar_index)/'SouthAfrica-IO-Data'!$AT35","v":440.76068940850593},6492974.2583720526,2850814.318908588,{"$f":"DJ93*'SouthAfrica-IO-Data'!AR35","v":0},{"$f":"DW93*'SouthAfrica-IO-Data'!$AR35","v":3433539.1388388439},{"$f":"DX93*'SouthAfrica-IO-Data'!$AR35","v":1507534.4752697395},{"$f":"DJ93*'SouthAfrica-IO-Data'!AS35","v":0},{"$f":"DW93*'SouthAfrica-IO-Data'!$AS35","v":1196074.9085419783},{"$f":"DX93*'SouthAfrica-IO-Data'!$AS35","v":525150.31479790108},{"$f":"(EB93*'Default-Data'!$F$19/biopower_dollar_index)/'SouthAfrica-IO-Data'!$AT35","v":0},{"$f":"(EC93*'Default-Data'!$F$19/biopower_dollar_index)/'SouthAfrica-IO-Data'!$AT35","v":67.016125358772499},{"$f":"(ED93*'Default-Data'!$F$19/biopower_dollar_index)/'SouthAfrica-IO-Data'!$AT35","v":29.424193315447184},null,"TRADETRANS",0,{"$f":"'Biopower-Inputs'!B41*'Biopower-Inputs'!B39*0.1+'Biopower-Inputs'!B42*'Biopower-Inputs'!C42","v":1493970.0886627771},null,31666560.325130004,24736887.214706417,{"$f":"EJ93*'Zambia-IO-Data'!BO33","v":0},{"$f":"EM93*'Zambia-IO-Data'!$BO33","v":7158904.1138106547},{"$f":"EN93*'Zambia-IO-Data'!$BO33","v":5592303.1054211892},{"$f":"EJ93*'Zambia-IO-Data'!BN33","v":0},{"$f":"EM93*'Zambia-IO-Data'!$BN33","v":2635608.5059987335},{"$f":"EN93*'Zambia-IO-Data'!$BN33","v":2058851.6619935068},{"$f":"(ER93*'Default-Data'!$F$19/biopower_dollar_index)/'Zambia-IO-Data'!$BP33","v":0},{"$f":"(ES93*'Default-Data'!$F$19/biopower_dollar_index)/'Zambia-IO-Data'!$BP33","v":6562.1431353668659},{"$f":"(ET93*'Default-Data'!$F$19/biopower_dollar_index)/'Zambia-IO-Data'!$BP33","v":5126.1328341212475},4853976.3299968131,2322485.6798018962,{"$f":"EK93*'Zambia-IO-Data'!BO33","v":337743.9325214781},{"$f":"EX93*'Zambia-IO-Data'!$BO33","v":1097345.2992801822},{"$f":"EY93*'Zambia-IO-Data'!$BO33","v":525047.62489804369},{"$f":"EK93*'Zambia-IO-Data'!BN33","v":124343.16303885248},{"$f":"EX93*'Zambia-IO-Data'!$BN33","v":403996.55573275767},{"$f":"EY93*'Zambia-IO-Data'!$BN33","v":193300.53374595553},{"$f":"(FC93*'Default-Data'!$F$19/biopower_dollar_index)/'Zambia-IO-Data'!$BP33","v":309.58984686385014},{"$f":"(FD93*'Default-Data'!$F$19/biopower_dollar_index)/'Zambia-IO-Data'!$BP33","v":1005.8714027062894},{"$f":"(FE93*'Default-Data'!$F$19/biopower_dollar_index)/'Zambia-IO-Data'!$BP33","v":481.28004128712689},null,"TTL_C60T63: Transport and storage",0,0,null,10053566.56748005,13582653.788856849,{"$f":"FK93*CustomRegion1!C31","v":0},{"$f":"FN93*CustomRegion1!$C31","v":4443917.8914980888},{"$f":"FO93*CustomRegion1!$C31","v":6003859.2057042178},{"$f":"FK93*CustomRegion1!D31","v":0},{"$f":"FN93*CustomRegion1!$D31","v":1653718.4534613714},{"$f":"FO93*CustomRegion1!$D31","v":2234220.5690731015},{"$f":"(FS93*'Default-Data'!$F$19/biopower_dollar_index)/CustomRegion1!$E31","v":0},{"$f":"(FT93*'Default-Data'!$F$19/biopower_dollar_index)/CustomRegion1!$E31","v":514.42645797523323},{"$f":"(FU93*'Default-Data'!$F$19/biopower_dollar_index)/CustomRegion1!$E31","v":695.00474598805852},833927.25389958208,1308937.7291865284,{"$f":"FL93*CustomRegion1!C31","v":0},{"$f":"FY93*CustomRegion1!$C31","v":368615.87566342793},{"$f":"FZ93*CustomRegion1!$C31","v":578581.91464155097},{"$f":"FL93*CustomRegion1!D31","v":0},{"$f":"FY93*CustomRegion1!$D31","v":137173.29858629216},{"$f":"FZ93*CustomRegion1!$D31","v":215308.11604604023},{"$f":"(GD93*'Default-Data'!$C$58/biopower_dollar_index)/CustomRegion1!$E31","v":0},{"$f":"(GE93*'Default-Data'!$C$58/biopower_dollar_index)/CustomRegion1!$E31","v":42.67085124001953},{"$f":"(GF93*'Default-Data'!$C$58/biopower_dollar_index)/CustomRegion1!$E31","v":66.97645012006403},null,"C50T52 Wholesale and retail trade; repairs",0,0,null,52216173.244955301,54993760.427683353,{"$f":"GL93*CustomRegion2!C35","v":0},{"$f":"GO93*CustomRegion2!$C35","v":38309050.086873569},{"$f":"GP93*CustomRegion2!$C35","v":40346861.743515171},{"$f":"GL93*CustomRegion2!D35","v":0},{"$f":"GO93*CustomRegion2!$D35","v":9330144.7054221425},{"$f":"GP93*CustomRegion2!$D35","v":9826452.4341636822},{"$f":"(GT93*'Default-Data'!$C$59/biopower_dollar_index)/CustomRegion2!$E35","v":0},{"$f":"(GU93*'Default-Data'!$C$59/biopower_dollar_index)/CustomRegion2!$E35","v":1900.2489374816355},{"$f":"(GV93*'Default-Data'!$C$59/biopower_dollar_index)/CustomRegion2!$E35","v":2001.3307817596726},2958748.0736938897,2502306.9749926911,{"$f":"GM93*CustomRegion2!C35","v":0},{"$f":"GZ93*CustomRegion2!$C35","v":2170722.6153446729},{"$f":"HA93*CustomRegion2!$C35","v":1835848.8813040201},{"$f":"GM93*CustomRegion2!D35","v":0},{"$f":"GZ93*CustomRegion2!$D35","v":528678.10792932881},{"$f":"HA93*CustomRegion2!$D35","v":447119.82367119443},{"$f":"(HE93*'Default-Data'!$C$59/biopower_dollar_index)/CustomRegion2!$E35","v":0},{"$f":"(HF93*'Default-Data'!$C$59/biopower_dollar_index)/CustomRegion2!$E35","v":107.67464434701438},{"$f":"(HG93*'Default-Data'!$C$59/biopower_dollar_index)/CustomRegion2!$E35","v":91.063857708916586},null,"TRADETRANS",0,1493970.0886627771,null,31666560.325130004,24736887.214706417,{"$f":"HM93*CustomRegion3!D34","v":0},{"$f":"HP93*CustomRegion3!$D34","v":7158904.1138106547},{"$f":"HQ93*CustomRegion3!$D34","v":5592303.1054211892},{"$f":"HM93*CustomRegion3!E34","v":0},{"$f":"HP93*CustomRegion3!$E34","v":2635608.5059987335},{"$f":"HQ93*CustomRegion3!$E34","v":2058851.6619935068},{"$f":"(HU93*'Default-Data'!$C$60/biopower_dollar_index)/CustomRegion3!$F34","v":0},{"$f":"(HV93*'Default-Data'!$C$60/biopower_dollar_index)/CustomRegion3!$F34","v":6562.1431353668659},{"$f":"(HW93*'Default-Data'!$C$60/biopower_dollar_index)/CustomRegion3!$F34","v":5126.1328341212475},4853976.3299968131,2322485.6798018962,{"$f":"HN93*CustomRegion3!D34","v":337743.9325214781},{"$f":"IA93*CustomRegion3!$D34","v":1097345.2992801822},{"$f":"IB93*CustomRegion3!$D34","v":525047.62489804369},{"$f":"HN93*CustomRegion3!E34","v":124343.16303885248},{"$f":"IA93*CustomRegion3!$E34","v":403996.55573275767},{"$f":"IB93*CustomRegion3!$E34","v":193300.53374595553},{"$f":"(IF93*'Default-Data'!$C$60/biopower_dollar_index)/CustomRegion3!$F34","v":309.58984686385014},{"$f":"(IG93*'Default-Data'!$C$60/biopower_dollar_index)/CustomRegion3!$F34","v":1005.8714027062894},{"$f":"(IH93*'Default-Data'!$C$60/biopower_dollar_index)/CustomRegion3!$F34","v":481.28004128712689}]
[null,306,"Agriculture",{"$f":"HLOOKUP(general_country&D$1,$AF$2:$IK$320,$B94,FALSE)","v":0},null,null,{"$f":"HLOOKUP(general_country&G$1,$AF$2:$IK$320,$B94,FALSE)","v":738.78799823583245},8262.0722551871713,0,450.56866797935197,5038.8350916070558,0,74.224313943769587,830.07120629937913,0,7.2697102848744213E-2,0.81299197863710826,null,null,null,null,null,null,null,null,null,null,null,null,93,"TTL_C64: Post and telecommunications",0,0,null,9779470.1108506694,11971656.970461391,{"$f":"'Colombia-IO-Data'!$AN36*Calculations!AF94","v":0},{"$f":"'Colombia-IO-Data'!$AN36*AI94","v":5346731.614210329},{"$f":"'Colombia-IO-Data'!$AN36*AJ94","v":6545266.3664697791},{"$f":"'Colombia-IO-Data'!$AO36*Calculations!AK94","v":0},{"$f":"'Colombia-IO-Data'!$AO36*Calculations!AL94","v":1297824.3721965468},{"$f":"'Colombia-IO-Data'!$AO36*Calculations!AM94","v":1588747.4490670506},{"$f":"(AN94*'Default-Data'!$F$19/biopower_dollar_index)/'Colombia-IO-Data'!$AP36","v":0},{"$f":"(AO94*'Default-Data'!$F$19/biopower_dollar_index)/'Colombia-IO-Data'!$AP36","v":289.37760788592817},{"$f":"(AP94*'Default-Data'!$F$19/biopower_dollar_index)/'Colombia-IO-Data'!$AP36","v":354.24510911886921},557044.19464877388,1151589.7217042379,{"$f":"'Colombia-IO-Data'!$AN36*AG94","v":0},{"$f":"'Colombia-IO-Data'!$AN36*AT94","v":304552.88193338091},{"$f":"'Colombia-IO-Data'!$AN36*AU94","v":629608.87469803146},{"$f":"'Colombia-IO-Data'!$AO36*AV94","v":0},{"$f":"'Colombia-IO-Data'!$AO36*AW94","v":73924.816376670773},{"$f":"'Colombia-IO-Data'!$AO36*AX94","v":152826.39965743438},{"$f":"(AY94*'Default-Data'!$F$19/biopower_dollar_index)/'Colombia-IO-Data'!$AP36","v":0},{"$f":"(AZ94*'Default-Data'!$F$19/biopower_dollar_index)/'Colombia-IO-Data'!$AP36","v":16.483113574359486},{"$f":"(BA94*'Default-Data'!$F$19/biopower_dollar_index)/'Colombia-IO-Data'!$AP36","v":34.075903413524188},null,"DOM_C64: Post and telecommunications",0,0,null,8684689.1067035403,10546176.848651422,{"$f":"BG94*'Mexico-IO-Data'!AQ36","v":0},{"$f":"BJ94*'Mexico-IO-Data'!$AQ36","v":5298883.5143031776},{"$f":"BK94*'Mexico-IO-Data'!$AQ36","v":6434653.2104540048},{"$f":"BG94*'Mexico-IO-Data'!AR36","v":0},{"$f":"BJ94*'Mexico-IO-Data'!$AR36","v":1354593.858498683},{"$f":"BK94*'Mexico-IO-Data'!$AR36","v":1644939.2965370854},{"$f":"(BO94*'Default-Data'!$F$19/biopower_dollar_index)/'Mexico-IO-Data'!$AS36","v":0},{"$f":"(BP94*'Default-Data'!$F$19/biopower_dollar_index)/'Mexico-IO-Data'!$AS36","v":109.33755696407228},{"$f":"(BQ94*'Default-Data'!$F$19/biopower_dollar_index)/'Mexico-IO-Data'!$AS36","v":132.77311343851736},327505.76464484225,695897.84773844969,{"$f":"BH94*'Mexico-IO-Data'!AQ36","v":0},{"$f":"BU94*'Mexico-IO-Data'!$AQ36","v":199824.6426318564},{"$f":"BV94*'Mexico-IO-Data'!$AQ36","v":424595.69798233069},{"$f":"BH94*'Mexico-IO-Data'!AR36","v":0},{"$f":"BU94*'Mexico-IO-Data'!$AR36","v":51082.69184539761},{"$f":"BV94*'Mexico-IO-Data'!$AR36","v":108542.62473959323},{"$f":"(BZ94*'Default-Data'!$F$19/biopower_dollar_index)/'Mexico-IO-Data'!$AS36","v":0},{"$f":"(CA94*'Default-Data'!$F$19/biopower_dollar_index)/'Mexico-IO-Data'!$AS36","v":4.1231965540686399},{"$f":"(CB94*'Default-Data'!$F$19/biopower_dollar_index)/'Mexico-IO-Data'!$AS36","v":8.7611392455657846},null,"TTL_C64: Post and telecommunications",0,0,null,4805490.3325330252,6774459.6642938787,{"$f":"CH94*'Philippines-IO-Data'!AN36","v":0},{"$f":"CK94*'Philippines-IO-Data'!$AN36","v":2910675.104760624},{"$f":"CL94*'Philippines-IO-Data'!$AN36","v":4103275.5720208692},{"$f":"CH94*'Philippines-IO-Data'!AO36","v":0},{"$f":"CK94*'Philippines-IO-Data'!$AO36","v":516129.53985306027},{"$f":"CL94*'Philippines-IO-Data'!$AO36","v":727604.99081933952},{"$f":"(CP94*'Default-Data'!$F$19/biopower_dollar_index)/'Philippines-IO-Data'!$AP36","v":0},{"$f":"(CQ94*'Default-Data'!$F$19/biopower_dollar_index)/'Philippines-IO-Data'!$AP36","v":130.69993756263722},{"$f":"(CR94*'Default-Data'!$F$19/biopower_dollar_index)/'Philippines-IO-Data'!$AP36","v":184.25205210580438},140342.06666371302,677292.24467389751,{"$f":"CI94*'Philippines-IO-Data'!AN36","v":0},{"$f":"CV94*'Philippines-IO-Data'!$AN36","v":85004.886353273716},{"$f":"CW94*'Philippines-IO-Data'!$AN36","v":410234.44826713874},{"$f":"CI94*'Philippines-IO-Data'!AO36","v":0},{"$f":"CV94*'Philippines-IO-Data'!$AO36","v":15073.318491307549},{"$f":"CW94*'Philippines-IO-Data'!$AO36","v":72743.988729516946},{"$f":"(DA94*'Default-Data'!$F$19/biopower_dollar_index)/'Philippines-IO-Data'!$AP36","v":0},{"$f":"(DB94*'Default-Data'!$F$19/biopower_dollar_index)/'Philippines-IO-Data'!$AP36","v":3.8170297058302749},{"$f":"(DC94*'Default-Data'!$F$19/biopower_dollar_index)/'Philippines-IO-Data'!$AP36","v":18.421024279509037},null,"DOM_C64: Post and telecommunications",0,0,null,32206312.520175181,19002448.512976609,{"$f":"DI94*'SouthAfrica-IO-Data'!AR36","v":0},{"$f":"DL94*'Mexico-IO-Data'!$AQ36","v":19650386.602546904},{"$f":"DM94*'Mexico-IO-Data'!$AQ36","v":11594169.914393907},{"$f":"DI94*'SouthAfrica-IO-Data'!AS36","v":0},{"$f":"DL94*'Mexico-IO-Data'!$AR36","v":5023377.6487225229},{"$f":"DM94*'Mexico-IO-Data'!$AR36","v":2963905.7582667964},{"$f":"(DQ94*'Default-Data'!$F$19/biopower_dollar_index)/'SouthAfrica-IO-Data'!$AT36","v":0},{"$f":"(DR94*'Default-Data'!$F$19/biopower_dollar_index)/'SouthAfrica-IO-Data'!$AT36","v":281.46005223169453},{"$f":"(DS94*'Default-Data'!$F$19/biopower_dollar_index)/'SouthAfrica-IO-Data'!$AT36","v":166.06775915876847},884276.27447670954,1623804.5434118484,{"$f":"DJ94*'SouthAfrica-IO-Data'!AR36","v":0},{"$f":"DW94*'SouthAfrica-IO-Data'!$AR36","v":359087.90414915903},{"$f":"DX94*'SouthAfrica-IO-Data'!$AR36","v":659396.37539941759},{"$f":"DJ94*'SouthAfrica-IO-Data'!AS36","v":0},{"$f":"DW94*'SouthAfrica-IO-Data'!$AS36","v":117509.50409212406},{"$f":"DX94*'SouthAfrica-IO-Data'!$AS36","v":215783.76820273939},{"$f":"(EB94*'Default-Data'!$F$19/biopower_dollar_index)/'SouthAfrica-IO-Data'!$AT36","v":0},{"$f":"(EC94*'Default-Data'!$F$19/biopower_dollar_index)/'SouthAfrica-IO-Data'!$AT36","v":6.5840622529944053},{"$f":"(ED94*'Default-Data'!$F$19/biopower_dollar_index)/'SouthAfrica-IO-Data'!$AT36","v":12.090373234140593},null,"TOURISM",0,0,null,106490.35220557262,82886.828547127021,{"$f":"EJ94*'Zambia-IO-Data'!BO34","v":0},{"$f":"EM94*'Zambia-IO-Data'!$BO34","v":46544.694548352018},{"$f":"EN94*'Zambia-IO-Data'!$BO34","v":36228.090497439131},{"$f":"EJ94*'Zambia-IO-Data'!BN34","v":0},{"$f":"EM94*'Zambia-IO-Data'!$BN34","v":32620.35590682516},{"$f":"EN94*'Zambia-IO-Data'!$BN34","v":25390.073290167875},{"$f":"(ER94*'Default-Data'!$F$19/biopower_dollar_index)/'Zambia-IO-Data'!$BP34","v":0},{"$f":"(ES94*'Default-Data'!$F$19/biopower_dollar_index)/'Zambia-IO-Data'!$BP34","v":94.602555063944152},{"$f":"(ET94*'Default-Data'!$F$19/biopower_dollar_index)/'Zambia-IO-Data'!$BP34","v":73.633954619364545},20033.440227779258,7743.8469842753075,{"$f":"EK94*'Zambia-IO-Data'!BO34","v":0},{"$f":"EX94*'Zambia-IO-Data'!$BO34","v":8756.1956256339454},{"$f":"EY94*'Zambia-IO-Data'!$BO34","v":3384.6727430901446},{"$f":"EK94*'Zambia-IO-Data'!BN34","v":0},{"$f":"EX94*'Zambia-IO-Data'!$BN34","v":6136.6869085636326},{"$f":"EY94*'Zambia-IO-Data'!$BN34","v":2372.1120221990996},{"$f":"(FC94*'Default-Data'!$F$19/biopower_dollar_index)/'Zambia-IO-Data'!$BP34","v":0},{"$f":"(FD94*'Default-Data'!$F$19/biopower_dollar_index)/'Zambia-IO-Data'!$BP34","v":17.797054784926754},{"$f":"(FE94*'Default-Data'!$F$19/biopower_dollar_index)/'Zambia-IO-Data'!$BP34","v":6.8793810478009334},null,"TTL_C64: Post and telecommunications",0,0,null,6208427.5463191215,8717423.2679781895,{"$f":"FK94*CustomRegion1!C32","v":0},{"$f":"FN94*CustomRegion1!$C32","v":3760431.1419467335},{"$f":"FO94*CustomRegion1!$C32","v":5280124.4260105351},{"$f":"FK94*CustomRegion1!D32","v":0},{"$f":"FN94*CustomRegion1!$D32","v":666810.79993010906},{"$f":"FO94*CustomRegion1!$D32","v":936287.31901626871},{"$f":"(FS94*'Default-Data'!$F$19/biopower_dollar_index)/CustomRegion1!$E32","v":0},{"$f":"(FT94*'Default-Data'!$F$19/biopower_dollar_index)/CustomRegion1!$E32","v":168.85708564901992},{"$f":"(FU94*'Default-Data'!$F$19/biopower_dollar_index)/CustomRegion1!$E32","v":237.09686171218618},226997.3983139029,840083.56497361057,{"$f":"FL94*CustomRegion1!C32","v":0},{"$f":"FY94*CustomRegion1!$C32","v":137491.83338163915},{"$f":"FZ94*CustomRegion1!$C32","v":508836.79901158926},{"$f":"FL94*CustomRegion1!D32","v":0},{"$f":"FY94*CustomRegion1!$D32","v":24380.459564433299},{"$f":"FZ94*CustomRegion1!$D32","v":90228.449923734865},{"$f":"(GD94*'Default-Data'!$C$58/biopower_dollar_index)/CustomRegion1!$E32","v":0},{"$f":"(GE94*'Default-Data'!$C$58/biopower_dollar_index)/CustomRegion1!$E32","v":6.1738852299115115},{"$f":"(GF94*'Default-Data'!$C$58/biopower_dollar_index)/CustomRegion1!$E32","v":22.848629773763886},null,"C55 Hotels and restaurants",0,0,null,4048149.506532555,13663139.646660378,{"$f":"GL94*CustomRegion2!C36","v":0},{"$f":"GO94*CustomRegion2!$C36","v":2911171.9160480434},{"$f":"GP94*CustomRegion2!$C36","v":9825661.9129836001},{"$f":"GL94*CustomRegion2!D36","v":0},{"$f":"GO94*CustomRegion2!$D36","v":804346.17238081666},{"$f":"GP94*CustomRegion2!$D36","v":2714794.5153115802},{"$f":"(GT94*'Default-Data'!$C$59/biopower_dollar_index)/CustomRegion2!$E36","v":0},{"$f":"(GU94*'Default-Data'!$C$59/biopower_dollar_index)/CustomRegion2!$E36","v":558.87052754445642},{"$f":"(GV94*'Default-Data'!$C$59/biopower_dollar_index)/CustomRegion2!$E36","v":1886.2757044719974},63311.288652685107,621695.43184988003,{"$f":"GM94*CustomRegion2!C36","v":0},{"$f":"GZ94*CustomRegion2!$C36","v":45529.456161904192},{"$f":"HA94*CustomRegion2!$C36","v":447083.85365118837},{"$f":"GM94*CustomRegion2!D36","v":0},{"$f":"GZ94*CustomRegion2!$D36","v":12579.622519896368},{"$f":"HA94*CustomRegion2!$D36","v":123527.6365628638},{"$f":"(HE94*'Default-Data'!$C$59/biopower_dollar_index)/CustomRegion2!$E36","v":0},{"$f":"(HF94*'Default-Data'!$C$59/biopower_dollar_index)/CustomRegion2!$E36","v":8.7404907431772827},{"$f":"(HG94*'Default-Data'!$C$59/biopower_dollar_index)/CustomRegion2!$E36","v":85.828661567276768},null,"TOURISM",0,0,null,106490.35220557262,82886.828547127021,{"$f":"HM94*CustomRegion3!D35","v":0},{"$f":"HP94*CustomRegion3!$D35","v":46544.694548352018},{"$f":"HQ94*CustomRegion3!$D35","v":36228.090497439131},{"$f":"HM94*CustomRegion3!E35","v":0},{"$f":"HP94*CustomRegion3!$E35","v":32620.35590682516},{"$f":"HQ94*CustomRegion3!$E35","v":25390.073290167875},{"$f":"(HU94*'Default-Data'!$C$60/biopower_dollar_index)/CustomRegion3!$F35","v":0},{"$f":"(HV94*'Default-Data'!$C$60/biopower_dollar_index)/CustomRegion3!$F35","v":94.602555063944152},{"$f":"(HW94*'Default-Data'!$C$60/biopower_dollar_index)/CustomRegion3!$F35","v":73.633954619364545},20033.440227779258,7743.8469842753075,{"$f":"HN94*CustomRegion3!D35","v":0},{"$f":"IA94*CustomRegion3!$D35","v":8756.1956256339454},{"$f":"IB94*CustomRegion3!$D35","v":3384.6727430901446},{"$f":"HN94*CustomRegion3!E35","v":0},{"$f":"IA94*CustomRegion3!$E35","v":6136.6869085636326},{"$f":"IB94*CustomRegion3!$E35","v":2372.1120221990996},{"$f":"(IF94*'Default-Data'!$C$60/biopower_dollar_index)/CustomRegion3!$F35","v":0},{"$f":"(IG94*'Default-Data'!$C$60/biopower_dollar_index)/CustomRegion3!$F35","v":17.797054784926754},{"$f":"(IH94*'Default-Data'!$C$60/biopower_dollar_index)/CustomRegion3!$F35","v":6.8793810478009334}]
[null,307,"Mining and Extraction",0,null,null,285749.46235393884,4563.129297245061,0,246009.52639316896,3928.5227976932974,0,15267.815927069496,243.81154591801544,0,0.8187137195640829,1.3074028307958589E-2,null,null,null,null,null,null,null,null,null,null,null,null,94,"TTL_C65T67: Financial intermediation",0,0,null,20263835.408302307,17823920.442488566,{"$f":"'Colombia-IO-Data'!$AN37*Calculations!AF95","v":0},{"$f":"'Colombia-IO-Data'!$AN37*AI95","v":13501393.153966425},{"$f":"'Colombia-IO-Data'!$AN37*AJ95","v":11875726.020774005},{"$f":"'Colombia-IO-Data'!$AO37*Calculations!AK95","v":0},{"$f":"'Colombia-IO-Data'!$AO37*Calculations!AL95","v":4806524.0121908002},{"$f":"'Colombia-IO-Data'!$AO37*Calculations!AM95","v":4227783.1354225967},{"$f":"(AN95*'Default-Data'!$F$19/biopower_dollar_index)/'Colombia-IO-Data'!$AP37","v":0},{"$f":"(AO95*'Default-Data'!$F$19/biopower_dollar_index)/'Colombia-IO-Data'!$AP37","v":673.29287853981191},{"$f":"(AP95*'Default-Data'!$F$19/biopower_dollar_index)/'Colombia-IO-Data'!$AP37","v":592.22345917154973},2714324.2650390347,1714536.5618718374,{"$f":"'Colombia-IO-Data'!$AN37*AG95","v":0},{"$f":"'Colombia-IO-Data'!$AN37*AT95","v":1808500.6274097669},{"$f":"'Colombia-IO-Data'!$AN37*AU95","v":1142361.8348773855},{"$f":"'Colombia-IO-Data'!$AO37*AV95","v":0},{"$f":"'Colombia-IO-Data'!$AO37*AW95","v":643829.98054933816},{"$f":"'Colombia-IO-Data'!$AO37*AX95","v":406683.18649290031},{"$f":"(AY95*'Default-Data'!$F$19/biopower_dollar_index)/'Colombia-IO-Data'!$AP37","v":0},{"$f":"(AZ95*'Default-Data'!$F$19/biopower_dollar_index)/'Colombia-IO-Data'!$AP37","v":90.187033247902832},{"$f":"(BA95*'Default-Data'!$F$19/biopower_dollar_index)/'Colombia-IO-Data'!$AP37","v":56.96775728011874},null,"DOM_C65T67: Financial intermediation",0,0,null,19729046.763770834,16459405.928582296,{"$f":"BG95*'Mexico-IO-Data'!AQ37","v":0},{"$f":"BJ95*'Mexico-IO-Data'!$AQ37","v":13411665.189736126},{"$f":"BK95*'Mexico-IO-Data'!$AQ37","v":11188986.684418593},{"$f":"BG95*'Mexico-IO-Data'!AR37","v":0},{"$f":"BJ95*'Mexico-IO-Data'!$AR37","v":3642425.5270921574},{"$f":"BK95*'Mexico-IO-Data'!$AR37","v":3038776.3297886485},{"$f":"(BO95*'Default-Data'!$F$19/biopower_dollar_index)/'Mexico-IO-Data'!$AS37","v":0},{"$f":"(BP95*'Default-Data'!$F$19/biopower_dollar_index)/'Mexico-IO-Data'!$AS37","v":275.40940792330457},{"$f":"(BQ95*'Default-Data'!$F$19/biopower_dollar_index)/'Mexico-IO-Data'!$AS37","v":229.76656175220938},1024355.0538119961,1086086.9607187146,{"$f":"BH95*'Mexico-IO-Data'!AQ37","v":0},{"$f":"BU95*'Mexico-IO-Data'!$AQ37","v":696349.25506734452},{"$f":"BV95*'Mexico-IO-Data'!$AQ37","v":738314.16482047166},{"$f":"BH95*'Mexico-IO-Data'!AR37","v":0},{"$f":"BU95*'Mexico-IO-Data'!$AR37","v":189118.96968394326},{"$f":"BV95*'Mexico-IO-Data'!$AR37","v":200516.06738691061},{"$f":"(BZ95*'Default-Data'!$F$19/biopower_dollar_index)/'Mexico-IO-Data'!$AS37","v":0},{"$f":"(CA95*'Default-Data'!$F$19/biopower_dollar_index)/'Mexico-IO-Data'!$AS37","v":14.299576773859563},{"$f":"(CB95*'Default-Data'!$F$19/biopower_dollar_index)/'Mexico-IO-Data'!$AS37","v":15.161328896743496},null,"TTL_C65T67: Financial intermediation",0,0,null,13244911.792998053,21348400.830539264,{"$f":"CH95*'Philippines-IO-Data'!AN37","v":0},{"$f":"CK95*'Philippines-IO-Data'!$AN37","v":8447527.54394003},{"$f":"CL95*'Philippines-IO-Data'!$AN37","v":13615885.621102463},{"$f":"CH95*'Philippines-IO-Data'!AO37","v":0},{"$f":"CK95*'Philippines-IO-Data'!$AO37","v":1850742.2870683889},{"$f":"CL95*'Philippines-IO-Data'!$AO37","v":2983061.631203325},{"$f":"(CP95*'Default-Data'!$F$19/biopower_dollar_index)/'Philippines-IO-Data'!$AP37","v":0},{"$f":"(CQ95*'Default-Data'!$F$19/biopower_dollar_index)/'Philippines-IO-Data'!$AP37","v":468.66509797760534},{"$f":"(CR95*'Default-Data'!$F$19/biopower_dollar_index)/'Philippines-IO-Data'!$AP37","v":755.40332191560299},1135448.1772365707,2134355.6586399944,{"$f":"CI95*'Philippines-IO-Data'!AN37","v":0},{"$f":"CV95*'Philippines-IO-Data'!$AN37","v":724182.22951043874},{"$f":"CW95*'Philippines-IO-Data'!$AN37","v":1361279.5990424962},{"$f":"CI95*'Philippines-IO-Data'!AO37","v":0},{"$f":"CV95*'Philippines-IO-Data'!$AO37","v":158658.81096296653},{"$f":"CW95*'Philippines-IO-Data'!$AO37","v":298238.47337186424},{"$f":"(DA95*'Default-Data'!$F$19/biopower_dollar_index)/'Philippines-IO-Data'!$AP37","v":0},{"$f":"(DB95*'Default-Data'!$F$19/biopower_dollar_index)/'Philippines-IO-Data'!$AP37","v":40.177310317339384},{"$f":"(DC95*'Default-Data'!$F$19/biopower_dollar_index)/'Philippines-IO-Data'!$AP37","v":75.523191056989802},null,"DOM_C65T67: Financial intermediation",0,0,null,51178873.581465214,53975444.427346051,{"$f":"DI95*'SouthAfrica-IO-Data'!AR37","v":0},{"$f":"DL95*'Mexico-IO-Data'!$AQ37","v":34791033.012446046},{"$f":"DM95*'Mexico-IO-Data'!$AQ37","v":36692121.915190488},{"$f":"DI95*'SouthAfrica-IO-Data'!AS37","v":0},{"$f":"DL95*'Mexico-IO-Data'!$AR37","v":9448770.5266770627},{"$f":"DM95*'Mexico-IO-Data'!$AR37","v":9965080.3696880043},{"$f":"(DQ95*'Default-Data'!$F$19/biopower_dollar_index)/'SouthAfrica-IO-Data'!$AT37","v":0},{"$f":"(DR95*'Default-Data'!$F$19/biopower_dollar_index)/'SouthAfrica-IO-Data'!$AT37","v":587.03908473109504},{"$f":"(DS95*'Default-Data'!$F$19/biopower_dollar_index)/'SouthAfrica-IO-Data'!$AT37","v":619.11670338243835},4967530.6531440746,4612330.4496231563,{"$f":"DJ95*'SouthAfrica-IO-Data'!AR37","v":0},{"$f":"DW95*'SouthAfrica-IO-Data'!$AR37","v":2890721.3091505649},{"$f":"DX95*'SouthAfrica-IO-Data'!$AR37","v":2684022.0718378252},{"$f":"DJ95*'SouthAfrica-IO-Data'!AS37","v":0},{"$f":"DW95*'SouthAfrica-IO-Data'!$AS37","v":1452331.1427975667},{"$f":"DX95*'SouthAfrica-IO-Data'!$AS37","v":1348483.1036969007},{"$f":"(EB95*'Default-Data'!$F$19/biopower_dollar_index)/'SouthAfrica-IO-Data'!$AT37","v":0},{"$f":"(EC95*'Default-Data'!$F$19/biopower_dollar_index)/'SouthAfrica-IO-Data'!$AT37","v":90.231331408381863},{"$f":"(ED95*'Default-Data'!$F$19/biopower_dollar_index)/'SouthAfrica-IO-Data'!$AT37","v":83.77939592612465},null,"OTHER",{"$f":"'Biopower-Inputs'!B26*'Biopower-Inputs'!C26","v":256054274.957948},0,null,273824420.21140897,5213063.8806905448,{"$f":"EJ95*'Zambia-IO-Data'!BO35","v":93713692.760350093},{"$f":"EM95*'Zambia-IO-Data'!$BO35","v":100217415.19522502},{"$f":"EN95*'Zambia-IO-Data'!$BO35","v":1907937.1626790636},{"$f":"EJ95*'Zambia-IO-Data'!BN35","v":74982645.670418397},{"$f":"EM95*'Zambia-IO-Data'!$BN35","v":80186435.004812285},{"$f":"EN95*'Zambia-IO-Data'!$BN35","v":1526587.7591275189},{"$f":"(ER95*'Default-Data'!$F$19/biopower_dollar_index)/'Zambia-IO-Data'!$BP35","v":174943.45218425823},{"$f":"(ES95*'Default-Data'!$F$19/biopower_dollar_index)/'Zambia-IO-Data'!$BP35","v":187084.51312521196},{"$f":"(ET95*'Default-Data'!$F$19/biopower_dollar_index)/'Zambia-IO-Data'!$BP35","v":3561.7112500654284},342275.40710034396,409765.89561201783,{"$f":"EK95*'Zambia-IO-Data'!BO35","v":0},{"$f":"EX95*'Zambia-IO-Data'!$BO35","v":125269.89578945025},{"$f":"EY95*'Zambia-IO-Data'!$BO35","v":149970.84212462729},{"$f":"EK95*'Zambia-IO-Data'!BN35","v":0},{"$f":"EX95*'Zambia-IO-Data'!$BN35","v":100231.54495865472},{"$f":"EY95*'Zambia-IO-Data'!$BN35","v":119995.38364881286},{"$f":"(FC95*'Default-Data'!$F$19/biopower_dollar_index)/'Zambia-IO-Data'!$BP35","v":0},{"$f":"(FD95*'Default-Data'!$F$19/biopower_dollar_index)/'Zambia-IO-Data'!$BP35","v":233.85214453357787},{"$f":"(FE95*'Default-Data'!$F$19/biopower_dollar_index)/'Zambia-IO-Data'!$BP35","v":279.96353654909223},null,"TTL_C65T67: Financial intermediation",0,0,null,19964724.704343811,29292381.494327284,{"$f":"FK95*CustomRegion1!C33","v":0},{"$f":"FN95*CustomRegion1!$C33","v":12733385.052536385},{"$f":"FO95*CustomRegion1!$C33","v":18682510.187175643},{"$f":"FK95*CustomRegion1!D33","v":0},{"$f":"FN95*CustomRegion1!$D33","v":2789717.352405584},{"$f":"FO95*CustomRegion1!$D33","v":4093092.4998043887},{"$f":"(FS95*'Default-Data'!$F$19/biopower_dollar_index)/CustomRegion1!$E33","v":0},{"$f":"(FT95*'Default-Data'!$F$19/biopower_dollar_index)/CustomRegion1!$E33","v":706.44258005581298},{"$f":"(FU95*'Default-Data'!$F$19/biopower_dollar_index)/CustomRegion1!$E33","v":1036.4974155806601},1664049.7099927962,2822858.0299312184,{"$f":"FL95*CustomRegion1!C33","v":0},{"$f":"FY95*CustomRegion1!$C33","v":1061321.2061616657},{"$f":"FZ95*CustomRegion1!$C33","v":1800402.3985333431},{"$f":"FL95*CustomRegion1!D33","v":0},{"$f":"FY95*CustomRegion1!$D33","v":232521.53084897556},{"$f":"FZ95*CustomRegion1!$D33","v":394444.50880723487},{"$f":"(GD95*'Default-Data'!$C$58/biopower_dollar_index)/CustomRegion1!$E33","v":0},{"$f":"(GE95*'Default-Data'!$C$58/biopower_dollar_index)/CustomRegion1!$E33","v":58.881631872072234},{"$f":"(GF95*'Default-Data'!$C$58/biopower_dollar_index)/CustomRegion1!$E33","v":99.885530070043771},null,"C60T63 Transport and storage",0,0,null,19782381.770877011,33690826.03137669,{"$f":"GL95*CustomRegion2!C37","v":0},{"$f":"GO95*CustomRegion2!$C37","v":12273837.002613589},{"$f":"GP95*CustomRegion2!$C37","v":20903231.57150333},{"$f":"GL95*CustomRegion2!D37","v":0},{"$f":"GO95*CustomRegion2!$D37","v":4167922.9958418552},{"$f":"GP95*CustomRegion2!$D37","v":7098274.1204502108},{"$f":"(GT95*'Default-Data'!$C$59/biopower_dollar_index)/CustomRegion2!$E37","v":0},{"$f":"(GU95*'Default-Data'!$C$59/biopower_dollar_index)/CustomRegion2!$E37","v":570.0553245538747},{"$f":"(GV95*'Default-Data'!$C$59/biopower_dollar_index)/CustomRegion2!$E37","v":970.84542145872911},1064278.1491773315,1532988.2575031365,{"$f":"GM95*CustomRegion2!C37","v":0},{"$f":"GZ95*CustomRegion2!$C37","v":660323.75068589754},{"$f":"HA95*CustomRegion2!$C37","v":951131.57846412202},{"$f":"GM95*CustomRegion2!D37","v":0},{"$f":"GZ95*CustomRegion2!$D37","v":224231.30962210498},{"$f":"HA95*CustomRegion2!$D37","v":322983.20216472086},{"$f":"(HE95*'Default-Data'!$C$59/biopower_dollar_index)/CustomRegion2!$E37","v":0},{"$f":"(HF95*'Default-Data'!$C$59/biopower_dollar_index)/CustomRegion2!$E37","v":30.668573318003666},{"$f":"(HG95*'Default-Data'!$C$59/biopower_dollar_index)/CustomRegion2!$E37","v":44.175070969196426},null,"OTHER",256054274.957948,0,null,273824420.21140897,5213063.8806905746,{"$f":"HM95*CustomRegion3!D36","v":93713692.760350093},{"$f":"HP95*CustomRegion3!$D36","v":100217415.19522502},{"$f":"HQ95*CustomRegion3!$D36","v":1907937.1626790746},{"$f":"HM95*CustomRegion3!E36","v":74982645.670418397},{"$f":"HP95*CustomRegion3!$E36","v":80186435.004812285},{"$f":"HQ95*CustomRegion3!$E36","v":1526587.7591275277},{"$f":"(HU95*'Default-Data'!$C$60/biopower_dollar_index)/CustomRegion3!$F36","v":174943.45218425823},{"$f":"(HV95*'Default-Data'!$C$60/biopower_dollar_index)/CustomRegion3!$F36","v":187084.51312521196},{"$f":"(HW95*'Default-Data'!$C$60/biopower_dollar_index)/CustomRegion3!$F36","v":3561.7112500654493},342275.40710034396,409765.89561201783,{"$f":"HN95*CustomRegion3!D36","v":0},{"$f":"IA95*CustomRegion3!$D36","v":125269.89578945025},{"$f":"IB95*CustomRegion3!$D36","v":149970.84212462729},{"$f":"HN95*CustomRegion3!E36","v":0},{"$f":"IA95*CustomRegion3!$E36","v":100231.54495865472},{"$f":"IB95*CustomRegion3!$E36","v":119995.38364881286},{"$f":"(IF95*'Default-Data'!$C$60/biopower_dollar_index)/CustomRegion3!$F36","v":0},{"$f":"(IG95*'Default-Data'!$C$60/biopower_dollar_index)/CustomRegion3!$F36","v":233.85214453357787},{"$f":"(IH95*'Default-Data'!$C$60/biopower_dollar_index)/CustomRegion3!$F36","v":279.96353654909223}]
[null,308,"Utilities",0,null,null,38624.496440424569,4355.7480274896661,0,17277.808795571393,1948.4469317738101,0,4173.1914795888879,470.61767092791052,0,0.23031825120030833,2.5973368220035882E-2,null,null,null,null,null,null,null,null,null,null,null,null,95,"TTL_C70: Real estate activities",0,0,null,11770081.861229315,24109141.961528331,{"$f":"'Colombia-IO-Data'!$AN38*Calculations!AF96","v":0},{"$f":"'Colombia-IO-Data'!$AN38*AI96","v":10438653.357736541},{"$f":"'Colombia-IO-Data'!$AN38*AJ96","v":21381922.288735002},{"$f":"'Colombia-IO-Data'!$AO38*Calculations!AK96","v":0},{"$f":"'Colombia-IO-Data'!$AO38*Calculations!AL96","v":343924.40042550093},{"$f":"'Colombia-IO-Data'!$AO38*Calculations!AM96","v":704474.47109139268},{"$f":"(AN96*'Default-Data'!$F$19/biopower_dollar_index)/'Colombia-IO-Data'!$AP38","v":0},{"$f":"(AO96*'Default-Data'!$F$19/biopower_dollar_index)/'Colombia-IO-Data'!$AP38","v":72.026189572574353},{"$f":"(AP96*'Default-Data'!$F$19/biopower_dollar_index)/'Colombia-IO-Data'!$AP38","v":147.53420153118464},601903.24130767712,2319130.9398948103,{"$f":"'Colombia-IO-Data'!$AN38*AG96","v":0},{"$f":"'Colombia-IO-Data'!$AN38*AT96","v":533816.1080769801},{"$f":"'Colombia-IO-Data'!$AN38*AU96","v":2056791.4699477898},{"$f":"'Colombia-IO-Data'!$AO38*AV96","v":0},{"$f":"'Colombia-IO-Data'!$AO38*AW96","v":17587.746102497164},{"$f":"'Colombia-IO-Data'!$AO38*AX96","v":67765.520020626762},{"$f":"(AY96*'Default-Data'!$F$19/biopower_dollar_index)/'Colombia-IO-Data'!$AP38","v":0},{"$f":"(AZ96*'Default-Data'!$F$19/biopower_dollar_index)/'Colombia-IO-Data'!$AP38","v":3.6833046255674704},{"$f":"(BA96*'Default-Data'!$F$19/biopower_dollar_index)/'Colombia-IO-Data'!$AP38","v":14.19175896054813},null,"DOM_C70: Real estate activities",0,0,null,7689972.9828804247,29412545.75457542,{"$f":"BG96*'Mexico-IO-Data'!AQ38","v":0},{"$f":"BJ96*'Mexico-IO-Data'!$AQ38","v":7106962.2257790426},{"$f":"BK96*'Mexico-IO-Data'!$AQ38","v":27182650.980324727},{"$f":"BG96*'Mexico-IO-Data'!AR38","v":0},{"$f":"BJ96*'Mexico-IO-Data'!$AR38","v":101820.44965877301},{"$f":"BK96*'Mexico-IO-Data'!$AR38","v":389442.02287929831},{"$f":"(BO96*'Default-Data'!$F$19/biopower_dollar_index)/'Mexico-IO-Data'!$AS38","v":0},{"$f":"(BP96*'Default-Data'!$F$19/biopower_dollar_index)/'Mexico-IO-Data'!$AS38","v":43.47777796369531},{"$f":"(BQ96*'Default-Data'!$F$19/biopower_dollar_index)/'Mexico-IO-Data'!$AS38","v":166.29344947132225},455256.54166461923,1940810.1704396366,{"$f":"BH96*'Mexico-IO-Data'!AQ38","v":0},{"$f":"BU96*'Mexico-IO-Data'!$AQ38","v":420741.5360043745},{"$f":"BV96*'Mexico-IO-Data'!$AQ38","v":1793668.7943415574},{"$f":"BH96*'Mexico-IO-Data'!AR38","v":0},{"$f":"BU96*'Mexico-IO-Data'!$AR38","v":6027.9048945405439},{"$f":"BV96*'Mexico-IO-Data'!$AR38","v":25697.640901524152},{"$f":"(BZ96*'Default-Data'!$F$19/biopower_dollar_index)/'Mexico-IO-Data'!$AS38","v":0},{"$f":"(CA96*'Default-Data'!$F$19/biopower_dollar_index)/'Mexico-IO-Data'!$AS38","v":2.5739417913533518},{"$f":"(CB96*'Default-Data'!$F$19/biopower_dollar_index)/'Mexico-IO-Data'!$AS38","v":10.973005217041642},null,"TTL_C70: Real estate activities",0,0,null,11891625.487264168,22990632.968905795,{"$f":"CH96*'Philippines-IO-Data'!AN38","v":0},{"$f":"CK96*'Philippines-IO-Data'!$AN38","v":9649702.8737636078},{"$f":"CL96*'Philippines-IO-Data'!$AN38","v":18656219.645270284},{"$f":"CH96*'Philippines-IO-Data'!AO38","v":0},{"$f":"CK96*'Philippines-IO-Data'!$AO38","v":247317.075093636},{"$f":"CL96*'Philippines-IO-Data'!$AO38","v":478149.61096031248},{"$f":"(CP96*'Default-Data'!$F$19/biopower_dollar_index)/'Philippines-IO-Data'!$AP38","v":0},{"$f":"(CQ96*'Default-Data'!$F$19/biopower_dollar_index)/'Philippines-IO-Data'!$AP38","v":62.62832056098722},{"$f":"(CR96*'Default-Data'!$F$19/biopower_dollar_index)/'Philippines-IO-Data'!$AP38","v":121.08224674740362},185373.06941826711,2298541.60798328,{"$f":"CI96*'Philippines-IO-Data'!AN38","v":0},{"$f":"CV96*'Philippines-IO-Data'!$AN38","v":150424.77099532084},{"$f":"CW96*'Philippines-IO-Data'!$AN38","v":1865198.6293863978},{"$f":"CI96*'Philippines-IO-Data'!AO38","v":0},{"$f":"CV96*'Philippines-IO-Data'!$AO38","v":3855.3119065813139},{"$f":"CW96*'Philippines-IO-Data'!$AO38","v":47804.111227373651},{"$f":"(DA96*'Default-Data'!$F$19/biopower_dollar_index)/'Philippines-IO-Data'!$AP38","v":0},{"$f":"(DB96*'Default-Data'!$F$19/biopower_dollar_index)/'Philippines-IO-Data'!$AP38","v":0.97628402671570502},{"$f":"(DC96*'Default-Data'!$F$19/biopower_dollar_index)/'Philippines-IO-Data'!$AP38","v":12.105477152952487},null,"DOM_C70: Real estate activities",0,0,null,26218997.668093003,35981057.086693376,{"$f":"DI96*'SouthAfrica-IO-Data'!AR38","v":0},{"$f":"DL96*'Mexico-IO-Data'!$AQ38","v":24231219.854706116},{"$f":"DM96*'Mexico-IO-Data'!$AQ38","v":33253174.507636029},{"$f":"DI96*'SouthAfrica-IO-Data'!AS38","v":0},{"$f":"DL96*'Mexico-IO-Data'!$AR38","v":347157.28366155981},{"$f":"DM96*'Mexico-IO-Data'!$AR38","v":476413.56086960237},{"$f":"(DQ96*'Default-Data'!$F$19/biopower_dollar_index)/'SouthAfrica-IO-Data'!$AT38","v":0},{"$f":"(DR96*'Default-Data'!$F$19/biopower_dollar_index)/'SouthAfrica-IO-Data'!$AT38","v":21.568403368780473},{"$f":"(DS96*'Default-Data'!$F$19/biopower_dollar_index)/'SouthAfrica-IO-Data'!$AT38","v":29.598917651429996},878104.31079924433,3074667.1374604711,{"$f":"DJ96*'SouthAfrica-IO-Data'!AR38","v":0},{"$f":"DW96*'SouthAfrica-IO-Data'!$AR38","v":516355.2626435011},{"$f":"DX96*'SouthAfrica-IO-Data'!$AR38","v":1808009.0688311304},{"$f":"DJ96*'SouthAfrica-IO-Data'!AS38","v":0},{"$f":"DW96*'SouthAfrica-IO-Data'!$AS38","v":31732.910776739489},{"$f":"DX96*'SouthAfrica-IO-Data'!$AS38","v":111112.24115549588},{"$f":"(EB96*'Default-Data'!$F$19/biopower_dollar_index)/'SouthAfrica-IO-Data'!$AT38","v":0},{"$f":"(EC96*'Default-Data'!$F$19/biopower_dollar_index)/'SouthAfrica-IO-Data'!$AT38","v":1.9715219927964422},{"$f":"(ED96*'Default-Data'!$F$19/biopower_dollar_index)/'SouthAfrica-IO-Data'!$AT38","v":6.9032503399447132},null,"FIRE",0,0,null,102352497.56576027,19524042.064559713,{"$f":"EJ96*'Zambia-IO-Data'!BO36","v":0},{"$f":"EM96*'Zambia-IO-Data'!$BO36","v":21322959.132377516},{"$f":"EN96*'Zambia-IO-Data'!$BO36","v":4067417.6101462673},{"$f":"EJ96*'Zambia-IO-Data'!BN36","v":0},{"$f":"EM96*'Zambia-IO-Data'!$BN36","v":5080996.5990357883},{"$f":"EN96*'Zambia-IO-Data'!$BN36","v":969215.15047274472},{"$f":"(ER96*'Default-Data'!$F$19/biopower_dollar_index)/'Zambia-IO-Data'!$BP36","v":0},{"$f":"(ES96*'Default-Data'!$F$19/biopower_dollar_index)/'Zambia-IO-Data'!$BP36","v":5040.3674165711855},{"$f":"(ET96*'Default-Data'!$F$19/biopower_dollar_index)/'Zambia-IO-Data'!$BP36","v":961.46501357962256},5866848.7048935294,1677910.9299173979,{"$f":"EK96*'Zambia-IO-Data'!BO36","v":0},{"$f":"EX96*'Zambia-IO-Data'!$BO36","v":1222232.7558730291},{"$f":"EY96*'Zambia-IO-Data'!$BO36","v":349556.9432823197},{"$f":"EK96*'Zambia-IO-Data'!BN36","v":0},{"$f":"EX96*'Zambia-IO-Data'!$BN36","v":291242.90100951697},{"$f":"EY96*'Zambia-IO-Data'!$BN36","v":83295.082495840106},{"$f":"(FC96*'Default-Data'!$F$19/biopower_dollar_index)/'Zambia-IO-Data'!$BP36","v":0},{"$f":"(FD96*'Default-Data'!$F$19/biopower_dollar_index)/'Zambia-IO-Data'!$BP36","v":288.91403486367426},{"$f":"(FE96*'Default-Data'!$F$19/biopower_dollar_index)/'Zambia-IO-Data'!$BP36","v":82.629029874240246},null,"TTL_C70: Real estate activities",0,0,null,13703686.077974832,27056684.92168244,{"$f":"FK96*CustomRegion1!C34","v":0},{"$f":"FN96*CustomRegion1!$C34","v":11120136.525440721},{"$f":"FO96*CustomRegion1!$C34","v":21955700.717525929},{"$f":"FK96*CustomRegion1!D34","v":0},{"$f":"FN96*CustomRegion1!$D34","v":285003.55669928162},{"$f":"FO96*CustomRegion1!$D34","v":562713.66632990679},{"$f":"(FS96*'Default-Data'!$F$19/biopower_dollar_index)/CustomRegion1!$E34","v":0},{"$f":"(FT96*'Default-Data'!$F$19/biopower_dollar_index)/CustomRegion1!$E34","v":72.171701461479103},{"$f":"(FU96*'Default-Data'!$F$19/biopower_dollar_index)/CustomRegion1!$E34","v":142.49647690364688},325756.7947397086,2607407.67387866,{"$f":"FL96*CustomRegion1!C34","v":0},{"$f":"FY96*CustomRegion1!$C34","v":264342.01797848439},{"$f":"FZ96*CustomRegion1!$C34","v":2115834.3197611715},{"$f":"FL96*CustomRegion1!D34","v":0},{"$f":"FY96*CustomRegion1!$D34","v":6774.9541686447619},{"$f":"FZ96*CustomRegion1!$D34","v":54227.779050980644},{"$f":"(GD96*'Default-Data'!$C$58/biopower_dollar_index)/CustomRegion1!$E34","v":0},{"$f":"(GE96*'Default-Data'!$C$58/biopower_dollar_index)/CustomRegion1!$E34","v":1.7156276059759978},{"$f":"(GF96*'Default-Data'!$C$58/biopower_dollar_index)/CustomRegion1!$E34","v":13.732148208648269},null,"C64 Post and telecommunications",0,0,null,9049032.1900837664,12913195.194455145,{"$f":"GL96*CustomRegion2!C38","v":0},{"$f":"GO96*CustomRegion2!$C38","v":5563023.7289870651},{"$f":"GP96*CustomRegion2!$C38","v":7938573.9573914288},{"$f":"GL96*CustomRegion2!D38","v":0},{"$f":"GO96*CustomRegion2!$D38","v":1522411.6904659879},{"$f":"GP96*CustomRegion2!$D38","v":2172519.5482065962},{"$f":"(GT96*'Default-Data'!$C$59/biopower_dollar_index)/CustomRegion2!$E38","v":0},{"$f":"(GU96*'Default-Data'!$C$59/biopower_dollar_index)/CustomRegion2!$E38","v":122.88316079742242},{"$f":"(GV96*'Default-Data'!$C$59/biopower_dollar_index)/CustomRegion2!$E38","v":175.35734299051543},335606.57281388261,587571.72001391731,{"$f":"GM96*CustomRegion2!C38","v":0},{"$f":"GZ96*CustomRegion2!$C38","v":206319.00615996943},{"$f":"HA96*CustomRegion2!$C38","v":361218.23331572308},{"$f":"GM96*CustomRegion2!D38","v":0},{"$f":"GZ96*CustomRegion2!$D38","v":56462.543078250448},{"$f":"HA96*CustomRegion2!$D38","v":98853.229466533186},{"$f":"(HE96*'Default-Data'!$C$59/biopower_dollar_index)/CustomRegion2!$E38","v":0},{"$f":"(HF96*'Default-Data'!$C$59/biopower_dollar_index)/CustomRegion2!$E38","v":4.5574372579813343},{"$f":"(HG96*'Default-Data'!$C$59/biopower_dollar_index)/CustomRegion2!$E38","v":7.9790488787972675},null,"FIRE",0,0,null,102352497.56576027,19524042.064559713,{"$f":"HM96*CustomRegion3!D37","v":0},{"$f":"HP96*CustomRegion3!$D37","v":21322959.132377516},{"$f":"HQ96*CustomRegion3!$D37","v":4067417.6101462673},{"$f":"HM96*CustomRegion3!E37","v":0},{"$f":"HP96*CustomRegion3!$E37","v":5080996.5990357883},{"$f":"HQ96*CustomRegion3!$E37","v":969215.15047274472},{"$f":"(HU96*'Default-Data'!$C$60/biopower_dollar_index)/CustomRegion3!$F37","v":0},{"$f":"(HV96*'Default-Data'!$C$60/biopower_dollar_index)/CustomRegion3!$F37","v":5040.3674165711855},{"$f":"(HW96*'Default-Data'!$C$60/biopower_dollar_index)/CustomRegion3!$F37","v":961.46501357962256},5866848.7048935294,1677910.9299173979,{"$f":"HN96*CustomRegion3!D37","v":0},{"$f":"IA96*CustomRegion3!$D37","v":1222232.7558730291},{"$f":"IB96*CustomRegion3!$D37","v":349556.9432823197},{"$f":"HN96*CustomRegion3!E37","v":0},{"$f":"IA96*CustomRegion3!$E37","v":291242.90100951697},{"$f":"IB96*CustomRegion3!$E37","v":83295.082495840106},{"$f":"(IF96*'Default-Data'!$C$60/biopower_dollar_index)/CustomRegion3!$F37","v":0},{"$f":"(IG96*'Default-Data'!$C$60/biopower_dollar_index)/CustomRegion3!$F37","v":288.91403486367426},{"$f":"(IH96*'Default-Data'!$C$60/biopower_dollar_index)/CustomRegion3!$F37","v":82.629029874240246}]
[null,309,"Construction",0,null,null,1351.5838454883872,290.83120768868412,0,679.76901205952663,146.27138626030171,0,298.97351982220385,64.332545943836053,0,0.10439747390681095,2.2464047285941448E-2,null,null,null,null,null,null,null,null,null,null,null,null,96,"TTL_C71: Renting of machinery and equipment",0,0,null,1532741.9643590017,428250.40477770381,{"$f":"'Colombia-IO-Data'!$AN39*Calculations!AF97","v":0},{"$f":"'Colombia-IO-Data'!$AN39*AI97","v":1106105.7271585451},{"$f":"'Colombia-IO-Data'!$AN39*AJ97","v":309047.59992050088},{"$f":"'Colombia-IO-Data'!$AO39*Calculations!AK97","v":0},{"$f":"'Colombia-IO-Data'!$AO39*Calculations!AL97","v":422342.8423423082},{"$f":"'Colombia-IO-Data'!$AO39*Calculations!AM97","v":118003.22389143909},{"$f":"(AN97*'Default-Data'!$F$19/biopower_dollar_index)/'Colombia-IO-Data'!$AP39","v":0},{"$f":"(AO97*'Default-Data'!$F$19/biopower_dollar_index)/'Colombia-IO-Data'!$AP39","v":94.170339256236417},{"$f":"(AP97*'Default-Data'!$F$19/biopower_dollar_index)/'Colombia-IO-Data'!$AP39","v":26.311334094256665},152227.23951094595,41194.695577606093,{"$f":"'Colombia-IO-Data'!$AN39*AG97","v":0},{"$f":"'Colombia-IO-Data'!$AN39*AT97","v":109855.03455110904},{"$f":"'Colombia-IO-Data'!$AN39*AU97","v":29728.218947798319},{"$f":"'Colombia-IO-Data'!$AO39*AV97","v":0},{"$f":"'Colombia-IO-Data'!$AO39*AW97","v":41945.798126472917},{"$f":"'Colombia-IO-Data'!$AO39*AX97","v":11351.085325668824},{"$f":"(AY97*'Default-Data'!$F$19/biopower_dollar_index)/'Colombia-IO-Data'!$AP39","v":0},{"$f":"(AZ97*'Default-Data'!$F$19/biopower_dollar_index)/'Colombia-IO-Data'!$AP39","v":9.3527097986001877},{"$f":"(BA97*'Default-Data'!$F$19/biopower_dollar_index)/'Colombia-IO-Data'!$AP39","v":2.530966430297283},null,"DOM_C71: Renting of machinery and equipment",0,0,null,3000438.1703059748,750458.88683784567,{"$f":"BG97*'Mexico-IO-Data'!AQ39","v":0},{"$f":"BJ97*'Mexico-IO-Data'!$AQ39","v":2468456.3501330572},{"$f":"BK97*'Mexico-IO-Data'!$AQ39","v":617401.49257591809},{"$f":"BG97*'Mexico-IO-Data'!AR39","v":0},{"$f":"BJ97*'Mexico-IO-Data'!$AR39","v":112342.29499226193},{"$f":"BK97*'Mexico-IO-Data'!$AR39","v":28098.653882977462},{"$f":"(BO97*'Default-Data'!$F$19/biopower_dollar_index)/'Mexico-IO-Data'!$AS39","v":0},{"$f":"(BP97*'Default-Data'!$F$19/biopower_dollar_index)/'Mexico-IO-Data'!$AS39","v":47.970652005313326},{"$f":"(BQ97*'Default-Data'!$F$19/biopower_dollar_index)/'Mexico-IO-Data'!$AS39","v":11.998248276224919},253217.36524786442,49519.625136328948,{"$f":"BH97*'Mexico-IO-Data'!AQ39","v":0},{"$f":"BU97*'Mexico-IO-Data'!$AQ39","v":208321.5776268809},{"$f":"BV97*'Mexico-IO-Data'!$AQ39","v":40739.727395053909},{"$f":"BH97*'Mexico-IO-Data'!AR39","v":0},{"$f":"BU97*'Mexico-IO-Data'!$AR39","v":9480.9552235958872},{"$f":"BV97*'Mexico-IO-Data'!$AR39","v":1854.1119727204325},{"$f":"(BZ97*'Default-Data'!$F$19/biopower_dollar_index)/'Mexico-IO-Data'!$AS39","v":0},{"$f":"(CA97*'Default-Data'!$F$19/biopower_dollar_index)/'Mexico-IO-Data'!$AS39","v":4.0484094057398661},{"$f":"(CB97*'Default-Data'!$F$19/biopower_dollar_index)/'Mexico-IO-Data'!$AS39","v":0.79171393310402993},null,"TTL_C71: Renting of machinery and equipment",0,0,null,813298.08967079618,440926.3095497021,{"$f":"CH97*'Philippines-IO-Data'!AN39","v":0},{"$f":"CK97*'Philippines-IO-Data'!$AN39","v":411179.47418838023},{"$f":"CL97*'Philippines-IO-Data'!$AN39","v":222919.30894594305},{"$f":"CH97*'Philippines-IO-Data'!AO39","v":0},{"$f":"CK97*'Philippines-IO-Data'!$AO39","v":112400.52571955722},{"$f":"CL97*'Philippines-IO-Data'!$AO39","v":60937.49589038331},{"$f":"(CP97*'Default-Data'!$F$19/biopower_dollar_index)/'Philippines-IO-Data'!$AP39","v":0},{"$f":"(CQ97*'Default-Data'!$F$19/biopower_dollar_index)/'Philippines-IO-Data'!$AP39","v":28.463284038608052},{"$f":"(CR97*'Default-Data'!$F$19/biopower_dollar_index)/'Philippines-IO-Data'!$AP39","v":15.431255708332497},74466.15759137609,44082.625733933426,{"$f":"CI97*'Philippines-IO-Data'!AN39","v":0},{"$f":"CV97*'Philippines-IO-Data'!$AN39","v":37647.888163176322},{"$f":"CW97*'Philippines-IO-Data'!$AN39","v":22286.872550578388},{"$f":"CI97*'Philippines-IO-Data'!AO39","v":0},{"$f":"CV97*'Philippines-IO-Data'!$AO39","v":10291.472914898966},{"$f":"CW97*'Philippines-IO-Data'!$AO39","v":6092.3668339098513},{"$f":"(DA97*'Default-Data'!$F$19/biopower_dollar_index)/'Philippines-IO-Data'!$AP39","v":0},{"$f":"(DB97*'Default-Data'!$F$19/biopower_dollar_index)/'Philippines-IO-Data'!$AP39","v":2.6061187425695675},{"$f":"(DC97*'Default-Data'!$F$19/biopower_dollar_index)/'Philippines-IO-Data'!$AP39","v":1.5427754145352626},null,"DOM_C71: Renting of machinery and equipment",0,0,null,3779752.0079234308,1280904.2290530084,{"$f":"DI97*'SouthAfrica-IO-Data'!AR39","v":0},{"$f":"DL97*'Mexico-IO-Data'!$AQ39","v":3109596.7709727236},{"$f":"DM97*'Mexico-IO-Data'!$AQ39","v":1053798.1450208491},{"$f":"DI97*'SouthAfrica-IO-Data'!AS39","v":0},{"$f":"DL97*'Mexico-IO-Data'!$AR39","v":141521.33487504142},{"$f":"DM97*'Mexico-IO-Data'!$AR39","v":47959.568766062759},{"$f":"(DQ97*'Default-Data'!$F$19/biopower_dollar_index)/'SouthAfrica-IO-Data'!$AT39","v":0},{"$f":"(DR97*'Default-Data'!$F$19/biopower_dollar_index)/'SouthAfrica-IO-Data'!$AT39","v":8.7925254042743823},{"$f":"(DS97*'Default-Data'!$F$19/biopower_dollar_index)/'SouthAfrica-IO-Data'!$AT39","v":2.979661880139735},140690.54283494563,109456.32113626593,{"$f":"DJ97*'SouthAfrica-IO-Data'!AR39","v":0},{"$f":"DW97*'SouthAfrica-IO-Data'!$AR39","v":60002.131933632532},{"$f":"DX97*'SouthAfrica-IO-Data'!$AR39","v":46681.265772733757},{"$f":"DJ97*'SouthAfrica-IO-Data'!AS39","v":0},{"$f":"DW97*'SouthAfrica-IO-Data'!$AS39","v":19845.712588878556},{"$f":"DX97*'SouthAfrica-IO-Data'!$AS39","v":15439.834451806324},{"$f":"(EB97*'Default-Data'!$F$19/biopower_dollar_index)/'SouthAfrica-IO-Data'!$AT39","v":0},{"$f":"(EC97*'Default-Data'!$F$19/biopower_dollar_index)/'SouthAfrica-IO-Data'!$AT39","v":1.2329867596127109},{"$f":"(ED97*'Default-Data'!$F$19/biopower_dollar_index)/'SouthAfrica-IO-Data'!$AT39","v":0.95925562584019697},null,"PUBLIC",0,0,null,3148347.7048708051,15611631.018503565,{"$f":"EJ97*'Zambia-IO-Data'!BO37","v":0},{"$f":"EM97*'Zambia-IO-Data'!$BO37","v":674248.35963139893},{"$f":"EN97*'Zambia-IO-Data'!$BO37","v":3343378.0484638819},{"$f":"EJ97*'Zambia-IO-Data'!BN37","v":0},{"$f":"EM97*'Zambia-IO-Data'!$BN37","v":438578.05351508583},{"$f":"EN97*'Zambia-IO-Data'!$BN37","v":2174765.7457586941},{"$f":"(ER97*'Default-Data'!$F$19/biopower_dollar_index)/'Zambia-IO-Data'!$BP37","v":0},{"$f":"(ES97*'Default-Data'!$F$19/biopower_dollar_index)/'Zambia-IO-Data'!$BP37","v":1023.2548884901639},{"$f":"(ET97*'Default-Data'!$F$19/biopower_dollar_index)/'Zambia-IO-Data'!$BP37","v":5073.9877721491948},23665.478376411455,1386952.6926848842,{"$f":"EK97*'Zambia-IO-Data'!BO37","v":0},{"$f":"EX97*'Zambia-IO-Data'!$BO37","v":5068.1854327911815},{"$f":"EY97*'Zambia-IO-Data'!$BO37","v":297029.00238190481},{"$f":"EK97*'Zambia-IO-Data'!BN37","v":0},{"$f":"EX97*'Zambia-IO-Data'!$BN37","v":3296.700496508789},{"$f":"EY97*'Zambia-IO-Data'!$BN37","v":193208.3331628725},{"$f":"(FC97*'Default-Data'!$F$19/biopower_dollar_index)/'Zambia-IO-Data'!$BP37","v":0},{"$f":"(FD97*'Default-Data'!$F$19/biopower_dollar_index)/'Zambia-IO-Data'!$BP37","v":7.6915953087573623},{"$f":"(FE97*'Default-Data'!$F$19/biopower_dollar_index)/'Zambia-IO-Data'!$BP37","v":450.77807660785106},null,"TTL_C71: Renting of machinery and equipment",0,0,null,2776464.5663142269,1639679.482239089,{"$f":"FK97*CustomRegion1!C35","v":0},{"$f":"FN97*CustomRegion1!$C35","v":1403698.4163357078},{"$f":"FO97*CustomRegion1!$C35","v":828973.47959767794},{"$f":"FK97*CustomRegion1!D35","v":0},{"$f":"FN97*CustomRegion1!$D35","v":383716.72189930087},{"$f":"FO97*CustomRegion1!$D35","v":226609.20781191753},{"$f":"(FS97*'Default-Data'!$F$19/biopower_dollar_index)/CustomRegion1!$E35","v":0},{"$f":"(FT97*'Default-Data'!$F$19/biopower_dollar_index)/CustomRegion1!$E35","v":97.168923151068682},{"$f":"(FU97*'Default-Data'!$F$19/biopower_dollar_index)/CustomRegion1!$E35","v":57.384449106649392},237299.75822768989,158013.18147684378,{"$f":"FL97*CustomRegion1!C35","v":0},{"$f":"FY97*CustomRegion1!$C35","v":119971.74351237742},{"$f":"FZ97*CustomRegion1!$C35","v":79886.793906992665},{"$f":"FL97*CustomRegion1!D35","v":0},{"$f":"FY97*CustomRegion1!$D35","v":32795.623052198011},{"$f":"FZ97*CustomRegion1!$D35","v":21837.952030363402},{"$f":"(GD97*'Default-Data'!$C$58/biopower_dollar_index)/CustomRegion1!$E35","v":0},{"$f":"(GE97*'Default-Data'!$C$58/biopower_dollar_index)/CustomRegion1!$E35","v":8.3048644851259255},{"$f":"(GF97*'Default-Data'!$C$58/biopower_dollar_index)/CustomRegion1!$E35","v":5.5300438096934865},null,"C65T67 Finance and insurance",0,0,null,10711150.580745209,11507968.18159147,{"$f":"GL97*CustomRegion2!C39","v":0},{"$f":"GO97*CustomRegion2!$C39","v":6626246.4493093258},{"$f":"GP97*CustomRegion2!$C39","v":7119182.269653976},{"$f":"GL97*CustomRegion2!D39","v":0},{"$f":"GO97*CustomRegion2!$D39","v":2073877.0048257113},{"$f":"GP97*CustomRegion2!$D39","v":2228155.6406247499},{"$f":"(GT97*'Default-Data'!$C$59/biopower_dollar_index)/CustomRegion2!$E39","v":0},{"$f":"(GU97*'Default-Data'!$C$59/biopower_dollar_index)/CustomRegion2!$E39","v":156.80903665881709},{"$f":"(GV97*'Default-Data'!$C$59/biopower_dollar_index)/CustomRegion2!$E39","v":168.4742820906294},810791.6902305407,523631.56883329689,{"$f":"GM97*CustomRegion2!C39","v":0},{"$f":"GZ97*CustomRegion2!$C39","v":501580.6208697558},{"$f":"HA97*CustomRegion2!$C39","v":323934.55750357924},{"$f":"GM97*CustomRegion2!D39","v":0},{"$f":"GZ97*CustomRegion2!$D39","v":156984.27814987392},{"$f":"HA97*CustomRegion2!$D39","v":101384.76360852666},{"$f":"(HE97*'Default-Data'!$C$59/biopower_dollar_index)/CustomRegion2!$E39","v":0},{"$f":"(HF97*'Default-Data'!$C$59/biopower_dollar_index)/CustomRegion2!$E39","v":11.869823219979379},{"$f":"(HG97*'Default-Data'!$C$59/biopower_dollar_index)/CustomRegion2!$E39","v":7.6658582338015915},null,"PUBLIC",0,0,null,3148347.7048708051,15611631.018503565,{"$f":"HM97*CustomRegion3!D38","v":0},{"$f":"HP97*CustomRegion3!$D38","v":674248.35963139893},{"$f":"HQ97*CustomRegion3!$D38","v":3343378.0484638819},{"$f":"HM97*CustomRegion3!E38","v":0},{"$f":"HP97*CustomRegion3!$E38","v":438578.05351508583},{"$f":"HQ97*CustomRegion3!$E38","v":2174765.7457586941},{"$f":"(HU97*'Default-Data'!$C$60/biopower_dollar_index)/CustomRegion3!$F38","v":0},{"$f":"(HV97*'Default-Data'!$C$60/biopower_dollar_index)/CustomRegion3!$F38","v":1023.2548884901639},{"$f":"(HW97*'Default-Data'!$C$60/biopower_dollar_index)/CustomRegion3!$F38","v":5073.9877721491948},23665.478376411455,1386952.6926848842,{"$f":"HN97*CustomRegion3!D38","v":0},{"$f":"IA97*CustomRegion3!$D38","v":5068.1854327911815},{"$f":"IB97*CustomRegion3!$D38","v":297029.00238190481},{"$f":"HN97*CustomRegion3!E38","v":0},{"$f":"IA97*CustomRegion3!$E38","v":3296.700496508789},{"$f":"IB97*CustomRegion3!$E38","v":193208.3331628725},{"$f":"(IF97*'Default-Data'!$C$60/biopower_dollar_index)/CustomRegion3!$F38","v":0},{"$f":"(IG97*'Default-Data'!$C$60/biopower_dollar_index)/CustomRegion3!$F38","v":7.6915953087573623},{"$f":"(IH97*'Default-Data'!$C$60/biopower_dollar_index)/CustomRegion3!$F38","v":450.77807660785106}]
[null,310,"Manufacturing",1000000,null,null,196013.79891822612,47580.611067938764,376641.77335229964,66091.441618145866,16113.420483610036,46161.292871819183,11118.286714615193,3585.0869910790821,4.5774324217030893,1.3467491907348152,0.70778752757907959,null,null,null,null,null,null,null,null,null,null,null,null,97,"TTL_C72: Computer and related activities",0,0,null,7155043.8666713145,1683461.8830288164,{"$f":"'Colombia-IO-Data'!$AN40*Calculations!AF98","v":0},{"$f":"'Colombia-IO-Data'!$AN40*AI98","v":5107551.1350454073},{"$f":"'Colombia-IO-Data'!$AN40*AJ98","v":1201721.1650541092},{"$f":"'Colombia-IO-Data'!$AO40*Calculations!AK98","v":0},{"$f":"'Colombia-IO-Data'!$AO40*Calculations!AL98","v":1971554.0581521322},{"$f":"'Colombia-IO-Data'!$AO40*Calculations!AM98","v":463873.62105356075},{"$f":"(AN98*'Default-Data'!$F$19/biopower_dollar_index)/'Colombia-IO-Data'!$AP40","v":0},{"$f":"(AO98*'Default-Data'!$F$19/biopower_dollar_index)/'Colombia-IO-Data'!$AP40","v":187.99386653658291},{"$f":"(AP98*'Default-Data'!$F$19/biopower_dollar_index)/'Colombia-IO-Data'!$AP40","v":44.231805486438994},235710.81095276715,161937.26617461961,{"$f":"'Colombia-IO-Data'!$AN40*AG98","v":0},{"$f":"'Colombia-IO-Data'!$AN40*AT98","v":168259.62809706191},{"$f":"'Colombia-IO-Data'!$AN40*AU98","v":115597.17635122134},{"$f":"'Colombia-IO-Data'!$AO40*AV98","v":0},{"$f":"'Colombia-IO-Data'!$AO40*AW98","v":64949.511777131091},{"$f":"'Colombia-IO-Data'!$AO40*AX98","v":44621.399986072189},{"$f":"(AY98*'Default-Data'!$F$19/biopower_dollar_index)/'Colombia-IO-Data'!$AP40","v":0},{"$f":"(AZ98*'Default-Data'!$F$19/biopower_dollar_index)/'Colombia-IO-Data'!$AP40","v":6.1931397712169796},{"$f":"(BA98*'Default-Data'!$F$19/biopower_dollar_index)/'Colombia-IO-Data'!$AP40","v":4.2547905186629418},null,"DOM_C72: Computer and related activities",0,0,null,717368.10235299426,207177.28167655994,{"$f":"BG98*'Mexico-IO-Data'!AQ40","v":0},{"$f":"BJ98*'Mexico-IO-Data'!$AQ40","v":508370.91838239977},{"$f":"BK98*'Mexico-IO-Data'!$AQ40","v":146818.49472874362},{"$f":"BG98*'Mexico-IO-Data'!AR40","v":0},{"$f":"BJ98*'Mexico-IO-Data'!$AR40","v":299667.23807299341},{"$f":"BK98*'Mexico-IO-Data'!$AR40","v":86544.472200320393},{"$f":"(BO98*'Default-Data'!$F$19/biopower_dollar_index)/'Mexico-IO-Data'!$AS40","v":0},{"$f":"(BP98*'Default-Data'!$F$19/biopower_dollar_index)/'Mexico-IO-Data'!$AS40","v":24.187975980775484},{"$f":"(BQ98*'Default-Data'!$F$19/biopower_dollar_index)/'Mexico-IO-Data'!$AS40","v":6.9855337817754481},20023.04503056606,13670.757326381889,{"$f":"BH98*'Mexico-IO-Data'!AQ40","v":0},{"$f":"BU98*'Mexico-IO-Data'!$AQ40","v":14189.554508505569},{"$f":"BV98*'Mexico-IO-Data'!$AQ40","v":9687.9348749965684},{"$f":"BH98*'Mexico-IO-Data'!AR40","v":0},{"$f":"BU98*'Mexico-IO-Data'!$AR40","v":8364.256206039634},{"$f":"BV98*'Mexico-IO-Data'!$AR40","v":5710.7056710853785},{"$f":"(BZ98*'Default-Data'!$F$19/biopower_dollar_index)/'Mexico-IO-Data'!$AS40","v":0},{"$f":"(CA98*'Default-Data'!$F$19/biopower_dollar_index)/'Mexico-IO-Data'!$AS40","v":0.67513028621253179},{"$f":"(CB98*'Default-Data'!$F$19/biopower_dollar_index)/'Mexico-IO-Data'!$AS40","v":0.46094598960412697},null,"TTL_C72: Computer and related activities",0,0,null,3850641.5881385566,1512760.1026860974,{"$f":"CH98*'Philippines-IO-Data'!AN40","v":0},{"$f":"CK98*'Philippines-IO-Data'!$AN40","v":1924045.6416268116},{"$f":"CL98*'Philippines-IO-Data'!$AN40","v":755879.09593194304},{"$f":"CH98*'Philippines-IO-Data'!AO40","v":0},{"$f":"CK98*'Philippines-IO-Data'!$AO40","v":671048.9728480553},{"$f":"CL98*'Philippines-IO-Data'!$AO40","v":263627.7850943153},{"$f":"(CP98*'Default-Data'!$F$19/biopower_dollar_index)/'Philippines-IO-Data'!$AP40","v":0},{"$f":"(CQ98*'Default-Data'!$F$19/biopower_dollar_index)/'Philippines-IO-Data'!$AP40","v":169.93032190655506},{"$f":"(CR98*'Default-Data'!$F$19/biopower_dollar_index)/'Philippines-IO-Data'!$AP40","v":66.758696007620216},104468.97078244225,151241.68367281562,{"$f":"CI98*'Philippines-IO-Data'!AN40","v":0},{"$f":"CV98*'Philippines-IO-Data'!$AN40","v":52199.89015294562},{"$f":"CW98*'Philippines-IO-Data'!$AN40","v":75570.757662660704},{"$f":"CI98*'Philippines-IO-Data'!AO40","v":0},{"$f":"CV98*'Philippines-IO-Data'!$AO40","v":18205.744142482068},{"$f":"CW98*'Philippines-IO-Data'!$AO40","v":26356.796434413183},{"$f":"(DA98*'Default-Data'!$F$19/biopower_dollar_index)/'Philippines-IO-Data'!$AP40","v":0},{"$f":"(DB98*'Default-Data'!$F$19/biopower_dollar_index)/'Philippines-IO-Data'!$AP40","v":4.6102566099611053},{"$f":"(DC98*'Default-Data'!$F$19/biopower_dollar_index)/'Philippines-IO-Data'!$AP40","v":6.6743547546409969},null,"DOM_C72: Computer and related activities",0,0,null,614625.24202231551,202115.91898742516,{"$f":"DI98*'SouthAfrica-IO-Data'!AR40","v":0},{"$f":"DL98*'Mexico-IO-Data'!$AQ40","v":435561.04282169312},{"$f":"DM98*'Mexico-IO-Data'!$AQ40","v":143231.70352614881},{"$f":"DI98*'SouthAfrica-IO-Data'!AS40","v":0},{"$f":"DL98*'Mexico-IO-Data'!$AR40","v":256748.31111481696},{"$f":"DM98*'Mexico-IO-Data'!$AR40","v":84430.181680622336},{"$f":"(DQ98*'Default-Data'!$F$19/biopower_dollar_index)/'SouthAfrica-IO-Data'!$AT40","v":0},{"$f":"(DR98*'Default-Data'!$F$19/biopower_dollar_index)/'SouthAfrica-IO-Data'!$AT40","v":15.951418561553547},{"$f":"(DS98*'Default-Data'!$F$19/biopower_dollar_index)/'SouthAfrica-IO-Data'!$AT40","v":5.2455307743517796},20024.289935408491,17271.287293504265,{"$f":"DJ98*'SouthAfrica-IO-Data'!AR40","v":0},{"$f":"DW98*'SouthAfrica-IO-Data'!$AR40","v":10004.808271342959},{"$f":"DX98*'SouthAfrica-IO-Data'!$AR40","v":8629.315622584998},{"$f":"DJ98*'SouthAfrica-IO-Data'!AS40","v":0},{"$f":"DW98*'SouthAfrica-IO-Data'!$AS40","v":7564.1339484878436},{"$f":"DX98*'SouthAfrica-IO-Data'!$AS40","v":6524.1929163176228},{"$f":"(EB98*'Default-Data'!$F$19/biopower_dollar_index)/'SouthAfrica-IO-Data'!$AT40","v":0},{"$f":"(EC98*'Default-Data'!$F$19/biopower_dollar_index)/'SouthAfrica-IO-Data'!$AT40","v":0.46994921269035406},{"$f":"(ED98*'Default-Data'!$F$19/biopower_dollar_index)/'SouthAfrica-IO-Data'!$AT40","v":0.40533911024624147},null,"LNONE",0,0,null,0,44259007.522903889,{"$f":"EJ98*'Zambia-IO-Data'!BO38","v":0},{"$f":"EM98*'Zambia-IO-Data'!$BO38","v":0},{"$f":"EN98*'Zambia-IO-Data'!$BO38","v":0},{"$f":"EJ98*'Zambia-IO-Data'!BN38","v":0},{"$f":"EM98*'Zambia-IO-Data'!$BN38","v":0},{"$f":"EN98*'Zambia-IO-Data'!$BN38","v":0},0,0,0,0,11569629.696402106,{"$f":"EK98*'Zambia-IO-Data'!BO38","v":0},{"$f":"EX98*'Zambia-IO-Data'!$BO38","v":0},{"$f":"EY98*'Zambia-IO-Data'!$BO38","v":0},{"$f":"EK98*'Zambia-IO-Data'!BN38","v":0},{"$f":"EX98*'Zambia-IO-Data'!$BN38","v":0},{"$f":"EY98*'Zambia-IO-Data'!$BN38","v":0},0,0,0,null,"TTL_C72: Computer and related activities",0,0,null,11677833.067546532,4972475.8546794392,{"$f":"FK98*CustomRegion1!C36","v":0},{"$f":"FN98*CustomRegion1!$C36","v":5835049.3815031946},{"$f":"FO98*CustomRegion1!$C36","v":2484591.2758438406},{"$f":"FK98*CustomRegion1!D36","v":0},{"$f":"FN98*CustomRegion1!$D36","v":2035088.8821247988},{"$f":"FO98*CustomRegion1!$D36","v":866550.34970611962},{"$f":"(FS98*'Default-Data'!$F$19/biopower_dollar_index)/CustomRegion1!$E36","v":0},{"$f":"(FT98*'Default-Data'!$F$19/biopower_dollar_index)/CustomRegion1!$E36","v":515.34734846576191},{"$f":"(FU98*'Default-Data'!$F$19/biopower_dollar_index)/CustomRegion1!$E36","v":219.43730760637212},483363.62976036902,479189.2184573402,{"$f":"FL98*CustomRegion1!C36","v":0},{"$f":"FY98*CustomRegion1!$C36","v":241521.74744752934},{"$f":"FZ98*CustomRegion1!$C36","v":239435.92416584789},{"$f":"FL98*CustomRegion1!D36","v":0},{"$f":"FY98*CustomRegion1!$D36","v":84235.486434769162},{"$f":"FZ98*CustomRegion1!$D36","v":83508.014310183047},{"$f":"(GD98*'Default-Data'!$C$58/biopower_dollar_index)/CustomRegion1!$E36","v":0},{"$f":"(GE98*'Default-Data'!$C$58/biopower_dollar_index)/CustomRegion1!$E36","v":21.331026355742168},{"$f":"(GF98*'Default-Data'!$C$58/biopower_dollar_index)/CustomRegion1!$E36","v":21.146807949469519},null,"C70 Real estate activities",0,0,null,12948121.104363728,38292322.497880057,{"$f":"GL98*CustomRegion2!C40","v":0},{"$f":"GO98*CustomRegion2!$C40","v":11597250.591793422},{"$f":"GP98*CustomRegion2!$C40","v":34297305.081585921},{"$f":"GL98*CustomRegion2!D40","v":0},{"$f":"GO98*CustomRegion2!$D40","v":114150.31876768787},{"$f":"GP98*CustomRegion2!$D40","v":337584.17798664153},{"$f":"(GT98*'Default-Data'!$C$59/biopower_dollar_index)/CustomRegion2!$E40","v":0},{"$f":"(GU98*'Default-Data'!$C$59/biopower_dollar_index)/CustomRegion2!$E40","v":48.742686076312715},{"$f":"(GV98*'Default-Data'!$C$59/biopower_dollar_index)/CustomRegion2!$E40","v":144.14992257201419},233567.60947422482,1742363.950563387,{"$f":"GM98*CustomRegion2!C40","v":0},{"$f":"GZ98*CustomRegion2!$C40","v":209199.6263678626},{"$f":"HA98*CustomRegion2!$C40","v":1560584.056476024},{"$f":"GM98*CustomRegion2!D40","v":0},{"$f":"GZ98*CustomRegion2!$D40","v":2059.1263288620407},{"$f":"HA98*CustomRegion2!$D40","v":15360.63794608076},{"$f":"(HE98*'Default-Data'!$C$59/biopower_dollar_index)/CustomRegion2!$E40","v":0},{"$f":"(HF98*'Default-Data'!$C$59/biopower_dollar_index)/CustomRegion2!$E40","v":0.87925596111084492},{"$f":"(HG98*'Default-Data'!$C$59/biopower_dollar_index)/CustomRegion2!$E40","v":6.5590596804329611},null,"LNONE",0,0,null,0,44259007.522903889,{"$f":"HM98*CustomRegion3!D39","v":0},{"$f":"HP98*CustomRegion3!$D39","v":0},{"$f":"HQ98*CustomRegion3!$D39","v":0},{"$f":"HM98*CustomRegion3!E39","v":0},{"$f":"HP98*CustomRegion3!$E39","v":0},{"$f":"HQ98*CustomRegion3!$E39","v":0},0,0,0,0,11569629.696402106,{"$f":"HN98*CustomRegion3!D39","v":0},{"$f":"IA98*CustomRegion3!$D39","v":0},{"$f":"IB98*CustomRegion3!$D39","v":0},{"$f":"HN98*CustomRegion3!E39","v":0},{"$f":"IA98*CustomRegion3!$E39","v":0},{"$f":"IB98*CustomRegion3!$E39","v":0},0,0,0]
[null,311,"Sales",0,null,null,94911.012295237757,28098.738968694757,0,72271.709137645797,21396.293652027936,0,14552.878259709376,4308.4307876809398,0,3.0519657242378355,0.90354518567352049,null,null,null,null,null,null,null,null,null,null,null,null,98,"TTL_C73T74: R&D and other business activities",{"$f":"'Biopower-Inputs'!B26*'Biopower-Inputs'!C26","v":256054274.957948},0,null,38160879.567222387,14612036.115558237,{"$f":"'Colombia-IO-Data'!$AN41*Calculations!AF99","v":186744904.03798825},{"$f":"'Colombia-IO-Data'!$AN41*AI99","v":27831403.298994079},{"$f":"'Colombia-IO-Data'!$AN41*AJ99","v":10656815.952975916},{"$f":"'Colombia-IO-Data'!$AO41*Calculations!AK99","v":70027127.130699396},{"$f":"'Colombia-IO-Data'!$AO41*Calculations!AL99","v":10436446.590520954},{"$f":"'Colombia-IO-Data'!$AO41*Calculations!AM99","v":3996179.7586492752},{"$f":"(AN99*'Default-Data'!$F$19/biopower_dollar_index)/'Colombia-IO-Data'!$AP41","v":6677.3063296513446},{"$f":"(AO99*'Default-Data'!$F$19/biopower_dollar_index)/'Colombia-IO-Data'!$AP41","v":995.14793385552605},{"$f":"(AP99*'Default-Data'!$F$19/biopower_dollar_index)/'Colombia-IO-Data'!$AP41","v":381.0482807191363},3297827.2762370273,1405575.7398801777,{"$f":"'Colombia-IO-Data'!$AN41*AG99","v":0},{"$f":"'Colombia-IO-Data'!$AN41*AT99","v":2405163.6643671962},{"$f":"'Colombia-IO-Data'!$AN41*AU99","v":1025111.2062282737},{"$f":"'Colombia-IO-Data'!$AO41*AV99","v":0},{"$f":"'Colombia-IO-Data'!$AO41*AW99","v":901907.88638879568},{"$f":"'Colombia-IO-Data'!$AO41*AX99","v":384404.56049632857},{"$f":"(AY99*'Default-Data'!$F$19/biopower_dollar_index)/'Colombia-IO-Data'!$AP41","v":0},{"$f":"(AZ99*'Default-Data'!$F$19/biopower_dollar_index)/'Colombia-IO-Data'!$AP41","v":85.999747316582841},{"$f":"(BA99*'Default-Data'!$F$19/biopower_dollar_index)/'Colombia-IO-Data'!$AP41","v":36.654181174079852},null,"DOM_C73T74: R&D and other business activities",256054274.957948,0,null,52432760.218135208,15931911.533356667,{"$f":"BG99*'Mexico-IO-Data'!AQ41","v":192334060.78975224},{"$f":"BJ99*'Mexico-IO-Data'!$AQ41","v":39384640.98217272},{"$f":"BK99*'Mexico-IO-Data'!$AQ41","v":11967186.417242283},{"$f":"BG99*'Mexico-IO-Data'!AR41","v":85074026.102371216},{"$f":"BJ99*'Mexico-IO-Data'!$AR41","v":17420783.199771162},{"$f":"BK99*'Mexico-IO-Data'!$AR41","v":5293377.1868173312},{"$f":"(BO99*'Default-Data'!$F$19/biopower_dollar_index)/'Mexico-IO-Data'!$AS41","v":22169.507803908455},{"$f":"(BP99*'Default-Data'!$F$19/biopower_dollar_index)/'Mexico-IO-Data'!$AS41","v":4539.6956837659227},{"$f":"(BQ99*'Default-Data'!$F$19/biopower_dollar_index)/'Mexico-IO-Data'!$AS41","v":1379.4053511816448},2888217.494003864,1051279.8244835027,{"$f":"BH99*'Mexico-IO-Data'!AQ41","v":0},{"$f":"BU99*'Mexico-IO-Data'!$AQ41","v":2169472.0744537292},{"$f":"BV99*'Mexico-IO-Data'!$AQ41","v":789664.2916915057},{"$f":"BH99*'Mexico-IO-Data'!AR41","v":0},{"$f":"BU99*'Mexico-IO-Data'!$AR41","v":959610.18621760351},{"$f":"BV99*'Mexico-IO-Data'!$AR41","v":349287.69396134466},{"$f":"(BZ99*'Default-Data'!$F$19/biopower_dollar_index)/'Mexico-IO-Data'!$AS41","v":0},{"$f":"(CA99*'Default-Data'!$F$19/biopower_dollar_index)/'Mexico-IO-Data'!$AS41","v":250.06557802332864},{"$f":"(CB99*'Default-Data'!$F$19/biopower_dollar_index)/'Mexico-IO-Data'!$AS41","v":91.021156654409069},null,"TTL_C73T74: R&D and other business activities",{"$f":"'Biopower-Inputs'!B26*'Biopower-Inputs'!C26","v":256054274.957948},0,null,15459664.939605385,5690578.0309814811,{"$f":"CH99*'Philippines-IO-Data'!AN41","v":124058244.77994724},{"$f":"CK99*'Philippines-IO-Data'!$AN41","v":7490204.5576411923},{"$f":"CL99*'Philippines-IO-Data'!$AN41","v":2757083.9128650813},{"$f":"CH99*'Philippines-IO-Data'!AO41","v":48548466.628427006},{"$f":"CK99*'Philippines-IO-Data'!$AO41","v":2931187.2552424963},{"$f":"CL99*'Philippines-IO-Data'!$AO41","v":1078946.3979030857},{"$f":"(CP99*'Default-Data'!$F$19/biopower_dollar_index)/'Philippines-IO-Data'!$AP41","v":12293.970926181941},{"$f":"(CQ99*'Default-Data'!$F$19/biopower_dollar_index)/'Philippines-IO-Data'!$AP41","v":742.2671280424305},{"$f":"(CR99*'Default-Data'!$F$19/biopower_dollar_index)/'Philippines-IO-Data'!$AP41","v":273.22254579637678},962565.57637449796,568928.67609939934,{"$f":"CI99*'Philippines-IO-Data'!AN41","v":0},{"$f":"CV99*'Philippines-IO-Data'!$AN41","v":466362.8283895278},{"$f":"CW99*'Philippines-IO-Data'!$AN41","v":275645.82928155392},{"$f":"CI99*'Philippines-IO-Data'!AO41","v":0},{"$f":"CV99*'Philippines-IO-Data'!$AO41","v":182504.59895646968},{"$f":"CW99*'Philippines-IO-Data'!$AO41","v":107870.15702082303},{"$f":"(DA99*'Default-Data'!$F$19/biopower_dollar_index)/'Philippines-IO-Data'!$AP41","v":0},{"$f":"(DB99*'Default-Data'!$F$19/biopower_dollar_index)/'Philippines-IO-Data'!$AP41","v":46.215800194841918},{"$f":"(DC99*'Default-Data'!$F$19/biopower_dollar_index)/'Philippines-IO-Data'!$AP41","v":27.316054786376412},null,"DOM_C73T74: R&D and other business activities",256054274.957948,0,null,59833721.30687806,33686672.921215773,{"$f":"DI99*'SouthAfrica-IO-Data'!AR41","v":109091279.83223826},{"$f":"DL99*'Mexico-IO-Data'!$AQ41","v":44943840.882969663},{"$f":"DM99*'Mexico-IO-Data'!$AQ41","v":25303598.615948442},{"$f":"DI99*'SouthAfrica-IO-Data'!AS41","v":70425156.624453366},{"$f":"DL99*'Mexico-IO-Data'!$AR41","v":19879752.326335236},{"$f":"DM99*'Mexico-IO-Data'!$AR41","v":11192396.189722726},{"$f":"(DQ99*'Default-Data'!$F$19/biopower_dollar_index)/'SouthAfrica-IO-Data'!$AT41","v":4375.4178779281201},{"$f":"(DR99*'Default-Data'!$F$19/biopower_dollar_index)/'SouthAfrica-IO-Data'!$AT41","v":1235.1016015664484},{"$f":"(DS99*'Default-Data'!$F$19/biopower_dollar_index)/'SouthAfrica-IO-Data'!$AT41","v":695.36814304170525},2378932.0901844837,2878606.5387597093,{"$f":"DJ99*'SouthAfrica-IO-Data'!AR41","v":0},{"$f":"DW99*'SouthAfrica-IO-Data'!$AR41","v":1013538.0336642623},{"$f":"DX99*'SouthAfrica-IO-Data'!$AR41","v":1226423.0757261124},{"$f":"DJ99*'SouthAfrica-IO-Data'!AS41","v":0},{"$f":"DW99*'SouthAfrica-IO-Data'!$AS41","v":654301.37839993171},{"$f":"DX99*'SouthAfrica-IO-Data'!$AS41","v":791731.81695803371},{"$f":"(EB99*'Default-Data'!$F$19/biopower_dollar_index)/'SouthAfrica-IO-Data'!$AT41","v":0},{"$f":"(EC99*'Default-Data'!$F$19/biopower_dollar_index)/'SouthAfrica-IO-Data'!$AT41","v":40.650842480484073},{"$f":"(ED99*'Default-Data'!$F$19/biopower_dollar_index)/'SouthAfrica-IO-Data'!$AT41","v":49.189206137169641},null,"LPRIM",0,0,null,0,80187653.959505185,{"$f":"EJ99*'Zambia-IO-Data'!BO39","v":0},{"$f":"EM99*'Zambia-IO-Data'!$BO39","v":0},{"$f":"EN99*'Zambia-IO-Data'!$BO39","v":0},{"$f":"EJ99*'Zambia-IO-Data'!BN39","v":0},{"$f":"EM99*'Zambia-IO-Data'!$BN39","v":0},{"$f":"EN99*'Zambia-IO-Data'!$BN39","v":0},0,0,0,0,8095008.5959587358,{"$f":"EK99*'Zambia-IO-Data'!BO39","v":0},{"$f":"EX99*'Zambia-IO-Data'!$BO39","v":0},{"$f":"EY99*'Zambia-IO-Data'!$BO39","v":0},{"$f":"EK99*'Zambia-IO-Data'!BN39","v":0},{"$f":"EX99*'Zambia-IO-Data'!$BN39","v":0},{"$f":"EY99*'Zambia-IO-Data'!$BN39","v":0},0,0,0,null,"TTL_C73T74: R&D and other business activities",256054274.957948,0,null,21180676.25229314,8625385.6938332915,{"$f":"FK99*CustomRegion1!C37","v":124058244.77994724},{"$f":"FN99*CustomRegion1!$C37","v":10262033.389379406},{"$f":"FO99*CustomRegion1!$C37","v":4178997.6359612066},{"$f":"FK99*CustomRegion1!D37","v":48548466.628427006},{"$f":"FN99*CustomRegion1!$D37","v":4015903.8718289183},{"$f":"FO99*CustomRegion1!$D37","v":1635392.5338022525},{"$f":"(FS99*'Default-Data'!$F$19/biopower_dollar_index)/CustomRegion1!$E37","v":12293.970926181941},{"$f":"(FT99*'Default-Data'!$F$19/biopower_dollar_index)/CustomRegion1!$E37","v":1016.9508713936877},{"$f":"(FU99*'Default-Data'!$F$19/biopower_dollar_index)/CustomRegion1!$E37","v":414.13189045372201},1462485.0626128733,831214.05720481207,{"$f":"FL99*CustomRegion1!C37","v":0},{"$f":"FY99*CustomRegion1!$C37","v":708573.71904624999},{"$f":"FZ99*CustomRegion1!$C37","v":402723.04373821896},{"$f":"FL99*CustomRegion1!D37","v":0},{"$f":"FY99*CustomRegion1!$D37","v":277290.4583158968},{"$f":"FZ99*CustomRegion1!$D37","v":157600.05539417232},{"$f":"(GD99*'Default-Data'!$C$58/biopower_dollar_index)/CustomRegion1!$E37","v":0},{"$f":"(GE99*'Default-Data'!$C$58/biopower_dollar_index)/CustomRegion1!$E37","v":70.218506770452748},{"$f":"(GF99*'Default-Data'!$C$58/biopower_dollar_index)/CustomRegion1!$E37","v":39.909200712965855},null,"C71 Renting of machinery and equipment",256054274.957948,0,null,5269879.8456558883,2328099.4601947069,{"$f":"GL99*CustomRegion2!C41","v":217472046.12635484},{"$f":"GO99*CustomRegion2!$C41","v":4475814.9539313177},{"$f":"GP99*CustomRegion2!$C41","v":1977301.7001077393},{"$f":"GL99*CustomRegion2!D41","v":9750064.980537774},{"$f":"GO99*CustomRegion2!$D41","v":200667.10834337657},{"$f":"GP99*CustomRegion2!$D41","v":88649.646727363579},{"$f":"(GT99*'Default-Data'!$C$59/biopower_dollar_index)/CustomRegion2!$E41","v":4163.3204506173361},{"$f":"(GU99*'Default-Data'!$C$59/biopower_dollar_index)/CustomRegion2!$E41","v":85.685734156629664},{"$f":"(GV99*'Default-Data'!$C$59/biopower_dollar_index)/CustomRegion2!$E41","v":37.853787425699615},181082.12443967114,105932.37255311172,{"$f":"GM99*CustomRegion2!C41","v":0},{"$f":"GZ99*CustomRegion2!$C41","v":153796.69066361009},{"$f":"HA99*CustomRegion2!$C41","v":89970.494786419629},{"$f":"GM99*CustomRegion2!D41","v":0},{"$f":"GZ99*CustomRegion2!$D41","v":6895.2665617107186},{"$f":"HA99*CustomRegion2!$D41","v":4033.7054169667776},{"$f":"(HE99*'Default-Data'!$C$59/biopower_dollar_index)/CustomRegion2!$E41","v":0},{"$f":"(HF99*'Default-Data'!$C$59/biopower_dollar_index)/CustomRegion2!$E41","v":2.9443090221584081},{"$f":"(HG99*'Default-Data'!$C$59/biopower_dollar_index)/CustomRegion2!$E41","v":1.7224098801131729},null,"LPRIM",0,0,null,0,80187653.959505185,{"$f":"HM99*CustomRegion3!D40","v":0},{"$f":"HP99*CustomRegion3!$D40","v":0},{"$f":"HQ99*CustomRegion3!$D40","v":0},{"$f":"HM99*CustomRegion3!E40","v":0},{"$f":"HP99*CustomRegion3!$E40","v":0},{"$f":"HQ99*CustomRegion3!$E40","v":0},0,0,0,0,8095008.5959587358,{"$f":"HN99*CustomRegion3!D40","v":0},{"$f":"IA99*CustomRegion3!$D40","v":0},{"$f":"IB99*CustomRegion3!$D40","v":0},{"$f":"HN99*CustomRegion3!E40","v":0},{"$f":"IA99*CustomRegion3!$E40","v":0},{"$f":"IB99*CustomRegion3!$E40","v":0},0,0,0]
[null,312,"Transportation and Warehousing",0,null,null,26997.033962203343,16235.138720838317,0,19731.999665611009,11866.183235507724,0,6365.8034871311474,3828.1873048670145,0,0.89651835248090805,0.53913699700057949,null,null,null,null,null,null,null,null,null,null,null,null,99,"TTL_C75: Public administration and defence; compulsory social security",0,0,null,213928.46882217762,28972441.464554477,{"$f":"'Colombia-IO-Data'!$AN42*Calculations!AF100","v":0},{"$f":"'Colombia-IO-Data'!$AN42*AI100","v":129536.56421822519},{"$f":"'Colombia-IO-Data'!$AN42*AJ100","v":17543202.851844862},{"$f":"'Colombia-IO-Data'!$AO42*Calculations!AK100","v":0},{"$f":"'Colombia-IO-Data'!$AO42*Calculations!AL100","v":108753.19359364107},{"$f":"'Colombia-IO-Data'!$AO42*Calculations!AM100","v":14728500.385304883},{"$f":"(AN100*'Default-Data'!$F$19/biopower_dollar_index)/'Colombia-IO-Data'!$AP42","v":0},{"$f":"(AO100*'Default-Data'!$F$19/biopower_dollar_index)/'Colombia-IO-Data'!$AP42","v":10.369958296265251},{"$f":"(AP100*'Default-Data'!$F$19/biopower_dollar_index)/'Colombia-IO-Data'!$AP42","v":1404.4087324261238},1734.0812341086071,2786946.3588525085,{"$f":"'Colombia-IO-Data'!$AN42*AG100","v":0},{"$f":"'Colombia-IO-Data'!$AN42*AT100","v":1050.0095026082945},{"$f":"'Colombia-IO-Data'!$AN42*AU100","v":1687533.4917968682},{"$f":"'Colombia-IO-Data'!$AO42*AV100","v":0},{"$f":"'Colombia-IO-Data'!$AO42*AW100","v":881.54172840301692},{"$f":"'Colombia-IO-Data'!$AO42*AX100","v":1416778.7885740206},{"$f":"(AY100*'Default-Data'!$F$19/biopower_dollar_index)/'Colombia-IO-Data'!$AP42","v":0},{"$f":"(AZ100*'Default-Data'!$F$19/biopower_dollar_index)/'Colombia-IO-Data'!$AP42","v":8.4057770239966453E-2},{"$f":"(BA100*'Default-Data'!$F$19/biopower_dollar_index)/'Colombia-IO-Data'!$AP42","v":135.09430359758053},null,"DOM_C75: Public administration and defence; compulsory social security",0,0,null,8199.3210250287557,20335875.652893089,{"$f":"BG100*'Mexico-IO-Data'!AQ42","v":0},{"$f":"BJ100*'Mexico-IO-Data'!$AQ42","v":5875.7508979967915},{"$f":"BK100*'Mexico-IO-Data'!$AQ42","v":14572979.794826195},{"$f":"BG100*'Mexico-IO-Data'!AR42","v":0},{"$f":"BJ100*'Mexico-IO-Data'!$AR42","v":5792.4842477450584},{"$f":"BK100*'Mexico-IO-Data'!$AR42","v":14366462.664885396},{"$f":"(BO100*'Default-Data'!$F$19/biopower_dollar_index)/'Mexico-IO-Data'!$AS42","v":0},{"$f":"(BP100*'Default-Data'!$F$19/biopower_dollar_index)/'Mexico-IO-Data'!$AS42","v":3.9962340719860712},{"$f":"(BQ100*'Default-Data'!$F$19/biopower_dollar_index)/'Mexico-IO-Data'!$AS42","v":9911.4205822278236},2385.3003220228848,1341878.8914519926,{"$f":"BH100*'Mexico-IO-Data'!AQ42","v":0},{"$f":"BU100*'Mexico-IO-Data'!$AQ42","v":1709.3403790796017},{"$f":"BV100*'Mexico-IO-Data'!$AQ42","v":961609.63540567469},{"$f":"BH100*'Mexico-IO-Data'!AR42","v":0},{"$f":"BU100*'Mexico-IO-Data'!$AR42","v":1685.1169138618179},{"$f":"BV100*'Mexico-IO-Data'!$AR42","v":947982.43871540669},{"$f":"(BZ100*'Default-Data'!$F$19/biopower_dollar_index)/'Mexico-IO-Data'!$AS42","v":0},{"$f":"(CA100*'Default-Data'!$F$19/biopower_dollar_index)/'Mexico-IO-Data'!$AS42","v":1.1625619230774988},{"$f":"(CB100*'Default-Data'!$F$19/biopower_dollar_index)/'Mexico-IO-Data'!$AS42","v":654.01295182006163},null,"TTL_C75: Public administration and defence; compulsory social security",0,0,null,364546.9622753337,19484031.518820893,{"$f":"CH100*'Philippines-IO-Data'!AN42","v":0},{"$f":"CK100*'Philippines-IO-Data'!$AN42","v":203059.20631804195},{"$f":"CL100*'Philippines-IO-Data'!$AN42","v":10852955.546230281},{"$f":"CH100*'Philippines-IO-Data'!AO42","v":0},{"$f":"CK100*'Philippines-IO-Data'!$AO42","v":172459.69300265107},{"$f":"CL100*'Philippines-IO-Data'!$AO42","v":9217495.8014104683},{"$f":"(CP100*'Default-Data'!$F$19/biopower_dollar_index)/'Philippines-IO-Data'!$AP42","v":0},{"$f":"(CQ100*'Default-Data'!$F$19/biopower_dollar_index)/'Philippines-IO-Data'!$AP42","v":43.672119820801676},{"$f":"(CR100*'Default-Data'!$F$19/biopower_dollar_index)/'Philippines-IO-Data'!$AP42","v":2334.1545730383868},4022.9362816291637,1947961.0325578148,{"$f":"CI100*'Philippines-IO-Data'!AN42","v":0},{"$f":"CV100*'Philippines-IO-Data'!$AN42","v":2240.8477725805105},{"$f":"CW100*'Philippines-IO-Data'!$AN42","v":1085049.2862176499},{"$f":"CI100*'Philippines-IO-Data'!AO42","v":0},{"$f":"CV100*'Philippines-IO-Data'!$AO42","v":1903.1686665790558},{"$f":"CW100*'Philippines-IO-Data'!$AO42","v":921540.42255416408},{"$f":"(DA100*'Default-Data'!$F$19/biopower_dollar_index)/'Philippines-IO-Data'!$AP42","v":0},{"$f":"(DB100*'Default-Data'!$F$19/biopower_dollar_index)/'Philippines-IO-Data'!$AP42","v":0.48194107619545751},{"$f":"(DC100*'Default-Data'!$F$19/biopower_dollar_index)/'Philippines-IO-Data'!$AP42","v":233.36249214405709},null,"DOM_C75: Public administration and defence; compulsory social security",0,0,null,111468.52369045533,94757162.392117858,{"$f":"DI100*'SouthAfrica-IO-Data'!AR42","v":0},{"$f":"DL100*'Mexico-IO-Data'!$AQ42","v":79879.940811351829},{"$f":"DM100*'Mexico-IO-Data'!$AQ42","v":67904339.922482997},{"$f":"DI100*'SouthAfrica-IO-Data'!AS42","v":0},{"$f":"DL100*'Mexico-IO-Data'!$AR42","v":78747.943351089241},{"$f":"DM100*'Mexico-IO-Data'!$AR42","v":66942051.523764819},{"$f":"(DQ100*'Default-Data'!$F$19/biopower_dollar_index)/'SouthAfrica-IO-Data'!$AT42","v":0},{"$f":"(DR100*'Default-Data'!$F$19/biopower_dollar_index)/'SouthAfrica-IO-Data'!$AT42","v":4.683296651822574},{"$f":"(DS100*'Default-Data'!$F$19/biopower_dollar_index)/'SouthAfrica-IO-Data'!$AT42","v":3981.176808258138},8446.4255335240687,8097225.5079686586,{"$f":"DJ100*'SouthAfrica-IO-Data'!AR42","v":0},{"$f":"DW100*'SouthAfrica-IO-Data'!$AR42","v":5228.1889387792926},{"$f":"DX100*'SouthAfrica-IO-Data'!$AR42","v":5012040.2610002654},{"$f":"DJ100*'SouthAfrica-IO-Data'!AS42","v":0},{"$f":"DW100*'SouthAfrica-IO-Data'!$AS42","v":4611.4046650250557},{"$f":"DX100*'SouthAfrica-IO-Data'!$AS42","v":4420755.6596580213},{"$f":"(EB100*'Default-Data'!$F$19/biopower_dollar_index)/'SouthAfrica-IO-Data'!$AT42","v":0},{"$f":"(EC100*'Default-Data'!$F$19/biopower_dollar_index)/'SouthAfrica-IO-Data'!$AT42","v":0.27424939762077127},{"$f":"(ED100*'Default-Data'!$F$19/biopower_dollar_index)/'SouthAfrica-IO-Data'!$AT42","v":262.91112247969249},null,"LSECD",0,0,null,0,37392288.246259108,{"$f":"EJ100*'Zambia-IO-Data'!BO40","v":0},{"$f":"EM100*'Zambia-IO-Data'!$BO40","v":0},{"$f":"EN100*'Zambia-IO-Data'!$BO40","v":0},{"$f":"EJ100*'Zambia-IO-Data'!BN40","v":0},{"$f":"EM100*'Zambia-IO-Data'!$BN40","v":0},{"$f":"EN100*'Zambia-IO-Data'!$BN40","v":0},0,0,0,0,2262428.0106611066,{"$f":"EK100*'Zambia-IO-Data'!BO40","v":0},{"$f":"EX100*'Zambia-IO-Data'!$BO40","v":0},{"$f":"EY100*'Zambia-IO-Data'!$BO40","v":0},{"$f":"EK100*'Zambia-IO-Data'!BN40","v":0},{"$f":"EX100*'Zambia-IO-Data'!$BN40","v":0},{"$f":"EY100*'Zambia-IO-Data'!$BN40","v":0},0,0,0,null,"TTL_C75: Public administration and defence; compulsory social security",0,0,null,467331.5627303634,22275986.337189864,{"$f":"FK100*CustomRegion1!C38","v":0},{"$f":"FN100*CustomRegion1!$C38","v":260312.07508382731},{"$f":"FO100*CustomRegion1!$C38","v":12408124.531743994},{"$f":"FK100*CustomRegion1!D38","v":0},{"$f":"FN100*CustomRegion1!$D38","v":221084.9799320382},{"$f":"FO100*CustomRegion1!$D38","v":10538312.37836913},{"$f":"(FS100*'Default-Data'!$F$19/biopower_dollar_index)/CustomRegion1!$E38","v":0},{"$f":"(FT100*'Default-Data'!$F$19/biopower_dollar_index)/CustomRegion1!$E38","v":55.985544019396372},{"$f":"(FU100*'Default-Data'!$F$19/biopower_dollar_index)/CustomRegion1!$E38","v":2668.6261171188526},10563.682638269465,2146699.7116213362,{"$f":"FL100*CustomRegion1!C38","v":0},{"$f":"FY100*CustomRegion1!$C38","v":5884.1609841822501},{"$f":"FZ100*CustomRegion1!$C38","v":1195750.3003845296},{"$f":"FL100*CustomRegion1!D38","v":0},{"$f":"FY100*CustomRegion1!$D38","v":4997.4616532325335},{"$f":"FZ100*CustomRegion1!$D38","v":1015559.6165837131},{"$f":"(GD100*'Default-Data'!$C$58/biopower_dollar_index)/CustomRegion1!$E38","v":0},{"$f":"(GE100*'Default-Data'!$C$58/biopower_dollar_index)/CustomRegion1!$E38","v":1.2655116121334964},{"$f":"(GF100*'Default-Data'!$C$58/biopower_dollar_index)/CustomRegion1!$E38","v":257.17105538352979},null,"C72 Computer and related activities",0,0,null,172585.96808324958,185756.01943825709,{"$f":"GL100*CustomRegion2!C42","v":0},{"$f":"GO100*CustomRegion2!$C42","v":89291.874655742955},{"$f":"GP100*CustomRegion2!$C42","v":96105.745956298371},{"$f":"GL100*CustomRegion2!D42","v":0},{"$f":"GO100*CustomRegion2!$D42","v":58494.574720423829},{"$f":"GP100*CustomRegion2!$D42","v":62958.301184476237},{"$f":"(GT100*'Default-Data'!$C$59/biopower_dollar_index)/CustomRegion2!$E42","v":0},{"$f":"(GU100*'Default-Data'!$C$59/biopower_dollar_index)/CustomRegion2!$E42","v":4.7214549626497817},{"$f":"(GV100*'Default-Data'!$C$59/biopower_dollar_index)/CustomRegion2!$E42","v":5.0817496321356481},7069.5117249343011,8452.2058406692086,{"$f":"GM100*CustomRegion2!C42","v":0},{"$f":"GZ100*CustomRegion2!$C42","v":3657.5972069504824},{"$f":"HA100*CustomRegion2!$C42","v":4372.9702528627677},{"$f":"GM100*CustomRegion2!D42","v":0},{"$f":"GZ100*CustomRegion2!$D42","v":2396.0701233347659},{"$f":"HA100*CustomRegion2!$D42","v":2864.7067405905332},{"$f":"(HE100*'Default-Data'!$C$59/biopower_dollar_index)/CustomRegion2!$E42","v":0},{"$f":"(HF100*'Default-Data'!$C$59/biopower_dollar_index)/CustomRegion2!$E42","v":0.19340147746600858},{"$f":"(HG100*'Default-Data'!$C$59/biopower_dollar_index)/CustomRegion2!$E42","v":0.23122800570041399},null,"LSECD",0,0,null,0,37392288.246259108,{"$f":"HM100*CustomRegion3!D41","v":0},{"$f":"HP100*CustomRegion3!$D41","v":0},{"$f":"HQ100*CustomRegion3!$D41","v":0},{"$f":"HM100*CustomRegion3!E41","v":0},{"$f":"HP100*CustomRegion3!$E41","v":0},{"$f":"HQ100*CustomRegion3!$E41","v":0},0,0,0,0,2262428.0106611066,{"$f":"HN100*CustomRegion3!D41","v":0},{"$f":"IA100*CustomRegion3!$D41","v":0},{"$f":"IB100*CustomRegion3!$D41","v":0},{"$f":"HN100*CustomRegion3!E41","v":0},{"$f":"IA100*CustomRegion3!$E41","v":0},{"$f":"IB100*CustomRegion3!$E41","v":0},0,0,0]
[null,313,"Information",0,null,null,3040.1009243344301,6327.8060064044948,0,1854.8897343186684,3860.8528776423354,0,474.17955792348471,986.97915938411097,0,3.9410480293069039E-2,8.2030787832599816E-2,null,null,null,null,null,null,null,null,null,null,null,null,100,"TTL_C80: Education",0,0,null,361257.80418642674,16876650.41520606,{"$f":"'Colombia-IO-Data'!$AN43*Calculations!AF101","v":0},{"$f":"'Colombia-IO-Data'!$AN43*AI101","v":284803.23345741502},{"$f":"'Colombia-IO-Data'!$AN43*AJ101","v":13304970.999881042},{"$f":"'Colombia-IO-Data'!$AO43*Calculations!AK101","v":0},{"$f":"'Colombia-IO-Data'!$AO43*Calculations!AL101","v":209670.63831257899},{"$f":"'Colombia-IO-Data'!$AO43*Calculations!AM101","v":9795049.4747192971},{"$f":"(AN101*'Default-Data'!$F$19/biopower_dollar_index)/'Colombia-IO-Data'!$AP43","v":0},{"$f":"(AO101*'Default-Data'!$F$19/biopower_dollar_index)/'Colombia-IO-Data'!$AP43","v":19.992753347336102},{"$f":"(AP101*'Default-Data'!$F$19/biopower_dollar_index)/'Colombia-IO-Data'!$AP43","v":933.98870604415174},59341.38470137187,1623415.8064251514,{"$f":"'Colombia-IO-Data'!$AN43*AG101","v":0},{"$f":"'Colombia-IO-Data'!$AN43*AT101","v":46782.707653478239},{"$f":"'Colombia-IO-Data'!$AN43*AU101","v":1279845.2118065876},{"$f":"'Colombia-IO-Data'!$AO43*AV101","v":0},{"$f":"'Colombia-IO-Data'!$AO43*AW101","v":34441.182624993737},{"$f":"'Colombia-IO-Data'!$AO43*AX101","v":942215.29454969929},{"$f":"(AY101*'Default-Data'!$F$19/biopower_dollar_index)/'Colombia-IO-Data'!$AP43","v":0},{"$f":"(AZ101*'Default-Data'!$F$19/biopower_dollar_index)/'Colombia-IO-Data'!$AP43","v":3.2840748459282358},{"$f":"(BA101*'Default-Data'!$F$19/biopower_dollar_index)/'Colombia-IO-Data'!$AP43","v":89.843185176632517},null,"DOM_C80: Education",0,0,null,372580.57416686462,18260862.944810346,{"$f":"BG101*'Mexico-IO-Data'!AQ43","v":0},{"$f":"BJ101*'Mexico-IO-Data'!$AQ43","v":334281.92759524053},{"$f":"BK101*'Mexico-IO-Data'!$AQ43","v":16383775.451507654},{"$f":"BG101*'Mexico-IO-Data'!AR43","v":0},{"$f":"BJ101*'Mexico-IO-Data'!$AR43","v":288277.93114572903},{"$f":"BK101*'Mexico-IO-Data'!$AR43","v":14129034.511359133},{"$f":"(BO101*'Default-Data'!$F$19/biopower_dollar_index)/'Mexico-IO-Data'!$AS43","v":0},{"$f":"(BP101*'Default-Data'!$F$19/biopower_dollar_index)/'Mexico-IO-Data'!$AS43","v":69.722117002061097},{"$f":"(BQ101*'Default-Data'!$F$19/biopower_dollar_index)/'Mexico-IO-Data'!$AS43","v":3417.2098898169002},60591.018364428586,1204957.5313887622,{"$f":"BH101*'Mexico-IO-Data'!AQ43","v":0},{"$f":"BU101*'Mexico-IO-Data'!$AQ43","v":54362.690430415721},{"$f":"BV101*'Mexico-IO-Data'!$AQ43","v":1081096.4236762414},{"$f":"BH101*'Mexico-IO-Data'!AR43","v":0},{"$f":"BU101*'Mexico-IO-Data'!$AR43","v":46881.277852901476},{"$f":"BV101*'Mexico-IO-Data'!$AR43","v":932315.55360598781},{"$f":"(BZ101*'Default-Data'!$F$19/biopower_dollar_index)/'Mexico-IO-Data'!$AS43","v":0},{"$f":"(CA101*'Default-Data'!$F$19/biopower_dollar_index)/'Mexico-IO-Data'!$AS43","v":11.338578456821837},{"$f":"(CB101*'Default-Data'!$F$19/biopower_dollar_index)/'Mexico-IO-Data'!$AS43","v":225.48730613200496},null,"TTL_C80: Education",0,0,null,1726175.6315259514,18894177.956440482,{"$f":"CH101*'Philippines-IO-Data'!AN43","v":0},{"$f":"CK101*'Philippines-IO-Data'!$AN43","v":1174772.9403957801},{"$f":"CL101*'Philippines-IO-Data'!$AN43","v":12858696.756498046},{"$f":"CH101*'Philippines-IO-Data'!AO43","v":0},{"$f":"CK101*'Philippines-IO-Data'!$AO43","v":817142.8731371006},{"$f":"CL101*'Philippines-IO-Data'!$AO43","v":8944190.0226809755},{"$f":"(CP101*'Default-Data'!$F$19/biopower_dollar_index)/'Philippines-IO-Data'!$AP43","v":0},{"$f":"(CQ101*'Default-Data'!$F$19/biopower_dollar_index)/'Philippines-IO-Data'!$AP43","v":206.92580883701922},{"$f":"(CR101*'Default-Data'!$F$19/biopower_dollar_index)/'Philippines-IO-Data'!$AP43","v":2264.9451101860527},9465.3697563656751,1888989.0609038707,{"$f":"CI101*'Philippines-IO-Data'!AN43","v":0},{"$f":"CV101*'Philippines-IO-Data'!$AN43","v":6441.789617195057},{"$f":"CW101*'Philippines-IO-Data'!$AN43","v":1285577.8942330303},{"$f":"CI101*'Philippines-IO-Data'!AO43","v":0},{"$f":"CV101*'Philippines-IO-Data'!$AO43","v":4480.748828080872},{"$f":"CW101*'Philippines-IO-Data'!$AO43","v":894216.0463631457},{"$f":"(DA101*'Default-Data'!$F$19/biopower_dollar_index)/'Philippines-IO-Data'!$AP43","v":0},{"$f":"(DB101*'Default-Data'!$F$19/biopower_dollar_index)/'Philippines-IO-Data'!$AP43","v":1.1346639687214126},{"$f":"(DC101*'Default-Data'!$F$19/biopower_dollar_index)/'Philippines-IO-Data'!$AP43","v":226.44311631619641},null,"DOM_C80: Education",0,0,null,176586.98046595196,5300653.4272798784,{"$f":"DI101*'SouthAfrica-IO-Data'!AR43","v":0},{"$f":"DL101*'Mexico-IO-Data'!$AQ43","v":158435.08843792885},{"$f":"DM101*'Mexico-IO-Data'!$AQ43","v":4755783.7634118414},{"$f":"DI101*'SouthAfrica-IO-Data'!AS43","v":0},{"$f":"DL101*'Mexico-IO-Data'!$AR43","v":136631.19584220991},{"$f":"DM101*'Mexico-IO-Data'!$AR43","v":4101291.1291837799},{"$f":"(DQ101*'Default-Data'!$F$19/biopower_dollar_index)/'SouthAfrica-IO-Data'!$AT43","v":0},{"$f":"(DR101*'Default-Data'!$F$19/biopower_dollar_index)/'SouthAfrica-IO-Data'!$AT43","v":8.1257286830905571},{"$f":"(DS101*'Default-Data'!$F$19/biopower_dollar_index)/'SouthAfrica-IO-Data'!$AT43","v":243.91193212273708},6169.2209108921179,452953.47662122856,{"$f":"DJ101*'SouthAfrica-IO-Data'!AR43","v":0},{"$f":"DW101*'SouthAfrica-IO-Data'!$AR43","v":3147.1988326129253},{"$f":"DX101*'SouthAfrica-IO-Data'!$AR43","v":231072.07108330846},{"$f":"DJ101*'SouthAfrica-IO-Data'!AS43","v":0},{"$f":"DW101*'SouthAfrica-IO-Data'!$AS43","v":1596.6130120344853},{"$f":"DX101*'SouthAfrica-IO-Data'!$AS43","v":117225.72834810878},{"$f":"(EB101*'Default-Data'!$F$19/biopower_dollar_index)/'SouthAfrica-IO-Data'!$AT43","v":0},{"$f":"(EC101*'Default-Data'!$F$19/biopower_dollar_index)/'SouthAfrica-IO-Data'!$AT43","v":9.4953748063999879E-2},{"$f":"(ED101*'Default-Data'!$F$19/biopower_dollar_index)/'SouthAfrica-IO-Data'!$AT43","v":6.9716469753691257},null,"LPOST",0,0,null,0,65834025.003980964,{"$f":"EJ101*'Zambia-IO-Data'!BO41","v":0},{"$f":"EM101*'Zambia-IO-Data'!$BO41","v":0},{"$f":"EN101*'Zambia-IO-Data'!$BO41","v":0},{"$f":"EJ101*'Zambia-IO-Data'!BN41","v":0},{"$f":"EM101*'Zambia-IO-Data'!$BN41","v":0},{"$f":"EN101*'Zambia-IO-Data'!$BN41","v":0},0,0,0,0,1277747.113064128,{"$f":"EK101*'Zambia-IO-Data'!BO41","v":0},{"$f":"EX101*'Zambia-IO-Data'!$BO41","v":0},{"$f":"EY101*'Zambia-IO-Data'!$BO41","v":0},{"$f":"EK101*'Zambia-IO-Data'!BN41","v":0},{"$f":"EX101*'Zambia-IO-Data'!$BN41","v":0},{"$f":"EY101*'Zambia-IO-Data'!$BN41","v":0},0,0,0,null,"TTL_C80: Education",0,0,null,1861943.9766149337,21598858.843040112,{"$f":"FK101*CustomRegion1!C39","v":0},{"$f":"FN101*CustomRegion1!$C39","v":1267171.984305267},{"$f":"FO101*CustomRegion1!$C39","v":14699405.117775328},{"$f":"FK101*CustomRegion1!D39","v":0},{"$f":"FN101*CustomRegion1!$D39","v":881413.35266472935},{"$f":"FO101*CustomRegion1!$D39","v":10224541.031136164},{"$f":"(FS101*'Default-Data'!$F$19/biopower_dollar_index)/CustomRegion1!$E39","v":0},{"$f":"(FT101*'Default-Data'!$F$19/biopower_dollar_index)/CustomRegion1!$E39","v":223.20107892478308},{"$f":"(FU101*'Default-Data'!$F$19/biopower_dollar_index)/CustomRegion1!$E39","v":2589.1695227453383},18664.988682660369,2081446.062493559,{"$f":"FL101*CustomRegion1!C39","v":0},{"$f":"FY101*CustomRegion1!$C39","v":12702.718794494363},{"$f":"FZ101*CustomRegion1!$C39","v":1416557.1952543322},{"$f":"FL101*CustomRegion1!D39","v":0},{"$f":"FY101*CustomRegion1!$D39","v":8835.6956271811796},{"$f":"FZ101*CustomRegion1!$D39","v":985321.99431082129},{"$f":"(GD101*'Default-Data'!$C$58/biopower_dollar_index)/CustomRegion1!$E39","v":0},{"$f":"(GE101*'Default-Data'!$C$58/biopower_dollar_index)/CustomRegion1!$E39","v":2.2374709789403262},{"$f":"(GF101*'Default-Data'!$C$58/biopower_dollar_index)/CustomRegion1!$E39","v":249.51395568674687},null,"C73 Research and development",0,0,null,0,0,{"$f":"GL101*CustomRegion2!C43","v":0},{"$f":"GO101*CustomRegion2!$C43","v":0},{"$f":"GP101*CustomRegion2!$C43","v":0},{"$f":"GL101*CustomRegion2!D43","v":0},{"$f":"GO101*CustomRegion2!$D43","v":0},{"$f":"GP101*CustomRegion2!$D43","v":0},{"$f":"(GT101*'Default-Data'!$C$59/biopower_dollar_index)/CustomRegion2!$E43","v":0},{"$f":"(GU101*'Default-Data'!$C$59/biopower_dollar_index)/CustomRegion2!$E43","v":0},{"$f":"(GV101*'Default-Data'!$C$59/biopower_dollar_index)/CustomRegion2!$E43","v":0},0,0,{"$f":"GM101*CustomRegion2!C43","v":0},{"$f":"GZ101*CustomRegion2!$C43","v":0},{"$f":"HA101*CustomRegion2!$C43","v":0},{"$f":"GM101*CustomRegion2!D43","v":0},{"$f":"GZ101*CustomRegion2!$D43","v":0},{"$f":"HA101*CustomRegion2!$D43","v":0},{"$f":"(HE101*'Default-Data'!$C$59/biopower_dollar_index)/CustomRegion2!$E43","v":0},{"$f":"(HF101*'Default-Data'!$C$59/biopower_dollar_index)/CustomRegion2!$E43","v":0},{"$f":"(HG101*'Default-Data'!$C$59/biopower_dollar_index)/CustomRegion2!$E43","v":0},null,"LPOST",0,0,null,0,65834025.003980964,{"$f":"HM101*CustomRegion3!D42","v":0},{"$f":"HP101*CustomRegion3!$D42","v":0},{"$f":"HQ101*CustomRegion3!$D42","v":0},{"$f":"HM101*CustomRegion3!E42","v":0},{"$f":"HP101*CustomRegion3!$E42","v":0},{"$f":"HQ101*CustomRegion3!$E42","v":0},0,0,0,0,1277747.113064128,{"$f":"HN101*CustomRegion3!D42","v":0},{"$f":"IA101*CustomRegion3!$D42","v":0},{"$f":"IB101*CustomRegion3!$D42","v":0},{"$f":"HN101*CustomRegion3!E42","v":0},{"$f":"IA101*CustomRegion3!$E42","v":0},{"$f":"IB101*CustomRegion3!$E42","v":0},0,0,0]
[null,314,"Finance, Professional, and Business Services",0,null,null,61553.856152582826,49859.212151240179,0,46419.306331201216,39406.236425597534,0,15829.621376092404,13921.840582678151,0,3.7921738251505199,7.2322000371776864,null,null,null,null,null,null,null,null,null,null,null,null,101,"TTL_C85: Health and social work",0,0,null,21737.487577556607,15917486.078275025,{"$f":"'Colombia-IO-Data'!$AN44*Calculations!AF102","v":0},{"$f":"'Colombia-IO-Data'!$AN44*AI102","v":8622.7911877922324},{"$f":"'Colombia-IO-Data'!$AN44*AJ102","v":6314122.4669066984},{"$f":"'Colombia-IO-Data'!$AO44*Calculations!AK102","v":0},{"$f":"'Colombia-IO-Data'!$AO44*Calculations!AL102","v":6402.9276301948676},{"$f":"'Colombia-IO-Data'!$AO44*Calculations!AM102","v":4688605.84969615},{"$f":"(AN102*'Default-Data'!$F$19/biopower_dollar_index)/'Colombia-IO-Data'!$AP44","v":0},{"$f":"(AO102*'Default-Data'!$F$19/biopower_dollar_index)/'Colombia-IO-Data'!$AP44","v":0.61053924307936502},{"$f":"(AP102*'Default-Data'!$F$19/biopower_dollar_index)/'Colombia-IO-Data'!$AP44","v":447.07328145825852},1090.3610299537445,1531150.901528493,{"$f":"'Colombia-IO-Data'!$AN44*AG102","v":0},{"$f":"'Colombia-IO-Data'!$AN44*AT102","v":432.52263846280408},{"$f":"'Colombia-IO-Data'!$AN44*AU102","v":607374.44719745649},{"$f":"'Colombia-IO-Data'!$AO44*AV102","v":0},{"$f":"'Colombia-IO-Data'!$AO44*AW102","v":321.17339875040506},{"$f":"'Colombia-IO-Data'!$AO44*AX102","v":451011.11057180259},{"$f":"(AY102*'Default-Data'!$F$19/biopower_dollar_index)/'Colombia-IO-Data'!$AP44","v":0},{"$f":"(AZ102*'Default-Data'!$F$19/biopower_dollar_index)/'Colombia-IO-Data'!$AP44","v":3.0624891470830435E-2},{"$f":"(BA102*'Default-Data'!$F$19/biopower_dollar_index)/'Colombia-IO-Data'!$AP44","v":43.005324747128498},null,"DOM_C85: Health and social work",0,0,null,0,13285442.021926623,{"$f":"BG102*'Mexico-IO-Data'!AQ44","v":0},{"$f":"BJ102*'Mexico-IO-Data'!$AQ44","v":0},{"$f":"BK102*'Mexico-IO-Data'!$AQ44","v":9921083.7107389923},{"$f":"BG102*'Mexico-IO-Data'!AR44","v":0},{"$f":"BJ102*'Mexico-IO-Data'!$AR44","v":0},{"$f":"BK102*'Mexico-IO-Data'!$AR44","v":6969969.6591771543},{"$f":"(BO102*'Default-Data'!$F$19/biopower_dollar_index)/'Mexico-IO-Data'!$AS44","v":0},{"$f":"(BP102*'Default-Data'!$F$19/biopower_dollar_index)/'Mexico-IO-Data'!$AS44","v":0},{"$f":"(BQ102*'Default-Data'!$F$19/biopower_dollar_index)/'Mexico-IO-Data'!$AS44","v":3052.346964923649},0,876650.43380103447,{"$f":"BH102*'Mexico-IO-Data'!AQ44","v":0},{"$f":"BU102*'Mexico-IO-Data'!$AQ44","v":0},{"$f":"BV102*'Mexico-IO-Data'!$AQ44","v":654650.58102255373},{"$f":"BH102*'Mexico-IO-Data'!AR44","v":0},{"$f":"BU102*'Mexico-IO-Data'!$AR44","v":0},{"$f":"BV102*'Mexico-IO-Data'!$AR44","v":459918.97862436424},{"$f":"(BZ102*'Default-Data'!$F$19/biopower_dollar_index)/'Mexico-IO-Data'!$AS44","v":0},{"$f":"(CA102*'Default-Data'!$F$19/biopower_dollar_index)/'Mexico-IO-Data'!$AS44","v":0},{"$f":"(CB102*'Default-Data'!$F$19/biopower_dollar_index)/'Mexico-IO-Data'!$AS44","v":201.41153651457839},null,"TTL_C85: Health and social work",0,0,null,4822263.1603641696,8490334.5695111863,{"$f":"CH102*'Philippines-IO-Data'!AN44","v":0},{"$f":"CK102*'Philippines-IO-Data'!$AN44","v":2498913.9417247223},{"$f":"CL102*'Philippines-IO-Data'!$AN44","v":4399721.6079050787},{"$f":"CH102*'Philippines-IO-Data'!AO44","v":0},{"$f":"CK102*'Philippines-IO-Data'!$AO44","v":1595332.2902836448},{"$f":"CL102*'Philippines-IO-Data'!$AO44","v":2808827.3998364275},{"$f":"(CP102*'Default-Data'!$F$19/biopower_dollar_index)/'Philippines-IO-Data'!$AP44","v":0},{"$f":"(CQ102*'Default-Data'!$F$19/biopower_dollar_index)/'Philippines-IO-Data'!$AP44","v":403.98739973513864},{"$f":"(CR102*'Default-Data'!$F$19/biopower_dollar_index)/'Philippines-IO-Data'!$AP44","v":711.28183418325818},84669.973032774127,848840.79964715615,{"$f":"CI102*'Philippines-IO-Data'!AN44","v":0},{"$f":"CV102*'Philippines-IO-Data'!$AN44","v":43876.281534389993},{"$f":"CW102*'Philippines-IO-Data'!$AN44","v":439872.32508954406},{"$f":"CI102*'Philippines-IO-Data'!AO44","v":0},{"$f":"CV102*'Philippines-IO-Data'!$AO44","v":28011.068144698518},{"$f":"CW102*'Philippines-IO-Data'!$AO44","v":280819.00384819153},{"$f":"(DA102*'Default-Data'!$F$19/biopower_dollar_index)/'Philippines-IO-Data'!$AP44","v":0},{"$f":"(DB102*'Default-Data'!$F$19/biopower_dollar_index)/'Philippines-IO-Data'!$AP44","v":7.0932674355688992},{"$f":"(DC102*'Default-Data'!$F$19/biopower_dollar_index)/'Philippines-IO-Data'!$AP44","v":71.112043460658725},null,"DOM_C85: Health and social work",0,0,null,3336972.0751211736,15542252.595488502,{"$f":"DI102*'SouthAfrica-IO-Data'!AR44","v":0},{"$f":"DL102*'Mexico-IO-Data'!$AQ44","v":2491929.0786889875},{"$f":"DM102*'Mexico-IO-Data'!$AQ44","v":11606387.563078662},{"$f":"DI102*'SouthAfrica-IO-Data'!AS44","v":0},{"$f":"DL102*'Mexico-IO-Data'!$AR44","v":1750682.7457249409},{"$f":"DM102*'Mexico-IO-Data'!$AR44","v":8153964.9826504327},{"$f":"(DQ102*'Default-Data'!$F$19/biopower_dollar_index)/'SouthAfrica-IO-Data'!$AT44","v":0},{"$f":"(DR102*'Default-Data'!$F$19/biopower_dollar_index)/'SouthAfrica-IO-Data'!$AT44","v":104.11658124076912},{"$f":"(DS102*'Default-Data'!$F$19/biopower_dollar_index)/'SouthAfrica-IO-Data'!$AT44","v":484.93249826310642},200810.16298109002,1328122.5502163204,{"$f":"DJ102*'SouthAfrica-IO-Data'!AR44","v":0},{"$f":"DW102*'SouthAfrica-IO-Data'!$AR44","v":92780.786639784143},{"$f":"DX102*'SouthAfrica-IO-Data'!$AR44","v":613635.55077991879},{"$f":"DJ102*'SouthAfrica-IO-Data'!AS44","v":0},{"$f":"DW102*'SouthAfrica-IO-Data'!$AS44","v":40943.357580006326},{"$f":"DX102*'SouthAfrica-IO-Data'!$AS44","v":270792.0539295483},{"$f":"(EB102*'Default-Data'!$F$19/biopower_dollar_index)/'SouthAfrica-IO-Data'!$AT44","v":0},{"$f":"(EC102*'Default-Data'!$F$19/biopower_dollar_index)/'SouthAfrica-IO-Data'!$AT44","v":2.4349828237916231},{"$f":"(ED102*'Default-Data'!$F$19/biopower_dollar_index)/'SouthAfrica-IO-Data'!$AT44","v":16.104541471696351},null,"HRRS",0,0,null,0,32357784.445835188,{"$f":"EJ102*'Zambia-IO-Data'!BO42","v":0},{"$f":"EM102*'Zambia-IO-Data'!$BO42","v":0},{"$f":"EN102*'Zambia-IO-Data'!$BO42","v":0},{"$f":"EJ102*'Zambia-IO-Data'!BN42","v":0},{"$f":"EM102*'Zambia-IO-Data'!$BN42","v":0},{"$f":"EN102*'Zambia-IO-Data'!$BN42","v":0},0,0,0,0,5109037.7439841088,{"$f":"EK102*'Zambia-IO-Data'!BO42","v":0},{"$f":"EX102*'Zambia-IO-Data'!$BO42","v":0},{"$f":"EY102*'Zambia-IO-Data'!$BO42","v":0},{"$f":"EK102*'Zambia-IO-Data'!BN42","v":0},{"$f":"EX102*'Zambia-IO-Data'!$BN42","v":0},{"$f":"EY102*'Zambia-IO-Data'!$BN42","v":0},0,0,0,null,"TTL_C85: Health and social work",0,0,null,5148977.7429183982,9818879.1963364221,{"$f":"FK102*CustomRegion1!C40","v":0},{"$f":"FN102*CustomRegion1!$C40","v":2668218.6018312187},{"$f":"FO102*CustomRegion1!$C40","v":5088178.164458151},{"$f":"FK102*CustomRegion1!D40","v":0},{"$f":"FN102*CustomRegion1!$D40","v":1703418.1217536845},{"$f":"FO102*CustomRegion1!$D40","v":3248345.1266327961},{"$f":"(FS102*'Default-Data'!$F$19/biopower_dollar_index)/CustomRegion1!$E40","v":0},{"$f":"(FT102*'Default-Data'!$F$19/biopower_dollar_index)/CustomRegion1!$E40","v":431.35806995208014},{"$f":"(FU102*'Default-Data'!$F$19/biopower_dollar_index)/CustomRegion1!$E40","v":822.58129490839303},112326.83418597658,946229.03875775915,{"$f":"FL102*CustomRegion1!C40","v":0},{"$f":"FY102*CustomRegion1!$C40","v":58208.165469746033},{"$f":"FZ102*CustomRegion1!$C40","v":490339.25739506516},{"$f":"FL102*CustomRegion1!D40","v":0},{"$f":"FY102*CustomRegion1!$D40","v":37160.689842711203},{"$f":"FZ102*CustomRegion1!$D40","v":313037.61104159831},{"$f":"(GD102*'Default-Data'!$C$58/biopower_dollar_index)/CustomRegion1!$E40","v":0},{"$f":"(GE102*'Default-Data'!$C$58/biopower_dollar_index)/CustomRegion1!$E40","v":9.4102341896757515},{"$f":"(GF102*'Default-Data'!$C$58/biopower_dollar_index)/CustomRegion1!$E40","v":79.270789712098335},null,"C74 Other Business Activities",0,0,null,37976818.487977371,24580375.263940044,{"$f":"GL102*CustomRegion2!C44","v":0},{"$f":"GO102*CustomRegion2!$C44","v":27104590.31248381},{"$f":"GP102*CustomRegion2!$C44","v":17543360.075492457},{"$f":"GL102*CustomRegion2!D44","v":0},{"$f":"GO102*CustomRegion2!$D44","v":10693880.277772913},{"$f":"GP102*CustomRegion2!$D44","v":6921580.0775549747},{"$f":"(GT102*'Default-Data'!$C$59/biopower_dollar_index)/CustomRegion2!$E44","v":0},{"$f":"(GU102*'Default-Data'!$C$59/biopower_dollar_index)/CustomRegion2!$E44","v":2786.7267265201331},{"$f":"(GV102*'Default-Data'!$C$59/biopower_dollar_index)/CustomRegion2!$E44","v":1803.7000313125575},1368311.6742623521,1118447.6928392153,{"$f":"GM102*CustomRegion2!C44","v":0},{"$f":"GZ102*CustomRegion2!$C44","v":976583.31654114067},{"$f":"HA102*CustomRegion2!$C44","v":798251.8733091543},{"$f":"GM102*CustomRegion2!D44","v":0},{"$f":"GZ102*CustomRegion2!$D44","v":385302.45054290025},{"$f":"HA102*CustomRegion2!$D44","v":314943.33123140235},{"$f":"(HE102*'Default-Data'!$C$59/biopower_dollar_index)/CustomRegion2!$E44","v":0},{"$f":"(HF102*'Default-Data'!$C$59/biopower_dollar_index)/CustomRegion2!$E44","v":100.40627058013179},{"$f":"(HG102*'Default-Data'!$C$59/biopower_dollar_index)/CustomRegion2!$E44","v":82.071331984708891},null,"HRRS",0,0,null,0,32357784.445835188,{"$f":"HM102*CustomRegion3!D43","v":0},{"$f":"HP102*CustomRegion3!$D43","v":0},{"$f":"HQ102*CustomRegion3!$D43","v":0},{"$f":"HM102*CustomRegion3!E43","v":0},{"$f":"HP102*CustomRegion3!$E43","v":0},{"$f":"HQ102*CustomRegion3!$E43","v":0},0,0,0,0,5109037.7439841088,{"$f":"HN102*CustomRegion3!D43","v":0},{"$f":"IA102*CustomRegion3!$D43","v":0},{"$f":"IB102*CustomRegion3!$D43","v":0},{"$f":"HN102*CustomRegion3!E43","v":0},{"$f":"IA102*CustomRegion3!$E43","v":0},{"$f":"IB102*CustomRegion3!$E43","v":0},0,0,0]
[null,315,"Education and Health Care",0,null,null,183.65527415354632,18928.081798088962,0,164.77681155106171,15783.164666518322,0,142.10016878999849,12659.602359744755,0,3.5388519911815713E-2,3.9970656104853193,null,null,null,null,null,null,null,null,null,null,null,null,102,"TTL_C90T93: Other community, social and personal services",0,0,null,5355487.7829585746,11927620.695106909,{"$f":"'Colombia-IO-Data'!$AN45*Calculations!AF103","v":0},{"$f":"'Colombia-IO-Data'!$AN45*AI103","v":3063772.5875798799},{"$f":"'Colombia-IO-Data'!$AN45*AJ103","v":6823564.6876092758},{"$f":"'Colombia-IO-Data'!$AO45*Calculations!AK103","v":0},{"$f":"'Colombia-IO-Data'!$AO45*Calculations!AL103","v":1170166.8025926098},{"$f":"'Colombia-IO-Data'!$AO45*Calculations!AM103","v":2606168.9125206345},{"$f":"(AN103*'Default-Data'!$F$19/biopower_dollar_index)/'Colombia-IO-Data'!$AP45","v":0},{"$f":"(AO103*'Default-Data'!$F$19/biopower_dollar_index)/'Colombia-IO-Data'!$AP45","v":239.06520495235921},{"$f":"(AP103*'Default-Data'!$F$19/biopower_dollar_index)/'Colombia-IO-Data'!$AP45","v":532.44059208636054},295646.68510885723,1147353.7398175632,{"$f":"'Colombia-IO-Data'!$AN45*AG103","v":0},{"$f":"'Colombia-IO-Data'!$AN45*AT103","v":169133.83918597651},{"$f":"'Colombia-IO-Data'!$AN45*AU103","v":656379.22795677837},{"$f":"'Colombia-IO-Data'!$AO45*AV103","v":0},{"$f":"'Colombia-IO-Data'!$AO45*AW103","v":64598.398919288797},{"$f":"'Colombia-IO-Data'!$AO45*AX103","v":250695.23292298321},{"$f":"(AY103*'Default-Data'!$F$19/biopower_dollar_index)/'Colombia-IO-Data'!$AP45","v":0},{"$f":"(AZ103*'Default-Data'!$F$19/biopower_dollar_index)/'Colombia-IO-Data'!$AP45","v":13.197459920259378},{"$f":"(BA103*'Default-Data'!$F$19/biopower_dollar_index)/'Colombia-IO-Data'!$AP45","v":51.217063333643161},null,"DOM_C90T93: Other community, social and personal services",0,0,null,885913.77348394913,5788251.7129648011,{"$f":"BG103*'Mexico-IO-Data'!AQ45","v":0},{"$f":"BJ103*'Mexico-IO-Data'!$AQ45","v":566802.57896581886},{"$f":"BK103*'Mexico-IO-Data'!$AQ45","v":3703290.4293943783},{"$f":"BG103*'Mexico-IO-Data'!AR45","v":0},{"$f":"BJ103*'Mexico-IO-Data'!$AR45","v":99481.522809983362},{"$f":"BK103*'Mexico-IO-Data'!$AR45","v":649977.58478090283},{"$f":"(BO103*'Default-Data'!$F$19/biopower_dollar_index)/'Mexico-IO-Data'!$AS45","v":0},{"$f":"(BP103*'Default-Data'!$F$19/biopower_dollar_index)/'Mexico-IO-Data'!$AS45","v":68.632288666313897},{"$f":"(BQ103*'Default-Data'!$F$19/biopower_dollar_index)/'Mexico-IO-Data'!$AS45","v":448.41944478999983},39995.711111563221,381942.38225160044,{"$f":"BH103*'Mexico-IO-Data'!AQ45","v":0},{"$f":"BU103*'Mexico-IO-Data'!$AQ45","v":25589.027831066473},{"$f":"BV103*'Mexico-IO-Data'!$AQ45","v":244364.55754063066},{"$f":"BH103*'Mexico-IO-Data'!AR45","v":0},{"$f":"BU103*'Mexico-IO-Data'!$AR45","v":4491.220665414533},{"$f":"BV103*'Mexico-IO-Data'!$AR45","v":42889.286688294596},{"$f":"(BZ103*'Default-Data'!$F$19/biopower_dollar_index)/'Mexico-IO-Data'!$AS45","v":0},{"$f":"(CA103*'Default-Data'!$F$19/biopower_dollar_index)/'Mexico-IO-Data'!$AS45","v":3.0984925086200152},{"$f":"(CB103*'Default-Data'!$F$19/biopower_dollar_index)/'Mexico-IO-Data'!$AS45","v":29.589312884823759},null,"TTL_C90T93: Other community, social and personal services",0,0,null,14694843.652530331,10919778.420841455,{"$f":"CH103*'Philippines-IO-Data'!AN45","v":0},{"$f":"CK103*'Philippines-IO-Data'!$AN45","v":7161695.2615876775},{"$f":"CL103*'Philippines-IO-Data'!$AN45","v":5321875.2933558105},{"$f":"CH103*'Philippines-IO-Data'!AO45","v":0},{"$f":"CK103*'Philippines-IO-Data'!$AO45","v":6155491.3829664169},{"$f":"CL103*'Philippines-IO-Data'!$AO45","v":4574162.4451933559},{"$f":"(CP103*'Default-Data'!$F$19/biopower_dollar_index)/'Philippines-IO-Data'!$AP45","v":0},{"$f":"(CQ103*'Default-Data'!$F$19/biopower_dollar_index)/'Philippines-IO-Data'!$AP45","v":3550.9793917607067},{"$f":"(CR103*'Default-Data'!$F$19/biopower_dollar_index)/'Philippines-IO-Data'!$AP45","v":2638.7424767411112},162164.07157435876,1091730.0573763459,{"$f":"CI103*'Philippines-IO-Data'!AN45","v":0},{"$f":"CV103*'Philippines-IO-Data'!$AN45","v":79032.461348703902},{"$f":"CW103*'Philippines-IO-Data'!$AN45","v":532066.76870622672},{"$f":"CI103*'Philippines-IO-Data'!AO45","v":0},{"$f":"CV103*'Philippines-IO-Data'!$AO45","v":67928.55839815845},{"$f":"CW103*'Philippines-IO-Data'!$AO45","v":457312.45051718375},{"$f":"(DA103*'Default-Data'!$F$19/biopower_dollar_index)/'Philippines-IO-Data'!$AP45","v":0},{"$f":"(DB103*'Default-Data'!$F$19/biopower_dollar_index)/'Philippines-IO-Data'!$AP45","v":39.186621502121326},{"$f":"(DC103*'Default-Data'!$F$19/biopower_dollar_index)/'Philippines-IO-Data'!$AP45","v":263.81437099819709},null,"DOM_C90T93: Other community, social and personal services",0,0,null,38010459.192011818,32476624.152485445,{"$f":"DI103*'SouthAfrica-IO-Data'!AR45","v":0},{"$f":"DL103*'Mexico-IO-Data'!$AQ45","v":24318874.976942271},{"$f":"DM103*'Mexico-IO-Data'!$AQ45","v":20778358.884004712},{"$f":"DI103*'SouthAfrica-IO-Data'!AS45","v":0},{"$f":"DL103*'Mexico-IO-Data'!$AR45","v":4268291.6512941821},{"$f":"DM103*'Mexico-IO-Data'!$AR45","v":3646883.1652895315},{"$f":"(DQ103*'Default-Data'!$F$19/biopower_dollar_index)/'SouthAfrica-IO-Data'!$AT45","v":0},{"$f":"(DR103*'Default-Data'!$F$19/biopower_dollar_index)/'SouthAfrica-IO-Data'!$AT45","v":253.84378497844025},{"$f":"(DS103*'Default-Data'!$F$19/biopower_dollar_index)/'SouthAfrica-IO-Data'!$AT45","v":216.88738766727846},1611612.2008653264,2775204.9856876107,{"$f":"DJ103*'SouthAfrica-IO-Data'!AR45","v":0},{"$f":"DW103*'SouthAfrica-IO-Data'!$AR45","v":1134232.7976858309},{"$f":"DX103*'SouthAfrica-IO-Data'!$AR45","v":1953155.0539130992},{"$f":"DJ103*'SouthAfrica-IO-Data'!AS45","v":0},{"$f":"DW103*'SouthAfrica-IO-Data'!$AS45","v":630759.84801688243},{"$f":"DX103*'SouthAfrica-IO-Data'!$AS45","v":1086171.8929951747},{"$f":"(EB103*'Default-Data'!$F$19/biopower_dollar_index)/'SouthAfrica-IO-Data'!$AT45","v":0},{"$f":"(EC103*'Default-Data'!$F$19/biopower_dollar_index)/'SouthAfrica-IO-Data'!$AT45","v":37.512541389828201},{"$f":"(ED103*'Default-Data'!$F$19/biopower_dollar_index)/'SouthAfrica-IO-Data'!$AT45","v":64.596800542318263},null,"HRRM",0,0,null,0,2269494.1538438005,{"$f":"EJ103*'Zambia-IO-Data'!BO43","v":0},{"$f":"EM103*'Zambia-IO-Data'!$BO43","v":0},{"$f":"EN103*'Zambia-IO-Data'!$BO43","v":0},{"$f":"EJ103*'Zambia-IO-Data'!BN43","v":0},{"$f":"EM103*'Zambia-IO-Data'!$BN43","v":0},{"$f":"EN103*'Zambia-IO-Data'!$BN43","v":0},0,0,0,0,303199.73662190291,{"$f":"EK103*'Zambia-IO-Data'!BO43","v":0},{"$f":"EX103*'Zambia-IO-Data'!$BO43","v":0},{"$f":"EY103*'Zambia-IO-Data'!$BO43","v":0},{"$f":"EK103*'Zambia-IO-Data'!BN43","v":0},{"$f":"EX103*'Zambia-IO-Data'!$BN43","v":0},{"$f":"EY103*'Zambia-IO-Data'!$BN43","v":0},0,0,0,null,"TTL_C90T93: Other community, social and personal services",0,0,null,16369675.930686774,13234859.20405894,{"$f":"FK103*CustomRegion1!C41","v":0},{"$f":"FN103*CustomRegion1!$C41","v":7977943.37378598},{"$f":"FO103*CustomRegion1!$C41","v":6450155.625382781},{"$f":"FK103*CustomRegion1!D41","v":0},{"$f":"FN103*CustomRegion1!$D41","v":6857058.2658730485},{"$f":"FO103*CustomRegion1!$D41","v":5543921.6443334268},{"$f":"(FS103*'Default-Data'!$F$19/biopower_dollar_index)/CustomRegion1!$E41","v":0},{"$f":"(FT103*'Default-Data'!$F$19/biopower_dollar_index)/CustomRegion1!$E41","v":3955.6992407782968},{"$f":"(FU103*'Default-Data'!$F$19/biopower_dollar_index)/CustomRegion1!$E41","v":3198.1770883540744},266965.78818558221,1275421.3441615184,{"$f":"FL103*CustomRegion1!C41","v":0},{"$f":"FY103*CustomRegion1!$C41","v":130108.74191407171},{"$f":"FZ103*CustomRegion1!$C41","v":621590.75747883192},{"$f":"FL103*CustomRegion1!D41","v":0},{"$f":"FY103*CustomRegion1!$D41","v":111828.72357000038},{"$f":"FZ103*CustomRegion1!$D41","v":534258.49769322458},{"$f":"(GD103*'Default-Data'!$C$58/biopower_dollar_index)/CustomRegion1!$E41","v":0},{"$f":"(GE103*'Default-Data'!$C$58/biopower_dollar_index)/CustomRegion1!$E41","v":64.511745382804421},{"$f":"(GF103*'Default-Data'!$C$58/biopower_dollar_index)/CustomRegion1!$E41","v":308.20300072736308},null,"C75 Public admin. and defence; compulsory social security",0,0,null,214245.59698166582,448276.01258597907,{"$f":"GL103*CustomRegion2!C45","v":0},{"$f":"GO103*CustomRegion2!$C45","v":160710.73180901472},{"$f":"GP103*CustomRegion2!$C45","v":336262.52791223006},{"$f":"GL103*CustomRegion2!D45","v":0},{"$f":"GO103*CustomRegion2!$D45","v":158529.52712699282},{"$f":"GP103*CustomRegion2!$D45","v":331698.69205625058},{"$f":"(GT103*'Default-Data'!$C$59/biopower_dollar_index)/CustomRegion2!$E45","v":0},{"$f":"(GU103*'Default-Data'!$C$59/biopower_dollar_index)/CustomRegion2!$E45","v":109.369498582124},{"$f":"(GV103*'Default-Data'!$C$59/biopower_dollar_index)/CustomRegion2!$E45","v":228.83888123552899},20067.056273088139,20397.29933527407,{"$f":"GM103*CustomRegion2!C45","v":0},{"$f":"GZ103*CustomRegion2!$C45","v":15052.777486842144},{"$f":"HA103*CustomRegion2!$C45","v":15300.500683708089},{"$f":"GM103*CustomRegion2!D45","v":0},{"$f":"GZ103*CustomRegion2!$D45","v":14848.477572566648},{"$f":"HA103*CustomRegion2!$D45","v":15092.838610659701},{"$f":"(HE103*'Default-Data'!$C$59/biopower_dollar_index)/CustomRegion2!$E45","v":0},{"$f":"(HF103*'Default-Data'!$C$59/biopower_dollar_index)/CustomRegion2!$E45","v":10.243962599589528},{"$f":"(HG103*'Default-Data'!$C$59/biopower_dollar_index)/CustomRegion2!$E45","v":10.412547245576867},null,"HRRM",0,0,null,0,2269494.1538438005,{"$f":"HM103*CustomRegion3!D44","v":0},{"$f":"HP103*CustomRegion3!$D44","v":0},{"$f":"HQ103*CustomRegion3!$D44","v":0},{"$f":"HM103*CustomRegion3!E44","v":0},{"$f":"HP103*CustomRegion3!$E44","v":0},{"$f":"HQ103*CustomRegion3!$E44","v":0},0,0,0,0,303199.73662190291,{"$f":"HN103*CustomRegion3!D44","v":0},{"$f":"IA103*CustomRegion3!$D44","v":0},{"$f":"IB103*CustomRegion3!$D44","v":0},{"$f":"HN103*CustomRegion3!E44","v":0},{"$f":"IA103*CustomRegion3!$E44","v":0},{"$f":"IB103*CustomRegion3!$E44","v":0},0,0,0]
[null,316,"Other",0,null,null,2510.4055934488983,167380.28292930493,0,1797.6882237095135,6813.5963599938304,0,417.28441140158122,2231.2865653486579,0,0.29825609042190598,1.1024867622549968,null,null,null,null,null,null,null,null,null,null,null,null,103,"TTL_C95: Private households with employed persons",0,0,null,0,2101387.3884053864,{"$f":"'Colombia-IO-Data'!$AN46*Calculations!AF104","v":0},{"$f":"'Colombia-IO-Data'!$AN46*AI104","v":0},{"$f":"'Colombia-IO-Data'!$AN46*AJ104","v":2101387.3884053864},{"$f":"'Colombia-IO-Data'!$AO46*Calculations!AK104","v":0},{"$f":"'Colombia-IO-Data'!$AO46*Calculations!AL104","v":0},{"$f":"'Colombia-IO-Data'!$AO46*Calculations!AM104","v":2101387.3884053864},{"$f":"(AN104*'Default-Data'!$F$19/biopower_dollar_index)/'Colombia-IO-Data'!$AP46","v":0},{"$f":"(AO104*'Default-Data'!$F$19/biopower_dollar_index)/'Colombia-IO-Data'!$AP46","v":0},{"$f":"(AP104*'Default-Data'!$F$19/biopower_dollar_index)/'Colombia-IO-Data'!$AP46","v":429.31367184609383},0,202138.77859827195,{"$f":"'Colombia-IO-Data'!$AN46*AG104","v":0},{"$f":"'Colombia-IO-Data'!$AN46*AT104","v":0},{"$f":"'Colombia-IO-Data'!$AN46*AU104","v":202138.77859827195},{"$f":"'Colombia-IO-Data'!$AO46*AV104","v":0},{"$f":"'Colombia-IO-Data'!$AO46*AW104","v":0},{"$f":"'Colombia-IO-Data'!$AO46*AX104","v":202138.77859827195},{"$f":"(AY104*'Default-Data'!$F$19/biopower_dollar_index)/'Colombia-IO-Data'!$AP46","v":0},{"$f":"(AZ104*'Default-Data'!$F$19/biopower_dollar_index)/'Colombia-IO-Data'!$AP46","v":0},{"$f":"(BA104*'Default-Data'!$F$19/biopower_dollar_index)/'Colombia-IO-Data'!$AP46","v":41.296974437617358},null,"DOM_C95: Private households with employed persons",0,0,null,0,1584524.3520804273,{"$f":"BG104*'Mexico-IO-Data'!AQ46","v":0},{"$f":"BJ104*'Mexico-IO-Data'!$AQ46","v":0},{"$f":"BK104*'Mexico-IO-Data'!$AQ46","v":1584524.3520804273},{"$f":"BG104*'Mexico-IO-Data'!AR46","v":0},{"$f":"BJ104*'Mexico-IO-Data'!$AR46","v":0},{"$f":"BK104*'Mexico-IO-Data'!$AR46","v":1584524.3520804273},{"$f":"(BO104*'Default-Data'!$F$19/biopower_dollar_index)/'Mexico-IO-Data'!$AS46","v":0},{"$f":"(BP104*'Default-Data'!$F$19/biopower_dollar_index)/'Mexico-IO-Data'!$AS46","v":0},{"$f":"(BQ104*'Default-Data'!$F$19/biopower_dollar_index)/'Mexico-IO-Data'!$AS46","v":304.76277941341516},0,104556.09669042607,{"$f":"BH104*'Mexico-IO-Data'!AQ46","v":0},{"$f":"BU104*'Mexico-IO-Data'!$AQ46","v":0},{"$f":"BV104*'Mexico-IO-Data'!$AQ46","v":104556.09669042607},{"$f":"BH104*'Mexico-IO-Data'!AR46","v":0},{"$f":"BU104*'Mexico-IO-Data'!$AR46","v":0},{"$f":"BV104*'Mexico-IO-Data'!$AR46","v":104556.09669042607},{"$f":"(BZ104*'Default-Data'!$F$19/biopower_dollar_index)/'Mexico-IO-Data'!$AS46","v":0},{"$f":"(CA104*'Default-Data'!$F$19/biopower_dollar_index)/'Mexico-IO-Data'!$AS46","v":0},{"$f":"(CB104*'Default-Data'!$F$19/biopower_dollar_index)/'Mexico-IO-Data'!$AS46","v":20.110013828537635},null,"TTL_C95: Private households with employed persons",0,0,null,0,0,{"$f":"CH104*'Philippines-IO-Data'!AN46","v":0},{"$f":"CK104*'Philippines-IO-Data'!$AN46","v":0},{"$f":"CL104*'Philippines-IO-Data'!$AN46","v":0},{"$f":"CH104*'Philippines-IO-Data'!AO46","v":0},{"$f":"CK104*'Philippines-IO-Data'!$AO46","v":0},{"$f":"CL104*'Philippines-IO-Data'!$AO46","v":0},{"$f":"(CP104*'Default-Data'!$F$19/biopower_dollar_index)/'Philippines-IO-Data'!$AP46","v":0},{"$f":"(CQ104*'Default-Data'!$F$19/biopower_dollar_index)/'Philippines-IO-Data'!$AP46","v":0},{"$f":"(CR104*'Default-Data'!$F$19/biopower_dollar_index)/'Philippines-IO-Data'!$AP46","v":0},0,0,{"$f":"CI104*'Philippines-IO-Data'!AN46","v":0},{"$f":"CV104*'Philippines-IO-Data'!$AN46","v":0},{"$f":"CW104*'Philippines-IO-Data'!$AN46","v":0},{"$f":"CI104*'Philippines-IO-Data'!AO46","v":0},{"$f":"CV104*'Philippines-IO-Data'!$AO46","v":0},{"$f":"CW104*'Philippines-IO-Data'!$AO46","v":0},{"$f":"(DA104*'Default-Data'!$F$19/biopower_dollar_index)/'Philippines-IO-Data'!$AP46","v":0},{"$f":"(DB104*'Default-Data'!$F$19/biopower_dollar_index)/'Philippines-IO-Data'!$AP46","v":0},{"$f":"(DC104*'Default-Data'!$F$19/biopower_dollar_index)/'Philippines-IO-Data'!$AP46","v":0},null,"DOM_C95: Private households with employed persons",0,0,null,0,0,{"$f":"DI104*'SouthAfrica-IO-Data'!AR46","v":0},{"$f":"DL104*'Mexico-IO-Data'!$AQ46","v":0},{"$f":"DM104*'Mexico-IO-Data'!$AQ46","v":0},{"$f":"DI104*'SouthAfrica-IO-Data'!AS46","v":0},{"$f":"DL104*'Mexico-IO-Data'!$AR46","v":0},{"$f":"DM104*'Mexico-IO-Data'!$AR46","v":0},{"$f":"(DQ104*'Default-Data'!$F$19/biopower_dollar_index)/'SouthAfrica-IO-Data'!$AT46","v":0},{"$f":"(DR104*'Default-Data'!$F$19/biopower_dollar_index)/'SouthAfrica-IO-Data'!$AT46","v":0},{"$f":"(DS104*'Default-Data'!$F$19/biopower_dollar_index)/'SouthAfrica-IO-Data'!$AT46","v":0},0,0,{"$f":"DJ104*'SouthAfrica-IO-Data'!AR46","v":0},{"$f":"DW104*'SouthAfrica-IO-Data'!$AR46","v":0},{"$f":"DX104*'SouthAfrica-IO-Data'!$AR46","v":0},{"$f":"DJ104*'SouthAfrica-IO-Data'!AS46","v":0},{"$f":"DW104*'SouthAfrica-IO-Data'!$AS46","v":0},{"$f":"DX104*'SouthAfrica-IO-Data'!$AS46","v":0},{"$f":"(EB104*'Default-Data'!$F$19/biopower_dollar_index)/'SouthAfrica-IO-Data'!$AT46","v":0},{"$f":"(EC104*'Default-Data'!$F$19/biopower_dollar_index)/'SouthAfrica-IO-Data'!$AT46","v":0},{"$f":"(ED104*'Default-Data'!$F$19/biopower_dollar_index)/'SouthAfrica-IO-Data'!$AT46","v":0},null,"HRRN",0,0,null,0,1905310.0473961495,{"$f":"EJ104*'Zambia-IO-Data'!BO44","v":0},{"$f":"EM104*'Zambia-IO-Data'!$BO44","v":0},{"$f":"EN104*'Zambia-IO-Data'!$BO44","v":0},{"$f":"EJ104*'Zambia-IO-Data'!BN44","v":0},{"$f":"EM104*'Zambia-IO-Data'!$BN44","v":0},{"$f":"EN104*'Zambia-IO-Data'!$BN44","v":0},0,0,0,0,186294.2340444478,{"$f":"EK104*'Zambia-IO-Data'!BO44","v":0},{"$f":"EX104*'Zambia-IO-Data'!$BO44","v":0},{"$f":"EY104*'Zambia-IO-Data'!$BO44","v":0},{"$f":"EK104*'Zambia-IO-Data'!BN44","v":0},{"$f":"EX104*'Zambia-IO-Data'!$BN44","v":0},{"$f":"EY104*'Zambia-IO-Data'!$BN44","v":0},0,0,0,null,"TTL_C95: Private households with employed persons",0,0,null,0,0,{"$f":"FK104*CustomRegion1!C42","v":0},{"$f":"FN104*CustomRegion1!$C42","v":0},{"$f":"FO104*CustomRegion1!$C42","v":0},{"$f":"FK104*CustomRegion1!D42","v":0},{"$f":"FN104*CustomRegion1!$D42","v":0},{"$f":"FO104*CustomRegion1!$D42","v":0},{"$f":"(FS104*'Default-Data'!$F$19/biopower_dollar_index)/CustomRegion1!$E42","v":0},{"$f":"(FT104*'Default-Data'!$F$19/biopower_dollar_index)/CustomRegion1!$E42","v":0},{"$f":"(FU104*'Default-Data'!$F$19/biopower_dollar_index)/CustomRegion1!$E42","v":0},0,0,{"$f":"FL104*CustomRegion1!C42","v":0},{"$f":"FY104*CustomRegion1!$C42","v":0},{"$f":"FZ104*CustomRegion1!$C42","v":0},{"$f":"FL104*CustomRegion1!D42","v":0},{"$f":"FY104*CustomRegion1!$D42","v":0},{"$f":"FZ104*CustomRegion1!$D42","v":0},{"$f":"(GD104*'Default-Data'!$C$58/biopower_dollar_index)/CustomRegion1!$E42","v":0},{"$f":"(GE104*'Default-Data'!$C$58/biopower_dollar_index)/CustomRegion1!$E42","v":0},{"$f":"(GF104*'Default-Data'!$C$58/biopower_dollar_index)/CustomRegion1!$E42","v":0},null,"C80 Education",0,0,null,153710.10593614363,7272852.8620147491,{"$f":"GL104*CustomRegion2!C46","v":0},{"$f":"GO104*CustomRegion2!$C46","v":136904.08240476993},{"$f":"GP104*CustomRegion2!$C46","v":6477669.3859847737},{"$f":"GL104*CustomRegion2!D46","v":0},{"$f":"GO104*CustomRegion2!$D46","v":104173.30646988373},{"$f":"GP104*CustomRegion2!$D46","v":4929000.1167508233},{"$f":"(GT104*'Default-Data'!$C$59/biopower_dollar_index)/CustomRegion2!$E46","v":0},{"$f":"(GU104*'Default-Data'!$C$59/biopower_dollar_index)/CustomRegion2!$E46","v":25.195072801161281},{"$f":"(GV104*'Default-Data'!$C$59/biopower_dollar_index)/CustomRegion2!$E46","v":1192.1145731739973},7245.455112726363,330926.82339202065,{"$f":"GM104*CustomRegion2!C46","v":0},{"$f":"GZ104*CustomRegion2!$C46","v":6453.2671926257981},{"$f":"HA104*CustomRegion2!$C46","v":294744.66121590772},{"$f":"GM104*CustomRegion2!D46","v":0},{"$f":"GZ104*CustomRegion2!$D46","v":4910.4319548474696},{"$f":"HA104*CustomRegion2!$D46","v":224277.65033643012},{"$f":"(HE104*'Default-Data'!$C$59/biopower_dollar_index)/CustomRegion2!$E46","v":0},{"$f":"(HF104*'Default-Data'!$C$59/biopower_dollar_index)/CustomRegion2!$E46","v":1.1876237279969366},{"$f":"(HG104*'Default-Data'!$C$59/biopower_dollar_index)/CustomRegion2!$E46","v":54.243183012851304},null,"HRRN",0,0,null,0,1905310.0473961495,{"$f":"HM104*CustomRegion3!D45","v":0},{"$f":"HP104*CustomRegion3!$D45","v":0},{"$f":"HQ104*CustomRegion3!$D45","v":0},{"$f":"HM104*CustomRegion3!E45","v":0},{"$f":"HP104*CustomRegion3!$E45","v":0},{"$f":"HQ104*CustomRegion3!$E45","v":0},0,0,0,0,186294.2340444478,{"$f":"HN104*CustomRegion3!D45","v":0},{"$f":"IA104*CustomRegion3!$D45","v":0},{"$f":"IB104*CustomRegion3!$D45","v":0},{"$f":"HN104*CustomRegion3!E45","v":0},{"$f":"IA104*CustomRegion3!$E45","v":0},{"$f":"IB104*CustomRegion3!$E45","v":0},0,0,0]
[null,317,"Total",1000000,null,null,711674.19375827443,351881.65243012097,376641.77335229964,472749.4843909624,126301.82390823217,46161.292871819183,68714.359216087527,43130.246719871851,4.5774324217030893,10.686588730750817,15.438756330454826,null,null,null,null,null,null,null,null,null,null,null,null,104,"HH",0,0,null,0,229126013.83278805,{"$f":"'Colombia-IO-Data'!$AN47*Calculations!AF105","v":0},{"$f":"'Colombia-IO-Data'!$AN47*AI105","v":0},{"$f":"'Colombia-IO-Data'!$AN47*AJ105","v":0},{"$f":"'Colombia-IO-Data'!$AO47*Calculations!AK105","v":0},{"$f":"'Colombia-IO-Data'!$AO47*Calculations!AL105","v":0},{"$f":"'Colombia-IO-Data'!$AO47*Calculations!AM105","v":0},0,0,0,0,22040320.997831985,{"$f":"'Colombia-IO-Data'!$AN47*AG105","v":0},{"$f":"'Colombia-IO-Data'!$AN47*AT105","v":0},{"$f":"'Colombia-IO-Data'!$AN47*AU105","v":0},{"$f":"'Colombia-IO-Data'!$AO47*AV105","v":0},{"$f":"'Colombia-IO-Data'!$AO47*AW105","v":0},{"$f":"'Colombia-IO-Data'!$AO47*AX105","v":0},0,0,0,null,"L",0,0,null,0,263339007.27525467,{"$f":"BG105*'Mexico-IO-Data'!AQ47","v":0},{"$f":"BJ105*'Mexico-IO-Data'!$AQ47","v":0},{"$f":"BK105*'Mexico-IO-Data'!$AQ47","v":0},{"$f":"BG105*'Mexico-IO-Data'!AR47","v":0},{"$f":"BJ105*'Mexico-IO-Data'!$AR47","v":0},{"$f":"BK105*'Mexico-IO-Data'!$AR47","v":0},0,0,0,0,17376633.354281694,{"$f":"BH105*'Mexico-IO-Data'!AQ47","v":0},{"$f":"BU105*'Mexico-IO-Data'!$AQ47","v":0},{"$f":"BV105*'Mexico-IO-Data'!$AQ47","v":0},{"$f":"BH105*'Mexico-IO-Data'!AR47","v":0},{"$f":"BU105*'Mexico-IO-Data'!$AR47","v":0},{"$f":"BV105*'Mexico-IO-Data'!$AR47","v":0},0,0,0,null,"LHH",0,0,null,0,189359374.49115565,{"$f":"CH105*'Philippines-IO-Data'!AN47","v":0},{"$f":"CK105*'Philippines-IO-Data'!$AN47","v":0},{"$f":"CL105*'Philippines-IO-Data'!$AN47","v":0},{"$f":"CH105*'Philippines-IO-Data'!AO47","v":0},{"$f":"CK105*'Philippines-IO-Data'!$AO47","v":0},{"$f":"CL105*'Philippines-IO-Data'!$AO47","v":0},0,0,0,0,18931640.625913743,{"$f":"CI105*'Philippines-IO-Data'!AN47","v":0},{"$f":"CV105*'Philippines-IO-Data'!$AN47","v":0},{"$f":"CW105*'Philippines-IO-Data'!$AN47","v":0},{"$f":"CI105*'Philippines-IO-Data'!AO47","v":0},{"$f":"CV105*'Philippines-IO-Data'!$AO47","v":0},{"$f":"CW105*'Philippines-IO-Data'!$AO47","v":0},0,0,0,null,"L",0,0,null,0,397794651.91562808,{"$f":"DI105*'SouthAfrica-IO-Data'!AR47","v":0},{"$f":"DL105*'Mexico-IO-Data'!$AQ47","v":0},{"$f":"DM105*'Mexico-IO-Data'!$AQ47","v":0},{"$f":"DI105*'SouthAfrica-IO-Data'!AS47","v":0},{"$f":"DL105*'Mexico-IO-Data'!$AR47","v":0},{"$f":"DM105*'Mexico-IO-Data'!$AR47","v":0},0,0,0,0,33992501.686528668,{"$f":"DJ105*'SouthAfrica-IO-Data'!AR47","v":0},{"$f":"DW105*'SouthAfrica-IO-Data'!$AR47","v":0},{"$f":"DX105*'SouthAfrica-IO-Data'!$AR47","v":0},{"$f":"DJ105*'SouthAfrica-IO-Data'!AS47","v":0},{"$f":"DW105*'SouthAfrica-IO-Data'!$AS47","v":0},{"$f":"DX105*'SouthAfrica-IO-Data'!$AS47","v":0},0,0,0,null,"HRS",0,0,null,0,39229562.713637777,{"$f":"EJ105*'Zambia-IO-Data'!BO45","v":0},{"$f":"EM105*'Zambia-IO-Data'!$BO45","v":0},{"$f":"EN105*'Zambia-IO-Data'!$BO45","v":0},{"$f":"EJ105*'Zambia-IO-Data'!BN45","v":0},{"$f":"EM105*'Zambia-IO-Data'!$BN45","v":0},{"$f":"EN105*'Zambia-IO-Data'!$BN45","v":0},0,0,0,0,6010717.5897274334,{"$f":"EK105*'Zambia-IO-Data'!BO45","v":0},{"$f":"EX105*'Zambia-IO-Data'!$BO45","v":0},{"$f":"EY105*'Zambia-IO-Data'!$BO45","v":0},{"$f":"EK105*'Zambia-IO-Data'!BN45","v":0},{"$f":"EX105*'Zambia-IO-Data'!$BN45","v":0},{"$f":"EY105*'Zambia-IO-Data'!$BN45","v":0},0,0,0,null,"LHH",0,0,null,0,238925598.2015411,{"$f":"FK105*CustomRegion1!AM43","v":0},{"$f":"FN105*CustomRegion1!$AM43","v":0},{"$f":"FO105*CustomRegion1!$AM43","v":0},{"$f":"FK105*CustomRegion1!AN43","v":0},{"$f":"FN105*CustomRegion1!$AN43","v":0},{"$f":"FO105*CustomRegion1!$AN43","v":0},0,0,0,0,23024862.064218096,{"$f":"FL105*CustomRegion1!AM43","v":0},{"$f":"FY105*CustomRegion1!$AM43","v":0},{"$f":"FZ105*CustomRegion1!$AM43","v":0},{"$f":"FL105*CustomRegion1!AN43","v":0},{"$f":"FY105*CustomRegion1!$AN43","v":0},{"$f":"FZ105*CustomRegion1!$AN43","v":0},0,0,0,null,"C85 Health and social work",0,0,null,41242.401675655223,6648039.25739206,{"$f":"GL105*CustomRegion2!C47","v":0},{"$f":"GO105*CustomRegion2!$C47","v":30942.468040805536},{"$f":"GP105*CustomRegion2!$C47","v":4987748.8676247494},{"$f":"GL105*CustomRegion2!D47","v":0},{"$f":"GO105*CustomRegion2!$D47","v":17845.316001980522},{"$f":"GP105*CustomRegion2!$D47","v":2876562.8702889653},{"$f":"(GT105*'Default-Data'!$C$59/biopower_dollar_index)/CustomRegion2!$E47","v":0},{"$f":"(GU105*'Default-Data'!$C$59/biopower_dollar_index)/CustomRegion2!$E47","v":7.8149689023437139},{"$f":"(GV105*'Default-Data'!$C$59/biopower_dollar_index)/CustomRegion2!$E47","v":1259.7282880532862},1734.7875558200976,302496.77189602156,{"$f":"GM105*CustomRegion2!C47","v":0},{"$f":"GZ105*CustomRegion2!$C47","v":1301.5393459793638},{"$f":"HA105*CustomRegion2!$C47","v":226950.81558173554},{"$f":"GM105*CustomRegion2!D47","v":0},{"$f":"GZ105*CustomRegion2!$D47","v":750.63116773306183},{"$f":"HA105*CustomRegion2!$D47","v":130888.36403167018},{"$f":"(HE105*'Default-Data'!$C$59/biopower_dollar_index)/CustomRegion2!$E47","v":0},{"$f":"(HF105*'Default-Data'!$C$59/biopower_dollar_index)/CustomRegion2!$E47","v":0.32872263132313173},{"$f":"(HG105*'Default-Data'!$C$59/biopower_dollar_index)/CustomRegion2!$E47","v":57.319718769486791},null,"HRS",0,0,null,0,39229562.713637777,{"$f":"HM105*CustomRegion3!D46","v":0},{"$f":"HP105*CustomRegion3!$D46","v":0},{"$f":"HQ105*CustomRegion3!$D46","v":0},{"$f":"HM105*CustomRegion3!E46","v":0},{"$f":"HP105*CustomRegion3!$E46","v":0},{"$f":"HQ105*CustomRegion3!$E46","v":0},0,0,0,0,6010717.5897274334,{"$f":"HN105*CustomRegion3!D46","v":0},{"$f":"IA105*CustomRegion3!$D46","v":0},{"$f":"IB105*CustomRegion3!$D46","v":0},{"$f":"HN105*CustomRegion3!E46","v":0},{"$f":"IA105*CustomRegion3!$E46","v":0},{"$f":"IB105*CustomRegion3!$E46","v":0},0,0,0]
[null,null,null,null,null,null,null,null,null,null,null,null,null,null,null,null,null,null,null,null,null,null,null,null,null,null,null,null,null,105,"Total",{"$f":"SUM(AF71:AF105)","v":581654155.46003008},{"$f":"SUM(AG71:AG105)","v":70816129.605341107},null,{"$f":"SUM(AI71:AI105)","v":320378222.47659677},{"$f":"SUM(AJ71:AJ105)","v":561611104.61623693},{"$f":"SUM(AK71:AK105)","v":329569466.90895426},170569236.87230316,182618774.76016402,108598564.40546334,49188733.307474412,71338716.119850233,16595.751603969613,9230.6489599849756,11482.939443281197,42791150.074839421,54023062.74451299,41990050.371168159,23705470.271896549,17566649.672883254,9412592.1083133854,5765443.0383704752,6862285.8511481211,1558.3544782177198,978.49141383565654,1104.578511601404,null,null,null,null,null,null,null,null,null,null,null,null,null,null,null,null,null,null,null,null,null,null,null,null,null,null,null,null,null,null,null,null,null,null,null,null,null,null,null,null,null,null,null,null,null,null,null,null,null,null,null,null,null,null,null,null,null,null,null,null,null,null,null,null,null,null,null,null,null,null,null,null,null,null,null,null,null,null,null,null,null,null,"HRM",0,0,null,0,4269109.7210130077,{"$f":"EJ106*'Zambia-IO-Data'!BO46","v":0},{"$f":"EM106*'Zambia-IO-Data'!$BO46","v":0},{"$f":"EN106*'Zambia-IO-Data'!$BO46","v":0},{"$f":"EJ106*'Zambia-IO-Data'!BN46","v":0},{"$f":"EM106*'Zambia-IO-Data'!$BN46","v":0},{"$f":"EN106*'Zambia-IO-Data'!$BN46","v":0},0,0,0,0,510711.54615626042,{"$f":"EK106*'Zambia-IO-Data'!BO46","v":0},{"$f":"EX106*'Zambia-IO-Data'!$BO46","v":0},{"$f":"EY106*'Zambia-IO-Data'!$BO46","v":0},{"$f":"EK106*'Zambia-IO-Data'!BN46","v":0},{"$f":"EX106*'Zambia-IO-Data'!$BN46","v":0},{"$f":"EY106*'Zambia-IO-Data'!$BN46","v":0},0,0,0,null,null,null,null,null,null,null,null,null,null,null,null,null,null,null,null,null,null,null,null,null,null,null,null,null,null,null,null,"C90T93 Other community, social and personal services",0,0,null,656416.81960291252,8979328.686133381,{"$f":"GL106*CustomRegion2!C48","v":0},{"$f":"GO106*CustomRegion2!$C48","v":462642.70261632296},{"$f":"GP106*CustomRegion2!$C48","v":6328632.6111296844},{"$f":"GL106*CustomRegion2!D48","v":0},{"$f":"GO106*CustomRegion2!$D48","v":89755.141517621421},{"$f":"GP106*CustomRegion2!$D48","v":1227788.3394954421},{"$f":"(GT106*'Default-Data'!$C$59/biopower_dollar_index)/CustomRegion2!$E48","v":0},{"$f":"(GU106*'Default-Data'!$C$59/biopower_dollar_index)/CustomRegion2!$E48","v":61.92205957371069},{"$f":"(GV106*'Default-Data'!$C$59/biopower_dollar_index)/CustomRegion2!$E48","v":847.0510036154069},23714.626721050619,408574.29328933125,{"$f":"GM106*CustomRegion2!C48","v":0},{"$f":"GZ106*CustomRegion2!$C48","v":16714.073543089704},{"$f":"HA106*CustomRegion2!$C48","v":287963.24168121861},{"$f":"GM106*CustomRegion2!D48","v":0},{"$f":"GZ106*CustomRegion2!$D48","v":3242.619039946399},{"$f":"HA106*CustomRegion2!$D48","v":55866.398330301672},{"$f":"(HE106*'Default-Data'!$C$59/biopower_dollar_index)/CustomRegion2!$E48","v":0},{"$f":"(HF106*'Default-Data'!$C$59/biopower_dollar_index)/CustomRegion2!$E48","v":2.237082421924419},{"$f":"(HG106*'Default-Data'!$C$59/biopower_dollar_index)/CustomRegion2!$E48","v":38.542220390777537},null,"HRM",0,0,null,0,4269109.7210130077,{"$f":"HM106*CustomRegion3!D47","v":0},{"$f":"HP106*CustomRegion3!$D47","v":0},{"$f":"HQ106*CustomRegion3!$D47","v":0},{"$f":"HM106*CustomRegion3!E47","v":0},{"$f":"HP106*CustomRegion3!$E47","v":0},{"$f":"HQ106*CustomRegion3!$E47","v":0},0,0,0,0,510711.54615626042,{"$f":"HN106*CustomRegion3!D47","v":0},{"$f":"IA106*CustomRegion3!$D47","v":0},{"$f":"IB106*CustomRegion3!$D47","v":0},{"$f":"HN106*CustomRegion3!E47","v":0},{"$f":"IA106*CustomRegion3!$E47","v":0},{"$f":"IB106*CustomRegion3!$E47","v":0},0,0,0]
[null,null,null,null,null,null,null,null,null,null,null,null,null,null,null,null,null,null,null,null,null,null,null,null,null,null,null,null,null,106,null,null,null,null,null,null,null,null,null,null,null,null,null,null,null,null,null,null,null,null,null,null,null,null,null,null,null,null,null,null,null,null,null,null,null,null,null,null,null,null,null,null,null,null,null,null,null,null,null,null,null,null,null,null,null,null,null,null,null,null,null,null,null,null,null,null,null,null,null,null,null,null,null,null,null,null,null,null,null,null,null,null,null,null,null,null,null,null,null,null,null,null,null,null,null,null,null,null,null,null,null,null,null,null,null,null,null,null,"HRL",0,0,null,0,4515170.9872874506,{"$f":"EJ107*'Zambia-IO-Data'!BO47","v":0},{"$f":"EM107*'Zambia-IO-Data'!$BO47","v":0},{"$f":"EN107*'Zambia-IO-Data'!$BO47","v":0},{"$f":"EJ107*'Zambia-IO-Data'!BN47","v":0},{"$f":"EM107*'Zambia-IO-Data'!$BN47","v":0},{"$f":"EN107*'Zambia-IO-Data'!$BN47","v":0},0,0,0,0,206559.14074392497,{"$f":"EK107*'Zambia-IO-Data'!BO47","v":0},{"$f":"EX107*'Zambia-IO-Data'!$BO47","v":0},{"$f":"EY107*'Zambia-IO-Data'!$BO47","v":0},{"$f":"EK107*'Zambia-IO-Data'!BN47","v":0},{"$f":"EX107*'Zambia-IO-Data'!$BN47","v":0},{"$f":"EY107*'Zambia-IO-Data'!$BN47","v":0},0,0,0,null,null,null,null,null,null,null,null,null,null,null,null,null,null,null,null,null,null,null,null,null,null,null,null,null,null,null,null,"C95 Private households with employed persons",0,0,null,0,1984538.9177243232,{"$f":"GL107*CustomRegion2!C49","v":0},{"$f":"GO107*CustomRegion2!$C49","v":0},{"$f":"GP107*CustomRegion2!$C49","v":1984538.9177243232},{"$f":"GL107*CustomRegion2!D49","v":0},{"$f":"GO107*CustomRegion2!$D49","v":0},{"$f":"GP107*CustomRegion2!$D49","v":1984538.9177243232},{"$f":"(GT107*'Default-Data'!$C$59/biopower_dollar_index)/CustomRegion2!$E49","v":0},{"$f":"(GU107*'Default-Data'!$C$59/biopower_dollar_index)/CustomRegion2!$E49","v":0},{"$f":"(GV107*'Default-Data'!$C$59/biopower_dollar_index)/CustomRegion2!$E49","v":381.70041099441335},0,90299.800147258487,{"$f":"GM107*CustomRegion2!C49","v":0},{"$f":"GZ107*CustomRegion2!$C49","v":0},{"$f":"HA107*CustomRegion2!$C49","v":90299.800147258487},{"$f":"GM107*CustomRegion2!D49","v":0},{"$f":"GZ107*CustomRegion2!$D49","v":0},{"$f":"HA107*CustomRegion2!$D49","v":90299.800147258487},{"$f":"(HE107*'Default-Data'!$C$59/biopower_dollar_index)/CustomRegion2!$E49","v":0},{"$f":"(HF107*'Default-Data'!$C$59/biopower_dollar_index)/CustomRegion2!$E49","v":0},{"$f":"(HG107*'Default-Data'!$C$59/biopower_dollar_index)/CustomRegion2!$E49","v":17.367999448680958},null,"HRL",0,0,null,0,4515170.9872874506,{"$f":"HM107*CustomRegion3!D48","v":0},{"$f":"HP107*CustomRegion3!$D48","v":0},{"$f":"HQ107*CustomRegion3!$D48","v":0},{"$f":"HM107*CustomRegion3!E48","v":0},{"$f":"HP107*CustomRegion3!$E48","v":0},{"$f":"HQ107*CustomRegion3!$E48","v":0},0,0,0,0,206559.14074392497,{"$f":"HN107*CustomRegion3!D48","v":0},{"$f":"IA107*CustomRegion3!$D48","v":0},{"$f":"IB107*CustomRegion3!$D48","v":0},{"$f":"HN107*CustomRegion3!E48","v":0},{"$f":"IA107*CustomRegion3!$E48","v":0},{"$f":"IB107*CustomRegion3!$E48","v":0},0,0,0]
[null,null,null,null,null,null,null,null,null,null,null,null,null,null,null,null,null,null,null,null,null,null,null,null,null,null,null,null,null,107,null,null,null,null,null,null,null,null,null,null,null,null,null,null,null,null,null,null,null,null,null,null,null,null,null,null,null,null,null,null,null,null,null,null,null,null,null,null,null,null,null,null,null,null,null,null,null,null,null,null,null,null,null,null,null,null,null,null,null,null,null,null,null,null,null,null,null,null,null,null,null,null,null,null,null,null,null,null,null,null,null,null,null,null,null,null,null,null,null,null,null,null,null,null,null,null,null,null,null,null,null,null,null,null,null,null,null,null,"HRN",0,0,null,0,3661441.3776858249,{"$f":"EJ108*'Zambia-IO-Data'!BO48","v":0},{"$f":"EM108*'Zambia-IO-Data'!$BO48","v":0},{"$f":"EN108*'Zambia-IO-Data'!$BO48","v":0},{"$f":"EJ108*'Zambia-IO-Data'!BN48","v":0},{"$f":"EM108*'Zambia-IO-Data'!$BN48","v":0},{"$f":"EN108*'Zambia-IO-Data'!$BN48","v":0},0,0,0,0,381872.87351385021,{"$f":"EK108*'Zambia-IO-Data'!BO48","v":0},{"$f":"EX108*'Zambia-IO-Data'!$BO48","v":0},{"$f":"EY108*'Zambia-IO-Data'!$BO48","v":0},{"$f":"EK108*'Zambia-IO-Data'!BN48","v":0},{"$f":"EX108*'Zambia-IO-Data'!$BN48","v":0},{"$f":"EY108*'Zambia-IO-Data'!$BN48","v":0},0,0,0,null,null,null,null,null,null,null,null,null,null,null,null,null,null,null,null,null,null,null,null,null,null,null,null,null,null,null,null,"L",0,0,null,0,258172996.4179922,{"$f":"GL108*CustomRegion2!C50","v":0},{"$f":"GO108*CustomRegion2!$C50","v":0},{"$f":"GP108*CustomRegion2!$C50","v":0},{"$f":"GL108*CustomRegion2!D50","v":0},{"$f":"GO108*CustomRegion2!$D50","v":0},{"$f":"GP108*CustomRegion2!$D50","v":0},0,0,0,0,11747297.960120952,{"$f":"GM108*CustomRegion2!C50","v":0},{"$f":"GZ108*CustomRegion2!$C50","v":0},{"$f":"HA108*CustomRegion2!$C50","v":0},{"$f":"GM108*CustomRegion2!D50","v":0},{"$f":"GZ108*CustomRegion2!$D50","v":0},{"$f":"HA108*CustomRegion2!$D50","v":0},0,0,0,null,"HRN",0,0,null,0,3661441.3776858249,{"$f":"HM108*CustomRegion3!D49","v":0},{"$f":"HP108*CustomRegion3!$D49","v":0},{"$f":"HQ108*CustomRegion3!$D49","v":0},{"$f":"HM108*CustomRegion3!E49","v":0},{"$f":"HP108*CustomRegion3!$E49","v":0},{"$f":"HQ108*CustomRegion3!$E49","v":0},0,0,0,0,381872.87351385021,{"$f":"HN108*CustomRegion3!D49","v":0},{"$f":"IA108*CustomRegion3!$D49","v":0},{"$f":"IB108*CustomRegion3!$D49","v":0},{"$f":"HN108*CustomRegion3!E49","v":0},{"$f":"IA108*CustomRegion3!$E49","v":0},{"$f":"IB108*CustomRegion3!$E49","v":0},0,0,0]
[null,null,null,null,null,null,null,null,null,null,null,null,null,null,null,null,null,null,null,null,null,null,null,null,null,null,null,null,null,108,null,null,null,null,null,null,null,null,null,null,null,null,null,null,null,null,null,null,null,null,null,null,null,null,null,null,null,null,null,null,null,null,null,null,null,null,null,null,null,null,null,null,null,null,null,null,null,null,null,null,null,null,null,null,null,null,null,null,null,null,null,null,null,null,null,null,null,null,null,null,null,null,null,null,null,null,null,null,null,null,null,null,null,null,null,null,null,null,null,null,null,null,null,null,null,null,null,null,null,null,null,null,null,null,null,null,null,null,"HUSE",0,0,null,0,14655922.933629517,{"$f":"EJ109*'Zambia-IO-Data'!BO49","v":0},{"$f":"EM109*'Zambia-IO-Data'!$BO49","v":0},{"$f":"EN109*'Zambia-IO-Data'!$BO49","v":0},{"$f":"EJ109*'Zambia-IO-Data'!BN49","v":0},{"$f":"EM109*'Zambia-IO-Data'!$BN49","v":0},{"$f":"EN109*'Zambia-IO-Data'!$BN49","v":0},0,0,0,0,1389943.1863924693,{"$f":"EK109*'Zambia-IO-Data'!BO49","v":0},{"$f":"EX109*'Zambia-IO-Data'!$BO49","v":0},{"$f":"EY109*'Zambia-IO-Data'!$BO49","v":0},{"$f":"EK109*'Zambia-IO-Data'!BN49","v":0},{"$f":"EX109*'Zambia-IO-Data'!$BN49","v":0},{"$f":"EY109*'Zambia-IO-Data'!$BN49","v":0},0,0,0,null,null,null,null,null,null,null,null,null,null,null,null,null,null,null,null,null,null,null,null,null,null,null,null,null,null,null,null,"HH",0,0,null,0,258172996.4179922,{"$f":"GL109*CustomRegion2!C51","v":0},{"$f":"GO109*CustomRegion2!$C51","v":0},{"$f":"GP109*CustomRegion2!$C51","v":0},{"$f":"GL109*CustomRegion2!D51","v":0},{"$f":"GO109*CustomRegion2!$D51","v":0},{"$f":"GP109*CustomRegion2!$D51","v":0},0,0,0,0,11747297.960120952,{"$f":"GM109*CustomRegion2!C51","v":0},{"$f":"GZ109*CustomRegion2!$C51","v":0},{"$f":"HA109*CustomRegion2!$C51","v":0},{"$f":"GM109*CustomRegion2!D51","v":0},{"$f":"GZ109*CustomRegion2!$D51","v":0},{"$f":"HA109*CustomRegion2!$D51","v":0},0,0,0,null,"HUSE",0,0,null,0,14655922.933629517,{"$f":"HM109*CustomRegion3!D50","v":0},{"$f":"HP109*CustomRegion3!$D50","v":0},{"$f":"HQ109*CustomRegion3!$D50","v":0},{"$f":"HM109*CustomRegion3!E50","v":0},{"$f":"HP109*CustomRegion3!$E50","v":0},{"$f":"HQ109*CustomRegion3!$E50","v":0},0,0,0,0,1389943.1863924693,{"$f":"HN109*CustomRegion3!D50","v":0},{"$f":"IA109*CustomRegion3!$D50","v":0},{"$f":"IB109*CustomRegion3!$D50","v":0},{"$f":"HN109*CustomRegion3!E50","v":0},{"$f":"IA109*CustomRegion3!$E50","v":0},{"$f":"IB109*CustomRegion3!$E50","v":0},0,0,0]
[null,null,null,null,null,null,null,null,null,null,null,null,null,null,null,null,null,null,null,null,null,null,null,null,null,null,null,null,null,109,null,null,null,null,null,null,null,null,null,null,null,null,null,null,null,null,null,null,null,null,null,null,null,null,null,null,null,null,null,null,null,null,null,null,null,null,null,null,null,null,null,null,null,null,null,null,null,null,null,null,null,null,null,null,null,null,null,null,null,null,null,null,null,null,null,null,null,null,null,null,null,null,null,null,null,null,null,null,null,null,null,null,null,null,null,null,null,null,null,null,null,null,null,null,null,null,null,null,null,null,null,null,null,null,null,null,null,null,"HUPR",0,0,null,0,34441415.908276759,{"$f":"EJ110*'Zambia-IO-Data'!BO50","v":0},{"$f":"EM110*'Zambia-IO-Data'!$BO50","v":0},{"$f":"EN110*'Zambia-IO-Data'!$BO50","v":0},{"$f":"EJ110*'Zambia-IO-Data'!BN50","v":0},{"$f":"EM110*'Zambia-IO-Data'!$BN50","v":0},{"$f":"EN110*'Zambia-IO-Data'!$BN50","v":0},0,0,0,0,2364623.0960032074,{"$f":"EK110*'Zambia-IO-Data'!BO50","v":0},{"$f":"EX110*'Zambia-IO-Data'!$BO50","v":0},{"$f":"EY110*'Zambia-IO-Data'!$BO50","v":0},{"$f":"EK110*'Zambia-IO-Data'!BN50","v":0},{"$f":"EX110*'Zambia-IO-Data'!$BN50","v":0},{"$f":"EY110*'Zambia-IO-Data'!$BN50","v":0},0,0,0,null,null,null,null,null,null,null,null,null,null,null,null,null,null,null,null,null,null,null,null,null,null,null,null,null,null,null,null,null,null,null,null,null,null,null,null,null,null,null,null,null,null,null,null,null,null,null,null,null,null,null,null,null,null,null,"HUPR",0,0,null,0,34441415.908276759,{"$f":"HM110*CustomRegion3!D51","v":0},{"$f":"HP110*CustomRegion3!$D51","v":0},{"$f":"HQ110*CustomRegion3!$D51","v":0},{"$f":"HM110*CustomRegion3!E51","v":0},{"$f":"HP110*CustomRegion3!$E51","v":0},{"$f":"HQ110*CustomRegion3!$E51","v":0},0,0,0,0,2364623.0960032074,{"$f":"HN110*CustomRegion3!D51","v":0},{"$f":"IA110*CustomRegion3!$D51","v":0},{"$f":"IB110*CustomRegion3!$D51","v":0},{"$f":"HN110*CustomRegion3!E51","v":0},{"$f":"IA110*CustomRegion3!$E51","v":0},{"$f":"IB110*CustomRegion3!$E51","v":0},0,0,0]
[null,null,null,null,null,null,null,null,null,null,null,null,null,null,null,null,null,null,null,null,null,null,null,null,null,null,null,null,null,110,null,null,null,null,null,null,null,null,null,null,null,null,null,null,null,null,null,null,null,null,null,null,null,null,null,null,null,null,null,null,null,null,null,null,null,null,null,null,null,null,null,null,null,null,null,null,null,null,null,null,null,null,null,null,null,null,null,null,null,null,null,null,null,null,null,null,null,null,null,null,null,null,null,null,null,null,null,null,null,null,null,null,null,null,null,null,null,null,null,null,null,null,null,null,null,null,null,null,null,null,null,null,null,null,null,null,null,null,"HUPU",0,0,null,0,59275862.341891631,{"$f":"EJ111*'Zambia-IO-Data'!BO51","v":0},{"$f":"EM111*'Zambia-IO-Data'!$BO51","v":0},{"$f":"EN111*'Zambia-IO-Data'!$BO51","v":0},{"$f":"EJ111*'Zambia-IO-Data'!BN51","v":0},{"$f":"EM111*'Zambia-IO-Data'!$BN51","v":0},{"$f":"EN111*'Zambia-IO-Data'!$BN51","v":0},0,0,0,0,3390718.2867843914,{"$f":"EK111*'Zambia-IO-Data'!BO51","v":0},{"$f":"EX111*'Zambia-IO-Data'!$BO51","v":0},{"$f":"EY111*'Zambia-IO-Data'!$BO51","v":0},{"$f":"EK111*'Zambia-IO-Data'!BN51","v":0},{"$f":"EX111*'Zambia-IO-Data'!$BN51","v":0},{"$f":"EY111*'Zambia-IO-Data'!$BN51","v":0},0,0,0,null,null,null,null,null,null,null,null,null,null,null,null,null,null,null,null,null,null,null,null,null,null,null,null,null,null,null,null,null,null,null,null,null,null,null,null,null,null,null,null,null,null,null,null,null,null,null,null,null,null,null,null,null,null,null,"HUPU",0,0,null,0,59275862.341891631,{"$f":"HM111*CustomRegion3!D52","v":0},{"$f":"HP111*CustomRegion3!$D52","v":0},{"$f":"HQ111*CustomRegion3!$D52","v":0},{"$f":"HM111*CustomRegion3!E52","v":0},{"$f":"HP111*CustomRegion3!$E52","v":0},{"$f":"HQ111*CustomRegion3!$E52","v":0},0,0,0,0,3390718.2867843914,{"$f":"HN111*CustomRegion3!D52","v":0},{"$f":"IA111*CustomRegion3!$D52","v":0},{"$f":"IB111*CustomRegion3!$D52","v":0},{"$f":"HN111*CustomRegion3!E52","v":0},{"$f":"IA111*CustomRegion3!$E52","v":0},{"$f":"IB111*CustomRegion3!$E52","v":0},0,0,0]
[null,null,null,null,null,null,null,null,null,null,null,null,null,null,null,null,null,null,null,null,null,null,null,null,null,null,null,null,null,111,null,null,null,null,null,null,null,null,null,null,null,null,null,null,null,null,null,null,null,null,null,null,null,null,null,null,null,null,null,null,null,null,null,null,null,null,null,null,null,null,null,null,null,null,null,null,null,null,null,null,null,null,null,null,null,null,null,null,null,null,null,null,null,null,null,null,null,null,null,null,null,null,null,null,null,null,null,null,null,null,null,null,null,null,null,null,null,null,null,null,null,null,null,null,null,null,null,null,null,null,null,null,null,null,null,null,null,null,"HUEM",0,0,null,0,3498725.4535647812,{"$f":"EJ112*'Zambia-IO-Data'!BO52","v":0},{"$f":"EM112*'Zambia-IO-Data'!$BO52","v":0},{"$f":"EN112*'Zambia-IO-Data'!$BO52","v":0},{"$f":"EJ112*'Zambia-IO-Data'!BN52","v":0},{"$f":"EM112*'Zambia-IO-Data'!$BN52","v":0},{"$f":"EN112*'Zambia-IO-Data'!$BN52","v":0},0,0,0,0,154480.21196190926,{"$f":"EK112*'Zambia-IO-Data'!BO52","v":0},{"$f":"EX112*'Zambia-IO-Data'!$BO52","v":0},{"$f":"EY112*'Zambia-IO-Data'!$BO52","v":0},{"$f":"EK112*'Zambia-IO-Data'!BN52","v":0},{"$f":"EX112*'Zambia-IO-Data'!$BN52","v":0},{"$f":"EY112*'Zambia-IO-Data'!$BN52","v":0},0,0,0,null,null,null,null,null,null,null,null,null,null,null,null,null,null,null,null,null,null,null,null,null,null,null,null,null,null,null,null,null,null,null,null,null,null,null,null,null,null,null,null,null,null,null,null,null,null,null,null,null,null,null,null,null,null,null,"HUEM",0,0,null,0,3498725.4535647812,{"$f":"HM112*CustomRegion3!D53","v":0},{"$f":"HP112*CustomRegion3!$D53","v":0},{"$f":"HQ112*CustomRegion3!$D53","v":0},{"$f":"HM112*CustomRegion3!E53","v":0},{"$f":"HP112*CustomRegion3!$E53","v":0},{"$f":"HQ112*CustomRegion3!$E53","v":0},0,0,0,0,154480.21196190926,{"$f":"HN112*CustomRegion3!D53","v":0},{"$f":"IA112*CustomRegion3!$D53","v":0},{"$f":"IB112*CustomRegion3!$D53","v":0},{"$f":"HN112*CustomRegion3!E53","v":0},{"$f":"IA112*CustomRegion3!$E53","v":0},{"$f":"IB112*CustomRegion3!$E53","v":0},0,0,0]
[null,null,null,null,null,null,null,null,null,null,null,null,null,null,null,null,null,null,null,null,null,null,null,null,null,null,null,null,null,112,null,null,null,null,null,null,null,null,null,null,null,null,null,null,null,null,null,null,null,null,null,null,null,null,null,null,null,null,null,null,null,null,null,null,null,null,null,null,null,null,null,null,null,null,null,null,null,null,null,null,null,null,null,null,null,null,null,null,null,null,null,null,null,null,null,null,null,null,null,null,null,null,null,null,null,null,null,null,null,null,null,null,null,null,null,null,null,null,null,null,null,null,null,null,null,null,null,null,null,null,null,null,null,null,null,null,null,null,null,{"$f":"SUM(EJ71:EJ112)","v":581654155.46003008},{"$f":"SUM(EK71:EK112)","v":70816129.605341107}]
[null,null,null,null,null,null,null,null,null,null,null,null,null,null,null,null,null,null,null,null,null,null,null,null,null,null,null,null,null,113,"Agriculture",{"$f":"AF71","v":0},{"$f":"AG71","v":28385431.684592765},null,{"$f":"AI71","v":2979502.6079552108},20222551.734069206,0,2062712.4201714306,14000091.330026083,0,544571.91593596386,3696131.6004667049,0,111.25610161396347,755.12008769923443,2128869.8252097256,1945268.1262958683,19651260.694119625,1473818.5553735534,1346710.9288512536,5188083.7009089356,389099.41424362338,355542.02493989823,1059.9260639763615,79.493052620276245,72.63727433825116,null,"Agriculture",{"$f":"BG71","v":0},{"$f":"BH71","v":28385431.684592765},null,{"$f":"BJ71","v":1066813.3126785075},13769903.036115658,0,650623.25650119316,8397925.9056763444,0,107180.25526771726,1383430.1699114188,0,101.94761304367688,1315.8897903610241,3520140.3290717453,908617.97824161127,17311578.118061446,2146847.1915592188,554143.80463139236,2851818.3806690462,353660.32141163864,91286.737511984044,2712.5898890340022,336.39428741905471,86.830031974131387,null,"Agriculture",{"$f":"CH71","v":0},{"$f":"CI71","v":28385431.684592765},null,{"$f":"CK71","v":5640607.6428835886},34849483.504877165,0,3980897.166391124,24595259.751808781,0,1145884.306686148,7079640.8423723923,0,661.03764999888665,4084.1026602520601,2429866.3403330967,3484157.5680419095,20033211.262717191,1714894.6782613201,2458967.8750971546,5766474.6008212799,493625.13456248603,707803.43750340794,3326.563420637905,284.7624293548713,408.31759214984862,null,"Agriculture",{"$f":"DI71","v":0},{"$f":"DJ71","v":28385431.684592765},null,{"$f":"DL71","v":4720287.2894381825},22007502.634515733,0,2878787.36736478,13421835.724543713,0,474236.29852227861,2211042.665234522,0,32.952864203272206,153.63688718503153,1357746.5901010595,1880593.5846988894,11463424.600471133,548324.43047249643,759475.60008491471,3516507.1907978705,168203.38335609017,232975.87780394769,244.34861753364646,11.687808941524512,16.188601521717906,null,"Agriculture",{"$f":"SUM(EJ71:EJ83)","v":0},{"$f":"SUM(EK71:EK83)","v":28385431.684592765},{"$f":"SUM(EL71:EL83)","v":0},4653333.6730028875,94002324.452668071,0,1342552.877939129,35167502.482791536,0,831663.4456526523,28178546.756005239,0,8053.1036866013228,272856.47812231677,8495130.0201856624,11929337.184005927,13068314.82995528,3889261.7329336032,4532315.7953059208,12283609.520539157,3643737.1345152841,3639076.8180078352,118943.76461020966,35282.773463662066,35237.647021898832,null,"Agriculture",{"$f":"FK71","v":0},{"$f":"FL71","v":28385431.684592765},null,{"$f":"FN71","v":10616171.051869627},45734123.251885772,0,7492434.8463822911,32277168.203768276,0,2156665.4828014676,9290845.4961414393,0,1244.1370165088326,5359.7022294801618,2848302.8476619646,4407321.3060007133,20033211.262717191,2010209.0861765149,3110496.9551585536,5766474.6008212799,578630.13002563326,895343.31029766751,3326.563420637905,333.80010454708031,516.50557942713885,null,"Agriculture",{"$f":"GL71","v":0},{"$f":"GM71","v":28385431.684592765},0,6527341.3722476289,21878246.330996118,0,4022026.7364020823,13480969.765575005,0,722293.73050651327,2420973.4497024128,0,687.03066210863085,2302.7792182691055,4257502.0596310832,995496.36120358109,17490576.736977763,2623393.8348817709,613406.40123025735,3141036.7827050546,471120.91583945975,110158.29254718433,2987.6883730059703,448.12034366604519,{"$f":"HJ71","v":104.78025970456051},null,"Agriculture",{"$f":"SUM(HM71:HM83)","v":0},{"$f":"SUM(HN71:HN83)","v":28385431.684592765},{"$f":"SUM(HO71:HO83)","v":0},4653333.6730028875,94002324.452668071,0,1342552.877939129,35167502.482791536,0,831663.4456526523,28178546.756005239,0,8053.1036866013228,272856.47812231677,8495130.0201856624,11929337.184005927,13068314.82995528,3889261.7329336032,4532315.7953059208,12283609.520539157,3643737.1345152841,3639076.8180078352,0,0,0]
[null,null,null,null,null,null,null,null,null,null,null,null,null,null,null,null,null,null,null,null,null,null,null,null,null,null,null,null,null,114,"Mining and Extraction",{"$f":"AF72","v":0},{"$f":"AG72","v":0},null,{"$f":"AI72","v":25092561.436293732},5108375.8299558051,0,20547878.337436114,4183163.4176656236,0,1704296.6095893967,346962.88896635006,0,162.51003011411052,33.084000294986645,4608617.0909314696,491390.04858679138,0,3773919.3556907652,402391.08152521792,0,313019.07949539268,33375.404735728553,0,29.847351540142324,3.1824495795838019,null,"Mining and Extraction",{"$f":"BG72","v":0},{"$f":"BH72","v":0},null,{"$f":"BJ72","v":21278994.402083267},7605095.4317032844,0,18319668.18714555,6547434.6300284071,0,1136953.2140772243,406346.161432917,0,59.209188640181466,21.161316250838311,6651302.3672634261,501828.25669613015,0,5726288.0979334386,432037.66944488487,0,355384.25648155826,26813.073897400751,0,18.5073697151605,1.3963462442936505,null,"Mining and Extraction",{"$f":"CH72","v":0},{"$f":"CI72","v":0},null,{"$f":"CK72","v":9219245.99284067},1947367.0800391361,0,5307393.6582011124,1121072.5582998281,0,1387365.7121397725,293051.11479768466,0,431.57142482054371,91.160164945566876,1080526.4091840347,194692.51958137262,0,622044.25568811002,112081.81716029745,0,162603.8932389454,29298.461749155511,0,50.581611807506839,9.1139479457305246,null,"Mining and Extraction",{"$f":"DI72","v":0},{"$f":"DJ72","v":0},null,{"$f":"DL72","v":37630280.059026539},11631762.913489759,0,32396937.159926813,10014102.780431002,0,2010615.1188962038,621494.13548328681,0,127.38562108185469,39.375719252887947,6204625.4500506567,993961.88096053898,0,3695441.1684355969,591998.28971582314,0,1252060.8140223031,200576.28487025457,0,79.326243460281773,12.707819802188313,null,"Mining and Extraction",{"$f":"EJ84","v":0},{"$f":"EK84","v":0},{"$f":"EL84","v":0},37765767.258347318,2370644.1479869932,0,9226638.1450206898,579177.31617784849,0,336504.52144577866,21123.163447984156,0,296.59243842393761,18.617790118681931,1118762.3135412042,217449.45697362302,0,273327.29576808272,53125.557878965359,0,9968.5139283525277,1937.5410793853309,0,8.7861697690426404,1.7077334676290197,null,"Mining and Extraction",{"$f":"FK72","v":0},{"$f":"FL72","v":0},null,{"$f":"FN72","v":67073794.05858843},17751947.22415559,0,38613464.647161625,10219552.89959389,0,10093654.311022157,2671416.1788972574,0,3139.8590397158314,831.00431020252176,7889709.8545682803,1710725.595265355,0,4541997.9117272906,984841.29637982021,0,1187289.3878153916,257439.92899138961,0,369.33316737625785,80.082501670850206,null,"Mining and Extraction",{"$f":"GL72","v":0},{"$f":"GM72","v":0},0,23293374.952944711,12149323.161481351,0,18929493.683941431,9873216.5911557097,0,1493965.9633875531,779220.50016863784,0,77.801365485401519,40.57951815038161,1511374.9275065039,552814.28023807681,0,1228227.4338560384,449247.67009069241,0,96934.974179282755,35455.82039608511,0,5.0480891394203296,{"$f":"HJ72","v":1.8464351322741477},null,"Mining and Extraction",{"$f":"HM84","v":0},{"$f":"HN84","v":0},{"$f":"HO84","v":0},37765767.258347318,2370644.1479869932,0,9226638.1450206898,579177.31617784849,0,336504.52144577866,21123.163447984156,0,296.59243842393761,18.617790118681931,1118762.3135412042,217449.45697362302,0,273327.29576808272,53125.557878965359,0,9968.5139283525277,1937.5410793853309,0,8.7861697690426404,1.7077334676290197]
[null,null,null,null,null,null,null,null,null,null,null,null,null,null,null,null,null,null,null,null,null,null,null,null,null,null,null,null,null,115,"Utilities",{"$f":"AF89","v":0},{"$f":"AG89","v":39981727.832085572},null,{"$f":"AI89","v":10724943.720610561},14897489.511296546,0,5672296.0895315781,7879106.2871847339,0,999693.53036378336,1388624.8982812972,0,95.323915338563168,132.40974180619014,12548206.104978964,1433034.3613031656,21145863.730625153,6636598.0348339211,757914.95186713908,3726777.099043475,1169643.4767029865,133576.009077856,355.35989169164901,111.52917605555146,12.73689165115155,null,"Utilities",{"$f":"BG89","v":0},{"$f":"BH89","v":39981727.832085572},null,{"$f":"BJ89","v":8557957.5940554552},7259465.4386650324,0,3828211.8504448524,3247360.2859981912,0,924646.24799138668,784350.40212718211,0,49.559511547837388,42.039885952292408,1260095.593994908,479021.58734847605,17884936.049971614,563675.71732015221,214279.64524855031,4319833.8180397348,136147.28167234705,51755.983665578387,231.53595708082406,7.2972694075217905,2.7740352331671483,null,"Utilities",{"$f":"CH89","v":0},{"$f":"CI89","v":39981727.832085572},null,{"$f":"CK89","v":22244383.659232967},10337071.121930968,0,13330081.065948056,6194552.2137502031,0,2760678.728732341,1282900.5649641005,0,699.08910382951854,324.87003899760566,3256689.1624103636,1033472.5499108881,23959291.53726662,1951590.6219997986,619314.6585127376,4962003.3197993524,404177.19072327187,128260.94572791332,1256.532467155452,102.35014567624448,32.479632154237137,null,"Utilities",{"$f":"DI89","v":0},{"$f":"DJ89","v":39981727.832085572},null,{"$f":"DL89","v":19256275.3915831},18612039.738493755,0,8613866.1987170316,8325681.7184213083,0,2080548.1442773326,2010941.5736786278,0,75.442502980947594,72.918507598129708,6391663.1962759346,1590443.1825661361,21739127.95546253,3475317.1412606044,864766.22513426666,7103609.3926285654,1135615.7219185301,282576.26027488115,257.58311541741074,41.178423446580688,10.246463373976635,null,"Utilities",{"$f":"EJ90","v":0},{"$f":"EK90","v":39981727.832085572},{"$f":"EL90","v":0},52720667.939538792,10114411.693069041,0,14053185.826409485,2696090.7856956045,0,695674.64509755245,133464.54132591354,0,1178.3690417455571,226.06901771901354,41666670.354445376,871438.97017982602,10657502.50982389,11106639.65658191,232290.18642852845,527578.18531189859,549811.81468466565,11499.05758021264,893.63872185490573,931.29917235880396,19.477687676646685,null,"Utilities",{"$f":"FK89","v":0},{"$f":"FL89","v":39981727.832085572},null,{"$f":"FN89","v":28199225.088658091},13676570.366272401,0,16898555.7067887,8195767.276783268,0,3499714.8970985762,1697355.0479339838,0,886.23588308477474,429.82271243331053,3616236.0533960089,1317988.3133717924,23959291.53726662,2167051.2648870153,789812.44571035041,4962003.3197993524,448799.39600131841,163571.27970740938,1256.532467155452,113.64986598562309,41.421299100387692,null,"Utilities",{"$f":"GL91","v":0},{"$f":"GM91","v":1493970.0886627771},0,12426329.16159807,9771049.6399274226,0,4881294.8936823653,3838251.3526754873,0,1837938.7368674153,1445204.8066275013,0,98.510480361400695,77.460590424320799,855044.88278051559,444598.90498199593,586859.43936205551,335877.64865300024,174646.7791415152,220968.35372429824,126466.96312207336,65759.206858975376,11.843538760791022,6.7784203233220754,{"$f":"HJ91","v":3.5245848655997318},null,"Utilities",{"$f":"HM90","v":0},{"$f":"HN90","v":39981727.832085572},{"$f":"HO90","v":0},52720667.939538792,10114411.693069041,0,14053185.826409485,2696090.7856956045,0,695674.64509755245,133464.54132591354,0,1178.3690417455571,226.06901771901354,41666670.354445376,871438.97017982602,10657502.50982389,11106639.65658191,232290.18642852845,527578.18531189859,549811.81468466565,11499.05758021264,893.63872185490573,931.29917235880396,19.477687676646685]
[null,null,null,null,null,null,null,null,null,null,null,null,null,null,null,null,null,null,null,null,null,null,null,null,null,null,null,null,null,116,"Construction",{"$f":"AF90","v":221281472.18588102},{"$f":"AG90","v":0},null,{"$f":"AI90","v":4625276.5607715249},2986123.7452621162,109880128.37138045,2296739.8817004971,1482797.7110826736,21669576.080685757,452942.49598835688,292424.10150789138,5945.0970480581182,124.26579485514515,80.22721146839325,1691401.5954526286,287244.23204453941,0,839886.96658603882,142634.77542520815,0,165634.99507480502,28129.154594554686,0,45.442334294302533,7.7172969753437517,null,"Construction",{"$f":"BG90","v":221281472.18588102},{"$f":"BH90","v":0},null,{"$f":"BJ90","v":17226043.053393841},484711.0272166729,111291865.64117333,8663709.8447038326,243781.79511784276,48947981.164236531,3810441.1660979935,107219.21720752756,16599.056889783191,1292.1826025675873,36.359781216188807,219182.55191614729,31984.041748575721,0,110236.22934978732,16086.135191445494,0,48483.695072801551,7074.9451257733008,0,16.441609921357554,2.3992290149978666,null,"Construction",{"$f":"CH90","v":221281472.18588102},{"$f":"CI90","v":0},null,{"$f":"CK90","v":4526632.1841213107},3092269.8543832898,121777508.22435576,2491134.8545594076,1701764.3361833871,37421564.261872612,765512.15741036937,522942.90130920039,11640.822362981129,238.12983815312677,162.6731949932055,190639.1627024989,309156.81760590803,0,104914.17096315367,170137.81825797746,0,32239.55267212083,52282.423841238764,0,10.028840673036902,16.263628222031318,null,"Construction",{"$f":"DI90","v":221281472.18588102},{"$f":"DJ90","v":0},null,{"$f":"DL90","v":25276657.841860473},6346520.5199854672,65886702.49901484,12712706.493705878,3191935.1494817063,29715512.577927757,5591256.0582520422,1403865.239154489,2802.0423795846132,527.23089966042198,132.37832882810352,508810.5354781347,542325.31392842159,0,151498.66840750031,161477.71552455644,0,68327.301501690672,72827.944102935551,0,6.4429645623075444,6.8673554009639615,null,"Construction",{"$f":"EJ92","v":221281472.18588102},{"$f":"EK92","v":0},{"$f":"EL92","v":0},264994596.79951656,6826531.3261222839,13424224.557488877,16076117.619868727,414137.20075767406,5904660.7117307177,7071098.9450966995,182158.72716579449,20541.153988888665,24598.963326264628,633.69440647095132,3098055.0964222029,611059.66881361976,0,187946.08918232837,37070.443047704073,0,82668.30489655651,16305.477287931662,0,287.58678335352391,56.723550460456281,null,"Construction",{"$f":"FK90","v":221281472.18588102},{"$f":"FL90","v":0},null,{"$f":"FN90","v":6162873.0424479246},4060446.6014775038,121777508.22435576,3391604.8876515403,2234579.6262174998,37421564.261872612,1042221.6885921573,686674.13465802046,11640.822362981129,324.20658460043825,213.60549139181813,358901.58157130139,391298.47794407705,0,197513.78129308257,215342.71778517726,0,60694.908009180901,66173.642977468975,0,18.880521335988629,20.584805531416411,null,"Construction",{"$f":"GL92","v":0},{"$f":"GM92","v":0},0,1194365.212096516,763416.16643471783,0,582005.26880010485,372007.00979247782,0,240174.08343234297,153514.83465350186,0,81.446939782223765,52.059378410093892,101124.11847919076,34736.697095006195,0,49277.029472706243,16926.933675939301,0,20334.979805725154,6985.1786553758575,0,6.8959225410188374,{"$f":"HJ92","v":2.368787744214448},null,"Construction",{"$f":"HM92","v":221281472.18588102},{"$f":"HN92","v":0},{"$f":"HO92","v":0},264994596.79951656,6826531.3261222839,13424224.557488877,16076117.619868727,414137.20075767406,5904660.7117307177,7071098.9450966995,182158.72716579449,20541.153988888665,24598.963326264628,633.69440647095132,3098055.0964222029,611059.66881361976,0,187946.08918232837,37070.443047704073,0,82668.30489655651,16305.477287931662,0,287.58678335352391,56.723550460456281]
[null,null,null,null,null,null,null,null,null,null,null,null,null,null,null,null,null,null,null,null,null,null,null,null,null,null,null,null,null,117,"Manufacturing",{"$f":"SUM(AF73:AF88)","v":104318408.31620106},{"$f":"SUM(AG73:AG88)","v":955000},null,{"$f":"SUM(AI73:AI88)","v":124471928.70400971},76024930.503995791,32944434.499585573,43746659.888822854,22760522.003903121,16901861.194078188,14069057.722258741,7371973.803928786,3973.3482262601501,3307.4029483495142,1733.0292032062955,8123153.3086842243,7313066.9194497038,295367.29857819906,2460541.2936061216,2189403.1264836546,108364.92890995261,804962.86080150399,709132.35170570645,25.474803817701716,189.23346479094016,166.70529591266288,null,"Manufacturing",{"$f":"SUM(BG73:BG88)","v":104318408.31620106},{"$f":"SUM(BH73:BH88)","v":955000},null,{"$f":"SUM(BJ73:BJ88)","v":88451367.035036579},79299766.519629419,33707842.268676259,32865924.401558343,26855276.834473129,11926280.494629852,7560425.5039521717,5975050.6553855333,1442.5577214414141,1356.1785275242212,1145.6083279536465,18167108.153051104,5232658.0180786923,280147.59012800874,4723537.2366018184,1772066.7515565015,61325.738775119833,1073289.5597100526,394268.45869199611,4.8222450912537269,122.86081244693909,75.593874559019085,null,"Manufacturing",{"$f":"SUM(CH73:CH88)","v":104318408.31620106},{"$f":"SUM(CI73:CI88)","v":955000},null,{"$f":"SUM(CK73:CK88)","v":181475357.8924163},70500665.15264754,34144440.656026386,44309750.506155692,19828508.333569627,10521950.176483093,11214025.577823412,4450358.5589398816,3273.0901375325993,3488.3758148606257,1384.3844974961353,13577284.762505447,7048466.7587457728,257726.21667889459,2750523.9053884838,1982400.8973826063,66835.208282383624,507410.40613504796,444934.87117134716,20.790600354479682,157.84146172008866,138.40703617188569,null,"Manufacturing",{"$f":"SUM(DI73:DI88)","v":104318408.31620106},{"$f":"SUM(DJ73:DJ88)","v":955000},null,{"$f":"SUM(DL73:DL88)","v":134069596.31581181},126599690.17278451,27309271.201034456,50654360.737993754,43456814.565841712,23431891.87004707,14524935.93816882,11164348.64901806,1825.3917722471072,1131.5218890985957,869.72534183065659,9959094.002404185,10818245.446459999,221291.6191155492,2406642.342607033,2537978.8738190061,154080.59914407987,1490982.2286441214,1471788.5499938983,12.003190331380745,116.15053141367055,114.65530502386039,null,"Manufacturing",{"$f":"SUM(EJ85:EJ89)+EJ91","v":104318408.31620106},{"$f":"SUM(EK85:EK89)+EK91","v":955000},{"$f":"SUM(EL85:EL89)+EL91","v":0},305140443.22182363,118045479.02108562,13143494.091098974,38935010.39118436,13929249.732526427,2947520.5877289693,6894808.0110036079,4364056.0966186058,11073.717168467478,25903.518422432942,16395.584520247739,24578636.099197596,11751415.704716956,177980.84189104949,3069958.1334932405,1393907.1447106795,34376.741518752373,441115.41225469817,441709.8972608117,129.15204539605443,1657.252992327403,1659.4864487605842,null,"Manufacturing",{"$f":"SUM(FK73:FK88)","v":104318408.31620106},{"$f":"SUM(FL73:FL88)","v":955000},null,{"$f":"SUM(FN73:FN88)","v":322507717.86532062},129118794.84466207,34144440.656026386,77562477.485491782,34980015.284115136,10521950.176483093,19754456.839740004,8173273.8928511348,3273.0901375325993,6145.069760830027,2542.4813576702754,22028325.638788663,12442963.263771541,257726.21667889459,4631638.872515073,3370965.8277871208,66835.208282383624,927678.08908773353,787644.79575448961,20.790600354479682,288.57521212983363,245.01469495881912,null,"Manufacturing",{"$f":"SUM(GL73:GL90)","v":325599880.50208211},{"$f":"SUM(GM73:GM90)","v":40936727.832085572},0,340344494.45919311,148460996.09012243,116538829.5013656,105980038.35352966,49278533.864585847,59823337.951584011,41573893.895826325,16541028.034267524,8491.3192243236663,6554.0229507216936,2853.4463496820131,9127994.5553227793,6755220.6494260496,314666.01601753809,3020554.4576268815,2242254.7221319582,111558.25809755837,999870.04942343116,752644.10910990427,8.772193751671864,152.95972022873224,{"$f":"SUM(HJ73:HJ90)","v":129.83652414469952},null,"Manufacturing",{"$f":"SUM(HM85:HM89)+HM91","v":104318408.31620106},{"$f":"SUM(HN85:HN89)+HN91","v":955000},{"$f":"SUM(HO85:HO89)+HO91","v":0},305140443.22182363,118045479.02108562,13143494.091098974,38935010.39118436,13929249.732526427,2947520.5877289693,6894808.0110036079,4364056.0966186058,11073.717168467478,25903.518422432942,16395.584520247739,24578636.099197596,11751415.704716956,177980.84189104949,3069958.1334932405,1393907.1447106795,34376.741518752373,441115.41225469817,441709.8972608117,129.15204539605443,1657.252992327403,1659.4864487605842]
[null,null,null,null,null,null,null,null,null,null,null,null,null,null,null,null,null,null,null,null,null,null,null,null,null,null,null,null,null,118,"Sales",{"$f":"AF91","v":0},{"$f":"AG91","v":1493970.0886627771},null,{"$f":"AI91","v":24288709.711042121},28032128.664902866,0,14592354.700796179,16841354.24907542,0,6330251.8795341412,7305881.5095341112,0,1911.8185295665412,2206.4713870078722,2694004.7386792181,2696494.8400746547,897558.6478451842,1618524.5400072003,1620020.5619546585,389366.37945102132,702125.75156864116,702774.73495335865,117.5937187320075,212.05112331699954,212.24712475326075,null,"Sales",{"$f":"BG91","v":0},{"$f":"BH91","v":1493970.0886627771},null,{"$f":"BJ91","v":35756492.340343744},46830492.288800091,0,27227428.63773508,35659926.44710993,0,5482608.0497864718,7180604.6173143834,0,1116.6300684683354,1462.4570920746526,8908107.4045198523,3090147.1936226226,1137610.5796060159,6783239.7077769982,2353048.5427265051,229073.15282156694,1365896.3216947776,473817.89347566618,46.654797862007648,278.18893660911766,96.501391678703229,null,"Sales",{"$f":"CH91","v":0},{"$f":"CI91","v":1493970.0886627771},null,{"$f":"CK91","v":40958788.831977785},30781649.436607108,0,28307229.633857194,21273656.86239833,0,6300937.8765726341,4735327.0535937613,0,1960.0489714454052,1473.0303809791992,3432431.4921835009,3077466.4659336656,1032505.0025130138,2372204.5798352226,2126882.9578687693,229826.44229881448,528031.66828396218,473425.25431182841,71.492703255119181,164.25617084064118,147.26961302385124,null,"Sales",{"$f":"DI91","v":0},{"$f":"DJ91","v":1493970.0886627771},null,{"$f":"DL91","v":90528121.490524113},63854007.35554111,0,68934277.560844243,48622790.288206801,0,13880841.635464059,9790851.1664499771,0,1445.7797381537196,1019.7806881944772,6091800.9635642944,5456477.2107223263,877358.27487148449,3577509.3656909447,3204405.140908754,421294.19449505204,1717865.9729835496,1538706.9585372121,43.880524409021213,178.92688943715544,160.26631540306195,null,"Trade, Transportation, and Warehousing (Sales for other countries)",{"$f":"EJ93","v":0},{"$f":"EK93","v":1493970.0886627771},{"$f":"EL93","v":0},31666560.325130004,24736887.214706417,0,7158904.1138106547,5592303.1054211892,0,2635608.5059987335,2058851.6619935068,0,6562.1431353668659,5126.1328341212475,4853976.3299968131,2322485.6798018962,337743.9325214781,1097345.2992801822,525047.62489804369,124343.16303885248,403996.55573275767,193300.53374595553,309.58984686385014,1005.8714027062894,481.28004128712689,null,"Sales",{"$f":"FK91","v":0},{"$f":"FL91","v":1493970.0886627771},null,{"$f":"FN91","v":71933426.07578826},48273630.608209714,0,49714263.24715142,33362625.8455115,0,11065953.410192324,7426224.1685591657,0,3442.3146243600659,2310.0946761317605,5836436.2477930617,4652049.4014017936,1032505.0025130138,4033648.1087707095,3215100.7007003264,229826.44229881448,897854.23999670078,715652.85773525166,71.492703255119181,279.29783059068745,222.6199774054819,null,"Sales",{"$f":"GL93","v":0},{"$f":"GM93","v":0},0,52216173.244955301,54993760.427683353,0,38309050.086873569,40346861.743515171,0,9330144.7054221425,9826452.4341636822,0,1900.2489374816355,2001.3307817596726,2958748.0736938897,2502306.9749926911,0,2170722.6153446729,1835848.8813040201,0,528678.10792932881,447119.82367119443,0,107.67464434701438,{"$f":"HJ93","v":91.063857708916586},null,"Trade, Transportation, and Warehousing (Sales for other countries)",{"$f":"HM93","v":0},{"$f":"HN93","v":1493970.0886627771},{"$f":"HO93","v":0},31666560.325130004,24736887.214706417,0,7158904.1138106547,5592303.1054211892,0,2635608.5059987335,2058851.6619935068,0,6562.1431353668659,5126.1328341212475,4853976.3299968131,2322485.6798018962,337743.9325214781,1097345.2992801822,525047.62489804369,124343.16303885248,403996.55573275767,193300.53374595553,309.58984686385014,1005.8714027062894,481.28004128712689]
[null,null,null,null,null,null,null,null,null,null,null,null,null,null,null,null,null,null,null,null,null,null,null,null,null,null,null,null,null,119,"Transportation and Warehousing",{"$f":"AF93","v":0},{"$f":"AG93","v":0},null,{"$f":"AI93","v":26509900.535632256},19777681.714831736,0,11564056.431370774,8627351.3974370491,0,2924851.4211484343,2182082.1391952978,0,652.1579697576459,486.54172565909869,2653621.3351570703,1902474.7399741346,0,1157553.4516245951,829890.9014293527,0,292775.45281211875,209901.04958836408,0,65.280527933913461,46.801913204807363,null,"Transportation and Warehousing",{"$f":"BG93","v":0},{"$f":"BH93","v":0},null,{"$f":"BJ93","v":11194496.928372947},27058137.360572606,0,8182002.8806346217,19776659.839683391,0,2639622.1037868205,6380211.4486486679,0,361.02649606890003,872.63452604817917,2243682.8874250925,1785452.6643407885,0,1639896.8140867506,1304978.5922801946,0,529052.35326160444,421003.31513012532,0,72.359568841702853,57.581481635863462,null,"Transportation and Warehousing",{"$f":"CH93","v":0},{"$f":"CI93","v":0},null,{"$f":"CK93","v":4166575.6430944195},7652287.120440376,0,1841726.5079360292,3382494.7014728021,0,685363.04827541451,1258730.2563043521,0,213.19764837447028,391.55646231169703,369908.05308035674,765055.07118292665,0,163508.24399077456,338172.71671612648,0,60846.443832348785,125844.46331930248,0,18.927659974736631,39.146761279491955,null,"Transportation and Warehousing",{"$f":"DI93","v":0},{"$f":"DJ93","v":0},null,{"$f":"DL93","v":42639138.353643194},33361436.593404695,0,31164737.019405611,24383710.322659411,0,10054155.430552214,7866506.7317886818,0,563.33473421980295,440.76068940850593,6492974.2583720526,2850814.318908588,0,3433539.1388388439,1507534.4752697395,0,1196074.9085419783,525150.31479790108,0,67.016125358772499,29.424193315447184,null,"Transportation and Warehousing",null,null,null,null,null,null,null,null,null,null,null,null,null,null,null,null,null,null,null,null,null,null,null,null,null,null,"Transportation and Warehousing",{"$f":"FK93","v":0},{"$f":"FL93","v":0},null,{"$f":"FN93","v":10053566.56748005},13582653.788856849,0,4443917.8914980888,6003859.2057042178,0,1653718.4534613714,2234220.5690731015,0,514.42645797523323,695.00474598805852,833927.25389958208,1308937.7291865284,0,368615.87566342793,578581.91464155097,0,137173.29858629216,215308.11604604023,0,42.67085124001953,66.97645012006403,null,"Transportation and Warehousing",{"$f":"GL95","v":0},{"$f":"GM95","v":0},0,19782381.770877011,33690826.03137669,0,12273837.002613589,20903231.57150333,0,4167922.9958418552,7098274.1204502108,0,570.0553245538747,970.84542145872911,1064278.1491773315,1532988.2575031365,0,660323.75068589754,951131.57846412202,0,224231.30962210498,322983.20216472086,0,30.668573318003666,{"$f":"HJ95","v":44.175070969196426},null,"Transportation and Warehousing"]
[null,null,null,null,null,null,null,null,null,null,null,null,null,null,null,null,null,null,null,null,null,null,null,null,null,null,null,null,null,120,"Information",{"$f":"AF94","v":0},{"$f":"AG94","v":0},null,{"$f":"AI94","v":9779470.1108506694},11971656.970461391,0,5346731.614210329,6545266.3664697791,0,1297824.3721965468,1588747.4490670506,0,289.37760788592817,354.24510911886921,557044.19464877388,1151589.7217042379,0,304552.88193338091,629608.87469803146,0,73924.816376670773,152826.39965743438,0,16.483113574359486,34.075903413524188,null,"Information",{"$f":"BG94","v":0},{"$f":"BH94","v":0},null,{"$f":"BJ94","v":8684689.1067035403},10546176.848651422,0,5298883.5143031776,6434653.2104540048,0,1354593.858498683,1644939.2965370854,0,109.33755696407228,132.77311343851736,327505.76464484225,695897.84773844969,0,199824.6426318564,424595.69798233069,0,51082.69184539761,108542.62473959323,0,4.1231965540686399,8.7611392455657846,null,"Information",{"$f":"CH94","v":0},{"$f":"CI94","v":0},null,{"$f":"CK94","v":4805490.3325330252},6774459.6642938787,0,2910675.104760624,4103275.5720208692,0,516129.53985306027,727604.99081933952,0,130.69993756263722,184.25205210580438,140342.06666371302,677292.24467389751,0,85004.886353273716,410234.44826713874,0,15073.318491307549,72743.988729516946,0,3.8170297058302749,18.421024279509037,null,"Information",{"$f":"DI94","v":0},{"$f":"DJ94","v":0},null,{"$f":"DL94","v":32206312.520175181},19002448.512976609,0,19650386.602546904,11594169.914393907,0,5023377.6487225229,2963905.7582667964,0,281.46005223169453,166.06775915876847,884276.27447670954,1623804.5434118484,0,359087.90414915903,659396.37539941759,0,117509.50409212406,215783.76820273939,0,6.5840622529944053,12.090373234140593,null,"Information",null,null,null,null,null,null,null,null,null,null,null,null,null,null,null,null,null,null,null,null,null,null,null,null,null,null,"Information",{"$f":"FK94","v":0},{"$f":"FL94","v":0},null,{"$f":"FN94","v":6208427.5463191215},8717423.2679781895,0,3760431.1419467335,5280124.4260105351,0,666810.79993010906,936287.31901626871,0,168.85708564901992,237.09686171218618,226997.3983139029,840083.56497361057,0,137491.83338163915,508836.79901158926,0,24380.459564433299,90228.449923734865,0,6.1738852299115115,22.848629773763886,null,"Information",{"$f":"GL96","v":0},{"$f":"GM96","v":0},0,9049032.1900837664,12913195.194455145,0,5563023.7289870651,7938573.9573914288,0,1522411.6904659879,2172519.5482065962,0,122.88316079742242,175.35734299051543,335606.57281388261,587571.72001391731,0,206319.00615996943,361218.23331572308,0,56462.543078250448,98853.229466533186,0,4.5574372579813343,{"$f":"HJ96","v":7.9790488787972675},null,"Information"]
[null,null,null,null,null,null,null,null,null,null,null,null,null,null,null,null,null,null,null,null,null,null,null,null,null,null,null,null,null,121,"Finance, Professional, and Business Services",{"$f":"AF99+AF100+AF96+AF95+AF98+AF97","v":256054274.957948},{"$f":"AG99+AG100+AG96+AG95+AG98+AG97","v":0},null,{"$f":"AI99+AI100+AI96+AI95+AI98+AI97","v":79096511.1366065},87629252.271936134,186744904.03798825,58114643.237119228,62968435.879304402,70027127.130699396,18089545.097225338,24238814.595413152,6677.3063296513446,2033.0011660569969,2595.7578134286905,7003726.914281561,8429321.5622515604,0,5026645.0720047224,6057123.3981493367,0,1671102.4646726381,2331604.5408956171,0,195.49999253011026,249.69375796128747,null,"Finance, Professional, and Business Services",{"$f":"BG99+BG100+BG96+BG95+BG98+BG97","v":256054274.957948},{"$f":"BH99+BH100+BH96+BH95+BH98+BH97","v":0},null,{"$f":"BJ99+BJ100+BJ96+BJ95+BJ98+BJ97","v":83577785.558470458},83097375.037921876,192334060.78975224,62885971.417101339,65676023.864116453,85074026.102371216,21582831.193835095,23202701.33045397,22169.507803908455,4934.7377317109967,11705.869726691,4643454.8000809327,5483246.2295565577,0,3510783.3380399146,4333684.5485292599,0,1174287.3891395847,1531048.6586089917,0,272.82519820357146,772.42110251096403,null,"Finance, Professional, and Business Services",{"$f":"CH99+CH100+CH96+CH95+CH98+CH97","v":256054274.957948},{"$f":"CI99+CI100+CI96+CI95+CI98+CI97","v":0},null,{"$f":"CK99+CK100+CK96+CK95+CK98+CK97","v":45624688.859952301},71467329.761483222,124058244.77994724,28125719.297478065,46860943.130346,48548466.628427006,5985155.8089747839,14082218.72246189,12293.970926181941,1515.6262723469877,3566.0526392137231,2466344.8876847834,7145111.2846872378,0,1433058.4549839899,4685030.974141337,0,375419.10754997755,1407902.327442548,0,95.067710967623142,356.52434530955202,null,"Finance, Professional, and Business Services",{"$f":"DI99+DI100+DI96+DI95+DI98+DI97","v":256054274.957948},{"$f":"DJ99+DJ100+DJ96+DJ95+DJ98+DJ97","v":0},null,{"$f":"DL99+DL100+DL96+DL95+DL98+DL97","v":141737438.33007246},219883356.9754135,109091279.83223826,107591131.50472759,164350264.80980492,70425156.624453366,30152697.726014808,88708331.394491836,4375.4178779281201,1873.1363302839743,5333.4857649882042,8393728.31243168,18789557.242241766,0,4495849.7346020825,10785805.058790652,0,2170386.6831766288,6694046.8488365756,0,134.83088125158622,404.14756961901793,null,"Finance, Professional, and Business Services",{"$f":"EJ96","v":0},{"$f":"EK96","v":0},{"$f":"EL96","v":0},102352497.56576027,19524042.064559713,0,21322959.132377516,4067417.6101462673,0,5080996.5990357883,969215.15047274472,0,5040.3674165711855,961.46501357962256,5866848.7048935294,1677910.9299173979,0,1222232.7558730291,349556.9432823197,0,291242.90100951697,83295.082495840106,0,288.91403486367426,82.629029874240246,null,"Finance, Professional, and Business Services",{"$f":"FK99+FK100+FK96+FK95+FK98+FK97","v":256054274.957948},{"$f":"FL99+FL100+FL96+FL95+FL98+FL97","v":0},null,{"$f":"FN99+FN100+FN96+FN95+FN98+FN97","v":69770716.2312029},93862593.783951387,124058244.77994724,41614614.840279244,60538897.827848293,48548466.628427006,9730515.3648899216,17922670.635823715,12293.970926181941,2464.0669685472071,4538.5736567699032,4183518.6379717067,9045381.8725702092,0,2401614.5951304892,5834032.7804901032,0,638615.51447371673,1727177.9261766477,0,161.71716870150257,437.3747861343507,null,"Finance, Professional, and Business Services",{"$f":"SUM(GL97:GL102)","v":256054274.957948},{"$f":"SUM(GM97:GM102)","v":0},0,67078555.986825451,76894521.423044533,217472046.12635484,49893194.182173617,61033254.872796394,9750064.980537774,13141069.284430113,9638927.8440782055,4163.3204506173361,3082.6856383745421,2159.2597730330363,2600822.6101317229,3498827.7906296803,0,1844817.8516493198,2777113.9523280398,0,553637.19170668162,438587.14494356711,0,116.29306026084643,{"$f":"SUM(HJ97:HJ102)","v":98.249887784757021},null,"Finance, Professional, and Business Services",{"$f":"HM96","v":0},{"$f":"HN96","v":0},{"$f":"HO96","v":0},102352497.56576027,19524042.064559713,0,21322959.132377516,4067417.6101462673,0,5080996.5990357883,969215.15047274472,0,5040.3674165711855,961.46501357962256,5866848.7048935294,1677910.9299173979,0,1222232.7558730291,349556.9432823197,0,291242.90100951697,83295.082495840106,0,288.91403486367426,82.629029874240246]
[null,null,null,null,null,null,null,null,null,null,null,null,null,null,null,null,null,null,null,null,null,null,null,null,null,null,null,null,null,122,"Education and Health Care",{"$f":"AF101+AF102","v":0},{"$f":"AG101+AG102","v":0},null,{"$f":"AI101+AI102","v":382995.29176398338},32794136.493481085,0,293426.02464520728,19619093.466787741,0,216073.56594277386,14483655.324415447,0,20.603292590415467,1381.0619875024104,60431.745731325616,3154566.7079536445,0,47215.230291941043,1887219.6590040443,0,34762.356023744142,1393226.405121502,0,3.3146997373990663,132.84850992376101,null,"Education and Health Care",{"$f":"BG101+BG102","v":0},{"$f":"BH101+BH102","v":0},null,{"$f":"BJ101+BJ102","v":372580.57416686462},31546304.966736969,0,334281.92759524053,26304859.162246644,0,288277.93114572903,21099004.170536287,0,69.722117002061097,6469.5568547405492,60591.018364428586,2081607.9651897966,0,54362.690430415721,1735747.0046987953,0,46881.277852901476,1392234.5322303521,0,11.338578456821837,426.89884264658338,null,"Education and Health Care",{"$f":"CH101+CH102","v":0},{"$f":"CI101+CI102","v":0},null,{"$f":"CK101+CK102","v":6548438.7918901211},27384512.525951669,0,3673686.8821205022,17258418.364403125,0,2412475.1634207452,11753017.422517404,0,610.91320857215783,2976.2269443693108,94135.342789139802,2737829.8605510266,0,50318.071151585049,1725450.2193225743,0,32491.81697277939,1175035.0502113372,0,8.2279314042903113,297.55515977685513,null,"Education and Health Care",{"$f":"DI101+DI102","v":0},{"$f":"DJ101+DJ102","v":0},null,{"$f":"DL101+DL102","v":3513559.0555871255},20842906.022768378,0,2650364.1671269163,16362171.326490503,0,1887313.9415671509,12255256.111834213,0,112.24230992385968,728.84443038584345,206979.38389198214,1781076.0268375489,0,95927.985472397064,844707.62186322722,0,42539.970592040809,388017.78227765707,0,2.529936571855623,23.076188447065476,null,"Education and Health Care",null,null,null,null,null,null,null,null,null,null,null,null,null,null,null,null,null,null,null,null,null,null,null,null,null,null,"Education and Health Care",{"$f":"FK101+FK102","v":0},{"$f":"FL101+FL102","v":0},null,{"$f":"FN101+FN102","v":7010921.7195333317},31417738.039376535,0,3935390.5861364854,19787583.28223348,0,2584831.4744184138,13472886.157768961,0,654.55914887686322,3411.7508176537312,130991.82286863695,3027675.1012513181,0,70910.884264240391,1906896.4526493973,0,45996.385469892382,1298359.6053524197,0,11.647705168616078,328.78474539884519,null,"Education and Health Care",{"$f":"GL105+GL104","v":0},{"$f":"GM105+GM104","v":0},0,194952.50761179885,13920892.119406808,0,167846.55044557547,11465418.253609523,0,122018.62247186425,7805562.9870397886,0,33.010041703504996,2451.8428612272837,8980.2426685464598,633423.59528804221,0,7754.8065386051621,521695.47679764323,0,5661.0631225805319,355166.01436810032,0,1.5163463593200683,{"$f":"HJ105+HJ104","v":111.56290178233809},null,"Education and Health Care"]
[null,null,null,null,null,null,null,null,null,null,null,null,null,null,null,null,null,null,null,null,null,null,null,null,null,null,null,null,null,123,"Other",{"$f":"AF104+AF103+AF92+AF105","v":0},{"$f":"AG104+AG103+AG92+AG105","v":0},null,{"$f":"AI104+AI103+AI92+AI105","v":12426422.661060549},262166777.17604414,0,6331738.2464990057,17711592.651227407,0,2559624.6972909262,8443417.8090741504,0,522.93160385614942,1724.9911760891546,722073.22108446481,25218611.484874684,0,366214.88994431577,1703731.4134953627,0,148392.37059835007,812197.77587810101,0,30.316577441662119,165.93209388776995,null,"Other",{"$f":"BG104+BG103+BG92+BG105","v":0},{"$f":"BH104+BH103+BH92+BH105","v":0},null,{"$f":"BJ104+BJ103+BJ92+BJ105","v":3782425.0516114128},278962734.15511543,0,2696984.9623905891,11355814.655995186,0,620530.28672581795,3718752.2332970127,0,430.66397050312588,1784.4592721462727,221746.48616147719,18407577.369860075,0,159254.06898202572,749322.44090277259,0,37186.075816030374,245384.81694007106,0,25.815317146362329,117.74896103911871,null,"Other",{"$f":"CH104+CH103+CH92+CH105","v":0},{"$f":"CI104+CI103+CI92+CI105","v":0},null,{"$f":"CK104+CK103+CK92+CK105","v":25142694.069176383},209506564.39370963,0,11078206.63809693,8780889.4065632727,0,7630872.440171564,5877200.6362326797,0,4009.9299766279191,3044.0819224126426,314670.64056000061,20945902.448874108,0,136201.51417827164,877889.69026570814,0,89464.596339731186,587586.70190234249,0,45.885892284227452,304.33911785892849,null,"Other",{"$f":"DI104+DI103+DI92+DI105","v":0},{"$f":"DJ104+DJ103+DJ92+DJ105","v":0},null,{"$f":"DL104+DL103+DL92+DL105","v":41999881.59655378},434941835.96128404,0,27252817.402911104,24213230.510534018,0,4985942.4432388116,4487062.686601338,0,328.59177226277387,304.39753728391531,1781785.4463963157,37166817.153669678,0,1210651.3177617667,2132380.8319976386,0,660072.89739977696,1154920.3335362808,0,40.565685714521848,71.757396778071936,null,"Other",{"$f":"SUM(EJ97:EJ112)+EJ95+EJ94","v":256054274.957948},{"$f":"SUM(EK97:EK112)+EK95+EK94","v":0},{"$f":"SUM(EL97:EL112)+EL95+EL94","v":0},277079258.26848537,448660356.54445231,93713692.760350093,100938208.24940477,5287543.3016403848,74982645.670418397,80657633.414234206,3726743.5781763806,174943.45218425823,188202.37056876605,8709.3329768339881,385974.32570453471,45017433.497301146,0,139094.27684787539,450384.51724962221,0,109664.93236372713,315575.82883388444,0,259.34079462726197,737.62099420474419,null,"Other",{"$f":"FK104+FK103+FK92+FK105","v":0},{"$f":"FL104+FL103+FL92+FL105","v":0},null,{"$f":"FN104+FN103+FN92+FN105","v":28293437.453121997},263408935.55714446,0,12447719.049268153,10666792.626497304,0,8540858.395017691,7132362.4168710345,0,4479.4832830746791,3692.2974500212194,525780.06525779795,25384280.518028833,0,227128.60917225457,1027941.0441636592,0,148376.88098984715,687333.89003359433,0,75.880874830238611,355.82055722254728,null,"Other",{"$f":"GL103+SUM(GL106:GL109)","v":0},{"$f":"GM103+SUM(GM106:GM109)","v":0},0,870662.41658457834,527758136.4524281,0,623353.43442533771,8649434.0567662381,0,248284.66864461423,3544025.9492760161,0,171.29155815583468,1457.5902958453491,43781.682994138755,24013867.313013766,0,31766.851029931848,393563.54251218523,0,18091.096612513047,161259.03708821986,0,12.481045021513946,{"$f":"HJ103+SUM(HJ106:HJ109)","v":66.322767085035366},null,"Other",{"$f":"SUM(HM97:HM112)+HM95+HM94","v":256054274.957948},{"$f":"SUM(HN97:HN112)+HN95+HN94","v":0},{"$f":"SUM(HO97:HO112)+HO95+HO94","v":0},277079258.26848537,448660356.54445231,93713692.760350093,100938208.24940477,5287543.3016403951,74982645.670418397,80657633.414234206,3726743.5781763899,174943.45218425823,188202.37056876605,8709.33297683401,385974.32570453471,45017433.497301146,0,139094.27684787539,450384.51724962221,0,109664.93236372713,315575.82883388444,0,259.34079462726197,737.62099420474419]
[null,null,null,null,null,null,null,null,null,null,null,null,null,null,null,null,null,null,null,null,null,null,null,null,null,null,null,null,null,124,"Total",{"$f":"SUM(AF114:AF124)","v":581654155.46003008},{"$f":"SUM(AG114:AG124)","v":70816129.605341107},null,{"$f":"SUM(AI114:AI124)","v":320378222.47659677},{"$f":"SUM(AJ114:AJ124)","v":561611104.61623681},{"$f":"SUM(AK114:AK124)","v":329569466.90895426},{"$f":"SUM(AL114:AL124)","v":170569236.87230319},{"$f":"SUM(AM114:AM124)","v":182618774.76016408},{"$f":"SUM(AN114:AN124)","v":108598564.40546334},{"$f":"SUM(AO114:AO124)","v":49188733.307474397},{"$f":"SUM(AP114:AP124)","v":71338716.119850233},{"$f":"SUM(AQ114:AQ124)","v":16595.751603969613},{"$f":"SUM(AR114:AR124)","v":9230.6489599849738},{"$f":"SUM(AS114:AS124)","v":11482.939443281197},{"$f":"SUM(AT114:AT124)","v":42791150.074839428},{"$f":"SUM(AU114:AU124)","v":54023062.744512983},{"$f":"SUM(AV114:AV124)","v":41990050.371168166},{"$f":"SUM(AW114:AW124)","v":23705470.271896549},{"$f":"SUM(AX114:AX124)","v":17566649.672883257},{"$f":"SUM(AY114:AY124)","v":9412592.1083133835},{"$f":"SUM(AZ114:AZ124)","v":5765443.0383704733},{"$f":"SUM(BA114:BA124)","v":6862285.8511481201},{"$f":"SUM(BB114:BB124)","v":1558.3544782177198},{"$f":"SUM(BC114:BC124)","v":978.49141383565677},{"$f":"SUM(BD114:BD124)","v":1104.5785116014038},null,"Total",{"$f":"SUM(BG114:BG124)","v":581654155.46003008},{"$f":"SUM(BH114:BH124)","v":70816129.605341107},null,{"$f":"SUM(BJ114:BJ124)","v":279949644.95691669},586460162.11112845,337333768.69960183,170953690.88011381,210499716.63089952,145948287.76123759,45508109.811165109,71882609.702851981,40211.122415133061,9881.1953840409951,24988.809686873163,46222917.356493957,38698039.152421772,36614272.337767094,25617945.734712373,13889990.833192632,7462051.0903054681,5171351.2239586944,4743231.0400175322,2995.6028890680877,1166.1521447216783,1648.9064357824079,null,"Total",{"$f":"SUM(CH114:CH124)","v":581654155.46003008},{"$f":"SUM(CI114:CI124)","v":70816129.605341107},null,{"$f":"SUM(CK114:CK124)","v":350352903.90011889},474293659.616364,279980193.6603294,145356501.31550473,155100835.23081625,96491981.066782713,40804400.360060245,52062993.064312689,27207.883426695669,13958.619846592279,17682.39095807695,27352838.320096936,47418603.58978872,45282734.019175723,11384263.382793983,15506564.072992425,11025139.571201829,2701383.1288019782,5205117.9259099383,4675.3791914029562,941.74688440909722,1767.8378581719212,null,"Total",{"$f":"SUM(DI114:DI124)","v":581654155.46003008},{"$f":"SUM(DJ114:DJ124)","v":70816129.605341107},null,{"$f":"SUM(DL114:DL124)","v":573577548.24427593},977083507.40065753,202287253.53228754,364500372.21527058,367936707.11080909,123572561.0724282,90665920.383676246,143483606.11200184,9002.8520297598407,6499.0787141009168,9261.3716541145241,48273484.413442999,83494115.904405743,34301202.449920699,23449789.197698426,24049926.208507992,11195491.377065569,10019639.386228835,12777370.923234284,557.8154476914591,685.239552411251,861.42758191951214,null,"Total",{"$f":"SUM(EJ114:EJ124)","v":581654155.46003008},{"$f":"SUM(EK114:EK124)","v":70816129.605341107},{"$f":"SUM(EL114:EL124)","v":0},{"$f":"SUM(EM114:EM124)","v":1076373125.0516047},{"$f":"SUM(EN114:EN124)","v":724280676.46465039},{"$f":"SUM(EO114:EO124)","v":120281411.40893795},{"$f":"SUM(EP114:EP124)","v":209053576.35601532},{"$f":"SUM(EQ114:EQ124)","v":67733421.535156935},{"$f":"SUM(ER114:ER124)","v":83834826.969878078},{"$f":"SUM(ES114:ES124)","v":104203988.08756502},{"$f":"SUM(ET114:ET124)","v":39634159.675206162},{"$f":"SUM(EU114:EU124)","v":206558.32334161439},{"$f":"SUM(EV114:EV124)","v":259835.4280361725},{"$f":"SUM(EW114:EW124)","v":304927.37468140799},{"$f":"SUM(EX114:EX124)","v":90064053.244386911},{"$f":"SUM(EY114:EY124)","v":74398531.091710389},{"$f":"SUM(EZ114:EZ124)","v":24241542.114191696},{"$f":"SUM(FA114:FA124)","v":20985805.23996025},{"$f":"SUM(FB114:FB124)","v":7573698.2128017833},{"$f":"SUM(FC114:FC124)","v":12969907.61040866},{"$f":"SUM(FD114:FD124)","v":5532205.5693855593},{"$f":"SUM(FE114:FE124)","v":4702700.2362918565},{"$f":"SUM(FF114:FF124)","v":120276.14522432447},{"$f":"SUM(FG114:FG124)","v":39721.82481366807},{"$f":"SUM(FH114:FH124)","v":38276.572507630255},null,"Total",{"$f":"SUM(FK114:FK124)","v":581654155.46003008},{"$f":"SUM(FL114:FL124)","v":70816129.605341107},null,{"$f":"SUM(FN114:FN124)","v":627830276.70033038},669604857.33397055,279980193.6603294,259874874.32975605,223546966.50428337,96491981.066782713,70789401.117164195,71644216.017594099,27207.883426695669,23463.21585322297,24261.434309454944,48479127.402090907,64528705.14376577,45282734.019175723,20787820.822981741,21542848.93447765,11025139.571201829,5095488.6900201393,6904233.802996113,4675.3791914029562,1701.6271871357594,2338.0340267436654,null,"Total",{"$f":"SUM(GL114:GL124)","v":581654155.46003008},{"$f":"SUM(GM114:GM124)","v":70816129.605341107},0,532977663.27501792,913194363.03735673,334010875.62772048,241225163.92187437,227179753.03936663,69573402.932121783,74400118.377296716,61425704.508634083,12654.639674941001,13378.987059526164,14542.551531250501,22865257.875199582,41551852.54438594,18392102.192357358,12179035.285898793,10337054.170992097,3473563.394526911,3101489.1944414321,2794971.0592698613,3008.3041055184331,892.99360246321851,{"$f":"SUM(HJ114:HJ124)","v":661.71012580038905},null,"Total",{"$f":"SUM(HM114:HM124)","v":581654155.46003008},{"$f":"SUM(HN114:HN124)","v":70816129.605341107},{"$f":"SUM(HO114:HO124)","v":0},1076373125.0516047,724280676.46465039,120281411.40893795,209053576.35601532,67733421.535156935,83834826.969878078,104203988.08756502,39634159.675206169,206558.32334161439,259835.4280361725,304927.37468140805,90064053.244386911,74398531.091710389,24241542.114191696,20985805.23996025,7573698.2128017833,12969907.61040866,5532205.5693855593,4702700.2362918565,1332.3806141148102,4439.0513500059988,3038.9254857314272]
[null,null,null,null,null,null,null,null,null,null,null,null,null,null,null,null,null,null,null,null,null,null,null,null,null,null,null,null,null,125]
[null,null,null,null,null,null,null,null,null,null,null,null,null,null,null,null,null,null,null,null,null,null,null,null,null,null,null,null,null,126]
[null,null,null,null,null,null,null,null,null,null,null,null,null,null,null,null,null,null,null,null,null,null,null,null,null,null,null,null,null,127]
[null,null,null,null,null,null,null,null,null,null,null,null,null,null,null,null,null,null,null,null,null,null,null,null,null,null,null,null,null,128]
[null,null,null,null,null,null,null,null,null,null,null,null,null,null,null,null,null,null,null,null,null,null,null,null,null,null,null,null,null,129]
[null,null,null,null,null,null,null,null,null,null,null,null,null,null,null,null,null,null,null,null,null,null,null,null,null,null,null,null,null,130]
[null,null,null,null,null,null,null,null,null,null,null,null,null,null,null,null,null,null,null,null,null,null,null,null,null,null,null,null,null,131]
[null,null,null,null,null,null,null,null,null,null,null,null,null,null,null,null,null,null,null,null,null,null,null,null,null,null,null,null,null,132,null,null,null,null,"Construction",null,null,null,null,null,null,null,null,null,null,"O&M",null,null,null,null,null,null,null,null,null,null,null,null,null,null,null,"Construction",null,null,null,null,null,null,null,null,null,null,"O&M",null,null,null,null,null,null,null,null,null,null,null,null,null,null,null,"Construction",null,null,null,null,null,null,null,null,null,null,"O&M",null,null,null,null,null,null,null,null,null,null,null,null,null,null,null,"Construction",null,null,null,null,null,null,null,null,null,null,"O&M",null,null,null,null,null,null,null,null,null,null,null,null,null,null,null,"Construction",null,null,null,null,null,null,null,null,null,null,"O&M",null,null,null,null,null,null,null,null,null,null,null,null,null,null,null,"Construction",null,null,null,null,null,null,null,null,null,null,"O&M",null,null,null,null,null,null,null,null,null,null,null,null,null,null,null,"Construction",null,null,null,null,null,null,null,null,null,null,"O&M",null,null,null,null,null,null,null,null,null,null,null,null,null,null,null,"Construction",null,null,null,null,null,null,null,null,null,null,"O&M"]
[null,null,null,null,null,null,null,null,null,null,null,null,null,null,null,null,null,null,null,null,null,null,null,null,null,null,null,null,null,133,"Wind",null,null,null,"Output",null,"Value Added",null,null,"Earnings",null,null,"Jobs",null,null,"Output",null,"Value Added",null,null,"Earnings",null,null,"Jobs",null,null,null,"Wind",null,null,null,"Output",null,"Value Added",null,null,"Earnings",null,null,"Jobs",null,null,"Output",null,"Value Added",null,null,"Earnings",null,null,"Jobs",null,null,null,"Wind",null,null,null,"Output",null,"Value Added",null,null,"Earnings",null,null,"Jobs",null,null,"Output",null,"Value Added",null,null,"Earnings",null,null,"Jobs",null,null,null,"Wind",null,null,null,"Output",null,"Value Added",null,null,"Earnings",null,null,"Jobs",null,null,"Output",null,"Value Added",null,null,"Earnings",null,null,"Jobs",null,null,null,"Wind",null,null,null,"Output",null,"Value Added",null,null,"Earnings",null,null,"Jobs",null,null,"Output",null,"Value Added",null,null,"Earnings",null,null,"Jobs",null,null,null,"Wind",null,null,null,"Output",null,"Value Added",null,null,"Earnings",null,null,"Jobs",null,null,"Output",null,"Value Added",null,null,"Earnings",null,null,"Jobs",null,null,null,"Wind",null,null,null,"Output",null,"Value Added",null,null,"Earnings",null,null,"Jobs",null,null,"Output",null,"Value Added",null,null,"Earnings",null,null,"Jobs",null,null,null,"Wind",null,null,null,"Output",null,"Value Added",null,null,"Earnings",null,null,"Jobs",null,null,"Output",null,"Value Added",null,null,"Earnings",null,null,"Jobs"]
[null,null,null,null,null,null,null,null,null,null,null,null,null,null,null,null,null,null,null,null,null,null,null,null,null,null,null,null,null,134,"Colombia","Construction","O&M",null,"Indirect","Induced","Direct","Indirect","Induced","Direct","Indirect","Induced","Direct","Indirect","Induced","Indirect","Induced","Direct","Indirect","Induced","Direct","Indirect","Induced","Direct","Indirect","Induced",null,"Mexico","Construction","O&M",null,"Indirect","Induced","Direct","Indirect","Induced","Direct","Indirect","Induced","Direct","Indirect","Induced","Indirect","Induced","Direct","Indirect","Induced","Direct","Indirect","Induced","Direct","Indirect","Induced",null,"Philippines","Construction","O&M",null,"Indirect","Induced","Direct","Indirect","Induced","Direct","Indirect","Induced","Direct","Indirect","Induced","Indirect","Induced","Direct","Indirect","Induced","Direct","Indirect","Induced","Direct","Indirect","Induced",null,"South Africa","Construction","O&M",null,"Indirect","Induced","Direct","Indirect","Induced","Direct","Indirect","Induced","Direct","Indirect","Induced","Indirect","Induced","Direct","Indirect","Induced","Direct","Indirect","Induced","Direct","Indirect","Induced",null,"Zambia","Construction","O&M",null,"Indirect","Induced","Direct","Indirect","Induced","Direct","Indirect","Induced","Direct","Indirect","Induced","Indirect","Induced","Direct","Indirect","Induced","Direct","Indirect","Induced","Direct","Indirect","Induced",null,"CR1","Construction","O&M",null,"Indirect","Induced","Direct","Indirect","Induced","Direct","Indirect","Induced","Direct","Indirect","Induced","Indirect","Induced","Direct","Indirect","Induced","Direct","Indirect","Induced","Direct","Indirect","Induced",null,"CR2","Construction","O&M",null,"Indirect","Induced","Direct","Indirect","Induced","Direct","Indirect","Induced","Direct","Indirect","Induced","Indirect","Induced","Direct","Indirect","Induced","Direct","Indirect","Induced","Direct","Indirect","Induced",null,"CR3","Construction","O&M",null,"Indirect","Induced","Direct","Indirect","Induced","Direct","Indirect","Induced","Direct","Indirect","Induced","Indirect","Induced","Direct","Indirect","Induced","Direct","Indirect","Induced","Direct","Indirect","Induced"]
[null,null,null,null,null,null,null,null,null,null,null,null,null,null,null,null,null,null,null,null,null,null,null,null,null,null,null,null,null,135,"TTL_C01T05: Agriculture, hunting, forestry and fishing",0,0,null,{"$f":"MMULT(L1_Colombia,AF136:AF169)-AF136:AF169","v":1891625.8091335304},{"$f":"MMULT(l2_colombia,AF136:AF170)-AI136:AI170-AF136:AF170","v":7533247.688407273},{"$f":"AF136*'Colombia-IO-Data'!AN13","v":0},{"$f":"AI136*'Colombia-IO-Data'!$AN13","v":1309574.3029049968},{"$f":"AJ136*'Colombia-IO-Data'!$AN13","v":5215274.3647939069},{"$f":"AK136*'Colombia-IO-Data'!$AO13","v":0},{"$f":"AL136*'Colombia-IO-Data'!$AO13","v":345737.67056398891},{"$f":"AM136*'Colombia-IO-Data'!$AO13","v":1376872.4739299803},{"$f":"(Calculations!AN136*'Default-Data'!$F$19/wind_dollar_index)/'Colombia-IO-Data'!$AP13","v":0},{"$f":"(Calculations!AO136*'Default-Data'!$F$19/wind_dollar_index)/'Colombia-IO-Data'!$AP13","v":70.634243673640555},{"$f":"(Calculations!AP136*'Default-Data'!$F$19/wind_dollar_index)/'Colombia-IO-Data'!$AP13","v":281.29519607293929},{"$f":"MMULT(L1_Colombia,AG136:AG169)-AG136:AG169","v":2750.706792689045},{"$f":"MMULT(l2_colombia,AG136:AG170)-AT136:AT170-AG136:AG170","v":39431.731789617275},{"$f":"AG136*'Colombia-IO-Data'!AN13","v":0},{"$f":"AT136*'Colombia-IO-Data'!$AN13","v":1904.316864962753},{"$f":"AU136*'Colombia-IO-Data'!$AN13","v":27298.624506703189},{"$f":"AV136*'Colombia-IO-Data'!$AO13","v":0},{"$f":"AW136*'Colombia-IO-Data'!$AO13","v":502.75427323783072},{"$f":"AX136*'Colombia-IO-Data'!$AO13","v":7207.0464620542216},{"$f":"(AY136*'Default-Data'!$F$19/wind_dollar_index)/'Colombia-IO-Data'!$AP13","v":0},{"$f":"(AZ136*'Default-Data'!$F$19/wind_dollar_index)/'Colombia-IO-Data'!$AP13","v":0.10271275266567323},{"$f":"(BA136*'Default-Data'!$F$19/wind_dollar_index)/'Colombia-IO-Data'!$AP13","v":1.4724003755146773},null,"DOM_C01T05: Agriculture, hunting, forestry and fishing",{"$f":"AF136","v":0},{"$f":"AG136","v":0},null,{"$f":"MMULT(Mexico_L1,BG136:BG169)-BG136:BG169","v":880497.09880324407},{"$f":"MMULT(Mexico_L2,BG136:BG170)-BG136:BG170-BJ136:BJ170","v":6171298.2599577755},{"$f":"BG136*'Mexico-IO-Data'!AQ13","v":0},{"$f":"BJ136*'Mexico-IO-Data'!$AQ13","v":536993.57043537276},{"$f":"BK136*'Mexico-IO-Data'!$AQ13","v":3763723.3459832943},{"$f":"BG136*'Mexico-IO-Data'!AR13","v":0},{"$f":"BJ136*'Mexico-IO-Data'!$AR13","v":88461.49808092606},{"$f":"BK136*'Mexico-IO-Data'!$AR13","v":620015.99996420764},{"$f":"(BO136*'Default-Data'!$F$19/wind_dollar_index)/'Mexico-IO-Data'!$AS13","v":0},{"$f":"(BP136*'Default-Data'!$F$19/wind_dollar_index)/'Mexico-IO-Data'!$AS13","v":84.142723425053973},{"$f":"(BQ136*'Default-Data'!$F$19/wind_dollar_index)/'Mexico-IO-Data'!$AS13","v":589.74622786029181},{"$f":"MMULT(Mexico_L1,BH136:BH169)-BH136:BH169","v":2404.2670612710513},{"$f":"MMULT(Mexico_L2,BH136:BH170)-BH136:BH170-BU136:BU170","v":23342.105482589388},{"$f":"BH136*'Mexico-IO-Data'!AQ13","v":0},{"$f":"BU136*'Mexico-IO-Data'!$AQ13","v":1466.303472512187},{"$f":"BV136*'Mexico-IO-Data'!$AQ13","v":14235.777246298161},{"$f":"BH136*'Mexico-IO-Data'!AR13","v":0},{"$f":"BX136*'Mexico-IO-Data'!$AR13","v":147.31610359192948},{"$f":"BY136*'Mexico-IO-Data'!$AR13","v":1430.2354695609315},{"$f":"(CA136*'Default-Data'!$F$19/wind_dollar_index)/'Mexico-IO-Data'!$AS13","v":0.14012399099609005},{"$f":"(CB136*'Default-Data'!$F$19/wind_dollar_index)/'Mexico-IO-Data'!$AS13","v":1.3604100106678616},{"$f":"(CC136*'Default-Data'!$F$19/wind_dollar_index)/'Mexico-IO-Data'!$AS13","v":1.332830041925436E-4},null,"TTL_C01T05: Agriculture, hunting, forestry and fishing",0,0,null,{"$f":"MMULT(Philippines_L1,CH136:CH169)-CH136:CH169","v":1893976.0666808353},{"$f":"MMULT(Philippines_L2,CH136:CH170)-CK136:CK170-CH136:CH170","v":15477700.503635732},{"$f":"CH136*'Philippines-IO-Data'!AN13","v":0},{"$f":"CK136*'Philippines-IO-Data'!$AN13","v":1336686.4767796346},{"$f":"CL136*'Philippines-IO-Data'!$AN13","v":10923492.286316002},{"$f":"CH136*'Philippines-IO-Data'!AO13","v":0},{"$f":"CK136*'Philippines-IO-Data'!$AO13","v":384759.51341640181},{"$f":"CL136*'Philippines-IO-Data'!$AO13","v":3144280.7643393655},{"$f":"(CP136*'Default-Data'!$F$19/wind_dollar_index)/'Philippines-IO-Data'!$AP13","v":0},{"$f":"(CQ136*'Default-Data'!$F$19/wind_dollar_index)/'Philippines-IO-Data'!$AP13","v":221.96003826864168},{"$f":"(CR136*'Default-Data'!$F$19/wind_dollar_index)/'Philippines-IO-Data'!$AP13","v":1813.8724435510442},{"$f":"MMULT(Philippines_L1,CI136:CI169)-CI136:CI169","v":2328.7223389454593},{"$f":"MMULT(Philippines_L2,CI136:CI170)-CV136:CV170-CI136:CI170","v":67111.834658034917},{"$f":"CI136*'Philippines-IO-Data'!AN13","v":0},{"$f":"CV136*'Philippines-IO-Data'!$AN13","v":1643.5116121071806},{"$f":"CW136*'Philippines-IO-Data'!$AN13","v":47364.63326935123},{"$f":"CI136*'Philippines-IO-Data'!AO13","v":0},{"$f":"CV136*'Philippines-IO-Data'!$AO13","v":473.07782277565065},{"$f":"CW136*'Philippines-IO-Data'!$AO13","v":13633.708103165236},{"$f":"(DA136*'Default-Data'!$F$19/wind_dollar_index)/'Philippines-IO-Data'!$AP13","v":0},{"$f":"(DB136*'Default-Data'!$F$19/wind_dollar_index)/'Philippines-IO-Data'!$AP13","v":0.27290909772434724},{"$f":"(DC136*'Default-Data'!$F$19/wind_dollar_index)/'Philippines-IO-Data'!$AP13","v":7.8650124735110589},null,"DOM_C01T05: Agriculture, hunting, forestry and fishing",{"$f":"AF136","v":0},{"$f":"AG136","v":0},null,{"$f":"MMULT(SouthAfrica_L1,DI136:DI169)-DI136:DI169","v":1987598.7588737912},{"$f":"MMULT(SouthAfrica_L2,DI136:DI170)-DI136:DI170-DL136:DL170","v":9508704.5347798392},{"$f":"DI136*'SouthAfrica-IO-Data'!AR13","v":0},{"$f":"DL136*'SouthAfrica-IO-Data'!$AR13","v":802689.51909957873},{"$f":"DM136*'SouthAfrica-IO-Data'!$AR13","v":3840079.6117457547},{"$f":"DI136*'SouthAfrica-IO-Data'!AS13","v":0},{"$f":"DL136*'SouthAfrica-IO-Data'!$AS13","v":246232.13082203595},{"$f":"DM136*'SouthAfrica-IO-Data'!$AS13","v":1177978.4871080548},{"$f":"(DQ136*'Default-Data'!$F$19/wind_dollar_index)/'SouthAfrica-IO-Data'!$AT13","v":0},{"$f":"(DR136*'Default-Data'!$F$19/wind_dollar_index)/'SouthAfrica-IO-Data'!$AT13","v":17.109727776520518},{"$f":"(DS136*'Default-Data'!$F$19/wind_dollar_index)/'SouthAfrica-IO-Data'!$AT13","v":81.85321376917797},{"$f":"MMULT(SouthAfrica_L1,DJ136:DJ169)-DJ136:DJ169","v":2687.8575496417593},{"$f":"MMULT(SouthAfrica_L2,DJ136:DJ170)-DJ136:DJ170-DW136:DW170","v":43864.436782480909},{"$f":"DJ136*'SouthAfrica-IO-Data'!AR13","v":0},{"$f":"'SouthAfrica-IO-Data'!$AR13*Calculations!DW136","v":1085.4882426836502},{"$f":"'SouthAfrica-IO-Data'!$AR13*Calculations!DX136","v":17714.603367157371},{"$f":"DJ136*'SouthAfrica-IO-Data'!AS13","v":0},{"$f":"DW136*'SouthAfrica-IO-Data'!$AS13","v":332.98314805217285},{"$f":"DX136*'SouthAfrica-IO-Data'!$AS13","v":5434.1117330837478},{"$f":"(EB136*'Default-Data'!$F$19/wind_dollar_index)/'SouthAfrica-IO-Data'!$AT13","v":0},{"$f":"(EC136*'Default-Data'!$F$19/wind_dollar_index)/'SouthAfrica-IO-Data'!$AT13","v":2.3137723733785129E-2},{"$f":"(ED136*'Default-Data'!$F$19/wind_dollar_index)/'SouthAfrica-IO-Data'!$AT13","v":0.37759561333389713},null,"MAIZE",0,0,null,{"$f":"MMULT(Zambia_L1,EJ136:EJ162)-EJ136:EJ162","v":2935.196270308666},{"$f":"MMULT(Zambia_L2,EJ136:EJ177)-EM136:EM177-EJ136:EJ177","v":2810659.4644400007},{"$f":"EJ136*'Zambia-IO-Data'!BO11","v":0},{"$f":"EM136*'Zambia-IO-Data'!$BO11","v":1158.9284832017458},{"$f":"EN136*'Zambia-IO-Data'!$BO11","v":1109756.5579754356},{"$f":"EJ136*'Zambia-IO-Data'!BN11","v":0},{"$f":"EM136*'Zambia-IO-Data'!$BN11","v":920.83763760168563},{"$f":"EN136*'Zambia-IO-Data'!$BN11","v":881767.61721817579},{"$f":"(ER136*'Default-Data'!$F$19/wind_dollar_index)/'Zambia-IO-Data'!$BP11","v":0},{"$f":"(ES136*'Default-Data'!$F$19/wind_dollar_index)/'Zambia-IO-Data'!$BP11","v":8.9165888111289462},{"$f":"(ET136*'Default-Data'!$F$19/wind_dollar_index)/'Zambia-IO-Data'!$BP11","v":8538.2687985917582},{"$f":"MMULT(Zambia_L1,EK136:EK162)-EK136:EK162","v":8.5662999616590429},{"$f":"MMULT(Zambia_L2,EK136:EK177)-EK136:EK177-EX136:EX177","v":5881.2081612899719},{"$f":"EK136*'Zambia-IO-Data'!BO11","v":0},{"$f":"EX136*'Zambia-IO-Data'!$BO11","v":3.3823050000580319},{"$f":"EY136*'Zambia-IO-Data'!$BO11","v":2322.1273898119098},{"$f":"EK136*'Zambia-IO-Data'!BN11","v":0},{"$f":"EX136*'Zambia-IO-Data'!$BN11","v":2.6874425739345877},{"$f":"EY136*'Zambia-IO-Data'!$BN11","v":1845.0683806969068},{"$f":"(FC136*'Default-Data'!$F$19/wind_dollar_index)/'Zambia-IO-Data'!$BP11","v":0},{"$f":"(FD136*'Default-Data'!$F$19/wind_dollar_index)/'Zambia-IO-Data'!$BP11","v":2.602285072502868E-2},{"$f":"(FE136*'Default-Data'!$F$19/wind_dollar_index)/'Zambia-IO-Data'!$BP11","v":17.866033497434145},null,"TTL_C01T05: Agriculture, hunting, forestry and fishing",{"$f":"CH136","v":0},{"$f":"CI136","v":0},null,{"$f":"MMULT(CustomRegion1_L1,FK136:FK169)-FK136:FK169","v":3921847.4788455684},{"$f":"MMULT(CustomRegion1_L2,FK136:FK170)-FN136:FN170-FK136:FK170","v":20967405.395841002},{"$f":"FK136*CustomRegion1!C9","v":0},{"$f":"FN136*CustomRegion1!$C9","v":2767870.5033227764},{"$f":"FO136*CustomRegion1!$C9","v":14797888.81117893},{"$f":"FK136*CustomRegion1!D9","v":0},{"$f":"FN136*CustomRegion1!$D9","v":796719.74435157841},{"$f":"FO136*CustomRegion1!$D9","v":4259509.3146273149},{"$f":"(FS136*'Default-Data'!$C$58/wind_dollar_index)/CustomRegion1!$E9","v":0},{"$f":"(FT136*'Default-Data'!$C$58/wind_dollar_index)/CustomRegion1!$E9","v":459.61162435059964},{"$f":"(FU136*'Default-Data'!$C$58/wind_dollar_index)/CustomRegion1!$E9","v":2457.225403175727},{"$f":"MMULT(CustomRegion1_L1,FL136:FL169)-FL136:FL169","v":6808.5057803283371},{"$f":"MMULT(CustomRegion1_L2,FL136:FL170)-FY136:FY170-FL136:FL170","v":91514.785320258685},{"$f":"FL136*CustomRegion1!C9","v":0},{"$f":"FY136*CustomRegion1!$C9","v":4805.149211621213},{"$f":"FZ136*CustomRegion1!$C9","v":64587.181493458207},{"$f":"FL136*CustomRegion1!D9","v":0},{"$f":"FY136*CustomRegion1!$D9","v":1383.141749896959},{"$f":"FZ136*CustomRegion1!$D9","v":18591.145310477063},{"$f":"(GD136*'Default-Data'!$C$58/wind_dollar_index)/CustomRegion1!$E9","v":0},{"$f":"(GE136*'Default-Data'!$C$58/wind_dollar_index)/CustomRegion1!$E9","v":0.79790670544339537},{"$f":"(GF136*'Default-Data'!$C$58/wind_dollar_index)/CustomRegion1!$E9","v":10.724858465307177},null,"C01T05 Agriculture, hunting, forestry and fishing",{"$f":"BG136","v":0},{"$f":"BH136","v":0},null,{"$f":"MMULT(CustomRegion2_L1,GL136:GL172)-GL136:GL172","v":5715916.9907860793},{"$f":"MMULT(CustomRegion2_L2,GL136:GL174)-GL136:GL174-GO136:GO174","v":14636032.379512403},{"$f":"GL136*CustomRegion2!C13","v":0},{"$f":"GO136*CustomRegion2!$C13","v":3522042.0763868061},{"$f":"GP136*CustomRegion2!$C13","v":9018451.7996146008},{"$f":"GL136*CustomRegion2!D13","v":0},{"$f":"GO136*CustomRegion2!$D13","v":632504.22662034084},{"$f":"GP136*CustomRegion2!$D13","v":1619574.3143079909},{"$f":"(GT136*'Default-Data'!$C$59/wind_dollar_index)/CustomRegion2!$E13","v":0},{"$f":"(GU136*'Default-Data'!$C$59/wind_dollar_index)/CustomRegion2!$E13","v":601.62476738756868},{"$f":"(GV136*'Default-Data'!$C$59/wind_dollar_index)/CustomRegion2!$E13","v":1540.5051525407321},{"$f":"MMULT(CustomRegion2_L1,GM136:GM172)-GM136:GM172","v":0},{"$f":"MMULT(CustomRegion2_L2,GM136:GM174)-GM136:GM174-GZ136:GZ174","v":0},{"$f":"GM136*CustomRegion2!C13","v":0},{"$f":"GZ136*CustomRegion2!$C13","v":0},{"$f":"HA136*CustomRegion2!$C13","v":0},{"$f":"GM136*CustomRegion2!D13","v":0},{"$f":"GZ136*CustomRegion2!$D13","v":0},{"$f":"HA136*CustomRegion2!$D13","v":0},{"$f":"(HE136*'Default-Data'!$C$59/wind_dollar_index)/CustomRegion2!$E13","v":0},{"$f":"(HF136*'Default-Data'!$C$59/wind_dollar_index)/CustomRegion2!$E13","v":0},{"$f":"(HG136*'Default-Data'!$C$59/wind_dollar_index)/CustomRegion2!$E13","v":0},null,"MAIZE",{"$f":"EJ136","v":0},{"$f":"EK136","v":0},null,{"$f":"MMULT(CustomRegion3_L1,HM136:HM162)-HM136:HM162","v":2935.196270308666},{"$f":"MMULT(CustomRegion3_L2,HM136:HM177)-HM136:HM177-HP136:HP177","v":2810659.4644400007},{"$f":"HM136*CustomRegion3!D12","v":0},{"$f":"HP136*CustomRegion3!$D12","v":1158.9284832017458},{"$f":"HQ136*CustomRegion3!$D12","v":1109756.5579754356},{"$f":"HM136*CustomRegion3!E12","v":0},{"$f":"HP136*CustomRegion3!$E12","v":920.83763760168563},{"$f":"HQ136*CustomRegion3!$E12","v":881767.61721817579},{"$f":"(HU136*'Default-Data'!$C$60/wind_dollar_index)/CustomRegion3!$F12","v":0},{"$f":"(HV136*'Default-Data'!$C$60/wind_dollar_index)/CustomRegion3!$F12","v":8.9165888111289462},{"$f":"(HW136*'Default-Data'!$C$60/wind_dollar_index)/CustomRegion3!$F12","v":8538.2687985917582},{"$f":"MMULT(CustomRegion3_L1,HN136:HN162)-HN136:HN162","v":8.5662999616590429},{"$f":"MMULT(CustomRegion3_L2,HN136:HN177)-HN136:HN177-IA136:IA177","v":5881.2081612899719},{"$f":"HN136*CustomRegion3!D12","v":0},{"$f":"IA136*CustomRegion3!$D12","v":3.3823050000580319},{"$f":"IB136*CustomRegion3!$D12","v":2322.1273898119098},{"$f":"HN136*CustomRegion3!E12","v":0},{"$f":"IA136*CustomRegion3!$E12","v":2.6874425739345877},{"$f":"IB136*CustomRegion3!$E12","v":1845.0683806969068},{"$f":"(IF136*'Default-Data'!$C$60/wind_dollar_index)/CustomRegion3!$F12","v":0},{"$f":"(IG136*'Default-Data'!$C$60/wind_dollar_index)/CustomRegion3!$F12","v":2.602285072502868E-2},{"$f":"(IH136*'Default-Data'!$C$60/wind_dollar_index)/CustomRegion3!$F12","v":17.866033497434145}]
[null,null,null,null,null,null,null,null,null,null,null,null,null,null,null,null,null,null,null,null,null,null,null,null,null,null,null,null,null,136,"TTL_C10T14: Mining and quarrying",0,0,null,21525162.959824502,1902957.6938946806,{"$f":"AF137*'Colombia-IO-Data'!AN14","v":0},{"$f":"AI137*'Colombia-IO-Data'!$AN14","v":17626595.467939164},{"$f":"AJ137*'Colombia-IO-Data'!$AN14","v":1558300.1868784651},{"$f":"AK137*'Colombia-IO-Data'!$AO14","v":0},{"$f":"AL137*'Colombia-IO-Data'!$AO14","v":1461997.5065688919},{"$f":"AM137*'Colombia-IO-Data'!$AO14","v":129249.63257062349},{"$f":"(Calculations!AN137*'Default-Data'!$F$19/wind_dollar_index)/'Colombia-IO-Data'!$AP14","v":0},{"$f":"(Calculations!AO137*'Default-Data'!$F$19/wind_dollar_index)/'Colombia-IO-Data'!$AP14","v":139.40605026287398},{"$f":"(Calculations!AP137*'Default-Data'!$F$19/wind_dollar_index)/'Colombia-IO-Data'!$AP14","v":12.324358074238127},182850.99834707959,9960.7659931473027,{"$f":"AG137*'Colombia-IO-Data'!AN14","v":0},{"$f":"AT137*'Colombia-IO-Data'!$AN14","v":149733.62035810866},{"$f":"AU137*'Colombia-IO-Data'!$AN14","v":8156.7044597856211},{"$f":"AV137*'Colombia-IO-Data'!$AO14","v":0},{"$f":"AW137*'Colombia-IO-Data'!$AO14","v":12419.311489349229},{"$f":"AX137*'Colombia-IO-Data'!$AO14","v":676.53913109405323},{"$f":"(AY137*'Default-Data'!$F$19/wind_dollar_index)/'Colombia-IO-Data'!$AP14","v":0},{"$f":"(AZ137*'Default-Data'!$F$19/wind_dollar_index)/'Colombia-IO-Data'!$AP14","v":1.1842203245460348},{"$f":"(BA137*'Default-Data'!$F$19/wind_dollar_index)/'Colombia-IO-Data'!$AP14","v":6.4510129251478601E-2},null,"DOM_C10T14: Mining and quarrying",{"$f":"AF137","v":0},{"$f":"AG137","v":0},null,17779329.192294799,3408398.1623826139,{"$f":"BG137*'Mexico-IO-Data'!AQ14","v":0},{"$f":"BJ137*'Mexico-IO-Data'!$AQ14","v":15306710.704382874},{"$f":"BK137*'Mexico-IO-Data'!$AQ14","v":2934383.1858150694},{"$f":"BG137*'Mexico-IO-Data'!AR14","v":0},{"$f":"BJ137*'Mexico-IO-Data'!$AR14","v":949963.38113315939},{"$f":"BK137*'Mexico-IO-Data'!$AR14","v":182113.36364637734},{"$f":"(BO137*'Default-Data'!$F$19/wind_dollar_index)/'Mexico-IO-Data'!$AS14","v":0},{"$f":"(BP137*'Default-Data'!$F$19/wind_dollar_index)/'Mexico-IO-Data'!$AS14","v":49.471306592355035},{"$f":"(BQ137*'Default-Data'!$F$19/wind_dollar_index)/'Mexico-IO-Data'!$AS14","v":9.4839298297668844},244584.86364510583,12891.807538976922,{"$f":"BH137*'Mexico-IO-Data'!AQ14","v":0},{"$f":"BU137*'Mexico-IO-Data'!$AQ14","v":210569.79765631707},{"$f":"BV137*'Mexico-IO-Data'!$AQ14","v":11098.909656345259},{"$f":"BH137*'Mexico-IO-Data'!AR14","v":0},{"$f":"BX137*'Mexico-IO-Data'!$AR14","v":11250.907994482193},{"$f":"BY137*'Mexico-IO-Data'!$AR14","v":593.02337169180589},{"$f":"(CA137*'Default-Data'!$F$19/wind_dollar_index)/'Mexico-IO-Data'!$AS14","v":0.58591428879445095},{"$f":"(CB137*'Default-Data'!$F$19/wind_dollar_index)/'Mexico-IO-Data'!$AS14","v":3.0882917826161028E-2},{"$f":"(CC137*'Default-Data'!$F$19/wind_dollar_index)/'Mexico-IO-Data'!$AS14","v":3.0512697640214497E-5},null,"TTL_C10T14: Mining and quarrying",0,0,null,6478097.1329492442,864884.10742923059,{"$f":"CH137*'Philippines-IO-Data'!AN14","v":0},{"$f":"CK137*'Philippines-IO-Data'!$AN14","v":3729351.8002801193},{"$f":"CL137*'Philippines-IO-Data'!$AN14","v":497901.93584306916},{"$f":"CH137*'Philippines-IO-Data'!AO14","v":0},{"$f":"CK137*'Philippines-IO-Data'!$AO14","v":974861.70226329821},{"$f":"CL137*'Philippines-IO-Data'!$AO14","v":130152.78652437874},{"$f":"(CP137*'Default-Data'!$F$19/wind_dollar_index)/'Philippines-IO-Data'!$AP14","v":0},{"$f":"(CQ137*'Default-Data'!$F$19/wind_dollar_index)/'Philippines-IO-Data'!$AP14","v":303.25274018763264},{"$f":"(CR137*'Default-Data'!$F$19/wind_dollar_index)/'Philippines-IO-Data'!$AP14","v":40.486962473692188},37853.897619054878,3750.1668418068584,{"$f":"CI137*'Philippines-IO-Data'!AN14","v":0},{"$f":"CV137*'Philippines-IO-Data'!$AN14","v":21791.970440704365},{"$f":"CW137*'Philippines-IO-Data'!$AN14","v":2158.9196913563464},{"$f":"CI137*'Philippines-IO-Data'!AO14","v":0},{"$f":"CV137*'Philippines-IO-Data'!$AO14","v":5696.4744913313998},{"$f":"CW137*'Philippines-IO-Data'!$AO14","v":564.34689942829152},{"$f":"(DA137*'Default-Data'!$F$19/wind_dollar_index)/'Philippines-IO-Data'!$AP14","v":0},{"$f":"(DB137*'Default-Data'!$F$19/wind_dollar_index)/'Philippines-IO-Data'!$AP14","v":1.7720169895838505},{"$f":"(DC137*'Default-Data'!$F$19/wind_dollar_index)/'Philippines-IO-Data'!$AP14","v":0.17555284331171825},null,"DOM_C10T14: Mining and quarrying",{"$f":"AF137","v":0},{"$f":"AG137","v":0},null,23699519.528612323,5025695.0368152522,{"$f":"DI137*'SouthAfrica-IO-Data'!AR14","v":0},{"$f":"DL137*'SouthAfrica-IO-Data'!$AR14","v":14115304.919406913},{"$f":"DM137*'SouthAfrica-IO-Data'!$AR14","v":2993276.6270199125},{"$f":"DI137*'SouthAfrica-IO-Data'!AS14","v":0},{"$f":"DL137*'SouthAfrica-IO-Data'!$AS14","v":4782438.5133013232},{"$f":"DM137*'SouthAfrica-IO-Data'!$AS14","v":1014158.8512440149},{"$f":"(DQ137*'Default-Data'!$F$19/wind_dollar_index)/'SouthAfrica-IO-Data'!$AT14","v":0},{"$f":"(DR137*'Default-Data'!$F$19/wind_dollar_index)/'SouthAfrica-IO-Data'!$AT14","v":302.9987661870959},{"$f":"(DS137*'Default-Data'!$F$19/wind_dollar_index)/'SouthAfrica-IO-Data'!$AT14","v":64.253597780713989},229304.52596292098,23183.944923735427,{"$f":"DJ137*'SouthAfrica-IO-Data'!AR14","v":0},{"$f":"'SouthAfrica-IO-Data'!$AR14*Calculations!DW137","v":136572.52837801338},{"$f":"'SouthAfrica-IO-Data'!$AR14*Calculations!DX137","v":13808.231489173273},{"$f":"DJ137*'SouthAfrica-IO-Data'!AS14","v":0},{"$f":"DW137*'SouthAfrica-IO-Data'!$AS14","v":46272.448473709104},{"$f":"DX137*'SouthAfrica-IO-Data'!$AS14","v":4678.3982670901478},{"$f":"(EB137*'Default-Data'!$F$19/wind_dollar_index)/'SouthAfrica-IO-Data'!$AT14","v":0},{"$f":"(EC137*'Default-Data'!$F$19/wind_dollar_index)/'SouthAfrica-IO-Data'!$AT14","v":2.9316623218458195},{"$f":"(ED137*'Default-Data'!$F$19/wind_dollar_index)/'SouthAfrica-IO-Data'!$AT14","v":0.29640713596579549},null,"DRSTAP",0,0,null,3259.3955651437732,1681951.5109394686,{"$f":"EJ137*'Zambia-IO-Data'!BO12","v":0},{"$f":"EM137*'Zambia-IO-Data'!$BO12","v":1736.6359959370759},{"$f":"EN137*'Zambia-IO-Data'!$BO12","v":896159.26601697702},{"$f":"EJ137*'Zambia-IO-Data'!BN12","v":0},{"$f":"EM137*'Zambia-IO-Data'!$BN12","v":1574.631920794857},{"$f":"EN137*'Zambia-IO-Data'!$BN12","v":812560.02391277812},{"$f":"(ER137*'Default-Data'!$F$19/wind_dollar_index)/'Zambia-IO-Data'!$BP12","v":0},{"$f":"(ES137*'Default-Data'!$F$19/wind_dollar_index)/'Zambia-IO-Data'!$BP12","v":15.247362611256715},{"$f":"(ET137*'Default-Data'!$F$19/wind_dollar_index)/'Zambia-IO-Data'!$BP12","v":7868.1228066020176},9.2920882308343646,3512.3693557992356,{"$f":"EK137*'Zambia-IO-Data'!BO12","v":0},{"$f":"EX137*'Zambia-IO-Data'!$BO12","v":4.9509102459548844},{"$f":"EY137*'Zambia-IO-Data'!$BO12","v":1871.4227630233063},{"$f":"EK137*'Zambia-IO-Data'!BN12","v":0},{"$f":"EX137*'Zambia-IO-Data'!$BN12","v":4.4890589211035499},{"$f":"EY137*'Zambia-IO-Data'!$BN12","v":1696.8449501523403},{"$f":"(FC137*'Default-Data'!$F$19/wind_dollar_index)/'Zambia-IO-Data'!$BP12","v":0},{"$f":"(FD137*'Default-Data'!$F$19/wind_dollar_index)/'Zambia-IO-Data'!$BP12","v":4.3468132615279209E-2},{"$f":"(FE137*'Default-Data'!$F$19/wind_dollar_index)/'Zambia-IO-Data'!$BP12","v":16.430767030934089},null,"TTL_C10T14: Mining and quarrying",{"$f":"CH137","v":0},{"$f":"CI137","v":0},null,43782972.419929013,8138611.7749419585,{"$f":"FK137*CustomRegion1!C10","v":0},{"$f":"FN137*CustomRegion1!$C10","v":25205257.603406854},{"$f":"FO137*CustomRegion1!$C10","v":4685287.33851243},{"$f":"FK137*CustomRegion1!D10","v":0},{"$f":"FN137*CustomRegion1!$D10","v":6588716.1225702865},{"$f":"FO137*CustomRegion1!$D10","v":1224745.5952189413},{"$f":"(FS137*'Default-Data'!$C$58/wind_dollar_index)/CustomRegion1!$E10","v":0},{"$f":"(FT137*'Default-Data'!$C$58/wind_dollar_index)/CustomRegion1!$E10","v":2049.5688915146502},{"$f":"(FU137*'Default-Data'!$C$58/wind_dollar_index)/CustomRegion1!$E10","v":380.9847662705335},271804.84979621187,35521.958741565642,{"$f":"FL137*CustomRegion1!C10","v":0},{"$f":"FY137*CustomRegion1!$C10","v":156474.32959235192},{"$f":"FZ137*CustomRegion1!$C10","v":20449.505165419363},{"$f":"FL137*CustomRegion1!D10","v":0},{"$f":"FY137*CustomRegion1!$D10","v":40902.773317189043},{"$f":"FZ137*CustomRegion1!$D10","v":5345.5507776191671},{"$f":"(GD137*'Default-Data'!$C$58/wind_dollar_index)/CustomRegion1!$E10","v":0},{"$f":"(GE137*'Default-Data'!$C$58/wind_dollar_index)/CustomRegion1!$E10","v":12.723731028630585},{"$f":"(GF137*'Default-Data'!$C$58/wind_dollar_index)/CustomRegion1!$E10","v":1.6628542462603748},null,"C10T14 Mining and quarrying",{"$f":"BG137","v":0},{"$f":"BH137","v":0},null,16300277.386528766,8127611.5320393275,{"$f":"GL137*CustomRegion2!C14","v":0},{"$f":"GO137*CustomRegion2!$C14","v":13246513.159132505},{"$f":"GP137*CustomRegion2!$C14","v":6604949.753827678},{"$f":"GL137*CustomRegion2!D14","v":0},{"$f":"GO137*CustomRegion2!$D14","v":1045450.0328288085},{"$f":"GP137*CustomRegion2!$D14","v":521280.1930605552},{"$f":"(GT137*'Default-Data'!$C$59/wind_dollar_index)/CustomRegion2!$E14","v":0},{"$f":"(GU137*'Default-Data'!$C$59/wind_dollar_index)/CustomRegion2!$E14","v":54.443971344840612},{"$f":"(GV137*'Default-Data'!$C$59/wind_dollar_index)/CustomRegion2!$E14","v":27.146743509901579},0,0,{"$f":"GM137*CustomRegion2!C14","v":0},{"$f":"GZ137*CustomRegion2!$C14","v":0},{"$f":"HA137*CustomRegion2!$C14","v":0},{"$f":"GM137*CustomRegion2!D14","v":0},{"$f":"GZ137*CustomRegion2!$D14","v":0},{"$f":"HA137*CustomRegion2!$D14","v":0},{"$f":"(HE137*'Default-Data'!$C$59/wind_dollar_index)/CustomRegion2!$E14","v":0},{"$f":"(HF137*'Default-Data'!$C$59/wind_dollar_index)/CustomRegion2!$E14","v":0},{"$f":"(HG137*'Default-Data'!$C$59/wind_dollar_index)/CustomRegion2!$E14","v":0},null,"DRSTAP",{"$f":"EJ137","v":0},{"$f":"EK137","v":0},null,3259.3955651437732,1681951.5109394686,{"$f":"HM137*CustomRegion3!D13","v":0},{"$f":"HP137*CustomRegion3!$D13","v":1736.6359959370759},{"$f":"HQ137*CustomRegion3!$D13","v":896159.26601697702},{"$f":"HM137*CustomRegion3!E13","v":0},{"$f":"HP137*CustomRegion3!$E13","v":1574.631920794857},{"$f":"HQ137*CustomRegion3!$E13","v":812560.02391277812},{"$f":"(HU137*'Default-Data'!$C$60/wind_dollar_index)/CustomRegion3!$F13","v":0},{"$f":"(HV137*'Default-Data'!$C$60/wind_dollar_index)/CustomRegion3!$F13","v":15.247362611256715},{"$f":"(HW137*'Default-Data'!$C$60/wind_dollar_index)/CustomRegion3!$F13","v":7868.1228066020176},9.2920882308343646,3512.3693557992356,{"$f":"HN137*CustomRegion3!D13","v":0},{"$f":"IA137*CustomRegion3!$D13","v":4.9509102459548844},{"$f":"IB137*CustomRegion3!$D13","v":1871.4227630233063},{"$f":"HN137*CustomRegion3!E13","v":0},{"$f":"IA137*CustomRegion3!$E13","v":4.4890589211035499},{"$f":"IB137*CustomRegion3!$E13","v":1696.8449501523403},{"$f":"(IF137*'Default-Data'!$C$60/wind_dollar_index)/CustomRegion3!$F13","v":0},{"$f":"(IG137*'Default-Data'!$C$60/wind_dollar_index)/CustomRegion3!$F13","v":4.3468132615279209E-2},{"$f":"(IH137*'Default-Data'!$C$60/wind_dollar_index)/CustomRegion3!$F13","v":16.430767030934089}]
[null,null,null,null,null,null,null,null,null,null,null,null,null,null,null,null,null,null,null,null,null,null,null,null,null,null,null,null,null,137,"TTL_C15T16: Food products, beverages and tobacco",0,0,null,980001.9483483372,13132807.799779883,{"$f":"AF138*'Colombia-IO-Data'!AN15","v":0},{"$f":"AI138*'Colombia-IO-Data'!$AN15","v":224369.3343602916},{"$f":"AJ138*'Colombia-IO-Data'!$AN15","v":3006728.0471068029},{"$f":"AK138*'Colombia-IO-Data'!$AO15","v":0},{"$f":"AL138*'Colombia-IO-Data'!$AO15","v":78739.140946928484},{"$f":"AM138*'Colombia-IO-Data'!$AO15","v":1055167.2944309658},{"$f":"(Calculations!AN138*'Default-Data'!$F$19/wind_dollar_index)/'Colombia-IO-Data'!$AP15","v":0},{"$f":"(Calculations!AO138*'Default-Data'!$F$19/wind_dollar_index)/'Colombia-IO-Data'!$AP15","v":18.510270698965428},{"$f":"(Calculations!AP138*'Default-Data'!$F$19/wind_dollar_index)/'Colombia-IO-Data'!$AP15","v":248.05239195810694},4207.0307218009657,68741.846309184737,{"$f":"AG138*'Colombia-IO-Data'!AN15","v":0},{"$f":"AT138*'Colombia-IO-Data'!$AN15","v":963.19061842136728},{"$f":"AU138*'Colombia-IO-Data'!$AN15","v":15738.297587146239},{"$f":"AV138*'Colombia-IO-Data'!$AO15","v":0},{"$f":"AW138*'Colombia-IO-Data'!$AO15","v":338.01767999567323},{"$f":"AX138*'Colombia-IO-Data'!$AO15","v":5523.1256780798594},{"$f":"(AY138*'Default-Data'!$F$19/wind_dollar_index)/'Colombia-IO-Data'!$AP15","v":0},{"$f":"(AZ138*'Default-Data'!$F$19/wind_dollar_index)/'Colombia-IO-Data'!$AP15","v":7.9462370080635891E-2},{"$f":"(BA138*'Default-Data'!$F$19/wind_dollar_index)/'Colombia-IO-Data'!$AP15","v":1.2983955651049457},null,"DOM_C15T16: Food products, beverages and tobacco",0,0,null,446526.86779793352,16827463.923653785,{"$f":"BG138*'Mexico-IO-Data'!AQ15","v":0},{"$f":"BJ138*'Mexico-IO-Data'!$AQ15","v":173478.61178465353},{"$f":"BK138*'Mexico-IO-Data'!$AQ15","v":6537579.9125548331},{"$f":"BG138*'Mexico-IO-Data'!AR15","v":0},{"$f":"BJ138*'Mexico-IO-Data'!$AR15","v":29952.040984810592},{"$f":"BK138*'Mexico-IO-Data'!$AR15","v":1128749.2992242121},{"$f":"(BO138*'Default-Data'!$F$19/wind_dollar_index)/'Mexico-IO-Data'!$AS15","v":0},{"$f":"(BP138*'Default-Data'!$F$19/wind_dollar_index)/'Mexico-IO-Data'!$AS15","v":7.5217405476373411},{"$f":"(BQ138*'Default-Data'!$F$19/wind_dollar_index)/'Mexico-IO-Data'!$AS15","v":283.45845868725797},4499.0145735944725,63647.618598988534,{"$f":"BH138*'Mexico-IO-Data'!AQ15","v":0},{"$f":"BU138*'Mexico-IO-Data'!$AQ15","v":1747.8966192450605},{"$f":"BV138*'Mexico-IO-Data'!$AQ15","v":24727.516559984982},{"$f":"BH138*'Mexico-IO-Data'!AR15","v":0},{"$f":"BX138*'Mexico-IO-Data'!$AR15","v":117.24506396450755},{"$f":"BY138*'Mexico-IO-Data'!$AR15","v":1658.6674685663347},{"$f":"(CA138*'Default-Data'!$F$19/wind_dollar_index)/'Mexico-IO-Data'!$AS15","v":2.9443300778047032E-2},{"$f":"(CB138*'Default-Data'!$F$19/wind_dollar_index)/'Mexico-IO-Data'!$AS15","v":0.4165347650161571},{"$f":"(CC138*'Default-Data'!$F$19/wind_dollar_index)/'Mexico-IO-Data'!$AS15","v":7.3939825813816392E-6},null,"TTL_C15T16: Food products, beverages and tobacco",0,0,null,1127105.6866553517,12051066.035730161,{"$f":"CH138*'Philippines-IO-Data'!AN15","v":0},{"$f":"CK138*'Philippines-IO-Data'!$AN15","v":375363.35654516146},{"$f":"CL138*'Philippines-IO-Data'!$AN15","v":4013402.3372222395},{"$f":"CH138*'Philippines-IO-Data'!AO15","v":0},{"$f":"CK138*'Philippines-IO-Data'!$AO15","v":65679.201829558166},{"$f":"CL138*'Philippines-IO-Data'!$AO15","v":702245.05811058183},{"$f":"(CP138*'Default-Data'!$F$19/wind_dollar_index)/'Philippines-IO-Data'!$AP15","v":0},{"$f":"(CQ138*'Default-Data'!$F$19/wind_dollar_index)/'Philippines-IO-Data'!$AP15","v":20.430998450250581},{"$f":"(CR138*'Default-Data'!$F$19/wind_dollar_index)/'Philippines-IO-Data'!$AP15","v":218.44917864846022},1118.3501265355085,52253.831313831273,{"$f":"CI138*'Philippines-IO-Data'!AN15","v":0},{"$f":"CV138*'Philippines-IO-Data'!$AN15","v":372.44746633723435},{"$f":"CW138*'Philippines-IO-Data'!$AN15","v":17402.248738988063},{"$f":"CI138*'Philippines-IO-Data'!AO15","v":0},{"$f":"CV138*'Philippines-IO-Data'!$AO15","v":65.168993951938035},{"$f":"CW138*'Philippines-IO-Data'!$AO15","v":3044.958404400501},{"$f":"(DA138*'Default-Data'!$F$19/wind_dollar_index)/'Philippines-IO-Data'!$AP15","v":0},{"$f":"(DB138*'Default-Data'!$F$19/wind_dollar_index)/'Philippines-IO-Data'!$AP15","v":2.0272286771871574E-2},{"$f":"(DC138*'Default-Data'!$F$19/wind_dollar_index)/'Philippines-IO-Data'!$AP15","v":0.94720305223603563},null,"DOM_C15T16: Food products, beverages and tobacco",0,0,null,1841179.6823441037,19814051.857318878,{"$f":"DI138*'SouthAfrica-IO-Data'!AR15","v":0},{"$f":"DL138*'SouthAfrica-IO-Data'!$AR15","v":482303.54570622381},{"$f":"DM138*'SouthAfrica-IO-Data'!$AR15","v":5190361.1348921359},{"$f":"DI138*'SouthAfrica-IO-Data'!AS15","v":0},{"$f":"DL138*'SouthAfrica-IO-Data'!$AS15","v":249695.81549391043},{"$f":"DM138*'SouthAfrica-IO-Data'!$AS15","v":2687128.1951433229},{"$f":"(DQ138*'Default-Data'!$F$19/wind_dollar_index)/'SouthAfrica-IO-Data'!$AT15","v":0},{"$f":"(DR138*'Default-Data'!$F$19/wind_dollar_index)/'SouthAfrica-IO-Data'!$AT15","v":19.451809085452229},{"$f":"(DS138*'Default-Data'!$F$19/wind_dollar_index)/'SouthAfrica-IO-Data'!$AT15","v":209.3327216424197},3542.7027851044572,91403.852325114451,{"$f":"DJ138*'SouthAfrica-IO-Data'!AR15","v":0},{"$f":"'SouthAfrica-IO-Data'!$AR15*Calculations!DW138","v":928.02355523704807},{"$f":"'SouthAfrica-IO-Data'!$AR15*Calculations!DX138","v":23943.563189598408},{"$f":"DJ138*'SouthAfrica-IO-Data'!AS15","v":0},{"$f":"DW138*'SouthAfrica-IO-Data'!$AS15","v":480.45178287703914},{"$f":"DX138*'SouthAfrica-IO-Data'!$AS15","v":12395.943570562888},{"$f":"(EB138*'Default-Data'!$F$19/wind_dollar_index)/'SouthAfrica-IO-Data'!$AT15","v":0},{"$f":"(EC138*'Default-Data'!$F$19/wind_dollar_index)/'SouthAfrica-IO-Data'!$AT15","v":3.7428165693538566E-2},{"$f":"(ED138*'Default-Data'!$F$19/wind_dollar_index)/'SouthAfrica-IO-Data'!$AT15","v":0.96566907735988405},null,"GRNDNUT",0,0,null,31840.84639846491,922141.42540794611,{"$f":"EJ138*'Zambia-IO-Data'!BO13","v":0},{"$f":"EM138*'Zambia-IO-Data'!$BO13","v":14361.946724648553},{"$f":"EN138*'Zambia-IO-Data'!$BO13","v":415935.74048141186},{"$f":"EJ138*'Zambia-IO-Data'!BN13","v":0},{"$f":"EM138*'Zambia-IO-Data'!$BN13","v":11842.471342336143},{"$f":"EN138*'Zambia-IO-Data'!$BN13","v":342969.31894690753},{"$f":"(ER138*'Default-Data'!$F$19/wind_dollar_index)/'Zambia-IO-Data'!$BP13","v":0},{"$f":"(ES138*'Default-Data'!$F$19/wind_dollar_index)/'Zambia-IO-Data'!$BP13","v":114.67216711754911},{"$f":"(ET138*'Default-Data'!$F$19/wind_dollar_index)/'Zambia-IO-Data'!$BP13","v":3321.0158523139335},137.93867174289136,2017.9472172947351,{"$f":"EK138*'Zambia-IO-Data'!BO13","v":0},{"$f":"EX138*'Zambia-IO-Data'!$BO13","v":62.217813874938336},{"$f":"EY138*'Zambia-IO-Data'!$BO13","v":910.20351862684868},{"$f":"EK138*'Zambia-IO-Data'!BN13","v":0},{"$f":"EX138*'Zambia-IO-Data'!$BN13","v":51.30312010782032},{"$f":"EY138*'Zambia-IO-Data'!$BN13","v":750.52910943699021},{"$f":"(FC138*'Default-Data'!$F$19/wind_dollar_index)/'Zambia-IO-Data'!$BP13","v":0},{"$f":"(FD138*'Default-Data'!$F$19/wind_dollar_index)/'Zambia-IO-Data'!$BP13","v":0.49677468431982968},{"$f":"(FE138*'Default-Data'!$F$19/wind_dollar_index)/'Zambia-IO-Data'!$BP13","v":7.267469515105959},null,"TTL_C15T16: Food products, beverages and tobacco",0,0,null,1940744.8383997185,17322486.372387566,{"$f":"FK138*CustomRegion1!C11","v":0},{"$f":"FN138*CustomRegion1!$C11","v":646332.02135743678},{"$f":"FO138*CustomRegion1!$C11","v":5768959.1184144886},{"$f":"FK138*CustomRegion1!D11","v":0},{"$f":"FN138*CustomRegion1!$D11","v":113091.94288530399},{"$f":"FO138*CustomRegion1!$D11","v":1009423.5989687718},{"$f":"(FS138*'Default-Data'!$C$58/wind_dollar_index)/CustomRegion1!$E11","v":0},{"$f":"(FT138*'Default-Data'!$C$58/wind_dollar_index)/CustomRegion1!$E11","v":35.179801907787834},{"$f":"(FU138*'Default-Data'!$C$58/wind_dollar_index)/CustomRegion1!$E11","v":314.00399839962671},3655.585183642615,75606.093918353887,{"$f":"FL138*CustomRegion1!C11","v":0},{"$f":"FY138*CustomRegion1!$C11","v":1217.4303979786748},{"$f":"FZ138*CustomRegion1!$C11","v":25179.322156272683},{"$f":"FL138*CustomRegion1!D11","v":0},{"$f":"FY138*CustomRegion1!$D11","v":213.01987907991338},{"$f":"FZ138*CustomRegion1!$D11","v":4405.751794886055},{"$f":"(GD138*'Default-Data'!$C$58/wind_dollar_index)/CustomRegion1!$E11","v":0},{"$f":"(GE138*'Default-Data'!$C$58/wind_dollar_index)/CustomRegion1!$E11","v":6.6264642354341388E-2},{"$f":"(GF138*'Default-Data'!$C$58/wind_dollar_index)/CustomRegion1!$E11","v":1.370508556530539},null,"C15T16 Food products, beverages and tobacco",0,0,null,2040317.1489990465,30186509.797892842,{"$f":"GL138*CustomRegion2!C15","v":0},{"$f":"GO138*CustomRegion2!$C15","v":807406.71247111331},{"$f":"GP138*CustomRegion2!$C15","v":11945589.267262049},{"$f":"GL138*CustomRegion2!D15","v":0},{"$f":"GO138*CustomRegion2!$D15","v":196202.44315619257},{"$f":"GP138*CustomRegion2!$D15","v":2902816.8368875915},{"$f":"(GT138*'Default-Data'!$C$59/wind_dollar_index)/CustomRegion2!$E15","v":0},{"$f":"(GU138*'Default-Data'!$C$59/wind_dollar_index)/CustomRegion2!$E15","v":49.271562928945315},{"$f":"(GV138*'Default-Data'!$C$59/wind_dollar_index)/CustomRegion2!$E15","v":728.97319803530058},0,0,{"$f":"GM138*CustomRegion2!C15","v":0},{"$f":"GZ138*CustomRegion2!$C15","v":0},{"$f":"HA138*CustomRegion2!$C15","v":0},{"$f":"GM138*CustomRegion2!D15","v":0},{"$f":"GZ138*CustomRegion2!$D15","v":0},{"$f":"HA138*CustomRegion2!$D15","v":0},{"$f":"(HE138*'Default-Data'!$C$59/wind_dollar_index)/CustomRegion2!$E15","v":0},{"$f":"(HF138*'Default-Data'!$C$59/wind_dollar_index)/CustomRegion2!$E15","v":0},{"$f":"(HG138*'Default-Data'!$C$59/wind_dollar_index)/CustomRegion2!$E15","v":0},null,"GRNDNUT",0,0,null,31840.84639846491,922141.42540794611,{"$f":"HM138*CustomRegion3!D14","v":0},{"$f":"HP138*CustomRegion3!$D14","v":14361.946724648553},{"$f":"HQ138*CustomRegion3!$D14","v":415935.74048141186},{"$f":"HM138*CustomRegion3!E14","v":0},{"$f":"HP138*CustomRegion3!$E14","v":11842.471342336143},{"$f":"HQ138*CustomRegion3!$E14","v":342969.31894690753},{"$f":"(HU138*'Default-Data'!$C$60/wind_dollar_index)/CustomRegion3!$F14","v":0},{"$f":"(HV138*'Default-Data'!$C$60/wind_dollar_index)/CustomRegion3!$F14","v":114.67216711754911},{"$f":"(HW138*'Default-Data'!$C$60/wind_dollar_index)/CustomRegion3!$F14","v":3321.0158523139335},137.93867174289136,2017.9472172947351,{"$f":"HN138*CustomRegion3!D14","v":0},{"$f":"IA138*CustomRegion3!$D14","v":62.217813874938336},{"$f":"IB138*CustomRegion3!$D14","v":910.20351862684868},{"$f":"HN138*CustomRegion3!E14","v":0},{"$f":"IA138*CustomRegion3!$E14","v":51.30312010782032},{"$f":"IB138*CustomRegion3!$E14","v":750.52910943699021},{"$f":"(IF138*'Default-Data'!$C$60/wind_dollar_index)/CustomRegion3!$F14","v":0},{"$f":"(IG138*'Default-Data'!$C$60/wind_dollar_index)/CustomRegion3!$F14","v":0.49677468431982968},{"$f":"(IH138*'Default-Data'!$C$60/wind_dollar_index)/CustomRegion3!$F14","v":7.267469515105959}]
[null,null,null,null,null,null,null,null,null,null,null,null,null,null,null,null,null,null,null,null,null,null,null,null,null,null,null,null,null,138,"TTL_C17T19: Textiles, textile products, leather and footwear",0,0,null,739073.40670139669,3398761.5584314386,{"$f":"AF139*'Colombia-IO-Data'!AN16","v":0},{"$f":"AI139*'Colombia-IO-Data'!$AN16","v":243461.06246925212},{"$f":"AJ139*'Colombia-IO-Data'!$AN16","v":1119599.3423555628},{"$f":"AK139*'Colombia-IO-Data'!$AO16","v":0},{"$f":"AL139*'Colombia-IO-Data'!$AO16","v":124729.48482290415},{"$f":"AM139*'Colombia-IO-Data'!$AO16","v":573590.89689222211},{"$f":"(Calculations!AN139*'Default-Data'!$F$19/wind_dollar_index)/'Colombia-IO-Data'!$AP16","v":0},{"$f":"(Calculations!AO139*'Default-Data'!$F$19/wind_dollar_index)/'Colombia-IO-Data'!$AP16","v":29.321840452521702},{"$f":"(Calculations!AP139*'Default-Data'!$F$19/wind_dollar_index)/'Colombia-IO-Data'!$AP16","v":134.84174000696368},863.72394659156794,17790.342191345797,{"$f":"AG139*'Colombia-IO-Data'!AN16","v":0},{"$f":"AT139*'Colombia-IO-Data'!$AN16","v":284.52268450010422},{"$f":"AU139*'Colombia-IO-Data'!$AN16","v":5860.3862245939827},{"$f":"AV139*'Colombia-IO-Data'!$AO16","v":0},{"$f":"AW139*'Colombia-IO-Data'!$AO16","v":145.76609293574285},{"$f":"AX139*'Colombia-IO-Data'!$AO16","v":3002.3813551260118},{"$f":"(AY139*'Default-Data'!$F$19/wind_dollar_index)/'Colombia-IO-Data'!$AP16","v":0},{"$f":"(AZ139*'Default-Data'!$F$19/wind_dollar_index)/'Colombia-IO-Data'!$AP16","v":3.4267199343586491E-2},{"$f":"(BA139*'Default-Data'!$F$19/wind_dollar_index)/'Colombia-IO-Data'!$AP16","v":0.7058102356281426},null,"DOM_C17T19: Textiles, textile products, leather and footwear",0,0,null,383940.26014565281,1785476.5651771298,{"$f":"BG139*'Mexico-IO-Data'!AQ16","v":0},{"$f":"BJ139*'Mexico-IO-Data'!$AQ16","v":148765.97496941793},{"$f":"BK139*'Mexico-IO-Data'!$AQ16","v":691821.59199157031},{"$f":"BG139*'Mexico-IO-Data'!AR16","v":0},{"$f":"BJ139*'Mexico-IO-Data'!$AR16","v":50589.407279208062},{"$f":"BK139*'Mexico-IO-Data'!$AR16","v":235261.08230733828},{"$f":"(BO139*'Default-Data'!$F$19/wind_dollar_index)/'Mexico-IO-Data'!$AS16","v":0},{"$f":"(BP139*'Default-Data'!$F$19/wind_dollar_index)/'Mexico-IO-Data'!$AS16","v":11.810350904251873},{"$f":"(BQ139*'Default-Data'!$F$19/wind_dollar_index)/'Mexico-IO-Data'!$AS16","v":54.922879820054739},3109.2071506234697,6753.3249189192647,{"$f":"BH139*'Mexico-IO-Data'!AQ16","v":0},{"$f":"BU139*'Mexico-IO-Data'!$AQ16","v":1204.7296966692527},{"$f":"BV139*'Mexico-IO-Data'!$AQ16","v":2616.7221053274193},{"$f":"BH139*'Mexico-IO-Data'!AR16","v":0},{"$f":"BX139*'Mexico-IO-Data'!$AR16","v":158.73969888710479},{"$f":"BY139*'Mexico-IO-Data'!$AR16","v":344.7891093075159},{"$f":"(CA139*'Default-Data'!$F$19/wind_dollar_index)/'Mexico-IO-Data'!$AS16","v":3.7058579001428775E-2},{"$f":"(CB139*'Default-Data'!$F$19/wind_dollar_index)/'Mexico-IO-Data'!$AS16","v":8.0492747155782918E-2},{"$f":"(CC139*'Default-Data'!$F$19/wind_dollar_index)/'Mexico-IO-Data'!$AS16","v":8.6515111672339247E-6},null,"TTL_C17T19: Textiles, textile products, leather and footwear",0,0,null,224230.93242468726,1685880.6341029149,{"$f":"CH139*'Philippines-IO-Data'!AN16","v":0},{"$f":"CK139*'Philippines-IO-Data'!$AN16","v":86036.893200795472},{"$f":"CL139*'Philippines-IO-Data'!$AN16","v":646868.52298720775},{"$f":"CH139*'Philippines-IO-Data'!AO16","v":0},{"$f":"CK139*'Philippines-IO-Data'!$AO16","v":29717.148827938203},{"$f":"CL139*'Philippines-IO-Data'!$AO16","v":223428.43232212024},{"$f":"(CP139*'Default-Data'!$F$19/wind_dollar_index)/'Philippines-IO-Data'!$AP16","v":0},{"$f":"(CQ139*'Default-Data'!$F$19/wind_dollar_index)/'Philippines-IO-Data'!$AP16","v":9.2441900135307353},{"$f":"(CR139*'Default-Data'!$F$19/wind_dollar_index)/'Philippines-IO-Data'!$AP16","v":69.502457815508805},133.24788819146482,7310.0356440235109,{"$f":"CI139*'Philippines-IO-Data'!AN16","v":0},{"$f":"CV139*'Philippines-IO-Data'!$AN16","v":51.126908324350403},{"$f":"CW139*'Philippines-IO-Data'!$AN16","v":2804.843868765071},{"$f":"CI139*'Philippines-IO-Data'!AO16","v":0},{"$f":"CV139*'Philippines-IO-Data'!$AO16","v":17.659237651006045},{"$f":"CW139*'Philippines-IO-Data'!$AO16","v":968.79326514838556},{"$f":"(DA139*'Default-Data'!$F$19/wind_dollar_index)/'Philippines-IO-Data'!$AP16","v":0},{"$f":"(DB139*'Default-Data'!$F$19/wind_dollar_index)/'Philippines-IO-Data'!$AP16","v":5.4933045321805228E-3},{"$f":"(DC139*'Default-Data'!$F$19/wind_dollar_index)/'Philippines-IO-Data'!$AP16","v":0.30136501582685293},null,"DOM_C17T19: Textiles, textile products, leather and footwear",0,0,null,2591927.073617076,5885366.0018339939,{"$f":"DI139*'SouthAfrica-IO-Data'!AR16","v":0},{"$f":"DL139*'SouthAfrica-IO-Data'!$AR16","v":344973.31507403939},{"$f":"DM139*'SouthAfrica-IO-Data'!$AR16","v":783314.56187284214},{"$f":"DI139*'SouthAfrica-IO-Data'!AS16","v":0},{"$f":"DL139*'SouthAfrica-IO-Data'!$AS16","v":346686.36749478371},{"$f":"DM139*'SouthAfrica-IO-Data'!$AS16","v":787204.3088410463},{"$f":"(DQ139*'Default-Data'!$F$19/wind_dollar_index)/'SouthAfrica-IO-Data'!$AT16","v":0},{"$f":"(DR139*'Default-Data'!$F$19/wind_dollar_index)/'SouthAfrica-IO-Data'!$AT16","v":27.007569268624483},{"$f":"(DS139*'Default-Data'!$F$19/wind_dollar_index)/'SouthAfrica-IO-Data'!$AT16","v":61.324807932934092},2204.4423404604022,27149.677854112335,{"$f":"DJ139*'SouthAfrica-IO-Data'!AR16","v":0},{"$f":"'SouthAfrica-IO-Data'!$AR16*Calculations!DW139","v":293.40091772603216},{"$f":"'SouthAfrica-IO-Data'!$AR16*Calculations!DX139","v":3613.4945569495053},{"$f":"DJ139*'SouthAfrica-IO-Data'!AS16","v":0},{"$f":"DW139*'SouthAfrica-IO-Data'!$AS16","v":294.8578743380279},{"$f":"DX139*'SouthAfrica-IO-Data'!$AS16","v":3631.4382799206583},{"$f":"(EB139*'Default-Data'!$F$19/wind_dollar_index)/'SouthAfrica-IO-Data'!$AT16","v":0},{"$f":"(EC139*'Default-Data'!$F$19/wind_dollar_index)/'SouthAfrica-IO-Data'!$AT16","v":2.2970024818479429E-2},{"$f":"(ED139*'Default-Data'!$F$19/wind_dollar_index)/'SouthAfrica-IO-Data'!$AT16","v":0.2828963872978576},null,"SUGAR",0,0,null,1851.1833964080547,158872.76601287263,{"$f":"EJ139*'Zambia-IO-Data'!BO14","v":0},{"$f":"EM139*'Zambia-IO-Data'!$BO14","v":502.4124481813879},{"$f":"EN139*'Zambia-IO-Data'!$BO14","v":43118.178067475259},{"$f":"EJ139*'Zambia-IO-Data'!BN14","v":0},{"$f":"EM139*'Zambia-IO-Data'!$BN14","v":168.41420923058587},{"$f":"EN139*'Zambia-IO-Data'!$BN14","v":14453.690168273284},{"$f":"(ER139*'Default-Data'!$F$19/wind_dollar_index)/'Zambia-IO-Data'!$BP14","v":0},{"$f":"(ES139*'Default-Data'!$F$19/wind_dollar_index)/'Zambia-IO-Data'!$BP14","v":1.6307763631074919},{"$f":"(ET139*'Default-Data'!$F$19/wind_dollar_index)/'Zambia-IO-Data'!$BP14","v":139.95693352588273},5.2774691218310323,360.87164365459955,{"$f":"EK139*'Zambia-IO-Data'!BO14","v":0},{"$f":"EX139*'Zambia-IO-Data'!$BO14","v":1.4323087527932581},{"$f":"EY139*'Zambia-IO-Data'!$BO14","v":97.94081252000575},{"$f":"EK139*'Zambia-IO-Data'!BN14","v":0},{"$f":"EX139*'Zambia-IO-Data'!$BN14","v":0.48012573503878286},{"$f":"EY139*'Zambia-IO-Data'!$BN14","v":32.830843566206219},{"$f":"(FC139*'Default-Data'!$F$19/wind_dollar_index)/'Zambia-IO-Data'!$BP14","v":0},{"$f":"(FD139*'Default-Data'!$F$19/wind_dollar_index)/'Zambia-IO-Data'!$BP14","v":4.6491190001007364E-3},{"$f":"(FE139*'Default-Data'!$F$19/wind_dollar_index)/'Zambia-IO-Data'!$BP14","v":0.31790526412972858},null,"TTL_C17T19: Textiles, textile products, leather and footwear",0,0,null,459545.99023327336,2739112.4552849978,{"$f":"FK139*CustomRegion1!C12","v":0},{"$f":"FN139*CustomRegion1!$C12","v":176326.73982584267},{"$f":"FO139*CustomRegion1!$C12","v":1050991.1510958776},{"$f":"FK139*CustomRegion1!D12","v":0},{"$f":"FN139*CustomRegion1!$D12","v":60903.268061070085},{"$f":"FO139*CustomRegion1!$D12","v":363012.41586061264},{"$f":"(FS139*'Default-Data'!$C$58/wind_dollar_index)/CustomRegion1!$E12","v":0},{"$f":"(FT139*'Default-Data'!$C$58/wind_dollar_index)/CustomRegion1!$E12","v":18.94533643389876},{"$f":"(FU139*'Default-Data'!$C$58/wind_dollar_index)/CustomRegion1!$E12","v":112.92320703160696},574.36561883861668,11955.188712246429,{"$f":"FL139*CustomRegion1!C12","v":0},{"$f":"FY139*CustomRegion1!$C12","v":220.38276731879753},{"$f":"FZ139*CustomRegion1!$C12","v":4587.1784205168688},{"$f":"FL139*CustomRegion1!D12","v":0},{"$f":"FY139*CustomRegion1!$D12","v":76.120222986678343},{"$f":"FZ139*CustomRegion1!$D12","v":1584.411741886862},{"$f":"(GD139*'Default-Data'!$C$58/wind_dollar_index)/CustomRegion1!$E12","v":0},{"$f":"(GE139*'Default-Data'!$C$58/wind_dollar_index)/CustomRegion1!$E12","v":2.3678913789321486E-2},{"$f":"(GF139*'Default-Data'!$C$58/wind_dollar_index)/CustomRegion1!$E12","v":0.49286704072705484},null,"C17T19 Textiles, textile products, leather and footwear",0,0,null,21100713.83512269,6868321.7551546991,{"$f":"GL139*CustomRegion2!C16","v":0},{"$f":"GO139*CustomRegion2!$C16","v":7346087.5717941923},{"$f":"GP139*CustomRegion2!$C16","v":2391165.2221282418},{"$f":"GL139*CustomRegion2!D16","v":0},{"$f":"GO139*CustomRegion2!$D16","v":3252315.2016955325},{"$f":"GP139*CustomRegion2!$D16","v":1058634.671270868},{"$f":"(GT139*'Default-Data'!$C$59/wind_dollar_index)/CustomRegion2!$E16","v":0},{"$f":"(GU139*'Default-Data'!$C$59/wind_dollar_index)/CustomRegion2!$E16","v":759.26929863524265},{"$f":"(GV139*'Default-Data'!$C$59/wind_dollar_index)/CustomRegion2!$E16","v":247.14357450586053},0,0,{"$f":"GM139*CustomRegion2!C16","v":0},{"$f":"GZ139*CustomRegion2!$C16","v":0},{"$f":"HA139*CustomRegion2!$C16","v":0},{"$f":"GM139*CustomRegion2!D16","v":0},{"$f":"GZ139*CustomRegion2!$D16","v":0},{"$f":"HA139*CustomRegion2!$D16","v":0},{"$f":"(HE139*'Default-Data'!$C$59/wind_dollar_index)/CustomRegion2!$E16","v":0},{"$f":"(HF139*'Default-Data'!$C$59/wind_dollar_index)/CustomRegion2!$E16","v":0},{"$f":"(HG139*'Default-Data'!$C$59/wind_dollar_index)/CustomRegion2!$E16","v":0},null,"SUGAR",0,0,null,1851.1833964080547,158872.76601287263,{"$f":"HM139*CustomRegion3!D15","v":0},{"$f":"HP139*CustomRegion3!$D15","v":502.4124481813879},{"$f":"HQ139*CustomRegion3!$D15","v":43118.178067475259},{"$f":"HM139*CustomRegion3!E15","v":0},{"$f":"HP139*CustomRegion3!$E15","v":168.41420923058587},{"$f":"HQ139*CustomRegion3!$E15","v":14453.690168273284},{"$f":"(HU139*'Default-Data'!$C$60/wind_dollar_index)/CustomRegion3!$F15","v":0},{"$f":"(HV139*'Default-Data'!$C$60/wind_dollar_index)/CustomRegion3!$F15","v":1.6307763631074919},{"$f":"(HW139*'Default-Data'!$C$60/wind_dollar_index)/CustomRegion3!$F15","v":139.95693352588273},5.2774691218310323,360.87164365459955,{"$f":"HN139*CustomRegion3!D15","v":0},{"$f":"IA139*CustomRegion3!$D15","v":1.4323087527932581},{"$f":"IB139*CustomRegion3!$D15","v":97.94081252000575},{"$f":"HN139*CustomRegion3!E15","v":0},{"$f":"IA139*CustomRegion3!$E15","v":0.48012573503878286},{"$f":"IB139*CustomRegion3!$E15","v":32.830843566206219},{"$f":"(IF139*'Default-Data'!$C$60/wind_dollar_index)/CustomRegion3!$F15","v":0},{"$f":"(IG139*'Default-Data'!$C$60/wind_dollar_index)/CustomRegion3!$F15","v":4.6491190001007364E-3},{"$f":"(IH139*'Default-Data'!$C$60/wind_dollar_index)/CustomRegion3!$F15","v":0.31790526412972858}]
[null,null,null,null,null,null,null,null,null,null,null,null,null,null,null,null,null,null,null,null,null,null,null,null,null,null,null,null,null,139,"TTL_C20: Wood and products of wood and cork",0,0,null,3321836.5111632925,127311.71648013173,{"$f":"AF140*'Colombia-IO-Data'!AN17","v":0},{"$f":"AI140*'Colombia-IO-Data'!$AN17","v":1379206.4476209257},{"$f":"AJ140*'Colombia-IO-Data'!$AN17","v":52859.055416184339},{"$f":"AK140*'Colombia-IO-Data'!$AO17","v":0},{"$f":"AL140*'Colombia-IO-Data'!$AO17","v":562936.43596820184},{"$f":"AM140*'Colombia-IO-Data'!$AO17","v":21574.934134016599},{"$f":"(Calculations!AN140*'Default-Data'!$F$19/wind_dollar_index)/'Colombia-IO-Data'!$AP17","v":0},{"$f":"(Calculations!AO140*'Default-Data'!$F$19/wind_dollar_index)/'Colombia-IO-Data'!$AP17","v":132.33705233215031},{"$f":"(Calculations!AP140*'Default-Data'!$F$19/wind_dollar_index)/'Colombia-IO-Data'!$AP17","v":5.0719104416210277},1221.832482975487,666.39538026150854,{"$f":"AG140*'Colombia-IO-Data'!AN17","v":0},{"$f":"AT140*'Colombia-IO-Data'!$AN17","v":507.2974641495349},{"$f":"AU140*'Colombia-IO-Data'!$AN17","v":276.68333526733602},{"$f":"AV140*'Colombia-IO-Data'!$AO17","v":0},{"$f":"AW140*'Colombia-IO-Data'!$AO17","v":207.05836094128841},{"$f":"AX140*'Colombia-IO-Data'!$AO17","v":112.93097629862477},{"$f":"(AY140*'Default-Data'!$F$19/wind_dollar_index)/'Colombia-IO-Data'!$AP17","v":0},{"$f":"(AZ140*'Default-Data'!$F$19/wind_dollar_index)/'Colombia-IO-Data'!$AP17","v":4.867599856201945E-2},{"$f":"(BA140*'Default-Data'!$F$19/wind_dollar_index)/'Colombia-IO-Data'!$AP17","v":2.6548206094792762E-2},null,"DOM_C20: Wood and products of wood and cork",0,0,null,2530383.7585362461,194001.37616387941,{"$f":"BG140*'Mexico-IO-Data'!AQ17","v":0},{"$f":"BJ140*'Mexico-IO-Data'!$AQ17","v":1169954.2393557113},{"$f":"BK140*'Mexico-IO-Data'!$AQ17","v":89698.936660528474},{"$f":"BG140*'Mexico-IO-Data'!AR17","v":0},{"$f":"BJ140*'Mexico-IO-Data'!$AR17","v":425255.94282957626},{"$f":"BK140*'Mexico-IO-Data'!$AR17","v":32603.844319064799},{"$f":"(BO140*'Default-Data'!$F$19/wind_dollar_index)/'Mexico-IO-Data'!$AS17","v":0},{"$f":"(BP140*'Default-Data'!$F$19/wind_dollar_index)/'Mexico-IO-Data'!$AS17","v":184.09130616954874},{"$f":"(BQ140*'Default-Data'!$F$19/wind_dollar_index)/'Mexico-IO-Data'!$AS17","v":14.114051521322608},1343.5590647630397,733.78410756244011,{"$f":"BH140*'Mexico-IO-Data'!AQ17","v":0},{"$f":"BU140*'Mexico-IO-Data'!$AQ17","v":621.21115753351694},{"$f":"BV140*'Mexico-IO-Data'!$AQ17","v":339.27416128814303},{"$f":"BH140*'Mexico-IO-Data'!AR17","v":0},{"$f":"BX140*'Mexico-IO-Data'!$AR17","v":104.40066080964141},{"$f":"BY140*'Mexico-IO-Data'!$AR17","v":57.018368399488878},{"$f":"(CA140*'Default-Data'!$F$19/wind_dollar_index)/'Mexico-IO-Data'!$AS17","v":4.5194557154285629E-2},{"$f":"(CB140*'Default-Data'!$F$19/wind_dollar_index)/'Mexico-IO-Data'!$AS17","v":2.4682984662074428E-2},{"$f":"(CC140*'Default-Data'!$F$19/wind_dollar_index)/'Mexico-IO-Data'!$AS17","v":1.9564512145150722E-5},null,"TTL_C20: Wood and products of wood and cork",0,0,null,1492615.6791116365,52436.015923948959,{"$f":"CH140*'Philippines-IO-Data'!AN17","v":0},{"$f":"CK140*'Philippines-IO-Data'!$AN17","v":216624.71554301702},{"$f":"CL140*'Philippines-IO-Data'!$AN17","v":7610.0882448823522},{"$f":"CH140*'Philippines-IO-Data'!AO17","v":0},{"$f":"CK140*'Philippines-IO-Data'!$AO17","v":56174.966753456596},{"$f":"CL140*'Philippines-IO-Data'!$AO17","v":1973.4426566955854},{"$f":"(CP140*'Default-Data'!$F$19/wind_dollar_index)/'Philippines-IO-Data'!$AP17","v":0},{"$f":"(CQ140*'Default-Data'!$F$19/wind_dollar_index)/'Philippines-IO-Data'!$AP17","v":17.474491569814351},{"$f":"(CR140*'Default-Data'!$F$19/wind_dollar_index)/'Philippines-IO-Data'!$AP17","v":0.61388388922930859},71.848472454524625,227.36434459288799,{"$f":"CI140*'Philippines-IO-Data'!AN17","v":0},{"$f":"CV140*'Philippines-IO-Data'!$AN17","v":10.427436295540621},{"$f":"CW140*'Philippines-IO-Data'!$AN17","v":32.997600897086066},{"$f":"CI140*'Philippines-IO-Data'!AO17","v":0},{"$f":"CV140*'Philippines-IO-Data'!$AO17","v":2.7040353440623974},{"$f":"CW140*'Philippines-IO-Data'!$AO17","v":8.5569143331179411},{"$f":"(DA140*'Default-Data'!$F$19/wind_dollar_index)/'Philippines-IO-Data'!$AP17","v":0},{"$f":"(DB140*'Default-Data'!$F$19/wind_dollar_index)/'Philippines-IO-Data'!$AP17","v":8.4115123791134053E-4},{"$f":"(DC140*'Default-Data'!$F$19/wind_dollar_index)/'Philippines-IO-Data'!$AP17","v":2.6618213773752205E-3},null,"DOM_C20: Wood and products of wood and cork",0,0,null,2198769.7762937616,604876.22665450769,{"$f":"DI140*'SouthAfrica-IO-Data'!AR17","v":0},{"$f":"DL140*'SouthAfrica-IO-Data'!$AR17","v":582773.72260308685},{"$f":"DM140*'SouthAfrica-IO-Data'!$AR17","v":160319.6360629164},{"$f":"DI140*'SouthAfrica-IO-Data'!AS17","v":0},{"$f":"DL140*'SouthAfrica-IO-Data'!$AS17","v":485163.79236808111},{"$f":"DM140*'SouthAfrica-IO-Data'!$AS17","v":133467.38126065108},{"$f":"(DQ140*'Default-Data'!$F$19/wind_dollar_index)/'SouthAfrica-IO-Data'!$AT17","v":0},{"$f":"(DR140*'Default-Data'!$F$19/wind_dollar_index)/'SouthAfrica-IO-Data'!$AT17","v":37.795240763848746},{"$f":"(DS140*'Default-Data'!$F$19/wind_dollar_index)/'SouthAfrica-IO-Data'!$AT17","v":10.39737896400897},2433.3956091256946,2790.3438274125042,{"$f":"DJ140*'SouthAfrica-IO-Data'!AR17","v":0},{"$f":"'SouthAfrica-IO-Data'!$AR17*Calculations!DW140","v":644.96021047122247},{"$f":"'SouthAfrica-IO-Data'!$AR17*Calculations!DX140","v":739.56767878842902},{"$f":"DJ140*'SouthAfrica-IO-Data'!AS17","v":0},{"$f":"DW140*'SouthAfrica-IO-Data'!$AS17","v":536.93454166232277},{"$f":"DX140*'SouthAfrica-IO-Data'!$AS17","v":615.69601688824059},{"$f":"(EB140*'Default-Data'!$F$19/wind_dollar_index)/'SouthAfrica-IO-Data'!$AT17","v":0},{"$f":"(EC140*'Default-Data'!$F$19/wind_dollar_index)/'SouthAfrica-IO-Data'!$AT17","v":4.1828286850305728E-2},{"$f":"(ED140*'Default-Data'!$F$19/wind_dollar_index)/'SouthAfrica-IO-Data'!$AT17","v":4.796396508084657E-2},null,"COTTON",0,0,null,1470834.4384038397,434882.8441988891,{"$f":"EJ140*'Zambia-IO-Data'!BO15","v":0},{"$f":"EM140*'Zambia-IO-Data'!$BO15","v":326559.55887259392},{"$f":"EN140*'Zambia-IO-Data'!$BO15","v":96554.136927174535},{"$f":"EJ140*'Zambia-IO-Data'!BN15","v":0},{"$f":"EM140*'Zambia-IO-Data'!$BN15","v":221669.2107902476},{"$f":"EN140*'Zambia-IO-Data'!$BN15","v":65541.120293865359},{"$f":"(ER140*'Default-Data'!$F$19/wind_dollar_index)/'Zambia-IO-Data'!$BP15","v":0},{"$f":"(ES140*'Default-Data'!$F$19/wind_dollar_index)/'Zambia-IO-Data'!$BP15","v":2146.4513655762057},{"$f":"(ET140*'Default-Data'!$F$19/wind_dollar_index)/'Zambia-IO-Data'!$BP15","v":634.64306411628627},1406.9164412318382,989.36512454835338,{"$f":"EK140*'Zambia-IO-Data'!BO15","v":0},{"$f":"EX140*'Zambia-IO-Data'!$BO15","v":312.36827233788364},{"$f":"EY140*'Zambia-IO-Data'!$BO15","v":219.66213885164069},{"$f":"EK140*'Zambia-IO-Data'!BN15","v":0},{"$f":"EX140*'Zambia-IO-Data'!$BN15","v":212.03614018864627},{"$f":"EY140*'Zambia-IO-Data'!$BN15","v":149.10705149114355},{"$f":"(FC140*'Default-Data'!$F$19/wind_dollar_index)/'Zambia-IO-Data'!$BP15","v":0},{"$f":"(FD140*'Default-Data'!$F$19/wind_dollar_index)/'Zambia-IO-Data'!$BP15","v":2.0531731088720555},{"$f":"(FE140*'Default-Data'!$F$19/wind_dollar_index)/'Zambia-IO-Data'!$BP15","v":1.4438226813242547},null,"TTL_C20: Wood and products of wood and cork",0,0,null,3035542.4350356963,139646.58063450176,{"$f":"FK140*CustomRegion1!C13","v":0},{"$f":"FN140*CustomRegion1!$C13","v":440551.1249216774},{"$f":"FO140*CustomRegion1!$C13","v":20267.039419355711},{"$f":"FK140*CustomRegion1!D13","v":0},{"$f":"FN140*CustomRegion1!$D13","v":114243.40354532962},{"$f":"FO140*CustomRegion1!$D13","v":5255.634209233247},{"$f":"(FS140*'Default-Data'!$C$58/wind_dollar_index)/CustomRegion1!$E13","v":0},{"$f":"(FT140*'Default-Data'!$C$58/wind_dollar_index)/CustomRegion1!$E13","v":35.537989740544369},{"$f":"(FU140*'Default-Data'!$C$58/wind_dollar_index)/CustomRegion1!$E13","v":1.6348836677793519},346.31640006079539,609.50444779445297,{"$f":"FL140*CustomRegion1!C13","v":0},{"$f":"FY140*CustomRegion1!$C13","v":50.261224440374178},{"$f":"FZ140*CustomRegion1!$C13","v":88.45795302395581},{"$f":"FL140*CustomRegion1!D13","v":0},{"$f":"FY140*CustomRegion1!$D13","v":13.033704879189411},{"$f":"FZ140*CustomRegion1!$D13","v":22.938853296325654},{"$f":"(GD140*'Default-Data'!$C$58/wind_dollar_index)/CustomRegion1!$E13","v":0},{"$f":"(GE140*'Default-Data'!$C$58/wind_dollar_index)/CustomRegion1!$E13","v":4.0544281411760523E-3},{"$f":"(GF140*'Default-Data'!$C$58/wind_dollar_index)/CustomRegion1!$E13","v":7.1356481670402719E-3},null,"C20 Wood and products of wood and cork",0,0,null,13295202.571019296,923731.98883922771,{"$f":"GL140*CustomRegion2!C17","v":0},{"$f":"GO140*CustomRegion2!$C17","v":5633316.7018072736},{"$f":"GP140*CustomRegion2!$C17","v":391394.92707426456},{"$f":"GL140*CustomRegion2!D17","v":0},{"$f":"GO140*CustomRegion2!$D17","v":1870884.2630035731},{"$f":"GP140*CustomRegion2!$D17","v":129986.40915177937},{"$f":"(GT140*'Default-Data'!$C$59/wind_dollar_index)/CustomRegion2!$E17","v":0},{"$f":"(GU140*'Default-Data'!$C$59/wind_dollar_index)/CustomRegion2!$E17","v":809.89703606895171},{"$f":"(GV140*'Default-Data'!$C$59/wind_dollar_index)/CustomRegion2!$E17","v":56.270507793068703},0,0,{"$f":"GM140*CustomRegion2!C17","v":0},{"$f":"GZ140*CustomRegion2!$C17","v":0},{"$f":"HA140*CustomRegion2!$C17","v":0},{"$f":"GM140*CustomRegion2!D17","v":0},{"$f":"GZ140*CustomRegion2!$D17","v":0},{"$f":"HA140*CustomRegion2!$D17","v":0},{"$f":"(HE140*'Default-Data'!$C$59/wind_dollar_index)/CustomRegion2!$E17","v":0},{"$f":"(HF140*'Default-Data'!$C$59/wind_dollar_index)/CustomRegion2!$E17","v":0},{"$f":"(HG140*'Default-Data'!$C$59/wind_dollar_index)/CustomRegion2!$E17","v":0},null,"COTTON",0,0,null,1470834.4384038397,434882.8441988891,{"$f":"HM140*CustomRegion3!D16","v":0},{"$f":"HP140*CustomRegion3!$D16","v":326559.55887259392},{"$f":"HQ140*CustomRegion3!$D16","v":96554.136927174535},{"$f":"HM140*CustomRegion3!E16","v":0},{"$f":"HP140*CustomRegion3!$E16","v":221669.2107902476},{"$f":"HQ140*CustomRegion3!$E16","v":65541.120293865359},{"$f":"(HU140*'Default-Data'!$C$60/wind_dollar_index)/CustomRegion3!$F16","v":0},{"$f":"(HV140*'Default-Data'!$C$60/wind_dollar_index)/CustomRegion3!$F16","v":2146.4513655762057},{"$f":"(HW140*'Default-Data'!$C$60/wind_dollar_index)/CustomRegion3!$F16","v":634.64306411628627},1406.9164412318382,989.36512454835338,{"$f":"HN140*CustomRegion3!D16","v":0},{"$f":"IA140*CustomRegion3!$D16","v":312.36827233788364},{"$f":"IB140*CustomRegion3!$D16","v":219.66213885164069},{"$f":"HN140*CustomRegion3!E16","v":0},{"$f":"IA140*CustomRegion3!$E16","v":212.03614018864627},{"$f":"IB140*CustomRegion3!$E16","v":149.10705149114355},{"$f":"(IF140*'Default-Data'!$C$60/wind_dollar_index)/CustomRegion3!$F16","v":0},{"$f":"(IG140*'Default-Data'!$C$60/wind_dollar_index)/CustomRegion3!$F16","v":2.0531731088720555},{"$f":"(IH140*'Default-Data'!$C$60/wind_dollar_index)/CustomRegion3!$F16","v":1.4438226813242547}]
[null,null,null,null,null,null,null,null,null,null,null,null,null,null,null,null,null,null,null,null,null,null,null,null,null,null,null,null,null,140,"TTL_C21T22: Pulp, paper, paper products, printing and publishing",0,0,null,2434308.0062054042,1899544.5566287376,{"$f":"AF141*'Colombia-IO-Data'!AN18","v":0},{"$f":"AI141*'Colombia-IO-Data'!$AN18","v":777177.89845880785},{"$f":"AJ141*'Colombia-IO-Data'!$AN18","v":606449.16041286814},{"$f":"AK141*'Colombia-IO-Data'!$AO18","v":0},{"$f":"AL141*'Colombia-IO-Data'!$AO18","v":318997.93705370388},{"$f":"AM141*'Colombia-IO-Data'!$AO18","v":248921.16912136981},{"$f":"(Calculations!AN141*'Default-Data'!$F$19/wind_dollar_index)/'Colombia-IO-Data'!$AP18","v":0},{"$f":"(Calculations!AO141*'Default-Data'!$F$19/wind_dollar_index)/'Colombia-IO-Data'!$AP18","v":74.991142858105164},{"$f":"(Calculations!AP141*'Default-Data'!$F$19/wind_dollar_index)/'Colombia-IO-Data'!$AP18","v":58.517252890085608},8444.4258554717562,9942.9004033250058,{"$f":"AG141*'Colombia-IO-Data'!AN18","v":0},{"$f":"AT141*'Colombia-IO-Data'!$AN18","v":2695.9699114973032},{"$f":"AU141*'Colombia-IO-Data'!$AN18","v":3174.3733415587067},{"$f":"AV141*'Colombia-IO-Data'!$AO18","v":0},{"$f":"AW141*'Colombia-IO-Data'!$AO18","v":1106.5791266477693},{"$f":"AX141*'Colombia-IO-Data'!$AO18","v":1302.9430577009275},{"$f":"(AY141*'Default-Data'!$F$19/wind_dollar_index)/'Colombia-IO-Data'!$AP18","v":0},{"$f":"(AZ141*'Default-Data'!$F$19/wind_dollar_index)/'Colombia-IO-Data'!$AP18","v":0.26013846401856094},{"$f":"(BA141*'Default-Data'!$F$19/wind_dollar_index)/'Colombia-IO-Data'!$AP18","v":0.30630037886287992},null,"DOM_C21T22: Pulp, paper, paper products, printing and publishing",0,0,null,2079301.5660309677,1687876.6340284327,{"$f":"BG141*'Mexico-IO-Data'!AQ18","v":0},{"$f":"BJ141*'Mexico-IO-Data'!$AQ18","v":930802.7093114591},{"$f":"BK141*'Mexico-IO-Data'!$AQ18","v":755580.70536930126},{"$f":"BG141*'Mexico-IO-Data'!AR18","v":0},{"$f":"BJ141*'Mexico-IO-Data'!$AR18","v":289604.74130948097},{"$f":"BK141*'Mexico-IO-Data'!$AR18","v":235087.14846648733},{"$f":"(BO141*'Default-Data'!$F$19/wind_dollar_index)/'Mexico-IO-Data'!$AS18","v":0},{"$f":"(BP141*'Default-Data'!$F$19/wind_dollar_index)/'Mexico-IO-Data'!$AS18","v":39.266440909857714},{"$f":"(BQ141*'Default-Data'!$F$19/wind_dollar_index)/'Mexico-IO-Data'!$AS18","v":31.874601162215402},12204.558374009455,6384.1663088504174,{"$f":"BH141*'Mexico-IO-Data'!AQ18","v":0},{"$f":"BU141*'Mexico-IO-Data'!$AQ18","v":5463.3902970420158},{"$f":"BV141*'Mexico-IO-Data'!$AQ18","v":2857.8823745686555},{"$f":"BH141*'Mexico-IO-Data'!AR18","v":0},{"$f":"BX141*'Mexico-IO-Data'!$AR18","v":760.93999999614141},{"$f":"BY141*'Mexico-IO-Data'!$AR18","v":398.04533373181425},{"$f":"(CA141*'Default-Data'!$F$19/wind_dollar_index)/'Mexico-IO-Data'!$AS18","v":0.10317305376525421},{"$f":"(CB141*'Default-Data'!$F$19/wind_dollar_index)/'Mexico-IO-Data'!$AS18","v":5.396950169307603E-2},{"$f":"(CC141*'Default-Data'!$F$19/wind_dollar_index)/'Mexico-IO-Data'!$AS18","v":1.398885460522776E-5},null,"TTL_C21T22: Pulp, paper, paper products, printing and publishing",0,0,null,1261170.799774928,1391148.2104222551,{"$f":"CH141*'Philippines-IO-Data'!AN18","v":0},{"$f":"CK141*'Philippines-IO-Data'!$AN18","v":333881.36635846272},{"$f":"CL141*'Philippines-IO-Data'!$AN18","v":368291.4839019464},{"$f":"CH141*'Philippines-IO-Data'!AO18","v":0},{"$f":"CK141*'Philippines-IO-Data'!$AO18","v":98984.440917421816},{"$f":"CL141*'Philippines-IO-Data'!$AO18","v":109185.86750223958},{"$f":"(CP141*'Default-Data'!$F$19/wind_dollar_index)/'Philippines-IO-Data'!$AP18","v":0},{"$f":"(CQ141*'Default-Data'!$F$19/wind_dollar_index)/'Philippines-IO-Data'!$AP18","v":30.79134494098906},{"$f":"(CR141*'Default-Data'!$F$19/wind_dollar_index)/'Philippines-IO-Data'!$AP18","v":33.964728979449731},3405.9100828576638,6032.0658524661712,{"$f":"CI141*'Philippines-IO-Data'!AN18","v":0},{"$f":"CV141*'Philippines-IO-Data'!$AN18","v":901.67795857747751},{"$f":"CW141*'Philippines-IO-Data'!$AN18","v":1596.9243730865426},{"$f":"CI141*'Philippines-IO-Data'!AO18","v":0},{"$f":"CV141*'Philippines-IO-Data'!$AO18","v":267.31677059668777},{"$f":"CW141*'Philippines-IO-Data'!$AO18","v":473.43362698374563},{"$f":"(DA141*'Default-Data'!$F$19/wind_dollar_index)/'Philippines-IO-Data'!$AP18","v":0},{"$f":"(DB141*'Default-Data'!$F$19/wind_dollar_index)/'Philippines-IO-Data'!$AP18","v":8.3154916223860245E-2},{"$f":"(DC141*'Default-Data'!$F$19/wind_dollar_index)/'Philippines-IO-Data'!$AP18","v":0.14727221753246583},null,"DOM_C21T22: Pulp, paper, paper products, printing and publishing",0,0,null,7169933.570076203,5718554.5701047312,{"$f":"DI141*'SouthAfrica-IO-Data'!AR18","v":0},{"$f":"DL141*'SouthAfrica-IO-Data'!$AR18","v":1646994.7812525802},{"$f":"DM141*'SouthAfrica-IO-Data'!$AR18","v":1313600.6688511739},{"$f":"DI141*'SouthAfrica-IO-Data'!AS18","v":0},{"$f":"DL141*'SouthAfrica-IO-Data'!$AS18","v":1372990.1392512503},{"$f":"DM141*'SouthAfrica-IO-Data'!$AS18","v":1095061.6151162642},{"$f":"(DQ141*'Default-Data'!$F$19/wind_dollar_index)/'SouthAfrica-IO-Data'!$AT18","v":0},{"$f":"(DR141*'Default-Data'!$F$19/wind_dollar_index)/'SouthAfrica-IO-Data'!$AT18","v":106.9587089879571},{"$f":"(DS141*'Default-Data'!$F$19/wind_dollar_index)/'SouthAfrica-IO-Data'!$AT18","v":85.307514793206565},11266.486569549555,26380.162987505661,{"$f":"DJ141*'SouthAfrica-IO-Data'!AR18","v":0},{"$f":"'SouthAfrica-IO-Data'!$AR18*Calculations!DW141","v":2588.007880650865},{"$f":"'SouthAfrica-IO-Data'!$AR18*Calculations!DX141","v":6059.7480219823747},{"$f":"DJ141*'SouthAfrica-IO-Data'!AS18","v":0},{"$f":"DW141*'SouthAfrica-IO-Data'!$AS18","v":2157.4502487104328},{"$f":"DX141*'SouthAfrica-IO-Data'!$AS18","v":5051.6093768078144},{"$f":"(EB141*'Default-Data'!$F$19/wind_dollar_index)/'SouthAfrica-IO-Data'!$AT18","v":0},{"$f":"(EC141*'Default-Data'!$F$19/wind_dollar_index)/'SouthAfrica-IO-Data'!$AT18","v":0.16806973823836566},{"$f":"(ED141*'Default-Data'!$F$19/wind_dollar_index)/'SouthAfrica-IO-Data'!$AT18","v":0.39353058831833865},null,"TOBAC",0,0,null,59916.982326679179,134975.8653029062,{"$f":"EJ141*'Zambia-IO-Data'!BO16","v":0},{"$f":"EM141*'Zambia-IO-Data'!$BO16","v":17211.039799056558},{"$f":"EN141*'Zambia-IO-Data'!$BO16","v":38771.561908351025},{"$f":"EJ141*'Zambia-IO-Data'!BN16","v":0},{"$f":"EM141*'Zambia-IO-Data'!$BN16","v":12022.038189740839},{"$f":"EN141*'Zambia-IO-Data'!$BN16","v":27082.221840173057},{"$f":"(ER141*'Default-Data'!$F$19/wind_dollar_index)/'Zambia-IO-Data'!$BP16","v":0},{"$f":"(ES141*'Default-Data'!$F$19/wind_dollar_index)/'Zambia-IO-Data'!$BP16","v":116.41093590483342},{"$f":"(ET141*'Default-Data'!$F$19/wind_dollar_index)/'Zambia-IO-Data'!$BP16","v":262.24062351484082},81.801710000075545,306.6949006296021,{"$f":"EK141*'Zambia-IO-Data'!BO16","v":0},{"$f":"EX141*'Zambia-IO-Data'!$BO16","v":23.497386413188774},{"$f":"EY141*'Zambia-IO-Data'!$BO16","v":88.097529880996845},{"$f":"EK141*'Zambia-IO-Data'!BN16","v":0},{"$f":"EX141*'Zambia-IO-Data'!$BN16","v":16.413097646426785},{"$f":"EY141*'Zambia-IO-Data'!$BN16","v":61.536774129662696},{"$f":"(FC141*'Default-Data'!$F$19/wind_dollar_index)/'Zambia-IO-Data'!$BP16","v":0},{"$f":"(FD141*'Default-Data'!$F$19/wind_dollar_index)/'Zambia-IO-Data'!$BP16","v":0.158930127151688},{"$f":"(FE141*'Default-Data'!$F$19/wind_dollar_index)/'Zambia-IO-Data'!$BP16","v":0.59586846722143061},null,"TTL_C21T22: Pulp, paper, paper products, printing and publishing",0,0,null,2595848.2532786615,2689449.4809839912,{"$f":"FK141*CustomRegion1!C14","v":0},{"$f":"FN141*CustomRegion1!$C14","v":687222.82645505504},{"$f":"FO141*CustomRegion1!$C14","v":712002.74191508815},{"$f":"FK141*CustomRegion1!D14","v":0},{"$f":"FN141*CustomRegion1!$D14","v":203738.13610583913},{"$f":"FO141*CustomRegion1!$D14","v":211084.5361297295},{"$f":"(FS141*'Default-Data'!$C$58/wind_dollar_index)/CustomRegion1!$E14","v":0},{"$f":"(FT141*'Default-Data'!$C$58/wind_dollar_index)/CustomRegion1!$E14","v":63.37734666504462},{"$f":"(FU141*'Default-Data'!$C$58/wind_dollar_index)/CustomRegion1!$E14","v":65.662610238931066},7479.1404666205617,11738.428634129012,{"$f":"FL141*CustomRegion1!C14","v":0},{"$f":"FY141*CustomRegion1!$C14","v":1980.0217691590949},{"$f":"FZ141*CustomRegion1!$C14","v":3107.6223711837733},{"$f":"FL141*CustomRegion1!D14","v":0},{"$f":"FY141*CustomRegion1!$D14","v":587.00894261381632},{"$f":"FZ141*CustomRegion1!$D14","v":921.30407380639906},{"$f":"(GD141*'Default-Data'!$C$58/wind_dollar_index)/CustomRegion1!$E14","v":0},{"$f":"(GE141*'Default-Data'!$C$58/wind_dollar_index)/CustomRegion1!$E14","v":0.1826023834447501},{"$f":"(GF141*'Default-Data'!$C$58/wind_dollar_index)/CustomRegion1!$E14","v":0.28659243078189994},null,"C21T22 Pulp, paper, paper products, printing and publishing",0,0,null,12814441.46593537,3941576.4986161366,{"$f":"GL141*CustomRegion2!C18","v":0},{"$f":"GO141*CustomRegion2!$C18","v":4475568.1481455462},{"$f":"GP141*CustomRegion2!$C18","v":1376633.8765197026},{"$f":"GL141*CustomRegion2!D18","v":0},{"$f":"GO141*CustomRegion2!$D18","v":1721959.5742157639},{"$f":"GP141*CustomRegion2!$D18","v":529655.18687165668},{"$f":"(GT141*'Default-Data'!$C$59/wind_dollar_index)/CustomRegion2!$E18","v":0},{"$f":"(GU141*'Default-Data'!$C$59/wind_dollar_index)/CustomRegion2!$E18","v":233.4741605554421},{"$f":"(GV141*'Default-Data'!$C$59/wind_dollar_index)/CustomRegion2!$E18","v":71.813997256593552},0,0,{"$f":"GM141*CustomRegion2!C18","v":0},{"$f":"GZ141*CustomRegion2!$C18","v":0},{"$f":"HA141*CustomRegion2!$C18","v":0},{"$f":"GM141*CustomRegion2!D18","v":0},{"$f":"GZ141*CustomRegion2!$D18","v":0},{"$f":"HA141*CustomRegion2!$D18","v":0},{"$f":"(HE141*'Default-Data'!$C$59/wind_dollar_index)/CustomRegion2!$E18","v":0},{"$f":"(HF141*'Default-Data'!$C$59/wind_dollar_index)/CustomRegion2!$E18","v":0},{"$f":"(HG141*'Default-Data'!$C$59/wind_dollar_index)/CustomRegion2!$E18","v":0},null,"TOBAC",0,0,null,59916.982326679179,134975.8653029062,{"$f":"HM141*CustomRegion3!D17","v":0},{"$f":"HP141*CustomRegion3!$D17","v":17211.039799056558},{"$f":"HQ141*CustomRegion3!$D17","v":38771.561908351025},{"$f":"HM141*CustomRegion3!E17","v":0},{"$f":"HP141*CustomRegion3!$E17","v":12022.038189740839},{"$f":"HQ141*CustomRegion3!$E17","v":27082.221840173057},{"$f":"(HU141*'Default-Data'!$C$60/wind_dollar_index)/CustomRegion3!$F17","v":0},{"$f":"(HV141*'Default-Data'!$C$60/wind_dollar_index)/CustomRegion3!$F17","v":116.41093590483342},{"$f":"(HW141*'Default-Data'!$C$60/wind_dollar_index)/CustomRegion3!$F17","v":262.24062351484082},81.801710000075545,306.6949006296021,{"$f":"HN141*CustomRegion3!D17","v":0},{"$f":"IA141*CustomRegion3!$D17","v":23.497386413188774},{"$f":"IB141*CustomRegion3!$D17","v":88.097529880996845},{"$f":"HN141*CustomRegion3!E17","v":0},{"$f":"IA141*CustomRegion3!$E17","v":16.413097646426785},{"$f":"IB141*CustomRegion3!$E17","v":61.536774129662696},{"$f":"(IF141*'Default-Data'!$C$60/wind_dollar_index)/CustomRegion3!$F17","v":0},{"$f":"(IG141*'Default-Data'!$C$60/wind_dollar_index)/CustomRegion3!$F17","v":0.158930127151688},{"$f":"(IH141*'Default-Data'!$C$60/wind_dollar_index)/CustomRegion3!$F17","v":0.59586846722143061}]
[null,null,null,null,null,null,null,null,null,null,null,null,null,null,null,null,null,null,null,null,null,null,null,null,null,null,null,null,null,141,"TTL_C23: Coke, refined petroleum products and nuclear fuel",0,0,null,8111967.2786063366,2941986.2927785069,{"$f":"AF142*'Colombia-IO-Data'!AN19","v":0},{"$f":"AI142*'Colombia-IO-Data'!$AN19","v":4379035.6762904394},{"$f":"AJ142*'Colombia-IO-Data'!$AN19","v":1588155.1900746678},{"$f":"AK142*'Colombia-IO-Data'!$AO19","v":0},{"$f":"AL142*'Colombia-IO-Data'!$AO19","v":229507.36112483605},{"$f":"AM142*'Colombia-IO-Data'!$AO19","v":83235.975606281951},{"$f":"(Calculations!AN142*'Default-Data'!$F$19/wind_dollar_index)/'Colombia-IO-Data'!$AP19","v":0},{"$f":"(Calculations!AO142*'Default-Data'!$F$19/wind_dollar_index)/'Colombia-IO-Data'!$AP19","v":53.953387486019416},{"$f":"(Calculations!AP142*'Default-Data'!$F$19/wind_dollar_index)/'Colombia-IO-Data'!$AP19","v":19.567402207286378},15929.314062332051,15399.415925762492,{"$f":"AG142*'Colombia-IO-Data'!AN19","v":0},{"$f":"AT142*'Colombia-IO-Data'!$AN19","v":8599.0281003415475},{"$f":"AU142*'Colombia-IO-Data'!$AN19","v":8312.976299940723},{"$f":"AV142*'Colombia-IO-Data'!$AO19","v":0},{"$f":"AW142*'Colombia-IO-Data'!$AO19","v":450.67918908108152},{"$f":"AX142*'Colombia-IO-Data'!$AO19","v":435.68707695683963},{"$f":"(AY142*'Default-Data'!$F$19/wind_dollar_index)/'Colombia-IO-Data'!$AP19","v":0},{"$f":"(AZ142*'Default-Data'!$F$19/wind_dollar_index)/'Colombia-IO-Data'!$AP19","v":0.10594722888714042},{"$f":"(BA142*'Default-Data'!$F$19/wind_dollar_index)/'Colombia-IO-Data'!$AP19","v":0.10242283110439086},null,"DOM_C23: Coke, refined petroleum products and nuclear fuel",0,0,null,9719412.4177794494,4722468.0467745997,{"$f":"BG142*'Mexico-IO-Data'!AQ19","v":0},{"$f":"BJ142*'Mexico-IO-Data'!$AQ19","v":1219317.7381750424},{"$f":"BK142*'Mexico-IO-Data'!$AQ19","v":592442.09525092493},{"$f":"BG142*'Mexico-IO-Data'!AR19","v":0},{"$f":"BJ142*'Mexico-IO-Data'!$AR19","v":312104.48365858651},{"$f":"BK142*'Mexico-IO-Data'!$AR19","v":151645.32463264852},{"$f":"(BO142*'Default-Data'!$F$19/wind_dollar_index)/'Mexico-IO-Data'!$AS19","v":0},{"$f":"(BP142*'Default-Data'!$F$19/wind_dollar_index)/'Mexico-IO-Data'!$AS19","v":6.9019146967322094},{"$f":"(BQ142*'Default-Data'!$F$19/wind_dollar_index)/'Mexico-IO-Data'!$AS19","v":3.3535022711103846},227428.00527209998,17862.100103183911,{"$f":"BH142*'Mexico-IO-Data'!AQ19","v":0},{"$f":"BU142*'Mexico-IO-Data'!$AQ19","v":28531.251588703926},{"$f":"BV142*'Mexico-IO-Data'!$AQ19","v":2240.8325278007169},{"$f":"BH142*'Mexico-IO-Data'!AR19","v":0},{"$f":"BX142*'Mexico-IO-Data'!$AR19","v":916.1800284281062},{"$f":"BY142*'Mexico-IO-Data'!$AR19","v":71.956394995160693},{"$f":"(CA142*'Default-Data'!$F$19/wind_dollar_index)/'Mexico-IO-Data'!$AS19","v":2.0260511252307708E-2},{"$f":"(CB142*'Default-Data'!$F$19/wind_dollar_index)/'Mexico-IO-Data'!$AS19","v":1.5912520522590201E-3},{"$f":"(CC142*'Default-Data'!$F$19/wind_dollar_index)/'Mexico-IO-Data'!$AS19","v":4.4804329222190507E-7},null,"TTL_C23: Coke, refined petroleum products and nuclear fuel",0,0,null,23084464.348046381,5844974.5158380046,{"$f":"CH142*'Philippines-IO-Data'!AN19","v":0},{"$f":"CK142*'Philippines-IO-Data'!$AN19","v":3920951.8715932718},{"$f":"CL142*'Philippines-IO-Data'!$AN19","v":992782.99993257248},{"$f":"CH142*'Philippines-IO-Data'!AO19","v":0},{"$f":"CK142*'Philippines-IO-Data'!$AO19","v":533088.59033820184},{"$f":"CL142*'Philippines-IO-Data'!$AO19","v":134977.75725840009},{"$f":"(CP142*'Default-Data'!$F$19/wind_dollar_index)/'Philippines-IO-Data'!$AP19","v":0},{"$f":"(CQ142*'Default-Data'!$F$19/wind_dollar_index)/'Philippines-IO-Data'!$AP19","v":165.829240606643},{"$f":"(CR142*'Default-Data'!$F$19/wind_dollar_index)/'Philippines-IO-Data'!$AP19","v":41.987878545192466},348333.82423908566,25344.007864424028,{"$f":"CI142*'Philippines-IO-Data'!AN19","v":0},{"$f":"CV142*'Philippines-IO-Data'!$AN19","v":59165.339056484161},{"$f":"CW142*'Philippines-IO-Data'!$AN19","v":4304.740780268432},{"$f":"CI142*'Philippines-IO-Data'!AO19","v":0},{"$f":"CV142*'Philippines-IO-Data'!$AO19","v":8044.0587457877991},{"$f":"CW142*'Philippines-IO-Data'!$AO19","v":585.26813627839272},{"$f":"(DA142*'Default-Data'!$F$19/wind_dollar_index)/'Philippines-IO-Data'!$AP19","v":0},{"$f":"(DB142*'Default-Data'!$F$19/wind_dollar_index)/'Philippines-IO-Data'!$AP19","v":2.5022860691183393},{"$f":"(DC142*'Default-Data'!$F$19/wind_dollar_index)/'Philippines-IO-Data'!$AP19","v":0.1820608663350641},null,"DOM_C23: Coke, refined petroleum products and nuclear fuel",0,0,null,7763965.5942876898,8448277.0944798514,{"$f":"DI142*'SouthAfrica-IO-Data'!AR19","v":0},{"$f":"DL142*'SouthAfrica-IO-Data'!$AR19","v":1647297.710231822},{"$f":"DM142*'SouthAfrica-IO-Data'!$AR19","v":1792489.5910641162},{"$f":"DI142*'SouthAfrica-IO-Data'!AS19","v":0},{"$f":"DL142*'SouthAfrica-IO-Data'!$AS19","v":312356.40597426187},{"$f":"DM142*'SouthAfrica-IO-Data'!$AS19","v":339887.32148013997},{"$f":"(DQ142*'Default-Data'!$F$19/wind_dollar_index)/'SouthAfrica-IO-Data'!$AT19","v":0},{"$f":"(DR142*'Default-Data'!$F$19/wind_dollar_index)/'SouthAfrica-IO-Data'!$AT19","v":24.333195827134439},{"$f":"(DS142*'Default-Data'!$F$19/wind_dollar_index)/'SouthAfrica-IO-Data'!$AT19","v":26.477909831687384},12652.753489498464,38972.597705211279,{"$f":"DJ142*'SouthAfrica-IO-Data'!AR19","v":0},{"$f":"'SouthAfrica-IO-Data'!$AR19*Calculations!DW142","v":2684.5626243776205},{"$f":"'SouthAfrica-IO-Data'!$AR19*Calculations!DX142","v":8268.9020426384977},{"$f":"DJ142*'SouthAfrica-IO-Data'!AS19","v":0},{"$f":"DW142*'SouthAfrica-IO-Data'!$AS19","v":509.03994326891848},{"$f":"DX142*'SouthAfrica-IO-Data'!$AS19","v":1567.9281937618391},{"$f":"(EB142*'Default-Data'!$F$19/wind_dollar_index)/'SouthAfrica-IO-Data'!$AT19","v":0},{"$f":"(EC142*'Default-Data'!$F$19/wind_dollar_index)/'SouthAfrica-IO-Data'!$AT19","v":3.9655241213194942E-2},{"$f":"(ED142*'Default-Data'!$F$19/wind_dollar_index)/'SouthAfrica-IO-Data'!$AT19","v":0.12214477773455944},null,"COFFEE",0,0,null,972.00545599751376,83419.717178518142,{"$f":"EJ142*'Zambia-IO-Data'!BO17","v":0},{"$f":"EM142*'Zambia-IO-Data'!$BO17","v":310.28171875806299},{"$f":"EN142*'Zambia-IO-Data'!$BO17","v":26629.082238946125},{"$f":"EJ142*'Zambia-IO-Data'!BN17","v":0},{"$f":"EM142*'Zambia-IO-Data'!$BN17","v":246.75063757902467},{"$f":"EN142*'Zambia-IO-Data'!$BN17","v":21176.700473699726},{"$f":"(ER142*'Default-Data'!$F$19/wind_dollar_index)/'Zambia-IO-Data'!$BP17","v":0},{"$f":"(ES142*'Default-Data'!$F$19/wind_dollar_index)/'Zambia-IO-Data'!$BP17","v":2.3893180342914748},{"$f":"(ET142*'Default-Data'!$F$19/wind_dollar_index)/'Zambia-IO-Data'!$BP17","v":205.05670358154612},2.7710537973880087,189.48376872203835,{"$f":"EK142*'Zambia-IO-Data'!BO17","v":0},{"$f":"EX142*'Zambia-IO-Data'!$BO17","v":0.88457048231507851},{"$f":"EY142*'Zambia-IO-Data'!$BO17","v":60.486645494693335},{"$f":"EK142*'Zambia-IO-Data'!BN17","v":0},{"$f":"EX142*'Zambia-IO-Data'!$BN17","v":0.70345211238507444},{"$f":"EY142*'Zambia-IO-Data'!$BN17","v":48.1018295263139},{"$f":"(FC142*'Default-Data'!$F$19/wind_dollar_index)/'Zambia-IO-Data'!$BP17","v":0},{"$f":"(FD142*'Default-Data'!$F$19/wind_dollar_index)/'Zambia-IO-Data'!$BP17","v":6.811616921734623E-3},{"$f":"(FE142*'Default-Data'!$F$19/wind_dollar_index)/'Zambia-IO-Data'!$BP17","v":0.46577617750968586},null,"TTL_C23: Coke, refined petroleum products and nuclear fuel",0,0,null,38595841.715601869,11552531.58604078,{"$f":"FK142*CustomRegion1!C15","v":0},{"$f":"FN142*CustomRegion1!$C15","v":6555596.6787383547},{"$f":"FO142*CustomRegion1!$C15","v":1962225.3157353606},{"$f":"FK142*CustomRegion1!D15","v":0},{"$f":"FN142*CustomRegion1!$D15","v":891292.19300372514},{"$f":"FO142*CustomRegion1!$D15","v":266782.13906926633},{"$f":"(FS142*'Default-Data'!$C$58/wind_dollar_index)/CustomRegion1!$E15","v":0},{"$f":"(FT142*'Default-Data'!$C$58/wind_dollar_index)/CustomRegion1!$E15","v":277.25655773399421},{"$f":"(FU142*'Default-Data'!$C$58/wind_dollar_index)/CustomRegion1!$E15","v":82.988607017841744},479482.75453120749,50422.426048562746,{"$f":"FL142*CustomRegion1!C15","v":0},{"$f":"FY142*CustomRegion1!$C15","v":81441.300756668439},{"$f":"FZ142*CustomRegion1!$C15","v":8564.3705136314748},{"$f":"FL142*CustomRegion1!D15","v":0},{"$f":"FY142*CustomRegion1!$D15","v":11072.675625074717},{"$f":"FZ142*CustomRegion1!$D15","v":1164.4030209405896},{"$f":"(GD142*'Default-Data'!$C$58/wind_dollar_index)/CustomRegion1!$E15","v":0},{"$f":"(GE142*'Default-Data'!$C$58/wind_dollar_index)/CustomRegion1!$E15","v":3.4444057210545846},{"$f":"(GF142*'Default-Data'!$C$58/wind_dollar_index)/CustomRegion1!$E15","v":0.362213846295524},null,"C23 Coke, refined petroleum products and nuclear fuel",0,0,null,6783387.6687176256,6414225.2605452733,{"$f":"GL142*CustomRegion2!C19","v":0},{"$f":"GO142*CustomRegion2!$C19","v":1134292.5091812683},{"$f":"GP142*CustomRegion2!$C19","v":1072562.5632145538},{"$f":"GL142*CustomRegion2!D19","v":0},{"$f":"GO142*CustomRegion2!$D19","v":481194.92654395726},{"$f":"GP142*CustomRegion2!$D19","v":455007.55725906609},{"$f":"(GT142*'Default-Data'!$C$59/wind_dollar_index)/CustomRegion2!$E19","v":0},{"$f":"(GU142*'Default-Data'!$C$59/wind_dollar_index)/CustomRegion2!$E19","v":10.641200333218423},{"$f":"(GV142*'Default-Data'!$C$59/wind_dollar_index)/CustomRegion2!$E19","v":10.062089816069106},0,0,{"$f":"GM142*CustomRegion2!C19","v":0},{"$f":"GZ142*CustomRegion2!$C19","v":0},{"$f":"HA142*CustomRegion2!$C19","v":0},{"$f":"GM142*CustomRegion2!D19","v":0},{"$f":"GZ142*CustomRegion2!$D19","v":0},{"$f":"HA142*CustomRegion2!$D19","v":0},{"$f":"(HE142*'Default-Data'!$C$59/wind_dollar_index)/CustomRegion2!$E19","v":0},{"$f":"(HF142*'Default-Data'!$C$59/wind_dollar_index)/CustomRegion2!$E19","v":0},{"$f":"(HG142*'Default-Data'!$C$59/wind_dollar_index)/CustomRegion2!$E19","v":0},null,"COFFEE",0,0,null,972.00545599751376,83419.717178518142,{"$f":"HM142*CustomRegion3!D18","v":0},{"$f":"HP142*CustomRegion3!$D18","v":310.28171875806299},{"$f":"HQ142*CustomRegion3!$D18","v":26629.082238946125},{"$f":"HM142*CustomRegion3!E18","v":0},{"$f":"HP142*CustomRegion3!$E18","v":246.75063757902467},{"$f":"HQ142*CustomRegion3!$E18","v":21176.700473699726},{"$f":"(HU142*'Default-Data'!$C$60/wind_dollar_index)/CustomRegion3!$F18","v":0},{"$f":"(HV142*'Default-Data'!$C$60/wind_dollar_index)/CustomRegion3!$F18","v":2.3893180342914748},{"$f":"(HW142*'Default-Data'!$C$60/wind_dollar_index)/CustomRegion3!$F18","v":205.05670358154612},2.7710537973880087,189.48376872203835,{"$f":"HN142*CustomRegion3!D18","v":0},{"$f":"IA142*CustomRegion3!$D18","v":0.88457048231507851},{"$f":"IB142*CustomRegion3!$D18","v":60.486645494693335},{"$f":"HN142*CustomRegion3!E18","v":0},{"$f":"IA142*CustomRegion3!$E18","v":0.70345211238507444},{"$f":"IB142*CustomRegion3!$E18","v":48.1018295263139},{"$f":"(IF142*'Default-Data'!$C$60/wind_dollar_index)/CustomRegion3!$F18","v":0},{"$f":"(IG142*'Default-Data'!$C$60/wind_dollar_index)/CustomRegion3!$F18","v":6.811616921734623E-3},{"$f":"(IH142*'Default-Data'!$C$60/wind_dollar_index)/CustomRegion3!$F18","v":0.46577617750968586}]
[null,null,null,null,null,null,null,null,null,null,null,null,null,null,null,null,null,null,null,null,null,null,null,null,null,null,null,null,null,142,"TTL_C24: Chemicals and chemical products",0,0,null,5253684.1374148056,3480623.3145218939,{"$f":"AF143*'Colombia-IO-Data'!AN20","v":0},{"$f":"AI143*'Colombia-IO-Data'!$AN20","v":1624886.3782736619},{"$f":"AJ143*'Colombia-IO-Data'!$AN20","v":1076505.0322289311},{"$f":"AK143*'Colombia-IO-Data'!$AO20","v":0},{"$f":"AL143*'Colombia-IO-Data'!$AO20","v":596141.47441497492},{"$f":"AM143*'Colombia-IO-Data'!$AO20","v":394950.2597282604},{"$f":"(Calculations!AN143*'Default-Data'!$F$19/wind_dollar_index)/'Colombia-IO-Data'!$AP20","v":0},{"$f":"(Calculations!AO143*'Default-Data'!$F$19/wind_dollar_index)/'Colombia-IO-Data'!$AP20","v":140.14300808462158},{"$f":"(Calculations!AP143*'Default-Data'!$F$19/wind_dollar_index)/'Colombia-IO-Data'!$AP20","v":92.846278639543399},13583.159952825028,18218.83610837884,{"$f":"AG143*'Colombia-IO-Data'!AN20","v":0},{"$f":"AT143*'Colombia-IO-Data'!$AN20","v":4201.0693836874416},{"$f":"AU143*'Colombia-IO-Data'!$AN20","v":5634.8150833202171},{"$f":"AV143*'Colombia-IO-Data'!$AO20","v":0},{"$f":"AW143*'Colombia-IO-Data'!$AO20","v":1541.2965054035596},{"$f":"AX143*'Colombia-IO-Data'!$AO20","v":2067.3119159230896},{"$f":"(AY143*'Default-Data'!$F$19/wind_dollar_index)/'Colombia-IO-Data'!$AP20","v":0},{"$f":"(AZ143*'Default-Data'!$F$19/wind_dollar_index)/'Colombia-IO-Data'!$AP20","v":0.36233333510228283},{"$f":"(BA143*'Default-Data'!$F$19/wind_dollar_index)/'Colombia-IO-Data'!$AP20","v":0.48599086455268181},null,"DOM_C24: Chemicals and chemical products",0,0,null,5412401.6422453765,4499638.0535568874,{"$f":"BG143*'Mexico-IO-Data'!AQ20","v":0},{"$f":"BJ143*'Mexico-IO-Data'!$AQ20","v":1587718.6145339466},{"$f":"BK143*'Mexico-IO-Data'!$AQ20","v":1319961.0022536607},{"$f":"BG143*'Mexico-IO-Data'!AR20","v":0},{"$f":"BJ143*'Mexico-IO-Data'!$AR20","v":347559.71650091052},{"$f":"BK143*'Mexico-IO-Data'!$AR20","v":288946.2071780297},{"$f":"(BO143*'Default-Data'!$F$19/wind_dollar_index)/'Mexico-IO-Data'!$AS20","v":0},{"$f":"(BP143*'Default-Data'!$F$19/wind_dollar_index)/'Mexico-IO-Data'!$AS20","v":27.329766755195159},{"$f":"(BQ143*'Default-Data'!$F$19/wind_dollar_index)/'Mexico-IO-Data'!$AS20","v":22.720793210663011},291320.18441235361,17019.275629746844,{"$f":"BH143*'Mexico-IO-Data'!AQ20","v":0},{"$f":"BU143*'Mexico-IO-Data'!$AQ20","v":85458.2697578722},{"$f":"BV143*'Mexico-IO-Data'!$AQ20","v":4992.5749250240069},{"$f":"BH143*'Mexico-IO-Data'!AR20","v":0},{"$f":"BX143*'Mexico-IO-Data'!$AR20","v":5487.7398192094179},{"$f":"BY143*'Mexico-IO-Data'!$AR20","v":320.60036195522065},{"$f":"(CA143*'Default-Data'!$F$19/wind_dollar_index)/'Mexico-IO-Data'!$AS20","v":0.43151908046799586},{"$f":"(CB143*'Default-Data'!$F$19/wind_dollar_index)/'Mexico-IO-Data'!$AS20","v":2.5209863795720901E-2},{"$f":"(CC143*'Default-Data'!$F$19/wind_dollar_index)/'Mexico-IO-Data'!$AS20","v":3.3931768440649313E-5},null,"TTL_C24: Chemicals and chemical products",0,0,null,2791448.7305280478,2869741.6921493183,{"$f":"CH143*'Philippines-IO-Data'!AN20","v":0},{"$f":"CK143*'Philippines-IO-Data'!$AN20","v":753329.34070376633},{"$f":"CL143*'Philippines-IO-Data'!$AN20","v":774458.29231762595},{"$f":"CH143*'Philippines-IO-Data'!AO20","v":0},{"$f":"CK143*'Philippines-IO-Data'!$AO20","v":195358.17519836381},{"$f":"CL143*'Philippines-IO-Data'!$AO20","v":200837.46985491071},{"$f":"(CP143*'Default-Data'!$F$19/wind_dollar_index)/'Philippines-IO-Data'!$AP20","v":0},{"$f":"(CQ143*'Default-Data'!$F$19/wind_dollar_index)/'Philippines-IO-Data'!$AP20","v":60.770570645474649},{"$f":"(CR143*'Default-Data'!$F$19/wind_dollar_index)/'Philippines-IO-Data'!$AP20","v":62.475028944570411},13907.400342655719,12443.297368982805,{"$f":"CI143*'Philippines-IO-Data'!AN20","v":0},{"$f":"CV143*'Philippines-IO-Data'!$AN20","v":3753.1954703156234},{"$f":"CW143*'Philippines-IO-Data'!$AN20","v":3358.0774386579906},{"$f":"CI143*'Philippines-IO-Data'!AO20","v":0},{"$f":"CV143*'Philippines-IO-Data'!$AO20","v":973.3026163014539},{"$f":"CW143*'Philippines-IO-Data'!$AO20","v":870.83808521005449},{"$f":"(DA143*'Default-Data'!$F$19/wind_dollar_index)/'Philippines-IO-Data'!$AP20","v":0},{"$f":"(DB143*'Default-Data'!$F$19/wind_dollar_index)/'Philippines-IO-Data'!$AP20","v":0.30276775130252231},{"$f":"(DC143*'Default-Data'!$F$19/wind_dollar_index)/'Philippines-IO-Data'!$AP20","v":0.27089384574918324},null,"DOM_C24: Chemicals and chemical products",0,0,null,3612212.992689841,2988744.5831394396,{"$f":"DI143*'SouthAfrica-IO-Data'!AR20","v":0},{"$f":"DL143*'SouthAfrica-IO-Data'!$AR20","v":837018.28454718157},{"$f":"DM143*'SouthAfrica-IO-Data'!$AR20","v":692548.82505314529},{"$f":"DI143*'SouthAfrica-IO-Data'!AS20","v":0},{"$f":"DL143*'SouthAfrica-IO-Data'!$AS20","v":582797.84518291149},{"$f":"DM143*'SouthAfrica-IO-Data'!$AS20","v":482206.86498298228},{"$f":"(DQ143*'Default-Data'!$F$19/wind_dollar_index)/'SouthAfrica-IO-Data'!$AT20","v":0},{"$f":"(DR143*'Default-Data'!$F$19/wind_dollar_index)/'SouthAfrica-IO-Data'!$AT20","v":45.401130962034138},{"$f":"(DS143*'Default-Data'!$F$19/wind_dollar_index)/'SouthAfrica-IO-Data'!$AT20","v":37.564890139587327},8992.845083143442,13787.324797671561,{"$f":"DJ143*'SouthAfrica-IO-Data'!AR20","v":0},{"$f":"'SouthAfrica-IO-Data'!$AR20*Calculations!DW143","v":2083.8128260776107},{"$f":"'SouthAfrica-IO-Data'!$AR20*Calculations!DX143","v":3194.7847410981171},{"$f":"DJ143*'SouthAfrica-IO-Data'!AS20","v":0},{"$f":"DW143*'SouthAfrica-IO-Data'!$AS20","v":1450.9140925870518},{"$f":"DX143*'SouthAfrica-IO-Data'!$AS20","v":2224.4599637898054},{"$f":"(EB143*'Default-Data'!$F$19/wind_dollar_index)/'SouthAfrica-IO-Data'!$AT20","v":0},{"$f":"(EC143*'Default-Data'!$F$19/wind_dollar_index)/'SouthAfrica-IO-Data'!$AT20","v":0.11302914256920651},{"$f":"(ED143*'Default-Data'!$F$19/wind_dollar_index)/'SouthAfrica-IO-Data'!$AT20","v":0.17328993058326417},null,"WHEAT",0,0,null,5448.1541512584508,467572.97054113657,{"$f":"EJ143*'Zambia-IO-Data'!BO18","v":0},{"$f":"EM143*'Zambia-IO-Data'!$BO18","v":1177.1439516325547},{"$f":"EN143*'Zambia-IO-Data'!$BO18","v":101025.1690643207},{"$f":"EJ143*'Zambia-IO-Data'!BN18","v":0},{"$f":"EM143*'Zambia-IO-Data'!$BN18","v":712.89181359881218},{"$f":"EN143*'Zambia-IO-Data'!$BN18","v":61181.995535471462},{"$f":"(ER143*'Default-Data'!$F$19/wind_dollar_index)/'Zambia-IO-Data'!$BP18","v":0},{"$f":"(ES143*'Default-Data'!$F$19/wind_dollar_index)/'Zambia-IO-Data'!$BP18","v":6.9030227578840169},{"$f":"(ET143*'Default-Data'!$F$19/wind_dollar_index)/'Zambia-IO-Data'!$BP18","v":592.43310064406887},15.531937764800562,1062.0689161663618,{"$f":"EK143*'Zambia-IO-Data'!BO18","v":0},{"$f":"EX143*'Zambia-IO-Data'!$BO18","v":3.3558754193372153},{"$f":"EY143*'Zambia-IO-Data'!$BO18","v":229.47368341136132},{"$f":"EK143*'Zambia-IO-Data'!BN18","v":0},{"$f":"EX143*'Zambia-IO-Data'!$BN18","v":2.032356459535003},{"$f":"EY143*'Zambia-IO-Data'!$BN18","v":138.97188199747856},{"$f":"(FC143*'Default-Data'!$F$19/wind_dollar_index)/'Zambia-IO-Data'!$BP18","v":0},{"$f":"(FD143*'Default-Data'!$F$19/wind_dollar_index)/'Zambia-IO-Data'!$BP18","v":1.9679567957835906E-2},{"$f":"(FE143*'Default-Data'!$F$19/wind_dollar_index)/'Zambia-IO-Data'!$BP18","v":1.3456825367256049},null,"TTL_C24: Chemicals and chemical products",0,0,null,8685040.4752122425,7507229.1164705753,{"$f":"FK143*CustomRegion1!C16","v":0},{"$f":"FN143*CustomRegion1!$C16","v":2343835.207727246},{"$f":"FO143*CustomRegion1!$C16","v":2025978.8041147662},{"$f":"FK143*CustomRegion1!D16","v":0},{"$f":"FN143*CustomRegion1!$D16","v":607818.31319554173},{"$f":"FO143*CustomRegion1!$D16","v":525389.76086166047},{"$f":"(FS143*'Default-Data'!$C$58/wind_dollar_index)/CustomRegion1!$E16","v":0},{"$f":"(FT143*'Default-Data'!$C$58/wind_dollar_index)/CustomRegion1!$E16","v":189.07560793991419},{"$f":"(FU143*'Default-Data'!$C$58/wind_dollar_index)/CustomRegion1!$E16","v":163.43434589534382},41768.471102538133,32766.2125081091,{"$f":"FL143*CustomRegion1!C16","v":0},{"$f":"FY143*CustomRegion1!$C16","v":11272.073333737057},{"$f":"FZ143*CustomRegion1!$C16","v":8842.6303503786712},{"$f":"FL143*CustomRegion1!D16","v":0},{"$f":"FY143*CustomRegion1!$D16","v":2923.146037460584},{"$f":"FZ143*CustomRegion1!$D16","v":2293.1273692191785},{"$f":"(GD143*'Default-Data'!$C$58/wind_dollar_index)/CustomRegion1!$E16","v":0},{"$f":"(GE143*'Default-Data'!$C$58/wind_dollar_index)/CustomRegion1!$E16","v":0.90931056556073675},{"$f":"(GF143*'Default-Data'!$C$58/wind_dollar_index)/CustomRegion1!$E16","v":0.71332903600633479},null,"C24 Chemicals and chemical products",0,0,null,29830436.61726341,14372990.094615359,{"$f":"GL143*CustomRegion2!C20","v":0},{"$f":"GO143*CustomRegion2!$C20","v":9828926.3313277103},{"$f":"GP143*CustomRegion2!$C20","v":4735802.6506095845},{"$f":"GL143*CustomRegion2!D20","v":0},{"$f":"GO143*CustomRegion2!$D20","v":3484640.3636769922},{"$f":"GP143*CustomRegion2!$D20","v":1678979.8310039267},{"$f":"(GT143*'Default-Data'!$C$59/wind_dollar_index)/CustomRegion2!$E20","v":0},{"$f":"(GU143*'Default-Data'!$C$59/wind_dollar_index)/CustomRegion2!$E20","v":274.00876408754101},{"$f":"(GV143*'Default-Data'!$C$59/wind_dollar_index)/CustomRegion2!$E20","v":132.02372136212193},0,0,{"$f":"GM143*CustomRegion2!C20","v":0},{"$f":"GZ143*CustomRegion2!$C20","v":0},{"$f":"HA143*CustomRegion2!$C20","v":0},{"$f":"GM143*CustomRegion2!D20","v":0},{"$f":"GZ143*CustomRegion2!$D20","v":0},{"$f":"HA143*CustomRegion2!$D20","v":0},{"$f":"(HE143*'Default-Data'!$C$59/wind_dollar_index)/CustomRegion2!$E20","v":0},{"$f":"(HF143*'Default-Data'!$C$59/wind_dollar_index)/CustomRegion2!$E20","v":0},{"$f":"(HG143*'Default-Data'!$C$59/wind_dollar_index)/CustomRegion2!$E20","v":0},null,"WHEAT",0,0,null,5448.1541512584508,467572.97054113657,{"$f":"HM143*CustomRegion3!D19","v":0},{"$f":"HP143*CustomRegion3!$D19","v":1177.1439516325547},{"$f":"HQ143*CustomRegion3!$D19","v":101025.1690643207},{"$f":"HM143*CustomRegion3!E19","v":0},{"$f":"HP143*CustomRegion3!$E19","v":712.89181359881218},{"$f":"HQ143*CustomRegion3!$E19","v":61181.995535471462},{"$f":"(HU143*'Default-Data'!$C$60/wind_dollar_index)/CustomRegion3!$F19","v":0},{"$f":"(HV143*'Default-Data'!$C$60/wind_dollar_index)/CustomRegion3!$F19","v":6.9030227578840169},{"$f":"(HW143*'Default-Data'!$C$60/wind_dollar_index)/CustomRegion3!$F19","v":592.43310064406887},15.531937764800562,1062.0689161663618,{"$f":"HN143*CustomRegion3!D19","v":0},{"$f":"IA143*CustomRegion3!$D19","v":3.3558754193372153},{"$f":"IB143*CustomRegion3!$D19","v":229.47368341136132},{"$f":"HN143*CustomRegion3!E19","v":0},{"$f":"IA143*CustomRegion3!$E19","v":2.032356459535003},{"$f":"IB143*CustomRegion3!$E19","v":138.97188199747856},{"$f":"(IF143*'Default-Data'!$C$60/wind_dollar_index)/CustomRegion3!$F19","v":0},{"$f":"(IG143*'Default-Data'!$C$60/wind_dollar_index)/CustomRegion3!$F19","v":1.9679567957835906E-2},{"$f":"(IH143*'Default-Data'!$C$60/wind_dollar_index)/CustomRegion3!$F19","v":1.3456825367256049}]
[null,null,null,null,null,null,null,null,null,null,null,null,null,null,null,null,null,null,null,null,null,null,null,null,null,null,null,null,null,143,"TTL_C25: Rubber and plastics products",0,0,null,6141045.562468769,940120.56799902953,{"$f":"AF144*'Colombia-IO-Data'!AN21","v":0},{"$f":"AI144*'Colombia-IO-Data'!$AN21","v":1545644.5768083164},{"$f":"AJ144*'Colombia-IO-Data'!$AN21","v":236619.68352006408},{"$f":"AK144*'Colombia-IO-Data'!$AO21","v":0},{"$f":"AL144*'Colombia-IO-Data'!$AO21","v":895158.26425376942},{"$f":"AM144*'Colombia-IO-Data'!$AO21","v":137038.01531493015},{"$f":"(Calculations!AN144*'Default-Data'!$F$19/wind_dollar_index)/'Colombia-IO-Data'!$AP21","v":0},{"$f":"(Calculations!AO144*'Default-Data'!$F$19/wind_dollar_index)/'Colombia-IO-Data'!$AP21","v":210.43691346495009},{"$f":"(Calculations!AP144*'Default-Data'!$F$19/wind_dollar_index)/'Colombia-IO-Data'!$AP21","v":32.215372545631979},9231.0114867269331,4920.929673437824,{"$f":"AG144*'Colombia-IO-Data'!AN21","v":0},{"$f":"AT144*'Colombia-IO-Data'!$AN21","v":2323.3605251381518},{"$f":"AU144*'Colombia-IO-Data'!$AN21","v":1238.5526512111712},{"$f":"AV144*'Colombia-IO-Data'!$AO21","v":0},{"$f":"AW144*'Colombia-IO-Data'!$AO21","v":1345.5715538516836},{"$f":"AX144*'Colombia-IO-Data'!$AO21","v":717.30633166294353},{"$f":"(AY144*'Default-Data'!$F$19/wind_dollar_index)/'Colombia-IO-Data'!$AP21","v":0},{"$f":"(AZ144*'Default-Data'!$F$19/wind_dollar_index)/'Colombia-IO-Data'!$AP21","v":0.31632163377817224},{"$f":"(BA144*'Default-Data'!$F$19/wind_dollar_index)/'Colombia-IO-Data'!$AP21","v":0.16862686350759457},null,"DOM_C25: Rubber and plastics products",0,0,null,2814239.6712292857,761039.06855120603,{"$f":"BG144*'Mexico-IO-Data'!AQ21","v":0},{"$f":"BJ144*'Mexico-IO-Data'!$AQ21","v":868041.71026086772},{"$f":"BK144*'Mexico-IO-Data'!$AQ21","v":234739.65682246405},{"$f":"BG144*'Mexico-IO-Data'!AR21","v":0},{"$f":"BJ144*'Mexico-IO-Data'!$AR21","v":303467.96913827269},{"$f":"BK144*'Mexico-IO-Data'!$AR21","v":82065.142826742856},{"$f":"(BO144*'Default-Data'!$F$19/wind_dollar_index)/'Mexico-IO-Data'!$AS21","v":0},{"$f":"(BP144*'Default-Data'!$F$19/wind_dollar_index)/'Mexico-IO-Data'!$AS21","v":55.564655036035759},{"$f":"(BQ144*'Default-Data'!$F$19/wind_dollar_index)/'Mexico-IO-Data'!$AS21","v":15.026038380918154},3118.6282858974687,2878.5278990251531,{"$f":"BH144*'Mexico-IO-Data'!AQ21","v":0},{"$f":"BU144*'Mexico-IO-Data'!$AQ21","v":961.92924100734854},{"$f":"BV144*'Mexico-IO-Data'!$AQ21","v":887.87117389044863},{"$f":"BH144*'Mexico-IO-Data'!AR21","v":0},{"$f":"BX144*'Mexico-IO-Data'!$AR21","v":103.72773726685088},{"$f":"BY144*'Mexico-IO-Data'!$AR21","v":95.741832066227175},{"$f":"(CA144*'Default-Data'!$F$19/wind_dollar_index)/'Mexico-IO-Data'!$AS21","v":1.8992435858279939E-2},{"$f":"(CB144*'Default-Data'!$F$19/wind_dollar_index)/'Mexico-IO-Data'!$AS21","v":1.7530225303132498E-2},{"$f":"(CC144*'Default-Data'!$F$19/wind_dollar_index)/'Mexico-IO-Data'!$AS21","v":3.4774943456339473E-6},null,"TTL_C25: Rubber and plastics products",0,0,null,2276192.4292334463,736363.47889319202,{"$f":"CH144*'Philippines-IO-Data'!AN21","v":0},{"$f":"CK144*'Philippines-IO-Data'!$AN21","v":700027.10172720719},{"$f":"CL144*'Philippines-IO-Data'!$AN21","v":226463.45068503768},{"$f":"CH144*'Philippines-IO-Data'!AO21","v":0},{"$f":"CK144*'Philippines-IO-Data'!$AO21","v":197808.32635109001},{"$f":"CL144*'Philippines-IO-Data'!$AO21","v":63992.316939118398},{"$f":"(CP144*'Default-Data'!$F$19/wind_dollar_index)/'Philippines-IO-Data'!$AP21","v":0},{"$f":"(CQ144*'Default-Data'!$F$19/wind_dollar_index)/'Philippines-IO-Data'!$AP21","v":61.532745474184289},{"$f":"(CR144*'Default-Data'!$F$19/wind_dollar_index)/'Philippines-IO-Data'!$AP21","v":19.906254823314242},834.95430746720626,3192.8970348073844,{"$f":"CI144*'Philippines-IO-Data'!AN21","v":0},{"$f":"CV144*'Philippines-IO-Data'!$AN21","v":256.78437219288827},{"$f":"CW144*'Philippines-IO-Data'!$AN21","v":981.95320777089444},{"$f":"CI144*'Philippines-IO-Data'!AO21","v":0},{"$f":"CV144*'Philippines-IO-Data'!$AO21","v":72.560171986576179},{"$f":"CW144*'Philippines-IO-Data'!$AO21","v":277.47285798648608},{"$f":"(DA144*'Default-Data'!$F$19/wind_dollar_index)/'Philippines-IO-Data'!$AP21","v":0},{"$f":"(DB144*'Default-Data'!$F$19/wind_dollar_index)/'Philippines-IO-Data'!$AP21","v":2.2571479556873691E-2},{"$f":"(DC144*'Default-Data'!$F$19/wind_dollar_index)/'Philippines-IO-Data'!$AP21","v":8.6314196482168676E-2},null,"DOM_C25: Rubber and plastics products",0,0,null,5411774.7996969195,1655682.390854625,{"$f":"DI144*'SouthAfrica-IO-Data'!AR21","v":0},{"$f":"DL144*'SouthAfrica-IO-Data'!$AR21","v":1593904.5035509923},{"$f":"DM144*'SouthAfrica-IO-Data'!$AR21","v":487640.32446085068},{"$f":"DI144*'SouthAfrica-IO-Data'!AS21","v":0},{"$f":"DL144*'SouthAfrica-IO-Data'!$AS21","v":1504573.5836416483},{"$f":"DM144*'SouthAfrica-IO-Data'!$AS21","v":460310.35665416572},{"$f":"(DQ144*'Default-Data'!$F$19/wind_dollar_index)/'SouthAfrica-IO-Data'!$AT21","v":0},{"$f":"(DR144*'Default-Data'!$F$19/wind_dollar_index)/'SouthAfrica-IO-Data'!$AT21","v":117.20932545914367},{"$f":"(DS144*'Default-Data'!$F$19/wind_dollar_index)/'SouthAfrica-IO-Data'!$AT21","v":35.859107850814681},3737.8665023954386,7637.799166002902,{"$f":"DJ144*'SouthAfrica-IO-Data'!AR21","v":0},{"$f":"'SouthAfrica-IO-Data'!$AR21*Calculations!DW144","v":1100.896188838853},{"$f":"'SouthAfrica-IO-Data'!$AR21*Calculations!DX144","v":2249.5249596475865},{"$f":"DJ144*'SouthAfrica-IO-Data'!AS21","v":0},{"$f":"DW144*'SouthAfrica-IO-Data'!$AS21","v":1039.1960875752145},{"$f":"DX144*'SouthAfrica-IO-Data'!$AS21","v":2123.4495683323253},{"$f":"(EB144*'Default-Data'!$F$19/wind_dollar_index)/'SouthAfrica-IO-Data'!$AT21","v":0},{"$f":"(EC144*'Default-Data'!$F$19/wind_dollar_index)/'SouthAfrica-IO-Data'!$AT21","v":8.0955477198835765E-2},{"$f":"(ED144*'Default-Data'!$F$19/wind_dollar_index)/'SouthAfrica-IO-Data'!$AT21","v":0.165421016463905},null,"HORTI",0,0,null,56941.390123103607,4010484.5469383216,{"$f":"EJ144*'Zambia-IO-Data'!BO19","v":0},{"$f":"EM144*'Zambia-IO-Data'!$BO19","v":27449.607812450922},{"$f":"EN144*'Zambia-IO-Data'!$BO19","v":1933325.2615250971},{"$f":"EJ144*'Zambia-IO-Data'!BN19","v":0},{"$f":"EM144*'Zambia-IO-Data'!$BN19","v":23125.452024573486},{"$f":"EN144*'Zambia-IO-Data'!$BN19","v":1628767.1900002507},{"$f":"(ER144*'Default-Data'!$F$19/wind_dollar_index)/'Zambia-IO-Data'!$BP19","v":0},{"$f":"(ES144*'Default-Data'!$F$19/wind_dollar_index)/'Zambia-IO-Data'!$BP19","v":223.92671449839716},{"$f":"(ET144*'Default-Data'!$F$19/wind_dollar_index)/'Zambia-IO-Data'!$BP19","v":15771.561358107963},252.67866909897214,8765.2507337485749,{"$f":"EK144*'Zambia-IO-Data'!BO19","v":0},{"$f":"EX144*'Zambia-IO-Data'!$BO19","v":121.80823745861866},{"$f":"EY144*'Zambia-IO-Data'!$BO19","v":4225.4446984702799},{"$f":"EK144*'Zambia-IO-Data'!BN19","v":0},{"$f":"EX144*'Zambia-IO-Data'!$BN19","v":102.61970119184839},{"$f":"EY144*'Zambia-IO-Data'!$BN19","v":3559.8074597131381},{"$f":"(FC144*'Default-Data'!$F$19/wind_dollar_index)/'Zambia-IO-Data'!$BP19","v":0},{"$f":"(FD144*'Default-Data'!$F$19/wind_dollar_index)/'Zambia-IO-Data'!$BP19","v":0.99367971299673152},{"$f":"(FE144*'Default-Data'!$F$19/wind_dollar_index)/'Zambia-IO-Data'!$BP19","v":34.470071670529876},null,"TTL_C25: Rubber and plastics products",0,0,null,3960235.9602041482,1583257.7300628717,{"$f":"FK144*CustomRegion1!C17","v":0},{"$f":"FN144*CustomRegion1!$C17","v":1217942.9409275348},{"$f":"FO144*CustomRegion1!$C17","v":486919.8692644625},{"$f":"FK144*CustomRegion1!D17","v":0},{"$f":"FN144*CustomRegion1!$D17","v":344157.03926543653},{"$f":"FO144*CustomRegion1!$D17","v":137590.10782389462},{"$f":"(FS144*'Default-Data'!$C$58/wind_dollar_index)/CustomRegion1!$E17","v":0},{"$f":"(FT144*'Default-Data'!$C$58/wind_dollar_index)/CustomRegion1!$E17","v":107.05781647776556},{"$f":"(FU144*'Default-Data'!$C$58/wind_dollar_index)/CustomRegion1!$E17","v":42.800509162927987},3838.1550255168386,6910.3204968834052,{"$f":"FL144*CustomRegion1!C17","v":0},{"$f":"FY144*CustomRegion1!$C17","v":1180.3978011635447},{"$f":"FZ144*CustomRegion1!$C17","v":2125.2208588834033},{"$f":"FL144*CustomRegion1!D17","v":0},{"$f":"FY144*CustomRegion1!$D17","v":333.54781964949836},{"$f":"FZ144*CustomRegion1!$D17","v":600.52872265218662},{"$f":"(GD144*'Default-Data'!$C$58/wind_dollar_index)/CustomRegion1!$E17","v":0},{"$f":"(GE144*'Default-Data'!$C$58/wind_dollar_index)/CustomRegion1!$E17","v":0.10375757921096533},{"$f":"(GF144*'Default-Data'!$C$58/wind_dollar_index)/CustomRegion1!$E17","v":0.18680801623743365},null,"C25 Rubber and plastics products",0,0,null,20883779.209962636,3765994.5113455765,{"$f":"GL144*CustomRegion2!C21","v":0},{"$f":"GO144*CustomRegion2!$C21","v":6816116.7730818782},{"$f":"GP144*CustomRegion2!$C21","v":1229157.7160455338},{"$f":"GL144*CustomRegion2!D21","v":0},{"$f":"GO144*CustomRegion2!$D21","v":3094963.7221067077},{"$f":"GP144*CustomRegion2!$D21","v":558118.15826453525},{"$f":"(GT144*'Default-Data'!$C$59/wind_dollar_index)/CustomRegion2!$E21","v":0},{"$f":"(GU144*'Default-Data'!$C$59/wind_dollar_index)/CustomRegion2!$E21","v":566.68449080880578},{"$f":"(GV144*'Default-Data'!$C$59/wind_dollar_index)/CustomRegion2!$E21","v":102.19082765597021},0,0,{"$f":"GM144*CustomRegion2!C21","v":0},{"$f":"GZ144*CustomRegion2!$C21","v":0},{"$f":"HA144*CustomRegion2!$C21","v":0},{"$f":"GM144*CustomRegion2!D21","v":0},{"$f":"GZ144*CustomRegion2!$D21","v":0},{"$f":"HA144*CustomRegion2!$D21","v":0},{"$f":"(HE144*'Default-Data'!$C$59/wind_dollar_index)/CustomRegion2!$E21","v":0},{"$f":"(HF144*'Default-Data'!$C$59/wind_dollar_index)/CustomRegion2!$E21","v":0},{"$f":"(HG144*'Default-Data'!$C$59/wind_dollar_index)/CustomRegion2!$E21","v":0},null,"HORTI",0,0,null,56941.390123103607,4010484.5469383216,{"$f":"HM144*CustomRegion3!D20","v":0},{"$f":"HP144*CustomRegion3!$D20","v":27449.607812450922},{"$f":"HQ144*CustomRegion3!$D20","v":1933325.2615250971},{"$f":"HM144*CustomRegion3!E20","v":0},{"$f":"HP144*CustomRegion3!$E20","v":23125.452024573486},{"$f":"HQ144*CustomRegion3!$E20","v":1628767.1900002507},{"$f":"(HU144*'Default-Data'!$C$60/wind_dollar_index)/CustomRegion3!$F20","v":0},{"$f":"(HV144*'Default-Data'!$C$60/wind_dollar_index)/CustomRegion3!$F20","v":223.92671449839716},{"$f":"(HW144*'Default-Data'!$C$60/wind_dollar_index)/CustomRegion3!$F20","v":15771.561358107963},252.67866909897214,8765.2507337485749,{"$f":"HN144*CustomRegion3!D20","v":0},{"$f":"IA144*CustomRegion3!$D20","v":121.80823745861866},{"$f":"IB144*CustomRegion3!$D20","v":4225.4446984702799},{"$f":"HN144*CustomRegion3!E20","v":0},{"$f":"IA144*CustomRegion3!$E20","v":102.61970119184839},{"$f":"IB144*CustomRegion3!$E20","v":3559.8074597131381},{"$f":"(IF144*'Default-Data'!$C$60/wind_dollar_index)/CustomRegion3!$F20","v":0},{"$f":"(IG144*'Default-Data'!$C$60/wind_dollar_index)/CustomRegion3!$F20","v":0.99367971299673152},{"$f":"(IH144*'Default-Data'!$C$60/wind_dollar_index)/CustomRegion3!$F20","v":34.470071670529876}]
[null,null,null,null,null,null,null,null,null,null,null,null,null,null,null,null,null,null,null,null,null,null,null,null,null,null,null,null,null,144,"TTL_C26: Other non-metallic mineral products",{"$f":"'Wind-Inputs'!B14*'Wind-Inputs'!C14","v":0},{"$f":"0.5*'Wind-Inputs'!C34*'Wind-Inputs'!B34","v":0},null,27515524.432850435,334606.68080623075,{"$f":"AF145*'Colombia-IO-Data'!AN22","v":0},{"$f":"AI145*'Colombia-IO-Data'!$AN22","v":12156924.326170377},{"$f":"AJ145*'Colombia-IO-Data'!$AN22","v":147836.11003015857},{"$f":"AK145*'Colombia-IO-Data'!$AO22","v":0},{"$f":"AL145*'Colombia-IO-Data'!$AO22","v":3598097.2259282824},{"$f":"AM145*'Colombia-IO-Data'!$AO22","v":43755.203464288388},{"$f":"(Calculations!AN145*'Default-Data'!$F$19/wind_dollar_index)/'Colombia-IO-Data'!$AP22","v":0},{"$f":"(Calculations!AO145*'Default-Data'!$F$19/wind_dollar_index)/'Colombia-IO-Data'!$AP22","v":845.85319133745418},{"$f":"(Calculations!AP145*'Default-Data'!$F$19/wind_dollar_index)/'Colombia-IO-Data'!$AP22","v":10.286125183384817},8911.6588762464835,1751.4518887875638,{"$f":"AG145*'Colombia-IO-Data'!AN22","v":0},{"$f":"AT145*'Colombia-IO-Data'!$AN22","v":3937.3540869106328},{"$f":"AU145*'Colombia-IO-Data'!$AN22","v":773.82744875100468},{"$f":"AV145*'Colombia-IO-Data'!$AO22","v":0},{"$f":"AW145*'Colombia-IO-Data'!$AO22","v":1165.3426835201296},{"$f":"AX145*'Colombia-IO-Data'!$AO22","v":229.03049504917419},{"$f":"(AY145*'Default-Data'!$F$19/wind_dollar_index)/'Colombia-IO-Data'!$AP22","v":0},{"$f":"(AZ145*'Default-Data'!$F$19/wind_dollar_index)/'Colombia-IO-Data'!$AP22","v":0.27395280504210079},{"$f":"(BA145*'Default-Data'!$F$19/wind_dollar_index)/'Colombia-IO-Data'!$AP22","v":5.3841284152893076E-2},null,"DOM_C26: Other non-metallic mineral products",0,0,null,14210100.085522456,772764.00000537932,{"$f":"BG145*'Mexico-IO-Data'!AQ22","v":0},{"$f":"BJ145*'Mexico-IO-Data'!$AQ22","v":7772627.7315830048},{"$f":"BK145*'Mexico-IO-Data'!$AQ22","v":422685.75592442678},{"$f":"BG145*'Mexico-IO-Data'!AR22","v":0},{"$f":"BJ145*'Mexico-IO-Data'!$AR22","v":1680001.0437605078},{"$f":"BK145*'Mexico-IO-Data'!$AR22","v":91360.674363740793},{"$f":"(BO145*'Default-Data'!$F$19/wind_dollar_index)/'Mexico-IO-Data'!$AS22","v":0},{"$f":"(BP145*'Default-Data'!$F$19/wind_dollar_index)/'Mexico-IO-Data'!$AS22","v":408.48799808731309},{"$f":"(BQ145*'Default-Data'!$F$19/wind_dollar_index)/'Mexico-IO-Data'!$AS22","v":22.214116540793942},3781.4144234670271,2922.8758749697258,{"$f":"BH145*'Mexico-IO-Data'!AQ22","v":0},{"$f":"BU145*'Mexico-IO-Data'!$AQ22","v":2068.3546516602278},{"$f":"BV145*'Mexico-IO-Data'!$AQ22","v":1598.7520105442911},{"$f":"BH145*'Mexico-IO-Data'!AR22","v":0},{"$f":"BX145*'Mexico-IO-Data'!$AR22","v":244.53296970063718},{"$f":"BY145*'Mexico-IO-Data'!$AR22","v":189.01380217336225},{"$f":"(CA145*'Default-Data'!$F$19/wind_dollar_index)/'Mexico-IO-Data'!$AS22","v":5.9457572142793555E-2},{"$f":"(CB145*'Default-Data'!$F$19/wind_dollar_index)/'Mexico-IO-Data'!$AS22","v":4.5958227197193814E-2},{"$f":"(CC145*'Default-Data'!$F$19/wind_dollar_index)/'Mexico-IO-Data'!$AS22","v":1.4456958051273724E-5},null,"TTL_C26: Other non-metallic mineral products",{"$f":"'Wind-Inputs'!B14*'Wind-Inputs'!C14","v":0},{"$f":"0.5*'Wind-Inputs'!B34*'Wind-Inputs'!C34","v":0},null,16971790.261983495,1042912.220043499,{"$f":"CH145*'Philippines-IO-Data'!AN22","v":0},{"$f":"CK145*'Philippines-IO-Data'!$AN22","v":6386281.4032836156},{"$f":"CL145*'Philippines-IO-Data'!$AN22","v":392435.37737088639},{"$f":"CH145*'Philippines-IO-Data'!AO22","v":0},{"$f":"CK145*'Philippines-IO-Data'!$AO22","v":1358363.8997396659},{"$f":"CL145*'Philippines-IO-Data'!$AO22","v":83471.118157624194},{"$f":"(CP145*'Default-Data'!$F$19/wind_dollar_index)/'Philippines-IO-Data'!$AP22","v":0},{"$f":"(CQ145*'Default-Data'!$F$19/wind_dollar_index)/'Philippines-IO-Data'!$AP22","v":422.5497563517535},{"$f":"(CR145*'Default-Data'!$F$19/wind_dollar_index)/'Philippines-IO-Data'!$AP22","v":25.965575680178379},4199.0866070804941,4522.1027799292324,{"$f":"CI145*'Philippines-IO-Data'!AN22","v":0},{"$f":"CV145*'Philippines-IO-Data'!$AN22","v":1580.065997494916},{"$f":"CW145*'Philippines-IO-Data'!$AN22","v":1701.6131145509487},{"$f":"CI145*'Philippines-IO-Data'!AO22","v":0},{"$f":"CV145*'Philippines-IO-Data'!$AO22","v":336.08049421368753},{"$f":"CW145*'Philippines-IO-Data'!$AO22","v":361.93360113150271},{"$f":"(DA145*'Default-Data'!$F$19/wind_dollar_index)/'Philippines-IO-Data'!$AP22","v":0},{"$f":"(DB145*'Default-Data'!$F$19/wind_dollar_index)/'Philippines-IO-Data'!$AP22","v":0.10454542480979311},{"$f":"(DC145*'Default-Data'!$F$19/wind_dollar_index)/'Philippines-IO-Data'!$AP22","v":0.11258761735565824},null,"DOM_C26: Other non-metallic mineral products",0,0,null,19537008.835419092,914018.97784200311,{"$f":"DI145*'SouthAfrica-IO-Data'!AR22","v":0},{"$f":"DL145*'SouthAfrica-IO-Data'!$AR22","v":6442680.9669845831},{"$f":"DM145*'SouthAfrica-IO-Data'!$AR22","v":301414.24010258715},{"$f":"DI145*'SouthAfrica-IO-Data'!AS22","v":0},{"$f":"DL145*'SouthAfrica-IO-Data'!$AS22","v":2903973.4705230533},{"$f":"DM145*'SouthAfrica-IO-Data'!$AS22","v":135859.4289211641},{"$f":"(DQ145*'Default-Data'!$F$19/wind_dollar_index)/'SouthAfrica-IO-Data'!$AT22","v":0},{"$f":"(DR145*'Default-Data'!$F$19/wind_dollar_index)/'SouthAfrica-IO-Data'!$AT22","v":226.22540720635425},{"$f":"(DS145*'Default-Data'!$F$19/wind_dollar_index)/'SouthAfrica-IO-Data'!$AT22","v":10.583724315145769},2911.9347968559682,4216.4447874986708,{"$f":"DJ145*'SouthAfrica-IO-Data'!AR22","v":0},{"$f":"'SouthAfrica-IO-Data'!$AR22*Calculations!DW145","v":960.26300908419614},{"$f":"'SouthAfrica-IO-Data'!$AR22*Calculations!DX145","v":1390.448702234838},{"$f":"DJ145*'SouthAfrica-IO-Data'!AS22","v":0},{"$f":"DW145*'SouthAfrica-IO-Data'!$AS22","v":432.82886695696538},{"$f":"DX145*'SouthAfrica-IO-Data'!$AS22","v":626.73072966129382},{"$f":"(EB145*'Default-Data'!$F$19/wind_dollar_index)/'SouthAfrica-IO-Data'!$AT22","v":0},{"$f":"(EC145*'Default-Data'!$F$19/wind_dollar_index)/'SouthAfrica-IO-Data'!$AT22","v":3.3718244216731079E-2},{"$f":"(ED145*'Default-Data'!$F$19/wind_dollar_index)/'SouthAfrica-IO-Data'!$AT22","v":4.8823591525725733E-2},null,"OTHERCROP",0,0,null,44141.650769047024,2210335.2987201335,{"$f":"EJ145*'Zambia-IO-Data'!BO20","v":0},{"$f":"EM145*'Zambia-IO-Data'!$BO20","v":20322.290524718508},{"$f":"EN145*'Zambia-IO-Data'!$BO20","v":1017612.0583403542},{"$f":"EJ145*'Zambia-IO-Data'!BN20","v":0},{"$f":"EM145*'Zambia-IO-Data'!$BN20","v":19102.010061495377},{"$f":"EN145*'Zambia-IO-Data'!$BN20","v":956508.11376173433},{"$f":"(ER145*'Default-Data'!$F$19/wind_dollar_index)/'Zambia-IO-Data'!$BP20","v":0},{"$f":"(ES145*'Default-Data'!$F$19/wind_dollar_index)/'Zambia-IO-Data'!$BP20","v":184.96721053671496},{"$f":"(ET145*'Default-Data'!$F$19/wind_dollar_index)/'Zambia-IO-Data'!$BP20","v":9261.9906014431563},194.57168291273607,4829.714652800616,{"$f":"EK145*'Zambia-IO-Data'!BO20","v":0},{"$f":"EX145*'Zambia-IO-Data'!$BO20","v":89.578486512080133},{"$f":"EY145*'Zambia-IO-Data'!$BO20","v":2223.5431302566822},{"$f":"EK145*'Zambia-IO-Data'!BN20","v":0},{"$f":"EX145*'Zambia-IO-Data'!$BN20","v":84.199620538147187},{"$f":"EY145*'Zambia-IO-Data'!$BN20","v":2090.0273615648643},{"$f":"(FC145*'Default-Data'!$F$19/wind_dollar_index)/'Zambia-IO-Data'!$BP20","v":0},{"$f":"(FD145*'Default-Data'!$F$19/wind_dollar_index)/'Zambia-IO-Data'!$BP20","v":0.81531571227597688},{"$f":"(FE145*'Default-Data'!$F$19/wind_dollar_index)/'Zambia-IO-Data'!$BP20","v":20.238002690267649},null,"TTL_C26: Other non-metallic mineral products",0,0,null,20199302.522989206,1568393.9405586571,{"$f":"FK145*CustomRegion1!C18","v":0},{"$f":"FN145*CustomRegion1!$C18","v":7600755.6109634442},{"$f":"FO145*CustomRegion1!$C18","v":590167.85506998515},{"$f":"FK145*CustomRegion1!D18","v":0},{"$f":"FN145*CustomRegion1!$D18","v":1616682.9146250719},{"$f":"FO145*CustomRegion1!$D18","v":125528.87329732611},{"$f":"(FS145*'Default-Data'!$C$58/wind_dollar_index)/CustomRegion1!$E18","v":0},{"$f":"(FT145*'Default-Data'!$C$58/wind_dollar_index)/CustomRegion1!$E18","v":502.90571753547806},{"$f":"(FU145*'Default-Data'!$C$58/wind_dollar_index)/CustomRegion1!$E18","v":39.048589878648102},6665.9785945348658,6845.4456838178367,{"$f":"FL145*CustomRegion1!C18","v":0},{"$f":"FY145*CustomRegion1!$C18","v":2508.3279062387737},{"$f":"FZ145*CustomRegion1!$C18","v":2575.8592224462677},{"$f":"FL145*CustomRegion1!D18","v":0},{"$f":"FY145*CustomRegion1!$D18","v":533.52207041682345},{"$f":"FZ145*CustomRegion1!$D18","v":547.88600088675219},{"$f":"(GD145*'Default-Data'!$C$58/wind_dollar_index)/CustomRegion1!$E18","v":0},{"$f":"(GE145*'Default-Data'!$C$58/wind_dollar_index)/CustomRegion1!$E18","v":0.16596408437099805},{"$f":"(GF145*'Default-Data'!$C$58/wind_dollar_index)/CustomRegion1!$E18","v":0.17043230921228331},null,"C26 Other non-metallic mineral products",0,0,null,4861655.7723798724,1990612.5041077947,{"$f":"GL145*CustomRegion2!C22","v":0},{"$f":"GO145*CustomRegion2!$C22","v":2569780.1692830347},{"$f":"GP145*CustomRegion2!$C22","v":1052200.4801008261},{"$f":"GL145*CustomRegion2!D22","v":0},{"$f":"GO145*CustomRegion2!$D22","v":720485.57850918954},{"$f":"GP145*CustomRegion2!$D22","v":295003.93873169244},{"$f":"(GT145*'Default-Data'!$C$59/wind_dollar_index)/CustomRegion2!$E22","v":0},{"$f":"(GU145*'Default-Data'!$C$59/wind_dollar_index)/CustomRegion2!$E22","v":175.18424331285934},{"$f":"(GV145*'Default-Data'!$C$59/wind_dollar_index)/CustomRegion2!$E22","v":71.729460411906771},0,0,{"$f":"GM145*CustomRegion2!C22","v":0},{"$f":"GZ145*CustomRegion2!$C22","v":0},{"$f":"HA145*CustomRegion2!$C22","v":0},{"$f":"GM145*CustomRegion2!D22","v":0},{"$f":"GZ145*CustomRegion2!$D22","v":0},{"$f":"HA145*CustomRegion2!$D22","v":0},{"$f":"(HE145*'Default-Data'!$C$59/wind_dollar_index)/CustomRegion2!$E22","v":0},{"$f":"(HF145*'Default-Data'!$C$59/wind_dollar_index)/CustomRegion2!$E22","v":0},{"$f":"(HG145*'Default-Data'!$C$59/wind_dollar_index)/CustomRegion2!$E22","v":0},null,"OTHERCROP",0,0,null,44141.650769047024,2210335.2987201335,{"$f":"HM145*CustomRegion3!D21","v":0},{"$f":"HP145*CustomRegion3!$D21","v":20322.290524718508},{"$f":"HQ145*CustomRegion3!$D21","v":1017612.0583403542},{"$f":"HM145*CustomRegion3!E21","v":0},{"$f":"HP145*CustomRegion3!$E21","v":19102.010061495377},{"$f":"HQ145*CustomRegion3!$E21","v":956508.11376173433},{"$f":"(HU145*'Default-Data'!$C$60/wind_dollar_index)/CustomRegion3!$F21","v":0},{"$f":"(HV145*'Default-Data'!$C$60/wind_dollar_index)/CustomRegion3!$F21","v":184.96721053671496},{"$f":"(HW145*'Default-Data'!$C$60/wind_dollar_index)/CustomRegion3!$F21","v":9261.9906014431563},194.57168291273607,4829.714652800616,{"$f":"HN145*CustomRegion3!D21","v":0},{"$f":"IA145*CustomRegion3!$D21","v":89.578486512080133},{"$f":"IB145*CustomRegion3!$D21","v":2223.5431302566822},{"$f":"HN145*CustomRegion3!E21","v":0},{"$f":"IA145*CustomRegion3!$E21","v":84.199620538147187},{"$f":"IB145*CustomRegion3!$E21","v":2090.0273615648643},{"$f":"(IF145*'Default-Data'!$C$60/wind_dollar_index)/CustomRegion3!$F21","v":0},{"$f":"(IG145*'Default-Data'!$C$60/wind_dollar_index)/CustomRegion3!$F21","v":0.81531571227597688},{"$f":"(IH145*'Default-Data'!$C$60/wind_dollar_index)/CustomRegion3!$F21","v":20.238002690267649}]
[null,null,null,null,null,null,null,null,null,null,null,null,null,null,null,null,null,null,null,null,null,null,null,null,null,null,null,null,null,145,"TTL_C27: Basic metals",0,0,null,8454430.6543771978,238886.54308673739,{"$f":"AF146*'Colombia-IO-Data'!AN23","v":0},{"$f":"AI146*'Colombia-IO-Data'!$AN23","v":2462903.2905867882},{"$f":"AJ146*'Colombia-IO-Data'!$AN23","v":69591.256596399355},{"$f":"AK146*'Colombia-IO-Data'!$AO23","v":0},{"$f":"AL146*'Colombia-IO-Data'!$AO23","v":643790.02445128618},{"$f":"AM146*'Colombia-IO-Data'!$AO23","v":18190.790095991764},{"$f":"(Calculations!AN146*'Default-Data'!$F$19/wind_dollar_index)/'Colombia-IO-Data'!$AP23","v":0},{"$f":"(Calculations!AO146*'Default-Data'!$F$19/wind_dollar_index)/'Colombia-IO-Data'!$AP23","v":151.34439470096524},{"$f":"(Calculations!AP146*'Default-Data'!$F$19/wind_dollar_index)/'Colombia-IO-Data'!$AP23","v":4.2763541087122023},2864.4371640056434,1250.4182106796598,{"$f":"AG146*'Colombia-IO-Data'!AN23","v":0},{"$f":"AT146*'Colombia-IO-Data'!$AN23","v":834.45379178265739},{"$f":"AU146*'Colombia-IO-Data'!$AN23","v":364.2657029894869},{"$f":"AV146*'Colombia-IO-Data'!$AO23","v":0},{"$f":"AW146*'Colombia-IO-Data'!$AO23","v":218.12185199006908},{"$f":"AX146*'Colombia-IO-Data'!$AO23","v":95.217147474148049},{"$f":"(AY146*'Default-Data'!$F$19/wind_dollar_index)/'Colombia-IO-Data'!$AP23","v":0},{"$f":"(AZ146*'Default-Data'!$F$19/wind_dollar_index)/'Colombia-IO-Data'!$AP23","v":5.1276842459040656E-2},{"$f":"(BA146*'Default-Data'!$F$19/wind_dollar_index)/'Colombia-IO-Data'!$AP23","v":2.238397769817865E-2},null,"DOM_C27: Basic metals",0,0,null,16605622.750312191,302344.50747145712,{"$f":"BG146*'Mexico-IO-Data'!AQ23","v":0},{"$f":"BJ146*'Mexico-IO-Data'!$AQ23","v":6254371.2002968751},{"$f":"BK146*'Mexico-IO-Data'!$AQ23","v":113875.57145737723},{"$f":"BG146*'Mexico-IO-Data'!AR23","v":0},{"$f":"BJ146*'Mexico-IO-Data'!$AR23","v":766537.01509610459},{"$f":"BK146*'Mexico-IO-Data'!$AR23","v":13956.613357575856},{"$f":"(BO146*'Default-Data'!$F$19/wind_dollar_index)/'Mexico-IO-Data'!$AS23","v":0},{"$f":"(BP146*'Default-Data'!$F$19/wind_dollar_index)/'Mexico-IO-Data'!$AS23","v":73.819053436385701},{"$f":"(BQ146*'Default-Data'!$F$19/wind_dollar_index)/'Mexico-IO-Data'!$AS23","v":1.3440498853205376},3910.3822806354251,1143.5774270175175,{"$f":"BH146*'Mexico-IO-Data'!AQ23","v":0},{"$f":"BU146*'Mexico-IO-Data'!$AQ23","v":1472.8133166639363},{"$f":"BV146*'Mexico-IO-Data'!$AQ23","v":430.71903007753781},{"$f":"BH146*'Mexico-IO-Data'!AR23","v":0},{"$f":"BX146*'Mexico-IO-Data'!$AR23","v":67.986966856039345},{"$f":"BY146*'Mexico-IO-Data'!$AR23","v":19.88254729287512},{"$f":"(CA146*'Default-Data'!$F$19/wind_dollar_index)/'Mexico-IO-Data'!$AS23","v":6.5472813973563009E-3},{"$f":"(CB146*'Default-Data'!$F$19/wind_dollar_index)/'Mexico-IO-Data'!$AS23","v":1.9147292200627777E-3},{"$f":"(CC146*'Default-Data'!$F$19/wind_dollar_index)/'Mexico-IO-Data'!$AS23","v":6.3051634274165244E-7},null,"TTL_C27: Basic metals",0,0,null,20211060.249388404,603620.26073598117,{"$f":"CH146*'Philippines-IO-Data'!AN23","v":0},{"$f":"CK146*'Philippines-IO-Data'!$AN23","v":4148923.7333989935},{"$f":"CL146*'Philippines-IO-Data'!$AN23","v":123911.08605021275},{"$f":"CH146*'Philippines-IO-Data'!AO23","v":0},{"$f":"CK146*'Philippines-IO-Data'!$AO23","v":944257.98905372166},{"$f":"CL146*'Philippines-IO-Data'!$AO23","v":28201.05657603432},{"$f":"(CP146*'Default-Data'!$F$19/wind_dollar_index)/'Philippines-IO-Data'!$AP23","v":0},{"$f":"(CQ146*'Default-Data'!$F$19/wind_dollar_index)/'Philippines-IO-Data'!$AP23","v":293.73276430882436},{"$f":"(CR146*'Default-Data'!$F$19/wind_dollar_index)/'Philippines-IO-Data'!$AP23","v":8.7725752924890887},4409.8093571500904,2617.3179359064161,{"$f":"CI146*'Philippines-IO-Data'!AN23","v":0},{"$f":"CV146*'Philippines-IO-Data'!$AN23","v":905.2450725438124},{"$f":"CW146*'Philippines-IO-Data'!$AN23","v":537.28267434468682},{"$f":"CI146*'Philippines-IO-Data'!AO23","v":0},{"$f":"CV146*'Philippines-IO-Data'!$AO23","v":206.02569406614052},{"$f":"CW146*'Philippines-IO-Data'!$AO23","v":122.28073838669677},{"$f":"(DA146*'Default-Data'!$F$19/wind_dollar_index)/'Philippines-IO-Data'!$AP23","v":0},{"$f":"(DB146*'Default-Data'!$F$19/wind_dollar_index)/'Philippines-IO-Data'!$AP23","v":6.4088943210676555E-2},{"$f":"(DC146*'Default-Data'!$F$19/wind_dollar_index)/'Philippines-IO-Data'!$AP23","v":3.8038184187399168E-2},null,"DOM_C27: Basic metals",0,0,null,4672749.5942129921,224800.84703735542,{"$f":"DI146*'SouthAfrica-IO-Data'!AR23","v":0},{"$f":"DL146*'SouthAfrica-IO-Data'!$AR23","v":745475.88252052374},{"$f":"DM146*'SouthAfrica-IO-Data'!$AR23","v":35864.025336191611},{"$f":"DI146*'SouthAfrica-IO-Data'!AS23","v":0},{"$f":"DL146*'SouthAfrica-IO-Data'!$AS23","v":479910.18595301267},{"$f":"DM146*'SouthAfrica-IO-Data'!$AS23","v":23087.951564471197},{"$f":"(DQ146*'Default-Data'!$F$19/wind_dollar_index)/'SouthAfrica-IO-Data'!$AT23","v":0},{"$f":"(DR146*'Default-Data'!$F$19/wind_dollar_index)/'SouthAfrica-IO-Data'!$AT23","v":37.385974197671509},{"$f":"(DS146*'Default-Data'!$F$19/wind_dollar_index)/'SouthAfrica-IO-Data'!$AT23","v":1.7985981267564115},2505.9751236363636,1037.0248131541402,{"$f":"DJ146*'SouthAfrica-IO-Data'!AR23","v":0},{"$f":"'SouthAfrica-IO-Data'!$AR23*Calculations!DW146","v":399.79544788381475},{"$f":"'SouthAfrica-IO-Data'!$AR23*Calculations!DX146","v":165.44370122875577},{"$f":"DJ146*'SouthAfrica-IO-Data'!AS23","v":0},{"$f":"DW146*'SouthAfrica-IO-Data'!$AS23","v":257.3737289640718},{"$f":"DX146*'SouthAfrica-IO-Data'!$AS23","v":106.50662118403399},{"$f":"(EB146*'Default-Data'!$F$19/wind_dollar_index)/'SouthAfrica-IO-Data'!$AT23","v":0},{"$f":"(EC146*'Default-Data'!$F$19/wind_dollar_index)/'SouthAfrica-IO-Data'!$AT23","v":2.0049934074854961E-2},{"$f":"(ED146*'Default-Data'!$F$19/wind_dollar_index)/'SouthAfrica-IO-Data'!$AT23","v":8.2970812206459958E-3},null,"LIVEST",0,0,null,57139.785052236191,3946686.9838157715,{"$f":"EJ146*'Zambia-IO-Data'!BO21","v":0},{"$f":"EM146*'Zambia-IO-Data'!$BO21","v":17191.179573969901},{"$f":"EN146*'Zambia-IO-Data'!$BO21","v":1187407.4184738519},{"$f":"EJ146*'Zambia-IO-Data'!BN21","v":0},{"$f":"EM146*'Zambia-IO-Data'!$BN21","v":11056.688992349087},{"$f":"EN146*'Zambia-IO-Data'!$BN21","v":763693.64165984897},{"$f":"(ER146*'Default-Data'!$F$19/wind_dollar_index)/'Zambia-IO-Data'!$BP21","v":0},{"$f":"(ES146*'Default-Data'!$F$19/wind_dollar_index)/'Zambia-IO-Data'!$BP21","v":107.06333595799146},{"$f":"(ET146*'Default-Data'!$F$19/wind_dollar_index)/'Zambia-IO-Data'!$BP21","v":7394.9433670955577},243.00486354029559,8367.2273834684675,{"$f":"EK146*'Zambia-IO-Data'!BO21","v":0},{"$f":"EX146*'Zambia-IO-Data'!$BO21","v":73.110884870327013},{"$f":"EY146*'Zambia-IO-Data'!$BO21","v":2517.3792367952806},{"$f":"EK146*'Zambia-IO-Data'!BN21","v":0},{"$f":"EX146*'Zambia-IO-Data'!$BN21","v":47.022038975768389},{"$f":"EY146*'Zambia-IO-Data'!$BN21","v":1619.0790851366194},{"$f":"(FC146*'Default-Data'!$F$19/wind_dollar_index)/'Zambia-IO-Data'!$BP21","v":0},{"$f":"(FD146*'Default-Data'!$F$19/wind_dollar_index)/'Zambia-IO-Data'!$BP21","v":0.45532042727945743},{"$f":"(FE146*'Default-Data'!$F$19/wind_dollar_index)/'Zambia-IO-Data'!$BP21","v":15.677750197594273},null,"TTL_C27: Basic metals",0,0,null,41155843.442427412,2662474.8960104138,{"$f":"FK146*CustomRegion1!C19","v":0},{"$f":"FN146*CustomRegion1!$C19","v":8448466.0141225141},{"$f":"FO146*CustomRegion1!$C19","v":546552.48904969706},{"$f":"FK146*CustomRegion1!D19","v":0},{"$f":"FN146*CustomRegion1!$D19","v":1922795.4143539935},{"$f":"FO146*CustomRegion1!$D19","v":124390.46542790285},{"$f":"(FS146*'Default-Data'!$C$58/wind_dollar_index)/CustomRegion1!$E19","v":0},{"$f":"(FT146*'Default-Data'!$C$58/wind_dollar_index)/CustomRegion1!$E19","v":598.1289211272931},{"$f":"(FU146*'Default-Data'!$C$58/wind_dollar_index)/CustomRegion1!$E19","v":38.694462411077808},29919.634412476593,11620.694784548778,{"$f":"FL146*CustomRegion1!C19","v":0},{"$f":"FY146*CustomRegion1!$C19","v":6141.8985336161049},{"$f":"FZ146*CustomRegion1!$C19","v":2385.4946645690834},{"$f":"FL146*CustomRegion1!D19","v":0},{"$f":"FY146*CustomRegion1!$D19","v":1397.8412549832753},{"$f":"FZ146*CustomRegion1!$D19","v":542.91728159076388},{"$f":"(GD146*'Default-Data'!$C$58/wind_dollar_index)/CustomRegion1!$E19","v":0},{"$f":"(GE146*'Default-Data'!$C$58/wind_dollar_index)/CustomRegion1!$E19","v":0.43483007890949799},{"$f":"(GF146*'Default-Data'!$C$58/wind_dollar_index)/CustomRegion1!$E19","v":0.16888667690543058},null,"C27 Basic metals",0,0,null,34050327.01324407,3578773.9189353138,{"$f":"GL146*CustomRegion2!C23","v":0},{"$f":"GO146*CustomRegion2!$C23","v":12298571.528665403},{"$f":"GP146*CustomRegion2!$C23","v":1292610.4060565624},{"$f":"GL146*CustomRegion2!D23","v":0},{"$f":"GO146*CustomRegion2!$D23","v":3007234.2506712074},{"$f":"GP146*CustomRegion2!$D23","v":316067.78696266486},{"$f":"(GT146*'Default-Data'!$C$59/wind_dollar_index)/CustomRegion2!$E23","v":0},{"$f":"(GU146*'Default-Data'!$C$59/wind_dollar_index)/CustomRegion2!$E23","v":289.60269559610896},{"$f":"(GV146*'Default-Data'!$C$59/wind_dollar_index)/CustomRegion2!$E23","v":30.437962415150821},0,0,{"$f":"GM146*CustomRegion2!C23","v":0},{"$f":"GZ146*CustomRegion2!$C23","v":0},{"$f":"HA146*CustomRegion2!$C23","v":0},{"$f":"GM146*CustomRegion2!D23","v":0},{"$f":"GZ146*CustomRegion2!$D23","v":0},{"$f":"HA146*CustomRegion2!$D23","v":0},{"$f":"(HE146*'Default-Data'!$C$59/wind_dollar_index)/CustomRegion2!$E23","v":0},{"$f":"(HF146*'Default-Data'!$C$59/wind_dollar_index)/CustomRegion2!$E23","v":0},{"$f":"(HG146*'Default-Data'!$C$59/wind_dollar_index)/CustomRegion2!$E23","v":0},null,"LIVEST",0,0,null,57139.785052236191,3946686.9838157715,{"$f":"HM146*CustomRegion3!D22","v":0},{"$f":"HP146*CustomRegion3!$D22","v":17191.179573969901},{"$f":"HQ146*CustomRegion3!$D22","v":1187407.4184738519},{"$f":"HM146*CustomRegion3!E22","v":0},{"$f":"HP146*CustomRegion3!$E22","v":11056.688992349087},{"$f":"HQ146*CustomRegion3!$E22","v":763693.64165984897},{"$f":"(HU146*'Default-Data'!$C$60/wind_dollar_index)/CustomRegion3!$F22","v":0},{"$f":"(HV146*'Default-Data'!$C$60/wind_dollar_index)/CustomRegion3!$F22","v":107.06333595799146},{"$f":"(HW146*'Default-Data'!$C$60/wind_dollar_index)/CustomRegion3!$F22","v":7394.9433670955577},243.00486354029559,8367.2273834684675,{"$f":"HN146*CustomRegion3!D22","v":0},{"$f":"IA146*CustomRegion3!$D22","v":73.110884870327013},{"$f":"IB146*CustomRegion3!$D22","v":2517.3792367952806},{"$f":"HN146*CustomRegion3!E22","v":0},{"$f":"IA146*CustomRegion3!$E22","v":47.022038975768389},{"$f":"IB146*CustomRegion3!$E22","v":1619.0790851366194},{"$f":"(IF146*'Default-Data'!$C$60/wind_dollar_index)/CustomRegion3!$F22","v":0},{"$f":"(IG146*'Default-Data'!$C$60/wind_dollar_index)/CustomRegion3!$F22","v":0.45532042727945743},{"$f":"(IH146*'Default-Data'!$C$60/wind_dollar_index)/CustomRegion3!$F22","v":15.677750197594273}]
[null,null,null,null,null,null,null,null,null,null,null,null,null,null,null,null,null,null,null,null,null,null,null,null,null,null,null,null,null,146,"TTL_C28: Fabricated metal products",{"$f":"'Wind-Inputs'!B15*'Wind-Inputs'!C15","v":9500715.9249161463},0,null,6251926.3433490992,283451.92391466722,{"$f":"AF147*'Colombia-IO-Data'!AN24","v":3362098.3387960009},{"$f":"AI147*'Colombia-IO-Data'!$AN24","v":2212421.8152996171},{"$f":"AJ147*'Colombia-IO-Data'!$AN24","v":100307.51893367912},{"$f":"AK147*'Colombia-IO-Data'!$AO24","v":882086.12763104285},{"$f":"AL147*'Colombia-IO-Data'!$AO24","v":580454.94066153606},{"$f":"AM147*'Colombia-IO-Data'!$AO24","v":26316.859898920149},{"$f":"(Calculations!AN147*'Default-Data'!$F$19/wind_dollar_index)/'Colombia-IO-Data'!$AP24","v":207.36387019078458},{"$f":"(Calculations!AO147*'Default-Data'!$F$19/wind_dollar_index)/'Colombia-IO-Data'!$AP24","v":136.45536325369412},{"$f":"(Calculations!AP147*'Default-Data'!$F$19/wind_dollar_index)/'Colombia-IO-Data'!$AP24","v":6.1866588181866913},3651.3353563696774,1483.6894658666824,{"$f":"AG147*'Colombia-IO-Data'!AN24","v":0},{"$f":"AT147*'Colombia-IO-Data'!$AN24","v":1292.1287861941778},{"$f":"AU147*'Colombia-IO-Data'!$AN24","v":525.0456837044652},{"$f":"AV147*'Colombia-IO-Data'!$AO24","v":0},{"$f":"AW147*'Colombia-IO-Data'!$AO24","v":339.00521714745082},{"$f":"AX147*'Colombia-IO-Data'!$AO24","v":137.7519237388274},{"$f":"(AY147*'Default-Data'!$F$19/wind_dollar_index)/'Colombia-IO-Data'!$AP24","v":0},{"$f":"(AZ147*'Default-Data'!$F$19/wind_dollar_index)/'Colombia-IO-Data'!$AP24","v":7.9694523743793183E-2},{"$f":"(BA147*'Default-Data'!$F$19/wind_dollar_index)/'Colombia-IO-Data'!$AP24","v":3.2383200617181772E-2},null,"DOM_C28: Fabricated metal products",9500715.9249161463,0,null,5685913.6351610031,518513.75298992917,{"$f":"BG147*'Mexico-IO-Data'!AQ24","v":3491738.4678369449},{"$f":"BJ147*'Mexico-IO-Data'!$AQ24","v":2089708.1358492996},{"$f":"BK147*'Mexico-IO-Data'!$AQ24","v":190566.10383110883},{"$f":"BG147*'Mexico-IO-Data'!AR24","v":1267749.2143148235},{"$f":"BJ147*'Mexico-IO-Data'!$AR24","v":758712.56446402229},{"$f":"BK147*'Mexico-IO-Data'!$AR24","v":69189.038821852257},{"$f":"(BO147*'Default-Data'!$F$19/wind_dollar_index)/'Mexico-IO-Data'!$AS24","v":271.13188246080517},{"$f":"(BP147*'Default-Data'!$F$19/wind_dollar_index)/'Mexico-IO-Data'!$AS24","v":162.26487346787704},{"$f":"(BQ147*'Default-Data'!$F$19/wind_dollar_index)/'Mexico-IO-Data'!$AS24","v":14.797370118317401},5169.1108417418482,1961.2085183105501,{"$f":"BH147*'Mexico-IO-Data'!AQ24","v":0},{"$f":"BU147*'Mexico-IO-Data'!$AQ24","v":1899.7708502459329},{"$f":"BV147*'Mexico-IO-Data'!$AQ24","v":720.79065208918837},{"$f":"BH147*'Mexico-IO-Data'!AR24","v":0},{"$f":"BX147*'Mexico-IO-Data'!$AR24","v":253.50015954705464},{"$f":"BY147*'Mexico-IO-Data'!$AR24","v":96.18030789396569},{"$f":"(CA147*'Default-Data'!$F$19/wind_dollar_index)/'Mexico-IO-Data'!$AS24","v":5.4215750785737801E-2},{"$f":"(CB147*'Default-Data'!$F$19/wind_dollar_index)/'Mexico-IO-Data'!$AS24","v":2.0569957875339571E-2},{"$f":"(CC147*'Default-Data'!$F$19/wind_dollar_index)/'Mexico-IO-Data'!$AS24","v":1.1595052399624341E-5},null,"TTL_C28: Fabricated metal products",{"$f":"'Wind-Inputs'!B15*'Wind-Inputs'!C15","v":9500715.9249161463},0,null,4163055.0232647043,379026.95040927455,{"$f":"CH147*'Philippines-IO-Data'!AN24","v":2392642.3096394455},{"$f":"CK147*'Philippines-IO-Data'!$AN24","v":1048415.8946272326},{"$f":"CL147*'Philippines-IO-Data'!$AN24","v":95453.429532032489},{"$f":"CH147*'Philippines-IO-Data'!AO24","v":733459.79323717183},{"$f":"CK147*'Philippines-IO-Data'!$AO24","v":321389.83006437478},{"$f":"CL147*'Philippines-IO-Data'!$AO24","v":29261.061047981599},{"$f":"(CP147*'Default-Data'!$F$19/wind_dollar_index)/'Philippines-IO-Data'!$AP24","v":228.15922668849791},{"$f":"(CQ147*'Default-Data'!$F$19/wind_dollar_index)/'Philippines-IO-Data'!$AP24","v":99.975562081457028},{"$f":"(CR147*'Default-Data'!$F$19/wind_dollar_index)/'Philippines-IO-Data'!$AP24","v":9.1023136133020408},5478.0170690503564,1643.473720197092,{"$f":"CI147*'Philippines-IO-Data'!AN24","v":0},{"$f":"CV147*'Philippines-IO-Data'!$AN24","v":1379.5734464561031},{"$f":"CW147*'Philippines-IO-Data'!$AN24","v":413.88930990048607},{"$f":"CI147*'Philippines-IO-Data'!AO24","v":0},{"$f":"CV147*'Philippines-IO-Data'!$AO24","v":422.90552612758336},{"$f":"CW147*'Philippines-IO-Data'!$AO24","v":126.87695375094839},{"$f":"(DA147*'Default-Data'!$F$19/wind_dollar_index)/'Philippines-IO-Data'!$AP24","v":0},{"$f":"(DB147*'Default-Data'!$F$19/wind_dollar_index)/'Philippines-IO-Data'!$AP24","v":0.13155431107913612},{"$f":"(DC147*'Default-Data'!$F$19/wind_dollar_index)/'Philippines-IO-Data'!$AP24","v":3.9467940736934187E-2},null,"DOM_C28: Fabricated metal products",9500715.9249161463,0,null,16099442.36019977,1337191.8563462812,{"$f":"DI147*'SouthAfrica-IO-Data'!AR24","v":2496748.0182209564},{"$f":"DL147*'SouthAfrica-IO-Data'!$AR24","v":4230865.4552942095},{"$f":"DM147*'SouthAfrica-IO-Data'!$AR24","v":351408.37213730783},{"$f":"DI147*'SouthAfrica-IO-Data'!AS24","v":2319178.6626146976},{"$f":"DL147*'SouthAfrica-IO-Data'!$AS24","v":3929965.2254469502},{"$f":"DM147*'SouthAfrica-IO-Data'!$AS24","v":326416.11911870784},{"$f":"(DQ147*'Default-Data'!$F$19/wind_dollar_index)/'SouthAfrica-IO-Data'!$AT24","v":180.66870880876144},{"$f":"(DR147*'Default-Data'!$F$19/wind_dollar_index)/'SouthAfrica-IO-Data'!$AT24","v":306.15224018331475},{"$f":"(DS147*'Default-Data'!$F$19/wind_dollar_index)/'SouthAfrica-IO-Data'!$AT24","v":25.42847591959821},10984.864108072261,6168.57611194116,{"$f":"DJ147*'SouthAfrica-IO-Data'!AR24","v":0},{"$f":"'SouthAfrica-IO-Data'!$AR24*Calculations!DW147","v":2886.7758923649744},{"$f":"'SouthAfrica-IO-Data'!$AR24*Calculations!DX147","v":1621.0757488647002},{"$f":"DJ147*'SouthAfrica-IO-Data'!AS24","v":0},{"$f":"DW147*'SouthAfrica-IO-Data'!$AS24","v":2681.4676549112874},{"$f":"DX147*'SouthAfrica-IO-Data'!$AS24","v":1505.7844283092736},{"$f":"(EB147*'Default-Data'!$F$19/wind_dollar_index)/'SouthAfrica-IO-Data'!$AT24","v":0},{"$f":"(EC147*'Default-Data'!$F$19/wind_dollar_index)/'SouthAfrica-IO-Data'!$AT24","v":0.20889175410879773},{"$f":"(ED147*'Default-Data'!$F$19/wind_dollar_index)/'SouthAfrica-IO-Data'!$AT24","v":0.11730365270792113},null,"FISH",0,0,null,21955.869023217067,2008538.3811367443,{"$f":"EJ147*'Zambia-IO-Data'!BO22","v":0},{"$f":"EM147*'Zambia-IO-Data'!$BO22","v":2003.4463391561344},{"$f":"EN147*'Zambia-IO-Data'!$BO22","v":183276.68390114061},{"$f":"EJ147*'Zambia-IO-Data'!BN22","v":0},{"$f":"EM147*'Zambia-IO-Data'!$BN22","v":851.75678742275988},{"$f":"EN147*'Zambia-IO-Data'!$BN22","v":77919.311557346533},{"$f":"(ER147*'Default-Data'!$F$19/wind_dollar_index)/'Zambia-IO-Data'!$BP22","v":0},{"$f":"(ES147*'Default-Data'!$F$19/wind_dollar_index)/'Zambia-IO-Data'!$BP22","v":8.2476700890695795},{"$f":"(ET147*'Default-Data'!$F$19/wind_dollar_index)/'Zambia-IO-Data'!$BP22","v":754.50267586003656},59.850335642528059,4496.5104923238187,{"$f":"EK147*'Zambia-IO-Data'!BO22","v":0},{"$f":"EX147*'Zambia-IO-Data'!$BO22","v":5.4612703197260863},{"$f":"EY147*'Zambia-IO-Data'!$BO22","v":410.30111244047384},{"$f":"EK147*'Zambia-IO-Data'!BN22","v":0},{"$f":"EX147*'Zambia-IO-Data'!$BN22","v":2.321836114031623},{"$f":"EY147*'Zambia-IO-Data'!$BN22","v":174.43779280631227},{"$f":"(FC147*'Default-Data'!$F$19/wind_dollar_index)/'Zambia-IO-Data'!$BP22","v":0},{"$f":"(FD147*'Default-Data'!$F$19/wind_dollar_index)/'Zambia-IO-Data'!$BP22","v":2.2482636536849114E-2},{"$f":"(FE147*'Default-Data'!$F$19/wind_dollar_index)/'Zambia-IO-Data'!$BP22","v":1.6891034945376413},null,"TTL_C28: Fabricated metal products",9500715.9249161463,0,null,7021343.3712860774,948958.32831647247,{"$f":"FK147*CustomRegion1!C20","v":2392642.3096394455},{"$f":"FN147*CustomRegion1!$C20","v":1768241.8202388051},{"$f":"FO147*CustomRegion1!$C20","v":238983.86862195877},{"$f":"FK147*CustomRegion1!D20","v":733459.79323717183},{"$f":"FN147*CustomRegion1!$D20","v":542051.05152600666},{"$f":"FO147*CustomRegion1!$D20","v":73260.034799307541},{"$f":"(FS147*'Default-Data'!$C$58/wind_dollar_index)/CustomRegion1!$E20","v":228.15922668849791},{"$f":"(FT147*'Default-Data'!$C$58/wind_dollar_index)/CustomRegion1!$E20","v":168.61721648847023},{"$f":"(FU147*'Default-Data'!$C$58/wind_dollar_index)/CustomRegion1!$E20","v":22.78918768431728},11981.691510390207,4141.8437834458546,{"$f":"FL147*CustomRegion1!C20","v":0},{"$f":"FY147*CustomRegion1!$C20","v":3017.4465035444559},{"$f":"FZ147*CustomRegion1!$C20","v":1043.0740961531417},{"$f":"FL147*CustomRegion1!D20","v":0},{"$f":"FY147*CustomRegion1!$D20","v":924.99228976998825},{"$f":"FZ147*CustomRegion1!$D20","v":319.75231225047651},{"$f":"(GD147*'Default-Data'!$C$58/wind_dollar_index)/CustomRegion1!$E20","v":0},{"$f":"(GE147*'Default-Data'!$C$58/wind_dollar_index)/CustomRegion1!$E20","v":0.28773973361959015},{"$f":"(GF147*'Default-Data'!$C$58/wind_dollar_index)/CustomRegion1!$E20","v":9.9466175198150583E-2},null,"C28 Fabricated metal products except machinery and equipment",9500715.9249161463,0,null,11580802.750049101,2666161.216210261,{"$f":"GL147*CustomRegion2!C24","v":3287261.6596780485},{"$f":"GO147*CustomRegion2!$C24","v":4006974.7553120861},{"$f":"GP147*CustomRegion2!$C24","v":922495.69546475424},{"$f":"GL147*CustomRegion2!D24","v":1464889.5034677859},{"$f":"GO147*CustomRegion2!$D24","v":1785612.423774004},{"$f":"GP147*CustomRegion2!$D24","v":411088.13388858258},{"$f":"(GT147*'Default-Data'!$C$59/wind_dollar_index)/CustomRegion2!$E24","v":313.29402076337055},{"$f":"(GU147*'Default-Data'!$C$59/wind_dollar_index)/CustomRegion2!$E24","v":381.88661632490647},{"$f":"(GV147*'Default-Data'!$C$59/wind_dollar_index)/CustomRegion2!$E24","v":87.918886748236616},0,0,{"$f":"GM147*CustomRegion2!C24","v":0},{"$f":"GZ147*CustomRegion2!$C24","v":0},{"$f":"HA147*CustomRegion2!$C24","v":0},{"$f":"GM147*CustomRegion2!D24","v":0},{"$f":"GZ147*CustomRegion2!$D24","v":0},{"$f":"HA147*CustomRegion2!$D24","v":0},{"$f":"(HE147*'Default-Data'!$C$59/wind_dollar_index)/CustomRegion2!$E24","v":0},{"$f":"(HF147*'Default-Data'!$C$59/wind_dollar_index)/CustomRegion2!$E24","v":0},{"$f":"(HG147*'Default-Data'!$C$59/wind_dollar_index)/CustomRegion2!$E24","v":0},null,"FISH",0,0,null,21955.869023217067,2008538.3811367443,{"$f":"HM147*CustomRegion3!D23","v":0},{"$f":"HP147*CustomRegion3!$D23","v":2003.4463391561344},{"$f":"HQ147*CustomRegion3!$D23","v":183276.68390114061},{"$f":"HM147*CustomRegion3!E23","v":0},{"$f":"HP147*CustomRegion3!$E23","v":851.75678742275988},{"$f":"HQ147*CustomRegion3!$E23","v":77919.311557346533},{"$f":"(HU147*'Default-Data'!$C$60/wind_dollar_index)/CustomRegion3!$F23","v":0},{"$f":"(HV147*'Default-Data'!$C$60/wind_dollar_index)/CustomRegion3!$F23","v":8.2476700890695795},{"$f":"(HW147*'Default-Data'!$C$60/wind_dollar_index)/CustomRegion3!$F23","v":754.50267586003656},59.850335642528059,4496.5104923238187,{"$f":"HN147*CustomRegion3!D23","v":0},{"$f":"IA147*CustomRegion3!$D23","v":5.4612703197260863},{"$f":"IB147*CustomRegion3!$D23","v":410.30111244047384},{"$f":"HN147*CustomRegion3!E23","v":0},{"$f":"IA147*CustomRegion3!$E23","v":2.321836114031623},{"$f":"IB147*CustomRegion3!$E23","v":174.43779280631227},{"$f":"(IF147*'Default-Data'!$C$60/wind_dollar_index)/CustomRegion3!$F23","v":0},{"$f":"(IG147*'Default-Data'!$C$60/wind_dollar_index)/CustomRegion3!$F23","v":2.2482636536849114E-2},{"$f":"(IH147*'Default-Data'!$C$60/wind_dollar_index)/CustomRegion3!$F23","v":1.6891034945376413}]
[null,null,null,null,null,null,null,null,null,null,null,null,null,null,null,null,null,null,null,null,null,null,null,null,null,null,null,null,null,147,"TTL_C29: Machinery and equipment, nec",0,0,null,1061722.723971643,199639.50617266889,{"$f":"AF148*'Colombia-IO-Data'!AN25","v":0},{"$f":"AI148*'Colombia-IO-Data'!$AN25","v":373444.71729900542},{"$f":"AJ148*'Colombia-IO-Data'!$AN25","v":70220.14058950913},{"$f":"AK148*'Colombia-IO-Data'!$AO25","v":0},{"$f":"AL148*'Colombia-IO-Data'!$AO25","v":190893.41220796274},{"$f":"AM148*'Colombia-IO-Data'!$AO25","v":35894.368354718623},{"$f":"(Calculations!AN148*'Default-Data'!$F$19/wind_dollar_index)/'Colombia-IO-Data'!$AP25","v":0},{"$f":"(Calculations!AO148*'Default-Data'!$F$19/wind_dollar_index)/'Colombia-IO-Data'!$AP25","v":44.875886276181411},{"$f":"(Calculations!AP148*'Default-Data'!$F$19/wind_dollar_index)/'Colombia-IO-Data'!$AP25","v":8.4381727667316895},762.83269962601116,1044.9850831436925,{"$f":"AG148*'Colombia-IO-Data'!AN25","v":0},{"$f":"AT148*'Colombia-IO-Data'!$AN25","v":268.31472608274083},{"$f":"AU148*'Colombia-IO-Data'!$AN25","v":367.55750832615382},{"$f":"AV148*'Colombia-IO-Data'!$AO25","v":0},{"$f":"AW148*'Colombia-IO-Data'!$AO25","v":137.15420578990117},{"$f":"AX148*'Colombia-IO-Data'!$AO25","v":187.88405270399858},{"$f":"(AY148*'Default-Data'!$F$19/wind_dollar_index)/'Colombia-IO-Data'!$AP25","v":0},{"$f":"(AZ148*'Default-Data'!$F$19/wind_dollar_index)/'Colombia-IO-Data'!$AP25","v":3.224268700599426E-2},{"$f":"(BA148*'Default-Data'!$F$19/wind_dollar_index)/'Colombia-IO-Data'!$AP25","v":4.4168435593090694E-2},null,"DOM_C29: Machinery and equipment, nec",0,0,null,550808.74391952797,91026.338456460508,{"$f":"BG148*'Mexico-IO-Data'!AQ25","v":0},{"$f":"BJ148*'Mexico-IO-Data'!$AQ25","v":195237.23525875647},{"$f":"BK148*'Mexico-IO-Data'!$AQ25","v":32264.794000008802},{"$f":"BG148*'Mexico-IO-Data'!AR25","v":0},{"$f":"BJ148*'Mexico-IO-Data'!$AR25","v":69818.805072316376},{"$f":"BK148*'Mexico-IO-Data'!$AR25","v":11538.215853136158},{"$f":"(BO148*'Default-Data'!$F$19/wind_dollar_index)/'Mexico-IO-Data'!$AS25","v":0},{"$f":"(BP148*'Default-Data'!$F$19/wind_dollar_index)/'Mexico-IO-Data'!$AS25","v":7.7901476119853958},{"$f":"(BQ148*'Default-Data'!$F$19/wind_dollar_index)/'Mexico-IO-Data'!$AS25","v":1.2873953454485638},573.35837713478645,344.29488001429445,{"$f":"BH148*'Mexico-IO-Data'!AQ25","v":0},{"$f":"BU148*'Mexico-IO-Data'!$AQ25","v":203.23007867971944},{"$f":"BV148*'Mexico-IO-Data'!$AQ25","v":122.03724292647888},{"$f":"BH148*'Mexico-IO-Data'!AR25","v":0},{"$f":"BX148*'Mexico-IO-Data'!$AR25","v":25.760813358191491},{"$f":"BY148*'Mexico-IO-Data'!$AR25","v":15.469061756019574},{"$f":"(CA148*'Default-Data'!$F$19/wind_dollar_index)/'Mexico-IO-Data'!$AS25","v":2.8743049735276563E-3},{"$f":"(CB148*'Default-Data'!$F$19/wind_dollar_index)/'Mexico-IO-Data'!$AS25","v":1.7259859198892539E-3},{"$f":"(CC148*'Default-Data'!$F$19/wind_dollar_index)/'Mexico-IO-Data'!$AS25","v":3.207052885315349E-7},null,"TTL_C29: Machinery and equipment, nec",0,0,null,780438.69279343018,91045.326531108934,{"$f":"CH148*'Philippines-IO-Data'!AN25","v":0},{"$f":"CK148*'Philippines-IO-Data'!$AN25","v":285537.07886248},{"$f":"CL148*'Philippines-IO-Data'!$AN25","v":33310.517304982524},{"$f":"CH148*'Philippines-IO-Data'!AO25","v":0},{"$f":"CK148*'Philippines-IO-Data'!$AO25","v":84949.380204920715},{"$f":"CL148*'Philippines-IO-Data'!$AO25","v":9910.1237942074458},{"$f":"(CP148*'Default-Data'!$F$19/wind_dollar_index)/'Philippines-IO-Data'!$AP25","v":0},{"$f":"(CQ148*'Default-Data'!$F$19/wind_dollar_index)/'Philippines-IO-Data'!$AP25","v":26.425422462052445},{"$f":"(CR148*'Default-Data'!$F$19/wind_dollar_index)/'Philippines-IO-Data'!$AP25","v":3.0827677292223541},2163.6245200314916,394.77562568853637,{"$f":"CI148*'Philippines-IO-Data'!AN25","v":0},{"$f":"CV148*'Philippines-IO-Data'!$AN25","v":791.59968734219092},{"$f":"CW148*'Philippines-IO-Data'!$AN25","v":144.43553350967508},{"$f":"CI148*'Philippines-IO-Data'!AO25","v":0},{"$f":"CV148*'Philippines-IO-Data'!$AO25","v":235.50672675514417},{"$f":"CW148*'Philippines-IO-Data'!$AO25","v":42.970633096387722},{"$f":"(DA148*'Default-Data'!$F$19/wind_dollar_index)/'Philippines-IO-Data'!$AP25","v":0},{"$f":"(DB148*'Default-Data'!$F$19/wind_dollar_index)/'Philippines-IO-Data'!$AP25","v":7.3259683968822459E-2},{"$f":"(DC148*'Default-Data'!$F$19/wind_dollar_index)/'Philippines-IO-Data'!$AP25","v":1.3366985495299978E-2},null,"DOM_C29: Machinery and equipment, nec",0,0,null,565219.26969211188,216000.30387805344,{"$f":"DI148*'SouthAfrica-IO-Data'!AR25","v":0},{"$f":"DL148*'SouthAfrica-IO-Data'!$AR25","v":171765.69189633094},{"$f":"DM148*'SouthAfrica-IO-Data'!$AR25","v":65640.793997772955},{"$f":"DI148*'SouthAfrica-IO-Data'!AS25","v":0},{"$f":"DL148*'SouthAfrica-IO-Data'!$AS25","v":137522.51950574998},{"$f":"DM148*'SouthAfrica-IO-Data'!$AS25","v":52554.659043203683},{"$f":"(DQ148*'Default-Data'!$F$19/wind_dollar_index)/'SouthAfrica-IO-Data'!$AT25","v":0},{"$f":"(DR148*'Default-Data'!$F$19/wind_dollar_index)/'SouthAfrica-IO-Data'!$AT25","v":10.713282435610013},{"$f":"(DS148*'Default-Data'!$F$19/wind_dollar_index)/'SouthAfrica-IO-Data'!$AT25","v":4.0941142415114484},2892.206567655961,996.4271830931275,{"$f":"DJ148*'SouthAfrica-IO-Data'!AR25","v":0},{"$f":"'SouthAfrica-IO-Data'!$AR25*Calculations!DW148","v":878.918835288732},{"$f":"'SouthAfrica-IO-Data'!$AR25*Calculations!DX148","v":302.80638631010152},{"$f":"DJ148*'SouthAfrica-IO-Data'!AS25","v":0},{"$f":"DW148*'SouthAfrica-IO-Data'!$AS25","v":703.69776021929556},{"$f":"DX148*'SouthAfrica-IO-Data'!$AS25","v":242.4389685044323},{"$f":"(EB148*'Default-Data'!$F$19/wind_dollar_index)/'SouthAfrica-IO-Data'!$AT25","v":0},{"$f":"(EC148*'Default-Data'!$F$19/wind_dollar_index)/'SouthAfrica-IO-Data'!$AT25","v":5.4819478887021662E-2},{"$f":"(ED148*'Default-Data'!$F$19/wind_dollar_index)/'SouthAfrica-IO-Data'!$AT25","v":1.8886486026583788E-2},null,"FOREST",0,0,null,1565355.0152566088,86212.21806393913,{"$f":"EJ148*'Zambia-IO-Data'!BO23","v":0},{"$f":"EM148*'Zambia-IO-Data'!$BO23","v":501767.99468759104},{"$f":"EN148*'Zambia-IO-Data'!$BO23","v":27634.965457609418},{"$f":"EJ148*'Zambia-IO-Data'!BN23","v":0},{"$f":"EM148*'Zambia-IO-Data'!$BN23","v":284758.76691327576},{"$f":"EN148*'Zambia-IO-Data'!$BN23","v":15683.141951489715},{"$f":"(ER148*'Default-Data'!$F$19/wind_dollar_index)/'Zambia-IO-Data'!$BP23","v":0},{"$f":"(ES148*'Default-Data'!$F$19/wind_dollar_index)/'Zambia-IO-Data'!$BP23","v":2757.3556197624544},{"$f":"(ET148*'Default-Data'!$F$19/wind_dollar_index)/'Zambia-IO-Data'!$BP23","v":151.86187264479403},2163.8391020086478,198.29992090765654,{"$f":"EK148*'Zambia-IO-Data'!BO23","v":0},{"$f":"EX148*'Zambia-IO-Data'!$BO23","v":693.60956234167145},{"$f":"EY148*'Zambia-IO-Data'!$BO23","v":63.564209199043319},{"$f":"EK148*'Zambia-IO-Data'!BN23","v":0},{"$f":"EX148*'Zambia-IO-Data'!$BN23","v":393.6309325879684},{"$f":"EY148*'Zambia-IO-Data'!$BN23","v":36.073376586337915},{"$f":"(FC148*'Default-Data'!$F$19/wind_dollar_index)/'Zambia-IO-Data'!$BP23","v":0},{"$f":"(FD148*'Default-Data'!$F$19/wind_dollar_index)/'Zambia-IO-Data'!$BP23","v":3.8115787473343246},{"$f":"(FE148*'Default-Data'!$F$19/wind_dollar_index)/'Zambia-IO-Data'!$BP23","v":0.34930312675654773},null,"TTL_C29: Machinery and equipment, nec",0,0,null,2824502.0263195923,491477.96066530235,{"$f":"FK148*CustomRegion1!C21","v":0},{"$f":"FN148*CustomRegion1!$C21","v":1033393.2252253412},{"$f":"FO148*CustomRegion1!$C21","v":179815.7658116059},{"$f":"FK148*CustomRegion1!D21","v":0},{"$f":"FN148*CustomRegion1!$D21","v":307442.08192007244},{"$f":"FO148*CustomRegion1!$D21","v":53496.512318548768},{"$f":"(FS148*'Default-Data'!$C$58/wind_dollar_index)/CustomRegion1!$E21","v":0},{"$f":"(FT148*'Default-Data'!$C$58/wind_dollar_index)/CustomRegion1!$E21","v":95.636800147957388},{"$f":"(FU148*'Default-Data'!$C$58/wind_dollar_index)/CustomRegion1!$E21","v":16.641297851189698},10999.819992069632,2145.1152019431647,{"$f":"FL148*CustomRegion1!C21","v":0},{"$f":"FY148*CustomRegion1!$C21","v":4024.4755898846829},{"$f":"FZ148*CustomRegion1!$C21","v":784.8277311751275},{"$f":"FL148*CustomRegion1!D21","v":0},{"$f":"FY148*CustomRegion1!$D21","v":1197.3110755790517},{"$f":"FZ148*CustomRegion1!$D21","v":233.49202000862041},{"$f":"(GD148*'Default-Data'!$C$58/wind_dollar_index)/CustomRegion1!$E21","v":0},{"$f":"(GE148*'Default-Data'!$C$58/wind_dollar_index)/CustomRegion1!$E21","v":0.37245063959675745},{"$f":"(GF148*'Default-Data'!$C$58/wind_dollar_index)/CustomRegion1!$E21","v":7.2632963952906984E-2},null,"C29 Machinery and equipment n.e.c ",0,0,null,6795341.0470347684,1081589.5261556143,{"$f":"GL148*CustomRegion2!C25","v":0},{"$f":"GO148*CustomRegion2!$C25","v":2553334.5005074339},{"$f":"GP148*CustomRegion2!$C25","v":406404.8932063097},{"$f":"GL148*CustomRegion2!D25","v":0},{"$f":"GO148*CustomRegion2!$D25","v":1828498.7588070475},{"$f":"GP148*CustomRegion2!$D25","v":291035.44508295588},{"$f":"(GT148*'Default-Data'!$C$59/wind_dollar_index)/CustomRegion2!$E25","v":0},{"$f":"(GU148*'Default-Data'!$C$59/wind_dollar_index)/CustomRegion2!$E25","v":204.01774600245818},{"$f":"(GV148*'Default-Data'!$C$59/wind_dollar_index)/CustomRegion2!$E25","v":32.472756804814736},0,0,{"$f":"GM148*CustomRegion2!C25","v":0},{"$f":"GZ148*CustomRegion2!$C25","v":0},{"$f":"HA148*CustomRegion2!$C25","v":0},{"$f":"GM148*CustomRegion2!D25","v":0},{"$f":"GZ148*CustomRegion2!$D25","v":0},{"$f":"HA148*CustomRegion2!$D25","v":0},{"$f":"(HE148*'Default-Data'!$C$59/wind_dollar_index)/CustomRegion2!$E25","v":0},{"$f":"(HF148*'Default-Data'!$C$59/wind_dollar_index)/CustomRegion2!$E25","v":0},{"$f":"(HG148*'Default-Data'!$C$59/wind_dollar_index)/CustomRegion2!$E25","v":0},null,"FOREST",0,0,null,1565355.0152566088,86212.21806393913,{"$f":"HM148*CustomRegion3!D24","v":0},{"$f":"HP148*CustomRegion3!$D24","v":501767.99468759104},{"$f":"HQ148*CustomRegion3!$D24","v":27634.965457609418},{"$f":"HM148*CustomRegion3!E24","v":0},{"$f":"HP148*CustomRegion3!$E24","v":284758.76691327576},{"$f":"HQ148*CustomRegion3!$E24","v":15683.141951489715},{"$f":"(HU148*'Default-Data'!$C$60/wind_dollar_index)/CustomRegion3!$F24","v":0},{"$f":"(HV148*'Default-Data'!$C$60/wind_dollar_index)/CustomRegion3!$F24","v":2757.3556197624544},{"$f":"(HW148*'Default-Data'!$C$60/wind_dollar_index)/CustomRegion3!$F24","v":151.86187264479403},2163.8391020086478,198.29992090765654,{"$f":"HN148*CustomRegion3!D24","v":0},{"$f":"IA148*CustomRegion3!$D24","v":693.60956234167145},{"$f":"IB148*CustomRegion3!$D24","v":63.564209199043319},{"$f":"HN148*CustomRegion3!E24","v":0},{"$f":"IA148*CustomRegion3!$E24","v":393.6309325879684},{"$f":"IB148*CustomRegion3!$E24","v":36.073376586337915},{"$f":"(IF148*'Default-Data'!$C$60/wind_dollar_index)/CustomRegion3!$F24","v":0},{"$f":"(IG148*'Default-Data'!$C$60/wind_dollar_index)/CustomRegion3!$F24","v":3.8115787473343246},{"$f":"(IH148*'Default-Data'!$C$60/wind_dollar_index)/CustomRegion3!$F24","v":0.34930312675654773}]
[null,null,null,null,null,null,null,null,null,null,null,null,null,null,null,null,null,null,null,null,null,null,null,null,null,null,null,null,null,148,"TTL_C30T33X: Computer, Electronic and optical equipment",0,0,null,259992.67596214608,37186.832237119903,{"$f":"AF149*'Colombia-IO-Data'!AN26","v":0},{"$f":"AI149*'Colombia-IO-Data'!$AN26","v":62111.353760887861},{"$f":"AJ149*'Colombia-IO-Data'!$AN26","v":8883.8059909919539},{"$f":"AK149*'Colombia-IO-Data'!$AO26","v":0},{"$f":"AL149*'Colombia-IO-Data'!$AO26","v":24672.408422338827},{"$f":"AM149*'Colombia-IO-Data'!$AO26","v":3528.9021488466883},{"$f":"(Calculations!AN149*'Default-Data'!$F$19/wind_dollar_index)/'Colombia-IO-Data'!$AP26","v":0},{"$f":"(Calculations!AO149*'Default-Data'!$F$19/wind_dollar_index)/'Colombia-IO-Data'!$AP26","v":5.8000754542235224},{"$f":"(Calculations!AP149*'Default-Data'!$F$19/wind_dollar_index)/'Colombia-IO-Data'!$AP26","v":0.82958657231656108},979.36614310638276,194.64927419499543,{"$f":"AG149*'Colombia-IO-Data'!AN26","v":0},{"$f":"AT149*'Colombia-IO-Data'!$AN26","v":233.96719446348345},{"$f":"AU149*'Colombia-IO-Data'!$AN26","v":46.501040400790629},{"$f":"AV149*'Colombia-IO-Data'!$AO26","v":0},{"$f":"AW149*'Colombia-IO-Data'!$AO26","v":92.938469856164332},{"$f":"AX149*'Colombia-IO-Data'!$AO26","v":18.471544916711288},{"$f":"(AY149*'Default-Data'!$F$19/wind_dollar_index)/'Colombia-IO-Data'!$AP26","v":0},{"$f":"(AZ149*'Default-Data'!$F$19/wind_dollar_index)/'Colombia-IO-Data'!$AP26","v":2.1848298250355089E-2},{"$f":"(BA149*'Default-Data'!$F$19/wind_dollar_index)/'Colombia-IO-Data'!$AP26","v":4.3423549269718358E-3},null,"DOM_C30T33X: Computer, Electronic and optical equipment",0,0,null,385872.5862041802,515601.40243323817,{"$f":"BG149*'Mexico-IO-Data'!AQ26","v":0},{"$f":"BJ149*'Mexico-IO-Data'!$AQ26","v":52303.970126253691},{"$f":"BK149*'Mexico-IO-Data'!$AQ26","v":69888.355156830905},{"$f":"BG149*'Mexico-IO-Data'!AR26","v":0},{"$f":"BJ149*'Mexico-IO-Data'!$AR26","v":22424.831258503131},{"$f":"BK149*'Mexico-IO-Data'!$AR26","v":29963.969609634001},{"$f":"(BO149*'Default-Data'!$F$19/wind_dollar_index)/'Mexico-IO-Data'!$AS26","v":0},{"$f":"(BP149*'Default-Data'!$F$19/wind_dollar_index)/'Mexico-IO-Data'!$AS26","v":2.8654404315181372},{"$f":"(BQ149*'Default-Data'!$F$19/wind_dollar_index)/'Mexico-IO-Data'!$AS26","v":3.8287900148933911},2937.8550833288023,1950.1929441099487,{"$f":"BH149*'Mexico-IO-Data'!AQ26","v":0},{"$f":"BU149*'Mexico-IO-Data'!$AQ26","v":398.21819431449313},{"$f":"BV149*'Mexico-IO-Data'!$AQ26","v":264.34330174257008},{"$f":"BH149*'Mexico-IO-Data'!AR26","v":0},{"$f":"BX149*'Mexico-IO-Data'!$AR26","v":23.142291343918178},{"$f":"BY149*'Mexico-IO-Data'!$AR26","v":15.362205421755597},{"$f":"(CA149*'Default-Data'!$F$19/wind_dollar_index)/'Mexico-IO-Data'!$AS26","v":2.9571173370453161E-3},{"$f":"(CB149*'Default-Data'!$F$19/wind_dollar_index)/'Mexico-IO-Data'!$AS26","v":1.9629795214665948E-3},{"$f":"(CC149*'Default-Data'!$F$19/wind_dollar_index)/'Mexico-IO-Data'!$AS26","v":3.7785985903906869E-7},null,"TTL_C30T33X: Computer, Electronic and optical equipment",0,0,null,17372385.296611119,2161013.0395096168,{"$f":"CH149*'Philippines-IO-Data'!AN26","v":0},{"$f":"CK149*'Philippines-IO-Data'!$AN26","v":4281585.2353278054},{"$f":"CL149*'Philippines-IO-Data'!$AN26","v":532601.67589767661},{"$f":"CH149*'Philippines-IO-Data'!AO26","v":0},{"$f":"CK149*'Philippines-IO-Data'!$AO26","v":1606623.1266335119},{"$f":"CL149*'Philippines-IO-Data'!$AO26","v":199853.58757326257},{"$f":"(CP149*'Default-Data'!$F$19/wind_dollar_index)/'Philippines-IO-Data'!$AP26","v":0},{"$f":"(CQ149*'Default-Data'!$F$19/wind_dollar_index)/'Philippines-IO-Data'!$AP26","v":499.77639337896989},{"$f":"(CR149*'Default-Data'!$F$19/wind_dollar_index)/'Philippines-IO-Data'!$AP26","v":62.16897014952373},23488.366779439901,9370.2258786671518,{"$f":"CI149*'Philippines-IO-Data'!AN26","v":0},{"$f":"CV149*'Philippines-IO-Data'!$AN26","v":5788.9255095229764},{"$f":"CW149*'Philippines-IO-Data'!$AN26","v":2309.3789418551519},{"$f":"CI149*'Philippines-IO-Data'!AO26","v":0},{"$f":"CV149*'Philippines-IO-Data'!$AO26","v":2172.237872369772},{"$f":"CW149*'Philippines-IO-Data'!$AO26","v":866.57193824633714},{"$f":"(DA149*'Default-Data'!$F$19/wind_dollar_index)/'Philippines-IO-Data'!$AP26","v":0},{"$f":"(DB149*'Default-Data'!$F$19/wind_dollar_index)/'Philippines-IO-Data'!$AP26","v":0.67572362890666671},{"$f":"(DC149*'Default-Data'!$F$19/wind_dollar_index)/'Philippines-IO-Data'!$AP26","v":0.26956676442699484},null,"DOM_C30T33X: Computer, Electronic and optical equipment",0,0,null,458469.80450334749,380008.27305501245,{"$f":"DI149*'SouthAfrica-IO-Data'!AR26","v":0},{"$f":"DL149*'SouthAfrica-IO-Data'!$AR26","v":116689.6213976603},{"$f":"DM149*'SouthAfrica-IO-Data'!$AR26","v":96719.611793854463},{"$f":"DI149*'SouthAfrica-IO-Data'!AS26","v":0},{"$f":"DL149*'SouthAfrica-IO-Data'!$AS26","v":81573.583622480146},{"$f":"DM149*'SouthAfrica-IO-Data'!$AS26","v":67613.256826952042},{"$f":"(DQ149*'Default-Data'!$F$19/wind_dollar_index)/'SouthAfrica-IO-Data'!$AT26","v":0},{"$f":"(DR149*'Default-Data'!$F$19/wind_dollar_index)/'SouthAfrica-IO-Data'!$AT26","v":6.3547471626706304},{"$f":"(DS149*'Default-Data'!$F$19/wind_dollar_index)/'SouthAfrica-IO-Data'!$AT26","v":5.2672094678158343},353.68589564892147,1753.0094461629283,{"$f":"DJ149*'SouthAfrica-IO-Data'!AR26","v":0},{"$f":"'SouthAfrica-IO-Data'!$AR26*Calculations!DW149","v":90.020046798226375},{"$f":"'SouthAfrica-IO-Data'!$AR26*Calculations!DX149","v":446.17553123453456},{"$f":"DJ149*'SouthAfrica-IO-Data'!AS26","v":0},{"$f":"DW149*'SouthAfrica-IO-Data'!$AS26","v":62.929828096450848},{"$f":"DX149*'SouthAfrica-IO-Data'!$AS26","v":311.90551971569403},{"$f":"(EB149*'Default-Data'!$F$19/wind_dollar_index)/'SouthAfrica-IO-Data'!$AT26","v":0},{"$f":"(EC149*'Default-Data'!$F$19/wind_dollar_index)/'SouthAfrica-IO-Data'!$AT26","v":4.9023608965619329E-3},{"$f":"(ED149*'Default-Data'!$F$19/wind_dollar_index)/'SouthAfrica-IO-Data'!$AT26","v":2.4298070875586626E-2},null,"MINING",0,0,null,34598741.110993572,496286.6318885386,{"$f":"EJ149*'Zambia-IO-Data'!BO24","v":0},{"$f":"EM149*'Zambia-IO-Data'!$BO24","v":8452894.980806455},{"$f":"EN149*'Zambia-IO-Data'!$BO24","v":121248.88493122111},{"$f":"EJ149*'Zambia-IO-Data'!BN24","v":0},{"$f":"EM149*'Zambia-IO-Data'!$BN24","v":308285.35113656201},{"$f":"EN149*'Zambia-IO-Data'!$BN24","v":4422.0654758888186},{"$f":"(ER149*'Default-Data'!$F$19/wind_dollar_index)/'Zambia-IO-Data'!$BP24","v":0},{"$f":"(ES149*'Default-Data'!$F$19/wind_dollar_index)/'Zambia-IO-Data'!$BP24","v":271.72028367145072},{"$f":"(ET149*'Default-Data'!$F$19/wind_dollar_index)/'Zambia-IO-Data'!$BP24","v":3.897573728665356},45835.475739827387,1147.3885059308304,{"$f":"EK149*'Zambia-IO-Data'!BO24","v":0},{"$f":"EX149*'Zambia-IO-Data'!$BO24","v":11198.166476090515},{"$f":"EY149*'Zambia-IO-Data'!$BO24","v":280.32102415818838},{"$f":"EK149*'Zambia-IO-Data'!BN24","v":0},{"$f":"EX149*'Zambia-IO-Data'!$BN24","v":408.40808882708717},{"$f":"EY149*'Zambia-IO-Data'!$BN24","v":10.223582046126749},{"$f":"(FC149*'Default-Data'!$F$19/wind_dollar_index)/'Zambia-IO-Data'!$BP24","v":0},{"$f":"(FD149*'Default-Data'!$F$19/wind_dollar_index)/'Zambia-IO-Data'!$BP24","v":0.35996767715587391},{"$f":"(FE149*'Default-Data'!$F$19/wind_dollar_index)/'Zambia-IO-Data'!$BP24","v":9.0109848018090008E-3},null,"TTL_C30T33X: Computer, Electronic and optical equipment",0,0,null,28530725.128060304,5379695.6450577006,{"$f":"FK149*CustomRegion1!C22","v":0},{"$f":"FN149*CustomRegion1!$C22","v":7031661.419881613},{"$f":"FO149*CustomRegion1!$C22","v":1325875.8110165549},{"$f":"FK149*CustomRegion1!D22","v":0},{"$f":"FN149*CustomRegion1!$D22","v":2638562.4096943857},{"$f":"FO149*CustomRegion1!$D22","v":497521.97467582836},{"$f":"(FS149*'Default-Data'!$C$58/wind_dollar_index)/CustomRegion1!$E22","v":0},{"$f":"(FT149*'Default-Data'!$C$58/wind_dollar_index)/CustomRegion1!$E22","v":820.78440361153332},{"$f":"(FU149*'Default-Data'!$C$58/wind_dollar_index)/CustomRegion1!$E22","v":154.76544188137308},43893.332426788889,23480.334488283515,{"$f":"FL149*CustomRegion1!C22","v":0},{"$f":"FY149*CustomRegion1!$C22","v":10817.918255850283},{"$f":"FZ149*CustomRegion1!$C22","v":5786.9458769835264},{"$f":"FL149*CustomRegion1!D22","v":0},{"$f":"FY149*CustomRegion1!$D22","v":4059.318382470381},{"$f":"FZ149*CustomRegion1!$D22","v":2171.495034554966},{"$f":"(GD149*'Default-Data'!$C$58/wind_dollar_index)/CustomRegion1!$E22","v":0},{"$f":"(GE149*'Default-Data'!$C$58/wind_dollar_index)/CustomRegion1!$E22","v":1.2627426227948113},{"$f":"(GF149*'Default-Data'!$C$58/wind_dollar_index)/CustomRegion1!$E22","v":0.67549255243465844},null,"C30 Office, accounting and computing machinery",0,0,null,36513566.899427094,7331272.7846897393,{"$f":"GL149*CustomRegion2!C26","v":0},{"$f":"GO149*CustomRegion2!$C26","v":5998845.2806480275},{"$f":"GP149*CustomRegion2!$C26","v":1204461.1052849349},{"$f":"GL149*CustomRegion2!D26","v":0},{"$f":"GO149*CustomRegion2!$D26","v":2525412.9740353683},{"$f":"GP149*CustomRegion2!$D26","v":507057.86859016417},{"$f":"(GT149*'Default-Data'!$C$59/wind_dollar_index)/CustomRegion2!$E26","v":0},{"$f":"(GU149*'Default-Data'!$C$59/wind_dollar_index)/CustomRegion2!$E26","v":322.69676229280316},{"$f":"(GV149*'Default-Data'!$C$59/wind_dollar_index)/CustomRegion2!$E26","v":64.791752545595358},0,0,{"$f":"GM149*CustomRegion2!C26","v":0},{"$f":"GZ149*CustomRegion2!$C26","v":0},{"$f":"HA149*CustomRegion2!$C26","v":0},{"$f":"GM149*CustomRegion2!D26","v":0},{"$f":"GZ149*CustomRegion2!$D26","v":0},{"$f":"HA149*CustomRegion2!$D26","v":0},{"$f":"(HE149*'Default-Data'!$C$59/wind_dollar_index)/CustomRegion2!$E26","v":0},{"$f":"(HF149*'Default-Data'!$C$59/wind_dollar_index)/CustomRegion2!$E26","v":0},{"$f":"(HG149*'Default-Data'!$C$59/wind_dollar_index)/CustomRegion2!$E26","v":0},null,"MINING",0,0,null,34598741.110993572,496286.6318885386,{"$f":"HM149*CustomRegion3!D25","v":0},{"$f":"HP149*CustomRegion3!$D25","v":8452894.980806455},{"$f":"HQ149*CustomRegion3!$D25","v":121248.88493122111},{"$f":"HM149*CustomRegion3!E25","v":0},{"$f":"HP149*CustomRegion3!$E25","v":308285.35113656201},{"$f":"HQ149*CustomRegion3!$E25","v":4422.0654758888186},{"$f":"(HU149*'Default-Data'!$C$60/wind_dollar_index)/CustomRegion3!$F25","v":0},{"$f":"(HV149*'Default-Data'!$C$60/wind_dollar_index)/CustomRegion3!$F25","v":271.72028367145072},{"$f":"(HW149*'Default-Data'!$C$60/wind_dollar_index)/CustomRegion3!$F25","v":3.897573728665356},45835.475739827387,1147.3885059308304,{"$f":"HN149*CustomRegion3!D25","v":0},{"$f":"IA149*CustomRegion3!$D25","v":11198.166476090515},{"$f":"IB149*CustomRegion3!$D25","v":280.32102415818838},{"$f":"HN149*CustomRegion3!E25","v":0},{"$f":"IA149*CustomRegion3!$E25","v":408.40808882708717},{"$f":"IB149*CustomRegion3!$E25","v":10.223582046126749},{"$f":"(IF149*'Default-Data'!$C$60/wind_dollar_index)/CustomRegion3!$F25","v":0},{"$f":"(IG149*'Default-Data'!$C$60/wind_dollar_index)/CustomRegion3!$F25","v":0.35996767715587391},{"$f":"(IH149*'Default-Data'!$C$60/wind_dollar_index)/CustomRegion3!$F25","v":9.0109848018090008E-3}]
[null,null,null,null,null,null,null,null,null,null,null,null,null,null,null,null,null,null,null,null,null,null,null,null,null,null,null,null,null,149,"TTL_C31: Electrical machinery and apparatus, nec",{"$f":"'Wind-Inputs'!B13*'Wind-Inputs'!C13+'Wind-Inputs'!B20*'Wind-Inputs'!C20","v":22977941.176470589},{"$f":"0.5*'Wind-Inputs'!B34*'Wind-Inputs'!C34","v":0},null,10464642.868333589,138582.2805718556,{"$f":"AF150*'Colombia-IO-Data'!AN27","v":5811862.1784212803},{"$f":"AI150*'Colombia-IO-Data'!$AN27","v":2646845.5824681409},{"$f":"AJ150*'Colombia-IO-Data'!$AN27","v":35051.926927190718},{"$f":"AK150*'Colombia-IO-Data'!$AO27","v":3008208.2301319824},{"$f":"AL150*'Colombia-IO-Data'!$AO27","v":1370001.9753792563},{"$f":"AM150*'Colombia-IO-Data'!$AO27","v":18142.80721519146},{"$f":"(Calculations!AN150*'Default-Data'!$F$19/wind_dollar_index)/'Colombia-IO-Data'!$AP27","v":707.18003764010825},{"$f":"(Calculations!AO150*'Default-Data'!$F$19/wind_dollar_index)/'Colombia-IO-Data'!$AP27","v":322.06482211280246},{"$f":"(Calculations!AP150*'Default-Data'!$F$19/wind_dollar_index)/'Colombia-IO-Data'!$AP27","v":4.2650741264587957},12610.234176188826,725.38957224416845,{"$f":"AG150*'Colombia-IO-Data'!AN27","v":0},{"$f":"AT150*'Colombia-IO-Data'!$AN27","v":3189.5348023901788},{"$f":"AU150*'Colombia-IO-Data'!$AN27","v":183.47441083468863},{"$f":"AV150*'Colombia-IO-Data'!$AO27","v":0},{"$f":"AW150*'Colombia-IO-Data'!$AO27","v":1650.8968293272269},{"$f":"AX150*'Colombia-IO-Data'!$AO27","v":94.965987793167443},{"$f":"(AY150*'Default-Data'!$F$19/wind_dollar_index)/'Colombia-IO-Data'!$AP27","v":0},{"$f":"(AZ150*'Default-Data'!$F$19/wind_dollar_index)/'Colombia-IO-Data'!$AP27","v":0.38809855987008635},{"$f":"(BA150*'Default-Data'!$F$19/wind_dollar_index)/'Colombia-IO-Data'!$AP27","v":2.2324934208146793E-2},null,"DOM_C31: Electrical machinery and apparatus, nec",22977941.176470589,0,null,1368675.7050464898,249806.69927218184,{"$f":"BG150*'Mexico-IO-Data'!AQ27","v":6164874.3702098867},{"$f":"BJ150*'Mexico-IO-Data'!$AQ27","v":367209.30349540064},{"$f":"BK150*'Mexico-IO-Data'!$AQ27","v":67021.971464823408},{"$f":"BG150*'Mexico-IO-Data'!AR27","v":2127096.8636462046},{"$f":"BJ150*'Mexico-IO-Data'!$AR27","v":126700.02839655294},{"$f":"BK150*'Mexico-IO-Data'!$AR27","v":23124.919785406379},{"$f":"(BO150*'Default-Data'!$F$19/wind_dollar_index)/'Mexico-IO-Data'!$AS27","v":305.09394139952894},{"$f":"(BP150*'Default-Data'!$F$19/wind_dollar_index)/'Mexico-IO-Data'!$AS27","v":18.172849436049962},{"$f":"(BQ150*'Default-Data'!$F$19/wind_dollar_index)/'Mexico-IO-Data'!$AS27","v":3.3168554956089995},5995.7266936736996,944.86023508270409,{"$f":"BH150*'Mexico-IO-Data'!AQ27","v":0},{"$f":"BU150*'Mexico-IO-Data'!$AQ27","v":1608.6254874071253},{"$f":"BV150*'Mexico-IO-Data'!$AQ27","v":253.50159102402935},{"$f":"BH150*'Mexico-IO-Data'!AR27","v":0},{"$f":"BX150*'Mexico-IO-Data'!$AR27","v":148.91248100804029},{"$f":"BY150*'Mexico-IO-Data'!$AR27","v":23.466960553833232},{"$f":"(CA150*'Default-Data'!$F$19/wind_dollar_index)/'Mexico-IO-Data'!$AS27","v":2.1358827861015624E-2},{"$f":"(CB150*'Default-Data'!$F$19/wind_dollar_index)/'Mexico-IO-Data'!$AS27","v":3.3659151167020375E-3},{"$f":"(CC150*'Default-Data'!$F$19/wind_dollar_index)/'Mexico-IO-Data'!$AS27","v":3.0635412458937239E-6},null,"TTL_C31: Electrical machinery and apparatus, nec",{"$f":"'Wind-Inputs'!B13*'Wind-Inputs'!C13+'Wind-Inputs'!B20*'Wind-Inputs'!C20","v":22977941.176470589},{"$f":"0.5*'Wind-Inputs'!B34*'Wind-Inputs'!C34","v":0},null,288160.41725315154,1227679.6824888699,{"$f":"CH150*'Philippines-IO-Data'!AN27","v":5970452.1839496428},{"$f":"CK150*'Philippines-IO-Data'!$AN27","v":74873.896634336314},{"$f":"CL150*'Philippines-IO-Data'!$AN27","v":318993.01966235315},{"$f":"CH150*'Philippines-IO-Data'!AO27","v":1996576.3267462091},{"$f":"CK150*'Philippines-IO-Data'!$AO27","v":25038.54731694128},{"$f":"CL150*'Philippines-IO-Data'!$AO27","v":106674.31742729692},{"$f":"(CP150*'Default-Data'!$F$19/wind_dollar_index)/'Philippines-IO-Data'!$AP27","v":621.08013954580065},{"$f":"(CQ150*'Default-Data'!$F$19/wind_dollar_index)/'Philippines-IO-Data'!$AP27","v":7.7888053931667951},{"$f":"(CR150*'Default-Data'!$F$19/wind_dollar_index)/'Philippines-IO-Data'!$AP27","v":33.183454629891678},492.09854860880796,5323.2607676358311,{"$f":"CI150*'Philippines-IO-Data'!AN27","v":0},{"$f":"CV150*'Philippines-IO-Data'!$AN27","v":127.86397317739114},{"$f":"CW150*'Philippines-IO-Data'!$AN27","v":1383.1645590776361},{"$f":"CI150*'Philippines-IO-Data'!AO27","v":0},{"$f":"CV150*'Philippines-IO-Data'!$AO27","v":42.758935843416957},{"$f":"CW150*'Philippines-IO-Data'!$AO27","v":462.54346062309224},{"$f":"(DA150*'Default-Data'!$F$19/wind_dollar_index)/'Philippines-IO-Data'!$AP27","v":0},{"$f":"(DB150*'Default-Data'!$F$19/wind_dollar_index)/'Philippines-IO-Data'!$AP27","v":1.3301132285655437E-2},{"$f":"(DC150*'Default-Data'!$F$19/wind_dollar_index)/'Philippines-IO-Data'!$AP27","v":0.14388458543829277},null,"DOM_C31: Electrical machinery and apparatus, nec",22977941.176470589,0,null,3846431.3832966238,732166.85629877448,{"$f":"DI150*'SouthAfrica-IO-Data'!AR27","v":4322261.1096840492},{"$f":"DL150*'SouthAfrica-IO-Data'!$AR27","v":723532.21950604965},{"$f":"DM150*'SouthAfrica-IO-Data'!$AR27","v":137724.10262849787},{"$f":"DI150*'SouthAfrica-IO-Data'!AS27","v":4409757.8987927046},{"$f":"DL150*'SouthAfrica-IO-Data'!$AS27","v":738178.89272104809},{"$f":"DM150*'SouthAfrica-IO-Data'!$AS27","v":140512.0917057578},{"$f":"(DQ150*'Default-Data'!$F$19/wind_dollar_index)/'SouthAfrica-IO-Data'!$AT27","v":343.52905991118865},{"$f":"(DR150*'Default-Data'!$F$19/wind_dollar_index)/'SouthAfrica-IO-Data'!$AT27","v":57.505628853722364},{"$f":"(DS150*'Default-Data'!$F$19/wind_dollar_index)/'SouthAfrica-IO-Data'!$AT27","v":10.946176156983352},10372.595705235919,3377.5459806195795,{"$f":"DJ150*'SouthAfrica-IO-Data'!AR27","v":0},{"$f":"'SouthAfrica-IO-Data'!$AR27*Calculations!DW150","v":1951.1350768504039},{"$f":"'SouthAfrica-IO-Data'!$AR27*Calculations!DX150","v":635.33262297453723},{"$f":"DJ150*'SouthAfrica-IO-Data'!AS27","v":0},{"$f":"DW150*'SouthAfrica-IO-Data'!$AS27","v":1990.632471850254},{"$f":"DX150*'SouthAfrica-IO-Data'!$AS27","v":648.1938460972458},{"$f":"(EB150*'Default-Data'!$F$19/wind_dollar_index)/'SouthAfrica-IO-Data'!$AT27","v":0},{"$f":"(EC150*'Default-Data'!$F$19/wind_dollar_index)/'SouthAfrica-IO-Data'!$AT27","v":0.15507429599947517},{"$f":"(ED150*'Default-Data'!$F$19/wind_dollar_index)/'SouthAfrica-IO-Data'!$AT27","v":5.0495611709424612E-2},null,"FOODMFG",0,0,null,136989.43981821925,11756745.042497696,{"$f":"EJ150*'Zambia-IO-Data'!BO25","v":0},{"$f":"EM150*'Zambia-IO-Data'!$BO25","v":15360.90549263514},{"$f":"EN150*'Zambia-IO-Data'!$BO25","v":1318307.8180220081},{"$f":"EJ150*'Zambia-IO-Data'!BN25","v":0},{"$f":"EM150*'Zambia-IO-Data'!$BN25","v":7111.9367652866149},{"$f":"EN150*'Zambia-IO-Data'!$BN25","v":610362.57552985603},{"$f":"(ER150*'Default-Data'!$F$19/wind_dollar_index)/'Zambia-IO-Data'!$BP25","v":0},{"$f":"(ES150*'Default-Data'!$F$19/wind_dollar_index)/'Zambia-IO-Data'!$BP25","v":26.719262483418209},{"$f":"(ET150*'Default-Data'!$F$19/wind_dollar_index)/'Zambia-IO-Data'!$BP25","v":2293.1078275665964},390.53804180632449,26704.865874686457,{"$f":"EK150*'Zambia-IO-Data'!BO25","v":0},{"$f":"EX150*'Zambia-IO-Data'!$BO25","v":43.791827745454341},{"$f":"EY150*'Zambia-IO-Data'!$BO25","v":2994.4711171816825},{"$f":"EK150*'Zambia-IO-Data'!BN25","v":0},{"$f":"EX150*'Zambia-IO-Data'!$BN25","v":20.275153044286281},{"$f":"EY150*'Zambia-IO-Data'!$BN25","v":1386.4084536607556},{"$f":"(FC150*'Default-Data'!$F$19/wind_dollar_index)/'Zambia-IO-Data'!$BP25","v":0},{"$f":"(FD150*'Default-Data'!$F$19/wind_dollar_index)/'Zambia-IO-Data'!$BP25","v":7.6172940502787029E-2},{"$f":"(FE150*'Default-Data'!$F$19/wind_dollar_index)/'Zambia-IO-Data'!$BP25","v":5.2086812081067198},null,"TTL_C31: Electrical machinery and apparatus, nec",22977941.176470589,0,null,828507.40020078048,2329025.6455518939,{"$f":"FK150*CustomRegion1!C23","v":5970452.1839496428},{"$f":"FN150*CustomRegion1!$C23","v":215274.45731354173},{"$f":"FO150*CustomRegion1!$C23","v":605160.23368530057},{"$f":"FK150*CustomRegion1!D23","v":1996576.3267462091},{"$f":"FN150*CustomRegion1!$D23","v":71989.837952444766},{"$f":"FO150*CustomRegion1!$D23","v":202371.37142014262},{"$f":"(FS150*'Default-Data'!$C$58/wind_dollar_index)/CustomRegion1!$E23","v":621.08013954580065},{"$f":"(FT150*'Default-Data'!$C$58/wind_dollar_index)/CustomRegion1!$E23","v":22.394064280151802},{"$f":"(FU150*'Default-Data'!$C$58/wind_dollar_index)/CustomRegion1!$E23","v":62.952183654571563},2738.3935494481457,10165.315065656006,{"$f":"FL150*CustomRegion1!C23","v":0},{"$f":"FY150*CustomRegion1!$C23","v":711.52796598496514},{"$f":"FZ150*CustomRegion1!$C23","v":2641.2952782919574},{"$f":"FL150*CustomRegion1!D23","v":0},{"$f":"FY150*CustomRegion1!$D23","v":237.94175866988996},{"$f":"FZ150*CustomRegion1!$D23","v":883.27440905751359},{"$f":"(GD150*'Default-Data'!$C$58/wind_dollar_index)/CustomRegion1!$E23","v":0},{"$f":"(GE150*'Default-Data'!$C$58/wind_dollar_index)/CustomRegion1!$E23","v":7.4017155617238456E-2},{"$f":"(GF150*'Default-Data'!$C$58/wind_dollar_index)/CustomRegion1!$E23","v":0.27476244503444291},null,"C31 Electrical machinery and apparatus n.e.c",22977941.176470589,0,null,18207430.772844579,3506666.9687959552,{"$f":"GL150*CustomRegion2!C27","v":5966573.4167268258},{"$f":"GO150*CustomRegion2!$C27","v":4727837.520421179},{"$f":"GP150*CustomRegion2!$C27","v":910559.64312228782},{"$f":"GL150*CustomRegion2!D27","v":2791099.3339726478},{"$f":"GO150*CustomRegion2!$D27","v":2211631.9087576913},{"$f":"GP150*CustomRegion2!$D27","v":425950.07820337836},{"$f":"(GT150*'Default-Data'!$C$59/wind_dollar_index)/CustomRegion2!$E27","v":400.3332011780688},{"$f":"(GU150*'Default-Data'!$C$59/wind_dollar_index)/CustomRegion2!$E27","v":317.21897930459176},{"$f":"(GV150*'Default-Data'!$C$59/wind_dollar_index)/CustomRegion2!$E27","v":61.094908473393048},0,0,{"$f":"GM150*CustomRegion2!C27","v":0},{"$f":"GZ150*CustomRegion2!$C27","v":0},{"$f":"HA150*CustomRegion2!$C27","v":0},{"$f":"GM150*CustomRegion2!D27","v":0},{"$f":"GZ150*CustomRegion2!$D27","v":0},{"$f":"HA150*CustomRegion2!$D27","v":0},{"$f":"(HE150*'Default-Data'!$C$59/wind_dollar_index)/CustomRegion2!$E27","v":0},{"$f":"(HF150*'Default-Data'!$C$59/wind_dollar_index)/CustomRegion2!$E27","v":0},{"$f":"(HG150*'Default-Data'!$C$59/wind_dollar_index)/CustomRegion2!$E27","v":0},null,"FOODMFG",0,0,null,136989.43981821925,11756745.042497696,{"$f":"HM150*CustomRegion3!D26","v":0},{"$f":"HP150*CustomRegion3!$D26","v":15360.90549263514},{"$f":"HQ150*CustomRegion3!$D26","v":1318307.8180220081},{"$f":"HM150*CustomRegion3!E26","v":0},{"$f":"HP150*CustomRegion3!$E26","v":7111.9367652866149},{"$f":"HQ150*CustomRegion3!$E26","v":610362.57552985603},{"$f":"(HU150*'Default-Data'!$C$60/wind_dollar_index)/CustomRegion3!$F26","v":0},{"$f":"(HV150*'Default-Data'!$C$60/wind_dollar_index)/CustomRegion3!$F26","v":26.719262483418209},{"$f":"(HW150*'Default-Data'!$C$60/wind_dollar_index)/CustomRegion3!$F26","v":2293.1078275665964},390.53804180632449,26704.865874686457,{"$f":"HN150*CustomRegion3!D26","v":0},{"$f":"IA150*CustomRegion3!$D26","v":43.791827745454341},{"$f":"IB150*CustomRegion3!$D26","v":2994.4711171816825},{"$f":"HN150*CustomRegion3!E26","v":0},{"$f":"IA150*CustomRegion3!$E26","v":20.275153044286281},{"$f":"IB150*CustomRegion3!$E26","v":1386.4084536607556},{"$f":"(IF150*'Default-Data'!$C$60/wind_dollar_index)/CustomRegion3!$F26","v":0},{"$f":"(IG150*'Default-Data'!$C$60/wind_dollar_index)/CustomRegion3!$F26","v":7.6172940502787029E-2},{"$f":"(IH150*'Default-Data'!$C$60/wind_dollar_index)/CustomRegion3!$F26","v":5.2086812081067198}]
[null,null,null,null,null,null,null,null,null,null,null,null,null,null,null,null,null,null,null,null,null,null,null,null,null,null,null,null,null,150,"TTL_C34: Motor vehicles, trailers and semi-trailers",0,0,null,428628.91988495324,428578.65972572292,{"$f":"AF151*'Colombia-IO-Data'!AN28","v":0},{"$f":"AI151*'Colombia-IO-Data'!$AN28","v":94343.949004118083},{"$f":"AJ151*'Colombia-IO-Data'!$AN28","v":94332.88642369154},{"$f":"AK151*'Colombia-IO-Data'!$AO28","v":0},{"$f":"AL151*'Colombia-IO-Data'!$AO28","v":24143.08642351301},{"$f":"AM151*'Colombia-IO-Data'!$AO28","v":24140.255454085458},{"$f":"(Calculations!AN151*'Default-Data'!$F$19/wind_dollar_index)/'Colombia-IO-Data'!$AP28","v":0},{"$f":"(Calculations!AO151*'Default-Data'!$F$19/wind_dollar_index)/'Colombia-IO-Data'!$AP28","v":5.6756406005109667},{"$f":"(Calculations!AP151*'Default-Data'!$F$19/wind_dollar_index)/'Colombia-IO-Data'!$AP28","v":5.674975086386552},731.72869705760399,2243.335074069676,{"$f":"AG151*'Colombia-IO-Data'!AN28","v":0},{"$f":"AT151*'Colombia-IO-Data'!$AN28","v":161.05813601793733},{"$f":"AU151*'Colombia-IO-Data'!$AN28","v":493.77230515380501},{"$f":"AV151*'Colombia-IO-Data'!$AO28","v":0},{"$f":"AW151*'Colombia-IO-Data'!$AO28","v":41.215579145634926},{"$f":"AX151*'Colombia-IO-Data'!$AO28","v":126.35879208686926},{"$f":"(AY151*'Default-Data'!$F$19/wind_dollar_index)/'Colombia-IO-Data'!$AP28","v":0},{"$f":"(AZ151*'Default-Data'!$F$19/wind_dollar_index)/'Colombia-IO-Data'!$AP28","v":9.6891014789525325E-3},{"$f":"(BA151*'Default-Data'!$F$19/wind_dollar_index)/'Colombia-IO-Data'!$AP28","v":2.9704863662390255E-2},null,"DOM_C34: Motor vehicles, trailers and semi-trailers",0,0,null,336749.56599812029,1678523.8382323501,{"$f":"BG151*'Mexico-IO-Data'!AQ28","v":0},{"$f":"BJ151*'Mexico-IO-Data'!$AQ28","v":114008.75619974348},{"$f":"BK151*'Mexico-IO-Data'!$AQ28","v":568275.16460572917},{"$f":"BG151*'Mexico-IO-Data'!AR28","v":0},{"$f":"BJ151*'Mexico-IO-Data'!$AR28","v":28940.73564203543},{"$f":"BK151*'Mexico-IO-Data'!$AR28","v":144254.7209441934},{"$f":"(BO151*'Default-Data'!$F$19/wind_dollar_index)/'Mexico-IO-Data'!$AS28","v":0},{"$f":"(BP151*'Default-Data'!$F$19/wind_dollar_index)/'Mexico-IO-Data'!$AS28","v":3.8930052079690181},{"$f":"(BQ151*'Default-Data'!$F$19/wind_dollar_index)/'Mexico-IO-Data'!$AS28","v":19.404633899291078},1027.2372104503861,6348.7906169241578,{"$f":"BH151*'Mexico-IO-Data'!AQ28","v":0},{"$f":"BU151*'Mexico-IO-Data'!$AQ28","v":347.77784000528266},{"$f":"BV151*'Mexico-IO-Data'!$AQ28","v":2149.4243636595083},{"$f":"BH151*'Mexico-IO-Data'!AR28","v":0},{"$f":"BX151*'Mexico-IO-Data'!$AR28","v":29.888521162361826},{"$f":"BY151*'Mexico-IO-Data'!$AR28","v":184.72458043663011},{"$f":"(CA151*'Default-Data'!$F$19/wind_dollar_index)/'Mexico-IO-Data'!$AS28","v":4.0204979577147804E-3},{"$f":"(CB151*'Default-Data'!$F$19/wind_dollar_index)/'Mexico-IO-Data'!$AS28","v":2.4848495994523909E-2},{"$f":"(CC151*'Default-Data'!$F$19/wind_dollar_index)/'Mexico-IO-Data'!$AS28","v":5.4082313876219185E-7},null,"TTL_C34: Motor vehicles, trailers and semi-trailers",0,0,null,116628.29524399755,804524.02166100289,{"$f":"CH151*'Philippines-IO-Data'!AN28","v":0},{"$f":"CK151*'Philippines-IO-Data'!$AN28","v":19053.900398619036},{"$f":"CL151*'Philippines-IO-Data'!$AN28","v":131437.40586240042},{"$f":"CH151*'Philippines-IO-Data'!AO28","v":0},{"$f":"CK151*'Philippines-IO-Data'!$AO28","v":4728.0772506402991},{"$f":"CL151*'Philippines-IO-Data'!$AO28","v":32615.170413414766},{"$f":"(CP151*'Default-Data'!$F$19/wind_dollar_index)/'Philippines-IO-Data'!$AP28","v":0},{"$f":"(CQ151*'Default-Data'!$F$19/wind_dollar_index)/'Philippines-IO-Data'!$AP28","v":1.4707751661047677},{"$f":"(CR151*'Default-Data'!$F$19/wind_dollar_index)/'Philippines-IO-Data'!$AP28","v":10.145685051112295},699.27696343516004,3488.4434614461943,{"$f":"CI151*'Philippines-IO-Data'!AN28","v":0},{"$f":"CV151*'Philippines-IO-Data'!$AN28","v":114.24289092511658},{"$f":"CW151*'Philippines-IO-Data'!$AN28","v":569.91705247471248},{"$f":"CI151*'Philippines-IO-Data'!AO28","v":0},{"$f":"CV151*'Philippines-IO-Data'!$AO28","v":28.348485209336616},{"$f":"CW151*'Philippines-IO-Data'!$AO28","v":141.42048578951102},{"$f":"(DA151*'Default-Data'!$F$19/wind_dollar_index)/'Philippines-IO-Data'!$AP28","v":0},{"$f":"(DB151*'Default-Data'!$F$19/wind_dollar_index)/'Philippines-IO-Data'!$AP28","v":8.8184362971087601E-3},{"$f":"(DC151*'Default-Data'!$F$19/wind_dollar_index)/'Philippines-IO-Data'!$AP28","v":4.3992034700684503E-2},null,"DOM_C34: Motor vehicles, trailers and semi-trailers",0,0,null,500092.99943723186,1264565.9242663106,{"$f":"DI151*'SouthAfrica-IO-Data'!AR28","v":0},{"$f":"DL151*'SouthAfrica-IO-Data'!$AR28","v":120912.53402038448},{"$f":"DM151*'SouthAfrica-IO-Data'!$AR28","v":305746.87210365635},{"$f":"DI151*'SouthAfrica-IO-Data'!AS28","v":0},{"$f":"DL151*'SouthAfrica-IO-Data'!$AS28","v":88766.795836497055},{"$f":"DM151*'SouthAfrica-IO-Data'!$AS28","v":224461.18091526657},{"$f":"(DQ151*'Default-Data'!$F$19/wind_dollar_index)/'SouthAfrica-IO-Data'!$AT28","v":0},{"$f":"(DR151*'Default-Data'!$F$19/wind_dollar_index)/'SouthAfrica-IO-Data'!$AT28","v":6.9151129438169008},{"$f":"(DS151*'Default-Data'!$F$19/wind_dollar_index)/'SouthAfrica-IO-Data'!$AT28","v":17.485980009806777},1171.3562656867962,5833.5467086362123,{"$f":"DJ151*'SouthAfrica-IO-Data'!AR28","v":0},{"$f":"'SouthAfrica-IO-Data'!$AR28*Calculations!DW151","v":283.21063179094125},{"$f":"'SouthAfrica-IO-Data'!$AR28*Calculations!DX151","v":1410.4354903212525},{"$f":"DJ151*'SouthAfrica-IO-Data'!AS28","v":0},{"$f":"DW151*'SouthAfrica-IO-Data'!$AS28","v":207.9164127572875},{"$f":"DX151*'SouthAfrica-IO-Data'!$AS28","v":1035.4579053714065},{"$f":"(EB151*'Default-Data'!$F$19/wind_dollar_index)/'SouthAfrica-IO-Data'!$AT28","v":0},{"$f":"(EC151*'Default-Data'!$F$19/wind_dollar_index)/'SouthAfrica-IO-Data'!$AT28","v":1.6197109105280438E-2},{"$f":"(ED151*'Default-Data'!$F$19/wind_dollar_index)/'SouthAfrica-IO-Data'!$AT28","v":8.0664265243956687E-2},null,"TEXTILES",0,0,null,13297563.853740117,3921175.962623192,{"$f":"EJ151*'Zambia-IO-Data'!BO26","v":0},{"$f":"EM151*'Zambia-IO-Data'!$BO26","v":1349503.9528316869},{"$f":"EN151*'Zambia-IO-Data'!$BO26","v":397940.7445988874},{"$f":"EJ151*'Zambia-IO-Data'!BN26","v":0},{"$f":"EM151*'Zambia-IO-Data'!$BN26","v":370829.66830095882},{"$f":"EN151*'Zambia-IO-Data'!$BN26","v":109349.98301664628},{"$f":"(ER151*'Default-Data'!$F$19/wind_dollar_index)/'Zambia-IO-Data'!$BP26","v":0},{"$f":"(ES151*'Default-Data'!$F$19/wind_dollar_index)/'Zambia-IO-Data'!$BP26","v":1393.1922584484503},{"$f":"(ET151*'Default-Data'!$F$19/wind_dollar_index)/'Zambia-IO-Data'!$BP26","v":410.82352040026132},12719.458983423761,8920.772962422534,{"$f":"EK151*'Zambia-IO-Data'!BO26","v":0},{"$f":"EX151*'Zambia-IO-Data'!$BO26","v":1290.8349502817391},{"$f":"EY151*'Zambia-IO-Data'!$BO26","v":905.3251037194475},{"$f":"EK151*'Zambia-IO-Data'!BN26","v":0},{"$f":"EX151*'Zambia-IO-Data'!$BN26","v":354.70803582297026},{"$f":"EY151*'Zambia-IO-Data'!$BN26","v":248.77393446115067},{"$f":"(FC151*'Default-Data'!$F$19/wind_dollar_index)/'Zambia-IO-Data'!$BP26","v":0},{"$f":"(FD151*'Default-Data'!$F$19/wind_dollar_index)/'Zambia-IO-Data'!$BP26","v":1.3326239288841173},{"$f":"(FE151*'Default-Data'!$F$19/wind_dollar_index)/'Zambia-IO-Data'!$BP26","v":0.93463373948211448},null,"TTL_C34: Motor vehicles, trailers and semi-trailers",0,0,null,322854.24920653005,1641843.20403481,{"$f":"FK151*CustomRegion1!C24","v":0},{"$f":"FN151*CustomRegion1!$C24","v":52745.628278132237},{"$f":"FO151*CustomRegion1!$C24","v":268232.65155664593},{"$f":"FK151*CustomRegion1!D24","v":0},{"$f":"FN151*CustomRegion1!$D24","v":13088.417589851646},{"$f":"FO151*CustomRegion1!$D24","v":66559.847126933688},{"$f":"(FS151*'Default-Data'!$C$58/wind_dollar_index)/CustomRegion1!$E24","v":0},{"$f":"(FT151*'Default-Data'!$C$58/wind_dollar_index)/CustomRegion1!$E24","v":4.0714477649779672},{"$f":"(FU151*'Default-Data'!$C$58/wind_dollar_index)/CustomRegion1!$E24","v":20.704943050743616},1626.5098919703412,7166.0239075920563,{"$f":"FL151*CustomRegion1!C24","v":0},{"$f":"FY151*CustomRegion1!$C24","v":265.72760421589464},{"$f":"FZ151*CustomRegion1!$C24","v":1170.73395871667},{"$f":"FL151*CustomRegion1!D24","v":0},{"$f":"FY151*CustomRegion1!$D24","v":65.938239104649625},{"$f":"FZ151*CustomRegion1!$D24","v":290.50853006251299},{"$f":"(GD151*'Default-Data'!$C$58/wind_dollar_index)/CustomRegion1!$E24","v":0},{"$f":"(GE151*'Default-Data'!$C$58/wind_dollar_index)/CustomRegion1!$E24","v":2.0511577842486264E-2},{"$f":"(GF151*'Default-Data'!$C$58/wind_dollar_index)/CustomRegion1!$E24","v":9.0369236564330893E-2},null,"C32 Radio, television and communication equipment",0,0,null,0,0,{"$f":"GL151*CustomRegion2!C28","v":0},{"$f":"GO151*CustomRegion2!$C28","v":0},{"$f":"GP151*CustomRegion2!$C28","v":0},{"$f":"GL151*CustomRegion2!D28","v":0},{"$f":"GO151*CustomRegion2!$D28","v":0},{"$f":"GP151*CustomRegion2!$D28","v":0},{"$f":"(GT151*'Default-Data'!$C$59/wind_dollar_index)/CustomRegion2!$E28","v":0},{"$f":"(GU151*'Default-Data'!$C$59/wind_dollar_index)/CustomRegion2!$E28","v":0},{"$f":"(GV151*'Default-Data'!$C$59/wind_dollar_index)/CustomRegion2!$E28","v":0},0,0,{"$f":"GM151*CustomRegion2!C28","v":0},{"$f":"GZ151*CustomRegion2!$C28","v":0},{"$f":"HA151*CustomRegion2!$C28","v":0},{"$f":"GM151*CustomRegion2!D28","v":0},{"$f":"GZ151*CustomRegion2!$D28","v":0},{"$f":"HA151*CustomRegion2!$D28","v":0},{"$f":"(HE151*'Default-Data'!$C$59/wind_dollar_index)/CustomRegion2!$E28","v":0},{"$f":"(HF151*'Default-Data'!$C$59/wind_dollar_index)/CustomRegion2!$E28","v":0},{"$f":"(HG151*'Default-Data'!$C$59/wind_dollar_index)/CustomRegion2!$E28","v":0},null,"TEXTILES",0,0,null,13297563.853740117,3921175.962623192,{"$f":"HM151*CustomRegion3!D27","v":0},{"$f":"HP151*CustomRegion3!$D27","v":1349503.9528316869},{"$f":"HQ151*CustomRegion3!$D27","v":397940.7445988874},{"$f":"HM151*CustomRegion3!E27","v":0},{"$f":"HP151*CustomRegion3!$E27","v":370829.66830095882},{"$f":"HQ151*CustomRegion3!$E27","v":109349.98301664628},{"$f":"(HU151*'Default-Data'!$C$60/wind_dollar_index)/CustomRegion3!$F27","v":0},{"$f":"(HV151*'Default-Data'!$C$60/wind_dollar_index)/CustomRegion3!$F27","v":1393.1922584484503},{"$f":"(HW151*'Default-Data'!$C$60/wind_dollar_index)/CustomRegion3!$F27","v":410.82352040026132},12719.458983423761,8920.772962422534,{"$f":"HN151*CustomRegion3!D27","v":0},{"$f":"IA151*CustomRegion3!$D27","v":1290.8349502817391},{"$f":"IB151*CustomRegion3!$D27","v":905.3251037194475},{"$f":"HN151*CustomRegion3!E27","v":0},{"$f":"IA151*CustomRegion3!$E27","v":354.70803582297026},{"$f":"IB151*CustomRegion3!$E27","v":248.77393446115067},{"$f":"(IF151*'Default-Data'!$C$60/wind_dollar_index)/CustomRegion3!$F27","v":0},{"$f":"(IG151*'Default-Data'!$C$60/wind_dollar_index)/CustomRegion3!$F27","v":1.3326239288841173},{"$f":"(IH151*'Default-Data'!$C$60/wind_dollar_index)/CustomRegion3!$F27","v":0.93463373948211448}]
[null,null,null,null,null,null,null,null,null,null,null,null,null,null,null,null,null,null,null,null,null,null,null,null,null,null,null,null,null,151,"TTL_C35: Other transport equipment",0,0,null,74509.884832493859,37420.810000101235,{"$f":"AF152*'Colombia-IO-Data'!AN29","v":0},{"$f":"AI152*'Colombia-IO-Data'!$AN29","v":8311.8800661995701},{"$f":"AJ152*'Colombia-IO-Data'!$AN29","v":4174.4432352851954},{"$f":"AK152*'Colombia-IO-Data'!$AO29","v":0},{"$f":"AL152*'Colombia-IO-Data'!$AO29","v":3134.2394334652722},{"$f":"AM152*'Colombia-IO-Data'!$AO29","v":1574.096894636192},{"$f":"(Calculations!AN152*'Default-Data'!$F$19/wind_dollar_index)/'Colombia-IO-Data'!$AP29","v":0},{"$f":"(Calculations!AO152*'Default-Data'!$F$19/wind_dollar_index)/'Colombia-IO-Data'!$AP29","v":0.73680789060065743},{"$f":"(Calculations!AP152*'Default-Data'!$F$19/wind_dollar_index)/'Colombia-IO-Data'!$AP29","v":0.37004416451222877},100.07446358364835,195.87399808251791,{"$f":"AG152*'Colombia-IO-Data'!AN29","v":0},{"$f":"AT152*'Colombia-IO-Data'!$AN29","v":11.163712584800418},{"$f":"AU152*'Colombia-IO-Data'!$AN29","v":21.850539479546814},{"$f":"AV152*'Colombia-IO-Data'!$AO29","v":0},{"$f":"AW152*'Colombia-IO-Data'!$AO29","v":4.2096069635846307},{"$f":"AX152*'Colombia-IO-Data'!$AO29","v":8.2393901179806832},{"$f":"(AY152*'Default-Data'!$F$19/wind_dollar_index)/'Colombia-IO-Data'!$AP29","v":0},{"$f":"(AZ152*'Default-Data'!$F$19/wind_dollar_index)/'Colombia-IO-Data'!$AP29","v":9.8960902411573764E-4},{"$f":"(BA152*'Default-Data'!$F$19/wind_dollar_index)/'Colombia-IO-Data'!$AP29","v":1.9369444426755901E-3},null,"DOM_C35: Other transport equipment",0,0,null,35149.58705223666,65826.585092594047,{"$f":"BG152*'Mexico-IO-Data'!AQ29","v":0},{"$f":"BJ152*'Mexico-IO-Data'!$AQ29","v":12384.805116923881},{"$f":"BK152*'Mexico-IO-Data'!$AQ29","v":23193.712821514004},{"$f":"BG152*'Mexico-IO-Data'!AR29","v":0},{"$f":"BJ152*'Mexico-IO-Data'!$AR29","v":3158.2554884713381},{"$f":"BK152*'Mexico-IO-Data'!$AR29","v":5914.6405716530799},{"$f":"(BO152*'Default-Data'!$F$19/wind_dollar_index)/'Mexico-IO-Data'!$AS29","v":0},{"$f":"(BP152*'Default-Data'!$F$19/wind_dollar_index)/'Mexico-IO-Data'!$AS29","v":0.42483733712896482},{"$f":"(BQ152*'Default-Data'!$F$19/wind_dollar_index)/'Mexico-IO-Data'!$AS29","v":0.79561649135366852},114.12245808063126,248.98020287881684,{"$f":"BH152*'Mexico-IO-Data'!AQ29","v":0},{"$f":"BU152*'Mexico-IO-Data'!$AQ29","v":40.210554982977982},{"$f":"BV152*'Mexico-IO-Data'!$AQ29","v":87.727098643968304},{"$f":"BH152*'Mexico-IO-Data'!AR29","v":0},{"$f":"BX152*'Mexico-IO-Data'!$AR29","v":3.6129928292112807},{"$f":"BY152*'Mexico-IO-Data'!$AR29","v":7.8824422707506336},{"$f":"(CA152*'Default-Data'!$F$19/wind_dollar_index)/'Mexico-IO-Data'!$AS29","v":4.860069928576632E-4},{"$f":"(CB152*'Default-Data'!$F$19/wind_dollar_index)/'Mexico-IO-Data'!$AS29","v":1.0603182030720884E-3},{"$f":"(CC152*'Default-Data'!$F$19/wind_dollar_index)/'Mexico-IO-Data'!$AS29","v":6.5375938528533408E-8},null,"TTL_C35: Other transport equipment",0,0,null,1762.8392257547453,8079.7472914586942,{"$f":"CH152*'Philippines-IO-Data'!AN29","v":0},{"$f":"CK152*'Philippines-IO-Data'!$AN29","v":368.91321384438788},{"$f":"CL152*'Philippines-IO-Data'!$AN29","v":1690.8663574049651},{"$f":"CH152*'Philippines-IO-Data'!AO29","v":0},{"$f":"CK152*'Philippines-IO-Data'!$AO29","v":82.83996893377234},{"$f":"CL152*'Philippines-IO-Data'!$AO29","v":379.68636324767675},{"$f":"(CP152*'Default-Data'!$F$19/wind_dollar_index)/'Philippines-IO-Data'!$AP29","v":0},{"$f":"(CQ152*'Default-Data'!$F$19/wind_dollar_index)/'Philippines-IO-Data'!$AP29","v":2.5769242465778823E-2},{"$f":"(CR152*'Default-Data'!$F$19/wind_dollar_index)/'Philippines-IO-Data'!$AP29","v":0.11811001478406284},1.8995115728024727,35.03405846208917,{"$f":"CI152*'Philippines-IO-Data'!AN29","v":0},{"$f":"CV152*'Philippines-IO-Data'!$AN29","v":0.3975149343282543},{"$f":"CW152*'Philippines-IO-Data'!$AN29","v":7.3316539094641255},{"$f":"CI152*'Philippines-IO-Data'!AO29","v":0},{"$f":"CV152*'Philippines-IO-Data'!$AO29","v":8.9262524557749967E-2},{"$f":"CW152*'Philippines-IO-Data'!$AO29","v":1.6463329566432066},{"$f":"(DA152*'Default-Data'!$F$19/wind_dollar_index)/'Philippines-IO-Data'!$AP29","v":0},{"$f":"(DB152*'Default-Data'!$F$19/wind_dollar_index)/'Philippines-IO-Data'!$AP29","v":2.7767123383099619E-5},{"$f":"(DC152*'Default-Data'!$F$19/wind_dollar_index)/'Philippines-IO-Data'!$AP29","v":5.1212903246086966E-4},null,"DOM_C35: Other transport equipment",0,0,null,547090.9121601457,645519.26916595816,{"$f":"DI152*'SouthAfrica-IO-Data'!AR29","v":0},{"$f":"DL152*'SouthAfrica-IO-Data'!$AR29","v":69808.243040392757},{"$f":"DM152*'SouthAfrica-IO-Data'!$AR29","v":82367.601120018415},{"$f":"DI152*'SouthAfrica-IO-Data'!AS29","v":0},{"$f":"DL152*'SouthAfrica-IO-Data'!$AS29","v":71264.956513382262},{"$f":"DM152*'SouthAfrica-IO-Data'!$AS29","v":84086.395191657357},{"$f":"(DQ152*'Default-Data'!$F$19/wind_dollar_index)/'SouthAfrica-IO-Data'!$AT29","v":0},{"$f":"(DR152*'Default-Data'!$F$19/wind_dollar_index)/'SouthAfrica-IO-Data'!$AT29","v":5.5516842596634293},{"$f":"(DS152*'Default-Data'!$F$19/wind_dollar_index)/'SouthAfrica-IO-Data'!$AT29","v":6.5505002665609195},696.96035202151927,2977.8335282829444,{"$f":"DJ152*'SouthAfrica-IO-Data'!AR29","v":0},{"$f":"'SouthAfrica-IO-Data'!$AR29*Calculations!DW152","v":88.931430886561529},{"$f":"'SouthAfrica-IO-Data'!$AR29*Calculations!DX152","v":379.96852452806917},{"$f":"DJ152*'SouthAfrica-IO-Data'!AS29","v":0},{"$f":"DW152*'SouthAfrica-IO-Data'!$AS29","v":90.787194731953406},{"$f":"DX152*'SouthAfrica-IO-Data'!$AS29","v":387.89746307293001},{"$f":"(EB152*'Default-Data'!$F$19/wind_dollar_index)/'SouthAfrica-IO-Data'!$AT29","v":0},{"$f":"(EC152*'Default-Data'!$F$19/wind_dollar_index)/'SouthAfrica-IO-Data'!$AT29","v":7.0725061044236825E-3},{"$f":"(ED152*'Default-Data'!$F$19/wind_dollar_index)/'SouthAfrica-IO-Data'!$AT29","v":3.0217996971638884E-2},null,"FURNIMFG",0,0,null,27185845.202754341,1731322.4440009147,{"$f":"EJ152*'Zambia-IO-Data'!BO27","v":0},{"$f":"EM152*'Zambia-IO-Data'!$BO27","v":4995032.1938180476},{"$f":"EN152*'Zambia-IO-Data'!$BO27","v":318107.13557613204},{"$f":"EJ152*'Zambia-IO-Data'!BN27","v":0},{"$f":"EM152*'Zambia-IO-Data'!$BN27","v":1548286.705162989},{"$f":"EN152*'Zambia-IO-Data'!$BN27","v":98602.177066958568},{"$f":"(ER152*'Default-Data'!$F$19/wind_dollar_index)/'Zambia-IO-Data'!$BP27","v":0},{"$f":"(ES152*'Default-Data'!$F$19/wind_dollar_index)/'Zambia-IO-Data'!$BP27","v":5816.8513360185152},{"$f":"(ET152*'Default-Data'!$F$19/wind_dollar_index)/'Zambia-IO-Data'!$BP27","v":370.44444255296617},36057.580510624364,3980.9843005328876,{"$f":"EK152*'Zambia-IO-Data'!BO27","v":0},{"$f":"EX152*'Zambia-IO-Data'!$BO27","v":6625.0938360933187},{"$f":"EY152*'Zambia-IO-Data'!$BO27","v":731.45214342025781},{"$f":"EK152*'Zambia-IO-Data'!BN27","v":0},{"$f":"EX152*'Zambia-IO-Data'!$BN27","v":2053.5492683261373},{"$f":"EY152*'Zambia-IO-Data'!$BN27","v":226.72479078756666},{"$f":"(FC152*'Default-Data'!$F$19/wind_dollar_index)/'Zambia-IO-Data'!$BP27","v":0},{"$f":"(FD152*'Default-Data'!$F$19/wind_dollar_index)/'Zambia-IO-Data'!$BP27","v":7.7151026132367768},{"$f":"(FE152*'Default-Data'!$F$19/wind_dollar_index)/'Zambia-IO-Data'!$BP27","v":0.85179598701155423},null,"TTL_C35: Other transport equipment",0,0,null,28430.400019642057,24359.74567851354,{"$f":"FK152*CustomRegion1!C25","v":0},{"$f":"FN152*CustomRegion1!$C25","v":5949.6918884574961},{"$f":"FO152*CustomRegion1!$C25","v":5097.8171664207302},{"$f":"FK152*CustomRegion1!D25","v":0},{"$f":"FN152*CustomRegion1!$D25","v":1336.0114864663965},{"$f":"FO152*CustomRegion1!$D25","v":1144.7218474382901},{"$f":"(FS152*'Default-Data'!$C$58/wind_dollar_index)/CustomRegion1!$E25","v":0},{"$f":"(FT152*'Default-Data'!$C$58/wind_dollar_index)/CustomRegion1!$E25","v":0.41559653359288612},{"$f":"(FU152*'Default-Data'!$C$58/wind_dollar_index)/CustomRegion1!$E25","v":0.35609157297119087},68.29230116292203,106.32106615668593,{"$f":"FL152*CustomRegion1!C25","v":0},{"$f":"FY152*CustomRegion1!$C25","v":14.291678977165837},{"$f":"FZ152*CustomRegion1!$C25","v":22.250041661304465},{"$f":"FL152*CustomRegion1!D25","v":0},{"$f":"FY152*CustomRegion1!$D25","v":3.2092161463732718},{"$f":"FZ152*CustomRegion1!$D25","v":4.9962774192606814},{"$f":"(GD152*'Default-Data'!$C$58/wind_dollar_index)/CustomRegion1!$E25","v":0},{"$f":"(GE152*'Default-Data'!$C$58/wind_dollar_index)/CustomRegion1!$E25","v":9.9829913102816598E-4},{"$f":"(GF152*'Default-Data'!$C$58/wind_dollar_index)/CustomRegion1!$E25","v":1.5542048832267858E-3},null,"C33 Medical, precision and optical instruments",0,0,null,0,0,{"$f":"GL152*CustomRegion2!C29","v":0},{"$f":"GO152*CustomRegion2!$C29","v":0},{"$f":"GP152*CustomRegion2!$C29","v":0},{"$f":"GL152*CustomRegion2!D29","v":0},{"$f":"GO152*CustomRegion2!$D29","v":0},{"$f":"GP152*CustomRegion2!$D29","v":0},{"$f":"(GT152*'Default-Data'!$C$59/wind_dollar_index)/CustomRegion2!$E29","v":0},{"$f":"(GU152*'Default-Data'!$C$59/wind_dollar_index)/CustomRegion2!$E29","v":0},{"$f":"(GV152*'Default-Data'!$C$59/wind_dollar_index)/CustomRegion2!$E29","v":0},0,0,{"$f":"GM152*CustomRegion2!C29","v":0},{"$f":"GZ152*CustomRegion2!$C29","v":0},{"$f":"HA152*CustomRegion2!$C29","v":0},{"$f":"GM152*CustomRegion2!D29","v":0},{"$f":"GZ152*CustomRegion2!$D29","v":0},{"$f":"HA152*CustomRegion2!$D29","v":0},{"$f":"(HE152*'Default-Data'!$C$59/wind_dollar_index)/CustomRegion2!$E29","v":0},{"$f":"(HF152*'Default-Data'!$C$59/wind_dollar_index)/CustomRegion2!$E29","v":0},{"$f":"(HG152*'Default-Data'!$C$59/wind_dollar_index)/CustomRegion2!$E29","v":0},null,"FURNIMFG",0,0,null,27185845.202754341,1731322.4440009147,{"$f":"HM152*CustomRegion3!D28","v":0},{"$f":"HP152*CustomRegion3!$D28","v":4995032.1938180476},{"$f":"HQ152*CustomRegion3!$D28","v":318107.13557613204},{"$f":"HM152*CustomRegion3!E28","v":0},{"$f":"HP152*CustomRegion3!$E28","v":1548286.705162989},{"$f":"HQ152*CustomRegion3!$E28","v":98602.177066958568},{"$f":"(HU152*'Default-Data'!$C$60/wind_dollar_index)/CustomRegion3!$F28","v":0},{"$f":"(HV152*'Default-Data'!$C$60/wind_dollar_index)/CustomRegion3!$F28","v":5816.8513360185152},{"$f":"(HW152*'Default-Data'!$C$60/wind_dollar_index)/CustomRegion3!$F28","v":370.44444255296617},36057.580510624364,3980.9843005328876,{"$f":"HN152*CustomRegion3!D28","v":0},{"$f":"IA152*CustomRegion3!$D28","v":6625.0938360933187},{"$f":"IB152*CustomRegion3!$D28","v":731.45214342025781},{"$f":"HN152*CustomRegion3!E28","v":0},{"$f":"IA152*CustomRegion3!$E28","v":2053.5492683261373},{"$f":"IB152*CustomRegion3!$E28","v":226.72479078756666},{"$f":"(IF152*'Default-Data'!$C$60/wind_dollar_index)/CustomRegion3!$F28","v":0},{"$f":"(IG152*'Default-Data'!$C$60/wind_dollar_index)/CustomRegion3!$F28","v":7.7151026132367768},{"$f":"(IH152*'Default-Data'!$C$60/wind_dollar_index)/CustomRegion3!$F28","v":0.85179598701155423}]
[null,null,null,null,null,null,null,null,null,null,null,null,null,null,null,null,null,null,null,null,null,null,null,null,null,null,null,null,null,152,"TTL_C36T37: Manufacturing nec; recycling",0,0,null,1577844.6040542601,701082.71560412832,{"$f":"AF153*'Colombia-IO-Data'!AN30","v":0},{"$f":"AI153*'Colombia-IO-Data'!$AN30","v":588238.35580954072},{"$f":"AJ153*'Colombia-IO-Data'!$AN30","v":261371.58428262951},{"$f":"AK153*'Colombia-IO-Data'!$AO30","v":0},{"$f":"AL153*'Colombia-IO-Data'!$AO30","v":135406.23922867473},{"$f":"AM153*'Colombia-IO-Data'!$AO30","v":60164.970405993765},{"$f":"(Calculations!AN153*'Default-Data'!$F$19/wind_dollar_index)/'Colombia-IO-Data'!$AP30","v":0},{"$f":"(Calculations!AO153*'Default-Data'!$F$19/wind_dollar_index)/'Colombia-IO-Data'!$AP30","v":31.831768956445703},{"$f":"(Calculations!AP153*'Default-Data'!$F$19/wind_dollar_index)/'Colombia-IO-Data'!$AP30","v":14.143790183853044},863.53197013352269,3669.7194553393738,{"$f":"AG153*'Colombia-IO-Data'!AN30","v":0},{"$f":"AT153*'Colombia-IO-Data'!$AN30","v":321.93450799597792},{"$f":"AU153*'Colombia-IO-Data'!$AN30","v":1368.1130151501804},{"$f":"AV153*'Colombia-IO-Data'!$AO30","v":0},{"$f":"AW153*'Colombia-IO-Data'!$AO30","v":74.105913997527963},{"$f":"AX153*'Colombia-IO-Data'!$AO30","v":314.92512582989269},{"$f":"(AY153*'Default-Data'!$F$19/wind_dollar_index)/'Colombia-IO-Data'!$AP30","v":0},{"$f":"(AZ153*'Default-Data'!$F$19/wind_dollar_index)/'Colombia-IO-Data'!$AP30","v":1.7421075617437286E-2},{"$f":"(BA153*'Default-Data'!$F$19/wind_dollar_index)/'Colombia-IO-Data'!$AP30","v":7.4033692251559396E-2},null,"DOM_C36T37: Manufacturing nec; recycling",0,0,null,590927.22694869235,867640.62681903422,{"$f":"BG153*'Mexico-IO-Data'!AQ30","v":0},{"$f":"BJ153*'Mexico-IO-Data'!$AQ30","v":222175.57197067406},{"$f":"BK153*'Mexico-IO-Data'!$AQ30","v":326213.69220689224},{"$f":"BG153*'Mexico-IO-Data'!AR30","v":0},{"$f":"BJ153*'Mexico-IO-Data'!$AR30","v":91396.906109744668},{"$f":"BK153*'Mexico-IO-Data'!$AR30","v":134195.32099722413},{"$f":"(BO153*'Default-Data'!$F$19/wind_dollar_index)/'Mexico-IO-Data'!$AS30","v":0},{"$f":"(BP153*'Default-Data'!$F$19/wind_dollar_index)/'Mexico-IO-Data'!$AS30","v":14.283156031757773},{"$f":"(BQ153*'Default-Data'!$F$19/wind_dollar_index)/'Mexico-IO-Data'!$AS30","v":20.971527266291254},2963.9038205157717,3281.7339527401859,{"$f":"BH153*'Mexico-IO-Data'!AQ30","v":0},{"$f":"BU153*'Mexico-IO-Data'!$AQ30","v":1114.3623047958374},{"$f":"BV153*'Mexico-IO-Data'!$AQ30","v":1233.8594073089448},{"$f":"BH153*'Mexico-IO-Data'!AR30","v":0},{"$f":"BX153*'Mexico-IO-Data'!$AR30","v":172.35500802623696},{"$f":"BY153*'Mexico-IO-Data'!$AR30","v":190.83725924213039},{"$f":"(CA153*'Default-Data'!$F$19/wind_dollar_index)/'Mexico-IO-Data'!$AS30","v":2.6934975999489911E-2},{"$f":"(CB153*'Default-Data'!$F$19/wind_dollar_index)/'Mexico-IO-Data'!$AS30","v":2.9823310946164923E-2},{"$f":"(CC153*'Default-Data'!$F$19/wind_dollar_index)/'Mexico-IO-Data'!$AS30","v":4.2092941795033796E-6},null,"TTL_C36T37: Manufacturing nec; recycling",0,0,null,187361.72967530391,361947.3578173751,{"$f":"CH153*'Philippines-IO-Data'!AN30","v":0},{"$f":"CK153*'Philippines-IO-Data'!$AN30","v":75951.812017897973},{"$f":"CL153*'Philippines-IO-Data'!$AN30","v":146724.50840927335},{"$f":"CH153*'Philippines-IO-Data'!AO30","v":0},{"$f":"CK153*'Philippines-IO-Data'!$AO30","v":25639.783674831804},{"$f":"CL153*'Philippines-IO-Data'!$AO30","v":49531.203475741961},{"$f":"(CP153*'Default-Data'!$F$19/wind_dollar_index)/'Philippines-IO-Data'!$AP30","v":0},{"$f":"(CQ153*'Default-Data'!$F$19/wind_dollar_index)/'Philippines-IO-Data'!$AP30","v":7.9758335353201213},{"$f":"(CR153*'Default-Data'!$F$19/wind_dollar_index)/'Philippines-IO-Data'!$AP30","v":15.407799017991474},401.1422645546117,1569.4160270801399,{"$f":"CI153*'Philippines-IO-Data'!AN30","v":0},{"$f":"CV153*'Philippines-IO-Data'!$AN30","v":162.61315436554531},{"$f":"CW153*'Philippines-IO-Data'!$AN30","v":636.20244792380765},{"$f":"CI153*'Philippines-IO-Data'!AO30","v":0},{"$f":"CV153*'Philippines-IO-Data'!$AO30","v":54.894886505566255},{"$f":"CW153*'Philippines-IO-Data'!$AO30","v":214.76897923542555},{"$f":"(DA153*'Default-Data'!$F$19/wind_dollar_index)/'Philippines-IO-Data'!$AP30","v":0},{"$f":"(DB153*'Default-Data'!$F$19/wind_dollar_index)/'Philippines-IO-Data'!$AP30","v":1.7076293710639488E-2},{"$f":"(DC153*'Default-Data'!$F$19/wind_dollar_index)/'Philippines-IO-Data'!$AP30","v":6.6808739444000592E-2},null,"DOM_C36T37: Manufacturing nec; recycling",0,0,null,2891486.4852645569,3869659.4135280247,{"$f":"DI153*'SouthAfrica-IO-Data'!AR30","v":0},{"$f":"DL153*'SouthAfrica-IO-Data'!$AR30","v":773695.52789150679},{"$f":"DM153*'SouthAfrica-IO-Data'!$AR30","v":1035432.1896254593},{"$f":"DI153*'SouthAfrica-IO-Data'!AS30","v":0},{"$f":"DL153*'SouthAfrica-IO-Data'!$AS30","v":300260.68893735972},{"$f":"DM153*'SouthAfrica-IO-Data'!$AS30","v":401837.11989667325},{"$f":"(DQ153*'Default-Data'!$F$19/wind_dollar_index)/'SouthAfrica-IO-Data'!$AT30","v":0},{"$f":"(DR153*'Default-Data'!$F$19/wind_dollar_index)/'SouthAfrica-IO-Data'!$AT30","v":23.390915004013422},{"$f":"(DS153*'Default-Data'!$F$19/wind_dollar_index)/'SouthAfrica-IO-Data'!$AT30","v":31.303924433882589},3955.5154180352242,17851.057427809992,{"$f":"DJ153*'SouthAfrica-IO-Data'!AR30","v":0},{"$f":"'SouthAfrica-IO-Data'!$AR30*Calculations!DW153","v":1058.4052891257932},{"$f":"'SouthAfrica-IO-Data'!$AR30*Calculations!DX153","v":4776.5339282806262},{"$f":"DJ153*'SouthAfrica-IO-Data'!AS30","v":0},{"$f":"DW153*'SouthAfrica-IO-Data'!$AS30","v":410.75266669037791},{"$f":"DX153*'SouthAfrica-IO-Data'!$AS30","v":1853.7077136102157},{"$f":"(EB153*'Default-Data'!$F$19/wind_dollar_index)/'SouthAfrica-IO-Data'!$AT30","v":0},{"$f":"(EC153*'Default-Data'!$F$19/wind_dollar_index)/'SouthAfrica-IO-Data'!$AT30","v":3.1998463562544072E-2},{"$f":"(ED153*'Default-Data'!$F$19/wind_dollar_index)/'SouthAfrica-IO-Data'!$AT30","v":0.14440758037555274},null,"INDCHEMMFG",0,0,null,3206938.8912711926,884979.24575418467,{"$f":"EJ153*'Zambia-IO-Data'!BO28","v":0},{"$f":"EM153*'Zambia-IO-Data'!$BO28","v":597668.77880795358},{"$f":"EN153*'Zambia-IO-Data'!$BO28","v":164931.25781721025},{"$f":"EJ153*'Zambia-IO-Data'!BN28","v":0},{"$f":"EM153*'Zambia-IO-Data'!$BN28","v":115438.85793891529},{"$f":"EN153*'Zambia-IO-Data'!$BN28","v":31856.233278274387},{"$f":"(ER153*'Default-Data'!$F$19/wind_dollar_index)/'Zambia-IO-Data'!$BP28","v":0},{"$f":"(ES153*'Default-Data'!$F$19/wind_dollar_index)/'Zambia-IO-Data'!$BP28","v":433.69918038516175},{"$f":"(ET153*'Default-Data'!$F$19/wind_dollar_index)/'Zambia-IO-Data'!$BP28","v":119.68259656775966},22944.899276751668,1916.4980717354192,{"$f":"EK153*'Zambia-IO-Data'!BO28","v":0},{"$f":"EX153*'Zambia-IO-Data'!$BO28","v":4276.180618200623},{"$f":"EY153*'Zambia-IO-Data'!$BO28","v":357.17271234559468},{"$f":"EK153*'Zambia-IO-Data'!BN28","v":0},{"$f":"EX153*'Zambia-IO-Data'!$BN28","v":825.93808545623074},{"$f":"EY153*'Zambia-IO-Data'!$BN28","v":68.987391448414499},{"$f":"(FC153*'Default-Data'!$F$19/wind_dollar_index)/'Zambia-IO-Data'!$BP28","v":0},{"$f":"(FD153*'Default-Data'!$F$19/wind_dollar_index)/'Zambia-IO-Data'!$BP28","v":3.1030164115172023},{"$f":"(FE153*'Default-Data'!$F$19/wind_dollar_index)/'Zambia-IO-Data'!$BP28","v":0.25918287535311374},null,"TTL_C36T37: Manufacturing nec; recycling",0,0,null,430848.29402525065,616253.13348121452,{"$f":"FK153*CustomRegion1!C26","v":0},{"$f":"FN153*CustomRegion1!$C26","v":174655.24412454854},{"$f":"FO153*CustomRegion1!$C26","v":249813.7812386732},{"$f":"FK153*CustomRegion1!D26","v":0},{"$f":"FN153*CustomRegion1!$D26","v":58960.050564338046},{"$f":"FO153*CustomRegion1!$D26","v":84332.040800316434},{"$f":"(FS153*'Default-Data'!$C$58/wind_dollar_index)/CustomRegion1!$E26","v":0},{"$f":"(FT153*'Default-Data'!$C$58/wind_dollar_index)/CustomRegion1!$E26","v":18.340854763015166},{"$f":"(FU153*'Default-Data'!$C$58/wind_dollar_index)/CustomRegion1!$E26","v":26.23338510368929},912.23330737344372,2689.7115856145256,{"$f":"FL153*CustomRegion1!C26","v":0},{"$f":"FY153*CustomRegion1!$C26","v":369.7968245605158},{"$f":"FZ153*CustomRegion1!$C26","v":1090.3425640176717},{"$f":"FL153*CustomRegion1!D26","v":0},{"$f":"FY153*CustomRegion1!$D26","v":124.8358707115117},{"$f":"FZ153*CustomRegion1!$D26","v":368.07742606965991},{"$f":"(GD153*'Default-Data'!$C$58/wind_dollar_index)/CustomRegion1!$E26","v":0},{"$f":"(GE153*'Default-Data'!$C$58/wind_dollar_index)/CustomRegion1!$E26","v":3.8833015779658038E-2},{"$f":"(GF153*'Default-Data'!$C$58/wind_dollar_index)/CustomRegion1!$E26","v":0.1144987928007534},null,"C34 Motor vehicles, trailers and semi-trailers",0,0,null,8866832.0678695571,10139678.25046443,{"$f":"GL153*CustomRegion2!C30","v":0},{"$f":"GO153*CustomRegion2!$C30","v":2705231.2234184658},{"$f":"GP153*CustomRegion2!$C30","v":3093570.9607009823},{"$f":"GL153*CustomRegion2!D30","v":0},{"$f":"GO153*CustomRegion2!$D30","v":940852.10315763985},{"$f":"GP153*CustomRegion2!$D30","v":1075912.7424845216},{"$f":"(GT153*'Default-Data'!$C$59/wind_dollar_index)/CustomRegion2!$E30","v":0},{"$f":"(GU153*'Default-Data'!$C$59/wind_dollar_index)/CustomRegion2!$E30","v":126.5600910365695},{"$f":"(GV153*'Default-Data'!$C$59/wind_dollar_index)/CustomRegion2!$E30","v":144.72796965564237},0,0,{"$f":"GM153*CustomRegion2!C30","v":0},{"$f":"GZ153*CustomRegion2!$C30","v":0},{"$f":"HA153*CustomRegion2!$C30","v":0},{"$f":"GM153*CustomRegion2!D30","v":0},{"$f":"GZ153*CustomRegion2!$D30","v":0},{"$f":"HA153*CustomRegion2!$D30","v":0},{"$f":"(HE153*'Default-Data'!$C$59/wind_dollar_index)/CustomRegion2!$E30","v":0},{"$f":"(HF153*'Default-Data'!$C$59/wind_dollar_index)/CustomRegion2!$E30","v":0},{"$f":"(HG153*'Default-Data'!$C$59/wind_dollar_index)/CustomRegion2!$E30","v":0},null,"INDCHEMMFG",0,0,null,3206938.8912711926,884979.24575418467,{"$f":"HM153*CustomRegion3!D29","v":0},{"$f":"HP153*CustomRegion3!$D29","v":597668.77880795358},{"$f":"HQ153*CustomRegion3!$D29","v":164931.25781721025},{"$f":"HM153*CustomRegion3!E29","v":0},{"$f":"HP153*CustomRegion3!$E29","v":115438.85793891529},{"$f":"HQ153*CustomRegion3!$E29","v":31856.233278274387},{"$f":"(HU153*'Default-Data'!$C$60/wind_dollar_index)/CustomRegion3!$F29","v":0},{"$f":"(HV153*'Default-Data'!$C$60/wind_dollar_index)/CustomRegion3!$F29","v":433.69918038516175},{"$f":"(HW153*'Default-Data'!$C$60/wind_dollar_index)/CustomRegion3!$F29","v":119.68259656775966},22944.899276751668,1916.4980717354192,{"$f":"HN153*CustomRegion3!D29","v":0},{"$f":"IA153*CustomRegion3!$D29","v":4276.180618200623},{"$f":"IB153*CustomRegion3!$D29","v":357.17271234559468},{"$f":"HN153*CustomRegion3!E29","v":0},{"$f":"IA153*CustomRegion3!$E29","v":825.93808545623074},{"$f":"IB153*CustomRegion3!$E29","v":68.987391448414499},{"$f":"(IF153*'Default-Data'!$C$60/wind_dollar_index)/CustomRegion3!$F29","v":0},{"$f":"(IG153*'Default-Data'!$C$60/wind_dollar_index)/CustomRegion3!$F29","v":3.1030164115172023},{"$f":"(IH153*'Default-Data'!$C$60/wind_dollar_index)/CustomRegion3!$F29","v":0.25918287535311374}]
[null,null,null,null,null,null,null,null,null,null,null,null,null,null,null,null,null,null,null,null,null,null,null,null,null,null,null,null,null,153,"TTL_C40T41: Electricity, gas and water supply",0,{"$f":"'Wind-Inputs'!B33*'Wind-Inputs'!C33","v":1687657.8688336459},null,5994777.9422268318,5549570.5932588568,{"$f":"AF154*'Colombia-IO-Data'!AN31","v":0},{"$f":"AI154*'Colombia-IO-Data'!$AN31","v":3170567.264978393},{"$f":"AJ154*'Colombia-IO-Data'!$AN31","v":2935102.3552904567},{"$f":"AK154*'Colombia-IO-Data'!$AO31","v":0},{"$f":"AL154*'Colombia-IO-Data'!$AO31","v":558785.28418706753},{"$f":"AM154*'Colombia-IO-Data'!$AO31","v":517286.613608649},{"$f":"(Calculations!AN154*'Default-Data'!$F$19/wind_dollar_index)/'Colombia-IO-Data'!$AP31","v":0},{"$f":"(Calculations!AO154*'Default-Data'!$F$19/wind_dollar_index)/'Colombia-IO-Data'!$AP31","v":53.281930416114534},{"$f":"(Calculations!AP154*'Default-Data'!$F$19/wind_dollar_index)/'Colombia-IO-Data'!$AP31","v":49.324901946158761},511697.74480311968,29048.451376114506,{"$f":"AG154*'Colombia-IO-Data'!AN31","v":892582.31830677716},{"$f":"AT154*'Colombia-IO-Data'!$AN31","v":270630.89490073582},{"$f":"AU154*'Colombia-IO-Data'!$AN31","v":15363.382917435227},{"$f":"AV154*'Colombia-IO-Data'!$AO31","v":157309.97727272726},{"$f":"AW154*'Colombia-IO-Data'!$AO31","v":47696.373827898788},{"$f":"AX154*'Colombia-IO-Data'!$AO31","v":2707.6644562695583},{"$f":"(AY154*'Default-Data'!$F$19/wind_dollar_index)/'Colombia-IO-Data'!$AP31","v":15},{"$f":"(AZ154*'Default-Data'!$F$19/wind_dollar_index)/'Colombia-IO-Data'!$AP31","v":4.5479989243029291},{"$f":"(BA154*'Default-Data'!$F$19/wind_dollar_index)/'Colombia-IO-Data'!$AP31","v":0.25818430304410683},null,"DOM_C40T41: Electricity, gas and water supply",0,1687657.8688336459,null,3884605.2562068165,3253496.1438983972,{"$f":"BG154*'Mexico-IO-Data'!AQ31","v":0},{"$f":"BJ154*'Mexico-IO-Data'!$AQ31","v":1737691.6995289954},{"$f":"BK154*'Mexico-IO-Data'!$AQ31","v":1455379.0850868484},{"$f":"BG154*'Mexico-IO-Data'!AR31","v":0},{"$f":"BJ154*'Mexico-IO-Data'!$AR31","v":419712.95552740933},{"$f":"BK154*'Mexico-IO-Data'!$AR31","v":351524.64466518874},{"$f":"(BO154*'Default-Data'!$F$19/wind_dollar_index)/'Mexico-IO-Data'!$AS31","v":0},{"$f":"(BP154*'Default-Data'!$F$19/wind_dollar_index)/'Mexico-IO-Data'!$AS31","v":22.495921128132203},{"$f":"(BQ154*'Default-Data'!$F$19/wind_dollar_index)/'Mexico-IO-Data'!$AS31","v":18.841140300388847},29757.200502106221,12305.911492048763,{"$f":"BH154*'Mexico-IO-Data'!AQ31","v":754936.18447621423},{"$f":"BU154*'Mexico-IO-Data'!$AQ31","v":13311.221321937339},{"$f":"BV154*'Mexico-IO-Data'!$AQ31","v":5504.775606402859},{"$f":"BH154*'Mexico-IO-Data'!AR31","v":182343.33357694114},{"$f":"BX154*'Mexico-IO-Data'!$AR31","v":1438.2135826498873},{"$f":"BY154*'Mexico-IO-Data'!$AR31","v":594.76458659137529},{"$f":"(CA154*'Default-Data'!$F$19/wind_dollar_index)/'Mexico-IO-Data'!$AS31","v":7.7085872367329E-2},{"$f":"(CB154*'Default-Data'!$F$19/wind_dollar_index)/'Mexico-IO-Data'!$AS31","v":3.1878399400258606E-2},{"$f":"(CC154*'Default-Data'!$F$19/wind_dollar_index)/'Mexico-IO-Data'!$AS31","v":4.1316754272920041E-6},null,"TTL_C40T41: Electricity, gas and water supply",0,{"$f":"'Wind-Inputs'!B33*'Wind-Inputs'!C33","v":1687657.8688336459},null,5378627.6659187367,4591003.2178134965,{"$f":"CH154*'Philippines-IO-Data'!AN31","v":0},{"$f":"CK154*'Philippines-IO-Data'!$AN31","v":3223175.0678553088},{"$f":"CL154*'Philippines-IO-Data'!$AN31","v":2751186.3670846494},{"$f":"CH154*'Philippines-IO-Data'!AO31","v":0},{"$f":"CK154*'Philippines-IO-Data'!$AO31","v":667524.13618391752},{"$f":"CL154*'Philippines-IO-Data'!$AO31","v":569774.60563168896},{"$f":"(CP154*'Default-Data'!$F$19/wind_dollar_index)/'Philippines-IO-Data'!$AP31","v":0},{"$f":"(CQ154*'Default-Data'!$F$19/wind_dollar_index)/'Philippines-IO-Data'!$AP31","v":169.03772441629616},{"$f":"(CR154*'Default-Data'!$F$19/wind_dollar_index)/'Philippines-IO-Data'!$AP31","v":144.28452477654955},118873.67189118988,19906.745759553742,{"$f":"CI154*'Philippines-IO-Data'!AN31","v":1011339.1563357598},{"$f":"CV154*'Philippines-IO-Data'!$AN31","v":71235.764820067488},{"$f":"CW154*'Philippines-IO-Data'!$AN31","v":11929.237456032046},{"$f":"CI154*'Philippines-IO-Data'!AO31","v":209449.77623297551},{"$f":"CV154*'Philippines-IO-Data'!$AO31","v":14753.028109192015},{"$f":"CW154*'Philippines-IO-Data'!$AO31","v":2470.562026737573},{"$f":"(DA154*'Default-Data'!$F$19/wind_dollar_index)/'Philippines-IO-Data'!$AP31","v":53.039151147891673},{"$f":"(DB154*'Default-Data'!$F$19/wind_dollar_index)/'Philippines-IO-Data'!$AP31","v":3.7359222905168021},{"$f":"(DC154*'Default-Data'!$F$19/wind_dollar_index)/'Philippines-IO-Data'!$AP31","v":0.62562259608537829},null,"DOM_C40T41: Electricity, gas and water supply",0,1687657.8688336459,null,7668313.6444811104,8041638.7811925178,{"$f":"DI154*'SouthAfrica-IO-Data'!AR31","v":0},{"$f":"DL154*'SouthAfrica-IO-Data'!$AR31","v":4169465.9175338186},{"$f":"DM154*'SouthAfrica-IO-Data'!$AR31","v":4372452.7156543061},{"$f":"DI154*'SouthAfrica-IO-Data'!AS31","v":0},{"$f":"DL154*'SouthAfrica-IO-Data'!$AS31","v":1362439.9890702856},{"$f":"DM154*'SouthAfrica-IO-Data'!$AS31","v":1428769.1872176274},{"$f":"(DQ154*'Default-Data'!$F$19/wind_dollar_index)/'SouthAfrica-IO-Data'!$AT31","v":0},{"$f":"(DR154*'Default-Data'!$F$19/wind_dollar_index)/'SouthAfrica-IO-Data'!$AT31","v":49.403270584973356},{"$f":"(DS154*'Default-Data'!$F$19/wind_dollar_index)/'SouthAfrica-IO-Data'!$AT31","v":51.808425564308287},230042.85902396776,37096.741691251518,{"$f":"DJ154*'SouthAfrica-IO-Data'!AR31","v":917624.43358376634},{"$f":"'SouthAfrica-IO-Data'!$AR31*Calculations!DW154","v":125080.41594813686},{"$f":"'SouthAfrica-IO-Data'!$AR31*Calculations!DX154","v":20170.484320832096},{"$f":"DJ154*'SouthAfrica-IO-Data'!AS31","v":299848.52928165306},{"$f":"DW154*'SouthAfrica-IO-Data'!$AS31","v":40872.035869304869},{"$f":"DX154*'SouthAfrica-IO-Data'!$AS31","v":6591.0298779637287},{"$f":"(EB154*'Default-Data'!$F$19/wind_dollar_index)/'SouthAfrica-IO-Data'!$AT31","v":10.872771017765253},{"$f":"(EC154*'Default-Data'!$F$19/wind_dollar_index)/'SouthAfrica-IO-Data'!$AT31","v":1.4820559170374128},{"$f":"(ED154*'Default-Data'!$F$19/wind_dollar_index)/'SouthAfrica-IO-Data'!$AT31","v":0.23899653203579591},null,"OTHERMFG",{"$f":"'Wind-Inputs'!B14*'Wind-Inputs'!C14","v":0},{"$f":"0.5*'Wind-Inputs'!B34*'Wind-Inputs'!C34","v":0},null,113795318.94046676,4915826.2758260518,{"$f":"EJ154*'Zambia-IO-Data'!BO29","v":0},{"$f":"EM154*'Zambia-IO-Data'!$BO29","v":12212702.556562888},{"$f":"EN154*'Zambia-IO-Data'!$BO29","v":527574.63738739619},{"$f":"EJ154*'Zambia-IO-Data'!BN29","v":0},{"$f":"EM154*'Zambia-IO-Data'!$BN29","v":411225.45850941684},{"$f":"EN154*'Zambia-IO-Data'!$BN29","v":17764.464593546098},{"$f":"(ER154*'Default-Data'!$F$19/wind_dollar_index)/'Zambia-IO-Data'!$BP29","v":0},{"$f":"(ES154*'Default-Data'!$F$19/wind_dollar_index)/'Zambia-IO-Data'!$BP29","v":1544.9576294614744},{"$f":"(ET154*'Default-Data'!$F$19/wind_dollar_index)/'Zambia-IO-Data'!$BP29","v":66.740384232482498},506832.67053014348,11382.464137824078,{"$f":"EK154*'Zambia-IO-Data'!BO29","v":0},{"$f":"EX154*'Zambia-IO-Data'!$BO29","v":54394.12366664518},{"$f":"EY154*'Zambia-IO-Data'!$BO29","v":1221.5849489267166},{"$f":"EK154*'Zambia-IO-Data'!BN29","v":0},{"$f":"EX154*'Zambia-IO-Data'!$BN29","v":1831.5559837338205},{"$f":"EY154*'Zambia-IO-Data'!$BN29","v":41.133142185685948},{"$f":"(FC154*'Default-Data'!$F$19/wind_dollar_index)/'Zambia-IO-Data'!$BP29","v":0},{"$f":"(FD154*'Default-Data'!$F$19/wind_dollar_index)/'Zambia-IO-Data'!$BP29","v":6.881082706095599},{"$f":"(FE154*'Default-Data'!$F$19/wind_dollar_index)/'Zambia-IO-Data'!$BP29","v":0.15453557295272341},null,"TTL_C40T41: Electricity, gas and water supply",0,1687657.8688336459,null,8467882.3171519432,6270202.0921009984,{"$f":"FK154*CustomRegion1!C27","v":0},{"$f":"FN154*CustomRegion1!$C27","v":5074429.5492175361},{"$f":"FO154*CustomRegion1!$C27","v":3757456.4199215714},{"$f":"FK154*CustomRegion1!D27","v":0},{"$f":"FN154*CustomRegion1!$D27","v":1050921.5696190789},{"$f":"FO154*CustomRegion1!$D27","v":778174.56332764647},{"$f":"(FS154*'Default-Data'!$C$58/wind_dollar_index)/CustomRegion1!$E27","v":0},{"$f":"(FT154*'Default-Data'!$C$58/wind_dollar_index)/CustomRegion1!$E27","v":266.12579386862217},{"$f":"(FU154*'Default-Data'!$C$58/wind_dollar_index)/CustomRegion1!$E27","v":197.05782945248882},129111.91232548375,27367.057942566462,{"$f":"FL154*CustomRegion1!C27","v":1011339.1563357598},{"$f":"FY154*CustomRegion1!$C27","v":77371.092148193173},{"$f":"FZ154*CustomRegion1!$C27","v":16399.874525608131},{"$f":"FL154*CustomRegion1!D27","v":209449.77623297551},{"$f":"FY154*CustomRegion1!$D27","v":16023.663116193917},{"$f":"FZ154*CustomRegion1!$D27","v":3396.437315927587},{"$f":"(GD154*'Default-Data'!$C$58/wind_dollar_index)/CustomRegion1!$E27","v":53.039151147891673},{"$f":"(GE154*'Default-Data'!$C$58/wind_dollar_index)/CustomRegion1!$E27","v":4.0576863114781476},{"$f":"(GF154*'Default-Data'!$C$58/wind_dollar_index)/CustomRegion1!$E27","v":0.8600828103222441},null,"C35 Other transport equipment",0,1687657.8688336459,null,0,0,{"$f":"GL154*CustomRegion2!C31","v":0},{"$f":"GO154*CustomRegion2!$C31","v":0},{"$f":"GP154*CustomRegion2!$C31","v":0},{"$f":"GL154*CustomRegion2!D31","v":0},{"$f":"GO154*CustomRegion2!$D31","v":0},{"$f":"GP154*CustomRegion2!$D31","v":0},{"$f":"(GT154*'Default-Data'!$C$59/wind_dollar_index)/CustomRegion2!$E31","v":0},{"$f":"(GU154*'Default-Data'!$C$59/wind_dollar_index)/CustomRegion2!$E31","v":0},{"$f":"(GV154*'Default-Data'!$C$59/wind_dollar_index)/CustomRegion2!$E31","v":0},0,0,{"$f":"GM154*CustomRegion2!C31","v":0},{"$f":"GZ154*CustomRegion2!$C31","v":0},{"$f":"HA154*CustomRegion2!$C31","v":0},{"$f":"GM154*CustomRegion2!D31","v":0},{"$f":"GZ154*CustomRegion2!$D31","v":0},{"$f":"HA154*CustomRegion2!$D31","v":0},{"$f":"(HE154*'Default-Data'!$C$59/wind_dollar_index)/CustomRegion2!$E31","v":0},{"$f":"(HF154*'Default-Data'!$C$59/wind_dollar_index)/CustomRegion2!$E31","v":0},{"$f":"(HG154*'Default-Data'!$C$59/wind_dollar_index)/CustomRegion2!$E31","v":0},null,"OTHERMFG",0,0,null,113795318.94046676,4915826.2758260518,{"$f":"HM154*CustomRegion3!D30","v":0},{"$f":"HP154*CustomRegion3!$D30","v":12212702.556562888},{"$f":"HQ154*CustomRegion3!$D30","v":527574.63738739619},{"$f":"HM154*CustomRegion3!E30","v":0},{"$f":"HP154*CustomRegion3!$E30","v":411225.45850941684},{"$f":"HQ154*CustomRegion3!$E30","v":17764.464593546098},{"$f":"(HU154*'Default-Data'!$C$60/wind_dollar_index)/CustomRegion3!$F30","v":0},{"$f":"(HV154*'Default-Data'!$C$60/wind_dollar_index)/CustomRegion3!$F30","v":1544.9576294614744},{"$f":"(HW154*'Default-Data'!$C$60/wind_dollar_index)/CustomRegion3!$F30","v":66.740384232482498},506832.67053014348,11382.464137824078,{"$f":"HN154*CustomRegion3!D30","v":0},{"$f":"IA154*CustomRegion3!$D30","v":54394.12366664518},{"$f":"IB154*CustomRegion3!$D30","v":1221.5849489267166},{"$f":"HN154*CustomRegion3!E30","v":0},{"$f":"IA154*CustomRegion3!$E30","v":1831.5559837338205},{"$f":"IB154*CustomRegion3!$E30","v":41.133142185685948},{"$f":"(IF154*'Default-Data'!$C$60/wind_dollar_index)/CustomRegion3!$F30","v":0},{"$f":"(IG154*'Default-Data'!$C$60/wind_dollar_index)/CustomRegion3!$F30","v":6.881082706095599},{"$f":"(IH154*'Default-Data'!$C$60/wind_dollar_index)/CustomRegion3!$F30","v":0.15453557295272341}]
[null,null,null,null,null,null,null,null,null,null,null,null,null,null,null,null,null,null,null,null,null,null,null,null,null,null,null,null,null,154,"TTL_C45: Construction",{"$f":"'Wind-Inputs'!B21*'Wind-Inputs'!C21+'Wind-Inputs'!B26*'Wind-Inputs'!C26","v":211397058.82352942},{"$f":"'Wind-Inputs'!B35*'Wind-Inputs'!C35","v":0},null,3481097.853843838,1112382.3589184582,{"$f":"AF155*'Colombia-IO-Data'!AN32","v":104971897.24655029},{"$f":"AI155*'Colombia-IO-Data'!$AN32","v":1728583.397765842},{"$f":"AJ155*'Colombia-IO-Data'!$AN32","v":552367.60307408182},{"$f":"AK155*'Colombia-IO-Data'!$AO32","v":20701618.640541378},{"$f":"AL155*'Colombia-IO-Data'!$AO32","v":340895.75617435743},{"$f":"AM155*'Colombia-IO-Data'!$AO32","v":108932.99795632075},{"$f":"(Calculations!AN155*'Default-Data'!$F$19/wind_dollar_index)/'Colombia-IO-Data'!$AP32","v":5679.5357422613997},{"$f":"(Calculations!AO155*'Default-Data'!$F$19/wind_dollar_index)/'Colombia-IO-Data'!$AP32","v":93.525519197123884},{"$f":"(Calculations!AP155*'Default-Data'!$F$19/wind_dollar_index)/'Colombia-IO-Data'!$AP32","v":29.886013559973108},64887.787067113961,5822.6099338102867,{"$f":"AG155*'Colombia-IO-Data'!AN32","v":0},{"$f":"AT155*'Colombia-IO-Data'!$AN32","v":32220.855647055876},{"$f":"AU155*'Colombia-IO-Data'!$AN32","v":2891.2909908973907},{"$f":"AV155*'Colombia-IO-Data'!$AO32","v":0},{"$f":"AW155*'Colombia-IO-Data'!$AO32","v":6354.3089471902003},{"$f":"AX155*'Colombia-IO-Data'!$AO32","v":570.19454770650805},{"$f":"(AY155*'Default-Data'!$F$19/wind_dollar_index)/'Colombia-IO-Data'!$AP32","v":0},{"$f":"(AZ155*'Default-Data'!$F$19/wind_dollar_index)/'Colombia-IO-Data'!$AP32","v":1.7433189843552424},{"$f":"(BA155*'Default-Data'!$F$19/wind_dollar_index)/'Colombia-IO-Data'!$AP32","v":0.15643415956854836},null,"DOM_C45: Construction",211397058.82352942,0,null,16392706.046231627,217234.37783104181,{"$f":"BG155*'Mexico-IO-Data'!AQ32","v":106320573.67986271},{"$f":"BJ155*'Mexico-IO-Data'!$AQ32","v":8244589.2137772264},{"$f":"BK155*'Mexico-IO-Data'!$AQ32","v":109256.40972736974},{"$f":"BG155*'Mexico-IO-Data'!AR32","v":46761525.722212471},{"$f":"BJ155*'Mexico-IO-Data'!$AR32","v":3626105.0636349157},{"$f":"BK155*'Mexico-IO-Data'!$AR32","v":48052.754391322836},{"$f":"(BO155*'Default-Data'!$F$19/wind_dollar_index)/'Mexico-IO-Data'!$AS32","v":15857.594271593523},{"$f":"(BP155*'Default-Data'!$F$19/wind_dollar_index)/'Mexico-IO-Data'!$AS32","v":1229.671230722467},{"$f":"(BQ155*'Default-Data'!$F$19/wind_dollar_index)/'Mexico-IO-Data'!$AS32","v":16.295470924041489},6748.0010415012985,821.65981097975055,{"$f":"BH155*'Mexico-IO-Data'!AQ32","v":0},{"$f":"BU155*'Mexico-IO-Data'!$AQ32","v":3393.8567826700223},{"$f":"BV155*'Mexico-IO-Data'!$AQ32","v":413.24767222036274},{"$f":"BH155*'Mexico-IO-Data'!AR32","v":0},{"$f":"BX155*'Mexico-IO-Data'!$AR32","v":750.72908830208041},{"$f":"BY155*'Mexico-IO-Data'!$AR32","v":91.411355303236917},{"$f":"(CA155*'Default-Data'!$F$19/wind_dollar_index)/'Mexico-IO-Data'!$AS32","v":0.25458444963703886},{"$f":"(CB155*'Default-Data'!$F$19/wind_dollar_index)/'Mexico-IO-Data'!$AS32","v":3.0999078020387257E-2},{"$f":"(CC155*'Default-Data'!$F$19/wind_dollar_index)/'Mexico-IO-Data'!$AS32","v":8.6333729446372867E-5},null,"TTL_C45: Construction",{"$f":"'Wind-Inputs'!B21*'Wind-Inputs'!C21+'Wind-Inputs'!B26*'Wind-Inputs'!C26","v":211397058.82352942},{"$f":"'Wind-Inputs'!B35*'Wind-Inputs'!C35","v":0},null,2196001.3586161733,1373369.7567101121,{"$f":"CH155*'Philippines-IO-Data'!AN32","v":116337833.50764214},{"$f":"CK155*'Philippines-IO-Data'!$AN32","v":1208522.208695973},{"$f":"CL155*'Philippines-IO-Data'!$AN32","v":755804.56506705366},{"$f":"CH155*'Philippines-IO-Data'!AO32","v":35749981.88230747},{"$f":"CK155*'Philippines-IO-Data'!$AO32","v":371372.28503064025},{"$f":"CL155*'Philippines-IO-Data'!$AO32","v":232254.621674191},{"$f":"(CP155*'Default-Data'!$F$19/wind_dollar_index)/'Philippines-IO-Data'!$AP32","v":11120.8389275096},{"$f":"(CQ155*'Default-Data'!$F$19/wind_dollar_index)/'Philippines-IO-Data'!$AP32","v":115.52373306266882},{"$f":"(CR155*'Default-Data'!$F$19/wind_dollar_index)/'Philippines-IO-Data'!$AP32","v":72.248043266466908},6014.1637216152058,5954.9778738142113,{"$f":"CI155*'Philippines-IO-Data'!AN32","v":0},{"$f":"CV155*'Philippines-IO-Data'!$AN32","v":3309.7659051020551},{"$f":"CW155*'Philippines-IO-Data'!$AN32","v":3277.1942442388417},{"$f":"CI155*'Philippines-IO-Data'!AO32","v":0},{"$f":"CV155*'Philippines-IO-Data'!$AO32","v":1017.0730154976184},{"$f":"CW155*'Philippines-IO-Data'!$AO32","v":1007.0639217176483},{"$f":"(DA155*'Default-Data'!$F$19/wind_dollar_index)/'Philippines-IO-Data'!$AP32","v":0},{"$f":"(DB155*'Default-Data'!$F$19/wind_dollar_index)/'Philippines-IO-Data'!$AP32","v":0.31638352209803816},{"$f":"(DC155*'Default-Data'!$F$19/wind_dollar_index)/'Philippines-IO-Data'!$AP32","v":0.31326996752047703},null,"DOM_C45: Construction",211397058.82352942,0,null,16789964.412352175,2742118.8787598312,{"$f":"DI155*'SouthAfrica-IO-Data'!AR32","v":62943611.981090762},{"$f":"DL155*'SouthAfrica-IO-Data'!$AR32","v":4999222.841740828},{"$f":"DM155*'SouthAfrica-IO-Data'!$AR32","v":816467.68252705445},{"$f":"DI155*'SouthAfrica-IO-Data'!AS32","v":28388151.517406318},{"$f":"DL155*'SouthAfrica-IO-Data'!$AS32","v":2254695.767113775},{"$f":"DM155*'SouthAfrica-IO-Data'!$AS32","v":368234.48084940942},{"$f":"(DQ155*'Default-Data'!$F$19/wind_dollar_index)/'SouthAfrica-IO-Data'!$AT32","v":2676.8780589343241},{"$f":"(DR155*'Default-Data'!$F$19/wind_dollar_index)/'SouthAfrica-IO-Data'!$AT32","v":212.60791231363683},{"$f":"(DS155*'Default-Data'!$F$19/wind_dollar_index)/'SouthAfrica-IO-Data'!$AT32","v":34.722894927641129},9094.8971775261361,12649.620120958361,{"$f":"DJ155*'SouthAfrica-IO-Data'!AR32","v":0},{"$f":"'SouthAfrica-IO-Data'!$AR32*Calculations!DW155","v":2708.0115595553625},{"$f":"'SouthAfrica-IO-Data'!$AR32*Calculations!DX155","v":3766.4326317163477},{"$f":"DJ155*'SouthAfrica-IO-Data'!AS32","v":0},{"$f":"DW155*'SouthAfrica-IO-Data'!$AS32","v":1221.3382747504227},{"$f":"DX155*'SouthAfrica-IO-Data'!$AS32","v":1698.6959734911329},{"$f":"(EB155*'Default-Data'!$F$19/wind_dollar_index)/'SouthAfrica-IO-Data'!$AT32","v":0},{"$f":"(EC155*'Default-Data'!$F$19/wind_dollar_index)/'SouthAfrica-IO-Data'!$AT32","v":0.11516683741142768},{"$f":"(ED155*'Default-Data'!$F$19/wind_dollar_index)/'SouthAfrica-IO-Data'!$AT32","v":0.16017957271541119},null,"ELECWATER",0,{"$f":"'Wind-Inputs'!B33*'Wind-Inputs'!C33","v":1687657.8688336459},null,19723576.967209395,2128728.8180879392,{"$f":"EJ155*'Zambia-IO-Data'!BO30","v":0},{"$f":"EM155*'Zambia-IO-Data'!$BO30","v":5257503.4254034618},{"$f":"EN155*'Zambia-IO-Data'!$BO30","v":567432.52359644801},{"$f":"EJ155*'Zambia-IO-Data'!BN30","v":0},{"$f":"EM155*'Zambia-IO-Data'!$BN30","v":260262.11243099987},{"$f":"EN155*'Zambia-IO-Data'!$BN30","v":28089.603620549547},{"$f":"(ER155*'Default-Data'!$F$19/wind_dollar_index)/'Zambia-IO-Data'!$BP30","v":0},{"$f":"(ES155*'Default-Data'!$F$19/wind_dollar_index)/'Zambia-IO-Data'!$BP30","v":440.8451827146672},{"$f":"(ET155*'Default-Data'!$F$19/wind_dollar_index)/'Zambia-IO-Data'!$BP30","v":47.579597063966581},1753817.1585186117,4966.8410341436975,{"$f":"EK155*'Zambia-IO-Data'!BO30","v":449860.94768982381},{"$f":"EX155*'Zambia-IO-Data'!$BO30","v":467496.32350016705},{"$f":"EY155*'Zambia-IO-Data'!$BO30","v":1323.9578091670867},{"$f":"EK155*'Zambia-IO-Data'!BN30","v":22269.459679330634},{"$f":"EX155*'Zambia-IO-Data'!$BN30","v":23142.463420942509},{"$f":"EY155*'Zambia-IO-Data'!$BN30","v":65.539863372871082},{"$f":"(FC155*'Default-Data'!$F$19/wind_dollar_index)/'Zambia-IO-Data'!$BP30","v":37.721141696696982},{"$f":"(FD155*'Default-Data'!$F$19/wind_dollar_index)/'Zambia-IO-Data'!$BP30","v":39.199879767277679},{"$f":"(FE155*'Default-Data'!$F$19/wind_dollar_index)/'Zambia-IO-Data'!$BP30","v":0.11101474883851067},null,"TTL_C45: Construction",211397058.82352942,0,null,3178294.7655851245,1861564.7120300531,{"$f":"FK155*CustomRegion1!C28","v":116337833.50764214},{"$f":"FN155*CustomRegion1!$C28","v":1749106.2994661552},{"$f":"FO155*CustomRegion1!$C28","v":1024472.1792115533},{"$f":"FK155*CustomRegion1!D28","v":35749981.88230747},{"$f":"FN155*CustomRegion1!$D28","v":537490.82848476234},{"$f":"FO155*CustomRegion1!$D28","v":314814.71453854453},{"$f":"(FS155*'Default-Data'!$C$58/wind_dollar_index)/CustomRegion1!$E28","v":11120.8389275096},{"$f":"(FT155*'Default-Data'!$C$58/wind_dollar_index)/CustomRegion1!$E28","v":167.19865616354056},{"$f":"(FU155*'Default-Data'!$C$58/wind_dollar_index)/CustomRegion1!$E28","v":97.930223962594582},11560.854569078539,8125.0250932329727,{"$f":"FL155*CustomRegion1!C28","v":0},{"$f":"FY155*CustomRegion1!$C28","v":6362.2681486135343},{"$f":"FZ155*CustomRegion1!$C28","v":4471.4331495549732},{"$f":"FL155*CustomRegion1!D28","v":0},{"$f":"FY155*CustomRegion1!$D28","v":1955.090310568442},{"$f":"FZ155*CustomRegion1!$D28","v":1374.0470255021439},{"$f":"(GD155*'Default-Data'!$C$58/wind_dollar_index)/CustomRegion1!$E28","v":0},{"$f":"(GE155*'Default-Data'!$C$58/wind_dollar_index)/CustomRegion1!$E28","v":0.60817497765856265},{"$f":"(GF155*'Default-Data'!$C$58/wind_dollar_index)/CustomRegion1!$E28","v":0.42742834666988488},null,"C36T37 Manufacturing n.e.c; recycling",211397058.82352942,0,null,11590297.476921409,2548810.5939365625,{"$f":"GL155*CustomRegion2!C32","v":78093428.054730222},{"$f":"GO155*CustomRegion2!$C32","v":4281639.8070252566},{"$f":"GP155*CustomRegion2!$C32","v":941571.07885251497},{"$f":"GL155*CustomRegion2!D32","v":35684234.770661913},{"$f":"GO155*CustomRegion2!$D32","v":1956464.7612885309},{"$f":"GP155*CustomRegion2!$D32","v":430244.18658496084},{"$f":"(GT155*'Default-Data'!$C$59/wind_dollar_index)/CustomRegion2!$E32","v":5576.5946003821891},{"$f":"(GU155*'Default-Data'!$C$59/wind_dollar_index)/CustomRegion2!$E32","v":305.74876815376558},{"$f":"(GV155*'Default-Data'!$C$59/wind_dollar_index)/CustomRegion2!$E32","v":67.236902323266918},0,0,{"$f":"GM155*CustomRegion2!C32","v":0},{"$f":"GZ155*CustomRegion2!$C32","v":0},{"$f":"HA155*CustomRegion2!$C32","v":0},{"$f":"GM155*CustomRegion2!D32","v":0},{"$f":"GZ155*CustomRegion2!$D32","v":0},{"$f":"HA155*CustomRegion2!$D32","v":0},{"$f":"(HE155*'Default-Data'!$C$59/wind_dollar_index)/CustomRegion2!$E32","v":0},{"$f":"(HF155*'Default-Data'!$C$59/wind_dollar_index)/CustomRegion2!$E32","v":0},{"$f":"(HG155*'Default-Data'!$C$59/wind_dollar_index)/CustomRegion2!$E32","v":0},null,"ELECWATER",0,1687657.8688336459,null,19723576.967209395,2128728.8180879392,{"$f":"HM155*CustomRegion3!D31","v":0},{"$f":"HP155*CustomRegion3!$D31","v":5257503.4254034618},{"$f":"HQ155*CustomRegion3!$D31","v":567432.52359644801},{"$f":"HM155*CustomRegion3!E31","v":0},{"$f":"HP155*CustomRegion3!$E31","v":260262.11243099987},{"$f":"HQ155*CustomRegion3!$E31","v":28089.603620549547},{"$f":"(HU155*'Default-Data'!$C$60/wind_dollar_index)/CustomRegion3!$F31","v":0},{"$f":"(HV155*'Default-Data'!$C$60/wind_dollar_index)/CustomRegion3!$F31","v":440.8451827146672},{"$f":"(HW155*'Default-Data'!$C$60/wind_dollar_index)/CustomRegion3!$F31","v":47.579597063966581},1753817.1585186117,4966.8410341436975,{"$f":"HN155*CustomRegion3!D31","v":449860.94768982381},{"$f":"IA155*CustomRegion3!$D31","v":467496.32350016705},{"$f":"IB155*CustomRegion3!$D31","v":1323.9578091670867},{"$f":"HN155*CustomRegion3!E31","v":22269.459679330634},{"$f":"IA155*CustomRegion3!$E31","v":23142.463420942509},{"$f":"IB155*CustomRegion3!$E31","v":65.539863372871082},{"$f":"(IF155*'Default-Data'!$C$60/wind_dollar_index)/CustomRegion3!$F31","v":37.721141696696982},{"$f":"(IG155*'Default-Data'!$C$60/wind_dollar_index)/CustomRegion3!$F31","v":39.199879767277679},{"$f":"(IH155*'Default-Data'!$C$60/wind_dollar_index)/CustomRegion3!$F31","v":0.11101474883851067}]
[null,null,null,null,null,null,null,null,null,null,null,null,null,null,null,null,null,null,null,null,null,null,null,null,null,null,null,null,null,155,"TTL_C50T52: Wholesale and retail trade; repairs",0,0,null,17953505.541175026,10442449.164822701,{"$f":"AF156*'Colombia-IO-Data'!AN33","v":0},{"$f":"AI156*'Colombia-IO-Data'!$AN33","v":10786242.830364622},{"$f":"AJ156*'Colombia-IO-Data'!$AN33","v":6273693.5790726999},{"$f":"AK156*'Colombia-IO-Data'!$AO33","v":0},{"$f":"AL156*'Colombia-IO-Data'!$AO33","v":4679137.4901476232},{"$f":"AM156*'Colombia-IO-Data'!$AO33","v":2721566.2848696639},{"$f":"(Calculations!AN156*'Default-Data'!$F$19/wind_dollar_index)/'Colombia-IO-Data'!$AP33","v":0},{"$f":"(Calculations!AO156*'Default-Data'!$F$19/wind_dollar_index)/'Colombia-IO-Data'!$AP33","v":1413.160475489964},{"$f":"(Calculations!AP156*'Default-Data'!$F$19/wind_dollar_index)/'Colombia-IO-Data'!$AP33","v":821.9484709098665},36799.162375420892,54659.54017782458,{"$f":"AG156*'Colombia-IO-Data'!AN33","v":0},{"$f":"AT156*'Colombia-IO-Data'!$AN33","v":22108.47906137272},{"$f":"AU156*'Colombia-IO-Data'!$AN33","v":32838.771904570393},{"$f":"AV156*'Colombia-IO-Data'!$AO33","v":0},{"$f":"AW156*'Colombia-IO-Data'!$AO33","v":9590.7921649039872},{"$f":"AX156*'Colombia-IO-Data'!$AO33","v":14245.658211635822},{"$f":"(AY156*'Default-Data'!$F$19/wind_dollar_index)/'Colombia-IO-Data'!$AP33","v":0},{"$f":"(AZ156*'Default-Data'!$F$19/wind_dollar_index)/'Colombia-IO-Data'!$AP33","v":2.8965441696507068},{"$f":"(BA156*'Default-Data'!$F$19/wind_dollar_index)/'Colombia-IO-Data'!$AP33","v":4.3023743530536134},null,"DOM_C50T52: Wholesale and retail trade; repairs",0,0,null,25189996.046486143,20988160.542368155,{"$f":"BG156*'Mexico-IO-Data'!AQ33","v":0},{"$f":"BJ156*'Mexico-IO-Data'!$AQ33","v":19181378.676976144},{"$f":"BK156*'Mexico-IO-Data'!$AQ33","v":15981814.937699856},{"$f":"BG156*'Mexico-IO-Data'!AR33","v":0},{"$f":"BJ156*'Mexico-IO-Data'!$AR33","v":3862427.941309263},{"$f":"BK156*'Mexico-IO-Data'!$AR33","v":3218152.8558372073},{"$f":"(BO156*'Default-Data'!$F$19/wind_dollar_index)/'Mexico-IO-Data'!$AS33","v":0},{"$f":"(BP156*'Default-Data'!$F$19/wind_dollar_index)/'Mexico-IO-Data'!$AS33","v":786.65174263663562},{"$f":"(BQ156*'Default-Data'!$F$19/wind_dollar_index)/'Mexico-IO-Data'!$AS33","v":655.43372991892488},239342.43868977096,79384.893847089814,{"$f":"BH156*'Mexico-IO-Data'!AQ33","v":0},{"$f":"BU156*'Mexico-IO-Data'!$AQ33","v":182251.63439911889},{"$f":"BV156*'Mexico-IO-Data'!$AQ33","v":60449.06506942436},{"$f":"BH156*'Mexico-IO-Data'!AR33","v":0},{"$f":"BX156*'Mexico-IO-Data'!$AR33","v":27944.974812754364},{"$f":"BY156*'Mexico-IO-Data'!$AR33","v":9268.7651684937646},{"$f":"(CA156*'Default-Data'!$F$19/wind_dollar_index)/'Mexico-IO-Data'!$AS33","v":5.6914882215093066},{"$f":"(CB156*'Default-Data'!$F$19/wind_dollar_index)/'Mexico-IO-Data'!$AS33","v":1.8877479095218566},{"$f":"(CC156*'Default-Data'!$F$19/wind_dollar_index)/'Mexico-IO-Data'!$AS33","v":1.159172208693302E-3},null,"TTL_C50T52: Wholesale and retail trade; repairs",0,0,null,20733517.059635989,13671053.429559052,{"$f":"CH156*'Philippines-IO-Data'!AN33","v":0},{"$f":"CK156*'Philippines-IO-Data'!$AN33","v":14329242.764776144},{"$f":"CL156*'Philippines-IO-Data'!$AN33","v":9448268.8527431339},{"$f":"CH156*'Philippines-IO-Data'!AO33","v":0},{"$f":"CK156*'Philippines-IO-Data'!$AO33","v":3189562.1594559983},{"$f":"CL156*'Philippines-IO-Data'!$AO33","v":2103100.7220531958},{"$f":"(CP156*'Default-Data'!$F$19/wind_dollar_index)/'Philippines-IO-Data'!$AP33","v":0},{"$f":"(CQ156*'Default-Data'!$F$19/wind_dollar_index)/'Philippines-IO-Data'!$AP33","v":992.18531470484788},{"$f":"(CR156*'Default-Data'!$F$19/wind_dollar_index)/'Philippines-IO-Data'!$AP33","v":654.21695751564789},78301.326896964732,59278.15163177556,{"$f":"CI156*'Philippines-IO-Data'!AN33","v":0},{"$f":"CV156*'Philippines-IO-Data'!$AN33","v":54115.214446419734},{"$f":"CW156*'Philippines-IO-Data'!$AN33","v":40968.014396002138},{"$f":"CI156*'Philippines-IO-Data'!AO33","v":0},{"$f":"CV156*'Philippines-IO-Data'!$AO33","v":12045.566055551675},{"$f":"CW156*'Philippines-IO-Data'!$AO33","v":9119.1161047775277},{"$f":"(DA156*'Default-Data'!$F$19/wind_dollar_index)/'Philippines-IO-Data'!$AP33","v":0},{"$f":"(DB156*'Default-Data'!$F$19/wind_dollar_index)/'Philippines-IO-Data'!$AP33","v":3.7470452526512199},{"$f":"(DC156*'Default-Data'!$F$19/wind_dollar_index)/'Philippines-IO-Data'!$AP33","v":2.836706930267793},null,"DOM_C50T52: Wholesale and retail trade; repairs",0,0,null,44185598.187552929,27589177.172390208,{"$f":"DI156*'SouthAfrica-IO-Data'!AR33","v":0},{"$f":"DL156*'SouthAfrica-IO-Data'!$AR33","v":25948712.423483152},{"$f":"DM156*'SouthAfrica-IO-Data'!$AR33","v":16202193.787399022},{"$f":"DI156*'SouthAfrica-IO-Data'!AS33","v":0},{"$f":"DL156*'SouthAfrica-IO-Data'!$AS33","v":12460179.85096956},{"$f":"DM156*'SouthAfrica-IO-Data'!$AS33","v":7780048.7853321545},{"$f":"(DQ156*'Default-Data'!$F$19/wind_dollar_index)/'SouthAfrica-IO-Data'!$AT33","v":0},{"$f":"(DR156*'Default-Data'!$F$19/wind_dollar_index)/'SouthAfrica-IO-Data'!$AT33","v":1297.8085936992079},{"$f":"(DS156*'Default-Data'!$F$19/wind_dollar_index)/'SouthAfrica-IO-Data'!$AT33","v":810.34257079503391},95967.008148559442,127271.1454575653,{"$f":"DJ156*'SouthAfrica-IO-Data'!AR33","v":0},{"$f":"'SouthAfrica-IO-Data'!$AR33*Calculations!DW156","v":56358.189064656086},{"$f":"'SouthAfrica-IO-Data'!$AR33*Calculations!DX156","v":74742.053717764895},{"$f":"DJ156*'SouthAfrica-IO-Data'!AS33","v":0},{"$f":"DW156*'SouthAfrica-IO-Data'!$AS33","v":27062.351316709319},{"$f":"DX156*'SouthAfrica-IO-Data'!$AS33","v":35890.00550606774},{"$f":"(EB156*'Default-Data'!$F$19/wind_dollar_index)/'SouthAfrica-IO-Data'!$AT33","v":0},{"$f":"(EC156*'Default-Data'!$F$19/wind_dollar_index)/'SouthAfrica-IO-Data'!$AT33","v":2.8187195148551178},{"$f":"(ED156*'Default-Data'!$F$19/wind_dollar_index)/'SouthAfrica-IO-Data'!$AT33","v":3.7381769870731216},null,"EQUIPMACHIN",{"$f":"'Wind-Inputs'!B15*'Wind-Inputs'!C15+'Wind-Inputs'!B13*'Wind-Inputs'!C13+'Wind-Inputs'!B20*'Wind-Inputs'!C20","v":32478657.101386733},{"$f":"0.5*'Wind-Inputs'!B34*'Wind-Inputs'!C34","v":0},null,67383427.895439804,1306332.9705466554,{"$f":"EJ156*'Zambia-IO-Data'!BO31","v":4092116.0952242943},{"$f":"EM156*'Zambia-IO-Data'!$BO31","v":8489907.9719198626},{"$f":"EN156*'Zambia-IO-Data'!$BO31","v":164590.1232248882},{"$f":"EJ156*'Zambia-IO-Data'!BN31","v":917685.68954727438},{"$f":"EM156*'Zambia-IO-Data'!$BN31","v":1903921.3135953667},{"$f":"EN156*'Zambia-IO-Data'!$BN31","v":36910.487681563092},{"$f":"(ER156*'Default-Data'!$F$19/wind_dollar_index)/'Zambia-IO-Data'!$BP31","v":3447.7084970681813},{"$f":"(ES156*'Default-Data'!$F$19/wind_dollar_index)/'Zambia-IO-Data'!$BP31","v":7152.956361202806},{"$f":"(ET156*'Default-Data'!$F$19/wind_dollar_index)/'Zambia-IO-Data'!$BP31","v":138.67122857002983},341980.93992569373,2971.5617928845459,{"$f":"EK156*'Zambia-IO-Data'!BO31","v":0},{"$f":"EX156*'Zambia-IO-Data'!$BO31","v":43087.548360184905},{"$f":"EY156*'Zambia-IO-Data'!$BO31","v":374.39897230533029},{"$f":"EK156*'Zambia-IO-Data'!BN31","v":0},{"$f":"EX156*'Zambia-IO-Data'!$BN31","v":9662.6844419111058},{"$f":"EY156*'Zambia-IO-Data'!$BN31","v":83.961591282022468},{"$f":"(FC156*'Default-Data'!$F$19/wind_dollar_index)/'Zambia-IO-Data'!$BP31","v":0},{"$f":"(FD156*'Default-Data'!$F$19/wind_dollar_index)/'Zambia-IO-Data'!$BP31","v":36.302319666007243},{"$f":"(FE156*'Default-Data'!$F$19/wind_dollar_index)/'Zambia-IO-Data'!$BP31","v":0.31544034628370693},null,"TTL_C50T52: Wholesale and retail trade; repairs",0,0,null,36489108.232293114,22131675.670631245,{"$f":"FK156*CustomRegion1!C29","v":0},{"$f":"FN156*CustomRegion1!$C29","v":25218166.731037933},{"$f":"FO156*CustomRegion1!$C29","v":15295531.026578888},{"$f":"FK156*CustomRegion1!D29","v":0},{"$f":"FN156*CustomRegion1!$D29","v":5613339.9131107079},{"$f":"FO156*CustomRegion1!$D29","v":3404649.3434451441},{"$f":"(FS156*'Default-Data'!$C$58/wind_dollar_index)/CustomRegion1!$E29","v":0},{"$f":"(FT156*'Default-Data'!$C$58/wind_dollar_index)/CustomRegion1!$E29","v":1746.1561022485116},{"$f":"(FU156*'Default-Data'!$C$58/wind_dollar_index)/CustomRegion1!$E29","v":1059.0930389210293},146921.65129016133,96596.384222968976,{"$f":"FL156*CustomRegion1!C29","v":0},{"$f":"FY156*CustomRegion1!$C29","v":101539.74372428395},{"$f":"FZ156*CustomRegion1!$C29","v":66759.201333245277},{"$f":"FL156*CustomRegion1!D29","v":0},{"$f":"FY156*CustomRegion1!$D29","v":22601.845022820042},{"$f":"FZ156*CustomRegion1!$D29","v":14860.005225918165},{"$f":"(GD156*'Default-Data'!$C$58/wind_dollar_index)/CustomRegion1!$E29","v":0},{"$f":"(GE156*'Default-Data'!$C$58/wind_dollar_index)/CustomRegion1!$E29","v":7.0308141355369225},{"$f":"(GF156*'Default-Data'!$C$58/wind_dollar_index)/CustomRegion1!$E29","v":4.622540093122991},null,"C40T41 Electricity, gas and water supply",0,0,null,8783776.4974551909,6536602.4656734671,{"$f":"GL156*CustomRegion2!C33","v":0},{"$f":"GO156*CustomRegion2!$C33","v":3450431.9664071384},{"$f":"GP156*CustomRegion2!$C33","v":2567699.9074133723},{"$f":"GL156*CustomRegion2!D33","v":0},{"$f":"GO156*CustomRegion2!$D33","v":1299180.3830973282},{"$f":"GP156*CustomRegion2!$D33","v":966808.0350142034},{"$f":"(GT156*'Default-Data'!$C$59/wind_dollar_index)/CustomRegion2!$E33","v":0},{"$f":"(GU156*'Default-Data'!$C$59/wind_dollar_index)/CustomRegion2!$E33","v":69.633922528430162},{"$f":"(GV156*'Default-Data'!$C$59/wind_dollar_index)/CustomRegion2!$E33","v":51.819313688790011},0,0,{"$f":"GM156*CustomRegion2!C33","v":0},{"$f":"GZ156*CustomRegion2!$C33","v":0},{"$f":"HA156*CustomRegion2!$C33","v":0},{"$f":"GM156*CustomRegion2!D33","v":0},{"$f":"GZ156*CustomRegion2!$D33","v":0},{"$f":"HA156*CustomRegion2!$D33","v":0},{"$f":"(HE156*'Default-Data'!$C$59/wind_dollar_index)/CustomRegion2!$E33","v":0},{"$f":"(HF156*'Default-Data'!$C$59/wind_dollar_index)/CustomRegion2!$E33","v":0},{"$f":"(HG156*'Default-Data'!$C$59/wind_dollar_index)/CustomRegion2!$E33","v":0},null,"EQUIPMACHIN",32478657.101386733,0,null,67383427.895439804,1306332.9705466628,{"$f":"HM156*CustomRegion3!D32","v":4092116.0952242943},{"$f":"HP156*CustomRegion3!$D32","v":8489907.9719198626},{"$f":"HQ156*CustomRegion3!$D32","v":164590.12322488913},{"$f":"HM156*CustomRegion3!E32","v":917685.68954727438},{"$f":"HP156*CustomRegion3!$E32","v":1903921.3135953667},{"$f":"HQ156*CustomRegion3!$E32","v":36910.487681563303},{"$f":"(HU156*'Default-Data'!$C$60/wind_dollar_index)/CustomRegion3!$F32","v":3447.7084970681813},{"$f":"(HV156*'Default-Data'!$C$60/wind_dollar_index)/CustomRegion3!$F32","v":7152.956361202806},{"$f":"(HW156*'Default-Data'!$C$60/wind_dollar_index)/CustomRegion3!$F32","v":138.67122857003062},341980.93992569373,2971.5617928845459,{"$f":"HN156*CustomRegion3!D32","v":0},{"$f":"IA156*CustomRegion3!$D32","v":43087.548360184905},{"$f":"IB156*CustomRegion3!$D32","v":374.39897230533029},{"$f":"HN156*CustomRegion3!E32","v":0},{"$f":"IA156*CustomRegion3!$E32","v":9662.6844419111058},{"$f":"IB156*CustomRegion3!$E32","v":83.961591282022468},{"$f":"(IF156*'Default-Data'!$C$60/wind_dollar_index)/CustomRegion3!$F32","v":0},{"$f":"(IG156*'Default-Data'!$C$60/wind_dollar_index)/CustomRegion3!$F32","v":36.302319666007243},{"$f":"(IH156*'Default-Data'!$C$60/wind_dollar_index)/CustomRegion3!$F32","v":0.31544034628370693}]
[null,null,null,null,null,null,null,null,null,null,null,null,null,null,null,null,null,null,null,null,null,null,null,null,null,null,null,null,null,156,"TTL_C55: Hotels and restaurants",0,0,null,1974726.8077081372,7082205.2155636027,{"$f":"AF157*'Colombia-IO-Data'!AN34","v":0},{"$f":"AI157*'Colombia-IO-Data'!$AN34","v":912657.16692181327},{"$f":"AJ157*'Colombia-IO-Data'!$AN34","v":3273174.4575326014},{"$f":"AK157*'Colombia-IO-Data'!$AO34","v":0},{"$f":"AL157*'Colombia-IO-Data'!$AO34","v":388039.17730027001},{"$f":"AM157*'Colombia-IO-Data'!$AO34","v":1391672.5465982326},{"$f":"(Calculations!AN157*'Default-Data'!$F$19/wind_dollar_index)/'Colombia-IO-Data'!$AP34","v":0},{"$f":"(Calculations!AO157*'Default-Data'!$F$19/wind_dollar_index)/'Colombia-IO-Data'!$AP34","v":79.276446097514494},{"$f":"(Calculations!AP157*'Default-Data'!$F$19/wind_dollar_index)/'Colombia-IO-Data'!$AP34","v":284.31885252764852},12433.272411946842,37070.813026483156,{"$f":"AG157*'Colombia-IO-Data'!AN34","v":0},{"$f":"AT157*'Colombia-IO-Data'!$AN34","v":5746.2708921363201},{"$f":"AU157*'Colombia-IO-Data'!$AN34","v":17132.97407022331},{"$f":"AV157*'Colombia-IO-Data'!$AO34","v":0},{"$f":"AW157*'Colombia-IO-Data'!$AO34","v":2443.1717739637161},{"$f":"AX157*'Colombia-IO-Data'!$AO34","v":7284.5153732144672},{"$f":"(AY157*'Default-Data'!$F$19/wind_dollar_index)/'Colombia-IO-Data'!$AP34","v":0},{"$f":"(AZ157*'Default-Data'!$F$19/wind_dollar_index)/'Colombia-IO-Data'!$AP34","v":0.49914025896340491},{"$f":"(BA157*'Default-Data'!$F$19/wind_dollar_index)/'Colombia-IO-Data'!$AP34","v":1.4882272824846299},null,"DOM_C55: Hotels and restaurants",0,0,null,1425359.7769867075,3697853.083853818,{"$f":"BG157*'Mexico-IO-Data'!AQ34","v":0},{"$f":"BJ157*'Mexico-IO-Data'!$AQ34","v":1048252.8792162118},{"$f":"BK157*'Mexico-IO-Data'!$AQ34","v":2719513.490315408},{"$f":"BG157*'Mexico-IO-Data'!AR34","v":0},{"$f":"BJ157*'Mexico-IO-Data'!$AR34","v":256405.68208469139},{"$f":"BK157*'Mexico-IO-Data'!$AR34","v":665200.85491605673},{"$f":"(BO157*'Default-Data'!$F$19/wind_dollar_index)/'Mexico-IO-Data'!$AS34","v":0},{"$f":"(BP157*'Default-Data'!$F$19/wind_dollar_index)/'Mexico-IO-Data'!$AS34","v":178.15411290876833},{"$f":"(BQ157*'Default-Data'!$F$19/wind_dollar_index)/'Mexico-IO-Data'!$AS34","v":462.19049145167088},6163.6099843670981,13986.631840902928,{"$f":"BH157*'Mexico-IO-Data'!AQ34","v":0},{"$f":"BU157*'Mexico-IO-Data'!$AQ34","v":4532.906019094753},{"$f":"BV157*'Mexico-IO-Data'!$AQ34","v":10286.193938178156},{"$f":"BH157*'Mexico-IO-Data'!AR34","v":0},{"$f":"BX157*'Mexico-IO-Data'!$AR34","v":815.41718688658648},{"$f":"BY157*'Mexico-IO-Data'!$AR34","v":1850.3669146253619},{"$f":"(CA157*'Default-Data'!$F$19/wind_dollar_index)/'Mexico-IO-Data'!$AS34","v":0.56656281717017565},{"$f":"(CB157*'Default-Data'!$F$19/wind_dollar_index)/'Mexico-IO-Data'!$AS34","v":1.2856597933033782},{"$f":"(CC157*'Default-Data'!$F$19/wind_dollar_index)/'Mexico-IO-Data'!$AS34","v":3.9365545755224769E-4},null,"TTL_C55: Hotels and restaurants",0,0,null,2933952.1994791678,4098170.1010796451,{"$f":"CH157*'Philippines-IO-Data'!AN34","v":0},{"$f":"CK157*'Philippines-IO-Data'!$AN34","v":1099829.7936087099},{"$f":"CL157*'Philippines-IO-Data'!$AN34","v":1536251.878010808},{"$f":"CH157*'Philippines-IO-Data'!AO34","v":0},{"$f":"CK157*'Philippines-IO-Data'!$AO34","v":414314.65088361496},{"$f":"CL157*'Philippines-IO-Data'!$AO34","v":578718.3291506581},{"$f":"(CP157*'Default-Data'!$F$19/wind_dollar_index)/'Philippines-IO-Data'!$AP34","v":0},{"$f":"(CQ157*'Default-Data'!$F$19/wind_dollar_index)/'Philippines-IO-Data'!$AP34","v":128.88192539376649},{"$f":"(CR157*'Default-Data'!$F$19/wind_dollar_index)/'Philippines-IO-Data'!$AP34","v":180.02340096477144},2193.174345328523,17769.804639878716,{"$f":"CI157*'Philippines-IO-Data'!AN34","v":0},{"$f":"CV157*'Philippines-IO-Data'!$AN34","v":822.13966812369472},{"$f":"CW157*'Philippines-IO-Data'!$AN34","v":6661.240279584068},{"$f":"CI157*'Philippines-IO-Data'!AO34","v":0},{"$f":"CV157*'Philippines-IO-Data'!$AO34","v":309.706566921231},{"$f":"CW157*'Philippines-IO-Data'!$AO34","v":2509.3423154434272},{"$f":"(DA157*'Default-Data'!$F$19/wind_dollar_index)/'Philippines-IO-Data'!$AP34","v":0},{"$f":"(DB157*'Default-Data'!$F$19/wind_dollar_index)/'Philippines-IO-Data'!$AP34","v":9.6341219328771238E-2},{"$f":"(DC157*'Default-Data'!$F$19/wind_dollar_index)/'Philippines-IO-Data'!$AP34","v":0.7805875761252038},null,"DOM_C55: Hotels and restaurants",0,0,null,2014218.6144648031,2017992.4443811751,{"$f":"DI157*'SouthAfrica-IO-Data'!AR34","v":0},{"$f":"DL157*'SouthAfrica-IO-Data'!$AR34","v":904511.19473285391},{"$f":"DM157*'SouthAfrica-IO-Data'!$AR34","v":906205.88238088915},{"$f":"DI157*'SouthAfrica-IO-Data'!AS34","v":0},{"$f":"DL157*'SouthAfrica-IO-Data'!$AS34","v":346957.53453794389},{"$f":"DM157*'SouthAfrica-IO-Data'!$AS34","v":347607.59243838582},{"$f":"(DQ157*'Default-Data'!$F$19/wind_dollar_index)/'SouthAfrica-IO-Data'!$AT34","v":0},{"$f":"(DR157*'Default-Data'!$F$19/wind_dollar_index)/'SouthAfrica-IO-Data'!$AT34","v":36.137878855496261},{"$f":"(DS157*'Default-Data'!$F$19/wind_dollar_index)/'SouthAfrica-IO-Data'!$AT34","v":36.205586604476302},2790.5394720014942,9309.165268550616,{"$f":"DJ157*'SouthAfrica-IO-Data'!AR34","v":0},{"$f":"'SouthAfrica-IO-Data'!$AR34*Calculations!DW157","v":1253.1282223503476},{"$f":"'SouthAfrica-IO-Data'!$AR34*Calculations!DX157","v":4180.4023349568961},{"$f":"DJ157*'SouthAfrica-IO-Data'!AS34","v":0},{"$f":"DW157*'SouthAfrica-IO-Data'!$AS34","v":480.68203137607969},{"$f":"DX157*'SouthAfrica-IO-Data'!$AS34","v":1603.5424392306043},{"$f":"(EB157*'Default-Data'!$F$19/wind_dollar_index)/'SouthAfrica-IO-Data'!$AT34","v":0},{"$f":"(EC157*'Default-Data'!$F$19/wind_dollar_index)/'SouthAfrica-IO-Data'!$AT34","v":5.0066153026525249E-2},{"$f":"(ED157*'Default-Data'!$F$19/wind_dollar_index)/'SouthAfrica-IO-Data'!$AT34","v":0.16701935147693178},null,"CONSTR",{"$f":"'Wind-Inputs'!B21*'Wind-Inputs'!C21+'Wind-Inputs'!B26*'Wind-Inputs'!C26","v":211397058.82352942},{"$f":"'Wind-Inputs'!B35*'Wind-Inputs'!C35","v":0},null,248847844.57343119,1431118.95227772,{"$f":"EJ157*'Zambia-IO-Data'!BO32","v":12824578.399658779},{"$f":"EM157*'Zambia-IO-Data'!$BO32","v":15096561.466269828},{"$f":"EN157*'Zambia-IO-Data'!$BO32","v":86820.021550272984},{"$f":"EJ157*'Zambia-IO-Data'!BN32","v":5640905.6550481748},{"$f":"EM157*'Zambia-IO-Data'!$BN32","v":6640240.0369847352},{"$f":"EN157*'Zambia-IO-Data'!$BN32","v":38187.886983276563},{"$f":"(ER157*'Default-Data'!$F$19/wind_dollar_index)/'Zambia-IO-Data'!$BP32","v":19623.601990701773},{"$f":"(ES157*'Default-Data'!$F$19/wind_dollar_index)/'Zambia-IO-Data'!$BP32","v":23100.08987508911},{"$f":"(ET157*'Default-Data'!$F$19/wind_dollar_index)/'Zambia-IO-Data'!$BP32","v":132.84815255775101},125546.42844928142,3316.5440929433971,{"$f":"EK157*'Zambia-IO-Data'!BO32","v":0},{"$f":"EX157*'Zambia-IO-Data'!$BO32","v":7616.3785031135531},{"$f":"EY157*'Zambia-IO-Data'!$BO32","v":201.20090588102195},{"$f":"EK157*'Zambia-IO-Data'!BN32","v":0},{"$f":"EX157*'Zambia-IO-Data'!$BN32","v":3350.0729014486519},{"$f":"EY157*'Zambia-IO-Data'!$BN32","v":88.498451365486602},{"$f":"(FC157*'Default-Data'!$F$19/wind_dollar_index)/'Zambia-IO-Data'!$BP32","v":0},{"$f":"(FD157*'Default-Data'!$F$19/wind_dollar_index)/'Zambia-IO-Data'!$BP32","v":11.654245129774713},{"$f":"(FE157*'Default-Data'!$F$19/wind_dollar_index)/'Zambia-IO-Data'!$BP32","v":0.30786871693831852},null,"TTL_C55: Hotels and restaurants",0,0,null,3662411.7980058724,5157011.5423600534,{"$f":"FK157*CustomRegion1!C30","v":0},{"$f":"FN157*CustomRegion1!$C30","v":1372902.2622202076},{"$f":"FO157*CustomRegion1!$C30","v":1933172.2382111237},{"$f":"FK157*CustomRegion1!D30","v":0},{"$f":"FN157*CustomRegion1!$D30","v":517183.22669067385},{"$f":"FO157*CustomRegion1!$D30","v":728241.39301075519},{"$f":"(FS157*'Default-Data'!$C$58/wind_dollar_index)/CustomRegion1!$E30","v":0},{"$f":"(FT157*'Default-Data'!$C$58/wind_dollar_index)/CustomRegion1!$E30","v":160.88151817730207},{"$f":"(FU157*'Default-Data'!$C$58/wind_dollar_index)/CustomRegion1!$E30","v":226.5359254916383},5034.4958518282865,22508.402698542221,{"$f":"FL157*CustomRegion1!C30","v":0},{"$f":"FY157*CustomRegion1!$C30","v":1887.2456526807591},{"$f":"FZ157*CustomRegion1!$C30","v":8437.5648310814249},{"$f":"FL157*CustomRegion1!D30","v":0},{"$f":"FY157*CustomRegion1!$D30","v":710.94048212357552},{"$f":"FZ157*CustomRegion1!$D30","v":3178.4979345095676},{"$f":"(GD157*'Default-Data'!$C$58/wind_dollar_index)/CustomRegion1!$E30","v":0},{"$f":"(GE157*'Default-Data'!$C$58/wind_dollar_index)/CustomRegion1!$E30","v":0.22115408658864461},{"$f":"(GF157*'Default-Data'!$C$58/wind_dollar_index)/CustomRegion1!$E30","v":0.98874353775816126},null,"C45 Construction",0,0,null,825935.09249201592,510707.46539460088,{"$f":"GL157*CustomRegion2!C34","v":0},{"$f":"GO157*CustomRegion2!$C34","v":402472.01664009131},{"$f":"GP157*CustomRegion2!$C34","v":248863.94267416553},{"$f":"GL157*CustomRegion2!D34","v":0},{"$f":"GO157*CustomRegion2!$D34","v":166086.72272501461},{"$f":"GP157*CustomRegion2!$D34","v":102697.81483998154},{"$f":"(GT157*'Default-Data'!$C$59/wind_dollar_index)/CustomRegion2!$E34","v":0},{"$f":"(GU157*'Default-Data'!$C$59/wind_dollar_index)/CustomRegion2!$E34","v":56.322710223735641},{"$f":"(GV157*'Default-Data'!$C$59/wind_dollar_index)/CustomRegion2!$E34","v":34.826500101515741},0,0,{"$f":"GM157*CustomRegion2!C34","v":0},{"$f":"GZ157*CustomRegion2!$C34","v":0},{"$f":"HA157*CustomRegion2!$C34","v":0},{"$f":"GM157*CustomRegion2!D34","v":0},{"$f":"GZ157*CustomRegion2!$D34","v":0},{"$f":"HA157*CustomRegion2!$D34","v":0},{"$f":"(HE157*'Default-Data'!$C$59/wind_dollar_index)/CustomRegion2!$E34","v":0},{"$f":"(HF157*'Default-Data'!$C$59/wind_dollar_index)/CustomRegion2!$E34","v":0},{"$f":"(HG157*'Default-Data'!$C$59/wind_dollar_index)/CustomRegion2!$E34","v":0},null,"CONSTR",211397058.82352942,0,null,248847844.57343119,1431118.95227772,{"$f":"HM157*CustomRegion3!D33","v":12824578.399658779},{"$f":"HP157*CustomRegion3!$D33","v":15096561.466269828},{"$f":"HQ157*CustomRegion3!$D33","v":86820.021550272984},{"$f":"HM157*CustomRegion3!E33","v":5640905.6550481748},{"$f":"HP157*CustomRegion3!$E33","v":6640240.0369847352},{"$f":"HQ157*CustomRegion3!$E33","v":38187.886983276563},{"$f":"(HU157*'Default-Data'!$C$60/wind_dollar_index)/CustomRegion3!$F33","v":19623.601990701773},{"$f":"(HV157*'Default-Data'!$C$60/wind_dollar_index)/CustomRegion3!$F33","v":23100.08987508911},{"$f":"(HW157*'Default-Data'!$C$60/wind_dollar_index)/CustomRegion3!$F33","v":132.84815255775101},125546.42844928142,3316.5440929433971,{"$f":"HN157*CustomRegion3!D33","v":0},{"$f":"IA157*CustomRegion3!$D33","v":7616.3785031135531},{"$f":"IB157*CustomRegion3!$D33","v":201.20090588102195},{"$f":"HN157*CustomRegion3!E33","v":0},{"$f":"IA157*CustomRegion3!$E33","v":3350.0729014486519},{"$f":"IB157*CustomRegion3!$E33","v":88.498451365486602},{"$f":"(IF157*'Default-Data'!$C$60/wind_dollar_index)/CustomRegion3!$F33","v":0},{"$f":"(IG157*'Default-Data'!$C$60/wind_dollar_index)/CustomRegion3!$F33","v":11.654245129774713},{"$f":"(IH157*'Default-Data'!$C$60/wind_dollar_index)/CustomRegion3!$F33","v":0.30786871693831852}]
[null,null,null,null,null,null,null,null,null,null,null,null,null,null,null,null,null,null,null,null,null,null,null,null,null,null,null,null,null,157,"TTL_C60T63: Transport and storage",{"$f":"'Wind-Inputs'!B16*'Wind-Inputs'!C16","v":32690635.440571699},0,null,15659220.275558341,7367525.9690054469,{"$f":"AF158*'Colombia-IO-Data'!AN35","v":14260195.07330922},{"$f":"AI158*'Colombia-IO-Data'!$AN35","v":6830810.5001912359},{"$f":"AJ158*'Colombia-IO-Data'!$AN35","v":3213836.5042393273},{"$f":"AK158*'Colombia-IO-Data'!$AO35","v":3606775.1894460702},{"$f":"AL158*'Colombia-IO-Data'!$AO35","v":1727690.0988550184},{"$f":"AM158*'Colombia-IO-Data'!$AO35","v":812863.05740111822},{"$f":"(Calculations!AN158*'Default-Data'!$F$19/wind_dollar_index)/'Colombia-IO-Data'!$AP35","v":804.20740961871445},{"$f":"(Calculations!AO158*'Default-Data'!$F$19/wind_dollar_index)/'Colombia-IO-Data'!$AP35","v":385.22533455640269},{"$f":"(Calculations!AP158*'Default-Data'!$F$19/wind_dollar_index)/'Colombia-IO-Data'!$AP35","v":181.24514543633057},65045.589517289372,38564.284619225764,{"$f":"AG158*'Colombia-IO-Data'!AN35","v":0},{"$f":"AT158*'Colombia-IO-Data'!$AN35","v":28373.960391842487},{"$f":"AU158*'Colombia-IO-Data'!$AN35","v":16822.37784984336},{"$f":"AV158*'Colombia-IO-Data'!$AO35","v":0},{"$f":"AW158*'Colombia-IO-Data'!$AO35","v":7176.5144755396614},{"$f":"AX158*'Colombia-IO-Data'!$AO35","v":4254.8180262881942},{"$f":"(AY158*'Default-Data'!$F$19/wind_dollar_index)/'Colombia-IO-Data'!$AP35","v":0},{"$f":"(AZ158*'Default-Data'!$F$19/wind_dollar_index)/'Colombia-IO-Data'!$AP35","v":1.6001568751367985},{"$f":"(BA158*'Default-Data'!$F$19/wind_dollar_index)/'Colombia-IO-Data'!$AP35","v":0.94870237361418541},null,"DOM_C60T63: Transport and storage",32690635.440571699,0,null,7012624.8444952033,12126725.62566603,{"$f":"BG158*'Mexico-IO-Data'!AQ35","v":23893425.051250584},{"$f":"BJ158*'Mexico-IO-Data'!$AQ35","v":5125493.092328635},{"$f":"BK158*'Mexico-IO-Data'!$AQ35","v":8863364.2616297808},{"$f":"BG158*'Mexico-IO-Data'!AR35","v":7708334.2331410795},{"$f":"BJ158*'Mexico-IO-Data'!$AR35","v":1653551.7105889786},{"$f":"BK158*'Mexico-IO-Data'!$AR35","v":2859438.2769390396},{"$f":"(BO158*'Default-Data'!$F$19/wind_dollar_index)/'Mexico-IO-Data'!$AS35","v":1054.284586693864},{"$f":"(BP158*'Default-Data'!$F$19/wind_dollar_index)/'Mexico-IO-Data'!$AS35","v":226.15963826270772},{"$f":"(BQ158*'Default-Data'!$F$19/wind_dollar_index)/'Mexico-IO-Data'!$AS35","v":391.09120217155407},63319.272325853795,45867.708347425265,{"$f":"BH158*'Mexico-IO-Data'!AQ35","v":0},{"$f":"BU158*'Mexico-IO-Data'!$AQ35","v":46279.745475362186},{"$f":"BV158*'Mexico-IO-Data'!$AQ35","v":33524.482987310825},{"$f":"BH158*'Mexico-IO-Data'!AR35","v":0},{"$f":"BX158*'Mexico-IO-Data'!$AR35","v":10912.597492860225},{"$f":"BY158*'Mexico-IO-Data'!$AR35","v":7904.9524849164118},{"$f":"(CA158*'Default-Data'!$F$19/wind_dollar_index)/'Mexico-IO-Data'!$AS35","v":1.4925382046943827},{"$f":"(CB158*'Default-Data'!$F$19/wind_dollar_index)/'Mexico-IO-Data'!$AS35","v":1.0811764658002732},{"$f":"(CC158*'Default-Data'!$F$19/wind_dollar_index)/'Mexico-IO-Data'!$AS35","v":2.0413749283154875E-4},null,"TTL_C60T63: Transport and storage",{"$f":"'Wind-Inputs'!B16*'Wind-Inputs'!C16","v":32690635.440571699},0,null,2029026.7682399936,3398610.1458700113,{"$f":"CH158*'Philippines-IO-Data'!AN35","v":14450046.035275962},{"$f":"CK158*'Philippines-IO-Data'!$AN35","v":896878.56515285815},{"$f":"CL158*'Philippines-IO-Data'!$AN35","v":1502267.3130063443},{"$f":"CH158*'Philippines-IO-Data'!AO35","v":5377306.3241378898},{"$f":"CK158*'Philippines-IO-Data'!$AO35","v":333756.08414025902},{"$f":"CL158*'Philippines-IO-Data'!$AO35","v":559039.84686650697},{"$f":"(CP158*'Default-Data'!$F$19/wind_dollar_index)/'Philippines-IO-Data'!$AP35","v":1672.7325258928613},{"$f":"(CQ158*'Default-Data'!$F$19/wind_dollar_index)/'Philippines-IO-Data'!$AP35","v":103.8223645824291},{"$f":"(CR158*'Default-Data'!$F$19/wind_dollar_index)/'Philippines-IO-Data'!$AP35","v":173.90196480459818},8083.2606867755867,14736.488932782384,{"$f":"CI158*'Philippines-IO-Data'!AN35","v":0},{"$f":"CV158*'Philippines-IO-Data'!$AN35","v":3572.9953690065358},{"$f":"CW158*'Philippines-IO-Data'!$AN35","v":6513.8820523739632},{"$f":"CI158*'Philippines-IO-Data'!AO35","v":0},{"$f":"CV158*'Philippines-IO-Data'!$AO35","v":1329.6214106841296},{"$f":"CW158*'Philippines-IO-Data'!$AO35","v":2424.0157484210995},{"$f":"(DA158*'Default-Data'!$F$19/wind_dollar_index)/'Philippines-IO-Data'!$AP35","v":0},{"$f":"(DB158*'Default-Data'!$F$19/wind_dollar_index)/'Philippines-IO-Data'!$AP35","v":0.41360875626356841},{"$f":"(DC158*'Default-Data'!$F$19/wind_dollar_index)/'Philippines-IO-Data'!$AP35","v":0.75404482118852878},null,"DOM_C60T63: Transport and storage",32690635.440571699,0,null,22033279.859562527,14414358.988872979,{"$f":"DI158*'SouthAfrica-IO-Data'!AR35","v":17287081.665846247},{"$f":"DL158*'SouthAfrica-IO-Data'!$AR35","v":11651382.824635655},{"$f":"DM158*'SouthAfrica-IO-Data'!$AR35","v":7622433.6921948306},{"$f":"DI158*'SouthAfrica-IO-Data'!AS35","v":6021962.6998127652},{"$f":"DL158*'SouthAfrica-IO-Data'!$AS35","v":4058764.4651333517},{"$f":"DM158*'SouthAfrica-IO-Data'!$AS35","v":2655278.2166165779},{"$f":"(DQ158*'Default-Data'!$F$19/wind_dollar_index)/'SouthAfrica-IO-Data'!$AT35","v":337.4108129134292},{"$f":"(DR158*'Default-Data'!$F$19/wind_dollar_index)/'SouthAfrica-IO-Data'!$AT35","v":227.41273665600144},{"$f":"(DS158*'Default-Data'!$F$19/wind_dollar_index)/'SouthAfrica-IO-Data'!$AT35","v":148.77534555432834},69797.780178796456,66494.624616290486,{"$f":"DJ158*'SouthAfrica-IO-Data'!AR35","v":0},{"$f":"'SouthAfrica-IO-Data'!$AR35*Calculations!DW158","v":36909.650417750876},{"$f":"'SouthAfrica-IO-Data'!$AR35*Calculations!DX158","v":35162.914106435041},{"$f":"DJ158*'SouthAfrica-IO-Data'!AS35","v":0},{"$f":"DW158*'SouthAfrica-IO-Data'!$AS35","v":12857.493380039738},{"$f":"DX158*'SouthAfrica-IO-Data'!$AS35","v":12249.016997705392},{"$f":"(EB158*'Default-Data'!$F$19/wind_dollar_index)/'SouthAfrica-IO-Data'!$AT35","v":0},{"$f":"(EC158*'Default-Data'!$F$19/wind_dollar_index)/'SouthAfrica-IO-Data'!$AT35","v":0.72040587257757793},{"$f":"(ED158*'Default-Data'!$F$19/wind_dollar_index)/'SouthAfrica-IO-Data'!$AT35","v":0.68631291633783942},null,"TRADETRANS",{"$f":"'Wind-Inputs'!B16*'Wind-Inputs'!C16","v":32690635.440571699},0,null,60016141.772249997,5167028.3925403319,{"$f":"EJ158*'Zambia-IO-Data'!BO33","v":7390418.2246428542},{"$f":"EM158*'Zambia-IO-Data'!$BO33","v":13567934.11779055},{"$f":"EN158*'Zambia-IO-Data'!$BO33","v":1168117.4221558457},{"$f":"EJ158*'Zambia-IO-Data'!BN33","v":2720842.3001755467},{"$f":"EM158*'Zambia-IO-Data'!$BN33","v":4995144.787690755},{"$f":"EN158*'Zambia-IO-Data'!$BN33","v":430051.88572088321},{"$f":"(ER158*'Default-Data'!$F$19/wind_dollar_index)/'Zambia-IO-Data'!$BP33","v":6774.3584002992811},{"$f":"(ES158*'Default-Data'!$F$19/wind_dollar_index)/'Zambia-IO-Data'!$BP33","v":12436.921114840346},{"$f":"(ET158*'Default-Data'!$F$19/wind_dollar_index)/'Zambia-IO-Data'!$BP33","v":1070.7440135026739},129537.18676891927,11898.801869188654,{"$f":"EK158*'Zambia-IO-Data'!BO33","v":0},{"$f":"EX158*'Zambia-IO-Data'!$BO33","v":29284.655160843336},{"$f":"EY158*'Zambia-IO-Data'!$BO33","v":2689.9789802289761},{"$f":"EK158*'Zambia-IO-Data'!BN33","v":0},{"$f":"EX158*'Zambia-IO-Data'!$BN33","v":10781.382877898932},{"$f":"EY158*'Zambia-IO-Data'!$BN33","v":990.33753889398781},{"$f":"(FC158*'Default-Data'!$F$19/wind_dollar_index)/'Zambia-IO-Data'!$BP33","v":0},{"$f":"(FD158*'Default-Data'!$F$19/wind_dollar_index)/'Zambia-IO-Data'!$BP33","v":26.843507858219187},{"$f":"(FE158*'Default-Data'!$F$19/wind_dollar_index)/'Zambia-IO-Data'!$BP33","v":2.4657443120850293},null,"TTL_C60T63: Transport and storage",32690635.440571699,0,null,5035775.9305023961,6227144.8120648973,{"$f":"FK158*CustomRegion1!C31","v":14450046.035275962},{"$f":"FN158*CustomRegion1!$C31","v":2225933.9116052897},{"$f":"FO158*CustomRegion1!$C31","v":2752547.5718037626},{"$f":"FK158*CustomRegion1!D31","v":5377306.3241378898},{"$f":"FN158*CustomRegion1!$D31","v":828338.43371624406},{"$f":"FO158*CustomRegion1!$D31","v":1024307.5647798857},{"$f":"(FS158*'Default-Data'!$C$58/wind_dollar_index)/CustomRegion1!$E31","v":1672.7325258928613},{"$f":"(FT158*'Default-Data'!$C$58/wind_dollar_index)/CustomRegion1!$E31","v":257.67336971386919},{"$f":"(FU158*'Default-Data'!$C$58/wind_dollar_index)/CustomRegion1!$E31","v":318.63399197368983},20474.288569091823,27179.129218692931,{"$f":"FL158*CustomRegion1!C31","v":0},{"$f":"FY158*CustomRegion1!$C31","v":9050.1273032986755},{"$f":"FZ158*CustomRegion1!$C31","v":12013.82790869233},{"$f":"FL158*CustomRegion1!D31","v":0},{"$f":"FY158*CustomRegion1!$D31","v":3367.8305704685981},{"$f":"FZ158*CustomRegion1!$D31","v":4470.7146698914858},{"$f":"(GD158*'Default-Data'!$C$58/wind_dollar_index)/CustomRegion1!$E31","v":0},{"$f":"(GE158*'Default-Data'!$C$58/wind_dollar_index)/CustomRegion1!$E31","v":1.0476397283954835},{"$f":"(GF158*'Default-Data'!$C$58/wind_dollar_index)/CustomRegion1!$E31","v":1.3907167253509229},null,"C50T52 Wholesale and retail trade; repairs",32690635.440571699,0,null,34806342.673273101,36789532.676135421,{"$f":"GL158*CustomRegion2!C35","v":23983894.503138009},{"$f":"GO158*CustomRegion2!$C35","v":25536109.637067787},{"$f":"GP158*CustomRegion2!$C35","v":26991101.844080571},{"$f":"GL158*CustomRegion2!D35","v":5841262.2032236522},{"$f":"GO158*CustomRegion2!$D35","v":6219303.2086954461},{"$f":"GP158*CustomRegion2!$D35","v":6573665.6323500685},{"$f":"(GT158*'Default-Data'!$C$59/wind_dollar_index)/CustomRegion2!$E35","v":1189.6763282542431},{"$f":"(GU158*'Default-Data'!$C$59/wind_dollar_index)/CustomRegion2!$E35","v":1266.671063239949},{"$f":"(GV158*'Default-Data'!$C$59/wind_dollar_index)/CustomRegion2!$E35","v":1338.8432363726752},0,0,{"$f":"GM158*CustomRegion2!C35","v":0},{"$f":"GZ158*CustomRegion2!$C35","v":0},{"$f":"HA158*CustomRegion2!$C35","v":0},{"$f":"GM158*CustomRegion2!D35","v":0},{"$f":"GZ158*CustomRegion2!$D35","v":0},{"$f":"HA158*CustomRegion2!$D35","v":0},{"$f":"(HE158*'Default-Data'!$C$59/wind_dollar_index)/CustomRegion2!$E35","v":0},{"$f":"(HF158*'Default-Data'!$C$59/wind_dollar_index)/CustomRegion2!$E35","v":0},{"$f":"(HG158*'Default-Data'!$C$59/wind_dollar_index)/CustomRegion2!$E35","v":0},null,"TRADETRANS",32690635.440571699,0,null,60016141.772249997,5167028.3925403357,{"$f":"HM158*CustomRegion3!D34","v":7390418.2246428542},{"$f":"HP158*CustomRegion3!$D34","v":13567934.11779055},{"$f":"HQ158*CustomRegion3!$D34","v":1168117.4221558464},{"$f":"HM158*CustomRegion3!E34","v":2720842.3001755467},{"$f":"HP158*CustomRegion3!$E34","v":4995144.787690755},{"$f":"HQ158*CustomRegion3!$E34","v":430051.8857208835},{"$f":"(HU158*'Default-Data'!$C$60/wind_dollar_index)/CustomRegion3!$F34","v":6774.3584002992811},{"$f":"(HV158*'Default-Data'!$C$60/wind_dollar_index)/CustomRegion3!$F34","v":12436.921114840346},{"$f":"(HW158*'Default-Data'!$C$60/wind_dollar_index)/CustomRegion3!$F34","v":1070.7440135026745},129537.18676891927,11898.801869188654,{"$f":"HN158*CustomRegion3!D34","v":0},{"$f":"IA158*CustomRegion3!$D34","v":29284.655160843336},{"$f":"IB158*CustomRegion3!$D34","v":2689.9789802289761},{"$f":"HN158*CustomRegion3!E34","v":0},{"$f":"IA158*CustomRegion3!$E34","v":10781.382877898932},{"$f":"IB158*CustomRegion3!$E34","v":990.33753889398781},{"$f":"(IF158*'Default-Data'!$C$60/wind_dollar_index)/CustomRegion3!$F34","v":0},{"$f":"(IG158*'Default-Data'!$C$60/wind_dollar_index)/CustomRegion3!$F34","v":26.843507858219187},{"$f":"(IH158*'Default-Data'!$C$60/wind_dollar_index)/CustomRegion3!$F34","v":2.4657443120850293}]
[null,null,null,null,null,null,null,null,null,null,null,null,null,null,null,null,null,null,null,null,null,null,null,null,null,null,null,null,null,158,"TTL_C64: Post and telecommunications",0,0,null,2578469.3754499089,4459647.7430292051,{"$f":"AF159*'Colombia-IO-Data'!AN36","v":0},{"$f":"AI159*'Colombia-IO-Data'!$AN36","v":1409727.0680028673},{"$f":"AJ159*'Colombia-IO-Data'!$AN36","v":2438224.086337728},{"$f":"AK159*'Colombia-IO-Data'!$AO36","v":0},{"$f":"AL159*'Colombia-IO-Data'!$AO36","v":342186.26985815418},{"$f":"AM159*'Colombia-IO-Data'!$AO36","v":591835.69934866019},{"$f":"(Calculations!AN159*'Default-Data'!$F$19/wind_dollar_index)/'Colombia-IO-Data'!$AP36","v":0},{"$f":"(Calculations!AO159*'Default-Data'!$F$19/wind_dollar_index)/'Colombia-IO-Data'!$AP36","v":76.297722823135018},{"$f":"(Calculations!AP159*'Default-Data'!$F$19/wind_dollar_index)/'Colombia-IO-Data'!$AP36","v":131.96238459380226},15548.46040193971,23343.402600436631,{"$f":"AG159*'Colombia-IO-Data'!AN36","v":0},{"$f":"AT159*'Colombia-IO-Data'!$AN36","v":8500.812808979188},{"$f":"AU159*'Colombia-IO-Data'!$AN36","v":12762.543087944203},{"$f":"AV159*'Colombia-IO-Data'!$AO36","v":0},{"$f":"AW159*'Colombia-IO-Data'!$AO36","v":2063.421701895767},{"$f":"AX159*'Colombia-IO-Data'!$AO36","v":3097.8812227493618},{"$f":"(AY159*'Default-Data'!$F$19/wind_dollar_index)/'Colombia-IO-Data'!$AP36","v":0},{"$f":"(AZ159*'Default-Data'!$F$19/wind_dollar_index)/'Colombia-IO-Data'!$AP36","v":0.46008385182650885},{"$f":"(BA159*'Default-Data'!$F$19/wind_dollar_index)/'Colombia-IO-Data'!$AP36","v":0.69073865228521236},null,"DOM_C64: Post and telecommunications",0,0,null,3646135.0905034924,4726511.3388662525,{"$f":"BG159*'Mexico-IO-Data'!AQ36","v":0},{"$f":"BJ159*'Mexico-IO-Data'!$AQ36","v":2224655.930064118},{"$f":"BK159*'Mexico-IO-Data'!$AQ36","v":2883837.6027016905},{"$f":"BG159*'Mexico-IO-Data'!AR36","v":0},{"$f":"BJ159*'Mexico-IO-Data'!$AR36","v":568705.70036182739},{"$f":"BK159*'Mexico-IO-Data'!$AR36","v":737217.32040017948},{"$f":"(BO159*'Default-Data'!$F$19/wind_dollar_index)/'Mexico-IO-Data'!$AS36","v":0},{"$f":"(BP159*'Default-Data'!$F$19/wind_dollar_index)/'Mexico-IO-Data'!$AS36","v":45.903716098358778},{"$f":"(BQ159*'Default-Data'!$F$19/wind_dollar_index)/'Mexico-IO-Data'!$AS36","v":59.505319811128999},9907.4281252541878,17877.393311602107,{"$f":"BH159*'Mexico-IO-Data'!AQ36","v":0},{"$f":"BU159*'Mexico-IO-Data'!$AQ36","v":6044.9265272525008},{"$f":"BV159*'Mexico-IO-Data'!$AQ36","v":10907.72778779633},{"$f":"BH159*'Mexico-IO-Data'!AR36","v":0},{"$f":"BX159*'Mexico-IO-Data'!$AR36","v":942.85704972116139},{"$f":"BY159*'Mexico-IO-Data'!$AR36","v":1701.3321824173745},{"$f":"(CA159*'Default-Data'!$F$19/wind_dollar_index)/'Mexico-IO-Data'!$AS36","v":7.6103760353026018E-2},{"$f":"(CB159*'Default-Data'!$F$19/wind_dollar_index)/'Mexico-IO-Data'!$AS36","v":0.13732492823792761},{"$f":"(CC159*'Default-Data'!$F$19/wind_dollar_index)/'Mexico-IO-Data'!$AS36","v":6.1428000581675294E-6},null,"TTL_C64: Post and telecommunications",0,0,null,1169098.286058944,3008740.6530207889,{"$f":"CH159*'Philippines-IO-Data'!AN36","v":0},{"$f":"CK159*'Philippines-IO-Data'!$AN36","v":708120.30423051456},{"$f":"CL159*'Philippines-IO-Data'!$AN36","v":1822387.7085218644},{"$f":"CH159*'Philippines-IO-Data'!AO36","v":0},{"$f":"CK159*'Philippines-IO-Data'!$AO36","v":125565.99195332111},{"$f":"CL159*'Philippines-IO-Data'!$AO36","v":323151.19193305419},{"$f":"(CP159*'Default-Data'!$F$19/wind_dollar_index)/'Philippines-IO-Data'!$AP36","v":0},{"$f":"(CQ159*'Default-Data'!$F$19/wind_dollar_index)/'Philippines-IO-Data'!$AP36","v":31.797186638381415},{"$f":"(CR159*'Default-Data'!$F$19/wind_dollar_index)/'Philippines-IO-Data'!$AP36","v":81.831860701029299},2217.9544030698489,13046.001580597025,{"$f":"CI159*'Philippines-IO-Data'!AN36","v":0},{"$f":"CV159*'Philippines-IO-Data'!$AN36","v":1343.4101866368187},{"$f":"CW159*'Philippines-IO-Data'!$AN36","v":7901.9349514112346},{"$f":"CI159*'Philippines-IO-Data'!AO36","v":0},{"$f":"CV159*'Philippines-IO-Data'!$AO36","v":238.21747756343925},{"$f":"CW159*'Philippines-IO-Data'!$AO36","v":1401.1945351613222},{"$f":"(DA159*'Default-Data'!$F$19/wind_dollar_index)/'Philippines-IO-Data'!$AP36","v":0},{"$f":"(DB159*'Default-Data'!$F$19/wind_dollar_index)/'Philippines-IO-Data'!$AP36","v":6.0324021470916853E-2},{"$f":"(DC159*'Default-Data'!$F$19/wind_dollar_index)/'Philippines-IO-Data'!$AP36","v":0.3548257251674285},null,"DOM_C64: Post and telecommunications",0,0,null,11699986.736184282,8210321.3321386036,{"$f":"DI159*'SouthAfrica-IO-Data'!AR36","v":0},{"$f":"DL159*'SouthAfrica-IO-Data'!$AR36","v":4751143.773653321},{"$f":"DM159*'SouthAfrica-IO-Data'!$AR36","v":3334056.5212986884},{"$f":"DI159*'SouthAfrica-IO-Data'!AS36","v":0},{"$f":"DL159*'SouthAfrica-IO-Data'!$AS36","v":1554785.1717123683},{"$f":"DM159*'SouthAfrica-IO-Data'!$AS36","v":1091051.3105731932},{"$f":"(DQ159*'Default-Data'!$F$19/wind_dollar_index)/'SouthAfrica-IO-Data'!$AT36","v":0},{"$f":"(DR159*'Default-Data'!$F$19/wind_dollar_index)/'SouthAfrica-IO-Data'!$AT36","v":87.114675869634112},{"$f":"(DS159*'Default-Data'!$F$19/wind_dollar_index)/'SouthAfrica-IO-Data'!$AT36","v":61.131648929378024},15591.47607604823,37874.88818483799,{"$f":"DJ159*'SouthAfrica-IO-Data'!AR36","v":0},{"$f":"'SouthAfrica-IO-Data'!$AR36*Calculations!DW159","v":6331.4041418255583},{"$f":"'SouthAfrica-IO-Data'!$AR36*Calculations!DX159","v":15380.277194732576},{"$f":"DJ159*'SouthAfrica-IO-Data'!AS36","v":0},{"$f":"DW159*'SouthAfrica-IO-Data'!$AS36","v":2071.9165204843453},{"$f":"DX159*'SouthAfrica-IO-Data'!$AS36","v":5033.1095118194135},{"$f":"(EB159*'Default-Data'!$F$19/wind_dollar_index)/'SouthAfrica-IO-Data'!$AT36","v":0},{"$f":"(EC159*'Default-Data'!$F$19/wind_dollar_index)/'SouthAfrica-IO-Data'!$AT36","v":0.11608956619527427},{"$f":"(ED159*'Default-Data'!$F$19/wind_dollar_index)/'SouthAfrica-IO-Data'!$AT36","v":0.28200532891346242},null,"TOURISM",0,0,null,288078.77588446625,17319.525112951174,{"$f":"EJ159*'Zambia-IO-Data'!BO34","v":0},{"$f":"EM159*'Zambia-IO-Data'!$BO34","v":125913.17759491806},{"$f":"EN159*'Zambia-IO-Data'!$BO34","v":7570.0003747629607},{"$f":"EJ159*'Zambia-IO-Data'!BN34","v":0},{"$f":"EM159*'Zambia-IO-Data'!$BN34","v":88244.916125482152},{"$f":"EN159*'Zambia-IO-Data'!$BN34","v":5305.3545379493899},{"$f":"(ER159*'Default-Data'!$F$19/wind_dollar_index)/'Zambia-IO-Data'!$BP34","v":0},{"$f":"(ES159*'Default-Data'!$F$19/wind_dollar_index)/'Zambia-IO-Data'!$BP34","v":255.91978704093066},{"$f":"(ET159*'Default-Data'!$F$19/wind_dollar_index)/'Zambia-IO-Data'!$BP34","v":15.386101127887773},427.23679669676199,39.908210386062422,{"$f":"EK159*'Zambia-IO-Data'!BO34","v":0},{"$f":"EX159*'Zambia-IO-Data'!$BO34","v":186.73622342500383},{"$f":"EY159*'Zambia-IO-Data'!$BO34","v":17.443039899096526},{"$f":"EK159*'Zambia-IO-Data'!BN34","v":0},{"$f":"EX159*'Zambia-IO-Data'!$BN34","v":130.87210321021905},{"$f":"EY159*'Zambia-IO-Data'!$BN34","v":12.224769656923799},{"$f":"(FC159*'Default-Data'!$F$19/wind_dollar_index)/'Zambia-IO-Data'!$BP34","v":0},{"$f":"(FD159*'Default-Data'!$F$19/wind_dollar_index)/'Zambia-IO-Data'!$BP34","v":0.37954323323886502},{"$f":"(FE159*'Default-Data'!$F$19/wind_dollar_index)/'Zambia-IO-Data'!$BP34","v":3.5453152256109934E-2},null,"TTL_C64: Post and telecommunications",0,0,null,1773518.0082778337,3996616.413966109,{"$f":"FK159*CustomRegion1!C32","v":0},{"$f":"FN159*CustomRegion1!$C32","v":1074216.023199847},{"$f":"FO159*CustomRegion1!$C32","v":2420741.9211011152},{"$f":"FK159*CustomRegion1!D32","v":0},{"$f":"FN159*CustomRegion1!$D32","v":190483.17033051976},{"$f":"FO159*CustomRegion1!$D32","v":429253.13505358918},{"$f":"(FS159*'Default-Data'!$C$58/wind_dollar_index)/CustomRegion1!$E32","v":0},{"$f":"(FT159*'Default-Data'!$C$58/wind_dollar_index)/CustomRegion1!$E32","v":48.236220844906377},{"$f":"(FU159*'Default-Data'!$C$58/wind_dollar_index)/CustomRegion1!$E32","v":108.70014912543613},4467.6771809522106,17443.717342541531,{"$f":"FL159*CustomRegion1!C32","v":0},{"$f":"FY159*CustomRegion1!$C32","v":2706.0624092131302},{"$f":"FZ159*CustomRegion1!$C32","v":10565.621880390672},{"$f":"FL159*CustomRegion1!D32","v":0},{"$f":"FY159*CustomRegion1!$D32","v":479.84700999313372},{"$f":"FZ159*CustomRegion1!$D32","v":1873.5273993542958},{"$f":"(GD159*'Default-Data'!$C$58/wind_dollar_index)/CustomRegion1!$E32","v":0},{"$f":"(GE159*'Default-Data'!$C$58/wind_dollar_index)/CustomRegion1!$E32","v":0.12151208059816861},{"$f":"(GF159*'Default-Data'!$C$58/wind_dollar_index)/CustomRegion1!$E32","v":0.47443499201229578},null,"C55 Hotels and restaurants",0,0,null,2748300.0141457794,9140319.1667609364,{"$f":"GL159*CustomRegion2!C36","v":0},{"$f":"GO159*CustomRegion2!$C36","v":1976402.7502306113},{"$f":"GP159*CustomRegion2!$C36","v":6573136.7922678534},{"$f":"GL159*CustomRegion2!D36","v":0},{"$f":"GO159*CustomRegion2!$D36","v":546072.86449402396},{"$f":"GP159*CustomRegion2!$D36","v":1816133.6986836039},{"$f":"(GT159*'Default-Data'!$C$59/wind_dollar_index)/CustomRegion2!$E36","v":0},{"$f":"(GU159*'Default-Data'!$C$59/wind_dollar_index)/CustomRegion2!$E36","v":379.41876313548073},{"$f":"(GV159*'Default-Data'!$C$59/wind_dollar_index)/CustomRegion2!$E36","v":1261.8740949189571},0,0,{"$f":"GM159*CustomRegion2!C36","v":0},{"$f":"GZ159*CustomRegion2!$C36","v":0},{"$f":"HA159*CustomRegion2!$C36","v":0},{"$f":"GM159*CustomRegion2!D36","v":0},{"$f":"GZ159*CustomRegion2!$D36","v":0},{"$f":"HA159*CustomRegion2!$D36","v":0},{"$f":"(HE159*'Default-Data'!$C$59/wind_dollar_index)/CustomRegion2!$E36","v":0},{"$f":"(HF159*'Default-Data'!$C$59/wind_dollar_index)/CustomRegion2!$E36","v":0},{"$f":"(HG159*'Default-Data'!$C$59/wind_dollar_index)/CustomRegion2!$E36","v":0},null,"TOURISM",0,0,null,288078.77588446625,17319.525112951174,{"$f":"HM159*CustomRegion3!D35","v":0},{"$f":"HP159*CustomRegion3!$D35","v":125913.17759491806},{"$f":"HQ159*CustomRegion3!$D35","v":7570.0003747629607},{"$f":"HM159*CustomRegion3!E35","v":0},{"$f":"HP159*CustomRegion3!$E35","v":88244.916125482152},{"$f":"HQ159*CustomRegion3!$E35","v":5305.3545379493899},{"$f":"(HU159*'Default-Data'!$C$60/wind_dollar_index)/CustomRegion3!$F35","v":0},{"$f":"(HV159*'Default-Data'!$C$60/wind_dollar_index)/CustomRegion3!$F35","v":255.91978704093066},{"$f":"(HW159*'Default-Data'!$C$60/wind_dollar_index)/CustomRegion3!$F35","v":15.386101127887773},427.23679669676199,39.908210386062422,{"$f":"HN159*CustomRegion3!D35","v":0},{"$f":"IA159*CustomRegion3!$D35","v":186.73622342500383},{"$f":"IB159*CustomRegion3!$D35","v":17.443039899096526},{"$f":"HN159*CustomRegion3!E35","v":0},{"$f":"IA159*CustomRegion3!$E35","v":130.87210321021905},{"$f":"IB159*CustomRegion3!$E35","v":12.224769656923799},{"$f":"(IF159*'Default-Data'!$C$60/wind_dollar_index)/CustomRegion3!$F35","v":0},{"$f":"(IG159*'Default-Data'!$C$60/wind_dollar_index)/CustomRegion3!$F35","v":0.37954323323886502},{"$f":"(IH159*'Default-Data'!$C$60/wind_dollar_index)/CustomRegion3!$F35","v":3.5453152256109934E-2}]
[null,null,null,null,null,null,null,null,null,null,null,null,null,null,null,null,null,null,null,null,null,null,null,null,null,null,null,null,null,159,"TTL_C65T67: Financial intermediation",0,0,null,9728000.4545476902,6639716.3541692048,{"$f":"AF160*'Colombia-IO-Data'!AN37","v":0},{"$f":"AI160*'Colombia-IO-Data'!$AN37","v":6481574.4942835672},{"$f":"AJ160*'Colombia-IO-Data'!$AN37","v":4423911.8173912102},{"$f":"AK160*'Colombia-IO-Data'!$AO37","v":0},{"$f":"AL160*'Colombia-IO-Data'!$AO37","v":2307453.9855485256},{"$f":"AM160*'Colombia-IO-Data'!$AO37","v":1574921.7977449005},{"$f":"(Calculations!AN160*'Default-Data'!$F$19/wind_dollar_index)/'Colombia-IO-Data'!$AP37","v":0},{"$f":"(Calculations!AO160*'Default-Data'!$F$19/wind_dollar_index)/'Colombia-IO-Data'!$AP37","v":323.22575151767631},{"$f":"(Calculations!AP160*'Default-Data'!$F$19/wind_dollar_index)/'Colombia-IO-Data'!$AP37","v":220.61340544420577},84066.833894792755,34754.666946586236,{"$f":"AG160*'Colombia-IO-Data'!AN37","v":0},{"$f":"AT160*'Colombia-IO-Data'!$AN37","v":56012.070407843828},{"$f":"AU160*'Colombia-IO-Data'!$AN37","v":23156.34789398119},{"$f":"AV160*'Colombia-IO-Data'!$AO37","v":0},{"$f":"AW160*'Colombia-IO-Data'!$AO37","v":19940.413431241421},{"$f":"AX160*'Colombia-IO-Data'!$AO37","v":8243.7079579722031},{"$f":"(AY160*'Default-Data'!$F$19/wind_dollar_index)/'Colombia-IO-Data'!$AP37","v":0},{"$f":"(AZ160*'Default-Data'!$F$19/wind_dollar_index)/'Colombia-IO-Data'!$AP37","v":2.7932323492700184},{"$f":"(BA160*'Default-Data'!$F$19/wind_dollar_index)/'Colombia-IO-Data'!$AP37","v":1.1547700264863108},null,"DOM_C65T67: Financial intermediation",0,0,null,10524886.781785958,7376660.74340434,{"$f":"BG160*'Mexico-IO-Data'!AQ37","v":0},{"$f":"BJ160*'Mexico-IO-Data'!$AQ37","v":7154742.9213054013},{"$f":"BK160*'Mexico-IO-Data'!$AQ37","v":5014601.3283563107},{"$f":"BG160*'Mexico-IO-Data'!AR37","v":0},{"$f":"BJ160*'Mexico-IO-Data'!$AR37","v":1943130.6916525741},{"$f":"BK160*'Mexico-IO-Data'!$AR37","v":1361897.3951551975},{"$f":"(BO160*'Default-Data'!$F$19/wind_dollar_index)/'Mexico-IO-Data'!$AS37","v":0},{"$f":"(BP160*'Default-Data'!$F$19/wind_dollar_index)/'Mexico-IO-Data'!$AS37","v":146.92310640949904},{"$f":"(BQ160*'Default-Data'!$F$19/wind_dollar_index)/'Mexico-IO-Data'!$AS37","v":102.97516104644127},26922.147831633618,27901.226926439038,{"$f":"BH160*'Mexico-IO-Data'!AQ37","v":0},{"$f":"BU160*'Mexico-IO-Data'!$AQ37","v":18301.483960669506},{"$f":"BV160*'Mexico-IO-Data'!$AQ37","v":18967.054941925086},{"$f":"BH160*'Mexico-IO-Data'!AR37","v":0},{"$f":"BX160*'Mexico-IO-Data'!$AR37","v":3378.8653430749509},{"$f":"BY160*'Mexico-IO-Data'!$AR37","v":3501.7447077621955},{"$f":"(CA160*'Default-Data'!$F$19/wind_dollar_index)/'Mexico-IO-Data'!$AS37","v":0.25548121620258479},{"$f":"(CB160*'Default-Data'!$F$19/wind_dollar_index)/'Mexico-IO-Data'!$AS37","v":0.26477231435209808},{"$f":"(CC160*'Default-Data'!$F$19/wind_dollar_index)/'Mexico-IO-Data'!$AS37","v":1.9317328512698894E-5},null,"TTL_C65T67: Financial intermediation",0,0,null,6757416.7962784693,9481464.8900151514,{"$f":"CH160*'Philippines-IO-Data'!AN37","v":0},{"$f":"CK160*'Philippines-IO-Data'!$AN37","v":4309841.0472331448},{"$f":"CL160*'Philippines-IO-Data'!$AN37","v":6047223.0443728324},{"$f":"CH160*'Philippines-IO-Data'!AO37","v":0},{"$f":"CK160*'Philippines-IO-Data'!$AO37","v":944229.54351649247},{"$f":"CL160*'Philippines-IO-Data'!$AO37","v":1324867.1104462862},{"$f":"(CP160*'Default-Data'!$F$19/wind_dollar_index)/'Philippines-IO-Data'!$AP37","v":0},{"$f":"(CQ160*'Default-Data'!$F$19/wind_dollar_index)/'Philippines-IO-Data'!$AP37","v":239.10807821140696},{"$f":"(CR160*'Default-Data'!$F$19/wind_dollar_index)/'Philippines-IO-Data'!$AP37","v":335.49726423994076},25201.652901012523,41111.953540203729,{"$f":"CI160*'Philippines-IO-Data'!AN37","v":0},{"$f":"CV160*'Philippines-IO-Data'!$AN37","v":16073.46733306786},{"$f":"CW160*'Philippines-IO-Data'!$AN37","v":26220.964347958259},{"$f":"CI160*'Philippines-IO-Data'!AO37","v":0},{"$f":"CV160*'Philippines-IO-Data'!$AO37","v":3521.4854924576293},{"$f":"CW160*'Philippines-IO-Data'!$AO37","v":5744.6687535563551},{"$f":"(DA160*'Default-Data'!$F$19/wind_dollar_index)/'Philippines-IO-Data'!$AP37","v":0},{"$f":"(DB160*'Default-Data'!$F$19/wind_dollar_index)/'Philippines-IO-Data'!$AP37","v":0.89174887010531934},{"$f":"(DC160*'Default-Data'!$F$19/wind_dollar_index)/'Philippines-IO-Data'!$AP37","v":1.4547275236786601},null,"DOM_C65T67: Financial intermediation",0,0,null,20686335.284078468,23320981.108875196,{"$f":"DI160*'SouthAfrica-IO-Data'!AR37","v":0},{"$f":"DL160*'SouthAfrica-IO-Data'!$AR37","v":12037858.322237207},{"$f":"DM160*'SouthAfrica-IO-Data'!$AR37","v":13571019.838409049},{"$f":"DI160*'SouthAfrica-IO-Data'!AS37","v":0},{"$f":"DL160*'SouthAfrica-IO-Data'!$AS37","v":6047956.4317140318},{"$f":"DM160*'SouthAfrica-IO-Data'!$AS37","v":6818234.1509208689},{"$f":"(DQ160*'Default-Data'!$F$19/wind_dollar_index)/'SouthAfrica-IO-Data'!$AT37","v":0},{"$f":"(DR160*'Default-Data'!$F$19/wind_dollar_index)/'SouthAfrica-IO-Data'!$AT37","v":375.75119409906364},{"$f":"(DS160*'Default-Data'!$F$19/wind_dollar_index)/'SouthAfrica-IO-Data'!$AT37","v":423.60748672414877},103752.11958904166,107581.60565553568,{"$f":"DJ160*'SouthAfrica-IO-Data'!AR37","v":0},{"$f":"'SouthAfrica-IO-Data'!$AR37*Calculations!DW160","v":60375.76492371608},{"$f":"'SouthAfrica-IO-Data'!$AR37*Calculations!DX160","v":62604.231690902103},{"$f":"DJ160*'SouthAfrica-IO-Data'!AS37","v":0},{"$f":"DW160*'SouthAfrica-IO-Data'!$AS37","v":30333.468463863832},{"$f":"DX160*'SouthAfrica-IO-Data'!$AS37","v":31453.075420241341},{"$f":"(EB160*'Default-Data'!$F$19/wind_dollar_index)/'SouthAfrica-IO-Data'!$AT37","v":0},{"$f":"(EC160*'Default-Data'!$F$19/wind_dollar_index)/'SouthAfrica-IO-Data'!$AT37","v":1.8845765714672817},{"$f":"(ED160*'Default-Data'!$F$19/wind_dollar_index)/'SouthAfrica-IO-Data'!$AT37","v":1.9541362079379498},null,"OTHER",{"$f":"'Wind-Inputs'!B25*'Wind-Inputs'!C25","v":10212418.300653595},0,null,16028943.045339111,1105753.8330653757,{"$f":"EJ160*'Zambia-IO-Data'!BO35","v":3737658.4754337873},{"$f":"EM160*'Zambia-IO-Data'!$BO35","v":5866457.1957283514},{"$f":"EN160*'Zambia-IO-Data'!$BO35","v":404696.52380334743},{"$f":"EJ160*'Zambia-IO-Data'!BN35","v":2990593.0803216049},{"$f":"EM160*'Zambia-IO-Data'!$BN35","v":4693897.6396210045},{"$f":"EN160*'Zambia-IO-Data'!$BN35","v":323807.70786609518},{"$f":"(ER160*'Default-Data'!$F$19/wind_dollar_index)/'Zambia-IO-Data'!$BP35","v":6977.4102110165895},{"$f":"(ES160*'Default-Data'!$F$19/wind_dollar_index)/'Zambia-IO-Data'!$BP35","v":10951.422825012432},{"$f":"(ET160*'Default-Data'!$F$19/wind_dollar_index)/'Zambia-IO-Data'!$BP35","v":755.48198855185024},8905.7294907287669,2615.9316451482337,{"$f":"EK160*'Zambia-IO-Data'!BO35","v":0},{"$f":"EX160*'Zambia-IO-Data'!$BO35","v":3259.4214544475385},{"$f":"EY160*'Zambia-IO-Data'!$BO35","v":957.40879356831556},{"$f":"EK160*'Zambia-IO-Data'!BN35","v":0},{"$f":"EX160*'Zambia-IO-Data'!$BN35","v":2607.9437999993556},{"$f":"EY160*'Zambia-IO-Data'!$BN35","v":766.04647853818676},{"$f":"(FC160*'Default-Data'!$F$19/wind_dollar_index)/'Zambia-IO-Data'!$BP35","v":0},{"$f":"(FD160*'Default-Data'!$F$19/wind_dollar_index)/'Zambia-IO-Data'!$BP35","v":6.0846438185151088},{"$f":"(FE160*'Default-Data'!$F$19/wind_dollar_index)/'Zambia-IO-Data'!$BP35","v":1.7872777666197395},null,"TTL_C65T67: Financial intermediation",0,0,null,10309065.260008786,13429474.408386432,{"$f":"FK160*CustomRegion1!C33","v":0},{"$f":"FN160*CustomRegion1!$C33","v":6575061.7367069023},{"$f":"FO160*CustomRegion1!$C33","v":8565240.5043161921},{"$f":"FK160*CustomRegion1!D33","v":0},{"$f":"FN160*CustomRegion1!$D33","v":1440509.6323051625},{"$f":"FO160*CustomRegion1!$D33","v":1876531.6499761725},{"$f":"(FS160*'Default-Data'!$C$58/wind_dollar_index)/CustomRegion1!$E33","v":0},{"$f":"(FT160*'Default-Data'!$C$58/wind_dollar_index)/CustomRegion1!$E33","v":364.78152181381273},{"$f":"(FU160*'Default-Data'!$C$58/wind_dollar_index)/CustomRegion1!$E33","v":475.19576104096558},39221.610056840153,58614.570770457365,{"$f":"FL160*CustomRegion1!C33","v":0},{"$f":"FY160*CustomRegion1!$C33","v":25015.314292088256},{"$f":"FZ160*CustomRegion1!$C33","v":37384.03160385121},{"$f":"FL160*CustomRegion1!D33","v":0},{"$f":"FY160*CustomRegion1!$D33","v":5480.5266681711855},{"$f":"FZ160*CustomRegion1!$D33","v":8190.3501101907368},{"$f":"(GD160*'Default-Data'!$C$58/wind_dollar_index)/CustomRegion1!$E33","v":0},{"$f":"(GE160*'Default-Data'!$C$58/wind_dollar_index)/CustomRegion1!$E33","v":1.3878385909558109},{"$f":"(GF160*'Default-Data'!$C$58/wind_dollar_index)/CustomRegion1!$E33","v":2.07404956577922},null,"C60T63 Transport and storage",0,0,null,13593821.440283133,22538370.453812227,{"$f":"GL160*CustomRegion2!C37","v":0},{"$f":"GO160*CustomRegion2!$C37","v":8434189.0947781559},{"$f":"GP160*CustomRegion2!$C37","v":13983770.430609247},{"$f":"GL160*CustomRegion2!D37","v":0},{"$f":"GO160*CustomRegion2!$D37","v":2864063.6723397085},{"$f":"GP160*CustomRegion2!$D37","v":4748578.4872243954},{"$f":"(GT160*'Default-Data'!$C$59/wind_dollar_index)/CustomRegion2!$E37","v":0},{"$f":"(GU160*'Default-Data'!$C$59/wind_dollar_index)/CustomRegion2!$E37","v":391.7238269294848},{"$f":"(GV160*'Default-Data'!$C$59/wind_dollar_index)/CustomRegion2!$E37","v":649.47275979063238},0,0,{"$f":"GM160*CustomRegion2!C37","v":0},{"$f":"GZ160*CustomRegion2!$C37","v":0},{"$f":"HA160*CustomRegion2!$C37","v":0},{"$f":"GM160*CustomRegion2!D37","v":0},{"$f":"GZ160*CustomRegion2!$D37","v":0},{"$f":"HA160*CustomRegion2!$D37","v":0},{"$f":"(HE160*'Default-Data'!$C$59/wind_dollar_index)/CustomRegion2!$E37","v":0},{"$f":"(HF160*'Default-Data'!$C$59/wind_dollar_index)/CustomRegion2!$E37","v":0},{"$f":"(HG160*'Default-Data'!$C$59/wind_dollar_index)/CustomRegion2!$E37","v":0},null,"OTHER",10212418.300653595,0,null,16028943.045339111,1105753.8330653757,{"$f":"HM160*CustomRegion3!D36","v":3737658.4754337873},{"$f":"HP160*CustomRegion3!$D36","v":5866457.1957283514},{"$f":"HQ160*CustomRegion3!$D36","v":404696.52380334743},{"$f":"HM160*CustomRegion3!E36","v":2990593.0803216049},{"$f":"HP160*CustomRegion3!$E36","v":4693897.6396210045},{"$f":"HQ160*CustomRegion3!$E36","v":323807.70786609518},{"$f":"(HU160*'Default-Data'!$C$60/wind_dollar_index)/CustomRegion3!$F36","v":6977.4102110165895},{"$f":"(HV160*'Default-Data'!$C$60/wind_dollar_index)/CustomRegion3!$F36","v":10951.422825012432},{"$f":"(HW160*'Default-Data'!$C$60/wind_dollar_index)/CustomRegion3!$F36","v":755.48198855185024},8905.7294907287669,2615.9316451482337,{"$f":"HN160*CustomRegion3!D36","v":0},{"$f":"IA160*CustomRegion3!$D36","v":3259.4214544475385},{"$f":"IB160*CustomRegion3!$D36","v":957.40879356831556},{"$f":"HN160*CustomRegion3!E36","v":0},{"$f":"IA160*CustomRegion3!$E36","v":2607.9437999993556},{"$f":"IB160*CustomRegion3!$E36","v":766.04647853818676},{"$f":"(IF160*'Default-Data'!$C$60/wind_dollar_index)/CustomRegion3!$F36","v":0},{"$f":"(IG160*'Default-Data'!$C$60/wind_dollar_index)/CustomRegion3!$F36","v":6.0846438185151088},{"$f":"(IH160*'Default-Data'!$C$60/wind_dollar_index)/CustomRegion3!$F36","v":1.7872777666197395}]
[null,null,null,null,null,null,null,null,null,null,null,null,null,null,null,null,null,null,null,null,null,null,null,null,null,null,null,null,null,160,"TTL_C70: Real estate activities",0,0,null,3796229.5404472821,8981069.2705603596,{"$f":"AF161*'Colombia-IO-Data'!AN38","v":0},{"$f":"AI161*'Colombia-IO-Data'!$AN38","v":3366801.072952759},{"$f":"AJ161*'Colombia-IO-Data'!$AN38","v":7965133.1233313698},{"$f":"AK161*'Colombia-IO-Data'!$AO38","v":0},{"$f":"AL161*'Colombia-IO-Data'!$AO38","v":110926.66847769421},{"$f":"AM161*'Colombia-IO-Data'!$AO38","v":262428.83443588513},{"$f":"(Calculations!AN161*'Default-Data'!$F$19/wind_dollar_index)/'Colombia-IO-Data'!$AP38","v":0},{"$f":"(Calculations!AO161*'Default-Data'!$F$19/wind_dollar_index)/'Colombia-IO-Data'!$AP38","v":23.230760139564975},{"$f":"(Calculations!AP161*'Default-Data'!$F$19/wind_dollar_index)/'Colombia-IO-Data'!$AP38","v":54.9590228404954},14414.091705820612,47010.151439157584,{"$f":"AG161*'Colombia-IO-Data'!AN38","v":0},{"$f":"AT161*'Colombia-IO-Data'!$AN38","v":12783.573517811687},{"$f":"AU161*'Colombia-IO-Data'!$AN38","v":41692.375716137329},{"$f":"AV161*'Colombia-IO-Data'!$AO38","v":0},{"$f":"AW161*'Colombia-IO-Data'!$AO38","v":421.18295403977532},{"$f":"AX161*'Colombia-IO-Data'!$AO38","v":1373.6470432615688},{"$f":"(AY161*'Default-Data'!$F$19/wind_dollar_index)/'Colombia-IO-Data'!$AP38","v":0},{"$f":"(AZ161*'Default-Data'!$F$19/wind_dollar_index)/'Colombia-IO-Data'!$AP38","v":8.8206022180671056E-2},{"$f":"(BA161*'Default-Data'!$F$19/wind_dollar_index)/'Colombia-IO-Data'!$AP38","v":0.28767532115010702},null,"DOM_C70: Real estate activities",0,0,null,2482843.4778255234,13181907.814460751,{"$f":"BG161*'Mexico-IO-Data'!AQ38","v":0},{"$f":"BJ161*'Mexico-IO-Data'!$AQ38","v":2294608.1668570978},{"$f":"BK161*'Mexico-IO-Data'!$AQ38","v":12182529.26370923},{"$f":"BG161*'Mexico-IO-Data'!AR38","v":0},{"$f":"BJ161*'Mexico-IO-Data'!$AR38","v":32874.528936232229},{"$f":"BK161*'Mexico-IO-Data'!$AR38","v":174537.38576414943},{"$f":"(BO161*'Default-Data'!$F$19/wind_dollar_index)/'Mexico-IO-Data'!$AS38","v":0},{"$f":"(BP161*'Default-Data'!$F$19/wind_dollar_index)/'Mexico-IO-Data'!$AS38","v":14.03756784163278},{"$f":"(BQ161*'Default-Data'!$F$19/wind_dollar_index)/'Mexico-IO-Data'!$AS38","v":74.52822817075122},11671.440549836945,49858.793029558961,{"$f":"BH161*'Mexico-IO-Data'!AQ38","v":0},{"$f":"BU161*'Mexico-IO-Data'!$AQ38","v":10786.577182101753},{"$f":"BV161*'Mexico-IO-Data'!$AQ38","v":46078.778101413365},{"$f":"BH161*'Mexico-IO-Data'!AR38","v":0},{"$f":"BX161*'Mexico-IO-Data'!$AR38","v":142.82158616235793},{"$f":"BY161*'Mexico-IO-Data'!$AR38","v":610.11422490789346},{"$f":"(CA161*'Default-Data'!$F$19/wind_dollar_index)/'Mexico-IO-Data'!$AS38","v":6.0985442829997863E-2},{"$f":"(CB161*'Default-Data'!$F$19/wind_dollar_index)/'Mexico-IO-Data'!$AS38","v":0.26052144625106649},{"$f":"(CC161*'Default-Data'!$F$19/wind_dollar_index)/'Mexico-IO-Data'!$AS38","v":2.6041051196161389E-5},null,"TTL_C70: Real estate activities",0,0,null,2305773.1701632543,10210829.421099961,{"$f":"CH161*'Philippines-IO-Data'!AN38","v":0},{"$f":"CK161*'Philippines-IO-Data'!$AN38","v":1871066.8285173438},{"$f":"CL161*'Philippines-IO-Data'!$AN38","v":8285786.5069686789},{"$f":"CH161*'Philippines-IO-Data'!AO38","v":0},{"$f":"CK161*'Philippines-IO-Data'!$AO38","v":47954.510246298727},{"$f":"CL161*'Philippines-IO-Data'!$AO38","v":212360.5784096611},{"$f":"(CP161*'Default-Data'!$F$19/wind_dollar_index)/'Philippines-IO-Data'!$AP38","v":0},{"$f":"(CQ161*'Default-Data'!$F$19/wind_dollar_index)/'Philippines-IO-Data'!$AP38","v":12.143562828863587},{"$f":"(CR161*'Default-Data'!$F$19/wind_dollar_index)/'Philippines-IO-Data'!$AP38","v":53.776256144552583},2974.9888196992879,44274.502899787258,{"$f":"CI161*'Philippines-IO-Data'!AN38","v":0},{"$f":"CV161*'Philippines-IO-Data'!$AN38","v":2414.1155633948101},{"$f":"CW161*'Philippines-IO-Data'!$AN38","v":35927.451492993809},{"$f":"CI161*'Philippines-IO-Data'!AO38","v":0},{"$f":"CV161*'Philippines-IO-Data'!$AO38","v":61.872578657332852},{"$f":"CW161*'Philippines-IO-Data'!$AO38","v":920.80267496880708},{"$f":"(DA161*'Default-Data'!$F$19/wind_dollar_index)/'Philippines-IO-Data'!$AP38","v":0},{"$f":"(DB161*'Default-Data'!$F$19/wind_dollar_index)/'Philippines-IO-Data'!$AP38","v":1.5668047540264841E-2},{"$f":"(DC161*'Default-Data'!$F$19/wind_dollar_index)/'Philippines-IO-Data'!$AP38","v":0.23317567167381115},null,"DOM_C70: Real estate activities",0,0,null,9647085.0292653237,15546209.234564604,{"$f":"DI161*'SouthAfrica-IO-Data'!AR38","v":0},{"$f":"DL161*'SouthAfrica-IO-Data'!$AR38","v":5672814.7929219464},{"$f":"DM161*'SouthAfrica-IO-Data'!$AR38","v":9141700.8818895053},{"$f":"DI161*'SouthAfrica-IO-Data'!AS38","v":0},{"$f":"DL161*'SouthAfrica-IO-Data'!$AS38","v":348626.10822472599},{"$f":"DM161*'SouthAfrica-IO-Data'!$AS38","v":561808.50553841365},{"$f":"(DQ161*'Default-Data'!$F$19/wind_dollar_index)/'SouthAfrica-IO-Data'!$AT38","v":0},{"$f":"(DR161*'Default-Data'!$F$19/wind_dollar_index)/'SouthAfrica-IO-Data'!$AT38","v":21.659659413655014},{"$f":"(DS161*'Default-Data'!$F$19/wind_dollar_index)/'SouthAfrica-IO-Data'!$AT38","v":34.904387820009823},12454.265715754882,71715.942974409554,{"$f":"DJ161*'SouthAfrica-IO-Data'!AR38","v":0},{"$f":"'SouthAfrica-IO-Data'!$AR38*Calculations!DW161","v":7323.5327120046495},{"$f":"'SouthAfrica-IO-Data'!$AR38*Calculations!DX161","v":42171.418719687557},{"$f":"DJ161*'SouthAfrica-IO-Data'!AS38","v":0},{"$f":"DW161*'SouthAfrica-IO-Data'!$AS38","v":450.07193096243634},{"$f":"DX161*'SouthAfrica-IO-Data'!$AS38","v":2591.668884537532},{"$f":"(EB161*'Default-Data'!$F$19/wind_dollar_index)/'SouthAfrica-IO-Data'!$AT38","v":0},{"$f":"(EC161*'Default-Data'!$F$19/wind_dollar_index)/'SouthAfrica-IO-Data'!$AT38","v":2.7962348505489884E-2},{"$f":"(ED161*'Default-Data'!$F$19/wind_dollar_index)/'SouthAfrica-IO-Data'!$AT38","v":0.16101681436854828},null,"FIRE",0,0,null,93730679.799855307,4119562.2020727992,{"$f":"EJ161*'Zambia-IO-Data'!BO36","v":0},{"$f":"EM161*'Zambia-IO-Data'!$BO36","v":19526787.351116572},{"$f":"EN161*'Zambia-IO-Data'!$BO36","v":858222.89213459054},{"$f":"EJ161*'Zambia-IO-Data'!BN36","v":0},{"$f":"EM161*'Zambia-IO-Data'!$BN36","v":4652991.1493600374},{"$f":"EN161*'Zambia-IO-Data'!$BN36","v":204503.8668919637},{"$f":"(ER161*'Default-Data'!$F$19/wind_dollar_index)/'Zambia-IO-Data'!$BP36","v":0},{"$f":"(ES161*'Default-Data'!$F$19/wind_dollar_index)/'Zambia-IO-Data'!$BP36","v":4615.7844276611067},{"$f":"(ET161*'Default-Data'!$F$19/wind_dollar_index)/'Zambia-IO-Data'!$BP36","v":202.8685922444177},213822.40606644502,9649.0882169670949,{"$f":"EK161*'Zambia-IO-Data'!BO36","v":0},{"$f":"EX161*'Zambia-IO-Data'!$BO36","v":44545.336309083461},{"$f":"EY161*'Zambia-IO-Data'!$BO36","v":2010.1816624738904},{"$f":"EK161*'Zambia-IO-Data'!BN36","v":0},{"$f":"EX161*'Zambia-IO-Data'!$BN36","v":10614.600951219949},{"$f":"EY161*'Zambia-IO-Data'!$BN36","v":479.00134906534009},{"$f":"(FC161*'Default-Data'!$F$19/wind_dollar_index)/'Zambia-IO-Data'!$BP36","v":0},{"$f":"(FD161*'Default-Data'!$F$19/wind_dollar_index)/'Zambia-IO-Data'!$BP36","v":10.52972339808049},{"$f":"(FE161*'Default-Data'!$F$19/wind_dollar_index)/'Zambia-IO-Data'!$BP36","v":0.47517110969543769},null,"TTL_C70: Real estate activities",0,0,null,3218298.405761396,12404490.15051496,{"$f":"FK161*CustomRegion1!C34","v":0},{"$f":"FN161*CustomRegion1!$C34","v":2611554.1065403461},{"$f":"FO161*CustomRegion1!$C34","v":10065877.400965402},{"$f":"FK161*CustomRegion1!D34","v":0},{"$f":"FN161*CustomRegion1!$D34","v":66932.830111734133},{"$f":"FO161*CustomRegion1!$D34","v":257983.42079800696},{"$f":"(FS161*'Default-Data'!$C$58/wind_dollar_index)/CustomRegion1!$E34","v":0},{"$f":"(FT161*'Default-Data'!$C$58/wind_dollar_index)/CustomRegion1!$E34","v":16.949459469002306},{"$f":"(FU161*'Default-Data'!$C$58/wind_dollar_index)/CustomRegion1!$E34","v":65.329368669916775},6993.5919035026909,54140.902591448517,{"$f":"FL161*CustomRegion1!C34","v":0},{"$f":"FY161*CustomRegion1!$C34","v":5675.0932798410822},{"$f":"FZ161*CustomRegion1!$C34","v":43933.743446965185},{"$f":"FL161*CustomRegion1!D34","v":0},{"$f":"FY161*CustomRegion1!$D34","v":145.44981220820014},{"$f":"FZ161*CustomRegion1!$D34","v":1125.9999472895486},{"$f":"(GD161*'Default-Data'!$C$58/wind_dollar_index)/CustomRegion1!$E34","v":0},{"$f":"(GE161*'Default-Data'!$C$58/wind_dollar_index)/CustomRegion1!$E34","v":3.6832383938964645E-2},{"$f":"(GF161*'Default-Data'!$C$58/wind_dollar_index)/CustomRegion1!$E34","v":0.28513795751387316},null,"C64 Post and telecommunications",0,0,null,5109878.0378647875,8638623.9614299256,{"$f":"GL161*CustomRegion2!C38","v":0},{"$f":"GO161*CustomRegion2!$C38","v":3141371.605244399},{"$f":"GP161*CustomRegion2!$C38","v":5310719.3204476889},{"$f":"GL161*CustomRegion2!D38","v":0},{"$f":"GO161*CustomRegion2!$D38","v":859687.30117079441},{"$f":"GP161*CustomRegion2!$D38","v":1453364.4960211792},{"$f":"(GT161*'Default-Data'!$C$59/wind_dollar_index)/CustomRegion2!$E38","v":0},{"$f":"(GU161*'Default-Data'!$C$59/wind_dollar_index)/CustomRegion2!$E38","v":69.390621161702754},{"$f":"(GV161*'Default-Data'!$C$59/wind_dollar_index)/CustomRegion2!$E38","v":117.30993934181519},0,0,{"$f":"GM161*CustomRegion2!C38","v":0},{"$f":"GZ161*CustomRegion2!$C38","v":0},{"$f":"HA161*CustomRegion2!$C38","v":0},{"$f":"GM161*CustomRegion2!D38","v":0},{"$f":"GZ161*CustomRegion2!$D38","v":0},{"$f":"HA161*CustomRegion2!$D38","v":0},{"$f":"(HE161*'Default-Data'!$C$59/wind_dollar_index)/CustomRegion2!$E38","v":0},{"$f":"(HF161*'Default-Data'!$C$59/wind_dollar_index)/CustomRegion2!$E38","v":0},{"$f":"(HG161*'Default-Data'!$C$59/wind_dollar_index)/CustomRegion2!$E38","v":0},null,"FIRE",0,0,null,93730679.799855307,4119562.2020727992,{"$f":"HM161*CustomRegion3!D37","v":0},{"$f":"HP161*CustomRegion3!$D37","v":19526787.351116572},{"$f":"HQ161*CustomRegion3!$D37","v":858222.89213459054},{"$f":"HM161*CustomRegion3!E37","v":0},{"$f":"HP161*CustomRegion3!$E37","v":4652991.1493600374},{"$f":"HQ161*CustomRegion3!$E37","v":204503.8668919637},{"$f":"(HU161*'Default-Data'!$C$60/wind_dollar_index)/CustomRegion3!$F37","v":0},{"$f":"(HV161*'Default-Data'!$C$60/wind_dollar_index)/CustomRegion3!$F37","v":4615.7844276611067},{"$f":"(HW161*'Default-Data'!$C$60/wind_dollar_index)/CustomRegion3!$F37","v":202.8685922444177},213822.40606644502,9649.0882169670949,{"$f":"HN161*CustomRegion3!D37","v":0},{"$f":"IA161*CustomRegion3!$D37","v":44545.336309083461},{"$f":"IB161*CustomRegion3!$D37","v":2010.1816624738904},{"$f":"HN161*CustomRegion3!E37","v":0},{"$f":"IA161*CustomRegion3!$E37","v":10614.600951219949},{"$f":"IB161*CustomRegion3!$E37","v":479.00134906534009},{"$f":"(IF161*'Default-Data'!$C$60/wind_dollar_index)/CustomRegion3!$F37","v":0},{"$f":"(IG161*'Default-Data'!$C$60/wind_dollar_index)/CustomRegion3!$F37","v":10.52972339808049},{"$f":"(IH161*'Default-Data'!$C$60/wind_dollar_index)/CustomRegion3!$F37","v":0.47517110969543769}]
[null,null,null,null,null,null,null,null,null,null,null,null,null,null,null,null,null,null,null,null,null,null,null,null,null,null,null,null,null,161,"TTL_C71: Renting of machinery and equipment",0,0,null,965469.45645130274,159530.62770095572,{"$f":"AF162*'Colombia-IO-Data'!AN39","v":0},{"$f":"AI162*'Colombia-IO-Data'!$AN39","v":696732.6007962717},{"$f":"AJ162*'Colombia-IO-Data'!$AN39","v":115125.53649630128},{"$f":"AK162*'Colombia-IO-Data'!$AO39","v":0},{"$f":"AL162*'Colombia-IO-Data'!$AO39","v":266032.45941847295},{"$f":"AM162*'Colombia-IO-Data'!$AO39","v":43958.226701290427},{"$f":"(Calculations!AN162*'Default-Data'!$F$19/wind_dollar_index)/'Colombia-IO-Data'!$AP39","v":0},{"$f":"(Calculations!AO162*'Default-Data'!$F$19/wind_dollar_index)/'Colombia-IO-Data'!$AP39","v":59.317607509738835},{"$f":"(Calculations!AP162*'Default-Data'!$F$19/wind_dollar_index)/'Colombia-IO-Data'!$AP39","v":9.8014236457876613},3756.75017962621,835.04076646965632,{"$f":"AG162*'Colombia-IO-Data'!AN39","v":0},{"$f":"AT162*'Colombia-IO-Data'!$AN39","v":2711.0648666334596},{"$f":"AU162*'Colombia-IO-Data'!$AN39","v":602.60852490537707},{"$f":"AV162*'Colombia-IO-Data'!$AO39","v":0},{"$f":"AW162*'Colombia-IO-Data'!$AO39","v":1035.1622032458984},{"$f":"AX162*'Colombia-IO-Data'!$AO39","v":230.09319179825783},{"$f":"(AY162*'Default-Data'!$F$19/wind_dollar_index)/'Colombia-IO-Data'!$AP39","v":0},{"$f":"(AZ162*'Default-Data'!$F$19/wind_dollar_index)/'Colombia-IO-Data'!$AP39","v":0.23081147847627245},{"$f":"(BA162*'Default-Data'!$F$19/wind_dollar_index)/'Colombia-IO-Data'!$AP39","v":5.1304181721233889E-2},null,"DOM_C71: Renting of machinery and equipment",0,0,null,2259739.5164499278,336335.38379793055,{"$f":"BG162*'Mexico-IO-Data'!AQ39","v":0},{"$f":"BJ162*'Mexico-IO-Data'!$AQ39","v":1859084.5877882547},{"$f":"BK162*'Mexico-IO-Data'!$AQ39","v":276702.65700751852},{"$f":"BG162*'Mexico-IO-Data'!AR39","v":0},{"$f":"BJ162*'Mexico-IO-Data'!$AR39","v":84609.083391577064},{"$f":"BK162*'Mexico-IO-Data'!$AR39","v":12593.056999774666},{"$f":"(BO162*'Default-Data'!$F$19/wind_dollar_index)/'Mexico-IO-Data'!$AS39","v":0},{"$f":"(BP162*'Default-Data'!$F$19/wind_dollar_index)/'Mexico-IO-Data'!$AS39","v":36.128449184213686},{"$f":"(BQ162*'Default-Data'!$F$19/wind_dollar_index)/'Mexico-IO-Data'!$AS39","v":5.3772904947408762},4685.0904832619126,1272.1433441449308,{"$f":"BH162*'Mexico-IO-Data'!AQ39","v":0},{"$f":"BU162*'Mexico-IO-Data'!$AQ39","v":3854.4174876886286},{"$f":"BV162*'Mexico-IO-Data'!$AQ39","v":1046.5905770735569},{"$f":"BH162*'Mexico-IO-Data'!AR39","v":0},{"$f":"BX162*'Mexico-IO-Data'!$AR39","v":144.31695700668001},{"$f":"BY162*'Mexico-IO-Data'!$AR39","v":39.186405675451439},{"$f":"(CA162*'Default-Data'!$F$19/wind_dollar_index)/'Mexico-IO-Data'!$AS39","v":6.1623972730039583E-2},{"$f":"(CB162*'Default-Data'!$F$19/wind_dollar_index)/'Mexico-IO-Data'!$AS39","v":1.6732766854421082E-2},{"$f":"(CC162*'Default-Data'!$F$19/wind_dollar_index)/'Mexico-IO-Data'!$AS39","v":2.6313706260151301E-5},null,"TTL_C71: Renting of machinery and equipment",0,0,null,725086.82302635256,195828.59420078865,{"$f":"CH162*'Philippines-IO-Data'!AN39","v":0},{"$f":"CK162*'Philippines-IO-Data'!$AN39","v":366582.46517409023},{"$f":"CL162*'Philippines-IO-Data'!$AN39","v":99005.148809734499},{"$f":"CH162*'Philippines-IO-Data'!AO39","v":0},{"$f":"CK162*'Philippines-IO-Data'!$AO39","v":100209.43259989077},{"$f":"CL162*'Philippines-IO-Data'!$AO39","v":27064.168991224491},{"$f":"(CP162*'Default-Data'!$F$19/wind_dollar_index)/'Philippines-IO-Data'!$AP39","v":0},{"$f":"(CQ162*'Default-Data'!$F$19/wind_dollar_index)/'Philippines-IO-Data'!$AP39","v":25.37612279995016},{"$f":"(CR162*'Default-Data'!$F$19/wind_dollar_index)/'Philippines-IO-Data'!$AP39","v":6.8534833296787321},298.02487595386185,849.11943038512516,{"$f":"CI162*'Philippines-IO-Data'!AN39","v":0},{"$f":"CV162*'Philippines-IO-Data'!$AN39","v":150.67256808554433},{"$f":"CW162*'Philippines-IO-Data'!$AN39","v":429.28968522502805},{"$f":"CI162*'Philippines-IO-Data'!AO39","v":0},{"$f":"CV162*'Philippines-IO-Data'!$AO39","v":41.188038137749906},{"$f":"CW162*'Philippines-IO-Data'!$AO39","v":117.35115523585145},{"$f":"(DA162*'Default-Data'!$F$19/wind_dollar_index)/'Philippines-IO-Data'!$AP39","v":0},{"$f":"(DB162*'Default-Data'!$F$19/wind_dollar_index)/'Philippines-IO-Data'!$AP39","v":1.043008314242976E-2},{"$f":"(DC162*'Default-Data'!$F$19/wind_dollar_index)/'Philippines-IO-Data'!$AP39","v":2.9716936307493138E-2},null,"DOM_C71: Renting of machinery and equipment",0,0,null,2516882.3119931249,553435.801130509,{"$f":"DI162*'SouthAfrica-IO-Data'!AR39","v":0},{"$f":"DL162*'SouthAfrica-IO-Data'!$AR39","v":1073407.6470428307},{"$f":"DM162*'SouthAfrica-IO-Data'!$AR39","v":236030.98891434632},{"$f":"DI162*'SouthAfrica-IO-Data'!AS39","v":0},{"$f":"DL162*'SouthAfrica-IO-Data'!$AS39","v":355029.71256886068},{"$f":"DM162*'SouthAfrica-IO-Data'!$AS39","v":78067.278896756965},{"$f":"(DQ162*'Default-Data'!$F$19/wind_dollar_index)/'SouthAfrica-IO-Data'!$AT39","v":0},{"$f":"(DR162*'Default-Data'!$F$19/wind_dollar_index)/'SouthAfrica-IO-Data'!$AT39","v":22.05750652218066},{"$f":"(DS162*'Default-Data'!$F$19/wind_dollar_index)/'SouthAfrica-IO-Data'!$AT39","v":4.8502123976458016},2233.1025141498899,2553.0449098566937,{"$f":"DJ162*'SouthAfrica-IO-Data'!AR39","v":0},{"$f":"'SouthAfrica-IO-Data'!$AR39*Calculations!DW162","v":952.380373089773},{"$f":"'SouthAfrica-IO-Data'!$AR39*Calculations!DX162","v":1088.8303821062552},{"$f":"DJ162*'SouthAfrica-IO-Data'!AS39","v":0},{"$f":"DW162*'SouthAfrica-IO-Data'!$AS39","v":314.99992667817725},{"$f":"DX162*'SouthAfrica-IO-Data'!$AS39","v":360.13078410648018},{"$f":"(EB162*'Default-Data'!$F$19/wind_dollar_index)/'SouthAfrica-IO-Data'!$AT39","v":0},{"$f":"(EC162*'Default-Data'!$F$19/wind_dollar_index)/'SouthAfrica-IO-Data'!$AT39","v":1.9570511118397412E-2},{"$f":"(ED162*'Default-Data'!$F$19/wind_dollar_index)/'SouthAfrica-IO-Data'!$AT39","v":2.2374429063387206E-2},null,"PUBLIC",0,0,null,1003024.0656713715,3272918.8606099114,{"$f":"EJ162*'Zambia-IO-Data'!BO37","v":0},{"$f":"EM162*'Zambia-IO-Data'!$BO37","v":214807.06527536822},{"$f":"EN162*'Zambia-IO-Data'!$BO37","v":700926.44772330066},{"$f":"EJ162*'Zambia-IO-Data'!BN37","v":0},{"$f":"EM162*'Zambia-IO-Data'!$BN37","v":139725.46350911693},{"$f":"EN162*'Zambia-IO-Data'!$BN37","v":455931.33851713862},{"$f":"(ER162*'Default-Data'!$F$19/wind_dollar_index)/'Zambia-IO-Data'!$BP37","v":0},{"$f":"(ES162*'Default-Data'!$F$19/wind_dollar_index)/'Zambia-IO-Data'!$BP37","v":325.99616518964734},{"$f":"(ET162*'Default-Data'!$F$19/wind_dollar_index)/'Zambia-IO-Data'!$BP37","v":1063.7421713521251},753.88358289786765,7583.5677087180775,{"$f":"EK162*'Zambia-IO-Data'!BO37","v":0},{"$f":"EX162*'Zambia-IO-Data'!$BO37","v":161.45128072592848},{"$f":"EY162*'Zambia-IO-Data'!$BO37","v":1624.092561265127},{"$f":"EK162*'Zambia-IO-Data'!BN37","v":0},{"$f":"EX162*'Zambia-IO-Data'!$BN37","v":105.01914825125503},{"$f":"EY162*'Zambia-IO-Data'!$BN37","v":1056.4228211654654},{"$f":"(FC162*'Default-Data'!$F$19/wind_dollar_index)/'Zambia-IO-Data'!$BP37","v":0},{"$f":"(FD162*'Default-Data'!$F$19/wind_dollar_index)/'Zambia-IO-Data'!$BP37","v":0.24502219381908399},{"$f":"(FE162*'Default-Data'!$F$19/wind_dollar_index)/'Zambia-IO-Data'!$BP37","v":2.4647603942018721},null,"TTL_C71: Renting of machinery and equipment",0,0,null,2288524.536436846,751732.44787046546,{"$f":"FK162*CustomRegion1!C35","v":0},{"$f":"FN162*CustomRegion1!$C35","v":1157010.360051628},{"$f":"FO162*CustomRegion1!$C35","v":380053.70548802975},{"$f":"FK162*CustomRegion1!D35","v":0},{"$f":"FN162*CustomRegion1!$D35","v":316281.77206432226},{"$f":"FO162*CustomRegion1!$D35","v":103891.94738584913},{"$f":"(FS162*'Default-Data'!$C$58/wind_dollar_index)/CustomRegion1!$E35","v":0},{"$f":"(FT162*'Default-Data'!$C$58/wind_dollar_index)/CustomRegion1!$E35","v":80.092311462691939},{"$f":"(FU162*'Default-Data'!$C$58/wind_dollar_index)/CustomRegion1!$E35","v":26.308649259751842},1745.105471819224,3281.0274941688281,{"$f":"FL162*CustomRegion1!C35","v":0},{"$f":"FY162*CustomRegion1!$C35","v":882.27374368522328},{"$f":"FZ162*CustomRegion1!$C35","v":1658.7905184875544},{"$f":"FL162*CustomRegion1!D35","v":0},{"$f":"FY162*CustomRegion1!$D35","v":241.17943342022838},{"$f":"FZ162*CustomRegion1!$D35","v":453.44901202728124},{"$f":"(GD162*'Default-Data'!$C$58/wind_dollar_index)/CustomRegion1!$E35","v":0},{"$f":"(GE162*'Default-Data'!$C$58/wind_dollar_index)/CustomRegion1!$E35","v":6.1074080159004812E-2},{"$f":"(GF162*'Default-Data'!$C$58/wind_dollar_index)/CustomRegion1!$E35","v":0.11482729234346456},null,"C65T67 Finance and insurance",0,0,null,6358104.5505287061,7698560.1304591661,{"$f":"GL162*CustomRegion2!C39","v":0},{"$f":"GO162*CustomRegion2!$C39","v":3933318.5902561704},{"$f":"GP162*CustomRegion2!$C39","v":4762565.547435361},{"$f":"GL162*CustomRegion2!D39","v":0},{"$f":"GO162*CustomRegion2!$D39","v":1231046.7229657611},{"$f":"GP162*CustomRegion2!$D39","v":1490583.7336960018},{"$f":"(GT162*'Default-Data'!$C$59/wind_dollar_index)/CustomRegion2!$E39","v":0},{"$f":"(GU162*'Default-Data'!$C$59/wind_dollar_index)/CustomRegion2!$E39","v":93.081340051059442},{"$f":"(GV162*'Default-Data'!$C$59/wind_dollar_index)/CustomRegion2!$E39","v":112.70533343891147},0,0,{"$f":"GM162*CustomRegion2!C39","v":0},{"$f":"GZ162*CustomRegion2!$C39","v":0},{"$f":"HA162*CustomRegion2!$C39","v":0},{"$f":"GM162*CustomRegion2!D39","v":0},{"$f":"GZ162*CustomRegion2!$D39","v":0},{"$f":"HA162*CustomRegion2!$D39","v":0},{"$f":"(HE162*'Default-Data'!$C$59/wind_dollar_index)/CustomRegion2!$E39","v":0},{"$f":"(HF162*'Default-Data'!$C$59/wind_dollar_index)/CustomRegion2!$E39","v":0},{"$f":"(HG162*'Default-Data'!$C$59/wind_dollar_index)/CustomRegion2!$E39","v":0},null,"PUBLIC",0,0,null,1003024.0656713715,3272918.8606099114,{"$f":"HM162*CustomRegion3!D38","v":0},{"$f":"HP162*CustomRegion3!$D38","v":214807.06527536822},{"$f":"HQ162*CustomRegion3!$D38","v":700926.44772330066},{"$f":"HM162*CustomRegion3!E38","v":0},{"$f":"HP162*CustomRegion3!$E38","v":139725.46350911693},{"$f":"HQ162*CustomRegion3!$E38","v":455931.33851713862},{"$f":"(HU162*'Default-Data'!$C$60/wind_dollar_index)/CustomRegion3!$F38","v":0},{"$f":"(HV162*'Default-Data'!$C$60/wind_dollar_index)/CustomRegion3!$F38","v":325.99616518964734},{"$f":"(HW162*'Default-Data'!$C$60/wind_dollar_index)/CustomRegion3!$F38","v":1063.7421713521251},753.88358289786765,7583.5677087180775,{"$f":"HN162*CustomRegion3!D38","v":0},{"$f":"IA162*CustomRegion3!$D38","v":161.45128072592848},{"$f":"IB162*CustomRegion3!$D38","v":1624.092561265127},{"$f":"HN162*CustomRegion3!E38","v":0},{"$f":"IA162*CustomRegion3!$E38","v":105.01914825125503},{"$f":"IB162*CustomRegion3!$E38","v":1056.4228211654654},{"$f":"(IF162*'Default-Data'!$C$60/wind_dollar_index)/CustomRegion3!$F38","v":0},{"$f":"(IG162*'Default-Data'!$C$60/wind_dollar_index)/CustomRegion3!$F38","v":0.24502219381908399},{"$f":"(IH162*'Default-Data'!$C$60/wind_dollar_index)/CustomRegion3!$F38","v":2.4647603942018721}]
[null,null,null,null,null,null,null,null,null,null,null,null,null,null,null,null,null,null,null,null,null,null,null,null,null,null,null,null,null,162,"TTL_C72: Computer and related activities",0,0,null,2103344.1591198295,627118.45199451968,{"$f":"AF163*'Colombia-IO-Data'!AN40","v":0},{"$f":"AI163*'Colombia-IO-Data'!$AN40","v":1501449.6133762302},{"$f":"AJ163*'Colombia-IO-Data'!$AN40","v":447661.76434116717},{"$f":"AK163*'Colombia-IO-Data'!$AO40","v":0},{"$f":"AL163*'Colombia-IO-Data'!$AO40","v":579571.1095384931},{"$f":"AM163*'Colombia-IO-Data'!$AO40","v":172800.88731965778},{"$f":"(Calculations!AN163*'Default-Data'!$F$19/wind_dollar_index)/'Colombia-IO-Data'!$AP40","v":0},{"$f":"(Calculations!AO163*'Default-Data'!$F$19/wind_dollar_index)/'Colombia-IO-Data'!$AP40","v":55.263924093037133},{"$f":"(Calculations!AP163*'Default-Data'!$F$19/wind_dollar_index)/'Colombia-IO-Data'!$AP40","v":16.477106886240982},6913.925134547555,3282.5638585363049,{"$f":"AG163*'Colombia-IO-Data'!AN40","v":0},{"$f":"AT163*'Colombia-IO-Data'!$AN40","v":4935.4311205649992},{"$f":"AU163*'Colombia-IO-Data'!$AN40","v":2343.2229171399877},{"$f":"AV163*'Colombia-IO-Data'!$AO40","v":0},{"$f":"AW163*'Colombia-IO-Data'!$AO40","v":1905.1144075121911},{"$f":"AX163*'Colombia-IO-Data'!$AO40","v":904.50208510763139},{"$f":"(AY163*'Default-Data'!$F$19/wind_dollar_index)/'Colombia-IO-Data'!$AP40","v":0},{"$f":"(AZ163*'Default-Data'!$F$19/wind_dollar_index)/'Colombia-IO-Data'!$AP40","v":0.18165863734847285},{"$f":"(BA163*'Default-Data'!$F$19/wind_dollar_index)/'Colombia-IO-Data'!$AP40","v":8.624711230548672E-2},null,"DOM_C72: Computer and related activities",0,0,null,132433.81916273787,92851.256436588563,{"$f":"BG163*'Mexico-IO-Data'!AQ40","v":0},{"$f":"BJ163*'Mexico-IO-Data'!$AQ40","v":93850.705170496905},{"$f":"BK163*'Mexico-IO-Data'!$AQ40","v":65800.079976794383},{"$f":"BG163*'Mexico-IO-Data'!AR40","v":0},{"$f":"BJ163*'Mexico-IO-Data'!$AR40","v":55321.775091175798},{"$f":"BK163*'Mexico-IO-Data'!$AR40","v":38786.892638095298},{"$f":"(BO163*'Default-Data'!$F$19/wind_dollar_index)/'Mexico-IO-Data'!$AS40","v":0},{"$f":"(BP163*'Default-Data'!$F$19/wind_dollar_index)/'Mexico-IO-Data'!$AS40","v":4.4653588951665171},{"$f":"(BQ163*'Default-Data'!$F$19/wind_dollar_index)/'Mexico-IO-Data'!$AS40","v":3.1307273812516137},592.34223245182022,351.19738677946145,{"$f":"BH163*'Mexico-IO-Data'!AQ40","v":0},{"$f":"BU163*'Mexico-IO-Data'!$AQ40","v":419.76993919927094},{"$f":"BV163*'Mexico-IO-Data'!$AQ40","v":248.87995084387023},{"$f":"BH163*'Mexico-IO-Data'!AR40","v":0},{"$f":"BX163*'Mexico-IO-Data'!$AR40","v":175.35111735985154},{"$f":"BY163*'Mexico-IO-Data'!$AR40","v":103.96498985178729},{"$f":"(CA163*'Default-Data'!$F$19/wind_dollar_index)/'Mexico-IO-Data'!$AS40","v":1.4153661381792786E-2},{"$f":"(CB163*'Default-Data'!$F$19/wind_dollar_index)/'Mexico-IO-Data'!$AS40","v":8.3916503303709932E-3},{"$f":"(CC163*'Default-Data'!$F$19/wind_dollar_index)/'Mexico-IO-Data'!$AS40","v":1.1424285942777758E-6},null,"TTL_C72: Computer and related activities",0,0,null,675294.48041296296,671862.1181271706,{"$f":"CH163*'Philippines-IO-Data'!AN40","v":0},{"$f":"CK163*'Philippines-IO-Data'!$AN40","v":337423.61425055366},{"$f":"CL163*'Philippines-IO-Data'!$AN40","v":335708.56974555325},{"$f":"CH163*'Philippines-IO-Data'!AO40","v":0},{"$f":"CK163*'Philippines-IO-Data'!$AO40","v":117683.1593070028},{"$f":"CL163*'Philippines-IO-Data'!$AO40","v":117085.00361434672},{"$f":"(CP163*'Default-Data'!$F$19/wind_dollar_index)/'Philippines-IO-Data'!$AP40","v":0},{"$f":"(CQ163*'Default-Data'!$F$19/wind_dollar_index)/'Philippines-IO-Data'!$AP40","v":29.801009990589009},{"$f":"(CR163*'Default-Data'!$F$19/wind_dollar_index)/'Philippines-IO-Data'!$AP40","v":29.649538498170372},1069.0709335531476,2913.2169455117782,{"$f":"CI163*'Philippines-IO-Data'!AN40","v":0},{"$f":"CV163*'Philippines-IO-Data'!$AN40","v":534.18144047189514},{"$f":"CW163*'Philippines-IO-Data'!$AN40","v":1455.6437515221737},{"$f":"CI163*'Philippines-IO-Data'!AO40","v":0},{"$f":"CV163*'Philippines-IO-Data'!$AO40","v":186.3063428371037},{"$f":"CW163*'Philippines-IO-Data'!$AO40","v":507.68454924267672},{"$f":"(DA163*'Default-Data'!$F$19/wind_dollar_index)/'Philippines-IO-Data'!$AP40","v":0},{"$f":"(DB163*'Default-Data'!$F$19/wind_dollar_index)/'Philippines-IO-Data'!$AP40","v":4.7178519143207996E-2},{"$f":"(DC163*'Default-Data'!$F$19/wind_dollar_index)/'Philippines-IO-Data'!$AP40","v":0.12856140515891465},null,"DOM_C72: Computer and related activities",0,0,null,173728.46374085222,87327.51677206438,{"$f":"DI163*'SouthAfrica-IO-Data'!AR40","v":0},{"$f":"DL163*'SouthAfrica-IO-Data'!$AR40","v":86800.579526603149},{"$f":"DM163*'SouthAfrica-IO-Data'!$AR40","v":43631.762471240283},{"$f":"DI163*'SouthAfrica-IO-Data'!AS40","v":0},{"$f":"DL163*'SouthAfrica-IO-Data'!$AS40","v":65625.566481491929},{"$f":"DM163*'SouthAfrica-IO-Data'!$AS40","v":32987.788150463501},{"$f":"(DQ163*'Default-Data'!$F$19/wind_dollar_index)/'SouthAfrica-IO-Data'!$AT40","v":0},{"$f":"(DR163*'Default-Data'!$F$19/wind_dollar_index)/'SouthAfrica-IO-Data'!$AT40","v":4.0772259600850971},{"$f":"(DS163*'Default-Data'!$F$19/wind_dollar_index)/'SouthAfrica-IO-Data'!$AT40","v":2.0494857937841857},418.06150815076711,402.84902373485642,{"$f":"DJ163*'SouthAfrica-IO-Data'!AR40","v":0},{"$f":"'SouthAfrica-IO-Data'!$AR40*Calculations!DW163","v":208.87758058680856},{"$f":"'SouthAfrica-IO-Data'!$AR40*Calculations!DX163","v":201.27691207856594},{"$f":"DJ163*'SouthAfrica-IO-Data'!AS40","v":0},{"$f":"DW163*'SouthAfrica-IO-Data'!$AS40","v":157.92186672085035},{"$f":"DX163*'SouthAfrica-IO-Data'!$AS40","v":152.17538231703847},{"$f":"(EB163*'Default-Data'!$F$19/wind_dollar_index)/'SouthAfrica-IO-Data'!$AT40","v":0},{"$f":"(EC163*'Default-Data'!$F$19/wind_dollar_index)/'SouthAfrica-IO-Data'!$AT40","v":9.8114678345815279E-3},{"$f":"(ED163*'Default-Data'!$F$19/wind_dollar_index)/'SouthAfrica-IO-Data'!$AT40","v":9.4544466819023558E-3},null,"LNONE",0,0,null,0,7821898.2204969116,{"$f":"EJ163*'Zambia-IO-Data'!BO38","v":0},{"$f":"EM163*'Zambia-IO-Data'!$BO38","v":0},{"$f":"EN163*'Zambia-IO-Data'!$BO38","v":0},{"$f":"EJ163*'Zambia-IO-Data'!BN38","v":0},{"$f":"EM163*'Zambia-IO-Data'!$BN38","v":0},{"$f":"EN163*'Zambia-IO-Data'!$BN38","v":0},0,0,0,0,15818.680660002869,{"$f":"EK163*'Zambia-IO-Data'!BO38","v":0},{"$f":"EX163*'Zambia-IO-Data'!$BO38","v":0},{"$f":"EY163*'Zambia-IO-Data'!$BO38","v":0},{"$f":"EK163*'Zambia-IO-Data'!BN38","v":0},{"$f":"EX163*'Zambia-IO-Data'!$BN38","v":0},{"$f":"EY163*'Zambia-IO-Data'!$BN38","v":0},0,0,0,null,"TTL_C72: Computer and related activities",0,0,null,3024242.5475868802,2279696.4203702253,{"$f":"FK163*CustomRegion1!C36","v":0},{"$f":"FN163*CustomRegion1!$C36","v":1511119.7860717454},{"$f":"FO163*CustomRegion1!$C36","v":1139093.2813266409},{"$f":"FK163*CustomRegion1!D36","v":0},{"$f":"FN163*CustomRegion1!$D36","v":527032.91354171559},{"$f":"FO163*CustomRegion1!$D36","v":397281.31177078595},{"$f":"(FS163*'Default-Data'!$C$58/wind_dollar_index)/CustomRegion1!$E36","v":0},{"$f":"(FT163*'Default-Data'!$C$58/wind_dollar_index)/CustomRegion1!$E36","v":133.4610084766079},{"$f":"(FU163*'Default-Data'!$C$58/wind_dollar_index)/CustomRegion1!$E36","v":100.60389618084453},10095.733659769679,9950.0116760715373,{"$f":"FL163*CustomRegion1!C36","v":0},{"$f":"FY163*CustomRegion1!$C36","v":5044.5235949614944},{"$f":"FZ163*CustomRegion1!$C36","v":4971.7108594196343},{"$f":"FL163*CustomRegion1!D36","v":0},{"$f":"FY163*CustomRegion1!$D36","v":1759.3773784100647},{"$f":"FZ163*CustomRegion1!$D36","v":1733.9824967406726},{"$f":"(GD163*'Default-Data'!$C$58/wind_dollar_index)/CustomRegion1!$E36","v":0},{"$f":"(GE163*'Default-Data'!$C$58/wind_dollar_index)/CustomRegion1!$E36","v":0.44552868175841609},{"$f":"(GF163*'Default-Data'!$C$58/wind_dollar_index)/CustomRegion1!$E36","v":0.43909791352619082},null,"C70 Real estate activities",0,0,null,7898569.837214171,25616663.396448124,{"$f":"GL163*CustomRegion2!C40","v":0},{"$f":"GO163*CustomRegion2!$C40","v":7074516.2931849966},{"$f":"GP163*CustomRegion2!$C40","v":22944090.678462151},{"$f":"GL163*CustomRegion2!D40","v":0},{"$f":"GO163*CustomRegion2!$D40","v":69633.598377681221},{"$f":"GP163*CustomRegion2!$D40","v":225835.87756864808},{"$f":"(GT163*'Default-Data'!$C$59/wind_dollar_index)/CustomRegion2!$E40","v":0},{"$f":"(GU163*'Default-Data'!$C$59/wind_dollar_index)/CustomRegion2!$E40","v":29.733851492739923},{"$f":"(GV163*'Default-Data'!$C$59/wind_dollar_index)/CustomRegion2!$E40","v":96.432908851527088},0,0,{"$f":"GM163*CustomRegion2!C40","v":0},{"$f":"GZ163*CustomRegion2!$C40","v":0},{"$f":"HA163*CustomRegion2!$C40","v":0},{"$f":"GM163*CustomRegion2!D40","v":0},{"$f":"GZ163*CustomRegion2!$D40","v":0},{"$f":"HA163*CustomRegion2!$D40","v":0},{"$f":"(HE163*'Default-Data'!$C$59/wind_dollar_index)/CustomRegion2!$E40","v":0},{"$f":"(HF163*'Default-Data'!$C$59/wind_dollar_index)/CustomRegion2!$E40","v":0},{"$f":"(HG163*'Default-Data'!$C$59/wind_dollar_index)/CustomRegion2!$E40","v":0},null,"LNONE",0,0,null,0,7821898.2204969116,{"$f":"HM163*CustomRegion3!D39","v":0},{"$f":"HP163*CustomRegion3!$D39","v":0},{"$f":"HQ163*CustomRegion3!$D39","v":0},{"$f":"HM163*CustomRegion3!E39","v":0},{"$f":"HP163*CustomRegion3!$E39","v":0},{"$f":"HQ163*CustomRegion3!$E39","v":0},0,0,0,0,15818.680660002869,{"$f":"HN163*CustomRegion3!D39","v":0},{"$f":"IA163*CustomRegion3!$D39","v":0},{"$f":"IB163*CustomRegion3!$D39","v":0},{"$f":"HN163*CustomRegion3!E39","v":0},{"$f":"IA163*CustomRegion3!$E39","v":0},{"$f":"IB163*CustomRegion3!$E39","v":0},0,0,0]
[null,null,null,null,null,null,null,null,null,null,null,null,null,null,null,null,null,null,null,null,null,null,null,null,null,null,null,null,null,163,"TTL_C73T74: R&D and other business activities",{"$f":"'Wind-Inputs'!B25*'Wind-Inputs'!C25","v":10212418.300653595},0,null,17481822.525700714,5443234.3028701842,{"$f":"AF164*'Colombia-IO-Data'!AN41","v":7448096.9937508684},{"$f":"AI164*'Colombia-IO-Data'!$AN41","v":12749801.855513938},{"$f":"AJ164*'Colombia-IO-Data'!$AN41","v":3969846.8916901248},{"$f":"AK164*'Colombia-IO-Data'!$AO41","v":2792948.1543286066},{"$f":"AL164*'Colombia-IO-Data'!$AO41","v":4781024.6819140986},{"$f":"AM164*'Colombia-IO-Data'!$AO41","v":1488645.5638824028},{"$f":"(Calculations!AN164*'Default-Data'!$F$19/wind_dollar_index)/'Colombia-IO-Data'!$AP41","v":266.31637128964405},{"$f":"(Calculations!AO164*'Default-Data'!$F$19/wind_dollar_index)/'Colombia-IO-Data'!$AP41","v":455.88570713718315},{"$f":"(Calculations!AP164*'Default-Data'!$F$19/wind_dollar_index)/'Colombia-IO-Data'!$AP41","v":141.94702615412129},101219.3295345449,28491.84893112164,{"$f":"AG164*'Colombia-IO-Data'!AN41","v":0},{"$f":"AT164*'Colombia-IO-Data'!$AN41","v":73821.044322819522},{"$f":"AU164*'Colombia-IO-Data'!$AN41","v":20779.608523938892},{"$f":"AV164*'Colombia-IO-Data'!$AO41","v":0},{"$f":"AW164*'Colombia-IO-Data'!$AO41","v":27682.017254208375},{"$f":"AX164*'Colombia-IO-Data'!$AO41","v":7792.1070742365491},{"$f":"(AY164*'Default-Data'!$F$19/wind_dollar_index)/'Colombia-IO-Data'!$AP41","v":0},{"$f":"(AZ164*'Default-Data'!$F$19/wind_dollar_index)/'Colombia-IO-Data'!$AP41","v":2.639567216345367},{"$f":"(BA164*'Default-Data'!$F$19/wind_dollar_index)/'Colombia-IO-Data'!$AP41","v":0.7430018625640723},null,"DOM_C73T74: R&D and other business activities",10212418.300653595,0,null,16796172.028938033,7140252.0167157315,{"$f":"BG164*'Mexico-IO-Data'!AQ41","v":7671013.8214676101},{"$f":"BJ164*'Mexico-IO-Data'!$AQ41","v":12616371.94918713},{"$f":"BK164*'Mexico-IO-Data'!$AQ41","v":5363369.4093281394},{"$f":"BG164*'Mexico-IO-Data'!AR41","v":3393075.7110804855},{"$f":"BJ164*'Mexico-IO-Data'!$AR41","v":5580527.7136828275},{"$f":"BK164*'Mexico-IO-Data'!$AR41","v":2372348.5442582238},{"$f":"(BO164*'Default-Data'!$F$19/wind_dollar_index)/'Mexico-IO-Data'!$AS41","v":884.2042854012102},{"$f":"(BP164*'Default-Data'!$F$19/wind_dollar_index)/'Mexico-IO-Data'!$AS41","v":1454.2341342767431},{"$f":"(BQ164*'Default-Data'!$F$19/wind_dollar_index)/'Mexico-IO-Data'!$AS41","v":618.21218502385705},92275.301021231222,27007.042720309313,{"$f":"BH164*'Mexico-IO-Data'!AQ41","v":0},{"$f":"BU164*'Mexico-IO-Data'!$AQ41","v":69312.193123605874},{"$f":"BV164*'Mexico-IO-Data'!$AQ41","v":20286.22329063822},{"$f":"BH164*'Mexico-IO-Data'!AR41","v":0},{"$f":"BX164*'Mexico-IO-Data'!$AR41","v":23028.974337486285},{"$f":"BY164*'Mexico-IO-Data'!$AR41","v":6740.0971533465763},{"$f":"(CA164*'Default-Data'!$F$19/wind_dollar_index)/'Mexico-IO-Data'!$AS41","v":6.0011386516087279},{"$f":"(CB164*'Default-Data'!$F$19/wind_dollar_index)/'Mexico-IO-Data'!$AS41","v":1.7564072524369843},{"$f":"(CC164*'Default-Data'!$F$19/wind_dollar_index)/'Mexico-IO-Data'!$AS41","v":1.5638414715330859E-3},null,"TTL_C73T74: R&D and other business activities",{"$f":"'Wind-Inputs'!B25*'Wind-Inputs'!C25","v":10212418.300653595},0,null,4243670.8176397234,2527356.3220463805,{"$f":"CH164*'Philippines-IO-Data'!AN41","v":4947914.6151563618},{"$f":"CK164*'Philippines-IO-Data'!$AN41","v":2056057.658661348},{"$f":"CL164*'Philippines-IO-Data'!$AN41","v":1224503.6303263044},{"$f":"CH164*'Philippines-IO-Data'!AO41","v":1936297.4867193429},{"$f":"CK164*'Philippines-IO-Data'!$AO41","v":804609.53485758859},{"$f":"CL164*'Philippines-IO-Data'!$AO41","v":479192.44495786569},{"$f":"(CP164*'Default-Data'!$F$19/wind_dollar_index)/'Philippines-IO-Data'!$AP41","v":490.33031647240824},{"$f":"(CQ164*'Default-Data'!$F$19/wind_dollar_index)/'Philippines-IO-Data'!$AP41","v":203.75198055536342},{"$f":"(CR164*'Default-Data'!$F$19/wind_dollar_index)/'Philippines-IO-Data'!$AP41","v":121.34632451828105},6127.7226912579672,10958.702784517183,{"$f":"CI164*'Philippines-IO-Data'!AN41","v":0},{"$f":"CV164*'Philippines-IO-Data'!$AN41","v":2968.8804129537198},{"$f":"CW164*'Philippines-IO-Data'!$AN41","v":5309.4892976717401},{"$f":"CI164*'Philippines-IO-Data'!AO41","v":0},{"$f":"CV164*'Philippines-IO-Data'!$AO41","v":1161.8300090230855},{"$f":"CW164*'Philippines-IO-Data'!$AO41","v":2077.7947039250093},{"$f":"(DA164*'Default-Data'!$F$19/wind_dollar_index)/'Philippines-IO-Data'!$AP41","v":0},{"$f":"(DB164*'Default-Data'!$F$19/wind_dollar_index)/'Philippines-IO-Data'!$AP41","v":0.2942112355765315},{"$f":"(DC164*'Default-Data'!$F$19/wind_dollar_index)/'Philippines-IO-Data'!$AP41","v":0.5261617813006616},null,"DOM_C73T74: R&D and other business activities",10212418.300653595,0,null,36345373.542685643,14554882.709191978,{"$f":"DI164*'SouthAfrica-IO-Data'!AR41","v":4350975.1312819896},{"$f":"DL164*'SouthAfrica-IO-Data'!$AR41","v":15484854.98398149},{"$f":"DM164*'SouthAfrica-IO-Data'!$AR41","v":6201071.1706126975},{"$f":"DI164*'SouthAfrica-IO-Data'!AS41","v":2808823.0843092934},{"$f":"DL164*'SouthAfrica-IO-Data'!$AS41","v":9996429.9550877251},{"$f":"DM164*'SouthAfrica-IO-Data'!$AS41","v":4003174.3059698367},{"$f":"(DQ164*'Default-Data'!$F$19/wind_dollar_index)/'SouthAfrica-IO-Data'!$AT41","v":174.5083053852488},{"$f":"(DR164*'Default-Data'!$F$19/wind_dollar_index)/'SouthAfrica-IO-Data'!$AT41","v":621.06440989809471},{"$f":"(DS164*'Default-Data'!$F$19/wind_dollar_index)/'SouthAfrica-IO-Data'!$AT41","v":248.71169999955782},45081.205300271664,67142.872106137977,{"$f":"DJ164*'SouthAfrica-IO-Data'!AR41","v":0},{"$f":"'SouthAfrica-IO-Data'!$AR41*Calculations!DW164","v":19206.734132418605},{"$f":"'SouthAfrica-IO-Data'!$AR41*Calculations!DX164","v":28606.051786769909},{"$f":"DJ164*'SouthAfrica-IO-Data'!AS41","v":0},{"$f":"DW164*'SouthAfrica-IO-Data'!$AS41","v":12399.132740947902},{"$f":"DX164*'SouthAfrica-IO-Data'!$AS41","v":18466.972617688112},{"$f":"(EB164*'Default-Data'!$F$19/wind_dollar_index)/'SouthAfrica-IO-Data'!$AT41","v":0},{"$f":"(EC164*'Default-Data'!$F$19/wind_dollar_index)/'SouthAfrica-IO-Data'!$AT41","v":0.77034102110480662},{"$f":"(ED164*'Default-Data'!$F$19/wind_dollar_index)/'SouthAfrica-IO-Data'!$AT41","v":1.1473275462277865},null,"LPRIM",0,0,null,0,16156057.152069267,{"$f":"EJ164*'Zambia-IO-Data'!BO39","v":0},{"$f":"EM164*'Zambia-IO-Data'!$BO39","v":0},{"$f":"EN164*'Zambia-IO-Data'!$BO39","v":0},{"$f":"EJ164*'Zambia-IO-Data'!BN39","v":0},{"$f":"EM164*'Zambia-IO-Data'!$BN39","v":0},{"$f":"EN164*'Zambia-IO-Data'!$BN39","v":0},0,0,0,0,29105.784278505122,{"$f":"EK164*'Zambia-IO-Data'!BO39","v":0},{"$f":"EX164*'Zambia-IO-Data'!$BO39","v":0},{"$f":"EY164*'Zambia-IO-Data'!$BO39","v":0},{"$f":"EK164*'Zambia-IO-Data'!BN39","v":0},{"$f":"EX164*'Zambia-IO-Data'!$BN39","v":0},{"$f":"EY164*'Zambia-IO-Data'!$BN39","v":0},0,0,0,null,"TTL_C73T74: R&D and other business activities",10212418.300653595,0,null,7105676.0099934451,3954420.5874905735,{"$f":"FK164*CustomRegion1!C37","v":4947914.6151563618},{"$f":"FN164*CustomRegion1!$C37","v":3442698.5994259925},{"$f":"FO164*CustomRegion1!$C37","v":1915915.9802597961},{"$f":"FK164*CustomRegion1!D37","v":1936297.4867193429},{"$f":"FN164*CustomRegion1!$D37","v":1347252.1585520715},{"$f":"FO164*CustomRegion1!$D37","v":749767.04043734481},{"$f":"(FS164*'Default-Data'!$C$58/wind_dollar_index)/CustomRegion1!$E37","v":490.33031647240824},{"$f":"(FT164*'Default-Data'!$C$58/wind_dollar_index)/CustomRegion1!$E37","v":341.16584967024903},{"$f":"(FU164*'Default-Data'!$C$58/wind_dollar_index)/CustomRegion1!$E37","v":189.86416743281708},19867.245225172261,17259.548537273626,{"$f":"FL164*CustomRegion1!C37","v":0},{"$f":"FY164*CustomRegion1!$C37","v":9625.6763205864736},{"$f":"FZ164*CustomRegion1!$C37","v":8362.2477991438373},{"$f":"FL164*CustomRegion1!D37","v":0},{"$f":"FY164*CustomRegion1!$D37","v":3766.8743939989122},{"$f":"FZ164*CustomRegion1!$D37","v":3272.4492349177053},{"$f":"(GD164*'Default-Data'!$C$58/wind_dollar_index)/CustomRegion1!$E37","v":0},{"$f":"(GE164*'Default-Data'!$C$58/wind_dollar_index)/CustomRegion1!$E37","v":0.95388891758088279},{"$f":"(GF164*'Default-Data'!$C$58/wind_dollar_index)/CustomRegion1!$E37","v":0.82868519946060604},null,"C71 Renting of machinery and equipment",10212418.300653595,0,null,2354794.4345095865,1557443.7990425341,{"$f":"GL164*CustomRegion2!C41","v":8673612.2804671451},{"$f":"GO164*CustomRegion2!$C41","v":1999974.2787495167},{"$f":"GP164*CustomRegion2!$C41","v":1322768.3457353264},{"$f":"GL164*CustomRegion2!D41","v":388869.67247923691},{"$f":"GO164*CustomRegion2!$D41","v":89666.141118119631},{"$f":"GP164*CustomRegion2!$D41","v":59304.529270968807},{"$f":"(GT164*'Default-Data'!$C$59/wind_dollar_index)/CustomRegion2!$E41","v":166.04905334368095},{"$f":"(GU164*'Default-Data'!$C$59/wind_dollar_index)/CustomRegion2!$E41","v":38.287834982656413},{"$f":"(GV164*'Default-Data'!$C$59/wind_dollar_index)/CustomRegion2!$E41","v":25.323293744288524},0,0,{"$f":"GM164*CustomRegion2!C41","v":0},{"$f":"GZ164*CustomRegion2!$C41","v":0},{"$f":"HA164*CustomRegion2!$C41","v":0},{"$f":"GM164*CustomRegion2!D41","v":0},{"$f":"GZ164*CustomRegion2!$D41","v":0},{"$f":"HA164*CustomRegion2!$D41","v":0},{"$f":"(HE164*'Default-Data'!$C$59/wind_dollar_index)/CustomRegion2!$E41","v":0},{"$f":"(HF164*'Default-Data'!$C$59/wind_dollar_index)/CustomRegion2!$E41","v":0},{"$f":"(HG164*'Default-Data'!$C$59/wind_dollar_index)/CustomRegion2!$E41","v":0},null,"LPRIM",0,0,null,0,16156057.152069267,{"$f":"HM164*CustomRegion3!D40","v":0},{"$f":"HP164*CustomRegion3!$D40","v":0},{"$f":"HQ164*CustomRegion3!$D40","v":0},{"$f":"HM164*CustomRegion3!E40","v":0},{"$f":"HP164*CustomRegion3!$E40","v":0},{"$f":"HQ164*CustomRegion3!$E40","v":0},0,0,0,0,29105.784278505122,{"$f":"HN164*CustomRegion3!D40","v":0},{"$f":"IA164*CustomRegion3!$D40","v":0},{"$f":"IB164*CustomRegion3!$D40","v":0},{"$f":"HN164*CustomRegion3!E40","v":0},{"$f":"IA164*CustomRegion3!$E40","v":0},{"$f":"IB164*CustomRegion3!$E40","v":0},0,0,0]
[null,null,null,null,null,null,null,null,null,null,null,null,null,null,null,null,null,null,null,null,null,null,null,null,null,null,null,null,null,164,"TTL_C75: Public administration and defence; compulsory social security",0,0,null,139236.70370758331,10792731.82536456,{"$f":"AF165*'Colombia-IO-Data'!AN42","v":0},{"$f":"AI165*'Colombia-IO-Data'!$AN42","v":84309.69618327661},{"$f":"AJ165*'Colombia-IO-Data'!$AN42","v":6535144.2324794745},{"$f":"AK165*'Colombia-IO-Data'!$AO42","v":0},{"$f":"AL165*'Colombia-IO-Data'!$AO42","v":70782.70730875936},{"$f":"AM165*'Colombia-IO-Data'!$AO42","v":5486619.2427327987},{"$f":"(Calculations!AN165*'Default-Data'!$F$19/wind_dollar_index)/'Colombia-IO-Data'!$AP42","v":0},{"$f":"(Calculations!AO165*'Default-Data'!$F$19/wind_dollar_index)/'Colombia-IO-Data'!$AP42","v":6.7493532707760657},{"$f":"(Calculations!AP165*'Default-Data'!$F$19/wind_dollar_index)/'Colombia-IO-Data'!$AP42","v":523.1663627940793},58.432917494453385,56493.045790854623,{"$f":"AG165*'Colombia-IO-Data'!AN42","v":0},{"$f":"AT165*'Colombia-IO-Data'!$AN42","v":35.381917194808757},{"$f":"AU165*'Colombia-IO-Data'!$AN42","v":34207.298795996147},{"$f":"AV165*'Colombia-IO-Data'!$AO42","v":0},{"$f":"AW165*'Colombia-IO-Data'!$AO42","v":29.705099202097209},{"$f":"AX165*'Colombia-IO-Data'!$AO42","v":28718.94133311501},{"$f":"(AY165*'Default-Data'!$F$19/wind_dollar_index)/'Colombia-IO-Data'!$AP42","v":0},{"$f":"(AZ165*'Default-Data'!$F$19/wind_dollar_index)/'Colombia-IO-Data'!$AP42","v":2.8324744288721442E-3},{"$f":"(BA165*'Default-Data'!$F$19/wind_dollar_index)/'Colombia-IO-Data'!$AP42","v":2.7384411813236587},null,"DOM_C75: Public administration and defence; compulsory social security",0,0,null,5776.3178288969575,9113989.670243796,{"$f":"BG165*'Mexico-IO-Data'!AQ42","v":0},{"$f":"BJ165*'Mexico-IO-Data'!$AQ42","v":4139.3920992546018},{"$f":"BK165*'Mexico-IO-Data'!$AQ42","v":6531215.5513609322},{"$f":"BG165*'Mexico-IO-Data'!AR42","v":0},{"$f":"BJ165*'Mexico-IO-Data'!$AR42","v":4080.7317986109974},{"$f":"BK165*'Mexico-IO-Data'!$AR42","v":6438660.1570845582},{"$f":"(BO165*'Default-Data'!$F$19/wind_dollar_index)/'Mexico-IO-Data'!$AS42","v":0},{"$f":"(BP165*'Default-Data'!$F$19/wind_dollar_index)/'Mexico-IO-Data'!$AS42","v":2.81529629685132},{"$f":"(BQ165*'Default-Data'!$F$19/wind_dollar_index)/'Mexico-IO-Data'!$AS42","v":4442.0307414210083},54.883613052740195,34472.439880343161,{"$f":"BH165*'Mexico-IO-Data'!AQ42","v":0},{"$f":"BU165*'Mexico-IO-Data'!$AQ42","v":39.33038329583097},{"$f":"BV165*'Mexico-IO-Data'!$AQ42","v":24703.444219926292},{"$f":"BH165*'Mexico-IO-Data'!AR42","v":0},{"$f":"BX165*'Mexico-IO-Data'!$AR42","v":27.785303807893932},{"$f":"BY165*'Mexico-IO-Data'!$AR42","v":17451.970848826462},{"$f":"(CA165*'Default-Data'!$F$19/wind_dollar_index)/'Mexico-IO-Data'!$AS42","v":1.9169077209111998E-2},{"$f":"(CB165*'Default-Data'!$F$19/wind_dollar_index)/'Mexico-IO-Data'!$AS42","v":12.040112246578438},{"$f":"(CC165*'Default-Data'!$F$19/wind_dollar_index)/'Mexico-IO-Data'!$AS42","v":1.3224743684267428E-5},null,"TTL_C75: Public administration and defence; compulsory social security",0,0,null,56932.539230609545,8653442.579988433,{"$f":"CH165*'Philippines-IO-Data'!AN42","v":0},{"$f":"CK165*'Philippines-IO-Data'!$AN42","v":31712.447026528382},{"$f":"CL165*'Philippines-IO-Data'!$AN42","v":4820122.958215897},{"$f":"CH165*'Philippines-IO-Data'!AO42","v":0},{"$f":"CK165*'Philippines-IO-Data'!$AO42","v":26933.616937278381},{"$f":"CL165*'Philippines-IO-Data'!$AO42","v":4093766.2501593474},{"$f":"(CP165*'Default-Data'!$F$19/wind_dollar_index)/'Philippines-IO-Data'!$AP42","v":0},{"$f":"(CQ165*'Default-Data'!$F$19/wind_dollar_index)/'Philippines-IO-Data'!$AP42","v":6.8204235181742634},{"$f":"(CR165*'Default-Data'!$F$19/wind_dollar_index)/'Philippines-IO-Data'!$AP42","v":1036.6680299759357},59.894908947597301,37521.620702930908,{"$f":"CI165*'Philippines-IO-Data'!AN42","v":0},{"$f":"CV165*'Philippines-IO-Data'!$AN42","v":33.362540171723239},{"$f":"CW165*'Philippines-IO-Data'!$AN42","v":20900.216729687701},{"$f":"CI165*'Philippines-IO-Data'!AO42","v":0},{"$f":"CV165*'Philippines-IO-Data'!$AO42","v":28.335053308502882},{"$f":"CW165*'Philippines-IO-Data'!$AO42","v":17750.709392832665},{"$f":"(DA165*'Default-Data'!$F$19/wind_dollar_index)/'Philippines-IO-Data'!$AP42","v":0},{"$f":"(DB165*'Default-Data'!$F$19/wind_dollar_index)/'Philippines-IO-Data'!$AP42","v":7.1753104837007824E-3},{"$f":"(DC165*'Default-Data'!$F$19/wind_dollar_index)/'Philippines-IO-Data'!$AP42","v":4.4950277598841675},null,"DOM_C75: Public administration and defence; compulsory social security",0,0,null,57747.26118230771,40941395.064412192,{"$f":"DI165*'SouthAfrica-IO-Data'!AR42","v":0},{"$f":"DL165*'SouthAfrica-IO-Data'!$AR42","v":35744.539623280594},{"$f":"DM165*'SouthAfrica-IO-Data'!$AR42","v":25342003.900275432},{"$f":"DI165*'SouthAfrica-IO-Data'!AS42","v":0},{"$f":"DL165*'SouthAfrica-IO-Data'!$AS42","v":31527.65492948216},{"$f":"DM165*'SouthAfrica-IO-Data'!$AS42","v":22352335.842342176},{"$f":"(DQ165*'Default-Data'!$F$19/wind_dollar_index)/'SouthAfrica-IO-Data'!$AT42","v":0},{"$f":"(DR165*'Default-Data'!$F$19/wind_dollar_index)/'SouthAfrica-IO-Data'!$AT42","v":1.8750122795304591},{"$f":"(DS165*'Default-Data'!$F$19/wind_dollar_index)/'SouthAfrica-IO-Data'!$AT42","v":1329.3378233910014},77.855965114151871,188866.02575784692,{"$f":"DJ165*'SouthAfrica-IO-Data'!AR42","v":0},{"$f":"'SouthAfrica-IO-Data'!$AR42*Calculations!DW165","v":48.191473897712235},{"$f":"'SouthAfrica-IO-Data'!$AR42*Calculations!DX165","v":116904.75016434555},{"$f":"DJ165*'SouthAfrica-IO-Data'!AS42","v":0},{"$f":"DW165*'SouthAfrica-IO-Data'!$AS42","v":42.506189073999117},{"$f":"DX165*'SouthAfrica-IO-Data'!$AS42","v":103113.16530142896},{"$f":"(EB165*'Default-Data'!$F$19/wind_dollar_index)/'SouthAfrica-IO-Data'!$AT42","v":0},{"$f":"(EC165*'Default-Data'!$F$19/wind_dollar_index)/'SouthAfrica-IO-Data'!$AT42","v":2.5279275178587105E-3},{"$f":"(ED165*'Default-Data'!$F$19/wind_dollar_index)/'SouthAfrica-IO-Data'!$AT42","v":6.1323448113687196},null,"LSECD",0,0,null,0,10277876.444877779,{"$f":"EJ165*'Zambia-IO-Data'!BO40","v":0},{"$f":"EM165*'Zambia-IO-Data'!$BO40","v":0},{"$f":"EN165*'Zambia-IO-Data'!$BO40","v":0},{"$f":"EJ165*'Zambia-IO-Data'!BN40","v":0},{"$f":"EM165*'Zambia-IO-Data'!$BN40","v":0},{"$f":"EN165*'Zambia-IO-Data'!$BN40","v":0},0,0,0,0,36447.44630058085,{"$f":"EK165*'Zambia-IO-Data'!BO40","v":0},{"$f":"EX165*'Zambia-IO-Data'!$BO40","v":0},{"$f":"EY165*'Zambia-IO-Data'!$BO40","v":0},{"$f":"EK165*'Zambia-IO-Data'!BN40","v":0},{"$f":"EX165*'Zambia-IO-Data'!$BN40","v":0},{"$f":"EY165*'Zambia-IO-Data'!$BN40","v":0},0,0,0,null,"TTL_C75: Public administration and defence; compulsory social security",0,0,null,97987.455772973946,10212716.52135184,{"$f":"FK165*CustomRegion1!C38","v":0},{"$f":"FN165*CustomRegion1!$C38","v":54580.773007117808},{"$f":"FO165*CustomRegion1!$C38","v":5688666.5526801934},{"$f":"FK165*CustomRegion1!D38","v":0},{"$f":"FN165*CustomRegion1!$D38","v":46355.856143315235},{"$f":"FO165*CustomRegion1!$D38","v":4831426.7797002969},{"$f":"(FS165*'Default-Data'!$C$58/wind_dollar_index)/CustomRegion1!$E38","v":0},{"$f":"(FT165*'Default-Data'!$C$58/wind_dollar_index)/CustomRegion1!$E38","v":11.738734243575326},{"$f":"(FU165*'Default-Data'!$C$58/wind_dollar_index)/CustomRegion1!$E38","v":1223.466455000925},188.67996192789002,44574.640607347559,{"$f":"FL165*CustomRegion1!C38","v":0},{"$f":"FY165*CustomRegion1!$C38","v":105.09812803832573},{"$f":"FZ165*CustomRegion1!$C38","v":24828.875509333506},{"$f":"FL165*CustomRegion1!D38","v":0},{"$f":"FY165*CustomRegion1!$D38","v":89.26062120155413},{"$f":"FZ165*CustomRegion1!$D38","v":21087.34849103092},{"$f":"(GD165*'Default-Data'!$C$58/wind_dollar_index)/CustomRegion1!$E38","v":0},{"$f":"(GE165*'Default-Data'!$C$58/wind_dollar_index)/CustomRegion1!$E38","v":2.260354565477244E-2},{"$f":"(GF165*'Default-Data'!$C$58/wind_dollar_index)/CustomRegion1!$E38","v":5.3399678149093477},null,"C72 Computer and related activities",0,0,null,127237.88185068463,124266.40938473619,{"$f":"GL165*CustomRegion2!C42","v":0},{"$f":"GO165*CustomRegion2!$C42","v":65829.853515050869},{"$f":"GP165*CustomRegion2!$C42","v":64292.484342346892},{"$f":"GL165*CustomRegion2!D42","v":0},{"$f":"GO165*CustomRegion2!$D42","v":43124.74455393276},{"$f":"GP165*CustomRegion2!$D42","v":42117.623174833971},{"$f":"(GT165*'Default-Data'!$C$59/wind_dollar_index)/CustomRegion2!$E42","v":0},{"$f":"(GU165*'Default-Data'!$C$59/wind_dollar_index)/CustomRegion2!$E42","v":3.4808619459212418},{"$f":"(GV165*'Default-Data'!$C$59/wind_dollar_index)/CustomRegion2!$E42","v":3.3995710184110637},0,0,{"$f":"GM165*CustomRegion2!C42","v":0},{"$f":"GZ165*CustomRegion2!$C42","v":0},{"$f":"HA165*CustomRegion2!$C42","v":0},{"$f":"GM165*CustomRegion2!D42","v":0},{"$f":"GZ165*CustomRegion2!$D42","v":0},{"$f":"HA165*CustomRegion2!$D42","v":0},{"$f":"(HE165*'Default-Data'!$C$59/wind_dollar_index)/CustomRegion2!$E42","v":0},{"$f":"(HF165*'Default-Data'!$C$59/wind_dollar_index)/CustomRegion2!$E42","v":0},{"$f":"(HG165*'Default-Data'!$C$59/wind_dollar_index)/CustomRegion2!$E42","v":0},null,"LSECD",0,0,null,0,10277876.444877779,{"$f":"HM165*CustomRegion3!D41","v":0},{"$f":"HP165*CustomRegion3!$D41","v":0},{"$f":"HQ165*CustomRegion3!$D41","v":0},{"$f":"HM165*CustomRegion3!E41","v":0},{"$f":"HP165*CustomRegion3!$E41","v":0},{"$f":"HQ165*CustomRegion3!$E41","v":0},0,0,0,0,36447.44630058085,{"$f":"HN165*CustomRegion3!D41","v":0},{"$f":"IA165*CustomRegion3!$D41","v":0},{"$f":"IB165*CustomRegion3!$D41","v":0},{"$f":"HN165*CustomRegion3!E41","v":0},{"$f":"IA165*CustomRegion3!$E41","v":0},{"$f":"IB165*CustomRegion3!$E41","v":0},0,0,0]
[null,null,null,null,null,null,null,null,null,null,null,null,null,null,null,null,null,null,null,null,null,null,null,null,null,null,null,null,null,165,"TTL_C80: Education",0,0,null,142431.92699005551,6286842.0068977224,{"$f":"AF166*'Colombia-IO-Data'!AN43","v":0},{"$f":"AI166*'Colombia-IO-Data'!$AN43","v":112288.43469746802},{"$f":"AJ166*'Colombia-IO-Data'!$AN43","v":4956330.1084462749},{"$f":"AK166*'Colombia-IO-Data'!$AO43","v":0},{"$f":"AL166*'Colombia-IO-Data'!$AO43","v":82666.153373075373},{"$f":"AM166*'Colombia-IO-Data'!$AO43","v":3648824.0842994829},{"$f":"(Calculations!AN166*'Default-Data'!$F$19/wind_dollar_index)/'Colombia-IO-Data'!$AP43","v":0},{"$f":"(Calculations!AO166*'Default-Data'!$F$19/wind_dollar_index)/'Colombia-IO-Data'!$AP43","v":7.8824771454029525},{"$f":"(Calculations!AP166*'Default-Data'!$F$19/wind_dollar_index)/'Colombia-IO-Data'!$AP43","v":347.92682710520717},2319.9109025860921,32907.595511717867,{"$f":"AG166*'Colombia-IO-Data'!AN43","v":0},{"$f":"AT166*'Colombia-IO-Data'!$AN43","v":1828.9380014297662},{"$f":"AU166*'Colombia-IO-Data'!$AN43","v":25943.217000260171},{"$f":"AV166*'Colombia-IO-Data'!$AO43","v":0},{"$f":"AW166*'Colombia-IO-Data'!$AO43","v":1346.4545101495496},{"$f":"AX166*'Colombia-IO-Data'!$AO43","v":19099.259521362288},{"$f":"(AY166*'Default-Data'!$F$19/wind_dollar_index)/'Colombia-IO-Data'!$AP43","v":0},{"$f":"(AZ166*'Default-Data'!$F$19/wind_dollar_index)/'Colombia-IO-Data'!$AP43","v":0.12838866295955376},{"$f":"(BA166*'Default-Data'!$F$19/wind_dollar_index)/'Colombia-IO-Data'!$AP43","v":1.8211743322786857},null,"DOM_C80: Education",0,0,null,118780.1474632358,8184025.0741827367,{"$f":"BG166*'Mexico-IO-Data'!AQ43","v":0},{"$f":"BJ166*'Mexico-IO-Data'!$AQ43","v":106570.38881547957},{"$f":"BK166*'Mexico-IO-Data'!$AQ43","v":7342765.2083126027},{"$f":"BG166*'Mexico-IO-Data'!AR43","v":0},{"$f":"BJ166*'Mexico-IO-Data'!$AR43","v":91904.134423687588},{"$f":"BK166*'Mexico-IO-Data'!$AR43","v":6332251.2777425218},{"$f":"(BO166*'Default-Data'!$F$19/wind_dollar_index)/'Mexico-IO-Data'!$AS43","v":0},{"$f":"(BP166*'Default-Data'!$F$19/wind_dollar_index)/'Mexico-IO-Data'!$AS43","v":22.227684192801693},{"$f":"(BQ166*'Default-Data'!$F$19/wind_dollar_index)/'Mexico-IO-Data'!$AS43","v":1531.501085492496},2405.0174395826393,30954.973897994183,{"$f":"BH166*'Mexico-IO-Data'!AQ43","v":0},{"$f":"BU166*'Mexico-IO-Data'!$AQ43","v":2157.798665165496},{"$f":"BV166*'Mexico-IO-Data'!$AQ43","v":27773.021624706387},{"$f":"BH166*'Mexico-IO-Data'!AR43","v":0},{"$f":"BX166*'Mexico-IO-Data'!$AR43","v":1669.5602995778688},{"$f":"BY166*'Mexico-IO-Data'!$AR43","v":21488.906751349339},{"$f":"(CA166*'Default-Data'!$F$19/wind_dollar_index)/'Mexico-IO-Data'!$AS43","v":0.40379531685455189},{"$f":"(CB166*'Default-Data'!$F$19/wind_dollar_index)/'Mexico-IO-Data'!$AS43","v":5.1972485885732587},{"$f":"(CC166*'Default-Data'!$F$19/wind_dollar_index)/'Mexico-IO-Data'!$AS43","v":9.7660837979253367E-5},null,"TTL_C80: Education",0,0,null,132322.88221776846,8391470.9275750201,{"$f":"CH166*'Philippines-IO-Data'!AN43","v":0},{"$f":"CK166*'Philippines-IO-Data'!$AN43","v":90054.186019990346},{"$f":"CL166*'Philippines-IO-Data'!$AN43","v":5710932.7670895252},{"$f":"CH166*'Philippines-IO-Data'!AO43","v":0},{"$f":"CK166*'Philippines-IO-Data'!$AO43","v":62639.454631638335},{"$f":"CL166*'Philippines-IO-Data'!$AO43","v":3972382.9593999302},{"$f":"(CP166*'Default-Data'!$F$19/wind_dollar_index)/'Philippines-IO-Data'!$AP43","v":0},{"$f":"(CQ166*'Default-Data'!$F$19/wind_dollar_index)/'Philippines-IO-Data'!$AP43","v":15.86224421807667},{"$f":"(CR166*'Default-Data'!$F$19/wind_dollar_index)/'Philippines-IO-Data'!$AP43","v":1005.930032441596},101.48358677790755,36385.70272740662,{"$f":"CI166*'Philippines-IO-Data'!AN43","v":0},{"$f":"CV166*'Philippines-IO-Data'!$AN43","v":69.066072689023713},{"$f":"CW166*'Philippines-IO-Data'!$AN43","v":24762.798292810683},{"$f":"CI166*'Philippines-IO-Data'!AO43","v":0},{"$f":"CV166*'Philippines-IO-Data'!$AO43","v":48.040644394133842},{"$f":"CW166*'Philippines-IO-Data'!$AO43","v":17224.387324655894},{"$f":"(DA166*'Default-Data'!$F$19/wind_dollar_index)/'Philippines-IO-Data'!$AP43","v":0},{"$f":"(DB166*'Default-Data'!$F$19/wind_dollar_index)/'Philippines-IO-Data'!$AP43","v":1.2165374654916532E-2},{"$f":"(DC166*'Default-Data'!$F$19/wind_dollar_index)/'Philippines-IO-Data'!$AP43","v":4.3617467594048565},null,"DOM_C80: Education",0,0,null,60919.075356256333,2290234.7494087471,{"$f":"DI166*'SouthAfrica-IO-Data'!AR43","v":0},{"$f":"DL166*'SouthAfrica-IO-Data'!$AR43","v":31077.577803474036},{"$f":"DM166*'SouthAfrica-IO-Data'!$AR43","v":1168352.4117320767},{"$f":"DI166*'SouthAfrica-IO-Data'!AS43","v":0},{"$f":"DL166*'SouthAfrica-IO-Data'!$AS43","v":15766.040769132233},{"$f":"DM166*'SouthAfrica-IO-Data'!$AS43","v":592719.67308928294},{"$f":"(DQ166*'Default-Data'!$F$19/wind_dollar_index)/'SouthAfrica-IO-Data'!$AT43","v":0},{"$f":"(DR166*'Default-Data'!$F$19/wind_dollar_index)/'SouthAfrica-IO-Data'!$AT43","v":0.93763776937488597},{"$f":"(DS166*'Default-Data'!$F$19/wind_dollar_index)/'SouthAfrica-IO-Data'!$AT43","v":35.250216606577752},152.74410418399697,10565.041432829314,{"$f":"DJ166*'SouthAfrica-IO-Data'!AR43","v":0},{"$f":"'SouthAfrica-IO-Data'!$AR43*Calculations!DW166","v":77.921681411610692},{"$f":"'SouthAfrica-IO-Data'!$AR43*Calculations!DX166","v":5389.7058549487656},{"$f":"DJ166*'SouthAfrica-IO-Data'!AS43","v":0},{"$f":"DW166*'SouthAfrica-IO-Data'!$AS43","v":39.530635678996077},{"$f":"DX166*'SouthAfrica-IO-Data'!$AS43","v":2734.2646450797074},{"$f":"(EB166*'Default-Data'!$F$19/wind_dollar_index)/'SouthAfrica-IO-Data'!$AT43","v":0},{"$f":"(EC166*'Default-Data'!$F$19/wind_dollar_index)/'SouthAfrica-IO-Data'!$AT43","v":2.3509654454651808E-3},{"$f":"(ED166*'Default-Data'!$F$19/wind_dollar_index)/'SouthAfrica-IO-Data'!$AT43","v":0.16261215102986573},null,"LPOST",0,0,null,0,12802301.94420111,{"$f":"EJ166*'Zambia-IO-Data'!BO41","v":0},{"$f":"EM166*'Zambia-IO-Data'!$BO41","v":0},{"$f":"EN166*'Zambia-IO-Data'!$BO41","v":0},{"$f":"EJ166*'Zambia-IO-Data'!BN41","v":0},{"$f":"EM166*'Zambia-IO-Data'!$BN41","v":0},{"$f":"EN166*'Zambia-IO-Data'!$BN41","v":0},0,0,0,0,25433.661678221259,{"$f":"EK166*'Zambia-IO-Data'!BO41","v":0},{"$f":"EX166*'Zambia-IO-Data'!$BO41","v":0},{"$f":"EY166*'Zambia-IO-Data'!$BO41","v":0},{"$f":"EK166*'Zambia-IO-Data'!BN41","v":0},{"$f":"EX166*'Zambia-IO-Data'!$BN41","v":0},{"$f":"EY166*'Zambia-IO-Data'!$BN41","v":0},0,0,0,null,"TTL_C80: Education",0,0,null,191064.95725808199,9902278.5886880197,{"$f":"FK166*CustomRegion1!C39","v":0},{"$f":"FN166*CustomRegion1!$C39","v":130031.92580482013},{"$f":"FO166*CustomRegion1!$C39","v":6739134.0265692491},{"$f":"FK166*CustomRegion1!D39","v":0},{"$f":"FN166*CustomRegion1!$D39","v":90446.977282183478},{"$f":"FO166*CustomRegion1!$D39","v":4687574.2124870066},{"$f":"(FS166*'Default-Data'!$C$58/wind_dollar_index)/CustomRegion1!$E39","v":0},{"$f":"(FT166*'Default-Data'!$C$58/wind_dollar_index)/CustomRegion1!$E39","v":22.903967649044368},{"$f":"(FU166*'Default-Data'!$C$58/wind_dollar_index)/CustomRegion1!$E39","v":1187.0385428175709},321.88400165707679,43219.696577475857,{"$f":"FL166*CustomRegion1!C39","v":0},{"$f":"FY166*CustomRegion1!$C39","v":219.06265398890221},{"$f":"FZ166*CustomRegion1!$C39","v":29413.768277131087},{"$f":"FL166*CustomRegion1!D39","v":0},{"$f":"FY166*CustomRegion1!$D39","v":152.37454006833292},{"$f":"FZ166*CustomRegion1!$D39","v":20459.486504401732},{"$f":"(GD166*'Default-Data'!$C$58/wind_dollar_index)/CustomRegion1!$E39","v":0},{"$f":"(GE166*'Default-Data'!$C$58/wind_dollar_index)/CustomRegion1!$E39","v":3.8585938868634574E-2},{"$f":"(GF166*'Default-Data'!$C$58/wind_dollar_index)/CustomRegion1!$E39","v":5.1809737715268458},null,"C73 Research and development",0,0,null,0,0,{"$f":"GL166*CustomRegion2!C43","v":0},{"$f":"GO166*CustomRegion2!$C43","v":0},{"$f":"GP166*CustomRegion2!$C43","v":0},{"$f":"GL166*CustomRegion2!D43","v":0},{"$f":"GO166*CustomRegion2!$D43","v":0},{"$f":"GP166*CustomRegion2!$D43","v":0},{"$f":"(GT166*'Default-Data'!$C$59/wind_dollar_index)/CustomRegion2!$E43","v":0},{"$f":"(GU166*'Default-Data'!$C$59/wind_dollar_index)/CustomRegion2!$E43","v":0},{"$f":"(GV166*'Default-Data'!$C$59/wind_dollar_index)/CustomRegion2!$E43","v":0},0,0,{"$f":"GM166*CustomRegion2!C43","v":0},{"$f":"GZ166*CustomRegion2!$C43","v":0},{"$f":"HA166*CustomRegion2!$C43","v":0},{"$f":"GM166*CustomRegion2!D43","v":0},{"$f":"GZ166*CustomRegion2!$D43","v":0},{"$f":"HA166*CustomRegion2!$D43","v":0},{"$f":"(HE166*'Default-Data'!$C$59/wind_dollar_index)/CustomRegion2!$E43","v":0},{"$f":"(HF166*'Default-Data'!$C$59/wind_dollar_index)/CustomRegion2!$E43","v":0},{"$f":"(HG166*'Default-Data'!$C$59/wind_dollar_index)/CustomRegion2!$E43","v":0},null,"LPOST",0,0,null,0,12802301.94420111,{"$f":"HM166*CustomRegion3!D42","v":0},{"$f":"HP166*CustomRegion3!$D42","v":0},{"$f":"HQ166*CustomRegion3!$D42","v":0},{"$f":"HM166*CustomRegion3!E42","v":0},{"$f":"HP166*CustomRegion3!$E42","v":0},{"$f":"HQ166*CustomRegion3!$E42","v":0},0,0,0,0,25433.661678221259,{"$f":"HN166*CustomRegion3!D42","v":0},{"$f":"IA166*CustomRegion3!$D42","v":0},{"$f":"IB166*CustomRegion3!$D42","v":0},{"$f":"HN166*CustomRegion3!E42","v":0},{"$f":"IA166*CustomRegion3!$E42","v":0},{"$f":"IB166*CustomRegion3!$E42","v":0},0,0,0]
[null,null,null,null,null,null,null,null,null,null,null,null,null,null,null,null,null,null,null,null,null,null,null,null,null,null,null,null,null,166,"TTL_C85: Health and social work",0,0,null,7877.9196443398478,5929536.8250884796,{"$f":"AF167*'Colombia-IO-Data'!AN44","v":0},{"$f":"AI167*'Colombia-IO-Data'!$AN44","v":3125.0003407700424},{"$f":"AJ167*'Colombia-IO-Data'!$AN44","v":2352119.0156240505},{"$f":"AK167*'Colombia-IO-Data'!$AO44","v":0},{"$f":"AL167*'Colombia-IO-Data'!$AO44","v":2320.4958337171556},{"$f":"AM167*'Colombia-IO-Data'!$AO44","v":1746586.1699130444},{"$f":"(Calculations!AN167*'Default-Data'!$F$19/wind_dollar_index)/'Colombia-IO-Data'!$AP44","v":0},{"$f":"(Calculations!AO167*'Default-Data'!$F$19/wind_dollar_index)/'Colombia-IO-Data'!$AP44","v":0.22126655987885568},{"$f":"(Calculations!AP167*'Default-Data'!$F$19/wind_dollar_index)/'Colombia-IO-Data'!$AP44","v":166.54247240322843},17.581030008744857,31037.331492943609,{"$f":"AG167*'Colombia-IO-Data'!AN44","v":0},{"$f":"AT167*'Colombia-IO-Data'!$AN44","v":6.9740143653140718},{"$f":"AU167*'Colombia-IO-Data'!$AN44","v":12311.838133780462},{"$f":"AV167*'Colombia-IO-Data'!$AO44","v":0},{"$f":"AW167*'Colombia-IO-Data'!$AO44","v":5.1786142445690571},{"$f":"AX167*'Colombia-IO-Data'!$AO44","v":9142.2611134172348},{"$f":"(AY167*'Default-Data'!$F$19/wind_dollar_index)/'Colombia-IO-Data'!$AP44","v":0},{"$f":"(AZ167*'Default-Data'!$F$19/wind_dollar_index)/'Colombia-IO-Data'!$AP44","v":4.9379711964400014E-4},{"$f":"(BA167*'Default-Data'!$F$19/wind_dollar_index)/'Colombia-IO-Data'!$AP44","v":0.87174328722653338},null,"DOM_C85: Health and social work",0,0,null,0,5954175.9312063931,{"$f":"BG167*'Mexico-IO-Data'!AQ44","v":0},{"$f":"BJ167*'Mexico-IO-Data'!$AQ44","v":0},{"$f":"BK167*'Mexico-IO-Data'!$AQ44","v":4446361.4943689657},{"$f":"BG167*'Mexico-IO-Data'!AR44","v":0},{"$f":"BJ167*'Mexico-IO-Data'!$AR44","v":0},{"$f":"BK167*'Mexico-IO-Data'!$AR44","v":3123751.9622921171},{"$f":"(BO167*'Default-Data'!$F$19/wind_dollar_index)/'Mexico-IO-Data'!$AS44","v":0},{"$f":"(BP167*'Default-Data'!$F$19/wind_dollar_index)/'Mexico-IO-Data'!$AS44","v":0},{"$f":"(BQ167*'Default-Data'!$F$19/wind_dollar_index)/'Mexico-IO-Data'!$AS44","v":1367.9793869292498},0,22520.869482180147,{"$f":"BH167*'Mexico-IO-Data'!AQ44","v":0},{"$f":"BU167*'Mexico-IO-Data'!$AQ44","v":0},{"$f":"BV167*'Mexico-IO-Data'!$AQ44","v":16817.764211576821},{"$f":"BH167*'Mexico-IO-Data'!AR44","v":0},{"$f":"BX167*'Mexico-IO-Data'!$AR44","v":0},{"$f":"BY167*'Mexico-IO-Data'!$AR44","v":8823.1393503072159},{"$f":"(CA167*'Default-Data'!$F$19/wind_dollar_index)/'Mexico-IO-Data'!$AS44","v":0},{"$f":"(CB167*'Default-Data'!$F$19/wind_dollar_index)/'Mexico-IO-Data'!$AS44","v":3.8639024176452503},{"$f":"(CC167*'Default-Data'!$F$19/wind_dollar_index)/'Mexico-IO-Data'!$AS44","v":0},null,"TTL_C85: Health and social work",0,0,null,328370.2076455222,3770812.1448677508,{"$f":"CH167*'Philippines-IO-Data'!AN44","v":0},{"$f":"CK167*'Philippines-IO-Data'!$AN44","v":170162.61092446672},{"$f":"CL167*'Philippines-IO-Data'!$AN44","v":1954048.2812894268},{"$f":"CH167*'Philippines-IO-Data'!AO44","v":0},{"$f":"CK167*'Philippines-IO-Data'!$AO44","v":108633.55607172751},{"$f":"CL167*'Philippines-IO-Data'!$AO44","v":1247484.464296004},{"$f":"(CP167*'Default-Data'!$F$19/wind_dollar_index)/'Philippines-IO-Data'!$AP44","v":0},{"$f":"(CQ167*'Default-Data'!$F$19/wind_dollar_index)/'Philippines-IO-Data'!$AP44","v":27.509370999815772},{"$f":"(CR167*'Default-Data'!$F$19/wind_dollar_index)/'Philippines-IO-Data'!$AP44","v":315.90158865982784},259.00196149371499,16350.369432037329,{"$f":"CI167*'Philippines-IO-Data'!AN44","v":0},{"$f":"CV167*'Philippines-IO-Data'!$AN44","v":134.21573874906835},{"$f":"CW167*'Philippines-IO-Data'!$AN44","v":8472.8196631604533},{"$f":"CI167*'Philippines-IO-Data'!AO44","v":0},{"$f":"CV167*'Philippines-IO-Data'!$AO44","v":85.684704189084727},{"$f":"CW167*'Philippines-IO-Data'!$AO44","v":5409.1349736761285},{"$f":"(DA167*'Default-Data'!$F$19/wind_dollar_index)/'Philippines-IO-Data'!$AP44","v":0},{"$f":"(DB167*'Default-Data'!$F$19/wind_dollar_index)/'Philippines-IO-Data'!$AP44","v":2.1698013042955679E-2},{"$f":"(DC167*'Default-Data'!$F$19/wind_dollar_index)/'Philippines-IO-Data'!$AP44","v":1.3697600093352911},null,"DOM_C85: Health and social work",0,0,null,620056.05892368383,6715286.6088327607,{"$f":"DI167*'SouthAfrica-IO-Data'!AR44","v":0},{"$f":"DL167*'SouthAfrica-IO-Data'!$AR44","v":286485.94301037036},{"$f":"DM167*'SouthAfrica-IO-Data'!$AR44","v":3102679.4900703486},{"$f":"DI167*'SouthAfrica-IO-Data'!AS44","v":0},{"$f":"DL167*'SouthAfrica-IO-Data'!$AS44","v":126423.76542741281},{"$f":"DM167*'SouthAfrica-IO-Data'!$AS44","v":1369185.5870041749},{"$f":"(DQ167*'Default-Data'!$F$19/wind_dollar_index)/'SouthAfrica-IO-Data'!$AT44","v":0},{"$f":"(DR167*'Default-Data'!$F$19/wind_dollar_index)/'SouthAfrica-IO-Data'!$AT44","v":7.518672515639933},{"$f":"(DS167*'Default-Data'!$F$19/wind_dollar_index)/'SouthAfrica-IO-Data'!$AT44","v":81.428187232164518},814.65782366221117,30978.169933871599,{"$f":"DJ167*'SouthAfrica-IO-Data'!AR44","v":0},{"$f":"'SouthAfrica-IO-Data'!$AR44*Calculations!DW167","v":376.39824897085612},{"$f":"'SouthAfrica-IO-Data'!$AR44*Calculations!DX167","v":14312.915902549086},{"$f":"DJ167*'SouthAfrica-IO-Data'!AS44","v":0},{"$f":"DW167*'SouthAfrica-IO-Data'!$AS44","v":166.10128732723862},{"$f":"DX167*'SouthAfrica-IO-Data'!$AS44","v":6316.1658252134603},{"$f":"(EB167*'Default-Data'!$F$19/wind_dollar_index)/'SouthAfrica-IO-Data'!$AT44","v":0},{"$f":"(EC167*'Default-Data'!$F$19/wind_dollar_index)/'SouthAfrica-IO-Data'!$AT44","v":9.8783735764994586E-3},{"$f":"(ED167*'Default-Data'!$F$19/wind_dollar_index)/'SouthAfrica-IO-Data'!$AT44","v":0.3756349309301576},null,"HRRS",0,0,null,0,6273543.8038706854,{"$f":"EJ167*'Zambia-IO-Data'!BO42","v":0},{"$f":"EM167*'Zambia-IO-Data'!$BO42","v":0},{"$f":"EN167*'Zambia-IO-Data'!$BO42","v":0},{"$f":"EJ167*'Zambia-IO-Data'!BN42","v":0},{"$f":"EM167*'Zambia-IO-Data'!$BN42","v":0},{"$f":"EN167*'Zambia-IO-Data'!$BN42","v":0},0,0,0,0,12528.127930849578,{"$f":"EK167*'Zambia-IO-Data'!BO42","v":0},{"$f":"EX167*'Zambia-IO-Data'!$BO42","v":0},{"$f":"EY167*'Zambia-IO-Data'!$BO42","v":0},{"$f":"EK167*'Zambia-IO-Data'!BN42","v":0},{"$f":"EX167*'Zambia-IO-Data'!$BN42","v":0},{"$f":"EY167*'Zambia-IO-Data'!$BN42","v":0},0,0,0,null,"TTL_C85: Health and social work",0,0,null,500770.94511299609,4501593.2525586635,{"$f":"FK167*CustomRegion1!C40","v":0},{"$f":"FN167*CustomRegion1!$C40","v":259501.28699716777},{"$f":"FO167*CustomRegion1!$C40","v":2332741.6535980315},{"$f":"FK167*CustomRegion1!D40","v":0},{"$f":"FN167*CustomRegion1!$D40","v":165668.28317065345},{"$f":"FO167*CustomRegion1!$D40","v":1489246.197212405},{"$f":"(FS167*'Default-Data'!$C$58/wind_dollar_index)/CustomRegion1!$E40","v":0},{"$f":"(FT167*'Default-Data'!$C$58/wind_dollar_index)/CustomRegion1!$E40","v":41.952325132714108},{"$f":"(FU167*'Default-Data'!$C$58/wind_dollar_index)/CustomRegion1!$E40","v":377.12312503266259},997.26146895945067,19647.750035335604,{"$f":"FL167*CustomRegion1!C40","v":0},{"$f":"FY167*CustomRegion1!$C40","v":516.7844444514825},{"$f":"FZ167*CustomRegion1!$C40","v":10181.534033724269},{"$f":"FL167*CustomRegion1!D40","v":0},{"$f":"FY167*CustomRegion1!$D40","v":329.92048969110289},{"$f":"FZ167*CustomRegion1!$D40","v":6499.9957531196642},{"$f":"(GD167*'Default-Data'!$C$58/wind_dollar_index)/CustomRegion1!$E40","v":0},{"$f":"(GE167*'Default-Data'!$C$58/wind_dollar_index)/CustomRegion1!$E40","v":8.3546055929172511E-2},{"$f":"(GF167*'Default-Data'!$C$58/wind_dollar_index)/CustomRegion1!$E40","v":1.6459996444536193},null,"C74 Other Business Activities",0,0,null,22441607.79288847,16443693.101393662,{"$f":"GL167*CustomRegion2!C44","v":0},{"$f":"GO167*CustomRegion2!$C44","v":16016891.603814866},{"$f":"GP167*CustomRegion2!$C44","v":11736095.399318146},{"$f":"GL167*CustomRegion2!D44","v":0},{"$f":"GO167*CustomRegion2!$D44","v":6319325.2234612498},{"$f":"GP167*CustomRegion2!$D44","v":4630374.3270756993},{"$f":"(GT167*'Default-Data'!$C$59/wind_dollar_index)/CustomRegion2!$E44","v":0},{"$f":"(GU167*'Default-Data'!$C$59/wind_dollar_index)/CustomRegion2!$E44","v":1646.7579621584982},{"$f":"(GV167*'Default-Data'!$C$59/wind_dollar_index)/CustomRegion2!$E44","v":1206.6329111496098},0,0,{"$f":"GM167*CustomRegion2!C44","v":0},{"$f":"GZ167*CustomRegion2!$C44","v":0},{"$f":"HA167*CustomRegion2!$C44","v":0},{"$f":"GM167*CustomRegion2!D44","v":0},{"$f":"GZ167*CustomRegion2!$D44","v":0},{"$f":"HA167*CustomRegion2!$D44","v":0},{"$f":"(HE167*'Default-Data'!$C$59/wind_dollar_index)/CustomRegion2!$E44","v":0},{"$f":"(HF167*'Default-Data'!$C$59/wind_dollar_index)/CustomRegion2!$E44","v":0},{"$f":"(HG167*'Default-Data'!$C$59/wind_dollar_index)/CustomRegion2!$E44","v":0},null,"HRRS",0,0,null,0,6273543.8038706854,{"$f":"HM167*CustomRegion3!D43","v":0},{"$f":"HP167*CustomRegion3!$D43","v":0},{"$f":"HQ167*CustomRegion3!$D43","v":0},{"$f":"HM167*CustomRegion3!E43","v":0},{"$f":"HP167*CustomRegion3!$E43","v":0},{"$f":"HQ167*CustomRegion3!$E43","v":0},0,0,0,0,12528.127930849578,{"$f":"HN167*CustomRegion3!D43","v":0},{"$f":"IA167*CustomRegion3!$D43","v":0},{"$f":"IB167*CustomRegion3!$D43","v":0},{"$f":"HN167*CustomRegion3!E43","v":0},{"$f":"IA167*CustomRegion3!$E43","v":0},{"$f":"IB167*CustomRegion3!$E43","v":0},0,0,0]
[null,null,null,null,null,null,null,null,null,null,null,null,null,null,null,null,null,null,null,null,null,null,null,null,null,null,null,null,null,167,"TTL_C90T93: Other community, social and personal services",0,0,null,1669528.3642608761,4443243.4744738508,{"$f":"AF168*'Colombia-IO-Data'!AN45","v":0},{"$f":"AI168*'Colombia-IO-Data'!$AN45","v":955105.38795101084},{"$f":"AJ168*'Colombia-IO-Data'!$AN45","v":2541894.9886047132},{"$f":"AK168*'Colombia-IO-Data'!$AO45","v":0},{"$f":"AL168*'Colombia-IO-Data'!$AO45","v":364789.67874062847},{"$f":"AM168*'Colombia-IO-Data'!$AO45","v":970842.66090758098},{"$f":"(Calculations!AN168*'Default-Data'!$F$19/wind_dollar_index)/'Colombia-IO-Data'!$AP45","v":0},{"$f":"(Calculations!AO168*'Default-Data'!$F$19/wind_dollar_index)/'Colombia-IO-Data'!$AP45","v":74.526571014846169},{"$f":"(Calculations!AP168*'Default-Data'!$F$19/wind_dollar_index)/'Colombia-IO-Data'!$AP45","v":198.34326114203373},4063.6758633701288,23257.536750190524,{"$f":"AG168*'Colombia-IO-Data'!AN45","v":0},{"$f":"AT168*'Colombia-IO-Data'!$AN45","v":2324.7515855830129},{"$f":"AU168*'Colombia-IO-Data'!$AN45","v":13305.193931466867},{"$f":"AV168*'Colombia-IO-Data'!$AO45","v":0},{"$f":"AW168*'Colombia-IO-Data'!$AO45","v":887.90765370500844},{"$f":"AX168*'Colombia-IO-Data'!$AO45","v":5081.7401734629393},{"$f":"(AY168*'Default-Data'!$F$19/wind_dollar_index)/'Colombia-IO-Data'!$AP45","v":0},{"$f":"(AZ168*'Default-Data'!$F$19/wind_dollar_index)/'Colombia-IO-Data'!$AP45","v":0.18139963015653646},{"$f":"(BA168*'Default-Data'!$F$19/wind_dollar_index)/'Colombia-IO-Data'!$AP45","v":1.0382000697609155},null,"DOM_C90T93: Other community, social and personal services",0,0,null,211878.56002164705,2594137.9275313918,{"$f":"BG168*'Mexico-IO-Data'!AQ45","v":0},{"$f":"BJ168*'Mexico-IO-Data'!$AQ45","v":135558.69413289963},{"$f":"BK168*'Mexico-IO-Data'!$AQ45","v":1659714.6489047981},{"$f":"BG168*'Mexico-IO-Data'!AR45","v":0},{"$f":"BJ168*'Mexico-IO-Data'!$AR45","v":23792.385255337493},{"$f":"BK168*'Mexico-IO-Data'!$AR45","v":291302.38081193209},{"$f":"(BO168*'Default-Data'!$F$19/wind_dollar_index)/'Mexico-IO-Data'!$AS45","v":0},{"$f":"(BP168*'Default-Data'!$F$19/wind_dollar_index)/'Mexico-IO-Data'!$AS45","v":16.414363258426146},{"$f":"(BQ168*'Default-Data'!$F$19/wind_dollar_index)/'Mexico-IO-Data'!$AS45","v":200.96947176066621},1258.8502250932527,9811.9777379286588,{"$f":"BH168*'Mexico-IO-Data'!AQ45","v":0},{"$f":"BU168*'Mexico-IO-Data'!$AQ45","v":805.40519345191626},{"$f":"BV168*'Mexico-IO-Data'!$AQ45","v":6277.6473885739033},{"$f":"BH168*'Mexico-IO-Data'!AR45","v":0},{"$f":"BX168*'Mexico-IO-Data'!$AR45","v":90.44100850647574},{"$f":"BY168*'Mexico-IO-Data'!$AR45","v":704.93307652673263},{"$f":"(CA168*'Default-Data'!$F$19/wind_dollar_index)/'Mexico-IO-Data'!$AS45","v":6.2395239113348995E-2},{"$f":"(CB168*'Default-Data'!$F$19/wind_dollar_index)/'Mexico-IO-Data'!$AS45","v":0.48633323085561192},{"$f":"(CC168*'Default-Data'!$F$19/wind_dollar_index)/'Mexico-IO-Data'!$AS45","v":4.3046466733431425E-5},null,"TTL_C90T93: Other community, social and personal services",0,0,null,2294943.7227884,4849801.000356148,{"$f":"CH168*'Philippines-IO-Data'!AN45","v":0},{"$f":"CK168*'Philippines-IO-Data'!$AN45","v":1118466.3119756281},{"$f":"CL168*'Philippines-IO-Data'!$AN45","v":2363604.3815895314},{"$f":"CH168*'Philippines-IO-Data'!AO45","v":0},{"$f":"CK168*'Philippines-IO-Data'!$AO45","v":961324.02930223744},{"$f":"CL168*'Philippines-IO-Data'!$AO45","v":2031522.6873239821},{"$f":"(CP168*'Default-Data'!$F$19/wind_dollar_index)/'Philippines-IO-Data'!$AP45","v":0},{"$f":"(CQ168*'Default-Data'!$F$19/wind_dollar_index)/'Philippines-IO-Data'!$AP45","v":554.5685314909058},{"$f":"(CR168*'Default-Data'!$F$19/wind_dollar_index)/'Philippines-IO-Data'!$AP45","v":1171.9446503562992},2414.3564853044327,21028.901727606026,{"$f":"CI168*'Philippines-IO-Data'!AN45","v":0},{"$f":"CV168*'Philippines-IO-Data'!$AN45","v":1176.6634480395364},{"$f":"CW168*'Philippines-IO-Data'!$AN45","v":10248.668813366821},{"$f":"CI168*'Philippines-IO-Data'!AO45","v":0},{"$f":"CV168*'Philippines-IO-Data'!$AO45","v":1011.3445839991284},{"$f":"CW168*'Philippines-IO-Data'!$AO45","v":8808.7513170129878},{"$f":"(DA168*'Default-Data'!$F$19/wind_dollar_index)/'Philippines-IO-Data'!$AP45","v":0},{"$f":"(DB168*'Default-Data'!$F$19/wind_dollar_index)/'Philippines-IO-Data'!$AP45","v":0.58342438520627582},{"$f":"(DC168*'Default-Data'!$F$19/wind_dollar_index)/'Philippines-IO-Data'!$AP45","v":5.0815917768020631},null,"DOM_C90T93: Other community, social and personal services",0,0,null,14515255.754357157,14032061.178479737,{"$f":"DI168*'SouthAfrica-IO-Data'!AR45","v":0},{"$f":"DL168*'SouthAfrica-IO-Data'!$AR45","v":10215658.043883011},{"$f":"DM168*'SouthAfrica-IO-Data'!$AR45","v":9875591.6586013678},{"$f":"DI168*'SouthAfrica-IO-Data'!AS45","v":0},{"$f":"DL168*'SouthAfrica-IO-Data'!$AS45","v":5681044.4278273275},{"$f":"DM168*'SouthAfrica-IO-Data'!$AS45","v":5491929.616535021},{"$f":"(DQ168*'Default-Data'!$F$19/wind_dollar_index)/'SouthAfrica-IO-Data'!$AT45","v":0},{"$f":"(DR168*'Default-Data'!$F$19/wind_dollar_index)/'SouthAfrica-IO-Data'!$AT45","v":337.86299953357451},{"$f":"(DS168*'Default-Data'!$F$19/wind_dollar_index)/'SouthAfrica-IO-Data'!$AT45","v":326.61596596234074},16882.567633646246,64731.053345909895,{"$f":"DJ168*'SouthAfrica-IO-Data'!AR45","v":0},{"$f":"'SouthAfrica-IO-Data'!$AR45*Calculations!DW168","v":11881.742958355151},{"$f":"'SouthAfrica-IO-Data'!$AR45*Calculations!DX168","v":45556.917287087141},{"$f":"DJ168*'SouthAfrica-IO-Data'!AS45","v":0},{"$f":"DW168*'SouthAfrica-IO-Data'!$AS45","v":6607.5733287547309},{"$f":"DX168*'SouthAfrica-IO-Data'!$AS45","v":25334.723420755952},{"$f":"(EB168*'Default-Data'!$F$19/wind_dollar_index)/'SouthAfrica-IO-Data'!$AT45","v":0},{"$f":"(EC168*'Default-Data'!$F$19/wind_dollar_index)/'SouthAfrica-IO-Data'!$AT45","v":0.39296551415016906},{"$f":"(ED168*'Default-Data'!$F$19/wind_dollar_index)/'SouthAfrica-IO-Data'!$AT45","v":1.5067063382504977},null,"HRRM",0,0,null,0,450974.04539926723,{"$f":"EJ168*'Zambia-IO-Data'!BO43","v":0},{"$f":"EM168*'Zambia-IO-Data'!$BO43","v":0},{"$f":"EN168*'Zambia-IO-Data'!$BO43","v":0},{"$f":"EJ168*'Zambia-IO-Data'!BN43","v":0},{"$f":"EM168*'Zambia-IO-Data'!$BN43","v":0},{"$f":"EN168*'Zambia-IO-Data'!$BN43","v":0},0,0,0,0,892.88814422026667,{"$f":"EK168*'Zambia-IO-Data'!BO43","v":0},{"$f":"EX168*'Zambia-IO-Data'!$BO43","v":0},{"$f":"EY168*'Zambia-IO-Data'!$BO43","v":0},{"$f":"EK168*'Zambia-IO-Data'!BN43","v":0},{"$f":"EX168*'Zambia-IO-Data'!$BN43","v":0},{"$f":"EY168*'Zambia-IO-Data'!$BN43","v":0},0,0,0,null,"TTL_C90T93: Other community, social and personal services",0,0,null,3024399.2387204492,6067693.8477647323,{"$f":"FK168*CustomRegion1!C41","v":0},{"$f":"FN168*CustomRegion1!$C41","v":1473974.5593253709},{"$f":"FO168*CustomRegion1!$C41","v":2957157.9872385236},{"$f":"FK168*CustomRegion1!D41","v":0},{"$f":"FN168*CustomRegion1!$D41","v":1266884.0780342894},{"$f":"FO168*CustomRegion1!$D41","v":2541683.1970146787},{"$f":"(FS168*'Default-Data'!$C$58/wind_dollar_index)/CustomRegion1!$E41","v":0},{"$f":"(FT168*'Default-Data'!$C$58/wind_dollar_index)/CustomRegion1!$E41","v":730.8399887128993},{"$f":"(FU168*'Default-Data'!$C$58/wind_dollar_index)/CustomRegion1!$E41","v":1466.246005633119},5084.0709746564498,26483.186135056436,{"$f":"FL168*CustomRegion1!C41","v":0},{"$f":"FY168*CustomRegion1!$C41","v":2477.7784554722325},{"$f":"FZ168*CustomRegion1!$C41","v":12906.874897067686},{"$f":"FL168*CustomRegion1!D41","v":0},{"$f":"FY168*CustomRegion1!$D41","v":2129.6555318911965},{"$f":"FZ168*CustomRegion1!$D41","v":11093.484755774547},{"$f":"(GD168*'Default-Data'!$C$58/wind_dollar_index)/CustomRegion1!$E41","v":0},{"$f":"(GE168*'Default-Data'!$C$58/wind_dollar_index)/CustomRegion1!$E41","v":1.2285555181218395},{"$f":"(GF168*'Default-Data'!$C$58/wind_dollar_index)/CustomRegion1!$E41","v":6.3996086258158433},null,"C75 Public admin. and defence; compulsory social security",0,0,null,128033.84307206063,299886.11225534079,{"$f":"GL168*CustomRegion2!C45","v":0},{"$f":"GO168*CustomRegion2!$C45","v":96041.239149443296},{"$f":"GP168*CustomRegion2!$C45","v":224951.72474438514},{"$f":"GL168*CustomRegion2!D45","v":0},{"$f":"GO168*CustomRegion2!$D45","v":94737.744366351282},{"$f":"GP168*CustomRegion2!$D45","v":221898.62586468834},{"$f":"(GT168*'Default-Data'!$C$59/wind_dollar_index)/CustomRegion2!$E45","v":0},{"$f":"(GU168*'Default-Data'!$C$59/wind_dollar_index)/CustomRegion2!$E45","v":65.359556581841616},{"$f":"(GV168*'Default-Data'!$C$59/wind_dollar_index)/CustomRegion2!$E45","v":153.08783093412143},0,0,{"$f":"GM168*CustomRegion2!C45","v":0},{"$f":"GZ168*CustomRegion2!$C45","v":0},{"$f":"HA168*CustomRegion2!$C45","v":0},{"$f":"GM168*CustomRegion2!D45","v":0},{"$f":"GZ168*CustomRegion2!$D45","v":0},{"$f":"HA168*CustomRegion2!$D45","v":0},{"$f":"(HE168*'Default-Data'!$C$59/wind_dollar_index)/CustomRegion2!$E45","v":0},{"$f":"(HF168*'Default-Data'!$C$59/wind_dollar_index)/CustomRegion2!$E45","v":0},{"$f":"(HG168*'Default-Data'!$C$59/wind_dollar_index)/CustomRegion2!$E45","v":0},null,"HRRM",0,0,null,0,450974.04539926723,{"$f":"HM168*CustomRegion3!D44","v":0},{"$f":"HP168*CustomRegion3!$D44","v":0},{"$f":"HQ168*CustomRegion3!$D44","v":0},{"$f":"HM168*CustomRegion3!E44","v":0},{"$f":"HP168*CustomRegion3!$E44","v":0},{"$f":"HQ168*CustomRegion3!$E44","v":0},0,0,0,0,892.88814422026667,{"$f":"HN168*CustomRegion3!D44","v":0},{"$f":"IA168*CustomRegion3!$D44","v":0},{"$f":"IB168*CustomRegion3!$D44","v":0},{"$f":"HN168*CustomRegion3!E44","v":0},{"$f":"IA168*CustomRegion3!$E44","v":0},{"$f":"IB168*CustomRegion3!$E44","v":0},0,0,0]
[null,null,null,null,null,null,null,null,null,null,null,null,null,null,null,null,null,null,null,null,null,null,null,null,null,null,null,null,null,168,"TTL_C95: Private households with employed persons",0,0,null,0,782802.87741747219,{"$f":"AF169*'Colombia-IO-Data'!AN46","v":0},{"$f":"AI169*'Colombia-IO-Data'!$AN46","v":0},{"$f":"AJ169*'Colombia-IO-Data'!$AN46","v":782802.87741747219},{"$f":"AK169*'Colombia-IO-Data'!$AO46","v":0},{"$f":"AL169*'Colombia-IO-Data'!$AO46","v":0},{"$f":"AM169*'Colombia-IO-Data'!$AO46","v":782802.87741747219},{"$f":"(Calculations!AN169*'Default-Data'!$F$19/wind_dollar_index)/'Colombia-IO-Data'!$AP46","v":0},{"$f":"(Calculations!AO169*'Default-Data'!$F$19/wind_dollar_index)/'Colombia-IO-Data'!$AP46","v":0},{"$f":"(Calculations!AP169*'Default-Data'!$F$19/wind_dollar_index)/'Colombia-IO-Data'!$AP46","v":159.92671293740085},0,4097.4722169254155,{"$f":"AG169*'Colombia-IO-Data'!AN46","v":0},{"$f":"AT169*'Colombia-IO-Data'!$AN46","v":0},{"$f":"AU169*'Colombia-IO-Data'!$AN46","v":4097.4722169254155},{"$f":"AV169*'Colombia-IO-Data'!$AO46","v":0},{"$f":"AW169*'Colombia-IO-Data'!$AO46","v":0},{"$f":"AX169*'Colombia-IO-Data'!$AO46","v":4097.4722169254155},{"$f":"(AY169*'Default-Data'!$F$19/wind_dollar_index)/'Colombia-IO-Data'!$AP46","v":0},{"$f":"(AZ169*'Default-Data'!$F$19/wind_dollar_index)/'Colombia-IO-Data'!$AP46","v":0},{"$f":"(BA169*'Default-Data'!$F$19/wind_dollar_index)/'Colombia-IO-Data'!$AP46","v":0.8371140192625206},null,"DOM_C95: Private households with employed persons",0,0,null,0,710140.97566318768,{"$f":"BG169*'Mexico-IO-Data'!AQ46","v":0},{"$f":"BJ169*'Mexico-IO-Data'!$AQ46","v":0},{"$f":"BK169*'Mexico-IO-Data'!$AQ46","v":710140.97566318768},{"$f":"BG169*'Mexico-IO-Data'!AR46","v":0},{"$f":"BJ169*'Mexico-IO-Data'!$AR46","v":0},{"$f":"BK169*'Mexico-IO-Data'!$AR46","v":710140.97566318768},{"$f":"(BO169*'Default-Data'!$F$19/wind_dollar_index)/'Mexico-IO-Data'!$AS46","v":0},{"$f":"(BP169*'Default-Data'!$F$19/wind_dollar_index)/'Mexico-IO-Data'!$AS46","v":0},{"$f":"(BQ169*'Default-Data'!$F$19/wind_dollar_index)/'Mexico-IO-Data'!$AS46","v":136.5864382168121},0,2686.0127096745578,{"$f":"BH169*'Mexico-IO-Data'!AQ46","v":0},{"$f":"BU169*'Mexico-IO-Data'!$AQ46","v":0},{"$f":"BV169*'Mexico-IO-Data'!$AQ46","v":2686.0127096745578},{"$f":"BH169*'Mexico-IO-Data'!AR46","v":0},{"$f":"BX169*'Mexico-IO-Data'!$AR46","v":0},{"$f":"BY169*'Mexico-IO-Data'!$AR46","v":2686.0127096745578},{"$f":"(CA169*'Default-Data'!$F$19/wind_dollar_index)/'Mexico-IO-Data'!$AS46","v":0},{"$f":"(CB169*'Default-Data'!$F$19/wind_dollar_index)/'Mexico-IO-Data'!$AS46","v":0.51661982844592247},{"$f":"(CC169*'Default-Data'!$F$19/wind_dollar_index)/'Mexico-IO-Data'!$AS46","v":0},null,"TTL_C95: Private households with employed persons",0,0,null,0,0,{"$f":"CH169*'Philippines-IO-Data'!AN46","v":0},{"$f":"CK169*'Philippines-IO-Data'!$AN46","v":0},{"$f":"CL169*'Philippines-IO-Data'!$AN46","v":0},{"$f":"CH169*'Philippines-IO-Data'!AO46","v":0},{"$f":"CK169*'Philippines-IO-Data'!$AO46","v":0},{"$f":"CL169*'Philippines-IO-Data'!$AO46","v":0},{"$f":"(CP169*'Default-Data'!$F$19/wind_dollar_index)/'Philippines-IO-Data'!$AP46","v":0},{"$f":"(CQ169*'Default-Data'!$F$19/wind_dollar_index)/'Philippines-IO-Data'!$AP46","v":0},{"$f":"(CR169*'Default-Data'!$F$19/wind_dollar_index)/'Philippines-IO-Data'!$AP46","v":0},0,0,{"$f":"CI169*'Philippines-IO-Data'!AN46","v":0},{"$f":"CV169*'Philippines-IO-Data'!$AN46","v":0},{"$f":"CW169*'Philippines-IO-Data'!$AN46","v":0},{"$f":"CI169*'Philippines-IO-Data'!AO46","v":0},{"$f":"CV169*'Philippines-IO-Data'!$AO46","v":0},{"$f":"CW169*'Philippines-IO-Data'!$AO46","v":0},{"$f":"(DA169*'Default-Data'!$F$19/wind_dollar_index)/'Philippines-IO-Data'!$AP46","v":0},{"$f":"(DB169*'Default-Data'!$F$19/wind_dollar_index)/'Philippines-IO-Data'!$AP46","v":0},{"$f":"(DC169*'Default-Data'!$F$19/wind_dollar_index)/'Philippines-IO-Data'!$AP46","v":0},null,"DOM_C95: Private households with employed persons",0,0,null,0,0,{"$f":"DI169*'SouthAfrica-IO-Data'!AR46","v":0},{"$f":"DL169*'SouthAfrica-IO-Data'!$AR46","v":0},{"$f":"DM169*'SouthAfrica-IO-Data'!$AR46","v":0},{"$f":"DI169*'SouthAfrica-IO-Data'!AS46","v":0},{"$f":"DL169*'SouthAfrica-IO-Data'!$AS46","v":0},{"$f":"DM169*'SouthAfrica-IO-Data'!$AS46","v":0},{"$f":"(DQ169*'Default-Data'!$F$19/wind_dollar_index)/'SouthAfrica-IO-Data'!$AT46","v":0},{"$f":"(DR169*'Default-Data'!$F$19/wind_dollar_index)/'SouthAfrica-IO-Data'!$AT46","v":0},{"$f":"(DS169*'Default-Data'!$F$19/wind_dollar_index)/'SouthAfrica-IO-Data'!$AT46","v":0},0,0,{"$f":"DJ169*'SouthAfrica-IO-Data'!AR46","v":0},{"$f":"'SouthAfrica-IO-Data'!$AR46*Calculations!DW169","v":0},{"$f":"'SouthAfrica-IO-Data'!$AR46*Calculations!DX169","v":0},{"$f":"DJ169*'SouthAfrica-IO-Data'!AS46","v":0},{"$f":"DW169*'SouthAfrica-IO-Data'!$AS46","v":0},{"$f":"DX169*'SouthAfrica-IO-Data'!$AS46","v":0},{"$f":"(EB169*'Default-Data'!$F$19/wind_dollar_index)/'SouthAfrica-IO-Data'!$AT46","v":0},{"$f":"(EC169*'Default-Data'!$F$19/wind_dollar_index)/'SouthAfrica-IO-Data'!$AT46","v":0},{"$f":"(ED169*'Default-Data'!$F$19/wind_dollar_index)/'SouthAfrica-IO-Data'!$AT46","v":0},null,"HRRN",0,0,null,0,400682.56039136439,{"$f":"EJ169*'Zambia-IO-Data'!BO44","v":0},{"$f":"EM169*'Zambia-IO-Data'!$BO44","v":0},{"$f":"EN169*'Zambia-IO-Data'!$BO44","v":0},{"$f":"EJ169*'Zambia-IO-Data'!BN44","v":0},{"$f":"EM169*'Zambia-IO-Data'!$BN44","v":0},{"$f":"EN169*'Zambia-IO-Data'!$BN44","v":0},0,0,0,0,915.28612193946492,{"$f":"EK169*'Zambia-IO-Data'!BO44","v":0},{"$f":"EX169*'Zambia-IO-Data'!$BO44","v":0},{"$f":"EY169*'Zambia-IO-Data'!$BO44","v":0},{"$f":"EK169*'Zambia-IO-Data'!BN44","v":0},{"$f":"EX169*'Zambia-IO-Data'!$BN44","v":0},{"$f":"EY169*'Zambia-IO-Data'!$BN44","v":0},0,0,0,null,"TTL_C95: Private households with employed persons",0,0,null,0,0,{"$f":"FK169*CustomRegion1!C42","v":0},{"$f":"FN169*CustomRegion1!$C42","v":0},{"$f":"FO169*CustomRegion1!$C42","v":0},{"$f":"FK169*CustomRegion1!D42","v":0},{"$f":"FN169*CustomRegion1!$D42","v":0},{"$f":"FO169*CustomRegion1!$D42","v":0},{"$f":"(FS169*'Default-Data'!$C$58/wind_dollar_index)/CustomRegion1!$E42","v":0},{"$f":"(FT169*'Default-Data'!$C$58/wind_dollar_index)/CustomRegion1!$E42","v":0},{"$f":"(FU169*'Default-Data'!$C$58/wind_dollar_index)/CustomRegion1!$E42","v":0},0,0,{"$f":"FL169*CustomRegion1!C42","v":0},{"$f":"FY169*CustomRegion1!$C42","v":0},{"$f":"FZ169*CustomRegion1!$C42","v":0},{"$f":"FL169*CustomRegion1!D42","v":0},{"$f":"FY169*CustomRegion1!$D42","v":0},{"$f":"FZ169*CustomRegion1!$D42","v":0},{"$f":"(GD169*'Default-Data'!$C$58/wind_dollar_index)/CustomRegion1!$E42","v":0},{"$f":"(GE169*'Default-Data'!$C$58/wind_dollar_index)/CustomRegion1!$E42","v":0},{"$f":"(GF169*'Default-Data'!$C$58/wind_dollar_index)/CustomRegion1!$E42","v":0},null,"C80 Education",0,0,null,94329.142467784841,4865367.5605192278,{"$f":"GL169*CustomRegion2!C46","v":0},{"$f":"GO169*CustomRegion2!$C46","v":84015.586450417439},{"$f":"GP169*CustomRegion2!$C46","v":4333408.5119395759},{"$f":"GL169*CustomRegion2!D46","v":0},{"$f":"GO169*CustomRegion2!$D46","v":63929.29474279438},{"$f":"GP169*CustomRegion2!$D46","v":3297385.1841671304},{"$f":"(GT169*'Default-Data'!$C$59/wind_dollar_index)/CustomRegion2!$E46","v":0},{"$f":"(GU169*'Default-Data'!$C$59/wind_dollar_index)/CustomRegion2!$E46","v":15.461765492076919},{"$f":"(GV169*'Default-Data'!$C$59/wind_dollar_index)/CustomRegion2!$E46","v":797.49661966023007},0,0,{"$f":"GM169*CustomRegion2!C46","v":0},{"$f":"GZ169*CustomRegion2!$C46","v":0},{"$f":"HA169*CustomRegion2!$C46","v":0},{"$f":"GM169*CustomRegion2!D46","v":0},{"$f":"GZ169*CustomRegion2!$D46","v":0},{"$f":"HA169*CustomRegion2!$D46","v":0},{"$f":"(HE169*'Default-Data'!$C$59/wind_dollar_index)/CustomRegion2!$E46","v":0},{"$f":"(HF169*'Default-Data'!$C$59/wind_dollar_index)/CustomRegion2!$E46","v":0},{"$f":"(HG169*'Default-Data'!$C$59/wind_dollar_index)/CustomRegion2!$E46","v":0},null,"HRRN",0,0,null,0,400682.56039136439,{"$f":"HM169*CustomRegion3!D45","v":0},{"$f":"HP169*CustomRegion3!$D45","v":0},{"$f":"HQ169*CustomRegion3!$D45","v":0},{"$f":"HM169*CustomRegion3!E45","v":0},{"$f":"HP169*CustomRegion3!$E45","v":0},{"$f":"HQ169*CustomRegion3!$E45","v":0},0,0,0,0,915.28612193946492,{"$f":"HN169*CustomRegion3!D45","v":0},{"$f":"IA169*CustomRegion3!$D45","v":0},{"$f":"IB169*CustomRegion3!$D45","v":0},{"$f":"HN169*CustomRegion3!E45","v":0},{"$f":"IA169*CustomRegion3!$E45","v":0},{"$f":"IB169*CustomRegion3!$E45","v":0},0,0,0]
[null,null,null,null,null,null,null,null,null,null,null,null,null,null,null,null,null,null,null,null,null,null,null,null,null,null,null,null,null,169,"HH",0,0,null,0,85353373.637408048,{"$f":"AF170*'Colombia-IO-Data'!AN47","v":0},{"$f":"AI170*'Colombia-IO-Data'!$AN47","v":0},{"$f":"AJ170*'Colombia-IO-Data'!$AN47","v":0},{"$f":"AK170*'Colombia-IO-Data'!$AO47","v":0},{"$f":"AL170*'Colombia-IO-Data'!$AO47","v":0},{"$f":"AM170*'Colombia-IO-Data'!$AO47","v":0},0,0,0,0,446770.30091398029,{"$f":"AG170*'Colombia-IO-Data'!AN47","v":0},{"$f":"AT170*'Colombia-IO-Data'!$AN47","v":0},{"$f":"AU170*'Colombia-IO-Data'!$AN47","v":0},{"$f":"AV170*'Colombia-IO-Data'!$AO47","v":0},{"$f":"AW170*'Colombia-IO-Data'!$AO47","v":0},{"$f":"AX170*'Colombia-IO-Data'!$AO47","v":0},0,0,0,null,"L",0,0,null,0,118021423.47076565,{"$f":"BG170*'Mexico-IO-Data'!AQ47","v":0},{"$f":"BJ170*'Mexico-IO-Data'!$AQ47","v":0},{"$f":"BK170*'Mexico-IO-Data'!$AQ47","v":0},{"$f":"BG170*'Mexico-IO-Data'!AR47","v":0},{"$f":"BJ170*'Mexico-IO-Data'!$AR47","v":0},{"$f":"BK170*'Mexico-IO-Data'!$AR47","v":0},0,0,0,0,446400.15760295,{"$f":"BH170*'Mexico-IO-Data'!AQ47","v":0},{"$f":"BU170*'Mexico-IO-Data'!$AQ47","v":0},{"$f":"BV170*'Mexico-IO-Data'!$AQ47","v":0},{"$f":"BH170*'Mexico-IO-Data'!AR47","v":0},{"$f":"BX170*'Mexico-IO-Data'!$AR47","v":0},{"$f":"BY170*'Mexico-IO-Data'!$AR47","v":0},0,0,0,null,"L/HH",0,0,null,0,84100175.703313842,{"$f":"CH170*'Philippines-IO-Data'!AN47","v":0},{"$f":"CK170*'Philippines-IO-Data'!$AN47","v":0},{"$f":"CL170*'Philippines-IO-Data'!$AN47","v":0},{"$f":"CH170*'Philippines-IO-Data'!AO47","v":0},{"$f":"CK170*'Philippines-IO-Data'!$AO47","v":0},{"$f":"CL170*'Philippines-IO-Data'!$AO47","v":0},0,0,0,0,364661.2159982468,{"$f":"CI170*'Philippines-IO-Data'!AN47","v":0},{"$f":"CV170*'Philippines-IO-Data'!$AN47","v":0},{"$f":"CW170*'Philippines-IO-Data'!$AN47","v":0},{"$f":"CI170*'Philippines-IO-Data'!AO47","v":0},{"$f":"CV170*'Philippines-IO-Data'!$AO47","v":0},{"$f":"CW170*'Philippines-IO-Data'!$AO47","v":0},0,0,0,null,"L",0,0,null,0,171873741.12358174,{"$f":"DI170*'SouthAfrica-IO-Data'!AR47","v":0},{"$f":"DL170*'SouthAfrica-IO-Data'!$AR47","v":0},{"$f":"DM170*'SouthAfrica-IO-Data'!$AR47","v":0},{"$f":"DI170*'SouthAfrica-IO-Data'!AS47","v":0},{"$f":"DL170*'SouthAfrica-IO-Data'!$AS47","v":0},{"$f":"DM170*'SouthAfrica-IO-Data'!$AS47","v":0},0,0,0,0,792867.7165756945,{"$f":"DJ170*'SouthAfrica-IO-Data'!AR47","v":0},{"$f":"'SouthAfrica-IO-Data'!$AR47*Calculations!DW170","v":0},{"$f":"'SouthAfrica-IO-Data'!$AR47*Calculations!DX170","v":0},{"$f":"DJ170*'SouthAfrica-IO-Data'!AS47","v":0},{"$f":"DW170*'SouthAfrica-IO-Data'!$AS47","v":0},{"$f":"DX170*'SouthAfrica-IO-Data'!$AS47","v":0},0,0,0,null,"HRS",0,0,null,0,7702955.7479980607,{"$f":"EJ170*'Zambia-IO-Data'!BO45","v":0},{"$f":"EM170*'Zambia-IO-Data'!$BO45","v":0},{"$f":"EN170*'Zambia-IO-Data'!$BO45","v":0},{"$f":"EJ170*'Zambia-IO-Data'!BN45","v":0},{"$f":"EM170*'Zambia-IO-Data'!$BN45","v":0},{"$f":"EN170*'Zambia-IO-Data'!$BN45","v":0},0,0,0,0,15854.72835396942,{"$f":"EK170*'Zambia-IO-Data'!BO45","v":0},{"$f":"EX170*'Zambia-IO-Data'!$BO45","v":0},{"$f":"EY170*'Zambia-IO-Data'!$BO45","v":0},{"$f":"EK170*'Zambia-IO-Data'!BN45","v":0},{"$f":"EX170*'Zambia-IO-Data'!$BN45","v":0},{"$f":"EY170*'Zambia-IO-Data'!$BN45","v":0},0,0,0,null,"L/HH",0,0,null,0,109538557.22442359,{"$f":"FK170*CustomRegion1!AM43","v":0},{"$f":"FN170*CustomRegion1!$AM43","v":0},{"$f":"FO170*CustomRegion1!$AM43","v":0},{"$f":"FK170*CustomRegion1!AN43","v":0},{"$f":"FN170*CustomRegion1!$AN43","v":0},{"$f":"FO170*CustomRegion1!$AN43","v":0},0,0,0,0,478094.32590416685,{"$f":"FL170*CustomRegion1!AM43","v":0},{"$f":"FY170*CustomRegion1!$AM43","v":0},{"$f":"FZ170*CustomRegion1!$AM43","v":0},{"$f":"FL170*CustomRegion1!AN43","v":0},{"$f":"FY170*CustomRegion1!$AN43","v":0},{"$f":"FZ170*CustomRegion1!$AN43","v":0},0,0,0,null,"C85 Health and social work",0,0,null,26818.975520788601,4447381.9500609701,{"$f":"GL170*CustomRegion2!C47","v":0},{"$f":"GO170*CustomRegion2!$C47","v":20121.16800242001},{"$f":"GP170*CustomRegion2!$C47","v":3336686.7171619609},{"$f":"GL170*CustomRegion2!D47","v":0},{"$f":"GO170*CustomRegion2!$D47","v":11604.394350786779},{"$f":"GP170*CustomRegion2!$D47","v":1924352.9245579874},{"$f":"(GT170*'Default-Data'!$C$59/wind_dollar_index)/CustomRegion2!$E47","v":0},{"$f":"(GU170*'Default-Data'!$C$59/wind_dollar_index)/CustomRegion2!$E47","v":5.0818926922822181},{"$f":"(GV170*'Default-Data'!$C$59/wind_dollar_index)/CustomRegion2!$E47","v":842.72860513570095},0,0,{"$f":"GM170*CustomRegion2!C47","v":0},{"$f":"GZ170*CustomRegion2!$C47","v":0},{"$f":"HA170*CustomRegion2!$C47","v":0},{"$f":"GM170*CustomRegion2!D47","v":0},{"$f":"GZ170*CustomRegion2!$D47","v":0},{"$f":"HA170*CustomRegion2!$D47","v":0},{"$f":"(HE170*'Default-Data'!$C$59/wind_dollar_index)/CustomRegion2!$E47","v":0},{"$f":"(HF170*'Default-Data'!$C$59/wind_dollar_index)/CustomRegion2!$E47","v":0},{"$f":"(HG170*'Default-Data'!$C$59/wind_dollar_index)/CustomRegion2!$E47","v":0},null,"HRS",0,0,null,0,7702955.7479980607,{"$f":"HM170*CustomRegion3!D46","v":0},{"$f":"HP170*CustomRegion3!$D46","v":0},{"$f":"HQ170*CustomRegion3!$D46","v":0},{"$f":"HM170*CustomRegion3!E46","v":0},{"$f":"HP170*CustomRegion3!$E46","v":0},{"$f":"HQ170*CustomRegion3!$E46","v":0},0,0,0,0,15854.72835396942,{"$f":"HN170*CustomRegion3!D46","v":0},{"$f":"IA170*CustomRegion3!$D46","v":0},{"$f":"IB170*CustomRegion3!$D46","v":0},{"$f":"HN170*CustomRegion3!E46","v":0},{"$f":"IA170*CustomRegion3!$E46","v":0},{"$f":"IB170*CustomRegion3!$E46","v":0},0,0,0]
[null,null,null,null,null,null,null,null,null,null,null,null,null,null,null,null,null,null,null,null,null,null,null,null,null,null,null,null,null,170,"Total",{"$f":"SUM(AF136:AF170)","v":286778769.66614145},{"$f":"SUM(AG136:AG170)","v":1687657.8688336459},null,{"$f":"SUM(AI136:AI170)","v":190163667.57431394},{"$f":"SUM(AJ136:AJ170)","v":209209777.83958444},135854149.83082765,100505272.79991062,68028628.67716606,30991636.342079081,27786840.844530471,26574896.450798485,7664.6034310006507,5521.4427068650848,4277.5920741735399,1193799.9509344322,1095079.3321492479,892582.31830677716,703502.78911159839,356086.34561976301,157309.97727272726,150357.74364812256,139102.57999313035,15,21.363126141996982,22.390457655304495,null,null,null,null,null,null,null,null,null,null,null,null,null,null,null,null,null,null,null,null,null,null,null,null,null,null,null,null,null,null,null,null,null,null,null,null,null,null,null,null,null,null,null,null,null,null,null,null,null,null,null,null,null,null,null,null,null,null,null,null,null,null,null,null,null,null,null,null,null,null,null,null,null,null,null,null,null,null,null,null,null,null,"HRM",0,0,null,0,895496.20967391622,{"$f":"EJ171*'Zambia-IO-Data'!BO46","v":0},{"$f":"EM171*'Zambia-IO-Data'!$BO46","v":0},{"$f":"EN171*'Zambia-IO-Data'!$BO46","v":0},{"$f":"EJ171*'Zambia-IO-Data'!BN46","v":0},{"$f":"EM171*'Zambia-IO-Data'!$BN46","v":0},{"$f":"EN171*'Zambia-IO-Data'!$BN46","v":0},0,0,0,0,2029.7507146963053,{"$f":"EK171*'Zambia-IO-Data'!BO46","v":0},{"$f":"EX171*'Zambia-IO-Data'!$BO46","v":0},{"$f":"EY171*'Zambia-IO-Data'!$BO46","v":0},{"$f":"EK171*'Zambia-IO-Data'!BN46","v":0},{"$f":"EX171*'Zambia-IO-Data'!$BN46","v":0},{"$f":"EY171*'Zambia-IO-Data'!$BN46","v":0},0,0,0,null,null,null,null,null,null,null,null,null,null,null,null,null,null,null,null,null,null,null,null,null,null,null,null,null,null,null,null,"C90T93 Other community, social and personal services",0,0,null,357364.42829640047,6006959.763056525,{"$f":"GL171*CustomRegion2!C48","v":0},{"$f":"GO171*CustomRegion2!$C48","v":251870.51883588007},{"$f":"GP171*CustomRegion2!$C48","v":4233706.4138136031},{"$f":"GL171*CustomRegion2!D48","v":0},{"$f":"GO171*CustomRegion2!$D48","v":48864.218400909755},{"$f":"GP171*CustomRegion2!$D48","v":821361.53054388275},{"$f":"(GT171*'Default-Data'!$C$59/wind_dollar_index)/CustomRegion2!$E48","v":0},{"$f":"(GU171*'Default-Data'!$C$59/wind_dollar_index)/CustomRegion2!$E48","v":33.711417437294116},{"$f":"(GV171*'Default-Data'!$C$59/wind_dollar_index)/CustomRegion2!$E48","v":566.65720499039264},0,0,{"$f":"GM171*CustomRegion2!C48","v":0},{"$f":"GZ171*CustomRegion2!$C48","v":0},{"$f":"HA171*CustomRegion2!$C48","v":0},{"$f":"GM171*CustomRegion2!D48","v":0},{"$f":"GZ171*CustomRegion2!$D48","v":0},{"$f":"HA171*CustomRegion2!$D48","v":0},{"$f":"(HE171*'Default-Data'!$C$59/wind_dollar_index)/CustomRegion2!$E48","v":0},{"$f":"(HF171*'Default-Data'!$C$59/wind_dollar_index)/CustomRegion2!$E48","v":0},{"$f":"(HG171*'Default-Data'!$C$59/wind_dollar_index)/CustomRegion2!$E48","v":0},null,"HRM",0,0,null,0,895496.20967391622,{"$f":"HM171*CustomRegion3!D47","v":0},{"$f":"HP171*CustomRegion3!$D47","v":0},{"$f":"HQ171*CustomRegion3!$D47","v":0},{"$f":"HM171*CustomRegion3!E47","v":0},{"$f":"HP171*CustomRegion3!$E47","v":0},{"$f":"HQ171*CustomRegion3!$E47","v":0},0,0,0,0,2029.7507146963053,{"$f":"HN171*CustomRegion3!D47","v":0},{"$f":"IA171*CustomRegion3!$D47","v":0},{"$f":"IB171*CustomRegion3!$D47","v":0},{"$f":"HN171*CustomRegion3!E47","v":0},{"$f":"IA171*CustomRegion3!$E47","v":0},{"$f":"IB171*CustomRegion3!$E47","v":0},0,0,0]
[null,null,null,null,null,null,null,null,null,null,null,null,null,null,null,null,null,null,null,null,null,null,null,null,null,null,null,null,null,171,null,null,null,null,null,null,null,null,null,null,null,null,null,null,null,null,null,null,null,null,null,null,null,null,null,null,null,null,null,null,null,null,null,null,null,null,null,null,null,null,null,null,null,null,null,null,null,null,null,null,null,null,null,null,null,null,null,null,null,null,null,null,null,null,null,null,null,null,null,null,null,null,null,null,null,null,null,null,null,null,null,null,null,null,null,null,null,null,null,null,null,null,null,null,null,null,null,null,null,null,null,null,null,null,null,null,null,null,"HRL",0,0,null,0,980866.95570494852,{"$f":"EJ172*'Zambia-IO-Data'!BO47","v":0},{"$f":"EM172*'Zambia-IO-Data'!$BO47","v":0},{"$f":"EN172*'Zambia-IO-Data'!$BO47","v":0},{"$f":"EJ172*'Zambia-IO-Data'!BN47","v":0},{"$f":"EM172*'Zambia-IO-Data'!$BN47","v":0},{"$f":"EN172*'Zambia-IO-Data'!$BN47","v":0},0,0,0,0,2472.451019819709,{"$f":"EK172*'Zambia-IO-Data'!BO47","v":0},{"$f":"EX172*'Zambia-IO-Data'!$BO47","v":0},{"$f":"EY172*'Zambia-IO-Data'!$BO47","v":0},{"$f":"EK172*'Zambia-IO-Data'!BN47","v":0},{"$f":"EX172*'Zambia-IO-Data'!$BN47","v":0},{"$f":"EY172*'Zambia-IO-Data'!$BN47","v":0},0,0,0,null,null,null,null,null,null,null,null,null,null,null,null,null,null,null,null,null,null,null,null,null,null,null,null,null,null,null,null,"C95 Private households with employed persons",0,0,null,0,1327609.8741545358,{"$f":"GL172*CustomRegion2!C49","v":0},{"$f":"GO172*CustomRegion2!$C49","v":0},{"$f":"GP172*CustomRegion2!$C49","v":1327609.8741545358},{"$f":"GL172*CustomRegion2!D49","v":0},{"$f":"GO172*CustomRegion2!$D49","v":0},{"$f":"GP172*CustomRegion2!$D49","v":1327609.8741545358},{"$f":"(GT172*'Default-Data'!$C$59/wind_dollar_index)/CustomRegion2!$E49","v":0},{"$f":"(GU172*'Default-Data'!$C$59/wind_dollar_index)/CustomRegion2!$E49","v":0},{"$f":"(GV172*'Default-Data'!$C$59/wind_dollar_index)/CustomRegion2!$E49","v":255.34860016054438},0,0,{"$f":"GM172*CustomRegion2!C49","v":0},{"$f":"GZ172*CustomRegion2!$C49","v":0},{"$f":"HA172*CustomRegion2!$C49","v":0},{"$f":"GM172*CustomRegion2!D49","v":0},{"$f":"GZ172*CustomRegion2!$D49","v":0},{"$f":"HA172*CustomRegion2!$D49","v":0},{"$f":"(HE172*'Default-Data'!$C$59/wind_dollar_index)/CustomRegion2!$E49","v":0},{"$f":"(HF172*'Default-Data'!$C$59/wind_dollar_index)/CustomRegion2!$E49","v":0},{"$f":"(HG172*'Default-Data'!$C$59/wind_dollar_index)/CustomRegion2!$E49","v":0},null,"HRL",0,0,null,0,980866.95570494852,{"$f":"HM172*CustomRegion3!D48","v":0},{"$f":"HP172*CustomRegion3!$D48","v":0},{"$f":"HQ172*CustomRegion3!$D48","v":0},{"$f":"HM172*CustomRegion3!E48","v":0},{"$f":"HP172*CustomRegion3!$E48","v":0},{"$f":"HQ172*CustomRegion3!$E48","v":0},0,0,0,0,2472.451019819709,{"$f":"HN172*CustomRegion3!D48","v":0},{"$f":"IA172*CustomRegion3!$D48","v":0},{"$f":"IB172*CustomRegion3!$D48","v":0},{"$f":"HN172*CustomRegion3!E48","v":0},{"$f":"IA172*CustomRegion3!$E48","v":0},{"$f":"IB172*CustomRegion3!$E48","v":0},0,0,0]
[null,null,null,null,null,null,null,null,null,null,null,null,null,null,null,null,null,null,null,null,null,null,null,null,null,null,null,null,null,172,null,null,null,null,null,null,null,null,null,null,null,null,null,null,null,null,null,null,null,null,null,null,null,null,null,null,null,null,null,null,null,null,null,null,null,null,null,null,null,null,null,null,null,null,null,null,null,null,null,null,null,null,null,null,null,null,null,null,null,null,null,null,null,null,null,null,null,null,null,null,null,null,null,null,null,null,null,null,null,null,null,null,null,null,null,null,null,null,null,null,null,null,null,null,null,null,null,null,null,null,null,null,null,null,null,null,null,null,"HRN",0,0,null,0,771079.64053265948,{"$f":"EJ173*'Zambia-IO-Data'!BO48","v":0},{"$f":"EM173*'Zambia-IO-Data'!$BO48","v":0},{"$f":"EN173*'Zambia-IO-Data'!$BO48","v":0},{"$f":"EJ173*'Zambia-IO-Data'!BN48","v":0},{"$f":"EM173*'Zambia-IO-Data'!$BN48","v":0},{"$f":"EN173*'Zambia-IO-Data'!$BN48","v":0},0,0,0,0,1757.6192925642329,{"$f":"EK173*'Zambia-IO-Data'!BO48","v":0},{"$f":"EX173*'Zambia-IO-Data'!$BO48","v":0},{"$f":"EY173*'Zambia-IO-Data'!$BO48","v":0},{"$f":"EK173*'Zambia-IO-Data'!BN48","v":0},{"$f":"EX173*'Zambia-IO-Data'!$BN48","v":0},{"$f":"EY173*'Zambia-IO-Data'!$BN48","v":0},0,0,0,null,null,null,null,null,null,null,null,null,null,null,null,null,null,null,null,null,null,null,null,null,null,null,null,null,null,null,null,"L",0,0,null,0,172711664.26790258,{"$f":"GL173*CustomRegion2!C50","v":0},{"$f":"GO173*CustomRegion2!$C50","v":0},{"$f":"GP173*CustomRegion2!$C50","v":0},{"$f":"GL173*CustomRegion2!D50","v":0},{"$f":"GO173*CustomRegion2!$D50","v":0},{"$f":"GP173*CustomRegion2!$D50","v":0},0,0,0,0,0,{"$f":"GM173*CustomRegion2!C50","v":0},{"$f":"GZ173*CustomRegion2!$C50","v":0},{"$f":"HA173*CustomRegion2!$C50","v":0},{"$f":"GM173*CustomRegion2!D50","v":0},{"$f":"GZ173*CustomRegion2!$D50","v":0},{"$f":"HA173*CustomRegion2!$D50","v":0},0,0,0,null,"HRN",0,0,null,0,771079.64053265948,{"$f":"HM173*CustomRegion3!D49","v":0},{"$f":"HP173*CustomRegion3!$D49","v":0},{"$f":"HQ173*CustomRegion3!$D49","v":0},{"$f":"HM173*CustomRegion3!E49","v":0},{"$f":"HP173*CustomRegion3!$E49","v":0},{"$f":"HQ173*CustomRegion3!$E49","v":0},0,0,0,0,1757.6192925642329,{"$f":"HN173*CustomRegion3!D49","v":0},{"$f":"IA173*CustomRegion3!$D49","v":0},{"$f":"IB173*CustomRegion3!$D49","v":0},{"$f":"HN173*CustomRegion3!E49","v":0},{"$f":"IA173*CustomRegion3!$E49","v":0},{"$f":"IB173*CustomRegion3!$E49","v":0},0,0,0]
[null,null,null,null,null,null,null,null,null,null,null,null,null,null,null,null,null,null,null,null,null,null,null,null,null,null,null,null,null,173,null,null,null,null,null,null,null,null,null,null,null,null,null,null,null,null,null,null,null,null,null,null,null,null,null,null,null,null,null,null,null,null,null,null,null,null,null,null,null,null,null,null,null,null,null,null,null,null,null,null,null,null,null,null,null,null,null,null,null,null,null,null,null,null,null,null,null,null,null,null,null,null,null,null,null,null,null,null,null,null,null,null,null,null,null,null,null,null,null,null,null,null,null,null,null,null,null,null,null,null,null,null,null,null,null,null,null,null,"HUSE",0,0,null,0,3126484.5711788083,{"$f":"EJ174*'Zambia-IO-Data'!BO49","v":0},{"$f":"EM174*'Zambia-IO-Data'!$BO49","v":0},{"$f":"EN174*'Zambia-IO-Data'!$BO49","v":0},{"$f":"EJ174*'Zambia-IO-Data'!BN49","v":0},{"$f":"EM174*'Zambia-IO-Data'!$BN49","v":0},{"$f":"EN174*'Zambia-IO-Data'!$BN49","v":0},0,0,0,0,7452.6136470321781,{"$f":"EK174*'Zambia-IO-Data'!BO49","v":0},{"$f":"EX174*'Zambia-IO-Data'!$BO49","v":0},{"$f":"EY174*'Zambia-IO-Data'!$BO49","v":0},{"$f":"EK174*'Zambia-IO-Data'!BN49","v":0},{"$f":"EX174*'Zambia-IO-Data'!$BN49","v":0},{"$f":"EY174*'Zambia-IO-Data'!$BN49","v":0},0,0,0,null,null,null,null,null,null,null,null,null,null,null,null,null,null,null,null,null,null,null,null,null,null,null,null,null,null,null,null,"HH",0,0,null,0,172711664.26790258,{"$f":"GL174*CustomRegion2!C51","v":0},{"$f":"GO174*CustomRegion2!$C51","v":0},{"$f":"GP174*CustomRegion2!$C51","v":0},{"$f":"GL174*CustomRegion2!D51","v":0},{"$f":"GO174*CustomRegion2!$D51","v":0},{"$f":"GP174*CustomRegion2!$D51","v":0},0,0,0,0,0,{"$f":"GM174*CustomRegion2!C51","v":0},{"$f":"GZ174*CustomRegion2!$C51","v":0},{"$f":"HA174*CustomRegion2!$C51","v":0},{"$f":"GM174*CustomRegion2!D51","v":0},{"$f":"GZ174*CustomRegion2!$D51","v":0},{"$f":"HA174*CustomRegion2!$D51","v":0},0,0,0,null,"HUSE",0,0,null,0,3126484.5711788083,{"$f":"HM174*CustomRegion3!D50","v":0},{"$f":"HP174*CustomRegion3!$D50","v":0},{"$f":"HQ174*CustomRegion3!$D50","v":0},{"$f":"HM174*CustomRegion3!E50","v":0},{"$f":"HP174*CustomRegion3!$E50","v":0},{"$f":"HQ174*CustomRegion3!$E50","v":0},0,0,0,0,7452.6136470321781,{"$f":"HN174*CustomRegion3!D50","v":0},{"$f":"IA174*CustomRegion3!$D50","v":0},{"$f":"IB174*CustomRegion3!$D50","v":0},{"$f":"HN174*CustomRegion3!E50","v":0},{"$f":"IA174*CustomRegion3!$E50","v":0},{"$f":"IB174*CustomRegion3!$E50","v":0},0,0,0]
[null,null,null,null,null,null,null,null,null,null,null,null,null,null,null,null,null,null,null,null,null,null,null,null,null,null,null,null,null,174,null,null,null,null,null,null,null,null,null,null,null,null,null,null,null,null,null,null,null,null,null,null,null,null,null,null,null,null,null,null,null,null,null,null,null,null,null,null,null,null,null,null,null,null,null,null,null,null,null,null,null,null,null,null,null,null,null,null,null,null,null,null,null,null,null,null,null,null,null,null,null,null,null,null,null,null,null,null,null,null,null,null,null,null,null,null,null,null,null,null,null,null,null,null,null,null,null,null,null,null,null,null,null,null,null,null,null,null,"HUPR",0,0,null,0,7463603.69145892,{"$f":"EJ175*'Zambia-IO-Data'!BO50","v":0},{"$f":"EM175*'Zambia-IO-Data'!$BO50","v":0},{"$f":"EN175*'Zambia-IO-Data'!$BO50","v":0},{"$f":"EJ175*'Zambia-IO-Data'!BN50","v":0},{"$f":"EM175*'Zambia-IO-Data'!$BN50","v":0},{"$f":"EN175*'Zambia-IO-Data'!$BN50","v":0},0,0,0,0,18235.519481293803,{"$f":"EK175*'Zambia-IO-Data'!BO50","v":0},{"$f":"EX175*'Zambia-IO-Data'!$BO50","v":0},{"$f":"EY175*'Zambia-IO-Data'!$BO50","v":0},{"$f":"EK175*'Zambia-IO-Data'!BN50","v":0},{"$f":"EX175*'Zambia-IO-Data'!$BN50","v":0},{"$f":"EY175*'Zambia-IO-Data'!$BN50","v":0},0,0,0,null,null,null,null,null,null,null,null,null,null,null,null,null,null,null,null,null,null,null,null,null,null,null,null,null,null,null,null,null,null,null,null,null,null,null,null,null,null,null,null,null,null,null,null,null,null,null,null,null,null,null,null,null,null,null,"HUPR",0,0,null,0,7463603.69145892,{"$f":"HM175*CustomRegion3!D51","v":0},{"$f":"HP175*CustomRegion3!$D51","v":0},{"$f":"HQ175*CustomRegion3!$D51","v":0},{"$f":"HM175*CustomRegion3!E51","v":0},{"$f":"HP175*CustomRegion3!$E51","v":0},{"$f":"HQ175*CustomRegion3!$E51","v":0},0,0,0,0,18235.519481293803,{"$f":"HN175*CustomRegion3!D51","v":0},{"$f":"IA175*CustomRegion3!$D51","v":0},{"$f":"IB175*CustomRegion3!$D51","v":0},{"$f":"HN175*CustomRegion3!E51","v":0},{"$f":"IA175*CustomRegion3!$E51","v":0},{"$f":"IB175*CustomRegion3!$E51","v":0},0,0,0]
[null,null,null,null,null,null,null,null,null,null,null,null,null,null,null,null,null,null,null,null,null,null,null,null,null,null,null,null,null,175,null,null,null,null,null,null,null,null,null,null,null,null,null,null,null,null,null,null,null,null,null,null,null,null,null,null,null,null,null,null,null,null,null,null,null,null,null,null,null,null,null,null,null,null,null,null,null,null,null,null,null,null,null,null,null,null,null,null,null,null,null,null,null,null,null,null,null,null,null,null,null,null,null,null,null,null,null,null,null,null,null,null,null,null,null,null,null,null,null,null,null,null,null,null,null,null,null,null,null,null,null,null,null,null,null,null,null,null,"HUPU",0,0,null,0,12594512.632355992,{"$f":"EJ176*'Zambia-IO-Data'!BO51","v":0},{"$f":"EM176*'Zambia-IO-Data'!$BO51","v":0},{"$f":"EN176*'Zambia-IO-Data'!$BO51","v":0},{"$f":"EJ176*'Zambia-IO-Data'!BN51","v":0},{"$f":"EM176*'Zambia-IO-Data'!$BN51","v":0},{"$f":"EN176*'Zambia-IO-Data'!$BN51","v":0},0,0,0,0,29845.326700091824,{"$f":"EK176*'Zambia-IO-Data'!BO51","v":0},{"$f":"EX176*'Zambia-IO-Data'!$BO51","v":0},{"$f":"EY176*'Zambia-IO-Data'!$BO51","v":0},{"$f":"EK176*'Zambia-IO-Data'!BN51","v":0},{"$f":"EX176*'Zambia-IO-Data'!$BN51","v":0},{"$f":"EY176*'Zambia-IO-Data'!$BN51","v":0},0,0,0,null,null,null,null,null,null,null,null,null,null,null,null,null,null,null,null,null,null,null,null,null,null,null,null,null,null,null,null,null,null,null,null,null,null,null,null,null,null,null,null,null,null,null,null,null,null,null,null,null,null,null,null,null,null,null,"HUPU",0,0,null,0,12594512.632355992,{"$f":"HM176*CustomRegion3!D52","v":0},{"$f":"HP176*CustomRegion3!$D52","v":0},{"$f":"HQ176*CustomRegion3!$D52","v":0},{"$f":"HM176*CustomRegion3!E52","v":0},{"$f":"HP176*CustomRegion3!$E52","v":0},{"$f":"HQ176*CustomRegion3!$E52","v":0},0,0,0,0,29845.326700091824,{"$f":"HN176*CustomRegion3!D52","v":0},{"$f":"IA176*CustomRegion3!$D52","v":0},{"$f":"IB176*CustomRegion3!$D52","v":0},{"$f":"HN176*CustomRegion3!E52","v":0},{"$f":"IA176*CustomRegion3!$E52","v":0},{"$f":"IB176*CustomRegion3!$E52","v":0},0,0,0]
[null,null,null,null,null,null,null,null,null,null,null,null,null,null,null,null,null,null,null,null,null,null,null,null,null,null,null,null,null,176,null,null,null,null,null,null,null,null,null,null,null,null,null,null,null,null,null,null,null,null,null,null,null,null,null,null,null,null,null,null,null,null,null,null,null,null,null,null,null,null,null,null,null,null,null,null,null,null,null,null,null,null,null,null,null,null,null,null,null,null,null,null,null,null,null,null,null,null,null,null,null,null,null,null,null,null,null,null,null,null,null,null,null,null,null,null,null,null,null,null,null,null,null,null,null,null,null,null,null,null,null,null,null,null,null,null,null,null,"HUEM",0,0,null,0,796556.59651998302,{"$f":"EJ177*'Zambia-IO-Data'!BO52","v":0},{"$f":"EM177*'Zambia-IO-Data'!$BO52","v":0},{"$f":"EN177*'Zambia-IO-Data'!$BO52","v":0},{"$f":"EJ177*'Zambia-IO-Data'!BN52","v":0},{"$f":"EM177*'Zambia-IO-Data'!$BN52","v":0},{"$f":"EN177*'Zambia-IO-Data'!$BN52","v":0},0,0,0,0,2189.4752441933101,{"$f":"EK177*'Zambia-IO-Data'!BO52","v":0},{"$f":"EX177*'Zambia-IO-Data'!$BO52","v":0},{"$f":"EY177*'Zambia-IO-Data'!$BO52","v":0},{"$f":"EK177*'Zambia-IO-Data'!BN52","v":0},{"$f":"EX177*'Zambia-IO-Data'!$BN52","v":0},{"$f":"EY177*'Zambia-IO-Data'!$BN52","v":0},0,0,0,null,null,null,null,null,null,null,null,null,null,null,null,null,null,null,null,null,null,null,null,null,null,null,null,null,null,null,null,null,null,null,null,null,null,null,null,null,null,null,null,null,null,null,null,null,null,null,null,null,null,null,null,null,null,null,"HUEM",0,0,null,0,796556.59651998302,{"$f":"HM177*CustomRegion3!D53","v":0},{"$f":"HP177*CustomRegion3!$D53","v":0},{"$f":"HQ177*CustomRegion3!$D53","v":0},{"$f":"HM177*CustomRegion3!E53","v":0},{"$f":"HP177*CustomRegion3!$E53","v":0},{"$f":"HQ177*CustomRegion3!$E53","v":0},0,0,0,0,2189.4752441933101,{"$f":"HN177*CustomRegion3!D53","v":0},{"$f":"IA177*CustomRegion3!$D53","v":0},{"$f":"IB177*CustomRegion3!$D53","v":0},{"$f":"HN177*CustomRegion3!E53","v":0},{"$f":"IA177*CustomRegion3!$E53","v":0},{"$f":"IB177*CustomRegion3!$E53","v":0},0,0,0]
[null,null,null,null,null,null,null,null,null,null,null,null,null,null,null,null,null,null,null,null,null,null,null,null,null,null,null,null,null,177]
[null,null,null,null,null,null,null,null,null,null,null,null,null,null,null,null,null,null,null,null,null,null,null,null,null,null,null,null,null,178,"Agriculture",{"$f":"AF136","v":0},{"$f":"AG136","v":0},null,{"$f":"AI136","v":1891625.8091335304},7533247.688407273,0,1309574.3029049968,5215274.3647939069,0,345737.67056398891,1376872.4739299803,0,70.634243673640555,281.29519607293929,2750.706792689045,39431.731789617275,0,1904.316864962753,27298.624506703189,0,502.75427323783072,7207.0464620542216,0,0.10271275266567323,1.4724003755146773,null,"Agriculture",{"$f":"BG136","v":0},{"$f":"BH136","v":0},null,{"$f":"BJ136","v":880497.09880324407},6171298.2599577755,0,536993.57043537276,3763723.3459832943,0,88461.49808092606,620015.99996420764,0,84.142723425053973,589.74622786029181,2404.2670612710513,23342.105482589388,0,1466.303472512187,14235.777246298161,0,147.31610359192948,1430.2354695609315,0.14012399099609005,1.3604100106678616,1.332830041925436E-4,null,"Agriculture",{"$f":"CH136","v":0},{"$f":"CI136","v":0},null,{"$f":"CK136","v":1893976.0666808353},15477700.503635732,0,1336686.4767796346,10923492.286316002,0,384759.51341640181,3144280.7643393655,0,221.96003826864168,1813.8724435510442,2328.7223389454593,67111.834658034917,0,1643.5116121071806,47364.63326935123,0,473.07782277565065,13633.708103165236,0,0.27290909772434724,7.8650124735110589,null,"Agriculture",{"$f":"DI136","v":0},{"$f":"DJ136","v":0},null,{"$f":"DL136","v":1987598.7588737912},9508704.5347798392,0,802689.51909957873,3840079.6117457547,0,246232.13082203595,1177978.4871080548,0,17.109727776520518,81.85321376917797,2687.8575496417593,43864.436782480909,0,1085.4882426836502,17714.603367157371,0,332.98314805217285,5434.1117330837478,0,2.3137723733785129E-2,0.37759561333389713,null,"Agriculture",{"$f":"SUM(EJ136:EJ148)","v":0},{"$f":"SUM(EK136:EK148)","v":0},{"$f":"SUM(EL136:EL148)","v":0},3322591.912192313,18956733.992696647,0,931752.46693189628,7077206.080378145,0,588051.92132024595,5669304.0873200148,0,5694.1820880208852,54896.59775804184,4582.0403250544978,40977.012271354033,0,1395.6578840288926,15239.646868782524,0,919.9389231526543,12202.415896804316,0,8.907886443986893,118.15755635007091,null,"Agriculture",{"$f":"FK136","v":0},{"$f":"FL136","v":0},null,{"$f":"FN136","v":3921847.4788455684},20967405.395841002,0,2767870.5033227764,14797888.81117893,0,796719.74435157841,4259509.3146273149,0,459.61162435059964,2457.225403175727,6808.5057803283371,91514.785320258685,0,4805.149211621213,64587.181493458207,0,1383.141749896959,18591.145310477063,0,0.79790670544339537,10.724858465307177,null,"Agriculture",{"$f":"GL136","v":0},{"$f":"GM136","v":0},0,5715916.9907860793,14636032.379512403,0,3522042.0763868061,9018451.7996146008,0,632504.22662034084,1619574.3143079909,0,601.62476738756868,1540.5051525407321,0,0,0,0,0,0,0,0,0,0,{"$f":"HJ136","v":0},null,"Agriculture",{"$f":"SUM(HM136:HM148)","v":0},{"$f":"SUM(HN136:HN148)","v":0},{"$f":"SUM(HO136:HO148)","v":0},3322591.912192313,18956733.992696647,0,931752.46693189628,7077206.080378145,0,588051.92132024595,5669304.0873200148,0,5694.1820880208852,54896.59775804184,4582.0403250544978,40977.012271354033,0,1395.6578840288926,15239.646868782524,0,919.9389231526543,12202.415896804316,0,0,0]
[null,null,null,null,null,null,null,null,null,null,null,null,null,null,null,null,null,null,null,null,null,null,null,null,null,null,null,null,null,179,"Mining and Extraction",{"$f":"AF137","v":0},{"$f":"AG137","v":0},null,{"$f":"AI137","v":21525162.959824502},1902957.6938946806,0,17626595.467939164,1558300.1868784651,0,1461997.5065688919,129249.63257062349,0,139.40605026287398,12.324358074238127,182850.99834707959,9960.7659931473027,0,149733.62035810866,8156.7044597856211,0,12419.311489349229,676.53913109405323,0,1.1842203245460348,6.4510129251478601E-2,null,"Mining and Extraction",{"$f":"BG137","v":0},{"$f":"BH137","v":0},null,{"$f":"BJ137","v":17779329.192294799},3408398.1623826139,0,15306710.704382874,2934383.1858150694,0,949963.38113315939,182113.36364637734,0,49.471306592355035,9.4839298297668844,244584.86364510583,12891.807538976922,0,210569.79765631707,11098.909656345259,0,11250.907994482193,593.02337169180589,0.58591428879445095,3.0882917826161028E-2,3.0512697640214497E-5,null,"Mining and Extraction",{"$f":"CH137","v":0},{"$f":"CI137","v":0},null,{"$f":"CK137","v":6478097.1329492442},864884.10742923059,0,3729351.8002801193,497901.93584306916,0,974861.70226329821,130152.78652437874,0,303.25274018763264,40.486962473692188,37853.897619054878,3750.1668418068584,0,21791.970440704365,2158.9196913563464,0,5696.4744913313998,564.34689942829152,0,1.7720169895838505,0.17555284331171825,null,"Mining and Extraction",{"$f":"DI137","v":0},{"$f":"DJ137","v":0},null,{"$f":"DL137","v":23699519.528612323},5025695.0368152522,0,14115304.919406913,2993276.6270199125,0,4782438.5133013232,1014158.8512440149,0,302.9987661870959,64.253597780713989,229304.52596292098,23183.944923735427,0,136572.52837801338,13808.231489173273,0,46272.448473709104,4678.3982670901478,0,2.9316623218458195,0.29640713596579549,null,"Mining and Extraction",{"$f":"EJ149","v":0},{"$f":"EK149","v":0},{"$f":"EL149","v":0},34598741.110993572,496286.6318885386,0,8452894.980806455,121248.88493122111,0,308285.35113656201,4422.0654758888186,0,271.72028367145072,3.897573728665356,45835.475739827387,1147.3885059308304,0,11198.166476090515,280.32102415818838,0,408.40808882708717,10.223582046126749,0,0.35996767715587391,9.0109848018090008E-3,null,"Mining and Extraction",{"$f":"FK137","v":0},{"$f":"FL137","v":0},null,{"$f":"FN137","v":43782972.419929013},8138611.7749419585,0,25205257.603406854,4685287.33851243,0,6588716.1225702865,1224745.5952189413,0,2049.5688915146502,380.9847662705335,271804.84979621187,35521.958741565642,0,156474.32959235192,20449.505165419363,0,40902.773317189043,5345.5507776191671,0,12.723731028630585,1.6628542462603748,null,"Mining and Extraction",{"$f":"GL137","v":0},{"$f":"GM137","v":0},0,16300277.386528766,8127611.5320393275,0,13246513.159132505,6604949.753827678,0,1045450.0328288085,521280.1930605552,0,54.443971344840612,27.146743509901579,0,0,0,0,0,0,0,0,0,0,{"$f":"HJ137","v":0},null,"Mining and Extraction",{"$f":"HM149","v":0},{"$f":"HN149","v":0},{"$f":"HO149","v":0},34598741.110993572,496286.6318885386,0,8452894.980806455,121248.88493122111,0,308285.35113656201,4422.0654758888186,0,271.72028367145072,3.897573728665356,45835.475739827387,1147.3885059308304,0,11198.166476090515,280.32102415818838,0,408.40808882708717,10.223582046126749,0,0.35996767715587391,9.0109848018090008E-3]
[null,null,null,null,null,null,null,null,null,null,null,null,null,null,null,null,null,null,null,null,null,null,null,null,null,null,null,null,null,180,"Utilities",{"$f":"AF154","v":0},{"$f":"AG154","v":1687657.8688336459},null,{"$f":"AI154","v":5994777.9422268318},5549570.5932588568,0,3170567.264978393,2935102.3552904567,0,558785.28418706753,517286.613608649,0,53.281930416114534,49.324901946158761,511697.74480311968,29048.451376114506,892582.31830677716,270630.89490073582,15363.382917435227,157309.97727272726,47696.373827898788,2707.6644562695583,15,4.5479989243029291,0.25818430304410683,null,"Utilities",{"$f":"BG154","v":0},{"$f":"BH154","v":1687657.8688336459},null,{"$f":"BJ154","v":3884605.2562068165},3253496.1438983972,0,1737691.6995289954,1455379.0850868484,0,419712.95552740933,351524.64466518874,0,22.495921128132203,18.841140300388847,29757.200502106221,12305.911492048763,754936.18447621423,13311.221321937339,5504.775606402859,182343.33357694114,1438.2135826498873,594.76458659137529,7.7085872367329E-2,3.1878399400258606E-2,4.1316754272920041E-6,null,"Utilities",{"$f":"CH154","v":0},{"$f":"CI154","v":1687657.8688336459},null,{"$f":"CK154","v":5378627.6659187367},4591003.2178134965,0,3223175.0678553088,2751186.3670846494,0,667524.13618391752,569774.60563168896,0,169.03772441629616,144.28452477654955,118873.67189118988,19906.745759553742,1011339.1563357598,71235.764820067488,11929.237456032046,209449.77623297551,14753.028109192015,2470.562026737573,53.039151147891673,3.7359222905168021,0.62562259608537829,null,"Utilities",{"$f":"DI154","v":0},{"$f":"DJ154","v":1687657.8688336459},null,{"$f":"DL154","v":7668313.6444811104},8041638.7811925178,0,4169465.9175338186,4372452.7156543061,0,1362439.9890702856,1428769.1872176274,0,49.403270584973356,51.808425564308287,230042.85902396776,37096.741691251518,917624.43358376634,125080.41594813686,20170.484320832096,299848.52928165306,40872.035869304869,6591.0298779637287,10.872771017765253,1.4820559170374128,0.23899653203579591,null,"Utilities",{"$f":"EJ155","v":0},{"$f":"EK155","v":1687657.8688336459},{"$f":"EL155","v":0},19723576.967209395,2128728.8180879392,0,5257503.4254034618,567432.52359644801,0,260262.11243099987,28089.603620549547,0,440.8451827146672,47.579597063966581,1753817.1585186117,4966.8410341436975,449860.94768982381,467496.32350016705,1323.9578091670867,22269.459679330634,23142.463420942509,65.539863372871082,37.721141696696982,39.199879767277679,0.11101474883851067,null,"Utilities",{"$f":"FK154","v":0},{"$f":"FL154","v":1687657.8688336459},null,{"$f":"FN154","v":8467882.3171519432},6270202.0921009984,0,5074429.5492175361,3757456.4199215714,0,1050921.5696190789,778174.56332764647,0,266.12579386862217,197.05782945248882,129111.91232548375,27367.057942566462,1011339.1563357598,77371.092148193173,16399.874525608131,209449.77623297551,16023.663116193917,3396.437315927587,53.039151147891673,4.0576863114781476,0.8600828103222441,null,"Utilities",{"$f":"GL156","v":0},{"$f":"GM156","v":0},0,8783776.4974551909,6536602.4656734671,0,3450431.9664071384,2567699.9074133723,0,1299180.3830973282,966808.0350142034,0,69.633922528430162,51.819313688790011,0,0,0,0,0,0,0,0,0,0,{"$f":"HJ156","v":0},null,"Utilities",{"$f":"HM155","v":0},{"$f":"HN155","v":1687657.8688336459},{"$f":"HO155","v":0},19723576.967209395,2128728.8180879392,0,5257503.4254034618,567432.52359644801,0,260262.11243099987,28089.603620549547,0,440.8451827146672,47.579597063966581,1753817.1585186117,4966.8410341436975,449860.94768982381,467496.32350016705,1323.9578091670867,22269.459679330634,23142.463420942509,65.539863372871082,37.721141696696982,39.199879767277679,0.11101474883851067]
[null,null,null,null,null,null,null,null,null,null,null,null,null,null,null,null,null,null,null,null,null,null,null,null,null,null,null,null,null,181,"Construction",{"$f":"AF155","v":211397058.82352942},{"$f":"AG155","v":0},null,{"$f":"AI155","v":3481097.853843838},1112382.3589184582,104971897.24655029,1728583.397765842,552367.60307408182,20701618.640541378,340895.75617435743,108932.99795632075,5679.5357422613997,93.525519197123884,29.886013559973108,64887.787067113961,5822.6099338102867,0,32220.855647055876,2891.2909908973907,0,6354.3089471902003,570.19454770650805,0,1.7433189843552424,0.15643415956854836,null,"Construction",{"$f":"BG155","v":211397058.82352942},{"$f":"BH155","v":0},null,{"$f":"BJ155","v":16392706.046231627},217234.37783104181,106320573.67986271,8244589.2137772264,109256.40972736974,46761525.722212471,3626105.0636349157,48052.754391322836,15857.594271593523,1229.671230722467,16.295470924041489,6748.0010415012985,821.65981097975055,0,3393.8567826700223,413.24767222036274,0,750.72908830208041,91.411355303236917,0.25458444963703886,3.0999078020387257E-2,8.6333729446372867E-5,null,"Construction",{"$f":"CH155","v":211397058.82352942},{"$f":"CI155","v":0},null,{"$f":"CK155","v":2196001.3586161733},1373369.7567101121,116337833.50764214,1208522.208695973,755804.56506705366,35749981.88230747,371372.28503064025,232254.621674191,11120.8389275096,115.52373306266882,72.248043266466908,6014.1637216152058,5954.9778738142113,0,3309.7659051020551,3277.1942442388417,0,1017.0730154976184,1007.0639217176483,0,0.31638352209803816,0.31326996752047703,null,"Construction",{"$f":"DI155","v":211397058.82352942},{"$f":"DJ155","v":0},null,{"$f":"DL155","v":16789964.412352175},2742118.8787598312,62943611.981090762,4999222.841740828,816467.68252705445,28388151.517406318,2254695.767113775,368234.48084940942,2676.8780589343241,212.60791231363683,34.722894927641129,9094.8971775261361,12649.620120958361,0,2708.0115595553625,3766.4326317163477,0,1221.3382747504227,1698.6959734911329,0,0.11516683741142768,0.16017957271541119,null,"Construction",{"$f":"EJ157","v":211397058.82352942},{"$f":"EK157","v":0},{"$f":"EL157","v":0},248847844.57343119,1431118.95227772,12824578.399658779,15096561.466269828,86820.021550272984,5640905.6550481748,6640240.0369847352,38187.886983276563,19623.601990701773,23100.08987508911,132.84815255775101,125546.42844928142,3316.5440929433971,0,7616.3785031135531,201.20090588102195,0,3350.0729014486519,88.498451365486602,0,11.654245129774713,0.30786871693831852,null,"Construction",{"$f":"FK155","v":211397058.82352942},{"$f":"FL155","v":0},null,{"$f":"FN155","v":3178294.7655851245},1861564.7120300531,116337833.50764214,1749106.2994661552,1024472.1792115533,35749981.88230747,537490.82848476234,314814.71453854453,11120.8389275096,167.19865616354056,97.930223962594582,11560.854569078539,8125.0250932329727,0,6362.2681486135343,4471.4331495549732,0,1955.090310568442,1374.0470255021439,0,0.60817497765856265,0.42742834666988488,null,"Construction",{"$f":"GL157","v":0},{"$f":"GM157","v":0},0,825935.09249201592,510707.46539460088,0,402472.01664009131,248863.94267416553,0,166086.72272501461,102697.81483998154,0,56.322710223735641,34.826500101515741,0,0,0,0,0,0,0,0,0,0,{"$f":"HJ157","v":0},null,"Construction",{"$f":"HM157","v":211397058.82352942},{"$f":"HN157","v":0},{"$f":"HO157","v":0},248847844.57343119,1431118.95227772,12824578.399658779,15096561.466269828,86820.021550272984,5640905.6550481748,6640240.0369847352,38187.886983276563,19623.601990701773,23100.08987508911,132.84815255775101,125546.42844928142,3316.5440929433971,0,7616.3785031135531,201.20090588102195,0,3350.0729014486519,88.498451365486602,0,11.654245129774713,0.30786871693831852]
[null,null,null,null,null,null,null,null,null,null,null,null,null,null,null,null,null,null,null,null,null,null,null,null,null,null,null,null,null,182,"Manufacturing",{"$f":"SUM(AF138:AF153)","v":32478657.101386733},{"$f":"SUM(AG138:AG153)","v":0},null,{"$f":"SUM(AI138:AI153)","v":83071139.958524168},28320591.758738853,9173960.5172172822,30779326.644746374,8478685.184124615,3890294.357763025,9376803.6507216338,2746186.7991607194,914.54390783089286,2204.3315659602122,645.58312969978169,84955.69805504159,148240.17801410452,0,29824.348432158036,44380.492177828492,0,8857.9588665944884,14374.530851459065,0,2.0823597322642744,3.3792146324085159,null,"Manufacturing",{"$f":"SUM(BG138:BG153)","v":32478657.101386733},{"$f":"SUM(BH138:BH153)","v":0},null,{"$f":"SUM(BJ138:BJ153)","v":63156026.069929808},35540011.418678552,9656612.838046832,23178106.308288034,12035809.022371994,3394846.0779610281,5306224.4869891033,2677856.1632589395,576.22582386033412,1024.487536067244,513.43068011086109,569496.2683223699,134425.31221832446,0,133142.04163682883,45523.828525900892,0,8618.6652123934637,3689.638036063086,0.86449385372513765,0.7512412596726179,1.2271629302139738E-4,null,"Manufacturing",{"$f":"SUM(CH138:CH153)","v":32478657.101386733},{"$f":"SUM(CI138:CI153)","v":0},null,{"$f":"SUM(CK138:CK153)","v":92349871.41121383},31311459.189547978,8363094.4935890883,22707206.513436511,8806435.0617387332,2730036.1199833807,5547884.3241235726,1976537.6694728774,849.23936623429859,1725.7946636210011,614.84666282422029,409138.85708017153,135767.54967814076,0,75361.525915289676,38185.001295980655,0,12941.618455234726,8570.3344135572279,0,4.0257825801354405,2.6659959963568709,null,"Manufacturing",{"$f":"SUM(DI138:DI153)","v":32478657.101386733},{"$f":"SUM(DJ138:DJ153)","v":0},null,{"$f":"SUM(DL138:DL153)","v":79707755.133191451},54699484.445803791,6819009.1279050056,20530692.005517565,12832592.551102526,6728936.5614074022,13585680.268466381,7441694.2466624267,524.19776871995009,1058.351972601032,579.72303409272001,80675.586612126383,252333.22465022944,0,18921.119863452896,59197.805826680335,0,13307.231156196951,34329.148165590101,0,1.0366602235376174,2.674310079495692,null,"Manufacturing",{"$f":"SUM(EJ150:EJ154)+EJ156","v":32478657.101386733},{"$f":"SUM(EK150:EK154)+EK156","v":0},{"$f":"SUM(EL150:EL154)+EL156","v":0},225006084.22349042,24516381.941248696,4092116.0952242943,27660176.359433077,2891451.7166265221,917685.68954727438,4356813.9402729329,904845.92116684455,3447.7084970681813,16368.376027999824,3399.4699998900951,920926.08726844331,55877.147140085923,0,109717.57325915122,6584.4049978990297,0,14748.710968294552,2055.9893038255959,0,55.410318266243728,7.7242697291899329,null,"Manufacturing",{"$f":"SUM(FK138:FK153)","v":32478657.101386733},{"$f":"SUM(FL138:FL153)","v":0},null,{"$f":"SUM(FN138:FN153)","v":160615156.50250041},59196195.821220264,8363094.4935890883,38398950.651989549,16037044.313176241,2730036.1199833807,9508152.4857748765,3747144.0346369143,849.23936623429859,2957.7254791514197,1165.6337445026393,645950.67431464023,258368.98033313753,0,125233.27891333881,69995.626057905567,0,23763.462389596341,16354.864868588123,0,7.3921614412179428,5.0875499317320099,null,"Manufacturing",{"$f":"SUM(GL138:GL155)","v":243875715.92491615},{"$f":"SUM(GM138:GM155)","v":1687657.8688336459},0,239214532.31679052,99316915.670304775,87347263.131135091,75183929.533089861,32966180.485643104,39940223.608102344,29078353.253399398,11065558.831238344,6290.2218223236287,4826.1624154422097,1908.8885158029912,0,0,0,0,0,0,0,0,0,0,{"$f":"SUM(HJ138:HJ155)","v":0},null,"Manufacturing",{"$f":"SUM(HM150:HM154)+HM156","v":32478657.101386733},{"$f":"SUM(HN150:HN154)+HN156","v":0},{"$f":"SUM(HO150:HO154)+HO156","v":0},225006084.22349042,24516381.941248704,4092116.0952242943,27660176.359433077,2891451.7166265231,917685.68954727438,4356813.9402729329,904845.92116684467,3447.7084970681813,16368.376027999824,3399.469999890096,920926.08726844331,55877.147140085923,0,109717.57325915122,6584.4049978990297,0,14748.710968294552,2055.9893038255959,0,55.410318266243728,7.7242697291899329]
[null,null,null,null,null,null,null,null,null,null,null,null,null,null,null,null,null,null,null,null,null,null,null,null,null,null,null,null,null,183,"Sales",{"$f":"AF156","v":0},{"$f":"AG156","v":0},null,{"$f":"AI156","v":17953505.541175026},10442449.164822701,0,10786242.830364622,6273693.5790726999,0,4679137.4901476232,2721566.2848696639,0,1413.160475489964,821.9484709098665,36799.162375420892,54659.54017782458,0,22108.47906137272,32838.771904570393,0,9590.7921649039872,14245.658211635822,0,2.8965441696507068,4.3023743530536134,null,"Sales",{"$f":"BG156","v":0},{"$f":"BH156","v":0},null,{"$f":"BJ156","v":25189996.046486143},20988160.542368155,0,19181378.676976144,15981814.937699856,0,3862427.941309263,3218152.8558372073,0,786.65174263663562,655.43372991892488,239342.43868977096,79384.893847089814,0,182251.63439911889,60449.06506942436,0,27944.974812754364,9268.7651684937646,5.6914882215093066,1.8877479095218566,1.159172208693302E-3,null,"Sales",{"$f":"CH156","v":0},{"$f":"CI156","v":0},null,{"$f":"CK156","v":20733517.059635989},13671053.429559052,0,14329242.764776144,9448268.8527431339,0,3189562.1594559983,2103100.7220531958,0,992.18531470484788,654.21695751564789,78301.326896964732,59278.15163177556,0,54115.214446419734,40968.014396002138,0,12045.566055551675,9119.1161047775277,0,3.7470452526512199,2.836706930267793,null,"Sales",{"$f":"DI156","v":0},{"$f":"DJ156","v":0},null,{"$f":"DL156","v":44185598.187552929},27589177.172390208,0,25948712.423483152,16202193.787399022,0,12460179.85096956,7780048.7853321545,0,1297.8085936992079,810.34257079503391,95967.008148559442,127271.1454575653,0,56358.189064656086,74742.053717764895,0,27062.351316709319,35890.00550606774,0,2.8187195148551178,3.7381769870731216,null,"Trade, Transportation, and Warehousing (Sales for other countries)",{"$f":"EJ158","v":32690635.440571699},{"$f":"EK158","v":0},{"$f":"EL158","v":0},60016141.772249997,5167028.3925403319,7390418.2246428542,13567934.11779055,1168117.4221558457,2720842.3001755467,4995144.787690755,430051.88572088321,6774.3584002992811,12436.921114840346,1070.7440135026739,129537.18676891927,11898.801869188654,0,29284.655160843336,2689.9789802289761,0,10781.382877898932,990.33753889398781,0,26.843507858219187,2.4657443120850293,null,"Sales",{"$f":"FK156","v":0},{"$f":"FL156","v":0},null,{"$f":"FN156","v":36489108.232293114},22131675.670631245,0,25218166.731037933,15295531.026578888,0,5613339.9131107079,3404649.3434451441,0,1746.1561022485116,1059.0930389210293,146921.65129016133,96596.384222968976,0,101539.74372428395,66759.201333245277,0,22601.845022820042,14860.005225918165,0,7.0308141355369225,4.622540093122991,null,"Sales",{"$f":"GL158","v":32690635.440571699},{"$f":"GM158","v":0},0,34806342.673273101,36789532.676135421,23983894.503138009,25536109.637067787,26991101.844080571,5841262.2032236522,6219303.2086954461,6573665.6323500685,1189.6763282542431,1266.671063239949,1338.8432363726752,0,0,0,0,0,0,0,0,0,0,{"$f":"HJ158","v":0},null,"Trade, Transportation, and Warehousing (Sales for other countries)",{"$f":"HM158","v":32690635.440571699},{"$f":"HN158","v":0},{"$f":"HO158","v":0},60016141.772249997,5167028.3925403357,7390418.2246428542,13567934.11779055,1168117.4221558464,2720842.3001755467,4995144.787690755,430051.8857208835,6774.3584002992811,12436.921114840346,1070.7440135026745,129537.18676891927,11898.801869188654,0,29284.655160843336,2689.9789802289761,0,10781.382877898932,990.33753889398781,0,26.843507858219187,2.4657443120850293]
[null,null,null,null,null,null,null,null,null,null,null,null,null,null,null,null,null,null,null,null,null,null,null,null,null,null,null,null,null,184,"Transportation and Warehousing",{"$f":"AF158","v":32690635.440571699},{"$f":"AG158","v":0},null,{"$f":"AI158","v":15659220.275558341},7367525.9690054469,14260195.07330922,6830810.5001912359,3213836.5042393273,3606775.1894460702,1727690.0988550184,812863.05740111822,804.20740961871445,385.22533455640269,181.24514543633057,65045.589517289372,38564.284619225764,0,28373.960391842487,16822.37784984336,0,7176.5144755396614,4254.8180262881942,0,1.6001568751367985,0.94870237361418541,null,"Transportation and Warehousing",{"$f":"BG158","v":32690635.440571699},{"$f":"BH158","v":0},null,{"$f":"BJ158","v":7012624.8444952033},12126725.62566603,23893425.051250584,5125493.092328635,8863364.2616297808,7708334.2331410795,1653551.7105889786,2859438.2769390396,1054.284586693864,226.15963826270772,391.09120217155407,63319.272325853795,45867.708347425265,0,46279.745475362186,33524.482987310825,0,10912.597492860225,7904.9524849164118,1.4925382046943827,1.0811764658002732,2.0413749283154875E-4,null,"Transportation and Warehousing",{"$f":"CH158","v":32690635.440571699},{"$f":"CI158","v":0},null,{"$f":"CK158","v":2029026.7682399936},3398610.1458700113,14450046.035275962,896878.56515285815,1502267.3130063443,5377306.3241378898,333756.08414025902,559039.84686650697,1672.7325258928613,103.8223645824291,173.90196480459818,8083.2606867755867,14736.488932782384,0,3572.9953690065358,6513.8820523739632,0,1329.6214106841296,2424.0157484210995,0,0.41360875626356841,0.75404482118852878,null,"Transportation and Warehousing",{"$f":"DI158","v":32690635.440571699},{"$f":"DJ158","v":0},null,{"$f":"DL158","v":22033279.859562527},14414358.988872979,17287081.665846247,11651382.824635655,7622433.6921948306,6021962.6998127652,4058764.4651333517,2655278.2166165779,337.4108129134292,227.41273665600144,148.77534555432834,69797.780178796456,66494.624616290486,0,36909.650417750876,35162.914106435041,0,12857.493380039738,12249.016997705392,0,0.72040587257757793,0.68631291633783942,null,"Transportation and Warehousing",null,null,null,null,null,null,null,null,null,null,null,null,null,null,null,null,null,null,null,null,null,null,null,null,null,null,"Transportation and Warehousing",{"$f":"FK158","v":32690635.440571699},{"$f":"FL158","v":0},null,{"$f":"FN158","v":5035775.9305023961},6227144.8120648973,14450046.035275962,2225933.9116052897,2752547.5718037626,5377306.3241378898,828338.43371624406,1024307.5647798857,1672.7325258928613,257.67336971386919,318.63399197368983,20474.288569091823,27179.129218692931,0,9050.1273032986755,12013.82790869233,0,3367.8305704685981,4470.7146698914858,0,1.0476397283954835,1.3907167253509229,null,"Transportation and Warehousing",{"$f":"GL160","v":0},{"$f":"GM160","v":0},0,13593821.440283133,22538370.453812227,0,8434189.0947781559,13983770.430609247,0,2864063.6723397085,4748578.4872243954,0,391.7238269294848,649.47275979063238,0,0,0,0,0,0,0,0,0,0,{"$f":"HJ160","v":0},null,"Transportation and Warehousing"]
[null,null,null,null,null,null,null,null,null,null,null,null,null,null,null,null,null,null,null,null,null,null,null,null,null,null,null,null,null,185,"Information",{"$f":"AF159","v":0},{"$f":"AG159","v":0},null,{"$f":"AI159","v":2578469.3754499089},4459647.7430292051,0,1409727.0680028673,2438224.086337728,0,342186.26985815418,591835.69934866019,0,76.297722823135018,131.96238459380226,15548.46040193971,23343.402600436631,0,8500.812808979188,12762.543087944203,0,2063.421701895767,3097.8812227493618,0,0.46008385182650885,0.69073865228521236,null,"Information",{"$f":"BG159","v":0},{"$f":"BH159","v":0},null,{"$f":"BJ159","v":3646135.0905034924},4726511.3388662525,0,2224655.930064118,2883837.6027016905,0,568705.70036182739,737217.32040017948,0,45.903716098358778,59.505319811128999,9907.4281252541878,17877.393311602107,0,6044.9265272525008,10907.72778779633,0,942.85704972116139,1701.3321824173745,7.6103760353026018E-2,0.13732492823792761,6.1428000581675294E-6,null,"Information",{"$f":"CH159","v":0},{"$f":"CI159","v":0},null,{"$f":"CK159","v":1169098.286058944},3008740.6530207889,0,708120.30423051456,1822387.7085218644,0,125565.99195332111,323151.19193305419,0,31.797186638381415,81.831860701029299,2217.9544030698489,13046.001580597025,0,1343.4101866368187,7901.9349514112346,0,238.21747756343925,1401.1945351613222,0,6.0324021470916853E-2,0.3548257251674285,null,"Information",{"$f":"DI159","v":0},{"$f":"DJ159","v":0},null,{"$f":"DL159","v":11699986.736184282},8210321.3321386036,0,4751143.773653321,3334056.5212986884,0,1554785.1717123683,1091051.3105731932,0,87.114675869634112,61.131648929378024,15591.47607604823,37874.88818483799,0,6331.4041418255583,15380.277194732576,0,2071.9165204843453,5033.1095118194135,0,0.11608956619527427,0.28200532891346242,null,"Information",null,null,null,null,null,null,null,null,null,null,null,null,null,null,null,null,null,null,null,null,null,null,null,null,null,null,"Information",{"$f":"FK159","v":0},{"$f":"FL159","v":0},null,{"$f":"FN159","v":1773518.0082778337},3996616.413966109,0,1074216.023199847,2420741.9211011152,0,190483.17033051976,429253.13505358918,0,48.236220844906377,108.70014912543613,4467.6771809522106,17443.717342541531,0,2706.0624092131302,10565.621880390672,0,479.84700999313372,1873.5273993542958,0,0.12151208059816861,0.47443499201229578,null,"Information",{"$f":"GL161","v":0},{"$f":"GM161","v":0},0,5109878.0378647875,8638623.9614299256,0,3141371.605244399,5310719.3204476889,0,859687.30117079441,1453364.4960211792,0,69.390621161702754,117.30993934181519,0,0,0,0,0,0,0,0,0,0,{"$f":"HJ161","v":0},null,"Information"]
[null,null,null,null,null,null,null,null,null,null,null,null,null,null,null,null,null,null,null,null,null,null,null,null,null,null,null,null,null,186,"Finance, Professional, and Business Services",{"$f":"AF164+AF165+AF161+AF160+AF163+AF162","v":10212418.300653595},{"$f":"AG164+AG165+AG161+AG160+AG163+AG162","v":0},null,{"$f":"AI164+AI165+AI161+AI160+AI163+AI162","v":34214102.839974403},32643400.832659785,7448096.9937508684,24880669.333106041,23456823.365729649,2792948.1543286066,8115791.6122060437,9029374.5528169367,266.31637128964405,923.67310366797653,966.96434776493049,210429.3633668265,170867.31773272605,0,150298.56615286827,122781.4623720989,0,51013.595349449759,47262.998685491228,0,5.936308178049674,5.0614396855508694,null,"Finance, Professional, and Business Services",{"$f":"BG164+BG165+BG161+BG160+BG163+BG162","v":10212418.300653595},{"$f":"BH164+BH165+BH161+BH160+BH163+BH162","v":0},null,{"$f":"BJ164+BJ165+BJ161+BJ160+BJ163+BJ162","v":32201851.941991076},37241996.885059133,7671013.8214676101,24022797.722407632,29434218.289738923,3393075.7110804855,7700544.5245529981,10398823.431899998,884.2042854012102,1658.6039129041064,5246.2543335380506,136201.20573146825,140862.84328757485,0,102713.77207656085,111330.97108182039,0,26898.114644898018,28447.078330370365,6.4125520219622549,14.34693767680338,1.6498807297806424E-3,null,"Finance, Professional, and Business Services",{"$f":"CH164+CH165+CH161+CH160+CH163+CH162","v":10212418.300653595},{"$f":"CI164+CI165+CI161+CI160+CI163+CI162","v":0},null,{"$f":"CK164+CK165+CK161+CK160+CK163+CK162","v":14764174.626751371},31740783.925477885,4947914.6151563618,8972684.0608630087,20812349.858438998,1936297.4867193429,2041619.7974645519,6254335.5565787321,490.33031647240824,517.0011779043474,1583.7908967065594,35731.355130424388,137629.11630333596,0,22174.679858145551,90243.055305058719,0,5001.0175144214036,27119.011229761363,0,1.2664120659914542,6.8673710780037087,null,"Finance, Professional, and Business Services",{"$f":"DI164+DI165+DI161+DI160+DI163+DI162","v":10212418.300653595},{"$f":"DJ164+DJ165+DJ161+DJ160+DJ163+DJ162","v":0},null,{"$f":"DL164+DL165+DL161+DL160+DL163+DL162","v":69427151.892945722},95004231.434946537,4350975.1312819896,34391480.865333363,54535458.542572275,2808823.0843092934,16845195.429006316,33846607.87181852,174.5083053852488,1046.4850081726095,2043.4610961261476,164016.61059248302,438262.34042752173,0,88115.481195713641,251576.55965588993,0,43698.101118247192,156137.18839031947,0,2.7147898475484156,9.4266542556482928,null,"Finance, Professional, and Business Services",{"$f":"EJ161","v":0},{"$f":"EK161","v":0},{"$f":"EL161","v":0},93730679.799855307,4119562.2020727992,0,19526787.351116572,858222.89213459054,0,4652991.1493600374,204503.8668919637,0,4615.7844276611067,202.8685922444177,213822.40606644502,9649.0882169670949,0,44545.336309083461,2010.1816624738904,0,10614.600951219949,479.00134906534009,0,10.52972339808049,0.47517110969543769,null,"Finance, Professional, and Business Services",{"$f":"FK164+FK165+FK161+FK160+FK163+FK162","v":10212418.300653595},{"$f":"FL164+FL165+FL161+FL160+FL163+FL162","v":0},null,{"$f":"FN164+FN165+FN161+FN160+FN163+FN162","v":26043794.215560328},43032530.535984494,4947914.6151563618,15352025.361803731,27754847.425036255,1936297.4867193429,3744365.1627183212,8216882.1500684563,490.33031647240824,948.18888513593924,2080.7682975852208,78111.966279031898,187820.70167676744,0,46347.979359200857,121139.39973720092,0,11482.668307410144,35863.579292196868,0,2.9077662000478521,9.0817657435327028,null,"Finance, Professional, and Business Services",{"$f":"SUM(GL162:GL167)","v":10212418.300653595},{"$f":"SUM(GM162:GM167)","v":0},0,39180314.496991619,51440626.836728223,8673612.2804671451,29090530.619520601,40829812.455293335,388869.67247923691,7752796.4304767447,6448216.0907861516,166.04905334368095,1811.3418506308753,1444.4940182027478,0,0,0,0,0,0,0,0,0,0,{"$f":"SUM(HJ162:HJ167)","v":0},null,"Finance, Professional, and Business Services",{"$f":"HM161","v":0},{"$f":"HN161","v":0},{"$f":"HO161","v":0},93730679.799855307,4119562.2020727992,0,19526787.351116572,858222.89213459054,0,4652991.1493600374,204503.8668919637,0,4615.7844276611067,202.8685922444177,213822.40606644502,9649.0882169670949,0,44545.336309083461,2010.1816624738904,0,10614.600951219949,479.00134906534009,0,10.52972339808049,0.47517110969543769]
[null,null,null,null,null,null,null,null,null,null,null,null,null,null,null,null,null,null,null,null,null,null,null,null,null,null,null,null,null,187,"Education and Health Care",{"$f":"AF166+AF167","v":0},{"$f":"AG166+AG167","v":0},null,{"$f":"AI166+AI167","v":150309.84663439536},12216378.831986202,0,115413.43503823807,7308449.1240703259,0,84986.649206792528,5395410.2542125275,0,8.1037437052818078,514.4692995084356,2337.4919325948372,63944.927004661477,0,1835.9120157950804,38255.055134040631,0,1351.6331243941186,28241.520634779525,0,0.12888246007919776,2.6929176195052191,null,"Education and Health Care",{"$f":"BG166+BG167","v":0},{"$f":"BH166+BH167","v":0},null,{"$f":"BJ166+BJ167","v":118780.1474632358},14138201.00538913,0,106570.38881547957,11789126.702681568,0,91904.134423687588,9456003.2400346398,0,22.227684192801693,2899.4804724217456,2405.0174395826393,53475.84338017433,0,2157.798665165496,44590.785836283205,0,1669.5602995778688,30312.046101656553,0.40379531685455189,9.061151006218509,9.7660837979253367E-5,null,"Education and Health Care",{"$f":"CH166+CH167","v":0},{"$f":"CI166+CI167","v":0},null,{"$f":"CK166+CK167","v":460693.08986329066},12162283.07244277,0,260216.79694445705,7664981.0483789518,0,171273.01070336584,5219867.423695934,0,43.37161521789244,1321.8316211014239,360.48554827162252,52736.072159443953,0,203.28181143809206,33235.617955971138,0,133.72534858321856,22633.522298332024,0,3.3863387697872213E-2,5.7315067687401475,null,"Education and Health Care",{"$f":"DI166+DI167","v":0},{"$f":"DJ166+DJ167","v":0},null,{"$f":"DL166+DL167","v":680975.13427994016},9005521.3582415078,0,317563.5208138444,4271031.9018024253,0,142189.80619654505,1961905.260093458,0,8.4563102850148191,116.67840383874227,967.40192784620808,41543.211366700911,0,454.31993038246679,19702.621757497851,0,205.6319230062347,9050.4304702931677,0,1.2229339021964639E-2,0.53824708196002335,null,"Education and Health Care",null,null,null,null,null,null,null,null,null,null,null,null,null,null,null,null,null,null,null,null,null,null,null,null,null,null,"Education and Health Care",{"$f":"FK166+FK167","v":0},{"$f":"FL166+FL167","v":0},null,{"$f":"FN166+FN167","v":691835.90237107803},14403871.841246683,0,389533.21280198789,9071875.6801672801,0,256115.26045283693,6176820.4096994121,0,64.856292781758469,1564.1616678502335,1319.1454706165275,62867.446612811458,0,735.84709844038468,39595.302310855353,0,482.29502975943581,26959.482257521395,0,0.12213199479780709,6.8269734159804649,null,"Education and Health Care",{"$f":"GL170+GL169","v":0},{"$f":"GM170+GM169","v":0},0,121148.11798857345,9312749.510580197,0,104136.75445283746,7670095.2291015368,0,75533.689093581153,5221738.1087251175,0,20.543658184359138,1640.2252247959309,0,0,0,0,0,0,0,0,0,0,{"$f":"HJ170+HJ169","v":0},null,"Education and Health Care"]
[null,null,null,null,null,null,null,null,null,null,null,null,null,null,null,null,null,null,null,null,null,null,null,null,null,null,null,null,null,188,"Other",{"$f":"AF169+AF168+AF157+AF170","v":0},{"$f":"AG169+AG168+AG157+AG170","v":0},null,{"$f":"AI169+AI168+AI157+AI170","v":3644255.1719690133},97661625.204862982,0,1867762.5548728241,6597872.3235547869,0,752828.85604089848,3145318.084923286,0,153.80301711236066,642.58882660708309,16496.948275316972,511196.12290757941,0,8071.0224777193325,34535.64021861559,0,3331.0794276687247,16463.727763602823,0,0.68053988911994134,3.3635413715080658,null,"Other",{"$f":"BG169+BG168+BG157+BG170","v":0},{"$f":"BH169+BH168+BH157+BH170","v":0},null,{"$f":"BJ169+BJ168+BJ157+BJ170","v":1637238.3370083545},125023555.45781405,0,1183811.5733491115,5089369.114883393,0,280198.06734002888,1666644.2113911766,0,194.56847616719446,799.74640142914927,7422.4602094603506,472884.77989145613,0,5338.3112125466696,19249.854036426615,0,905.85819539306226,5241.3127008266529,0.62895805628352464,2.2886128526049125,4.3670192428567909E-4,null,"Other",{"$f":"CH169+CH168+CH157+CH170","v":0},{"$f":"CI169+CI168+CI157+CI170","v":0},null,{"$f":"CK169+CK168+CK157+CK170","v":5228895.9222675674},93048146.804749638,0,2218296.1055843383,3899856.2596003395,0,1375638.6801858523,2610241.01647464,0,683.45045688467235,1351.9680513210706,4607.5308306329553,403459.92236573156,0,1998.8031161632312,16909.909092950889,0,1321.0511509203593,11318.093632456415,0,0.67976560453504709,5.8621793529272672,null,"Other",{"$f":"DI169+DI168+DI157+DI170","v":0},{"$f":"DJ169+DJ168+DJ157+DJ170","v":0},null,{"$f":"DL169+DL168+DL157+DL170","v":16529474.36882196},187923794.74644265,0,11120169.238615865,10781797.540982258,0,6028001.9623652715,5839537.2089734068,0,374.00087838907075,362.82155256681705,19673.107105647741,866907.93519015505,0,13134.871180705499,49737.319622044037,0,7088.2553601308109,26938.265859986557,0,0.44303166717669429,1.6737256897274295,null,"Other",{"$f":"SUM(EJ162:EJ177)+EJ160+EJ159","v":10212418.300653595},{"$f":"SUM(EK162:EK177)+EK160+EK159","v":0},{"$f":"SUM(EL162:EL177)+EL160+EL159","v":0},17320045.886894949,92910882.435517922,3737658.4754337873,6207177.4385986375,1113192.9719014112,2990593.0803216049,4921868.0192556037,785044.40092118317,6977.4102110165895,11533.338777243009,1834.610261031863,10086.849870323396,211218.76713223255,0,3607.608958598471,2598.9443947325394,0,2843.8350514608296,1834.6940693605761,0,6.7092092455730574,4.2874913130777221,null,"Other",{"$f":"FK169+FK168+FK157+FK170","v":0},{"$f":"FL169+FL168+FL157+FL170","v":0},null,{"$f":"FN169+FN168+FN157+FN170","v":6686811.036726322},120763262.61454837,0,2846876.8215455785,4890330.2254496478,0,1784067.3047249634,3269924.5900254338,0,891.72150689020134,1692.7819311247572,10118.566826484737,527085.91473776544,0,4365.0241081529912,21344.439728149111,0,2840.5960140147718,14271.982690284114,0,1.449709604710484,7.3883521635740044,null,"Other",{"$f":"GL168+SUM(GL171:GL174)","v":0},{"$f":"GM168+SUM(GM171:GM174)","v":0},0,485398.27136846108,353057784.28527153,0,347911.75798532338,5786268.0127125243,0,143601.96276726102,2370870.0305631068,0,99.070974019135733,975.09363608505851,0,0,0,0,0,0,0,0,0,0,{"$f":"HJ168+SUM(HJ171:HJ174)","v":0},null,"Other",{"$f":"SUM(HM162:HM177)+HM160+HM159","v":10212418.300653595},{"$f":"SUM(HN162:HN177)+HN160+HN159","v":0},{"$f":"SUM(HO162:HO177)+HO160+HO159","v":0},17320045.886894949,92910882.435517922,3737658.4754337873,6207177.4385986375,1113192.9719014112,2990593.0803216049,4921868.0192556037,785044.40092118317,6977.4102110165895,11533.338777243009,1834.610261031863,10086.849870323396,211218.76713223255,0,3607.608958598471,2598.9443947325394,0,2843.8350514608296,1834.6940693605761,0,6.7092092455730574,4.2874913130777221]
[null,null,null,null,null,null,null,null,null,null,null,null,null,null,null,null,null,null,null,null,null,null,null,null,null,null,null,null,null,189,"Total",{"$f":"SUM(AF179:AF189)","v":286778769.66614145},{"$f":"SUM(AG179:AG189)","v":1687657.8688336459},null,{"$f":"SUM(AI179:AI189)","v":190163667.57431394},{"$f":"SUM(AJ179:AJ189)","v":209209777.83958444},{"$f":"SUM(AK179:AK189)","v":135854149.83082765},{"$f":"SUM(AL179:AL189)","v":100505272.7999106},{"$f":"SUM(AM179:AM189)","v":68028628.677166045},{"$f":"SUM(AN179:AN189)","v":30991636.342079081},{"$f":"SUM(AO179:AO189)","v":27786840.844530471},{"$f":"SUM(AP179:AP189)","v":26574896.450798485},{"$f":"SUM(AQ179:AQ189)","v":7664.6034310006507},{"$f":"SUM(AR179:AR189)","v":5521.4427068650857},{"$f":"SUM(AS179:AS189)","v":4277.5920741735399},{"$f":"SUM(AT179:AT189)","v":1193799.9509344322},{"$f":"SUM(AU179:AU189)","v":1095079.3321492479},{"$f":"SUM(AV179:AV189)","v":892582.31830677716},{"$f":"SUM(AW179:AW189)","v":703502.78911159839},{"$f":"SUM(AX179:AX189)","v":356086.34561976301},{"$f":"SUM(AY179:AY189)","v":157309.97727272726},{"$f":"SUM(AZ179:AZ189)","v":150357.74364812256},{"$f":"SUM(BA179:BA189)","v":139102.57999313038},{"$f":"SUM(BB179:BB189)","v":15},{"$f":"SUM(BC179:BC189)","v":21.363126141996982},{"$f":"SUM(BD179:BD189)","v":22.390457655304495},null,"Total",{"$f":"SUM(BG179:BG189)","v":286778769.66614145},{"$f":"SUM(BH179:BH189)","v":1687657.8688336459},null,{"$f":"SUM(BJ179:BJ189)","v":171899790.07141379},262835589.21791112,147541625.39062774,100848798.88035361,94340281.958319798,61257781.744395062,24547799.463942297,32215842.26242828,18372.308967548932,5344.3838881970569,11199.308908315905,1311588.4230937446,994140.2586082418,754936.18447621423,706669.40922627214,356829.42550622928,182343.33357694114,91479.794476624244,89274.559787891543,16.627638037177096,31.008362504774148,3.9306733933564143E-3,null,"Total",{"$f":"SUM(CH179:CH189)","v":286778769.66614145},{"$f":"SUM(CI179:CI189)","v":1687657.8688336459},null,{"$f":"SUM(CK179:CK189)","v":152681979.38819596},210648034.80625668,144098888.65166354,59590380.664598867,68884931.25673914,45793621.813148081,15183817.684921179,23122736.205244564,14133.141136109167,4907.1970154888104,7853.2799890423021,703511.22614711593,913377.02778501692,1011339.1563357598,256750.92348108074,298687.39971072716,209449.77623297551,54950.470851755628,100260.96891351572,53.039151147891673,16.324033568668558,34.052088553080381,null,"Total",{"$f":"SUM(DI179:DI189)","v":286778769.66614145},{"$f":"SUM(DJ179:DJ189)","v":1687657.8688336459},null,{"$f":"SUM(DL179:DL189)","v":294409617.65685827},422165046.71038365,91400677.906123996,132797827.84983391,121601841.17429906,43947873.862935774,63320603.354157217,64605263.906488843,3712.9949459529521,4681.7498525347974,4355.571783945009,917819.11035556428,1947482.1134117269,917624.43358376634,485671.47992287629,560959.30368992372,299848.52928165306,194989.78654063115,298029.40075341059,10.872771017765253,12.413948830941106,20.092611193206761,null,"Total",{"$f":"SUM(EJ179:EJ189)","v":286778769.66614145},{"$f":"SUM(EK179:EK189)","v":1687657.8688336459},{"$f":"SUM(EL179:EL189)","v":0},{"$f":"SUM(EM179:EM189)","v":702565706.24631715},{"$f":"SUM(EN179:EN189)","v":149726723.36633059},{"$f":"SUM(EO179:EO189)","v":28044771.194959715},{"$f":"SUM(EP179:EP189)","v":96700787.606350467},{"$f":"SUM(EQ179:EQ189)","v":13883692.513274455},{"$f":"SUM(ER179:ER189)","v":12270026.725092599},{"$f":"SUM(ES179:ES189)","v":26723657.318451874},{"$f":"SUM(ET179:ET189)","v":8064449.7181006037},{"$f":"SUM(EU179:EU189)","v":36823.07909908583},{"$f":"SUM(EV179:EV189)","v":74461.257777240404},{"$f":"SUM(EW179:EW189)","v":61588.615948061284},{"$f":"SUM(EX179:EX189)","v":3204153.6330069057},{"$f":"SUM(EY179:EY189)","v":339051.59026284621},{"$f":"SUM(EZ179:EZ189)","v":449860.94768982381},{"$f":"SUM(FA179:FA189)","v":674861.70005107648},{"$f":"SUM(FB179:FB189)","v":30928.636643323254},{"$f":"SUM(FC179:FC189)","v":22269.459679330634},{"$f":"SUM(FD179:FD189)","v":66809.413183245168},{"$f":"SUM(FE179:FE189)","v":17726.700054734301},{"$f":"SUM(FF179:FF189)","v":37.721141696696982},{"$f":"SUM(FG179:FG189)","v":159.61473778631162},{"$f":"SUM(FH179:FH189)","v":133.53812726469764},null,"Total",{"$f":"SUM(FK179:FK189)","v":286778769.66614145},{"$f":"SUM(FL179:FL189)","v":1687657.8688336459},null,{"$f":"SUM(FN179:FN189)","v":296686996.80974311},306989081.68457609,144098888.65166354,120302366.66939721,102488022.91213769,45793621.813148081,30898709.995854177,32846225.415421285,14133.141136109167,9857.0628226640165,11122.971043944352,1326650.0924020812,1339891.101242309,1011339.1563357598,534990.90201670851,447321.41329047986,209449.77623297551,125283.2128379108,143361.33683328039,53.039151147891673,38.259234208515345,48.547556933865074,null,"Total",{"$f":"SUM(GL179:GL189)","v":286778769.66614145},{"$f":"SUM(GM179:GM189)","v":1687657.8688336459},0,364137341.32182223,610905557.23688209,120004769.91474023,162459638.22070548,151977913.18141782,46170355.483805232,50136560.883214429,41092352.034131095,7645.9472039215525,9266.9297810922908,9728.6250402327914,0,0,0,0,0,0,0,0,0,0,{"$f":"SUM(HJ179:HJ189)","v":0},null,"Total",{"$f":"SUM(HM179:HM189)","v":286778769.66614145},{"$f":"SUM(HN179:HN189)","v":1687657.8688336459},{"$f":"SUM(HO179:HO189)","v":0},702565706.24631715,149726723.36633062,28044771.194959715,96700787.606350467,13883692.513274457,12270026.725092599,26723657.318451874,8064449.7181006037,36823.07909908583,74461.257777240404,61588.615948061284,3204153.6330069057,339051.59026284621,449860.94768982381,674861.70005107648,30928.636643323254,22269.459679330634,66809.413183245168,17726.700054734301,37.721141696696982,150.70685134232471,15.380570914626759]
[null,null,null,null,null,null,null,null,null,null,null,null,null,null,null,null,null,null,null,null,null,null,null,null,null,null,null,null,null,190]
[null,null,null,null,null,null,null,null,null,null,null,null,null,null,null,null,null,null,null,null,null,null,null,null,null,null,null,null,null,191]
[null,null,null,null,null,null,null,null,null,null,null,null,null,null,null,null,null,null,null,null,null,null,null,null,null,null,null,null,null,192]
[null,null,null,null,null,null,null,null,null,null,null,null,null,null,null,null,null,null,null,null,null,null,null,null,null,null,null,null,null,193]
[null,null,null,null,null,null,null,null,null,null,null,null,null,null,null,null,null,null,null,null,null,null,null,null,null,null,null,null,null,194]
[null,null,null,null,null,null,null,null,null,null,null,null,null,null,null,null,null,null,null,null,null,null,null,null,null,null,null,null,null,195]
[null,null,null,null,null,null,null,null,null,null,null,null,null,null,null,null,null,null,null,null,null,null,null,null,null,null,null,null,null,196,null,null,null,null,"Construction",null,null,null,null,null,null,null,null,null,null,"O&M",null,null,null,null,null,null,null,null,null,null,null,null,null,null,null,"Construction",null,null,null,null,null,null,null,null,null,null,"O&M",null,null,null,null,null,null,null,null,null,null,null,null,null,null,null,"Construction",null,null,null,null,null,null,null,null,null,null,"O&M",null,null,null,null,null,null,null,null,null,null,null,null,null,null,null,"Construction",null,null,null,null,null,null,null,null,null,null,"O&M",null,null,null,null,null,null,null,null,null,null,null,null,null,null,null,"Construction",null,null,null,null,null,null,null,null,null,null,"O&M",null,null,null,null,null,null,null,null,null,null,null,null,null,null,null,"Construction",null,null,null,null,null,null,null,null,null,null,"O&M",null,null,null,null,null,null,null,null,null,null,null,null,null,null,null,"Construction",null,null,null,null,null,null,null,null,null,null,"O&M",null,null,null,null,null,null,null,null,null,null,null,null,null,null,null,"Construction",null,null,null,null,null,null,null,null,null,null,"O&M"]
[null,null,null,null,null,null,null,null,null,null,null,null,null,null,null,null,null,null,null,null,null,null,null,null,null,null,null,"Constr","OM",197,"Geothermal",null,null,null,"Output",null,"Value Added",null,null,"Earnings",null,null,"Jobs",null,null,"Output",null,"Value Added",null,null,"Earnings",null,null,"Jobs",null,null,null,"Geothermal",null,null,null,"Output",null,"Value Added",null,null,"Earnings",null,null,"Jobs",null,null,"Output",null,"Value Added",null,null,"Earnings",null,null,"Jobs",null,null,null,"Geothermal",null,null,null,"Output",null,"Value Added",null,null,"Earnings",null,null,"Jobs",null,null,"Output",null,"Value Added",null,null,"Earnings",null,null,"Jobs",null,null,null,"Geothermal",null,null,null,"Output",null,"Value Added",null,null,"Earnings",null,null,"Jobs",null,null,"Output",null,"Value Added",null,null,"Earnings",null,null,"Jobs",null,null,null,"Geothermal",null,null,null,"Output",null,"Value Added",null,null,"Earnings",null,null,"Jobs",null,null,"Output",null,"Value Added",null,null,"Earnings",null,null,"Jobs",null,null,null,"Geothermal",null,null,null,"Output",null,"Value Added",null,null,"Earnings",null,null,"Jobs",null,null,"Output",null,"Value Added",null,null,"Earnings",null,null,"Jobs",null,null,null,"Geothermal",null,null,null,"Output",null,"Value Added",null,null,"Earnings",null,null,"Jobs",null,null,"Output",null,"Value Added",null,null,"Earnings",null,null,"Jobs",null,null,null,"Geothermal",null,null,null,"Output",null,"Value Added",null,null,"Earnings",null,null,"Jobs",null,null,"Output",null,"Value Added",null,null,"Earnings",null,null,"Jobs"]
[null,null,null,null,null,null,null,null,null,null,null,null,null,null,null,null,null,null,null,null,null,null,null,null,null,null,"Colombia",{"$f":"SUM(AF200:AF234)","v":61425593.632990383},{"$f":"SUM(AG200:AG234)","v":685042.91491666122},198,"Colombia","Construction","O&M",null,"Indirect","Induced","Direct","Indirect","Induced","Direct","Indirect","Induced","Direct","Indirect","Induced","Indirect","Induced","Direct","Indirect","Induced","Direct","Indirect","Induced","Direct","Indirect","Induced",null,"Mexico","Construction","O&M",null,"Indirect","Induced","Direct","Indirect","Induced","Direct","Indirect","Induced","Direct","Indirect","Induced","Indirect","Induced","Direct","Indirect","Induced","Direct","Indirect","Induced","Direct","Indirect","Induced",null,"Philippines","Construction","O&M",null,"Indirect","Induced","Direct","Indirect","Induced","Direct","Indirect","Induced","Direct","Indirect","Induced","Indirect","Induced","Direct","Indirect","Induced","Direct","Indirect","Induced","Direct","Indirect","Induced",null,"South Africa","Construction","O&M",null,"Indirect","Induced","Direct","Indirect","Induced","Direct","Indirect","Induced","Direct","Indirect","Induced","Indirect","Induced","Direct","Indirect","Induced","Direct","Indirect","Induced","Direct","Indirect","Induced",null,"Zambia","Construction","O&M",null,"Indirect","Induced","Direct","Indirect","Induced","Direct","Indirect","Induced","Direct","Indirect","Induced","Indirect","Induced","Direct","Indirect","Induced","Direct","Indirect","Induced","Direct","Indirect","Induced",null,"CR1","Construction","O&M",null,"Indirect","Induced","Direct","Indirect","Induced","Direct","Indirect","Induced","Direct","Indirect","Induced","Indirect","Induced","Direct","Indirect","Induced","Direct","Indirect","Induced","Direct","Indirect","Induced",null,"CR2","Construction","O&M",null,"Indirect","Induced","Direct","Indirect","Induced","Direct","Indirect","Induced","Direct","Indirect","Induced","Indirect","Induced","Direct","Indirect","Induced","Direct","Indirect","Induced","Direct","Indirect","Induced",null,"CR3","Construction","O&M",null,"Indirect","Induced","Direct","Indirect","Induced","Direct","Indirect","Induced","Direct","Indirect","Induced","Indirect","Induced","Direct","Indirect","Induced","Direct","Indirect","Induced","Direct","Indirect","Induced"]
[null,null,null,null,null,null,null,null,null,null,null,null,null,null,null,null,null,null,null,null,null,null,null,null,null,null,"Mexico",{"$f":"SUM(BG200:BG236)","v":61425593.632990383},{"$f":"SUM(BH200:BH236)","v":685042.91491666122},199,"TTL_C01T05: Agriculture, hunting, forestry and fishing",0,0,null,{"$f":"MMULT(L1_Colombia,AF200:AF233)-AF200:AF233","v":176505.07960039817},{"$f":"MMULT(l2_colombia,AF200:AF234)-AI200:AI234-AF200:AF234","v":1940206.4488875449},{"$f":"AF200*'Colombia-IO-Data'!AN13","v":0},{"$f":"AI200*'Colombia-IO-Data'!$AN13","v":122194.63038663039},{"$f":"AJ200*'Colombia-IO-Data'!$AN13","v":1343206.7248847347},{"$f":"'Colombia-IO-Data'!$AO13*AK200","v":0},{"$f":"'Colombia-IO-Data'!$AO13*AL200","v":32260.320603103679},{"$f":"'Colombia-IO-Data'!$AO13*AM200","v":354616.88818830054},{"$f":"(AN200*'Default-Data'!$F$19/geo_dollar_index)/'Colombia-IO-Data'!$AP13","v":0},{"$f":"(AO200*'Default-Data'!$F$19/geo_dollar_index)/'Colombia-IO-Data'!$AP13","v":6.7865009373822227},{"$f":"(AP200*'Default-Data'!$F$19/geo_dollar_index)/'Colombia-IO-Data'!$AP13","v":74.59962576658134},{"$f":"MMULT(L1_Colombia,AG200:AG233)-AG200:AG233","v":811.73326440120195},{"$f":"MMULT(l2_colombia,AG200:AG234)","v":13561.809666694848},{"$f":"AG200*'Colombia-IO-Data'!AN13","v":0},{"$f":"AT200*'Colombia-IO-Data'!$AN13","v":561.96369215322022},{"$f":"AU200*'Colombia-IO-Data'!$AN13","v":9388.8534162722735},{"$f":"AV200*'Colombia-IO-Data'!$AO13","v":0},{"$f":"AW200*'Colombia-IO-Data'!$AO13","v":148.36272935075138},{"$f":"AX200*'Colombia-IO-Data'!$AO13","v":2478.7293872581527},{"$f":"(Calculations!AY200*'Default-Data'!$F$19/geo_dollar_index)/'Colombia-IO-Data'!$AP13","v":0},{"$f":"(Calculations!AZ200*'Default-Data'!$F$19/geo_dollar_index)/'Colombia-IO-Data'!$AP13","v":3.1210595027830926E-2},{"$f":"(Calculations!BA200*'Default-Data'!$F$19/geo_dollar_index)/'Colombia-IO-Data'!$AP13","v":0.52144240961219468},null,"DOM_C01T05: Agriculture, hunting, forestry and fishing",{"$f":"AF200","v":0},{"$f":"AG200","v":0},null,{"$f":"MMULT(Mexico_L1,BG200:BG233)-BG200:BG233","v":54358.814563649357},{"$f":"MMULT(Mexico_L2,BG200:BG234)-BG200:BG234-BJ200:BJ234","v":1230081.315100058},{"$f":"BG200*'Mexico-IO-Data'!AQ13","v":0},{"$f":"BJ200*'Mexico-IO-Data'!$AQ13","v":33152.106868771501},{"$f":"BK200*'Mexico-IO-Data'!$AQ13","v":750196.40407585783},{"$f":"BG200*'Mexico-IO-Data'!AQ13","v":0},{"$f":"BJ200*'Mexico-IO-Data'!$AR13","v":5461.3038211477715},{"$f":"BK200*'Mexico-IO-Data'!$AR13","v":123583.41219182433},{"$f":"(BO200*'Default-Data'!$F$19/geo_dollar_index)/'Mexico-IO-Data'!$AS13","v":0},{"$f":"(BP200*'Default-Data'!$F$19/geo_dollar_index)/'Mexico-IO-Data'!$AS13","v":5.348934122516674},{"$f":"(BQ200*'Default-Data'!$F$19/geo_dollar_index)/'Mexico-IO-Data'!$AS13","v":121.0406071696933},{"$f":"MMULT(Mexico_L1,BH200:BH233)-BH200:BH233","v":695.13966568923729},{"$f":"MMULT(Mexico_L2,BH200:BH234)-BH200:BH234-BU200:BU234","v":7092.9704839998631},{"$f":"BH200*'Mexico-IO-Data'!AQ13","v":0},{"$f":"BU200*'Mexico-IO-Data'!$AQ13","v":423.94862122439469},{"$f":"BV200*'Mexico-IO-Data'!$AQ13","v":4325.8286147367908},{"$f":"BH200*'Mexico-IO-Data'!AR13","v":0},{"$f":"BU200*'Mexico-IO-Data'!$AR13","v":69.839067369925885},{"$f":"BV200*'Mexico-IO-Data'!$AR13","v":712.61426722614362},{"$f":"(BZ200*'Default-Data'!$F$19/geo_dollar_index)/'Mexico-IO-Data'!$AS13","v":0},{"$f":"(CA200*'Default-Data'!$F$19/geo_dollar_index)/'Mexico-IO-Data'!$AS13","v":6.8402085431172266E-2},{"$f":"(CB200*'Default-Data'!$F$19/geo_dollar_index)/'Mexico-IO-Data'!$AS13","v":0.69795178861831686},null,"TTL_C01T05: Agriculture, hunting, forestry and fishing",{"$f":"AF200","v":0},{"$f":"AG200","v":0},null,{"$f":"MMULT(Philippines_L1,CH200:CH233)-CH200:CH233","v":502339.2641965223},{"$f":"MMULT(Philippines_L2,CH200:CH234)-CK200:CK234-CH200:CH234","v":3356105.5070428941},{"$f":"CH200*'Philippines-IO-Data'!AN13","v":0},{"$f":"CK200*'Philippines-IO-Data'!$AN13","v":354529.34861192032},{"$f":"CL200*'Philippines-IO-Data'!$AN13","v":2368594.2630582708},{"$f":"CH200*'Philippines-IO-Data'!AO13","v":0},{"$f":"CK200*'Philippines-IO-Data'!$AO13","v":102049.76412448929},{"$f":"CL200*'Philippines-IO-Data'!$AO13","v":681789.77790722717},{"$f":"(CP200*'Default-Data'!$F$19/geo_dollar_index)/'Philippines-IO-Data'!$AP13","v":0},{"$f":"(CQ200*'Default-Data'!$F$19/geo_dollar_index)/'Philippines-IO-Data'!$AP13","v":60.618622897221705},{"$f":"(CR200*'Default-Data'!$F$19/geo_dollar_index)/'Philippines-IO-Data'!$AP13","v":404.9902299795794},{"$f":"MMULT(Philippines_L1,CI200:CI233)-CI200:CI233","v":1400.1410732886468},{"$f":"MMULT(Philippines_L2,CI200:CI234)-CV200:CV234-CI200:CI234","v":29806.824670304853},{"$f":"CI200*'Philippines-IO-Data'!AN13","v":0},{"$f":"CV200*'Philippines-IO-Data'!$AN13","v":988.15907506609642},{"$f":"CW200*'Philippines-IO-Data'!$AN13","v":21036.369019362144},{"$f":"CI200*'Philippines-IO-Data'!AO13","v":0},{"$f":"CV200*'Philippines-IO-Data'!$AO13","v":284.43738416238432},{"$f":"CW200*'Philippines-IO-Data'!$AO13","v":6055.2292916418946},{"$f":"(DA200*'Default-Data'!$F$19/geo_dollar_index)/'Philippines-IO-Data'!$AP13","v":0},{"$f":"(DB200*'Default-Data'!$F$19/geo_dollar_index)/'Philippines-IO-Data'!$AP13","v":0.16895876905093285},{"$f":"(DC200*'Default-Data'!$F$19/geo_dollar_index)/'Philippines-IO-Data'!$AP13","v":3.5968692738817039},null,"DOM_C01T05: Agriculture, hunting, forestry and fishing",{"$f":"AF200","v":0},{"$f":"AG200","v":0},null,{"$f":"MMULT(SouthAfrica_L1,DI200:DI233)-DI200:DI233","v":340957.6469918511},{"$f":"MMULT(SouthAfrica_L2,DI200:DI234)-DI200:DI234-DL200:DL234","v":2074486.5917612209},{"$f":"DI200*'SouthAfrica-IO-Data'!AR13","v":0},{"$f":"DL200*'SouthAfrica-IO-Data'!$AR13","v":137695.36153880807},{"$f":"DM200*'SouthAfrica-IO-Data'!$AR13","v":837779.07250397594},{"$f":"DI200*'SouthAfrica-IO-Data'!AS13","v":0},{"$f":"DL200*'SouthAfrica-IO-Data'!$AS13","v":42239.273678376252},{"$f":"DM200*'SouthAfrica-IO-Data'!$AS13","v":256996.16261611058},{"$f":"(DQ200*'Default-Data'!$F$19/geo_dollar_index)/'SouthAfrica-IO-Data'!$AT13","v":0},{"$f":"(DR200*'Default-Data'!$F$19/geo_dollar_index)/'SouthAfrica-IO-Data'!$AT13","v":3.0222017643009713},{"$f":"(DS200*'Default-Data'!$F$19/geo_dollar_index)/'SouthAfrica-IO-Data'!$AT13","v":18.387964291029114},{"$f":"MMULT(SouthAfrica_L1,DJ200:DJ233)-DJ200:DJ233","v":1702.9424264722452},{"$f":"MMULT(SouthAfrica_L2,DJ200:DJ234)-DJ200:DJ234-DW200:DW234","v":18549.658990388045},{"$f":"DJ200*'SouthAfrica-IO-Data'!AR13","v":0},{"$f":"DW200*'SouthAfrica-IO-Data'!$AR13","v":687.73138001646032},{"$f":"DX200*'SouthAfrica-IO-Data'!$AR13","v":7491.2588810895004},{"$f":"DJ200*'SouthAfrica-IO-Data'!$AS13","v":0},{"$f":"DZ200*'SouthAfrica-IO-Data'!$AS13","v":85.199068664434222},{"$f":"EA200*'SouthAfrica-IO-Data'!$AS13","v":928.04879686851143},{"$f":"(EB200*'Default-Data'!$F$19/geo_dollar_index)/'SouthAfrica-IO-Data'!$AT13","v":0},{"$f":"(EC200*'Default-Data'!$F$19/geo_dollar_index)/'SouthAfrica-IO-Data'!$AT13","v":6.0959565165598492E-3},{"$f":"(ED200*'Default-Data'!$F$19/geo_dollar_index)/'SouthAfrica-IO-Data'!$AT13","v":6.6401490058984075E-2},null,"MAIZE",0,0,null,{"$f":"MMULT(Zambia_L1,EJ200:EJ226)-EJ200:EJ226","v":861.77321414455162},{"$f":"MMULT(Zambia_L2,EJ200:EJ241)-EM200:EM241-EJ200:EJ241","v":1432662.8196047239},{"$f":"EJ200*'Zambia-IO-Data'!BO11","v":0},{"$f":"EM200*'Zambia-IO-Data'!$BO11","v":340.26124046124227},{"$f":"EN200*'Zambia-IO-Data'!$BO11","v":565670.43412379234},{"$f":"EJ200*'Zambia-IO-Data'!BN11","v":0},{"$f":"EM200*'Zambia-IO-Data'!$BN11","v":270.35780151690852},{"$f":"EN200*'Zambia-IO-Data'!$BN11","v":449458.8180114617},{"$f":"(ER200*'Default-Data'!$F$19/geo_dollar_index)/'Zambia-IO-Data'!$BP11","v":0},{"$f":"(ES200*'Default-Data'!$F$19/geo_dollar_index)/'Zambia-IO-Data'!$BP11","v":2.6956482447190795},{"$f":"(ET200*'Default-Data'!$F$19/geo_dollar_index)/'Zambia-IO-Data'!$BP11","v":4481.4052601708818},{"$f":"MMULT(Zambia_L1,EK200:EK226)-EK200:EK226","v":2.8162783679653756},{"$f":"MMULT(Zambia_L2,EK200:EK241)-EX200:EX240-EK200:EK241","v":2107.9991081682851},{"$f":"EK200*'Zambia-IO-Data'!BO11","v":0},{"$f":"EX200*'Zambia-IO-Data'!$BO11","v":1.1119751173970973},{"$f":"EY200*'Zambia-IO-Data'!$BO11","v":832.31919913934576},{"$f":"EK200*'Zambia-IO-Data'!BN11","v":0},{"$f":"EX200*'Zambia-IO-Data'!$BN11","v":0.88353039468575345},{"$f":"EY200*'Zambia-IO-Data'!$BN11","v":661.32712775218079},{"$f":"(FC200*'Default-Data'!$F$19/geo_dollar_index)/'Zambia-IO-Data'!$BP11","v":0},{"$f":"(FD200*'Default-Data'!$F$19/geo_dollar_index)/'Zambia-IO-Data'!$BP11","v":8.8093894247828954E-3},{"$f":"(FE200*'Default-Data'!$F$19/geo_dollar_index)/'Zambia-IO-Data'!$BP11","v":6.5938741220263406},null,"TTL_C01T05: Agriculture, hunting, forestry and fishing",{"$f":"CH200","v":0},{"$f":"CI200","v":0},null,{"$f":"MMULT(CustomRegion1_L1,FK200:FK233)-FK200:FK233","v":899064.05331675347},{"$f":"MMULT(CustomRegion1_L2,FK200:FK234)-FK200:FK234-FN200:FN234","v":4361504.8869581716},{"$f":"FK200*CustomRegion1!C9","v":0},{"$f":"FN200*CustomRegion1!$C9","v":634520.56389142608},{"$f":"FO200*CustomRegion1!$C9","v":3078161.7061414104},{"$f":"FK200*CustomRegion1!D9","v":0},{"$f":"FN200*CustomRegion1!$D9","v":182644.04380281197},{"$f":"FO200*CustomRegion1!$D9","v":886035.74648658745},{"$f":"(FS200*'Default-Data'!$C$58/geo_dollar_index)/CustomRegion1!$E9","v":0},{"$f":"(FT200*'Default-Data'!$C$58/geo_dollar_index)/CustomRegion1!$E9","v":108.4924645411248},{"$f":"(FU200*'Default-Data'!$C$58/geo_dollar_index)/CustomRegion1!$E9","v":526.3144628556737},{"$f":"MMULT(CustomRegion1_L1,FL200:FL233)-FL200:FL233","v":3678.7120786131645},{"$f":"MMULT(CustomRegion1_L2,FL200:FL234)-FL200:FL234-FY200:FY234","v":40196.954935322989},{"$f":"FL200*CustomRegion1!C9","v":0},{"$f":"FY200*CustomRegion1!$C9","v":2596.2760427409125},{"$f":"FZ200*CustomRegion1!$C9","v":28369.274044697369},{"$f":"FL200*CustomRegion1!D9","v":0},{"$f":"FY200*CustomRegion1!$D9","v":747.32700917744046},{"$f":"FZ200*CustomRegion1!$D9","v":8165.9747944123283},{"$f":"(GD200*'Default-Data'!$C$58/geo_dollar_index)/CustomRegion1!$E9","v":0},{"$f":"(GE200*'Default-Data'!$C$58/geo_dollar_index)/CustomRegion1!$E9","v":0.4439200280264492},{"$f":"(GF200*'Default-Data'!$C$58/geo_dollar_index)/CustomRegion1!$E9","v":4.8506740892300506},null,"C01T05 Agriculture, hunting, forestry and fishing",{"$f":"BG200","v":0},{"$f":"BH200","v":0},null,{"$f":"MMULT(CustomRegion2_L1,GL200:GL236)-GL200:GL236","v":47303.85473669615},{"$f":"MMULT(CustomRegion2_L2,GL200:GL238)-GO200:GO238-GL200:GL238","v":469757.4094769386},{"$f":"GL200*CustomRegion2!C13","v":0},{"$f":"GO200*CustomRegion2!$C13","v":29147.75827334412},{"$f":"GP200*CustomRegion2!$C13","v":289455.80639804021},{"$f":"GL200*CustomRegion2!D13","v":0},{"$f":"GO200*CustomRegion2!$D13","v":5234.4861033890247},{"$f":"GP200*CustomRegion2!$D13","v":51981.781306366385},{"$f":"(GT200*'Default-Data'!$C$59/geo_dollar_index)/CustomRegion2!$E13","v":0},{"$f":"(GU200*'Default-Data'!$C$59/geo_dollar_index)/CustomRegion2!$E13","v":5.1267833193672283},{"$f":"(GV200*'Default-Data'!$C$59/geo_dollar_index)/CustomRegion2!$E13","v":50.912224055754322},{"$f":"MMULT(CustomRegion2_L1,GM200:GM236)-GM200:GM236","v":384.23895555947331},{"$f":"MMULT(CustomRegion2_L2,GM200:GM238)-GM200:GM238-GZ200:GZ238","v":4860.9090997613202},{"$f":"GM200*CustomRegion2!C13","v":0},{"$f":"GZ200*CustomRegion2!$C13","v":236.76092060974321},{"$f":"HA200*CustomRegion2!$C13","v":2995.2020658187366},{"$f":"GM200*CustomRegion2!D13","v":0},{"$f":"GZ200*CustomRegion2!$D13","v":42.518595671580805},{"$f":"HA200*CustomRegion2!$D13","v":537.89191756500395},{"$f":"(HE200*'Default-Data'!$C$59/geo_dollar_index)/CustomRegion2!$E13","v":0},{"$f":"(HF200*'Default-Data'!$C$59/geo_dollar_index)/CustomRegion2!$E13","v":4.1643749309191666E-2},{"$f":"(HG200*'Default-Data'!$C$59/geo_dollar_index)/CustomRegion2!$E13","v":0.52682445919749288},null,"MAIZE",{"$f":"EJ200","v":0},{"$f":"EK200","v":0},null,{"$f":"MMULT(CustomRegion3_L1,HM200:HM226)-HM200:HM226","v":861.77321414455162},{"$f":"MMULT(CustomRegion3_L2,HM200:HM241)-HM200:HM241-HP200:HP241","v":1432662.8196047239},{"$f":"HM200*CustomRegion3!D12","v":0},{"$f":"HP200*CustomRegion3!$D12","v":340.26124046124227},{"$f":"HQ200*CustomRegion3!$D12","v":565670.43412379234},{"$f":"HM200*CustomRegion3!E12","v":0},{"$f":"HP200*CustomRegion3!E$12","v":270.35780151690852},{"$f":"HQ200*CustomRegion3!F$12","v":147954545.64844415},{"$f":"(HU200*'Default-Data'!$C$60/geo_dollar_index)/CustomRegion3!$F12","v":0},{"$f":"(HV200*'Default-Data'!$C$60/geo_dollar_index)/CustomRegion3!$F12","v":2.6956482447190795},{"$f":"(HW200*'Default-Data'!$C$60/geo_dollar_index)/CustomRegion3!$F12","v":1475205.8532717943},{"$f":"MMULT(CustomRegion3_L1,HN200:HN226)-HN200:HN226","v":2.8162783679653756},{"$f":"MMULT(CustomRegion3_L2,HN200:HN241)-HN200:HN241-IA200:IA241","v":2107.9991081682851},{"$f":"HN200*CustomRegion3!D12","v":0},{"$f":"IA200*CustomRegion3!$D12","v":1.1119751173970973},{"$f":"IB200*CustomRegion3!$D12","v":832.31919913934576},{"$f":"HN200*CustomRegion3!E12","v":0},{"$f":"IA200*CustomRegion3!$E12","v":0.88353039468575345},{"$f":"IB200*CustomRegion3!$E12","v":661.32712775218079},{"$f":"(IF200*'Default-Data'!$C$60/geo_dollar_index)/CustomRegion3!$F12","v":0},{"$f":"(IG200*'Default-Data'!$C$60/geo_dollar_index)/CustomRegion3!$F12","v":8.8093894247828954E-3},{"$f":"(IH200*'Default-Data'!$C$60/geo_dollar_index)/CustomRegion3!$F12","v":6.5938741220263406}]
[null,null,null,null,null,null,null,null,null,null,null,null,null,null,null,null,null,null,null,null,null,null,null,null,null,null,"Philippines",{"$f":"SUM(CH200:CH233)","v":61425593.632990383},{"$f":"SUM(CI200:CI233)","v":685042.91491666122},200,"TTL_C10T14: Mining and quarrying",{"$f":"'Geothermal-Inputs'!B18*'Geothermal-Inputs'!C18+'Geothermal-Inputs'!B17*'Geothermal-Inputs'!C17+'Geothermal-Inputs'!B23*'Geothermal-Inputs'!C23","v":4986045.0041046599},{"$f":"'Geothermal-Inputs'!B43*'Geothermal-Inputs'!C43","v":288013.58303989517},null,3970949.34942804,490111.42901039869,{"$f":"AF201*'Colombia-IO-Data'!AN14","v":4082988.7530388506},{"$f":"AI201*'Colombia-IO-Data'!$AN14","v":3251743.9211347522},{"$f":"AJ201*'Colombia-IO-Data'!$AN14","v":401344.04136703064},{"$f":"'Colombia-IO-Data'!$AO14*AK201","v":338654.13131816423},{"$f":"'Colombia-IO-Data'!$AO14*AL201","v":269708.43651269109},{"$f":"'Colombia-IO-Data'!$AO14*AM201","v":33288.560392852953},{"$f":"(AN201*'Default-Data'!$F$19/geo_dollar_index)/'Colombia-IO-Data'!$AP14","v":33.250639732582279},{"$f":"(AO201*'Default-Data'!$F$19/geo_dollar_index)/'Colombia-IO-Data'!$AP14","v":26.481230334958326},{"$f":"(AP201*'Default-Data'!$F$19/geo_dollar_index)/'Colombia-IO-Data'!$AP14","v":3.268425884930855},75138.135023922485,366372.48777577403,{"$f":"AG201*'Colombia-IO-Data'!AN14","v":235849.49981523052},{"$f":"AT201*'Colombia-IO-Data'!$AN14","v":61529.360439874283},{"$f":"AU201*'Colombia-IO-Data'!$AN14","v":300016.29463430122},{"$f":"AV201*'Colombia-IO-Data'!$AO14","v":19561.995467732908},{"$f":"AW201*'Colombia-IO-Data'!$AO14","v":5103.4115866274042},{"$f":"AX201*'Colombia-IO-Data'!$AO14","v":24884.162995809002},{"$f":"(Calculations!AY201*'Default-Data'!$F$19/geo_dollar_index)/'Colombia-IO-Data'!$AP14","v":1.9206878156667164},{"$f":"(Calculations!AZ201*'Default-Data'!$F$19/geo_dollar_index)/'Colombia-IO-Data'!$AP14","v":0.50107671627548889},{"$f":"(Calculations!BA201*'Default-Data'!$F$19/geo_dollar_index)/'Colombia-IO-Data'!$AP14","v":2.443243009024886},null,"DOM_C10T14: Mining and quarrying",{"$f":"AF201","v":4986045.0041046599},{"$f":"AG201","v":288013.58303989517},null,4557334.4192598024,679371.94369162247,{"$f":"BG201*'Mexico-IO-Data'!AQ14","v":4292622.49500049},{"$f":"BJ201*'Mexico-IO-Data'!$AQ14","v":3923533.8287660563},{"$f":"BK201*'Mexico-IO-Data'!$AQ14","v":584889.88478084153},{"$f":"BG201*'Mexico-IO-Data'!AQ14","v":4292622.49500049},{"$f":"BJ201*'Mexico-IO-Data'!$AR14","v":243501.92108208427},{"$f":"BK201*'Mexico-IO-Data'!$AR14","v":36299.371123405152},{"$f":"(BO201*'Default-Data'!$F$19/geo_dollar_index)/'Mexico-IO-Data'!$AS14","v":230.1854401673327},{"$f":"(BP201*'Default-Data'!$F$19/geo_dollar_index)/'Mexico-IO-Data'!$AS14","v":13.057425140727236},{"$f":"(BQ201*'Default-Data'!$F$19/geo_dollar_index)/'Mexico-IO-Data'!$AS14","v":1.9464993088886628},63473.995263737394,3917.4362581635942,{"$f":"BH201*'Mexico-IO-Data'!AQ14","v":247958.76980752466},{"$f":"BU201*'Mexico-IO-Data'!$AQ14","v":54646.498315271609},{"$f":"BV201*'Mexico-IO-Data'!$AQ14","v":3372.6280028920919},{"$f":"BH201*'Mexico-IO-Data'!AR14","v":15388.789655541588},{"$f":"BU201*'Mexico-IO-Data'!$AR14","v":3391.4649142613343},{"$f":"BV201*'Mexico-IO-Data'!$AR14","v":209.31166485130996},{"$f":"(BZ201*'Default-Data'!$F$19/geo_dollar_index)/'Mexico-IO-Data'!$AS14","v":0.82520075423099415},{"$f":"(CA201*'Default-Data'!$F$19/geo_dollar_index)/'Mexico-IO-Data'!$AS14","v":0.18186221709701531},{"$f":"(CB201*'Default-Data'!$F$19/geo_dollar_index)/'Mexico-IO-Data'!$AS14","v":1.1224023953205906E-2},null,"TTL_C10T14: Mining and quarrying",{"$f":"AF201","v":4986045.0041046599},{"$f":"AG201","v":288013.58303989517},null,1084293.8507653326,187537.05146415345,{"$f":"CH201*'Philippines-IO-Data'!AN14","v":2870397.8237309796},{"$f":"CK201*'Philippines-IO-Data'!$AN14","v":624213.12021040951},{"$f":"CL201*'Philippines-IO-Data'!$AN14","v":107962.512161138},{"$f":"CH201*'Philippines-IO-Data'!AO14","v":750329.02726019768},{"$f":"CK201*'Philippines-IO-Data'!$AO14","v":163170.83974155973},{"$f":"CL201*'Philippines-IO-Data'!$AO14","v":28221.66532482229},{"$f":"(CP201*'Default-Data'!$F$19/geo_dollar_index)/'Philippines-IO-Data'!$AP14","v":240.33781529453236},{"$f":"(CQ201*'Default-Data'!$F$19/geo_dollar_index)/'Philippines-IO-Data'!$AP14","v":52.265235274792879},{"$f":"(CR201*'Default-Data'!$F$19/geo_dollar_index)/'Philippines-IO-Data'!$AP14","v":9.0396787831975267},15050.000809679506,1665.5864961476764,{"$f":"CI201*'Philippines-IO-Data'!AN14","v":165805.47533808896},{"$f":"CV201*'Philippines-IO-Data'!$AN14","v":8664.0793526112247},{"$f":"CW201*'Philippines-IO-Data'!$AN14","v":958.85533520901288},{"$f":"CI201*'Philippines-IO-Data'!AO14","v":43341.957688337097},{"$f":"CV201*'Philippines-IO-Data'!$AO14","v":2264.8115808212183},{"$f":"CW201*'Philippines-IO-Data'!$AO14","v":250.647135042581},{"$f":"(DA201*'Default-Data'!$F$19/geo_dollar_index)/'Philippines-IO-Data'!$AP14","v":13.88285811018039},{"$f":"(DB201*'Default-Data'!$F$19/geo_dollar_index)/'Philippines-IO-Data'!$AP14","v":0.72544156978158536},{"$f":"(DC201*'Default-Data'!$F$19/geo_dollar_index)/'Philippines-IO-Data'!$AP14","v":8.0284758629066907E-2},null,"DOM_C10T14: Mining and quarrying",{"$f":"AF201","v":4986045.0041046599},{"$f":"AG201","v":288013.58303989517},null,4643058.9984464543,1096441.3638072386,{"$f":"DI201*'SouthAfrica-IO-Data'!AR14","v":2969661.2832109891},{"$f":"DL201*'SouthAfrica-IO-Data'!$AR14","v":2765380.6838887096},{"$f":"DM201*'SouthAfrica-IO-Data'!$AR14","v":653034.51226952963},{"$f":"DI201*'SouthAfrica-IO-Data'!AS14","v":1006157.6829815166},{"$f":"DL201*'SouthAfrica-IO-Data'!$AS14","v":936944.90923718596},{"$f":"DM201*'SouthAfrica-IO-Data'!$AS14","v":221256.1060369901},{"$f":"(DQ201*'Default-Data'!$F$19/geo_dollar_index)/'SouthAfrica-IO-Data'!$AT14","v":65.639633785878729},{"$f":"(DR201*'Default-Data'!$F$19/geo_dollar_index)/'SouthAfrica-IO-Data'!$AT14","v":61.124336433658243},{"$f":"(DS201*'Default-Data'!$F$19/geo_dollar_index)/'SouthAfrica-IO-Data'!$AT14","v":14.434288003567705},62323.372346099874,9804.1672008651658,{"$f":"DJ201*'SouthAfrica-IO-Data'!AR14","v":171539.32342935921},{"$f":"DW201*'SouthAfrica-IO-Data'!$AR14","v":37119.461565828722},{"$f":"DX201*'SouthAfrica-IO-Data'!$AR14","v":5839.3086557718525},{"$f":"DJ201*'SouthAfrica-IO-Data'!$AS14","v":58119.627708948523},{"$f":"DZ201*'SouthAfrica-IO-Data'!$AS14","v":7490.5123022053913},{"$f":"EA201*'SouthAfrica-IO-Data'!$AS14","v":1178.3418044700015},{"$f":"(EB201*'Default-Data'!$F$19/geo_dollar_index)/'SouthAfrica-IO-Data'!$AT14","v":3.7916035857145793},{"$f":"(EC201*'Default-Data'!$F$19/geo_dollar_index)/'SouthAfrica-IO-Data'!$AT14","v":0.48866543753700425},{"$f":"(ED201*'Default-Data'!$F$19/geo_dollar_index)/'SouthAfrica-IO-Data'!$AT14","v":7.687256761863169E-2},null,"DRSTAP",0,0,null,985.24580347063579,858325.50194147858,{"$f":"EJ201*'Zambia-IO-Data'!BO12","v":0},{"$f":"EM201*'Zambia-IO-Data'!$BO12","v":524.94804418670753},{"$f":"EN201*'Zambia-IO-Data'!$BO12","v":457323.73782516923},{"$f":"EJ201*'Zambia-IO-Data'!BN12","v":0},{"$f":"EM201*'Zambia-IO-Data'!$BN12","v":475.97766548031939},{"$f":"EN201*'Zambia-IO-Data'!$BN12","v":414661.76988238707},{"$f":"(ER201*'Default-Data'!$F$19/geo_dollar_index)/'Zambia-IO-Data'!$BP12","v":0},{"$f":"(ES201*'Default-Data'!$F$19/geo_dollar_index)/'Zambia-IO-Data'!$BP12","v":4.7458159197868151},{"$f":"(ET201*'Default-Data'!$F$19/geo_dollar_index)/'Zambia-IO-Data'!$BP12","v":4134.4553989711894},3.0607371991452359,1259.0495432984433,{"$f":"EK201*'Zambia-IO-Data'!BO12","v":0},{"$f":"EX201*'Zambia-IO-Data'!$BO12","v":1.6307889876829906},{"$f":"EY201*'Zambia-IO-Data'!$BO12","v":670.83320016230209},{"$f":"EK201*'Zambia-IO-Data'!BN12","v":0},{"$f":"EX201*'Zambia-IO-Data'!$BN12","v":1.4786589717672829},{"$f":"EY201*'Zambia-IO-Data'!$BN12","v":608.25375782594358},{"$f":"(FC201*'Default-Data'!$F$19/geo_dollar_index)/'Zambia-IO-Data'!$BP12","v":0},{"$f":"(FD201*'Default-Data'!$F$19/geo_dollar_index)/'Zambia-IO-Data'!$BP12","v":1.4743219686720634E-2},{"$f":"(FE201*'Default-Data'!$F$19/geo_dollar_index)/'Zambia-IO-Data'!$BP12","v":6.0646970992799112},null,"TTL_C10T14: Mining and quarrying",{"$f":"CH201","v":4986045.0041046599},{"$f":"CI201","v":288013.58303989517},null,7894781.6293750526,1692941.7044850802,{"$f":"FK201*CustomRegion1!C10","v":2870397.8237309796},{"$f":"FN201*CustomRegion1!$C10","v":4544917.6630243259},{"$f":"FO201*CustomRegion1!$C10","v":974603.35401244345},{"$f":"FK201*CustomRegion1!D10","v":750329.02726019768},{"$f":"FN201*CustomRegion1!$D10","v":1188052.6179615527},{"$f":"FO201*CustomRegion1!$D10","v":254763.70576053625},{"$f":"(FS201*'Default-Data'!$C$58/geo_dollar_index)/CustomRegion1!$E10","v":240.33781529453236},{"$f":"(FT201*'Default-Data'!$C$58/geo_dollar_index)/CustomRegion1!$E10","v":380.54501462971166},{"$f":"(FU201*'Default-Data'!$C$58/geo_dollar_index)/CustomRegion1!$E10","v":81.603336981914936},102974.88597187382,15602.66540266946,{"$f":"FL201*CustomRegion1!C10","v":165805.47533808896},{"$f":"FY201*CustomRegion1!$C10","v":59281.231587216542},{"$f":"FZ201*CustomRegion1!$C10","v":8982.2407899158588},{"$f":"FL201*CustomRegion1!D10","v":43341.957688337097},{"$f":"FY201*CustomRegion1!$D10","v":15496.259251550877},{"$f":"FZ201*CustomRegion1!$D10","v":2347.9797604341034},{"$f":"(GD201*'Default-Data'!$C$58/geo_dollar_index)/CustomRegion1!$E10","v":13.88285811018039},{"$f":"(GE201*'Default-Data'!$C$58/geo_dollar_index)/CustomRegion1!$E10","v":4.9636052430954454},{"$f":"(GF201*'Default-Data'!$C$58/geo_dollar_index)/CustomRegion1!$E10","v":0.75208116103286782},null,"C10T14 Mining and quarrying",{"$f":"BG201","v":4986045.0041046599},{"$f":"BH201","v":288013.58303989517},null,832817.05327201262,260863.43891054671,{"$f":"GL201*CustomRegion2!C14","v":4051937.8408544054},{"$f":"GO201*CustomRegion2!$C14","v":676793.51668180292},{"$f":"GP201*CustomRegion2!$C14","v":211992.15782186083},{"$f":"GL201*CustomRegion2!D14","v":319789.70600433432},{"$f":"GO201*CustomRegion2!$D14","v":53414.343513146239},{"$f":"GP201*CustomRegion2!$D14","v":16730.984651724637},{"$f":"(GT201*'Default-Data'!$C$59/geo_dollar_index)/CustomRegion2!$E14","v":17.148243136526084},{"$f":"(GU201*'Default-Data'!$C$59/geo_dollar_index)/CustomRegion2!$E14","v":2.8642640220850066},{"$f":"(GV201*'Default-Data'!$C$59/geo_dollar_index)/CustomRegion2!$E14","v":0.89717394692301811},10582.56366583606,2699.3368032390135,{"$f":"GM201*CustomRegion2!C14","v":234055.87692022315},{"$f":"GZ201*CustomRegion2!$C14","v":8599.9805728893443},{"$f":"HA201*CustomRegion2!$C14","v":2193.6314111186343},{"$f":"GM201*CustomRegion2!D14","v":18472.312016790955},{"$f":"GZ201*CustomRegion2!$D14","v":678.73332885762056},{"$f":"HA201*CustomRegion2!$D14","v":173.12722247870917},{"$f":"(HE201*'Default-Data'!$C$59/geo_dollar_index)/CustomRegion2!$E14","v":0.9905500139939164},{"$f":"(HF201*'Default-Data'!$C$59/geo_dollar_index)/CustomRegion2!$E14","v":3.6396056313196146E-2},{"$f":"(HG201*'Default-Data'!$C$59/geo_dollar_index)/CustomRegion2!$E14","v":9.2836875261272794E-3},null,"DRSTAP",{"$f":"EJ201","v":0},{"$f":"EK201","v":0},null,985.24580347063579,858325.50194147858,{"$f":"HM201*CustomRegion3!D13","v":0},{"$f":"HP201*CustomRegion3!$D13","v":524.94804418670753},{"$f":"HQ201*CustomRegion3!$D13","v":457323.73782516923},{"$f":"HM201*CustomRegion3!E13","v":0},{"$f":"HP201*CustomRegion3!E$12","v":309.09395303553862},{"$f":"HQ201*CustomRegion3!F$12","v":88641345.277084827},{"$f":"(HU201*'Default-Data'!$C$60/geo_dollar_index)/CustomRegion3!$F13","v":0},{"$f":"(HV201*'Default-Data'!$C$60/geo_dollar_index)/CustomRegion3!$F13","v":3.0818736033456813},{"$f":"(HW201*'Default-Data'!$C$60/geo_dollar_index)/CustomRegion3!$F13","v":883813.54436619661},3.0607371991452359,1259.0495432984433,{"$f":"HN201*CustomRegion3!D13","v":0},{"$f":"IA201*CustomRegion3!$D13","v":1.6307889876829906},{"$f":"IB201*CustomRegion3!$D13","v":670.83320016230209},{"$f":"HN201*CustomRegion3!E13","v":0},{"$f":"IA201*CustomRegion3!$E13","v":1.4786589717672829},{"$f":"IB201*CustomRegion3!$E13","v":608.25375782594358},{"$f":"(IF201*'Default-Data'!$C$60/geo_dollar_index)/CustomRegion3!$F13","v":0},{"$f":"(IG201*'Default-Data'!$C$60/geo_dollar_index)/CustomRegion3!$F13","v":1.4743219686720634E-2},{"$f":"(IH201*'Default-Data'!$C$60/geo_dollar_index)/CustomRegion3!$F13","v":6.0646970992799112}]
[null,null,null,null,null,null,null,null,null,null,null,null,null,null,null,null,null,null,null,null,null,null,null,null,null,null,"South Africa",{"$f":"SUM(DI200:DI236)","v":61425593.632990383},{"$f":"SUM(DJ200:DJ236)","v":685042.91491666122},201,"TTL_C15T16: Food products, beverages and tobacco",0,0,null,310586.56306927622,3382386.9118686575,{"$f":"AF202*'Colombia-IO-Data'!AN15","v":0},{"$f":"AI202*'Colombia-IO-Data'!$AN15","v":71108.124360926915},{"$f":"AJ202*'Colombia-IO-Data'!$AN15","v":774390.19508477964},{"$f":"'Colombia-IO-Data'!$AO15*AK202","v":0},{"$f":"'Colombia-IO-Data'!$AO15*AL202","v":24954.357699951535},{"$f":"'Colombia-IO-Data'!$AO15*AM202","v":271760.92888338625},{"$f":"(AN202*'Default-Data'!$F$19/geo_dollar_index)/'Colombia-IO-Data'!$AP15","v":0},{"$f":"(AO202*'Default-Data'!$F$19/geo_dollar_index)/'Colombia-IO-Data'!$AP15","v":6.0405589982307193},{"$f":"(AP202*'Default-Data'!$F$19/geo_dollar_index)/'Colombia-IO-Data'!$AP15","v":65.783617597870119},1218.5998972387697,23445.972439563015,{"$f":"AG202*'Colombia-IO-Data'!AN15","v":0},{"$f":"AT202*'Colombia-IO-Data'!$AN15","v":278.99582062646869},{"$f":"AU202*'Colombia-IO-Data'!$AN15","v":5367.904868516297},{"$f":"AV202*'Colombia-IO-Data'!$AO15","v":0},{"$f":"AW202*'Colombia-IO-Data'!$AO15","v":97.909508474253087},{"$f":"AX202*'Colombia-IO-Data'!$AO15","v":1883.7878145731602},{"$f":"(Calculations!AY202*'Default-Data'!$F$19/geo_dollar_index)/'Colombia-IO-Data'!$AP15","v":0},{"$f":"(Calculations!AZ202*'Default-Data'!$F$19/geo_dollar_index)/'Colombia-IO-Data'!$AP15","v":2.3700396120700195E-2},{"$f":"(Calculations!BA202*'Default-Data'!$F$19/geo_dollar_index)/'Colombia-IO-Data'!$AP15","v":0.4559977688425691},null,"DOM_C15T16: Food products, beverages and tobacco",0,0,null,108690.21467053422,3354099.5883009639,{"$f":"BG202*'Mexico-IO-Data'!AQ15","v":0},{"$f":"BJ202*'Mexico-IO-Data'!$AQ15","v":42226.860051236363},{"$f":"BK202*'Mexico-IO-Data'!$AQ15","v":1303089.6511007708},{"$f":"BG202*'Mexico-IO-Data'!AQ15","v":0},{"$f":"BJ202*'Mexico-IO-Data'!$AR15","v":7290.7007377054597},{"$f":"BK202*'Mexico-IO-Data'!$AR15","v":224985.62926652122},{"$f":"(BO202*'Default-Data'!$F$19/geo_dollar_index)/'Mexico-IO-Data'!$AS15","v":0},{"$f":"(BP202*'Default-Data'!$F$19/geo_dollar_index)/'Mexico-IO-Data'!$AS15","v":1.8852538498212021},{"$f":"(BQ202*'Default-Data'!$F$19/geo_dollar_index)/'Mexico-IO-Data'!$AS15","v":58.177538619236422},1187.2737555827666,19340.615200125729,{"$f":"BH202*'Mexico-IO-Data'!AQ15","v":0},{"$f":"BU202*'Mexico-IO-Data'!$AQ15","v":461.26362774671003},{"$f":"BV202*'Mexico-IO-Data'!$AQ15","v":7513.9556383812032},{"$f":"BH202*'Mexico-IO-Data'!AR15","v":0},{"$f":"BU202*'Mexico-IO-Data'!$AR15","v":79.639714319492043},{"$f":"BV202*'Mexico-IO-Data'!$AR15","v":1297.3259638382222},{"$f":"(BZ202*'Default-Data'!$F$19/geo_dollar_index)/'Mexico-IO-Data'!$AS15","v":0},{"$f":"(CA202*'Default-Data'!$F$19/geo_dollar_index)/'Mexico-IO-Data'!$AS15","v":2.0593504440937417E-2},{"$f":"(CB202*'Default-Data'!$F$19/geo_dollar_index)/'Mexico-IO-Data'!$AS15","v":0.33546689897036597},null,"TTL_C15T16: Food products, beverages and tobacco",0,0,null,384265.53082703269,2613091.5945008155,{"$f":"CH202*'Philippines-IO-Data'!AN15","v":0},{"$f":"CK202*'Philippines-IO-Data'!$AN15","v":127973.09175492512},{"$f":"CL202*'Philippines-IO-Data'!$AN15","v":870245.65973261988},{"$f":"CH202*'Philippines-IO-Data'!AO15","v":0},{"$f":"CK202*'Philippines-IO-Data'!$AO15","v":22392.091224581305},{"$f":"CL202*'Philippines-IO-Data'!$AO15","v":152271.23087599242},{"$f":"(CP202*'Default-Data'!$F$19/geo_dollar_index)/'Philippines-IO-Data'!$AP15","v":0},{"$f":"(CQ202*'Default-Data'!$F$19/geo_dollar_index)/'Philippines-IO-Data'!$AP15","v":7.1724084891700413},{"$f":"(CR202*'Default-Data'!$F$19/geo_dollar_index)/'Philippines-IO-Data'!$AP15","v":48.773982654751386},772.69204014900924,23207.841005380433,{"$f":"CI202*'Philippines-IO-Data'!AN15","v":0},{"$f":"CV202*'Philippines-IO-Data'!$AN15","v":257.33192654430263},{"$f":"CW202*'Philippines-IO-Data'!$AN15","v":7728.9762629064016},{"$f":"CI202*'Philippines-IO-Data'!AO15","v":0},{"$f":"CV202*'Philippines-IO-Data'!$AO15","v":45.026652831145022},{"$f":"CW202*'Philippines-IO-Data'!$AO15","v":1352.3775910881127},{"$f":"(DA202*'Default-Data'!$F$19/geo_dollar_index)/'Philippines-IO-Data'!$AP15","v":0},{"$f":"(DB202*'Default-Data'!$F$19/geo_dollar_index)/'Philippines-IO-Data'!$AP15","v":1.4422482642018413E-2},{"$f":"(DC202*'Default-Data'!$F$19/geo_dollar_index)/'Philippines-IO-Data'!$AP15","v":0.43317993025303414},null,"DOM_C15T16: Food products, beverages and tobacco",0,0,null,463554.35882398189,4322774.4385288376,{"$f":"DI202*'SouthAfrica-IO-Data'!AR15","v":0},{"$f":"DL202*'SouthAfrica-IO-Data'!$AR15","v":121429.70782935091},{"$f":"DM202*'SouthAfrica-IO-Data'!$AR15","v":1132366.0906013832},{"$f":"DI202*'SouthAfrica-IO-Data'!AS15","v":0},{"$f":"DL202*'SouthAfrica-IO-Data'!$AS15","v":62865.990083567798},{"$f":"DM202*'SouthAfrica-IO-Data'!$AS15","v":586242.99354122486},{"$f":"(DQ202*'Default-Data'!$F$19/geo_dollar_index)/'SouthAfrica-IO-Data'!$AT15","v":0},{"$f":"(DR202*'Default-Data'!$F$19/geo_dollar_index)/'SouthAfrica-IO-Data'!$AT15","v":5.0428160968027198},{"$f":"(DS202*'Default-Data'!$F$19/geo_dollar_index)/'SouthAfrica-IO-Data'!$AT15","v":47.025674781192031},2145.9336180252844,38653.41528141615,{"$f":"DJ202*'SouthAfrica-IO-Data'!AR15","v":0},{"$f":"DW202*'SouthAfrica-IO-Data'!$AR15","v":562.13491966524282},{"$f":"DX202*'SouthAfrica-IO-Data'!$AR15","v":10125.399178936821},{"$f":"DJ202*'SouthAfrica-IO-Data'!$AS15","v":0},{"$f":"DZ202*'SouthAfrica-IO-Data'!$AS15","v":76.2352194788036},{"$f":"EA202*'SouthAfrica-IO-Data'!$AS15","v":1373.1792879482171},{"$f":"(EB202*'Default-Data'!$F$19/geo_dollar_index)/'SouthAfrica-IO-Data'!$AT15","v":0},{"$f":"(EC202*'Default-Data'!$F$19/geo_dollar_index)/'SouthAfrica-IO-Data'!$AT15","v":6.1152332353306216E-3},{"$f":"(ED202*'Default-Data'!$F$19/geo_dollar_index)/'SouthAfrica-IO-Data'!$AT15","v":0.11015002878116405},null,"GRNDNUT",0,0,null,3718.094314412238,459604.03074208059,{"$f":"EJ202*'Zambia-IO-Data'!BO13","v":0},{"$f":"EM202*'Zambia-IO-Data'!$BO13","v":1677.0619660217853},{"$f":"EN202*'Zambia-IO-Data'!$BO13","v":207306.31721742582},{"$f":"EJ202*'Zambia-IO-Data'!BN13","v":0},{"$f":"EM202*'Zambia-IO-Data'!$BN13","v":1382.8597649543856},{"$f":"EN202*'Zambia-IO-Data'!$BN13","v":170939.16081161951},{"$f":"(ER202*'Default-Data'!$F$19/geo_dollar_index)/'Zambia-IO-Data'!$BP13","v":0},{"$f":"(ES202*'Default-Data'!$F$19/geo_dollar_index)/'Zambia-IO-Data'!$BP13","v":13.788037471738333},{"$f":"(ET202*'Default-Data'!$F$19/geo_dollar_index)/'Zambia-IO-Data'!$BP13","v":1704.3778511668957},44.095735513295082,713.08702720746271,{"$f":"EK202*'Zambia-IO-Data'!BO13","v":0},{"$f":"EX202*'Zambia-IO-Data'!$BO13","v":19.889565632170804},{"$f":"EY202*'Zambia-IO-Data'!$BO13","v":321.64088123252088},{"$f":"EK202*'Zambia-IO-Data'!BN13","v":0},{"$f":"EX202*'Zambia-IO-Data'!$BN13","v":16.400395818642785},{"$f":"EY202*'Zambia-IO-Data'!$BN13","v":265.21633811540829},{"$f":"(FC202*'Default-Data'!$F$19/geo_dollar_index)/'Zambia-IO-Data'!$BP13","v":0},{"$f":"(FD202*'Default-Data'!$F$19/geo_dollar_index)/'Zambia-IO-Data'!$BP13","v":0.16352292389260911},{"$f":"(FE202*'Default-Data'!$F$19/geo_dollar_index)/'Zambia-IO-Data'!$BP13","v":2.6443844131751817},null,"TTL_C15T16: Food products, beverages and tobacco",0,0,null,613815.09872416162,3603312.2621085425,{"$f":"FK202*CustomRegion1!C11","v":0},{"$f":"FN202*CustomRegion1!$C11","v":204420.66656492188},{"$f":"FO202*CustomRegion1!$C11","v":1200021.7915669044},{"$f":"FK202*CustomRegion1!D11","v":0},{"$f":"FN202*CustomRegion1!$D11","v":35768.505325146085},{"$f":"FO202*CustomRegion1!$D11","v":209973.8082417429},{"$f":"(FS202*'Default-Data'!$C$58/geo_dollar_index)/CustomRegion1!$E11","v":0},{"$f":"(FT202*'Default-Data'!$C$58/geo_dollar_index)/CustomRegion1!$E11","v":11.457006345051568},{"$f":"(FU202*'Default-Data'!$C$58/geo_dollar_index)/CustomRegion1!$E11","v":67.256689410195932},2057.7810950870739,33209.221214215017,{"$f":"FL202*CustomRegion1!C11","v":0},{"$f":"FY202*CustomRegion1!$C11","v":685.30895374965189},{"$f":"FZ202*CustomRegion1!$C11","v":11059.765637603654},{"$f":"FL202*CustomRegion1!D11","v":0},{"$f":"FY202*CustomRegion1!$D11","v":119.91193147675121},{"$f":"FZ202*CustomRegion1!$D11","v":1935.1824487758354},{"$f":"(GD202*'Default-Data'!$C$58/geo_dollar_index)/CustomRegion1!$E11","v":0},{"$f":"(GE202*'Default-Data'!$C$58/geo_dollar_index)/CustomRegion1!$E11","v":3.8408978717114357E-2},{"$f":"(GF202*'Default-Data'!$C$58/geo_dollar_index)/CustomRegion1!$E11","v":0.61985809563225369},null,"C15T16 Food products, beverages and tobacco",0,0,null,93150.028590392118,968864.80407477659,{"$f":"GL202*CustomRegion2!C15","v":0},{"$f":"GO202*CustomRegion2!$C15","v":36861.895900671989},{"$f":"GP202*CustomRegion2!$C15","v":383405.07340770791},{"$f":"GL202*CustomRegion2!D15","v":0},{"$f":"GO202*CustomRegion2!$D15","v":8957.5599550639581},{"$f":"GP202*CustomRegion2!$D15","v":93168.67318435006},{"$f":"(GT202*'Default-Data'!$C$59/geo_dollar_index)/CustomRegion2!$E15","v":0},{"$f":"(GU202*'Default-Data'!$C$59/geo_dollar_index)/CustomRegion2!$E15","v":2.3162758969041635},{"$f":"(GV202*'Default-Data'!$C$59/geo_dollar_index)/CustomRegion2!$E15","v":24.091868000442592},375.61489592336784,10025.523062658052,{"$f":"GM202*CustomRegion2!C15","v":0},{"$f":"GZ202*CustomRegion2!$C15","v":148.64061129979137},{"$f":"HA202*CustomRegion2!$C15","v":3967.3609667963674},{"$f":"GM202*CustomRegion2!D15","v":0},{"$f":"GZ202*CustomRegion2!$D15","v":36.12014941019261},{"$f":"HA202*CustomRegion2!$D15","v":964.08154966362224},{"$f":"(HE202*'Default-Data'!$C$59/geo_dollar_index)/CustomRegion2!$E15","v":0},{"$f":"(HF202*'Default-Data'!$C$59/geo_dollar_index)/CustomRegion2!$E15","v":9.3400693817414591E-3},{"$f":"(HG202*'Default-Data'!$C$59/geo_dollar_index)/CustomRegion2!$E15","v":0.24929544064881651},null,"GRNDNUT",0,0,null,3718.094314412238,459604.03074208059,{"$f":"HM202*CustomRegion3!D14","v":0},{"$f":"HP202*CustomRegion3!$D14","v":1677.0619660217853},{"$f":"HQ202*CustomRegion3!$D14","v":207306.31721742582},{"$f":"HM202*CustomRegion3!E14","v":0},{"$f":"HP202*CustomRegion3!E$12","v":1166.450509458974},{"$f":"HQ202*CustomRegion3!F$12","v":47464417.039453596},{"$f":"(HU202*'Default-Data'!$C$60/geo_dollar_index)/CustomRegion3!$F14","v":0},{"$f":"(HV202*'Default-Data'!$C$60/geo_dollar_index)/CustomRegion3!$F14","v":11.630292341233247},{"$f":"(HW202*'Default-Data'!$C$60/geo_dollar_index)/CustomRegion3!$F14","v":473252.00812085858},44.095735513295082,713.08702720746271,{"$f":"HN202*CustomRegion3!D14","v":0},{"$f":"IA202*CustomRegion3!$D14","v":19.889565632170804},{"$f":"IB202*CustomRegion3!$D14","v":321.64088123252088},{"$f":"HN202*CustomRegion3!E14","v":0},{"$f":"IA202*CustomRegion3!$E14","v":16.400395818642785},{"$f":"IB202*CustomRegion3!$E14","v":265.21633811540829},{"$f":"(IF202*'Default-Data'!$C$60/geo_dollar_index)/CustomRegion3!$F14","v":0},{"$f":"(IG202*'Default-Data'!$C$60/geo_dollar_index)/CustomRegion3!$F14","v":0.16352292389260911},{"$f":"(IH202*'Default-Data'!$C$60/geo_dollar_index)/CustomRegion3!$F14","v":2.6443844131751817}]
[null,null,null,null,null,null,null,null,null,null,null,null,null,null,null,null,null,null,null,null,null,null,null,null,null,null,"Zambia",{"$f":"SUM(EJ200:EJ241)","v":61425593.632990383},{"$f":"SUM(EK200:EK241)","v":685042.91491666122},202,"TTL_C17T19: Textiles, textile products, leather and footwear",0,0,null,45748.32248068387,875359.38902520924,{"$f":"AF203*'Colombia-IO-Data'!AN16","v":0},{"$f":"AI203*'Colombia-IO-Data'!$AN16","v":15070.133895148063},{"$f":"AJ203*'Colombia-IO-Data'!$AN16","v":288355.56111494184},{"$f":"'Colombia-IO-Data'!$AO16*AK203","v":0},{"$f":"'Colombia-IO-Data'!$AO16*AL203","v":7720.7008705607659},{"$f":"'Colombia-IO-Data'!$AO16*AM203","v":147729.74462077903},{"$f":"(AN203*'Default-Data'!$F$19/geo_dollar_index)/'Colombia-IO-Data'!$AP16","v":0},{"$f":"(AO203*'Default-Data'!$F$19/geo_dollar_index)/'Colombia-IO-Data'!$AP16","v":1.8689060114099496},{"$f":"(AP203*'Default-Data'!$F$19/geo_dollar_index)/'Colombia-IO-Data'!$AP16","v":35.760096449090582},488.85960522417849,6241.2882171050533,{"$f":"AG203*'Colombia-IO-Data'!AN16","v":0},{"$f":"AT203*'Colombia-IO-Data'!$AN16","v":161.0371551824268},{"$f":"AU203*'Colombia-IO-Data'!$AN16","v":2055.9671701557236},{"$f":"AV203*'Colombia-IO-Data'!$AO16","v":0},{"$f":"AW203*'Colombia-IO-Data'!$AO16","v":82.502233414786545},{"$f":"AX203*'Colombia-IO-Data'!$AO16","v":1053.3089905442869},{"$f":"(Calculations!AY203*'Default-Data'!$F$19/geo_dollar_index)/'Colombia-IO-Data'!$AP16","v":0},{"$f":"(Calculations!AZ203*'Default-Data'!$F$19/geo_dollar_index)/'Colombia-IO-Data'!$AP16","v":1.9970844949008158E-2},{"$f":"(Calculations!BA203*'Default-Data'!$F$19/geo_dollar_index)/'Colombia-IO-Data'!$AP16","v":0.25496849797748805},null,"DOM_C17T19: Textiles, textile products, leather and footwear",0,0,null,97074.0735088949,355886.43894006923,{"$f":"BG203*'Mexico-IO-Data'!AQ16","v":0},{"$f":"BJ203*'Mexico-IO-Data'!$AQ16","v":37613.453677207981},{"$f":"BK203*'Mexico-IO-Data'!$AQ16","v":137895.91393001788},{"$f":"BG203*'Mexico-IO-Data'!AQ16","v":0},{"$f":"BJ203*'Mexico-IO-Data'!$AR16","v":12790.843656589293},{"$f":"BK203*'Mexico-IO-Data'!$AR16","v":46892.930681080659},{"$f":"(BO203*'Default-Data'!$F$19/geo_dollar_index)/'Mexico-IO-Data'!$AS16","v":0},{"$f":"(BP203*'Default-Data'!$F$19/geo_dollar_index)/'Mexico-IO-Data'!$AS16","v":3.0747586890600629},{"$f":"(BQ203*'Default-Data'!$F$19/geo_dollar_index)/'Mexico-IO-Data'!$AS16","v":11.272473492619573},788.71150301818841,2052.1342581749545,{"$f":"BH203*'Mexico-IO-Data'!AQ16","v":0},{"$f":"BU203*'Mexico-IO-Data'!$AQ16","v":305.60336566835639},{"$f":"BV203*'Mexico-IO-Data'!$AQ16","v":795.14389444265464},{"$f":"BH203*'Mexico-IO-Data'!AR16","v":0},{"$f":"BU203*'Mexico-IO-Data'!$AR16","v":103.92358289502306},{"$f":"BV203*'Mexico-IO-Data'!$AR16","v":270.39689908800972},{"$f":"(BZ203*'Default-Data'!$F$19/geo_dollar_index)/'Mexico-IO-Data'!$AS16","v":0},{"$f":"(CA203*'Default-Data'!$F$19/geo_dollar_index)/'Mexico-IO-Data'!$AS16","v":2.4981928329654214E-2},{"$f":"(CB203*'Default-Data'!$F$19/geo_dollar_index)/'Mexico-IO-Data'!$AS16","v":6.5000029496682238E-2},null,"TTL_C17T19: Textiles, textile products, leather and footwear",0,0,null,158442.0119058454,365557.7441235981,{"$f":"CH203*'Philippines-IO-Data'!AN16","v":0},{"$f":"CK203*'Philippines-IO-Data'!$AN16","v":60793.835665116974},{"$f":"CL203*'Philippines-IO-Data'!$AN16","v":140263.66589921474},{"$f":"CH203*'Philippines-IO-Data'!AO16","v":0},{"$f":"CK203*'Philippines-IO-Data'!$AO16","v":20998.195019259423},{"$f":"CL203*'Philippines-IO-Data'!$AO16","v":48447.079846911838},{"$f":"(CP203*'Default-Data'!$F$19/geo_dollar_index)/'Philippines-IO-Data'!$AP16","v":0},{"$f":"(CQ203*'Default-Data'!$F$19/geo_dollar_index)/'Philippines-IO-Data'!$AP16","v":6.7259297357654653},{"$f":"(CR203*'Default-Data'!$F$19/geo_dollar_index)/'Philippines-IO-Data'!$AP16","v":15.518079275598634},137.6368703582061,3246.6546606173169,{"$f":"CI203*'Philippines-IO-Data'!AN16","v":0},{"$f":"CV203*'Philippines-IO-Data'!$AN16","v":52.810950690213303},{"$f":"CW203*'Philippines-IO-Data'!$AN16","v":1245.733928298303},{"$f":"CI203*'Philippines-IO-Data'!AO16","v":0},{"$f":"CV203*'Philippines-IO-Data'!$AO16","v":18.240905999979372},{"$f":"CW203*'Philippines-IO-Data'!$AO16","v":430.27658449794524},{"$f":"(DA203*'Default-Data'!$F$19/geo_dollar_index)/'Philippines-IO-Data'!$AP16","v":0},{"$f":"(DB203*'Default-Data'!$F$19/geo_dollar_index)/'Philippines-IO-Data'!$AP16","v":5.8427427671776605E-3},{"$f":"(DC203*'Default-Data'!$F$19/geo_dollar_index)/'Philippines-IO-Data'!$AP16","v":0.13782184952677895},null,"DOM_C17T19: Textiles, textile products, leather and footwear",0,0,null,158276.31308082648,1283993.2941185504,{"$f":"DI203*'SouthAfrica-IO-Data'!AR16","v":0},{"$f":"DL203*'SouthAfrica-IO-Data'!$AR16","v":21065.833594227068},{"$f":"DM203*'SouthAfrica-IO-Data'!$AR16","v":170893.47447834545},{"$f":"DI203*'SouthAfrica-IO-Data'!AS16","v":0},{"$f":"DL203*'SouthAfrica-IO-Data'!$AS16","v":21170.441329540867},{"$f":"DM203*'SouthAfrica-IO-Data'!$AS16","v":171742.08933448792},{"$f":"(DQ203*'Default-Data'!$F$19/geo_dollar_index)/'SouthAfrica-IO-Data'!$AT16","v":0},{"$f":"(DR203*'Default-Data'!$F$19/geo_dollar_index)/'SouthAfrica-IO-Data'!$AT16","v":1.6981939228366869},{"$f":"(DS203*'Default-Data'!$F$19/geo_dollar_index)/'SouthAfrica-IO-Data'!$AT16","v":13.776348251943975},2134.3647106697576,11481.220387943398,{"$f":"DJ203*'SouthAfrica-IO-Data'!AR16","v":0},{"$f":"DW203*'SouthAfrica-IO-Data'!$AR16","v":284.07391446753638},{"$f":"DX203*'SouthAfrica-IO-Data'!$AR16","v":1528.096487991555},{"$f":"DJ203*'SouthAfrica-IO-Data'!$AS16","v":0},{"$f":"DZ203*'SouthAfrica-IO-Data'!$AS16","v":37.996652957267543},{"$f":"EA203*'SouthAfrica-IO-Data'!$AS16","v":204.39240980033659},{"$f":"(EB203*'Default-Data'!$F$19/geo_dollar_index)/'SouthAfrica-IO-Data'!$AT16","v":0},{"$f":"(EC203*'Default-Data'!$F$19/geo_dollar_index)/'SouthAfrica-IO-Data'!$AT16","v":3.0479140295544219E-3},{"$f":"(ED203*'Default-Data'!$F$19/geo_dollar_index)/'SouthAfrica-IO-Data'!$AT16","v":1.6395404460111226E-2},null,"SUGAR",0,0,null,559.5732817060217,77613.9111077048,{"$f":"EJ203*'Zambia-IO-Data'!BO14","v":0},{"$f":"EM203*'Zambia-IO-Data'!$BO14","v":151.86857387783374},{"$f":"EN203*'Zambia-IO-Data'!$BO14","v":21064.468905791295},{"$f":"EJ203*'Zambia-IO-Data'!BN14","v":0},{"$f":"EM203*'Zambia-IO-Data'!$BN14","v":50.908025605643587},{"$f":"EN203*'Zambia-IO-Data'!$BN14","v":7061.0429468306438},{"$f":"(ER203*'Default-Data'!$F$19/geo_dollar_index)/'Zambia-IO-Data'!$BP14","v":0},{"$f":"(ES203*'Default-Data'!$F$19/geo_dollar_index)/'Zambia-IO-Data'!$BP14","v":0.50758709050008521},{"$f":"(ET203*'Default-Data'!$F$19/geo_dollar_index)/'Zambia-IO-Data'!$BP14","v":70.403324478578625},1.7383547871325111,125.58516168815383,{"$f":"EK203*'Zambia-IO-Data'!BO14","v":0},{"$f":"EX203*'Zambia-IO-Data'!$BO14","v":0.47179068595025575},{"$f":"EY203*'Zambia-IO-Data'!$BO14","v":34.083899337811864},{"$f":"EK203*'Zambia-IO-Data'!BN14","v":0},{"$f":"EX203*'Zambia-IO-Data'!$BN14","v":0.15814945585898701},{"$f":"EY203*'Zambia-IO-Data'!$BN14","v":11.42530002043274},{"$f":"(FC203*'Default-Data'!$F$19/geo_dollar_index)/'Zambia-IO-Data'!$BP14","v":0},{"$f":"(FD203*'Default-Data'!$F$19/geo_dollar_index)/'Zambia-IO-Data'!$BP14","v":1.5768559320190126E-3},{"$f":"(FE203*'Default-Data'!$F$19/geo_dollar_index)/'Zambia-IO-Data'!$BP14","v":0.11391788871142378},null,"TTL_C17T19: Textiles, textile products, leather and footwear",0,0,null,242935.35997702004,569772.56527997472,{"$f":"FK203*CustomRegion1!C12","v":0},{"$f":"FN203*CustomRegion1!$C12","v":93213.739045837749},{"$f":"FO203*CustomRegion1!$C12","v":218620.42322908039},{"$f":"FK203*CustomRegion1!D12","v":0},{"$f":"FN203*CustomRegion1!$D12","v":32196.031876336321},{"$f":"FO203*CustomRegion1!$D12","v":75511.509216901293},{"$f":"(FS203*'Default-Data'!$C$58/geo_dollar_index)/CustomRegion1!$E12","v":0},{"$f":"(FT203*'Default-Data'!$C$58/geo_dollar_index)/CustomRegion1!$E12","v":10.312707733787901},{"$f":"(FU203*'Default-Data'!$C$58/geo_dollar_index)/CustomRegion1!$E12","v":24.187083926435349},397.1969089839435,5251.1971724318673,{"$f":"FL203*CustomRegion1!C12","v":0},{"$f":"FY203*CustomRegion1!$C12","v":152.40354070870913},{"$f":"FZ203*CustomRegion1!$C12","v":2014.8722810693628},{"$f":"FL203*CustomRegion1!D12","v":0},{"$f":"FY203*CustomRegion1!$D12","v":52.640193440917663},{"$f":"FZ203*CustomRegion1!$D12","v":695.93702443537302},{"$f":"(GD203*'Default-Data'!$C$58/geo_dollar_index)/CustomRegion1!$E12","v":0},{"$f":"(GE203*'Default-Data'!$C$58/geo_dollar_index)/CustomRegion1!$E12","v":1.6861175069379907E-2},{"$f":"(GF203*'Default-Data'!$C$58/geo_dollar_index)/CustomRegion1!$E12","v":0.22291551833749468},null,"C17T19 Textiles, textile products, leather and footwear",0,0,null,140441.15985249347,220445.33323607352,{"$f":"GL203*CustomRegion2!C16","v":0},{"$f":"GO203*CustomRegion2!$C16","v":48893.7515110737},{"$f":"GP203*CustomRegion2!$C16","v":76746.726930631005},{"$f":"GL203*CustomRegion2!D16","v":0},{"$f":"GO203*CustomRegion2!$D16","v":21646.609811452428},{"$f":"GP203*CustomRegion2!$D16","v":33977.88880644997},{"$f":"(GT203*'Default-Data'!$C$59/geo_dollar_index)/CustomRegion2!$E16","v":0},{"$f":"(GU203*'Default-Data'!$C$59/geo_dollar_index)/CustomRegion2!$E16","v":5.2035740091442912},{"$f":"(GV203*'Default-Data'!$C$59/geo_dollar_index)/CustomRegion2!$E16","v":8.1678591067547206},558.43048527699182,2281.1023407173143,{"$f":"GM203*CustomRegion2!C16","v":0},{"$f":"GZ203*CustomRegion2!$C16","v":194.41424018442248},{"$f":"HA203*CustomRegion2!$C16","v":794.15216404865623},{"$f":"GM203*CustomRegion2!D16","v":0},{"$f":"GZ203*CustomRegion2!$D16","v":86.07253624441249},{"$f":"HA203*CustomRegion2!$D16","v":351.59302558709129},{"$f":"(HE203*'Default-Data'!$C$59/geo_dollar_index)/CustomRegion2!$E16","v":0},{"$f":"(HF203*'Default-Data'!$C$59/geo_dollar_index)/CustomRegion2!$E16","v":2.069076018848898E-2},{"$f":"(HG203*'Default-Data'!$C$59/geo_dollar_index)/CustomRegion2!$E16","v":8.4518561829180716E-2},null,"SUGAR",0,0,null,559.5732817060217,77613.9111077048,{"$f":"HM203*CustomRegion3!D15","v":0},{"$f":"HP203*CustomRegion3!$D15","v":151.86857387783374},{"$f":"HQ203*CustomRegion3!$D15","v":21064.468905791295},{"$f":"HM203*CustomRegion3!E15","v":0},{"$f":"HP203*CustomRegion3!E$12","v":175.55082908885305},{"$f":"HQ203*CustomRegion3!F$12","v":8015375.8419636255},{"$f":"(HU203*'Default-Data'!$C$60/geo_dollar_index)/CustomRegion3!$F15","v":0},{"$f":"(HV203*'Default-Data'!$C$60/geo_dollar_index)/CustomRegion3!$F15","v":1.7503592707042706},{"$f":"(HW203*'Default-Data'!$C$60/geo_dollar_index)/CustomRegion3!$F15","v":79918.662224369575},1.7383547871325111,125.58516168815383,{"$f":"HN203*CustomRegion3!D15","v":0},{"$f":"IA203*CustomRegion3!$D15","v":0.47179068595025575},{"$f":"IB203*CustomRegion3!$D15","v":34.083899337811864},{"$f":"HN203*CustomRegion3!E15","v":0},{"$f":"IA203*CustomRegion3!$E15","v":0.15814945585898701},{"$f":"IB203*CustomRegion3!$E15","v":11.42530002043274},{"$f":"(IF203*'Default-Data'!$C$60/geo_dollar_index)/CustomRegion3!$F15","v":0},{"$f":"(IG203*'Default-Data'!$C$60/geo_dollar_index)/CustomRegion3!$F15","v":1.5768559320190126E-3},{"$f":"(IH203*'Default-Data'!$C$60/geo_dollar_index)/CustomRegion3!$F15","v":0.11391788871142378}]
[null,null,null,null,null,null,null,null,null,null,null,null,null,null,null,null,null,null,null,null,null,null,null,null,null,null,null,null,null,203,"TTL_C20: Wood and products of wood and cork",0,0,null,31164.467389443776,32789.445342917752,{"$f":"AF204*'Colombia-IO-Data'!AN17","v":0},{"$f":"AI204*'Colombia-IO-Data'!$AN17","v":12939.298552396471},{"$f":"AJ204*'Colombia-IO-Data'!$AN17","v":13613.97957993696},{"$f":"'Colombia-IO-Data'!$AO17*AK204","v":0},{"$f":"'Colombia-IO-Data'!$AO17*AL204","v":5281.2997093938957},{"$f":"'Colombia-IO-Data'!$AO17*AM204","v":5556.6772888086034},{"$f":"(AN204*'Default-Data'!$F$19/geo_dollar_index)/'Colombia-IO-Data'!$AP17","v":0},{"$f":"(AO204*'Default-Data'!$F$19/geo_dollar_index)/'Colombia-IO-Data'!$AP17","v":1.2784140896559537},{"$f":"(AP204*'Default-Data'!$F$19/geo_dollar_index)/'Colombia-IO-Data'!$AP17","v":1.34507316921414},530.12946029063505,745.60546468735265,{"$f":"AG204*'Colombia-IO-Data'!AN17","v":0},{"$f":"AT204*'Colombia-IO-Data'!$AN17","v":220.10654866653778},{"$f":"AU204*'Colombia-IO-Data'!$AN17","v":309.57088370314517},{"$f":"AV204*'Colombia-IO-Data'!$AO17","v":0},{"$f":"AW204*'Colombia-IO-Data'!$AO17","v":89.838614264989175},{"$f":"AX204*'Colombia-IO-Data'!$AO17","v":126.35434691592518},{"$f":"(Calculations!AY204*'Default-Data'!$F$19/geo_dollar_index)/'Colombia-IO-Data'!$AP17","v":0},{"$f":"(Calculations!AZ204*'Default-Data'!$F$19/geo_dollar_index)/'Colombia-IO-Data'!$AP17","v":2.1746720805721761E-2},{"$f":"(Calculations!BA204*'Default-Data'!$F$19/geo_dollar_index)/'Colombia-IO-Data'!$AP17","v":3.0585875878105254E-2},null,"DOM_C20: Wood and products of wood and cork",0,0,null,35387.457644921706,38668.924733596919,{"$f":"BG204*'Mexico-IO-Data'!AQ17","v":0},{"$f":"BJ204*'Mexico-IO-Data'!$AQ17","v":16361.828893355887},{"$f":"BK204*'Mexico-IO-Data'!$AQ17","v":17879.055803602361},{"$f":"BG204*'Mexico-IO-Data'!AQ17","v":0},{"$f":"BJ204*'Mexico-IO-Data'!$AR17","v":5947.2112142539718},{"$f":"BK204*'Mexico-IO-Data'!$AR17","v":6498.694117173819},{"$f":"(BO204*'Default-Data'!$F$19/geo_dollar_index)/'Mexico-IO-Data'!$AS17","v":0},{"$f":"(BP204*'Default-Data'!$F$19/geo_dollar_index)/'Mexico-IO-Data'!$AS17","v":2.6509704515976624},{"$f":"(BQ204*'Default-Data'!$F$19/geo_dollar_index)/'Mexico-IO-Data'!$AS17","v":2.8967940532040517},661.89364607137759,222.97513051899728,{"$f":"BH204*'Mexico-IO-Data'!AQ17","v":0},{"$f":"BU204*'Mexico-IO-Data'!$AQ17","v":306.03471691257471},{"$f":"BV204*'Mexico-IO-Data'!$AQ17","v":103.09531048069168},{"$f":"BH204*'Mexico-IO-Data'!AR17","v":0},{"$f":"BU204*'Mexico-IO-Data'!$AR17","v":111.23775417994867},{"$f":"BV204*'Mexico-IO-Data'!$AR17","v":37.473169449702567},{"$f":"(BZ204*'Default-Data'!$F$19/geo_dollar_index)/'Mexico-IO-Data'!$AS17","v":0},{"$f":"(CA204*'Default-Data'!$F$19/geo_dollar_index)/'Mexico-IO-Data'!$AS17","v":4.9584248618302955E-2},{"$f":"(CB204*'Default-Data'!$F$19/geo_dollar_index)/'Mexico-IO-Data'!$AS17","v":1.6703671916137783E-2},null,"TTL_C20: Wood and products of wood and cork",0,0,null,7951.113632304864,11369.957815659764,{"$f":"CH204*'Philippines-IO-Data'!AN17","v":0},{"$f":"CK204*'Philippines-IO-Data'!$AN17","v":1153.9525900420499},{"$f":"CL204*'Philippines-IO-Data'!$AN17","v":1650.1326577376683},{"$f":"CH204*'Philippines-IO-Data'!AO17","v":0},{"$f":"CK204*'Philippines-IO-Data'!$AO17","v":299.2421627337568},{"$f":"CL204*'Philippines-IO-Data'!$AO17","v":427.91122404866599},{"$f":"(CP204*'Default-Data'!$F$19/geo_dollar_index)/'Philippines-IO-Data'!$AP17","v":0},{"$f":"(CQ204*'Default-Data'!$F$19/geo_dollar_index)/'Philippines-IO-Data'!$AP17","v":9.5850227063789206E-2},{"$f":"(CR204*'Default-Data'!$F$19/geo_dollar_index)/'Philippines-IO-Data'!$AP17","v":0.13706420115904933},92.698041756389131,100.9808357958162,{"$f":"CI204*'Philippines-IO-Data'!AN17","v":0},{"$f":"CV204*'Philippines-IO-Data'!$AN17","v":13.453353872594972},{"$f":"CW204*'Philippines-IO-Data'!$AN17","v":14.655443551674439},{"$f":"CI204*'Philippines-IO-Data'!AO17","v":0},{"$f":"CV204*'Philippines-IO-Data'!$AO17","v":3.488714132277464},{"$f":"CW204*'Philippines-IO-Data'!$AO17","v":3.8004391706124956},{"$f":"(DA204*'Default-Data'!$F$19/geo_dollar_index)/'Philippines-IO-Data'!$AP17","v":0},{"$f":"(DB204*'Default-Data'!$F$19/geo_dollar_index)/'Philippines-IO-Data'!$AP17","v":1.1174696730051506E-3},{"$f":"(DC204*'Default-Data'!$F$19/geo_dollar_index)/'Philippines-IO-Data'!$AP17","v":1.2173182886979371E-3},null,"DOM_C20: Wood and products of wood and cork",0,0,null,136241.68121691144,131964.09850366114,{"$f":"DI204*'SouthAfrica-IO-Data'!AR17","v":0},{"$f":"DL204*'SouthAfrica-IO-Data'!$AR17","v":36110.225177970038},{"$f":"DM204*'SouthAfrica-IO-Data'!$AR17","v":34976.471736195228},{"$f":"DI204*'SouthAfrica-IO-Data'!AS17","v":0},{"$f":"DL204*'SouthAfrica-IO-Data'!$AS17","v":30062.051721129734},{"$f":"DM204*'SouthAfrica-IO-Data'!$AS17","v":29118.192898935613},{"$f":"(DQ204*'Default-Data'!$F$19/geo_dollar_index)/'SouthAfrica-IO-Data'!$AT17","v":0},{"$f":"(DR204*'Default-Data'!$F$19/geo_dollar_index)/'SouthAfrica-IO-Data'!$AT17","v":2.4114373784730097},{"$f":"(DS204*'Default-Data'!$F$19/geo_dollar_index)/'SouthAfrica-IO-Data'!$AT17","v":2.3357254322308094},1971.2521549363482,1179.9975164643765,{"$f":"DJ204*'SouthAfrica-IO-Data'!AR17","v":0},{"$f":"DW204*'SouthAfrica-IO-Data'!$AR17","v":522.47123319023228},{"$f":"DX204*'SouthAfrica-IO-Data'!$AR17","v":312.75286423641802},{"$f":"DJ204*'SouthAfrica-IO-Data'!$AS17","v":0},{"$f":"DZ204*'SouthAfrica-IO-Data'!$AS17","v":115.28452302317575},{"$f":"EA204*'SouthAfrica-IO-Data'!$AS17","v":69.009665005804493},{"$f":"(EB204*'Default-Data'!$F$19/geo_dollar_index)/'SouthAfrica-IO-Data'!$AT17","v":0},{"$f":"(EC204*'Default-Data'!$F$19/geo_dollar_index)/'SouthAfrica-IO-Data'!$AT17","v":9.2475859783754943E-3},{"$f":"(ED204*'Default-Data'!$F$19/geo_dollar_index)/'SouthAfrica-IO-Data'!$AT17","v":5.5356330038488794E-3},null,"COTTON",0,0,null,58848.141566235739,212258.71022228553,{"$f":"EJ204*'Zambia-IO-Data'!BO15","v":0},{"$f":"EM204*'Zambia-IO-Data'!$BO15","v":13065.660314016572},{"$f":"EN204*'Zambia-IO-Data'!$BO15","v":47126.385517785784},{"$f":"EJ204*'Zambia-IO-Data'!BN15","v":0},{"$f":"EM204*'Zambia-IO-Data'!$BN15","v":8868.9935161000012},{"$f":"EN204*'Zambia-IO-Data'!$BN15","v":31989.474511754175},{"$f":"(ER204*'Default-Data'!$F$19/geo_dollar_index)/'Zambia-IO-Data'!$BP15","v":0},{"$f":"(ES204*'Default-Data'!$F$19/geo_dollar_index)/'Zambia-IO-Data'!$BP15","v":88.429801803239812},{"$f":"(ET204*'Default-Data'!$F$19/geo_dollar_index)/'Zambia-IO-Data'!$BP15","v":318.95647298974944},652.33337149843589,344.02233496754877,{"$f":"EK204*'Zambia-IO-Data'!BO15","v":0},{"$f":"EX204*'Zambia-IO-Data'!$BO15","v":144.83322695760251},{"$f":"EY204*'Zambia-IO-Data'!$BO15","v":76.380984165178205},{"$f":"EK204*'Zambia-IO-Data'!BN15","v":0},{"$f":"EX204*'Zambia-IO-Data'!$BN15","v":98.31305268397378},{"$f":"EY204*'Zambia-IO-Data'!$BN15","v":51.847548232030611},{"$f":"(FC204*'Default-Data'!$F$19/geo_dollar_index)/'Zambia-IO-Data'!$BP15","v":0},{"$f":"(FD204*'Default-Data'!$F$19/geo_dollar_index)/'Zambia-IO-Data'!$BP15","v":0.98024694095596054},{"$f":"(FE204*'Default-Data'!$F$19/geo_dollar_index)/'Zambia-IO-Data'!$BP15","v":0.51695475995324736},null,"TTL_C20: Wood and products of wood and cork",0,0,null,25400.816839636333,29048.384022049024,{"$f":"FK204*CustomRegion1!C13","v":0},{"$f":"FN204*CustomRegion1!$C13","v":3686.4444072578681},{"$f":"FO204*CustomRegion1!$C13","v":4215.819258649266},{"$f":"FK204*CustomRegion1!D13","v":0},{"$f":"FN204*CustomRegion1!$D13","v":955.96613478323957},{"$f":"FO204*CustomRegion1!$D13","v":1093.2432437340074},{"$f":"(FS204*'Default-Data'!$C$58/geo_dollar_index)/CustomRegion1!$E13","v":0},{"$f":"(FT204*'Default-Data'!$C$58/geo_dollar_index)/CustomRegion1!$E13","v":0.30620541653347005},{"$f":"(FU204*'Default-Data'!$C$58/geo_dollar_index)/CustomRegion1!$E13","v":0.35017663350164396},276.97007916920205,267.71873785348788,{"$f":"FL204*CustomRegion1!C13","v":0},{"$f":"FY204*CustomRegion1!$C13","v":40.196927751465658},{"$f":"FZ204*CustomRegion1!$C13","v":38.854271896409443},{"$f":"FL204*CustomRegion1!D13","v":0},{"$f":"FY204*CustomRegion1!$D13","v":10.423838638953816},{"$f":"FZ204*CustomRegion1!$D13","v":10.075662080106175},{"$f":"(GD204*'Default-Data'!$C$58/geo_dollar_index)/CustomRegion1!$E13","v":0},{"$f":"(GE204*'Default-Data'!$C$58/geo_dollar_index)/CustomRegion1!$E13","v":3.3388587065819701E-3},{"$f":"(GF204*'Default-Data'!$C$58/geo_dollar_index)/CustomRegion1!$E13","v":3.2273343080180964E-3},null,"C20 Wood and products of wood and cork",0,0,null,39008.427355085609,29648.058632031512,{"$f":"GL204*CustomRegion2!C17","v":0},{"$f":"GO204*CustomRegion2!$C17","v":16528.279592342631},{"$f":"GP204*CustomRegion2!$C17","v":12562.19324044341},{"$f":"GL204*CustomRegion2!D17","v":0},{"$f":"GO204*CustomRegion2!$D17","v":5489.2170670817104},{"$f":"GP204*CustomRegion2!$D17","v":4172.0376975815016},{"$f":"(GT204*'Default-Data'!$C$59/geo_dollar_index)/CustomRegion2!$E17","v":0},{"$f":"(GU204*'Default-Data'!$C$59/geo_dollar_index)/CustomRegion2!$E17","v":2.4468194794162184},{"$f":"(GV204*'Default-Data'!$C$59/geo_dollar_index)/CustomRegion2!$E17","v":1.859686542279209},662.90827467732663,306.78923863099624,{"$f":"GM204*CustomRegion2!C17","v":0},{"$f":"GZ204*CustomRegion2!$C17","v":280.88118519127812},{"$f":"HA204*CustomRegion2!$C17","v":129.98981645318628},{"$f":"GM204*CustomRegion2!D17","v":0},{"$f":"GZ204*CustomRegion2!$D17","v":93.283622591210872},{"$f":"HA204*CustomRegion2!$D17","v":43.170997624714992},{"$f":"(HE204*'Default-Data'!$C$59/geo_dollar_index)/CustomRegion2!$E17","v":0},{"$f":"(HF204*'Default-Data'!$C$59/geo_dollar_index)/CustomRegion2!$E17","v":4.1581191284175527E-2},{"$f":"(HG204*'Default-Data'!$C$59/geo_dollar_index)/CustomRegion2!$E17","v":1.9243479833844866E-2},null,"COTTON",0,0,null,58848.141566235739,212258.71022228553,{"$f":"HM204*CustomRegion3!D16","v":0},{"$f":"HP204*CustomRegion3!$D16","v":13065.660314016572},{"$f":"HQ204*CustomRegion3!$D16","v":47126.385517785784},{"$f":"HM204*CustomRegion3!E16","v":0},{"$f":"HP204*CustomRegion3!E$12","v":18461.99663213782},{"$f":"HQ204*CustomRegion3!F$12","v":21920469.074173126},{"$f":"(HU204*'Default-Data'!$C$60/geo_dollar_index)/CustomRegion3!$F16","v":0},{"$f":"(HV204*'Default-Data'!$C$60/geo_dollar_index)/CustomRegion3!$F16","v":184.07846393261701},{"$f":"(HW204*'Default-Data'!$C$60/geo_dollar_index)/CustomRegion3!$F16","v":218561.7491031347},652.33337149843589,344.02233496754877,{"$f":"HN204*CustomRegion3!D16","v":0},{"$f":"IA204*CustomRegion3!$D16","v":144.83322695760251},{"$f":"IB204*CustomRegion3!$D16","v":76.380984165178205},{"$f":"HN204*CustomRegion3!E16","v":0},{"$f":"IA204*CustomRegion3!$E16","v":98.31305268397378},{"$f":"IB204*CustomRegion3!$E16","v":51.847548232030611},{"$f":"(IF204*'Default-Data'!$C$60/geo_dollar_index)/CustomRegion3!$F16","v":0},{"$f":"(IG204*'Default-Data'!$C$60/geo_dollar_index)/CustomRegion3!$F16","v":0.98024694095596054},{"$f":"(IH204*'Default-Data'!$C$60/geo_dollar_index)/CustomRegion3!$F16","v":0.51695475995324736}]
[null,null,null,null,null,null,null,null,null,null,null,null,null,null,null,null,null,null,null,null,null,null,null,null,null,null,null,null,null,204,"TTL_C21T22: Pulp, paper, paper products, printing and publishing",0,0,null,798408.29630090913,489232.36712259531,{"$f":"AF205*'Colombia-IO-Data'!AN18","v":0},{"$f":"AI205*'Colombia-IO-Data'!$AN18","v":254900.07026615358},{"$f":"AJ205*'Colombia-IO-Data'!$AN18","v":156192.4711125828},{"$f":"'Colombia-IO-Data'!$AO18*AK205","v":0},{"$f":"'Colombia-IO-Data'!$AO18*AL205","v":104625.46185499497},{"$f":"'Colombia-IO-Data'!$AO18*AM205","v":64110.258625522394},{"$f":"(AN205*'Default-Data'!$F$19/geo_dollar_index)/'Colombia-IO-Data'!$AP18","v":0},{"$f":"(AO205*'Default-Data'!$F$19/geo_dollar_index)/'Colombia-IO-Data'!$AP18","v":25.326088639559018},{"$f":"(AP205*'Default-Data'!$F$19/geo_dollar_index)/'Colombia-IO-Data'!$AP18","v":15.518804542104084},2466.6375686665056,5681.6305210219616,{"$f":"AG205*'Colombia-IO-Data'!AN18","v":0},{"$f":"AT205*'Colombia-IO-Data'!$AN18","v":787.49944419072108},{"$f":"AU205*'Colombia-IO-Data'!$AN18","v":1813.9190508724323},{"$f":"AV205*'Colombia-IO-Data'!$AO18","v":0},{"$f":"AW205*'Colombia-IO-Data'!$AO18","v":323.23448547101623},{"$f":"AX205*'Colombia-IO-Data'!$AO18","v":744.53537131999065},{"$f":"(Calculations!AY205*'Default-Data'!$F$19/geo_dollar_index)/'Colombia-IO-Data'!$AP18","v":0},{"$f":"(Calculations!AZ205*'Default-Data'!$F$19/geo_dollar_index)/'Colombia-IO-Data'!$AP18","v":7.824352777287534E-2},{"$f":"(Calculations!BA205*'Default-Data'!$F$19/geo_dollar_index)/'Colombia-IO-Data'!$AP18","v":0.18022542959447738},null,"DOM_C21T22: Pulp, paper, paper products, printing and publishing",0,0,null,737062.6526114716,336432.53368320607,{"$f":"BG205*'Mexico-IO-Data'!AQ18","v":0},{"$f":"BJ205*'Mexico-IO-Data'!$AQ18","v":329947.28864299372},{"$f":"BK205*'Mexico-IO-Data'!$AQ18","v":150604.56788410991},{"$f":"BG205*'Mexico-IO-Data'!AQ18","v":0},{"$f":"BJ205*'Mexico-IO-Data'!$AR18","v":102657.95126864535},{"$f":"BK205*'Mexico-IO-Data'!$AR18","v":46858.261676491726},{"$f":"(BO205*'Default-Data'!$F$19/geo_dollar_index)/'Mexico-IO-Data'!$AS18","v":0},{"$f":"(BP205*'Default-Data'!$F$19/geo_dollar_index)/'Mexico-IO-Data'!$AS18","v":14.332339947834413},{"$f":"(BQ205*'Default-Data'!$F$19/geo_dollar_index)/'Mexico-IO-Data'!$AS18","v":6.5420021285500054},3288.9262064871332,1939.9579539814108,{"$f":"BH205*'Mexico-IO-Data'!AQ18","v":0},{"$f":"BU205*'Mexico-IO-Data'!$AQ18","v":1472.2931361838303},{"$f":"BV205*'Mexico-IO-Data'!$AQ18","v":868.42531598868561},{"$f":"BH205*'Mexico-IO-Data'!AR18","v":0},{"$f":"BU205*'Mexico-IO-Data'!$AR18","v":458.08103969921842},{"$f":"BV205*'Mexico-IO-Data'!$AR18","v":270.19698854287742},{"$f":"(BZ205*'Default-Data'!$F$19/geo_dollar_index)/'Mexico-IO-Data'!$AS18","v":0},{"$f":"(CA205*'Default-Data'!$F$19/geo_dollar_index)/'Mexico-IO-Data'!$AS18","v":6.3953869169332239E-2},{"$f":"(CB205*'Default-Data'!$F$19/geo_dollar_index)/'Mexico-IO-Data'!$AS18","v":3.7722894766753716E-2},null,"TTL_C21T22: Pulp, paper, paper products, printing and publishing",0,0,null,575332.92853167001,301649.47105768567,{"$f":"CH205*'Philippines-IO-Data'!AN18","v":0},{"$f":"CK205*'Philippines-IO-Data'!$AN18","v":152313.18733628403},{"$f":"CL205*'Philippines-IO-Data'!$AN18","v":79858.443896751764},{"$f":"CH205*'Philippines-IO-Data'!AO18","v":0},{"$f":"CK205*'Philippines-IO-Data'!$AO18","v":45155.666688646481},{"$f":"CL205*'Philippines-IO-Data'!$AO18","v":23675.305716727406},{"$f":"(CP205*'Default-Data'!$F$19/geo_dollar_index)/'Philippines-IO-Data'!$AP18","v":0},{"$f":"(CQ205*'Default-Data'!$F$19/geo_dollar_index)/'Philippines-IO-Data'!$AP18","v":14.46380705774553},{"$f":"(CR205*'Default-Data'!$F$19/geo_dollar_index)/'Philippines-IO-Data'!$AP18","v":7.5834347941536118},1349.3371060993629,2679.061452876942,{"$f":"CI205*'Philippines-IO-Data'!AN18","v":0},{"$f":"CV205*'Philippines-IO-Data'!$AN18","v":357.22244500350786},{"$f":"CW205*'Philippines-IO-Data'!$AN18","v":709.25262351814251},{"$f":"CI205*'Philippines-IO-Data'!AO18","v":0},{"$f":"CV205*'Philippines-IO-Data'!$AO18","v":105.90427488506188},{"$f":"CW205*'Philippines-IO-Data'!$AO18","v":210.26921979462705},{"$f":"(DA205*'Default-Data'!$F$19/geo_dollar_index)/'Philippines-IO-Data'!$AP18","v":0},{"$f":"(DB205*'Default-Data'!$F$19/geo_dollar_index)/'Philippines-IO-Data'!$AP18","v":3.3922187642356674E-2},{"$f":"(DC205*'Default-Data'!$F$19/geo_dollar_index)/'Philippines-IO-Data'!$AP18","v":6.7351312655003881E-2},null,"DOM_C21T22: Pulp, paper, paper products, printing and publishing",0,0,null,2138503.4013413424,1247600.5260806847,{"$f":"DI205*'SouthAfrica-IO-Data'!AR18","v":0},{"$f":"DL205*'SouthAfrica-IO-Data'!$AR18","v":491232.43713158276},{"$f":"DM205*'SouthAfrica-IO-Data'!$AR18","v":286584.46210974071},{"$f":"DI205*'SouthAfrica-IO-Data'!AS18","v":0},{"$f":"DL205*'SouthAfrica-IO-Data'!$AS18","v":409507.85026111704},{"$f":"DM205*'SouthAfrica-IO-Data'!$AS18","v":238906.42825233974},{"$f":"(DQ205*'Default-Data'!$F$19/geo_dollar_index)/'SouthAfrica-IO-Data'!$AT18","v":0},{"$f":"(DR205*'Default-Data'!$F$19/geo_dollar_index)/'SouthAfrica-IO-Data'!$AT18","v":32.848807062749451},{"$f":"(DS205*'Default-Data'!$F$19/geo_dollar_index)/'SouthAfrica-IO-Data'!$AT18","v":19.163957815967795},5090.9968759671092,11155.80327534322,{"$f":"DJ205*'SouthAfrica-IO-Data'!AR18","v":0},{"$f":"DW205*'SouthAfrica-IO-Data'!$AR18","v":1169.4453238849051},{"$f":"DX205*'SouthAfrica-IO-Data'!$AR18","v":2562.5829856852424},{"$f":"DJ205*'SouthAfrica-IO-Data'!$AS18","v":0},{"$f":"DZ205*'SouthAfrica-IO-Data'!$AS18","v":223.94027537278765},{"$f":"EA205*'SouthAfrica-IO-Data'!$AS18","v":490.71600677626247},{"$f":"(EB205*'Default-Data'!$F$19/geo_dollar_index)/'SouthAfrica-IO-Data'!$AT18","v":0},{"$f":"(EC205*'Default-Data'!$F$19/geo_dollar_index)/'SouthAfrica-IO-Data'!$AT18","v":1.7963442934266396E-2},{"$f":"(ED205*'Default-Data'!$F$19/geo_dollar_index)/'SouthAfrica-IO-Data'!$AT18","v":3.9362946080076275E-2},null,"TOBAC",0,0,null,8935.4249124239705,65927.639158552585,{"$f":"EJ205*'Zambia-IO-Data'!BO16","v":0},{"$f":"EM205*'Zambia-IO-Data'!$BO16","v":2566.683898577005},{"$f":"EN205*'Zambia-IO-Data'!$BO16","v":18937.589600710729},{"$f":"EJ205*'Zambia-IO-Data'!BN16","v":0},{"$f":"EM205*'Zambia-IO-Data'!$BN16","v":1792.8476262879308},{"$f":"EN205*'Zambia-IO-Data'!$BN16","v":13228.045955356123},{"$f":"(ER205*'Default-Data'!$F$19/geo_dollar_index)/'Zambia-IO-Data'!$BP16","v":0},{"$f":"(ES205*'Default-Data'!$F$19/geo_dollar_index)/'Zambia-IO-Data'!$BP16","v":17.875890874003776},{"$f":"(ET205*'Default-Data'!$F$19/geo_dollar_index)/'Zambia-IO-Data'!$BP16","v":131.89247234794129},37.38141959519109,106.72004730031497,{"$f":"EK205*'Zambia-IO-Data'!BO16","v":0},{"$f":"EX205*'Zambia-IO-Data'!$BO16","v":10.737742045990732},{"$f":"EY205*'Zambia-IO-Data'!$BO16","v":30.655131652467514},{"$f":"EK205*'Zambia-IO-Data'!BN16","v":0},{"$f":"EX205*'Zambia-IO-Data'!$BN16","v":7.5003919841939295},{"$f":"EY205*'Zambia-IO-Data'!$BN16","v":21.412835467250467},{"$f":"(FC205*'Default-Data'!$F$19/geo_dollar_index)/'Zambia-IO-Data'!$BP16","v":0},{"$f":"(FD205*'Default-Data'!$F$19/geo_dollar_index)/'Zambia-IO-Data'!$BP16","v":7.4783928458720422E-2},{"$f":"(FE205*'Default-Data'!$F$19/geo_dollar_index)/'Zambia-IO-Data'!$BP16","v":0.21350030225831007},null,"TTL_C21T22: Pulp, paper, paper products, printing and publishing",0,0,null,976927.68951075431,559441.99261132791,{"$f":"FK205*CustomRegion1!C14","v":0},{"$f":"FN205*CustomRegion1!$C14","v":258631.0687382528},{"$f":"FO205*CustomRegion1!$C14","v":148106.23344966894},{"$f":"FK205*CustomRegion1!D14","v":0},{"$f":"FN205*CustomRegion1!$D14","v":76675.29344972792},{"$f":"FO205*CustomRegion1!$D14","v":43908.448303943667},{"$f":"(FS205*'Default-Data'!$C$58/geo_dollar_index)/CustomRegion1!$E14","v":0},{"$f":"(FT205*'Default-Data'!$C$58/geo_dollar_index)/CustomRegion1!$E14","v":24.559855537062084},{"$f":"(FU205*'Default-Data'!$C$58/geo_dollar_index)/CustomRegion1!$E14","v":14.064310662318592},3133.4049453631847,5155.9874742243992,{"$f":"FL205*CustomRegion1!C14","v":0},{"$f":"FY205*CustomRegion1!$C14","v":829.53516264325935},{"$f":"FZ205*CustomRegion1!$C14","v":1364.9920717545815},{"$f":"FL205*CustomRegion1!D14","v":0},{"$f":"FY205*CustomRegion1!$D14","v":245.92889142375574},{"$f":"FZ205*CustomRegion1!$D14","v":404.67360773371274},{"$f":"(GD205*'Default-Data'!$C$58/geo_dollar_index)/CustomRegion1!$E14","v":0},{"$f":"(GE205*'Default-Data'!$C$58/geo_dollar_index)/CustomRegion1!$E14","v":7.8773458489824671E-2},{"$f":"(GF205*'Default-Data'!$C$58/geo_dollar_index)/CustomRegion1!$E14","v":0.12962096261317904},null,"C21T22 Pulp, paper, paper products, printing and publishing",0,0,null,217770.51305979787,126508.65461577941,{"$f":"GL205*CustomRegion2!C18","v":0},{"$f":"GO205*CustomRegion2!$C18","v":76058.466882590903},{"$f":"GP205*CustomRegion2!$C18","v":44184.376398163964},{"$f":"GL205*CustomRegion2!D18","v":0},{"$f":"GO205*CustomRegion2!$D18","v":29263.235619128565},{"$f":"GP205*CustomRegion2!$D18","v":16999.78806067265},{"$f":"(GT205*'Default-Data'!$C$59/geo_dollar_index)/CustomRegion2!$E18","v":0},{"$f":"(GU205*'Default-Data'!$C$59/geo_dollar_index)/CustomRegion2!$E18","v":4.085515400257429},{"$f":"(GV205*'Default-Data'!$C$59/geo_dollar_index)/CustomRegion2!$E18","v":2.3733840244785185},959.78211165067057,1309.0737006258819,{"$f":"GM205*CustomRegion2!C18","v":0},{"$f":"GZ205*CustomRegion2!$C18","v":335.21322482002262},{"$f":"HA205*CustomRegion2!$C18","v":457.2067049251263},{"$f":"GM205*CustomRegion2!D18","v":0},{"$f":"GZ205*CustomRegion2!$D18","v":128.97214449114179},{"$f":"HA205*CustomRegion2!$D18","v":175.90871971588174},{"$f":"(HE205*'Default-Data'!$C$59/geo_dollar_index)/CustomRegion2!$E18","v":0},{"$f":"(HF205*'Default-Data'!$C$59/geo_dollar_index)/CustomRegion2!$E18","v":1.8006131973265276E-2},{"$f":"(HG205*'Default-Data'!$C$59/geo_dollar_index)/CustomRegion2!$E18","v":2.4559067657201335E-2},null,"TOBAC",0,0,null,8935.4249124239705,65927.639158552585,{"$f":"HM205*CustomRegion3!D17","v":0},{"$f":"HP205*CustomRegion3!$D17","v":2566.683898577005},{"$f":"HQ205*CustomRegion3!$D17","v":18937.589600710729},{"$f":"HM205*CustomRegion3!E17","v":0},{"$f":"HP205*CustomRegion3!E$12","v":2803.2454424107286},{"$f":"HQ205*CustomRegion3!F$12","v":6808506.3448980004},{"$f":"(HU205*'Default-Data'!$C$60/geo_dollar_index)/CustomRegion3!$F17","v":0},{"$f":"(HV205*'Default-Data'!$C$60/geo_dollar_index)/CustomRegion3!$F17","v":27.950233409035338},{"$f":"(HW205*'Default-Data'!$C$60/geo_dollar_index)/CustomRegion3!$F17","v":67885.365522308304},37.38141959519109,106.72004730031497,{"$f":"HN205*CustomRegion3!D17","v":0},{"$f":"IA205*CustomRegion3!$D17","v":10.737742045990732},{"$f":"IB205*CustomRegion3!$D17","v":30.655131652467514},{"$f":"HN205*CustomRegion3!E17","v":0},{"$f":"IA205*CustomRegion3!$E17","v":7.5003919841939295},{"$f":"IB205*CustomRegion3!$E17","v":21.412835467250467},{"$f":"(IF205*'Default-Data'!$C$60/geo_dollar_index)/CustomRegion3!$F17","v":0},{"$f":"(IG205*'Default-Data'!$C$60/geo_dollar_index)/CustomRegion3!$F17","v":7.4783928458720422E-2},{"$f":"(IH205*'Default-Data'!$C$60/geo_dollar_index)/CustomRegion3!$F17","v":0.21350030225831007}]
[null,null,null,null,null,null,null,null,null,null,null,null,null,null,null,null,null,null,null,null,null,null,null,null,null,null,null,null,null,205,"TTL_C23: Coke, refined petroleum products and nuclear fuel",{"$f":"'Geothermal-Inputs'!B20*'Geothermal-Inputs'!C20","v":419274.31826076657},0,null,719149.00277534453,757715.79720810265,{"$f":"AF206*'Colombia-IO-Data'!AN19","v":226334.39395870973},{"$f":"AI206*'Colombia-IO-Data'!$AN19","v":388213.98454444524},{"$f":"AJ206*'Colombia-IO-Data'!$AN19","v":409033.27078424656},{"$f":"'Colombia-IO-Data'!$AO19*AK206","v":11862.294196528768},{"$f":"'Colombia-IO-Data'!$AO19*AL206","v":20346.481218903889},{"$f":"'Colombia-IO-Data'!$AO19*AM206","v":21437.630001104972},{"$f":"(AN206*'Default-Data'!$F$19/geo_dollar_index)/'Colombia-IO-Data'!$AP19","v":2.8714378791100303},{"$f":"(AO206*'Default-Data'!$F$19/geo_dollar_index)/'Colombia-IO-Data'!$AP19","v":4.925156627430284},{"$f":"(AP206*'Default-Data'!$F$19/geo_dollar_index)/'Colombia-IO-Data'!$AP19","v":5.1892847878896502},5820.5449490312203,10799.878107709997,{"$f":"AG206*'Colombia-IO-Data'!AN19","v":0},{"$f":"AT206*'Colombia-IO-Data'!$AN19","v":3142.0706114631689},{"$f":"AU206*'Colombia-IO-Data'!$AN19","v":5830.0348003099034},{"$f":"AV206*'Colombia-IO-Data'!$AO19","v":0},{"$f":"AW206*'Colombia-IO-Data'!$AO19","v":164.67742850537653},{"$f":"AX206*'Colombia-IO-Data'!$AO19","v":305.55492149325465},{"$f":"(Calculations!AY206*'Default-Data'!$F$19/geo_dollar_index)/'Colombia-IO-Data'!$AP19","v":0},{"$f":"(Calculations!AZ206*'Default-Data'!$F$19/geo_dollar_index)/'Colombia-IO-Data'!$AP19","v":3.9862525596704904E-2},{"$f":"(Calculations!BA206*'Default-Data'!$F$19/geo_dollar_index)/'Colombia-IO-Data'!$AP19","v":7.3963936586648557E-2},null,"DOM_C23: Coke, refined petroleum products and nuclear fuel",419274.31826076657,0,null,4104475.3995633954,941296.21690562181,{"$f":"BG206*'Mexico-IO-Data'!AQ19","v":52598.715996599196},{"$f":"BJ206*'Mexico-IO-Data'!$AQ19","v":514913.80810591584},{"$f":"BK206*'Mexico-IO-Data'!$AQ19","v":118087.30042677886},{"$f":"BG206*'Mexico-IO-Data'!AQ19","v":52598.715996599196},{"$f":"BJ206*'Mexico-IO-Data'!$AR19","v":131800.68096778778},{"$f":"BK206*'Mexico-IO-Data'!$AR19","v":30226.391999757241},{"$f":"(BO206*'Default-Data'!$F$19/geo_dollar_index)/'Mexico-IO-Data'!$AS19","v":1.1977146421808094},{"$f":"(BP206*'Default-Data'!$F$19/geo_dollar_index)/'Mexico-IO-Data'!$AS19","v":3.0012064449392164},{"$f":"(BQ206*'Default-Data'!$F$19/geo_dollar_index)/'Mexico-IO-Data'!$AS19","v":0.68827901199616404},56294.547357016607,5427.7601011029183,{"$f":"BH206*'Mexico-IO-Data'!AQ19","v":0},{"$f":"BU206*'Mexico-IO-Data'!$AQ19","v":7062.2520379300249},{"$f":"BV206*'Mexico-IO-Data'!$AQ19","v":680.92224975731324},{"$f":"BH206*'Mexico-IO-Data'!AR19","v":0},{"$f":"BU206*'Mexico-IO-Data'!$AR19","v":1807.6998773625044},{"$f":"BV206*'Mexico-IO-Data'!$AR19","v":174.29327936311921},{"$f":"(BZ206*'Default-Data'!$F$19/geo_dollar_index)/'Mexico-IO-Data'!$AS19","v":0},{"$f":"(CA206*'Default-Data'!$F$19/geo_dollar_index)/'Mexico-IO-Data'!$AS19","v":4.1162765492707303E-2},{"$f":"(CB206*'Default-Data'!$F$19/geo_dollar_index)/'Mexico-IO-Data'!$AS19","v":3.9687967428789573E-3},null,"TTL_C23: Coke, refined petroleum products and nuclear fuel",419274.31826076657,0,null,8681032.0451912805,1267394.4140811712,{"$f":"CH206*'Philippines-IO-Data'!AN19","v":71214.752835912019},{"$f":"CK206*'Philippines-IO-Data'!$AN19","v":1474494.202324193},{"$f":"CL206*'Philippines-IO-Data'!$AN19","v":215269.99392381316},{"$f":"CH206*'Philippines-IO-Data'!AO19","v":9682.2846706234341},{"$f":"CK206*'Philippines-IO-Data'!$AO19","v":200470.71770341601},{"$f":"CL206*'Philippines-IO-Data'!$AO19","v":29267.887329697605},{"$f":"(CP206*'Default-Data'!$F$19/geo_dollar_index)/'Philippines-IO-Data'!$AP19","v":3.1013316295311304},{"$f":"(CQ206*'Default-Data'!$F$19/geo_dollar_index)/'Philippines-IO-Data'!$AP19","v":64.212755435167139},{"$f":"(CR206*'Default-Data'!$F$19/geo_dollar_index)/'Philippines-IO-Data'!$AP19","v":9.3747940484071748},105679.99751785323,11256.202467224255,{"$f":"CI206*'Philippines-IO-Data'!AN19","v":0},{"$f":"CV206*'Philippines-IO-Data'!$AN19","v":17950.002123080081},{"$f":"CW206*'Philippines-IO-Data'!$AN19","v":1911.8931011553168},{"$f":"CI206*'Philippines-IO-Data'!AO19","v":0},{"$f":"CV206*'Philippines-IO-Data'!$AO19","v":2440.4638571786822},{"$f":"CW206*'Philippines-IO-Data'!$AO19","v":259.93902285723988},{"$f":"(DA206*'Default-Data'!$F$19/geo_dollar_index)/'Philippines-IO-Data'!$AP19","v":0},{"$f":"(DB206*'Default-Data'!$F$19/geo_dollar_index)/'Philippines-IO-Data'!$AP19","v":0.78170473276411623},{"$f":"(DC206*'Default-Data'!$F$19/geo_dollar_index)/'Philippines-IO-Data'!$AP19","v":8.3261042280908859E-2},null,"DOM_C23: Coke, refined petroleum products and nuclear fuel",419274.31826076657,0,null,893744.36198344338,1843136.2013487651,{"$f":"DI206*'SouthAfrica-IO-Data'!AR19","v":88958.357174860052},{"$f":"DL206*'SouthAfrica-IO-Data'!$AR19","v":189627.71320253392},{"$f":"DM206*'SouthAfrica-IO-Data'!$AR19","v":391062.27445946797},{"$f":"DI206*'SouthAfrica-IO-Data'!AS19","v":16868.057641264852},{"$f":"DL206*'SouthAfrica-IO-Data'!$AS19","v":35956.725126951111},{"$f":"DM206*'SouthAfrica-IO-Data'!$AS19","v":74152.234780372324},{"$f":"(DQ206*'Default-Data'!$F$19/geo_dollar_index)/'SouthAfrica-IO-Data'!$AT19","v":1.3530767984739105},{"$f":"(DR206*'Default-Data'!$F$19/geo_dollar_index)/'SouthAfrica-IO-Data'!$AT19","v":2.8842805468818185},{"$f":"(DS206*'Default-Data'!$F$19/geo_dollar_index)/'SouthAfrica-IO-Data'!$AT19","v":5.9481459318032313},7343.6821764020106,16480.968420640493,{"$f":"DJ206*'SouthAfrica-IO-Data'!AR19","v":0},{"$f":"DW206*'SouthAfrica-IO-Data'!$AR19","v":1558.1252501631086},{"$f":"DX206*'SouthAfrica-IO-Data'!$AR19","v":3496.8034327327359},{"$f":"DJ206*'SouthAfrica-IO-Data'!$AS19","v":0},{"$f":"DZ206*'SouthAfrica-IO-Data'!$AS19","v":62.685801126782046},{"$f":"EA206*'SouthAfrica-IO-Data'!$AS19","v":140.68183834437357},{"$f":"(EB206*'Default-Data'!$F$19/geo_dollar_index)/'SouthAfrica-IO-Data'!$AT19","v":0},{"$f":"(EC206*'Default-Data'!$F$19/geo_dollar_index)/'SouthAfrica-IO-Data'!$AT19","v":5.0283621802965552E-3},{"$f":"(ED206*'Default-Data'!$F$19/geo_dollar_index)/'SouthAfrica-IO-Data'!$AT19","v":1.1284839990394743E-2},null,"COFFEE",0,0,null,293.81653049830703,40752.928750537307,{"$f":"EJ206*'Zambia-IO-Data'!BO17","v":0},{"$f":"EM206*'Zambia-IO-Data'!$BO17","v":93.791549749056884},{"$f":"EN206*'Zambia-IO-Data'!$BO17","v":13009.071810368459},{"$f":"EJ206*'Zambia-IO-Data'!BN17","v":0},{"$f":"EM206*'Zambia-IO-Data'!$BN17","v":74.587458109802668},{"$f":"EN206*'Zambia-IO-Data'!$BN17","v":10345.426654100351},{"$f":"(ER206*'Default-Data'!$F$19/geo_dollar_index)/'Zambia-IO-Data'!$BP17","v":0},{"$f":"(ES206*'Default-Data'!$F$19/geo_dollar_index)/'Zambia-IO-Data'!$BP17","v":0.74368688235975611},{"$f":"(ET206*'Default-Data'!$F$19/geo_dollar_index)/'Zambia-IO-Data'!$BP17","v":103.15082843744557},0.91276225836445446,65.941312238470303,{"$f":"EK206*'Zambia-IO-Data'!BO17","v":0},{"$f":"EX206*'Zambia-IO-Data'!$BO17","v":0.29137021875270058},{"$f":"EY206*'Zambia-IO-Data'!$BO17","v":21.049659312372206},{"$f":"EK206*'Zambia-IO-Data'!BN17","v":0},{"$f":"EX206*'Zambia-IO-Data'!$BN17","v":0.23171132200936501},{"$f":"EY206*'Zambia-IO-Data'!$BN17","v":16.739680561712515},{"$f":"(FC206*'Default-Data'!$F$19/geo_dollar_index)/'Zambia-IO-Data'!$BP17","v":0},{"$f":"(FD206*'Default-Data'!$F$19/geo_dollar_index)/'Zambia-IO-Data'!$BP17","v":2.3103169760648398E-3},{"$f":"(FE206*'Default-Data'!$F$19/geo_dollar_index)/'Zambia-IO-Data'!$BP17","v":0.16690581988075648},null,"TTL_C23: Coke, refined petroleum products and nuclear fuel",419274.31826076657,0,null,12440814.3835712,2403083.3580987547,{"$f":"FK206*CustomRegion1!C15","v":71214.752835912019},{"$f":"FN206*CustomRegion1!$C15","v":2113102.2884460469},{"$f":"FO206*CustomRegion1!$C15","v":408169.49652675673},{"$f":"FK206*CustomRegion1!D15","v":9682.2846706234341},{"$f":"FN206*CustomRegion1!$D15","v":287295.21735506336},{"$f":"FO206*CustomRegion1!$D15","v":55494.305629945105},{"$f":"(FS206*'Default-Data'!$C$58/geo_dollar_index)/CustomRegion1!$E15","v":3.1013316295311304},{"$f":"(FT206*'Default-Data'!$C$58/geo_dollar_index)/CustomRegion1!$E15","v":92.023502190512261},{"$f":"(FU206*'Default-Data'!$C$58/geo_dollar_index)/CustomRegion1!$E15","v":17.775375457736306},149961.58655935584,22147.54676537562,{"$f":"FL206*CustomRegion1!C15","v":0},{"$f":"FY206*CustomRegion1!$C15","v":25471.33668001978},{"$f":"FZ206*CustomRegion1!$C15","v":3761.8141634829922},{"$f":"FL206*CustomRegion1!D15","v":0},{"$f":"FY206*CustomRegion1!$D15","v":3463.0567804607836},{"$f":"FZ206*CustomRegion1!$D15","v":511.45239094978933},{"$f":"(GD206*'Default-Data'!$C$58/geo_dollar_index)/CustomRegion1!$E15","v":0},{"$f":"(GE206*'Default-Data'!$C$58/geo_dollar_index)/CustomRegion1!$E15","v":1.1092513692239672},{"$f":"(GF206*'Default-Data'!$C$58/geo_dollar_index)/CustomRegion1!$E15","v":0.16382326393113267},null,"C23 Coke, refined petroleum products and nuclear fuel",419274.31826076657,0,null,322115.61669553199,205870.67342192319,{"$f":"GL206*CustomRegion2!C19","v":70109.470624605645},{"$f":"GO206*CustomRegion2!$C19","v":53862.958886016182},{"$f":"GP206*CustomRegion2!$C19","v":34424.917773678753},{"$f":"GL206*CustomRegion2!D19","v":29742.170819406805},{"$f":"GO206*CustomRegion2!$D19","v":22849.998862555094},{"$f":"GP206*CustomRegion2!$D19","v":14603.901238265071},{"$f":"(GT206*'Default-Data'!$C$59/geo_dollar_index)/CustomRegion2!$E19","v":0.67725291018414857},{"$f":"(GU206*'Default-Data'!$C$59/geo_dollar_index)/CustomRegion2!$E19","v":0.52031266720021385},{"$f":"(GV206*'Default-Data'!$C$59/geo_dollar_index)/CustomRegion2!$E19","v":0.33254245877719607},3568.7421819437491,2130.2881223840336,{"$f":"GM206*CustomRegion2!C19","v":0},{"$f":"GZ206*CustomRegion2!$C19","v":596.75161171251011},{"$f":"HA206*CustomRegion2!$C19","v":356.21874756788651},{"$f":"GM206*CustomRegion2!D19","v":0},{"$f":"GZ206*CustomRegion2!$D19","v":253.1567877233509},{"$f":"HA206*CustomRegion2!$D19","v":151.11679983960551},{"$f":"(HE206*'Default-Data'!$C$59/geo_dollar_index)/CustomRegion2!$E19","v":0},{"$f":"(HF206*'Default-Data'!$C$59/geo_dollar_index)/CustomRegion2!$E19","v":5.7645816191277477E-3},{"$f":"(HG206*'Default-Data'!$C$59/geo_dollar_index)/CustomRegion2!$E19","v":3.4410498510858032E-3},null,"COFFEE",0,0,null,293.81653049830703,40752.928750537307,{"$f":"HM206*CustomRegion3!D18","v":0},{"$f":"HP206*CustomRegion3!$D18","v":93.791549749056884},{"$f":"HQ206*CustomRegion3!$D18","v":13009.071810368459},{"$f":"HM206*CustomRegion3!E18","v":0},{"$f":"HP206*CustomRegion3!E$12","v":92.176909111407667},{"$f":"HQ206*CustomRegion3!F$12","v":4208653.267621438},{"$f":"(HU206*'Default-Data'!$C$60/geo_dollar_index)/CustomRegion3!$F18","v":0},{"$f":"(HV206*'Default-Data'!$C$60/geo_dollar_index)/CustomRegion3!$F18","v":0.91906548231883067},{"$f":"(HW206*'Default-Data'!$C$60/geo_dollar_index)/CustomRegion3!$F18","v":41963.090134040074},0.91276225836445446,65.941312238470303,{"$f":"HN206*CustomRegion3!D18","v":0},{"$f":"IA206*CustomRegion3!$D18","v":0.29137021875270058},{"$f":"IB206*CustomRegion3!$D18","v":21.049659312372206},{"$f":"HN206*CustomRegion3!E18","v":0},{"$f":"IA206*CustomRegion3!$E18","v":0.23171132200936501},{"$f":"IB206*CustomRegion3!$E18","v":16.739680561712515},{"$f":"(IF206*'Default-Data'!$C$60/geo_dollar_index)/CustomRegion3!$F18","v":0},{"$f":"(IG206*'Default-Data'!$C$60/geo_dollar_index)/CustomRegion3!$F18","v":2.3103169760648398E-3},{"$f":"(IH206*'Default-Data'!$C$60/geo_dollar_index)/CustomRegion3!$F18","v":0.16690581988075648}]
[null,null,null,null,null,null,null,null,null,null,null,null,null,null,null,null,null,null,null,null,null,null,null,null,null,null,null,null,null,206,"TTL_C24: Chemicals and chemical products",{"$f":"'Geothermal-Inputs'!B22*'Geothermal-Inputs'!C22","v":70736.052902628187},0,null,424061.43177342205,896443.08541400218,{"$f":"AF207*'Colombia-IO-Data'!AN20","v":21877.609275323419},{"$f":"AI207*'Colombia-IO-Data'!$AN20","v":131155.89480012454},{"$f":"AJ207*'Colombia-IO-Data'!$AN20","v":277256.51567313046},{"$f":"'Colombia-IO-Data'!$AO20*AK207","v":8026.4998368208899},{"$f":"'Colombia-IO-Data'!$AO20*AL207","v":48118.729746156641},{"$f":"'Colombia-IO-Data'!$AO20*AM207","v":101720.40965728473},{"$f":"(AN207*'Default-Data'!$F$19/geo_dollar_index)/'Colombia-IO-Data'!$AP20","v":1.9429290225209839},{"$f":"(AO207*'Default-Data'!$F$19/geo_dollar_index)/'Colombia-IO-Data'!$AP20","v":11.647826381527873},{"$f":"(AP207*'Default-Data'!$F$19/geo_dollar_index)/'Colombia-IO-Data'!$AP20","v":24.622879228032367},4224.088826539265,10115.069054900956,{"$f":"AG207*'Colombia-IO-Data'!AN20","v":0},{"$f":"AT207*'Colombia-IO-Data'!$AN20","v":1306.4478593185945},{"$f":"AU207*'Colombia-IO-Data'!$AN20","v":3128.4404415476779},{"$f":"AV207*'Colombia-IO-Data'!$AO20","v":0},{"$f":"AW207*'Colombia-IO-Data'!$AO20","v":479.31213130602367},{"$f":"AX207*'Colombia-IO-Data'!$AO20","v":1147.7683131451345},{"$f":"(Calculations!AY207*'Default-Data'!$F$19/geo_dollar_index)/'Colombia-IO-Data'!$AP20","v":0},{"$f":"(Calculations!AZ207*'Default-Data'!$F$19/geo_dollar_index)/'Colombia-IO-Data'!$AP20","v":0.11602435304224915},{"$f":"(Calculations!BA207*'Default-Data'!$F$19/geo_dollar_index)/'Colombia-IO-Data'!$AP20","v":0.27783372728789574},null,"DOM_C24: Chemicals and chemical products",70736.052902628187,0,null,5138402.3996277293,896881.08745393995,{"$f":"BG207*'Mexico-IO-Data'!AQ20","v":20750.298173653009},{"$f":"BJ207*'Mexico-IO-Data'!$AQ20","v":1507341.4129462675},{"$f":"BK207*'Mexico-IO-Data'!$AQ20","v":263098.50814828178},{"$f":"BG207*'Mexico-IO-Data'!AQ20","v":20750.298173653009},{"$f":"BJ207*'Mexico-IO-Data'!$AR20","v":329964.73641991522},{"$f":"BK207*'Mexico-IO-Data'!$AR20","v":57593.607624655211},{"$f":"(BO207*'Default-Data'!$F$19/geo_dollar_index)/'Mexico-IO-Data'!$AS20","v":1.6801167800078531},{"$f":"(BP207*'Default-Data'!$F$19/geo_dollar_index)/'Mexico-IO-Data'!$AS20","v":26.716690325629742},{"$f":"(BQ207*'Default-Data'!$F$19/geo_dollar_index)/'Mexico-IO-Data'!$AS20","v":4.6632576448580512},74373.688463320432,5171.6508517577458,{"$f":"BH207*'Mexico-IO-Data'!AQ20","v":0},{"$f":"BU207*'Mexico-IO-Data'!$AQ20","v":21817.392242859165},{"$f":"BV207*'Mexico-IO-Data'!$AQ20","v":1517.0947885899436},{"$f":"BH207*'Mexico-IO-Data'!AR20","v":0},{"$f":"BU207*'Mexico-IO-Data'!$AR20","v":4775.9386287368925},{"$f":"BV207*'Mexico-IO-Data'!$AR20","v":332.09980017908009},{"$f":"(BZ207*'Default-Data'!$F$19/geo_dollar_index)/'Mexico-IO-Data'!$AS20","v":0},{"$f":"(CA207*'Default-Data'!$F$19/geo_dollar_index)/'Mexico-IO-Data'!$AS20","v":0.38669972659076884},{"$f":"(CB207*'Default-Data'!$F$19/geo_dollar_index)/'Mexico-IO-Data'!$AS20","v":2.6889562851033465E-2},null,"TTL_C24: Chemicals and chemical products",70736.052902628187,0,null,1709230.6510292899,622260.12801775918,{"$f":"CH207*'Philippines-IO-Data'!AN20","v":19089.565756431941},{"$f":"CK207*'Philippines-IO-Data'!$AN20","v":461270.73206427519},{"$f":"CL207*'Philippines-IO-Data'!$AN20","v":167929.5796692583},{"$f":"CH207*'Philippines-IO-Data'!AO20","v":4950.4280930061386},{"$f":"CK207*'Philippines-IO-Data'!$AO20","v":119619.67179494949},{"$f":"CL207*'Philippines-IO-Data'!$AO20","v":43548.57095485826},{"$f":"(CP207*'Default-Data'!$F$19/geo_dollar_index)/'Philippines-IO-Data'!$AP20","v":1.5856711248266628},{"$f":"(CQ207*'Default-Data'!$F$19/geo_dollar_index)/'Philippines-IO-Data'!$AP20","v":38.315365047815995},{"$f":"(CR207*'Default-Data'!$F$19/geo_dollar_index)/'Philippines-IO-Data'!$AP20","v":13.949038384809887},8545.1390673421283,5526.5242693425807,{"$f":"CI207*'Philippines-IO-Data'!AN20","v":0},{"$f":"CV207*'Philippines-IO-Data'!$AN20","v":2306.0799610692193},{"$f":"CW207*'Philippines-IO-Data'!$AN20","v":1491.4452265149273},{"$f":"CI207*'Philippines-IO-Data'!AO20","v":0},{"$f":"CV207*'Philippines-IO-Data'!$AO20","v":598.0273815369053},{"$f":"CW207*'Philippines-IO-Data'!$AO20","v":386.77110012477425},{"$f":"(DA207*'Default-Data'!$F$19/geo_dollar_index)/'Philippines-IO-Data'!$AP20","v":0},{"$f":"(DB207*'Default-Data'!$F$19/geo_dollar_index)/'Philippines-IO-Data'!$AP20","v":0.19155409046309979},{"$f":"(DC207*'Default-Data'!$F$19/geo_dollar_index)/'Philippines-IO-Data'!$AP20","v":0.12388661220061804},null,"DOM_C24: Chemicals and chemical products",70736.052902628187,0,null,512415.43083237391,652045.76935203909,{"$f":"DI207*'SouthAfrica-IO-Data'!AR20","v":16390.885525304435},{"$f":"DL207*'SouthAfrica-IO-Data'!$AR20","v":118736.37732846884},{"$f":"DM207*'SouthAfrica-IO-Data'!$AR20","v":151091.37595534732},{"$f":"DI207*'SouthAfrica-IO-Data'!AS20","v":11412.621374161552},{"$f":"DL207*'SouthAfrica-IO-Data'!$AS20","v":82673.588055836648},{"$f":"DM207*'SouthAfrica-IO-Data'!$AS20","v":105201.67833625623},{"$f":"(DQ207*'Default-Data'!$F$19/geo_dollar_index)/'SouthAfrica-IO-Data'!$AT20","v":0.91546718179150732},{"$f":"(DR207*'Default-Data'!$F$19/geo_dollar_index)/'SouthAfrica-IO-Data'!$AT20","v":6.6316890909411343},{"$f":"(DS207*'Default-Data'!$F$19/geo_dollar_index)/'SouthAfrica-IO-Data'!$AT20","v":8.4387872714566985},7251.673004086183,5830.4675073058943,{"$f":"DJ207*'SouthAfrica-IO-Data'!AR20","v":0},{"$f":"DW207*'SouthAfrica-IO-Data'!$AR20","v":1680.350220283508},{"$f":"DX207*'SouthAfrica-IO-Data'!$AR20","v":1351.0299422956248},{"$f":"DJ207*'SouthAfrica-IO-Data'!$AS20","v":0},{"$f":"DZ207*'SouthAfrica-IO-Data'!$AS20","v":271.10928661064872},{"$f":"EA207*'SouthAfrica-IO-Data'!$AS20","v":217.97644290104873},{"$f":"(EB207*'Default-Data'!$F$19/geo_dollar_index)/'SouthAfrica-IO-Data'!$AT20","v":0},{"$f":"(EC207*'Default-Data'!$F$19/geo_dollar_index)/'SouthAfrica-IO-Data'!$AT20","v":2.1747120703826069E-2},{"$f":"(ED207*'Default-Data'!$F$19/geo_dollar_index)/'SouthAfrica-IO-Data'!$AT20","v":1.7485052148610406E-2},null,"WHEAT",0,0,null,1646.8608694175905,228422.83094010499,{"$f":"EJ207*'Zambia-IO-Data'!BO18","v":0},{"$f":"EM207*'Zambia-IO-Data'!$BO18","v":355.82552508494246},{"$f":"EN207*'Zambia-IO-Data'!$BO18","v":49353.69785633195},{"$f":"EJ207*'Zambia-IO-Data'!BN18","v":0},{"$f":"EM207*'Zambia-IO-Data'!$BN18","v":215.49199955600312},{"$f":"EN207*'Zambia-IO-Data'!$BN18","v":29889.162768761282},{"$f":"(ER207*'Default-Data'!$F$19/geo_dollar_index)/'Zambia-IO-Data'!$BP18","v":0},{"$f":"(ES207*'Default-Data'!$F$19/geo_dollar_index)/'Zambia-IO-Data'!$BP18","v":2.148599474825271},{"$f":"(ET207*'Default-Data'!$F$19/geo_dollar_index)/'Zambia-IO-Data'!$BP18","v":298.01495907154441},5.1160921539447219,369.60536774226767,{"$f":"EK207*'Zambia-IO-Data'!BO18","v":0},{"$f":"EX207*'Zambia-IO-Data'!$BO18","v":1.1053976755815014},{"$f":"EY207*'Zambia-IO-Data'!$BO18","v":79.858005307768181},{"$f":"EK207*'Zambia-IO-Data'!BN18","v":0},{"$f":"EX207*'Zambia-IO-Data'!$BN18","v":0.66944144987561471},{"$f":"EY207*'Zambia-IO-Data'!$BN18","v":48.362919552263179},{"$f":"(FC207*'Default-Data'!$F$19/geo_dollar_index)/'Zambia-IO-Data'!$BP18","v":0},{"$f":"(FD207*'Default-Data'!$F$19/geo_dollar_index)/'Zambia-IO-Data'!$BP18","v":6.674779344906517E-3},{"$f":"(FE207*'Default-Data'!$F$19/geo_dollar_index)/'Zambia-IO-Data'!$BP18","v":0.48221067958490127},null,"TTL_C24: Chemicals and chemical products",70736.052902628187,0,null,3916859.6584846955,1561605.5425482364,{"$f":"FK207*CustomRegion1!C16","v":19089.565756431941},{"$f":"FN207*CustomRegion1!$C16","v":1057044.4199407829},{"$f":"FO207*CustomRegion1!$C16","v":421431.08735680574},{"$f":"FK207*CustomRegion1!D16","v":4950.4280930061386},{"$f":"FN207*CustomRegion1!$D16","v":274119.50899234624},{"$f":"FO207*CustomRegion1!$D16","v":109288.2007237027},{"$f":"(FS207*'Default-Data'!$C$58/geo_dollar_index)/CustomRegion1!$E16","v":1.5856711248266628},{"$f":"(FT207*'Default-Data'!$C$58/geo_dollar_index)/CustomRegion1!$E16","v":87.803192369344686},{"$f":"(FU207*'Default-Data'!$C$58/geo_dollar_index)/CustomRegion1!$E16","v":35.006092587560964},22866.656709662464,14392.231408077292,{"$f":"FL207*CustomRegion1!C16","v":0},{"$f":"FY207*CustomRegion1!$C16","v":6171.0334260485515},{"$f":"FZ207*CustomRegion1!$C16","v":3884.0370160952043},{"$f":"FL207*CustomRegion1!D16","v":0},{"$f":"FY207*CustomRegion1!$D16","v":1600.3117946723098},{"$f":"FZ207*CustomRegion1!$D16","v":1007.2332814734128},{"$f":"(GD207*'Default-Data'!$C$58/geo_dollar_index)/CustomRegion1!$E16","v":0},{"$f":"(GE207*'Default-Data'!$C$58/geo_dollar_index)/CustomRegion1!$E16","v":0.51259571007938487},{"$f":"(GF207*'Default-Data'!$C$58/geo_dollar_index)/CustomRegion1!$E16","v":0.32262679113614523},null,"C24 Chemicals and chemical products",70736.052902628187,0,null,878195.73605681048,461314.81662581139,{"$f":"GL207*CustomRegion2!C20","v":23307.049168246936},{"$f":"GO207*CustomRegion2!$C20","v":289359.53251160838},{"$f":"GP207*CustomRegion2!$C20","v":152000.09997644526},{"$f":"GL207*CustomRegion2!D20","v":8263.0270644125012},{"$f":"GO207*CustomRegion2!$D20","v":102586.37338555069},{"$f":"GP207*CustomRegion2!$D20","v":53888.457986774949},{"$f":"(GT207*'Default-Data'!$C$59/geo_dollar_index)/CustomRegion2!$E20","v":0.66904341847992121},{"$f":"(GU207*'Default-Data'!$C$59/geo_dollar_index)/CustomRegion2!$E20","v":8.3062462950079112},{"$f":"(GV207*'Default-Data'!$C$59/geo_dollar_index)/CustomRegion2!$E20","v":4.3632579037966552},15805.174926393107,4773.5476753586208,{"$f":"GM207*CustomRegion2!C20","v":0},{"$f":"GZ207*CustomRegion2!$C20","v":5207.697828846497},{"$f":"HA207*CustomRegion2!$C20","v":1572.8515489789295},{"$f":"GM207*CustomRegion2!D20","v":0},{"$f":"GZ207*CustomRegion2!$D20","v":1846.2804017964611},{"$f":"HA207*CustomRegion2!$D20","v":557.62163728655162},{"$f":"(HE207*'Default-Data'!$C$59/geo_dollar_index)/CustomRegion2!$E20","v":0},{"$f":"(HF207*'Default-Data'!$C$59/geo_dollar_index)/CustomRegion2!$E20","v":0.14949022214998783},{"$f":"(HG207*'Default-Data'!$C$59/geo_dollar_index)/CustomRegion2!$E20","v":4.5149687096552017E-2},null,"WHEAT",0,0,null,1646.8608694175905,228422.83094010499,{"$f":"HM207*CustomRegion3!D19","v":0},{"$f":"HP207*CustomRegion3!$D19","v":355.82552508494246},{"$f":"HQ207*CustomRegion3!$D19","v":49353.69785633195},{"$f":"HM207*CustomRegion3!E19","v":0},{"$f":"HP207*CustomRegion3!E$12","v":516.65760405646654},{"$f":"HQ207*CustomRegion3!F$12","v":23589776.81629169},{"$f":"(HU207*'Default-Data'!$C$60/geo_dollar_index)/CustomRegion3!$F19","v":0},{"$f":"(HV207*'Default-Data'!$C$60/geo_dollar_index)/CustomRegion3!$F19","v":5.1514221364478603},{"$f":"(HW207*'Default-Data'!$C$60/geo_dollar_index)/CustomRegion3!$F19","v":235205.86464073075},5.1160921539447219,369.60536774226767,{"$f":"HN207*CustomRegion3!D19","v":0},{"$f":"IA207*CustomRegion3!$D19","v":1.1053976755815014},{"$f":"IB207*CustomRegion3!$D19","v":79.858005307768181},{"$f":"HN207*CustomRegion3!E19","v":0},{"$f":"IA207*CustomRegion3!$E19","v":0.66944144987561471},{"$f":"IB207*CustomRegion3!$E19","v":48.362919552263179},{"$f":"(IF207*'Default-Data'!$C$60/geo_dollar_index)/CustomRegion3!$F19","v":0},{"$f":"(IG207*'Default-Data'!$C$60/geo_dollar_index)/CustomRegion3!$F19","v":6.674779344906517E-3},{"$f":"(IH207*'Default-Data'!$C$60/geo_dollar_index)/CustomRegion3!$F19","v":0.48221067958490127}]
[null,null,null,null,null,null,null,null,null,null,null,null,null,null,null,null,null,null,null,null,null,null,null,null,null,null,null,null,null,207,"TTL_C25: Rubber and plastics products",0,0,null,309823.98185204656,242130.36185846967,{"$f":"AF208*'Colombia-IO-Data'!AN21","v":0},{"$f":"AI208*'Colombia-IO-Data'!$AN21","v":77979.84112696597},{"$f":"AJ208*'Colombia-IO-Data'!$AN21","v":60941.980788158682},{"$f":"'Colombia-IO-Data'!$AO21*AK208","v":0},{"$f":"'Colombia-IO-Data'!$AO21*AL208","v":45161.934559458787},{"$f":"'Colombia-IO-Data'!$AO21*AM208","v":35294.477502171612},{"$f":"(AN208*'Default-Data'!$F$19/geo_dollar_index)/'Colombia-IO-Data'!$AP21","v":0},{"$f":"(AO208*'Default-Data'!$F$19/geo_dollar_index)/'Colombia-IO-Data'!$AP21","v":10.932091839862323},{"$f":"(AP208*'Default-Data'!$F$19/geo_dollar_index)/'Colombia-IO-Data'!$AP21","v":8.5435328060560938},2841.156838634211,4432.3177250340013,{"$f":"AG208*'Colombia-IO-Data'!AN21","v":0},{"$f":"AT208*'Colombia-IO-Data'!$AN21","v":715.09299431600857},{"$f":"AU208*'Colombia-IO-Data'!$AN21","v":1115.573526478785},{"$f":"AV208*'Colombia-IO-Data'!$AO21","v":0},{"$f":"AW208*'Colombia-IO-Data'!$AO21","v":414.14527840143529},{"$f":"AX208*'Colombia-IO-Data'!$AO21","v":646.0831141867676},{"$f":"(Calculations!AY208*'Default-Data'!$F$19/geo_dollar_index)/'Colombia-IO-Data'!$AP21","v":0},{"$f":"(Calculations!AZ208*'Default-Data'!$F$19/geo_dollar_index)/'Colombia-IO-Data'!$AP21","v":0.10024978475111845},{"$f":"(Calculations!BA208*'Default-Data'!$F$19/geo_dollar_index)/'Colombia-IO-Data'!$AP21","v":0.15639365340240288},null,"DOM_C25: Rubber and plastics products",0,0,null,95134.599366309994,151692.54488315666,{"$f":"BG208*'Mexico-IO-Data'!AQ21","v":0},{"$f":"BJ208*'Mexico-IO-Data'!$AQ21","v":29343.911672896764},{"$f":"BK208*'Mexico-IO-Data'!$AQ21","v":46788.9986202496},{"$f":"BG208*'Mexico-IO-Data'!AQ21","v":0},{"$f":"BJ208*'Mexico-IO-Data'!$AR21","v":10258.651372029904},{"$f":"BK208*'Mexico-IO-Data'!$AR21","v":16357.465570442988},{"$f":"(BO208*'Default-Data'!$F$19/geo_dollar_index)/'Mexico-IO-Data'!$AS21","v":0},{"$f":"(BP208*'Default-Data'!$F$19/geo_dollar_index)/'Mexico-IO-Data'!$AS21","v":1.9341255937706772},{"$f":"(BQ208*'Default-Data'!$F$19/geo_dollar_index)/'Mexico-IO-Data'!$AS21","v":3.0839719239582934},860.54571932699946,874.6988758312566,{"$f":"BH208*'Mexico-IO-Data'!AQ21","v":0},{"$f":"BU208*'Mexico-IO-Data'!$AQ21","v":265.43211141501155},{"$f":"BV208*'Mexico-IO-Data'!$AQ21","v":269.79759965083713},{"$f":"BH208*'Mexico-IO-Data'!AR21","v":0},{"$f":"BU208*'Mexico-IO-Data'!$AR21","v":92.795245715773277},{"$f":"BV208*'Mexico-IO-Data'!$AR21","v":94.321423356274991},{"$f":"(BZ208*'Default-Data'!$F$19/geo_dollar_index)/'Mexico-IO-Data'!$AS21","v":0},{"$f":"(CA208*'Default-Data'!$F$19/geo_dollar_index)/'Mexico-IO-Data'!$AS21","v":1.7495248957232295E-2},{"$f":"(CB208*'Default-Data'!$F$19/geo_dollar_index)/'Mexico-IO-Data'!$AS21","v":1.7782988459052487E-2},null,"TTL_C25: Rubber and plastics products",0,0,null,460709.24953034351,159669.29493939941,{"$f":"CH208*'Philippines-IO-Data'!AN21","v":0},{"$f":"CK208*'Philippines-IO-Data'!$AN21","v":141687.91554950143},{"$f":"CL208*'Philippines-IO-Data'!$AN21","v":49105.177723878187},{"$f":"CH208*'Philippines-IO-Data'!AO21","v":0},{"$f":"CK208*'Philippines-IO-Data'!$AO21","v":40037.091949538968},{"$f":"CL208*'Philippines-IO-Data'!$AO21","v":13875.767090683843},{"$f":"(CP208*'Default-Data'!$F$19/geo_dollar_index)/'Philippines-IO-Data'!$AP21","v":0},{"$f":"(CQ208*'Default-Data'!$F$19/geo_dollar_index)/'Philippines-IO-Data'!$AP21","v":12.824276897609156},{"$f":"(CR208*'Default-Data'!$F$19/geo_dollar_index)/'Philippines-IO-Data'!$AP21","v":4.4445455619488685},1239.2720642231459,1418.0825571491921,{"$f":"CI208*'Philippines-IO-Data'!AN21","v":0},{"$f":"CV208*'Philippines-IO-Data'!$AN21","v":381.12947755554148},{"$f":"CW208*'Philippines-IO-Data'!$AN21","v":436.12139718141759},{"$f":"CI208*'Philippines-IO-Data'!AO21","v":0},{"$f":"CV208*'Philippines-IO-Data'!$AO21","v":107.69666473242613},{"$f":"CW208*'Philippines-IO-Data'!$AO21","v":123.23586251089614},{"$f":"(DA208*'Default-Data'!$F$19/geo_dollar_index)/'Philippines-IO-Data'!$AP21","v":0},{"$f":"(DB208*'Default-Data'!$F$19/geo_dollar_index)/'Philippines-IO-Data'!$AP21","v":3.4496307854185081E-2},{"$f":"(DC208*'Default-Data'!$F$19/geo_dollar_index)/'Philippines-IO-Data'!$AP21","v":3.9473666732521576E-2},null,"DOM_C25: Rubber and plastics products",0,0,null,249729.6948139318,361215.44291128835,{"$f":"DI208*'SouthAfrica-IO-Data'!AR21","v":0},{"$f":"DL208*'SouthAfrica-IO-Data'!$AR21","v":73551.708998798858},{"$f":"DM208*'SouthAfrica-IO-Data'!$AR21","v":106387.08048988157},{"$f":"DI208*'SouthAfrica-IO-Data'!AS21","v":0},{"$f":"DL208*'SouthAfrica-IO-Data'!$AS21","v":69429.47845667474},{"$f":"DM208*'SouthAfrica-IO-Data'!$AS21","v":100424.58038685923},{"$f":"(DQ208*'Default-Data'!$F$19/geo_dollar_index)/'SouthAfrica-IO-Data'!$AT21","v":0},{"$f":"(DR208*'Default-Data'!$F$19/geo_dollar_index)/'SouthAfrica-IO-Data'!$AT21","v":5.5693084780582032},{"$f":"(DS208*'Default-Data'!$F$19/geo_dollar_index)/'SouthAfrica-IO-Data'!$AT21","v":8.0555907863110807},3165.5348114718736,3229.9188216867606,{"$f":"DJ208*'SouthAfrica-IO-Data'!AR21","v":0},{"$f":"DW208*'SouthAfrica-IO-Data'!$AR21","v":932.33003569088487},{"$f":"DX208*'SouthAfrica-IO-Data'!$AR21","v":951.29275450984403},{"$f":"DJ208*'SouthAfrica-IO-Data'!$AS21","v":0},{"$f":"DZ208*'SouthAfrica-IO-Data'!$AS21","v":259.20501034424797},{"$f":"EA208*'SouthAfrica-IO-Data'!$AS21","v":264.47699723672326},{"$f":"(EB208*'Default-Data'!$F$19/geo_dollar_index)/'SouthAfrica-IO-Data'!$AT21","v":0},{"$f":"(EC208*'Default-Data'!$F$19/geo_dollar_index)/'SouthAfrica-IO-Data'!$AT21","v":2.0792215262947892E-2},{"$f":"(ED208*'Default-Data'!$F$19/geo_dollar_index)/'SouthAfrica-IO-Data'!$AT21","v":2.1215109427633234E-2},null,"HORTI",0,0,null,5897.5467591935349,2001960.8928484321,{"$f":"EJ208*'Zambia-IO-Data'!BO19","v":0},{"$f":"EM208*'Zambia-IO-Data'!$BO19","v":2843.0170960959649},{"$f":"EN208*'Zambia-IO-Data'!$BO19","v":965080.78299016971},{"$f":"EJ208*'Zambia-IO-Data'!BN19","v":0},{"$f":"EM208*'Zambia-IO-Data'!$BN19","v":2395.1546379102574},{"$f":"EN208*'Zambia-IO-Data'!$BN19","v":813050.93680623558},{"$f":"(ER208*'Default-Data'!$F$19/geo_dollar_index)/'Zambia-IO-Data'!$BP19","v":0},{"$f":"(ES208*'Default-Data'!$F$19/geo_dollar_index)/'Zambia-IO-Data'!$BP19","v":23.881294933187828},{"$f":"(ET208*'Default-Data'!$F$19/geo_dollar_index)/'Zambia-IO-Data'!$BP19","v":8106.662054402972},80.663278535957303,3090.0529085838239,{"$f":"EK208*'Zambia-IO-Data'!BO19","v":0},{"$f":"EX208*'Zambia-IO-Data'!$BO19","v":38.885165182859332},{"$f":"EY208*'Zambia-IO-Data'!$BO19","v":1489.6148526927823},{"$f":"EK208*'Zambia-IO-Data'!BN19","v":0},{"$f":"EX208*'Zambia-IO-Data'!$BN19","v":32.759558098164959},{"$f":"EY208*'Zambia-IO-Data'!$BN19","v":1254.9547901159335},{"$f":"(FC208*'Default-Data'!$F$19/geo_dollar_index)/'Zambia-IO-Data'!$BP19","v":0},{"$f":"(FD208*'Default-Data'!$F$19/geo_dollar_index)/'Zambia-IO-Data'!$BP19","v":0.32663472180057718},{"$f":"(FE208*'Default-Data'!$F$19/geo_dollar_index)/'Zambia-IO-Data'!$BP19","v":12.512739259592793},null,"TTL_C25: Rubber and plastics products",0,0,null,787994.01018508268,329339.09544922737,{"$f":"FK208*CustomRegion1!C17","v":0},{"$f":"FN208*CustomRegion1!$C17","v":242342.0603828434},{"$f":"FO208*CustomRegion1!$C17","v":101285.94116729569},{"$f":"FK208*CustomRegion1!D17","v":0},{"$f":"FN208*CustomRegion1!$D17","v":68479.173521321296},{"$f":"FO208*CustomRegion1!$D17","v":28620.609767484726},{"$f":"(FS208*'Default-Data'!$C$58/geo_dollar_index)/CustomRegion1!$E17","v":0},{"$f":"(FT208*'Default-Data'!$C$58/geo_dollar_index)/CustomRegion1!$E17","v":21.934557186713004},{"$f":"(FU208*'Default-Data'!$C$58/geo_dollar_index)/CustomRegion1!$E17","v":9.1674646375226523},3103.3405120419593,3035.2892227172142,{"$f":"FL208*CustomRegion1!C17","v":0},{"$f":"FY208*CustomRegion1!$C17","v":954.41072398653353},{"$f":"FZ208*CustomRegion1!$C17","v":933.48202471533705},{"$f":"FL208*CustomRegion1!D17","v":0},{"$f":"FY208*CustomRegion1!$D17","v":269.69011270777605},{"$f":"FZ208*CustomRegion1!$D17","v":263.77624028008552},{"$f":"(GD208*'Default-Data'!$C$58/geo_dollar_index)/CustomRegion1!$E17","v":0},{"$f":"(GE208*'Default-Data'!$C$58/geo_dollar_index)/CustomRegion1!$E17","v":8.6384412890701159E-2},{"$f":"(GF208*'Default-Data'!$C$58/geo_dollar_index)/CustomRegion1!$E17","v":8.4490141007882436E-2},null,"C25 Rubber and plastics products",0,0,null,204250.65089944264,120873.1833792924,{"$f":"GL208*CustomRegion2!C21","v":0},{"$f":"GO208*CustomRegion2!$C21","v":66664.001448762356},{"$f":"GP208*CustomRegion2!$C21","v":39450.988461626752},{"$f":"GL208*CustomRegion2!D21","v":0},{"$f":"GO208*CustomRegion2!$D21","v":30269.82560938441},{"$f":"GP208*CustomRegion2!$D21","v":17913.334256856986},{"$f":"(GT208*'Default-Data'!$C$59/geo_dollar_index)/CustomRegion2!$E21","v":0},{"$f":"(GU208*'Default-Data'!$C$59/geo_dollar_index)/CustomRegion2!$E21","v":5.7069533125679168},{"$f":"(GV208*'Default-Data'!$C$59/geo_dollar_index)/CustomRegion2!$E21","v":3.3773092582539443},919.49252858915656,1250.7595306687028,{"$f":"GM208*CustomRegion2!C21","v":0},{"$f":"GZ208*CustomRegion2!$C21","v":300.10700572098375},{"$f":"HA208*CustomRegion2!$C21","v":408.22702301008553},{"$f":"GM208*CustomRegion2!D21","v":0},{"$f":"GZ208*CustomRegion2!$D21","v":136.26824867857314},{"$f":"HA208*CustomRegion2!$D21","v":185.36182237801839},{"$f":"(HE208*'Default-Data'!$C$59/geo_dollar_index)/CustomRegion2!$E21","v":0},{"$f":"(HF208*'Default-Data'!$C$59/geo_dollar_index)/CustomRegion2!$E21","v":2.5691477157136718E-2},{"$f":"(HG208*'Default-Data'!$C$59/geo_dollar_index)/CustomRegion2!$E21","v":3.4947385554672548E-2},null,"HORTI",0,0,null,5897.5467591935349,2001960.8928484321,{"$f":"HM208*CustomRegion3!D20","v":0},{"$f":"HP208*CustomRegion3!$D20","v":2843.0170960959649},{"$f":"HQ208*CustomRegion3!$D20","v":965080.78299016971},{"$f":"HM208*CustomRegion3!E20","v":0},{"$f":"HP208*CustomRegion3!E$12","v":1850.1941694039288},{"$f":"HQ208*CustomRegion3!F$12","v":206747331.09153038},{"$f":"(HU208*'Default-Data'!$C$60/geo_dollar_index)/CustomRegion3!$F20","v":0},{"$f":"(HV208*'Default-Data'!$C$60/geo_dollar_index)/CustomRegion3!$F20","v":18.447674293694288},{"$f":"(HW208*'Default-Data'!$C$60/geo_dollar_index)/CustomRegion3!$F20","v":2061409.2770035451},80.663278535957303,3090.0529085838239,{"$f":"HN208*CustomRegion3!D20","v":0},{"$f":"IA208*CustomRegion3!$D20","v":38.885165182859332},{"$f":"IB208*CustomRegion3!$D20","v":1489.6148526927823},{"$f":"HN208*CustomRegion3!E20","v":0},{"$f":"IA208*CustomRegion3!$E20","v":32.759558098164959},{"$f":"IB208*CustomRegion3!$E20","v":1254.9547901159335},{"$f":"(IF208*'Default-Data'!$C$60/geo_dollar_index)/CustomRegion3!$F20","v":0},{"$f":"(IG208*'Default-Data'!$C$60/geo_dollar_index)/CustomRegion3!$F20","v":0.32663472180057718},{"$f":"(IH208*'Default-Data'!$C$60/geo_dollar_index)/CustomRegion3!$F20","v":12.512739259592793}]
[null,null,null,null,null,null,null,null,null,null,null,null,null,null,null,null,null,null,null,null,null,null,null,null,null,null,null,null,null,208,"TTL_C26: Other non-metallic mineral products",{"$f":"'Geothermal-Inputs'!B19*'Geothermal-Inputs'!C19","v":60123.29985101115},0,null,183596.13195556949,86178.772661379349,{"$f":"AF209*'Colombia-IO-Data'!AN22","v":26563.709818147745},{"$f":"AI209*'Colombia-IO-Data'!$AN22","v":81116.545250968775},{"$f":"AJ209*'Colombia-IO-Data'!$AN22","v":38075.553323484201},{"$f":"'Colombia-IO-Data'!$AO22*AK209","v":7862.0881435683086},{"$f":"'Colombia-IO-Data'!$AO22*AL209","v":24008.146190076586},{"$f":"'Colombia-IO-Data'!$AO22*AM209","v":11269.260144524556},{"$f":"(AN209*'Default-Data'!$F$19/geo_dollar_index)/'Colombia-IO-Data'!$AP22","v":1.903130821940844},{"$f":"(AO209*'Default-Data'!$F$19/geo_dollar_index)/'Colombia-IO-Data'!$AP22","v":5.8115149763837577},{"$f":"(AP209*'Default-Data'!$F$19/geo_dollar_index)/'Colombia-IO-Data'!$AP22","v":2.727885509533384},2452.2568290625964,3018.5810654955235,{"$f":"AG209*'Colombia-IO-Data'!AN22","v":0},{"$f":"AT209*'Colombia-IO-Data'!$AN22","v":1083.4574776869038},{"$f":"AU209*'Colombia-IO-Data'!$AN22","v":1333.6711671694741},{"$f":"AV209*'Colombia-IO-Data'!$AO22","v":0},{"$f":"AW209*'Colombia-IO-Data'!$AO22","v":320.67200883075293},{"$f":"AX209*'Colombia-IO-Data'!$AO22","v":394.72800834688411},{"$f":"(Calculations!AY209*'Default-Data'!$F$19/geo_dollar_index)/'Colombia-IO-Data'!$AP22","v":0},{"$f":"(Calculations!AZ209*'Default-Data'!$F$19/geo_dollar_index)/'Colombia-IO-Data'!$AP22","v":7.7623243672069644E-2},{"$f":"(Calculations!BA209*'Default-Data'!$F$19/geo_dollar_index)/'Colombia-IO-Data'!$AP22","v":9.5549556968885327E-2},null,"DOM_C26: Other non-metallic mineral products",60123.29985101115,0,null,84631.348355211128,154029.5926962861,{"$f":"BG209*'Mexico-IO-Data'!AQ22","v":32886.188339543143},{"$f":"BJ209*'Mexico-IO-Data'!$AQ22","v":46291.578611551377},{"$f":"BK209*'Mexico-IO-Data'!$AQ22","v":84250.967725085589},{"$f":"BG209*'Mexico-IO-Data'!AQ22","v":32886.188339543143},{"$f":"BJ209*'Mexico-IO-Data'!$AR22","v":10005.612396528475},{"$f":"BK209*'Mexico-IO-Data'!$AR22","v":18210.278248737082},{"$f":"(BO209*'Default-Data'!$F$19/geo_dollar_index)/'Mexico-IO-Data'!$AS22","v":8.2336409724954169},{"$f":"(BP209*'Default-Data'!$F$19/geo_dollar_index)/'Mexico-IO-Data'!$AS22","v":2.5050826606106265},{"$f":"(BQ209*'Default-Data'!$F$19/geo_dollar_index)/'Mexico-IO-Data'!$AS22","v":4.559266387496054},1578.5782206331326,888.17490457402005,{"$f":"BH209*'Mexico-IO-Data'!AQ22","v":0},{"$f":"BU209*'Mexico-IO-Data'!$AQ22","v":863.44929172361469},{"$f":"BV209*'Mexico-IO-Data'!$AQ22","v":485.81310843978486},{"$f":"BH209*'Mexico-IO-Data'!AR22","v":0},{"$f":"BU209*'Mexico-IO-Data'!$AR22","v":186.62873888011484},{"$f":"BV209*'Mexico-IO-Data'!$AR22","v":105.00522570185561},{"$f":"(BZ209*'Default-Data'!$F$19/geo_dollar_index)/'Mexico-IO-Data'!$AS22","v":0},{"$f":"(CA209*'Default-Data'!$F$19/geo_dollar_index)/'Mexico-IO-Data'!$AS22","v":4.6725817392488024E-2},{"$f":"(CB209*'Default-Data'!$F$19/geo_dollar_index)/'Mexico-IO-Data'!$AS22","v":2.6289922071185762E-2},null,"TTL_C26: Other non-metallic mineral products",60123.29985101115,0,null,194225.49530656409,226139.75791999104,{"$f":"CH209*'Philippines-IO-Data'!AN22","v":22623.677633032636},{"$f":"CK209*'Philippines-IO-Data'!$AN22","v":73084.727631726942},{"$f":"CL209*'Philippines-IO-Data'!$AN22","v":85093.682413838324},{"$f":"CH209*'Philippines-IO-Data'!AO22","v":4812.062769463666},{"$f":"CK209*'Philippines-IO-Data'!$AO22","v":15545.142684473574},{"$f":"CL209*'Philippines-IO-Data'!$AO22","v":18099.450836513159},{"$f":"(CP209*'Default-Data'!$F$19/geo_dollar_index)/'Philippines-IO-Data'!$AP22","v":1.5413513419520131},{"$f":"(CQ209*'Default-Data'!$F$19/geo_dollar_index)/'Philippines-IO-Data'!$AP22","v":4.9792630905808846},{"$f":"(CR209*'Default-Data'!$F$19/geo_dollar_index)/'Philippines-IO-Data'!$AP22","v":5.7974332779876434},2087.1304839667114,2008.4315290926302,{"$f":"CI209*'Philippines-IO-Data'!AN22","v":0},{"$f":"CV209*'Philippines-IO-Data'!$AN22","v":785.36220341113142},{"$f":"CW209*'Philippines-IO-Data'!$AN22","v":755.74872927481704},{"$f":"CI209*'Philippines-IO-Data'!AO22","v":0},{"$f":"CV209*'Philippines-IO-Data'!$AO22","v":167.04676758922085},{"$f":"CW209*'Philippines-IO-Data'!$AO22","v":160.74797308386738},{"$f":"(DA209*'Default-Data'!$F$19/geo_dollar_index)/'Philippines-IO-Data'!$AP22","v":0},{"$f":"(DB209*'Default-Data'!$F$19/geo_dollar_index)/'Philippines-IO-Data'!$AP22","v":5.3506733334047735E-2},{"$f":"(DC209*'Default-Data'!$F$19/geo_dollar_index)/'Philippines-IO-Data'!$AP22","v":5.1489167099227275E-2},null,"DOM_C26: Other non-metallic mineral products",60123.29985101115,0,null,213354.89695114864,199408.87922356615,{"$f":"DI209*'SouthAfrica-IO-Data'!AR22","v":19826.742306640685},{"$f":"DL209*'SouthAfrica-IO-Data'!$AR22","v":70357.624617956826},{"$f":"DM209*'SouthAfrica-IO-Data'!$AR22","v":65758.673789013425},{"$f":"DI209*'SouthAfrica-IO-Data'!AS22","v":8936.7041392287774},{"$f":"DL209*'SouthAfrica-IO-Data'!$AS22","v":31712.989729987232},{"$f":"DM209*'SouthAfrica-IO-Data'!$AS22","v":29640.059024908038},{"$f":"(DQ209*'Default-Data'!$F$19/geo_dollar_index)/'SouthAfrica-IO-Data'!$AT22","v":0.71686066545297233},{"$f":"(DR209*'Default-Data'!$F$19/geo_dollar_index)/'SouthAfrica-IO-Data'!$AT22","v":2.5438679145199736},{"$f":"(DS209*'Default-Data'!$F$19/geo_dollar_index)/'SouthAfrica-IO-Data'!$AT22","v":2.3775870953801777},1795.0224882013049,1783.0757373621955,{"$f":"DJ209*'SouthAfrica-IO-Data'!AR22","v":0},{"$f":"DW209*'SouthAfrica-IO-Data'!$AR22","v":591.94103444729171},{"$f":"DX209*'SouthAfrica-IO-Data'!$AR22","v":588.00137792684734},{"$f":"DJ209*'SouthAfrica-IO-Data'!$AS22","v":0},{"$f":"DZ209*'SouthAfrica-IO-Data'!$AS22","v":87.985887431884024},{"$f":"EA209*'SouthAfrica-IO-Data'!$AS22","v":87.400298403659676},{"$f":"(EB209*'Default-Data'!$F$19/geo_dollar_index)/'SouthAfrica-IO-Data'!$AT22","v":0},{"$f":"(EC209*'Default-Data'!$F$19/geo_dollar_index)/'SouthAfrica-IO-Data'!$AT22","v":7.0578169347714197E-3},{"$f":"(ED209*'Default-Data'!$F$19/geo_dollar_index)/'SouthAfrica-IO-Data'!$AT22","v":7.0108437180334765E-3},null,"OTHERCROP",0,0,null,4735.6403220280417,1102530.1194465868,{"$f":"EJ209*'Zambia-IO-Data'!BO20","v":0},{"$f":"EM209*'Zambia-IO-Data'!$BO20","v":2180.232428287663},{"$f":"EN209*'Zambia-IO-Data'!$BO20","v":507591.7417967887},{"$f":"EJ209*'Zambia-IO-Data'!BN20","v":0},{"$f":"EM209*'Zambia-IO-Data'!$BN20","v":2049.3173114956389},{"$f":"EN209*'Zambia-IO-Data'!$BN20","v":477112.68309744447},{"$f":"(ER209*'Default-Data'!$F$19/geo_dollar_index)/'Zambia-IO-Data'!$BP20","v":0},{"$f":"(ES209*'Default-Data'!$F$19/geo_dollar_index)/'Zambia-IO-Data'!$BP20","v":20.433065303129968},{"$f":"(ET209*'Default-Data'!$F$19/geo_dollar_index)/'Zambia-IO-Data'!$BP20","v":4757.1328051519185},62.137503415284208,1703.8072899459125,{"$f":"EK209*'Zambia-IO-Data'!BO20","v":0},{"$f":"EX209*'Zambia-IO-Data'!$BO20","v":28.607366849351664},{"$f":"EY209*'Zambia-IO-Data'!$BO20","v":784.41259312155228},{"$f":"EK209*'Zambia-IO-Data'!BN20","v":0},{"$f":"EX209*'Zambia-IO-Data'!$BN20","v":26.889597347529993},{"$f":"EY209*'Zambia-IO-Data'!$BN20","v":737.31143780010086},{"$f":"(FC209*'Default-Data'!$F$19/geo_dollar_index)/'Zambia-IO-Data'!$BP20","v":0},{"$f":"(FD209*'Default-Data'!$F$19/geo_dollar_index)/'Zambia-IO-Data'!$BP20","v":0.26810728406717993},{"$f":"(FE209*'Default-Data'!$F$19/geo_dollar_index)/'Zambia-IO-Data'!$BP20","v":7.3514885531899106},null,"TTL_C26: Other non-metallic mineral products",60123.29985101115,0,null,313474.6439033231,326247.22550454224,{"$f":"FK209*CustomRegion1!C18","v":22623.677633032636},{"$f":"FN209*CustomRegion1!$C18","v":117956.75399342221},{"$f":"FO209*CustomRegion1!$C18","v":122762.92347187153},{"$f":"FK209*CustomRegion1!D18","v":4812.062769463666},{"$f":"FN209*CustomRegion1!$D18","v":25089.435656993341},{"$f":"FO209*CustomRegion1!$D18","v":26111.70929376096},{"$f":"(FS209*'Default-Data'!$C$58/geo_dollar_index)/CustomRegion1!$E18","v":1.5413513419520131},{"$f":"(FT209*'Default-Data'!$C$58/geo_dollar_index)/CustomRegion1!$E18","v":8.0363946131641093},{"$f":"(FU209*'Default-Data'!$C$58/geo_dollar_index)/CustomRegion1!$E18","v":8.363838978992602},3258.6430043223791,3006.7936093788021,{"$f":"FL209*CustomRegion1!C18","v":0},{"$f":"FY209*CustomRegion1!$C18","v":1226.1883335348336},{"$f":"FZ209*CustomRegion1!$C18","v":1131.4204226351133},{"$f":"FL209*CustomRegion1!D18","v":0},{"$f":"FY209*CustomRegion1!$D18","v":260.81061283946195},{"$f":"FZ209*CustomRegion1!$D18","v":240.65345080871629},{"$f":"(GD209*'Default-Data'!$C$58/geo_dollar_index)/CustomRegion1!$E18","v":0},{"$f":"(GE209*'Default-Data'!$C$58/geo_dollar_index)/CustomRegion1!$E18","v":8.354022118049742E-2},{"$f":"(GF209*'Default-Data'!$C$58/geo_dollar_index)/CustomRegion1!$E18","v":7.7083682636737552E-2},null,"C26 Other non-metallic mineral products",60123.29985101115,0,null,81668.809176927942,63890.605661070003,{"$f":"GL209*CustomRegion2!C22","v":31780.050028789599},{"$f":"GO209*CustomRegion2!$C22","v":43168.602652650159},{"$f":"GP209*CustomRegion2!$C22","v":33771.377308132309},{"$f":"GL209*CustomRegion2!D22","v":8910.1270232121497},{"$f":"GO209*CustomRegion2!$D22","v":12103.119180153648},{"$f":"GP209*CustomRegion2!$D22","v":9468.4325950302446},{"$f":"(GT209*'Default-Data'!$C$59/geo_dollar_index)/CustomRegion2!$E22","v":2.2308084528070706},{"$f":"(GU209*'Default-Data'!$C$59/geo_dollar_index)/CustomRegion2!$E22","v":3.0302307141166418},{"$f":"(GV209*'Default-Data'!$C$59/geo_dollar_index)/CustomRegion2!$E22","v":2.3705901624972308},1269.2115081013008,661.12086830724888,{"$f":"GM209*CustomRegion2!C22","v":0},{"$f":"GZ209*CustomRegion2!$C22","v":670.8814274088196},{"$f":"HA209*CustomRegion2!$C22","v":349.45610640045129},{"$f":"GM209*CustomRegion2!D22","v":0},{"$f":"GZ209*CustomRegion2!$D22","v":188.09406310913013},{"$f":"HA209*CustomRegion2!$D22","v":97.97650709311209},{"$f":"(HE209*'Default-Data'!$C$59/geo_dollar_index)/CustomRegion2!$E22","v":0},{"$f":"(HF209*'Default-Data'!$C$59/geo_dollar_index)/CustomRegion2!$E22","v":4.7092687322363824E-2},{"$f":"(HG209*'Default-Data'!$C$59/geo_dollar_index)/CustomRegion2!$E22","v":2.4530157609473881E-2},null,"OTHERCROP",0,0,null,4735.6403220280417,1102530.1194465868,{"$f":"HM209*CustomRegion3!D21","v":0},{"$f":"HP209*CustomRegion3!$D21","v":2180.232428287663},{"$f":"HQ209*CustomRegion3!$D21","v":507591.7417967887},{"$f":"HM209*CustomRegion3!E21","v":0},{"$f":"HP209*CustomRegion3!E$12","v":1485.6777690743691},{"$f":"HQ209*CustomRegion3!F$12","v":113860945.26516093},{"$f":"(HU209*'Default-Data'!$C$60/geo_dollar_index)/CustomRegion3!$F21","v":0},{"$f":"(HV209*'Default-Data'!$C$60/geo_dollar_index)/CustomRegion3!$F21","v":14.813201793893903},{"$f":"(HW209*'Default-Data'!$C$60/geo_dollar_index)/CustomRegion3!$F21","v":1135269.8369493531},62.137503415284208,1703.8072899459125,{"$f":"HN209*CustomRegion3!D21","v":0},{"$f":"IA209*CustomRegion3!$D21","v":28.607366849351664},{"$f":"IB209*CustomRegion3!$D21","v":784.41259312155228},{"$f":"HN209*CustomRegion3!E21","v":0},{"$f":"IA209*CustomRegion3!$E21","v":26.889597347529993},{"$f":"IB209*CustomRegion3!$E21","v":737.31143780010086},{"$f":"(IF209*'Default-Data'!$C$60/geo_dollar_index)/CustomRegion3!$F21","v":0},{"$f":"(IG209*'Default-Data'!$C$60/geo_dollar_index)/CustomRegion3!$F21","v":0.26810728406717993},{"$f":"(IH209*'Default-Data'!$C$60/geo_dollar_index)/CustomRegion3!$F21","v":7.3514885531899106}]
[null,null,null,null,null,null,null,null,null,null,null,null,null,null,null,null,null,null,null,null,null,null,null,null,null,null,null,null,null,209,"TTL_C27: Basic metals",0,0,null,82546.07260383683,61525.816038490797,{"$f":"AF210*'Colombia-IO-Data'!AN23","v":0},{"$f":"AI210*'Colombia-IO-Data'!$AN23","v":24046.917190780616},{"$f":"AJ210*'Colombia-IO-Data'!$AN23","v":17923.399099474795},{"$f":"'Colombia-IO-Data'!$AO23*AK210","v":0},{"$f":"'Colombia-IO-Data'!$AO23*AL210","v":6285.7382445342828},{"$f":"'Colombia-IO-Data'!$AO23*AM210","v":4685.0826780745774},{"$f":"(AN210*'Default-Data'!$F$19/geo_dollar_index)/'Colombia-IO-Data'!$AP23","v":0},{"$f":"(AO210*'Default-Data'!$F$19/geo_dollar_index)/'Colombia-IO-Data'!$AP23","v":1.5215527953107071},{"$f":"(AP210*'Default-Data'!$F$19/geo_dollar_index)/'Colombia-IO-Data'!$AP23","v":1.1340912344361094},986.25923609564074,1390.5764445318903,{"$f":"AG210*'Colombia-IO-Data'!AN23","v":0},{"$f":"AT210*'Colombia-IO-Data'!$AN23","v":287.31220554679732},{"$f":"AU210*'Colombia-IO-Data'!$AN23","v":405.09591255289126},{"$f":"AV210*'Colombia-IO-Data'!$AO23","v":0},{"$f":"AW210*'Colombia-IO-Data'!$AO23","v":75.101906169469089},{"$f":"AX210*'Colombia-IO-Data'!$AO23","v":105.8899504679321},{"$f":"(Calculations!AY210*'Default-Data'!$F$19/geo_dollar_index)/'Colombia-IO-Data'!$AP23","v":0},{"$f":"(Calculations!AZ210*'Default-Data'!$F$19/geo_dollar_index)/'Colombia-IO-Data'!$AP23","v":1.8179489953257612E-2},{"$f":"(Calculations!BA210*'Default-Data'!$F$19/geo_dollar_index)/'Colombia-IO-Data'!$AP23","v":2.5632176183902122E-2},null,"DOM_C27: Basic metals",0,0,null,144199.72566394226,60264.196235154697,{"$f":"BG210*'Mexico-IO-Data'!AQ23","v":0},{"$f":"BJ210*'Mexico-IO-Data'!$AQ23","v":54311.640390982328},{"$f":"BK210*'Mexico-IO-Data'!$AQ23","v":22698.013739659644},{"$f":"BG210*'Mexico-IO-Data'!AQ23","v":0},{"$f":"BJ210*'Mexico-IO-Data'!$AR23","v":6656.4457684092195},{"$f":"BK210*'Mexico-IO-Data'!$AR23","v":2781.8732120957593},{"$f":"(BO210*'Default-Data'!$F$19/geo_dollar_index)/'Mexico-IO-Data'!$AS23","v":0},{"$f":"(BP210*'Default-Data'!$F$19/geo_dollar_index)/'Mexico-IO-Data'!$AS23","v":0.66006449945482026},{"$f":"(BQ210*'Default-Data'!$F$19/geo_dollar_index)/'Mexico-IO-Data'!$AS23","v":0.27585528571467433},2460.9167256001574,347.49911236815888,{"$f":"BH210*'Mexico-IO-Data'!AQ23","v":0},{"$f":"BU210*'Mexico-IO-Data'!$AQ23","v":926.88403960237792},{"$f":"BV210*'Mexico-IO-Data'!$AQ23","v":130.88268192069341},{"$f":"BH210*'Mexico-IO-Data'!AR23","v":0},{"$f":"BU210*'Mexico-IO-Data'!$AR23","v":113.59909770358716},{"$f":"BV210*'Mexico-IO-Data'!$AR23","v":16.041008298723785},{"$f":"(BZ210*'Default-Data'!$F$19/geo_dollar_index)/'Mexico-IO-Data'!$AS23","v":0},{"$f":"(CA210*'Default-Data'!$F$19/geo_dollar_index)/'Mexico-IO-Data'!$AS23","v":1.1264680006873565E-2},{"$f":"(CB210*'Default-Data'!$F$19/geo_dollar_index)/'Mexico-IO-Data'!$AS23","v":1.5906537034670553E-3},null,"TTL_C27: Basic metals",0,0,null,660670.19434191601,130885.93365292542,{"$f":"CH210*'Philippines-IO-Data'!AN23","v":0},{"$f":"CK210*'Philippines-IO-Data'!$AN23","v":135622.28875832711},{"$f":"CL210*'Philippines-IO-Data'!$AN23","v":26868.246880672221},{"$f":"CH210*'Philippines-IO-Data'!AO23","v":0},{"$f":"CK210*'Philippines-IO-Data'!$AO23","v":30866.421723516796},{"$f":"CL210*'Philippines-IO-Data'!$AO23","v":6114.9730385999956},{"$f":"(CP210*'Default-Data'!$F$19/geo_dollar_index)/'Philippines-IO-Data'!$AP23","v":0},{"$f":"(CQ210*'Default-Data'!$F$19/geo_dollar_index)/'Philippines-IO-Data'!$AP23","v":9.8868204393979706},{"$f":"(CR210*'Default-Data'!$F$19/geo_dollar_index)/'Philippines-IO-Data'!$AP23","v":1.9586863992833976},3830.9670089847832,1162.4467907862017,{"$f":"CI210*'Philippines-IO-Data'!AN23","v":0},{"$f":"CV210*'Philippines-IO-Data'!$AN23","v":786.42039305812739},{"$f":"CW210*'Philippines-IO-Data'!$AN23","v":238.62692108160482},{"$f":"CI210*'Philippines-IO-Data'!AO23","v":0},{"$f":"CV210*'Philippines-IO-Data'!$AO23","v":178.98225819917522},{"$f":"CW210*'Philippines-IO-Data'!$AO23","v":54.30935613993563},{"$f":"(DA210*'Default-Data'!$F$19/geo_dollar_index)/'Philippines-IO-Data'!$AP23","v":0},{"$f":"(DB210*'Default-Data'!$F$19/geo_dollar_index)/'Philippines-IO-Data'!$AP23","v":5.7329789131501364E-2},{"$f":"(DC210*'Default-Data'!$F$19/geo_dollar_index)/'Philippines-IO-Data'!$AP23","v":1.7395824405708981E-2},null,"DOM_C27: Basic metals",0,0,null,102240.36655338606,49044.151207959047,{"$f":"DI210*'SouthAfrica-IO-Data'!AR23","v":0},{"$f":"DL210*'SouthAfrica-IO-Data'!$AR23","v":16311.108898281182},{"$f":"DM210*'SouthAfrica-IO-Data'!$AR23","v":7824.3507740074201},{"$f":"DI210*'SouthAfrica-IO-Data'!AS23","v":0},{"$f":"DL210*'SouthAfrica-IO-Data'!$AS23","v":10500.497048955105},{"$f":"DM210*'SouthAfrica-IO-Data'!$AS23","v":5037.0316772952356},{"$f":"(DQ210*'Default-Data'!$F$19/geo_dollar_index)/'SouthAfrica-IO-Data'!$AT23","v":0},{"$f":"(DR210*'Default-Data'!$F$19/geo_dollar_index)/'SouthAfrica-IO-Data'!$AT23","v":0.84230082867558498},{"$f":"(DS210*'Default-Data'!$F$19/geo_dollar_index)/'SouthAfrica-IO-Data'!$AT23","v":0.40404715472713126},1223.1097438858601,438.54334079271848,{"$f":"DJ210*'SouthAfrica-IO-Data'!AR23","v":0},{"$f":"DW210*'SouthAfrica-IO-Data'!$AR23","v":195.13111014379814},{"$f":"DX210*'SouthAfrica-IO-Data'!$AR23","v":69.963835512570995},{"$f":"DJ210*'SouthAfrica-IO-Data'!$AS23","v":0},{"$f":"DZ210*'SouthAfrica-IO-Data'!$AS23","v":20.040750197764492},{"$f":"EA210*'SouthAfrica-IO-Data'!$AS23","v":7.1855674338738105},{"$f":"(EB210*'Default-Data'!$F$19/geo_dollar_index)/'SouthAfrica-IO-Data'!$AT23","v":0},{"$f":"(EC210*'Default-Data'!$F$19/geo_dollar_index)/'SouthAfrica-IO-Data'!$AT23","v":1.6075753766853513E-3},{"$f":"(ED210*'Default-Data'!$F$19/geo_dollar_index)/'SouthAfrica-IO-Data'!$AT23","v":5.7639265797026986E-4},null,"LIVEST",0,0,null,6989.6530938126989,1999040.0281927327,{"$f":"EJ210*'Zambia-IO-Data'!BO21","v":0},{"$f":"EM210*'Zambia-IO-Data'!$BO21","v":2102.9197324708148},{"$f":"EN210*'Zambia-IO-Data'!$BO21","v":601434.81584325968},{"$f":"EJ210*'Zambia-IO-Data'!BN21","v":0},{"$f":"EM210*'Zambia-IO-Data'!$BN21","v":1352.5150707523203},{"$f":"EN210*'Zambia-IO-Data'!$BN21","v":386819.16382390721},{"$f":"(ER210*'Default-Data'!$F$19/geo_dollar_index)/'Zambia-IO-Data'!$BP21","v":0},{"$f":"(ES210*'Default-Data'!$F$19/geo_dollar_index)/'Zambia-IO-Data'!$BP21","v":13.485480559367453},{"$f":"(ET210*'Default-Data'!$F$19/geo_dollar_index)/'Zambia-IO-Data'!$BP21","v":3856.8459801608651},77.868082131735022,2981.5106191081441,{"$f":"EK210*'Zambia-IO-Data'!BO21","v":0},{"$f":"EX210*'Zambia-IO-Data'!$BO21","v":23.427532703938745},{"$f":"EY210*'Zambia-IO-Data'!$BO21","v":897.02270332184878},{"$f":"EK210*'Zambia-IO-Data'!BN21","v":0},{"$f":"EX210*'Zambia-IO-Data'!$BN21","v":15.067665476413881},{"$f":"EY210*'Zambia-IO-Data'!$BN21","v":576.92964040253776},{"$f":"(FC210*'Default-Data'!$F$19/geo_dollar_index)/'Zambia-IO-Data'!$BP21","v":0},{"$f":"(FD210*'Default-Data'!$F$19/geo_dollar_index)/'Zambia-IO-Data'!$BP21","v":0.15023471031949898},{"$f":"(FE210*'Default-Data'!$F$19/geo_dollar_index)/'Zambia-IO-Data'!$BP21","v":5.7523746818167796},null,"TTL_C27: Basic metals",0,0,null,2049696.0769336482,553830.91284419014,{"$f":"FK210*CustomRegion1!C19","v":0},{"$f":"FN210*CustomRegion1!$C19","v":420761.33537339576},{"$f":"FO210*CustomRegion1!$C19","v":113690.33540231134},{"$f":"FK210*CustomRegion1!D19","v":0},{"$f":"FN210*CustomRegion1!$D19","v":95761.522250433962},{"$f":"FO210*CustomRegion1!$D19","v":25874.905006721106},{"$f":"(FS210*'Default-Data'!$C$58/geo_dollar_index)/CustomRegion1!$E19","v":0},{"$f":"(FT210*'Default-Data'!$C$58/geo_dollar_index)/CustomRegion1!$E19","v":30.673363565564031},{"$f":"(FU210*'Default-Data'!$C$58/geo_dollar_index)/CustomRegion1!$E19","v":8.2879882216157306},17370.348594811283,5104.2740573226802,{"$f":"FL210*CustomRegion1!C19","v":0},{"$f":"FY210*CustomRegion1!$C19","v":3565.7828264901245},{"$f":"FZ210*CustomRegion1!$C19","v":1047.80469292004},{"$f":"FL210*CustomRegion1!D19","v":0},{"$f":"FY210*CustomRegion1!$D19","v":811.5403264801497},{"$f":"FZ210*CustomRegion1!$D19","v":238.47099051087349},{"$f":"(GD210*'Default-Data'!$C$58/geo_dollar_index)/CustomRegion1!$E19","v":0},{"$f":"(GE210*'Default-Data'!$C$58/geo_dollar_index)/CustomRegion1!$E19","v":0.25994440039438027},{"$f":"(GF210*'Default-Data'!$C$58/geo_dollar_index)/CustomRegion1!$E19","v":7.6384618998128387E-2},null,"C27 Basic metals",0,0,null,443289.33573677228,114864.16001757234,{"$f":"GL210*CustomRegion2!C23","v":0},{"$f":"GO210*CustomRegion2!$C23","v":160110.81483395878},{"$f":"GP210*CustomRegion2!$C23","v":41487.563027125056},{"$f":"GL210*CustomRegion2!D23","v":0},{"$f":"GO210*CustomRegion2!$D23","v":39150.134237078033},{"$f":"GP210*CustomRegion2!$D23","v":10144.496880898309},{"$f":"(GT210*'Default-Data'!$C$59/geo_dollar_index)/CustomRegion2!$E23","v":0},{"$f":"(GU210*'Default-Data'!$C$59/geo_dollar_index)/CustomRegion2!$E23","v":3.8821939902864488},{"$f":"(GV210*'Default-Data'!$C$59/geo_dollar_index)/CustomRegion2!$E23","v":1.005945588513578},4741.4585074919205,1188.5799551039727,{"$f":"GM210*CustomRegion2!C23","v":0},{"$f":"GZ210*CustomRegion2!$C23","v":1712.5581960463182},{"$f":"HA210*CustomRegion2!$C23","v":429.30088717498745},{"$f":"GM210*CustomRegion2!D23","v":0},{"$f":"GZ210*CustomRegion2!$D23","v":418.75299512747983},{"$f":"HA210*CustomRegion2!$D23","v":104.97221801305031},{"$f":"(HE210*'Default-Data'!$C$59/geo_dollar_index)/CustomRegion2!$E23","v":0},{"$f":"(HF210*'Default-Data'!$C$59/geo_dollar_index)/CustomRegion2!$E23","v":4.1524260204418781E-2},{"$f":"(HG210*'Default-Data'!$C$59/geo_dollar_index)/CustomRegion2!$E23","v":1.0409223923716442E-2},null,"LIVEST",0,0,null,6989.6530938126989,1999040.0281927327,{"$f":"HM210*CustomRegion3!D22","v":0},{"$f":"HP210*CustomRegion3!$D22","v":2102.9197324708148},{"$f":"HQ210*CustomRegion3!$D22","v":601434.81584325968},{"$f":"HM210*CustomRegion3!E22","v":0},{"$f":"HP210*CustomRegion3!E$12","v":2192.8126945612917},{"$f":"HQ210*CustomRegion3!F$12","v":206445686.35201392},{"$f":"(HU210*'Default-Data'!$C$60/geo_dollar_index)/CustomRegion3!$F22","v":0},{"$f":"(HV210*'Default-Data'!$C$60/geo_dollar_index)/CustomRegion3!$F22","v":21.863810320717437},{"$f":"(HW210*'Default-Data'!$C$60/geo_dollar_index)/CustomRegion3!$F22","v":2058401.6770451043},77.868082131735022,2981.5106191081441,{"$f":"HN210*CustomRegion3!D22","v":0},{"$f":"IA210*CustomRegion3!$D22","v":23.427532703938745},{"$f":"IB210*CustomRegion3!$D22","v":897.02270332184878},{"$f":"HN210*CustomRegion3!E22","v":0},{"$f":"IA210*CustomRegion3!$E22","v":15.067665476413881},{"$f":"IB210*CustomRegion3!$E22","v":576.92964040253776},{"$f":"(IF210*'Default-Data'!$C$60/geo_dollar_index)/CustomRegion3!$F22","v":0},{"$f":"(IG210*'Default-Data'!$C$60/geo_dollar_index)/CustomRegion3!$F22","v":0.15023471031949898},{"$f":"(IH210*'Default-Data'!$C$60/geo_dollar_index)/CustomRegion3!$F22","v":5.7523746818167796}]
[null,null,null,null,null,null,null,null,null,null,null,null,null,null,null,null,null,null,null,null,null,null,null,null,null,null,null,null,null,210,"TTL_C28: Fabricated metal products",{"$f":"'Geothermal-Inputs'!B21*'Geothermal-Inputs'!C21","v":250737.62225622765},0,null,149506.71985915041,73003.739353365963,{"$f":"AF211*'Colombia-IO-Data'!AN24","v":88730.633556835091},{"$f":"AI211*'Colombia-IO-Data'!$AN24","v":52907.201778241266},{"$f":"AJ211*'Colombia-IO-Data'!$AN24","v":25834.447924303586},{"$f":"'Colombia-IO-Data'!$AO24*AK211","v":23279.527565641125},{"$f":"'Colombia-IO-Data'!$AO24*AL211","v":13880.827994185192},{"$f":"'Colombia-IO-Data'!$AO24*AM211","v":6777.9719189283005},{"$f":"(AN211*'Default-Data'!$F$19/geo_dollar_index)/'Colombia-IO-Data'!$AP24","v":5.6351424228990146},{"$f":"(AO211*'Default-Data'!$F$19/geo_dollar_index)/'Colombia-IO-Data'!$AP24","v":3.3600528393215701},{"$f":"(AP211*'Default-Data'!$F$19/geo_dollar_index)/'Colombia-IO-Data'!$AP24","v":1.6407049925679713},1081.9250065524182,1561.6694455744832,{"$f":"AG211*'Colombia-IO-Data'!AN24","v":0},{"$f":"AT211*'Colombia-IO-Data'!$AN24","v":382.86991169708534},{"$f":"AU211*'Colombia-IO-Data'!$AN24","v":552.64111570210775},{"$f":"AV211*'Colombia-IO-Data'!$AO24","v":0},{"$f":"AW211*'Colombia-IO-Data'!$AO24","v":100.45043415245955},{"$f":"AX211*'Colombia-IO-Data'!$AO24","v":144.99191058579848},{"$f":"(Calculations!AY211*'Default-Data'!$F$19/geo_dollar_index)/'Colombia-IO-Data'!$AP24","v":0},{"$f":"(Calculations!AZ211*'Default-Data'!$F$19/geo_dollar_index)/'Colombia-IO-Data'!$AP24","v":2.431546350307387E-2},{"$f":"(Calculations!BA211*'Default-Data'!$F$19/geo_dollar_index)/'Colombia-IO-Data'!$AP24","v":3.5097364584198855E-2},null,"DOM_C28: Fabricated metal products",250737.62225622765,0,null,124393.68963930284,103351.68587033823,{"$f":"BG211*'Mexico-IO-Data'!AQ24","v":92152.023898532294},{"$f":"BJ211*'Mexico-IO-Data'!$AQ24","v":45717.631671379269},{"$f":"BK211*'Mexico-IO-Data'!$AQ24","v":37984.196151243748},{"$f":"BG211*'Mexico-IO-Data'!AQ24","v":92152.023898532294},{"$f":"BJ211*'Mexico-IO-Data'!$AR24","v":16598.749352390521},{"$f":"BK211*'Mexico-IO-Data'!$AR24","v":13790.962659626113},{"$f":"(BO211*'Default-Data'!$F$19/geo_dollar_index)/'Mexico-IO-Data'!$AS24","v":20.293677472452131},{"$f":"(BP211*'Default-Data'!$F$19/geo_dollar_index)/'Mexico-IO-Data'!$AS24","v":3.6553691558026857},{"$f":"(BQ211*'Default-Data'!$F$19/geo_dollar_index)/'Mexico-IO-Data'!$AS24","v":3.0370396265766706},2097.1612680442995,595.95284340231228,{"$f":"BH211*'Mexico-IO-Data'!AQ24","v":0},{"$f":"BU211*'Mexico-IO-Data'!$AQ24","v":770.75651253646106},{"$f":"BV211*'Mexico-IO-Data'!$AQ24","v":219.026806481747},{"$f":"BH211*'Mexico-IO-Data'!AR24","v":0},{"$f":"BU211*'Mexico-IO-Data'!$AR24","v":279.83939009081627},{"$f":"BV211*'Mexico-IO-Data'!$AR24","v":79.522296526157291},{"$f":"(BZ211*'Default-Data'!$F$19/geo_dollar_index)/'Mexico-IO-Data'!$AS24","v":0},{"$f":"(CA211*'Default-Data'!$F$19/geo_dollar_index)/'Mexico-IO-Data'!$AS24","v":6.1626105280593743E-2},{"$f":"(CB211*'Default-Data'!$F$19/geo_dollar_index)/'Mexico-IO-Data'!$AS24","v":1.7512364561276222E-2},null,"TTL_C28: Fabricated metal products",250737.62225622765,0,null,480826.74272344401,82186.267610453069,{"$f":"CH211*'Philippines-IO-Data'!AN24","v":63145.288036168531},{"$f":"CK211*'Philippines-IO-Data'!$AN24","v":121090.49647817845},{"$f":"CL211*'Philippines-IO-Data'!$AN24","v":20697.634021496706},{"$f":"CH211*'Philippines-IO-Data'!AO24","v":19357.063828687835},{"$f":"CK211*'Philippines-IO-Data'!$AO24","v":37120.053487332611},{"$f":"CL211*'Philippines-IO-Data'!$AO24","v":6344.8189931044399},{"$f":"(CP211*'Default-Data'!$F$19/geo_dollar_index)/'Philippines-IO-Data'!$AP24","v":6.2002591690889712},{"$f":"(CQ211*'Default-Data'!$F$19/geo_dollar_index)/'Philippines-IO-Data'!$AP24","v":11.889920601016513},{"$f":"(CR211*'Default-Data'!$F$19/geo_dollar_index)/'Philippines-IO-Data'!$AP24","v":2.0323083338653425},3360.2200469552163,729.92689408325714,{"$f":"CI211*'Philippines-IO-Data'!AN24","v":0},{"$f":"CV211*'Philippines-IO-Data'!$AN24","v":846.23145430112982},{"$f":"CW211*'Philippines-IO-Data'!$AN24","v":183.823406944222},{"$f":"CI211*'Philippines-IO-Data'!AO24","v":0},{"$f":"CV211*'Philippines-IO-Data'!$AO24","v":259.41058761768267},{"$f":"CW211*'Philippines-IO-Data'!$AO24","v":56.350703783123798},{"$f":"(DA211*'Default-Data'!$F$19/geo_dollar_index)/'Philippines-IO-Data'!$AP24","v":0},{"$f":"(DB211*'Default-Data'!$F$19/geo_dollar_index)/'Philippines-IO-Data'!$AP24","v":8.3091779242447511E-2},{"$f":"(DC211*'Default-Data'!$F$19/geo_dollar_index)/'Philippines-IO-Data'!$AP24","v":1.8049688264091139E-2},null,"DOM_C28: Fabricated metal products",250737.62225622765,0,null,536757.66720828786,291731.28331585845,{"$f":"DI211*'SouthAfrica-IO-Data'!AR24","v":65892.788123458871},{"$f":"DL211*'SouthAfrica-IO-Data'!$AR24","v":141057.64791394124},{"$f":"DM211*'SouthAfrica-IO-Data'!$AR24","v":76665.749110728691},{"$f":"DI211*'SouthAfrica-IO-Data'!AS24","v":61206.476232633984},{"$f":"DL211*'SouthAfrica-IO-Data'!$AS24","v":131025.59203140147},{"$f":"DM211*'SouthAfrica-IO-Data'!$AS24","v":71213.261487903452},{"$f":"(DQ211*'Default-Data'!$F$19/geo_dollar_index)/'SouthAfrica-IO-Data'!$AT24","v":4.9096976467595139},{"$f":"(DR211*'Default-Data'!$F$19/geo_dollar_index)/'SouthAfrica-IO-Data'!$AT24","v":10.510261012524232},{"$f":"(DS211*'Default-Data'!$F$19/geo_dollar_index)/'SouthAfrica-IO-Data'!$AT24","v":5.7123952213215521},7452.1976376194889,2608.6048682257933,{"$f":"DJ211*'SouthAfrica-IO-Data'!AR24","v":0},{"$f":"DW211*'SouthAfrica-IO-Data'!$AR24","v":1958.4060643599942},{"$f":"DX211*'SouthAfrica-IO-Data'!$AR24","v":685.53034176966753},{"$f":"DJ211*'SouthAfrica-IO-Data'!$AS24","v":0},{"$f":"DZ211*'SouthAfrica-IO-Data'!$AS24","v":478.05803195184069},{"$f":"EA211*'SouthAfrica-IO-Data'!$AS24","v":167.341846001064},{"$f":"(EB211*'Default-Data'!$F$19/geo_dollar_index)/'SouthAfrica-IO-Data'!$AT24","v":0},{"$f":"(EC211*'Default-Data'!$F$19/geo_dollar_index)/'SouthAfrica-IO-Data'!$AT24","v":3.8347582461167769E-2},{"$f":"(ED211*'Default-Data'!$F$19/geo_dollar_index)/'SouthAfrica-IO-Data'!$AT24","v":1.3423381283919733E-2},null,"FISH",0,0,null,7848.8941703287528,989078.03108881984,{"$f":"EJ211*'Zambia-IO-Data'!BO22","v":0},{"$f":"EM211*'Zambia-IO-Data'!$BO22","v":716.20204489929108},{"$f":"EN211*'Zambia-IO-Data'!$BO22","v":90252.167128035915},{"$f":"EJ211*'Zambia-IO-Data'!BN22","v":0},{"$f":"EM211*'Zambia-IO-Data'!$BN22","v":304.49028805332534},{"$f":"EN211*'Zambia-IO-Data'!$BN22","v":38370.3293811689},{"$f":"(ER211*'Default-Data'!$F$19/geo_dollar_index)/'Zambia-IO-Data'!$BP22","v":0},{"$f":"(ES211*'Default-Data'!$F$19/geo_dollar_index)/'Zambia-IO-Data'!$BP22","v":3.035971982016652},{"$f":"(ET211*'Default-Data'!$F$19/geo_dollar_index)/'Zambia-IO-Data'!$BP22","v":382.57786705360547},19.583491294122659,1572.6702049023934,{"$f":"EK211*'Zambia-IO-Data'!BO22","v":0},{"$f":"EX211*'Zambia-IO-Data'!$BO22","v":1.7869697573627294},{"$f":"EY211*'Zambia-IO-Data'!$BO22","v":143.50424305136272},{"$f":"EK211*'Zambia-IO-Data'!BN22","v":0},{"$f":"EX211*'Zambia-IO-Data'!$BN22","v":0.75972267886845979},{"$f":"EY211*'Zambia-IO-Data'!$BN22","v":61.010225556851232},{"$f":"(FC211*'Default-Data'!$F$19/geo_dollar_index)/'Zambia-IO-Data'!$BP22","v":0},{"$f":"(FD211*'Default-Data'!$F$19/geo_dollar_index)/'Zambia-IO-Data'!$BP22","v":7.5749436275725874E-3},{"$f":"(FE211*'Default-Data'!$F$19/geo_dollar_index)/'Zambia-IO-Data'!$BP22","v":0.60831278590625582},null,"TTL_C28: Fabricated metal products",250737.62225622765,0,null,855555.97676800878,197396.21132583788,{"$f":"FK211*CustomRegion1!C20","v":63145.288036168531},{"$f":"FN211*CustomRegion1!$C20","v":215461.59725832529},{"$f":"FO211*CustomRegion1!$C20","v":49711.888105411104},{"$f":"FK211*CustomRegion1!D20","v":19357.063828687835},{"$f":"FN211*CustomRegion1!$D20","v":66049.328785570309},{"$f":"FO211*CustomRegion1!$D20","v":15239.081505968508},{"$f":"(FS211*'Default-Data'!$C$58/geo_dollar_index)/CustomRegion1!$E20","v":6.2002591690889712},{"$f":"(FT211*'Default-Data'!$C$58/geo_dollar_index)/CustomRegion1!$E20","v":21.156253863665903},{"$f":"(FU211*'Default-Data'!$C$58/geo_dollar_index)/CustomRegion1!$E20","v":4.8812286652608714},6766.2224655367645,1819.2634920104538,{"$f":"FL211*CustomRegion1!C20","v":0},{"$f":"FY211*CustomRegion1!$C20","v":1703.9926543871559},{"$f":"FZ211*CustomRegion1!$C20","v":458.15987318924425},{"$f":"FL211*CustomRegion1!D20","v":0},{"$f":"FY211*CustomRegion1!$D20","v":522.35559612452084},{"$f":"FZ211*CustomRegion1!$D20","v":140.44800783849348},{"$f":"(GD211*'Default-Data'!$C$58/geo_dollar_index)/CustomRegion1!$E20","v":0},{"$f":"(GE211*'Default-Data'!$C$58/geo_dollar_index)/CustomRegion1!$E20","v":0.16731566848460108},{"$f":"(GF211*'Default-Data'!$C$58/geo_dollar_index)/CustomRegion1!$E20","v":4.4986887272145198E-2},null,"C28 Fabricated metal products except machinery and equipment",250737.62225622765,0,null,220092.73298110836,85572.985471664113,{"$f":"GL211*CustomRegion2!C24","v":86755.58545226256},{"$f":"GO211*CustomRegion2!$C24","v":76152.40876796782},{"$f":"GP211*CustomRegion2!$C24","v":29608.378617811464},{"$f":"GL211*CustomRegion2!D24","v":38660.550833263696},{"$f":"GO211*CustomRegion2!$D24","v":33935.498848883792},{"$f":"GP211*CustomRegion2!$D24","v":13194.265483624435},{"$f":"(GT211*'Default-Data'!$C$59/geo_dollar_index)/CustomRegion2!$E24","v":8.5138092070714642},{"$f":"(GU211*'Default-Data'!$C$59/geo_dollar_index)/CustomRegion2!$E24","v":7.4732603731450622},{"$f":"(GV211*'Default-Data'!$C$59/geo_dollar_index)/CustomRegion2!$E24","v":2.9056352414506925},1185.9844467367602,885.48364619967924,{"$f":"GM211*CustomRegion2!C24","v":0},{"$f":"GZ211*CustomRegion2!$C24","v":410.35235992140707},{"$f":"HA211*CustomRegion2!$C24","v":306.37864171797332},{"$f":"GM211*CustomRegion2!D24","v":0},{"$f":"GZ211*CustomRegion2!$D24","v":182.86371059095353},{"$f":"HA211*CustomRegion2!$D24","v":136.5303108798868},{"$f":"(HE211*'Default-Data'!$C$59/geo_dollar_index)/CustomRegion2!$E24","v":0},{"$f":"(HF211*'Default-Data'!$C$59/geo_dollar_index)/CustomRegion2!$E24","v":4.027016452980741E-2},{"$f":"(HG211*'Default-Data'!$C$59/geo_dollar_index)/CustomRegion2!$E24","v":3.0066643975837554E-2},null,"FISH",0,0,null,7848.8941703287528,989078.03108881984,{"$f":"HM211*CustomRegion3!D23","v":0},{"$f":"HP211*CustomRegion3!$D23","v":716.20204489929108},{"$f":"HQ211*CustomRegion3!$D23","v":90252.167128035915},{"$f":"HM211*CustomRegion3!E23","v":0},{"$f":"HP211*CustomRegion3!E$12","v":2462.3761070775413},{"$f":"HQ211*CustomRegion3!F$12","v":102144474.39976093},{"$f":"(HU211*'Default-Data'!$C$60/geo_dollar_index)/CustomRegion3!$F23","v":0},{"$f":"(HV211*'Default-Data'!$C$60/geo_dollar_index)/CustomRegion3!$F23","v":24.551537975376846},{"$f":"(HW211*'Default-Data'!$C$60/geo_dollar_index)/CustomRegion3!$F23","v":1018448.7800188302},19.583491294122659,1572.6702049023934,{"$f":"HN211*CustomRegion3!D23","v":0},{"$f":"IA211*CustomRegion3!$D23","v":1.7869697573627294},{"$f":"IB211*CustomRegion3!$D23","v":143.50424305136272},{"$f":"HN211*CustomRegion3!E23","v":0},{"$f":"IA211*CustomRegion3!$E23","v":0.75972267886845979},{"$f":"IB211*CustomRegion3!$E23","v":61.010225556851232},{"$f":"(IF211*'Default-Data'!$C$60/geo_dollar_index)/CustomRegion3!$F23","v":0},{"$f":"(IG211*'Default-Data'!$C$60/geo_dollar_index)/CustomRegion3!$F23","v":7.5749436275725874E-3},{"$f":"(IH211*'Default-Data'!$C$60/geo_dollar_index)/CustomRegion3!$F23","v":0.60831278590625582}]
[null,null,null,null,null,null,null,null,null,null,null,null,null,null,null,null,null,null,null,null,null,null,null,null,null,null,null,null,null,211,"TTL_C29: Machinery and equipment, nec",{"$f":"'Geothermal-Inputs'!B30*'Geothermal-Inputs'!C30","v":0},{"$f":"'Geothermal-Inputs'!B42*'Geothermal-Inputs'!C42","v":0},null,28606.02528259236,51417.645264074723,{"$f":"AF212*'Colombia-IO-Data'!AN25","v":0},{"$f":"AI212*'Colombia-IO-Data'!$AN25","v":10061.731545826107},{"$f":"AJ212*'Colombia-IO-Data'!$AN25","v":18085.369716863832},{"$f":"'Colombia-IO-Data'!$AO25*AK212","v":0},{"$f":"'Colombia-IO-Data'!$AO25*AL212","v":5143.246586523238},{"$f":"'Colombia-IO-Data'!$AO25*AM212","v":9244.6827505407819},{"$f":"(AN212*'Default-Data'!$F$19/geo_dollar_index)/'Colombia-IO-Data'!$AP25","v":0},{"$f":"(AO212*'Default-Data'!$F$19/geo_dollar_index)/'Colombia-IO-Data'!$AP25","v":1.2449963578266219},{"$f":"(AP212*'Default-Data'!$F$19/geo_dollar_index)/'Colombia-IO-Data'!$AP25","v":2.2378076104389533},389.16613060521922,727.05744413985553,{"$f":"AG212*'Colombia-IO-Data'!AN25","v":0},{"$f":"AT212*'Colombia-IO-Data'!$AN25","v":136.8832298159378},{"$f":"AU212*'Colombia-IO-Data'!$AN25","v":255.73132754592669},{"$f":"AV212*'Colombia-IO-Data'!$AO25","v":0},{"$f":"AW212*'Colombia-IO-Data'!$AO25","v":69.970481849632264},{"$f":"AX212*'Colombia-IO-Data'!$AO25","v":130.72196087494135},{"$f":"(Calculations!AY212*'Default-Data'!$F$19/geo_dollar_index)/'Colombia-IO-Data'!$AP25","v":0},{"$f":"(Calculations!AZ212*'Default-Data'!$F$19/geo_dollar_index)/'Colombia-IO-Data'!$AP25","v":1.6937355344079093E-2},{"$f":"(Calculations!BA212*'Default-Data'!$F$19/geo_dollar_index)/'Colombia-IO-Data'!$AP25","v":3.1643119270949004E-2},null,"DOM_C29: Machinery and equipment, nec",0,0,null,18894.730192634888,18143.63743262543,{"$f":"BG212*'Mexico-IO-Data'!AQ25","v":0},{"$f":"BJ212*'Mexico-IO-Data'!$AQ25","v":6697.342633887336},{"$f":"BK212*'Mexico-IO-Data'!$AQ25","v":6431.1136106448521},{"$f":"BG212*'Mexico-IO-Data'!AQ25","v":0},{"$f":"BJ212*'Mexico-IO-Data'!$AR25","v":2395.0372952073535},{"$f":"BK212*'Mexico-IO-Data'!$AR25","v":2299.8311105176094},{"$f":"(BO212*'Default-Data'!$F$19/geo_dollar_index)/'Mexico-IO-Data'!$AS25","v":0},{"$f":"(BP212*'Default-Data'!$F$19/geo_dollar_index)/'Mexico-IO-Data'!$AS25","v":0.27516563367042468},{"$f":"(BQ212*'Default-Data'!$F$19/geo_dollar_index)/'Mexico-IO-Data'!$AS25","v":0.26422740310845383},329.33485696169816,104.62095733202727,{"$f":"BH212*'Mexico-IO-Data'!AQ25","v":0},{"$f":"BU212*'Mexico-IO-Data'!$AQ25","v":116.73457921164345},{"$f":"BV212*'Mexico-IO-Data'!$AQ25","v":37.083482579233554},{"$f":"BH212*'Mexico-IO-Data'!AR25","v":0},{"$f":"BU212*'Mexico-IO-Data'!$AR25","v":41.745463258454265},{"$f":"BV212*'Mexico-IO-Data'!$AR25","v":13.26142750470046},{"$f":"(BZ212*'Default-Data'!$F$19/geo_dollar_index)/'Mexico-IO-Data'!$AS25","v":0},{"$f":"(CA212*'Default-Data'!$F$19/geo_dollar_index)/'Mexico-IO-Data'!$AS25","v":4.796132767270124E-3},{"$f":"(CB212*'Default-Data'!$F$19/geo_dollar_index)/'Mexico-IO-Data'!$AS25","v":1.5236042920949069E-3},null,"TTL_C29: Machinery and equipment, nec",0,0,null,184619.71260488924,19741.803486234741,{"$f":"CH212*'Philippines-IO-Data'!AN25","v":0},{"$f":"CK212*'Philippines-IO-Data'!$AN25","v":67546.335060534591},{"$f":"CL212*'Philippines-IO-Data'!$AN25","v":7222.8824006149343},{"$f":"CH212*'Philippines-IO-Data'!AO25","v":0},{"$f":"CK212*'Philippines-IO-Data'!$AO25","v":20095.531275186349},{"$f":"CL212*'Philippines-IO-Data'!$AO25","v":2148.8606161751054},{"$f":"(CP212*'Default-Data'!$F$19/geo_dollar_index)/'Philippines-IO-Data'!$AP25","v":0},{"$f":"(CQ212*'Default-Data'!$F$19/geo_dollar_index)/'Philippines-IO-Data'!$AP25","v":6.4367976026421214},{"$f":"(CR212*'Default-Data'!$F$19/geo_dollar_index)/'Philippines-IO-Data'!$AP25","v":0.68830132795181465},3684.1104743773885,175.33431948279076,{"$f":"CI212*'Philippines-IO-Data'!AN25","v":0},{"$f":"CV212*'Philippines-IO-Data'!$AN25","v":1347.895936957113},{"$f":"CW212*'Philippines-IO-Data'!$AN25","v":64.149112379680744},{"$f":"CI212*'Philippines-IO-Data'!AO25","v":0},{"$f":"CV212*'Philippines-IO-Data'!$AO25","v":401.00895085637677},{"$f":"CW212*'Philippines-IO-Data'!$AO25","v":19.084832551551848},{"$f":"(DA212*'Default-Data'!$F$19/geo_dollar_index)/'Philippines-IO-Data'!$AP25","v":0},{"$f":"(DB212*'Default-Data'!$F$19/geo_dollar_index)/'Philippines-IO-Data'!$AP25","v":0.12844713673719094},{"$f":"(DC212*'Default-Data'!$F$19/geo_dollar_index)/'Philippines-IO-Data'!$AP25","v":6.1130607960757227E-3},null,"DOM_C29: Machinery and equipment, nec",0,0,null,148538.12754580952,47124.162137165957,{"$f":"DI212*'SouthAfrica-IO-Data'!AR25","v":0},{"$f":"DL212*'SouthAfrica-IO-Data'!$AR25","v":45139.569046875142},{"$f":"DM212*'SouthAfrica-IO-Data'!$AR25","v":14320.662349205388},{"$f":"DI212*'SouthAfrica-IO-Data'!AS25","v":0},{"$f":"DL212*'SouthAfrica-IO-Data'!$AS25","v":36140.554008169987},{"$f":"DM212*'SouthAfrica-IO-Data'!$AS25","v":11465.698100191599},{"$f":"(DQ212*'Default-Data'!$F$19/geo_dollar_index)/'SouthAfrica-IO-Data'!$AT25","v":0},{"$f":"(DR212*'Default-Data'!$F$19/geo_dollar_index)/'SouthAfrica-IO-Data'!$AT25","v":2.899026441125041},{"$f":"(DS212*'Default-Data'!$F$19/geo_dollar_index)/'SouthAfrica-IO-Data'!$AT25","v":0.91972474884857769},2087.539560897465,421.37516883637591,{"$f":"DJ212*'SouthAfrica-IO-Data'!AR25","v":0},{"$f":"DW212*'SouthAfrica-IO-Data'!$AR25","v":634.38685880938942},{"$f":"DX212*'SouthAfrica-IO-Data'!$AR25","v":128.05260065273296},{"$f":"DJ212*'SouthAfrica-IO-Data'!$AS25","v":0},{"$f":"DZ212*'SouthAfrica-IO-Data'!$AS25","v":154.35156556557021},{"$f":"EA212*'SouthAfrica-IO-Data'!$AS25","v":31.156256014803109},{"$f":"(EB212*'Default-Data'!$F$19/geo_dollar_index)/'SouthAfrica-IO-Data'!$AT25","v":0},{"$f":"(EC212*'Default-Data'!$F$19/geo_dollar_index)/'SouthAfrica-IO-Data'!$AT25","v":1.2381361660988315E-2},{"$f":"(ED212*'Default-Data'!$F$19/geo_dollar_index)/'SouthAfrica-IO-Data'!$AT25","v":2.4992093362198268E-3},null,"FOREST",0,0,null,230812.76753088849,41834.172041486308,{"$f":"EJ212*'Zambia-IO-Data'!BO23","v":0},{"$f":"EM212*'Zambia-IO-Data'!$BO23","v":73986.066025592008},{"$f":"EN212*'Zambia-IO-Data'!$BO23","v":13409.768653171119},{"$f":"EJ212*'Zambia-IO-Data'!BN23","v":0},{"$f":"EM212*'Zambia-IO-Data'!$BN23","v":41987.893116477426},{"$f":"EN212*'Zambia-IO-Data'!$BN23","v":7610.1888257077808},{"$f":"(ER212*'Default-Data'!$F$19/geo_dollar_index)/'Zambia-IO-Data'!$BP23","v":0},{"$f":"(ES212*'Default-Data'!$F$19/geo_dollar_index)/'Zambia-IO-Data'!$BP23","v":418.64739890557956},{"$f":"(ET212*'Default-Data'!$F$19/geo_dollar_index)/'Zambia-IO-Data'!$BP23","v":75.87867646096737},3915.6674478024247,68.728543649062885,{"$f":"EK212*'Zambia-IO-Data'!BO23","v":0},{"$f":"EX212*'Zambia-IO-Data'!$BO23","v":1255.150802212888},{"$f":"EY212*'Zambia-IO-Data'!$BO23","v":22.030646842713566},{"$f":"EK212*'Zambia-IO-Data'!BN23","v":0},{"$f":"EX212*'Zambia-IO-Data'!$BN23","v":712.31166298457003},{"$f":"EY212*'Zambia-IO-Data'!$BN23","v":12.502630489891848},{"$f":"(FC212*'Default-Data'!$F$19/geo_dollar_index)/'Zambia-IO-Data'!$BP23","v":0},{"$f":"(FD212*'Default-Data'!$F$19/geo_dollar_index)/'Zambia-IO-Data'!$BP23","v":7.1022240647166859},{"$f":"(FE212*'Default-Data'!$F$19/geo_dollar_index)/'Zambia-IO-Data'!$BP23","v":0.12465959460149106},null,"TTL_C29: Machinery and equipment, nec",0,0,null,583613.58036685269,102234.08603999938,{"$f":"FK212*CustomRegion1!C21","v":0},{"$f":"FN212*CustomRegion1!$C21","v":213525.18584894433},{"$f":"FO212*CustomRegion1!$C21","v":37404.119705483943},{"$f":"FK212*CustomRegion1!D21","v":0},{"$f":"FN212*CustomRegion1!$D21","v":63525.312608329674},{"$f":"FO212*CustomRegion1!$D21","v":11128.00060415917},{"$f":"(FS212*'Default-Data'!$C$58/geo_dollar_index)/CustomRegion1!$E21","v":0},{"$f":"(FT212*'Default-Data'!$C$58/geo_dollar_index)/CustomRegion1!$E21","v":20.347786495661879},{"$f":"(FU212*'Default-Data'!$C$58/geo_dollar_index)/CustomRegion1!$E21","v":3.5644087548706813},10238.466306881004,942.22041609813823,{"$f":"FL212*CustomRegion1!C21","v":0},{"$f":"FY212*CustomRegion1!$C21","v":3745.9210932184264},{"$f":"FZ212*CustomRegion1!$C21","v":344.7277380549649},{"$f":"FL212*CustomRegion1!D21","v":0},{"$f":"FY212*CustomRegion1!$D21","v":1114.4390649128341},{"$f":"FZ212*CustomRegion1!$D21","v":102.55903647917279},{"$f":"(GD212*'Default-Data'!$C$58/geo_dollar_index)/CustomRegion1!$E21","v":0},{"$f":"(GE212*'Default-Data'!$C$58/geo_dollar_index)/CustomRegion1!$E21","v":0.35696586485271398},{"$f":"(GF212*'Default-Data'!$C$58/geo_dollar_index)/CustomRegion1!$E21","v":3.2850674664848013E-2},null,"C29 Machinery and equipment n.e.c ",0,0,null,287251.1530723297,34714.646753273613,{"$f":"GL212*CustomRegion2!C25","v":0},{"$f":"GO212*CustomRegion2!$C25","v":107933.9910055244},{"$f":"GP212*CustomRegion2!$C25","v":13043.95241012079},{"$f":"GL212*CustomRegion2!D25","v":0},{"$f":"GO212*CustomRegion2!$D25","v":77293.894923470012},{"$f":"GP212*CustomRegion2!$D25","v":9341.0600088253559},{"$f":"(GT212*'Default-Data'!$C$59/geo_dollar_index)/CustomRegion2!$E25","v":0},{"$f":"(GU212*'Default-Data'!$C$59/geo_dollar_index)/CustomRegion2!$E25","v":8.880289095302162},{"$f":"(GV212*'Default-Data'!$C$59/geo_dollar_index)/CustomRegion2!$E25","v":1.0731935997929254},830.64197186466185,359.21677634820162,{"$f":"GM212*CustomRegion2!C25","v":0},{"$f":"GZ212*CustomRegion2!$C25","v":312.11189985189202},{"$f":"HA212*CustomRegion2!$C25","v":134.97491617601119},{"$f":"GM212*CustomRegion2!D25","v":0},{"$f":"GZ212*CustomRegion2!$D25","v":223.51016734183372},{"$f":"HA212*CustomRegion2!$D25","v":96.658493686931322},{"$f":"(HE212*'Default-Data'!$C$59/geo_dollar_index)/CustomRegion2!$E25","v":0},{"$f":"(HF212*'Default-Data'!$C$59/geo_dollar_index)/CustomRegion2!$E25","v":2.5679064351719703E-2},{"$f":"(HG212*'Default-Data'!$C$59/geo_dollar_index)/CustomRegion2!$E25","v":1.1105086220668024E-2},null,"FOREST",0,0,null,230812.76753088849,41834.172041486308,{"$f":"HM212*CustomRegion3!D24","v":0},{"$f":"HP212*CustomRegion3!$D24","v":73986.066025592008},{"$f":"HQ212*CustomRegion3!$D24","v":13409.768653171119},{"$f":"HM212*CustomRegion3!E24","v":0},{"$f":"HP212*CustomRegion3!E$12","v":72411.199799970971},{"$f":"HQ212*CustomRegion3!F$12","v":4320315.8707536422},{"$f":"(HU212*'Default-Data'!$C$60/geo_dollar_index)/CustomRegion3!$F24","v":0},{"$f":"(HV212*'Default-Data'!$C$60/geo_dollar_index)/CustomRegion3!$F24","v":721.9881303354457},{"$f":"(HW212*'Default-Data'!$C$60/geo_dollar_index)/CustomRegion3!$F24","v":43076.44102846679},3915.6674478024247,68.728543649062885,{"$f":"HN212*CustomRegion3!D24","v":0},{"$f":"IA212*CustomRegion3!$D24","v":1255.150802212888},{"$f":"IB212*CustomRegion3!$D24","v":22.030646842713566},{"$f":"HN212*CustomRegion3!E24","v":0},{"$f":"IA212*CustomRegion3!$E24","v":712.31166298457003},{"$f":"IB212*CustomRegion3!$E24","v":12.502630489891848},{"$f":"(IF212*'Default-Data'!$C$60/geo_dollar_index)/CustomRegion3!$F24","v":0},{"$f":"(IG212*'Default-Data'!$C$60/geo_dollar_index)/CustomRegion3!$F24","v":7.1022240647166859},{"$f":"(IH212*'Default-Data'!$C$60/geo_dollar_index)/CustomRegion3!$F24","v":0.12465959460149106}]
[null,null,null,null,null,null,null,null,null,null,null,null,null,null,null,null,null,null,null,null,null,null,null,null,null,null,null,null,null,212,"TTL_C30T33X: Computer, Electronic and optical equipment",0,0,null,29976.282110601667,9577.5599986164489,{"$f":"AF213*'Colombia-IO-Data'!AN26","v":0},{"$f":"AI213*'Colombia-IO-Data'!$AN26","v":7161.2304297327019},{"$f":"AJ213*'Colombia-IO-Data'!$AN26","v":2288.0460576005089},{"$f":"'Colombia-IO-Data'!$AO26*AK213","v":0},{"$f":"'Colombia-IO-Data'!$AO26*AL213","v":2844.6458058060616},{"$f":"'Colombia-IO-Data'!$AO26*AM213","v":908.87741779974021},{"$f":"(AN213*'Default-Data'!$F$19/geo_dollar_index)/'Colombia-IO-Data'!$AP26","v":0},{"$f":"(AO213*'Default-Data'!$F$19/geo_dollar_index)/'Colombia-IO-Data'!$AP26","v":0.68858718087039572},{"$f":"(AP213*'Default-Data'!$F$19/geo_dollar_index)/'Colombia-IO-Data'!$AP26","v":0.22000677117766826},283.39224156631656,346.33122509558365,{"$f":"AG213*'Colombia-IO-Data'!AN26","v":0},{"$f":"AT213*'Colombia-IO-Data'!$AN26","v":67.701429295566939},{"$f":"AU213*'Colombia-IO-Data'!$AN26","v":82.737335429731161},{"$f":"AV213*'Colombia-IO-Data'!$AO26","v":0},{"$f":"AW213*'Colombia-IO-Data'!$AO26","v":26.892946510017353},{"$f":"AX213*'Colombia-IO-Data'!$AO26","v":32.865639015967112},{"$f":"(Calculations!AY213*'Default-Data'!$F$19/geo_dollar_index)/'Colombia-IO-Data'!$AP26","v":0},{"$f":"(Calculations!AZ213*'Default-Data'!$F$19/geo_dollar_index)/'Colombia-IO-Data'!$AP26","v":6.5098221314002502E-3},{"$f":"(Calculations!BA213*'Default-Data'!$F$19/geo_dollar_index)/'Colombia-IO-Data'!$AP26","v":7.9555977307678126E-3},null,"DOM_C30T33X: Computer, Electronic and optical equipment",0,0,null,83018.781822198143,102771.1875939782,{"$f":"BG213*'Mexico-IO-Data'!AQ26","v":0},{"$f":"BJ213*'Mexico-IO-Data'!$AQ26","v":11252.968051087702},{"$f":"BK213*'Mexico-IO-Data'!$AQ26","v":13930.352447765616},{"$f":"BG213*'Mexico-IO-Data'!AQ26","v":0},{"$f":"BJ213*'Mexico-IO-Data'!$AR26","v":4824.6033540827693},{"$f":"BK213*'Mexico-IO-Data'!$AR26","v":5972.5065278710008},{"$f":"(BO213*'Default-Data'!$F$19/geo_dollar_index)/'Mexico-IO-Data'!$AS26","v":0},{"$f":"(BP213*'Default-Data'!$F$19/geo_dollar_index)/'Mexico-IO-Data'!$AS26","v":0.63479347177791756},{"$f":"(BQ213*'Default-Data'!$F$19/geo_dollar_index)/'Mexico-IO-Data'!$AS26","v":0.78582794808098655},732.84235874577053,592.60553856181878,{"$f":"BH213*'Mexico-IO-Data'!AQ26","v":0},{"$f":"BU213*'Mexico-IO-Data'!$AQ26","v":99.334770619879905},{"$f":"BV213*'Mexico-IO-Data'!$AQ26","v":80.326054489885067},{"$f":"BH213*'Mexico-IO-Data'!AR26","v":0},{"$f":"BU213*'Mexico-IO-Data'!$AR26","v":42.588841035889303},{"$f":"BV213*'Mexico-IO-Data'!$AR26","v":34.439034231033425},{"$f":"(BZ213*'Default-Data'!$F$19/geo_dollar_index)/'Mexico-IO-Data'!$AS26","v":0},{"$f":"(CA213*'Default-Data'!$F$19/geo_dollar_index)/'Mexico-IO-Data'!$AS26","v":5.603593969500483E-3},{"$f":"(CB213*'Default-Data'!$F$19/geo_dollar_index)/'Mexico-IO-Data'!$AS26","v":4.5312894138118207E-3},null,"TTL_C30T33X: Computer, Electronic and optical equipment",0,0,null,795034.60211080103,468583.02762649418,{"$f":"CH213*'Philippines-IO-Data'!AN26","v":0},{"$f":"CK213*'Philippines-IO-Data'!$AN26","v":195943.64019984932},{"$f":"CL213*'Philippines-IO-Data'!$AN26","v":115486.62652572924},{"$f":"CH213*'Philippines-IO-Data'!AO26","v":0},{"$f":"CK213*'Philippines-IO-Data'!$AO26","v":73525.941108055893},{"$f":"CL213*'Philippines-IO-Data'!$AO26","v":43335.230947216747},{"$f":"(CP213*'Default-Data'!$F$19/geo_dollar_index)/'Philippines-IO-Data'!$AP26","v":0},{"$f":"(CQ213*'Default-Data'!$F$19/geo_dollar_index)/'Philippines-IO-Data'!$AP26","v":23.551086805091256},{"$f":"(CR213*'Default-Data'!$F$19/geo_dollar_index)/'Philippines-IO-Data'!$AP26","v":13.880703468408338},8110.0491159838111,4161.6606267691477,{"$f":"CI213*'Philippines-IO-Data'!AN26","v":0},{"$f":"CV213*'Philippines-IO-Data'!$AN26","v":1998.7967086795666},{"$f":"CW213*'Philippines-IO-Data'!$AN26","v":1025.6798010055504},{"$f":"CI213*'Philippines-IO-Data'!AO26","v":0},{"$f":"CV213*'Philippines-IO-Data'!$AO26","v":750.02898251485465},{"$f":"CW213*'Philippines-IO-Data'!$AO26","v":384.8763479515809},{"$f":"(DA213*'Default-Data'!$F$19/geo_dollar_index)/'Philippines-IO-Data'!$AP26","v":0},{"$f":"(DB213*'Default-Data'!$F$19/geo_dollar_index)/'Philippines-IO-Data'!$AP26","v":0.24024170799231367},{"$f":"(DC213*'Default-Data'!$F$19/geo_dollar_index)/'Philippines-IO-Data'!$AP26","v":0.12327970432249333},null,"DOM_C30T33X: Computer, Electronic and optical equipment",0,0,null,31535.942351321126,82905.306850951849,{"$f":"DI213*'SouthAfrica-IO-Data'!AR26","v":0},{"$f":"DL213*'SouthAfrica-IO-Data'!$AR26","v":8026.5202577092177},{"$f":"DM213*'SouthAfrica-IO-Data'!$AR26","v":21101.038221643208},{"$f":"DI213*'SouthAfrica-IO-Data'!AS26","v":0},{"$f":"DL213*'SouthAfrica-IO-Data'!$AS26","v":5611.0561813246395},{"$f":"DM213*'SouthAfrica-IO-Data'!$AS26","v":14750.988864969226},{"$f":"(DQ213*'Default-Data'!$F$19/geo_dollar_index)/'SouthAfrica-IO-Data'!$AT26","v":0},{"$f":"(DR213*'Default-Data'!$F$19/geo_dollar_index)/'SouthAfrica-IO-Data'!$AT26","v":0.45009271934849093},{"$f":"(DS213*'Default-Data'!$F$19/geo_dollar_index)/'SouthAfrica-IO-Data'!$AT26","v":1.183255429416485},194.55645081550392,741.32326363845266,{"$f":"DJ213*'SouthAfrica-IO-Data'!AR26","v":0},{"$f":"DW213*'SouthAfrica-IO-Data'!$AR26","v":49.518459805062051},{"$f":"DX213*'SouthAfrica-IO-Data'!$AR26","v":188.68141395038666},{"$f":"DJ213*'SouthAfrica-IO-Data'!$AS26","v":0},{"$f":"DZ213*'SouthAfrica-IO-Data'!$AS26","v":8.8106090784767428},{"$f":"EA213*'SouthAfrica-IO-Data'!$AS26","v":33.571282007465946},{"$f":"(EB213*'Default-Data'!$F$19/geo_dollar_index)/'SouthAfrica-IO-Data'!$AT26","v":0},{"$f":"(EC213*'Default-Data'!$F$19/geo_dollar_index)/'SouthAfrica-IO-Data'!$AT26","v":7.067459086306842E-4},{"$f":"(ED213*'Default-Data'!$F$19/geo_dollar_index)/'SouthAfrica-IO-Data'!$AT26","v":2.6929314415077288E-3},null,"MINING",{"$f":"AF201","v":4986045.0041046599},{"$f":"AG201","v":288013.58303989517},null,4887778.7699512737,240193.30587732047,{"$f":"EJ213*'Zambia-IO-Data'!BO24","v":1218151.685174451},{"$f":"EM213*'Zambia-IO-Data'!$BO24","v":1194144.0441220435},{"$f":"EN213*'Zambia-IO-Data'!$BO24","v":58682.157918993915},{"$f":"EJ213*'Zambia-IO-Data'!BN24","v":44427.183923888275},{"$f":"EM213*'Zambia-IO-Data'!$BN24","v":43551.60176314837},{"$f":"EN213*'Zambia-IO-Data'!$BN24","v":2140.1957199972512},{"$f":"(ER213*'Default-Data'!$F$19/geo_dollar_index)/'Zambia-IO-Data'!$BP24","v":40.320563502681978},{"$f":"(ES213*'Default-Data'!$F$19/geo_dollar_index)/'Zambia-IO-Data'!$BP24","v":39.525915654319348},{"$f":"(ET213*'Default-Data'!$F$19/geo_dollar_index)/'Zambia-IO-Data'!$BP24","v":1.9423670333045246},236142.20522025687,396.66205995850032,{"$f":"EK213*'Zambia-IO-Data'!BO24","v":70365.235621490501},{"$f":"EX213*'Zambia-IO-Data'!$BO24","v":57692.424555546364},{"$f":"EY213*'Zambia-IO-Data'!$BO24","v":96.909385371659553},{"$f":"EK213*'Zambia-IO-Data'!BN24","v":2566.288995738656},{"$f":"EX213*'Zambia-IO-Data'!$BN24","v":2104.0991757748498},{"$f":"EY213*'Zambia-IO-Data'!$BN24","v":3.5343801106683279},{"$f":"(FC213*'Default-Data'!$F$19/geo_dollar_index)/'Zambia-IO-Data'!$BP24","v":2.3290744377627965},{"$f":"(FD213*'Default-Data'!$F$19/geo_dollar_index)/'Zambia-IO-Data'!$BP24","v":1.9096070680084993},{"$f":"(FE213*'Default-Data'!$F$19/geo_dollar_index)/'Zambia-IO-Data'!$BP24","v":3.2076801883045426E-3},null,"TTL_C30T33X: Computer, Electronic and optical equipment",0,0,null,1601650.2046984914,1119049.7061177124,{"$f":"FK213*CustomRegion1!C22","v":0},{"$f":"FN213*CustomRegion1!$C22","v":394741.52521441883},{"$f":"FO213*CustomRegion1!$C22","v":275800.16316159937},{"$f":"FK213*CustomRegion1!D22","v":0},{"$f":"FN213*CustomRegion1!$D22","v":148122.90976230337},{"$f":"FO213*CustomRegion1!$D22","v":103491.32298210492},{"$f":"(FS213*'Default-Data'!$C$58/geo_dollar_index)/CustomRegion1!$E22","v":0},{"$f":"(FT213*'Default-Data'!$C$58/geo_dollar_index)/CustomRegion1!$E22","v":47.445234335837583},{"$f":"(FU213*'Default-Data'!$C$58/geo_dollar_index)/CustomRegion1!$E22","v":33.149295260883669},17222.519252801751,10313.502282596786,{"$f":"FL213*CustomRegion1!C22","v":0},{"$f":"FY213*CustomRegion1!$C22","v":4244.6493609791996},{"$f":"FZ213*CustomRegion1!$C22","v":2541.8581469235587},{"$f":"FL213*CustomRegion1!D22","v":0},{"$f":"FY213*CustomRegion1!$D22","v":1592.7632998008562},{"$f":"FZ213*CustomRegion1!$D22","v":953.80749395650639},{"$f":"(GD213*'Default-Data'!$C$58/geo_dollar_index)/CustomRegion1!$E22","v":0},{"$f":"(GE213*'Default-Data'!$C$58/geo_dollar_index)/CustomRegion1!$E22","v":0.51017785244592562},{"$f":"(GF213*'Default-Data'!$C$58/geo_dollar_index)/CustomRegion1!$E22","v":0.30551398250725753},null,"C30 Office, accounting and computing machinery",0,0,null,436420.15300467383,235304.18778831424,{"$f":"GL213*CustomRegion2!C26","v":0},{"$f":"GO213*CustomRegion2!$C26","v":71699.841936637938},{"$f":"GP213*CustomRegion2!$C26","v":38658.327199822095},{"$f":"GL213*CustomRegion2!D26","v":0},{"$f":"GO213*CustomRegion2!$D26","v":30184.427600958283},{"$f":"GP213*CustomRegion2!$D26","v":16274.505591914311},{"$f":"(GT213*'Default-Data'!$C$59/geo_dollar_index)/CustomRegion2!$E26","v":0},{"$f":"(GU213*'Default-Data'!$C$59/geo_dollar_index)/CustomRegion2!$E26","v":3.9714928221460566},{"$f":"(GV213*'Default-Data'!$C$59/geo_dollar_index)/CustomRegion2!$E26","v":2.141305543266673},1616.2236857590665,2434.8573211559201,{"$f":"GM213*CustomRegion2!C26","v":0},{"$f":"GZ213*CustomRegion2!$C26","v":265.53077809386684},{"$f":"HA213*CustomRegion2!$C26","v":400.02480147445323},{"$f":"GM213*CustomRegion2!D26","v":0},{"$f":"GZ213*CustomRegion2!$D26","v":111.78399185709931},{"$f":"HA213*CustomRegion2!$D26","v":168.40371376778975},{"$f":"(HE213*'Default-Data'!$C$59/geo_dollar_index)/CustomRegion2!$E26","v":0},{"$f":"(HF213*'Default-Data'!$C$59/geo_dollar_index)/CustomRegion2!$E26","v":1.4707892664401853E-2},{"$f":"(HG213*'Default-Data'!$C$59/geo_dollar_index)/CustomRegion2!$E26","v":2.2157588982415648E-2},null,"MINING",4986045.0041046599,288013.58303989517,null,4887778.7699512737,240193.30587732047,{"$f":"HM213*CustomRegion3!D25","v":1218151.685174451},{"$f":"HP213*CustomRegion3!$D25","v":1194144.0441220435},{"$f":"HQ213*CustomRegion3!$D25","v":58682.157918993915},{"$f":"HM213*CustomRegion3!E25","v":44427.183923888275},{"$f":"HP213*CustomRegion3!E$12","v":1533407.0505507602},{"$f":"HQ213*CustomRegion3!F$12","v":24805342.159072485},{"$f":"(HU213*'Default-Data'!$C$60/geo_dollar_index)/CustomRegion3!$F25","v":40.320563502681978},{"$f":"(HV213*'Default-Data'!$C$60/geo_dollar_index)/CustomRegion3!$F25","v":1391.6667881339129},{"$f":"(HW213*'Default-Data'!$C$60/geo_dollar_index)/CustomRegion3!$F25","v":22512.463887967759},236142.20522025687,396.66205995850032,{"$f":"HN213*CustomRegion3!D25","v":70365.235621490501},{"$f":"IA213*CustomRegion3!$D25","v":57692.424555546364},{"$f":"IB213*CustomRegion3!$D25","v":96.909385371659553},{"$f":"HN213*CustomRegion3!E25","v":2566.288995738656},{"$f":"IA213*CustomRegion3!$E25","v":2104.0991757748498},{"$f":"IB213*CustomRegion3!$E25","v":3.5343801106683279},{"$f":"(IF213*'Default-Data'!$C$60/geo_dollar_index)/CustomRegion3!$F25","v":2.3290744377627965},{"$f":"(IG213*'Default-Data'!$C$60/geo_dollar_index)/CustomRegion3!$F25","v":1.9096070680084993},{"$f":"(IH213*'Default-Data'!$C$60/geo_dollar_index)/CustomRegion3!$F25","v":3.2076801883045426E-3}]
[null,null,null,null,null,null,null,null,null,null,null,null,null,null,null,null,null,null,null,null,null,null,null,null,null,null,null,null,null,213,"TTL_C31: Electrical machinery and apparatus, nec",0,0,null,224420.82624908362,35692.20681285148,{"$f":"AF214*'Colombia-IO-Data'!AN27","v":0},{"$f":"AI214*'Colombia-IO-Data'!$AN27","v":56763.26273577151},{"$f":"AJ214*'Colombia-IO-Data'!$AN27","v":9027.7098912768815},{"$f":"'Colombia-IO-Data'!$AO27*AK214","v":0},{"$f":"'Colombia-IO-Data'!$AO27*AL214","v":29380.551170825522},{"$f":"'Colombia-IO-Data'!$AO27*AM214","v":4672.7245692463994},{"$f":"(AN214*'Default-Data'!$F$19/geo_dollar_index)/'Colombia-IO-Data'!$AP27","v":0},{"$f":"(AO214*'Default-Data'!$F$19/geo_dollar_index)/'Colombia-IO-Data'!$AP27","v":7.1119823993006595},{"$f":"(AP214*'Default-Data'!$F$19/geo_dollar_index)/'Colombia-IO-Data'!$AP27","v":1.1310997775378493},3056.4390173054439,3290.9905332491471,{"$f":"AG214*'Colombia-IO-Data'!AN27","v":0},{"$f":"AT214*'Colombia-IO-Data'!$AN27","v":773.07197319830129},{"$f":"AU214*'Colombia-IO-Data'!$AN27","v":832.39761399158886},{"$f":"AV214*'Colombia-IO-Data'!$AO27","v":0},{"$f":"AW214*'Colombia-IO-Data'!$AO27","v":400.14050589396646},{"$f":"AX214*'Colombia-IO-Data'!$AO27","v":430.84733881833199},{"$f":"(Calculations!AY214*'Default-Data'!$F$19/geo_dollar_index)/'Colombia-IO-Data'!$AP27","v":0},{"$f":"(Calculations!AZ214*'Default-Data'!$F$19/geo_dollar_index)/'Colombia-IO-Data'!$AP27","v":9.6859729370597489E-2},{"$f":"(Calculations!BA214*'Default-Data'!$F$19/geo_dollar_index)/'Colombia-IO-Data'!$AP27","v":0.10429275722724331},null,"DOM_C31: Electrical machinery and apparatus, nec",0,0,null,104933.86284423541,49792.205824071629,{"$f":"BG214*'Mexico-IO-Data'!AQ27","v":0},{"$f":"BJ214*'Mexico-IO-Data'!$AQ27","v":28153.26563190858},{"$f":"BK214*'Mexico-IO-Data'!$AQ27","v":13359.016422035427},{"$f":"BG214*'Mexico-IO-Data'!AQ27","v":0},{"$f":"BJ214*'Mexico-IO-Data'!$AR27","v":9713.8594285729814},{"$f":"BK214*'Mexico-IO-Data'!$AR27","v":4609.3270075416422},{"$f":"(BO214*'Default-Data'!$F$19/geo_dollar_index)/'Mexico-IO-Data'!$AS27","v":0},{"$f":"(BP214*'Default-Data'!$F$19/geo_dollar_index)/'Mexico-IO-Data'!$AS27","v":1.4346526579078858},{"$f":"(BQ214*'Default-Data'!$F$19/geo_dollar_index)/'Mexico-IO-Data'!$AS27","v":0.68075755997507492},1440.2250688915815,287.11487761657304,{"$f":"BH214*'Mexico-IO-Data'!AQ27","v":0},{"$f":"BU214*'Mexico-IO-Data'!$AQ27","v":386.40566386493219},{"$f":"BV214*'Mexico-IO-Data'!$AQ27","v":77.031581582116118},{"$f":"BH214*'Mexico-IO-Data'!AR27","v":0},{"$f":"BU214*'Mexico-IO-Data'!$AR27","v":133.3234428383403},{"$f":"BV214*'Mexico-IO-Data'!$AR27","v":26.578584695384063},{"$f":"(BZ214*'Default-Data'!$F$19/geo_dollar_index)/'Mexico-IO-Data'!$AS27","v":0},{"$f":"(CA214*'Default-Data'!$F$19/geo_dollar_index)/'Mexico-IO-Data'!$AS27","v":1.9690714389672199E-2},{"$f":"(CB214*'Default-Data'!$F$19/geo_dollar_index)/'Mexico-IO-Data'!$AS27","v":3.9254260839416168E-3},null,"TTL_C31: Electrical machinery and apparatus, nec",0,0,null,70307.338587388353,266203.79056421859,{"$f":"CH214*'Philippines-IO-Data'!AN27","v":0},{"$f":"CK214*'Philippines-IO-Data'!$AN27","v":18268.242571993385},{"$f":"CL214*'Philippines-IO-Data'!$AN27","v":69168.816759671827},{"$f":"CH214*'Philippines-IO-Data'!AO27","v":0},{"$f":"CK214*'Philippines-IO-Data'!$AO27","v":6109.0750795311806},{"$f":"CL214*'Philippines-IO-Data'!$AO27","v":23130.714029108789},{"$f":"(CP214*'Default-Data'!$F$19/geo_dollar_index)/'Philippines-IO-Data'!$AP27","v":0},{"$f":"(CQ214*'Default-Data'!$F$19/geo_dollar_index)/'Philippines-IO-Data'!$AP27","v":1.9567972246069607},{"$f":"(CR214*'Default-Data'!$F$19/geo_dollar_index)/'Philippines-IO-Data'!$AP27","v":7.4089966854378302},1459.4006344699342,2364.2551449193184,{"$f":"CI214*'Philippines-IO-Data'!AN27","v":0},{"$f":"CV214*'Philippines-IO-Data'!$AN27","v":379.20201981589685},{"$f":"CW214*'Philippines-IO-Data'!$AN27","v":614.31405820866894},{"$f":"CI214*'Philippines-IO-Data'!AO27","v":0},{"$f":"CV214*'Philippines-IO-Data'!$AO27","v":126.80878306907688},{"$f":"CW214*'Philippines-IO-Data'!$AO27","v":205.43249791097668},{"$f":"(DA214*'Default-Data'!$F$19/geo_dollar_index)/'Philippines-IO-Data'!$AP27","v":0},{"$f":"(DB214*'Default-Data'!$F$19/geo_dollar_index)/'Philippines-IO-Data'!$AP27","v":4.0618108557342915E-2},{"$f":"(DC214*'Default-Data'!$F$19/geo_dollar_index)/'Philippines-IO-Data'!$AP27","v":6.5802062754665588E-2},null,"DOM_C31: Electrical machinery and apparatus, nec",0,0,null,247684.6697117865,159734.72735094459,{"$f":"DI214*'SouthAfrica-IO-Data'!AR27","v":0},{"$f":"DL214*'SouthAfrica-IO-Data'!$AR27","v":46590.676124475613},{"$f":"DM214*'SouthAfrica-IO-Data'!$AR27","v":30046.869499429213},{"$f":"DI214*'SouthAfrica-IO-Data'!AS27","v":0},{"$f":"DL214*'SouthAfrica-IO-Data'!$AS27","v":47533.824735779883},{"$f":"DM214*'SouthAfrica-IO-Data'!$AS27","v":30655.117020171674},{"$f":"(DQ214*'Default-Data'!$F$19/geo_dollar_index)/'SouthAfrica-IO-Data'!$AT27","v":0},{"$f":"(DR214*'Default-Data'!$F$19/geo_dollar_index)/'SouthAfrica-IO-Data'!$AT27","v":3.8129414044310916},{"$f":"(DS214*'Default-Data'!$F$19/geo_dollar_index)/'SouthAfrica-IO-Data'!$AT27","v":2.4590103067365789},3236.2710382378,1428.3171234030724,{"$f":"DJ214*'SouthAfrica-IO-Data'!AR27","v":0},{"$f":"DW214*'SouthAfrica-IO-Data'!$AR27","v":608.75812769926415},{"$f":"DX214*'SouthAfrica-IO-Data'!$AR27","v":268.6733118240644},{"$f":"DJ214*'SouthAfrica-IO-Data'!$AS27","v":0},{"$f":"DZ214*'SouthAfrica-IO-Data'!$AS27","v":116.82839386955136},{"$f":"EA214*'SouthAfrica-IO-Data'!$AS27","v":51.561810952157124},{"$f":"(EB214*'Default-Data'!$F$19/geo_dollar_index)/'SouthAfrica-IO-Data'!$AT27","v":0},{"$f":"(EC214*'Default-Data'!$F$19/geo_dollar_index)/'SouthAfrica-IO-Data'!$AT27","v":9.3714280867259435E-3},{"$f":"(ED214*'Default-Data'!$F$19/geo_dollar_index)/'SouthAfrica-IO-Data'!$AT27","v":4.1360476452243318E-3},null,"FOODMFG",0,0,null,41408.98764913802,5743507.76123852,{"$f":"EJ214*'Zambia-IO-Data'!BO25","v":0},{"$f":"EM214*'Zambia-IO-Data'!$BO25","v":4643.2743039767356},{"$f":"EN214*'Zambia-IO-Data'!$BO25","v":644031.24820186011},{"$f":"EJ214*'Zambia-IO-Data'!BN25","v":0},{"$f":"EM214*'Zambia-IO-Data'!$BN25","v":2149.7868891645512},{"$f":"EN214*'Zambia-IO-Data'!$BN25","v":298179.65576809837},{"$f":"(ER214*'Default-Data'!$F$19/geo_dollar_index)/'Zambia-IO-Data'!$BP25","v":0},{"$f":"(ES214*'Default-Data'!$F$19/geo_dollar_index)/'Zambia-IO-Data'!$BP25","v":8.3165006625573561},{"$f":"(ET214*'Default-Data'!$F$19/geo_dollar_index)/'Zambia-IO-Data'!$BP25","v":1153.5149447860933},128.64000884875605,9293.42872376782,{"$f":"EK214*'Zambia-IO-Data'!BO25","v":0},{"$f":"EX214*'Zambia-IO-Data'!$BO25","v":14.424666756208483},{"$f":"EY214*'Zambia-IO-Data'!$BO25","v":1042.0911313877214},{"$f":"EK214*'Zambia-IO-Data'!BN25","v":0},{"$f":"EX214*'Zambia-IO-Data'!$BN25","v":6.6784681332537792},{"$f":"EY214*'Zambia-IO-Data'!$BN25","v":482.47717126108472},{"$f":"(FC214*'Default-Data'!$F$19/geo_dollar_index)/'Zambia-IO-Data'!$BP25","v":0},{"$f":"(FD214*'Default-Data'!$F$19/geo_dollar_index)/'Zambia-IO-Data'!$BP25","v":2.5835809556294085E-2},{"$f":"(FE214*'Default-Data'!$F$19/geo_dollar_index)/'Zambia-IO-Data'!$BP25","v":1.8664741768989732},null,"TTL_C31: Electrical machinery and apparatus, nec",0,0,null,176474.51722000874,484468.94325515593,{"$f":"FK214*CustomRegion1!C23","v":0},{"$f":"FN214*CustomRegion1!$C23","v":45854.09365685816},{"$f":"FO214*CustomRegion1!$C23","v":125881.54169684443},{"$f":"FK214*CustomRegion1!D23","v":0},{"$f":"FN214*CustomRegion1!$D23","v":15334.04758282856},{"$f":"FO214*CustomRegion1!$D23","v":42095.991791357301},{"$f":"(FS214*'Default-Data'!$C$58/geo_dollar_index)/CustomRegion1!$E23","v":0},{"$f":"(FT214*'Default-Data'!$C$58/geo_dollar_index)/CustomRegion1!$E23","v":4.911647239793405},{"$f":"(FU214*'Default-Data'!$C$58/geo_dollar_index)/CustomRegion1!$E23","v":13.483762898970104},3197.3671109366501,4465.0130595572609,{"$f":"FL214*CustomRegion1!C23","v":0},{"$f":"FY214*CustomRegion1!$C23","v":830.78493864055849},{"$f":"FZ214*CustomRegion1!$C23","v":1160.1625562561396},{"$f":"FL214*CustomRegion1!D23","v":0},{"$f":"FY214*CustomRegion1!$D23","v":277.82243119979933},{"$f":"FZ214*CustomRegion1!$D23","v":387.96945752709047},{"$f":"(GD214*'Default-Data'!$C$58/geo_dollar_index)/CustomRegion1!$E23","v":0},{"$f":"(GE214*'Default-Data'!$C$58/geo_dollar_index)/CustomRegion1!$E23","v":8.8989275009375979E-2},{"$f":"(GF214*'Default-Data'!$C$58/geo_dollar_index)/CustomRegion1!$E23","v":0.12427045793968849},null,"C31 Electrical machinery and apparatus n.e.c",0,0,null,185505.38375603719,112549.81872449277,{"$f":"GL214*CustomRegion2!C27","v":0},{"$f":"GO214*CustomRegion2!$C27","v":48169.306504791442},{"$f":"GP214*CustomRegion2!$C27","v":29225.279641094883},{"$f":"GL214*CustomRegion2!D27","v":0},{"$f":"GO214*CustomRegion2!$D27","v":22533.087236727984},{"$f":"GP214*CustomRegion2!$D27","v":13671.273751990933},{"$f":"(GT214*'Default-Data'!$C$59/geo_dollar_index)/CustomRegion2!$E27","v":0},{"$f":"(GU214*'Default-Data'!$C$59/geo_dollar_index)/CustomRegion2!$E27","v":3.3279412506169126},{"$f":"(GV214*'Default-Data'!$C$59/geo_dollar_index)/CustomRegion2!$E27","v":2.0191283772943622},689.31675992186831,1164.6318439629267,{"$f":"GM214*CustomRegion2!C27","v":0},{"$f":"GZ214*CustomRegion2!$C27","v":178.99162609336184},{"$f":"HA214*CustomRegion2!$C27","v":302.41444814813855},{"$f":"GM214*CustomRegion2!D27","v":0},{"$f":"GZ214*CustomRegion2!$D27","v":83.730371434854078},{"$f":"HA214*CustomRegion2!$D27","v":141.46624969763954},{"$f":"(HE214*'Default-Data'!$C$59/geo_dollar_index)/CustomRegion2!$E27","v":0},{"$f":"(HF214*'Default-Data'!$C$59/geo_dollar_index)/CustomRegion2!$E27","v":1.2366248534880721E-2},{"$f":"(HG214*'Default-Data'!$C$59/geo_dollar_index)/CustomRegion2!$E27","v":2.0893336230087323E-2},null,"FOODMFG",0,0,null,41408.98764913802,5743507.76123852,{"$f":"HM214*CustomRegion3!D26","v":0},{"$f":"HP214*CustomRegion3!$D26","v":4643.2743039767356},{"$f":"HQ214*CustomRegion3!$D26","v":644031.24820186011},{"$f":"HM214*CustomRegion3!E26","v":0},{"$f":"HP214*CustomRegion3!E$12","v":12990.938544051696},{"$f":"HQ214*CustomRegion3!F$12","v":593145902.5905441},{"$f":"(HU214*'Default-Data'!$C$60/geo_dollar_index)/CustomRegion3!$F26","v":0},{"$f":"(HV214*'Default-Data'!$C$60/geo_dollar_index)/CustomRegion3!$F26","v":50.255748396918513},{"$f":"(HW214*'Default-Data'!$C$60/geo_dollar_index)/CustomRegion3!$F26","v":2294598.742205773},128.64000884875605,9293.42872376782,{"$f":"HN214*CustomRegion3!D26","v":0},{"$f":"IA214*CustomRegion3!$D26","v":14.424666756208483},{"$f":"IB214*CustomRegion3!$D26","v":1042.0911313877214},{"$f":"HN214*CustomRegion3!E26","v":0},{"$f":"IA214*CustomRegion3!$E26","v":6.6784681332537792},{"$f":"IB214*CustomRegion3!$E26","v":482.47717126108472},{"$f":"(IF214*'Default-Data'!$C$60/geo_dollar_index)/CustomRegion3!$F26","v":0},{"$f":"(IG214*'Default-Data'!$C$60/geo_dollar_index)/CustomRegion3!$F26","v":2.5835809556294085E-2},{"$f":"(IH214*'Default-Data'!$C$60/geo_dollar_index)/CustomRegion3!$F26","v":1.8664741768989732}]
[null,null,null,null,null,null,null,null,null,null,null,null,null,null,null,null,null,null,null,null,null,null,null,null,null,null,null,null,null,214,"TTL_C34: Motor vehicles, trailers and semi-trailers",0,0,null,26988.035655638327,110381.4866906674,{"$f":"AF215*'Colombia-IO-Data'!AN28","v":0},{"$f":"AI215*'Colombia-IO-Data'!$AN28","v":5940.2381442210381},{"$f":"AJ215*'Colombia-IO-Data'!$AN28","v":24295.666643627781},{"$f":"'Colombia-IO-Data'!$AO28*AK215","v":0},{"$f":"'Colombia-IO-Data'!$AO28*AL215","v":1520.1365260417181},{"$f":"'Colombia-IO-Data'!$AO28*AM215","v":6217.3820969521221},{"$f":"(AN215*'Default-Data'!$F$19/geo_dollar_index)/'Colombia-IO-Data'!$AP28","v":0},{"$f":"(AO215*'Default-Data'!$F$19/geo_dollar_index)/'Colombia-IO-Data'!$AP28","v":0.36797077613976492},{"$f":"(AP215*'Default-Data'!$F$19/geo_dollar_index)/'Colombia-IO-Data'!$AP28","v":1.5050062126526167},284.40489698980269,1009.7773899591527,{"$f":"AG215*'Colombia-IO-Data'!AN28","v":0},{"$f":"AT215*'Colombia-IO-Data'!$AN28","v":62.599325088305406},{"$f":"AU215*'Colombia-IO-Data'!$AN28","v":222.25842019569717},{"$f":"AV215*'Colombia-IO-Data'!$AO28","v":0},{"$f":"AW215*'Colombia-IO-Data'!$AO28","v":16.019479061604407},{"$f":"AX215*'Colombia-IO-Data'!$AO28","v":56.877036670406511},{"$f":"(Calculations!AY215*'Default-Data'!$F$19/geo_dollar_index)/'Colombia-IO-Data'!$AP28","v":0},{"$f":"(Calculations!AZ215*'Default-Data'!$F$19/geo_dollar_index)/'Colombia-IO-Data'!$AP28","v":3.8777439017286764E-3},{"$f":"(Calculations!BA215*'Default-Data'!$F$19/geo_dollar_index)/'Colombia-IO-Data'!$AP28","v":1.3767899770579545E-2},null,"DOM_C34: Motor vehicles, trailers and semi-trailers",0,0,null,23421.562758176868,334568.30692441249,{"$f":"BG215*'Mexico-IO-Data'!AQ28","v":0},{"$f":"BJ215*'Mexico-IO-Data'!$AQ28","v":7929.5224342735546},{"$f":"BK215*'Mexico-IO-Data'!$AQ28","v":113270.27675076263},{"$f":"BG215*'Mexico-IO-Data'!AQ28","v":0},{"$f":"BJ215*'Mexico-IO-Data'!$AR28","v":2012.8823450704092},{"$f":"BK215*'Mexico-IO-Data'!$AR28","v":28753.27514143505},{"$f":"(BO215*'Default-Data'!$F$19/geo_dollar_index)/'Mexico-IO-Data'!$AS28","v":0},{"$f":"(BP215*'Default-Data'!$F$19/geo_dollar_index)/'Mexico-IO-Data'!$AS28","v":0.27880621194143368},{"$f":"(BQ215*'Default-Data'!$F$19/geo_dollar_index)/'Mexico-IO-Data'!$AS28","v":3.9826429710241618},292.04519248871156,1929.2083350633061,{"$f":"BH215*'Mexico-IO-Data'!AQ28","v":0},{"$f":"BU215*'Mexico-IO-Data'!$AQ28","v":98.873799736206706},{"$f":"BV215*'Mexico-IO-Data'!$AQ28","v":653.14603176644687},{"$f":"BH215*'Mexico-IO-Data'!AR28","v":0},{"$f":"BU215*'Mexico-IO-Data'!$AR28","v":25.098778334848188},{"$f":"BV215*'Mexico-IO-Data'!$AR28","v":165.798902392023},{"$f":"(BZ215*'Default-Data'!$F$19/geo_dollar_index)/'Mexico-IO-Data'!$AS28","v":0},{"$f":"(CA215*'Default-Data'!$F$19/geo_dollar_index)/'Mexico-IO-Data'!$AS28","v":3.4764552081418222E-3},{"$f":"(CB215*'Default-Data'!$F$19/geo_dollar_index)/'Mexico-IO-Data'!$AS28","v":2.2964960685941383E-2},null,"TTL_C34: Motor vehicles, trailers and semi-trailers",0,0,null,33739.524463364542,174448.87882476725,{"$f":"CH215*'Philippines-IO-Data'!AN28","v":0},{"$f":"CK215*'Philippines-IO-Data'!$AN28","v":5512.1232568543828},{"$f":"CL215*'Philippines-IO-Data'!$AN28","v":28500.21561940774},{"$f":"CH215*'Philippines-IO-Data'!AO28","v":0},{"$f":"CK215*'Philippines-IO-Data'!$AO28","v":1367.7905325540273},{"$f":"CL215*'Philippines-IO-Data'!$AO28","v":7072.1069329317679},{"$f":"(CP215*'Default-Data'!$F$19/geo_dollar_index)/'Philippines-IO-Data'!$AP28","v":0},{"$f":"(CQ215*'Default-Data'!$F$19/geo_dollar_index)/'Philippines-IO-Data'!$AP28","v":0.43811684798458805},{"$f":"(CR215*'Default-Data'!$F$19/geo_dollar_index)/'Philippines-IO-Data'!$AP28","v":2.2652658607604685},299.63209388072892,1549.3455536928795,{"$f":"CI215*'Philippines-IO-Data'!AN28","v":0},{"$f":"CV215*'Philippines-IO-Data'!$AN28","v":48.951757899650062},{"$f":"CW215*'Philippines-IO-Data'!$AN28","v":253.12104409437242},{"$f":"CI215*'Philippines-IO-Data'!AO28","v":0},{"$f":"CV215*'Philippines-IO-Data'!$AO28","v":12.146998150623354},{"$f":"CW215*'Philippines-IO-Data'!$AO28","v":62.810019219354196},{"$f":"(DA215*'Default-Data'!$F$19/geo_dollar_index)/'Philippines-IO-Data'!$AP28","v":0},{"$f":"(DB215*'Default-Data'!$F$19/geo_dollar_index)/'Philippines-IO-Data'!$AP28","v":3.8908037565434121E-3},{"$f":"(DC215*'Default-Data'!$F$19/geo_dollar_index)/'Philippines-IO-Data'!$AP28","v":2.0118670942144347E-2},null,"DOM_C34: Motor vehicles, trailers and semi-trailers",0,0,null,89420.78056412196,275886.6935756919,{"$f":"DI215*'SouthAfrica-IO-Data'!AR28","v":0},{"$f":"DL215*'SouthAfrica-IO-Data'!$AR28","v":21620.165017818428},{"$f":"DM215*'SouthAfrica-IO-Data'!$AR28","v":66703.911593005847},{"$f":"DI215*'SouthAfrica-IO-Data'!AS28","v":0},{"$f":"DL215*'SouthAfrica-IO-Data'!$AS28","v":15872.240124952777},{"$f":"DM215*'SouthAfrica-IO-Data'!$AS28","v":48970.047231611818},{"$f":"(DQ215*'Default-Data'!$F$19/geo_dollar_index)/'SouthAfrica-IO-Data'!$AT28","v":0},{"$f":"(DR215*'Default-Data'!$F$19/geo_dollar_index)/'SouthAfrica-IO-Data'!$AT28","v":1.2731969684726452},{"$f":"(DS215*'Default-Data'!$F$19/geo_dollar_index)/'SouthAfrica-IO-Data'!$AT28","v":3.9281484648932574},894.63484582349815,2466.9256027680403,{"$f":"DJ215*'SouthAfrica-IO-Data'!AR28","v":0},{"$f":"DW215*'SouthAfrica-IO-Data'!$AR28","v":216.30489999497024},{"$f":"DX215*'SouthAfrica-IO-Data'!$AR28","v":596.45351205898339},{"$f":"DJ215*'SouthAfrica-IO-Data'!$AS28","v":0},{"$f":"DZ215*'SouthAfrica-IO-Data'!$AS28","v":38.394244506310812},{"$f":"EA215*'SouthAfrica-IO-Data'!$AS28","v":105.87084240427711},{"$f":"(EB215*'Default-Data'!$F$19/geo_dollar_index)/'SouthAfrica-IO-Data'!$AT28","v":0},{"$f":"(EC215*'Default-Data'!$F$19/geo_dollar_index)/'SouthAfrica-IO-Data'!$AT28","v":3.079806966590853E-3},{"$f":"(ED215*'Default-Data'!$F$19/geo_dollar_index)/'SouthAfrica-IO-Data'!$AT28","v":8.4924644875338171E-3},null,"TEXTILES",0,0,null,532003.755630331,1913852.6935159224,{"$f":"EJ215*'Zambia-IO-Data'!BO26","v":0},{"$f":"EM215*'Zambia-IO-Data'!$BO26","v":53990.428550753226},{"$f":"EN215*'Zambia-IO-Data'!$BO26","v":194227.43920954174},{"$f":"EJ215*'Zambia-IO-Data'!BN26","v":0},{"$f":"EM215*'Zambia-IO-Data'!$BN26","v":14836.008941575534},{"$f":"EN215*'Zambia-IO-Data'!$BN26","v":53371.682762312121},{"$f":"(ER215*'Default-Data'!$F$19/geo_dollar_index)/'Zambia-IO-Data'!$BP26","v":0},{"$f":"(ES215*'Default-Data'!$F$19/geo_dollar_index)/'Zambia-IO-Data'!$BP26","v":57.393446212833233},{"$f":"(ET215*'Default-Data'!$F$19/geo_dollar_index)/'Zambia-IO-Data'!$BP26","v":206.46959812238154},5897.5740125837283,3101.9269919780136,{"$f":"EK215*'Zambia-IO-Data'!BO26","v":0},{"$f":"EX215*'Zambia-IO-Data'!$BO26","v":598.51560252975628},{"$f":"EY215*'Zambia-IO-Data'!$BO26","v":314.79922060252022},{"$f":"EK215*'Zambia-IO-Data'!BN26","v":0},{"$f":"EX215*'Zambia-IO-Data'!$BN26","v":164.46587050993233},{"$f":"EY215*'Zambia-IO-Data'!$BN26","v":86.503555852861297},{"$f":"(FC215*'Default-Data'!$F$19/geo_dollar_index)/'Zambia-IO-Data'!$BP26","v":0},{"$f":"(FD215*'Default-Data'!$F$19/geo_dollar_index)/'Zambia-IO-Data'!$BP26","v":0.63624005149434615},{"$f":"(FE215*'Default-Data'!$F$19/geo_dollar_index)/'Zambia-IO-Data'!$BP26","v":0.33464102101928045},null,"TTL_C34: Motor vehicles, trailers and semi-trailers",0,0,null,77278.713144752313,341525.66914346453,{"$f":"FK215*CustomRegion1!C24","v":0},{"$f":"FN215*CustomRegion1!$C24","v":12625.245872907884},{"$f":"FO215*CustomRegion1!$C24","v":55796.031913329411},{"$f":"FK215*CustomRegion1!D24","v":0},{"$f":"FN215*CustomRegion1!$D24","v":3132.856609230646},{"$f":"FO215*CustomRegion1!$D24","v":13845.351536766342},{"$f":"(FS215*'Default-Data'!$C$58/geo_dollar_index)/CustomRegion1!$E24","v":0},{"$f":"(FT215*'Default-Data'!$C$58/geo_dollar_index)/CustomRegion1!$E24","v":1.0034849855707706},{"$f":"(FU215*'Default-Data'!$C$58/geo_dollar_index)/CustomRegion1!$E24","v":4.4348031589310928},734.16745145584252,3147.6043906006817,{"$f":"FL215*CustomRegion1!C24","v":0},{"$f":"FY215*CustomRegion1!$C24","v":119.94305041226735},{"$f":"FZ215*CustomRegion1!$C24","v":514.2331921022228},{"$f":"FL215*CustomRegion1!D24","v":0},{"$f":"FY215*CustomRegion1!$D24","v":29.762935470563569},{"$f":"FZ215*CustomRegion1!$D24","v":127.60296874853391},{"$f":"(GD215*'Default-Data'!$C$58/geo_dollar_index)/CustomRegion1!$E24","v":0},{"$f":"(GE215*'Default-Data'!$C$58/geo_dollar_index)/CustomRegion1!$E24","v":9.5333628686430014E-3},{"$f":"(GF215*'Default-Data'!$C$58/geo_dollar_index)/CustomRegion1!$E24","v":4.0872494092493904E-2},null,"C32 Radio, television and communication equipment",0,0,null,0,0,{"$f":"GL215*CustomRegion2!C28","v":0},{"$f":"GO215*CustomRegion2!$C28","v":0},{"$f":"GP215*CustomRegion2!$C28","v":0},{"$f":"GL215*CustomRegion2!D28","v":0},{"$f":"GO215*CustomRegion2!$D28","v":0},{"$f":"GP215*CustomRegion2!$D28","v":0},{"$f":"(GT215*'Default-Data'!$C$59/geo_dollar_index)/CustomRegion2!$E28","v":0},{"$f":"(GU215*'Default-Data'!$C$59/geo_dollar_index)/CustomRegion2!$E28","v":0},{"$f":"(GV215*'Default-Data'!$C$59/geo_dollar_index)/CustomRegion2!$E28","v":0},0,0,{"$f":"GM215*CustomRegion2!C28","v":0},{"$f":"GZ215*CustomRegion2!$C28","v":0},{"$f":"HA215*CustomRegion2!$C28","v":0},{"$f":"GM215*CustomRegion2!D28","v":0},{"$f":"GZ215*CustomRegion2!$D28","v":0},{"$f":"HA215*CustomRegion2!$D28","v":0},{"$f":"(HE215*'Default-Data'!$C$59/geo_dollar_index)/CustomRegion2!$E28","v":0},{"$f":"(HF215*'Default-Data'!$C$59/geo_dollar_index)/CustomRegion2!$E28","v":0},{"$f":"(HG215*'Default-Data'!$C$59/geo_dollar_index)/CustomRegion2!$E28","v":0},null,"TEXTILES",0,0,null,532003.755630331,1913852.6935159224,{"$f":"HM215*CustomRegion3!D27","v":0},{"$f":"HP215*CustomRegion3!$D27","v":53990.428550753226},{"$f":"HQ215*CustomRegion3!$D27","v":194227.43920954174},{"$f":"HM215*CustomRegion3!E27","v":0},{"$f":"HP215*CustomRegion3!E$12","v":166901.64350690646},{"$f":"HQ215*CustomRegion3!F$12","v":197648184.78734928},{"$f":"(HU215*'Default-Data'!$C$60/geo_dollar_index)/CustomRegion3!$F27","v":0},{"$f":"(HV215*'Default-Data'!$C$60/geo_dollar_index)/CustomRegion3!$F27","v":645.66289607734893},{"$f":"(HW215*'Default-Data'!$C$60/geo_dollar_index)/CustomRegion3!$F27","v":764606.60729773005},5897.5740125837283,3101.9269919780136,{"$f":"HN215*CustomRegion3!D27","v":0},{"$f":"IA215*CustomRegion3!$D27","v":598.51560252975628},{"$f":"IB215*CustomRegion3!$D27","v":314.79922060252022},{"$f":"HN215*CustomRegion3!E27","v":0},{"$f":"IA215*CustomRegion3!$E27","v":164.46587050993233},{"$f":"IB215*CustomRegion3!$E27","v":86.503555852861297},{"$f":"(IF215*'Default-Data'!$C$60/geo_dollar_index)/CustomRegion3!$F27","v":0},{"$f":"(IG215*'Default-Data'!$C$60/geo_dollar_index)/CustomRegion3!$F27","v":0.63624005149434615},{"$f":"(IH215*'Default-Data'!$C$60/geo_dollar_index)/CustomRegion3!$F27","v":0.33464102101928045}]
[null,null,null,null,null,null,null,null,null,null,null,null,null,null,null,null,null,null,null,null,null,null,null,null,null,null,null,null,null,215,"TTL_C35: Other transport equipment",0,0,null,4284.8016764652557,9637.8215462795051,{"$f":"AF216*'Colombia-IO-Data'!AN29","v":0},{"$f":"AI216*'Colombia-IO-Data'!$AN29","v":477.98701772651799},{"$f":"AJ216*'Colombia-IO-Data'!$AN29","v":1075.1381104963666},{"$f":"'Colombia-IO-Data'!$AO29*AK216","v":0},{"$f":"'Colombia-IO-Data'!$AO29*AL216","v":180.23909725731917},{"$f":"'Colombia-IO-Data'!$AO29*AM216","v":405.41252225740993},{"$f":"(AN216*'Default-Data'!$F$19/geo_dollar_index)/'Colombia-IO-Data'!$AP29","v":0},{"$f":"(AO216*'Default-Data'!$F$19/geo_dollar_index)/'Colombia-IO-Data'!$AP29","v":4.362944996868405E-2},{"$f":"(AP216*'Default-Data'!$F$19/geo_dollar_index)/'Colombia-IO-Data'!$AP29","v":9.8135896293662803E-2},41.10877304189971,104.44376563363804,{"$f":"AG216*'Colombia-IO-Data'!AN29","v":0},{"$f":"AT216*'Colombia-IO-Data'!$AN29","v":4.5858504809267462},{"$f":"AU216*'Colombia-IO-Data'!$AN29","v":11.651125962155099},{"$f":"AV216*'Colombia-IO-Data'!$AO29","v":0},{"$f":"AW216*'Colombia-IO-Data'!$AO29","v":1.7292301258947436},{"$f":"AX216*'Colombia-IO-Data'!$AO29","v":4.3934005476518303},{"$f":"(Calculations!AY216*'Default-Data'!$F$19/geo_dollar_index)/'Colombia-IO-Data'!$AP29","v":0},{"$f":"(Calculations!AZ216*'Default-Data'!$F$19/geo_dollar_index)/'Colombia-IO-Data'!$AP29","v":4.185848709303954E-4},{"$f":"(Calculations!BA216*'Default-Data'!$F$19/geo_dollar_index)/'Colombia-IO-Data'!$AP29","v":1.06348540523652E-3},null,"DOM_C35: Other transport equipment",0,0,null,2723.4229805151526,13120.748495438624,{"$f":"BG216*'Mexico-IO-Data'!AQ29","v":0},{"$f":"BJ216*'Mexico-IO-Data'!$AQ29","v":959.58631930743775},{"$f":"BK216*'Mexico-IO-Data'!$AQ29","v":4623.0390377755348},{"$f":"BG216*'Mexico-IO-Data'!AQ29","v":0},{"$f":"BJ216*'Mexico-IO-Data'!$AR29","v":244.7045981751763},{"$f":"BK216*'Mexico-IO-Data'!$AR29","v":1178.9235499975593},{"$f":"(BO216*'Default-Data'!$F$19/geo_dollar_index)/'Mexico-IO-Data'!$AS29","v":0},{"$f":"(BP216*'Default-Data'!$F$19/geo_dollar_index)/'Mexico-IO-Data'!$AS29","v":3.3894262239895154E-2},{"$f":"(BQ216*'Default-Data'!$F$19/geo_dollar_index)/'Mexico-IO-Data'!$AS29","v":0.16329380102534979},52.565526721810087,75.657666419037994,{"$f":"BH216*'Mexico-IO-Data'!AQ29","v":0},{"$f":"BU216*'Mexico-IO-Data'!$AQ29","v":18.521236205437777},{"$f":"BV216*'Mexico-IO-Data'!$AQ29","v":26.657651846905488},{"$f":"BH216*'Mexico-IO-Data'!AR29","v":0},{"$f":"BU216*'Mexico-IO-Data'!$AR29","v":4.7231099195226394},{"$f":"BV216*'Mexico-IO-Data'!$AR29","v":6.7979814345402287},{"$f":"(BZ216*'Default-Data'!$F$19/geo_dollar_index)/'Mexico-IO-Data'!$AS29","v":0},{"$f":"(CA216*'Default-Data'!$F$19/geo_dollar_index)/'Mexico-IO-Data'!$AS29","v":6.5420236233382787E-4},{"$f":"(CB216*'Default-Data'!$F$19/geo_dollar_index)/'Mexico-IO-Data'!$AS29","v":9.4159475204998015E-4},null,"TTL_C35: Other transport equipment",0,0,null,1078.7387127595935,1751.9711260732647,{"$f":"CH216*'Philippines-IO-Data'!AN29","v":0},{"$f":"CK216*'Philippines-IO-Data'!$AN29","v":225.75000579086608},{"$f":"CL216*'Philippines-IO-Data'!$AN29","v":366.63882289409599},{"$f":"CH216*'Philippines-IO-Data'!AO29","v":0},{"$f":"CK216*'Philippines-IO-Data'!$AO29","v":50.69247390634979},{"$f":"CL216*'Philippines-IO-Data'!$AO29","v":82.329251321621683},{"$f":"(CP216*'Default-Data'!$F$19/geo_dollar_index)/'Philippines-IO-Data'!$AP29","v":0},{"$f":"(CQ216*'Default-Data'!$F$19/geo_dollar_index)/'Philippines-IO-Data'!$AP29","v":1.6237301221057904E-2},{"$f":"(CR216*'Default-Data'!$F$19/geo_dollar_index)/'Philippines-IO-Data'!$AP29","v":2.6370874214641578E-2},1.3249398062903053,15.559908969701809,{"$f":"CI216*'Philippines-IO-Data'!AN29","v":0},{"$f":"CV216*'Philippines-IO-Data'!$AN29","v":0.27727304620172993},{"$f":"CW216*'Philippines-IO-Data'!$AN29","v":3.256256124367308},{"$f":"CI216*'Philippines-IO-Data'!AO29","v":0},{"$f":"CV216*'Philippines-IO-Data'!$AO29","v":6.2262043406264261E-2},{"$f":"CW216*'Philippines-IO-Data'!$AO29","v":0.73119678574803448},{"$f":"(DA216*'Default-Data'!$F$19/geo_dollar_index)/'Philippines-IO-Data'!$AP29","v":0},{"$f":"(DB216*'Default-Data'!$F$19/geo_dollar_index)/'Philippines-IO-Data'!$AP29","v":1.9943148864539042E-5},{"$f":"(DC216*'Default-Data'!$F$19/geo_dollar_index)/'Philippines-IO-Data'!$AP29","v":2.3420956893904901E-4},null,"DOM_C35: Other transport equipment",0,0,null,39673.029782862264,140831.07364522704,{"$f":"DI216*'SouthAfrica-IO-Data'!AR29","v":0},{"$f":"DL216*'SouthAfrica-IO-Data'!$AR29","v":5062.2381832219016},{"$f":"DM216*'SouthAfrica-IO-Data'!$AR29","v":17969.901524863308},{"$f":"DI216*'SouthAfrica-IO-Data'!AS29","v":0},{"$f":"DL216*'SouthAfrica-IO-Data'!$AS29","v":5167.8737105437167},{"$f":"DM216*'SouthAfrica-IO-Data'!$AS29","v":18344.885860802209},{"$f":"(DQ216*'Default-Data'!$F$19/geo_dollar_index)/'SouthAfrica-IO-Data'!$AT29","v":0},{"$f":"(DR216*'Default-Data'!$F$19/geo_dollar_index)/'SouthAfrica-IO-Data'!$AT29","v":0.41454269151143602},{"$f":"(DS216*'Default-Data'!$F$19/geo_dollar_index)/'SouthAfrica-IO-Data'!$AT29","v":1.4715410604348793},548.61958530975335,1259.2842979772208,{"$f":"DJ216*'SouthAfrica-IO-Data'!AR29","v":0},{"$f":"DW216*'SouthAfrica-IO-Data'!$AR29","v":70.003300176940286},{"$f":"DX216*'SouthAfrica-IO-Data'!$AR29","v":160.6833935205479},{"$f":"DJ216*'SouthAfrica-IO-Data'!$AS29","v":0},{"$f":"DZ216*'SouthAfrica-IO-Data'!$AS29","v":9.118744311078169},{"$f":"EA216*'SouthAfrica-IO-Data'!$AS29","v":20.930881499110964},{"$f":"(EB216*'Default-Data'!$F$19/geo_dollar_index)/'SouthAfrica-IO-Data'!$AT29","v":0},{"$f":"(EC216*'Default-Data'!$F$19/geo_dollar_index)/'SouthAfrica-IO-Data'!$AT29","v":7.3146307778508589E-4},{"$f":"(ED216*'Default-Data'!$F$19/geo_dollar_index)/'SouthAfrica-IO-Data'!$AT29","v":1.6789775521498748E-3},null,"FURNIMFG",0,0,null,3945169.0319549688,840237.03580562538,{"$f":"EJ216*'Zambia-IO-Data'!BO27","v":0},{"$f":"EM216*'Zambia-IO-Data'!$BO27","v":724871.57113189588},{"$f":"EN216*'Zambia-IO-Data'!$BO27","v":154382.21666406479},{"$f":"EJ216*'Zambia-IO-Data'!BN27","v":0},{"$f":"EM216*'Zambia-IO-Data'!$BN27","v":224685.04165460923},{"$f":"EN216*'Zambia-IO-Data'!$BN27","v":47853.131731641151},{"$f":"(ER216*'Default-Data'!$F$19/geo_dollar_index)/'Zambia-IO-Data'!$BP27","v":0},{"$f":"(ES216*'Default-Data'!$F$19/geo_dollar_index)/'Zambia-IO-Data'!$BP27","v":869.19931794423405},{"$f":"(ET216*'Default-Data'!$F$19/geo_dollar_index)/'Zambia-IO-Data'!$BP27","v":185.12095489906775},16736.461475268494,1380.1259020280231,{"$f":"EK216*'Zambia-IO-Data'!BO27","v":0},{"$f":"EX216*'Zambia-IO-Data'!$BO27","v":3075.0989441774559},{"$f":"EY216*'Zambia-IO-Data'!$BO27","v":253.57951024651993},{"$f":"EK216*'Zambia-IO-Data'!BN27","v":0},{"$f":"EX216*'Zambia-IO-Data'!$BN27","v":953.17399920328353},{"$f":"EY216*'Zambia-IO-Data'!$BN27","v":78.60085164262513},{"$f":"(FC216*'Default-Data'!$F$19/geo_dollar_index)/'Zambia-IO-Data'!$BP27","v":0},{"$f":"(FD216*'Default-Data'!$F$19/geo_dollar_index)/'Zambia-IO-Data'!$BP27","v":3.6873758212318273},{"$f":"(FE216*'Default-Data'!$F$19/geo_dollar_index)/'Zambia-IO-Data'!$BP27","v":0.30406922567915495},null,"TTL_C35: Other transport equipment",0,0,null,5450.1847303521499,5067.157705786969,{"$f":"FK216*CustomRegion1!C25","v":0},{"$f":"FN216*CustomRegion1!$C25","v":1140.5720587247422},{"$f":"FO216*CustomRegion1!$C25","v":1060.4151569737637},{"$f":"FK216*CustomRegion1!D25","v":0},{"$f":"FN216*CustomRegion1!$D25","v":256.11702255626255},{"$f":"FO216*CustomRegion1!$D25","v":238.11768015894896},{"$f":"(FS216*'Default-Data'!$C$58/geo_dollar_index)/CustomRegion1!$E25","v":0},{"$f":"(FT216*'Default-Data'!$C$58/geo_dollar_index)/CustomRegion1!$E25","v":8.2036817748711216E-2},{"$f":"(FU216*'Default-Data'!$C$58/geo_dollar_index)/CustomRegion1!$E25","v":7.6271450194820123E-2},43.765988247095841,46.700465832046355,{"$f":"FL216*CustomRegion1!C25","v":0},{"$f":"FY216*CustomRegion1!$C25","v":9.1590039213015135},{"$f":"FZ216*CustomRegion1!$C25","v":9.7731084527881666},{"$f":"FL216*CustomRegion1!D25","v":0},{"$f":"FY216*CustomRegion1!$D25","v":2.0566669119771857},{"$f":"FZ216*CustomRegion1!$D25","v":2.1945649280994863},{"$f":"(GD216*'Default-Data'!$C$58/geo_dollar_index)/CustomRegion1!$E25","v":0},{"$f":"(GE216*'Default-Data'!$C$58/geo_dollar_index)/CustomRegion1!$E25","v":6.5877077182799489E-4},{"$f":"(GF216*'Default-Data'!$C$58/geo_dollar_index)/CustomRegion1!$E25","v":7.0294087150986546E-4},null,"C33 Medical, precision and optical instruments",0,0,null,0,0,{"$f":"GL216*CustomRegion2!C29","v":0},{"$f":"GO216*CustomRegion2!$C29","v":0},{"$f":"GP216*CustomRegion2!$C29","v":0},{"$f":"GL216*CustomRegion2!D29","v":0},{"$f":"GO216*CustomRegion2!$D29","v":0},{"$f":"GP216*CustomRegion2!$D29","v":0},{"$f":"(GT216*'Default-Data'!$C$59/geo_dollar_index)/CustomRegion2!$E29","v":0},{"$f":"(GU216*'Default-Data'!$C$59/geo_dollar_index)/CustomRegion2!$E29","v":0},{"$f":"(GV216*'Default-Data'!$C$59/geo_dollar_index)/CustomRegion2!$E29","v":0},0,0,{"$f":"GM216*CustomRegion2!C29","v":0},{"$f":"GZ216*CustomRegion2!$C29","v":0},{"$f":"HA216*CustomRegion2!$C29","v":0},{"$f":"GM216*CustomRegion2!D29","v":0},{"$f":"GZ216*CustomRegion2!$D29","v":0},{"$f":"HA216*CustomRegion2!$D29","v":0},{"$f":"(HE216*'Default-Data'!$C$59/geo_dollar_index)/CustomRegion2!$E29","v":0},{"$f":"(HF216*'Default-Data'!$C$59/geo_dollar_index)/CustomRegion2!$E29","v":0},{"$f":"(HG216*'Default-Data'!$C$59/geo_dollar_index)/CustomRegion2!$E29","v":0},null,"FURNIMFG",0,0,null,3945169.0319549688,840237.03580562538,{"$f":"HM216*CustomRegion3!D28","v":0},{"$f":"HP216*CustomRegion3!$D28","v":724871.57113189588},{"$f":"HQ216*CustomRegion3!$D28","v":154382.21666406479},{"$f":"HM216*CustomRegion3!E28","v":0},{"$f":"HP216*CustomRegion3!E$12","v":1237688.9982020555},{"$f":"HQ216*CustomRegion3!F$12","v":86773305.741204485},{"$f":"(HU216*'Default-Data'!$C$60/geo_dollar_index)/CustomRegion3!$F28","v":0},{"$f":"(HV216*'Default-Data'!$C$60/geo_dollar_index)/CustomRegion3!$F28","v":4788.028722971465},{"$f":"(HW216*'Default-Data'!$C$60/geo_dollar_index)/CustomRegion3!$F28","v":335684.55474647839},16736.461475268494,1380.1259020280231,{"$f":"HN216*CustomRegion3!D28","v":0},{"$f":"IA216*CustomRegion3!$D28","v":3075.0989441774559},{"$f":"IB216*CustomRegion3!$D28","v":253.57951024651993},{"$f":"HN216*CustomRegion3!E28","v":0},{"$f":"IA216*CustomRegion3!$E28","v":953.17399920328353},{"$f":"IB216*CustomRegion3!$E28","v":78.60085164262513},{"$f":"(IF216*'Default-Data'!$C$60/geo_dollar_index)/CustomRegion3!$F28","v":0},{"$f":"(IG216*'Default-Data'!$C$60/geo_dollar_index)/CustomRegion3!$F28","v":3.6873758212318273},{"$f":"(IH216*'Default-Data'!$C$60/geo_dollar_index)/CustomRegion3!$F28","v":0.30406922567915495}]
[null,null,null,null,null,null,null,null,null,null,null,null,null,null,null,null,null,null,null,null,null,null,null,null,null,null,null,null,null,216,"TTL_C36T37: Manufacturing nec; recycling",0,0,null,41681.967599088697,180565.57573594336,{"$f":"AF217*'Colombia-IO-Data'!AN30","v":0},{"$f":"AI217*'Colombia-IO-Data'!$AN30","v":15539.510053393895},{"$f":"AJ217*'Colombia-IO-Data'!$AN30","v":67316.893636923574},{"$f":"'Colombia-IO-Data'!$AO30*AK217","v":0},{"$f":"'Colombia-IO-Data'!$AO30*AL217","v":3577.0306288349689},{"$f":"'Colombia-IO-Data'!$AO30*AM217","v":15495.635933818317},{"$f":"(AN217*'Default-Data'!$F$19/geo_dollar_index)/'Colombia-IO-Data'!$AP30","v":0},{"$f":"(AO217*'Default-Data'!$F$19/geo_dollar_index)/'Colombia-IO-Data'!$AP30","v":0.86587139656164835},{"$f":"(AP217*'Default-Data'!$F$19/geo_dollar_index)/'Colombia-IO-Data'!$AP30","v":3.7509401844278005},328.89971700318733,1515.4873028641882,{"$f":"AG217*'Colombia-IO-Data'!AN30","v":0},{"$f":"AT217*'Colombia-IO-Data'!$AN30","v":122.61754310852585},{"$f":"AU217*'Colombia-IO-Data'!$AN30","v":564.99084700511423},{"$f":"AV217*'Colombia-IO-Data'!$AO30","v":0},{"$f":"AW217*'Colombia-IO-Data'!$AO30","v":28.225259729852009},{"$f":"AX217*'Colombia-IO-Data'!$AO30","v":130.05490892599363},{"$f":"(Calculations!AY217*'Default-Data'!$F$19/geo_dollar_index)/'Colombia-IO-Data'!$AP30","v":0},{"$f":"(Calculations!AZ217*'Default-Data'!$F$19/geo_dollar_index)/'Colombia-IO-Data'!$AP30","v":6.8323275913804759E-3},{"$f":"(Calculations!BA217*'Default-Data'!$F$19/geo_dollar_index)/'Colombia-IO-Data'!$AP30","v":3.1481649811347906E-2},null,"DOM_C36T37: Manufacturing nec; recycling",0,0,null,90596.076882190901,172940.68092555593,{"$f":"BG217*'Mexico-IO-Data'!AQ30","v":0},{"$f":"BJ217*'Mexico-IO-Data'!$AQ30","v":34062.121834415957},{"$f":"BK217*'Mexico-IO-Data'!$AQ30","v":65021.872320953917},{"$f":"BG217*'Mexico-IO-Data'!AQ30","v":0},{"$f":"BJ217*'Mexico-IO-Data'!$AR30","v":14012.218011121942},{"$f":"BK217*'Mexico-IO-Data'!$AR30","v":26748.205965606547},{"$f":"(BO217*'Default-Data'!$F$19/geo_dollar_index)/'Mexico-IO-Data'!$AS30","v":0},{"$f":"(BP217*'Default-Data'!$F$19/geo_dollar_index)/'Mexico-IO-Data'!$AS30","v":2.254800945667943},{"$f":"(BQ217*'Default-Data'!$F$19/geo_dollar_index)/'Mexico-IO-Data'!$AS30","v":4.304235065305086},783.56478807479687,997.22118385972374,{"$f":"BH217*'Mexico-IO-Data'!AQ30","v":0},{"$f":"BU217*'Mexico-IO-Data'!$AQ30","v":294.60303575031145},{"$f":"BV217*'Mexico-IO-Data'!$AQ30","v":374.93311663661723},{"$f":"BH217*'Mexico-IO-Data'!AR30","v":0},{"$f":"BU217*'Mexico-IO-Data'!$AR30","v":121.19156826867996},{"$f":"BV217*'Mexico-IO-Data'!$AR30","v":154.23714927217111},{"$f":"(BZ217*'Default-Data'!$F$19/geo_dollar_index)/'Mexico-IO-Data'!$AS30","v":0},{"$f":"(CA217*'Default-Data'!$F$19/geo_dollar_index)/'Mexico-IO-Data'!$AS30","v":1.9501756433014619E-2},{"$f":"(CB217*'Default-Data'!$F$19/geo_dollar_index)/'Mexico-IO-Data'!$AS30","v":2.4819344786098804E-2},null,"TTL_C36T37: Manufacturing nec; recycling",0,0,null,65170.910980783839,78482.816006497509,{"$f":"CH217*'Philippines-IO-Data'!AN30","v":0},{"$f":"CK217*'Philippines-IO-Data'!$AN30","v":26418.675726498139},{"$f":"CL217*'Philippines-IO-Data'!$AN30","v":31814.992839204555},{"$f":"CH217*'Philippines-IO-Data'!AO30","v":0},{"$f":"CK217*'Philippines-IO-Data'!$AO30","v":8918.4064554420474},{"$f":"CL217*'Philippines-IO-Data'!$AO30","v":10740.093124062685},{"$f":"(CP217*'Default-Data'!$F$19/geo_dollar_index)/'Philippines-IO-Data'!$AP30","v":0},{"$f":"(CQ217*'Default-Data'!$F$19/geo_dollar_index)/'Philippines-IO-Data'!$AP30","v":2.856653875215601},{"$f":"(CR217*'Default-Data'!$F$19/geo_dollar_index)/'Philippines-IO-Data'!$AP30","v":3.4401581489155602},166.62288938260389,697.03515918326252,{"$f":"CI217*'Philippines-IO-Data'!AN30","v":0},{"$f":"CV217*'Philippines-IO-Data'!$AN30","v":67.544799005635099},{"$f":"CW217*'Philippines-IO-Data'!$AN30","v":282.56081683222686},{"$f":"CI217*'Philippines-IO-Data'!AO30","v":0},{"$f":"CV217*'Philippines-IO-Data'!$AO30","v":22.801747435023316},{"$f":"CW217*'Philippines-IO-Data'!$AO30","v":95.386772561197603},{"$f":"(DA217*'Default-Data'!$F$19/geo_dollar_index)/'Philippines-IO-Data'!$AP30","v":0},{"$f":"(DB217*'Default-Data'!$F$19/geo_dollar_index)/'Philippines-IO-Data'!$AP30","v":7.3036254287558349E-3},{"$f":"(DC217*'Default-Data'!$F$19/geo_dollar_index)/'Philippines-IO-Data'!$AP30","v":3.0553327530276619E-2},null,"DOM_C36T37: Manufacturing nec; recycling",0,0,null,623464.24949690036,844232.41238427453,{"$f":"DI217*'SouthAfrica-IO-Data'!AR30","v":0},{"$f":"DL217*'SouthAfrica-IO-Data'!$AR30","v":166824.74709607774},{"$f":"DM217*'SouthAfrica-IO-Data'!$AR30","v":225897.24879969785},{"$f":"DI217*'SouthAfrica-IO-Data'!AS30","v":0},{"$f":"DL217*'SouthAfrica-IO-Data'!$AS30","v":64742.410533738039},{"$f":"DM217*'SouthAfrica-IO-Data'!$AS30","v":87667.643289212312},{"$f":"(DQ217*'Default-Data'!$F$19/geo_dollar_index)/'SouthAfrica-IO-Data'!$AT30","v":0},{"$f":"(DR217*'Default-Data'!$F$19/geo_dollar_index)/'SouthAfrica-IO-Data'!$AT30","v":5.1933337811326687},{"$f":"(DS217*'Default-Data'!$F$19/geo_dollar_index)/'SouthAfrica-IO-Data'!$AT30","v":7.0322888760667839},2776.6512086555285,7548.9634016219698,{"$f":"DJ217*'SouthAfrica-IO-Data'!AR30","v":0},{"$f":"DW217*'SouthAfrica-IO-Data'!$AR30","v":742.96823920820509},{"$f":"DX217*'SouthAfrica-IO-Data'!$AR30","v":2019.9296292118715},{"$f":"DJ217*'SouthAfrica-IO-Data'!$AS30","v":0},{"$f":"DZ217*'SouthAfrica-IO-Data'!$AS30","v":77.152065728165297},{"$f":"EA217*'SouthAfrica-IO-Data'!$AS30","v":209.75559289762677},{"$f":"(EB217*'Default-Data'!$F$19/geo_dollar_index)/'SouthAfrica-IO-Data'!$AT30","v":0},{"$f":"(EC217*'Default-Data'!$F$19/geo_dollar_index)/'SouthAfrica-IO-Data'!$AT30","v":6.1887783591476194E-3},{"$f":"(ED217*'Default-Data'!$F$19/geo_dollar_index)/'SouthAfrica-IO-Data'!$AT30","v":1.6825613958397385E-2},null,"INDCHEMMFG",{"$f":"AF206+AF207","v":490010.37116339477},0,null,577898.89075409691,443570.50158722419,{"$f":"EJ217*'Zambia-IO-Data'!BO28","v":91321.94596335775},{"$f":"EM217*'Zambia-IO-Data'!$BO28","v":107701.49853855268},{"$f":"EN217*'Zambia-IO-Data'!$BO28","v":82667.069435109181},{"$f":"EJ217*'Zambia-IO-Data'!BN28","v":17638.701435593648},{"$f":"EM217*'Zambia-IO-Data'!$BN28","v":20802.388263274664},{"$f":"EN217*'Zambia-IO-Data'!$BN28","v":15967.024584719733},{"$f":"(ER217*'Default-Data'!$F$19/geo_dollar_index)/'Zambia-IO-Data'!$BP28","v":68.235727417973706},{"$f":"(ES217*'Default-Data'!$F$19/geo_dollar_index)/'Zambia-IO-Data'!$BP28","v":80.474523612678411},{"$f":"(ET217*'Default-Data'!$F$19/geo_dollar_index)/'Zambia-IO-Data'!$BP28","v":61.768806576681619},9851.7882971800245,678.1901928778334,{"$f":"EK217*'Zambia-IO-Data'!BO28","v":0},{"$f":"EX217*'Zambia-IO-Data'!$BO28","v":1836.051911271717},{"$f":"EY217*'Zambia-IO-Data'!$BO28","v":126.39252512109951},{"$f":"EK217*'Zambia-IO-Data'!BN28","v":0},{"$f":"EX217*'Zambia-IO-Data'!$BN28","v":354.63076417762016},{"$f":"EY217*'Zambia-IO-Data'!$BN28","v":24.41253294357497},{"$f":"(FC217*'Default-Data'!$F$19/geo_dollar_index)/'Zambia-IO-Data'!$BP28","v":0},{"$f":"(FD217*'Default-Data'!$F$19/geo_dollar_index)/'Zambia-IO-Data'!$BP28","v":1.3718973727635624},{"$f":"(FE217*'Default-Data'!$F$19/geo_dollar_index)/'Zambia-IO-Data'!$BP28","v":9.4440452411003725E-2},null,"TTL_C36T37: Manufacturing nec; recycling",0,0,null,107301.03867335121,128189.0154045832,{"$f":"FK217*CustomRegion1!C26","v":0},{"$f":"FN217*CustomRegion1!$C26","v":43497.187674168781},{"$f":"FO217*CustomRegion1!$C26","v":51964.656910677826},{"$f":"FK217*CustomRegion1!D26","v":0},{"$f":"FN217*CustomRegion1!$D26","v":14683.763991916851},{"$f":"FO217*CustomRegion1!$D26","v":17542.209020802067},{"$f":"(FS217*'Default-Data'!$C$58/geo_dollar_index)/CustomRegion1!$E26","v":0},{"$f":"(FT217*'Default-Data'!$C$58/geo_dollar_index)/CustomRegion1!$E26","v":4.7033549681585418},{"$f":"(FU217*'Default-Data'!$C$58/geo_dollar_index)/CustomRegion1!$E26","v":5.6189432080142225},410.19175242797962,1181.4289354184716,{"$f":"FL217*CustomRegion1!C26","v":0},{"$f":"FY217*CustomRegion1!$C26","v":166.28159296828139},{"$f":"FZ217*CustomRegion1!$C26","v":478.9220753401093},{"$f":"FL217*CustomRegion1!D26","v":0},{"$f":"FY217*CustomRegion1!$D26","v":56.133276607126845},{"$f":"FZ217*CustomRegion1!$D26","v":161.67433116576939},{"$f":"(GD217*'Default-Data'!$C$58/geo_dollar_index)/CustomRegion1!$E26","v":0},{"$f":"(GE217*'Default-Data'!$C$58/geo_dollar_index)/CustomRegion1!$E26","v":1.7980044187204527E-2},{"$f":"(GF217*'Default-Data'!$C$58/geo_dollar_index)/CustomRegion1!$E26","v":5.1785888763318716E-2},null,"C34 Motor vehicles, trailers and semi-trailers",0,0,null,477606.59570104757,325442.63802909898,{"$f":"GL217*CustomRegion2!C30","v":0},{"$f":"GO217*CustomRegion2!$C30","v":145715.65868299032},{"$f":"GP217*CustomRegion2!$C30","v":99291.108604420253},{"$f":"GL217*CustomRegion2!D30","v":0},{"$f":"GO217*CustomRegion2!$D30","v":50678.434711266469},{"$f":"GP217*CustomRegion2!$D30","v":34532.444970553915},{"$f":"(GT217*'Default-Data'!$C$59/geo_dollar_index)/CustomRegion2!$E30","v":0},{"$f":"(GU217*'Default-Data'!$C$59/geo_dollar_index)/CustomRegion2!$E30","v":7.019517282553954},{"$f":"(GV217*'Default-Data'!$C$59/geo_dollar_index)/CustomRegion2!$E30","v":4.7831211769008659},1967.3308606185958,3367.5830305847239,{"$f":"GM217*CustomRegion2!C30","v":0},{"$f":"GZ217*CustomRegion2!$C30","v":600.22393908029551},{"$f":"HA217*CustomRegion2!$C30","v":1027.43467926994},{"$f":"GM217*CustomRegion2!D30","v":0},{"$f":"GZ217*CustomRegion2!$D30","v":208.75182518988086},{"$f":"HA217*CustomRegion2!$D30","v":357.33140682395833},{"$f":"(HE217*'Default-Data'!$C$59/geo_dollar_index)/CustomRegion2!$E30","v":0},{"$f":"(HF217*'Default-Data'!$C$59/geo_dollar_index)/CustomRegion2!$E30","v":2.8914410104290127E-2},{"$f":"(HG217*'Default-Data'!$C$59/geo_dollar_index)/CustomRegion2!$E30","v":4.9494306603800206E-2},null,"INDCHEMMFG",490010.37116339477,0,null,577898.89075409691,443570.50158722419,{"$f":"HM217*CustomRegion3!D29","v":91321.94596335775},{"$f":"HP217*CustomRegion3!$D29","v":107701.49853855268},{"$f":"HQ217*CustomRegion3!$D29","v":82667.069435109181},{"$f":"HM217*CustomRegion3!E29","v":17638.701435593648},{"$f":"HP217*CustomRegion3!E$12","v":181299.98825553019},{"$f":"HQ217*CustomRegion3!F$12","v":45808595.803091526},{"$f":"(HU217*'Default-Data'!$C$60/geo_dollar_index)/CustomRegion3!$F29","v":68.235727417973706},{"$f":"(HV217*'Default-Data'!$C$60/geo_dollar_index)/CustomRegion3!$F29","v":701.36322816384416},{"$f":"(HW217*'Default-Data'!$C$60/geo_dollar_index)/CustomRegion3!$F29","v":177211.62002959466},9851.7882971800245,678.1901928778334,{"$f":"HN217*CustomRegion3!D29","v":0},{"$f":"IA217*CustomRegion3!$D29","v":1836.051911271717},{"$f":"IB217*CustomRegion3!$D29","v":126.39252512109951},{"$f":"HN217*CustomRegion3!E29","v":0},{"$f":"IA217*CustomRegion3!$E29","v":354.63076417762016},{"$f":"IB217*CustomRegion3!$E29","v":24.41253294357497},{"$f":"(IF217*'Default-Data'!$C$60/geo_dollar_index)/CustomRegion3!$F29","v":0},{"$f":"(IG217*'Default-Data'!$C$60/geo_dollar_index)/CustomRegion3!$F29","v":1.3718973727635624},{"$f":"(IH217*'Default-Data'!$C$60/geo_dollar_index)/CustomRegion3!$F29","v":9.4440452411003725E-2}]
[null,null,null,null,null,null,null,null,null,null,null,null,null,null,null,null,null,null,null,null,null,null,null,null,null,null,null,null,null,217,"TTL_C40T41: Electricity, gas and water supply",{"$f":"0.5*('Geothermal-Inputs'!B25*'Geothermal-Inputs'!C25+'Geothermal-Inputs'!B29*'Geothermal-Inputs'!C29)","v":27681668.869357347},{"$f":"'Geothermal-Inputs'!B40*'Geothermal-Inputs'!C40","v":397029.33187676605},null,8906711.1798049882,1429305.5397829264,{"$f":"AF218*'Colombia-IO-Data'!AN31","v":14640507.78910985},{"$f":"AI218*'Colombia-IO-Data'!$AN31","v":4710654.3690952705},{"$f":"AJ218*'Colombia-IO-Data'!$AN31","v":755942.82219645684},{"$f":"'Colombia-IO-Data'!$AO31*AK218","v":2580263.9155288432},{"$f":"'Colombia-IO-Data'!$AO31*AL218","v":830212.42583853216},{"$f":"'Colombia-IO-Data'!$AO31*AM218","v":133228.43813979125},{"$f":"(AN218*'Default-Data'!$F$19/geo_dollar_index)/'Colombia-IO-Data'!$AP31","v":253.34232757263251},{"$f":"(AO218*'Default-Data'!$F$19/geo_dollar_index)/'Colombia-IO-Data'!$AP31","v":81.514122286420104},{"$f":"(AP218*'Default-Data'!$F$19/geo_dollar_index)/'Colombia-IO-Data'!$AP31","v":13.08098850434197},122403.07347624539,528825.09387072187,{"$f":"AG218*'Colombia-IO-Data'!AN31","v":209984.12535312652},{"$f":"AT218*'Colombia-IO-Data'!$AN31","v":64737.54017857233},{"$f":"AU218*'Colombia-IO-Data'!$AN31","v":279689.34757620323},{"$f":"AV218*'Colombia-IO-Data'!$AO31","v":37007.900906659757},{"$f":"AW218*'Colombia-IO-Data'!$AO31","v":11409.436155426201},{"$f":"AX218*'Colombia-IO-Data'!$AO31","v":49292.848411001716},{"$f":"(Calculations!AY218*'Default-Data'!$F$19/geo_dollar_index)/'Colombia-IO-Data'!$AP31","v":3.63360805762728},{"$f":"(Calculations!AZ218*'Default-Data'!$F$19/geo_dollar_index)/'Colombia-IO-Data'!$AP31","v":1.120231575735769},{"$f":"(Calculations!BA218*'Default-Data'!$F$19/geo_dollar_index)/'Colombia-IO-Data'!$AP31","v":4.8398014148752759},null,"DOM_C40T41: Electricity, gas and water supply",27681668.869357347,397029.33187676605,null,966957.95184488595,648496.41789747402,{"$f":"BG218*'Mexico-IO-Data'!AQ31","v":12382778.442297276},{"$f":"BJ218*'Mexico-IO-Data'!$AQ31","v":432547.11763304024},{"$f":"BK218*'Mexico-IO-Data'!$AQ31","v":290090.43859841075},{"$f":"BG218*'Mexico-IO-Data'!AQ31","v":12382778.442297276},{"$f":"BJ218*'Mexico-IO-Data'!$AR31","v":104475.16621955068},{"$f":"BK218*'Mexico-IO-Data'!$AR31","v":70066.925788609849},{"$f":"(BO218*'Default-Data'!$F$19/geo_dollar_index)/'Mexico-IO-Data'!$AS31","v":683.40498867110284},{"$f":"(BP218*'Default-Data'!$F$19/geo_dollar_index)/'Mexico-IO-Data'!$AS31","v":5.7659797532029149},{"$f":"(BQ218*'Default-Data'!$F$19/geo_dollar_index)/'Mexico-IO-Data'!$AS31","v":3.8669905020040374},9368.3232148129027,3739.3999036172172,{"$f":"BH218*'Mexico-IO-Data'!AQ31","v":177602.2347108383},{"$f":"BU218*'Mexico-IO-Data'!$AQ31","v":4190.710874129154},{"$f":"BV218*'Mexico-IO-Data'!$AQ31","v":1672.7373169649065},{"$f":"BH218*'Mexico-IO-Data'!AR31","v":42897.113946601305},{"$f":"BU218*'Mexico-IO-Data'!$AR31","v":1012.2023643309986},{"$f":"BV218*'Mexico-IO-Data'!$AR31","v":404.02421402750963},{"$f":"(BZ218*'Default-Data'!$F$19/geo_dollar_index)/'Mexico-IO-Data'!$AS31","v":2.3674898010418808},{"$f":"(CA218*'Default-Data'!$F$19/geo_dollar_index)/'Mexico-IO-Data'!$AS31","v":5.5863403237969581E-2},{"$f":"(CB218*'Default-Data'!$F$19/geo_dollar_index)/'Mexico-IO-Data'!$AS31","v":2.2298078310694268E-2},null,"TTL_C40T41: Electricity, gas and water supply",27681668.869357347,397029.33187676605,null,3789360.0334070064,995489.68391887471,{"$f":"CH218*'Philippines-IO-Data'!AN31","v":16588407.020938244},{"$f":"CK218*'Philippines-IO-Data'!$AN31","v":2270796.8540370339},{"$f":"CL218*'Philippines-IO-Data'!$AN31","v":596553.19698847446},{"$f":"CH218*'Philippines-IO-Data'!AO31","v":3435482.6635858426},{"$f":"CK218*'Philippines-IO-Data'!$AO31","v":470285.25492065353},{"$f":"CL218*'Philippines-IO-Data'!$AO31","v":123547.01470573735},{"$f":"(CP218*'Default-Data'!$F$19/geo_dollar_index)/'Philippines-IO-Data'!$AP31","v":895.80413361890248},{"$f":"(CQ218*'Default-Data'!$F$19/geo_dollar_index)/'Philippines-IO-Data'!$AP31","v":122.62715798373992},{"$f":"(CR218*'Default-Data'!$F$19/geo_dollar_index)/'Philippines-IO-Data'!$AP31","v":32.214957054726362},34418.377573644859,8841.3151515643112,{"$f":"CI218*'Philippines-IO-Data'!AN31","v":237922.22165165533},{"$f":"CV218*'Philippines-IO-Data'!$AN31","v":20625.42034176167},{"$f":"CW218*'Philippines-IO-Data'!$AN31","v":5298.2114274507612},{"$f":"CI218*'Philippines-IO-Data'!AO31","v":49274.030154575928},{"$f":"CV218*'Philippines-IO-Data'!$AO31","v":4271.5538582971931},{"$f":"CW218*'Philippines-IO-Data'!$AO31","v":1097.2671145604666},{"$f":"(DA218*'Default-Data'!$F$19/geo_dollar_index)/'Philippines-IO-Data'!$AP31","v":12.848232465379352},{"$f":"(DB218*'Default-Data'!$F$19/geo_dollar_index)/'Philippines-IO-Data'!$AP31","v":1.1138101914461269},{"$f":"(DC218*'Default-Data'!$F$19/geo_dollar_index)/'Philippines-IO-Data'!$AP31","v":0.28611304819724964},null,"DOM_C40T41: Electricity, gas and water supply",27681668.869357347,397029.33187676605,null,5213876.0344674699,1754421.0955711566,{"$f":"DI218*'SouthAfrica-IO-Data'!AR31","v":15051259.017594906},{"$f":"DL218*'SouthAfrica-IO-Data'!$AR31","v":2834922.9611394578},{"$f":"DM218*'SouthAfrica-IO-Data'!$AR31","v":953925.37422499515},{"$f":"DI218*'SouthAfrica-IO-Data'!AS31","v":4918240.7476196177},{"$f":"DL218*'SouthAfrica-IO-Data'!$AS31","v":926356.63285970886},{"$f":"DM218*'SouthAfrica-IO-Data'!$AS31","v":311710.4449679025},{"$f":"(DQ218*'Default-Data'!$F$19/geo_dollar_index)/'SouthAfrica-IO-Data'!$AT31","v":183.63554112032733},{"$f":"(DR218*'Default-Data'!$F$19/geo_dollar_index)/'SouthAfrica-IO-Data'!$AT31","v":34.587977749549907},{"$f":"(DS218*'Default-Data'!$F$19/geo_dollar_index)/'SouthAfrica-IO-Data'!$AT31","v":11.638534828178747},67034.830773173191,15687.695055555028,{"$f":"DJ218*'SouthAfrica-IO-Data'!AR31","v":215875.39898199023},{"$f":"DW218*'SouthAfrica-IO-Data'!$AR31","v":36448.618973423021},{"$f":"DX218*'SouthAfrica-IO-Data'!$AR31","v":8529.8167095545978},{"$f":"DJ218*'SouthAfrica-IO-Data'!$AS31","v":70540.755589994747},{"$f":"DZ218*'SouthAfrica-IO-Data'!$AS31","v":6475.8770100016864},{"$f":"EA218*'SouthAfrica-IO-Data'!$AS31","v":1515.5044411754086},{"$f":"(EB218*'Default-Data'!$F$19/geo_dollar_index)/'SouthAfrica-IO-Data'!$AT31","v":2.6338258919258788},{"$f":"(EC218*'Default-Data'!$F$19/geo_dollar_index)/'SouthAfrica-IO-Data'!$AT31","v":0.24179401537753295},{"$f":"(ED218*'Default-Data'!$F$19/geo_dollar_index)/'SouthAfrica-IO-Data'!$AT31","v":5.6585371153333695E-2},null,"OTHERMFG",{"$f":"AF209","v":60123.29985101115},0,null,11491871.46037741,2377279.767094756,{"$f":"EJ218*'Zambia-IO-Data'!BO29","v":6452.5323592931018},{"$f":"EM218*'Zambia-IO-Data'!$BO29","v":1233326.7244258723},{"$f":"EN218*'Zambia-IO-Data'!$BO29","v":255133.61146649875},{"$f":"EJ218*'Zambia-IO-Data'!BN29","v":217.2693198501949},{"$f":"EM218*'Zambia-IO-Data'!$BN29","v":41528.510613844403},{"$f":"EN218*'Zambia-IO-Data'!$BN29","v":8590.8451360828094},{"$f":"(ER218*'Default-Data'!$F$19/geo_dollar_index)/'Zambia-IO-Data'!$BP29","v":0.84051142538586054},{"$f":"(ES218*'Default-Data'!$F$19/geo_dollar_index)/'Zambia-IO-Data'!$BP29","v":160.65401076535332},{"$f":"(ET218*'Default-Data'!$F$19/geo_dollar_index)/'Zambia-IO-Data'!$BP29","v":33.233884542818814},161774.13116631098,3933.1831673723063,{"$f":"EK218*'Zambia-IO-Data'!BO29","v":0},{"$f":"EX218*'Zambia-IO-Data'!$BO29","v":17361.868341123543},{"$f":"EY218*'Zambia-IO-Data'!$BO29","v":422.11574756188173},{"$f":"EK218*'Zambia-IO-Data'!BN29","v":0},{"$f":"EX218*'Zambia-IO-Data'!$BN29","v":584.60788970267208},{"$f":"EY218*'Zambia-IO-Data'!$BN29","v":14.21345857161638},{"$f":"(FC218*'Default-Data'!$F$19/geo_dollar_index)/'Zambia-IO-Data'!$BP29","v":0},{"$f":"(FD218*'Default-Data'!$F$19/geo_dollar_index)/'Zambia-IO-Data'!$BP29","v":2.2615692404459473},{"$f":"(FE218*'Default-Data'!$F$19/geo_dollar_index)/'Zambia-IO-Data'!$BP29","v":5.4985095603600223E-2},null,"TTL_C40T41: Electricity, gas and water supply",27681668.869357347,397029.33187676605,null,4232981.2110755816,1304287.132843744,{"$f":"FK218*CustomRegion1!C27","v":16588407.020938244},{"$f":"FN218*CustomRegion1!$C27","v":2536639.5202796175},{"$f":"FO218*CustomRegion1!$C27","v":781601.93064569647},{"$f":"FK218*CustomRegion1!D27","v":3435482.6635858426},{"$f":"FN218*CustomRegion1!$D27","v":525341.64882062539},{"$f":"FO218*CustomRegion1!$D27","v":161870.87037165306},{"$f":"(FS218*'Default-Data'!$C$58/geo_dollar_index)/CustomRegion1!$E27","v":895.80413361890248},{"$f":"(FT218*'Default-Data'!$C$58/geo_dollar_index)/CustomRegion1!$E27","v":136.98314521095153},{"$f":"(FU218*'Default-Data'!$C$58/geo_dollar_index)/CustomRegion1!$E27","v":42.207925054718615},38995.030938571785,12020.706719465961,{"$f":"FL218*CustomRegion1!C27","v":237922.22165165533},{"$f":"FY218*CustomRegion1!$C27","v":23368.007472958612},{"$f":"FZ218*CustomRegion1!$C27","v":7203.4809997515158},{"$f":"FL218*CustomRegion1!D27","v":49274.030154575928},{"$f":"FY218*CustomRegion1!$D27","v":4839.547549958359},{"$f":"FZ218*CustomRegion1!$D27","v":1491.8511500760503},{"$f":"(GD218*'Default-Data'!$C$58/geo_dollar_index)/CustomRegion1!$E27","v":12.848232465379352},{"$f":"(GE218*'Default-Data'!$C$58/geo_dollar_index)/CustomRegion1!$E27","v":1.2619148820191983},{"$f":"(GF218*'Default-Data'!$C$58/geo_dollar_index)/CustomRegion1!$E27","v":0.38900106850993182},null,"C35 Other transport equipment",27681668.869357347,397029.33187676605,null,0,0,{"$f":"GL218*CustomRegion2!C31","v":0},{"$f":"GO218*CustomRegion2!$C31","v":0},{"$f":"GP218*CustomRegion2!$C31","v":0},{"$f":"GL218*CustomRegion2!D31","v":0},{"$f":"GO218*CustomRegion2!$D31","v":0},{"$f":"GP218*CustomRegion2!$D31","v":0},{"$f":"(GT218*'Default-Data'!$C$59/geo_dollar_index)/CustomRegion2!$E31","v":0},{"$f":"(GU218*'Default-Data'!$C$59/geo_dollar_index)/CustomRegion2!$E31","v":0},{"$f":"(GV218*'Default-Data'!$C$59/geo_dollar_index)/CustomRegion2!$E31","v":0},0,0,{"$f":"GM218*CustomRegion2!C31","v":0},{"$f":"GZ218*CustomRegion2!$C31","v":0},{"$f":"HA218*CustomRegion2!$C31","v":0},{"$f":"GM218*CustomRegion2!D31","v":0},{"$f":"GZ218*CustomRegion2!$D31","v":0},{"$f":"HA218*CustomRegion2!$D31","v":0},{"$f":"(HE218*'Default-Data'!$C$59/geo_dollar_index)/CustomRegion2!$E31","v":0},{"$f":"(HF218*'Default-Data'!$C$59/geo_dollar_index)/CustomRegion2!$E31","v":0},{"$f":"(HG218*'Default-Data'!$C$59/geo_dollar_index)/CustomRegion2!$E31","v":0},null,"OTHERMFG",60123.29985101115,0,null,11491871.46037741,2377279.7670947555,{"$f":"HM218*CustomRegion3!D30","v":6452.5323592931018},{"$f":"HP218*CustomRegion3!$D30","v":1233326.7244258723},{"$f":"HQ218*CustomRegion3!$D30","v":255133.61146649873},{"$f":"HM218*CustomRegion3!E30","v":217.2693198501949},{"$f":"HP218*CustomRegion3!E$12","v":3605260.702407252},{"$f":"HQ218*CustomRegion3!F$12","v":245507416.68356192},{"$f":"(HU218*'Default-Data'!$C$60/geo_dollar_index)/CustomRegion3!$F30","v":0.84051142538586054},{"$f":"(HV218*'Default-Data'!$C$60/geo_dollar_index)/CustomRegion3!$F30","v":13947.035016068008},{"$f":"(HW218*'Default-Data'!$C$60/geo_dollar_index)/CustomRegion3!$F30","v":949751.16082555335},161774.13116631098,3933.1831673723063,{"$f":"HN218*CustomRegion3!D30","v":0},{"$f":"IA218*CustomRegion3!$D30","v":17361.868341123543},{"$f":"IB218*CustomRegion3!$D30","v":422.11574756188173},{"$f":"HN218*CustomRegion3!E30","v":0},{"$f":"IA218*CustomRegion3!$E30","v":584.60788970267208},{"$f":"IB218*CustomRegion3!$E30","v":14.21345857161638},{"$f":"(IF218*'Default-Data'!$C$60/geo_dollar_index)/CustomRegion3!$F30","v":0},{"$f":"(IG218*'Default-Data'!$C$60/geo_dollar_index)/CustomRegion3!$F30","v":2.2615692404459473},{"$f":"(IH218*'Default-Data'!$C$60/geo_dollar_index)/CustomRegion3!$F30","v":5.4985095603600223E-2}]
[null,null,null,null,null,null,null,null,null,null,null,null,null,null,null,null,null,null,null,null,null,null,null,null,null,null,null,null,null,218,"TTL_C45: Construction",{"$f":"'Geothermal-Inputs'!B32*'Geothermal-Inputs'!C32","v":0},{"$f":"'Geothermal-Inputs'!B41*'Geothermal-Inputs'!C41","v":0},null,1231863.1011275034,286496.80930093024,{"$f":"AF219*'Colombia-IO-Data'!AN32","v":0},{"$f":"AI219*'Colombia-IO-Data'!$AN32","v":611697.2846879561},{"$f":"AJ219*'Colombia-IO-Data'!$AN32","v":142263.63315918745},{"$f":"'Colombia-IO-Data'!$AO32*AK219","v":0},{"$f":"'Colombia-IO-Data'!$AO32*AL219","v":120633.46708236131},{"$f":"'Colombia-IO-Data'!$AO32*AM219","v":28055.961236579064},{"$f":"(AN219*'Default-Data'!$F$19/geo_dollar_index)/'Colombia-IO-Data'!$AP32","v":0},{"$f":"(AO219*'Default-Data'!$F$19/geo_dollar_index)/'Colombia-IO-Data'!$AP32","v":34.078853820962486},{"$f":"(AP219*'Default-Data'!$F$19/geo_dollar_index)/'Colombia-IO-Data'!$AP32","v":7.9257856456632361},17456.848235005404,19339.563453117706,{"$f":"AG219*'Colombia-IO-Data'!AN32","v":0},{"$f":"AT219*'Colombia-IO-Data'!$AN32","v":8668.4199362647287},{"$f":"AU219*'Colombia-IO-Data'!$AN32","v":9603.3061145307238},{"$f":"AV219*'Colombia-IO-Data'!$AO32","v":0},{"$f":"AW219*'Colombia-IO-Data'!$AO32","v":1709.5082440506783},{"$f":"AX219*'Colombia-IO-Data'!$AO32","v":1893.8781339205295},{"$f":"(Calculations!AY219*'Default-Data'!$F$19/geo_dollar_index)/'Colombia-IO-Data'!$AP32","v":0},{"$f":"(Calculations!AZ219*'Default-Data'!$F$19/geo_dollar_index)/'Colombia-IO-Data'!$AP32","v":0.48293465290986126},{"$f":"(Calculations!BA219*'Default-Data'!$F$19/geo_dollar_index)/'Colombia-IO-Data'!$AP32","v":0.53501899300075728},null,"DOM_C45: Construction",0,0,null,131485.06224098123,43299.79493960875,{"$f":"BG219*'Mexico-IO-Data'!AQ32","v":0},{"$f":"BJ219*'Mexico-IO-Data'!$AQ32","v":66129.431154780061},{"$f":"BK219*'Mexico-IO-Data'!$AQ32","v":21777.308841570368},{"$f":"BG219*'Mexico-IO-Data'!AQ32","v":0},{"$f":"BJ219*'Mexico-IO-Data'!$AR32","v":29084.804463627683},{"$f":"BK219*'Mexico-IO-Data'!$AR32","v":9578.0162983501014},{"$f":"(BO219*'Default-Data'!$F$19/geo_dollar_index)/'Mexico-IO-Data'!$AS32","v":0},{"$f":"(BP219*'Default-Data'!$F$19/geo_dollar_index)/'Mexico-IO-Data'!$AS32","v":10.156016883642303},{"$f":"(BQ219*'Default-Data'!$F$19/geo_dollar_index)/'Mexico-IO-Data'!$AS32","v":3.3445126082759975},2372.7208330203998,249.67793892951659,{"$f":"BH219*'Mexico-IO-Data'!AQ32","v":0},{"$f":"BU219*'Mexico-IO-Data'!$AQ32","v":1193.3422420956217},{"$f":"BV219*'Mexico-IO-Data'!$AQ32","v":125.57365674776007},{"$f":"BH219*'Mexico-IO-Data'!AR32","v":0},{"$f":"BU219*'Mexico-IO-Data'!$AR32","v":524.85141885315284},{"$f":"BV219*'Mexico-IO-Data'!$AR32","v":55.229346276136887},{"$f":"(BZ219*'Default-Data'!$F$19/geo_dollar_index)/'Mexico-IO-Data'!$AS32","v":0},{"$f":"(CA219*'Default-Data'!$F$19/geo_dollar_index)/'Mexico-IO-Data'!$AS32","v":0.18327095435495289},{"$f":"(CB219*'Default-Data'!$F$19/geo_dollar_index)/'Mexico-IO-Data'!$AS32","v":1.9285334166658254E-2},null,"TTL_C45: Construction",0,0,null,452003.23036661575,297794.48197865224,{"$f":"CH219*'Philippines-IO-Data'!AN32","v":0},{"$f":"CK219*'Philippines-IO-Data'!$AN32","v":248750.27520229059},{"$f":"CL219*'Philippines-IO-Data'!$AN32","v":163884.8007476198},{"$f":"CH219*'Philippines-IO-Data'!AO32","v":0},{"$f":"CK219*'Philippines-IO-Data'!$AO32","v":76439.603210564557},{"$f":"CL219*'Philippines-IO-Data'!$AO32","v":50360.905656096074},{"$f":"(CP219*'Default-Data'!$F$19/geo_dollar_index)/'Philippines-IO-Data'!$AP32","v":0},{"$f":"(CQ219*'Default-Data'!$F$19/geo_dollar_index)/'Philippines-IO-Data'!$AP32","v":24.484361620248542},{"$f":"(CR219*'Default-Data'!$F$19/geo_dollar_index)/'Philippines-IO-Data'!$AP32","v":16.131096628150193},7663.4524082924809,2644.8238571447591,{"$f":"CI219*'Philippines-IO-Data'!AN32","v":0},{"$f":"CV219*'Philippines-IO-Data'!$AN32","v":4217.4165304443513},{"$f":"CW219*'Philippines-IO-Data'!$AN32","v":1455.5220364082913},{"$f":"CI219*'Philippines-IO-Data'!AO32","v":0},{"$f":"CV219*'Philippines-IO-Data'!$AO32","v":1295.9891035243102},{"$f":"CW219*'Philippines-IO-Data'!$AO32","v":447.2739852721906},{"$f":"(DA219*'Default-Data'!$F$19/geo_dollar_index)/'Philippines-IO-Data'!$AP32","v":0},{"$f":"(DB219*'Default-Data'!$F$19/geo_dollar_index)/'Philippines-IO-Data'!$AP32","v":0.41511813946995202},{"$f":"(DC219*'Default-Data'!$F$19/geo_dollar_index)/'Philippines-IO-Data'!$AP32","v":0.14326628526010574},null,"DOM_C45: Construction",0,0,null,1155309.6496617664,598240.15208333195,{"$f":"DI219*'SouthAfrica-IO-Data'!AR32","v":0},{"$f":"DL219*'SouthAfrica-IO-Data'!$AR32","v":343994.20082294039},{"$f":"DM219*'SouthAfrica-IO-Data'!$AR32","v":178126.39501137071},{"$f":"DI219*'SouthAfrica-IO-Data'!AS32","v":0},{"$f":"DL219*'SouthAfrica-IO-Data'!$AS32","v":155144.56807792338},{"$f":"DM219*'SouthAfrica-IO-Data'!$AS32","v":80336.652627295465},{"$f":"(DQ219*'Default-Data'!$F$19/geo_dollar_index)/'SouthAfrica-IO-Data'!$AT32","v":0},{"$f":"(DR219*'Default-Data'!$F$19/geo_dollar_index)/'SouthAfrica-IO-Data'!$AT32","v":15.063874359680414},{"$f":"(DS219*'Default-Data'!$F$19/geo_dollar_index)/'SouthAfrica-IO-Data'!$AT32","v":7.8003455528461618},5952.3800100442058,5349.3480553577865,{"$f":"DJ219*'SouthAfrica-IO-Data'!AR32","v":0},{"$f":"DW219*'SouthAfrica-IO-Data'!$AR32","v":1772.3250257184839},{"$f":"DX219*'SouthAfrica-IO-Data'!$AR32","v":1592.7718683603839},{"$f":"DJ219*'SouthAfrica-IO-Data'!$AS32","v":0},{"$f":"DZ219*'SouthAfrica-IO-Data'!$AS32","v":238.00251360255589},{"$f":"EA219*'SouthAfrica-IO-Data'!$AS32","v":213.89062545767175},{"$f":"(EB219*'Default-Data'!$F$19/geo_dollar_index)/'SouthAfrica-IO-Data'!$AT32","v":0},{"$f":"(EC219*'Default-Data'!$F$19/geo_dollar_index)/'SouthAfrica-IO-Data'!$AT32","v":2.310902667501899E-2},{"$f":"(ED219*'Default-Data'!$F$19/geo_dollar_index)/'SouthAfrica-IO-Data'!$AT32","v":2.0767865407891859E-2},null,"ELECWATER",{"$f":"AF218","v":27681668.869357347},{"$f":"AG218","v":397029.33187676605},null,32756693.56524694,1024993.6347909421,{"$f":"EJ219*'Zambia-IO-Data'!BO30","v":7378807.0563207762},{"$f":"EM219*'Zambia-IO-Data'!$BO30","v":8731602.2296813522},{"$f":"EN219*'Zambia-IO-Data'!$BO30","v":273221.61466397421},{"$f":"EJ219*'Zambia-IO-Data'!BN30","v":365272.97394037159},{"$f":"EM219*'Zambia-IO-Data'!$BN30","v":432240.37291610608},{"$f":"EN219*'Zambia-IO-Data'!$BN30","v":13525.28545215311},{"$f":"(ER219*'Default-Data'!$F$19/geo_dollar_index)/'Zambia-IO-Data'!$BP30","v":637.09078907588616},{"$f":"(ES219*'Default-Data'!$F$19/geo_dollar_index)/'Zambia-IO-Data'!$BP30","v":753.89196545521247},{"$f":"(ET219*'Default-Data'!$F$19/geo_dollar_index)/'Zambia-IO-Data'!$BP30","v":23.590124087843058},425390.56981372274,1711.0878454983467,{"$f":"EK219*'Zambia-IO-Data'!BO30","v":105831.87196714047},{"$f":"EX219*'Zambia-IO-Data'!$BO30","v":113391.8244975627},{"$f":"EY219*'Zambia-IO-Data'!$BO30","v":456.10642652850407},{"$f":"EK219*'Zambia-IO-Data'!BN30","v":5238.9935549269494},{"$f":"EX219*'Zambia-IO-Data'!$BN30","v":5613.2337705279087},{"$f":"EY219*'Zambia-IO-Data'!$BN30","v":22.578629523679957},{"$f":"(FC219*'Default-Data'!$F$19/geo_dollar_index)/'Zambia-IO-Data'!$BP30","v":9.1375896274679},{"$f":"(FD219*'Default-Data'!$F$19/geo_dollar_index)/'Zambia-IO-Data'!$BP30","v":9.7903206294063736},{"$f":"(FE219*'Default-Data'!$F$19/geo_dollar_index)/'Zambia-IO-Data'!$BP30","v":3.9380512454342056E-2},null,"TTL_C45: Construction",0,0,null,628692.74600404862,387230.72481435002,{"$f":"FK219*CustomRegion1!C28","v":0},{"$f":"FN219*CustomRegion1!$C28","v":345987.55734410655},{"$f":"FO219*CustomRegion1!$C28","v":213104.11716797843},{"$f":"FK219*CustomRegion1!D28","v":0},{"$f":"FN219*CustomRegion1!$D28","v":106320.08980761288},{"$f":"FO219*CustomRegion1!$D28","v":65485.733214207627},{"$f":"(FS219*'Default-Data'!$C$58/geo_dollar_index)/CustomRegion1!$E28","v":0},{"$f":"(FT219*'Default-Data'!$C$58/geo_dollar_index)/CustomRegion1!$E28","v":34.055377278398993},{"$f":"(FU219*'Default-Data'!$C$58/geo_dollar_index)/CustomRegion1!$E28","v":20.97572862285843},9845.7903125629127,3568.836077996617,{"$f":"FL219*CustomRegion1!C28","v":0},{"$f":"FY219*CustomRegion1!$C28","v":5418.4193503386987},{"$f":"FZ219*CustomRegion1!$C28","v":1964.0323274536704},{"$f":"FL219*CustomRegion1!D28","v":0},{"$f":"FY219*CustomRegion1!$D28","v":1665.0507213771361},{"$f":"FZ219*CustomRegion1!$D28","v":603.53642495949168},{"$f":"(GD219*'Default-Data'!$C$58/geo_dollar_index)/CustomRegion1!$E28","v":0},{"$f":"(GE219*'Default-Data'!$C$58/geo_dollar_index)/CustomRegion1!$E28","v":0.53333222918429635},{"$f":"(GF219*'Default-Data'!$C$58/geo_dollar_index)/CustomRegion1!$E28","v":0.1933186916079892},null,"C36T37 Manufacturing n.e.c; recycling",0,0,null,137667.20383618542,81806.505397665693,{"$f":"GL219*CustomRegion2!C32","v":0},{"$f":"GO219*CustomRegion2!$C32","v":50856.449650284369},{"$f":"GP219*CustomRegion2!$C32","v":30220.621229241209},{"$f":"GL219*CustomRegion2!D32","v":0},{"$f":"GO219*CustomRegion2!$D32","v":23238.491818431208},{"$f":"GP219*CustomRegion2!$D32","v":13809.097253404188},{"$f":"(GT219*'Default-Data'!$C$59/geo_dollar_index)/CustomRegion2!$E32","v":0},{"$f":"(GU219*'Default-Data'!$C$59/geo_dollar_index)/CustomRegion2!$E32","v":3.739463180383388},{"$f":"(GV219*'Default-Data'!$C$59/geo_dollar_index)/CustomRegion2!$E32","v":2.2221154082160384},341.99590620411885,846.50923750189008,{"$f":"GM219*CustomRegion2!C32","v":0},{"$f":"GZ219*CustomRegion2!$C32","v":126.33871466706965},{"$f":"HA219*CustomRegion2!$C32","v":312.71394504926963},{"$f":"GM219*CustomRegion2!D32","v":0},{"$f":"GZ219*CustomRegion2!$D32","v":57.729574268961898},{"$f":"HA219*CustomRegion2!$D32","v":142.8924060469912},{"$f":"(HE219*'Default-Data'!$C$59/geo_dollar_index)/CustomRegion2!$E32","v":0},{"$f":"(HF219*'Default-Data'!$C$59/geo_dollar_index)/CustomRegion2!$E32","v":9.289656965895338E-3},{"$f":"(HG219*'Default-Data'!$C$59/geo_dollar_index)/CustomRegion2!$E32","v":2.2993785282800192E-2},null,"ELECWATER",27681668.869357347,397029.33187676605,null,32756693.56524694,1024993.6347909421,{"$f":"HM219*CustomRegion3!D31","v":7378807.0563207762},{"$f":"HP219*CustomRegion3!$D31","v":8731602.2296813522},{"$f":"HQ219*CustomRegion3!$D31","v":273221.61466397421},{"$f":"HM219*CustomRegion3!E31","v":365272.97394037159},{"$f":"HP219*CustomRegion3!E$12","v":10276517.663703734},{"$f":"HQ219*CustomRegion3!F$12","v":105853565.43969117},{"$f":"(HU219*'Default-Data'!$C$60/geo_dollar_index)/CustomRegion3!$F31","v":637.09078907588616},{"$f":"(HV219*'Default-Data'!$C$60/geo_dollar_index)/CustomRegion3!$F31","v":17923.786358171856},{"$f":"(HW219*'Default-Data'!$C$60/geo_dollar_index)/CustomRegion3!$F31","v":184624.47633335629},425390.56981372274,1711.0878454983467,{"$f":"HN219*CustomRegion3!D31","v":105831.87196714047},{"$f":"IA219*CustomRegion3!$D31","v":113391.8244975627},{"$f":"IB219*CustomRegion3!$D31","v":456.10642652850407},{"$f":"HN219*CustomRegion3!E31","v":5238.9935549269494},{"$f":"IA219*CustomRegion3!$E31","v":5613.2337705279087},{"$f":"IB219*CustomRegion3!$E31","v":22.578629523679957},{"$f":"(IF219*'Default-Data'!$C$60/geo_dollar_index)/CustomRegion3!$F31","v":9.1375896274679},{"$f":"(IG219*'Default-Data'!$C$60/geo_dollar_index)/CustomRegion3!$F31","v":9.7903206294063736},{"$f":"(IH219*'Default-Data'!$C$60/geo_dollar_index)/CustomRegion3!$F31","v":3.9380512454342056E-2}]
[null,null,null,null,null,null,null,null,null,null,null,null,null,null,null,null,null,null,null,null,null,null,null,null,null,null,null,null,null,219,"TTL_C50T52: Wholesale and retail trade; repairs",0,0,null,1246511.4719857394,2689478.4360997109,{"$f":"AF220*'Colombia-IO-Data'!AN33","v":0},{"$f":"AI220*'Colombia-IO-Data'!$AN33","v":748888.58874039538},{"$f":"AJ220*'Colombia-IO-Data'!$AN33","v":1615805.1937138371},{"$f":"'Colombia-IO-Data'!$AO33*AK220","v":0},{"$f":"'Colombia-IO-Data'!$AO33*AL220","v":324872.40706785326},{"$f":"'Colombia-IO-Data'!$AO33*AM220","v":700946.08267094591},{"$f":"(AN220*'Default-Data'!$F$19/geo_dollar_index)/'Colombia-IO-Data'!$AP33","v":0},{"$f":"(AO220*'Default-Data'!$F$19/geo_dollar_index)/'Colombia-IO-Data'!$AP33","v":101.0292522301458},{"$f":"(AP220*'Default-Data'!$F$19/geo_dollar_index)/'Colombia-IO-Data'!$AP33","v":217.9811428894449},13792.79134248523,31466.712363752831,{"$f":"AG220*'Colombia-IO-Data'!AN33","v":0},{"$f":"AT220*'Colombia-IO-Data'!$AN33","v":8286.5374891492993},{"$f":"AU220*'Colombia-IO-Data'!$AN33","v":18904.809417317902},{"$f":"AV220*'Colombia-IO-Data'!$AO33","v":0},{"$f":"AW220*'Colombia-IO-Data'!$AO33","v":3594.7501682271613},{"$f":"AX220*'Colombia-IO-Data'!$AO33","v":8201.0208633211132},{"$f":"(Calculations!AY220*'Default-Data'!$F$19/geo_dollar_index)/'Colombia-IO-Data'!$AP33","v":0},{"$f":"(Calculations!AZ220*'Default-Data'!$F$19/geo_dollar_index)/'Colombia-IO-Data'!$AP33","v":1.1179001772666022},{"$f":"(Calculations!BA220*'Default-Data'!$F$19/geo_dollar_index)/'Colombia-IO-Data'!$AP33","v":2.5503643501865838},null,"DOM_C50T52: Wholesale and retail trade; repairs",0,0,null,4768584.8846220979,4183421.8723474918,{"$f":"BG220*'Mexico-IO-Data'!AQ33","v":0},{"$f":"BJ220*'Mexico-IO-Data'!$AQ33","v":3631125.3188148201},{"$f":"BK220*'Mexico-IO-Data'!$AQ33","v":3185542.345896292},{"$f":"BG220*'Mexico-IO-Data'!AQ33","v":0},{"$f":"BJ220*'Mexico-IO-Data'!$AR33","v":731175.79950706847},{"$f":"BK220*'Mexico-IO-Data'!$AR33","v":641451.68979862682},{"$f":"(BO220*'Default-Data'!$F$19/geo_dollar_index)/'Mexico-IO-Data'!$AS33","v":0},{"$f":"(BP220*'Default-Data'!$F$19/geo_dollar_index)/'Mexico-IO-Data'!$AS33","v":153.33897794403268},{"$f":"(BQ220*'Default-Data'!$F$19/geo_dollar_index)/'Mexico-IO-Data'!$AS33","v":134.5224316511904},62356.312274945871,24122.704327287909,{"$f":"BH220*'Mexico-IO-Data'!AQ33","v":0},{"$f":"BU220*'Mexico-IO-Data'!$AQ33","v":47482.343246034718},{"$f":"BV220*'Mexico-IO-Data'!$AQ33","v":18368.670068885753},{"$f":"BH220*'Mexico-IO-Data'!AR33","v":0},{"$f":"BU220*'Mexico-IO-Data'!$AR33","v":9561.2068538356689},{"$f":"BV220*'Mexico-IO-Data'!$AR33","v":3698.7781594612702},{"$f":"(BZ220*'Default-Data'!$F$19/geo_dollar_index)/'Mexico-IO-Data'!$AS33","v":0},{"$f":"(CA220*'Default-Data'!$F$19/geo_dollar_index)/'Mexico-IO-Data'!$AS33","v":2.0051343163532431},{"$f":"(CB220*'Default-Data'!$F$19/geo_dollar_index)/'Mexico-IO-Data'!$AS33","v":0.7756915135810899},null,"TTL_C50T52: Wholesale and retail trade; repairs",0,0,null,3324866.4363431344,2964361.3850289397,{"$f":"CH220*'Philippines-IO-Data'!AN33","v":0},{"$f":"CK220*'Philippines-IO-Data'!$AN33","v":2297864.7660105838},{"$f":"CL220*'Philippines-IO-Data'!$AN33","v":2048714.3501235519},{"$f":"CH220*'Philippines-IO-Data'!AO33","v":0},{"$f":"CK220*'Philippines-IO-Data'!$AO33","v":511484.28605250642},{"$f":"CL220*'Philippines-IO-Data'!$AO33","v":456025.61656304327},{"$f":"(CP220*'Default-Data'!$F$19/geo_dollar_index)/'Philippines-IO-Data'!$AP33","v":0},{"$f":"(CQ220*'Default-Data'!$F$19/geo_dollar_index)/'Philippines-IO-Data'!$AP33","v":163.83348024827771},{"$f":"(CR220*'Default-Data'!$F$19/geo_dollar_index)/'Philippines-IO-Data'!$AP33","v":146.06951939911684},30558.303545637878,26327.599021412541,{"$f":"CI220*'Philippines-IO-Data'!AN33","v":0},{"$f":"CV220*'Philippines-IO-Data'!$AN33","v":21119.299187190212},{"$f":"CW220*'Philippines-IO-Data'!$AN33","v":18195.396213117278},{"$f":"CI220*'Philippines-IO-Data'!AO33","v":0},{"$f":"CV220*'Philippines-IO-Data'!$AO33","v":4700.9684061797007},{"$f":"CW220*'Philippines-IO-Data'!$AO33","v":4050.1335758180576},{"$f":"(DA220*'Default-Data'!$F$19/geo_dollar_index)/'Philippines-IO-Data'!$AP33","v":0},{"$f":"(DB220*'Default-Data'!$F$19/geo_dollar_index)/'Philippines-IO-Data'!$AP33","v":1.5057667176163396},{"$f":"(DC220*'Default-Data'!$F$19/geo_dollar_index)/'Philippines-IO-Data'!$AP33","v":1.2972978785286822},null,"DOM_C50T52: Wholesale and retail trade; repairs",0,0,null,6336474.5755853085,6019051.0613203505,{"$f":"DI220*'SouthAfrica-IO-Data'!AR33","v":0},{"$f":"DL220*'SouthAfrica-IO-Data'!$AR33","v":3721197.9306617975},{"$f":"DM220*'SouthAfrica-IO-Data'!$AR33","v":3534785.8003303111},{"$f":"DI220*'SouthAfrica-IO-Data'!AS33","v":0},{"$f":"DL220*'SouthAfrica-IO-Data'!$AS33","v":1786863.0520233666},{"$f":"DM220*'SouthAfrica-IO-Data'!$AS33","v":1697350.7620713355},{"$f":"(DQ220*'Default-Data'!$F$19/geo_dollar_index)/'SouthAfrica-IO-Data'!$AT33","v":0},{"$f":"(DR220*'Default-Data'!$F$19/geo_dollar_index)/'SouthAfrica-IO-Data'!$AT33","v":191.64003434464809},{"$f":"(DS220*'Default-Data'!$F$19/geo_dollar_index)/'SouthAfrica-IO-Data'!$AT33","v":182.03989274384062},38351.276474863,53821.193675893926,{"$f":"DJ220*'SouthAfrica-IO-Data'!AR33","v":0},{"$f":"DW220*'SouthAfrica-IO-Data'!$AR33","v":22522.411942813818},{"$f":"DX220*'SouthAfrica-IO-Data'!$AR33","v":31607.372860639029},{"$f":"DJ220*'SouthAfrica-IO-Data'!$AS33","v":0},{"$f":"DZ220*'SouthAfrica-IO-Data'!$AS33","v":6351.2392045455945},{"$f":"EA220*'SouthAfrica-IO-Data'!$AS33","v":8913.1655248510215},{"$f":"(EB220*'Default-Data'!$F$19/geo_dollar_index)/'SouthAfrica-IO-Data'!$AT33","v":0},{"$f":"(EC220*'Default-Data'!$F$19/geo_dollar_index)/'SouthAfrica-IO-Data'!$AT33","v":0.68116675081055766},{"$f":"(ED220*'Default-Data'!$F$19/geo_dollar_index)/'SouthAfrica-IO-Data'!$AT33","v":0.95593187478345487},null,"EQUIPMACHIN",{"$f":"AF211+AF212","v":250737.62225622765},{"$f":"AG212","v":0},null,8201927.888493835,637860.77912253339,{"$f":"EJ220*'Zambia-IO-Data'!BO31","v":31591.437309431414},{"$f":"EM220*'Zambia-IO-Data'!$BO31","v":1033393.7459175795},{"$f":"EN220*'Zambia-IO-Data'!$BO31","v":80366.634390440362},{"$f":"EJ220*'Zambia-IO-Data'!BN31","v":7084.6010368398456},{"$f":"EM220*'Zambia-IO-Data'!$BN31","v":231745.78389967099},{"$f":"EN220*'Zambia-IO-Data'!$BN31","v":18022.780532364774},{"$f":"(ER220*'Default-Data'!$F$19/geo_dollar_index)/'Zambia-IO-Data'!$BP31","v":27.406944155162378},{"$f":"(ES220*'Default-Data'!$F$19/geo_dollar_index)/'Zambia-IO-Data'!$BP31","v":896.51396380758422},{"$f":"(ET220*'Default-Data'!$F$19/geo_dollar_index)/'Zambia-IO-Data'!$BP31","v":69.721546351408932},132485.33165683606,1033.0139362301561,{"$f":"EK220*'Zambia-IO-Data'!BO31","v":0},{"$f":"EX220*'Zambia-IO-Data'!$BO31","v":16692.357579985033},{"$f":"EY220*'Zambia-IO-Data'!$BO31","v":130.15356336447593},{"$f":"EK220*'Zambia-IO-Data'!BN31","v":0},{"$f":"EX220*'Zambia-IO-Data'!$BN31","v":3743.3780761585695},{"$f":"EY220*'Zambia-IO-Data'!$BN31","v":29.187847989590651},{"$f":"(FC220*'Default-Data'!$F$19/geo_dollar_index)/'Zambia-IO-Data'!$BP31","v":0},{"$f":"(FD220*'Default-Data'!$F$19/geo_dollar_index)/'Zambia-IO-Data'!$BP31","v":14.481345294032307},{"$f":"(FE220*'Default-Data'!$F$19/geo_dollar_index)/'Zambia-IO-Data'!$BP31","v":0.11291386991311859},null,"TTL_C50T52: Wholesale and retail trade; repairs",0,0,null,6022920.0898104636,4603688.9053129209,{"$f":"FK220*CustomRegion1!C29","v":0},{"$f":"FN220*CustomRegion1!$C29","v":4162529.8723561894},{"$f":"FO220*CustomRegion1!$C29","v":3181678.0408260142},{"$f":"FK220*CustomRegion1!D29","v":0},{"$f":"FN220*CustomRegion1!$D29","v":926542.17577420746},{"$f":"FO220*CustomRegion1!$D29","v":708213.2705251358},{"$f":"(FS220*'Default-Data'!$C$58/geo_dollar_index)/CustomRegion1!$E29","v":0},{"$f":"(FT220*'Default-Data'!$C$58/geo_dollar_index)/CustomRegion1!$E29","v":296.78063118114443},{"$f":"(FU220*'Default-Data'!$C$58/geo_dollar_index)/CustomRegion1!$E29","v":226.84772148843109},58499.582940491542,42428.996472401413,{"$f":"FL220*CustomRegion1!C29","v":0},{"$f":"FY220*CustomRegion1!$C29","v":40429.933965442586},{"$f":"FZ220*CustomRegion1!$C29","v":29323.312054107642},{"$f":"FL220*CustomRegion1!D29","v":0},{"$f":"FY220*CustomRegion1!$D29","v":8999.3441804525828},{"$f":"FZ220*CustomRegion1!$D29","v":6527.1087979339436},{"$f":"(GD220*'Default-Data'!$C$58/geo_dollar_index)/CustomRegion1!$E29","v":0},{"$f":"(GE220*'Default-Data'!$C$58/geo_dollar_index)/CustomRegion1!$E29","v":2.8825790297774221},{"$f":"(GF220*'Default-Data'!$C$58/geo_dollar_index)/CustomRegion1!$E29","v":2.090697562925512},null,"C40T41 Electricity, gas and water supply",0,0,null,256040.14572297304,209798.4864636953,{"$f":"GL220*CustomRegion2!C33","v":0},{"$f":"GO220*CustomRegion2!$C33","v":100577.36598170939},{"$f":"GP220*CustomRegion2!$C33","v":82412.775917954466},{"$f":"GL220*CustomRegion2!D33","v":0},{"$f":"GO220*CustomRegion2!$D33","v":37870.081815610858},{"$f":"GP220*CustomRegion2!$D33","v":31030.625391721922},{"$f":"(GT220*'Default-Data'!$C$59/geo_dollar_index)/CustomRegion2!$E33","v":0},{"$f":"(GU220*'Default-Data'!$C$59/geo_dollar_index)/CustomRegion2!$E33","v":2.0900481224607828},{"$f":"(GV220*'Default-Data'!$C$59/geo_dollar_index)/CustomRegion2!$E33","v":1.7125788281771672},2734.9885686572134,2170.9319563539375,{"$f":"GM220*CustomRegion2!C33","v":0},{"$f":"GZ220*CustomRegion2!$C33","v":1074.3547479591473},{"$f":"HA220*CustomRegion2!$C33","v":852.78274342119039},{"$f":"GM220*CustomRegion2!D33","v":0},{"$f":"GZ220*CustomRegion2!$D33","v":404.52344130390009},{"$f":"HA220*CustomRegion2!$D33","v":321.0956257312863},{"$f":"(HE220*'Default-Data'!$C$59/geo_dollar_index)/CustomRegion2!$E33","v":0},{"$f":"(HF220*'Default-Data'!$C$59/geo_dollar_index)/CustomRegion2!$E33","v":2.2325630641760821E-2},{"$f":"(HG220*'Default-Data'!$C$59/geo_dollar_index)/CustomRegion2!$E33","v":1.7721253229862344E-2},null,"EQUIPMACHIN",250737.62225622765,0,null,8201927.888493835,637860.77912253421,{"$f":"HM220*CustomRegion3!D32","v":31591.437309431414},{"$f":"HP220*CustomRegion3!$D32","v":1033393.7459175795},{"$f":"HQ220*CustomRegion3!$D32","v":80366.634390440478},{"$f":"HM220*CustomRegion3!E32","v":7084.6010368398456},{"$f":"HP220*CustomRegion3!E$12","v":2573130.7909524585},{"$f":"HQ220*CustomRegion3!F$12","v":65873421.485227987},{"$f":"(HU220*'Default-Data'!$C$60/geo_dollar_index)/CustomRegion3!$F32","v":27.406944155162378},{"$f":"(HV220*'Default-Data'!$C$60/geo_dollar_index)/CustomRegion3!$F32","v":9954.2164089199996},{"$f":"(HW220*'Default-Data'!$C$60/geo_dollar_index)/CustomRegion3!$F32","v":254832.86561474862},132485.33165683606,1033.0139362301561,{"$f":"HN220*CustomRegion3!D32","v":0},{"$f":"IA220*CustomRegion3!$D32","v":16692.357579985033},{"$f":"IB220*CustomRegion3!$D32","v":130.15356336447593},{"$f":"HN220*CustomRegion3!E32","v":0},{"$f":"IA220*CustomRegion3!$E32","v":3743.3780761585695},{"$f":"IB220*CustomRegion3!$E32","v":29.187847989590651},{"$f":"(IF220*'Default-Data'!$C$60/geo_dollar_index)/CustomRegion3!$F32","v":0},{"$f":"(IG220*'Default-Data'!$C$60/geo_dollar_index)/CustomRegion3!$F32","v":14.481345294032307},{"$f":"(IH220*'Default-Data'!$C$60/geo_dollar_index)/CustomRegion3!$F32","v":0.11291386991311859}]
[null,null,null,null,null,null,null,null,null,null,null,null,null,null,null,null,null,null,null,null,null,null,null,null,null,null,null,null,null,220,"TTL_C55: Hotels and restaurants",{"$f":"'Geothermal-Inputs'!B24*'Geothermal-Inputs'!C24","v":125567.80924101557},0,null,771357.86399842007,1824039.3519420712,{"$f":"AF221*'Colombia-IO-Data'!AN34","v":58033.526759830049},{"$f":"AI221*'Colombia-IO-Data'!$AN34","v":356497.55707560526},{"$f":"AJ221*'Colombia-IO-Data'!$AN34","v":843014.12266207277},{"$f":"'Colombia-IO-Data'!$AO34*AK221","v":24674.41531815294},{"$f":"'Colombia-IO-Data'!$AO34*AL221","v":151573.91381009665},{"$f":"'Colombia-IO-Data'!$AO34*AM221","v":358428.68326297158},{"$f":"(AN221*'Default-Data'!$F$19/geo_dollar_index)/'Colombia-IO-Data'!$AP34","v":5.1906781940007427},{"$f":"(AO221*'Default-Data'!$F$19/geo_dollar_index)/'Colombia-IO-Data'!$AP34","v":31.88612167902475},{"$f":"(AP221*'Default-Data'!$F$19/geo_dollar_index)/'Colombia-IO-Data'!$AP34","v":75.401500960744016},3537.9018578039959,15524.585600343989,{"$f":"AG221*'Colombia-IO-Data'!AN34","v":0},{"$f":"AT221*'Colombia-IO-Data'!$AN34","v":1635.1079419123589},{"$f":"AU221*'Colombia-IO-Data'!$AN34","v":7174.9794737881703},{"$f":"AV221*'Colombia-IO-Data'!$AO34","v":0},{"$f":"AW221*'Colombia-IO-Data'!$AO34","v":695.2073172413551},{"$f":"AX221*'Colombia-IO-Data'!$AO34","v":3050.6232055849332},{"$f":"(Calculations!AY221*'Default-Data'!$F$19/geo_dollar_index)/'Colombia-IO-Data'!$AP34","v":0},{"$f":"(Calculations!AZ221*'Default-Data'!$F$19/geo_dollar_index)/'Colombia-IO-Data'!$AP34","v":0.14624854998122766},{"$f":"(Calculations!BA221*'Default-Data'!$F$19/geo_dollar_index)/'Colombia-IO-Data'!$AP34","v":0.64174989142266381},null,"DOM_C55: Hotels and restaurants",125567.80924101557,0,null,267606.21707205044,737066.94974500104,{"$f":"BG221*'Mexico-IO-Data'!AQ34","v":92346.381383115266},{"$f":"BJ221*'Mexico-IO-Data'!$AQ34","v":196805.74130902495},{"$f":"BK221*'Mexico-IO-Data'!$AQ34","v":542061.42527656979},{"$f":"BG221*'Mexico-IO-Data'!AQ34","v":92346.381383115266},{"$f":"BJ221*'Mexico-IO-Data'!$AR34","v":48139.252788177262},{"$f":"BK221*'Mexico-IO-Data'!$AR34","v":132589.79034120197},{"$f":"(BO221*'Default-Data'!$F$19/geo_dollar_index)/'Mexico-IO-Data'!$AS34","v":66.068846833851111},{"$f":"(BP221*'Default-Data'!$F$19/geo_dollar_index)/'Mexico-IO-Data'!$AS34","v":34.441034629859914},{"$f":"(BQ221*'Default-Data'!$F$19/geo_dollar_index)/'Mexico-IO-Data'!$AS34","v":94.860831779024153},1870.8348243479011,4250.120748194473,{"$f":"BH221*'Mexico-IO-Data'!AQ34","v":0},{"$f":"BU221*'Mexico-IO-Data'!$AQ34","v":1375.8687615743852},{"$f":"BV221*'Mexico-IO-Data'!$AQ34","v":3125.66790731949},{"$f":"BH221*'Mexico-IO-Data'!AR34","v":0},{"$f":"BU221*'Mexico-IO-Data'!$AR34","v":336.54147321233893},{"$f":"BV221*'Mexico-IO-Data'!$AR34","v":764.54739847290182},{"$f":"(BZ221*'Default-Data'!$F$19/geo_dollar_index)/'Mexico-IO-Data'!$AS34","v":0},{"$f":"(CA221*'Default-Data'!$F$19/geo_dollar_index)/'Mexico-IO-Data'!$AS34","v":0.24077724231184749},{"$f":"(CB221*'Default-Data'!$F$19/geo_dollar_index)/'Mexico-IO-Data'!$AS34","v":0.5469923586649742},null,"TTL_C55: Hotels and restaurants",125567.80924101557,0,null,1053681.6763476494,888626.26859856339,{"$f":"CH221*'Philippines-IO-Data'!AN34","v":47070.711563044533},{"$f":"CK221*'Philippines-IO-Data'!$AN34","v":394986.15581822919},{"$f":"CL221*'Philippines-IO-Data'!$AN34","v":333113.00905363489},{"$f":"CH221*'Philippines-IO-Data'!AO34","v":17731.912284442493},{"$f":"CK221*'Philippines-IO-Data'!$AO34","v":148794.43365026038},{"$f":"CL221*'Philippines-IO-Data'!$AO34","v":125486.32602323261},{"$f":"(CP221*'Default-Data'!$F$19/geo_dollar_index)/'Philippines-IO-Data'!$AP34","v":5.679707041320877},{"$f":"(CQ221*'Default-Data'!$F$19/geo_dollar_index)/'Philippines-IO-Data'!$AP34","v":47.660330084883839},{"$f":"(CR221*'Default-Data'!$F$19/geo_dollar_index)/'Philippines-IO-Data'!$AP34","v":40.194512473929159},1754.4719746467342,7892.2213053077539,{"$f":"CI221*'Philippines-IO-Data'!AN34","v":0},{"$f":"CV221*'Philippines-IO-Data'!$AN34","v":657.68643064823198},{"$f":"CW221*'Philippines-IO-Data'!$AN34","v":2958.5008681708491},{"$f":"CI221*'Philippines-IO-Data'!AO34","v":0},{"$f":"CV221*'Philippines-IO-Data'!$AO34","v":247.75572137469976},{"$f":"CW221*'Philippines-IO-Data'!$AO34","v":1114.490861638875},{"$f":"(DA221*'Default-Data'!$F$19/geo_dollar_index)/'Philippines-IO-Data'!$AP34","v":0},{"$f":"(DB221*'Default-Data'!$F$19/geo_dollar_index)/'Philippines-IO-Data'!$AP34","v":7.9358610207768604E-2},{"$f":"(DC221*'Default-Data'!$F$19/geo_dollar_index)/'Philippines-IO-Data'!$AP34","v":0.35698245585682525},null,"DOM_C55: Hotels and restaurants",125567.80924101557,0,null,307783.86948455661,440259.58034893638,{"$f":"DI221*'SouthAfrica-IO-Data'!AR34","v":56387.865915317583},{"$f":"DL221*'SouthAfrica-IO-Data'!$AR34","v":138214.36933793256},{"$f":"DM221*'SouthAfrica-IO-Data'!$AR34","v":197704.31876373661},{"$f":"DI221*'SouthAfrica-IO-Data'!AS34","v":21629.577444437276},{"$f":"DL221*'SouthAfrica-IO-Data'!$AS34","v":53017.05175397986},{"$f":"DM221*'SouthAfrica-IO-Data'!$AS34","v":75836.54398664381},{"$f":"(DQ221*'Default-Data'!$F$19/geo_dollar_index)/'SouthAfrica-IO-Data'!$AT34","v":2.3197597373891976},{"$f":"(DR221*'Default-Data'!$F$19/geo_dollar_index)/'SouthAfrica-IO-Data'!$AT34","v":5.6860482998289807},{"$f":"(DS221*'Default-Data'!$F$19/geo_dollar_index)/'SouthAfrica-IO-Data'!$AT34","v":8.1334257136958179},1522.5912453167923,3936.7162531480571,{"$f":"DJ221*'SouthAfrica-IO-Data'!AR34","v":0},{"$f":"DW221*'SouthAfrica-IO-Data'!$AR34","v":683.73949903010453},{"$f":"DX221*'SouthAfrica-IO-Data'!$AR34","v":1767.8338864946556},{"$f":"DJ221*'SouthAfrica-IO-Data'!$AS34","v":0},{"$f":"DZ221*'SouthAfrica-IO-Data'!$AS34","v":117.77697274073094},{"$f":"EA221*'SouthAfrica-IO-Data'!$AS34","v":304.5167403011979},{"$f":"(EB221*'Default-Data'!$F$19/geo_dollar_index)/'SouthAfrica-IO-Data'!$AT34","v":0},{"$f":"(EC221*'Default-Data'!$F$19/geo_dollar_index)/'SouthAfrica-IO-Data'!$AT34","v":1.2631512569183283E-2},{"$f":"(ED221*'Default-Data'!$F$19/geo_dollar_index)/'SouthAfrica-IO-Data'!$AT34","v":3.2659245208389205E-2},null,"CONSTR",{"$f":"AF219","v":0},{"$f":"AG219","v":0},null,2916156.2220683261,691665.10656324169,{"$f":"EJ221*'Zambia-IO-Data'!BO32","v":0},{"$f":"EM221*'Zambia-IO-Data'!$BO32","v":176911.04267816513},{"$f":"EN221*'Zambia-IO-Data'!$BO32","v":41960.438971071111},{"$f":"EJ221*'Zambia-IO-Data'!BN32","v":0},{"$f":"EM221*'Zambia-IO-Data'!$BN32","v":77814.526917335766},{"$f":"EN221*'Zambia-IO-Data'!$BN32","v":18456.347655570225},{"$f":"(ER221*'Default-Data'!$F$19/geo_dollar_index)/'Zambia-IO-Data'!$BP32","v":0},{"$f":"(ES221*'Default-Data'!$F$19/geo_dollar_index)/'Zambia-IO-Data'!$BP32","v":278.73994422131824},{"$f":"(ET221*'Default-Data'!$F$19/geo_dollar_index)/'Zambia-IO-Data'!$BP32","v":66.112608016084849},35165.773816562127,1145.0162799870377,{"$f":"EK221*'Zambia-IO-Data'!BO32","v":0},{"$f":"EX221*'Zambia-IO-Data'!$BO32","v":2133.3609171527987},{"$f":"EY221*'Zambia-IO-Data'!$BO32","v":69.463364974427819},{"$f":"EK221*'Zambia-IO-Data'!BN32","v":0},{"$f":"EX221*'Zambia-IO-Data'!$BN32","v":938.36126902590206},{"$f":"EY221*'Zambia-IO-Data'!$BN32","v":30.55354149601914},{"$f":"(FC221*'Default-Data'!$F$19/geo_dollar_index)/'Zambia-IO-Data'!$BP32","v":0},{"$f":"(FD221*'Default-Data'!$F$19/geo_dollar_index)/'Zambia-IO-Data'!$BP32","v":3.3613102610722736},{"$f":"(FE221*'Default-Data'!$F$19/geo_dollar_index)/'Zambia-IO-Data'!$BP32","v":0.10944604805490088},null,"TTL_C55: Hotels and restaurants",125567.80924101557,0,null,1181256.0416616432,1072728.3905410895,{"$f":"FK221*CustomRegion1!C30","v":47070.711563044533},{"$f":"FN221*CustomRegion1!$C30","v":442809.05078494322},{"$f":"FO221*CustomRegion1!$C30","v":402126.06210027903},{"$f":"FK221*CustomRegion1!D30","v":17731.912284442493},{"$f":"FN221*CustomRegion1!$D30","v":166809.69941912635},{"$f":"FO221*CustomRegion1!$D30","v":151484.0932646658},{"$f":"(FS221*'Default-Data'!$C$58/geo_dollar_index)/CustomRegion1!$E30","v":5.679707041320877},{"$f":"(FT221*'Default-Data'!$C$58/geo_dollar_index)/CustomRegion1!$E30","v":53.430798052316163},{"$f":"(FU221*'Default-Data'!$C$58/geo_dollar_index)/CustomRegion1!$E30","v":48.521854685594732},3039.7584913849892,9886.5909565666079,{"$f":"FL221*CustomRegion1!C30","v":0},{"$f":"FY221*CustomRegion1!$C30","v":1139.4926457199135},{"$f":"FZ221*CustomRegion1!$C30","v":3706.1160346050133},{"$f":"FL221*CustomRegion1!D30","v":0},{"$f":"FY221*CustomRegion1!$D30","v":429.25596345852063},{"$f":"FZ221*CustomRegion1!$D30","v":1396.1234546786909},{"$f":"(GD221*'Default-Data'!$C$58/geo_dollar_index)/CustomRegion1!$E30","v":0},{"$f":"(GE221*'Default-Data'!$C$58/geo_dollar_index)/CustomRegion1!$E30","v":0.13749493450423927},{"$f":"(GF221*'Default-Data'!$C$58/geo_dollar_index)/CustomRegion1!$E30","v":0.44719216342215856},null,"C45 Construction",125567.80924101557,0,null,35197.955863218915,16391.642879946521,{"$f":"GL221*CustomRegion2!C34","v":61188.257854291813},{"$f":"GO221*CustomRegion2!$C34","v":17151.701636912327},{"$f":"GP221*CustomRegion2!$C34","v":7987.5254434718709},{"$f":"GL221*CustomRegion2!D34","v":25250.344859032226},{"$f":"GO221*CustomRegion2!$D34","v":7077.9328655275085},{"$f":"GP221*CustomRegion2!$D34","v":3296.1842531656989},{"$f":"(GT221*'Default-Data'!$C$59/geo_dollar_index)/CustomRegion2!$E34","v":8.8170759073460321},{"$f":"(GU221*'Default-Data'!$C$59/geo_dollar_index)/CustomRegion2!$E34","v":2.4715175848432795},{"$f":"(GV221*'Default-Data'!$C$59/geo_dollar_index)/CustomRegion2!$E34","v":1.1509825678426218},306.81701876105535,169.61581537136226,{"$f":"GM221*CustomRegion2!C34","v":0},{"$f":"GZ221*CustomRegion2!$C34","v":149.50964718992898},{"$f":"HA221*CustomRegion2!$C34","v":82.652523045841491},{"$f":"GM221*CustomRegion2!D34","v":0},{"$f":"GZ221*CustomRegion2!$D34","v":61.697624408392123},{"$f":"HA221*CustomRegion2!$D34","v":34.107928278435558},{"$f":"(HE221*'Default-Data'!$C$59/geo_dollar_index)/CustomRegion2!$E34","v":0},{"$f":"(HF221*'Default-Data'!$C$59/geo_dollar_index)/CustomRegion2!$E34","v":2.154396863681363E-2},{"$f":"(HG221*'Default-Data'!$C$59/geo_dollar_index)/CustomRegion2!$E34","v":1.1910023183929171E-2},null,"CONSTR",0,0,null,2916156.2220683261,691665.10656324169,{"$f":"HM221*CustomRegion3!D33","v":0},{"$f":"HP221*CustomRegion3!$D33","v":176911.04267816513},{"$f":"HQ221*CustomRegion3!$D33","v":41960.438971071111},{"$f":"HM221*CustomRegion3!E33","v":0},{"$f":"HP221*CustomRegion3!E$12","v":914864.34265755804},{"$f":"HQ221*CustomRegion3!F$12","v":71429924.181798518},{"$f":"(HU221*'Default-Data'!$C$60/geo_dollar_index)/CustomRegion3!$F33","v":0},{"$f":"(HV221*'Default-Data'!$C$60/geo_dollar_index)/CustomRegion3!$F33","v":3277.1417618890509},{"$f":"(HW221*'Default-Data'!$C$60/geo_dollar_index)/CustomRegion3!$F33","v":255869.61549375963},35165.773816562127,1145.0162799870377,{"$f":"HN221*CustomRegion3!D33","v":0},{"$f":"IA221*CustomRegion3!$D33","v":2133.3609171527987},{"$f":"IB221*CustomRegion3!$D33","v":69.463364974427819},{"$f":"HN221*CustomRegion3!E33","v":0},{"$f":"IA221*CustomRegion3!$E33","v":938.36126902590206},{"$f":"IB221*CustomRegion3!$E33","v":30.55354149601914},{"$f":"(IF221*'Default-Data'!$C$60/geo_dollar_index)/CustomRegion3!$F33","v":0},{"$f":"(IG221*'Default-Data'!$C$60/geo_dollar_index)/CustomRegion3!$F33","v":3.3613102610722736},{"$f":"(IH221*'Default-Data'!$C$60/geo_dollar_index)/CustomRegion3!$F33","v":0.10944604805490088}]
[null,null,null,null,null,null,null,null,null,null,null,null,null,null,null,null,null,null,null,null,null,null,null,null,null,null,null,null,null,221,"TTL_C60T63: Transport and storage",0,0,null,2660748.9768787413,1897524.4129312648,{"$f":"AF222*'Colombia-IO-Data'!AN35","v":0},{"$f":"AI222*'Colombia-IO-Data'!$AN35","v":1160662.646658398},{"$f":"AJ222*'Colombia-IO-Data'!$AN35","v":827731.4870173469},{"$f":"'Colombia-IO-Data'!$AO35*AK222","v":0},{"$f":"'Colombia-IO-Data'!$AO35*AL222","v":293561.84931296733},{"$f":"'Colombia-IO-Data'!$AO35*AM222","v":209354.87737368431},{"$f":"(AN222*'Default-Data'!$F$19/geo_dollar_index)/'Colombia-IO-Data'!$AP35","v":0},{"$f":"(AO222*'Default-Data'!$F$19/geo_dollar_index)/'Colombia-IO-Data'!$AP35","v":67.399588991718431},{"$f":"(AP222*'Default-Data'!$F$19/geo_dollar_index)/'Colombia-IO-Data'!$AP35","v":48.066302625566145},26726.995430921877,39196.586620025948,{"$f":"AG222*'Colombia-IO-Data'!AN35","v":0},{"$f":"AT222*'Colombia-IO-Data'!$AN35","v":11658.756810073341},{"$f":"AU222*'Colombia-IO-Data'!$AN35","v":17098.198425220242},{"$f":"AV222*'Colombia-IO-Data'!$AO35","v":0},{"$f":"AW222*'Colombia-IO-Data'!$AO35","v":2948.8036163729489},{"$f":"AX222*'Colombia-IO-Data'!$AO35","v":4324.5802422252036},{"$f":"(Calculations!AY222*'Default-Data'!$F$19/geo_dollar_index)/'Colombia-IO-Data'!$AP35","v":0},{"$f":"(Calculations!AZ222*'Default-Data'!$F$19/geo_dollar_index)/'Colombia-IO-Data'!$AP35","v":0.67702309488091406},{"$f":"(Calculations!BA222*'Default-Data'!$F$19/geo_dollar_index)/'Colombia-IO-Data'!$AP35","v":0.99289104347119173},null,"DOM_C60T63: Transport and storage",0,0,null,1455659.9084402763,2417134.6088171266,{"$f":"BG222*'Mexico-IO-Data'!AQ35","v":0},{"$f":"BJ222*'Mexico-IO-Data'!$AQ35","v":1063934.6850768887},{"$f":"BK222*'Mexico-IO-Data'!$AQ35","v":1766671.8262343421},{"$f":"BG222*'Mexico-IO-Data'!AQ35","v":0},{"$f":"BJ222*'Mexico-IO-Data'!$AR35","v":343239.36970999918},{"$f":"BK222*'Mexico-IO-Data'!$AR35","v":569951.64517760405},{"$f":"(BO222*'Default-Data'!$F$19/geo_dollar_index)/'Mexico-IO-Data'!$AS35","v":0},{"$f":"(BP222*'Default-Data'!$F$19/geo_dollar_index)/'Mexico-IO-Data'!$AS35","v":48.339599998816951},{"$f":"(BQ222*'Default-Data'!$F$19/geo_dollar_index)/'Mexico-IO-Data'!$AS35","v":80.268282073326546},16420.042164914616,13937.830146456487,{"$f":"BH222*'Mexico-IO-Data'!AQ35","v":0},{"$f":"BU222*'Mexico-IO-Data'!$AQ35","v":12001.328255578888},{"$f":"BV222*'Mexico-IO-Data'!$AQ35","v":10187.091669931609},{"$f":"BH222*'Mexico-IO-Data'!AR35","v":0},{"$f":"BU222*'Mexico-IO-Data'!$AR35","v":3871.7868717946772},{"$f":"BV222*'Mexico-IO-Data'!$AR35","v":3286.4902075380828},{"$f":"(BZ222*'Default-Data'!$F$19/geo_dollar_index)/'Mexico-IO-Data'!$AS35","v":0},{"$f":"(CA222*'Default-Data'!$F$19/geo_dollar_index)/'Mexico-IO-Data'!$AS35","v":0.54527727638398915},{"$f":"(CB222*'Default-Data'!$F$19/geo_dollar_index)/'Mexico-IO-Data'!$AS35","v":0.46284790164556622},null,"TTL_C60T63: Transport and storage",0,0,null,336170.44415827986,736937.26171836071,{"$f":"CH222*'Philippines-IO-Data'!AN35","v":0},{"$f":"CK222*'Philippines-IO-Data'!$AN35","v":148595.4105302445},{"$f":"CL222*'Philippines-IO-Data'!$AN35","v":325743.96959333913},{"$f":"CH222*'Philippines-IO-Data'!AO35","v":0},{"$f":"CK222*'Philippines-IO-Data'!$AO35","v":55296.920081188495},{"$f":"CL222*'Philippines-IO-Data'!$AO35","v":121219.34445522969},{"$f":"(CP222*'Default-Data'!$F$19/geo_dollar_index)/'Philippines-IO-Data'!$AP35","v":0},{"$f":"(CQ222*'Default-Data'!$F$19/geo_dollar_index)/'Philippines-IO-Data'!$AP35","v":17.712150912456352},{"$f":"(CR222*'Default-Data'!$F$19/geo_dollar_index)/'Philippines-IO-Data'!$AP35","v":38.827756036822485},3198.492840053309,6545.0146626671585,{"$f":"CI222*'Philippines-IO-Data'!AN35","v":0},{"$f":"CV222*'Philippines-IO-Data'!$AN35","v":1413.8106573759094},{"$f":"CW222*'Philippines-IO-Data'!$AN35","v":2893.0536804347498},{"$f":"CI222*'Philippines-IO-Data'!AO35","v":0},{"$f":"CV222*'Philippines-IO-Data'!$AO35","v":526.12240614884888},{"$f":"CW222*'Philippines-IO-Data'!$AO35","v":1076.594206959222},{"$f":"(DA222*'Default-Data'!$F$19/geo_dollar_index)/'Philippines-IO-Data'!$AP35","v":0},{"$f":"(DB222*'Default-Data'!$F$19/geo_dollar_index)/'Philippines-IO-Data'!$AP35","v":0.16852221502483319},{"$f":"(DC222*'Default-Data'!$F$19/geo_dollar_index)/'Philippines-IO-Data'!$AP35","v":0.34484378220596473},null,"DOM_C60T63: Transport and storage",0,0,null,3890617.591359213,3144739.0485082688,{"$f":"DI222*'SouthAfrica-IO-Data'!AR35","v":0},{"$f":"DL222*'SouthAfrica-IO-Data'!$AR35","v":2057391.1496664542},{"$f":"DM222*'SouthAfrica-IO-Data'!$AR35","v":1662964.3326501013},{"$f":"DI222*'SouthAfrica-IO-Data'!AS35","v":0},{"$f":"DL222*'SouthAfrica-IO-Data'!$AS35","v":716693.13546971022},{"$f":"DM222*'SouthAfrica-IO-Data'!$AS35","v":579294.37576054351},{"$f":"(DQ222*'Default-Data'!$F$19/geo_dollar_index)/'SouthAfrica-IO-Data'!$AT35","v":0},{"$f":"(DR222*'Default-Data'!$F$19/geo_dollar_index)/'SouthAfrica-IO-Data'!$AT35","v":41.348791072963735},{"$f":"(DS222*'Default-Data'!$F$19/geo_dollar_index)/'SouthAfrica-IO-Data'!$AT35","v":33.421726716228605},54950.830136020901,28119.65003546291,{"$f":"DJ222*'SouthAfrica-IO-Data'!AR35","v":0},{"$f":"DW222*'SouthAfrica-IO-Data'!$AR35","v":29058.458955144302},{"$f":"DX222*'SouthAfrica-IO-Data'!$AR35","v":14869.906321085649},{"$f":"DJ222*'SouthAfrica-IO-Data'!$AS35","v":0},{"$f":"DZ222*'SouthAfrica-IO-Data'!$AS35","v":5352.8771644721191},{"$f":"EA222*'SouthAfrica-IO-Data'!$AS35","v":2739.1948797714117},{"$f":"(EB222*'Default-Data'!$F$19/geo_dollar_index)/'SouthAfrica-IO-Data'!$AT35","v":0},{"$f":"(EC222*'Default-Data'!$F$19/geo_dollar_index)/'SouthAfrica-IO-Data'!$AT35","v":0.30882812818897237},{"$f":"(ED222*'Default-Data'!$F$19/geo_dollar_index)/'SouthAfrica-IO-Data'!$AT35","v":0.15803471693302823},null,"TRADETRANS",0,0,null,2986837.2399174692,2506096.2182004182,{"$f":"EJ222*'Zambia-IO-Data'!BO33","v":0},{"$f":"EM222*'Zambia-IO-Data'!$BO33","v":675238.52242200379},{"$f":"EN222*'Zambia-IO-Data'!$BO33","v":566556.71919765545},{"$f":"EJ222*'Zambia-IO-Data'!BN33","v":0},{"$f":"EM222*'Zambia-IO-Data'!$BN33","v":248594.52857319274},{"$f":"EN222*'Zambia-IO-Data'!$BN33","v":208582.44285845605},{"$f":"(ER222*'Default-Data'!$F$19/geo_dollar_index)/'Zambia-IO-Data'!$BP33","v":0},{"$f":"(ES222*'Default-Data'!$F$19/geo_dollar_index)/'Zambia-IO-Data'!$BP33","v":637.33093816971279},{"$f":"(ET222*'Default-Data'!$F$19/geo_dollar_index)/'Zambia-IO-Data'!$BP33","v":534.75048206288443},36560.459452875497,4119.4076295243867,{"$f":"EK222*'Zambia-IO-Data'!BO33","v":0},{"$f":"EX222*'Zambia-IO-Data'!$BO33","v":8265.2748164849345},{"$f":"EY222*'Zambia-IO-Data'!$BO33","v":931.28031344983344},{"$f":"EK222*'Zambia-IO-Data'!BN33","v":0},{"$f":"EX222*'Zambia-IO-Data'!$BN33","v":3042.9278370581878},{"$f":"EY222*'Zambia-IO-Data'!$BN33","v":342.85838678331351},{"$f":"(FC222*'Default-Data'!$F$19/geo_dollar_index)/'Zambia-IO-Data'!$BP33","v":0},{"$f":"(FD222*'Default-Data'!$F$19/geo_dollar_index)/'Zambia-IO-Data'!$BP33","v":7.8012660387416126},{"$f":"(FE222*'Default-Data'!$F$19/geo_dollar_index)/'Zambia-IO-Data'!$BP33","v":0.87899865923085729},null,"TTL_C60T63: Transport and storage",0,0,null,828800.39624457143,1295330.6342331022,{"$f":"FK222*CustomRegion1!C31","v":0},{"$f":"FN222*CustomRegion1!$C31","v":366349.68144196999},{"$f":"FO222*CustomRegion1!$C31","v":572567.25185407407},{"$f":"FK222*CustomRegion1!D31","v":0},{"$f":"FN222*CustomRegion1!$D31","v":136329.97805367783},{"$f":"FO222*CustomRegion1!$D31","v":213069.87513208744},{"$f":"(FS222*'Default-Data'!$C$58/geo_dollar_index)/CustomRegion1!$E31","v":0},{"$f":"(FT222*'Default-Data'!$C$58/geo_dollar_index)/CustomRegion1!$E31","v":43.667841565737788},{"$f":"(FU222*'Default-Data'!$C$58/geo_dollar_index)/CustomRegion1!$E31","v":68.248390284608604},8238.1140083746668,11938.160905495437,{"$f":"FL222*CustomRegion1!C31","v":0},{"$f":"FY222*CustomRegion1!$C31","v":3641.444256452909},{"$f":"FZ222*CustomRegion1!$C31","v":5276.9538534832473},{"$f":"FL222*CustomRegion1!D31","v":0},{"$f":"FY222*CustomRegion1!$D31","v":1355.0933458217087},{"$f":"FZ222*CustomRegion1!$D31","v":1963.7167424413233},{"$f":"(GD222*'Default-Data'!$C$58/geo_dollar_index)/CustomRegion1!$E31","v":0},{"$f":"(GE222*'Default-Data'!$C$58/geo_dollar_index)/CustomRegion1!$E31","v":0.43404981337874982},{"$f":"(GF222*'Default-Data'!$C$58/geo_dollar_index)/CustomRegion1!$E31","v":0.62899791236782265},null,"C50T52 Wholesale and retail trade; repairs",0,0,null,1083012.0914727915,1180795.1169881406,{"$f":"GL222*CustomRegion2!C35","v":0},{"$f":"GO222*CustomRegion2!$C35","v":794565.39762666763},{"$f":"GP222*CustomRegion2!$C35","v":866305.14011106058},{"$f":"GL222*CustomRegion2!D35","v":0},{"$f":"GO222*CustomRegion2!$D35","v":193515.89561648425},{"$f":"GP222*CustomRegion2!$D35","v":210988.0641247411},{"$f":"(GT222*'Default-Data'!$C$59/geo_dollar_index)/CustomRegion2!$E35","v":0},{"$f":"(GU222*'Default-Data'!$C$59/geo_dollar_index)/CustomRegion2!$E35","v":40.58330386448867},{"$f":"(GV222*'Default-Data'!$C$59/geo_dollar_index)/CustomRegion2!$E35","v":44.247490320506785},11439.040137928883,12218.514521170442,{"$f":"GM222*CustomRegion2!C35","v":0},{"$f":"GZ222*CustomRegion2!$C35","v":8392.3951978233454},{"$f":"HA222*CustomRegion2!$C35","v":8964.2663506355766},{"$f":"GM222*CustomRegion2!D35","v":0},{"$f":"GZ222*CustomRegion2!$D35","v":2043.9624956300245},{"$f":"HA222*CustomRegion2!$D35","v":2183.2413500128673},{"$f":"(HE222*'Default-Data'!$C$59/geo_dollar_index)/CustomRegion2!$E35","v":0},{"$f":"(HF222*'Default-Data'!$C$59/geo_dollar_index)/CustomRegion2!$E35","v":0.42865083916499669},{"$f":"(HG222*'Default-Data'!$C$59/geo_dollar_index)/CustomRegion2!$E35","v":0.45785978890687667},null,"TRADETRANS",0,0,null,2986837.2399174692,2506096.2182004182,{"$f":"HM222*CustomRegion3!D34","v":0},{"$f":"HP222*CustomRegion3!$D34","v":675238.52242200379},{"$f":"HQ222*CustomRegion3!$D34","v":566556.71919765545},{"$f":"HM222*CustomRegion3!E34","v":0},{"$f":"HP222*CustomRegion3!E$12","v":937038.58093861281},{"$f":"HQ222*CustomRegion3!F$12","v":258810602.35612774},{"$f":"(HU222*'Default-Data'!$C$60/geo_dollar_index)/CustomRegion3!$F34","v":0},{"$f":"(HV222*'Default-Data'!$C$60/geo_dollar_index)/CustomRegion3!$F34","v":2402.3202816187086},{"$f":"(HW222*'Default-Data'!$C$60/geo_dollar_index)/CustomRegion3!$F34","v":663522.26235475799},36560.459452875497,4119.4076295243867,{"$f":"HN222*CustomRegion3!D34","v":0},{"$f":"IA222*CustomRegion3!$D34","v":8265.2748164849345},{"$f":"IB222*CustomRegion3!$D34","v":931.28031344983344},{"$f":"HN222*CustomRegion3!E34","v":0},{"$f":"IA222*CustomRegion3!$E34","v":3042.9278370581878},{"$f":"IB222*CustomRegion3!$E34","v":342.85838678331351},{"$f":"(IF222*'Default-Data'!$C$60/geo_dollar_index)/CustomRegion3!$F34","v":0},{"$f":"(IG222*'Default-Data'!$C$60/geo_dollar_index)/CustomRegion3!$F34","v":7.8012660387416126},{"$f":"(IH222*'Default-Data'!$C$60/geo_dollar_index)/CustomRegion3!$F34","v":0.87899865923085729}]
[null,null,null,null,null,null,null,null,null,null,null,null,null,null,null,null,null,null,null,null,null,null,null,null,null,null,null,null,null,222,"TTL_C64: Post and telecommunications",0,0,null,1063139.2572979548,1148593.2321205067,{"$f":"AF223*'Colombia-IO-Data'!AN36","v":0},{"$f":"AI223*'Colombia-IO-Data'!$AN36","v":581250.33492316818},{"$f":"AJ223*'Colombia-IO-Data'!$AN36","v":627970.60335946362},{"$f":"'Colombia-IO-Data'!$AO36*AK223","v":0},{"$f":"'Colombia-IO-Data'!$AO36*AL223","v":141088.22088727687},{"$f":"'Colombia-IO-Data'!$AO36*AM223","v":152428.73831497732},{"$f":"(AN223*'Default-Data'!$F$19/geo_dollar_index)/'Colombia-IO-Data'!$AP36","v":0},{"$f":"(AO223*'Default-Data'!$F$19/geo_dollar_index)/'Colombia-IO-Data'!$AP36","v":32.392792597642206},{"$f":"(AP223*'Default-Data'!$F$19/geo_dollar_index)/'Colombia-IO-Data'!$AP36","v":34.996489962845672},4063.3433637096632,11611.329544814595,{"$f":"AG223*'Colombia-IO-Data'!AN36","v":0},{"$f":"AT223*'Colombia-IO-Data'!$AN36","v":2221.5525152055902},{"$f":"AU223*'Colombia-IO-Data'!$AN36","v":6348.2644822843422},{"$f":"AV223*'Colombia-IO-Data'!$AO36","v":0},{"$f":"AW223*'Colombia-IO-Data'!$AO36","v":539.24251419045254},{"$f":"AX223*'Colombia-IO-Data'!$AO36","v":1540.9287319305888},{"$f":"(Calculations!AY223*'Default-Data'!$F$19/geo_dollar_index)/'Colombia-IO-Data'!$AP36","v":0},{"$f":"(Calculations!AZ223*'Default-Data'!$F$19/geo_dollar_index)/'Colombia-IO-Data'!$AP36","v":0.12380601876012219},{"$f":"(Calculations!BA223*'Default-Data'!$F$19/geo_dollar_index)/'Colombia-IO-Data'!$AP36","v":0.3537856279373966},null,"DOM_C64: Post and telecommunications",0,0,null,730136.99125255318,942102.13777412171,{"$f":"BG223*'Mexico-IO-Data'!AQ36","v":0},{"$f":"BJ223*'Mexico-IO-Data'!$AQ36","v":445486.39779687009},{"$f":"BK223*'Mexico-IO-Data'!$AQ36","v":574814.99053175992},{"$f":"BG223*'Mexico-IO-Data'!AQ36","v":0},{"$f":"BJ223*'Mexico-IO-Data'!$AR36","v":113883.07307972548},{"$f":"BK223*'Mexico-IO-Data'!$AR36","v":146944.32399684383},{"$f":"(BO223*'Default-Data'!$F$19/geo_dollar_index)/'Mexico-IO-Data'!$AS36","v":0},{"$f":"(BP223*'Default-Data'!$F$19/geo_dollar_index)/'Mexico-IO-Data'!$AS36","v":9.4651625788703679},{"$f":"(BQ223*'Default-Data'!$F$19/geo_dollar_index)/'Mexico-IO-Data'!$AS36","v":12.212981956490086},3094.2506617427657,5432.4072515494299,{"$f":"BH223*'Mexico-IO-Data'!AQ36","v":0},{"$f":"BU223*'Mexico-IO-Data'!$AQ36","v":1887.9287006341578},{"$f":"BV223*'Mexico-IO-Data'!$AQ36","v":3314.5335284365219},{"$f":"BH223*'Mexico-IO-Data'!AR36","v":0},{"$f":"BU223*'Mexico-IO-Data'!$AR36","v":482.62555994283503},{"$f":"BV223*'Mexico-IO-Data'!$AR36","v":847.31939271522424},{"$f":"(BZ223*'Default-Data'!$F$19/geo_dollar_index)/'Mexico-IO-Data'!$AS36","v":0},{"$f":"(CA223*'Default-Data'!$F$19/geo_dollar_index)/'Mexico-IO-Data'!$AS36","v":4.0112452764418251E-2},{"$f":"(CB223*'Default-Data'!$F$19/geo_dollar_index)/'Mexico-IO-Data'!$AS36","v":7.0423247207816217E-2},null,"TTL_C64: Post and telecommunications",0,0,null,416051.00221812143,652399.95259599108,{"$f":"CH223*'Philippines-IO-Data'!AN36","v":0},{"$f":"CK223*'Philippines-IO-Data'!$AN36","v":252001.19252527301},{"$f":"CL223*'Philippines-IO-Data'!$AN36","v":395157.24077364214},{"$f":"CH223*'Philippines-IO-Data'!AO36","v":0},{"$f":"CK223*'Philippines-IO-Data'!$AO36","v":44685.598652958652},{"$f":"CL223*'Philippines-IO-Data'!$AO36","v":70070.453592201273},{"$f":"(CP223*'Default-Data'!$F$19/geo_dollar_index)/'Philippines-IO-Data'!$AP36","v":0},{"$f":"(CQ223*'Default-Data'!$F$19/geo_dollar_index)/'Philippines-IO-Data'!$AP36","v":11.651796241281017},{"$f":"(CR223*'Default-Data'!$F$19/geo_dollar_index)/'Philippines-IO-Data'!$AP36","v":18.270912159669805},1110.9558395708596,5794.2072920937426,{"$f":"CI223*'Philippines-IO-Data'!AN36","v":0},{"$f":"CV223*'Philippines-IO-Data'!$AN36","v":672.90355009888378},{"$f":"CW223*'Philippines-IO-Data'!$AN36","v":3509.5388295225171},{"$f":"CI223*'Philippines-IO-Data'!AO36","v":0},{"$f":"CV223*'Philippines-IO-Data'!$AO36","v":119.32125269150927},{"$f":"CW223*'Philippines-IO-Data'!$AO36","v":622.32183118454702},{"$f":"(DA223*'Default-Data'!$F$19/geo_dollar_index)/'Philippines-IO-Data'!$AP36","v":0},{"$f":"(DB223*'Default-Data'!$F$19/geo_dollar_index)/'Philippines-IO-Data'!$AP36","v":3.1113087113667153E-2},{"$f":"(DC223*'Default-Data'!$F$19/geo_dollar_index)/'Philippines-IO-Data'!$AP36","v":0.16227078504146039},null,"DOM_C64: Post and telecommunications",0,0,null,2492447.7092575678,1791222.0802817293,{"$f":"DI223*'SouthAfrica-IO-Data'!AR36","v":0},{"$f":"DL223*'SouthAfrica-IO-Data'!$AR36","v":1012135.9692120131},{"$f":"DM223*'SouthAfrica-IO-Data'!$AR36","v":727381.47707818425},{"$f":"DI223*'SouthAfrica-IO-Data'!AS36","v":0},{"$f":"DL223*'SouthAfrica-IO-Data'!$AS36","v":331215.82331690338},{"$f":"DM223*'SouthAfrica-IO-Data'!$AS36","v":238031.51169845471},{"$f":"(DQ223*'Default-Data'!$F$19/geo_dollar_index)/'SouthAfrica-IO-Data'!$AT36","v":0},{"$f":"(DR223*'Default-Data'!$F$19/geo_dollar_index)/'SouthAfrica-IO-Data'!$AT36","v":19.109118255213314},{"$f":"(DS223*'Default-Data'!$F$19/geo_dollar_index)/'SouthAfrica-IO-Data'!$AT36","v":13.732955931760969},7073.9608946837743,16016.762362908559,{"$f":"DJ223*'SouthAfrica-IO-Data'!AR36","v":0},{"$f":"DW223*'SouthAfrica-IO-Data'!$AR36","v":2872.6019967100347},{"$f":"DX223*'SouthAfrica-IO-Data'!$AR36","v":6504.1048755441307},{"$f":"DJ223*'SouthAfrica-IO-Data'!$AS36","v":0},{"$f":"DZ223*'SouthAfrica-IO-Data'!$AS36","v":381.73367965481054},{"$f":"EA223*'SouthAfrica-IO-Data'!$AS36","v":864.31600682789474},{"$f":"(EB223*'Default-Data'!$F$19/geo_dollar_index)/'SouthAfrica-IO-Data'!$AT36","v":0},{"$f":"(EC223*'Default-Data'!$F$19/geo_dollar_index)/'SouthAfrica-IO-Data'!$AT36","v":2.2023688220783193E-2},{"$f":"(ED223*'Default-Data'!$F$19/geo_dollar_index)/'SouthAfrica-IO-Data'!$AT36","v":4.9865723862308906E-2},null,"TOURISM",{"$f":"AF221","v":125567.80924101557},0,null,135643.7831370444,8397.3296898038388,{"$f":"EJ223*'Zambia-IO-Data'!BO34","v":54883.050015144574},{"$f":"EM223*'Zambia-IO-Data'!$BO34","v":59287.046410634837},{"$f":"EN223*'Zambia-IO-Data'!$BO34","v":3670.2962976328113},{"$f":"EJ223*'Zambia-IO-Data'!BN34","v":38464.203968215537},{"$f":"EM223*'Zambia-IO-Data'!$BN34","v":41550.698169698146},{"$f":"EN223*'Zambia-IO-Data'!$BN34","v":2572.2882634434236},{"$f":"(ER223*'Default-Data'!$F$19/geo_dollar_index)/'Zambia-IO-Data'!$BP34","v":114.86284173894522},{"$f":"(ES223*'Default-Data'!$F$19/geo_dollar_index)/'Zambia-IO-Data'!$BP34","v":124.07981384334715},{"$f":"(ET223*'Default-Data'!$F$19/geo_dollar_index)/'Zambia-IO-Data'!$BP34","v":7.6814364845558361},121.94960404487183,13.812444635567303,{"$f":"EK223*'Zambia-IO-Data'!BO34","v":0},{"$f":"EX223*'Zambia-IO-Data'!$BO34","v":53.301608577682998},{"$f":"EY223*'Zambia-IO-Data'!$BO34","v":6.0371292160573855},{"$f":"EK223*'Zambia-IO-Data'!BN34","v":0},{"$f":"EX223*'Zambia-IO-Data'!$BN34","v":37.35586749643555},{"$f":"EY223*'Zambia-IO-Data'!$BN34","v":4.2310580313015933},{"$f":"(FC223*'Default-Data'!$F$19/geo_dollar_index)/'Zambia-IO-Data'!$BP34","v":0},{"$f":"(FD223*'Default-Data'!$F$19/geo_dollar_index)/'Zambia-IO-Data'!$BP34","v":0.11155309751918277},{"$f":"(FE223*'Default-Data'!$F$19/geo_dollar_index)/'Zambia-IO-Data'!$BP34","v":1.2634899436350782E-2},null,"TTL_C64: Post and telecommunications",0,0,null,538654.1289793913,831350.45522933488,{"$f":"FK223*CustomRegion1!C32","v":0},{"$f":"FN223*CustomRegion1!$C32","v":326261.64133190614},{"$f":"FO223*CustomRegion1!$C32","v":503547.17332080012},{"$f":"FK223*CustomRegion1!D32","v":0},{"$f":"FN223*CustomRegion1!$D32","v":57853.681620776333},{"$f":"FO223*CustomRegion1!$D32","v":89290.477812276396},{"$f":"(FS223*'Default-Data'!$C$58/geo_dollar_index)/CustomRegion1!$E32","v":0},{"$f":"(FT223*'Default-Data'!$C$58/geo_dollar_index)/CustomRegion1!$E32","v":15.085381652565106},{"$f":"(FU223*'Default-Data'!$C$58/geo_dollar_index)/CustomRegion1!$E32","v":23.282544826920056},2137.2367337101364,7661.9785258615721,{"$f":"FL223*CustomRegion1!C32","v":0},{"$f":"FY223*CustomRegion1!$C32","v":1294.5196688203416},{"$f":"FZ223*CustomRegion1!$C32","v":4640.8438276225615},{"$f":"FL223*CustomRegion1!D32","v":0},{"$f":"FY223*CustomRegion1!$D32","v":229.54806598173286},{"$f":"FZ223*CustomRegion1!$D32","v":822.92818781563642},{"$f":"(GD223*'Default-Data'!$C$58/geo_dollar_index)/CustomRegion1!$E32","v":0},{"$f":"(GE223*'Default-Data'!$C$58/geo_dollar_index)/CustomRegion1!$E32","v":5.9854793782027411E-2},{"$f":"(GF223*'Default-Data'!$C$58/geo_dollar_index)/CustomRegion1!$E32","v":0.21457901101655191},null,"C55 Hotels and restaurants",0,0,null,84691.551954476497,293367.25570383534,{"$f":"GL223*CustomRegion2!C36","v":0},{"$f":"GO223*CustomRegion2!$C36","v":60904.783081388654},{"$f":"GP223*CustomRegion2!$C36","v":210971.09049824133},{"$f":"GL223*CustomRegion2!D36","v":0},{"$f":"GO223*CustomRegion2!$D36","v":16827.769215945686},{"$f":"GP223*CustomRegion2!$D36","v":58290.542097434423},{"$f":"(GT223*'Default-Data'!$C$59/geo_dollar_index)/CustomRegion2!$E36","v":0},{"$f":"(GU223*'Default-Data'!$C$59/geo_dollar_index)/CustomRegion2!$E36","v":12.039359747852467},{"$f":"(GV223*'Default-Data'!$C$59/geo_dollar_index)/CustomRegion2!$E36","v":41.703733703654379},906.21341947161295,3035.6765727455468,{"$f":"GM223*CustomRegion2!C36","v":0},{"$f":"GZ223*CustomRegion2!$C36","v":651.69111280460788},{"$f":"HA223*CustomRegion2!$C36","v":2183.0657120051555},{"$f":"GM223*CustomRegion2!D36","v":0},{"$f":"GZ223*CustomRegion2!$D36","v":180.05987529261759},{"$f":"HA223*CustomRegion2!$D36","v":603.17308635309416},{"$f":"(HE223*'Default-Data'!$C$59/geo_dollar_index)/CustomRegion2!$E36","v":0},{"$f":"(HF223*'Default-Data'!$C$59/geo_dollar_index)/CustomRegion2!$E36","v":0.12882311297370908},{"$f":"(HG223*'Default-Data'!$C$59/geo_dollar_index)/CustomRegion2!$E36","v":0.43153775664728139},null,"TOURISM",125567.80924101557,0,null,135643.7831370444,8397.3296898038243,{"$f":"HM223*CustomRegion3!D35","v":54883.050015144574},{"$f":"HP223*CustomRegion3!$D35","v":59287.046410634837},{"$f":"HQ223*CustomRegion3!$D35","v":3670.2962976328049},{"$f":"HM223*CustomRegion3!E35","v":38464.203968215537},{"$f":"HP223*CustomRegion3!E$12","v":42554.531048833815},{"$f":"HQ223*CustomRegion3!F$12","v":867212.49544111395},{"$f":"(HU223*'Default-Data'!$C$60/geo_dollar_index)/CustomRegion3!$F35","v":114.86284173894522},{"$f":"(HV223*'Default-Data'!$C$60/geo_dollar_index)/CustomRegion3!$F35","v":127.07748662045152},{"$f":"(HW223*'Default-Data'!$C$60/geo_dollar_index)/CustomRegion3!$F35","v":2589.6933081001866},121.94960404487183,13.812444635567303,{"$f":"HN223*CustomRegion3!D35","v":0},{"$f":"IA223*CustomRegion3!$D35","v":53.301608577682998},{"$f":"IB223*CustomRegion3!$D35","v":6.0371292160573855},{"$f":"HN223*CustomRegion3!E35","v":0},{"$f":"IA223*CustomRegion3!$E35","v":37.35586749643555},{"$f":"IB223*CustomRegion3!$E35","v":4.2310580313015933},{"$f":"(IF223*'Default-Data'!$C$60/geo_dollar_index)/CustomRegion3!$F35","v":0},{"$f":"(IG223*'Default-Data'!$C$60/geo_dollar_index)/CustomRegion3!$F35","v":0.11155309751918277},{"$f":"(IH223*'Default-Data'!$C$60/geo_dollar_index)/CustomRegion3!$F35","v":1.2634899436350782E-2}]
[null,null,null,null,null,null,null,null,null,null,null,null,null,null,null,null,null,null,null,null,null,null,null,null,null,null,null,null,null,223,"TTL_C65T67: Financial intermediation",0,0,null,2654880.995025564,1710075.2586387973,{"$f":"AF224*'Colombia-IO-Data'!AN37","v":0},{"$f":"AI224*'Colombia-IO-Data'!$AN37","v":1768894.7510967157},{"$f":"AJ224*'Colombia-IO-Data'!$AN37","v":1139389.3566809008},{"$f":"'Colombia-IO-Data'!$AO37*AK224","v":0},{"$f":"'Colombia-IO-Data'!$AO37*AL224","v":629730.20629999612},{"$f":"'Colombia-IO-Data'!$AO37*AM224","v":405624.97807957663},{"$f":"(AN224*'Default-Data'!$F$19/geo_dollar_index)/'Colombia-IO-Data'!$AP37","v":0},{"$f":"(AO224*'Default-Data'!$F$19/geo_dollar_index)/'Colombia-IO-Data'!$AP37","v":90.831412303889948},{"$f":"(AP224*'Default-Data'!$F$19/geo_dollar_index)/'Colombia-IO-Data'!$AP37","v":58.506784740687102},22859.678944364601,34097.447076626115,{"$f":"AG224*'Colombia-IO-Data'!AN37","v":0},{"$f":"AT224*'Colombia-IO-Data'!$AN37","v":15230.95241263471},{"$f":"AU224*'Colombia-IO-Data'!$AN37","v":22718.455280162645},{"$f":"AV224*'Colombia-IO-Data'!$AO37","v":0},{"$f":"AW224*'Colombia-IO-Data'!$AO37","v":5422.250701466106},{"$f":"AX224*'Colombia-IO-Data'!$AO37","v":8087.8172777232912},{"$f":"(Calculations!AY224*'Default-Data'!$F$19/geo_dollar_index)/'Colombia-IO-Data'!$AP37","v":0},{"$f":"(Calculations!AZ224*'Default-Data'!$F$19/geo_dollar_index)/'Colombia-IO-Data'!$AP37","v":0.78209792725950034},{"$f":"(Calculations!BA224*'Default-Data'!$F$19/geo_dollar_index)/'Colombia-IO-Data'!$AP37","v":1.1665755563922258},null,"DOM_C65T67: Financial intermediation",0,0,null,1487503.4266178063,1470337.7095171977,{"$f":"BG224*'Mexico-IO-Data'!AQ37","v":0},{"$f":"BJ224*'Mexico-IO-Data'!$AQ37","v":1011194.2135500414},{"$f":"BK224*'Mexico-IO-Data'!$AQ37","v":999525.08157160983},{"$f":"BG224*'Mexico-IO-Data'!AQ37","v":0},{"$f":"BJ224*'Mexico-IO-Data'!$AR37","v":274626.57053959876},{"$f":"BK224*'Mexico-IO-Data'!$AR37","v":271457.39329009701},{"$f":"(BO224*'Default-Data'!$F$19/geo_dollar_index)/'Mexico-IO-Data'!$AS37","v":0},{"$f":"(BP224*'Default-Data'!$F$19/geo_dollar_index)/'Mexico-IO-Data'!$AS37","v":21.381554715505111},{"$f":"(BQ224*'Default-Data'!$F$19/geo_dollar_index)/'Mexico-IO-Data'!$AS37","v":21.134812615386345},9693.823284747361,8478.3516724413585,{"$f":"BH224*'Mexico-IO-Data'!AQ37","v":0},{"$f":"BU224*'Mexico-IO-Data'!$AQ37","v":6589.7918870688854},{"$f":"BV224*'Mexico-IO-Data'!$AQ37","v":5763.5229594787352},{"$f":"BH224*'Mexico-IO-Data'!AR37","v":0},{"$f":"BU224*'Mexico-IO-Data'!$AR37","v":1789.697688401418},{"$f":"BV224*'Mexico-IO-Data'!$AR37","v":1565.2943058594294},{"$f":"(BZ224*'Default-Data'!$F$19/geo_dollar_index)/'Mexico-IO-Data'!$AS37","v":0},{"$f":"(CA224*'Default-Data'!$F$19/geo_dollar_index)/'Mexico-IO-Data'!$AS37","v":0.13934019193255823},{"$f":"(CB224*'Default-Data'!$F$19/geo_dollar_index)/'Mexico-IO-Data'!$AS37","v":0.12186885551839248},null,"TTL_C65T67: Financial intermediation",0,0,null,1149274.6643741489,2055912.4092586585,{"$f":"CH224*'Philippines-IO-Data'!AN37","v":0},{"$f":"CK224*'Philippines-IO-Data'!$AN37","v":733000.68241945468},{"$f":"CL224*'Philippines-IO-Data'!$AN37","v":1311248.9517915794},{"$f":"CH224*'Philippines-IO-Data'!AO37","v":0},{"$f":"CK224*'Philippines-IO-Data'!$AO37","v":160590.81812368246},{"$f":"CL224*'Philippines-IO-Data'!$AO37","v":287277.41594588436},{"$f":"(CP224*'Default-Data'!$F$19/geo_dollar_index)/'Philippines-IO-Data'!$AP37","v":0},{"$f":"(CQ224*'Default-Data'!$F$19/geo_dollar_index)/'Philippines-IO-Data'!$AP37","v":41.874150675026833},{"$f":"(CR224*'Default-Data'!$F$19/geo_dollar_index)/'Philippines-IO-Data'!$AP37","v":74.907755881693959},10490.767937796107,18259.324860818113,{"$f":"CI224*'Philippines-IO-Data'!AN37","v":0},{"$f":"CV224*'Philippines-IO-Data'!$AN37","v":6690.9506455501833},{"$f":"CW224*'Philippines-IO-Data'!$AN37","v":11645.690972215645},{"$f":"CI224*'Philippines-IO-Data'!AO37","v":0},{"$f":"CV224*'Philippines-IO-Data'!$AO37","v":1465.8993694895455},{"$f":"CW224*'Philippines-IO-Data'!$AO37","v":2551.4178713594829},{"$f":"(DA224*'Default-Data'!$F$19/geo_dollar_index)/'Philippines-IO-Data'!$AP37","v":0},{"$f":"(DB224*'Default-Data'!$F$19/geo_dollar_index)/'Philippines-IO-Data'!$AP37","v":0.38223412639417781},{"$f":"(DC224*'Default-Data'!$F$19/geo_dollar_index)/'Philippines-IO-Data'!$AP37","v":0.66528371689332388},null,"DOM_C65T67: Financial intermediation",0,0,null,5202654.2778698234,5087871.0596299442,{"$f":"DI224*'SouthAfrica-IO-Data'!AR37","v":0},{"$f":"DL224*'SouthAfrica-IO-Data'!$AR37","v":3027545.2000810127},{"$f":"DM224*'SouthAfrica-IO-Data'!$AR37","v":2960750.1829855694},{"$f":"DI224*'SouthAfrica-IO-Data'!AS37","v":0},{"$f":"DL224*'SouthAfrica-IO-Data'!$AS37","v":1521073.0160622085},{"$f":"DM224*'SouthAfrica-IO-Data'!$AS37","v":1487514.4425655769},{"$f":"(DQ224*'Default-Data'!$F$19/geo_dollar_index)/'SouthAfrica-IO-Data'!$AT37","v":0},{"$f":"(DR224*'Default-Data'!$F$19/geo_dollar_index)/'SouthAfrica-IO-Data'!$AT37","v":97.308418464459763},{"$f":"(DS224*'Default-Data'!$F$19/geo_dollar_index)/'SouthAfrica-IO-Data'!$AT37","v":95.161557874338683},46189.054120405606,45494.76170056776,{"$f":"DJ224*'SouthAfrica-IO-Data'!AR37","v":0},{"$f":"DW224*'SouthAfrica-IO-Data'!$AR37","v":26878.481949750472},{"$f":"DX224*'SouthAfrica-IO-Data'!$AR37","v":26474.457086504448},{"$f":"DJ224*'SouthAfrica-IO-Data'!$AS37","v":0},{"$f":"DZ224*'SouthAfrica-IO-Data'!$AS37","v":7858.3221991871806},{"$f":"EA224*'SouthAfrica-IO-Data'!$AS37","v":7740.1995478482613},{"$f":"(EB224*'Default-Data'!$F$19/geo_dollar_index)/'SouthAfrica-IO-Data'!$AT37","v":0},{"$f":"(EC224*'Default-Data'!$F$19/geo_dollar_index)/'SouthAfrica-IO-Data'!$AT37","v":0.50272465352563067},{"$f":"(ED224*'Default-Data'!$F$19/geo_dollar_index)/'SouthAfrica-IO-Data'!$AT37","v":0.49516792990668446},null,"OTHER",{"$f":"AF228","v":27681668.869357347},0,null,29518611.299377613,528485.38590343297,{"$f":"EJ224*'Zambia-IO-Data'!BO35","v":10131256.007902004},{"$f":"EM224*'Zambia-IO-Data'!$BO35","v":10803561.356186628},{"$f":"EN224*'Zambia-IO-Data'!$BO35","v":193421.16858241527},{"$f":"EJ224*'Zambia-IO-Data'!BN35","v":8106268.7539107017},{"$f":"EM224*'Zambia-IO-Data'!$BN35","v":8644196.9075015299},{"$f":"EN224*'Zambia-IO-Data'!$BN35","v":154761.06555807145},{"$f":"(ER224*'Default-Data'!$F$19/geo_dollar_index)/'Zambia-IO-Data'!$BP35","v":19474.511256793689},{"$f":"(ES224*'Default-Data'!$F$19/geo_dollar_index)/'Zambia-IO-Data'!$BP35","v":20766.830596366159},{"$f":"(ET224*'Default-Data'!$F$19/geo_dollar_index)/'Zambia-IO-Data'!$BP35","v":371.79819776762974},4901.7335342116221,896.65502107992961,{"$f":"EK224*'Zambia-IO-Data'!BO35","v":0},{"$f":"EX224*'Zambia-IO-Data'!$BO35","v":1793.9928965984027},{"$f":"EY224*'Zambia-IO-Data'!$BO35","v":328.16813221068031},{"$f":"EK224*'Zambia-IO-Data'!BN35","v":0},{"$f":"EX224*'Zambia-IO-Data'!$BN35","v":1435.4181308902573},{"$f":"EY224*'Zambia-IO-Data'!$BN35","v":262.57544712065334},{"$f":"(FC224*'Default-Data'!$F$19/geo_dollar_index)/'Zambia-IO-Data'!$BP35","v":0},{"$f":"(FD224*'Default-Data'!$F$19/geo_dollar_index)/'Zambia-IO-Data'!$BP35","v":3.4484505013163069},{"$f":"(FE224*'Default-Data'!$F$19/geo_dollar_index)/'Zambia-IO-Data'!$BP35","v":0.63081161702686994},null,"TTL_C65T67: Financial intermediation",0,0,null,1727457.632217281,2793512.938566796,{"$f":"FK224*CustomRegion1!C33","v":0},{"$f":"FN224*CustomRegion1!$C33","v":1101762.4093849678},{"$f":"FO224*CustomRegion1!$C33","v":1781686.2702982391},{"$f":"FK224*CustomRegion1!D33","v":0},{"$f":"FN224*CustomRegion1!$D33","v":241381.66709073109},{"$f":"FO224*CustomRegion1!$D33","v":390344.05103485973},{"$f":"(FS224*'Default-Data'!$C$58/geo_dollar_index)/CustomRegion1!$E33","v":0},{"$f":"(FT224*'Default-Data'!$C$58/geo_dollar_index)/CustomRegion1!$E33","v":62.940412260443281},{"$f":"(FU224*'Default-Data'!$C$58/geo_dollar_index)/CustomRegion1!$E33","v":101.782441855084},16345.738337782233,25745.864469528482,{"$f":"FL224*CustomRegion1!C33","v":0},{"$f":"FY224*CustomRegion1!$C33","v":10425.216641114119},{"$f":"FZ224*CustomRegion1!$C33","v":16420.562299543944},{"$f":"FL224*CustomRegion1!D33","v":0},{"$f":"FY224*CustomRegion1!$D33","v":2284.0279820573192},{"$f":"FZ224*CustomRegion1!$D33","v":3597.5294388957445},{"$f":"(GD224*'Default-Data'!$C$58/geo_dollar_index)/CustomRegion1!$E33","v":0},{"$f":"(GE224*'Default-Data'!$C$58/geo_dollar_index)/CustomRegion1!$E33","v":0.59556164533009071},{"$f":"(GF224*'Default-Data'!$C$58/geo_dollar_index)/CustomRegion1!$E33","v":0.93805792599016369},null,"C60T63 Transport and storage",0,0,null,392829.76083366695,723390.48204313451,{"$f":"GL224*CustomRegion2!C37","v":0},{"$f":"GO224*CustomRegion2!$C37","v":243728.40996053405},{"$f":"GP224*CustomRegion2!$C37","v":448822.44052688114},{"$f":"GL224*CustomRegion2!D37","v":0},{"$f":"GO224*CustomRegion2!$D37","v":82764.76576951184},{"$f":"GP224*CustomRegion2!$D37","v":152410.15262981853},{"$f":"(GT224*'Default-Data'!$C$59/geo_dollar_index)/CustomRegion2!$E37","v":0},{"$f":"(GU224*'Default-Data'!$C$59/geo_dollar_index)/CustomRegion2!$E37","v":11.656051211940646},{"$f":"(GV224*'Default-Data'!$C$59/geo_dollar_index)/CustomRegion2!$E37","v":21.464454442125263},4470.8427323804963,7485.4282357345628,{"$f":"GM224*CustomRegion2!C37","v":0},{"$f":"GZ224*CustomRegion2!$C37","v":2773.9023337595327},{"$f":"HA224*CustomRegion2!$C37","v":4644.280305793246},{"$f":"GM224*CustomRegion2!D37","v":0},{"$f":"GZ224*CustomRegion2!$D37","v":941.9557488529349},{"$f":"HA224*CustomRegion2!$D37","v":1577.0946511290022},{"$f":"(HE224*'Default-Data'!$C$59/geo_dollar_index)/CustomRegion2!$E37","v":0},{"$f":"(HF224*'Default-Data'!$C$59/geo_dollar_index)/CustomRegion2!$E37","v":0.13265892008427863},{"$f":"(HG224*'Default-Data'!$C$59/geo_dollar_index)/CustomRegion2!$E37","v":0.22210775139303268},null,"OTHER",27681668.869357347,0,null,29518611.299377613,528485.38590343297,{"$f":"HM224*CustomRegion3!D36","v":10131256.007902004},{"$f":"HP224*CustomRegion3!$D36","v":10803561.356186628},{"$f":"HQ224*CustomRegion3!$D36","v":193421.16858241527},{"$f":"HM224*CustomRegion3!E36","v":8106268.7539107017},{"$f":"HP224*CustomRegion3!E$12","v":9260657.8201132882},{"$f":"HQ224*CustomRegion3!F$12","v":54577960.761736281},{"$f":"(HU224*'Default-Data'!$C$60/geo_dollar_index)/CustomRegion3!$F36","v":19474.511256793689},{"$f":"(HV224*'Default-Data'!$C$60/geo_dollar_index)/CustomRegion3!$F36","v":22247.817144738281},{"$f":"(HW224*'Default-Data'!$C$60/geo_dollar_index)/CustomRegion3!$F36","v":131118.16835760762},4901.7335342116221,896.65502107992961,{"$f":"HN224*CustomRegion3!D36","v":0},{"$f":"IA224*CustomRegion3!$D36","v":1793.9928965984027},{"$f":"IB224*CustomRegion3!$D36","v":328.16813221068031},{"$f":"HN224*CustomRegion3!E36","v":0},{"$f":"IA224*CustomRegion3!$E36","v":1435.4181308902573},{"$f":"IB224*CustomRegion3!$E36","v":262.57544712065334},{"$f":"(IF224*'Default-Data'!$C$60/geo_dollar_index)/CustomRegion3!$F36","v":0},{"$f":"(IG224*'Default-Data'!$C$60/geo_dollar_index)/CustomRegion3!$F36","v":3.4484505013163069},{"$f":"(IH224*'Default-Data'!$C$60/geo_dollar_index)/CustomRegion3!$F36","v":0.63081161702686994}]
[null,null,null,null,null,null,null,null,null,null,null,null,null,null,null,null,null,null,null,null,null,null,null,null,null,null,null,null,null,224,"TTL_C70: Real estate activities",0,0,null,1100343.985092659,2313096.4541975781,{"$f":"AF225*'Colombia-IO-Data'!AN38","v":0},{"$f":"AI225*'Colombia-IO-Data'!$AN38","v":975873.36860315048},{"$f":"AJ225*'Colombia-IO-Data'!$AN38","v":2051439.6036542237},{"$f":"'Colombia-IO-Data'!$AO38*AK225","v":0},{"$f":"'Colombia-IO-Data'!$AO38*AL225","v":32152.295098419458},{"$f":"'Colombia-IO-Data'!$AO38*AM225","v":67589.191011214061},{"$f":"(AN225*'Default-Data'!$F$19/geo_dollar_index)/'Colombia-IO-Data'!$AP38","v":0},{"$f":"(AO225*'Default-Data'!$F$19/geo_dollar_index)/'Colombia-IO-Data'!$AP38","v":6.9334289065967427},{"$f":"(AP225*'Default-Data'!$F$19/geo_dollar_index)/'Colombia-IO-Data'!$AP38","v":14.575160164963682},3982.7401683637181,19183.265109306754,{"$f":"AG225*'Colombia-IO-Data'!AN38","v":0},{"$f":"AT225*'Colombia-IO-Data'!$AN38","v":3532.2136686600679},{"$f":"AU225*'Colombia-IO-Data'!$AN38","v":17013.259304952746},{"$f":"AV225*'Colombia-IO-Data'!$AO38","v":0},{"$f":"AW225*'Colombia-IO-Data'!$AO38","v":116.37655035918219},{"$f":"AX225*'Colombia-IO-Data'!$AO38","v":560.53925781555074},{"$f":"(Calculations!AY225*'Default-Data'!$F$19/geo_dollar_index)/'Colombia-IO-Data'!$AP38","v":0},{"$f":"(Calculations!AZ225*'Default-Data'!$F$19/geo_dollar_index)/'Colombia-IO-Data'!$AP38","v":2.509583019938226E-2},{"$f":"(Calculations!BA225*'Default-Data'!$F$19/geo_dollar_index)/'Colombia-IO-Data'!$AP38","v":0.12087656826749124},null,"DOM_C70: Real estate activities",0,0,null,768756.76463747828,2627456.6253180178,{"$f":"BG225*'Mexico-IO-Data'!AQ38","v":0},{"$f":"BJ225*'Mexico-IO-Data'!$AQ38","v":710473.92484390771},{"$f":"BK225*'Mexico-IO-Data'!$AQ38","v":2428257.5540354652},{"$f":"BG225*'Mexico-IO-Data'!AQ38","v":0},{"$f":"BJ225*'Mexico-IO-Data'!$AR38","v":10178.860137463334},{"$f":"BK225*'Mexico-IO-Data'!$AR38","v":34789.304935710563},{"$f":"(BO225*'Default-Data'!$F$19/geo_dollar_index)/'Mexico-IO-Data'!$AS38","v":0},{"$f":"(BP225*'Default-Data'!$F$19/geo_dollar_index)/'Mexico-IO-Data'!$AS38","v":4.4754850765378009},{"$f":"(BQ225*'Default-Data'!$F$19/geo_dollar_index)/'Mexico-IO-Data'!$AS38","v":15.296311469085289},3333.8402969795306,15150.601885091346,{"$f":"BH225*'Mexico-IO-Data'!AQ38","v":0},{"$f":"BU225*'Mexico-IO-Data'!$AQ38","v":3081.0871650863292},{"$f":"BV225*'Mexico-IO-Data'!$AQ38","v":14001.967956827506},{"$f":"BH225*'Mexico-IO-Data'!AR38","v":0},{"$f":"BU225*'Mexico-IO-Data'!$AR38","v":44.142303085419243},{"$f":"BV225*'Mexico-IO-Data'!$AR38","v":200.60422838614832},{"$f":"(BZ225*'Default-Data'!$F$19/geo_dollar_index)/'Mexico-IO-Data'!$AS38","v":0},{"$f":"(CA225*'Default-Data'!$F$19/geo_dollar_index)/'Mexico-IO-Data'!$AS38","v":1.9408677988971331E-2},{"$f":"(CB225*'Default-Data'!$F$19/geo_dollar_index)/'Mexico-IO-Data'!$AS38","v":8.8202531354982114E-2},null,"TTL_C70: Real estate activities",0,0,null,1152115.444500254,2214064.0881104679,{"$f":"CH225*'Philippines-IO-Data'!AN38","v":0},{"$f":"CK225*'Philippines-IO-Data'!$AN38","v":934907.65645187569},{"$f":"CL225*'Philippines-IO-Data'!$AN38","v":1796647.6169820675},{"$f":"CH225*'Philippines-IO-Data'!AO38","v":0},{"$f":"CK225*'Philippines-IO-Data'!$AO38","v":23961.217262448532},{"$f":"CL225*'Philippines-IO-Data'!$AO38","v":46047.182946333829},{"$f":"(CP225*'Default-Data'!$F$19/geo_dollar_index)/'Philippines-IO-Data'!$AP38","v":0},{"$f":"(CQ225*'Default-Data'!$F$19/geo_dollar_index)/'Philippines-IO-Data'!$AP38","v":6.2479015533258444},{"$f":"(CR225*'Default-Data'!$F$19/geo_dollar_index)/'Philippines-IO-Data'!$AP38","v":12.006830149967071},3436.1116234106757,19663.928903497275,{"$f":"CI225*'Philippines-IO-Data'!AN38","v":0},{"$f":"CV225*'Philippines-IO-Data'!$AN38","v":2788.3030997326559},{"$f":"CW225*'Philippines-IO-Data'!$AN38","v":15956.697547596226},{"$f":"CI225*'Philippines-IO-Data'!AO38","v":0},{"$f":"CV225*'Philippines-IO-Data'!$AO38","v":71.462818712825424},{"$f":"CW225*'Philippines-IO-Data'!$AO38","v":408.96220508042649},{"$f":"(DA225*'Default-Data'!$F$19/geo_dollar_index)/'Philippines-IO-Data'!$AP38","v":0},{"$f":"(DB225*'Default-Data'!$F$19/geo_dollar_index)/'Philippines-IO-Data'!$AP38","v":1.8633972187241016E-2},{"$f":"(DC225*'Default-Data'!$F$19/geo_dollar_index)/'Philippines-IO-Data'!$AP38","v":0.10663713651885041},null,"DOM_C70: Real estate activities",0,0,null,1985880.665706445,3391671.5459878859,{"$f":"DI225*'SouthAfrica-IO-Data'!AR38","v":0},{"$f":"DL225*'SouthAfrica-IO-Data'!$AR38","v":1167765.5149946506},{"$f":"DM225*'SouthAfrica-IO-Data'!$AR38","v":1994418.4653131205},{"$f":"DI225*'SouthAfrica-IO-Data'!AS38","v":0},{"$f":"DL225*'SouthAfrica-IO-Data'!$AS38","v":71765.703918201136},{"$f":"DM225*'SouthAfrica-IO-Data'!$AS38","v":122568.13823733285},{"$f":"(DQ225*'Default-Data'!$F$19/geo_dollar_index)/'SouthAfrica-IO-Data'!$AT38","v":0},{"$f":"(DR225*'Default-Data'!$F$19/geo_dollar_index)/'SouthAfrica-IO-Data'!$AT38","v":4.5911058013162656},{"$f":"(DS225*'Default-Data'!$F$19/geo_dollar_index)/'SouthAfrica-IO-Data'!$AT38","v":7.8411171324863949},6106.3978824700762,30327.67280123214,{"$f":"DJ225*'SouthAfrica-IO-Data'!AR38","v":0},{"$f":"DW225*'SouthAfrica-IO-Data'!$AR38","v":3590.7700755262808},{"$f":"DX225*'SouthAfrica-IO-Data'!$AR38","v":17833.705246695463},{"$f":"DJ225*'SouthAfrica-IO-Data'!$AS38","v":0},{"$f":"DZ225*'SouthAfrica-IO-Data'!$AS38","v":129.76315572662332},{"$f":"EA225*'SouthAfrica-IO-Data'!$AS38","v":644.47397701187219},{"$f":"(EB225*'Default-Data'!$F$19/geo_dollar_index)/'SouthAfrica-IO-Data'!$AT38","v":0},{"$f":"(EC225*'Default-Data'!$F$19/geo_dollar_index)/'SouthAfrica-IO-Data'!$AT38","v":8.3014078386613767E-3},{"$f":"(ED225*'Default-Data'!$F$19/geo_dollar_index)/'SouthAfrica-IO-Data'!$AT38","v":4.1229278793517864E-2},null,"FIRE",0,0,null,6094608.5041991221,1979003.2542427722,{"$f":"EJ225*'Zambia-IO-Data'!BO36","v":0},{"$f":"EM225*'Zambia-IO-Data'!$BO36","v":1269681.6507030884},{"$f":"EN225*'Zambia-IO-Data'!$BO36","v":412283.1051186503},{"$f":"EJ225*'Zambia-IO-Data'!BN36","v":0},{"$f":"EM225*'Zambia-IO-Data'!$BN36","v":302549.38393071067},{"$f":"EN225*'Zambia-IO-Data'!$BN36","v":98241.948593661495},{"$f":"(ER225*'Default-Data'!$F$19/geo_dollar_index)/'Zambia-IO-Data'!$BP36","v":0},{"$f":"(ES225*'Default-Data'!$F$19/geo_dollar_index)/'Zambia-IO-Data'!$BP36","v":309.04249458739923},{"$f":"(ET225*'Default-Data'!$F$19/geo_dollar_index)/'Zambia-IO-Data'!$BP36","v":100.35035098093402},62452.424552255718,3324.5580691654759,{"$f":"EK225*'Zambia-IO-Data'!BO36","v":0},{"$f":"EX225*'Zambia-IO-Data'!$BO36","v":13010.630205580048},{"$f":"EY225*'Zambia-IO-Data'!$BO36","v":692.60074280537935},{"$f":"EK225*'Zambia-IO-Data'!BN36","v":0},{"$f":"EX225*'Zambia-IO-Data'!$BN36","v":3100.2717500633121},{"$f":"EY225*'Zambia-IO-Data'!$BN36","v":165.03816364494492},{"$f":"(FC225*'Default-Data'!$F$19/geo_dollar_index)/'Zambia-IO-Data'!$BP36","v":0},{"$f":"(FD225*'Default-Data'!$F$19/geo_dollar_index)/'Zambia-IO-Data'!$BP36","v":3.1668076896756583},{"$f":"(FE225*'Default-Data'!$F$19/geo_dollar_index)/'Zambia-IO-Data'!$BP36","v":0.16858010131211501},null,"TTL_C70: Real estate activities",0,0,null,1320220.9629083311,2580302.3020877438,{"$f":"FK225*CustomRegion1!C34","v":0},{"$f":"FN225*CustomRegion1!$C34","v":1071320.3197850147},{"$f":"FO225*CustomRegion1!$C34","v":2093839.1110871879},{"$f":"FK225*CustomRegion1!D34","v":0},{"$f":"FN225*CustomRegion1!$D34","v":27457.405833498964},{"$f":"FO225*CustomRegion1!$D34","v":53664.052815418101},{"$f":"(FS225*'Default-Data'!$C$58/geo_dollar_index)/CustomRegion1!$E34","v":0},{"$f":"(FT225*'Default-Data'!$C$58/geo_dollar_index)/CustomRegion1!$E34","v":7.1595347881706886},{"$f":"(FU225*'Default-Data'!$C$58/geo_dollar_index)/CustomRegion1!$E34","v":13.992933467059961},5199.5417974320408,23780.850427722075,{"$f":"FL225*CustomRegion1!C34","v":0},{"$f":"FY225*CustomRegion1!$C34","v":4219.2746045248341},{"$f":"FZ225*CustomRegion1!$C34","v":19297.457774692066},{"$f":"FL225*CustomRegion1!D34","v":0},{"$f":"FY225*CustomRegion1!$D34","v":108.13790516235356},{"$f":"FZ225*CustomRegion1!$D34","v":494.58422461440682},{"$f":"(GD225*'Default-Data'!$C$58/geo_dollar_index)/CustomRegion1!$E34","v":0},{"$f":"(GE225*'Default-Data'!$C$58/geo_dollar_index)/CustomRegion1!$E34","v":2.8197022640252561E-2},{"$f":"(GF225*'Default-Data'!$C$58/geo_dollar_index)/CustomRegion1!$E34","v":0.12896312868301418},null,"C64 Post and telecommunications",0,0,null,414650.40542760916,277264.86990061746,{"$f":"GL225*CustomRegion2!C38","v":0},{"$f":"GO225*CustomRegion2!$C38","v":254912.34821284725},{"$f":"GP225*CustomRegion2!$C38","v":170452.59847366819},{"$f":"GL225*CustomRegion2!D38","v":0},{"$f":"GO225*CustomRegion2!$D38","v":69760.899444165872},{"$f":"GP225*CustomRegion2!$D38","v":46647.118766446089},{"$f":"(GT225*'Default-Data'!$C$59/geo_dollar_index)/CustomRegion2!$E38","v":0},{"$f":"(GU225*'Default-Data'!$C$59/geo_dollar_index)/CustomRegion2!$E38","v":5.7980368550908894},{"$f":"(GV225*'Default-Data'!$C$59/geo_dollar_index)/CustomRegion2!$E38","v":3.876981460196399},1771.9596745261751,2869.0539030448535,{"$f":"GM225*CustomRegion2!C38","v":0},{"$f":"GZ225*CustomRegion2!$C38","v":1089.3378992506446},{"$f":"HA225*CustomRegion2!$C38","v":1763.7924815729637},{"$f":"GM225*CustomRegion2!D38","v":0},{"$f":"GZ225*CustomRegion2!$D38","v":298.11498808559151},{"$f":"HA225*CustomRegion2!$D38","v":482.6904259837894},{"$f":"(HE225*'Default-Data'!$C$59/geo_dollar_index)/CustomRegion2!$E38","v":0},{"$f":"(HF225*'Default-Data'!$C$59/geo_dollar_index)/CustomRegion2!$E38","v":2.4777227669758702E-2},{"$f":"(HG225*'Default-Data'!$C$59/geo_dollar_index)/CustomRegion2!$E38","v":4.0117843974954437E-2},null,"FIRE",0,0,null,6094608.5041991221,1979003.2542427722,{"$f":"HM225*CustomRegion3!D37","v":0},{"$f":"HP225*CustomRegion3!$D37","v":1269681.6507030884},{"$f":"HQ225*CustomRegion3!$D37","v":412283.1051186503},{"$f":"HM225*CustomRegion3!E37","v":0},{"$f":"HP225*CustomRegion3!E$12","v":1912016.9079949423},{"$f":"HQ225*CustomRegion3!F$12","v":204376440.36792052},{"$f":"(HU225*'Default-Data'!$C$60/geo_dollar_index)/CustomRegion3!$F37","v":0},{"$f":"(HV225*'Default-Data'!$C$60/geo_dollar_index)/CustomRegion3!$F37","v":1953.0513242604},{"$f":"(HW225*'Default-Data'!$C$60/geo_dollar_index)/CustomRegion3!$F37","v":208762.62957673057},62452.424552255718,3324.5580691654759,{"$f":"HN225*CustomRegion3!D37","v":0},{"$f":"IA225*CustomRegion3!$D37","v":13010.630205580048},{"$f":"IB225*CustomRegion3!$D37","v":692.60074280537935},{"$f":"HN225*CustomRegion3!E37","v":0},{"$f":"IA225*CustomRegion3!$E37","v":3100.2717500633121},{"$f":"IB225*CustomRegion3!$E37","v":165.03816364494492},{"$f":"(IF225*'Default-Data'!$C$60/geo_dollar_index)/CustomRegion3!$F37","v":0},{"$f":"(IG225*'Default-Data'!$C$60/geo_dollar_index)/CustomRegion3!$F37","v":3.1668076896756583},{"$f":"(IH225*'Default-Data'!$C$60/geo_dollar_index)/CustomRegion3!$F37","v":0.16858010131211501}]
[null,null,null,null,null,null,null,null,null,null,null,null,null,null,null,null,null,null,null,null,null,null,null,null,null,null,null,null,null,225,"TTL_C71: Renting of machinery and equipment",0,0,null,99685.397304811268,41087.505079222188,{"$f":"AF226*'Colombia-IO-Data'!AN39","v":0},{"$f":"AI226*'Colombia-IO-Data'!$AN39","v":71938.12881546501},{"$f":"AJ226*'Colombia-IO-Data'!$AN39","v":29650.864750603752},{"$f":"'Colombia-IO-Data'!$AO39*AK226","v":0},{"$f":"'Colombia-IO-Data'!$AO39*AL226","v":27468.037684570885},{"$f":"'Colombia-IO-Data'!$AO39*AM226","v":11321.549277976361},{"$f":"(AN226*'Default-Data'!$F$19/geo_dollar_index)/'Colombia-IO-Data'!$AP39","v":0},{"$f":"(AO226*'Default-Data'!$F$19/geo_dollar_index)/'Colombia-IO-Data'!$AP39","v":6.3064545160818781},{"$f":"(AP226*'Default-Data'!$F$19/geo_dollar_index)/'Colombia-IO-Data'!$AP39","v":2.5993424209274005},991.59239942757836,1261.5991449675087,{"$f":"AG226*'Colombia-IO-Data'!AN39","v":0},{"$f":"AT226*'Colombia-IO-Data'!$AN39","v":715.58426500863527},{"$f":"AU226*'Colombia-IO-Data'!$AN39","v":910.4350713138283},{"$f":"AV226*'Colombia-IO-Data'!$AO39","v":0},{"$f":"AW226*'Colombia-IO-Data'!$AO39","v":273.2305646726474},{"$f":"AX226*'Colombia-IO-Data'!$AO39","v":347.63018249130647},{"$f":"(Calculations!AY226*'Default-Data'!$F$19/geo_dollar_index)/'Colombia-IO-Data'!$AP39","v":0},{"$f":"(Calculations!AZ226*'Default-Data'!$F$19/geo_dollar_index)/'Colombia-IO-Data'!$AP39","v":6.2731679208351793E-2},{"$f":"(Calculations!BA226*'Default-Data'!$F$19/geo_dollar_index)/'Colombia-IO-Data'!$AP39","v":7.9813270954194007E-2},null,"DOM_C71: Renting of machinery and equipment",0,0,null,173193.09133030768,67039.357650439022,{"$f":"BG226*'Mexico-IO-Data'!AQ39","v":0},{"$f":"BJ226*'Mexico-IO-Data'!$AQ39","v":142485.71769431778},{"$f":"BK226*'Mexico-IO-Data'!$AQ39","v":55153.187204051552},{"$f":"BG226*'Mexico-IO-Data'!AQ39","v":0},{"$f":"BJ226*'Mexico-IO-Data'!$AR39","v":6484.6893195159682},{"$f":"BK226*'Mexico-IO-Data'!$AR39","v":2510.0851494931321},{"$f":"(BO226*'Default-Data'!$F$19/geo_dollar_index)/'Mexico-IO-Data'!$AS39","v":0},{"$f":"(BP226*'Default-Data'!$F$19/geo_dollar_index)/'Mexico-IO-Data'!$AS39","v":2.8512161365359283},{"$f":"(BQ226*'Default-Data'!$F$19/geo_dollar_index)/'Mexico-IO-Data'!$AS39","v":1.1036450521654624},2850.1458470807756,386.56646454482143,{"$f":"BH226*'Mexico-IO-Data'!AQ39","v":0},{"$f":"BU226*'Mexico-IO-Data'!$AQ39","v":2344.811062817018},{"$f":"BV226*'Mexico-IO-Data'!$AQ39","v":318.02769795347632},{"$f":"BH226*'Mexico-IO-Data'!AR39","v":0},{"$f":"BU226*'Mexico-IO-Data'!$AR39","v":106.71505538508285},{"$f":"BV226*'Mexico-IO-Data'!$AR39","v":14.473807267150407},{"$f":"(BZ226*'Default-Data'!$F$19/geo_dollar_index)/'Mexico-IO-Data'!$AS39","v":0},{"$f":"(CA226*'Default-Data'!$F$19/geo_dollar_index)/'Mexico-IO-Data'!$AS39","v":4.6920935288228244E-2},{"$f":"(CB226*'Default-Data'!$F$19/geo_dollar_index)/'Mexico-IO-Data'!$AS39","v":6.3639059334750937E-3},null,"TTL_C71: Renting of machinery and equipment",0,0,null,49038.620360399684,42462.471946614576,{"$f":"CH226*'Philippines-IO-Data'!AN39","v":0},{"$f":"CK226*'Philippines-IO-Data'!$AN39","v":24792.476941479745},{"$f":"CL226*'Philippines-IO-Data'!$AN39","v":21467.770685180265},{"$f":"CH226*'Philippines-IO-Data'!AO39","v":0},{"$f":"CK226*'Philippines-IO-Data'!$AO39","v":6777.301925425425},{"$f":"CL226*'Philippines-IO-Data'!$AO39","v":5868.4561426713135},{"$f":"(CP226*'Default-Data'!$F$19/geo_dollar_index)/'Philippines-IO-Data'!$AP39","v":0},{"$f":"(CQ226*'Default-Data'!$F$19/geo_dollar_index)/'Philippines-IO-Data'!$AP39","v":1.7671854799123317},{"$f":"(CR226*'Default-Data'!$F$19/geo_dollar_index)/'Philippines-IO-Data'!$AP39","v":1.5302034052703191},195.57757545680596,377.12504977105988,{"$f":"CI226*'Philippines-IO-Data'!AN39","v":0},{"$f":"CV226*'Philippines-IO-Data'!$AN39","v":98.878241152538337},{"$f":"CW226*'Philippines-IO-Data'!$AN39","v":190.66327787748551},{"$f":"CI226*'Philippines-IO-Data'!AO39","v":0},{"$f":"CV226*'Philippines-IO-Data'!$AO39","v":27.029477358294997},{"$f":"CW226*'Philippines-IO-Data'!$AO39","v":52.119947648517652},{"$f":"(DA226*'Default-Data'!$F$19/geo_dollar_index)/'Philippines-IO-Data'!$AP39","v":0},{"$f":"(DB226*'Default-Data'!$F$19/geo_dollar_index)/'Philippines-IO-Data'!$AP39","v":7.0479521855151333E-3},{"$f":"(DC226*'Default-Data'!$F$19/geo_dollar_index)/'Philippines-IO-Data'!$AP39","v":1.3590307132800435E-2},null,"DOM_C71: Renting of machinery and equipment",0,0,null,197715.65895018075,120741.48951063759,{"$f":"DI226*'SouthAfrica-IO-Data'!AR39","v":0},{"$f":"DL226*'SouthAfrica-IO-Data'!$AR39","v":84322.377429388522},{"$f":"DM226*'SouthAfrica-IO-Data'!$AR39","v":51494.198810363021},{"$f":"DI226*'SouthAfrica-IO-Data'!AS39","v":0},{"$f":"DL226*'SouthAfrica-IO-Data'!$AS39","v":27889.636806997951},{"$f":"DM226*'SouthAfrica-IO-Data'!$AS39","v":17031.712651733582},{"$f":"(DQ226*'Default-Data'!$F$19/geo_dollar_index)/'SouthAfrica-IO-Data'!$AT39","v":0},{"$f":"(DR226*'Default-Data'!$F$19/geo_dollar_index)/'SouthAfrica-IO-Data'!$AT39","v":1.7841986680317017},{"$f":"(DS226*'Default-Data'!$F$19/geo_dollar_index)/'SouthAfrica-IO-Data'!$AT39","v":1.0895788725329303},1076.0274411204973,1079.6471113907492,{"$f":"DJ226*'SouthAfrica-IO-Data'!AR39","v":0},{"$f":"DW226*'SouthAfrica-IO-Data'!$AR39","v":458.90746588465277},{"$f":"DX226*'SouthAfrica-IO-Data'!$AR39","v":460.45119390457165},{"$f":"DJ226*'SouthAfrica-IO-Data'!$AS39","v":0},{"$f":"DZ226*'SouthAfrica-IO-Data'!$AS39","v":64.733176013983424},{"$f":"EA226*'SouthAfrica-IO-Data'!$AS39","v":64.950933241877919},{"$f":"(EB226*'Default-Data'!$F$19/geo_dollar_index)/'SouthAfrica-IO-Data'!$AT39","v":0},{"$f":"(EC226*'Default-Data'!$F$19/geo_dollar_index)/'SouthAfrica-IO-Data'!$AT39","v":4.1412101283667836E-3},{"$f":"(ED226*'Default-Data'!$F$19/geo_dollar_index)/'SouthAfrica-IO-Data'!$AT39","v":4.1551408280977361E-3},null,"PUBLIC",{"$f":"AF229","v":149771.78765937407},0,null,419939.30897646432,1581693.546904935,{"$f":"EJ226*'Zambia-IO-Data'!BO37","v":32075.04113734448},{"$f":"EM226*'Zambia-IO-Data'!$BO37","v":89933.964340747189},{"$f":"EN226*'Zambia-IO-Data'!$BO37","v":338734.59332027123},{"$f":"EJ226*'Zambia-IO-Data'!BN37","v":20863.838832508663},{"$f":"EM226*'Zambia-IO-Data'!$BN37","v":58499.308840770413},{"$f":"EN226*'Zambia-IO-Data'!$BN37","v":220336.55176832029},{"$f":"(ER226*'Default-Data'!$F$19/geo_dollar_index)/'Zambia-IO-Data'!$BP37","v":50.123315243847777},{"$f":"(ES226*'Default-Data'!$F$19/geo_dollar_index)/'Zambia-IO-Data'!$BP37","v":140.53882040175739},{"$f":"(ET226*'Default-Data'!$F$19/geo_dollar_index)/'Zambia-IO-Data'!$BP37","v":529.33683646069346},263.47342271528873,2617.4885423836213,{"$f":"EK226*'Zambia-IO-Data'!BO37","v":0},{"$f":"EX226*'Zambia-IO-Data'!$BO37","v":56.425318841821962},{"$f":"EY226*'Zambia-IO-Data'!$BO37","v":560.55986234486113},{"$f":"EK226*'Zambia-IO-Data'!BN37","v":0},{"$f":"EX226*'Zambia-IO-Data'!$BN37","v":36.70295396809437},{"$f":"EY226*'Zambia-IO-Data'!$BN37","v":364.62714338718689},{"$f":"(FC226*'Default-Data'!$F$19/geo_dollar_index)/'Zambia-IO-Data'!$BP37","v":0},{"$f":"(FD226*'Default-Data'!$F$19/geo_dollar_index)/'Zambia-IO-Data'!$BP37","v":8.8175227334327796E-2},{"$f":"(FE226*'Default-Data'!$F$19/geo_dollar_index)/'Zambia-IO-Data'!$BP37","v":0.87598075316718271},null,"TTL_C71: Renting of machinery and equipment",0,0,null,175459.75744140649,156370.55149047711,{"$f":"FK226*CustomRegion1!C35","v":0},{"$f":"FN226*CustomRegion1!$C35","v":88707.267018395476},{"$f":"FO226*CustomRegion1!$C35","v":79056.328739720833},{"$f":"FK226*CustomRegion1!D35","v":0},{"$f":"FN226*CustomRegion1!$D35","v":24249.127385781743},{"$f":"FO226*CustomRegion1!$D35","v":21610.935052978079},{"$f":"(FS226*'Default-Data'!$C$58/geo_dollar_index)/CustomRegion1!$E35","v":0},{"$f":"(FT226*'Default-Data'!$C$58/geo_dollar_index)/CustomRegion1!$E35","v":6.3229742880324782},{"$f":"(FU226*'Default-Data'!$C$58/geo_dollar_index)/CustomRegion1!$E35","v":5.6350640790662423},954.52224543609009,1441.1585391706549,{"$f":"FL226*CustomRegion1!C35","v":0},{"$f":"FY226*CustomRegion1!$C35","v":482.57823295563151},{"$f":"FZ226*CustomRegion1!$C35","v":728.60715878251278},{"$f":"FL226*CustomRegion1!D35","v":0},{"$f":"FY226*CustomRegion1!$D35","v":131.91817804644876},{"$f":"FZ226*CustomRegion1!$D35","v":199.17294717067293},{"$f":"(GD226*'Default-Data'!$C$58/geo_dollar_index)/CustomRegion1!$E35","v":0},{"$f":"(GE226*'Default-Data'!$C$58/geo_dollar_index)/CustomRegion1!$E35","v":3.4397742840052134E-2},{"$f":"(GF226*'Default-Data'!$C$58/geo_dollar_index)/CustomRegion1!$E35","v":5.193446361167757E-2},null,"C65T67 Finance and insurance",0,0,null,615278.54966972384,247092.62522876577,{"$f":"GL226*CustomRegion2!C39","v":0},{"$f":"GO226*CustomRegion2!$C39","v":380630.19227963744},{"$f":"GP226*CustomRegion2!$C39","v":152859.08065898158},{"$f":"GL226*CustomRegion2!D39","v":0},{"$f":"GO226*CustomRegion2!$D39","v":119129.31538992314},{"$f":"GP226*CustomRegion2!$D39","v":47841.705674938108},{"$f":"(GT226*'Default-Data'!$C$59/geo_dollar_index)/CustomRegion2!$E39","v":0},{"$f":"(GU226*'Default-Data'!$C$59/geo_dollar_index)/CustomRegion2!$E39","v":9.2750310730149366},{"$f":"(GV226*'Default-Data'!$C$59/geo_dollar_index)/CustomRegion2!$E39","v":3.7248036326633693},8960.8542626304807,2556.8405441349114,{"$f":"GM226*CustomRegion2!C39","v":0},{"$f":"GZ226*CustomRegion2!$C39","v":5543.4594344394436},{"$f":"HA226*CustomRegion2!$C39","v":1581.7400240344073},{"$f":"GM226*CustomRegion2!D39","v":0},{"$f":"GZ226*CustomRegion2!$D39","v":1734.9872414519712},{"$f":"HA226*CustomRegion2!$D39","v":495.0516538362898},{"$f":"(HE226*'Default-Data'!$C$59/geo_dollar_index)/CustomRegion2!$E39","v":0},{"$f":"(HF226*'Default-Data'!$C$59/geo_dollar_index)/CustomRegion2!$E39","v":0.13508060986567785},{"$f":"(HG226*'Default-Data'!$C$59/geo_dollar_index)/CustomRegion2!$E39","v":3.8543153354404447E-2},null,"PUBLIC",149771.78765937407,0,null,419939.30897646432,1581693.546904935,{"$f":"HM226*CustomRegion3!D38","v":32075.04113734448},{"$f":"HP226*CustomRegion3!$D38","v":89933.964340747189},{"$f":"HQ226*CustomRegion3!$D38","v":338734.59332027123},{"$f":"HM226*CustomRegion3!E38","v":20863.838832508663},{"$f":"HP226*CustomRegion3!E$12","v":131744.48507094441},{"$f":"HQ226*CustomRegion3!F$12","v":163345308.39012226},{"$f":"(HU226*'Default-Data'!$C$60/geo_dollar_index)/CustomRegion3!$F38","v":50.123315243847777},{"$f":"(HV226*'Default-Data'!$C$60/geo_dollar_index)/CustomRegion3!$F38","v":316.50313299776116},{"$f":"(HW226*'Default-Data'!$C$60/geo_dollar_index)/CustomRegion3!$F38","v":392420.99461027991},263.47342271528873,2617.4885423836213,{"$f":"HN226*CustomRegion3!D38","v":0},{"$f":"IA226*CustomRegion3!$D38","v":56.425318841821962},{"$f":"IB226*CustomRegion3!$D38","v":560.55986234486113},{"$f":"HN226*CustomRegion3!E38","v":0},{"$f":"IA226*CustomRegion3!$E38","v":36.70295396809437},{"$f":"IB226*CustomRegion3!$E38","v":364.62714338718689},{"$f":"(IF226*'Default-Data'!$C$60/geo_dollar_index)/CustomRegion3!$F38","v":0},{"$f":"(IG226*'Default-Data'!$C$60/geo_dollar_index)/CustomRegion3!$F38","v":8.8175227334327796E-2},{"$f":"(IH226*'Default-Data'!$C$60/geo_dollar_index)/CustomRegion3!$F38","v":0.87598075316718271}]
[null,null,null,null,null,null,null,null,null,null,null,null,null,null,null,null,null,null,null,null,null,null,null,null,null,null,null,null,null,226,"TTL_C72: Computer and related activities",0,0,null,533963.78801234812,161515.89793716092,{"$f":"AF227*'Colombia-IO-Data'!AN40","v":0},{"$f":"AI227*'Colombia-IO-Data'!$AN40","v":381164.30903230642},{"$f":"AJ227*'Colombia-IO-Data'!$AN40","v":115296.38716535358},{"$f":"'Colombia-IO-Data'!$AO40*AK227","v":0},{"$f":"'Colombia-IO-Data'!$AO40*AL227","v":147132.35764573823},{"$f":"'Colombia-IO-Data'!$AO40*AM227","v":44505.293044728642},{"$f":"(AN227*'Default-Data'!$F$19/geo_dollar_index)/'Colombia-IO-Data'!$AP40","v":0},{"$f":"(AO227*'Default-Data'!$F$19/geo_dollar_index)/'Colombia-IO-Data'!$AP40","v":14.446140072295897},{"$f":"(AP227*'Default-Data'!$F$19/geo_dollar_index)/'Colombia-IO-Data'!$AP40","v":4.3697369332635656},1879.4614032982322,2940.8639360362436,{"$f":"AG227*'Colombia-IO-Data'!AN40","v":0},{"$f":"AT227*'Colombia-IO-Data'!$AN40","v":1341.6333152623695},{"$f":"AU227*'Colombia-IO-Data'!$AN40","v":2099.3041013323573},{"$f":"AV227*'Colombia-IO-Data'!$AO40","v":0},{"$f":"AW227*'Colombia-IO-Data'!$AO40","v":517.88078813509674},{"$f":"AX227*'Colombia-IO-Data'!$AO40","v":810.34754441874588},{"$f":"(Calculations!AY227*'Default-Data'!$F$19/geo_dollar_index)/'Colombia-IO-Data'!$AP40","v":0},{"$f":"(Calculations!AZ227*'Default-Data'!$F$19/geo_dollar_index)/'Colombia-IO-Data'!$AP40","v":5.0847947561365694E-2},{"$f":"(Calculations!BA227*'Default-Data'!$F$19/geo_dollar_index)/'Colombia-IO-Data'!$AP40","v":7.9563695717434241E-2},null,"DOM_C72: Computer and related activities",0,0,null,74981.400187103252,18507.38545036604,{"$f":"BG227*'Mexico-IO-Data'!AQ40","v":0},{"$f":"BJ227*'Mexico-IO-Data'!$AQ40","v":53136.406748064575},{"$f":"BK227*'Mexico-IO-Data'!$AQ40","v":13115.465417822499},{"$f":"BG227*'Mexico-IO-Data'!AQ40","v":0},{"$f":"BJ227*'Mexico-IO-Data'!$AR40","v":31322.091165211226},{"$f":"BK227*'Mexico-IO-Data'!$AR40","v":7731.1174885978617},{"$f":"(BO227*'Default-Data'!$F$19/geo_dollar_index)/'Mexico-IO-Data'!$AS40","v":0},{"$f":"(BP227*'Default-Data'!$F$19/geo_dollar_index)/'Mexico-IO-Data'!$AS40","v":2.6032726126153647},{"$f":"(BQ227*'Default-Data'!$F$19/geo_dollar_index)/'Mexico-IO-Data'!$AS40","v":0.6425562813421678},178.28969873637351,106.71842350908048,{"$f":"BH227*'Mexico-IO-Data'!AQ40","v":0},{"$f":"BU227*'Mexico-IO-Data'!$AQ40","v":126.34698641804376},{"$f":"BV227*'Mexico-IO-Data'!$AQ40","v":75.627202812172371},{"$f":"BH227*'Mexico-IO-Data'!AR40","v":0},{"$f":"BU227*'Mexico-IO-Data'!$AR40","v":74.477219466478431},{"$f":"BV227*'Mexico-IO-Data'!$AR40","v":44.579644842828259},{"$f":"(BZ227*'Default-Data'!$F$19/geo_dollar_index)/'Mexico-IO-Data'!$AS40","v":0},{"$f":"(CA227*'Default-Data'!$F$19/geo_dollar_index)/'Mexico-IO-Data'!$AS40","v":6.1900243083440921E-3},{"$f":"(CB227*'Default-Data'!$F$19/geo_dollar_index)/'Mexico-IO-Data'!$AS40","v":3.7051475231114884E-3},null,"TTL_C72: Computer and related activities",0,0,null,446420.49817266187,145683.149385817,{"$f":"CH227*'Philippines-IO-Data'!AN40","v":0},{"$f":"CK227*'Philippines-IO-Data'!$AN40","v":223062.41549143972},{"$f":"CL227*'Philippines-IO-Data'!$AN40","v":72793.331245806636},{"$f":"CH227*'Philippines-IO-Data'!AO40","v":0},{"$f":"CK227*'Philippines-IO-Data'!$AO40","v":77797.42931148714},{"$f":"CL227*'Philippines-IO-Data'!$AO40","v":25388.114037349511},{"$f":"(CP227*'Default-Data'!$F$19/geo_dollar_index)/'Philippines-IO-Data'!$AP40","v":0},{"$f":"(CQ227*'Default-Data'!$F$19/geo_dollar_index)/'Philippines-IO-Data'!$AP40","v":20.285725642234251},{"$f":"(CR227*'Default-Data'!$F$19/geo_dollar_index)/'Philippines-IO-Data'!$AP40","v":6.6199657301450676},3448.8588260324323,1293.8663823435581,{"$f":"CI227*'Philippines-IO-Data'!AN40","v":0},{"$f":"CV227*'Philippines-IO-Data'!$AN40","v":1723.2873122376639},{"$f":"CW227*'Philippines-IO-Data'!$AN40","v":646.50472312563488},{"$f":"CI227*'Philippines-IO-Data'!AO40","v":0},{"$f":"CV227*'Philippines-IO-Data'!$AO40","v":601.03053471299518},{"$f":"CW227*'Philippines-IO-Data'!$AO40","v":225.4813092833173},{"$f":"(DA227*'Default-Data'!$F$19/geo_dollar_index)/'Philippines-IO-Data'!$AP40","v":0},{"$f":"(DB227*'Default-Data'!$F$19/geo_dollar_index)/'Philippines-IO-Data'!$AP40","v":0.1567190669112882},{"$f":"(DC227*'Default-Data'!$F$19/geo_dollar_index)/'Philippines-IO-Data'!$AP40","v":5.8794384570979158E-2},null,"DOM_C72: Computer and related activities",0,0,null,49768.17617657331,19051.991990373193,{"$f":"DI227*'SouthAfrica-IO-Data'!AR40","v":0},{"$f":"DL227*'SouthAfrica-IO-Data'!$AR40","v":24865.853534240527},{"$f":"DM227*'SouthAfrica-IO-Data'!$AR40","v":9519.0155389126467},{"$f":"DI227*'SouthAfrica-IO-Data'!AS40","v":0},{"$f":"DL227*'SouthAfrica-IO-Data'!$AS40","v":18799.825221560972},{"$f":"DM227*'SouthAfrica-IO-Data'!$AS40","v":7196.8504184445883},{"$f":"(DQ227*'Default-Data'!$F$19/geo_dollar_index)/'SouthAfrica-IO-Data'!$AT40","v":0},{"$f":"(DR227*'Default-Data'!$F$19/geo_dollar_index)/'SouthAfrica-IO-Data'!$AT40","v":1.2026912846395155},{"$f":"(DS227*'Default-Data'!$F$19/geo_dollar_index)/'SouthAfrica-IO-Data'!$AT40","v":0.46040796513313925},163.51032577397399,170.35923775674388,{"$f":"DJ227*'SouthAfrica-IO-Data'!AR40","v":0},{"$f":"DW227*'SouthAfrica-IO-Data'!$AR40","v":81.695254365086427},{"$f":"DX227*'SouthAfrica-IO-Data'!$AR40","v":85.117200984714131},{"$f":"DJ227*'SouthAfrica-IO-Data'!$AS40","v":0},{"$f":"DZ227*'SouthAfrica-IO-Data'!$AS40","v":30.860212719981966},{"$f":"EA227*'SouthAfrica-IO-Data'!$AS40","v":32.152845950869661},{"$f":"(EB227*'Default-Data'!$F$19/geo_dollar_index)/'SouthAfrica-IO-Data'!$AT40","v":0},{"$f":"(EC227*'Default-Data'!$F$19/geo_dollar_index)/'SouthAfrica-IO-Data'!$AT40","v":1.9742369114090145E-3},{"$f":"(ED227*'Default-Data'!$F$19/geo_dollar_index)/'SouthAfrica-IO-Data'!$AT40","v":2.0569312291860271E-3},null,"LNONE",0,0,null,0,4498896.6719159819,{"$f":"EJ227*'Zambia-IO-Data'!BO38","v":0},{"$f":"EM227*'Zambia-IO-Data'!$BO38","v":0},{"$f":"EN227*'Zambia-IO-Data'!$BO38","v":0},{"$f":"EJ227*'Zambia-IO-Data'!BN38","v":0},{"$f":"EM227*'Zambia-IO-Data'!$BN38","v":0},{"$f":"EN227*'Zambia-IO-Data'!$BN38","v":0},0,0,0,0,5440.6506391620424,{"$f":"EK227*'Zambia-IO-Data'!BO38","v":0},{"$f":"EX227*'Zambia-IO-Data'!$BO38","v":0},{"$f":"EY227*'Zambia-IO-Data'!$BO38","v":0},{"$f":"EK227*'Zambia-IO-Data'!BN38","v":0},{"$f":"EX227*'Zambia-IO-Data'!$BN38","v":0},{"$f":"EY227*'Zambia-IO-Data'!$BN38","v":0},0,0,0,null,"TTL_C72: Computer and related activities",0,0,null,1327816.2294470817,474207.79493289231,{"$f":"FK227*CustomRegion1!C36","v":0},{"$f":"FN227*CustomRegion1!$C36","v":663468.40407549136},{"$f":"FO227*CustomRegion1!$C36","v":236946.86201816966},{"$f":"FK227*CustomRegion1!D36","v":0},{"$f":"FN227*CustomRegion1!$D36","v":231397.72853598034},{"$f":"FO227*CustomRegion1!$D36","v":82639.904655496168},{"$f":"(FS227*'Default-Data'!$C$58/geo_dollar_index)/CustomRegion1!$E36","v":0},{"$f":"(FT227*'Default-Data'!$C$58/geo_dollar_index)/CustomRegion1!$E36","v":60.337094385508117},{"$f":"(FU227*'Default-Data'!$C$58/geo_dollar_index)/CustomRegion1!$E36","v":21.548403948281393},11528.431185142726,4370.4431972310558,{"$f":"FL227*CustomRegion1!C36","v":0},{"$f":"FY227*CustomRegion1!$C36","v":5760.3979152188858},{"$f":"FZ227*CustomRegion1!$C36","v":2183.7743121854487},{"$f":"FL227*CustomRegion1!D36","v":0},{"$f":"FY227*CustomRegion1!$D36","v":2009.0527067410742},{"$f":"FZ227*CustomRegion1!$D36","v":761.63448382907291},{"$f":"(GD227*'Default-Data'!$C$58/geo_dollar_index)/CustomRegion1!$E36","v":0},{"$f":"(GE227*'Default-Data'!$C$58/geo_dollar_index)/CustomRegion1!$E36","v":0.52386167988355192},{"$f":"(GF227*'Default-Data'!$C$58/geo_dollar_index)/CustomRegion1!$E36","v":0.19859664150033762},null,"C70 Real estate activities",0,0,null,522861.88812946196,822191.22809559456,{"$f":"GL227*CustomRegion2!C40","v":0},{"$f":"GO227*CustomRegion2!$C40","v":468311.98848549864},{"$f":"GP227*CustomRegion2!$C40","v":736412.45936335041},{"$f":"GL227*CustomRegion2!D40","v":0},{"$f":"GO227*CustomRegion2!$D40","v":4609.5376093863124},{"$f":"GP227*CustomRegion2!$D40","v":7248.4177448323962},{"$f":"(GT227*'Default-Data'!$C$59/geo_dollar_index)/CustomRegion2!$E40","v":0},{"$f":"(GU227*'Default-Data'!$C$59/geo_dollar_index)/CustomRegion2!$E40","v":2.0267413543309902},{"$f":"(GV227*'Default-Data'!$C$59/geo_dollar_index)/CustomRegion2!$E40","v":3.187015540778769},1422.3344855288324,8507.7887900563546,{"$f":"GM227*CustomRegion2!C40","v":0},{"$f":"GZ227*CustomRegion2!$C40","v":1273.9430934476125},{"$f":"HA227*CustomRegion2!$C40","v":7620.1757602562211},{"$f":"GM227*CustomRegion2!D40","v":0},{"$f":"GZ227*CustomRegion2!$D40","v":12.53926601464004},{"$f":"HA227*CustomRegion2!$D40","v":75.004457756098319},{"$f":"(HE227*'Default-Data'!$C$59/geo_dollar_index)/CustomRegion2!$E40","v":0},{"$f":"(HF227*'Default-Data'!$C$59/geo_dollar_index)/CustomRegion2!$E40","v":5.5133185014215715E-3},{"$f":"(HG227*'Default-Data'!$C$59/geo_dollar_index)/CustomRegion2!$E40","v":3.2978283111067756E-2},null,"LNONE",0,0,null,0,4498896.6719159819,{"$f":"HM227*CustomRegion3!D39","v":0},{"$f":"HP227*CustomRegion3!$D39","v":0},{"$f":"HQ227*CustomRegion3!$D39","v":0},{"$f":"HM227*CustomRegion3!E39","v":0},{"$f":"HP227*CustomRegion3!E$12","v":0},{"$f":"HQ227*CustomRegion3!F$12","v":464611912.79904681},0,0,0,0,5440.6506391620424,{"$f":"HN227*CustomRegion3!D39","v":0},{"$f":"IA227*CustomRegion3!$D39","v":0},{"$f":"IB227*CustomRegion3!$D39","v":0},{"$f":"HN227*CustomRegion3!E39","v":0},{"$f":"IA227*CustomRegion3!$E39","v":0},{"$f":"IB227*CustomRegion3!$E39","v":0},0,0,0]
[null,null,null,null,null,null,null,null,null,null,null,null,null,null,null,null,null,null,null,null,null,null,null,null,null,null,null,null,null,227,"TTL_C73T74: R&D and other business activities",{"$f":"0.5*('Geothermal-Inputs'!B25*'Geothermal-Inputs'!C25+'Geothermal-Inputs'!B29*'Geothermal-Inputs'!C29)","v":27681668.869357347},0,null,3719846.492810972,1401918.3669596724,{"$f":"AF228*'Colombia-IO-Data'!AN41","v":20188729.899035979},{"$f":"AI228*'Colombia-IO-Data'!$AN41","v":2712949.7308729454},{"$f":"AJ228*'Colombia-IO-Data'!$AN41","v":1022443.8195768184},{"$f":"'Colombia-IO-Data'!$AO41*AK228","v":7570534.5885077175},{"$f":"'Colombia-IO-Data'!$AO41*AL228","v":1017324.0157835317},{"$f":"'Colombia-IO-Data'!$AO41*AM228","v":383404.3220956588},{"$f":"(AN228*'Default-Data'!$F$19/geo_dollar_index)/'Colombia-IO-Data'!$AP41","v":743.31034204637638},{"$f":"(AO228*'Default-Data'!$F$19/geo_dollar_index)/'Colombia-IO-Data'!$AP41","v":99.885609570024783},{"$f":"(AP228*'Default-Data'!$F$19/geo_dollar_index)/'Colombia-IO-Data'!$AP41","v":37.644421865742949},26096.969988629877,35309.683562880309,{"$f":"AG228*'Colombia-IO-Data'!AN41","v":0},{"$f":"AT228*'Colombia-IO-Data'!$AN41","v":19032.981023297973},{"$f":"AU228*'Colombia-IO-Data'!$AN41","v":25751.97570766876},{"$f":"AV228*'Colombia-IO-Data'!$AO41","v":0},{"$f":"AW228*'Colombia-IO-Data'!$AO41","v":7137.1424492715942},{"$f":"AX228*'Colombia-IO-Data'!$AO41","v":9656.6858733706722},{"$f":"(Calculations!AY228*'Default-Data'!$F$19/geo_dollar_index)/'Colombia-IO-Data'!$AP41","v":0},{"$f":"(Calculations!AZ228*'Default-Data'!$F$19/geo_dollar_index)/'Colombia-IO-Data'!$AP41","v":0.70075788349941481},{"$f":"(Calculations!BA228*'Default-Data'!$F$19/geo_dollar_index)/'Colombia-IO-Data'!$AP41","v":0.94813839044680404},null,"DOM_C73T74: R&D and other business activities",27681668.869357347,0,null,5372332.474759914,1423216.0269835517,{"$f":"BG228*'Mexico-IO-Data'!AQ41","v":20792965.803656876},{"$f":"BJ228*'Mexico-IO-Data'!$AQ41","v":4035404.2944720616},{"$f":"BK228*'Mexico-IO-Data'!$AQ41","v":1069042.5609795402},{"$f":"BG228*'Mexico-IO-Data'!AQ41","v":20792965.803656876},{"$f":"BJ228*'Mexico-IO-Data'!$AR41","v":1784957.3230652076},{"$f":"BK228*'Mexico-IO-Data'!$AR41","v":472863.48743365676},{"$f":"(BO228*'Default-Data'!$F$19/geo_dollar_index)/'Mexico-IO-Data'!$AS41","v":5579.3568721724669},{"$f":"(BP228*'Default-Data'!$F$19/geo_dollar_index)/'Mexico-IO-Data'!$AS41","v":478.95591235123152},{"$f":"(BQ228*'Default-Data'!$F$19/geo_dollar_index)/'Mexico-IO-Data'!$AS41","v":126.8830128960447},30629.547885799904,8206.6357303611658,{"$f":"BH228*'Mexico-IO-Data'!AQ41","v":0},{"$f":"BU228*'Mexico-IO-Data'!$AQ41","v":23007.252372558774},{"$f":"BV228*'Mexico-IO-Data'!$AQ41","v":6164.3789220151148},{"$f":"BH228*'Mexico-IO-Data'!AR41","v":0},{"$f":"BU228*'Mexico-IO-Data'!$AR41","v":10176.666477325245},{"$f":"BV228*'Mexico-IO-Data'!$AR41","v":2726.6545049953156},{"$f":"(BZ228*'Default-Data'!$F$19/geo_dollar_index)/'Mexico-IO-Data'!$AS41","v":0},{"$f":"(CA228*'Default-Data'!$F$19/geo_dollar_index)/'Mexico-IO-Data'!$AS41","v":2.7306953025472667},{"$f":"(CB228*'Default-Data'!$F$19/geo_dollar_index)/'Mexico-IO-Data'!$AS41","v":0.73164062761119497},null,"TTL_C73T74: R&D and other business activities",27681668.869357347,0,null,1568694.098915603,548019.03349188715,{"$f":"CH228*'Philippines-IO-Data'!AN41","v":13411763.006402336},{"$f":"CK228*'Philippines-IO-Data'!$AN41","v":760031.97579923831},{"$f":"CL228*'Philippines-IO-Data'!$AN41","v":265515.11163862457},{"$f":"CH228*'Philippines-IO-Data'!AO41","v":5248506.6986047076},{"$f":"CK228*'Philippines-IO-Data'!$AO41","v":297427.9305585582},{"$f":"CL228*'Philippines-IO-Data'!$AO41","v":103905.64173784305},{"$f":"(CP228*'Default-Data'!$F$19/geo_dollar_index)/'Philippines-IO-Data'!$AP41","v":1368.5512215710578},{"$f":"(CQ228*'Default-Data'!$F$19/geo_dollar_index)/'Philippines-IO-Data'!$AP41","v":77.554508562116879},{"$f":"(CR228*'Default-Data'!$F$19/geo_dollar_index)/'Philippines-IO-Data'!$AP41","v":27.0934574526223},14188.023650363139,4867.1614205822916,{"$f":"CI228*'Philippines-IO-Data'!AN41","v":0},{"$f":"CV228*'Philippines-IO-Data'!$AN41","v":6874.0946084555708},{"$f":"CW228*'Philippines-IO-Data'!$AN41","v":2358.1387305378053},{"$f":"CI228*'Philippines-IO-Data'!AO41","v":0},{"$f":"CV228*'Philippines-IO-Data'!$AO41","v":2690.0812057369917},{"$f":"CW228*'Philippines-IO-Data'!$AO41","v":922.82475596673157},{"$f":"(DA228*'Default-Data'!$F$19/geo_dollar_index)/'Philippines-IO-Data'!$AP41","v":0},{"$f":"(DB228*'Default-Data'!$F$19/geo_dollar_index)/'Philippines-IO-Data'!$AP41","v":0.70144026323057163},{"$f":"(DC228*'Default-Data'!$F$19/geo_dollar_index)/'Philippines-IO-Data'!$AP41","v":0.24062710016356248},null,"DOM_C73T74: R&D and other business activities",27681668.869357347,0,null,3331005.4065120853,3175396.7025093921,{"$f":"DI228*'SouthAfrica-IO-Data'!AR41","v":11793705.398382314},{"$f":"DL228*'SouthAfrica-IO-Data'!$AR41","v":1419166.4754833218},{"$f":"DM228*'SouthAfrica-IO-Data'!$AR41","v":1352869.7785214076},{"$f":"DI228*'SouthAfrica-IO-Data'!AS41","v":7613564.9993381752},{"$f":"DL228*'SouthAfrica-IO-Data'!$AS41","v":916159.58182709862},{"$f":"DM228*'SouthAfrica-IO-Data'!$AS41","v":873360.97066031524},{"$f":"(DQ228*'Default-Data'!$F$19/geo_dollar_index)/'SouthAfrica-IO-Data'!$AT41","v":487.06667013259522},{"$f":"(DR228*'Default-Data'!$F$19/geo_dollar_index)/'SouthAfrica-IO-Data'!$AT41","v":58.609967455375418},{"$f":"(DS228*'Default-Data'!$F$19/geo_dollar_index)/'SouthAfrica-IO-Data'!$AT41","v":55.871988988111134},19924.964777584715,28393.78486449712,{"$f":"DJ228*'SouthAfrica-IO-Data'!AR41","v":0},{"$f":"DW228*'SouthAfrica-IO-Data'!$AR41","v":8488.9811293170696},{"$f":"DX228*'SouthAfrica-IO-Data'!$AR41","v":12097.100627036723},{"$f":"DJ228*'SouthAfrica-IO-Data'!$AS41","v":0},{"$f":"DZ228*'SouthAfrica-IO-Data'!$AS41","v":2334.8089998199289},{"$f":"EA228*'SouthAfrica-IO-Data'!$AS41","v":3327.1860292148967},{"$f":"(EB228*'Default-Data'!$F$19/geo_dollar_index)/'SouthAfrica-IO-Data'!$AT41","v":0},{"$f":"(EC228*'Default-Data'!$F$19/geo_dollar_index)/'SouthAfrica-IO-Data'!$AT41","v":0.14936598624123679},{"$f":"(ED228*'Default-Data'!$F$19/geo_dollar_index)/'SouthAfrica-IO-Data'!$AT41","v":0.21285185327796663},null,"LPRIM",0,0,null,0,8035727.29851624,{"$f":"EJ228*'Zambia-IO-Data'!BO39","v":0},{"$f":"EM228*'Zambia-IO-Data'!$BO39","v":0},{"$f":"EN228*'Zambia-IO-Data'!$BO39","v":0},{"$f":"EJ228*'Zambia-IO-Data'!BN39","v":0},{"$f":"EM228*'Zambia-IO-Data'!$BN39","v":0},{"$f":"EN228*'Zambia-IO-Data'!$BN39","v":0},0,0,0,0,11493.198597432809,{"$f":"EK228*'Zambia-IO-Data'!BO39","v":0},{"$f":"EX228*'Zambia-IO-Data'!$BO39","v":0},{"$f":"EY228*'Zambia-IO-Data'!$BO39","v":0},{"$f":"EK228*'Zambia-IO-Data'!BN39","v":0},{"$f":"EX228*'Zambia-IO-Data'!$BN39","v":0},{"$f":"EY228*'Zambia-IO-Data'!$BN39","v":0},0,0,0,null,"TTL_C73T74: R&D and other business activities",27681668.869357347,0,null,2156031.8502172716,822573.1506507434,{"$f":"FK228*CustomRegion1!C37","v":13411763.006402336},{"$f":"FN228*CustomRegion1!$C37","v":1044596.998318205},{"$f":"FO228*CustomRegion1!$C37","v":398536.5262485916},{"$f":"FK228*CustomRegion1!D37","v":5248506.6986047076},{"$f":"FN228*CustomRegion1!$D37","v":408788.48965630162},{"$f":"FO228*CustomRegion1!$D37","v":155961.72007034905},{"$f":"(FS228*'Default-Data'!$C$58/geo_dollar_index)/CustomRegion1!$E37","v":1368.5512215710578},{"$f":"(FT228*'Default-Data'!$C$58/geo_dollar_index)/CustomRegion1!$E37","v":106.59184011940884},{"$f":"(FU228*'Default-Data'!$C$58/geo_dollar_index)/CustomRegion1!$E37","v":40.667110623549753},20766.097715447577,7581.0842185653382,{"$f":"FL228*CustomRegion1!C37","v":0},{"$f":"FY228*CustomRegion1!$C37","v":10061.170171559881},{"$f":"FZ228*CustomRegion1!$C37","v":3673.033780977225},{"$f":"FL228*CustomRegion1!D37","v":0},{"$f":"FY228*CustomRegion1!$D37","v":3937.298848482933},{"$f":"FZ228*CustomRegion1!$D37","v":1437.390624518021},{"$f":"(GD228*'Default-Data'!$C$58/geo_dollar_index)/CustomRegion1!$E37","v":0},{"$f":"(GE228*'Default-Data'!$C$58/geo_dollar_index)/CustomRegion1!$E37","v":1.0266530002170176},{"$f":"(GF228*'Default-Data'!$C$58/geo_dollar_index)/CustomRegion1!$E37","v":0.37480045430481773},null,"C71 Renting of machinery and equipment",27681668.869357347,0,null,311069.50273669139,49987.643199548125,{"$f":"GL228*CustomRegion2!C41","v":23510598.173766203},{"$f":"GO228*CustomRegion2!$C41","v":264197.58568282466},{"$f":"GP228*CustomRegion2!$C41","v":42455.51084599246},{"$f":"GL228*CustomRegion2!D41","v":1054065.8627562041},{"$f":"GO228*CustomRegion2!$D41","v":11844.941333802833},{"$f":"GP228*CustomRegion2!$D41","v":1903.4353927485674},{"$f":"(GT228*'Default-Data'!$C$59/geo_dollar_index)/CustomRegion2!$E41","v":463.45621953196087},{"$f":"(GU228*'Default-Data'!$C$59/geo_dollar_index)/CustomRegion2!$E41","v":5.2080348345479255},{"$f":"(GV228*'Default-Data'!$C$59/geo_dollar_index)/CustomRegion2!$E41","v":0.83691067362706129},5018.8378680023361,517.25717317556973,{"$f":"GM228*CustomRegion2!C41","v":0},{"$f":"GZ228*CustomRegion2!$C41","v":4262.5999527254571},{"$f":"HA228*CustomRegion2!$C41","v":439.31692154915032},{"$f":"GM228*CustomRegion2!D41","v":0},{"$f":"GZ228*CustomRegion2!$D41","v":191.10790221269656},{"$f":"HA228*CustomRegion2!$D41","v":19.696179846789708},{"$f":"(HE228*'Default-Data'!$C$59/geo_dollar_index)/CustomRegion2!$E41","v":0},{"$f":"(HF228*'Default-Data'!$C$59/geo_dollar_index)/CustomRegion2!$E41","v":8.4027145752148771E-2},{"$f":"(HG228*'Default-Data'!$C$59/geo_dollar_index)/CustomRegion2!$E41","v":8.6601012076662365E-3},null,"LPRIM",0,0,null,0,8035727.29851624,{"$f":"HM228*CustomRegion3!D40","v":0},{"$f":"HP228*CustomRegion3!$D40","v":0},{"$f":"HQ228*CustomRegion3!$D40","v":0},{"$f":"HM228*CustomRegion3!E40","v":0},{"$f":"HP228*CustomRegion3!E$12","v":0},{"$f":"HQ228*CustomRegion3!F$12","v":829868944.13494802},0,0,0,0,11493.198597432809,{"$f":"HN228*CustomRegion3!D40","v":0},{"$f":"IA228*CustomRegion3!$D40","v":0},{"$f":"IB228*CustomRegion3!$D40","v":0},{"$f":"HN228*CustomRegion3!E40","v":0},{"$f":"IA228*CustomRegion3!$E40","v":0},{"$f":"IB228*CustomRegion3!$E40","v":0},0,0,0]
[null,null,null,null,null,null,null,null,null,null,null,null,null,null,null,null,null,null,null,null,null,null,null,null,null,null,null,null,null,228,"TTL_C75: Public administration and defence; compulsory social security",{"$f":"'Geothermal-Inputs'!B31*'Geothermal-Inputs'!C31","v":149771.78765937407},0,null,2394.5215871924593,2779694.5958527829,{"$f":"AF229*'Colombia-IO-Data'!AN42","v":90688.831164137388},{"$f":"AI229*'Colombia-IO-Data'!$AN42","v":1449.9150162623278},{"$f":"AJ229*'Colombia-IO-Data'!$AN42","v":1683142.4517979322},{"$f":"'Colombia-IO-Data'!$AO42*AK229","v":76138.348055605034},{"$f":"'Colombia-IO-Data'!$AO42*AL229","v":1217.2847829456243},{"$f":"'Colombia-IO-Data'!$AO42*AM229","v":1413092.264803966},{"$f":"(AN229*'Default-Data'!$F$19/geo_dollar_index)/'Colombia-IO-Data'!$AP42","v":7.4756175900668547},{"$f":"(AO229*'Default-Data'!$F$19/geo_dollar_index)/'Colombia-IO-Data'!$AP42","v":0.1195186889117056},{"$f":"(AP229*'Default-Data'!$F$19/geo_dollar_index)/'Colombia-IO-Data'!$AP42","v":138.74397936032281},15.031877639496635,18281.808844846626,{"$f":"AG229*'Colombia-IO-Data'!AN42","v":0},{"$f":"AT229*'Colombia-IO-Data'!$AN42","v":9.1020040198001855},{"$f":"AU229*'Colombia-IO-Data'!$AN42","v":11069.881061151636},{"$f":"AV229*'Colombia-IO-Data'!$AO42","v":0},{"$f":"AW229*'Colombia-IO-Data'!$AO42","v":7.641641657160446},{"$f":"AX229*'Colombia-IO-Data'!$AO42","v":9293.7845415898701},{"$f":"(Calculations!AY229*'Default-Data'!$F$19/geo_dollar_index)/'Colombia-IO-Data'!$AP42","v":0},{"$f":"(Calculations!AZ229*'Default-Data'!$F$19/geo_dollar_index)/'Colombia-IO-Data'!$AP42","v":7.5029196519388959E-4},{"$f":"(Calculations!BA229*'Default-Data'!$F$19/geo_dollar_index)/'Colombia-IO-Data'!$AP42","v":0.91250704765305224},null,"DOM_C75: Public administration and defence; compulsory social security",149771.78765937407,0,null,1093.484168747731,1816627.2196117358,{"$f":"BG229*'Mexico-IO-Data'!AQ42","v":107328.6084479252},{"$f":"BJ229*'Mexico-IO-Data'!$AQ42","v":783.60641897689607},{"$f":"BK229*'Mexico-IO-Data'!$AQ42","v":1301821.0879140005},{"$f":"BG229*'Mexico-IO-Data'!AQ42","v":107328.6084479252},{"$f":"BJ229*'Mexico-IO-Data'!$AR42","v":772.50174780266241},{"$f":"BK229*'Mexico-IO-Data'!$AR42","v":1283372.6745793538},{"$f":"(BO229*'Default-Data'!$F$19/geo_dollar_index)/'Mexico-IO-Data'!$AS42","v":76.244793430142721},{"$f":"(BP229*'Default-Data'!$F$19/geo_dollar_index)/'Mexico-IO-Data'!$AS42","v":0.54877480512770782},{"$f":"(BQ229*'Default-Data'!$F$19/geo_dollar_index)/'Mexico-IO-Data'!$AS42","v":911.69060963525601},14.29892556050164,10475.147529648195,{"$f":"BH229*'Mexico-IO-Data'!AQ42","v":0},{"$f":"BU229*'Mexico-IO-Data'!$AQ42","v":10.246814882115453},{"$f":"BV229*'Mexico-IO-Data'!$AQ42","v":7506.6407713635526},{"$f":"BH229*'Mexico-IO-Data'!AR42","v":0},{"$f":"BU229*'Mexico-IO-Data'!$AR42","v":10.10160485435981},{"$f":"BV229*'Mexico-IO-Data'!$AR42","v":7400.2623964927552},{"$f":"(BZ229*'Default-Data'!$F$19/geo_dollar_index)/'Mexico-IO-Data'!$AS42","v":0},{"$f":"(CA229*'Default-Data'!$F$19/geo_dollar_index)/'Mexico-IO-Data'!$AS42","v":7.1760436156896763E-3},{"$f":"(CB229*'Default-Data'!$F$19/geo_dollar_index)/'Mexico-IO-Data'!$AS42","v":5.2570464288019041},null,"TTL_C75: Public administration and defence; compulsory social security",149771.78765937407,0,null,35160.382855735457,1876368.2816292171,{"$f":"CH229*'Philippines-IO-Data'!AN42","v":83425.576066045876},{"$f":"CK229*'Philippines-IO-Data'!$AN42","v":19584.964834055401},{"$f":"CL229*'Philippines-IO-Data'!$AN42","v":1045170.837935021},{"$f":"CH229*'Philippines-IO-Data'!AO42","v":70853.96174741791},{"$f":"CK229*'Philippines-IO-Data'!$AO42","v":16633.656183304051},{"$f":"CL229*'Philippines-IO-Data'!$AO42","v":887671.36006274237},{"$f":"(CP229*'Default-Data'!$F$19/geo_dollar_index)/'Philippines-IO-Data'!$AP42","v":18.475212373903631},{"$f":"(CQ229*'Default-Data'!$F$19/geo_dollar_index)/'Philippines-IO-Data'!$AP42","v":4.3372356740833444},{"$f":"(CR229*'Default-Data'!$F$19/geo_dollar_index)/'Philippines-IO-Data'!$AP42","v":231.4608314190518},39.390734858933115,16664.726502213765,{"$f":"CI229*'Philippines-IO-Data'!AN42","v":0},{"$f":"CV229*'Philippines-IO-Data'!$AN42","v":21.941346889343148},{"$f":"CW229*'Philippines-IO-Data'!$AN42","v":9282.5520090082864},{"$f":"CI229*'Philippines-IO-Data'!AO42","v":0},{"$f":"CV229*'Philippines-IO-Data'!$AO42","v":18.634948974803422},{"$f":"CW229*'Philippines-IO-Data'!$AO42","v":7883.7404064672191},{"$f":"(DA229*'Default-Data'!$F$19/geo_dollar_index)/'Philippines-IO-Data'!$AP42","v":0},{"$f":"(DB229*'Default-Data'!$F$19/geo_dollar_index)/'Philippines-IO-Data'!$AP42","v":4.8590739514844062E-3},{"$f":"(DC229*'Default-Data'!$F$19/geo_dollar_index)/'Philippines-IO-Data'!$AP42","v":2.0556899673364444},null,"DOM_C75: Public administration and defence; compulsory social security",149771.78765937407,0,null,14410.874890456471,8932065.8559182603,{"$f":"DI229*'SouthAfrica-IO-Data'!AR42","v":92706.103957710235},{"$f":"DL229*'SouthAfrica-IO-Data'!$AR42","v":8920.0782510162971},{"$f":"DM229*'SouthAfrica-IO-Data'!$AR42","v":5528791.7620314592},{"$f":"DI229*'SouthAfrica-IO-Data'!AS42","v":81769.302003591933},{"$f":"DL229*'SouthAfrica-IO-Data'!$AS42","v":7867.751326662903},{"$f":"DM229*'SouthAfrica-IO-Data'!$AS42","v":4876544.5208521485},{"$f":"(DQ229*'Default-Data'!$F$19/geo_dollar_index)/'SouthAfrica-IO-Data'!$AT42","v":5.0073895073198473},{"$f":"(DR229*'Default-Data'!$F$19/geo_dollar_index)/'SouthAfrica-IO-Data'!$AT42","v":0.48180545111664297},{"$f":"(DS229*'Default-Data'!$F$19/geo_dollar_index)/'SouthAfrica-IO-Data'!$AT42","v":298.62989248239501},51.17028643354864,79868.810126319324,{"$f":"DJ229*'SouthAfrica-IO-Data'!AR42","v":0},{"$f":"DW229*'SouthAfrica-IO-Data'!$AR42","v":31.673507860126424},{"$f":"DX229*'SouthAfrica-IO-Data'!$AR42","v":49437.389579597169},{"$f":"DJ229*'SouthAfrica-IO-Data'!$AS42","v":0},{"$f":"DZ229*'SouthAfrica-IO-Data'!$AS42","v":17.292446529503113},{"$f":"EA229*'SouthAfrica-IO-Data'!$AS42","v":26990.803154443725},{"$f":"(EB229*'Default-Data'!$F$19/geo_dollar_index)/'SouthAfrica-IO-Data'!$AT42","v":0},{"$f":"(EC229*'Default-Data'!$F$19/geo_dollar_index)/'SouthAfrica-IO-Data'!$AT42","v":1.0589550501962179E-3},{"$f":"(ED229*'Default-Data'!$F$19/geo_dollar_index)/'SouthAfrica-IO-Data'!$AT42","v":1.6528631307597559},null,"LSECD",0,0,null,0,3933176.7880751202,{"$f":"EJ229*'Zambia-IO-Data'!BO40","v":0},{"$f":"EM229*'Zambia-IO-Data'!$BO40","v":0},{"$f":"EN229*'Zambia-IO-Data'!$BO40","v":0},{"$f":"EJ229*'Zambia-IO-Data'!BN40","v":0},{"$f":"EM229*'Zambia-IO-Data'!$BN40","v":0},{"$f":"EN229*'Zambia-IO-Data'!$BN40","v":0},0,0,0,0,11748.210338238607,{"$f":"EK229*'Zambia-IO-Data'!BO40","v":0},{"$f":"EX229*'Zambia-IO-Data'!$BO40","v":0},{"$f":"EY229*'Zambia-IO-Data'!$BO40","v":0},{"$f":"EK229*'Zambia-IO-Data'!BN40","v":0},{"$f":"EX229*'Zambia-IO-Data'!$BN40","v":0},{"$f":"EY229*'Zambia-IO-Data'!$BN40","v":0},0,0,0,null,"TTL_C75: Public administration and defence; compulsory social security",149771.78765937407,0,null,44171.576038192841,2124383.6409930722,{"$f":"FK229*CustomRegion1!C38","v":83425.576066045876},{"$f":"FN229*CustomRegion1!$C38","v":24604.361304094666},{"$f":"FO229*CustomRegion1!$C38","v":1183319.8481826261},{"$f":"FK229*CustomRegion1!D38","v":70853.96174741791},{"$f":"FN229*CustomRegion1!$D38","v":20896.666907997547},{"$f":"FO229*CustomRegion1!$D38","v":1005002.3411491448},{"$f":"(FS229*'Default-Data'!$C$58/geo_dollar_index)/CustomRegion1!$E38","v":18.475212373903631},{"$f":"(FT229*'Default-Data'!$C$58/geo_dollar_index)/CustomRegion1!$E38","v":5.4488182383965018},{"$f":"(FU229*'Default-Data'!$C$58/geo_dollar_index)/CustomRegion1!$E38","v":262.05495403617914},112.61278741777795,19578.965447839211,{"$f":"FL229*CustomRegion1!C38","v":0},{"$f":"FY229*CustomRegion1!$C38","v":62.727345447046737},{"$f":"FZ229*CustomRegion1!$C38","v":10905.835449984776},{"$f":"FL229*CustomRegion1!D38","v":0},{"$f":"FY229*CustomRegion1!$D38","v":53.274800659494851},{"$f":"FZ229*CustomRegion1!$D38","v":9262.4070966571671},{"$f":"(GD229*'Default-Data'!$C$58/geo_dollar_index)/CustomRegion1!$E38","v":0},{"$f":"(GE229*'Default-Data'!$C$58/geo_dollar_index)/CustomRegion1!$E38","v":1.3891435737500131E-2},{"$f":"(GF229*'Default-Data'!$C$58/geo_dollar_index)/CustomRegion1!$E38","v":2.4151781210812744},null,"C72 Computer and related activities",149771.78765937407,0,null,7109.7229918511875,3988.4488530708768,{"$f":"GL229*CustomRegion2!C42","v":77488.360375836026},{"$f":"GO229*CustomRegion2!$C42","v":3678.4015599646236},{"$f":"GP229*CustomRegion2!$C42","v":2063.528565007432},{"$f":"GL229*CustomRegion2!D42","v":50762.162889318897},{"$f":"GO229*CustomRegion2!$D42","v":2409.6989309568212},{"$f":"GP229*CustomRegion2!$D42","v":1351.8052599850175},{"$f":"(GT229*'Default-Data'!$C$59/geo_dollar_index)/CustomRegion2!$E42","v":4.2189950763459114},{"$f":"(GU229*'Default-Data'!$C$59/geo_dollar_index)/CustomRegion2!$E42","v":0.20027728029141989},{"$f":"(GV229*'Default-Data'!$C$59/geo_dollar_index)/CustomRegion2!$E42","v":0.11235257545054966},43.892581773149438,41.271275200134092,{"$f":"GM229*CustomRegion2!C42","v":0},{"$f":"GZ229*CustomRegion2!$C42","v":22.708977754868776},{"$f":"HA229*CustomRegion2!$C42","v":21.352776085918158},{"$f":"GM229*CustomRegion2!D42","v":0},{"$f":"GZ229*CustomRegion2!$D42","v":14.876515934153691},{"$f":"HA229*CustomRegion2!$D42","v":13.988076306626024},{"$f":"(HE229*'Default-Data'!$C$59/geo_dollar_index)/CustomRegion2!$E42","v":0},{"$f":"(HF229*'Default-Data'!$C$59/geo_dollar_index)/CustomRegion2!$E42","v":1.2364317024123959E-3},{"$f":"(HG229*'Default-Data'!$C$59/geo_dollar_index)/CustomRegion2!$E42","v":1.1625908295886235E-3},null,"LSECD",0,0,null,0,3933176.7880751202,{"$f":"HM229*CustomRegion3!D41","v":0},{"$f":"HP229*CustomRegion3!$D41","v":0},{"$f":"HQ229*CustomRegion3!$D41","v":0},{"$f":"HM229*CustomRegion3!E41","v":0},{"$f":"HP229*CustomRegion3!E$12","v":0},{"$f":"HQ229*CustomRegion3!F$12","v":406188655.60789657},0,0,0,0,11748.210338238607,{"$f":"HN229*CustomRegion3!D41","v":0},{"$f":"IA229*CustomRegion3!$D41","v":0},{"$f":"IB229*CustomRegion3!$D41","v":0},{"$f":"HN229*CustomRegion3!E41","v":0},{"$f":"IA229*CustomRegion3!$E41","v":0},{"$f":"IB229*CustomRegion3!$E41","v":0},0,0,0]
[null,null,null,null,null,null,null,null,null,null,null,null,null,null,null,null,null,null,null,null,null,null,null,null,null,null,null,null,null,229,"TTL_C80: Education",0,0,null,57683.191578004422,1619191.603601581,{"$f":"AF230*'Colombia-IO-Data'!AN43","v":0},{"$f":"AI230*'Colombia-IO-Data'!$AN43","v":45475.445200573027},{"$f":"AJ230*'Colombia-IO-Data'!$AN43","v":1276514.9955206248},{"$f":"'Colombia-IO-Data'!$AO43*AK230","v":0},{"$f":"'Colombia-IO-Data'!$AO43*AL230","v":33478.78290215601},{"$f":"'Colombia-IO-Data'!$AO43*AM230","v":939763.60688477964},{"$f":"(AN230*'Default-Data'!$F$19/geo_dollar_index)/'Colombia-IO-Data'!$AP43","v":0},{"$f":"(AO230*'Default-Data'!$F$19/geo_dollar_index)/'Colombia-IO-Data'!$AP43","v":3.2871028167646545},{"$f":"(AP230*'Default-Data'!$F$19/geo_dollar_index)/'Colombia-IO-Data'!$AP43","v":92.27036742380902},569.12407449765794,11209.64981221471,{"$f":"AG230*'Colombia-IO-Data'!AN43","v":0},{"$f":"AT230*'Colombia-IO-Data'!$AN43","v":448.67785491976855},{"$f":"AU230*'Colombia-IO-Data'!$AN43","v":8837.3025452940656},{"$f":"AV230*'Colombia-IO-Data'!$AO43","v":0},{"$f":"AW230*'Colombia-IO-Data'!$AO43","v":330.3142702971208},{"$f":"AX230*'Colombia-IO-Data'!$AO43","v":6505.9755226067073},{"$f":"(Calculations!AY230*'Default-Data'!$F$19/geo_dollar_index)/'Colombia-IO-Data'!$AP43","v":0},{"$f":"(Calculations!AZ230*'Default-Data'!$F$19/geo_dollar_index)/'Colombia-IO-Data'!$AP43","v":3.2431793338619362E-2},{"$f":"(Calculations!BA230*'Default-Data'!$F$19/geo_dollar_index)/'Colombia-IO-Data'!$AP43","v":0.63878697528114659},null,"DOM_C80: Education",0,0,null,72253.98253892301,1631263.9418810771,{"$f":"BG230*'Mexico-IO-Data'!AQ43","v":0},{"$f":"BJ230*'Mexico-IO-Data'!$AQ43","v":64826.784417178817},{"$f":"BK230*'Mexico-IO-Data'!$AQ43","v":1463581.5517971609},{"$f":"BG230*'Mexico-IO-Data'!AQ43","v":0},{"$f":"BJ230*'Mexico-IO-Data'!$AR43","v":55905.299544768372},{"$f":"BK230*'Mexico-IO-Data'!$AR43","v":1262162.943866991},{"$f":"(BO230*'Default-Data'!$F$19/geo_dollar_index)/'Mexico-IO-Data'!$AS43","v":0},{"$f":"(BP230*'Default-Data'!$F$19/geo_dollar_index)/'Mexico-IO-Data'!$AS43","v":13.922614047276943},{"$f":"(BQ230*'Default-Data'!$F$19/geo_dollar_index)/'Mexico-IO-Data'!$AS43","v":314.32811692857541},586.60112494708744,9406.294404556962,{"$f":"BH230*'Mexico-IO-Data'!AQ43","v":0},{"$f":"BU230*'Mexico-IO-Data'!$AQ43","v":526.30268020636959},{"$f":"BV230*'Mexico-IO-Data'!$AQ43","v":8439.3939005402644},{"$f":"BH230*'Mexico-IO-Data'!AR43","v":0},{"$f":"BU230*'Mexico-IO-Data'!$AR43","v":453.87272024485196},{"$f":"BV230*'Mexico-IO-Data'!$AR43","v":7277.9615436388631},{"$f":"(BZ230*'Default-Data'!$F$19/geo_dollar_index)/'Mexico-IO-Data'!$AS43","v":0},{"$f":"(CA230*'Default-Data'!$F$19/geo_dollar_index)/'Mexico-IO-Data'!$AS43","v":0.11303212328728351},{"$f":"(CB230*'Default-Data'!$F$19/geo_dollar_index)/'Mexico-IO-Data'!$AS43","v":1.812498107480226},null,"TTL_C80: Education",0,0,null,195342.60303401086,1819563.6868415575,{"$f":"CH230*'Philippines-IO-Data'!AN43","v":0},{"$f":"CK230*'Philippines-IO-Data'!$AN43","v":132943.1373955649},{"$f":"CL230*'Philippines-IO-Data'!$AN43","v":1238329.486055027},{"$f":"CH230*'Philippines-IO-Data'!AO43","v":0},{"$f":"CK230*'Philippines-IO-Data'!$AO43","v":92471.943743165946},{"$f":"CL230*'Philippines-IO-Data'!$AO43","v":861351.22739930335},{"$f":"(CP230*'Default-Data'!$F$19/geo_dollar_index)/'Philippines-IO-Data'!$AP43","v":0},{"$f":"(CQ230*'Default-Data'!$F$19/geo_dollar_index)/'Philippines-IO-Data'!$AP43","v":24.112113947459253},{"$f":"(CR230*'Default-Data'!$F$19/geo_dollar_index)/'Philippines-IO-Data'!$AP43","v":224.59784128167851},164.47962992426304,16160.223710585098,{"$f":"CI230*'Philippines-IO-Data'!AN43","v":0},{"$f":"CV230*'Philippines-IO-Data'!$AN43","v":111.93890989558398},{"$f":"CW230*'Philippines-IO-Data'!$AN43","v":10998.066001635736},{"$f":"CI230*'Philippines-IO-Data'!AO43","v":0},{"$f":"CV230*'Philippines-IO-Data'!$AO43","v":77.861924890010073},{"$f":"CW230*'Philippines-IO-Data'!$AO43","v":7649.981492168502},{"$f":"(DA230*'Default-Data'!$F$19/geo_dollar_index)/'Philippines-IO-Data'!$AP43","v":0},{"$f":"(DB230*'Default-Data'!$F$19/geo_dollar_index)/'Philippines-IO-Data'!$AP43","v":2.0302542902426935E-2},{"$f":"(DC230*'Default-Data'!$F$19/geo_dollar_index)/'Philippines-IO-Data'!$AP43","v":1.9947371923687223},null,"DOM_C80: Education",0,0,null,13904.077379657296,499653.89735859208,{"$f":"DI230*'SouthAfrica-IO-Data'!AR43","v":0},{"$f":"DL230*'SouthAfrica-IO-Data'!$AR43","v":7093.0992308215691},{"$f":"DM230*'SouthAfrica-IO-Data'!$AR43","v":254896.06956708283},{"$f":"DI230*'SouthAfrica-IO-Data'!AS43","v":0},{"$f":"DL230*'SouthAfrica-IO-Data'!$AS43","v":3598.4172370129922},{"$f":"DM230*'SouthAfrica-IO-Data'!$AS43","v":129311.93834021901},{"$f":"(DQ230*'Default-Data'!$F$19/geo_dollar_index)/'SouthAfrica-IO-Data'!$AT43","v":0},{"$f":"(DR230*'Default-Data'!$F$19/geo_dollar_index)/'SouthAfrica-IO-Data'!$AT43","v":0.22035991838093733},{"$f":"(DS230*'Default-Data'!$F$19/geo_dollar_index)/'SouthAfrica-IO-Data'!$AT43","v":7.9188060476235922},54.474574393333867,4467.808780268585,{"$f":"DJ230*'SouthAfrica-IO-Data'!AR43","v":0},{"$f":"DW230*'SouthAfrica-IO-Data'!$AR43","v":27.789946155939226},{"$f":"DX230*'SouthAfrica-IO-Data'!$AR43","v":2279.2314914146468},{"$f":"DJ230*'SouthAfrica-IO-Data'!$AS43","v":0},{"$f":"DZ230*'SouthAfrica-IO-Data'!$AS43","v":7.1921220324551607},{"$f":"EA230*'SouthAfrica-IO-Data'!$AS43","v":589.87199667407538},{"$f":"(EB230*'Default-Data'!$F$19/geo_dollar_index)/'SouthAfrica-IO-Data'!$AT43","v":0},{"$f":"(EC230*'Default-Data'!$F$19/geo_dollar_index)/'SouthAfrica-IO-Data'!$AT43","v":4.4043125620783541E-4},{"$f":"(ED230*'Default-Data'!$F$19/geo_dollar_index)/'SouthAfrica-IO-Data'!$AT43","v":3.6122588482873717E-2},null,"LPOST",0,0,null,0,6589540.4608791759,{"$f":"EJ230*'Zambia-IO-Data'!BO41","v":0},{"$f":"EM230*'Zambia-IO-Data'!$BO41","v":0},{"$f":"EN230*'Zambia-IO-Data'!$BO41","v":0},{"$f":"EJ230*'Zambia-IO-Data'!BN41","v":0},{"$f":"EM230*'Zambia-IO-Data'!$BN41","v":0},{"$f":"EN230*'Zambia-IO-Data'!$BN41","v":0},0,0,0,0,8390.6387374406404,{"$f":"EK230*'Zambia-IO-Data'!BO41","v":0},{"$f":"EX230*'Zambia-IO-Data'!$BO41","v":0},{"$f":"EY230*'Zambia-IO-Data'!$BO41","v":0},{"$f":"EK230*'Zambia-IO-Data'!BN41","v":0},{"$f":"EX230*'Zambia-IO-Data'!$BN41","v":0},{"$f":"EY230*'Zambia-IO-Data'!$BN41","v":0},0,0,0,null,"TTL_C80: Education",0,0,null,208396.94890186607,2059808.3378094453,{"$f":"FK230*CustomRegion1!C39","v":0},{"$f":"FN230*CustomRegion1!$C39","v":141827.45484278013},{"$f":"FO230*CustomRegion1!$C39","v":1401831.3394454655},{"$f":"FK230*CustomRegion1!D39","v":0},{"$f":"FN230*CustomRegion1!$D39","v":98651.654251507862},{"$f":"FO230*CustomRegion1!$D39","v":975079.0548360612},{"$f":"(FS230*'Default-Data'!$C$58/geo_dollar_index)/CustomRegion1!$E39","v":0},{"$f":"(FT230*'Default-Data'!$C$58/geo_dollar_index)/CustomRegion1!$E39","v":25.723477112413423},{"$f":"(FU230*'Default-Data'!$C$58/geo_dollar_index)/CustomRegion1!$E39","v":254.25243945654111},287.49471166441373,18983.819822812206,{"$f":"FL230*CustomRegion1!C39","v":0},{"$f":"FY230*CustomRegion1!$C39","v":195.65854227224543},{"$f":"FZ230*CustomRegion1!$C39","v":12919.703780937953},{"$f":"FL230*CustomRegion1!D39","v":0},{"$f":"FY230*CustomRegion1!$D39","v":136.09522137298779},{"$f":"FZ230*CustomRegion1!$D39","v":8986.6249933192812},{"$f":"(GD230*'Default-Data'!$C$58/geo_dollar_index)/CustomRegion1!$E39","v":0},{"$f":"(GE230*'Default-Data'!$C$58/geo_dollar_index)/CustomRegion1!$E39","v":3.5486909354521853E-2},{"$f":"(GF230*'Default-Data'!$C$58/geo_dollar_index)/CustomRegion1!$E39","v":2.3432677747515585},null,"C73 Research and development",0,0,null,0,0,{"$f":"GL230*CustomRegion2!C43","v":0},{"$f":"GO230*CustomRegion2!$C43","v":0},{"$f":"GP230*CustomRegion2!$C43","v":0},{"$f":"GL230*CustomRegion2!D43","v":0},{"$f":"GO230*CustomRegion2!$D43","v":0},{"$f":"GP230*CustomRegion2!$D43","v":0},{"$f":"(GT230*'Default-Data'!$C$59/geo_dollar_index)/CustomRegion2!$E43","v":0},{"$f":"(GU230*'Default-Data'!$C$59/geo_dollar_index)/CustomRegion2!$E43","v":0},{"$f":"(GV230*'Default-Data'!$C$59/geo_dollar_index)/CustomRegion2!$E43","v":0},0,0,{"$f":"GM230*CustomRegion2!C43","v":0},{"$f":"GZ230*CustomRegion2!$C43","v":0},{"$f":"HA230*CustomRegion2!$C43","v":0},{"$f":"GM230*CustomRegion2!D43","v":0},{"$f":"GZ230*CustomRegion2!$D43","v":0},{"$f":"HA230*CustomRegion2!$D43","v":0},{"$f":"(HE230*'Default-Data'!$C$59/geo_dollar_index)/CustomRegion2!$E43","v":0},{"$f":"(HF230*'Default-Data'!$C$59/geo_dollar_index)/CustomRegion2!$E43","v":0},{"$f":"(HG230*'Default-Data'!$C$59/geo_dollar_index)/CustomRegion2!$E43","v":0},null,"LPOST",0,0,null,0,6589540.4608791759,{"$f":"HM230*CustomRegion3!D42","v":0},{"$f":"HP230*CustomRegion3!$D42","v":0},{"$f":"HQ230*CustomRegion3!$D42","v":0},{"$f":"HM230*CustomRegion3!E42","v":0},{"$f":"HP230*CustomRegion3!E$12","v":0},{"$f":"HQ230*CustomRegion3!F$12","v":680517740.517905},0,0,0,0,8390.6387374406404,{"$f":"HN230*CustomRegion3!D42","v":0},{"$f":"IA230*CustomRegion3!$D42","v":0},{"$f":"IB230*CustomRegion3!$D42","v":0},{"$f":"HN230*CustomRegion3!E42","v":0},{"$f":"IA230*CustomRegion3!$E42","v":0},{"$f":"IB230*CustomRegion3!$E42","v":0},0,0,0]
[null,null,null,null,null,null,null,null,null,null,null,null,null,null,null,null,null,null,null,null,null,null,null,null,null,null,null,null,null,230,"TTL_C85: Health and social work",0,0,null,1630.8131982054861,1527166.7762440459,{"$f":"AF231*'Colombia-IO-Data'!AN44","v":0},{"$f":"AI231*'Colombia-IO-Data'!$AN44","v":646.90832481212556},{"$f":"AJ231*'Colombia-IO-Data'!$AN44","v":605794.03086501616},{"$f":"'Colombia-IO-Data'!$AO44*AK231","v":0},{"$f":"'Colombia-IO-Data'!$AO44*AL231","v":480.36733082517958},{"$f":"'Colombia-IO-Data'!$AO44*AM231","v":449837.55885498499},{"$f":"(AN231*'Default-Data'!$F$19/geo_dollar_index)/'Colombia-IO-Data'!$AP44","v":0},{"$f":"(AO231*'Default-Data'!$F$19/geo_dollar_index)/'Colombia-IO-Data'!$AP44","v":4.7164701621679288E-2},{"$f":"(AP231*'Default-Data'!$F$19/geo_dollar_index)/'Colombia-IO-Data'!$AP44","v":44.16714643182361},5.136413876266726,10040.920537426846,{"$f":"AG231*'Colombia-IO-Data'!AN44","v":0},{"$f":"AT231*'Colombia-IO-Data'!$AN44","v":2.0375042953379294},{"$f":"AU231*'Colombia-IO-Data'!$AN44","v":3983.0160140879689},{"$f":"AV231*'Colombia-IO-Data'!$AO44","v":0},{"$f":"AW231*'Colombia-IO-Data'!$AO44","v":1.5129663081404421},{"$f":"AX231*'Colombia-IO-Data'!$AO44","v":2957.6227387041977},{"$f":"(Calculations!AY231*'Default-Data'!$F$19/geo_dollar_index)/'Colombia-IO-Data'!$AP44","v":0},{"$f":"(Calculations!AZ231*'Default-Data'!$F$19/geo_dollar_index)/'Colombia-IO-Data'!$AP44","v":1.4855007805072241E-4},{"$f":"(Calculations!BA231*'Default-Data'!$F$19/geo_dollar_index)/'Colombia-IO-Data'!$AP44","v":0.29039317420035804},null,"DOM_C85: Health and social work",0,0,null,0,1186803.8541124708,{"$f":"BG231*'Mexico-IO-Data'!AQ44","v":0},{"$f":"BJ231*'Mexico-IO-Data'!$AQ44","v":0},{"$f":"BK231*'Mexico-IO-Data'!$AQ44","v":886261.84702358861},{"$f":"BG231*'Mexico-IO-Data'!AQ44","v":0},{"$f":"BJ231*'Mexico-IO-Data'!$AR44","v":0},{"$f":"BK231*'Mexico-IO-Data'!$AR44","v":622635.42612328136},{"$f":"(BO231*'Default-Data'!$F$19/geo_dollar_index)/'Mexico-IO-Data'!$AS44","v":0},{"$f":"(BP231*'Default-Data'!$F$19/geo_dollar_index)/'Mexico-IO-Data'!$AS44","v":0},{"$f":"(BQ231*'Default-Data'!$F$19/geo_dollar_index)/'Mexico-IO-Data'!$AS44","v":280.76662090794514},0,6843.4213284772122,{"$f":"BH231*'Mexico-IO-Data'!AQ44","v":0},{"$f":"BU231*'Mexico-IO-Data'!$AQ44","v":0},{"$f":"BV231*'Mexico-IO-Data'!$AQ44","v":5110.4175348945764},{"$f":"BH231*'Mexico-IO-Data'!AR44","v":0},{"$f":"BU231*'Mexico-IO-Data'!$AR44","v":0},{"$f":"BV231*'Mexico-IO-Data'!$AR44","v":3590.278663346639},{"$f":"(BZ231*'Default-Data'!$F$19/geo_dollar_index)/'Mexico-IO-Data'!$AS44","v":0},{"$f":"(CA231*'Default-Data'!$F$19/geo_dollar_index)/'Mexico-IO-Data'!$AS44","v":0},{"$f":"(CB231*'Default-Data'!$F$19/geo_dollar_index)/'Mexico-IO-Data'!$AS44","v":1.618973746325415},null,"TTL_C85: Health and social work",0,0,null,532597.62461752701,817643.64173102775,{"$f":"CH231*'Philippines-IO-Data'!AN44","v":0},{"$f":"CK231*'Philippines-IO-Data'!$AN44","v":275993.98565085774},{"$f":"CL231*'Philippines-IO-Data'!$AN44","v":423705.84676468349},{"$f":"CH231*'Philippines-IO-Data'!AO44","v":0},{"$f":"CK231*'Philippines-IO-Data'!$AO44","v":176197.39114705272},{"$f":"CL231*'Philippines-IO-Data'!$AO44","v":270498.15827556641},{"$f":"(CP231*'Default-Data'!$F$19/geo_dollar_index)/'Philippines-IO-Data'!$AP44","v":0},{"$f":"(CQ231*'Default-Data'!$F$19/geo_dollar_index)/'Philippines-IO-Data'!$AP44","v":45.943573808534389},{"$f":"(CR231*'Default-Data'!$F$19/geo_dollar_index)/'Philippines-IO-Data'!$AP44","v":70.532554533875569},751.50678439255307,7261.7981230692039,{"$f":"CI231*'Philippines-IO-Data'!AN44","v":0},{"$f":"CV231*'Philippines-IO-Data'!$AN44","v":389.43349177929269},{"$f":"CW231*'Philippines-IO-Data'!$AN44","v":3763.0896465545966},{"$f":"CI231*'Philippines-IO-Data'!AO44","v":0},{"$f":"CV231*'Philippines-IO-Data'!$AO44","v":248.61833534155977},{"$f":"CW231*'Philippines-IO-Data'!$AO44","v":2402.3950261517016},{"$f":"(DA231*'Default-Data'!$F$19/geo_dollar_index)/'Philippines-IO-Data'!$AP44","v":0},{"$f":"(DB231*'Default-Data'!$F$19/geo_dollar_index)/'Philippines-IO-Data'!$AP44","v":6.4827377781018672E-2},{"$f":"(DC231*'Default-Data'!$F$19/geo_dollar_index)/'Philippines-IO-Data'!$AP44","v":0.62642592198847558},null,"DOM_C85: Health and social work",0,0,null,321631.01509742852,1465054.6747880192,{"$f":"DI231*'SouthAfrica-IO-Data'!AR44","v":0},{"$f":"DL231*'SouthAfrica-IO-Data'!$AR44","v":148603.92594423523},{"$f":"DM231*'SouthAfrica-IO-Data'!$AR44","v":676902.61876798421},{"$f":"DI231*'SouthAfrica-IO-Data'!AS44","v":0},{"$f":"DL231*'SouthAfrica-IO-Data'!$AS44","v":65577.62547702578},{"$f":"DM231*'SouthAfrica-IO-Data'!$AS44","v":298711.26308360387},{"$f":"(DQ231*'Default-Data'!$F$19/geo_dollar_index)/'SouthAfrica-IO-Data'!$AT44","v":0},{"$f":"(DR231*'Default-Data'!$F$19/geo_dollar_index)/'SouthAfrica-IO-Data'!$AT44","v":4.0158434239072376},{"$f":"(DS231*'Default-Data'!$F$19/geo_dollar_index)/'SouthAfrica-IO-Data'!$AT44","v":18.292483949751595},378.64935343428976,13100.236331978029,{"$f":"DJ231*'SouthAfrica-IO-Data'!AR44","v":0},{"$f":"DW231*'SouthAfrica-IO-Data'!$AR44","v":174.94824141737948},{"$f":"DX231*'SouthAfrica-IO-Data'!$AR44","v":6052.7326605599092},{"$f":"DJ231*'SouthAfrica-IO-Data'!$AS44","v":0},{"$f":"DZ231*'SouthAfrica-IO-Data'!$AS44","v":35.670348054144881},{"$f":"EA231*'SouthAfrica-IO-Data'!$AS44","v":1234.0968902098057},{"$f":"(EB231*'Default-Data'!$F$19/geo_dollar_index)/'SouthAfrica-IO-Data'!$AT44","v":0},{"$f":"(EC231*'Default-Data'!$F$19/geo_dollar_index)/'SouthAfrica-IO-Data'!$AT44","v":2.1843812065428397E-3},{"$f":"(ED231*'Default-Data'!$F$19/geo_dollar_index)/'SouthAfrica-IO-Data'!$AT44","v":7.5573640322638191E-2},null,"HRRS",0,0,null,0,3267626.4804912298,{"$f":"EJ231*'Zambia-IO-Data'!BO42","v":0},{"$f":"EM231*'Zambia-IO-Data'!$BO42","v":0},{"$f":"EN231*'Zambia-IO-Data'!$BO42","v":0},{"$f":"EJ231*'Zambia-IO-Data'!BN42","v":0},{"$f":"EM231*'Zambia-IO-Data'!$BN42","v":0},{"$f":"EN231*'Zambia-IO-Data'!$BN42","v":0},0,0,0,0,4553.6333174292085,{"$f":"EK231*'Zambia-IO-Data'!BO42","v":0},{"$f":"EX231*'Zambia-IO-Data'!$BO42","v":0},{"$f":"EY231*'Zambia-IO-Data'!$BO42","v":0},{"$f":"EK231*'Zambia-IO-Data'!BN42","v":0},{"$f":"EX231*'Zambia-IO-Data'!$BN42","v":0},{"$f":"EY231*'Zambia-IO-Data'!$BN42","v":0},0,0,0,null,"TTL_C85: Health and social work",0,0,null,564728.3717754879,936392.49108175258,{"$f":"FK231*CustomRegion1!C40","v":0},{"$f":"FN231*CustomRegion1!$C40","v":292644.25324533653},{"$f":"FO231*CustomRegion1!$C40","v":485241.92336152465},{"$f":"FK231*CustomRegion1!D40","v":0},{"$f":"FN231*CustomRegion1!$D40","v":186827.09275134333},{"$f":"FO231*CustomRegion1!$D40","v":309783.42071423703},{"$f":"(FS231*'Default-Data'!$C$58/geo_dollar_index)/CustomRegion1!$E40","v":0},{"$f":"(FT231*'Default-Data'!$C$58/geo_dollar_index)/CustomRegion1!$E40","v":48.715274780042151},{"$f":"(FU231*'Default-Data'!$C$58/geo_dollar_index)/CustomRegion1!$E40","v":80.776209917696491},1088.1553524900401,8630.0778610474663,{"$f":"FL231*CustomRegion1!C40","v":0},{"$f":"FY231*CustomRegion1!$C40","v":563.88597856911451},{"$f":"FZ231*CustomRegion1!$C40","v":4472.1370792034431},{"$f":"FL231*CustomRegion1!D40","v":0},{"$f":"FY231*CustomRegion1!$D40","v":359.99059216445681},{"$f":"FZ231*CustomRegion1!$D40","v":2855.058179436086},{"$f":"(GD231*'Default-Data'!$C$58/geo_dollar_index)/CustomRegion1!$E40","v":0},{"$f":"(GE231*'Default-Data'!$C$58/geo_dollar_index)/CustomRegion1!$E40","v":9.3867759527053438E-2},{"$f":"(GF231*'Default-Data'!$C$58/geo_dollar_index)/CustomRegion1!$E40","v":0.74445810656246902},null,"C74 Other Business Activities",0,0,null,1574725.8600505721,527776.00330792973,{"$f":"GL231*CustomRegion2!C44","v":0},{"$f":"GO231*CustomRegion2!$C44","v":1123904.0285761892},{"$f":"GP231*CustomRegion2!$C44","v":376681.16803808179},{"$f":"GL231*CustomRegion2!D44","v":0},{"$f":"GO231*CustomRegion2!$D44","v":443426.55567698367},{"$f":"GP231*CustomRegion2!$D44","v":148616.27744417926},{"$f":"(GT231*'Default-Data'!$C$59/geo_dollar_index)/CustomRegion2!$E44","v":0},{"$f":"(GU231*'Default-Data'!$C$59/geo_dollar_index)/CustomRegion2!$E44","v":118.98422880515849},{"$f":"(GV231*'Default-Data'!$C$59/geo_dollar_index)/CustomRegion2!$E44","v":39.878065337319143},10335.569231559733,5461.2681468329665,{"$f":"GM231*CustomRegion2!C44","v":0},{"$f":"GZ231*CustomRegion2!$C44","v":7376.6413517874407},{"$f":"HA231*CustomRegion2!$C44","v":3897.7840061401362},{"$f":"GM231*CustomRegion2!D44","v":0},{"$f":"GZ231*CustomRegion2!$D44","v":2910.3896631026032},{"$f":"HA231*CustomRegion2!$D44","v":1537.8367660138599},{"$f":"(HE231*'Default-Data'!$C$59/geo_dollar_index)/CustomRegion2!$E44","v":0},{"$f":"(HF231*'Default-Data'!$C$59/geo_dollar_index)/CustomRegion2!$E44","v":0.78094210902205274},{"$f":"(HG231*'Default-Data'!$C$59/geo_dollar_index)/CustomRegion2!$E44","v":0.41264628671826675},null,"HRRS",0,0,null,0,3267626.4804912298,{"$f":"HM231*CustomRegion3!D43","v":0},{"$f":"HP231*CustomRegion3!$D43","v":0},{"$f":"HQ231*CustomRegion3!$D43","v":0},{"$f":"HM231*CustomRegion3!E43","v":0},{"$f":"HP231*CustomRegion3!E$12","v":0},{"$f":"HQ231*CustomRegion3!F$12","v":337455669.71807969},0,0,0,0,4553.6333174292085,{"$f":"HN231*CustomRegion3!D43","v":0},{"$f":"IA231*CustomRegion3!$D43","v":0},{"$f":"IB231*CustomRegion3!$D43","v":0},{"$f":"HN231*CustomRegion3!E43","v":0},{"$f":"IA231*CustomRegion3!$E43","v":0},{"$f":"IB231*CustomRegion3!$E43","v":0},0,0,0]
[null,null,null,null,null,null,null,null,null,null,null,null,null,null,null,null,null,null,null,null,null,null,null,null,null,null,null,null,null,231,"TTL_C90T93: Other community, social and personal services",0,0,null,463716.72387137444,1144368.2724541251,{"$f":"AF232*'Colombia-IO-Data'!AN45","v":0},{"$f":"AI232*'Colombia-IO-Data'!$AN45","v":265283.50816526456},{"$f":"AJ232*'Colombia-IO-Data'!$AN45","v":654671.29892399791},{"$f":"'Colombia-IO-Data'!$AO45*AK232","v":0},{"$f":"'Colombia-IO-Data'!$AO45*AL232","v":101321.47398560942},{"$f":"'Colombia-IO-Data'!$AO45*AM232","v":250042.91236125299},{"$f":"(AN232*'Default-Data'!$F$19/geo_dollar_index)/'Colombia-IO-Data'!$AP45","v":0},{"$f":"(AO232*'Default-Data'!$F$19/geo_dollar_index)/'Colombia-IO-Data'!$AP45","v":21.314675902946011},{"$f":"(AP232*'Default-Data'!$F$19/geo_dollar_index)/'Colombia-IO-Data'!$AP45","v":52.600731406313692},1222.931114120302,8743.1529516040391,{"$f":"AG232*'Colombia-IO-Data'!AN45","v":0},{"$f":"AT232*'Colombia-IO-Data'!$AN45","v":699.61560473777013},{"$f":"AU232*'Colombia-IO-Data'!$AN45","v":5001.7913265305588},{"$f":"AV232*'Colombia-IO-Data'!$AO45","v":0},{"$f":"AW232*'Colombia-IO-Data'!$AO45","v":267.2087865002307},{"$f":"AX232*'Colombia-IO-Data'!$AO45","v":1910.3670381831535},{"$f":"(Calculations!AY232*'Default-Data'!$F$19/geo_dollar_index)/'Colombia-IO-Data'!$AP45","v":0},{"$f":"(Calculations!AZ232*'Default-Data'!$F$19/geo_dollar_index)/'Colombia-IO-Data'!$AP45","v":5.6211861697559137E-2},{"$f":"(Calculations!BA232*'Default-Data'!$F$19/geo_dollar_index)/'Colombia-IO-Data'!$AP45","v":0.40187783174500663},null,"DOM_C90T93: Other community, social and personal services",0,0,null,99354.817436962607,517071.19945140788,{"$f":"BG232*'Mexico-IO-Data'!AQ45","v":0},{"$f":"BJ232*'Mexico-IO-Data'!$AQ45","v":63566.64546989213},{"$f":"BK232*'Mexico-IO-Data'!$AQ45","v":330819.20400159265},{"$f":"BG232*'Mexico-IO-Data'!AQ45","v":0},{"$f":"BJ232*'Mexico-IO-Data'!$AR45","v":11156.806489492968},{"$f":"BK232*'Mexico-IO-Data'!$AR45","v":58063.247081396294},{"$f":"(BO232*'Default-Data'!$F$19/geo_dollar_index)/'Mexico-IO-Data'!$AS45","v":0},{"$f":"(BP232*'Default-Data'!$F$19/geo_dollar_index)/'Mexico-IO-Data'!$AS45","v":7.9256446014968471},{"$f":"(BQ232*'Default-Data'!$F$19/geo_dollar_index)/'Mexico-IO-Data'!$AS45","v":41.247346291201993},448.29303908304621,2981.5677311844315,{"$f":"BH232*'Mexico-IO-Data'!AQ45","v":0},{"$f":"BU232*'Mexico-IO-Data'!$AQ45","v":286.8153293129705},{"$f":"BV232*'Mexico-IO-Data'!$AQ45","v":1907.5900273574646},{"$f":"BH232*'Mexico-IO-Data'!AR45","v":0},{"$f":"BU232*'Mexico-IO-Data'!$AR45","v":50.339971595333623},{"$f":"BV232*'Mexico-IO-Data'!$AR45","v":334.80786408013591},{"$f":"(BZ232*'Default-Data'!$F$19/geo_dollar_index)/'Mexico-IO-Data'!$AS45","v":0},{"$f":"(CA232*'Default-Data'!$F$19/geo_dollar_index)/'Mexico-IO-Data'!$AS45","v":3.576083572748176E-2},{"$f":"(CB232*'Default-Data'!$F$19/geo_dollar_index)/'Mexico-IO-Data'!$AS45","v":0.23784298338278459},null,"TTL_C90T93: Other community, social and personal services",0,0,null,1417310.7508653633,1051606.0729779627,{"$f":"CH232*'Philippines-IO-Data'!AN45","v":0},{"$f":"CK232*'Philippines-IO-Data'!$AN45","v":690742.1357233657},{"$f":"CL232*'Philippines-IO-Data'!$AN45","v":512511.89927470073},{"$f":"CH232*'Philippines-IO-Data'!AO45","v":0},{"$f":"CK232*'Philippines-IO-Data'!$AO45","v":593694.24542568461},{"$f":"CL232*'Philippines-IO-Data'!$AO45","v":440505.0011795382},{"$f":"(CP232*'Default-Data'!$F$19/geo_dollar_index)/'Philippines-IO-Data'!$AP45","v":0},{"$f":"(CQ232*'Default-Data'!$F$19/geo_dollar_index)/'Philippines-IO-Data'!$AP45","v":352.66056603332964},{"$f":"(CR232*'Default-Data'!$F$19/geo_dollar_index)/'Philippines-IO-Data'!$AP45","v":261.66455924648881},1587.8357249157762,9339.7057314507492,{"$f":"CI232*'Philippines-IO-Data'!AN45","v":0},{"$f":"CV232*'Philippines-IO-Data'!$AN45","v":773.84937575370896},{"$f":"CW232*'Philippines-IO-Data'!$AN45","v":4551.8093191850003},{"$f":"CI232*'Philippines-IO-Data'!AO45","v":0},{"$f":"CV232*'Philippines-IO-Data'!$AO45","v":665.12508424016528},{"$f":"CW232*'Philippines-IO-Data'!$AO45","v":3912.2892021711141},{"$f":"(DA232*'Default-Data'!$F$19/geo_dollar_index)/'Philippines-IO-Data'!$AP45","v":0},{"$f":"(DB232*'Default-Data'!$F$19/geo_dollar_index)/'Philippines-IO-Data'!$AP45","v":0.39509122835259841},{"$f":"(DC232*'Default-Data'!$F$19/geo_dollar_index)/'Philippines-IO-Data'!$AP45","v":2.3239405386765761},null,"DOM_C90T93: Other community, social and personal services",0,0,null,2609936.4590651141,3061334.2399121411,{"$f":"DI232*'SouthAfrica-IO-Data'!AR45","v":0},{"$f":"DL232*'SouthAfrica-IO-Data'!$AR45","v":1836841.102442764},{"$f":"DM232*'SouthAfrica-IO-Data'!$AR45","v":2154529.2953991061},{"$f":"DI232*'SouthAfrica-IO-Data'!AS45","v":0},{"$f":"DL232*'SouthAfrica-IO-Data'!$AS45","v":1021488.3725561961},{"$f":"DM232*'SouthAfrica-IO-Data'!$AS45","v":1198158.4148215447},{"$f":"(DQ232*'Default-Data'!$F$19/geo_dollar_index)/'SouthAfrica-IO-Data'!$AT45","v":0},{"$f":"(DR232*'Default-Data'!$F$19/geo_dollar_index)/'SouthAfrica-IO-Data'!$AT45","v":62.553917341283338},{"$f":"(DS232*'Default-Data'!$F$19/geo_dollar_index)/'SouthAfrica-IO-Data'!$AT45","v":73.372839531158462},13285.55027331541,27373.860323559671,{"$f":"DJ232*'SouthAfrica-IO-Data'!AR45","v":0},{"$f":"DW232*'SouthAfrica-IO-Data'!$AR45","v":9350.2064871482798},{"$f":"DX232*'SouthAfrica-IO-Data'!$AR45","v":19265.385408215079},{"$f":"DJ232*'SouthAfrica-IO-Data'!$AS45","v":0},{"$f":"DZ232*'SouthAfrica-IO-Data'!$AS45","v":3659.5248035435779},{"$f":"EA232*'SouthAfrica-IO-Data'!$AS45","v":7540.1709949500864},{"$f":"(EB232*'Default-Data'!$F$19/geo_dollar_index)/'SouthAfrica-IO-Data'!$AT45","v":0},{"$f":"(EC232*'Default-Data'!$F$19/geo_dollar_index)/'SouthAfrica-IO-Data'!$AT45","v":0.22410202428089554},{"$f":"(ED232*'Default-Data'!$F$19/geo_dollar_index)/'SouthAfrica-IO-Data'!$AT45","v":0.46174508279221899},null,"HRRM",0,0,null,0,228774.6227757172,{"$f":"EJ232*'Zambia-IO-Data'!BO43","v":0},{"$f":"EM232*'Zambia-IO-Data'!$BO43","v":0},{"$f":"EN232*'Zambia-IO-Data'!$BO43","v":0},{"$f":"EJ232*'Zambia-IO-Data'!BN43","v":0},{"$f":"EM232*'Zambia-IO-Data'!$BN43","v":0},{"$f":"EN232*'Zambia-IO-Data'!$BN43","v":0},0,0,0,0,331.33977638641744,{"$f":"EK232*'Zambia-IO-Data'!BO43","v":0},{"$f":"EX232*'Zambia-IO-Data'!$BO43","v":0},{"$f":"EY232*'Zambia-IO-Data'!$BO43","v":0},{"$f":"EK232*'Zambia-IO-Data'!BN43","v":0},{"$f":"EX232*'Zambia-IO-Data'!$BN43","v":0},{"$f":"EY232*'Zambia-IO-Data'!$BN43","v":0},0,0,0,null,"TTL_C90T93: Other community, social and personal services",0,0,null,1562115.0468794852,1262162.6696282239,{"$f":"FK232*CustomRegion1!C41","v":0},{"$f":"FN232*CustomRegion1!$C41","v":761314.11764733179},{"$f":"FO232*CustomRegion1!$C41","v":615128.99518824241},{"$f":"FK232*CustomRegion1!D41","v":0},{"$f":"FN232*CustomRegion1!$D41","v":654351.00485830125},{"$f":"FO232*CustomRegion1!$D41","v":528704.60009696148},{"$f":"(FS232*'Default-Data'!$C$58/geo_dollar_index)/CustomRegion1!$E41","v":0},{"$f":"(FT232*'Default-Data'!$C$58/geo_dollar_index)/CustomRegion1!$E41","v":388.6913129709497},{"$f":"(FU232*'Default-Data'!$C$58/geo_dollar_index)/CustomRegion1!$E41","v":314.05603973966566},2867.7425846358155,11632.474860638453,{"$f":"FL232*CustomRegion1!C41","v":0},{"$f":"FY232*CustomRegion1!$C41","v":1397.6261990581345},{"$f":"FZ232*CustomRegion1!$C41","v":5669.2158188173162},{"$f":"FL232*CustomRegion1!D41","v":0},{"$f":"FY232*CustomRegion1!$D41","v":1201.2625098771985},{"$f":"FZ232*CustomRegion1!$D41","v":4872.7023206472786},{"$f":"(GD232*'Default-Data'!$C$58/geo_dollar_index)/CustomRegion1!$E41","v":0},{"$f":"(GE232*'Default-Data'!$C$58/geo_dollar_index)/CustomRegion1!$E41","v":0.71356244388752432},{"$f":"(GF232*'Default-Data'!$C$58/geo_dollar_index)/CustomRegion1!$E41","v":2.8944359352502596},null,"C75 Public admin. and defence; compulsory social security",0,0,null,8145.6389368126893,9625.1306076894925,{"$f":"GL232*CustomRegion2!C45","v":0},{"$f":"GO232*CustomRegion2!$C45","v":6110.2380306989371},{"$f":"GP232*CustomRegion2!$C45","v":7220.040017212109},{"$f":"GL232*CustomRegion2!D45","v":0},{"$f":"GO232*CustomRegion2!$D45","v":6027.3084114332669},{"$f":"GP232*CustomRegion2!$D45","v":7122.0478986232665},{"$f":"(GT232*'Default-Data'!$C$59/geo_dollar_index)/CustomRegion2!$E45","v":0},{"$f":"(GU232*'Default-Data'!$C$59/geo_dollar_index)/CustomRegion2!$E45","v":4.2817184664465371},{"$f":"(GV232*'Default-Data'!$C$59/geo_dollar_index)/CustomRegion2!$E45","v":5.0594066081978557},68.19878326098015,99.597971236696225,{"$f":"GM232*CustomRegion2!C45","v":0},{"$f":"GZ232*CustomRegion2!$C45","v":51.15753378723781},{"$f":"HA232*CustomRegion2!$C45","v":74.710813522634083},{"$f":"GM232*CustomRegion2!D45","v":0},{"$f":"GZ232*CustomRegion2!$D45","v":50.463211441981969},{"$f":"HA232*CustomRegion2!$D45","v":73.696820403326441},{"$f":"(HE232*'Default-Data'!$C$59/geo_dollar_index)/CustomRegion2!$E45","v":0},{"$f":"(HF232*'Default-Data'!$C$59/geo_dollar_index)/CustomRegion2!$E45","v":3.5848383649568397E-2},{"$f":"(HG232*'Default-Data'!$C$59/geo_dollar_index)/CustomRegion2!$E45","v":5.2353225569268753E-2},null,"HRRM",0,0,null,0,228774.6227757172,{"$f":"HM232*CustomRegion3!D44","v":0},{"$f":"HP232*CustomRegion3!$D44","v":0},{"$f":"HQ232*CustomRegion3!$D44","v":0},{"$f":"HM232*CustomRegion3!E44","v":0},{"$f":"HP232*CustomRegion3!E$12","v":0},{"$f":"HQ232*CustomRegion3!F$12","v":23626107.207845509},0,0,0,0,331.33977638641744,{"$f":"HN232*CustomRegion3!D44","v":0},{"$f":"IA232*CustomRegion3!$D44","v":0},{"$f":"IB232*CustomRegion3!$D44","v":0},{"$f":"HN232*CustomRegion3!E44","v":0},{"$f":"IA232*CustomRegion3!$E44","v":0},{"$f":"IB232*CustomRegion3!$E44","v":0},0,0,0]
[null,null,null,null,null,null,null,null,null,null,null,null,null,null,null,null,null,null,null,null,null,null,null,null,null,null,null,null,null,232,"TTL_C95: Private households with employed persons",0,0,null,0,201612.80417081574,{"$f":"AF233*'Colombia-IO-Data'!AN46","v":0},{"$f":"AI233*'Colombia-IO-Data'!$AN46","v":0},{"$f":"AJ233*'Colombia-IO-Data'!$AN46","v":201612.80417081574},{"$f":"'Colombia-IO-Data'!$AO46*AK233","v":0},{"$f":"'Colombia-IO-Data'!$AO46*AL233","v":0},{"$f":"'Colombia-IO-Data'!$AO46*AM233","v":201612.80417081574},{"$f":"(AN233*'Default-Data'!$F$19/geo_dollar_index)/'Colombia-IO-Data'!$AP46","v":0},{"$f":"(AO233*'Default-Data'!$F$19/geo_dollar_index)/'Colombia-IO-Data'!$AP46","v":0},{"$f":"(AP233*'Default-Data'!$F$19/geo_dollar_index)/'Colombia-IO-Data'!$AP46","v":42.412643734292715},0,1324.899552999867,{"$f":"AG233*'Colombia-IO-Data'!AN46","v":0},{"$f":"AT233*'Colombia-IO-Data'!$AN46","v":0},{"$f":"AU233*'Colombia-IO-Data'!$AN46","v":1324.899552999867},{"$f":"AV233*'Colombia-IO-Data'!$AO46","v":0},{"$f":"AW233*'Colombia-IO-Data'!$AO46","v":0},{"$f":"AX233*'Colombia-IO-Data'!$AO46","v":1324.899552999867},{"$f":"(Calculations!AY233*'Default-Data'!$F$19/geo_dollar_index)/'Colombia-IO-Data'!$AP46","v":0},{"$f":"(Calculations!AZ233*'Default-Data'!$F$19/geo_dollar_index)/'Colombia-IO-Data'!$AP46","v":0},{"$f":"(Calculations!BA233*'Default-Data'!$F$19/geo_dollar_index)/'Colombia-IO-Data'!$AP46","v":0.27871490085271633},null,"DOM_C95: Private households with employed persons",0,0,null,0,141547.38734928507,{"$f":"BG233*'Mexico-IO-Data'!AQ46","v":0},{"$f":"BJ233*'Mexico-IO-Data'!$AQ46","v":0},{"$f":"BK233*'Mexico-IO-Data'!$AQ46","v":141547.38734928507},{"$f":"BG233*'Mexico-IO-Data'!AQ46","v":0},{"$f":"BJ233*'Mexico-IO-Data'!$AR46","v":0},{"$f":"BK233*'Mexico-IO-Data'!$AR46","v":141547.38734928507},{"$f":"(BO233*'Default-Data'!$F$19/geo_dollar_index)/'Mexico-IO-Data'!$AS46","v":0},{"$f":"(BP233*'Default-Data'!$F$19/geo_dollar_index)/'Mexico-IO-Data'!$AS46","v":0},{"$f":"(BQ233*'Default-Data'!$F$19/geo_dollar_index)/'Mexico-IO-Data'!$AS46","v":28.033253341681757},0,816.19924490447784,{"$f":"BH233*'Mexico-IO-Data'!AQ46","v":0},{"$f":"BU233*'Mexico-IO-Data'!$AQ46","v":0},{"$f":"BV233*'Mexico-IO-Data'!$AQ46","v":816.19924490447784},{"$f":"BH233*'Mexico-IO-Data'!AR46","v":0},{"$f":"BU233*'Mexico-IO-Data'!$AR46","v":0},{"$f":"BV233*'Mexico-IO-Data'!$AR46","v":816.19924490447784},{"$f":"(BZ233*'Default-Data'!$F$19/geo_dollar_index)/'Mexico-IO-Data'!$AS46","v":0},{"$f":"(CA233*'Default-Data'!$F$19/geo_dollar_index)/'Mexico-IO-Data'!$AS46","v":0},{"$f":"(CB233*'Default-Data'!$F$19/geo_dollar_index)/'Mexico-IO-Data'!$AS46","v":0.16164706843536203},null,"TTL_C95: Private households with employed persons",0,0,null,0,0,{"$f":"CH233*'Philippines-IO-Data'!AN46","v":0},{"$f":"CK233*'Philippines-IO-Data'!$AN46","v":0},{"$f":"CL233*'Philippines-IO-Data'!$AN46","v":0},{"$f":"CH233*'Philippines-IO-Data'!AO46","v":0},{"$f":"CK233*'Philippines-IO-Data'!$AO46","v":0},{"$f":"CL233*'Philippines-IO-Data'!$AO46","v":0},{"$f":"(CP233*'Default-Data'!$F$19/geo_dollar_index)/'Philippines-IO-Data'!$AP46","v":0},{"$f":"(CQ233*'Default-Data'!$F$19/geo_dollar_index)/'Philippines-IO-Data'!$AP46","v":0},{"$f":"(CR233*'Default-Data'!$F$19/geo_dollar_index)/'Philippines-IO-Data'!$AP46","v":0},0,0,{"$f":"CI233*'Philippines-IO-Data'!AN46","v":0},{"$f":"CV233*'Philippines-IO-Data'!$AN46","v":0},{"$f":"CW233*'Philippines-IO-Data'!$AN46","v":0},{"$f":"CI233*'Philippines-IO-Data'!AO46","v":0},{"$f":"CV233*'Philippines-IO-Data'!$AO46","v":0},{"$f":"CW233*'Philippines-IO-Data'!$AO46","v":0},{"$f":"(DA233*'Default-Data'!$F$19/geo_dollar_index)/'Philippines-IO-Data'!$AP46","v":0},{"$f":"(DB233*'Default-Data'!$F$19/geo_dollar_index)/'Philippines-IO-Data'!$AP46","v":0},{"$f":"(DC233*'Default-Data'!$F$19/geo_dollar_index)/'Philippines-IO-Data'!$AP46","v":0},null,"DOM_C95: Private households with employed persons",0,0,null,0,0,{"$f":"DI233*'SouthAfrica-IO-Data'!AR46","v":0},{"$f":"DL233*'SouthAfrica-IO-Data'!$AR46","v":0},{"$f":"DM233*'SouthAfrica-IO-Data'!$AR46","v":0},{"$f":"DI233*'SouthAfrica-IO-Data'!AS46","v":0},{"$f":"DL233*'SouthAfrica-IO-Data'!$AS46","v":0},{"$f":"DM233*'SouthAfrica-IO-Data'!$AS46","v":0},{"$f":"(DQ233*'Default-Data'!$F$19/geo_dollar_index)/'SouthAfrica-IO-Data'!$AT46","v":0},{"$f":"(DR233*'Default-Data'!$F$19/geo_dollar_index)/'SouthAfrica-IO-Data'!$AT46","v":0},{"$f":"(DS233*'Default-Data'!$F$19/geo_dollar_index)/'SouthAfrica-IO-Data'!$AT46","v":0},0,0,{"$f":"DJ233*'SouthAfrica-IO-Data'!AR46","v":0},{"$f":"DW233*'SouthAfrica-IO-Data'!$AR46","v":0},{"$f":"DX233*'SouthAfrica-IO-Data'!$AR46","v":0},{"$f":"DJ233*'SouthAfrica-IO-Data'!$AS46","v":0},{"$f":"DZ233*'SouthAfrica-IO-Data'!$AS46","v":0},{"$f":"EA233*'SouthAfrica-IO-Data'!$AS46","v":0},{"$f":"(EB233*'Default-Data'!$F$19/geo_dollar_index)/'SouthAfrica-IO-Data'!$AT46","v":0},{"$f":"(EC233*'Default-Data'!$F$19/geo_dollar_index)/'SouthAfrica-IO-Data'!$AT46","v":0},{"$f":"(ED233*'Default-Data'!$F$19/geo_dollar_index)/'SouthAfrica-IO-Data'!$AT46","v":0},null,"HRRN",0,0,null,0,193007.10237934568,{"$f":"EJ233*'Zambia-IO-Data'!BO44","v":0},{"$f":"EM233*'Zambia-IO-Data'!$BO44","v":0},{"$f":"EN233*'Zambia-IO-Data'!$BO44","v":0},{"$f":"EJ233*'Zambia-IO-Data'!BN44","v":0},{"$f":"EM233*'Zambia-IO-Data'!$BN44","v":0},{"$f":"EN233*'Zambia-IO-Data'!$BN44","v":0},0,0,0,0,321.84225414558244,{"$f":"EK233*'Zambia-IO-Data'!BO44","v":0},{"$f":"EX233*'Zambia-IO-Data'!$BO44","v":0},{"$f":"EY233*'Zambia-IO-Data'!$BO44","v":0},{"$f":"EK233*'Zambia-IO-Data'!BN44","v":0},{"$f":"EX233*'Zambia-IO-Data'!$BN44","v":0},{"$f":"EY233*'Zambia-IO-Data'!$BN44","v":0},0,0,0,null,"TTL_C95: Private households with employed persons",0,0,null,0,0,{"$f":"FK233*CustomRegion1!C42","v":0},{"$f":"FN233*CustomRegion1!$C42","v":0},{"$f":"FO233*CustomRegion1!$C42","v":0},{"$f":"FK233*CustomRegion1!D42","v":0},{"$f":"FN233*CustomRegion1!$D42","v":0},{"$f":"FO233*CustomRegion1!$D42","v":0},{"$f":"(FS233*'Default-Data'!$C$58/geo_dollar_index)/CustomRegion1!$E42","v":0},{"$f":"(FT233*'Default-Data'!$C$58/geo_dollar_index)/CustomRegion1!$E42","v":0},{"$f":"(FU233*'Default-Data'!$C$58/geo_dollar_index)/CustomRegion1!$E42","v":0},0,0,{"$f":"FL233*CustomRegion1!C42","v":0},{"$f":"FY233*CustomRegion1!$C42","v":0},{"$f":"FZ233*CustomRegion1!$C42","v":0},{"$f":"FL233*CustomRegion1!D42","v":0},{"$f":"FY233*CustomRegion1!$D42","v":0},{"$f":"FZ233*CustomRegion1!$D42","v":0},{"$f":"(GD233*'Default-Data'!$C$58/geo_dollar_index)/CustomRegion1!$E42","v":0},{"$f":"(GE233*'Default-Data'!$C$58/geo_dollar_index)/CustomRegion1!$E42","v":0},{"$f":"(GF233*'Default-Data'!$C$58/geo_dollar_index)/CustomRegion1!$E42","v":0},null,"C80 Education",0,0,null,6093.9769128587204,156158.60925410085,{"$f":"GL233*CustomRegion2!C46","v":0},{"$f":"GO233*CustomRegion2!$C46","v":5427.6868288502001},{"$f":"GP233*CustomRegion2!$C46","v":139084.87655599657},{"$f":"GL233*CustomRegion2!D46","v":0},{"$f":"GO233*CustomRegion2!$D46","v":4130.0454560050666},{"$f":"GP233*CustomRegion2!$D46","v":105832.72037101036},{"$f":"(GT233*'Default-Data'!$C$59/geo_dollar_index)/CustomRegion2!$E46","v":0},{"$f":"(GU233*'Default-Data'!$C$59/geo_dollar_index)/CustomRegion2!$E46","v":1.0285434359514025},{"$f":"(GV233*'Default-Data'!$C$59/geo_dollar_index)/CustomRegion2!$E46","v":26.356501642908178},44.176088701524534,1615.8825585625925,{"$f":"GM233*CustomRegion2!C46","v":0},{"$f":"GZ233*CustomRegion2!$C46","v":39.346058940499574},{"$f":"HA233*CustomRegion2!$C46","v":1439.2086818662806},{"$f":"GM233*CustomRegion2!D46","v":0},{"$f":"GZ233*CustomRegion2!$D46","v":29.939275618328548},{"$f":"HA233*CustomRegion2!$D46","v":1095.1253202727705},{"$f":"(HE233*'Default-Data'!$C$59/geo_dollar_index)/CustomRegion2!$E46","v":0},{"$f":"(HF233*'Default-Data'!$C$59/geo_dollar_index)/CustomRegion2!$E46","v":7.456054840654985E-3},{"$f":"(HG233*'Default-Data'!$C$59/geo_dollar_index)/CustomRegion2!$E46","v":0.27272919189617606},null,"HRRN",0,0,null,0,193007.10237934568,{"$f":"HM233*CustomRegion3!D45","v":0},{"$f":"HP233*CustomRegion3!$D45","v":0},{"$f":"HQ233*CustomRegion3!$D45","v":0},{"$f":"HM233*CustomRegion3!E45","v":0},{"$f":"HP233*CustomRegion3!E$12","v":0},{"$f":"HQ233*CustomRegion3!F$12","v":19932309.088147897},0,0,0,0,321.84225414558244,{"$f":"HN233*CustomRegion3!D45","v":0},{"$f":"IA233*CustomRegion3!$D45","v":0},{"$f":"IB233*CustomRegion3!$D45","v":0},{"$f":"HN233*CustomRegion3!E45","v":0},{"$f":"IA233*CustomRegion3!$E45","v":0},{"$f":"IB233*CustomRegion3!$E45","v":0},0,0,0]
[null,null,null,null,null,null,null,null,null,null,null,null,null,null,null,null,null,null,null,null,null,null,null,null,null,null,null,null,null,233,"HH",0,0,null,0,21982971.065779485,{"$f":"AF234*'Colombia-IO-Data'!AN47","v":0},{"$f":"AI234*'Colombia-IO-Data'!$AN47","v":0},{"$f":"AJ234*'Colombia-IO-Data'!$AN47","v":0},{"$f":"'Colombia-IO-Data'!$AO47*AK234","v":0},{"$f":"'Colombia-IO-Data'!$AO47*AL234","v":0},{"$f":"'Colombia-IO-Data'!$AO47*AM234","v":0},0,0,0,0,144461.20452738705,{"$f":"AG234*'Colombia-IO-Data'!AN47","v":0},{"$f":"AT234*'Colombia-IO-Data'!$AN47","v":0},{"$f":"AU234*'Colombia-IO-Data'!$AN47","v":0},{"$f":"AV234*'Colombia-IO-Data'!$AO47","v":0},{"$f":"AW234*'Colombia-IO-Data'!$AO47","v":0},{"$f":"AX234*'Colombia-IO-Data'!$AO47","v":0},0,0,0,null,"L",0,0,null,0,23524377.153324228,{"$f":"BG234*'Mexico-IO-Data'!AQ47","v":0},{"$f":"BJ234*'Mexico-IO-Data'!$AQ47","v":0},{"$f":"BK234*'Mexico-IO-Data'!$AQ47","v":0},{"$f":"BG234*'Mexico-IO-Data'!AQ47","v":0},{"$f":"BJ234*'Mexico-IO-Data'!$AR47","v":0},{"$f":"BK234*'Mexico-IO-Data'!$AR47","v":0},0,0,0,0,135647.70942759732,{"$f":"BH234*'Mexico-IO-Data'!AQ47","v":0},{"$f":"BU234*'Mexico-IO-Data'!$AQ47","v":0},{"$f":"BV234*'Mexico-IO-Data'!$AQ47","v":0},{"$f":"BH234*'Mexico-IO-Data'!AR47","v":0},{"$f":"BU234*'Mexico-IO-Data'!$AR47","v":0},{"$f":"BV234*'Mexico-IO-Data'!$AR47","v":0},0,0,0,null,"LHH",0,0,null,0,18235852.461085279,{"$f":"CH234*'Philippines-IO-Data'!AN47","v":0},{"$f":"CK234*'Philippines-IO-Data'!$AN47","v":0},{"$f":"CL234*'Philippines-IO-Data'!$AN47","v":0},{"$f":"CH234*'Philippines-IO-Data'!AO47","v":0},{"$f":"CK234*'Philippines-IO-Data'!$AO47","v":0},{"$f":"CL234*'Philippines-IO-Data'!$AO47","v":0},0,0,0,0,161959.40678278834,{"$f":"CI234*'Philippines-IO-Data'!AN47","v":0},{"$f":"CV234*'Philippines-IO-Data'!$AN47","v":0},{"$f":"CW234*'Philippines-IO-Data'!$AN47","v":0},{"$f":"CI234*'Philippines-IO-Data'!AO47","v":0},{"$f":"CV234*'Philippines-IO-Data'!$AO47","v":0},{"$f":"CW234*'Philippines-IO-Data'!$AO47","v":0},0,0,0,null,"L",0,0,null,0,37497197.450248137,{"$f":"DI234*'SouthAfrica-IO-Data'!AR47","v":0},{"$f":"DL234*'SouthAfrica-IO-Data'!$AR47","v":0},{"$f":"DM234*'SouthAfrica-IO-Data'!$AR47","v":0},{"$f":"DI234*'SouthAfrica-IO-Data'!AS47","v":0},{"$f":"DL234*'SouthAfrica-IO-Data'!$AS47","v":0},{"$f":"DM234*'SouthAfrica-IO-Data'!$AS47","v":0},0,0,0,0,335292.7073907124,{"$f":"DJ234*'SouthAfrica-IO-Data'!AR47","v":0},{"$f":"DW234*'SouthAfrica-IO-Data'!$AR47","v":0},{"$f":"DX234*'SouthAfrica-IO-Data'!$AR47","v":0},{"$f":"DJ234*'SouthAfrica-IO-Data'!$AS47","v":0},{"$f":"DZ234*'SouthAfrica-IO-Data'!$AS47","v":0},{"$f":"EA234*'SouthAfrica-IO-Data'!$AS47","v":0},0,0,0,null,"HRS",0,0,null,0,3965768.2403107402,{"$f":"EJ234*'Zambia-IO-Data'!BO45","v":0},{"$f":"EM234*'Zambia-IO-Data'!$BO45","v":0},{"$f":"EN234*'Zambia-IO-Data'!$BO45","v":0},{"$f":"EJ234*'Zambia-IO-Data'!BN45","v":0},{"$f":"EM234*'Zambia-IO-Data'!$BN45","v":0},{"$f":"EN234*'Zambia-IO-Data'!$BN45","v":0},0,0,0,0,5717.6468663324831,{"$f":"EK234*'Zambia-IO-Data'!BO45","v":0},{"$f":"EX234*'Zambia-IO-Data'!$BO45","v":0},{"$f":"EY234*'Zambia-IO-Data'!$BO45","v":0},{"$f":"EK234*'Zambia-IO-Data'!BN45","v":0},{"$f":"EX234*'Zambia-IO-Data'!$BN45","v":0},{"$f":"EY234*'Zambia-IO-Data'!$BN45","v":0},0,0,0,null,"LHH",0,0,null,0,22785506.533843029,{"$f":"FK234*CustomRegion1!AM43","v":0},{"$f":"FN234*CustomRegion1!$AM43","v":0},{"$f":"FO234*CustomRegion1!$AM43","v":0},{"$f":"FK234*CustomRegion1!AN43","v":0},{"$f":"FN234*CustomRegion1!$AN43","v":0},{"$f":"FO234*CustomRegion1!$AN43","v":0},0,0,0,0,209998.15500795509,{"$f":"FL234*CustomRegion1!AM43","v":0},{"$f":"FY234*CustomRegion1!$AM43","v":0},{"$f":"FZ234*CustomRegion1!$AM43","v":0},{"$f":"FL234*CustomRegion1!AN43","v":0},{"$f":"FY234*CustomRegion1!$AN43","v":0},{"$f":"FZ234*CustomRegion1!$AN43","v":0},0,0,0,null,"C85 Health and social work",0,0,null,1126.6483390384553,142742.96268567958,{"$f":"GL234*CustomRegion2!C47","v":0},{"$f":"GO234*CustomRegion2!$C47","v":845.27764648832613},{"$f":"GP234*CustomRegion2!$C47","v":107094.14053252676},{"$f":"GL234*CustomRegion2!D47","v":0},{"$f":"GO234*CustomRegion2!$D47","v":487.49332765253672},{"$f":"GP234*CustomRegion2!$D47","v":61763.941300452818},{"$f":"(GT234*'Default-Data'!$C$59/geo_dollar_index)/CustomRegion2!$E47","v":0},{"$f":"(GU234*'Default-Data'!$C$59/geo_dollar_index)/CustomRegion2!$E47","v":0.21982664104479011},{"$f":"(GV234*'Default-Data'!$C$59/geo_dollar_index)/CustomRegion2!$E47","v":27.85137556476149},7.0063831394301941,1477.0614624648588,{"$f":"GM234*CustomRegion2!C47","v":0},{"$f":"GZ234*CustomRegion2!$C47","v":5.256599459905563},{"$f":"HA234*CustomRegion2!$C47","v":1108.1781186279152},{"$f":"GM234*CustomRegion2!D47","v":0},{"$f":"GZ234*CustomRegion2!$D47","v":3.0316159116379531},{"$f":"HA234*CustomRegion2!$D47","v":639.11478190155935},{"$f":"(HE234*'Default-Data'!$C$59/geo_dollar_index)/CustomRegion2!$E47","v":0},{"$f":"(HF234*'Default-Data'!$C$59/geo_dollar_index)/CustomRegion2!$E47","v":1.3670544907812801E-3},{"$f":"(HG234*'Default-Data'!$C$59/geo_dollar_index)/CustomRegion2!$E47","v":0.28819769990294408},null,"HRS",0,0,null,0,3965768.2403107402,{"$f":"HM234*CustomRegion3!D46","v":0},{"$f":"HP234*CustomRegion3!$D46","v":0},{"$f":"HQ234*CustomRegion3!$D46","v":0},{"$f":"HM234*CustomRegion3!E46","v":0},{"$f":"HP234*CustomRegion3!E$12","v":0},{"$f":"HQ234*CustomRegion3!F$12","v":409554453.50643808},0,0,0,0,5717.6468663324831,{"$f":"HN234*CustomRegion3!D46","v":0},{"$f":"IA234*CustomRegion3!$D46","v":0},{"$f":"IB234*CustomRegion3!$D46","v":0},{"$f":"HN234*CustomRegion3!E46","v":0},{"$f":"IA234*CustomRegion3!$E46","v":0},{"$f":"IB234*CustomRegion3!$E46","v":0},0,0,0]
[null,null,null,null,null,null,null,null,null,null,null,null,null,null,null,null,null,null,null,null,null,null,null,null,null,null,null,null,null,234,"Total",{"$f":"SUM(AF200:AF234)","v":61425593.632990383},{"$f":"SUM(AG200:AG234)","v":685042.91491666122},null,{"$f":"SUM(AI200:AI234)","v":32072481.117236067},{"$f":"SUM(AJ200:AJ234)","v":53882492.242932245},39424455.145717666,18972647.369522497,17520940.440008249,10641295.808471043,4497245.3905321797,6844429.8667762559,1054.9222452821296,707.77517111674763,1134.4195434915878,348047.35737256031,1387179.3400981077,445833.62516835704,209844.38603572382,770816.95911255106,56569.896374392665,42913.102982315766,144461.20452738708,5.5542958732939969,6.5628570590221509,19.571996647564077,null,null,null,null,null,null,null,null,null,null,null,null,null,null,null,null,null,null,null,null,null,null,null,null,null,null,null,null,null,null,null,null,null,null,null,null,null,null,null,null,null,null,null,null,null,null,null,null,null,null,null,null,null,null,null,null,null,null,null,null,null,null,null,null,null,null,null,null,null,null,null,null,null,null,null,null,null,null,null,null,null,null,"HRM",0,0,null,0,432860.37771925144,{"$f":"EJ235*'Zambia-IO-Data'!BO46","v":0},{"$f":"EM235*'Zambia-IO-Data'!$BO46","v":0},{"$f":"EN235*'Zambia-IO-Data'!$BO46","v":0},{"$f":"EJ235*'Zambia-IO-Data'!BN46","v":0},{"$f":"EM235*'Zambia-IO-Data'!$BN46","v":0},{"$f":"EN235*'Zambia-IO-Data'!$BN46","v":0},0,0,0,0,724.90650418077632,{"$f":"EK235*'Zambia-IO-Data'!BO46","v":0},{"$f":"EX235*'Zambia-IO-Data'!$BO46","v":0},{"$f":"EY235*'Zambia-IO-Data'!$BO46","v":0},{"$f":"EK235*'Zambia-IO-Data'!BN46","v":0},{"$f":"EX235*'Zambia-IO-Data'!$BN46","v":0},{"$f":"EY235*'Zambia-IO-Data'!$BN46","v":0},0,0,0,null,null,null,null,null,null,null,null,null,null,null,null,null,null,null,null,null,null,null,null,null,null,null,null,null,null,null,null,"C90T93 Other community, social and personal services",0,0,null,32428.224736382977,192799.09909707692,{"$f":"GL235*CustomRegion2!C48","v":0},{"$f":"GO235*CustomRegion2!$C48","v":22855.419125557019},{"$f":"GP235*CustomRegion2!$C48","v":135884.84268611841},{"$f":"GL235*CustomRegion2!D48","v":0},{"$f":"GO235*CustomRegion2!$D48","v":4434.0727011535146},{"$f":"GP235*CustomRegion2!$D48","v":26362.381199184121},{"$f":"(GT235*'Default-Data'!$C$59/geo_dollar_index)/CustomRegion2!$E48","v":0},{"$f":"(GU235*'Default-Data'!$C$59/geo_dollar_index)/CustomRegion2!$E48","v":3.1499053425044208},{"$f":"(GV235*'Default-Data'!$C$59/geo_dollar_index)/CustomRegion2!$E48","v":18.727479447697313},293.74622107353076,1995.0273829002244,{"$f":"GM235*CustomRegion2!C48","v":0},{"$f":"GZ235*CustomRegion2!$C48","v":207.03239396424991},{"$f":"HA235*CustomRegion2!$C48","v":1406.0956889813892},{"$f":"GM235*CustomRegion2!D48","v":0},{"$f":"GZ235*CustomRegion2!$D48","v":40.165384029419648},{"$f":"HA235*CustomRegion2!$D48","v":272.79003178507986},{"$f":"(HE235*'Default-Data'!$C$59/geo_dollar_index)/CustomRegion2!$E48","v":0},{"$f":"(HF235*'Default-Data'!$C$59/geo_dollar_index)/CustomRegion2!$E48","v":2.8532946179501643E-2},{"$f":"(HG235*'Default-Data'!$C$59/geo_dollar_index)/CustomRegion2!$E48","v":0.19378635318230986},null,"HRM",0,0,null,0,432860.37771925144,{"$f":"HM235*CustomRegion3!D47","v":0},{"$f":"HP235*CustomRegion3!$D47","v":0},{"$f":"HQ235*CustomRegion3!$D47","v":0},{"$f":"HM235*CustomRegion3!E47","v":0},{"$f":"HP235*CustomRegion3!E$12","v":0},{"$f":"HQ235*CustomRegion3!F$12","v":44702535.4733053},0,0,0,0,724.90650418077632,{"$f":"HN235*CustomRegion3!D47","v":0},{"$f":"IA235*CustomRegion3!$D47","v":0},{"$f":"IB235*CustomRegion3!$D47","v":0},{"$f":"HN235*CustomRegion3!E47","v":0},{"$f":"IA235*CustomRegion3!$E47","v":0},{"$f":"IB235*CustomRegion3!$E47","v":0},0,0,0]
[null,null,null,null,null,null,null,null,null,null,null,null,null,null,null,null,null,null,null,null,null,null,null,null,null,null,null,null,null,235,null,null,null,null,null,null,null,null,null,null,null,null,null,null,null,null,null,null,null,null,null,null,null,null,null,null,null,null,null,null,null,null,null,null,null,null,null,null,null,null,null,null,null,null,null,null,null,null,null,null,null,null,null,null,null,null,null,null,null,null,null,null,null,null,null,null,null,null,null,null,null,null,null,null,null,null,null,null,null,null,null,null,null,null,null,null,null,null,null,null,null,null,null,null,null,null,null,null,null,null,null,null,null,null,null,null,null,null,"HRL",0,0,null,0,458602.67492131062,{"$f":"EJ236*'Zambia-IO-Data'!BO47","v":0},{"$f":"EM236*'Zambia-IO-Data'!$BO47","v":0},{"$f":"EN236*'Zambia-IO-Data'!$BO47","v":0},{"$f":"EJ236*'Zambia-IO-Data'!BN47","v":0},{"$f":"EM236*'Zambia-IO-Data'!$BN47","v":0},{"$f":"EN236*'Zambia-IO-Data'!$BN47","v":0},0,0,0,0,818.29754381027999,{"$f":"EK236*'Zambia-IO-Data'!BO47","v":0},{"$f":"EX236*'Zambia-IO-Data'!$BO47","v":0},{"$f":"EY236*'Zambia-IO-Data'!$BO47","v":0},{"$f":"EK236*'Zambia-IO-Data'!BN47","v":0},{"$f":"EX236*'Zambia-IO-Data'!$BN47","v":0},{"$f":"EY236*'Zambia-IO-Data'!$BN47","v":0},0,0,0,null,null,null,null,null,null,null,null,null,null,null,null,null,null,null,null,null,null,null,null,null,null,null,null,null,null,null,null,"C95 Private households with employed persons",0,0,null,0,42610.904315286592,{"$f":"GL236*CustomRegion2!C49","v":0},{"$f":"GO236*CustomRegion2!$C49","v":0},{"$f":"GP236*CustomRegion2!$C49","v":42610.904315286592},{"$f":"GL236*CustomRegion2!D49","v":0},{"$f":"GO236*CustomRegion2!$D49","v":0},{"$f":"GP236*CustomRegion2!$D49","v":42610.904315286592},{"$f":"(GT236*'Default-Data'!$C$59/geo_dollar_index)/CustomRegion2!$E49","v":0},{"$f":"(GU236*'Default-Data'!$C$59/geo_dollar_index)/CustomRegion2!$E49","v":0},{"$f":"(GV236*'Default-Data'!$C$59/geo_dollar_index)/CustomRegion2!$E49","v":8.4390273685586514},0,440.92488666834714,{"$f":"GM236*CustomRegion2!C49","v":0},{"$f":"GZ236*CustomRegion2!$C49","v":0},{"$f":"HA236*CustomRegion2!$C49","v":440.92488666834714},{"$f":"GM236*CustomRegion2!D49","v":0},{"$f":"GZ236*CustomRegion2!$D49","v":0},{"$f":"HA236*CustomRegion2!$D49","v":440.92488666834714},{"$f":"(HE236*'Default-Data'!$C$59/geo_dollar_index)/CustomRegion2!$E49","v":0},{"$f":"(HF236*'Default-Data'!$C$59/geo_dollar_index)/CustomRegion2!$E49","v":0},{"$f":"(HG236*'Default-Data'!$C$59/geo_dollar_index)/CustomRegion2!$E49","v":8.7324529856032868E-2},null,"HRL",0,0,null,0,458602.67492131062,{"$f":"HM236*CustomRegion3!D48","v":0},{"$f":"HP236*CustomRegion3!$D48","v":0},{"$f":"HQ236*CustomRegion3!$D48","v":0},{"$f":"HM236*CustomRegion3!E48","v":0},{"$f":"HP236*CustomRegion3!E$12","v":0},{"$f":"HQ236*CustomRegion3!F$12","v":47361004.60809356},0,0,0,0,818.29754381027999,{"$f":"HN236*CustomRegion3!D48","v":0},{"$f":"IA236*CustomRegion3!$D48","v":0},{"$f":"IB236*CustomRegion3!$D48","v":0},{"$f":"HN236*CustomRegion3!E48","v":0},{"$f":"IA236*CustomRegion3!$E48","v":0},{"$f":"IB236*CustomRegion3!$E48","v":0},0,0,0]
[null,null,null,null,null,null,null,null,null,null,null,null,null,null,null,null,null,null,null,null,null,null,null,null,null,null,null,null,null,236,null,null,null,null,null,null,null,null,null,null,null,null,null,null,null,null,null,null,null,null,null,null,null,null,null,null,null,null,null,null,null,null,null,null,null,null,null,null,null,null,null,null,null,null,null,null,null,null,null,null,null,null,null,null,null,null,null,null,null,null,null,null,null,null,null,null,null,null,null,null,null,null,null,null,null,null,null,null,null,null,null,null,null,null,null,null,null,null,null,null,null,null,null,null,null,null,null,null,null,null,null,null,null,null,null,null,null,null,"HRN",0,0,null,0,371016.86196063302,{"$f":"EJ237*'Zambia-IO-Data'!BO48","v":0},{"$f":"EM237*'Zambia-IO-Data'!$BO48","v":0},{"$f":"EN237*'Zambia-IO-Data'!$BO48","v":0},{"$f":"EJ237*'Zambia-IO-Data'!BN48","v":0},{"$f":"EM237*'Zambia-IO-Data'!$BN48","v":0},{"$f":"EN237*'Zambia-IO-Data'!$BN48","v":0},0,0,0,0,622.3426604325125,{"$f":"EK237*'Zambia-IO-Data'!BO48","v":0},{"$f":"EX237*'Zambia-IO-Data'!$BO48","v":0},{"$f":"EY237*'Zambia-IO-Data'!$BO48","v":0},{"$f":"EK237*'Zambia-IO-Data'!BN48","v":0},{"$f":"EX237*'Zambia-IO-Data'!$BN48","v":0},{"$f":"EY237*'Zambia-IO-Data'!$BN48","v":0},0,0,0,null,null,null,null,null,null,null,null,null,null,null,null,null,null,null,null,null,null,null,null,null,null,null,null,null,null,null,null,"L",0,0,null,0,5543345.4838833585,{"$f":"GL237*CustomRegion2!C50","v":0},{"$f":"GO237*CustomRegion2!$C50","v":0},{"$f":"GP237*CustomRegion2!$C50","v":0},{"$f":"GL237*CustomRegion2!D50","v":0},{"$f":"GO237*CustomRegion2!$D50","v":0},{"$f":"GP237*CustomRegion2!$D50","v":0},0,0,0,0,57360.880237594756,{"$f":"GM237*CustomRegion2!C50","v":0},{"$f":"GZ237*CustomRegion2!$C50","v":0},{"$f":"HA237*CustomRegion2!$C50","v":0},{"$f":"GM237*CustomRegion2!D50","v":0},{"$f":"GZ237*CustomRegion2!$D50","v":0},{"$f":"HA237*CustomRegion2!$D50","v":0},0,0,0,null,"HRN",0,0,null,0,371016.86196063302,{"$f":"HM237*CustomRegion3!D49","v":0},{"$f":"HP237*CustomRegion3!$D49","v":0},{"$f":"HQ237*CustomRegion3!$D49","v":0},{"$f":"HM237*CustomRegion3!E49","v":0},{"$f":"HP237*CustomRegion3!E$12","v":0},{"$f":"HQ237*CustomRegion3!F$12","v":38315806.404777296},0,0,0,0,622.3426604325125,{"$f":"HN237*CustomRegion3!D49","v":0},{"$f":"IA237*CustomRegion3!$D49","v":0},{"$f":"IB237*CustomRegion3!$D49","v":0},{"$f":"HN237*CustomRegion3!E49","v":0},{"$f":"IA237*CustomRegion3!$E49","v":0},{"$f":"IB237*CustomRegion3!$E49","v":0},0,0,0]
[null,null,null,null,null,null,null,null,null,null,null,null,null,null,null,null,null,null,null,null,null,null,null,null,null,null,null,null,null,237,null,null,null,null,null,null,null,null,null,null,null,null,null,null,null,null,null,null,null,null,null,null,null,null,null,null,null,null,null,null,null,null,null,null,null,null,null,null,null,null,null,null,null,null,null,null,null,null,null,null,null,null,null,null,null,null,null,null,null,null,null,null,null,null,null,null,null,null,null,null,null,null,null,null,null,null,null,null,null,null,null,null,null,null,null,null,null,null,null,null,null,null,null,null,null,null,null,null,null,null,null,null,null,null,null,null,null,null,"HUSE",0,0,null,0,1487991.165241428,{"$f":"EJ238*'Zambia-IO-Data'!BO49","v":0},{"$f":"EM238*'Zambia-IO-Data'!$BO49","v":0},{"$f":"EN238*'Zambia-IO-Data'!$BO49","v":0},{"$f":"EJ238*'Zambia-IO-Data'!BN49","v":0},{"$f":"EM238*'Zambia-IO-Data'!$BN49","v":0},{"$f":"EN238*'Zambia-IO-Data'!$BN49","v":0},0,0,0,0,2581.7816276723333,{"$f":"EK238*'Zambia-IO-Data'!BO49","v":0},{"$f":"EX238*'Zambia-IO-Data'!$BO49","v":0},{"$f":"EY238*'Zambia-IO-Data'!$BO49","v":0},{"$f":"EK238*'Zambia-IO-Data'!BN49","v":0},{"$f":"EX238*'Zambia-IO-Data'!$BN49","v":0},{"$f":"EY238*'Zambia-IO-Data'!$BN49","v":0},0,0,0,null,null,null,null,null,null,null,null,null,null,null,null,null,null,null,null,null,null,null,null,null,null,null,null,null,null,null,null,"HH",0,0,null,0,5543345.4838833585,{"$f":"GL238*CustomRegion2!C51","v":0},{"$f":"GO238*CustomRegion2!$C51","v":0},{"$f":"GP238*CustomRegion2!$C51","v":0},{"$f":"GL238*CustomRegion2!D51","v":0},{"$f":"GO238*CustomRegion2!$D51","v":0},{"$f":"GP238*CustomRegion2!$D51","v":0},0,0,0,0,57360.880237594756,{"$f":"GM238*CustomRegion2!C51","v":0},{"$f":"GZ238*CustomRegion2!$C51","v":0},{"$f":"HA238*CustomRegion2!$C51","v":0},{"$f":"GM238*CustomRegion2!D51","v":0},{"$f":"GZ238*CustomRegion2!$D51","v":0},{"$f":"HA238*CustomRegion2!$D51","v":0},0,0,0,null,"HUSE",0,0,null,0,1487991.165241428,{"$f":"HM238*CustomRegion3!D50","v":0},{"$f":"HP238*CustomRegion3!$D50","v":0},{"$f":"HQ238*CustomRegion3!$D50","v":0},{"$f":"HM238*CustomRegion3!E50","v":0},{"$f":"HP238*CustomRegion3!E$12","v":0},{"$f":"HQ238*CustomRegion3!F$12","v":153668437.38077596},0,0,0,0,2581.7816276723333,{"$f":"HN238*CustomRegion3!D50","v":0},{"$f":"IA238*CustomRegion3!$D50","v":0},{"$f":"IB238*CustomRegion3!$D50","v":0},{"$f":"HN238*CustomRegion3!E50","v":0},{"$f":"IA238*CustomRegion3!$E50","v":0},{"$f":"IB238*CustomRegion3!$E50","v":0},0,0,0]
[null,null,null,null,null,null,null,null,null,null,null,null,null,null,null,null,null,null,null,null,null,null,null,null,null,null,null,null,null,238,null,null,null,null,null,null,null,null,null,null,null,null,null,null,null,null,null,null,null,null,null,null,null,null,null,null,null,null,null,null,null,null,null,null,null,null,null,null,null,null,null,null,null,null,null,null,null,null,null,null,null,null,null,null,null,null,null,null,null,null,null,null,null,null,null,null,null,null,null,null,null,null,null,null,null,null,null,null,null,null,null,null,null,null,null,null,null,null,null,null,null,null,null,null,null,null,null,null,null,null,null,null,null,null,null,null,null,null,"HUPR",0,0,null,0,3496693.5311857546,{"$f":"EJ239*'Zambia-IO-Data'!BO50","v":0},{"$f":"EM239*'Zambia-IO-Data'!$BO50","v":0},{"$f":"EN239*'Zambia-IO-Data'!$BO50","v":0},{"$f":"EJ239*'Zambia-IO-Data'!BN50","v":0},{"$f":"EM239*'Zambia-IO-Data'!$BN50","v":0},{"$f":"EN239*'Zambia-IO-Data'!$BN50","v":0},0,0,0,0,6225.6226940077549,{"$f":"EK239*'Zambia-IO-Data'!BO50","v":0},{"$f":"EX239*'Zambia-IO-Data'!$BO50","v":0},{"$f":"EY239*'Zambia-IO-Data'!$BO50","v":0},{"$f":"EK239*'Zambia-IO-Data'!BN50","v":0},{"$f":"EX239*'Zambia-IO-Data'!$BN50","v":0},{"$f":"EY239*'Zambia-IO-Data'!$BN50","v":0},0,0,0,null,null,null,null,null,null,null,null,null,null,null,null,null,null,null,null,null,null,null,null,null,null,null,null,null,null,null,null,null,null,null,null,null,null,null,null,null,null,null,null,null,null,null,null,null,null,null,null,null,null,null,null,null,null,null,"HUPR",0,0,null,0,3496693.5311857546,{"$f":"HM239*CustomRegion3!D51","v":0},{"$f":"HP239*CustomRegion3!$D51","v":0},{"$f":"HQ239*CustomRegion3!$D51","v":0},{"$f":"HM239*CustomRegion3!E51","v":0},{"$f":"HP239*CustomRegion3!E$12","v":0},{"$f":"HQ239*CustomRegion3!F$12","v":361111976.66257644},0,0,0,0,6225.6226940077549,{"$f":"HN239*CustomRegion3!D51","v":0},{"$f":"IA239*CustomRegion3!$D51","v":0},{"$f":"IB239*CustomRegion3!$D51","v":0},{"$f":"HN239*CustomRegion3!E51","v":0},{"$f":"IA239*CustomRegion3!$E51","v":0},{"$f":"IB239*CustomRegion3!$E51","v":0},0,0,0]
[null,null,null,null,null,null,null,null,null,null,null,null,null,null,null,null,null,null,null,null,null,null,null,null,null,null,null,null,null,239,null,null,null,null,null,null,null,null,null,null,null,null,null,null,null,null,null,null,null,null,null,null,null,null,null,null,null,null,null,null,null,null,null,null,null,null,null,null,null,null,null,null,null,null,null,null,null,null,null,null,null,null,null,null,null,null,null,null,null,null,null,null,null,null,null,null,null,null,null,null,null,null,null,null,null,null,null,null,null,null,null,null,null,null,null,null,null,null,null,null,null,null,null,null,null,null,null,null,null,null,null,null,null,null,null,null,null,null,"HUPU",0,0,null,0,6001918.6492700484,{"$f":"EJ240*'Zambia-IO-Data'!BO51","v":0},{"$f":"EM240*'Zambia-IO-Data'!$BO51","v":0},{"$f":"EN240*'Zambia-IO-Data'!$BO51","v":0},{"$f":"EJ240*'Zambia-IO-Data'!BN51","v":0},{"$f":"EM240*'Zambia-IO-Data'!$BN51","v":0},{"$f":"EN240*'Zambia-IO-Data'!$BN51","v":0},0,0,0,0,10109.340070010872,{"$f":"EK240*'Zambia-IO-Data'!BO51","v":0},{"$f":"EX240*'Zambia-IO-Data'!$BO51","v":0},{"$f":"EY240*'Zambia-IO-Data'!$BO51","v":0},{"$f":"EK240*'Zambia-IO-Data'!BN51","v":0},{"$f":"EX240*'Zambia-IO-Data'!$BN51","v":0},{"$f":"EY240*'Zambia-IO-Data'!$BN51","v":0},0,0,0,null,null,null,null,null,null,null,null,null,null,null,null,null,null,null,null,null,null,null,null,null,null,null,null,null,null,null,null,null,null,null,null,null,null,null,null,null,null,null,null,null,null,null,null,null,null,null,null,null,null,null,null,null,null,null,"HUPU",0,0,null,0,6001918.6492700484,{"$f":"HM240*CustomRegion3!D52","v":0},{"$f":"HP240*CustomRegion3!$D52","v":0},{"$f":"HQ240*CustomRegion3!$D52","v":0},{"$f":"HM240*CustomRegion3!E52","v":0},{"$f":"HP240*CustomRegion3!E$12","v":0},{"$f":"HQ240*CustomRegion3!F$12","v":619832618.40820193},0,0,0,0,10109.340070010872,{"$f":"HN240*CustomRegion3!D52","v":0},{"$f":"IA240*CustomRegion3!$D52","v":0},{"$f":"IB240*CustomRegion3!$D52","v":0},{"$f":"HN240*CustomRegion3!E52","v":0},{"$f":"IA240*CustomRegion3!$E52","v":0},{"$f":"IB240*CustomRegion3!$E52","v":0},0,0,0]
[null,null,null,null,null,null,null,null,null,null,null,null,null,null,null,null,null,null,null,null,null,null,null,null,null,null,null,null,null,240,null,null,null,null,null,null,null,null,null,null,null,null,null,null,null,null,null,null,null,null,null,null,null,null,null,null,null,null,null,null,null,null,null,null,null,null,null,null,null,null,null,null,null,null,null,null,null,null,null,null,null,null,null,null,null,null,null,null,null,null,null,null,null,null,null,null,null,null,null,null,null,null,null,null,null,null,null,null,null,null,null,null,null,null,null,null,null,null,null,null,null,null,null,null,null,null,null,null,null,null,null,null,null,null,null,null,null,null,"HUEM",0,0,null,0,357594.09782596794,{"$f":"EJ241*'Zambia-IO-Data'!BO52","v":0},{"$f":"EM241*'Zambia-IO-Data'!$BO52","v":0},{"$f":"EN241*'Zambia-IO-Data'!$BO52","v":0},{"$f":"EJ241*'Zambia-IO-Data'!BN52","v":0},{"$f":"EM241*'Zambia-IO-Data'!$BN52","v":0},{"$f":"EN241*'Zambia-IO-Data'!$BN52","v":0},0,0,0,null,null,{"$f":"EK241*'Zambia-IO-Data'!BO52","v":0},{"$f":"EX241*'Zambia-IO-Data'!$BO52","v":0},{"$f":"EY241*'Zambia-IO-Data'!$BO52","v":0},{"$f":"EK241*'Zambia-IO-Data'!BN52","v":0},{"$f":"EX241*'Zambia-IO-Data'!$BN52","v":0},{"$f":"EY241*'Zambia-IO-Data'!$BN52","v":0},0,0,0,null,null,null,null,null,null,null,null,null,null,null,null,null,null,null,null,null,null,null,null,null,null,null,null,null,null,null,null,null,null,null,null,null,null,null,null,null,null,null,null,null,null,null,null,null,null,null,null,null,null,null,null,null,null,null,"HUEM",0,0,null,0,357594.09782596794,{"$f":"HM241*CustomRegion3!D53","v":0},{"$f":"HP241*CustomRegion3!$D53","v":0},{"$f":"HQ241*CustomRegion3!$D53","v":0},{"$f":"HM241*CustomRegion3!E53","v":0},{"$f":"HP241*CustomRegion3!E$12","v":0},{"$f":"HQ241*CustomRegion3!F$12","v":36929605.170464158},0,0,0,0,717.12466176474265,{"$f":"HN241*CustomRegion3!D53","v":0},{"$f":"IA241*CustomRegion3!$D53","v":0},{"$f":"IB241*CustomRegion3!$D53","v":0},{"$f":"HN241*CustomRegion3!E53","v":0},{"$f":"IA241*CustomRegion3!$E53","v":0},{"$f":"IB241*CustomRegion3!$E53","v":0},0,0,0]
[null,null,null,null,null,null,null,null,null,null,null,null,null,null,null,null,null,null,null,null,null,null,null,null,null,null,null,null,null,241]
[null,null,null,null,null,null,null,null,null,null,null,null,null,null,null,null,null,null,null,null,null,null,null,null,null,null,null,null,null,242,"Agriculture",{"$f":"AF200","v":0},{"$f":"AG200","v":0},null,{"$f":"AI200","v":176505.07960039817},1940206.4488875449,0,122194.63038663039,1343206.7248847347,0,32260.320603103679,354616.88818830054,0,6.7865009373822227,74.59962576658134,811.73326440120195,13561.809666694848,0,561.96369215322022,9388.8534162722735,0,148.36272935075138,2478.7293872581527,0,3.1210595027830926E-2,0.52144240961219468,null,"Agriculture",{"$f":"BG200","v":0},{"$f":"BH200","v":0},null,{"$f":"BJ200","v":54358.814563649357},1230081.315100058,0,33152.106868771501,750196.40407585783,0,5461.3038211477715,123583.41219182433,0,5.348934122516674,121.0406071696933,695.13966568923729,7092.9704839998631,0,423.94862122439469,4325.8286147367908,0,69.839067369925885,712.61426722614362,0,6.8402085431172266E-2,0.69795178861831686,null,"Agriculture",{"$f":"CH200","v":0},{"$f":"CI200","v":0},null,{"$f":"CK200","v":502339.2641965223},3356105.5070428941,0,354529.34861192032,2368594.2630582708,0,102049.76412448929,681789.77790722717,0,60.618622897221705,404.9902299795794,1400.1410732886468,29806.824670304853,0,988.15907506609642,21036.369019362144,0,284.43738416238432,6055.2292916418946,0,0.16895876905093285,3.5968692738817039,null,"Agriculture",{"$f":"DI200","v":0},{"$f":"DJ200","v":0},null,{"$f":"DL200","v":340957.6469918511},2074486.5917612209,0,137695.36153880807,837779.07250397594,0,42239.273678376252,256996.16261611058,0,3.0222017643009713,18.387964291029114,1702.9424264722452,18549.658990388045,0,687.73138001646032,7491.2588810895004,0,85.199068664434222,928.04879686851143,0,6.0959565165598492E-3,6.6401490058984075E-2,null,"Agriculture",{"$f":"SUM(EJ200:EJ212)","v":0},{"$f":"SUM(EK200:EK212)","v":0},{"$f":"SUM(EL200:EL212)","v":0},332133.43236856058,9510011.6160855275,0,100604.5384393209,3557560.9792688005,0,61221.394282299967,2850536.2034767349,0,610.41827944445436,28421.75395086456,4903.3745545529982,14508.779468800283,0,1527.9296940275292,5403.4059993400269,0,913.4235386665548,4327.294231892537,0,0,0,null,"Agriculture",{"$f":"FK200","v":0},{"$f":"FL200","v":0},null,{"$f":"FN200","v":899064.05331675347},4361504.8869581716,0,634520.56389142608,3078161.7061414104,0,182644.04380281197,886035.74648658745,0,108.4924645411248,526.3144628556737,3678.7120786131645,40196.954935322989,0,2596.2760427409125,28369.274044697369,0,747.32700917744046,8165.9747944123283,0,0.4439200280264492,4.8506740892300506,null,"Agriculture",{"$f":"GL200","v":0},{"$f":"GM200","v":0},0,47303.85473669615,469757.4094769386,0,29147.75827334412,289455.80639804021,0,5234.4861033890247,51981.781306366385,0,5.1267833193672283,50.912224055754322,384.23895555947331,4860.9090997613202,0,236.76092060974321,2995.2020658187366,0,42.518595671580805,537.89191756500395,0,4.1643749309191666E-2,{"$f":"HJ200","v":0.52682445919749288},null,"Agriculture",{"$f":"SUM(HM200:HM212)","v":0},{"$f":"SUM(HN200:HN212)","v":0},{"$f":"SUM(HO200:HO212)","v":0},332133.43236856058,9510011.6160855275,0,100604.5384393209,3557560.9792688005,0,104197.7902209048,982121842.28915036,0,1038.9217131395494,9792412.1494287327,4903.3745545529982,14508.779468800283,0,1527.9296940275292,5403.4059993400269,0,913.4235386665548,4327.294231892537,0,0,0]
[null,null,null,null,null,null,null,null,null,null,null,null,null,null,null,null,null,null,null,null,null,null,null,null,null,null,null,null,null,243,"Mining and Extraction",{"$f":"AF201","v":4986045.0041046599},{"$f":"AG201","v":288013.58303989517},null,{"$f":"AI201","v":3970949.34942804},490111.42901039869,4082988.7530388506,3251743.9211347522,401344.04136703064,338654.13131816423,269708.43651269109,33288.560392852953,33.250639732582279,26.481230334958326,3.268425884930855,75138.135023922485,366372.48777577403,235849.49981523052,61529.360439874283,300016.29463430122,19561.995467732908,5103.4115866274042,24884.162995809002,1.9206878156667164,0.50107671627548889,2.443243009024886,null,"Mining and Extraction",{"$f":"BG201","v":4986045.0041046599},{"$f":"BH201","v":288013.58303989517},null,{"$f":"BJ201","v":4557334.4192598024},679371.94369162247,4292622.49500049,3923533.8287660563,584889.88478084153,4292622.49500049,243501.92108208427,36299.371123405152,230.1854401673327,13.057425140727236,1.9464993088886628,63473.995263737394,3917.4362581635942,247958.76980752466,54646.498315271609,3372.6280028920919,15388.789655541588,3391.4649142613343,209.31166485130996,0.82520075423099415,0.18186221709701531,1.1224023953205906E-2,null,"Mining and Extraction",{"$f":"CH201","v":4986045.0041046599},{"$f":"CI201","v":288013.58303989517},null,{"$f":"CK201","v":1084293.8507653326},187537.05146415345,2870397.8237309796,624213.12021040951,107962.512161138,750329.02726019768,163170.83974155973,28221.66532482229,240.33781529453236,52.265235274792879,9.0396787831975267,15050.000809679506,1665.5864961476764,165805.47533808896,8664.0793526112247,958.85533520901288,43341.957688337097,2264.8115808212183,250.647135042581,13.88285811018039,0.72544156978158536,8.0284758629066907E-2,null,"Mining and Extraction",{"$f":"DI201","v":4986045.0041046599},{"$f":"DJ201","v":288013.58303989517},null,{"$f":"DL201","v":4643058.9984464543},1096441.3638072386,2969661.2832109891,2765380.6838887096,653034.51226952963,1006157.6829815166,936944.90923718596,221256.1060369901,65.639633785878729,61.124336433658243,14.434288003567705,62323.372346099874,9804.1672008651658,171539.32342935921,37119.461565828722,5839.3086557718525,58119.627708948523,7490.5123022053913,1178.3418044700015,3.7916035857145793,0.48866543753700425,7.687256761863169E-2,null,"Mining and Extraction",{"$f":"EJ213","v":4986045.0041046599},{"$f":"EK213","v":288013.58303989517},{"$f":"EL213","v":0},4887778.7699512737,240193.30587732047,1218151.685174451,1194144.0441220435,58682.157918993915,44427.183923888275,43551.60176314837,2140.1957199972512,40.320563502681978,39.525915654319348,1.9423670333045246,236142.20522025687,396.66205995850032,70365.235621490501,57692.424555546364,96.909385371659553,2566.288995738656,2104.0991757748498,3.5343801106683279,2.3290744377627965,1.9096070680084993,3.2076801883045426E-3,null,"Mining and Extraction",{"$f":"FK201","v":4986045.0041046599},{"$f":"FL201","v":288013.58303989517},null,{"$f":"FN201","v":7894781.6293750526},1692941.7044850802,2870397.8237309796,4544917.6630243259,974603.35401244345,750329.02726019768,1188052.6179615527,254763.70576053625,240.33781529453236,380.54501462971166,81.603336981914936,102974.88597187382,15602.66540266946,165805.47533808896,59281.231587216542,8982.2407899158588,43341.957688337097,15496.259251550877,2347.9797604341034,13.88285811018039,4.9636052430954454,0.75208116103286782,null,"Mining and Extraction",{"$f":"GL201","v":4986045.0041046599},{"$f":"GM201","v":288013.58303989517},0,832817.05327201262,260863.43891054671,4051937.8408544054,676793.51668180292,211992.15782186083,319789.70600433432,53414.343513146239,16730.984651724637,17.148243136526084,2.8642640220850066,0.89717394692301811,10582.56366583606,2699.3368032390135,234055.87692022315,8599.9805728893443,2193.6314111186343,18472.312016790955,678.73332885762056,173.12722247870917,0.9905500139939164,3.6396056313196146E-2,{"$f":"HJ201","v":9.2836875261272794E-3},null,"Mining and Extraction",{"$f":"HM213","v":4986045.0041046599},{"$f":"HN213","v":288013.58303989517},{"$f":"HO213","v":0},4887778.7699512737,240193.30587732047,1218151.685174451,1194144.0441220435,58682.157918993915,44427.183923888275,1533407.0505507602,24805342.159072485,40.320563502681978,1391.6667881339129,22512.463887967759,236142.20522025687,396.66205995850032,70365.235621490501,57692.424555546364,96.909385371659553,2566.288995738656,2104.0991757748498,3.5343801106683279,2.3290744377627965,1.9096070680084993,3.2076801883045426E-3]
[null,null,null,null,null,null,null,null,null,null,null,null,null,null,null,null,null,null,null,null,null,null,null,null,null,null,null,null,null,244,"Utilities",{"$f":"AF218","v":27681668.869357347},{"$f":"AG218","v":397029.33187676605},null,{"$f":"AI218","v":8906711.1798049882},1429305.5397829264,14640507.78910985,4710654.3690952705,755942.82219645684,2580263.9155288432,830212.42583853216,133228.43813979125,253.34232757263251,81.514122286420104,13.08098850434197,122403.07347624539,528825.09387072187,209984.12535312652,64737.54017857233,279689.34757620323,37007.900906659757,11409.436155426201,49292.848411001716,3.63360805762728,1.120231575735769,4.8398014148752759,null,"Utilities",{"$f":"BG218","v":27681668.869357347},{"$f":"BH218","v":397029.33187676605},null,{"$f":"BJ218","v":966957.95184488595},648496.41789747402,12382778.442297276,432547.11763304024,290090.43859841075,12382778.442297276,104475.16621955068,70066.925788609849,683.40498867110284,5.7659797532029149,3.8669905020040374,9368.3232148129027,3739.3999036172172,177602.2347108383,4190.710874129154,1672.7373169649065,42897.113946601305,1012.2023643309986,404.02421402750963,2.3674898010418808,5.5863403237969581E-2,2.2298078310694268E-2,null,"Utilities",{"$f":"CH218","v":27681668.869357347},{"$f":"CI218","v":397029.33187676605},null,{"$f":"CK218","v":3789360.0334070064},995489.68391887471,16588407.020938244,2270796.8540370339,596553.19698847446,3435482.6635858426,470285.25492065353,123547.01470573735,895.80413361890248,122.62715798373992,32.214957054726362,34418.377573644859,8841.3151515643112,237922.22165165533,20625.42034176167,5298.2114274507612,49274.030154575928,4271.5538582971931,1097.2671145604666,12.848232465379352,1.1138101914461269,0.28611304819724964,null,"Utilities",{"$f":"DI218","v":27681668.869357347},{"$f":"DJ218","v":397029.33187676605},null,{"$f":"DL218","v":5213876.0344674699},1754421.0955711566,15051259.017594906,2834922.9611394578,953925.37422499515,4918240.7476196177,926356.63285970886,311710.4449679025,183.63554112032733,34.587977749549907,11.638534828178747,67034.830773173191,15687.695055555028,215875.39898199023,36448.618973423021,8529.8167095545978,70540.755589994747,6475.8770100016864,1515.5044411754086,2.6338258919258788,0.24179401537753295,5.6585371153333695E-2,null,"Utilities",{"$f":"EJ219","v":27681668.869357347},{"$f":"EK219","v":397029.33187676605},{"$f":"EL219","v":0},32756693.56524694,1024993.6347909421,7378807.0563207762,8731602.2296813522,273221.61466397421,365272.97394037159,432240.37291610608,13525.28545215311,637.09078907588616,753.89196545521247,23.590124087843058,425390.56981372274,1711.0878454983467,105831.87196714047,113391.8244975627,456.10642652850407,5238.9935549269494,5613.2337705279087,22.578629523679957,9.1375896274679,9.7903206294063736,3.9380512454342056E-2,null,"Utilities",{"$f":"FK218","v":27681668.869357347},{"$f":"FL218","v":397029.33187676605},null,{"$f":"FN218","v":4232981.2110755816},1304287.132843744,16588407.020938244,2536639.5202796175,781601.93064569647,3435482.6635858426,525341.64882062539,161870.87037165306,895.80413361890248,136.98314521095153,42.207925054718615,38995.030938571785,12020.706719465961,237922.22165165533,23368.007472958612,7203.4809997515158,49274.030154575928,4839.547549958359,1491.8511500760503,12.848232465379352,1.2619148820191983,0.38900106850993182,null,"Utilities",{"$f":"GL220","v":0},{"$f":"GM220","v":0},0,256040.14572297304,209798.4864636953,0,100577.36598170939,82412.775917954466,0,37870.081815610858,31030.625391721922,0,2.0900481224607828,1.7125788281771672,2734.9885686572134,2170.9319563539375,0,1074.3547479591473,852.78274342119039,0,404.52344130390009,321.0956257312863,0,2.2325630641760821E-2,{"$f":"HJ220","v":1.7721253229862344E-2},null,"Utilities",{"$f":"HM219","v":27681668.869357347},{"$f":"HN219","v":397029.33187676605},{"$f":"HO219","v":0},32756693.56524694,1024993.6347909421,7378807.0563207762,8731602.2296813522,273221.61466397421,365272.97394037159,10276517.663703734,105853565.43969117,637.09078907588616,17923.786358171856,184624.47633335629,425390.56981372274,1711.0878454983467,105831.87196714047,113391.8244975627,456.10642652850407,5238.9935549269494,5613.2337705279087,22.578629523679957,9.1375896274679,9.7903206294063736,3.9380512454342056E-2]
[null,null,null,null,null,null,null,null,null,null,null,null,null,null,null,null,null,null,null,null,null,null,null,null,null,null,null,null,null,245,"Construction",{"$f":"AF219","v":0},{"$f":"AG219","v":0},null,{"$f":"AI219","v":1231863.1011275034},286496.80930093024,0,611697.2846879561,142263.63315918745,0,120633.46708236131,28055.961236579064,0,34.078853820962486,7.9257856456632361,17456.848235005404,19339.563453117706,0,8668.4199362647287,9603.3061145307238,0,1709.5082440506783,1893.8781339205295,0,0.48293465290986126,0.53501899300075728,null,"Construction",{"$f":"BG219","v":0},{"$f":"BH219","v":0},null,{"$f":"BJ219","v":131485.06224098123},43299.79493960875,0,66129.431154780061,21777.308841570368,0,29084.804463627683,9578.0162983501014,0,10.156016883642303,3.3445126082759975,2372.7208330203998,249.67793892951659,0,1193.3422420956217,125.57365674776007,0,524.85141885315284,55.229346276136887,0,0.18327095435495289,1.9285334166658254E-2,null,"Construction",{"$f":"CH219","v":0},{"$f":"CI219","v":0},null,{"$f":"CK219","v":452003.23036661575},297794.48197865224,0,248750.27520229059,163884.8007476198,0,76439.603210564557,50360.905656096074,0,24.484361620248542,16.131096628150193,7663.4524082924809,2644.8238571447591,0,4217.4165304443513,1455.5220364082913,0,1295.9891035243102,447.2739852721906,0,0.41511813946995202,0.14326628526010574,null,"Construction",{"$f":"DI219","v":0},{"$f":"DJ219","v":0},null,{"$f":"DL219","v":1155309.6496617664},598240.15208333195,0,343994.20082294039,178126.39501137071,0,155144.56807792338,80336.652627295465,0,15.063874359680414,7.8003455528461618,5952.3800100442058,5349.3480553577865,0,1772.3250257184839,1592.7718683603839,0,238.00251360255589,213.89062545767175,0,2.310902667501899E-2,2.0767865407891859E-2,null,"Construction",{"$f":"EJ221","v":0},{"$f":"EK221","v":0},{"$f":"EL221","v":0},2916156.2220683261,691665.10656324169,0,176911.04267816513,41960.438971071111,0,77814.526917335766,18456.347655570225,0,278.73994422131824,66.112608016084849,35165.773816562127,1145.0162799870377,0,2133.3609171527987,69.463364974427819,0,938.36126902590206,30.55354149601914,0,3.3613102610722736,0.10944604805490088,null,"Construction",{"$f":"FK219","v":0},{"$f":"FL219","v":0},null,{"$f":"FN219","v":628692.74600404862},387230.72481435002,0,345987.55734410655,213104.11716797843,0,106320.08980761288,65485.733214207627,0,34.055377278398993,20.97572862285843,9845.7903125629127,3568.836077996617,0,5418.4193503386987,1964.0323274536704,0,1665.0507213771361,603.53642495949168,0,0.53333222918429635,0.1933186916079892,null,"Construction",{"$f":"GL221","v":125567.80924101557},{"$f":"GM221","v":0},0,35197.955863218915,16391.642879946521,61188.257854291813,17151.701636912327,7987.5254434718709,25250.344859032226,7077.9328655275085,3296.1842531656989,8.8170759073460321,2.4715175848432795,1.1509825678426218,306.81701876105535,169.61581537136226,0,149.50964718992898,82.652523045841491,0,61.697624408392123,34.107928278435558,0,2.154396863681363E-2,{"$f":"HJ221","v":1.1910023183929171E-2},null,"Construction",{"$f":"HM221","v":0},{"$f":"HN221","v":0},{"$f":"HO221","v":0},2916156.2220683261,691665.10656324169,0,176911.04267816513,41960.438971071111,0,914864.34265755804,71429924.181798518,0,3277.1417618890509,255869.61549375963,35165.773816562127,1145.0162799870377,0,2133.3609171527987,69.463364974427819,0,938.36126902590206,30.55354149601914,0,3.3613102610722736,0.10944604805490088]
[null,null,null,null,null,null,null,null,null,null,null,null,null,null,null,null,null,null,null,null,null,null,null,null,null,null,null,null,null,246,"Manufacturing",{"$f":"SUM(AF202:AF217)","v":800871.29327063356},{"$f":"SUM(AG202:AG217)","v":0},null,{"$f":"SUM(AI202:AI217)","v":3410548.9286331525},7294037.9819416245,363506.34660901595,1205381.9716928231,2183706.1985418289,51030.409742559088,343029.52790350537,707287.15661119996,12.352640146470872,83.035200759359938,171.20896676932307,26493.868993847311,74426.676146565806,0,9532.3493796822768,23882.585607138652,0,2690.8219321615284,7338.7630264324271,0,0.65135191337689557,1.7764524965226971,null,"Manufacturing",{"$f":"SUM(BG202:BG217)","v":800871.29327063356},{"$f":"SUM(BH202:BH217)","v":0},null,{"$f":"SUM(BJ202:BJ217)","v":10993039.998131666},7083939.5768984146,198387.22640832764,2713124.2215686673,2399012.8441197379,198387.22640832764,667174.88818648574,533758.16435955116,31.40514986713621,65.327974801726612,105.37746292272905,147222.82065698548,40847.847790689993,0,35265.834167966539,13833.33531303476,0,8378.0542732391059,3077.7891338738746,0,0.77781074940882367,0.6076340035527722,null,"Manufacturing",{"$f":"SUM(CH202:CH217)","v":800871.29327063356},{"$f":"SUM(CI202:CI217)","v":0},null,{"$f":"SUM(CK202:CK217)","v":14462636.790479681},6789416.851353744,176073.28426154514,3063399.1969740908,1909542.3897868034,38801.83936178108,642571.73136312421,428582.33080795436,12.428613265398777,205.82208667809405,137.2791632976537,140816.23039558891,60299.343175365735,0,27578.712783989911,16959.35812907169,0,5237.145788771918,3806.3995200315435,0,1.677509641134967,1.2192274476211855,null,"Manufacturing",{"$f":"SUM(DI202:DI217)","v":800871.29327063356},{"$f":"SUM(DJ202:DJ217)","v":0},null,{"$f":"SUM(DL202:DL217)","v":6585134.9722584337},11933628.460535465,191068.77313026402,1572744.3004192899,2799649.6354919556,98423.859387289165,1059973.1631396706,1623532.9300875412,7.8951022924779046,85.026096338484194,130.23222862873106,49312.039911004766,106708.2040154261,0,11776.348991990333,25033.92706281591,0,2037.1970615543553,3475.2070256268048,0,0.16341443315709051,0.27876487597279526,null,"Manufacturing",{"$f":"SUM(EJ214:EJ218)+EJ220","v":800871.29327063356},{"$f":"SUM(EK214:EK218)+EK220","v":0},{"$f":"SUM(EL214:EL218)+EL220","v":0},24790280.014859781,11956308.538364582,129365.91563208227,3157927.2428686307,1410808.2193675151,24940.571792283688,535747.52026213938,441985.12051521894,96.48318299852194,2072.5517630052409,1709.8297352784518,326873.92661702808,19419.868914254155,0,39578.317045843709,2289.1316982842181,0,5806.9350678853316,715.39541826135314,0,22.464263589524286,2.7675238415251315,null,"Manufacturing",{"$f":"SUM(FK202:FK217)","v":800871.29327063356},{"$f":"SUM(FL202:FL217)","v":0},null,{"$f":"SUM(FN202:FN217)","v":24775241.953731339},12313612.127459386,176073.28426154514,5438004.1844771104,3335922.8680796642,38801.83936178108,1207444.9909248874,779456.81454925379,12.428613265398777,386.75658366416985,249.66773391300518,241038.62873708439,113485.99270371022,0,49916.928269460106,30744.879272491718,0,10429.64775316854,7183.7109576915709,0,3.340719423372124,2.3010137347122339,null,"Manufacturing",{"$f":"SUM(GL202:GL219)","v":28482540.16262798},{"$f":"SUM(GM202:GM219)","v":397029.33187676605},0,4164433.4997746362,3187671.0718288394,211952.15527390473,1292035.9607678715,1058080.984226465,85575.875740295145,510179.90886718628,355159.65776719281,12.090913988542605,69.910085769048749,63.086942392715201,35492.309051152653,32985.066350208159,0,11340.694648938539,10948.705397191463,0,4055.3705898555363,3675.0858581048446,0,0.49040881843170131,{"$f":"SUM(HJ202:HJ219)","v":0.65280480130015295},null,"Manufacturing",{"$f":"SUM(HM214:HM218)+HM220","v":800871.29327063356},{"$f":"SUM(HN214:HN218)+HN220","v":0},{"$f":"SUM(HO214:HO218)+HO220","v":0},24790280.014859781,11956308.538364582,129365.91563208227,3157927.2428686307,1410808.2193675153,24940.571792283688,7777273.0618682541,1234756827.0909796,96.48318299852194,30086.562020597587,4776685.5507198786,326873.92661702808,19419.868914254155,0,39578.317045843709,2289.1316982842181,0,5806.9350678853316,715.39541826135314,0,22.464263589524286,2.7675238415251315]
[null,null,null,null,null,null,null,null,null,null,null,null,null,null,null,null,null,null,null,null,null,null,null,null,null,null,null,null,null,247,"Sales",{"$f":"AF220","v":0},{"$f":"AG220","v":0},null,{"$f":"AI220","v":1246511.4719857394},2689478.4360997109,0,748888.58874039538,1615805.1937138371,0,324872.40706785326,700946.08267094591,0,101.0292522301458,217.9811428894449,13792.79134248523,31466.712363752831,0,8286.5374891492993,18904.809417317902,0,3594.7501682271613,8201.0208633211132,0,1.1179001772666022,2.5503643501865838,null,"Sales",{"$f":"BG220","v":0},{"$f":"BH220","v":0},null,{"$f":"BJ220","v":4768584.8846220979},4183421.8723474918,0,3631125.3188148201,3185542.345896292,0,731175.79950706847,641451.68979862682,0,153.33897794403268,134.5224316511904,62356.312274945871,24122.704327287909,0,47482.343246034718,18368.670068885753,0,9561.2068538356689,3698.7781594612702,0,2.0051343163532431,0.7756915135810899,null,"Sales",{"$f":"CH220","v":0},{"$f":"CI220","v":0},null,{"$f":"CK220","v":3324866.4363431344},2964361.3850289397,0,2297864.7660105838,2048714.3501235519,0,511484.28605250642,456025.61656304327,0,163.83348024827771,146.06951939911684,30558.303545637878,26327.599021412541,0,21119.299187190212,18195.396213117278,0,4700.9684061797007,4050.1335758180576,0,1.5057667176163396,1.2972978785286822,null,"Sales",{"$f":"DI220","v":0},{"$f":"DJ220","v":0},null,{"$f":"DL220","v":6336474.5755853085},6019051.0613203505,0,3721197.9306617975,3534785.8003303111,0,1786863.0520233666,1697350.7620713355,0,191.64003434464809,182.03989274384062,38351.276474863,53821.193675893926,0,22522.411942813818,31607.372860639029,0,6351.2392045455945,8913.1655248510215,0,0.68116675081055766,0.95593187478345487,null,"Trade, Transportation, and Warehousing (Sales for other countries)",{"$f":"EJ222","v":0},{"$f":"EK222","v":0},{"$f":"EL222","v":0},2986837.2399174692,2506096.2182004182,0,675238.52242200379,566556.71919765545,0,248594.52857319274,208582.44285845605,0,637.33093816971279,534.75048206288443,36560.459452875497,4119.4076295243867,0,8265.2748164849345,931.28031344983344,0,3042.9278370581878,342.85838678331351,0,7.8012660387416126,0.87899865923085729,null,"Sales",{"$f":"FK220","v":0},{"$f":"FL220","v":0},null,{"$f":"FN220","v":6022920.0898104636},4603688.9053129209,0,4162529.8723561894,3181678.0408260142,0,926542.17577420746,708213.2705251358,0,296.78063118114443,226.84772148843109,58499.582940491542,42428.996472401413,0,40429.933965442586,29323.312054107642,0,8999.3441804525828,6527.1087979339436,0,2.8825790297774221,2.090697562925512,null,"Sales",{"$f":"GL222","v":0},{"$f":"GM222","v":0},0,1083012.0914727915,1180795.1169881406,0,794565.39762666763,866305.14011106058,0,193515.89561648425,210988.0641247411,0,40.58330386448867,44.247490320506785,11439.040137928883,12218.514521170442,0,8392.3951978233454,8964.2663506355766,0,2043.9624956300245,2183.2413500128673,0,0.42865083916499669,{"$f":"HJ222","v":0.45785978890687667},null,"Trade, Transportation, and Warehousing (Sales for other countries)",{"$f":"HM222","v":0},{"$f":"HN222","v":0},{"$f":"HO222","v":0},2986837.2399174692,2506096.2182004182,0,675238.52242200379,566556.71919765545,0,937038.58093861281,258810602.35612774,0,2402.3202816187086,663522.26235475799,36560.459452875497,4119.4076295243867,0,8265.2748164849345,931.28031344983344,0,3042.9278370581878,342.85838678331351,0,7.8012660387416126,0.87899865923085729]
[null,null,null,null,null,null,null,null,null,null,null,null,null,null,null,null,null,null,null,null,null,null,null,null,null,null,null,null,null,248,"Transportation and Warehousing",{"$f":"AF222","v":0},{"$f":"AG222","v":0},null,{"$f":"AI222","v":2660748.9768787413},1897524.4129312648,0,1160662.646658398,827731.4870173469,0,293561.84931296733,209354.87737368431,0,67.399588991718431,48.066302625566145,26726.995430921877,39196.586620025948,0,11658.756810073341,17098.198425220242,0,2948.8036163729489,4324.5802422252036,0,0.67702309488091406,0.99289104347119173,null,"Transportation and Warehousing",{"$f":"BG222","v":0},{"$f":"BH222","v":0},null,{"$f":"BJ222","v":1455659.9084402763},2417134.6088171266,0,1063934.6850768887,1766671.8262343421,0,343239.36970999918,569951.64517760405,0,48.339599998816951,80.268282073326546,16420.042164914616,13937.830146456487,0,12001.328255578888,10187.091669931609,0,3871.7868717946772,3286.4902075380828,0,0.54527727638398915,0.46284790164556622,null,"Transportation and Warehousing",{"$f":"CH222","v":0},{"$f":"CI222","v":0},null,{"$f":"CK222","v":336170.44415827986},736937.26171836071,0,148595.4105302445,325743.96959333913,0,55296.920081188495,121219.34445522969,0,17.712150912456352,38.827756036822485,3198.492840053309,6545.0146626671585,0,1413.8106573759094,2893.0536804347498,0,526.12240614884888,1076.594206959222,0,0.16852221502483319,0.34484378220596473,null,"Transportation and Warehousing",{"$f":"DI222","v":0},{"$f":"DJ222","v":0},null,{"$f":"DL222","v":3890617.591359213},3144739.0485082688,0,2057391.1496664542,1662964.3326501013,0,716693.13546971022,579294.37576054351,0,41.348791072963735,33.421726716228605,54950.830136020901,28119.65003546291,0,29058.458955144302,14869.906321085649,0,5352.8771644721191,2739.1948797714117,0,0.30882812818897237,0.15803471693302823,null,"Transportation and Warehousing",null,null,null,null,null,null,null,null,null,null,null,null,null,null,null,null,null,null,null,null,null,null,null,null,null,null,"Transportation and Warehousing",{"$f":"FK222","v":0},{"$f":"FL222","v":0},null,{"$f":"FN222","v":828800.39624457143},1295330.6342331022,0,366349.68144196999,572567.25185407407,0,136329.97805367783,213069.87513208744,0,43.667841565737788,68.248390284608604,8238.1140083746668,11938.160905495437,0,3641.444256452909,5276.9538534832473,0,1355.0933458217087,1963.7167424413233,0,0.43404981337874982,0.62899791236782265,null,"Transportation and Warehousing",{"$f":"GL224","v":0},{"$f":"GM224","v":0},0,392829.76083366695,723390.48204313451,0,243728.40996053405,448822.44052688114,0,82764.76576951184,152410.15262981853,0,11.656051211940646,21.464454442125263,4470.8427323804963,7485.4282357345628,0,2773.9023337595327,4644.280305793246,0,941.9557488529349,1577.0946511290022,0,0.13265892008427863,{"$f":"HJ224","v":0.22210775139303268},null,"Transportation and Warehousing"]
[null,null,null,null,null,null,null,null,null,null,null,null,null,null,null,null,null,null,null,null,null,null,null,null,null,null,null,null,null,249,"Information",{"$f":"AF223","v":0},{"$f":"AG223","v":0},null,{"$f":"AI223","v":1063139.2572979548},1148593.2321205067,0,581250.33492316818,627970.60335946362,0,141088.22088727687,152428.73831497732,0,32.392792597642206,34.996489962845672,4063.3433637096632,11611.329544814595,0,2221.5525152055902,6348.2644822843422,0,539.24251419045254,1540.9287319305888,0,0.12380601876012219,0.3537856279373966,null,"Information",{"$f":"BG223","v":0},{"$f":"BH223","v":0},null,{"$f":"BJ223","v":730136.99125255318},942102.13777412171,0,445486.39779687009,574814.99053175992,0,113883.07307972548,146944.32399684383,0,9.4651625788703679,12.212981956490086,3094.2506617427657,5432.4072515494299,0,1887.9287006341578,3314.5335284365219,0,482.62555994283503,847.31939271522424,0,4.0112452764418251E-2,7.0423247207816217E-2,null,"Information",{"$f":"CH223","v":0},{"$f":"CI223","v":0},null,{"$f":"CK223","v":416051.00221812143},652399.95259599108,0,252001.19252527301,395157.24077364214,0,44685.598652958652,70070.453592201273,0,11.651796241281017,18.270912159669805,1110.9558395708596,5794.2072920937426,0,672.90355009888378,3509.5388295225171,0,119.32125269150927,622.32183118454702,0,3.1113087113667153E-2,0.16227078504146039,null,"Information",{"$f":"DI223","v":0},{"$f":"DJ223","v":0},null,{"$f":"DL223","v":2492447.7092575678},1791222.0802817293,0,1012135.9692120131,727381.47707818425,0,331215.82331690338,238031.51169845471,0,19.109118255213314,13.732955931760969,7073.9608946837743,16016.762362908559,0,2872.6019967100347,6504.1048755441307,0,381.73367965481054,864.31600682789474,0,2.2023688220783193E-2,4.9865723862308906E-2,null,"Information",null,null,null,null,null,null,null,null,null,null,null,null,null,null,null,null,null,null,null,null,null,null,null,null,null,null,"Information",{"$f":"FK223","v":0},{"$f":"FL223","v":0},null,{"$f":"FN223","v":538654.1289793913},831350.45522933488,0,326261.64133190614,503547.17332080012,0,57853.681620776333,89290.477812276396,0,15.085381652565106,23.282544826920056,2137.2367337101364,7661.9785258615721,0,1294.5196688203416,4640.8438276225615,0,229.54806598173286,822.92818781563642,0,5.9854793782027411E-2,0.21457901101655191,null,"Information",{"$f":"GL225","v":0},{"$f":"GM225","v":0},0,414650.40542760916,277264.86990061746,0,254912.34821284725,170452.59847366819,0,69760.899444165872,46647.118766446089,0,5.7980368550908894,3.876981460196399,1771.9596745261751,2869.0539030448535,0,1089.3378992506446,1763.7924815729637,0,298.11498808559151,482.6904259837894,0,2.4777227669758702E-2,{"$f":"HJ225","v":4.0117843974954437E-2},null,"Information"]
[null,null,null,null,null,null,null,null,null,null,null,null,null,null,null,null,null,null,null,null,null,null,null,null,null,null,null,null,null,250,"Finance, Professional, and Business Services",{"$f":"AF228+AF229+AF225+AF224+AF227+AF226","v":27831440.657016721},{"$f":"AG228+AG229+AG225+AG224+AG227+AG226","v":0},null,{"$f":"AI228+AI229+AI225+AI224+AI227+AI226","v":8111115.1798335472},8407388.0786652137,20279418.730200116,5912270.2034368441,6041362.4836258329,7646672.9365633223,1855024.1972952022,2325537.5983131207,750.78595963644318,218.52256405780096,256.43942548590752,55825.474781723504,111074.66767466356,0,39862.466688883556,79563.310526581961,0,13474.522695561787,28756.804677409436,0,1.6222815596932088,3.3074745294312011,null,"Finance, Professional, and Business Services",{"$f":"BG228+BG229+BG225+BG224+BG227+BG226","v":27831440.657016721},{"$f":"BH228+BH229+BH225+BH224+BH227+BH226","v":0},null,{"$f":"BJ228+BJ229+BJ225+BJ224+BJ227+BJ226","v":7877860.6417013565},7423184.3245313084,20900294.4121048,5953478.1637273701,5866914.9371224903,20900294.4121048,2108342.0359747997,2072724.0628769088,5655.6016656026095,510.81621569755339,1076.7509479492803,46699.94593890445,42804.021705595966,0,35159.536288831165,33830.165510450563,0,12201.800348518003,11951.868887843628,0,2.949731175681058,6.2088274967430594,null,"Finance, Professional, and Business Services",{"$f":"CH228+CH229+CH225+CH224+CH227+CH226","v":27831440.657016721},{"$f":"CI228+CI229+CI225+CI224+CI227+CI226","v":0},null,{"$f":"CK228+CK229+CK225+CK224+CK227+CK226","v":4400703.7091788026},6882509.4338226626,13495188.582468381,2695380.1719375439,4512843.6202782802,5319360.6603521258,583188.35336490581,1356158.1708728245,1387.0264339449614,152.06670758669949,353.61904403875047,31798.730347918092,61126.133119226062,0,18197.455254017954,40080.247260361088,0,4874.1383549854563,12044.546495805696,0,1.2709344548602781,3.1406226126159607,null,"Finance, Professional, and Business Services",{"$f":"DI228+DI229+DI225+DI224+DI227+DI226","v":27831440.657016721},{"$f":"DJ228+DJ229+DJ225+DJ224+DJ227+DJ226","v":0},null,{"$f":"DL228+DL229+DL225+DL224+DL227+DL226","v":10781435.060105566},20726798.645546492,11886411.502340024,5732585.4997736309,11897843.403200833,7695334.3013417674,2563555.5151627301,7384216.6353855515,492.07405963991505,163.97818712493932,459.05454331499726,73511.124833788417,185335.03584176383,0,39530.509382703684,106388.2209347231,0,10435.780189997202,38799.766487711502,0,0.66756644969550072,2.4083242647952083,null,"Finance, Professional, and Business Services",{"$f":"EJ225","v":0},{"$f":"EK225","v":0},{"$f":"EL225","v":0},6094608.5041991221,1979003.2542427722,0,1269681.6507030884,412283.1051186503,0,302549.38393071067,98241.948593661495,0,309.04249458739923,100.35035098093402,62452.424552255718,3324.5580691654759,0,13010.630205580048,692.60074280537935,0,3100.2717500633121,165.03816364494492,0,3.1668076896756583,0.16858010131211501,null,"Finance, Professional, and Business Services",{"$f":"FK228+FK229+FK225+FK224+FK227+FK226","v":27831440.657016721},{"$f":"FL228+FL229+FL225+FL224+FL227+FL226","v":0},null,{"$f":"FN228+FN229+FN225+FN224+FN227+FN226","v":6751158.0082695642},8951350.3787217252,13495188.582468381,3994459.7598861689,5773384.9465745343,5319360.6603521258,954171.08541029133,1709223.0047782457,1387.0264339449614,248.80067407995989,445.68090800922056,54906.944068658449,82498.366300056819,0,31011.364910820397,53209.270776165977,0,8523.7104211496244,15752.718815685086,0,2.2225625266484648,4.1075307351712853,null,"Finance, Professional, and Business Services",{"$f":"SUM(GL226:GL231)","v":27831440.657016721},{"$f":"SUM(GM226:GM231)","v":0},0,3031045.5235783001,1651035.9486849089,23588086.53414204,2240722.1965841148,1310471.7474714136,1104828.0256455231,581420.04894105275,206961.64151668333,467.67521460830676,135.69431334734378,47.739147759838893,25781.48842949453,17084.425929399935,0,18479.352810154822,13560.369488065833,0,4863.9005887160647,2141.5771337596639,0,1.0067996148437133,{"$f":"SUM(HJ226:HJ231)","v":0.49399041522099385},null,"Finance, Professional, and Business Services",{"$f":"HM225","v":0},{"$f":"HN225","v":0},{"$f":"HO225","v":0},6094608.5041991221,1979003.2542427722,0,1269681.6507030884,412283.1051186503,0,1912016.9079949423,204376440.36792052,0,1953.0513242604,208762.62957673057,62452.424552255718,3324.5580691654759,0,13010.630205580048,692.60074280537935,0,3100.2717500633121,165.03816364494492,0,3.1668076896756583,0.16858010131211501]
[null,null,null,null,null,null,null,null,null,null,null,null,null,null,null,null,null,null,null,null,null,null,null,null,null,null,null,null,null,251,"Education and Health Care",{"$f":"AF230+AF231","v":0},{"$f":"AG230+AG231","v":0},null,{"$f":"AI230+AI231","v":59314.004776209906},3146358.3798456267,0,46122.353525385151,1882309.026385641,0,33959.150232981192,1389601.1657397647,0,3.334267518386334,136.43751385563263,574.26048837392466,21250.570349641555,0,450.7153592151065,12820.318559382034,0,331.82723660526125,9463.5982613109045,0,3.2580343416670085E-2,0.92918014948150462,null,"Education and Health Care",{"$f":"BG230+BG231","v":0},{"$f":"BH230+BH231","v":0},null,{"$f":"BJ230+BJ231","v":72253.98253892301},2818067.7959935479,0,64826.784417178817,2349843.3988207495,0,55905.299544768372,1884798.3699902724,0,13.922614047276943,595.09473783652061,586.60112494708744,16249.715733034174,0,526.30268020636959,13549.81143543484,0,453.87272024485196,10868.240206985502,0,0.11303212328728351,3.431471853805641,null,"Education and Health Care",{"$f":"CH230+CH231","v":0},{"$f":"CI230+CI231","v":0},null,{"$f":"CK230+CK231","v":727940.22765153786},2637207.3285725852,0,408937.12304642261,1662035.3328197105,0,268669.33489021868,1131849.3856748696,0,70.055687755993645,295.1303958155541,915.98641431681608,23422.021833654304,0,501.37240167487664,14761.155648190332,0,326.48026023156984,10052.376518320203,0,8.5129920683445603E-2,2.6211631143571976,null,"Education and Health Care",{"$f":"DI230+DI231","v":0},{"$f":"DJ230+DJ231","v":0},null,{"$f":"DL230+DL231","v":335535.09247708583},1964708.5721466113,0,155697.0251750568,931798.68833506701,0,69176.042714038776,428023.2014238229,0,4.2362033422881753,26.211289997375189,433.12392782762362,17568.045112246615,0,202.7381875733187,8331.9641519745564,0,42.862470086600041,1823.9688868838812,0,2.6248124627506753E-3,0.11169622880551192,null,"Education and Health Care",null,null,null,null,null,null,null,null,null,null,null,null,null,null,null,null,null,null,null,null,null,null,null,null,null,null,"Education and Health Care",{"$f":"FK230+FK231","v":0},{"$f":"FL230+FL231","v":0},null,{"$f":"FN230+FN231","v":773125.320677354},2996200.8288911982,0,434471.70808811666,1887073.2628069902,0,285478.74700285122,1284862.4755502981,0,74.438751892455571,335.0286493742376,1375.6500641544537,27613.897683859672,0,759.54452084135994,17391.840860141398,0,496.08581353744461,11841.683172755367,0,0.12935466888157529,3.0877258813140274,null,"Education and Health Care",{"$f":"GL234+GL233","v":0},{"$f":"GM234+GM233","v":0},0,7220.625251897176,298901.57193978044,0,6272.9644753385264,246179.01708852331,0,4617.5387836576037,167596.66167146317,0,1.2483700769961925,54.207877207669668,51.182471840954726,3092.9440210274515,0,44.60265840040514,2547.386800494196,0,32.970891529966501,1734.2401021743299,0,8.8231093314362647E-3,{"$f":"HJ234+HJ233","v":0.56092689179912014},null,"Education and Health Care"]
[null,null,null,null,null,null,null,null,null,null,null,null,null,null,null,null,null,null,null,null,null,null,null,null,null,null,null,null,null,252,"Other",{"$f":"AF233+AF232+AF221+AF234","v":125567.80924101557},{"$f":"AG233+AG232+AG221+AG234","v":0},null,{"$f":"AI233+AI232+AI221+AI234","v":1235074.5878697946},25152991.494346496,58033.526759830049,621781.06524086976,1699298.2257568864,24674.41531815294,252895.38779570608,810084.39979504026,5.1906781940007427,53.200797581970761,170.41487610135042,4760.8329719242975,170053.84263233494,0,2334.7235466501288,13501.670353318597,0,962.41610374158586,6285.8897967679532,0,0.20246041167878681,1.3223426240203868,null,"Other",{"$f":"BG233+BG232+BG221+BG234","v":125567.80924101557},{"$f":"BH233+BH232+BH221+BH234","v":0},null,{"$f":"BJ233+BJ232+BJ221+BJ234","v":366961.03450901306},24920062.689869922,92346.381383115266,260372.38677891708,1014428.0166274474,92346.381383115266,59296.059277670232,332200.42477188329,66.068846833851111,42.366679231356763,164.14143141190789,2319.1278634309474,143695.59715188071,0,1662.6840908873558,5849.4571795814327,0,386.88144480767255,1915.5545074575157,0,0.27653807803932928,0.94648241048312087,null,"Other",{"$f":"CH233+CH232+CH221+CH234","v":125567.80924101557},{"$f":"CI233+CI232+CI221+CI234","v":0},null,{"$f":"CK233+CK232+CK221+CK234","v":2470992.4272130127},20176084.802661806,47070.711563044533,1085728.291541595,845624.90832833562,17731.912284442493,742488.67907594494,565991.32720277086,5.679707041320877,400.32089611821345,301.85907172041794,3342.3076995625106,179191.33381954685,0,1431.535806401941,7510.3101873558498,0,912.88080561486504,5026.7800638099889,0,0.47444983856036704,2.6809229945334012,null,"Other",{"$f":"DI233+DI232+DI221+DI234","v":125567.80924101557},{"$f":"DJ233+DJ232+DJ221+DJ234","v":0},null,{"$f":"DL233+DL232+DL221+DL234","v":2917720.328549671},40998791.270509213,56387.865915317583,1975055.4717806964,2352233.6141628427,21629.577444437276,1074505.4243101759,1273994.9588081886,2.3197597373891976,68.23996564111232,81.506265244854276,14808.141518632203,366603.28396742011,0,10033.945986178383,21033.219294709736,0,3777.3017762843087,7844.6877352512847,0,0.23673353685007884,0.49440432800060818,null,"Other",{"$f":"SUM(EJ226:EJ241)+EJ224+EJ223","v":27957008.466257736},{"$f":"SUM(EK226:EK241)+EK224+EK223","v":0},{"$f":"SUM(EL226:EL241)+EL224+EL223","v":0},30074194.391491123,45437771.285966113,10218214.099054493,10952782.36693801,535826.0582003193,8165596.7967114262,8744246.9145119991,377669.90558983519,19639.49741377648,21031.449230611262,908.8164707128791,5287.1565609717827,72607.407634781441,0,1903.7198240179077,894.76512377159884,0,1509.4769523547873,631.43364853914181,0,3.6481788261698176,1.5194272696304034,null,"Other",{"$f":"FK233+FK232+FK221+FK234","v":125567.80924101557},{"$f":"FL233+FL232+FL221+FL234","v":0},null,{"$f":"FN233+FN232+FN221+FN234","v":2743371.0885411287},25120397.594012342,47070.711563044533,1204123.1684322751,1017255.0572885214,17731.912284442493,821160.70427742763,680188.69336162729,5.679707041320877,442.12211102326586,362.57789442526041,5907.5010760208042,231517.22082516016,0,2537.1188447780478,9375.331853422329,0,1630.5184733357191,6268.8257753259695,0,0.85105737839176365,3.3416280986724183,null,"Other",{"$f":"GL232+SUM(GL235:GL238)","v":0},{"$f":"GM232+SUM(GM235:GM238)","v":0},0,40573.863673195665,11331726.101786768,0,28965.657156255955,185715.78701861709,0,10461.381112586781,76095.333413093977,0,7.4316238089509579,32.225913424453822,361.94500433451094,117257.31071599478,0,258.18992775148774,1921.7313891723704,0,90.62859547140161,787.41173885675346,0,6.4381329829070036E-2,{"$f":"HJ232+SUM(HJ235:HJ238)","v":0.3334641086076115},null,"Other",{"$f":"SUM(HM226:HM241)+HM224+HM223","v":27957008.466257736},{"$f":"SUM(HN226:HN241)+HN224+HN223","v":0},{"$f":"SUM(HO226:HO241)+HO224+HO223","v":0},30074194.391491123,45437771.285966113,10218214.099054493,10952782.36693801,535826.0582003193,8165596.7967114262,9434956.8362330664,4692468258.335803,19639.49741377648,22691.397764356494,526128.85627598769,5287.1565609717827,73324.532296546182,0,1903.7198240179077,894.76512377159884,0,1509.4769523547873,631.43364853914181,0,3.6481788261698176,1.5194272696304034]
[null,null,null,null,null,null,null,null,null,null,null,null,null,null,null,null,null,null,null,null,null,null,null,null,null,null,null,null,null,253,"Total",{"$f":"SUM(AF243:AF253)","v":61425593.632990383},{"$f":"SUM(AG243:AG253)","v":685042.91491666122},null,{"$f":"SUM(AI243:AI253)","v":32072481.117236067},53882492.242932245,39424455.145717666,18972647.369522493,17520940.440008245,10641295.808471043,4497245.3905321807,6844429.8667762568,1054.9222452821298,707.77517111674752,1134.4195434915878,348047.35737256031,1387179.3400981077,445833.62516835704,209844.38603572382,770816.95911255106,56569.896374392665,42913.102982315759,144461.20452738705,5.5542958732939969,6.5628570590221509,19.571996647564074,null,"Total",{"$f":"SUM(BG243:BG253)","v":61425593.632990383},{"$f":"SUM(BH243:BH253)","v":685042.91491666122},null,{"$f":"SUM(BJ243:BJ253)","v":31974633.689105205},52389162.477860697,37866428.957194008,18587710.442603361,18804182.395649496,37866428.957194008,4461539.7208669279,6421356.4063738799,6666.6660911420322,877.90558019972286,2298.5668853903067,354609.27966313116,302089.60869120486,425561.00451836293,194440.45748285993,108429.83229709702,58285.903602142891,40334.585837198225,37027.219988256191,3.192690555272875,7.1970348320392548,13.254137652067941,null,"Total",{"$f":"SUM(CH243:CH253)","v":61425593.632990383},{"$f":"SUM(CI243:CI253)","v":685042.91491666122},null,{"$f":"SUM(CK243:CK253)","v":31967357.415978041},45675843.740158662,33177137.422962189,13450195.750627408,14936656.584659167,9561706.1028443892,3660330.3654781142,5013815.9927627761,2541.276703165116,1281.4581833170187,1753.4318249136388,270272.9789475539,405664.20309912798,403727.69698974432,105410.16494063304,132658.01776648371,92615.987842913019,24813.849201428977,44529.569738446393,26.73109057555974,7.6367545447424927,15.572881980871976,null,"Total",{"$f":"SUM(DI243:DI253)","v":61425593.632990383},{"$f":"SUM(DJ243:DJ253)","v":685042.91491666122},null,{"$f":"SUM(DL243:DL253)","v":44692567.65916039},92102528.342071071,30154788.4421915,22308800.554078855,26529522.305259168,13739786.168774627,9662667.5399897899,14094743.741483739,751.56409657598829,687.37678642683875,978.46003525340961,375454.02325261023,823563.04431328806,387414.72241134942,192025.15238810057,237221.87161626844,128660.38329894327,42668.582441069062,68296.092214895398,6.4254294776404581,2.8420222354918501,4.6776493073917571,null,"Total",{"$f":"SUM(EJ243:EJ253)","v":61425593.632990375},{"$f":"SUM(EK243:EK253)","v":685042.91491666122},{"$f":"SUM(EL243:EL253)","v":0},{"$f":"SUM(EM243:EM253)","v":104838682.1401026},{"$f":"SUM(EN243:EN253)","v":73346042.96009092},{"$f":"SUM(EO243:EO253)","v":18944538.756181803},{"$f":"SUM(EP243:EP253)","v":26258891.637852613},{"$f":"SUM(EQ243:EQ253)","v":6856899.2927069794},{"$f":"SUM(ER243:ER253)","v":8600237.5263679698},{"$f":"SUM(ES243:ES253)","v":10445966.243156932},{"$f":"SUM(ET243:ET253)","v":4011137.4498616275},{"$f":"SUM(EU243:EU253)","v":20413.391949353569},{"$f":"SUM(EV243:EV253)","v":25732.950531148919},{"$f":"SUM(EW243:EW253)","v":31767.146089036945},{"$f":"SUM(EX243:EX253)","v":1132775.890588226},{"$f":"SUM(EY243:EY253)","v":117232.78790196963},{"$f":"SUM(EZ243:EZ253)","v":176197.10758863098},{"$f":"SUM(FA243:FA253)","v":237503.48155621602},{"$f":"SUM(FB243:FB253)","v":10833.663054525648},{"$f":"SUM(FC243:FC253)","v":7805.2825506656054},{"$f":"SUM(FD243:FD253)","v":23028.729361356833},{"$f":"SUM(FE243:FE253)","v":6238.6864002516577},{"$f":"SUM(FF243:FF253)","v":11.466664065230697},{"$f":"SUM(FG243:FG253)","v":52.141754102598526},{"$f":"SUM(FH243:FH253)","v":5.4865641123960547},null,"Total",{"$f":"SUM(FK243:FK253)","v":61425593.632990383},{"$f":"SUM(FL243:FL253)","v":685042.91491666122},null,{"$f":"SUM(FN243:FN253)","v":56088790.626025245},63857895.372961357,33177137.422962189,23988265.320553213,21318899.708718125,9561706.1028443892,6391339.7634567227,6832460.6675419081,2541.276703165116,2167.7279767194855,2382.435295836849,527598.07693011616,588533.77655200032,403727.69698974432,220254.78888987048,196481.46065925329,92615.987842913019,54412.132585511157,62970.034579530868,26.73109057555974,17.122950016557517,21.957247946560692,null,"Total",{"$f":"SUM(GL243:GL253)","v":61425593.632990375},{"$f":"SUM(GM243:GM253)","v":685042.91491666122},0,10305124.779606998,19607596.140903316,27913164.788124643,5684873.2773573985,4877875.9804979553,1535443.9522491847,1556317.2828323189,1318898.2054924178,505.73144764072146,284.87439798261619,321.52176640620314,93377.375710471999,202893.53735130583,234055.87692022315,52439.081364726946,50474.800956330058,18472.312016790955,13514.376888383014,13647.563954074687,0.9905500139939164,2.2784092642559171,{"$f":"SUM(HJ243:HJ253)","v":3.3270110243401541},null,"Total",{"$f":"SUM(HM243:HM253)","v":61425593.632990375},{"$f":"SUM(HN243:HN253)","v":685042.91491666122},{"$f":"SUM(HO243:HO253)","v":0},104838682.1401026,73346042.96009092,18944538.756181803,26258891.637852613,6856899.2927069794,8600237.5263679698,32890272.234167829,7574622802.2205429,20413.391949353569,80764.848012167553,16430518.004071169,1132775.890588226,117949.91256373437,176197.10758863098,237503.48155621602,10833.663054525648,7805.2825506656054,23028.729361356833,6238.6864002516577,11.466664065230697,52.141754102598526,5.4865641123960547]
[null,null,null,null,null,null,null,null,null,null,null,null,null,null,null,null,null,null,null,null,null,null,null,null,null,null,null,null,null,254]
[null,null,null,null,null,null,null,null,null,null,null,null,null,null,null,null,null,null,null,null,null,null,null,null,null,null,null,null,null,255]
[null,null,null,null,null,null,null,null,null,null,null,null,null,null,null,null,null,null,null,null,null,null,null,null,null,null,null,null,null,256]
[null,null,null,null,null,null,null,null,null,null,null,null,null,null,null,null,null,null,null,null,null,null,null,null,null,null,null,null,null,257]
[null,null,null,null,null,null,null,null,null,null,null,null,null,null,null,null,null,null,null,null,null,null,null,null,null,null,null,null,null,258]
[null,null,null,null,null,null,null,null,null,null,null,null,null,null,null,null,null,null,null,null,null,null,null,null,null,null,null,null,null,259]
[null,null,null,null,null,null,null,null,null,null,null,null,null,null,null,null,null,null,null,null,null,null,null,null,null,null,null,null,null,260]
[null,null,null,null,null,null,null,null,null,null,null,null,null,null,null,null,null,null,null,null,null,null,null,null,null,null,null,null,null,261,"General",null,null,null,"Output",null,"Value Added",null,null,"Earnings",null,null,"Jobs",null,null,null,null,null,null,null,null,null,null,null,null,null,null,"General",null,null,null,"Output",null,"Value Added",null,null,"Earnings",null,null,"Jobs",null,null,null,null,null,null,null,null,null,null,null,null,null,null,"General",null,null,null,"Output",null,"Value Added",null,null,"Earnings",null,null,"Jobs",null,null,null,null,null,null,null,null,null,null,null,null,null,null,"General",null,null,null,"Output",null,"Value Added",null,null,"Earnings",null,null,"Jobs",null,null,null,null,null,null,null,null,null,null,null,null,null,null,"General",null,null,null,"Output",null,"Value Added",null,null,"Earnings",null,null,"Jobs",null,null,null,null,null,null,null,null,null,null,null,null,null,null,"General",null,null,null,"Output",null,"Value Added",null,null,"Earnings",null,null,"Jobs",null,null,null,null,null,null,null,null,null,null,null,null,null,null,"General",null,null,null,"Output",null,"Value Added",null,null,"Earnings",null,null,"Jobs",null,null,null,null,null,null,null,null,null,null,null,null,null,null,"General",null,null,null,"Output",null,"Value Added",null,null,"Earnings",null,null,"Jobs"]
[null,null,null,null,null,null,null,null,null,null,null,null,null,null,null,null,null,null,null,null,null,null,null,null,null,null,null,null,null,262,"Colombia","Final Demand",null,null,"Indirect","Induced","Direct","Indirect","Induced","Direct","Indirect","Induced","Direct","Indirect","Induced",null,null,null,null,null,null,null,null,null,null,null,null,"Mexico","Final Demand",null,null,"Indirect","Induced","Direct","Indirect","Induced","Direct","Indirect","Induced","Direct","Indirect","Induced",null,null,null,null,null,null,null,null,null,null,null,null,"Philippines","Final Demand",null,null,"Indirect","Induced","Direct","Indirect","Induced","Direct","Indirect","Induced","Direct","Indirect","Induced",null,null,null,null,null,null,null,null,null,null,null,null,"South Africa","Final Demand",null,null,"Indirect","Induced","Direct","Indirect","Induced","Direct","Indirect","Induced","Direct","Indirect","Induced",null,null,null,null,null,null,null,null,null,null,null,null,"Zambia","Final Demand",null,null,"Indirect","Induced","Direct","Indirect","Induced","Direct","Indirect","Induced","Direct","Indirect","Induced",null,null,null,null,null,null,null,null,null,null,null,null,"CR1","Final Demand",null,null,"Indirect","Induced","Direct","Indirect","Induced","Direct","Indirect","Induced","Direct","Indirect","Induced",null,null,null,null,null,null,null,null,null,null,null,null,"CR2","Final Demand",null,null,"Indirect","Induced","Direct","Indirect","Induced","Direct","Indirect","Induced","Direct","Indirect","Induced",null,null,null,null,null,null,null,null,null,null,null,null,"CR3","Final Demand",null,null,"Indirect","Induced","Direct","Indirect","Induced","Direct","Indirect","Induced","Direct","Indirect","Induced"]
[null,null,null,null,null,null,null,null,null,null,null,null,null,null,null,null,null,null,null,null,null,null,null,null,null,null,null,null,null,263,"TTL_C01T05: Agriculture, hunting, forestry and fishing",{"$f":"'General Impact Estimates'!C10","v":0},null,null,{"$f":"MMULT(L1_Colombia,AF264:AF297)-AF264:AF297","v":1821.3278887375748},{"$f":"MMULT(l2_colombia,AF264:AF298)-AI264:AI298-AF264:AF298","v":21511.408393330272},{"$f":"'Colombia-IO-Data'!$AN13*Calculations!AF264","v":0},{"$f":"AI264*'Colombia-IO-Data'!$AN13","v":1260.9069873853521},{"$f":"AJ264*'Colombia-IO-Data'!$AN13","v":14892.367991164158},{"$f":"AK264*'Colombia-IO-Data'!$AO13","v":0},{"$f":"AL264*'Colombia-IO-Data'!$AO13","v":332.88912561083913},{"$f":"AM264*'Colombia-IO-Data'!$AO13","v":3931.6994896931255},{"$f":"(AN264*'Default-Data'!$F$19/general_dollar_index)/'Colombia-IO-Data'!$AP13","v":0},{"$f":"(AO264*'Default-Data'!$F$19/general_dollar_index)/'Colombia-IO-Data'!$AP13","v":7.0028825528316685E-2},{"$f":"(AP264*'Default-Data'!$F$19/general_dollar_index)/'Colombia-IO-Data'!$AP13","v":0.82709910420854738},null,null,null,null,null,null,null,null,null,null,null,null,"DOM_C01T05: Agriculture, hunting, forestry and fishing",{"$f":"'General Impact Estimates'!C10","v":0},null,null,{"$f":"MMULT(Mexico_L1,BG264:BG297)-BG264:BG297","v":738.78799823583245},{"$f":"MMULT(Mexico_L2,BG264:BG298)-BJ264:BJ298-BG264:BG298","v":8262.0722551871713},{"$f":"BG264*'Mexico-IO-Data'!AQ13","v":0},{"$f":"BJ264*'Mexico-IO-Data'!$AQ13","v":450.56866797935197},{"$f":"BK264*'Mexico-IO-Data'!$AQ13","v":5038.8350916070558},{"$f":"BG264*'Mexico-IO-Data'!AR13","v":0},{"$f":"BJ264*'Mexico-IO-Data'!$AR13","v":74.224313943769587},{"$f":"BK264*'Mexico-IO-Data'!$AR13","v":830.07120629937913},{"$f":"(BO264*'Default-Data'!$F$19/general_dollar_index)/'Mexico-IO-Data'!$AS13","v":0},{"$f":"(BP264*'Default-Data'!$F$19/general_dollar_index)/'Mexico-IO-Data'!$AS13","v":7.2697102848744213E-2},{"$f":"(BQ264*'Default-Data'!$F$19/general_dollar_index)/'Mexico-IO-Data'!$AS13","v":0.81299197863710826},null,null,null,null,null,null,null,null,null,null,null,null,"TTL_C01T05: Agriculture, hunting, forestry and fishing",{"$f":"'General Impact Estimates'!C10","v":0},null,null,{"$f":"MMULT(Philippines_L1,CH264:CH297)-CH264:CH297","v":2809.6336584306177},{"$f":"MMULT(Philippines_L2,CH264:CH298)-CK264:CK298-CH264:CH298","v":29779.142638120276},{"$f":"CH264*'Philippines-IO-Data'!$AN13","v":0},{"$f":"CK264*'Philippines-IO-Data'!$AN13","v":1982.9180431570762},{"$f":"CL264*'Philippines-IO-Data'!$AN13","v":21016.832237075476},{"$f":"CH264*'Philippines-IO-Data'!AO13","v":0},{"$f":"CK264*'Philippines-IO-Data'!$AO13","v":570.7745194429009},{"$f":"CL264*'Philippines-IO-Data'!$AO13","v":6049.6057120090327},{"$f":"(CP264*'Default-Data'!$F$19/general_dollar_index)/'Philippines-IO-Data'!$AP13","v":0},{"$f":"(CQ264*'Default-Data'!$F$19/general_dollar_index)/'Philippines-IO-Data'!$AP13","v":0.33904601005490376},{"$f":"(CR264*'Default-Data'!$F$19/general_dollar_index)/'Philippines-IO-Data'!$AP13","v":3.5935288090014414},null,null,null,null,null,null,null,null,null,null,null,null,"DOM_C01T05: Agriculture, hunting, forestry and fishing",{"$f":"'General Impact Estimates'!C10","v":0},null,null,{"$f":"MMULT(SouthAfrica_L1,DI264:DI297)-DI264:DI297","v":4718.7505288514121},{"$f":"MMULT(SouthAfrica_L2,DI264:DI298)-DI264:DI298","v":31070.151495445487},{"$f":"DI264*'SouthAfrica-IO-Data'!AR13","v":0},{"$f":"DL264*'SouthAfrica-IO-Data'!$AR13","v":1905.662083880952},{"$f":"DM264*'SouthAfrica-IO-Data'!$AR13","v":12547.645670880507},{"$f":"DI264*'SouthAfrica-IO-Data'!AS13","v":0},{"$f":"DL264*'SouthAfrica-IO-Data'!$AS13","v":584.57874978501695},{"$f":"DM264*'SouthAfrica-IO-Data'!$AS13","v":3849.1016225135404},{"$f":"(DQ264*'Default-Data'!$F$19/general_dollar_index)/'SouthAfrica-IO-Data'!$AT13","v":0},{"$f":"(DR264*'Default-Data'!$F$19/general_dollar_index)/'SouthAfrica-IO-Data'!$AT13","v":4.1826356732018732E-2},{"$f":"(DS264*'Default-Data'!$F$19/general_dollar_index)/'SouthAfrica-IO-Data'!$AT13","v":0.27540155645454112},null,null,null,null,null,null,null,null,null,null,null,null,"MAIZE",{"$f":"'General Impact Estimates'!C10","v":0},null,null,{"$f":"MMULT(Zambia_L1,EJ264:EJ290)-EJ264:EJ290","v":11948.607502499128},{"$f":"MMULT(Zambia_L2,EJ264:EJ305)-EJ264:EJ305-EM264:EM305","v":33331.620434642027},{"$f":"EJ264*'Zambia-IO-Data'!BO11","v":0},{"$f":"EM264*'Zambia-IO-Data'!$BO11","v":4717.7702252218041},{"$f":"EN264*'Zambia-IO-Data'!$BO11","v":13160.606908550537},{"$f":"EJ264*'Zambia-IO-Data'!BN11","v":0},{"$f":"EM264*'Zambia-IO-Data'!$BN11","v":3748.5491571826042},{"$f":"EN264*'Zambia-IO-Data'!$BN11","v":10456.885261456178},{"$f":"(ER264*'Default-Data'!$F$19/general_dollar_index)/'Zambia-IO-Data'!$BP11","v":0},{"$f":"(ES264*'Default-Data'!$F$19/general_dollar_index)/'Zambia-IO-Data'!$BP11","v":37.375544182957512},{"$f":"(ET264*'Default-Data'!$F$19/general_dollar_index)/'Zambia-IO-Data'!$BP11","v":104.26214535743755},null,null,null,null,null,null,null,null,null,null,null,null,"TTL_C01T05: Agriculture, hunting, forestry and fishing",{"$f":"'General Impact Estimates'!C10","v":0},null,null,{"$f":"MMULT(CustomRegion1_L1,FK264:FK297)-FK264:FK297","v":7890.0402005691003},{"$f":"MMULT(CustomRegion1_L2,FK264:FK298)-FN264:FN298-FK264:FK298","v":57901.741439226855},{"$f":"FK264*CustomRegion1!C9","v":0},{"$f":"FN264*CustomRegion1!$C9","v":5568.4494766773869},{"$f":"FO264*CustomRegion1!$C9","v":40864.547406579259},{"$f":"FK264*CustomRegion1!D9","v":0},{"$f":"FN264*CustomRegion1!$D9","v":1602.8544825948907},{"$f":"FO264*CustomRegion1!$D9","v":11762.686051868399},{"$f":"(FT264*'Default-Data'!$C$58/general_dollar_index)/CustomRegion1!$E9","v":0.95211225888786299},{"$f":"(FU264*'Default-Data'!$C$58/general_dollar_index)/CustomRegion1!$E9","v":6.9871580415099626},{"$f":"(FV264*'Default-Data'!$C$58/general_dollar_index)/CustomRegion1!$E9","v":5.6556459951184767E-4},null,null,null,null,null,null,null,null,null,null,null,null,"C01T05 Agriculture, hunting, forestry and fishing",{"$f":"'General Impact Estimates'!C10","v":0},null,null,{"$f":"MMULT(CustomRegion2_L1,GL264:GL300)-GL264:GL300","v":3252.3069273973269},{"$f":"MMULT(CustomRegion2_L2,GL264:GL302)-GO264:GO302-GL264:GL302","v":36547.02883570781},{"$f":"GL264*CustomRegion2!C13","v":0},{"$f":"GO264*CustomRegion2!$C13","v":2004.0112307583327},{"$f":"GP264*CustomRegion2!$C13","v":22519.601585148743},{"$f":"GL264*CustomRegion2!D13","v":0},{"$f":"GO264*CustomRegion2!$D13","v":359.88938977970037},{"$f":"GP264*CustomRegion2!$D13","v":4044.1717831562883},{"$f":"(GT264*'Default-Data'!$C$59/general_dollar_index)/CustomRegion2!$E13","v":0},{"$f":"(GU264*'Default-Data'!$C$59/general_dollar_index)/CustomRegion2!$E13","v":0.35248444334301315},{"$f":"(GV264*'Default-Data'!$C$59/general_dollar_index)/CustomRegion2!$E13","v":3.9609604513263457},null,null,null,null,null,null,null,null,null,null,null,null,"MAIZE",{"$f":"'General Impact Estimates'!C10","v":0},null,null,{"$f":"MMULT(CustomRegion3_L1,HM264:HM290)-HM264:HM290","v":11948.607502499128},{"$f":"MMULT(CustomRegion3_L2,HM264:HM305)-HP264:HP305-HM264:HM305","v":33331.620434642027},{"$f":"HM264*CustomRegion3!D12","v":0},{"$f":"HP264*CustomRegion3!$D12","v":4717.7702252218041},{"$f":"HQ264*CustomRegion3!$D12","v":13160.606908550537},{"$f":"HM264*CustomRegion3!E12","v":0},{"$f":"HP264*CustomRegion3!$E12","v":3748.5491571826042},{"$f":"HQ264*CustomRegion3!$E12","v":10456.885261456178},{"$f":"(HU264*'Default-Data'!$C$60/general_dollar_index)/CustomRegion3!$F12","v":0},{"$f":"(HV264*'Default-Data'!$C$60/general_dollar_index)/CustomRegion3!$F12","v":37.375544182957512},{"$f":"(HW264*'Default-Data'!$C$60/general_dollar_index)/CustomRegion3!$F12","v":104.26214535743755}]
[null,null,null,null,null,null,null,null,null,null,null,null,null,null,null,null,null,null,null,null,null,null,null,null,null,null,null,null,null,264,"TTL_C10T14: Mining and quarrying",{"$f":"'General Impact Estimates'!C11","v":0},null,null,432611.53895172017,5433.9511724265758,{"$f":"'Colombia-IO-Data'!$AN14*Calculations!AF265","v":0},{"$f":"AI265*'Colombia-IO-Data'!$AN14","v":354258.34434318024},{"$f":"AJ265*'Colombia-IO-Data'!$AN14","v":4449.7716132355781},{"$f":"AK265*'Colombia-IO-Data'!$AO14","v":0},{"$f":"AL265*'Colombia-IO-Data'!$AO14","v":29383.145318845127},{"$f":"AM265*'Colombia-IO-Data'!$AO14","v":369.07609385966441},{"$f":"(AN265*'Default-Data'!$F$19/general_dollar_index)/'Colombia-IO-Data'!$AP14","v":0},{"$f":"(AO265*'Default-Data'!$F$19/general_dollar_index)/'Colombia-IO-Data'!$AP14","v":2.8849740453605603},{"$f":"(AP265*'Default-Data'!$F$19/general_dollar_index)/'Colombia-IO-Data'!$AP14","v":3.6237609690657847E-2},null,null,null,null,null,null,null,null,null,null,null,null,"DOM_C10T14: Mining and quarrying",{"$f":"'General Impact Estimates'!C11","v":0},null,null,285749.46235393884,4563.129297245061,{"$f":"BG265*'Mexico-IO-Data'!AQ14","v":0},{"$f":"BJ265*'Mexico-IO-Data'!$AQ14","v":246009.52639316896},{"$f":"BK265*'Mexico-IO-Data'!$AQ14","v":3928.5227976932974},{"$f":"BG265*'Mexico-IO-Data'!AR14","v":0},{"$f":"BJ265*'Mexico-IO-Data'!$AR14","v":15267.815927069496},{"$f":"BK265*'Mexico-IO-Data'!$AR14","v":243.81154591801544},{"$f":"(BO265*'Default-Data'!$F$19/general_dollar_index)/'Mexico-IO-Data'!$AS14","v":0},{"$f":"(BP265*'Default-Data'!$F$19/general_dollar_index)/'Mexico-IO-Data'!$AS14","v":0.8187137195640829},{"$f":"(BQ265*'Default-Data'!$F$19/general_dollar_index)/'Mexico-IO-Data'!$AS14","v":1.3074028307958589E-2},null,null,null,null,null,null,null,null,null,null,null,null,"TTL_C10T14: Mining and quarrying",{"$f":"'General Impact Estimates'!C11","v":0},null,null,31080.532147249767,1664.0396417108932,{"$f":"CH265*'Philippines-IO-Data'!$AN14","v":0},{"$f":"CK265*'Philippines-IO-Data'!$AN14","v":17892.636701518597},{"$f":"CL265*'Philippines-IO-Data'!$AN14","v":957.96483229431476},{"$f":"CH265*'Philippines-IO-Data'!AO14","v":0},{"$f":"CK265*'Philippines-IO-Data'!$AO14","v":4677.1790935655399},{"$f":"CL265*'Philippines-IO-Data'!$AO14","v":250.41435539781062},{"$f":"(CP265*'Default-Data'!$F$19/general_dollar_index)/'Philippines-IO-Data'!$AP14","v":0},{"$f":"(CQ265*'Default-Data'!$F$19/general_dollar_index)/'Philippines-IO-Data'!$AP14","v":1.4981467652843299},{"$f":"(CR265*'Default-Data'!$F$19/general_dollar_index)/'Philippines-IO-Data'!$AP14","v":8.0210197004450798E-2},null,null,null,null,null,null,null,null,null,null,null,null,"DOM_C10T14: Mining and quarrying",{"$f":"'General Impact Estimates'!C11","v":0},null,null,293215.74228317454,307143.41293131962,{"$f":"DI265*'SouthAfrica-IO-Data'!AR14","v":0},{"$f":"DL265*'SouthAfrica-IO-Data'!$AR14","v":174637.70117788477},{"$f":"DM265*'SouthAfrica-IO-Data'!$AR14","v":182932.94605735564},{"$f":"DI265*'SouthAfrica-IO-Data'!AS14","v":0},{"$f":"DL265*'SouthAfrica-IO-Data'!$AS14","v":59169.396109837384},{"$f":"DM265*'SouthAfrica-IO-Data'!$AS14","v":61979.926864600136},{"$f":"(DQ265*'Default-Data'!$F$19/general_dollar_index)/'SouthAfrica-IO-Data'!$AT14","v":0},{"$f":"(DR265*'Default-Data'!$F$19/general_dollar_index)/'SouthAfrica-IO-Data'!$AT14","v":3.8600882919985331},{"$f":"(DS265*'Default-Data'!$F$19/general_dollar_index)/'SouthAfrica-IO-Data'!$AT14","v":4.0434414707367861},null,null,null,null,null,null,null,null,null,null,null,null,"DRSTAP",{"$f":"'General Impact Estimates'!C11","v":0},null,null,10082.43953505054,20023.316277128262,{"$f":"EJ265*'Zambia-IO-Data'!BO12","v":0},{"$f":"EM265*'Zambia-IO-Data'!$BO12","v":5372.0167047768227},{"$f":"EN265*'Zambia-IO-Data'!$BO12","v":10668.607448804651},{"$f":"EJ265*'Zambia-IO-Data'!BN12","v":0},{"$f":"EM265*'Zambia-IO-Data'!$BN12","v":4870.8819822776968},{"$f":"EN265*'Zambia-IO-Data'!$BN12","v":9673.3742008226091},{"$f":"(ER265*'Default-Data'!$F$19/general_dollar_index)/'Zambia-IO-Data'!$BP12","v":0},{"$f":"(ES265*'Default-Data'!$F$19/general_dollar_index)/'Zambia-IO-Data'!$BP12","v":48.56595368097593},{"$f":"(ET265*'Default-Data'!$F$19/general_dollar_index)/'Zambia-IO-Data'!$BP12","v":96.450015640948578},null,null,null,null,null,null,null,null,null,null,null,null,"TTL_C10T14: Mining and quarrying",{"$f":"'General Impact Estimates'!C11","v":0},null,null,238795.05246254633,22474.874013758701,{"$f":"FK265*CustomRegion1!C10","v":0},{"$f":"FN265*CustomRegion1!$C10","v":137471.04134478251},{"$f":"FO265*CustomRegion1!$C10","v":12938.477170706014},{"$f":"FK265*CustomRegion1!D10","v":0},{"$f":"FN265*CustomRegion1!$D10","v":35935.267186972487},{"$f":"FO265*CustomRegion1!$D10","v":3382.1496481994222},{"$f":"(FT265*'Default-Data'!$C$58/general_dollar_index)/CustomRegion1!$E10","v":11.510421820249368},{"$f":"(FU265*'Default-Data'!$C$58/general_dollar_index)/CustomRegion1!$E10","v":1.0833360138225585},{"$f":"(FV265*'Default-Data'!$C$58/general_dollar_index)/CustomRegion1!$E10","v":3.6869020561534583E-3},null,null,null,null,null,null,null,null,null,null,null,null,"C10T14 Mining and quarrying",{"$f":"'General Impact Estimates'!C11","v":0},null,null,165988.58180624808,20295.121336481301,{"$f":"GL265*CustomRegion2!C14","v":0},{"$f":"GO265*CustomRegion2!$C14","v":134891.56540240004},{"$f":"GP265*CustomRegion2!$C14","v":16492.945823858849},{"$f":"GL265*CustomRegion2!D14","v":0},{"$f":"GO265*CustomRegion2!$D14","v":10646.000935049375},{"$f":"GP265*CustomRegion2!$D14","v":1301.6671289915651},{"$f":"(GT265*'Default-Data'!$C$59/general_dollar_index)/CustomRegion2!$E14","v":0},{"$f":"(GU265*'Default-Data'!$C$59/general_dollar_index)/CustomRegion2!$E14","v":0.57087582570101958},{"$f":"(GV265*'Default-Data'!$C$59/general_dollar_index)/CustomRegion2!$E14","v":6.9799946626389164E-2},null,null,null,null,null,null,null,null,null,null,null,null,"DRSTAP",{"$f":"'General Impact Estimates'!C11","v":0},null,null,10082.43953505054,20023.316277128262,{"$f":"HM265*CustomRegion3!D13","v":0},{"$f":"HP265*CustomRegion3!$D13","v":5372.0167047768227},{"$f":"HQ265*CustomRegion3!$D13","v":10668.607448804651},{"$f":"HM265*CustomRegion3!E13","v":0},{"$f":"HP265*CustomRegion3!$E13","v":4870.8819822776968},{"$f":"HQ265*CustomRegion3!$E13","v":9673.3742008226091},{"$f":"(HU265*'Default-Data'!$C$60/general_dollar_index)/CustomRegion3!$F13","v":0},{"$f":"(HV265*'Default-Data'!$C$60/general_dollar_index)/CustomRegion3!$F13","v":48.56595368097593},{"$f":"(HW265*'Default-Data'!$C$60/general_dollar_index)/CustomRegion3!$F13","v":96.450015640948578}]
[null,null,null,null,null,null,null,null,null,null,null,null,null,null,null,null,null,null,null,null,null,null,null,null,null,null,null,null,null,265,"TTL_C15T16: Food products, beverages and tobacco",{"$f":"'General Impact Estimates'!C12","v":0},null,null,2360.1730762510761,37501.115537050297,{"$f":"'Colombia-IO-Data'!$AN15*Calculations!AF266","v":0},{"$f":"AI266*'Colombia-IO-Data'!$AN15","v":540.35654009262169},{"$f":"AJ266*'Colombia-IO-Data'!$AN15","v":8585.7995945795919},{"$f":"AK266*'Colombia-IO-Data'!$AO15","v":0},{"$f":"AL266*'Colombia-IO-Data'!$AO15","v":189.63023575951505},{"$f":"AM266*'Colombia-IO-Data'!$AO15","v":3013.0609708637962},{"$f":"(AN266*'Default-Data'!$F$19/general_dollar_index)/'Colombia-IO-Data'!$AP15","v":0},{"$f":"(AO266*'Default-Data'!$F$19/general_dollar_index)/'Colombia-IO-Data'!$AP15","v":4.5902709287363307E-2},{"$f":"(AP266*'Default-Data'!$F$19/general_dollar_index)/'Colombia-IO-Data'!$AP15","v":0.72935447902970618},null,null,null,null,null,null,null,null,null,null,null,null,"DOM_C15T16: Food products, beverages and tobacco",{"$f":"'General Impact Estimates'!C12","v":0},null,null,1153.8354055853904,22528.440038439203,{"$f":"BG266*'Mexico-IO-Data'!AQ15","v":0},{"$f":"BJ266*'Mexico-IO-Data'!$AQ15","v":448.27260983434724},{"$f":"BK266*'Mexico-IO-Data'!$AQ15","v":8752.446460424002},{"$f":"BG266*'Mexico-IO-Data'!AR15","v":0},{"$f":"BJ266*'Mexico-IO-Data'!$AR15","v":77.396743287256015},{"$f":"BK266*'Mexico-IO-Data'!$AR15","v":1511.1582482882829},{"$f":"(BO266*'Default-Data'!$F$19/general_dollar_index)/'Mexico-IO-Data'!$AS15","v":0},{"$f":"(BP266*'Default-Data'!$F$19/general_dollar_index)/'Mexico-IO-Data'!$AS15","v":2.0013509468480049E-2},{"$f":"(BQ266*'Default-Data'!$F$19/general_dollar_index)/'Mexico-IO-Data'!$AS15","v":0.39076036827855937},null,null,null,null,null,null,null,null,null,null,null,null,"TTL_C15T16: Food products, beverages and tobacco",{"$f":"'General Impact Estimates'!C12","v":0},null,null,2458.85861958754,23186.287545434545,{"$f":"CH266*'Philippines-IO-Data'!$AN15","v":0},{"$f":"CK266*'Philippines-IO-Data'!$AN15","v":818.8809937222926},{"$f":"CL266*'Philippines-IO-Data'!$AN15","v":7721.7982500845001},{"$f":"CH266*'Philippines-IO-Data'!AO15","v":0},{"$f":"CK266*'Philippines-IO-Data'!$AO15","v":143.28369864362267},{"$f":"CL266*'Philippines-IO-Data'!$AO15","v":1351.1216183229392},{"$f":"(CP266*'Default-Data'!$F$19/general_dollar_index)/'Philippines-IO-Data'!$AP15","v":0},{"$f":"(CQ266*'Default-Data'!$F$19/general_dollar_index)/'Philippines-IO-Data'!$AP15","v":4.5895187108876967E-2},{"$f":"(CR266*'Default-Data'!$F$19/general_dollar_index)/'Philippines-IO-Data'!$AP15","v":0.43277762974287864},null,null,null,null,null,null,null,null,null,null,null,null,"DOM_C15T16: Food products, beverages and tobacco",{"$f":"'General Impact Estimates'!C12","v":0},null,null,4284.646950609178,59195.179016814225,{"$f":"DI266*'SouthAfrica-IO-Data'!AR15","v":0},{"$f":"DL266*'SouthAfrica-IO-Data'!$AR15","v":1122.3784599595378},{"$f":"DM266*'SouthAfrica-IO-Data'!$AR15","v":15506.38702039965},{"$f":"DI266*'SouthAfrica-IO-Data'!AS15","v":0},{"$f":"DL266*'SouthAfrica-IO-Data'!$AS15","v":581.07224661189048},{"$f":"DM266*'SouthAfrica-IO-Data'!$AS15","v":8027.8902921051331},{"$f":"(DQ266*'Default-Data'!$F$19/general_dollar_index)/'SouthAfrica-IO-Data'!$AT15","v":0},{"$f":"(DR266*'Default-Data'!$F$19/general_dollar_index)/'SouthAfrica-IO-Data'!$AT15","v":4.6610901613489124E-2},{"$f":"(DS266*'Default-Data'!$F$19/general_dollar_index)/'SouthAfrica-IO-Data'!$AT15","v":0.64395986342662792},null,null,null,null,null,null,null,null,null,null,null,null,"GRNDNUT",{"$f":"'General Impact Estimates'!C12","v":0},null,null,7041.795208375881,9348.2173179123656,{"$f":"EJ266*'Zambia-IO-Data'!BO13","v":0},{"$f":"EM266*'Zambia-IO-Data'!$BO13","v":3176.2311328965066},{"$f":"EN266*'Zambia-IO-Data'!$BO13","v":4216.5524562427199},{"$f":"EJ266*'Zambia-IO-Data'!BN13","v":0},{"$f":"EM266*'Zambia-IO-Data'!$BN13","v":2619.0339575210473},{"$f":"EN266*'Zambia-IO-Data'!$BN13","v":3476.8546760316308},{"$f":"(ER266*'Default-Data'!$F$19/general_dollar_index)/'Zambia-IO-Data'!$BP13","v":0},{"$f":"(ES266*'Default-Data'!$F$19/general_dollar_index)/'Zambia-IO-Data'!$BP13","v":26.113521602999629},{"$f":"(ET266*'Default-Data'!$F$19/general_dollar_index)/'Zambia-IO-Data'!$BP13","v":34.66656834758227},null,null,null,null,null,null,null,null,null,null,null,null,"TTL_C15T16: Food products, beverages and tobacco",{"$f":"'General Impact Estimates'!C12","v":0},null,null,5921.1482313032275,47836.25384652822,{"$f":"FK266*CustomRegion1!C11","v":0},{"$f":"FN266*CustomRegion1!$C11","v":1971.9375929145235},{"$f":"FO266*CustomRegion1!$C11","v":15931.049786167774},{"$f":"FK266*CustomRegion1!D11","v":0},{"$f":"FN266*CustomRegion1!$D11","v":345.03977253502529},{"$f":"FO266*CustomRegion1!$D11","v":2787.5353734390524},{"$f":"(FT266*'Default-Data'!$C$58/general_dollar_index)/CustomRegion1!$E11","v":0.11051965485540706},{"$f":"(FU266*'Default-Data'!$C$58/general_dollar_index)/CustomRegion1!$E11","v":0.89287517524794646},{"$f":"(FV266*'Default-Data'!$C$58/general_dollar_index)/CustomRegion1!$E11","v":3.5400539536694672E-5},null,null,null,null,null,null,null,null,null,null,null,null,"C15T16 Food products, beverages and tobacco",{"$f":"'General Impact Estimates'!C12","v":0},null,null,3808.2841227056506,75377.480414519305,{"$f":"GL266*CustomRegion2!C15","v":0},{"$f":"GO266*CustomRegion2!$C15","v":1507.0373570002005},{"$f":"GP266*CustomRegion2!$C15","v":29828.835034641572},{"$f":"GL266*CustomRegion2!D15","v":0},{"$f":"GO266*CustomRegion2!$D15","v":366.21495313821691},{"$f":"GP266*CustomRegion2!$D15","v":7248.5034121004956},{"$f":"(GT266*'Default-Data'!$C$59/general_dollar_index)/CustomRegion2!$E15","v":0},{"$f":"(GU266*'Default-Data'!$C$59/general_dollar_index)/CustomRegion2!$E15","v":9.4697090870198147E-2},{"$f":"(GV266*'Default-Data'!$C$59/general_dollar_index)/CustomRegion2!$E15","v":1.8743423238361216},null,null,null,null,null,null,null,null,null,null,null,null,"GRNDNUT",{"$f":"'General Impact Estimates'!C12","v":0},null,null,7041.795208375881,9348.2173179123656,{"$f":"HM266*CustomRegion3!D14","v":0},{"$f":"HP266*CustomRegion3!$D14","v":3176.2311328965066},{"$f":"HQ266*CustomRegion3!$D14","v":4216.5524562427199},{"$f":"HM266*CustomRegion3!E14","v":0},{"$f":"HP266*CustomRegion3!$E14","v":2619.0339575210473},{"$f":"HQ266*CustomRegion3!$E14","v":3476.8546760316308},{"$f":"(HU266*'Default-Data'!$C$60/general_dollar_index)/CustomRegion3!$F14","v":0},{"$f":"(HV266*'Default-Data'!$C$60/general_dollar_index)/CustomRegion3!$F14","v":26.113521602999629},{"$f":"(HW266*'Default-Data'!$C$60/general_dollar_index)/CustomRegion3!$F14","v":34.66656834758227}]
[null,null,null,null,null,null,null,null,null,null,null,null,null,null,null,null,null,null,null,null,null,null,null,null,null,null,null,null,null,266,"TTL_C17T19: Textiles, textile products, leather and footwear",{"$f":"'General Impact Estimates'!C13","v":0},null,null,3442.4654007189138,9705.262715240442,{"$f":"'Colombia-IO-Data'!$AN16*Calculations!AF267","v":0},{"$f":"AI267*'Colombia-IO-Data'!$AN16","v":1133.995996031395},{"$f":"AJ267*'Colombia-IO-Data'!$AN16","v":3197.0485621197654},{"$f":"AK267*'Colombia-IO-Data'!$AO16","v":0},{"$f":"AL267*'Colombia-IO-Data'!$AO16","v":580.96656172317262},{"$f":"AM267*'Colombia-IO-Data'!$AO16","v":1637.9055281473068},{"$f":"(AN267*'Default-Data'!$F$19/general_dollar_index)/'Colombia-IO-Data'!$AP16","v":0},{"$f":"(AO267*'Default-Data'!$F$19/general_dollar_index)/'Colombia-IO-Data'!$AP16","v":0.14063126105204821},{"$f":"(AP267*'Default-Data'!$F$19/general_dollar_index)/'Colombia-IO-Data'!$AP16","v":0.39647844658094594},null,null,null,null,null,null,null,null,null,null,null,null,"DOM_C17T19: Textiles, textile products, leather and footwear",{"$f":"'General Impact Estimates'!C13","v":0},null,null,832.04390759592275,2390.3781295344133,{"$f":"BG267*'Mexico-IO-Data'!AQ16","v":0},{"$f":"BJ267*'Mexico-IO-Data'!$AQ16","v":322.39344496957472},{"$f":"BK267*'Mexico-IO-Data'!$AQ16","v":926.20381319441822},{"$f":"BG267*'Mexico-IO-Data'!AR16","v":0},{"$f":"BJ267*'Mexico-IO-Data'!$AR16","v":109.6332228862519},{"$f":"BK267*'Mexico-IO-Data'!$AR16","v":314.96517895896733},{"$f":"(BO267*'Default-Data'!$F$19/general_dollar_index)/'Mexico-IO-Data'!$AS16","v":0},{"$f":"(BP267*'Default-Data'!$F$19/general_dollar_index)/'Mexico-IO-Data'!$AS16","v":2.6354454305717701E-2},{"$f":"(BQ267*'Default-Data'!$F$19/general_dollar_index)/'Mexico-IO-Data'!$AS16","v":7.5713686036381414E-2},null,null,null,null,null,null,null,null,null,null,null,null,"TTL_C17T19: Textiles, textile products, leather and footwear",{"$f":"'General Impact Estimates'!C13","v":0},null,null,194.99092222366386,3243.6394451489969,{"$f":"CH267*'Philippines-IO-Data'!$AN16","v":0},{"$f":"CK267*'Philippines-IO-Data'!$AN16","v":74.817568517745428},{"$f":"CL267*'Philippines-IO-Data'!$AN16","v":1244.5769970559447},{"$f":"CH267*'Philippines-IO-Data'!AO16","v":0},{"$f":"CK267*'Philippines-IO-Data'!$AO16","v":25.841993310908489},{"$f":"CL267*'Philippines-IO-Data'!$AO16","v":429.87698036727761},{"$f":"(CP267*'Default-Data'!$F$19/general_dollar_index)/'Philippines-IO-Data'!$AP16","v":0},{"$f":"(CQ267*'Default-Data'!$F$19/general_dollar_index)/'Philippines-IO-Data'!$AP16","v":8.2774462796384556E-3},{"$f":"(CR267*'Default-Data'!$F$19/general_dollar_index)/'Philippines-IO-Data'!$AP16","v":0.13769385236785522},null,null,null,null,null,null,null,null,null,null,null,null,"DOM_C17T19: Textiles, textile products, leather and footwear",{"$f":"'General Impact Estimates'!C13","v":0},null,null,3384.5802549840237,19694.650547128094,{"$f":"DI267*'SouthAfrica-IO-Data'!AR16","v":0},{"$f":"DL267*'SouthAfrica-IO-Data'!$AR16","v":450.47172915501267},{"$f":"DM267*'SouthAfrica-IO-Data'!$AR16","v":2621.2654505692576},{"$f":"DI267*'SouthAfrica-IO-Data'!AS16","v":0},{"$f":"DL267*'SouthAfrica-IO-Data'!$AS16","v":452.7086606867756},{"$f":"DM267*'SouthAfrica-IO-Data'!$AS16","v":2634.2820084573582},{"$f":"(DQ267*'Default-Data'!$F$19/general_dollar_index)/'SouthAfrica-IO-Data'!$AT16","v":0},{"$f":"(DR267*'Default-Data'!$F$19/general_dollar_index)/'SouthAfrica-IO-Data'!$AT16","v":3.6314174297399554E-2},{"$f":"(DS267*'Default-Data'!$F$19/general_dollar_index)/'SouthAfrica-IO-Data'!$AT16","v":0.21130979879753539},null,null,null,null,null,null,null,null,null,null,null,null,"SUGAR",{"$f":"'General Impact Estimates'!C13","v":0},null,null,5726.3514935630137,1306.0089744428415,{"$f":"EJ267*'Zambia-IO-Data'!BO14","v":0},{"$f":"EM267*'Zambia-IO-Data'!$BO14","v":1554.135737502028},{"$f":"EN267*'Zambia-IO-Data'!$BO14","v":354.45173474970818},{"$f":"EJ267*'Zambia-IO-Data'!BN14","v":0},{"$f":"EM267*'Zambia-IO-Data'!$BN14","v":520.96348769985286},{"$f":"EN267*'Zambia-IO-Data'!$BN14","v":118.81614166679577},{"$f":"(ER267*'Default-Data'!$F$19/general_dollar_index)/'Zambia-IO-Data'!$BP14","v":0},{"$f":"(ES267*'Default-Data'!$F$19/general_dollar_index)/'Zambia-IO-Data'!$BP14","v":5.1943546785092849},{"$f":"(ET267*'Default-Data'!$F$19/general_dollar_index)/'Zambia-IO-Data'!$BP14","v":1.184676461827052},null,null,null,null,null,null,null,null,null,null,null,null,"TTL_C17T19: Textiles, textile products, leather and footwear",{"$f":"'General Impact Estimates'!C13","v":0},null,null,757.3677098269427,7564.0918923777199,{"$f":"FK267*CustomRegion1!C12","v":0},{"$f":"FN267*CustomRegion1!$C12","v":290.60024885726961},{"$f":"FO267*CustomRegion1!$C12","v":2902.3246671111574},{"$f":"FK267*CustomRegion1!D12","v":0},{"$f":"FN267*CustomRegion1!$D12","v":100.37334593861782},{"$f":"FO267*CustomRegion1!$D12","v":1002.4631396004548},{"$f":"(FT267*'Default-Data'!$C$58/general_dollar_index)/CustomRegion1!$E12","v":3.2150576347520436E-2},{"$f":"(FU267*'Default-Data'!$C$58/general_dollar_index)/CustomRegion1!$E12","v":0.32109886747233879},{"$f":"(FV267*'Default-Data'!$C$58/general_dollar_index)/CustomRegion1!$E12","v":1.0298147877922325E-5},null,null,null,null,null,null,null,null,null,null,null,null,"C17T19 Textiles, textile products, leather and footwear",{"$f":"'General Impact Estimates'!C13","v":0},null,null,17295.093205572295,17150.601114406716,{"$f":"GL267*CustomRegion2!C16","v":0},{"$f":"GO267*CustomRegion2!$C16","v":6021.1834653193891},{"$f":"GP267*CustomRegion2!$C16","v":5970.8794062516245},{"$f":"GL267*CustomRegion2!D16","v":0},{"$f":"GO267*CustomRegion2!$D16","v":2665.743679893701},{"$f":"GP267*CustomRegion2!$D16","v":2643.4726881019269},{"$f":"(GT267*'Default-Data'!$C$59/general_dollar_index)/CustomRegion2!$E16","v":0},{"$f":"(GU267*'Default-Data'!$C$59/general_dollar_index)/CustomRegion2!$E16","v":0.64081140874062759},{"$f":"(GV267*'Default-Data'!$C$59/general_dollar_index)/CustomRegion2!$E16","v":0.6354577411199257},null,null,null,null,null,null,null,null,null,null,null,null,"SUGAR",{"$f":"'General Impact Estimates'!C13","v":0},null,null,5726.3514935630137,1306.0089744428415,{"$f":"HM267*CustomRegion3!D15","v":0},{"$f":"HP267*CustomRegion3!$D15","v":1554.135737502028},{"$f":"HQ267*CustomRegion3!$D15","v":354.45173474970818},{"$f":"HM267*CustomRegion3!E15","v":0},{"$f":"HP267*CustomRegion3!$E15","v":520.96348769985286},{"$f":"HQ267*CustomRegion3!$E15","v":118.81614166679577},{"$f":"(HU267*'Default-Data'!$C$60/general_dollar_index)/CustomRegion3!$F15","v":0},{"$f":"(HV267*'Default-Data'!$C$60/general_dollar_index)/CustomRegion3!$F15","v":5.1943546785092849},{"$f":"(HW267*'Default-Data'!$C$60/general_dollar_index)/CustomRegion3!$F15","v":1.184676461827052}]
[null,null,null,null,null,null,null,null,null,null,null,null,null,null,null,null,null,null,null,null,null,null,null,null,null,null,null,null,null,267,"TTL_C20: Wood and products of wood and cork",{"$f":"'General Impact Estimates'!C14","v":0},null,null,3169.7014026865668,363.54231796658087,{"$f":"'Colombia-IO-Data'!$AN17*Calculations!AF268","v":0},{"$f":"AI268*'Colombia-IO-Data'!$AN17","v":1316.0408698402391},{"$f":"AJ268*'Colombia-IO-Data'!$AN17","v":150.94057375718859},{"$f":"AK268*'Colombia-IO-Data'!$AO17","v":0},{"$f":"AL268*'Colombia-IO-Data'!$AO17","v":537.15479516086043},{"$f":"AM268*'Colombia-IO-Data'!$AO17","v":61.60785340036432},{"$f":"(AN268*'Default-Data'!$F$19/general_dollar_index)/'Colombia-IO-Data'!$AP17","v":0},{"$f":"(AO268*'Default-Data'!$F$19/general_dollar_index)/'Colombia-IO-Data'!$AP17","v":0.13002599667624448},{"$f":"(AP268*'Default-Data'!$F$19/general_dollar_index)/'Colombia-IO-Data'!$AP17","v":1.4913061586032023E-2},null,null,null,null,null,null,null,null,null,null,null,null,"DOM_C20: Wood and products of wood and cork",{"$f":"'General Impact Estimates'!C14","v":0},null,null,1204.7746849667931,259.72709792228966,{"$f":"BG268*'Mexico-IO-Data'!AQ17","v":0},{"$f":"BJ268*'Mexico-IO-Data'!$AQ17","v":557.04248234691249},{"$f":"BK268*'Mexico-IO-Data'!$AQ17","v":120.08803734399483},{"$f":"BG268*'Mexico-IO-Data'!AR17","v":0},{"$f":"BJ268*'Mexico-IO-Data'!$AR17","v":202.47426613626851},{"$f":"BK268*'Mexico-IO-Data'!$AR17","v":43.649699984331782},{"$f":"(BO268*'Default-Data'!$F$19/general_dollar_index)/'Mexico-IO-Data'!$AS17","v":0},{"$f":"(BP268*'Default-Data'!$F$19/general_dollar_index)/'Mexico-IO-Data'!$AS17","v":9.0252939974572663E-2},{"$f":"(BQ268*'Default-Data'!$F$19/general_dollar_index)/'Mexico-IO-Data'!$AS17","v":1.9456861495389461E-2},null,null,null,null,null,null,null,null,null,null,null,null,"TTL_C20: Wood and products of wood and cork",{"$f":"'General Impact Estimates'!C14","v":0},null,null,45.821954671902105,100.88705342290511,{"$f":"CH268*'Philippines-IO-Data'!$AN17","v":0},{"$f":"CK268*'Philippines-IO-Data'!$AN17","v":6.6501833226980391},{"$f":"CL268*'Philippines-IO-Data'!$AN17","v":14.641832827802835},{"$f":"CH268*'Philippines-IO-Data'!AO17","v":0},{"$f":"CK268*'Philippines-IO-Data'!$AO17","v":1.7245207968098641},{"$f":"CL268*'Philippines-IO-Data'!$AO17","v":3.7969096474043003},{"$f":"(CP268*'Default-Data'!$F$19/general_dollar_index)/'Philippines-IO-Data'!$AP17","v":0},{"$f":"(CQ268*'Default-Data'!$F$19/general_dollar_index)/'Philippines-IO-Data'!$AP17","v":5.52381083067896E-4},{"$f":"(CR268*'Default-Data'!$F$19/general_dollar_index)/'Philippines-IO-Data'!$AP17","v":1.216187747473927E-3},null,null,null,null,null,null,null,null,null,null,null,null,"DOM_C20: Wood and products of wood and cork",{"$f":"'General Impact Estimates'!C14","v":0},null,null,3845.4097058351754,5521.69861831871,{"$f":"DI268*'SouthAfrica-IO-Data'!AR17","v":0},{"$f":"DL268*'SouthAfrica-IO-Data'!$AR17","v":1019.2079922896859},{"$f":"DM268*'SouthAfrica-IO-Data'!$AR17","v":1463.5005872756713},{"$f":"DI268*'SouthAfrica-IO-Data'!AS17","v":0},{"$f":"DL268*'SouthAfrica-IO-Data'!$AS17","v":848.49881793298061},{"$f":"DM268*'SouthAfrica-IO-Data'!$AS17","v":1218.3759622586276},{"$f":"(DQ268*'Default-Data'!$F$19/general_dollar_index)/'SouthAfrica-IO-Data'!$AT17","v":0},{"$f":"(DR268*'Default-Data'!$F$19/general_dollar_index)/'SouthAfrica-IO-Data'!$AT17","v":6.8062612097617062E-2},{"$f":"(DS268*'Default-Data'!$F$19/general_dollar_index)/'SouthAfrica-IO-Data'!$AT17","v":9.7732429033059481E-2},null,null,null,null,null,null,null,null,null,null,null,null,"COTTON",{"$f":"'General Impact Estimates'!C14","v":0},null,null,1155.7428622454518,3528.0445015696723,{"$f":"EJ268*'Zambia-IO-Data'!BO15","v":0},{"$f":"EM268*'Zambia-IO-Data'!$BO15","v":256.6018780975794},{"$f":"EN268*'Zambia-IO-Data'!$BO15","v":783.30818617883187},{"$f":"EJ268*'Zambia-IO-Data'!BN15","v":0},{"$f":"EM268*'Zambia-IO-Data'!$BN15","v":174.18181235165613},{"$f":"EN268*'Zambia-IO-Data'!$BN15","v":531.71099334913436},{"$f":"(ER268*'Default-Data'!$F$19/general_dollar_index)/'Zambia-IO-Data'!$BP15","v":0},{"$f":"(ES268*'Default-Data'!$F$19/general_dollar_index)/'Zambia-IO-Data'!$BP15","v":1.7367092574850842},{"$f":"(ET268*'Default-Data'!$F$19/general_dollar_index)/'Zambia-IO-Data'!$BP15","v":5.3015145036596687},null,null,null,null,null,null,null,null,null,null,null,null,"TTL_C20: Wood and products of wood and cork",{"$f":"'General Impact Estimates'!C14","v":0},null,null,315.76544102203496,385.63570704722707,{"$f":"FK268*CustomRegion1!C13","v":0},{"$f":"FN268*CustomRegion1!$C13","v":45.827335058161104},{"$f":"FO268*CustomRegion1!$C13","v":55.967672396457367},{"$f":"FK268*CustomRegion1!D13","v":0},{"$f":"FN268*CustomRegion1!$D13","v":11.883911846524757},{"$f":"FO268*CustomRegion1!$D13","v":14.513496893732865},{"$f":"(FT268*'Default-Data'!$C$58/general_dollar_index)/CustomRegion1!$E13","v":3.8065346089244663E-3},{"$f":"(FU268*'Default-Data'!$C$58/general_dollar_index)/CustomRegion1!$E13","v":4.6488167310554098E-3},{"$f":"(FV268*'Default-Data'!$C$58/general_dollar_index)/CustomRegion1!$E13","v":1.2192707179308976E-6},null,null,null,null,null,null,null,null,null,null,null,null,"C20 Wood and products of wood and cork",{"$f":"'General Impact Estimates'!C14","v":0},null,null,4150.096668264061,2306.6128003262602,{"$f":"GL268*CustomRegion2!C17","v":0},{"$f":"GO268*CustomRegion2!$C17","v":1758.4394634503328},{"$f":"GP268*CustomRegion2!$C17","v":977.33602352206765},{"$f":"GL268*CustomRegion2!D17","v":0},{"$f":"GO268*CustomRegion2!$D17","v":583.99640811215761},{"$f":"GP268*CustomRegion2!$D17","v":324.5836658690456},{"$f":"(GT268*'Default-Data'!$C$59/general_dollar_index)/CustomRegion2!$E17","v":0},{"$f":"(GU268*'Default-Data'!$C$59/general_dollar_index)/CustomRegion2!$E17","v":0.26031650230177722},{"$f":"(GV268*'Default-Data'!$C$59/general_dollar_index)/CustomRegion2!$E17","v":0.14468322652267301},null,null,null,null,null,null,null,null,null,null,null,null,"COTTON",{"$f":"'General Impact Estimates'!C14","v":0},null,null,1155.7428622454518,3528.0445015696723,{"$f":"HM268*CustomRegion3!D16","v":0},{"$f":"HP268*CustomRegion3!$D16","v":256.6018780975794},{"$f":"HQ268*CustomRegion3!$D16","v":783.30818617883187},{"$f":"HM268*CustomRegion3!E16","v":0},{"$f":"HP268*CustomRegion3!$E16","v":174.18181235165613},{"$f":"HQ268*CustomRegion3!$E16","v":531.71099334913436},{"$f":"(HU268*'Default-Data'!$C$60/general_dollar_index)/CustomRegion3!$F16","v":0},{"$f":"(HV268*'Default-Data'!$C$60/general_dollar_index)/CustomRegion3!$F16","v":1.7367092574850842},{"$f":"(HW268*'Default-Data'!$C$60/general_dollar_index)/CustomRegion3!$F16","v":5.3015145036596687}]
[null,null,null,null,null,null,null,null,null,null,null,null,null,null,null,null,null,null,null,null,null,null,null,null,null,null,null,null,null,268,"TTL_C21T22: Pulp, paper, paper products, printing and publishing",{"$f":"'General Impact Estimates'!C15","v":0},null,null,8020.4379861240259,5424.2048594591715,{"$f":"'Colombia-IO-Data'!$AN18*Calculations!AF269","v":0},{"$f":"AI269*'Colombia-IO-Data'!$AN18","v":2560.6074181596823},{"$f":"AJ269*'Colombia-IO-Data'!$AN18","v":1731.7332575575595},{"$f":"AK269*'Colombia-IO-Data'!$AO18","v":0},{"$f":"AL269*'Colombia-IO-Data'!$AO18","v":1051.0186736102137},{"$f":"AM269*'Colombia-IO-Data'!$AO18","v":710.80165530135878},{"$f":"(AN269*'Default-Data'!$F$19/general_dollar_index)/'Colombia-IO-Data'!$AP18","v":0},{"$f":"(AO269*'Default-Data'!$F$19/general_dollar_index)/'Colombia-IO-Data'!$AP18","v":0.25441409402402781},{"$f":"(AP269*'Default-Data'!$F$19/general_dollar_index)/'Colombia-IO-Data'!$AP18","v":0.1720597014162481},null,null,null,null,null,null,null,null,null,null,null,null,"DOM_C21T22: Pulp, paper, paper products, printing and publishing",{"$f":"'General Impact Estimates'!C15","v":0},null,null,3642.3828460979616,2259.7123199617404,{"$f":"BG269*'Mexico-IO-Data'!AQ18","v":0},{"$f":"BJ269*'Mexico-IO-Data'!$AQ18","v":1630.5185726229922},{"$f":"BK269*'Mexico-IO-Data'!$AQ18","v":1011.5638751236072},{"$f":"BG269*'Mexico-IO-Data'!AR18","v":0},{"$f":"BJ269*'Mexico-IO-Data'!$AR18","v":507.31041573148167},{"$f":"BK269*'Mexico-IO-Data'!$AR18","v":314.73231807618441},{"$f":"(BO269*'Default-Data'!$F$19/general_dollar_index)/'Mexico-IO-Data'!$AS18","v":0},{"$f":"(BP269*'Default-Data'!$F$19/general_dollar_index)/'Mexico-IO-Data'!$AS18","v":7.0826908656237253E-2},{"$f":"(BQ269*'Default-Data'!$F$19/general_dollar_index)/'Mexico-IO-Data'!$AS18","v":4.3940586379260488E-2},null,null,null,null,null,null,null,null,null,null,null,null,"TTL_C21T22: Pulp, paper, paper products, printing and publishing",{"$f":"'General Impact Estimates'!C15","v":0},null,null,3851.2875425437146,2676.5733694872038,{"$f":"CH269*'Philippines-IO-Data'!$AN18","v":0},{"$f":"CK269*'Philippines-IO-Data'!$AN18","v":1019.5868372256176},{"$f":"CL269*'Philippines-IO-Data'!$AN18","v":708.59393027696706},{"$f":"CH269*'Philippines-IO-Data'!AO18","v":0},{"$f":"CK269*'Philippines-IO-Data'!$AO18","v":302.27273282806271},{"$f":"CL269*'Philippines-IO-Data'!$AO18","v":210.07393970779574},{"$f":"(CP269*'Default-Data'!$F$19/general_dollar_index)/'Philippines-IO-Data'!$AP18","v":0},{"$f":"(CQ269*'Default-Data'!$F$19/general_dollar_index)/'Philippines-IO-Data'!$AP18","v":9.6820948666046833E-2},{"$f":"(CR269*'Default-Data'!$F$19/general_dollar_index)/'Philippines-IO-Data'!$AP18","v":6.7288762510021569E-2},null,null,null,null,null,null,null,null,null,null,null,null,"DOM_C21T22: Pulp, paper, paper products, printing and publishing",{"$f":"'General Impact Estimates'!C15","v":0},null,null,13737.436228370256,29585.223261293126,{"$f":"DI269*'SouthAfrica-IO-Data'!AR18","v":0},{"$f":"DL269*'SouthAfrica-IO-Data'!$AR18","v":3155.6060533592185},{"$f":"DM269*'SouthAfrica-IO-Data'!$AR18","v":6795.9776526945352},{"$f":"DI269*'SouthAfrica-IO-Data'!AS18","v":0},{"$f":"DL269*'SouthAfrica-IO-Data'!$AS18","v":2630.6191397453613},{"$f":"DM269*'SouthAfrica-IO-Data'!$AS18","v":5665.3551121911523},{"$f":"(DQ269*'Default-Data'!$F$19/general_dollar_index)/'SouthAfrica-IO-Data'!$AT18","v":0},{"$f":"(DR269*'Default-Data'!$F$19/general_dollar_index)/'SouthAfrica-IO-Data'!$AT18","v":0.21101598057759199},{"$f":"(DS269*'Default-Data'!$F$19/general_dollar_index)/'SouthAfrica-IO-Data'!$AT18","v":0.45444832596899976},null,null,null,null,null,null,null,null,null,null,null,null,"TOBAC",{"$f":"'General Impact Estimates'!C15","v":0},null,null,4758.4846792513372,1107.7300604230059,{"$f":"EJ269*'Zambia-IO-Data'!BO16","v":0},{"$f":"EM269*'Zambia-IO-Data'!$BO16","v":1366.8657201604226},{"$f":"EN269*'Zambia-IO-Data'!$BO16","v":318.19336382137095},{"$f":"EJ269*'Zambia-IO-Data'!BN16","v":0},{"$f":"EM269*'Zambia-IO-Data'!$BN16","v":954.76578288529561},{"$f":"EN269*'Zambia-IO-Data'!$BN16","v":222.26041054139637},{"$f":"(ER269*'Default-Data'!$F$19/general_dollar_index)/'Zambia-IO-Data'!$BP16","v":0},{"$f":"(ES269*'Default-Data'!$F$19/general_dollar_index)/'Zambia-IO-Data'!$BP16","v":9.5196539264343052},{"$f":"(ET269*'Default-Data'!$F$19/general_dollar_index)/'Zambia-IO-Data'!$BP16","v":2.2160850627755475},null,null,null,null,null,null,null,null,null,null,null,null,"TTL_C21T22: Pulp, paper, paper products, printing and publishing",{"$f":"'General Impact Estimates'!C15","v":0},null,null,9589.2121578362003,7426.9469932930424,{"$f":"FK269*CustomRegion1!C14","v":0},{"$f":"FN269*CustomRegion1!$C14","v":2538.6404903530197},{"$f":"FO269*CustomRegion1!$C14","v":1966.2041100500383},{"$f":"FK269*CustomRegion1!D14","v":0},{"$f":"FN269*CustomRegion1!$D14","v":752.62034646802329},{"$f":"FO269*CustomRegion1!$D14","v":582.91247782269932},{"$f":"(FT269*'Default-Data'!$C$58/general_dollar_index)/CustomRegion1!$E14","v":0.24107174751965499},{"$f":"(FU269*'Default-Data'!$C$58/general_dollar_index)/CustomRegion1!$E14","v":0.18671263717383532},{"$f":"(FV269*'Default-Data'!$C$58/general_dollar_index)/CustomRegion1!$E14","v":7.7217667214168859E-5},null,null,null,null,null,null,null,null,null,null,null,null,"C21T22 Pulp, paper, paper products, printing and publishing",{"$f":"'General Impact Estimates'!C15","v":0},null,null,11256.180923939512,9842.3470389911272,{"$f":"GL269*CustomRegion2!C18","v":0},{"$f":"GO269*CustomRegion2!$C18","v":3931.3305185299337},{"$f":"GP269*CustomRegion2!$C18","v":3437.5353016986101},{"$f":"GL269*CustomRegion2!D18","v":0},{"$f":"GO269*CustomRegion2!$D18","v":1512.5660031775467},{"$f":"GP269*CustomRegion2!$D18","v":1322.5799783469411},{"$f":"(GT269*'Default-Data'!$C$59/general_dollar_index)/CustomRegion2!$E18","v":0},{"$f":"(GU269*'Default-Data'!$C$59/general_dollar_index)/CustomRegion2!$E18","v":0.21117322022477425},{"$f":"(GV269*'Default-Data'!$C$59/general_dollar_index)/CustomRegion2!$E18","v":0.18464878388487219},null,null,null,null,null,null,null,null,null,null,null,null,"TOBAC",{"$f":"'General Impact Estimates'!C15","v":0},null,null,4758.4846792513372,1107.7300604230059,{"$f":"HM269*CustomRegion3!D17","v":0},{"$f":"HP269*CustomRegion3!$D17","v":1366.8657201604226},{"$f":"HQ269*CustomRegion3!$D17","v":318.19336382137095},{"$f":"HM269*CustomRegion3!E17","v":0},{"$f":"HP269*CustomRegion3!$E17","v":954.76578288529561},{"$f":"HQ269*CustomRegion3!$E17","v":222.26041054139637},{"$f":"(HU269*'Default-Data'!$C$60/general_dollar_index)/CustomRegion3!$F17","v":0},{"$f":"(HV269*'Default-Data'!$C$60/general_dollar_index)/CustomRegion3!$F17","v":9.5196539264343052},{"$f":"(HW269*'Default-Data'!$C$60/general_dollar_index)/CustomRegion3!$F17","v":2.2160850627755475}]
[null,null,null,null,null,null,null,null,null,null,null,null,null,null,null,null,null,null,null,null,null,null,null,null,null,null,null,null,null,269,"TTL_C23: Coke, refined petroleum products and nuclear fuel",{"$f":"'General Impact Estimates'!C16","v":0},null,null,13389.32856871625,8400.9276276589007,{"$f":"'Colombia-IO-Data'!$AN19*Calculations!AF270","v":0},{"$f":"AI270*'Colombia-IO-Data'!$AN19","v":7227.8826418117042},{"$f":"AJ270*'Colombia-IO-Data'!$AN19","v":4535.0234452341911},{"$f":"AK270*'Colombia-IO-Data'!$AO19","v":0},{"$f":"AL270*'Colombia-IO-Data'!$AO19","v":378.81679763967043},{"$f":"AM270*'Colombia-IO-Data'!$AO19","v":237.68275494769668},{"$f":"(AN270*'Default-Data'!$F$19/general_dollar_index)/'Colombia-IO-Data'!$AP19","v":0},{"$f":"(AO270*'Default-Data'!$F$19/general_dollar_index)/'Colombia-IO-Data'!$AP19","v":9.1698020970008814E-2},{"$f":"(AP270*'Default-Data'!$F$19/general_dollar_index)/'Colombia-IO-Data'!$AP19","v":5.7534508456868222E-2},null,null,null,null,null,null,null,null,null,null,null,null,"DOM_C23: Coke, refined petroleum products and nuclear fuel",{"$f":"'General Impact Estimates'!C16","v":0},null,null,22147.24500859125,6322.3928874783232,{"$f":"BG270*'Mexico-IO-Data'!AQ19","v":0},{"$f":"BJ270*'Mexico-IO-Data'!$AQ19","v":2778.4116497912314},{"$f":"BK270*'Mexico-IO-Data'!$AQ19","v":793.15553904392164},{"$f":"BG270*'Mexico-IO-Data'!AR19","v":0},{"$f":"BJ270*'Mexico-IO-Data'!$AR19","v":711.18028238231614},{"$f":"BK270*'Mexico-IO-Data'!$AR19","v":203.02124066919271},{"$f":"(BO270*'Default-Data'!$F$19/general_dollar_index)/'Mexico-IO-Data'!$AS19","v":0},{"$f":"(BP270*'Default-Data'!$F$19/general_dollar_index)/'Mexico-IO-Data'!$AS19","v":1.6194141269430532E-2},{"$f":"(BQ270*'Default-Data'!$F$19/general_dollar_index)/'Mexico-IO-Data'!$AS19","v":4.6229552949339659E-3},null,null,null,null,null,null,null,null,null,null,null,null,"TTL_C23: Coke, refined petroleum products and nuclear fuel",{"$f":"'General Impact Estimates'!C16","v":0},null,null,103556.08257225875,11245.748668055166,{"$f":"CH270*'Philippines-IO-Data'!$AN19","v":0},{"$f":"CK270*'Philippines-IO-Data'!$AN19","v":17589.250053832329},{"$f":"CL270*'Philippines-IO-Data'!$AN19","v":1910.1174981870477},{"$f":"CH270*'Philippines-IO-Data'!AO19","v":0},{"$f":"CK270*'Philippines-IO-Data'!$AO19","v":2391.4163762722856},{"$f":"CL270*'Philippines-IO-Data'!$AO19","v":259.69761370090401},{"$f":"(CP270*'Default-Data'!$F$19/general_dollar_index)/'Philippines-IO-Data'!$AP19","v":0},{"$f":"(CQ270*'Default-Data'!$F$19/general_dollar_index)/'Philippines-IO-Data'!$AP19","v":0.76599433908550951},{"$f":"(CR270*'Default-Data'!$F$19/general_dollar_index)/'Philippines-IO-Data'!$AP19","v":8.3183716538310692E-2},null,null,null,null,null,null,null,null,null,null,null,null,"DOM_C23: Coke, refined petroleum products and nuclear fuel",{"$f":"'General Impact Estimates'!C16","v":0},null,null,20272.943256024937,43685.589676916745,{"$f":"DI270*'SouthAfrica-IO-Data'!AR19","v":0},{"$f":"DL270*'SouthAfrica-IO-Data'!$AR19","v":4301.3551000123198},{"$f":"DM270*'SouthAfrica-IO-Data'!$AR19","v":9268.867947825338},{"$f":"DI270*'SouthAfrica-IO-Data'!AS19","v":0},{"$f":"DL270*'SouthAfrica-IO-Data'!$AS19","v":815.61202417371976},{"$f":"DM270*'SouthAfrica-IO-Data'!$AS19","v":1757.5391877557572},{"$f":"(DQ270*'Default-Data'!$F$19/general_dollar_index)/'SouthAfrica-IO-Data'!$AT19","v":0},{"$f":"(DR270*'Default-Data'!$F$19/general_dollar_index)/'SouthAfrica-IO-Data'!$AT19","v":6.5424587106346285E-2},{"$f":"(DS270*'Default-Data'!$F$19/general_dollar_index)/'SouthAfrica-IO-Data'!$AT19","v":0.14098158471686822},null,null,null,null,null,null,null,null,null,null,null,null,"COFFEE",{"$f":"'General Impact Estimates'!C16","v":0},null,null,3006.7495773259639,685.74937048556831,{"$f":"EJ270*'Zambia-IO-Data'!BO17","v":0},{"$f":"EM270*'Zambia-IO-Data'!$BO17","v":959.80883746208701},{"$f":"EN270*'Zambia-IO-Data'!$BO17","v":218.90359976751623},{"$f":"EJ270*'Zambia-IO-Data'!BN17","v":0},{"$f":"EM270*'Zambia-IO-Data'!$BN17","v":763.28519625875663},{"$f":"EN270*'Zambia-IO-Data'!$BN17","v":174.08245328528443},{"$f":"(ER270*'Default-Data'!$F$19/general_dollar_index)/'Zambia-IO-Data'!$BP17","v":0},{"$f":"(ES270*'Default-Data'!$F$19/general_dollar_index)/'Zambia-IO-Data'!$BP17","v":7.6104643105196059},{"$f":"(ET270*'Default-Data'!$F$19/general_dollar_index)/'Zambia-IO-Data'!$BP17","v":1.7357185810875138},null,null,null,null,null,null,null,null,null,null,null,null,"TTL_C23: Coke, refined petroleum products and nuclear fuel",{"$f":"'General Impact Estimates'!C16","v":0},null,null,202421.17916977199,31902.454511425371,{"$f":"FK270*CustomRegion1!C15","v":0},{"$f":"FN270*CustomRegion1!$C15","v":34381.724840975279},{"$f":"FO270*CustomRegion1!$C15","v":5418.7087401739354},{"$f":"FK270*CustomRegion1!D15","v":0},{"$f":"FN270*CustomRegion1!$D15","v":4674.5040054326637},{"$f":"FO270*CustomRegion1!$D15","v":736.72207625920646},{"$f":"(FT270*'Default-Data'!$C$58/general_dollar_index)/CustomRegion1!$E15","v":1.4972899080734028},{"$f":"(FU270*'Default-Data'!$C$58/general_dollar_index)/CustomRegion1!$E15","v":0.23597937418725004},{"$f":"(FV270*'Default-Data'!$C$58/general_dollar_index)/CustomRegion1!$E15","v":4.7959677993921298E-4},null,null,null,null,null,null,null,null,null,null,null,null,"C23 Coke, refined petroleum products and nuclear fuel",{"$f":"'General Impact Estimates'!C16","v":0},null,null,50277.217033769404,16016.69560966656,{"$f":"GL270*CustomRegion2!C19","v":0},{"$f":"GO270*CustomRegion2!$C19","v":8407.1666620030628},{"$f":"GP270*CustomRegion2!$C19","v":2678.2514488539923},{"$f":"GL270*CustomRegion2!D19","v":0},{"$f":"GO270*CustomRegion2!$D19","v":3566.5279560784543},{"$f":"GP270*CustomRegion2!$D19","v":1136.1804814595582},{"$f":"(GT270*'Default-Data'!$C$59/general_dollar_index)/CustomRegion2!$E19","v":0},{"$f":"(GU270*'Default-Data'!$C$59/general_dollar_index)/CustomRegion2!$E19","v":8.1212681218654617E-2},{"$f":"(GV270*'Default-Data'!$C$59/general_dollar_index)/CustomRegion2!$E19","v":2.5871734186289633E-2},null,null,null,null,null,null,null,null,null,null,null,null,"COFFEE",{"$f":"'General Impact Estimates'!C16","v":0},null,null,3006.7495773259639,685.74937048556831,{"$f":"HM270*CustomRegion3!D18","v":0},{"$f":"HP270*CustomRegion3!$D18","v":959.80883746208701},{"$f":"HQ270*CustomRegion3!$D18","v":218.90359976751623},{"$f":"HM270*CustomRegion3!E18","v":0},{"$f":"HP270*CustomRegion3!$E18","v":763.28519625875663},{"$f":"HQ270*CustomRegion3!$E18","v":174.08245328528443},{"$f":"(HU270*'Default-Data'!$C$60/general_dollar_index)/CustomRegion3!$F18","v":0},{"$f":"(HV270*'Default-Data'!$C$60/general_dollar_index)/CustomRegion3!$F18","v":7.6104643105196059},{"$f":"(HW270*'Default-Data'!$C$60/general_dollar_index)/CustomRegion3!$F18","v":1.7357185810875138}]
[null,null,null,null,null,null,null,null,null,null,null,null,null,null,null,null,null,null,null,null,null,null,null,null,null,null,null,null,null,270,"TTL_C24: Chemicals and chemical products",{"$f":"'General Impact Estimates'!C17","v":0},null,null,8498.856451301901,9939.0213462976535,{"$f":"'Colombia-IO-Data'!$AN20*Calculations!AF271","v":0},{"$f":"AI271*'Colombia-IO-Data'!$AN20","v":2628.5699173036041},{"$f":"AJ271*'Colombia-IO-Data'!$AN20","v":3073.9915032115114},{"$f":"AK271*'Colombia-IO-Data'!$AO20","v":0},{"$f":"AL271*'Colombia-IO-Data'!$AO20","v":964.37484310075661},{"$f":"AM271*'Colombia-IO-Data'!$AO20","v":1127.7919807602584},{"$f":"(AN271*'Default-Data'!$F$19/general_dollar_index)/'Colombia-IO-Data'!$AP20","v":0},{"$f":"(AO271*'Default-Data'!$F$19/general_dollar_index)/'Colombia-IO-Data'!$AP20","v":0.23344071629505123},{"$f":"(AP271*'Default-Data'!$F$19/general_dollar_index)/'Colombia-IO-Data'!$AP20","v":0.27299817047693659},null,null,null,null,null,null,null,null,null,null,null,null,"DOM_C24: Chemicals and chemical products",{"$f":"'General Impact Estimates'!C17","v":0},null,null,28044.950978877183,6024.0703259950969,{"$f":"BG271*'Mexico-IO-Data'!AQ20","v":0},{"$f":"BJ271*'Mexico-IO-Data'!$AQ20","v":8226.9376251210288},{"$f":"BK271*'Mexico-IO-Data'!$AQ20","v":1767.1505597792402},{"$f":"BG271*'Mexico-IO-Data'!AR20","v":0},{"$f":"BJ271*'Mexico-IO-Data'!$AR20","v":1800.9186782111658},{"$f":"BK271*'Mexico-IO-Data'!$AR20","v":386.83828604704325},{"$f":"(BO271*'Default-Data'!$F$19/general_dollar_index)/'Mexico-IO-Data'!$AS20","v":0},{"$f":"(BP271*'Default-Data'!$F$19/general_dollar_index)/'Mexico-IO-Data'!$AS20","v":0.14581735960469192},{"$f":"(BQ271*'Default-Data'!$F$19/general_dollar_index)/'Mexico-IO-Data'!$AS20","v":3.1321646084216094E-2},null,null,null,null,null,null,null,null,null,null,null,null,"TTL_C24: Chemicals and chemical products",{"$f":"'General Impact Estimates'!C17","v":0},null,null,8163.7648197754097,5521.3917057641011,{"$f":"CH271*'Philippines-IO-Data'!$AN20","v":0},{"$f":"CK271*'Philippines-IO-Data'!$AN20","v":2203.1583464470932},{"$f":"CL271*'Philippines-IO-Data'!$AN20","v":1490.0600996113194},{"$f":"CH271*'Philippines-IO-Data'!AO20","v":0},{"$f":"CK271*'Philippines-IO-Data'!$AO20","v":571.33709120218384},{"$f":"CL271*'Philippines-IO-Data'!$AO20","v":386.41190017106715},{"$f":"(CP271*'Default-Data'!$F$19/general_dollar_index)/'Philippines-IO-Data'!$AP20","v":0},{"$f":"(CQ271*'Default-Data'!$F$19/general_dollar_index)/'Philippines-IO-Data'!$AP20","v":0.18300492624903927},{"$f":"(CR271*'Default-Data'!$F$19/general_dollar_index)/'Philippines-IO-Data'!$AP20","v":0.12377155689955485},null,null,null,null,null,null,null,null,null,null,null,null,"DOM_C24: Chemicals and chemical products",{"$f":"'General Impact Estimates'!C17","v":0},null,null,8450.1229656712931,16732.808226210505,{"$f":"DI271*'SouthAfrica-IO-Data'!AR20","v":0},{"$f":"DL271*'SouthAfrica-IO-Data'!$AR20","v":1958.0538144490963},{"$f":"DM271*'SouthAfrica-IO-Data'!$AR20","v":3877.3091358409465},{"$f":"DI271*'SouthAfrica-IO-Data'!AS20","v":0},{"$f":"DL271*'SouthAfrica-IO-Data'!$AS20","v":1363.3507951746408},{"$f":"DM271*'SouthAfrica-IO-Data'!$AS20","v":2699.6870333586421},{"$f":"(DQ271*'Default-Data'!$F$19/general_dollar_index)/'SouthAfrica-IO-Data'!$AT20","v":0},{"$f":"(DR271*'Default-Data'!$F$19/general_dollar_index)/'SouthAfrica-IO-Data'!$AT20","v":0.1093616329967341},{"$f":"(DS271*'Default-Data'!$F$19/general_dollar_index)/'SouthAfrica-IO-Data'!$AT20","v":0.21655628440836469},null,null,null,null,null,null,null,null,null,null,null,null,"WHEAT",{"$f":"'General Impact Estimates'!C17","v":0},null,null,16853.028026156411,3843.6700704521318,{"$f":"EJ271*'Zambia-IO-Data'!BO18","v":0},{"$f":"EM271*'Zambia-IO-Data'!$BO18","v":3641.3140041387301},{"$f":"EN271*'Zambia-IO-Data'!$BO18","v":830.47447812369467},{"$f":"EJ271*'Zambia-IO-Data'!BN18","v":0},{"$f":"EM271*'Zambia-IO-Data'!$BN18","v":2205.2213246247984},{"$f":"EN271*'Zambia-IO-Data'!$BN18","v":502.94482338888355},{"$f":"(ER271*'Default-Data'!$F$19/general_dollar_index)/'Zambia-IO-Data'!$BP18","v":0},{"$f":"(ES271*'Default-Data'!$F$19/general_dollar_index)/'Zambia-IO-Data'!$BP18","v":21.98753266814882},{"$f":"(ET271*'Default-Data'!$F$19/general_dollar_index)/'Zambia-IO-Data'!$BP18","v":5.0146965345625523},null,null,null,null,null,null,null,null,null,null,null,null,"TTL_C24: Chemicals and chemical products",{"$f":"'General Impact Estimates'!C17","v":0},null,null,32311.385495623832,20731.303230925067,{"$f":"FK271*CustomRegion1!C16","v":0},{"$f":"FN271*CustomRegion1!$C16","v":8719.8860098852765},{"$f":"FO271*CustomRegion1!$C16","v":5594.7647628578652},{"$f":"FK271*CustomRegion1!D16","v":0},{"$f":"FN271*CustomRegion1!$D16","v":2261.2965230286995},{"$f":"FO271*CustomRegion1!$D16","v":1450.8701250305021},{"$f":"(FT271*'Default-Data'!$C$58/general_dollar_index)/CustomRegion1!$E16","v":0.72431566197341657},{"$f":"(FU271*'Default-Data'!$C$58/general_dollar_index)/CustomRegion1!$E16","v":0.46472806389911214},{"$f":"(FV271*'Default-Data'!$C$58/general_dollar_index)/CustomRegion1!$E16","v":2.3200547687452939E-4},null,null,null,null,null,null,null,null,null,null,null,null,"C24 Chemicals and chemical products",{"$f":"'General Impact Estimates'!C17","v":0},null,null,59880.290706120701,35890.196866368853,{"$f":"GL271*CustomRegion2!C20","v":0},{"$f":"GO271*CustomRegion2!$C20","v":19730.149229808394},{"$f":"GP271*CustomRegion2!$C20","v":11825.576190602531},{"$f":"GL271*CustomRegion2!D20","v":0},{"$f":"GO271*CustomRegion2!$D20","v":6994.911963926952},{"$f":"GP271*CustomRegion2!$D20","v":4192.5108326602694},{"$f":"(GT271*'Default-Data'!$C$59/general_dollar_index)/CustomRegion2!$E20","v":0},{"$f":"(GU271*'Default-Data'!$C$59/general_dollar_index)/CustomRegion2!$E20","v":0.56636626938659629},{"$f":"(GV271*'Default-Data'!$C$59/general_dollar_index)/CustomRegion2!$E20","v":0.33946055817457982},null,null,null,null,null,null,null,null,null,null,null,null,"WHEAT",{"$f":"'General Impact Estimates'!C17","v":0},null,null,16853.028026156411,3843.6700704521318,{"$f":"HM271*CustomRegion3!D19","v":0},{"$f":"HP271*CustomRegion3!$D19","v":3641.3140041387301},{"$f":"HQ271*CustomRegion3!$D19","v":830.47447812369467},{"$f":"HM271*CustomRegion3!E19","v":0},{"$f":"HP271*CustomRegion3!$E19","v":2205.2213246247984},{"$f":"HQ271*CustomRegion3!$E19","v":502.94482338888355},{"$f":"(HU271*'Default-Data'!$C$60/general_dollar_index)/CustomRegion3!$F19","v":0},{"$f":"(HV271*'Default-Data'!$C$60/general_dollar_index)/CustomRegion3!$F19","v":21.98753266814882},{"$f":"(HW271*'Default-Data'!$C$60/general_dollar_index)/CustomRegion3!$F19","v":5.0146965345625523}]
[null,null,null,null,null,null,null,null,null,null,null,null,null,null,null,null,null,null,null,null,null,null,null,null,null,null,null,null,null,271,"TTL_C25: Rubber and plastics products",{"$f":"'General Impact Estimates'!C18","v":0},null,null,5479.0814672779252,2684.541689544847,{"$f":"'Colombia-IO-Data'!$AN21*Calculations!AF272","v":0},{"$f":"AI272*'Colombia-IO-Data'!$AN21","v":1379.0343142128652},{"$f":"AJ272*'Colombia-IO-Data'!$AN21","v":675.67440453783956},{"$f":"AK272*'Colombia-IO-Data'!$AO21","v":0},{"$f":"AL272*'Colombia-IO-Data'!$AO21","v":798.66612388099281},{"$f":"AM272*'Colombia-IO-Data'!$AO21","v":391.31604784312617},{"$f":"(AN272*'Default-Data'!$F$19/general_dollar_index)/'Colombia-IO-Data'!$AP21","v":0},{"$f":"(AO272*'Default-Data'!$F$19/general_dollar_index)/'Colombia-IO-Data'!$AP21","v":0.19332855203885896},{"$f":"(AP272*'Default-Data'!$F$19/general_dollar_index)/'Colombia-IO-Data'!$AP21","v":9.4723643155739043E-2},null,null,null,null,null,null,null,null,null,null,null,null,"DOM_C25: Rubber and plastics products",{"$f":"'General Impact Estimates'!C18","v":0},null,null,1439.4485112306352,1018.8714770420816,{"$f":"BG272*'Mexico-IO-Data'!AQ21","v":0},{"$f":"BJ272*'Mexico-IO-Data'!$AQ21","v":443.99251431748411},{"$f":"BK272*'Mexico-IO-Data'!$AQ21","v":314.26709974609264},{"$f":"BG272*'Mexico-IO-Data'!AR21","v":0},{"$f":"BJ272*'Mexico-IO-Data'!$AR21","v":155.2200833667664},{"$f":"BK272*'Mexico-IO-Data'!$AR21","v":109.867990673237},{"$f":"(BO272*'Default-Data'!$F$19/general_dollar_index)/'Mexico-IO-Data'!$AS21","v":0},{"$f":"(BP272*'Default-Data'!$F$19/general_dollar_index)/'Mexico-IO-Data'!$AS21","v":2.9264581183196674E-2},{"$f":"(BQ272*'Default-Data'!$F$19/general_dollar_index)/'Mexico-IO-Data'!$AS21","v":2.0714076830473101E-2},null,null,null,null,null,null,null,null,null,null,null,null,"TTL_C25: Rubber and plastics products",{"$f":"'General Impact Estimates'!C18","v":0},null,null,908.92639841056257,1416.7655632250965,{"$f":"CH272*'Philippines-IO-Data'!$AN21","v":0},{"$f":"CK272*'Philippines-IO-Data'!$AN21","v":279.53397269534577},{"$f":"CL272*'Philippines-IO-Data'!$AN21","v":435.71636488808576},{"$f":"CH272*'Philippines-IO-Data'!AO21","v":0},{"$f":"CK272*'Philippines-IO-Data'!$AO21","v":78.988580814525605},{"$f":"CL272*'Philippines-IO-Data'!$AO21","v":123.12141157054764},{"$f":"(CP272*'Default-Data'!$F$19/general_dollar_index)/'Philippines-IO-Data'!$AP21","v":0},{"$f":"(CQ272*'Default-Data'!$F$19/general_dollar_index)/'Philippines-IO-Data'!$AP21","v":2.530082438033612E-2},{"$f":"(CR272*'Default-Data'!$F$19/general_dollar_index)/'Philippines-IO-Data'!$AP21","v":3.9437006963323785E-2},null,null,null,null,null,null,null,null,null,null,null,null,"DOM_C25: Rubber and plastics products",{"$f":"'General Impact Estimates'!C18","v":0},null,null,5064.994812941708,9653.3749014339082,{"$f":"DI272*'SouthAfrica-IO-Data'!AR21","v":0},{"$f":"DL272*'SouthAfrica-IO-Data'!$AR21","v":1491.769029868414},{"$f":"DM272*'SouthAfrica-IO-Data'!$AR21","v":2843.1629732122869},{"$f":"DI272*'SouthAfrica-IO-Data'!AS21","v":0},{"$f":"DL272*'SouthAfrica-IO-Data'!$AS21","v":1408.1623273128166},{"$f":"DM272*'SouthAfrica-IO-Data'!$AS21","v":2683.8169375599609},{"$f":"(DQ272*'Default-Data'!$F$19/general_dollar_index)/'SouthAfrica-IO-Data'!$AT21","v":0},{"$f":"(DR272*'Default-Data'!$F$19/general_dollar_index)/'SouthAfrica-IO-Data'!$AT21","v":0.1129562048039767},{"$f":"(DS272*'Default-Data'!$F$19/general_dollar_index)/'SouthAfrica-IO-Data'!$AT21","v":0.21528325944773008},null,null,null,null,null,null,null,null,null,null,null,null,"HORTI",{"$f":"'General Impact Estimates'!C18","v":0},null,null,970.69658915807577,40205.461515015413,{"$f":"EJ272*'Zambia-IO-Data'!BO19","v":0},{"$f":"EM272*'Zambia-IO-Data'!$BO19","v":467.94152056470159},{"$f":"EN272*'Zambia-IO-Data'!$BO19","v":19381.756365972062},{"$f":"EJ272*'Zambia-IO-Data'!BN19","v":0},{"$f":"EM272*'Zambia-IO-Data'!$BN19","v":394.22636775220121},{"$f":"EN272*'Zambia-IO-Data'!$BN19","v":16328.534821177058},{"$f":"(ER272*'Default-Data'!$F$19/general_dollar_index)/'Zambia-IO-Data'!$BP19","v":0},{"$f":"(ES272*'Default-Data'!$F$19/general_dollar_index)/'Zambia-IO-Data'!$BP19","v":3.9307007613269755},{"$f":"(ET272*'Default-Data'!$F$19/general_dollar_index)/'Zambia-IO-Data'!$BP19","v":162.80642164782321},null,null,null,null,null,null,null,null,null,null,null,null,"TTL_C25: Rubber and plastics products",{"$f":"'General Impact Estimates'!C18","v":0},null,null,4236.7961617073115,4372.1852078055135,{"$f":"FK272*CustomRegion1!C17","v":0},{"$f":"FN272*CustomRegion1!$C17","v":1302.9971014742996},{"$f":"FO272*CustomRegion1!$C17","v":1344.6350580585122},{"$f":"FK272*CustomRegion1!D17","v":0},{"$f":"FN272*CustomRegion1!$D17","v":368.19099610145162},{"$f":"FO272*CustomRegion1!$D17","v":379.95673271976335},{"$f":"(FT272*'Default-Data'!$C$58/general_dollar_index)/CustomRegion1!$E17","v":0.11793522094868134},{"$f":"(FU272*'Default-Data'!$C$58/general_dollar_index)/CustomRegion1!$E17","v":0.1217039028621365},{"$f":"(FV272*'Default-Data'!$C$58/general_dollar_index)/CustomRegion1!$E17","v":3.7775818766578059E-5},null,null,null,null,null,null,null,null,null,null,null,null,"C25 Rubber and plastics products",{"$f":"'General Impact Estimates'!C18","v":0},null,null,13358.503164952699,9403.9085479154401,{"$f":"GL272*CustomRegion2!C21","v":0},{"$f":"GO272*CustomRegion2!$C21","v":4359.9923447986093},{"$f":"GP272*CustomRegion2!$C21","v":3069.2787038945698},{"$f":"GL272*CustomRegion2!D21","v":0},{"$f":"GO272*CustomRegion2!$D21","v":1979.7222648979639},{"$f":"GP272*CustomRegion2!$D21","v":1393.6536825634985},{"$f":"(GT272*'Default-Data'!$C$59/general_dollar_index)/CustomRegion2!$E21","v":0},{"$f":"(GU272*'Default-Data'!$C$59/general_dollar_index)/CustomRegion2!$E21","v":0.37324901317307796},{"$f":"(GV272*'Default-Data'!$C$59/general_dollar_index)/CustomRegion2!$E21","v":0.26275395844409632},null,null,null,null,null,null,null,null,null,null,null,null,"HORTI",{"$f":"'General Impact Estimates'!C18","v":0},null,null,970.69658915807577,40205.461515015413,{"$f":"HM272*CustomRegion3!D20","v":0},{"$f":"HP272*CustomRegion3!$D20","v":467.94152056470159},{"$f":"HQ272*CustomRegion3!$D20","v":19381.756365972062},{"$f":"HM272*CustomRegion3!E20","v":0},{"$f":"HP272*CustomRegion3!$E20","v":394.22636775220121},{"$f":"HQ272*CustomRegion3!$E20","v":16328.534821177058},{"$f":"(HU272*'Default-Data'!$C$60/general_dollar_index)/CustomRegion3!$F20","v":0},{"$f":"(HV272*'Default-Data'!$C$60/general_dollar_index)/CustomRegion3!$F20","v":3.9307007613269755},{"$f":"(HW272*'Default-Data'!$C$60/general_dollar_index)/CustomRegion3!$F20","v":162.80642164782321}]
[null,null,null,null,null,null,null,null,null,null,null,null,null,null,null,null,null,null,null,null,null,null,null,null,null,null,null,null,null,272,"TTL_C26: Other non-metallic mineral products",{"$f":"'General Impact Estimates'!C19","v":0},null,null,3021.7903913780856,955.47913193352588,{"$f":"'Colombia-IO-Data'!$AN22*Calculations!AF273","v":0},{"$f":"AI273*'Colombia-IO-Data'!$AN22","v":1335.0891133179309},{"$f":"AJ273*'Colombia-IO-Data'!$AN22","v":422.15032210263865},{"$f":"AK273*'Colombia-IO-Data'!$AO22","v":0},{"$f":"AL273*'Colombia-IO-Data'!$AO22","v":395.14767930693893},{"$f":"AM273*'Colombia-IO-Data'!$AO22","v":124.94425910116068},{"$f":"(AN273*'Default-Data'!$F$19/general_dollar_index)/'Colombia-IO-Data'!$AP22","v":0},{"$f":"(AO273*'Default-Data'!$F$19/general_dollar_index)/'Colombia-IO-Data'!$AP22","v":9.5651144323869022E-2},{"$f":"(AP273*'Default-Data'!$F$19/general_dollar_index)/'Colombia-IO-Data'!$AP22","v":3.0244543965651835E-2},null,null,null,null,null,null,null,null,null,null,null,null,"DOM_C26: Other non-metallic mineral products",{"$f":"'General Impact Estimates'!C19","v":0},null,null,1468.8111743401944,1034.5686977533253,{"$f":"BG273*'Mexico-IO-Data'!AQ22","v":0},{"$f":"BJ273*'Mexico-IO-Data'!$AQ22","v":803.40901171885366},{"$f":"BK273*'Mexico-IO-Data'!$AQ22","v":565.88745343024516},{"$f":"BG273*'Mexico-IO-Data'!AR22","v":0},{"$f":"BJ273*'Mexico-IO-Data'!$AR22","v":173.6514374372824},{"$f":"BK273*'Mexico-IO-Data'!$AR22","v":122.31275512537201},{"$f":"(BO273*'Default-Data'!$F$19/general_dollar_index)/'Mexico-IO-Data'!$AS22","v":0},{"$f":"(BP273*'Default-Data'!$F$19/general_dollar_index)/'Mexico-IO-Data'!$AS22","v":4.3476719632391275E-2},{"$f":"(BQ273*'Default-Data'!$F$19/general_dollar_index)/'Mexico-IO-Data'!$AS22","v":3.0623169266719954E-2},null,null,null,null,null,null,null,null,null,null,null,null,"TTL_C26: Other non-metallic mineral products",{"$f":"'General Impact Estimates'!C19","v":0},null,null,3298.8062913143199,2006.5662694803154,{"$f":"CH273*'Philippines-IO-Data'!$AN22","v":0},{"$f":"CK273*'Philippines-IO-Data'!$AN22","v":1241.3012973914467},{"$f":"CL273*'Philippines-IO-Data'!$AN22","v":755.04685442304583},{"$f":"CH273*'Philippines-IO-Data'!AO22","v":0},{"$f":"CK273*'Philippines-IO-Data'!$AO22","v":264.02514461852485},{"$f":"CL273*'Philippines-IO-Data'!$AO22","v":160.59868410009491},{"$f":"(CP273*'Default-Data'!$F$19/general_dollar_index)/'Philippines-IO-Data'!$AP22","v":0},{"$f":"(CQ273*'Default-Data'!$F$19/general_dollar_index)/'Philippines-IO-Data'!$AP22","v":8.4569867531506721E-2},{"$f":"(CR273*'Default-Data'!$F$19/general_dollar_index)/'Philippines-IO-Data'!$AP22","v":5.1441348359842466E-2},null,null,null,null,null,null,null,null,null,null,null,null,"DOM_C26: Other non-metallic mineral products",{"$f":"'General Impact Estimates'!C19","v":0},null,null,2784.3848988486743,5317.3987797714353,{"$f":"DI273*'SouthAfrica-IO-Data'!AR22","v":0},{"$f":"DL273*'SouthAfrica-IO-Data'!$AR22","v":918.20113015713014},{"$f":"DM273*'SouthAfrica-IO-Data'!$AR22","v":1753.5081342745164},{"$f":"DI273*'SouthAfrica-IO-Data'!AS22","v":0},{"$f":"DL273*'SouthAfrica-IO-Data'!$AS22","v":413.86989923056535},{"$f":"DM273*'SouthAfrica-IO-Data'!$AS22","v":790.37610714765606},{"$f":"(DQ273*'Default-Data'!$F$19/general_dollar_index)/'SouthAfrica-IO-Data'!$AT22","v":0},{"$f":"(DR273*'Default-Data'!$F$19/general_dollar_index)/'SouthAfrica-IO-Data'!$AT22","v":3.3198710257289703E-2},{"$f":"(DS273*'Default-Data'!$F$19/general_dollar_index)/'SouthAfrica-IO-Data'!$AT22","v":6.3400279711720908E-2},null,null,null,null,null,null,null,null,null,null,null,null,"OTHERCROP",{"$f":"'General Impact Estimates'!C19","v":0},null,null,3287.97368032335,22050.12413648147,{"$f":"EJ273*'Zambia-IO-Data'!BO20","v":0},{"$f":"EM273*'Zambia-IO-Data'!$BO20","v":1513.743940360607},{"$f":"EN273*'Zambia-IO-Data'!$BO20","v":10151.614654201083},{"$f":"EJ273*'Zambia-IO-Data'!BN20","v":0},{"$f":"EM273*'Zambia-IO-Data'!$BN20","v":1422.8490604504086},{"$f":"EN273*'Zambia-IO-Data'!$BN20","v":9542.0467013355519},{"$f":"(ER273*'Default-Data'!$F$19/general_dollar_index)/'Zambia-IO-Data'!$BP20","v":0},{"$f":"(ES273*'Default-Data'!$F$19/general_dollar_index)/'Zambia-IO-Data'!$BP20","v":14.186757514609612},{"$f":"(ET273*'Default-Data'!$F$19/general_dollar_index)/'Zambia-IO-Data'!$BP20","v":95.140592567194616},null,null,null,null,null,null,null,null,null,null,null,null,"TTL_C26: Other non-metallic mineral products",{"$f":"'General Impact Estimates'!C19","v":0},null,null,6446.9708273159122,4331.1386748447985,{"$f":"FK273*CustomRegion1!C18","v":0},{"$f":"FN273*CustomRegion1!$C18","v":2425.9179065053918},{"$f":"FO273*CustomRegion1!$C18","v":1629.7556089979141},{"$f":"FK273*CustomRegion1!D18","v":0},{"$f":"FN273*CustomRegion1!$D18","v":515.99343966187053},{"$f":"FO273*CustomRegion1!$D18","v":346.64948893776227},{"$f":"(FT273*'Default-Data'!$C$58/general_dollar_index)/CustomRegion1!$E18","v":0.16527780678760831},{"$f":"(FU273*'Default-Data'!$C$58/general_dollar_index)/CustomRegion1!$E18","v":0.11103526295455023},{"$f":"(FV273*'Default-Data'!$C$58/general_dollar_index)/CustomRegion1!$E18","v":5.2940117677508849E-5},null,null,null,null,null,null,null,null,null,null,null,null,"C26 Other non-metallic mineral products",{"$f":"'General Impact Estimates'!C19","v":0},null,null,6273.9948174546253,4970.6758431462176,{"$f":"GL273*CustomRegion2!C22","v":0},{"$f":"GO273*CustomRegion2!$C22","v":3316.316131569105},{"$f":"GP273*CustomRegion2!$C22","v":2627.4061364485469},{"$f":"GL273*CustomRegion2!D22","v":0},{"$f":"GO273*CustomRegion2!$D22","v":929.7907950000066},{"$f":"GP273*CustomRegion2!$D22","v":736.64208823195679},{"$f":"(GT273*'Default-Data'!$C$59/general_dollar_index)/CustomRegion2!$E22","v":0},{"$f":"(GU273*'Default-Data'!$C$59/general_dollar_index)/CustomRegion2!$E22","v":0.23278962908437484},{"$f":"(GV273*'Default-Data'!$C$59/general_dollar_index)/CustomRegion2!$E22","v":0.18443142200332852},null,null,null,null,null,null,null,null,null,null,null,null,"OTHERCROP",{"$f":"'General Impact Estimates'!C19","v":0},null,null,3287.97368032335,22050.12413648147,{"$f":"HM273*CustomRegion3!D21","v":0},{"$f":"HP273*CustomRegion3!$D21","v":1513.743940360607},{"$f":"HQ273*CustomRegion3!$D21","v":10151.614654201083},{"$f":"HM273*CustomRegion3!E21","v":0},{"$f":"HP273*CustomRegion3!$E21","v":1422.8490604504086},{"$f":"HQ273*CustomRegion3!$E21","v":9542.0467013355519},{"$f":"(HU273*'Default-Data'!$C$60/general_dollar_index)/CustomRegion3!$F21","v":0},{"$f":"(HV273*'Default-Data'!$C$60/general_dollar_index)/CustomRegion3!$F21","v":14.186757514609612},{"$f":"(HW273*'Default-Data'!$C$60/general_dollar_index)/CustomRegion3!$F21","v":95.140592567194616}]
[null,null,null,null,null,null,null,null,null,null,null,null,null,null,null,null,null,null,null,null,null,null,null,null,null,null,null,null,null,273,"TTL_C27: Basic metals",{"$f":"'General Impact Estimates'!C20","v":1000000},null,null,66588.865922044264,682.14748811745085,{"$f":"'Colombia-IO-Data'!$AN23*Calculations!AF274","v":291315.09752364509},{"$f":"AI274*'Colombia-IO-Data'!$AN23","v":19398.341970069254},{"$f":"AJ274*'Colombia-IO-Data'!$AN23","v":198.71986202644473},{"$f":"AK274*'Colombia-IO-Data'!$AO23","v":76148.241173161703},{"$f":"AL274*'Colombia-IO-Data'!$AO23","v":5070.6250216791559},{"$f":"AM274*'Colombia-IO-Data'!$AO23","v":51.944331440834105},{"$f":"(AN274*'Default-Data'!$F$19/general_dollar_index)/'Colombia-IO-Data'!$AP23","v":18.432770298026071},{"$f":"(AO274*'Default-Data'!$F$19/general_dollar_index)/'Colombia-IO-Data'!$AP23","v":1.2274172699470984},{"$f":"(AP274*'Default-Data'!$F$19/general_dollar_index)/'Colombia-IO-Data'!$AP23","v":1.2573867957844442E-2},null,null,null,null,null,null,null,null,null,null,null,null,"DOM_C27: Basic metals",{"$f":"'General Impact Estimates'!C20","v":1000000},null,null,122026.26368855499,404.77579618780874,{"$f":"BG274*'Mexico-IO-Data'!AQ23","v":376641.77335229964},{"$f":"BJ274*'Mexico-IO-Data'!$AQ23","v":45960.188351212681},{"$f":"BK274*'Mexico-IO-Data'!$AQ23","v":152.45547368626529},{"$f":"BG274*'Mexico-IO-Data'!AR23","v":46161.292871819183},{"$f":"BJ274*'Mexico-IO-Data'!$AR23","v":5632.8900961812215},{"$f":"BK274*'Mexico-IO-Data'!$AR23","v":18.684974075249229},{"$f":"(BO274*'Default-Data'!$F$19/general_dollar_index)/'Mexico-IO-Data'!$AS23","v":4.5774324217030893},{"$f":"(BP274*'Default-Data'!$F$19/general_dollar_index)/'Mexico-IO-Data'!$AS23","v":0.55856697570728198},{"$f":"(BQ274*'Default-Data'!$F$19/general_dollar_index)/'Mexico-IO-Data'!$AS23","v":1.8528338529907571E-3},null,null,null,null,null,null,null,null,null,null,null,null,"TTL_C27: Basic metals",{"$f":"'General Impact Estimates'!C20","v":1000000},null,null,482473.58005258162,1161.3672095218208,{"$f":"CH274*'Philippines-IO-Data'!$AN23","v":205279.86568762723},{"$f":"CK274*'Philippines-IO-Data'!$AN23","v":99042.111711022619},{"$f":"CL274*'Philippines-IO-Data'!$AN23","v":238.40530478465382},{"$f":"CH274*'Philippines-IO-Data'!AO23","v":46719.864143806866},{"$f":"CK274*'Philippines-IO-Data'!$AO23","v":22541.100113032742},{"$f":"CL274*'Philippines-IO-Data'!$AO23","v":54.258918249931554},{"$f":"(CP274*'Default-Data'!$F$19/general_dollar_index)/'Philippines-IO-Data'!$AP23","v":14.964834987366261},{"$f":"(CQ274*'Default-Data'!$F$19/general_dollar_index)/'Philippines-IO-Data'!$AP23","v":7.22013751125073},{"$f":"(CR274*'Default-Data'!$F$19/general_dollar_index)/'Philippines-IO-Data'!$AP23","v":1.7379668650232067E-2},null,null,null,null,null,null,null,null,null,null,null,null,"DOM_C27: Basic metals",{"$f":"'General Impact Estimates'!C20","v":1000000},null,null,12951.819548868458,13574.80843618128,{"$f":"DI274*'SouthAfrica-IO-Data'!AR23","v":159536.8781249834},{"$f":"DL274*'SouthAfrica-IO-Data'!$AR23","v":2066.2928568646048},{"$f":"DM274*'SouthAfrica-IO-Data'!$AR23","v":2165.6825590530493},{"$f":"DI274*'SouthAfrica-IO-Data'!AS23","v":102704.02388935236},{"$f":"DL274*'SouthAfrica-IO-Data'!$AS23","v":1330.2039843575669},{"$f":"DM274*'SouthAfrica-IO-Data'!$AS23","v":1394.1874499229441},{"$f":"(DQ274*'Default-Data'!$F$19/general_dollar_index)/'SouthAfrica-IO-Data'!$AT23","v":8.2384370975016736},{"$f":"(DR274*'Default-Data'!$F$19/general_dollar_index)/'SouthAfrica-IO-Data'!$AT23","v":0.10670275065154528},{"$f":"(DS274*'Default-Data'!$F$19/general_dollar_index)/'SouthAfrica-IO-Data'!$AT23","v":0.11183520541211452},null,null,null,null,null,null,null,null,null,null,null,null,"LIVEST",{"$f":"'General Impact Estimates'!C20","v":1000000},null,null,334823.56704569794,44227.42237087246,{"$f":"EJ274*'Zambia-IO-Data'!BO21","v":300861.81735290086},{"$f":"EM274*'Zambia-IO-Data'!$BO21","v":100735.62687394953},{"$f":"EN274*'Zambia-IO-Data'!$BO21","v":13306.342671335031},{"$f":"EJ274*'Zambia-IO-Data'!BN21","v":193502.46036524736},{"$f":"EM274*'Zambia-IO-Data'!$BN21","v":64789.184011610902},{"$f":"EN274*'Zambia-IO-Data'!$BN21","v":8558.115044376802},{"$f":"(ER274*'Default-Data'!$F$19/general_dollar_index)/'Zambia-IO-Data'!$BP21","v":1929.3490504278268},{"$f":"(ES274*'Default-Data'!$F$19/general_dollar_index)/'Zambia-IO-Data'!$BP21","v":645.9915311404751},{"$f":"(ET274*'Default-Data'!$F$19/general_dollar_index)/'Zambia-IO-Data'!$BP21","v":85.330135354113196},null,null,null,null,null,null,null,null,null,null,null,null,"TTL_C27: Basic metals",{"$f":"'General Impact Estimates'!C20","v":1000000},null,null,881445.64626972051,7352.4563534110785,{"$f":"FK274*CustomRegion1!C19","v":205279.86568762723},{"$f":"FN274*CustomRegion1!$C19","v":180943.04387719202},{"$f":"FO274*CustomRegion1!$C19","v":1509.3112527023677},{"$f":"FK274*CustomRegion1!D19","v":46719.864143806866},{"$f":"FN274*CustomRegion1!$D19","v":41181.020843871389},{"$f":"FO274*CustomRegion1!$D19","v":343.50576195463526},{"$f":"(FT274*'Default-Data'!$C$58/general_dollar_index)/CustomRegion1!$E19","v":13.19068864675878},{"$f":"(FU274*'Default-Data'!$C$58/general_dollar_index)/CustomRegion1!$E19","v":0.11002829608060946},{"$f":"(FV274*'Default-Data'!$C$58/general_dollar_index)/CustomRegion1!$E19","v":4.2251081544430677E-3},null,null,null,null,null,null,null,null,null,null,null,null,"C27 Basic metals",{"$f":"'General Impact Estimates'!C20","v":1000000},null,null,395382.19481673627,8936.4077791257296,{"$f":"GL274*CustomRegion2!C23","v":361188.05918902927},{"$f":"GO274*CustomRegion2!$C23","v":142807.32758375566},{"$f":"GP274*CustomRegion2!$C23","v":3227.7237818641661},{"$f":"GL274*CustomRegion2!D23","v":88317.33831811737},{"$f":"GO274*CustomRegion2!$D23","v":34919.103064589493},{"$f":"GP274*CustomRegion2!$D23","v":789.23974917770295},{"$f":"(GT274*'Default-Data'!$C$59/general_dollar_index)/CustomRegion2!$E23","v":8.7576976870738825},{"$f":"(GU274*'Default-Data'!$C$59/general_dollar_index)/CustomRegion2!$E23","v":3.4626377330567273},{"$f":"(GV274*'Default-Data'!$C$59/general_dollar_index)/CustomRegion2!$E23","v":7.8262357737998473E-2},null,null,null,null,null,null,null,null,null,null,null,null,"LIVEST",{"$f":"'General Impact Estimates'!C20","v":1000000},null,null,334823.56704569794,44227.42237087246,{"$f":"HM274*CustomRegion3!D22","v":300861.81735290086},{"$f":"HP274*CustomRegion3!$D22","v":100735.62687394953},{"$f":"HQ274*CustomRegion3!$D22","v":13306.342671335031},{"$f":"HM274*CustomRegion3!E22","v":193502.46036524736},{"$f":"HP274*CustomRegion3!$E22","v":64789.184011610902},{"$f":"HQ274*CustomRegion3!$E22","v":8558.115044376802},{"$f":"(HU274*'Default-Data'!$C$60/general_dollar_index)/CustomRegion3!$F22","v":1929.3490504278268},{"$f":"(HV274*'Default-Data'!$C$60/general_dollar_index)/CustomRegion3!$F22","v":645.9915311404751},{"$f":"(HW274*'Default-Data'!$C$60/general_dollar_index)/CustomRegion3!$F22","v":85.330135354113196}]
[null,null,null,null,null,null,null,null,null,null,null,null,null,null,null,null,null,null,null,null,null,null,null,null,null,null,null,null,null,274,"TTL_C28: Fabricated metal products",{"$f":"'General Impact Estimates'!C21","v":0},null,null,4479.0094154209246,809.40523229933842,{"$f":"'Colombia-IO-Data'!$AN24*Calculations!AF275","v":0},{"$f":"AI275*'Colombia-IO-Data'!$AN24","v":1585.0247743483865},{"$f":"AJ275*'Colombia-IO-Data'!$AN24","v":286.43104461103178},{"$f":"AK275*'Colombia-IO-Data'!$AO24","v":0},{"$f":"AL275*'Colombia-IO-Data'!$AO24","v":415.84993195199598},{"$f":"AM275*'Colombia-IO-Data'!$AO24","v":75.148560664866906},{"$f":"(AN275*'Default-Data'!$F$19/general_dollar_index)/'Colombia-IO-Data'!$AP24","v":0},{"$f":"(AO275*'Default-Data'!$F$19/general_dollar_index)/'Colombia-IO-Data'!$AP24","v":0.10066242051067259},{"$f":"(AP275*'Default-Data'!$F$19/general_dollar_index)/'Colombia-IO-Data'!$AP24","v":1.8190783340784219E-2},null,null,null,null,null,null,null,null,null,null,null,null,"DOM_C28: Fabricated metal products",{"$f":"'General Impact Estimates'!C21","v":0},null,null,9715.8432813280069,694.18101541253054,{"$f":"BG275*'Mexico-IO-Data'!AQ24","v":0},{"$f":"BJ275*'Mexico-IO-Data'!$AQ24","v":3570.8028743305003},{"$f":"BK275*'Mexico-IO-Data'!$AQ24","v":255.12798975509179},{"$f":"BG275*'Mexico-IO-Data'!AR24","v":0},{"$f":"BJ275*'Mexico-IO-Data'!$AR24","v":1296.4552128126336},{"$f":"BK275*'Mexico-IO-Data'!$AR24","v":92.6295916893515},{"$f":"(BO275*'Default-Data'!$F$19/general_dollar_index)/'Mexico-IO-Data'!$AS24","v":0},{"$f":"(BP275*'Default-Data'!$F$19/general_dollar_index)/'Mexico-IO-Data'!$AS24","v":0.28550478690808123},{"$f":"(BQ275*'Default-Data'!$F$19/general_dollar_index)/'Mexico-IO-Data'!$AS24","v":2.0398847237673868E-2},null,null,null,null,null,null,null,null,null,null,null,null,"TTL_C28: Fabricated metal products",{"$f":"'General Impact Estimates'!C21","v":0},null,null,18745.141335080694,729.2490003459061,{"$f":"CH275*'Philippines-IO-Data'!$AN24","v":0},{"$f":"CK275*'Philippines-IO-Data'!$AN24","v":4720.7409013106726},{"$f":"CL275*'Philippines-IO-Data'!$AN24","v":183.65268746894833},{"$f":"CH275*'Philippines-IO-Data'!AO24","v":0},{"$f":"CK275*'Philippines-IO-Data'!$AO24","v":1447.1338367009639},{"$f":"CL275*'Philippines-IO-Data'!$AO24","v":56.298370063816364},{"$f":"(CP275*'Default-Data'!$F$19/general_dollar_index)/'Philippines-IO-Data'!$AP24","v":0},{"$f":"(CQ275*'Default-Data'!$F$19/general_dollar_index)/'Philippines-IO-Data'!$AP24","v":0.46353129375986996},{"$f":"(CR275*'Default-Data'!$F$19/general_dollar_index)/'Philippines-IO-Data'!$AP24","v":1.8032925255720648E-2},null,null,null,null,null,null,null,null,null,null,null,null,"DOM_C28: Fabricated metal products",{"$f":"'General Impact Estimates'!C21","v":0},null,null,25408.226076076233,29113.975754905736,{"$f":"DI275*'SouthAfrica-IO-Data'!AR24","v":0},{"$f":"DL275*'SouthAfrica-IO-Data'!$AR24","v":6677.1744996168036},{"$f":"DM275*'SouthAfrica-IO-Data'!$AR24","v":7651.0298637558135},{"$f":"DI275*'SouthAfrica-IO-Data'!AS24","v":0},{"$f":"DL275*'SouthAfrica-IO-Data'!$AS24","v":6202.2921468464438},{"$f":"DM275*'SouthAfrica-IO-Data'!$AS24","v":7106.8866692017164},{"$f":"(DQ275*'Default-Data'!$F$19/general_dollar_index)/'SouthAfrica-IO-Data'!$AT24","v":0},{"$f":"(DR275*'Default-Data'!$F$19/general_dollar_index)/'SouthAfrica-IO-Data'!$AT24","v":0.49751890702132884},{"$f":"(DS275*'Default-Data'!$F$19/general_dollar_index)/'SouthAfrica-IO-Data'!$AT24","v":0.57008125452192271},null,null,null,null,null,null,null,null,null,null,null,null,"FISH",{"$f":"'General Impact Estimates'!C21","v":0},null,null,61714.87597982696,17843.954051045701,{"$f":"EJ275*'Zambia-IO-Data'!BO22","v":0},{"$f":"EM275*'Zambia-IO-Data'!$BO22","v":5631.4073572999741},{"$f":"EN275*'Zambia-IO-Data'!$BO22","v":1628.2391000709126},{"$f":"EJ275*'Zambia-IO-Data'!BN22","v":0},{"$f":"EM275*'Zambia-IO-Data'!$BN22","v":2394.1691601997572},{"$f":"EN275*'Zambia-IO-Data'!$BN22","v":692.23900731810113},{"$f":"(ER275*'Default-Data'!$F$19/general_dollar_index)/'Zambia-IO-Data'!$BP22","v":0},{"$f":"(ES275*'Default-Data'!$F$19/general_dollar_index)/'Zambia-IO-Data'!$BP22","v":23.871469060786094},{"$f":"(ET275*'Default-Data'!$F$19/general_dollar_index)/'Zambia-IO-Data'!$BP22","v":6.9020862521195392},null,null,null,null,null,null,null,null,null,null,null,null,"TTL_C28: Fabricated metal products",{"$f":"'General Impact Estimates'!C21","v":0},null,null,37821.956476112529,2620.5598034404175,{"$f":"FK275*CustomRegion1!C20","v":0},{"$f":"FN275*CustomRegion1!$C20","v":9525.0099059126605},{"$f":"FO275*CustomRegion1!$C20","v":659.95681906543393},{"$f":"FK275*CustomRegion1!D20","v":0},{"$f":"FN275*CustomRegion1!$D20","v":2919.8730491502042},{"$f":"FO275*CustomRegion1!$D20","v":202.30846462384008},{"$f":"(FT275*'Default-Data'!$C$58/general_dollar_index)/CustomRegion1!$E20","v":0.93526424285167775},{"$f":"(FU275*'Default-Data'!$C$58/general_dollar_index)/CustomRegion1!$E20","v":6.4801403966507784E-2},{"$f":"(FV275*'Default-Data'!$C$58/general_dollar_index)/CustomRegion1!$E20","v":2.99574395609939E-4},null,null,null,null,null,null,null,null,null,null,null,null,"C28 Fabricated metal products except machinery and equipment",{"$f":"'General Impact Estimates'!C21","v":0},null,null,16381.397887468112,6657.560486534574,{"$f":"GL275*CustomRegion2!C24","v":0},{"$f":"GO275*CustomRegion2!$C24","v":5667.9877214495482},{"$f":"GP275*CustomRegion2!$C24","v":2303.5257034659521},{"$f":"GL275*CustomRegion2!D24","v":0},{"$f":"GO275*CustomRegion2!$D24","v":2525.8031086423834},{"$f":"GP275*CustomRegion2!$D24","v":1026.5111126888535},{"$f":"(GT275*'Default-Data'!$C$59/general_dollar_index)/CustomRegion2!$E24","v":0},{"$f":"(GU275*'Default-Data'!$C$59/general_dollar_index)/CustomRegion2!$E24","v":0.5562312304952195},{"$f":"(GV275*'Default-Data'!$C$59/general_dollar_index)/CustomRegion2!$E24","v":0.22605781795669647},null,null,null,null,null,null,null,null,null,null,null,null,"FISH",{"$f":"'General Impact Estimates'!C21","v":0},null,null,61714.87597982696,17843.954051045701,{"$f":"HM275*CustomRegion3!D23","v":0},{"$f":"HP275*CustomRegion3!$D23","v":5631.4073572999741},{"$f":"HQ275*CustomRegion3!$D23","v":1628.2391000709126},{"$f":"HM275*CustomRegion3!E23","v":0},{"$f":"HP275*CustomRegion3!$E23","v":2394.1691601997572},{"$f":"HQ275*CustomRegion3!$E23","v":692.23900731810113},{"$f":"(HU275*'Default-Data'!$C$60/general_dollar_index)/CustomRegion3!$F23","v":0},{"$f":"(HV275*'Default-Data'!$C$60/general_dollar_index)/CustomRegion3!$F23","v":23.871469060786094},{"$f":"(HW275*'Default-Data'!$C$60/general_dollar_index)/CustomRegion3!$F23","v":6.9020862521195392}]
[null,null,null,null,null,null,null,null,null,null,null,null,null,null,null,null,null,null,null,null,null,null,null,null,null,null,null,null,null,275,"TTL_C29: Machinery and equipment, nec",{"$f":"'General Impact Estimates'!C22","v":0},null,null,1709.5775987581258,570.07643002788677,{"$f":"'Colombia-IO-Data'!$AN25*Calculations!AF276","v":0},{"$f":"AI276*'Colombia-IO-Data'!$AN25","v":601.317753359108},{"$f":"AJ276*'Colombia-IO-Data'!$AN25","v":200.51565860266587},{"$f":"AK276*'Colombia-IO-Data'!$AO25","v":0},{"$f":"AL276*'Colombia-IO-Data'!$AO25","v":307.37507438896091},{"$f":"AM276*'Colombia-IO-Data'!$AO25","v":102.4974152764425},{"$f":"(AN276*'Default-Data'!$F$19/general_dollar_index)/'Colombia-IO-Data'!$AP25","v":0},{"$f":"(AO276*'Default-Data'!$F$19/general_dollar_index)/'Colombia-IO-Data'!$AP25","v":7.4404530613732464E-2},{"$f":"(AP276*'Default-Data'!$F$19/general_dollar_index)/'Colombia-IO-Data'!$AP25","v":2.4810964545270903E-2},null,null,null,null,null,null,null,null,null,null,null,null,"DOM_C29: Machinery and equipment, nec",{"$f":"'General Impact Estimates'!C22","v":0},null,null,1360.9383748297964,121.86514956377255,{"$f":"BG276*'Mexico-IO-Data'!AQ25","v":0},{"$f":"BJ276*'Mexico-IO-Data'!$AQ25","v":482.39220708183552},{"$f":"BK276*'Mexico-IO-Data'!$AQ25","v":43.195782815499122},{"$f":"BG276*'Mexico-IO-Data'!AR25","v":0},{"$f":"BJ276*'Mexico-IO-Data'!$AR25","v":172.50832009587467},{"$f":"BK276*'Mexico-IO-Data'!$AR25","v":15.44724773603955},{"$f":"(BO276*'Default-Data'!$F$19/general_dollar_index)/'Mexico-IO-Data'!$AS25","v":0},{"$f":"(BP276*'Default-Data'!$F$19/general_dollar_index)/'Mexico-IO-Data'!$AS25","v":1.9819466405633642E-2},{"$f":"(BQ276*'Default-Data'!$F$19/general_dollar_index)/'Mexico-IO-Data'!$AS25","v":1.7747329948711124E-3},null,null,null,null,null,null,null,null,null,null,null,null,"TTL_C29: Machinery and equipment, nec",{"$f":"'General Impact Estimates'!C22","v":0},null,null,1887.2677033143407,175.1714839466797,{"$f":"CH276*'Philippines-IO-Data'!$AN25","v":0},{"$f":"CK276*'Philippines-IO-Data'!$AN25","v":690.48973610860264},{"$f":"CL276*'Philippines-IO-Data'!$AN25","v":64.089536164732024},{"$f":"CH276*'Philippines-IO-Data'!AO25","v":0},{"$f":"CK276*'Philippines-IO-Data'!$AO25","v":205.42577291173873},{"$f":"CL276*'Philippines-IO-Data'!$AO25","v":19.067108189605545},{"$f":"(CP276*'Default-Data'!$F$19/general_dollar_index)/'Philippines-IO-Data'!$AP25","v":0},{"$f":"(CQ276*'Default-Data'!$F$19/general_dollar_index)/'Philippines-IO-Data'!$AP25","v":6.5799908670835711E-2},{"$f":"(CR276*'Default-Data'!$F$19/general_dollar_index)/'Philippines-IO-Data'!$AP25","v":6.1073835074824511E-3},null,null,null,null,null,null,null,null,null,null,null,null,"DOM_C29: Machinery and equipment, nec",{"$f":"'General Impact Estimates'!C22","v":0},null,null,1796.9956488295502,2395.5956574403467,{"$f":"DI276*'SouthAfrica-IO-Data'!AR25","v":0},{"$f":"DL276*'SouthAfrica-IO-Data'!$AR25","v":546.09284839853274},{"$f":"DM276*'SouthAfrica-IO-Data'!$AR25","v":728.00268438871581},{"$f":"DI276*'SouthAfrica-IO-Data'!AS25","v":0},{"$f":"DL276*'SouthAfrica-IO-Data'!$AS25","v":437.22389242413072},{"$f":"DM276*'SouthAfrica-IO-Data'!$AS25","v":582.86822158007499},{"$f":"(DQ276*'Default-Data'!$F$19/general_dollar_index)/'SouthAfrica-IO-Data'!$AT25","v":0},{"$f":"(DR276*'Default-Data'!$F$19/general_dollar_index)/'SouthAfrica-IO-Data'!$AT25","v":3.5072058511959374E-2},{"$f":"(DS276*'Default-Data'!$F$19/general_dollar_index)/'SouthAfrica-IO-Data'!$AT25","v":4.6754966336990278E-2},null,null,null,null,null,null,null,null,null,null,null,null,"FOREST",{"$f":"'General Impact Estimates'!C22","v":0},null,null,654.28616818884404,663.95085886370828,{"$f":"EJ276*'Zambia-IO-Data'!BO23","v":0},{"$f":"EM276*'Zambia-IO-Data'!$BO23","v":209.72869116858195},{"$f":"EN276*'Zambia-IO-Data'!$BO23","v":212.82666729025266},{"$f":"EJ276*'Zambia-IO-Data'!BN23","v":0},{"$f":"EM276*'Zambia-IO-Data'!$BN23","v":119.02330183630896},{"$f":"EN276*'Zambia-IO-Data'!$BN23","v":120.78143681038794},{"$f":"(ER276*'Default-Data'!$F$19/general_dollar_index)/'Zambia-IO-Data'!$BP23","v":0},{"$f":"(ES276*'Default-Data'!$F$19/general_dollar_index)/'Zambia-IO-Data'!$BP23","v":1.186741987379452},{"$f":"(ET276*'Default-Data'!$F$19/general_dollar_index)/'Zambia-IO-Data'!$BP23","v":1.2042717698760703},null,null,null,null,null,null,null,null,null,null,null,null,"TTL_C29: Machinery and equipment, nec",{"$f":"'General Impact Estimates'!C22","v":0},null,null,11017.649798770495,1357.2222821220184,{"$f":"FK276*CustomRegion1!C21","v":0},{"$f":"FN276*CustomRegion1!$C21","v":4030.9989349841226},{"$f":"FO276*CustomRegion1!$C21","v":496.56339361785706},{"$f":"FK276*CustomRegion1!D21","v":0},{"$f":"FN276*CustomRegion1!$D21","v":1199.251818705191},{"$f":"FO276*CustomRegion1!$D21","v":147.73126029143498},{"$f":"(FT276*'Default-Data'!$C$58/general_dollar_index)/CustomRegion1!$E21","v":0.38413222949410147},{"$f":"(FU276*'Default-Data'!$C$58/general_dollar_index)/CustomRegion1!$E21","v":4.7319785133194486E-2},{"$f":"(FV276*'Default-Data'!$C$58/general_dollar_index)/CustomRegion1!$E21","v":1.2304135581418097E-4},null,null,null,null,null,null,null,null,null,null,null,null,"C29 Machinery and equipment n.e.c ",{"$f":"'General Impact Estimates'!C22","v":0},null,null,10227.390706723867,2700.7923032570834,{"$f":"GL276*CustomRegion2!C25","v":0},{"$f":"GO276*CustomRegion2!$C25","v":3842.9196358058152},{"$f":"GP276*CustomRegion2!$C25","v":1014.8167868072514},{"$f":"GL276*CustomRegion2!D25","v":0},{"$f":"GO276*CustomRegion2!$D25","v":2751.9989186178723},{"$f":"GP276*CustomRegion2!$D25","v":726.73252749486858},{"$f":"(GT276*'Default-Data'!$C$59/general_dollar_index)/CustomRegion2!$E25","v":0},{"$f":"(GU276*'Default-Data'!$C$59/general_dollar_index)/CustomRegion2!$E25","v":0.31617692460035363},{"$f":"(GV276*'Default-Data'!$C$59/general_dollar_index)/CustomRegion2!$E25","v":8.3494239040533172E-2},null,null,null,null,null,null,null,null,null,null,null,null,"FOREST",{"$f":"'General Impact Estimates'!C22","v":0},null,null,654.28616818884404,663.95085886370828,{"$f":"HM276*CustomRegion3!D24","v":0},{"$f":"HP276*CustomRegion3!$D24","v":209.72869116858195},{"$f":"HQ276*CustomRegion3!$D24","v":212.82666729025266},{"$f":"HM276*CustomRegion3!E24","v":0},{"$f":"HP276*CustomRegion3!$E24","v":119.02330183630896},{"$f":"HQ276*CustomRegion3!$E24","v":120.78143681038794},{"$f":"(HU276*'Default-Data'!$C$60/general_dollar_index)/CustomRegion3!$F24","v":0},{"$f":"(HV276*'Default-Data'!$C$60/general_dollar_index)/CustomRegion3!$F24","v":1.186741987379452},{"$f":"(HW276*'Default-Data'!$C$60/general_dollar_index)/CustomRegion3!$F24","v":1.2042717698760703}]
[null,null,null,null,null,null,null,null,null,null,null,null,null,null,null,null,null,null,null,null,null,null,null,null,null,null,null,null,null,276,"TTL_C30T33X: Computer, Electronic and optical equipment",{"$f":"'General Impact Estimates'!C23","v":0},null,null,1039.0378773128755,106.18808357223634,{"$f":"'Colombia-IO-Data'!$AN26*Calculations!AF277","v":0},{"$f":"AI277*'Colombia-IO-Data'!$AN26","v":248.22256600081383},{"$f":"AJ277*'Colombia-IO-Data'!$AN26","v":25.36796699960184},{"$f":"AK277*'Colombia-IO-Data'!$AO26","v":0},{"$f":"AL277*'Colombia-IO-Data'!$AO26","v":98.601111667759767},{"$f":"AM277*'Colombia-IO-Data'!$AO26","v":10.076882965199808},{"$f":"(AN277*'Default-Data'!$F$19/general_dollar_index)/'Colombia-IO-Data'!$AP26","v":0},{"$f":"(AO277*'Default-Data'!$F$19/general_dollar_index)/'Colombia-IO-Data'!$AP26","v":2.3867808560001324E-2},{"$f":"(AP277*'Default-Data'!$F$19/general_dollar_index)/'Colombia-IO-Data'!$AP26","v":2.4392535685129565E-3},null,null,null,null,null,null,null,null,null,null,null,null,"DOM_C30T33X: Computer, Electronic and optical equipment",{"$f":"'General Impact Estimates'!C23","v":0},null,null,433.00897728074096,690.2819896778733,{"$f":"BG277*'Mexico-IO-Data'!AQ26","v":0},{"$f":"BJ277*'Mexico-IO-Data'!$AQ26","v":58.693178582288702},{"$f":"BK277*'Mexico-IO-Data'!$AQ26","v":93.565829389336699},{"$f":"BG277*'Mexico-IO-Data'!AR26","v":0},{"$f":"BJ277*'Mexico-IO-Data'!$AR26","v":25.164143803155824},{"$f":"BK277*'Mexico-IO-Data'!$AR26","v":40.115462182947937},{"$f":"(BO277*'Default-Data'!$F$19/general_dollar_index)/'Mexico-IO-Data'!$AS26","v":0},{"$f":"(BP277*'Default-Data'!$F$19/general_dollar_index)/'Mexico-IO-Data'!$AS26","v":3.310952846643071E-3},{"$f":"(BQ277*'Default-Data'!$F$19/general_dollar_index)/'Mexico-IO-Data'!$AS26","v":5.2781610512167322E-3},null,null,null,null,null,null,null,null,null,null,null,null,"TTL_C30T33X: Computer, Electronic and optical equipment",{"$f":"'General Impact Estimates'!C23","v":0},null,null,3380.9369447074127,4157.7956319337136,{"$f":"CH277*'Philippines-IO-Data'!$AN26","v":0},{"$f":"CK277*'Philippines-IO-Data'!$AN26","v":833.26321957971925},{"$f":"CL277*'Philippines-IO-Data'!$AN26","v":1024.7272372361272},{"$f":"CH277*'Philippines-IO-Data'!AO26","v":0},{"$f":"CK277*'Philippines-IO-Data'!$AO26","v":312.67390126997651},{"$f":"CL277*'Philippines-IO-Data'!$AO26","v":384.51890768181329},{"$f":"(CP277*'Default-Data'!$F$19/general_dollar_index)/'Philippines-IO-Data'!$AP26","v":0},{"$f":"(CQ277*'Default-Data'!$F$19/general_dollar_index)/'Philippines-IO-Data'!$AP26","v":0.10015254588409385},{"$f":"(CR277*'Default-Data'!$F$19/general_dollar_index)/'Philippines-IO-Data'!$AP26","v":0.12316521266561592},null,null,null,null,null,null,null,null,null,null,null,null,"DOM_C30T33X: Computer, Electronic and optical equipment",{"$f":"'General Impact Estimates'!C23","v":0},null,null,243.67833977369924,1296.7923930359975,{"$f":"DI277*'SouthAfrica-IO-Data'!AR26","v":0},{"$f":"DL277*'SouthAfrica-IO-Data'!$AR26","v":62.020950849328571},{"$f":"DM277*'SouthAfrica-IO-Data'!$AR26","v":330.059279560758},{"$f":"DI277*'SouthAfrica-IO-Data'!AS26","v":0},{"$f":"DL277*'SouthAfrica-IO-Data'!$AS26","v":43.356651258745764},{"$f":"DM277*'SouthAfrica-IO-Data'!$AS26","v":230.73275857046264},{"$f":"(DQ277*'Default-Data'!$F$19/general_dollar_index)/'SouthAfrica-IO-Data'!$AT26","v":0},{"$f":"(DR277*'Default-Data'!$F$19/general_dollar_index)/'SouthAfrica-IO-Data'!$AT26","v":3.4778680583957603E-3},{"$f":"(DS277*'Default-Data'!$F$19/general_dollar_index)/'SouthAfrica-IO-Data'!$AT26","v":1.8508304210784345E-2},null,null,null,null,null,null,null,null,null,null,null,null,"MINING",{"$f":"'General Impact Estimates'!C23","v":0},null,null,4374.8779216198818,3680.5147580459743,{"$f":"EJ277*'Zambia-IO-Data'!BO24","v":0},{"$f":"EM277*'Zambia-IO-Data'!$BO24","v":1068.8361032173898},{"$f":"EN277*'Zambia-IO-Data'!$BO24","v":899.19470264152289},{"$f":"EJ277*'Zambia-IO-Data'!BN24","v":0},{"$f":"EM277*'Zambia-IO-Data'!$BN24","v":38.981498544108355},{"$f":"EN277*'Zambia-IO-Data'!$BN24","v":32.7945106704178},{"$f":"(ER277*'Default-Data'!$F$19/general_dollar_index)/'Zambia-IO-Data'!$BP24","v":0},{"$f":"(ES277*'Default-Data'!$F$19/general_dollar_index)/'Zambia-IO-Data'!$BP24","v":3.5378249275716547E-2},{"$f":"(ET277*'Default-Data'!$F$19/general_dollar_index)/'Zambia-IO-Data'!$BP24","v":2.9763154745330866E-2},null,null,null,null,null,null,null,null,null,null,null,null,"TTL_C30T33X: Computer, Electronic and optical equipment",{"$f":"'General Impact Estimates'!C23","v":0},null,null,14748.695710200469,14856.094036492132,{"$f":"FK277*CustomRegion1!C22","v":0},{"$f":"FN277*CustomRegion1!$C22","v":3634.952639776835},{"$f":"FO277*CustomRegion1!$C22","v":3661.4219518660047},{"$f":"FK277*CustomRegion1!D22","v":0},{"$f":"FN277*CustomRegion1!$D22","v":1363.9805479280333},{"$f":"FO277*CustomRegion1!$D22","v":1373.9128992911806},{"$f":"(FT277*'Default-Data'!$C$58/general_dollar_index)/CustomRegion1!$E22","v":0.43689647219203642},{"$f":"(FU277*'Default-Data'!$C$58/general_dollar_index)/CustomRegion1!$E22","v":0.44007790265871177},{"$f":"(FV277*'Default-Data'!$C$58/general_dollar_index)/CustomRegion1!$E22","v":1.3994226508860596E-4},null,null,null,null,null,null,null,null,null,null,null,null,"C30 Office, accounting and computing machinery",{"$f":"'General Impact Estimates'!C23","v":0},null,null,26240.651513959845,18306.616910711014,{"$f":"GL277*CustomRegion2!C26","v":0},{"$f":"GO277*CustomRegion2!$C26","v":4311.0991848379899},{"$f":"GP277*CustomRegion2!$C26","v":3007.6098224513153},{"$f":"GL277*CustomRegion2!D26","v":0},{"$f":"GO277*CustomRegion2!$D26","v":1814.9002523644108},{"$f":"GP277*CustomRegion2!$D26","v":1266.1531530005154},{"$f":"(GT277*'Default-Data'!$C$59/general_dollar_index)/CustomRegion2!$E26","v":0},{"$f":"(GU277*'Default-Data'!$C$59/general_dollar_index)/CustomRegion2!$E26","v":0.23879410338553153},{"$f":"(GV277*'Default-Data'!$C$59/general_dollar_index)/CustomRegion2!$E26","v":0.16659312627546732},null,null,null,null,null,null,null,null,null,null,null,null,"MINING",{"$f":"'General Impact Estimates'!C23","v":0},null,null,4374.8779216198818,3680.5147580459743,{"$f":"HM277*CustomRegion3!D25","v":0},{"$f":"HP277*CustomRegion3!$D25","v":1068.8361032173898},{"$f":"HQ277*CustomRegion3!$D25","v":899.19470264152289},{"$f":"HM277*CustomRegion3!E25","v":0},{"$f":"HP277*CustomRegion3!$E25","v":38.981498544108355},{"$f":"HQ277*CustomRegion3!$E25","v":32.7945106704178},{"$f":"(HU277*'Default-Data'!$C$60/general_dollar_index)/CustomRegion3!$F25","v":0},{"$f":"(HV277*'Default-Data'!$C$60/general_dollar_index)/CustomRegion3!$F25","v":3.5378249275716547E-2},{"$f":"(HW277*'Default-Data'!$C$60/general_dollar_index)/CustomRegion3!$F25","v":2.9763154745330866E-2}]
[null,null,null,null,null,null,null,null,null,null,null,null,null,null,null,null,null,null,null,null,null,null,null,null,null,null,null,null,null,277,"TTL_C31: Electrical machinery and apparatus, nec",{"$f":"'General Impact Estimates'!C24","v":0},null,null,2007.4883172071316,395.72574230473242,{"$f":"'Colombia-IO-Data'!$AN27*Calculations!AF278","v":0},{"$f":"AI278*'Colombia-IO-Data'!$AN27","v":507.75852086983184},{"$f":"AJ278*'Colombia-IO-Data'!$AN27","v":100.09179922018694},{"$f":"AK278*'Colombia-IO-Data'!$AO27","v":0},{"$f":"AL278*'Colombia-IO-Data'!$AO27","v":262.81479403821322},{"$f":"AM278*'Colombia-IO-Data'!$AO27","v":51.807314925811525},{"$f":"(AN278*'Default-Data'!$F$19/general_dollar_index)/'Colombia-IO-Data'!$AP27","v":0},{"$f":"(AO278*'Default-Data'!$F$19/general_dollar_index)/'Colombia-IO-Data'!$AP27","v":6.3618077775600898E-2},{"$f":"(AP278*'Default-Data'!$F$19/general_dollar_index)/'Colombia-IO-Data'!$AP27","v":1.2540701151762814E-2},null,null,null,null,null,null,null,null,null,null,null,null,"DOM_C31: Electrical machinery and apparatus, nec",{"$f":"'General Impact Estimates'!C24","v":0},null,null,1004.1733313713025,334.43870516004699,{"$f":"BG278*'Mexico-IO-Data'!AQ27","v":0},{"$f":"BJ278*'Mexico-IO-Data'!$AQ27","v":269.41501791981256},{"$f":"BK278*'Mexico-IO-Data'!$AQ27","v":89.728343632396871},{"$f":"BG278*'Mexico-IO-Data'!AR27","v":0},{"$f":"BJ278*'Mexico-IO-Data'!$AR27","v":92.957586030566389},{"$f":"BK278*'Mexico-IO-Data'!$AR27","v":30.959410826427323},{"$f":"(BO278*'Default-Data'!$F$19/general_dollar_index)/'Mexico-IO-Data'!$AS27","v":0},{"$f":"(BP278*'Default-Data'!$F$19/general_dollar_index)/'Mexico-IO-Data'!$AS27","v":1.3729027978228069E-2},{"$f":"(BQ278*'Default-Data'!$F$19/general_dollar_index)/'Mexico-IO-Data'!$AS27","v":4.5724360493366832E-3},null,null,null,null,null,null,null,null,null,null,null,null,"TTL_C31: Electrical machinery and apparatus, nec",{"$f":"'General Impact Estimates'!C24","v":0},null,null,496.99669090827535,2362.0594267326906,{"$f":"CH278*'Philippines-IO-Data'!$AN27","v":0},{"$f":"CK278*'Philippines-IO-Data'!$AN27","v":129.136677470807},{"$f":"CL278*'Philippines-IO-Data'!$AN27","v":613.74353579580304},{"$f":"CH278*'Philippines-IO-Data'!AO27","v":0},{"$f":"CK278*'Philippines-IO-Data'!$AO27","v":43.184540334482719},{"$f":"CL278*'Philippines-IO-Data'!$AO27","v":205.24170975820186},{"$f":"(CP278*'Default-Data'!$F$19/general_dollar_index)/'Philippines-IO-Data'!$AP27","v":0},{"$f":"(CQ278*'Default-Data'!$F$19/general_dollar_index)/'Philippines-IO-Data'!$AP27","v":1.3832435773391747E-2},{"$f":"(CR278*'Default-Data'!$F$19/general_dollar_index)/'Philippines-IO-Data'!$AP27","v":6.5740951420629357E-2},null,null,null,null,null,null,null,null,null,null,null,null,"DOM_C31: Electrical machinery and apparatus, nec",{"$f":"'General Impact Estimates'!C24","v":0},null,null,1411.5850556311084,3440.6335273981499,{"$f":"DI278*'SouthAfrica-IO-Data'!AR27","v":0},{"$f":"DL278*'SouthAfrica-IO-Data'!$AR27","v":265.52592950378005},{"$f":"DM278*'SouthAfrica-IO-Data'!$AR27","v":647.19969356420404},{"$f":"DI278*'SouthAfrica-IO-Data'!AS27","v":0},{"$f":"DL278*'SouthAfrica-IO-Data'!$AS27","v":270.90104814356312},{"$f":"DM278*'SouthAfrica-IO-Data'!$AS27","v":660.30114524931832},{"$f":"(DQ278*'Default-Data'!$F$19/general_dollar_index)/'SouthAfrica-IO-Data'!$AT27","v":0},{"$f":"(DR278*'Default-Data'!$F$19/general_dollar_index)/'SouthAfrica-IO-Data'!$AT27","v":2.1730416786614287E-2},{"$f":"(DS278*'Default-Data'!$F$19/general_dollar_index)/'SouthAfrica-IO-Data'!$AT27","v":5.2966273808370136E-2},null,null,null,null,null,null,null,null,null,null,null,null,"FOODMFG",{"$f":"'General Impact Estimates'!C24","v":0},null,null,423755.79039198818,96645.982323328441,{"$f":"EJ278*'Zambia-IO-Data'!BO25","v":0},{"$f":"EM278*'Zambia-IO-Data'!$BO25","v":47516.601694304605},{"$f":"EN278*'Zambia-IO-Data'!$BO25","v":10837.11125968186},{"$f":"EJ278*'Zambia-IO-Data'!BN25","v":0},{"$f":"EM278*'Zambia-IO-Data'!$BN25","v":21999.683984334766},{"$f":"EN278*'Zambia-IO-Data'!$BN25","v":5017.467885222386},{"$f":"(ER278*'Default-Data'!$F$19/general_dollar_index)/'Zambia-IO-Data'!$BP25","v":0},{"$f":"(ES278*'Default-Data'!$F$19/general_dollar_index)/'Zambia-IO-Data'!$BP25","v":85.106290002017118},{"$f":"(ET278*'Default-Data'!$F$19/general_dollar_index)/'Zambia-IO-Data'!$BP25","v":19.410191401822367},null,null,null,null,null,null,null,null,null,null,null,null,"TTL_C31: Electrical machinery and apparatus, nec",{"$f":"'General Impact Estimates'!C24","v":0},null,null,2839.7640254878825,6431.6322495879267,{"$f":"FK278*CustomRegion1!C23","v":0},{"$f":"FN278*CustomRegion1!$C23","v":737.86747026915293},{"$f":"FO278*CustomRegion1!$C23","v":1671.1572423309419},{"$f":"FK278*CustomRegion1!D23","v":0},{"$f":"FN278*CustomRegion1!$D23","v":246.74994087984285},{"$f":"FO278*CustomRegion1!$D23","v":558.85096898995266},{"$f":"(FT278*'Default-Data'!$C$58/general_dollar_index)/CustomRegion1!$E23","v":7.9036448758567551E-2},{"$f":"(FU278*'Default-Data'!$C$58/general_dollar_index)/CustomRegion1!$E23","v":0.17900549769841287},{"$f":"(FV278*'Default-Data'!$C$58/general_dollar_index)/CustomRegion1!$E23","v":2.5316156956680247E-5},null,null,null,null,null,null,null,null,null,null,null,null,"C31 Electrical machinery and apparatus n.e.c",{"$f":"'General Impact Estimates'!C24","v":0},null,null,16699.410955796353,8756.3525074736681,{"$f":"GL278*CustomRegion2!C27","v":0},{"$f":"GO278*CustomRegion2!$C27","v":4336.2571397772053},{"$f":"GP278*CustomRegion2!$C27","v":2273.7206826902743},{"$f":"GL278*CustomRegion2!D27","v":0},{"$f":"GO278*CustomRegion2!$D27","v":2028.4547879418842},{"$f":"GP278*CustomRegion2!$D27","v":1063.6222568393503},{"$f":"(GT278*'Default-Data'!$C$59/general_dollar_index)/CustomRegion2!$E27","v":0},{"$f":"(GU278*'Default-Data'!$C$59/general_dollar_index)/CustomRegion2!$E27","v":0.29958515195379087},{"$f":"(GV278*'Default-Data'!$C$59/general_dollar_index)/CustomRegion2!$E27","v":0.15708776815279946},null,null,null,null,null,null,null,null,null,null,null,null,"FOODMFG",{"$f":"'General Impact Estimates'!C24","v":0},null,null,423755.79039198818,96645.982323328441,{"$f":"HM278*CustomRegion3!D26","v":0},{"$f":"HP278*CustomRegion3!$D26","v":47516.601694304605},{"$f":"HQ278*CustomRegion3!$D26","v":10837.11125968186},{"$f":"HM278*CustomRegion3!E26","v":0},{"$f":"HP278*CustomRegion3!$E26","v":21999.683984334766},{"$f":"HQ278*CustomRegion3!$E26","v":5017.467885222386},{"$f":"(HU278*'Default-Data'!$C$60/general_dollar_index)/CustomRegion3!$F26","v":0},{"$f":"(HV278*'Default-Data'!$C$60/general_dollar_index)/CustomRegion3!$F26","v":85.106290002017118},{"$f":"(HW278*'Default-Data'!$C$60/general_dollar_index)/CustomRegion3!$F26","v":19.410191401822367}]
[null,null,null,null,null,null,null,null,null,null,null,null,null,null,null,null,null,null,null,null,null,null,null,null,null,null,null,null,null,278,"TTL_C34: Motor vehicles, trailers and semi-trailers",{"$f":"'General Impact Estimates'!C25","v":0},null,null,871.69962844638076,1223.818857332084,{"$f":"'Colombia-IO-Data'!$AN28*Calculations!AF279","v":0},{"$f":"AI279*'Colombia-IO-Data'!$AN28","v":191.86662746677862},{"$f":"AJ279*'Colombia-IO-Data'!$AN28","v":269.37030729845844},{"$f":"AK279*'Colombia-IO-Data'!$AO28","v":0},{"$f":"AL279*'Colombia-IO-Data'!$AO28","v":49.099625546904072},{"$f":"AM279*'Colombia-IO-Data'!$AO28","v":68.933203217421678},{"$f":"(AN279*'Default-Data'!$F$19/general_dollar_index)/'Colombia-IO-Data'!$AP28","v":0},{"$f":"(AO279*'Default-Data'!$F$19/general_dollar_index)/'Colombia-IO-Data'!$AP28","v":1.1885266231784692E-2},{"$f":"(AP279*'Default-Data'!$F$19/general_dollar_index)/'Colombia-IO-Data'!$AP28","v":1.6686267223486661E-2},null,null,null,null,null,null,null,null,null,null,null,null,"DOM_C34: Motor vehicles, trailers and semi-trailers",{"$f":"'General Impact Estimates'!C25","v":0},null,null,949.83108418105462,2247.1908906935023,{"$f":"BG279*'Mexico-IO-Data'!AQ28","v":0},{"$f":"BJ279*'Mexico-IO-Data'!$AQ28","v":321.57149241267422},{"$f":"BK279*'Mexico-IO-Data'!$AQ28","v":760.80109452253896},{"$f":"BG279*'Mexico-IO-Data'!AR28","v":0},{"$f":"BJ279*'Mexico-IO-Data'!$AR28","v":81.629831445796853},{"$f":"BK279*'Mexico-IO-Data'!$AR28","v":193.12677452749503},{"$f":"(BO279*'Default-Data'!$F$19/general_dollar_index)/'Mexico-IO-Data'!$AS28","v":0},{"$f":"(BP279*'Default-Data'!$F$19/general_dollar_index)/'Mexico-IO-Data'!$AS28","v":1.1306624126619908E-2},{"$f":"(BQ279*'Default-Data'!$F$19/general_dollar_index)/'Mexico-IO-Data'!$AS28","v":2.6750169756491554E-2},null,null,null,null,null,null,null,null,null,null,null,null,"TTL_C34: Motor vehicles, trailers and semi-trailers",{"$f":"'General Impact Estimates'!C25","v":0},null,null,422.00309110669747,1547.9066539121497,{"$f":"CH279*'Philippines-IO-Data'!$AN28","v":0},{"$f":"CK279*'Philippines-IO-Data'!$AN28","v":68.943860055865812},{"$f":"CL279*'Philippines-IO-Data'!$AN28","v":252.88596689421047},{"$f":"CH279*'Philippines-IO-Data'!AO28","v":0},{"$f":"CK279*'Philippines-IO-Data'!$AO28","v":17.10788287342433},{"$f":"CL279*'Philippines-IO-Data'!$AO28","v":62.75168663972601},{"$f":"(CP279*'Default-Data'!$F$19/general_dollar_index)/'Philippines-IO-Data'!$AP28","v":0},{"$f":"(CQ279*'Default-Data'!$F$19/general_dollar_index)/'Philippines-IO-Data'!$AP28","v":5.479824243408502E-3},{"$f":"(CR279*'Default-Data'!$F$19/general_dollar_index)/'Philippines-IO-Data'!$AP28","v":2.0099986439427557E-2},null,null,null,null,null,null,null,null,null,null,null,null,"DOM_C34: Motor vehicles, trailers and semi-trailers",{"$f":"'General Impact Estimates'!C25","v":0},null,null,1285.6704469231129,4790.1524294211367,{"$f":"DI279*'SouthAfrica-IO-Data'!AR28","v":0},{"$f":"DL279*'SouthAfrica-IO-Data'!$AR28","v":310.84952564329035},{"$f":"DM279*'SouthAfrica-IO-Data'!$AR28","v":1158.1635200592452},{"$f":"DI279*'SouthAfrica-IO-Data'!AS28","v":0},{"$f":"DL279*'SouthAfrica-IO-Data'!$AS28","v":228.20724585920951},{"$f":"DM279*'SouthAfrica-IO-Data'!$AS28","v":850.25481901690841},{"$f":"(DQ279*'Default-Data'!$F$19/general_dollar_index)/'SouthAfrica-IO-Data'!$AT28","v":0},{"$f":"(DR279*'Default-Data'!$F$19/general_dollar_index)/'SouthAfrica-IO-Data'!$AT28","v":1.8305719376980605E-2},{"$f":"(DS279*'Default-Data'!$F$19/general_dollar_index)/'SouthAfrica-IO-Data'!$AT28","v":6.8203470302828847E-2},null,null,null,null,null,null,null,null,null,null,null,null,"TEXTILES",{"$f":"'General Impact Estimates'!C25","v":0},null,null,10068.270736186843,31809.918785172245,{"$f":"EJ279*'Zambia-IO-Data'!BO26","v":0},{"$f":"EM279*'Zambia-IO-Data'!$BO26","v":1021.7789744128336},{"$f":"EN279*'Zambia-IO-Data'!$BO26","v":3228.2312468663886},{"$f":"EJ279*'Zambia-IO-Data'!BN26","v":0},{"$f":"EM279*'Zambia-IO-Data'!$BN26","v":280.77424846614207},{"$f":"EN279*'Zambia-IO-Data'!$BN26","v":887.0844134708226},{"$f":"(ER279*'Default-Data'!$F$19/general_dollar_index)/'Zambia-IO-Data'!$BP26","v":0},{"$f":"(ES279*'Default-Data'!$F$19/general_dollar_index)/'Zambia-IO-Data'!$BP26","v":1.0861817211589577},{"$f":"(ET279*'Default-Data'!$F$19/general_dollar_index)/'Zambia-IO-Data'!$BP26","v":3.4317067191908559},null,null,null,null,null,null,null,null,null,null,null,null,"TTL_C34: Motor vehicles, trailers and semi-trailers",{"$f":"'General Impact Estimates'!C25","v":0},null,null,1417.1303964823351,4533.9696967290056,{"$f":"FK279*CustomRegion1!C24","v":0},{"$f":"FN279*CustomRegion1!$C24","v":231.5206731774604},{"$f":"FO279*CustomRegion1!$C24","v":740.72768388747932},{"$f":"FK279*CustomRegion1!D24","v":0},{"$f":"FN279*CustomRegion1!$D24","v":57.450055106964591},{"$f":"FO279*CustomRegion1!$D24","v":183.8058160187349},{"$f":"(FT279*'Default-Data'!$C$58/general_dollar_index)/CustomRegion1!$E24","v":1.8401821376117771E-2},{"$f":"(FU279*'Default-Data'!$C$58/general_dollar_index)/CustomRegion1!$E24","v":5.8874822451794082E-2},{"$f":"(FV279*'Default-Data'!$C$58/general_dollar_index)/CustomRegion1!$E24","v":5.8942855551324546E-6},null,null,null,null,null,null,null,null,null,null,null,null,"C32 Radio, television and communication equipment",{"$f":"'General Impact Estimates'!C25","v":0},null,null,0,0,{"$f":"GL279*CustomRegion2!C28","v":0},{"$f":"GO279*CustomRegion2!$C28","v":0},{"$f":"GP279*CustomRegion2!$C28","v":0},{"$f":"GL279*CustomRegion2!D28","v":0},{"$f":"GO279*CustomRegion2!$D28","v":0},{"$f":"GP279*CustomRegion2!$D28","v":0},{"$f":"(GT279*'Default-Data'!$C$59/general_dollar_index)/CustomRegion2!$E28","v":0},{"$f":"(GU279*'Default-Data'!$C$59/general_dollar_index)/CustomRegion2!$E28","v":0},{"$f":"(GV279*'Default-Data'!$C$59/general_dollar_index)/CustomRegion2!$E28","v":0},null,null,null,null,null,null,null,null,null,null,null,null,"TEXTILES",{"$f":"'General Impact Estimates'!C25","v":0},null,null,10068.270736186843,31809.918785172245,{"$f":"HM279*CustomRegion3!D27","v":0},{"$f":"HP279*CustomRegion3!$D27","v":1021.7789744128336},{"$f":"HQ279*CustomRegion3!$D27","v":3228.2312468663886},{"$f":"HM279*CustomRegion3!E27","v":0},{"$f":"HP279*CustomRegion3!$E27","v":280.77424846614207},{"$f":"HQ279*CustomRegion3!$E27","v":887.0844134708226},{"$f":"(HU279*'Default-Data'!$C$60/general_dollar_index)/CustomRegion3!$F27","v":0},{"$f":"(HV279*'Default-Data'!$C$60/general_dollar_index)/CustomRegion3!$F27","v":1.0861817211589577},{"$f":"(HW279*'Default-Data'!$C$60/general_dollar_index)/CustomRegion3!$F27","v":3.4317067191908559}]
[null,null,null,null,null,null,null,null,null,null,null,null,null,null,null,null,null,null,null,null,null,null,null,null,null,null,null,null,null,279,"TTL_C35: Other transport equipment",{"$f":"'General Impact Estimates'!C26","v":0},null,null,76.928262564800193,106.85621389565476,{"$f":"'Colombia-IO-Data'!$AN29*Calculations!AF280","v":0},{"$f":"AI280*'Colombia-IO-Data'!$AN29","v":8.5816599177036714},{"$f":"AJ280*'Colombia-IO-Data'!$AN29","v":11.920244357182465},{"$f":"AK280*'Colombia-IO-Data'!$AO29","v":0},{"$f":"AL280*'Colombia-IO-Data'!$AO29","v":3.2359678802431588},{"$f":"AM280*'Colombia-IO-Data'!$AO29","v":4.4948795727638133},{"$f":"(AN280*'Default-Data'!$F$19/general_dollar_index)/'Colombia-IO-Data'!$AP29","v":0},{"$f":"(AO280*'Default-Data'!$F$19/general_dollar_index)/'Colombia-IO-Data'!$AP29","v":7.8331228284935438E-4},{"$f":"(AP280*'Default-Data'!$F$19/general_dollar_index)/'Colombia-IO-Data'!$AP29","v":1.0880498538848242E-3},null,null,null,null,null,null,null,null,null,null,null,null,"DOM_C35: Other transport equipment",{"$f":"'General Impact Estimates'!C26","v":0},null,null,191.2425885859264,88.127972338669508,{"$f":"BG280*'Mexico-IO-Data'!AQ29","v":0},{"$f":"BJ280*'Mexico-IO-Data'!$AQ29","v":67.383499731386905},{"$f":"BK280*'Mexico-IO-Data'!$AQ29","v":31.051510253649727},{"$f":"BG280*'Mexico-IO-Data'!AR29","v":0},{"$f":"BJ280*'Mexico-IO-Data'!$AR29","v":17.183500737387313},{"$f":"BK280*'Mexico-IO-Data'!$AR29","v":7.9184615145782304},{"$f":"(BO280*'Default-Data'!$F$19/general_dollar_index)/'Mexico-IO-Data'!$AS29","v":0},{"$f":"(BP280*'Default-Data'!$F$19/general_dollar_index)/'Mexico-IO-Data'!$AS29","v":2.3801027219582517E-3},{"$f":"(BQ280*'Default-Data'!$F$19/general_dollar_index)/'Mexico-IO-Data'!$AS29","v":1.0967934935145749E-3},null,null,null,null,null,null,null,null,null,null,null,null,"TTL_C35: Other transport equipment",{"$f":"'General Impact Estimates'!C26","v":0},null,null,3.9792152225422184,15.545458255623647,{"$f":"CH280*'Philippines-IO-Data'!$AN29","v":0},{"$f":"CK280*'Philippines-IO-Data'!$AN29","v":0.83273905803749926},{"$f":"CL280*'Philippines-IO-Data'!$AN29","v":3.2532319918797645},{"$f":"CH280*'Philippines-IO-Data'!AO29","v":0},{"$f":"CK280*'Philippines-IO-Data'!$AO29","v":0.18699269939098362},{"$f":"CL280*'Philippines-IO-Data'!$AO29","v":0.7305177126437965},{"$f":"(CP280*'Default-Data'!$F$19/general_dollar_index)/'Philippines-IO-Data'!$AP29","v":0},{"$f":"(CQ280*'Default-Data'!$F$19/general_dollar_index)/'Philippines-IO-Data'!$AP29","v":5.9895612744396111E-5},{"$f":"(CR280*'Default-Data'!$F$19/general_dollar_index)/'Philippines-IO-Data'!$AP29","v":2.3399205510129471E-4},null,null,null,null,null,null,null,null,null,null,null,null,"DOM_C35: Other transport equipment",{"$f":"'General Impact Estimates'!C26","v":0},null,null,874.7274327680783,2663.6501015960453,{"$f":"DI280*'SouthAfrica-IO-Data'!AR29","v":0},{"$f":"DL280*'SouthAfrica-IO-Data'!$AR29","v":111.61432928883721},{"$f":"DM280*'SouthAfrica-IO-Data'!$AR29","v":339.8790393585507},{"$f":"DI280*'SouthAfrica-IO-Data'!AS29","v":0},{"$f":"DL280*'SouthAfrica-IO-Data'!$AS29","v":113.94342525476289},{"$f":"DM280*'SouthAfrica-IO-Data'!$AS29","v":346.97141633663699},{"$f":"(DQ280*'Default-Data'!$F$19/general_dollar_index)/'SouthAfrica-IO-Data'!$AT29","v":0},{"$f":"(DR280*'Default-Data'!$F$19/general_dollar_index)/'SouthAfrica-IO-Data'!$AT29","v":9.1400093792485433E-3},{"$f":"(DS280*'Default-Data'!$F$19/general_dollar_index)/'SouthAfrica-IO-Data'!$AT29","v":2.7832426421773294E-2},null,null,null,null,null,null,null,null,null,null,null,null,"FURNIMFG",{"$f":"'General Impact Estimates'!C26","v":0},null,null,12799.0370228843,13377.829316924608,{"$f":"EJ280*'Zambia-IO-Data'!BO27","v":0},{"$f":"EM280*'Zambia-IO-Data'!$BO27","v":2351.6503350316634},{"$f":"EN280*'Zambia-IO-Data'!$BO27","v":2457.9956084893461},{"$f":"EJ280*'Zambia-IO-Data'!BN27","v":0},{"$f":"EM280*'Zambia-IO-Data'!$BN27","v":728.93002640259726},{"$f":"EN280*'Zambia-IO-Data'!$BN27","v":761.89337211540976},{"$f":"(ER280*'Default-Data'!$F$19/general_dollar_index)/'Zambia-IO-Data'!$BP27","v":0},{"$f":"(ES280*'Default-Data'!$F$19/general_dollar_index)/'Zambia-IO-Data'!$BP27","v":2.8198827884242141},{"$f":"(ET280*'Default-Data'!$F$19/general_dollar_index)/'Zambia-IO-Data'!$BP27","v":2.9474022592342943},null,null,null,null,null,null,null,null,null,null,null,null,"TTL_C35: Other transport equipment",{"$f":"'General Impact Estimates'!C26","v":0},null,null,99.794291933928164,67.269729810365035,{"$f":"FK280*CustomRegion1!C25","v":0},{"$f":"FN280*CustomRegion1!$C25","v":20.884169368825049},{"$f":"FO280*CustomRegion1!$C25","v":14.077683237483173},{"$f":"FK280*CustomRegion1!D25","v":0},{"$f":"FN280*CustomRegion1!$D25","v":4.6895689197266348},{"$f":"FO280*CustomRegion1!$D25","v":3.1611631090680015},{"$f":"(FT280*'Default-Data'!$C$58/general_dollar_index)/CustomRegion1!$E25","v":1.5021153492564968E-3},{"$f":"(FU280*'Default-Data'!$C$58/general_dollar_index)/CustomRegion1!$E25","v":1.0125518376881497E-3},{"$f":"(FV280*'Default-Data'!$C$58/general_dollar_index)/CustomRegion1!$E25","v":4.8114241651949013E-7},null,null,null,null,null,null,null,null,null,null,null,null,"C33 Medical, precision and optical instruments",{"$f":"'General Impact Estimates'!C26","v":0},null,null,0,0,{"$f":"GL280*CustomRegion2!C29","v":0},{"$f":"GO280*CustomRegion2!$C29","v":0},{"$f":"GP280*CustomRegion2!$C29","v":0},{"$f":"GL280*CustomRegion2!D29","v":0},{"$f":"GO280*CustomRegion2!$D29","v":0},{"$f":"GP280*CustomRegion2!$D29","v":0},{"$f":"(GT280*'Default-Data'!$C$59/general_dollar_index)/CustomRegion2!$E29","v":0},{"$f":"(GU280*'Default-Data'!$C$59/general_dollar_index)/CustomRegion2!$E29","v":0},{"$f":"(GV280*'Default-Data'!$C$59/general_dollar_index)/CustomRegion2!$E29","v":0},null,null,null,null,null,null,null,null,null,null,null,null,"FURNIMFG",{"$f":"'General Impact Estimates'!C26","v":0},null,null,12799.0370228843,13377.829316924608,{"$f":"HM280*CustomRegion3!D28","v":0},{"$f":"HP280*CustomRegion3!$D28","v":2351.6503350316634},{"$f":"HQ280*CustomRegion3!$D28","v":2457.9956084893461},{"$f":"HM280*CustomRegion3!E28","v":0},{"$f":"HP280*CustomRegion3!$E28","v":728.93002640259726},{"$f":"HQ280*CustomRegion3!$E28","v":761.89337211540976},{"$f":"(HU280*'Default-Data'!$C$60/general_dollar_index)/CustomRegion3!$F28","v":0},{"$f":"(HV280*'Default-Data'!$C$60/general_dollar_index)/CustomRegion3!$F28","v":2.8198827884242141},{"$f":"(HW280*'Default-Data'!$C$60/general_dollar_index)/CustomRegion3!$F28","v":2.9474022592342943}]
[null,null,null,null,null,null,null,null,null,null,null,null,null,null,null,null,null,null,null,null,null,null,null,null,null,null,null,null,null,280,"TTL_C36T37: Manufacturing nec; recycling",{"$f":"'General Impact Estimates'!C27","v":0},null,null,28665.643876779668,2001.962133287303,{"$f":"'Colombia-IO-Data'!$AN30*Calculations!AF281","v":0},{"$f":"AI281*'Colombia-IO-Data'!$AN30","v":10686.877008655554},{"$f":"AJ281*'Colombia-IO-Data'!$AN30","v":746.35417876511394},{"$f":"AK281*'Colombia-IO-Data'!$AO30","v":0},{"$f":"AL281*'Colombia-IO-Data'!$AO30","v":2460.0058982042451},{"$f":"AM281*'Colombia-IO-Data'!$AO30","v":171.80282700217447},{"$f":"(AN281*'Default-Data'!$F$19/general_dollar_index)/'Colombia-IO-Data'!$AP30","v":0},{"$f":"(AO281*'Default-Data'!$F$19/general_dollar_index)/'Colombia-IO-Data'!$AP30","v":0.59547959289399599},{"$f":"(AP281*'Default-Data'!$F$19/general_dollar_index)/'Colombia-IO-Data'!$AP30","v":4.1587330158831377E-2},null,null,null,null,null,null,null,null,null,null,null,null,"DOM_C36T37: Manufacturing nec; recycling",{"$f":"'General Impact Estimates'!C27","v":0},null,null,399.00507480896061,1161.5885747780715,{"$f":"BG281*'Mexico-IO-Data'!AQ30","v":0},{"$f":"BJ281*'Mexico-IO-Data'!$AQ30","v":150.01708615226735},{"$f":"BK281*'Mexico-IO-Data'!$AQ30","v":436.73162146973777},{"$f":"BG281*'Mexico-IO-Data'!AR30","v":0},{"$f":"BJ281*'Mexico-IO-Data'!$AR30","v":61.712894069767685},{"$f":"BK281*'Mexico-IO-Data'!$AR30","v":179.65935070438277},{"$f":"(BO281*'Default-Data'!$F$19/general_dollar_index)/'Mexico-IO-Data'!$AS30","v":0},{"$f":"(BP281*'Default-Data'!$F$19/general_dollar_index)/'Mexico-IO-Data'!$AS30","v":9.9306399456509861E-3},{"$f":"(BQ281*'Default-Data'!$F$19/general_dollar_index)/'Mexico-IO-Data'!$AS30","v":2.8910203477050766E-2},null,null,null,null,null,null,null,null,null,null,null,null,"TTL_C36T37: Manufacturing nec; recycling",{"$f":"'General Impact Estimates'!C27","v":0},null,null,400.31930352196258,696.38781247915313,{"$f":"CH281*'Philippines-IO-Data'!$AN30","v":0},{"$f":"CK281*'Philippines-IO-Data'!$AN30","v":162.27954631358006},{"$f":"CL281*'Philippines-IO-Data'!$AN30","v":282.29839848635584},{"$f":"CH281*'Philippines-IO-Data'!AO30","v":0},{"$f":"CK281*'Philippines-IO-Data'!$AO30","v":54.782267226877345},{"$f":"CL281*'Philippines-IO-Data'!$AO30","v":95.298185476285738},{"$f":"(CP281*'Default-Data'!$F$19/general_dollar_index)/'Philippines-IO-Data'!$AP30","v":0},{"$f":"(CQ281*'Default-Data'!$F$19/general_dollar_index)/'Philippines-IO-Data'!$AP30","v":1.7547302508427669E-2},{"$f":"(CR281*'Default-Data'!$F$19/general_dollar_index)/'Philippines-IO-Data'!$AP30","v":3.0524952210013764E-2},null,null,null,null,null,null,null,null,null,null,null,null,"DOM_C36T37: Manufacturing nec; recycling",{"$f":"'General Impact Estimates'!C27","v":0},null,null,48329.834603884476,59053.792471862689,{"$f":"DI281*'SouthAfrica-IO-Data'!AR30","v":0},{"$f":"DL281*'SouthAfrica-IO-Data'!$AR30","v":12931.956309434512},{"$f":"DM281*'SouthAfrica-IO-Data'!$AR30","v":15801.441705971836},{"$f":"DI281*'SouthAfrica-IO-Data'!AS30","v":0},{"$f":"DL281*'SouthAfrica-IO-Data'!$AS30","v":5018.7159816737876},{"$f":"DM281*'SouthAfrica-IO-Data'!$AS30","v":6132.3241531052872},{"$f":"(DQ281*'Default-Data'!$F$19/general_dollar_index)/'SouthAfrica-IO-Data'!$AT30","v":0},{"$f":"(DR281*'Default-Data'!$F$19/general_dollar_index)/'SouthAfrica-IO-Data'!$AT30","v":0.40257795517135847},{"$f":"(DS281*'Default-Data'!$F$19/general_dollar_index)/'SouthAfrica-IO-Data'!$AT30","v":0.49190640136238845},null,null,null,null,null,null,null,null,null,null,null,null,"INDCHEMMFG",{"$f":"'General Impact Estimates'!C27","v":0},null,null,5589.155681277598,9193.8968727772644,{"$f":"EJ281*'Zambia-IO-Data'!BO28","v":0},{"$f":"EM281*'Zambia-IO-Data'!$BO28","v":1041.6362655643238},{"$f":"EN281*'Zambia-IO-Data'!$BO28","v":1713.4424143208216},{"$f":"EJ281*'Zambia-IO-Data'!BN28","v":0},{"$f":"EM281*'Zambia-IO-Data'!$BN28","v":201.19053420245686},{"$f":"EN281*'Zambia-IO-Data'!$BN28","v":330.9489176392982},{"$f":"(ER281*'Default-Data'!$F$19/general_dollar_index)/'Zambia-IO-Data'!$BP28","v":0},{"$f":"(ES281*'Default-Data'!$F$19/general_dollar_index)/'Zambia-IO-Data'!$BP28","v":0.77831026853328678},{"$f":"(ET281*'Default-Data'!$F$19/general_dollar_index)/'Zambia-IO-Data'!$BP28","v":1.2802835977334828},null,null,null,null,null,null,null,null,null,null,null,null,"TTL_C36T37: Manufacturing nec; recycling",{"$f":"'General Impact Estimates'!C27","v":0},null,null,1118.971065282941,1701.7904181420738,{"$f":"FK281*CustomRegion1!C26","v":0},{"$f":"FN281*CustomRegion1!$C26","v":453.6031992825865},{"$f":"FO281*CustomRegion1!$C26","v":689.86375262751289},{"$f":"FK281*CustomRegion1!D26","v":0},{"$f":"FN281*CustomRegion1!$D26","v":153.12719466227443},{"$f":"FO281*CustomRegion1!$D26","v":232.88394196979735},{"$f":"(FT281*'Default-Data'!$C$58/general_dollar_index)/CustomRegion1!$E26","v":4.9048156329089203E-2},{"$f":"(FU281*'Default-Data'!$C$58/general_dollar_index)/CustomRegion1!$E26","v":7.4595032041576997E-2},{"$f":"(FV281*'Default-Data'!$C$58/general_dollar_index)/CustomRegion1!$E26","v":1.571061002318137E-5},null,null,null,null,null,null,null,null,null,null,null,null,"C34 Motor vehicles, trailers and semi-trailers",{"$f":"'General Impact Estimates'!C27","v":0},null,null,34549.500325478097,25319.36960752125,{"$f":"GL281*CustomRegion2!C30","v":0},{"$f":"GO281*CustomRegion2!$C30","v":10540.899649230256},{"$f":"GP281*CustomRegion2!$C30","v":7724.8276154615769},{"$f":"GL281*CustomRegion2!D30","v":0},{"$f":"GO281*CustomRegion2!$D30","v":3666.018460196447},{"$f":"GP281*CustomRegion2!$D30","v":2686.6170424253542},{"$f":"(GT281*'Default-Data'!$C$59/general_dollar_index)/CustomRegion2!$E30","v":0},{"$f":"(GU281*'Default-Data'!$C$59/general_dollar_index)/CustomRegion2!$E30","v":0.50778363787526104},{"$f":"(GV281*'Default-Data'!$C$59/general_dollar_index)/CustomRegion2!$E30","v":0.37212583356912993},null,null,null,null,null,null,null,null,null,null,null,null,"INDCHEMMFG",{"$f":"'General Impact Estimates'!C27","v":0},null,null,5589.155681277598,9193.8968727772644,{"$f":"HM281*CustomRegion3!D29","v":0},{"$f":"HP281*CustomRegion3!$D29","v":1041.6362655643238},{"$f":"HQ281*CustomRegion3!$D29","v":1713.4424143208216},{"$f":"HM281*CustomRegion3!E29","v":0},{"$f":"HP281*CustomRegion3!$E29","v":201.19053420245686},{"$f":"HQ281*CustomRegion3!$E29","v":330.9489176392982},{"$f":"(HU281*'Default-Data'!$C$60/general_dollar_index)/CustomRegion3!$F29","v":0},{"$f":"(HV281*'Default-Data'!$C$60/general_dollar_index)/CustomRegion3!$F29","v":0.77831026853328678},{"$f":"(HW281*'Default-Data'!$C$60/general_dollar_index)/CustomRegion3!$F29","v":1.2802835977334828}]
[null,null,null,null,null,null,null,null,null,null,null,null,null,null,null,null,null,null,null,null,null,null,null,null,null,null,null,null,null,281,"TTL_C40T41: Electricity, gas and water supply",{"$f":"'General Impact Estimates'!C28","v":0},null,null,25868.272152916961,15846.960617386419,{"$f":"'Colombia-IO-Data'!$AN31*Calculations!AF282","v":0},{"$f":"AI282*'Colombia-IO-Data'!$AN31","v":13681.423679076999},{"$f":"AJ282*'Colombia-IO-Data'!$AN31","v":8381.2703434722207},{"$f":"AK282*'Colombia-IO-Data'!$AO31","v":0},{"$f":"AL282*'Colombia-IO-Data'!$AO31","v":2411.2335678987133},{"$f":"AM282*'Colombia-IO-Data'!$AO31","v":1477.1270057750003},{"$f":"(AN282*'Default-Data'!$F$19/general_dollar_index)/'Colombia-IO-Data'!$AP31","v":0},{"$f":"(AO282*'Default-Data'!$F$19/general_dollar_index)/'Colombia-IO-Data'!$AP31","v":0.23674614086424628},{"$f":"(AP282*'Default-Data'!$F$19/general_dollar_index)/'Colombia-IO-Data'!$AP31","v":0.14503120844006115},null,null,null,null,null,null,null,null,null,null,null,null,"DOM_C40T41: Electricity, gas and water supply",{"$f":"'General Impact Estimates'!C28","v":0},null,null,38624.496440424569,4355.7480274896661,{"$f":"BG282*'Mexico-IO-Data'!AQ31","v":0},{"$f":"BJ282*'Mexico-IO-Data'!$AQ31","v":17277.808795571393},{"$f":"BK282*'Mexico-IO-Data'!$AQ31","v":1948.4469317738101},{"$f":"BG282*'Mexico-IO-Data'!AR31","v":0},{"$f":"BJ282*'Mexico-IO-Data'!$AR31","v":4173.1914795888879},{"$f":"BK282*'Mexico-IO-Data'!$AR31","v":470.61767092791052},{"$f":"(BO282*'Default-Data'!$F$19/general_dollar_index)/'Mexico-IO-Data'!$AS31","v":0},{"$f":"(BP282*'Default-Data'!$F$19/general_dollar_index)/'Mexico-IO-Data'!$AS31","v":0.23031825120030833},{"$f":"(BQ282*'Default-Data'!$F$19/general_dollar_index)/'Mexico-IO-Data'!$AS31","v":2.5973368220035882E-2},null,null,null,null,null,null,null,null,null,null,null,null,"TTL_C40T41: Electricity, gas and water supply",{"$f":"'General Impact Estimates'!C28","v":0},null,null,82296.938120783991,8833.1040934163611,{"$f":"CH282*'Philippines-IO-Data'!$AN31","v":0},{"$f":"CK282*'Philippines-IO-Data'!$AN31","v":49316.936510129817},{"$f":"CL282*'Philippines-IO-Data'!$AN31","v":5293.2909013338713},{"$f":"CH282*'Philippines-IO-Data'!AO31","v":0},{"$f":"CK282*'Philippines-IO-Data'!$AO31","v":10213.607622953768},{"$f":"CL282*'Philippines-IO-Data'!$AO31","v":1096.2480666103552},{"$f":"(CP282*'Default-Data'!$F$19/general_dollar_index)/'Philippines-IO-Data'!$AP31","v":0},{"$f":"(CQ282*'Default-Data'!$F$19/general_dollar_index)/'Philippines-IO-Data'!$AP31","v":2.663204220117847},{"$f":"(CR282*'Default-Data'!$F$19/general_dollar_index)/'Philippines-IO-Data'!$AP31","v":0.28584733084238084},null,null,null,null,null,null,null,null,null,null,null,null,"DOM_C40T41: Electricity, gas and water supply",{"$f":"'General Impact Estimates'!C28","v":0},null,null,50891.854734888861,73177.587473415173,{"$f":"DI282*'SouthAfrica-IO-Data'!AR31","v":0},{"$f":"DL282*'SouthAfrica-IO-Data'!$AR31","v":27671.253894252979},{"$f":"DM282*'SouthAfrica-IO-Data'!$AR31","v":39788.599037983164},{"$f":"DI282*'SouthAfrica-IO-Data'!AS31","v":0},{"$f":"DL282*'SouthAfrica-IO-Data'!$AS31","v":9042.0268684067833},{"$f":"DM282*'SouthAfrica-IO-Data'!$AS31","v":13001.564111716249},{"$f":"(DQ282*'Default-Data'!$F$19/general_dollar_index)/'SouthAfrica-IO-Data'!$AT31","v":0},{"$f":"(DR282*'Default-Data'!$F$19/general_dollar_index)/'SouthAfrica-IO-Data'!$AT31","v":0.33760801514404409},{"$f":"(DS282*'Default-Data'!$F$19/general_dollar_index)/'SouthAfrica-IO-Data'!$AT31","v":0.48544782241926498},null,null,null,null,null,null,null,null,null,null,null,null,"OTHERMFG",{"$f":"'General Impact Estimates'!C28","v":0},null,null,33795.032482536626,36182.397186353264,{"$f":"EJ282*'Zambia-IO-Data'!BO29","v":0},{"$f":"EM282*'Zambia-IO-Data'!$BO29","v":3626.9389939890616},{"$f":"EN282*'Zambia-IO-Data'!$BO29","v":3883.1549376079975},{"$f":"EJ282*'Zambia-IO-Data'!BN29","v":0},{"$f":"EM282*'Zambia-IO-Data'!$BN29","v":122.12609321164012},{"$f":"EN282*'Zambia-IO-Data'!$BN29","v":130.75338257729325},{"$f":"(ER282*'Default-Data'!$F$19/general_dollar_index)/'Zambia-IO-Data'!$BP29","v":0},{"$f":"(ES282*'Default-Data'!$F$19/general_dollar_index)/'Zambia-IO-Data'!$BP29","v":0.4724476366607912},{"$f":"(ET282*'Default-Data'!$F$19/general_dollar_index)/'Zambia-IO-Data'!$BP29","v":0.50582250655471417},null,null,null,null,null,null,null,null,null,null,null,null,"TTL_C40T41: Electricity, gas and water supply",{"$f":"'General Impact Estimates'!C28","v":0},null,null,112858.49772601045,17315.238268848727,{"$f":"FK282*CustomRegion1!C27","v":0},{"$f":"FN282*CustomRegion1!$C27","v":67631.135423453175},{"$f":"FO282*CustomRegion1!$C27","v":10376.260962580365},{"$f":"FK282*CustomRegion1!D27","v":0},{"$f":"FN282*CustomRegion1!$D27","v":14006.504239534763},{"$f":"FO282*CustomRegion1!$D27","v":2148.9383884053723},{"$f":"(FT282*'Default-Data'!$C$58/general_dollar_index)/CustomRegion1!$E27","v":3.6522042530785743},{"$f":"(FU282*'Default-Data'!$C$58/general_dollar_index)/CustomRegion1!$E27","v":0.56033695399778116},{"$f":"(FV282*'Default-Data'!$C$58/general_dollar_index)/CustomRegion1!$E27","v":9.5231441608075915E-4},null,null,null,null,null,null,null,null,null,null,null,null,"C35 Other transport equipment",{"$f":"'General Impact Estimates'!C28","v":0},null,null,0,0,{"$f":"GL282*CustomRegion2!C31","v":0},{"$f":"GO282*CustomRegion2!$C31","v":0},{"$f":"GP282*CustomRegion2!$C31","v":0},{"$f":"GL282*CustomRegion2!D31","v":0},{"$f":"GO282*CustomRegion2!$D31","v":0},{"$f":"GP282*CustomRegion2!$D31","v":0},{"$f":"(GT282*'Default-Data'!$C$59/general_dollar_index)/CustomRegion2!$E31","v":0},{"$f":"(GU282*'Default-Data'!$C$59/general_dollar_index)/CustomRegion2!$E31","v":0},{"$f":"(GV282*'Default-Data'!$C$59/general_dollar_index)/CustomRegion2!$E31","v":0},null,null,null,null,null,null,null,null,null,null,null,null,"OTHERMFG",{"$f":"'General Impact Estimates'!C28","v":0},null,null,33795.032482536626,36182.397186353264,{"$f":"HM282*CustomRegion3!D30","v":0},{"$f":"HP282*CustomRegion3!$D30","v":3626.9389939890616},{"$f":"HQ282*CustomRegion3!$D30","v":3883.1549376079975},{"$f":"HM282*CustomRegion3!E30","v":0},{"$f":"HP282*CustomRegion3!$E30","v":122.12609321164012},{"$f":"HQ282*CustomRegion3!$E30","v":130.75338257729325},{"$f":"(HU282*'Default-Data'!$C$60/general_dollar_index)/CustomRegion3!$F30","v":0},{"$f":"(HV282*'Default-Data'!$C$60/general_dollar_index)/CustomRegion3!$F30","v":0.4724476366607912},{"$f":"(HW282*'Default-Data'!$C$60/general_dollar_index)/CustomRegion3!$F30","v":0.50582250655471417}]
[null,null,null,null,null,null,null,null,null,null,null,null,null,null,null,null,null,null,null,null,null,null,null,null,null,null,null,null,null,282,"TTL_C45: Construction",{"$f":"'General Impact Estimates'!C29","v":0},null,null,4587.8636764776184,3176.4402555161269,{"$f":"'Colombia-IO-Data'!$AN32*Calculations!AF283","v":0},{"$f":"AI283*'Colombia-IO-Data'!$AN32","v":2278.1620383395093},{"$f":"AJ283*'Colombia-IO-Data'!$AN32","v":1577.3017939203787},{"$f":"AK283*'Colombia-IO-Data'!$AO32","v":0},{"$f":"AL283*'Colombia-IO-Data'!$AO32","v":449.27873989257455},{"$f":"AM283*'Colombia-IO-Data'!$AO32","v":311.06135142141142},{"$f":"(AN283*'Default-Data'!$F$19/general_dollar_index)/'Colombia-IO-Data'!$AP32","v":0},{"$f":"(AO283*'Default-Data'!$F$19/general_dollar_index)/'Colombia-IO-Data'!$AP32","v":0.1269208692411361},{"$f":"(AP283*'Default-Data'!$F$19/general_dollar_index)/'Colombia-IO-Data'!$AP32","v":8.7874572295960421E-2},null,null,null,null,null,null,null,null,null,null,null,null,"DOM_C45: Construction",{"$f":"'General Impact Estimates'!C29","v":0},null,null,1351.5838454883872,290.83120768868412,{"$f":"BG283*'Mexico-IO-Data'!AQ32","v":0},{"$f":"BJ283*'Mexico-IO-Data'!$AQ32","v":679.76901205952663},{"$f":"BK283*'Mexico-IO-Data'!$AQ32","v":146.27138626030171},{"$f":"BG283*'Mexico-IO-Data'!AR32","v":0},{"$f":"BJ283*'Mexico-IO-Data'!$AR32","v":298.97351982220385},{"$f":"BK283*'Mexico-IO-Data'!$AR32","v":64.332545943836053},{"$f":"(BO283*'Default-Data'!$F$19/general_dollar_index)/'Mexico-IO-Data'!$AS32","v":0},{"$f":"(BP283*'Default-Data'!$F$19/general_dollar_index)/'Mexico-IO-Data'!$AS32","v":0.10439747390681095},{"$f":"(BQ283*'Default-Data'!$F$19/general_dollar_index)/'Mexico-IO-Data'!$AS32","v":2.2464047285941448E-2},null,null,null,null,null,null,null,null,null,null,null,null,"TTL_C45: Construction",{"$f":"'General Impact Estimates'!C29","v":0},null,null,3126.7243556513308,2642.3675707088209,{"$f":"CH283*'Philippines-IO-Data'!$AN32","v":0},{"$f":"CK283*'Philippines-IO-Data'!$AN32","v":1720.7256313613691},{"$f":"CL283*'Philippines-IO-Data'!$AN32","v":1454.1702718945296},{"$f":"CH283*'Philippines-IO-Data'!AO32","v":0},{"$f":"CK283*'Philippines-IO-Data'!$AO32","v":528.76960392725641},{"$f":"CL283*'Philippines-IO-Data'!$AO32","v":446.85859540786964},{"$f":"(CP283*'Default-Data'!$F$19/general_dollar_index)/'Philippines-IO-Data'!$AP32","v":0},{"$f":"(CQ283*'Default-Data'!$F$19/general_dollar_index)/'Philippines-IO-Data'!$AP32","v":0.16937013867912407},{"$f":"(CR283*'Default-Data'!$F$19/general_dollar_index)/'Philippines-IO-Data'!$AP32","v":0.14313323177442233},null,null,null,null,null,null,null,null,null,null,null,null,"DOM_C45: Construction",{"$f":"'General Impact Estimates'!C29","v":0},null,null,9742.6714579945747,17341.884769120486,{"$f":"DI283*'SouthAfrica-IO-Data'!AR32","v":0},{"$f":"DL283*'SouthAfrica-IO-Data'!$AR32","v":2900.8867735628219},{"$f":"DM283*'SouthAfrica-IO-Data'!$AR32","v":5163.5574875217335},{"$f":"DI283*'SouthAfrica-IO-Data'!AS32","v":0},{"$f":"DL283*'SouthAfrica-IO-Data'!$AS32","v":1308.3267812384329},{"$f":"DM283*'SouthAfrica-IO-Data'!$AS32","v":2328.812213201888},{"$f":"(DQ283*'Default-Data'!$F$19/general_dollar_index)/'SouthAfrica-IO-Data'!$AT32","v":0},{"$f":"(DR283*'Default-Data'!$F$19/general_dollar_index)/'SouthAfrica-IO-Data'!$AT32","v":0.12703293771833507},{"$f":"(DS283*'Default-Data'!$F$19/general_dollar_index)/'SouthAfrica-IO-Data'!$AT32","v":0.22611771086527926},null,null,null,null,null,null,null,null,null,null,null,null,"ELECWATER",{"$f":"'General Impact Estimates'!C29","v":0},null,null,11195.101953930271,14815.852657487108,{"$f":"EJ283*'Zambia-IO-Data'!BO30","v":0},{"$f":"EM283*'Zambia-IO-Data'!$BO30","v":2984.1588555859698},{"$f":"EN283*'Zambia-IO-Data'!$BO30","v":3949.3037305815024},{"$f":"EJ283*'Zambia-IO-Data'!BN30","v":0},{"$f":"EM283*'Zambia-IO-Data'!$BN30","v":147.72477062625563},{"$f":"EN283*'Zambia-IO-Data'!$BN30","v":195.50232275386344},{"$f":"(ER283*'Default-Data'!$F$19/general_dollar_index)/'Zambia-IO-Data'!$BP30","v":0},{"$f":"(ES283*'Default-Data'!$F$19/general_dollar_index)/'Zambia-IO-Data'!$BP30","v":0.25765413101627116},{"$f":"(ET283*'Default-Data'!$F$19/general_dollar_index)/'Zambia-IO-Data'!$BP30","v":0.34098533961004152},null,null,null,null,null,null,null,null,null,null,null,null,"TTL_C45: Construction",{"$f":"'General Impact Estimates'!C29","v":0},null,null,8792.2766025367146,5140.7332759317669,{"$f":"FK283*CustomRegion1!C28","v":0},{"$f":"FN283*CustomRegion1!$C28","v":4838.6406945847411},{"$f":"FO283*CustomRegion1!$C28","v":2829.0922082402158},{"$f":"FK283*CustomRegion1!D28","v":0},{"$f":"FN283*CustomRegion1!$D28","v":1486.8879018194639},{"$f":"FO283*CustomRegion1!$D28","v":869.36460941849282},{"$f":"(FT283*'Default-Data'!$C$58/general_dollar_index)/CustomRegion1!$E28","v":0.47626491436168045},{"$f":"(FU283*'Default-Data'!$C$58/general_dollar_index)/CustomRegion1!$E28","v":0.27846609064954747},{"$f":"(FV283*'Default-Data'!$C$58/general_dollar_index)/CustomRegion1!$E28","v":1.525523668424333E-4},null,null,null,null,null,null,null,null,null,null,null,null,"C36T37 Manufacturing n.e.c; recycling",{"$f":"'General Impact Estimates'!C29","v":0},null,null,5234.740026867501,6364.529119500241,{"$f":"GL283*CustomRegion2!C32","v":0},{"$f":"GO283*CustomRegion2!$C32","v":1933.7960326810974},{"$f":"GP283*CustomRegion2!$C32","v":2351.1580514033444},{"$f":"GL283*CustomRegion2!D32","v":0},{"$f":"GO283*CustomRegion2!$D32","v":883.63429993629393},{"$f":"GP283*CustomRegion2!$D32","v":1074.3448966078142},{"$f":"(GT283*'Default-Data'!$C$59/general_dollar_index)/CustomRegion2!$E32","v":0},{"$f":"(GU283*'Default-Data'!$C$59/general_dollar_index)/CustomRegion2!$E32","v":0.14219158262735707},{"$f":"(GV283*'Default-Data'!$C$59/general_dollar_index)/CustomRegion2!$E32","v":0.17288011697520447},null,null,null,null,null,null,null,null,null,null,null,null,"ELECWATER",{"$f":"'General Impact Estimates'!C29","v":0},null,null,11195.101953930271,14815.852657487108,{"$f":"HM283*CustomRegion3!D31","v":0},{"$f":"HP283*CustomRegion3!$D31","v":2984.1588555859698},{"$f":"HQ283*CustomRegion3!$D31","v":3949.3037305815024},{"$f":"HM283*CustomRegion3!E31","v":0},{"$f":"HP283*CustomRegion3!$E31","v":147.72477062625563},{"$f":"HQ283*CustomRegion3!$E31","v":195.50232275386344},{"$f":"(HU283*'Default-Data'!$C$60/general_dollar_index)/CustomRegion3!$F31","v":0},{"$f":"(HV283*'Default-Data'!$C$60/general_dollar_index)/CustomRegion3!$F31","v":0.25765413101627116},{"$f":"(HW283*'Default-Data'!$C$60/general_dollar_index)/CustomRegion3!$F31","v":0.34098533961004152}]
[null,null,null,null,null,null,null,null,null,null,null,null,null,null,null,null,null,null,null,null,null,null,null,null,null,null,null,null,null,283,"TTL_C50T52: Wholesale and retail trade; repairs",{"$f":"'General Impact Estimates'!C30","v":0},null,null,71753.413738091258,29818.718022078581,{"$f":"'Colombia-IO-Data'!$AN33*Calculations!AF284","v":0},{"$f":"AI284*'Colombia-IO-Data'!$AN33","v":43108.558532576113},{"$f":"AJ284*'Colombia-IO-Data'!$AN33","v":17914.714913957643},{"$f":"AK284*'Colombia-IO-Data'!$AO33","v":0},{"$f":"AL284*'Colombia-IO-Data'!$AO33","v":18700.753872160079},{"$f":"AM284*'Colombia-IO-Data'!$AO33","v":7771.5118691030148},{"$f":"(AN284*'Default-Data'!$F$19/general_dollar_index)/'Colombia-IO-Data'!$AP33","v":0},{"$f":"(AO284*'Default-Data'!$F$19/general_dollar_index)/'Colombia-IO-Data'!$AP33","v":5.8155852535968995},{"$f":"(AP284*'Default-Data'!$F$19/general_dollar_index)/'Colombia-IO-Data'!$AP33","v":2.4167950732399164},null,null,null,null,null,null,null,null,null,null,null,null,"DOM_C50T52: Wholesale and retail trade; repairs",{"$f":"'General Impact Estimates'!C30","v":0},null,null,94911.012295237757,28098.738968694757,{"$f":"BG284*'Mexico-IO-Data'!AQ33","v":0},{"$f":"BJ284*'Mexico-IO-Data'!$AQ33","v":72271.709137645797},{"$f":"BK284*'Mexico-IO-Data'!$AQ33","v":21396.293652027936},{"$f":"BG284*'Mexico-IO-Data'!AR33","v":0},{"$f":"BJ284*'Mexico-IO-Data'!$AR33","v":14552.878259709376},{"$f":"BK284*'Mexico-IO-Data'!$AR33","v":4308.4307876809398},{"$f":"(BO284*'Default-Data'!$F$19/general_dollar_index)/'Mexico-IO-Data'!$AS33","v":0},{"$f":"(BP284*'Default-Data'!$F$19/general_dollar_index)/'Mexico-IO-Data'!$AS33","v":3.0519657242378355},{"$f":"(BQ284*'Default-Data'!$F$19/general_dollar_index)/'Mexico-IO-Data'!$AS33","v":0.90354518567352049},null,null,null,null,null,null,null,null,null,null,null,null,"TTL_C50T52: Wholesale and retail trade; repairs",{"$f":"'General Impact Estimates'!C30","v":0},null,null,90600.855280782562,26303.148196760274,{"$f":"CH284*'Philippines-IO-Data'!$AN33","v":0},{"$f":"CK284*'Philippines-IO-Data'!$AN33","v":62615.601891398386},{"$f":"CL284*'Philippines-IO-Data'!$AN33","v":18178.497883652308},{"$f":"CH284*'Philippines-IO-Data'!AO33","v":0},{"$f":"CK284*'Philippines-IO-Data'!$AO33","v":13937.67679582514},{"$f":"CL284*'Philippines-IO-Data'!$AO33","v":4046.372157779138},{"$f":"(CP284*'Default-Data'!$F$19/general_dollar_index)/'Philippines-IO-Data'!$AP33","v":0},{"$f":"(CQ284*'Default-Data'!$F$19/general_dollar_index)/'Philippines-IO-Data'!$AP33","v":4.4643758533791758},{"$f":"(CR284*'Default-Data'!$F$19/general_dollar_index)/'Philippines-IO-Data'!$AP33","v":1.2960930590947539},null,null,null,null,null,null,null,null,null,null,null,null,"DOM_C50T52: Wholesale and retail trade; repairs",{"$f":"'General Impact Estimates'!C30","v":0},null,null,137661.92939374354,214119.60744535123,{"$f":"DI284*'SouthAfrica-IO-Data'!AR33","v":0},{"$f":"DL284*'SouthAfrica-IO-Data'!$AR33","v":80844.210874718163},{"$f":"DM284*'SouthAfrica-IO-Data'!$AR33","v":125745.22798683487},{"$f":"DI284*'SouthAfrica-IO-Data'!AS33","v":0},{"$f":"DL284*'SouthAfrica-IO-Data'!$AS33","v":38820.169223389959},{"$f":"DM284*'SouthAfrica-IO-Data'!$AS33","v":60380.959584692086},{"$f":"(DQ284*'Default-Data'!$F$19/general_dollar_index)/'SouthAfrica-IO-Data'!$AT33","v":0},{"$f":"(DR284*'Default-Data'!$F$19/general_dollar_index)/'SouthAfrica-IO-Data'!$AT33","v":4.1634408159099463},{"$f":"(DS284*'Default-Data'!$F$19/general_dollar_index)/'SouthAfrica-IO-Data'!$AT33","v":6.4758231782062063},null,null,null,null,null,null,null,null,null,null,null,null,"EQUIPMACHIN",{"$f":"'General Impact Estimates'!C30","v":0},null,null,61492.203070081356,10625.630121074042,{"$f":"EJ284*'Zambia-IO-Data'!BO31","v":0},{"$f":"EM284*'Zambia-IO-Data'!$BO31","v":7747.6489600038531},{"$f":"EN284*'Zambia-IO-Data'!$BO31","v":1338.7656978739631},{"$f":"EJ284*'Zambia-IO-Data'!BN31","v":0},{"$f":"EM284*'Zambia-IO-Data'!$BN31","v":1737.4645324772134},{"$f":"EN284*'Zambia-IO-Data'!$BN31","v":300.22758250419736},{"$f":"(ER284*'Default-Data'!$F$19/general_dollar_index)/'Zambia-IO-Data'!$BP31","v":0},{"$f":"(ES284*'Default-Data'!$F$19/general_dollar_index)/'Zambia-IO-Data'!$BP31","v":6.721422020176175},{"$f":"(ET284*'Default-Data'!$F$19/general_dollar_index)/'Zambia-IO-Data'!$BP31","v":1.1614373970735639},null,null,null,null,null,null,null,null,null,null,null,null,"TTL_C50T52: Wholesale and retail trade; repairs",{"$f":"'General Impact Estimates'!C30","v":0},null,null,184612.75271949865,61116.887764849671,{"$f":"FK284*CustomRegion1!C29","v":0},{"$f":"FN284*CustomRegion1!$C29","v":127588.62587482911},{"$f":"FO284*CustomRegion1!$C29","v":42238.792352072036},{"$f":"FK284*CustomRegion1!D29","v":0},{"$f":"FN284*CustomRegion1!$D29","v":28400.094809455266},{"$f":"FO284*CustomRegion1!$D29","v":9401.979990070542},{"$f":"(FT284*'Default-Data'!$C$58/general_dollar_index)/CustomRegion1!$E29","v":9.0968315134836075},{"$f":"(FU284*'Default-Data'!$C$58/general_dollar_index)/CustomRegion1!$E29","v":3.0115472654809943},{"$f":"(FV284*'Default-Data'!$C$58/general_dollar_index)/CustomRegion1!$E29","v":2.9138051876206289E-3},null,null,null,null,null,null,null,null,null,null,null,null,"C40T41 Electricity, gas and water supply",{"$f":"'General Impact Estimates'!C30","v":0},null,null,62728.273922708038,16322.278648066633,{"$f":"GL284*CustomRegion2!C33","v":0},{"$f":"GO284*CustomRegion2!$C33","v":24640.841169303585},{"$f":"GP284*CustomRegion2!$C33","v":6411.6968399879424},{"$f":"GL284*CustomRegion2!D33","v":0},{"$f":"GO284*CustomRegion2!$D33","v":9277.939047008831},{"$f":"GP284*CustomRegion2!$D33","v":2414.1762069151196},{"$f":"(GT284*'Default-Data'!$C$59/general_dollar_index)/CustomRegion2!$E33","v":0},{"$f":"(GU284*'Default-Data'!$C$59/general_dollar_index)/CustomRegion2!$E33","v":0.51204904124376271},{"$f":"(GV284*'Default-Data'!$C$59/general_dollar_index)/CustomRegion2!$E33","v":0.13323827693639878},null,null,null,null,null,null,null,null,null,null,null,null,"EQUIPMACHIN",{"$f":"'General Impact Estimates'!C30","v":0},null,null,61492.203070081356,10625.630121074042,{"$f":"HM284*CustomRegion3!D32","v":0},{"$f":"HP284*CustomRegion3!$D32","v":7747.6489600038531},{"$f":"HQ284*CustomRegion3!$D32","v":1338.7656978739631},{"$f":"HM284*CustomRegion3!E32","v":0},{"$f":"HP284*CustomRegion3!$E32","v":1737.4645324772134},{"$f":"HQ284*CustomRegion3!$E32","v":300.22758250419736},{"$f":"(HU284*'Default-Data'!$C$60/general_dollar_index)/CustomRegion3!$F32","v":0},{"$f":"(HV284*'Default-Data'!$C$60/general_dollar_index)/CustomRegion3!$F32","v":6.721422020176175},{"$f":"(HW284*'Default-Data'!$C$60/general_dollar_index)/CustomRegion3!$F32","v":1.1614373970735639}]
[null,null,null,null,null,null,null,null,null,null,null,null,null,null,null,null,null,null,null,null,null,null,null,null,null,null,null,null,null,284,"TTL_C55: Hotels and restaurants",{"$f":"'General Impact Estimates'!C31","v":0},null,null,6030.7461381554485,20223.443462745443,{"$f":"'Colombia-IO-Data'!$AN34*Calculations!AF285","v":0},{"$f":"AI285*'Colombia-IO-Data'!$AN34","v":2787.2228519860682},{"$f":"AJ285*'Colombia-IO-Data'!$AN34","v":9346.6450873444865},{"$f":"AK285*'Colombia-IO-Data'!$AO34","v":0},{"$f":"AL285*'Colombia-IO-Data'!$AO34","v":1185.0579841333147},{"$f":"AM285*'Colombia-IO-Data'!$AO34","v":3973.9615286683829},{"$f":"(AN285*'Default-Data'!$F$19/general_dollar_index)/'Colombia-IO-Data'!$AP34","v":0},{"$f":"(AO285*'Default-Data'!$F$19/general_dollar_index)/'Colombia-IO-Data'!$AP34","v":0.24929687522694022},{"$f":"(AP285*'Default-Data'!$F$19/general_dollar_index)/'Colombia-IO-Data'!$AP34","v":0.83598963479718869},null,null,null,null,null,null,null,null,null,null,null,null,"DOM_C55: Hotels and restaurants",{"$f":"'General Impact Estimates'!C31","v":0},null,null,2002.8533259205872,4950.6486448891828,{"$f":"BG285*'Mexico-IO-Data'!AQ34","v":0},{"$f":"BJ285*'Mexico-IO-Data'!$AQ34","v":1472.9591780557175},{"$f":"BK285*'Mexico-IO-Data'!$AQ34","v":3640.8574030087279},{"$f":"BG285*'Mexico-IO-Data'!AR34","v":0},{"$f":"BJ285*'Mexico-IO-Data'!$AR34","v":360.29006952470638},{"$f":"BK285*'Mexico-IO-Data'!$AR34","v":890.56423721875649},{"$f":"(BO285*'Default-Data'!$F$19/general_dollar_index)/'Mexico-IO-Data'!$AS34","v":0},{"$f":"(BP285*'Default-Data'!$F$19/general_dollar_index)/'Mexico-IO-Data'!$AS34","v":0.25776807994706913},{"$f":"(BQ285*'Default-Data'!$F$19/general_dollar_index)/'Mexico-IO-Data'!$AS34","v":0.63715059868355162},null,null,null,null,null,null,null,null,null,null,null,null,"TTL_C55: Hotels and restaurants",{"$f":"'General Impact Estimates'!C31","v":0},null,null,9019.6242841705916,7884.891684437438,{"$f":"CH285*'Philippines-IO-Data'!$AN34","v":0},{"$f":"CK285*'Philippines-IO-Data'!$AN34","v":3381.1224043283482},{"$f":"CL285*'Philippines-IO-Data'!$AN34","v":2955.7532653263106},{"$f":"CH285*'Philippines-IO-Data'!AO34","v":0},{"$f":"CK285*'Philippines-IO-Data'!$AO34","v":1273.695763366866},{"$f":"CL285*'Philippines-IO-Data'!$AO34","v":1113.4558177439767},{"$f":"(CP285*'Default-Data'!$F$19/general_dollar_index)/'Philippines-IO-Data'!$AP34","v":0},{"$f":"(CQ285*'Default-Data'!$F$19/general_dollar_index)/'Philippines-IO-Data'!$AP34","v":0.40797736192516965},{"$f":"(CR285*'Default-Data'!$F$19/general_dollar_index)/'Philippines-IO-Data'!$AP34","v":0.35665092105089868},null,null,null,null,null,null,null,null,null,null,null,null,"DOM_C55: Hotels and restaurants",{"$f":"'General Impact Estimates'!C31","v":0},null,null,2356.651100151149,7949.0982999711923,{"$f":"DI285*'SouthAfrica-IO-Data'!AR34","v":0},{"$f":"DL285*'SouthAfrica-IO-Data'!$AR34","v":1058.2849780348204},{"$f":"DM285*'SouthAfrica-IO-Data'!$AR34","v":3569.6464865936632},{"$f":"DI285*'SouthAfrica-IO-Data'!AS34","v":0},{"$f":"DL285*'SouthAfrica-IO-Data'!$AS34","v":405.9429545545309},{"$f":"DM285*'SouthAfrica-IO-Data'!$AS34","v":1369.2652466577431},{"$f":"(DQ285*'Default-Data'!$F$19/general_dollar_index)/'SouthAfrica-IO-Data'!$AT34","v":0},{"$f":"(DR285*'Default-Data'!$F$19/general_dollar_index)/'SouthAfrica-IO-Data'!$AT34","v":4.35371483364137E-2},{"$f":"(DS285*'Default-Data'!$F$19/general_dollar_index)/'SouthAfrica-IO-Data'!$AT34","v":0.14685290996379699},null,null,null,null,null,null,null,null,null,null,null,null,"CONSTR",{"$f":"'General Impact Estimates'!C31","v":0},null,null,4375.1835252654037,10362.387140008323,{"$f":"EJ285*'Zambia-IO-Data'!BO32","v":0},{"$f":"EM285*'Zambia-IO-Data'!$BO32","v":265.42414754928637},{"$f":"EN285*'Zambia-IO-Data'!$BO32","v":628.64283459870455},{"$f":"EJ285*'Zambia-IO-Data'!BN32","v":0},{"$f":"EM285*'Zambia-IO-Data'!$BN32","v":116.74711855923054},{"$f":"EN285*'Zambia-IO-Data'!$BN32","v":276.50927852627876},{"$f":"(ER285*'Default-Data'!$F$19/general_dollar_index)/'Zambia-IO-Data'!$BP32","v":0},{"$f":"(ES285*'Default-Data'!$F$19/general_dollar_index)/'Zambia-IO-Data'!$BP32","v":0.41820064458876416},{"$f":"(ET285*'Default-Data'!$F$19/general_dollar_index)/'Zambia-IO-Data'!$BP32","v":0.9904857605183367},null,null,null,null,null,null,null,null,null,null,null,null,"TTL_C55: Hotels and restaurants",{"$f":"'General Impact Estimates'!C31","v":0},null,null,14349.014635793268,14241.149216491482,{"$f":"FK285*CustomRegion1!C30","v":0},{"$f":"FN285*CustomRegion1!$C30","v":5378.9130607425641},{"$f":"FO285*CustomRegion1!$C30","v":5338.478318189751},{"$f":"FK285*CustomRegion1!D30","v":0},{"$f":"FN285*CustomRegion1!$D30","v":2026.279429640306},{"$f":"FO285*CustomRegion1!$D30","v":2011.047339782684},{"$f":"(FT285*'Default-Data'!$C$58/general_dollar_index)/CustomRegion1!$E30","v":0.64903736041538518},{"$f":"(FU285*'Default-Data'!$C$58/general_dollar_index)/CustomRegion1!$E30","v":0.64415837124430331},{"$f":"(FV285*'Default-Data'!$C$58/general_dollar_index)/CustomRegion1!$E30","v":2.0789309166986333E-4},null,null,null,null,null,null,null,null,null,null,null,null,"C45 Construction",{"$f":"'General Impact Estimates'!C31","v":0},null,null,1617.2313713547767,1275.2664096667934,{"$f":"GL285*CustomRegion2!C34","v":0},{"$f":"GO285*CustomRegion2!$C34","v":788.06479748778725},{"$f":"GP285*CustomRegion2!$C34","v":621.42781959216086},{"$f":"GL285*CustomRegion2!D34","v":0},{"$f":"GO285*CustomRegion2!$D34","v":325.20795011381892},{"$f":"GP285*CustomRegion2!$D34","v":256.44244990704408},{"$f":"(GT285*'Default-Data'!$C$59/general_dollar_index)/CustomRegion2!$E34","v":0},{"$f":"(GU285*'Default-Data'!$C$59/general_dollar_index)/CustomRegion2!$E34","v":0.11355817902028612},{"$f":"(GV285*'Default-Data'!$C$59/general_dollar_index)/CustomRegion2!$E34","v":8.9546204589256856E-2},null,null,null,null,null,null,null,null,null,null,null,null,"CONSTR",{"$f":"'General Impact Estimates'!C31","v":0},null,null,4375.1835252654037,10362.387140008323,{"$f":"HM285*CustomRegion3!D33","v":0},{"$f":"HP285*CustomRegion3!$D33","v":265.42414754928637},{"$f":"HQ285*CustomRegion3!$D33","v":628.64283459870455},{"$f":"HM285*CustomRegion3!E33","v":0},{"$f":"HP285*CustomRegion3!$E33","v":116.74711855923054},{"$f":"HQ285*CustomRegion3!$E33","v":276.50927852627876},{"$f":"(HU285*'Default-Data'!$C$60/general_dollar_index)/CustomRegion3!$F33","v":0},{"$f":"(HV285*'Default-Data'!$C$60/general_dollar_index)/CustomRegion3!$F33","v":0.41820064458876416},{"$f":"(HW285*'Default-Data'!$C$60/general_dollar_index)/CustomRegion3!$F33","v":0.9904857605183367}]
[null,null,null,null,null,null,null,null,null,null,null,null,null,null,null,null,null,null,null,null,null,null,null,null,null,null,null,null,null,285,"TTL_C60T63: Transport and storage",{"$f":"'General Impact Estimates'!C32","v":0},null,null,50018.605241357844,21038.185192242163,{"$f":"'Colombia-IO-Data'!$AN35*Calculations!AF286","v":0},{"$f":"AI286*'Colombia-IO-Data'!$AN35","v":21818.941676226284},{"$f":"AJ286*'Colombia-IO-Data'!$AN35","v":9177.2038318179621},{"$f":"AK286*'Colombia-IO-Data'!$AO35","v":0},{"$f":"AL286*'Colombia-IO-Data'!$AO35","v":5518.5793106771034},{"$f":"AM286*'Colombia-IO-Data'!$AO35","v":2321.1541580552321},{"$f":"(AN286*'Default-Data'!$F$19/general_dollar_index)/'Colombia-IO-Data'!$AP35","v":0},{"$f":"(AO286*'Default-Data'!$F$19/general_dollar_index)/'Colombia-IO-Data'!$AP35","v":1.2670242343421823},{"$f":"(AP286*'Default-Data'!$F$19/general_dollar_index)/'Colombia-IO-Data'!$AP35","v":0.53291950778166164},null,null,null,null,null,null,null,null,null,null,null,null,"DOM_C60T63: Transport and storage",{"$f":"'General Impact Estimates'!C32","v":0},null,null,26997.033962203343,16235.138720838317,{"$f":"BG286*'Mexico-IO-Data'!AQ35","v":0},{"$f":"BJ286*'Mexico-IO-Data'!$AQ35","v":19731.999665611009},{"$f":"BK286*'Mexico-IO-Data'!$AQ35","v":11866.183235507724},{"$f":"BG286*'Mexico-IO-Data'!AR35","v":0},{"$f":"BJ286*'Mexico-IO-Data'!$AR35","v":6365.8034871311474},{"$f":"BK286*'Mexico-IO-Data'!$AR35","v":3828.1873048670145},{"$f":"(BO286*'Default-Data'!$F$19/general_dollar_index)/'Mexico-IO-Data'!$AS35","v":0},{"$f":"(BP286*'Default-Data'!$F$19/general_dollar_index)/'Mexico-IO-Data'!$AS35","v":0.89651835248090805},{"$f":"(BQ286*'Default-Data'!$F$19/general_dollar_index)/'Mexico-IO-Data'!$AS35","v":0.53913699700057949},null,null,null,null,null,null,null,null,null,null,null,null,"TTL_C60T63: Transport and storage",{"$f":"'General Impact Estimates'!C32","v":0},null,null,15450.211877177684,6538.9362122268831,{"$f":"CH286*'Philippines-IO-Data'!$AN35","v":0},{"$f":"CK286*'Philippines-IO-Data'!$AN35","v":6829.3647361441635},{"$f":"CL286*'Philippines-IO-Data'!$AN35","v":2890.3668593466496},{"$f":"CH286*'Philippines-IO-Data'!AO35","v":0},{"$f":"CK286*'Philippines-IO-Data'!$AO35","v":2541.4165529896159},{"$f":"CL286*'Philippines-IO-Data'!$AO35","v":1075.5943582394605},{"$f":"(CP286*'Default-Data'!$F$19/general_dollar_index)/'Philippines-IO-Data'!$AP35","v":0},{"$f":"(CQ286*'Default-Data'!$F$19/general_dollar_index)/'Philippines-IO-Data'!$AP35","v":0.81404088061099877},{"$f":"(CR286*'Default-Data'!$F$19/general_dollar_index)/'Philippines-IO-Data'!$AP35","v":0.34452352076304826},null,null,null,null,null,null,null,null,null,null,null,null,"DOM_C60T63: Transport and storage",{"$f":"'General Impact Estimates'!C32","v":0},null,null,86178.959312016712,126125.36336767874,{"$f":"DI286*'SouthAfrica-IO-Data'!AR35","v":0},{"$f":"DL286*'SouthAfrica-IO-Data'!$AR35","v":45572.155066020343},{"$f":"DM286*'SouthAfrica-IO-Data'!$AR35","v":66696.147911692751},{"$f":"DI286*'SouthAfrica-IO-Data'!AS35","v":0},{"$f":"DL286*'SouthAfrica-IO-Data'!$AS35","v":15875.08078358023},{"$f":"DM286*'SouthAfrica-IO-Data'!$AS35","v":23233.633224451329},{"$f":"(DQ286*'Default-Data'!$F$19/general_dollar_index)/'SouthAfrica-IO-Data'!$AT35","v":0},{"$f":"(DR286*'Default-Data'!$F$19/general_dollar_index)/'SouthAfrica-IO-Data'!$AT35","v":0.9158946362120175},{"$f":"(DS286*'Default-Data'!$F$19/general_dollar_index)/'SouthAfrica-IO-Data'!$AT35","v":1.3404379064327012},null,null,null,null,null,null,null,null,null,null,null,null,"TRADETRANS",{"$f":"'General Impact Estimates'!C32","v":0},null,null,35720.121992559689,39248.73151700262,{"$f":"EJ286*'Zambia-IO-Data'!BO33","v":0},{"$f":"EM286*'Zambia-IO-Data'!$BO33","v":8075.2985374108257},{"$f":"EN286*'Zambia-IO-Data'!$BO33","v":8873.0162870244239},{"$f":"EJ286*'Zambia-IO-Data'!BN33","v":0},{"$f":"EM286*'Zambia-IO-Data'!$BN33","v":2972.9865319218643},{"$f":"EN286*'Zambia-IO-Data'!$BN33","v":3266.6727795434472},{"$f":"(ER286*'Default-Data'!$F$19/general_dollar_index)/'Zambia-IO-Data'!$BP33","v":0},{"$f":"(ES286*'Default-Data'!$F$19/general_dollar_index)/'Zambia-IO-Data'!$BP33","v":7.6219549417710164},{"$f":"(ET286*'Default-Data'!$F$19/general_dollar_index)/'Zambia-IO-Data'!$BP33","v":8.374889178894005},null,null,null,null,null,null,null,null,null,null,null,null,"TTL_C60T63: Transport and storage",{"$f":"'General Impact Estimates'!C32","v":0},null,null,36708.755804702305,17196.335073691298,{"$f":"FK286*CustomRegion1!C31","v":0},{"$f":"FN286*CustomRegion1!$C31","v":16226.151744279938},{"$f":"FO286*CustomRegion1!$C31","v":7601.1931277565991},{"$f":"FK286*CustomRegion1!D31","v":0},{"$f":"FN286*CustomRegion1!$D31","v":6038.2498559473433},{"$f":"FO286*CustomRegion1!$D31","v":2828.6376235131784},{"$f":"(FT286*'Default-Data'!$C$58/general_dollar_index)/CustomRegion1!$E31","v":1.9341112043605611},{"$f":"(FU286*'Default-Data'!$C$58/general_dollar_index)/CustomRegion1!$E31","v":0.90604063283736647},{"$f":"(FV286*'Default-Data'!$C$58/general_dollar_index)/CustomRegion1!$E31","v":6.1951496544128458E-4},null,null,null,null,null,null,null,null,null,null,null,null,"C50T52 Wholesale and retail trade; repairs",{"$f":"'General Impact Estimates'!C32","v":0},null,null,174833.54746656859,91865.614717349352,{"$f":"GL286*CustomRegion2!C35","v":0},{"$f":"GO286*CustomRegion2!$C35","v":128268.82382480301},{"$f":"GP286*CustomRegion2!$C35","v":67398.359871352135},{"$f":"GL286*CustomRegion2!D35","v":0},{"$f":"GO286*CustomRegion2!$D35","v":31239.790200117186},{"$f":"GP286*CustomRegion2!$D35","v":16414.827542886542},{"$f":"(GT286*'Default-Data'!$C$59/general_dollar_index)/CustomRegion2!$E35","v":0},{"$f":"(GU286*'Default-Data'!$C$59/general_dollar_index)/CustomRegion2!$E35","v":6.5514716210539294},{"$f":"(GV286*'Default-Data'!$C$59/general_dollar_index)/CustomRegion2!$E35","v":3.4424455517410029},null,null,null,null,null,null,null,null,null,null,null,null,"TRADETRANS",{"$f":"'General Impact Estimates'!C32","v":0},null,null,35720.121992559689,39248.73151700262,{"$f":"HM286*CustomRegion3!D34","v":0},{"$f":"HP286*CustomRegion3!$D34","v":8075.2985374108257},{"$f":"HQ286*CustomRegion3!$D34","v":8873.0162870244239},{"$f":"HM286*CustomRegion3!E34","v":0},{"$f":"HP286*CustomRegion3!$E34","v":2972.9865319218643},{"$f":"HQ286*CustomRegion3!$E34","v":3266.6727795434472},{"$f":"(HU286*'Default-Data'!$C$60/general_dollar_index)/CustomRegion3!$F34","v":0},{"$f":"(HV286*'Default-Data'!$C$60/general_dollar_index)/CustomRegion3!$F34","v":7.6219549417710164},{"$f":"(HW286*'Default-Data'!$C$60/general_dollar_index)/CustomRegion3!$F34","v":8.374889178894005}]
[null,null,null,null,null,null,null,null,null,null,null,null,null,null,null,null,null,null,null,null,null,null,null,null,null,null,null,null,null,286,"TTL_C64: Post and telecommunications",{"$f":"'General Impact Estimates'!C33","v":0},null,null,5339.0829919479656,12734.654143700092,{"$f":"'Colombia-IO-Data'!$AN36*Calculations!AF287","v":0},{"$f":"AI287*'Colombia-IO-Data'!$AN36","v":2919.0378926837093},{"$f":"AJ287*'Colombia-IO-Data'!$AN36","v":6962.4199608329427},{"$f":"AK287*'Colombia-IO-Data'!$AO36","v":0},{"$f":"AL287*'Colombia-IO-Data'!$AO36","v":708.54473234106456},{"$f":"AM287*'Colombia-IO-Data'!$AO36","v":1690.0040934579931},{"$f":"(AN287*'Default-Data'!$F$19/general_dollar_index)/'Colombia-IO-Data'!$AP36","v":0},{"$f":"(AO287*'Default-Data'!$F$19/general_dollar_index)/'Colombia-IO-Data'!$AP36","v":0.16267653257328563},{"$f":"(AP287*'Default-Data'!$F$19/general_dollar_index)/'Colombia-IO-Data'!$AP36","v":0.38801220785319174},null,null,null,null,null,null,null,null,null,null,null,null,"DOM_C64: Post and telecommunications",{"$f":"'General Impact Estimates'!C33","v":0},null,null,3040.1009243344301,6327.8060064044948,{"$f":"BG287*'Mexico-IO-Data'!AQ36","v":0},{"$f":"BJ287*'Mexico-IO-Data'!$AQ36","v":1854.8897343186684},{"$f":"BK287*'Mexico-IO-Data'!$AQ36","v":3860.8528776423354},{"$f":"BG287*'Mexico-IO-Data'!AR36","v":0},{"$f":"BJ287*'Mexico-IO-Data'!$AR36","v":474.17955792348471},{"$f":"BK287*'Mexico-IO-Data'!$AR36","v":986.97915938411097},{"$f":"(BO287*'Default-Data'!$F$19/general_dollar_index)/'Mexico-IO-Data'!$AS36","v":0},{"$f":"(BP287*'Default-Data'!$F$19/general_dollar_index)/'Mexico-IO-Data'!$AS36","v":3.9410480293069039E-2},{"$f":"(BQ287*'Default-Data'!$F$19/general_dollar_index)/'Mexico-IO-Data'!$AS36","v":8.2030787832599816E-2},null,null,null,null,null,null,null,null,null,null,null,null,"TTL_C64: Post and telecommunications",{"$f":"'General Impact Estimates'!C33","v":0},null,null,3141.7597720164413,5788.8261273934459,{"$f":"CH287*'Philippines-IO-Data'!$AN36","v":0},{"$f":"CK287*'Philippines-IO-Data'!$AN36","v":1902.9571013050879},{"$f":"CL287*'Philippines-IO-Data'!$AN36","v":3506.2794696978322},{"$f":"CH287*'Philippines-IO-Data'!AO36","v":0},{"$f":"CK287*'Philippines-IO-Data'!$AO36","v":337.43799555309113},{"$f":"CL287*'Philippines-IO-Data'!$AO36","v":621.74387183629176},{"$f":"(CP287*'Default-Data'!$F$19/general_dollar_index)/'Philippines-IO-Data'!$AP36","v":0},{"$f":"(CQ287*'Default-Data'!$F$19/general_dollar_index)/'Philippines-IO-Data'!$AP36","v":8.7987156640466857E-2},{"$f":"(CR287*'Default-Data'!$F$19/general_dollar_index)/'Philippines-IO-Data'!$AP36","v":0.16212008180004442},null,null,null,null,null,null,null,null,null,null,null,null,"DOM_C64: Post and telecommunications",{"$f":"'General Impact Estimates'!C33","v":0},null,null,13511.340784857299,36264.542201139884,{"$f":"DI287*'SouthAfrica-IO-Data'!AR36","v":0},{"$f":"DL287*'SouthAfrica-IO-Data'!$AR36","v":5486.7004630997235},{"$f":"DM287*'SouthAfrica-IO-Data'!$AR36","v":14726.346086399533},{"$f":"DI287*'SouthAfrica-IO-Data'!AS36","v":0},{"$f":"DL287*'SouthAfrica-IO-Data'!$AS36","v":1795.4919758396043},{"$f":"DM287*'SouthAfrica-IO-Data'!$AS36","v":4819.1142216335602},{"$f":"(DQ287*'Default-Data'!$F$19/general_dollar_index)/'SouthAfrica-IO-Data'!$AT36","v":0},{"$f":"(DR287*'Default-Data'!$F$19/general_dollar_index)/'SouthAfrica-IO-Data'!$AT36","v":0.10358885680343219},{"$f":"(DS287*'Default-Data'!$F$19/general_dollar_index)/'SouthAfrica-IO-Data'!$AT36","v":0.27803328544018946},null,null,null,null,null,null,null,null,null,null,null,null,"TOURISM",{"$f":"'General Impact Estimates'!C33","v":0},null,null,110.60832384967863,130.91333431438238,{"$f":"EJ287*'Zambia-IO-Data'!BO34","v":0},{"$f":"EM287*'Zambia-IO-Data'!$BO34","v":48.34457339525153},{"$f":"EN287*'Zambia-IO-Data'!$BO34","v":57.219466663106374},{"$f":"EJ287*'Zambia-IO-Data'!BN34","v":0},{"$f":"EM287*'Zambia-IO-Data'!$BN34","v":33.881781922072413},{"$f":"EN287*'Zambia-IO-Data'!$BN34","v":40.101656815262828},{"$f":"(ER287*'Default-Data'!$F$19/general_dollar_index)/'Zambia-IO-Data'!$BP34","v":0},{"$f":"(ES287*'Default-Data'!$F$19/general_dollar_index)/'Zambia-IO-Data'!$BP34","v":0.10117868961916822},{"$f":"(ET287*'Default-Data'!$F$19/general_dollar_index)/'Zambia-IO-Data'!$BP34","v":0.11975264752774556},null,null,null,null,null,null,null,null,null,null,null,null,"TTL_C64: Post and telecommunications",{"$f":"'General Impact Estimates'!C33","v":0},null,null,6390.0967968384948,11036.704154112333,{"$f":"FK287*CustomRegion1!C32","v":0},{"$f":"FN287*CustomRegion1!$C32","v":3870.4678142104221},{"$f":"FO287*CustomRegion1!$C32","v":6684.9078443676499},{"$f":"FK287*CustomRegion1!D32","v":0},{"$f":"FN287*CustomRegion1!$D32","v":686.32282891937348},{"$f":"FO287*CustomRegion1!$D32","v":1185.3876800026233},{"$f":"(FT287*'Default-Data'!$C$58/general_dollar_index)/CustomRegion1!$E32","v":0.17895908300153504},{"$f":"(FU287*'Default-Data'!$C$58/general_dollar_index)/CustomRegion1!$E32","v":0.30909053768267908},{"$f":"(FV287*'Default-Data'!$C$58/general_dollar_index)/CustomRegion1!$E32","v":4.6663686590720473E-5},null,null,null,null,null,null,null,null,null,null,null,null,"C55 Hotels and restaurants",{"$f":"'General Impact Estimates'!C33","v":0},null,null,3786.4263297570051,22823.911528290409,{"$f":"GL287*CustomRegion2!C36","v":0},{"$f":"GO287*CustomRegion2!$C36","v":2722.9572365313074},{"$f":"GP287*CustomRegion2!$C36","v":16413.506998272194},{"$f":"GL287*CustomRegion2!D36","v":0},{"$f":"GO287*CustomRegion2!$D36","v":752.34314355911715},{"$f":"GP287*CustomRegion2!$D36","v":4534.9920616601985},{"$f":"(GT287*'Default-Data'!$C$59/general_dollar_index)/CustomRegion2!$E36","v":0},{"$f":"(GU287*'Default-Data'!$C$59/general_dollar_index)/CustomRegion2!$E36","v":0.53826087361332997},{"$f":"(GV287*'Default-Data'!$C$59/general_dollar_index)/CustomRegion2!$E36","v":3.2445418155750447},null,null,null,null,null,null,null,null,null,null,null,null,"TOURISM",{"$f":"'General Impact Estimates'!C33","v":0},null,null,110.60832384967863,130.91333431438238,{"$f":"HM287*CustomRegion3!D35","v":0},{"$f":"HP287*CustomRegion3!$D35","v":48.34457339525153},{"$f":"HQ287*CustomRegion3!$D35","v":57.219466663106374},{"$f":"HM287*CustomRegion3!E35","v":0},{"$f":"HP287*CustomRegion3!$E35","v":33.881781922072413},{"$f":"HQ287*CustomRegion3!$E35","v":40.101656815262828},{"$f":"(HU287*'Default-Data'!$C$60/general_dollar_index)/CustomRegion3!$F35","v":0},{"$f":"(HV287*'Default-Data'!$C$60/general_dollar_index)/CustomRegion3!$F35","v":0.10117868961916822},{"$f":"(HW287*'Default-Data'!$C$60/general_dollar_index)/CustomRegion3!$F35","v":0.11975264752774556}]
[null,null,null,null,null,null,null,null,null,null,null,null,null,null,null,null,null,null,null,null,null,null,null,null,null,null,null,null,null,287,"TTL_C65T67: Financial intermediation",{"$f":"'General Impact Estimates'!C34","v":0},null,null,19588.512468474659,18959.903619020053,{"$f":"'Colombia-IO-Data'!$AN37*Calculations!AF288","v":0},{"$f":"AI288*'Colombia-IO-Data'!$AN37","v":13051.438822380716},{"$f":"AJ288*'Colombia-IO-Data'!$AN37","v":12632.609166220369},{"$f":"AK288*'Colombia-IO-Data'!$AO37","v":0},{"$f":"AL288*'Colombia-IO-Data'!$AO37","v":4646.3393353583497},{"$f":"AM288*'Colombia-IO-Data'!$AO37","v":4497.2351076393816},{"$f":"(AN288*'Default-Data'!$F$19/general_dollar_index)/'Colombia-IO-Data'!$AP37","v":0},{"$f":"(AO288*'Default-Data'!$F$19/general_dollar_index)/'Colombia-IO-Data'!$AP37","v":0.67018154703645327},{"$f":"(AP288*'Default-Data'!$F$19/general_dollar_index)/'Colombia-IO-Data'!$AP37","v":0.64867495985244461},null,null,null,null,null,null,null,null,null,null,null,null,"DOM_C65T67: Financial intermediation",{"$f":"'General Impact Estimates'!C34","v":0},null,null,13469.038260086996,9875.7994666143932,{"$f":"BG288*'Mexico-IO-Data'!AQ37","v":0},{"$f":"BJ288*'Mexico-IO-Data'!$AQ37","v":9156.1560847304954},{"$f":"BK288*'Mexico-IO-Data'!$AQ37","v":6713.4979967927948},{"$f":"BG288*'Mexico-IO-Data'!AR37","v":0},{"$f":"BJ288*'Mexico-IO-Data'!$AR37","v":2486.6872369126531},{"$f":"BK288*'Mexico-IO-Data'!$AR37","v":1823.2945822651616},{"$f":"(BO288*'Default-Data'!$F$19/general_dollar_index)/'Mexico-IO-Data'!$AS37","v":0},{"$f":"(BP288*'Default-Data'!$F$19/general_dollar_index)/'Mexico-IO-Data'!$AS37","v":0.19360558999053434},{"$f":"(BQ288*'Default-Data'!$F$19/general_dollar_index)/'Mexico-IO-Data'!$AS37","v":0.14195593964774544},null,null,null,null,null,null,null,null,null,null,null,null,"TTL_C65T67: Financial intermediation",{"$f":"'General Impact Estimates'!C34","v":0},null,null,24865.336440469931,18242.367159886991,{"$f":"CH288*'Philippines-IO-Data'!$AN37","v":0},{"$f":"CK288*'Philippines-IO-Data'!$AN37","v":15858.966654745796},{"$f":"CL288*'Philippines-IO-Data'!$AN37","v":11634.875449399307},{"$f":"CH288*'Philippines-IO-Data'!AO37","v":0},{"$f":"CK288*'Philippines-IO-Data'!$AO37","v":3474.4912123075424},{"$f":"CL288*'Philippines-IO-Data'!$AO37","v":2549.0483324229326},{"$f":"(CP288*'Default-Data'!$F$19/general_dollar_index)/'Philippines-IO-Data'!$AP37","v":0},{"$f":"(CQ288*'Default-Data'!$F$19/general_dollar_index)/'Philippines-IO-Data'!$AP37","v":0.90597563573758866},{"$f":"(CR288*'Default-Data'!$F$19/general_dollar_index)/'Philippines-IO-Data'!$AP37","v":0.66466585821610458},null,null,null,null,null,null,null,null,null,null,null,null,"DOM_C65T67: Financial intermediation",{"$f":"'General Impact Estimates'!C34","v":0},null,null,45717.66378637158,110346.92236587005,{"$f":"DI288*'SouthAfrica-IO-Data'!AR37","v":0},{"$f":"DL288*'SouthAfrica-IO-Data'!$AR37","v":26604.168980457107},{"$f":"DM288*'SouthAfrica-IO-Data'!$AR37","v":64213.433626285077},{"$f":"DI288*'SouthAfrica-IO-Data'!AS37","v":0},{"$f":"DL288*'SouthAfrica-IO-Data'!$AS37","v":13366.235968945964},{"$f":"DM288*'SouthAfrica-IO-Data'!$AS37","v":32261.556707734795},{"$f":"(DQ288*'Default-Data'!$F$19/general_dollar_index)/'SouthAfrica-IO-Data'!$AT37","v":0},{"$f":"(DR288*'Default-Data'!$F$19/general_dollar_index)/'SouthAfrica-IO-Data'!$AT37","v":0.85508537014748676},{"$f":"(DS288*'Default-Data'!$F$19/general_dollar_index)/'SouthAfrica-IO-Data'!$AT37","v":2.0638858406405158},null,null,null,null,null,null,null,null,null,null,null,null,"OTHER",{"$f":"'General Impact Estimates'!C34","v":0},null,null,12073.157078126353,7014.978652597305,{"$f":"EJ288*'Zambia-IO-Data'!BO35","v":0},{"$f":"EM288*'Zambia-IO-Data'!$BO35","v":4418.6730850433687},{"$f":"EN288*'Zambia-IO-Data'!$BO35","v":2567.4226852017364},{"$f":"EJ288*'Zambia-IO-Data'!BN35","v":0},{"$f":"EM288*'Zambia-IO-Data'!$BN35","v":3535.489729515848},{"$f":"EN288*'Zambia-IO-Data'!$BN35","v":2054.2584527426402},{"$f":"(ER288*'Default-Data'!$F$19/general_dollar_index)/'Zambia-IO-Data'!$BP35","v":0},{"$f":"(ES288*'Default-Data'!$F$19/general_dollar_index)/'Zambia-IO-Data'!$BP35","v":8.4936654120329607},{"$f":"(ET288*'Default-Data'!$F$19/general_dollar_index)/'Zambia-IO-Data'!$BP35","v":4.935153345736313},null,null,null,null,null,null,null,null,null,null,null,null,"TTL_C65T67: Financial intermediation",{"$f":"'General Impact Estimates'!C34","v":0},null,null,45652.163527870711,37085.654623406284,{"$f":"FK288*CustomRegion1!C33","v":0},{"$f":"FN288*CustomRegion1!$C33","v":29116.683815592925},{"$f":"FO288*CustomRegion1!$C33","v":23653.014366006475},{"$f":"FK288*CustomRegion1!D33","v":0},{"$f":"FN288*CustomRegion1!$D33","v":6379.0828400878836},{"$f":"FO288*CustomRegion1!$D33","v":5182.0646545517848},{"$f":"(FT288*'Default-Data'!$C$58/general_dollar_index)/CustomRegion1!$E33","v":1.6633496182116152},{"$f":"(FU288*'Default-Data'!$C$58/general_dollar_index)/CustomRegion1!$E33","v":1.3512264193417916},{"$f":"(FV288*'Default-Data'!$C$58/general_dollar_index)/CustomRegion1!$E33","v":4.3371939536790985E-4},null,null,null,null,null,null,null,null,null,null,null,null,"C60T63 Transport and storage",{"$f":"'General Impact Estimates'!C34","v":0},null,null,45708.346813598211,56279.629173161316,{"$f":"GL288*CustomRegion2!C37","v":0},{"$f":"GO288*CustomRegion2!$C37","v":28359.416219281928},{"$f":"GP288*CustomRegion2!$C37","v":34918.292601947636},{"$f":"GL288*CustomRegion2!D37","v":0},{"$f":"GO288*CustomRegion2!$D37","v":9630.2291601091147},{"$f":"GP288*CustomRegion2!$D37","v":11857.478201820793},{"$f":"(GT288*'Default-Data'!$C$59/general_dollar_index)/CustomRegion2!$E37","v":0},{"$f":"(GU288*'Default-Data'!$C$59/general_dollar_index)/CustomRegion2!$E37","v":1.35625882861262},{"$f":"(GV288*'Default-Data'!$C$59/general_dollar_index)/CustomRegion2!$E37","v":1.6699300950091753},null,null,null,null,null,null,null,null,null,null,null,null,"OTHER",{"$f":"'General Impact Estimates'!C34","v":0},null,null,12073.157078126353,7014.978652597305,{"$f":"HM288*CustomRegion3!D36","v":0},{"$f":"HP288*CustomRegion3!$D36","v":4418.6730850433687},{"$f":"HQ288*CustomRegion3!$D36","v":2567.4226852017364},{"$f":"HM288*CustomRegion3!E36","v":0},{"$f":"HP288*CustomRegion3!$E36","v":3535.489729515848},{"$f":"HQ288*CustomRegion3!$E36","v":2054.2584527426402},{"$f":"(HU288*'Default-Data'!$C$60/general_dollar_index)/CustomRegion3!$F36","v":0},{"$f":"(HV288*'Default-Data'!$C$60/general_dollar_index)/CustomRegion3!$F36","v":8.4936654120329607},{"$f":"(HW288*'Default-Data'!$C$60/general_dollar_index)/CustomRegion3!$F36","v":4.935153345736313}]
[null,null,null,null,null,null,null,null,null,null,null,null,null,null,null,null,null,null,null,null,null,null,null,null,null,null,null,null,null,288,"TTL_C70: Real estate activities",{"$f":"'General Impact Estimates'!C35","v":0},null,null,10478.313257078578,25645.705129955622,{"$f":"'Colombia-IO-Data'!$AN38*Calculations!AF289","v":0},{"$f":"AI289*'Colombia-IO-Data'!$AN38","v":9293.0092716444851},{"$f":"AJ289*'Colombia-IO-Data'!$AN38","v":22744.669843644751},{"$f":"AK289*'Colombia-IO-Data'!$AO38","v":0},{"$f":"AL289*'Colombia-IO-Data'!$AO38","v":306.17863553541486},{"$f":"AM289*'Colombia-IO-Data'!$AO38","v":749.37318740007174},{"$f":"(AN289*'Default-Data'!$F$19/general_dollar_index)/'Colombia-IO-Data'!$AP38","v":0},{"$f":"(AO289*'Default-Data'!$F$19/general_dollar_index)/'Colombia-IO-Data'!$AP38","v":6.6025389344848043E-2},{"$f":"(AP289*'Default-Data'!$F$19/general_dollar_index)/'Colombia-IO-Data'!$AP38","v":0.16159735108936613},null,null,null,null,null,null,null,null,null,null,null,null,"DOM_C70: Real estate activities",{"$f":"'General Impact Estimates'!C35","v":0},null,null,5335.8010614502773,17647.80605905057,{"$f":"BG289*'Mexico-IO-Data'!AQ38","v":0},{"$f":"BJ289*'Mexico-IO-Data'!$AQ38","v":4931.2704573111105},{"$f":"BK289*'Mexico-IO-Data'!$AQ38","v":16309.848072127766},{"$f":"BG289*'Mexico-IO-Data'!AR38","v":0},{"$f":"BJ289*'Mexico-IO-Data'!$AR38","v":70.649619260837071},{"$f":"BK289*'Mexico-IO-Data'!$AR38","v":233.66890266372332},{"$f":"(BO289*'Default-Data'!$F$19/general_dollar_index)/'Mexico-IO-Data'!$AS38","v":0},{"$f":"(BP289*'Default-Data'!$F$19/general_dollar_index)/'Mexico-IO-Data'!$AS38","v":3.1063528960498289E-2},{"$f":"(BQ289*'Default-Data'!$F$19/general_dollar_index)/'Mexico-IO-Data'!$AS38","v":0.10274054978645929},null,null,null,null,null,null,null,null,null,null,null,null,"TTL_C70: Real estate activities",{"$f":"'General Impact Estimates'!C35","v":0},null,null,5013.2360736798437,19645.666726334734,{"$f":"CH289*'Philippines-IO-Data'!$AN38","v":0},{"$f":"CK289*'Philippines-IO-Data'!$AN38","v":4068.0930120826897},{"$f":"CL289*'Philippines-IO-Data'!$AN38","v":15941.878330186857},{"$f":"CH289*'Philippines-IO-Data'!AO38","v":0},{"$f":"CK289*'Philippines-IO-Data'!$AO38","v":104.26319629930167},{"$f":"CL289*'Philippines-IO-Data'!$AO38","v":408.58239592435115},{"$f":"(CP289*'Default-Data'!$F$19/general_dollar_index)/'Philippines-IO-Data'!$AP38","v":0},{"$f":"(CQ289*'Default-Data'!$F$19/general_dollar_index)/'Philippines-IO-Data'!$AP38","v":2.7186690015704024E-2},{"$f":"(CR289*'Default-Data'!$F$19/general_dollar_index)/'Philippines-IO-Data'!$AP38","v":0.10653810105707821},null,null,null,null,null,null,null,null,null,null,null,null,"DOM_C70: Real estate activities",{"$f":"'General Impact Estimates'!C35","v":0},null,null,15596.179743940629,58679.271825743846,{"$f":"DI289*'SouthAfrica-IO-Data'!AR38","v":0},{"$f":"DL289*'SouthAfrica-IO-Data'!$AR38","v":9171.0852445169949},{"$f":"DM289*'SouthAfrica-IO-Data'!$AR38","v":34505.411763362266},{"$f":"DI289*'SouthAfrica-IO-Data'!AS38","v":0},{"$f":"DL289*'SouthAfrica-IO-Data'!$AS38","v":563.61433850836488},{"$f":"DM289*'SouthAfrica-IO-Data'!$AS38","v":2120.5500011673275},{"$f":"(DQ289*'Default-Data'!$F$19/general_dollar_index)/'SouthAfrica-IO-Data'!$AT38","v":0},{"$f":"(DR289*'Default-Data'!$F$19/general_dollar_index)/'SouthAfrica-IO-Data'!$AT38","v":3.6056401845931257E-2},{"$f":"(DS289*'Default-Data'!$F$19/general_dollar_index)/'SouthAfrica-IO-Data'!$AT38","v":0.13565908060258547},null,null,null,null,null,null,null,null,null,null,null,null,"FIRE",{"$f":"'General Impact Estimates'!C35","v":0},null,null,30052.011965835773,28512.291571241389,{"$f":"EJ289*'Zambia-IO-Data'!BO36","v":0},{"$f":"EM289*'Zambia-IO-Data'!$BO36","v":6260.6955202195359},{"$f":"EN289*'Zambia-IO-Data'!$BO36","v":5939.9276266160559},{"$f":"EJ289*'Zambia-IO-Data'!BN36","v":0},{"$f":"EM289*'Zambia-IO-Data'!$BN36","v":1491.8460635949814},{"$f":"EN289*'Zambia-IO-Data'!$BN36","v":1415.4110544407229},{"$f":"(ER289*'Default-Data'!$F$19/general_dollar_index)/'Zambia-IO-Data'!$BP36","v":0},{"$f":"(ES289*'Default-Data'!$F$19/general_dollar_index)/'Zambia-IO-Data'!$BP36","v":1.5238630568138003},{"$f":"(ET289*'Default-Data'!$F$19/general_dollar_index)/'Zambia-IO-Data'!$BP36","v":1.4457876510868048},null,null,null,null,null,null,null,null,null,null,null,null,"TTL_C70: Real estate activities",{"$f":"'General Impact Estimates'!C35","v":0},null,null,10234.236398778248,34255.148303805894,{"$f":"FK289*CustomRegion1!C34","v":0},{"$f":"FN289*CustomRegion1!$C34","v":8304.7805780492217},{"$f":"FO289*CustomRegion1!$C34","v":27797.04115156105},{"$f":"FK289*CustomRegion1!D34","v":0},{"$f":"FN289*CustomRegion1!$D34","v":212.84738698451707},{"$f":"FO289*CustomRegion1!$D34","v":712.4243102399513},{"$f":"(FT289*'Default-Data'!$C$58/general_dollar_index)/CustomRegion1!$E34","v":5.5500081869631089E-2},{"$f":"(FU289*'Default-Data'!$C$58/general_dollar_index)/CustomRegion1!$E34","v":0.18576505967211593},{"$f":"(FV289*'Default-Data'!$C$58/general_dollar_index)/CustomRegion1!$E34","v":1.4471679127354368E-5},null,null,null,null,null,null,null,null,null,null,null,null,"C64 Post and telecommunications",{"$f":"'General Impact Estimates'!C35","v":0},null,null,9298.3797731994291,21571.14925908178,{"$f":"GL289*CustomRegion2!C38","v":0},{"$f":"GO289*CustomRegion2!$C38","v":5716.3137706732987},{"$f":"GP289*CustomRegion2!$C38","v":13261.176739021288},{"$f":"GL289*CustomRegion2!D38","v":0},{"$f":"GO289*CustomRegion2!$D38","v":1564.3619971452715},{"$f":"GP289*CustomRegion2!$D38","v":3629.1361461615966},{"$f":"(GT289*'Default-Data'!$C$59/general_dollar_index)/CustomRegion2!$E38","v":0},{"$f":"(GU289*'Default-Data'!$C$59/general_dollar_index)/CustomRegion2!$E38","v":0.13001880116828712},{"$f":"(GV289*'Default-Data'!$C$59/general_dollar_index)/CustomRegion2!$E38","v":0.3016283519169447},null,null,null,null,null,null,null,null,null,null,null,null,"FIRE",{"$f":"'General Impact Estimates'!C35","v":0},null,null,30052.011965835773,28512.291571241389,{"$f":"HM289*CustomRegion3!D37","v":0},{"$f":"HP289*CustomRegion3!$D37","v":6260.6955202195359},{"$f":"HQ289*CustomRegion3!$D37","v":5939.9276266160559},{"$f":"HM289*CustomRegion3!E37","v":0},{"$f":"HP289*CustomRegion3!$E37","v":1491.8460635949814},{"$f":"HQ289*CustomRegion3!$E37","v":1415.4110544407229},{"$f":"(HU289*'Default-Data'!$C$60/general_dollar_index)/CustomRegion3!$F37","v":0},{"$f":"(HV289*'Default-Data'!$C$60/general_dollar_index)/CustomRegion3!$F37","v":1.5238630568138003},{"$f":"(HW289*'Default-Data'!$C$60/general_dollar_index)/CustomRegion3!$F37","v":1.4457876510868048}]
[null,null,null,null,null,null,null,null,null,null,null,null,null,null,null,null,null,null,null,null,null,null,null,null,null,null,null,null,null,289,"TTL_C71: Renting of machinery and equipment",{"$f":"'General Impact Estimates'!C36","v":0},null,null,1405.8990734313559,455.5443582454609,{"$f":"'Colombia-IO-Data'!$AN39*Calculations!AF290","v":0},{"$f":"AI290*'Colombia-IO-Data'!$AN39","v":1014.5693489769179},{"$f":"AJ290*'Colombia-IO-Data'!$AN39","v":328.74432575530926},{"$f":"AK290*'Colombia-IO-Data'!$AO39","v":0},{"$f":"AL290*'Colombia-IO-Data'!$AO39","v":387.39163181177315},{"$f":"AM290*'Colombia-IO-Data'!$AO39","v":125.52399787321757},{"$f":"(AN290*'Default-Data'!$F$19/general_dollar_index)/'Colombia-IO-Data'!$AP39","v":0},{"$f":"(AO290*'Default-Data'!$F$19/general_dollar_index)/'Colombia-IO-Data'!$AP39","v":8.8942200166850088E-2},{"$f":"(AP290*'Default-Data'!$F$19/general_dollar_index)/'Colombia-IO-Data'!$AP39","v":2.8819364249993817E-2},null,null,null,null,null,null,null,null,null,null,null,null,"DOM_C71: Renting of machinery and equipment",{"$f":"'General Impact Estimates'!C36","v":0},null,null,3266.783265971304,450.28244072157759,{"$f":"BG290*'Mexico-IO-Data'!AQ39","v":0},{"$f":"BJ290*'Mexico-IO-Data'!$AQ39","v":2687.5780934932386},{"$f":"BK290*'Mexico-IO-Data'!$AQ39","v":370.44674379650445},{"$f":"BG290*'Mexico-IO-Data'!AR39","v":0},{"$f":"BJ290*'Mexico-IO-Data'!$AR39","v":122.31477821257948},{"$f":"BK290*'Mexico-IO-Data'!$AR39","v":16.85945849043128},{"$f":"(BO290*'Default-Data'!$F$19/general_dollar_index)/'Mexico-IO-Data'!$AS39","v":0},{"$f":"(BP290*'Default-Data'!$F$19/general_dollar_index)/'Mexico-IO-Data'!$AS39","v":5.37798886258056E-2},{"$f":"(BQ290*'Default-Data'!$F$19/general_dollar_index)/'Mexico-IO-Data'!$AS39","v":7.4128393408928002E-3},null,null,null,null,null,null,null,null,null,null,null,null,"TTL_C71: Renting of machinery and equipment",{"$f":"'General Impact Estimates'!C36","v":0},null,null,704.98789973225178,376.77480824480392,{"$f":"CH290*'Philippines-IO-Data'!$AN39","v":0},{"$f":"CK290*'Philippines-IO-Data'!$AN39","v":356.42104365253459},{"$f":"CL290*'Philippines-IO-Data'!$AN39","v":190.48620611445807},{"$f":"CH290*'Philippines-IO-Data'!AO39","v":0},{"$f":"CK290*'Philippines-IO-Data'!$AO39","v":97.431693941278624},{"$f":"CL290*'Philippines-IO-Data'!$AO39","v":52.0715430940499},{"$f":"(CP290*'Default-Data'!$F$19/general_dollar_index)/'Philippines-IO-Data'!$AP39","v":0},{"$f":"(CQ290*'Default-Data'!$F$19/general_dollar_index)/'Philippines-IO-Data'!$AP39","v":2.5405371740979621E-2},{"$f":"(CR290*'Default-Data'!$F$19/general_dollar_index)/'Philippines-IO-Data'!$AP39","v":1.3577685616633929E-2},null,null,null,null,null,null,null,null,null,null,null,null,"DOM_C71: Renting of machinery and equipment",{"$f":"'General Impact Estimates'!C36","v":0},null,null,2064.7726965376414,3598.5051467904927,{"$f":"DI290*'SouthAfrica-IO-Data'!AR39","v":0},{"$f":"DL290*'SouthAfrica-IO-Data'!$AR39","v":880.59055892590516},{"$f":"DM290*'SouthAfrica-IO-Data'!$AR39","v":1534.7014534934876},{"$f":"DI290*'SouthAfrica-IO-Data'!AS39","v":0},{"$f":"DL290*'SouthAfrica-IO-Data'!$AS39","v":291.25543672770368},{"$f":"DM290*'SouthAfrica-IO-Data'!$AS39","v":507.60269634176052},{"$f":"(DQ290*'Default-Data'!$F$19/general_dollar_index)/'SouthAfrica-IO-Data'!$AT39","v":0},{"$f":"(DR290*'Default-Data'!$F$19/general_dollar_index)/'SouthAfrica-IO-Data'!$AT39","v":1.8632639996809502E-2},{"$f":"(DS290*'Default-Data'!$F$19/general_dollar_index)/'SouthAfrica-IO-Data'!$AT39","v":3.2473139072037825E-2},null,null,null,null,null,null,null,null,null,null,null,null,"PUBLIC",{"$f":"'General Impact Estimates'!C36","v":0},null,null,1170.550407877324,23536.177003710382,{"$f":"EJ290*'Zambia-IO-Data'!BO37","v":0},{"$f":"EM290*'Zambia-IO-Data'!$BO37","v":250.68441174909483},{"$f":"EN290*'Zambia-IO-Data'!$BO37","v":5040.4943241163328},{"$f":"EJ290*'Zambia-IO-Data'!BN37","v":0},{"$f":"EM290*'Zambia-IO-Data'!$BN37","v":163.06258633183381},{"$f":"EN290*'Zambia-IO-Data'!$BN37","v":3278.6882724242855},{"$f":"(ER290*'Default-Data'!$F$19/general_dollar_index)/'Zambia-IO-Data'!$BP37","v":0},{"$f":"(ES290*'Default-Data'!$F$19/general_dollar_index)/'Zambia-IO-Data'!$BP37","v":0.39174178274674215},{"$f":"(ET290*'Default-Data'!$F$19/general_dollar_index)/'Zambia-IO-Data'!$BP37","v":7.8767252366313016},null,null,null,null,null,null,null,null,null,null,null,null,"TTL_C71: Renting of machinery and equipment",{"$f":"'General Impact Estimates'!C36","v":0},null,null,3564.8081195065474,2075.9181694796866,{"$f":"FK290*CustomRegion1!C35","v":0},{"$f":"FN290*CustomRegion1!$C35","v":1802.2616145016179},{"$f":"FO290*CustomRegion1!$C35","v":1049.522865263669},{"$f":"FK290*CustomRegion1!D35","v":0},{"$f":"FN290*CustomRegion1!$D35","v":492.66844692094435},{"$f":"FO290*CustomRegion1!$D35","v":286.89885856580071},{"$f":"(FT290*'Default-Data'!$C$58/general_dollar_index)/CustomRegion1!$E35","v":0.12846358851793377},{"$f":"(FU290*'Default-Data'!$C$58/general_dollar_index)/CustomRegion1!$E35","v":7.4809046821250919E-2},{"$f":"(FV290*'Default-Data'!$C$58/general_dollar_index)/CustomRegion1!$E35","v":3.3496956580117925E-5},null,null,null,null,null,null,null,null,null,null,null,null,"C65T67 Finance and insurance",{"$f":"'General Impact Estimates'!C36","v":0},null,null,23343.352789731245,19223.754893790086,{"$f":"GL290*CustomRegion2!C39","v":0},{"$f":"GO290*CustomRegion2!$C39","v":14440.914388412053},{"$f":"GP290*CustomRegion2!$C39","v":11892.404709196704},{"$f":"GL290*CustomRegion2!D39","v":0},{"$f":"GO290*CustomRegion2!$D39","v":4519.7051615709452},{"$f":"GP290*CustomRegion2!$D39","v":3722.07475939184},{"$f":"(GT290*'Default-Data'!$C$59/general_dollar_index)/CustomRegion2!$E39","v":0},{"$f":"(GU290*'Default-Data'!$C$59/general_dollar_index)/CustomRegion2!$E39","v":0.35188992463548113},{"$f":"(GV290*'Default-Data'!$C$59/general_dollar_index)/CustomRegion2!$E39","v":0.28978894855937426},null,null,null,null,null,null,null,null,null,null,null,null,"PUBLIC",{"$f":"'General Impact Estimates'!C36","v":0},null,null,1170.550407877324,23536.177003710382,{"$f":"HM290*CustomRegion3!D38","v":0},{"$f":"HP290*CustomRegion3!$D38","v":250.68441174909483},{"$f":"HQ290*CustomRegion3!$D38","v":5040.4943241163328},{"$f":"HM290*CustomRegion3!E38","v":0},{"$f":"HP290*CustomRegion3!$E38","v":163.06258633183381},{"$f":"HQ290*CustomRegion3!$E38","v":3278.6882724242855},{"$f":"(HU290*'Default-Data'!$C$60/general_dollar_index)/CustomRegion3!$F38","v":0},{"$f":"(HV290*'Default-Data'!$C$60/general_dollar_index)/CustomRegion3!$F38","v":0.39174178274674215},{"$f":"(HW290*'Default-Data'!$C$60/general_dollar_index)/CustomRegion3!$F38","v":7.8767252366313016}]
[null,null,null,null,null,null,null,null,null,null,null,null,null,null,null,null,null,null,null,null,null,null,null,null,null,null,null,null,null,290,"TTL_C72: Computer and related activities",{"$f":"'General Impact Estimates'!C37","v":0},null,null,4350.977178058426,1790.75502224717,{"$f":"'Colombia-IO-Data'!$AN40*Calculations!AF291","v":0},{"$f":"AI291*'Colombia-IO-Data'!$AN40","v":3105.8982779776493},{"$f":"AJ291*'Colombia-IO-Data'!$AN40","v":1278.3112188970956},{"$f":"AK291*'Colombia-IO-Data'!$AO40","v":0},{"$f":"AL291*'Colombia-IO-Data'!$AO40","v":1198.9006457788728},{"$f":"AM291*'Colombia-IO-Data'!$AO40","v":493.43797145861799},{"$f":"(AN291*'Default-Data'!$F$19/general_dollar_index)/'Colombia-IO-Data'!$AP40","v":0},{"$f":"(AO291*'Default-Data'!$F$19/general_dollar_index)/'Colombia-IO-Data'!$AP40","v":0.11771364870934133},{"$f":"(AP291*'Default-Data'!$F$19/general_dollar_index)/'Colombia-IO-Data'!$AP40","v":4.844803798933222E-2},null,null,null,null,null,null,null,null,null,null,null,null,"DOM_C72: Computer and related activities",{"$f":"'General Impact Estimates'!C37","v":0},null,null,279.05895008929872,124.30833146431934,{"$f":"BG291*'Mexico-IO-Data'!AQ40","v":0},{"$f":"BJ291*'Mexico-IO-Data'!$AQ40","v":197.75824193242082},{"$f":"BK291*'Mexico-IO-Data'!$AQ40","v":88.092487555299257},{"$f":"BG291*'Mexico-IO-Data'!AR40","v":0},{"$f":"BJ291*'Mexico-IO-Data'!$AR40","v":116.57170782826405},{"$f":"BK291*'Mexico-IO-Data'!$AR40","v":51.92750310083435},{"$f":"(BO291*'Default-Data'!$F$19/general_dollar_index)/'Mexico-IO-Data'!$AS40","v":0},{"$f":"(BP291*'Default-Data'!$F$19/general_dollar_index)/'Mexico-IO-Data'!$AS40","v":9.6886230486480183E-3},{"$f":"(BQ291*'Default-Data'!$F$19/general_dollar_index)/'Mexico-IO-Data'!$AS40","v":4.315849984308986E-3},null,null,null,null,null,null,null,null,null,null,null,null,"TTL_C72: Computer and related activities",{"$f":"'General Impact Estimates'!C37","v":0},null,null,2764.4633905042256,1292.6647497901158,{"$f":"CH291*'Philippines-IO-Data'!$AN40","v":0},{"$f":"CK291*'Philippines-IO-Data'!$AN40","v":1381.3162342402725},{"$f":"CL291*'Philippines-IO-Data'!$AN40","v":645.90430477342852},{"$f":"CH291*'Philippines-IO-Data'!AO40","v":0},{"$f":"CK291*'Philippines-IO-Data'!$AO40","v":481.76135748086716},{"$f":"CL291*'Philippines-IO-Data'!$AO40","v":225.27190150742558},{"$f":"(CP291*'Default-Data'!$F$19/general_dollar_index)/'Philippines-IO-Data'!$AP40","v":0},{"$f":"(CQ291*'Default-Data'!$F$19/general_dollar_index)/'Philippines-IO-Data'!$AP40","v":0.12561955850441189},{"$f":"(CR291*'Default-Data'!$F$19/general_dollar_index)/'Philippines-IO-Data'!$AP40","v":5.8739781369733499E-2},null,null,null,null,null,null,null,null,null,null,null,null,"DOM_C72: Computer and related activities",{"$f":"'General Impact Estimates'!C37","v":0},null,null,329.2076212291679,571.21770803547963,{"$f":"DI291*'SouthAfrica-IO-Data'!AR40","v":0},{"$f":"DL291*'SouthAfrica-IO-Data'!$AR40","v":164.48319228731387},{"$f":"DM291*'SouthAfrica-IO-Data'!$AR40","v":285.39956565377963},{"$f":"DI291*'SouthAfrica-IO-Data'!AS40","v":0},{"$f":"DL291*'SouthAfrica-IO-Data'!$AS40","v":124.35749541546365},{"$f":"DM291*'SouthAfrica-IO-Data'!$AS40","v":215.77630324300665},{"$f":"(DQ291*'Default-Data'!$F$19/general_dollar_index)/'SouthAfrica-IO-Data'!$AT40","v":0},{"$f":"(DR291*'Default-Data'!$F$19/general_dollar_index)/'SouthAfrica-IO-Data'!$AT40","v":7.9555886372946905E-3},{"$f":"(DS291*'Default-Data'!$F$19/general_dollar_index)/'SouthAfrica-IO-Data'!$AT40","v":1.380397297760355E-2},null,null,null,null,null,null,null,null,null,null,null,null,"LNONE",{"$f":"'General Impact Estimates'!C37","v":0},null,null,{"$f":"'General Impact Estimates'!F37","v":0},187907.54878387216,{"$f":"EJ291*'Zambia-IO-Data'!BO38","v":0},{"$f":"EM291*'Zambia-IO-Data'!$BO38","v":0},{"$f":"EN291*'Zambia-IO-Data'!$BO38","v":0},{"$f":"EJ291*'Zambia-IO-Data'!BN38","v":0},{"$f":"EM291*'Zambia-IO-Data'!$BN38","v":0},{"$f":"EN291*'Zambia-IO-Data'!$BN38","v":0},0,0,0,null,null,null,null,null,null,null,null,null,null,null,null,"TTL_C72: Computer and related activities",{"$f":"'General Impact Estimates'!C37","v":0},null,null,15271.962419343379,6295.4090026985632,{"$f":"FK291*CustomRegion1!C36","v":0},{"$f":"FN291*CustomRegion1!$C36","v":7630.9238498176137},{"$f":"FO291*CustomRegion1!$C36","v":3145.6197562535949},{"$f":"FK291*CustomRegion1!D36","v":0},{"$f":"FN291*CustomRegion1!$D36","v":2661.4356232070377},{"$f":"FO291*CustomRegion1!$D36","v":1097.0971066048905},{"$f":"(FT291*'Default-Data'!$C$58/general_dollar_index)/CustomRegion1!$E36","v":0.69397091066703076},{"$f":"(FU291*'Default-Data'!$C$58/general_dollar_index)/CustomRegion1!$E36","v":0.28606871852242194},{"$f":"(FV291*'Default-Data'!$C$58/general_dollar_index)/CustomRegion1!$E36","v":1.8095332483440043E-4},null,null,null,null,null,null,null,null,null,null,null,null,"C70 Real estate activities",{"$f":"'General Impact Estimates'!C37","v":0},null,null,12819.670058615067,63966.306683984018,{"$f":"GL291*CustomRegion2!C40","v":0},{"$f":"GO291*CustomRegion2!$C40","v":11482.200774579162},{"$f":"GP291*CustomRegion2!$C40","v":57292.736302540696},{"$f":"GL291*CustomRegion2!D40","v":0},{"$f":"GO291*CustomRegion2!$D40","v":113.01789749203957},{"$f":"GP291*CustomRegion2!$D40","v":563.92539423404389},{"$f":"(GT291*'Default-Data'!$C$59/general_dollar_index)/CustomRegion2!$E40","v":0},{"$f":"(GU291*'Default-Data'!$C$59/general_dollar_index)/CustomRegion2!$E40","v":4.9692196058934601E-2},{"$f":"(GV291*'Default-Data'!$C$59/general_dollar_index)/CustomRegion2!$E40","v":0.2479491467699961},null,null,null,null,null,null,null,null,null,null,null,null,"LNONE",{"$f":"'General Impact Estimates'!C37","v":0},null,null,0,187907.54878387216,{"$f":"HM291*CustomRegion3!D39","v":0},{"$f":"HP291*CustomRegion3!$D39","v":0},{"$f":"HQ291*CustomRegion3!$D39","v":0},{"$f":"HM291*CustomRegion3!E39","v":0},{"$f":"HP291*CustomRegion3!$E39","v":0},{"$f":"HQ291*CustomRegion3!$E39","v":0},0,0,0]
[null,null,null,null,null,null,null,null,null,null,null,null,null,null,null,null,null,null,null,null,null,null,null,null,null,null,null,null,null,291,"TTL_C73T74: R&D and other business activities",{"$f":"'General Impact Estimates'!C38","v":0},null,null,42162.640690474487,15543.314240127031,{"$f":"'Colombia-IO-Data'!$AN41*Calculations!AF292","v":0},{"$f":"AI292*'Colombia-IO-Data'!$AN41","v":30749.958347791435},{"$f":"AJ292*'Colombia-IO-Data'!$AN41","v":11336.013533386704},{"$f":"AK292*'Colombia-IO-Data'!$AO41","v":0},{"$f":"AL292*'Colombia-IO-Data'!$AO41","v":11530.870165252083},{"$f":"AM292*'Colombia-IO-Data'!$AO41","v":4250.8708066074805},{"$f":"(AN292*'Default-Data'!$F$19/general_dollar_index)/'Colombia-IO-Data'!$AP41","v":0},{"$f":"(AO292*'Default-Data'!$F$19/general_dollar_index)/'Colombia-IO-Data'!$AP41","v":1.1321545323413387},{"$f":"(AP292*'Default-Data'!$F$19/general_dollar_index)/'Colombia-IO-Data'!$AP41","v":0.41737029219190136},null,null,null,null,null,null,null,null,null,null,null,null,"DOM_C73T74: R&D and other business activities",{"$f":"'General Impact Estimates'!C38","v":0},null,null,39181.410571375418,9559.2978328606987,{"$f":"BG292*'Mexico-IO-Data'!AQ41","v":0},{"$f":"BJ292*'Mexico-IO-Data'!$AQ41","v":29430.94702832355},{"$f":"BK292*'Mexico-IO-Data'!$AQ41","v":7180.425207877227},{"$f":"BG292*'Mexico-IO-Data'!AR41","v":0},{"$f":"BJ292*'Mexico-IO-Data'!$AR41","v":13018.022629086548},{"$f":"BK292*'Mexico-IO-Data'!$AR41","v":3176.0764528797345},{"$f":"(BO292*'Default-Data'!$F$19/general_dollar_index)/'Mexico-IO-Data'!$AS41","v":0},{"$f":"(BP292*'Default-Data'!$F$19/general_dollar_index)/'Mexico-IO-Data'!$AS41","v":3.4931137146831088},{"$f":"(BQ292*'Default-Data'!$F$19/general_dollar_index)/'Mexico-IO-Data'!$AS41","v":0.85223359434387125},null,null,null,null,null,null,null,null,null,null,null,null,"TTL_C73T74: R&D and other business activities",{"$f":"'General Impact Estimates'!C38","v":0},null,null,8176.6038441296114,4862.6412168845691,{"$f":"CH292*'Philippines-IO-Data'!$AN41","v":0},{"$f":"CK292*'Philippines-IO-Data'!$AN41","v":3961.5629199328168},{"$f":"CL292*'Philippines-IO-Data'!$AN41","v":2355.9486927542948},{"$f":"CH292*'Philippines-IO-Data'!AO41","v":0},{"$f":"CK292*'Philippines-IO-Data'!$AO41","v":1550.3024853843494},{"$f":"CL292*'Philippines-IO-Data'!$AO41","v":921.96771517563911},{"$f":"(CP292*'Default-Data'!$F$19/general_dollar_index)/'Philippines-IO-Data'!$AP41","v":0},{"$f":"(CQ292*'Default-Data'!$F$19/general_dollar_index)/'Philippines-IO-Data'!$AP41","v":0.4042422887145089},{"$f":"(CR292*'Default-Data'!$F$19/general_dollar_index)/'Philippines-IO-Data'!$AP41","v":0.24040362627109368},null,null,null,null,null,null,null,null,null,null,null,null,"DOM_C73T74: R&D and other business activities",{"$f":"'General Impact Estimates'!C38","v":0},null,null,39102.446300594791,79438.282679650583,{"$f":"DI292*'SouthAfrica-IO-Data'!AR41","v":0},{"$f":"DL292*'SouthAfrica-IO-Data'!$AR41","v":16659.498898051286},{"$f":"DM292*'SouthAfrica-IO-Data'!$AR41","v":33844.480536876159},{"$f":"DI292*'SouthAfrica-IO-Data'!AS41","v":0},{"$f":"DL292*'SouthAfrica-IO-Data'!$AS41","v":10754.735126257601},{"$f":"DM292*'SouthAfrica-IO-Data'!$AS41","v":21848.701805938508},{"$f":"(DQ292*'Default-Data'!$F$19/general_dollar_index)/'SouthAfrica-IO-Data'!$AT41","v":0},{"$f":"(DR292*'Default-Data'!$F$19/general_dollar_index)/'SouthAfrica-IO-Data'!$AT41","v":0.68801842849699102},{"$f":"(DS292*'Default-Data'!$F$19/general_dollar_index)/'SouthAfrica-IO-Data'!$AT41","v":1.397738698791374},null,null,null,null,null,null,null,null,null,null,null,null,"LPRIM",{"$f":"'General Impact Estimates'!C38","v":0},null,null,{"$f":"'General Impact Estimates'!F38","v":0},135453.64755128132,{"$f":"EJ292*'Zambia-IO-Data'!BO39","v":0},{"$f":"EM292*'Zambia-IO-Data'!$BO39","v":0},{"$f":"EN292*'Zambia-IO-Data'!$BO39","v":0},{"$f":"EJ292*'Zambia-IO-Data'!BN39","v":0},{"$f":"EM292*'Zambia-IO-Data'!$BN39","v":0},{"$f":"EN292*'Zambia-IO-Data'!$BN39","v":0},0,0,0,null,null,null,null,null,null,null,null,null,null,null,null,"TTL_C73T74: R&D and other business activities",{"$f":"'General Impact Estimates'!C38","v":0},null,null,22879.177367223208,10920.179873292836,{"$f":"FK292*CustomRegion1!C37","v":0},{"$f":"FN292*CustomRegion1!$C37","v":11084.956838361515},{"$f":"FO292*CustomRegion1!$C37","v":5290.8249549221764},{"$f":"FK292*CustomRegion1!D37","v":0},{"$f":"FN292*CustomRegion1!$D37","v":4337.9435046765675},{"$f":"FO292*CustomRegion1!$D37","v":2070.4906732841923},{"$f":"(FT292*'Default-Data'!$C$58/general_dollar_index)/CustomRegion1!$E37","v":1.1311213309510677},{"$f":"(FU292*'Default-Data'!$C$58/general_dollar_index)/CustomRegion1!$E37","v":0.53988166594659315},{"$f":"(FV292*'Default-Data'!$C$58/general_dollar_index)/CustomRegion1!$E37","v":2.9494055511631391E-4},null,null,null,null,null,null,null,null,null,null,null,null,"C71 Renting of machinery and equipment",{"$f":"'General Impact Estimates'!C38","v":0},null,null,6989.2756180949946,3889.0282528534663,{"$f":"GL292*CustomRegion2!C41","v":0},{"$f":"GO292*CustomRegion2!$C41","v":5936.1323682558632},{"$f":"GP292*CustomRegion2!$C41","v":3303.0299210202415},{"$f":"GL292*CustomRegion2!D41","v":0},{"$f":"GO292*CustomRegion2!$D41","v":266.13846402098216},{"$f":"GP292*CustomRegion2!$D41","v":148.0868779976274},{"$f":"(GT292*'Default-Data'!$C$59/general_dollar_index)/CustomRegion2!$E41","v":0},{"$f":"(GU292*'Default-Data'!$C$59/general_dollar_index)/CustomRegion2!$E41","v":0.11701690640534047},{"$f":"(GV292*'Default-Data'!$C$59/general_dollar_index)/CustomRegion2!$E41","v":6.5111476487447001E-2},null,null,null,null,null,null,null,null,null,null,null,null,"LPRIM",{"$f":"'General Impact Estimates'!C38","v":0},null,null,0,135453.64755128132,{"$f":"HM292*CustomRegion3!D40","v":0},{"$f":"HP292*CustomRegion3!$D40","v":0},{"$f":"HQ292*CustomRegion3!$D40","v":0},{"$f":"HM292*CustomRegion3!E40","v":0},{"$f":"HP292*CustomRegion3!$E40","v":0},{"$f":"HQ292*CustomRegion3!$E40","v":0},0,0,0]
[null,null,null,null,null,null,null,null,null,null,null,null,null,null,null,null,null,null,null,null,null,null,null,null,null,null,null,null,null,292,"TTL_C75: Public administration and defence; compulsory social security",{"$f":"'General Impact Estimates'!C39","v":0},null,null,23.963993547661786,30818.960371153833,{"$f":"'Colombia-IO-Data'!$AN42*Calculations!AF293","v":0},{"$f":"AI293*'Colombia-IO-Data'!$AN42","v":14.510520297754855},{"$f":"AJ293*'Colombia-IO-Data'!$AN42","v":18661.294876911878},{"$f":"AK293*'Colombia-IO-Data'!$AO42","v":0},{"$f":"AL293*'Colombia-IO-Data'!$AO42","v":12.18239369409001},{"$f":"AM293*'Colombia-IO-Data'!$AO42","v":15667.201200719219},{"$f":"(AN293*'Default-Data'!$F$19/general_dollar_index)/'Colombia-IO-Data'!$AP42","v":0},{"$f":"(AO293*'Default-Data'!$F$19/general_dollar_index)/'Colombia-IO-Data'!$AP42","v":1.1961241465621014E-3},{"$f":"(AP293*'Default-Data'!$F$19/general_dollar_index)/'Colombia-IO-Data'!$AP42","v":1.5382787763884385},null,null,null,null,null,null,null,null,null,null,null,null,"DOM_C75: Public administration and defence; compulsory social security",{"$f":"'General Impact Estimates'!C39","v":0},null,null,21.764043609531083,12201.718020528622,{"$f":"BG293*'Mexico-IO-Data'!AQ42","v":0},{"$f":"BJ293*'Mexico-IO-Data'!$AQ42","v":15.596425410394895},{"$f":"BK293*'Mexico-IO-Data'!$AQ42","v":8743.9259174479339},{"$f":"BG293*'Mexico-IO-Data'!AR42","v":0},{"$f":"BJ293*'Mexico-IO-Data'!$AR42","v":15.375404791520914},{"$f":"BK293*'Mexico-IO-Data'!$AR42","v":8620.0136832782664},{"$f":"(BO293*'Default-Data'!$F$19/general_dollar_index)/'Mexico-IO-Data'!$AS42","v":0},{"$f":"(BP293*'Default-Data'!$F$19/general_dollar_index)/'Mexico-IO-Data'!$AS42","v":1.0922479841925134E-2},{"$f":"(BQ293*'Default-Data'!$F$19/general_dollar_index)/'Mexico-IO-Data'!$AS42","v":6.1235412640744089},null,null,null,null,null,null,null,null,null,null,null,null,"TTL_C75: Public administration and defence; compulsory social security",{"$f":"'General Impact Estimates'!C39","v":0},null,null,128.37462855354678,16649.249728002356,{"$f":"CH293*'Philippines-IO-Data'!$AN42","v":0},{"$f":"CK293*'Philippines-IO-Data'!$AN42","v":71.506974088480746},{"$f":"CL293*'Philippines-IO-Data'!$AN42","v":9273.9311677643564},{"$f":"CH293*'Philippines-IO-Data'!AO42","v":0},{"$f":"CK293*'Philippines-IO-Data'!$AO42","v":60.731404512301602},{"$f":"CL293*'Philippines-IO-Data'!$AO42","v":7876.4186619311749},{"$f":"(CP293*'Default-Data'!$F$19/general_dollar_index)/'Philippines-IO-Data'!$AP42","v":0},{"$f":"(CQ293*'Default-Data'!$F$19/general_dollar_index)/'Philippines-IO-Data'!$AP42","v":1.5835749596191221E-2},{"$f":"(CR293*'Default-Data'!$F$19/general_dollar_index)/'Philippines-IO-Data'!$AP42","v":2.0537808181242503},null,null,null,null,null,null,null,null,null,null,null,null,"DOM_C75: Public administration and defence; compulsory social security",{"$f":"'General Impact Estimates'!C39","v":0},null,null,84.37272770649264,113544.95124583381,{"$f":"DI293*'SouthAfrica-IO-Data'!AR42","v":0},{"$f":"DL293*'SouthAfrica-IO-Data'!$AR42","v":52.225235394418576},{"$f":"DM293*'SouthAfrica-IO-Data'!$AR42","v":70282.328992489522},{"$f":"DI293*'SouthAfrica-IO-Data'!AS42","v":0},{"$f":"DL293*'SouthAfrica-IO-Data'!$AS42","v":46.06407628911824},{"$f":"DM293*'SouthAfrica-IO-Data'!$AS42","v":61990.923354132778},{"$f":"(DQ293*'Default-Data'!$F$19/general_dollar_index)/'SouthAfrica-IO-Data'!$AT42","v":0},{"$f":"(DR293*'Default-Data'!$F$19/general_dollar_index)/'SouthAfrica-IO-Data'!$AT42","v":2.8208724621909976E-3},{"$f":"(DS293*'Default-Data'!$F$19/general_dollar_index)/'SouthAfrica-IO-Data'!$AT42","v":3.7962009158267933},null,null,null,null,null,null,null,null,null,null,null,null,"LSECD",{"$f":"'General Impact Estimates'!C39","v":0},null,null,{"$f":"'General Impact Estimates'!F39","v":0},36120.758300343979,{"$f":"EJ293*'Zambia-IO-Data'!BO40","v":0},{"$f":"EM293*'Zambia-IO-Data'!$BO40","v":0},{"$f":"EN293*'Zambia-IO-Data'!$BO40","v":0},{"$f":"EJ293*'Zambia-IO-Data'!BN40","v":0},{"$f":"EM293*'Zambia-IO-Data'!$BN40","v":0},{"$f":"EN293*'Zambia-IO-Data'!$BN40","v":0},0,0,0,null,null,null,null,null,null,null,null,null,null,null,null,"TTL_C75: Public administration and defence; compulsory social security",{"$f":"'General Impact Estimates'!C39","v":0},null,null,329.42147016195935,28202.539143385326,{"$f":"FK293*CustomRegion1!C38","v":0},{"$f":"FN293*CustomRegion1!$C38","v":183.49367625422155},{"$f":"FO293*CustomRegion1!$C38","v":15709.320903033693},{"$f":"FK293*CustomRegion1!D38","v":0},{"$f":"FN293*CustomRegion1!$D38","v":155.84254291414115},{"$f":"FO293*CustomRegion1!$D38","v":13342.042990033116},{"$f":"(FT293*'Default-Data'!$C$58/general_dollar_index)/CustomRegion1!$E38","v":4.0636035109679301E-2},{"$f":"(FU293*'Default-Data'!$C$58/general_dollar_index)/CustomRegion1!$E38","v":3.4789455898222506},{"$f":"(FV293*'Default-Data'!$C$58/general_dollar_index)/CustomRegion1!$E38","v":1.0595870155589271E-5},null,null,null,null,null,null,null,null,null,null,null,null,"C72 Computer and related activities",{"$f":"'General Impact Estimates'!C39","v":0},null,null,292.2636455119686,310.30049191822883,{"$f":"GL293*CustomRegion2!C42","v":0},{"$f":"GO293*CustomRegion2!$C42","v":151.21025823430213},{"$f":"GP293*CustomRegion2!$C42","v":160.54209352994911},{"$f":"GL293*CustomRegion2!D42","v":0},{"$f":"GO293*CustomRegion2!$D42","v":99.056938639512467},{"$f":"GP293*CustomRegion2!$D42","v":105.17016830441125},{"$f":"(GT293*'Default-Data'!$C$59/general_dollar_index)/CustomRegion2!$E42","v":0},{"$f":"(GU293*'Default-Data'!$C$59/general_dollar_index)/CustomRegion2!$E42","v":8.2329182330002481E-3},{"$f":"(GV293*'Default-Data'!$C$59/general_dollar_index)/CustomRegion2!$E42","v":8.741007021750553E-3},null,null,null,null,null,null,null,null,null,null,null,null,"LSECD",{"$f":"'General Impact Estimates'!C39","v":0},null,null,0,36120.758300343979,{"$f":"HM293*CustomRegion3!D41","v":0},{"$f":"HP293*CustomRegion3!$D41","v":0},{"$f":"HQ293*CustomRegion3!$D41","v":0},{"$f":"HM293*CustomRegion3!E41","v":0},{"$f":"HP293*CustomRegion3!$E41","v":0},{"$f":"HQ293*CustomRegion3!$E41","v":0},0,0,0]
[null,null,null,null,null,null,null,null,null,null,null,null,null,null,null,null,null,null,null,null,null,null,null,null,null,null,null,null,null,293,"TTL_C80: Education",{"$f":"'General Impact Estimates'!C40","v":0},null,null,208.75917725655574,17952.26063293215,{"$f":"'Colombia-IO-Data'!$AN43*Calculations!AF294","v":0},{"$f":"AI294*'Colombia-IO-Data'!$AN43","v":164.5785586015877},{"$f":"AJ294*'Colombia-IO-Data'!$AN43","v":14152.945118082069},{"$f":"AK294*'Colombia-IO-Data'!$AO43","v":0},{"$f":"AL294*'Colombia-IO-Data'!$AO43","v":121.16186679361824},{"$f":"AM294*'Colombia-IO-Data'!$AO43","v":10419.32354800625},{"$f":"(AN294*'Default-Data'!$F$19/general_dollar_index)/'Colombia-IO-Data'!$AP43","v":0},{"$f":"(AO294*'Default-Data'!$F$19/general_dollar_index)/'Colombia-IO-Data'!$AP43","v":1.1896236335285592E-2},{"$f":"(AP294*'Default-Data'!$F$19/general_dollar_index)/'Colombia-IO-Data'!$AP43","v":1.0230177089630101},null,null,null,null,null,null,null,null,null,null,null,null,"DOM_C80: Education",{"$f":"'General Impact Estimates'!C40","v":0},null,null,183.65527415354632,10956.69074040572,{"$f":"BG294*'Mexico-IO-Data'!AQ43","v":0},{"$f":"BJ294*'Mexico-IO-Data'!$AQ43","v":164.77681155106171},{"$f":"BK294*'Mexico-IO-Data'!$AQ43","v":9830.420463970293},{"$f":"BG294*'Mexico-IO-Data'!AR43","v":0},{"$f":"BJ294*'Mexico-IO-Data'!$AR43","v":142.10016878999849},{"$f":"BK294*'Mexico-IO-Data'!$AR43","v":8477.554542156895},{"$f":"(BO294*'Default-Data'!$F$19/general_dollar_index)/'Mexico-IO-Data'!$AS43","v":0},{"$f":"(BP294*'Default-Data'!$F$19/general_dollar_index)/'Mexico-IO-Data'!$AS43","v":3.5388519911815713E-2},{"$f":"(BQ294*'Default-Data'!$F$19/general_dollar_index)/'Mexico-IO-Data'!$AS43","v":2.1112438519477581},null,null,null,null,null,null,null,null,null,null,null,null,"TTL_C80: Education",{"$f":"'General Impact Estimates'!C40","v":0},null,null,147.3178053102051,16145.215475463963,{"$f":"CH294*'Philippines-IO-Data'!$AN43","v":0},{"$f":"CK294*'Philippines-IO-Data'!$AN43","v":100.25919040690667},{"$f":"CL294*'Philippines-IO-Data'!$AN43","v":10987.851937561722},{"$f":"CH294*'Philippines-IO-Data'!AO43","v":0},{"$f":"CK294*'Philippines-IO-Data'!$AO43","v":69.737802166177332},{"$f":"CL294*'Philippines-IO-Data'!$AO43","v":7642.8768429406828},{"$f":"(CP294*'Default-Data'!$F$19/general_dollar_index)/'Philippines-IO-Data'!$AP43","v":0},{"$f":"(CQ294*'Default-Data'!$F$19/general_dollar_index)/'Philippines-IO-Data'!$AP43","v":1.818417310386114E-2},{"$f":"(CR294*'Default-Data'!$F$19/general_dollar_index)/'Philippines-IO-Data'!$AP43","v":1.9928846508863707},null,null,null,null,null,null,null,null,null,null,null,null,"DOM_C80: Education",{"$f":"'General Impact Estimates'!C40","v":0},null,null,67.414982284491572,6414.3252231645683,{"$f":"DI294*'SouthAfrica-IO-Data'!AR43","v":0},{"$f":"DL294*'SouthAfrica-IO-Data'!$AR43","v":34.391433960774101},{"$f":"DM294*'SouthAfrica-IO-Data'!$AR43","v":3272.2376367981205},{"$f":"DI294*'SouthAfrica-IO-Data'!AS43","v":0},{"$f":"DL294*'SouthAfrica-IO-Data'!$AS43","v":17.447201109536635},{"$f":"DM294*'SouthAfrica-IO-Data'!$AS43","v":1660.0467486330615},{"$f":"(DQ294*'Default-Data'!$F$19/general_dollar_index)/'SouthAfrica-IO-Data'!$AT43","v":0},{"$f":"(DR294*'Default-Data'!$F$19/general_dollar_index)/'SouthAfrica-IO-Data'!$AT43","v":1.0684319130442768E-3},{"$f":"(DS294*'Default-Data'!$F$19/general_dollar_index)/'SouthAfrica-IO-Data'!$AT43","v":0.10165796291621117},null,null,null,null,null,null,null,null,null,null,null,null,"LPOST",{"$f":"'General Impact Estimates'!C40","v":0},null,null,{"$f":"'General Impact Estimates'!F40","v":0},30954.689685518315,{"$f":"EJ294*'Zambia-IO-Data'!BO41","v":0},{"$f":"EM294*'Zambia-IO-Data'!$BO41","v":0},{"$f":"EN294*'Zambia-IO-Data'!$BO41","v":0},{"$f":"EJ294*'Zambia-IO-Data'!BN41","v":0},{"$f":"EM294*'Zambia-IO-Data'!$BN41","v":0},{"$f":"EN294*'Zambia-IO-Data'!$BN41","v":0},0,0,0,null,null,null,null,null,null,null,null,null,null,null,null,"TTL_C80: Education",{"$f":"'General Impact Estimates'!C40","v":0},null,null,424.03225870239589,27345.261069599714,{"$f":"FK294*CustomRegion1!C39","v":0},{"$f":"FN294*CustomRegion1!$C39","v":288.58107731373605},{"$f":"FO294*CustomRegion1!$C39","v":18610.199429258337},{"$f":"FK294*CustomRegion1!D39","v":0},{"$f":"FN294*CustomRegion1!$D39","v":200.72982832725205},{"$f":"FO294*CustomRegion1!$D39","v":12944.792400610875},{"$f":"(FT294*'Default-Data'!$C$58/general_dollar_index)/CustomRegion1!$E39","v":5.2340421292791664E-2},{"$f":"(FU294*'Default-Data'!$C$58/general_dollar_index)/CustomRegion1!$E39","v":3.3753622640034693},{"$f":"(FV294*'Default-Data'!$C$58/general_dollar_index)/CustomRegion1!$E39","v":1.3647795765762573E-5},null,null,null,null,null,null,null,null,null,null,null,null,"C73 Research and development",{"$f":"'General Impact Estimates'!C40","v":0},null,null,0,0,{"$f":"GL294*CustomRegion2!C43","v":0},{"$f":"GO294*CustomRegion2!$C43","v":0},{"$f":"GP294*CustomRegion2!$C43","v":0},{"$f":"GL294*CustomRegion2!D43","v":0},{"$f":"GO294*CustomRegion2!$D43","v":0},{"$f":"GP294*CustomRegion2!$D43","v":0},{"$f":"(GT294*'Default-Data'!$C$59/general_dollar_index)/CustomRegion2!$E43","v":0},{"$f":"(GU294*'Default-Data'!$C$59/general_dollar_index)/CustomRegion2!$E43","v":0},{"$f":"(GV294*'Default-Data'!$C$59/general_dollar_index)/CustomRegion2!$E43","v":0},null,null,null,null,null,null,null,null,null,null,null,null,"LPOST",{"$f":"'General Impact Estimates'!C40","v":0},null,null,0,30954.689685518315,{"$f":"HM294*CustomRegion3!D42","v":0},{"$f":"HP294*CustomRegion3!$D42","v":0},{"$f":"HQ294*CustomRegion3!$D42","v":0},{"$f":"HM294*CustomRegion3!E42","v":0},{"$f":"HP294*CustomRegion3!$E42","v":0},{"$f":"HQ294*CustomRegion3!$E42","v":0},0,0,0]
[null,null,null,null,null,null,null,null,null,null,null,null,null,null,null,null,null,null,null,null,null,null,null,null,null,null,null,null,null,294,"TTL_C85: Health and social work",{"$f":"'General Impact Estimates'!C41","v":0},null,null,19.140650088460241,16931.965269648164,{"$f":"'Colombia-IO-Data'!$AN44*Calculations!AF295","v":0},{"$f":"AI295*'Colombia-IO-Data'!$AN44","v":7.5926819197723265},{"$f":"AJ295*'Colombia-IO-Data'!$AN44","v":6716.5444211624708},{"$f":"AK295*'Colombia-IO-Data'!$AO44","v":0},{"$f":"AL295*'Colombia-IO-Data'!$AO44","v":5.6380111488979079},{"$f":"AM295*'Colombia-IO-Data'!$AO44","v":4987.4277269496833},{"$f":"(AN295*'Default-Data'!$F$19/general_dollar_index)/'Colombia-IO-Data'!$AP44","v":0},{"$f":"(AO295*'Default-Data'!$F$19/general_dollar_index)/'Colombia-IO-Data'!$AP44","v":5.5356619094116893E-4},{"$f":"(AP295*'Default-Data'!$F$19/general_dollar_index)/'Colombia-IO-Data'!$AP44","v":0.48968888079293549},null,null,null,null,null,null,null,null,null,null,null,null,"DOM_C85: Health and social work",{"$f":"'General Impact Estimates'!C41","v":0},null,null,0,7971.3910576832413,{"$f":"BG295*'Mexico-IO-Data'!AQ44","v":0},{"$f":"BJ295*'Mexico-IO-Data'!$AQ44","v":0},{"$f":"BK295*'Mexico-IO-Data'!$AQ44","v":5952.7442025480295},{"$f":"BG295*'Mexico-IO-Data'!AR44","v":0},{"$f":"BJ295*'Mexico-IO-Data'!$AR44","v":0},{"$f":"BK295*'Mexico-IO-Data'!$AR44","v":4182.0478175878598},{"$f":"(BO295*'Default-Data'!$F$19/general_dollar_index)/'Mexico-IO-Data'!$AS44","v":0},{"$f":"(BP295*'Default-Data'!$F$19/general_dollar_index)/'Mexico-IO-Data'!$AS44","v":0},{"$f":"(BQ295*'Default-Data'!$F$19/general_dollar_index)/'Mexico-IO-Data'!$AS44","v":1.885821758537561},null,null,null,null,null,null,null,null,null,null,null,null,"TTL_C85: Health and social work",{"$f":"'General Impact Estimates'!C41","v":0},null,null,343.09567198958416,7255.0539853898572,{"$f":"CH295*'Philippines-IO-Data'!$AN44","v":0},{"$f":"CK295*'Philippines-IO-Data'!$AN44","v":177.79339898476988},{"$f":"CL295*'Philippines-IO-Data'!$AN44","v":3759.5948103933615},{"$f":"CH295*'Philippines-IO-Data'!AO44","v":0},{"$f":"CK295*'Philippines-IO-Data'!$AO44","v":113.50512943391797},{"$f":"CL295*'Philippines-IO-Data'!$AO44","v":2400.1638869018957},{"$f":"(CP295*'Default-Data'!$F$19/general_dollar_index)/'Philippines-IO-Data'!$AP44","v":0},{"$f":"(CQ295*'Default-Data'!$F$19/general_dollar_index)/'Philippines-IO-Data'!$AP44","v":2.9596529539090664E-2},{"$f":"(CR295*'Default-Data'!$F$19/general_dollar_index)/'Philippines-IO-Data'!$AP44","v":0.62584415111131764},null,null,null,null,null,null,null,null,null,null,null,null,"DOM_C85: Health and social work",{"$f":"'General Impact Estimates'!C41","v":0},null,null,716.38044713897466,19326.403441091334,{"$f":"DI295*'SouthAfrica-IO-Data'!AR44","v":0},{"$f":"DL295*'SouthAfrica-IO-Data'!$AR44","v":330.99092412555535},{"$f":"DM295*'SouthAfrica-IO-Data'!$AR44","v":8929.4231305969333},{"$f":"DI295*'SouthAfrica-IO-Data'!AS44","v":0},{"$f":"DL295*'SouthAfrica-IO-Data'!$AS44","v":146.06342814082529},{"$f":"DM295*'SouthAfrica-IO-Data'!$AS44","v":3940.477090786394},{"$f":"(DQ295*'Default-Data'!$F$19/general_dollar_index)/'SouthAfrica-IO-Data'!$AT44","v":0},{"$f":"(DR295*'Default-Data'!$F$19/general_dollar_index)/'SouthAfrica-IO-Data'!$AT44","v":8.9446339830980409E-3},{"$f":"(DS295*'Default-Data'!$F$19/general_dollar_index)/'SouthAfrica-IO-Data'!$AT44","v":0.24130698385283109},null,null,null,null,null,null,null,null,null,null,null,null,"HRRS",{"$f":"'General Impact Estimates'!C41","v":0},null,null,{"$f":"'General Impact Estimates'!F41","v":0},84112.431326414749,{"$f":"EJ295*'Zambia-IO-Data'!BO42","v":0},{"$f":"EM295*'Zambia-IO-Data'!$BO42","v":0},{"$f":"EN295*'Zambia-IO-Data'!$BO42","v":0},{"$f":"EJ295*'Zambia-IO-Data'!BN42","v":0},{"$f":"EM295*'Zambia-IO-Data'!$BN42","v":0},{"$f":"EN295*'Zambia-IO-Data'!$BN42","v":0},0,0,0,null,null,null,null,null,null,null,null,null,null,null,null,"TTL_C85: Health and social work",{"$f":"'General Impact Estimates'!C41","v":0},null,null,1147.0839922274292,12431.203749507378,{"$f":"FK295*CustomRegion1!C40","v":0},{"$f":"FN295*CustomRegion1!$C40","v":594.42300952524226},{"$f":"FO295*CustomRegion1!$C40","v":6441.8940503692229},{"$f":"FK295*CustomRegion1!D40","v":0},{"$f":"FN295*CustomRegion1!$D40","v":379.48574592716631},{"$f":"FO295*CustomRegion1!$D40","v":4112.5712324639217},{"$f":"(FT295*'Default-Data'!$C$58/general_dollar_index)/CustomRegion1!$E40","v":9.8951132385044549E-2},{"$f":"(FU295*'Default-Data'!$C$58/general_dollar_index)/CustomRegion1!$E40","v":1.0723553778606665},{"$f":"(FV295*'Default-Data'!$C$58/general_dollar_index)/CustomRegion1!$E40","v":2.5801566212612989E-5},null,null,null,null,null,null,null,null,null,null,null,null,"C74 Other Business Activities",{"$f":"'General Impact Estimates'!C41","v":0},null,null,59579.61556197601,41060.863378753013,{"$f":"GL295*CustomRegion2!C44","v":0},{"$f":"GO295*CustomRegion2!$C44","v":42522.810890382527},{"$f":"GP295*CustomRegion2!$C44","v":29305.716594198166},{"$f":"GL295*CustomRegion2!D44","v":0},{"$f":"GO295*CustomRegion2!$D44","v":16777.005056840426},{"$f":"GP295*CustomRegion2!$D44","v":11562.315500793842},{"$f":"(GT295*'Default-Data'!$C$59/general_dollar_index)/CustomRegion2!$E44","v":0},{"$f":"(GU295*'Default-Data'!$C$59/general_dollar_index)/CustomRegion2!$E44","v":4.5017579186271011},{"$f":"(GV295*'Default-Data'!$C$59/general_dollar_index)/CustomRegion2!$E44","v":3.102505196071399},null,null,null,null,null,null,null,null,null,null,null,null,"HRRS",{"$f":"'General Impact Estimates'!C41","v":0},null,null,0,84112.431326414749,{"$f":"HM295*CustomRegion3!D43","v":0},{"$f":"HP295*CustomRegion3!$D43","v":0},{"$f":"HQ295*CustomRegion3!$D43","v":0},{"$f":"HM295*CustomRegion3!E43","v":0},{"$f":"HP295*CustomRegion3!$E43","v":0},{"$f":"HQ295*CustomRegion3!$E43","v":0},0,0,0]
[null,null,null,null,null,null,null,null,null,null,null,null,null,null,null,null,null,null,null,null,null,null,null,null,null,null,null,null,null,295,"TTL_C90T93: Other community, social and personal services",{"$f":"'General Impact Estimates'!C42","v":0},null,null,5647.1085675800668,12687.811276601598,{"$f":"'Colombia-IO-Data'!$AN45*Calculations!AF296","v":0},{"$f":"AI296*'Colombia-IO-Data'!$AN45","v":3230.6032857536106},{"$f":"AJ296*'Colombia-IO-Data'!$AN45","v":7258.4552446059688},{"$f":"AK296*'Colombia-IO-Data'!$AO45","v":0},{"$f":"AL296*'Colombia-IO-Data'!$AO45","v":1233.8855477265147},{"$f":"AM296*'Colombia-IO-Data'!$AO45","v":2772.2695214958335},{"$f":"(AN296*'Default-Data'!$F$19/general_dollar_index)/'Colombia-IO-Data'!$AP45","v":0},{"$f":"(AO296*'Default-Data'!$F$19/general_dollar_index)/'Colombia-IO-Data'!$AP45","v":0.25956857432665292},{"$f":"(AP296*'Default-Data'!$F$19/general_dollar_index)/'Colombia-IO-Data'!$AP45","v":0.58319351310158996},null,null,null,null,null,null,null,null,null,null,null,null,"DOM_C90T93: Other community, social and personal services",{"$f":"'General Impact Estimates'!C42","v":0},null,null,507.55226752831123,3473.005856199291,{"$f":"BG296*'Mexico-IO-Data'!AQ45","v":0},{"$f":"BJ296*'Mexico-IO-Data'!$AQ45","v":324.72904565379605},{"$f":"BK296*'Mexico-IO-Data'!$AQ45","v":2222.0093365472608},{"$f":"BG296*'Mexico-IO-Data'!AR45","v":0},{"$f":"BJ296*'Mexico-IO-Data'!$AR45","v":56.994341876874863},{"$f":"BK296*'Mexico-IO-Data'!$AR45","v":389.99270769205992},{"$f":"(BO296*'Default-Data'!$F$19/general_dollar_index)/'Mexico-IO-Data'!$AS45","v":0},{"$f":"(BP296*'Default-Data'!$F$19/general_dollar_index)/'Mexico-IO-Data'!$AS45","v":4.0488010474836834E-2},{"$f":"(BQ296*'Default-Data'!$F$19/general_dollar_index)/'Mexico-IO-Data'!$AS45","v":0.27704555073655163},null,null,null,null,null,null,null,null,null,null,null,null,"TTL_C90T93: Other community, social and personal services",{"$f":"'General Impact Estimates'!C42","v":0},null,null,5174.7656427355942,9331.0318107123858,{"$f":"CH296*'Philippines-IO-Data'!$AN45","v":0},{"$f":"CK296*'Philippines-IO-Data'!$AN45","v":2521.9795092562808},{"$f":"CL296*'Philippines-IO-Data'!$AN45","v":4547.5819875767029},{"$f":"CH296*'Philippines-IO-Data'!AO45","v":0},{"$f":"CK296*'Philippines-IO-Data'!$AO45","v":2167.646425911089},{"$f":"CL296*'Philippines-IO-Data'!$AO45","v":3908.6558022096019},{"$f":"(CP296*'Default-Data'!$F$19/general_dollar_index)/'Philippines-IO-Data'!$AP45","v":0},{"$f":"(CQ296*'Default-Data'!$F$19/general_dollar_index)/'Philippines-IO-Data'!$AP45","v":1.2876045564056549},{"$f":"(CR296*'Default-Data'!$F$19/general_dollar_index)/'Philippines-IO-Data'!$AP45","v":2.3217822612519168},null,null,null,null,null,null,null,null,null,null,null,null,"DOM_C90T93: Other community, social and personal services",{"$f":"'General Impact Estimates'!C42","v":0},null,null,51353.022308240608,90239.967333129811,{"$f":"DI296*'SouthAfrica-IO-Data'!AR45","v":0},{"$f":"DL296*'SouthAfrica-IO-Data'!$AR45","v":36141.62397816567},{"$f":"DM296*'SouthAfrica-IO-Data'!$AR45","v":63509.776456381456},{"$f":"DI296*'SouthAfrica-IO-Data'!AS45","v":0},{"$f":"DL296*'SouthAfrica-IO-Data'!$AS45","v":20098.77098781048},{"$f":"DM296*'SouthAfrica-IO-Data'!$AS45","v":35318.514000782168},{"$f":"(DQ296*'Default-Data'!$F$19/general_dollar_index)/'SouthAfrica-IO-Data'!$AT45","v":0},{"$f":"(DR296*'Default-Data'!$F$19/general_dollar_index)/'SouthAfrica-IO-Data'!$AT45","v":1.2308087813928725},{"$f":"(DS296*'Default-Data'!$F$19/general_dollar_index)/'SouthAfrica-IO-Data'!$AT45","v":2.1628355885180111},null,null,null,null,null,null,null,null,null,null,null,null,"HRRM",{"$f":"'General Impact Estimates'!C42","v":0},null,null,{"$f":"'General Impact Estimates'!F42","v":0},5015.2234998725653,{"$f":"EJ296*'Zambia-IO-Data'!BO43","v":0},{"$f":"EM296*'Zambia-IO-Data'!$BO43","v":0},{"$f":"EN296*'Zambia-IO-Data'!$BO43","v":0},{"$f":"EJ296*'Zambia-IO-Data'!BN43","v":0},{"$f":"EM296*'Zambia-IO-Data'!$BN43","v":0},{"$f":"EN296*'Zambia-IO-Data'!$BN43","v":0},0,0,0,null,null,null,null,null,null,null,null,null,null,null,null,"TTL_C90T93: Other community, social and personal services",{"$f":"'General Impact Estimates'!C42","v":0},null,null,9330.3920586236545,16756.009323659535,{"$f":"FK296*CustomRegion1!C41","v":0},{"$f":"FN296*CustomRegion1!$C41","v":4547.2701972908862},{"$f":"FO296*CustomRegion1!$C41","v":8166.2272436432613},{"$f":"FK296*CustomRegion1!D41","v":0},{"$f":"FN296*CustomRegion1!$D41","v":3908.3878178361347},{"$f":"FO296*CustomRegion1!$D41","v":7018.8886281162368},{"$f":"(FT296*'Default-Data'!$C$58/general_dollar_index)/CustomRegion1!$E41","v":2.3216230757426031},{"$f":"(FU296*'Default-Data'!$C$58/general_dollar_index)/CustomRegion1!$E41","v":4.1692929577607227},{"$f":"(FV296*'Default-Data'!$C$58/general_dollar_index)/CustomRegion1!$E41","v":1.3790682903122601E-3},null,null,null,null,null,null,null,null,null,null,null,null,"C75 Public admin. and defence; compulsory social security",{"$f":"'General Impact Estimates'!C42","v":0},null,null,611.6862340792718,748.83316105299446,{"$f":"GL296*CustomRegion2!C45","v":0},{"$f":"GO296*CustomRegion2!$C45","v":458.84043220170599},{"$f":"GP296*CustomRegion2!$C45","v":561.71761292244037},{"$f":"GL296*CustomRegion2!D45","v":0},{"$f":"GO296*CustomRegion2!$D45","v":452.61293956475703},{"$f":"GP296*CustomRegion2!$D45","v":554.09384646024409},{"$f":"(GT296*'Default-Data'!$C$59/general_dollar_index)/CustomRegion2!$E45","v":0},{"$f":"(GU296*'Default-Data'!$C$59/general_dollar_index)/CustomRegion2!$E45","v":0.32153011745855425},{"$f":"(GV296*'Default-Data'!$C$59/general_dollar_index)/CustomRegion2!$E45","v":0.39362078270838902},null,null,null,null,null,null,null,null,null,null,null,null,"HRRM",{"$f":"'General Impact Estimates'!C42","v":0},null,null,0,5015.2234998725653,{"$f":"HM296*CustomRegion3!D44","v":0},{"$f":"HP296*CustomRegion3!$D44","v":0},{"$f":"HQ296*CustomRegion3!$D44","v":0},{"$f":"HM296*CustomRegion3!E44","v":0},{"$f":"HP296*CustomRegion3!$E44","v":0},{"$f":"HQ296*CustomRegion3!$E44","v":0},0,0,0]
[null,null,null,null,null,null,null,null,null,null,null,null,null,null,null,null,null,null,null,null,null,null,null,null,null,null,null,null,null,296,"TTL_C95: Private households with employed persons",{"$f":"'General Impact Estimates'!C43","v":0},null,null,0,2235.3164377582743,{"$f":"'Colombia-IO-Data'!$AN46*Calculations!AF297","v":0},{"$f":"AI297*'Colombia-IO-Data'!$AN46","v":0},{"$f":"AJ297*'Colombia-IO-Data'!$AN46","v":2235.3164377582743},{"$f":"AK297*'Colombia-IO-Data'!$AO46","v":0},{"$f":"AL297*'Colombia-IO-Data'!$AO46","v":0},{"$f":"AM297*'Colombia-IO-Data'!$AO46","v":2235.3164377582743},{"$f":"(AN297*'Default-Data'!$F$19/general_dollar_index)/'Colombia-IO-Data'!$AP46","v":0},{"$f":"(AO297*'Default-Data'!$F$19/general_dollar_index)/'Colombia-IO-Data'!$AP46","v":0},{"$f":"(AP297*'Default-Data'!$F$19/general_dollar_index)/'Colombia-IO-Data'!$AP46","v":0.4702364023850697},null,null,null,null,null,null,null,null,null,null,null,null,"DOM_C95: Private households with employed persons",{"$f":"'General Impact Estimates'!C43","v":0},null,null,0,950.72962043784173,{"$f":"BG297*'Mexico-IO-Data'!AQ46","v":0},{"$f":"BJ297*'Mexico-IO-Data'!$AQ46","v":0},{"$f":"BK297*'Mexico-IO-Data'!$AQ46","v":950.72962043784173},{"$f":"BG297*'Mexico-IO-Data'!AR46","v":0},{"$f":"BJ297*'Mexico-IO-Data'!$AR46","v":0},{"$f":"BK297*'Mexico-IO-Data'!$AR46","v":950.72962043784173},{"$f":"(BO297*'Default-Data'!$F$19/general_dollar_index)/'Mexico-IO-Data'!$AS46","v":0},{"$f":"(BP297*'Default-Data'!$F$19/general_dollar_index)/'Mexico-IO-Data'!$AS46","v":0},{"$f":"(BQ297*'Default-Data'!$F$19/general_dollar_index)/'Mexico-IO-Data'!$AS46","v":0.18829061283489362},null,null,null,null,null,null,null,null,null,null,null,null,"TTL_C95: Private households with employed persons",{"$f":"'General Impact Estimates'!C43","v":0},null,null,0,0,{"$f":"CH297*'Philippines-IO-Data'!$AN46","v":0},{"$f":"CK297*'Philippines-IO-Data'!$AN46","v":0},{"$f":"CL297*'Philippines-IO-Data'!$AN46","v":0},{"$f":"CH297*'Philippines-IO-Data'!AO46","v":0},{"$f":"CK297*'Philippines-IO-Data'!$AO46","v":0},{"$f":"CL297*'Philippines-IO-Data'!$AO46","v":0},{"$f":"(CP297*'Default-Data'!$F$19/general_dollar_index)/'Philippines-IO-Data'!$AP46","v":0},{"$f":"(CQ297*'Default-Data'!$F$19/general_dollar_index)/'Philippines-IO-Data'!$AP46","v":0},{"$f":"(CR297*'Default-Data'!$F$19/general_dollar_index)/'Philippines-IO-Data'!$AP46","v":0},null,null,null,null,null,null,null,null,null,null,null,null,"DOM_C95: Private households with employed persons",{"$f":"'General Impact Estimates'!C43","v":0},null,null,0,0,{"$f":"DI297*'SouthAfrica-IO-Data'!AR46","v":0},{"$f":"DL297*'SouthAfrica-IO-Data'!$AR46","v":0},{"$f":"DM297*'SouthAfrica-IO-Data'!$AR46","v":0},{"$f":"DI297*'SouthAfrica-IO-Data'!AS46","v":0},{"$f":"DL297*'SouthAfrica-IO-Data'!$AS46","v":0},{"$f":"DM297*'SouthAfrica-IO-Data'!$AS46","v":0},{"$f":"(DQ297*'Default-Data'!$F$19/general_dollar_index)/'SouthAfrica-IO-Data'!$AT46","v":0},{"$f":"(DR297*'Default-Data'!$F$19/general_dollar_index)/'SouthAfrica-IO-Data'!$AT46","v":0},{"$f":"(DS297*'Default-Data'!$F$19/general_dollar_index)/'SouthAfrica-IO-Data'!$AT46","v":0},null,null,null,null,null,null,null,null,null,null,null,null,"HRRN",{"$f":"'General Impact Estimates'!C43","v":0},null,null,{"$f":"'General Impact Estimates'!F43","v":0},3126.2656163188749,{"$f":"EJ297*'Zambia-IO-Data'!BO44","v":0},{"$f":"EM297*'Zambia-IO-Data'!$BO44","v":0},{"$f":"EN297*'Zambia-IO-Data'!$BO44","v":0},{"$f":"EJ297*'Zambia-IO-Data'!BN44","v":0},{"$f":"EM297*'Zambia-IO-Data'!$BN44","v":0},{"$f":"EN297*'Zambia-IO-Data'!$BN44","v":0},0,0,0,null,null,null,null,null,null,null,null,null,null,null,null,"TTL_C95: Private households with employed persons",{"$f":"'General Impact Estimates'!C43","v":0},null,null,0,0,{"$f":"FK297*CustomRegion1!C42","v":0},{"$f":"FN297*CustomRegion1!$C42","v":0},{"$f":"FO297*CustomRegion1!$C42","v":0},{"$f":"FK297*CustomRegion1!D42","v":0},{"$f":"FN297*CustomRegion1!$D42","v":0},{"$f":"FO297*CustomRegion1!$D42","v":0},{"$f":"(FT297*'Default-Data'!$C$58/general_dollar_index)/CustomRegion1!$E42","v":0},{"$f":"(FU297*'Default-Data'!$C$58/general_dollar_index)/CustomRegion1!$E42","v":0},{"$f":"(FV297*'Default-Data'!$C$58/general_dollar_index)/CustomRegion1!$E42","v":0},null,null,null,null,null,null,null,null,null,null,null,null,"C80 Education",{"$f":"'General Impact Estimates'!C43","v":0},null,null,223.63209097707437,12149.10734821273,{"$f":"GL297*CustomRegion2!C46","v":0},{"$f":"GO297*CustomRegion2!$C46","v":199.18108848480904},{"$f":"GP297*CustomRegion2!$C46","v":10820.774492440249},{"$f":"GL297*CustomRegion2!D46","v":0},{"$f":"GO297*CustomRegion2!$D46","v":151.56124060921431},{"$f":"GP297*CustomRegion2!$D46","v":8233.7636514716833},{"$f":"(GT297*'Default-Data'!$C$59/general_dollar_index)/CustomRegion2!$E46","v":0},{"$f":"(GU297*'Default-Data'!$C$59/general_dollar_index)/CustomRegion2!$E46","v":3.7744698171929103E-2},{"$f":"(GV297*'Default-Data'!$C$59/general_dollar_index)/CustomRegion2!$E46","v":2.0505303506001078},null,null,null,null,null,null,null,null,null,null,null,null,"HRRN",{"$f":"'General Impact Estimates'!C43","v":0},null,null,0,3126.2656163188749,{"$f":"HM297*CustomRegion3!D45","v":0},{"$f":"HP297*CustomRegion3!$D45","v":0},{"$f":"HQ297*CustomRegion3!$D45","v":0},{"$f":"HM297*CustomRegion3!E45","v":0},{"$f":"HP297*CustomRegion3!$E45","v":0},{"$f":"HQ297*CustomRegion3!$E45","v":0},0,0,0]
[null,null,null,null,null,null,null,null,null,null,null,null,null,null,null,null,null,null,null,null,null,null,null,null,null,null,null,null,null,297,"LHH",{"$f":"'General Impact Estimates'!C44","v":0},null,null,0,243729.0467547322,{"$f":"'Colombia-IO-Data'!$AN47*Calculations!AF298","v":0},{"$f":"AI298*'Colombia-IO-Data'!$AN47","v":0},{"$f":"AJ298*'Colombia-IO-Data'!$AN47","v":0},{"$f":"AK298*'Colombia-IO-Data'!$AO47","v":0},{"$f":"AL298*'Colombia-IO-Data'!$AO47","v":0},{"$f":"AM298*'Colombia-IO-Data'!$AO47","v":0},0,0,0,null,null,null,null,null,null,null,null,null,null,null,null,"L",{"$f":"'General Impact Estimates'!C44","v":0},null,null,0,158005.89880777861,{"$f":"BG298*'Mexico-IO-Data'!AQ47","v":0},{"$f":"BJ298*'Mexico-IO-Data'!$AQ47","v":0},{"$f":"BK298*'Mexico-IO-Data'!$AQ47","v":0},{"$f":"BG298*'Mexico-IO-Data'!AR47","v":0},{"$f":"BJ298*'Mexico-IO-Data'!$AR47","v":0},{"$f":"BK298*'Mexico-IO-Data'!$AR47","v":0},0,0,0,null,null,null,null,null,null,null,null,null,null,null,null,"LHH",{"$f":"'General Impact Estimates'!C44","v":0},null,null,0,161808.99272289613,{"$f":"CH298*'Philippines-IO-Data'!$AN47","v":0},{"$f":"CK298*'Philippines-IO-Data'!$AN47","v":0},{"$f":"CL298*'Philippines-IO-Data'!$AN47","v":0},{"$f":"CH298*'Philippines-IO-Data'!AO47","v":0},{"$f":"CK298*'Philippines-IO-Data'!$AO47","v":0},{"$f":"CL298*'Philippines-IO-Data'!$AO47","v":0},0,0,0,null,null,null,null,null,null,null,null,null,null,null,null,"L",{"$f":"'General Impact Estimates'!C44","v":0},null,null,0,476312.39896139619,{"$f":"DI298*'SouthAfrica-IO-Data'!AR47","v":0},{"$f":"DL298*'SouthAfrica-IO-Data'!$AR47","v":0},{"$f":"DM298*'SouthAfrica-IO-Data'!$AR47","v":0},{"$f":"DI298*'SouthAfrica-IO-Data'!AS47","v":0},{"$f":"DL298*'SouthAfrica-IO-Data'!$AS47","v":0},{"$f":"DM298*'SouthAfrica-IO-Data'!$AS47","v":0},0,0,0,null,null,null,null,null,null,null,null,null,null,null,null,"HRS",{"$f":"'General Impact Estimates'!C44","v":0},null,null,{"$f":"'General Impact Estimates'!F44","v":0},98983.5691117479,{"$f":"EJ298*'Zambia-IO-Data'!BO45","v":0},{"$f":"EM298*'Zambia-IO-Data'!$BO45","v":0},{"$f":"EN298*'Zambia-IO-Data'!$BO45","v":0},{"$f":"EJ298*'Zambia-IO-Data'!BN45","v":0},{"$f":"EM298*'Zambia-IO-Data'!$BN45","v":0},{"$f":"EN298*'Zambia-IO-Data'!$BN45","v":0},0,0,0,null,null,null,null,null,null,null,null,null,null,null,null,"LHH",{"$f":"'General Impact Estimates'!C44","v":0},null,null,0,302492.03934849246,{"$f":"FK298*CustomRegion1!AM43","v":0},{"$f":"FN298*CustomRegion1!$AM43","v":0},{"$f":"FO298*CustomRegion1!$AM43","v":0},{"$f":"FK298*CustomRegion1!AN43","v":0},{"$f":"FN298*CustomRegion1!$AN43","v":0},{"$f":"FO298*CustomRegion1!$AN43","v":0},0,0,0,null,null,null,null,null,null,null,null,null,null,null,null,"C85 Health and social work",{"$f":"'General Impact Estimates'!C44","v":0},null,null,96.771504991813373,11105.372833132506,{"$f":"GL298*CustomRegion2!C47","v":0},{"$f":"GO298*CustomRegion2!$C47","v":72.603657372295046},{"$f":"GP298*CustomRegion2!$C47","v":8331.9018778984173},{"$f":"GL298*CustomRegion2!D47","v":0},{"$f":"GO298*CustomRegion2!$D47","v":41.87239385686695},{"$f":"GP298*CustomRegion2!$D47","v":4805.2217978382505},{"$f":"(GT298*'Default-Data'!$C$59/general_dollar_index)/CustomRegion2!$E47","v":0},{"$f":"(GU298*'Default-Data'!$C$59/general_dollar_index)/CustomRegion2!$E47","v":1.8881628059164407E-2},{"$f":"(GV298*'Default-Data'!$C$59/general_dollar_index)/CustomRegion2!$E47","v":2.1668312310663755},null,null,null,null,null,null,null,null,null,null,null,null,"HRS",{"$f":"'General Impact Estimates'!C44","v":0},null,null,0,98983.5691117479,{"$f":"HM298*CustomRegion3!D46","v":0},{"$f":"HP298*CustomRegion3!$D46","v":0},{"$f":"HQ298*CustomRegion3!$D46","v":0},{"$f":"HM298*CustomRegion3!E46","v":0},{"$f":"HP298*CustomRegion3!$E46","v":0},{"$f":"HQ298*CustomRegion3!$E46","v":0},0,0,0]
[null,null,null,null,null,null,null,null,null,null,null,null,null,null,null,null,null,null,null,null,null,null,null,null,null,null,null,null,null,298,"Total",null,null,null,null,null,null,null,null,null,null,null,null,null,null,null,null,null,null,null,null,null,null,null,null,null,null,null,null,null,null,null,null,null,null,null,null,null,null,null,null,null,null,null,null,null,null,null,null,null,null,null,null,null,null,null,null,null,null,null,null,null,null,null,null,null,null,null,null,null,null,null,null,null,null,null,null,null,null,null,null,null,null,null,null,null,null,null,null,null,null,null,null,null,null,null,null,null,null,null,null,null,null,null,null,null,null,null,"HRM",{"$f":"'General Impact Estimates'!C45","v":0},null,null,{"$f":"'General Impact Estimates'!F45","v":0},8440.2241533763809,{"$f":"EJ299*'Zambia-IO-Data'!BO46","v":0},{"$f":"EM299*'Zambia-IO-Data'!$BO46","v":0},{"$f":"EN299*'Zambia-IO-Data'!$BO46","v":0},{"$f":"EJ299*'Zambia-IO-Data'!BN46","v":0},{"$f":"EM299*'Zambia-IO-Data'!$BN46","v":0},{"$f":"EN299*'Zambia-IO-Data'!$BN46","v":0},0,0,0,null,null,null,null,null,null,null,null,null,null,null,null,null,null,null,null,null,null,null,null,null,null,null,null,null,null,null,null,null,null,null,null,null,null,null,null,null,null,null,"C90T93 Other community, social and personal services",{"$f":"'General Impact Estimates'!C45","v":0},null,null,907.75146599619393,14999.729843633844,{"$f":"GL299*CustomRegion2!C48","v":0},{"$f":"GO299*CustomRegion2!$C48","v":639.78341046540868},{"$f":"GP299*CustomRegion2!$C48","v":10571.812522371702},{"$f":"GL299*CustomRegion2!D48","v":0},{"$f":"GO299*CustomRegion2!$D48","v":124.12137967854592},{"$f":"GP299*CustomRegion2!$D48","v":2050.98777885653},{"$f":"(GT299*'Default-Data'!$C$59/general_dollar_index)/CustomRegion2!$E48","v":0},{"$f":"(GU299*'Default-Data'!$C$59/general_dollar_index)/CustomRegion2!$E48","v":8.8174151241760479E-2},{"$f":"(GV299*'Default-Data'!$C$59/general_dollar_index)/CustomRegion2!$E48","v":1.4569940092210927},null,null,null,null,null,null,null,null,null,null,null,null,"HRM",{"$f":"'General Impact Estimates'!C45","v":0},null,null,0,8440.2241533763809,{"$f":"HM299*CustomRegion3!D47","v":0},{"$f":"HP299*CustomRegion3!$D47","v":0},{"$f":"HQ299*CustomRegion3!$D47","v":0},{"$f":"HM299*CustomRegion3!E47","v":0},{"$f":"HP299*CustomRegion3!$E47","v":0},{"$f":"HQ299*CustomRegion3!$E47","v":0},0,0,0]
[null,null,null,null,null,null,null,null,null,null,null,null,null,null,null,null,null,null,null,null,null,null,null,null,null,null,null,null,null,299,null,null,null,null,null,null,null,null,null,null,null,null,null,null,null,null,null,null,null,null,null,null,null,null,null,null,null,null,null,null,null,null,null,null,null,null,null,null,null,null,null,null,null,null,null,null,null,null,null,null,null,null,null,null,null,null,null,null,null,null,null,null,null,null,null,null,null,null,null,null,null,null,null,null,null,null,null,null,null,null,null,null,null,null,null,null,null,null,null,null,null,null,null,null,null,null,null,null,null,null,null,null,null,null,null,null,null,null,"HRL",{"$f":"'General Impact Estimates'!C46","v":0},null,null,{"$f":"'General Impact Estimates'!F46","v":0},3769.3062837585212,{"$f":"EJ300*'Zambia-IO-Data'!BO47","v":0},{"$f":"EM300*'Zambia-IO-Data'!$BO47","v":0},{"$f":"EN300*'Zambia-IO-Data'!$BO47","v":0},{"$f":"EJ300*'Zambia-IO-Data'!BN47","v":0},{"$f":"EM300*'Zambia-IO-Data'!$BN47","v":0},{"$f":"EN300*'Zambia-IO-Data'!$BN47","v":0},0,0,0,null,null,null,null,null,null,null,null,null,null,null,null,null,null,null,null,null,null,null,null,null,null,null,null,null,null,null,null,null,null,null,null,null,null,null,null,null,null,null,"C95 Private households with employed persons",{"$f":"'General Impact Estimates'!C46","v":0},null,null,0,3315.119500638375,{"$f":"GL300*CustomRegion2!C49","v":0},{"$f":"GO300*CustomRegion2!$C49","v":0},{"$f":"GP300*CustomRegion2!$C49","v":3315.119500638375},{"$f":"GL300*CustomRegion2!D49","v":0},{"$f":"GO300*CustomRegion2!$D49","v":0},{"$f":"GP300*CustomRegion2!$D49","v":3315.119500638375},{"$f":"(GT300*'Default-Data'!$C$59/general_dollar_index)/CustomRegion2!$E49","v":0},{"$f":"(GU300*'Default-Data'!$C$59/general_dollar_index)/CustomRegion2!$E49","v":0},{"$f":"(GV300*'Default-Data'!$C$59/general_dollar_index)/CustomRegion2!$E49","v":0.65655457553603846},null,null,null,null,null,null,null,null,null,null,null,null,"HRL",{"$f":"'General Impact Estimates'!C46","v":0},null,null,0,3769.3062837585212,{"$f":"HM300*CustomRegion3!D48","v":0},{"$f":"HP300*CustomRegion3!$D48","v":0},{"$f":"HQ300*CustomRegion3!$D48","v":0},{"$f":"HM300*CustomRegion3!E48","v":0},{"$f":"HP300*CustomRegion3!$E48","v":0},{"$f":"HQ300*CustomRegion3!$E48","v":0},0,0,0]
[null,null,null,null,null,null,null,null,null,null,null,null,null,null,null,null,null,null,null,null,null,null,null,null,null,null,null,null,null,300,null,null,null,null,null,null,null,null,null,null,null,null,null,null,null,null,null,null,null,null,null,null,null,null,null,null,null,null,null,null,null,null,null,null,null,null,null,null,null,null,null,null,null,null,null,null,null,null,null,null,null,null,null,null,null,null,null,null,null,null,null,null,null,null,null,null,null,null,null,null,null,null,null,null,null,null,null,null,null,null,null,null,null,null,null,null,null,null,null,null,null,null,null,null,null,null,null,null,null,null,null,null,null,null,null,null,null,null,"HRN",{"$f":"'General Impact Estimates'!C47","v":0},null,null,{"$f":"'General Impact Estimates'!F47","v":0},6369.8689958208852,{"$f":"EJ301*'Zambia-IO-Data'!BO48","v":0},{"$f":"EM301*'Zambia-IO-Data'!$BO48","v":0},{"$f":"EN301*'Zambia-IO-Data'!$BO48","v":0},{"$f":"EJ301*'Zambia-IO-Data'!BN48","v":0},{"$f":"EM301*'Zambia-IO-Data'!$BN48","v":0},{"$f":"EN301*'Zambia-IO-Data'!$BN48","v":0},0,0,0,null,null,null,null,null,null,null,null,null,null,null,null,null,null,null,null,null,null,null,null,null,null,null,null,null,null,null,null,null,null,null,null,null,null,null,null,null,null,null,"L",{"$f":"'General Impact Estimates'!C47","v":0},null,null,0,431271.12666803284,{"$f":"GL301*CustomRegion2!C50","v":0},{"$f":"GO301*CustomRegion2!$C50","v":0},{"$f":"GP301*CustomRegion2!$C50","v":0},{"$f":"GL301*CustomRegion2!D50","v":0},{"$f":"GO301*CustomRegion2!$D50","v":0},{"$f":"GP301*CustomRegion2!$D50","v":0},0,0,0,null,null,null,null,null,null,null,null,null,null,null,null,"HRN",{"$f":"'General Impact Estimates'!C47","v":0},null,null,0,6369.8689958208852,{"$f":"HM301*CustomRegion3!D49","v":0},{"$f":"HP301*CustomRegion3!$D49","v":0},{"$f":"HQ301*CustomRegion3!$D49","v":0},{"$f":"HM301*CustomRegion3!E49","v":0},{"$f":"HP301*CustomRegion3!$E49","v":0},{"$f":"HQ301*CustomRegion3!$E49","v":0},0,0,0]
[null,null,null,null,null,null,null,null,null,null,null,null,null,null,null,null,null,null,null,null,null,null,null,null,null,null,null,null,null,301,null,null,null,null,null,null,null,null,null,null,null,null,null,null,null,null,null,null,null,null,null,null,null,null,null,null,null,null,null,null,null,null,null,null,null,null,null,null,null,null,null,null,null,null,null,null,null,null,null,null,null,null,null,null,null,null,null,null,null,null,null,null,null,null,null,null,null,null,null,null,null,null,null,null,null,null,null,null,null,null,null,null,null,null,null,null,null,null,null,null,null,null,null,null,null,null,null,null,null,null,null,null,null,null,null,null,null,null,"HUSE",{"$f":"'General Impact Estimates'!C48","v":0},null,null,{"$f":"'General Impact Estimates'!F48","v":0},23336.818480947572,{"$f":"EJ302*'Zambia-IO-Data'!BO49","v":0},{"$f":"EM302*'Zambia-IO-Data'!$BO49","v":0},{"$f":"EN302*'Zambia-IO-Data'!$BO49","v":0},{"$f":"EJ302*'Zambia-IO-Data'!BN49","v":0},{"$f":"EM302*'Zambia-IO-Data'!$BN49","v":0},{"$f":"EN302*'Zambia-IO-Data'!$BN49","v":0},0,0,0,null,null,null,null,null,null,null,null,null,null,null,null,null,null,null,null,null,null,null,null,null,null,null,null,null,null,null,null,null,null,null,null,null,null,null,null,null,null,null,"HH",{"$f":"'General Impact Estimates'!C48","v":0},null,null,0,431271.12666803284,{"$f":"GL302*CustomRegion2!C51","v":0},{"$f":"GO302*CustomRegion2!$C51","v":0},{"$f":"GP302*CustomRegion2!$C51","v":0},{"$f":"GL302*CustomRegion2!D51","v":0},{"$f":"GO302*CustomRegion2!$D51","v":0},{"$f":"GP302*CustomRegion2!$D51","v":0},0,0,0,null,null,null,null,null,null,null,null,null,null,null,null,"HUSE",{"$f":"'General Impact Estimates'!C48","v":0},null,null,0,23336.818480947572,{"$f":"HM302*CustomRegion3!D50","v":0},{"$f":"HP302*CustomRegion3!$D50","v":0},{"$f":"HQ302*CustomRegion3!$D50","v":0},{"$f":"HM302*CustomRegion3!E50","v":0},{"$f":"HP302*CustomRegion3!$E50","v":0},{"$f":"HQ302*CustomRegion3!$E50","v":0},0,0,0]
[null,null,null,null,null,null,null,null,null,null,null,null,null,null,null,null,null,null,null,null,null,null,null,null,null,null,null,null,null,302,null,null,null,null,null,null,null,null,null,null,null,null,null,null,null,null,null,null,null,null,null,null,null,null,null,null,null,null,null,null,null,null,null,null,null,null,null,null,null,null,null,null,null,null,null,null,null,null,null,null,null,null,null,null,null,null,null,null,null,null,null,null,null,null,null,null,null,null,null,null,null,null,null,null,null,null,null,null,null,null,null,null,null,null,null,null,null,null,null,null,null,null,null,null,null,null,null,null,null,null,null,null,null,null,null,null,null,null,"HUPR",{"$f":"'General Impact Estimates'!C49","v":0},null,null,{"$f":"'General Impact Estimates'!F49","v":0},40759.495507764717,{"$f":"EJ303*'Zambia-IO-Data'!BO50","v":0},{"$f":"EM303*'Zambia-IO-Data'!$BO50","v":0},{"$f":"EN303*'Zambia-IO-Data'!$BO50","v":0},{"$f":"EJ303*'Zambia-IO-Data'!BN50","v":0},{"$f":"EM303*'Zambia-IO-Data'!$BN50","v":0},{"$f":"EN303*'Zambia-IO-Data'!$BN50","v":0},0,0,0,null,null,null,null,null,null,null,null,null,null,null,null,null,null,null,null,null,null,null,null,null,null,null,null,null,null,null,null,null,null,null,null,null,null,null,null,null,null,null,null,null,null,null,null,null,null,null,null,null,null,null,null,null,null,null,null,null,null,null,null,null,null,null,null,null,null,"HUPR",{"$f":"'General Impact Estimates'!C49","v":0},null,null,0,40759.495507764717,{"$f":"HM303*CustomRegion3!D51","v":0},{"$f":"HP303*CustomRegion3!$D51","v":0},{"$f":"HQ303*CustomRegion3!$D51","v":0},{"$f":"HM303*CustomRegion3!E51","v":0},{"$f":"HP303*CustomRegion3!$E51","v":0},{"$f":"HQ303*CustomRegion3!$E51","v":0},0,0,0]
[null,null,null,null,null,null,null,null,null,null,null,null,null,null,null,null,null,null,null,null,null,null,null,null,null,null,null,null,null,303,null,null,null,null,null,null,null,null,null,null,null,null,null,null,null,null,null,null,null,null,null,null,null,null,null,null,null,null,null,null,null,null,null,null,null,null,null,null,null,null,null,null,null,null,null,null,null,null,null,null,null,null,null,null,null,null,null,null,null,null,null,null,null,null,null,null,null,null,null,null,null,null,null,null,null,null,null,null,null,null,null,null,null,null,null,null,null,null,null,null,null,null,null,null,null,null,null,null,null,null,null,null,null,null,null,null,null,null,"HUPU",{"$f":"'General Impact Estimates'!C50","v":0},null,null,{"$f":"'General Impact Estimates'!F50","v":0},60230.014763564322,{"$f":"EJ304*'Zambia-IO-Data'!BO51","v":0},{"$f":"EM304*'Zambia-IO-Data'!$BO51","v":0},{"$f":"EN304*'Zambia-IO-Data'!$BO51","v":0},{"$f":"EJ304*'Zambia-IO-Data'!BN51","v":0},{"$f":"EM304*'Zambia-IO-Data'!$BN51","v":0},{"$f":"EN304*'Zambia-IO-Data'!$BN51","v":0},0,0,0,null,null,null,null,null,null,null,null,null,null,null,null,null,null,null,null,null,null,null,null,null,null,null,null,null,null,null,null,null,null,null,null,null,null,null,null,null,null,null,null,null,null,null,null,null,null,null,null,null,null,null,null,null,null,null,null,null,null,null,null,null,null,null,null,null,null,"HUPU",{"$f":"'General Impact Estimates'!C50","v":0},null,null,0,60230.014763564322,{"$f":"HM304*CustomRegion3!D52","v":0},{"$f":"HP304*CustomRegion3!$D52","v":0},{"$f":"HQ304*CustomRegion3!$D52","v":0},{"$f":"HM304*CustomRegion3!E52","v":0},{"$f":"HP304*CustomRegion3!$E52","v":0},{"$f":"HQ304*CustomRegion3!$E52","v":0},0,0,0]
[null,null,null,null,null,null,null,null,null,null,null,null,null,null,null,null,null,null,null,null,null,null,null,null,null,null,null,null,null,304,null,null,null,null,null,null,null,null,null,null,null,null,null,null,null,null,null,null,null,null,null,null,null,null,null,null,null,null,null,null,null,null,null,null,null,null,null,null,null,null,null,null,null,null,null,null,null,null,null,null,null,null,null,null,null,null,null,null,null,null,null,null,null,null,null,null,null,null,null,null,null,null,null,null,null,null,null,null,null,null,null,null,null,null,null,null,null,null,null,null,null,null,null,null,null,null,null,null,null,null,null,null,null,null,null,null,null,null,"HUEM",{"$f":"'General Impact Estimates'!C51","v":0},null,null,{"$f":"'General Impact Estimates'!F51","v":0},2775.5149723438494,{"$f":"EJ305*'Zambia-IO-Data'!BO52","v":0},{"$f":"EM305*'Zambia-IO-Data'!$BO52","v":0},{"$f":"EN305*'Zambia-IO-Data'!$BO52","v":0},{"$f":"EJ305*'Zambia-IO-Data'!BN52","v":0},{"$f":"EM305*'Zambia-IO-Data'!$BN52","v":0},{"$f":"EN305*'Zambia-IO-Data'!$BN52","v":0},0,0,0,null,null,null,null,null,null,null,null,null,null,null,null,null,null,null,null,null,null,null,null,null,null,null,null,null,null,null,null,null,null,null,null,null,null,null,null,null,null,null,null,null,null,null,null,null,null,null,null,null,null,null,null,null,null,null,null,null,null,null,null,null,null,null,null,null,null,"HUEM",{"$f":"'General Impact Estimates'!C51","v":0},null,null,0,2775.5149723438494,{"$f":"HM305*CustomRegion3!D53","v":0},{"$f":"HP305*CustomRegion3!$D53","v":0},{"$f":"HQ305*CustomRegion3!$D53","v":0},{"$f":"HM305*CustomRegion3!E53","v":0},{"$f":"HP305*CustomRegion3!$E53","v":0},{"$f":"HQ305*CustomRegion3!$E53","v":0},0,0,0]
[null,null,null,null,null,null,null,null,null,null,null,null,null,null,null,null,null,null,null,null,null,null,null,null,null,null,null,null,null,305]
[null,null,null,null,null,null,null,null,null,null,null,null,null,null,null,null,null,null,null,null,null,null,null,null,null,null,null,null,null,306,"Agriculture",{"$f":"AF264","v":0},{"$f":"AG264","v":0},null,{"$f":"AI264","v":1821.3278887375748},21511.408393330272,0,1260.9069873853521,14892.367991164158,0,332.88912561083913,3931.6994896931255,0,7.0028825528316685E-2,0.82709910420854738,null,null,null,null,null,null,null,null,null,null,null,null,"Agriculture",{"$f":"BG264","v":0},{"$f":"BH264","v":0},null,{"$f":"BJ264","v":738.78799823583245},8262.0722551871713,0,450.56866797935197,5038.8350916070558,0,74.224313943769587,830.07120629937913,0,7.2697102848744213E-2,0.81299197863710826,null,null,null,null,null,null,null,null,null,null,null,null,"Agriculture",{"$f":"CH264","v":0},{"$f":"CI264","v":0},null,{"$f":"CK264","v":2809.6336584306177},29779.142638120276,0,1982.9180431570762,21016.832237075476,0,570.7745194429009,6049.6057120090327,0,0.33904601005490376,3.5935288090014414,null,null,null,null,null,null,null,null,null,null,null,null,"Agriculture",{"$f":"DI264","v":0},{"$f":"DJ264","v":0},null,{"$f":"DL264","v":4718.7505288514121},31070.151495445487,0,1905.662083880952,12547.645670880507,0,584.57874978501695,3849.1016225135404,0,4.1826356732018732E-2,0.27540155645454112,null,null,null,null,null,null,null,null,null,null,null,null,"Agriculture",{"$f":"SUM(EJ264:EJ276)","v":1000000},{"$f":"SUM(EK264:EK276)","v":0},{"$f":"SUM(EL264:EL276)","v":0},462024.59834766289,198165.26993933466,300861.81735290086,129603.19262359937,75231.87763510838,193502.46036524736,84976.334602651288,60398.645971559818,1929.3490504278268,847.27093477260746,602.21492808100732,null,null,null,null,null,null,null,null,null,null,null,null,"Agriculture",{"$f":"FK264","v":0},{"$f":"FL264","v":0},null,{"$f":"FN264","v":7890.0402005691003},57901.741439226855,0,5568.4494766773869,40864.547406579259,0,1602.8544825948907,11762.686051868399,0.95211225888786299,6.9871580415099626,5.6556459951184767E-4,null,null,null,null,null,null,null,null,null,null,null,null,"Agriculture",{"$f":"GL264","v":0},{"$f":"GM264","v":0},0,3252.3069273973269,36547.02883570781,0,2004.0112307583327,22519.601585148743,0,359.88938977970037,4044.1717831562883,0,0.35248444334301315,3.9609604513263457,null,null,null,null,null,null,null,null,null,null,null,null,"Agriculture",{"$f":"SUM(HM264:HM276)","v":1000000},{"$f":"SUM(HN264:HN276)","v":0},{"$f":"SUM(HO264:HO276)","v":0},462024.59834766289,198165.26993933466,300861.81735290086,129603.19262359937,75231.87763510838,193502.46036524736,84976.334602651288,60398.645971559818,1929.3490504278268,847.27093477260746,602.21492808100732]
[null,null,null,null,null,null,null,null,null,null,null,null,null,null,null,null,null,null,null,null,null,null,null,null,null,null,null,null,null,307,"Mining and Extraction",{"$f":"AF265","v":0},{"$f":"AG265","v":0},null,{"$f":"AI265","v":432611.53895172017},5433.9511724265758,0,354258.34434318024,4449.7716132355781,0,29383.145318845127,369.07609385966441,0,2.8849740453605603,3.6237609690657847E-2,null,null,null,null,null,null,null,null,null,null,null,null,"Mining and Extraction",{"$f":"BG265","v":0},{"$f":"BH265","v":0},null,{"$f":"BJ265","v":285749.46235393884},4563.129297245061,0,246009.52639316896,3928.5227976932974,0,15267.815927069496,243.81154591801544,0,0.8187137195640829,1.3074028307958589E-2,null,null,null,null,null,null,null,null,null,null,null,null,"Mining and Extraction",{"$f":"CH265","v":0},{"$f":"CI265","v":0},null,{"$f":"CK265","v":31080.532147249767},1664.0396417108932,0,17892.636701518597,957.96483229431476,0,4677.1790935655399,250.41435539781062,0,1.4981467652843299,8.0210197004450798E-2,null,null,null,null,null,null,null,null,null,null,null,null,"Mining and Extraction",{"$f":"DI265","v":0},{"$f":"DJ265","v":0},null,{"$f":"DL265","v":293215.74228317454},307143.41293131962,0,174637.70117788477,182932.94605735564,0,59169.396109837384,61979.926864600136,0,3.8600882919985331,4.0434414707367861,null,null,null,null,null,null,null,null,null,null,null,null,"Mining and Extraction",{"$f":"EJ277","v":0},{"$f":"EK277","v":0},{"$f":"EL277","v":0},4374.8779216198818,3680.5147580459743,0,1068.8361032173898,899.19470264152289,0,38.981498544108355,32.7945106704178,0,3.5378249275716547E-2,2.9763154745330866E-2,null,null,null,null,null,null,null,null,null,null,null,null,"Mining and Extraction",{"$f":"FK265","v":0},{"$f":"FL265","v":0},null,{"$f":"FN265","v":238795.05246254633},22474.874013758701,0,137471.04134478251,12938.477170706014,0,35935.267186972487,3382.1496481994222,11.510421820249368,1.0833360138225585,3.6869020561534583E-3,null,null,null,null,null,null,null,null,null,null,null,null,"Mining and Extraction",{"$f":"GL265","v":0},{"$f":"GM265","v":0},0,165988.58180624808,20295.121336481301,0,134891.56540240004,16492.945823858849,0,10646.000935049375,1301.6671289915651,0,0.57087582570101958,6.9799946626389164E-2,null,null,null,null,null,null,null,null,null,null,null,null,"Mining and Extraction",{"$f":"HM277","v":0},{"$f":"HN277","v":0},{"$f":"HO277","v":0},4374.8779216198818,3680.5147580459743,0,1068.8361032173898,899.19470264152289,0,38.981498544108355,32.7945106704178,0,3.5378249275716547E-2,2.9763154745330866E-2]
[null,null,null,null,null,null,null,null,null,null,null,null,null,null,null,null,null,null,null,null,null,null,null,null,null,null,null,null,null,308,"Utilities",{"$f":"AF282","v":0},{"$f":"AG282","v":0},null,{"$f":"AI282","v":25868.272152916961},15846.960617386419,0,13681.423679076999,8381.2703434722207,0,2411.2335678987133,1477.1270057750003,0,0.23674614086424628,0.14503120844006115,null,null,null,null,null,null,null,null,null,null,null,null,"Utilities",{"$f":"BG282","v":0},{"$f":"BH282","v":0},null,{"$f":"BJ282","v":38624.496440424569},4355.7480274896661,0,17277.808795571393,1948.4469317738101,0,4173.1914795888879,470.61767092791052,0,0.23031825120030833,2.5973368220035882E-2,null,null,null,null,null,null,null,null,null,null,null,null,"Utilities",{"$f":"CH282","v":0},{"$f":"CI282","v":0},null,{"$f":"CK282","v":82296.938120783991},8833.1040934163611,0,49316.936510129817,5293.2909013338713,0,10213.607622953768,1096.2480666103552,0,2.663204220117847,0.28584733084238084,null,null,null,null,null,null,null,null,null,null,null,null,"Utilities",{"$f":"DI282","v":0},{"$f":"DJ282","v":0},null,{"$f":"DL282","v":50891.854734888861},73177.587473415173,0,27671.253894252979,39788.599037983164,0,9042.0268684067833,13001.564111716249,0,0.33760801514404409,0.48544782241926498,null,null,null,null,null,null,null,null,null,null,null,null,"Utilities",{"$f":"EJ283","v":0},{"$f":"EK283","v":0},{"$f":"EL283","v":0},11195.101953930271,14815.852657487108,0,2984.1588555859698,3949.3037305815024,0,147.72477062625563,195.50232275386344,0,0.25765413101627116,0.34098533961004152,null,null,null,null,null,null,null,null,null,null,null,null,"Utilities",{"$f":"FK282","v":0},{"$f":"FL282","v":0},null,{"$f":"FN282","v":112858.49772601045},17315.238268848727,0,67631.135423453175,10376.260962580365,0,14006.504239534763,2148.9383884053723,3.6522042530785743,0.56033695399778116,9.5231441608075915E-4,null,null,null,null,null,null,null,null,null,null,null,null,"Utilities",{"$f":"GL284","v":0},{"$f":"GM284","v":0},0,62728.273922708038,16322.278648066633,0,24640.841169303585,6411.6968399879424,0,9277.939047008831,2414.1762069151196,0,0.51204904124376271,0.13323827693639878,null,null,null,null,null,null,null,null,null,null,null,null,"Utilities",{"$f":"HM283","v":0},{"$f":"HN283","v":0},{"$f":"HO283","v":0},11195.101953930271,14815.852657487108,0,2984.1588555859698,3949.3037305815024,0,147.72477062625563,195.50232275386344,0,0.25765413101627116,0.34098533961004152]
[null,null,null,null,null,null,null,null,null,null,null,null,null,null,null,null,null,null,null,null,null,null,null,null,null,null,null,null,null,309,"Construction",{"$f":"AF283","v":0},{"$f":"AG283","v":0},null,{"$f":"AI283","v":4587.8636764776184},3176.4402555161269,0,2278.1620383395093,1577.3017939203787,0,449.27873989257455,311.06135142141142,0,0.1269208692411361,8.7874572295960421E-2,null,null,null,null,null,null,null,null,null,null,null,null,"Construction",{"$f":"BG283","v":0},{"$f":"BH283","v":0},null,{"$f":"BJ283","v":1351.5838454883872},290.83120768868412,0,679.76901205952663,146.27138626030171,0,298.97351982220385,64.332545943836053,0,0.10439747390681095,2.2464047285941448E-2,null,null,null,null,null,null,null,null,null,null,null,null,"Construction",{"$f":"CH283","v":0},{"$f":"CI283","v":0},null,{"$f":"CK283","v":3126.7243556513308},2642.3675707088209,0,1720.7256313613691,1454.1702718945296,0,528.76960392725641,446.85859540786964,0,0.16937013867912407,0.14313323177442233,null,null,null,null,null,null,null,null,null,null,null,null,"Construction",{"$f":"DI283","v":0},{"$f":"DJ283","v":0},null,{"$f":"DL283","v":9742.6714579945747},17341.884769120486,0,2900.8867735628219,5163.5574875217335,0,1308.3267812384329,2328.812213201888,0,0.12703293771833507,0.22611771086527926,null,null,null,null,null,null,null,null,null,null,null,null,"Construction",{"$f":"EJ285","v":0},{"$f":"EK285","v":0},{"$f":"EL285","v":0},4375.1835252654037,10362.387140008323,0,265.42414754928637,628.64283459870455,0,116.74711855923054,276.50927852627876,0,0.41820064458876416,0.9904857605183367,null,null,null,null,null,null,null,null,null,null,null,null,"Construction",{"$f":"FK283","v":0},{"$f":"FL283","v":0},null,{"$f":"FN283","v":8792.2766025367146},5140.7332759317669,0,4838.6406945847411,2829.0922082402158,0,1486.8879018194639,869.36460941849282,0.47626491436168045,0.27846609064954747,1.525523668424333E-4,null,null,null,null,null,null,null,null,null,null,null,null,"Construction",{"$f":"GL285","v":0},{"$f":"GM285","v":0},0,1617.2313713547767,1275.2664096667934,0,788.06479748778725,621.42781959216086,0,325.20795011381892,256.44244990704408,0,0.11355817902028612,8.9546204589256856E-2,null,null,null,null,null,null,null,null,null,null,null,null,"Construction",{"$f":"HM285","v":0},{"$f":"HN285","v":0},{"$f":"HO285","v":0},4375.1835252654037,10362.387140008323,0,265.42414754928637,628.64283459870455,0,116.74711855923054,276.50927852627876,0,0.41820064458876416,0.9904857605183367]
[null,null,null,null,null,null,null,null,null,null,null,null,null,null,null,null,null,null,null,null,null,null,null,null,null,null,null,null,null,310,"Manufacturing",{"$f":"SUM(AF266:AF281)","v":1000000},{"$f":"SUM(AG266:AG281)","v":0},null,{"$f":"SUM(AI266:AI281)","v":152820.08564298891},80870.275405988083,291315.09752364509,51349.567691457472,24211.132724980973,76148.241173161703,13563.383135539598,7841.8164654305829,18.432770298026071,3.2832107734832077,1.898223772468506,null,null,null,null,null,null,null,null,null,null,null,null,"Manufacturing",{"$f":"SUM(BG266:BG281)","v":1000000},{"$f":"SUM(BH266:BH281)","v":0},null,{"$f":"SUM(BJ266:BJ281)","v":196013.79891822612},47580.611067938764,376641.77335229964,66091.441618145866,16113.420483610036,46161.292871819183,11118.286714615193,3585.0869910790821,4.5774324217030893,1.3467491907348152,0.70778752757907959,null,null,null,null,null,null,null,null,null,null,null,null,"Manufacturing",{"$f":"SUM(CH266:CH281)","v":1000000},{"$f":"SUM(CI266:CI281)","v":0},null,{"$f":"SUM(CK266:CK281)","v":630288.76345722948},60243.342297146068,205279.86568762723,128880.97764407448,16943.607726177423,46719.864143806866,28400.485445536517,3802.8644613600545,14.964834987366261,9.0969566380875246,1.2180951333334842,null,null,null,null,null,null,null,null,null,null,null,null,"Manufacturing",{"$f":"SUM(DI266:DI281)","v":1000000},{"$f":"SUM(DJ266:DJ281)","v":0},null,{"$f":"SUM(DL266:DL281)","v":154127.05622603995},305715.32379972812,159536.8781249834,37388.570558850108,72951.437247804381,102704.02388935236,22158.738286686959,42781.849273817628,8.2384370975016736,1.7774704887078758,3.4317601278880789,null,null,null,null,null,null,null,null,null,null,null,null,"Manufacturing",{"$f":"SUM(EJ278:EJ282)+EJ284","v":0},{"$f":"SUM(EK278:EK282)+EK284","v":0},{"$f":"SUM(EL278:EL282)+EL284","v":0},547499.48938495491,197835.65460562985,0,63306.25522330634,23458.701164840375,0,25070.169419094818,7428.3755535294067,0,96.984534436970534,28.736843881609278,null,null,null,null,null,null,null,null,null,null,null,null,"Manufacturing",{"$f":"SUM(FK266:FK281)","v":1000000},{"$f":"SUM(FL266:FL281)","v":0},null,{"$f":"SUM(FN266:FN281)","v":1212509.4332283989},163471.00463398194,205279.86568762723,251255.41239598687,44286.49018514873,46719.864143806866,56156.045360236494,10347.78318695182,17.987337244224243,3.3144973923967203,5.7615221845118544E-3,null,null,null,null,null,null,null,null,null,null,null,null,"Manufacturing",{"$f":"SUM(GL266:GL283)","v":1000000},{"$f":"SUM(GM266:GM283)","v":0},0,671014.94687580911,248000.14694946405,361188.05918902927,222471.9021200166,82318.480690057375,88317.33831811737,67189.386916513788,27631.347567568151,8.7576976870738825,7.984016178994322,4.9081510078797166,null,null,null,null,null,null,null,null,null,null,null,null,"Manufacturing",{"$f":"SUM(HM278:HM282)+HM284","v":0},{"$f":"SUM(HN278:HN282)+HN284","v":0},{"$f":"SUM(HO278:HO282)+HO284","v":0},547499.48938495491,197835.65460562985,0,63306.25522330634,23458.701164840375,0,25070.169419094818,7428.3755535294067,0,96.984534436970534,28.736843881609278]
[null,null,null,null,null,null,null,null,null,null,null,null,null,null,null,null,null,null,null,null,null,null,null,null,null,null,null,null,null,311,"Sales",{"$f":"AF284","v":0},{"$f":"AG284","v":0},null,{"$f":"AI284","v":71753.413738091258},29818.718022078581,0,43108.558532576113,17914.714913957643,0,18700.753872160079,7771.5118691030148,0,5.8155852535968995,2.4167950732399164,null,null,null,null,null,null,null,null,null,null,null,null,"Sales",{"$f":"BG284","v":0},{"$f":"BH284","v":0},null,{"$f":"BJ284","v":94911.012295237757},28098.738968694757,0,72271.709137645797,21396.293652027936,0,14552.878259709376,4308.4307876809398,0,3.0519657242378355,0.90354518567352049,null,null,null,null,null,null,null,null,null,null,null,null,"Sales",{"$f":"CH284","v":0},{"$f":"CI284","v":0},null,{"$f":"CK284","v":90600.855280782562},26303.148196760274,0,62615.601891398386,18178.497883652308,0,13937.67679582514,4046.372157779138,0,4.4643758533791758,1.2960930590947539,null,null,null,null,null,null,null,null,null,null,null,null,"Sales",{"$f":"DI284","v":0},{"$f":"DJ284","v":0},null,{"$f":"DL284","v":137661.92939374354},214119.60744535123,0,80844.210874718163,125745.22798683487,0,38820.169223389959,60380.959584692086,0,4.1634408159099463,6.4758231782062063,null,null,null,null,null,null,null,null,null,null,null,null,"Trade, Transportation, and Warehousing (Sales for other countries)",{"$f":"EJ286","v":0},{"$f":"EK286","v":0},{"$f":"EL286","v":0},35720.121992559689,39248.73151700262,0,8075.2985374108257,8873.0162870244239,0,2972.9865319218643,3266.6727795434472,0,7.6219549417710164,8.374889178894005,null,null,null,null,null,null,null,null,null,null,null,null,"Sales",{"$f":"FK284","v":0},{"$f":"FL284","v":0},null,{"$f":"FN284","v":184612.75271949865},61116.887764849671,0,127588.62587482911,42238.792352072036,0,28400.094809455266,9401.979990070542,9.0968315134836075,3.0115472654809943,2.9138051876206289E-3,null,null,null,null,null,null,null,null,null,null,null,null,"Sales",{"$f":"GL286","v":0},{"$f":"GM286","v":0},0,174833.54746656859,91865.614717349352,0,128268.82382480301,67398.359871352135,0,31239.790200117186,16414.827542886542,0,6.5514716210539294,3.4424455517410029,null,null,null,null,null,null,null,null,null,null,null,null,"Trade, Transportation, and Warehousing (Sales for other countries)",{"$f":"HM286","v":0},{"$f":"HN286","v":0},{"$f":"HO286","v":0},35720.121992559689,39248.73151700262,0,8075.2985374108257,8873.0162870244239,0,2972.9865319218643,3266.6727795434472,0,7.6219549417710164,8.374889178894005]
[null,null,null,null,null,null,null,null,null,null,null,null,null,null,null,null,null,null,null,null,null,null,null,null,null,null,null,null,null,312,"Transportation and Warehousing",{"$f":"AF286","v":0},{"$f":"AG286","v":0},null,{"$f":"AI286","v":50018.605241357844},21038.185192242163,0,21818.941676226284,9177.2038318179621,0,5518.5793106771034,2321.1541580552321,0,1.2670242343421823,0.53291950778166164,null,null,null,null,null,null,null,null,null,null,null,null,"Transportation and Warehousing",{"$f":"BG286","v":0},{"$f":"BH286","v":0},null,{"$f":"BJ286","v":26997.033962203343},16235.138720838317,0,19731.999665611009,11866.183235507724,0,6365.8034871311474,3828.1873048670145,0,0.89651835248090805,0.53913699700057949,null,null,null,null,null,null,null,null,null,null,null,null,"Transportation and Warehousing",{"$f":"CH286","v":0},{"$f":"CI286","v":0},null,{"$f":"CK286","v":15450.211877177684},6538.9362122268831,0,6829.3647361441635,2890.3668593466496,0,2541.4165529896159,1075.5943582394605,0,0.81404088061099877,0.34452352076304826,null,null,null,null,null,null,null,null,null,null,null,null,"Transportation and Warehousing",{"$f":"DI286","v":0},{"$f":"DJ286","v":0},null,{"$f":"DL286","v":86178.959312016712},126125.36336767874,0,45572.155066020343,66696.147911692751,0,15875.08078358023,23233.633224451329,0,0.9158946362120175,1.3404379064327012,null,null,null,null,null,null,null,null,null,null,null,null,"Transportation and Warehousing",null,null,null,null,null,null,null,null,null,null,null,null,null,null,null,null,null,null,null,null,null,null,null,null,null,null,"Transportation and Warehousing",{"$f":"FK286","v":0},{"$f":"FL286","v":0},null,{"$f":"FN286","v":36708.755804702305},17196.335073691298,0,16226.151744279938,7601.1931277565991,0,6038.2498559473433,2828.6376235131784,1.9341112043605611,0.90604063283736647,6.1951496544128458E-4,null,null,null,null,null,null,null,null,null,null,null,null,"Transportation and Warehousing",{"$f":"GL288","v":0},{"$f":"GM288","v":0},0,45708.346813598211,56279.629173161316,0,28359.416219281928,34918.292601947636,0,9630.2291601091147,11857.478201820793,0,1.35625882861262,1.6699300950091753,null,null,null,null,null,null,null,null,null,null,null,null,"Transportation and Warehousing"]
[null,null,null,null,null,null,null,null,null,null,null,null,null,null,null,null,null,null,null,null,null,null,null,null,null,null,null,null,null,313,"Information",{"$f":"AF287","v":0},{"$f":"AG287","v":0},null,{"$f":"AI287","v":5339.0829919479656},12734.654143700092,0,2919.0378926837093,6962.4199608329427,0,708.54473234106456,1690.0040934579931,0,0.16267653257328563,0.38801220785319174,null,null,null,null,null,null,null,null,null,null,null,null,"Information",{"$f":"BG287","v":0},{"$f":"BH287","v":0},null,{"$f":"BJ287","v":3040.1009243344301},6327.8060064044948,0,1854.8897343186684,3860.8528776423354,0,474.17955792348471,986.97915938411097,0,3.9410480293069039E-2,8.2030787832599816E-2,null,null,null,null,null,null,null,null,null,null,null,null,"Information",{"$f":"CH287","v":0},{"$f":"CI287","v":0},null,{"$f":"CK287","v":3141.7597720164413},5788.8261273934459,0,1902.9571013050879,3506.2794696978322,0,337.43799555309113,621.74387183629176,0,8.7987156640466857E-2,0.16212008180004442,null,null,null,null,null,null,null,null,null,null,null,null,"Information",{"$f":"DI287","v":0},{"$f":"DJ287","v":0},null,{"$f":"DL287","v":13511.340784857299},36264.542201139884,0,5486.7004630997235,14726.346086399533,0,1795.4919758396043,4819.1142216335602,0,0.10358885680343219,0.27803328544018946,null,null,null,null,null,null,null,null,null,null,null,null,"Information",null,null,null,null,null,null,null,null,null,null,null,null,null,null,null,null,null,null,null,null,null,null,null,null,null,null,"Information",{"$f":"FK287","v":0},{"$f":"FL287","v":0},null,{"$f":"FN287","v":6390.0967968384948},11036.704154112333,0,3870.4678142104221,6684.9078443676499,0,686.32282891937348,1185.3876800026233,0.17895908300153504,0.30909053768267908,4.6663686590720473E-5,null,null,null,null,null,null,null,null,null,null,null,null,"Information",{"$f":"GL289","v":0},{"$f":"GM289","v":0},0,9298.3797731994291,21571.14925908178,0,5716.3137706732987,13261.176739021288,0,1564.3619971452715,3629.1361461615966,0,0.13001880116828712,0.3016283519169447,null,null,null,null,null,null,null,null,null,null,null,null,"Information"]
[null,null,null,null,null,null,null,null,null,null,null,null,null,null,null,null,null,null,null,null,null,null,null,null,null,null,null,null,null,314,"Finance, Professional, and Business Services",{"$f":"AF292+AF293+AF289+AF288+AF291+AF290","v":0},{"$f":"AG292+AG293+AG289+AG288+AG291+AG290","v":0},null,{"$f":"AI292+AI293+AI289+AI288+AI291+AI290","v":78010.306661065159},93214.18274074918,0,57229.384589068963,66981.642964816114,0,18081.862807430585,25783.642271697991,0,2.0762134417453937,2.843188781761476,null,null,null,null,null,null,null,null,null,null,null,null,"Finance, Professional, and Business Services",{"$f":"BG292+BG293+BG289+BG288+BG291+BG290","v":0},{"$f":"BH292+BH293+BH289+BH288+BH291+BH290","v":0},null,{"$f":"BJ292+BJ293+BJ289+BJ288+BJ291+BJ290","v":61553.856152582826},49859.212151240179,0,46419.306331201216,39406.236425597534,0,15829.621376092404,13921.840582678151,0,3.7921738251505199,7.2322000371776864,null,null,null,null,null,null,null,null,null,null,null,null,"Finance, Professional, and Business Services",{"$f":"CH292+CH293+CH289+CH288+CH291+CH290","v":0},{"$f":"CI292+CI293+CI289+CI288+CI291+CI290","v":0},null,{"$f":"CK292+CK293+CK289+CK288+CK291+CK290","v":41653.002277069412},61069.364389143564,0,25697.86683874259,40043.024150992707,0,5768.9813499256406,12033.360550055573,0,1.5042652943093844,3.1377058706548944,null,null,null,null,null,null,null,null,null,null,null,null,"Finance, Professional, and Business Services",{"$f":"DI292+DI293+DI289+DI288+DI291+DI290","v":0},{"$f":"DJ292+DJ293+DJ289+DJ288+DJ291+DJ290","v":0},null,{"$f":"DL292+DL293+DL289+DL288+DL291+DL290","v":102894.6428763803},366179.15097192425,0,53532.052109633019,204665.75593816032,0,25146.26244214422,118945.11086855817,0,1.6085693015867042,7.4397616479109105,null,null,null,null,null,null,null,null,null,null,null,null,"Finance, Professional, and Business Services",{"$f":"EJ289","v":0},{"$f":"EK289","v":0},{"$f":"EL289","v":0},30052.011965835773,28512.291571241389,0,6260.6955202195359,5939.9276266160559,0,1491.8460635949814,1415.4110544407229,0,1.5238630568138003,1.4457876510868048,null,null,null,null,null,null,null,null,null,null,null,null,"Finance, Professional, and Business Services",{"$f":"FK292+FK293+FK289+FK288+FK291+FK290","v":0},{"$f":"FL292+FL293+FL289+FL288+FL291+FL290","v":0},null,{"$f":"FN292+FN293+FN289+FN288+FN291+FN290","v":97931.769302884059},118834.8491160686,0,58123.100372577108,76645.343997040662,0,14239.820344791091,22691.018593279736,3.7130415653269582,5.9166965001264238,9.6817778118168571E-4,null,null,null,null,null,null,null,null,null,null,null,null,"Finance, Professional, and Business Services",{"$f":"SUM(GL290:GL295)","v":0},{"$f":"SUM(GM290:GM295)","v":0},0,103024.17767392928,128450.25370129882,0,74533.268679863904,101954.42962048575,0,21774.923518563905,16101.572700721765,0,5.0285898639598576,3.7140957749099668,null,null,null,null,null,null,null,null,null,null,null,null,"Finance, Professional, and Business Services",{"$f":"HM289","v":0},{"$f":"HN289","v":0},{"$f":"HO289","v":0},30052.011965835773,28512.291571241389,0,6260.6955202195359,5939.9276266160559,0,1491.8460635949814,1415.4110544407229,0,1.5238630568138003,1.4457876510868048]
[null,null,null,null,null,null,null,null,null,null,null,null,null,null,null,null,null,null,null,null,null,null,null,null,null,null,null,null,null,315,"Education and Health Care",{"$f":"AF294+AF295","v":0},{"$f":"AG294+AG295","v":0},null,{"$f":"AI294+AI295","v":227.89982734501598},34884.225902580314,0,172.17124052136003,20869.48953924454,0,126.79987794251615,15406.751274955934,0,1.2449802526226761E-2,1.5127065897559455,null,null,null,null,null,null,null,null,null,null,null,null,"Education and Health Care",{"$f":"BG294+BG295","v":0},{"$f":"BH294+BH295","v":0},null,{"$f":"BJ294+BJ295","v":183.65527415354632},18928.081798088962,0,164.77681155106171,15783.164666518322,0,142.10016878999849,12659.602359744755,0,3.5388519911815713E-2,3.9970656104853193,null,null,null,null,null,null,null,null,null,null,null,null,"Education and Health Care",{"$f":"CH294+CH295","v":0},{"$f":"CI294+CI295","v":0},null,{"$f":"CK294+CK295","v":490.41347729978929},23400.269460853822,0,278.05258939167652,14747.446747955084,0,183.24293160009529,10043.040729842578,0,4.7780702642951804E-2,2.6187288019976882,null,null,null,null,null,null,null,null,null,null,null,null,"Education and Health Care",{"$f":"DI294+DI295","v":0},{"$f":"DJ294+DJ295","v":0},null,{"$f":"DL294+DL295","v":783.7954294234662},25740.728664255901,0,365.38235808632948,12201.660767395053,0,163.51062925036194,5600.5238394194557,0,1.0013065896142318E-2,0.34296494676904227,null,null,null,null,null,null,null,null,null,null,null,null,"Education and Health Care",null,null,null,null,null,null,null,null,null,null,null,null,null,null,null,null,null,null,null,null,null,null,null,null,null,null,"Education and Health Care",{"$f":"FK294+FK295","v":0},{"$f":"FL294+FL295","v":0},null,{"$f":"FN294+FN295","v":1571.1162509298251},39776.464819107088,0,883.00408683897831,25052.093479627561,0,580.21557425441836,17057.363633074798,0.1512915536778362,4.447717641864136,3.9449361978375559E-5,null,null,null,null,null,null,null,null,null,null,null,null,"Education and Health Care",{"$f":"GL298+GL297","v":0},{"$f":"GM298+GM297","v":0},0,320.40359596888777,23254.480181345236,0,271.7847458571041,19152.676370338668,0,193.43363446608126,13038.985449309934,0,5.662632623109351E-2,4.2173615816664833,null,null,null,null,null,null,null,null,null,null,null,null,"Education and Health Care"]
[null,null,null,null,null,null,null,null,null,null,null,null,null,null,null,null,null,null,null,null,null,null,null,null,null,null,null,null,null,316,"Other",{"$f":"AF297+AF296+AF285+AF298","v":0},{"$f":"AG297+AG296+AG285+AG298","v":0},null,{"$f":"AI297+AI296+AI285+AI298","v":11677.854705735515},278875.61793183751,0,6017.8261377396793,18840.416769708732,0,2418.9435318598294,8981.5474879224894,0,0.50886544955359314,1.8894195502838484,null,null,null,null,null,null,null,null,null,null,null,null,"Other",{"$f":"BG297+BG296+BG285+BG298","v":0},{"$f":"BH297+BH296+BH285+BH298","v":0},null,{"$f":"BJ297+BJ296+BJ285+BJ298","v":2510.4055934488983},167380.28292930493,0,1797.6882237095135,6813.5963599938304,0,417.28441140158122,2231.2865653486579,0,0.29825609042190598,1.1024867622549968,null,null,null,null,null,null,null,null,null,null,null,null,"Other",{"$f":"CH297+CH296+CH285+CH298","v":0},{"$f":"CI297+CI296+CI285+CI298","v":0},null,{"$f":"CK297+CK296+CK285+CK298","v":14194.389926906186},179024.91621804595,0,5903.1019135846291,7503.3352529030135,0,3441.3421892779552,5022.1116199535791,0,1.6955819183308245,2.6784331823028156,null,null,null,null,null,null,null,null,null,null,null,null,"Other",{"$f":"DI297+DI296+DI285+DI298","v":0},{"$f":"DJ297+DJ296+DJ285+DJ298","v":0},null,{"$f":"DL297+DL296+DL285+DL298","v":53709.673408391754},574501.46459449723,0,37199.908956200488,67079.422942975114,0,20504.713942365011,36687.77924743991,0,1.2743459297292863,2.3096884984818082,null,null,null,null,null,null,null,null,null,null,null,null,"Other",{"$f":"SUM(EJ290:EJ305)+EJ288+EJ287","v":0},{"$f":"SUM(EK290:EK305)+EK288+EK287","v":0},{"$f":"SUM(EL290:EL305)+EL288+EL287","v":0},13354.315809853357,758037.44602356805,0,4717.7020701877145,7665.1364759811759,0,3732.4340977697543,5373.0483819821884,0,8.9865858843988704,12.931631229895361,null,null,null,null,null,null,null,null,null,null,null,null,"Other",{"$f":"FK297+FK296+FK285+FK298","v":0},{"$f":"FL297+FL296+FL285+FL298","v":0},null,{"$f":"FN297+FN296+FN285+FN298","v":23679.406694416924},333489.19788864348,0,9926.1832580334503,13504.705561833012,0,5934.6672474764409,9029.9359678989204,2.9706604361579885,4.8134513290050265,1.5869613819821235E-3,null,null,null,null,null,null,null,null,null,null,null,null,"Other",{"$f":"GL296+SUM(GL299:GL302)","v":0},{"$f":"GM296+SUM(GM299:GM302)","v":0},0,1519.4377000754657,881605.93584139086,0,1098.6238426671148,14448.649635932517,0,576.73431924330293,5920.2011259551491,0,0.40970426870031473,2.5071693674655204,null,null,null,null,null,null,null,null,null,null,null,null,"Other",{"$f":"SUM(HM290:HM305)+HM288+HM287","v":0},{"$f":"SUM(HN290:HN305)+HN288+HN287","v":0},{"$f":"SUM(HO290:HO305)+HO288+HO287","v":0},13354.315809853357,758037.44602356805,0,4717.7020701877145,7665.1364759811759,0,3732.4340977697543,5373.0483819821884,0,8.9865858843988704,12.931631229895361]
[null,null,null,null,null,null,null,null,null,null,null,null,null,null,null,null,null,null,null,null,null,null,null,null,null,null,null,null,null,317,"Total",{"$f":"SUM(AF307:AF317)","v":1000000},{"$f":"SUM(AG307:AG317)","v":0},null,{"$f":"SUM(AI307:AI317)","v":834736.25147838402},597404.61977783521,291315.09752364509,554094.32480825577,194257.73244715124,76148.241173161703,91695.414020198034,75885.391561372438,18.432770298026071,16.444695368815047,12.577507977779772,null,null,null,null,null,null,null,null,null,null,null,null,"Total",{"$f":"SUM(BG307:BG317)","v":1000000},{"$f":"SUM(BH307:BH317)","v":0},null,{"$f":"SUM(BJ307:BJ317)","v":711674.19375827443},351881.65243012097,376641.77335229964,472749.4843909624,126301.82390823217,46161.292871819183,68714.359216087527,43130.246719871851,4.5774324217030893,10.686588730750817,15.438756330454826,null,null,null,null,null,null,null,null,null,null,null,null,"Total",{"$f":"SUM(CH307:CH317)","v":1000000},{"$f":"SUM(CI307:CI317)","v":0},null,{"$f":"SUM(CK307:CK317)","v":915133.22435059724},405287.45684552635,205279.86568762723,303021.1396008078,132534.81633332322,46719.864143806866,70600.914100597525,44488.214478491747,14.964834987366261,22.380755578137531,15.558419218569426,null,null,null,null,null,null,null,null,null,null,null,null,"Total",{"$f":"SUM(DI307:DI317)","v":1000000},{"$f":"SUM(DJ307:DJ317)","v":0},null,{"$f":"SUM(DL307:DL317)","v":907436.41643576242},2077379.2177138762,159536.8781249834,467504.4843161896,804498.74713500298,102704.02388935236,194568.29579252395,373608.37507204397,8.2384370975016736,14.219878696438336,26.648878151604812,null,null,null,null,null,null,null,null,null,null,null,null,"Total",{"$f":"SUM(EJ307:EJ317)","v":1000000},{"$f":"SUM(EK307:EK317)","v":0},{"$f":"SUM(EL307:EL317)","v":0},1108595.700901682,1250658.1482123178,300861.81735290086,216281.56308107643,126645.80045739215,193502.46036524736,118547.22410276229,78386.959853006134,1929.3490504278268,963.09910611744237,655.0653142773665,null,null,null,null,null,null,null,null,null,null,null,null,"Total",{"$f":"SUM(FK307:FK317)","v":1000000},{"$f":"SUM(FL307:FL317)","v":0},null,{"$f":"SUM(FN307:FN317)","v":1931739.1977893321},847754.03044822055,205279.86568762723,683382.21248625382,283021.90429595206,46719.864143806866,165066.929832002,90705.245372683305,52.623235846810232,31.628338399373199,1.7293427987895172E-2,null,null,null,null,null,null,null,null,null,null,null,null,"Total",{"$f":"SUM(GL307:GL317)","v":1000000},{"$f":"SUM(GM307:GM317)","v":0},0,1239305.6339268573,1525466.9050530139,361188.05918902927,623044.61580311274,379497.73759772308,88317.33831811737,152777.89706811035,102610.00630339395,8.7576976870738825,23.065653378028507,25.014326610067201,null,null,null,null,null,null,null,null,null,null,null,null,"Total",{"$f":"SUM(HM307:HM317)","v":1000000},{"$f":"SUM(HN307:HN317)","v":0},{"$f":"SUM(HO307:HO317)","v":0},1108595.700901682,1250658.1482123178,300861.81735290086,216281.56308107643,126645.80045739215,193502.46036524736,118547.22410276229,78386.959853006134,1929.3490504278268,963.09910611744237,655.0653142773665]

{"sheet":"SouthAfrica-IO-Data","index":16,"n_rows":134,"n_cols":47,"rows_kept":134,"cut":false,"hidden":false,"merged":[]}
[]
[]
[]
[]
[]
[]
[]
[]
[]
[]
[null,"Direct Requirements "]
[null,null,"DOM_C01T05: Agriculture, hunting, forestry and fishing","DOM_C10T14: Mining and quarrying","DOM_C15T16: Food products, beverages and tobacco","DOM_C17T19: Textiles, textile products, leather and footwear","DOM_C20: Wood and products of wood and cork","DOM_C21T22: Pulp, paper, paper products, printing and publishing","DOM_C23: Coke, refined petroleum products and nuclear fuel","DOM_C24: Chemicals and chemical products","DOM_C25: Rubber and plastics products","DOM_C26: Other non-metallic mineral products","DOM_C27: Basic metals","DOM_C28: Fabricated metal products","DOM_C29: Machinery and equipment, nec","DOM_C30T33X: Computer, Electronic and optical equipment","DOM_C31: Electrical machinery and apparatus, nec","DOM_C34: Motor vehicles, trailers and semi-trailers","DOM_C35: Other transport equipment","DOM_C36T37: Manufacturing nec; recycling","DOM_C40T41: Electricity, gas and water supply","DOM_C45: Construction","DOM_C50T52: Wholesale and retail trade; repairs","DOM_C55: Hotels and restaurants","DOM_C60T63: Transport and storage","DOM_C64: Post and telecommunications","DOM_C65T67: Financial intermediation","DOM_C70: Real estate activities","DOM_C71: Renting of machinery and equipment","DOM_C72: Computer and related activities","DOM_C73T74: R&D and other business activities","DOM_C75: Public administration and defence; compulsory social security","DOM_C80: Education","DOM_C85: Health and social work","DOM_C90T93: Other community, social and personal services","DOM_C95: Private households with employed persons","HH",null,null,null,null,null,null,"VA % output","Labor % Output","Avg Salaries $2015"]
[null,"DOM_C01T05: Agriculture, hunting, forestry and fishing",1.8687582854617763E-2,5.9620439249327573E-5,0.17536008326925601,0.10103695825578303,0.17676124300328122,7.0948700785005786E-2,5.9518326684758352E-4,4.5221112696148362E-3,2.4347063683420732E-2,1.186576642823718E-3,4.7821212427139073E-5,6.8908489525909599E-4,1.6317479577000723E-3,8.5559110185254067E-4,1.9563318777292577E-3,1.1535309981623057E-3,0,2.4268869989158469E-2,5.6430489393419263E-5,1.952747841671205E-5,4.0534030055404233E-5,5.0163064507213534E-3,1.4401099421075801E-5,2.771285784227689E-5,0,1.7465746983128089E-4,2.9661016949152541E-4,1.2212994626282367E-4,2.7722399940216042E-4,5.2225746114810249E-4,7.2051133062173156E-4,1.4017642093197961E-3,7.8837152007883715E-3,0,2.5764861175918693E-2,null,null,null,null,null,{"$f":"B13","v":"DOM_C01T05: Agriculture, hunting, forestry and fishing"},{"$f":"TRANSPOSE(C48:AJ48)","v":0.40384887317719842},{"$f":"TRANSPOSE(C47:AJ47)","v":0.12388422448077772},14391.35292146129,"<- average wages - not specific to agriculture"]
[null,"DOM_C10T14: Mining and quarrying",6.3676535572249225E-3,1.2235817575083427E-2,3.5984884004426022E-3,6.9358453298894668E-3,1.6560509554140127E-2,2.8868739731029026E-2,0.24933927571864839,1.9286733238231098E-2,1.2139810146857982E-2,0.15649441807607459,0.26447787206231638,0.18266050377406498,9.4118385406315702E-2,7.0009671899412249E-2,0.13154585152838427,6.6904797893413734E-2,1.6786293123408198E-2,7.6207214669063925E-2,0.11309610582597779,3.0885961695766226E-2,0,1.0778840307335139E-3,2.5345934981093414E-3,4.7943244067139021E-3,0,0,0,3.6638983878847092E-4,0,3.6112990859839965E-3,3.1841952353282971E-3,6.1027082704088352E-3,6.5494628388571936E-3,0,5.3273912750555826E-4,null,null,null,null,null,{"$f":"B14","v":"DOM_C10T14: Mining and quarrying"},0.59559456057181115,0.20179474556551691,15783.689727463312]
[null,"DOM_C15T16: Food products, beverages and tobacco",9.4551480335837379E-2,1.0135474672385686E-3,0.14269471690328386,4.406122991605576E-4,7.7205172746574021E-5,2.5132355625874761E-3,2.2035951903523628E-3,2.4843081312410843E-2,0,0,0,0,2.0919845611539389E-4,0,0,0,0,9.211935112421972E-3,3.5269055870887041E-4,0,2.0324920784924121E-3,0.12707976341827429,4.5425182173907674E-3,8.6002235503865945E-3,0,3.1653307609422906E-3,5.1694915254237288E-3,0,5.0310129282809465E-3,3.9607796426921263E-3,3.4166182452062752E-3,6.5441478280399311E-3,1.609407309599143E-2,0,8.6810589406600969E-2,null,null,null,null,null,"DOM_C15T16: Food products, beverages and tobacco",0.26195354550739858,0.13561729900039382,12836.637168141593]
[null,"DOM_C17T19: Textiles, textile products, leather and footwear",8.2854617764030053E-3,3.3728134203905311E-3,3.3757806492751448E-4,0.17258327952292324,1.0036672457054622E-3,5.8845006998113555E-3,4.6055848029872533E-5,4.4008559201141233E-3,1.3842755736903337E-2,1.6712347082024198E-5,0,8.4810448647273354E-5,1.2447308138865936E-3,3.4967636336582105E-3,6.6375545851528382E-4,2.8703033388755857E-2,5.0937717064135218E-3,1.4168063944836133E-2,1.0345589722126867E-4,6.511329192061429E-3,1.7603350195489838E-3,1.1469791609087393E-3,2.2712591086953837E-3,4.3001117751932973E-3,1.1877230162056321E-5,1.1554263388838582E-4,1.6949152542372882E-4,2.4425989252564734E-4,1.8320890395273211E-4,1.7539473632542791E-3,4.5090063916327717E-3,8.6119436506276962E-3,5.0934115061273188E-3,0,2.4704061543221738E-2,null,null,null,null,null,"DOM_C17T19: Textiles, textile products, leather and footwear",0.13309530140160292,0.13375621985034375,12836.637168141593]
[null,"DOM_C20: Wood and products of wood and cork",1.4317277949624392E-3,3.3438549213265722E-3,5.5817595318917498E-3,1.6864815588559273E-3,9.7008299556070265E-2,3.9676261181768391E-3,2.3417627344419802E-3,7.4893009985734661E-3,9.7792915071911513E-4,3.5263052343071062E-3,5.3134680474598971E-4,1.6538037486218302E-3,1.1296716630231271E-3,2.3063760136894577E-3,5.93886462882096E-4,2.8718944161144305E-3,8.3584163000694611E-3,2.3056773263839786E-2,3.7620326262279512E-4,6.0578577488288937E-3,1.5912502084607261E-3,4.0075175501630645E-4,1.4154223431000216E-3,2.4248750611992279E-3,0,8.2492066520312667E-4,4.2372881355932206E-5,1.2212994626282367E-4,1.6874504311435853E-4,6.5838471919171815E-4,1.5572341661824521E-3,2.3698334146511468E-3,1.793766660853534E-3,0,1.8527344364069177E-4,null,null,null,null,null,"DOM_C20: Wood and products of wood and cork",0.2650453580389886,0.22065238370970855,12836.637168141593]
[null,"DOM_C21T22: Pulp, paper, paper products, printing and publishing",3.6676977463543969E-4,5.9961127473609445E-4,1.2546651413139289E-2,6.2521365898127396E-3,8.1451457247635594E-3,0.20110752753605551,1.5729843480971849E-3,2.5106990014265335E-2,6.9298082921647646E-3,5.999732602446687E-3,3.4537542308489332E-4,1.070731914171826E-3,3.1693566101482174E-3,4.0175582173945399E-3,2.6899563318777291E-3,4.9005178956412435E-3,4.1444778884000919E-3,8.1951206372935237E-3,4.4203883358178429E-4,2.0395366346343696E-3,4.8564400466952026E-2,2.1834061135371182E-3,4.9457490011808897E-3,8.7249314106768415E-3,1.1334271068933746E-3,2.4793299602049675E-2,3.8432203389830506E-2,7.3277967757694193E-3,3.9146439359058122E-2,5.1270237476619485E-3,1.6385822196397445E-2,2.8414767314885805E-2,4.8996404162203015E-3,0,6.4770847317215576E-3,null,null,null,null,null,"DOM_C21T22: Pulp, paper, paper products, printing and publishing",0.22970851335726891,0.19149272804722206,12836.637168141593]
[null,"DOM_C23: Coke, refined petroleum products and nuclear fuel",1.4560318161732214E-2,6.7967300744233433E-3,8.2706625907241049E-3,2.5122497815930414E-2,3.7444508782088397E-3,1.053976754092375E-2,4.6580176145904928E-2,5.2546362339514985E-2,0.11075890674265289,3.2421953339126942E-3,1.0674757307346933E-2,1.0399881265371894E-2,5.5960587010867868E-3,5.691540807975598E-3,1.4847161572052401E-2,8.6315940207317369E-3,7.1775874044917808E-4,7.3331851881780173E-3,2.7697965210603291E-3,1.1961665390148169E-2,5.8160542553782864E-3,9.8944226410922556E-3,2.4294654723354882E-2,4.5901730206091285E-2,2.154868900830218E-4,5.4869315906996242E-3,8.4745762711864406E-3,1.2212994626282364E-3,8.6421568509282183E-3,8.7160712626195846E-3,3.4631028471818711E-3,6.4047458624722168E-3,4.7778414454216047E-3,0,3.1627174935559776E-2,null,null,null,null,null,"DOM_C23: Coke, refined petroleum products and nuclear fuel",0.21217220635854123,4.0231554632864035E-2,12836.637168141593]
[null,"DOM_C24: Chemicals and chemical products",4.1241714538223596E-2,1.4554200941321564E-2,1.1932446878340616E-3,5.9634595662247884E-3,7.9521327928971253E-3,1.4616929349479705E-2,4.0139442936804291E-3,5.7146932952924397E-2,2.3470299617258761E-2,5.6487733137241787E-3,1.5249653296209903E-3,3.3712153337291158E-3,2.081524638348169E-3,5.9519380998437627E-4,3.5807860262008734E-3,5.139179481467927E-3,5.6031488770548737E-3,2.7541531147518908E-3,1.9092315578106854E-3,7.511570030961901E-3,2.1390386717809033E-3,3.8278702117074789E-3,2.8431884857038226E-3,5.3809132310420962E-3,1.4422350911068391E-4,2.7891454413056858E-3,4.5338983050847454E-3,2.4425989252564734E-4,4.4307627034884424E-3,8.6152847350296005E-3,6.1127251597908197E-3,1.1686531446760066E-2,4.1799192251370928E-3,0,7.5241604056303169E-3,null,null,null,null,null,"DOM_C24: Chemicals and chemical products",0.23171897289586305,0.16134094151212552,12836.637168141593]
[null,"DOM_C25: Rubber and plastics products",1.7719840919133893E-3,5.0472960427359317E-3,1.0907991222970311E-2,8.9337942036692361E-3,8.4153638293765678E-3,2.1481165946570921E-3,1.3533333805701008E-3,1.7974322396576318E-2,3.3418199598711833E-2,2.3230162444013635E-3,2.6567340237299486E-4,6.6788228309727757E-4,6.7257303641099133E-3,1.0713488579718771E-2,1.3187772925764191E-2,1.8209878998575985E-2,7.8953461449409595E-3,1.2875160771162871E-2,1.7869654974582766E-4,1.5702262366860568E-2,7.4130950395612134E-3,0,6.2048165505663748E-3,1.1556261720229463E-2,3.5631690486168965E-5,1.1231818829150063E-3,3.3898305084745765E-4,1.2212994626282367E-4,4.8694998155857745E-4,4.9738805823628805E-4,6.972690296339338E-4,8.751345616195412E-4,3.8505083722951633E-3,0,3.315895588121539E-3,null,null,null,null,null,"DOM_C25: Rubber and plastics products",0.29452528284071561,0.27801851321047399,12836.637168141593]
[null,"DOM_C26: Other non-metallic mineral products",1.246133451171012E-3,1.7153652092592247E-3,3.474240918212336E-3,7.5967637786303038E-6,2.7021810461300907E-3,2.5558327755126879E-4,1.9485166474176842E-4,5.9629101283880164E-3,3.7093864337621615E-4,6.0883080419814155E-2,3.4537542308489332E-4,4.876600797218217E-4,1.5271487296423753E-3,6.6215311360761859E-3,1.4497816593886464E-3,7.7565015393672287E-3,1.3429034498726557E-3,3.5824192103863224E-3,5.5960235315140772E-4,7.8326885649256106E-2,8.5700520688568945E-4,1.5062738378199105E-3,2.0038101194468335E-3,3.7920427147515542E-3,5.0902414980241374E-6,4.0574273760805255E-4,6.779661016949153E-4,0,6.4364180730762464E-4,1.8128485806769973E-3,1.1388727484020918E-3,2.1607304662995749E-3,5.7660740039473949E-3,0,1.2931712076335155E-3,null,null,null,null,null,"DOM_C26: Other non-metallic mineral products",0.32976803262250148,0.14863961494752323,12836.637168141593]
[null,"DOM_C27: Basic metals",1.3698630136986303E-4,7.0352118314206524E-4,0,4.7859611805370908E-4,2.3933603551437948E-3,6.0853161321730671E-6,1.9130890720100901E-4,3.6376604850213976E-4,2.9169266047311543E-3,3.8438398288655651E-4,1.0961684581909768E-2,4.3444152319565776E-2,4.2875223580849976E-2,3.9059593780224689E-3,2.0279475982532751E-2,2.2768315287865649E-2,2.0351933317897662E-2,1.8652821828515249E-3,6.4895062802432159E-4,1.2261086725871088E-2,0,0,6.3364837452733536E-4,1.1962716968582858E-3,0,0,0,0,0,1.0340435947543884E-4,2.3242300987797795E-5,6.1956429141206458E-5,7.1141671580147873E-4,0,0,null,null,null,null,null,"DOM_C27: Basic metals",0.15953687812498341,0.10270402388935236,12836.637168141593]
[null,"DOM_C28: Fabricated metal products",9.752540874944763E-3,1.320848245540817E-2,4.6885842351043676E-5,2.5221255745052611E-3,8.878594865856012E-3,2.2576522850362079E-3,2.054799373640467E-3,7.3466476462196871E-4,1.14990979446627E-2,1.537535931546226E-3,1.6934022667254692E-2,5.128911881943856E-2,2.7028440530108888E-2,8.6675098578974791E-3,6.7161572052401752E-2,3.5703773239671922E-2,5.593887473952304E-2,1.610741870534602E-2,2.6005050528800713E-3,5.1370286554897164E-2,3.8252543220857194E-3,1.36808357746946E-3,1.2528956496335947E-3,2.3694493455146742E-3,8.314061113439425E-5,2.2302415378455866E-3,3.6440677966101693E-3,6.106497313141182E-4,3.5460565488745913E-3,2.9908729291313637E-3,1.6502033701336432E-3,3.1520333325588783E-3,6.6103623242565425E-3,0,1.1153835596954779E-3,null,null,null,null,null,"DOM_C28: Fabricated metal products",0.2627957764396574,0.24410567381901452,12836.637168141593]
[null,"DOM_C29: Machinery and equipment, nec",1.4405656208572692E-3,4.3761402409006429E-3,0,0,7.7205172746574021E-5,0,0,0,0,0,5.8448148522058869E-5,6.7848358917818683E-4,1.166281392843321E-2,2.2319767874414106E-4,1.5545851528384279E-3,2.9594036642508811E-3,1.1206297754109747E-2,1.3467741392429784E-5,7.9472939229065459E-4,7.5940193842769085E-4,1.3017214223506959E-3,1.3819026035045052E-5,5.019811798203565E-4,9.5147478591817332E-4,0,1.2011059848397317E-3,1.9491525423728812E-3,0,1.9092296306653137E-3,2.7225451608723137E-4,4.8808832074375363E-4,9.2934643711809677E-4,2.2422083260669175E-4,0,2.0897846336576345E-4,null,null,null,null,null,"DOM_C29: Machinery and equipment, nec",0.30389213727602693,0.24330826438500885,12836.637168141593]
[null,"DOM_C30T33X: Computer, Electronic and optical equipment",0,1.5842002429107042E-4,0,0,0,3.286070711373456E-4,7.0855150815188519E-6,0,0,0,1.0626936094919794E-5,8.4810448647273354E-5,1.0920159409223562E-2,3.5600029759690503E-2,1.3240174672489082E-2,4.5743470616781091E-3,4.1907849039129431E-3,4.7137094873504241E-5,1.4107622348354816E-5,0,2.1077695628810198E-4,1.3819026035045052E-5,2.4481869015828865E-4,4.6188096403794817E-4,8.4837358300402288E-5,2.8213898972745378E-4,4.6610169491525426E-4,8.3048363458720076E-3,4.4596904251651895E-4,2.5392969288905234E-3,2.1615339918651948E-3,4.1433361988181816E-3,6.0345853713899764E-4,0,9.9249174691023773E-4,null,null,null,null,null,"DOM_C30T33X: Computer, Electronic and optical equipment",0.25451975299456892,0.17792574957220447,12836.637168141593]
[null,"DOM_C31: Electrical machinery and apparatus, nec",2.8722934158197084E-4,1.863564586821839E-3,0,3.0387055114521215E-5,0,0,3.5427575407594259E-6,0,0,0,2.1253872189839589E-5,7.4209142566364177E-4,1.2499607752894784E-2,1.6442229000818393E-2,1.5021834061135371E-2,3.4605929944869175E-3,7.7795786061588337E-3,1.818145087978021E-4,4.8859398733135523E-3,1.3762532844133835E-2,4.6092982748716809E-4,2.0728539052567577E-4,8.7023786501643776E-4,1.6489150416154751E-3,1.1877230162056321E-5,5.0247610551460808E-4,8.0508474576271186E-4,7.3277967757694185E-4,7.9792298958360967E-4,1.5091800819643161E-3,3.486345148169669E-4,6.8926527419592182E-4,3.299644845273785E-3,0,2.5532801509136412E-3,null,null,null,null,null,"DOM_C31: Electrical machinery and apparatus, nec",0.1881048034934498,0.19191266375545851,12836.637168141593]
[null,"DOM_C34: Motor vehicles, trailers and semi-trailers",1.1754308440123731E-3,1.2878014877854753E-3,1.6175615611110068E-4,1.1395145667945455E-4,3.4742327735958308E-4,1.2779163877563439E-4,5.6684120652150815E-5,1.9971469329529244E-4,2.0233016911429968E-4,2.1726051206631458E-4,3.7194276332219276E-5,3.2864048850818426E-4,5.1253621748271506E-4,1.8599806562011757E-4,7.5109170305676857E-4,3.2426154127652131E-2,6.2514470942347765E-4,1.4141128462051274E-4,1.0345589722126867E-4,0,2.4864732151129395E-3,0,3.5118109588251991E-3,4.4941017800892357E-3,2.3754460324112642E-5,2.7139083773783645E-4,1.271186440677966E-3,0,7.3765690275705298E-4,3.1597230857431566E-3,2.6961069145845437E-3,5.3359974597864063E-3,8.7196990458157902E-4,0,4.8907198590674196E-3,null,null,null,null,null,"DOM_C34: Motor vehicles, trailers and semi-trailers",0.24178009721481927,0.17750057676549907,12836.637168141593]
[null,"DOM_C35: Other transport equipment",0,0,0,0,0,0,0,0,5.058254227857492E-5,0,1.0626936094919794E-5,2.1202612161818338E-5,0,0,0,0,0.22833989349386433,0,0,0,0,0,7.6943016906890717E-3,0,0,0,0,0,0,3.9018784252694075E-3,0,2.3233660927952418E-5,0,0,1.3218667578270232E-3,null,null,null,null,null,"DOM_C35: Other transport equipment",0.12759898124565872,0.13026163463764762,12836.6371681416]
[null,"DOM_C36T37: Manufacturing nec; recycling",0,3.1752142503070455E-3,2.203634590499053E-4,3.4945113381699392E-4,3.5514379463424048E-3,3.304326659769975E-3,3.3656196637214542E-4,6.2767475035663343E-4,6.4071220219528231E-4,4.5123337121465341E-4,3.7258037948788798E-2,2.1732677465863798E-2,6.014455613317574E-3,4.835949706123057E-4,4.1746724890829694E-3,7.5576168845116584E-4,1.3429034498726557E-3,0.14471761513235423,1.2226606035240843E-4,1.2692860970862831E-3,5.3921841125132031E-3,1.0778840307335139E-3,2.4420150018309968E-3,4.3370622523163337E-3,4.8170652042968422E-3,6.6208616256042485E-3,1.1228813559322034E-2,4.8851978505129467E-4,1.1525286444710688E-2,1.5000176703652266E-3,6.182452062754213E-3,9.98272964537689E-3,3.4546617171993988E-3,0,1.4019959626608508E-2,null,null,null,null,null,"DOM_C36T37: Manufacturing nec; recycling",0.2675770859847949,0.10384302000632983,12836.6371681416]
[null,"DOM_C40T41: Electricity, gas and water supply",1.4463102076889086E-2,3.2685628237602779E-2,1.6025580915586729E-2,1.7981539864017928E-2,1.6985138004246284E-2,1.3965800523337187E-2,3.1477400749647499E-2,2.9957203994293864E-2,2.3419717074980192E-2,2.5703589812153219E-2,2.7980722737923819E-2,2.7255957934017475E-2,9.3511709883581078E-3,8.1839148872851729E-3,1.0497816593886463E-2,9.6260172950095868E-3,1.1484139847186849E-2,8.6058867497626305E-3,0.11314783377458841,3.6256018260362038E-3,1.1276567161413457E-2,1.8324028522469737E-2,1.066504277126528E-2,3.6811912833824472E-3,1.7120178905021184E-3,3.2440609742662371E-2,1.0805084745762712E-2,6.7171470444553011E-3,2.5528714379729384E-2,4.8377533243192652E-3,2.0592678675188842E-2,1.6890871494621408E-2,5.5501576466224318E-3,0,2.2629248500969409E-2,null,null,null,null,null,"DOM_C40T41: Electricity, gas and water supply",0.54372657546872583,0.17767139585518055,27577.931034482757]
[null,"DOM_C45: Construction",1.3875386654882899E-3,6.786509427694886E-3,2.6560829691866243E-3,3.8135754168724125E-3,6.5238370970855039E-3,1.2365362380575669E-2,1.9945724954475566E-2,1.1055634807417974E-3,2.9506482995835374E-3,9.0246674242930682E-4,2.2529104521229961E-3,4.5903655330336701E-3,3.4413146030982293E-3,6.1751357785879033E-3,1.6943231441048034E-3,2.7048313060357514E-3,1.2039824033341052E-3,1.0100806044322337E-3,1.4907054281428256E-3,5.738474990724448E-2,9.7860729705190222E-4,7.4069979547841478E-3,2.4887157099536285E-2,2.9809797419009174E-2,2.1379014291701378E-4,1.5737981550797111E-2,9.5762711864406779E-3,8.6712261846604785E-3,2.2124885795765464E-2,4.1270119674184638E-3,3.5793143521208599E-3,4.4608628981668641E-3,2.9646976755773684E-3,0,4.1150042793798762E-3,null,null,null,null,null,"DOM_C45: Construction",0.29775065145837715,0.13428829935190467,10604.947589098532]
[null,"DOM_C50T52: Wholesale and retail trade; repairs",7.2156429518338491E-2,2.5176859774430328E-2,0.10503131974269049,0.16231245489421506,7.762980119668017E-2,7.3833140631655816E-2,8.0888240170619199E-2,7.6940085592011417E-2,7.9245982903100712E-2,7.2297613476836692E-2,9.4000563227613035E-2,9.4118395386311601E-2,8.1221300586801673E-2,6.658730749200209E-2,9.4724890829694319E-2,0.1038098344484133,4.6909006714517247E-2,0.11640842272546684,3.4591889998166016E-2,9.2319408794742319E-2,3.7562306594770882E-2,5.5068818749654525E-2,5.7526220287445938E-2,9.0468624426112906E-2,2.9150116312018229E-3,7.2579583347888124E-2,7.622881355932204E-2,1.0136785539814364E-2,0.10369382899377332,1.867168592300171E-2,1.861708309122603E-2,3.4076036027663549E-2,2.6876050170103336E-2,0,8.073804955097702E-2,null,null,null,null,null,"DOM_C50T52: Wholesale and retail trade; repairs",0.58726629236385208,0.28199640521059166,9600.9380053908353]
[null,"DOM_C55: Hotels and restaurants",3.0932390631904551E-5,4.5141189717348018E-4,4.2666116539449741E-4,5.3937022828275149E-4,8.4925690021231425E-4,8.884561552972677E-4,3.6136126915746139E-4,7.9885877318116975E-4,3.6419430440573948E-3,8.0219265993716152E-4,8.5015488759358356E-5,4.9826138580273097E-4,1.5585284980596844E-3,2.00877910869727E-3,1.6593886462882095E-3,8.1144939181072536E-4,2.5700393609631856E-3,5.9258062126691052E-4,4.6084899671292403E-4,2.4344256426167689E-3,1.8529842311041933E-3,4.8781161903709023E-3,1.3650184951262564E-2,1.5422205389227088E-2,1.2046904878657125E-4,1.4859320125645897E-3,9.6610169491525427E-3,7.0835368832437712E-3,5.2672559886410486E-3,2.1099724996760431E-3,6.856478791400349E-3,1.5489107285301612E-3,1.4948055507112783E-3,0,7.803942020017017E-3,null,null,null,null,null,"DOM_C55: Hotels and restaurants",0.44906307003482393,0.17225415952683656,9600.9380053908353]
[null,"DOM_C60T63: Transport and storage",0.12128590366769774,0.11043749478321156,4.9225445884360758E-2,4.1037717932160905E-2,7.427137618220421E-2,4.0083977362623993E-2,2.5575166686742295E-2,7.7617689015691868E-2,5.4949501761958557E-2,6.0515408784009628E-2,3.1577940606054164E-2,2.2612585870579259E-2,3.3471752978463019E-2,3.4818837884086004E-2,2.8419213973799123E-2,3.3245558905657072E-2,9.2845566103264641E-3,3.6376369500952847E-2,1.4860028873600408E-2,2.7601005882110442E-2,4.2376591250208463E-2,4.1443259079100105E-2,6.6226541637693023E-2,6.5531671177704087E-2,2.4551931492136424E-3,8.0208084222518992E-3,2.7923728813559326E-2,9.4040058622374221E-3,3.8423246317139441E-2,3.2798815692855018E-2,2.8820453224869262E-3,6.1181973776941369E-3,1.1316231650569827E-2,0,2.9707380245983246E-2,null,null,null,null,null,"DOM_C60T63: Transport and storage",0.52880837074190346,0.1842106345947325,17847.568807339449]
[null,"DOM_C64: Post and telecommunications",8.5726911179849746E-4,2.4018519811871966E-3,3.9430993417227727E-3,1.4069206518023321E-2,1.0924531943640224E-2,1.1075275360554981E-2,2.6641536706510883E-3,7.6533523537803136E-3,1.1313628622974591E-2,4.9134300421151142E-3,1.1052013538716586E-3,8.3220252735136981E-3,1.5867702896352625E-2,2.0087791086972697E-2,9.6419213973799132E-3,6.0540488938035488E-3,4.5149340125028945E-3,6.0874191093782627E-3,2.5816948897489315E-3,2.0050380894315118E-2,3.3126725591565216E-2,4.2686971422254159E-2,1.8563017153766709E-2,1.5620814203763407E-2,1.2253908032910108E-2,1.2685506385745803E-2,4.1228813559322029E-2,1.0258915486077188E-2,5.8262842100441879E-2,4.8157635364814502E-2,3.0656595002905289E-2,4.5398573453219029E-2,1.380480607666138E-2,0,1.4314089016091965E-2,null,null,null,null,null,"DOM_C64: Post and telecommunications",0.40608112477252362,0.13288777216335806,17847.568807339449]
[null,"DOM_C65T67: Financial intermediation",3.1219619973486521E-2,3.4561116912274488E-2,7.1266480373586389E-3,2.1438067383294717E-2,2.0073344914109247E-2,9.0366944562770037E-3,2.2957068864121076E-3,1.8559201141226819E-2,1.7552142170665499E-2,9.6764489604920113E-3,2.4229414296417129E-3,1.2594351624120093E-2,2.2446994341181765E-2,4.103117327579793E-2,1.2733624454148473E-2,6.1336027557457769E-3,1.0812688122250521E-2,1.3851572022114031E-2,2.4772984843711057E-2,1.5559060858471346E-2,3.8742425926955364E-2,1.6914487866895141E-2,2.9876109398980402E-2,1.3098944140116212E-2,0.35665964778922327,8.8664192800350386E-2,0.13588983050847459,2.5647288715192968E-2,4.4452265643268159E-2,1.8197858351734507E-2,4.0441603718768156E-3,1.016859893280051E-2,3.9363212835396996E-2,0,5.0109292617258751E-2,null,null,null,null,null,"DOM_C65T67: Financial intermediation",0.58192319504278345,0.2923648074276804,16095.64128256513]
[null,"DOM_C70: Real estate activities",2.7839151568714095E-4,1.8533439400933826E-3,7.6377037189850148E-3,1.3476658943290159E-2,1.2931866435051148E-2,1.1184811050934097E-2,2.9688308191563985E-3,8.837375178316691E-3,1.8445767084253658E-2,4.5123337121465339E-3,1.2114707148208565E-3,9.4775676363327982E-3,1.4005836636925621E-2,2.2468566326910203E-2,9.4672489082969439E-3,7.6292153602596641E-3,1.3012271359110907E-2,1.0861733432994621E-2,6.2543792411039688E-4,1.1152359895766659E-2,5.6379361461633963E-2,4.223094356309768E-2,1.4226228928105596E-2,2.0211910986300614E-2,7.5471313944037886E-3,2.0381183210311779E-2,1.9703389830508476E-2,1.5876893014167073E-2,4.0337297234750873E-2,1.1651969722156413E-2,2.4357931435212084E-2,4.9023024557979605E-2,1.2589584527101657E-2,0,6.3278366798998897E-2,null,null,null,null,null,"DOM_C70: Real estate activities",0.58803408238995913,3.6137974027090722E-2,16095.64128256513]
[null,"DOM_C71: Renting of machinery and equipment",0,0,1.1463588454830179E-3,6.7611197629809702E-4,6.9484655471916616E-4,2.6166859368344187E-3,3.4010472391290486E-4,8.3452211126961481E-4,9.9478999814530691E-4,8.1890500701918578E-4,2.1785218994585577E-4,6.9968620134000514E-4,1.0669121261885088E-3,1.2275872330927758E-3,5.2401746724890829E-4,5.8869857837248708E-4,4.5149340125028945E-3,5.3197578500097651E-4,3.8090580340558003E-4,6.5460447092466944E-3,3.784720292030315E-3,8.0150351003261289E-4,8.83198854495406E-3,3.163884603659945E-3,1.0434995070949483E-3,6.0727058741337665E-4,2.1228813559322036E-2,3.6150464093795805E-2,2.6782248985721758E-3,4.4503142052720509E-5,3.3701336432306796E-3,3.9264886968239593E-3,1.8546661462528825E-3,0,3.833351216067512E-4,null,null,null,null,null,"DOM_C71: Renting of machinery and equipment",0.42648305084745763,0.14105932203389829,16095.64128256513]
[null,"DOM_C72: Computer and related activities",4.4189129474149358E-6,1.7034411214093592E-6,2.3442921175521838E-5,1.5193527557260608E-5,3.860258637328701E-5,3.7120428406255704E-4,1.0628272622278277E-5,4.2796005706134097E-4,2.6977355881906628E-4,1.0027408249214519E-4,9.0328956806818244E-5,3.8164701891273009E-4,8.1587397885003613E-4,2.8643702105498104E-3,5.93886462882096E-4,3.4208160635158032E-4,3.2414910858995135E-4,9.4274189747008483E-5,8.4645734090128908E-5,2.6036637888949398E-5,1.9108899883261995E-4,1.3819026035045052E-5,4.5877788155712916E-4,9.2376192807589635E-4,4.0043233117789884E-4,7.5237063927320995E-5,2.1186440677966101E-4,0.19113336590131902,8.7988486766772656E-4,1.3874508992906982E-4,7.9023823358512495E-4,5.9633063048411213E-4,1.4948055507112785E-4,0,3.1814631736280405E-5,null,null,null,null,null,"DOM_C72: Computer and related activities",0.49963361016121161,0.37774792379091354,16095.64128256513]
[null,"DOM_C73T74: R&D and other business activities",1.652673442333186E-3,1.0733382506000371E-2,3.6029425554659517E-2,1.9926311391347287E-2,2.8064080293379659E-2,2.9075640479522911E-2,1.3327853868336959E-2,8.7589158345221116E-2,3.4800789087659552E-2,1.9753994250952603E-2,1.181715293755081E-2,1.3919514884233739E-2,2.1244103218518249E-2,2.4812141953723683E-2,3.2192139737991267E-2,3.4701394579199844E-2,0.11683260013892105,1.5804394524016351E-2,1.2504055941425151E-2,0.10139317709904121,5.6702475586932762E-2,5.148969100657786E-2,5.4888761793471776E-2,7.6307354068709407E-2,1.0721745342004842E-2,3.450156788667149E-2,5.3050847457627122E-2,6.7049340498290186E-2,4.4514942373567776E-2,7.3863435564031507E-2,0.23653689715281814,0.1618069592559033,4.4813716778638678E-2,0,1.4930419528943828E-2,null,null,null,null,null,"DOM_C73T74: R&D and other business activities",0.42604748485513239,0.275039956415566,16095.64128256513]
[null,"DOM_C75: Public administration and defence; compulsory social security",0,0,0,0,0,0,0,0,0,0,0,0,0,0,0,0,4.1676313961565178E-4,0,0,0,0,0,6.4393487411381809E-4,8.5447978347020408E-4,4.0721931984193099E-5,0,0,3.6638983878847092E-4,0,2.84466701832875E-2,0,1.479209745746304E-2,3.8754217981403512E-5,0,0.23074684536092765,null,null,null,null,null,"DOM_C75: Public administration and defence; compulsory social security",0.618982422567805,0.54595931103900441,16814.639175257733]
[null,"DOM_C80: Education",0,0,2.3442921175521838E-5,2.2790291335890908E-5,3.860258637328701E-5,3.042658066086533E-5,1.0628272622278277E-5,4.2796005706134094E-5,5.058254227857492E-5,1.6712347082024198E-5,1.0626936094919794E-5,1.0601306080909169E-5,5.2299614028848473E-5,3.7199613124023517E-5,9.7816593886462886E-4,1.5910772388445596E-5,1.1576753878212549E-4,6.7338706962148919E-6,4.2322867045064454E-5,0,4.0534030055404233E-5,4.1457078105135152E-5,1.4606829412805455E-4,4.1569286763415336E-5,2.5790556923322295E-4,7.5237063927320995E-5,4.2372881355932206E-5,4.2745481191988274E-3,2.9409850371359629E-4,0,1.1621150493898897E-4,6.9700982783857252E-5,1.1349449551696742E-4,0,1.3207750792870527E-2,null,null,null,null,null,"DOM_C80: Education",0.5101452643811738,0.25880302149912843,16814.639175257733]
[null,"DOM_C85: Health and social work",5.258506407423774E-3,0,0,0,0,0,0,0,0,0,0,0,0,0,0,0,0,0,4.2322867045064454E-5,0,0,0,7.2005497105379014E-4,9.607124051989322E-4,1.0468930014269644E-3,6.661167195565313E-3,6.0169491525423726E-3,0,9.2761560843435953E-3,5.8560899277609281E-3,1.1133062173155142E-2,7.2798804240917583E-4,1.6691995316275941E-3,0,3.5414363744794251E-2,null,null,null,null,null,"DOM_C85: Health and social work",0.46203232576690439,0.20389086375006776,16814.639175257733]
[null,"DOM_C90T93: Other community, social and personal services",1.1900132567388423E-2,1.8012186417782565E-2,5.6204403518313607E-2,7.5602993124928783E-2,5.7826674387183946E-2,0.10243412645286923,2.7268604791225302E-2,6.7689015691868762E-2,7.6868603416007694E-2,4.0176482385186174E-2,3.1620448350433851E-2,4.202357730472394E-2,5.8439588715835288E-2,5.2302656052377057E-2,6.2131004366812223E-2,8.1518842332201025E-2,1.5744385274369067E-3,3.5938667905698878E-2,8.558624224668589E-4,1.1931289312611061E-2,1.7441214075268219E-3,2.9323973246365598E-2,3.3562790850775806E-2,4.4742408986356043E-2,9.1115322814632068E-4,3.5691925719521601E-2,3.3305084745762707E-2,1.1480214948705424E-2,4.9999156274784427E-2,4.6257089415974789E-3,2.3149331783846601E-2,4.824856919371452E-3,1.0117619051573559E-2,0,4.6137454180692136E-2,null,null,null,null,null,"DOM_C90T93: Other community, social and personal services",0.70378767117599683,0.39138438371104856,16814.639175257733]
[null,"DOM_C95: Private households with employed persons",0,0,0,0,0,0,0,0,0,0,0,0,0,0,0,0,0,0,0,0,0,0,0,0,0,0,0,0,0,0,0,0,0,0,0,null,null,null,null,null,"DOM_C95: Private households with employed persons",0,0,16814.639175257733]
[null,"L",0.12388422448077772,0.20179474556551691,0.13561729900039382,0.13375621985034375,0.22065238370970855,0.19149272804722206,4.0231554632864035E-2,0.16134094151212552,0.27801851321047399,0.14863961494752323,0.10270402388935236,0.24410567381901452,0.24330826438500885,0.17792574957220447,0.19191266375545851,0.17750057676549907,0.13026163463764762,0.10384302000632983,0.17767139585518055,0.13428829935190467,0.28199640521059166,0.17225415952683656,0.1842106345947325,0.13288777216335806,0.2923648074276804,3.6137974027090722E-2,0.14105932203389829,0.37774792379091354,0.275039956415566,0.54595931103900441,0.25880302149912843,0.20389086375006776,0.39138438371104856,0,0]
[null,"VA%",0.40384887317719842,0.59559456057181115,0.26195354550739858,0.13309530140160292,0.2650453580389886,0.22970851335726891,0.21217220635854123,0.23171897289586305,0.29452528284071561,0.32976803262250148,0.15953687812498341,0.2627957764396574,0.30389213727602693,0.25451975299456892,0.1881048034934498,0.24178009721481927,0.12759898124565872,0.2675770859847949,0.54372657546872583,0.29775065145837715,0.58726629236385208,0.44906307003482393,0.52880837074190346,0.40608112477252362,0.58192319504278345,0.58803408238995913,0.42648305084745763,0.49963361016121161,0.42604748485513239,0.618982422567805,0.5101452643811738,0.46203232576690439,0.70378767117599683,0,0]
[]
[]
[null,null,null,null,null,null,null,null,null,null,null,null,null,null,null,null,null,null,null,null,null,null,null,null,null,null,null,null,null,null,null,null,null,null,null,null,null,null,null,null,null,null,null,null,null,"Source: http://www.statssa.gov.za/publications/P0277/P0277September2015.pdf"]
[]
[]
[]
[]
[null,"Total Requirements - Type 1"]
[null,null,"DOM_C01T05: Agriculture, hunting, forestry and fishing","DOM_C10T14: Mining and quarrying","DOM_C15T16: Food products, beverages and tobacco","DOM_C17T19: Textiles, textile products, leather and footwear","DOM_C20: Wood and products of wood and cork","DOM_C21T22: Pulp, paper, paper products, printing and publishing","DOM_C23: Coke, refined petroleum products and nuclear fuel","DOM_C24: Chemicals and chemical products","DOM_C25: Rubber and plastics products","DOM_C26: Other non-metallic mineral products","DOM_C27: Basic metals","DOM_C28: Fabricated metal products","DOM_C29: Machinery and equipment, nec","DOM_C30T33X: Computer, Electronic and optical equipment","DOM_C31: Electrical machinery and apparatus, nec","DOM_C34: Motor vehicles, trailers and semi-trailers","DOM_C35: Other transport equipment","DOM_C36T37: Manufacturing nec; recycling","DOM_C40T41: Electricity, gas and water supply","DOM_C45: Construction","DOM_C50T52: Wholesale and retail trade; repairs","DOM_C55: Hotels and restaurants","DOM_C60T63: Transport and storage","DOM_C64: Post and telecommunications","DOM_C65T67: Financial intermediation","DOM_C70: Real estate activities","DOM_C71: Renting of machinery and equipment","DOM_C72: Computer and related activities","DOM_C73T74: R&D and other business activities","DOM_C75: Public administration and defence; compulsory social security","DOM_C80: Education","DOM_C85: Health and social work","DOM_C90T93: Other community, social and personal services","DOM_C95: Private households with employed persons"]
[null,"DOM_C01T05: Agriculture, hunting, forestry and fishing",1.0444638200179919,3.7172256768809066E-3,0.22001822417446548,0.13348672384129084,0.20916362400454944,0.10011231342060989,4.681856452682636E-3,2.0193227754602382E-2,3.3347090294094946E-2,5.6644020068226395E-3,4.7187505288514122E-3,5.4029803693897869E-3,6.2830366922617823E-3,5.6393351968573972E-3,6.9154441398595603E-3,1.0731897833197357E-2,7.5242870601987828E-3,4.4313510910135918E-2,1.5926554779135179E-3,7.0592088463753361E-3,8.4742086113608374E-3,3.6400336268097654E-2,5.6959549317825049E-3,8.5528863263914755E-3,1.050738177467748E-3,6.1493069683876108E-3,9.1605786148457949E-3,3.565790227467289E-3,9.6807173154586958E-3,4.6754125680910519E-3,8.2790551054962268E-3,1.1168985670028369E-2,1.5079105786482246E-2,0]
[null,"DOM_C10T14: Mining and quarrying",2.4731160434934688E-2,1.0290903652880845,2.2666684114209499E-2,3.24406431383268E-2,3.8824118762134936E-2,5.5408840796392009E-2,0.27906526736895793,5.2679010305433913E-2,6.008456568307121E-2,0.18161893580297359,0.29321574228317454,0.22550604508702032,0.12908953679502605,9.0963382427930436E-2,0.17225590778340935,0.10085939247547394,6.0191674611368762E-2,0.1096446001212901,0.13587145250085267,7.9044577572157951E-2,1.3344909857623313E-2,1.6254960513432514E-2,2.1056387694195104E-2,3.1441717635830868E-2,2.8007433251461926E-3,1.4022943756273056E-2,1.5643618377703453E-2,8.723713904409805E-3,1.9664943612900606E-2,1.5165937210204341E-2,1.7853632879197133E-2,2.3208034276746954E-2,1.6911006944734037E-2,0]
[null,"DOM_C15T16: Food products, beverages and tobacco",0.11965050841059507,4.5570641567419731E-3,1.1955454893651574,2.1041851019778471E-2,2.8412722509218318E-2,2.106266094888393E-2,6.3748918651232479E-3,3.8434357044113431E-2,9.8323030713755449E-3,4.3152524376147529E-3,4.2846469506091778E-3,4.5270108991303949E-3,5.0553590481856947E-3,4.4837598467730297E-3,5.2891713022297114E-3,5.9522873053562417E-3,5.1207166079477017E-3,2.1434930935502691E-2,2.0991830456447004E-3,5.5129171430195641E-3,6.834727465469718E-3,0.15700090000468039,1.1632780548886692E-2,1.7908174316257228E-2,1.0485307966633926E-3,7.4747024314994453E-3,1.2803683328918776E-2,4.4093898967664975E-3,1.2821460033927201E-2,8.7066425814768082E-3,1.0903770658980062E-2,1.3835572310530515E-2,2.2676724200960393E-2,0]
[null,"DOM_C17T19: Textiles, textile products, leather and footwear",1.2451676579379713E-2,5.6100112388323114E-3,5.1283693264749797E-3,1.212731083370562,6.0135368773628411E-3,1.2696415648215371E-2,2.7101525236957131E-3,8.665343532628593E-3,1.9992241988420041E-2,2.3463860917170023E-3,3.3845802549840238E-3,3.0992129539347828E-3,4.0615422112962839E-3,6.5496738268540234E-3,3.745511024849608E-3,3.8669983657406218E-2,1.0031552559199899E-2,2.2988309951486079E-2,1.3062140029506751E-3,1.0795770561539332E-2,4.1983429955899489E-3,3.6100184948456857E-3,4.920374767083892E-3,7.9813169079625181E-3,5.3843545059196259E-4,1.9333766143579977E-3,2.7325170129061174E-3,1.547300747985764E-3,3.2679700908044645E-3,3.7575949579670685E-3,7.6530332623102057E-3,1.2878062757350121E-2,7.3780998717299841E-3,0]
[null,"DOM_C20: Wood and products of wood and cork",3.9247461878805616E-3,4.856661794183397E-3,9.2713149559343032E-3,4.4521660735743034E-3,1.1097035670476838,7.7182928997711082E-3,4.8443988653641724E-3,1.0885478516717905E-2,3.2571553676967405E-3,5.864029139210164E-3,3.8454097058351752E-3,4.6070332160713743E-3,3.1883614777248248E-3,4.1026525517977403E-3,2.8840675814723669E-3,5.2199509192589547E-3,1.3651378940490327E-2,3.1788884156972876E-2,1.4418773224500971E-3,9.2792156258298224E-3,3.1896947280896245E-3,2.7395727109941889E-3,3.1307749895664416E-3,4.6812086496981894E-3,4.6394860499777681E-4,2.2497253425445549E-3,1.9376398986477859E-3,9.982350833402983E-4,2.4268308607623538E-3,1.8761661988540143E-3,3.2973538136923226E-3,4.5110597890236966E-3,2.9606764958907228E-3,0]
[null,"DOM_C21T22: Pulp, paper, paper products, printing and publishing",1.6149368949329765E-2,8.4735715991730905E-3,3.774006501539743E-2,3.3142033463477806E-2,2.8583290550346443E-2,1.2695205864791101,1.4019652200119614E-2,5.3129097873130977E-2,2.5845933337422827E-2,1.9951239492912342E-2,1.3737436228370255E-2,1.5518448463600693E-2,1.7680891924096023E-2,1.7905510978489938E-2,1.9131212365998795E-2,2.3426937766643473E-2,2.7063433810719153E-2,3.0065463085078122E-2,6.6758119507574817E-3,2.4664056516497321E-2,7.4152524037000594E-2,2.0698032453671723E-2,2.0531812854107018E-2,3.003959529424292E-2,5.4024171481345624E-3,4.3403516435438029E-2,6.5279898541029807E-2,2.3897732582380312E-2,6.83280190364354E-2,1.8005768064875399E-2,4.3094279194013319E-2,5.6266448727331247E-2,1.5027027893401552E-2,0]
[null,"DOM_C23: Coke, refined petroleum products and nuclear fuel",2.8021221683263015E-2,1.5162699122850664E-2,2.4412619941410574E-2,4.565755496898434E-2,1.9452070604230671E-2,2.6199058497021515E-2,1.0573666036635858,7.1410305076121824E-2,0.13110516863676913,1.2209015040750467E-2,2.0272943256024935E-2,2.0541179374035511E-2,1.5686792598512952E-2,1.5360582080757164E-2,2.7032903490039919E-2,2.1576881752847023E-2,1.1916809042088722E-2,2.0811993701590724E-2,7.4972266139717554E-3,2.6510750914182504E-2,1.5178585880335665E-2,2.1363575465657366E-2,3.4656676973820431E-2,5.9694721023262835E-2,2.5218183469720842E-3,1.1638779222137498E-2,1.8526672910643135E-2,7.0700090886388987E-3,2.060292174491395E-2,1.7444960017965663E-2,1.3577996833953884E-2,1.7755894118403715E-2,1.0496371041754221E-2,0]
[null,"DOM_C24: Chemicals and chemical products",4.8500782605138446E-2,1.7832716373537935E-2,1.4830390383026562E-2,1.7597556005952919E-2,2.2262843357609322E-2,2.7770637216862334E-2,1.0940185796932695E-2,1.0666625574221968,3.1452318207504701E-2,1.1499919934214212E-2,8.4501229656712938E-3,9.7173444375208504E-3,7.0646433922473316E-3,4.8568496185488353E-3,9.8241106228590287E-3,1.1132336574286261E-2,1.2424115518308826E-2,1.0350623582810605E-2,5.3285948824203754E-3,1.4124235855706494E-2,6.0529512274364386E-3,8.7201869541625801E-3,6.4900120285673558E-3,1.0316597711222982E-2,9.2777693239305963E-4,5.8733271828818852E-3,8.9105461815088254E-3,2.7308142605070003E-3,9.4168579422595593E-3,1.1996152142935597E-2,1.0858697988985155E-2,1.7045697472627276E-2,6.9674375829294078E-3,0]
[null,"DOM_C25: Rubber and plastics products",7.2156323772168338E-3,7.9377659089393832E-3,1.7756412654711964E-2,1.6369647823977981E-2,1.4472158306755573E-2,7.6973495671550365E-3,5.7524064974629474E-3,2.4117920933261254E-2,1.0390057874009577,6.2061706979756265E-3,5.0649948129417076E-3,5.1580062269986028E-3,1.0990503447249637E-2,1.4913548520715809E-2,1.8106951179309768E-2,2.3780029174202234E-2,1.4109110356552386E-2,2.0170493401096813E-2,2.2148248003481348E-3,2.1615864026400533E-2,1.043909403063443E-2,5.0610255853196099E-3,9.9360092732953854E-3,1.6397690716578595E-2,8.0022783562472418E-4,3.7455016903209532E-3,4.0234661550355945E-3,1.9993856372288801E-3,5.1275859617554344E-3,3.2160057008144677E-3,3.8507903224193167E-3,4.660953889215857E-3,5.9943070285890269E-3,0]
[null,"DOM_C26: Other non-metallic mineral products",3.8679260394480232E-3,3.8539027420648854E-3,7.0961385939566834E-3,3.0926104046233587E-3,6.4802668841686213E-3,4.4847855196228992E-3,3.981982790276316E-3,9.5044746946190885E-3,3.2228312939275847E-3,1.0668473313187132,2.7843848988486743E-3,3.0968275919137549E-3,4.0342911614826855E-3,9.6595324661592572E-3,4.0607595847839536E-3,1.1016194040405543E-2,3.9511243067366321E-3,6.7066349124321242E-3,1.7254295735120945E-3,9.0647272574507803E-2,2.5872955081698329E-3,4.7578173929653713E-3,6.1417855411191307E-3,8.9301963674379078E-3,4.6022199042693542E-4,3.105745069108747E-3,3.5393797758772106E-3,2.1826519317627228E-3,4.9873766550505728E-3,3.8901255053643133E-3,3.7570450744808426E-3,4.9201313064037846E-3,7.4367224926800051E-3,0]
[null,"DOM_C27: Basic metals",1.3181785783487102E-3,2.1997833581252364E-3,8.8685044909382247E-4,1.6454508699392193E-3,4.1297972078222821E-3,1.2155489417685838E-3,1.510972104801565E-3,1.3288891111715407E-3,4.4264306447724779E-3,1.2810147304814867E-3,1.0129518195488685,4.7374653631057896E-2,4.6310495357234069E-2,5.676258850442182E-3,2.5025692675167355E-2,2.6601889931751839E-2,3.1674325311462734E-2,3.9502245861017674E-3,1.4848833818244592E-3,1.6877459836539772E-2,8.3392431738367511E-4,7.7712225833698417E-4,2.0200163550449868E-3,2.6919781169195706E-3,1.5219571673747936E-4,8.2767063257986227E-4,1.0408840354424608E-3,6.0953848236699473E-4,1.3450864745901423E-3,1.0224803270592799E-3,8.948367605936809E-4,1.1414785597932957E-3,1.5028800642577916E-3,0]
[null,"DOM_C28: Fabricated metal products",1.3629849442452192E-2,1.6901832949684396E-2,6.1781002680961674E-3,9.1698779160172914E-3,1.6778455589778519E-2,9.2227514907629628E-3,9.6060228591869253E-3,5.8174181384629481E-3,1.7363038904710238E-2,6.7158881550139857E-3,2.5408226076076235E-2,1.0613946033577031,3.5426558375439961E-2,1.49500134315898E-2,7.8118467410336997E-2,4.4730561618197606E-2,8.2291819902065383E-2,2.5195478680389162E-2,6.5089401773500396E-3,6.346021501707895E-2,6.9832367396755789E-3,5.16788509396739E-3,6.5289404817075077E-3,8.4817445349169747E-3,8.7229554072492277E-4,5.7688080434432059E-3,7.8862495904429546E-3,3.6183179735830005E-3,9.0487975212197765E-3,6.2396666345149957E-3,5.9180317162247295E-3,7.6867592249821644E-3,9.2965072432002957E-3,0]
[null,"DOM_C29: Machinery and equipment, nec",2.0740347521909148E-3,4.8856534910119423E-3,1.0265474793274046E-3,1.045877454577938E-3,1.1396369185303612E-3,9.6786675001875257E-4,1.6557514554477212E-3,9.4515206074240253E-4,8.6662055564240971E-4,1.2276040747849918E-3,1.7969956488295502E-3,2.1849087695018157E-3,1.0128665497083531,1.1037667249783267E-3,2.9175421851266869E-3,4.1094071404443331E-3,1.5736366432474665E-2,1.1057753021448157E-3,1.7137398646176955E-3,1.9331977979105796E-3,1.8890728681650658E-3,7.0667602351107118E-4,1.255080492523442E-3,1.7822402512223485E-3,1.3849679944369909E-4,1.7075224752974658E-3,2.6466837832919139E-3,5.3115541022076833E-4,2.7143670767631085E-3,8.6262380385710487E-4,1.4449387970127928E-3,1.8358169710933668E-3,6.2886317564851961E-4,0]
[null,"DOM_C30T33X: Computer, Electronic and optical equipment",2.2878495502759262E-4,3.866144235479579E-4,2.6175803975411055E-4,2.9838866623321987E-4,2.6691002434846718E-4,7.2174110771884526E-4,2.2484167433751257E-4,3.0630677843783411E-4,2.5799617427260912E-4,2.1589198050742814E-4,2.4367833977369924E-4,3.4715063645445696E-4,1.1872070577116919E-2,1.0373967887187192,1.4227055973030592E-2,5.2456072235866269E-3,6.2037265292884877E-3,2.944274533444272E-4,2.0957203600357498E-4,4.8061678914918709E-4,4.5921552309965708E-4,2.4319049216911867E-4,5.5472623107532019E-4,8.100542940268692E-4,1.9941722040028024E-4,5.2102126322417475E-4,8.1148911565607064E-4,1.0852090305806972E-2,8.3504619305404615E-4,2.9711302682205484E-3,2.6246048463264508E-3,4.6707670347931147E-3,8.0644792041067081E-4,0]
[null,"DOM_C31: Electrical machinery and apparatus, nec",1.0965828468584072E-3,2.7640010521537066E-3,1.1118052244936802E-3,1.3177040797902149E-3,1.2314692662378577E-3,1.4980300435822797E-3,1.59499058174634E-3,1.2836173274296517E-3,1.2135985820345546E-3,1.1478089207034047E-3,1.4115850556311084E-3,2.1321559741844017E-3,1.412211945578494E-2,1.8305146742228589E-2,1.0167603033772286,4.9170474629435454E-3,1.1490329900159389E-2,1.239816380577951E-3,6.1461483970115961E-3,1.5841116538650966E-2,1.1733338700705977E-3,1.2068182442815075E-3,2.1245703514219342E-3,3.0680352453982028E-3,1.9590788835909345E-4,1.4697616362884687E-3,1.8239402831330186E-3,1.8049290757849764E-3,2.2363077702465027E-3,2.3246315720582486E-3,1.4824776182762E-3,1.8137873489960398E-3,3.8309507048816683E-3,0]
[null,"DOM_C34: Motor vehicles, trailers and semi-trailers",2.4417817147427789E-3,2.1494397985284078E-3,1.6974889943916155E-3,1.7663373751655121E-3,1.9337939899766146E-3,1.4888172331988879E-3,1.2026207250946353E-3,1.5288221428892686E-3,1.3897893603460327E-3,1.3630658489907769E-3,1.2856704469231129E-3,1.5290777096983656E-3,1.6150630050408626E-3,1.1704052996239656E-3,1.9917723683681517E-3,1.0346685453210775,1.8199417247914357E-3,1.4471908336846466E-3,6.9407211456687606E-4,1.2676698858279309E-3,3.4155638518580697E-3,1.1113899673917771E-3,4.60529457640754E-3,5.8240986253747309E-3,2.6414964325500697E-4,9.6829025564187173E-4,2.3904510203589134E-3,5.8206176073841555E-4,2.0824790005573302E-3,4.1845896290647784E-3,3.7847237358832608E-3,6.5662494783501986E-3,1.4114660207227502E-3,0]
[null,"DOM_C35: Other transport equipment",1.6250415846170857E-3,1.3355496282586483E-3,1.1658890291252593E-3,1.021388844024728E-3,1.4217083890816625E-3,9.6660644550742615E-4,7.6892476042787728E-4,1.2472354099335229E-3,1.0385875049044968E-3,1.0540878506133384E-3,8.7472743276807827E-4,7.4623624385586481E-4,7.2096512529260014E-4,6.7479156074520211E-4,7.4353008012073508E-4,7.4558312879546027E-4,1.2963971557543461,8.8813495518605705E-4,4.1297490735085676E-4,7.5165946997561963E-4,6.7079502057643744E-4,7.8633441217630478E-4,1.0909976010780338E-2,1.0127684641609929E-3,9.2743202332044229E-5,2.7590904033464797E-4,5.7101440064080472E-4,2.8915045641154837E-4,7.2105287015817568E-4,5.7574251699896864E-3,3.387537700846329E-4,4.9736112828274281E-4,2.8979950795017279E-4,0]
[null,"DOM_C36T37: Manufacturing nec; recycling",3.3862138249613864E-3,6.4097597855660403E-3,4.5434422549132554E-3,5.5263983383981646E-3,9.1388053804025305E-3,9.2369417813974643E-3,4.1172168170118296E-3,5.879262981580321E-3,5.3095320336700117E-3,4.0685284928596559E-3,4.8329834603884479E-2,3.2667261938223419E-2,1.3573940051648451E-2,4.7478293789896915E-3,1.1962471068474412E-2,7.0932443605854385E-3,1.0566338639657211E-2,1.1739508127625775,2.3437898706145416E-3,8.9683050120270055E-3,1.0252774683133405E-2,5.2256121832083202E-3,6.745600034694637E-3,9.8260291325193393E-3,9.6040895445378086E-3,1.1409469026209762E-2,1.8570667890398376E-2,4.4528135838345214E-3,1.8591081336625855E-2,5.0671319562210519E-3,1.339678918670815E-2,1.7203538370121039E-2,6.7003410013471969E-3,0]
[null,"DOM_C40T41: Electricity, gas and water supply",3.0126761065624338E-2,4.4845740802565676E-2,3.7335248647406852E-2,4.1296838304508657E-2,3.7852147152525883E-2,3.5006191888690225E-2,5.4314057446461214E-2,5.3379077003877951E-2,4.5360130676325834E-2,4.498571095695663E-2,5.0891854734888858E-2,5.0275872682089343E-2,2.6207490617994149E-2,2.2002060251793864E-2,3.1008397746439202E-2,2.7964569315008608E-2,3.5022997085319682E-2,2.7766977948925492E-2,1.1363089422756949,2.499338409328599E-2,2.3867966805493111E-2,3.4872845996787423E-2,2.3354988835352222E-2,1.9508343085378438E-2,5.2948724823601188E-3,4.4952738349199994E-2,2.4074065896952043E-2,1.763254510187488E-2,4.221628952731863E-2,1.4414178814213661E-2,3.8850066024740705E-2,3.4535546963440529E-2,1.3630897800633788E-2,0]
[null,"DOM_C45: Construction",9.4158125273886301E-3,1.3238137159445384E-2,1.1830127707702981E-2,1.3876115625718813E-2,1.6777840282470549E-2,2.4692809438627766E-2,2.8862689202314395E-2,1.2699063514139075E-2,1.354521740245786E-2,8.192746716762421E-3,9.7426714579945742E-3,1.2205016207206959E-2,1.0741052302122883E-2,1.3509792558121212E-2,9.8847303227816794E-3,1.0509858662688203E-2,1.1062710812434581E-2,8.8939454325230767E-3,5.3890645405586229E-3,1.0708666879197943,9.3354712699332768E-3,1.6750094833404623E-2,3.446154177656003E-2,4.1614963072941095E-2,2.3599770989343439E-3,2.1707974582306919E-2,1.8640553999773365E-2,1.744702121002285E-2,3.3224077282226649E-2,1.1829502120478265E-2,1.5351938718027135E-2,1.573552457886376E-2,7.4756165369257183E-3,0]
[null,"DOM_C50T52: Wholesale and retail trade; repairs",0.12553982016139764,5.4770310015368091E-2,0.18451452198149274,0.25632304009238133,0.14866737426286841,0.14743917148872332,0.12085792771471665,0.14288482293291349,0.13899787615664902,0.11138299590285812,0.13766192939374355,0.14323557666078501,0.12700229468325983,0.10691107674198999,0.14689702538477925,0.16068903303355009,0.12230539578381608,0.18711003062405759,5.6864018425063265E-2,0.16342626736024427,1.0791998859711291,0.11427994028069446,0.10069433996544151,0.14609305080366319,1.4418441807603804E-2,0.10460797651911335,0.12352165511584144,4.5259662232005081E-2,0.15762889792338708,5.4246419480753399E-2,7.8440419958635238E-2,9.3444067429451466E-2,5.4407406615596288E-2,0]
[null,"DOM_C55: Hotels and restaurants",3.2766202432143654E-3,3.0071634051098365E-3,3.6658779044433116E-3,3.9759662559184514E-3,4.4543262683037306E-3,4.1729664960619053E-3,2.5180024593459906E-3,4.530043943783279E-3,6.6898740911401243E-3,3.3873836834327504E-3,2.3566511001511491E-3,2.7677674548190205E-3,4.0070528050591995E-3,4.4911181233015804E-3,4.2557857897826861E-3,3.4281301434128325E-3,6.1284384432032189E-3,3.3633703365893572E-3,1.653498332532327E-3,5.9381103587793872E-3,4.5041418456171264E-3,1.0079878109791427,1.667683821153769E-2,1.8851182773729287E-2,9.0119009277779408E-4,3.1296696791945538E-3,1.2741692356041225E-2,1.0980709949253162E-2,8.7793254117925629E-3,4.7753847839982731E-3,1.021750683874185E-2,4.8343978992009496E-3,2.9177571661249814E-3,0]
[null,"DOM_C60T63: Transport and storage",0.16275705008953154,0.13378042312277652,0.11671302846111353,0.1022225792276449,0.14234582188893308,9.6791528625767911E-2,7.7006913853043937E-2,0.12482897048072271,9.721056666697267E-2,0.10559824347879017,8.6178959312016717E-2,7.1769862522389219E-2,7.2019789920835506E-2,6.7473545393826856E-2,7.4147733885985959E-2,7.4406377832622148E-2,4.8423182210985294E-2,8.8807186565163954E-2,4.1357778414551682E-2,7.4976082369073688E-2,6.7121842339005935E-2,7.8739192002529601E-2,1.0936625788030518,0.10090784132087313,9.2251961417007065E-3,2.7520149653783198E-2,5.7081195319563967E-2,2.8695680993126811E-2,7.2073037109329552E-2,5.5282432520407529E-2,3.3738709709646653E-2,3.9004155127053144E-2,2.8925788140055728E-2,0]
[null,"DOM_C64: Post and telecommunications",1.4694033832110147E-2,1.1825810029048969E-2,2.2441045624789119E-2,3.7243261527263212E-2,2.9131525513084847E-2,3.1112939113356095E-2,1.4431027050433072E-2,2.8704262052415351E-2,2.8083544283268227E-2,1.7275469830315821E-2,1.3511340784857299E-2,2.1711128477153598E-2,2.9698975223817221E-2,3.3925861317252066E-2,2.539092313306435E-2,2.2699957186181965E-2,2.7058968234038212E-2,2.3129978114228414E-2,9.2385289483013673E-3,4.2553627072944897E-2,4.7119324047093576E-2,5.8564244994443501E-2,3.4342240002582826E-2,1.0353025444647483,2.2241200541750578E-2,2.5707326837751648E-2,6.0474608818409187E-2,2.689691426009283E-2,7.7543149624418328E-2,6.2126346065136916E-2,5.5480831086407535E-2,6.7234448244516243E-2,2.3066024096704513E-2,0]
[null,"DOM_C65T67: Financial intermediation",8.1011402650406822E-2,7.5624514357101991E-2,6.2225980609611216E-2,9.2096670946230613E-2,8.3285816545326519E-2,6.4514926030160999E-2,4.2720211464020601E-2,7.5698989604327915E-2,6.9337402058952419E-2,5.152819092719995E-2,4.5717663786371578E-2,6.0870171711450892E-2,7.2075429019781964E-2,9.9229667600189586E-2,6.2611262442526475E-2,5.1342392699655411E-2,6.412828548758305E-2,6.7261915148816714E-2,6.1476986245290098E-2,7.0749886937714029E-2,9.2196190214900511E-2,6.4116168486704372E-2,7.8976340337521184E-2,6.0906326037109264E-2,1.5615928429447983,0.16349011212186171,0.24819743021875615,8.1024826373057468E-2,0.1107712565741026,5.2016977687197881E-2,4.9436867192572252E-2,5.8683858401525832E-2,7.9886435787615798E-2,0]
[null,"DOM_C70: Real estate activities",1.5801793699199533E-2,1.1028904066800908E-2,2.8969885356941307E-2,4.0677824610422027E-2,3.2738104677704029E-2,3.2579796580961988E-2,1.5990404028887743E-2,3.0330295243336036E-2,3.6809754341306171E-2,1.7838461184743918E-2,1.559617974394063E-2,2.4970840313441812E-2,2.9456819207956269E-2,3.7441388928253445E-2,2.7130555123547298E-2,2.6468758699690276E-2,3.7383220184029349E-2,3.1778594864882589E-2,7.3796152322994982E-3,3.3963073535617151E-2,7.0649590896672096E-2,5.9576503024274877E-2,2.9972324107142002E-2,4.0599174233388054E-2,1.4969363801234417E-2,1.0340202412695612,3.8805809351648068E-2,3.16592955562695E-2,6.1389151534943474E-2,2.3979717236676593E-2,4.6146033069755406E-2,6.916372425763484E-2,2.1770020923338549E-2,0]
[null,"DOM_C71: Renting of machinery and equipment",2.6657569642793287E-3,1.9119922185518443E-3,4.0012452234295332E-3,3.7135782303413076E-3,3.548830330432756E-3,5.8437583988415892E-3,2.1417577784878343E-3,3.7635406437162748E-3,3.3925608248427425E-3,2.8319426833384835E-3,2.0647726965376412E-3,2.5954096574186541E-3,3.0185030088851531E-3,3.2202977653924313E-3,2.6141149400723354E-3,2.781869496063859E-3,8.0028830051898005E-3,2.9014865963110643E-3,1.3231962208627068E-3,9.5013070779505562E-3,5.7056216965970727E-3,3.0448502828600552E-3,1.1277207060831958E-2,5.9165611502832675E-3,2.0453042428261619E-3,2.1796582268125905E-3,1.023957309357785,4.6906200856021298E-2,5.3806694084147944E-3,1.606586948108811E-3,5.5756425767074817E-3,6.076156691498075E-3,2.9480799360140772E-3,0]
[null,"DOM_C72: Computer and related activities",2.9523364283162088E-4,2.2623731347858823E-4,3.5436828530499434E-4,3.7582650182312478E-4,3.9109005183673366E-4,8.9059509460651717E-4,2.1103208484474253E-4,9.5755983749858076E-4,6.5379311701544568E-4,3.6006575419179898E-4,3.2920762122916791E-4,7.2890455116307378E-4,1.3329501406755128E-3,3.9455296254488417E-3,1.0954699339425591E-3,7.5105501410347862E-4,9.7263705713385065E-4,4.1395181660853618E-4,2.4771697858387185E-4,4.6311054696426043E-4,5.5244283680319032E-4,3.3295712333601012E-4,8.7155556639719779E-4,1.496450800173198E-3,8.4397147663242461E-4,3.6711335279025726E-4,6.927261917617553E-4,1.2365972323492824,1.4922804459039183E-3,4.7858841898419674E-4,1.4768065363311366E-3,1.193247231826083E-3,3.850659845262951E-4,0]
[null,"DOM_C73T74: R&D and other business activities",3.7353486687301971E-2,3.2357509980650755E-2,7.8267290469499734E-2,6.6056417904051881E-2,6.8025382627332501E-2,7.4406245405573238E-2,4.0640088881018575E-2,0.13214917519206107,7.1673288881934402E-2,4.7058228991461087E-2,3.9102446300594791E-2,4.3073803252188687E-2,5.032348766915401E-2,5.2926305193469511E-2,6.4551008555713565E-2,6.9016494893947025E-2,0.18419474109834189,5.1599207453194178E-2,2.6712289340627821E-2,0.14540554771421557,8.3289017690296341E-2,8.730172511911137E-2,8.694772712752083E-2,0.11492804207988654,2.3134608197166263E-2,5.9210927967349815E-2,8.837451376663738E-2,0.10574192788594955,1.0854068740337808,0.10045275768438112,0.27312278750791558,0.19785548325510696,6.1675034978369583E-2,0]
[null,"DOM_C75: Public administration and defence; compulsory social security",2.216323951529027E-4,1.1407208513780302E-4,1.4091122763588393E-4,1.401851894511043E-4,1.6346774824704138E-4,1.2983513887767173E-4,7.863417896581811E-5,1.4551709068642526E-4,1.1906270665071106E-4,1.0329856216691606E-4,8.4372727706492638E-5,8.5388248175025848E-5,9.6216258887141937E-5,1.0013148014015595E-4,9.5580502760574454E-5,9.4745104444576091E-5,6.5037313684796134E-4,1.0364673979721669E-4,4.6132552427796736E-5,1.2153892983337155E-4,1.1504001730007184E-4,1.349481811457696E-4,7.975682222929266E-4,1.0245306046952878E-3,1.2236351108399306E-4,1.6864429553543184E-4,2.222503613022357E-4,5.4022770805355557E-4,2.911929517745362E-4,1.0294884975343959,2.9352499289201576E-4,1.5366911718537843E-2,1.2430563785243004E-4,0]
[null,"DOM_C80: Education",7.8205945124981222E-5,6.437479818465981E-5,1.135743377712462E-4,1.231277659083946E-4,1.3420074480558343E-4,1.2889799875687844E-4,6.4338165415268159E-5,1.5686604561198917E-4,1.3846665042130724E-4,8.0894820210485144E-5,6.7414982284491568E-5,7.6268895201632843E-5,1.3903096109745932E-4,1.4517133197980989E-4,1.0705043522397295E-3,9.7617988651696043E-5,2.6352623115206915E-4,8.1835027815692395E-5,9.0506557641069541E-5,1.1339921362718497E-4,1.2108393026543924E-4,1.2354717639495762E-4,2.3155858896598271E-4,1.3997897221820337E-4,4.1899257661357674E-4,1.6071667507879531E-4,1.6929579347876449E-4,5.3583316194054766E-3,3.9700905760495052E-4,6.8663067119774612E-5,1.0002434176886568,1.7794348202162326E-4,1.727213847222965E-4,0]
[null,"DOM_C85: Health and social work",6.2474995086019471E-3,6.492656508250102E-4,2.4275483651528523E-3,2.0119322094618534E-3,2.3433629321067619E-3,1.8935422746562637E-3,7.1503756776108648E-4,1.9303207830365452E-3,1.4553729373445131E-3,8.5263283188240333E-4,7.1638044713897469E-4,8.5650265806295209E-4,1.0075044768295901E-3,1.0995510508717721E-3,1.134796953881453E-3,1.2050737881366073E-3,2.2362700974727142E-3,1.2115101906574339E-3,4.8271503289065796E-4,1.9168664926706917E-3,1.5589034108017242E-3,1.6965071440349841E-3,2.105621866035062E-3,2.6760085749459304E-3,2.0121537850304877E-3,7.7934124837518567E-3,7.7522877446509581E-3,1.7394178035031436E-3,1.0946409952048703E-2,7.3518963340203306E-3,1.4284896282467723E-2,1.0034281970415482,2.6541041803186879E-3,0]
[null,"DOM_C90T93: Other community, social and personal services",3.7905696718670438E-2,3.2338224916736415E-2,9.0661941954258141E-2,0.11546257878406023,8.9623207415307174E-2,0.15129083504052224,4.553067546978478E-2,0.10223224722271278,0.10470382390761933,5.9821768872282036E-2,5.1353022308240605E-2,6.3634630182770338E-2,7.9965288583331712E-2,7.2591351676250054E-2,8.7017362799136869E-2,0.10936009166113352,3.1790181170431038E-2,6.6226865614884875E-2,1.0003548672642948E-2,4.4437298623604127E-2,2.5470175077167603E-2,5.6998675726631309E-2,5.3129683856821659E-2,7.0407214449477951E-2,6.0552881287459356E-3,5.0866880563584661E-2,5.7431562803286387E-2,3.026035571992286E-2,7.6421077375422072E-2,2.1952788902587901E-2,5.2727013860893235E-2,3.5241554984593949E-2,1.023347230238169,0]
[null,"DOM_C95: Private households with employed persons",0,0,0,0,0,0,0,0,0,0,0,0,0,0,0,0,0,0,0,0,0,0,0,0,0,0,0,0,0,0,0,0,0,1]
[]
[]
[]
[]
[]
[]
[null,"Total Requirements - Type 2"]
[null,null,"DOM_C01T05: Agriculture, hunting, forestry and fishing","DOM_C10T14: Mining and quarrying","DOM_C15T16: Food products, beverages and tobacco","DOM_C17T19: Textiles, textile products, leather and footwear","DOM_C20: Wood and products of wood and cork","DOM_C21T22: Pulp, paper, paper products, printing and publishing","DOM_C23: Coke, refined petroleum products and nuclear fuel","DOM_C24: Chemicals and chemical products","DOM_C25: Rubber and plastics products","DOM_C26: Other non-metallic mineral products","DOM_C27: Basic metals","DOM_C28: Fabricated metal products","DOM_C29: Machinery and equipment, nec","DOM_C30T33X: Computer, Electronic and optical equipment","DOM_C31: Electrical machinery and apparatus, nec","DOM_C34: Motor vehicles, trailers and semi-trailers","DOM_C35: Other transport equipment","DOM_C36T37: Manufacturing nec; recycling","DOM_C40T41: Electricity, gas and water supply","DOM_C45: Construction","DOM_C50T52: Wholesale and retail trade; repairs","DOM_C55: Hotels and restaurants","DOM_C60T63: Transport and storage","DOM_C64: Post and telecommunications","DOM_C65T67: Financial intermediation","DOM_C70: Real estate activities","DOM_C71: Renting of machinery and equipment","DOM_C72: Computer and related activities","DOM_C73T74: R&D and other business activities","DOM_C75: Public administration and defence; compulsory social security","DOM_C80: Education","DOM_C85: Health and social work","DOM_C90T93: Other community, social and personal services","DOM_C95: Private households with employed persons","HH"]
[null,"DOM_C01T05: Agriculture, hunting, forestry and fishing",1.0709477908747116,3.2293471784150186E-2,0.25363588426670575,0.16965676778446143,0.2505592992851477,0.14096189626476691,2.4108850312087399E-2,5.5505653145565957E-2,7.6518718191005808E-2,3.445856871561196E-2,3.1070151495445487E-2,4.5122742315083619E-2,4.4607606946672679E-2,3.7056098283856385E-2,4.3225376134347494E-2,4.5567734801392097E-2,4.0537153156995832E-2,7.3175600237919455E-2,2.7583964257101079E-2,3.9574639795538984E-2,4.5913940354080571E-2,6.7067392169891091E-2,3.5948462249282706E-2,3.7272262636207198E-2,4.37004924843463E-2,2.3277203710945289E-2,4.092200008533383E-2,5.5324101745172771E-2,5.2214298367199589E-2,6.4342843561456531E-2,4.7847683976615124E-2,4.5502314811051159E-2,5.8704270078556171E-2,0,8.8643978002371088E-2]
[null,"DOM_C10T14: Mining and quarrying",3.8728899075665152E-2,1.0441939472436292,4.0434836111880534E-2,5.1557822525033825E-2,6.0703233739613366E-2,7.699932612538074E-2,0.28933313785145487,7.1342907198659142E-2,8.2902335996486734E-2,0.19683769669603604,0.30714341293131964,0.24649937911520584,0.14934546143872185,0.10756828057589747,0.19144702307617431,0.11927139511095332,7.764017105868852E-2,0.12489926058068335,0.14960880137462532,9.6230161511947965E-2,3.313316527252741E-2,3.2463611237160891E-2,3.7045934463753843E-2,4.6620949091886583E-2,2.5342684528331504E-2,2.3075658070331715E-2,3.2430680975197898E-2,3.6079857778375683E-2,4.2145483039469502E-2,4.6702337432342027E-2,3.8767087598901538E-2,4.135444330967597E-2,3.9968487683670603E-2,0,4.6851555715143489E-2]
[null,"DOM_C15T16: Food products, beverages and tobacco",0.17483728701154788,6.4103684854221701E-2,1.2655973095634798,9.6412278584344327E-2,0.11467221807755977,0.10618421981775579,4.6856480324846468E-2,0.11201769590431671,9.97924938403143E-2,6.4315971806843356E-2,5.9195179016814224E-2,8.7294271157739411E-2,8.491534624758186E-2,6.9949394068344994E-2,8.095109484218159E-2,7.8542520565443377E-2,7.3912278950441543E-2,8.1577186124896256E-2,5.6259362080204822E-2,7.326793388933775E-2,8.4850905543247451E-2,0.22090430911018813,7.4672361451875252E-2,7.7753046920211732E-2,8.99212516228729E-2,4.3165477449539136E-2,7.8987509924492161E-2,0.11226234344138167,0.10145210131151768,0.13304046403646361,9.3356102783474629E-2,8.5378689624394349E-2,0.11358198520739277,0,0.1847145813137501]
[null,"DOM_C17T19: Textiles, textile products, leather and footwear",2.8843800354346791E-2,2.3297138510965786E-2,2.5935855040685542E-2,1.2351183545418718,3.1635186916889976E-2,3.7980064454500362E-2,1.4734395022742493E-2,3.0521795910353949E-2,4.6713109183205606E-2,2.0168394250578432E-2,1.9694650547128094E-2,2.7683564660425021E-2,2.7782346868250617E-2,2.5994925141961608E-2,2.6219365218933217E-2,6.0231453970017231E-2,3.0464703998339254E-2,4.0852358482000875E-2,1.739340700307913E-2,3.0921036957527879E-2,2.7371481198636409E-2,2.2591242227331398E-2,2.3645015687980091E-2,2.5757033916460309E-2,2.6936291548250994E-2,1.2534604237202226E-2,2.239109294284573E-2,3.3582853625293646E-2,2.95939213223896E-2,4.0688458515739823E-2,3.2143841894073225E-2,3.4128508316707322E-2,3.4379681192285648E-2,0,5.4865755108306637E-2]
[null,"DOM_C20: Wood and products of wood and cork",5.6094682549135992E-3,6.6744795478103141E-3,1.140983164989305E-2,6.7530472943808173E-3,1.1123368658079886,1.0316853139055743E-2,6.0802061930538527E-3,1.3131804138297374E-2,6.0034276159615773E-3,7.6957094532600677E-3,5.5216986183187098E-3,7.1337222767576839E-3,5.6262983553354998E-3,6.1011638148467367E-3,5.1938474862505482E-3,7.4359593713673178E-3,1.5751422937297883E-2,3.362488522547797E-2,3.09525972829337E-3,1.1347616332638691E-2,5.5713444660386658E-3,4.690392929314194E-3,5.055224572168923E-3,6.5081313299236712E-3,3.1770229631846586E-3,3.3392804458997772E-3,3.9580758793833111E-3,4.2907311383313575E-3,5.1325151018256241E-3,5.6717842435018541E-3,5.8144288619190838E-3,6.6951022633006544E-3,5.7357995074065679E-3,0,5.6389000976525567E-3]
[null,"DOM_C21T22: Pulp, paper, paper products, printing and publishing",3.2076883788313346E-2,2.5659385100417393E-2,5.7957795312257178E-2,5.4894772686318254E-2,5.347873526551012E-2,1.2940876100737431,2.5703086479915326E-2,7.436606352521942E-2,5.1809439628498981E-2,3.7268110894545091E-2,2.9585223261293127E-2,3.9405995433560097E-2,4.072936772582475E-2,3.6799617265200368E-2,4.0968080552173707E-2,4.437728215574966E-2,4.6917439748076384E-2,4.7423183290230028E-2,2.2307038797545569E-2,4.421890392743013E-2,9.6668856128055744E-2,3.9141263288892808E-2,3.87257333134962E-2,4.7311487595275162E-2,3.1052067582991762E-2,5.3704268954898139E-2,8.4381283092283751E-2,5.5025288159259132E-2,9.3907802635420118E-2,5.3889884449549591E-2,6.6890934420397855E-2,7.6914583870048833E-2,4.1263291910388925E-2,0,5.3310671675998123E-2]
[null,"DOM_C23: Coke, refined petroleum products and nuclear fuel",5.1551653567155742E-2,4.0552072044390486E-2,5.4281179500544709E-2,7.7793852046438086E-2,5.6231227428846689E-2,6.2493024073410029E-2,1.074627065026823,0.10278462672948827,0.16946222072087025,3.7792005675355504E-2,4.3685589676916742E-2,5.5831323664102789E-2,4.9737339426616713E-2,4.3273692536527471E-2,5.9293488057489199E-2,5.2527764961907433E-2,4.1248022295015674E-2,4.6455332105352652E-2,3.0589938961022026E-2,5.5400003861331822E-2,4.844297294258576E-2,4.8610587399050373E-2,6.1535371509567595E-2,8.5211262015624317E-2,4.0415197100941123E-2,2.6856542819428238E-2,4.6746004841273718E-2,5.305614274592034E-2,5.8393083089320959E-2,7.0458174247508248E-2,4.8733862675523834E-2,4.8260310056284811E-2,4.9256380345185764E-2,0,7.8758245792768966E-2]
[null,"DOM_C24: Chemicals and chemical products",5.6825136795399016E-2,2.6814707605589412E-2,2.5396982196979851E-2,2.8966404676311692E-2,3.5274195199256626E-2,4.0610343088720809E-2,1.7046414300679491E-2,1.0777618422636523,4.5021881605994615E-2,2.0550407249508695E-2,1.6732808226210507E-2,2.2201928738628175E-2,1.9110695652053877E-2,1.4731662759771058E-2,2.1236928443178427E-2,2.2081821717819666E-2,2.2800610482456369E-2,1.9422460111223342E-2,1.3498097156717294E-2,2.4344378648271183E-2,1.7820883970636154E-2,1.8359354610710404E-2,1.5998880144181635E-2,1.9343577155494066E-2,1.4333306748854286E-2,1.1256911079368595E-2,1.8893691206734668E-2,1.8999315675728181E-2,2.2785872565118086E-2,3.0750621852136246E-2,2.3295778641586325E-2,2.7837236016710468E-2,2.0679555042210924E-2,0,2.7862282197692909E-2]
[null,"DOM_C25: Rubber and plastics products",1.1827095908026136E-2,1.2913542293985012E-2,2.361001422923463E-2,2.2667677656969514E-2,2.1680089773017053E-2,1.4810193881692767E-2,9.1350893353414619E-3,3.0266619810625183E-2,1.046522952734257,1.1219892031381086E-2,9.6533749014339077E-3,1.2074122947407931E-2,1.7663685464337969E-2,2.0383923715416304E-2,2.442933871343821E-2,2.9845743134285646E-2,1.9857403498713209E-2,2.5196041612054108E-2,6.7405046238786272E-3,2.7277542360885271E-2,1.6958205476153454E-2,1.0400859655274687E-2,1.5203660977223891E-2,2.1398389335256444E-2,8.2265230708893841E-3,6.7278592686117805E-3,9.5538542373293477E-3,1.1011688485296836E-2,1.2533652782926862E-2,1.3605466688050414E-2,1.0740591326598934E-2,1.0639169772387528E-2,1.3590443395255411E-2,0,1.5434938891728704E-2]
[null,"DOM_C26: Other non-metallic mineral products",6.4136831279257437E-3,6.6007786347789029E-3,1.0327617624833927E-2,6.5694359251254235E-3,1.0459403334213678E-2,8.4114291354719078E-3,5.8493918579329476E-3,1.2898862104903373E-2,7.372680209495195E-3,1.0696151547090305,5.317398779771435E-3,6.9148677971740125E-3,7.7182193350886115E-3,1.2679451486552652E-2,7.5510317670483889E-3,1.4364769651465534E-2,7.1244678484420586E-3,9.4809873270300504E-3,4.2238297915685487E-3,9.377280043706171E-2,6.1861690679686967E-3,7.7056712237636984E-3,9.0497911179417845E-3,1.1690830571912617E-2,4.5599060950490189E-3,4.7521546947263829E-3,6.5924288932495403E-3,7.1578910734567437E-3,9.0758936696105855E-3,9.6256243935181323E-3,7.5605576963215246E-3,8.2204036297899054E-3,1.1630167344035162E-2,0,8.5208534842175932E-3]
[null,"DOM_C27: Basic metals",1.9443016279951351E-3,2.8753711110694022E-3,1.681625219569352E-3,2.5005680403236879E-3,5.1084565859451396E-3,2.1812978291065313E-3,1.9702570325232896E-3,2.1637308196078677E-3,5.4470763577304298E-3,1.9617544718620811E-3,1.0135748084361813,4.8313691761526084E-2,4.7216548944662463E-2,6.4190009271674281E-3,2.5884117020815462E-2,2.742546433445427E-2,3.2454801793253253E-2,4.6325701258565838E-3,2.0993591190607251E-3,1.7646176162977385E-2,1.719058919876552E-3,1.5021400688756262E-3,2.7352335799679557E-3,3.3709496947214122E-3,1.1605035108278731E-3,1.2326012602601963E-3,1.7917743826564427E-3,1.8331870065003237E-3,2.3506477487878936E-3,2.4331129719994652E-3,1.8303018656244199E-3,1.9531728809580205E-3,2.5342480964782666E-3,0,2.095684145700996E-3]
[null,"DOM_C28: Fabricated metal products",1.7354242184258847E-2,2.0920458561598229E-2,1.0905690776386303E-2,1.4256405531591625E-2,2.2599854253571659E-2,1.4967354166611498E-2,1.2338005737303207E-2,1.0783340413986186E-2,2.3434186560819172E-2,1.0765159545500166E-2,2.9113975754905735E-2,1.0669803213717104,4.081607311477408E-2,1.9368095789605577E-2,8.3224667228611313E-2,4.9629462129039424E-2,8.693435932873711E-2,2.9254301905475785E-2,1.0164050745586427E-2,6.8032801041997271E-2,1.2248318245472229E-2,9.4805374915680127E-3,1.0783295664482582E-2,1.2520498287372167E-2,6.8700530612921589E-3,8.1774730678653082E-3,1.2352800631225904E-2,1.0896995358768152E-2,1.5030217807821324E-2,1.4630589133115816E-2,1.1482496160326153E-2,1.2514992972356141E-2,1.5431434899197793E-2,0,1.2465841699607893E-2]
[null,"DOM_C29: Machinery and equipment, nec",2.6756462263959517E-3,5.5347932155966322E-3,1.7902082670859193E-3,1.8675183473442264E-3,2.0799835669240894E-3,1.8958083297950475E-3,2.0970562159143007E-3,1.7473112389164904E-3,1.8473098504390641E-3,1.8816940968552603E-3,2.3955956574403469E-3,3.0871852698234714E-3,1.0137371329503357,1.8174318040472396E-3,3.7423607832768116E-3,4.9007401073541748E-3,1.6486288683472319E-2,1.7614082585116846E-3,2.3041599974505229E-3,2.6718202821886471E-3,2.7395560653199029E-3,1.4033107090882472E-3,1.942298267537036E-3,2.4346313300931135E-3,1.1073311823939916E-3,2.0966008074353808E-3,3.3681781429211232E-3,1.7069003263812295E-3,3.6805624610653253E-3,2.218032753525149E-3,2.3437821493262402E-3,2.6157349399902573E-3,1.6198550304644327E-3,0,2.0136419336027815E-3]
[null,"DOM_C30T33X: Computer, Electronic and optical equipment",1.2871970649096503E-3,1.5286427507400441E-3,1.6052627105613325E-3,1.743897450830907E-3,1.9212572614288005E-3,2.3542641685466246E-3,1.0012269705847751E-3,1.7175414782985281E-3,1.983318030901164E-3,1.3666293417370996E-3,1.2967923930359976E-3,1.9345212491315902E-3,1.3403683396159187E-2,1.0386523361849389,1.5678155279092883E-2,6.6377954231767577E-3,7.5230610598918963E-3,1.4478792912991829E-3,1.248295274010605E-3,1.7800716956967975E-3,1.9554664320593886E-3,1.4687764708159849E-3,1.7637450852481357E-3,1.9578027128352988E-3,1.9038827888798199E-3,1.20552486078544E-3,2.0808105966870303E-3,1.2920572558478213E-2,2.5348689841816797E-3,5.3556945720626943E-3,4.2059355385853344E-3,6.042872884479346E-3,2.5498950202480241E-3,0,3.5425903575189259E-3]
[null,"DOM_C31: Electrical machinery and apparatus, nec",3.1358391528617862E-3,4.9643618058873972E-3,3.7003530562016137E-3,4.1027845572826661E-3,4.4189214921116441E-3,4.6434333467058253E-3,3.0908621770146111E-3,4.0026614824161203E-3,4.5377985256721057E-3,3.3649494829960922E-3,3.4406335273981501E-3,5.1905634712669946E-3,1.7073097690468605E-2,2.0724226289853178E-2,1.0195561551847583,7.5993944794322576E-3,1.4032308810019758E-2,3.4621869602971633E-3,8.1474698988357949E-3,1.8344793119637503E-2,4.0561798550805654E-3,3.5681706061544715E-3,4.4540026202228196E-3,5.2794169736565004E-3,3.4799237517781725E-3,2.7886035739193181E-3,4.2695584033058641E-3,5.790300594338312E-3,5.5113783344727186E-3,6.9190024681192583E-3,4.5292479225435625E-3,4.4574414420964752E-3,7.1900727891167082E-3,0,6.8255546763937303E-3]
[null,"DOM_C34: Motor vehicles, trailers and semi-trailers",5.9638942130512086E-3,5.9498047103336386E-3,6.1683133060230896E-3,6.5766041031354644E-3,7.4390192475673996E-3,6.9214174676755945E-3,3.7862233973279401E-3,6.2250338812260241E-3,7.1311991742542382E-3,5.1924120974091992E-3,4.7901524294211364E-3,6.8114226698109733E-3,6.7118609367267717E-3,5.3485315528114582E-3,6.8206428569514482E-3,1.0393013753992597,6.2103342725542774E-3,5.2855701348341584E-3,4.1506653117815602E-3,5.5919083602436852E-3,8.3946868020288359E-3,5.1898124011871645E-3,8.6285860497516288E-3,9.6434984726132267E-3,5.9361553068590783E-3,3.2461352024237716E-3,6.6144135118771661E-3,7.4654176167805184E-3,7.7390347425426538E-3,1.2119782035847097E-2,9.0469694558272407E-3,1.113225086576866E-2,7.2131917976141274E-3,0,1.1788793474778674E-2]
[null,"DOM_C35: Other transport equipment",3.4229640512907478E-3,3.2755107907071709E-3,3.4480976406598301E-3,3.476871633135981E-3,4.2319446264180577E-3,3.7397699996850058E-3,2.0877688608355975E-3,3.6444968820379393E-3,3.9693881819878856E-3,3.0088430312075389E-3,2.6636501015960454E-3,3.4426994275469332E-3,3.3227126600107529E-3,2.8075874503746849E-3,3.2085094765060078E-3,3.1104903501990144E-3,1.2986383065986,2.8475012117909399E-3,2.1774519280049003E-3,2.9590408378736264E-3,3.2124733516183603E-3,2.8682347847022497E-3,1.2963733843153942E-2,2.9624463344329016E-3,2.9881153457805417E-3,1.4386738888126991E-3,2.7272081808039548E-3,3.8028769900278181E-3,3.6085383373008948E-3,9.8080796315902618E-3,3.0249569534265921E-3,2.8281545033511054E-3,3.2513894982649219E-3,0,6.0177909290120542E-3]
[null,"DOM_C36T37: Manufacturing nec; recycling",1.4164122293823182E-2,1.803913993381023E-2,1.8224474656424711E-2,2.0246148070915505E-2,2.5985176402133502E-2,2.5861075196564633E-2,1.2023220141610596E-2,2.0249996537222575E-2,2.2878644174820207E-2,1.5786593540712331E-2,5.9053792471862689E-2,4.8831603795103401E-2,2.9170495135671902E-2,1.753318542591625E-2,2.6739149598457353E-2,2.1270025641256872E-2,2.4001244266574847E-2,1.1856965195781408,1.2921204735007054E-2,2.2200774587364889E-2,2.5489236164111986E-2,1.7705867629310763E-2,1.9057150919023446E-2,2.151365750307584E-2,2.696082017325865E-2,1.8379832509620803E-2,3.1496286004911681E-2,2.5516359796698567E-2,3.5900534133892437E-2,2.934937094892277E-2,2.9499625974986503E-2,3.1175819223139577E-2,2.4454024171547746E-2,0,3.6074525470297276E-2]
[null,"DOM_C40T41: Electricity, gas and water supply",5.2524609935822995E-2,6.901305487532744E-2,6.5766154050123163E-2,7.1886328915657619E-2,7.2861024175942632E-2,6.9553231224445067E-2,7.0743726351447905E-2,8.324326811879465E-2,8.1870954613821323E-2,6.9337323401173157E-2,7.317758747341517E-2,8.3867407351603793E-2,5.8619092987500697E-2,4.8571637579164072E-2,6.171619355619698E-2,5.7425703217537746E-2,6.2942420105699143E-2,5.2176033461756269E-2,1.1582901402283874,5.2492119546846489E-2,5.5531249394457333E-2,6.0808385916324002E-2,4.89399394648391E-2,4.3796704287467576E-2,4.1364340934980225E-2,5.9438030029198723E-2,5.0935125435467923E-2,6.1405242384392857E-2,7.8187508702086489E-2,6.4875724369166166E-2,7.2313785428865712E-2,6.3571703266123325E-2,5.05252835420201E-2,0,7.4967399461797327E-2]
[null,"DOM_C45: Construction",1.7053256324816815E-2,2.1478950999880769E-2,2.1524783805331918E-2,2.4306827819935654E-2,2.8715519308119261E-2,3.6473006404124486E-2,3.4465042964025271E-2,2.2882455790676357E-2,2.5995045394262863E-2,1.6496404469669063E-2,1.7341884769120488E-2,2.365939558062673E-2,2.1793086491489245E-2,2.2569754286374994E-2,2.0355783413597787E-2,2.0555812436778315E-2,2.0582956502568101E-2,1.7217190700759239E-2,1.28844345172356E-2,1.0802434833318919,2.0132335853525567E-2,2.5593856108844407E-2,4.3185755589462131E-2,4.9897052781091973E-2,1.4659307258114561E-2,2.6647315040244524E-2,2.7799908264269198E-2,3.2373075818860078E-2,4.5489905414400483E-2,2.9036387493300828E-2,2.6762734356619407E-2,2.5636565216303912E-2,2.0056235290693319E-2,0,2.5563137931100186E-2]
[null,"DOM_C50T52: Wholesale and retail trade; repairs",0.20238214516181197,0.13768329925502504,0.28205499944754064,0.36126917098027045,0.26877549365072212,0.26596282256899884,0.17722467815413018,0.24534260326825144,0.26425886060640463,0.19492827422699124,0.21411960744535122,0.25848109150002402,0.23819970910887692,0.19806572770625958,0.25224903661293779,0.26176400855189269,0.21809108440012734,0.27085238407683615,0.13227690145539181,0.25776866510873692,1.1878299720736594,0.20325934178964705,0.18847094310193482,0.22942132737319032,0.13816522809457815,0.15430397623099942,0.21567632045338855,0.19543461207745252,0.28103861153059073,0.22736940580093376,0.19324742741174139,0.19306103387582735,0.18098431122193182,0,0.25719743477437862]
[null,"DOM_C55: Hotels and restaurants",8.897202194266601E-3,9.0717801488860265E-3,1.0800412773602081E-2,1.1652182834451897E-2,1.3239556647558371E-2,1.2842301970112411E-2,6.6409118085558848E-3,1.202425173739924E-2,1.5852007438426741E-2,9.4982488016046238E-3,7.9490982999711919E-3,1.1197325782754277E-2,1.2140515457587339E-2,1.1158565860749373E-2,1.1961690222175221E-2,1.0821193576857619E-2,1.3134620421729321E-2,9.4886503870405519E-3,7.1695246791426475E-3,1.2838723764234129E-2,1.2449818935500099E-2,1.014496151508063,2.3097200834753345E-2,2.494617543950884E-2,9.9525683989591437E-3,6.7646512992668023E-3,1.9482285495286869E-2,2.1965159113134475E-2,1.7806048755749617E-2,1.743835317047308E-2,1.8614990828740449E-2,1.212081620609182E-2,1.2176142638540019E-2,0,1.8812539310100442E-2]
[null,"DOM_C60T63: Transport and storage",0.20290441842801471,0.17709949655049032,0.16767444167602899,0.1570531816649349,0.20509802140242611,0.15871590008011971,0.1064565263149559,0.17835949869214826,0.16265495400322569,0.149247665354065,0.12612536336767874,0.13198152495691487,0.13011646457517653,0.11509859250176728,0.12919039429421914,0.12721443995094289,9.846778097102496E-2,0.13255957315135877,8.0758314414330748E-2,0.12426661323632678,0.12387717970517644,0.12522774901714936,1.1395227166581032,0.14444388753537493,7.3878469057895371E-2,5.348453328443839E-2,0.10522871419534244,0.10715672478150655,0.1365502015978898,0.14573300516532667,9.372126770791106E-2,9.1050459616973334E-2,9.5057696724916985E-2,0,0.13437646699972056]
[null,"DOM_C64: Post and telecommunications",3.7561703143879285E-2,3.6500061095405004E-2,5.1468321715063957E-2,6.847440161420032E-2,6.4874753685906519E-2,6.6384642025945448E-2,3.1205327011041718E-2,5.9194888658439582E-2,6.5360224420786539E-2,4.213788513679817E-2,3.6264542201139886E-2,5.6007283922659613E-2,6.2790447942726355E-2,6.1052765851561996E-2,5.6742850005166795E-2,5.2779071994800246E-2,5.5564033015278042E-2,4.8051041423246031E-2,3.1680807614067691E-2,7.0629179885542542E-2,7.944678012404445E-2,8.5043812462696045E-2,6.0463864170317287E-2,1.0601003817621144,5.906726725940184E-2,4.049646404206006E-2,8.7899109735897291E-2,7.1587793823649701E-2,0.11426890617348753,0.11364638012728266,8.9646490195463543E-2,9.6879671063126227E-2,6.0734311684689721E-2,0,7.6539926221962901E-2]
[null,"DOM_C65T67: Financial intermediation",0.14596580119949032,0.14571041230383275,0.14467641463751732,0.18080706345243711,0.18481255530105126,0.16470232236049359,9.0366718424067086E-2,0.16230599294942605,0.1752198295695219,0.12214855939120198,0.11034692236587006,0.15828657734235668,0.1660699974323098,0.17628219728749206,0.15166474338840408,0.13678051866892937,0.14509540606401994,0.13804887014504674,0.12522308528720444,0.15049700160920157,0.18402060998729788,0.13932997166405839,0.15317342460562192,0.13134326410055469,1.6661953270004153,0.20549786984605323,0.32609526660593191,0.20796689305697461,0.2150888149304816,0.19835689454145633,0.14648260491974874,0.14288953724809503,0.18688120343506684,0,0.21740758994534373]
[null,"DOM_C70: Real estate activities",5.9101630264182525E-2,5.7749495657073421E-2,8.3932911693371304E-2,9.9813858242257275E-2,0.10041775830080166,9.9366619088393088E-2,4.7752471115127385E-2,8.8064169684370266E-2,0.10739299287051593,6.4915340979719932E-2,5.8679271825743846E-2,8.9910467756513984E-2,9.2115384927459756E-2,8.8806069641254579E-2,8.6495298029841766E-2,8.3423437266876982E-2,9.1357441582565466E-2,7.8966524408305552E-2,4.987397638144226E-2,8.712401581106663E-2,0.13186149428785973,0.10971545369978966,7.9433510634476318E-2,8.7553775837162756E-2,8.4699367697381275E-2,1.0620234109478146,9.0733987576278596E-2,0.11628128980784033,0.13092921854481684,0.12153268707803921,0.11083856624346511,0.12529683014952733,9.3094766528397044E-2,0,0.14492803140200966]
[null,"DOM_C71: Renting of machinery and equipment",4.207205389203517E-3,3.5752174875495809E-3,5.9578962664007399E-3,5.8187858507269775E-3,5.9581857403584113E-3,8.2213295521476604E-3,3.2724684731793388E-3,5.8188322309799846E-3,5.9052821302364609E-3,4.5078516004866008E-3,3.5985051467904926E-3,4.9072217652324727E-3,5.2491106762232453E-3,5.0488498446356099E-3,4.7274644745816689E-3,4.8094221737211293E-3,9.9243331805598974E-3,4.5813488184462551E-3,2.8359702001178291E-3,1.1393805000315622E-2,7.8847290455902469E-3,4.8297671018908764E-3,1.3037995879353701E-2,7.5881170365614658E-3,4.5276509028271249E-3,3.1765544097496221E-3,1.0258059216132474,4.9918693514215698E-2,7.8562544282478573E-3,5.0794146453443552E-3,7.8786582755153468E-3,8.0744618706251256E-3,5.4871984522245568E-3,0,5.1593517078689444E-3]
[null,"DOM_C72: Computer and related activities",5.3846124557410365E-4,4.8868027845741112E-4,6.6311137063324423E-4,7.0801056617597309E-4,7.7126608045713385E-4,1.2657558347375128E-3,3.8944872676296174E-4,1.2818675714608965E-3,1.0502794149601427E-3,6.2451009221934912E-4,5.7121770803547959E-4,1.0936890667411778E-3,1.6849212782192998E-3,4.234059771208323E-3,1.4289387238963502E-3,1.0709857813264781E-3,1.2758257414827133E-3,6.7901995292824326E-4,4.8641999486125792E-4,7.6173080918589371E-4,8.9628765706709513E-4,6.1460199186864136E-4,1.1493932392897409E-3,1.7602082665247097E-3,1.2356649108889346E-3,5.244151897108348E-4,9.8442166468590904E-4,1.2370725783652015,1.882906950185962E-3,1.0265714341005422E-3,1.8402030525181056E-3,1.5085629896600596E-3,7.8571754042074473E-4,0,8.141023256564786E-4]
[null,"DOM_C73T74: R&D and other business activities",7.7892246523963871E-2,7.6098895448985654E-2,0.12972551990657277,0.12142155678848941,0.13138934521267942,0.13693430954316538,7.0376801803540404E-2,0.18620156559525797,0.13775568508071043,9.1133183431619566E-2,7.9438282679650585E-2,0.1038724613913741,0.10898653928600127,0.10101564272217319,0.1201302727368091,0.1223393759755968,0.23472721817506992,9.5778130393914016E-2,6.6496936066768444E-2,0.19517660558785949,0.14059765549534256,0.13424349305965577,0.13325494953143827,0.15888851557462777,8.8418177503786485E-2,8.5428435013786913E-2,0.13699141657282699,0.18496787823602709,1.1505126180544969,0.19178512125617131,0.33369010770134067,0.25040918043182137,0.1284516549814296,0,0.13568648578589784]
[null,"DOM_C75: Public administration and defence; compulsory social security",0.11425301382606781,0.123154111562258,0.14488764280849983,0.15587665309188756,0.17839980787450402,0.17601487850328279,8.372496345574526E-2,0.15218935790264568,0.18600207829896903,0.12408163340926863,0.11354495124583382,0.17110578957992267,0.16510937506727438,0.1353705149992816,0.15643436094449512,0.15008655087542269,0.14279305809817033,0.12437443433562831,0.1119562710026895,0.14012242962005467,0.16131837142566141,0.13217733592653474,0.13105504433215234,0.12468084227185659,0.18375836083240157,7.3915807707186129E-2,0.13697662099867555,0.22339471561042273,0.18342698594798001,1.2863970864849401,0.17066319636549129,0.16319508190698676,0.18796010172330105,0,0.38167219416710679]
[null,"DOM_C80: Education",6.4570465260404457E-3,6.9471537932772739E-3,8.2106114320931942E-3,8.8349234919503136E-3,1.0104624545029622E-2,9.9677918024653287E-3,4.7434588858688348E-3,8.6620986375468782E-3,1.0536640453845593E-2,7.0161614420231992E-3,6.4143252231645687E-3,9.643037818722236E-3,9.3697586834454883E-3,7.7121077398375031E-3,9.8159930461283688E-3,8.4880610881800482E-3,8.2148946679265235E-3,7.0334612643080325E-3,6.3506861994608301E-3,7.9449570856164643E-3,9.1386924101679833E-3,7.5099116208312451E-3,7.5180762488488246E-3,7.0572318288513397E-3,1.0691469653809902E-2,4.2860845588542197E-3,7.8192454660408611E-3,1.7824665300822856E-2,1.0641505033390982E-2,1.443996079428363E-2,1.0097737852056647,8.447354228148983E-3,1.0680132446337183E-2,0,2.1350491857675059E-2]
[null,"DOM_C85: Health and social work",2.4951146697589542E-2,2.0830530313424807E-2,2.6169186546461401E-2,2.7556128145305926E-2,3.1578031320278338E-2,3.0742546431469474E-2,1.4434869878962212E-2,2.6868844899122595E-2,3.1944263788589083E-2,2.1187798511368743E-2,1.9326403441091333E-2,2.8907598843072205E-2,2.8073281153071093E-2,2.3286860339884245E-2,2.6777785354494182E-2,2.5807019157702751E-2,2.5550787528121153E-2,2.1594644534234698E-2,1.8838431855566846E-2,2.488008269469779E-2,2.7999784846392362E-2,2.3354354338296059E-2,2.3470704410113508E-2,2.2958355391162331E-2,3.2132484364176019E-2,1.9889564510777797E-2,3.0183003463929537E-2,3.8292440874031199E-2,4.0984696052719073E-2,4.9490538760822531E-2,4.2229258484090225E-2,1.027675258728453,3.3463293855647704E-2,0,6.2602609667350581E-2]
[null,"DOM_C90T93: Other community, social and personal services",7.6988276049144183E-2,7.4508389334173572E-2,0.14027175592694252,0.16883896329390033,0.15071109230406476,0.21157284753633476,7.4199224939592176E-2,0.15434303809165792,0.16841249437984182,0.10231352023159919,9.0239967333129806E-2,0.12224935814892141,0.13652112250180462,0.11895328668581032,0.1406001810757477,0.16076757769178163,8.0507496452742702E-2,0.10881885085376401,4.8359103161092702E-2,9.2420545411265709E-2,8.0720246671896895E-2,0.10225426264741967,9.7773518558895253E-2,0.11278859709872298,6.8993826127508789E-2,7.6142636485031848E-2,0.10430211257788689,0.10664045471813743,0.13918817769648317,0.11000443032221567,0.11111871370152307,8.5907486732242647E-2,1.0877251875117973,0,0.13081253265189224]
[null,"DOM_C95: Private households with employed persons",0,0,0,0,0,0,0,0,0,0,0,0,0,0,0,0,0,0,0,0,0,0,0,0,0,0,0,0,0,0,0,0,0,1,0]
[null,"L",0.47870865419184677,0.51652738895817241,0.60765301800472904,0.65378840475886124,0.7482438381369011,0.73837299298579084,0.35115089560179047,0.63828659707458224,0.78034491132803618,0.52046639336346778,0.47631239896139621,0.71795101605841849,0.69273235302306679,0.56787090039503352,0.65631693875952091,0.62967206552637223,0.59672111805709216,0.52169412260784043,0.4698035847299144,0.58772977339206445,0.67673853338777146,0.55431963500475856,0.54682649902610347,0.51911452617433573,0.77091183177609768,0.30959377062923527,0.57410074227971863,0.93555274561844259,0.76881195245962708,1.0785133296078726,0.7152192236423548,0.62058903009457189,0.78854276800632994,0,1.6022763218288145]

{"sheet":"Mexico-IO-Data","index":17,"n_rows":145,"n_cols":45,"rows_kept":145,"cut":false,"hidden":false,"merged":[]}
[]
[]
[]
[]
[]
[]
[]
[]
[]
[null,null,null,null,null,null,null,null,null,null,null,null,null,null,null,null,null,null,null,null,null,null,null,null,null,null,null,null,null,null,null,null,null,null,null,null,null,null,null,null,null,"Tranpose Value Added Components"]
[null,"Direct Requirements "]
["->",null,"DOM_C01T05: Agriculture, hunting, forestry and fishing","DOM_C10T14: Mining and quarrying","DOM_C15T16: Food products, beverages and tobacco","DOM_C17T19: Textiles, textile products, leather and footwear","DOM_C20: Wood and products of wood and cork","DOM_C21T22: Pulp, paper, paper products, printing and publishing","DOM_C23: Coke, refined petroleum products and nuclear fuel","DOM_C24: Chemicals and chemical products","DOM_C25: Rubber and plastics products","DOM_C26: Other non-metallic mineral products","DOM_C27: Basic metals","DOM_C28: Fabricated metal products","DOM_C29: Machinery and equipment, nec","DOM_C30T33X: Computer, Electronic and optical equipment","DOM_C31: Electrical machinery and apparatus, nec","DOM_C34: Motor vehicles, trailers and semi-trailers","DOM_C35: Other transport equipment","DOM_C36T37: Manufacturing nec; recycling","DOM_C40T41: Electricity, gas and water supply","DOM_C45: Construction","DOM_C50T52: Wholesale and retail trade; repairs","DOM_C55: Hotels and restaurants","DOM_C60T63: Transport and storage","DOM_C64: Post and telecommunications","DOM_C65T67: Financial intermediation","DOM_C70: Real estate activities","DOM_C71: Renting of machinery and equipment","DOM_C72: Computer and related activities","DOM_C73T74: R&D and other business activities","DOM_C75: Public administration and defence; compulsory social security","DOM_C80: Education","DOM_C85: Health and social work","DOM_C90T93: Other community, social and personal services","DOM_C95: Private households with employed persons","HH",null,null,null,null,null,"VA % Output","L % Output","Avg Annual Earnings"]
[null,"DOM_C01T05: Agriculture, hunting, forestry and fishing",9.3234052426827529E-2,0,0.20601887082236173,3.2478525299391818E-2,0.20181721004810263,9.8513848232380097E-5,0,2.7949865032657643E-3,1.6241030337456386E-2,0,5.1367156630314524E-5,0,0,0,0,9.3333426666760014E-6,2.469135802469136E-5,3.7448380229307206E-3,0,5.229586007429799E-4,0,1.7875923216951144E-5,0,0,0,0,0,0,0,0,0,7.858210932343049E-5,3.9749577660737354E-5,0,1.6970394026567616E-2,null,null,null,null,"DOM_C01T05: Agriculture, hunting, forestry and fishing",{"$f":"TRANSPOSE(C48:AJ48)","v":0.60987545690411116},{"$f":"TRANSPOSE(C47:AJ47)","v":0.10046767695334982},1051.3267752703398]
[null,"DOM_C10T14: Mining and quarrying",2.950101400318816E-3,9.8294508175569475E-3,4.5936560289824244E-4,1.3435683383642504E-5,0,2.5660511896719962E-3,0.43682527171582824,0.21460879258232016,4.2312463049047681E-4,0.10879919654754093,0.23640746009167063,2.2027523390476402E-4,3.942255972684844E-4,5.1754030345113127E-5,1.1291586286812875E-3,2.531669198335865E-4,7.9012345679012352E-4,1.5517993177212917E-3,4.5834665908579417E-2,2.852572682105153E-2,4.2536423746306584E-6,0,2.0478211101801185E-4,0,0,0,0,0,0,0,0,0,0,0,0,null,null,null,null,"DOM_C10T14: Mining and quarrying",0.8609273465174655,5.3430777441527674E-2,19202.310320220251]
[null,"DOM_C15T16: Food products, beverages and tobacco",6.4631026388189947E-2,1.4662068641940556E-6,8.79952687427768E-2,1.3843232446279661E-2,0,2.8991218194100426E-3,0,5.6081115620099497E-3,8.1147189409132541E-4,3.0825527514269238E-4,0,0,3.3408948921057997E-6,1.0350806069022625E-5,1.9752045982763048E-5,1.1666678333345002E-6,0,3.7833123861800093E-4,6.8109401466425026E-5,6.5941096972585477E-5,7.1666140117299989E-3,5.3434113816003125E-2,2.0967730092282487E-4,0,1.7227123393493639E-3,0,5.0579721422457395E-4,0,5.7430175455046241E-5,4.7115314918173192E-3,8.3708929280726919E-5,3.4845552477132604E-3,3.1799662128589884E-4,0,0.12254175615373247,null,null,null,null,"DOM_C15T16: Food products, beverages and tobacco",0.38850654752349123,6.7077802356038219E-2,3982.062502038686]
[null,"DOM_C17T19: Textiles, textile products, leather and footwear",7.8046604972683675E-4,4.1053792197433549E-5,4.3156738184539878E-4,0.11750848687333736,1.7958311063602352E-3,9.8607670944982351E-3,2.0617014327912702E-4,3.7926070545789135E-4,7.7205754494974674E-3,3.1819899369568244E-4,3.2598387861545758E-4,7.5994955697143588E-4,9.6551862381857607E-4,3.6227821241579188E-4,9.6126623782780173E-4,9.4628427961761293E-3,4.9629629629629633E-3,1.7922640880293432E-2,1.0423699702687657E-3,5.4515659378325616E-4,1.6685878951392082E-3,3.3398183210337053E-3,5.7600067879966677E-4,1.7127283017181894E-4,0,4.8151418877860071E-5,1.0375327471273312E-3,0,9.3411938444228266E-4,1.6272165277862014E-3,5.7119034097437185E-4,5.9408074648513451E-3,2.7973765278743912E-3,0,1.1662495080568935E-2,null,null,null,null,"DOM_C17T19: Textiles, textile products, leather and footwear",0.38747167310086622,0.13176374694338203,4283.4804561984056]
[null,"DOM_C20: Wood and products of wood and cork",6.2075678086381618E-4,9.830917024421142E-4,8.6591458579608185E-4,3.6276345135834761E-4,5.7808658471405663E-2,1.8670719807851084E-3,1.4596116338345274E-4,2.8527000888789217E-4,1.043321006688847E-3,1.8694190879621343E-3,4.544017701912439E-4,2.1917385773524019E-3,1.8541966651187188E-3,2.0598104077355025E-3,1.0501504447502355E-3,5.4716721383388049E-4,3.5061728395061726E-3,3.5383589401595403E-2,0,9.5013939033864996E-3,2.7416658578301241E-3,0,1.6317299682710108E-6,1.3875581458847358E-3,0,5.7781702653432085E-6,5.1876637356366561E-4,0,0,0,0,2.2452031235265857E-6,3.9749577660737356E-4,0,4.3150397366579829E-4,null,null,null,null,"DOM_C20: Wood and products of wood and cork",0.46236237306253336,0.16805986103687867,2310.0272993767235]
[null,"DOM_C21T22: Pulp, paper, paper products, printing and publishing",1.8110428412580267E-3,9.0171722147934416E-5,5.5242014787263687E-3,4.872674507134348E-3,9.4067343666488518E-4,0.17520453351347295,1.3683859067198696E-4,6.9124385968673064E-3,9.6159419449822064E-3,1.235507030209017E-2,7.3099415204678359E-4,5.9198969111905328E-3,2.7495564962030732E-3,8.7516065313586293E-3,8.0522507456397361E-3,2.2575022575022576E-3,5.2345679012345677E-3,1.5049888424346578E-2,2.0403207656681239E-3,1.3266565252306305E-3,1.0126762409711608E-2,3.7509645550235816E-3,1.2825397550610144E-3,1.9882541589511154E-3,1.2587696044811081E-2,4.1410220234959659E-3,1.3980753767540786E-2,6.1370932208724114E-4,1.2761219394990682E-2,1.1590219541095353E-2,6.2469840165185623E-3,6.8186818861502392E-3,1.0618105932624465E-2,0,4.0369339968092709E-3,null,null,null,null,"DOM_C21T22: Pulp, paper, paper products, printing and publishing",0.4476516175035653,0.13927981685806501,7375.3753739564572]
[null,"DOM_C23: Coke, refined petroleum products and nuclear fuel",9.0431606765646235E-3,6.3992598587749548E-3,4.9327943258271178E-3,3.2872638678645327E-3,1.0090860502405131E-2,7.8060496885085946E-3,0.1046578031750202,5.9444993181552094E-3,3.4893291445926996E-3,2.3119145635701926E-2,8.7818081239133868E-3,5.7271560815238647E-3,3.8821198646269393E-3,1.4594636557321902E-3,2.6533581770178359E-3,5.4950054950054952E-4,2.6172839506172839E-3,3.6037653576833305E-3,0.11158985110692585,1.2961669289076629E-2,3.8104901781464097E-3,5.6905022240627805E-3,0.10504343257243046,9.57142077018165E-3,2.5848028280092759E-4,6.1104150556004428E-3,1.6691308069410937E-2,9.2843205136274943E-4,4.0318327258236546E-3,1.6575419267131259E-2,1.0438995886773005E-3,5.3458286371167998E-3,8.3772234920003966E-3,0,1.585842828992632E-2,null,null,null,null,"DOM_C23: Coke, refined petroleum products and nuclear fuel",0.12545179541353535,3.2111455944359608E-2,45219.985666637687]
[null,"DOM_C24: Chemicals and chemical products",2.3975977315257052E-2,1.548241138245713E-2,7.0121012605798292E-3,2.3297474987236104E-2,1.1266702298236238E-2,1.9726225324626586E-2,2.7878582206239478E-3,0.1347480307300109,0.15834714767629229,2.1185092377145359E-2,1.1778884147305201E-2,1.0964199767609629E-2,4.7440707467902351E-3,5.2219816618219138E-3,1.073852899929551E-2,5.4775054775054776E-3,1.0419753086419754E-2,2.1519993844101883E-2,0.14270992502043284,9.0169553493898817E-3,2.7938696506096825E-3,6.4323530375662531E-3,1.9956057511954462E-3,1.4024514354648941E-3,1.227781343304406E-3,1.2702344299979488E-3,1.8156823074728294E-3,2.6751431988418202E-4,3.4036169290092705E-3,1.5329858979498548E-2,1.0750852682132575E-3,2.7853989950470816E-2,1.7216535824306867E-2,0,1.9611541262467464E-2,null,null,null,null,"DOM_C24: Chemicals and chemical products",0.29334826191414526,6.421543327237679E-2,12717.25879017399]
[null,"DOM_C25: Rubber and plastics products",1.4434101846299413E-3,1.1876275599971849E-4,6.3970656197856616E-3,5.2220022751090526E-3,4.0619989310529125E-3,5.5543045860541925E-3,1.1494441616446905E-4,2.4618966662983991E-3,1.8669649791915426E-2,1.1236401964878787E-3,3.872293345977557E-4,5.8758418644095801E-3,7.7408534650091378E-3,9.6624774654326204E-3,1.610120948361568E-2,2.4189690856357526E-2,1.1333333333333332E-2,2.3969528304306566E-2,6.2186844817170678E-5,8.3666847297394348E-3,6.2644551335469699E-3,1.6118124100617615E-3,2.3056344451669385E-3,0,9.3992830109428221E-5,1.1363734855174977E-4,2.4641402744274114E-4,0,8.5793649863456832E-4,7.0266168245313246E-4,1.0504649948953966E-4,2.0094567955562938E-3,4.7202623472125611E-4,0,2.7673407158805238E-3,null,null,null,null,"DOM_C25: Rubber and plastics products",0.30844626317192775,0.10783302226910728,5461.5288971282616]
[null,"DOM_C26: Other non-metallic mineral products",1.2505537090217655E-3,1.9845109906866539E-3,5.4762495474102134E-3,1.7018532285947171E-4,2.159273115980759E-3,9.3822712602266756E-5,6.0208979895674256E-5,5.2601810887420582E-4,1.2056153855071121E-3,4.2633693295944949E-2,3.9908329382013592E-4,5.9694588388191049E-3,2.9333057152688921E-3,2.5583742333934257E-3,7.6440417953292997E-3,3.3191699858366526E-3,6.7407407407407407E-3,6.6881268115012698E-3,1.1815500515262429E-3,5.7942637774455331E-2,1.4412113754771331E-3,3.5275155148116926E-3,2.5128641511373568E-4,0,0,3.7076592535952257E-4,2.4122636370710452E-3,0,2.1096799146751678E-5,0,0,4.5577623407589687E-4,5.9624366491106028E-5,0,4.5645690544096227E-3,null,null,null,null,"DOM_C26: Other non-metallic mineral products",0.54697909830360159,0.11822584173577551,4112.7304881095006]
[null,"DOM_C27: Basic metals",1.042630321256701E-3,3.9741537053979877E-3,4.2392287105586677E-5,3.2245640120742009E-4,2.9930518439337251E-4,1.0226675673647076E-3,7.2980581691726378E-6,2.308543424526295E-4,6.2541298123181439E-3,4.0023467175785057E-3,0.10602773826458037,0.1451999273091728,0.12250059300884335,4.573331148163164E-3,9.3568733828012368E-2,3.2849866183199516E-2,9.0222222222222218E-2,2.9644496883576579E-2,1.9544436942539356E-4,4.4261492358014451E-2,9.8723172567564271E-4,0,8.9745148254905601E-6,0,0,1.2519368908243619E-5,6.3548880761549035E-4,0,2.3440887940835198E-5,0,0,7.6336906199903903E-5,0,0,6.1496460352900516E-5,null,null,null,null,"DOM_C27: Basic metals",0.37664177335229965,4.6161292871819186E-2,10383.999515202067]
[null,"DOM_C28: Fabricated metal products",8.6032068415834719E-4,2.6237771834752622E-3,1.7116754613288522E-3,9.987191315174262E-4,1.4323890967397114E-3,6.23921038805074E-4,2.4448494866728338E-3,7.2059534036999356E-4,7.2742659077472387E-3,9.7945627746952248E-4,7.1775723091512568E-3,5.2491588239505269E-2,1.6196658436928916E-2,6.7763277065201457E-3,1.9837638182021691E-2,1.7082350415683751E-2,1.439506172839506E-2,1.0388078077307822E-2,1.5783613470262844E-3,1.7947077373063388E-2,1.4485585759424042E-3,2.8899409200737681E-4,1.7214751165259165E-4,2.7056142737287336E-4,0,8.0894383714804927E-5,2.6457085051746943E-3,0,5.7430175455046241E-5,1.1257379796775447E-3,2.1994110830622369E-4,3.7719412475246635E-4,1.5899831064294942E-3,0,2.6151998446357085E-3,null,null,null,null,"DOM_C28: Fabricated metal products",0.36752372088925112,0.13343722981865841,4675.7659143907185]
[null,"DOM_C29: Machinery and equipment, nec",7.6841252000132572E-5,5.7841860792455491E-4,2.557436336861622E-4,6.8074129143788685E-4,5.1309460181721007E-4,4.175110710800871E-4,1.8245145422931595E-6,1.2861884793789359E-4,1.020136095429095E-3,5.2701708330847401E-4,8.9299826141931414E-4,2.3183968368476414E-3,2.1829407225019293E-2,8.2012886753555937E-3,3.7331366907422162E-3,4.1510041510041517E-3,5.1358024691358023E-3,1.8339446482160723E-3,5.9225566492543509E-6,1.1686590453557229E-3,5.2126453827292072E-4,2.6813884825426716E-5,1.9278889575121993E-3,6.4041145194680118E-4,0,6.7411986429004095E-6,3.3460431094856431E-3,0,7.9699018998839676E-5,0,0,3.3678046852898784E-5,2.5837225479479283E-4,0,1.9146202805038733E-4,null,null,null,null,"DOM_C29: Machinery and equipment, nec",0.35445558447285691,0.12675689310138613,8962.4495644855142]
[null,"DOM_C30T33X: Computer, Electronic and optical equipment",3.1640515529466361E-5,2.565862012339597E-5,5.4901486579366353E-5,1.1465116487374939E-3,0,2.9085040906702694E-4,3.2841261761276872E-5,1.4345948423841976E-4,7.0713979342244067E-4,9.9437185529900759E-5,1.6793108898372055E-4,1.2335413098666784E-3,9.8556399317121092E-4,6.9146834809760804E-2,6.8045798410618702E-3,4.8766715433382103E-3,8.4197530864197536E-3,5.8481032138918108E-3,1.3207301327837202E-3,2.6311150574209849E-4,3.5111884328769432E-4,4.7669128578536389E-5,4.3240844159181785E-5,1.6653179965546858E-2,3.1869443958978E-4,1.1556340530686417E-5,1.154255181179156E-3,2.6751431988418202E-4,6.3876419638775913E-4,5.4437789293211092E-4,1.4772163990716514E-4,5.1864192153464126E-4,1.4061413097485841E-3,0,2.9399423053468429E-3,null,null,null,null,"DOM_C30T33X: Computer, Electronic and optical equipment",0.13554725574254095,5.8114600674527526E-2,7825.963161489366]
[null,"DOM_C31: Electrical machinery and apparatus, nec",4.5200736470666225E-6,3.1523447580172194E-5,1.5289021579064048E-5,1.2092115045278255E-4,0,4.2220220671020044E-5,0,2.9681272601052367E-5,6.2019637619837014E-4,2.485929638247519E-5,6.9345661450924607E-4,1.2335413098666784E-3,4.4701173656375602E-3,9.0586804447396353E-3,1.7974361844314373E-2,4.4753378086711424E-3,5.6049382716049385E-3,2.4815964295790906E-3,3.3166317235824362E-3,3.713593659208576E-3,1.4849078835074299E-4,3.5751846433902288E-4,2.7005130974885227E-4,3.725804609969568E-3,0,6.6448958051446903E-5,9.0784115373641471E-5,1.5736136463775413E-5,3.3989287514211037E-5,3.2396401780470735E-4,7.5502171508106623E-5,1.7737104675860025E-4,2.7824704362516145E-4,0,1.5643876512821497E-3,null,null,null,null,"DOM_C31: Electrical machinery and apparatus, nec",0.26829533259153426,9.2571255505882827E-2,6971.9406878051132]
[null,"DOM_C34: Motor vehicles, trailers and semi-trailers",6.0267648627554964E-5,8.6506204987449285E-5,3.2384927526562938E-4,1.2092115045278255E-4,4.2757883484767506E-5,1.3135179764317345E-4,0,9.8937575336841206E-6,4.6949445300998113E-4,4.176361792255832E-4,5.433064643590959E-4,4.2953670611428982E-4,5.1783870827639897E-4,1.5353695669050228E-4,5.1684520321563306E-4,2.5408858742192078E-2,9.6296296296296299E-4,9.2979711185779885E-4,1.6287030785449465E-4,2.9053255596832214E-4,1.5351782024803375E-3,7.746233394012162E-5,4.2359709976315446E-3,3.2144683343841378E-3,4.1121863172874839E-5,2.6964794571601638E-5,1.4655150053173554E-3,4.7208409391326238E-5,1.0548399573375839E-5,3.846148156585567E-5,1.805486709976463E-5,8.5317718694010239E-5,2.93153135247938E-4,0,1.2916428482188488E-2,null,null,null,null,"DOM_C34: Motor vehicles, trailers and semi-trailers",0.33855650522317188,8.5941419274752601E-2,7434.0346585700618]
[null,"DOM_C35: Other transport equipment",1.808029458826649E-5,8.0641377530673054E-5,4.1697331579265583E-6,0,0,4.6911356301133387E-6,0,0,9.2739645039008624E-5,4.9718592764950381E-6,1.2841789157578632E-4,2.2027523390476403E-5,1.0022684676317398E-5,3.1052418207067875E-4,6.5840153275876834E-5,9.3333426666760014E-6,2.0074074074074074E-2,7.0536332623695084E-5,2.6651504921644578E-5,8.4874679271644674E-6,6.5738109426110171E-6,2.6813884825426716E-5,6.5269198730840425E-4,3.723322395039542E-5,0,0,5.187663735636656E-5,0,0,1.6272165277862014E-4,1.6413515545240573E-6,8.9808124941063427E-6,9.9373944151843386E-6,0,4.5459372272023304E-4,null,null,null,null,"DOM_C35: Other transport equipment",0.3523456790123457,8.9851851851851849E-2,7434.0346585700618]
[null,"DOM_C36T37: Manufacturing nec; recycling",7.5334560784443705E-6,1.8034344429586883E-4,1.5289021579064046E-4,3.2738281844808901E-3,1.9241047568145376E-4,5.4417173309314715E-4,3.6490290845863186E-5,9.563965615894651E-5,2.0228835074133753E-3,6.0159497245589955E-4,6.124545598229809E-5,1.4483096629238235E-3,8.4190551281066145E-4,1.1618779812477897E-2,1.0929465443795556E-3,5.7633390966724295E-4,2.6172839506172839E-3,2.0981352758611845E-2,1.3296139677576016E-3,1.8287228972298211E-3,1.2126747715310677E-3,2.8690856763206583E-3,1.7704270155740465E-4,3.3013458569350606E-4,4.0093816593552974E-4,1.309718593477794E-4,1.1672243405182476E-3,6.4518159501479187E-4,1.0970335556310872E-3,1.5059149320785026E-3,1.3065158374011496E-3,5.7252679649927923E-3,3.5079002285600715E-3,0,5.9605844266958198E-3,null,null,null,null,"DOM_C36T37: Manufacturing nec; recycling",0.37597789006591942,0.15466694026213867,6398.9293337221088]
[null,"DOM_C40T41: Electricity, gas and water supply",1.2064076564020816E-2,6.5224212353672565E-3,1.0529271179290881E-2,1.4837473016669206E-2,9.8556921432389095E-3,2.2634729415296855E-2,3.7220096662780449E-4,6.8135010215304645E-3,2.4970149426753071E-2,2.6077401905216475E-2,2.954401770191244E-2,1.4494110390933472E-2,7.9680343176723317E-3,1.873495898493095E-3,8.1839310521914892E-3,4.1370041370041378E-3,1.2271604938271606E-2,6.1558981198861166E-3,1.0870852729706362E-2,4.7027101137973584E-3,1.8652221812755436E-2,3.8710311726307699E-2,4.9025326896702517E-3,1.1075643017777623E-2,4.2707992180971441E-3,1.1191352775592236E-2,4.8374964334811808E-3,1.6035123056587147E-2,1.1302024120673691E-2,1.9865355228764453E-2,1.7762706523059349E-2,2.1315958454761402E-2,3.288780681705257E-2,0,1.1217160118608153E-2,null,null,null,null,"DOM_C40T41: Electricity, gas and water supply",0.44732774243985646,0.10804520095234711,18657.291387928039]
[null,"DOM_C45: Construction",1.4072495954534085E-3,2.4185082224880941E-3,2.0014719158047481E-4,4.2098474602079847E-4,2.7792624265098877E-4,1.8295428957442017E-4,0,1.3191676711578829E-5,6.6076997090293646E-4,2.9831155658970227E-5,2.6671408250355621E-4,5.6720872730476745E-4,1.3029490079212618E-4,4.8131248220955204E-4,2.5545979471040207E-3,4.4333377666710998E-5,1.9753086419753088E-4,6.6047656911278122E-4,3.0856520142615168E-3,7.1040759432514838E-2,1.0158471380140672E-3,5.3925701704469282E-4,1.0826528339478155E-3,6.8260910575724935E-4,0,1.6082573905205262E-4,1.5562991206909967E-4,0,4.4537687087586876E-5,3.0044334253943408E-3,4.574446782458547E-3,9.8137828529347056E-3,8.4467852529066878E-4,0,1.9431967026009457E-6,null,null,null,null,"DOM_C45: Construction",0.50294253984213311,0.22120234776420508,2948.8410991810188]
[null,"DOM_C50T52: Wholesale and retail trade; repairs",7.5430989022247791E-2,1.3986880380979193E-2,0.11895484248485519,0.14826276613849504,9.3874933190807058E-2,7.2374840501388579E-2,9.0169333194670243E-2,0.10118016037780962,9.9805246745418102E-2,5.8359684187498755E-2,6.7611032084716291E-2,6.1032760434162489E-2,5.9437861025454279E-2,0.11537008444532619,6.2574481673393342E-2,6.8231401564734895E-2,6.1209876543209876E-2,9.3351630030522992E-2,9.9084372742025292E-2,6.4409435452806418E-2,2.4588373093933188E-2,4.0098675096157575E-2,4.2879415971209756E-2,3.0089409381779553E-2,1.1261515957485866E-2,5.5894167033419965E-3,3.1489118875314505E-2,5.6020645811040472E-3,1.3133929513249961E-2,3.2075396338171094E-2,7.1004868248710721E-3,4.7063947875364276E-2,3.0840703567524597E-2,0,0.11945824590376992,null,null,null,null,"DOM_C50T52: Wholesale and retail trade; repairs",0.76146810986307534,0.153331820067834,4909.9591750264099]
[null,"DOM_C55: Hotels and restaurants",2.9983155192208591E-4,1.0893917000961832E-3,4.0307420526623398E-4,7.2552690271669522E-4,2.1378941742383753E-4,2.8193725136981163E-3,1.2406698887593485E-4,1.4148073273168294E-3,1.0027474119842807E-3,8.1538492134518618E-4,8.4953374427058632E-4,1.0683348844381054E-3,1.8374921906581898E-3,1.8010402560099368E-3,2.2286891883884306E-3,1.30666797333464E-3,3.7283950617283948E-3,1.3722522892246132E-3,2.3157196498584513E-3,3.847434499598477E-3,2.1917859072187792E-3,6.2267799205713151E-4,4.1976253433771748E-3,4.8552124031315622E-3,3.3000295196232059E-3,2.6098069031800161E-4,1.4525458459782635E-3,4.1228677535091584E-3,4.495962307052191E-3,2.3881621476891306E-2,3.8194250673774812E-3,5.0157837779583915E-3,3.8656464275067075E-3,0,2.6985629831772891E-2,null,null,null,null,"DOM_C55: Hotels and restaurants",0.73543037774805087,0.1798883946527155,1439.2352660193437]
[null,"DOM_C60T63: Transport and storage",1.5857925045125402E-2,3.1230206207333382E-3,2.4821726533610481E-2,3.7924455630894909E-2,2.005344735435596E-2,1.6897470539668242E-2,1.8445842022583842E-2,2.1805841604239807E-2,2.5207794767165531E-2,1.2648409999403377E-2,1.8711474632527265E-2,1.7891855873914456E-2,1.896291940759252E-2,3.6634952946960744E-2,2.1625198343461743E-2,1.8193018193018193E-2,2.5037037037037038E-2,2.7656654782363354E-2,2.5934875567084799E-2,1.3286151716753609E-2,1.1954281851757471E-2,7.8594475743861865E-3,3.2039833791985432E-2,7.6154354053208761E-3,1.0243749843957215E-2,8.012396101275916E-4,9.960314372422379E-3,1.9355447850443758E-2,9.2509464258506112E-3,1.9943757479648699E-2,3.3385090619019327E-3,1.2797657804101536E-2,1.0141111000695617E-2,0,8.4123728592116268E-2,null,null,null,null,"DOM_C60T63: Transport and storage",0.73089509363274496,0.23579640252493897,7311.4359542271995]
[null,"DOM_C64: Post and telecommunications",3.2695199380448567E-4,9.9628756421986072E-4,1.4677460715901485E-3,1.7332031564898831E-3,1.0689470871191875E-3,3.0773849733543497E-3,2.7002815225938762E-4,1.2614540855447256E-3,3.7153820293752827E-3,2.4411829047590638E-3,2.2522522522522523E-4,2.2578211475238314E-3,1.884264719147671E-3,2.5135207404276606E-3,9.9089430680194624E-4,6.8600068600068603E-4,1.0864197530864198E-3,1.4043142585990201E-3,2.1261978370823117E-3,8.0689704701404352E-3,5.5850324378900543E-3,4.1174209809710796E-3,4.9172182593846909E-3,6.6826190346169698E-2,6.3594961396850946E-2,2.6964794571601638E-3,4.552174928021166E-3,6.4518159501479192E-3,1.3855908861827686E-2,2.4643454669445754E-2,7.5781201272375719E-3,7.3081361670790353E-3,1.7385471529364999E-2,0,2.6887326939758958E-2,null,null,null,null,"DOM_C64: Post and telecommunications",0.61014084087512976,0.15597493955806646,12389.099373637871]
[null,"DOM_C65T67: Financial intermediation",7.36018658864015E-3,8.6946067046707494E-3,4.014758075556955E-3,4.4069041498347415E-3,3.4206306787814005E-3,7.5339638219620204E-3,1.2424944033016415E-3,5.0721996956020598E-3,9.7840325516154094E-3,1.0227114531750292E-2,5.814366998577525E-3,9.4608212962096153E-3,6.1672919708273058E-3,4.3852915045759187E-3,4.6746508825872548E-3,5.2383385716719055E-3,1.1876543209876543E-2,3.2510836945648554E-3,8.090212382881443E-3,3.0719410839149423E-2,8.1136294822273143E-3,8.6072570289619753E-3,1.4043483971924453E-2,4.3431314630671243E-2,0.10018754506882771,9.1198787354666976E-3,5.5767385158094051E-3,6.3101907219739409E-3,2.6096740544531826E-2,3.717450122115204E-2,5.1899536154050687E-3,3.3184102165722935E-3,1.2302494285998212E-2,0,4.2822682957970606E-2,null,null,null,null,"DOM_C65T67: Financial intermediation",0.67979286330064637,0.18462247926650344,13225.494199916704]
[null,"DOM_C70: Real estate activities",8.2868016862888073E-5,4.596558519248364E-4,2.5171289163349988E-3,5.0159884632265351E-3,2.4799572421165153E-3,9.4854762440891686E-3,4.9261892641915308E-5,1.4939573875863022E-3,4.7934804029537582E-3,4.1365869180438721E-3,9.9178125493914982E-4,5.8538143410191033E-3,3.0068054028952198E-3,2.5877015172556563E-3,2.8245425755351159E-3,1.5855015855015856E-3,7.8024691358024693E-3,5.9186395465155054E-3,7.2847446785828521E-4,2.099016106602597E-3,2.8460347739131073E-2,6.1999660357458884E-3,6.5668972573066824E-3,2.3417215649868692E-2,1.2235222931900725E-2,1.3732784663965693E-2,1.3539802350011673E-2,1.5909233964876941E-2,1.5707739009153666E-2,8.2307570550931124E-3,8.7894375744763265E-3,8.2847995258131003E-3,4.6631223293252512E-2,0,9.798352192057333E-2,null,null,null,null,"DOM_C70: Real estate activities",0.9241855909768093,1.3240677163033964E-2,2341.8963532081798]
[null,"DOM_C71: Renting of machinery and equipment",3.5588046514571205E-3,5.6800853918877701E-3,1.0097703797445482E-3,2.2124091971731322E-3,1.1758417958311063E-3,3.9217893867747504E-3,9.1225727114657965E-6,1.3504979033478826E-3,3.8776764081935484E-3,2.734522602072271E-3,9.0287656077129772E-4,3.8878578784190846E-3,4.0725508734769699E-3,4.052340576022358E-3,3.8845690432767329E-3,2.174668841335508E-3,9.3086419753086423E-3,3.1548977864416347E-3,9.2984139393293298E-4,6.5732174685147584E-3,1.6554402732539863E-3,3.1580797683280354E-4,7.4047905960138473E-3,3.7977888429403328E-4,1.1822535662201518E-3,4.7862510364592913E-4,5.8490908619303296E-3,2.0456977402908037E-4,1.6560987330200068E-3,1.0073949594749118E-3,6.7459548890938753E-4,8.2398954633425693E-4,2.5091920898340455E-3,0,4.7791208315144443E-4,null,null,null,null,"DOM_C71: Renting of machinery and equipment",0.82269862267527816,3.7441963011957562E-2,2341.8963532081798]
[null,"DOM_C72: Computer and related activities",0,3.3722757876463274E-5,2.0848665789632791E-4,2.7767078992861177E-4,6.4136825227151259E-5,4.175110710800871E-4,5.4735436268794784E-6,1.2861884793789359E-4,4.5790199738010508E-4,7.0600401726229531E-4,8.297771455666193E-5,3.0838532746666961E-4,3.1738501475005095E-4,2.2426746482882356E-5,1.843524291724551E-4,9.916676583343251E-5,3.2098765432098765E-4,2.6932054274501758E-4,7.6993236440306556E-5,0,5.2822504397686176E-4,1.0129689822938981E-4,6.0292422327613848E-4,3.5048874811972218E-3,2.4966845497816868E-5,6.3463570081019583E-4,9.467486317536897E-4,2.2030591049285576E-4,1.9338732551189039E-3,1.0207085492477082E-4,8.9125389410656304E-4,2.8289559356434977E-4,3.7066481168637581E-3,0,6.7897578902644819E-5,null,null,null,null,"DOM_C72: Computer and related activities",0.70866116950966196,0.41773147856738213,12389.099373637871]
[null,"DOM_C73T74: R&D and other business activities",1.5895592325517623E-3,2.2659493982687032E-2,2.1882064657272257E-2,2.8134321005347407E-2,9.0005344735435595E-3,5.102548224874278E-2,4.811244848027061E-3,3.1115867443436564E-2,4.0973534423796996E-2,3.5310144581667764E-2,1.4667298877825193E-2,3.6229769096486064E-2,4.4717878130836129E-2,2.6780985569251205E-2,3.0997544162282811E-2,1.3963847297180632E-2,5.8271604938271604E-2,2.6342114038012673E-2,2.4540113476185402E-2,2.6796242010354712E-2,6.7411724353146671E-2,5.8799870101624623E-2,4.2938974115051647E-2,6.3696117319406456E-2,7.6007889523177302E-2,1.7172722028600016E-2,3.3214017067413691E-2,0.19556870397180082,0.10800154709860409,4.0470354333795366E-2,2.5605084250575293E-2,5.2670220074810169E-2,0.10597734274073338,0,7.9013807098406112E-3,null,null,null,null,"DOM_C73T74: R&D and other business activities",0.75114567339810834,0.33224997362900111,3837.4341394883281]
[null,"DOM_C75: Public administration and defence; compulsory social security",0,0,0,0,0,0,0,0,0,0,0,0,0,0,0,0,0,0,0,0,2.2930999346872547E-4,0,0,0,0,0,0,0,0,0,0,0,0,0,7.7182401359048913E-2,null,null,null,null,"DOM_C75: Public administration and defence; compulsory social security",0.71661432453502272,0.70645901411388434,1449.4857266622216]
[null,"DOM_C80: Education",0,7.3310343209702781E-7,4.1697331579265583E-6,1.3435683383642504E-5,0,3.7529085040906709E-5,1.8245145422931595E-6,1.6489595889473536E-6,2.3184911259752156E-5,3.9774874211960305E-5,1.9756598703967125E-5,1.1013761695238201E-4,1.7038563949739577E-4,3.6227821241579187E-5,7.5716176267258349E-5,5.4833388166721505E-5,9.876543209876544E-5,5.771154487393234E-5,1.2496594529926681E-3,1.3057642964868412E-6,7.0378446562070887E-5,0,1.5803304742704738E-3,7.4466447900790833E-6,1.7300555292016631E-3,2.8890851326716041E-5,7.7814956034549836E-5,4.311701391074463E-3,9.2474302926594861E-4,1.5680450176848849E-4,8.4037199591631732E-4,2.9187640605845612E-5,1.023551624763987E-3,0,6.8864490720721372E-2,null,null,null,null,"DOM_C80: Education",0.89720707619482176,0.77373312280264062,4134.6697940512486]
[null,"DOM_C85: Health and social work",0,0,0,0,0,0,0,0,0,0,0,0,0,0,0,0,0,0,0,0,0,0,0,0,0,0,0,0,0,0,0,0,0,0,5.0449958627056091E-2,null,null,null,null,"DOM_C85: Health and social work",0.74676353969743647,0.52463212346821009,2283.4788244171646]
[null,"DOM_C90T93: Other community, social and personal services",1.0094831145115458E-4,3.5848757829544658E-4,1.0771810657976943E-4,1.3435683383642504E-4,6.4136825227151259E-5,4.3627561360054046E-4,3.6490290845863189E-6,1.1542717122631475E-4,2.8981139074690196E-4,2.9333969731320728E-4,1.5212581002054686E-4,2.0375459136190674E-4,1.6036295482107837E-4,1.0005779200055204E-4,1.0863625290519677E-4,1.061667728334395E-4,6.1728395061728394E-4,1.538974529971529E-4,3.7015979057839691E-4,1.9129446943532224E-4,3.4377164282242321E-4,3.8850339791507153E-3,4.3648776651249535E-4,7.769332730982511E-4,4.30604652938818E-3,9.5339809378162951E-5,1.6859907140819132E-3,3.4619500220305912E-4,2.1272605806307945E-3,5.6079798698522631E-3,1.1735663614847009E-3,2.7458834200730139E-3,1.722647321872205E-2,0,2.0212903489078265E-2,null,null,null,null,"DOM_C90T93: Other community, social and personal services",0.63979429593560566,0.11229255689158303,1449.4857266622216]
[null,"DOM_C95: Private households with employed persons",0,0,0,0,0,0,0,0,0,0,0,0,0,0,0,0,0,0,0,0,0,0,0,0,0,0,0,0,0,0,0,0,0,0,6.0170514367596352E-3,null,null,null,null,"DOM_C95: Private households with employed persons",1,1,5199.2056088023692]
[null,"L%",0.10046767695334982,5.3430777441527674E-2,6.7077802356038219E-2,0.13176374694338203,0.16805986103687867,0.13927981685806501,3.2111455944359608E-2,6.421543327237679E-2,0.10783302226910728,0.11822584173577551,4.6161292871819186E-2,0.13343722981865841,0.12675689310138613,5.8114600674527526E-2,9.2571255505882827E-2,8.5941419274752601E-2,8.9851851851851849E-2,0.15466694026213867,0.10804520095234711,0.22120234776420508,0.153331820067834,0.1798883946527155,0.23579640252493897,0.15597493955806646,0.18462247926650344,1.3240677163033964E-2,3.7441963011957562E-2,0.41773147856738213,0.33224997362900111,0.70645901411388434,0.77373312280264062,0.52463212346821009,0.11229255689158303,1,0]
[null,"VA%",0.60987545690411116,0.8609273465174655,0.38850654752349123,0.38747167310086622,0.46236237306253336,0.4476516175035653,0.12545179541353535,0.29334826191414526,0.30844626317192775,0.54697909830360159,0.37664177335229965,0.36752372088925112,0.35445558447285691,0.13554725574254095,0.26829533259153426,0.33855650522317188,0.3523456790123457,0.37597789006591942,0.44732774243985646,0.50294253984213311,0.76146810986307534,0.73543037774805087,0.73089509363274496,0.61014084087512976,0.67979286330064637,0.9241855909768093,0.82269862267527816,0.70866116950966196,0.75114567339810834,0.71661432453502272,0.89720707619482176,0.74676353969743647,0.63979429593560566,1,0]
[]
[]
[]
[]
[]
[]
[]
[null,"Total Requirements - Type 1"]
["->",null,"DOM_C01T05: Agriculture, hunting, forestry and fishing","DOM_C10T14: Mining and quarrying","DOM_C15T16: Food products, beverages and tobacco","DOM_C17T19: Textiles, textile products, leather and footwear","DOM_C20: Wood and products of wood and cork","DOM_C21T22: Pulp, paper, paper products, printing and publishing","DOM_C23: Coke, refined petroleum products and nuclear fuel","DOM_C24: Chemicals and chemical products","DOM_C25: Rubber and plastics products","DOM_C26: Other non-metallic mineral products","DOM_C27: Basic metals","DOM_C28: Fabricated metal products","DOM_C29: Machinery and equipment, nec","DOM_C30T33X: Computer, Electronic and optical equipment","DOM_C31: Electrical machinery and apparatus, nec","DOM_C34: Motor vehicles, trailers and semi-trailers","DOM_C35: Other transport equipment","DOM_C36T37: Manufacturing nec; recycling","DOM_C40T41: Electricity, gas and water supply","DOM_C45: Construction","DOM_C50T52: Wholesale and retail trade; repairs","DOM_C55: Hotels and restaurants","DOM_C60T63: Transport and storage","DOM_C64: Post and telecommunications","DOM_C65T67: Financial intermediation","DOM_C70: Real estate activities","DOM_C71: Renting of machinery and equipment","DOM_C72: Computer and related activities","DOM_C73T74: R&D and other business activities","DOM_C75: Public administration and defence; compulsory social security","DOM_C80: Education","DOM_C85: Health and social work","DOM_C90T93: Other community, social and personal services","DOM_C95: Private households with employed persons"]
[null,"DOM_C01T05: Agriculture, hunting, forestry and fishing",1.1216496025296894,4.4971733681814909E-4,0.25428601272101059,4.6297458638970834E-2,0.24085423065171802,2.8207297895794779E-3,6.065418745620294E-4,5.9813892212998163E-3,2.0830537084142144E-2,1.1027307322941788E-3,7.387879982358324E-4,1.2274171892692884E-3,1.0949603672484394E-3,1.4888593005492731E-3,1.1454061332545698E-3,1.4804272843378281E-3,1.9109431341409902E-3,1.5027364359445497E-2,1.4246175754406075E-3,3.8966797384891961E-3,2.9404525353672125E-3,1.4117302528502133E-2,4.663058094206912E-4,6.8369336931552811E-4,7.2855602547229235E-4,8.4719167870348671E-5,5.4868046193398896E-4,1.9996206968702626E-4,3.4528676717749524E-4,1.992713185536882E-3,2.3460198526333663E-4,1.8818377664484511E-3,8.3468057673636838E-4,0]
[null,"DOM_C10T14: Mining and quarrying",2.0953659029523435E-2,1.0206041429235024,1.6081839388721958E-2,1.7287490720877503E-2,1.7522247491785933E-2,2.1875388290977876E-2,0.50107867899238379,0.26123117098485277,5.417956218928318E-2,0.14117868189996083,0.28574946235393883,5.602943657328098E-2,4.4834600295038163E-2,1.0414015031105414E-2,3.9755143196914262E-2,1.7588178988018798E-2,3.9080192610325699E-2,2.6071131164332576E-2,0.14492562038900716,6.8068073590925399E-2,8.4815833026543799E-3,1.3244005047600271E-2,5.7356878508168223E-2,9.4678769984508741E-3,3.7744152021215852E-3,5.5518500308192349E-3,1.2124308128944475E-2,5.6312051729591013E-3,6.765755757262056E-3,1.8448537675321768E-2,4.5464806654277557E-3,1.6143780832163165E-2,1.6491254964695175E-2,0]
[null,"DOM_C15T16: Food products, beverages and tobacco",8.0694438903471374E-2,4.4740853426720155E-4,1.1161633070893275,2.2462432172404345E-2,1.8438659715882245E-2,5.6665446722150821E-3,1.1801806701628454E-3,8.911638597668187E-3,5.100696858367529E-3,1.5060980032886263E-3,1.1538354055853903E-3,1.1977145177615471E-3,1.0956097132156519E-3,1.5979701584551088E-3,1.251706989298707E-3,1.2619448856897382E-3,1.4752069417485654E-3,3.3100006559688053E-3,2.6658333165025788E-3,1.6994940808743048E-3,8.7226038673851713E-3,6.0410135328051832E-2,1.1880938851423742E-3,9.385274836802317E-4,2.7351226305452367E-3,1.8560954885790503E-4,1.1790187652187707E-3,5.6133898626879546E-4,8.1062862275561452E-4,7.5015579039750535E-3,5.5687436156158076E-4,5.2214965397844705E-3,1.4498742634162733E-3,0]
[null,"DOM_C17T19: Textiles, textile products, leather and footwear",1.4280876382142048E-3,1.9879658638119742E-4,1.4560073898407205E-3,1.1340334568022468,2.8585529258403856E-3,1.4103735683106409E-2,6.4656047794890855E-4,1.1058207707565324E-3,9.7483230514224389E-3,9.5079989955386933E-4,8.3204390759592276E-4,1.5468204154277096E-3,1.6920078267724026E-3,1.4264893698992395E-3,1.833730098374789E-3,1.1620591788118589E-2,6.4999409349837198E-3,2.1759160576929653E-2,1.8423207736839862E-3,1.3036662441694086E-3,2.4111084226972638E-3,4.3082716175463784E-3,1.0863415927341506E-3,6.0473282750494203E-4,4.8079876400934543E-4,1.96663336176643E-4,1.6271316431381102E-3,4.2858702540795766E-4,1.5671713897458847E-3,2.4512798991052887E-3,8.9980086622173125E-4,7.3234576674787669E-3,3.8666629186331239E-3,0]
[null,"DOM_C20: Wood and products of wood and cork",1.2239609991636358E-3,1.2006904267232478E-3,1.8060699180335856E-3,1.3079528533908979E-3,1.0620184916753981,2.8513809098311225E-3,1.102973843207911E-3,1.1102035773145722E-3,1.8761543539548915E-3,2.5752552791461348E-3,1.2047746849667932E-3,3.030678652725691E-3,2.5290940438293368E-3,3.3993062666883766E-3,1.7422165272178213E-3,1.0717956106694143E-3,4.4379104129529303E-3,3.8988320159611616E-2,7.9610867200920546E-4,1.1580797817184085E-2,3.1760920351843911E-3,4.4455044841956558E-4,3.4485439871245852E-4,1.8419084692113113E-3,2.6747718409354408E-4,7.439134879338156E-5,8.227752498334008E-4,1.2527346304931137E-4,2.0930261999915108E-4,3.8564955186276226E-4,1.8922082044440738E-4,6.202823801216825E-4,8.5144733901515359E-4,0]
[null,"DOM_C21T22: Pulp, paper, paper products, printing and publishing",5.4157077580213077E-3,1.4504430861516939E-3,1.1712781745816851E-2,1.1295861943041496E-2,4.6763348761777925E-3,1.2162618868177788,2.6953139549116714E-3,1.3033425470379712E-2,1.7361216097435073E-2,1.8474612576293167E-2,3.6423828460979617E-3,1.086998110370713E-2,6.5985377973056918E-3,1.512394528857971E-2,1.3218437176603983E-2,5.586707460262001E-3,1.0606703554653438E-2,2.2596631845883241E-2,7.231654353286739E-3,6.3629850499212718E-3,1.4926180364271823E-2,7.819391473588972E-3,4.1377638683595119E-3,6.0344138138864207E-3,1.9586955020784776E-2,5.8671341993851624E-3,1.8791806423236572E-2,5.0628135275431222E-3,1.8792222455588512E-2,1.720081524784749E-2,8.6912163013902078E-3,1.1189984834370987E-2,1.7088951407481033E-2,0]
[null,"DOM_C23: Coke, refined petroleum products and nuclear fuel",1.814922592118556E-2,9.6907080065205247E-3,1.7466698951480588E-2,1.573671773695496E-2,2.1661678115116698E-2,1.9674054907437358E-2,1.1254603264871423,1.6450347588523009E-2,1.6039428143016669E-2,3.5615115229403436E-2,2.2147245008591249E-2,1.6694702588831961E-2,1.2814894848906466E-2,9.9461626129379345E-3,1.1632348398776401E-2,6.546956492536591E-3,1.294035647090864E-2,1.3385596872321746E-2,0.13475954426075548,2.4273009656261623E-2,1.0370168447123971E-2,1.5200807218375367E-2,0.12439073912215988,1.6115746417554807E-2,5.0890513706974543E-3,9.066637219541011E-3,2.2304949690670043E-2,7.912359306463692E-3,9.3864367874492323E-3,2.6399038826639271E-2,4.9192716486889092E-3,1.2948370036198269E-2,1.8344190789449193E-2,0]
[null,"DOM_C24: Chemicals and chemical products",3.6539309243840926E-2,2.0274271270665941E-2,2.2924859185375932E-2,3.9295640684795748E-2,2.6068040131786565E-2,3.6553985878000905E-2,1.4880632190129112E-2,1.165111945114405,0.19595326067423061,3.521208630829744E-2,2.8044950978877183E-2,2.3631459775626928E-2,1.4245224397683191E-2,1.2409570783054769E-2,2.2621827578323647E-2,1.5368454023187714E-2,2.2458461370048258E-2,3.6916782448240586E-2,0.17261803461011169,2.0655735069103693E-2,9.7709924101570238E-3,1.7470505462288177E-2,6.6595899104637361E-3,5.8675370532083847E-3,4.5905990968659284E-3,4.0311027246885314E-3,4.9854606961707093E-3,5.1707016500144743E-3,8.2071613956984819E-3,2.4145010734106045E-2,5.2778673706066646E-3,3.8866486027381929E-2,2.887647717781254E-2,0]
[null,"DOM_C25: Rubber and plastics products",3.1340346947016881E-3,4.4051383407664734E-4,9.082504611363517E-3,8.012790741327467E-3,5.9997220589559936E-3,8.0190827265353894E-3,1.1715619901217496E-3,4.1582153212302974E-3,1.0210027993682111,2.1281796883699734E-3,1.4394485112306352E-3,7.4260430376721105E-3,9.1743625866568465E-3,1.244517551409772E-2,1.7960081045437046E-2,2.6443480883284354E-2,1.3233004729145697E-2,2.6727467517893549E-2,1.8479031464195869E-3,1.0469156120733838E-2,7.064820979645752E-3,2.8020606899381273E-3,3.1714347189152636E-3,8.7935461287232195E-4,5.9486216508288685E-4,2.7044128346664209E-4,8.8355202629435831E-4,4.591024475792159E-4,1.3881365971311537E-3,1.5494584382123441E-3,4.1140627674586549E-4,3.0947814982270547E-3,1.3552555570225013E-3,0]
[null,"DOM_C26: Other non-metallic mineral products",2.3443031289550665E-3,2.3921891199813888E-3,7.1752321860755241E-3,9.3810503256966762E-4,3.2067257619663742E-3,5.5046362566292246E-4,1.4651700251967787E-3,1.5836092833574466E-3,2.0331201770269567E-3,1.0451223247155945,1.4688111743401944E-3,7.1336871054220961E-3,3.7110062832053968E-3,3.5184981175069973E-3,8.8861842096641594E-3,4.056006494065051E-3,7.8527842239212477E-3,7.8383272258351466E-3,2.2406285618070169E-3,6.5816938404084285E-2,1.8328760521254374E-3,4.34783965098155E-3,6.9906966341275168E-4,3.375612954226153E-4,1.3798585176476861E-4,4.6400222471449629E-4,2.738859215792388E-3,1.3309569682267274E-4,1.7415090376158904E-4,5.6618307494224137E-4,4.0857064645097741E-4,1.448648505035188E-3,4.3607836074442002E-4,0]
[null,"DOM_C27: Basic metals",2.0209219144411913E-3,5.3503767516891124E-3,1.3858714196723089E-3,1.5817759328704739E-3,1.5259340709359189E-3,2.1344855159154941E-3,3.3222012406728509E-3,2.1783422768762986E-3,9.5607112052672975E-3,5.9923151928884316E-3,1.122026263688555,0.17293718023192661,0.14427834038649751,1.013511341835709E-2,0.11169439076808055,4.2525648896054223E-2,0.10791674079516081,3.7227978861636042E-2,2.317046809575167E-3,5.8435891252335191E-2,1.8908900387977455E-3,5.9960830552247652E-4,1.2233697549405296E-3,1.1644698542503519E-3,2.2645165157763797E-4,1.3809493712040944E-4,2.0200819618928739E-3,1.7921078806632348E-4,2.859569626829856E-4,8.1851377563379416E-4,4.684718414475742E-4,1.2880042477590127E-3,8.798745204942047E-4,0]
[null,"DOM_C28: Fabricated metal products",1.6176935120392356E-3,3.0592445912900339E-3,2.8220258409844758E-3,1.9607871329286302E-3,2.3509357612392073E-3,1.3568788596781927E-3,4.6059018982502961E-3,2.0344300618445874E-3,8.7298619285341612E-3,1.9280092419385389E-3,9.7158432813280061E-3,1.0573705755188716,1.9168493931438241E-2,8.755133107419882E-3,2.2907591635479868E-2,1.9541337148986569E-2,1.7206031289138706E-2,1.2388800474203618E-2,3.0628902558990007E-3,2.1655331195090242E-2,1.903723279903628E-3,8.2158729936710818E-4,1.0360557631247339E-3,8.5895595883531085E-4,1.9336442397346057E-4,1.9030520242242533E-4,3.1634477913836082E-3,1.6618485152353809E-4,2.6831625889188991E-4,1.6539425453956128E-3,4.6472170445275055E-4,1.0281264993760853E-3,2.1458673947379056E-3,0]
[null,"DOM_C29: Machinery and equipment, nec",2.7250818081782797E-4,6.7514052827588199E-4,5.4366001228427403E-4,1.0895856820528401E-3,7.6635711631380945E-4,7.1841528448464854E-4,4.551689917094544E-4,4.9236684606037957E-4,1.3742752297933613E-3,7.8759752392777119E-4,1.3609383748297964E-3,2.8796197930493874E-3,1.0227025658721873,9.3345608938046262E-3,4.3090127587885893E-3,4.6737445839431487E-3,5.8340920305942866E-3,2.3183907852687559E-3,3.3973614422871094E-4,1.659316047590121E-3,6.5739745256737767E-4,1.6039560540067227E-4,2.1959798774386164E-3,9.7937881912104263E-4,1.4403696255654622E-4,3.3779470587760745E-5,3.5522200763675239E-3,1.0238594813196201E-4,1.836531574859298E-4,1.6671051583614399E-4,5.4207601607346173E-5,1.9261810120473576E-4,4.2916964186831254E-4,0]
[null,"DOM_C30T33X: Computer, Electronic and optical equipment",2.017349450403532E-4,1.4477907626036344E-4,3.2864279616124867E-4,1.7139844448927455E-3,2.0326223145540086E-4,7.2156466639937791E-4,2.095836594776322E-4,4.2099325451063396E-4,1.1821578520949277E-3,3.8039323166981335E-4,4.3300897728074095E-4,1.7120029445416795E-3,1.4025675720214497E-3,1.0747046655515116,7.7170225443233438E-3,5.6271570613921646E-3,9.6173309436889051E-3,6.7322079615821104E-3,1.7407883064351056E-3,7.9730326294330284E-4,6.9038430195256099E-4,3.8336838229330669E-4,3.5042064843961271E-4,1.9466148652236084E-2,1.9101379690822E-3,1.3695403376692988E-4,1.4733074822955302E-3,7.1115663369950271E-4,1.202751755489584E-3,1.3145353914550326E-3,4.1101577786705439E-4,9.346025935292226E-4,2.1884972467531116E-3,0]
[null,"DOM_C31: Electrical machinery and apparatus, nec",1.2269314316984848E-4,1.0312912371725981E-4,1.7158200446789628E-4,3.3919561814028433E-4,1.2814447003121849E-4,2.5058588875207546E-4,1.0052971670593406E-4,1.6419560351685122E-4,8.8446302377114948E-4,2.0820685251166413E-4,1.0041733313713025E-3,1.6323570273605219E-3,4.9120312282857469E-3,1.0110872885164926E-2,1.0186325457685093,4.8952094491667118E-3,6.187156844814112E-3,2.8288403778404161E-3,3.5526908648951432E-3,4.3023651936730401E-3,3.1283033108207766E-4,5.8080677513142726E-4,4.1346827862673985E-4,4.3683018257939573E-3,3.6745190983034017E-4,1.3382685621722565E-4,2.0833918275730648E-4,1.624478135131675E-4,1.9639964362134696E-4,6.013699985387425E-4,2.1566857866903887E-4,4.0204302344177092E-4,5.7610240838579881E-4,0]
[null,"DOM_C34: Motor vehicles, trailers and semi-trailers",3.9985151001769719E-4,1.7493230501695452E-4,8.5515642367412219E-4,7.250557055527646E-4,4.4215624116606333E-4,5.063683033164904E-4,3.6583697927027996E-4,4.1942086538466355E-4,9.4529053601461052E-4,7.1305365394381745E-4,9.4983108418105464E-4,8.7875475840997407E-4,9.2779973654010645E-4,6.6521253367728453E-4,9.3144884219640504E-4,1.0263927994061277,1.4332713341131619E-3,1.4207372642831826E-3,6.0867621893074696E-4,7.2111174351388065E-4,1.7573599319287126E-3,3.0739546153599559E-4,4.669620234268099E-3,3.6990809172117141E-3,4.1969984172521215E-4,7.2873669382354672E-5,1.6727858643664421E-3,2.2676511722994854E-4,1.8646274795453964E-4,3.5859629170741168E-4,1.0638528777496753E-4,3.2918783439678137E-4,5.5812540324898295E-4,0]
[null,"DOM_C35: Other transport equipment",4.1294319328771069E-5,8.929332257141889E-5,3.9372783677638091E-5,4.1144330073847796E-5,2.9030430503690081E-5,2.947043337598141E-5,6.0615064081867425E-5,4.5184807504597578E-5,1.3082531278033123E-4,3.2913481980325756E-5,1.9124258858592639E-4,7.2895332566612255E-5,5.4926906893789187E-5,3.7827301058972391E-4,1.1283366331983947E-4,3.96686571016E-5,1.0205332063131722,1.1293274957421033E-4,6.7621797159339063E-5,4.2123432620780098E-5,2.1076242334065344E-5,4.1286187137566894E-5,6.9867229146163533E-4,5.805870426420188E-5,1.481084954042629E-5,2.6415422091417058E-6,6.5002073809215113E-5,1.8016530377044995E-5,1.1704670439045043E-5,1.8870193935574149E-4,7.2107125871653564E-6,2.5760218960948925E-5,2.6448268247013789E-5,0]
[null,"DOM_C36T37: Manufacturing nec; recycling",2.5352735761641681E-4,2.9961324332251866E-4,5.4220601449210353E-4,4.2240638144052326E-3,4.962710092111523E-4,1.0770781204149913E-3,3.6604142875567517E-4,4.8093613639615024E-4,2.555152895453802E-3,9.3766595140781859E-4,3.9900507480896064E-4,1.8947261918850688E-3,1.2152673486046635E-3,1.3110962598546792E-2,1.567888314237367E-3,9.9578582902474263E-4,3.2451299308862052E-3,1.0219635461079128,1.7562231511794211E-3,2.404364515032439E-3,1.4935212934948895E-3,3.2386118429800145E-3,4.3458405220733168E-4,8.4939231630724562E-4,7.2712607668949528E-4,2.0981551381053291E-4,1.3875132476411187E-3,1.0200844615092814E-3,1.4116842972280226E-3,1.8936501732449967E-3,1.4706889891663046E-3,6.1646321427696526E-3,4.0277418683957022E-3,0]
[null,"DOM_C40T41: Electricity, gas and water supply",1.7902633961212836E-2,8.2211537340483674E-3,2.0293664385831765E-2,2.3808656599917044E-2,1.7738206852313875E-2,3.2633599628702374E-2,7.0933693086941514E-3,1.4267104239856563E-2,3.3027303460923148E-2,3.2158194460061976E-2,3.8624496440424566E-2,2.4942341130540648E-2,1.6708063369198646E-2,7.565617718226292E-3,1.6437571183218914E-2,9.6802691446695021E-3,2.1096634215749938E-2,1.4001534420081995E-2,1.0176322470636017,1.3431111037929905E-2,2.2308889082508093E-2,4.3282592325206981E-2,8.4720231866053843E-3,1.5405016002233575E-2,8.6543387974468734E-3,1.2321856784654559E-2,7.6086364972055972E-3,2.0223950916156749E-2,1.5048387049843013E-2,2.4749726470672927E-2,1.9501189040450419E-2,2.5407026426403672E-2,3.8604219743501755E-2,0]
[null,"DOM_C45: Construction",1.989550709848359E-3,2.7263378309125797E-3,9.8674817549616618E-4,1.0130448243171972E-3,9.9046802322539382E-4,5.9464585904762078E-4,1.5009562405601646E-3,9.5913859286548729E-4,1.2472230406993814E-3,6.4314006513599713E-4,1.3515838454883872E-3,1.0886035163816632E-3,5.3226929669632423E-4,8.9212796546442536E-4,3.1730257380338666E-3,3.2985349612016E-4,6.3023149213810986E-4,1.1330298975300332E-3,3.9984413702078706E-3,1.0769107426040265,1.2903365341471944E-3,9.0544920051853072E-4,1.489671171867892E-3,9.7424971769407935E-4,1.7355438324521215E-4,2.5200415645505828E-4,3.1137162232246885E-4,1.7990880879786728E-4,2.0082012082384609E-4,3.5145344914863309E-3,5.045782281698206E-3,1.0821605114123438E-2,1.2271355287841153E-3,0]
[null,"DOM_C50T52: Wholesale and retail trade; repairs",0.1076111975939551,2.1005588462135908E-2,0.16804730215242122,0.19346346581664373,0.13403987889770358,0.10748634522572105,0.11700327377391927,0.13422569246596031,0.14106224363541131,8.0136722715927991E-2,9.4911012295237754E-2,9.1801758803733979E-2,8.4348865746818505E-2,0.14091931652649897,8.8460750156060655E-2,8.8219813894638843E-2,8.9253721529175323E-2,0.12575661548381067,0.14181928879648009,9.4512407596180556E-2,1.0369159763185019,6.2152716563388007E-2,6.3342473204523769E-2,4.4162414948597212E-2,2.2274976922552481E-2,9.7724517971606254E-3,4.0951031881482761E-2,1.5063650277408643E-2,2.2993281969297258E-2,4.921743250216077E-2,1.3288053007610772E-2,6.3757269336424074E-2,4.8563181814909789E-2,0]
[null,"DOM_C55: Hotels and restaurants",1.0067264333596629E-3,1.4611013049508179E-3,1.5037797717503229E-3,2.0294762763380996E-3,1.0470900610147075E-3,4.4645337108908736E-3,1.3134832943014897E-3,2.8189522101820033E-3,2.4553871206011383E-3,1.8262981730043943E-3,2.0028533259205871E-3,2.1925961309899348E-3,2.8700447487812427E-3,2.9361457893650579E-3,3.2354646383692892E-3,2.0425614765144659E-3,4.9950139305278982E-3,2.4517119568795479E-3,3.6521679531093701E-3,5.2411137989561533E-3,2.9868912540919642E-3,1.0014946548635033,5.0612050079494528E-3,6.1426428699384488E-3,4.8038500748950426E-3,5.2394348008059683E-4,2.0145475893529378E-3,5.4966548116748629E-3,5.5593275102970539E-3,2.4932410458747938E-2,4.2246402507581529E-3,5.8899898980330056E-3,5.1710520667641478E-3,0]
[null,"DOM_C60T63: Transport and storage",2.430000658758075E-2,5.2910352410978148E-3,3.7775472119963918E-2,5.1612924768043161E-2,3.0582809352306714E-2,2.7068590772544265E-2,2.5910321112511785E-2,3.1204544614694515E-2,3.6956713809062652E-2,1.9075802945402582E-2,2.6997033962203341E-2,2.7529234573190616E-2,2.7091688444687987E-2,4.5865477061285541E-2,2.9941099836686934E-2,2.4656407480706251E-2,3.4402398007574483E-2,3.7558956286598257E-2,3.7519021772827843E-2,2.2115014574113953E-2,1.6092058017945166E-2,1.4216035638130873E-2,1.0383525925752288,1.2771872171909929E-2,1.4939116010648968E-2,2.1327086989120039E-3,1.3117758513346043E-2,2.375367723422361E-2,1.3148004081007721E-2,2.5541033852838239E-2,5.3167306805279434E-3,1.8024338307464728E-2,1.6129548999889557E-2,0]
[null,"DOM_C64: Post and telecommunications",2.6398036878943418E-3,2.6508551788658624E-3,4.841900309878645E-3,5.5847493317881811E-3,3.5797708139762704E-3,7.5091884628976507E-3,2.936594404262396E-3,4.8822403245076355E-3,8.0860740306078656E-3,5.8054504402259626E-3,3.0401009243344302E-3,5.7229237181180767E-3,4.9407225713350321E-3,5.7588477512482703E-3,3.7629912685788925E-3,2.8968680184166952E-3,5.0588790155112395E-3,4.4572645111097542E-3,5.8705193204244008E-3,1.4321246290793095E-2,8.8340136723093852E-3,7.4536880156774914E-3,8.4616609216554006E-3,1.0774448544256148,7.839882451459379E-2,4.2159735726561391E-3,6.7874445551495514E-3,1.177095218839354E-2,1.9702582002073171E-2,3.1494969169622987E-2,9.5210193660229397E-3,1.0411293719453653E-2,2.3292195329236435E-2,0]
[null,"DOM_C65T67: Financial intermediation",1.2445262145526544E-2,1.1667030604978935E-2,1.179385468706338E-2,1.1699972012513968E-2,9.6042154791465099E-3,1.5730990352748449E-2,9.3525318494185761E-3,1.3493318917648189E-2,1.8273948887208874E-2,1.7228101207057554E-2,1.3469038260086996E-2,1.7025597456030748E-2,1.2653790862802661E-2,1.0112435056038847E-2,1.0692848453323028E-2,9.6883826963959641E-3,1.9968157918191995E-2,9.3517071424876475E-3,1.5952373006881859E-2,4.3034833031345948E-2,1.3655802170813003E-2,1.4435734109962385E-2,2.0269165354599002E-2,5.6196985674799194E-2,1.119362201704021,1.1570498953736066E-2,9.2635881128192519E-3,1.5317119195998499E-2,3.4994918787445373E-2,4.6950454852821184E-2,8.1353814178031381E-3,8.6306765583315428E-3,2.1306568293026597E-2,0]
[null,"DOM_C70: Real estate activities",4.3497898471297411E-3,2.0418475836395749E-3,9.3585163583445596E-3,1.3375301243969025E-2,7.7078148074509059E-3,1.7137407007594391E-2,4.7197733338370787E-3,7.5765242727884137E-3,1.1697803164346852E-2,8.6009943841298658E-3,5.3358010614502774E-3,1.1036796676937811E-2,7.6962390738049011E-3,8.8676254073723811E-3,7.491462057423447E-3,5.6302776605612129E-3,1.3470738210664662E-2,1.198922816346077E-2,6.9157622320116172E-3,7.830410874285057E-3,3.2160064976514913E-2,1.040080511622439E-2,1.0542326804101516E-2,2.9444222069280459E-2,1.8754068238483284E-2,1.0149488681246583,1.6495233288509131E-2,2.1035058712797584E-2,2.0160400493051869E-2,1.3069017299888904E-2,1.0470307096108614E-2,1.2411490005060661E-2,5.3104919010568775E-2,0]
[null,"DOM_C71: Renting of machinery and equipment",4.7634259978925038E-3,6.0690075388889165E-3,2.9829019325545466E-3,3.841338462829674E-3,2.8855665241976007E-3,5.6674599359653596E-3,3.4186251004428227E-3,3.8034607822316313E-3,5.5099333401744536E-3,4.2813217706747057E-3,3.2667832659713041E-3,5.3033616799526865E-3,5.2837075427964982E-3,5.4527027910890938E-3,5.159829168162787E-3,3.1267232473112254E-3,1.0827621587586966E-2,4.5595819920517516E-3,2.7760902074896359E-3,8.4813897012174233E-3,2.2626114575690381E-3,1.0361823770711216E-3,8.4070180000400205E-3,1.0521114685563069E-3,1.8507426204395412E-3,6.5531431106692487E-4,1.0063759793680835,9.1757145721942524E-4,2.2541119783829862E-3,1.7940708820701537E-3,9.5619445998056292E-4,1.5805500481419384E-3,3.3615926133927767E-3,0]
[null,"DOM_C72: Computer and related activities",1.5519654763537186E-4,1.3519655587090974E-4,4.8591590381786751E-4,6.2165351349397911E-4,2.5091692040552681E-4,8.1316748781398317E-4,1.878141652357701E-4,4.1168017010958927E-4,7.9906968017511731E-4,9.6103846861179357E-4,2.7905895008929874E-4,5.8216234722262576E-4,5.8099733379015012E-4,2.8917825353612755E-4,4.2546010272912697E-4,2.7812195428923221E-4,6.4660720575714049E-4,5.4539276177787322E-4,3.5098478393680158E-4,3.122973153307112E-4,7.9760054903436147E-4,3.7435545446338884E-4,8.3922324724062971E-4,4.0180053049466867E-3,5.7684064121391162E-4,7.167164906665863E-4,1.129111489187697E-3,1.000749993130392,2.3180785393837949E-3,4.3100827753327661E-4,1.022260192783021E-3,5.4474124085004114E-4,4.211589492529086E-3,0]
[null,"DOM_C73T74: R&D and other business activities",1.8132131976241479E-2,3.0975469116389761E-2,4.7795549667550195E-2,5.964648691923545E-2,2.7635817288410223E-2,8.6066182848495598E-2,3.1671823079480327E-2,6.3025710732338994E-2,7.3885638584284374E-2,5.8405136816029324E-2,3.9181410571375419E-2,6.1411205003612315E-2,6.7762952687954819E-2,5.1528668511816866E-2,5.3136776728874416E-2,3.0916442765514963E-2,8.6050675059919535E-2,5.1371775339083416E-2,5.4676544769707042E-2,5.5005345949024835E-2,8.5193683549254842E-2,7.8823163130334051E-2,6.172473335242476E-2,9.0113099893332174E-2,0.10682414547062126,2.2996168851545741E-2,4.6002198125566204E-2,0.22623981537051624,1.1317962834167543,6.3187305525900447E-2,3.3951519091842096E-2,7.1761933798583755E-2,0.13551278999584876,0]
[null,"DOM_C75: Public administration and defence; compulsory social security",2.4676323017431568E-5,4.8167913530591183E-6,3.8534925759008637E-5,4.4363106082851557E-5,3.0736683754581151E-5,2.4647693121687262E-5,2.6830019944916919E-5,3.0779292662704507E-5,3.2346982166719914E-5,1.8376151362594508E-5,2.1764043609531083E-5,2.1051060711701744E-5,1.9342037853497347E-5,3.231420755230873E-5,2.0284934040524817E-5,2.0229684947991804E-5,2.0466770300914628E-5,2.8837248675241642E-5,3.2520580187660136E-5,2.1672639568593678E-5,2.3777519575721271E-4,1.4252239029214047E-5,1.4525062116822259E-5,1.0126883083425967E-5,5.1078748126265193E-6,2.2409208577803369E-6,9.3904808532803772E-6,3.4542455467277399E-6,5.2725893382041182E-6,1.0000112860491255,3.0470833483873039E-6,1.4620179015119172E-5,1.1136022904797487E-5,0]
[null,"DOM_C80: Education",1.0939788384402786E-4,7.2252254898419604E-5,1.7093399409295716E-4,2.2132168221952704E-4,1.252164776430762E-4,2.5020423554109495E-4,1.0858480693841808E-4,1.6450330962882343E-4,2.4140485924739345E-4,2.0854998746274033E-4,1.8365527415354632E-4,2.932090228937945E-4,3.3863507537457057E-4,2.0390170384811763E-4,2.292245376961971E-4,1.6661780578581303E-4,3.1464798327936379E-4,2.1733713787451138E-4,1.4250622024739922E-3,1.9592702429321686E-4,2.3572253889435265E-4,1.8667759415457355E-4,1.756514567901998E-3,2.5288446771856992E-4,2.0832268769532471E-3,9.3876529742614433E-5,1.7967478675811929E-4,4.6205639566841645E-3,1.1640112529450704E-3,3.8187695419705038E-4,1.0009271577017234,1.8281929665863326E-4,1.3041135404502594E-3,0]
[null,"DOM_C85: Health and social work",0,0,0,0,0,0,0,0,0,0,0,0,0,0,0,0,0,0,0,0,0,0,0,0,0,0,0,0,0,0,0,1,0,0]
[null,"DOM_C90T93: Other community, social and personal services",3.0552764598713883E-4,5.2824832177041385E-4,4.2348031050075098E-4,4.8397689255082394E-4,2.941480367693046E-4,9.1184274246126505E-4,3.7186595907523251E-4,5.2723775088083533E-4,7.0658372853319362E-4,6.5021110907940841E-4,5.0755226752831123E-4,5.6584537006434379E-4,4.9547803156077866E-4,3.9071223474746689E-4,4.0698354125127056E-4,3.1683056476009176E-4,1.0666513493177981E-3,4.526933790298534E-4,7.4591553675701719E-4,6.8226363150727487E-4,6.6713046517462293E-4,4.2687396150937681E-3,7.8119617628388902E-4,1.362059390415359E-3,5.2539489644257992E-3,2.2044864070396348E-4,1.9224500045500255E-3,9.7863189425499448E-4,2.6815054747079108E-3,6.2362720301680835E-3,1.3540854226777709E-3,3.0852914167780179E-3,1.0180269794492331,0]
[null,"DOM_C95: Private households with employed persons",0,0,0,0,0,0,0,0,0,0,0,0,0,0,0,0,0,0,0,0,0,0,0,0,0,0,0,0,0,0,0,0,0,1]
[]
[]
[]
[]
[]
[]
[null,"Total Requirements - Type 2"]
["->",null,"DOM_C01T05: Agriculture, hunting, forestry and fishing","DOM_C10T14: Mining and quarrying","DOM_C15T16: Food products, beverages and tobacco","DOM_C17T19: Textiles, textile products, leather and footwear","DOM_C20: Wood and products of wood and cork","DOM_C21T22: Pulp, paper, paper products, printing and publishing","DOM_C23: Coke, refined petroleum products and nuclear fuel","DOM_C24: Chemicals and chemical products","DOM_C25: Rubber and plastics products","DOM_C26: Other non-metallic mineral products","DOM_C27: Basic metals","DOM_C28: Fabricated metal products","DOM_C29: Machinery and equipment, nec","DOM_C30T33X: Computer, Electronic and optical equipment","DOM_C31: Electrical machinery and apparatus, nec","DOM_C34: Motor vehicles, trailers and semi-trailers","DOM_C35: Other transport equipment","DOM_C36T37: Manufacturing nec; recycling","DOM_C40T41: Electricity, gas and water supply","DOM_C45: Construction","DOM_C50T52: Wholesale and retail trade; repairs","DOM_C55: Hotels and restaurants","DOM_C60T63: Transport and storage","DOM_C64: Post and telecommunications","DOM_C65T67: Financial intermediation","DOM_C70: Real estate activities","DOM_C71: Renting of machinery and equipment","DOM_C72: Computer and related activities","DOM_C73T74: R&D and other business activities","DOM_C75: Public administration and defence; compulsory social security","DOM_C80: Education","DOM_C85: Health and social work","DOM_C90T93: Other community, social and personal services","DOM_C95: Private households with employed persons","HH"]
[null,"DOM_C01T05: Agriculture, hunting, forestry and fishing",1.1330359119537652,6.0106774061978148E-3,0.26613754212334795,6.3005504018474934E-2,0.25897621741111604,2.0025562139441892E-2,8.1152548662477633E-3,1.6689861213844935E-2,3.5214939547630525E-2,1.4344310000004846E-2,9.0008602534230025E-3,1.6217309290103128E-2,1.5106581187335592E-2,1.0795637747357612E-2,1.2505846822379478E-2,1.128534250580626E-2,1.4177544152507583E-2,3.1961044089940091E-2,1.5255682457519643E-2,2.6509469379530887E-2,1.7797649220379849E-2,3.1378560551998412E-2,2.1641384394567028E-2,1.7137984473944743E-2,2.0154830413143345E-2,2.2194279088090666E-3,5.8747297199028261E-3,3.7244968728116501E-2,2.9264981437963761E-2,5.7503480208587997E-2,5.7727058546918536E-2,4.3712251728569518E-2,1.486709284595971E-2,7.1921874696865729E-2,7.1921874696865729E-2]
[null,"DOM_C10T14: Mining and quarrying",2.7242299520155673E-2,1.0236754522790303,2.2627420129560438E-2,2.6515317471370137E-2,2.7530991805802697E-2,3.13775896909428E-2,0.50522572917285813,0.26714544294576859,6.2124044672270631E-2,0.14849198495905108,0.29031259165118389,6.430833001492535E-2,5.2573196072373651E-2,1.5554133887720287E-2,4.6029496426591848E-2,2.3003417988863791E-2,4.5855016741086004E-2,3.5423575406135936E-2,0.15256449541045128,8.055708115663629E-2,1.6687189278292387E-2,2.2777370256900527E-2,6.9051840556301994E-2,1.8555555668629153E-2,1.450351548795533E-2,6.73084625549488E-3,1.506587661890179E-2,2.6091103123330767E-2,2.2738056887502401E-2,4.9107045552254432E-2,3.6299472506231764E-2,3.9246651585516198E-2,2.4241333826147446E-2,3.9722336407313118E-2,3.9722336407313118E-2]
[null,"DOM_C15T16: Food products, beverages and tobacco",0.1117418300659431,1.5610645021399135E-2,1.1484792275095015,6.8020760260779689E-2,6.785242414164952E-2,5.2579476681727494E-2,2.1654413426096229E-2,3.8110750120312835E-2,4.4323078166401061E-2,3.7612309052165678E-2,2.3682275444024591E-2,4.2071102566902802E-2,3.9301516141654259E-2,2.6975041880180232E-2,3.2228561096876059E-2,2.7997301080396293E-2,3.4922915577342999E-2,4.9483572691612854E-2,4.0379412457383732E-2,6.3358465316596835E-2,4.9234167349230126E-2,0.10747692491297954,5.8926815295525445E-2,4.5804936185556845E-2,5.5705327222758678E-2,6.0063838515247237E-3,1.5701716902431606E-2,0.10157306890717874,7.9666826825541576E-2,0.1588644300431567,0.15732327875830915,0.11928173997775307,3.9712473359349153E-2,0.19611153128601769,0.19611153128601769]
[null,"DOM_C17T19: Textiles, textile products, leather and footwear",4.7223683201985268E-3,1.8076904472057289E-3,4.8848852560558053E-3,1.1388674191580417,8.1015960118144409E-3,1.9081428167651938E-2,2.8189771262065902E-3,4.2039899057021782E-3,1.3910010336783102E-2,4.7818462163129139E-3,3.2224220371303361E-3,5.88368762442819E-3,5.7458421353064936E-3,4.1191213112025567E-3,5.1205264524139199E-3,1.4457344382798755E-2,1.004890708928223E-2,2.6658403337110202E-2,5.8439167390952357E-3,7.8459859112205259E-3,6.7095842681183047E-3,9.3022891464673019E-3,7.2127035002238658E-3,5.36527913824491E-3,6.1011976179977572E-3,8.1427607661984053E-4,3.1680612392304989E-3,1.1146427657843882E-2,9.9342012968565638E-3,1.8511624004940701E-2,1.7533486282360056E-2,1.9425809667807527E-2,7.9265125976168346E-3,2.0808396610495106E-2,2.0808396610495106E-2]
[null,"DOM_C20: Wood and products of wood and cork",1.5819018415356761E-3,1.3755051676104294E-3,2.1786354491177733E-3,1.8331881701902698E-3,1.0625881757551581,3.3922332575776369E-3,1.3390182851138175E-3,1.4468358734143426E-3,2.3283434648456247E-3,2.991518517821058E-3,1.4645017828890828E-3,3.501901979424816E-3,2.9695643641541171E-3,3.6918748236236709E-3,2.0993441581765339E-3,1.380023631097008E-3,4.823524165225637E-3,3.952064853410453E-2,1.2309030228746236E-3,1.2291655099472762E-2,3.6431439392434848E-3,9.8717659770261503E-4,1.0105156927956215E-3,2.3591667483664936E-3,8.781629435873783E-4,1.4149820637929339E-4,9.902053175497561E-4,1.2898229579856547E-3,1.1184242226244809E-3,2.1306900183493144E-3,1.9965578218615835E-3,1.935266283397123E-3,1.2925712608310551E-3,2.2609412282033271E-3,2.2609412282033271E-3]
[null,"DOM_C21T22: Pulp, paper, paper products, printing and publishing",8.5299123897135606E-3,2.9713895982937427E-3,1.4954226043769633E-2,1.5865584262141456E-2,9.6327762479759185E-3,1.2209674825113361,4.7489792740108014E-3,1.5962238647283036E-2,2.1295412078549302E-2,2.2096241494898868E-2,5.902095166059702E-3,1.4969781106531493E-2,1.0430776394578291E-2,1.766938924813883E-2,1.6325566597953801E-2,8.2683939715633564E-3,1.3961671725968496E-2,2.7228066131060429E-2,1.1014510124440501E-2,1.2547680337291098E-2,1.8989687599776772E-2,1.2540419831728078E-2,9.9292389943452242E-3,1.0534733246704694E-2,2.4900124672286812E-2,6.4509862273555915E-3,2.0248503817452544E-2,1.5194782282302137E-2,2.6701883412145612E-2,3.2383248934960383E-2,2.4415650606073529E-2,2.2630783082045376E-2,2.0926876555574271E-2,1.9670942265751244E-2,1.9670942265751244E-2]
[null,"DOM_C23: Coke, refined petroleum products and nuclear fuel",2.6862381591326999E-2,1.3946126417818403E-2,2.6535855318641857E-2,2.8522230137275749E-2,3.5529182132968982E-2,3.2839724042167381E-2,1.1312062255965261,2.4644801119103301E-2,2.7046817211623206E-2,4.5747980689227162E-2,2.8469637896069572E-2,2.8165431030220092E-2,2.3537019889551647E-2,1.7067996946993208E-2,2.0325708513903525E-2,1.4049980472945429E-2,2.2327138459333439E-2,2.6343771647384804E-2,0.1453435023206486,4.1577014750480749E-2,2.1739354257647031E-2,2.8409655021438857E-2,0.14059456330857656,2.8707078208812388E-2,1.9954636568370269E-2,1.0700182284712197E-2,2.6380607093181886E-2,3.6260342642822865E-2,3.1516680417288022E-2,6.887759236200211E-2,4.8914275229159317E-2,4.4958294852378247E-2,2.9082226089176939E-2,5.5036840031516897E-2,5.5036840031516897E-2]
[null,"DOM_C24: Chemicals and chemical products",4.4841334039267725E-2,2.4328897459266707E-2,3.1566086759421241E-2,5.1477867766247271E-2,3.9281204978756583E-2,4.9098431971105007E-2,2.0355410638263505E-2,1.1729197427678986,0.20644126530080203,4.486683178523837E-2,3.4069021304872278E-2,3.4560941073470623E-2,2.4461425199895845E-2,1.9195360853678969E-2,3.0904990873418092E-2,2.2517447279384734E-2,3.1402327377655477E-2,4.9263524817908487E-2,0.1827025878504607,3.7143249442878973E-2,2.060372237344996E-2,3.0056092835166099E-2,2.2098835491414469E-2,1.7864745951551086E-2,1.8754750591660208E-2,5.587568848893343E-3,8.8688079120673811E-3,3.2181083361119481E-2,2.9293187893922965E-2,6.4619210676722452E-2,4.719696355427748E-2,6.9366020247153257E-2,3.9107837512392767E-2,5.2439922790473208E-2,5.2439922790473208E-2]
[null,"DOM_C25: Rubber and plastics products",4.5381843490069325E-3,1.1262865342734627E-3,1.0544024783834273E-2,1.0073212188696648E-2,8.2345095125385542E-3,1.0140767505745614E-2,2.0975298660043124E-3,5.4787746602094805E-3,1.0227766712167823,3.7611195865162096E-3,2.4583199882727167E-3,9.2745833352819926E-3,1.0902263331140517E-2,1.3592879238989462E-2,1.9361040590121559E-2,2.7652614396695349E-2,1.4745711167899283E-2,2.8815713994790972E-2,3.5535378915794737E-3,1.3257745432228319E-2,8.8969973953941985E-3,4.930703833546865E-3,5.7827267686773546E-3,2.9084833064550409E-3,2.9904932207620032E-3,5.3369168612069193E-4,1.5403557320303666E-3,5.027460056339049E-3,4.9544878846463133E-3,8.394997358911813E-3,7.5013254067770475E-3,8.2532713228724488E-3,3.0857202847100152E-3,8.8693422716104135E-3,8.8693422716104135E-3]
[null,"DOM_C26: Other non-metallic mineral products",3.7700857836258082E-3,3.0885271620052102E-3,8.6592692365217213E-3,3.0302703170628736E-3,5.4759434186629216E-3,2.7048360941542703E-3,2.4054038045291538E-3,2.9245137903713943E-3,3.8343211427129928E-3,1.0467804224658999,2.5033798720935198E-3,9.0107068979428072E-3,5.4655278920124348E-3,4.6838839142661817E-3,1.0308727606361381E-2,5.2837684960116878E-3,9.3887961407213699E-3,9.9587462255540972E-3,3.9725411306677592E-3,6.8648490054678338E-2,3.6932798530033987E-3,6.5092776877574889E-3,3.3505925259615871E-3,2.3979517150153266E-3,2.5705251439300781E-3,7.3130838883198523E-4,3.4057819531876513E-3,4.7718356053017786E-3,3.7954471029318254E-3,7.5171876385092392E-3,7.6077204576001237E-3,6.6866124882361284E-3,2.1932034547054039E-3,9.0059875957147068E-3,9.0059875957147068E-3]
[null,"DOM_C27: Basic metals",2.5787604712124248E-3,5.6228195445053681E-3,1.9665020534536701E-3,2.4003372044677108E-3,2.4137672189017498E-3,2.9773853959455445E-3,3.6900684277031627E-3,2.7029721933017033E-3,1.0265432464052199E-2,6.6410472089403613E-3,1.1224310394847428,0.17367156566484013,0.14496479831111503,1.0591071504827127E-2,0.11225096196268602,4.3006011720626958E-2,0.10851770663525162,3.8057594420977121E-2,2.994658929979555E-3,5.9543738006548504E-2,2.6187744522416317E-3,1.4452725945609634E-3,2.2607801078051103E-3,1.9705991855938445E-3,1.1781845146374584E-3,2.4267867877196555E-4,2.2810159942208297E-3,1.9941213337277761E-3,1.7027918770148513E-3,3.5380996403853349E-3,3.2851447245657635E-3,3.3373616720736498E-3,1.567351060674217E-3,3.5235995516113942E-3,3.5235995516113942E-3]
[null,"DOM_C28: Fabricated metal products",2.5743735789369279E-3,3.5264776035899333E-3,3.8177937864343281E-3,3.3646005527182034E-3,3.8735488274748951E-3,2.8024324232083998E-3,5.2367855129193857E-3,2.9341580879018005E-3,9.9384423911339382E-3,3.04056946385549E-3,1.0410024296740537E-2,1.0586300293457185,2.0345753203451611E-2,9.5370905525836835E-3,2.3862098205930066E-2,2.0365148148726912E-2,1.823667363739994E-2,1.3811571738713573E-2,4.2249791807507878E-3,2.3555262445930262E-2,3.1520280105371084E-3,2.2718817596371023E-3,2.815190234437106E-3,2.2414488920983518E-3,1.825564005821642E-3,3.6966387124361404E-4,3.6109435488447862E-3,3.278713953646479E-3,2.6981549714960818E-3,6.3179686429883841E-3,5.2952497659174676E-3,4.5427265104230636E-3,3.3248735685971371E-3,6.0428907500896818E-3,6.0428907500896818E-3]
[null,"DOM_C29: Machinery and equipment, nec",4.4045567123988038E-4,7.5716440916697987E-4,7.1846947395032344E-4,1.336028509736079E-3,1.0336555081234679E-3,9.7218569495512793E-4,5.6592213008690268E-4,6.503162685132834E-4,1.5864444415184158E-3,9.8291015108459365E-4,1.4828035243935689E-3,3.1007199464238686E-3,1.0229092365734511,9.471835407067945E-3,4.4765786866732488E-3,4.8183665895391633E-3,6.0150237776876152E-3,2.5681617082628171E-3,5.4374365450224728E-4,1.9928535556807269E-3,8.765403552429996E-4,4.1499829171481905E-4,2.5083112198791718E-3,1.2220787840326974E-3,4.3057353118000418E-4,6.5266316981080647E-5,3.630779034623896E-3,6.4879793020898959E-4,6.1021719705618769E-4,9.854915330823528E-4,9.0221843972075079E-4,8.0961459994727801E-4,6.361470159593932E-4,1.0608440287287048E-3,1.0608440287287048E-3]
[null,"DOM_C30T33X: Computer, Electronic and optical equipment",1.1530416005109815E-3,6.0938776796002703E-4,1.3188177842140306E-3,3.109913026968677E-3,1.7173231947130894E-3,2.1589989491946002E-3,8.3692377267584426E-4,1.3156677532458628E-3,2.383950047338703E-3,1.4867045057758918E-3,1.1232909669586142E-3,2.9643827621986755E-3,2.5732144992774209E-3,1.075482230954637,8.6661679112841825E-3,6.4463409390747703E-3,1.064218445452895E-2,8.1469879073269493E-3,2.8963500942385443E-3,2.6865631173079935E-3,1.9316776448336072E-3,1.8255169335022973E-3,2.1195622058937133E-3,2.0840876499152616E-2,3.5331699303351341E-3,3.153052937855999E-4,1.9182897779423504E-3,3.806203507412842E-3,3.6189427257021416E-3,5.952364924494931E-3,5.2144120785871341E-3,4.4294620533570639E-3,3.3608812639829714E-3,6.0089494782553767E-3,6.0089494782553767E-3]
[null,"DOM_C31: Electrical machinery and apparatus, nec",5.8359719517068554E-4,3.2823007026035298E-4,6.5131759925108473E-4,1.0155171135094972E-3,8.6170060456338662E-4,9.4701672061404171E-4,4.0447334885962194E-4,5.9766161504694337E-4,1.4667262606206882E-3,7.4420998680850342E-4,1.3386120365313494E-3,2.239129753360861E-3,5.4792047144921249E-3,1.0487600035064614E-2,1.0190924026853654,5.2921005740068751E-3,6.6836940372505226E-3,3.5142952791947291E-3,4.1125556648238778E-3,5.2177036044281028E-3,9.1423170693233065E-4,1.2795216501057067E-3,1.270609882445617E-3,5.0343516546251859E-3,1.1538040321102622E-3,2.20237287542751E-4,4.2393122340248635E-4,1.6619849365045716E-3,1.3670339518906058E-3,2.8483787963587606E-3,2.5428937753354686E-3,2.0952876538088525E-3,1.1441175073392872E-3,2.9113106135329973E-3,2.9113106135329973E-3]
[null,"DOM_C34: Motor vehicles, trailers and semi-trailers",3.4967998331621379E-3,1.6874510080063408E-3,4.078639357631488E-3,5.2694564585893649E-3,5.3711331744554017E-3,5.1858895345967227E-3,2.4081226086599839E-3,3.3320050175973024E-3,4.8576865046804692E-3,4.3146145444472195E-3,3.1970219748745569E-3,4.9558371102768175E-3,4.7388032836203136E-3,3.1965517790148979E-3,4.0213611598764422E-3,1.0290596262613241,4.7696490873988086E-3,6.0265080274712838E-3,4.3705705780711212E-3,6.8715366399572601E-3,5.7983506205348057E-3,5.0022638425233331E-3,1.0429003865461228E-2,8.1744633565177024E-3,5.7034283659679408E-3,6.5349047939748455E-4,3.1214114641217802E-3,1.0302591004160172E-2,8.0522950014823291E-3,1.5456901672817129E-2,1.5743687973893465E-2,1.1706590779596184E-2,4.374783991057481E-3,1.9561942412077676E-2,1.9561942412077676E-2]
[null,"DOM_C35: Other transport equipment",1.6274718623325311E-4,1.4860969260958374E-4,1.6578795206161951E-4,2.1936186625113471E-4,2.2232987143405521E-4,2.1298698256473866E-4,1.4070727707538578E-4,1.5940747397376838E-4,2.8425754905915562E-4,1.7415571460452714E-4,2.7937056092459592E-4,2.3278606646724432E-4,2.0438284166576047E-4,4.7754441468662168E-4,2.3401059955127112E-4,1.4425347199208602E-4,1.0206640488720173,2.9355703035848798E-4,2.1515181937343218E-4,2.8332433699858019E-4,1.7955157128860563E-4,2.2540460472587421E-4,9.2453775017259387E-4,2.3356955269702407E-4,2.2202256580267974E-4,2.5411562497266347E-5,1.2181275122564448E-4,4.1315968832149758E-4,3.201786190164998E-4,7.808114234666326E-4,6.2045802694788094E-4,4.719472590530343E-4,1.7612597646731153E-4,7.6715971345460638E-4,7.6715971345460638E-4]
[null,"DOM_C36T37: Manufacturing nec; recycling",1.8543614495223815E-3,1.0814446630771691E-3,2.208446725320827E-3,6.5730961177139745E-3,3.0440934103987218E-3,3.4959551371374271E-3,1.4217130512053429E-3,1.9864711082141361E-3,4.5774975373936528E-3,2.7993377831609344E-3,1.560593649587032E-3,4.0021983688020447E-3,3.1852015438082219E-3,1.4419429430825597E-2,3.1650854460642495E-3,2.3742871475982783E-3,4.9697267577113284E-3,1.0243443009955913,3.7007724661470448E-3,5.5835618495029679E-3,3.5823374390697811E-3,5.6654219079490436E-3,3.4116494414734755E-3,3.1627485740197071E-3,3.4583220384599095E-3,5.0994037442240884E-4,2.1363178786920813E-3,6.2283488239993469E-3,5.4775876055130701E-3,9.6980690598821445E-3,9.5537193252923543E-3,1.204569072418437E-2,6.0005991934175126E-3,1.0111703861225394E-2,1.0111703861225394E-2]
[null,"DOM_C40T41: Electricity, gas and water supply",2.3905473597862839E-2,1.1152880800214105E-2,2.6541767067886631E-2,3.2617104826606402E-2,2.7292082156646115E-2,4.1703952956120172E-2,1.1051947833831987E-2,1.9912589333462766E-2,4.0610731773066074E-2,3.9139128660917864E-2,4.2980244467914236E-2,3.2844982372814621E-2,2.4094961941855213E-2,1.2472132767948552E-2,2.2426772874356626E-2,1.4849400909258124E-2,2.7563561826581203E-2,2.2928936626947873E-2,1.0249239569055695,2.5352528671764719E-2,3.0141573566009192E-2,5.2382693155314103E-2,1.963548241697979E-2,2.4079685480914565E-2,1.8895831940095986E-2,1.3447270978626422E-2,1.041651905174819E-2,3.975400459966083E-2,3.029479244635774E-2,5.401489221807837E-2,4.9811097563308163E-2,4.745993730359821E-2,4.6002079526707748E-2,3.7917069007421027E-2,3.7917069007421027E-2]
[null,"DOM_C45: Construction",2.390357434679637E-3,2.9220878416766297E-3,1.4039309962922079E-3,1.6011806897216388E-3,1.628375697252951E-3,1.2002690024727298E-3,1.7652686309763395E-3,1.3360849261703149E-3,1.7535649136731907E-3,1.1092536951294806E-3,1.6424150531770712E-3,1.6162590836724887E-3,1.0254889731792366E-3,1.2197336231947772E-3,3.5729218637811973E-3,6.7499394600602572E-4,1.0620251485258295E-3,1.7291082631653836E-3,4.4853053407753214E-3,1.0777067299444165,1.8133211221914016E-3,1.5130585704375176E-3,2.2350499930170902E-3,1.5534532402263425E-3,8.5737397069932119E-4,3.2714752267302093E-4,4.9885259441539639E-4,1.4839211307116904E-3,1.2188153001582154E-3,5.4685555789808537E-3,7.0695603434692989E-3,1.229406740142471E-2,1.7210870800407057E-3,2.5317045205204185E-3,2.5317045205204185E-3]
[null,"DOM_C50T52: Wholesale and retail trade; repairs",0.14633525209771717,3.9918030834778205E-2,0.20835353777593693,0.25028637794998215,0.19567150832660063,0.16599879564582312,0.14253988974962223,0.1706444685282483,0.18998260617381124,0.12517042223883951,0.12300975126393252,0.1427813499160957,0.13200142357875666,0.17257102933404062,0.1270968268730911,0.1215656555804524,0.13097158714476723,0.18334689451192193,0.18885778831294509,0.17141694847316447,1.0874442794565704,0.12085706681510625,0.13535745775420163,0.10012232626184185,8.8342398786444745E-2,1.7032449269122861E-2,5.9064558756065449E-2,0.14105116769899162,0.12134717267735774,0.23800572971820944,0.20881593992251135,0.20601962756454867,9.6286449934051263E-2,0.24460134465389324,0.24460134465389324]
[null,"DOM_C55: Hotels and restaurants",7.8294236429123851E-3,4.7932386406504589E-3,8.6052376340570568E-3,1.2040967299653454E-2,1.190581731758006E-2,1.4773700385742522E-2,5.8127177053552675E-3,9.2354880042672741E-3,1.1074547104187637E-2,9.7606764298306479E-3,6.9535019708097702E-3,1.1174566600860511E-2,1.1265833297122146E-2,8.5127842745887378E-3,1.0042661255132127E-2,7.9176844184544581E-3,1.2345183456199414E-2,1.2598403491576295E-2,1.1939767056693798E-2,1.8790738267963066E-2,1.1889350390700378E-2,1.011837631904094,1.7749350410836862E-2,1.6002083872599999E-2,1.6444108838329263E-2,1.8030648202415163E-3,5.205925941802257E-3,2.7694089831481528E-2,2.2888060884984008E-2,5.8194562501401752E-2,3.867422425065755E-2,3.0954849633036245E-2,1.3579298889047976E-2,4.3095717455434168E-2,4.3095717455434168E-2]
[null,"DOM_C60T63: Transport and storage",4.667433439646617E-2,1.6218434004857028E-2,6.1063966574879641E-2,8.4444571128919302E-2,6.6192879059855658E-2,6.0876433555983496E-2,4.0665093676797139E-2,5.2246908190979095E-2,6.5222354945822722E-2,4.5095773438796588E-2,4.3232172683041657E-2,5.6984675066905202E-2,5.4624806128944783E-2,6.4153484532193147E-2,5.2264595059329566E-2,4.3923263766870863E-2,5.8506516564674496E-2,7.0833978700766159E-2,6.4697343395044321E-2,6.6549602574352953E-2,4.528674934160451E-2,4.8134756009004354E-2,1.0799620493357491,4.5104886261564545E-2,5.3112137229980247E-2,6.3274544560635885E-3,2.3583552791876371E-2,9.6547862934595094E-2,6.9975787746265353E-2,0.13462081133282297,0.1182905680969496,0.10022194593535187,4.370352230129753E-2,0.14132793525659068,0.14132793525659068]
[null,"DOM_C64: Post and telecommunications",1.1360419404999692E-2,6.9099170027689064E-3,1.3918821525389155E-2,1.8381208457563539E-2,1.7459147939019756E-2,2.0686129806431745E-2,8.6874130489826718E-3,1.3083709798621581E-2,1.9102887427495732E-2,1.5946991476967071E-2,9.3679069307389257E-3,1.7203473190613935E-2,1.5672027702338297E-2,1.288677967159863E-2,1.246379448207223E-2,1.0406315952830734E-2,1.445369779762188E-2,1.742653384204304E-2,1.6463539174595032E-2,3.1640066762534828E-2,2.0212933574968377E-2,2.0673844996343255E-2,2.4679358530515245E-2,1.0900469666883863,9.3277137358588891E-2,5.8509172496925468E-3,1.0866591462128265E-2,4.0143206557548071E-2,4.1851773147949911E-2,7.4009892077498959E-2,5.3553690676224383E-2,4.2448624856773726E-2,3.4039424341399574E-2,5.5083961582757718E-2,5.5083961582757718E-2]
[null,"DOM_C65T67: Financial intermediation",2.6055516941639337E-2,1.8314143434640277E-2,2.5960195059684051E-2,3.167139087095848E-2,3.1265743198187403E-2,3.6296227365446562E-2,1.8327827812449429E-2,2.6293342776775828E-2,3.5467876728652981E-2,3.3055992495116343E-2,2.334483772670139E-2,3.494327765073979E-2,2.9402126286103204E-2,2.1236990104947215E-2,2.4272181898116613E-2,2.1408369344247388E-2,3.4630640652871497E-2,2.9592830686916025E-2,3.2484886759637802E-2,7.0064295976971558E-2,3.1414869214206831E-2,3.5068417717215139E-2,4.5580107130182478E-2,7.5865087610435686E-2,1.1425827672365505,1.4122153646891749E-2,1.5629907941115042E-2,5.9597663555599541E-2,6.9563135620103925E-2,0.11330344553423528,7.6857120263584169E-2,5.8631301962692173E-2,3.8079756099112884E-2,8.5969474706938762E-2,8.5969474706938762E-2]
[null,"DOM_C70: Real estate activities",2.8670973956632862E-2,1.3920071566118351E-2,3.4673411451917574E-2,4.906372605751181E-2,4.6416421783594168E-2,5.3886969975677247E-2,2.0758402207743158E-2,3.0449846010511452E-2,4.2422921162630668E-2,3.6885039308257546E-2,2.2983607120500849E-2,4.3055241985924871E-2,3.7625094591935616E-2,2.8746926385490576E-2,3.175739048732211E-2,2.6573599978430222E-2,3.9672227266872605E-2,4.8159608489319397E-2,3.6458949835561132E-2,5.6131383525385534E-2,6.3895072560557445E-2,4.7270893457880041E-2,5.5772345207922881E-2,6.4590627145966528E-2,6.0248636702016245E-2,1.0195086110909577,2.787168721707077E-2,0.10016328136344665,8.1932937342577714E-2,0.13164014816804342,0.13327433154911136,0.10176135407939638,8.3078185113684616E-2,0.15362529603353958,0.15362529603353958]
[null,"DOM_C71: Renting of machinery and equipment",5.3839791763115033E-3,6.3720795280286157E-3,3.6288095717933017E-3,4.751925930573813E-3,3.873213712059306E-3,6.6051222636989114E-3,3.8278495066384173E-3,4.3870718614223963E-3,6.2938824088254273E-3,5.0029870439273812E-3,3.7170657066928816E-3,6.1203098974024804E-3,6.0473400343149589E-3,5.9599216563868155E-3,5.7789725020836779E-3,3.6610905368515824E-3,1.1496150604921587E-2,5.4824665183468881E-3,3.5298824112519537E-3,9.7137853758859916E-3,3.0723277828417785E-3,1.9769199006221963E-3,9.5610585086793268E-3,1.9488693435899158E-3,2.9094734055541069E-3,7.7165580898787181E-4,1.0066662487321372,2.9365220908491503E-3,3.8302335976424687E-3,4.8194043443590354E-3,4.0895298828713799E-3,3.8603050918517468E-3,4.1263582376379927E-3,3.9197378429417402E-3,3.9197378429417402E-3]
[null,"DOM_C72: Computer and related activities",3.2651108983810379E-4,2.188648713023427E-4,6.6422998771854022E-4,8.7303708640479696E-4,5.2357417482071645E-4,1.0720255486584645E-3,3.0078770923435924E-4,5.7279620066595963E-4,1.0154925114115379E-3,1.1602667704083802E-3,4.0336728155361806E-4,8.0769516977993987E-4,7.9181141910176448E-4,4.2920487933869082E-4,5.9638543273672412E-4,4.2564337672228191E-4,8.3116631613944583E-4,8.0017115245672099E-4,5.5908228596319087E-4,6.5252166380051931E-4,1.0211368814589073E-3,6.3406247681831586E-4,1.1578162837385594E-3,4.2655709772706583E-3,8.6912176405005189E-4,7.4883459294798269E-4,1.2092454163800204E-3,1.0013073597116275,2.7531944376653662E-3,1.2662044140240626E-3,1.8872721566371552E-3,1.1741074341592805E-3,4.4227163989188772E-3,1.08211208558968E-3,1.08211208558968E-3]
[null,"DOM_C73T74: R&D and other business activities",3.130620255320965E-2,3.7409553919566241E-2,6.1507884277153611E-2,7.8977857676415256E-2,4.860313195301897E-2,0.10597234095471582,4.0359476928541006E-2,7.541551681849587E-2,9.0528531922561731E-2,7.3725772618749241E-2,4.8740708404236117E-2,7.8754655732254028E-2,8.3974534044706145E-2,6.2296701553604152E-2,6.6280916928291481E-2,4.2260824893027904E-2,0.10024325156006079,7.0964207231511423E-2,7.06792211527906E-2,8.1168563158222101E-2,0.10238360439317616,9.8794606288902631E-2,8.6224504908230207E-2,0.10915087449025472,0.12930053358717783,2.5466047595130027E-2,5.2164488838703678E-2,0.26910124782118316,1.1652566509921987,0.12741380204083141,0.10047084964727512,0.12016012897107445,0.15174842726115803,8.3214307463043452E-2,8.3214307463043452E-2]
[null,"DOM_C75: Public administration and defence; compulsory social security",1.6840377347640087E-2,8.2174376199096854E-3,1.7541289127470768E-2,2.4719390399255244E-2,2.6793922187379561E-2,2.5433347404225141E-2,1.111596066318131E-2,1.5845426229662143E-2,2.1275736937161331E-2,1.9574004737114209E-2,1.2223482064138154E-2,2.2158649343962316E-2,2.0712194990081572E-2,1.3776890965059276E-2,1.6797782103786817E-2,1.4500472298710576E-2,1.8136213289277312E-2,2.5037089263381863E-2,2.045872219187294E-2,3.3417033311256492E-2,2.217940423588597E-2,2.5506283363552176E-2,3.128662363233644E-2,2.4310400965088522E-2,2.8694511083428093E-2,3.1548536442019505E-3,7.8750867858427172E-3,5.4712819082071255E-2,4.2714891764016376E-2,1.0819915333040782,8.4909922937935742E-2,6.1791242324547566E-2,2.0734694516280697E-2,0.10621674653208026,0.10621674653208026]
[null,"DOM_C80: Education",1.5209274425814132E-2,7.4468815026255486E-3,1.5887758835549524E-2,2.2378582045678368E-2,2.4157565553238607E-2,2.3066275249640441E-2,1.0066213301014506E-2,1.4365470367372754E-2,1.9317182026292061E-2,1.7768779972111681E-2,1.1140346014559268E-2,2.0171952140611338E-2,1.892005040990399E-2,1.2546022431142872E-2,1.529479543334113E-2,1.3169339217484793E-2,1.658191721586294E-2,2.2673820956158792E-2,1.9767034511937058E-2,3.0183723695908146E-2,1.9938492536441026E-2,2.3077577130291741E-2,2.9837700533756329E-2,2.2073630331184393E-2,2.7845248090256524E-2,2.9248059591750306E-3,7.2427786649763726E-3,5.3747546739708434E-2,3.951566699110786E-2,7.3997101833455259E-2,1.0771703866394489,5.5655937319605213E-2,1.9913101313369708E-2,9.5378703330635209E-2,9.5378703330635209E-2]
[null,"DOM_C85: Health and social work",1.0985709434591954E-2,5.3653110260995203E-3,1.1434561763648125E-2,1.6120212873462453E-2,1.7484408116937557E-2,1.6599521585704859E-2,7.2445369330987174E-3,1.0331720087443343E-2,1.3878321760691341E-2,1.2775706058242579E-2,7.9713910576832414E-3,1.4462508697282826E-2,1.3518655545376949E-2,8.9793417674542565E-3,1.0960750829040003E-2,9.4599527943713384E-3,1.183503008032704E-2,1.6337908820948533E-2,1.334445203502325E-2,2.1817212869410865E-2,1.4334481851426013E-2,1.6653962057336706E-2,2.0430084228977921E-2,1.5875386334174207E-2,1.8742807513061864E-2,2.0596041335263849E-3,5.1386649882053659E-3,3.5741666943595513E-2,2.7902224571432644E-2,5.3557753815923655E-2,5.5469722360766055E-2,1.0403587111680719,1.3538715497239081E-2,6.9391476024730323E-2,6.9391476024730323E-2]
[null,"DOM_C90T93: Other community, social and personal services",5.0918231525998022E-3,2.8658273564878337E-3,5.4053335003459105E-3,7.507292309845837E-3,7.9118212060932617E-3,8.1439851954015485E-3,3.5281932565364546E-3,5.0286007010421534E-3,6.7531435322505011E-3,6.216379126215016E-3,3.9805581237276023E-3,6.8669259515500205E-3,6.3853370959686103E-3,4.3028658748734908E-3,5.1824049880395892E-3,4.438378637922763E-3,6.2229820925766227E-3,7.5708553914823427E-3,6.5598769557914313E-3,1.018766959053097E-2,6.9124318254184967E-3,1.1524600898966253E-2,9.6822526740072256E-3,8.2787078535303295E-3,1.3419886350189739E-2,1.1177847725570044E-3,4.1612830348129182E-3,1.6550696758114349E-2,1.4838052385572566E-2,2.9570517120088763E-2,2.5521344211845615E-2,2.0668927600361112E-2,1.023925578309467,3.0232741169047991E-2,3.0232741169047991E-2]
[null,"DOM_C95: Private households with employed persons",1.3102404944646559E-3,6.3990840224279215E-4,1.3637740874534105E-3,1.9226210024901747E-3,2.0853254560349666E-3,1.9797870587989481E-3,8.6403938770689788E-4,1.2322406774583506E-3,1.6552357655491938E-3,1.5237293069283336E-3,9.5072962043784171E-4,1.724910408340058E-3,1.6123391968203794E-3,1.070945601411075E-3,1.3072637385369444E-3,1.1282669818191663E-3,1.411537029700053E-3,1.9485851013565586E-3,1.5915623416794086E-3,2.60208919124023E-3,1.7096409385967584E-3,1.9862800496152893E-3,2.4366495237751447E-3,1.89342109985257E-3,2.2354118802963038E-3,2.4564428491215539E-4,6.1287684651787765E-4,4.2628270525441091E-3,3.3278346507164547E-3,6.3877110768312062E-3,6.6157472019909491E-3,4.8134913809301022E-3,1.6147317015014165E-3,1.0082761629915302,8.2761629915302799E-3]
[null,"L",0.21775457767571621,0.10634916602730626,0.22665155878870868,0.31952876299916833,0.3465693251839605,0.32902943902123655,0.14359847124262068,0.20479144817182243,0.27509084523309119,0.25323521378253466,0.1580058988077786,0.28667037775382131,0.26796167753697531,0.17798511657527258,0.21725985763567704,0.18751160658629376,0.23458949030693488,0.32384384973879016,0.26450868143758355,0.43245254234381847,0.28413267803431841,0.33010853746082675,0.40495740303781652,0.31467590392948919,0.37151284209399094,4.0824694203452291E-2,0.10185667398049209,0.70845780484797893,0.55306734298229543,1.0616015408821537,1.099499858281705,0.79997510932403015,0.26835929831621957,1.3754515942757579,1.3754515942757579]
[]
[]
[]
[]
[]
[]
[null,"Labor"]
[null,null,"C01T05 Agriculture, hunting, forestry and fishing","C10T14 Mining and quarrying","C15T16 Food products, beverages and tobacco","C17T19 Textiles, textile products, leather and footwear","C20 Wood and products of wood and cork","C21T22 Pulp, paper, paper products, printing and publishing","C23 Coke, refined petroleum products and nuclear fuel","C24 Chemicals and chemical products","C25 Rubber and plastics products","C26 Other non-metallic mineral products","C27 Basic metals","C28 Fabricated metal products except machinery and equipment","C29 Machinery and equipment n.e.c ","C30 Office, accounting and computing machinery","C31 Electrical machinery and apparatus n.e.c","C32 Radio, television and communication equipment","C33 Medical, precision and optical instruments","C34 Motor vehicles, trailers and semi-trailers","C35 Other transport equipment","C36T37 Manufacturing n.e.c; recycling","C40T41 Electricity, gas and water supply","C45 Construction","C50T52 Wholesale and retail trade; repairs","C55 Hotels and restaurants","C60T63 Transport and storage","C64 Post and telecommunications","C65T67 Finance and insurance","C70 Real estate activities","C71 Renting of machinery and equipment","C72 Computer and related activities","C73 Research and development","C74 Other Business Activities","C75 Public admin. and defence; compulsory social security","C80 Education","C85 Health and social work","C90T93 Other community, social and personal services","Private HH","Total"]
[null,"$2014 USD",1138.4725469369573,20794.013480455229,4312.1405688468203,4638.543428582323,2501.5083082413294,7986.7293253757298,48968.325990852492,13771.408039315686,5914.2417561700067,4453.6397852697164,11244.742028399616,5063.3459117110269,9705.3580508782379,8474.6668897541986,7549.8534410463044,8474.6668897541986,7549.8534410463044,8050.2509503608617,8050.2509503608617,6929.3444698570902,20203.817257386505,3193.2741709481552,5316.9517402535621,1558.5352503984288,7917.4898883699325,13416.047084441163,14321.771708332439,2536.0190272084546,2536.0190272084546,13416.047084441163,4155.5237831384111,4155.5237831384111,1569.6353843528536,4477.3976673108236,2472.759197483897,1569.6353843528536,5630.1741672850358,5630.1741672850358]
[null,"Jobs - PV Years",{"$f":"C143*(pv_dollar_yr/'Default-Data'!$F$19)","v":1051.3267752703398},{"$f":"D143*(pv_dollar_yr/'Default-Data'!$F$19)","v":19202.310320220251},{"$f":"E143*(pv_dollar_yr/'Default-Data'!$F$19)","v":3982.062502038686},{"$f":"F143*(pv_dollar_yr/'Default-Data'!$F$19)","v":4283.4804561984056},{"$f":"G143*(pv_dollar_yr/'Default-Data'!$F$19)","v":2310.0272993767235},{"$f":"H143*(pv_dollar_yr/'Default-Data'!$F$19)","v":7375.3753739564572},{"$f":"I143*(pv_dollar_yr/'Default-Data'!$F$19)","v":45219.985666637687},{"$f":"J143*(pv_dollar_yr/'Default-Data'!$F$19)","v":12717.25879017399},{"$f":"K143*(pv_dollar_yr/'Default-Data'!$F$19)","v":5461.5288971282616},{"$f":"L143*(pv_dollar_yr/'Default-Data'!$F$19)","v":4112.7304881095006},{"$f":"M143*(pv_dollar_yr/'Default-Data'!$F$19)","v":10383.999515202067},{"$f":"N143*(pv_dollar_yr/'Default-Data'!$F$19)","v":4675.7659143907185},{"$f":"O143*(pv_dollar_yr/'Default-Data'!$F$19)","v":8962.4495644855142},{"$f":"P143*(pv_dollar_yr/'Default-Data'!$F$19)","v":7825.963161489366},{"$f":"Q143*(pv_dollar_yr/'Default-Data'!$F$19)","v":6971.9406878051132},{"$f":"R143*(pv_dollar_yr/'Default-Data'!$F$19)","v":7825.963161489366},{"$f":"S143*(pv_dollar_yr/'Default-Data'!$F$19)","v":6971.9406878051132},{"$f":"T143*(pv_dollar_yr/'Default-Data'!$F$19)","v":7434.0346585700618},{"$f":"U143*(pv_dollar_yr/'Default-Data'!$F$19)","v":7434.0346585700618},{"$f":"V143*(pv_dollar_yr/'Default-Data'!$F$19)","v":6398.9293337221088},{"$f":"W143*(pv_dollar_yr/'Default-Data'!$F$19)","v":18657.291387928039},{"$f":"X143*(pv_dollar_yr/'Default-Data'!$F$19)","v":2948.8410991810188},{"$f":"Y143*(pv_dollar_yr/'Default-Data'!$F$19)","v":4909.9591750264099},{"$f":"Z143*(pv_dollar_yr/'Default-Data'!$F$19)","v":1439.2352660193437},{"$f":"AA143*(pv_dollar_yr/'Default-Data'!$F$19)","v":7311.4359542271995},{"$f":"AB143*(pv_dollar_yr/'Default-Data'!$F$19)","v":12389.099373637871},{"$f":"AC143*(pv_dollar_yr/'Default-Data'!$F$19)","v":13225.494199916704},{"$f":"AD143*(pv_dollar_yr/'Default-Data'!$F$19)","v":2341.8963532081798},{"$f":"AE143*(pv_dollar_yr/'Default-Data'!$F$19)","v":2341.8963532081798},{"$f":"AF143*(pv_dollar_yr/'Default-Data'!$F$19)","v":12389.099373637871},{"$f":"AG143*(pv_dollar_yr/'Default-Data'!$F$19)","v":3837.4341394883281},{"$f":"AH143*(pv_dollar_yr/'Default-Data'!$F$19)","v":3837.4341394883281},{"$f":"AI143*(pv_dollar_yr/'Default-Data'!$F$19)","v":1449.4857266622216},{"$f":"AJ143*(pv_dollar_yr/'Default-Data'!$F$19)","v":4134.6697940512486},{"$f":"AK143*(pv_dollar_yr/'Default-Data'!$F$19)","v":2283.4788244171646},{"$f":"AL143*(pv_dollar_yr/'Default-Data'!$F$19)","v":1449.4857266622216},{"$f":"AM143*(pv_dollar_yr/'Default-Data'!$F$19)","v":5199.2056088023692},{"$f":"AN143*(pv_dollar_yr/'Default-Data'!$F$19)","v":5199.2056088023692}]
[null,"Jobs - Wind Years",{"$f":"C143*(wind_dollar_yr/'Default-Data'!$F$19)","v":1138.4725469369573},{"$f":"D143*(wind_dollar_yr/'Default-Data'!$F$19)","v":20794.013480455229},{"$f":"E143*(wind_dollar_yr/'Default-Data'!$F$19)","v":4312.1405688468203},{"$f":"F143*(wind_dollar_yr/'Default-Data'!$F$19)","v":4638.543428582323},{"$f":"G143*(wind_dollar_yr/'Default-Data'!$F$19)","v":2501.5083082413294},{"$f":"H143*(wind_dollar_yr/'Default-Data'!$F$19)","v":7986.7293253757298},{"$f":"I143*(wind_dollar_yr/'Default-Data'!$F$19)","v":48968.325990852492},{"$f":"J143*(wind_dollar_yr/'Default-Data'!$F$19)","v":13771.408039315686},{"$f":"K143*(wind_dollar_yr/'Default-Data'!$F$19)","v":5914.2417561700067},{"$f":"L143*(wind_dollar_yr/'Default-Data'!$F$19)","v":4453.6397852697164},{"$f":"M143*(wind_dollar_yr/'Default-Data'!$F$19)","v":11244.742028399616},{"$f":"N143*(wind_dollar_yr/'Default-Data'!$F$19)","v":5063.3459117110269},{"$f":"O143*(wind_dollar_yr/'Default-Data'!$F$19)","v":9705.3580508782379},{"$f":"P143*(wind_dollar_yr/'Default-Data'!$F$19)","v":8474.6668897541986},{"$f":"Q143*(wind_dollar_yr/'Default-Data'!$F$19)","v":7549.8534410463044},{"$f":"R143*(wind_dollar_yr/'Default-Data'!$F$19)","v":8474.6668897541986},{"$f":"S143*(wind_dollar_yr/'Default-Data'!$F$19)","v":7549.8534410463044},{"$f":"T143*(wind_dollar_yr/'Default-Data'!$F$19)","v":8050.2509503608617},{"$f":"U143*(wind_dollar_yr/'Default-Data'!$F$19)","v":8050.2509503608617},{"$f":"V143*(wind_dollar_yr/'Default-Data'!$F$19)","v":6929.3444698570902},{"$f":"W143*(wind_dollar_yr/'Default-Data'!$F$19)","v":20203.817257386505},{"$f":"X143*(wind_dollar_yr/'Default-Data'!$F$19)","v":3193.2741709481552},{"$f":"Y143*(wind_dollar_yr/'Default-Data'!$F$19)","v":5316.9517402535621},{"$f":"Z143*(wind_dollar_yr/'Default-Data'!$F$19)","v":1558.5352503984288},{"$f":"AA143*(wind_dollar_yr/'Default-Data'!$F$19)","v":7917.4898883699325},{"$f":"AB143*(wind_dollar_yr/'Default-Data'!$F$19)","v":13416.047084441163},{"$f":"AC143*(wind_dollar_yr/'Default-Data'!$F$19)","v":14321.771708332439},{"$f":"AD143*(wind_dollar_yr/'Default-Data'!$F$19)","v":2536.0190272084546},{"$f":"AE143*(wind_dollar_yr/'Default-Data'!$F$19)","v":2536.0190272084546},{"$f":"AF143*(wind_dollar_yr/'Default-Data'!$F$19)","v":13416.047084441163},{"$f":"AG143*(wind_dollar_yr/'Default-Data'!$F$19)","v":4155.5237831384111},{"$f":"AH143*(wind_dollar_yr/'Default-Data'!$F$19)","v":4155.5237831384111},{"$f":"AI143*(wind_dollar_yr/'Default-Data'!$F$19)","v":1569.6353843528536},{"$f":"AJ143*(wind_dollar_yr/'Default-Data'!$F$19)","v":4477.3976673108236},{"$f":"AK143*(wind_dollar_yr/'Default-Data'!$F$19)","v":2472.759197483897},{"$f":"AL143*(wind_dollar_yr/'Default-Data'!$F$19)","v":1569.6353843528536},{"$f":"AM143*(wind_dollar_yr/'Default-Data'!$F$19)","v":5630.1741672850358},{"$f":"AN143*(wind_dollar_yr/'Default-Data'!$F$19)","v":5630.1741672850358}]

{"sheet":"Zambia-IO-Data","index":18,"n_rows":182,"n_cols":68,"rows_kept":182,"cut":false,"hidden":false,"merged":[]}
[]
[]
[]
[]
[]
[]
[]
[]
[]
[null,"Direct Requirements (A)",null,null,null,null,null,null,null,null,null,null,null,null,null,null,null,null,null,null,null,null,null,null,null,null,null,null,null,null,null,null,null,null,null,null,null,null,null,null,null,null,null,null,null,null,null,null,null,"LNONE","LPRIM","LSECD","LPOST","HRRS","HRRM","HRRN","HRS","HRM","HRL","HRN","HUSE","HUPR","HUPU","HUEM","KAP-AGR","Labor - total","Value Added (L + K + T)","Avg Wages $2014"]
[null,null,null,"MAIZE","DRSTAP","GRNDNUT","SUGAR","COTTON","TOBAC","COFFEE","WHEAT","HORTI","OTHERCROP","LIVEST","FISH","FOREST","MINING","FOODMFG","TEXTILES","FURNIMFG","INDCHEMMFG","OTHERMFG","ELECWATER","EQUIPMACHIN","CONSTR","TRADETRANS","TOURISM","OTHER","FIRE","PUBLIC","LNONE","LPRIM","LSECD","LPOST","HRRS","HRRM","HRRN","HRS","HRM","HRL","HRN","HUSE","HUPR","HUPU","HUEM",null,null,null,"MAIZE",0.16547460546574863,0.12153230332412067,1.7011120445771962E-2,9.7046498630379441E-3,0,0,0,0,0,0,0,0,0,0,0,3.8318894091527708E-2,{"$f":"SUM(AX11:BA11)","v":0.31372267909867918},0.39483849680684985,{"$f":"TRANSPOSE(D156:AD156)","v":103.27241247823075}]
[null,null,"MAIZE",0.25371014844959039,0,0,0,0,0,0,0,0,0,1.8488746104258942E-3,0,0,0,1.5219150423406698E-2,0,0,0,0,0,0,0,0,0,0,0,0,0,0,0,0,9.8708476627243164E-2,8.0831380643527809E-2,5.7983526802633974E-2,0.13105102457141099,2.5352580495916488E-2,2.7342995890527505E-3,4.3739812911658724E-2,1.802320226512959E-2,5.1356239272347635E-3,5.3544594596741735E-3,2.128738007299701E-3,null,null,null,"DRSTAP",0.30773651359876342,0.16661705673800495,7.2984993309356695E-3,1.4534292886336621E-3,0,0,0,0,0,0,0,0,0,0,0,5.0300255517102101E-3,{"$f":"SUM(AX12:BA12)","v":0.48310549895633775},0.53280921607330967,103.27241247823075]
[null,null,"DRSTAP",0,0.13516993206259997,0,0,0,0,0,0,0,0,0,0,0,0,2.0576938571167536E-2,0,0,0,0,0,0,0,0,0,0,0,0,0,0,0,0,8.9918398059255555E-2,1.3181667723906594E-2,7.2258338504213801E-2,7.0961409351064916E-2,1.9608140384922645E-3,6.0898975010414535E-4,2.2424420544546339E-2,6.1970192204144504E-3,1.7270459118982253E-3,1.1804336549473471E-3,3.6589540053194011E-4,null,null,null,"GRNDNUT",0.23238240054327586,0.11511492642724194,7.5949592194879895E-3,1.6834740941631093E-2,0,0,0,0,0,0,0,0,0,0,0,2.2286056260523258E-2,0.37192702713163694,0.45105417566227013,103.27241247823075]
[null,null,"GRNDNUT",0,0,0.43004569930885728,0,0,0,0,0,0,0,0,0,0,0,9.459376568047231E-3,0,0,0,1.4777575967882592E-4,0,0,0,0,0,0,0,3.5694997027861632E-5,0,0,0,0,2.0145810097091096E-2,2.9381270363054407E-2,4.2234196166471673E-4,1.4735328253537487E-2,3.2633832357764365E-3,7.9172018611859286E-3,4.7230010127606982E-4,3.8864814856110139E-2,1.2738230541037162E-3,1.4316861893330496E-3,1.4049554055340643E-4,null,null,null,"SUGAR",3.2392339624203063E-2,4.1233141166720097E-2,1.057520193711904E-2,6.775829678761224E-3,0,0,0,0,0,0,0,0,0,0,0,0.1368390128978659,9.097651240680342E-2,0.27140068842246767,103.27241247823073]
[null,null,"SUGAR",0,0,0,0.48543694343636468,0,0,0,0,0,0,0,0,0,0,6.9534599745760366E-3,0,0,0,0,0,0,0,0,0,0,0,0,0,0,0,0,0,0,0,0,0,0,0,0,0,0,0,null,null,null,"COTTON",7.6624701956543445E-2,6.363729108781449E-2,8.2386180542847257E-3,2.2092206828355134E-3,0,0,0,0,0,0,0,0,0,0,0,3.6325188820827498E-2,0.15070983178147818,0.22202332930617175,103.27241247823075]
[null,null,"COTTON",0,0,0,0,0.28364708600178279,0,0,0,0,0,0,0,0,0,7.1184022416877628E-5,7.9234572293767944E-2,0,0,0,0,0,0,0,0,0,0,0,0,0,0,0,0,0,0,0,0,0,0,0,0,0,0,null,null,null,"TOBAC",0.17923432165735007,1.6772996405259703E-2,3.6023845986327204E-3,1.0352184096205719E-3,0,0,0,0,0,0,0,0,0,0,0,5.4639459926516303E-2,0.20064492107086304,0.28724810781054666,103.27241247823075]
[null,null,"TOBAC",0,0,0,0,0,0.40791972127919351,0,0,0,0,0,0,0,0,6.6102445239219201E-3,0,1.2716224065821523E-3,0,0,0,0,0,0,0,0,0,0,0,0,0,0,0,0,0,0,0,0,0,0,0,0,0,null,null,null,"COFFEE",9.0204972868852235E-2,0.1154929717176304,2.9366741082831868E-2,1.8792570024583389E-2,0,0,0,0,0,0,0,0,0,0,0,7.601688310594999E-3,0.25385725569389789,0.31921808344135122,103.27241247823075]
[null,null,"COFFEE",0,0,0,0,0,0,0.32800322568984219,0,0,0,0,0,0,0,4.7681378353613161E-3,0,0,0,0,0,0,0,0,0,0,0,0,0,0,0,0,0,0,0,0,0,0,0,0,0,0,0,null,null,null,"WHEAT",4.6579483662539604E-2,5.9323359298057869E-2,1.5205589824093991E-2,9.7417219294778784E-3,0,0,0,0,0,0,0,0,0,0,0,3.3614212896365361E-2,0.13085015471416933,0.21606289377121429,103.27241247823075]
[null,null,"WHEAT",0,0,0,0,0,0,0,0.27572791901566368,0,0,0,0,0,0,2.8804745459880394E-2,0,0,0,0,0,0,0,0,0,0,0,0,0,0,0,0,0,0,0,0,0,0,0,0,0,0,0,null,null,null,"HORTI",0.23799190338934736,9.412058204836711E-2,3.6321887420479995E-2,3.7692909503155556E-2,0,0,0,0,0,0,0,0,0,0,0,5.382406511626029E-2,0.40612728236135004,0.48206774989347195,103.27241247823075]
[null,null,"HORTI",0,0,0,0,0,0,0,0,0.18334187299727578,0,0,0,0,0,1.8381054939382749E-3,0,0,0,4.0558078638125455E-4,0,0,0,0,0,0,0,9.6361618680549399E-5,0,0,0,0,7.0854067498596407E-2,3.7828956335941119E-2,4.802332294617874E-2,0.19529688133145107,1.5225706899198589E-2,5.2627030730098813E-2,3.99520156791821E-2,6.6332426527508953E-2,5.7048615054953074E-2,4.1815078987624411E-2,1.2839300455106761E-2,null,null,null,"OTHERCROP",0.2474918343681469,0.15879406774354882,2.204392019830851E-2,4.4136235896238196E-3,0,0,0,0,0,0,0,0,0,0,0,8.6212375401814364E-3,0.43274344589962804,0.46038809538516151,103.27241247823075]
[null,null,"OTHERCROP",0,0,0,0,0,0,0,0,0,0.22747657843581814,0,0,0,0,5.9706366627923736E-3,0,0,0,2.9186579812729904E-4,0,0,0,0,0,0,0,6.9373537956844193E-5,0,0,0,0,6.46935546077234E-2,7.5664583324574347E-2,2.6586994679617258E-2,6.9270834956700389E-2,5.2134316727368022E-3,1.3872385749054632E-2,1.8187015793386673E-2,4.039070112884121E-2,3.5316117632164912E-2,1.780728954893071E-2,6.2961405554232252E-3,null,null,null,"LIVEST",9.7064858639975965E-2,6.7858240556195923E-2,1.6284411819309442E-2,1.2294949349766011E-2,0,0,0,0,0,0,0,0,0,0,0,0.10350818747556717,0.19350246036524735,0.30086181735290085,103.27241247823075]
[null,null,"LIVEST",0,0,0,0,0,0,0,0,0,0,0.24083492452946634,0,0,0,3.1479718032854917E-2,0,2.0056876142951757E-5,0,3.382622698141003E-4,0,0,0,0,0,0,0,2.8129218894582162E-5,0,0,0,0,0.1883218677217201,8.4637108092161323E-2,1.9745550128025903E-2,0.11336965685728198,2.6265306211931592E-2,1.9868179436689389E-2,1.3115586368444072E-2,2.5921205858683599E-2,2.574694770212561E-2,1.5340414087155481E-2,4.9670223165006562E-3,null,null,null,"FISH",1.8766530164744596E-2,1.6766323251071857E-2,2.28759457266981E-3,9.7358865484022962E-4,0,0,0,0,0,0,0,0,0,0,0,5.0936881555182036E-2,3.8794036643326493E-2,9.1248783504656789E-2,103.27241247823075]
[null,null,"FISH",0,0,0,0,0,0,0,0,0,0,0,0.39024725712225705,0,0,8.8801961631560553E-2,0,0,0,0,0,0,0,0,4.244395918271221E-3,0,0,0,0,0,0,0,1.304637524686294E-2,6.0452072105081085E-4,1.0812416706129558E-2,1.1145727330509014E-2,1.8169385496099151E-4,4.846484822558821E-4,3.8779296893110631E-3,1.1178587608658773E-3,4.5881325493875407E-5,6.6812371270580506E-5,2.6126055155305399E-6,null,null,null,"FOREST",6.8579813296839154E-2,5.1352508814521046E-2,3.1946908407579883E-2,3.00339866988137E-2,0,0,0,0,0,0,0,0,0,0,0,0.13395595615952841,0.18191321721775378,0.32054581216219258,103.27241247823075]
[null,null,"FOREST",0,0,0,0,0,0,0,0,0,0,0,0,0.40713074751887068,3.5039445988749702E-3,0,0,2.4487853060024194E-2,0,0,0,2.0818331926198067E-4,0,1.297706450113996E-3,0,0,0,0,0,0,0,0,0,0,0,0,0,0,0,0,0,0,0,null,null,null,"MINING",2.0225064998570958E-4,4.1277382032826404E-3,3.107228890093927E-3,1.4730876965835108E-3,0,0,0,0,0,0,0,0,0,0,0,0,8.9103054399457884E-3,0.2443122122186287,1134.5687814359997]
[null,null,"MINING",0,0,0,0,0,0,0,0,0,0,0,0,0,0.43502077967156888,2.0041542117288425E-3,0,0,7.8356487355077809E-5,4.2833051060158937E-2,0,5.7773543847990062E-4,3.1755157449624462E-2,0,0,0,0,0,0,0,0,0,0,0,0,0,0,0,0,0,0,0,0,null,null,null,"FOODMFG",2.0793764138150553E-2,1.8769047946097465E-2,5.5557540007868025E-3,6.7973828722273999E-3,0,0,0,0,0,0,0,0,0,0,0,0,5.1915948957262217E-2,0.11213204107571055,266.1726449111473]
[null,null,"FOODMFG",0,0,0,0,0,0,0,0,0,0,0.20410247658750416,0,0,0,0.35698549874119195,3.3384313277515031E-5,5.0770915057845602E-4,0,3.0277911628303537E-4,0,0,0,0,4.0326877925057202E-2,0,0,1.6056672103689176E-2,0,0,0,0,0.13544519289458662,0.10463921240745981,0.31255939853035769,0.14441946591089461,4.4184749179347928E-2,1.1428179841481523E-2,0.136691868419519,0.22682543478809106,0.2578647307908587,0.13792661827959152,4.6215429660028645E-2,null,null,null,"TEXTILES",6.5678953953105478E-4,1.3533111592100397E-2,7.8482202239652764E-3,5.8489166296849197E-3,0,0,0,0,0,0,0,0,0,0,0,0,2.7887037985281644E-2,0.10148505152333756,266.17264491114736]
[null,null,"TEXTILES",2.4627289539160595E-2,2.1631400070905232E-2,1.0008368536222209E-2,0,1.2494819014989373E-3,1.1439395395352379E-2,0,6.2793056691383123E-3,3.6085964634308804E-3,8.8755535669111308E-5,0,0,0,2.3647447923731105E-3,8.9811527394297805E-3,0.45388780763585174,2.8787260592341738E-3,0,2.7161626320937245E-4,1.5688414827696458E-4,3.9194952641269078E-4,1.0118554063526099E-2,8.2718515765971747E-3,1.0205974979974432E-3,1.411851177064644E-3,1.6626069100109903E-2,4.6820253310719678E-3,0,0,0,0,3.6151772981559423E-2,3.8357147459270199E-2,4.2125395838774796E-2,3.9633528452051418E-2,1.8876267934075645E-2,3.5145304139390121E-3,3.5012207836563974E-2,5.3134337822291398E-2,6.411048573887039E-2,3.8502895999158113E-2,9.0016286699412442E-3,null,null,null,"FURNIMFG",3.0395438191422753E-3,1.8612822927086298E-2,1.729816885300384E-2,1.8001407355483008E-2,0,0,0,0,0,0,0,0,0,0,0,0,5.6951942954715416E-2,0.1837365053970062,266.1726449111473]
[null,null,"FURNIMFG",0,0,0,0,0,0,0,0,0,2.2349583291687539E-3,0,1.9150445758806027E-2,6.6245623021246425E-2,5.9240949697826149E-3,9.1682103704246662E-3,5.4096335710727181E-2,0.40604591317732813,4.9945876973098158E-4,2.6794054608980346E-2,4.2773984986836964E-4,1.6905932187053182E-4,2.1427690740577238E-2,1.0476000596040647E-2,1.4078385933963408E-3,3.0944027857925938E-2,3.948648011080416E-3,2.5608671914201027E-2,0,0,0,0,3.4417844683637721E-3,1.1310239955915999E-3,1.5159878977650585E-2,6.8673182073591002E-3,7.2523763134132763E-4,1.1345937767019821E-4,1.2882220426459043E-2,1.6711906131047526E-2,1.3714121707811455E-2,4.5052924526568098E-3,1.0508783095935195E-3,null,null,null,"INDCHEMMFG",2.9348560805022186E-3,1.126475890064896E-2,1.7236834058878138E-2,4.5601389377218577E-3,0,0,0,0,0,0,0,0,0,0,0,0,3.5996587977751175E-2,0.18636737370790524,266.1726449111473]
[null,null,"INDCHEMMFG",0.1159601444596763,4.9221674302286971E-3,4.9421011846526499E-3,6.4674423183745985E-2,4.4182919760958693E-2,9.2605008365294006E-2,2.3259926801298385E-2,1.7769898891689829E-2,4.8716825970282963E-2,4.2670748416695867E-2,1.0053499072916344E-3,0,0,6.5377760697146363E-3,1.3237029116418324E-4,2.0176353048427342E-3,0,0.12267701183781402,9.2297088418251058E-3,4.0542770047662987E-3,9.0876783808871637E-4,1.9226987377142304E-3,4.0832621532258025E-3,0,0,0,0,0,0,0,0,0,0,0,0,0,0,0,0,0,0,0,null,null,null,"OTHERMFG",2.3016425126308696E-4,1.5933718104913785E-3,1.1310764919753948E-3,6.5911657272527872E-4,0,0,0,0,0,0,0,0,0,0,0,0,3.6137291264551389E-3,0.10732166024291469,266.1726449111473]
[null,null,"OTHERMFG",0,0,0,0,4.496090794755373E-3,0,4.8032627833303441E-3,1.7853866877274478E-2,1.1324415087445518E-3,7.0299355100374194E-4,8.4926747490518574E-3,8.5040006691521855E-2,3.1785863326046471E-3,5.5081297780125868E-2,7.0702238431350076E-3,7.9519581053679386E-3,1.8056686495201268E-2,1.3531453130372513E-3,0.26342129468742947,9.8806901407148526E-2,4.771740245787668E-3,0.15829736027110927,5.1565960657126986E-2,2.7347857924608409E-3,1.9883925313206822E-2,7.317999276262149E-3,2.7408904004433313E-2,0,0,0,0,3.323108430192942E-2,4.6868607126200806E-2,4.6346808136696192E-2,3.7872101178486155E-2,2.1442900165201909E-2,5.7279325480056244E-2,3.7177351754168642E-2,9.1892101537474874E-2,9.5799182025450666E-2,5.5030272231975062E-2,4.344641260467292E-2,null,null,null,"ELECWATER",1.2061238892338783E-3,2.4759704628545547E-3,6.3084860709790146E-3,3.2049019614760724E-3,0,0,0,0,0,0,0,0,0,0,0,0,1.319548238454352E-2,0.26655932816568229,590.37077558234773]
[null,null,"ELECWATER",1.4561535973589456E-2,6.8022444248401796E-4,0,0,1.6923291476550122E-2,6.683573480010559E-3,3.1073268075311532E-3,1.5042545947619232E-2,7.0343758348628896E-3,1.9079251056972806E-4,1.2537353340741316E-3,0,1.675129233258139E-3,9.11705061076978E-3,2.8705129860462143E-3,4.2329729644754024E-2,1.8069292364834848E-3,7.2708165490033084E-3,3.0196255415778063E-2,0.50412404733612159,3.1074597840802687E-4,8.7880452025320965E-3,2.5508302287952107E-3,1.183586285572191E-3,3.0638314173479113E-2,2.5297003776002841E-3,1.0936866515557274E-2,0,0,0,0,5.4271980385264083E-5,7.6733863965804754E-5,1.1060362612737031E-3,1.6420015890178203E-3,9.6316510360484257E-4,4.6327722006746274E-3,2.7183130379592291E-3,2.4298153660121096E-2,2.389785575727562E-2,1.6769665666883527E-2,1.1538514505598443E-2,null,null,null,"EQUIPMACHIN",2.6292766195088624E-3,1.2821272659734621E-2,5.460566856534484E-3,7.3439218321585901E-3,0,0,0,0,0,0,0,0,0,0,0,0,2.8255037967936554E-2,0.12599400530786029,266.1726449111473]
[null,null,"EQUIPMACHIN",0,0,0,0,0,0,0,0,0,1.0343070849284338E-3,2.8021714970822259E-2,0.13915544801784793,1.8792683524546968E-3,8.0316262228892946E-2,5.0036694790258429E-3,9.9823430033109655E-3,3.3044510841625102E-3,8.3818225109962778E-4,4.197013599562616E-3,7.6262659247993692E-2,0.1696253082026952,9.2972807384074402E-2,1.7754589497729463E-2,2.5956257225251984E-3,1.6046862979984051E-2,5.9968253322444411E-3,2.9836512343799481E-2,0,0,0,0,0,0,0,0,0,0,0,0,0,0,0,null,null,null,"CONSTR",3.2844249664710705E-3,9.2979827748593119E-3,4.7292604130372553E-3,9.372268161686334E-3,0,0,0,0,0,0,0,0,0,0,0,0,2.6683936316053973E-2,6.0665831734038042E-2,287.45516025656241]
[null,null,"CONSTR",0,0,0,0,0,0,0,0,0,6.1659518298731904E-4,3.7704462319227089E-4,0,0,4.329709453558853E-3,1.4801707755135211E-3,9.2867894249186705E-4,2.7563864927217293E-3,7.3400176451072959E-5,2.5837911504615857E-4,1.6081112111689999E-2,1.2963846020217732E-4,0.53614821775653509,7.8604155481977935E-3,1.0774443701951533E-3,3.4356040122593659E-3,5.9310421821323752E-3,0.11581130762990384,0,0,0,0,1.5538989863204159E-3,6.8227039444267428E-5,8.0598479779982212E-4,2.6984200698953751E-3,5.3533289380990805E-4,3.5556180394788759E-3,1.2491562874578975E-3,1.0164517738209587E-2,3.9293907388320221E-3,4.1002982582455634E-3,1.0067499064125545E-3,null,null,null,"TRADETRANS",6.8873058020527556E-3,3.4960116280276655E-2,2.4672276312427549E-2,1.671032339915296E-2,0,0,0,0,0,0,0,0,0,0,0,0,8.3230021793909925E-2,0.22607141540817993,401.63837509030287]
[null,null,"TRADETRANS",1.9115871053068636E-2,1.4225022683655265E-2,5.8482495177247101E-3,0,5.443177544224259E-3,2.4643755313133362E-3,7.2393314008176645E-4,3.7611210765360671E-3,1.6712552696532216E-3,7.3050389871079976E-4,4.505559214327725E-3,7.2250042963135613E-2,8.4577152596467724E-4,3.2342708813624253E-3,9.5158442519223466E-3,6.6541051923164705E-3,8.6228285345002695E-3,6.197302026278822E-3,1.9417098368185593E-3,1.3804667140571377E-2,4.6190340097712291E-3,1.3431361294681863E-2,0.51678583906114417,1.8901472500548783E-3,2.3412018277239027E-3,4.7218888633742066E-2,1.475073321996029E-2,0,0,0,0,2.5533636839079457E-2,3.4676588945811188E-2,2.6545848278434651E-2,3.078598880168032E-2,1.6351288650488665E-2,2.8450173730964496E-2,2.2237447365646694E-2,7.0832525934745427E-2,6.6791064078323137E-2,4.3297690428629007E-2,2.4808228869852407E-2,null,null,null,"TOURISM",1.7951367712221035E-2,0.15203936499189732,5.481574753006984E-2,8.1515691034939594E-2,0,0,0,0,0,0,0,0,0,0,0,0,0.30632217126912781,0.43707898024884495,344.81474506450985]
[null,null,"TOURISM",0,0,0,0,0,0,0,0,0,0,0,0,0,0,0,0,0,0,3.5916339141733082E-5,0,0,0,1.5073260994304628E-3,0.5,0,0,2.1228980913002776E-4,0,0,0,0,0,0,0,0,0,0,0,0,0,0,0,null,null,null,"OTHER",4.3725300522168477E-2,0.10654177218761059,4.6308182112147267E-2,9.6263619603165193E-2,0,0,0,0,0,0,0,0,0,0,0,0,0.29283887442509154,0.36599151791447643,428.61075812910872]
[null,null,"OTHER",0,0,0,1.792815552618969E-2,0,0,0,0,0,0,3.6430992019599851E-3,0,0,2.2327583856009384E-3,0,0,0,0,0,0,0,0,1.7152480065472826E-2,4.9572357437555287E-4,0.51376968940004653,9.3744608437532628E-3,4.6504413432184321E-4,0,0,0,0,1.228953818748154E-3,1.1150055299243135E-3,3.3822141894655896E-3,1.9232907571446352E-3,1.3947188036826815E-3,1.6907919674222362E-2,4.3822335513284899E-3,1.3772058420680335E-2,1.9598583104063632E-2,1.1676940247057599E-2,1.0727254375221918E-2,null,null,null,"FIRE",2.3789709694325527E-3,6.5131844207530461E-3,2.1392232536145958E-2,1.9357748024198696E-2,0,0,0,0,0,0,0,0,0,0,0,0,4.9642135950530256E-2,0.20832866456119223,1008.0607580969252]
[null,null,"FIRE",0,0,0,0,0,7.7604710010880391E-3,0,0,0,0,0,4.6602978926037521E-2,1.5818059548773694E-3,7.0340766414638154E-3,1.2645449939189842E-2,1.4092658585177626E-2,6.6070101815912871E-3,3.855040684335548E-3,4.2774345057198385E-3,1.9722383587880959E-2,1.5381622958577318E-3,6.3796806816035445E-2,9.6651868420777595E-2,5.9439968212490766E-3,1.3423381118535398E-2,0.56934743273539057,3.1068475097476213E-2,0,0,0,0,2.3255146463313316E-4,2.6340844403775169E-5,2.0147801500408555E-3,7.0523057276528328E-4,8.5294183911847462E-5,3.8009757026884222E-5,3.688008800474409E-3,3.2125492510664634E-2,5.3705091027573648E-2,1.301350769296639E-2,1.110706959954161E-2,null,null,null,"PUBLIC",5.7257571821737333E-3,2.0031738796976492E-2,4.2693596668400204E-2,7.0853105817111586E-2,0,0,0,0,0,0,0,0,0,0,0,0,0.13930419846466202,0.21415943308557375,428.61075812910877]
[null,null,"PUBLIC",0,0,0,0,0,0,0,0,0,0,0,0,1.3940480368518582E-4,3.1259852526966251E-5,1.1867689021294258E-3,0,1.8060981316932956E-5,0,1.1832438587190077E-4,0,0,6.754685495516836E-4,6.0059984486490238E-4,0,2.1136242252978929E-3,5.896562025749885E-4,0.508773505438322,0,0,0,0,2.0546373408181752E-2,1.9149594886393232E-2,1.5809158616407734E-2,2.8806102645308689E-2,1.0922306488361897E-2,4.0634084535567244E-3,2.1823195846692529E-2,5.3587794311913385E-2,5.8623657339870863E-2,4.5114827421070008E-2,1.8423885484008619E-2,null,null,null,"LNONE",0,0,0,0,0.29182637259338529,1.2479564748614617E-2,5.6446217876656418E-3,0.33608889594388175,1.8533524626787808E-2,2.5905831794986317E-3,1.1792550992547239E-2,4.527898083329044E-2,3.7724873996679169E-2,4.9748216702160203E-2,8.9734095938006947E-4,0,0,0,0]
[null,null,"LNONE",0.16547460546574863,0.30773651359876342,0.23238240054327586,3.2392339624203063E-2,7.6624701956543445E-2,0.17923432165735007,9.0204972868852235E-2,4.6579483662539604E-2,0.23799190338934736,0.2474918343681469,9.7064858639975965E-2,1.8766530164744596E-2,6.8579813296839154E-2,2.0225064998570958E-4,2.0793764138150553E-2,6.5678953953105478E-4,3.0395438191422753E-3,2.9348560805022186E-3,2.3016425126308696E-4,1.2061238892338783E-3,2.6292766195088624E-3,3.2844249664710705E-3,6.8873058020527556E-3,1.7951367712221035E-2,4.3725300522168477E-2,2.3789709694325527E-3,5.7257571821737333E-3,0,0,0,0,0,0,0,0,0,0,0,0,0,0,0,null,null,null,"LPRIM",0,0,0,0,0.18955800685333099,1.8345861987178694E-2,1.1056802560869897E-2,0.22408391291012486,3.0041588646057171E-2,6.0096228690587183E-3,2.3574062284951527E-2,7.2144920191386921E-2,0.14020922257675955,0.18091098294536498,2.7382212551680775E-3,0,0,0,0]
[null,null,"LPRIM",0.12153230332412067,0.16661705673800495,0.11511492642724194,4.1233141166720097E-2,6.363729108781449E-2,1.6772996405259703E-2,0.1154929717176304,5.9323359298057869E-2,9.412058204836711E-2,0.15879406774354882,6.7858240556195923E-2,1.6766323251071857E-2,5.1352508814521046E-2,4.1277382032826404E-3,1.8769047946097465E-2,1.3533111592100397E-2,1.8612822927086298E-2,1.126475890064896E-2,1.5933718104913785E-3,2.4759704628545547E-3,1.2821272659734621E-2,9.2979827748593119E-3,3.4960116280276655E-2,0.15203936499189732,0.10654177218761059,6.5131844207530461E-3,2.0031738796976492E-2,0,0,0,0,0,0,0,0,0,0,0,0,0,0,0,null,null,null,"LSECD",0,0,0,0,3.3110047622838895E-2,2.9697329571709038E-3,9.2444988625834789E-3,6.8702849006342132E-2,2.0838181194752413E-2,3.3749496669404584E-2,1.8097936066523442E-2,8.9443246325563677E-2,0.23662880536157163,0.33191910810050285,3.831269521953188E-2,0,0,0,0]
[null,null,"LSECD",1.7011120445771962E-2,7.2984993309356695E-3,7.5949592194879895E-3,1.057520193711904E-2,8.2386180542847257E-3,3.6023845986327204E-3,2.9366741082831868E-2,1.5205589824093991E-2,3.6321887420479995E-2,2.204392019830851E-2,1.6284411819309442E-2,2.28759457266981E-3,3.1946908407579883E-2,3.107228890093927E-3,5.5557540007868025E-3,7.8482202239652764E-3,1.729816885300384E-2,1.7236834058878138E-2,1.1310764919753948E-3,6.3084860709790146E-3,5.460566856534484E-3,4.7292604130372553E-3,2.4672276312427549E-2,5.481574753006984E-2,4.6308182112147267E-2,2.1392232536145958E-2,4.2693596668400204E-2,0,0,0,0,0,0,0,0,0,0,0,0,0,0,0,null,null,null,"LPOST",0,0,0,0,3.649299126645808E-2,1.852666352986036E-3,5.9005360577528377E-3,4.6932817105745504E-2,3.7235055207033019E-3,4.0341300043746961E-2,8.1183931135669542E-3,5.1337283310158376E-2,0.18882139586304864,0.45224744323608218,2.7338831489857492E-2,0,0,0,0]
[null,null,"LPOST",9.7046498630379441E-3,1.4534292886336621E-3,1.6834740941631093E-2,6.775829678761224E-3,2.2092206828355134E-3,1.0352184096205719E-3,1.8792570024583389E-2,9.7417219294778784E-3,3.7692909503155556E-2,4.4136235896238196E-3,1.2294949349766011E-2,9.7358865484022962E-4,3.00339866988137E-2,1.4730876965835108E-3,6.7973828722273999E-3,5.8489166296849197E-3,1.8001407355483008E-2,4.5601389377218577E-3,6.5911657272527872E-4,3.2049019614760724E-3,7.3439218321585901E-3,9.372268161686334E-3,1.671032339915296E-2,8.1515691034939594E-2,9.6263619603165193E-2,1.9357748024198696E-2,7.0853105817111586E-2,0,0,0,0,0,0,0,0,0,0,0,0,0,0,0,null,null,null,"HRRS",0,0,0,0,1.1329062148181811E-2,0,5.8176800525920916E-5,6.4538059841840573E-4,0,0,7.0613697757545654E-5,0,0,0,0,0,0,0,0]
[null,null,"HRRS",0,0,0,0,0,0,0,0,0,0,0,0,0,0,0,0,0,0,0,0,0,0,0,0,0,0,0,0.29182637259338529,0.18955800685333099,3.3110047622838895E-2,3.649299126645808E-2,1.1329062148181811E-2,5.1659218553510985E-3,4.6639784116641386E-3,5.208657015401848E-4,7.8282377321286655E-4,1.7415273869078435E-3,1.0736526303006082E-3,1.0720648442617371E-3,3.2841617933190956E-3,8.345394180674662E-4,8.9425732728277123E-6,null,null,null,"HRRM",0,0,0,0,5.1659218553510985E-3,2.2462377368924411E-3,5.3445417172162722E-4,5.7593568600080207E-3,0,0,6.4822214951076136E-4,4.4067318003425298E-3,0,0,0,0,0,0,0]
[null,null,"HRRM",0,0,0,0,0,0,0,0,0,0,0,0,0,0,0,0,0,0,0,0,0,0,0,0,0,0,0,1.2479564748614617E-2,1.8345861987178694E-2,2.9697329571709038E-3,1.852666352986036E-3,0,2.2462377368924411E-3,0,0,0,0,0,6.4676118415208197E-5,1.3074923767733649E-4,3.8663300424837892E-5,5.5756421969797218E-5,null,null,null,"HRRN",0,0,0,0,4.6639784116641386E-3,0,3.6507984721795149E-3,5.2238533720918787E-3,0,0,5.6583873350342536E-4,0,0,0,0,0,0,0,0]
[null,null,"HRRN",0,0,0,0,0,0,0,0,0,0,0,0,0,0,0,0,0,0,0,0,0,0,0,0,0,0,0,5.6446217876656418E-3,1.1056802560869897E-2,9.2444988625834789E-3,5.9005360577528377E-3,5.8176800525920916E-5,5.3445417172162722E-4,3.6507984721795149E-3,5.2426818991231735E-5,1.0391703396470075E-4,1.719936220718856E-4,1.1184850358256487E-4,2.1267876819464773E-4,3.3409252192578604E-4,9.7996010975976585E-5,1.6190699104844949E-4,null,null,null,"HRS",0,0,0,0,5.208657015401848E-4,0,5.2426818991231735E-5,1.2090106891400309E-2,0,0,6.3638136049530938E-5,0,0,0,0,0,0,0,0]
[null,null,"HRS",0,0,0,0,0,0,0,0,0,0,0,0,0,0,0,0,0,0,0,0,0,0,0,0,0,0,0,0.33608889594388175,0.22408391291012486,6.8702849006342132E-2,4.6932817105745504E-2,6.4538059841840573E-4,5.7593568600080207E-3,5.2238533720918787E-3,1.2090106891400309E-2,8.2272630425796688E-4,1.9535217098063601E-3,1.195778859088528E-3,9.6596772168213601E-4,3.6365133818522205E-3,8.9064953723213083E-4,0,null,null,null,"HRM",0,0,0,0,7.8282377321286655E-4,0,1.0391703396470075E-4,8.2272630425796688E-4,6.3925953422673727E-4,0,1.2546632831845372E-4,7.284999286404837E-4,0,0,0,0,0,0,0]
[null,null,"HRM",0,0,0,0,0,0,0,0,0,0,0,0,0,0,0,0,0,0,0,0,0,0,0,0,0,0,0,1.8533524626787808E-2,3.0041588646057171E-2,2.0838181194752413E-2,3.7235055207033019E-3,0,0,0,0,6.3925953422673727E-4,0,0,1.0383984724331058E-4,2.1118289573205997E-4,6.2241256664259971E-5,9.5859786429812796E-5,null,null,null,"HRL",0,0,0,0,1.7415273869078435E-3,0,1.719936220718856E-4,1.9535217098063601E-3,0,1.8066301513839581E-4,2.0889268067375094E-4,0,0,0,1.5102449582050537E-3,0,0,0,0]
[null,null,"HRL",0,0,0,0,0,0,0,0,0,0,0,0,0,0,0,0,0,0,0,0,0,0,0,0,0,0,0,2.5905831794986317E-3,6.0096228690587183E-3,3.3749496669404584E-2,4.0341300043746961E-2,0,0,0,0,0,1.8066301513839581E-4,0,0,0,0,0,null,null,null,"HRN",0,0,0,0,1.0736526303006082E-3,0,1.1184850358256487E-4,1.195778859088528E-3,0,0,1.0125607919705801E-3,3.7101081614523469E-3,0,0,0,0,0,0,0]
[null,null,"HRN",0,0,0,0,0,0,0,0,0,0,0,0,0,0,0,0,0,0,0,0,0,0,0,0,0,0,0,1.1792550992547239E-2,2.3574062284951527E-2,1.8097936066523442E-2,8.1183931135669542E-3,7.0613697757545654E-5,6.4822214951076136E-4,5.6583873350342536E-4,6.3638136049530938E-5,1.2546632831845372E-4,2.0889268067375094E-4,1.0125607919705801E-3,2.555362307358066E-4,4.052012908540501E-4,1.1846777591330697E-4,2.1044862784638191E-4,null,null,null,"HUSE",0,0,0,0,1.0720648442617371E-3,6.4676118415208197E-5,2.1267876819464773E-4,9.6596772168213601E-4,1.0383984724331058E-4,0,2.555362307358066E-4,7.9056912685409406E-3,0,0,0,0,0,0,0]
[null,null,"HUSE",0,0,0,0,0,0,0,0,0,0,0,0,0,0,0,0,0,0,0,0,0,0,0,0,0,0,0,4.527898083329044E-2,7.2144920191386921E-2,8.9443246325563677E-2,5.1337283310158376E-2,0,4.4067318003425298E-3,0,0,7.284999286404837E-4,0,3.7101081614523469E-3,7.9056912685409406E-3,0,0,0,null,null,null,"HUPR",0,0,0,0,3.2841617933190956E-3,1.3074923767733649E-4,3.3409252192578604E-4,3.6365133818522205E-3,2.1118289573205997E-4,0,4.052012908540501E-4,0,5.7387165927116016E-3,0,0,0,0,0,0]
[null,null,"HUPR",0,0,0,0,0,0,0,0,0,0,0,0,0,0,0,0,0,0,0,0,0,0,0,0,0,0,0,3.7724873996679169E-2,0.14020922257675955,0.23662880536157163,0.18882139586304864,0,0,0,0,0,0,0,0,5.7387165927116016E-3,8.7144041691802215E-4,1.2344587260635577E-4,null,null,null,"HUPU",0,0,0,0,8.345394180674662E-4,3.8663300424837892E-5,9.7996010975976585E-5,8.9064953723213083E-4,6.2241256664259971E-5,0,1.1846777591330697E-4,0,8.7144041691802215E-4,6.4299466090143656E-3,0,0,0,0,0]
[null,null,"HUPU",0,0,0,0,0,0,0,0,0,0,0,0,0,0,0,0,0,0,0,0,0,0,0,0,0,0,0,4.9748216702160203E-2,0.18091098294536498,0.33191910810050285,0.45224744323608218,0,0,0,0,0,0,0,0,0,6.4299466090143656E-3,4.5824291059362913E-4,null,null,null,"HUEM",0,0,0,0,8.9425732728277123E-6,5.5756421969797218E-5,1.6190699104844949E-4,0,9.5859786429812796E-5,0,2.1044862784638191E-4,0,1.2344587260635577E-4,4.5824291059362913E-4,5.568358531708022E-5,0,0,0,0]
[null,null,"HUEM",0,0,0,0,0,0,0,0,0,0,0,0,0,0,0,0,0,0,0,0,0,0,0,0,0,0,0,8.9734095938006947E-4,2.7382212551680775E-3,3.831269521953188E-2,2.7338831489857492E-2,0,0,0,0,0,1.5102449582050537E-3,0,0,0,0,5.568358531708022E-5]
[null,null,"KAP-AGR",3.8318894091527708E-2,5.0300255517102101E-3,2.2286056260523258E-2,0.1368390128978659,3.6325188820827498E-2,5.4639459926516303E-2,7.601688310594999E-3,3.3614212896365361E-2,5.382406511626029E-2,8.6212375401814364E-3,0.10350818747556717,5.0936881555182036E-2,0.13395595615952841,0,0,0,0,0,0,0,0,0,0,0,0,0,0,0,0,0,0,0,0,0,0,0,0,0,0,0,0,0]
[null,null,"KAP-MIN",0,0,0,0,0,0,0,0,0,0,0,0,0,0.17453514194120548,0,0,0,0,0,0,0,0,0,0,0,0,0,0,0,0,0,0,0,0,0,0,0,0,0,0,0,0]
[null,null,"KAP-OTH",0,0,0,0,0,0,0,0,0,0,0,0,0,4.724106855363349E-2,3.149914280101411E-2,4.6915221085864323E-2,0.10865005219257763,4.9890138356257427E-2,4.071657334618365E-2,0.25020433611214182,2.331860576230264E-2,3.0048676511353876E-2,0.14109345260590761,0.12188145584208615,7.0074952189241785E-2,0.15805694124531972,7.4565589479124714E-2,0,0,0,0,0,0,0,0,0,0,0,0,0,0,0]
[null,null,"LAND",4.0906117243312987E-2,4.4031104966337602E-2,5.5250607245028525E-2,2.7227787316301242E-2,2.1877683173676454E-2,2.6035599803691255E-2,3.16047904365966E-2,3.5974998232830166E-2,8.3417360298986588E-3,1.6804129359492197E-2,0,0,0,0,0,0,0,0,0,0,0,0,0,0,0,0,0,0,0,0,0,0,0,0,0,0,0,0,0,0,0,0]
[null,null,"ENTR-MIN",0,0,0,0,0,0,0,0,0,0,0,0,0,0,0,0,0,0,0,0,0,0,0,0,0,0,0,0,0,0,0,0,0,0,0,0,0,0,0,0,0,0]
[null,null,"ENTR-OTH",0,0,0,0,0,0,0,0,0,0,0,0,0,0,0,0,0,0,0,0,0,0,0,0,0,0,0,0,0,0,0,0,0,0,0,0,0,0,0,0,0,0]
[null,null,"DIRTAX",0,0,0,0,0,0,0,0,0,0,0,0,0,0,0,0,0,0,0,0,0,0,0,0,0,0,0,0,0,0,0,0,0,0,0,0,3.2749169383102239E-2,0,5.4567456801817987E-2,0.14233750025831926,5.2137379507843279E-2,6.0486643400037059E-2]
[null,null,"VATTAX",1.4179228807245606E-3,0,1.3325794000833252E-3,1.4138549213306929E-3,1.4194220899538942E-3,2.6405572979408477E-3,3.0450417165110819E-3,2.0716242946430146E-3,6.0677957266695671E-4,3.8782460005110895E-4,2.7298056950517103E-3,5.9565844852571949E-4,3.215173787754134E-3,8.7016367195450785E-3,1.787536449390242E-3,7.0700114445458352E-3,4.2971949961605489E-3,6.1372629120780694E-3,7.0608385843591148E-3,3.1595096689969243E-3,8.9886269914776773E-3,2.7988758271069369E-3,1.7479410083624065E-3,8.8753531376309681E-3,3.0776913001430693E-3,6.2958736534227122E-4,1.6969196631086184E-4,0,0,0,0,0,0,0,0,0,0,0,0,0,0,0]
[null,null,"INDTAX",4.7288349260540558E-4,6.42586598924086E-4,2.5790562499810726E-4,3.0242671421906145E-4,3.3683935187997955E-4,6.1971602449413575E-4,7.1779493588532129E-4,3.4645407445357476E-4,3.1912395131424584E-4,5.4100407553131231E-4,7.1805381656192459E-4,2.8629096155677683E-4,1.4614649971562697E-3,3.167072901066549E-3,2.0562291504527336E-2,0,4.5664449113460378E-5,1.5209762005367507E-2,1.8527468019573272E-2,0,1.0953254635409705E-4,1.1343430795232568E-3,0,0,0,0,1.1995317547614293E-4,2.1913519145940131E-4,1.6283366878352889E-4,9.4994690782648468E-5,7.0437999488342801E-5,8.6387441159835589E-5,4.3045038204005403E-4,3.0173818822793228E-4,4.0134910735412607E-5,5.744516740284649E-4,8.0111684480639806E-4,1.0946848883830514E-3,7.1326204449632694E-5,1.1426268208783309E-4,2.6499059437999767E-3,2.456297807275433E-2]
[null,null,"TARIFFS",0,0,0,1.4641094165947343E-2,1.1354364088355759E-2,2.6678536870411097E-3,2.239151234786536E-2,1.3205449558752852E-2,1.2848762861981704E-2,1.2904539102773726E-3,4.033100004726654E-4,6.3591589606575916E-4,0,1.7569866632323077E-3,6.3671213635166438E-3,1.9612781007645772E-2,1.3791650804439164E-2,7.9133622456451058E-2,3.7403051166343508E-2,0,6.532220203978932E-2,0,0,0,0,0,0,0,0,0,3.4100472441160336E-3,2.9119948548638769E-3,1.853072364477287E-3,9.412680460325373E-3,1.529782959249221E-3,2.3128923118628568E-2,1.9108994030298256E-3,6.1485274873281537E-4,1.5843136286565053E-4,0,1.4700796437330723E-3,7.605935476801811E-3]
[null,null,"GOV",0,0,0,0,0,0,0,0,0,0,0,0,0,0,0,0,0,0,0,0,0,0,0,0,0,0,0,0,0,0,0,0,0,0,0,0,0,0,0,0,0,0]
[null,null,"ROW",0,0,0,8.2238127475578501E-2,0.1242485863801846,2.2137653116729009E-2,0.12384953170054307,0.22860308938967941,0.1043044985853617,2.7169532279635797E-2,5.4908281761726378E-3,6.5753049251517891E-3,0,1.801214439550005E-2,4.6466149853027848E-2,9.4104957856662022E-2,0.19174872840303642,0.43345778835402921,0.29461313611284945,0,0.407019995347564,0,3.7369854392303045E-2,0,0,0.12279061274391728,0,0,0,0,1.9154026111764585E-2,3.1865390386261773E-2,1.5376657799586023E-2,5.2062408690732503E-2,2.6482484297421036E-2,0.18775743272888556,4.0232543448681726E-2,8.3708581314193113E-3,1.6381639883417819E-3,0,1.5070852482791039E-2,5.5506800869637607E-2]
[null,null,"S-I",0,0,0,0,0,0,0,0,0,0,0,0,0,0,0,0,0,0,0,0,0,0,0,0,0,0,0,0,0,0,0,9.385832315920834E-4,7.0222025880397427E-4,1.7214394932881817E-3,1.4608606088068307E-3,3.2677919118066442E-4,3.0980420180502979E-3,2.0755184187213065E-3,8.2633626088516841E-3,1.2752297610910878E-2,6.2010934212535654E-3,6.540543770270483E-3]
[null,null,"CMMD",0.17718651371806479,0.29056203723681706,9.810140579027303E-2,7.8321661955653515E-2,0.16797821668961485,7.5553164548282301E-2,0.10001571438147112,0.13543613842189017,0.11582143409177391,0.22390949514611422,0.19613336246685503,0.14636111354769288,0.19677785109484569,1.898097299267925E-2,0.19329517658258358,0.11263837770764144,9.9565603210357317E-2,0.14111520317676049,0.14611999435491099,0,0.20266042803279816,0,0,0,0,0,0,8.2108598026346319E-2,7.3629426153153807E-2,3.6133809444669922E-2,1.8241844801985305E-2,4.3080501816126153E-2,5.2478695497167882E-2,4.2043429039472821E-2,1.5689575406162354E-2,0.20848894740865204,0.33156435669635997,0.29900854650175901,3.6464241314542248E-2,1.5384812558171129E-2,1.5881476279080663E-2,0.23090350523052347]
[null,null,"CMME",0,0,0,0,9.269730863089698E-2,7.9521984900314854E-2,9.7018995254550724E-2,3.6812443916514961E-3,1.9461819699645132E-2,1.942158254219409E-3,1.2386346063003885E-3,7.3410049773958328E-4,0,0.10143618229476507,1.6890918559245183E-3,2.0745610313347039E-3,2.5838060221745609E-3,2.5840499445667119E-3,1.3888259944155211E-2,0,1.404572230416162E-3,0,0,0,0,0,0,0,0,0,0,2.3773597860026908E-2,5.5235410136224176E-2,4.078370351790768E-2,4.2645310287430107E-4,3.5033017296443293E-2,2.875940798055786E-3,1.8883188898535606E-3,1.8289296282225298E-4,0,8.4872167700577913E-2,2.0177287249724535E-3]
[null,null,"CMMI",0,0,0,0,3.7110511513361734E-2,6.6665445718754133E-3,0,7.9781976547642991E-2,3.283912968549707E-2,1.0844485989317256E-2,2.1899036696549053E-3,2.6345180451529402E-3,0,2.5304621618111346E-3,8.8198549019277844E-3,1.848784314913833E-2,4.598112323155791E-2,9.3632870721632677E-2,5.2995926955342956E-2,0,7.9670674444525608E-2,0,0,0,0,0,0,0,0,0,0,9.5175403701472441E-3,4.6305348650508785E-3,0,9.2423289063194754E-3,5.9113372543120442E-2,1.6058474958394655E-2,3.3385442690966839E-3,6.5636082848378433E-4,0,2.1172505125745963E-3,1.0535883245951817E-2]
[null,null,"TOTAL",1,1,1,1,1,1,1,1,1,1,1,1,1,1,1,1,1,1,1,1,1,1,1,1,1,1,1,1,1,1,1,1,1,1,1,1,1,1,1,1,1,1]
[]
[null,"Type 1 Inverse"]
[null,null,null,"MAIZE","DRSTAP","GRNDNUT","SUGAR","COTTON","TOBAC","COFFEE","WHEAT","HORTI","OTHERCROP","LIVEST","FISH","FOREST","MINING","FOODMFG","TEXTILES","FURNIMFG","INDCHEMMFG","OTHERMFG","ELECWATER","EQUIPMACHIN","CONSTR","TRADETRANS","TOURISM","OTHER","FIRE","PUBLIC"]
[null,null,"MAIZE",1.3399626214614324,3.7876404724049267E-7,2.4641733359371707E-7,3.0224006751617692E-7,3.7636043748719627E-7,3.1564335887926132E-7,1.9242060553808903E-7,7.3997342489597267E-7,1.3879651754508078E-7,1.3879956554540013E-7,1.1948607502499127E-2,5.7788992392535205E-6,3.6654756811005031E-6,2.7811765311244455E-6,3.2303676217323274E-2,5.910531354039772E-6,2.9169450785493079E-5,2.0706687159359446E-7,2.0565436966365825E-5,5.0758510476885242E-6,2.1772832906964578E-7,1.1345840573088293E-5,1.3725217663127404E-5,2.6058154452529179E-3,7.9277336850809954E-6,4.1684273214480144E-6,1.0639264064405077E-3]
[null,null,"DRSTAP",7.69443300191028E-7,1.1562969558579017,2.8216720847175879E-7,3.4567184102111347E-7,4.1425303013767036E-7,3.5723470687171708E-7,2.0837363568888579E-7,8.051107737284848E-7,1.5401281200692267E-7,1.5764925990448232E-7,1.0082439535050541E-2,6.4193882918261577E-6,4.2223838059297415E-6,3.0371150802580907E-6,3.7500399558369445E-2,6.777152309574178E-6,3.3669837050604603E-5,2.3230135006508287E-7,2.2098552260405451E-5,5.5059075671873011E-6,2.4066763114116257E-7,1.2513959116960078E-5,1.5704890666249376E-5,3.0249983277722287E-3,9.0832547177343986E-6,4.7640079241426225E-6,1.234578481533256E-3]
[null,null,"GRNDNUT",3.9449792050816254E-6,1.4800084603335304E-6,1.7545275623692937,1.2393525748251353E-6,4.8468959835811811E-6,2.0410140818361797E-6,3.1705952614396231E-6,1.1409948192270015E-5,1.5275970628367628E-6,7.3379923061893929E-7,7.0417952083758808E-3,6.1907081547396469E-5,6.6737115457809237E-6,4.0432204096114394E-5,2.6173687260416752E-2,1.9122119723082696E-5,3.6306974150965468E-5,1.769986311794011E-6,3.7363581931759943E-4,8.1733788755550252E-5,2.5948850841495945E-6,1.4009374994315558E-4,5.63800932578989E-5,2.1146828315677059E-3,2.9186059019805785E-5,1.8114054634298204E-5,1.045141910223184E-3]
[null,null,"SUGAR",4.3700760871846475E-7,2.4619878909497391E-7,1.6025770450193554E-7,1.9433966124579392,2.3527623940568083E-7,2.0289251327874665E-7,1.183464255647753E-7,4.5726505629876528E-7,8.7472034223239234E-8,8.9537365612241241E-8,5.7263514935630136E-3,3.6459106553397618E-6,2.3981154292497184E-6,1.7249385345182224E-6,2.1298463360355992E-2,3.8491037923035346E-6,1.9122884001682877E-5,1.3193624204513751E-7,1.2550938421404451E-5,3.1270965634037747E-6,1.3668789624242068E-7,7.1073402652874546E-6,8.9196393204524304E-6,1.7180567889393537E-3,5.1588615075241237E-6,2.7057324566066329E-6,7.0118251709538079E-4]
[null,null,"COTTON",6.8696621081398273E-3,5.1697272370268893E-3,3.6224017954679427E-3,4.7582039630467784E-5,1.3963820031626326,4.0812528845912193E-3,1.4679913177977388E-5,1.8153495716760908E-3,9.2108349195151127E-4,4.2131747360547777E-5,1.1557428622454519E-3,1.4071054871253198E-3,1.7202660388993302E-4,1.1157451590799602E-3,4.0495691752763735E-3,0.20308883012895684,1.2177715790222222E-3,8.4610479503967922E-5,2.9044070466138923E-4,8.3365027190266327E-4,1.4587201090572239E-4,6.0485371803660438E-3,5.4028938044942713E-3,8.9721930458123685E-4,1.0604451620688758E-3,8.5682996436198394E-3,4.307244109029806E-3]
[null,null,"TOBAC",1.7427742276083227E-5,1.1671242101715592E-5,8.0098100297244662E-6,9.2680249508404965E-6,4.0258118695633652E-6,1.6889701299508997,1.5802560370378317E-6,8.7460440835182831E-6,2.799552231042734E-6,1.1331977495459174E-5,4.7584846792513369E-3,1.5844663419681664E-4,4.1036179440045051E-4,6.2973378450186711E-5,1.7684257298081416E-2,3.741423914491687E-4,3.6587249647892341E-3,4.0452862350220214E-6,1.495040046899714E-4,4.8470552895065975E-5,2.8911057445757696E-6,2.496719295083566E-4,1.3690909035134029E-4,1.4418674063636095E-3,2.5141218161371469E-4,7.5944361581704224E-5,8.5085657564296145E-4]
[null,null,"COFFEE",2.2946066867874066E-7,1.292722086448239E-7,8.4146910264952551E-8,1.0308503792862178E-7,1.2353707839679065E-7,1.0653327502323727E-7,1.4881024433260688,2.4009729690846758E-7,4.5929157898220565E-8,4.7013606571673528E-8,3.0067495773259639E-3,1.9143673479062216E-6,1.2591844146103878E-6,9.057177533384085E-7,1.1183236966579723E-2,2.0210584721531577E-6,1.0040900118329546E-5,6.9276089749140009E-8,6.5901523572247974E-6,1.641952346243677E-6,7.1771052600327274E-8,3.7318687758840594E-6,4.6834571344105838E-6,9.0210433812388873E-4,2.7087762032539739E-6,1.4207056499071351E-6,3.6817164284707417E-4]
[null,null,"WHEAT",1.2861420549637519E-6,7.2457918402100769E-7,4.7164893534995369E-7,5.7779837948244217E-7,6.9243340389597289E-7,5.9712597391685118E-7,3.4830129255610708E-7,1.3806979461890705,2.5743593384483566E-7,2.6351433958386132E-7,1.6853028026156413E-2,1.0730154187072373E-5,7.0578109961525516E-6,5.0766072425541514E-6,6.2682774595592544E-2,1.1328164916211596E-5,5.6279901850868332E-5,3.8829701378825968E-7,3.6938234966586225E-5,9.2032502864664211E-6,4.0228144374290615E-7,2.091736855779186E-5,2.6251083542421285E-5,5.0563538139548198E-3,1.5182867776645478E-5,7.963148083684927E-6,2.0636261370512946E-3]
[null,null,"HORTI",6.6009517358158477E-6,2.2965905095971442E-6,1.4302960518235721E-6,1.9441428356898446E-6,8.7696607658608776E-6,3.4658212696721108E-6,5.814438251998987E-6,2.0855694762708284E-5,1.2245053350283606,1.2098202890894482E-6,9.7069658915807579E-4,1.1060942122147534E-4,7.5400320321604534E-6,7.3675174791351289E-5,3.577043353964682E-3,2.8213308322504093E-5,2.7742319815181648E-5,3.1018462180387495E-6,6.8824912925246197E-4,1.4972150088311467E-4,4.6715533778957704E-6,2.5280074508283681E-4,8.8488796390014262E-5,2.9498530074908454E-4,4.4609941262736095E-5,2.8775374809406251E-5,4.6516538898830855E-4]
[null,null,"OTHERCROP",5.2161595905979878E-6,1.8567180538732811E-6,1.1594316583357246E-6,1.5664027891208561E-6,6.7761574105390728E-6,2.7269142688436302E-6,4.4759490393918725E-6,1.6069284501379478E-5,2.1194203438101144E-6,1.2944600951612564,3.2879736803233498E-3,8.5767953761266004E-5,6.8037070167334194E-6,5.6815423306591782E-5,1.2203849739422287E-2,2.3176638556235818E-5,2.9618646724238886E-5,2.4184321692875623E-6,5.2916452681068529E-4,1.1529095233455471E-4,3.6146812597320222E-6,1.9547937289236982E-4,7.1288097775562724E-5,9.8933227642636172E-4,3.6233638227490548E-5,2.3095286527257129E-5,6.6613163294882783E-4]
[null,null,"LIVEST",7.3998428016858286E-6,2.915659402303703E-6,1.8450798500107926E-6,2.407252289250858E-6,8.5988683869287388E-6,3.8170757593182456E-6,5.5795862067689552E-6,2.0146251681642632E-5,2.7414435244253978E-6,1.4845878059730624E-6,1.334823567045698,1.1173868072936645E-4,1.8752912722825483E-5,7.1871826399763565E-5,6.5382609894786017E-2,4.1097328954638326E-5,1.2550974417832741E-4,3.2133180211201532E-6,6.5580555306119154E-4,1.4398941161471206E-4,4.6223211797394679E-6,2.5029719746129787E-4,1.0676928829875428E-4,5.2800994265151157E-3,5.7499702345227224E-5,3.438372582764795E-5,2.3273324331200113E-3]
[null,null,"FISH",5.9753806657288092E-6,3.4157233831847197E-6,2.2055792459611339E-6,2.1820033622925865E-6,2.9462839832775038E-6,2.5326095112395058E-6,1.3508926880899388E-6,5.2375256204572703E-6,1.0760794979949107E-6,1.032792793897329E-6,6.1714875979826958E-2,1.6400542122499058,2.6020817352358242E-5,1.9108204945848565E-5,0.2295398237527502,4.2453440189216873E-5,2.0685814622617462E-4,1.7765795822637935E-6,1.3623005496452513E-4,3.5463547883606948E-5,1.7389092269214338E-6,7.9105004097228805E-5,1.4079591904429245E-4,3.2437999836540041E-2,5.6217666024714506E-5,3.4192389099890587E-5,7.5652770445904134E-3]
[null,null,"FOREST",4.6929258622427724E-4,3.0302896363928973E-4,2.0324872090952625E-4,1.8475358249807745E-4,1.2630832578040569E-4,2.2973005731804689E-4,4.1657777684321174E-5,2.1249109496726854E-4,6.9694671782995023E-5,2.2600217242546829E-4,6.5428616818884405E-4,3.7981215335228108E-3,1.694592903440445,1.1827963941530687E-2,1.9531212605001687E-3,7.2765853623831967E-3,7.0166492242523526E-2,1.1775088946142521E-4,3.3348618289368529E-3,1.2821550753673164E-3,5.1554791748137656E-4,5.9679088301994917E-3,7.2558117880297066E-3,4.9489203118726602E-4,4.8779082230880283E-3,1.9875281389623604E-3,5.7925645478188997E-3]
[null,null,"MINING",1.2091524935405086E-3,4.1020480745694029E-4,2.5587740103677378E-4,3.6576412472205086E-4,1.4738302842360119E-3,6.6229329234642896E-4,9.182614820357765E-4,3.2974366983356254E-3,4.7605014976698787E-4,3.0038286615284343E-4,4.3748779216198821E-3,1.7616582784151694E-2,1.1908711980824897E-3,1.7824603091170808,1.0657141711780069E-2,4.9577841267702295E-3,4.4201879707366871E-3,7.0431598733510946E-4,0.10509816516770565,2.7159222604463459E-2,1.9836778631483333E-3,0.16052570531934343,1.5857444753406159E-2,2.1707994901565778E-3,7.9571752693642413E-3,6.3906169527846732E-3,4.5950049765482413E-2]
[null,null,"FOODMFG",3.2339004136922348E-5,1.821895889272013E-5,1.1859231888570077E-5,1.4528274005406306E-5,1.7410679191083753E-5,1.501425077131552E-5,8.7577549442505408E-6,3.3838075704632433E-5,6.4730188220423631E-6,6.6258554294618925E-6,0.42375579039198819,2.6980106847942852E-4,1.7746296229200444E-4,1.2764719261366167E-4,1.5761077861790074,2.8483756570686918E-4,1.4151127177255004E-3,9.7634150806203348E-6,9.2878211141980607E-4,2.3140830201338647E-4,1.0115042287281081E-5,5.2595035339469184E-4,6.6006231271318022E-4,0.12713793649476499,3.8176095863152635E-4,2.0022693280834361E-4,5.1888214000625106E-2]
[null,null,"TEXTILES",6.2107991813010216E-2,4.6739040379885619E-2,3.2749810626189306E-2,4.301720521177424E-4,3.8154529280042572E-3,3.6898240796028603E-2,1.3271195723849104E-4,1.6412388042479867E-2,8.3274303579663374E-3,3.8090353067883582E-4,1.0068270736186843E-2,1.2721276600606785E-2,1.5551182127599645E-3,1.0087240789063711E-2,3.5195835686780731E-2,1.8361082892969214,1.1008496172193811E-2,7.6494725463499579E-4,2.625014872423326E-3,7.5367520978729431E-3,1.3188071447684951E-3,5.4683828913162716E-2,4.884650251701219E-2,7.9974619066705659E-3,9.5870500049693701E-3,7.7465076002451658E-2,3.8894805232121618E-2]
[null,null,"FURNIMFG",7.946426334569108E-3,5.339541414341193E-3,3.6678011555227453E-3,4.2397643549625906E-3,1.7839532830545713E-3,4.5658558283551906E-3,6.9025799534054371E-4,3.8963470904578379E-3,1.2698513486937896E-3,5.24184052978139E-3,1.27990370228843E-2,7.2371858049840782E-2,0.19014610845069158,2.865749779193957E-2,4.0925770927468026E-2,0.17272382455253799,1.696183273161568,1.8327733361745118E-3,6.4782513641138476E-2,2.1365456338341877E-2,1.2935473483769099E-3,0.11351574525701132,6.0315073633156434E-2,1.0449963190469097E-2,0.11507556057518972,3.4319629443877425E-2,0.12643817470670499]
[null,null,"INDCHEMMFG",0.17826829523795512,7.1108754773975564E-3,1.0298733273708414E-2,0.1433609030600704,7.0861908778547575E-2,0.17886709510591062,3.9651802465458637E-2,2.8852113511054496E-2,6.8246204091842774E-2,6.3020127451564573E-2,5.5891556812775979E-3,4.280645702254479E-3,2.9870164817827127E-4,1.5464181935146547E-2,1.2278512143344359E-2,1.6176516651532254E-2,1.2897190677395064E-3,1.1400732050911644,1.5929446179583022E-2,1.3595705445090641E-2,1.4398761186007443E-3,1.2910815533658162E-2,1.2576351786207791E-2,1.2984286094113728E-3,1.9325771547809348E-3,2.6133091283466817E-3,5.5142601360904262E-3]
[null,null,"OTHERMFG",1.3117097446594459E-2,4.5260294334197185E-3,2.8163302420591745E-3,3.7724666678852045E-3,1.7568780073115103E-2,6.8923074188079747E-3,1.1665491710115499E-2,4.1830883284116722E-2,5.4736585802888666E-3,2.4035997316536398E-3,3.3795032482536624E-2,0.22131250334099467,1.425430205995927E-2,0.14769927523950718,5.862221062925433E-2,5.5468407541590624E-2,4.9397153219840305E-2,6.1905765455392853E-3,1.3815201827438583,0.30031719099583831,9.3533534823360617E-3,0.50575625490684928,0.17431486294582244,1.7677125408331849E-2,8.594303021875517E-2,5.6211351420901404E-2,0.21747801652716955]
[null,null,"ELECWATER",4.8982541482676653E-2,6.514553116825408E-3,3.4835682711165804E-3,6.8998601872316033E-3,5.0360036698022449E-2,2.9528602131153572E-2,1.069384789069578E-2,4.6579618724033871E-2,1.9545024642654653E-2,1.6979176641906592E-3,1.1195101953930271E-2,1.9230415667788235E-2,7.6386121304267782E-3,4.4431788301005033E-2,2.138649096858921E-2,0.16914546428563551,1.1284789371222312E-2,1.7426249304900422E-2,8.7205678692195657E-2,2.0392018375920524,1.6594770418768264E-3,8.1056240486092002E-2,3.5306682300994631E-2,8.3547142162773164E-3,0.13517177058247484,2.8150214851040807E-2,7.5354687252701197E-2]
[null,null,"EQUIPMACHIN",7.487317696688452E-3,2.2601364728362995E-3,1.4108756782283737E-3,2.4695653482252806E-3,5.7182887669093747E-3,4.3316409412102715E-3,1.3160545819749419E-3,5.6415179535363883E-3,2.3051679771671271E-3,2.1966851528505481E-3,6.1492203070081353E-2,0.28895943143154768,5.9963210441419867E-3,0.18066068527494472,5.7904698487045894E-2,4.2137891482674238E-2,1.1189149662063217E-2,3.5000689068541979E-3,2.6673634613130038E-2,0.20263641478591837,1.2051078548601091,0.27477211386117628,6.2429863406369801E-2,1.5391596174319443E-2,5.8253742544046534E-2,3.2257999264549926E-2,0.15083556969475426]
[null,null,"CONSTR",3.2417332518484719E-3,1.1334878362314065E-3,7.0185589036092218E-4,1.0194798606799501E-3,2.2442965067142142E-3,1.9655188867257964E-3,4.800856339705102E-4,2.067411681835597E-3,8.7584708258395619E-4,1.9063407153675006E-3,4.3751835252654036E-3,9.6266317602186277E-3,1.8396658121697074E-3,1.9549060356165698E-2,9.9800077940212627E-3,1.2564287613305216E-2,1.1717215940589108E-2,1.3033726340527872E-3,5.826926998147278E-3,7.4390924113100942E-2,7.4751619691052883E-4,2.168775044915896,4.5797697601140552E-2,6.4711802102070948E-3,2.4558678067719591E-2,3.7273298203091776E-2,0.51815234157184364]
[null,null,"TRADETRANS",5.9984818870421085E-2,3.6213730735565434E-2,2.2727050837931195E-2,3.0178260071371697E-3,1.9144903551878558E-2,1.6312985375960976E-2,3.3159742562771377E-3,1.3745601839369282E-2,6.2232439811736205E-3,3.1736609148595085E-3,3.5720121992559688E-2,0.27562010276720389,7.9654980258007432E-3,2.1131767842543305E-2,8.1963413525463449E-2,4.491299382016211E-2,3.5332767984670256E-2,1.6747745610036547E-2,1.3054732650322641E-2,7.6755596712527685E-2,1.2439069277016979E-2,0.10692449616192011,2.1239014309876336,2.0573582543697361E-2,2.6199626992656603E-2,0.23797549437603011,0.11221805343589537]
[null,null,"TOURISM",1.8182510796760316E-4,1.0952498829080942E-4,6.8734148587456029E-5,9.5050756579525503E-6,5.8995974790255154E-5,4.9705701178199581E-5,1.0838928376200931E-5,4.4460534830248588E-5,1.9160714020913253E-5,9.7444442215861142E-6,1.1060832384967862E-4,8.4712253851505933E-4,2.5258148888055945E-5,7.4441518282089379E-5,2.5303422719200893E-4,1.3947026390596595E-4,1.1015390487236991E-4,5.0952801295639321E-5,1.3876562553649782E-4,2.5315367799756049E-4,3.8184249715333988E-5,3.6025624160010504E-4,6.4169012928342491E-3,2.0000634669189461,8.9000664217926491E-5,7.2291998518354827E-4,1.2188400551998747E-3]
[null,null,"OTHER",2.5115351410937826E-3,1.479767605892154E-3,9.313609567348154E-4,7.1857877999503092E-2,8.3601582267114536E-4,1.3260082609646362E-3,1.5628889301909319E-4,6.3322196074075572E-4,2.8744100761977546E-4,1.475498170517911E-4,1.2073157078126352E-2,1.4573732659840355E-2,5.1581662734592271E-4,9.7447467069643658E-3,6.0635559285393591E-3,3.21805006626724E-3,1.9944828879536456E-3,8.8579941375094414E-4,1.4247774835356903E-3,5.2769756567328354E-3,5.927676690911718E-4,1.1493434553051638E-2,8.4512133062310743E-2,3.6817234721022748E-3,2.0592258206110374,5.447126135468592E-2,1.1210313037275186E-2]
[null,null,"FIRE",2.0205663853692026E-2,1.0383168471903587E-2,6.6559864247172909E-3,4.8236250345716153E-3,7.9724731106016397E-3,3.8762825144662089E-2,1.8168785019214014E-3,6.8948356893480233E-3,3.4057705679043887E-3,1.7728803745303762E-3,3.0052011965835772E-2,0.24727169991862019,1.1856979436051769E-2,4.2184513815289627E-2,9.563792528735876E-2,8.3513029672073344E-2,3.7646050974799318E-2,1.5126620213912085E-2,2.4675440139611513E-2,0.12669772115258138,7.5075562374665242E-3,0.3619478084192429,0.49297171968435438,4.1679515573767784E-2,8.3876659941675563E-2,2.3881158736158805,0.26181518361263656]
[null,null,"PUBLIC",1.1659914557997153E-4,6.610888153857495E-5,4.1665356234854652E-5,3.212435533915712E-4,4.4129941648762698E-5,7.6854944805006237E-5,1.0494569042023744E-5,4.1221100856770124E-5,1.5569077987867991E-5,1.0135578192501768E-5,1.1705504078773239E-3,7.685715258048915E-4,5.2055738433869048E-4,2.9900956924695853E-4,4.0794515573413332E-3,2.0906339103030856E-4,2.1095774815572282E-4,4.5898277157523359E-5,4.0475851905094661E-4,4.4670403689041707E-4,3.039650390208743E-5,3.7360431746629994E-3,3.664024853276656E-3,4.1200241913690532E-4,9.054563359688815E-3,3.4594827499167201E-3,2.0371199842493937]
[]
[null,null,"Total",1.7527442001454785,1.2840992153951851,1.8441906172149152,2.1862514656543572,1.5784465934263869,2.0135522238364083,1.5590493667967857,1.5527813902378076,1.341983953529704,1.3770131131993195,2.1085957009016822,2.8312867735775984,1.9392409591308597,2.3158542763175358,2.5365883474866044,2.652483417059492,1.9488168183753667,1.2048820044869593,1.7365454543743253,2.89858009267087,1.2442048215562191,3.8702232484839012,3.1808993723032009,2.3206179037562324,2.6237605910127493,2.9704181092780479,3.682539692105224]
[]
[null,"Type 2 Inverse"]
[null,null,null,"MAIZE","DRSTAP","GRNDNUT","SUGAR","COTTON","TOBAC","COFFEE","WHEAT","HORTI","OTHERCROP","LIVEST","FISH","FOREST","MINING","FOODMFG","TEXTILES","FURNIMFG","INDCHEMMFG","OTHERMFG","ELECWATER","EQUIPMACHIN","CONSTR","TRADETRANS","TOURISM","OTHER","FIRE","PUBLIC","LNONE","LPRIM","LSECD","LPOST","HRRS","HRRM","HRRN","HRS","HRM","HRL","HRN","HUSE","HUPR","HUPU","HUEM"]
[null,null,"MAIZE",1.3887453020367206,6.7799038558939248E-2,7.6755055586383944E-2,1.9952127444034344E-2,2.428341132495767E-2,4.4344825442384252E-2,3.8447794007123767E-2,1.8655178434876137E-2,5.4477715440593835E-2,6.5143720829430693E-2,4.5280227937141156E-2,1.0991132944017297E-2,2.9518164585678724E-2,2.5180015884624066E-3,5.1316959881482049E-2,8.8965515049611778E-3,8.1920497867871526E-3,3.0382609081027142E-3,1.2336597953086996E-3,3.4899102300409396E-3,2.7631557495578943E-3,7.8883476198622002E-3,1.749865445303787E-2,5.1299669117346541E-2,4.7416335593151983E-2,9.8136034198894901E-3,2.0714970059860366E-2,0.13294562480181882,0.10129867149600875,4.5249348495582611E-2,3.8111823096331196E-2,0.17185637416162775,0.13586885042079722,0.11079430390305704,0.22023654683829638,4.1408270912283808E-2,1.2018727536691183E-2,7.5611731495863782E-2,5.2578108932684629E-2,3.3561430235911863E-2,2.2288833287433744E-2,8.3837125497373214E-3]
[null,null,"DRSTAP",2.9307383010218711E-2,1.1970713358921456,4.6172691878137218E-2,1.1964796819684882E-2,1.4584418345845231E-2,2.6727496074990972E-2,2.3059598189242005E-2,1.1188532250568792E-2,3.276763035311079E-2,3.9152480004317286E-2,3.0105755812178801E-2,6.5924829989800178E-3,1.7719324221075989E-2,1.5055647958864239E-3,4.8917952637921182E-2,5.3274358856481019E-3,4.9151152142922769E-3,1.8109702736834887E-3,7.4711863151233793E-4,2.0867152691699999E-3,1.6529805900565866E-3,4.7266764950940872E-3,1.0464247265470725E-2,3.214519662562839E-2,2.8419900810138208E-2,5.8657942724937382E-3,1.2997838379951023E-2,8.0211719216999419E-2,6.0479588167098218E-2,2.661995952633199E-2,2.3094215119923336E-2,0.13107614814844909,3.3871560341253833E-2,0.10933352403320681,0.11160026903469243,7.6114396810902469E-3,6.0037107425513258E-3,3.8658431406327652E-2,2.8438971552075712E-2,2.2825842087364299E-2,1.3012680594680305E-2,4.6065891083670058E-3]
[null,null,"GRNDNUT",1.3511884136025288E-2,1.8255565739107377E-2,1.7753120420196087,5.8159942360166373E-3,6.7276772074765382E-3,1.1602362997112502E-2,1.1077423547775514E-2,5.3958611374242699E-3,1.507967349725416E-2,1.779539347992266E-2,1.6390012526288248E-2,3.3263073589299683E-3,8.7342177328755422E-3,8.6801676970241031E-4,3.1589696314066162E-2,2.7836551980951261E-3,2.7607215048685982E-3,1.0369538293010128E-3,7.7304369060550893E-4,1.2774425011436569E-3,8.9021995082803191E-4,2.7446856653443965E-3,5.8158152711539112E-3,1.7766383409410995E-2,1.5150960806300082E-2,3.5106776225313904E-3,8.1446609110793575E-3,3.4042426004873581E-2,2.999137327237977E-2,1.955821789531216E-2,1.591216827893268E-2,4.9432110178539414E-2,6.1626432343407971E-2,1.5328315304863669E-2,4.0997159437061247E-2,8.7400212706846194E-3,1.653484801045892E-2,8.278317949555131E-3,8.090310959735357E-2,1.451529929208047E-2,9.3846068993087214E-3,2.7219599339840359E-3]
[null,null,"SUGAR",1.8453768576624462E-3,2.3861473705844931E-3,2.7550216053052017E-3,1.9442526070380106,9.159213167847821E-4,1.4556299764072081E-3,1.6004602675142084E-3,7.8100293408459216E-4,2.0766637718577104E-3,2.376973623250156E-3,7.0323604680058551E-3,4.9820604278941443E-4,1.3242536519846072E-3,1.4299756643337754E-4,2.2073863232882417E-2,4.4645590293915558E-4,4.9583684772579043E-4,1.8099061298461146E-4,8.0938063789361099E-5,2.1695695527996985E-4,1.4879647677591535E-4,4.6049093443393174E-4,9.9560874005117836E-4,4.3401515564646213E-3,2.5456975400063192E-3,6.5614242401295958E-4,2.0682093413617194E-3,4.120840334852981E-3,4.4168443826693776E-3,4.0148942835407696E-3,3.7127171374151139E-3,5.2295326774843371E-3,3.6213715813502912E-3,7.6684339018350499E-3,5.2002566738338059E-3,1.3328243577764754E-3,6.7477737757536637E-4,3.5184882761005315E-3,5.9259053447475096E-3,6.4938180882726498E-3,3.5411903797870374E-3,1.2151751427731563E-3]
[null,null,"COTTON",1.1845361893677062E-2,1.1584421937705017E-2,1.1037697634337753E-2,2.3678427738565259E-3,1.3988508974127609,7.983003905593063E-3,4.3470391833071685E-3,3.9288395368739498E-3,6.5260317093047641E-3,6.4421225108626879E-3,4.6837873638151239E-3,2.7501836340143122E-3,3.7622974724144395E-3,1.5020797371794758E-3,6.1478013367094343E-3,0.20429479792429392,2.5236118069835193E-3,5.7952287725863527E-4,4.7749787841459113E-4,1.4198858726243379E-3,5.521102213181181E-4,7.2903592721735013E-3,8.1019158373983099E-3,8.0628545513151822E-3,8.0067420585608444E-3,1.0364571758511203E-2,8.0727548073177766E-3,1.1017618737806758E-2,1.19678246386232E-2,1.1057845762997644E-2,1.034287918774186E-2,1.3028062758083776E-2,1.1776632009417176E-2,1.3312441499904416E-2,1.4550361839362601E-2,5.0328734544158281E-3,1.9617127386963242E-3,9.819769238775854E-3,1.5583596821752249E-2,1.7576639732116709E-2,1.0410470643675495E-2,2.9121727007675644E-3]
[null,null,"TOBAC",1.5819666160986588E-3,2.034088444162899E-3,2.3434321799342115E-3,7.3565320014483068E-4,7.8053308416593521E-4,1.6902032762028438,1.3594056024685338E-3,6.7102532620366901E-4,1.7638258899758683E-3,2.026556005506842E-3,5.8662147396743433E-3,5.7822156382280568E-4,1.5322944559727307E-3,1.8299775636110025E-4,1.8342074424663554E-2,7.4999327592796517E-4,4.063788049997576E-3,1.577433048458916E-4,2.0760598010439378E-4,2.3019867818242735E-4,1.2916667238661267E-4,6.3488427500393331E-4,9.7520437811107123E-4,3.6691425168753973E-3,2.4093184992843358E-3,6.3142043648945845E-4,2.013046657926852E-3,3.4901138887469688E-3,3.7484205653344591E-3,3.4164865509294998E-3,3.1584650599293111E-3,4.4107421963498336E-3,3.0607529235196851E-3,6.4730092763067744E-3,4.4082908892454278E-3,1.1297932138686518E-3,5.8620988796326029E-4,3.0084534748915049E-3,5.0649969114997728E-3,5.5299004278609619E-3,3.0113929339631107E-3,1.0382694108389515E-3]
[null,null,"COFFEE",9.6895660230093025E-4,1.2529003163720019E-3,1.4465860254277035E-3,4.4956228165133439E-4,4.8092507684905337E-4,7.6431124097520674E-4,1.4889427388266541,4.100831471118888E-4,1.0903989958178776E-3,1.2480834341126752E-3,3.6924989478115322E-3,2.6159428219909165E-4,6.9532914856045881E-4,7.5084086772443968E-5,1.1590378100266365E-2,2.3442170795242955E-4,2.6035028307256898E-4,9.5033189929604402E-5,4.2498349841396343E-5,1.1391812645787931E-4,7.8128935004512205E-5,2.4179111673952754E-4,5.2276674977006898E-4,2.2788941392437811E-3,1.3366757194380944E-3,3.4452232949449321E-4,1.0859598070344213E-3,2.1637398523256818E-3,2.319163431660479E-3,2.1081104964678675E-3,1.9494455930975092E-3,2.7458836896955352E-3,1.9014825554814552E-3,4.0264836028687818E-3,2.7305116658683255E-3,6.9982939030182819E-4,3.5430703076723896E-4,1.8474613632927905E-3,3.1115298127650953E-3,3.4097251651586257E-3,1.8593816131657755E-3,6.3805502526649951E-4]
[null,null,"WHEAT",5.4310651268901942E-3,7.0225882145383851E-3,8.1082092810871691E-3,2.5198259906004101E-3,2.6956165088502979E-3,4.2840144925927479E-3,4.7102595384664438E-3,1.38299514328754,6.1117576850395908E-3,6.9955892744446371E-3,2.0696698096608544E-2,1.46625306032449E-3,3.8973653530915554E-3,4.2085121695426648E-4,6.496482727745384E-2,1.3139490045510531E-3,1.4592803638612064E-3,5.3266724484685548E-4,2.382060303071279E-4,6.3851854918669094E-4,4.3791779043195379E-4,1.3552550227714391E-3,2.9301418220711861E-3,1.2773350693034915E-2,7.492154827741686E-3,1.9310701890149231E-3,6.0868757415797293E-3,1.212790338362223E-2,1.2999062710693421E-2,1.181609720580859E-2,1.0926770045531366E-2,1.5390857665027211E-2,1.0657934082849754E-2,2.2568703931225412E-2,1.5304696466125804E-2,3.9225895023734612E-3,1.985914079580564E-3,1.0355141767577651E-2,1.7440328098553334E-2,1.9111732551074172E-2,1.0421955547715227E-2,3.5763401462284459E-3]
[null,null,"HORTI",5.7960818945372999E-2,7.8365128327796824E-2,8.9479366748354758E-2,2.4956369432144736E-2,2.8800398312116279E-2,5.0182706918215983E-2,4.7454300626386968E-2,2.3095549311731807E-2,1.2896624720109449,7.6321846365899657E-2,4.1176158104173487E-2,1.4159589758348173E-2,3.7770673870875127E-2,3.6429063783053311E-3,2.6895517205405162E-2,1.1922533072460471E-2,1.1874871094486976E-2,4.4485143986298971E-3,2.4152023352847982E-3,5.3434582739687111E-3,3.8410943279511577E-3,1.1602989599654839E-2,2.4975997556019584E-2,6.7863601238069532E-2,6.5934749818389579E-2,1.5342410866889668E-2,3.1951089063603041E-2,0.14760124097540808,0.12599109780216106,8.3471723187839866E-2,7.5701962883823193E-2,0.12603931153343831,7.4386858373116427E-2,8.7066647642301154E-2,0.28638871886363504,2.5815811851821791E-2,7.4032966794808183E-2,6.4761163795117094E-2,0.10831528564789347,9.386595159069766E-2,6.5317416869873204E-2,2.1113293871995505E-2]
[null,null,"OTHERCROP",3.1795160505515743E-2,4.2907416125105895E-2,4.8968142195376735E-2,1.3730802787760822E-2,1.5810134306726877E-2,2.7326830547425341E-2,2.6105878238029231E-2,1.2709633873998804E-2,3.563657731206616E-2,1.3362889853083839,2.5338097816804822E-2,7.8132505722628854E-3,2.0726230930093681E-2,2.0275368655970866E-3,2.5000703700816609E-2,6.5808567718344448E-3,6.5591854843431016E-3,2.4560817371866478E-3,1.4816117708891208E-3,2.977076354454281E-3,2.1216128173112232E-3,6.4491611432631454E-3,1.380562226649899E-2,3.8328002863625109E-2,3.6320638389920466E-2,8.4528745010513714E-3,1.7978862757561623E-2,8.0190248422067553E-2,7.0107772426983822E-2,4.6046915619221342E-2,4.1336230580481206E-2,0.10760568774201963,0.11483566445245574,5.3173166524517666E-2,0.11690632853683086,1.1219508027331893E-2,2.3386096538775693E-2,3.3712621826846895E-2,6.9669934412769141E-2,6.1698419881143912E-2,3.2267642197664162E-2,1.1618349554039415E-2]
[null,null,"LIVEST",6.441750122554922E-2,8.879531530155782E-2,0.10082890272677766,2.6770345756951579E-2,3.2043640199792119E-2,5.7743992312383044E-2,5.1359019234722129E-2,2.4954470789040596E-2,7.2134745235167261E-2,8.5641466922561346E-2,1.3790509894165703,1.495751083365696E-2,3.9934980320986455E-2,3.5893504275385582E-3,9.0746318629221043E-2,1.2230795678810153E-2,1.1648606789592524E-2,4.2838297315413122E-3,2.3545491689655595E-3,5.1018825592650278E-3,3.8459539128664574E-3,1.1352304627173697E-2,2.4593931342838236E-2,7.2974149815432349E-2,6.6103862767610891E-2,1.4253320650280182E-2,3.1187055536579467E-2,0.17219209448136852,0.13547109375903832,6.874164246625028E-2,6.2323895361773775E-2,0.3047453334142553,0.15042840305093116,7.6732831217413131E-2,0.21106665088002699,4.5562759369887247E-2,3.7639000106240834E-2,4.3028103255145028E-2,7.7487725859928955E-2,7.5803337466144469E-2,4.3833798720990601E-2,1.5107171068891343E-2]
[null,null,"FISH",2.5432593539579568E-2,3.3503780029066968E-2,3.8488001368919819E-2,1.1448050651641985E-2,1.2630959744735944E-2,2.0838511048687874E-2,2.1548786332822208E-2,1.0502006289431555E-2,2.8574178660494106E-2,3.3059262616213676E-2,7.9558830030872663E-2,1.6465970923712498,1.7538341982494002E-2,1.8066811230069686E-3,0.24003282642862345,5.7746752646108566E-3,6.1983030520009422E-3,2.2662756771587578E-3,1.001071503950221E-3,2.6998131031826284E-3,1.8980641524756626E-3,5.7925607185853904E-3,1.2615925462999006E-2,6.587830720996829E-2,3.24991345440718E-2,8.068721212551028E-3,2.4265727839355915E-2,5.9971122500883885E-2,5.8778745682556366E-2,4.7369326269454372E-2,4.344070929186826E-2,8.1556776248594892E-2,4.262558201091602E-2,0.10299134059928071,7.8672507533533234E-2,1.5300430111200509E-2,8.9426970677435845E-3,4.5671948241270903E-2,6.8007626880098884E-2,7.205811843338561E-2,3.9424136274914576E-2,1.3535356215080238E-2]
[null,null,"FOREST",1.3997844370359778E-3,1.4855023778265763E-3,1.5750483565495303E-3,6.2826841454651752E-4,5.8784571724866729E-4,9.3815437841964834E-4,8.6584964833630936E-4,6.1491663118022578E-4,1.1189045155556342E-3,1.4147845382005476E-3,1.3182370270525524E-3,4.0567791504104297E-3,1.6952835646923818,1.1904618550592867E-2,2.3507039406254612E-3,7.5122449845331672E-3,7.0426478138126691E-2,2.168542372544758E-4,3.3719901455356764E-3,1.3996551472537488E-3,5.9562465728627966E-4,6.2145567154518596E-3,7.7914940797483142E-3,1.9071901462915932E-3,6.2447736080662843E-3,2.3501007925298819E-3,6.5540182092783091E-3,1.9731863841592127E-3,2.293872429128541E-3,2.3081562942220881E-3,2.1241107189933334E-3,2.0971863738613039E-3,1.6669700673074372E-3,3.003793830423037E-3,2.5656295141330493E-3,6.9254736433794464E-4,7.7191258813060133E-4,2.2018764752460627E-3,3.8834894565736482E-3,3.787638046854593E-3,2.026823133764353E-3,8.6246258776227671E-4]
[null,null,"MINING",6.3392404899008381E-3,6.8665221216172804E-3,7.7760611190915837E-3,2.8480077889613295E-3,4.0156174646839649E-3,4.5023643387420787E-3,5.5130376403476613E-3,5.5423983909367348E-3,6.2831634503855037E-3,6.822184078375761E-3,8.0553926796658563E-3,1.9072873639823219E-2,5.0846162693125993E-3,1.7829003355811648,1.2872446941774725E-2,6.2968214234796508E-3,5.9201131329184638E-3,1.2748561647836318E-3,0.10531150785133057,2.7839092930742208E-2,2.4421618019383846E-3,0.16194811431686723,1.8935189095556148E-2,1.0254575447961755E-2,1.5799508995528937E-2,8.503771989090211E-3,5.0410601633640868E-2,1.0605212483132703E-2,1.2762720544818513E-2,1.355186722845785E-2,1.2793195889420576E-2,1.1476995142684028E-2,1.072868828389221E-2,1.2679584976142105E-2,1.3115659564513363E-2,4.5331786903359348E-3,8.6582322316047112E-3,8.9790653334043749E-3,2.1468903631470141E-2,2.1260545134534629E-2,1.3048987743957815E-2,7.5748132361726454E-3]
[null,null,"FOODMFG",0.13655975009023924,0.17657731387086908,0.20387437956182858,6.3358991193743192E-2,6.7779101923327464E-2,0.10771808748800828,0.11843567521375961,5.7795005424222369E-2,0.1536752151891439,0.17589844730864562,0.52040177271531662,3.6867750028549626E-2,9.7996106876606107E-2,1.0581964250050438E-2,1.6334881593924993,3.3038187445848723E-2,3.6692427202504575E-2,1.339348804296037E-2,5.9894984149003417E-3,1.6055033675290261E-2,1.1011089468503524E-2,3.4076793942661013E-2,7.3676051677199761E-2,0.32117559589174471,0.18838418744936358,4.8555201651501123E-2,0.15304957879899739,0.30494634413164223,0.32685094244047197,0.29710622939834602,0.27474481558384078,0.3869906965402245,0.26798515223579861,0.56747184883667001,0.38482424272047644,9.8630347756009498E-2,4.9934207024229696E-2,0.26037168380249337,0.43852297679846491,0.48054909303961774,0.26205166238956584,8.9924187097033204E-2]
[null,null,"TEXTILES",0.10697020747664188,0.10457512028802465,9.9607709580643272E-2,2.1350540226559103E-2,2.6075635442085795E-2,7.2076874250073752E-2,3.9194803083595499E-2,3.5468375591022144E-2,5.886322695792643E-2,5.8084645890562503E-2,4.1878189521359091E-2,2.483105049418706E-2,3.3926566684262548E-2,1.3570666173588684E-2,5.4114220855272809E-2,1.8469819143351345,2.2782791714702311E-2,5.227383546214227E-3,4.3116360718677979E-3,1.2822641570593948E-2,4.9816884324990597E-3,6.5880893079069136E-2,7.3182529967799004E-2,7.260702765998521E-2,7.2219018736469368E-2,9.3661574892782193E-2,7.2847578758509612E-2,9.9335375365832354E-2,0.10790642571508155,9.970610794846041E-2,9.3262246393676432E-2,0.11743791752403011,0.10623075448352697,0.11984681758452154,0.13120283816630321,4.5413164428129579E-2,1.7690814482892128E-2,8.854576736022142E-2,0.14049598353546514,0.15847715598731066,9.3884738377833246E-2,2.6247913943423237E-2]
[null,null,"FURNIMFG",2.6704385349599607E-2,2.9194539752385149E-2,3.1330430311684462E-2,1.3170047269739232E-2,1.1089619548824437E-2,1.8860922024318542E-2,1.7291669580238211E-2,1.2001789189060563E-2,2.240899085909949E-2,2.9216295893471207E-2,2.6176866339808907E-2,7.7577071168627512E-2,0.20404099391839844,3.019763662276128E-2,4.8933061288416208E-2,0.17746284513220706,1.7014035252298094,3.8238307866667932E-3,6.5528380936718242E-2,2.3724337468250142E-2,2.9026269963547658E-3,0.11846796436404484,7.1076573038127394E-2,3.8830473449975179E-2,0.14253006565838583,4.1592403474619892E-2,0.14170093671359704,3.9837063556172017E-2,4.6241117155387611E-2,4.6310510975502948E-2,4.2413895858298252E-2,4.2001726369574235E-2,3.2056732236697159E-2,6.4023294025194966E-2,5.2122198325791631E-2,1.3335377490814246E-2,1.3373463087671228E-2,4.7282490919756497E-2,7.875032444102209E-2,7.6750751937258596E-2,3.9918140102545421E-2,1.5977995295891691E-2]
[null,null,"INDCHEMMFG",0.19157129660448127,2.5204798526340506E-2,3.090986806351053E-2,0.14902712646830865,7.7476143535865113E-2,0.19048433325918523,5.0459040006062085E-2,3.4104948290004704E-2,8.3155786844912899E-2,8.0591819109284285E-2,1.4783052554054862E-2,7.4537358180310756E-3,8.8161487946787007E-3,1.6253468123476059E-2,1.7591224034671522E-2,1.8838762064208002E-2,3.8946766000799607E-3,1.1410497731606168,1.6310854759021859E-2,1.4731301768923698E-2,2.292157275020191E-3,1.5409851549864196E-2,1.807483979532774E-2,1.6318661840287928E-2,1.6548152352164926E-2,5.9287592128052756E-3,1.2292265766306106E-2,3.4301285421985198E-2,2.8810180565273204E-2,1.7544862547779778E-2,1.5624117735474251E-2,4.0665543272025262E-2,3.2179636491205761E-2,2.7926357629498542E-2,5.6583298253666155E-2,9.1510512296889748E-3,8.9437241686976202E-3,1.873579892462467E-2,2.3699205902046761E-2,1.9857224836730927E-2,1.2412101168340095E-2,4.8888487854534144E-3]
[null,null,"OTHERMFG",6.3498429747186863E-2,6.7788934803052009E-2,7.654985487409606E-2,2.8230611762064813E-2,4.2528719923624954E-2,4.4435853833379835E-2,5.6905914981197049E-2,6.3937896071069686E-2,6.2522158259278815E-2,6.6384965856553235E-2,6.9977429668889896E-2,0.23567814369773848,5.2661910573470722E-2,0.15205811740022815,8.0423232666205574E-2,6.8704598127255004E-2,6.4263085496355288E-2,1.1849554385105567E-2,1.383633709388167,0.3070617239654802,1.3890847713796848E-2,0.51984935631880369,0.20480431356682502,9.7676107582706576E-2,0.16354412625971956,7.719482761660848E-2,0.2617825126846578,0.10345374453398977,0.12574460662242631,0.13515560792083267,0.12733060026286092,0.11147015354307249,0.11267313749010785,0.12316616548467778,0.12653105543888235,4.715395903265019E-2,0.10051239921766865,8.9449940970679612E-2,0.21154498243196421,0.21475804000100596,0.12770134159146651,8.2978617019074927E-2]
[null,null,"ELECWATER",6.9449243067398303E-2,3.1784712759940548E-2,3.3100214879977601E-2,1.708276220143257E-2,6.0489412018325799E-2,4.426815155827455E-2,2.9423122973693649E-2,5.5740757193757096E-2,4.279163569738844E-2,2.7475958203344239E-2,2.6010954611417378E-2,2.5261419808813759E-2,2.376262695705602E-2,4.6315780983333776E-2,3.0385663429812967E-2,0.17478306734089688,1.7743153484877133E-2,1.9884504143025141E-2,8.8119801429185032E-2,2.0421448754706812,3.6123271367125599E-3,8.717208471414338E-2,4.8494890558504714E-2,4.2785449149787762E-2,0.16859191350513561,3.7382893998270904E-2,9.4943537534932204E-2,3.9924508477004177E-2,5.2334020388396456E-2,6.0383808042410392E-2,5.7835308409582308E-2,3.7958344839475272E-2,3.1814006576008781E-2,3.747224620466507E-2,4.8891810124481433E-2,1.4195928553724441E-2,2.4266928618077575E-2,3.0367290376527408E-2,9.5372292650865997E-2,9.6412000871211864E-2,6.3001363306959518E-2,3.6726414849241114E-2]
[null,null,"EQUIPMACHIN",2.2472486056479026E-2,2.1602121886061285E-2,2.3775453391679427E-2,9.4455452036636845E-3,1.3151220158891827E-2,1.6136139618141702E-2,1.4342587733300265E-2,1.1996267733579698E-2,1.9211976215564194E-2,2.1481466323476906E-2,7.2117833191155403E-2,0.29299771285380893,1.6804363887858401E-2,0.18182014537710453,6.4221612398723218E-2,4.575968872608932E-2,1.5111415869452884E-2,4.9852220664499888E-3,2.7235292298620997E-2,0.2043971755702936,1.2063272770653151,0.27850286927525864,7.0532029901172466E-2,3.6892737489634744E-2,7.9129511212956069E-2,3.7655467784882386E-2,0.16215699959891905,3.3389820074221303E-2,3.5787242983432846E-2,3.3165819402864651E-2,3.118968514035891E-2,4.2297319010249038E-2,2.7656496379331302E-2,3.8253180142938319E-2,4.2380003554098974E-2,1.0840014777082588E-2,1.1736541184994296E-2,2.3111891932428852E-2,4.9835234873764525E-2,5.0599157251733029E-2,3.1358433260575011E-2,1.4057733762115514E-2]
[null,null,"CONSTR",1.7635776581624258E-2,1.9130497833085184E-2,2.1719164824674005E-2,8.0537005063163695E-3,9.3716158013540073E-3,1.2605427529642324E-2,1.3468501131096487E-2,8.4160073369884923E-3,1.7201549906574048E-2,2.0143767202576292E-2,1.4737570665273727E-2,1.3768328789193637E-2,1.2918646122817025E-2,2.081561144750587E-2,1.6238273864898969E-2,1.6394783870574491E-2,1.6047283795849989E-2,2.9470257576822922E-3,6.4412699481309404E-3,7.6356099729670363E-2,2.0657348776487875E-3,2.1728811094018385,5.4661087759793878E-2,2.971416537097403E-2,4.7133660883939936E-2,4.3408158524231466E-2,0.5311457428467603,2.9203049901366001E-2,3.610922202279912E-2,3.9408206480433722E-2,3.7916899695320215E-2,2.8544808408761065E-2,2.1406554156122425E-2,2.2879113573820248E-2,3.7480485907736644E-2,1.0604692982414139E-2,1.5081370723175969E-2,2.2198781612684394E-2,6.79842688772863E-2,5.7286466501187856E-2,4.2773758853708363E-2,1.6899871309858667E-2]
[null,null,"TRADETRANS",0.11486830792358479,0.10575578948462927,0.10355672333653591,2.9304914442698188E-2,4.6348163838926724E-2,5.7951540287235648E-2,5.2089210111022945E-2,3.7565840564622498E-2,6.8274715543277825E-2,7.3176220063616099E-2,7.4968853509562311E-2,0.29098735987167462,4.9055210791034157E-2,2.5715438354003903E-2,0.10550942710478299,5.8953915126938414E-2,5.092386944517447E-2,2.2673800885832807E-2,1.5276406023285399E-2,8.3806078974914197E-2,1.7225795276490929E-2,0.12171983772019912,2.1559522558424944,0.10497562947556292,0.1080713653939368,0.25981056747471304,0.15822516873199782,0.11574736126959154,0.135200512677662,0.13870652064443381,0.13051862602851044,0.12776761859799712,0.12325160171730958,0.12381209095547584,0.14636805118868601,5.0777705895760916E-2,7.5035861876447937E-2,8.577017715783819E-2,0.22221851809041623,0.21660008624855429,0.13244931787260014,6.9809653092020627E-2]
[null,null,"TOURISM",3.6476606559636155E-4,3.4102147918934857E-4,3.3793289769600969E-4,9.7304368734630559E-5,1.4966237871697486E-4,1.8813942105427471E-4,1.7366227760064239E-4,1.2398796784815841E-4,2.2605859940701172E-4,2.4292583827317463E-4,2.4152165816406101E-4,8.9848651391394026E-4,1.626030045244306E-4,8.9801395469197337E-5,3.3162454517699771E-4,1.8645943663965852E-4,1.6242820786715152E-4,7.081739540047218E-5,1.4621099912101715E-4,2.7680077562502174E-4,5.4219576472518921E-5,4.0985964124415228E-4,6.5243130447786559E-3,2.0003462122986697,3.6330866198856754E-4,7.9621732165276789E-4,1.3733717419619805E-3,3.8434517914928733E-4,4.5150908866873734E-4,4.6605234885896808E-4,4.3981768577620563E-4,4.2070673192993535E-4,4.0327346746787566E-4,4.0299273843808918E-4,4.8667163511709573E-4,1.6785555313054111E-4,2.3954067725330742E-4,2.8821207804249259E-4,7.39344264872938E-4,7.2637475792556433E-4,4.5187616110117226E-4,2.3409526096312646E-4]
[null,null,"OTHER",1.2061358522373786E-2,1.2905283531463628E-2,1.4464524782428548E-2,7.681882919967091E-2,5.5528399180776698E-3,7.7856732550897357E-3,9.1921846608721495E-3,5.0607366268652651E-3,1.1208593400774475E-2,1.1996556577996904E-2,1.9088135730723658E-2,1.7555128401845962E-2,8.4922020655948914E-3,1.0721245731910382E-2,1.0385020579120585E-2,6.0718358768822346E-3,5.3682896541663418E-3,2.1732807579573393E-3,1.8992319380477618E-3,6.8270123634950452E-3,1.5967347717171911E-3,1.4680887690570779E-2,9.1355665823303164E-2,2.1373884967933129E-2,2.0764214222407005,5.9393133883742684E-2,2.1714703796318048E-2,1.6901497308268492E-2,2.5355562719876636E-2,3.3180266820815839E-2,3.2071809612962889E-2,1.5298541057210603E-2,1.2267900875622455E-2,1.689769858653227E-2,1.7686451718946249E-2,6.4473249511592598E-3,3.9545028213616752E-2,1.5660829661162088E-2,4.439225243649509E-2,5.6917149116138634E-2,3.3297281925159586E-2,2.6694710965857418E-2]
[null,null,"FIRE",5.9594300847904097E-2,5.8830057066763919E-2,6.3370763319327089E-2,2.4508866755401006E-2,2.7487455762455853E-2,6.6768781641508998E-2,3.8022758309932819E-2,2.4605880899298035E-2,4.7964061522744739E-2,5.1321962642551511E-2,5.8564303537077159E-2,0.25893283609163753,4.2943121120950063E-2,4.584602642412406E-2,0.11297105880332732,9.4447619084490703E-2,5.016069042449868E-2,1.9927481694175714E-2,2.6450418013352399E-2,0.13241516447753424,1.129157908963601E-2,0.3737782078788236,0.51858184054773271,0.10841416075101042,0.14836084251327247,2.4060092891974385,0.29961212782372404,7.5395543028540693E-2,0.10225733187328709,0.11934396813788818,0.10950793979008966,7.4982932274657757E-2,6.0907781005052057E-2,8.2061974640852492E-2,8.5657375899609214E-2,2.4581815571566943E-2,2.9299197292513346E-2,5.8317170324127504E-2,0.18568770787768168,0.23589752154979532,9.8980518231949255E-2,5.7375052353460118E-2]
[null,null,"PUBLIC",3.2777848160939656E-2,4.0828844312855224E-2,4.7686257215651881E-2,1.6327593746676857E-2,1.6213290828506598E-2,2.4126773558507539E-2,2.9543861692307421E-2,1.447830608204145E-2,3.7078897127830787E-2,4.1350019887382822E-2,2.4706727411587703E-2,1.0201708172255495E-2,2.5756675302624526E-2,3.1926894385129914E-3,1.8308232948709577E-2,8.9468531072460292E-3,1.0114153245002753E-2,3.7980779249890775E-3,1.8084546939277344E-3,4.9402497067595969E-3,3.0429582924922107E-3,1.3129441470807903E-2,2.3918231727687929E-2,5.3537544088823705E-2,6.0679479077793023E-2,1.750840499822294E-2,2.0669229335862607,6.5890544986306906E-2,8.218480695683511E-2,8.9952132550322306E-2,8.762296441639425E-2,6.4827887912726451E-2,5.5629476982276833E-2,4.9213362474992431E-2,8.5575947589815515E-2,2.6829444325353509E-2,1.4399128348648815E-2,5.468796674662979E-2,0.12774253799745866,0.13654491160996982,0.10225268120480148,4.1647925869063296E-2]
[null,null,"LNONE",0.27746594794834017,0.42998310486905283,0.49181552794125927,8.9581439157293635E-2,0.13430912810871617,0.35098735162023381,0.17823848253882624,8.6117897717344183E-2,0.35224432860161847,0.39183596786467978,0.18790754878387217,4.8384461055197184E-2,0.15159970079154828,5.9692765675351204E-3,0.10153653008310931,2.9768260216766047E-2,2.1921534767594886E-2,7.5664765682078297E-3,3.3025075651728526E-3,9.3731561071292765E-3,6.8276144983805617E-3,2.1899948431557653E-2,4.3652572419167181E-2,0.10410720094208833,0.15114259983537517,2.4479832518601172E-2,4.7398268302410999E-2,1.13889185360147,0.11679763774474705,7.1508742566242178E-2,6.3860667331441717E-2,0.18182293475786329,0.11900294467478605,0.11733543114771582,0.21379960934728942,2.8867462107625034E-2,3.9015512848199735E-2,6.4923853151984207E-2,0.10642435685033494,8.2492018227983091E-2,4.9840055874319368E-2,1.7924564545184155E-2]
[null,null,"LPRIM",0.20569845191497901,0.24462921261091372,0.2600851054686939,0.10559746386506834,0.10901130454234408,6.36363130666492E-2,0.20270527235561314,9.8219092275950479E-2,0.15765262938892297,0.2546465343452734,0.13545364755128131,5.5571730390818842E-2,0.11521860389423674,1.6130933692771233E-2,8.1308947355454728E-2,5.2874616278772851E-2,4.5297138353962998E-2,1.668095947665995E-2,7.0398816297435485E-3,1.7246258744742123E-2,1.8609985661040471E-2,4.3942704710936628E-2,0.10796150020167079,0.35486586119608748,0.26760960541489159,4.3145468557744003E-2,8.1383642516218671E-2,9.1676599144396284E-2,1.0809396482152946,5.503496885163113E-2,4.985561583688429E-2,0.12103642268651722,8.2767903491375805E-2,8.2782567092288373E-2,0.13503194252348688,2.1978574668573427E-2,2.7536035005340288E-2,4.7598912635595673E-2,8.1188983032571327E-2,7.0423071054522085E-2,4.1885063363636815E-2,1.7282440592100257E-2]
[null,null,"LSECD",4.0317362140097866E-2,2.5138040876439206E-2,3.170633624535249E-2,3.1858220255351642E-2,1.9482803268937077E-2,2.0262166084772978E-2,5.4312220445582107E-2,2.7347319878839486E-2,5.8899978320858463E-2,4.4549638914495343E-2,3.6120758300343982E-2,2.3183384106998016E-2,6.6007395834697752E-2,1.1019548857068035E-2,2.4478579177299731E-2,2.6708468855889206E-2,3.6557535790782671E-2,2.1674531950537177E-2,5.5364625112502589E-3,2.1596466306153615E-2,8.0601152963755435E-3,2.9965924369016614E-2,7.6108660771109754E-2,0.1282353098113562,0.11685243682349479,6.5448278124455903E-2,0.1112313149365967,2.6195455154391145E-2,2.6420850532774997E-2,1.0227061808546569,2.1112625431392206E-2,3.0436939577930422E-2,2.2579088677244563E-2,2.3520567629938396E-2,3.7942787490145707E-2,7.741232036637292E-3,1.0470519289449851E-2,1.6216532733090247E-2,3.3109730529810033E-2,3.3705050237765107E-2,2.0215662500689117E-2,9.1870086977968307E-3]
[null,null,"LPOST",2.714125972485271E-2,1.7169118434998087E-2,4.6739252421776484E-2,2.6100676917482017E-2,9.6625548373822073E-3,1.2779936127509309E-2,3.7770207463606313E-2,1.9040372161334026E-2,5.9112573356495376E-2,2.0252954248141653E-2,3.0954689685518316E-2,1.9410893674831078E-2,6.271584131609774E-2,8.3581197053409564E-3,2.4125974149716064E-2,2.0932724798320479E-2,3.7372348467147473E-2,7.0792922128171927E-3,4.2797787386777185E-3,1.5070389649413166E-2,1.0223179923901119E-2,3.8701863722497613E-2,6.2623290253759054E-2,0.18171825603851796,0.21949859565815957,6.1544917843248594E-2,0.17024555699512017,2.4325347218279229E-2,2.58831518682337E-2,2.3992468650609153E-2,1.0225266212431436,2.6811659613290739E-2,2.0006777929835521E-2,2.188351370834965E-2,3.4732523704131539E-2,7.5909348156479924E-3,1.1603908295714465E-2,1.6082674011060064E-2,3.5248074445014488E-2,3.6323084250544778E-2,2.2480841077631871E-2,1.060514226156445E-2]
[null,null,"HRRS",0.12413553312637,0.17582875291099917,0.19844792876135176,4.8949347585299938E-2,6.1774900748289251E-2,0.11724454398156922,9.5110819039863292E-2,4.6076493424091917E-2,0.1388523753180842,0.16727405784852128,8.4112431326414744E-2,2.6567226827771899E-2,7.172872441852346E-2,5.5772827344207146E-3,4.7469978278066968E-2,2.0723550039365071E-2,1.7912839155377135E-2,6.4782014731038012E-3,2.6897105442505367E-3,7.4233813394345557E-3,6.2769188337240779E-3,1.7466320147784539E-2,3.8759214823538064E-2,0.11058693569144713,0.10871918944751573,2.0183265774416329E-2,4.0071582101974285E-2,0.35627422423689326,0.24480742969843153,6.8314388661010722E-2,6.8219541814920612E-2,1.0906376698399689,5.7940671190258426E-2,5.7044883515411482E-2,9.2428398575416432E-2,1.4125955928892302E-2,1.9415809290844112E-2,3.0643507576954974E-2,5.0712319343341805E-2,4.3872777582042208E-2,2.5226826769517235E-2,9.3673639476741129E-3]
[null,null,"HRRM",7.4354677645737249E-3,9.9966649777484071E-3,1.1131521771652527E-2,3.2123849273139765E-3,3.7663595588232936E-3,5.6512480079390307E-3,6.2008767972471087E-3,3.0060312123732147E-3,7.6037865780524908E-3,9.7683118654924433E-3,5.0152234998725653E-3,1.7363320555073745E-3,4.3390527615944571E-3,4.2110411179314142E-4,2.888587413087782E-3,1.4672016867755973E-3,1.2905553790065101E-3,4.8106162087394229E-4,1.959148226921475E-4,5.2906940482987162E-4,4.7209536843017706E-4,1.2479082940444509E-3,2.8845722727296715E-3,8.5733675479414007E-3,7.5925579930109302E-3,1.4164805139720987E-3,2.7532764482535209E-3,1.6070307102486626E-2,2.1499646783335175E-2,5.0517716228153627E-3,3.7287451776277345E-3,4.6484245873163813E-3,1.00537208182009,3.1063205781353635E-3,5.3442753439357791E-3,8.0409186474890459E-4,1.0494207861644969E-3,1.7693302981705548E-3,3.0602201800921064E-3,2.6326744841341115E-3,1.5384519143135814E-3,6.4661188472322768E-4]
[null,null,"HRRN",4.4447223851687015E-3,5.5530521103512309E-3,6.3224422741700453E-3,2.1574470784383815E-3,2.2360438491464238E-3,2.9966573056586531E-3,4.0381696449746122E-3,1.9694526468165552E-3,4.7039022916215111E-3,5.6483442617188007E-3,3.1262656163188749E-3,1.2374400433781791E-3,3.1653423208886557E-3,3.6983309150252113E-4,1.8719819415912117E-3,1.1428319375469474E-3,1.2053422139775443E-3,4.7793910909879541E-4,1.7609723544386935E-4,5.4234103892871757E-4,3.8595338910366305E-4,1.1358950068132262E-3,2.5592080066218939E-3,6.8895619334837371E-3,6.3021618563853642E-3,1.6149369262019224E-3,3.2661179016002834E-3,7.9585701953380009E-3,1.3202935320880769E-2,1.0821477441855725E-2,7.3218303145410517E-3,2.9099807114592335E-3,2.4849555726163272E-3,1.0056213439622259,3.3635021176688343E-3,6.3588516931038373E-4,8.7504053654462448E-4,1.2703111948464258E-3,2.2628662215940462E-3,2.1393151881251506E-3,1.1822820644299507E-3,6.1034739125393638E-4]
[null,null,"HRS",0.14562513130615276,0.20490645080215036,0.2314099718711331,5.8132554004978229E-2,7.2470841988157259E-2,0.13617159426065858,0.11264254389785783,5.4605424469570854E-2,0.16303594303889854,0.19571959814621159,9.8983569111747896E-2,3.1748656255432599E-2,8.5671870142126377E-2,6.9015792642912153E-3,5.6049661010680561E-2,2.5114777602296273E-2,2.2215789650765348E-2,8.2653512738728088E-3,3.3321492811601481E-3,9.3945157053228756E-3,7.6400739401977519E-3,2.1496574692620972E-2,4.7946024652533878E-2,0.13434278017024504,0.13151808799666376,2.5828895792890973E-2,5.0913394295067041E-2,0.41203697381348786,0.2893293455258496,0.11070293785557093,8.455434619254322E-2,9.3679169529497175E-2,6.7852501205433929E-2,6.6902664671748421E-2,1.1202631286350886,1.6602373632441131E-2,2.2861811584920358E-2,3.6126754869084871E-2,5.9832085899476986E-2,5.2037072718845667E-2,2.9976251183956616E-2,1.1219977814495302E-2]
[null,null,"HRM",1.2290967267099412E-2,1.5938383323719933E-2,1.7801403111795702E-2,5.6084963928394521E-3,6.2198997730631604E-3,8.9036811085523634E-3,1.0692454627161238E-2,5.2007613543350846E-3,1.2742915560987301E-2,1.5950062259362224E-2,8.4402241533763807E-3,3.1305067358683701E-3,7.90349661263068E-3,8.5898117347923389E-4,4.9370694658150468E-3,2.783341931910808E-3,2.6782479810033861E-3,1.1233957327041635E-3,4.054522042260021E-4,1.2027027232119521E-3,8.9469082045722718E-4,2.5041207848323635E-3,5.8924658049287672E-3,1.5992995591857687E-2,1.4144116381121202E-2,3.3577112148565017E-3,6.3062847031869797E-3,2.4540671755464288E-2,3.5366380194044755E-2,2.4486725146492083E-2,7.0166127529315576E-3,7.7584367840692163E-3,5.2502314020606167E-3,5.2461057526523311E-3,8.960629321384592E-3,1.0020282678829089,1.8167627184280735E-3,3.039317760450987E-3,5.3519073506810826E-3,4.707885436617521E-3,2.7578340480366118E-3,1.1817195788089224E-3]
[null,null,"HRL",4.4113700912103747E-3,4.1258024745112762E-3,5.7937442424097077E-3,2.9953443884570682E-3,2.0507611215023528E-3,2.491539445313334E-3,5.0375433280381021E-3,2.5048794669501519E-3,6.2335999409527491E-3,4.8668509580335143E-3,3.7693062837585211E-3,2.0251632154394661E-3,5.8439627376278922E-3,8.2163481679699724E-4,2.5515487953604475E-3,2.1411111895043105E-3,3.0710106511016907E-3,1.1371456977750365E-3,4.1044126704448906E-4,1.465019104570312E-3,8.1411478218961701E-4,2.8939539130066528E-3,5.8578857588052723E-3,1.4063476960323182E-2,1.4801023913140872E-2,5.0152595502743948E-3,1.1235832043970136E-2,5.3677051690714881E-3,8.736042308130413E-3,3.6006199962895002E-2,4.2435310022729406E-2,3.307856893639606E-3,2.3752523421679411E-3,2.4785236916200102E-3,4.0477931481673638E-3,7.7449729359283708E-4,1.0012689378844215,1.6506361599972002E-3,3.3036030441717448E-3,3.2403528661089087E-3,1.9703590054595539E-3,8.8833866099546324E-4]
[null,null,"HRN",9.1484640028582677E-3,1.1526474179875117E-2,1.2994555512640322E-2,4.3730016921875595E-3,4.6231503382359162E-3,6.1630372300652894E-3,8.2415062960020189E-3,4.0154281900681406E-3,9.5023985836063911E-3,1.1691581955249903E-2,6.3698689958208848E-3,2.480676388895015E-3,6.2681221368896672E-3,7.2515531148170393E-4,3.7869235351259542E-3,2.2723560074398622E-3,2.3157762425840972E-3,9.4167398792811732E-4,3.4332764700271143E-4,1.0414547432999188E-3,7.5552874455555544E-4,2.173707679264027E-3,4.9959593839285429E-3,1.352076740407963E-2,1.2113152911650216E-2,3.0245730502409455E-3,5.9452258088195896E-3,1.6405139438912218E-2,2.7757346698869634E-2,2.1079961527532561E-2,1.0813157375335712E-2,5.8882633171841465E-3,4.6129060781455377E-3,4.542858857385655E-3,6.7970792752173595E-3,1.1960344234158659E-3,1.6157559775248195E-3,1.0033476761684668,4.35065301546784E-3,3.9807191927341869E-3,2.2640236114801681E-3,1.0907168374903824E-3]
[null,null,"HUSE",3.2737421850994014E-2,4.0667730383336577E-2,4.6747916681396703E-2,1.6025072852706761E-2,1.635220318131321E-2,2.3189370814539451E-2,2.9792717645074018E-2,1.4555860602492908E-2,3.5988545078054782E-2,4.1564421621821446E-2,2.3336818480947572E-2,9.3632756901241686E-3,2.4542452812125765E-2,2.8766689873799319E-3,1.4032818586480946E-2,8.7118297896579787E-3,9.5406178988868481E-3,3.8852687184600504E-3,1.3857248806340013E-3,4.4159505221178152E-3,2.9261853091196274E-3,8.9148142758701115E-3,1.9981238340565151E-2,5.1622044066768055E-2,4.834125387888371E-2,1.3360134331212636E-2,2.6958304511177124E-2,6.241667433887578E-2,8.788298609272778E-2,0.10082964277688988,6.1417706553425551E-2,2.1279951887285972E-2,1.9007871118459616E-2,1.4662649891709361E-2,2.4851057924551487E-2,4.7503437812667724E-3,5.3395535890340901E-3,1.2481016350641494E-2,1.0235727170012792,1.3834409585208474E-2,8.3237547106784857E-3,3.4597097891909587E-3]
[null,null,"HUPR",5.4352836443449584E-2,6.0127682440106973E-2,7.1851297364976349E-2,3.0869856711835082E-2,2.6973507590438751E-2,2.9577406006006692E-2,5.5518647195139291E-2,2.7278037404088625E-2,6.0923048356252112E-2,6.5305359227348564E-2,4.0759495507764719E-2,1.8902066810588231E-2,4.968986268342402E-2,6.7206283740022365E-3,2.5760652294470301E-2,1.8943751333122108E-2,2.305154396724423E-2,9.1545731145078729E-3,3.253126199931837E-3,1.0805222917543423E-2,6.7529588535676019E-3,2.1541802638229468E-2,4.6954209037554054E-2,0.11919500717093545,0.11314068547646966,3.4329762070138999E-2,7.2195710090779033E-2,6.7077017909383196E-2,0.16826389507589132,0.25875509075195136,0.20909608568568702,3.6350076150508698E-2,2.539354256971273E-2,2.5913784969735249E-2,4.2836660034871611E-2,7.4888106581884467E-3,1.0073173581264555E-2,1.611120090351674E-2,3.0102810645571181E-2,1.0337920762779014,1.7784308207499665E-2,7.4528657426298243E-3]
[null,null,"HUPU",7.7170841003124685E-2,8.228572594618995E-2,0.10385027036806858,4.6236933071134585E-2,3.7481221091210493E-2,4.17477740461841E-2,8.1171083921706175E-2,3.9999254180192879E-2,9.292780029106032E-2,9.008850288901904E-2,6.0230014763564321E-2,2.9122107091358842E-2,7.9169531982340363E-2,1.072202453071905E-2,3.9048719962764343E-2,2.9569279244644656E-2,3.8570183080200743E-2,1.3879710479508199E-2,5.244948499034641E-3,1.7684465110643647E-2,1.1076644258530371E-2,3.672550326864138E-2,7.5775712581056476E-2,0.1953849867279096,0.19524646101501375,5.8961490066458802E-2,0.13184606925207124,9.3541811226297136E-2,0.22327736302318851,0.36619310096120261,0.48476945804205762,5.3515492313090045E-2,3.7679329806245533E-2,3.8767305673775815E-2,6.3777992551429463E-2,1.1488857751359636E-2,1.5748058594478635E-2,2.4656048127510134E-2,4.7217783150189228E-2,4.4747404811450085E-2,1.0335803670324535,1.2402127931771102E-2]
[null,null,"HUEM",3.1057417551603184E-3,2.4945499735575805E-3,3.6550020212929965E-3,2.308322844954316E-3,1.4327967500519137E-3,1.6187453182358489E-3,3.8362550028763764E-3,1.9184035858783254E-3,4.6301287293090193E-3,3.3169326932817439E-3,2.7755149723438493E-3,1.6176227003047725E-3,4.704117464845857E-3,7.014963165486777E-4,1.9151311655092136E-3,1.7703765235673658E-3,2.5708198727516507E-3,1.0781925868447435E-3,3.5200064687004835E-4,1.2973454422408935E-3,6.4664501071186385E-4,2.3506170968535336E-3,4.9718929143405541E-3,1.0967976052489392E-2,1.1369153918803937E-2,4.3379904911793471E-3,9.1987459677840104E-3,2.9499209907654002E-3,4.7979890789440153E-3,4.0110033561260063E-2,2.9023088897619093E-2,2.3988315552960328E-3,1.7491353334349331E-3,1.8352182752420867E-3,2.9711141488474495E-3,5.9140351997831757E-4,2.3410928076001668E-3,1.2521383662828733E-3,2.5551080431044826E-3,2.5562554814786867E-3,1.5515926593477288E-3,1.0007623865002633]
[]
[null,null,"Total",3.5205920706410296,3.5842195326651378,4.501681811822996,2.9992236497063565,2.4547683538495897,3.435725542025081,3.0802433828374438,2.2945951488817098,3.3429405580862661,3.6605736188878688,3.3592538491139998,3.3006137529636206,3.199426908697272,2.4484398817011575,3.2775059851780619,3.0698601947100892,2.3975373853917858,1.3740865687374835,1.8008351897833206,3.0994807589280455,1.3840547287191336,4.2976229936017152,4.10778154479378,4.7842556466532953,5.0260485904446162,3.5850348993221952,4.9722484550041006,4.0570918459976486,4.1128223806800985,3.7113543756939831,3.5511587275306895,3.7998373082169623,3.0155948798050924,3.3702234625395571,4.1366825124024018,1.6577952852797824,1.7646407104374049,2.4214104860742847,3.7331583618906707,3.683358499236502,2.5709602053109499,1.6824480623313032]
[null,null,null,null,null,null,null,null,null,null,null,null,null,null,null,null,null,null,null,null,null,null,null,null,null,null,null,null,null,null,null,null,null,null,null,null,"General","General","Energy","Energy"]
[null,null,null,"MAIZE","DRSTAP","GRNDNUT","SUGAR","COTTON","TOBAC","COFFEE","WHEAT","HORTI","OTHERCROP","LIVEST","FISH","FOREST","MINING","FOODMFG","TEXTILES","FURNIMFG","INDCHEMMFG","OTHERMFG","ELECWATER","EQUIPMACHIN","CONSTR","TRADETRANS","TOURISM","OTHER","FIRE","PUBLIC",null,null,"Jobs - Transpose",null,null,"Nominal","Real (ZMK)","Real (ZMW)","Real (ZMK)","Real (ZMW)","There can be currency years entered in the general sheet and the energy sheet - this is why there are two calculations here."]
[null,null,"Earnings (K2008)",66425717405.509621,58969559886.463974,40105109896.533691,6602878051.4381704,14807122368.250643,5793482679.5336781,5108991359.2876911,6445437648.1415396,153455745502.05951,83253954898.775345,58550167309.90284,7557939567.1315956,5551856911.971736,360604341188,62292503260.917755,13901954033.697008,21505446598.964943,4441985229.7971754,4512050175.9965591,29184080688,30488172120.626568,76423043827,668151759150,47333626910,178215504107.50232,66697035901,377916747552.49768,null,null,null,"Earnings","Paid Jobs (excludes unpaid family labor)","Avg Earnings (2008 ZMK)","Avg Earnings","Avg Earnings","Average Earnings","Average Earnings"]
[null,null,"Paid Jobs (excludes unpaid family labor)",206416.05135255706,183246.25125919105,124625.50270049779,20518.258111086438,46012.716919409715,18003.084723772714,15876.047169210209,20029.016479363403,476859.41953064594,258709.32676240377,181943.00060565511,23486.084949368702,17252.239436838259,101998,75104.143596291062,16761.155794984425,25928.451497700116,5355.5641383350621,5440.0392758710168,15864,36758.645696818319,85319,533865,44053,133436.28755002664,21233,282959.71244997333,null,null,"MAIZE",797108608866.11548,206416.05135255706,3861660,5765.9605502120667,"placeholder",5765.9605502120667,"placeholder"]
[null,null,"Avg Earnings (K2008)",321805,321805,321805,321804.99999999994,321805,321805,321805,321805,321805,321805,321805,321805,321805,3535406,829415,829415.00000000012,829415,829415,829415,1839642,829415,895733,1251536.9225365964,1074470,1335585,3141197,1335585.0000000002,null,null,"DRSTAP",707634718637.56775,183246.25125919105,3861660,5765.9605502120667,null,5765.9605502120667]
[null,null,"Avg Earnings ($2008)",{"$f":"D154/3400","v":94.648529411764713},{"$f":"E154/3400","v":94.648529411764713},94.648529411764713,94.648529411764684,94.648529411764713,94.648529411764713,94.648529411764713,94.648529411764713,94.648529411764713,94.648529411764713,94.648529411764713,94.648529411764713,94.648529411764713,1039.825294117647,243.94558823529411,243.94558823529414,243.94558823529411,243.94558823529411,243.94558823529411,541.07117647058828,243.94558823529411,263.45088235294116,368.09909486370481,316.0205882352941,392.81911764705882,923.88147058823529,392.81911764705887]
[null,null,"Avg Earnings ($2014)",{"$f":"D155*'Default-Data'!$F$19/'Default-Data'!$F$13","v":103.27241247823075},{"$f":"E155*'Default-Data'!$F$19/'Default-Data'!$F$13","v":103.27241247823075},{"$f":"F155*'Default-Data'!$F$19/'Default-Data'!$F$13","v":103.27241247823075},{"$f":"G155*'Default-Data'!$F$19/'Default-Data'!$F$13","v":103.27241247823073},{"$f":"H155*'Default-Data'!$F$19/'Default-Data'!$F$13","v":103.27241247823075},{"$f":"I155*'Default-Data'!$F$19/'Default-Data'!$F$13","v":103.27241247823075},{"$f":"J155*'Default-Data'!$F$19/'Default-Data'!$F$13","v":103.27241247823075},{"$f":"K155*'Default-Data'!$F$19/'Default-Data'!$F$13","v":103.27241247823075},{"$f":"L155*'Default-Data'!$F$19/'Default-Data'!$F$13","v":103.27241247823075},{"$f":"M155*'Default-Data'!$F$19/'Default-Data'!$F$13","v":103.27241247823075},{"$f":"N155*'Default-Data'!$F$19/'Default-Data'!$F$13","v":103.27241247823075},{"$f":"O155*'Default-Data'!$F$19/'Default-Data'!$F$13","v":103.27241247823075},{"$f":"P155*'Default-Data'!$F$19/'Default-Data'!$F$13","v":103.27241247823075},{"$f":"Q155*'Default-Data'!$F$19/'Default-Data'!$F$13","v":1134.5687814359997},{"$f":"R155*'Default-Data'!$F$19/'Default-Data'!$F$13","v":266.1726449111473},{"$f":"S155*'Default-Data'!$F$19/'Default-Data'!$F$13","v":266.17264491114736},{"$f":"T155*'Default-Data'!$F$19/'Default-Data'!$F$13","v":266.1726449111473},{"$f":"U155*'Default-Data'!$F$19/'Default-Data'!$F$13","v":266.1726449111473},{"$f":"V155*'Default-Data'!$F$19/'Default-Data'!$F$13","v":266.1726449111473},{"$f":"W155*'Default-Data'!$F$19/'Default-Data'!$F$13","v":590.37077558234773},{"$f":"X155*'Default-Data'!$F$19/'Default-Data'!$F$13","v":266.1726449111473},{"$f":"Y155*'Default-Data'!$F$19/'Default-Data'!$F$13","v":287.45516025656241},{"$f":"Z155*'Default-Data'!$F$19/'Default-Data'!$F$13","v":401.63837509030287},{"$f":"AA155*'Default-Data'!$F$19/'Default-Data'!$F$13","v":344.81474506450985},{"$f":"AB155*'Default-Data'!$F$19/'Default-Data'!$F$13","v":428.61075812910872},{"$f":"AC155*'Default-Data'!$F$19/'Default-Data'!$F$13","v":1008.0607580969252},{"$f":"AD155*'Default-Data'!$F$19/'Default-Data'!$F$13","v":428.61075812910877}]
[null,null,null,null,null,null,null,null,null,null,null,null,null,null,null,null,null,null,null,null,null,null,null,null,null,null,null,null,null,null,null,null,"GRNDNUT",481261318758.4043,124625.50270049779,3861660,5765.9605502120667,null,5765.9605502120667]
[null,null,"Job and earnings figures based on the 2008 Labour Force Survey Report published by the Republic of Zambia Central Statistical Office, Ministry of Labour and Social Security",null,null,null,null,null,null,null,null,null,null,null,null,null,null,null,null,null,null,null,null,null,null,null,null,null,null,null,null,null,"SUGAR",79234536617.258041,20518.258111086438,3861659.9999999995,5765.9605502120658,null,5765.9605502120658]
[null,null,"www.zamstats.gov.zm",null,null,null,null,null,null,null,null,null,null,null,null,null,null,null,null,null,null,null,null,null,null,null,null,null,null,null,null,null,"COTTON",177685468419.00772,46012.716919409715,3861660,5765.9605502120667,null,5765.9605502120667]
[null,null,null,null,null,null,null,null,null,null,null,null,null,null,null,null,null,null,null,null,null,null,null,null,null,null,null,null,null,null,null,null,"TOBAC",69521792154.404144,18003.084723772714,3861660.0000000005,5765.9605502120676,null,5765.9605502120676]
[null,null,null,null,null,null,null,null,null,null,null,null,null,null,null,null,null,null,null,null,null,null,null,null,null,null,null,null,null,null,null,null,"COFFEE",61307896311.452301,15876.047169210209,3861660.0000000005,5765.9605502120676,null,5765.9605502120676]
[null,null,null,null,null,null,null,null,null,null,null,null,null,null,null,null,null,null,null,null,null,null,null,null,null,null,null,null,null,null,null,null,"WHEAT",77345251777.698471,20029.016479363403,3861659.9999999995,5765.9605502120658,null,5765.9605502120658]
[null,null,null,null,null,null,null,null,null,null,null,null,null,null,null,null,null,null,null,null,null,null,null,null,null,null,null,null,null,null,null,null,"HORTI",1841468946024.7144,476859.41953064594,3861660.0000000005,5765.9605502120676,null,5765.9605502120676]
[null,null,null,null,null,null,null,null,null,null,null,null,null,null,null,null,null,null,null,null,null,null,null,null,null,null,null,null,null,null,null,null,"OTHERCROP",999047458785.30408,258709.32676240377,3861659.9999999995,5765.9605502120658,null,5765.9605502120658]
[null,null,null,null,null,null,null,null,null,null,null,null,null,null,null,null,null,null,null,null,null,null,null,null,null,null,null,null,null,null,null,null,"LIVEST",702602007718.83411,181943.00060565511,3861660,5765.9605502120667,null,5765.9605502120667]
[null,null,null,null,null,null,null,null,null,null,null,null,null,null,null,null,null,null,null,null,null,null,null,null,null,null,null,null,null,null,null,null,"FISH",90695274805.579147,23486.084949368702,3861660.0000000005,5765.9605502120676,null,5765.9605502120676]
[null,null,null,null,null,null,null,null,null,null,null,null,null,null,null,null,null,null,null,null,null,null,null,null,null,null,null,null,null,null,null,null,"FOREST",66622282943.660835,17252.239436838259,3861660,5765.9605502120667,null,5765.9605502120667]
[null,null,null,null,null,null,null,null,null,null,null,null,null,null,null,null,null,null,null,null,null,null,null,null,null,null,null,null,null,null,null,null,"MINING",4327252094256,101998,42424872,63345.85082575796,null,63345.85082575796]
[null,null,null,null,null,null,null,null,null,null,null,null,null,null,null,null,null,null,null,null,null,null,null,null,null,null,null,null,null,null,null,null,"FOODMFG",747510039131.01306,75104.143596291062,9952980,14861.093425379162,null,14861.093425379162]
[null,null,null,null,null,null,null,null,null,null,null,null,null,null,null,null,null,null,null,null,null,null,null,null,null,null,null,null,null,null,null,null,"TEXTILES",166823448404.36407,16761.155794984425,9952980,14861.093425379162,null,14861.093425379162]
[null,null,null,null,null,null,null,null,null,null,null,null,null,null,null,null,null,null,null,null,null,null,null,null,null,null,null,null,null,null,null,null,"FURNIMFG",258065359187.57932,25928.451497700116,9952980,14861.093425379162,null,14861.093425379162]
[null,null,null,null,null,null,null,null,null,null,null,null,null,null,null,null,null,null,null,null,null,null,null,null,null,null,null,null,null,null,null,null,"INDCHEMMFG",53303822757.566109,5355.5641383350621,9952980,14861.093425379162,null,14861.093425379162]
[null,null,null,null,null,null,null,null,null,null,null,null,null,null,null,null,null,null,null,null,null,null,null,null,null,null,null,null,null,null,null,null,"OTHERMFG",54144602111.95871,5440.0392758710168,9952980,14861.093425379162,null,14861.093425379162]
[null,null,null,null,null,null,null,null,null,null,null,null,null,null,null,null,null,null,null,null,null,null,null,null,null,null,null,null,null,null,null,null,"ELECWATER",350208968256,15864,22075704,32961.896796237554,null,32961.896796237554]
[null,null,null,null,null,null,null,null,null,null,null,null,null,null,null,null,null,null,null,null,null,null,null,null,null,null,null,null,null,null,null,null,"EQUIPMACHIN",365858065447.5188,36758.645696818319,9952980,14861.093425379162,null,14861.093425379162]
[null,null,null,null,null,null,null,null,null,null,null,null,null,null,null,null,null,null,null,null,null,null,null,null,null,null,null,null,null,null,null,null,"CONSTR",917076525924,85319,10748796,16049.350201280604,null,16049.350201280604]
[null,null,null,null,null,null,null,null,null,null,null,null,null,null,null,null,null,null,null,null,null,null,null,null,null,null,null,null,null,null,null,null,"TRADETRANS",8017821109800,533865,15018443.070439156,22424.488502291231,null,22424.488502291231]
[null,null,null,null,null,null,null,null,null,null,null,null,null,null,null,null,null,null,null,null,null,null,null,null,null,null,null,null,null,null,null,null,"TOURISM",568003522920,44053,12893640,19251.881208764185,null,19251.881208764185]
[null,null,null,null,null,null,null,null,null,null,null,null,null,null,null,null,null,null,null,null,null,null,null,null,null,null,null,null,null,null,null,null,"OTHER",2138586049290.0278,133436.28755002664,16027020,23930.4250134553,null,23930.4250134553]
[null,null,null,null,null,null,null,null,null,null,null,null,null,null,null,null,null,null,null,null,null,null,null,null,null,null,null,null,null,null,null,null,"FIRE",800364430812,21233,37694364,56282.587226564203,null,56282.587226564203]
[null,null,null,null,null,null,null,null,null,null,null,null,null,null,null,null,null,null,null,null,null,null,null,null,null,null,null,null,null,null,null,null,"PUBLIC",4535000970629.9717,282959.71244997333,16027020,23930.4250134553,null,23930.4250134553]
[null,null,null,null,null,null,null,null,null,null,null,null,null,null,null,null,null,null,null,null,null,null,null,null,null,null,null,null,null,null,null,null,null,null,2977053.0000000005]

{"sheet":"Philippines-IO-Data","index":19,"n_rows":133,"n_cols":51,"rows_kept":133,"cut":false,"hidden":false,"merged":[]}
[null,"Source:","OECD STAN"]
[]
[]
[]
[]
[]
[]
[]
[]
[]
[null,"Direct Requirements "]
[null,null,"TTL_C01T05: Agriculture, hunting, forestry and fishing","TTL_C10T14: Mining and quarrying","TTL_C15T16: Food products, beverages and tobacco","TTL_C17T19: Textiles, textile products, leather and footwear","TTL_C20: Wood and products of wood and cork","TTL_C21T22: Pulp, paper, paper products, printing and publishing","TTL_C23: Coke, refined petroleum products and nuclear fuel","TTL_C24: Chemicals and chemical products","TTL_C25: Rubber and plastics products","TTL_C26: Other non-metallic mineral products","TTL_C27: Basic metals","TTL_C28: Fabricated metal products","TTL_C29: Machinery and equipment, nec","TTL_C30T33X: Computer, Electronic and optical equipment","TTL_C31: Electrical machinery and apparatus, nec","TTL_C34: Motor vehicles, trailers and semi-trailers","TTL_C35: Other transport equipment","TTL_C36T37: Manufacturing nec; recycling","TTL_C40T41: Electricity, gas and water supply","TTL_C45: Construction","TTL_C50T52: Wholesale and retail trade; repairs","TTL_C55: Hotels and restaurants","TTL_C60T63: Transport and storage","TTL_C64: Post and telecommunications","TTL_C65T67: Financial intermediation","TTL_C70: Real estate activities","TTL_C71: Renting of machinery and equipment","TTL_C72: Computer and related activities","TTL_C73T74: R&D and other business activities","TTL_C75: Public administration and defence; compulsory social security","TTL_C80: Education","TTL_C85: Health and social work","TTL_C90T93: Other community, social and personal services","TTL_C95: Private households with employed persons","LHH",null,null,"VA % Output","L % Output","Avg Earnings ($2014)"]
[null,"TTL_C01T05: Agriculture, hunting, forestry and fishing",6.1735179333750563E-2,1.9278223318938927E-5,0.35810905571995572,0.12225782133433849,0.44746746118864672,0.15504836201670927,0,6.7528735632183909E-2,3.9127828990553379E-2,0,0,0,0,0,0,0,0,2.6641629012381905E-2,5.0381640930045085E-5,0,0,5.3376064707509469E-2,8.8433060359488231E-4,0,0,0,1.4102383302778171E-4,1.2418246543588043E-4,2.8123744475693049E-4,0,0,1.035078394897688E-2,2.0309510221893988E-3,0,0.11007551299117063,null,{"$f":"B13","v":"TTL_C01T05: Agriculture, hunting, forestry and fishing"},{"$f":"TRANSPOSE(C48:AJ48)","v":0.70575679402441327},{"$f":"TRANSPOSE(C47:AI47)","v":0.20314908946589125},{"$f":"$AY$15","v":1733.4629981939424},null,null,null,{"$f":"1/43.034","v":2.3237440163591579E-2}]
[null,"TTL_C10T14: Mining and quarrying",0,1.1528377544725478E-2,0,0,0,0,0.10591246305322295,1.2156599005461807E-2,0,5.1768019965899824E-2,1.3112824322890033E-2,0,0,0,0,0,0,2.9341001114958042E-4,0,1.3010918929365156E-2,0,0,0,0,0,8.4162883233350957E-5,0,0,0,0,0,0,7.1335056564503674E-4,0,1.3884965130294144E-3,null,{"$f":"B14","v":"TTL_C10T14: Mining and quarrying"},0.57568630475015425,0.15048581122763727,{"$f":"$AY$16","v":3214.6839024772494},null,null,null,null,null,null,2006,2014]
[null,"TTL_C15T16: Food products, beverages and tobacco",2.4502246442073342E-2,0,4.5744919568601605E-2,0,0,1.3177661228685133E-4,0,3.0926469389418766E-2,0,0,0,0,0,0,0,0,0,0,0,0,6.3619437010395419E-4,0.19857689262788414,8.759582428507889E-3,0,0,0,1.1846001974333662E-2,1.0348538786323371E-3,1.6793893129770992E-3,0,0,1.276906723359022E-2,2.1568364161267581E-3,0,0.12025514779993314,null,"TTL_C15T16: Food products, beverages and tobacco",0.33303297196471399,5.8272442954714385E-2,{"$f":"$AY$16","v":3214.6839024772494},null,null,null,"ag",132.84,{"$f":"AU15*365.25","v":48519.81},{"$f":"AV15*$AT$13","v":1127.4761816238322},{"$f":"AW15*'Default-Data'!$F$19/'Default-Data'!$F$11","v":1287.7153700869287},{"$f":"AX15*$AX$22","v":1733.4629981939424}]
[null,"TTL_C17T19: Textiles, textile products, leather and footwear",1.1041402716083304E-3,0,3.1555474524213568E-5,0.14962306822465132,1.3329151638701582E-3,2.6355322457370265E-4,0,2.0379880981495067E-5,8.7045863181026851E-3,1.2602238750648643E-3,0,3.5011553812758213E-5,3.3046418690439597E-3,2.2884080689268509E-5,0,8.4521760511433494E-4,7.4111000332336323E-3,4.5185141717035388E-2,0,8.2133539472412795E-5,1.9509960683187924E-4,2.0030331645062524E-3,7.3258156510818664E-4,0,0,0,1.1563954308278097E-2,2.4836493087176085E-4,3.8248292486942549E-3,6.1508694821326207E-4,2.44778567188657E-5,1.7273452032952433E-4,7.0160126221088318E-3,0,1.5751509087836131E-2,null,"TTL_C17T19: Textiles, textile products, leather and footwear",0.38369770071617038,0.13252921221258954,3214.6839024772494,null,null,null,"industry",246.35,{"$f":"AU16*365.25","v":89979.337499999994},{"$f":"AV16*$AT$13","v":2090.8894711158619},{"$f":"AW16*'Default-Data'!$F$19/'Default-Data'!$F$11","v":2388.0508989830996},{"$f":"AX16*$AX$22","v":3214.6839024772494}]
[null,"TTL_C20: Wood and products of wood and cork",1.2720510041570627E-5,7.7112893275755709E-5,7.0123276720474598E-5,0,1.8896032617218127E-2,0,0,5.9101654846335696E-4,0,2.4710272060095381E-5,0,0,8.4537350138333845E-4,1.6247697289380642E-4,0,2.6124907794443077E-4,9.3054170820870718E-4,2.4705122938794673E-2,0,6.7929268528360226E-3,1.9085831103118625E-5,9.5382531643154863E-5,3.1396352790350856E-5,0,0,1.0286574617409561E-4,2.8204766605556341E-4,0,3.2141422257934913E-5,3.583030766290847E-5,0,0,0,0,3.2630593309309654E-4,null,"TTL_C20: Wood and products of wood and cork",0.14513093931315665,3.7635251685745642E-2,3214.6839024772494,null,null,null,"services",302.62,110531.955,2568.479690477297,{"$f":"AW17*'Default-Data'!$F$19/'Default-Data'!$F$11","v":2933.5172033702684},3948.9654660753608]
[null,"TTL_C21T22: Pulp, paper, paper products, printing and publishing",6.5892242015335844E-4,1.7350400987045035E-4,2.1352537761384514E-3,7.7271013946475682E-4,8.2327113062568603E-3,0.22966027989352447,1.5219135983714058E-3,3.7600880410858396E-3,8.8472844544650248E-4,1.680298500086486E-2,1.2447051785524756E-3,4.0263286884671947E-3,2.5617378829798135E-3,5.1718022357746839E-4,2.7032065622669649E-3,1.7058028030489305E-3,5.649717514124294E-4,7.2765682765095954E-3,7.3893073364066141E-4,2.8505169581602088E-4,4.3133978293048089E-3,8.6798103795270932E-4,2.1872792443944425E-3,2.3986305999847361E-3,3.8853483017997443E-3,6.966816445427384E-4,1.1281906642222536E-3,5.5054226343240337E-3,1.1370028123744476E-2,1.0163863940378368E-2,5.137290178871938E-2,3.9861812383736378E-3,1.0817751519017087E-2,0,2.8645836546017773E-3,null,"TTL_C21T22: Pulp, paper, paper products, printing and publishing",0.2647392140842843,7.8486150278048658E-2,3214.6839024772494,null,null,null,"avg"]
[null,"TTL_C23: Coke, refined petroleum products and nuclear fuel",3.1124543969715014E-2,6.4003701418877235E-2,2.9178295443389478E-2,1.0535243120995099E-2,3.8262505880508071E-2,2.3166328440028465E-2,4.3435707714291311E-2,2.5362761881470613E-2,1.546847798167756E-2,4.3070004200746255E-2,4.8697884001196463E-2,1.4389748617043625E-2,1.7522287119581925E-2,9.0506539126056964E-3,9.150509569972657E-3,3.5145684779936071E-2,2.5357261548687272E-2,1.4611818555249106E-2,0.17860291709700984,4.4584017779495604E-2,4.0557391094127079E-2,5.8479030150418256E-2,0.17765102953873524,4.1027486126102554E-2,4.834748311750578E-2,8.9119141912648286E-3,0.17360033845719924,2.2973756105637882E-2,5.7950984331056651E-2,2.0960729982801456E-2,1.7636295765942733E-2,1.4921605102311985E-2,1.3679546141193058E-2,0,9.7558688805300837E-3,null,"TTL_C23: Coke, refined petroleum products and nuclear fuel",0.16985240863624798,2.3092959069822068E-2,3214.6839024772494]
[null,"TTL_C24: Chemicals and chemical products",1.9480189077661261E-2,1.1354873534855028E-2,1.4936257941461088E-3,1.3267998492272899E-2,6.0373216245883645E-3,1.6735629760430117E-2,1.1495096599917789E-2,0.14347436210972528,0.21396158566169127,3.9289332575551655E-3,2.7692278003454297E-3,5.1817099642882157E-3,1.0195716774259657E-2,2.3890980239596325E-3,1.7399950285856324E-3,4.2414556183919356E-3,6.4805583250249254E-3,1.901296872249281E-2,3.6694628477382842E-3,2.637936032466905E-3,1.2723887402079084E-3,3.5959214429469389E-3,1.3029486407995603E-3,1.853487281806387E-4,8.5486708852171311E-4,6.966816445427384E-4,2.6794528275278519E-3,3.8496564285122941E-3,3.1940538368822817E-2,2.376743741639595E-3,7.0618616633927539E-3,0.12674727610948711,1.0440095337205009E-2,0,1.2682752911771565E-2,null,"TTL_C24: Chemicals and chemical products",0.26987038395695767,6.9984511290454063E-2,3214.6839024772494,null,null,null,null,null,null,null,{"$f":"1.56*40*52","v":3244.8}]
[null,"TTL_C25: Rubber and plastics products",2.1955600331750903E-3,1.9856570018507097E-3,6.2725271026464529E-3,5.4655107425555976E-4,3.1362709738121373E-3,2.2402024088764723E-3,0,7.8666340588570971E-3,2.696994777248209E-2,1.3343546912451506E-3,0,3.1510398431482392E-3,3.1944871400758273E-2,2.89254779912354E-3,2.3924931643052446E-3,7.6592082616179002E-2,3.7886340977068794E-3,4.1194765565401095E-2,0,5.3676683737559185E-3,1.0751684854756825E-3,1.3162789366755372E-3,1.6284241647261975E-2,3.608848766340671E-3,1.1172072532532442E-3,0,3.2435481596389784E-3,7.4509479261528273E-4,1.2936922458818802E-2,2.5499235620103193E-3,1.9092728240715244E-3,1.9000797236247676E-3,3.1471348484339856E-3,0,3.4314553984818447E-3,null,"TTL_C25: Rubber and plastics products",0.30754302348811319,8.6903165044664513E-2,3214.6839024772494,null,null,null,{"$f":"2.1*40*52","v":4368}]
[null,"TTL_C26: Other non-metallic mineral products",0,1.1952498457742135E-3,2.0511058440738817E-3,0,0,0,0,1.4765223771093176E-2,0,7.912229113642541E-2,1.5341714991460745E-3,4.9016175337861494E-4,1.0759299108515218E-2,1.2906621508747441E-3,0,4.9176297024834028E-3,1.3293452974410104E-4,7.8633882988087562E-3,1.662594150691488E-3,7.2156730118852069E-2,1.9085831103118623E-4,3.3765416201676822E-3,0,0,0,2.0484310635850586E-2,0,0,2.7320208919244678E-4,4.060768201796293E-4,1.1626981941461206E-3,1.342014350252458E-3,8.8539393735942787E-3,0,5.7822151546591434E-3,null,"TTL_C26: Other non-metallic mineral products",0.37628802293113245,8.003657120264894E-2,3214.6839024772494,null,null,null,null,null,null,null,{"$f":"AT21/AX20","v":1.346153846153846}]
[null,"TTL_C27: Basic metals",0,1.0410240592227022E-3,8.0641768228545776E-5,0,7.8406774345303435E-5,5.00751126690035E-4,0,0,0,0,0.32034272812358283,0.37315314053637699,0.14947740547187213,3.8033342105564263E-3,2.1967437235893613E-2,0.18302803048930416,6.0850780990362244E-2,2.2181796842908278E-2,5.8778581085052599E-5,3.677166876026669E-2,0,0,0,0,0,0,2.1153574954167254E-3,0,3.7926878264363199E-3,9.5547487101089253E-5,0,0,1.6784719191647924E-5,0,0,null,"TTL_C27: Basic metals",0.20527986568762724,4.6719864143806869E-2,3214.6839024772494]
[null,"TTL_C28: Fabricated metal products",1.8953559961940234E-3,4.9159469463294263E-3,5.3924799798044966E-3,3.2039200904636258E-4,1.2231456797867335E-2,1.8448725720159186E-3,2.1238279797208682E-3,1.640580419010353E-2,1.7123776363480692E-4,9.3899033828362443E-4,1.1636546087862677E-2,1.8486100413136336E-2,4.5778255968849269E-2,1.6659610741787474E-3,7.7989062888391752E-3,6.6234325055323342E-3,6.7464273845131272E-3,1.0797488410304559E-2,2.0740442182868562E-3,1.3566528166972656E-2,4.4745670697311443E-4,8.574889594719623E-3,4.6832892912273359E-3,2.6712022590739105E-3,3.7541782194339785E-4,7.2473593895385543E-4,5.6409533211112682E-4,1.6557662058117395E-4,9.4415427882683801E-3,2.1498184597745082E-4,1.3524015837173299E-3,9.168216848259368E-4,9.9869079190305137E-4,0,3.0348302283894803E-4,null,"TTL_C28: Fabricated metal products",0.25183810657516981,7.7200476157131853E-2,3214.6839024772494,null,null,null,null,{"$f":"12000*12","v":144000},{"$f":"AU24*AT13","v":3346.1913835571872}]
[null,"TTL_C29: Machinery and equipment, nec",3.3836556710577871E-4,1.041024059222702E-2,5.2592457540355945E-5,1.3192612137203166E-4,8.4679316292927704E-3,2.1084257965896212E-4,1.6638283712098968E-4,2.9550827423167848E-4,2.8539627272467823E-5,2.4710272060095382E-4,8.6839896178079687E-4,3.8512709194034035E-4,1.0913003381494006E-2,2.9978145702941745E-4,3.6353467561521251E-3,1.9670518809933612E-3,8.0425390495181114E-3,3.0514641159556368E-3,8.7328177612078163E-4,1.3721132476567784E-3,0,1.2304346581966978E-3,6.3368305381858135E-3,4.1430892181554529E-4,1.8092425153898692E-5,0,3.8076434917501058E-3,8.2788310290586974E-5,2.7641623141824024E-3,1.1943435887636157E-5,3.0597320898582119E-5,2.6574541589157588E-5,1.6197254019940247E-3,0,1.6161087801586254E-4,null,"TTL_C29: Machinery and equipment, nec",0.36586740444717697,0.10884824264781227,3214.6839024772494]
[null,"TTL_C30T33X: Computer, Electronic and optical equipment",5.1136450367113924E-4,2.062769895126465E-3,2.4543146852166107E-5,2.4500565397663024E-4,7.8406774345303435E-5,2.6355322457370265E-5,4.893612856499697E-6,2.6493845275943589E-4,2.8539627272467823E-5,9.8841088240381525E-5,1.350842829436795E-4,0,3.104826314171534E-2,0.4160005492179365,0.3498788217747949,6.6341898205065156E-2,1.0634762379528083E-3,6.4550202452907707E-4,7.1122083112913652E-3,4.1453280510194224E-3,5.8105752469494478E-4,4.0060663290125047E-4,2.3599591847413726E-2,2.3397551216214743E-2,1.2890852922152816E-3,1.8702862940744657E-4,8.4614299816669007E-4,3.3156718271380073E-2,3.25431900361591E-3,1.31138926046245E-2,4.6569122407641985E-3,7.2681371246346004E-3,3.7740441102420356E-2,0,1.8819648428488422E-3,null,"TTL_C30T33X: Computer, Electronic and optical equipment",0.24645926061535292,9.2481435289540836E-2,3214.6839024772494,null,null,null,"Philipine Statistics Authority"]
[null,"TTL_C31: Electrical machinery and apparatus, nec",1.2720510041570627E-5,4.4339913633559529E-3,7.7135604392522059E-5,7.5386355069732378E-5,3.1362709738121374E-4,1.0542128982948106E-4,0,9.1709464416727811E-5,1.1415850908987129E-4,2.2239244854085845E-4,2.0262642441551927E-4,7.0023107625516426E-5,1.9213034122348603E-3,1.4874652448024531E-4,6.6026597066865525E-3,1.5367592820260634E-4,7.9760717846460614E-4,6.4550202452907707E-4,1.5954186294514278E-4,1.8359261764421683E-4,0,0,8.4770152533947306E-4,5.1243471908764813E-4,1.3569318865424018E-5,0,1.833309829361162E-3,7.0370063746998915E-4,1.1651265568501407E-3,2.3886871775272313E-4,1.958228537509256E-4,6.6436353972893964E-5,1.1413609050320587E-3,0,1.4196467013492659E-2,null,"TTL_C31: Electrical machinery and apparatus, nec",0.25983407904548844,8.6891001739995019E-2,3214.6839024772494,null,null,null,"http://202.78.94.69/dews/Table.aspx?rxid=e75f57ad-db45-47cd-af00-543d0500b96d&px_db=Element_03&px_type=PX&px_language=en&px_tableid=Element_03%5cDWI03041.px&layout=tableViewLayout1"]
[null,"TTL_C34: Motor vehicles, trailers and semi-trailers",4.5793836149654263E-5,3.6628624305983963E-4,7.0123276720474594E-6,1.8846588767433094E-5,0,2.6355322457370265E-5,1.9574451425998788E-5,2.0379880981495067E-5,0,2.4710272060095381E-5,1.9297754706239931E-4,3.5011553812758213E-5,5.1234757659596274E-5,1.8307264551414808E-5,0,5.6537373985738874E-2,0,5.8682002229916093E-5,3.2748066604529308E-4,1.9325538699391246E-5,2.5235710014123513E-4,9.5382531643154873E-6,2.176813793464326E-3,7.6320064544968872E-5,2.7138637730848036E-5,1.8702862940744657E-5,8.3204061486391208E-3,4.9672986174352171E-4,5.5443953394937733E-4,3.4635964074144853E-4,1.6522553285234346E-4,0,1.6784719191647923E-4,0,8.7491934876984534E-3,null,"TTL_C34: Motor vehicles, trailers and semi-trailers",0.1633728792721908,4.0539709859847554E-2,3214.6839024772494]
[null,"TTL_C35: Other transport equipment",0,0,0,0,0,0,0,0,0,0,0,0,2.5617378829798137E-5,0,0,0,0.23479561316051845,0,0,0,0,0,0,0,0,0,0,0,0,0,0,0,5.7907281211185338E-4,0,4.0094301797828494E-5,null,"TTL_C35: Other transport equipment",0.20927218344965107,4.6992356264539716E-2,3214.6839024772494]
[null,"TTL_C36T37: Manufacturing nec; recycling",2.7985122091455382E-5,3.8556446637877854E-5,4.5580129868308484E-5,9.4232943837165473E-4,7.8406774345303435E-5,4.2168515931792424E-4,3.4255289995497874E-5,1.2227928588897039E-4,8.5618881817403459E-5,7.413081618028614E-5,1.6403091500303939E-4,5.6018486100413141E-4,1.0246951531919255E-4,4.2381317436525276E-3,2.1749937857320405E-4,5.9933611999016473E-4,3.3233632436025255E-4,2.3766210903116015E-2,1.091602220150977E-4,1.4977292492028216E-4,4.1776763636826319E-4,1.9171888860274129E-3,2.4070537139268987E-4,1.3192468299916048E-3,5.24680329463062E-4,9.3514314703723285E-5,1.4102383302778171E-4,1.6557662058117393E-3,1.4383286460425873E-3,5.6731320466271739E-4,2.7231615599738086E-3,7.7331916024448583E-3,1.6700795595689683E-3,0,2.9065284626364285E-3,null,"TTL_C36T37: Manufacturing nec; recycling",0.40537527140426033,0.13684642920016432,3214.6839024772494]
[null,"TTL_C40T41: Electricity, gas and water supply",6.495092427225963E-3,1.474784083898828E-2,1.2464412437064358E-2,1.1251413494157559E-2,4.4143013956405831E-2,1.7526289434151226E-2,1.2429776655509229E-3,1.81788538354936E-2,4.8802762635919974E-3,2.0484815537819074E-2,4.8311928907071665E-2,1.628037252293257E-2,1.3423506506814223E-2,5.5013329977001502E-3,1.3345140442455879E-2,1.6535529874600441E-2,1.8344965104685942E-2,2.5174578956634001E-2,6.2876287880696269E-2,4.0873514349212478E-3,2.8295804934323533E-2,2.4961608531013629E-2,7.7915282174720706E-3,2.0083079841690381E-2,2.1661156015505206E-2,2.8288080197876294E-3,1.5653645466083766E-2,3.1997681927311859E-2,4.5769385295299315E-2,1.5932543474106633E-2,3.8638296830729502E-2,3.9768801488174334E-2,3.2335761522709727E-2,0,2.4926935845416113E-2,null,"TTL_C40T41: Electricity, gas and water supply",0.59925603110226633,0.12410677549101107,{"$f":"$AY$17","v":3948.9654660753608}]
[null,"TTL_C45: Construction",5.7496705387899243E-4,1.9779457125231339E-2,9.7471354641459683E-4,7.3501696192989068E-4,2.2737964560137994E-3,9.487916084653296E-4,2.3489341711198543E-4,1.1514632754544714E-3,3.4247552726961384E-4,1.0131211544639105E-3,9.6488773531199651E-4,3.5011553812758212E-4,1.6907470027666769E-3,2.0366831813448976E-4,2.3769574944071587E-3,7.6837964101303174E-4,4.3536058491193087E-3,3.4622381315650495E-3,2.5274789866572621E-3,7.0538216252778044E-3,1.5014187134453317E-3,1.2876641771825906E-3,2.5745009288087703E-3,4.819066932696606E-3,2.790756579988873E-3,8.8609488897512995E-2,1.4102383302778171E-4,2.4836493087176085E-4,3.6962635596625151E-3,1.1507500477737435E-2,1.9147803418332689E-2,3.0959340951368592E-3,7.7881097049246365E-3,0,0,null,"TTL_C45: Construction",0.55032853415788974,0.16911295777369795,{"$f":"$AY$16","v":3214.6839024772494}]
[null,"TTL_C50T52: Wholesale and retail trade; repairs",3.3315015798873471E-2,2.5196637877853176E-2,9.1977195910410509E-2,0.12478326422917452,0.11078877214991376,8.386263605935218E-2,7.2611427564742495E-2,8.6074427325344427E-2,8.633237249921516E-2,6.2665249944401882E-2,4.8861914916199498E-2,4.8526013584482879E-2,4.8596167640127058E-2,9.0794878542741736E-2,7.9899950285856322E-2,6.0240963855421686E-2,3.1904287138584245E-2,7.9396749017076468E-2,2.4258760107816708E-2,3.9308145714561794E-2,2.4677979616332384E-2,8.9783577035701681E-2,5.1270244106642944E-2,1.510046991354027E-2,8.5531939915056057E-3,6.8733021307236606E-3,6.9242702016640817E-2,2.3429091812236111E-2,3.1442346323824831E-2,1.3060147143130136E-2,1.7599578980864436E-2,5.264416688812118E-2,2.9331296787404745E-2,0,0.10126093494977111,null,"TTL_C50T52: Wholesale and retail trade; repairs",0.69111490942712817,0.15383603998693679,{"$f":"$AY$16","v":3214.6839024772494}]
[null,"TTL_C55: Hotels and restaurants",2.9511583296443856E-4,1.4073103022825416E-3,1.0167875124468816E-4,6.9732378439502454E-4,0,0,0,3.7906578625580829E-3,5.7079254544935646E-5,0,4.2358571580196642E-3,0,0,6.7050356419556735E-4,0,2.1360954020162282E-3,0,2.1712340825068952E-3,0,1.6185138660740168E-3,1.0104887245151139E-2,0,4.5127024410664296E-2,3.9250318908841137E-4,2.3981509541492717E-2,2.5763193700875766E-3,1.1987025807361443E-2,1.6185114661809753E-2,3.0807553234230612E-2,1.0462449837569273E-2,1.576373972694951E-2,1.518735051820356E-2,2.2776863943066231E-2,0,3.6174929588237696E-2,null,"TTL_C55: Hotels and restaurants",0.37486288761076292,0.14121383809769078,3214.6839024772494]
[null,"TTL_C60T63: Transport and storage",3.747462258246707E-3,2.7953423812461446E-3,8.9231869626803916E-3,1.0648322653599699E-2,1.5524541320370079E-2,1.0673905595234958E-2,5.4710591735666605E-3,9.5174044183581972E-3,9.2182996090071061E-3,5.9304652944228917E-3,9.118189098698366E-3,6.3721027939219943E-3,6.1994056768111486E-3,6.6615558886460643E-3,6.866766094954015E-3,1.3139291861322842E-2,4.7524094383516119E-3,7.8633882988087562E-3,2.7961810716175023E-3,3.5510677360131413E-3,5.2061905953506918E-3,6.2761705821195897E-3,4.3326966850684174E-3,1.1775095672652341E-3,5.3824964832848603E-4,4.909501521945472E-4,1.1987025807361443E-2,1.6971603609570326E-3,2.8204098031337889E-3,1.5407032295050643E-3,2.2397238897762114E-3,5.1421737975019931E-3,7.1502903756420159E-3,0,3.3771738822017082E-2,null,"TTL_C60T63: Transport and storage",0.44202401820988457,0.16449072499411319,3214.6839024772494]
[null,"TTL_C64: Post and telecommunications",3.3327736308915042E-4,3.0845157310302283E-4,2.9802392606201702E-4,1.4323407463249151E-3,2.74423710208562E-3,1.0278575758374403E-3,1.1744670855599271E-4,8.3557512024129768E-4,5.7079254544935645E-4,4.9420544120190764E-4,5.885815185403178E-4,5.2517330719137323E-4,3.6889025514909315E-3,6.1558177054132294E-4,4.1324881928908779E-3,1.1679370543398082E-3,2.858092389498172E-3,1.408368053517986E-3,1.2595410232511272E-4,1.3769446323316263E-3,1.8241813238780713E-2,6.2952470884482215E-4,1.7738939326548233E-3,2.1903858524406069E-2,1.1597244523649059E-2,6.2187019277975988E-4,1.6922859963333801E-3,7.4095537710075323E-3,1.0229007633587786E-2,7.6378272501433225E-3,5.2627391945561245E-3,2.9896359287802285E-3,8.0314881332035314E-3,0,2.7926606455305956E-2,null,"TTL_C64: Post and telecommunications",0.60569783796160004,0.10740413654749835,{"$f":"$AY$17","v":3948.9654660753608}]
[null,"TTL_C65T67: Financial intermediation",8.8585631929497845E-3,9.7740592227020372E-3,4.2775198799489501E-3,1.1552958914436487E-2,1.4818880351262347E-2,5.0602219118150906E-3,6.8314835476735768E-3,8.8346784054781115E-3,6.5926538999400673E-3,3.4347278163532583E-3,1.059446733372572E-2,3.1510398431482392E-3,8.9916999692591457E-3,4.2793230888932112E-3,1.7803877703206562E-2,9.2051880993361205E-3,2.0638085742771685E-2,1.7604600668974825E-2,8.8083902226028833E-3,1.4233259252101654E-2,5.8375074752838485E-2,7.3539931896872395E-3,2.0596007430470162E-2,4.3295282329724488E-2,4.1381899433254779E-2,1.2381295266772962E-2,1.2692144972500352E-2,9.4378673731269139E-3,1.2543190036159099E-2,5.7931635772979176E-2,1.146787587278858E-2,4.5708211533351051E-3,1.3973278727046895E-2,0,8.0851084828439571E-2,null,"TTL_C65T67: Financial intermediation",0.63779417152523665,0.13973232256984808,{"$f":"$AY$17","v":3948.9654660753608}]
[null,"TTL_C70: Real estate activities",4.4776195346328611E-4,6.2847008019740903E-3,1.4305148450976816E-3,3.128533735393894E-3,5.4884742041712399E-3,6.1144348101099012E-3,1.2723393426899212E-4,3.8721773864840627E-3,1.2557435999885841E-3,2.6192888383701103E-3,1.3315450747305552E-3,4.4114557804075345E-3,7.2497182088328725E-3,2.210602194583338E-3,8.3115833954760122E-3,4.1646176542906319E-3,4.3536058491193087E-3,1.4494454550789274E-2,2.4351126449521793E-4,1.3527877089573872E-3,1.2753576472683933E-2,9.0613405060997118E-3,1.5028387535647942E-2,3.0800597477076724E-2,2.0005699113923477E-2,3.5395168115359261E-3,1.1140882809194754E-2,1.1507575130391589E-2,3.1024507834471676E-2,5.5118956621440863E-3,1.0898765704074951E-2,3.8931703428115865E-3,4.6762227667931117E-2,0,0.10787032639229006,null,"TTL_C70: Real estate activities",0.8114704658415588,2.0797583590108058E-2,3948.9654660753608]
[null,"TTL_C71: Renting of machinery and equipment",1.9157088122605363E-3,1.9278223318938928E-4,8.4147932064569507E-5,9.4232943837165476E-5,9.4088129214364106E-4,7.9065967372110791E-5,4.893612856499697E-6,8.1519523925980267E-5,5.9933217272182431E-4,2.2239244854085845E-4,2.3157305647487914E-4,8.4027729150619706E-4,3.074085459575776E-4,7.0940650136732381E-5,1.5535669898086004E-5,3.8418982050651587E-4,8.3084081090063148E-4,3.5209201337949649E-4,2.5190820465022542E-5,1.3431249396076916E-3,1.0009458089635546E-3,3.5291536707967306E-4,9.9107820308207539E-3,6.7924857445022298E-3,1.2664697607729083E-3,3.2730010146303143E-5,1.0012692144972499E-2,6.2091232717940222E-4,9.9638408999598235E-4,6.9271928148289706E-4,1.382998904615912E-3,8.2381078926388527E-4,1.2840310181610661E-3,0,5.6193706058187316E-4,null,"TTL_C71: Renting of machinery and equipment",0.50557044140459739,0.13820335636722605,3948.9654660753608]
[null,"TTL_C72: Computer and related activities",1.5315494090051035E-3,8.7908698334361515E-3,2.384191408496136E-4,1.8846588767433095E-4,7.8406774345303432E-4,3.6897451440318367E-4,2.593614813944839E-4,3.5664791717616366E-4,7.7056993635663126E-4,2.7181299266104919E-4,1.0420787541369563E-3,6.3020796862964788E-4,3.8426068244697202E-4,6.2244699474810347E-4,1.3982102908277405E-4,4.2260880255716744E-3,2.359587902957793E-3,3.5209201337949649E-4,1.6793880310015032E-5,1.690984636196734E-4,9.4368831565419867E-4,5.9137169618756022E-4,4.9972528191308445E-3,1.4871509719905364E-2,8.4401163342937395E-3,5.70437319692712E-4,9.871668311944718E-4,0.1200844440764964,9.9799116110887917E-3,1.3800640168163578E-2,1.0090996432352384E-2,3.4945522189742226E-3,8.4762831917822006E-3,0,1.1861744978034492E-3,null,"TTL_C72: Computer and related activities",0.4996688467588376,0.17426939316168555,3948.9654660753608]
[null,"TTL_C73T74: R&D and other business activities",2.3011402665201266E-2,3.9751696483652066E-2,4.4002356142097809E-3,3.9954768186958155E-3,9.3304061470911078E-3,2.6091769232796562E-3,1.1744670855599272E-3,5.8490258416890838E-3,1.5668255372584834E-2,3.385307272233067E-3,2.8174721871110295E-3,3.9212940270289195E-3,4.8416845988318476E-3,5.4281039394944901E-3,1.8487447178722346E-3,7.1459306614211956E-3,1.4822200066467265E-2,3.6969661404847136E-3,1.1251899807710071E-3,9.7738911972171227E-3,9.0148742243730314E-3,9.9770128098739981E-3,1.1710839590800869E-2,2.0039468376236113E-2,2.2036573837448604E-2,4.1707384357860585E-3,5.9230009871668312E-3,1.8875734746253828E-2,3.6994777018883082E-2,3.1805369768775085E-2,1.8811232888448288E-2,4.1722030294977413E-3,3.2176306690389067E-2,0,9.0705647374933543E-3,null,"TTL_C73T74: R&D and other business activities",0.48449979911611091,0.18960224989955804,3948.9654660753608]
[null,"TTL_C75: Public administration and defence; compulsory social security",0,0,0,0,0,0,0,0,0,0,0,0,0,0,0,0,0,0,0,0,0,0,0,0,0,0,0,0,0,0,0,0,2.4807814965255633E-2,0,0.10146387380040933,null,"TTL_C75: Public administration and defence; compulsory social security",0.55701796292757511,0.47307949550926814,3948.9654660753608]
[null,"TTL_C80: Education",0,1.3494756323257249E-4,3.5061638360237297E-6,1.3192612137203166E-4,0,0,0,0,0,5.9304652944228912E-4,0,0,0,1.922262777898555E-4,0,2.6893287435456109E-3,0,1.408368053517986E-3,0,0,0,0,0,8.1662469063116701E-3,2.1258599555830962E-4,1.080090334828004E-3,4.2307149908334503E-4,2.6492259292987832E-3,5.4560064282844524E-3,8.5258217083890697E-2,0,4.1456284879085835E-3,7.30974520796267E-3,0,8.971747704447014E-2,null,"TTL_C80: Education",0.68056396981880263,0.47338339055032341,3948.9654660753608]
[null,"TTL_C85: Health and social work",1.9843995664850177E-3,1.4651449722393585E-3,0,0,0,0,0,0,0,0,0,0,0,2.9062782475371005E-4,0,0,0,5.2813802006924481E-4,0,0,0,0,3.2442897883362551E-4,8.2861784363109058E-4,1.2529004419074843E-3,1.5289590454058758E-3,4.7948103229445774E-3,4.9259044622899243E-3,1.6295701084773004E-2,6.708030766290847E-2,1.6681659353906975E-2,2.9364868456019134E-3,1.5853167276511464E-2,0,3.39247140042611E-2,null,"TTL_C85: Health and social work",0.5182035609885729,0.33082646824342282,3948.9654660753608]
[null,"TTL_C90T93: Other community, social and personal services",4.3249734141340132E-5,1.9278223318938927E-5,6.8370194802462733E-4,8.6694308330192234E-4,4.7044064607182053E-4,1.1280078011754473E-2,2.7893593282048271E-4,6.7355506643841188E-3,4.7946573817745945E-3,8.1543897798314752E-4,1.5341714991460745E-3,1.3094321125971571E-2,1.0067629880110666E-2,3.1007929333958829E-3,3.6042754163559529E-3,8.9132038357511679E-4,0.10103024260551678,4.2837861627838744E-3,1.3435104248012025E-4,1.3866074016813219E-3,9.1484750420948602E-3,2.3149340429793684E-2,1.1590486905104523E-2,3.763669468703322E-2,1.3180331724615196E-2,8.6126683842129136E-3,6.9101678183613032E-3,8.0304660981869343E-3,3.9156287665729213E-2,2.3677861647238681E-2,5.0057216990080349E-3,7.0954026043050754E-3,7.9131558629024129E-2,0,4.0739511639067402E-2,null,"TTL_C90T93: Other community, social and personal services",0.48736110644868907,0.41888784450636141,{"$f":"AY15","v":1733.4629981939424}]
[null,"TTL_C95: Private households with employed persons",0,0,0,0,0,0,0,0,0,0,0,0,0,0,0,0,0,0,0,0,0,0,0,0,0,0,0,0,0,0,0,0,0,0,0,null,"private HH",0,0,{"$f":"AY15","v":1733.4629981939424}]
[null,"LHH",0.20314908946589125,0.15048581122763727,5.8272442954714385E-2,0.13252921221258954,3.7635251685745642E-2,7.8486150278048658E-2,2.3092959069822068E-2,6.9984511290454063E-2,8.6903165044664513E-2,8.003657120264894E-2,4.6719864143806869E-2,7.7200476157131853E-2,0.10884824264781227,9.2481435289540836E-2,8.6891001739995019E-2,4.0539709859847554E-2,4.6992356264539716E-2,0.13684642920016432,0.12410677549101107,0.16911295777369795,0.15383603998693679,0.14121383809769078,0.16449072499411319,0.10740413654749835,0.13973232256984808,2.0797583590108058E-2,0.13820335636722605,0.17426939316168555,0.18960224989955804,0.47307949550926814,0.47338339055032341,0.33082646824342282,0.41888784450636141,0,0]
[null,"VA % Output",0.70575679402441327,0.57568630475015425,0.33303297196471399,0.38369770071617038,0.14513093931315665,0.2647392140842843,0.16985240863624798,0.26987038395695767,0.30754302348811319,0.37628802293113245,0.20527986568762724,0.25183810657516981,0.36586740444717697,0.24645926061535292,0.25983407904548844,0.1633728792721908,0.20927218344965107,0.40537527140426033,0.59925603110226633,0.55032853415788974,0.69111490942712817,0.37486288761076292,0.44202401820988457,0.60569783796160004,0.63779417152523665,0.8114704658415588,0.50557044140459739,0.4996688467588376,0.48449979911611091,0.55701796292757511,0.68056396981880263,0.5182035609885729,0.48736110644868907,0,0]
[]
[]
[]
[null,"Total Requirements - Type 1 (only direct, indirect)"]
[null,null,"TTL_C01T05: Agriculture, hunting, forestry and fishing","TTL_C10T14: Mining and quarrying","TTL_C15T16: Food products, beverages and tobacco","TTL_C17T19: Textiles, textile products, leather and footwear","TTL_C20: Wood and products of wood and cork","TTL_C21T22: Pulp, paper, paper products, printing and publishing","TTL_C23: Coke, refined petroleum products and nuclear fuel","TTL_C24: Chemicals and chemical products","TTL_C25: Rubber and plastics products","TTL_C26: Other non-metallic mineral products","TTL_C27: Basic metals","TTL_C28: Fabricated metal products","TTL_C29: Machinery and equipment, nec","TTL_C30T33X: Computer, Electronic and optical equipment","TTL_C31: Electrical machinery and apparatus, nec","TTL_C34: Motor vehicles, trailers and semi-trailers","TTL_C35: Other transport equipment","TTL_C36T37: Manufacturing nec; recycling","TTL_C40T41: Electricity, gas and water supply","TTL_C45: Construction","TTL_C50T52: Wholesale and retail trade; repairs","TTL_C55: Hotels and restaurants","TTL_C60T63: Transport and storage","TTL_C64: Post and telecommunications","TTL_C65T67: Financial intermediation","TTL_C70: Real estate activities","TTL_C71: Renting of machinery and equipment","TTL_C72: Computer and related activities","TTL_C73T74: R&D and other business activities","TTL_C75: Public administration and defence; compulsory social security","TTL_C80: Education","TTL_C85: Health and social work","TTL_C90T93: Other community, social and personal services","TTL_C95: Private households with employed persons"]
[null,"TTL_C01T05: Agriculture, hunting, forestry and fishing",1.0799682575461826,2.9592297211504261E-3,0.40720475161085939,0.15829227834415877,0.49669067708686726,0.22104008198358407,2.3816307904461599E-3,0.10358293082236703,6.8734846717062537E-2,5.5987442778336928E-3,2.8096336584306179E-3,3.4261736531579147E-3,6.2115390823369284E-3,2.8469955276485097E-3,2.7494662628401081E-3,8.7304689037343095E-3,6.6705904590535726E-3,5.7240461242555309E-2,1.3798545202499237E-3,5.5672879036889906E-3,3.9104946293616006E-3,0.14086538966593981,1.425824079028337E-2,2.7678234871798086E-3,5.5750310027685764E-3,1.6537709344146179E-3,1.0951682878041042E-2,6.4391965337627054E-3,1.5199989395839471E-2,9.4624906717896105E-3,1.6029085972545726E-2,3.3950504050521822E-2,1.4463336823546514E-2,0]
[null,"TTL_C10T14: Mining and quarrying",5.3936790814186307E-3,1.0213347438971592,7.1102116261876451E-3,4.3268835900416979E-3,9.8684471837210998E-3,6.8883823416803873E-3,0.11412749379108102,2.1770799298188641E-2,8.0727482059967208E-3,6.4232075172428224E-2,3.1080532147249769E-2,1.4756317458517481E-2,9.8379553420790324E-3,4.0915091025182744E-3,4.706409878314906E-3,1.3215174758196646E-2,9.2637018683565716E-3,6.5715394893085914E-3,2.2429840975538493E-2,2.5450991194413249E-2,6.5928960919923816E-3,1.0550026535376409E-2,2.2623657698911136E-2,6.9494434996402845E-3,7.3567440202742225E-3,5.0885681573712236E-3,2.2016678312350678E-2,5.1155854915473573E-3,1.0762535502955341E-2,5.4764875165671601E-3,4.9630583153814191E-3,6.6698304609853565E-3,6.5842185464832894E-3,0]
[null,"TTL_C15T16: Food products, beverages and tobacco",2.9379017048194456E-2,1.7693436074815282E-3,1.0598604666705216,6.0855869946603988E-3,1.488946329365172E-2,8.0611611439536188E-3,1.1972039225503779E-3,4.2654561637034828E-2,1.1489619698714053E-2,1.0090481165895568E-3,2.4588586195875401E-3,1.8104072403828998E-3,1.9715465128387977E-3,1.6309054131307737E-3,1.431844832962157E-3,3.0478395242217204E-3,2.8714013907657973E-3,4.1634611496880148E-3,6.6266400743203316E-4,1.3759193134515284E-3,3.8261105534228576E-3,0.21322817352369325,2.0375163256121095E-2,1.5700748607541128E-3,6.1081119779795119E-3,1.0418563744037418E-3,1.663965040249564E-2,6.2853292358930448E-3,1.1756504853763301E-2,5.6874036389073825E-3,5.1436290105862344E-3,2.3222127301340934E-2,1.0157892809380415E-2,0]
[null,"TTL_C17T19: Textiles, textile products, leather and footwear",1.6533738997399996E-3,3.690440091607722E-4,8.5188274503523683E-4,1.1764152977297142,2.6251756476034487E-3,1.0653063079934075E-3,1.1592543640039394E-4,5.6139351546851085E-4,1.09348280089215E-2,1.7645608956069604E-3,1.9499092222366386E-4,3.9855287856925016E-4,4.5699599717265397E-3,7.3173607724416579E-4,4.3982026672448001E-4,2.2307775807826613E-3,1.3000109485359601E-2,5.5231508117772533E-2,7.8954325193620868E-5,4.7202615544540406E-4,5.2801526593548257E-4,3.108633454902534E-3,1.6493072211406191E-3,7.8373351347078499E-4,4.4211476610427108E-4,2.1435020752939889E-4,1.4069204803579883E-2,8.0355996164227625E-4,5.5458351602143937E-3,1.4268297038331308E-3,5.4916850522283573E-4,9.6855684773646433E-4,9.6095948234742583E-3,0]
[null,"TTL_C20: Wood and products of wood and cork",5.1263869243505131E-5,2.6316590685295421E-4,1.1825094334783479E-4,7.2770163576052832E-5,1.0193381835633044,7.2742557227015468E-5,4.8323648711385761E-5,7.5233701084205409E-4,1.8743007676310367E-4,6.9695520949921048E-5,4.5821954671902106E-5,5.331255188660176E-5,9.4195867512131075E-4,4.9965460267299233E-4,2.2199413125296142E-4,3.8632317244810115E-4,1.3592831301353294E-3,2.5878250354805198E-2,4.2572889790855347E-5,7.0056191723879644E-3,7.0644909082169334E-5,2.1265979611688674E-4,1.2485557298915951E-4,1.3218914826755771E-4,7.211628522179052E-5,7.3893792742827215E-4,3.400812729182699E-4,1.0342152070612623E-4,1.9185537195390301E-4,2.1266912192647171E-4,2.4548889510993217E-4,3.4226689739370728E-4,2.1358115883946685E-4,0]
[null,"TTL_C21T22: Pulp, paper, paper products, printing and publishing",2.1705194914622833E-3,1.9029692111177195E-3,4.8347923871970306E-3,3.0125985533875823E-3,1.3512790799914933E-2,1.3001537954223883,3.0295905724656456E-3,7.9712481470073406E-3,4.2173284724369665E-3,2.474542433057652E-2,3.8512875425437145E-3,7.6926139985052551E-3,5.7592152556041436E-3,2.9747419709389399E-3,5.6967422287996106E-3,5.0413550114223118E-3,5.0837643111011094E-3,1.2100136393068504E-2,2.0181282863993731E-3,3.3624991656917903E-3,6.9287996851757471E-3,4.0017101516821134E-3,4.9411765379840681E-3,5.8120096935923363E-3,6.5718034787229677E-3,2.2374238373602771E-3,3.2958110004476498E-3,9.702003229353353E-3,1.8098888177919038E-2,2.1491868461244588E-2,6.8130654402385415E-2,7.6334315204983098E-3,1.8574050244165644E-2,0]
[null,"TTL_C23: Coke, refined petroleum products and nuclear fuel",4.6274995426870844E-2,8.2401848641806719E-2,6.2163078891990957E-2,3.667479508052475E-2,8.6679062512823091E-2,5.8695019332751029E-2,1.0620853996815356,5.6656207227590127E-2,4.2261219954483377E-2,6.6686393739079808E-2,0.10355608257225875,6.4909784328440634E-2,5.0713905510783953E-2,3.3850055874086495E-2,3.6169240779861729E-2,7.9337347484151027E-2,6.478301343410707E-2,4.2783820913293892E-2,0.20640073481233609,6.5949212131809085E-2,5.971412624394442E-2,9.2841378535053018E-2,0.20731785823321364,6.1227393981001764E-2,6.6366715218729264E-2,1.9974609890605663E-2,0.20238779188220332,4.5436343031248605E-2,8.9876678776730737E-2,4.4991072536444111E-2,3.953653748395216E-2,4.1235089862189309E-2,4.2457562322861415E-2,0]
[null,"TTL_C24: Chemicals and chemical products",2.7948236888008932E-2,1.8309409763716172E-2,1.563511841308024E-2,2.4056077407731618E-2,2.3794837269127966E-2,3.3872568855360871E-2,1.6744079653461228E-2,1.1753637590786641,0.26158202015598297,8.6825945127346846E-3,8.1637648197754095E-3,1.1530790508434903E-2,2.4155609402851462E-2,8.4071732566837372E-3,7.1183392752843921E-3,3.0770700360232345E-2,1.7679982775525262E-2,3.8621837740474695E-2,8.2406514966610125E-3,7.7433158773290026E-3,4.2576466250740077E-3,1.2203862385353115E-2,1.158475445116062E-2,5.1871283582011988E-3,4.7827286066572288E-3,2.6855172287956514E-3,9.9133617362693709E-3,9.4151164789441372E-3,4.9224971317865962E-2,1.8856846517088865E-2,1.5573099496713353E-2,0.15251546770704372,2.1954645962632496E-2,0]
[null,"TTL_C25: Rubber and plastics products",3.4967412619756606E-3,3.6208194918458071E-3,8.627295588928649E-3,2.0457220513849564E-3,6.1278007966187277E-3,4.649919664594054E-3,8.4172628740083089E-4,1.0903874700366915E-2,1.0309382131702096,2.2324376451569377E-3,9.0892639841056258E-4,4.1622854764178019E-3,3.441793074491007E-2,6.2491843954181805E-3,5.3220082712827467E-3,8.5112179217433082E-2,7.110760258150473E-3,4.4804769453431113E-2,4.9474145375463449E-4,6.4172327302976298E-3,1.8489525807918235E-3,4.1394867630837346E-3,1.8378546487112627E-2,4.9304971785354744E-3,2.0073412149037568E-3,8.3111753973631286E-4,5.1722017297284239E-3,2.0313096898582255E-3,1.5370351232726193E-2,4.4172379534500707E-3,3.2309113673096813E-3,4.3807598343561438E-3,5.485174916759092E-3,0]
[null,"TTL_C26: Other non-metallic mineral products",7.9043847869468662E-4,3.8167502219348427E-3,3.0658110976441843E-3,9.2467434434249918E-4,1.3903883904038247E-3,1.4189240261764421E-3,8.1954539977461258E-4,1.9699392392828606E-2,4.7304585190300601E-3,1.0866566587340303,3.2988062913143199E-3,2.4257325525883326E-3,1.3551794924320773E-2,3.1384547649984762E-3,1.981670191077871E-3,7.5116002995050052E-3,3.5330717436017037E-3,1.0632408257900187E-2,2.4881148511353883E-3,7.9524716704219733E-2,1.236592271946202E-3,5.4287967812007122E-3,1.7099224685455398E-3,2.2892409822850191E-3,1.4524645142605164E-3,2.9632123524315088E-2,1.1169414606477404E-3,1.1826575180772677E-3,3.5270488195888149E-3,2.9924033099141805E-3,3.8601591997112039E-3,4.9153061047562232E-3,1.3740887206948438E-2,0]
[null,"TTL_C27: Basic metals",2.2543870758679118E-3,9.6993304946734835E-3,4.687056003641321E-3,1.3461024747900893E-3,1.1318326389988167E-2,3.7724115268970028E-3,2.7108483415721118E-3,1.2115761182504074E-2,3.4142924002237805E-3,1.8064841760965175E-3,1.4824735800525817,0.56420141377136135,0.25141003932868006,1.235966103790982E-2,4.3027149871362705E-2,0.29390141550981325,0.12726482912613463,4.2312340888345935E-2,2.6129759109278145E-3,6.3824181138065914E-2,1.212636743408321E-3,7.1177914238571794E-3,6.8540629098181897E-3,3.4104650872719671E-3,1.468553201309939E-3,6.3351601259121985E-3,8.1550436052031661E-3,1.8264585891999774E-3,1.4272792536025982E-2,2.8051797785051862E-3,3.2858794389782689E-3,3.3025975208921528E-3,4.0945867019095286E-3,0]
[null,"TTL_C28: Fabricated metal products",3.312209697537621E-3,7.1923384035168583E-3,7.5640547463659488E-3,1.7112875734139207E-3,1.5689590874043844E-2,4.1984069471505733E-3,3.5199215696024846E-3,2.1030210931495631E-2,5.4562117124614404E-3,2.1001992248558189E-3,1.8745141335080696E-2,1.0264714996080953,5.1313149372373586E-2,3.85361791693957E-3,1.0447945702958362E-2,1.2343645024042406E-2,1.2472056258289389E-2,1.3724209522153991E-2,3.2459286744156613E-3,1.5677978854732419E-2,1.3034520164974881E-3,1.1374407468767396E-2,7.0486251148887714E-3,3.8882513818057803E-3,1.5039927691357195E-3,2.4006944634166901E-3,2.305209596304471E-3,1.4010603861117721E-3,1.2414482808641537E-2,2.0281302500550075E-3,2.9388014347304803E-3,4.5466249033584366E-3,3.2411110089170234E-3,0]
[null,"TTL_C29: Machinery and equipment, nec",5.9330866391851919E-4,1.1024159865426502E-2,4.6916445498818547E-4,4.5086243216157986E-4,9.3381496253239441E-3,6.7445266326320225E-4,1.4800275081660256E-3,8.582113862788108E-4,4.3881105188711754E-4,1.0919615830694742E-3,1.8872677033143408E-3,1.2778936330098034E-3,1.0116092121111013,7.8072791034671689E-4,4.1642052498098341E-3,2.8256128897177083E-3,1.1350705855803623E-2,3.7271153051118924E-3,1.2820279275720678E-3,1.9403096068129058E-3,2.5920038604802966E-4,1.678087943212134E-3,6.9803187460059498E-3,7.894950490186628E-4,3.1708433673475036E-4,2.6501125067498132E-4,4.3959008786405417E-3,3.9510062060239392E-4,3.3533806241482075E-3,3.931621533054538E-4,3.5145977444920007E-4,3.8518977988576982E-4,2.2358353818169225E-3,0]
[null,"TTL_C30T33X: Computer, Electronic and optical equipment",2.1367159285889314E-3,8.9728477100905063E-3,2.1692026984347357E-3,2.6005616598986964E-3,4.2155253164028834E-3,3.4057420969864473E-3,1.7443640354655114E-3,3.2262005358405887E-3,2.5245575789174424E-3,2.0925871979440933E-3,3.3809369447074127E-3,3.2999491464716503E-3,5.763504030496646E-2,1.7146070638679198,0.60569368110867117,0.12353332114730743,1.5617229672636181E-2,4.0707831310208718E-3,1.3917730135476394E-2,8.7031727326671651E-3,3.9806884490909879E-3,4.4706699235849603E-3,4.440000695590194E-2,4.6570457537018425E-2,5.5088567868890369E-3,2.1425849494534086E-3,6.2560793831626903E-3,6.7613712632527481E-2,1.2940136093639009E-2,2.9049780186439219E-2,1.1218159757153715E-2,1.5224494920977362E-2,7.5293881833685294E-2,0]
[null,"TTL_C31: Electrical machinery and apparatus, nec",9.5797005254558701E-5,4.6651694584516519E-3,1.7140882843321901E-4,1.585852833015901E-4,4.7580482274018747E-4,2.4238849799639083E-4,5.3828751946731587E-4,2.7610137764631592E-4,2.4563403882857008E-4,5.6616856299490453E-4,4.9699669090827534E-4,3.1773198048743568E-4,2.126449996344136E-3,3.3295522686190525E-4,1.0068252094701271,3.8241309826267373E-4,1.3829740854302197E-3,7.837275067377928E-4,2.9158667624315423E-4,3.7558377415069892E-4,9.2186491246337067E-5,1.5396810970781053E-4,1.0614345250851982E-3,6.9450612253560971E-4,1.2925229871505194E-4,7.4659183470125761E-5,2.0273665008704732E-3,9.0925612714465342E-4,1.3920502984885591E-3,4.1697645331633103E-4,3.0540844873793186E-4,1.7495487173562011E-4,1.4104083653711569E-3,0]
[null,"TTL_C34: Motor vehicles, trailers and semi-trailers",1.2620148296072682E-4,4.6915825059421845E-4,1.2824000480676475E-4,1.3889559635491024E-4,1.8466608104181356E-4,1.601380615025638E-4,1.1849575078739341E-4,1.3997867560079459E-4,1.1478793567793364E-4,1.1896512287457413E-4,4.2200309110669744E-4,2.5765943949156752E-4,1.9460375162805402E-4,1.3781278244170001E-4,1.1859739943028018E-4,1.0601130517972668,1.5772264185129239E-4,1.7271873698640721E-4,4.1434758569782631E-4,1.0877388089614436E-4,3.3744301547439969E-4,1.2937486459930713E-4,2.4835407160785435E-3,2.1798693892085454E-4,9.7010301393931237E-5,4.685403896448305E-5,9.0085813787105333E-3,6.6977205328291422E-4,7.1209572235720025E-4,4.7314040825557441E-4,2.5850040815332575E-4,9.304466886311611E-5,3.2329115205736233E-4,0]
[null,"TTL_C35: Other transport equipment",1.9774055907619418E-6,3.0487135358510307E-6,2.9582253734562563E-6,3.4806277222624588E-6,4.2730898055223152E-6,1.4486519866328058E-5,1.7529573196873099E-6,9.0861236336166576E-6,7.998326642967044E-6,2.3796128272413897E-6,3.9792152225422183E-6,1.3595394330640823E-5,4.5295697526459368E-5,6.9532369351954652E-6,7.3626698978505009E-6,4.5035678114259074E-6,1.306952568361448,6.6150333008874282E-6,1.1255311920035312E-6,3.0975313535167016E-6,1.0195224047684085E-5,2.1798478330937197E-5,1.3244401825862105E-5,3.4309777319777982E-5,1.3774580597418201E-5,8.0262822254160354E-6,8.2298618655950261E-6,1.0172269474406646E-5,3.688816007748377E-5,2.395948527919946E-5,7.1038674391093977E-6,8.7337443855493223E-6,8.2684093488229931E-4,0]
[null,"TTL_C36T37: Manufacturing nec; recycling",1.6421647916959852E-4,2.5086425631145004E-4,2.1087559015815253E-4,1.3025415184052618E-3,3.2374420329545403E-4,7.487732220081174E-4,1.3298322340222444E-4,3.3478976797456892E-4,3.0340301205712E-4,1.9225110815459999E-4,4.0031930352196261E-4,8.3436425905668592E-4,5.6642996475591374E-4,7.6062921495417849E-3,3.0213188737781651E-3,1.4134026112122022E-3,9.8969421763428706E-4,1.0245909787959795,2.376916980405776E-4,3.1271535277639542E-4,6.1926049673725306E-4,2.1975158181399253E-3,7.0541379710147933E-4,1.8526785399902879E-3,7.9236723322986867E-4,2.0275848497487405E-4,3.8937983391757196E-4,2.4459142545351061E-3,2.040990958238351E-3,1.7774447246192426E-3,3.1684289359048697E-3,8.1957849296171864E-3,2.6424072749771086E-3,0]
[null,"TTL_C40T41: Electricity, gas and water supply",1.2559300820386917E-2,2.2404483495815249E-2,2.3652297326911823E-2,2.3011473378598244E-2,6.1295290109620017E-2,3.3455643443083084E-2,7.5629013100266549E-3,3.2151294904819508E-2,1.8156277300203878E-2,2.9326756508294416E-2,8.2296938120783994E-2,5.2535097644345934E-2,3.4754289210086275E-2,1.8518934354185158E-2,2.7555449868002638E-2,4.2483717736500309E-2,4.4384536017509885E-2,3.9569481566671574E-2,1.0704370678953694,1.4407138485240818E-2,3.566860063298273E-2,3.8814806629320055E-2,1.7570181411083748E-2,2.9702077530165377E-2,2.9242958680507487E-2,6.6601497589931233E-3,2.4477232721669212E-2,4.491879023244312E-2,6.1330431787758287E-2,3.239030154652954E-2,4.8653551117757585E-2,5.1872534575494102E-2,4.8235361846873895E-2,0]
[null,"TTL_C45: Construction",1.3855878428983919E-3,2.1695478614765274E-2,2.3749997536868686E-3,2.3386012323482219E-3,4.6044351310398643E-3,3.2940838010917565E-3,3.0966678687915626E-3,3.2869680562108263E-3,1.9945598388901231E-3,3.2770123149969163E-3,3.1267243556513309E-3,2.5883830312059372E-3,3.8055295842662523E-3,1.7698640330700407E-3,4.5489707287279324E-3,2.9117243612299224E-3,9.3679068360641906E-3,6.2511614093365524E-3,3.5636154890633393E-3,1.0085033286886596,3.8087071571701603E-3,3.8643086325360013E-3,5.529735277986737E-3,9.4020726452997156E-3,5.7682171665393404E-3,9.0109562101128277E-2,2.5530500734651618E-3,2.538162539028025E-3,8.6693129148496476E-3,1.5614430720333874E-2,2.1318679063013952E-2,4.8059508388683487E-3,1.4971045494032973E-2,0]
[null,"TTL_C50T52: Wholesale and retail trade; repairs",4.9427369141900289E-2,4.2142295952727879E-2,0.12520273257078751,0.16541536624447675,0.15238714882664858,0.13279884941945139,8.617216324564464E-2,0.12483963809217441,0.12716336782384233,8.2680984772109861E-2,9.0600855280782558E-2,9.1457231322339835E-2,8.6047197542912277E-2,0.16871621052576052,0.14998432936459652,0.11514211474903285,7.139206648746689E-2,0.11529929723271971,4.6396445833585577E-2,6.1033360371573482E-2,1.0369367220958143,0.1324094306929218,8.7970373279952788E-2,3.3387494356578742E-2,2.3010555425323358E-2,1.7172747616285296E-2,9.9227688126145699E-2,4.5944059727216671E-2,6.268804254295969E-2,3.7475304761104354E-2,3.8433461056907849E-2,8.3041132599692563E-2,6.0947889030456268E-2,0]
[null,"TTL_C55: Hotels and restaurants",2.5840008689856967E-3,4.3002053470874496E-3,3.2996432184368416E-3,4.5269283725530123E-3,4.6214263307674634E-3,3.7156204139972898E-3,2.1254680261003013E-3,7.7770346593334025E-3,4.5319106219264601E-3,2.0037204078132147E-3,9.019624284170592E-3,5.1964442579434545E-3,3.8330005109060944E-3,4.73721009802634E-3,4.1183921394593176E-3,7.1938144139431703E-3,7.3376808776958579E-3,5.7110925566726013E-3,1.2995372971206798E-3,3.9633509161252503E-3,1.3235722974234768E-2,1.0038524883130162,4.85389008126186E-2,4.7385110461051518E-3,2.7041256439416388E-2,3.942764977656282E-3,1.5240221083393945E-2,2.0862806515424027E-2,3.5774273808728108E-2,1.7541771206717852E-2,1.8365497557524538E-2,1.8177888343676705E-2,2.9230940776777334E-2,0]
[null,"TTL_C60T63: Transport and storage",5.4767856190812087E-3,4.5028026224897605E-3,1.2684737647707802E-2,1.486511407525248E-2,2.0364986658400787E-2,1.6709672754315216E-2,7.0126557357812463E-3,1.394598053973041E-2,1.3879918595704603E-2,8.1045886746035078E-3,1.5450211877177685E-2,1.3320286768406218E-2,1.120253597715797E-2,1.3215692090984702E-2,1.2987415399880433E-2,2.0278568276480738E-2,1.0398053436480531E-2,1.2019808279752476E-2,4.789632327766761E-3,6.0773691217379079E-3,6.4465423718193509E-3,1.0895936913637747E-2,1.0078334230574812,3.0914202755108152E-3,1.9254556993605761E-3,1.5539715288247942E-3,1.5022909177169934E-2,3.7862810703807796E-3,6.1917660946026595E-3,4.0980491183423996E-3,4.5046919541953546E-3,8.4905743385296044E-3,1.0586189756202872E-2,0]
[null,"TTL_C64: Post and telecommunications",1.8804773794888323E-3,2.0456389075403218E-3,3.3282010751134075E-3,5.4501613320432456E-3,6.7896074012253893E-3,4.5688454894097568E-3,2.1167792561128176E-3,4.0163634836821883E-3,3.8881926712571063E-3,2.4616851962931292E-3,3.1417597720164413E-3,3.1640645637467124E-3,6.2542931312440505E-3,4.7841476821925211E-3,8.1381676223716559E-3,4.4141600997553041E-3,7.4930508770952369E-3,4.555475386508686E-3,1.314220402149812E-3,3.1788101220181584E-3,2.0471276599748449E-2,4.0406521359316267E-3,4.4451072714683021E-3,1.0246169008921282,1.3462161138582823E-2,1.5036549544628938E-3,4.2901755557817559E-3,1.0220097303191355E-2,1.3193209965953731E-2,1.0957521539686314E-2,6.9640438059730171E-3,5.2812321260532818E-3,1.1536029701472944E-2,0]
[null,"TTL_C65T67: Financial intermediation",1.4749398193623548E-2,1.5839399988215021E-2,1.8080088870153943E-2,2.7574873038968106E-2,3.31251130239541E-2,1.959472200316115E-2,1.4843695146739378E-2,2.2053019341334131E-2,1.9869225073971961E-2,1.1304478407529493E-2,2.486533644046993E-2,1.7627034910003902E-2,2.060468519136649E-2,1.9903586978515301E-2,3.3107721378801122E-2,2.4482087704278701E-2,3.9466494350897684E-2,3.0702110739902047E-2,1.4932915827560234E-2,2.1610569360675087E-2,6.604933615706185E-2,2.0971875121912446E-2,3.1443302557955619E-2,5.1763303309032969E-2,1.0476765164611426,1.6330722856092224E-2,2.3339733815328372E-2,1.7024732029283254E-2,2.2804366262362211E-2,6.7779232820907906E-2,1.7704408839417582E-2,1.4035922639411691E-2,2.6118246434169708E-2,0]
[null,"TTL_C70: Real estate activities",2.8804342684940259E-3,9.500356520623407E-3,4.9867760639499626E-3,7.6948448278796166E-3,1.0617361175322131E-2,1.2193268036109784E-2,2.9573418255242705E-3,8.5544162532765217E-3,6.1976128590847512E-3,5.4512821941904085E-3,5.0132360736798434E-3,8.6024417821852998E-3,1.1363673013266254E-2,7.8949217114825283E-3,1.3879076607762957E-2,8.922901746895584E-3,1.6484389659204166E-2,1.9018336191284936E-2,1.7627914251099523E-3,4.1448723168867312E-3,1.6708356447051334E-2,1.4195029534345883E-2,1.9647842441940164E-2,3.6896162226075592E-2,2.4046432471468222E-2,1.0052516282894202,1.4864787182643365E-2,1.6498841020849652E-2,3.7857530490721422E-2,1.253521000317352E-2,1.4302998590138935E-2,7.6229193116190662E-3,5.5803002878718755E-2,0]
[null,"TTL_C71: Renting of machinery and equipment",2.2775652757561363E-3,4.3562474184781827E-4,1.2251917837975423E-3,8.4049320651753516E-4,2.4534616075298208E-3,9.503628795098759E-4,2.4733670598727105E-4,7.007693993792242E-4,1.1539295868465969E-3,4.9186087107967345E-4,7.0498789973225183E-4,1.3310541457976026E-3,7.7111515796332868E-4,5.3862420511098746E-4,5.0438848718888378E-4,9.9787699364338889E-4,1.6946444112197786E-3,9.0877215551073913E-4,1.7659081349220932E-4,1.6378308512788717E-3,1.396844184456351E-3,1.0334028315297939E-3,1.0383417693983255E-2,7.310190167168047E-3,1.5725927974387258E-3,2.6255308132870766E-4,1.0105088785443159,9.8068935766662427E-4,1.4862199137281656E-3,1.2742618776205937E-3,1.6945453595787472E-3,1.201536940256505E-3,1.8846238048337357E-3,0]
[null,"TTL_C72: Computer and related activities",2.5954325879232361E-3,1.1101403283120892E-2,1.8026043143121256E-3,1.4185574300084017E-3,3.0371360233637373E-3,1.9034281998626837E-3,1.9026867094193954E-3,1.7425349643722177E-3,2.0945851417707335E-3,1.4567819272919616E-3,2.7644633905042257E-3,2.2902900282870341E-3,1.734068504347425E-3,2.0892518947001619E-3,1.6325177598978744E-3,6.6236609896982469E-3,6.3294151054913393E-3,1.5582244445680163E-3,6.3346425439416299E-4,1.1821313451524933E-3,2.5471594735003286E-3,2.1404539232749232E-3,7.0368767672494281E-3,1.8914786866555677E-2,1.0968895447964106E-2,1.1703780133933829E-3,2.276855632480361E-3,1.1375361004001718,1.3325357604734418E-2,1.8783838309058692E-2,1.2423787390842631E-2,4.8721556606047172E-3,1.2461881718205661E-2,0]
[null,"TTL_C73T74: R&D and other business activities",2.7642513188780152E-2,4.4256414456077767E-2,1.7369294292992648E-2,1.1943908508740001E-2,2.5845889480173051E-2,1.2406082333276853E-2,7.7085797500778082E-3,1.3772553806774602E-2,2.2996728973114729E-2,8.3374223517954163E-3,8.176603844129611E-3,9.1490524157271033E-3,1.0062603744000692E-2,1.3007430439709167E-2,9.0572126747323588E-3,1.4550023352292904E-2,2.9028923311377797E-2,1.0022625841158284E-2,3.6309033983842271E-3,1.378606928497389E-2,1.3118285612534617E-2,1.8714156854492701E-2,1.7733596739598314E-2,2.6227484295256769E-2,2.6521183808350328E-2,6.7916843132032846E-3,1.054930505705054E-2,2.528593848129956E-2,1.044511996136964,4.0077074447903517E-2,2.2793096379786913E-2,9.0080185470478632E-3,4.1811511656939589E-2,0]
[null,"TTL_C75: Public administration and defence; compulsory social security",6.4171779144124957E-5,8.7843704429429101E-5,9.6461060355060505E-5,1.1360643522653874E-4,1.2983129631242629E-4,4.741540030443101E-4,5.5840819475199559E-5,2.9691762790113235E-4,2.6171796152551276E-4,7.680960283149989E-5,1.2837462855354678E-4,4.4427905002423097E-4,3.7467043118618774E-4,2.2708279901134559E-4,2.3679150590513314E-4,1.4453405054396738E-4,3.6649227417948345E-3,2.1276232306219307E-4,3.5489959223187315E-5,9.941323316562417E-5,3.3393332795738989E-4,7.1275170664886222E-4,4.26514681473334E-4,1.1238698000908755E-3,4.5120755129841086E-4,2.6282513473882806E-4,2.6496534168159961E-4,3.3303169020993507E-4,1.2055800562856594E-3,1.0007850035621819,2.3249184404424087E-4,2.8588512591420077E-4,2.7102880022230717E-2,0]
[null,"TTL_C80: Education",2.1836960508733397E-4,4.8818928787477587E-4,1.8587619075727062E-4,3.3296372088910587E-4,2.8441514304551564E-4,3.1639704154724508E-4,1.103699026230115E-4,2.5896384924399947E-4,2.8341353464400853E-4,7.6290278339444099E-4,1.473178053102051E-4,2.7251974173532766E-4,2.9451794364417338E-4,5.6198711404411986E-4,3.5775294180811552E-4,3.0887385819977067E-3,1.6789841256340165E-3,1.6675877170085815E-3,6.0132796256888061E-5,2.0657664152656498E-4,4.1187617080423294E-4,4.4680729521163066E-4,3.7140235346649788E-4,9.066356934749777E-3,7.1802876244351718E-4,1.2686261965296447E-3,7.01565449780678E-4,3.4298022734960605E-3,6.4335643332908143E-3,8.624587216113111E-2,1.0004050612026438,4.404489177652131E-3,1.0832362532228005E-2,0]
[null,"TTL_C85: Health and social work",2.7089875005178246E-3,2.3977180722222283E-3,1.2289879739811344E-3,6.709471920654809E-4,1.620537596010944E-3,1.0618139189447326E-3,3.7822225063101377E-4,7.3965214385328837E-4,7.7361613447414121E-4,3.4647563814221659E-4,3.4309567198958417E-4,5.5865455825898278E-4,5.4308307186105788E-4,9.5660472561777366E-4,5.9661354224032302E-4,5.576245988220069E-4,3.2538922295593212E-3,1.0973789804860187E-3,1.534682865981085E-4,4.0220513914914581E-4,6.2377309055890553E-4,1.1869987897645533E-3,1.1590074211655877E-3,2.5092887919829854E-3,2.2158859365110435E-3,1.9006959045845906E-3,5.3592729898008888E-3,6.428870241334414E-3,1.8256201467839295E-2,7.0181825753931698E-2,1.7439844187599536E-2,1.003520990603556,2.0322686295004663E-2,0]
[null,"TTL_C90T93: Other community, social and personal services",2.5867566020627039E-3,3.5409690273995446E-3,3.8883335952867347E-3,4.5794615682860111E-3,5.2334837426940006E-3,1.9113090117303048E-2,2.2509366324042213E-3,1.1968713420225752E-2,1.0549819155458049E-2,3.0961857357882953E-3,5.1747656427355944E-3,1.7908834399420589E-2,1.5102919451428073E-2,9.1536799725967163E-3,9.5450367650987966E-3,5.8261499751748906E-3,0.14773258938474468,8.5764233311226915E-3,1.430595934099495E-3,4.0073353217466553E-3,1.3460811781492133E-2,2.8730934491695472E-2,1.719275486658883E-2,4.5303054769833678E-2,1.8188121441986956E-2,1.0594449172848375E-2,1.068072065406383E-2,1.3424466873699263E-2,4.8596785245864013E-2,3.1643397988951383E-2,9.3717179191256973E-3,1.1523994608739006E-2,1.0925137929394191,0]
[null,"TTL_C95: Private households with employed persons",0,0,0,0,0,0,0,0,0,0,0,0,0,0,0,0,0,0,0,0,0,0,0,0,0,0,0,0,0,0,0,0,0,1]
[]
[]
[]
[null,"Type 2 Total Requirements (direct, direct, induced)"]
[null,null,"TTL_C01T05: Agriculture, hunting, forestry and fishing","TTL_C10T14: Mining and quarrying","TTL_C15T16: Food products, beverages and tobacco","TTL_C17T19: Textiles, textile products, leather and footwear","TTL_C20: Wood and products of wood and cork","TTL_C21T22: Pulp, paper, paper products, printing and publishing","TTL_C23: Coke, refined petroleum products and nuclear fuel","TTL_C24: Chemicals and chemical products","TTL_C25: Rubber and plastics products","TTL_C26: Other non-metallic mineral products","TTL_C27: Basic metals","TTL_C28: Fabricated metal products","TTL_C29: Machinery and equipment, nec","TTL_C30T33X: Computer, Electronic and optical equipment","TTL_C31: Electrical machinery and apparatus, nec","TTL_C34: Motor vehicles, trailers and semi-trailers","TTL_C35: Other transport equipment","TTL_C36T37: Manufacturing nec; recycling","TTL_C40T41: Electricity, gas and water supply","TTL_C45: Construction","TTL_C50T52: Wholesale and retail trade; repairs","TTL_C55: Hotels and restaurants","TTL_C60T63: Transport and storage","TTL_C64: Post and telecommunications","TTL_C65T67: Financial intermediation","TTL_C70: Real estate activities","TTL_C71: Renting of machinery and equipment","TTL_C72: Computer and related activities","TTL_C73T74: R&D and other business activities","TTL_C75: Public administration and defence; compulsory social security","TTL_C80: Education","TTL_C85: Health and social work","TTL_C90T93: Other community, social and personal services","TTL_C95: Private households with employed persons","LHH"]
[null,"TTL_C01T05: Agriculture, hunting, forestry and fishing",1.1427821258958837,5.1632123954685243E-2,0.45410246928848386,0.21772241016364519,0.54762855008764144,0.2711206950765131,1.9164751763024564E-2,0.14309031409118941,0.11087886861934203,3.7883573561191965E-2,3.2588776296550895E-2,4.1505386507134596E-2,5.0837785851698125E-2,5.5310697390738163E-2,5.1820289717340609E-2,4.0805320042222315E-2,5.230983679586123E-2,0.11142008208337524,4.1146110405049875E-2,5.9288320161815088E-2,5.3112034208638831E-2,0.20162476007478097,7.2638586477904887E-2,4.6775876691203651E-2,5.1991398620831145E-2,1.5721195198244494E-2,5.9916665036096599E-2,6.8724612463366794E-2,8.6036826416166709E-2,0.16164309687280434,0.14973556058793364,0.13393999844012108,0.15204346314989936,0,0.25382667148767041]
[null,"TTL_C10T14: Mining and quarrying",8.9036782863423317E-3,1.0240545544190951,9.730826405789603E-3,7.6478017394156295E-3,1.2714823285537339E-2,9.6868553024546476E-3,0.11506532396804027,2.3978446868788264E-2,1.0427729474555893E-2,6.6036130997883954E-2,3.2744571788960661E-2,1.6884159770305527E-2,1.2331641765069918E-2,7.0231475553771405E-3,7.4484564332468681E-3,1.500749713782404E-2,1.1813994065991521E-2,9.5990624085406442E-3,2.4651954184063768E-2,2.845288847391108E-2,9.3422469812392186E-3,1.3945221695773053E-2,2.5885914463705608E-2,9.40858565748986E-3,9.9504612632215876E-3,5.8746469211638707E-3,2.4752810522630248E-2,8.5960551097235202E-3,1.4720853119001998E-2,1.3980243467348516E-2,1.2434491486482952E-2,1.2257180118457701E-2,1.4272108923339815E-2,0,1.41836737414436E-2]
[null,"TTL_C15T16: Food products, beverages and tobacco",7.8286416132709452E-2,3.9666462912810778E-2,1.096375418780192,5.2358380740769005E-2,5.4550113860431196E-2,4.7054342033516196E-2,1.4264681166904623E-2,7.3415338055963605E-2,4.4303304834715097E-2,2.61462840745171E-2,2.5645146165022083E-2,3.1459198324310565E-2,3.6717912526190277E-2,4.2479578992415896E-2,3.9638795131485625E-2,2.8021584756295174E-2,3.8406497272523495E-2,4.6348163482581126E-2,3.1625000793112604E-2,4.3203560770798108E-2,4.2134837511292392E-2,0.2605359234646058,6.5830584809537088E-2,3.5835110234777486E-2,4.224828093735452E-2,1.1994869628292739E-2,5.4764191789406835E-2,5.4781270881375854E-2,6.6910653914451793E-2,0.12417648631983154,0.1092485995529624,0.10107477727898327,0.11727892071488308,0,0.1976315525041312]
[null,"TTL_C17T19: Textiles, textile products, leather and footwear",8.4952613092409285E-3,5.6706512973222498E-3,5.9601321259921186E-3,1.1828886177356885,8.1734916661377489E-3,6.5202468359831728E-3,1.9439966425094689E-3,4.8646640394939423E-3,1.5525289644457893E-2,5.2811277429462723E-3,3.4386303673726607E-3,4.5462625139457789E-3,9.4307934775493905E-3,6.4462502548221206E-3,5.7847712781484749E-3,5.7244729371056886E-3,1.7971282143481693E-2,6.1132925677643314E-2,4.4104220823851514E-3,6.3234927803951764E-3,5.8872042956797255E-3,9.7267383787243492E-3,8.0082811645810666E-3,5.577231399271498E-3,5.497933959292026E-3,1.7466190437515055E-3,1.9402627242531303E-2,7.5878866436386574E-3,1.3261609973509276E-2,1.8002827980842483E-2,1.5112905292564446E-2,1.1859732327296237E-2,2.4595262142501847E-2,0,2.7647612756129165E-2]
[null,"TTL_C20: Wood and products of wood and cork",2.6406737970399507E-4,4.2806202023199273E-4,2.7713303764621833E-4,2.7411010665848639E-4,1.0195107530686505,2.4240780078209692E-4,1.0518222394773706E-4,8.8618181406142818E-4,3.3020739714400139E-4,1.7907144678635189E-4,1.4670900809480721E-4,1.8231893827542822E-4,1.0931453830999684E-3,6.773933763155024E-4,3.8823836627075744E-4,4.9498772534218086E-4,1.5139017213861245E-3,2.6061802392169878E-2,1.7729471273357142E-4,7.1876175837331377E-3,2.373319897797031E-4,4.1850299055902766E-4,3.2263900570273879E-4,2.8128151363837812E-4,2.2936764119555907E-4,7.8659614917341166E-4,5.0596693426393081E-4,3.1443471744987511E-4,4.3183943891058962E-4,7.2823309011400524E-4,6.9846540996242349E-4,6.8101558417757652E-4,6.7968099667861746E-4,0,8.599248567268767E-4]
[null,"TTL_C21T22: Pulp, paper, paper products, printing and publishing",7.8162806640511718E-3,6.2777282196117903E-3,9.0499970944331147E-3,8.3542267562602465E-3,1.8091127927648939E-2,1.3046550813378706,4.5380710279970269E-3,1.1522203634224458E-2,8.0052671675668041E-3,2.7647210837608498E-2,6.5278609120309186E-3,1.111520437642697E-2,9.7702583247264423E-3,7.6902218280287997E-3,1.0107267436768279E-2,7.9242685133592613E-3,9.185856598747863E-3,1.6969844432473839E-2,5.5923514532281926E-3,8.1909888932435865E-3,1.1351073763915866E-2,9.4628113915457002E-3,1.0188449116238802E-2,9.767489026233778E-3,1.0743744054198064E-2,3.5018152813787572E-3,7.6968231072871464E-3,1.5300266672008855E-2,2.4465760248460321E-2,3.516998414307896E-2,8.0148300230289404E-2,1.6620567959043705E-2,3.0939863013550523E-2,0,2.2814146049315545E-2]
[null,"TTL_C23: Coke, refined petroleum products and nuclear fuel",6.9995926043079928E-2,0.100782603996277,7.98734593591858E-2,5.911789674644688E-2,0.10591516089259077,7.760738342694927E-2,1.0684233511335566,7.1575713412599232E-2,5.8176422213105636E-2,7.8878385977531718E-2,0.11480183124031391,7.9289958480433173E-2,6.7566491270738632E-2,5.3662365869634583E-2,5.4700269500527789E-2,9.1450043905671824E-2,8.2018146760148083E-2,6.3244127857337032E-2,0.22141800124557323,8.6236338403537893E-2,7.8294518396726839E-2,0.11578645177475144,0.229364520312623,7.7846526093600793E-2,8.3895319405224211E-2,2.5287009901592595E-2,0.2208788508618669,6.8957709705283254E-2,0.11662739068442814,0.10246031771538837,9.0029240618109976E-2,7.8994965524691638E-2,9.4413105206922907E-2,0,9.5854705673941526E-2]
[null,"TTL_C24: Chemicals and chemical products",3.9594642425186323E-2,2.7333917882783242E-2,2.433048861064372E-2,3.5075099710963772E-2,3.3239298209911158E-2,4.3158084060117445E-2,1.9855861146330932E-2,1.1826888772309134,0.26939600109581435,1.4668569018224897E-2,1.3685156525539512E-2,1.8591109624030634E-2,3.2429823061921617E-2,1.8134540220893572E-2,1.6216627997333234E-2,3.6717742529705763E-2,2.6142018074647659E-2,4.8667355597291996E-2,1.5613767575918515E-2,1.7703806195656924E-2,1.3380171603213985E-2,2.3469340639699549E-2,2.2409134466945434E-2,1.3346721899906346E-2,1.3388851029067077E-2,5.293777667843595E-3,1.8992026278286573E-2,2.0963540927657256E-2,6.2358926487076499E-2,4.7072861567194223E-2,4.0363800455421713E-2,0.17105465708852577,4.7463566001314031E-2,0,4.7062351515107195E-2]
[null,"TTL_C25: Rubber and plastics products",6.4851592514476733E-3,5.9364697860989479E-3,1.0858490496281613E-2,4.8731561787863833E-3,8.5512091938453483E-3,7.0325432638522695E-3,1.6401961468705953E-3,1.2783468776952323E-2,1.0329432473531124,3.7684131733681289E-3,2.3256919616356591E-3,5.9739332495532217E-3,3.6541058680698325E-2,8.745185271675289E-3,7.6565903535902383E-3,8.6638164874266871E-2,9.282082425725733E-3,4.7382406491832833E-2,2.3866515937014362E-3,8.9730520649613857E-3,4.1897535830458174E-3,7.0301604364181322E-3,2.1156036233695198E-2,7.0242140810572338E-3,4.2156355237898272E-3,1.5003860442888456E-3,7.5017483311359935E-3,4.9945861499150045E-3,1.8740468113449229E-2,1.1657347075340045E-2,9.5920995021494624E-3,9.137836760880284E-3,1.2030655004349649E-2,0,1.2075998680077528E-2]
[null,"TTL_C26: Other non-metallic mineral products",5.02293741319201E-3,7.0964076987747714E-3,6.2258543383475118E-3,4.9291716983763728E-3,4.8226637599299363E-3,4.7934358517294235E-3,1.9504189393329437E-3,2.2361463078543087E-2,7.5701901337711167E-3,1.088832062178084,5.3053725607946356E-3,4.9915708310665184E-3,1.6558782821490044E-2,6.6735429241783408E-3,5.2881407754049236E-3,9.672855080248911E-3,6.6083171721491359E-3,1.4283117782802892E-2,5.1676287878401625E-3,8.3144525796803606E-2,4.5518707178709358E-3,9.5228603578053107E-3,5.6436835536422545E-3,5.254574008080398E-3,4.5800736179214593E-3,3.0580009075262302E-2,4.4162802891030634E-3,5.3795484831283841E-3,8.3001482176793158E-3,1.3246576003292238E-2,1.2869515353266959E-2,1.1652758192706114E-2,2.3011256209577526E-2,0,1.7103247178434207E-2]
[null,"TTL_C27: Basic metals",4.7040871189832512E-3,1.1597541737430132E-2,6.5160365143987755E-3,3.6638389923060993E-3,1.330487033266501E-2,5.7255228902982451E-3,3.3653791522084684E-3,1.3656523454271863E-2,5.0578818651537613E-3,3.0655715363448891E-3,1.4836349472621033,0.56568647832511298,0.25315043395023668,1.4405711314585892E-2,4.4940880095124147E-2,0.29515231385887547,0.12904473007247655,4.4425310889983471E-2,4.1638340464782778E-3,6.5919266483013592E-2,3.1314648110840745E-3,9.4873673824903155E-3,9.1308584504439655E-3,5.1267505615422669E-3,3.2787613725722645E-3,6.8837805298295699E-3,1.0064646087189147E-2,4.2555493313709853E-3,1.7035383143195214E-2,8.740124518677634E-3,8.5003450535876164E-3,7.2021228192484512E-3,9.4601222157732097E-3,0,9.8990752269140607E-3]
[null,"TTL_C28: Fabricated metal products",4.8504323139013754E-3,8.3842686042980754E-3,8.7125133890648358E-3,3.1666472775682933E-3,1.6936987194917433E-2,5.4248101877857726E-3,3.9309164172603864E-3,2.1997690758070315E-2,6.4882590825375442E-3,2.8908089400962057E-3,1.9474390335426601E-2,1.0274040055652065,5.2405982911647074E-2,5.1383796242537401E-3,1.1649620626417598E-2,1.3129112672094951E-2,1.3589696721351364E-2,1.5050991653440426E-2,4.2197479244825663E-3,1.6993530801538276E-2,2.5083279926022225E-3,1.2862318342184358E-2,8.4782770444257714E-3,4.9659462367651584E-3,2.6406638310429828E-3,2.7451857473500137E-3,3.5042926164115572E-3,2.9263419516276437E-3,1.4149176557635241E-2,5.7548176262745354E-3,6.2130835098708819E-3,6.9952259163159475E-3,6.6102533247378685E-3,0,6.2158554627614231E-3]
[null,"TTL_C29: Machinery and equipment, nec",9.628021266740029E-4,1.1310471100591272E-2,7.4503347174039044E-4,8.0045155594782791E-4,9.6377842693116701E-3,9.690446002794806E-4,1.5787517811160395E-3,1.0906078336228252E-3,6.86717143268452E-4,1.2818724049912448E-3,2.0624391872610202E-3,1.5018890751960327E-3,1.0118717195299534,1.0893380211337634E-3,4.4528572458551081E-3,3.0142885456818716E-3,1.1619172097568173E-2,4.0458190602094537E-3,1.5159471555026489E-3,2.2563157811396686E-3,5.4862130072306993E-4,2.0354961200532693E-3,7.3237326552542869E-3,1.048366033957129E-3,5.9012188163244444E-4,3.4776083193552982E-4,4.6839302786229808E-3,7.6148553870470986E-4,3.7700680355263827E-3,1.2883424793505844E-3,1.1379687030734428E-3,9.7336346655473743E-4,3.0451305043470204E-3,0,1.4930985505547812E-3]
[null,"TTL_C30T33X: Computer, Electronic and optical equipment",1.0906855170775423E-2,1.5768609075587525E-2,8.7171120213203439E-3,1.0898260001555931E-2,1.1327525431258466E-2,1.0398050669893261E-2,4.0876412720866626E-3,8.7422634924002283E-3,8.4087508314494696E-3,6.6002294696943919E-3,7.5387325766411266E-3,8.6166094276533458E-3,6.3865804438844723E-2,1.7219321018346665,0.61254500177608784,0.12801164604668896,2.1989429885714708E-2,1.163539953416139E-2,1.9469937162569503E-2,1.6203760509156149E-2,1.0850259841158623E-2,1.2953957973709586E-2,5.2551133039029994E-2,5.2714908826471236E-2,1.1989559501464969E-2,4.1066937173746794E-3,1.3092622375970838E-2,7.6310068784627566E-2,2.2830450772010426E-2,5.0297398609060927E-2,2.9886400239184156E-2,2.9185134690375994E-2,9.4502965695903107E-2,0,3.543955038613987E-2]
[null,"TTL_C31: Electrical machinery and apparatus, nec",5.0781462846804107E-3,8.5258671973957312E-3,3.891300884387786E-3,4.8725390999734899E-3,4.5161589914720739E-3,4.2147454489745093E-3,1.8695121818095852E-3,3.4097976095924299E-3,3.5884664844906687E-3,3.1269771892175166E-3,2.859056117640966E-3,3.338146798245057E-3,5.6661706707175404E-3,4.4943370051395417E-3,1.0107174706586632,2.9265664143399983E-3,5.0030451314258097E-3,5.0812147010145092E-3,3.4458164913861843E-3,4.6366960634173122E-3,3.9948159854959137E-3,4.9733561418142235E-3,5.6921200872288363E-3,4.1851921434841229E-3,3.8109640262577651E-3,1.190476804414399E-3,5.911232436559939E-3,5.8496889539835688E-3,7.0107754806435279E-3,1.2487828855321282E-2,1.0910906485346539E-2,8.1060471354481734E-3,1.2323161572182389E-2,0,2.0133342636135709E-2]
[null,"TTL_C34: Motor vehicles, trailers and semi-trailers",3.3912385580039941E-3,2.9991537499544562E-3,2.5659626124939958E-3,3.2280475442185686E-3,2.8323941742306991E-3,2.7633061641097723E-3,9.9087495063753688E-4,2.1935549717223908E-3,2.3054155409754202E-3,1.7971162595750809E-3,1.9699097450188471E-3,2.2370000695658048E-3,2.5142563068696537E-3,2.8648527845532516E-3,2.6692770835705843E-3,1.0617802883629335,2.530030466249408E-3,2.9889514480849122E-3,2.4813799658194476E-3,2.9011693604401299E-3,2.8949172659249E-3,3.2876200460090995E-3,5.5181252454491641E-3,2.5055060662521941E-3,2.5097125460333924E-3,7.7807252587663584E-4,1.1553759479107584E-2,3.9073404054255634E-3,4.3941631578881873E-3,8.3834209625853421E-3,7.2085037794175745E-3,5.2904543313174518E-3,7.4746452247573614E-3,0,1.3193798038805427E-2]
[null,"TTL_C35: Other transport equipment",3.4767818000236165E-5,2.8457183305535493E-5,2.7440008522857087E-5,3.450464491956722E-5,3.0863935216569855E-5,4.0629854135984922E-5,1.0514166789308498E-5,2.9709967135686338E-5,2.9998561544535992E-5,1.9233102264909831E-5,1.9524673478165866E-5,3.3473697108597087E-5,6.8591715974291161E-5,3.434060322572563E-5,3.297886868674776E-5,2.1247443398711178E-5,1.3069763931910401,3.4898152271825266E-5,2.18845126829034E-5,3.1141255599246879E-5,3.5879659927411904E-5,5.3516391361768385E-5,4.3720404371148438E-5,5.7283083244263147E-5,3.8005086960640342E-5,1.5369830000279662E-5,3.379080884702421E-5,4.2686816485855967E-5,7.3866763062859129E-5,1.0340157297668145E-4,7.6901995776739658E-5,6.0930764626308891E-5,8.9866120642604567E-4,0,1.3250387943420486E-4]
[null,"TTL_C36T37: Manufacturing nec; recycling",1.6331241943771835E-3,1.3890840752706179E-3,1.3075827526396919E-3,2.692320263752383E-3,1.5149307455816492E-3,1.9199126675996645E-3,5.2545795119058008E-4,1.2586733245190088E-3,1.2889445898738286E-3,9.4723461839577754E-4,1.0967071160011158E-3,1.7248499275850776E-3,1.610018584634057E-3,8.8331603310396276E-3,4.1688443018032947E-3,2.1634757644712604E-3,2.0569719195450789E-3,1.0258579738903912,1.1676290129803504E-3,1.5689863137297525E-3,1.7698427325857362E-3,3.6183789222529301E-3,2.0706432034422978E-3,2.881810650160094E-3,1.8778179831582123E-3,5.3172641159893663E-4,1.5344301541198545E-3,3.9024640644361851E-3,3.6975164860210321E-3,5.3362012926614442E-3,6.295166347495669E-3,1.053404785797075E-2,5.8597303650773976E-3,0,5.9357585493375045E-3]
[null,"TTL_C40T41: Electricity, gas and water supply",3.1191181676916716E-2,3.6841861580109089E-2,3.7563121658698531E-2,4.0639668623379623E-2,7.6404507321840634E-2,4.8310579795269377E-2,1.2541118996301254E-2,4.3869994570312383E-2,3.0657058027904211E-2,3.8903098620072595E-2,9.1130042214200346E-2,6.3830172691401302E-2,4.7991348711848188E-2,3.4080743682080743E-2,4.2110861915641763E-2,5.1997776026560701E-2,5.7922071954559978E-2,5.5640267634775829E-2,1.0822325544849063,3.0341897779968419E-2,5.0262785762535983E-2,5.6837281285279928E-2,3.4886988571551494E-2,4.2755768149254525E-2,4.3011004718333475E-2,1.0832836137465161E-2,3.9001250071339977E-2,6.3393921269414261E-2,8.2342089599825363E-2,7.7530188611378142E-2,8.8313632087637511E-2,8.1531468109087332E-2,8.9044447312967664E-2,0,7.5290193481457351E-2]
[null,"TTL_C45: Construction",6.959197893899538E-3,2.601432952522088E-2,6.5363354186358568E-3,7.6119650410744937E-3,9.1242624938945773E-3,7.7378446429023657E-3,4.5858703999771136E-3,6.7925434054308242E-3,5.7340898222440935E-3,6.1417148674140273E-3,5.7690919263601514E-3,5.9672337384342796E-3,7.7653127351371316E-3,6.4250814826451617E-3,8.9031307574376946E-3,5.7577950998535599E-3,1.3417575623962646E-2,1.105863605166625E-2,7.0921611639812917E-3,1.0132701117767047,8.174465909633527E-3,9.2556186489462407E-3,1.0709949298462607E-2,1.3307002147450122E-2,9.8868416022564534E-3,9.1357795004602255E-2,6.8978185756032378E-3,8.0648818667301038E-3,1.4954818284453318E-2,2.9117744217399461E-2,3.3182743009074027E-2,1.3678234389719629E-2,2.7178826913280871E-2,0,2.2522588157437892E-2]
[null,"TTL_C50T52: Wholesale and retail trade; repairs",0.10490923804899911,8.5133807352087601E-2,0.16662627632940827,0.21790846799683863,0.19737925751993254,0.17703376255901515,0.10099626088708541,0.15973549018617678,0.16438809478035818,0.11119734131960249,0.11690400347754283,0.12509161734499102,0.12546440966698158,0.21505604447682292,0.19332732137567415,0.14347300301996291,0.11170403498748674,0.16315475813494548,8.1520953428684331E-2,0.10848376181327279,1.0803951722865808,0.18607661458826327,0.13953622603334606,7.2258672057798776E-2,6.400893509829407E-2,2.9598140437519838E-2,0.14247719325146707,0.1009591602491518,0.1252563926320687,0.17189250696940739,0.1565329395883325,0.17135927261498135,0.1824688641527773,0,0.2241985485466623]
[null,"TTL_C55: Hotels and restaurants",1.9215794276761636E-2,1.718776573333659E-2,1.5717174126866598E-2,2.0262779396975492E-2,1.8108705535797166E-2,1.6975915195703996E-2,6.5692860568515119E-3,1.8237760194508984E-2,1.5690762704546654E-2,1.0552065302873042E-2,1.6904515968608029E-2,1.5279020255208513E-2,1.5649093617930487E-2,1.8628496747277984E-2,1.7111315827920203E-2,1.5686561505247498E-2,1.942199499976965E-2,2.0056718521299775E-2,1.182880686534162E-2,1.8187552253247141E-2,2.6263257547830897E-2,1.0199402938052755,6.3996790512157856E-2,1.6390919477518317E-2,3.9331335959199173E-2,7.6675235426438716E-3,2.8205120218953824E-2,3.7354676818512872E-2,5.4530380858581189E-2,5.7836000323677132E-2,5.3768164540312621E-2,4.4653006933370959E-2,6.565926939581064E-2,0,6.7207972896425147E-2]
[null,"TTL_C60T63: Transport and storage",1.9269522481026022E-2,1.5190449158361943E-2,2.2982589003591208E-2,2.7914846425652534E-2,3.1549979671335937E-2,2.7706427713428069E-2,1.0697911514142518E-2,2.2621054306835208E-2,2.3133948313569328E-2,1.5193726258983598E-2,2.1989148089404567E-2,2.1681761337698269E-2,2.100161530466034E-2,2.473572824880494E-2,2.3762439662656839E-2,2.73215986336665E-2,2.0419568299990126E-2,2.3916627774725099E-2,1.3521549622690341E-2,1.7873491241828691E-2,1.7250269422053797E-2,2.4237544905060995E-2,1.0206526422384403,1.2754755994149998E-2,1.2117611690757609E-2,4.6429116991091122E-3,2.5774692694083265E-2,1.7462979780784271E-2,2.1746195057876175E-2,3.7514030524490323E-2,3.3864103650372443E-2,3.0446375203979838E-2,4.0796182066946032E-2,0,5.5735533893279066E-2]
[null,"TTL_C64: Post and telecommunications",1.4090988833231465E-2,1.1507258580709303E-2,1.2444740684948573E-2,1.7002901584231872E-2,1.6691520753266145E-2,1.4304114401319915E-2,5.3792831624844949E-3,1.1696281447429919E-2,1.2080652006505325E-2,8.7375966805513048E-3,8.9305858994098864E-3,1.0566357670650974E-2,1.4929277042140554E-2,1.498266990882181E-2,1.7677141539723301E-2,1.0649253519303634E-2,1.6364953766967505E-2,1.508755847926109E-2,9.044461123044991E-3,1.3621747277915279E-2,3.0035660681777251E-2,1.5851785692759836E-2,1.5793777532046929E-2,1.0331717129395737,2.2485130163291456E-2,4.2382492345327104E-3,1.380857477527647E-2,2.232788185126991E-2,2.6963322084637129E-2,4.0540208991920311E-2,3.2955508471729518E-2,2.4718386668119333E-2,3.828050114466941E-2,0,4.934186607025462E-2]
[null,"TTL_C65T67: Financial intermediation",5.3228466012762946E-2,4.5655866436979602E-2,4.6809102167561373E-2,6.3981101995463821E-2,6.4329079938512237E-2,5.0273541159760085E-2,2.5124845903532974E-2,4.6254797071283153E-2,4.5686177915036978E-2,3.108180096641926E-2,4.3107703600356921E-2,4.0953931539744436E-2,4.7942221010557368E-2,5.2042259457560865E-2,6.316795478354284E-2,4.413078001814013E-2,6.7424582288285184E-2,6.3891935845763095E-2,3.9293276004481952E-2,5.4519468269214257E-2,9.618964478663028E-2,5.8192380657313497E-2,6.7206444361488094E-2,7.8722140717332481E-2,1.0761106601370272,2.4948268415855391E-2,5.333513003473233E-2,5.5180075851694675E-2,6.6198214267767785E-2,0.16100335705675325,9.9611488275132901E-2,7.5288359989692188E-2,0.11039828125075918,0,0.15549135824759194]
[null,"TTL_C70: Real estate activities",4.4319515923263657E-2,4.1610463595839156E-2,3.5925777327906666E-2,4.690163386864922E-2,4.4221702605909949E-2,4.5232064559914138E-2,1.4029373188608758E-2,3.4617922995586491E-2,3.4000542542482616E-2,2.6749981224079754E-2,2.4658902800014579E-2,3.372376693319068E-2,4.080415697655413E-2,4.2505871212515749E-2,4.6251702485173983E-2,3.0083075611568977E-2,4.6593161898545329E-2,5.4761298550295115E-2,2.7997079616700424E-2,3.9585298146568748E-2,4.9167217359981294E-2,5.4278733624134448E-2,5.8162074657579985E-2,6.5928816289605535E-2,5.4667881179806616E-2,1.0145320811266145,4.7167588254783503E-2,5.7589296113326457E-2,8.4589463272009918E-2,0.11293062796291101,0.10251080468340572,7.3587218780677865E-2,0.14656630465741527,0,0.16745257762788263]
[null,"TTL_C71: Renting of machinery and equipment",3.0723055236596256E-3,1.0514490660875734E-3,1.8185560320511758E-3,1.5924213863297589E-3,3.0979431349360859E-3,1.5839980927250562E-3,4.5968187868199861E-4,1.2006288794271743E-3,1.6871486242063121E-3,9.0033839208399752E-4,1.0817627079770557E-3,1.8128439775439394E-3,1.3357400624992872E-3,1.2024109853245465E-3,1.12524753347374E-3,1.4036978070241758E-3,2.2720860956884185E-3,1.5942692667319594E-3,6.7972562894621992E-4,2.3175257596829246E-3,2.0193570910771392E-3,1.8021489439702955E-3,1.1122063659013878E-2,7.8669934978975141E-3,2.1598668577177075E-3,4.4053842979599207E-4,1.0111283984541903,1.7687434641432693E-3,2.3824692117464684E-3,3.1996973885330938E-3,3.3862405150266962E-3,2.4666345635477233E-3,3.6253295848769564E-3,0,3.211492575167724E-3]
[null,"TTL_C72: Computer and related activities",5.3220817195095615E-3,1.3214215441971031E-2,3.8383589102107523E-3,3.9983239938747644E-3,5.2482672724245222E-3,4.0773471732798855E-3,2.6312150332987944E-3,3.4574870141562196E-3,3.9239894395869442E-3,2.8582145096446156E-3,4.0571281402943414E-3,3.9432474943317123E-3,3.6712221966214076E-3,4.3666169238430839E-3,3.7626033870645672E-3,8.0159787580551256E-3,8.3105414818786128E-3,3.9100747603749136E-3,2.3596535486289749E-3,3.5140750671830588E-3,4.6829192776835131E-3,4.7779205992432468E-3,9.5710738013287597E-3,2.0825105769118963E-2,1.2983755410935702E-2,1.7810223051775633E-3,4.4023468589737668E-3,1.1402398102610178,1.6400270919585461E-2,2.5389753987299993E-2,1.8227770690642856E-2,9.2125390060041543E-3,1.8434014016806093E-2,0,1.101820810544929E-2]
[null,"TTL_C73T74: R&D and other business activities",3.789940033093124E-2,5.2204219553128373E-2,2.5027230511247334E-2,2.1648264742971688E-2,3.4163543341601682E-2,2.0583754079970842E-2,1.0449098400361255E-2,2.0223721074710366E-2,2.9878433407579463E-2,1.3609217562997286E-2,1.3039245061014181E-2,1.5367013496085317E-2,1.7349631095076083E-2,2.1574237153050686E-2,1.7069995701295072E-2,1.9787531196853666E-2,3.6481363532434391E-2,1.8869625253374375E-2,1.0124342019383181E-2,2.2558185690284838E-2,2.1152413297127786E-2,2.8635564681855102E-2,2.7266533219549201E-2,3.3413566714929926E-2,3.410052029430849E-2,9.0887563905281757E-3,1.8544805240490604E-2,3.545653453876918E-2,1.0560789551845973,6.4926671265249772E-2,4.4626049139039212E-2,2.5335319926501027E-2,6.4276993656489131E-2,0,4.1447399937585151E-2]
[null,"TTL_C75: Public administration and defence; compulsory social security",3.5182838331931553E-2,2.7300419329135833E-2,2.6316551503409173E-2,3.3340456450851541E-2,2.8608736095859292E-2,2.8473772529612931E-2,9.4391321950313897E-3,2.2385138841513819E-2,2.3824060024901377E-2,1.8126966106547564E-2,1.6777624356555901E-2,2.173402308180989E-2,2.5324802001980538E-2,2.9559064736459695E-2,2.767184576454796E-2,1.8077293669673689E-2,2.9181413222841512E-2,3.0504099065328832E-2,2.2268444514676071E-2,3.0134357240138857E-2,2.7842069791529069E-2,3.4682767013874231E-2,3.3066438750881319E-2,2.5728374931110881E-2,2.6402179522889934E-2,8.1277950045714267E-3,2.7640844687283391E-2,3.515624526711808E-2,4.0809815941287457E-2,1.0858678062200429,7.4986574363288927E-2,5.6189108482589414E-2,0.10402268623200907,0,0.14191219984339332]
[null,"TTL_C80: Education",3.4273864475350961E-2,2.6876939789003729E-2,2.5612187700594584E-2,3.2553914324502574E-2,2.7901158360043164E-2,2.7468363750408859E-2,9.2095944083746221E-3,2.1678493064647246E-2,2.3132436519743754E-2,1.8266614414807956E-2,1.6292533280774169E-2,2.0917744627307052E-2,2.4489316924533964E-2,2.9005981674713226E-2,2.696224682731007E-2,2.0478607365910003E-2,2.6422996241761577E-2,3.1041893870947988E-2,2.1620013740937388E-2,2.9332252014783202E-2,2.7087239793097614E-2,3.3388424833539494E-2,3.2023195425982545E-2,3.292599286413047E-2,2.5883369010441738E-2,8.8954943936537974E-3,2.7248675865312662E-2,3.7198788620170474E-2,4.4838833792912071E-2,0.16875290428625747,1.0728960616778123,5.8615315587954596E-2,8.542352224671497E-2,0,0.13761599366337313]
[null,"TTL_C85: Health and social work",1.8012248962615458E-2,1.4255832309447821E-2,1.2654618244047759E-2,1.5149833302012425E-2,1.4030465679315719E-2,1.3262888880233741E-2,4.4670722950751057E-3,1.0364784805324942E-2,1.1041109654287236E-2,8.2119868184414128E-3,7.598149657379441E-3,9.835843909677823E-3,1.1415317823931877E-2,1.3738268520158092E-2,1.2551674760631669E-2,8.3719790754075239E-3,1.4372922755380615E-2,1.4297089895095271E-2,9.8416697485076855E-3,1.3490190710790729E-2,1.2610680509277127E-2,1.5989725577142167E-2,1.5382135494276274E-2,1.3230913845700638E-2,1.352424551445496E-2,5.3279242741086346E-3,1.7288548230102698E-2,2.1603385524164697E-2,3.5514088405083126E-2,0.10725738991421029,5.001457957602002E-2,1.0278813017308401,5.384115443708988E-2,0,6.1839463511536019E-2]
[null,"TTL_C90T93: Other community, social and personal services",2.2268928478115083E-2,1.8792191331938699E-2,1.8583319976108421E-2,2.3201369433846403E-2,2.1194417175741002E-2,3.4805408715888414E-2,7.5097796280281029E-3,2.4348003667739E-2,2.3755276873979912E-2,1.3212352366482482E-2,1.450579745344798E-2,2.9840620038289235E-2,2.9086160448587112E-2,2.5592718427839532E-2,2.4920946682856524E-2,1.5876521805355554E-2,0.16203324486569015,2.5553129870379127E-2,1.3891001633590749E-2,2.0840347171564046E-2,2.8877680444546423E-2,4.7769347550572612E-2,3.548572150271518E-2,5.9092590263330684E-2,3.2732281025259671E-2,1.5002352546552404E-2,2.6023466134684588E-2,3.2941052842786568E-2,7.0792883623820704E-2,7.9327849307486611E-2,5.1267462974502659E-2,4.2854821161551128E-2,1.1356233126080506,0,7.9534349757498526E-2]
[null,"TTL_C95: Private households with employed persons",0,0,0,0,0,0,0,0,0,0,0,0,0,0,0,0,0,0,0,0,0,0,0,0,0,0,0,0,0,0,0,0,0,1,0]
[null,"LHH",0.3413076356900564,0.26447074331665382,0.25482508179081004,0.32292164633343579,0.27677781129773676,0.27211977382917235,9.119335409754574E-2,0.21466870183368963,0.22899523388460977,0.17542397946284899,0.16180899272289614,0.20690854503296935,0.24248273788481153,0.2850686084600022,0.26663294547277094,0.17428303485849406,0.24798700782398087,0.2943922859330137,0.21607532114922506,0.2919004829438665,0.26734320918787496,0.33014424370118522,0.31721749162906021,0.23912369967036115,0.25220960124352465,7.6437249318995898E-2,0.26605784249635689,0.33843621810637975,0.38490151933597161,0.82689387335901654,0.72651218475143597,0.54330641975372851,0.747560194397899,0,1.3792014947754028]
[]
[]
[null,"Average Salaries, "]
[]
[null,"Assigned labor category"]
[null,"Avg Annual Salaries $2014"]

{"sheet":"Colombia-IO-Data","index":20,"n_rows":226,"n_cols":42,"rows_kept":226,"cut":false,"hidden":false,"merged":[]}
[null,"Source:",null,"OECD"]
[]
[]
[]
[]
[]
[]
[]
[]
[]
[null,"Direct Requirements "]
[null,null,"DOM_C01T05: Agriculture, hunting, forestry and fishing","DOM_C10T14: Mining and quarrying","DOM_C15T16: Food products, beverages and tobacco","DOM_C17T19: Textiles, textile products, leather and footwear","DOM_C20: Wood and products of wood and cork","DOM_C21T22: Pulp, paper, paper products, printing and publishing","DOM_C23: Coke, refined petroleum products and nuclear fuel","DOM_C24: Chemicals and chemical products","DOM_C25: Rubber and plastics products","DOM_C26: Other non-metallic mineral products","DOM_C27: Basic metals","DOM_C28: Fabricated metal products","DOM_C29: Machinery and equipment, nec","DOM_C30T33X: Computer, Electronic and optical equipment","DOM_C31: Electrical machinery and apparatus, nec","DOM_C34: Motor vehicles, trailers and semi-trailers","DOM_C35: Other transport equipment","DOM_C36T37: Manufacturing nec; recycling","DOM_C40T41: Electricity, gas and water supply","DOM_C45: Construction","DOM_C50T52: Wholesale and retail trade; repairs","DOM_C55: Hotels and restaurants","DOM_C60T63: Transport and storage","DOM_C64: Post and telecommunications","DOM_C65T67: Financial intermediation","DOM_C70: Real estate activities","DOM_C71: Renting of machinery and equipment","DOM_C72: Computer and related activities","DOM_C73T74: R&D and other business activities","DOM_C75: Public administration and defence; compulsory social security","DOM_C80: Education","DOM_C85: Health and social work","DOM_C90T93: Other community, social and personal services","DOM_C95: Private households with employed persons","HH",null,null,"VA % Output","Labor % VA","2014$/Job"]
[null,"DOM_C01T05: Agriculture, hunting, forestry and fishing",3.8155010633897542E-2,0,0.30794423565591855,1.9043904705794493E-2,0.10456845347217129,3.3692982343334061E-3,0,2.5185479268504504E-3,2.9092832583972497E-3,7.6838357708167908E-5,0,0,0,0,0,0,0,5.0918698210640082E-3,0,4.544696224450466E-3,0,6.5588314991739727E-2,0,0,0,0,0,4.1949828005705173E-5,0,2.7121354222721054E-3,0,0,1.4486555097197886E-4,0,3.0492081987079856E-2,null,"TTL_C01T05: Agriculture, hunting, forestry and fishing",{"$f":"TRANSPOSE(C48:AJ48)","v":0.69230092790119757},{"$f":"TRANSPOSE(C49:AJ49)","v":0.26400767775990064},{"$f":"TRANSPOSE(C133:AJ133)","v":4894.76}]
[null,"DOM_C10T14: Mining and quarrying",2.5729798037370092E-4,9.6696612792297118E-2,1.693277525631437E-3,1.6927915294039546E-3,1.026618757791303E-3,4.3980915883283398E-3,0.36320595401799716,1.0669710429021612E-2,5.4785204216571584E-4,0.12003432113310963,0.359234985544785,6.1666562323921615E-3,3.0612244897959182E-3,1.103448275862069E-3,2.0251455573369339E-3,4.664151391818425E-3,2.7493298508488554E-3,6.6770745766782753E-3,7.0092040581529125E-2,4.4093141343887768E-2,0,0,6.9985536322493349E-5,0,0,0,1.0374520178441748E-4,5.2437285007131472E-4,0,0,0,0,0,0,0,null,"TTL_C10T14: Mining and quarrying",0.81888325309491061,8.2942704915881474E-2,10487.331818181818]
[null,"DOM_C15T16: Food products, beverages and tobacco",7.7505316948771635E-2,0,0.12620143731156772,1.7774311058741523E-2,8.5795996186844598E-3,3.4464577358830259E-3,1.8093652746616485E-5,2.9540209920349371E-2,3.2115464540748861E-4,0,3.9244927593108585E-5,0,0,0,0,0,0,1.4410952323766061E-3,0,0,4.0846023256704486E-4,0.22821516918262633,1.566342955789137E-4,1.3790820829655783E-4,4.152626319864693E-4,4.4652977666641477E-5,0,0,9.5885559289237495E-4,1.0537968358420073E-2,6.8252218197091414E-5,1.0557197786322316E-4,9.588719802430982E-4,0,0.10508771963951206,null,"TTL_C15T16: Food products, beverages and tobacco",0.22894784519401848,0.3509353948543138,4253.8081818181818]
[null,"DOM_C17T19: Textiles, textile products, leather and footwear",4.2209896527128652E-3,5.5235557083906464E-4,1.48655365761882E-4,0.18038187385383908,5.1110948155752733E-2,8.8090430935816155E-3,0,5.7070544155231882E-4,6.8009219027468171E-3,1.920958942704198E-4,5.1018405871041165E-4,7.5126776435234456E-4,6.4625850340136056E-4,1.3793103448275861E-3,6.3285798666779176E-4,2.9410890942039749E-3,4.1927280225445042E-3,4.9621712501501138E-2,0,5.580196630021459E-4,2.9038969659063349E-3,2.8801692263314776E-3,4.3657644086888707E-4,3.5028684907325684E-3,2.8549305949069763E-4,0,1.0374520178441748E-4,1.2584948401711551E-4,1.7276677349412164E-5,6.2083916298949892E-3,1.6485535779912847E-3,1.5002333696352766E-4,8.1745560905616636E-3,0,2.9237804937354232E-2,null,"TTL_C17T19: Textiles, textile products, leather and footwear",0.32941391242293233,0.51231800090684665,4253.8081818181818]
[null,"DOM_C20: Wood and products of wood and cork",1.7294332604865211E-3,5.5235557083906464E-4,5.1100281980646937E-5,4.1489988465783206E-5,6.614357996626824E-2,1.2859916924936663E-4,0,1.4887968040495274E-4,1.2090527827105454E-3,6.7873882642214992E-4,6.4100048402077373E-4,2.5981343517185252E-3,1.1564625850340137E-3,2.206896551724138E-3,8.0162011644586962E-4,6.5357535426755007E-4,1.195958485119252E-2,6.3143989431968292E-2,0,1.3260157971339651E-2,1.8061600908824017E-3,1.3985647229530695E-4,2.3328512107497783E-5,1.8617608120035306E-4,0,0,1.0374520178441748E-4,8.3899656011410346E-5,0,1.1069940499069818E-4,0,0,0,0,2.1903163120208681E-4,null,"TTL_C20: Wood and products of wood and cork",0.4151939576153113,0.4081596608972094,4253.8081818181818]
[null,"DOM_C21T22: Pulp, paper, paper products, printing and publishing",1.3418578216957567E-3,4.0405777166437415E-4,1.4036318364047699E-2,6.2317962675606372E-3,1.1072816601891911E-2,0.20867787194094725,1.9903018021278133E-4,1.6240291804173596E-2,1.3091774662787622E-2,9.9121481443536618E-3,2.4855120808968774E-3,5.1336630564076877E-3,5.7142857142857143E-3,1.9310344827586208E-2,5.6113408151210872E-3,3.6837883604171002E-3,3.2991958210186263E-3,1.6068211840999162E-2,1.0093086497228324E-3,1.2656116068089906E-4,2.0663407494394305E-2,1.4029352377122979E-3,1.4696962627723604E-3,2.7912621359223302E-2,9.5294122736061665E-3,8.003187535636511E-4,1.3486876231974271E-3,3.1042872724221832E-3,1.4965921753928286E-2,7.0386371673252261E-3,5.6071822334225864E-3,4.5284822083435199E-3,1.3286240532001489E-2,0,5.5886134675274908E-3,null,"TTL_C21T22: Pulp, paper, paper products, printing and publishing",0.31926029757847763,0.41045677918311452,4253.8081818181818]
[null,"DOM_C23: Coke, refined petroleum products and nuclear fuel",4.7648980416041065E-3,2.4157496561210455E-3,5.725554321922486E-3,7.1030860253420841E-3,4.253134853706827E-3,8.448965419683388E-3,5.1084412921280544E-3,1.0830996749460311E-2,8.2366720822155907E-3,2.3986373997899751E-2,4.5393299582695609E-3,8.138734113817067E-4,5.8503401360544219E-3,1.0482758620689654E-2,5.4847692177875293E-4,2.05579156887793E-2,6.1859921644099247E-4,2.4354509427164647E-2,2.6461667189624518E-3,8.3587893849702867E-3,1.0277455122559344E-2,9.1300053320280076E-3,9.7926428538102128E-2,8.3917144748455429E-3,6.968626043022938E-3,8.1405813130723298E-4,6.2247121070650485E-4,5.6632267807701984E-4,7.7485897912113553E-3,9.0773512092372499E-3,2.7510894104058382E-3,3.1338208165714665E-3,6.5120514341689547E-3,0,1.7273542496221414E-2,null,"TTL_C23: Coke, refined petroleum products and nuclear fuel",0.5398241296953028,5.2410479861460253E-2,4253.8081818181818]
[null,"DOM_C24: Chemicals and chemical products",3.6594938069353204E-2,1.7774243466299863E-3,8.2317908790642148E-3,2.5483150915684046E-2,1.5399281366869546E-2,3.1815434472293305E-2,8.775421582108995E-3,0.18165802337410983,0.22465712018740319,1.5739056937223061E-2,2.7340632889865648E-3,9.609966819007075E-3,2.139455782312925E-2,3.0896551724137928E-2,6.4973419964559961E-3,9.1797629303942245E-3,7.5606570898343528E-3,2.7212681638044914E-2,3.1325175190879614E-3,7.0855074047866968E-3,2.8528394368354539E-3,9.1343758467872342E-4,2.8994007905032957E-4,2.8960723742277143E-4,1.0338309275496475E-3,2.7478755487163985E-5,0,1.8877422602567328E-4,1.71902939626651E-3,3.6592303316369673E-3,1.0657846380007351E-3,5.9848198608672451E-2,8.4366937542252451E-3,0,1.7770740408612651E-2,null,"TTL_C24: Chemicals and chemical products",0.30928512940125558,0.36688194472301333,4253.8081818181818]
[null,"DOM_C25: Rubber and plastics products",3.5891439793901063E-3,6.6841471801925721E-4,1.8681798544106513E-2,6.3147762444922036E-3,1.444599252034905E-2,1.7180849011715384E-2,3.679042725145352E-4,1.9943673854246793E-2,3.3815695016435561E-2,3.7778859206515892E-3,1.7006135290347055E-3,7.1370437613472743E-3,8.979591836734694E-3,5.9034482758620686E-2,7.3411526453463841E-3,7.7834883099135495E-3,8.522922537631452E-3,1.6188303110363879E-2,2.1179792908691559E-3,1.7219988225976871E-2,8.4734224287215613E-3,6.4683618436579468E-4,2.5088148449320471E-2,6.7575022065313338E-4,1.8600305391060606E-4,3.0913599923059486E-5,0,4.1949828005705173E-5,2.2805214101224054E-3,7.1954613243953812E-4,5.250170630545493E-5,5.9453692796657251E-4,8.7816117327299565E-3,0,1.2667264497229036E-3,null,"TTL_C25: Rubber and plastics products",0.25169078475082179,0.57914884035127223,4253.8081818181818]
[null,"DOM_C26: Other non-metallic mineral products",9.6731012874669829E-4,1.5259628610729022E-4,4.6361892196986939E-3,9.1277974624723063E-5,4.3997946762484413E-4,7.7159501549619989E-5,1.8093652746616485E-5,4.3919505719461054E-3,1.8702535232553749E-3,9.3563506902645796E-2,1.6744502439726332E-3,5.6971138796719466E-3,5.2721088435374146E-3,1.2689655172413793E-2,5.6535313475656072E-3,8.0211520751017496E-3,1.7183311567805345E-3,3.1463912573555901E-3,1.4642819788725028E-4,0.11423870585460423,1.761484752945381E-3,1.8662098021905021E-3,0,2.3444395410414829E-4,0,0,0,0,0,6.5804646300026131E-4,0,0,1.8625570839254425E-4,0,4.5362501240076952E-4,null,"TTL_C26: Other non-metallic mineral products",0.44182055682196553,0.29597101449275365,4253.8081818181818]
[null,"DOM_C27: Basic metals",1.2278650455808259E-3,5.6954951856946355E-4,2.9707845751476103E-3,4.8128386620308516E-4,6.7463518369142769E-3,6.1727601239695991E-4,6.0312175822054948E-5,2.2269918860574178E-3,7.1787508973438624E-4,2.3179571241963991E-3,6.0777311199194176E-2,5.2682651975208168E-2,4.7619047619047616E-2,5.2965517241379309E-2,1.4386971563581133E-2,1.3487418674430349E-2,2.8043164478658324E-2,2.8005284015852047E-2,0,2.9607641225955779E-2,1.1339026247824736E-3,9.9647736510406195E-4,9.3314048429991132E-5,1.3790820829655782E-5,2.0330566357670894E-4,0,0,0,0,5.5042204148152704E-4,1.2075392450254632E-4,3.3338519325228368E-5,3.4491797850471155E-5,0,5.403817686317915E-4,null,"TTL_C27: Basic metals",0.29131509752364509,0.26139476402173423,4253.8081818181818]
[null,"DOM_C28: Fabricated metal products",3.810615658699114E-4,2.7725240715268225E-4,8.3850917250061555E-4,4.7298586850992857E-4,5.9397228129353958E-3,5.2725659392240316E-4,2.2918626812380881E-4,3.1823031686558645E-3,3.1359806551554772E-3,7.0435161232487253E-4,2.1846343026830448E-3,0.20678645213798286,0.11020408163265306,3.2827586206896554E-2,3.5819762045397018E-2,9.9610825584504334E-2,0.11938964877311153,1.4699171370241385E-2,6.7984520447651915E-4,6.5198173684099508E-3,1.1509218011394337E-3,1.4859750181376363E-4,1.123101225746679E-3,1.1032656663724625E-4,5.623348141483439E-5,1.4426346630761093E-4,2.0749040356883496E-4,6.502223340884302E-4,1.4685175747000337E-4,5.9347181008902075E-4,1.9950648396072871E-4,3.7783655235258814E-4,2.5592914005049599E-3,0,5.7306144362464281E-4,null,"TTL_C28: Fabricated metal products",0.35387841983346902,0.26236178681999117,4253.8081818181818]
[null,"DOM_C29: Machinery and equipment, nec",4.9179740552441557E-4,4.7283356258596976E-4,8.4083191259064498E-4,1.4853415870750386E-3,8.7995893524968826E-4,1.6074896156170831E-3,1.0856191647969891E-4,1.3026972035433365E-3,1.7569048248762612E-3,3.0479215224239941E-3,8.8955169211046132E-4,7.0744381143179125E-3,1.534013605442177E-2,1.6551724137931034E-3,1.7720023626698171E-3,8.9718071358545499E-3,1.697711182899168E-2,2.9782634802449862E-3,3.1377470975839344E-5,2.6750427143917301E-3,3.0081394210927162E-3,0,2.0695722883937321E-3,1.8548654015887024E-3,0,0,0,2.0974914002852586E-5,0,3.9083039928660378E-3,2.1000682522181973E-5,0,1.7245898925235579E-4,0,6.4347836235923914E-4,null,"TTL_C29: Machinery and equipment, nec",0.35173469387755096,0.51116913257905428,4253.8081818181818]
[null,"DOM_C30T33X: Computer, Electronic and optical equipment",0,1.2250687757909217E-4,1.509781058519114E-4,5.3107185236202508E-4,4.6931143213316713E-3,8.3589460012088322E-4,3.2568574943909676E-4,3.9701248107987399E-4,1.2090527827105454E-3,7.9399636298440181E-4,7.4565362426906319E-4,2.0346835284542667E-3,2.2108843537414968E-3,1.7379310344827585E-2,2.7845751413382836E-3,1.9607260628026501E-3,4.3989277613581687E-3,1.5371682478683801E-3,3.2946344524631313E-4,1.2272597399359909E-4,1.3828080790030166E-4,0,2.2328718731462165E-4,4.4820167696381287E-4,2.8116740707417192E-4,0,6.5359477124183009E-3,1.3423944961825655E-3,2.8074600692794765E-4,1.9987392567764948E-4,3.4126109098545705E-4,3.61167292689974E-4,4.48393372056125E-4,0,2.5287843744468285E-5,null,"TTL_C30T33X: Computer, Electronic and optical equipment",0.23889655172413793,0.39722863741339492,4253.8081818181818]
[null,"DOM_C31: Electrical machinery and apparatus, nec",5.8624856287678682E-5,3.0089408528198073E-5,3.4841101350441088E-5,4.9787986158939844E-5,1.4665982254161473E-4,2.0575867079898665E-4,1.8093652746616485E-5,4.4663904121485822E-4,2.4558884648807954E-4,7.6838357708167908E-5,9.8112318982771472E-4,2.6294371752332061E-3,4.7006802721088432E-2,1.1862068965517241E-2,0.26769892836047593,5.4603250051988954E-2,2.2544504776960614E-2,3.3625555422120808E-4,3.9117247149879717E-3,5.9656328920951055E-3,5.7439720204740684E-4,1.3111544277685027E-4,1.0831094907052543E-3,3.4477052074139455E-4,5.623348141483439E-5,6.5262044282014456E-5,0,1.1326453561540397E-3,1.166175721085321E-4,7.0724619855168274E-5,6.3002047566545908E-5,1.9447469606383215E-4,1.517639105420731E-4,0,1.4900375621740541E-4,null,"TTL_C31: Electrical machinery and apparatus, nec",0.25293224200489411,0.51759799833194331,4253.8081818181818]
[null,"DOM_C34: Motor vehicles, trailers and semi-trailers",1.4004826779834352E-4,2.3641678129298489E-5,4.8777541890617526E-5,5.8085983852096482E-5,0,9.001941847455665E-5,6.0312175822054957E-6,6.8236520185603348E-5,9.4457248649261344E-5,1.4087032246497451E-4,6.5408212655180989E-5,0,4.7619047619047614E-4,0,1.6876212977807783E-4,7.9617361338047005E-2,1.0309986940683208E-3,2.6420079260237785E-4,3.1377470975839344E-5,0,5.9013994017759501E-3,0,5.6588305083616055E-3,2.3444395410414829E-4,3.0279566915680052E-5,0,0,0,0,2.1740133146784337E-3,0,3.8894939212766429E-5,2.4834094452339233E-4,0,3.0703332743283649E-3,null,"TTL_C34: Motor vehicles, trailers and semi-trailers",0.22010635453492172,0.25590498042920773,4253.8081818181818]
[null,"DOM_C35: Other transport equipment",0,0,0,0,0,0,0,0,0,0,0,0,0,0,0,0,7.0039177950374593E-2,0,0,0,0,0,1.4297045277309355E-3,0,0,0,0,0,0,1.1869436201780415E-3,0,0,0,0,1.3422009372063935E-4,null,"TTL_C35: Other transport equipment",0.11155405869819232,0.37707948243992606,4253.8081818181818]
[null,"DOM_C36T37: Manufacturing nec; recycling",7.4909538589811649E-5,2.471629986244842E-4,8.2457273196043907E-4,1.9168374671191843E-3,1.6132580479577621E-3,2.4665320662028523E-2,0,8.4365152229473215E-4,1.9647107719046363E-3,3.0863407012780781E-3,2.5535366220582653E-2,3.4433105866149132E-4,3.6734693877551023E-3,7.4482758620689664E-3,1.2657159733355837E-4,6.0901339829476254E-3,5.4986597016977109E-4,3.3313318121772545E-2,0,5.0701168006105617E-3,1.170068374541014E-4,0,1.6663222933926988E-5,2.6202559576345982E-4,3.0279566915680057E-4,0,0,8.3899656011410346E-5,0,3.9052290093940741E-4,5.9851945188218614E-3,1.7780543640121796E-4,1.1782398145720947E-2,0,5.7543461049912367E-3,null,"TTL_C36T37: Manufacturing nec; recycling",0.37281133661582805,0.23018940858136838,4253.8081818181818]
[null,"DOM_C40T41: Electricity, gas and water supply",2.7162850079957791E-3,3.3786107290233835E-3,1.493521877888908E-2,1.9649658537394928E-2,1.9945735865659602E-2,3.8309692519386318E-2,1.0373694241393452E-3,2.3051537182700182E-2,3.5912645936449161E-2,5.2659887815997744E-2,1.2976989390787907E-2,1.9470356226131597E-2,8.7755102040816321E-3,1.1586206896551725E-2,8.9443928782381235E-3,1.3071507085351001E-3,9.2789882466148867E-3,1.4699171370241385E-2,0.22955234808074468,1.0278300321963922E-3,1.8189244731501217E-2,1.5742594162740486E-2,1.6093340709586686E-2,3.3546171668137691E-2,1.2505461136175865E-2,3.2287537697417684E-4,1.7636684303350969E-3,2.831613390385099E-3,7.3037153494639913E-3,2.9590565950708015E-2,9.9753241980364369E-3,1.4813415420176473E-2,1.1499565403347083E-2,0,2.9677813418507976E-2,null,"TTL_C40T41: Electricity, gas and water supply",0.52888819161175604,0.17624142227144188,10487.331818181818]
[null,"DOM_C45: Construction",3.7259353107280233E-3,6.2607462173314993E-3,2.2530578873285236E-4,3.7340989619204885E-4,4.3997946762484413E-4,3.2149792312341659E-4,1.8093652746616485E-5,5.3968884146795367E-4,2.2669739675822723E-4,1.1269625797197961E-3,1.8314299543450673E-4,2.4103174106304389E-3,4.0816326530612241E-4,2.7586206896551725E-4,2.0251455573369339E-3,1.1883188259410001E-4,1.0309986940683208E-3,8.1662063168007684E-4,2.7941637903984937E-2,1.1724165703076012E-2,2.2975888081896276E-4,2.4343767208901868E-3,5.3488945617905627E-3,4.7647285966460722E-3,3.9103897845392532E-3,2.1354427857962315E-2,2.3861396410416015E-3,4.0062085745448447E-3,1.9824987258450456E-3,3.5073261481219538E-2,1.7273061374494671E-2,1.2890894139088302E-3,1.9943157517142426E-2,0,0,null,"TTL_C45: Construction",0.49656271393150742,0.19721105537341044,3644.949090909091]
[null,"DOM_C50T52: Wholesale and retail trade; repairs",3.7298436344805348E-2,1.1481258596973866E-2,9.090740164357089E-2,9.9451502352482346E-2,7.1789983134120411E-2,4.7028716194493378E-2,3.8310294082169308E-2,5.6921664474826932E-2,6.2360675558242346E-2,3.6677509412698817E-2,5.1894875920620594E-2,3.9065923746321916E-2,3.7619047619047614E-2,3.8896551724137932E-2,4.1051388068517429E-2,5.9594189120941152E-2,3.8421884665612756E-2,6.1342620391497536E-2,9.2249764668967688E-3,3.7864798163712611E-2,2.2375962115313428E-2,6.9971941295245754E-2,7.2088435056754926E-2,1.0081090026478376E-2,2.6646018885798451E-3,5.5300995417917526E-4,6.0172217034962132E-3,1.9716419162681431E-3,7.3944179055484048E-3,1.2358358573822665E-2,4.9824119283876731E-3,1.8447314026626364E-2,1.6604351485216814E-2,0,7.2731340002840025E-2,null,"TTL_C50T52: Wholesale and retail trade; repairs",0.60078756238591835,0.43380605867459854,3311.1154545454547]
[null,"DOM_C55: Hotels and restaurants",3.094089637405264E-4,1.109009628610729E-3,2.8825204517264925E-3,5.6841284198122987E-3,5.6464031678521666E-3,7.0343745579403557E-3,1.4716170900581408E-3,9.8818887868787376E-3,6.0074810140930222E-3,5.4427170043285606E-3,2.4855120808968774E-3,1.5964439992487323E-3,4.1156462585034016E-3,3.3103448275862068E-3,1.2235254408910642E-3,2.0498499747482251E-3,9.6226544779709933E-4,6.2207277530923494E-3,3.8489697730362928E-3,1.6568006489135877E-3,1.4400350595032953E-2,3.7455311486586894E-3,7.4051362718371531E-3,4.0476059135039722E-3,3.1490749592307256E-3,2.4387395494858036E-4,3.1123560535325243E-4,1.3633694101854181E-3,1.7004569681158922E-2,1.0910041358527698E-2,3.4378117288811884E-2,1.3479874647167336E-2,1.6838895710600019E-2,0,7.1174386915680607E-2,null,"TTL_C55: Hotels and restaurants",0.46216882424411954,0.42517518227467449,4894.76]
[null,"DOM_C60T63: Transport and storage",1.5418337203659493E-2,2.9852991746905089E-2,3.384464585181847E-2,2.9549169785330801E-2,5.4264134340397445E-2,3.812965368243721E-2,8.7271718414513502E-3,4.5271829483139375E-2,4.1542297955945141E-2,5.0598058550828572E-2,2.0969872977251024E-2,9.609966819007075E-3,1.7721088435374149E-2,3.83448275862069E-2,5.3581976204539706E-3,1.4943109236208073E-2,8.5916557839026738E-3,3.6868019694968175E-2,1.8836941742495554E-2,2.2422418967299282E-2,5.9401180279880346E-2,8.56620892808755E-3,9.9922682645586583E-2,2.2485933362753754E-2,1.5779980015485834E-2,3.0467070146393068E-3,7.2621641249092229E-4,3.8803590905277284E-3,3.6099617321596708E-2,2.2502729047831366E-2,5.187168582978947E-3,5.6064276665259045E-3,1.2168706281646225E-2,0,4.6210227571141509E-2,null,"TTL_C60T63: Transport and storage",0.43621651525351429,0.25292607645998227,4484.8818181818178]
[null,"DOM_C64: Post and telecommunications",1.322316202933197E-3,6.2328060522696003E-5,1.5864314814900843E-3,2.929193185684294E-3,2.1998973381242206E-3,3.600776738982266E-3,4.8249740657643966E-5,2.4813280067492124E-3,2.7581516605584312E-3,1.8313141920446687E-3,1.0203681174208233E-3,6.135353408877481E-3,2.346938775510204E-3,2.7586206896551722E-3,7.2567715804573458E-3,1.0100710020498501E-3,4.6051275001718333E-3,3.5547015731956289E-3,3.9744796569396506E-3,9.0510405820279328E-4,2.0161341791863983E-2,1.0511087995944163E-2,9.8579626877112071E-3,7.8855913503971753E-2,1.5317135206917583E-2,1.1644122637685739E-3,1.7636684303350969E-3,5.4954274687473775E-3,2.2299871288753745E-2,7.0417121507971893E-3,1.0295584606499712E-2,1.5746893961282864E-2,2.916626426235841E-2,0,3.5847658248408319E-2,null,"TTL_C64: Post and telecommunications",0.54673019638128861,0.24273228316664355,4484.8818181818178]
[null,"DOM_C65T67: Financial intermediation",1.2861642082224617E-2,5.9963892709766166E-3,1.005281910964727E-2,1.8180912945706201E-2,5.4264134340397448E-3,1.8582579956533479E-2,3.190514100986707E-3,1.5464876802064466E-2,1.5358748630369895E-2,1.2780780165458597E-2,7.2472299621940527E-3,8.7960934076253688E-3,9.0816326530612241E-3,1.1586206896551725E-2,1.0167918319129188E-2,8.2885238109384751E-3,8.6603890301738939E-3,1.2321364236819983E-2,2.8966635289195689E-2,1.714136689888722E-2,1.3736602717111506E-2,4.532223805319791E-3,4.0308336277169385E-2,5.8066251103265666E-2,0.10839219825330156,5.1268488050176204E-2,3.3613445378151259E-2,1.0760130883463377E-2,2.8795901972132724E-2,0.1003059608554604,1.1592376752244449E-2,9.4736959082523942E-3,1.8142685669347829E-2,0,3.1009510174466667E-2,null,"TTL_C65T67: Financial intermediation",0.66628024171745703,0.35600207751736673,7138.8309090909088]
[null,"DOM_C70: Real estate activities",1.3353439487749031E-4,1.0316368638239339E-4,3.4980465755842854E-3,1.741749715793579E-2,2.9331964508322946E-3,1.1638224817067682E-2,6.6343393404260447E-5,1.5198134041338924E-3,4.8362111308421817E-3,1.6648310836769715E-3,3.2442473476969767E-3,1.3397608464283478E-2,2.9591836734693877E-3,7.4482758620689664E-3,1.3374398784912667E-2,1.633938385668875E-3,1.0928586157124201E-2,1.8902365798006485E-2,2.5101976780671476E-3,2.4449315131537318E-3,4.9910862063830413E-2,3.4492102479830075E-2,7.3051569342335908E-3,4.2523996028243603E-2,2.6434061917388691E-2,4.5442991886897443E-3,5.7059860981429613E-3,6.9636714489470595E-3,2.3448770332489655E-2,4.4464261004597098E-3,3.1999789993174779E-2,2.3503656124285997E-3,9.9336377809356932E-3,0,8.3628066394206363E-2,null,"TTL_C70: Real estate activities",0.88688026819265342,3.2947200049573785E-2,4774.9909090909086]
[null,"DOM_C71: Renting of machinery and equipment",1.0845598413220556E-3,5.8029573590096287E-5,4.2273869638535187E-4,6.6383981545253134E-5,3.7398254748111752E-3,2.9192011419606227E-3,3.0156087911027474E-5,1.0545644028684153E-3,1.889144972985227E-3,1.0629306149629895E-3,5.2326570124144791E-4,3.9754585863644902E-3,3.3333333333333335E-3,4.6896551724137934E-3,2.9533372711163619E-3,4.6344434211698995E-3,1.1684651866107636E-3,1.321003963011889E-3,1.0720635916745111E-3,1.3960079541771894E-3,1.8253066642839818E-3,2.7971294459061389E-4,3.4792809486039553E-3,7.1712268314210066E-4,1.1506235427958423E-3,5.495751097432797E-5,0.16287996680153544,1.3319070391811393E-2,3.4985271632559628E-4,3.0442336372442E-4,3.2026040846327503E-4,1.0668326184073078E-3,2.7317503897573156E-3,0,3.0345412493361942E-5,null,"TTL_C71: Renting of machinery and equipment",0.72165162361240798,0.38182863714778609,4484.8818181818178]
[null,"DOM_C72: Computer and related activities",1.954161876255956E-5,2.1492434662998625E-5,2.2995126891291119E-4,1.2446996539734962E-4,1.4665982254161473E-3,6.6742968840421283E-3,1.0856191647969891E-4,3.5855189697526113E-3,2.3425397665016814E-3,1.0885434008657121E-3,1.7006135290347055E-3,1.7216552933074565E-2,1.7040816326530612E-2,2.675862068965517E-2,1.1982111214243524E-2,1.610172009150055E-2,1.0103787201869543E-2,2.2817341179296267E-3,1.1086706411463235E-3,1.8984174102134859E-4,3.6867790783265044E-3,7.8669265666110166E-5,8.2782891535749283E-3,1.4632060900264783E-2,1.1553817604540205E-2,9.1023377551230703E-4,6.3284573088494651E-3,0.15917862236764826,9.8477060891649319E-3,4.1143278854876156E-3,2.8718433349083847E-3,6.0787233569666397E-3,7.4640250548419582E-3,0,3.7931765616702425E-4,null,"TTL_C72: Computer and related activities",0.71383924825908207,0.38600769841036642,10487.331818181818]
[null,"DOM_C73T74: R&D and other business activities",6.8949344867230977E-3,2.6091815680880331E-3,2.8729972173573724E-2,9.8223398693895167E-2,3.307178998313412E-2,6.9867928653180894E-2,1.5741477889556342E-3,5.182873874097417E-2,5.004345033437866E-2,3.7906923136029502E-2,2.4161793754823854E-2,1.925123646152883E-2,2.6938775510204082E-2,5.4344827586206894E-2,4.5692346637414567E-2,1.23585157897864E-2,5.4642930785620998E-2,3.5931307793923381E-2,3.4954502667085031E-2,3.6334558675479925E-2,6.195192933637976E-2,1.729412690226655E-2,2.847078270490765E-2,5.8914386584289498E-2,7.8411101354361773E-2,1.9777834261886278E-2,2.8944911297852472E-2,1.6423357664233574E-2,5.4153745151732421E-2,5.6585845851078551E-2,3.6105423426261357E-2,4.6423888160380504E-2,8.7878202563430416E-2,0,2.9092691618635971E-3,null,"TTL_C73T74: R&D and other business activities",0.72931765762808498,0.37498815558819348,10487.331818181818]
[null,"DOM_C75: Public administration and defence; compulsory social security",0,0,0,0,0,0,0,0,0,0,0,2.504225881174482E-3,0,0,2.8689562062273227E-3,0,2.130730634407863E-3,0,0,0,0,0,0,0,0,0,1.3486876231974271E-3,1.1326453561540397E-3,0,0,0,0,0,0,0.12642287888484499,null,"TTL_C75: Public administration and defence; compulsory social security",0.60551344536523111,0.83955595279205353,10487.331818181818]
[null,"DOM_C80: Education",0,2.7940165061898211E-5,0,0,0,0,0,0,0,0,0,1.0955988230138358E-3,0,0,1.1813349084465446E-3,0,1.3746649254244277E-3,0,9.2040581529128761E-4,0,3.1059996851452373E-4,0,1.6329958475248449E-4,4.4820167696381287E-4,4.5851915615172654E-4,0,5.1872600892208741E-4,2.4142126017283327E-2,1.9004345084353379E-4,4.3418766624129393E-3,3.9218774610174836E-3,3.1504900762340808E-3,1.5728259819814848E-3,0,7.214971959671726E-2,null,"TTL_C80: Education",0.7883656218827112,0.73619472562599897,10487.331818181818]
[null,"DOM_C85: Health and social work",0,0,0,0,0,0,0,0,0,0,0,0,0,0,4.2190532444519458E-5,0,0,0,0,0,0,0,0,0,3.0279566915680052E-5,0,0,0,0,3.9974785135529901E-5,0,0.31936634587602514,2.1867799837198714E-3,0,4.716260667093318E-2,null,"TTL_C85: Health and social work",0.39667837219122976,0.7425585858161392,10487.331818181818]
[null,"DOM_C90T93: Other community, social and personal services",1.449336724889834E-3,8.3820495185694634E-5,8.5128424299577721E-3,7.4350059330683498E-3,3.1531861846447163E-3,1.3078535512660588E-2,3.3774818460350768E-4,1.6389171484578545E-2,5.7807836173347947E-3,3.6370155981866143E-3,2.5116753659589494E-3,4.7267263507168346E-3,3.605442176870748E-3,4.413793103448276E-3,3.459623660450595E-3,8.9420991652060262E-3,2.0619973881366416E-3,8.4304071094031471E-3,2.144127183349022E-4,4.4488165572679664E-4,1.087525369209757E-2,6.8267440539146696E-3,6.4053428958015341E-3,3.5642376434245365E-2,1.4750474740352713E-3,8.4840657566618801E-4,1.556178026766262E-3,7.9704673210839825E-3,9.6231092836225746E-3,4.3880014144923969E-3,7.5234945135716916E-3,3.8839375013891052E-3,8.355293111298133E-2,0,3.8174528916649318E-2,null,"TTL_C90T93: Other community, social and personal services",0.57208095914791457,0.38193657301338479,4894.76]
[null,"DOM_C95: Private households with employed persons",0,0,0,0,0,0,0,0,0,0,0,0,0,0,0,0,0,0,0,0,0,0,0,0,0,0,0,0,0,0,0,0,0,0,9.1713173604937755E-3,null,"TTL_C95: Private households with employed persons",1,1,4894.76]
[null,"L",0.18277276028621958,6.7920392022008252E-2,8.0345902454207183E-2,0.16876467708341977,0.16946542494683581,0.1310425534651046,2.829244167812598E-2,0.11347112974864147,0.14576642611554011,0.13076607842635043,7.6148241173161699E-2,9.2844174544543925E-2,0.17979591836734696,9.4896551724137926E-2,0.13091722217534388,5.6326312349603398E-2,4.2064746717987489E-2,8.5817221088026904E-2,9.3212007112226755E-2,9.7927656873517469E-2,0.26062528453935468,0.19650271408966552,0.11033053169011738,0.13270906884377759,0.23719715026018798,2.9220221616163004E-2,0.27554725593941282,0.27554744525547442,0.27348548327185718,0.50836241755200573,0.58039061269491266,0.29455693107816772,0.21849864102316469,1,0]
[null,"VA",0.69230092790119757,0.81888325309491061,0.22894784519401848,0.32941391242293233,0.4151939576153113,0.31926029757847763,0.5398241296953028,0.30928512940125558,0.25169078475082179,0.44182055682196553,0.29131509752364509,0.35387841983346902,0.35173469387755096,0.23889655172413793,0.25293224200489411,0.22010635453492172,0.11155405869819232,0.37281133661582805,0.52888819161175604,0.49656271393150742,0.60078756238591835,0.46216882424411954,0.43621651525351429,0.54673019638128861,0.66628024171745703,0.88688026819265342,0.72165162361240798,0.71383924825908207,0.72931765762808498,0.60551344536523111,0.7883656218827112,0.39667837219122976,0.57208095914791457,1,0]
[null,"L/VA",0.26400767775990064,8.2942704915881474E-2,0.3509353948543138,0.51231800090684665,0.4081596608972094,0.41045677918311452,5.2410479861460253E-2,0.36688194472301333,0.57914884035127223,0.29597101449275365,0.26139476402173423,0.26236178681999117,0.51116913257905428,0.39722863741339492,0.51759799833194331,0.25590498042920773,0.37707948243992606,0.23018940858136838,0.17624142227144188,0.19721105537341044,0.43380605867459854,0.42517518227467449,0.25292607645998227,0.24273228316664355,0.35600207751736673,3.2947200049573785E-2,0.38182863714778609,0.38600769841036642,0.37498815558819348,0.83955595279205353,0.73619472562599897,0.7425585858161392,0.38193657301338479,1,0]
[]
[]
[null,"Total Requirements - Type 1 (only direct, indirect)"]
[null,null,"TTL_C01T05: Agriculture, hunting, forestry and fishing","TTL_C10T14: Mining and quarrying","TTL_C15T16: Food products, beverages and tobacco","TTL_C17T19: Textiles, textile products, leather and footwear","TTL_C20: Wood and products of wood and cork","TTL_C21T22: Pulp, paper, paper products, printing and publishing","TTL_C23: Coke, refined petroleum products and nuclear fuel","TTL_C24: Chemicals and chemical products","TTL_C25: Rubber and plastics products","TTL_C26: Other non-metallic mineral products","TTL_C27: Basic metals","TTL_C28: Fabricated metal products","TTL_C29: Machinery and equipment, nec","TTL_C30T33X: Computer, Electronic and optical equipment","TTL_C31: Electrical machinery and apparatus, nec","TTL_C34: Motor vehicles, trailers and semi-trailers","TTL_C35: Other transport equipment","TTL_C36T37: Manufacturing nec; recycling","TTL_C40T41: Electricity, gas and water supply","TTL_C45: Construction","TTL_C50T52: Wholesale and retail trade; repairs","TTL_C55: Hotels and restaurants","TTL_C60T63: Transport and storage","TTL_C64: Post and telecommunications","TTL_C65T67: Financial intermediation","TTL_C70: Real estate activities","TTL_C71: Renting of machinery and equipment","TTL_C72: Computer and related activities","TTL_C73T74: R&D and other business activities","TTL_C75: Public administration and defence; compulsory social security","TTL_C80: Education","TTL_C85: Health and social work","TTL_C90T93: Other community, social and personal services","TTL_C95: Private households with employed persons"]
[null,"TTL_C01T05: Agriculture, hunting, forestry and fishing",1.0718182356983124,5.7155897571201065E-4,0.37961768783869049,3.6237391820703575E-2,0.12779155909692347,1.0613523993991706E-2,8.1956784746903136E-4,2.0329255658565436E-2,1.0365032588687033E-2,2.4377536541326768E-3,1.8213278887375748E-3,1.8689927200472775E-3,2.271653697803756E-3,3.2615834551990063E-3,1.617628758423721E-3,1.8387086795104597E-3,3.1883778618515459E-3,1.9076362547239666E-2,1.6298959898726872E-3,8.1255010549031656E-3,3.8138013035946259E-3,0.15817952451985862,2.4573489652862999E-3,2.0461748320558353E-3,1.4174366128068673E-3,4.0659162300536917E-4,4.096021312927859E-4,8.0442138364951465E-4,3.7855811416643457E-3,9.9266498978393004E-3,6.1655239785338998E-3,5.6466858150061947E-3,5.2876661277941311E-3,0]
[null,"TTL_C10T14: Mining and quarrying",8.011326007041247E-3,1.1115280406198478,1.6942219452978389E-2,1.5587398832939098E-2,1.6641239724950154E-2,2.4050335069851412E-2,0.40724071602354861,3.1741037945025058E-2,2.0725430092747948E-2,0.17063537372153664,0.43261153895172016,4.5137774874695946E-2,3.7883124349798118E-2,4.0528099581018329E-2,1.9982701377946874E-2,3.2186334975858745E-2,2.7865361732273417E-2,4.0616256111543132E-2,0.10834601119328137,8.9518933322718347E-2,1.2743709891319449E-2,1.2757926978373137E-2,4.9950775950376419E-2,1.2106219482736378E-2,7.554346458144112E-3,3.0520463369256793E-3,2.1231640107712019E-3,2.94349248693804E-3,7.853049500811466E-3,1.4100814993099068E-2,5.7290841469705067E-3,9.5204170249294784E-3,1.0449387005914242E-2,0]
[null,"TTL_C15T16: Food products, beverages and tobacco",9.7918620949963273E-2,7.9467234862417885E-4,1.1821289226652882,3.3603564484308839E-2,2.7718355497799867E-2,1.2634803979166909E-2,1.4683677159314241E-3,4.8508992964826837E-2,1.5363900677997665E-2,3.9735272911961116E-3,2.3601730762510759E-3,2.5615724221431956E-3,3.714362974263764E-3,5.095619610728218E-3,2.5346304407472043E-3,2.7765700128201715E-3,2.8277855965471734E-3,1.0620993026693802E-2,2.4928220343075095E-3,3.2545804234040826E-3,6.3307690759158569E-3,0.2782125348323235,4.2037188113753648E-3,3.2551424435986777E-3,2.6264455742481914E-3,5.0965951367102291E-4,6.562585667376329E-4,1.2109359703689042E-3,7.0496151630080718E-3,1.7433176798405121E-2,1.0474185525655788E-2,1.1049715491097121E-2,8.7662243933510024E-3,0]
[null,"TTL_C17T19: Textiles, textile products, leather and footwear",6.244319658870753E-3,9.918440043385165E-4,3.7950957291932202E-3,1.2217397513627306,6.8802381726502188E-2,1.6933509295640452E-2,6.1300330654665838E-4,2.5940771786324935E-3,1.0301165736395322E-2,1.4586099652405564E-3,3.4424654007189138E-3,2.4239520784875832E-3,2.3033942406063407E-3,4.1802758413667027E-3,2.1661415296609738E-3,5.6076321836270602E-3,7.5288234406733073E-3,6.8551818567691852E-2,5.1178853400452224E-4,2.8434445306407298E-3,4.8189788086524209E-3,5.4113433870482709E-3,1.7277443190885423E-3,5.9929608166621687E-3,9.0740197971686727E-4,1.6772993811792111E-4,3.9170052602658203E-4,6.102079690891082E-4,8.512952866331396E-4,8.3796448614754469E-3,3.0183159141049165E-3,1.2163080706438761E-3,1.2752349881801397E-2,0]
[null,"TTL_C20: Wood and products of wood and cork",2.258496740551673E-3,8.4262591317873169E-4,1.3451676730468684E-3,7.4698784327022043E-4,1.0716512065983921,2.757504724941144E-3,4.124497444659076E-4,7.5537051536394759E-4,1.9703269540565635E-3,1.4443902684686835E-3,3.1697014026865668E-3,4.0699167625530509E-3,2.4186867099074021E-3,3.6517866326872526E-3,1.7543317661633383E-3,2.0974899065829434E-3,1.4742525067706498E-2,7.0564615412654574E-2,7.239811489872087E-4,1.525153800029188E-2,2.2296731275260324E-3,8.6812124759941094E-4,5.1255675924040639E-4,5.8584086985767191E-4,2.0113245845660582E-4,3.5021744232163971E-4,2.5416184635328198E-4,2.7599168594474806E-4,1.9313487004880728E-4,8.8870110075543675E-4,7.9953606039958496E-4,2.8424955841878358E-4,1.4534015831729617E-3,0]
[null,"TTL_C21T22: Pulp, paper, paper products, printing and publishing",7.5776515151536996E-3,1.6667521771154118E-3,2.9292508797470165E-2,1.9814537917239878E-2,2.2925642826703785E-2,1.2729028004296767,2.5916538466717477E-3,3.280036965519164E-2,2.9752077123293051E-2,1.8665006646452213E-2,8.0204379861240262E-3,1.3275668899072371E-2,1.3929800595918201E-2,3.3110190193368062E-2,1.5908659115882243E-2,1.1987359567824051E-2,1.1644127331323991E-2,2.9859480121436098E-2,5.0036361109777345E-3,6.7754216382415796E-3,3.1430180113262533E-2,1.2758066505981477E-2,8.3884305059256075E-3,4.3357502252134604E-2,1.7095223888097394E-2,2.6428331083507266E-3,4.308357512857938E-3,6.5742948207598018E-3,2.3119311877808996E-2,1.4341583443738374E-2,1.0027295236191261E-2,1.5814943963346755E-2,2.4928470704993207E-2,0]
[null,"TTL_C23: Coke, refined petroleum products and nuclear fuel",1.0917889373163977E-2,7.1979244865556227E-3,1.952246422972451E-2,2.0022063958319621E-2,1.7767510456496452E-2,2.3252621752286349E-2,1.0099251510861982,2.5358541283627481E-2,2.3102353257672445E-2,3.7511848185288584E-2,1.338932856871625E-2,6.8092168907896468E-3,1.2745124420320284E-2,2.1930532008345761E-2,6.152061073744994E-3,2.903789048442652E-2,6.64864559416077E-3,3.6856709374143523E-2,9.4387105091039147E-3,1.9015650269917615E-2,2.0924357595581828E-2,1.7975553845284167E-2,0.11427648466390128,1.6029368910217851E-2,1.2287992661023118E-2,2.5831349616599782E-3,2.42509382839239E-3,2.496526556784335E-3,1.471636816174102E-2,1.6238039014423618E-2,5.9967396391304613E-3,1.0883694921224808E-2,1.3707364946235544E-2,0]
[null,"TTL_C24: Chemicals and chemical products",5.2594927541859238E-2,3.5713160175155174E-3,3.9883143856313155E-2,4.6459122149443643E-2,3.7141046182092186E-2,6.1383999552007976E-2,1.2899136740611987E-2,1.2351498078882936,0.2910988248621974,2.660149952317372E-2,8.4988564513019012E-3,2.0827659086672858E-2,3.5104077344045803E-2,6.147457081362219E-2,1.7618262428611999E-2,2.1175595617761753E-2,1.9140708643894135E-2,4.8816012049148989E-2,8.0485270170383878E-3,1.9867592986751604E-2,1.0007815403381444E-2,1.5634122191516737E-2,1.208898269529636E-2,5.127921451925207E-3,3.4749880340757757E-3,8.9495244898386123E-4,1.1732195772652249E-3,1.4163138553514943E-3,5.4666599281292909E-3,8.7140812514998021E-3,3.6618747350627232E-3,0.11098251142558239,1.8557345749554886E-2,0]
[null,"TTL_C25: Rubber and plastics products",8.831471601203348E-3,2.3246078042121207E-3,2.9387847844477583E-2,1.3944324333474886E-2,2.2835991694326055E-2,2.8581619875570688E-2,2.3525129893947629E-3,3.0977145196187938E-2,1.0458403510869763,8.7977013278391046E-3,5.4790814672779249E-3,1.2410142328020086E-2,1.4430235262320774E-2,6.7911972939902671E-2,1.3698904106199863E-2,1.3769726879114532E-2,1.4330495576947266E-2,2.4311940433969871E-2,5.4697173267153724E-3,2.1904090714710816E-2,1.2850987339511221E-2,9.7248777039042212E-3,3.1413765118787663E-2,4.0895279918834807E-3,2.0026804654403423E-3,8.590010552268259E-4,1.0906742065959593E-3,9.8429508261825603E-4,4.991121082178601E-3,4.1436410585482244E-3,1.8306222528725665E-3,5.421438160710541E-3,1.334441771196649E-2,0]
[null,"TTL_C26: Other non-metallic mineral products",2.7214419257177744E-3,1.2351771419032123E-3,7.6310553907159911E-3,1.5018093013026924E-3,1.9399047588705388E-3,1.5761022327440701E-3,6.8800658056003214E-4,7.1851559285852672E-3,4.5450592574514826E-3,1.1044096267440968,3.0217903913780856E-3,9.281893770398628E-3,8.1845528005324228E-3,1.5863992807266459E-2,1.0038848906433358E-2,1.1883018696030935E-2,4.4097130123487947E-3,5.0355314239340521E-3,5.280489037985764E-3,0.12836859667117292,2.8053111586518586E-3,4.7914104624073115E-3,1.6031249011604768E-3,1.7248793877329639E-3,9.3379162834312298E-4,2.8363637149973688E-3,6.409616179547579E-4,8.992858660306504E-4,7.360415251733551E-4,5.9206417656189319E-3,2.7043581848608506E-3,1.3672637938128072E-3,3.7003941639523691E-3,0]
[null,"TTL_C27: Basic metals",2.2999197766037554E-3,1.0846263575205583E-3,5.1352725271953809E-3,1.7160467422618311E-3,9.4741246423154218E-3,2.8218644014713092E-3,6.4454696666256528E-4,4.1194735997345652E-3,2.6620231080227499E-3,3.7958756663015228E-3,1.0665888659220442,7.2143091229054532E-2,6.1491953158140635E-2,6.1224081629817857E-2,2.5337731252529996E-2,2.6245110574267028E-2,4.3923328716627102E-2,3.3581663604573382E-2,1.6972854610545437E-3,3.3781584667240759E-2,2.1007974116681511E-3,2.7630266546157852E-3,1.2722988177098558E-3,7.8991910191426125E-4,6.1613257889655052E-4,7.8855349800754058E-4,6.7633910031249668E-4,4.8062536789936157E-4,3.8099130003143699E-4,2.5513178084464851E-3,1.1798810982915527E-3,8.2953123163311102E-4,1.8114371291554224E-3,0]
[null,"TTL_C28: Fabricated metal products",1.4008910594205848E-3,7.7403102471542491E-4,2.8065602549115914E-3,2.2381554381527705E-3,9.6373278675714082E-3,3.0380482306662676E-3,8.4273440026330832E-4,6.3105132984481475E-3,6.6169530915311855E-3,2.4911820256200454E-3,4.479009415420925E-3,1.2632511827875645,0.1454111450995032,4.4770909924007972E-2,6.3025539552654816E-2,0.14275311281891967,0.16744478860786668,2.1558414330189922E-2,2.1635518808638299E-3,1.0250962454189114E-2,3.4842454322907552E-3,1.3832504019978807E-3,3.9432054667346292E-3,1.2153313036442903E-3,4.4049610884012438E-4,4.6820467087177302E-4,8.0232585096132517E-4,1.3530569062575317E-3,6.5854069288580558E-4,2.6505062659606866E-3,8.1673959300850962E-4,1.6878265771813588E-3,4.6242585052067913E-3,0]
[null,"TTL_C29: Machinery and equipment, nec",1.0370962730230043E-3,7.281122018991537E-4,2.0533907200732588E-3,2.6844429729800993E-3,1.9521452525583548E-3,2.8754191975217946E-3,5.7260542754528521E-4,2.4077640766884687E-3,2.9514566461846196E-3,4.0251850587796822E-3,1.7095775987581256E-3,9.6172091478815627E-3,1.0172795962909347,2.8814530648412322E-3,3.4057370333362351E-3,1.1645895852184273E-2,2.0307437787727561E-2,4.2026188908380422E-3,4.5200672109757116E-4,3.7418137975045191E-3,3.6271457408970451E-3,9.0861241861800739E-4,2.9949537011890975E-3,2.3853469157553036E-3,2.0938247507403221E-4,1.1698420045358029E-4,1.0599213065714032E-4,1.4561382361797504E-4,3.1140083516396384E-4,4.4423545350800045E-3,2.57695355865162E-4,4.9109237826666587E-4,7.2437653934407514E-4,0]
[null,"TTL_C30T33X: Computer, Electronic and optical equipment",1.3937283656235088E-4,1.8399069528439506E-4,4.1398442100449743E-4,8.8993331006835508E-4,5.4070723586722488E-3,1.4301282908329538E-3,4.3206437430836779E-4,7.6281664281624233E-4,1.6383401823998984E-3,1.1121896325773217E-3,1.0390378773128756E-3,2.9335680955104196E-3,3.0420400095689136E-3,1.0182630595961446,4.2371891761390224E-3,2.9764088542865185E-3,5.5836818233280803E-3,2.2956894551623857E-3,5.8031083265900967E-4,5.3447383292382056E-4,3.7205366144003172E-4,1.8676574376262961E-4,5.3205848817008277E-4,7.2261428678290602E-4,4.51714661714046E-4,5.119899691534849E-5,8.0112343469853336E-3,1.8152982092571686E-3,4.2891592376896446E-4,4.0613148549321725E-4,4.4485532393711928E-4,7.4357497533636819E-4,7.4415638886873782E-4,0]
[null,"TTL_C31: Electrical machinery and apparatus, nec",4.7515237082044115E-4,3.1187073996400083E-4,8.7410677693034312E-4,9.6008967245955778E-4,1.1240384143778026E-3,1.418363304993433E-3,2.8310655005372629E-4,1.6059727561885627E-3,1.516116219245739E-3,1.2106398237074838E-3,2.0074883172071316E-3,5.7928705939138099E-3,6.6398466441687745E-2,1.7498725346836021E-2,1.3665319221252505,8.2727523623626342E-2,3.5640571622702524E-2,1.5222145799402415E-3,7.4720323408344969E-3,8.9297371487155521E-3,2.0041904685909125E-3,7.738982830189663E-4,2.893287230877846E-3,1.282073481280612E-3,4.2450132533442187E-4,3.3206404388576267E-4,2.5807008309919034E-4,2.0220713513829174E-3,5.0467352505647906E-4,1.3523228105728642E-3,4.5767974939135041E-4,9.3147903266552114E-4,8.6575882169023669E-4,0]
[null,"TTL_C34: Motor vehicles, trailers and semi-trailers",7.5704807507970598E-4,3.8978137773977188E-4,1.4769014566460817E-3,1.4241542783584033E-3,1.2798261103628878E-3,1.1645898573309822E-3,5.0717245605272289E-4,1.2202569317382869E-3,1.2802239200023749E-3,1.0582608331810154E-3,8.7169962844638074E-4,6.203315634655803E-4,1.1827939162355377E-3,8.7725746001486647E-4,8.7104610589550243E-4,1.0873226755481635,1.825053220795428E-3,1.3814432769764737E-3,4.3357644376304044E-4,7.1305245092501514E-4,7.1644363510279356E-3,1.0040891460739174E-3,7.5729123761741944E-3,6.9292353434412235E-4,2.8015717383975927E-4,6.9025779374960576E-5,1.0587411196153506E-4,1.0162207787726484E-4,4.3280357134439204E-4,2.7876749296026275E-3,1.8139657638640308E-4,5.2555732849577828E-4,7.1586339463001526E-4,0]
[null,"TTL_C35: Other transport equipment",4.9674856057363057E-5,6.0989456448856564E-5,1.0936023838285574E-4,1.0022059911507421E-4,1.3442483705328141E-4,1.1723447089094273E-4,4.3805584785031575E-5,1.2580906354754957E-4,1.2333508622780872E-4,1.2394280808598139E-4,7.692826256480019E-5,4.8037327695189453E-5,5.7344439586748863E-5,1.0239045283465854E-4,4.1440344978876164E-5,5.4286300914847776E-5,1.0753608351049275,1.0656000783728084E-4,5.9297838401814599E-5,7.393878098838217E-5,1.2103428009571266E-4,5.7094164208896967E-5,1.7344884565145694E-3,6.128236947415975E-5,4.2662366979114095E-5,1.0966508332597212E-5,1.0687506141828754E-5,1.5251511317003859E-5,7.5330970062644008E-5,1.3355239357134576E-3,1.9885909858378554E-5,4.0142552828402898E-5,4.6030900681381126E-5,0]
[null,"TTL_C36T37: Manufacturing nec; recycling",6.2970388738347119E-4,4.366107296365526E-4,2.3310302157115441E-3,3.3666896629990866E-3,3.1019286794891198E-3,3.3105543792143345E-2,2.6618966771344932E-4,2.5705482941325341E-3,3.5495973691818724E-3,4.3749145037788552E-3,2.8665643876779667E-2,3.0452351102259719E-3,6.1901167438953115E-3,1.0792404953361513E-2,1.5989620296348534E-3,8.3126719234696625E-3,2.5168800586539532E-3,1.0367797459569945,5.116747808193592E-4,7.0101353145044362E-3,1.3523076493587804E-3,9.5158477304989331E-4,6.578401762939595E-4,2.1243200591910222E-3,9.3725299408255137E-4,2.6181703386077358E-4,2.8267434367434052E-4,6.7413317521356625E-4,8.562745675938985E-4,1.3244904664254534E-3,6.7857856586774892E-3,1.0587493940839019E-3,1.4322294491415283E-2,0]
[null,"TTL_C40T41: Electricity, gas and water supply",1.1640414315598849E-2,7.0267815221372642E-3,3.6068308550550397E-2,4.3435416271125807E-2,4.0866322864056302E-2,7.5084103957990214E-2,6.1167384246832539E-3,4.8781632355724122E-2,6.6967856690973812E-2,8.3668117939474221E-2,2.5868272152916962E-2,4.0352989086949634E-2,2.4492080237266334E-2,3.1381552868901222E-2,2.5572260865268728E-2,1.4667803835586947E-2,2.5824726029599836E-2,3.5452931720420001E-2,1.3031999282868618,1.8082844751852178E-2,3.2627459974060823E-2,3.4036456956587843E-2,3.1706736809665327E-2,5.5221572141127544E-2,2.2714714619668071E-2,2.5953633481636544E-3,5.2535123967598933E-3,7.059785987120479E-3,1.6119999756519031E-2,4.6265781120879319E-2,1.7392813883539679E-2,3.8165561301608086E-2,2.5623110139099989E-2,0]
[null,"TTL_C45: Construction",5.0897522370184902E-3,7.6096957149162153E-3,4.3311786532070412E-3,4.0722466826373154E-3,3.6662154361016392E-3,4.9133903610010642E-3,3.149706196245057E-3,4.1500939885221015E-3,4.1233791996224244E-3,5.890075970549539E-3,4.587863676477618E-3,6.0112337186441281E-3,2.9863006122629941E-3,3.2160226383124079E-3,5.4425240832419669E-3,2.4972518871395856E-3,3.9299939428941799E-3,4.1403456450348711E-3,3.8448425042427847E-2,1.0140733802685862,3.8347325043386928E-3,5.9764191136142926E-3,8.5568933778519696E-3,9.9120666037427561E-3,6.6098366340530991E-3,2.226892048197885E-2,3.8026902415054763E-3,6.3873053162685333E-3,4.3209504336728889E-3,3.8506283075365917E-2,1.95712678579931E-2,4.46094971816028E-3,2.4340705630257729E-2,0]
[null,"TTL_C50T52: Wholesale and retail trade; repairs",5.9058452660206338E-2,1.7831165682830698E-2,0.13986517432268758,0.14316726007919719,0.10900565731794493,8.3299877101808834E-2,4.8515201913268413E-2,9.2919023077286042E-2,9.9343501736792378E-2,5.7992368807281994E-2,7.1753413738091257E-2,6.3879101849823497E-2,6.1746646731720811E-2,6.6953186808061893E-2,6.9656710051553716E-2,8.768729443575568E-2,6.3532802124672466E-2,9.745417192637125E-2,2.1804871150130148E-2,5.8832945512220923E-2,1.0382008816316075,0.11242302008517045,9.5694293259188046E-2,2.2457413469416047E-2,9.5326225677754318E-3,3.2010280290951472E-3,9.7606933406843375E-3,5.6225866898315076E-3,1.7686472649744066E-2,2.5932607426902184E-2,1.3754459338852202E-2,4.3138451330744267E-2,3.2853930620870983E-2,0]
[null,"TTL_C55: Hotels and restaurants",3.1002628270524559E-3,2.1280833984344198E-3,8.7100286183358338E-3,1.3710250868662189E-2,1.1240997370869366E-2,1.5021093276633715E-2,3.3118753393856165E-3,1.7363735504406921E-2,1.4029387256681498E-2,9.9339836967648042E-3,6.0307461381554489E-3,5.3198103806992008E-3,7.8879283093327215E-3,8.6609273813211939E-3,5.5760146816472783E-3,6.0068909893206714E-3,5.2025893281308399E-3,1.2169373829806122E-2,7.3671759196901549E-3,5.6806289772918959E-3,1.8266394743952859E-2,1.0082775719709991,1.2010500904078647E-2,8.4739832586617249E-3,6.2158345553199037E-3,1.1822309284292521E-3,1.7244818963468422E-3,3.7177426280440751E-3,1.9834704436126577E-2,1.4464248232770526E-2,3.6438513154146E-2,2.4378244686460476E-2,2.2545637459533127E-2,0]
[null,"TTL_C60T63: Transport and storage",3.2303322675623497E-2,3.9667292933166468E-2,7.1119826614768122E-2,6.5175971495308252E-2,8.7402468448293524E-2,7.6225924267989728E-2,2.848966057159143E-2,8.1804339263215689E-2,8.0194651404543668E-2,8.0604299797827336E-2,5.0018605241357844E-2,2.8571188119195949E-2,3.6807356842985917E-2,6.6422002146534737E-2,2.3540087755887042E-2,3.478209010487511E-2,2.8030232080306094E-2,6.9253861851948872E-2,3.8541928858035014E-2,4.80452672918232E-2,7.8704067325816682E-2,3.7128329519290661E-2,1.1281719102049794,3.9832021298041344E-2,2.7728858319606888E-2,7.1287833087167411E-3,5.6013607568876295E-3,8.7716426181123752E-3,4.8981679071093694E-2,3.847751252372536E-2,1.292644365882854E-2,2.6088954299429389E-2,2.9911762642403358E-2,0]
[null,"TTL_C64: Post and telecommunications",4.8391555712281736E-3,1.4079059055816198E-3,9.7068905523718732E-3,1.3494541605152264E-2,9.4173405684855518E-3,1.321856835192396E-2,2.0545461848440767E-3,1.0853605776187904E-2,1.1179159231428759E-2,7.3682052268738358E-3,5.3390829919479658E-3,1.2756340408371475E-2,8.47259082976623E-3,9.7709664204810483E-3,1.6425023392362178E-2,7.5108937266763877E-3,1.184657878930811E-2,1.1016566264020242E-2,9.2130405629461953E-3,5.7477830512688887E-3,2.741969285160702E-2,1.7410438692198747E-2,1.7520768314042513E-2,1.0924006656899459,2.2377794326079493E-2,3.257160153259523E-3,4.7462562472922005E-3,9.2329483113985627E-3,2.8595803429912681E-2,1.3691695725563188E-2,1.423502731951142E-2,3.0461940766982151E-2,4.0197559275607371E-2,0]
[null,"TTL_C65T67: Financial intermediation",2.2616800594711717E-2,1.0702852242495179E-2,3.1898833004004049E-2,4.2674545677407943E-2,2.3363640652675089E-2,4.4150690172513524E-2,9.793925388191729E-3,3.6216111318362734E-2,3.7501710698304963E-2,2.918592508994873E-2,1.9588512468474657E-2,2.332104630203528E-2,2.2182782308337853E-2,2.8874306244009874E-2,2.7482562782247585E-2,2.1456228890787962E-2,2.3446757911794028E-2,3.0845107073721911E-2,4.9812722973816975E-2,3.0583468121402859E-2,3.0891848746338775E-2,2.1889095329778702E-2,6.0314374301810032E-2,8.4203017266854516E-2,1.1316801332739184,6.0217230992333566E-2,4.872847672535386E-2,1.9239936834866612E-2,4.2886088589679877E-2,0.12311648508429231,2.0716994057466475E-2,2.7906773805614404E-2,3.5622949221807546E-2,0]
[null,"TTL_C70: Real estate activities",5.6761795189497633E-3,2.0546194859610645E-3,1.5881240308108759E-2,3.5800000256943035E-2,1.4612685145181981E-2,2.6644257080744534E-2,3.6045552726688295E-3,1.2793784635697933E-2,1.6504161304709195E-2,9.1477732233065916E-3,1.0478313257078578E-2,2.4099167013514736E-2,1.2814980601556107E-2,1.7715806651521466E-2,2.7456824432483005E-2,1.2632890637309905E-2,2.2347567954895071E-2,3.1308284294346324E-2,8.5408849577920127E-3,9.6504911383143502E-3,5.8291015227959882E-2,4.493034140289677E-2,1.7971179636794572E-2,5.4334725186594053E-2,3.4863668919028507E-2,1.007393051431771,1.0291108800302588E-2,1.1746471755176603E-2,3.0237126021078232E-2,1.3412770213556696E-2,3.7243888085769138E-2,1.1898883884859062E-2,2.0410199720456726E-2,0]
[null,"TTL_C71: Renting of machinery and equipment",1.9645915986254356E-3,3.7428622301256646E-4,2.2203040360438799E-3,1.2889361995561282E-3,6.113063957818821E-3,5.7601287152634498E-3,3.9423462030120594E-4,2.8206572642238427E-3,3.8708210131187062E-3,2.3510395293162606E-3,1.4058990734313558E-3,7.1381770862774191E-3,6.0469658825811883E-3,7.6285493060486232E-3,6.1074096524579239E-3,8.1132797166770451E-3,3.4723216758050812E-3,3.1870585064183469E-3,2.2260140808175359E-3,2.6636553313259671E-3,3.1913905902465111E-3,1.4121342373068419E-3,5.5628848760811804E-3,2.1187392476351274E-3,2.1814672214508363E-3,3.0987255232126012E-4,1.1949759984672703,1.9169250889192642E-2,1.2115465103396234E-3,1.2584501563247194E-3,7.9917026771109416E-4,2.7533687312289324E-3,4.43275467612907E-3,0]
[null,"TTL_C72: Computer and related activities",1.793159556628194E-3,8.7818249166763025E-4,3.9047194193725758E-3,4.9170094495342232E-3,5.5994380476509873E-3,1.4533257307994728E-2,1.0934789936897775E-3,9.2282858204761394E-3,8.0354061366868894E-3,4.4771160209123558E-3,4.3509771780584263E-3,2.8522152282279046E-2,2.6993664881385195E-2,3.729394923977028E-2,2.3708641757239239E-2,2.7424585013938876E-2,2.0069935741027972E-2,7.0202826173024462E-3,4.0967575610131365E-3,3.2016889069095967E-3,8.1679976018962288E-3,2.7099453419559116E-3,1.4101480473798231E-2,2.2803376958298632E-2,1.7778139592534575E-2,2.471828773689142E-3,1.0743650184656429E-2,1.1907428911361992,1.4665825185339945E-2,8.9018778650206635E-3,5.062717246422435E-3,1.3989561290881863E-2,1.3423319826572213E-2,0]
[null,"TTL_C73T74: R&D and other business activities",2.4162661706026801E-2,7.9324515998851972E-3,6.4049246633002835E-2,0.15360189658576354,6.8090696683452356E-2,0.12172845139696718,9.7460361489942107E-3,9.2152100081158275E-2,9.3783964753665558E-2,6.2686824158361548E-2,4.2162640690474484E-2,4.4181616478657273E-2,5.2233580056394995E-2,8.6397398601560746E-2,8.4269136474512812E-2,3.8988025515322676E-2,8.445883192466995E-2,7.3338829202537606E-2,5.997621402049836E-2,5.9722145486504209E-2,8.4340224128231084E-2,4.6622971808425263E-2,5.4190441912900358E-2,9.1032775816757713E-2,0.10140965220863871,2.8397254094136674E-2,4.3986660734986555E-2,2.8210902165508658E-2,1.0713962523516483,8.2657785970785463E-2,4.83848601107226E-2,9.2196976958785981E-2,0.11994843779966949,0]
[null,"TTL_C75: Public administration and defence; compulsory social security",9.6578169467990557E-6,4.4625086406697473E-6,1.7186210990697947E-5,1.5880445317997328E-5,4.223207717610688E-5,3.6156616998564637E-5,4.7861787486461866E-6,3.4935042078520779E-5,3.5504603906955596E-5,1.8217646461995238E-5,2.3963993547661787E-5,3.222120807427386E-3,5.9348854812260458E-4,2.1506706296591988E-4,4.1135291953194033E-3,6.3694796034747799E-4,2.8402902836338465E-3,7.0831193629564382E-5,3.4623674960160527E-5,5.8666110973321356E-5,2.8288797262364753E-5,1.0779838998756552E-5,4.5345689586520495E-5,3.5537909414249827E-5,2.5490324572966931E-5,5.3661607871228508E-6,1.6265904537649933E-3,1.3837648285777919E-3,2.1502707468158084E-5,1.0000251427898472,1.0212829329371686E-5,2.6543250476959801E-5,3.5344353658878786E-5,0]
[null,"TTL_C80: Education",1.0697618771992812E-4,8.1087451544978591E-5,2.4662159760903321E-4,3.0022581538716571E-4,2.8036385251838027E-4,5.5641887311033201E-4,7.5000521318912199E-5,4.0433491527921967E-4,3.7846390738364961E-4,2.6860788447283316E-4,2.0875917725655574E-4,2.2092425966942762E-3,9.852734200417729E-4,1.0920214516663457E-3,2.3866292810813105E-3,1.0189388260704081E-3,2.3036811448333733E-3,3.3088315427243589E-4,1.3746334167774191E-3,1.8110213980022659E-4,6.4155263727622743E-4,1.9076581420474987E-4,6.6464813155575544E-4,1.2415469502409771E-3,1.0198915228660256E-3,1.0294229165768752E-4,9.3791738911853701E-4,2.8926915624310458E-2,6.4534019068987708E-4,4.7308953029273114E-3,1.0041263007355101,5.106944662820489E-3,2.1725039613520822E-3,0]
[null,"TTL_C85: Health and social work",1.7983369109358929E-5,3.4734303513646605E-6,5.4289348496388717E-5,5.3801539987530929E-5,3.0684922989381783E-5,7.8478726304107992E-5,6.0750107420284303E-6,8.7702225393241297E-5,5.3343944260597956E-5,2.6309453961226986E-5,1.9140650088460239E-5,3.3356967425777315E-5,3.24966513911278E-5,3.6733899383208176E-5,1.1580524358616237E-4,5.4281375260068683E-5,2.6121083181632995E-5,5.060667721534009E-5,1.041741358448158E-5,1.4824518385070906E-5,5.3303285886359427E-5,4.5547793603426284E-5,3.9500228594300781E-5,1.4953944942274806E-4,6.5474081938786787E-5,8.0799260283181628E-6,1.2550321562535131E-5,3.8561462759776258E-5,4.6501359991875388E-5,8.9950690891019895E-5,3.4368875282235078E-5,1.4692586959320177,3.5235110021474155E-3,0]
[null,"TTL_C90T93: Other community, social and personal services",5.274799654531738E-3,9.2680539259581149E-4,1.6438649073445773E-2,1.6135976526493651E-2,9.204692969887714E-3,2.3787080551830448E-2,1.7496799984282377E-3,2.6764157824456208E-2,1.6054090201504962E-2,7.7609805087687309E-3,5.6471085675800668E-3,9.8887477143325322E-3,8.5154969638566325E-3,1.0692044492042509E-2,9.2234423753269675E-3,1.4990198187456491E-2,7.0659581888805967E-3,1.5293526050220503E-2,2.4078789536759416E-3,4.0172840820248776E-3,1.6123674996706115E-2,1.3858498337315502E-2,1.1402614788352991E-2,4.535272855783639E-2,4.7001300940777146E-3,1.6745596080614579E-3,3.1968389082454212E-3,1.167150997039703E-2,1.3869555510273576E-2,7.9855807539109726E-3,1.0401409252410546E-2,1.1903209352053419E-2,1.0961795879787972,0]
[null,"TTL_C95: Private households with employed persons",0,0,0,0,0,0,0,0,0,0,0,0,0,0,0,0,0,0,0,0,0,0,0,0,0,0,0,0,0,0,0,0,0,1]
[]
[]
[]
[null,"Type 2 Total Requirements (direct, direct, induced)"]
[null,null,"TTL_C01T05: Agriculture, hunting, forestry and fishing","TTL_C10T14: Mining and quarrying","TTL_C15T16: Food products, beverages and tobacco","TTL_C17T19: Textiles, textile products, leather and footwear","TTL_C20: Wood and products of wood and cork","TTL_C21T22: Pulp, paper, paper products, printing and publishing","TTL_C23: Coke, refined petroleum products and nuclear fuel","TTL_C24: Chemicals and chemical products","TTL_C25: Rubber and plastics products","TTL_C26: Other non-metallic mineral products","TTL_C27: Basic metals","TTL_C28: Fabricated metal products","TTL_C29: Machinery and equipment, nec","TTL_C30T33X: Computer, Electronic and optical equipment","TTL_C31: Electrical machinery and apparatus, nec","TTL_C34: Motor vehicles, trailers and semi-trailers","TTL_C35: Other transport equipment","TTL_C36T37: Manufacturing nec; recycling","TTL_C40T41: Electricity, gas and water supply","TTL_C45: Construction","TTL_C50T52: Wholesale and retail trade; repairs","TTL_C55: Hotels and restaurants","TTL_C60T63: Transport and storage","TTL_C64: Post and telecommunications","TTL_C65T67: Financial intermediation","TTL_C70: Real estate activities","TTL_C71: Renting of machinery and equipment","TTL_C72: Computer and related activities","TTL_C73T74: R&D and other business activities","TTL_C75: Public administration and defence; compulsory social security","TTL_C80: Education","TTL_C85: Health and social work","TTL_C90T93: Other community, social and personal services","TTL_C95: Private households with employed persons","HH"]
[null,"TTL_C01T05: Agriculture, hunting, forestry and fishing",1.1040533907889527,1.2632027759583501E-2,0.41346844475795841,7.9916727095972723E-2,0.16751074968685514,4.7647863525935752E-2,1.1430920182076726E-2,5.2309886889082065E-2,4.7149556998793418E-2,3.1968941849925284E-2,2.3332736282067845E-2,2.724514502031572E-2,3.8319971428805541E-2,3.0907538127341417E-2,3.6096835217390641E-2,2.2783549096500978E-2,2.2603101042824651E-2,4.6682665434368643E-2,2.4994662343179156E-2,3.2555942169514983E-2,4.7692927199353481E-2,0.19933212787995236,2.9744686482725335E-2,3.2573102723178829E-2,4.265055332195352E-2,7.970547831244167E-3,4.7259390537415374E-2,4.8785504603673785E-2,4.7196562061268363E-2,8.7319879086641794E-2,8.6902207289862074E-2,7.248233890869335E-2,4.7597159128602969E-2,0.12816336946754783,0.12816336946754783]
[null,"TTL_C10T14: Mining and quarrying",1.6154180049663552E-2,1.1145746100164118,2.5493187241122154E-2,2.6621142918400377E-2,2.6674620074927741E-2,3.3405500898139873E-2,0.40992122719256802,3.9819597256087219E-2,3.0017490653850804E-2,0.17809518443153299,0.43804549012414673,5.1547990794657071E-2,4.6989213305791658E-2,4.751168545585633E-2,2.8692420469148872E-2,3.7477166615477273E-2,3.2769673707694374E-2,4.7589825633210597E-2,0.11424813518244706,9.5690255149270528E-2,2.3827922660959788E-2,2.3153398682880903E-2,5.6843772307660682E-2,1.9817561881682853E-2,1.7970156468702429E-2,4.9627612447735699E-3,1.395778952586799E-2,1.5063891981495279E-2,1.8819005162617308E-2,3.3650954193596254E-2,2.6123806190062271E-2,2.6403629358015258E-2,2.1137098144706594E-2,3.237507647319917E-2,3.237507647319917E-2]
[null,"TTL_C15T16: Food products, beverages and tobacco",0.15411458233497657,2.1819843040617803E-2,1.2411413835434741,0.10975031270221275,9.6961332438955508E-2,7.7197245462840139E-2,1.9967275022616849E-2,0.10426123962363955,7.9490836239620652E-2,5.5455628333923104E-2,3.9861288613301377E-2,4.6800145829229395E-2,6.6557859942400266E-2,5.3291168750761245E-2,6.2642675502289247E-2,3.9289980293579697E-2,3.6673722776339839E-2,5.8747416698796073E-2,4.3224920393018562E-2,4.5844483330190262E-2,8.2825814857847541E-2,0.34995439873258671,5.1774086042990462E-2,5.6473129332414218E-2,7.4508669433743263E-2,1.3696001871910163E-2,8.2330098595227136E-2,8.4856976830476036E-2,8.2728537773557098E-2,0.15235379085241468,0.15122348624903934,0.12756517104991127,8.2524908916736445E-2,0.22342885403590709,0.22342885403590709]
[null,"TTL_C17T19: Textiles, textile products, leather and footwear",2.0787795525294545E-2,6.4331436103987677E-3,1.9067479712805327E-2,1.2414464770369547,8.6722416178152253E-2,3.3642224414190021E-2,5.4005076990195841E-3,1.7022719981379997E-2,2.689717222409457E-2,1.4782142041468486E-2,1.3147728115959354E-2,1.3872864221888633E-2,1.8567247709647818E-2,1.6653250562536623E-2,1.7722061940759797E-2,1.5057277462952689E-2,1.6288128529847973E-2,8.1006903665660587E-2,1.1053227364637206E-2,1.3865681890981788E-2,2.4615843651099905E-2,2.3978088052154969E-2,1.4038922395568873E-2,1.9765738947005795E-2,1.9510471705012768E-2,3.5803462031827708E-3,2.1528833730927493E-2,2.2257745382610265E-2,2.0436948017845197E-2,4.3297006287751565E-2,3.9444137411527594E-2,3.1370427231899076E-2,3.1841046326651218E-2,5.7823232603340012E-2,5.7823232603340012E-2]
[null,"TTL_C20: Wood and products of wood and cork",2.8032701364813003E-3,1.0464475643362477E-3,1.917244703538718E-3,1.485167626893045E-3,1.0723224600259127,3.383384229975259E-3,5.91781360227498E-4,1.2958424637827795E-3,2.5919845891510017E-3,1.9434666846988031E-3,3.5332437206531475E-3,4.4987731656127815E-3,3.0279024686853109E-3,4.1190026447743963E-3,2.3370295797396703E-3,2.4514572384938421E-3,1.5070633452747386E-2,7.1031161310466925E-2,1.1188451747876868E-3,1.5664411905586983E-2,2.9712293681410139E-3,1.5635993186924406E-3,9.737121494798475E-4,1.1017452645405623E-3,8.9797120333755124E-4,4.7804813209616123E-4,1.045922216570903E-3,1.0868709130697999E-3,9.2677947109729277E-4,2.1966449331518164E-3,2.1639841922585124E-3,1.4137705922913435E-3,2.1684310631708355E-3,2.1659580610763687E-3,2.1659580610763687E-3]
[null,"TTL_C21T22: Pulp, paper, paper products, printing and publishing",1.5705900567516286E-2,4.7078572590641445E-3,3.7828139604181708E-2,3.0828491923687969E-2,3.2941027346040617E-2,1.2822411868701626,5.2673572616400892E-3,4.086443929476602E-2,3.9027471481946852E-2,2.6111437469962934E-2,1.3444642845583197E-2,1.9674387481541836E-2,2.3019556907385646E-2,4.0081250336669406E-2,2.4602756489953369E-2,1.7268701593093849E-2,1.6539642952511334E-2,3.6820541876857682E-2,1.0895174074295279E-2,1.2935674606787125E-2,4.2494512283460732E-2,2.3134892934251354E-2,1.5269063612667572E-2,5.1055013618369879E-2,2.74923521437139E-2,4.5501209656249311E-3,1.612175649123055E-2,1.8672955215532701E-2,3.4065599045645677E-2,3.3856657593197587E-2,3.0385437387855558E-2,3.2667874634697384E-2,3.5597012408073746E-2,3.231700866625168E-2,3.231700866625168E-2]
[null,"TTL_C23: Coke, refined petroleum products and nuclear fuel",2.3506800337580173E-2,1.190794270369654E-2,3.274232198243282E-2,3.7080311738393303E-2,3.327918870061667E-2,3.7715775463898919E-2,1.014069240648565,3.7848052130240381E-2,3.7467945771966875E-2,4.9044769240729605E-2,2.179025619637515E-2,1.6719456845561909E-2,2.6823203494440589E-2,3.2727206040633561E-2,1.961734948371726E-2,3.7217554284150516E-2,1.4230747210759573E-2,4.7637898052329243E-2,1.8563436681479809E-2,2.8556558236653609E-2,3.8060630324683917E-2,3.4047027929942068E-2,0.12493310664996256,2.7951159767370705E-2,2.8390909913235937E-2,5.5371139630487299E-3,2.0721510063649255E-2,2.123475142136742E-2,3.166981455088351E-2,4.646269494571717E-2,3.7527126724616826E-2,3.6985262718220974E-2,3.0230643299917925E-2,5.0052101272346779E-2,5.0052101272346779E-2]
[null,"TTL_C24: Chemicals and chemical products",6.7488694081405162E-2,9.143673461411251E-3,5.5523374819212372E-2,6.6640499293842789E-2,5.5492698287465093E-2,7.849515677722034E-2,1.7801951816144267E-2,1.2499259755225214,0.30809455878349706,4.0245938998857769E-2,1.8437877797599554E-2,3.2552326983242036E-2,5.175965808870938E-2,7.4247966613703614E-2,3.3548859009416468E-2,3.0852842787863859E-2,2.8110988255524799E-2,6.1571087340853543E-2,1.8843864416181987E-2,3.1155309313725368E-2,3.028150278640045E-2,3.464806101750776E-2,2.4696684855492666E-2,1.9232427414483826E-2,2.25261268369473E-2,4.3897641712816633E-3,2.2819456705204966E-2,2.3585248665317988E-2,2.5524047995636828E-2,4.4472453874136279E-2,4.0965039836487013E-2,0.14186291547192392,3.8105807960725241E-2,5.921594912150633E-2,5.921594912150633E-2]
[null,"TTL_C25: Rubber and plastics products",1.2854295961536675E-2,3.8297082910680111E-3,3.3612293148607406E-2,1.939533871496112E-2,2.7792795129228502E-2,3.3203364142630767E-2,3.6767692725647588E-3,3.4968205949927389E-2,1.0504309193800145,1.2483080936827455E-2,8.1636231568227718E-3,1.5576989311011306E-2,1.8928927770842808E-2,7.1362082598350002E-2,1.800177751500092E-2,1.6383563046982946E-2,1.6753378952005828E-2,2.7757101700941051E-2,8.3855510180776624E-3,2.4952916550144307E-2,1.8326934828122639E-2,1.4860565583258911E-2,3.4819120724651167E-2,7.8991721155503621E-3,7.1484161035537961E-3,1.8029539293308076E-3,6.937349041777216E-3,6.972151194057862E-3,1.040864586399839E-2,1.3802020763256829E-2,1.190625227494225E-2,1.3762272651751646E-2,1.8624481004307396E-2,1.5994299495278471E-2,1.5994299495278471E-2]
[null,"TTL_C26: Other non-metallic mineral products",4.1532411571106069E-3,1.770870855379353E-3,9.134615327151532E-3,3.4419283576257371E-3,3.7041247974681519E-3,3.2210683800412781E-3,1.1593344235317348E-3,8.6056498919788726E-3,6.1789292862894571E-3,1.1057213230099285,3.9772695233116113E-3,1.0409034473059036E-2,9.785722500976618E-3,1.7091952050502367E-2,1.157032288781084E-2,1.2813332396286707E-2,5.2720630041530282E-3,6.2617294411064818E-3,6.3182893653696585E-3,0.12945373141651947,4.7543043790995165E-3,6.6192988561537E-3,2.8151553311170593E-3,3.0808037432508094E-3,2.7652562093597949E-3,3.1723343859866317E-3,2.7219037087306761E-3,3.0304770417099456E-3,2.6642409999370164E-3,9.3582416703177438E-3,6.2904653645942847E-3,4.3359244520320321E-3,5.5796684962408413E-3,5.6926735230640128E-3,5.6926735230640128E-3]
[null,"TTL_C27: Basic metals",3.3221276056809778E-3,1.4670754438844841E-3,6.2087126470201006E-3,3.1011605523775789E-3,1.0733658448542628E-2,3.9962589935807506E-3,9.8104317408060585E-4,5.1336102319531427E-3,3.8284958219018468E-3,4.7323380996545077E-3,1.0672710134101617,7.2947793470450578E-2,6.2635080048831185E-2,6.2100761491562483E-2,2.6431100112820013E-2,2.690929164592059E-2,4.4538988296336103E-2,3.4457086070007518E-2,2.4382047159411005E-3,3.4556297495671288E-2,3.4922467748738886E-3,4.0680153609928063E-3,2.1376065839224562E-3,1.7579574004811009E-3,1.9236744411530956E-3,1.0284138378482491E-3,2.1619910341930588E-3,2.0021517504218824E-3,1.7575953349481346E-3,5.0055316805966499E-3,3.7401191223527656E-3,2.9489541927372499E-3,3.1531119207953186E-3,4.0641839414845282E-3,4.0641839414845282E-3]
[null,"TTL_C28: Fabricated metal products",2.613796449773114E-3,1.2278277431429876E-3,4.0802555549479874E-3,3.881668585628583E-3,1.1131833485165152E-2,4.4315315230572866E-3,1.2420055193066472E-3,7.5138417731305225E-3,8.001036642955657E-3,3.6023458232030108E-3,5.2884146477202628E-3,1.2642060059247524,0.14676752755729267,4.5811138436915637E-2,6.4322881391140382E-2,0.14354119991731915,0.16817530230734137,2.2597150873735372E-2,3.0426930227186494E-3,1.117020151580623E-2,5.1352760593584143E-3,2.9316907399502216E-3,4.9699403675038971E-3,2.3639615889937413E-3,1.9919659056173728E-3,7.528120577934862E-4,2.5651329705448978E-3,3.1584310174997739E-3,2.2919565275490816E-3,5.5625649979859281E-3,3.8546017690130017E-3,4.2026376173988304E-3,6.2162288859748307E-3,4.8223761057091087E-3,4.8223761057091087E-3]
[null,"TTL_C29: Machinery and equipment, nec",1.8913640085175001E-3,1.047728140709742E-3,2.9504737146140193E-3,3.8419943087372294E-3,3.004748316062374E-3,3.8568706991053614E-3,8.538181564411233E-4,3.2552866446475259E-3,3.9262877670743603E-3,4.8077946412540167E-3,2.2796540287860125E-3,1.0289705622620354E-2,1.0182349171097684,3.614101846177852E-3,4.3194746449756816E-3,1.2200957595892502E-2,2.0821949709895371E-2,4.9342168554344715E-3,1.0711992141032123E-3,4.3892478659750276E-3,4.7899917520003573E-3,1.9992025269416369E-3,3.7180987260276798E-3,3.1943447160706915E-3,1.3021062773780098E-3,3.1743751681649298E-4,1.3475640274747016E-3,1.4171663008338933E-3,1.4618404797541206E-3,6.493361842345031E-3,2.3973079443502898E-3,2.2623120872488564E-3,1.8456255196604642E-3,3.3964729222033803E-3,3.3964729222033803E-3]
[null,"TTL_C30T33X: Computer, Electronic and optical equipment",2.984972081581332E-4,2.4352552646444799E-4,5.8108398691860861E-4,1.1055502896626858E-3,5.6031406333600636E-3,1.6129431707029287E-3,4.8444584315125109E-4,9.2068459268287691E-4,1.8199218845741008E-3,1.257966246678263E-3,1.1452259608851119E-3,3.058833951280151E-3,3.219987529594846E-3,1.0183995300164672,4.4073909960302901E-3,3.079800153635198E-3,5.679519911191833E-3,2.4319641399481507E-3,6.9564776071156522E-4,6.5507131661016768E-4,5.8865687971839417E-4,3.8990986175406911E-4,6.667586446537485E-4,8.7330623176551706E-4,6.5525622268465186E-4,8.8537417500875285E-5,8.2425018286697727E-3,2.0521501708625316E-3,6.4320820931140885E-4,7.8817242575884416E-4,8.4340076169035717E-4,1.0734999057057789E-3,9.5301133209327532E-4,6.326606951564843E-4,6.326606951564843E-4]
[null,"TTL_C31: Electrical machinery and apparatus, nec",1.0681530913361182E-3,5.3373617409895892E-4,1.4968282493936548E-3,1.7636185283638726E-3,1.8547161037483079E-3,2.0996502404684739E-3,4.7831391177959379E-4,2.1942912336060621E-3,2.1928075339822132E-3,1.7538981337279552E-3,2.4032140595118641E-3,6.2596925017241447E-3,6.7061614434236708E-2,1.800730273676408E-2,1.3671662046101798,8.3112826732093983E-2,3.5997726561233359E-2,2.0300625321777901E-3,7.9018526175861411E-3,9.3791616711893771E-3,2.811394690150194E-3,1.5309451585501207E-3,3.3952674683948077E-3,1.8436495054587052E-3,1.1830293314469313E-3,4.7121124106295267E-4,1.1199228709241303E-3,2.9047355371326681E-3,1.3032657108620939E-3,2.7760553951671411E-3,1.9429188072162945E-3,2.1609935279191866E-3,1.644087939809402E-3,2.3577045069046385E-3,2.3577045069046385E-3]
[null,"TTL_C34: Motor vehicles, trailers and semi-trailers",2.5909582471901342E-3,1.0759209766022639E-3,3.4027258329620965E-3,3.9091423929524752E-3,3.5395151810699937E-3,3.2715334037184398E-3,1.1108694735345831E-3,3.0396868292909152E-3,3.3729550795780767E-3,2.7383379500581836E-3,2.095518485778465E-3,2.0640219599171897E-3,3.2336410856834076E-3,2.4500805889368306E-3,2.8326239941853792E-3,1.0885142614358669,2.9295882611939995E-3,2.9520105516401291E-3,1.7628358366162042E-3,2.1029398066163877E-3,9.6607908775464442E-3,3.3453273904282873E-3,9.1253331944494576E-3,2.4296498949089927E-3,2.6259759529985568E-3,4.99351496520793E-4,2.7712344391453247E-3,2.8313435989512749E-3,2.9025245720933289E-3,7.1907010624916003E-3,4.774637228425146E-3,4.3279458612485062E-3,3.1229189640182143E-3,7.2914216264071277E-3,7.2914216264071277E-3]
[null,"TTL_C35: Other transport equipment",2.0980043055917331E-4,1.2089887792824323E-4,2.7751118674273199E-4,3.17194230392575E-4,3.3172676391158841E-4,3.0119961320755243E-4,9.651663531487804E-5,2.8467031097501716E-4,3.0605929175379286E-4,2.7063664164366039E-4,1.8378447646045495E-4,1.7409135021502329E-4,2.3641159686487397E-4,2.3971953848913262E-4,2.1271306654898747E-4,1.5832813335489503E-4,1.0754572762014387,2.436921263967481E-4,1.7536046086799492E-4,1.952950582518259E-4,3.3900035542369286E-4,2.6151645523716166E-4,1.8700361399154601E-3,2.1292246093941532E-4,2.4748460167868774E-4,4.8539860467715185E-5,2.4341011171715685E-4,2.5359373409279397E-4,2.9097157237688672E-4,1.7199686592322702E-3,4.2093897637056197E-4,3.7214335501898238E-4,2.561999491809163E-4,6.3664136587441417E-4,6.3664136587441417E-4]
[null,"TTL_C36T37: Manufacturing nec; recycling",3.6296729583121007E-3,1.5590198891637555E-3,5.4813554894625098E-3,7.4317129115633969E-3,6.7984005269818648E-3,3.655214961258068E-2,1.2537366087794304E-3,5.5468300675737608E-3,6.9729541114976453E-3,7.1232385297077348E-3,3.0667606010066972E-2,5.4068701582324187E-3,9.5449583119885748E-3,1.3365279466281204E-2,4.8077740448466766E-3,1.0261906331364647E-2,4.3237138989065697E-3,1.0393489302711756,2.6861199234687679E-3,9.283757623033637E-3,5.4359244390568464E-3,4.7814573739830592E-3,3.1973399351791364E-3,4.965312734620345E-3,4.7746185807412845E-3,9.6575764201884025E-4,4.6427562419223576E-3,5.1394991784166856E-3,4.8963233817315511E-3,8.527101814590243E-3,1.4299556017228369E-2,7.2788184941886642E-3,1.8259833183324713E-2,1.1927541323983876E-2,1.1927541323983876E-2]
[null,"TTL_C40T41: Electricity, gas and water supply",3.5387312885713243E-2,1.5911451942159049E-2,6.1005383890288735E-2,7.5612979601447902E-2,7.012653853772044E-2,0.1023664515069122,1.3933878031213051E-2,7.2341029042474275E-2,9.4066171175904698E-2,0.10542306618677041,4.1715232770303382E-2,5.9047017798144467E-2,5.1048048166513538E-2,5.1747692868145873E-2,5.0972300550415323E-2,3.0097386834364626E-2,4.0127106795228046E-2,5.5789861160131432E-2,1.320412215156469,3.60801897480389E-2,6.4952204466895994E-2,6.4352634903938333E-2,5.1808691785624125E-2,7.7710058957751502E-2,5.309020490251451E-2,8.1675562028519031E-3,3.9766675748486552E-2,4.2406348251403318E-2,4.8099872594988095E-2,0.10327959595727007,7.6869674599442939E-2,8.7401852252290524E-2,5.6791542120210481E-2,9.4415011393372938E-2,9.4415011393372938E-2]
[null,"TTL_C45: Construction",9.8496936783451852E-3,9.3905813661487505E-3,9.3296847943201301E-3,1.0522070718592536E-2,9.5312724142163161E-3,1.0381994032817988E-2,4.716610887225854E-3,8.8724516593906479E-3,9.5550944076562058E-3,1.0250741402731222E-2,7.7643039319937454E-3,9.7583538617247237E-3,8.3093052938110808E-3,7.2983087312116068E-3,1.0533829002564304E-2,5.5900309850678218E-3,6.7968312570361065E-3,8.2167766342692277E-3,4.1898537794151827E-2,1.0176808538099529,1.0314058233441762E-2,1.2053138198768198E-2,1.2586224966532295E-2,1.4419766000155418E-2,1.2698444566202135E-2,2.3385837354714181E-2,1.0720673068783378E-2,1.347233859054776E-2,1.0731148445962358E-2,4.9934403643051323E-2,3.1493093071746893E-2,1.4330106358611748E-2,3.0588254572702447E-2,1.8924994524557957E-2,1.8924994524557957E-2]
[null,"TTL_C50T52: Wholesale and retail trade; repairs",0.10374223079645356,3.4549165327700498E-2,0.18678846995044085,0.20371474995758723,0.1640636675890712,0.13463619629787582,6.3224463032438047E-2,0.13724998492758175,0.15033353181317349,9.8927957847574868E-2,0.10157213176016984,9.9055056677664469E-2,0.1117161606722548,0.10527549986848334,0.1174511508536604,0.11672064636659993,9.0445133731451258E-2,0.13572152041288993,5.4192679832941099E-2,9.2697972916817806E-2,1.0990253175874884,0.16946800073132628,0.1335194978263648,6.4773278531415332E-2,6.6689209335135544E-2,1.3686044778382259E-2,7.4703006941562428E-2,7.2133080320522666E-2,7.7861974664054728E-2,0.13321367595584785,0.12567016237784054,0.1357848023730148,9.1502570374249276E-2,0.17765770167318343,0.17765770167318343]
[null,"TTL_C55: Hotels and restaurants",3.3405383931560124E-2,1.3466448796232138E-2,4.0534019693704341E-2,5.4774348173587804E-2,4.8582058011536179E-2,4.9838054491344728E-2,1.3287888070785757E-2,4.7429572002299601E-2,4.8611490674067198E-2,3.769703407195453E-2,2.6254189600900892E-2,2.9176601714994865E-2,4.1777904373663112E-2,3.4651619904226674E-2,3.7990827775867701E-2,2.5697688926129204E-2,2.3454883618494494E-2,3.8122788661834578E-2,2.9333010175008205E-2,2.8648332235832245E-2,5.9518320490604945E-2,1.0469662218343754,3.7664047963502381E-2,3.7173154833538655E-2,4.4980177145680443E-2,8.29330603494941E-3,4.5769205967810873E-2,4.8826026848165387E-2,6.0646514720112302E-2,8.7223668084812064E-2,0.1123412025764936,8.7212208270868799E-2,6.2321909844588977E-2,0.12048977031301882,0.12048977031301882]
[null,"TTL_C60T63: Transport and storage",6.3829345988342057E-2,5.1462446980774734E-2,0.10422591060255275,0.10789441780959368,0.12624788814550095,0.11244555616280276,3.8867576860179297E-2,0.11308143791199697,0.11616996378754482,0.10948583999501277,7.1056790433600012E-2,5.3389097844024479E-2,7.2062658142957786E-2,9.3459781522672605E-2,5.7260796205186267E-2,5.5266171084492811E-2,4.7017856426839887E-2,9.6252861731130401E-2,6.139270052888194E-2,7.1938270255624048E-2,0.1216179091249853,7.737562875707453E-2,1.1548589615406371,6.9687396203330934E-2,6.8054899716753423E-2,1.4526342249779726E-2,5.1420514328021E-2,5.5697203978391986E-2,9.1437674478939274E-2,0.11416819062941858,9.1887024214668656E-2,9.1454309348214233E-2,7.1290501443014617E-2,0.12534394087167425,0.12534394087167425]
[null,"TTL_C64: Post and telecommunications",2.3922218095163955E-2,8.5476475703400653E-3,2.9746381876565923E-2,3.9352505797294018E-2,3.2930917447408871E-2,3.514272583879012E-2,8.3364176228886405E-3,2.9785991353699283E-2,3.2955427323128422E-2,2.4850531871861894E-2,1.8073737135648058E-2,2.7778905046304456E-2,2.9813027977008265E-2,2.613724355049462E-2,3.6836553933538352E-2,1.9910142252312916E-2,2.3340004997609163E-2,2.7359369720944011E-2,2.3044874035550122E-2,2.0210491047137482E-2,5.3395932165794274E-2,4.1772589292535682E-2,3.367474574932474E-2,1.1104724656230298,4.6787608456176653E-2,7.734987197809527E-3,3.2481114009673101E-2,3.7637527364276932E-2,5.4294903086322309E-2,5.9508128976353852E-2,6.2030769926396806E-2,7.002833786445542E-2,6.5244583185378763E-2,7.587212116555421E-2,7.587212116555421E-2]
[null,"TTL_C65T67: Financial intermediation",5.1028489057295325E-2,2.1332808290063995E-2,6.1734494011638871E-2,8.1173000628351116E-2,5.8371670421850423E-2,7.6792323638848289E-2,1.9146647155772772E-2,6.4403465429217724E-2,6.9923160039732118E-2,5.5214368774787782E-2,3.8548416087494715E-2,4.5687289973176816E-2,5.3955347698315788E-2,5.3241127163189565E-2,5.7872131859695683E-2,3.9916766125766182E-2,4.0558667721257581E-2,5.5176979373618748E-2,7.0406154609700303E-2,5.2116173020762345E-2,6.956639681211696E-2,5.8160518339954968E-2,8.4365114257578172E-2,0.1111090942664397,1.1680225198077365,6.6884013476513557E-2,9.0021331963367035E-2,6.1529902082790779E-2,8.1148019151976683E-2,0.19132997159126558,9.1877361901012644E-2,8.6814936293174758E-2,7.2914041222722797E-2,0.11296169400730594,0.11296169400730594]
[null,"TTL_C70: Real estate activities",4.4106637774266579E-2,1.6433000506150451E-2,5.6237804346310552E-2,8.7874105878467154E-2,6.196554234748991E-2,7.0796259309170328E-2,1.6255312862664288E-2,5.0920801863541365E-2,6.035833622055238E-2,4.435458677817096E-2,3.6124018387034197E-2,5.4352384623725242E-2,5.5791456620990706E-2,5.067506197288444E-2,6.8562620287099918E-2,3.7603138586982061E-2,4.5493624074276262E-2,6.422026711882127E-2,3.6396146564604936E-2,3.8776240487870636E-2,0.11060330940725409,9.3992100252224986E-2,5.0502894853116452E-2,9.0728650535614713E-2,8.4021415049667231E-2,1.016410731119938,6.6144999763423501E-2,6.894908208998525E-2,8.1991302024332413E-2,0.10568027304458946,0.1334974264647307,9.1579740668748522E-2,7.0851191860845458E-2,0.1527952015845411,0.1527952015845411]
[null,"TTL_C71: Renting of machinery and equipment",2.6472313760963367E-3,6.2968923576888674E-4,2.93715720785629E-3,2.213927924539148E-3,6.9541922027239605E-3,6.5444002109575558E-3,6.1894987840974158E-4,3.4979070222967497E-3,4.6498022057663239E-3,2.976417743931412E-3,1.8614434316768169E-3,7.675564634456229E-3,6.8103565200667978E-3,8.2140041702270638E-3,6.8375714202031203E-3,8.5568259369826326E-3,3.8834647981090516E-3,3.7716736697912018E-3,2.7208067647439054E-3,3.1810156740667058E-3,4.1206132557765323E-3,2.2836176820457011E-3,6.1407453504080571E-3,2.7652041150716465E-3,3.0546556871373655E-3,4.7005349043906697E-4,1.1959681304747694,2.0185340183009635E-2,2.1308553292804832E-3,2.8973967226633606E-3,2.5089207365520628E-3,4.1687388520398076E-3,5.3287374255765775E-3,2.7140993665841161E-3,2.7140993665841161E-3]
[null,"TTL_C72: Computer and related activities",4.4766317317638171E-3,1.8821774254474872E-3,6.7226852099733373E-3,8.5531725301839501E-3,8.9059319195522874E-3,1.7616246031922189E-2,1.9768396801953031E-3,1.1890569709263219E-2,1.1097598561465341E-2,6.9354917166170897E-3,6.1417322003055963E-3,3.0634634707702408E-2,2.9994570486448616E-2,3.95953853553761E-2,2.6578923934980615E-2,2.9168175088613881E-2,2.1686148515485157E-2,9.3184178503321318E-3,6.0417986260039407E-3,5.2354439415297129E-3,1.1820792604105809E-2,6.1357661807478004E-3,1.637306287368695E-2,2.5344644756075892E-2,2.1210662906661328E-2,3.10150361042187E-3,1.4643743211828646E-2,1.1947371607896802,1.8279648635717106E-2,1.5344613334667814E-2,1.178378443438805E-2,1.9553412771652377E-2,1.694544797804283E-2,1.0669185082892644E-2,1.0669185082892644E-2]
[null,"TTL_C73T74: R&D and other business activities",4.745454180944228E-2,1.6646881299852225E-2,8.8508498321305543E-2,0.1851629000109915,9.6790252259470494E-2,0.14848803712446634,1.7413390179642073E-2,0.11526007105751072,0.12036304370682149,8.4024922046636211E-2,5.7705954930601516E-2,6.2517445644110228E-2,7.8280704450845687E-2,0.10637329943893462,0.10918248156762657,5.4121959582212331E-2,9.8487162277066068E-2,9.3286079189005944E-2,7.6858693258314847E-2,7.737464021516495E-2,0.11604558855203803,7.6358256180766526E-2,7.3907219822312742E-2,0.11309035681385048,0.13120311242246707,3.3862677189338018E-2,7.783851134210934E-2,6.28801827832184E-2,1.1027633532670293,0.13857914915371447,0.1067220743213313,0.14048984274815007,0.15051964601753443,9.2605908887177069E-2,9.2605908887177069E-2]
[null,"TTL_C75: Public administration and defence; compulsory social security",4.6192313509749748E-2,1.7283252567915366E-2,4.8514482015757102E-2,6.259438196752623E-2,5.6947114285862716E-2,5.3094506936856009E-2,1.5207456366816058E-2,4.5852939540722622E-2,5.2735949843852617E-2,4.232695457702048E-2,3.0842924364701495E-2,3.9578021723558073E-2,5.2239185346988133E-2,3.9822867997452625E-2,5.3511191963750773E-2,3.0644197833931405E-2,3.0655372094681176E-2,3.9621823816515765E-2,3.3508852565853446E-2,3.5059665710538167E-2,6.2893026306571745E-2,5.8969283574987423E-2,3.9139363068987826E-2,4.3770850991996658E-2,5.9099343909741198E-2,1.0842093462339934E-2,6.8747336147613275E-2,7.012529375522164E-2,6.2215538363869387E-2,1.1109048592525252,0.11568002849057202,9.5780633657369302E-2,6.0651300513918004E-2,0.18361707111090783,0.18361707111090783]
[null,"TTL_C80: Education",2.7008697132667112E-2,1.0146103883966678E-2,2.8496636646607187E-2,3.6752641984380836E-2,3.3427856966946209E-2,3.1463280176162081E-2,8.9306625633177629E-3,2.7093643981343656E-2,3.1076842990430318E-2,2.49137439721413E-2,1.8161019810188708E-2,2.3386809942617028E-2,3.1069254136355327E-2,2.4163843372652774E-2,3.1161114403123333E-2,1.8498372399446673E-2,1.8506161442177586E-2,2.3369613835201208E-2,2.0873606591038485E-2,2.0569429963235412E-2,3.7260703276903583E-2,3.4534507875888888E-2,2.3437187527151061E-2,2.671767365490085E-2,3.5430825680957775E-2,6.4154119720943497E-3,4.0036222655137788E-2,6.8969338494370189E-2,3.6873802295551872E-2,6.9319108041820801E-2,1.0715047798634902,6.0884374107288204E-2,3.7481723688371056E-2,0.10695823212531169,0.10695823212531169]
[null,"TTL_C85: Health and social work",2.5390777027086427E-2,9.4964566349054411E-3,2.6698748420086255E-2,3.4434488027790193E-2,3.1294279723959248E-2,2.9228785357722033E-2,8.3584360420767036E-3,2.526015618077565E-2,2.9007017194476951E-2,2.3270768568857601E-2,1.6951105919736625E-2,2.0007322482332206E-2,2.8406690134687766E-2,2.1797296285438767E-2,2.7254926755930612E-2,1.6540292148444213E-2,1.5307752699733248E-2,2.1779958524451182E-2,1.8401189658431572E-2,1.9244405999579391E-2,3.4591248089159539E-2,3.2437404156888235E-2,2.1517789455333138E-2,2.4177760818778093E-2,3.2520703758815168E-2,5.961787906336502E-3,3.6888749949141882E-2,3.7805220894200936E-2,3.4215961946310131E-2,6.1007369242482783E-2,6.3583472347179801E-2,1.5218660815696519,3.6825973256931051E-2,0.10087938832207954,0.10087938832207954]
[null,"TTL_C90T93: Other community, social and personal services",2.4287667467912059E-2,8.0402843912350287E-3,3.6404427580768006E-2,4.1898825361247442E-2,3.2631778033303457E-2,4.5630592707946754E-2,8.008444341016446E-3,4.5626902938123222E-2,3.7750256955499654E-2,2.5179000554271424E-2,1.8334919844181667E-2,2.4856053686354958E-2,2.9777435924196079E-2,2.6998120274155511E-2,2.9559891598893093E-2,2.7343837594521476E-2,1.8517107235171078E-2,3.1576214504278007E-2,1.6188833719267142E-2,1.8426792776138588E-2,4.200436389294071E-2,3.8131035747539246E-2,2.7497171794185447E-2,6.3358053586070467E-2,2.9020155709599416E-2,6.1359155137198198E-3,3.0829677389890568E-2,3.9971606254717393E-2,3.9474124173051801E-2,5.3633483860932057E-2,5.8021341068241541E-2,5.132406629901385E-2,1.1211344794757854,7.559303485130224E-2,7.559303485130224E-2]
[null,"TTL_C95: Private households with employed persons",3.3496538548418347E-3,1.2532403098263552E-3,3.517535997115827E-3,4.5388537257019792E-3,4.1273429427176123E-3,3.8483518328322501E-3,1.1026581740574293E-3,3.3232054997209917E-3,3.8223927771519417E-3,3.0686763597057446E-3,2.2353164377582743E-3,2.6369138331935062E-3,3.7458912826286834E-3,2.8727759608394923E-3,3.582840116711586E-3,2.1764426212483169E-3,2.0174434452377181E-3,2.8686556222170131E-3,2.4279045490169233E-3,2.53864208268713E-3,4.5596145819845968E-3,4.2762932610161232E-3,2.8355109521467506E-3,3.1721467261272454E-3,4.2846596501109795E-3,7.8599389391920485E-4,4.8683052366842302E-3,4.9858615513255888E-3,4.5109682013609398E-3,8.0421678680305635E-3,8.3895964427811425E-3,6.9450977479908055E-3,4.3965092126301763E-3,1.0133178488944556,1.3317848894455607E-2]
[null,"L",0.36523148454885573,0.13664779666493646,0.38353661299170722,0.49489659416361226,0.45002727312615864,0.41960731283919483,0.1202289846393521,0.36234767254222172,0.41677685188577396,0.33459493757399861,0.2437290467547322,0.28751745573130372,0.40843546629020022,0.31323482199124603,0.39065708620497341,0.23730970543267071,0.21997313645780334,0.31278555843831002,0.26472800510375177,0.27680233742892218,0.49716026637847271,0.46626815897099122,0.30917160977995961,0.34587689003016464,0.46718039314259396,8.5701308004555596E-2,0.53081853405868018,0.54363635619050854,0.49185607956304256,0.87688251882688972,0.91476459847742675,0.75726283095462388,0.47937597618947431,1.4521195124948316,1.4521195124948316]
[]
[]
[null,"Average Salaries, $2014 - Based on DANE C2.4.4 and C2.4.5 Mercado Laborial"]
[null,null,"TTL_C01T05: Agriculture, hunting, forestry and fishing","TTL_C10T14: Mining and quarrying","TTL_C15T16: Food products, beverages and tobacco","TTL_C17T19: Textiles, textile products, leather and footwear","TTL_C20: Wood and products of wood and cork","TTL_C21T22: Pulp, paper, paper products, printing and publishing","TTL_C23: Coke, refined petroleum products and nuclear fuel","TTL_C24: Chemicals and chemical products","TTL_C25: Rubber and plastics products","TTL_C26: Other non-metallic mineral products","TTL_C27: Basic metals","TTL_C28: Fabricated metal products","TTL_C29: Machinery and equipment, nec","TTL_C30T33X: Computer, Electronic and optical equipment","TTL_C31: Electrical machinery and apparatus, nec","TTL_C34: Motor vehicles, trailers and semi-trailers","TTL_C35: Other transport equipment","TTL_C36T37: Manufacturing nec; recycling","TTL_C40T41: Electricity, gas and water supply","TTL_C45: Construction","TTL_C50T52: Wholesale and retail trade; repairs","TTL_C55: Hotels and restaurants","TTL_C60T63: Transport and storage","TTL_C64: Post and telecommunications","TTL_C65T67: Financial intermediation","TTL_C70: Real estate activities","TTL_C71: Renting of machinery and equipment","TTL_C72: Computer and related activities","TTL_C73T74: R&D and other business activities","TTL_C75: Public administration and defence; compulsory social security","TTL_C80: Education","TTL_C85: Health and social work","TTL_C90T93: Other community, social and personal services","TTL_C95: Private households with employed persons"]
[null,"Assigned labor category","services","other","mfg","mfg","mfg","mfg","mfg","mfg","mfg","mfg","mfg","mfg","mfg","mfg","mfg","mfg","mfg","mfg","other","construction","sales","services","transport-info","transport-info","finance","real estate","transport-info","other","other","other","other","other","services","services"]
[null,"Avg Annual Salaries $2014",4894.76,10487.331818181818,4253.8081818181818,4253.8081818181818,4253.8081818181818,4253.8081818181818,4253.8081818181818,4253.8081818181818,4253.8081818181818,4253.8081818181818,4253.8081818181818,4253.8081818181818,4253.8081818181818,4253.8081818181818,4253.8081818181818,4253.8081818181818,4253.8081818181818,4253.8081818181818,10487.331818181818,3644.949090909091,3311.1154545454547,4894.76,4484.8818181818178,4484.8818181818178,7138.8309090909088,4774.9909090909086,4484.8818181818178,10487.331818181818,10487.331818181818,10487.331818181818,10487.331818181818,10487.331818181818,4894.76,4894.76]
[]
[]
[]
[]
[]
[]
[]
[]
[]
[]
[]
[]
[]
[]
[]
[]
[]
[]
[]
[]
[]
[]
[]
[]
[]
[]
[]
[]
[]
[]
[]
[]
[]
[]
[]
[]
[]
[]
[]
[]
[]
[]
[]
[]
[]
[]
[]
[]
[]
[]
[]
[]
[]
[]
[]
[]
[]
[]
[]
[]
[]
[]
[]
[]
[]
[]
[]
[]
[]
[]
[]
[]
[]
[]
[]
[]
[]
[]
[]
[]
[]
[]
[]
[]
[]
[]
[]
[]
[]
[]
[null,"PV"]
[null,"Construction Impacts","Output","Output","Value Added","Value Added","Earnings","Earnings","Jobs","Jobs",null,null,"Direct",null,null,null,null,"Indirect",null,null,null,null,"Induced"]
[null,null,"Type 1","Type 2","Type 1","Type 2","Type 1","Type 2","Type 1","Type 2",null,null,"Jobs","Earnings","Output","Value Added",null,"Jobs","Earnings","Output","Value Added",null,"Jobs","Earnings","Output","Value Added"]

{"sheet":"Bangladesh-IO-Data","index":21,"n_rows":0,"n_cols":0,"rows_kept":0,"cut":false,"hidden":true,"merged":[]}

{"sheet":"Not-Technology-Specific","index":22,"n_rows":0,"n_cols":0,"rows_kept":0,"cut":false,"hidden":true,"merged":[]}